{"text_format":"1","workbook":"xlsx","n_sheets":15,"sheets":["Portada","Indice","Regional-cuadro","Región CARD-graficos","Región CAPARD-graficos","Comparativo","Proyecciones","Seguimiento proyecciones","Gráficos-pais","Nota Técnica","Gráfico Seguimiento","Datos_Regional (M)","Datos Regional (T)","Saldo Operacional","Datos Gráfico-País"],"not_rendered":{"charts":47,"images":11,"macros":1,"external_links":10,"defined_names":10,"comments":7,"pivot_tables":0},"unopened":[],"bounds":{"document_bytes":16777216,"sheet_cells":100000,"rows_first":2000,"rows_last":500,"rows_between":2000,"halvings":0,"cell_chars":16384,"cell_head_chars":4096},"cells_cut":0,"cells_raw":0,"read":"whole","date_system":"1900"}

{"sheet":"Portada","index":0,"n_rows":30,"n_cols":8,"rows_kept":30,"cut":false,"hidden":false,"merged":[]}
[]
[]
[]
[]
[]
[]
[]
[]
[]
[]
[]
[]
[]
[]
[]
[]
[]
[]
[]
[]
[]
[]
[]
[]
[]
[]
[]
[]
[]
[null,null,null,null,null,null,null,{"$f":"IF([1]EJECUTIVO!$J$38=[1]EJECUTIVO!$J$4,[1]EJECUTIVO!$G$38,(CONCATENATE([1]EJECUTIVO!$G$38,\"\n\",[1]EJECUTIVO!$I$37,\"          \",[1]EJECUTIVO!$J$37)))","v":"ENERO\n2022          2023"}]

{"sheet":"Indice","index":1,"n_rows":52,"n_cols":19,"rows_kept":52,"cut":false,"hidden":false,"merged":[[47,9,47,10],[50,1,50,10],[8,3,9,9],[2,1,2,10],[3,1,3,10],[4,1,4,10],[51,1,51,10],[14,1,14,10],[13,1,13,10],[12,1,12,10],[46,9,46,10],[17,3,17,8],[16,3,16,8],[46,6,46,7],[46,1,46,5],[45,9,45,10],[15,3,15,8],[47,1,47,7]]}
[null,null,null,null,null,null,null,null,null,null,null,null,null,null,null,null,null,null,-21982]
[]
[null,"Consejo Monetario Centroamericano"]
[null,"Secretaría Ejecutiva"]
[null,"www.secmca.org"]
[]
[]
[]
[]
[]
[]
[]
[null,"REPORTE EJECUTIVO MENSUAL"]
[null,"DE INDICADORES MACROECONÓMICOS"]
[null,"DE CENTROAMÉRICA, PANAMÁ Y REPÚBLICA DOMINICANA"]
[]
[]
[null,null,null,null,null,null,null,null,null,"Con cifras al mes de:"]
[]
[]
[]
[]
[null,"CONTENIDO"]
[]
[]
[null,"INDICADORES REGIONALES"]
[null,null,null,"Principales indicadores macroeconómicos región CARD y CAPARD"]
[null,null,null,"CARD: evolución de los principales indicadores macroeconómicos"]
[null,null,null,"CAPARD: evolución de los principales indicadores macroeconómicos"]
[]
[null,"INDICADORES POR PAÍS"]
[null,null,null,"Cuadro comparativo por país"]
[null,null,null,"Proyecciones 2023-2024"]
[null,null,null,"Seguimiento de las proyecciones en 2023"]
[null,null,null,"Evolución de indicadores macroeconómicos seleccionados (series mensuales)"]
[null,null,null,"Nota técnica"]
[]
[]
[]
[]
[]
[]
[]
[]
[]
[null,null,null,null,null,null,null,null,null,"Nº-21982"]
[null,"Elaborado con información recibida al ",null,null,null,null,"2024-02-22",null,null,"REM N° 282"]
[null,null,null,null,null,null,null,null,null,"Enero 2024"]
[]
[]
[]
[null,"ADVERTENCIA\n   El Consejo Monetario Centroamericano y su Secretaría Ejecutiva autorizan la reproducción total, gráficos y cifras de esta publicación, siempre que se mencione la fuente. No  obstante, no asumen responsabilidad legal alguna o de cualquier otra índole, por la manipulación, interpretación personal y uso de dicha información.   \nDerechos Reservados © 2020"]

{"sheet":"Regional-cuadro","index":2,"n_rows":95,"n_cols":8,"rows_kept":95,"cut":false,"hidden":false,"merged":[[88,1,88,7],[113,1,113,21],[114,8,115,8],[95,1,95,7],[89,1,89,7],[92,1,92,7],[91,1,91,7],[90,1,90,7],[55,10,55,16],[56,10,56,16],[66,10,66,16],[41,6,41,7],[43,6,43,7],[47,6,47,7],[61,5,61,7],[63,6,63,7],[55,6,55,7],[82,1,82,7],[83,1,83,7],[85,1,85,7],[37,1,38,1],[37,6,37,7],[42,1,42,2],[80,1,80,6],[55,3,55,4],[69,6,69,7],[74,6,74,7],[61,2,61,4],[63,3,63,4],[69,3,69,4],[74,3,74,4],[32,1,33,1],[32,6,32,7],[37,3,37,4],[32,3,32,4],[32,2,33,2],[32,5,33,5],[37,2,38,2],[37,5,38,5],[13,6,13,7],[17,6,17,7],[22,6,22,7],[47,3,47,4],[24,10,24,16],[29,6,29,7],[43,3,43,4],[41,3,41,4],[22,3,22,4],[17,3,17,4],[13,3,13,4],[29,3,29,4],[2,0,2,7],[4,1,5,1],[4,3,5,4],[4,6,5,7],[4,2,5,2],[4,5,5,5],[10,3,10,4],[7,3,7,4],[7,6,7,7],[10,6,10,7],[4,10,4,16],[5,10,5,16]]}
["Consejo Monetario Centroamericano",null,null,null,null,null,{"$f":"CONCATENATE(Indice!$J$47,\",\")","v":"REM N° 282,"},{"$f":"Indice!$J$48","v":"Enero 2024"}]
["Secretaría Ejecutiva"]
["PRINCIPALES INDICADORES MACROECONÓMICOS REGIONALES"]
[]
[null,"Agregados Regionales",null,"Región CARD 1/",null,null,"Región CAPARD 1/"]
[]
[null,"I. SECTOR REAL"]
[null,"1. Indice de Precios al Consumidor (IPC)",null,{"$f":"IF([2]EJECUTIVO!$J$7=[2]EJECUTIVO!$J$5,[2]EJECUTIVO!$G$7,CONCATENATE([2]EJECUTIVO!$G$7,\"\n\",[2]EJECUTIVO!$I$5,\"                 \",[2]EJECUTIVO!$J$5))","v":"ENERO\n2023                 2024"},null,null,{"$f":"IF([2]EJECUTIVO!$J$7=[2]EJECUTIVO!$J$5,[2]EJECUTIVO!$G$8,CONCATENATE([2]EJECUTIVO!$G$8,\"\n\",[2]EJECUTIVO!$I$5,\"                 \",[2]EJECUTIVO!$J$5))","v":"ENERO\n2023                 2024"}]
[null,"    1.1 Variación interanual",null,{"$f":"CONCATENATE(ROUND([2]EJECUTIVO!$I$7,1),\" %\")","v":"8,4 %"},{"$f":"CONCATENATE(ROUND([2]EJECUTIVO!$J$7,1),\" %\")","v":"2,8 %"},null,{"$f":"CONCATENATE(ROUND([2]EJECUTIVO!$I$8,1),\" %\")","v":"7,6 %"},{"$f":"CONCATENATE(ROUND([2]EJECUTIVO!$J$8,1),\" %\")","v":"2,6 %"}]
[]
[null,"2. Índice Mensual de Actividad Económica (IMAE)",null,{"$f":"IF([2]EJECUTIVO!$J$12=[2]EJECUTIVO!$J$10,[2]EJECUTIVO!$G$10,CONCATENATE([2]EJECUTIVO!$G$12,\"\n\",[2]EJECUTIVO!$I$10,\"                 \",[2]EJECUTIVO!$J$10))","v":"NOVIEMBRE\n2022                 2023"},null,null,{"$f":"IF([2]EJECUTIVO!$J$13=[2]EJECUTIVO!$J$10,[2]EJECUTIVO!$G$10,CONCATENATE([2]EJECUTIVO!$G$13,\"\n\",[2]EJECUTIVO!$I$10,\"                 \",[2]EJECUTIVO!$J$10))","v":"SEPTIEMBRE\n2022                 2023"}]
[null,"    2.1 Variación acumulada de la tendencia-ciclo",null,{"$f":"CONCATENATE(ROUND([2]EJECUTIVO!$I$12,1),\"%\")","v":"4,5%"},{"$f":"CONCATENATE(ROUND([2]EJECUTIVO!$J$12,1),\" %\")","v":"3,5 %"},null,{"$f":"CONCATENATE(ROUND([2]EJECUTIVO!$I$13,1),\" %\")","v":"6 %"},{"$f":"CONCATENATE(ROUND([2]EJECUTIVO!$J$13,1),\" %\")","v":"4,4 %"}]
[]
[null,"3. Producto Interno Bruto Trimestral (PIB)",null,{"$f":" CONCATENATE([2]EJECUTIVO!$G$17,\" TRIMESTRE \",\"\n\",[2]EJECUTIVO!$I$15,\"                 \",[2]EJECUTIVO!$J$15)","v":"III TRIMESTRE \n2022                 2023"},null,null,{"$f":" CONCATENATE([2]EJECUTIVO!$G$18,\" TRIMESTRE \",\"\n\",[2]EJECUTIVO!$I$15,\"                 \",[2]EJECUTIVO!$J$15)","v":"III TRIMESTRE \n2022                 2023"}]
[null,"    3.1 PIB nominal (millones de US$) ",null,{"$f":"[2]EJECUTIVO!$I$17","v":88740.144756116526},{"$f":"[2]EJECUTIVO!$J$17","v":97538.205509803985},null,{"$f":"[2]EJECUTIVO!$I$18","v":106796.82635795661},{"$f":"[2]EJECUTIVO!$J$18","v":"n.d."}]
[null,"    3.2 PIB real, tasa de variación interanual",null,{"$f":"CONCATENATE(ROUND([2]EJECUTIVO!$I$22,1),\" %\")","v":"3,9 %"},{"$f":"CONCATENATE(ROUND([2]EJECUTIVO!$J$22,1),\" %\")","v":"3,8 %"},null,{"$f":"CONCATENATE(ROUND([2]EJECUTIVO!$I$23,1),\" %\")","v":"4,8 %"},{"$f":"+[2]EJECUTIVO!$J$23","v":"n.d."}]
[]
[null,"4. Producto Interno Bruto anual (PIB)",null,{"$f":"IF([2]EJECUTIVO!$J$5=[2]EJECUTIVO!$J$25-1,\"    ANUAL\",CONCATENATE(\" ANUAL\",\"         \n\",[2]EJECUTIVO!$I$30,\"                \",[2]EJECUTIVO!$J$30))","v":" ANUAL         \n2022                2023"},null,null,{"$f":"IF([2]EJECUTIVO!$J$25-1=[2]EJECUTIVO!$J$5,\"    ANUAL\",CONCATENATE(\" ANUAL\",\"         \n\",[2]EJECUTIVO!$I$25,\"                \",[2]EJECUTIVO!$J$25))","v":" ANUAL         \n2022                2023"}]
[null,"    4.1 PIB nominal (millones de US$) ",null,{"$f":"[2]EJECUTIVO!$I$27","v":358127.2862337245},{"$f":"[2]EJECUTIVO!$J$27","v":399483.89883321861},null,{"$f":"[2]EJECUTIVO!$I$28","v":429212.35975017986},{"$f":"[2]EJECUTIVO!$J$28","v":476740.89883321861}]
[null,"    4.2 PIB real, tasa de variación interanual",null,{"$f":"CONCATENATE(ROUND([2]EJECUTIVO!$I$32,1),\" %\")","v":"4,3 %"},{"$f":"CONCATENATE(ROUND([2]EJECUTIVO!$J$32,1),\" %\")","v":"3,5 %"},null,{"$f":"CONCATENATE(ROUND([2]EJECUTIVO!$I$33,1),\" %\")","v":"4,8 %"},{"$f":"CONCATENATE(ROUND([2]EJECUTIVO!$J$33,1),\" %\")","v":"3,8 %"}]
[]
[null,"II. SECTOR EXTERNO"]
[null,"1. Comercio Exterior 2/",null,{"$f":"CONCATENATE(\"ACUMULADO A \",[2]EJECUTIVO!$G$55,\"\n\",[2]EJECUTIVO!$I$37,\"                 \",[2]EJECUTIVO!$J$37)","v":"ACUMULADO A SEPTIEMBRE\n2022                 2023"},null,null,{"$f":"CONCATENATE(\"ACUMULADO A \",[2]EJECUTIVO!$G$55,\"\n\",[2]EJECUTIVO!$I$37,\"                 \",[2]EJECUTIVO!$J$37)","v":"ACUMULADO A SEPTIEMBRE\n2022                 2023"}]
[null,"    1.1 Balanza de bienes (millones de US$)",null,{"$f":"[2]EJECUTIVO!$I$55","v":-44289.105651234437},{"$f":"[2]EJECUTIVO!$J$55","v":-40458.142325134409},null,{"$f":"[2]EJECUTIVO!$I$56","v":-55250.435651234438},{"$f":"[2]EJECUTIVO!$J$56","v":-54004.862325134411}]
[null,"  1.2 Exportaciones totales FOB (millones de US$)",null,{"$f":"[2]EJECUTIVO!$I$40","v":55407.945236087071},{"$f":"[2]EJECUTIVO!$J$40","v":54235.343823892174},null,{"$f":"[2]EJECUTIVO!$I$42","v":66699.185236087069},{"$f":"[2]EJECUTIVO!$J$42","v":66630.833823892171}]
[null,"    1.2.1 Tasa crecimiento interanual",null,{"$f":"CONCATENATE(ROUND([2]EJECUTIVO!$I$41,1),\" %\")","v":"16,3 %"},{"$f":"CONCATENATE(ROUND([2]EJECUTIVO!$J$41,1),\" %\")","v":"-2,1 %"},null,{"$f":"CONCATENATE(ROUND([2]EJECUTIVO!$I$43,1),\" %\")","v":"17,1 %"},{"$f":"CONCATENATE(ROUND([2]EJECUTIVO!$J$43,1),\" %\")","v":"-0,1 %"}]
[null,"  1.3 Importaciones totales CIF (millones de US$)",null,{"$f":"[2]EJECUTIVO!$I$48","v":99697.050887321515},{"$f":"[2]EJECUTIVO!$J$48","v":94693.48614902659},null,{"$f":"[2]EJECUTIVO!$I$50","v":121949.62088732151},{"$f":"[2]EJECUTIVO!$J$50","v":120635.6961490266}]
[null,"    1.3.1 Tasa crecimiento interanual",null,{"$f":"CONCATENATE(ROUND([2]EJECUTIVO!$I$49,1),\" %\")","v":"28 %"},{"$f":"CONCATENATE(ROUND([2]EJECUTIVO!$J$49,1),\" %\")","v":"-5 %"},null,{"$f":"CONCATENATE(ROUND([2]EJECUTIVO!$I$51,1),\" %\")","v":"31,7 %"},{"$f":"CONCATENATE(ROUND([2]EJECUTIVO!$J$51,1),\" %\")","v":"-1,1 %"}]
[]
[null,"2. Ingreso de Remesas familiares ","sin Costa Rica",{"$f":"CONCATENATE(\"ACUMULADO A \",[2]EJECUTIVO!$G$72,\"\n\",[2]EJECUTIVO!$I$63,\"                 \",[2]EJECUTIVO!$J$63)","v":"ACUMULADO A SEPTIEMBRE\n2022                 2023"},null,null,{"$f":"CONCATENATE(\"ACUMULADO A \",[2]EJECUTIVO!$G$71,\"\n\",2020,\"                 \",2021)","v":"ACUMULADO A SEPTIEMBRE\n2020                 2021"}]
[null,"    2.1 Ingreso de Remesas familiares (millones de US$)",null,{"$f":"[2]EJECUTIVO!$I$72","v":35117.112701758684},{"$f":"[2]EJECUTIVO!$J$72","v":38712.349675335267},null,{"$f":"[2]EJECUTIVO!$I$71","v":35665.56435636869},{"$f":"[2]EJECUTIVO!$J$71","v":39303.816901415274}]
[]
[null,"3. Inversión Extranjera Directa (IED)",null,{"$f":"CONCATENATE(\"ACUMULADO AL\",\" \",[2]EJECUTIVO!$G$81,\" \",\"TRIMESTRE\")","v":"ACUMULADO AL III TRIMESTRE"},null,null,{"$f":"CONCATENATE(\"ACUMULADO AL\",\" \",[2]EJECUTIVO!$G$82,\" \",\"TRIMESTRE\")","v":"ACUMULADO AL II TRIMESTRE"}]
[null,null,null,{"$f":"[2]EJECUTIVO!$I$84","v":2022},{"$f":"[2]EJECUTIVO!$J$84","v":2023},null,{"$f":"[2]EJECUTIVO!$I$84","v":2022},{"$f":"[2]EJECUTIVO!$J$84","v":2023}]
[null,"3.1. IED en la economía declarante, acumulado (millones de US$)",null,{"$f":"[2]EJECUTIVO!$I$86","v":8277.7334523456793},{"$f":"[2]EJECUTIVO!$J$86","v":9633.5061986272049},null,{"$f":"[2]EJECUTIVO!$I$87","v":7106.5573410481466},{"$f":"[2]EJECUTIVO!$J$87","v":9227.0135315635562}]
[null,"3.2. Tasa de Variación interanual",null,{"$f":"CONCATENATE(ROUND((([2]EJECUTIVO!$I$86/[2]EJECUTIVO!$H$86)-1)*100,1),\" %\")","v":"8 %"},{"$f":"CONCATENATE(ROUND((([2]EJECUTIVO!$J$86/[2]EJECUTIVO!$I$86)-1)*100,1),\" %\")","v":"16,4 %"},null,{"$f":"CONCATENATE(ROUND((([2]EJECUTIVO!$I$87/[2]EJECUTIVO!$H$87)-1)*100,1),\" %\")","v":"24,5 %"},{"$f":"CONCATENATE(ROUND((([2]EJECUTIVO!$J$87/[2]EJECUTIVO!$I$87)-1)*100,1),\" %\")","v":"29,8 %"}]
[]
[null,"4. Cuenta Corriente ",null,{"$f":"CONCATENATE(\"ACUMULADO AL\",\" \",[2]EJECUTIVO!$G$76,\" \",\"TRIMESTRE\")","v":"ACUMULADO AL III TRIMESTRE"},null,null,{"$f":"CONCATENATE(\"ACUMULADO AL\",\" \",[2]EJECUTIVO!$G$77,\" \",\"TRIMESTRE\")","v":"ACUMULADO AL II TRIMESTRE"}]
[null,null,null,{"$f":"[2]EJECUTIVO!$I$74","v":2022},{"$f":"[2]EJECUTIVO!$J$74","v":2023},null,{"$f":"[2]EJECUTIVO!$I$74","v":2022},{"$f":"[2]EJECUTIVO!$J$74","v":2023}]
[null,"4.1. Cuenta Corriente (millones de US$)",null,{"$f":"[2]EJECUTIVO!$I$76","v":-9239.9304660402522},{"$f":"[2]EJECUTIVO!$J$76","v":-985.60375331804016},null,{"$f":"[2]EJECUTIVO!$I$77","v":-6137.140317283558},{"$f":"[2]EJECUTIVO!$J$77","v":191.8169227918188}]
[]
[null,"5. Reservas Internacionales Netas del Banco Central (RIN) 3/",null,{"$f":"CONCATENATE(\"SALDO A \",[2]EJECUTIVO!$G$65,\"                              \",[2]EJECUTIVO!$I$63,\"                 \",[2]EJECUTIVO!$J$63)","v":"SALDO A ENERO                              2022                 2023"},null,null,{"$f":"CONCATENATE(\"SALDO A \",[2]EJECUTIVO!$G$66,\"                           \",[2]EJECUTIVO!$I$63,\"                 \",[2]EJECUTIVO!$J$63)","v":"SALDO A NOVIEMBRE                           2022                 2023"}]
[null,"    5.1 RIN del Banco Central (millones de US$)",null,{"$f":"[2]EJECUTIVO!$I$65","v":58576.123685524573},{"$f":"[2]EJECUTIVO!$J$65","v":65554.091917057827},null,{"$f":"[2]EJECUTIVO!$I$66","v":63838.90740744285},{"$f":"[2]EJECUTIVO!$J$66","v":71091.539978117857}]
[null,null,null,{"$f":"CONCATENATE(\"ACUMULADO A \",[2]EJECUTIVO!$G$60,\"\n\",[2]EJECUTIVO!$I$58,\"                 \",[2]EJECUTIVO!$J$58)","v":"ACUMULADO A SEPTIEMBRE\n2022                 2023"},null,null,{"$f":"CONCATENATE(\"ACUMULADO A \",[2]EJECUTIVO!$G$61,\"\n\",[2]EJECUTIVO!$I$58,\"                 \",[2]EJECUTIVO!$J$58)","v":"ACUMULADO A SEPTIEMBRE\n2022                 2023"}]
[null,"    5.2 RIN Banco Central/ Importaciones\n          (meses de importación promedio)",null,{"$f":"[2]EJECUTIVO!$I$60","v":5.7462857947098787},{"$f":"[2]EJECUTIVO!$J$60","v":6.1716221650352185},null,{"$f":"[2]EJECUTIVO!$I$61","v":5.2456701913762034},{"$f":"[2]EJECUTIVO!$J$61","v":5.3699762844585939}]
[]
[null,"III. SECTOR FISCAL"]
[null,"1. Resultado del Gobierno Central ",null,{"$f":"CONCATENATE(\"ACUMULADO A \",[2]EJECUTIVO!$G$93,\"\n\",[2]EJECUTIVO!$I$91,\"                 \",[2]EJECUTIVO!$J$91)","v":"ACUMULADO A OCTUBRE\n2022                 2023"},null,null,{"$f":"CONCATENATE(\"ACUMULADO A \",[2]EJECUTIVO!$G$94,\"\n\",[2]EJECUTIVO!$I$91,\"                 \",[2]EJECUTIVO!$J$91)","v":"ACUMULADO A SEPTIEMBRE\n2022                 2023"}]
[null,"    1.1 Ingresos totales del Gobierno Central, incluye donaciones (millones US$)",null,{"$f":"[2]EJECUTIVO!$I$93","v":47167.620263525103},{"$f":"[2]EJECUTIVO!$J$93","v":63712.948357081099},null,{"$f":"[2]EJECUTIVO!$I$94","v":47449.241196474759},{"$f":"[2]EJECUTIVO!$J$94","v":64033.033982419685}]
[null,"    1.2 Gastos totales del Gobierno Central (millones US$)",null,{"$f":"[2]EJECUTIVO!$I$98","v":50338.37431371912},{"$f":"[2]EJECUTIVO!$J$98","v":69572.442115762649},null,{"$f":"[2]EJECUTIVO!$I$99","v":54011.200664079435},{"$f":"[2]EJECUTIVO!$J$99","v":74850.722568616024}]
[null,"    1.3 Donaciones recibidas (millones US$)",null,{"$f":"[2]EJECUTIVO!$I$103","v":119.89619248523624},{"$f":"[2]EJECUTIVO!$J$103","v":162.68326782055226},null,{"$f":"[2]EJECUTIVO!$I$104","v":108.39484942763627},{"$f":"[2]EJECUTIVO!$J$104","v":150.44897975967606}]
[null,"    1.4 Resultado del Gobierno Central (millones US$)",null,{"$f":"[2]EJECUTIVO!$I$108","v":-3050.8578577087728},{"$f":"[2]EJECUTIVO!$J$108","v":-5696.8104908610003},null,{"$f":"[2]EJECUTIVO!$I$109","v":-6453.5646181770389},{"$f":"[2]EJECUTIVO!$J$109","v":-10667.239606436675}]
[null,"    1.5 Resultado del Gobierno Central / PIB",null,{"$f":"[2]EJECUTIVO!$I$113","v":-8.5189204369021249E-3},{"$f":"[2]EJECUTIVO!$J$113","v":-1.5907222682672362E-2},null,{"$f":"[2]EJECUTIVO!$I$114","v":-1.5035831265281579E-2},{"$f":"[2]EJECUTIVO!$J$114","v":-2.485305784913899E-2}]
[]
[]
[null,"2. Deuda Pública",null,{"$f":"IF([2]EJECUTIVO!$J$49=[2]EJECUTIVO!$J$5,[2]EJECUTIVO!$G$118,CONCATENATE([2]EJECUTIVO!$G$118,\"\n\",[2]EJECUTIVO!$I$116,\"                 \",[2]EJECUTIVO!$J$116))","v":"SEPTIEMBRE\n2022                 2023"},null,null,{"$f":"IF([2]EJECUTIVO!$J$49=[2]EJECUTIVO!$J$5,[2]EJECUTIVO!$G$119,CONCATENATE([2]EJECUTIVO!$G$119,\"\n\",[2]EJECUTIVO!$I$116,\"                 \",[2]EJECUTIVO!$J$116))","v":"SEPTIEMBRE\n2022                 2023"}]
[null,"    2.1 Deuda Interna (millones de US$) 4/",null,{"$f":"[2]EJECUTIVO!$I$118","v":104441.69742752613},{"$f":"[2]EJECUTIVO!$J$118","v":110082.49810978741},null,{"$f":"[2]EJECUTIVO!$I$119","v":112354.39742752614},{"$f":"[2]EJECUTIVO!$J$119","v":117443.47810978742}]
[null,"    2.2 Deuda Externa (millones de US$)",null,{"$f":"[2]EJECUTIVO!$I$123","v":91709.29528154197},{"$f":"[2]EJECUTIVO!$J$123","v":98626.671538041759},null,{"$f":"[2]EJECUTIVO!$I$124","v":127315.88528154197},{"$f":"[2]EJECUTIVO!$J$124","v":137061.87153804177}]
[null,"    2.3 Deuda Total (millones de US$) 4/",null,{"$f":"[2]EJECUTIVO!$I$128","v":196150.99270906812},{"$f":"[2]EJECUTIVO!$J$128","v":208709.1696478292},null,{"$f":"[2]EJECUTIVO!$I$129","v":239670.28270906809},{"$f":"[2]EJECUTIVO!$J$129","v":254505.34964782919}]
[null,"    2.4 Deuda Total / PIB 4/",null,{"$f":"IF(ISERROR([2]EJECUTIVO!$I$133/100),\"n.d.\",[2]EJECUTIVO!$I$133/100)","v":0.5477130625032971},{"$f":"IF(ISERROR([2]EJECUTIVO!$J$133/100),\"n.d.\",[2]EJECUTIVO!$J$133/100)","v":0.5224470129019233},null,{"$f":"IF(ISERROR([2]EJECUTIVO!$I$134/100),\"n.d.\",[2]EJECUTIVO!$I$134/100)","v":0.55839557567393105},{"$f":"IF(ISERROR([2]EJECUTIVO!$J$134/100),\"n.d.\",[2]EJECUTIVO!$J$134/100)","v":0.53384417043032939}]
[]
[null,"Agregados Regionales","Región CARD",null,null,"Región CAPARD"]
[null,"IV. SECTOR MONETARIO  ",{"$f":"+[2]EJECUTIVO!$J$138","v":2023},{"$f":"+[2]EJECUTIVO!$I$138","v":2022},{"$f":"+[2]EJECUTIVO!$J$138","v":2023},{"$f":"+[2]EJECUTIVO!$J$146","v":2023},{"$f":"+[2]EJECUTIVO!$I$146","v":2022},{"$f":"+[2]EJECUTIVO!$J$146","v":2023}]
[null,"1. Agregados Monetarios",{"$f":"CONCATENATE(\"Porcentaje respecto a M3 a \",[2]EJECUTIVO!$G$141)","v":"Porcentaje respecto a M3 a AGOSTO"},{"$f":"CONCATENATE(\"Variación Interanual a  \",[2]EJECUTIVO!$G$141)","v":"Variación Interanual a  AGOSTO"},null,{"$f":"CONCATENATE(\"Porcentaje respecto a M3 a \",[2]EJECUTIVO!$G$141)","v":"Porcentaje respecto a M3 a AGOSTO"},{"$f":"CONCATENATE(\"Variación Interanual a  \",[2]EJECUTIVO!$G$141)","v":"Variación Interanual a  AGOSTO"}]
[null,"1.1 M1 5/",{"$f":"INDEX('[2]MONE(M)CARD'!$FA:$FJ,[2]EJECUTIVO!$E$149+6,3)/100","v":0.3472405328499969},{"$f":"INDEX('[2]MONE(M)CARD'!$EQ:$EZ,[2]EJECUTIVO!$E$149-6,3)/100","v":6.9600382231575386E-2},{"$f":"INDEX('[2]MONE(M)CARD'!$EQ:$EZ,[2]EJECUTIVO!$E$149+6,3)/100","v":0.13404274406224248},{"$f":"INDEX('[2]MONE(M)CAPARD'!$FW:$GF,[2]EJECUTIVO!$E$149+6,3)/100","v":0.32785006679346101},{"$f":"INDEX('[2]MONE(M)CAPARD'!$FM:$FV,[2]EJECUTIVO!$E$149-6,3)/100","v":5.4804832936124814E-2},{"$f":"INDEX('[2]MONE(M)CAPARD'!$FM:$FV,[2]EJECUTIVO!$E$149+6,3)/100","v":0.11427891630664601}]
[null,"1.2 M2 6/",{"$f":"INDEX('[2]MONE(M)CARD'!$FA:$FJ,[2]EJECUTIVO!$E$149+6,6)/100","v":0.77204634606049927},{"$f":"INDEX('[2]MONE(M)CARD'!$EQ:$EZ,[2]EJECUTIVO!$E$149-6,6)/100","v":7.0460548709470272E-2},{"$f":"INDEX('[2]MONE(M)CARD'!$EQ:$EZ,[2]EJECUTIVO!$E$149+6,6)/100","v":0.1244841709148865},{"$f":"INDEX('[2]MONE(M)CAPARD'!$FW:$GF,[2]EJECUTIVO!$E$149+6,6)/100","v":0.81004268240016009},{"$f":"INDEX('[2]MONE(M)CAPARD'!$FM:$FV,[2]EJECUTIVO!$E$149-6,6)/100","v":6.0429724629101678E-2},{"$f":"INDEX('[2]MONE(M)CAPARD'!$FM:$FV,[2]EJECUTIVO!$E$149+6,6)/100","v":9.644543316628941E-2}]
[null,"1.3 M3 7/",{"$f":"INDEX('[2]MONE(M)CARD'!$FA:$FJ,[2]EJECUTIVO!$E$149+6,10)/100","v":1},{"$f":"INDEX('[2]MONE(M)CARD'!$EQ:$EZ,[2]EJECUTIVO!$E$149-6,10)/100","v":6.7937469134432549E-2},{"$f":"INDEX('[2]MONE(M)CARD'!$EQ:$EZ,[2]EJECUTIVO!$E$149+6,10)/100","v":9.5117987300839632E-2},{"$f":"INDEX('[2]MONE(M)CAPARD'!$FW:$GF,[2]EJECUTIVO!$E$149+6,10)/100","v":1},{"$f":"INDEX('[2]MONE(M)CAPARD'!$FM:$FV,[2]EJECUTIVO!$E$149-6,10)/100","v":6.0416287075806485E-2},{"$f":"INDEX('[2]MONE(M)CAPARD'!$FM:$FV,[2]EJECUTIVO!$E$149+6,10)/100","v":7.8062227933512585E-2}]
[null,"1.4 Base Monetaria Amplia 8/",{"$f":"INDEX('[2]MONE(M)CARD'!$FM:$FM,[2]EJECUTIVO!$E$149+6,1)/100","v":0.31982185307253869},{"$f":"INDEX('[2]MONE(M)CARD'!$FN:$FN,[2]EJECUTIVO!$E$149-6,1)/100","v":3.4144946137723231E-2},{"$f":"INDEX('[2]MONE(M)CARD'!$FN:$FN,[2]EJECUTIVO!$E$149+6,1)/100","v":0.12197700401766243},{"$f":"INDEX('[2]MONE(M)CAPARD'!$GI:$GI,[2]EJECUTIVO!$E$149+6,1)/100","v":0.27610750765984388},{"$f":"INDEX('[2]MONE(M)CAPARD'!$GJ:$GJ,[2]EJECUTIVO!$E$149-6,1)/100","v":3.4772276514149159E-2},{"$f":"INDEX('[2]MONE(M)CAPARD'!$GJ:$GJ,[2]EJECUTIVO!$E$149+6,1)/100","v":0.11469713479442391}]
[]
[null,"2. Crédito Neto de las OSD 9/ con el Sector Público",{"$f":"CONCATENATE(\"Saldo en millones de US$ a \",[2]EJECUTIVO!$G$141)","v":"Saldo en millones de US$ a AGOSTO"},{"$f":"CONCATENATE(\"Variación Interanual a  \",[2]EJECUTIVO!$G$141)","v":"Variación Interanual a  AGOSTO"},null,{"$f":"CONCATENATE(\"Saldo en millones de US$ a \",[2]EJECUTIVO!$G$141)","v":"Saldo en millones de US$ a AGOSTO"},{"$f":"CONCATENATE(\"Variación Interanual a  \",[2]EJECUTIVO!$G$141)","v":"Variación Interanual a  AGOSTO"}]
[null,"2.1 Total Activos",{"$f":"INDEX('[2]MONE(M)CARD'!$FO:$FW,[2]EJECUTIVO!$E$149+6,9)","v":36120.252259840898},{"$f":"INDEX('[2]MONE(M)CARD'!$GX:$HE,[2]EJECUTIVO!$E$149-6,8)/100","v":2.5860630934373408E-2},{"$f":"INDEX('[2]MONE(M)CARD'!$GX:$HE,[2]EJECUTIVO!$E$149+6,8)/100","v":3.1570258797531059E-2},{"$f":"INDEX('[2]MONE(M)CAPARD'!$GK:$GS,[2]EJECUTIVO!$E$149+6,9)","v":40243.232282160898},{"$f":"INDEX('[2]MONE(M)CAPARD'!$HT:$IA,[2]EJECUTIVO!$E$149-6,8)/100","v":2.8460391745069646E-2},{"$f":"INDEX('[2]MONE(M)CAPARD'!$HT:$IA,[2]EJECUTIVO!$E$149+6,8)/100","v":3.6220840158784906E-2}]
[null,"2.2 Total Pasivos",{"$f":"INDEX('[2]MONE(M)CARD'!$FX:$GF,[2]EJECUTIVO!$E$149+6,8)","v":22618.112250941238},{"$f":"INDEX('[2]MONE(M)CARD'!$HF:$HN,[2]EJECUTIVO!$E$149-6,8)/100","v":0.15973417466476159},{"$f":"INDEX('[2]MONE(M)CARD'!$HF:$HN,[2]EJECUTIVO!$E$149+6,8)/100","v":0.15180550646709023},{"$f":"INDEX('[2]MONE(M)CAPARD'!$GT:$HB,[2]EJECUTIVO!$E$149+6,8)","v":26572.44329856124},{"$f":"INDEX('[2]MONE(M)CAPARD'!$IB:$IJ,[2]EJECUTIVO!$E$149-6,8)/100","v":0.15961503731974913},{"$f":"INDEX('[2]MONE(M)CAPARD'!$IB:$IJ,[2]EJECUTIVO!$E$149+6,8)/100","v":0.21448461662316334}]
[null,"2.3 Crédito neto",{"$f":"INDEX('[2]MONE(M)CARD'!$FX:$GF,[2]EJECUTIVO!$E$149+6,9)","v":13502.14000889966},{"$f":"INDEX('[2]MONE(M)CARD'!$HF:$HN,[2]EJECUTIVO!$E$149-6,9)/100","v":-0.10593217189814208},{"$f":"INDEX('[2]MONE(M)CARD'!$HF:$HN,[2]EJECUTIVO!$E$149+6,9)/100","v":-0.12196803997881001},{"$f":"INDEX('[2]MONE(M)CAPARD'!$GT:$HB,[2]EJECUTIVO!$E$149+6,9)","v":13670.788983599658},{"$f":"INDEX('[2]MONE(M)CAPARD'!$IB:$IJ,[2]EJECUTIVO!$E$149-6,9)/100","v":-0.1025148513842753},{"$f":"INDEX('[2]MONE(M)CAPARD'!$IB:$IJ,[2]EJECUTIVO!$E$149+6,9)/100","v":-0.19379365505657919}]
[]
[null,"3. Crédito 10/ de las OSD 9/ con el Sector Privado",{"$f":"CONCATENATE(\"Saldo en millones de US$ a \",[2]EJECUTIVO!$G$141)","v":"Saldo en millones de US$ a AGOSTO"},{"$f":"CONCATENATE(\"Variación Interanual a  \",[2]EJECUTIVO!$G$141)","v":"Variación Interanual a  AGOSTO"},null,{"$f":"CONCATENATE(\"Saldo en millones de US$ a \",[2]EJECUTIVO!$G$141)","v":"Saldo en millones de US$ a AGOSTO"},{"$f":"CONCATENATE(\"Variación Interanual a  \",[2]EJECUTIVO!$G$141)","v":"Variación Interanual a  AGOSTO"}]
[null,"    3.1 Otras Sociedades No Financieras 11/",{"$f":"INDEX('Datos_Regional (M)'!AF:AK,[2]EJECUTIVO!$E$149-1,5)","v":73389.706932562069},{"$f":"INDEX('Datos_Regional (M)'!AL:AR,[2]EJECUTIVO!$E$149-13,2)/100","v":0.12495689515458608},{"$f":"INDEX('Datos_Regional (M)'!AL:AR,[2]EJECUTIVO!$E$149-1,2)/100","v":0.10753160288350629},{"$f":"INDEX('Datos_Regional (M)'!AW:BB,[2]EJECUTIVO!$E$149-1,5)","v":98915.483089712056},{"$f":"INDEX('Datos_Regional (M)'!BC:BI,[2]EJECUTIVO!$E$149-13,2)/100","v":0.1007180037676414},{"$f":"INDEX('Datos_Regional (M)'!BC:CI,[2]EJECUTIVO!$E$149-1,2)/100","v":8.4621820139204149E-2}]
[null,"    3.2 Hogares e ISFLSH 12/",{"$f":"INDEX('Datos_Regional (M)'!AF:AK,[2]EJECUTIVO!$E$149-1,4)","v":84396.657667792388},{"$f":"INDEX('Datos_Regional (M)'!AL:AR,[2]EJECUTIVO!$E$149-13,5)/100","v":0.12944327001865363},{"$f":"INDEX('Datos_Regional (M)'!AL:AR,[2]EJECUTIVO!$E$149-1,5)/100","v":0.16882298805191412},{"$f":"INDEX('Datos_Regional (M)'!AW:BB,[2]EJECUTIVO!$E$149-1,4)","v":113678.47872367239},{"$f":"INDEX('Datos_Regional (M)'!BC:BI,[2]EJECUTIVO!$E$149-13,5)/100","v":0.10198545382933677},{"$f":"INDEX('Datos_Regional (M)'!BC:CI,[2]EJECUTIVO!$E$149-1,5)/100","v":0.13318773623616953}]
[null,"    3.3 Otros 13/",{"$f":"INDEX('Datos_Regional (M)'!AF:AK,[2]EJECUTIVO!$E$149-1,2)","v":2321.6749478400716},{"$f":"INDEX('Datos_Regional (M)'!AL:AR,[2]EJECUTIVO!$E$149-13,3)/100","v":0.30053304397700287},{"$f":"INDEX('Datos_Regional (M)'!AL:AR,[2]EJECUTIVO!$E$149-1,3)/100","v":0.32530584262669282},{"$f":"INDEX('Datos_Regional (M)'!AW:BB,[2]EJECUTIVO!$E$149-1,2)","v":3183.8378488800718},{"$f":"INDEX('Datos_Regional (M)'!BC:BI,[2]EJECUTIVO!$E$149-13,3)/100","v":0.20032370165987534},{"$f":"INDEX('Datos_Regional (M)'!BC:CI,[2]EJECUTIVO!$E$149-1,3)/100","v":0.24475030899528716}]
[null,"    3.4 Total",{"$f":"INDEX('Datos_Regional (M)'!AF:AK,[2]EJECUTIVO!$E$149-1,6)","v":160108.03954819453},{"$f":"INDEX('Datos_Regional (M)'!AL:AR,[2]EJECUTIVO!$E$149-13,6)/100","v":0.12917102045776896},{"$f":"INDEX('Datos_Regional (M)'!AL:AR,[2]EJECUTIVO!$E$149-1,6)/100","v":0.14181379356092361},{"$f":"INDEX('Datos_Regional (M)'!AW:BB,[2]EJECUTIVO!$E$149-1,6)","v":215777.79966226453},{"$f":"INDEX('Datos_Regional (M)'!BC:CI,[2]EJECUTIVO!$E$149-13,6)/100","v":0.10257937191929889},{"$f":"INDEX('Datos_Regional (M)'!BC:CI,[2]EJECUTIVO!$E$149-1,6)/100","v":0.11183619984162597}]
[null,"Fuente: Cálculos de la Secretaría Ejecutiva con base en la información proporcionada por los Bancos Centrales de la región."]
[null,"*/ No incluye las remesas de Costa Rica debido a que se compilan trimestralmente.  En 2013 Costa Rica recibió 229 millones de US$ de remesas netas (ingresos-egresos)."]
[null,"Notas:"]
[null,"1/ La región CARD incluye a los países centroamericanos y a la República Dominicana. La región CAPARD incluye a los países centroamericanos, Panamá y la República Dominicana."]
[null,"2/ Incluye comercio intrarregional.  No incluye la maquila en el caso de Honduras. En Panamá incluye: exportación de mercancías generales, reexportaciones \nnacionales y reexportaciones de la Zona Libre de Colón."]
[null,"3/ En Panamá, al no tener banco central, las RIN son administradas por el Banco Nacional de Panamá (BNP)."]
[null,"4/ Incluye la deuda interna consolidada en los casos de Guatemala, Honduras y República Dominicana, tal como lo recomienda la versión del 2001 del Manual de Estadísticas de Finanzas Públicas del FMI. En el resto de países se considera únicamente la deuda interna bruta."]
[null,"5/ M1: incluye billetes y monedas en poder del público más los depósitos transferibles en MN."]
[null,"6/ M2: incluye M1 más otros depósitos en MN, más valores distintos de acciones emitidos por las sociedades de depósito en moneda nacional."]
[null,"7/ M3: incluye M2 más depósitos transferibles en ME, más otros depósitos en ME, más valores distintos de acciones emitidos por las sociedades de depósito en ME."]
[null,"8/ Base Monetaria Amplia: incluye billetes y monedas en circulación, más depósitos transferibles por concepto de encaje en MN, más valores por concepto de encaje en MN, más pasivos frente a OSD de encaje legal en ME, más otros pasivos frente a OSD a corto plazo, más depósitos y valores de otros sectores."]
[null,"9/ OSD corresponde a otras sociedades de depósito, por ejemplo: Bancos comerciales, cooperativas, y otras sociedades de depósito que reciben dinero de público."]
[null,"10/  Incluye valores distintos de acciones y préstamos."]
[null,"11/ Otras sociedades no Financieras abarca las sociedades y cuasisociedades que se dedican principalmente a la producción de bienes y servicios no financieros."]
[null,"12/ ISFLSH corresponde a Instituciones sin fines de lucro que dan servicios a los hogares, en estas podemos encontrar organizaciones del tipo ONG´s."]
[null,"13/ Incluye otros sectores residentes, por ejemplo otras sociedades financieras."]

{"sheet":"Región CARD-graficos","index":3,"n_rows":103,"n_cols":19,"rows_kept":103,"cut":false,"hidden":false,"merged":[[116,1,117,7],[55,1,55,7],[54,1,54,7],[54,10,54,17],[55,10,55,17],[70,1,70,8],[71,1,71,8],[70,10,70,17],[66,9,67,9],[71,10,71,17],[104,1,104,17],[68,10,69,17],[103,1,103,17],[102,1,102,17],[68,1,69,8],[2,1,2,17],[4,10,4,17],[5,10,5,17],[20,1,20,7],[21,1,21,7],[20,10,20,17],[21,10,21,17],[4,1,4,8],[5,1,5,8],[35,10,35,17],[53,10,53,17],[38,1,38,8],[37,10,37,17],[37,1,37,8],[38,10,38,17]]}
[null,"Consejo Monetario Centroamericano",null,null,null,null,null,null,null,null,null,null,null,null,null,{"$f":"CONCATENATE(Indice!$J$47,\",\")","v":"REM N° 282,"},{"$f":"Indice!$J$48","v":"Enero 2024"}]
[null,"Secretaría Ejecutiva"]
[null,"REGIÓN CARD: EVOLUCIÓN DE LOS PRINCIPALES INDICADORES MACROECONÓMICOS"]
[]
[null,"Región CARD: Inflación, serie original y tendencia de largo plazo",null,null,null,null,null,null,null,null,"Región CARD: Ciclo de crecimiento de la Actividad Económica"]
[null,"(cálculos basados en el IPC, variación interanual)",null,null,null,null,null,null,null,null,"(cálculos basados en el IMAE, variación interanual)"]
[]
[]
[]
[]
[]
[]
[]
[]
[]
[]
[]
[]
[]
[]
[null,"Región CARD:",null,null,null,null,null,null,null,null,"Región CARD:"]
[null,"Reservas Internacionales Netas del Banco Central",null,null,null,null,null,null,null,null," Flujos trimestrales de Inversión Extranjera Directa (IED)\nen la economía declarante"]
[]
[]
[]
[]
[null,null,null,null,null,null,null,null,null,null,null,null,null,null,null,null,null,null," "]
[]
[]
[null,null,null,null,null,null,null,{"$f":"IF([1]EJECUTIVO!$J$38=[1]EJECUTIVO!$J$4,[1]EJECUTIVO!$G$38,(CONCATENATE([1]EJECUTIVO!$G$38,\"\n\",[1]EJECUTIVO!$I$37,\"          \",[1]EJECUTIVO!$J$37)))","v":"ENERO\n2022          2023"}]
[]
[]
[]
[]
[]
[null,null,null,null,null,null,null,null,null,null,"Los flujos negativos observados en El Salvador y Honduras surgen debido a amortizaciones netas de préstamos con el inversionista directo, mayores a lo registrado por acciones u otras aportaciones de capital, los cuales por metodología deben sumarse al valor de la IED. El valor de Guatemala del IV trimestre de 2021 corresponde a la venta de una empresa de telecomunicaciones a un no residente.\n"]
[]
[null,{"$f":"CONCATENATE(\"Región CARD:\")","v":"Región CARD:"},null,null,null,null,null,null,null,null,"Región CARD:"]
[null,"Flujos mensuales de comercio exterior",null,null,null,null,null,null,null,null,"Ingreso de Remesas, sin acumular"]
[]
[]
[]
[]
[]
[]
[]
[]
[]
[]
[]
[]
[]
[]
[]
[null,"Región CARD:",null,null,null,null,null,null,null,null,"Región CARD: Saldo Operacional (con donaciones) del Gobierno Central\ncon respecto al PIB"]
[null,"Deuda Pública Bruta Total, Interna y Externa",null,null,null,null,null,null,null,null,{"$f":"CONCATENATE(\"Datos a \",'Saldo Operacional'!C4,\" de cada año\")","v":"Datos a octubre de cada año"}]
[]
[]
[]
[]
[]
[]
[]
[]
[]
[]
[]
[]
[null,"Incluye la deuda interna consolidada en los casos de Guatemala, Honduras y República Dominicana, tal como lo recomienda la versión del 2001 del Manual de Estadísticas de Finanzas Públicas del FMI. En el resto de países se considera únicamente la deuda interna bruta.\nA partir de 2019 se dispone únicamente de datos trimestrales de Nicaragua."]
[]
[null,"Región CARD:",null,null,null,null,null,null,null,null,"Región CARD:"]
[null,{"$f":"CONCATENATE(\"Agregados Monetarios (Millones US$)\",\" \",\"y variación interanual\")","v":"Agregados Monetarios (Millones US$) y variación interanual"},null,null,null,null,null,null,null,null,{"$f":"CONCATENATE(\"Crédito Total (Millones US$)\",\" \",\"y variación interanual\")","v":"Crédito Total (Millones US$) y variación interanual"}]
[]
[]
[]
[]
[]
[]
[]
[]
[]
[]
[]
[]
[]
[]
[]
[]
[]
[null,"OJO, REVISAR AÑO DE INICIO DE TODOS ESTOS GRAFICOS PARA ARMONIZAR !!!"]
[]
[null,null,"deuda: a partir de diciembre 2011 mensual"]
[null,null,"remesas: desde 2006"]
[null,null,"ied:2008"]
[null,null,"agregados monetarios:2002"]
[null,null,"crédito osd:2003"]
[]
[null,null,"***la serie mas corta es la de remesas 2008, la extensión se puede evaluar a partir de esta fecha para que se armonizado pero se perdería información en otras series"]
[]
[]
[null,null,null,null,null,null,null,null,null,null,"OSD: Corresponde a Otras Sociedades de Depósito, por ejemplo: bancos comerciales y cooperativas. "]
[]
[null,"La región CARD la conforman los países de Centroamérica y República Dominicana"]

{"sheet":"Región CAPARD-graficos","index":4,"n_rows":103,"n_cols":19,"rows_kept":103,"cut":false,"hidden":false,"merged":[[104,1,104,17],[116,1,117,7],[68,10,69,17],[70,1,70,8],[70,10,70,17],[71,1,71,8],[71,10,71,17],[102,1,102,17],[103,1,103,17],[100,1,100,8],[100,10,100,17],[99,10,99,17],[68,1,69,8],[66,9,67,9],[21,1,21,7],[21,10,21,17],[34,10,35,17],[37,1,37,8],[37,10,37,17],[38,1,38,8],[38,10,38,17],[53,10,53,17],[54,1,54,7],[54,10,54,17],[55,1,55,7],[55,10,55,17],[34,1,35,8],[20,1,20,7],[20,10,20,17],[2,1,2,17],[4,10,4,17],[5,1,5,7],[5,10,5,17],[4,1,4,8]]}
[null,"Consejo Monetario Centroamericano",null,null,null,null,null,null,null,null,null,null,null,null,null,{"$f":"CONCATENATE(Indice!$J$47,\",\")","v":"REM N° 282,"},{"$f":"Indice!$J$48","v":"Enero 2024"}]
[null,"Secretaría Ejecutiva"]
[null,"REGIÓN CAPARD: EVOLUCIÓN DE LOS PRINCIPALES INDICADORES MACROECONÓMICOS"]
[]
[null,"Región CAPARD: Inflación, serie original y tendencia de largo plazo",null,null,null,null,null,null,null,null,"Región CAPARD: Ciclo de crecimiento de la Actividad Económica"]
[null,"(cálculos basados en el IPC, variación interanual)",null,null,null,null,null,null,null,null,"(cálculos basados en el IMAE, variación interanual)"]
[]
[]
[]
[]
[]
[]
[]
[]
[]
[]
[]
[]
[]
[]
[null,"Región CAPARD:",null,null,null,null,null,null,null,null,"Región CAPARD:"]
[null,"Reservas Internacionales Netas del Banco Central",null,null,null,null,null,null,null,null," Flujos trimestrales de Inversión Extranjera Directa (IED)\nen la economía declarante"]
[]
[]
[]
[]
[null,null,null,null,null,null,null,null,null,null,null,null,null,null,null,null,null,null," "]
[]
[]
[null,null,null,null,null,null,null,{"$f":"IF([1]EJECUTIVO!$J$38=[1]EJECUTIVO!$J$4,[1]EJECUTIVO!$G$38,(CONCATENATE([1]EJECUTIVO!$G$38,\"\n\",[1]EJECUTIVO!$I$37,\"          \",[1]EJECUTIVO!$J$37)))","v":"ENERO\n2022          2023"}]
[]
[]
[]
[]
[null,"En Panamá, el Banco Nacional de Panamá (BNP) funciona como receptor y gestor de las RIN que corresponden a los activos externos de reserva menos los pasivos de corto plazo frente a no residentes. Los primeros se componen de: billetes y depósitos en moneda extranjera e inversiones en títulos (incluidos los títulos de deuda y participaciones de capital); los pasivos se componen de los depósitos transferibles de no residentes en moneda extranjera. ",null,null,null,null,null,null,null,null,"\nLos flujos negativos observados en El Salvador, Honduras y Panamá surgen debido a amortizaciones netas de préstamos con el inversionista directo, mayores a lo registrado por acciones u otras aportaciones de capital, los cuales por metodología deben sumarse al valor de la IED."]
[]
[]
[null,{"$f":"CONCATENATE(\"Región CAPARD:\")","v":"Región CAPARD:"},null,null,null,null,null,null,null,null,"Región CAPARD:"]
[null,"Flujos mensuales de comercio exterior",null,null,null,null,null,null,null,null,"Ingreso de Remesas, sin acumular"]
[]
[]
[]
[]
[]
[]
[]
[]
[]
[]
[]
[]
[]
[]
[]
[null,"Región CAPARD:",null,null,null,null,null,null,null,null,"Región CAPARD:\nSaldo Operacional (con donaciones) del Gobierno Central\ncon respecto al PIB"]
[null,"Deuda Pública Bruta Total, Interna y Externa",null,null,null,null,null,null,null,null,{"$f":"CONCATENATE(\"Datos a \",'Saldo Operacional'!G4,\" de cada año\")","v":"Datos a septiembre de cada año"}]
[]
[]
[]
[]
[]
[]
[]
[]
[]
[]
[]
[]
[null,"Incluye la deuda interna consolidada en los casos de Guatemala, Honduras y República Dominicana, tal como lo recomienda la versión del 2001 del Manual de Estadísticas de Finanzas Públicas del FMI. En el resto de países se considera únicamente la deuda interna bruta.\nA partir de 2019 se dispone únicamente de datos trimestrales de Nicaragua."]
[]
[null,"Región CAPARD:",null,null,null,null,null,null,null,null,"Región CAPARD:"]
[null,{"$f":"CONCATENATE(\"Agregados Monetarios (Millones US$)\",\" \",\"y variación interanual\")","v":"Agregados Monetarios (Millones US$) y variación interanual"},null,null,null,null,null,null,null,null,{"$f":"CONCATENATE(\"Crédito Total (Millones US$)\",\" \",\"y variación interanual\")","v":"Crédito Total (Millones US$) y variación interanual"}]
[]
[]
[]
[]
[]
[]
[]
[]
[]
[]
[]
[]
[]
[]
[]
[]
[]
[null,"OJO, REVISAR AÑO DE INICIO DE TODOS ESTOS GRAFICOS PARA ARMONIZAR !!!"]
[]
[null,null,"deuda: a partir de diciembre 2011 mensual"]
[null,null,"remesas: desde 2006"]
[null,null,"ied:2008"]
[null,null,"agregados monetarios:2002"]
[null,null,"crédito osd:2003"]
[]
[null,null,"***la serie mas corta es la de remesas 2008, la extensión se puede evaluar a partir de esta fecha para que se armonizado pero se perdería información en otras series"]
[]
[null,null,null,null,null,null,null,null,null,null,"OSD: Corresponde a Otras Sociedades de Depósito, por ejemplo: bancos comerciales y cooperativas. "]
[]
[]
[null,"La región CAPARD la conforman los países de Centroamérica, Panamá y República Dominicana."]

{"sheet":"Comparativo","index":5,"n_rows":151,"n_cols":15,"rows_kept":151,"cut":false,"hidden":false,"merged":[[3,5,3,6],[16,9,16,10],[16,11,16,12],[22,1,22,2],[22,3,22,4],[4,0,4,12],[5,1,5,2],[5,3,5,4],[5,5,5,6],[5,7,5,8],[5,9,5,10],[5,11,5,12],[8,1,8,2],[8,3,8,4],[8,5,8,6],[8,7,8,8],[8,9,8,10],[8,11,8,12],[7,1,7,2],[7,3,7,4],[7,5,7,6],[7,7,7,8],[7,9,7,10],[7,11,7,12],[18,0,19,0],[43,5,43,6],[43,7,43,8],[43,9,43,10],[43,11,43,12],[32,11,32,12],[13,1,13,2],[13,3,13,4],[13,5,13,6],[13,7,13,8],[13,9,13,10],[13,11,13,12],[23,1,23,2],[23,3,23,4],[23,5,23,6],[23,7,23,8],[23,9,23,10],[23,11,23,12],[16,1,16,2],[16,3,16,4],[16,5,16,6],[43,1,43,2],[34,1,34,2],[16,7,16,8],[41,7,41,8],[22,5,22,6],[22,7,22,8],[22,9,22,10],[22,11,22,12],[66,1,66,2],[66,3,66,4],[66,5,66,6],[66,7,66,8],[66,9,66,10],[66,11,66,12],[54,1,54,2],[54,3,54,4],[54,5,54,6],[54,7,54,8],[54,9,54,10],[54,11,54,12],[46,1,46,2],[46,3,46,4],[46,5,46,6],[46,7,46,8],[46,9,46,10],[43,3,43,4],[29,1,29,2],[91,3,91,4],[91,5,91,6],[91,7,91,8],[91,9,91,10],[91,11,91,12],[92,1,92,2],[92,3,92,4],[92,5,92,6],[92,7,92,8],[92,9,92,10],[92,11,92,12],[41,9,41,10],[136,1,136,2],[136,3,136,4],[136,5,136,6],[136,7,136,8],[136,9,136,10],[136,11,136,12],[125,1,125,2],[125,3,125,4],[125,5,125,6],[125,7,125,8],[125,9,125,10],[125,11,125,12],[117,1,117,2],[117,3,117,4],[117,5,117,6],[117,7,117,8],[117,9,117,10],[41,1,41,2],[117,11,117,12],[41,3,41,4],[91,1,91,2],[41,5,41,6],[46,11,46,12],[29,7,29,8],[29,9,29,10],[29,11,29,12],[38,1,38,2],[38,3,38,4],[38,5,38,6],[38,7,38,8],[38,9,38,10],[38,11,38,12],[32,1,32,2],[32,3,32,4],[32,5,32,6],[32,7,32,8],[32,9,32,10],[34,3,34,4],[34,5,34,6],[34,9,34,10],[34,11,34,12],[34,7,34,8],[29,5,29,6],[29,3,29,4],[150,0,150,14],[2,0,2,14],[117,13,117,14],[125,13,125,14],[136,13,136,14],[34,13,34,14],[38,13,38,14],[41,13,41,14],[43,13,43,14],[46,13,46,14],[54,13,54,14],[66,13,66,14],[91,13,91,14],[92,13,92,14],[5,13,5,14],[7,13,7,14],[8,13,8,14],[13,13,13,14],[16,13,16,14],[22,13,22,14],[23,13,23,14],[29,13,29,14],[32,13,32,14],[41,11,41,12]]}
["Consejo Monetario Centroamericano"]
["Secretaría Ejecutiva"]
["CUADRO COMPARATIVO POR PAIS"]
[null,null,null,null,{"$f":"CONCATENATE(Indice!$J$47,\",\")","v":"REM N° 282,"},{"$f":"Indice!$J$48","v":"Enero 2024"}]
[]
["  Indicadores","Costa Rica",null,"El Salvador",null,"Guatemala",null,"Honduras",null,"Nicaragua",null,"Rep. Dominicana",null,"Panamá"]
[]
["I. SECTOR REAL"]
["1. Precios al Consumidor",{"$f":"IF([3]EJECUTIVO!$J$4=[3]EJECUTIVO!$J$8,[3]EJECUTIVO!$G$10,CONCATENATE([3]EJECUTIVO!$G$5,\"\n\",[3]EJECUTIVO!$I$4,\"          \",[3]EJECUTIVO!$J$4))","v":"ENERO\n2023          2024"},null,{"$f":"IF([4]EJECUTIVO!$J$4=[4]EJECUTIVO!$J$8,[4]EJECUTIVO!$G$10,CONCATENATE([4]EJECUTIVO!$G$6,\"\n\",[4]EJECUTIVO!$I$4,\"          \",[4]EJECUTIVO!$J$4))","v":"ENERO\n2023          2024"},null,{"$f":"IF([5]EJECUTIVO!$J$4=[5]EJECUTIVO!$J$8,[5]EJECUTIVO!$G$10,CONCATENATE([5]EJECUTIVO!$G$5,\"\n\",[5]EJECUTIVO!$I$4,\"          \",[5]EJECUTIVO!$J$4))","v":"ENERO\n2023          2024"},null,{"$f":"IF([1]EJECUTIVO!$J$4=[1]EJECUTIVO!$J$8,[1]EJECUTIVO!$G$10,CONCATENATE([1]EJECUTIVO!$G$5,\"\n\",[1]EJECUTIVO!$I$4,\"          \",[1]EJECUTIVO!$J$4))","v":"ENERO\n2023          2024"},null,{"$f":"IF([6]EJECUTIVO!$J$4=[6]EJECUTIVO!$J$8,[6]EJECUTIVO!$G$10,CONCATENATE([6]EJECUTIVO!$G$5,\"\n\",[6]EJECUTIVO!$I$4,\"          \",[6]EJECUTIVO!$J$4))","v":"ENERO\n2023          2024"},null,{"$f":"IF([7]EJECUTIVO!$J$4=[7]EJECUTIVO!$J$8,[7]EJECUTIVO!$G$10,CONCATENATE([7]EJECUTIVO!$G$5,\"\n\",[7]EJECUTIVO!$I$4,\"          \",[7]EJECUTIVO!$J$4))","v":"ENERO\n2023          2024"},null,{"$f":"IF([8]EJECUTIVO!$J$4=[8]EJECUTIVO!$J$8,[8]EJECUTIVO!$G$10,CONCATENATE([8]EJECUTIVO!$G$5,\"\n\",[8]EJECUTIVO!$I$4,\"          \",[8]EJECUTIVO!$J$4))","v":"ENERO\n2023          2024"}]
["    1.1  Tasa de variación interanual en el mes indicado",{"$f":"[3]EJECUTIVO!$I$6","v":7.6518468278071055},{"$f":"[3]EJECUTIVO!$J$6","v":-1.8686339825730685},{"$f":"[4]EJECUTIVO!$I$6","v":7.0308122763064791},{"$f":"[4]EJECUTIVO!$J$6","v":1.2089540597457162},{"$f":"[5]EJECUTIVO!$I$6","v":9.69047929998694},{"$f":"[5]EJECUTIVO!$J$6","v":3.8173008691510968},{"$f":"[1]EJECUTIVO!$I$6","v":8.9276139410187696},{"$f":"[1]EJECUTIVO!$J$6","v":4.9963081466896409},{"$f":"[6]EJECUTIVO!$I$6","v":10.924831636038141},{"$f":"[6]EJECUTIVO!$J$6","v":5.7896851978597477},{"$f":"[7]EJECUTIVO!$I$6","v":7.2433290867524143},{"$f":"[7]EJECUTIVO!$J$6","v":3.3172501891735742},{"$f":"[8]EJECUTIVO!$I$6","v":2.7126070654214645},{"$f":"[8]EJECUTIVO!$J$6","v":1.222285911652939}]
["    1.2  Tasa de variación acumulada al mes indicado respecto a diciembre",{"$f":"[3]EJECUTIVO!$I$7","v":0.16046489968406519},{"$f":"[3]EJECUTIVO!$J$7","v":5.5097266448167481E-2},{"$f":"[4]EJECUTIVO!$I$7","v":0.34436878766535006},{"$f":"[4]EJECUTIVO!$J$7","v":0.32472552961186896},{"$f":"[5]EJECUTIVO!$I$7","v":0.37645652823423692},{"$f":"[5]EJECUTIVO!$J$7","v":2.9999999999996696E-2},{"$f":"[1]EJECUTIVO!$I$7","v":0.42016806722688926},{"$f":"[1]EJECUTIVO!$J$7","v":0.23496240601503793},{"$f":"[6]EJECUTIVO!$I$7","v":9.8911523896383358E-2},{"$f":"[6]EJECUTIVO!$J$7","v":0.2751484010641958},{"$f":"[7]EJECUTIVO!$I$7","v":0.6345801126686812},{"$f":"[7]EJECUTIVO!$J$7","v":0.39008084650864472},{"$f":"[8]EJECUTIVO!$I$7","v":0.94264917242339319},{"$f":"[8]EJECUTIVO!$J$7","v":0.2507355576864656}]
[{"$f":"CONCATENATE(\"    1.3  Tasa de variación de los precios en el 2022 y proyectado para el 2023\")","v":"    1.3  Tasa de variación de los precios en el 2022 y proyectado para el 2023"},{"$f":"[3]METAS!$H$7","v":7.8771537614796827},{"$f":"[3]METAS!$K$7","v":"3.0 ± 1"},{"$f":"[4]METAS!$H$7","v":7.3196837730270303},{"$f":"[4]METAS!$K$7","v":2.8},{"$f":"[5]METAS!$H$7","v":9.2362924281984338},{"$f":"[5]METAS!$K$7","v":"4.0 ± 1"},{"$f":"[1]METAS!$H$7","v":9.7964721845319005},{"$f":"[1]METAS!$K$7","v":"5.0 – 6.0"},{"$f":"[6]METAS!$H$7","v":11.593447908892873},{"$f":"[6]METAS!$K$7","v":"4.5 - 5.5"},{"$f":"[7]METAS!$H$7","v":7.8269161155893663},{"$f":"[7]METAS!$K$7","v":"4.0 ± 1"},{"$f":"[8]METAS!$H$7","v":2.6243501775598643},{"$f":"[8]METAS!$K$7","v":"n.d."}]
["    1.4 Tasa de variación interanual del índice subyacente de inflación",{"$f":"[3]EJECUTIVO!$I$5","v":4.5341484564281176},{"$f":"[3]EJECUTIVO!$J$5","v":1.4386791167378328},{"$f":"[4]EJECUTIVO!$I$5","v":4.576926535383512},{"$f":"[4]EJECUTIVO!$J$5","v":0.85984522785898543},{"$f":"[5]EJECUTIVO!$I$5","v":5.2400000000000091},{"$f":"[5]EJECUTIVO!$J$5","v":"n.d."},{"$f":"[1]EJECUTIVO!$I$5","v":9.020134228187926},{"$f":"[1]EJECUTIVO!$J$5","v":4.9987687761634954},{"$f":"[6]EJECUTIVO!$I$5","v":9.2116430999008063},{"$f":"[6]EJECUTIVO!$J$5","v":6.3131364124604614},{"$f":"[7]EJECUTIVO!$I$5","v":6.6029217906350901},{"$f":"[7]EJECUTIVO!$J$5","v":4.0852227972253079},{"$f":"[8]EJECUTIVO!$H$5","v":"n.d."},{"$f":"[8]EJECUTIVO!$I$5","v":"n.d."}]
["2. Producción",{"$f":"IF([3]EJECUTIVO!$J$9=[3]EJECUTIVO!$J$2,[3]EJECUTIVO!$G$10,CONCATENATE([3]EJECUTIVO!$G$10,\"\n\",[3]EJECUTIVO!$I$9,\"          \",[3]EJECUTIVO!$J$9))","v":"DICIEMBRE\n2022          2023"},null,{"$f":"IF([4]EJECUTIVO!$J$9=[4]EJECUTIVO!$J$2,[4]EJECUTIVO!$G$10,CONCATENATE([4]EJECUTIVO!$G$10,\"\n\",[4]EJECUTIVO!$I$9,\"          \",[4]EJECUTIVO!$J$9))","v":"NOVIEMBRE\n2022          2023"},null,{"$f":"IF([5]EJECUTIVO!$J$9=[5]EJECUTIVO!$J$2,[5]EJECUTIVO!$G$10,CONCATENATE([5]EJECUTIVO!$G$10,\"\n\",[5]EJECUTIVO!$I$9,\"          \",[5]EJECUTIVO!$J$9))","v":"JUNIO\n2022          2023"},null,{"$f":"IF([1]EJECUTIVO!$J$9=[1]EJECUTIVO!$J$2,[1]EJECUTIVO!$G$10,CONCATENATE([1]EJECUTIVO!$G$10,\"\n\",[1]EJECUTIVO!$I$9,\"          \",[1]EJECUTIVO!$J$9))","v":"DICIEMBRE\n2022          2023"},null,{"$f":"IF([6]EJECUTIVO!$J$9=[6]EJECUTIVO!$J$2,[6]EJECUTIVO!$G$10,CONCATENATE([6]EJECUTIVO!$G$10,\"\n\",[6]EJECUTIVO!$I$9,\"          \",[6]EJECUTIVO!$J$9))","v":"NOVIEMBRE\n2022          2023"},null,{"$f":"IF([7]EJECUTIVO!$J$9=[7]EJECUTIVO!$J$2,[7]EJECUTIVO!$G$10,CONCATENATE([7]EJECUTIVO!$G$10,\"\n\",[7]EJECUTIVO!$I$9,\"          \",[7]EJECUTIVO!$J$9))","v":"NOVIEMBRE\n2022          2023"},null,{"$f":"IF([8]EJECUTIVO!$J$9=[8]EJECUTIVO!$J$2,[8]EJECUTIVO!$G$10,CONCATENATE([8]EJECUTIVO!$G$10,\"\n\",[8]EJECUTIVO!$I$9,\"          \",[8]EJECUTIVO!$J$9))","v":"SEPTIEMBRE\n2022          2023"}]
["    2.1  IMAE (variación acumulada Tendencia-Ciclo en el mes indicado)",{"$f":"[3]EJECUTIVO!$I$10","v":4.4652099777538368},{"$f":"[3]EJECUTIVO!$J$10","v":5.4168555011257835},{"$f":"[4]EJECUTIVO!$I$10","v":3.2069510490419839},{"$f":"[4]EJECUTIVO!$J$10","v":3.0268332240511509},{"$f":"[5]EJECUTIVO!$I$10","v":4.5725579956706452},{"$f":"[5]EJECUTIVO!$J$10","v":3.6411977167103426},{"$f":"[1]EJECUTIVO!$I$10","v":4.2605582351866955},{"$f":"[1]EJECUTIVO!$J$10","v":3.1938907316904297},{"$f":"[6]EJECUTIVO!$I$10","v":3.9408788852412613},{"$f":"[6]EJECUTIVO!$J$10","v":4.5435747850258723},{"$f":"[7]EJECUTIVO!$I$10","v":5.256534990776629},{"$f":"[7]EJECUTIVO!$J$10","v":2.1892267668962129},{"$f":"[8]EJECUTIVO!$I$10","v":7.8816263185969238},{"$f":"[8]EJECUTIVO!$J$10","v":9.4428711930834233}]
["    2.2  Tasa de variación del PIB real estimado para 2022 y 2023",{"$f":"[3]METAS!$H$12","v":4.551491779623662},{"$f":"[3]METAS!$K$12","v":5},{"$f":"[4]METAS!$H$12","v":2.6002166847237218},{"$f":"[4]METAS!$K$12","v":2.7},{"$f":"[5]METAS!$H$12","v":4.1179997021898895},{"$f":"[5]METAS!$K$12","v":3.4844847311062352},{"$f":"[1]METAS!$H$12","v":3.9979498146828885},{"$f":"[1]METAS!$K$12","v":"3.0 – 3.5"},{"$f":"[6]METAS!$H$12","v":3.7507749207747576},{"$f":"[6]METAS!$K$12","v":"4.0 - 5.0"},{"$f":"[7]METAS!$H$12","v":4.8583240330653643},{"$f":"[7]METAS!$K$12","v":"2.5 - 3.0"},{"$f":"[8]METAS!$H$12","v":15.335817863631206},{"$f":"[8]METAS!$K$12","v":"n.d."}]
["    2.3 Tasa de variación interanual del PIB trimestral, a precios constantes a/",{"$f":"CONCATENATE(\"  \",[3]EJECUTIVO!$G$11,\" \",\"TRIMESTRE             2022          2023\")","v":"  IV TRIMESTRE             2022          2023"},null,{"$f":"CONCATENATE(\"  \",[4]EJECUTIVO!$G$11,\" \",\"TRIMESTRE             2022         2023\")","v":"  III TRIMESTRE             2022         2023"},null,{"$f":"CONCATENATE(\"  \",[5]EJECUTIVO!$G$11,\" \",\"TRIMESTRE             2022          2023\")","v":"  III TRIMESTRE             2022          2023"},null,{"$f":"CONCATENATE(\"  \",[1]EJECUTIVO!$G$11,\" \",\"TRIMESTRE             2022          2023\")","v":"  III TRIMESTRE             2022          2023"},null,{"$f":"CONCATENATE(\"  \",[6]EJECUTIVO!$G$11,\" \",\"TRIMESTRE             2022          2023\")","v":"  III TRIMESTRE             2022          2023"},null,{"$f":"CONCATENATE(\"  \",[7]EJECUTIVO!$G$11,\" \",\"TRIMESTRE                 2022          2023\")","v":"  III TRIMESTRE                 2022          2023"},null,{"$f":"CONCATENATE(\"  \",[8]EJECUTIVO!$G$11,\" \",\"TRIMESTRE               2021          2022\")","v":"  III TRIMESTRE               2021          2022"}]
[null,{"$f":"[3]EJECUTIVO!I$11","v":4.4594087372941784},{"$f":"[3]EJECUTIVO!J$11","v":5.1351634547928935},{"$f":"[4]EJECUTIVO!I$11","v":2.1853146853146854},{"$f":"[4]EJECUTIVO!J$11","v":3.5072711719418255},{"$f":"[5]EJECUTIVO!I$11","v":3.7803893204481827},{"$f":"[5]EJECUTIVO!J$11","v":3.7355873086126534},{"$f":"[1]EJECUTIVO!I$11","v":4.0572715916249367},{"$f":"[1]EJECUTIVO!J$11","v":3.8773569740437783},{"$f":"[6]EJECUTIVO!I$11","v":3.4408691793358268},{"$f":"[6]EJECUTIVO!J$11","v":6.1905121633717215},{"$f":"[7]EJECUTIVO!I$11","v":5.0131270150868179},{"$f":"[7]EJECUTIVO!J$11","v":2.6334670259565884},{"$f":"[8]EJECUTIVO!I$11","v":25.497490602706602},{"$f":"[8]EJECUTIVO!J$11","v":9.480235761597978}]
["    2.4  PIB a precios corrientes en millones de US dólares b/(estimado)","2022","2023",{"$f":"+B19","v":"2022"},{"$f":"+C19","v":"2023"},"2022","2023","2022","2023","2022","2023","2022","2023","2022","2023"]
[null,{"$f":"[3]METAS!$H$14","v":69242.537833838913},{"$f":"[3]METAS!$K$14","v":86497.941517579573},{"$f":"[4]METAS!$H$14","v":32488.71},{"$f":"[4]METAS!$K$14","v":34876.199999999997},{"$f":"[5]METAS!$H$14","v":95002.111805765599},{"$f":"[5]METAS!$K$14","v":102028.74455352216},{"$f":"[1]METAS!$H$14","v":31717.701143307731},{"$f":"[1]METAS!$K$14","v":"n.d."},{"$f":"[6]METAS!$H$14","v":15671.638668617501},{"$f":"[6]METAS!$K$14","v":"n.d."},{"$f":"[7]METAS!$H$14","v":114004.58678219478},{"$f":"[7]METAS!$K$14","v":120194.2},{"$f":"[8]METAS!$H$14","v":63605.065780602723},{"$f":"[8]METAS!$K$14","v":71085.073516455363}]
[]
["II. SECTOR EXTERNO"]
["1.Indicadores de Balanza de Pagos y del comercio exterior"]
["     1.1  Comercio exterior, acumulado en millones de US$ c/",{"$f":"IF([3]EJECUTIVO!$J$16=[3]EJECUTIVO!$J$4,[3]EJECUTIVO!$G$16,(CONCATENATE([3]EJECUTIVO!$G$16,\"\n\",[3]EJECUTIVO!$I$15,\"          \",[3]EJECUTIVO!$J$15)))","v":"DICIEMBRE\n2022          2023"},null,{"$f":"IF([4]EJECUTIVO!$J$16=[4]EJECUTIVO!$J$4,[4]EJECUTIVO!$G$16,(CONCATENATE([4]EJECUTIVO!$G$16,\"\n\",[4]EJECUTIVO!$I$15,\"          \",[4]EJECUTIVO!$J$15)))","v":"ENERO\n2023          2024"},null,{"$f":"IF([5]EJECUTIVO!$J$16=[5]EJECUTIVO!$J$4,[5]EJECUTIVO!$G$16,(CONCATENATE([5]EJECUTIVO!$G$16,\"\n\",[5]EJECUTIVO!$I$15,\"          \",[5]EJECUTIVO!$J$15)))","v":"NOVIEMBRE\n2022          2023"},null,{"$f":"IF([1]EJECUTIVO!$J$16=[1]EJECUTIVO!$J$4,[1]EJECUTIVO!$G$16,(CONCATENATE([1]EJECUTIVO!$G$16,\"\n\",[1]EJECUTIVO!$I$15,\"         \",[1]EJECUTIVO!$J$15)))","v":"DICIEMBRE\n2022         2023"},null,{"$f":"IF([6]EJECUTIVO!$J$16=[6]EJECUTIVO!$J$4,[6]EJECUTIVO!$G$16,(CONCATENATE([6]EJECUTIVO!$G$16,\"\n\",[6]EJECUTIVO!$I$15,\"          \",[6]EJECUTIVO!$J$15)))","v":"NOVIEMBRE\n2022          2023"},null,{"$f":"IF([7]EJECUTIVO!$J$16=[7]EJECUTIVO!$J$4,[7]EJECUTIVO!$G$16,(CONCATENATE([7]EJECUTIVO!$G$16,\"\n\",[7]EJECUTIVO!$I$15,\"             \",[7]EJECUTIVO!$J$15)))","v":"SEPTIEMBRE\n2022             2023"},null,{"$f":"IF([8]EJECUTIVO!$J$16=[8]EJECUTIVO!$J$4,[8]EJECUTIVO!$G$16,(CONCATENATE([8]EJECUTIVO!$G$16,\"\n\",[8]EJECUTIVO!$I$15,\"          \",[8]EJECUTIVO!$J$15)))","v":"NOVIEMBRE\n2022          2023"}]
["         1.1.1  Exportaciones totales de bienes FOB",{"$f":"[3]EJECUTIVO!$I$17","v":15723.214904460001},{"$f":"[3]EJECUTIVO!$J$17","v":18106.173734059936},{"$f":"[4]EJECUTIVO!$I$17","v":522.54999999999995},{"$f":"[4]EJECUTIVO!$J$17","v":531.05999999999995},{"$f":"[5]EJECUTIVO!$I$17","v":14383.773404},{"$f":"[5]EJECUTIVO!$J$17","v":13039.859114999999},{"$f":"[1]EJECUTIVO!$I$17","v":12246.899342493089},{"$f":"[1]EJECUTIVO!$J$17","v":11348.201349508956},{"$f":"[6]EJECUTIVO!$I$17","v":7165.8999936900027},{"$f":"[6]EJECUTIVO!$J$17","v":7036.3237527045803},{"$f":"[7]EJECUTIVO!$I$17","v":10508.400000000001},{"$f":"[7]EJECUTIVO!$J$17","v":9829.5},{"$f":"[8]EJECUTIVO!$I$17","v":14266.59},{"$f":"[8]EJECUTIVO!$J$17","v":14763.31}]
["         1.1.2  Importaciones totales de bienes CIF",{"$f":"[3]EJECUTIVO!$I$18","v":21397.011644960003},{"$f":"[3]EJECUTIVO!$J$18","v":22515.896302490029},{"$f":"[4]EJECUTIVO!$I$18","v":1300.22},{"$f":"[4]EJECUTIVO!$J$18","v":1256.03},{"$f":"[5]EJECUTIVO!$I$18","v":29703.873917999998},{"$f":"[5]EJECUTIVO!$J$18","v":27899.528768},{"$f":"[1]EJECUTIVO!$I$18","v":20699.402477859978},{"$f":"[1]EJECUTIVO!$J$18","v":19327.415053963203},{"$f":"[6]EJECUTIVO!$I$18","v":9319.1774052500004},{"$f":"[6]EJECUTIVO!$J$18","v":9162.6653967199982},{"$f":"[7]EJECUTIVO!$I$18","v":23132.5},{"$f":"[7]EJECUTIVO!$J$18","v":21575.8},{"$f":"[8]EJECUTIVO!$I$18","v":26995.47},{"$f":"[8]EJECUTIVO!$J$18","v":31260.71}]
["         1.1.3  Saldo acumulado (exportaciones - importaciones)",{"$f":"[3]EJECUTIVO!$I$16","v":-5673.7967405000018},{"$f":"[3]EJECUTIVO!$J$16","v":-4409.7225684300938},{"$f":"[4]EJECUTIVO!$I$16","v":-777.67000000000007},{"$f":"[4]EJECUTIVO!$J$16","v":-724.97},{"$f":"[5]EJECUTIVO!$I$16","v":-15320.100513999998},{"$f":"[5]EJECUTIVO!$J$16","v":-14859.669653000001},{"$f":"[1]EJECUTIVO!$I$16","v":-8452.5031353668892},{"$f":"[1]EJECUTIVO!$J$16","v":-7979.2137044542469},{"$f":"[6]EJECUTIVO!$I$16","v":-2153.2774115599977},{"$f":"[6]EJECUTIVO!$J$16","v":-2126.3416440154178},{"$f":"[7]EJECUTIVO!$I$16","v":-12624.099999999999},{"$f":"[7]EJECUTIVO!$J$16","v":-11746.3},{"$f":"[8]EJECUTIVO!$I$16","v":-12728.880000000001},{"$f":"[8]EJECUTIVO!$J$16","v":-16497.400000000001}]
["         1.1.4  Saldo en el 2022 (preliminar) y proyectado para el 2023",{"$f":"[3]METAS!$H$22","v":-5673.7967405000018},{"$f":"[3]METAS!$K$22","v":"n.d."},{"$f":"[4]METAS!$H$22","v":-9992.8999999999978},{"$f":"[4]METAS!$K$22","v":"n.d."},{"$f":"[5]METAS!$H$22","v":-16469.410749999999},{"$f":"[5]METAS!$K$22","v":-17260.160893579996},{"$f":"[1]METAS!$H$22","v":-8452.5031353668892},{"$f":"[1]METAS!$K$22","v":-9450.393007909739},{"$f":"[6]METAS!$H$22","v":-2393.8487697499977},{"$f":"[6]METAS!$K$22","v":"n.d."},{"$f":"[7]METAS!$H$22","v":-16966},{"$f":"[7]METAS!$K$22","v":"n.d."},{"$f":"[8]METAS!$H$22","v":-7694.8200000000015},{"$f":"[8]METAS!$K$22","v":"n.d."}]
["     2.5  Saldo RIN/ Importaciones (meses de importación promedio)",{"$f":"[3]EJECUTIVO!$I$19","v":4.7950621190677856},{"$f":"[3]EJECUTIVO!$J$19","v":7.0451026185645347},{"$f":"[4]EJECUTIVO!$I$19","v":2.1032748304133144},{"$f":"[4]EJECUTIVO!$J$19","v":2.198538251474885},{"$f":"[5]EJECUTIVO!$I$19","v":7.5541257890953313},{"$f":"[5]EJECUTIVO!$J$19","v":8.2948892049186327},{"$f":"[1]EJECUTIVO!$I$19","v":4.8821699132664014},{"$f":"[1]EJECUTIVO!$J$19","v":4.6913050579625946},{"$f":"[6]EJECUTIVO!$I$19","v":4.9657462544834816},{"$f":"[6]EJECUTIVO!$J$19","v":6.4307270263402598},{"$f":"[7]EJECUTIVO!$I$19","v":5.3714787246051916},{"$f":"[7]EJECUTIVO!$J$19","v":6.6120124856287887},{"$f":"[7]EJECUTIVO!$I$19","v":5.3714787246051916},{"$f":"[7]EJECUTIVO!$J$19","v":6.6120124856287887}]
["     1.2  Transferencias Corrientes, acumulado en millones de US$ ",{"$f":"IF([3]EJECUTIVO!$J$38=[3]EJECUTIVO!$J$4,CONCATENATE([3]EJECUTIVO!$G$38,\" TRIMESTRE\",\" \"),CONCATENATE([3]EJECUTIVO!$G$38,\" TRIMESTRE                \",[3]EJECUTIVO!$I$37,\"           \",[3]EJECUTIVO!$J$37))","v":"III TRIMESTRE                2022           2023"},null,{"$f":"IF([4]EJECUTIVO!$J$38=[4]EJECUTIVO!$J$4,[4]EJECUTIVO!$G$38,(CONCATENATE([4]EJECUTIVO!$G$38,\"\n\",[4]EJECUTIVO!$I$37,\"          \",[4]EJECUTIVO!$J$37)))","v":"OCTUBRE\n2022          2023"},null,{"$f":"IF([5]EJECUTIVO!$J$38=[5]EJECUTIVO!$J$4,[5]EJECUTIVO!$G$38,(CONCATENATE([5]EJECUTIVO!$G$38,\"\n\",[5]EJECUTIVO!$I$37,\"          \",[5]EJECUTIVO!$J$37)))","v":"DICIEMBRE\n2022          2023"},null,{"$f":"IF([1]EJECUTIVO!$J$38=[1]EJECUTIVO!$J$4,[1]EJECUTIVO!$G$38,(CONCATENATE([1]EJECUTIVO!$G$38,\"\n\",[1]EJECUTIVO!$I$37,\"          \",[1]EJECUTIVO!$J$37)))","v":"ENERO\n2022          2023"},null,{"$f":"IF([6]EJECUTIVO!$J$38=[6]EJECUTIVO!$J$4,[6]EJECUTIVO!$G$38,(CONCATENATE([6]EJECUTIVO!$G$38,\"\n\",[6]EJECUTIVO!$I$37,\"          \",[6]EJECUTIVO!$J$37)))","v":"DICIEMBRE\n2022          2023"},null,{"$f":"IF([7]EJECUTIVO!$J$38=[7]EJECUTIVO!$J$4,[7]EJECUTIVO!$G$38,(CONCATENATE([7]EJECUTIVO!$G$38,\"\n\",[7]EJECUTIVO!$I$37,\"          \",[7]EJECUTIVO!$J$37)))","v":"DICIEMBRE\n2022          2023"},null,{"$f":"IF([8]EJECUTIVO!$J$38=[8]EJECUTIVO!$J$4,CONCATENATE([8]EJECUTIVO!$G$38,\"    TRIMESTRE\",\" \"),CONCATENATE([8]EJECUTIVO!$G$38,\" TRIMESTRE                  \",[8]EJECUTIVO!$I$37,\"           \",[8]EJECUTIVO!$J$37))","v":"III TRIMESTRE                  2022           2023"}]
["         1.2.1  Ingreso de remesas familiares d/",{"$f":"[3]EJECUTIVO!$I$38","v":434.06016326999998},{"$f":"[3]EJECUTIVO!$J$38","v":473.82765368000003},{"$f":"[4]EJECUTIVO!$I$38","v":6418.15},{"$f":"[4]EJECUTIVO!$J$38","v":6740.130000000001},{"$f":"[5]EJECUTIVO!$I$38","v":18040.321084679999},{"$f":"[5]EJECUTIVO!$J$38","v":19804.002051889995},{"$f":"[1]EJECUTIVO!$I$38","v":683.66519999999991},{"$f":"[1]EJECUTIVO!$J$38","v":661.00250000000005},{"$f":"[6]EJECUTIVO!$I$38","v":3224.9},{"$f":"[6]EJECUTIVO!$J$38","v":4660.1000000000004},{"$f":"[7]EJECUTIVO!$I$38","v":9856.4974610398658},{"$f":"[7]EJECUTIVO!$J$38","v":10157.236777102955},{"$f":"[8]EJECUTIVO!$I$38","v":346.57943247999998},{"$f":"[8]EJECUTIVO!$J$38","v":348.89152774000002}]
["         1.2.2  Saldo en el 2022 (preliminar) y proyectado para el 2023",{"$f":"+[3]METAS!$H$27","v":575.28676134},{"$f":"[3]METAS!$K$27","v":"n.d."},{"$f":"+[4]METAS!$H$27","v":7819.57},{"$f":"[4]METAS!$K$27","v":"n.d."},{"$f":"+[5]METAS!$H$27","v":18040.321084679999},{"$f":"[5]METAS!$K$27","v":20024.756421000002},{"$f":"+[1]METAS!$H$27","v":8686.1973000000016},{"$f":"[1]METAS!$K$27","v":8888.2000000000007},{"$f":"+[6]METAS!$H$27","v":3224.9},{"$f":"[6]METAS!$K$27","v":"n.d."},{"$f":"+[7]METAS!$H$27","v":9856.4974610398658},{"$f":"+[7]METAS!$K$27","v":10200},{"$f":"+[8]METAS!$H$27","v":512.70986882},{"$f":"[8]METAS!$K$27","v":"n.d."}]
["     1.3  Inversión directa, saldo en millones de US$ ",{"$f":"CONCATENATE([3]EJECUTIVO!$G$44,\" \",\"TRIMESTRE                2021             2022\")","v":"III TRIMESTRE                2021             2022"},null,{"$f":"CONCATENATE([4]EJECUTIVO!$G$44,\" \",\"TRIMESTRE               2021             2022\")","v":"III TRIMESTRE               2021             2022"},null,{"$f":"CONCATENATE([5]EJECUTIVO!$G$44,\" \",\"TRIMESTRE               2021             2022\")","v":"III TRIMESTRE               2021             2022"},null,{"$f":"CONCATENATE([1]EJECUTIVO!$G$44,\" \",\"TRIMESTRE               2021            2022\")","v":"III TRIMESTRE               2021            2022"},null,{"$f":"CONCATENATE([6]EJECUTIVO!$G$44,\" \",\"TRIMESTRE               2021             2022\")","v":"III TRIMESTRE               2021             2022"},null,{"$f":"CONCATENATE([7]EJECUTIVO!$G$44,\" \",\"TRIMESTRE                 2021           2022\")","v":"III TRIMESTRE                 2021           2022"},null,{"$f":"CONCATENATE([8]EJECUTIVO!$G$44,\" \",\"TRIMESTRE                2020           2021\")","v":"II TRIMESTRE                2020           2021"}]
["         1.3.1  Inversión Extranjera Directa en la economía declarante e/",{"$f":"+[3]EJECUTIVO!$I$44","v":2313.6208721225694},{"$f":"+[3]EJECUTIVO!$J$44","v":2690.9862000992762},{"$f":"+[4]EJECUTIVO!$I$44","v":-47.754960700000055},{"$f":"+[4]EJECUTIVO!$J$44","v":486.76149293000037},{"$f":"+[5]EJECUTIVO!$I$44","v":1042.4000000000001},{"$f":"+[5]EJECUTIVO!$J$44","v":1136.3000000000002},{"$f":"+[1]EJECUTIVO!$I$44","v":647.86754092311048},{"$f":"+[1]EJECUTIVO!$J$44","v":761.05850559792896},{"$f":"+[6]EJECUTIVO!$I$44","v":1079.6999999999998},{"$f":"+[6]EJECUTIVO!$J$44","v":1177.7},{"$f":"+[7]EJECUTIVO!$I$44","v":3241.8999999999996},{"$f":"+[7]EJECUTIVO!$J$44","v":3380.7000000000003},{"$f":"+[8]EJECUTIVO!$I$44","v":1560.6264397500001},{"$f":"+[8]EJECUTIVO!$J$44","v":2695.8612891599996}]
["     1.4  Balanza en cuenta corriente, saldo en millones de US$ ",{"$f":"CONCATENATE([3]EJECUTIVO!$G$41,\" \",\"TRIMESTRE                2021            2022\")","v":"III TRIMESTRE                2021            2022"},null,{"$f":"CONCATENATE([4]EJECUTIVO!$G$41,\" \",\"TRIMESTRE               2021             2022\")","v":"III TRIMESTRE               2021             2022"},null,{"$f":"CONCATENATE([5]EJECUTIVO!$G$41,\" \",\"TRIMESTRE               2021             2022\")","v":"III TRIMESTRE               2021             2022"},null,{"$f":"CONCATENATE([1]EJECUTIVO!$G$41,\" \",\"TRIMESTRE               2021             2022\")","v":"III TRIMESTRE               2021             2022"},null,{"$f":"CONCATENATE([6]EJECUTIVO!$G$41,\" \",\"TRIMESTRE               2021             2022\")","v":"III TRIMESTRE               2021             2022"},null,{"$f":"CONCATENATE([7]EJECUTIVO!$G$41,\" \",\"TRIMESTRE                  2021          2022\")","v":"III TRIMESTRE                  2021          2022"},null,{"$f":"CONCATENATE([8]EJECUTIVO!$G$41,\" \",\"TRIMESTRE               2020           2021\")","v":"II TRIMESTRE               2020           2021"}]
["         1.4.1  Saldo de Balanza en Cuenta Corriente ",{"$f":"[3]EJECUTIVO!$I$41","v":-1880.8633719135437},{"$f":"[3]EJECUTIVO!$J$41","v":-580.77615327325429},{"$f":"[4]EJECUTIVO!$I$41","v":-1788.4221818838778},{"$f":"[4]EJECUTIVO!$J$41","v":-550.89487173979376},{"$f":"[5]EJECUTIVO!$I$41","v":898.09999999999889},{"$f":"[5]EJECUTIVO!$J$41","v":2879.6},{"$f":"[1]EJECUTIVO!$I$41","v":-787.14491224282835},{"$f":"[1]EJECUTIVO!$J$41","v":-451.33272830499004},{"$f":"[6]EJECUTIVO!$I$41","v":-199.90000000000012},{"$f":"[6]EJECUTIVO!$J$41","v":1201.6000000000001},{"$f":"[7]EJECUTIVO!$I$41","v":-5481.7000000000016},{"$f":"[7]EJECUTIVO!$J$41","v":-3483.800000000002},{"$f":"[8]EJECUTIVO!$I$41","v":-448.41188230000114},{"$f":"[8]EJECUTIVO!$J$41","v":-421.06660141000339}]
["         1.4.2  Saldo en el 2022 (preliminar) y proyectado para 2023",{"$f":"+[3]METAS!$H$23","v":-2587.6796698226458},{"$f":"+[3]METAS!$K$23","v":-1816.4567718691712},{"$f":"+[4]METAS!$H$23","v":-2146.1731943838154},{"$f":"+[4]METAS!$K$23","v":"n.d."},{"$f":"+[5]METAS!$H$23","v":1247.7999999999984},{"$f":"+[5]METAS!$K$23","v":2487.5999999999985},{"$f":"+[1]METAS!$H$23","v":-1373.6779833005794},{"$f":"+[1]METAS!$K$23","v":"n.d."},{"$f":"+[6]METAS!$H$23","v":-251.90000000000012},{"$f":"+[6]METAS!$K$23","v":"n.d."},{"$f":"+[7]METAS!$H$23","v":-6326.8000000000011},{"$f":"+[7]METAS!$K$23","v":-6592.5256000000018},{"$f":"+[8]METAS!$H$23","v":-1406.7878165700006},{"$f":"+[8]METAS!$K$23","v":"n.d."}]
[]
["     1.5  Saldo RIN del Banco Central, en millones de US$",{"$f":"IF([3]EJECUTIVO!$G$22=[3]EJECUTIVO!$J$4,[3]EJECUTIVO!$G$22,(CONCATENATE([3]EJECUTIVO!$G$22,\" \n\",[3]EJECUTIVO!$I$21,\"          \",[3]EJECUTIVO!$J$21)))","v":"ENERO \n2023          2024"},null,{"$f":"IF([4]EJECUTIVO!$G$22=[4]EJECUTIVO!$J$4,[4]EJECUTIVO!$G$22,(CONCATENATE([4]EJECUTIVO!$G$22,\" \n\",[4]EJECUTIVO!$I$21,\"          \",[4]EJECUTIVO!$J$21)))","v":"ENERO \n2023          2024"},null,{"$f":"IF([5]EJECUTIVO!$G$22=[5]EJECUTIVO!$J$4,[5]EJECUTIVO!$G$22,(CONCATENATE([5]EJECUTIVO!$G$22,\" \n\",[5]EJECUTIVO!$I$21,\"          \",[5]EJECUTIVO!$J$21)))","v":"ENERO \n2023          2024"},null,{"$f":"IF([3]EJECUTIVO!$G$22=[1]EJECUTIVO!$J$4,[1]EJECUTIVO!$G$22,(CONCATENATE([1]EJECUTIVO!$G$22,\" \n\",[1]EJECUTIVO!$I$21,\"          \",[1]EJECUTIVO!$J$21)))","v":"ENERO \n2022          2023"},null,{"$f":"IF([3]EJECUTIVO!$G$22=[6]EJECUTIVO!$J$4,[6]EJECUTIVO!$G$22,(CONCATENATE([6]EJECUTIVO!$G$22,\" \n\",[6]EJECUTIVO!$I$21,\"          \",[6]EJECUTIVO!$J$21)))","v":"ENERO \n2023          2024"},null,{"$f":"IF([3]EJECUTIVO!$G$22=[7]EJECUTIVO!$J$4,[7]EJECUTIVO!$G$22,(CONCATENATE([7]EJECUTIVO!$G$22,\" \n\",[7]EJECUTIVO!$I$21,\"          \",[7]EJECUTIVO!$J$21)))","v":"ENERO \n2023          2024"},null,{"$f":"IF([3]EJECUTIVO!$G$22=[8]EJECUTIVO!$J$4,[8]EJECUTIVO!$G$22,(CONCATENATE([8]EJECUTIVO!$G$22,\" \n\",[8]EJECUTIVO!$I$21,\"          \",[8]EJECUTIVO!$J$21)))","v":"NOVIEMBRE \n2022          2023"}]
["      1.5.1  Saldo RIN a fines de mes ",{"$f":"[3]EJECUTIVO!$I$22","v":8281.6},{"$f":"ROUND([3]EJECUTIVO!$J$22,0)","v":14337},{"$f":"[4]EJECUTIVO!$I$22","v":2734.72},{"$f":"[4]EJECUTIVO!$J$22","v":2761.43},{"$f":"[5]EJECUTIVO!$I$22","v":20139.400000000001},{"$f":"ROUND([5]EJECUTIVO!$J$22,0)","v":21227},{"$f":"[1]EJECUTIVO!$I$22","v":8340.2999999999993},{"$f":"ROUND([1]EJECUTIVO!$J$22,0)","v":7396},{"$f":"[6]EJECUTIVO!$I$22","v":4482.9700268170245},{"$f":"ROUND([6]EJECUTIVO!$J$22,0)","v":5472},{"$f":"[7]EJECUTIVO!$I$22","v":14597.13365870754},{"$f":"ROUND([7]EJECUTIVO!$J$22,0)","v":14360},{"$f":"[8]EJECUTIVO!$I$22","v":7217.7167280499998},{"$f":"ROUND([8]EJECUTIVO!$J$22,0)","v":6441}]
["      1.5.2  Saldo en el 2022 y proyectado para el 2023",{"$f":"+[3]METAS!$H$25","v":8550},{"$f":"+[3]METAS!$K$25","v":"n.d."},{"$f":"+[4]METAS!$H$25","v":2440.44},{"$f":"+[4]METAS!$K$25","v":"n.d."},{"$f":"+[5]METAS!$H$25","v":20019.8},{"$f":"+[5]METAS!$K$25","v":20769.8},{"$f":"+[1]METAS!$H$25","v":8421.5},{"$f":"+[1]METAS!$K$25","v":"n.d."},{"$f":"+[6]METAS!$H$25","v":4356.3700268170242},{"$f":"+[6]METAS!$K$25","v":"n.d."},{"$f":"+[7]METAS!$H$25","v":14436.139070117662},{"$f":"+[7]METAS!$K$25","v":"n.d."},{"$f":"+[8]METAS!$H$25","v":8099.4653844300001},{"$f":"+[8]METAS!$K$25","v":"n.d."}]
[null,{"$f":"IF([3]EJECUTIVO!$J$16=[3]EJECUTIVO!$J$4,[3]EJECUTIVO!$G$16,(CONCATENATE([3]EJECUTIVO!$G$16,\" \n\",[3]EJECUTIVO!$I$15,\"          \",[3]EJECUTIVO!$J$15)))","v":"DICIEMBRE \n2022          2023"},null,{"$f":"IF([4]EJECUTIVO!$J$16=[4]EJECUTIVO!$J$4,[4]EJECUTIVO!$G$16,(CONCATENATE([4]EJECUTIVO!$G$16,\"\n\",[4]EJECUTIVO!$I$15,\"          \",[4]EJECUTIVO!$J$15)))","v":"ENERO\n2023          2024"},null,{"$f":"IF([5]EJECUTIVO!$J$16=[5]EJECUTIVO!$J$4,[5]EJECUTIVO!$G$16,(CONCATENATE([5]EJECUTIVO!$G$16,\"\n\",[5]EJECUTIVO!$I$15,\"          \",[5]EJECUTIVO!$J$15)))","v":"NOVIEMBRE\n2022          2023"},null,{"$f":"IF([1]EJECUTIVO!$J$16=[1]EJECUTIVO!$J$4,[1]EJECUTIVO!$G$16,(CONCATENATE([1]EJECUTIVO!$G$16,\"\n\",[1]EJECUTIVO!$I$15,\"          \",[1]EJECUTIVO!$J$15)))","v":"DICIEMBRE\n2022          2023"},null,{"$f":"IF([6]EJECUTIVO!$J$16=[6]EJECUTIVO!$J$4,[6]EJECUTIVO!$G$16,(CONCATENATE([6]EJECUTIVO!$G$16,\"\n\",[6]EJECUTIVO!$I$15,\"          \",[6]EJECUTIVO!$J$15)))","v":"NOVIEMBRE\n2022          2023"},null,{"$f":"IF([7]EJECUTIVO!$J$16=[7]EJECUTIVO!$J$4,[7]EJECUTIVO!$G$16,(CONCATENATE([7]EJECUTIVO!$G$16,\"\n\",[7]EJECUTIVO!$I$15,\"          \",[7]EJECUTIVO!$J$15)))","v":"SEPTIEMBRE\n2022          2023"},null,{"$f":"IF([8]EJECUTIVO!$J$16=[8]EJECUTIVO!$J$4,[8]EJECUTIVO!$G$16,(CONCATENATE([8]EJECUTIVO!$G$16,\"\n\",[8]EJECUTIVO!$I$15,\"          \",[8]EJECUTIVO!$J$15)))","v":"NOVIEMBRE\n2022          2023"}]
["      1.5.3  Saldo RIN/ Importaciones (importación promedio al mes indicado)",{"$f":"[3]EJECUTIVO!$I$19","v":4.7950621190677856},{"$f":"[3]EJECUTIVO!$J$19","v":7.0451026185645347},{"$f":"[4]EJECUTIVO!$I$19","v":2.1032748304133144},{"$f":"[4]EJECUTIVO!$J$19","v":2.198538251474885},{"$f":"[5]EJECUTIVO!$I$19","v":7.5541257890953313},{"$f":"[5]EJECUTIVO!$J$19","v":8.2948892049186327},{"$f":"[1]EJECUTIVO!$I$19","v":4.8821699132664014},{"$f":"[1]EJECUTIVO!$J$19","v":4.6913050579625946},{"$f":"[6]EJECUTIVO!$I$19","v":4.9657462544834816},{"$f":"[6]EJECUTIVO!$J$19","v":6.4307270263402598},{"$f":"[7]EJECUTIVO!$I$19","v":5.3714787246051916},{"$f":"[7]EJECUTIVO!$J$19","v":6.6120124856287887},{"$f":"[8]EJECUTIVO!$I$19","v":2.9410447015202918},{"$f":"[8]EJECUTIVO!$J$19","v":2.2665966862895943}]
["         1.5.3  Saldo RIN/ Importaciones (importación promedio al mes indicado)",{"$f":"IF([3]EJECUTIVO!$J$37=[3]EJECUTIVO!$J$4,CONCATENATE([3]EJECUTIVO!$G$38,\" TRIMESTRE\",\" \"),CONCATENATE([3]EJECUTIVO!$G$38,\" TRIMESTRE            \",[3]EJECUTIVO!$I$37,\"           \",[3]EJECUTIVO!$J$37))","v":"III TRIMESTRE            2022           2023"},null,{"$f":"IF([4]EJECUTIVO!$J$37=[4]EJECUTIVO!$J$4,[4]EJECUTIVO!$G$38,(CONCATENATE([4]EJECUTIVO!$G$38,\"\n\",[4]EJECUTIVO!$I$37,\"          \",[4]EJECUTIVO!$J$37)))","v":"OCTUBRE\n2022          2023"},null,{"$f":"IF([5]EJECUTIVO!$J$37=[5]EJECUTIVO!$J$4,CONCATENATE([5]EJECUTIVO!$G$38,\" TRIMESTRE\",\" \"),CONCATENATE([5]EJECUTIVO!$G$38,\" TRIMESTRE            \",[5]EJECUTIVO!$I$37,\"           \",[5]EJECUTIVO!$J$37))","v":"DICIEMBRE TRIMESTRE            2022           2023"},null,{"$f":"IF([1]EJECUTIVO!$J$37=[1]EJECUTIVO!$J$4,CONCATENATE([1]EJECUTIVO!$G$38,\" TRIMESTRE\",\" \"),CONCATENATE([1]EJECUTIVO!$G$38,\" TRIMESTRE            \",[1]EJECUTIVO!$I$37,\"           \",[1]EJECUTIVO!$J$37))","v":"ENERO TRIMESTRE            2022           2023"},null,{"$f":"IF([6]EJECUTIVO!$J$37=[6]EJECUTIVO!$J$4,CONCATENATE([6]EJECUTIVO!$G$38,\" TRIMESTRE\",\" \"),CONCATENATE([6]EJECUTIVO!$G$38,\" TRIMESTRE            \",[6]EJECUTIVO!$I$37,\"           \",[6]EJECUTIVO!$J$37))","v":"DICIEMBRE TRIMESTRE            2022           2023"},null,{"$f":"IF([7]EJECUTIVO!$J$37=[7]EJECUTIVO!$J$4,CONCATENATE([7]EJECUTIVO!$G$38,\" TRIMESTRE\",\" \"),CONCATENATE([7]EJECUTIVO!$G$38,\" TRIMESTRE            \",[7]EJECUTIVO!$I$37,\"           \",[7]EJECUTIVO!$J$37))","v":"DICIEMBRE TRIMESTRE            2022           2023"},null,{"$f":"IF([7]EJECUTIVO!$J$37=[7]EJECUTIVO!$J$4,CONCATENATE([7]EJECUTIVO!$G$38,\" TRIMESTRE\",\" \"),CONCATENATE([7]EJECUTIVO!$G$38,\" TRIMESTRE            \",[7]EJECUTIVO!$I$37,\"           \",[7]EJECUTIVO!$J$37))","v":"DICIEMBRE TRIMESTRE            2022           2023"}]
["         1.5.3  Saldo RIN/ Importaciones (importación promedio al mes indicado)",{"$f":"[3]EJECUTIVO!$I$38","v":434.06016326999998},{"$f":"[3]EJECUTIVO!$J$38","v":473.82765368000003},{"$f":"[4]EJECUTIVO!$I$38","v":6418.15},{"$f":"[4]EJECUTIVO!$J$38","v":6740.130000000001},{"$f":"[5]EJECUTIVO!$I$38","v":18040.321084679999},{"$f":"[5]EJECUTIVO!$J$38","v":19804.002051889995},{"$f":"[1]EJECUTIVO!$I$38","v":683.66519999999991},{"$f":"[1]EJECUTIVO!$J$38","v":661.00250000000005},{"$f":"[6]EJECUTIVO!$I$38","v":3224.9},{"$f":"[6]EJECUTIVO!$J$38","v":4660.1000000000004},{"$f":"[7]EJECUTIVO!$I$38","v":9856.4974610398658},{"$f":"[7]EJECUTIVO!$J$38","v":10157.236777102955},{"$f":"[7]EJECUTIVO!$I$38","v":9856.4974610398658},{"$f":"[7]EJECUTIVO!$J$38","v":10157.236777102955}]
["         1.5.3  Saldo RIN/ Importaciones (importación promedio al mes indicado)",{"$f":"[3]METAS!$H$27","v":575.28676134},{"$f":"[3]METAS!$M$27","v":"n.d."},{"$f":"[4]METAS!$H$27","v":7819.57},{"$f":"[4]METAS!$M$27","v":"n.d."},{"$f":"[5]METAS!$H$27","v":18040.321084679999},{"$f":"[5]METAS!$M$27","v":20024.756421000002},{"$f":"[1]METAS!$H$27","v":8686.1973000000016},{"$f":"[1]METAS!$M$27","v":8888.2000000000007},{"$f":"[6]METAS!$H$27","v":3224.9},{"$f":"[6]METAS!$M$27","v":"n.d."},{"$f":"[7]METAS!$H$27","v":9856.4974610398658},{"$f":"[7]METAS!$M$27","v":10200},{"$f":"[7]METAS!$H$27","v":9856.4974610398658},{"$f":"[7]METAS!$M$27","v":10200}]
["2. Tipo de Cambio ",{"$f":"IF([3]EJECUTIVO!$J$4=[3]EJECUTIVO!$J$8,[3]EJECUTIVO!$G$10,CONCATENATE([3]EJECUTIVO!$G$31,\"\n\",[3]EJECUTIVO!$I$30,\"          \",[3]EJECUTIVO!$J$30))","v":"NOVIEMBRE\n2022          2023"},null,{"$f":"IF([4]EJECUTIVO!$J$4=[4]EJECUTIVO!$J$8,[4]EJECUTIVO!$G$10,CONCATENATE([4]EJECUTIVO!$G$31,\"\n\",[4]EJECUTIVO!$I$30,\"          \",[4]EJECUTIVO!$J$30))","v":"NOVIEMBRE\n2022          2023"},null,{"$f":"IF([5]EJECUTIVO!$J$4=[5]EJECUTIVO!$J$8,[5]EJECUTIVO!$G$10,CONCATENATE([5]EJECUTIVO!$G$31,\"\n\",[5]EJECUTIVO!$I$30,\"          \",[5]EJECUTIVO!$J$30))","v":"NOVIEMBRE\n2022          2023"},null,{"$f":"IF([1]EJECUTIVO!$J$4=[1]EJECUTIVO!$J$8,[1]EJECUTIVO!$G$10,CONCATENATE([1]EJECUTIVO!$G$31,\"\n\",[1]EJECUTIVO!$I$30,\"          \",[1]EJECUTIVO!$J$30))","v":"NOVIEMBRE\n2022          2023"},null,{"$f":"IF([6]EJECUTIVO!$J$4=[6]EJECUTIVO!$J$8,[6]EJECUTIVO!$G$10,CONCATENATE([6]EJECUTIVO!$G$31,\"\n\",[6]EJECUTIVO!$I$30,\"          \",[6]EJECUTIVO!$J$30))","v":"NOVIEMBRE\n2022          2023"},null,{"$f":"IF([7]EJECUTIVO!$J$4=[7]EJECUTIVO!$J$8,[7]EJECUTIVO!$G$10,CONCATENATE([7]EJECUTIVO!$G$31,\"\n\",[7]EJECUTIVO!$I$30,\"          \",[7]EJECUTIVO!$J$30))","v":"NOVIEMBRE\n2022          2023"},null,{"$f":"IF([8]EJECUTIVO!$J$4=[8]EJECUTIVO!$J$8,[8]EJECUTIVO!$G$10,CONCATENATE([8]EJECUTIVO!$G$31,\"\n\",[8]EJECUTIVO!$I$30,\"          \",[8]EJECUTIVO!$J$30))","v":"NOVIEMBRE\n2022          2023"}]
["     2.1  Unidades Moneda Nacional por US$, promedio compra  ",{"$f":"[3]EJECUTIVO!$I$31","v":608.42033333333347},{"$f":"[3]EJECUTIVO!$J$31","v":529.87233333333347},{"$f":"[4]EJECUTIVO!$I$31","v":8.75},{"$f":"[4]EJECUTIVO!$J$31","v":8.75},{"$f":"[5]EJECUTIVO!$I$31","v":7.79169},{"$f":"[5]EJECUTIVO!$J$31","v":7.8072999999999997},{"$f":"[1]EJECUTIVO!$I$31","v":24.66868181818182},{"$f":"[1]EJECUTIVO!$J$31","v":24.674431818181823},{"$f":"[6]EJECUTIVO!$I$31","v":35.997697744284956},{"$f":"[6]EJECUTIVO!$J$31","v":36.399619224610966},{"$f":"[7]EJECUTIVO!$I$31","v":54.206000000000003},{"$f":"[7]EJECUTIVO!$J$31","v":56.707999999999998},{"$f":"[8]EJECUTIVO!$I$31","v":1},{"$f":"[8]EJECUTIVO!$J$31","v":1}]
["     2.2  ITCER-USA, 2000=100, tasa de variación interanual  ",{"$f":"[3]EJECUTIVO!$I$32","v":-5.064509462809319},{"$f":"[3]EJECUTIVO!$J$32","v":-8.6901751628531301},{"$f":"[4]EJECUTIVO!$I$32","v":-0.17384717875492672},{"$f":"[4]EJECUTIVO!$J$32","v":0.99234820932401213},{"$f":"[5]EJECUTIVO!$I$32","v":-0.8569771146773153},{"$f":"[5]EJECUTIVO!$J$32","v":-0.93280407244471508},{"$f":"[1]EJECUTIVO!$I$32","v":-0.73015439083032874},{"$f":"[1]EJECUTIVO!$J$32","v":-1.8003512673031019},{"$f":"[6]EJECUTIVO!$I$32","v":-1.990251855243319},{"$f":"[6]EJECUTIVO!$J$32","v":-1.3310710807476922},{"$f":"[7]EJECUTIVO!$I$32","v":-4.3856617480572124},{"$f":"[7]EJECUTIVO!$J$32","v":3.7275143968489743},{"$f":"[8]EJECUTIVO!$I$32","v":5.5599599596829918},{"$f":"[8]EJECUTIVO!$J$32","v":1.0989396327858447}]
["     2.3  ITCER-Global f/, 2000=100, tasa de variación interanual ",{"$f":"[3]EJECUTIVO!$I$33","v":-8.2625081519356876},{"$f":"[3]EJECUTIVO!$J$33","v":-7.3584965335462771},{"$f":"[4]EJECUTIVO!$I$33","v":-2.591859386425488},{"$f":"[4]EJECUTIVO!$J$33","v":2.3243103380556907},{"$f":"[5]EJECUTIVO!$I$33","v":-2.8395240696529322},{"$f":"[5]EJECUTIVO!$J$33","v":1.2858436074146162},{"$f":"[1]EJECUTIVO!$I$33","v":-1.829505131724074},{"$f":"[1]EJECUTIVO!$J$33","v":-0.72051385117828382},{"$f":"[6]EJECUTIVO!$I$33","v":-4.2446950798035292},{"$f":"[6]EJECUTIVO!$J$33","v":0.73298943937851746},{"$f":"[7]EJECUTIVO!$I$33","v":-8.4420292738072824},{"$f":"[7]EJECUTIVO!$J$33","v":4.8463589563757736},{"$f":"[8]EJECUTIVO!$I$33","v":-0.78809340407007822},{"$f":"[8]EJECUTIVO!$J$33","v":2.4043784962590742}]
["     2.4  ITCER-Región g/, 2000=100, tasa de variación interanual ",{"$f":"[3]EJECUTIVO!$I$34","v":-4.837065136555152},{"$f":"[3]EJECUTIVO!$J$34","v":-8.2820816404029944},{"$f":"[4]EJECUTIVO!$I$34","v":1.3405224360762524},{"$f":"[4]EJECUTIVO!$J$34","v":3.4485448532599827},{"$f":"[5]EJECUTIVO!$I$34","v":0.14546814752549597},{"$f":"[5]EJECUTIVO!$J$34","v":0.64804145997647833},{"$f":"[1]EJECUTIVO!$I$34","v":3.8760506654806237},{"$f":"[1]EJECUTIVO!$J$34","v":-0.3900481635915054},{"$f":"[6]EJECUTIVO!$I$34","v":-0.49914446856527128},{"$f":"[6]EJECUTIVO!$J$34","v":1.5769919188165726},{"$f":"[7]EJECUTIVO!$I$34","v":-3.1890643142574393},{"$f":"[7]EJECUTIVO!$J$34","v":6.7655533766432407},{"$f":"[8]EJECUTIVO!$I$34","v":9.7168878451243437},{"$f":"[8]EJECUTIVO!$J$34","v":6.1973525367438276}]
["     2.5  ITCER-Global f/, tasa de variación con el año base (2000)",{"$f":"[3]EJECUTIVO!$I$35","v":-11.858067413156945},{"$f":"[3]EJECUTIVO!$J$35","v":-18.343988467160486},{"$f":"[4]EJECUTIVO!$I$35","v":7.7561137464325043},{"$f":"[4]EJECUTIVO!$J$35","v":10.260700238127896},{"$f":"[5]EJECUTIVO!$I$35","v":-47.246631760296601},{"$f":"[5]EJECUTIVO!$J$35","v":-46.568305947090487},{"$f":"[1]EJECUTIVO!$I$35","v":-19.413267416026102},{"$f":"[1]EJECUTIVO!$J$35","v":-19.993905986505638},{"$f":"[6]EJECUTIVO!$I$35","v":13.642658015164002},{"$f":"[6]EJECUTIVO!$J$35","v":14.475646697044198},{"$f":"[7]EJECUTIVO!$I$35","v":12.693392539671507},{"$f":"[7]EJECUTIVO!$J$35","v":18.154918862261596},{"$f":"[8]EJECUTIVO!$I$35","v":2.6309055183048997},{"$f":"[8]EJECUTIVO!$J$35","v":5.0985409411029963}]
[]
["III. SECTOR FISCAL"]
["1.  Resultado del Gobierno Central, en millones de US$ ",{"$f":"IF([3]EJECUTIVO!$J$49=[3]EJECUTIVO!$J$4,[3]EJECUTIVO!$G$49,(CONCATENATE([3]EJECUTIVO!$G$49,\"\n\",[3]EJECUTIVO!$I$48,\"          \",[3]EJECUTIVO!$J$48)))","v":"DICIEMBRE\n2022          2023"},null,{"$f":"IF([4]EJECUTIVO!$J$49=[4]EJECUTIVO!$J$4,[4]EJECUTIVO!$G$49,(CONCATENATE([4]EJECUTIVO!$G$49,\"\n\",[4]EJECUTIVO!$I$48,\"          \",[4]EJECUTIVO!$J$48)))","v":"DICIEMBRE\n2022          2023"},null,{"$f":"IF([5]EJECUTIVO!$J$49=[5]EJECUTIVO!$J$4,[5]EJECUTIVO!$G$49,(CONCATENATE([5]EJECUTIVO!$G$49,\"\n\",[5]EJECUTIVO!$I$48,\"          \",[5]EJECUTIVO!$J$48)))","v":"DICIEMBRE\n2022          2023"},null,{"$f":"IF([1]EJECUTIVO!$J$49=[1]EJECUTIVO!$J$4,[1]EJECUTIVO!$G$49,(CONCATENATE([1]EJECUTIVO!$G$49,\"\n\",[1]EJECUTIVO!$I$48,\"          \",[1]EJECUTIVO!$J$48)))","v":"OCTUBRE\n2022          2023"},null,{"$f":"IF([6]EJECUTIVO!$J$49=[6]EJECUTIVO!$J$4,[6]EJECUTIVO!$G$49,(CONCATENATE([6]EJECUTIVO!$G$49,\"\n\",[6]EJECUTIVO!$I$48,\"          \",[6]EJECUTIVO!$J$48)))","v":"NOVIEMBRE\n2022          2023"},null,{"$f":"IF([7]EJECUTIVO!$J$49=[7]EJECUTIVO!$J$4,[7]EJECUTIVO!$G$49,(CONCATENATE([7]EJECUTIVO!$G$49,\"\n\",[7]EJECUTIVO!$I$48,\"          \",[7]EJECUTIVO!$J$48)))","v":"DICIEMBRE\n2022          2023"},null,{"$f":"IF([8]EJECUTIVO!$J$49=[8]EJECUTIVO!$J$4,[8]EJECUTIVO!$G$49,(CONCATENATE([8]EJECUTIVO!$G$49,\"\n\",[8]EJECUTIVO!$I$48,\"          \",[8]EJECUTIVO!$J$48)))","v":"DICIEMBRE\n2022          2023"}]
["     1.1 Ingresos totales, acumulado",{"$f":"[3]EJECUTIVO!$I49","v":11453.635487963837},{"$f":"[3]EJECUTIVO!$J49","v":24744.972120662067},{"$f":"[4]EJECUTIVO!$I49","v":6633.5495405900001},{"$f":"[4]EJECUTIVO!$J49","v":7046.4276551549992},{"$f":"[5]EJECUTIVO!$I49","v":12010.708813696756},{"$f":"[5]EJECUTIVO!$J49","v":12892.208765485988},{"$f":"[1]EJECUTIVO!$I49","v":4916.618128583591},{"$f":"[1]EJECUTIVO!$J49","v":5356.0234986601354},{"$f":"[6]EJECUTIVO!$I49","v":3086.6994190376849},{"$f":"[6]EJECUTIVO!$J49","v":3503.5138633860479},{"$f":"[7]EJECUTIVO!$I49","v":17412.243583768472},{"$f":"[7]EJECUTIVO!$J49","v":19089.184101055016},{"$f":"[8]EJECUTIVO!$I49","v":9290.2999999999993},{"$f":"[8]EJECUTIVO!$J49","v":10674.8}]
["     1.2 Ingresos tributarios, acumulado",{"$f":"[3]EJECUTIVO!$I50","v":9825.6951378180056},{"$f":"[3]EJECUTIVO!$J50","v":21713.178496496683},{"$f":"[4]EJECUTIVO!$I50","v":6416.42989648},{"$f":"[4]EJECUTIVO!$J50","v":6709.7629396249995},{"$f":"[5]EJECUTIVO!$I50","v":11426.550931437183},{"$f":"[5]EJECUTIVO!$J50","v":12190.808513168542},{"$f":"[1]EJECUTIVO!$I50","v":4581.0662445667595},{"$f":"[1]EJECUTIVO!$J50","v":4926.2575133627033},{"$f":"[6]EJECUTIVO!$I50","v":2855.0827369559029},{"$f":"[6]EJECUTIVO!$J50","v":3249.3746870526757},{"$f":"[7]EJECUTIVO!$I50","v":15771.0579925686},{"$f":"[7]EJECUTIVO!$J50","v":17366.542234252149},{"$f":"[8]EJECUTIVO!$I50","v":5846.7000000000007},{"$f":"[8]EJECUTIVO!$J50","v":6398.4}]
["     1.3 Gastos totales, acumulado",{"$f":"[3]EJECUTIVO!$I51","v":13218.561463593236},{"$f":"[3]EJECUTIVO!$J51","v":29351.601524011941},{"$f":"[4]EJECUTIVO!$I51","v":7238.2595362861475},{"$f":"[4]EJECUTIVO!$J51","v":7830.40876489935},{"$f":"[5]EJECUTIVO!$I51","v":13620.012400663685},{"$f":"[5]EJECUTIVO!$J51","v":14325.748998519322},{"$f":"[1]EJECUTIVO!$I51","v":4570.9791039160036},{"$f":"[1]EJECUTIVO!$J51","v":5168.2808587747495},{"$f":"[6]EJECUTIVO!$I51","v":2889.044730845776},{"$f":"[6]EJECUTIVO!$J51","v":2999.1488112142151},{"$f":"[7]EJECUTIVO!$I51","v":21383.522929458486},{"$f":"[7]EJECUTIVO!$J51","v":23223.462281990596},{"$f":"[8]EJECUTIVO!$I51","v":12384.6},{"$f":"[8]EJECUTIVO!$J51","v":13790.7}]
["     1.4 Donaciones, acumulado",{"$f":"[3]EJECUTIVO!$I52","v":0},{"$f":"[3]EJECUTIVO!$J52","v":0},{"$f":"[4]EJECUTIVO!$I52","v":17.312939660000001},{"$f":"[4]EJECUTIVO!$J52","v":19.414563959999999},{"$f":"[5]EJECUTIVO!$I52","v":7.1823919916154413},{"$f":"[5]EJECUTIVO!$J52","v":6.6686882377085022},{"$f":"[1]EJECUTIVO!$I52","v":69.469132367183789},{"$f":"[1]EJECUTIVO!$J52","v":79.946293428791037},{"$f":"[6]EJECUTIVO!$I52","v":20.68296005924066},{"$f":"[6]EJECUTIVO!$J52","v":12.836239301464671},{"$f":"[7]EJECUTIVO!$I52","v":41.702013278408387},{"$f":"[7]EJECUTIVO!$J52","v":120.95153293187397},{"$f":"[8]EJECUTIVO!$I52","v":0},{"$f":"[8]EJECUTIVO!$J52","v":0}]
["     1.5 Déficit (-) superávit (+) con donaciones",{"$f":"[3]EJECUTIVO!$I56","v":-1764.9259756293995},{"$f":"[3]EJECUTIVO!$J56","v":-4606.6294033498743},{"$f":"[4]EJECUTIVO!$I56","v":-587.39705603614743},{"$f":"[4]EJECUTIVO!$J56","v":-764.56654578435075},{"$f":"[5]EJECUTIVO!$I56","v":-1602.1211949753138},{"$f":"[5]EJECUTIVO!$J56","v":-1426.8715447956261},{"$f":"[1]EJECUTIVO!$I56","v":415.10815703477112},{"$f":"[1]EJECUTIVO!$J56","v":267.68893331417689},{"$f":"[6]EJECUTIVO!$I56","v":218.33764825114957},{"$f":"[6]EJECUTIVO!$J56","v":517.20129147329737},{"$f":"[7]EJECUTIVO!$I56","v":-3929.5773324116062},{"$f":"[7]EJECUTIVO!$J56","v":-4013.3266480037064},{"$f":"[8]EJECUTIVO!$I56","v":-3094.3},{"$f":"[8]EJECUTIVO!$J56","v":-3115.9}]
["           1.5.1  Financiamiento interno",{"$f":"[3]EJECUTIVO!$I57","v":137.5247759204189},{"$f":"[3]EJECUTIVO!$J57","v":695.54379698121147},{"$f":"[4]EJECUTIVO!$I57","v":576.13297176614822},{"$f":"[4]EJECUTIVO!$J57","v":728.2081948743496},{"$f":"[5]EJECUTIVO!$I57","v":1587.5846998198813},{"$f":"[5]EJECUTIVO!$J57","v":62.503130760956196},{"$f":"[1]EJECUTIVO!$I57","v":-288.9243217307083},{"$f":"[1]EJECUTIVO!$J57","v":-29.327928311635318},{"$f":"[6]EJECUTIVO!$I57","v":-441.6261760280978},{"$f":"[6]EJECUTIVO!$J57","v":-813.13791715636251},{"$f":"[7]EJECUTIVO!$I57","v":757.99448018805367},{"$f":"[7]EJECUTIVO!$J57","v":1383.7035288313821},{"$f":"[8]EJECUTIVO!$I57","v":"n.d."},{"$f":"[8]EJECUTIVO!$J57","v":"n.d."}]
["           1.5.2  Financiamiento externo",{"$f":"[3]EJECUTIVO!$I58","v":1627.401173205541},{"$f":"[3]EJECUTIVO!$J58","v":3911.0859470909968},{"$f":"[4]EJECUTIVO!$I58","v":11.264084269999998},{"$f":"[4]EJECUTIVO!$J58","v":36.358350909999984},{"$f":"[5]EJECUTIVO!$I58","v":14.531015890966867},{"$f":"[5]EJECUTIVO!$J58","v":1364.3684172401101},{"$f":"[1]EJECUTIVO!$I58","v":-126.18383530406203},{"$f":"[1]EJECUTIVO!$J58","v":-238.36100500254088},{"$f":"[6]EJECUTIVO!$I58","v":223.28852777694837},{"$f":"[6]EJECUTIVO!$J58","v":295.93662568306547},{"$f":"[7]EJECUTIVO!$I58","v":2963.2603120456556},{"$f":"[7]EJECUTIVO!$J58","v":2514.5476875212594},{"$f":"[8]EJECUTIVO!$I58","v":"n.d."},{"$f":"[8]EJECUTIVO!$J58","v":"n.d."}]
["     1.6  Déficit (-) superávit (+) en el 2021 y estimado 2022, con donaciones",{"$f":"[3]METAS!$H$39","v":-1764.9259756293995},{"$f":"[3]METAS!$K$39","v":"n.d."},{"$f":"[4]METAS!$H$39","v":-587.39705603614743},{"$f":"[4]METAS!$K$39","v":"n.d."},{"$f":"[5]METAS!$H$39","v":-1599.7655330677201},{"$f":"[5]METAS!$K$39","v":-1743.9078573004156},{"$f":"[1]METAS!$H$39","v":-400.80860971095939},{"$f":"[1]METAS!$K$39","v":"n.d."},{"$f":"[6]METAS!$H$39","v":204.87586862079883},{"$f":"[6]METAS!$K$39","v":"n.d."},{"$f":"[7]METAS!$H$39","v":-3929.5773324116062},{"$f":"[7]METAS!$K$39","v":"n.d."},{"$f":"[8]METAS!$H$39","v":-3981.3},{"$f":"[8]METAS!$K$39","v":"n.d."}]
["     1.7  Ingresos Corrientes, tasa de variación interanual",{"$f":"[3]EJECUTIVO!$I53","v":16.071345215152988},{"$f":"[3]EJECUTIVO!$J53","v":97.812614725464314},{"$f":"[4]EJECUTIVO!$I53","v":10.221792830081554},{"$f":"[4]EJECUTIVO!$J53","v":6.2240903160312611},{"$f":"[5]EJECUTIVO!$I53","v":13.411750628418018},{"$f":"[5]EJECUTIVO!$J53","v":8.5604617519086545},{"$f":"[1]EJECUTIVO!$I53","v":15.641497757232603},{"$f":"[1]EJECUTIVO!$J53","v":9.625444091718105},{"$f":"[6]EJECUTIVO!$I53","v":18.228072707060662},{"$f":"[6]EJECUTIVO!$J53","v":15.384041625040123},{"$f":"[7]EJECUTIVO!$I53","v":13.837857475025839},{"$f":"[7]EJECUTIVO!$J53","v":11.70899886023269},{"$f":"[8]EJECUTIVO!$I53","v":30.452148407027167},{"$f":"[8]EJECUTIVO!$J53","v":18.892025068172025}]
["     1.8  Relación Gasto Capital / Gasto Total, en porcentajes",{"$f":"[3]EJECUTIVO!$I54","v":7.1610793323111457},{"$f":"[3]EJECUTIVO!$J54","v":7.0451343124752777},{"$f":"[4]EJECUTIVO!$I54","v":9.2748696526355126},{"$f":"[4]EJECUTIVO!$J54","v":16.446118711129039},{"$f":"[5]EJECUTIVO!$I54","v":17.446379689950856},{"$f":"[5]EJECUTIVO!$J54","v":18.426514743157746},{"$f":"[1]EJECUTIVO!$I54","v":12.68353005935306},{"$f":"[1]EJECUTIVO!$J54","v":14.117707102323863},{"$f":"[6]EJECUTIVO!$I54","v":17.844760746735432},{"$f":"[6]EJECUTIVO!$J54","v":13.873971377793678},{"$f":"[7]EJECUTIVO!$I54","v":13.902075723722183},{"$f":"[7]EJECUTIVO!$J54","v":15.14320094147798},{"$f":"[8]EJECUTIVO!$I54","v":37.157168163215445},{"$f":"[8]EJECUTIVO!$J54","v":26.683579335793358}]
["     1.9  Ahorro Corriente, en millones de US$",{"$f":"[3]EJECUTIVO!$I55","v":-811.077831061643},{"$f":"[3]EJECUTIVO!$J55","v":-2532.7645638328645},{"$f":"[4]EJECUTIVO!$I55","v":66.629141413852267},{"$f":"[4]EJECUTIVO!$J55","v":503.29721129764948},{"$f":"[5]EJECUTIVO!$I55","v":749.45324099309073},{"$f":"[5]EJECUTIVO!$J55","v":1196.1090908907599},{"$f":"[1]EJECUTIVO!$I55","v":887.12871818197732},{"$f":"[1]EJECUTIVO!$J55","v":878.84536192430642},{"$f":"[6]EJECUTIVO!$I55","v":713.19005294249473},{"$f":"[6]EJECUTIVO!$J55","v":920.58380402915168},{"$f":"[7]EJECUTIVO!$I55","v":-993.53038762003371},{"$f":"[7]EJECUTIVO!$J55","v":-627.89476996325948},{"$f":"[8]EJECUTIVO!$I55","v":620.60000000000036},{"$f":"[8]EJECUTIVO!$J55","v":469.49999999999955}]
["2.  Saldo Deuda Pública, en millones de US$",{"$f":"IF([3]EJECUTIVO!$J$62=[3]EJECUTIVO!$J$4,[3]EJECUTIVO!$G$62,CONCATENATE([3]EJECUTIVO!$G$62,\"\n\",[3]EJECUTIVO!$I$61,\"          \",[3]EJECUTIVO!$J$61))","v":"SEPTIEMBRE\n2022          2023"},null,{"$f":"IF([4]EJECUTIVO!$J$62=[4]EJECUTIVO!$J$4,[4]EJECUTIVO!$G$62,CONCATENATE([4]EJECUTIVO!$G$62,\"\n\",[4]EJECUTIVO!$I$61,\"          \",[4]EJECUTIVO!$J$61))","v":"DICIEMBRE\n2022          2023"},null,{"$f":"IF([5]EJECUTIVO!$J$62=[5]EJECUTIVO!$J$4,[5]EJECUTIVO!$G$62,CONCATENATE([5]EJECUTIVO!$G$62,\"\n\",[5]EJECUTIVO!$I$61,\"          \",[5]EJECUTIVO!$J$61))","v":"DICIEMBRE\n2022          2023"},null,{"$f":"IF([1]EJECUTIVO!$J$62=[1]EJECUTIVO!$J$4,[1]EJECUTIVO!$G$62,CONCATENATE([1]EJECUTIVO!$G$62,\"\n\",[1]EJECUTIVO!$I$61,\"          \",[1]EJECUTIVO!$J$61))","v":"NOVIEMBRE\n2022          2023"},null,{"$f":"IF([6]EJECUTIVO!$J$62=[6]EJECUTIVO!$J$4,[6]EJECUTIVO!$G$62,CONCATENATE([6]EJECUTIVO!$G$62,\"\n\",[6]EJECUTIVO!$I$61,\"          \",[6]EJECUTIVO!$J$61))","v":"NOVIEMBRE\n2022          2023"},null,{"$f":"IF([7]EJECUTIVO!$J$62=[7]EJECUTIVO!$J$4,[7]EJECUTIVO!$G$62,CONCATENATE([7]EJECUTIVO!$G$62,\"\n\",[7]EJECUTIVO!$I$61,\"          \",[7]EJECUTIVO!$J$61))","v":"DICIEMBRE\n2022          2023"},null,{"$f":"IF([8]EJECUTIVO!$J$62=[8]EJECUTIVO!$J$4,[8]EJECUTIVO!$G$62,CONCATENATE([8]EJECUTIVO!$G$62,\"\n\",[8]EJECUTIVO!$I$61,\"          \",[8]EJECUTIVO!$J$61))","v":"ENERO\n2023          2024"}]
["2.1 Saldo Deuda Pública Total h/",{"$f":"[3]EJECUTIVO!$I$62","v":52703.312895721625},{"$f":"[3]EJECUTIVO!$J62","v":64130.50402853312},{"$f":"[4]EJECUTIVO!$I62","v":25350.14},{"$f":"[4]EJECUTIVO!$J62","v":20098.644790046576},{"$f":"[5]EJECUTIVO!$I62","v":26074.020660522758},{"$f":"[5]EJECUTIVO!$J62","v":26975.993108535818},{"$f":"[1]EJECUTIVO!$I62","v":14332.09542140815},{"$f":"[1]EJECUTIVO!$J62","v":14338.809300975394},{"$f":"[6]EJECUTIVO!$I62","v":9452.2726514762762},{"$f":"[6]EJECUTIVO!$J62","v":10302.845514904095},{"$f":"[7]EJECUTIVO!$I62","v":66764.569999999992},{"$f":"[7]EJECUTIVO!$J62","v":70946.292471643945},{"$f":"[8]EJECUTIVO!$I62","v":44218.630000000005},{"$f":"[8]EJECUTIVO!$J62","v":46894.560000000005}]
["   2.1.1 Saldo Deuda Interna Bruta",{"$f":"[3]EJECUTIVO!$I$63","v":37748.032895721626},{"$f":"[3]EJECUTIVO!$J63","v":46902.664028533123},{"$f":"[4]EJECUTIVO!$I63","v":13731.400000000001},{"$f":"[4]EJECUTIVO!$J63","v":8010.0300400465776},{"$f":"[5]EJECUTIVO!$I63","v":21632.183166727878},{"$f":"[5]EJECUTIVO!$J63","v":20924.7050706509},{"$f":"[1]EJECUTIVO!$I63","v":13306.388164889242},{"$f":"[1]EJECUTIVO!$J63","v":12444.719327109859},{"$f":"[6]EJECUTIVO!$I63","v":1409.2521013525425},{"$f":"[6]EJECUTIVO!$J63","v":1752.2511564595818},{"$f":"[7]EJECUTIVO!$I63","v":31677.98},{"$f":"[7]EJECUTIVO!$J63","v":33279.321673636958},{"$f":"[8]EJECUTIVO!$I63","v":7421.41},{"$f":"[8]EJECUTIVO!$J63","v":7004.94}]
["2.1.1.1 Sector Público No Financiero",{"$f":"[3]EJECUTIVO!$I$64","v":34992.847746991196},{"$f":"[3]EJECUTIVO!$J64","v":41477.856846483621},{"$f":"[4]EJECUTIVO!$I64","v":7340.72},{"$f":"[4]EJECUTIVO!$J64","v":7846.1456499261303},{"$f":"[5]EJECUTIVO!$I64","v":16258.772844551477},{"$f":"[5]EJECUTIVO!$J64","v":15991.039384348833},{"$f":"[1]EJECUTIVO!$I64","v":11205.460896644381},{"$f":"[1]EJECUTIVO!$J64","v":10873.772299063881},{"$f":"[6]EJECUTIVO!$I64","v":715.2655180575332},{"$f":"[6]EJECUTIVO!$J64","v":622.17722375865583},{"$f":"[7]EJECUTIVO!$I64","v":15496.97},{"$f":"[7]EJECUTIVO!$J64","v":15974.698187864864},{"$f":"[8]EJECUTIVO!$I64","v":7421.41},{"$f":"[8]EJECUTIVO!$J64","v":7004.94}]
["         a) Gobierno Central",{"$f":"[3]EJECUTIVO!$I$65","v":33475.766705244212},{"$f":"[3]EJECUTIVO!$J65","v":39850.10970445507},{"$f":"[4]EJECUTIVO!$I65","v":6775.55},{"$f":"[4]EJECUTIVO!$J65","v":7274.8675692223105},{"$f":"[5]EJECUTIVO!$I65","v":16258.772844551477},{"$f":"[5]EJECUTIVO!$J65","v":15991.039384348833},{"$f":"[1]EJECUTIVO!$I65","v":8366.9925589080176},{"$f":"[1]EJECUTIVO!$J65","v":7797.4665193549781},{"$f":"[6]EJECUTIVO!$I65","v":715.2655180575332},{"$f":"[6]EJECUTIVO!$J65","v":622.17722375865583},{"$f":"[7]EJECUTIVO!$I65","v":15191},{"$f":"[7]EJECUTIVO!$J65","v":15753.630928615998},{"$f":"[8]EJECUTIVO!$I65","v":7417.59},{"$f":"[8]EJECUTIVO!$J65","v":7001.12}]
["         b) Resto del Sector Público No Financiero",{"$f":"[3]EJECUTIVO!$I$66","v":1517.081041746982},{"$f":"[3]EJECUTIVO!$J66","v":1627.7471420285515},{"$f":"[4]EJECUTIVO!$I66","v":565.17000000000007},{"$f":"[4]EJECUTIVO!$J66","v":571.27808070382002},{"$f":"[5]EJECUTIVO!$I66","v":"n.d."},{"$f":"[5]EJECUTIVO!$J66","v":"n.d."},{"$f":"[1]EJECUTIVO!$I66","v":2838.4683377363635},{"$f":"[1]EJECUTIVO!$J66","v":3076.305779708905},{"$f":"[6]EJECUTIVO!$I66","v":"n.d."},{"$f":"[6]EJECUTIVO!$J66","v":"n.d."},{"$f":"[7]EJECUTIVO!$I66","v":305.97000000000003},{"$f":"[7]EJECUTIVO!$J66","v":221.06725924886547},{"$f":"[8]EJECUTIVO!$I66","v":3.82},{"$f":"[8]EJECUTIVO!$J66","v":3.82}]
["2.1.1.2 Sector Público Financiero",{"$f":"[3]EJECUTIVO!$I$67","v":2755.185148730428},{"$f":"[3]EJECUTIVO!$J67","v":5424.807182049507},{"$f":"[4]EJECUTIVO!$I67","v":6390.68},{"$f":"[4]EJECUTIVO!$J67","v":163.88439012044742},{"$f":"[5]EJECUTIVO!$I67","v":5373.4103221764035},{"$f":"[5]EJECUTIVO!$J67","v":4933.6656863020662},{"$f":"[1]EJECUTIVO!$I67","v":2100.9272682448618},{"$f":"[1]EJECUTIVO!$J67","v":1570.9470280459759},{"$f":"[6]EJECUTIVO!$I67","v":693.98658329500915},{"$f":"[6]EJECUTIVO!$J67","v":1130.0739327009258},{"$f":"[7]EJECUTIVO!$I67","v":16181.01},{"$f":"[7]EJECUTIVO!$J67","v":17304.623485772096},{"$f":"[8]EJECUTIVO!$I67","v":"n.d."},{"$f":"[8]EJECUTIVO!$J67","v":"n.d."}]
["         a) Banco Central",{"$f":"[3]EJECUTIVO!$I$68","v":2755.185148730428},{"$f":"[3]EJECUTIVO!$J68","v":5424.807182049507},{"$f":"[4]EJECUTIVO!$I68","v":0},{"$f":"[4]EJECUTIVO!$J68","v":1},{"$f":"[5]EJECUTIVO!$I68","v":5373.4103221764035},{"$f":"[5]EJECUTIVO!$J68","v":4933.6656863020662},{"$f":"[1]EJECUTIVO!$I68","v":1977.9188753684621},{"$f":"[1]EJECUTIVO!$J68","v":1483.200445687309},{"$f":"[6]EJECUTIVO!$I68","v":693.98658329500915},{"$f":"[6]EJECUTIVO!$J68","v":1130.0739327009258},{"$f":"[7]EJECUTIVO!$I68","v":16181.01},{"$f":"[7]EJECUTIVO!$J68","v":17304.623485772096},{"$f":"[8]EJECUTIVO!$I68","v":"n.d."},{"$f":"[8]EJECUTIVO!$J68","v":"n.d."}]
["         b) Resto del Sector Público Financiero",{"$f":"[3]EJECUTIVO!$I$69","v":"n.d."},{"$f":"[3]EJECUTIVO!$J69","v":"n.d."},{"$f":"[4]EJECUTIVO!$I69","v":6390.68},{"$f":"[4]EJECUTIVO!$J69","v":162.88439012044742},{"$f":"[5]EJECUTIVO!$I69","v":"n.d."},{"$f":"[5]EJECUTIVO!$J69","v":"n.d."},{"$f":"[1]EJECUTIVO!$I69","v":123.00839287639975},{"$f":"[1]EJECUTIVO!$J69","v":87.746582358666984},{"$f":"[6]EJECUTIVO!$I69","v":"n.d."},{"$f":"[6]EJECUTIVO!$J69","v":"n.d."},{"$f":"[7]EJECUTIVO!$I69","v":"n.d."},{"$f":"[7]EJECUTIVO!$J69","v":"n.d."},{"$f":"[8]EJECUTIVO!$I69","v":"n.d."},{"$f":"[8]EJECUTIVO!$J69","v":"n.d."}]
["   2.1.2 Deuda  Intragubernamental",{"$f":"[3]EJECUTIVO!$I$70","v":"n.d."},{"$f":"[3]EJECUTIVO!$J70","v":"n.d."},{"$f":"[4]EJECUTIVO!$I70","v":"n.d."},{"$f":"[4]EJECUTIVO!$J70","v":"n.d."},{"$f":"[5]EJECUTIVO!$I70","v":6649.0258062051253},{"$f":"[5]EJECUTIVO!$J70","v":6395.6212621150826},{"$f":"[1]EJECUTIVO!$I70","v":7972.792743481089},{"$f":"[1]EJECUTIVO!$J70","v":7487.1100261344618},{"$f":"[6]EJECUTIVO!$I70","v":"n.d."},{"$f":"[6]EJECUTIVO!$J70","v":"n.d."},{"$f":"[7]EJECUTIVO!$I70","v":2362.25},{"$f":"[7]EJECUTIVO!$J70","v":2285.9},{"$f":"[8]EJECUTIVO!$I70","v":"n.d."},{"$f":"[8]EJECUTIVO!$J70","v":"n.d."}]
["                     a) Deuda Intragubernamental SPNF",{"$f":"[3]EJECUTIVO!$I$71","v":"n.d."},{"$f":"[3]EJECUTIVO!$J71","v":"n.d."},{"$f":"[4]EJECUTIVO!$I71","v":"n.d."},{"$f":"[4]EJECUTIVO!$J71","v":"n.d."},{"$f":"[5]EJECUTIVO!$I71","v":3971.5014500357865},{"$f":"[5]EJECUTIVO!$J71","v":3895.0025464352971},{"$f":"[1]EJECUTIVO!$I71","v":4168.2318835228625},{"$f":"[1]EJECUTIVO!$J71","v":4217.8221000418143},{"$f":"[6]EJECUTIVO!$I71","v":"n.d."},{"$f":"[6]EJECUTIVO!$J71","v":"n.d."},{"$f":"[7]EJECUTIVO!$I71","v":2362.25},{"$f":"[7]EJECUTIVO!$J71","v":2285.9},{"$f":"[8]EJECUTIVO!$I71","v":"n.d."},{"$f":"[8]EJECUTIVO!$J71","v":"n.d."}]
["                     b) Deuda Intragubernamental del BC",{"$f":"[3]EJECUTIVO!$I$72","v":"n.d."},{"$f":"[3]EJECUTIVO!$J72","v":"n.d."},{"$f":"[4]EJECUTIVO!$I72","v":"n.d."},{"$f":"[4]EJECUTIVO!$J72","v":"n.d."},{"$f":"[5]EJECUTIVO!$I72","v":2677.5243561693383},{"$f":"[5]EJECUTIVO!$J72","v":2500.618715679786},{"$f":"[1]EJECUTIVO!$I72","v":3804.5608599582256},{"$f":"[1]EJECUTIVO!$J72","v":3269.287926092647},{"$f":"[6]EJECUTIVO!$I72","v":"n.d."},{"$f":"[6]EJECUTIVO!$J72","v":"n.d."},{"$f":"[7]EJECUTIVO!$I72","v":"n.d."},{"$f":"[7]EJECUTIVO!$J72","v":"n.d."},{"$f":"[8]EJECUTIVO!$I72","v":"n.d."},{"$f":"[8]EJECUTIVO!$J72","v":"n.d."}]
["   2.1.3 Saldo Deuda Interna Consolidada (2.1.1 - 2.1.2)",{"$f":"[3]EJECUTIVO!$I$73","v":"n.d."},{"$f":"[3]EJECUTIVO!$J73","v":"n.d."},{"$f":"[4]EJECUTIVO!$I73","v":"n.d."},{"$f":"[4]EJECUTIVO!$J73","v":"n.d."},{"$f":"[5]EJECUTIVO!$I73","v":14983.157360522755},{"$f":"[5]EJECUTIVO!$J73","v":14529.083808535817},{"$f":"[1]EJECUTIVO!$I73","v":5333.595421408153},{"$f":"[1]EJECUTIVO!$J73","v":4957.6093009753968},{"$f":"[6]EJECUTIVO!$I73","v":"n.d."},{"$f":"[6]EJECUTIVO!$J73","v":"n.d."},{"$f":"[7]EJECUTIVO!$I73","v":29315.73},{"$f":"[7]EJECUTIVO!$J73","v":30993.421673636956},{"$f":"[8]EJECUTIVO!$I73","v":"n.d."},{"$f":"[8]EJECUTIVO!$J73","v":"n.d."}]
["   2.1.4  Saldo Deuda Externa",{"$f":"[3]EJECUTIVO!$I74","v":14955.28},{"$f":"[3]EJECUTIVO!$J74","v":17227.84},{"$f":"[4]EJECUTIVO!$I74","v":11618.74},{"$f":"[4]EJECUTIVO!$J74","v":12088.614749999999},{"$f":"[5]EJECUTIVO!$I74","v":11090.863300000001},{"$f":"[5]EJECUTIVO!$J74","v":12446.909299999999},{"$f":"[1]EJECUTIVO!$I74","v":8998.4999999999982},{"$f":"[1]EJECUTIVO!$J74","v":9381.1999999999971},{"$f":"[6]EJECUTIVO!$I74","v":8043.0205501237333},{"$f":"[6]EJECUTIVO!$J74","v":8550.5943584445122},{"$f":"[7]EJECUTIVO!$I74","v":37448.839999999997},{"$f":"[7]EJECUTIVO!$J74","v":39952.870798006996},{"$f":"[8]EJECUTIVO!$I74","v":36797.22},{"$f":"[8]EJECUTIVO!$J74","v":39889.620000000003}]
["2.1.4.1 Sector Público No Financiero",{"$f":"[3]EJECUTIVO!$I75","v":13698.460000000001},{"$f":"[3]EJECUTIVO!$J75","v":14878.51},{"$f":"[4]EJECUTIVO!$I75","v":11123.6},{"$f":"[4]EJECUTIVO!$J75","v":11535.020229999998},{"$f":"[5]EJECUTIVO!$I75","v":11090.863300000001},{"$f":"[5]EJECUTIVO!$J75","v":12446.909299999999},{"$f":"[1]EJECUTIVO!$I75","v":8364.5999999999985},{"$f":"[1]EJECUTIVO!$J75","v":8684.4999999999982},{"$f":"[6]EJECUTIVO!$I75","v":6209.6835772699169},{"$f":"[6]EJECUTIVO!$J75","v":6757.1693207115022},{"$f":"[7]EJECUTIVO!$I75","v":36357.549999999996},{"$f":"[7]EJECUTIVO!$J75","v":38854.090798006997},{"$f":"[8]EJECUTIVO!$I75","v":36797.22},{"$f":"[8]EJECUTIVO!$J75","v":39889.620000000003}]
["         a) Gobierno Central",{"$f":"[3]EJECUTIVO!$I76","v":11628.53},{"$f":"[3]EJECUTIVO!$J76","v":12804.36},{"$f":"[4]EJECUTIVO!$I76","v":10642.81},{"$f":"[4]EJECUTIVO!$J76","v":11009.508559999998},{"$f":"[5]EJECUTIVO!$I76","v":11069.298000000001},{"$f":"[5]EJECUTIVO!$J76","v":12429.2138},{"$f":"[1]EJECUTIVO!$I76","v":8162.1999999999989},{"$f":"[1]EJECUTIVO!$J76","v":8513.8999999999978},{"$f":"[6]EJECUTIVO!$I76","v":6170.8578926904665},{"$f":"[6]EJECUTIVO!$J76","v":6721.3129126726199},{"$f":"[7]EJECUTIVO!$I76","v":36351.599999999999},{"$f":"[7]EJECUTIVO!$J76","v":38848.125189574996},{"$f":"[8]EJECUTIVO!$I76","v":36785.25},{"$f":"[8]EJECUTIVO!$J76","v":39879.89}]
["         b) Resto del Sector Público No Financiero",{"$f":"[3]EJECUTIVO!$I77","v":2069.9300000000003},{"$f":"[3]EJECUTIVO!$J77","v":2074.15},{"$f":"[4]EJECUTIVO!$I77","v":480.79},{"$f":"[4]EJECUTIVO!$J77","v":525.51166999999998},{"$f":"[5]EJECUTIVO!$I77","v":21.565300000000001},{"$f":"[5]EJECUTIVO!$J77","v":17.695499999999999},{"$f":"[1]EJECUTIVO!$I77","v":202.4},{"$f":"[1]EJECUTIVO!$J77","v":170.6},{"$f":"[6]EJECUTIVO!$I77","v":38.825684579450318},{"$f":"[6]EJECUTIVO!$J77","v":35.856408038882151},{"$f":"[7]EJECUTIVO!$I77","v":5.95},{"$f":"[7]EJECUTIVO!$J77","v":5.9656084320000007},{"$f":"[8]EJECUTIVO!$I77","v":11.97},{"$f":"[8]EJECUTIVO!$J77","v":9.73}]
["2.1.4.2 Sector Público Financiero",{"$f":"[3]EJECUTIVO!$I78","v":1256.8200000000002},{"$f":"[3]EJECUTIVO!$J78","v":2349.33},{"$f":"[4]EJECUTIVO!$I78","v":495.14},{"$f":"[4]EJECUTIVO!$J78","v":553.5945200000001},{"$f":"[5]EJECUTIVO!$I78","v":"n.d."},{"$f":"[5]EJECUTIVO!$J78","v":"n.d."},{"$f":"[1]EJECUTIVO!$I78","v":633.9},{"$f":"[1]EJECUTIVO!$J78","v":696.69999999999982},{"$f":"[6]EJECUTIVO!$I78","v":1833.3369728538162},{"$f":"[6]EJECUTIVO!$J78","v":1793.4250377330102},{"$f":"[7]EJECUTIVO!$I78","v":1091.29},{"$f":"[7]EJECUTIVO!$J78","v":1098.78},{"$f":"[8]EJECUTIVO!$I78","v":0},{"$f":"[8]EJECUTIVO!$J78","v":0}]
["         a) Banco Central",{"$f":"[3]EJECUTIVO!$I79","v":656.88},{"$f":"[3]EJECUTIVO!$J79","v":1773.13},{"$f":"[4]EJECUTIVO!$I79","v":85.97},{"$f":"[4]EJECUTIVO!$J79","v":6.9240700000000004},{"$f":"[5]EJECUTIVO!$I79","v":0},{"$f":"[5]EJECUTIVO!$J79","v":0},{"$f":"[1]EJECUTIVO!$I79","v":617.4},{"$f":"[1]EJECUTIVO!$J79","v":679.89999999999986},{"$f":"[6]EJECUTIVO!$I79","v":1833.3369728538162},{"$f":"[6]EJECUTIVO!$J79","v":1793.4250377330102},{"$f":"[7]EJECUTIVO!$I79","v":1091.29},{"$f":"[7]EJECUTIVO!$J79","v":1098.78},{"$f":"[8]EJECUTIVO!$I79","v":0},{"$f":"[8]EJECUTIVO!$J79","v":0}]
["         b) Resto del Sector Público Financiero",{"$f":"[3]EJECUTIVO!$I80","v":599.94000000000005},{"$f":"[3]EJECUTIVO!$J80","v":576.20000000000005},{"$f":"[4]EJECUTIVO!$I80","v":409.17},{"$f":"[4]EJECUTIVO!$J80","v":546.67045000000007},{"$f":"[5]EJECUTIVO!$I80","v":"n.d."},{"$f":"[5]EJECUTIVO!$J80","v":"n.d."},{"$f":"[1]EJECUTIVO!$I80","v":16.5},{"$f":"[1]EJECUTIVO!$J80","v":16.8},{"$f":"[6]EJECUTIVO!$I80","v":0},{"$f":"[6]EJECUTIVO!$J80","v":0},{"$f":"[7]EJECUTIVO!$I80","v":"n.d."},{"$f":"[7]EJECUTIVO!$J80","v":"n.d."},{"$f":"[8]EJECUTIVO!$I80","v":0},{"$f":"[8]EJECUTIVO!$J80","v":0}]
["2.2 Relación Deuda Pública Total/PIB h/",{"$f":"[3]EJECUTIVO!$I81","v":76.114068814452736},{"$f":"[3]EJECUTIVO!$J81","v":74.141075386747133},{"$f":"[4]EJECUTIVO!$I81","v":78.027536334929891},{"$f":"[4]EJECUTIVO!$J81","v":57.628539777976314},{"$f":"[5]EJECUTIVO!$I81","v":27.445727431650997},{"$f":"[5]EJECUTIVO!$J81","v":25.46215241066535},{"$f":"[1]EJECUTIVO!$I81","v":45.186425575587933},{"$f":"[1]EJECUTIVO!$J81","v":41.498880098770016},{"$f":"[6]EJECUTIVO!$I81","v":60.314513697948371},{"$f":"[6]EJECUTIVO!$J81","v":59.151167889978275},{"$f":"[7]EJECUTIVO!$I81","v":58.56305600015321},{"$f":"[7]EJECUTIVO!$J81","v":59.026386024986188},{"$f":"[8]EJECUTIVO!$I81","v":57.235758572038783},{"$f":"[8]EJECUTIVO!$J81","v":60.699431766700762}]
["   2.2.1.a Deuda Interna/PIB (bruta)",{"$f":"[3]EJECUTIVO!$I82","v":54.51566923544231},{"$f":"[3]EJECUTIVO!$J82","v":54.224023376325981},{"$f":"[4]EJECUTIVO!$I82","v":42.265143799184401},{"$f":"[4]EJECUTIVO!$J82","v":22.967037808151627},{"$f":"[5]EJECUTIVO!$I82","v":22.770212951639923},{"$f":"[5]EJECUTIVO!$J82","v":19.7504509848258},{"$f":"[1]EJECUTIVO!$I82","v":41.952561772267096},{"$f":"[1]EJECUTIVO!$J82","v":36.017071179225951},{"$f":"[6]EJECUTIVO!$I82","v":8.9923723431332903},{"$f":"[6]EJECUTIVO!$J82","v":10.060104481932933},{"$f":"[7]EJECUTIVO!$I82","v":27.786583763090718},{"$f":"[7]EJECUTIVO!$J82","v":27.687959713228221},{"$f":"[8]EJECUTIVO!$I82","v":9.6061327776123839},{"$f":"[8]EJECUTIVO!$J82","v":9.0670618843599939}]
["   2.2.1.b Deuda Interna/PIB (consolidada)",{"$f":"[3]EJECUTIVO!$I83","v":"n.d."},{"$f":"[3]EJECUTIVO!$J83","v":"n.d."},{"$f":"[4]EJECUTIVO!$I83","v":"n.d."},{"$f":"[4]EJECUTIVO!$J83","v":"n.d."},{"$f":"[5]EJECUTIVO!$I83","v":15.771393999278907},{"$f":"[5]EJECUTIVO!$J83","v":13.71373965109782},{"$f":"[1]EJECUTIVO!$I83","v":16.815832261328666},{"$f":"[1]EJECUTIVO!$J83","v":14.348139349599268},{"$f":"[6]EJECUTIVO!$I83","v":"n.d."},{"$f":"[6]EJECUTIVO!$J83","v":"n.d."},{"$f":"[7]EJECUTIVO!$I83","v":25.714518009707422},{"$f":"[7]EJECUTIVO!$J83","v":25.786120855779192},{"$f":"[8]EJECUTIVO!$I83","v":"n.d."},{"$f":"[8]EJECUTIVO!$J83","v":"n.d."}]
["   2.2.2    Deuda Externa/PIB",{"$f":"[3]EJECUTIVO!$I84","v":21.59839957901043},{"$f":"[3]EJECUTIVO!$J84","v":19.917052010421159},{"$f":"[4]EJECUTIVO!$I84","v":35.762392535745498},{"$f":"[4]EJECUTIVO!$J84","v":34.661501969824691},{"$f":"[5]EJECUTIVO!$I84","v":11.674333432372084},{"$f":"[5]EJECUTIVO!$J84","v":11.748412759567529},{"$f":"[1]EJECUTIVO!$I84","v":28.370593314259267},{"$f":"[1]EJECUTIVO!$J84","v":27.150740749170748},{"$f":"[6]EJECUTIVO!$I84","v":51.322141354815074},{"$f":"[6]EJECUTIVO!$J84","v":49.091063408045329},{"$f":"[7]EJECUTIVO!$I84","v":32.848537990445799},{"$f":"[7]EJECUTIVO!$J84","v":33.240265169206992},{"$f":"[8]EJECUTIVO!$I84","v":47.629625794426396},{"$f":"[8]EJECUTIVO!$J84","v":51.632369882340768}]
[]
["IV. SECTOR MONEDA Y CREDITO  i/"]
["1. Principales variables monetarias, tasas de variación",{"$f":"IF([3]EJECUTIVO!$J$100=[3]EJECUTIVO!$J$4,[3]EJECUTIVO!$G$101,CONCATENATE([3]EJECUTIVO!$G$101,\"\n\",[3]EJECUTIVO!$I$99,\"          \",[3]EJECUTIVO!$J$99))","v":"SEPTIEMBRE\n2022          2023"},null,{"$f":"IF([4]EJECUTIVO!$J$100=[4]EJECUTIVO!$J$4,[4]EJECUTIVO!$G$101,CONCATENATE([4]EJECUTIVO!$G$101,\"\n\",[4]EJECUTIVO!$I$99,\"          \",[4]EJECUTIVO!$J$99))","v":"NOVIEMBRE\n2022          2023"},null,{"$f":"IF([5]EJECUTIVO!$J$100=[5]EJECUTIVO!$J$4,[5]EJECUTIVO!$G$101,CONCATENATE([5]EJECUTIVO!$G$101,\"\n\",[5]EJECUTIVO!$I$99,\"          \",[5]EJECUTIVO!$J$99))","v":"DICIEMBRE\n2022          2023"},null,{"$f":"IF([1]EJECUTIVO!$J$100=[1]EJECUTIVO!$J$4,[1]EJECUTIVO!$G$101,CONCATENATE([1]EJECUTIVO!$G$101,\"\n\",[1]EJECUTIVO!$I$99,\"          \",[1]EJECUTIVO!$J$99))","v":"OCTUBRE\n2022          2023"},null,{"$f":"IF([6]EJECUTIVO!$J$100=[6]EJECUTIVO!$J$4,[6]EJECUTIVO!$G$101,CONCATENATE([6]EJECUTIVO!$G$101,\"\n\",[6]EJECUTIVO!$I$99,\"          \",[6]EJECUTIVO!$J$99))","v":"AGOSTO\n2022          2023"},null,{"$f":"IF([7]EJECUTIVO!$J$100=[7]EJECUTIVO!$J$4,[7]EJECUTIVO!$G$101,CONCATENATE([7]EJECUTIVO!$G$101,\"\n\",[7]EJECUTIVO!$I$99,\"          \",[7]EJECUTIVO!$J$99))","v":"DICIEMBRE\n2022          2023"},null,{"$f":"IF([8]EJECUTIVO!$J$100=[8]EJECUTIVO!$J$4,[8]EJECUTIVO!$G$101,CONCATENATE([8]EJECUTIVO!$G$101,\"\n\",[8]EJECUTIVO!$I$99,\"          \",[8]EJECUTIVO!$J$99))","v":"NOVIEMBRE\n2022          2023"}]
["1.1  Base Monetaria Restringida, tasa interanual ponderada para los componentes",{"$f":"[3]EJECUTIVO!$I100","v":15.354998789415397},{"$f":"[3]EJECUTIVO!$J100","v":9.5949326926651359},{"$f":"[4]EJECUTIVO!$I100","v":-20.410685274068118},{"$f":"[4]EJECUTIVO!$J100","v":8.1630729760442833},{"$f":"[5]EJECUTIVO!$I100","v":7.0442831773402048},{"$f":"[5]EJECUTIVO!$J100","v":10.204861270129161},{"$f":"[1]EJECUTIVO!$I100","v":-10.220722745368271},{"$f":"[1]EJECUTIVO!$J100","v":-0.91999648704566006},{"$f":"[6]EJECUTIVO!$I100","v":13.010314858995532},{"$f":"[6]EJECUTIVO!$J100","v":19.980991179227313},{"$f":"[7]EJECUTIVO!$I100","v":13.125362237103833},{"$f":"[7]EJECUTIVO!$J100","v":3.3420346298443038},{"$f":"[8]EJECUTIVO!$I100","v":-11.426731880077877},{"$f":"[8]EJECUTIVO!$J100","v":-5.9786744542782655}]
["     1.1.1 Billetes y monedas en circulación",{"$f":"[3]EJECUTIVO!$I101","v":0.48355480640115678},{"$f":"[3]EJECUTIVO!$J101","v":-1.512757255794557},{"$f":"[4]EJECUTIVO!$I101","v":2.5487595915285074E-3},{"$f":"[4]EJECUTIVO!$J101","v":0},{"$f":"[5]EJECUTIVO!$I101","v":7.6889444432659033},{"$f":"[5]EJECUTIVO!$J101","v":9.372279090953036},{"$f":"[1]EJECUTIVO!$I101","v":8.5155767490388286},{"$f":"[1]EJECUTIVO!$J101","v":-1.5306259597513665},{"$f":"[6]EJECUTIVO!$I101","v":11.639391147342959},{"$f":"[6]EJECUTIVO!$J101","v":15.191779549171171},{"$f":"[7]EJECUTIVO!$I101","v":2.0189868720842474},{"$f":"[7]EJECUTIVO!$J101","v":7.2043463669016372},{"$f":"[8]EJECUTIVO!$I101","v":-11.426731880077877},{"$f":"[8]EJECUTIVO!$J101","v":-5.9786744542782655}]
["     1.1.2 Depósitos transferibles por concepto de encaje en MN",{"$f":"[3]EJECUTIVO!$I102","v":14.871443983014254},{"$f":"[3]EJECUTIVO!$J102","v":11.107689948459692},{"$f":"[4]EJECUTIVO!$I102","v":-20.413234033659649},{"$f":"[4]EJECUTIVO!$J102","v":8.1630729760442815},{"$f":"[5]EJECUTIVO!$I102","v":-0.79024781554189438},{"$f":"[5]EJECUTIVO!$J102","v":0.69828370775534188},{"$f":"[1]EJECUTIVO!$I102","v":-19.929681668462415},{"$f":"[1]EJECUTIVO!$J102","v":4.5694955707281553},{"$f":"[6]EJECUTIVO!$I102","v":1.3709237116525588},{"$f":"[6]EJECUTIVO!$J102","v":4.7892116300561511},{"$f":"[7]EJECUTIVO!$I102","v":11.106375365019593},{"$f":"[7]EJECUTIVO!$J102","v":-3.862311737057321},{"$f":"[8]EJECUTIVO!$I102","v":"n.a."},{"$f":"[8]EJECUTIVO!$J102","v":"n.a."}]
["     1.1.3 Valores por concepto de encaje en MN  j/",{"$f":"[3]EJECUTIVO!$I103","v":"n.a."},{"$f":"[3]EJECUTIVO!$J103","v":"n.a."},{"$f":"[4]EJECUTIVO!$I103","v":"n.d."},{"$f":"[4]EJECUTIVO!$J103","v":"n.d."},{"$f":"[5]EJECUTIVO!$I103","v":0.14558654961620562},{"$f":"[5]EJECUTIVO!$J103","v":0.13429847142078263},{"$f":"[1]EJECUTIVO!$I103","v":1.1933821740553012},{"$f":"[1]EJECUTIVO!$J103","v":-3.9588660980224399},{"$f":"[6]EJECUTIVO!$I103","v":"n.a."},{"$f":"[6]EJECUTIVO!$J103","v":"n.a."},{"$f":"[7]EJECUTIVO!$I103","v":"n.a."},{"$f":"[7]EJECUTIVO!$J103","v":"n.a."},{"$f":"[8]EJECUTIVO!$I103","v":"n.a."},{"$f":"[8]EJECUTIVO!$J103","v":"n.a."}]
["1.2.  Agregados monetarios, tasa interanual ponderada para los componentes"]
["     1.2.1  Agregado Monetario M1, tasa de variación interanual",{"$f":"[3]EJECUTIVO!$I104","v":-8.0481621548330935},{"$f":"[3]EJECUTIVO!$J104","v":8.6669400424589149},{"$f":"[4]EJECUTIVO!$I104","v":-1.8940568136143976},{"$f":"[4]EJECUTIVO!$J104","v":-1.9054825427471944},{"$f":"[5]EJECUTIVO!$I104","v":11.374714134559326},{"$f":"[5]EJECUTIVO!$J104","v":8.426071089710474},{"$f":"[1]EJECUTIVO!$I104","v":26.332192722478219},{"$f":"[1]EJECUTIVO!$J104","v":6.1000766316648525},{"$f":"[6]EJECUTIVO!$I104","v":17.514263858080259},{"$f":"[6]EJECUTIVO!$J104","v":24.399000289221462},{"$f":"[7]EJECUTIVO!$I104","v":10.229344277136953},{"$f":"[7]EJECUTIVO!$J104","v":9.0143147979033778},{"$f":"[8]EJECUTIVO!$I104","v":-4.2365776187040733},{"$f":"[8]EJECUTIVO!$J104","v":0.35741829261006774}]
["             1.2.1.1 Billetes y monedas en poder del público",{"$f":"[3]EJECUTIVO!$I105","v":-0.53679011181699421},{"$f":"[3]EJECUTIVO!$J105","v":0.28606697862692843},{"$f":"[4]EJECUTIVO!$I105","v":9.468793537228703E-4},{"$f":"[4]EJECUTIVO!$J105","v":4.6563547574364462E-4},{"$f":"[5]EJECUTIVO!$I105","v":5.2856963977816935},{"$f":"[5]EJECUTIVO!$J105","v":5.8890652075076488},{"$f":"[1]EJECUTIVO!$I105","v":6.7298204057573843},{"$f":"[1]EJECUTIVO!$J105","v":-0.69981935937608897},{"$f":"[6]EJECUTIVO!$I105","v":8.4879126828065523},{"$f":"[6]EJECUTIVO!$J105","v":11.416350152100351},{"$f":"[7]EJECUTIVO!$I105","v":0.35028850908562653},{"$f":"[7]EJECUTIVO!$J105","v":2.9354894423181261},{"$f":"[8]EJECUTIVO!$I105","v":"n.a."},{"$f":"[8]EJECUTIVO!$J105","v":"n.a."}]
["             1.2.1.2 Depósitos transferibles en MN",{"$f":"[3]EJECUTIVO!$I106","v":-7.5113720430160935},{"$f":"[3]EJECUTIVO!$J106","v":8.3808730638319666},{"$f":"[4]EJECUTIVO!$I106","v":-1.895003692968124},{"$f":"[4]EJECUTIVO!$J106","v":-1.9059481782229297},{"$f":"[5]EJECUTIVO!$I106","v":6.089017736777647},{"$f":"[5]EJECUTIVO!$J106","v":2.5370058822028247},{"$f":"[1]EJECUTIVO!$I106","v":19.602372316720846},{"$f":"[1]EJECUTIVO!$J106","v":6.7998959910409491},{"$f":"[6]EJECUTIVO!$I106","v":9.026351175273712},{"$f":"[6]EJECUTIVO!$J106","v":12.982650137121123},{"$f":"[7]EJECUTIVO!$I106","v":9.8790557680513338},{"$f":"[7]EJECUTIVO!$J106","v":6.0788253555852458},{"$f":"[8]EJECUTIVO!$I106","v":-4.2365776187040733},{"$f":"[8]EJECUTIVO!$J106","v":0.35741829261006774}]
["     1.2.2  Agregado Monetario M2, tasa de variación interanual",{"$f":"[3]EJECUTIVO!$I107","v":-4.7831275722188931},{"$f":"[3]EJECUTIVO!$J107","v":11.102083820677656},{"$f":"[4]EJECUTIVO!$I107","v":5.0080159690382375},{"$f":"[4]EJECUTIVO!$J107","v":8.795416749135665},{"$f":"[5]EJECUTIVO!$I107","v":10.361669647555093},{"$f":"[5]EJECUTIVO!$J107","v":6.8729325159499366},{"$f":"[1]EJECUTIVO!$I107","v":14.836190630937418},{"$f":"[1]EJECUTIVO!$J107","v":12.558793417454005},{"$f":"[6]EJECUTIVO!$I107","v":17.514263858080259},{"$f":"[6]EJECUTIVO!$J107","v":24.399000289221462},{"$f":"[7]EJECUTIVO!$I107","v":6.9947261028695529},{"$f":"[7]EJECUTIVO!$J107","v":16.880457887353593},{"$f":"[8]EJECUTIVO!$I107","v":1.2942888897609972},{"$f":"[8]EJECUTIVO!$J107","v":2.8653465451713878}]
["             1.2.2.1 Otros depósitos en MN",{"$f":"[3]EJECUTIVO!$I108","v":0.14130513194169286},{"$f":"[3]EJECUTIVO!$J108","v":0.19808669799818915},{"$f":"[4]EJECUTIVO!$I108","v":5.3521542907374897},{"$f":"[4]EJECUTIVO!$J108","v":6.5285856305858783},{"$f":"[5]EJECUTIVO!$I108","v":5.8820497285204683},{"$f":"[5]EJECUTIVO!$J108","v":3.6046336626569722},{"$f":"[1]EJECUTIVO!$I108","v":6.4200806561829111},{"$f":"[1]EJECUTIVO!$J108","v":10.638751247806436},{"$f":"[6]EJECUTIVO!$I108","v":"n.a."},{"$f":"[6]EJECUTIVO!$J108","v":"n.a."},{"$f":"[7]EJECUTIVO!$I108","v":23.538936801556478},{"$f":"[7]EJECUTIVO!$J108","v":12.832828518962758},{"$f":"[8]EJECUTIVO!$I108","v":2.3580045323405066},{"$f":"[8]EJECUTIVO!$J108","v":2.7805063121549156}]
["             1.2.2.2 Valores distintos de acciones emitidos por las sociedades de depósitos en MN",{"$f":"[3]EJECUTIVO!$I109","v":0.93193585885639696},{"$f":"[3]EJECUTIVO!$J109","v":4.8136229291455939},{"$f":"[4]EJECUTIVO!$I109","v":0.22760508724332992},{"$f":"[4]EJECUTIVO!$J109","v":2.8042166925084624},{"$f":"[5]EJECUTIVO!$I109","v":-0.79051282488909691},{"$f":"[5]EJECUTIVO!$J109","v":-0.67150429054919736},{"$f":"[1]EJECUTIVO!$I109","v":1.2619732266274661},{"$f":"[1]EJECUTIVO!$J109","v":9.6815102300594452E-2},{"$f":"[6]EJECUTIVO!$I109","v":"n.a."},{"$f":"[6]EJECUTIVO!$J109","v":"n.a."},{"$f":"[7]EJECUTIVO!$I109","v":-20.966303272172041},{"$f":"[7]EJECUTIVO!$J109","v":3.2980122087498551E-2},{"$f":"[8]EJECUTIVO!$I109","v":0},{"$f":"[8]EJECUTIVO!$J109","v":0}]
["             1.2.2.3 Agregado Monetario M1",{"$f":"[3]EJECUTIVO!$I110","v":-5.8563685630169777},{"$f":"[3]EJECUTIVO!$J110","v":6.0903741935338598},{"$f":"[4]EJECUTIVO!$I110","v":-0.57174340894258657},{"$f":"[4]EJECUTIVO!$J110","v":-0.53738557395867459},{"$f":"[5]EJECUTIVO!$I110","v":5.2701327439237113},{"$f":"[5]EJECUTIVO!$J110","v":3.9398031438421799},{"$f":"[1]EJECUTIVO!$I110","v":7.1541367481270619},{"$f":"[1]EJECUTIVO!$J110","v":1.8232270673469888},{"$f":"[6]EJECUTIVO!$I110","v":17.514263858080259},{"$f":"[6]EJECUTIVO!$J110","v":24.399000289221462},{"$f":"[7]EJECUTIVO!$I110","v":4.4220925734851226},{"$f":"[7]EJECUTIVO!$J110","v":4.0146492463033345},{"$f":"[8]EJECUTIVO!$I110","v":-1.0637156425795222},{"$f":"[8]EJECUTIVO!$J110","v":8.4840233016467578E-2}]
["     1.2.3  Agregado Monetario M3, tasa de variación interanual  k/",{"$f":"[3]EJECUTIVO!$I111","v":0.74974648265042632},{"$f":"[3]EJECUTIVO!$J111","v":-0.5543108091387805},{"$f":"[4]EJECUTIVO!$I111","v":5.0080159690382375},{"$f":"[4]EJECUTIVO!$J111","v":8.795416749135665},{"$f":"[5]EJECUTIVO!$I111","v":7.0083748329928364},{"$f":"[5]EJECUTIVO!$J111","v":5.7234548831651244},{"$f":"[1]EJECUTIVO!$I111","v":13.750654499216374},{"$f":"[1]EJECUTIVO!$J111","v":10.271413572929777},{"$f":"[6]EJECUTIVO!$I111","v":14.25718126085258},{"$f":"[6]EJECUTIVO!$J111","v":15.324362254715606},{"$f":"[7]EJECUTIVO!$I111","v":5.5682071599166383},{"$f":"[7]EJECUTIVO!$J111","v":14.305940180350408},{"$f":"[8]EJECUTIVO!$I111","v":1.2942888897609972},{"$f":"[8]EJECUTIVO!$J111","v":2.8653465451713878}]
["             1.2.3.1 Depósitos transferibles en ME",{"$f":"[3]EJECUTIVO!$I112","v":3.0562095248914094},{"$f":"[3]EJECUTIVO!$J112","v":-6.180450864881311},{"$f":"[4]EJECUTIVO!$I112","v":"n.a."},{"$f":"[4]EJECUTIVO!$J112","v":"n.a."},{"$f":"[5]EJECUTIVO!$I112","v":-0.32926126676510487},{"$f":"[5]EJECUTIVO!$J112","v":0.1091878489982686},{"$f":"[1]EJECUTIVO!$I112","v":0.9258396258579078},{"$f":"[1]EJECUTIVO!$J112","v":-0.57852810644299546},{"$f":"[6]EJECUTIVO!$I112","v":3.0351242092719284},{"$f":"[6]EJECUTIVO!$J112","v":2.1827595553100583},{"$f":"[7]EJECUTIVO!$I112","v":-3.6048475301117303E-8},{"$f":"[7]EJECUTIVO!$J112","v":"n.a."},{"$f":"[8]EJECUTIVO!$I112","v":"n.a."},{"$f":"[8]EJECUTIVO!$J112","v":"n.a."}]
["             1.2.3.2 Otros depósitos en ME",{"$f":"[3]EJECUTIVO!$I113","v":7.4591785965628279E-2},{"$f":"[3]EJECUTIVO!$J113","v":-3.8935142865966575E-2},{"$f":"[4]EJECUTIVO!$I113","v":"n.a."},{"$f":"[4]EJECUTIVO!$J113","v":"n.a."},{"$f":"[5]EJECUTIVO!$I113","v":-1.0234296733533639},{"$f":"[5]EJECUTIVO!$J113","v":-7.1255180403057311E-2},{"$f":"[1]EJECUTIVO!$I113","v":1.1401919271493337},{"$f":"[1]EJECUTIVO!$J113","v":0.91950226561830972},{"$f":"[6]EJECUTIVO!$I113","v":6.8235317422890835},{"$f":"[6]EJECUTIVO!$J113","v":6.8393716961201676},{"$f":"[7]EJECUTIVO!$I113","v":0.4784191430749003},{"$f":"[7]EJECUTIVO!$J113","v":1.8567118373557554},{"$f":"[8]EJECUTIVO!$I113","v":"n.a."},{"$f":"[8]EJECUTIVO!$J113","v":"n.a."}]
["             1.2.3.3 Valores distintos de acciones emitidos por las sociedades de depósito en ME",{"$f":"[3]EJECUTIVO!$I114","v":0.64189782762054226},{"$f":"[3]EJECUTIVO!$J114","v":-0.96615086175570297},{"$f":"[4]EJECUTIVO!$I114","v":"n.a."},{"$f":"[4]EJECUTIVO!$J114","v":"n.a."},{"$f":"[5]EJECUTIVO!$I114","v":-8.9121755037626094E-2},{"$f":"[5]EJECUTIVO!$J114","v":-9.5161109811853481E-2},{"$f":"[1]EJECUTIVO!$I114","v":-5.5596426482660069E-2},{"$f":"[1]EJECUTIVO!$J114","v":-0.10246320971113766},{"$f":"[6]EJECUTIVO!$I114","v":"n.a."},{"$f":"[6]EJECUTIVO!$J114","v":"n.a."},{"$f":"[7]EJECUTIVO!$I114","v":"n.a."},{"$f":"[7]EJECUTIVO!$J114","v":"n.a."},{"$f":"[8]EJECUTIVO!$I114","v":"n.a."},{"$f":"[8]EJECUTIVO!$J114","v":"n.a."}]
["             1.2.3.4 Agregado Monetario M2",{"$f":"[3]EJECUTIVO!$I115","v":-3.0229526558271766},{"$f":"[3]EJECUTIVO!$J115","v":6.6312260603642255},{"$f":"[4]EJECUTIVO!$I115","v":5.0080159690382375},{"$f":"[4]EJECUTIVO!$J115","v":8.795416749135665},{"$f":"[5]EJECUTIVO!$I115","v":8.4501875281489269},{"$f":"[5]EJECUTIVO!$J115","v":5.7806833243817701},{"$f":"[1]EJECUTIVO!$I115","v":11.740219372691758},{"$f":"[1]EJECUTIVO!$J115","v":10.032902623465597},{"$f":"[6]EJECUTIVO!$I115","v":4.3985253092915491},{"$f":"[6]EJECUTIVO!$J115","v":6.3022310032853825},{"$f":"[7]EJECUTIVO!$I115","v":5.089788052890202},{"$f":"[7]EJECUTIVO!$J115","v":12.449228342994651},{"$f":"[8]EJECUTIVO!$I115","v":1.2942888897609972},{"$f":"[8]EJECUTIVO!$J115","v":2.8653465451713878}]
["1.3.  Titulos emitidos por el Banco Central, tasa de variación interanual",{"$f":"[3]EJECUTIVO!$I116","v":-10.991114522257961},{"$f":"[3]EJECUTIVO!$J116","v":55.851018272045707},{"$f":"[4]EJECUTIVO!$I116","v":1773.0205535443185},{"$f":"[4]EJECUTIVO!$J116","v":-58.05747669305601},{"$f":"[5]EJECUTIVO!$I116","v":-2.3505469336165929},{"$f":"[5]EJECUTIVO!$J116","v":-9.4769419187534236},{"$f":"[1]EJECUTIVO!$I116","v":38.049551839623796},{"$f":"[1]EJECUTIVO!$J116","v":-18.236758608098171},{"$f":"[6]EJECUTIVO!$I116","v":-9.4598308576549055},{"$f":"[6]EJECUTIVO!$J116","v":-14.754323973766004},{"$f":"[7]EJECUTIVO!$I116","v":18.75689104721403},{"$f":"[7]EJECUTIVO!$J116","v":10.626797721107973},{"$f":"[8]EJECUTIVO!$I116","v":0.61632447096011678},{"$f":"[8]EJECUTIVO!$J116","v":6.2727987250776884E-2}]
["     1.3.1 Títulos emitidos por el BC en MN",{"$f":"[3]EJECUTIVO!$I117","v":-13.748436441918299},{"$f":"[3]EJECUTIVO!$J117","v":56.293470952010409},{"$f":"[4]EJECUTIVO!$I117","v":-68.025224804390973},{"$f":"[4]EJECUTIVO!$J117","v":0},{"$f":"[5]EJECUTIVO!$I117","v":-2.455130338497975},{"$f":"[5]EJECUTIVO!$J117","v":-9.4776921771270661},{"$f":"[1]EJECUTIVO!$I117","v":35.035217218354582},{"$f":"[1]EJECUTIVO!$J117","v":-18.937598579561389},{"$f":"[6]EJECUTIVO!$I117","v":"n.a."},{"$f":"[6]EJECUTIVO!$J117","v":"n.a."},{"$f":"[7]EJECUTIVO!$I117","v":18.75689104721403},{"$f":"[7]EJECUTIVO!$J117","v":10.626797721107973},{"$f":"[8]EJECUTIVO!$I117","v":0.61632447096011678},{"$f":"[8]EJECUTIVO!$J117","v":6.2727987250776884E-2}]
["     1.3.2 Títulos emitidos por el BC en ME",{"$f":"[3]EJECUTIVO!$I118","v":"n.d."},{"$f":"[3]EJECUTIVO!$J118","v":-0.44245267996469173},{"$f":"[4]EJECUTIVO!$I118","v":1841.0457783487095},{"$f":"[4]EJECUTIVO!$J118","v":-58.057476693056003},{"$f":"[5]EJECUTIVO!$I118","v":0.104583404881384},{"$f":"[5]EJECUTIVO!$J118","v":7.502583736533555E-4},{"$f":"[1]EJECUTIVO!$I118","v":3.0143346212692013},{"$f":"[1]EJECUTIVO!$J118","v":0.70083997146323429},{"$f":"[6]EJECUTIVO!$I118","v":-9.4598308576549055},{"$f":"[6]EJECUTIVO!$J118","v":-14.754323973766004},{"$f":"[7]EJECUTIVO!$I118","v":"n.d."},{"$f":"[7]EJECUTIVO!$J118","v":"n.d."},{"$f":"[8]EJECUTIVO!$I118","v":"n.a."},{"$f":"[8]EJECUTIVO!$J118","v":"n.a."}]
["1.4.  Saldo de los créditos de las Otras Sociedades de Depósito, tasa de variación interanual",{"$f":"[3]EJECUTIVO!$I119","v":3.4099588092951327},{"$f":"[3]EJECUTIVO!$J119","v":0.43250701918862156},{"$f":"[4]EJECUTIVO!$I119","v":9.5409532440152276},{"$f":"[4]EJECUTIVO!$J119","v":8.0350968165991752},{"$f":"[5]EJECUTIVO!$I119","v":9.6689259359056035},{"$f":"[5]EJECUTIVO!$J119","v":8.3468547726310405},{"$f":"[1]EJECUTIVO!$I119","v":16.703443078363556},{"$f":"[1]EJECUTIVO!$J119","v":12.746093403847736},{"$f":"[6]EJECUTIVO!$I119","v":13.191231735191057},{"$f":"[6]EJECUTIVO!$J119","v":7.0367829881487154},{"$f":"[7]EJECUTIVO!$I119","v":14.446737057358238},{"$f":"[7]EJECUTIVO!$J119","v":15.357626766954846},{"$f":"[8]EJECUTIVO!$I119","v":9.8215881146232356},{"$f":"[8]EJECUTIVO!$J119","v":5.5234249726302975}]
["     1.4.1 Al Sector Público neto",{"$f":"[3]EJECUTIVO!$I120","v":-1.6791297167884942},{"$f":"[3]EJECUTIVO!$J120","v":0.46004576666177815},{"$f":"[4]EJECUTIVO!$I120","v":1.4901373216174179},{"$f":"[4]EJECUTIVO!$J120","v":3.6553889263499939},{"$f":"[5]EJECUTIVO!$I120","v":-0.2724258736114093},{"$f":"[5]EJECUTIVO!$J120","v":-1.2226606270800664},{"$f":"[1]EJECUTIVO!$I120","v":1.2552183946496316},{"$f":"[1]EJECUTIVO!$J120","v":-2.8817653588974097},{"$f":"[6]EJECUTIVO!$I120","v":1.4959059222456192},{"$f":"[6]EJECUTIVO!$J120","v":-1.6899651525221602},{"$f":"[7]EJECUTIVO!$I120","v":2.6054834560706146},{"$f":"[7]EJECUTIVO!$J120","v":1.2374021091472303},{"$f":"[8]EJECUTIVO!$I120","v":0.40242643070193196},{"$f":"[8]EJECUTIVO!$J120","v":0.18576645083983118}]
["     1.4.2 Al Sector Privado",{"$f":"[3]EJECUTIVO!$I121","v":3.3751094853401198},{"$f":"[3]EJECUTIVO!$J121","v":0.39317424260434658},{"$f":"[4]EJECUTIVO!$I121","v":7.8080422106202185},{"$f":"[4]EJECUTIVO!$J121","v":3.930180873449201},{"$f":"[5]EJECUTIVO!$I121","v":8.7005092700407651},{"$f":"[5]EJECUTIVO!$J121","v":7.2709813961631662},{"$f":"[1]EJECUTIVO!$I121","v":13.858536149100726},{"$f":"[1]EJECUTIVO!$J121","v":15.807410413170043},{"$f":"[6]EJECUTIVO!$I121","v":8.4111881918839515},{"$f":"[6]EJECUTIVO!$J121","v":11.327726478106189},{"$f":"[7]EJECUTIVO!$I121","v":11.273395649202875},{"$f":"[7]EJECUTIVO!$J121","v":13.536200825291395},{"$f":"[8]EJECUTIVO!$I121","v":2.980156895570818},{"$f":"[8]EJECUTIVO!$J121","v":2.0327438628128482}]
["     1.4.3 A no residentes y otros",{"$f":"[3]EJECUTIVO!$I122","v":1.7139790407435009},{"$f":"[3]EJECUTIVO!$J122","v":-0.42071299007751867},{"$f":"[4]EJECUTIVO!$I122","v":0.24277371177761145},{"$f":"[4]EJECUTIVO!$J122","v":0.44952701679996093},{"$f":"[5]EJECUTIVO!$I122","v":1.240842539476219},{"$f":"[5]EJECUTIVO!$J122","v":2.298534003547938},{"$f":"[1]EJECUTIVO!$I122","v":1.5896885346131959},{"$f":"[1]EJECUTIVO!$J122","v":-0.17955165042490331},{"$f":"[6]EJECUTIVO!$I122","v":3.2841376210614746},{"$f":"[6]EJECUTIVO!$J122","v":-2.6009783374353121},{"$f":"[7]EJECUTIVO!$I122","v":0.56785795208475287},{"$f":"[7]EJECUTIVO!$J122","v":0.58402383251621981},{"$f":"[8]EJECUTIVO!$I122","v":6.4390047883505037},{"$f":"[8]EJECUTIVO!$J122","v":3.304914658977629}]
["2.  Relaciones Analíticas",{"$f":"IF([3]EJECUTIVO!$J$120=[3]EJECUTIVO!$J$4,[3]EJECUTIVO!$G$121,CONCATENATE([3]EJECUTIVO!$G$121,\"\n\",[3]EJECUTIVO!$I$124,\"          \",[3]EJECUTIVO!$J$124))","v":"SEPTIEMBRE\n2022          2023"},null,{"$f":"IF([4]EJECUTIVO!$J$121=[4]EJECUTIVO!$J$4,[4]EJECUTIVO!$G$122,CONCATENATE([4]EJECUTIVO!$G$122,\"\n\",[4]EJECUTIVO!$I$124,\"          \",[4]EJECUTIVO!$J$124))","v":"NOVIEMBRE\n2022          2023"},null,{"$f":"IF([5]EJECUTIVO!$J$120=[5]EJECUTIVO!$J$4,[5]EJECUTIVO!$G$121,CONCATENATE([5]EJECUTIVO!$G$121,\"\n\",[5]EJECUTIVO!$I$124,\"          \",[5]EJECUTIVO!$J$124))","v":"DICIEMBRE\n2022          2023"},null,{"$f":"IF([1]EJECUTIVO!$J$120=[1]EJECUTIVO!$J$4,[1]EJECUTIVO!$G$121,CONCATENATE([1]EJECUTIVO!$G$121,\"\n\",[1]EJECUTIVO!$I$124,\"          \",[1]EJECUTIVO!$J$124))","v":"OCTUBRE\n2022          2023"},null,{"$f":"IF([6]EJECUTIVO!$J$120=[6]EJECUTIVO!$J$4,[6]EJECUTIVO!$G$121,CONCATENATE([6]EJECUTIVO!$G$125,\"\n\",[6]EJECUTIVO!$I$124,\"          \",[6]EJECUTIVO!$J$124))","v":"AGOSTO\n2022          2023"},null,{"$f":"IF([7]EJECUTIVO!$J$120=[7]EJECUTIVO!$J$4,[7]EJECUTIVO!$G$121,CONCATENATE([7]EJECUTIVO!$G$121,\"\n\",[7]EJECUTIVO!$I$124,\"          \",[7]EJECUTIVO!$J$124))","v":"DICIEMBRE\n2022          2023"},null,{"$f":"IF([8]EJECUTIVO!$J$120=[8]EJECUTIVO!$J$4,[8]EJECUTIVO!$G$125,CONCATENATE([8]EJECUTIVO!$G$125,\"\n\",[8]EJECUTIVO!$I$124,\"          \",[8]EJECUTIVO!$J$124))","v":"NOVIEMBRE\n2022          2023"}]
["     2.1 Multiplicador Monetario (M2/BMAmplia)",{"$f":"[3]EJECUTIVO!$I125","v":1.8134782138995087},{"$f":"[3]EJECUTIVO!$J125","v":1.7162821994257433},{"$f":"[4]EJECUTIVO!$I125","v":7.4343173334700978},{"$f":"[4]EJECUTIVO!$J125","v":7.6063661150145068},{"$f":"[5]EJECUTIVO!$I125","v":2.59169016995489},{"$f":"[5]EJECUTIVO!$J125","v":2.5802907626783376},{"$f":"[1]EJECUTIVO!$I125","v":2.1466024455792323},{"$f":"[1]EJECUTIVO!$J125","v":2.5232982065121101},{"$f":"[6]EJECUTIVO!$I125","v":0.54792734293979906},{"$f":"[6]EJECUTIVO!$J125","v":0.57536079189268574},{"$f":"[7]EJECUTIVO!$I125","v":2.2784395247152367},{"$f":"[7]EJECUTIVO!$J125","v":2.4800915215066559},{"$f":"[8]EJECUTIVO!$I125","v":15.962993215134045},{"$f":"[8]EJECUTIVO!$J125","v":17.621620199179361}]
["     2.2 Relación RIN / BMAmplia, en porcentajes",{"$f":"[3]EJECUTIVO!$I126","v":67.637259818916235},{"$f":"[3]EJECUTIVO!$J126","v":73.977270210957911},{"$f":"[4]EJECUTIVO!$I126","v":103.57203649759286},{"$f":"[4]EJECUTIVO!$J126","v":105.29499088606755},{"$f":"[5]EJECUTIVO!$I126","v":111.27264090630722},{"$f":"[5]EJECUTIVO!$J126","v":110.03363582202279},{"$f":"[1]EJECUTIVO!$I126","v":99.887907289128435},{"$f":"[1]EJECUTIVO!$J126","v":96.958905345219023},{"$f":"[6]EJECUTIVO!$I126","v":158.38277963009369},{"$f":"[6]EJECUTIVO!$J126","v":163.31568298882993},{"$f":"[7]EJECUTIVO!$I126","v":109.16431848139555},{"$f":"[7]EJECUTIVO!$J126","v":112.44531660566138},{"$f":"[8]EJECUTIVO!$I126","v":304.77546479018912},{"$f":"[8]EJECUTIVO!$J126","v":291.89253266365381}]
["     2.3 Relación Cuasidinero / M2, en porcentajes  L/",{"$f":"[3]EJECUTIVO!$I127","v":29.728668207032534},{"$f":"[3]EJECUTIVO!$J127","v":31.268880510151735},{"$f":"[4]EJECUTIVO!$I127","v":71.79792719675568},{"$f":"[4]EJECUTIVO!$J127","v":74.57182659350822},{"$f":"[5]EJECUTIVO!$I127","v":53.242702299850244},{"$f":"[5]EJECUTIVO!$J127","v":52.563198510131834},{"$f":"[1]EJECUTIVO!$I127","v":71.01696465084305},{"$f":"[1]EJECUTIVO!$J127","v":71.682334794658246},{"$f":"[6]EJECUTIVO!$I127","v":0},{"$f":"[6]EJECUTIVO!$J127","v":0},{"$f":"[7]EJECUTIVO!$I127","v":55.463622734396914},{"$f":"[7]EJECUTIVO!$J127","v":58.460954560343481},{"$f":"[8]EJECUTIVO!$I127","v":76.263041156366981},{"$f":"[8]EJECUTIVO!$J127","v":76.841764620713576}]
["     2.4 Relación Depósitos en ME / Depósitos Totales, en porcentajes  m/",{"$f":"[3]EJECUTIVO!$I128","v":47.010563841104556},{"$f":"[3]EJECUTIVO!$J128","v":39.808909208108176},{"$f":"[4]EJECUTIVO!$I128","v":"n.a."},{"$f":"[4]EJECUTIVO!$J128","v":"n.a."},{"$f":"[5]EJECUTIVO!$I128","v":18.996461909827023},{"$f":"[5]EJECUTIVO!$J128","v":18.142565769236434},{"$f":"[1]EJECUTIVO!$I128","v":22.023586712447795},{"$f":"[1]EJECUTIVO!$J128","v":20.39931605888815},{"$f":"[6]EJECUTIVO!$I128","v":86.447186028924477},{"$f":"[6]EJECUTIVO!$J128","v":84.739836062587528},{"$f":"[7]EJECUTIVO!$I128","v":29.57236326595844},{"$f":"[7]EJECUTIVO!$J128","v":27.533304460330683},{"$f":"[8]EJECUTIVO!$I128","v":"n.a."},{"$f":"[8]EJECUTIVO!$J128","v":"n.a."}]
["     2.5 Relación Créditos en ME / Créditos Totales, en porcentajes  m/  n/",{"$f":"[3]EJECUTIVO!$I129","v":35.131878899343732},{"$f":"[3]EJECUTIVO!$J129","v":31.44137086937862},{"$f":"[4]EJECUTIVO!$I129","v":"n.a."},{"$f":"[4]EJECUTIVO!$J129","v":"n.a."},{"$f":"[5]EJECUTIVO!$I129","v":24.092980729753897},{"$f":"[5]EJECUTIVO!$J129","v":22.622895362785535},{"$f":"[1]EJECUTIVO!$I129","v":21.411355667460011},{"$f":"[1]EJECUTIVO!$J129","v":20.31649099034194},{"$f":"[6]EJECUTIVO!$I129","v":100},{"$f":"[6]EJECUTIVO!$J129","v":100},{"$f":"[7]EJECUTIVO!$I129","v":20.317756609032671},{"$f":"[7]EJECUTIVO!$J129","v":19.866910419272596},{"$f":"[8]EJECUTIVO!$I129","v":"n.a."},{"$f":"[8]EJECUTIVO!$J129","v":"n.a."}]
["     2.6 Relación Crédito-sector privado / PIB, en porcentajes",{"$f":"[3]EJECUTIVO!$I130","v":53.472631568394881},{"$f":"[3]EJECUTIVO!$J130","v":51.190324412704271},{"$f":"[4]EJECUTIVO!$I130","v":51.494101521913308},{"$f":"[4]EJECUTIVO!$J130","v":50.283220821677823},{"$f":"[5]EJECUTIVO!$I130","v":39.090307039277384},{"$f":"[5]EJECUTIVO!$J130","v":39.975358847026186},{"$f":"[1]EJECUTIVO!$I130","v":64.768174136657734},{"$f":"[1]EJECUTIVO!$J130","v":70.640679077246745},{"$f":"[6]EJECUTIVO!$I130","v":24.554027081759504},{"$f":"[6]EJECUTIVO!$J130","v":25.699269405705472},{"$f":"[7]EJECUTIVO!$I130","v":27.387388102690263},{"$f":"[7]EJECUTIVO!$J130","v":30.191296476035667},{"$f":"[8]EJECUTIVO!$I130","v":77.956007282347471},{"$f":"[8]EJECUTIVO!$J130","v":74.078420934970296}]
["     2.7 Relación Saldo de OMA's / M3, en porcentajes",{"$f":"[3]EJECUTIVO!$I131","v":6.0143773633298494},{"$f":"[3]EJECUTIVO!$J131","v":9.4257161268025893},{"$f":"[4]EJECUTIVO!$I131","v":3.4644188538409852},{"$f":"[4]EJECUTIVO!$J131","v":1.335593657013094},{"$f":"[5]EJECUTIVO!$I131","v":10.024265289297791},{"$f":"[5]EJECUTIVO!$J131","v":8.5830258764029672},{"$f":"[1]EJECUTIVO!$I131","v":14.390155875591626},{"$f":"[1]EJECUTIVO!$J131","v":10.345523464201246},{"$f":"[6]EJECUTIVO!$I131","v":11.657436258401868},{"$f":"[6]EJECUTIVO!$J131","v":8.6169653588486668},{"$f":"[7]EJECUTIVO!$I131","v":39.195333927295628},{"$f":"[7]EJECUTIVO!$J131","v":37.933761545067952},{"$f":"[8]EJECUTIVO!$I131","v":3.2074000261584321},{"$f":"[8]EJECUTIVO!$J131","v":3.1200127850914008}]
["3.  Tasas de Interés y de encaje  ñ/",{"$f":"IF([3]EJECUTIVO!$J$84=[3]EJECUTIVO!$J$4,[3]EJECUTIVO!$G$85,CONCATENATE([3]EJECUTIVO!$G$89,\"\n\",[3]EJECUTIVO!$I$88,\"          \",[3]EJECUTIVO!$J$88))","v":"OCTUBRE\n2022          2023"},null,{"$f":"IF([4]EJECUTIVO!$J$85=[4]EJECUTIVO!$J$4,[4]EJECUTIVO!$G$86,CONCATENATE([4]EJECUTIVO!$G$89,\"\n\",[4]EJECUTIVO!$I$88,\"          \",[4]EJECUTIVO!$J$88))","v":"OCTUBRE\n2022          2023"},null,{"$f":"IF([5]EJECUTIVO!$J$84=[5]EJECUTIVO!$J$4,[5]EJECUTIVO!$G$85,CONCATENATE([5]EJECUTIVO!$G$89,\"\n\",[5]EJECUTIVO!$I$88,\"          \",[5]EJECUTIVO!$J$88))","v":"ENERO\n2023          2024"},null,{"$f":"IF([1]EJECUTIVO!$J$84=[1]EJECUTIVO!$J$4,[1]EJECUTIVO!$G$85,CONCATENATE([1]EJECUTIVO!$G$89,\"\n\",[1]EJECUTIVO!$I$88,\"          \",[1]EJECUTIVO!$J$88))","v":"OCTUBRE\n2022          2023"},null,{"$f":"IF([6]EJECUTIVO!$J$84=[6]EJECUTIVO!$J$4,[6]EJECUTIVO!$G$85,CONCATENATE([6]EJECUTIVO!$G$89,\"\n\",[6]EJECUTIVO!$I$88,\"          \",[6]EJECUTIVO!$J$88))","v":"DICIEMBRE\n2022          2023"},null,{"$f":"IF([7]EJECUTIVO!$J$84=[7]EJECUTIVO!$J$4,[7]EJECUTIVO!$G$85,CONCATENATE([7]EJECUTIVO!$G$89,\"\n\",[7]EJECUTIVO!$I$88,\"          \",[7]EJECUTIVO!$J$88))","v":"ENERO\n2023          2024"},null,{"$f":"IF([8]EJECUTIVO!$J$84=[8]EJECUTIVO!$J$4,[8]EJECUTIVO!$G$85,CONCATENATE([8]EJECUTIVO!$G$89,\"\n\",[8]EJECUTIVO!$I$88,\"          \",[8]EJECUTIVO!$J$88))","v":"NOVIEMBRE\n2022          2023"}]
["     3.1 Tasa interés activa nominal promedio corto plazo en MN",{"$f":"[3]EJECUTIVO!$I91","v":12.635471920000001},{"$f":"[3]EJECUTIVO!$J91","v":13.258368859999999},{"$f":"[4]EJECUTIVO!$I91","v":6.66},{"$f":"[4]EJECUTIVO!$J91","v":7.81},{"$f":"[5]EJECUTIVO!$I91","v":11.89},{"$f":"[5]EJECUTIVO!$J91","v":12.18},{"$f":"[1]EJECUTIVO!$I91","v":14.25},{"$f":"[1]EJECUTIVO!$J91","v":14.39},{"$f":"[6]EJECUTIVO!$I91","v":9.1320612406510602},{"$f":"[6]EJECUTIVO!$J91","v":12.2725082170974},{"$f":"[7]EJECUTIVO!$I91","v":13.969200000000001},{"$f":"[7]EJECUTIVO!J91","v":14.748100000000001},{"$f":"[8]EJECUTIVO!$I91","v":8.2611111111111128},{"$f":"[8]EJECUTIVO!J91","v":8.8977777777777778}]
["     3.2 Tasa interés activa real promedio corto plazo en MN",{"$f":"[3]EJECUTIVO!$I92","v":3.3434503613441389},{"$f":"[3]EJECUTIVO!$J92","v":14.725642723609189},{"$f":"[4]EJECUTIVO!$I92","v":-0.75361151871210597},{"$f":"[4]EJECUTIVO!$J92","v":5.0099554326110489},{"$f":"[5]EJECUTIVO!$I92","v":2.005206572210978},{"$f":"[5]EJECUTIVO!$J92","v":8.0552076203455272},{"$f":"[1]EJECUTIVO!$I92","v":3.689316132264536},{"$f":"[1]EJECUTIVO!$J92","v":8.0816284023668601},{"$f":"[6]EJECUTIVO!$I92","v":-0.3393509599223114},{"$f":"[6]EJECUTIVO!$J92","v":7.3728066761589606},{"$f":"[7]EJECUTIVO!$I92","v":6.2715984019918141},{"$f":"[7]EJECUTIVO!J92","v":11.0638347322413},{"$f":"[8]EJECUTIVO!$I92","v":6.669169031477252},{"$f":"[8]EJECUTIVO!J92","v":6.7515740599109328}]
["     3.3 Tasa interés activa promedio corto plazo en ME ",{"$f":"[3]EJECUTIVO!$I93","v":7.0313500199999996},{"$f":"[3]EJECUTIVO!$J93","v":7.8253168200000003},{"$f":"[4]EJECUTIVO!$I93","v":6.66},{"$f":"[4]EJECUTIVO!$J93","v":7.81},{"$f":"[5]EJECUTIVO!$I93","v":6.25},{"$f":"[5]EJECUTIVO!$J93","v":6.93},{"$f":"[1]EJECUTIVO!$I93","v":8},{"$f":"[1]EJECUTIVO!$J93","v":9.33},{"$f":"[6]EJECUTIVO!$I93","v":9.4992102025555898},{"$f":"[6]EJECUTIVO!$J93","v":8.8768098461120104},{"$f":"[7]EJECUTIVO!$I93","v":7.1843000000000004},{"$f":"[7]EJECUTIVO!J93","v":8.1926000000000005},{"$f":"[8]EJECUTIVO!$I93","v":8.2611111111111128},{"$f":"[8]EJECUTIVO!J93","v":8.8977777777777778}]
["     3.4 Tasa interés pasiva nominal promedio 180 días en MN ",{"$f":"[3]EJECUTIVO!$I94","v":6.02},{"$f":"[3]EJECUTIVO!$J94","v":5.46},{"$f":"[4]EJECUTIVO!$I94","v":4.66},{"$f":"[4]EJECUTIVO!$J94","v":5.26},{"$f":"[5]EJECUTIVO!$I94","v":3.99},{"$f":"[5]EJECUTIVO!$J94","v":4.59},{"$f":"[1]EJECUTIVO!$I94","v":4.18},{"$f":"[1]EJECUTIVO!$J94","v":6.64},{"$f":"[6]EJECUTIVO!$I94","v":3.5118530360190201},{"$f":"[6]EJECUTIVO!$J94","v":4.40968557381336},{"$f":"[7]EJECUTIVO!$I94","v":10.204000000000001},{"$f":"[7]EJECUTIVO!J94","v":8.5685000000000002},{"$f":"[8]EJECUTIVO!$I94","v":1.62},{"$f":"[8]EJECUTIVO!J94","v":3.4525000000000001}]
["     3.5 Tasa interés pasiva real promedio 180 días en MN ",{"$f":"[3]EJECUTIVO!$I95","v":-2.7262689049538138},{"$f":"[3]EJECUTIVO!$J95","v":6.8262451897704741},{"$f":"[4]EJECUTIVO!$I95","v":-2.6145976143672325},{"$f":"[4]EJECUTIVO!$J95","v":2.5261841094206385},{"$f":"[5]EJECUTIVO!$I95","v":-5.1968770091677579},{"$f":"[5]EJECUTIVO!$J95","v":0.74428743993527147},{"$f":"[1]EJECUTIVO!$I95","v":-5.4498647294589126},{"$f":"[1]EJECUTIVO!$J95","v":0.75902485207100268},{"$f":"[6]EJECUTIVO!$I95","v":-5.471789503155474},{"$f":"[6]EJECUTIVO!$J95","v":-0.14687333289329438},{"$f":"[7]EJECUTIVO!$I95","v":2.7607040348893022},{"$f":"[7]EJECUTIVO!J95","v":5.0826457355489074},{"$f":"[8]EJECUTIVO!$I95","v":0.12571315524037904},{"$f":"[8]EJECUTIVO!J95","v":1.4136141324141107}]
["     3.6 Tasa interés pasiva promedio 180 días en ME",{"$f":"[3]EJECUTIVO!$I96","v":3.5520441200000001},{"$f":"[3]EJECUTIVO!$J96","v":3.7295029799999999},{"$f":"[4]EJECUTIVO!$I96","v":4.66},{"$f":"[4]EJECUTIVO!$J96","v":5.26},{"$f":"[5]EJECUTIVO!$I96","v":3},{"$f":"[5]EJECUTIVO!$J96","v":3.56},{"$f":"[1]EJECUTIVO!$I96","v":2.99},{"$f":"[1]EJECUTIVO!$J96","v":4.79},{"$f":"[6]EJECUTIVO!$I96","v":3.43386962532339},{"$f":"[6]EJECUTIVO!$J96","v":4.79702325382737},{"$f":"[7]EJECUTIVO!$I96","v":4.1661000000000001},{"$f":"[7]EJECUTIVO!J96","v":4.3244999999999996},{"$f":"[8]EJECUTIVO!$I96","v":1.62},{"$f":"[8]EJECUTIVO!J96","v":3.4525000000000001}]
["     3.7 Tasa de interés de Política Monetaria de fin de mes  o/",{"$f":"[3]EJECUTIVO!$I97","v":9},{"$f":"[3]EJECUTIVO!$J97","v":6.25},{"$f":"[4]EJECUTIVO!$I97","v":"n.a."},{"$f":"[4]EJECUTIVO!$J97","v":"n.a."},{"$f":"[5]EJECUTIVO!$I97","v":4.25},{"$f":"[5]EJECUTIVO!$J97","v":5},{"$f":"[1]EJECUTIVO!$I97","v":3},{"$f":"[1]EJECUTIVO!$J97","v":3},{"$f":"[6]EJECUTIVO!$I97","v":7},{"$f":"[6]EJECUTIVO!$J97","v":7},{"$f":"[7]EJECUTIVO!$I97","v":8.5},{"$f":"[7]EJECUTIVO!J97","v":7},{"$f":"[8]EJECUTIVO!$I97","v":"n.a."},{"$f":"[8]EJECUTIVO!J97","v":"n.a."}]
["     3.8 Tasa de encaje efectivo promedio (Obligaciones MN)",{"$f":"[3]EJECUTIVO!$I89","v":15.747197111838235},{"$f":"[3]EJECUTIVO!$J89","v":15.533500587443172},{"$f":"[4]EJECUTIVO!$I89","v":12.23444765134199},{"$f":"[4]EJECUTIVO!$J89","v":11.586683320556206},{"$f":"[5]EJECUTIVO!$I89","v":14.692235167414101},{"$f":"[5]EJECUTIVO!$J89","v":14.6865466453207},{"$f":"[1]EJECUTIVO!$I89","v":13.064105265875652},{"$f":"[1]EJECUTIVO!$J89","v":12.48039815089167},{"$f":"[6]EJECUTIVO!$I89","v":25.374586431803785},{"$f":"[6]EJECUTIVO!$J89","v":21.324889558361086},{"$f":"[7]EJECUTIVO!$I89","v":12.248346821122},{"$f":"[7]EJECUTIVO!J89","v":12.3124593988165},{"$f":"[8]EJECUTIVO!$I89","v":"n.a."},{"$f":"[8]EJECUTIVO!J89","v":"n.a."}]
["     3.9 Tasa de encaje efectivo promedio (Obligaciones ME)  ",{"$f":"[3]EJECUTIVO!$I90","v":15.935772169458545},{"$f":"[3]EJECUTIVO!$J90","v":15.842535206170623},{"$f":"[4]EJECUTIVO!$I90","v":12.23444765134199},{"$f":"[4]EJECUTIVO!$J90","v":11.586683320556206},{"$f":"[5]EJECUTIVO!$I90","v":15.7171421205282},{"$f":"[5]EJECUTIVO!$J90","v":15.491667917220701},{"$f":"[1]EJECUTIVO!$I90","v":29.1},{"$f":"[1]EJECUTIVO!$J90","v":27.1},{"$f":"[6]EJECUTIVO!$I90","v":15.920200050953509},{"$f":"[6]EJECUTIVO!$J90","v":19.0457382933566},{"$f":"[7]EJECUTIVO!$I90","v":26.7601704280249},{"$f":"[7]EJECUTIVO!J90","v":26.1832509047576},{"$f":"[8]EJECUTIVO!$I90","v":"n.a."},{"$f":"[8]EJECUTIVO!J90","v":"n.a."}]
[]
["V. SECTOR BURSÁTIL",{"$f":"IF([3]EJECUTIVO!$J$135=[3]EJECUTIVO!$J$8,[3]EJECUTIVO!$G$136,CONCATENATE([3]EJECUTIVO!$G$136,\"\n\",[3]EJECUTIVO!$I$135,\"    \",[3]EJECUTIVO!$J$135))","v":"SEPTIEMBRE\n2022    2023"},null,{"$f":"IF([4]EJECUTIVO!$J$135=[4]EJECUTIVO!$J$8,[4]EJECUTIVO!$G$136,CONCATENATE([4]EJECUTIVO!$G$136,\"\n\",[4]EJECUTIVO!$I$135,\"     \",[4]EJECUTIVO!$J$135))","v":"OCTUBRE\n2022     2023"},null,{"$f":"IF([5]EJECUTIVO!$J$135=[5]EJECUTIVO!$J$8,[5]EJECUTIVO!$G$136,CONCATENATE([5]EJECUTIVO!$G$136,\"\n\",[5]EJECUTIVO!$I$135,\"     \",[5]EJECUTIVO!$J$135))","v":"DICIEMBRE\n2022     2023"},null,{"$f":"IF([1]EJECUTIVO!$J$135=[1]EJECUTIVO!$J$8,[1]EJECUTIVO!$G$136,CONCATENATE([1]EJECUTIVO!$G$136,\"\n\",[1]EJECUTIVO!$I$135,\"     \",[1]EJECUTIVO!$J$135))","v":"DICIEMBRE\n2021     2022"},null,{"$f":"IF([6]EJECUTIVO!$J$135=[6]EJECUTIVO!$J$8,[6]EJECUTIVO!$G$136,CONCATENATE([6]EJECUTIVO!$G$136,\"\n\",[6]EJECUTIVO!$I$135,\"     \",[6]EJECUTIVO!$J$135))","v":"DICIEMBRE\n2022     2023"},null,{"$f":"IF([7]EJECUTIVO!$J$135=[7]EJECUTIVO!$J$8,[7]EJECUTIVO!$G$136,CONCATENATE([7]EJECUTIVO!$G$136,\"\n\",[7]EJECUTIVO!$I$135,\"     \",[7]EJECUTIVO!$J$135))","v":"OCTUBRE\n2022     2023"},null,{"$f":"IF([8]EJECUTIVO!$J$135=[8]EJECUTIVO!$J$8,[8]EJECUTIVO!$G$136,CONCATENATE([8]EJECUTIVO!$G$136,\"\n\",[8]EJECUTIVO!$I$135,\"     \",[8]EJECUTIVO!$J$135))","v":"SEPTIEMBRE\n2021     2022"}]
[]
["1  Volúmen Total Negociado por tipo de emisor, acumulado en mill.US$",{"$f":"[3]EJECUTIVO!$I136","v":11869.941146742534},{"$f":"[3]EJECUTIVO!$J136","v":16407.896464350775},{"$f":"[4]EJECUTIVO!$I136","v":2412.7147256040403},{"$f":"[4]EJECUTIVO!$J136","v":4249.9537310729211},{"$f":"[5]EJECUTIVO!$I136","v":134006.42525602606},{"$f":"[5]EJECUTIVO!$J136","v":106600.60993354851},{"$f":"[1]EJECUTIVO!$I136","v":5790.0117409110335},{"$f":"[1]EJECUTIVO!$J136","v":4967.4798254050047},{"$f":"[6]EJECUTIVO!$I136","v":1516.5104181712993},{"$f":"[6]EJECUTIVO!$J136","v":1775.1927611675837},{"$f":"[7]EJECUTIVO!$I136","v":9396.2179768834485},{"$f":"[7]EJECUTIVO!$J136","v":9061.107654931393},{"$f":"[8]EJECUTIVO!$I136","v":7887.7396052900003},{"$f":"[8]EJECUTIVO!$J136","v":4968.5599390899997}]
["     1.1  Público",{"$f":"[3]EJECUTIVO!$I137","v":10118.973153483512},{"$f":"[3]EJECUTIVO!$J137","v":14468.603017444835},{"$f":"[4]EJECUTIVO!$I137","v":1321.0608542099401},{"$f":"[4]EJECUTIVO!$J137","v":2176.84121180992},{"$f":"[5]EJECUTIVO!$I137","v":133561.64720486436},{"$f":"[5]EJECUTIVO!$J137","v":106161.80889150802},{"$f":"[1]EJECUTIVO!$I137","v":5657.9228734139406},{"$f":"[1]EJECUTIVO!$J137","v":4848.5153795294182},{"$f":"[6]EJECUTIVO!$I137","v":1490.2891503043418},{"$f":"[6]EJECUTIVO!$J137","v":1745.9391718371692},{"$f":"[7]EJECUTIVO!$I137","v":7180.178506680606},{"$f":"[7]EJECUTIVO!$J137","v":7146.4684547692195},{"$f":"[8]EJECUTIVO!$I137","v":2403.9350563500002},{"$f":"[8]EJECUTIVO!$J137","v":1168.5888055999999}]
["     1.2  Privado",{"$f":"[3]EJECUTIVO!$I138","v":1750.9679932590216},{"$f":"[3]EJECUTIVO!$J138","v":1939.2934469059396},{"$f":"[4]EJECUTIVO!$I138","v":1091.6538713941},{"$f":"[4]EJECUTIVO!$J138","v":2073.1125192630011},{"$f":"[5]EJECUTIVO!$I138","v":444.77805116174534},{"$f":"[5]EJECUTIVO!$J138","v":438.80104204048075},{"$f":"[1]EJECUTIVO!$I138","v":132.08886749709393},{"$f":"[1]EJECUTIVO!$J138","v":118.96444587558803},{"$f":"[6]EJECUTIVO!$I138","v":26.22126786695733},{"$f":"[6]EJECUTIVO!$J138","v":29.253589330414112},{"$f":"[7]EJECUTIVO!$I138","v":2216.0394702028434},{"$f":"[7]EJECUTIVO!$J138","v":1914.6392001621732},{"$f":"[8]EJECUTIVO!$I138","v":5483.8045489400001},{"$f":"[8]EJECUTIVO!$J138","v":3799.9711334899994}]
["2.  Relaciones Analíticas"]
["     2.1  Reportos / volúmen total negociado, en porcentajes",{"$f":"[3]EJECUTIVO!$I140","v":66.402748219136953},{"$f":"[3]EJECUTIVO!$J140","v":51.6462293671864},{"$f":"[4]EJECUTIVO!$I140","v":45.622164636421111},{"$f":"[4]EJECUTIVO!$J140","v":52.470532959819408},{"$f":"[5]EJECUTIVO!$I140","v":38.047101525425184},{"$f":"[5]EJECUTIVO!$J140","v":54.24621481705293},{"$f":"[1]EJECUTIVO!$I140","v":0},{"$f":"[1]EJECUTIVO!$J140","v":0},{"$f":"[6]EJECUTIVO!$I140","v":5.337998084340879},{"$f":"[6]EJECUTIVO!$J140","v":10.364280667426598},{"$f":"[7]EJECUTIVO!$I140","v":"n.d."},{"$f":"[7]EJECUTIVO!$J140","v":"n.d."},{"$f":"[8]EJECUTIVO!$I140","v":1.6678636788397772},{"$f":"[8]EJECUTIVO!$J140","v":7.6471750277729722}]
["     2.2  Mercado Secundario / Mercado Primario, (número de veces)",{"$f":"[3]EJECUTIVO!$I141","v":5.2754048515587524},{"$f":"[3]EJECUTIVO!$J141","v":5.9787355462525884},{"$f":"[4]EJECUTIVO!$I141","v":1.0715176768519836},{"$f":"[4]EJECUTIVO!$J141","v":0.72208402488366752},{"$f":"[5]EJECUTIVO!$I141","v":0.62012465806572792},{"$f":"[5]EJECUTIVO!$J141","v":1.2055712858236052},{"$f":"[1]EJECUTIVO!$I141","v":0.14604826173489219},{"$f":"[1]EJECUTIVO!$J141","v":0.13839410708835884},{"$f":"[6]EJECUTIVO!$I141","v":3.3306961809705785E-2},{"$f":"[6]EJECUTIVO!$J141","v":2.6984796287986175E-2},{"$f":"[7]EJECUTIVO!$I141","v":"n.d."},{"$f":"[7]EJECUTIVO!$J141","v":"n.d."},{"$f":"[8]EJECUTIVO!$I141","v":0.3268791673210748},{"$f":"[8]EJECUTIVO!$J141","v":0.26073356414425364}]
["     2.3  Volúmen negociado en MN / Volúmen Total, en porcentajes",{"$f":"[3]EJECUTIVO!$I142","v":49.047552190802627},{"$f":"[3]EJECUTIVO!$J142","v":63.537158658524199},{"$f":"[4]EJECUTIVO!$I142","v":100},{"$f":"[4]EJECUTIVO!$J142","v":100},{"$f":"[5]EJECUTIVO!$I142","v":92.502848719309299},{"$f":"[5]EJECUTIVO!$J142","v":93.763838814699625},{"$f":"[1]EJECUTIVO!$I142","v":94.361512457290331},{"$f":"[1]EJECUTIVO!$J142","v":96.233719962982249},{"$f":"[6]EJECUTIVO!$I142","v":26.477859382251417},{"$f":"[6]EJECUTIVO!$J142","v":63.018664956817275},{"$f":"[7]EJECUTIVO!$I142","v":77.702550212112342},{"$f":"[7]EJECUTIVO!$J142","v":80.322851317564115},{"$f":"[8]EJECUTIVO!$I142","v":100},{"$f":"[8]EJECUTIVO!$J142","v":100}]
["     2.4  Rendimiento Promedio: Operaciones de Reporto de 1 semana",{"$f":"[3]EJECUTIVO!$I139","v":"n.d."},{"$f":"[3]EJECUTIVO!$J139","v":"n.d."},{"$f":"[4]EJECUTIVO!$I139","v":5.3431516154949916},{"$f":"[4]EJECUTIVO!$J139","v":6.2976617700460826},{"$f":"[5]EJECUTIVO!$I139","v":"n.a."},{"$f":"[5]EJECUTIVO!$J139","v":"n.a."},{"$f":"[1]EJECUTIVO!$I139","v":"n.a."},{"$f":"[1]EJECUTIVO!$J139","v":"n.a."},{"$f":"[6]EJECUTIVO!$I139","v":"n.a."},{"$f":"[6]EJECUTIVO!$J139","v":"n.a."},{"$f":"[7]EJECUTIVO!$I139","v":"n.a."},{"$f":"[7]EJECUTIVO!$J139","v":"n.a."},{"$f":"[8]EJECUTIVO!$I139","v":"n.d."},{"$f":"[8]EJECUTIVO!$J139","v":"n.d."}]
[]
["Notas:"]
["Notación:  n.a.=no aplica ,  n.d.=no disponible, n.o.=No hubo transacción ese mes."]
[]
["a/ En Costa Rica corresponde a la nueva serie del PIB año base 2017; b/ Datos preliminares de 2021 y estimado 2022 (bancos centrales o WEO); c/ Los datos de Honduras no incluyen la maquila; d/ Las remesas provienen de la Balanza Cambiaria en Guatemala y Honduras y de la Balanza de Pagos para el resto de países;  e/ Los flujos negativos de IED que se pudieran observar en El Salvador surgen debido a que en algunos periodos hay amortizaciones netas de préstamos con el inversionista directo, mayores a lo registrado por acciones u otras aportaciones de capital, los cuales por razones metodológicas deben sumarse al valor de la IED; f/ Incluye dentro de los socios comerciales al resto de países centroamericanos, República Dominicana, Panamá, Brasil, Canadá, China, Colombia, Corea del Sur, Haití, Japón, México, Estados Unidos y Zona Euro. Valores sobre (bajo) 100 significan una depreciación (apreciación) real de la moneda. Ver nota metodológica en http://www.secmca.org/nota/propuesta-de-actualizacion-del-indice-de-tipo-de-cambio-efectivo-real-itcer/;  g/ Incluye dentro de los socios comerciales al resto de países Centroamericanos, República Dominicana y Panamá. Valores sobre (bajo) 100 significan una depreciación (apreciación) real de la moneda; h/ En Guatemala, Honduras y República Dominicana se refiere a la Deuda Pública Consolidada tal como lo recomienda la versión del 2001 del Manual de Estadísticas de Finanzas Públicas del FMI. En el resto de países se compila únicamente la deuda bruta. La Deuda Intragubernamental es la obligación contraída por una institución del gobierno con otra, por ejemplo los bonos emitidos por el Gobierno Central y que son comprados por una institución pública. Se resta de la deuda bruta para obtener la deuda consolidada; i/ Las estadísticas monetarias responden a los conceptos definidos en los cuadros armonizados que fueron aprobados por el CMCA en diciembre de 2007.  Las tasas de variación de los componentes de cada concepto están ponderadas, de modo que la suma de las tasas coincide con la tasa de variación interanual de dicho concepto;  j/ Costa Rica, Nicaragua y República Dominicana no tienen encaje remunerado;  k/ En El Salvador el agregado monetario M3 es igual a M2 debido a que no existen pasivos de las Sociedades de Depósito en otra moneda que no sea el US dólar; L/ Esta relación es cero para Nicaragua debido a que todo el cuasidinero en MN se registra como cuasidinero en ME, dado que los depósitos y valores distintos de acciones en MN poseen cláusulas de mantenimiento de valor; m/ Esta relación no aplica a El Salvador debido a que no existen depósitos en una moneda distinta al US dólar, dada la vigencia de la Ley de Integración Monetaria; n/ Esta relación es 100 en Nicaragua debido a que los créditos en MN están indexados al tipo de cambio (mantenimiento de valor). Para efectos prácticos, están dolarizados; ñ/ En El Salvador desde el 2001 las tasas en MN y ME son las mismas, debido a la Ley de Integración Monetaria que circula el US dólar como la moneda local; o/ Para Costa Rica la Tasa de Política Monetaria (TPM) corresponde a la tasa de interés que utiliza el BCCR como referencia para conducir el costo de las operaciones a un día plazo en el Mercado Integrado de Liquidez dentro de un corredor formado por las tasas de interés de sus facilidades permanentes de crédito y de depósito en este mercado; en República Dominicana corresponde a la tasa de referencia para las operaciones de expansión y contracción al plazo de un día hábil; en Honduras la Tasa de Política Monetaria corresponde a la tasa máxima permitida para las posturas de compra y la tasa mínima para las posturas de venta, en las subastas de Letras del Banco Central de Honduras dirigidas a las instituciones del sistema financiero nacional; en Guatemala corresponde a la tasa de interés de los depósitos a plazo a un día (overnight); en El Salvador no aplica por no tener política monetaria y Nicaragua no define tasa de política monetaria."]

{"sheet":"Proyecciones","index":6,"n_rows":49,"n_cols":16,"rows_kept":49,"cut":false,"hidden":false,"merged":[[48,0,48,8],[47,0,47,14],[46,0,46,14],[1,11,1,12],[3,0,3,14]]}
[]
["Consejo Monetario Centroamericano",null,null,null,null,null,null,null,null,null,{"$f":"CONCATENATE(Indice!$J$47,\",\")","v":"REM N° 282,"},{"$f":"Indice!$J$48","v":"Enero 2024"}]
["Secretaría Ejecutiva"]
["PROYECCIONES/METAS 2023-2024 DE LOS PRINCIPALES INDICADORES MACROECONÓMICOS"]
[]
["Cuadro 1",null,null,null,null,null,null,null,"Cuadro 2"]
["Inflación (IPC)\nporcentajes",2020,{"$f":"B7+1","v":2021},{"$f":" C7+1","v":2022},{"$f":"CONCATENATE(\"Proyección inicial \", D7+1)","v":"Proyección inicial 2023"},{"$f":"CONCATENATE(\"Proyección revisada \", D7+1)","v":"Proyección revisada 2023"},{"$f":"CONCATENATE(\"Proyección\n\",D7+2)","v":"Proyección\n2024"},null,"PIB real\nvariación anual",{"$f":"B7","v":2020},{"$f":"C7","v":2021},{"$f":"+CONCATENATE(D7)","v":"2022"},{"$f":"+E7","v":"Proyección inicial 2023"},{"$f":"+F7","v":"Proyección revisada 2023"},{"$f":"+G7","v":"Proyección\n2024"}]
["Costa Rica",{"$f":"+'[2]Cuadros anuales'!H8","v":0.89244852204477532},{"$f":"+'[2]Cuadros anuales'!I8","v":3.2989079100000041},{"$f":"+'[2]Cuadros anuales'!J8","v":7.8771537614796827},{"$f":"CONCATENATE([2]METAS!I8,\"\")","v":"3.0 ± 1"},{"$f":"CONCATENATE([2]METAS!L8,\"\")","v":"3.0 ± 1"},{"$f":"CONCATENATE([2]METAS!P8,\"\")","v":"3.0 ± 1"},null,"Costa Rica",{"$f":"+'[2]Cuadros anuales'!H33","v":-4.2733543215923264},{"$f":"+'[2]Cuadros anuales'!I33","v":7.9357622474261813},{"$f":"+'[2]Cuadros anuales'!J33","v":4.551491779623662},{"$f":"+[2]METAS!I33","v":2.7},{"$f":"+[2]METAS!L33","v":5},{"$f":"[2]METAS!P33","v":4}]
["El Salvador ",{"$f":"+'[2]Cuadros anuales'!H9","v":-8.5308433546249507E-2},{"$f":"+'[2]Cuadros anuales'!I9","v":6.1148062694338368},{"$f":"+'[2]Cuadros anuales'!J9","v":7.3196837730270303},{"$f":"CONCATENATE([2]METAS!I9,\"\")","v":"4.0 - 5.0"},{"$f":"CONCATENATE([2]METAS!L9,\"\")","v":"2,8"},{"$f":"CONCATENATE([2]METAS!P9,\"\")","v":"2.0 - 2.5"},"os ","El Salvador",{"$f":"+'[2]Cuadros anuales'!H34","v":-7.8783843763870269},{"$f":"+'[2]Cuadros anuales'!I34","v":11.178029390508314},{"$f":"+'[2]Cuadros anuales'!J34","v":2.6002166847237218},{"$f":"+[2]METAS!I34","v":"2.0 - 3.0"},{"$f":"+[2]METAS!L34","v":2.7},{"$f":"[2]METAS!P34","v":"2.5 - 3.0"}]
["Guatemala",{"$f":"+'[2]Cuadros anuales'!H10","v":4.8236953455571108},{"$f":"+'[2]Cuadros anuales'!I10","v":3.0678148546824602},{"$f":"+'[2]Cuadros anuales'!J10","v":9.2362924281984338},{"$f":"CONCATENATE([2]METAS!I10,\"\")","v":"4.0 ± 1"},{"$f":"CONCATENATE([2]METAS!L10,\"\")","v":""},{"$f":"CONCATENATE([2]METAS!P10,\"\")","v":"4.0 ± 1"},null,"Guatemala",{"$f":"+'[2]Cuadros anuales'!H35","v":-1.7918576804799469},{"$f":"+'[2]Cuadros anuales'!I35","v":8.0024080434830012},{"$f":"+'[2]Cuadros anuales'!J35","v":4.1179997021898895},{"$f":"+[2]METAS!I35","v":"2.5 - 4.5"},{"$f":"+[2]METAS!L35","v":3.4844847311062352},{"$f":"[2]METAS!P35","v":"n.d."}]
["Honduras",{"$f":"+'[2]Cuadros anuales'!H11","v":4.0130796670630131},{"$f":"+'[2]Cuadros anuales'!I11","v":5.3158045155758948},{"$f":"+'[2]Cuadros anuales'!J11","v":9.7964721845319005},{"$f":"CONCATENATE([2]METAS!I11,\"\")","v":"6.0 - 7.0"},{"$f":"CONCATENATE([2]METAS!L11,\"\")","v":"5.0 – 6.0"},{"$f":"CONCATENATE([2]METAS!P11,\"\")","v":"4.0 – 5.0"},null,"Honduras",{"$f":"+'[2]Cuadros anuales'!H36","v":-8.9647148793354337},{"$f":"+'[2]Cuadros anuales'!I36","v":12.534040011943869},{"$f":"+'[2]Cuadros anuales'!J36","v":3.9979498146828885},{"$f":"+[2]METAS!I36","v":"3.5 - 4.0"},{"$f":"+[2]METAS!L36","v":"3.0 – 3.5"},{"$f":"[2]METAS!P36","v":"3.5 – 4.0"}]
["Nicaragua",{"$f":"+'[2]Cuadros anuales'!H12","v":2.9305695911470364},{"$f":"+'[2]Cuadros anuales'!I12","v":7.2100675352489096},{"$f":"+'[2]Cuadros anuales'!J12","v":11.593447908892873},{"$f":"CONCATENATE([2]METAS!I12,\"\")","v":"6.0 - 7.0"},{"$f":"[2]METAS!L12","v":"4.5 - 5.5"},{"$f":"CONCATENATE([2]METAS!P12,\"\")","v":"3.0 - 4.0"},null,"Nicaragua",{"$f":"+'[2]Cuadros anuales'!H37","v":-1.7662483974566823},{"$f":"+'[2]Cuadros anuales'!I37","v":10.347226712826751},{"$f":"+'[2]Cuadros anuales'!J37","v":3.7507749207747576},{"$f":"+[2]METAS!I37","v":"2.5 - 3.5"},{"$f":"+[2]METAS!L37","v":"4.0 - 5.0"},{"$f":"[2]METAS!P37","v":"3.5 - 4.5"}]
["Rep Dominicana",{"$f":"+'[2]Cuadros anuales'!H13","v":5.5536478118097365},{"$f":"+'[2]Cuadros anuales'!I13","v":8.4956989865317958},{"$f":"+'[2]Cuadros anuales'!J13","v":7.8269161155893663},{"$f":"CONCATENATE([2]METAS!I13,\"\")","v":"4.0 ± 1"},{"$f":"CONCATENATE([2]METAS!L13,\"\")","v":""},{"$f":"CONCATENATE([2]METAS!P13,\"\")","v":"4.0 ± 1"},null,"Rep Dominicana",{"$f":"+'[2]Cuadros anuales'!H38","v":-6.7202393746339411},{"$f":"+'[2]Cuadros anuales'!I38","v":12.271990236920495},{"$f":"+'[2]Cuadros anuales'!J38","v":4.8583240330653643},{"$f":"+[2]METAS!I38","v":4},{"$f":"+[2]METAS!L38","v":"2.5 - 3.0"},{"$f":"[2]METAS!P38","v":5}]
["Promedio región CARD",{"$f":"+'[2]Cuadros anuales'!H16","v":5.5784873133422286},{"$f":"+'[2]Cuadros anuales'!I16","v":8.6184097050537432},{"$f":"+'[2]Cuadros anuales'!J16","v":3.0224433622697555},{"$f":"[2]METAS!I16","v":"n.d."},null,{"$f":"[2]METAS!P16","v":"n.d."},null,"Promedio región CARD",{"$f":"+'[2]Cuadros anuales'!H41","v":10.205096499565434},{"$f":"+'[2]Cuadros anuales'!I41","v":4.2667497998744031},{"$f":"+'[2]Cuadros anuales'!J41","v":3.4991135101289559},{"$f":"+[2]METAS!I41","v":"3,5"},null,{"$f":"CONCATENATE([2]METAS!P41,\"\")","v":"n.d."}]
[]
["Cuadro 3",null,null,null,null,null,null,null,"Cuadro 4"]
["Cuenta Corriente/PIB\nporcentajes",{"$f":"B7","v":2020},{"$f":"C7","v":2021},{"$f":"+CONCATENATE(D7)","v":"2022"},{"$f":"+E7","v":"Proyección inicial 2023"},{"$f":"+F7","v":"Proyección revisada 2023"},{"$f":"+G7","v":"Proyección\n2024"},null,"RIN del Banco Central\nen millones de US$",{"$f":"B7","v":2020},2021,2022,"Proyección inicial 2023","Proyección revisada 2023","Proyección\n2024"]
["Costa Rica",{"$f":"+'[2]Cuadros anuales'!H154","v":-1.0123498600667831},{"$f":"+'[2]Cuadros anuales'!I154","v":-3.172297938158902},{"$f":"+'[2]Cuadros anuales'!J154","v":-3.7371242458390128},{"$f":"[2]METAS!I154","v":-3.4},{"$f":"[2]METAS!L154","v":-2.1},{"$f":"[2]METAS!P154","v":-2},null,"Costa Rica",{"$f":"+'[2]Cuadros anuales'!H118","v":7224.6663515199998},{"$f":"+'[2]Cuadros anuales'!I118","v":6918.1401695499999},{"$f":"+'[2]Cuadros anuales'!J118","v":8550},{"$f":"+[2]METAS!I118","v":"n.d."},null,{"$f":"[2]METAS!P118","v":"n.d."}]
["El Salvador",{"$f":"+'[2]Cuadros anuales'!H155","v":1.6167377168795767},{"$f":"+'[2]Cuadros anuales'!I155","v":-4.3188689692958242},{"$f":"+'[2]Cuadros anuales'!J155","v":-6.605904618508446},"n.d.",{"$f":"+[2]METAS!L155","v":""},{"$f":"[2]METAS!P155","v":"n.d."},null,"El Salvador",{"$f":"+'[2]Cuadros anuales'!H119","v":2915.2},{"$f":"+'[2]Cuadros anuales'!I119","v":3342.39},{"$f":"+'[2]Cuadros anuales'!J119","v":2440.44},"n.d.",{"$f":"[2]METAS!L119","v":""},{"$f":"[2]METAS!P119","v":"n.d."}]
["Guatemala",{"$f":"+'[2]Cuadros anuales'!H156","v":5.0493350787309836},{"$f":"+'[2]Cuadros anuales'!I156","v":2.1965512502937097},{"$f":"+'[2]Cuadros anuales'!J156","v":1.3134444869511526},{"$f":"[2]METAS!I156","v":0.82941871926370203},{"$f":"[2]METAS!L156","v":2.4},{"$f":"[2]METAS!P156","v":"n.d."},null,"Guatemala",{"$f":"+'[2]Cuadros anuales'!H120","v":18468.2},{"$f":"+'[2]Cuadros anuales'!I120","v":20939.599999999999},{"$f":"+'[2]Cuadros anuales'!J120","v":20019.8},{"$f":"+[2]METAS!I120","v":22439.599999999999},{"$f":"[2]METAS!L120","v":20769.8},{"$f":"[2]METAS!P120","v":"n.d."},{"$f":"+M20","v":22439.599999999999}]
["Honduras",{"$f":"+'[2]Cuadros anuales'!H157","v":3.7848546647962702},{"$f":"+'[2]Cuadros anuales'!I157","v":-3.3584125769288904},{"$f":"+'[2]Cuadros anuales'!J157","v":-4.3309506483272298},{"$f":"[2]METAS!I157","v":-3.8},{"$f":"[2]METAS!L157","v":-3.5},{"$f":"[2]METAS!P157","v":-3},null,"Honduras",{"$f":"+'[2]Cuadros anuales'!H121","v":8148.8},{"$f":"+'[2]Cuadros anuales'!I121","v":8677.5568154226803},{"$f":"+'[2]Cuadros anuales'!J121","v":8421.5},{"$f":"+[2]METAS!I121","v":"n.d."},{"$f":"[2]METAS!L121","v":""},{"$f":"[2]METAS!P121","v":"n.d."},{"$f":"+N21","v":""}]
["Nicaragua",{"$f":"+'[2]Cuadros anuales'!H158","v":3.5976416619667098},{"$f":"+'[2]Cuadros anuales'!I158","v":-3.0996850609364568},{"$f":"+'[2]Cuadros anuales'!J158","v":-1.6073622250137156},{"$f":"[2]METAS!I158","v":"-1.5 a -2.5"},{"$f":"[2]METAS!L158","v":"4.5 - 5.5"},{"$f":"[2]METAS!P158","v":"n.d."},null,"Nicaragua",{"$f":"+'[2]Cuadros anuales'!H122","v":3073.5},{"$f":"+'[2]Cuadros anuales'!I122","v":3954.5522422552585},{"$f":"+'[2]Cuadros anuales'!J122","v":4356.3700268170242},{"$f":"+[2]METAS!I122","v":"n.d."},{"$f":"[2]METAS!L122","v":""},{"$f":"[2]METAS!P122","v":"n.d."}]
["Rep Dominicana",{"$f":"+'[2]Cuadros anuales'!H159","v":-1.6964570458170589},{"$f":"+'[2]Cuadros anuales'!I159","v":-2.8408754558159171},{"$f":"+'[2]Cuadros anuales'!J159","v":-5.549601273576231},{"$f":"[2]METAS!I159","v":-4.2},{"$f":"[2]METAS!L159","v":""},{"$f":"[2]METAS!P159","v":"n.d."},null,"Rep Dominicana",{"$f":"+'[2]Cuadros anuales'!H123","v":10751.6724920383},{"$f":"+'[2]Cuadros anuales'!I123","v":13033.917427885361},{"$f":"+'[2]Cuadros anuales'!J123","v":14436.139070117662},{"$f":"+[2]METAS!I123","v":"n.d."},{"$f":"[2]METAS!L123","v":""},{"$f":"[2]METAS!P123","v":"n.d."},{"$f":"+M23","v":"n.d."}]
["Promedio región CARD",{"$f":"+'[2]Cuadros anuales'!H162","v":-1.4366256877640879},{"$f":"+'[2]Cuadros anuales'!I162","v":-3.080459817651708},{"$f":"+[2]METAS!H162","v":0},{"$f":"[2]METAS!I162","v":"n.d"},null,{"$f":"[2]METAS!P162","v":"n.d."},null,"Total región CARD",{"$f":"+'[2]Cuadros anuales'!H126","v":56866.1566551133},{"$f":"+'[2]Cuadros anuales'!I126","v":58224.249096934684},{"$f":"+'[2]Cuadros anuales'!J126","v":0},{"$f":"+[2]METAS!I126","v":"n.d."},null,{"$f":"CONCATENATE([2]METAS!P126,\"\")","v":"n.d."},{"$f":"+SUM(P18:P23)","v":22439.599999999999}]
[]
["Cuadro 5",null,null,null,null,null,null,null,"Cuadro 6"]
["Exportaciones\nvariación anual",{"$f":"B7","v":2020},{"$f":"C7","v":2021},{"$f":"D17","v":"2022"},{"$f":"E7","v":"Proyección inicial 2023"},{"$f":"F7","v":"Proyección revisada 2023"},{"$f":"G7","v":"Proyección\n2024"},null,"Importaciones\nvariación anual",{"$f":"B7","v":2020},{"$f":"C7","v":2021},{"$f":"D17","v":"2022"},{"$f":"E7","v":"Proyección inicial 2023"},{"$f":"F7","v":"Proyección revisada 2023"},{"$f":"G7","v":"Proyección\n2024"}]
["Costa Rica",{"$f":"+'[2]Cuadros anuales'!H70","v":2.0949900561774761},{"$f":"+'[2]Cuadros anuales'!I70","v":23.665632806397308},{"$f":"+'[2]Cuadros anuales'!J70","v":9.4868340458661962},{"$f":"[2]METAS!I70","v":"n.d."},{"$f":"([2]METAS!L70)","v":""},{"$f":"[2]METAS!$P70","v":"n.d."},{"$f":"+E28","v":"n.d."},"Costa Rica",{"$f":"+'[2]Cuadros anuales'!H94","v":-12.409897249495367},{"$f":"+'[2]Cuadros anuales'!I94","v":31.678230307199009},{"$f":"+'[2]Cuadros anuales'!J94","v":16.409353515222271},{"$f":"[2]METAS!I94","v":"n.d."},{"$f":"[2]METAS!$L94","v":""},{"$f":"[2]METAS!$P94","v":"n.d."}]
["El Salvador ",{"$f":"+'[2]Cuadros anuales'!H71","v":-18.620723524889151},{"$f":"+'[2]Cuadros anuales'!I71","v":33.076332398973641},{"$f":"+'[2]Cuadros anuales'!J71","v":11.262429846330448},"n.d.",{"$f":"([2]METAS!L71)","v":""},{"$f":"[2]METAS!$P71","v":"n.d."},{"$f":"+E29","v":"n.d."},"El Salvador",{"$f":"+'[2]Cuadros anuales'!H95","v":-14.774984894988934},{"$f":"+'[2]Cuadros anuales'!I95","v":47.831389880561076},{"$f":"+'[2]Cuadros anuales'!J95","v":17.038506111201571},"n.d.",{"$f":"[2]METAS!$L95","v":""},{"$f":"[2]METAS!$P95","v":"n.d."}]
["Guatemala",{"$f":"+'[2]Cuadros anuales'!H72","v":-0.61681975255590438},{"$f":"+'[2]Cuadros anuales'!I72","v":22.686532207939624},{"$f":"+'[2]Cuadros anuales'!J72","v":14.937850915578768},{"$f":"[2]METAS!I72","v":"4.5 -  7.5"},{"$f":"([2]METAS!L72)","v":"-1.5 -  -4.5"},{"$f":"[2]METAS!$P72","v":"n.d."},{"$f":"IF([1]EJECUTIVO!$J$38=[1]EJECUTIVO!$J$4,[1]EJECUTIVO!$G$38,(CONCATENATE([1]EJECUTIVO!$G$38,\"\n\",[1]EJECUTIVO!$I$37,\"          \",[1]EJECUTIVO!$J$37)))","v":"ENERO\n2022          2023"},"Guatemala",{"$f":"+'[2]Cuadros anuales'!H96","v":-8.4257116990242285},{"$f":"+'[2]Cuadros anuales'!I96","v":46.142649998901454},{"$f":"+'[2]Cuadros anuales'!J96","v":20.729994358818267},{"$f":"[2]METAS!I96","v":"6.5 - 9.5"},{"$f":"[2]METAS!$L96","v":"-0.5 - 2.5"},{"$f":"[2]METAS!$P96","v":"n.d."}]
["Honduras",{"$f":"+'[2]Cuadros anuales'!H73","v":-12.616120986619963},{"$f":"+'[2]Cuadros anuales'!I73","v":33.495024103913714},{"$f":"+'[2]Cuadros anuales'!J73","v":19.910761648708501},{"$f":"[2]METAS!I73","v":2.5},{"$f":"([2]METAS!L73)","v":-4.7},{"$f":"[2]METAS!$P73","v":6.1},13.6,"Honduras",{"$f":"+'[2]Cuadros anuales'!H97","v":-15.50103342529418},{"$f":"+'[2]Cuadros anuales'!I97","v":50.017429978907735},{"$f":"+'[2]Cuadros anuales'!J97","v":22.814095282608694},{"$f":"[2]METAS!I97","v":6.3},{"$f":"[2]METAS!$L97","v":-4.8},{"$f":"[2]METAS!$P97","v":6.1}]
["Nicaragua",{"$f":"+'[2]Cuadros anuales'!H74","v":-5.0887455082078858},{"$f":"+'[2]Cuadros anuales'!I74","v":29.378275767992534},{"$f":"+'[2]Cuadros anuales'!J74","v":12.609246441951003},{"$f":"[2]METAS!I74","v":"n.d."},{"$f":"([2]METAS!L74)","v":""},{"$f":"[2]METAS!$P74","v":"n.d."},8.1999999999999993,"Nicaragua",{"$f":"+'[2]Cuadros anuales'!H98","v":-5.0039126574752268},{"$f":"+'[2]Cuadros anuales'!I98","v":41.824117581698395},{"$f":"+'[2]Cuadros anuales'!J98","v":21.019407980131753},{"$f":"[2]METAS!I98","v":"n.d."},{"$f":"[2]METAS!$L98","v":""},{"$f":"[2]METAS!$P98","v":"n.d."}]
["Rep Dominicana",{"$f":"+'[2]Cuadros anuales'!H75","v":-7.9587588338827908},{"$f":"+'[2]Cuadros anuales'!I75","v":21.204826294178723},{"$f":"+'[2]Cuadros anuales'!J75","v":10.335244746283973},{"$f":"[2]METAS!I75","v":4.8},{"$f":"([2]METAS!L75)","v":""},{"$f":"[2]METAS!$P75","v":"n.d."},47,"Rep Dominicana",{"$f":"+'[2]Cuadros anuales'!H99","v":-15.605048401898575},{"$f":"+'[2]Cuadros anuales'!I99","v":41.958491669102585},{"$f":"+'[2]Cuadros anuales'!J99","v":26.607775306811654},{"$f":"[2]METAS!I99","v":0.7},{"$f":"[2]METAS!$L99","v":""},{"$f":"[2]METAS!$P99","v":"n.d."}]
["Promedio región CARD",{"$f":"+'[2]Cuadros anuales'!H78","v":-5.6558130354299649},{"$f":"+'[2]Cuadros anuales'!I78","v":24.670533748827125},"n.d.",{"$f":"[2]METAS!I78","v":"n.d."},null,{"$f":"[2]METAS!$P78","v":"n.d."},null,"Promedio región CARD",{"$f":"+'[2]Cuadros anuales'!H102","v":-12.424211395836394},{"$f":"+'[2]Cuadros anuales'!I102","v":42.709048119583507},"n.d.",{"$f":"[2]METAS!I102","v":"n.d."},null,{"$f":"[2]METAS!$P102","v":"n.d."}]
["En Honduras no se incluyen los bienes para la transformación.",null,null,null,null,null,null,null,"En Honduras no se incluyen los bienes para la transformación."]
["Cuadro 7",null,null,null,null,null,null,null,"Cuadro 8"]
["Remesas (Ingreso)\nen millones de US$",{"$f":"B7","v":2020},2021,2022,"Proyección inicial 2023","Proyección revisada 2023","Proyección\n2024",null,"Saldo Operacional del Gobierno Central/PIB",{"$f":"B7","v":2020},{"$f":"C7","v":2021},{"$f":"D17","v":"2022"},{"$f":"E7","v":"Proyección inicial 2023"},{"$f":"F7","v":"Proyección revisada 2023"},{"$f":"G7","v":"Proyección\n2024"}]
["Costa Rica",{"$f":"+'[2]Cuadros anuales'!H130","v":495.26073155},{"$f":"+'[2]Cuadros anuales'!I130","v":558.81444390000001},{"$f":"+'[2]Cuadros anuales'!J130","v":575.28676134},{"$f":"+[2]METAS!I130","v":"n.d."},{"$f":"+[2]METAS!L130","v":""},{"$f":"+[2]METAS!P130","v":"n.d."},{"$f":"+E38","v":"n.d."},"Costa Rica",{"$f":"+'[2]Cuadros anuales'!H191","v":-7.9624898324069173},{"$f":"+'[2]Cuadros anuales'!I191","v":-4.991797416780698},{"$f":"+'[2]Cuadros anuales'!J191","v":-2.4871078614379343},{"$f":"+[2]METAS!I179","v":-3.5},{"$f":"[2]METAS!L179","v":-3.4},{"$f":"[2]METAS!P179","v":-3.1},{"$f":"+N38","v":-3.4}]
["El Salvador",{"$f":"+'[2]Cuadros anuales'!H131","v":5929.94},{"$f":"+'[2]Cuadros anuales'!I131","v":7585.2399999999989},{"$f":"+'[2]Cuadros anuales'!J131","v":7819.57},{"$f":"+[2]METAS!I131","v":"n.d."},{"$f":"+[2]METAS!L131","v":""},{"$f":"+[2]METAS!P131","v":"n.d."},{"$f":"+E39","v":"n.d."},"El Salvador",{"$f":"+'[2]Cuadros anuales'!H192","v":-9.1032944097305659},{"$f":"+'[2]Cuadros anuales'!I192","v":-4.8105418199488801},{"$f":"+'[2]Cuadros anuales'!J192","v":-1.8080036296798101},"n.d.",{"$f":"[2]METAS!L180","v":""},{"$f":"[2]METAS!P180","v":"n.d."},{"$f":"+M39","v":"n.d."}]
["Guatemala",{"$f":"+'[2]Cuadros anuales'!H132","v":11340.5},{"$f":"+'[2]Cuadros anuales'!I132","v":15295.7},{"$f":"+'[2]Cuadros anuales'!J132","v":18040.321084679999},{"$f":"+[2]METAS!I132","v":18645.440281156458},{"$f":"+[2]METAS!L132","v":20024.756421000002},{"$f":"+[2]METAS!P132","v":"n.d."},{"$f":"+E40","v":18645.440281156458},"Guatemala",{"$f":"+'[2]Cuadros anuales'!H193","v":-4.9098354207187729},{"$f":"+'[2]Cuadros anuales'!I193","v":-1.1675467053326296},{"$f":"+'[2]Cuadros anuales'!J193","v":-1.7065015182696825},{"$f":"+[2]METAS!I181","v":-2.5086521629048839},{"$f":"[2]METAS!L181","v":-1.7088856251963942},{"$f":"[2]METAS!P181","v":"n.d."},{"$f":"+M40","v":-2.5086521629048839}]
["Honduras",{"$f":"+'[2]Cuadros anuales'!H133","v":5741.0465999999997},{"$f":"+'[2]Cuadros anuales'!I133","v":7370.0331000000006},{"$f":"+'[2]Cuadros anuales'!J133","v":8686.1973000000016},{"$f":"+[2]METAS!I133","v":9184.4},{"$f":"+[2]METAS!L133","v":8888.2000000000007},{"$f":"+[2]METAS!P133","v":9332.6},{"$f":"+F41","v":8888.2000000000007},"Honduras",{"$f":"+'[2]Cuadros anuales'!H194","v":-6.9899553353417119},{"$f":"+'[2]Cuadros anuales'!I194","v":-4.9629505340345332},{"$f":"+'[2]Cuadros anuales'!J194","v":-1.291929096765275},{"$f":"+[2]METAS!I182","v":4.2},{"$f":"[2]METAS!L182","v":""},{"$f":"[2]METAS!P182","v":3.6},-3.7]
["Nicaragua",{"$f":"+'[2]Cuadros anuales'!H134","v":1851.4},{"$f":"+'[2]Cuadros anuales'!I134","v":2146.8999999999996},{"$f":"+'[2]Cuadros anuales'!J134","v":3224.9},{"$f":"+[2]METAS!I134","v":"n.d."},{"$f":"+[2]METAS!L134","v":""},{"$f":"+[2]METAS!P134","v":"n.d."},null,"Nicaragua",{"$f":"+'[2]Cuadros anuales'!H195","v":-1.0522991545555593},{"$f":"+'[2]Cuadros anuales'!I195","v":-0.73423406305750549},{"$f":"+'[2]Cuadros anuales'!J195","v":1.2934473464259699},"n.d.",{"$f":"[2]METAS!L183","v":""},{"$f":"[2]METAS!P183","v":"n.d."},{"$f":"+M42","v":"n.d."}]
["Rep Dominicana",{"$f":"+'[2]Cuadros anuales'!H135","v":8219.262925713756},{"$f":"+'[2]Cuadros anuales'!I135","v":10402.469200279835},{"$f":"+'[2]Cuadros anuales'!J135","v":9856.4974610398658},{"$f":"+[2]METAS!I135","v":10200},{"$f":"+[2]METAS!L135","v":""},{"$f":"+[2]METAS!P135","v":"n.d."},null,"Rep Dominicana",{"$f":"+'[2]Cuadros anuales'!H196","v":-7.9061094698755703},{"$f":"+'[2]Cuadros anuales'!I196","v":-2.9393213821956641},{"$f":"+'[2]Cuadros anuales'!J196","v":-3.2473042830391603},{"$f":"+[2]METAS!I184","v":"n.d."},{"$f":"[2]METAS!L184","v":""},{"$f":"[2]METAS!P184","v":"n.d."},{"$f":"+M43","v":"n.d."}]
["Total región CARD",{"$f":"+'[2]Cuadros anuales'!H138","v":43359.156744179832},{"$f":"+'[2]Cuadros anuales'!I138","v":48202.772607059866},"n.d.",{"$f":"+[2]METAS!I138","v":"n.d."},null,{"$f":"CONCATENATE([2]METAS!P138,\"\")","v":"n.d."},null,"Promedio región CARD",{"$f":"+'[2]Cuadros anuales'!H199","v":-6.7065570459694364},{"$f":"+'[2]Cuadros anuales'!I199","v":-2.9902826503319488},"n.d.",{"$f":"+[2]METAS!I187","v":"n.d"},null,{"$f":"[2]METAS!P187","v":"n.d."}]
[null,null,null,null,null,null,null,null,"Incluye donaciones"]
["Fuente: Bancos Centrales Centroamericanos y de República Dominicana."]
["NOTAS:"]
["La región CARD incluye a los países de Centroamérica y República Dominicana"]
["Los promedios regionales están ponderados conforme al tamaño de cada economía. "]

{"sheet":"Seguimiento proyecciones","index":7,"n_rows":93,"n_cols":14,"rows_kept":93,"cut":false,"hidden":false,"merged":[[92,0,93,7],[27,19,27,25],[28,19,28,25],[27,0,28,6],[5,8,5,16],[6,8,6,16],[28,8,28,16],[24,8,24,16],[71,0,72,6],[49,0,50,6],[49,8,50,16],[1,13,1,14],[48,0,48,7],[48,8,48,14],[24,0,24,6],[25,8,25,14],[4,0,4,15],[5,0,6,6],[3,0,3,16],[1,15,2,16],[27,8,27,16]]}
[]
["CONSEJO MONETARIO CENTROAMERICANO",null,null,null,null,null,null,null,null,null,null,null,{"$f":"CONCATENATE(Indice!$J$47,\",\")","v":"REM N° 282,"},{"$f":"Indice!$J$48","v":"Enero 2024"}]
["SECRETARIA EJECUTIVA"]
["SEGUIMIENTO DE LAS PROYECCIONES EN 2023"]
[]
["Inflación Acumulada en 2024",null,null,null,null,null,null,null,"Resultado operacional del Gobierno Central 2023"]
[null,null,null,null,null,null,null,null,"(incluye las donaciones)"]
[]
[]
[]
[]
[]
[]
[]
[]
[]
[]
[]
[]
[]
[]
[]
[]
[]
["Cuando se especifica un rango en las metas de inflación, se toma el límite superior.\n",null,null,null,null,null,null,null,"El saldo positivo de República Dominicana se debe a que en enero del 2015 se incluye dentro de las donaciones la suma de RD$ 93,157.2 millones, correspondiente al descuento generado por la transacción de deuda realizada con Petrocaribe."]
[]
[]
["Saldo en la Cuenta Corriente 2023",null,null,null,null,null,null,null,"Reservas Internacionales Netas"]
[null,null,null,null,null,null,null,null,"del Banco Central  2023"]
[null,null,null,null,null,null,null,{"$f":"IF([1]EJECUTIVO!$J$38=[1]EJECUTIVO!$J$4,[1]EJECUTIVO!$G$38,(CONCATENATE([1]EJECUTIVO!$G$38,\"\n\",[1]EJECUTIVO!$I$37,\"          \",[1]EJECUTIVO!$J$37)))","v":"ENERO\n2022          2023"}]
[]
[]
[]
[]
[]
[]
[]
[]
[]
[]
[]
[]
[]
[]
[]
[]
[]
[]
[null,null,null,null,null,null,null,null,"\n"]
["Exportaciones Totales con Maquila 2023",null,null,null,null,null,null,null,"Importaciones Totales con Maquila 2023"]
[]
[]
[]
[]
[]
[]
[]
[]
[]
[]
[]
[]
[]
[]
[]
[]
[]
[]
[]
[]
[]
["Ingresos por Remesas Familiares 2023"]
[]
[]
[]
[]
[]
[]
[]
[]
[]
[]
[]
[]
[]
[]
[]
[]
[]
[]
[]
[]
["Los datos de Costa Rica no están disponibles en forma mensual. Anualmente Costa Rica recibe alrededor de 500 millones de US dólares por concepto de remesas."]

{"sheet":"Gráficos-pais","index":8,"n_rows":182,"n_cols":19,"rows_kept":182,"cut":false,"hidden":false,"merged":[[182,9,182,16],[181,9,181,16],[159,9,160,17],[159,0,159,7],[160,0,160,7],[80,9,81,16],[159,21,159,28],[160,21,160,28],[181,21,181,28],[181,0,181,7],[157,9,157,16],[158,9,158,16],[136,9,136,16],[108,0,109,7],[130,0,130,7],[108,9,109,16],[156,0,156,7],[131,0,131,7],[131,9,131,16],[133,0,134,7],[133,9,134,16],[57,9,58,16],[33,9,33,16],[34,9,34,16],[33,0,33,7],[34,0,34,7],[1,18,2,21],[4,0,5,16],[82,9,82,16],[106,0,106,7],[106,9,106,16],[85,0,85,7],[85,9,85,16],[84,9,84,16],[9,18,12,21],[9,9,9,16],[10,9,10,16],[80,0,83,7],[2,15,2,16],[9,0,10,7],[84,0,84,7],[57,0,58,7]]}
[]
[null,null,null,null,null,null,null,null,null,null,null,null,null,null,null,null,null,null,"Seleccione el país"]
["CONSEJO MONETARIO CENTROAMERICANO",null,null,null,null,null,null,null,null,null,null,null,null,null,{"$f":"CONCATENATE(Indice!$J$47,\",\")","v":"REM N° 282,"},{"$f":"Indice!$J$48","v":"Enero 2024"}]
["SECRETARIA EJECUTIVA"]
["EVOLUCIÓN POR PAÍS DE INDICADORES MACROECONÓMICOS SELECCIONADOS "]
[]
[]
[]
[]
["Tasa de Inflación Interanual ",null,null,null,null,null,null,null,null,"IMAE",null,null,null,null,null,null,null,null,"Nota: Se le recuerda habilitar las macros para hacer uso de las herramientas dinámicas presentes en este informe. \n"]
[null,null,null,null,null,null,null,null,null,"Variación interanual de la Tendencia-Ciclo"]
[]
[]
[]
[]
[]
[]
[]
[]
[]
[]
[]
[]
[]
[]
[]
[]
[]
[]
[null,null,null,null,null,null,null,{"$f":"IF([1]EJECUTIVO!$J$38=[1]EJECUTIVO!$J$4,[1]EJECUTIVO!$G$38,(CONCATENATE([1]EJECUTIVO!$G$38,\"\n\",[1]EJECUTIVO!$I$37,\"          \",[1]EJECUTIVO!$J$37)))","v":"ENERO\n2022          2023"}]
[]
[]
[]
["ITCER bilateral USA\naño base 2000",null,null,null,null,null,null,null,null,"Tipo de Cambio Nominal\nTasa de variación interanual"]
["2000=100",null,null,null,null,null,null,null,null,"Tasa de Variación Interanual"]
[]
[]
[]
[]
[]
[]
[]
[]
[]
[]
[]
[]
[]
[]
[]
[]
[]
[]
[]
[]
[]
[]
["RIN Banco Central",null,null,null,null,null,null,null,null,"RIN Banco Central/ Base Monetaria Amplia"]
[]
[]
[]
[]
[]
[]
[]
[]
[]
[]
[]
[]
[]
[]
[]
[]
[]
[]
[]
[]
[]
[]
["En Panamá, el Banco Nacional de Panamá (BNP) funciona como receptor y gestor de las RIN que corresponden a los activos externos de reserva menos los pasivos de corto plazo frente a no residentes. Los primeros se componen de: billetes y depósitos en moneda extranjera e inversiones en títulos (incluidos los títulos de deuda y participaciones de capital); los pasivos se componen de los depósitos transferibles de no residentes en moneda extranjera.\nEn Costa Rica se dió un aumento en las RIN en marzo de 2018 de US$ 1.000 millones provenientes del FLAR.",null,null,null,null,null,null,null,null,"República Dominicana presenta un incremento de US$1,246 millones en febrero de 2018 debido a la colocación de bonos soberanos en el mercado global de capitales.\nEn El Salvador al cierre de febrero de 2017 las Reservas Internacionales Netas (RIN) alcanzaron un nivel de US$3,510.9 millones, un incremento de US$607 millones respecto al mes de enero de 2017, explicado por la colocación de bonos del Gobierno de El Salvador ($601 millones). \nLa relación RIN a Base Monetaria es alta en Panamá (escala derecha) debido a que la base monetaria es pequeña; esto es consecuencia de que no existe encaje legal debido a la ausencia de Banco Central."]
[]
[]
[]
["Exportaciones totales FOB, del mes                                     ",null,null,null,null,null,null,null,null,"Importaciones totales CIF, del mes"]
["Promedio móvil de los últimos 12 meses",null,null,null,null,null,null,null,null,"Promedio móvil de los últimos 12 meses"]
[]
[]
[]
[]
[]
[]
[]
[]
[]
[]
[]
[]
[]
[]
[]
[]
[]
[]
[]
[]
["Las cifras de Honduras no incluyen la maquila.",null,null,null,null,null,null,null,null,"Las cifras de Honduras no incluyen la maquila."]
[]
["Tasa de interés pasiva real en MN\na 180 días",null,null,null,null,null,null,null,null,"Tasa de interés activa real en MN\nde corto plazo"]
[]
[]
[]
[]
[]
[]
[]
[]
[]
[]
[]
[]
[]
[]
[]
[]
[]
[]
[]
[]
[]
[]
["La tasa real se obtiene deflatando con la tasa de variación interanual del IPC al mes indicado.",null,null,null,null,null,null,null,null,"La tasa real se obtiene deflatando con la tasa de variación interanual del IPC al mes indicado."]
[]
["Tasa de interés pasiva en ME\na 180 días",null,null,null,null,null,null,null,null,"Tasa de interés activa en ME\nde corto plazo"]
[]
[]
[]
[]
[]
[]
[]
[]
[]
[]
[]
[]
[]
[]
[]
[]
[]
[]
[]
[]
[]
[]
[]
[null,null,null,null,null,null,null,null,null,"En Honduras, a partir de enero 2017, la CNBS implementó las Normas Internacionales de Información Financiera (NIIF) en los balances contables de los Bancos Comerciales, Sociedades Financieras y Banhprovi, permitiendo cambios en el cálculo de las tasas de interés activas y pasivas."]
[null,null,null,null,null,null,null,null,null,"En Costa Rica a partir de enero 2019 cambia la metodología de cálculo de tasas de interés para utilizar tasas ponderadas por el monto de la operación."]
["Tasa de interés líder de Política Monetaria",null,null,null,null,null,null,null,null,"Créditos de las OSD al sector Privado, Variación Interanual "]
["evolución mensual"]
[]
[]
[]
[]
[]
[]
[]
[]
[]
[]
[]
[]
[]
[]
[]
[]
[]
[]
[]
[]
["En Nicaragua corresponde a la Tasa de Referencia de Reportos Monetarios (TRM) que el BCN utiliza para indicar el costo de operaciones a un día en las subastas de reportos monetarios. Es definida por el Comité de Operaciones de Mercado Abierto. La serie inicia en abril de 2020."]

{"sheet":"Nota Técnica","index":9,"n_rows":46,"n_cols":13,"rows_kept":46,"cut":false,"hidden":false,"merged":[[8,3,8,12],[0,10,0,14],[1,10,1,14],[31,3,31,5],[31,7,31,9],[31,11,31,13],[30,1,30,14],[4,3,5,12],[6,3,6,12],[7,3,7,12],[11,1,11,14],[22,4,22,14],[23,4,23,14],[24,4,24,14],[25,4,25,14],[21,4,21,14],[43,1,44,14],[45,1,48,14],[19,1,19,14],[20,7,20,14],[26,4,26,14],[27,4,27,14],[27,1,27,3],[28,4,28,14]]}
[null,null,null,null,null,null,null,null,null,null,"Consejo Monetario Centroamericano"]
[null,null,null,null,null,null,null,null,null,null,"Secretaría Ejecutiva"]
[]
[]
[null,null,null,"REPORTE EJECUTIVO MENSUAL"]
[]
[null,null,null,"DE INDICADORES MACROECONÓMICOS"]
[null,null,null,"DE CENTROAMÉRICA, REPÚBLICA DOMINICANA y"]
[null,null,null,"PANAMÁ"]
[]
[]
[null,"Glosario de Términos"]
[null,"PIB",null,"Producto Interno Bruto"]
[null,"IMAE",null,"Índice Mensual de Actividad Económica"]
[null,"IPC",null,"Índice de Precios al Consumidor"]
[null,"ISI",null,"Índice Subyacente de Inflación. En algunos países se utiliza el Indice del Nucleo Inflacionario (INI)"]
[null,"Región CARD",null,"La región incluye los siguientes países: Costa Rica, El Salvador, Guatemala, Honduras, Nicaragua y República Dominicana"]
[null,"Región CAPARD",null,"La región incluye los siguientes países: Costa Rica, El Salvador, Guatemala, Honduras, Nicaragua, Panamá y República Dominicana"]
[]
[null,"Definición de términos"]
[]
[null,"Variación Interanual",null,null,"Variación porcentual del nivel del mes respecto al mismo mes del año anterior."]
[null,"Variación acumulada",null,null,"Variación porcentual del nivel del mes vigente respecto al mes de diciembre del año anterior."]
[null,"Aceleración",null,null,"Diferencia en valor absoluto entre la variación (interanual) de un mes respecto al mes anterior. Su interpretación se realiza en puntos porcentuales."]
[null,"Metas de Inflación",null,null,"Esquema donde el Banco Central hace explícita su meta de inflación puntual o rango, y los instrumentos de política monetaria se direccionan en la obtención de dicha meta."]
[null,"Inflación Subyacente",null,null,"El Índice subyacente de Inflación (ISI) se define como el componente del cambio total de precios común a todos los bienes y servicios, cuya persistencia se mantendría en el mediano y largo plazo. El ISI constituye una medida alternativa del IPC, al que se le han eliminado algunos de los bienes y servicios cuyos precios son, por lo general, los más volátiles.  El algunos países se denomina índice del nucleo inflacionario."]
[null,"Tendencia-Ciclo",null,null,"Serie de tiempo que excluye los componentes de estacionalidad e irregularidad."]
[null,"RIN/meses de importación promedio",null,null,"Tanto en el cuadro regional como en el compartivo por país se calcula la relación de RIN a importaciones promedio. En ambos casos el denominador corresponde al promedio de importaciones observadas de enero al mes indicado.  En el cálculo regional se suman las importaciones totales y las RIN de todos los países de la región."]
[]
[]
[null,"Periodos base de los principales indicadores del sector real"]
[null,null,null,"Año Base o de referencia del Indicador Mensual de Actividad Económica IMAE",null,null,null,"Año Base o de referencia del Producto Interno Bruto en términos constantes ",null,null,null,"Periodo base de los Índices de Precios al Consumidor "]
[null,"País"]
[null,"Costa Rica",null,null,2017,null,null,null,2017,null,null,null,"Diciembre 2020"]
[null,"El Salvador",null,null,2014,null,null,null,2014,null,null,null,"Diciembre 2009"]
[null,"Guatemala",null,null,2013,null,null,null,2013,null,null,null,"Diciembre 2023"]
[null,"Honduras",null,null,2000,null,null,null,2000,null,null,null,"Diciembre 1999"]
[null,"Nicaragua",null,null,2006,null,null,null,2006,null,null,null,2006]
[null,"República Dominicana",null,null,2007,null,null,null,2007,null,null,null,"Oct.2019-Sept. 2020"]
[null,"Panamá",null,null,2007,null,null,null,2007,null,null,null,2013]
[]
[]
[]
[null," Los ponderadores"]
[]
[null,"Los cálculos regionales están basados en promedios ponderados de las tasas de variación de cada país. Los ponderadores por país se obtienen Banco Mundial utilizando el Gasto de consumo final de los hogares (GCFH) y de las instituciones sin fines de lucro que sirven a los hogares (ISFLSH) según la paridad del poder de compra (PPC) para las variables de precios y del  Producto Interno Bruto según PPC para las variables de producción.  Para mayor detalle consultar el Documento de Trabajo SECMCA-01-2021 “Propuesta de cambio en el método de agregación de variables y ponderadores regionales”, http://www.secmca.org/wp-content/uploads/2021/03/Propuesta-de-cambio-en-el-m%C3%A9todo-de\u0002agregaci%C3%B3n-de-variables-y-ponderadores-regionales.pdf. "]

{"sheet":"Gráfico Seguimiento","index":10,"n_rows":9,"n_cols":17,"rows_kept":9,"cut":false,"hidden":true,"merged":[[9,16,14,16],[9,10,14,10],[9,12,14,12],[9,2,14,2],[9,14,14,14],[0,11,0,12],[0,13,0,14],[0,1,0,2],[0,3,0,4],[0,5,0,6],[0,7,0,8],[0,9,0,10]]}
[null,"INFLACIÓN",null,"RIN",null,"RESULTADO OPERACIONAL GC",null,"CUENTA CORRIENTE",null,"Exportaciones",null,"Importaciones ",null,"Remesas acumuladas",null,"Remesas sin CR-NI",{"$f":"+[2]EJECUTIVO!$G$72","v":"SEPTIEMBRE"}]
[null,"Proy.dic/24",{"$f":"[2]METAS!S19","v":"ENE.24"},"Proy.dic/24",{"$f":"+[2]METAS!$S117","v":"ENE.24"},{"$f":"+[2]METAS!$M166","v":"Proy.dic/23"},{"$f":"+[2]METAS!$S166","v":"DIC.23"},{"$f":"+[2]METAS!$M141","v":"Proy.dic/23"},{"$f":"[2]METAS!S141","v":"III TRIM.23"},{"$f":"+[2]METAS!$M57","v":"Proy.dic/23"},{"$f":"+[2]METAS!$S57","v":"NOV.23"},{"$f":"+[2]METAS!$M81","v":"Proy.dic/23"},{"$f":"+[2]METAS!$S81","v":"NOV.23"},{"$f":"+[2]METAS!$M129","v":"Proy.dic/23"},{"$f":"+[2]METAS!$S129","v":"SEP.23"},{"$f":"+[2]METAS!$M129","v":"Proy.dic/23"},{"$f":"+[2]METAS!$V129","v":"SEP.23"}]
["CR",{"$f":"+[2]METAS!$O8","v":4},{"$f":"[2]METAS!S20","v":5.5097266448167481E-2},null,{"$f":"+[2]METAS!$S118","v":14337},null,{"$f":"+[2]METAS!$S167","v":-4606.6294033498743},null,{"$f":"[2]METAS!S142","v":-580.77615327325429},null,{"$f":"+[2]METAS!$S58","v":16683.073816059936},null,{"$f":"+[2]METAS!$S82","v":20669.151314080016},null,{"$f":"+[2]METAS!$S130","v":473.82765368000003}]
["ES",2.5,{"$f":"[2]METAS!S21","v":0.32472552961186896},null,{"$f":"+[2]METAS!$S119","v":2761},null,{"$f":"+[2]METAS!$S168","v":-764.56654578435075},null,{"$f":"[2]METAS!S143","v":-550.89487173979376},null,{"$f":"+[2]METAS!$S59","v":6048.98},null,{"$f":"+[2]METAS!$S83","v":14399.600000000002},null,{"$f":"+[2]METAS!$S131","v":8181.7900000000009},null,{"$f":"+[2]METAS!$V131","v":8181.7900000000009}]
["GT",5,{"$f":"[2]METAS!S22","v":2.9999999999996696E-2},{"$f":"+[2]METAS!$M120","v":20769.8},{"$f":"+[2]METAS!$S120","v":21227},{"$f":"+[2]METAS!$M$169","v":-1743.9078573004156},{"$f":"+[2]METAS!$S169","v":-1426.8715447956261},{"$f":"+'[5]HIST METAS'!$AO$23","v":1535.2000000000007},{"$f":"[2]METAS!S144","v":2879.6},{"$f":"+[2]METAS!$M60","v":15184.793860200001},{"$f":"+[2]METAS!$S60","v":11975.862681999999},{"$f":"+[2]METAS!$M84","v":32444.954753779999},{"$f":"+[2]METAS!$S84","v":27899.528768},{"$f":"+[2]METAS!$M132","v":20024.756421000002},{"$f":"+[2]METAS!$S132","v":14773.640300459996},{"$f":"+[2]METAS!$M132","v":20024.756421000002},{"$f":"+[2]METAS!$V132","v":14773.640300459996}]
["HO",5,{"$f":"[2]METAS!S23","v":0.23496240601503793},null,{"$f":"+[2]METAS!$S121","v":7396},null,null,null,{"$f":"[2]METAS!S145","v":-451.33272830499004},{"$f":"+[2]METAS!$M61","v":11671.295073395913},{"$f":"+[2]METAS!$S61","v":10598.973213455403},{"$f":"+[2]METAS!$M85","v":19705.831158922698},{"$f":"+[2]METAS!$S85","v":17877.746425495836},{"$f":"+[2]METAS!$M133","v":8888.2000000000007},{"$f":"+[2]METAS!$S133","v":6853.7064999999993},{"$f":"+[2]METAS!$M133","v":8888.2000000000007},{"$f":"+[2]METAS!$V133","v":6853.7064999999993}]
["NI",4,{"$f":"[2]METAS!S24","v":0.2751484010641958},null,{"$f":"+[2]METAS!$S122","v":5472},null,null,null,{"$f":"[2]METAS!S146","v":1201.6000000000001},null,{"$f":"+[2]METAS!$S62","v":7036.3237527045803},null,{"$f":"+[2]METAS!$S86","v":9162.6653967199982},null,{"$f":"+[2]METAS!$S134","v":3433.5000000000005},null,{"$f":"+[2]METAS!$V134","v":3433.5000000000005}]
["RD",{"$f":"+[2]METAS!$O13","v":5},{"$f":"[2]METAS!S25","v":0.39008084650864472},null,{"$f":"+[2]METAS!$S123","v":14360},null,{"$f":"+[2]METAS!$S172","v":-4013.3266480037064},null,{"$f":"[2]METAS!S147","v":-3483.800000000002},{"$f":"+[2]METAS!$M63","v":14400},null,{"$f":"+[2]METAS!$M87","v":32894.903000000006},null,{"$f":"+[2]METAS!$M135","v":10200},{"$f":"+[2]METAS!$S135","v":7597.1028748752715},{"$f":"+[2]METAS!$M135","v":10200},{"$f":"+[2]METAS!$V135","v":7597.1028748752715}]
[null,"Nicaragua siempre da error el link y por eso se ingresa a mano"]

{"sheet":"Datos_Regional (M)","index":11,"n_rows":422,"n_cols":112,"rows_kept":422,"cut":false,"hidden":true,"merged":[[0,96,0,103],[0,104,0,111],[0,73,0,75],[0,76,0,89],[0,44,0,47],[0,48,0,53],[0,54,0,60],[0,12,1,12],[0,0,1,2],[0,3,1,3],[0,4,1,4],[0,11,1,11],[0,5,1,5],[0,6,1,6],[0,9,0,10],[0,7,0,8],[0,13,1,13],[0,14,1,14],[0,61,0,67],[0,69,1,69],[0,70,0,72],[0,27,0,30],[0,15,0,20],[0,21,0,26],[0,68,1,68],[0,31,0,36],[0,37,0,43]]}
["Variables Mensuales Regional",null,null,"IPC CARD","IPC CARD_T","IPC CAPARD","IPC CAPARD_T","CARD",null,"CAPARD",null,"RIN_CARD","RIN\nDiciembres","RIN_CAPARD","RIN\nDiciembres","CARD",null,null,null,null,null,"CAPARD",null,null,null,null,null,"Crédito de las OSD con SPNF",null,null,null,"Créditos de las OSD con el sector privado, saldo en millones de USD",null,null,null,null,null,"Tasa de variación Interanual",null,null,null,null,null,null,"Crédito de las OSD con SPNF",null,null,null,"Créditos de las OSD con el sector privado, saldo en millones de USD",null,null,null,null,null,"Tasa de variación Interanual",null,null,null,null,null,null,"Tasa de Política Monetaria",null,null,null,null,null,null,"CARD Saldo operacional GC","CAPARD Saldo operacional GC","CARD",null,null,"CAPARD",null,null,"Crédito de las OSD con el Sector Privado MN",null,null,null,null,null,null,null,null,null,null,null,null,null,"Mill-US$","Mill-US$","%","Mill-US$","Mill-US$","%","CARD",null,null,null,null,null,null,null,"CAPARD"]
[null,null,null,null,null,null,null,"IMAER_TC","IMAER_T","IMAER CARD_TC","IMAER CAPARD_T",null,null,null,null,"M1","M2","M3","M1_%","M2_%","M3_%","M1","M2","M3","M1_%","M2_%","M3_%","Activos","Pasivos","Crédito Neto","%Interanual","Otras sociedades no financieras","Otros sectores 1/","Otras sociedades no financieras","Hogares e ISFLSH",null,"TOTAL","Otras sociedades no financieras",null,"Otros sectores 1/","Otras sociedades no financieras","Hogares e ISFLSH","TOTAL","Aceleración","Activos","Pasivos","Crédito Neto","%Interanual","Otras sociedades no financieras","Otros sectores 1/","Otras sociedades no financieras","Hogares e ISFLSH",null,"TOTAL","Otras sociedades no financieras",null,"Otros sectores 1/","Otras sociedades no financieras","Hogares e ISFLSH","TOTAL","Aceleración","Costa Rica","El Salvador","Guatemala","Honduras","Nicaragua","República Dominicana","PA",null,null,"Deuda Pública total","Deuda Interna","Deuda Externa","Deuda Pública total","Deuda Interna","Deuda Externa","CR","SV","GT","HO","NI","RD","PA","CR %","SV %","GT %","HO %","NI %","RD %","PA %","CARD Saldo Operacional con donaciones","CARD PIB a precios corrientes","CARD Saldo operacional/PIB","CAPARD Saldo Operacional con donaciones","CAPARD PIB a precios corrientes","CAPARD Saldo operacional/PIB","Credito TOTAL","Créditos de las OSD a sector Público","Créditos de las OSD a sector Privado","Créditos de las OSD a no residentes y otros","Credito TOTAL %","Créditos de las OSD a sector Público %","Créditos de las OSD a sector Privado %","Créditos de las OSD a no residentes y otros %","Credito TOTAL","Créditos de las OSD a sector Público","Créditos de las OSD a sector Privado","Créditos de las OSD a no residentes y otros","Credito TOTAL %","Créditos de las OSD a sector Público %","Créditos de las OSD a sector Privado %","Créditos de las OSD a no residentes y otros %"]
[1990,"enero",{"$f":"A3&\"-\"&B3","v":"1990-enero"},{"$f":"IF('[2]REAL IPC(M)'!$AL10=\"\",\"\",+'[2]REAL IPC(M)'!$AL10)","v":"n.d."},{"$f":"IF('[2]REAL IPC(M)'!$BE10=\"\",\"\",+'[2]REAL IPC(M)'!$BE10)","v":"n.d."},{"$f":"IF('[2]REAL IPC(M)'!$AM10=\"\",\"\",+'[2]REAL IPC(M)'!$AM10)","v":"n.d."},{"$f":"IF('[2]REAL IPC(M)'!$BI10=\"\",\"\",+'[2]REAL IPC(M)'!$BI10)","v":"n.d."},{"$f":"IF('[2]REAL IMAE(M)'!BJ10=\"\",\"\",'[2]REAL IMAE(M)'!BJ10)","v":"n.d."},{"$f":"IF('[2]REAL IMAE(M)'!BK10=\"\",\"\",'[2]REAL IMAE(M)'!BK10)","v":"n.d."},{"$f":"IF('[2]REAL IMAE(M)'!BN10=\"\",\"\",'[2]REAL IMAE(M)'!BN10)","v":"n.d."},{"$f":"IF('[2]REAL IMAE(M)'!BO10=\"\",\"\",'[2]REAL IMAE(M)'!BO10)","v":"n.d."},{"$f":"IF('[2]EXT RIN(M)'!$K10=\"\",\"\",'[2]EXT RIN(M)'!$K10)","v":"n.d."},{"$f":"IF(B3<>\"diciembre\",\"\",L3)","v":""},{"$f":"IF('[2]EXT RIN(M)'!$L10=\"\",\"\",'[2]EXT RIN(M)'!$L10)","v":"n.d."},{"$f":"IF(B3<>\"diciembre\",\"\",N3)","v":""},{"$f":"IF('[2]MONE(M)CARD'!EG10=\"\",\"\",'[2]MONE(M)CARD'!EG10)","v":"n.d."},{"$f":"IF('[2]MONE(M)CARD'!EK10=\"\",\"\",'[2]MONE(M)CARD'!EK10)","v":"n.d."},{"$f":"IF('[2]MONE(M)CARD'!EP10=\"\",\"\",'[2]MONE(M)CARD'!EP10)","v":"n.d."},{"$f":"IF('[2]MONE(M)CARD'!ES10=\"\",\"\",'[2]MONE(M)CARD'!ES10)","v":"n.d."},{"$f":"IF('[2]MONE(M)CARD'!EV10=\"\",\"\",'[2]MONE(M)CARD'!EV10)","v":"n.d."},{"$f":"IF('[2]MONE(M)CARD'!EZ10=\"\",\"\",'[2]MONE(M)CARD'!EZ10)","v":"n.d."},{"$f":"IF('[2]MONE(M)CAPARD'!FC10=\"\",\"\",'[2]MONE(M)CAPARD'!FC10)","v":"n.d."},{"$f":"IF('[2]MONE(M)CAPARD'!FG10=\"\",\"\",'[2]MONE(M)CAPARD'!FG10)","v":"n.d."},{"$f":"IF('[2]MONE(M)CAPARD'!FL10=\"\",\"\",'[2]MONE(M)CAPARD'!FL10)","v":"n.d."},{"$f":"IF('[2]MONE(M)CAPARD'!FO10=\"\",\"\",'[2]MONE(M)CAPARD'!FO10)","v":"n.d."},{"$f":"IF('[2]MONE(M)CAPARD'!FR10=\"\",\"\",'[2]MONE(M)CAPARD'!FR10)","v":"n.d."},{"$f":"IF('[2]MONE(M)CAPARD'!FV10=\"\",\"\",'[2]MONE(M)CAPARD'!FV10)","v":"n.d."},{"$f":"IF('[2]MONE(M)CARD'!FV10=\"\",\"\",'[2]MONE(M)CARD'!FV10)","v":""},{"$f":"IF('[2]MONE(M)CARD'!GD10=\"\",\"\",'[2]MONE(M)CARD'!GD10)","v":"n.d."},{"$f":"IF('[2]MONE(M)CARD'!GE10=\"\",\"\",'[2]MONE(M)CARD'!GE10)","v":"n.d."},"n.d.","n.d.","n.d.","n.d.","n.d.",null,"n.d.","n.d.",null,"n.d.","n.d.","n.d.","n.d.","n.d.",{"$f":"IF('[2]MONE(M)CAPARD'!GS10=\"\",\"\",'[2]MONE(M)CAPARD'!GS10)","v":"n.d."},{"$f":"IF('[2]MONE(M)CARD'!HA10=\"\",\"\",'[2]MONE(M)CAPARD'!HA10)","v":"n.d."},{"$f":"IF('[2]MONE(M)CAPARD'!HB10=\"\",\"\",'[2]MONE(M)CAPARD'!HB10)","v":"n.d."},"n.d.","n.d.","n.d.","n.d.","n.d.","n.d.","n.d.","n.d.","n.d.","n.d.","n.d.","n.d.","n.d.","n.d.",{"$f":"IF('[2]MONE(M)CAPARD'!AS10=\"\",\"\",'[2]MONE(M)CAPARD'!AS10)","v":"n.d."},{"$f":"IF('[2]MONE(M)CAPARD'!AT10=\"\",\"\",'[2]MONE(M)CAPARD'!AT10)","v":"n.a."},{"$f":"IF('[2]MONE(M)CAPARD'!AU10=\"\",\"\",'[2]MONE(M)CAPARD'!AU10)","v":"n.d."},{"$f":"IF('[2]MONE(M)CAPARD'!AV10=\"\",\"\",'[2]MONE(M)CAPARD'!AV10)","v":"n.d."},{"$f":"IF('[2]MONE(M)CAPARD'!AW10=\"\",\"\",'[2]MONE(M)CAPARD'!AW10)","v":"n.a."},{"$f":"IF('[2]MONE(M)CAPARD'!AX10=\"\",\"\",'[2]MONE(M)CAPARD'!AX10)","v":"n.d."},{"$f":"IF('[2]MONE(M)CAPARD'!AY10=\"\",\"\",'[2]MONE(M)CAPARD'!AY10)","v":"n.a."},{"$f":"IF('[2]FISCAL(M)'!$K10=\"\",\"\",'[2]FISCAL(M)'!$K10)","v":"n.d."},{"$f":"IF('[2]FISCAL(M)'!$L10=\"\",\"\",'[2]FISCAL(M)'!$L10)","v":"n.d."},{"$f":"IF('[2]FISCAL(M)'!$AY10=\"\",\"\",'[2]FISCAL(M)'!$AY10)","v":"n.d."},{"$f":"IF('[2]FISCAL(M)'!$BI10=\"\",\"\",'[2]FISCAL(M)'!$BI10)","v":"n.d."},{"$f":"IF('[2]FISCAL(M)'!$BS10=\"\",\"\",'[2]FISCAL(M)'!$BS10)","v":"n.d."},{"$f":"IF('[2]FISCAL(M)'!$AZ10=\"\",\"\",'[2]FISCAL(M)'!$AZ10)","v":"n.d."},{"$f":"IF('[2]FISCAL(M)'!$BJ10=\"\",\"\",'[2]FISCAL(M)'!$BJ10)","v":"n.d."},{"$f":"IF('[2]FISCAL(M)'!$BT10=\"\",\"\",'[2]FISCAL(M)'!$BT10)","v":"n.d."},{"$f":"IF('[3]MONE(M)'!$AO10=\"\",\"\",'[3]MONE(M)'!$AO10)","v":"n.d."},{"$f":"IF('[4]MONE(M)'!$AO10=\"\",\"\",'[4]MONE(M)'!$AO10)","v":"n.d."},{"$f":"IF('[5]MONE(M)'!$AO10=\"\",\"\",'[5]MONE(M)'!$AO10)","v":"n.d."},{"$f":"+'[1]MONE(M)'!$AO10","v":"n.d."},{"$f":"IF('[6]MONE(M)'!$AO10=\"\",\"\",'[6]MONE(M)'!$AO10)","v":"n.d."},{"$f":"IF('[7]MONE(M)'!$AO10=\"\",\"\",'[7]MONE(M)'!$AO10)","v":"n.d."},{"$f":"IF('[8]MONE(M)'!$AO10=\"\",\"\",'[8]MONE(M)'!$AO10)","v":"n.d."},"n.d.","n.d.","n.d.","n.d.","n.d.","n.d.","n.d.",{"$f":"'[2]FISCAL(M)'!$K10","v":"n.d."},"n.d.",{"$f":"IF(OR(CM3=\"n.d.\",CM3=\"\",CN3=\"\",CN3=\"n.d.\"),\"n.d.\",(CM3/CN3)*100)","v":"n.d."},{"$f":"IF('[2]FISCAL(M)'!$L10=\"\",\"\",'[2]FISCAL(M)'!$L10)","v":"n.d."},"n.d.",{"$f":"IF(OR(CP3=\"n.d.\",CP3=\"\",CQ3=\"\",CQ3=\"n.d.\"),\"n.d.\",(CP3/CQ3)*100)","v":"n.d."},"n.d.","n.d.","n.d.","n.d.","n.d.","n.d.","n.d.","n.d.","n.d.","n.d.","n.d.","n.d.","n.d.","n.d.","n.d.","n.d."]
[1990,"febrero",{"$f":"A4&\"-\"&B4","v":"1990-febrero"},{"$f":"IF('[2]REAL IPC(M)'!$AL11=\"\",\"\",+'[2]REAL IPC(M)'!$AL11)","v":"n.d."},{"$f":"IF('[2]REAL IPC(M)'!$BE11=\"\",\"\",+'[2]REAL IPC(M)'!$BE11)","v":"n.d."},{"$f":"IF('[2]REAL IPC(M)'!$AM11=\"\",\"\",+'[2]REAL IPC(M)'!$AM11)","v":"n.d."},{"$f":"IF('[2]REAL IPC(M)'!$BI11=\"\",\"\",+'[2]REAL IPC(M)'!$BI11)","v":"n.d."},{"$f":"IF('[2]REAL IMAE(M)'!BJ11=\"\",\"\",'[2]REAL IMAE(M)'!BJ11)","v":"n.d."},{"$f":"IF('[2]REAL IMAE(M)'!BK11=\"\",\"\",'[2]REAL IMAE(M)'!BK11)","v":"n.d."},{"$f":"IF('[2]REAL IMAE(M)'!BN11=\"\",\"\",'[2]REAL IMAE(M)'!BN11)","v":"n.d."},{"$f":"IF('[2]REAL IMAE(M)'!BO11=\"\",\"\",'[2]REAL IMAE(M)'!BO11)","v":"n.d."},{"$f":"IF('[2]EXT RIN(M)'!$K11=\"\",\"\",'[2]EXT RIN(M)'!$K11)","v":"n.d."},{"$f":"IF(B4<>\"diciembre\",\"\",L4)","v":""},{"$f":"IF('[2]EXT RIN(M)'!$L11=\"\",\"\",'[2]EXT RIN(M)'!$L11)","v":"n.d."},{"$f":"IF(B4<>\"diciembre\",\"\",N4)","v":""},{"$f":"IF('[2]MONE(M)CARD'!EG11=\"\",\"\",'[2]MONE(M)CARD'!EG11)","v":"n.d."},{"$f":"IF('[2]MONE(M)CARD'!EK11=\"\",\"\",'[2]MONE(M)CARD'!EK11)","v":"n.d."},{"$f":"IF('[2]MONE(M)CARD'!EP11=\"\",\"\",'[2]MONE(M)CARD'!EP11)","v":"n.d."},{"$f":"IF('[2]MONE(M)CARD'!ES11=\"\",\"\",'[2]MONE(M)CARD'!ES11)","v":"n.d."},{"$f":"IF('[2]MONE(M)CARD'!EV11=\"\",\"\",'[2]MONE(M)CARD'!EV11)","v":"n.d."},{"$f":"IF('[2]MONE(M)CARD'!EZ11=\"\",\"\",'[2]MONE(M)CARD'!EZ11)","v":"n.d."},{"$f":"IF('[2]MONE(M)CAPARD'!FC11=\"\",\"\",'[2]MONE(M)CAPARD'!FC11)","v":"n.d."},{"$f":"IF('[2]MONE(M)CAPARD'!FG11=\"\",\"\",'[2]MONE(M)CAPARD'!FG11)","v":"n.d."},{"$f":"IF('[2]MONE(M)CAPARD'!FL11=\"\",\"\",'[2]MONE(M)CAPARD'!FL11)","v":"n.d."},{"$f":"IF('[2]MONE(M)CAPARD'!FO11=\"\",\"\",'[2]MONE(M)CAPARD'!FO11)","v":"n.d."},{"$f":"IF('[2]MONE(M)CAPARD'!FR11=\"\",\"\",'[2]MONE(M)CAPARD'!FR11)","v":"n.d."},{"$f":"IF('[2]MONE(M)CAPARD'!FV11=\"\",\"\",'[2]MONE(M)CAPARD'!FV11)","v":"n.d."},{"$f":"IF('[2]MONE(M)CARD'!FV11=\"\",\"\",'[2]MONE(M)CARD'!FV11)","v":""},{"$f":"IF('[2]MONE(M)CARD'!GD11=\"\",\"\",'[2]MONE(M)CARD'!GD11)","v":"n.d."},{"$f":"IF('[2]MONE(M)CARD'!GE11=\"\",\"\",'[2]MONE(M)CARD'!GE11)","v":"n.d."},"n.d.","n.d.","n.d.","n.d.","n.d.",{"$f":"IFERROR(+AF4+AH4,\"\")","v":""},"n.d.","n.d.",null,"n.d.","n.d.","n.d.","n.d.","n.d.",{"$f":"IF('[2]MONE(M)CAPARD'!GS11=\"\",\"\",'[2]MONE(M)CAPARD'!GS11)","v":"n.d."},{"$f":"IF('[2]MONE(M)CARD'!HA11=\"\",\"\",'[2]MONE(M)CAPARD'!HA11)","v":"n.d."},{"$f":"IF('[2]MONE(M)CAPARD'!HB11=\"\",\"\",'[2]MONE(M)CAPARD'!HB11)","v":"n.d."},"n.d.","n.d.","n.d.","n.d.","n.d.","n.d.","n.d.","n.d.","n.d.","n.d.","n.d.","n.d.","n.d.","n.d.",{"$f":"IF('[2]MONE(M)CAPARD'!AS11=\"\",\"\",'[2]MONE(M)CAPARD'!AS11)","v":"n.d."},{"$f":"IF('[2]MONE(M)CAPARD'!AT11=\"\",\"\",'[2]MONE(M)CAPARD'!AT11)","v":"n.a."},{"$f":"IF('[2]MONE(M)CAPARD'!AU11=\"\",\"\",'[2]MONE(M)CAPARD'!AU11)","v":"n.d."},{"$f":"IF('[2]MONE(M)CAPARD'!AV11=\"\",\"\",'[2]MONE(M)CAPARD'!AV11)","v":"n.d."},{"$f":"IF('[2]MONE(M)CAPARD'!AW11=\"\",\"\",'[2]MONE(M)CAPARD'!AW11)","v":"n.a."},{"$f":"IF('[2]MONE(M)CAPARD'!AX11=\"\",\"\",'[2]MONE(M)CAPARD'!AX11)","v":"n.d."},{"$f":"IF('[2]MONE(M)CAPARD'!AY11=\"\",\"\",'[2]MONE(M)CAPARD'!AY11)","v":"n.a."},{"$f":"IF('[2]FISCAL(M)'!$K11=\"\",\"\",'[2]FISCAL(M)'!$K11)","v":"n.d."},{"$f":"IF('[2]FISCAL(M)'!$L11=\"\",\"\",'[2]FISCAL(M)'!$L11)","v":"n.d."},{"$f":"IF('[2]FISCAL(M)'!$AY11=\"\",\"\",'[2]FISCAL(M)'!$AY11)","v":"n.d."},{"$f":"IF('[2]FISCAL(M)'!$BI11=\"\",\"\",'[2]FISCAL(M)'!$BI11)","v":"n.d."},{"$f":"IF('[2]FISCAL(M)'!$BS11=\"\",\"\",'[2]FISCAL(M)'!$BS11)","v":"n.d."},{"$f":"IF('[2]FISCAL(M)'!$AZ11=\"\",\"\",'[2]FISCAL(M)'!$AZ11)","v":"n.d."},{"$f":"IF('[2]FISCAL(M)'!$BJ11=\"\",\"\",'[2]FISCAL(M)'!$BJ11)","v":"n.d."},{"$f":"IF('[2]FISCAL(M)'!$BT11=\"\",\"\",'[2]FISCAL(M)'!$BT11)","v":"n.d."},{"$f":"IF('[3]MONE(M)'!$AO11=\"\",\"\",'[3]MONE(M)'!$AO11)","v":"n.d."},{"$f":"IF('[4]MONE(M)'!$AO11=\"\",\"\",'[4]MONE(M)'!$AO11)","v":"n.d."},{"$f":"IF('[5]MONE(M)'!$AO11=\"\",\"\",'[5]MONE(M)'!$AO11)","v":"n.d."},{"$f":"+'[1]MONE(M)'!$AO11","v":"n.d."},{"$f":"IF('[6]MONE(M)'!$AO11=\"\",\"\",'[6]MONE(M)'!$AO11)","v":"n.d."},{"$f":"IF('[7]MONE(M)'!$AO11=\"\",\"\",'[7]MONE(M)'!$AO11)","v":"n.d."},{"$f":"IF('[8]MONE(M)'!$AO11=\"\",\"\",'[8]MONE(M)'!$AO11)","v":"n.d."},"n.d.","n.d.","n.d.","n.d.","n.d.","n.d.","n.d.",{"$f":"'[2]FISCAL(M)'!$K11","v":"n.d."},"n.d.","n.d.",{"$f":"IF('[2]FISCAL(M)'!$L11=\"\",\"\",'[2]FISCAL(M)'!$L11)","v":"n.d."},"n.d.",{"$f":"IF(OR(CP4=\"n.d.\",CP4=\"\",CQ4=\"\",CQ4=\"n.d.\"),\"n.d.\",(CP4/CQ4)*100)","v":"n.d."},"n.d.","n.d.","n.d.","n.d.","n.d.","n.d.","n.d.","n.d.","n.d.","n.d.","n.d.","n.d.","n.d.","n.d.","n.d.","n.d."]
[1990,"marzo","1990-marzo",{"$f":"IF('[2]REAL IPC(M)'!$AL12=\"\",\"\",+'[2]REAL IPC(M)'!$AL12)","v":"n.d."},{"$f":"IF('[2]REAL IPC(M)'!$BE12=\"\",\"\",+'[2]REAL IPC(M)'!$BE12)","v":"n.d."},{"$f":"IF('[2]REAL IPC(M)'!$AM12=\"\",\"\",+'[2]REAL IPC(M)'!$AM12)","v":"n.d."},{"$f":"IF('[2]REAL IPC(M)'!$BI12=\"\",\"\",+'[2]REAL IPC(M)'!$BI12)","v":"n.d."},{"$f":"IF('[2]REAL IMAE(M)'!BJ12=\"\",\"\",'[2]REAL IMAE(M)'!BJ12)","v":"n.d."},{"$f":"IF('[2]REAL IMAE(M)'!BK12=\"\",\"\",'[2]REAL IMAE(M)'!BK12)","v":"n.d."},{"$f":"IF('[2]REAL IMAE(M)'!BN12=\"\",\"\",'[2]REAL IMAE(M)'!BN12)","v":"n.d."},{"$f":"IF('[2]REAL IMAE(M)'!BO12=\"\",\"\",'[2]REAL IMAE(M)'!BO12)","v":"n.d."},{"$f":"IF('[2]EXT RIN(M)'!$K12=\"\",\"\",'[2]EXT RIN(M)'!$K12)","v":"n.d."},"",{"$f":"IF('[2]EXT RIN(M)'!$L12=\"\",\"\",'[2]EXT RIN(M)'!$L12)","v":"n.d."},"",{"$f":"IF('[2]MONE(M)CARD'!EG12=\"\",\"\",'[2]MONE(M)CARD'!EG12)","v":"n.d."},{"$f":"IF('[2]MONE(M)CARD'!EK12=\"\",\"\",'[2]MONE(M)CARD'!EK12)","v":"n.d."},{"$f":"IF('[2]MONE(M)CARD'!EP12=\"\",\"\",'[2]MONE(M)CARD'!EP12)","v":"n.d."},{"$f":"IF('[2]MONE(M)CARD'!ES12=\"\",\"\",'[2]MONE(M)CARD'!ES12)","v":"n.d."},{"$f":"IF('[2]MONE(M)CARD'!EV12=\"\",\"\",'[2]MONE(M)CARD'!EV12)","v":"n.d."},{"$f":"IF('[2]MONE(M)CARD'!EZ12=\"\",\"\",'[2]MONE(M)CARD'!EZ12)","v":"n.d."},{"$f":"IF('[2]MONE(M)CAPARD'!FC12=\"\",\"\",'[2]MONE(M)CAPARD'!FC12)","v":"n.d."},{"$f":"IF('[2]MONE(M)CAPARD'!FG12=\"\",\"\",'[2]MONE(M)CAPARD'!FG12)","v":"n.d."},{"$f":"IF('[2]MONE(M)CAPARD'!FL12=\"\",\"\",'[2]MONE(M)CAPARD'!FL12)","v":"n.d."},{"$f":"IF('[2]MONE(M)CAPARD'!FO12=\"\",\"\",'[2]MONE(M)CAPARD'!FO12)","v":"n.d."},{"$f":"IF('[2]MONE(M)CAPARD'!FR12=\"\",\"\",'[2]MONE(M)CAPARD'!FR12)","v":"n.d."},{"$f":"IF('[2]MONE(M)CAPARD'!FV12=\"\",\"\",'[2]MONE(M)CAPARD'!FV12)","v":"n.d."},{"$f":"IF('[2]MONE(M)CARD'!FV12=\"\",\"\",'[2]MONE(M)CARD'!FV12)","v":""},{"$f":"IF('[2]MONE(M)CARD'!GD12=\"\",\"\",'[2]MONE(M)CARD'!GD12)","v":"n.d."},{"$f":"IF('[2]MONE(M)CARD'!GE12=\"\",\"\",'[2]MONE(M)CARD'!GE12)","v":"n.d."},"n.d.","n.d.","n.d.","n.d.","n.d.",{"$f":"IFERROR(+AF5+AH5,\"\")","v":""},"n.d.","n.d.",null,"n.d.","n.d.","n.d.","n.d.","n.d.",{"$f":"IF('[2]MONE(M)CAPARD'!GS12=\"\",\"\",'[2]MONE(M)CAPARD'!GS12)","v":"n.d."},{"$f":"IF('[2]MONE(M)CARD'!HA12=\"\",\"\",'[2]MONE(M)CAPARD'!HA12)","v":"n.d."},{"$f":"IF('[2]MONE(M)CAPARD'!HB12=\"\",\"\",'[2]MONE(M)CAPARD'!HB12)","v":"n.d."},"n.d.","n.d.","n.d.","n.d.","n.d.","n.d.","n.d.","n.d.","n.d.","n.d.","n.d.","n.d.","n.d.","n.d.",{"$f":"IF('[2]MONE(M)CAPARD'!AS12=\"\",\"\",'[2]MONE(M)CAPARD'!AS12)","v":"n.d."},{"$f":"IF('[2]MONE(M)CAPARD'!AT12=\"\",\"\",'[2]MONE(M)CAPARD'!AT12)","v":"n.a."},{"$f":"IF('[2]MONE(M)CAPARD'!AU12=\"\",\"\",'[2]MONE(M)CAPARD'!AU12)","v":"n.d."},{"$f":"IF('[2]MONE(M)CAPARD'!AV12=\"\",\"\",'[2]MONE(M)CAPARD'!AV12)","v":"n.d."},{"$f":"IF('[2]MONE(M)CAPARD'!AW12=\"\",\"\",'[2]MONE(M)CAPARD'!AW12)","v":"n.a."},{"$f":"IF('[2]MONE(M)CAPARD'!AX12=\"\",\"\",'[2]MONE(M)CAPARD'!AX12)","v":"n.d."},{"$f":"IF('[2]MONE(M)CAPARD'!AY12=\"\",\"\",'[2]MONE(M)CAPARD'!AY12)","v":"n.a."},{"$f":"IF('[2]FISCAL(M)'!$K12=\"\",\"\",'[2]FISCAL(M)'!$K12)","v":"n.d."},{"$f":"IF('[2]FISCAL(M)'!$L12=\"\",\"\",'[2]FISCAL(M)'!$L12)","v":"n.d."},{"$f":"IF('[2]FISCAL(M)'!$AY12=\"\",\"\",'[2]FISCAL(M)'!$AY12)","v":"n.d."},{"$f":"IF('[2]FISCAL(M)'!$BI12=\"\",\"\",'[2]FISCAL(M)'!$BI12)","v":"n.d."},{"$f":"IF('[2]FISCAL(M)'!$BS12=\"\",\"\",'[2]FISCAL(M)'!$BS12)","v":"n.d."},{"$f":"IF('[2]FISCAL(M)'!$AZ12=\"\",\"\",'[2]FISCAL(M)'!$AZ12)","v":"n.d."},{"$f":"IF('[2]FISCAL(M)'!$BJ12=\"\",\"\",'[2]FISCAL(M)'!$BJ12)","v":"n.d."},{"$f":"IF('[2]FISCAL(M)'!$BT12=\"\",\"\",'[2]FISCAL(M)'!$BT12)","v":"n.d."},{"$f":"IF('[3]MONE(M)'!$AO12=\"\",\"\",'[3]MONE(M)'!$AO12)","v":"n.d."},{"$f":"IF('[4]MONE(M)'!$AO12=\"\",\"\",'[4]MONE(M)'!$AO12)","v":"n.d."},{"$f":"IF('[5]MONE(M)'!$AO12=\"\",\"\",'[5]MONE(M)'!$AO12)","v":"n.d."},{"$f":"+'[1]MONE(M)'!$AO12","v":"n.d."},{"$f":"IF('[6]MONE(M)'!$AO12=\"\",\"\",'[6]MONE(M)'!$AO12)","v":"n.d."},{"$f":"IF('[7]MONE(M)'!$AO12=\"\",\"\",'[7]MONE(M)'!$AO12)","v":"n.d."},{"$f":"IF('[8]MONE(M)'!$AO12=\"\",\"\",'[8]MONE(M)'!$AO12)","v":"n.d."},"n.d.","n.d.","n.d.","n.d.","n.d.","n.d.","n.d.",{"$f":"IF('[2]FISCAL(M)'!$K12=\"\",\"\",'[2]FISCAL(M)'!$K12)","v":"n.d."},"n.d.","n.d.",{"$f":"IF('[2]FISCAL(M)'!$L12=\"\",\"\",'[2]FISCAL(M)'!$L12)","v":"n.d."},"n.d.","n.d.","n.d.","n.d.","n.d.","n.d.","n.d.","n.d.","n.d.","n.d.","n.d.","n.d.","n.d.","n.d.","n.d.","n.d.","n.d.","n.d."]
[1990,"abril","1990-abril",{"$f":"IF('[2]REAL IPC(M)'!$AL13=\"\",\"\",+'[2]REAL IPC(M)'!$AL13)","v":"n.d."},{"$f":"IF('[2]REAL IPC(M)'!$BE13=\"\",\"\",+'[2]REAL IPC(M)'!$BE13)","v":"n.d."},{"$f":"IF('[2]REAL IPC(M)'!$AM13=\"\",\"\",+'[2]REAL IPC(M)'!$AM13)","v":"n.d."},{"$f":"IF('[2]REAL IPC(M)'!$BI13=\"\",\"\",+'[2]REAL IPC(M)'!$BI13)","v":"n.d."},{"$f":"IF('[2]REAL IMAE(M)'!BJ13=\"\",\"\",'[2]REAL IMAE(M)'!BJ13)","v":"n.d."},{"$f":"IF('[2]REAL IMAE(M)'!BK13=\"\",\"\",'[2]REAL IMAE(M)'!BK13)","v":"n.d."},{"$f":"IF('[2]REAL IMAE(M)'!BN13=\"\",\"\",'[2]REAL IMAE(M)'!BN13)","v":"n.d."},{"$f":"IF('[2]REAL IMAE(M)'!BO13=\"\",\"\",'[2]REAL IMAE(M)'!BO13)","v":"n.d."},{"$f":"IF('[2]EXT RIN(M)'!$K13=\"\",\"\",'[2]EXT RIN(M)'!$K13)","v":"n.d."},"",{"$f":"IF('[2]EXT RIN(M)'!$L13=\"\",\"\",'[2]EXT RIN(M)'!$L13)","v":"n.d."},"",{"$f":"IF('[2]MONE(M)CARD'!EG13=\"\",\"\",'[2]MONE(M)CARD'!EG13)","v":"n.d."},{"$f":"IF('[2]MONE(M)CARD'!EK13=\"\",\"\",'[2]MONE(M)CARD'!EK13)","v":"n.d."},{"$f":"IF('[2]MONE(M)CARD'!EP13=\"\",\"\",'[2]MONE(M)CARD'!EP13)","v":"n.d."},{"$f":"IF('[2]MONE(M)CARD'!ES13=\"\",\"\",'[2]MONE(M)CARD'!ES13)","v":"n.d."},{"$f":"IF('[2]MONE(M)CARD'!EV13=\"\",\"\",'[2]MONE(M)CARD'!EV13)","v":"n.d."},{"$f":"IF('[2]MONE(M)CARD'!EZ13=\"\",\"\",'[2]MONE(M)CARD'!EZ13)","v":"n.d."},{"$f":"IF('[2]MONE(M)CAPARD'!FC13=\"\",\"\",'[2]MONE(M)CAPARD'!FC13)","v":"n.d."},{"$f":"IF('[2]MONE(M)CAPARD'!FG13=\"\",\"\",'[2]MONE(M)CAPARD'!FG13)","v":"n.d."},{"$f":"IF('[2]MONE(M)CAPARD'!FL13=\"\",\"\",'[2]MONE(M)CAPARD'!FL13)","v":"n.d."},{"$f":"IF('[2]MONE(M)CAPARD'!FO13=\"\",\"\",'[2]MONE(M)CAPARD'!FO13)","v":"n.d."},{"$f":"IF('[2]MONE(M)CAPARD'!FR13=\"\",\"\",'[2]MONE(M)CAPARD'!FR13)","v":"n.d."},{"$f":"IF('[2]MONE(M)CAPARD'!FV13=\"\",\"\",'[2]MONE(M)CAPARD'!FV13)","v":"n.d."},{"$f":"IF('[2]MONE(M)CARD'!FV13=\"\",\"\",'[2]MONE(M)CARD'!FV13)","v":""},{"$f":"IF('[2]MONE(M)CARD'!GD13=\"\",\"\",'[2]MONE(M)CARD'!GD13)","v":"n.d."},{"$f":"IF('[2]MONE(M)CARD'!GE13=\"\",\"\",'[2]MONE(M)CARD'!GE13)","v":"n.d."},"n.d.","n.d.","n.d.","n.d.","n.d.",{"$f":"IFERROR(+AF6+AH6,\"n.d.\")","v":"n.d."},"n.d.","n.d.",null,"n.d.","n.d.","n.d.","n.d.","n.d.",{"$f":"IF('[2]MONE(M)CAPARD'!GS13=\"\",\"\",'[2]MONE(M)CAPARD'!GS13)","v":"n.d."},{"$f":"IF('[2]MONE(M)CARD'!HA13=\"\",\"\",'[2]MONE(M)CAPARD'!HA13)","v":"n.d."},{"$f":"IF('[2]MONE(M)CAPARD'!HB13=\"\",\"\",'[2]MONE(M)CAPARD'!HB13)","v":"n.d."},"n.d.","n.d.","n.d.","n.d.","n.d.","n.d.","n.d.","n.d.","n.d.","n.d.","n.d.","n.d.","n.d.","n.d.",{"$f":"IF('[2]MONE(M)CAPARD'!AS13=\"\",\"\",'[2]MONE(M)CAPARD'!AS13)","v":"n.d."},{"$f":"IF('[2]MONE(M)CAPARD'!AT13=\"\",\"\",'[2]MONE(M)CAPARD'!AT13)","v":"n.a."},{"$f":"IF('[2]MONE(M)CAPARD'!AU13=\"\",\"\",'[2]MONE(M)CAPARD'!AU13)","v":"n.d."},{"$f":"IF('[2]MONE(M)CAPARD'!AV13=\"\",\"\",'[2]MONE(M)CAPARD'!AV13)","v":"n.d."},{"$f":"IF('[2]MONE(M)CAPARD'!AW13=\"\",\"\",'[2]MONE(M)CAPARD'!AW13)","v":"n.a."},{"$f":"IF('[2]MONE(M)CAPARD'!AX13=\"\",\"\",'[2]MONE(M)CAPARD'!AX13)","v":"n.d."},{"$f":"IF('[2]MONE(M)CAPARD'!AY13=\"\",\"\",'[2]MONE(M)CAPARD'!AY13)","v":"n.a."},{"$f":"IF('[2]FISCAL(M)'!$K13=\"\",\"\",'[2]FISCAL(M)'!$K13)","v":"n.d."},{"$f":"IF('[2]FISCAL(M)'!$L13=\"\",\"\",'[2]FISCAL(M)'!$L13)","v":"n.d."},{"$f":"IF('[2]FISCAL(M)'!$AY13=\"\",\"\",'[2]FISCAL(M)'!$AY13)","v":"n.d."},{"$f":"IF('[2]FISCAL(M)'!$BI13=\"\",\"\",'[2]FISCAL(M)'!$BI13)","v":"n.d."},{"$f":"IF('[2]FISCAL(M)'!$BS13=\"\",\"\",'[2]FISCAL(M)'!$BS13)","v":"n.d."},{"$f":"IF('[2]FISCAL(M)'!$AZ13=\"\",\"\",'[2]FISCAL(M)'!$AZ13)","v":"n.d."},{"$f":"IF('[2]FISCAL(M)'!$BJ13=\"\",\"\",'[2]FISCAL(M)'!$BJ13)","v":"n.d."},{"$f":"IF('[2]FISCAL(M)'!$BT13=\"\",\"\",'[2]FISCAL(M)'!$BT13)","v":"n.d."},{"$f":"IF('[3]MONE(M)'!$AO13=\"\",\"\",'[3]MONE(M)'!$AO13)","v":"n.d."},{"$f":"IF('[4]MONE(M)'!$AO13=\"\",\"\",'[4]MONE(M)'!$AO13)","v":"n.d."},{"$f":"IF('[5]MONE(M)'!$AO13=\"\",\"\",'[5]MONE(M)'!$AO13)","v":"n.d."},{"$f":"+'[1]MONE(M)'!$AO13","v":"n.d."},{"$f":"IF('[6]MONE(M)'!$AO13=\"\",\"\",'[6]MONE(M)'!$AO13)","v":"n.d."},{"$f":"IF('[7]MONE(M)'!$AO13=\"\",\"\",'[7]MONE(M)'!$AO13)","v":"n.d."},{"$f":"IF('[8]MONE(M)'!$AO13=\"\",\"\",'[8]MONE(M)'!$AO13)","v":"n.d."},"n.d.","n.d.","n.d.","n.d.","n.d.","n.d.","n.d.",{"$f":"IF('[2]FISCAL(M)'!$K13=\"\",\"\",'[2]FISCAL(M)'!$K13)","v":"n.d."},"n.d.","n.d.",{"$f":"IF('[2]FISCAL(M)'!$L13=\"\",\"\",'[2]FISCAL(M)'!$L13)","v":"n.d."},"n.d.","n.d.","n.d.","n.d.","n.d.","n.d.","n.d.","n.d.","n.d.","n.d.","n.d.","n.d.","n.d.","n.d.","n.d.","n.d.","n.d.","n.d."]
[1990,"mayo ","1990-mayo ",{"$f":"IF('[2]REAL IPC(M)'!$AL14=\"\",\"\",+'[2]REAL IPC(M)'!$AL14)","v":"n.d."},{"$f":"IF('[2]REAL IPC(M)'!$BE14=\"\",\"\",+'[2]REAL IPC(M)'!$BE14)","v":"n.d."},{"$f":"IF('[2]REAL IPC(M)'!$AM14=\"\",\"\",+'[2]REAL IPC(M)'!$AM14)","v":"n.d."},{"$f":"IF('[2]REAL IPC(M)'!$BI14=\"\",\"\",+'[2]REAL IPC(M)'!$BI14)","v":"n.d."},{"$f":"IF('[2]REAL IMAE(M)'!BJ14=\"\",\"\",'[2]REAL IMAE(M)'!BJ14)","v":"n.d."},{"$f":"IF('[2]REAL IMAE(M)'!BK14=\"\",\"\",'[2]REAL IMAE(M)'!BK14)","v":"n.d."},{"$f":"IF('[2]REAL IMAE(M)'!BN14=\"\",\"\",'[2]REAL IMAE(M)'!BN14)","v":"n.d."},{"$f":"IF('[2]REAL IMAE(M)'!BO14=\"\",\"\",'[2]REAL IMAE(M)'!BO14)","v":"n.d."},{"$f":"IF('[2]EXT RIN(M)'!$K14=\"\",\"\",'[2]EXT RIN(M)'!$K14)","v":"n.d."},"",{"$f":"IF('[2]EXT RIN(M)'!$L14=\"\",\"\",'[2]EXT RIN(M)'!$L14)","v":"n.d."},"",{"$f":"IF('[2]MONE(M)CARD'!EG14=\"\",\"\",'[2]MONE(M)CARD'!EG14)","v":"n.d."},{"$f":"IF('[2]MONE(M)CARD'!EK14=\"\",\"\",'[2]MONE(M)CARD'!EK14)","v":"n.d."},{"$f":"IF('[2]MONE(M)CARD'!EP14=\"\",\"\",'[2]MONE(M)CARD'!EP14)","v":"n.d."},{"$f":"IF('[2]MONE(M)CARD'!ES14=\"\",\"\",'[2]MONE(M)CARD'!ES14)","v":"n.d."},{"$f":"IF('[2]MONE(M)CARD'!EV14=\"\",\"\",'[2]MONE(M)CARD'!EV14)","v":"n.d."},{"$f":"IF('[2]MONE(M)CARD'!EZ14=\"\",\"\",'[2]MONE(M)CARD'!EZ14)","v":"n.d."},{"$f":"IF('[2]MONE(M)CAPARD'!FC14=\"\",\"\",'[2]MONE(M)CAPARD'!FC14)","v":"n.d."},{"$f":"IF('[2]MONE(M)CAPARD'!FG14=\"\",\"\",'[2]MONE(M)CAPARD'!FG14)","v":"n.d."},{"$f":"IF('[2]MONE(M)CAPARD'!FL14=\"\",\"\",'[2]MONE(M)CAPARD'!FL14)","v":"n.d."},{"$f":"IF('[2]MONE(M)CAPARD'!FO14=\"\",\"\",'[2]MONE(M)CAPARD'!FO14)","v":"n.d."},{"$f":"IF('[2]MONE(M)CAPARD'!FR14=\"\",\"\",'[2]MONE(M)CAPARD'!FR14)","v":"n.d."},{"$f":"IF('[2]MONE(M)CAPARD'!FV14=\"\",\"\",'[2]MONE(M)CAPARD'!FV14)","v":"n.d."},{"$f":"IF('[2]MONE(M)CARD'!FV14=\"\",\"\",'[2]MONE(M)CARD'!FV14)","v":""},{"$f":"IF('[2]MONE(M)CARD'!GD14=\"\",\"\",'[2]MONE(M)CARD'!GD14)","v":"n.d."},{"$f":"IF('[2]MONE(M)CARD'!GE14=\"\",\"\",'[2]MONE(M)CARD'!GE14)","v":"n.d."},"n.d.","n.d.","n.d.","n.d.","n.d.",{"$f":"IFERROR(+AF7+AH7,\"n.d.\")","v":"n.d."},"n.d.","n.d.",null,"n.d.","n.d.","n.d.","n.d.","n.d.",{"$f":"IF('[2]MONE(M)CAPARD'!GS14=\"\",\"\",'[2]MONE(M)CAPARD'!GS14)","v":"n.d."},{"$f":"IF('[2]MONE(M)CARD'!HA14=\"\",\"\",'[2]MONE(M)CAPARD'!HA14)","v":"n.d."},{"$f":"IF('[2]MONE(M)CAPARD'!HB14=\"\",\"\",'[2]MONE(M)CAPARD'!HB14)","v":"n.d."},"n.d.","n.d.","n.d.","n.d.","n.d.","n.d.","n.d.","n.d.","n.d.","n.d.","n.d.","n.d.","n.d.","n.d.",{"$f":"IF('[2]MONE(M)CAPARD'!AS14=\"\",\"\",'[2]MONE(M)CAPARD'!AS14)","v":"n.d."},{"$f":"IF('[2]MONE(M)CAPARD'!AT14=\"\",\"\",'[2]MONE(M)CAPARD'!AT14)","v":"n.a."},{"$f":"IF('[2]MONE(M)CAPARD'!AU14=\"\",\"\",'[2]MONE(M)CAPARD'!AU14)","v":"n.d."},{"$f":"IF('[2]MONE(M)CAPARD'!AV14=\"\",\"\",'[2]MONE(M)CAPARD'!AV14)","v":"n.d."},{"$f":"IF('[2]MONE(M)CAPARD'!AW14=\"\",\"\",'[2]MONE(M)CAPARD'!AW14)","v":"n.a."},{"$f":"IF('[2]MONE(M)CAPARD'!AX14=\"\",\"\",'[2]MONE(M)CAPARD'!AX14)","v":"n.d."},{"$f":"IF('[2]MONE(M)CAPARD'!AY14=\"\",\"\",'[2]MONE(M)CAPARD'!AY14)","v":"n.a."},{"$f":"IF('[2]FISCAL(M)'!$K14=\"\",\"\",'[2]FISCAL(M)'!$K14)","v":"n.d."},{"$f":"IF('[2]FISCAL(M)'!$L14=\"\",\"\",'[2]FISCAL(M)'!$L14)","v":"n.d."},{"$f":"IF('[2]FISCAL(M)'!$AY14=\"\",\"\",'[2]FISCAL(M)'!$AY14)","v":"n.d."},{"$f":"IF('[2]FISCAL(M)'!$BI14=\"\",\"\",'[2]FISCAL(M)'!$BI14)","v":"n.d."},{"$f":"IF('[2]FISCAL(M)'!$BS14=\"\",\"\",'[2]FISCAL(M)'!$BS14)","v":"n.d."},{"$f":"IF('[2]FISCAL(M)'!$AZ14=\"\",\"\",'[2]FISCAL(M)'!$AZ14)","v":"n.d."},{"$f":"IF('[2]FISCAL(M)'!$BJ14=\"\",\"\",'[2]FISCAL(M)'!$BJ14)","v":"n.d."},{"$f":"IF('[2]FISCAL(M)'!$BT14=\"\",\"\",'[2]FISCAL(M)'!$BT14)","v":"n.d."},{"$f":"IF('[3]MONE(M)'!$AO14=\"\",\"\",'[3]MONE(M)'!$AO14)","v":"n.d."},{"$f":"IF('[4]MONE(M)'!$AO14=\"\",\"\",'[4]MONE(M)'!$AO14)","v":"n.d."},{"$f":"IF('[5]MONE(M)'!$AO14=\"\",\"\",'[5]MONE(M)'!$AO14)","v":"n.d."},{"$f":"+'[1]MONE(M)'!$AO14","v":"n.d."},{"$f":"IF('[6]MONE(M)'!$AO14=\"\",\"\",'[6]MONE(M)'!$AO14)","v":"n.d."},{"$f":"IF('[7]MONE(M)'!$AO14=\"\",\"\",'[7]MONE(M)'!$AO14)","v":"n.d."},{"$f":"IF('[8]MONE(M)'!$AO14=\"\",\"\",'[8]MONE(M)'!$AO14)","v":"n.d."},"n.d.","n.d.","n.d.","n.d.","n.d.","n.d.","n.d.",{"$f":"IF('[2]FISCAL(M)'!$K14=\"\",\"\",'[2]FISCAL(M)'!$K14)","v":"n.d."},"n.d.","n.d.",{"$f":"IF('[2]FISCAL(M)'!$L14=\"\",\"\",'[2]FISCAL(M)'!$L14)","v":"n.d."},"n.d.","n.d.","n.d.","n.d.","n.d.","n.d.","n.d.","n.d.","n.d.","n.d.","n.d.","n.d.","n.d.","n.d.","n.d.","n.d.","n.d.","n.d."]
[1990,"junio ","1990-junio ",{"$f":"IF('[2]REAL IPC(M)'!$AL15=\"\",\"\",+'[2]REAL IPC(M)'!$AL15)","v":"n.d."},{"$f":"IF('[2]REAL IPC(M)'!$BE15=\"\",\"\",+'[2]REAL IPC(M)'!$BE15)","v":"n.d."},{"$f":"IF('[2]REAL IPC(M)'!$AM15=\"\",\"\",+'[2]REAL IPC(M)'!$AM15)","v":"n.d."},{"$f":"IF('[2]REAL IPC(M)'!$BI15=\"\",\"\",+'[2]REAL IPC(M)'!$BI15)","v":"n.d."},{"$f":"IF('[2]REAL IMAE(M)'!BJ15=\"\",\"\",'[2]REAL IMAE(M)'!BJ15)","v":"n.d."},{"$f":"IF('[2]REAL IMAE(M)'!BK15=\"\",\"\",'[2]REAL IMAE(M)'!BK15)","v":"n.d."},{"$f":"IF('[2]REAL IMAE(M)'!BN15=\"\",\"\",'[2]REAL IMAE(M)'!BN15)","v":"n.d."},{"$f":"IF('[2]REAL IMAE(M)'!BO15=\"\",\"\",'[2]REAL IMAE(M)'!BO15)","v":"n.d."},{"$f":"IF('[2]EXT RIN(M)'!$K15=\"\",\"\",'[2]EXT RIN(M)'!$K15)","v":"n.d."},"",{"$f":"IF('[2]EXT RIN(M)'!$L15=\"\",\"\",'[2]EXT RIN(M)'!$L15)","v":"n.d."},"",{"$f":"IF('[2]MONE(M)CARD'!EG15=\"\",\"\",'[2]MONE(M)CARD'!EG15)","v":"n.d."},{"$f":"IF('[2]MONE(M)CARD'!EK15=\"\",\"\",'[2]MONE(M)CARD'!EK15)","v":"n.d."},{"$f":"IF('[2]MONE(M)CARD'!EP15=\"\",\"\",'[2]MONE(M)CARD'!EP15)","v":"n.d."},{"$f":"IF('[2]MONE(M)CARD'!ES15=\"\",\"\",'[2]MONE(M)CARD'!ES15)","v":"n.d."},{"$f":"IF('[2]MONE(M)CARD'!EV15=\"\",\"\",'[2]MONE(M)CARD'!EV15)","v":"n.d."},{"$f":"IF('[2]MONE(M)CARD'!EZ15=\"\",\"\",'[2]MONE(M)CARD'!EZ15)","v":"n.d."},{"$f":"IF('[2]MONE(M)CAPARD'!FC15=\"\",\"\",'[2]MONE(M)CAPARD'!FC15)","v":"n.d."},{"$f":"IF('[2]MONE(M)CAPARD'!FG15=\"\",\"\",'[2]MONE(M)CAPARD'!FG15)","v":"n.d."},{"$f":"IF('[2]MONE(M)CAPARD'!FL15=\"\",\"\",'[2]MONE(M)CAPARD'!FL15)","v":"n.d."},{"$f":"IF('[2]MONE(M)CAPARD'!FO15=\"\",\"\",'[2]MONE(M)CAPARD'!FO15)","v":"n.d."},{"$f":"IF('[2]MONE(M)CAPARD'!FR15=\"\",\"\",'[2]MONE(M)CAPARD'!FR15)","v":"n.d."},{"$f":"IF('[2]MONE(M)CAPARD'!FV15=\"\",\"\",'[2]MONE(M)CAPARD'!FV15)","v":"n.d."},{"$f":"IF('[2]MONE(M)CARD'!FV15=\"\",\"\",'[2]MONE(M)CARD'!FV15)","v":""},{"$f":"IF('[2]MONE(M)CARD'!GD15=\"\",\"\",'[2]MONE(M)CARD'!GD15)","v":"n.d."},{"$f":"IF('[2]MONE(M)CARD'!GE15=\"\",\"\",'[2]MONE(M)CARD'!GE15)","v":"n.d."},"n.d.","n.d.","n.d.","n.d.","n.d.","n.d.","n.d.","n.d.",null,"n.d.","n.d.","n.d.","n.d.","n.d.",{"$f":"IF('[2]MONE(M)CAPARD'!GS15=\"\",\"\",'[2]MONE(M)CAPARD'!GS15)","v":"n.d."},{"$f":"IF('[2]MONE(M)CARD'!HA15=\"\",\"\",'[2]MONE(M)CAPARD'!HA15)","v":"n.d."},{"$f":"IF('[2]MONE(M)CAPARD'!HB15=\"\",\"\",'[2]MONE(M)CAPARD'!HB15)","v":"n.d."},"n.d.","n.d.","n.d.","n.d.","n.d.","n.d.","n.d.","n.d.","n.d.","n.d.","n.d.","n.d.","n.d.","n.d.",{"$f":"IF('[2]MONE(M)CAPARD'!AS15=\"\",\"\",'[2]MONE(M)CAPARD'!AS15)","v":"n.d."},{"$f":"IF('[2]MONE(M)CAPARD'!AT15=\"\",\"\",'[2]MONE(M)CAPARD'!AT15)","v":"n.a."},{"$f":"IF('[2]MONE(M)CAPARD'!AU15=\"\",\"\",'[2]MONE(M)CAPARD'!AU15)","v":"n.d."},{"$f":"IF('[2]MONE(M)CAPARD'!AV15=\"\",\"\",'[2]MONE(M)CAPARD'!AV15)","v":"n.d."},{"$f":"IF('[2]MONE(M)CAPARD'!AW15=\"\",\"\",'[2]MONE(M)CAPARD'!AW15)","v":"n.a."},{"$f":"IF('[2]MONE(M)CAPARD'!AX15=\"\",\"\",'[2]MONE(M)CAPARD'!AX15)","v":"n.d."},{"$f":"IF('[2]MONE(M)CAPARD'!AY15=\"\",\"\",'[2]MONE(M)CAPARD'!AY15)","v":"n.a."},{"$f":"IF('[2]FISCAL(M)'!$K15=\"\",\"\",'[2]FISCAL(M)'!$K15)","v":"n.d."},{"$f":"IF('[2]FISCAL(M)'!$L15=\"\",\"\",'[2]FISCAL(M)'!$L15)","v":"n.d."},{"$f":"IF('[2]FISCAL(M)'!$AY15=\"\",\"\",'[2]FISCAL(M)'!$AY15)","v":"n.d."},{"$f":"IF('[2]FISCAL(M)'!$BI15=\"\",\"\",'[2]FISCAL(M)'!$BI15)","v":"n.d."},{"$f":"IF('[2]FISCAL(M)'!$BS15=\"\",\"\",'[2]FISCAL(M)'!$BS15)","v":"n.d."},{"$f":"IF('[2]FISCAL(M)'!$AZ15=\"\",\"\",'[2]FISCAL(M)'!$AZ15)","v":"n.d."},{"$f":"IF('[2]FISCAL(M)'!$BJ15=\"\",\"\",'[2]FISCAL(M)'!$BJ15)","v":"n.d."},{"$f":"IF('[2]FISCAL(M)'!$BT15=\"\",\"\",'[2]FISCAL(M)'!$BT15)","v":"n.d."},{"$f":"IF('[3]MONE(M)'!$AO15=\"\",\"\",'[3]MONE(M)'!$AO15)","v":"n.d."},{"$f":"IF('[4]MONE(M)'!$AO15=\"\",\"\",'[4]MONE(M)'!$AO15)","v":"n.d."},{"$f":"IF('[5]MONE(M)'!$AO15=\"\",\"\",'[5]MONE(M)'!$AO15)","v":"n.d."},{"$f":"+'[1]MONE(M)'!$AO15","v":"n.d."},{"$f":"IF('[6]MONE(M)'!$AO15=\"\",\"\",'[6]MONE(M)'!$AO15)","v":"n.d."},{"$f":"IF('[7]MONE(M)'!$AO15=\"\",\"\",'[7]MONE(M)'!$AO15)","v":"n.d."},{"$f":"IF('[8]MONE(M)'!$AO15=\"\",\"\",'[8]MONE(M)'!$AO15)","v":"n.d."},"n.d.","n.d.","n.d.","n.d.","n.d.","n.d.","n.d.",{"$f":"IF('[2]FISCAL(M)'!$K15=\"\",\"\",'[2]FISCAL(M)'!$K15)","v":"n.d."},"n.d.","n.d.",{"$f":"IF('[2]FISCAL(M)'!$L15=\"\",\"\",'[2]FISCAL(M)'!$L15)","v":"n.d."},"n.d.","n.d.","n.d.","n.d.","n.d.","n.d.","n.d.","n.d.","n.d.","n.d.","n.d.","n.d.","n.d.","n.d.","n.d.","n.d.","n.d.","n.d."]
[1990,"julio","1990-julio",{"$f":"IF('[2]REAL IPC(M)'!$AL16=\"\",\"\",+'[2]REAL IPC(M)'!$AL16)","v":"n.d."},{"$f":"IF('[2]REAL IPC(M)'!$BE16=\"\",\"\",+'[2]REAL IPC(M)'!$BE16)","v":"n.d."},{"$f":"IF('[2]REAL IPC(M)'!$AM16=\"\",\"\",+'[2]REAL IPC(M)'!$AM16)","v":"n.d."},{"$f":"IF('[2]REAL IPC(M)'!$BI16=\"\",\"\",+'[2]REAL IPC(M)'!$BI16)","v":"n.d."},{"$f":"IF('[2]REAL IMAE(M)'!BJ16=\"\",\"\",'[2]REAL IMAE(M)'!BJ16)","v":"n.d."},{"$f":"IF('[2]REAL IMAE(M)'!BK16=\"\",\"\",'[2]REAL IMAE(M)'!BK16)","v":"n.d."},{"$f":"IF('[2]REAL IMAE(M)'!BN16=\"\",\"\",'[2]REAL IMAE(M)'!BN16)","v":"n.d."},{"$f":"IF('[2]REAL IMAE(M)'!BO16=\"\",\"\",'[2]REAL IMAE(M)'!BO16)","v":"n.d."},{"$f":"IF('[2]EXT RIN(M)'!$K16=\"\",\"\",'[2]EXT RIN(M)'!$K16)","v":"n.d."},"",{"$f":"IF('[2]EXT RIN(M)'!$L16=\"\",\"\",'[2]EXT RIN(M)'!$L16)","v":"n.d."},"",{"$f":"IF('[2]MONE(M)CARD'!EG16=\"\",\"\",'[2]MONE(M)CARD'!EG16)","v":"n.d."},{"$f":"IF('[2]MONE(M)CARD'!EK16=\"\",\"\",'[2]MONE(M)CARD'!EK16)","v":"n.d."},{"$f":"IF('[2]MONE(M)CARD'!EP16=\"\",\"\",'[2]MONE(M)CARD'!EP16)","v":"n.d."},{"$f":"IF('[2]MONE(M)CARD'!ES16=\"\",\"\",'[2]MONE(M)CARD'!ES16)","v":"n.d."},{"$f":"IF('[2]MONE(M)CARD'!EV16=\"\",\"\",'[2]MONE(M)CARD'!EV16)","v":"n.d."},{"$f":"IF('[2]MONE(M)CARD'!EZ16=\"\",\"\",'[2]MONE(M)CARD'!EZ16)","v":"n.d."},{"$f":"IF('[2]MONE(M)CAPARD'!FC16=\"\",\"\",'[2]MONE(M)CAPARD'!FC16)","v":"n.d."},{"$f":"IF('[2]MONE(M)CAPARD'!FG16=\"\",\"\",'[2]MONE(M)CAPARD'!FG16)","v":"n.d."},{"$f":"IF('[2]MONE(M)CAPARD'!FL16=\"\",\"\",'[2]MONE(M)CAPARD'!FL16)","v":"n.d."},{"$f":"IF('[2]MONE(M)CAPARD'!FO16=\"\",\"\",'[2]MONE(M)CAPARD'!FO16)","v":"n.d."},{"$f":"IF('[2]MONE(M)CAPARD'!FR16=\"\",\"\",'[2]MONE(M)CAPARD'!FR16)","v":"n.d."},{"$f":"IF('[2]MONE(M)CAPARD'!FV16=\"\",\"\",'[2]MONE(M)CAPARD'!FV16)","v":"n.d."},{"$f":"IF('[2]MONE(M)CARD'!FV16=\"\",\"\",'[2]MONE(M)CARD'!FV16)","v":""},{"$f":"IF('[2]MONE(M)CARD'!GD16=\"\",\"\",'[2]MONE(M)CARD'!GD16)","v":"n.d."},{"$f":"IF('[2]MONE(M)CARD'!GE16=\"\",\"\",'[2]MONE(M)CARD'!GE16)","v":"n.d."},"n.d.","n.d.","n.d.","n.d.","n.d.","n.d.","n.d.","n.d.",null,"n.d.","n.d.","n.d.","n.d.","n.d.",{"$f":"IF('[2]MONE(M)CAPARD'!GS16=\"\",\"\",'[2]MONE(M)CAPARD'!GS16)","v":"n.d."},{"$f":"IF('[2]MONE(M)CARD'!HA16=\"\",\"\",'[2]MONE(M)CAPARD'!HA16)","v":"n.d."},{"$f":"IF('[2]MONE(M)CAPARD'!HB16=\"\",\"\",'[2]MONE(M)CAPARD'!HB16)","v":"n.d."},"n.d.","n.d.","n.d.","n.d.","n.d.","n.d.","n.d.","n.d.","n.d.","n.d.","n.d.","n.d.","n.d.","n.d.",{"$f":"IF('[2]MONE(M)CAPARD'!AS16=\"\",\"\",'[2]MONE(M)CAPARD'!AS16)","v":"n.d."},{"$f":"IF('[2]MONE(M)CAPARD'!AT16=\"\",\"\",'[2]MONE(M)CAPARD'!AT16)","v":"n.a."},{"$f":"IF('[2]MONE(M)CAPARD'!AU16=\"\",\"\",'[2]MONE(M)CAPARD'!AU16)","v":"n.d."},{"$f":"IF('[2]MONE(M)CAPARD'!AV16=\"\",\"\",'[2]MONE(M)CAPARD'!AV16)","v":"n.d."},{"$f":"IF('[2]MONE(M)CAPARD'!AW16=\"\",\"\",'[2]MONE(M)CAPARD'!AW16)","v":"n.a."},{"$f":"IF('[2]MONE(M)CAPARD'!AX16=\"\",\"\",'[2]MONE(M)CAPARD'!AX16)","v":"n.d."},{"$f":"IF('[2]MONE(M)CAPARD'!AY16=\"\",\"\",'[2]MONE(M)CAPARD'!AY16)","v":"n.a."},{"$f":"IF('[2]FISCAL(M)'!$K16=\"\",\"\",'[2]FISCAL(M)'!$K16)","v":"n.d."},{"$f":"IF('[2]FISCAL(M)'!$L16=\"\",\"\",'[2]FISCAL(M)'!$L16)","v":"n.d."},{"$f":"IF('[2]FISCAL(M)'!$AY16=\"\",\"\",'[2]FISCAL(M)'!$AY16)","v":"n.d."},{"$f":"IF('[2]FISCAL(M)'!$BI16=\"\",\"\",'[2]FISCAL(M)'!$BI16)","v":"n.d."},{"$f":"IF('[2]FISCAL(M)'!$BS16=\"\",\"\",'[2]FISCAL(M)'!$BS16)","v":"n.d."},{"$f":"IF('[2]FISCAL(M)'!$AZ16=\"\",\"\",'[2]FISCAL(M)'!$AZ16)","v":"n.d."},{"$f":"IF('[2]FISCAL(M)'!$BJ16=\"\",\"\",'[2]FISCAL(M)'!$BJ16)","v":"n.d."},{"$f":"IF('[2]FISCAL(M)'!$BT16=\"\",\"\",'[2]FISCAL(M)'!$BT16)","v":"n.d."},{"$f":"IF('[3]MONE(M)'!$AO16=\"\",\"\",'[3]MONE(M)'!$AO16)","v":"n.d."},{"$f":"IF('[4]MONE(M)'!$AO16=\"\",\"\",'[4]MONE(M)'!$AO16)","v":"n.d."},{"$f":"IF('[5]MONE(M)'!$AO16=\"\",\"\",'[5]MONE(M)'!$AO16)","v":"n.d."},{"$f":"+'[1]MONE(M)'!$AO16","v":"n.d."},{"$f":"IF('[6]MONE(M)'!$AO16=\"\",\"\",'[6]MONE(M)'!$AO16)","v":"n.d."},{"$f":"IF('[7]MONE(M)'!$AO16=\"\",\"\",'[7]MONE(M)'!$AO16)","v":"n.d."},{"$f":"IF('[8]MONE(M)'!$AO16=\"\",\"\",'[8]MONE(M)'!$AO16)","v":"n.d."},"n.d.","n.d.","n.d.","n.d.","n.d.","n.d.","n.d.",{"$f":"IF('[2]FISCAL(M)'!$K16=\"\",\"\",'[2]FISCAL(M)'!$K16)","v":"n.d."},"n.d.","n.d.",{"$f":"IF('[2]FISCAL(M)'!$L16=\"\",\"\",'[2]FISCAL(M)'!$L16)","v":"n.d."},"n.d.","n.d.","n.d.","n.d.","n.d.","n.d.","n.d.","n.d.","n.d.","n.d.","n.d.","n.d.","n.d.","n.d.","n.d.","n.d.","n.d.","n.d."]
[1990,"agosto","1990-agosto",{"$f":"IF('[2]REAL IPC(M)'!$AL17=\"\",\"\",+'[2]REAL IPC(M)'!$AL17)","v":"n.d."},{"$f":"IF('[2]REAL IPC(M)'!$BE17=\"\",\"\",+'[2]REAL IPC(M)'!$BE17)","v":"n.d."},{"$f":"IF('[2]REAL IPC(M)'!$AM17=\"\",\"\",+'[2]REAL IPC(M)'!$AM17)","v":"n.d."},{"$f":"IF('[2]REAL IPC(M)'!$BI17=\"\",\"\",+'[2]REAL IPC(M)'!$BI17)","v":"n.d."},{"$f":"IF('[2]REAL IMAE(M)'!BJ17=\"\",\"\",'[2]REAL IMAE(M)'!BJ17)","v":"n.d."},{"$f":"IF('[2]REAL IMAE(M)'!BK17=\"\",\"\",'[2]REAL IMAE(M)'!BK17)","v":"n.d."},{"$f":"IF('[2]REAL IMAE(M)'!BN17=\"\",\"\",'[2]REAL IMAE(M)'!BN17)","v":"n.d."},{"$f":"IF('[2]REAL IMAE(M)'!BO17=\"\",\"\",'[2]REAL IMAE(M)'!BO17)","v":"n.d."},{"$f":"IF('[2]EXT RIN(M)'!$K17=\"\",\"\",'[2]EXT RIN(M)'!$K17)","v":"n.d."},"",{"$f":"IF('[2]EXT RIN(M)'!$L17=\"\",\"\",'[2]EXT RIN(M)'!$L17)","v":"n.d."},"",{"$f":"IF('[2]MONE(M)CARD'!EG17=\"\",\"\",'[2]MONE(M)CARD'!EG17)","v":"n.d."},{"$f":"IF('[2]MONE(M)CARD'!EK17=\"\",\"\",'[2]MONE(M)CARD'!EK17)","v":"n.d."},{"$f":"IF('[2]MONE(M)CARD'!EP17=\"\",\"\",'[2]MONE(M)CARD'!EP17)","v":"n.d."},{"$f":"IF('[2]MONE(M)CARD'!ES17=\"\",\"\",'[2]MONE(M)CARD'!ES17)","v":"n.d."},{"$f":"IF('[2]MONE(M)CARD'!EV17=\"\",\"\",'[2]MONE(M)CARD'!EV17)","v":"n.d."},{"$f":"IF('[2]MONE(M)CARD'!EZ17=\"\",\"\",'[2]MONE(M)CARD'!EZ17)","v":"n.d."},{"$f":"IF('[2]MONE(M)CAPARD'!FC17=\"\",\"\",'[2]MONE(M)CAPARD'!FC17)","v":"n.d."},{"$f":"IF('[2]MONE(M)CAPARD'!FG17=\"\",\"\",'[2]MONE(M)CAPARD'!FG17)","v":"n.d."},{"$f":"IF('[2]MONE(M)CAPARD'!FL17=\"\",\"\",'[2]MONE(M)CAPARD'!FL17)","v":"n.d."},{"$f":"IF('[2]MONE(M)CAPARD'!FO17=\"\",\"\",'[2]MONE(M)CAPARD'!FO17)","v":"n.d."},{"$f":"IF('[2]MONE(M)CAPARD'!FR17=\"\",\"\",'[2]MONE(M)CAPARD'!FR17)","v":"n.d."},{"$f":"IF('[2]MONE(M)CAPARD'!FV17=\"\",\"\",'[2]MONE(M)CAPARD'!FV17)","v":"n.d."},{"$f":"IF('[2]MONE(M)CARD'!FV17=\"\",\"\",'[2]MONE(M)CARD'!FV17)","v":""},{"$f":"IF('[2]MONE(M)CARD'!GD17=\"\",\"\",'[2]MONE(M)CARD'!GD17)","v":"n.d."},{"$f":"IF('[2]MONE(M)CARD'!GE17=\"\",\"\",'[2]MONE(M)CARD'!GE17)","v":"n.d."},"n.d.","n.d.","n.d.","n.d.","n.d.","n.d.","n.d.","n.d.",null,"n.d.","n.d.","n.d.","n.d.","n.d.",{"$f":"IF('[2]MONE(M)CAPARD'!GS17=\"\",\"\",'[2]MONE(M)CAPARD'!GS17)","v":"n.d."},{"$f":"IF('[2]MONE(M)CARD'!HA17=\"\",\"\",'[2]MONE(M)CAPARD'!HA17)","v":"n.d."},{"$f":"IF('[2]MONE(M)CAPARD'!HB17=\"\",\"\",'[2]MONE(M)CAPARD'!HB17)","v":"n.d."},"n.d.","n.d.","n.d.","n.d.","n.d.","n.d.","n.d.","n.d.","n.d.","n.d.","n.d.","n.d.","n.d.","n.d.",{"$f":"IF('[2]MONE(M)CAPARD'!AS17=\"\",\"\",'[2]MONE(M)CAPARD'!AS17)","v":"n.d."},{"$f":"IF('[2]MONE(M)CAPARD'!AT17=\"\",\"\",'[2]MONE(M)CAPARD'!AT17)","v":"n.a."},{"$f":"IF('[2]MONE(M)CAPARD'!AU17=\"\",\"\",'[2]MONE(M)CAPARD'!AU17)","v":"n.d."},{"$f":"IF('[2]MONE(M)CAPARD'!AV17=\"\",\"\",'[2]MONE(M)CAPARD'!AV17)","v":"n.d."},{"$f":"IF('[2]MONE(M)CAPARD'!AW17=\"\",\"\",'[2]MONE(M)CAPARD'!AW17)","v":"n.a."},{"$f":"IF('[2]MONE(M)CAPARD'!AX17=\"\",\"\",'[2]MONE(M)CAPARD'!AX17)","v":"n.d."},{"$f":"IF('[2]MONE(M)CAPARD'!AY17=\"\",\"\",'[2]MONE(M)CAPARD'!AY17)","v":"n.a."},{"$f":"IF('[2]FISCAL(M)'!$K17=\"\",\"\",'[2]FISCAL(M)'!$K17)","v":"n.d."},{"$f":"IF('[2]FISCAL(M)'!$L17=\"\",\"\",'[2]FISCAL(M)'!$L17)","v":"n.d."},{"$f":"IF('[2]FISCAL(M)'!$AY17=\"\",\"\",'[2]FISCAL(M)'!$AY17)","v":"n.d."},{"$f":"IF('[2]FISCAL(M)'!$BI17=\"\",\"\",'[2]FISCAL(M)'!$BI17)","v":"n.d."},{"$f":"IF('[2]FISCAL(M)'!$BS17=\"\",\"\",'[2]FISCAL(M)'!$BS17)","v":"n.d."},{"$f":"IF('[2]FISCAL(M)'!$AZ17=\"\",\"\",'[2]FISCAL(M)'!$AZ17)","v":"n.d."},{"$f":"IF('[2]FISCAL(M)'!$BJ17=\"\",\"\",'[2]FISCAL(M)'!$BJ17)","v":"n.d."},{"$f":"IF('[2]FISCAL(M)'!$BT17=\"\",\"\",'[2]FISCAL(M)'!$BT17)","v":"n.d."},{"$f":"IF('[3]MONE(M)'!$AO17=\"\",\"\",'[3]MONE(M)'!$AO17)","v":"n.d."},{"$f":"IF('[4]MONE(M)'!$AO17=\"\",\"\",'[4]MONE(M)'!$AO17)","v":"n.d."},{"$f":"IF('[5]MONE(M)'!$AO17=\"\",\"\",'[5]MONE(M)'!$AO17)","v":"n.d."},{"$f":"+'[1]MONE(M)'!$AO17","v":"n.d."},{"$f":"IF('[6]MONE(M)'!$AO17=\"\",\"\",'[6]MONE(M)'!$AO17)","v":"n.d."},{"$f":"IF('[7]MONE(M)'!$AO17=\"\",\"\",'[7]MONE(M)'!$AO17)","v":"n.d."},{"$f":"IF('[8]MONE(M)'!$AO17=\"\",\"\",'[8]MONE(M)'!$AO17)","v":"n.d."},"n.d.","n.d.","n.d.","n.d.","n.d.","n.d.","n.d.",{"$f":"IF('[2]FISCAL(M)'!$K17=\"\",\"\",'[2]FISCAL(M)'!$K17)","v":"n.d."},"n.d.","n.d.",{"$f":"IF('[2]FISCAL(M)'!$L17=\"\",\"\",'[2]FISCAL(M)'!$L17)","v":"n.d."},"n.d.","n.d.","n.d.","n.d.","n.d.","n.d.","n.d.","n.d.","n.d.","n.d.","n.d.","n.d.","n.d.","n.d.","n.d.","n.d.","n.d.","n.d."]
[1990,"septiembre","1990-septiembre",{"$f":"IF('[2]REAL IPC(M)'!$AL18=\"\",\"\",+'[2]REAL IPC(M)'!$AL18)","v":"n.d."},{"$f":"IF('[2]REAL IPC(M)'!$BE18=\"\",\"\",+'[2]REAL IPC(M)'!$BE18)","v":"n.d."},{"$f":"IF('[2]REAL IPC(M)'!$AM18=\"\",\"\",+'[2]REAL IPC(M)'!$AM18)","v":"n.d."},{"$f":"IF('[2]REAL IPC(M)'!$BI18=\"\",\"\",+'[2]REAL IPC(M)'!$BI18)","v":"n.d."},{"$f":"IF('[2]REAL IMAE(M)'!BJ18=\"\",\"\",'[2]REAL IMAE(M)'!BJ18)","v":"n.d."},{"$f":"IF('[2]REAL IMAE(M)'!BK18=\"\",\"\",'[2]REAL IMAE(M)'!BK18)","v":"n.d."},{"$f":"IF('[2]REAL IMAE(M)'!BN18=\"\",\"\",'[2]REAL IMAE(M)'!BN18)","v":"n.d."},{"$f":"IF('[2]REAL IMAE(M)'!BO18=\"\",\"\",'[2]REAL IMAE(M)'!BO18)","v":"n.d."},{"$f":"IF('[2]EXT RIN(M)'!$K18=\"\",\"\",'[2]EXT RIN(M)'!$K18)","v":"n.d."},"",{"$f":"IF('[2]EXT RIN(M)'!$L18=\"\",\"\",'[2]EXT RIN(M)'!$L18)","v":"n.d."},"",{"$f":"IF('[2]MONE(M)CARD'!EG18=\"\",\"\",'[2]MONE(M)CARD'!EG18)","v":"n.d."},{"$f":"IF('[2]MONE(M)CARD'!EK18=\"\",\"\",'[2]MONE(M)CARD'!EK18)","v":"n.d."},{"$f":"IF('[2]MONE(M)CARD'!EP18=\"\",\"\",'[2]MONE(M)CARD'!EP18)","v":"n.d."},{"$f":"IF('[2]MONE(M)CARD'!ES18=\"\",\"\",'[2]MONE(M)CARD'!ES18)","v":"n.d."},{"$f":"IF('[2]MONE(M)CARD'!EV18=\"\",\"\",'[2]MONE(M)CARD'!EV18)","v":"n.d."},{"$f":"IF('[2]MONE(M)CARD'!EZ18=\"\",\"\",'[2]MONE(M)CARD'!EZ18)","v":"n.d."},{"$f":"IF('[2]MONE(M)CAPARD'!FC18=\"\",\"\",'[2]MONE(M)CAPARD'!FC18)","v":"n.d."},{"$f":"IF('[2]MONE(M)CAPARD'!FG18=\"\",\"\",'[2]MONE(M)CAPARD'!FG18)","v":"n.d."},{"$f":"IF('[2]MONE(M)CAPARD'!FL18=\"\",\"\",'[2]MONE(M)CAPARD'!FL18)","v":"n.d."},{"$f":"IF('[2]MONE(M)CAPARD'!FO18=\"\",\"\",'[2]MONE(M)CAPARD'!FO18)","v":"n.d."},{"$f":"IF('[2]MONE(M)CAPARD'!FR18=\"\",\"\",'[2]MONE(M)CAPARD'!FR18)","v":"n.d."},{"$f":"IF('[2]MONE(M)CAPARD'!FV18=\"\",\"\",'[2]MONE(M)CAPARD'!FV18)","v":"n.d."},{"$f":"IF('[2]MONE(M)CARD'!FV18=\"\",\"\",'[2]MONE(M)CARD'!FV18)","v":""},{"$f":"IF('[2]MONE(M)CARD'!GD18=\"\",\"\",'[2]MONE(M)CARD'!GD18)","v":"n.d."},{"$f":"IF('[2]MONE(M)CARD'!GE18=\"\",\"\",'[2]MONE(M)CARD'!GE18)","v":"n.d."},"n.d.","n.d.","n.d.","n.d.","n.d.","n.d.","n.d.","n.d.",null,"n.d.","n.d.","n.d.","n.d.","n.d.",{"$f":"IF('[2]MONE(M)CAPARD'!GS18=\"\",\"\",'[2]MONE(M)CAPARD'!GS18)","v":"n.d."},{"$f":"IF('[2]MONE(M)CARD'!HA18=\"\",\"\",'[2]MONE(M)CAPARD'!HA18)","v":"n.d."},{"$f":"IF('[2]MONE(M)CAPARD'!HB18=\"\",\"\",'[2]MONE(M)CAPARD'!HB18)","v":"n.d."},"n.d.","n.d.","n.d.","n.d.","n.d.","n.d.","n.d.","n.d.","n.d.","n.d.","n.d.","n.d.","n.d.","n.d.",{"$f":"IF('[2]MONE(M)CAPARD'!AS18=\"\",\"\",'[2]MONE(M)CAPARD'!AS18)","v":"n.d."},{"$f":"IF('[2]MONE(M)CAPARD'!AT18=\"\",\"\",'[2]MONE(M)CAPARD'!AT18)","v":"n.a."},{"$f":"IF('[2]MONE(M)CAPARD'!AU18=\"\",\"\",'[2]MONE(M)CAPARD'!AU18)","v":"n.d."},{"$f":"IF('[2]MONE(M)CAPARD'!AV18=\"\",\"\",'[2]MONE(M)CAPARD'!AV18)","v":"n.d."},{"$f":"IF('[2]MONE(M)CAPARD'!AW18=\"\",\"\",'[2]MONE(M)CAPARD'!AW18)","v":"n.a."},{"$f":"IF('[2]MONE(M)CAPARD'!AX18=\"\",\"\",'[2]MONE(M)CAPARD'!AX18)","v":"n.d."},{"$f":"IF('[2]MONE(M)CAPARD'!AY18=\"\",\"\",'[2]MONE(M)CAPARD'!AY18)","v":"n.a."},{"$f":"IF('[2]FISCAL(M)'!$K18=\"\",\"\",'[2]FISCAL(M)'!$K18)","v":"n.d."},{"$f":"IF('[2]FISCAL(M)'!$L18=\"\",\"\",'[2]FISCAL(M)'!$L18)","v":"n.d."},{"$f":"IF('[2]FISCAL(M)'!$AY18=\"\",\"\",'[2]FISCAL(M)'!$AY18)","v":"n.d."},{"$f":"IF('[2]FISCAL(M)'!$BI18=\"\",\"\",'[2]FISCAL(M)'!$BI18)","v":"n.d."},{"$f":"IF('[2]FISCAL(M)'!$BS18=\"\",\"\",'[2]FISCAL(M)'!$BS18)","v":"n.d."},{"$f":"IF('[2]FISCAL(M)'!$AZ18=\"\",\"\",'[2]FISCAL(M)'!$AZ18)","v":"n.d."},{"$f":"IF('[2]FISCAL(M)'!$BJ18=\"\",\"\",'[2]FISCAL(M)'!$BJ18)","v":"n.d."},{"$f":"IF('[2]FISCAL(M)'!$BT18=\"\",\"\",'[2]FISCAL(M)'!$BT18)","v":"n.d."},{"$f":"IF('[3]MONE(M)'!$AO18=\"\",\"\",'[3]MONE(M)'!$AO18)","v":"n.d."},{"$f":"IF('[4]MONE(M)'!$AO18=\"\",\"\",'[4]MONE(M)'!$AO18)","v":"n.d."},{"$f":"IF('[5]MONE(M)'!$AO18=\"\",\"\",'[5]MONE(M)'!$AO18)","v":"n.d."},{"$f":"+'[1]MONE(M)'!$AO18","v":"n.d."},{"$f":"IF('[6]MONE(M)'!$AO18=\"\",\"\",'[6]MONE(M)'!$AO18)","v":"n.d."},{"$f":"IF('[7]MONE(M)'!$AO18=\"\",\"\",'[7]MONE(M)'!$AO18)","v":"n.d."},{"$f":"IF('[8]MONE(M)'!$AO18=\"\",\"\",'[8]MONE(M)'!$AO18)","v":"n.d."},"n.d.","n.d.","n.d.","n.d.","n.d.","n.d.","n.d.",{"$f":"IF('[2]FISCAL(M)'!$K18=\"\",\"\",'[2]FISCAL(M)'!$K18)","v":"n.d."},"n.d.","n.d.",{"$f":"IF('[2]FISCAL(M)'!$L18=\"\",\"\",'[2]FISCAL(M)'!$L18)","v":"n.d."},"n.d.","n.d.","n.d.","n.d.","n.d.","n.d.","n.d.","n.d.","n.d.","n.d.","n.d.","n.d.","n.d.","n.d.","n.d.","n.d.","n.d.","n.d."]
[1990,"octubre","1990-octubre",{"$f":"IF('[2]REAL IPC(M)'!$AL19=\"\",\"\",+'[2]REAL IPC(M)'!$AL19)","v":"n.d."},{"$f":"IF('[2]REAL IPC(M)'!$BE19=\"\",\"\",+'[2]REAL IPC(M)'!$BE19)","v":"n.d."},{"$f":"IF('[2]REAL IPC(M)'!$AM19=\"\",\"\",+'[2]REAL IPC(M)'!$AM19)","v":"n.d."},{"$f":"IF('[2]REAL IPC(M)'!$BI19=\"\",\"\",+'[2]REAL IPC(M)'!$BI19)","v":"n.d."},{"$f":"IF('[2]REAL IMAE(M)'!BJ19=\"\",\"\",'[2]REAL IMAE(M)'!BJ19)","v":"n.d."},{"$f":"IF('[2]REAL IMAE(M)'!BK19=\"\",\"\",'[2]REAL IMAE(M)'!BK19)","v":"n.d."},{"$f":"IF('[2]REAL IMAE(M)'!BN19=\"\",\"\",'[2]REAL IMAE(M)'!BN19)","v":"n.d."},{"$f":"IF('[2]REAL IMAE(M)'!BO19=\"\",\"\",'[2]REAL IMAE(M)'!BO19)","v":"n.d."},{"$f":"IF('[2]EXT RIN(M)'!$K19=\"\",\"\",'[2]EXT RIN(M)'!$K19)","v":"n.d."},"",{"$f":"IF('[2]EXT RIN(M)'!$L19=\"\",\"\",'[2]EXT RIN(M)'!$L19)","v":"n.d."},"",{"$f":"IF('[2]MONE(M)CARD'!EG19=\"\",\"\",'[2]MONE(M)CARD'!EG19)","v":"n.d."},{"$f":"IF('[2]MONE(M)CARD'!EK19=\"\",\"\",'[2]MONE(M)CARD'!EK19)","v":"n.d."},{"$f":"IF('[2]MONE(M)CARD'!EP19=\"\",\"\",'[2]MONE(M)CARD'!EP19)","v":"n.d."},{"$f":"IF('[2]MONE(M)CARD'!ES19=\"\",\"\",'[2]MONE(M)CARD'!ES19)","v":"n.d."},{"$f":"IF('[2]MONE(M)CARD'!EV19=\"\",\"\",'[2]MONE(M)CARD'!EV19)","v":"n.d."},{"$f":"IF('[2]MONE(M)CARD'!EZ19=\"\",\"\",'[2]MONE(M)CARD'!EZ19)","v":"n.d."},{"$f":"IF('[2]MONE(M)CAPARD'!FC19=\"\",\"\",'[2]MONE(M)CAPARD'!FC19)","v":"n.d."},{"$f":"IF('[2]MONE(M)CAPARD'!FG19=\"\",\"\",'[2]MONE(M)CAPARD'!FG19)","v":"n.d."},{"$f":"IF('[2]MONE(M)CAPARD'!FL19=\"\",\"\",'[2]MONE(M)CAPARD'!FL19)","v":"n.d."},{"$f":"IF('[2]MONE(M)CAPARD'!FO19=\"\",\"\",'[2]MONE(M)CAPARD'!FO19)","v":"n.d."},{"$f":"IF('[2]MONE(M)CAPARD'!FR19=\"\",\"\",'[2]MONE(M)CAPARD'!FR19)","v":"n.d."},{"$f":"IF('[2]MONE(M)CAPARD'!FV19=\"\",\"\",'[2]MONE(M)CAPARD'!FV19)","v":"n.d."},{"$f":"IF('[2]MONE(M)CARD'!FV19=\"\",\"\",'[2]MONE(M)CARD'!FV19)","v":""},{"$f":"IF('[2]MONE(M)CARD'!GD19=\"\",\"\",'[2]MONE(M)CARD'!GD19)","v":"n.d."},{"$f":"IF('[2]MONE(M)CARD'!GE19=\"\",\"\",'[2]MONE(M)CARD'!GE19)","v":"n.d."},"n.d.","n.d.","n.d.","n.d.","n.d.","n.d.","n.d.","n.d.",null,"n.d.","n.d.","n.d.","n.d.","n.d.",{"$f":"IF('[2]MONE(M)CAPARD'!GS19=\"\",\"\",'[2]MONE(M)CAPARD'!GS19)","v":"n.d."},{"$f":"IF('[2]MONE(M)CARD'!HA19=\"\",\"\",'[2]MONE(M)CAPARD'!HA19)","v":"n.d."},{"$f":"IF('[2]MONE(M)CAPARD'!HB19=\"\",\"\",'[2]MONE(M)CAPARD'!HB19)","v":"n.d."},"n.d.","n.d.","n.d.","n.d.","n.d.","n.d.","n.d.","n.d.","n.d.","n.d.","n.d.","n.d.","n.d.","n.d.",{"$f":"IF('[2]MONE(M)CAPARD'!AS19=\"\",\"\",'[2]MONE(M)CAPARD'!AS19)","v":"n.d."},{"$f":"IF('[2]MONE(M)CAPARD'!AT19=\"\",\"\",'[2]MONE(M)CAPARD'!AT19)","v":"n.a."},{"$f":"IF('[2]MONE(M)CAPARD'!AU19=\"\",\"\",'[2]MONE(M)CAPARD'!AU19)","v":"n.d."},{"$f":"IF('[2]MONE(M)CAPARD'!AV19=\"\",\"\",'[2]MONE(M)CAPARD'!AV19)","v":"n.d."},{"$f":"IF('[2]MONE(M)CAPARD'!AW19=\"\",\"\",'[2]MONE(M)CAPARD'!AW19)","v":"n.a."},{"$f":"IF('[2]MONE(M)CAPARD'!AX19=\"\",\"\",'[2]MONE(M)CAPARD'!AX19)","v":"n.d."},{"$f":"IF('[2]MONE(M)CAPARD'!AY19=\"\",\"\",'[2]MONE(M)CAPARD'!AY19)","v":"n.a."},{"$f":"IF('[2]FISCAL(M)'!$K19=\"\",\"\",'[2]FISCAL(M)'!$K19)","v":"n.d."},{"$f":"IF('[2]FISCAL(M)'!$L19=\"\",\"\",'[2]FISCAL(M)'!$L19)","v":"n.d."},{"$f":"IF('[2]FISCAL(M)'!$AY19=\"\",\"\",'[2]FISCAL(M)'!$AY19)","v":"n.d."},{"$f":"IF('[2]FISCAL(M)'!$BI19=\"\",\"\",'[2]FISCAL(M)'!$BI19)","v":"n.d."},{"$f":"IF('[2]FISCAL(M)'!$BS19=\"\",\"\",'[2]FISCAL(M)'!$BS19)","v":"n.d."},{"$f":"IF('[2]FISCAL(M)'!$AZ19=\"\",\"\",'[2]FISCAL(M)'!$AZ19)","v":"n.d."},{"$f":"IF('[2]FISCAL(M)'!$BJ19=\"\",\"\",'[2]FISCAL(M)'!$BJ19)","v":"n.d."},{"$f":"IF('[2]FISCAL(M)'!$BT19=\"\",\"\",'[2]FISCAL(M)'!$BT19)","v":"n.d."},{"$f":"IF('[3]MONE(M)'!$AO19=\"\",\"\",'[3]MONE(M)'!$AO19)","v":"n.d."},{"$f":"IF('[4]MONE(M)'!$AO19=\"\",\"\",'[4]MONE(M)'!$AO19)","v":"n.d."},{"$f":"IF('[5]MONE(M)'!$AO19=\"\",\"\",'[5]MONE(M)'!$AO19)","v":"n.d."},{"$f":"+'[1]MONE(M)'!$AO19","v":"n.d."},{"$f":"IF('[6]MONE(M)'!$AO19=\"\",\"\",'[6]MONE(M)'!$AO19)","v":"n.d."},{"$f":"IF('[7]MONE(M)'!$AO19=\"\",\"\",'[7]MONE(M)'!$AO19)","v":"n.d."},{"$f":"IF('[8]MONE(M)'!$AO19=\"\",\"\",'[8]MONE(M)'!$AO19)","v":"n.d."},"n.d.","n.d.","n.d.","n.d.","n.d.","n.d.","n.d.",{"$f":"IF('[2]FISCAL(M)'!$K19=\"\",\"\",'[2]FISCAL(M)'!$K19)","v":"n.d."},"n.d.","n.d.",{"$f":"IF('[2]FISCAL(M)'!$L19=\"\",\"\",'[2]FISCAL(M)'!$L19)","v":"n.d."},"n.d.","n.d.","n.d.","n.d.","n.d.","n.d.","n.d.","n.d.","n.d.","n.d.","n.d.","n.d.","n.d.","n.d.","n.d.","n.d.","n.d.","n.d."]
[1990,"noviembre","1990-noviembre",{"$f":"IF('[2]REAL IPC(M)'!$AL20=\"\",\"\",+'[2]REAL IPC(M)'!$AL20)","v":"n.d."},{"$f":"IF('[2]REAL IPC(M)'!$BE20=\"\",\"\",+'[2]REAL IPC(M)'!$BE20)","v":"n.d."},{"$f":"IF('[2]REAL IPC(M)'!$AM20=\"\",\"\",+'[2]REAL IPC(M)'!$AM20)","v":"n.d."},{"$f":"IF('[2]REAL IPC(M)'!$BI20=\"\",\"\",+'[2]REAL IPC(M)'!$BI20)","v":"n.d."},{"$f":"IF('[2]REAL IMAE(M)'!BJ20=\"\",\"\",'[2]REAL IMAE(M)'!BJ20)","v":"n.d."},{"$f":"IF('[2]REAL IMAE(M)'!BK20=\"\",\"\",'[2]REAL IMAE(M)'!BK20)","v":"n.d."},{"$f":"IF('[2]REAL IMAE(M)'!BN20=\"\",\"\",'[2]REAL IMAE(M)'!BN20)","v":"n.d."},{"$f":"IF('[2]REAL IMAE(M)'!BO20=\"\",\"\",'[2]REAL IMAE(M)'!BO20)","v":"n.d."},{"$f":"IF('[2]EXT RIN(M)'!$K20=\"\",\"\",'[2]EXT RIN(M)'!$K20)","v":"n.d."},"",{"$f":"IF('[2]EXT RIN(M)'!$L20=\"\",\"\",'[2]EXT RIN(M)'!$L20)","v":"n.d."},"",{"$f":"IF('[2]MONE(M)CARD'!EG20=\"\",\"\",'[2]MONE(M)CARD'!EG20)","v":"n.d."},{"$f":"IF('[2]MONE(M)CARD'!EK20=\"\",\"\",'[2]MONE(M)CARD'!EK20)","v":"n.d."},{"$f":"IF('[2]MONE(M)CARD'!EP20=\"\",\"\",'[2]MONE(M)CARD'!EP20)","v":"n.d."},{"$f":"IF('[2]MONE(M)CARD'!ES20=\"\",\"\",'[2]MONE(M)CARD'!ES20)","v":"n.d."},{"$f":"IF('[2]MONE(M)CARD'!EV20=\"\",\"\",'[2]MONE(M)CARD'!EV20)","v":"n.d."},{"$f":"IF('[2]MONE(M)CARD'!EZ20=\"\",\"\",'[2]MONE(M)CARD'!EZ20)","v":"n.d."},{"$f":"IF('[2]MONE(M)CAPARD'!FC20=\"\",\"\",'[2]MONE(M)CAPARD'!FC20)","v":"n.d."},{"$f":"IF('[2]MONE(M)CAPARD'!FG20=\"\",\"\",'[2]MONE(M)CAPARD'!FG20)","v":"n.d."},{"$f":"IF('[2]MONE(M)CAPARD'!FL20=\"\",\"\",'[2]MONE(M)CAPARD'!FL20)","v":"n.d."},{"$f":"IF('[2]MONE(M)CAPARD'!FO20=\"\",\"\",'[2]MONE(M)CAPARD'!FO20)","v":"n.d."},{"$f":"IF('[2]MONE(M)CAPARD'!FR20=\"\",\"\",'[2]MONE(M)CAPARD'!FR20)","v":"n.d."},{"$f":"IF('[2]MONE(M)CAPARD'!FV20=\"\",\"\",'[2]MONE(M)CAPARD'!FV20)","v":"n.d."},{"$f":"IF('[2]MONE(M)CARD'!FV20=\"\",\"\",'[2]MONE(M)CARD'!FV20)","v":""},{"$f":"IF('[2]MONE(M)CARD'!GD20=\"\",\"\",'[2]MONE(M)CARD'!GD20)","v":"n.d."},{"$f":"IF('[2]MONE(M)CARD'!GE20=\"\",\"\",'[2]MONE(M)CARD'!GE20)","v":"n.d."},"n.d.","n.d.","n.d.","n.d.","n.d.","n.d.","n.d.","n.d.",null,"n.d.","n.d.","n.d.","n.d.","n.d.",{"$f":"IF('[2]MONE(M)CAPARD'!GS20=\"\",\"\",'[2]MONE(M)CAPARD'!GS20)","v":"n.d."},{"$f":"IF('[2]MONE(M)CARD'!HA20=\"\",\"\",'[2]MONE(M)CAPARD'!HA20)","v":"n.d."},{"$f":"IF('[2]MONE(M)CAPARD'!HB20=\"\",\"\",'[2]MONE(M)CAPARD'!HB20)","v":"n.d."},"n.d.","n.d.","n.d.","n.d.","n.d.","n.d.","n.d.","n.d.","n.d.","n.d.","n.d.","n.d.","n.d.","n.d.",{"$f":"IF('[2]MONE(M)CAPARD'!AS20=\"\",\"\",'[2]MONE(M)CAPARD'!AS20)","v":"n.d."},{"$f":"IF('[2]MONE(M)CAPARD'!AT20=\"\",\"\",'[2]MONE(M)CAPARD'!AT20)","v":"n.a."},{"$f":"IF('[2]MONE(M)CAPARD'!AU20=\"\",\"\",'[2]MONE(M)CAPARD'!AU20)","v":"n.d."},{"$f":"IF('[2]MONE(M)CAPARD'!AV20=\"\",\"\",'[2]MONE(M)CAPARD'!AV20)","v":"n.d."},{"$f":"IF('[2]MONE(M)CAPARD'!AW20=\"\",\"\",'[2]MONE(M)CAPARD'!AW20)","v":"n.a."},{"$f":"IF('[2]MONE(M)CAPARD'!AX20=\"\",\"\",'[2]MONE(M)CAPARD'!AX20)","v":"n.d."},{"$f":"IF('[2]MONE(M)CAPARD'!AY20=\"\",\"\",'[2]MONE(M)CAPARD'!AY20)","v":"n.a."},{"$f":"IF('[2]FISCAL(M)'!$K20=\"\",\"\",'[2]FISCAL(M)'!$K20)","v":"n.d."},{"$f":"IF('[2]FISCAL(M)'!$L20=\"\",\"\",'[2]FISCAL(M)'!$L20)","v":"n.d."},{"$f":"IF('[2]FISCAL(M)'!$AY20=\"\",\"\",'[2]FISCAL(M)'!$AY20)","v":"n.d."},{"$f":"IF('[2]FISCAL(M)'!$BI20=\"\",\"\",'[2]FISCAL(M)'!$BI20)","v":"n.d."},{"$f":"IF('[2]FISCAL(M)'!$BS20=\"\",\"\",'[2]FISCAL(M)'!$BS20)","v":"n.d."},{"$f":"IF('[2]FISCAL(M)'!$AZ20=\"\",\"\",'[2]FISCAL(M)'!$AZ20)","v":"n.d."},{"$f":"IF('[2]FISCAL(M)'!$BJ20=\"\",\"\",'[2]FISCAL(M)'!$BJ20)","v":"n.d."},{"$f":"IF('[2]FISCAL(M)'!$BT20=\"\",\"\",'[2]FISCAL(M)'!$BT20)","v":"n.d."},{"$f":"IF('[3]MONE(M)'!$AO20=\"\",\"\",'[3]MONE(M)'!$AO20)","v":"n.d."},{"$f":"IF('[4]MONE(M)'!$AO20=\"\",\"\",'[4]MONE(M)'!$AO20)","v":"n.d."},{"$f":"IF('[5]MONE(M)'!$AO20=\"\",\"\",'[5]MONE(M)'!$AO20)","v":"n.d."},{"$f":"+'[1]MONE(M)'!$AO20","v":"n.d."},{"$f":"IF('[6]MONE(M)'!$AO20=\"\",\"\",'[6]MONE(M)'!$AO20)","v":"n.d."},{"$f":"IF('[7]MONE(M)'!$AO20=\"\",\"\",'[7]MONE(M)'!$AO20)","v":"n.d."},{"$f":"IF('[8]MONE(M)'!$AO20=\"\",\"\",'[8]MONE(M)'!$AO20)","v":"n.d."},"n.d.","n.d.","n.d.","n.d.","n.d.","n.d.","n.d.",{"$f":"IF('[2]FISCAL(M)'!$K20=\"\",\"\",'[2]FISCAL(M)'!$K20)","v":"n.d."},"n.d.","n.d.",{"$f":"IF('[2]FISCAL(M)'!$L20=\"\",\"\",'[2]FISCAL(M)'!$L20)","v":"n.d."},"n.d.","n.d.","n.d.","n.d.","n.d.","n.d.","n.d.","n.d.","n.d.","n.d.","n.d.","n.d.","n.d.","n.d.","n.d.","n.d.","n.d.","n.d."]
[1990,"diciembre","1990-diciembre",{"$f":"IF('[2]REAL IPC(M)'!$AL21=\"\",\"\",+'[2]REAL IPC(M)'!$AL21)","v":"n.d."},{"$f":"IF('[2]REAL IPC(M)'!$BE21=\"\",\"\",+'[2]REAL IPC(M)'!$BE21)","v":"n.d."},{"$f":"IF('[2]REAL IPC(M)'!$AM21=\"\",\"\",+'[2]REAL IPC(M)'!$AM21)","v":"n.d."},{"$f":"IF('[2]REAL IPC(M)'!$BI21=\"\",\"\",+'[2]REAL IPC(M)'!$BI21)","v":"n.d."},{"$f":"IF('[2]REAL IMAE(M)'!BJ21=\"\",\"\",'[2]REAL IMAE(M)'!BJ21)","v":"n.d."},{"$f":"IF('[2]REAL IMAE(M)'!BK21=\"\",\"\",'[2]REAL IMAE(M)'!BK21)","v":"n.d."},{"$f":"IF('[2]REAL IMAE(M)'!BN21=\"\",\"\",'[2]REAL IMAE(M)'!BN21)","v":"n.d."},{"$f":"IF('[2]REAL IMAE(M)'!BO21=\"\",\"\",'[2]REAL IMAE(M)'!BO21)","v":"n.d."},{"$f":"IF('[2]EXT RIN(M)'!$K21=\"\",\"\",'[2]EXT RIN(M)'!$K21)","v":"n.d."},"n.d.",{"$f":"IF('[2]EXT RIN(M)'!$L21=\"\",\"\",'[2]EXT RIN(M)'!$L21)","v":"n.d."},"n.d.",{"$f":"IF('[2]MONE(M)CARD'!EG21=\"\",\"\",'[2]MONE(M)CARD'!EG21)","v":"n.d."},{"$f":"IF('[2]MONE(M)CARD'!EK21=\"\",\"\",'[2]MONE(M)CARD'!EK21)","v":"n.d."},{"$f":"IF('[2]MONE(M)CARD'!EP21=\"\",\"\",'[2]MONE(M)CARD'!EP21)","v":"n.d."},{"$f":"IF('[2]MONE(M)CARD'!ES21=\"\",\"\",'[2]MONE(M)CARD'!ES21)","v":"n.d."},{"$f":"IF('[2]MONE(M)CARD'!EV21=\"\",\"\",'[2]MONE(M)CARD'!EV21)","v":"n.d."},{"$f":"IF('[2]MONE(M)CARD'!EZ21=\"\",\"\",'[2]MONE(M)CARD'!EZ21)","v":"n.d."},{"$f":"IF('[2]MONE(M)CAPARD'!FC21=\"\",\"\",'[2]MONE(M)CAPARD'!FC21)","v":"n.d."},{"$f":"IF('[2]MONE(M)CAPARD'!FG21=\"\",\"\",'[2]MONE(M)CAPARD'!FG21)","v":"n.d."},{"$f":"IF('[2]MONE(M)CAPARD'!FL21=\"\",\"\",'[2]MONE(M)CAPARD'!FL21)","v":"n.d."},{"$f":"IF('[2]MONE(M)CAPARD'!FO21=\"\",\"\",'[2]MONE(M)CAPARD'!FO21)","v":"n.d."},{"$f":"IF('[2]MONE(M)CAPARD'!FR21=\"\",\"\",'[2]MONE(M)CAPARD'!FR21)","v":"n.d."},{"$f":"IF('[2]MONE(M)CAPARD'!FV21=\"\",\"\",'[2]MONE(M)CAPARD'!FV21)","v":"n.d."},{"$f":"IF('[2]MONE(M)CARD'!FV21=\"\",\"\",'[2]MONE(M)CARD'!FV21)","v":""},{"$f":"IF('[2]MONE(M)CARD'!GD21=\"\",\"\",'[2]MONE(M)CARD'!GD21)","v":"n.d."},{"$f":"IF('[2]MONE(M)CARD'!GE21=\"\",\"\",'[2]MONE(M)CARD'!GE21)","v":"n.d."},"n.d.","n.d.","n.d.","n.d.","n.d.","n.d.","n.d.","n.d.",null,"n.d.","n.d.","n.d.","n.d.","n.d.",{"$f":"IF('[2]MONE(M)CAPARD'!GS21=\"\",\"\",'[2]MONE(M)CAPARD'!GS21)","v":"n.d."},{"$f":"IF('[2]MONE(M)CARD'!HA21=\"\",\"\",'[2]MONE(M)CAPARD'!HA21)","v":"n.d."},{"$f":"IF('[2]MONE(M)CAPARD'!HB21=\"\",\"\",'[2]MONE(M)CAPARD'!HB21)","v":"n.d."},"n.d.","n.d.","n.d.","n.d.","n.d.","n.d.","n.d.","n.d.","n.d.","n.d.","n.d.","n.d.","n.d.","n.d.",{"$f":"IF('[2]MONE(M)CAPARD'!AS21=\"\",\"\",'[2]MONE(M)CAPARD'!AS21)","v":"n.d."},{"$f":"IF('[2]MONE(M)CAPARD'!AT21=\"\",\"\",'[2]MONE(M)CAPARD'!AT21)","v":"n.a."},{"$f":"IF('[2]MONE(M)CAPARD'!AU21=\"\",\"\",'[2]MONE(M)CAPARD'!AU21)","v":"n.d."},{"$f":"IF('[2]MONE(M)CAPARD'!AV21=\"\",\"\",'[2]MONE(M)CAPARD'!AV21)","v":"n.d."},{"$f":"IF('[2]MONE(M)CAPARD'!AW21=\"\",\"\",'[2]MONE(M)CAPARD'!AW21)","v":"n.a."},{"$f":"IF('[2]MONE(M)CAPARD'!AX21=\"\",\"\",'[2]MONE(M)CAPARD'!AX21)","v":"n.d."},{"$f":"IF('[2]MONE(M)CAPARD'!AY21=\"\",\"\",'[2]MONE(M)CAPARD'!AY21)","v":"n.a."},{"$f":"IF('[2]FISCAL(M)'!$K21=\"\",\"\",'[2]FISCAL(M)'!$K21)","v":"n.d."},{"$f":"IF('[2]FISCAL(M)'!$L21=\"\",\"\",'[2]FISCAL(M)'!$L21)","v":"n.d."},{"$f":"IF('[2]FISCAL(M)'!$AY21=\"\",\"\",'[2]FISCAL(M)'!$AY21)","v":"n.d."},{"$f":"IF('[2]FISCAL(M)'!$BI21=\"\",\"\",'[2]FISCAL(M)'!$BI21)","v":"n.d."},{"$f":"IF('[2]FISCAL(M)'!$BS21=\"\",\"\",'[2]FISCAL(M)'!$BS21)","v":"n.d."},{"$f":"IF('[2]FISCAL(M)'!$AZ21=\"\",\"\",'[2]FISCAL(M)'!$AZ21)","v":"n.d."},{"$f":"IF('[2]FISCAL(M)'!$BJ21=\"\",\"\",'[2]FISCAL(M)'!$BJ21)","v":"n.d."},{"$f":"IF('[2]FISCAL(M)'!$BT21=\"\",\"\",'[2]FISCAL(M)'!$BT21)","v":"n.d."},{"$f":"IF('[3]MONE(M)'!$AO21=\"\",\"\",'[3]MONE(M)'!$AO21)","v":"n.d."},{"$f":"IF('[4]MONE(M)'!$AO21=\"\",\"\",'[4]MONE(M)'!$AO21)","v":"n.d."},{"$f":"IF('[5]MONE(M)'!$AO21=\"\",\"\",'[5]MONE(M)'!$AO21)","v":"n.d."},{"$f":"+'[1]MONE(M)'!$AO21","v":"n.d."},{"$f":"IF('[6]MONE(M)'!$AO21=\"\",\"\",'[6]MONE(M)'!$AO21)","v":"n.d."},{"$f":"IF('[7]MONE(M)'!$AO21=\"\",\"\",'[7]MONE(M)'!$AO21)","v":"n.d."},{"$f":"IF('[8]MONE(M)'!$AO21=\"\",\"\",'[8]MONE(M)'!$AO21)","v":"n.d."},"n.d.","n.d.","n.d.","n.d.","n.d.","n.d.","n.d.",{"$f":"IF('[2]FISCAL(M)'!$K21=\"\",\"\",'[2]FISCAL(M)'!$K21)","v":"n.d."},"n.d.","n.d.",{"$f":"IF('[2]FISCAL(M)'!$L21=\"\",\"\",'[2]FISCAL(M)'!$L21)","v":"n.d."},"n.d.","n.d.","n.d.","n.d.","n.d.","n.d.","n.d.","n.d.","n.d.","n.d.","n.d.","n.d.","n.d.","n.d.","n.d.","n.d.","n.d.","n.d."]
[1991,"enero","1991-enero",{"$f":"IF('[2]REAL IPC(M)'!$AL22=\"\",\"\",+'[2]REAL IPC(M)'!$AL22)","v":"n.d."},{"$f":"IF('[2]REAL IPC(M)'!$BE22=\"\",\"\",+'[2]REAL IPC(M)'!$BE22)","v":"n.d."},{"$f":"IF('[2]REAL IPC(M)'!$AM22=\"\",\"\",+'[2]REAL IPC(M)'!$AM22)","v":"n.d."},{"$f":"IF('[2]REAL IPC(M)'!$BI22=\"\",\"\",+'[2]REAL IPC(M)'!$BI22)","v":"n.d."},{"$f":"IF('[2]REAL IMAE(M)'!BJ22=\"\",\"\",'[2]REAL IMAE(M)'!BJ22)","v":"n.d."},{"$f":"IF('[2]REAL IMAE(M)'!BK22=\"\",\"\",'[2]REAL IMAE(M)'!BK22)","v":"n.d."},{"$f":"IF('[2]REAL IMAE(M)'!BN22=\"\",\"\",'[2]REAL IMAE(M)'!BN22)","v":"n.d."},{"$f":"IF('[2]REAL IMAE(M)'!BO22=\"\",\"\",'[2]REAL IMAE(M)'!BO22)","v":"n.d."},{"$f":"IF('[2]EXT RIN(M)'!$K22=\"\",\"\",'[2]EXT RIN(M)'!$K22)","v":"n.d."},"",{"$f":"IF('[2]EXT RIN(M)'!$L22=\"\",\"\",'[2]EXT RIN(M)'!$L22)","v":"n.d."},"",{"$f":"IF('[2]MONE(M)CARD'!EG22=\"\",\"\",'[2]MONE(M)CARD'!EG22)","v":"n.d."},{"$f":"IF('[2]MONE(M)CARD'!EK22=\"\",\"\",'[2]MONE(M)CARD'!EK22)","v":"n.d."},{"$f":"IF('[2]MONE(M)CARD'!EP22=\"\",\"\",'[2]MONE(M)CARD'!EP22)","v":"n.d."},{"$f":"IF('[2]MONE(M)CARD'!ES22=\"\",\"\",'[2]MONE(M)CARD'!ES22)","v":"n.d."},{"$f":"IF('[2]MONE(M)CARD'!EV22=\"\",\"\",'[2]MONE(M)CARD'!EV22)","v":"n.d."},{"$f":"IF('[2]MONE(M)CARD'!EZ22=\"\",\"\",'[2]MONE(M)CARD'!EZ22)","v":"n.d."},{"$f":"IF('[2]MONE(M)CAPARD'!FC22=\"\",\"\",'[2]MONE(M)CAPARD'!FC22)","v":"n.d."},{"$f":"IF('[2]MONE(M)CAPARD'!FG22=\"\",\"\",'[2]MONE(M)CAPARD'!FG22)","v":"n.d."},{"$f":"IF('[2]MONE(M)CAPARD'!FL22=\"\",\"\",'[2]MONE(M)CAPARD'!FL22)","v":"n.d."},{"$f":"IF('[2]MONE(M)CAPARD'!FO22=\"\",\"\",'[2]MONE(M)CAPARD'!FO22)","v":"n.d."},{"$f":"IF('[2]MONE(M)CAPARD'!FR22=\"\",\"\",'[2]MONE(M)CAPARD'!FR22)","v":"n.d."},{"$f":"IF('[2]MONE(M)CAPARD'!FV22=\"\",\"\",'[2]MONE(M)CAPARD'!FV22)","v":"n.d."},{"$f":"IF('[2]MONE(M)CARD'!FV22=\"\",\"\",'[2]MONE(M)CARD'!FV22)","v":""},{"$f":"IF('[2]MONE(M)CARD'!GD22=\"\",\"\",'[2]MONE(M)CARD'!GD22)","v":"n.d."},{"$f":"IF('[2]MONE(M)CARD'!GE22=\"\",\"\",'[2]MONE(M)CARD'!GE22)","v":"n.d."},"n.d.","n.d.","n.d.","n.d.","n.d.","n.d.","n.d.","n.d.",null,"n.d.","n.d.","n.d.","n.d.","n.d.",{"$f":"IF('[2]MONE(M)CAPARD'!GS22=\"\",\"\",'[2]MONE(M)CAPARD'!GS22)","v":"n.d."},{"$f":"IF('[2]MONE(M)CARD'!HA22=\"\",\"\",'[2]MONE(M)CAPARD'!HA22)","v":"n.d."},{"$f":"IF('[2]MONE(M)CAPARD'!HB22=\"\",\"\",'[2]MONE(M)CAPARD'!HB22)","v":"n.d."},"n.d.","n.d.","n.d.","n.d.","n.d.","n.d.","n.d.","n.d.","n.d.","n.d.","n.d.","n.d.","n.d.","n.d.",{"$f":"IF('[2]MONE(M)CAPARD'!AS22=\"\",\"\",'[2]MONE(M)CAPARD'!AS22)","v":"n.d."},{"$f":"IF('[2]MONE(M)CAPARD'!AT22=\"\",\"\",'[2]MONE(M)CAPARD'!AT22)","v":"n.a."},{"$f":"IF('[2]MONE(M)CAPARD'!AU22=\"\",\"\",'[2]MONE(M)CAPARD'!AU22)","v":"n.d."},{"$f":"IF('[2]MONE(M)CAPARD'!AV22=\"\",\"\",'[2]MONE(M)CAPARD'!AV22)","v":"n.d."},{"$f":"IF('[2]MONE(M)CAPARD'!AW22=\"\",\"\",'[2]MONE(M)CAPARD'!AW22)","v":"n.a."},{"$f":"IF('[2]MONE(M)CAPARD'!AX22=\"\",\"\",'[2]MONE(M)CAPARD'!AX22)","v":"n.d."},{"$f":"IF('[2]MONE(M)CAPARD'!AY22=\"\",\"\",'[2]MONE(M)CAPARD'!AY22)","v":"n.a."},{"$f":"IF('[2]FISCAL(M)'!$K22=\"\",\"\",'[2]FISCAL(M)'!$K22)","v":"n.d."},{"$f":"IF('[2]FISCAL(M)'!$L22=\"\",\"\",'[2]FISCAL(M)'!$L22)","v":"n.d."},{"$f":"IF('[2]FISCAL(M)'!$AY22=\"\",\"\",'[2]FISCAL(M)'!$AY22)","v":"n.d."},{"$f":"IF('[2]FISCAL(M)'!$BI22=\"\",\"\",'[2]FISCAL(M)'!$BI22)","v":"n.d."},{"$f":"IF('[2]FISCAL(M)'!$BS22=\"\",\"\",'[2]FISCAL(M)'!$BS22)","v":"n.d."},{"$f":"IF('[2]FISCAL(M)'!$AZ22=\"\",\"\",'[2]FISCAL(M)'!$AZ22)","v":"n.d."},{"$f":"IF('[2]FISCAL(M)'!$BJ22=\"\",\"\",'[2]FISCAL(M)'!$BJ22)","v":"n.d."},{"$f":"IF('[2]FISCAL(M)'!$BT22=\"\",\"\",'[2]FISCAL(M)'!$BT22)","v":"n.d."},{"$f":"IF('[3]MONE(M)'!$AO22=\"\",\"\",'[3]MONE(M)'!$AO22)","v":"n.d."},{"$f":"IF('[4]MONE(M)'!$AO22=\"\",\"\",'[4]MONE(M)'!$AO22)","v":"n.d."},{"$f":"IF('[5]MONE(M)'!$AO22=\"\",\"\",'[5]MONE(M)'!$AO22)","v":"n.d."},{"$f":"+'[1]MONE(M)'!$AO22","v":"n.d."},{"$f":"IF('[6]MONE(M)'!$AO22=\"\",\"\",'[6]MONE(M)'!$AO22)","v":"n.d."},{"$f":"IF('[7]MONE(M)'!$AO22=\"\",\"\",'[7]MONE(M)'!$AO22)","v":"n.d."},{"$f":"IF('[8]MONE(M)'!$AO22=\"\",\"\",'[8]MONE(M)'!$AO22)","v":"n.d."},"n.d.","n.d.","n.d.","n.d.","n.d.","n.d.","n.d.",{"$f":"IF('[2]FISCAL(M)'!$K22=\"\",\"\",'[2]FISCAL(M)'!$K22)","v":"n.d."},"n.d.","n.d.",{"$f":"IF('[2]FISCAL(M)'!$L22=\"\",\"\",'[2]FISCAL(M)'!$L22)","v":"n.d."},"n.d.","n.d.","n.d.","n.d.","n.d.","n.d.","n.d.","n.d.","n.d.","n.d.","n.d.","n.d.","n.d.","n.d.","n.d.","n.d.","n.d.","n.d."]
[1991,"febrero","1991-febrero",{"$f":"IF('[2]REAL IPC(M)'!$AL23=\"\",\"\",+'[2]REAL IPC(M)'!$AL23)","v":"n.d."},{"$f":"IF('[2]REAL IPC(M)'!$BE23=\"\",\"\",+'[2]REAL IPC(M)'!$BE23)","v":"n.d."},{"$f":"IF('[2]REAL IPC(M)'!$AM23=\"\",\"\",+'[2]REAL IPC(M)'!$AM23)","v":"n.d."},{"$f":"IF('[2]REAL IPC(M)'!$BI23=\"\",\"\",+'[2]REAL IPC(M)'!$BI23)","v":"n.d."},{"$f":"IF('[2]REAL IMAE(M)'!BJ23=\"\",\"\",'[2]REAL IMAE(M)'!BJ23)","v":"n.d."},{"$f":"IF('[2]REAL IMAE(M)'!BK23=\"\",\"\",'[2]REAL IMAE(M)'!BK23)","v":"n.d."},{"$f":"IF('[2]REAL IMAE(M)'!BN23=\"\",\"\",'[2]REAL IMAE(M)'!BN23)","v":"n.d."},{"$f":"IF('[2]REAL IMAE(M)'!BO23=\"\",\"\",'[2]REAL IMAE(M)'!BO23)","v":"n.d."},{"$f":"IF('[2]EXT RIN(M)'!$K23=\"\",\"\",'[2]EXT RIN(M)'!$K23)","v":"n.d."},"",{"$f":"IF('[2]EXT RIN(M)'!$L23=\"\",\"\",'[2]EXT RIN(M)'!$L23)","v":"n.d."},"",{"$f":"IF('[2]MONE(M)CARD'!EG23=\"\",\"\",'[2]MONE(M)CARD'!EG23)","v":"n.d."},{"$f":"IF('[2]MONE(M)CARD'!EK23=\"\",\"\",'[2]MONE(M)CARD'!EK23)","v":"n.d."},{"$f":"IF('[2]MONE(M)CARD'!EP23=\"\",\"\",'[2]MONE(M)CARD'!EP23)","v":"n.d."},{"$f":"IF('[2]MONE(M)CARD'!ES23=\"\",\"\",'[2]MONE(M)CARD'!ES23)","v":"n.d."},{"$f":"IF('[2]MONE(M)CARD'!EV23=\"\",\"\",'[2]MONE(M)CARD'!EV23)","v":"n.d."},{"$f":"IF('[2]MONE(M)CARD'!EZ23=\"\",\"\",'[2]MONE(M)CARD'!EZ23)","v":"n.d."},{"$f":"IF('[2]MONE(M)CAPARD'!FC23=\"\",\"\",'[2]MONE(M)CAPARD'!FC23)","v":"n.d."},{"$f":"IF('[2]MONE(M)CAPARD'!FG23=\"\",\"\",'[2]MONE(M)CAPARD'!FG23)","v":"n.d."},{"$f":"IF('[2]MONE(M)CAPARD'!FL23=\"\",\"\",'[2]MONE(M)CAPARD'!FL23)","v":"n.d."},{"$f":"IF('[2]MONE(M)CAPARD'!FO23=\"\",\"\",'[2]MONE(M)CAPARD'!FO23)","v":"n.d."},{"$f":"IF('[2]MONE(M)CAPARD'!FR23=\"\",\"\",'[2]MONE(M)CAPARD'!FR23)","v":"n.d."},{"$f":"IF('[2]MONE(M)CAPARD'!FV23=\"\",\"\",'[2]MONE(M)CAPARD'!FV23)","v":"n.d."},{"$f":"IF('[2]MONE(M)CARD'!FV23=\"\",\"\",'[2]MONE(M)CARD'!FV23)","v":""},{"$f":"IF('[2]MONE(M)CARD'!GD23=\"\",\"\",'[2]MONE(M)CARD'!GD23)","v":"n.d."},{"$f":"IF('[2]MONE(M)CARD'!GE23=\"\",\"\",'[2]MONE(M)CARD'!GE23)","v":"n.d."},"n.d.","n.d.","n.d.","n.d.","n.d.","n.d.","n.d.","n.d.",null,"n.d.","n.d.","n.d.","n.d.","n.d.",{"$f":"IF('[2]MONE(M)CAPARD'!GS23=\"\",\"\",'[2]MONE(M)CAPARD'!GS23)","v":"n.d."},{"$f":"IF('[2]MONE(M)CARD'!HA23=\"\",\"\",'[2]MONE(M)CAPARD'!HA23)","v":"n.d."},{"$f":"IF('[2]MONE(M)CAPARD'!HB23=\"\",\"\",'[2]MONE(M)CAPARD'!HB23)","v":"n.d."},"n.d.","n.d.","n.d.","n.d.","n.d.","n.d.","n.d.","n.d.","n.d.","n.d.","n.d.","n.d.","n.d.","n.d.",{"$f":"IF('[2]MONE(M)CAPARD'!AS23=\"\",\"\",'[2]MONE(M)CAPARD'!AS23)","v":"n.d."},{"$f":"IF('[2]MONE(M)CAPARD'!AT23=\"\",\"\",'[2]MONE(M)CAPARD'!AT23)","v":"n.a."},{"$f":"IF('[2]MONE(M)CAPARD'!AU23=\"\",\"\",'[2]MONE(M)CAPARD'!AU23)","v":"n.d."},{"$f":"IF('[2]MONE(M)CAPARD'!AV23=\"\",\"\",'[2]MONE(M)CAPARD'!AV23)","v":"n.d."},{"$f":"IF('[2]MONE(M)CAPARD'!AW23=\"\",\"\",'[2]MONE(M)CAPARD'!AW23)","v":"n.a."},{"$f":"IF('[2]MONE(M)CAPARD'!AX23=\"\",\"\",'[2]MONE(M)CAPARD'!AX23)","v":"n.d."},{"$f":"IF('[2]MONE(M)CAPARD'!AY23=\"\",\"\",'[2]MONE(M)CAPARD'!AY23)","v":"n.a."},{"$f":"IF('[2]FISCAL(M)'!$K23=\"\",\"\",'[2]FISCAL(M)'!$K23)","v":"n.d."},{"$f":"IF('[2]FISCAL(M)'!$L23=\"\",\"\",'[2]FISCAL(M)'!$L23)","v":"n.d."},{"$f":"IF('[2]FISCAL(M)'!$AY23=\"\",\"\",'[2]FISCAL(M)'!$AY23)","v":"n.d."},{"$f":"IF('[2]FISCAL(M)'!$BI23=\"\",\"\",'[2]FISCAL(M)'!$BI23)","v":"n.d."},{"$f":"IF('[2]FISCAL(M)'!$BS23=\"\",\"\",'[2]FISCAL(M)'!$BS23)","v":"n.d."},{"$f":"IF('[2]FISCAL(M)'!$AZ23=\"\",\"\",'[2]FISCAL(M)'!$AZ23)","v":"n.d."},{"$f":"IF('[2]FISCAL(M)'!$BJ23=\"\",\"\",'[2]FISCAL(M)'!$BJ23)","v":"n.d."},{"$f":"IF('[2]FISCAL(M)'!$BT23=\"\",\"\",'[2]FISCAL(M)'!$BT23)","v":"n.d."},{"$f":"IF('[3]MONE(M)'!$AO23=\"\",\"\",'[3]MONE(M)'!$AO23)","v":"n.d."},{"$f":"IF('[4]MONE(M)'!$AO23=\"\",\"\",'[4]MONE(M)'!$AO23)","v":"n.d."},{"$f":"IF('[5]MONE(M)'!$AO23=\"\",\"\",'[5]MONE(M)'!$AO23)","v":"n.d."},{"$f":"+'[1]MONE(M)'!$AO23","v":"n.d."},{"$f":"IF('[6]MONE(M)'!$AO23=\"\",\"\",'[6]MONE(M)'!$AO23)","v":"n.d."},{"$f":"IF('[7]MONE(M)'!$AO23=\"\",\"\",'[7]MONE(M)'!$AO23)","v":"n.d."},{"$f":"IF('[8]MONE(M)'!$AO23=\"\",\"\",'[8]MONE(M)'!$AO23)","v":"n.d."},"n.d.","n.d.","n.d.","n.d.","n.d.","n.d.","n.d.",{"$f":"IF('[2]FISCAL(M)'!$K23=\"\",\"\",'[2]FISCAL(M)'!$K23)","v":"n.d."},"n.d.","n.d.",{"$f":"IF('[2]FISCAL(M)'!$L23=\"\",\"\",'[2]FISCAL(M)'!$L23)","v":"n.d."},"n.d.","n.d.","n.d.","n.d.","n.d.","n.d.","n.d.","n.d.","n.d.","n.d.","n.d.","n.d.","n.d.","n.d.","n.d.","n.d.","n.d.","n.d."]
[1991,"marzo","1991-marzo",{"$f":"IF('[2]REAL IPC(M)'!$AL24=\"\",\"\",+'[2]REAL IPC(M)'!$AL24)","v":"n.d."},{"$f":"IF('[2]REAL IPC(M)'!$BE24=\"\",\"\",+'[2]REAL IPC(M)'!$BE24)","v":"n.d."},{"$f":"IF('[2]REAL IPC(M)'!$AM24=\"\",\"\",+'[2]REAL IPC(M)'!$AM24)","v":"n.d."},{"$f":"IF('[2]REAL IPC(M)'!$BI24=\"\",\"\",+'[2]REAL IPC(M)'!$BI24)","v":"n.d."},{"$f":"IF('[2]REAL IMAE(M)'!BJ24=\"\",\"\",'[2]REAL IMAE(M)'!BJ24)","v":"n.d."},{"$f":"IF('[2]REAL IMAE(M)'!BK24=\"\",\"\",'[2]REAL IMAE(M)'!BK24)","v":"n.d."},{"$f":"IF('[2]REAL IMAE(M)'!BN24=\"\",\"\",'[2]REAL IMAE(M)'!BN24)","v":"n.d."},{"$f":"IF('[2]REAL IMAE(M)'!BO24=\"\",\"\",'[2]REAL IMAE(M)'!BO24)","v":"n.d."},{"$f":"IF('[2]EXT RIN(M)'!$K24=\"\",\"\",'[2]EXT RIN(M)'!$K24)","v":"n.d."},"",{"$f":"IF('[2]EXT RIN(M)'!$L24=\"\",\"\",'[2]EXT RIN(M)'!$L24)","v":"n.d."},"",{"$f":"IF('[2]MONE(M)CARD'!EG24=\"\",\"\",'[2]MONE(M)CARD'!EG24)","v":"n.d."},{"$f":"IF('[2]MONE(M)CARD'!EK24=\"\",\"\",'[2]MONE(M)CARD'!EK24)","v":"n.d."},{"$f":"IF('[2]MONE(M)CARD'!EP24=\"\",\"\",'[2]MONE(M)CARD'!EP24)","v":"n.d."},{"$f":"IF('[2]MONE(M)CARD'!ES24=\"\",\"\",'[2]MONE(M)CARD'!ES24)","v":"n.d."},{"$f":"IF('[2]MONE(M)CARD'!EV24=\"\",\"\",'[2]MONE(M)CARD'!EV24)","v":"n.d."},{"$f":"IF('[2]MONE(M)CARD'!EZ24=\"\",\"\",'[2]MONE(M)CARD'!EZ24)","v":"n.d."},{"$f":"IF('[2]MONE(M)CAPARD'!FC24=\"\",\"\",'[2]MONE(M)CAPARD'!FC24)","v":"n.d."},{"$f":"IF('[2]MONE(M)CAPARD'!FG24=\"\",\"\",'[2]MONE(M)CAPARD'!FG24)","v":"n.d."},{"$f":"IF('[2]MONE(M)CAPARD'!FL24=\"\",\"\",'[2]MONE(M)CAPARD'!FL24)","v":"n.d."},{"$f":"IF('[2]MONE(M)CAPARD'!FO24=\"\",\"\",'[2]MONE(M)CAPARD'!FO24)","v":"n.d."},{"$f":"IF('[2]MONE(M)CAPARD'!FR24=\"\",\"\",'[2]MONE(M)CAPARD'!FR24)","v":"n.d."},{"$f":"IF('[2]MONE(M)CAPARD'!FV24=\"\",\"\",'[2]MONE(M)CAPARD'!FV24)","v":"n.d."},{"$f":"IF('[2]MONE(M)CARD'!FV24=\"\",\"\",'[2]MONE(M)CARD'!FV24)","v":""},{"$f":"IF('[2]MONE(M)CARD'!GD24=\"\",\"\",'[2]MONE(M)CARD'!GD24)","v":"n.d."},{"$f":"IF('[2]MONE(M)CARD'!GE24=\"\",\"\",'[2]MONE(M)CARD'!GE24)","v":"n.d."},"n.d.","n.d.","n.d.","n.d.","n.d.","n.d.","n.d.","n.d.",null,"n.d.","n.d.","n.d.","n.d.","n.d.",{"$f":"IF('[2]MONE(M)CAPARD'!GS24=\"\",\"\",'[2]MONE(M)CAPARD'!GS24)","v":"n.d."},{"$f":"IF('[2]MONE(M)CARD'!HA24=\"\",\"\",'[2]MONE(M)CAPARD'!HA24)","v":"n.d."},{"$f":"IF('[2]MONE(M)CAPARD'!HB24=\"\",\"\",'[2]MONE(M)CAPARD'!HB24)","v":"n.d."},"n.d.","n.d.","n.d.","n.d.","n.d.","n.d.","n.d.","n.d.","n.d.","n.d.","n.d.","n.d.","n.d.","n.d.",{"$f":"IF('[2]MONE(M)CAPARD'!AS24=\"\",\"\",'[2]MONE(M)CAPARD'!AS24)","v":"n.d."},{"$f":"IF('[2]MONE(M)CAPARD'!AT24=\"\",\"\",'[2]MONE(M)CAPARD'!AT24)","v":"n.a."},{"$f":"IF('[2]MONE(M)CAPARD'!AU24=\"\",\"\",'[2]MONE(M)CAPARD'!AU24)","v":"n.d."},{"$f":"IF('[2]MONE(M)CAPARD'!AV24=\"\",\"\",'[2]MONE(M)CAPARD'!AV24)","v":"n.d."},{"$f":"IF('[2]MONE(M)CAPARD'!AW24=\"\",\"\",'[2]MONE(M)CAPARD'!AW24)","v":"n.a."},{"$f":"IF('[2]MONE(M)CAPARD'!AX24=\"\",\"\",'[2]MONE(M)CAPARD'!AX24)","v":"n.d."},{"$f":"IF('[2]MONE(M)CAPARD'!AY24=\"\",\"\",'[2]MONE(M)CAPARD'!AY24)","v":"n.a."},{"$f":"IF('[2]FISCAL(M)'!$K24=\"\",\"\",'[2]FISCAL(M)'!$K24)","v":"n.d."},{"$f":"IF('[2]FISCAL(M)'!$L24=\"\",\"\",'[2]FISCAL(M)'!$L24)","v":"n.d."},{"$f":"IF('[2]FISCAL(M)'!$AY24=\"\",\"\",'[2]FISCAL(M)'!$AY24)","v":"n.d."},{"$f":"IF('[2]FISCAL(M)'!$BI24=\"\",\"\",'[2]FISCAL(M)'!$BI24)","v":"n.d."},{"$f":"IF('[2]FISCAL(M)'!$BS24=\"\",\"\",'[2]FISCAL(M)'!$BS24)","v":"n.d."},{"$f":"IF('[2]FISCAL(M)'!$AZ24=\"\",\"\",'[2]FISCAL(M)'!$AZ24)","v":"n.d."},{"$f":"IF('[2]FISCAL(M)'!$BJ24=\"\",\"\",'[2]FISCAL(M)'!$BJ24)","v":"n.d."},{"$f":"IF('[2]FISCAL(M)'!$BT24=\"\",\"\",'[2]FISCAL(M)'!$BT24)","v":"n.d."},{"$f":"IF('[3]MONE(M)'!$AO24=\"\",\"\",'[3]MONE(M)'!$AO24)","v":"n.d."},{"$f":"IF('[4]MONE(M)'!$AO24=\"\",\"\",'[4]MONE(M)'!$AO24)","v":"n.d."},{"$f":"IF('[5]MONE(M)'!$AO24=\"\",\"\",'[5]MONE(M)'!$AO24)","v":"n.d."},{"$f":"+'[1]MONE(M)'!$AO24","v":"n.d."},{"$f":"IF('[6]MONE(M)'!$AO24=\"\",\"\",'[6]MONE(M)'!$AO24)","v":"n.d."},{"$f":"IF('[7]MONE(M)'!$AO24=\"\",\"\",'[7]MONE(M)'!$AO24)","v":"n.d."},{"$f":"IF('[8]MONE(M)'!$AO24=\"\",\"\",'[8]MONE(M)'!$AO24)","v":"n.d."},"n.d.","n.d.","n.d.","n.d.","n.d.","n.d.","n.d.",{"$f":"IF('[2]FISCAL(M)'!$K24=\"\",\"\",'[2]FISCAL(M)'!$K24)","v":"n.d."},"n.d.","n.d.",{"$f":"IF('[2]FISCAL(M)'!$L24=\"\",\"\",'[2]FISCAL(M)'!$L24)","v":"n.d."},"n.d.","n.d.","n.d.","n.d.","n.d.","n.d.","n.d.","n.d.","n.d.","n.d.","n.d.","n.d.","n.d.","n.d.","n.d.","n.d.","n.d.","n.d."]
[1991,"abril","1991-abril",{"$f":"IF('[2]REAL IPC(M)'!$AL25=\"\",\"\",+'[2]REAL IPC(M)'!$AL25)","v":"n.d."},{"$f":"IF('[2]REAL IPC(M)'!$BE25=\"\",\"\",+'[2]REAL IPC(M)'!$BE25)","v":"n.d."},{"$f":"IF('[2]REAL IPC(M)'!$AM25=\"\",\"\",+'[2]REAL IPC(M)'!$AM25)","v":"n.d."},{"$f":"IF('[2]REAL IPC(M)'!$BI25=\"\",\"\",+'[2]REAL IPC(M)'!$BI25)","v":"n.d."},{"$f":"IF('[2]REAL IMAE(M)'!BJ25=\"\",\"\",'[2]REAL IMAE(M)'!BJ25)","v":"n.d."},{"$f":"IF('[2]REAL IMAE(M)'!BK25=\"\",\"\",'[2]REAL IMAE(M)'!BK25)","v":"n.d."},{"$f":"IF('[2]REAL IMAE(M)'!BN25=\"\",\"\",'[2]REAL IMAE(M)'!BN25)","v":"n.d."},{"$f":"IF('[2]REAL IMAE(M)'!BO25=\"\",\"\",'[2]REAL IMAE(M)'!BO25)","v":"n.d."},{"$f":"IF('[2]EXT RIN(M)'!$K25=\"\",\"\",'[2]EXT RIN(M)'!$K25)","v":"n.d."},"",{"$f":"IF('[2]EXT RIN(M)'!$L25=\"\",\"\",'[2]EXT RIN(M)'!$L25)","v":"n.d."},"",{"$f":"IF('[2]MONE(M)CARD'!EG25=\"\",\"\",'[2]MONE(M)CARD'!EG25)","v":"n.d."},{"$f":"IF('[2]MONE(M)CARD'!EK25=\"\",\"\",'[2]MONE(M)CARD'!EK25)","v":"n.d."},{"$f":"IF('[2]MONE(M)CARD'!EP25=\"\",\"\",'[2]MONE(M)CARD'!EP25)","v":"n.d."},{"$f":"IF('[2]MONE(M)CARD'!ES25=\"\",\"\",'[2]MONE(M)CARD'!ES25)","v":"n.d."},{"$f":"IF('[2]MONE(M)CARD'!EV25=\"\",\"\",'[2]MONE(M)CARD'!EV25)","v":"n.d."},{"$f":"IF('[2]MONE(M)CARD'!EZ25=\"\",\"\",'[2]MONE(M)CARD'!EZ25)","v":"n.d."},{"$f":"IF('[2]MONE(M)CAPARD'!FC25=\"\",\"\",'[2]MONE(M)CAPARD'!FC25)","v":"n.d."},{"$f":"IF('[2]MONE(M)CAPARD'!FG25=\"\",\"\",'[2]MONE(M)CAPARD'!FG25)","v":"n.d."},{"$f":"IF('[2]MONE(M)CAPARD'!FL25=\"\",\"\",'[2]MONE(M)CAPARD'!FL25)","v":"n.d."},{"$f":"IF('[2]MONE(M)CAPARD'!FO25=\"\",\"\",'[2]MONE(M)CAPARD'!FO25)","v":"n.d."},{"$f":"IF('[2]MONE(M)CAPARD'!FR25=\"\",\"\",'[2]MONE(M)CAPARD'!FR25)","v":"n.d."},{"$f":"IF('[2]MONE(M)CAPARD'!FV25=\"\",\"\",'[2]MONE(M)CAPARD'!FV25)","v":"n.d."},{"$f":"IF('[2]MONE(M)CARD'!FV25=\"\",\"\",'[2]MONE(M)CARD'!FV25)","v":""},{"$f":"IF('[2]MONE(M)CARD'!GD25=\"\",\"\",'[2]MONE(M)CARD'!GD25)","v":"n.d."},{"$f":"IF('[2]MONE(M)CARD'!GE25=\"\",\"\",'[2]MONE(M)CARD'!GE25)","v":"n.d."},"n.d.","n.d.","n.d.","n.d.","n.d.","n.d.","n.d.","n.d.",null,"n.d.","n.d.","n.d.","n.d.","n.d.",{"$f":"IF('[2]MONE(M)CAPARD'!GS25=\"\",\"\",'[2]MONE(M)CAPARD'!GS25)","v":"n.d."},{"$f":"IF('[2]MONE(M)CARD'!HA25=\"\",\"\",'[2]MONE(M)CAPARD'!HA25)","v":"n.d."},{"$f":"IF('[2]MONE(M)CAPARD'!HB25=\"\",\"\",'[2]MONE(M)CAPARD'!HB25)","v":"n.d."},"n.d.","n.d.","n.d.","n.d.","n.d.","n.d.","n.d.","n.d.","n.d.","n.d.","n.d.","n.d.","n.d.","n.d.",{"$f":"IF('[2]MONE(M)CAPARD'!AS25=\"\",\"\",'[2]MONE(M)CAPARD'!AS25)","v":"n.d."},{"$f":"IF('[2]MONE(M)CAPARD'!AT25=\"\",\"\",'[2]MONE(M)CAPARD'!AT25)","v":"n.a."},{"$f":"IF('[2]MONE(M)CAPARD'!AU25=\"\",\"\",'[2]MONE(M)CAPARD'!AU25)","v":"n.d."},{"$f":"IF('[2]MONE(M)CAPARD'!AV25=\"\",\"\",'[2]MONE(M)CAPARD'!AV25)","v":"n.d."},{"$f":"IF('[2]MONE(M)CAPARD'!AW25=\"\",\"\",'[2]MONE(M)CAPARD'!AW25)","v":"n.a."},{"$f":"IF('[2]MONE(M)CAPARD'!AX25=\"\",\"\",'[2]MONE(M)CAPARD'!AX25)","v":"n.d."},{"$f":"IF('[2]MONE(M)CAPARD'!AY25=\"\",\"\",'[2]MONE(M)CAPARD'!AY25)","v":"n.a."},{"$f":"IF('[2]FISCAL(M)'!$K25=\"\",\"\",'[2]FISCAL(M)'!$K25)","v":"n.d."},{"$f":"IF('[2]FISCAL(M)'!$L25=\"\",\"\",'[2]FISCAL(M)'!$L25)","v":"n.d."},{"$f":"IF('[2]FISCAL(M)'!$AY25=\"\",\"\",'[2]FISCAL(M)'!$AY25)","v":"n.d."},{"$f":"IF('[2]FISCAL(M)'!$BI25=\"\",\"\",'[2]FISCAL(M)'!$BI25)","v":"n.d."},{"$f":"IF('[2]FISCAL(M)'!$BS25=\"\",\"\",'[2]FISCAL(M)'!$BS25)","v":"n.d."},{"$f":"IF('[2]FISCAL(M)'!$AZ25=\"\",\"\",'[2]FISCAL(M)'!$AZ25)","v":"n.d."},{"$f":"IF('[2]FISCAL(M)'!$BJ25=\"\",\"\",'[2]FISCAL(M)'!$BJ25)","v":"n.d."},{"$f":"IF('[2]FISCAL(M)'!$BT25=\"\",\"\",'[2]FISCAL(M)'!$BT25)","v":"n.d."},{"$f":"IF('[3]MONE(M)'!$AO25=\"\",\"\",'[3]MONE(M)'!$AO25)","v":"n.d."},{"$f":"IF('[4]MONE(M)'!$AO25=\"\",\"\",'[4]MONE(M)'!$AO25)","v":"n.d."},{"$f":"IF('[5]MONE(M)'!$AO25=\"\",\"\",'[5]MONE(M)'!$AO25)","v":"n.d."},{"$f":"+'[1]MONE(M)'!$AO25","v":"n.d."},{"$f":"IF('[6]MONE(M)'!$AO25=\"\",\"\",'[6]MONE(M)'!$AO25)","v":"n.d."},{"$f":"IF('[7]MONE(M)'!$AO25=\"\",\"\",'[7]MONE(M)'!$AO25)","v":"n.d."},{"$f":"IF('[8]MONE(M)'!$AO25=\"\",\"\",'[8]MONE(M)'!$AO25)","v":"n.d."},"n.d.","n.d.","n.d.","n.d.","n.d.","n.d.","n.d.",{"$f":"IF('[2]FISCAL(M)'!$K25=\"\",\"\",'[2]FISCAL(M)'!$K25)","v":"n.d."},"n.d.","n.d.",{"$f":"IF('[2]FISCAL(M)'!$L25=\"\",\"\",'[2]FISCAL(M)'!$L25)","v":"n.d."},"n.d.","n.d.","n.d.","n.d.","n.d.","n.d.","n.d.","n.d.","n.d.","n.d.","n.d.","n.d.","n.d.","n.d.","n.d.","n.d.","n.d.","n.d."]
[1991,"mayo ","1991-mayo ",{"$f":"IF('[2]REAL IPC(M)'!$AL26=\"\",\"\",+'[2]REAL IPC(M)'!$AL26)","v":"n.d."},{"$f":"IF('[2]REAL IPC(M)'!$BE26=\"\",\"\",+'[2]REAL IPC(M)'!$BE26)","v":"n.d."},{"$f":"IF('[2]REAL IPC(M)'!$AM26=\"\",\"\",+'[2]REAL IPC(M)'!$AM26)","v":"n.d."},{"$f":"IF('[2]REAL IPC(M)'!$BI26=\"\",\"\",+'[2]REAL IPC(M)'!$BI26)","v":"n.d."},{"$f":"IF('[2]REAL IMAE(M)'!BJ26=\"\",\"\",'[2]REAL IMAE(M)'!BJ26)","v":"n.d."},{"$f":"IF('[2]REAL IMAE(M)'!BK26=\"\",\"\",'[2]REAL IMAE(M)'!BK26)","v":"n.d."},{"$f":"IF('[2]REAL IMAE(M)'!BN26=\"\",\"\",'[2]REAL IMAE(M)'!BN26)","v":"n.d."},{"$f":"IF('[2]REAL IMAE(M)'!BO26=\"\",\"\",'[2]REAL IMAE(M)'!BO26)","v":"n.d."},{"$f":"IF('[2]EXT RIN(M)'!$K26=\"\",\"\",'[2]EXT RIN(M)'!$K26)","v":"n.d."},"",{"$f":"IF('[2]EXT RIN(M)'!$L26=\"\",\"\",'[2]EXT RIN(M)'!$L26)","v":"n.d."},"",{"$f":"IF('[2]MONE(M)CARD'!EG26=\"\",\"\",'[2]MONE(M)CARD'!EG26)","v":"n.d."},{"$f":"IF('[2]MONE(M)CARD'!EK26=\"\",\"\",'[2]MONE(M)CARD'!EK26)","v":"n.d."},{"$f":"IF('[2]MONE(M)CARD'!EP26=\"\",\"\",'[2]MONE(M)CARD'!EP26)","v":"n.d."},{"$f":"IF('[2]MONE(M)CARD'!ES26=\"\",\"\",'[2]MONE(M)CARD'!ES26)","v":"n.d."},{"$f":"IF('[2]MONE(M)CARD'!EV26=\"\",\"\",'[2]MONE(M)CARD'!EV26)","v":"n.d."},{"$f":"IF('[2]MONE(M)CARD'!EZ26=\"\",\"\",'[2]MONE(M)CARD'!EZ26)","v":"n.d."},{"$f":"IF('[2]MONE(M)CAPARD'!FC26=\"\",\"\",'[2]MONE(M)CAPARD'!FC26)","v":"n.d."},{"$f":"IF('[2]MONE(M)CAPARD'!FG26=\"\",\"\",'[2]MONE(M)CAPARD'!FG26)","v":"n.d."},{"$f":"IF('[2]MONE(M)CAPARD'!FL26=\"\",\"\",'[2]MONE(M)CAPARD'!FL26)","v":"n.d."},{"$f":"IF('[2]MONE(M)CAPARD'!FO26=\"\",\"\",'[2]MONE(M)CAPARD'!FO26)","v":"n.d."},{"$f":"IF('[2]MONE(M)CAPARD'!FR26=\"\",\"\",'[2]MONE(M)CAPARD'!FR26)","v":"n.d."},{"$f":"IF('[2]MONE(M)CAPARD'!FV26=\"\",\"\",'[2]MONE(M)CAPARD'!FV26)","v":"n.d."},{"$f":"IF('[2]MONE(M)CARD'!FV26=\"\",\"\",'[2]MONE(M)CARD'!FV26)","v":""},{"$f":"IF('[2]MONE(M)CARD'!GD26=\"\",\"\",'[2]MONE(M)CARD'!GD26)","v":"n.d."},{"$f":"IF('[2]MONE(M)CARD'!GE26=\"\",\"\",'[2]MONE(M)CARD'!GE26)","v":"n.d."},"n.d.","n.d.","n.d.","n.d.","n.d.","n.d.","n.d.","n.d.",null,"n.d.","n.d.","n.d.","n.d.","n.d.",{"$f":"IF('[2]MONE(M)CAPARD'!GS26=\"\",\"\",'[2]MONE(M)CAPARD'!GS26)","v":"n.d."},{"$f":"IF('[2]MONE(M)CARD'!HA26=\"\",\"\",'[2]MONE(M)CAPARD'!HA26)","v":"n.d."},{"$f":"IF('[2]MONE(M)CAPARD'!HB26=\"\",\"\",'[2]MONE(M)CAPARD'!HB26)","v":"n.d."},"n.d.","n.d.","n.d.","n.d.","n.d.","n.d.","n.d.","n.d.","n.d.","n.d.","n.d.","n.d.","n.d.","n.d.",{"$f":"IF('[2]MONE(M)CAPARD'!AS26=\"\",\"\",'[2]MONE(M)CAPARD'!AS26)","v":"n.d."},{"$f":"IF('[2]MONE(M)CAPARD'!AT26=\"\",\"\",'[2]MONE(M)CAPARD'!AT26)","v":"n.a."},{"$f":"IF('[2]MONE(M)CAPARD'!AU26=\"\",\"\",'[2]MONE(M)CAPARD'!AU26)","v":"n.d."},{"$f":"IF('[2]MONE(M)CAPARD'!AV26=\"\",\"\",'[2]MONE(M)CAPARD'!AV26)","v":"n.d."},{"$f":"IF('[2]MONE(M)CAPARD'!AW26=\"\",\"\",'[2]MONE(M)CAPARD'!AW26)","v":"n.a."},{"$f":"IF('[2]MONE(M)CAPARD'!AX26=\"\",\"\",'[2]MONE(M)CAPARD'!AX26)","v":"n.d."},{"$f":"IF('[2]MONE(M)CAPARD'!AY26=\"\",\"\",'[2]MONE(M)CAPARD'!AY26)","v":"n.a."},{"$f":"IF('[2]FISCAL(M)'!$K26=\"\",\"\",'[2]FISCAL(M)'!$K26)","v":"n.d."},{"$f":"IF('[2]FISCAL(M)'!$L26=\"\",\"\",'[2]FISCAL(M)'!$L26)","v":"n.d."},{"$f":"IF('[2]FISCAL(M)'!$AY26=\"\",\"\",'[2]FISCAL(M)'!$AY26)","v":"n.d."},{"$f":"IF('[2]FISCAL(M)'!$BI26=\"\",\"\",'[2]FISCAL(M)'!$BI26)","v":"n.d."},{"$f":"IF('[2]FISCAL(M)'!$BS26=\"\",\"\",'[2]FISCAL(M)'!$BS26)","v":"n.d."},{"$f":"IF('[2]FISCAL(M)'!$AZ26=\"\",\"\",'[2]FISCAL(M)'!$AZ26)","v":"n.d."},{"$f":"IF('[2]FISCAL(M)'!$BJ26=\"\",\"\",'[2]FISCAL(M)'!$BJ26)","v":"n.d."},{"$f":"IF('[2]FISCAL(M)'!$BT26=\"\",\"\",'[2]FISCAL(M)'!$BT26)","v":"n.d."},{"$f":"IF('[3]MONE(M)'!$AO26=\"\",\"\",'[3]MONE(M)'!$AO26)","v":"n.d."},{"$f":"IF('[4]MONE(M)'!$AO26=\"\",\"\",'[4]MONE(M)'!$AO26)","v":"n.d."},{"$f":"IF('[5]MONE(M)'!$AO26=\"\",\"\",'[5]MONE(M)'!$AO26)","v":"n.d."},{"$f":"+'[1]MONE(M)'!$AO26","v":"n.d."},{"$f":"IF('[6]MONE(M)'!$AO26=\"\",\"\",'[6]MONE(M)'!$AO26)","v":"n.d."},{"$f":"IF('[7]MONE(M)'!$AO26=\"\",\"\",'[7]MONE(M)'!$AO26)","v":"n.d."},{"$f":"IF('[8]MONE(M)'!$AO26=\"\",\"\",'[8]MONE(M)'!$AO26)","v":"n.d."},"n.d.","n.d.","n.d.","n.d.","n.d.","n.d.","n.d.",{"$f":"IF('[2]FISCAL(M)'!$K26=\"\",\"\",'[2]FISCAL(M)'!$K26)","v":"n.d."},"n.d.","n.d.",{"$f":"IF('[2]FISCAL(M)'!$L26=\"\",\"\",'[2]FISCAL(M)'!$L26)","v":"n.d."},"n.d.","n.d.","n.d.","n.d.","n.d.","n.d.","n.d.","n.d.","n.d.","n.d.","n.d.","n.d.","n.d.","n.d.","n.d.","n.d.","n.d.","n.d."]
[1991,"junio ","1991-junio ",{"$f":"IF('[2]REAL IPC(M)'!$AL27=\"\",\"\",+'[2]REAL IPC(M)'!$AL27)","v":"n.d."},{"$f":"IF('[2]REAL IPC(M)'!$BE27=\"\",\"\",+'[2]REAL IPC(M)'!$BE27)","v":"n.d."},{"$f":"IF('[2]REAL IPC(M)'!$AM27=\"\",\"\",+'[2]REAL IPC(M)'!$AM27)","v":"n.d."},{"$f":"IF('[2]REAL IPC(M)'!$BI27=\"\",\"\",+'[2]REAL IPC(M)'!$BI27)","v":"n.d."},{"$f":"IF('[2]REAL IMAE(M)'!BJ27=\"\",\"\",'[2]REAL IMAE(M)'!BJ27)","v":"n.d."},{"$f":"IF('[2]REAL IMAE(M)'!BK27=\"\",\"\",'[2]REAL IMAE(M)'!BK27)","v":"n.d."},{"$f":"IF('[2]REAL IMAE(M)'!BN27=\"\",\"\",'[2]REAL IMAE(M)'!BN27)","v":"n.d."},{"$f":"IF('[2]REAL IMAE(M)'!BO27=\"\",\"\",'[2]REAL IMAE(M)'!BO27)","v":"n.d."},{"$f":"IF('[2]EXT RIN(M)'!$K27=\"\",\"\",'[2]EXT RIN(M)'!$K27)","v":"n.d."},"",{"$f":"IF('[2]EXT RIN(M)'!$L27=\"\",\"\",'[2]EXT RIN(M)'!$L27)","v":"n.d."},"",{"$f":"IF('[2]MONE(M)CARD'!EG27=\"\",\"\",'[2]MONE(M)CARD'!EG27)","v":"n.d."},{"$f":"IF('[2]MONE(M)CARD'!EK27=\"\",\"\",'[2]MONE(M)CARD'!EK27)","v":"n.d."},{"$f":"IF('[2]MONE(M)CARD'!EP27=\"\",\"\",'[2]MONE(M)CARD'!EP27)","v":"n.d."},{"$f":"IF('[2]MONE(M)CARD'!ES27=\"\",\"\",'[2]MONE(M)CARD'!ES27)","v":"n.d."},{"$f":"IF('[2]MONE(M)CARD'!EV27=\"\",\"\",'[2]MONE(M)CARD'!EV27)","v":"n.d."},{"$f":"IF('[2]MONE(M)CARD'!EZ27=\"\",\"\",'[2]MONE(M)CARD'!EZ27)","v":"n.d."},{"$f":"IF('[2]MONE(M)CAPARD'!FC27=\"\",\"\",'[2]MONE(M)CAPARD'!FC27)","v":"n.d."},{"$f":"IF('[2]MONE(M)CAPARD'!FG27=\"\",\"\",'[2]MONE(M)CAPARD'!FG27)","v":"n.d."},{"$f":"IF('[2]MONE(M)CAPARD'!FL27=\"\",\"\",'[2]MONE(M)CAPARD'!FL27)","v":"n.d."},{"$f":"IF('[2]MONE(M)CAPARD'!FO27=\"\",\"\",'[2]MONE(M)CAPARD'!FO27)","v":"n.d."},{"$f":"IF('[2]MONE(M)CAPARD'!FR27=\"\",\"\",'[2]MONE(M)CAPARD'!FR27)","v":"n.d."},{"$f":"IF('[2]MONE(M)CAPARD'!FV27=\"\",\"\",'[2]MONE(M)CAPARD'!FV27)","v":"n.d."},{"$f":"IF('[2]MONE(M)CARD'!FV27=\"\",\"\",'[2]MONE(M)CARD'!FV27)","v":""},{"$f":"IF('[2]MONE(M)CARD'!GD27=\"\",\"\",'[2]MONE(M)CARD'!GD27)","v":"n.d."},{"$f":"IF('[2]MONE(M)CARD'!GE27=\"\",\"\",'[2]MONE(M)CARD'!GE27)","v":"n.d."},"n.d.","n.d.","n.d.","n.d.","n.d.","n.d.","n.d.","n.d.",null,"n.d.","n.d.","n.d.","n.d.","n.d.",{"$f":"IF('[2]MONE(M)CAPARD'!GS27=\"\",\"\",'[2]MONE(M)CAPARD'!GS27)","v":"n.d."},{"$f":"IF('[2]MONE(M)CARD'!HA27=\"\",\"\",'[2]MONE(M)CAPARD'!HA27)","v":"n.d."},{"$f":"IF('[2]MONE(M)CAPARD'!HB27=\"\",\"\",'[2]MONE(M)CAPARD'!HB27)","v":"n.d."},"n.d.","n.d.","n.d.","n.d.","n.d.","n.d.","n.d.","n.d.","n.d.","n.d.","n.d.","n.d.","n.d.","n.d.",{"$f":"IF('[2]MONE(M)CAPARD'!AS27=\"\",\"\",'[2]MONE(M)CAPARD'!AS27)","v":"n.d."},{"$f":"IF('[2]MONE(M)CAPARD'!AT27=\"\",\"\",'[2]MONE(M)CAPARD'!AT27)","v":"n.a."},{"$f":"IF('[2]MONE(M)CAPARD'!AU27=\"\",\"\",'[2]MONE(M)CAPARD'!AU27)","v":"n.d."},{"$f":"IF('[2]MONE(M)CAPARD'!AV27=\"\",\"\",'[2]MONE(M)CAPARD'!AV27)","v":"n.d."},{"$f":"IF('[2]MONE(M)CAPARD'!AW27=\"\",\"\",'[2]MONE(M)CAPARD'!AW27)","v":"n.a."},{"$f":"IF('[2]MONE(M)CAPARD'!AX27=\"\",\"\",'[2]MONE(M)CAPARD'!AX27)","v":"n.d."},{"$f":"IF('[2]MONE(M)CAPARD'!AY27=\"\",\"\",'[2]MONE(M)CAPARD'!AY27)","v":"n.a."},{"$f":"IF('[2]FISCAL(M)'!$K27=\"\",\"\",'[2]FISCAL(M)'!$K27)","v":"n.d."},{"$f":"IF('[2]FISCAL(M)'!$L27=\"\",\"\",'[2]FISCAL(M)'!$L27)","v":"n.d."},{"$f":"IF('[2]FISCAL(M)'!$AY27=\"\",\"\",'[2]FISCAL(M)'!$AY27)","v":"n.d."},{"$f":"IF('[2]FISCAL(M)'!$BI27=\"\",\"\",'[2]FISCAL(M)'!$BI27)","v":"n.d."},{"$f":"IF('[2]FISCAL(M)'!$BS27=\"\",\"\",'[2]FISCAL(M)'!$BS27)","v":"n.d."},{"$f":"IF('[2]FISCAL(M)'!$AZ27=\"\",\"\",'[2]FISCAL(M)'!$AZ27)","v":"n.d."},{"$f":"IF('[2]FISCAL(M)'!$BJ27=\"\",\"\",'[2]FISCAL(M)'!$BJ27)","v":"n.d."},{"$f":"IF('[2]FISCAL(M)'!$BT27=\"\",\"\",'[2]FISCAL(M)'!$BT27)","v":"n.d."},{"$f":"IF('[3]MONE(M)'!$AO27=\"\",\"\",'[3]MONE(M)'!$AO27)","v":"n.d."},{"$f":"IF('[4]MONE(M)'!$AO27=\"\",\"\",'[4]MONE(M)'!$AO27)","v":"n.d."},{"$f":"IF('[5]MONE(M)'!$AO27=\"\",\"\",'[5]MONE(M)'!$AO27)","v":"n.d."},{"$f":"+'[1]MONE(M)'!$AO27","v":"n.d."},{"$f":"IF('[6]MONE(M)'!$AO27=\"\",\"\",'[6]MONE(M)'!$AO27)","v":"n.d."},{"$f":"IF('[7]MONE(M)'!$AO27=\"\",\"\",'[7]MONE(M)'!$AO27)","v":"n.d."},{"$f":"IF('[8]MONE(M)'!$AO27=\"\",\"\",'[8]MONE(M)'!$AO27)","v":"n.d."},"n.d.","n.d.","n.d.","n.d.","n.d.","n.d.","n.d.",{"$f":"IF('[2]FISCAL(M)'!$K27=\"\",\"\",'[2]FISCAL(M)'!$K27)","v":"n.d."},"n.d.","n.d.",{"$f":"IF('[2]FISCAL(M)'!$L27=\"\",\"\",'[2]FISCAL(M)'!$L27)","v":"n.d."},"n.d.","n.d.","n.d.","n.d.","n.d.","n.d.","n.d.","n.d.","n.d.","n.d.","n.d.","n.d.","n.d.","n.d.","n.d.","n.d.","n.d.","n.d."]
[1991,"julio","1991-julio",{"$f":"IF('[2]REAL IPC(M)'!$AL28=\"\",\"\",+'[2]REAL IPC(M)'!$AL28)","v":"n.d."},{"$f":"IF('[2]REAL IPC(M)'!$BE28=\"\",\"\",+'[2]REAL IPC(M)'!$BE28)","v":"n.d."},{"$f":"IF('[2]REAL IPC(M)'!$AM28=\"\",\"\",+'[2]REAL IPC(M)'!$AM28)","v":"n.d."},{"$f":"IF('[2]REAL IPC(M)'!$BI28=\"\",\"\",+'[2]REAL IPC(M)'!$BI28)","v":"n.d."},{"$f":"IF('[2]REAL IMAE(M)'!BJ28=\"\",\"\",'[2]REAL IMAE(M)'!BJ28)","v":"n.d."},{"$f":"IF('[2]REAL IMAE(M)'!BK28=\"\",\"\",'[2]REAL IMAE(M)'!BK28)","v":"n.d."},{"$f":"IF('[2]REAL IMAE(M)'!BN28=\"\",\"\",'[2]REAL IMAE(M)'!BN28)","v":"n.d."},{"$f":"IF('[2]REAL IMAE(M)'!BO28=\"\",\"\",'[2]REAL IMAE(M)'!BO28)","v":"n.d."},{"$f":"IF('[2]EXT RIN(M)'!$K28=\"\",\"\",'[2]EXT RIN(M)'!$K28)","v":"n.d."},"",{"$f":"IF('[2]EXT RIN(M)'!$L28=\"\",\"\",'[2]EXT RIN(M)'!$L28)","v":"n.d."},"",{"$f":"IF('[2]MONE(M)CARD'!EG28=\"\",\"\",'[2]MONE(M)CARD'!EG28)","v":"n.d."},{"$f":"IF('[2]MONE(M)CARD'!EK28=\"\",\"\",'[2]MONE(M)CARD'!EK28)","v":"n.d."},{"$f":"IF('[2]MONE(M)CARD'!EP28=\"\",\"\",'[2]MONE(M)CARD'!EP28)","v":"n.d."},{"$f":"IF('[2]MONE(M)CARD'!ES28=\"\",\"\",'[2]MONE(M)CARD'!ES28)","v":"n.d."},{"$f":"IF('[2]MONE(M)CARD'!EV28=\"\",\"\",'[2]MONE(M)CARD'!EV28)","v":"n.d."},{"$f":"IF('[2]MONE(M)CARD'!EZ28=\"\",\"\",'[2]MONE(M)CARD'!EZ28)","v":"n.d."},{"$f":"IF('[2]MONE(M)CAPARD'!FC28=\"\",\"\",'[2]MONE(M)CAPARD'!FC28)","v":"n.d."},{"$f":"IF('[2]MONE(M)CAPARD'!FG28=\"\",\"\",'[2]MONE(M)CAPARD'!FG28)","v":"n.d."},{"$f":"IF('[2]MONE(M)CAPARD'!FL28=\"\",\"\",'[2]MONE(M)CAPARD'!FL28)","v":"n.d."},{"$f":"IF('[2]MONE(M)CAPARD'!FO28=\"\",\"\",'[2]MONE(M)CAPARD'!FO28)","v":"n.d."},{"$f":"IF('[2]MONE(M)CAPARD'!FR28=\"\",\"\",'[2]MONE(M)CAPARD'!FR28)","v":"n.d."},{"$f":"IF('[2]MONE(M)CAPARD'!FV28=\"\",\"\",'[2]MONE(M)CAPARD'!FV28)","v":"n.d."},{"$f":"IF('[2]MONE(M)CARD'!FV28=\"\",\"\",'[2]MONE(M)CARD'!FV28)","v":""},{"$f":"IF('[2]MONE(M)CARD'!GD28=\"\",\"\",'[2]MONE(M)CARD'!GD28)","v":"n.d."},{"$f":"IF('[2]MONE(M)CARD'!GE28=\"\",\"\",'[2]MONE(M)CARD'!GE28)","v":"n.d."},"n.d.","n.d.","n.d.","n.d.","n.d.","n.d.","n.d.","n.d.",null,"n.d.","n.d.","n.d.","n.d.","n.d.",{"$f":"IF('[2]MONE(M)CAPARD'!GS28=\"\",\"\",'[2]MONE(M)CAPARD'!GS28)","v":"n.d."},{"$f":"IF('[2]MONE(M)CARD'!HA28=\"\",\"\",'[2]MONE(M)CAPARD'!HA28)","v":"n.d."},{"$f":"IF('[2]MONE(M)CAPARD'!HB28=\"\",\"\",'[2]MONE(M)CAPARD'!HB28)","v":"n.d."},"n.d.","n.d.","n.d.","n.d.","n.d.","n.d.","n.d.","n.d.","n.d.","n.d.","n.d.","n.d.","n.d.","n.d.",{"$f":"IF('[2]MONE(M)CAPARD'!AS28=\"\",\"\",'[2]MONE(M)CAPARD'!AS28)","v":"n.d."},{"$f":"IF('[2]MONE(M)CAPARD'!AT28=\"\",\"\",'[2]MONE(M)CAPARD'!AT28)","v":"n.a."},{"$f":"IF('[2]MONE(M)CAPARD'!AU28=\"\",\"\",'[2]MONE(M)CAPARD'!AU28)","v":"n.d."},{"$f":"IF('[2]MONE(M)CAPARD'!AV28=\"\",\"\",'[2]MONE(M)CAPARD'!AV28)","v":"n.d."},{"$f":"IF('[2]MONE(M)CAPARD'!AW28=\"\",\"\",'[2]MONE(M)CAPARD'!AW28)","v":"n.a."},{"$f":"IF('[2]MONE(M)CAPARD'!AX28=\"\",\"\",'[2]MONE(M)CAPARD'!AX28)","v":"n.d."},{"$f":"IF('[2]MONE(M)CAPARD'!AY28=\"\",\"\",'[2]MONE(M)CAPARD'!AY28)","v":"n.a."},{"$f":"IF('[2]FISCAL(M)'!$K28=\"\",\"\",'[2]FISCAL(M)'!$K28)","v":"n.d."},{"$f":"IF('[2]FISCAL(M)'!$L28=\"\",\"\",'[2]FISCAL(M)'!$L28)","v":"n.d."},{"$f":"IF('[2]FISCAL(M)'!$AY28=\"\",\"\",'[2]FISCAL(M)'!$AY28)","v":"n.d."},{"$f":"IF('[2]FISCAL(M)'!$BI28=\"\",\"\",'[2]FISCAL(M)'!$BI28)","v":"n.d."},{"$f":"IF('[2]FISCAL(M)'!$BS28=\"\",\"\",'[2]FISCAL(M)'!$BS28)","v":"n.d."},{"$f":"IF('[2]FISCAL(M)'!$AZ28=\"\",\"\",'[2]FISCAL(M)'!$AZ28)","v":"n.d."},{"$f":"IF('[2]FISCAL(M)'!$BJ28=\"\",\"\",'[2]FISCAL(M)'!$BJ28)","v":"n.d."},{"$f":"IF('[2]FISCAL(M)'!$BT28=\"\",\"\",'[2]FISCAL(M)'!$BT28)","v":"n.d."},{"$f":"IF('[3]MONE(M)'!$AO28=\"\",\"\",'[3]MONE(M)'!$AO28)","v":"n.d."},{"$f":"IF('[4]MONE(M)'!$AO28=\"\",\"\",'[4]MONE(M)'!$AO28)","v":"n.d."},{"$f":"IF('[5]MONE(M)'!$AO28=\"\",\"\",'[5]MONE(M)'!$AO28)","v":"n.d."},{"$f":"+'[1]MONE(M)'!$AO28","v":"n.d."},{"$f":"IF('[6]MONE(M)'!$AO28=\"\",\"\",'[6]MONE(M)'!$AO28)","v":"n.d."},{"$f":"IF('[7]MONE(M)'!$AO28=\"\",\"\",'[7]MONE(M)'!$AO28)","v":"n.d."},{"$f":"IF('[8]MONE(M)'!$AO28=\"\",\"\",'[8]MONE(M)'!$AO28)","v":"n.d."},"n.d.","n.d.","n.d.","n.d.","n.d.","n.d.","n.d.",{"$f":"IF('[2]FISCAL(M)'!$K28=\"\",\"\",'[2]FISCAL(M)'!$K28)","v":"n.d."},"n.d.","n.d.",{"$f":"IF('[2]FISCAL(M)'!$L28=\"\",\"\",'[2]FISCAL(M)'!$L28)","v":"n.d."},"n.d.","n.d.","n.d.","n.d.","n.d.","n.d.","n.d.","n.d.","n.d.","n.d.","n.d.","n.d.","n.d.","n.d.","n.d.","n.d.","n.d.","n.d."]
[1991,"agosto","1991-agosto",{"$f":"IF('[2]REAL IPC(M)'!$AL29=\"\",\"\",+'[2]REAL IPC(M)'!$AL29)","v":"n.d."},{"$f":"IF('[2]REAL IPC(M)'!$BE29=\"\",\"\",+'[2]REAL IPC(M)'!$BE29)","v":"n.d."},{"$f":"IF('[2]REAL IPC(M)'!$AM29=\"\",\"\",+'[2]REAL IPC(M)'!$AM29)","v":"n.d."},{"$f":"IF('[2]REAL IPC(M)'!$BI29=\"\",\"\",+'[2]REAL IPC(M)'!$BI29)","v":"n.d."},{"$f":"IF('[2]REAL IMAE(M)'!BJ29=\"\",\"\",'[2]REAL IMAE(M)'!BJ29)","v":"n.d."},{"$f":"IF('[2]REAL IMAE(M)'!BK29=\"\",\"\",'[2]REAL IMAE(M)'!BK29)","v":"n.d."},{"$f":"IF('[2]REAL IMAE(M)'!BN29=\"\",\"\",'[2]REAL IMAE(M)'!BN29)","v":"n.d."},{"$f":"IF('[2]REAL IMAE(M)'!BO29=\"\",\"\",'[2]REAL IMAE(M)'!BO29)","v":"n.d."},{"$f":"IF('[2]EXT RIN(M)'!$K29=\"\",\"\",'[2]EXT RIN(M)'!$K29)","v":"n.d."},"",{"$f":"IF('[2]EXT RIN(M)'!$L29=\"\",\"\",'[2]EXT RIN(M)'!$L29)","v":"n.d."},"",{"$f":"IF('[2]MONE(M)CARD'!EG29=\"\",\"\",'[2]MONE(M)CARD'!EG29)","v":"n.d."},{"$f":"IF('[2]MONE(M)CARD'!EK29=\"\",\"\",'[2]MONE(M)CARD'!EK29)","v":"n.d."},{"$f":"IF('[2]MONE(M)CARD'!EP29=\"\",\"\",'[2]MONE(M)CARD'!EP29)","v":"n.d."},{"$f":"IF('[2]MONE(M)CARD'!ES29=\"\",\"\",'[2]MONE(M)CARD'!ES29)","v":"n.d."},{"$f":"IF('[2]MONE(M)CARD'!EV29=\"\",\"\",'[2]MONE(M)CARD'!EV29)","v":"n.d."},{"$f":"IF('[2]MONE(M)CARD'!EZ29=\"\",\"\",'[2]MONE(M)CARD'!EZ29)","v":"n.d."},{"$f":"IF('[2]MONE(M)CAPARD'!FC29=\"\",\"\",'[2]MONE(M)CAPARD'!FC29)","v":"n.d."},{"$f":"IF('[2]MONE(M)CAPARD'!FG29=\"\",\"\",'[2]MONE(M)CAPARD'!FG29)","v":"n.d."},{"$f":"IF('[2]MONE(M)CAPARD'!FL29=\"\",\"\",'[2]MONE(M)CAPARD'!FL29)","v":"n.d."},{"$f":"IF('[2]MONE(M)CAPARD'!FO29=\"\",\"\",'[2]MONE(M)CAPARD'!FO29)","v":"n.d."},{"$f":"IF('[2]MONE(M)CAPARD'!FR29=\"\",\"\",'[2]MONE(M)CAPARD'!FR29)","v":"n.d."},{"$f":"IF('[2]MONE(M)CAPARD'!FV29=\"\",\"\",'[2]MONE(M)CAPARD'!FV29)","v":"n.d."},{"$f":"IF('[2]MONE(M)CARD'!FV29=\"\",\"\",'[2]MONE(M)CARD'!FV29)","v":""},{"$f":"IF('[2]MONE(M)CARD'!GD29=\"\",\"\",'[2]MONE(M)CARD'!GD29)","v":"n.d."},{"$f":"IF('[2]MONE(M)CARD'!GE29=\"\",\"\",'[2]MONE(M)CARD'!GE29)","v":"n.d."},"n.d.","n.d.","n.d.","n.d.","n.d.","n.d.","n.d.","n.d.",null,"n.d.","n.d.","n.d.","n.d.","n.d.",{"$f":"IF('[2]MONE(M)CAPARD'!GS29=\"\",\"\",'[2]MONE(M)CAPARD'!GS29)","v":"n.d."},{"$f":"IF('[2]MONE(M)CARD'!HA29=\"\",\"\",'[2]MONE(M)CAPARD'!HA29)","v":"n.d."},{"$f":"IF('[2]MONE(M)CAPARD'!HB29=\"\",\"\",'[2]MONE(M)CAPARD'!HB29)","v":"n.d."},"n.d.","n.d.","n.d.","n.d.","n.d.","n.d.","n.d.","n.d.","n.d.","n.d.","n.d.","n.d.","n.d.","n.d.",{"$f":"IF('[2]MONE(M)CAPARD'!AS29=\"\",\"\",'[2]MONE(M)CAPARD'!AS29)","v":"n.d."},{"$f":"IF('[2]MONE(M)CAPARD'!AT29=\"\",\"\",'[2]MONE(M)CAPARD'!AT29)","v":"n.a."},{"$f":"IF('[2]MONE(M)CAPARD'!AU29=\"\",\"\",'[2]MONE(M)CAPARD'!AU29)","v":"n.d."},{"$f":"IF('[2]MONE(M)CAPARD'!AV29=\"\",\"\",'[2]MONE(M)CAPARD'!AV29)","v":"n.d."},{"$f":"IF('[2]MONE(M)CAPARD'!AW29=\"\",\"\",'[2]MONE(M)CAPARD'!AW29)","v":"n.a."},{"$f":"IF('[2]MONE(M)CAPARD'!AX29=\"\",\"\",'[2]MONE(M)CAPARD'!AX29)","v":"n.d."},{"$f":"IF('[2]MONE(M)CAPARD'!AY29=\"\",\"\",'[2]MONE(M)CAPARD'!AY29)","v":"n.a."},{"$f":"IF('[2]FISCAL(M)'!$K29=\"\",\"\",'[2]FISCAL(M)'!$K29)","v":"n.d."},{"$f":"IF('[2]FISCAL(M)'!$L29=\"\",\"\",'[2]FISCAL(M)'!$L29)","v":"n.d."},{"$f":"IF('[2]FISCAL(M)'!$AY29=\"\",\"\",'[2]FISCAL(M)'!$AY29)","v":"n.d."},{"$f":"IF('[2]FISCAL(M)'!$BI29=\"\",\"\",'[2]FISCAL(M)'!$BI29)","v":"n.d."},{"$f":"IF('[2]FISCAL(M)'!$BS29=\"\",\"\",'[2]FISCAL(M)'!$BS29)","v":"n.d."},{"$f":"IF('[2]FISCAL(M)'!$AZ29=\"\",\"\",'[2]FISCAL(M)'!$AZ29)","v":"n.d."},{"$f":"IF('[2]FISCAL(M)'!$BJ29=\"\",\"\",'[2]FISCAL(M)'!$BJ29)","v":"n.d."},{"$f":"IF('[2]FISCAL(M)'!$BT29=\"\",\"\",'[2]FISCAL(M)'!$BT29)","v":"n.d."},{"$f":"IF('[3]MONE(M)'!$AO29=\"\",\"\",'[3]MONE(M)'!$AO29)","v":"n.d."},{"$f":"IF('[4]MONE(M)'!$AO29=\"\",\"\",'[4]MONE(M)'!$AO29)","v":"n.d."},{"$f":"IF('[5]MONE(M)'!$AO29=\"\",\"\",'[5]MONE(M)'!$AO29)","v":"n.d."},{"$f":"+'[1]MONE(M)'!$AO29","v":"n.d."},{"$f":"IF('[6]MONE(M)'!$AO29=\"\",\"\",'[6]MONE(M)'!$AO29)","v":"n.d."},{"$f":"IF('[7]MONE(M)'!$AO29=\"\",\"\",'[7]MONE(M)'!$AO29)","v":"n.d."},{"$f":"IF('[8]MONE(M)'!$AO29=\"\",\"\",'[8]MONE(M)'!$AO29)","v":"n.d."},"n.d.","n.d.","n.d.","n.d.","n.d.","n.d.","n.d.",{"$f":"IF('[2]FISCAL(M)'!$K29=\"\",\"\",'[2]FISCAL(M)'!$K29)","v":"n.d."},"n.d.","n.d.",{"$f":"IF('[2]FISCAL(M)'!$L29=\"\",\"\",'[2]FISCAL(M)'!$L29)","v":"n.d."},"n.d.","n.d.","n.d.","n.d.","n.d.","n.d.","n.d.","n.d.","n.d.","n.d.","n.d.","n.d.","n.d.","n.d.","n.d.","n.d.","n.d.","n.d."]
[1991,"septiembre","1991-septiembre",{"$f":"IF('[2]REAL IPC(M)'!$AL30=\"\",\"\",+'[2]REAL IPC(M)'!$AL30)","v":"n.d."},{"$f":"IF('[2]REAL IPC(M)'!$BE30=\"\",\"\",+'[2]REAL IPC(M)'!$BE30)","v":"n.d."},{"$f":"IF('[2]REAL IPC(M)'!$AM30=\"\",\"\",+'[2]REAL IPC(M)'!$AM30)","v":"n.d."},{"$f":"IF('[2]REAL IPC(M)'!$BI30=\"\",\"\",+'[2]REAL IPC(M)'!$BI30)","v":"n.d."},{"$f":"IF('[2]REAL IMAE(M)'!BJ30=\"\",\"\",'[2]REAL IMAE(M)'!BJ30)","v":"n.d."},{"$f":"IF('[2]REAL IMAE(M)'!BK30=\"\",\"\",'[2]REAL IMAE(M)'!BK30)","v":"n.d."},{"$f":"IF('[2]REAL IMAE(M)'!BN30=\"\",\"\",'[2]REAL IMAE(M)'!BN30)","v":"n.d."},{"$f":"IF('[2]REAL IMAE(M)'!BO30=\"\",\"\",'[2]REAL IMAE(M)'!BO30)","v":"n.d."},{"$f":"IF('[2]EXT RIN(M)'!$K30=\"\",\"\",'[2]EXT RIN(M)'!$K30)","v":"n.d."},"",{"$f":"IF('[2]EXT RIN(M)'!$L30=\"\",\"\",'[2]EXT RIN(M)'!$L30)","v":"n.d."},"",{"$f":"IF('[2]MONE(M)CARD'!EG30=\"\",\"\",'[2]MONE(M)CARD'!EG30)","v":"n.d."},{"$f":"IF('[2]MONE(M)CARD'!EK30=\"\",\"\",'[2]MONE(M)CARD'!EK30)","v":"n.d."},{"$f":"IF('[2]MONE(M)CARD'!EP30=\"\",\"\",'[2]MONE(M)CARD'!EP30)","v":"n.d."},{"$f":"IF('[2]MONE(M)CARD'!ES30=\"\",\"\",'[2]MONE(M)CARD'!ES30)","v":"n.d."},{"$f":"IF('[2]MONE(M)CARD'!EV30=\"\",\"\",'[2]MONE(M)CARD'!EV30)","v":"n.d."},{"$f":"IF('[2]MONE(M)CARD'!EZ30=\"\",\"\",'[2]MONE(M)CARD'!EZ30)","v":"n.d."},{"$f":"IF('[2]MONE(M)CAPARD'!FC30=\"\",\"\",'[2]MONE(M)CAPARD'!FC30)","v":"n.d."},{"$f":"IF('[2]MONE(M)CAPARD'!FG30=\"\",\"\",'[2]MONE(M)CAPARD'!FG30)","v":"n.d."},{"$f":"IF('[2]MONE(M)CAPARD'!FL30=\"\",\"\",'[2]MONE(M)CAPARD'!FL30)","v":"n.d."},{"$f":"IF('[2]MONE(M)CAPARD'!FO30=\"\",\"\",'[2]MONE(M)CAPARD'!FO30)","v":"n.d."},{"$f":"IF('[2]MONE(M)CAPARD'!FR30=\"\",\"\",'[2]MONE(M)CAPARD'!FR30)","v":"n.d."},{"$f":"IF('[2]MONE(M)CAPARD'!FV30=\"\",\"\",'[2]MONE(M)CAPARD'!FV30)","v":"n.d."},{"$f":"IF('[2]MONE(M)CARD'!FV30=\"\",\"\",'[2]MONE(M)CARD'!FV30)","v":""},{"$f":"IF('[2]MONE(M)CARD'!GD30=\"\",\"\",'[2]MONE(M)CARD'!GD30)","v":"n.d."},{"$f":"IF('[2]MONE(M)CARD'!GE30=\"\",\"\",'[2]MONE(M)CARD'!GE30)","v":"n.d."},"n.d.","n.d.","n.d.","n.d.","n.d.","n.d.","n.d.","n.d.",null,"n.d.","n.d.","n.d.","n.d.","n.d.",{"$f":"IF('[2]MONE(M)CAPARD'!GS30=\"\",\"\",'[2]MONE(M)CAPARD'!GS30)","v":"n.d."},{"$f":"IF('[2]MONE(M)CARD'!HA30=\"\",\"\",'[2]MONE(M)CAPARD'!HA30)","v":"n.d."},{"$f":"IF('[2]MONE(M)CAPARD'!HB30=\"\",\"\",'[2]MONE(M)CAPARD'!HB30)","v":"n.d."},"n.d.","n.d.","n.d.","n.d.","n.d.","n.d.","n.d.","n.d.","n.d.","n.d.","n.d.","n.d.","n.d.","n.d.",{"$f":"IF('[2]MONE(M)CAPARD'!AS30=\"\",\"\",'[2]MONE(M)CAPARD'!AS30)","v":"n.d."},{"$f":"IF('[2]MONE(M)CAPARD'!AT30=\"\",\"\",'[2]MONE(M)CAPARD'!AT30)","v":"n.a."},{"$f":"IF('[2]MONE(M)CAPARD'!AU30=\"\",\"\",'[2]MONE(M)CAPARD'!AU30)","v":"n.d."},{"$f":"IF('[2]MONE(M)CAPARD'!AV30=\"\",\"\",'[2]MONE(M)CAPARD'!AV30)","v":"n.d."},{"$f":"IF('[2]MONE(M)CAPARD'!AW30=\"\",\"\",'[2]MONE(M)CAPARD'!AW30)","v":"n.a."},{"$f":"IF('[2]MONE(M)CAPARD'!AX30=\"\",\"\",'[2]MONE(M)CAPARD'!AX30)","v":"n.d."},{"$f":"IF('[2]MONE(M)CAPARD'!AY30=\"\",\"\",'[2]MONE(M)CAPARD'!AY30)","v":"n.a."},{"$f":"IF('[2]FISCAL(M)'!$K30=\"\",\"\",'[2]FISCAL(M)'!$K30)","v":"n.d."},{"$f":"IF('[2]FISCAL(M)'!$L30=\"\",\"\",'[2]FISCAL(M)'!$L30)","v":"n.d."},{"$f":"IF('[2]FISCAL(M)'!$AY30=\"\",\"\",'[2]FISCAL(M)'!$AY30)","v":"n.d."},{"$f":"IF('[2]FISCAL(M)'!$BI30=\"\",\"\",'[2]FISCAL(M)'!$BI30)","v":"n.d."},{"$f":"IF('[2]FISCAL(M)'!$BS30=\"\",\"\",'[2]FISCAL(M)'!$BS30)","v":"n.d."},{"$f":"IF('[2]FISCAL(M)'!$AZ30=\"\",\"\",'[2]FISCAL(M)'!$AZ30)","v":"n.d."},{"$f":"IF('[2]FISCAL(M)'!$BJ30=\"\",\"\",'[2]FISCAL(M)'!$BJ30)","v":"n.d."},{"$f":"IF('[2]FISCAL(M)'!$BT30=\"\",\"\",'[2]FISCAL(M)'!$BT30)","v":"n.d."},{"$f":"IF('[3]MONE(M)'!$AO30=\"\",\"\",'[3]MONE(M)'!$AO30)","v":"n.d."},{"$f":"IF('[4]MONE(M)'!$AO30=\"\",\"\",'[4]MONE(M)'!$AO30)","v":"n.d."},{"$f":"IF('[5]MONE(M)'!$AO30=\"\",\"\",'[5]MONE(M)'!$AO30)","v":"n.d."},{"$f":"+'[1]MONE(M)'!$AO30","v":"n.d."},{"$f":"IF('[6]MONE(M)'!$AO30=\"\",\"\",'[6]MONE(M)'!$AO30)","v":"n.d."},{"$f":"IF('[7]MONE(M)'!$AO30=\"\",\"\",'[7]MONE(M)'!$AO30)","v":"n.d."},{"$f":"IF('[8]MONE(M)'!$AO30=\"\",\"\",'[8]MONE(M)'!$AO30)","v":"n.d."},"n.d.","n.d.","n.d.","n.d.","n.d.","n.d.","n.d.",{"$f":"IF('[2]FISCAL(M)'!$K30=\"\",\"\",'[2]FISCAL(M)'!$K30)","v":"n.d."},"n.d.","n.d.",{"$f":"IF('[2]FISCAL(M)'!$L30=\"\",\"\",'[2]FISCAL(M)'!$L30)","v":"n.d."},"n.d.","n.d.","n.d.","n.d.","n.d.","n.d.","n.d.","n.d.","n.d.","n.d.","n.d.","n.d.","n.d.","n.d.","n.d.","n.d.","n.d.","n.d."]
[1991,"octubre","1991-octubre",{"$f":"IF('[2]REAL IPC(M)'!$AL31=\"\",\"\",+'[2]REAL IPC(M)'!$AL31)","v":"n.d."},{"$f":"IF('[2]REAL IPC(M)'!$BE31=\"\",\"\",+'[2]REAL IPC(M)'!$BE31)","v":"n.d."},{"$f":"IF('[2]REAL IPC(M)'!$AM31=\"\",\"\",+'[2]REAL IPC(M)'!$AM31)","v":"n.d."},{"$f":"IF('[2]REAL IPC(M)'!$BI31=\"\",\"\",+'[2]REAL IPC(M)'!$BI31)","v":"n.d."},{"$f":"IF('[2]REAL IMAE(M)'!BJ31=\"\",\"\",'[2]REAL IMAE(M)'!BJ31)","v":"n.d."},{"$f":"IF('[2]REAL IMAE(M)'!BK31=\"\",\"\",'[2]REAL IMAE(M)'!BK31)","v":"n.d."},{"$f":"IF('[2]REAL IMAE(M)'!BN31=\"\",\"\",'[2]REAL IMAE(M)'!BN31)","v":"n.d."},{"$f":"IF('[2]REAL IMAE(M)'!BO31=\"\",\"\",'[2]REAL IMAE(M)'!BO31)","v":"n.d."},{"$f":"IF('[2]EXT RIN(M)'!$K31=\"\",\"\",'[2]EXT RIN(M)'!$K31)","v":"n.d."},"",{"$f":"IF('[2]EXT RIN(M)'!$L31=\"\",\"\",'[2]EXT RIN(M)'!$L31)","v":"n.d."},"",{"$f":"IF('[2]MONE(M)CARD'!EG31=\"\",\"\",'[2]MONE(M)CARD'!EG31)","v":"n.d."},{"$f":"IF('[2]MONE(M)CARD'!EK31=\"\",\"\",'[2]MONE(M)CARD'!EK31)","v":"n.d."},{"$f":"IF('[2]MONE(M)CARD'!EP31=\"\",\"\",'[2]MONE(M)CARD'!EP31)","v":"n.d."},{"$f":"IF('[2]MONE(M)CARD'!ES31=\"\",\"\",'[2]MONE(M)CARD'!ES31)","v":"n.d."},{"$f":"IF('[2]MONE(M)CARD'!EV31=\"\",\"\",'[2]MONE(M)CARD'!EV31)","v":"n.d."},{"$f":"IF('[2]MONE(M)CARD'!EZ31=\"\",\"\",'[2]MONE(M)CARD'!EZ31)","v":"n.d."},{"$f":"IF('[2]MONE(M)CAPARD'!FC31=\"\",\"\",'[2]MONE(M)CAPARD'!FC31)","v":"n.d."},{"$f":"IF('[2]MONE(M)CAPARD'!FG31=\"\",\"\",'[2]MONE(M)CAPARD'!FG31)","v":"n.d."},{"$f":"IF('[2]MONE(M)CAPARD'!FL31=\"\",\"\",'[2]MONE(M)CAPARD'!FL31)","v":"n.d."},{"$f":"IF('[2]MONE(M)CAPARD'!FO31=\"\",\"\",'[2]MONE(M)CAPARD'!FO31)","v":"n.d."},{"$f":"IF('[2]MONE(M)CAPARD'!FR31=\"\",\"\",'[2]MONE(M)CAPARD'!FR31)","v":"n.d."},{"$f":"IF('[2]MONE(M)CAPARD'!FV31=\"\",\"\",'[2]MONE(M)CAPARD'!FV31)","v":"n.d."},{"$f":"IF('[2]MONE(M)CARD'!FV31=\"\",\"\",'[2]MONE(M)CARD'!FV31)","v":""},{"$f":"IF('[2]MONE(M)CARD'!GD31=\"\",\"\",'[2]MONE(M)CARD'!GD31)","v":"n.d."},{"$f":"IF('[2]MONE(M)CARD'!GE31=\"\",\"\",'[2]MONE(M)CARD'!GE31)","v":"n.d."},"n.d.","n.d.","n.d.","n.d.","n.d.","n.d.","n.d.","n.d.",null,"n.d.","n.d.","n.d.","n.d.","n.d.",{"$f":"IF('[2]MONE(M)CAPARD'!GS31=\"\",\"\",'[2]MONE(M)CAPARD'!GS31)","v":"n.d."},{"$f":"IF('[2]MONE(M)CARD'!HA31=\"\",\"\",'[2]MONE(M)CAPARD'!HA31)","v":"n.d."},{"$f":"IF('[2]MONE(M)CAPARD'!HB31=\"\",\"\",'[2]MONE(M)CAPARD'!HB31)","v":"n.d."},"n.d.","n.d.","n.d.","n.d.","n.d.","n.d.","n.d.","n.d.","n.d.","n.d.","n.d.","n.d.","n.d.","n.d.",{"$f":"IF('[2]MONE(M)CAPARD'!AS31=\"\",\"\",'[2]MONE(M)CAPARD'!AS31)","v":"n.d."},{"$f":"IF('[2]MONE(M)CAPARD'!AT31=\"\",\"\",'[2]MONE(M)CAPARD'!AT31)","v":"n.a."},{"$f":"IF('[2]MONE(M)CAPARD'!AU31=\"\",\"\",'[2]MONE(M)CAPARD'!AU31)","v":"n.d."},{"$f":"IF('[2]MONE(M)CAPARD'!AV31=\"\",\"\",'[2]MONE(M)CAPARD'!AV31)","v":"n.d."},{"$f":"IF('[2]MONE(M)CAPARD'!AW31=\"\",\"\",'[2]MONE(M)CAPARD'!AW31)","v":"n.a."},{"$f":"IF('[2]MONE(M)CAPARD'!AX31=\"\",\"\",'[2]MONE(M)CAPARD'!AX31)","v":"n.d."},{"$f":"IF('[2]MONE(M)CAPARD'!AY31=\"\",\"\",'[2]MONE(M)CAPARD'!AY31)","v":"n.a."},{"$f":"IF('[2]FISCAL(M)'!$K31=\"\",\"\",'[2]FISCAL(M)'!$K31)","v":"n.d."},{"$f":"IF('[2]FISCAL(M)'!$L31=\"\",\"\",'[2]FISCAL(M)'!$L31)","v":"n.d."},{"$f":"IF('[2]FISCAL(M)'!$AY31=\"\",\"\",'[2]FISCAL(M)'!$AY31)","v":"n.d."},{"$f":"IF('[2]FISCAL(M)'!$BI31=\"\",\"\",'[2]FISCAL(M)'!$BI31)","v":"n.d."},{"$f":"IF('[2]FISCAL(M)'!$BS31=\"\",\"\",'[2]FISCAL(M)'!$BS31)","v":"n.d."},{"$f":"IF('[2]FISCAL(M)'!$AZ31=\"\",\"\",'[2]FISCAL(M)'!$AZ31)","v":"n.d."},{"$f":"IF('[2]FISCAL(M)'!$BJ31=\"\",\"\",'[2]FISCAL(M)'!$BJ31)","v":"n.d."},{"$f":"IF('[2]FISCAL(M)'!$BT31=\"\",\"\",'[2]FISCAL(M)'!$BT31)","v":"n.d."},{"$f":"IF('[3]MONE(M)'!$AO31=\"\",\"\",'[3]MONE(M)'!$AO31)","v":"n.d."},{"$f":"IF('[4]MONE(M)'!$AO31=\"\",\"\",'[4]MONE(M)'!$AO31)","v":"n.d."},{"$f":"IF('[5]MONE(M)'!$AO31=\"\",\"\",'[5]MONE(M)'!$AO31)","v":"n.d."},{"$f":"+'[1]MONE(M)'!$AO31","v":"n.d."},{"$f":"IF('[6]MONE(M)'!$AO31=\"\",\"\",'[6]MONE(M)'!$AO31)","v":"n.d."},{"$f":"IF('[7]MONE(M)'!$AO31=\"\",\"\",'[7]MONE(M)'!$AO31)","v":"n.d."},{"$f":"IF('[8]MONE(M)'!$AO31=\"\",\"\",'[8]MONE(M)'!$AO31)","v":"n.d."},"n.d.","n.d.","n.d.","n.d.","n.d.","n.d.","n.d.",{"$f":"IF('[2]FISCAL(M)'!$K31=\"\",\"\",'[2]FISCAL(M)'!$K31)","v":"n.d."},"n.d.","n.d.",{"$f":"IF('[2]FISCAL(M)'!$L31=\"\",\"\",'[2]FISCAL(M)'!$L31)","v":"n.d."},"n.d.","n.d.","n.d.","n.d.","n.d.","n.d.","n.d.","n.d.","n.d.","n.d.","n.d.","n.d.","n.d.","n.d.","n.d.","n.d.","n.d.","n.d."]
[1991,"noviembre","1991-noviembre",{"$f":"IF('[2]REAL IPC(M)'!$AL32=\"\",\"\",+'[2]REAL IPC(M)'!$AL32)","v":"n.d."},{"$f":"IF('[2]REAL IPC(M)'!$BE32=\"\",\"\",+'[2]REAL IPC(M)'!$BE32)","v":"n.d."},{"$f":"IF('[2]REAL IPC(M)'!$AM32=\"\",\"\",+'[2]REAL IPC(M)'!$AM32)","v":"n.d."},{"$f":"IF('[2]REAL IPC(M)'!$BI32=\"\",\"\",+'[2]REAL IPC(M)'!$BI32)","v":"n.d."},{"$f":"IF('[2]REAL IMAE(M)'!BJ32=\"\",\"\",'[2]REAL IMAE(M)'!BJ32)","v":"n.d."},{"$f":"IF('[2]REAL IMAE(M)'!BK32=\"\",\"\",'[2]REAL IMAE(M)'!BK32)","v":"n.d."},{"$f":"IF('[2]REAL IMAE(M)'!BN32=\"\",\"\",'[2]REAL IMAE(M)'!BN32)","v":"n.d."},{"$f":"IF('[2]REAL IMAE(M)'!BO32=\"\",\"\",'[2]REAL IMAE(M)'!BO32)","v":"n.d."},{"$f":"IF('[2]EXT RIN(M)'!$K32=\"\",\"\",'[2]EXT RIN(M)'!$K32)","v":"n.d."},"",{"$f":"IF('[2]EXT RIN(M)'!$L32=\"\",\"\",'[2]EXT RIN(M)'!$L32)","v":"n.d."},"",{"$f":"IF('[2]MONE(M)CARD'!EG32=\"\",\"\",'[2]MONE(M)CARD'!EG32)","v":"n.d."},{"$f":"IF('[2]MONE(M)CARD'!EK32=\"\",\"\",'[2]MONE(M)CARD'!EK32)","v":"n.d."},{"$f":"IF('[2]MONE(M)CARD'!EP32=\"\",\"\",'[2]MONE(M)CARD'!EP32)","v":"n.d."},{"$f":"IF('[2]MONE(M)CARD'!ES32=\"\",\"\",'[2]MONE(M)CARD'!ES32)","v":"n.d."},{"$f":"IF('[2]MONE(M)CARD'!EV32=\"\",\"\",'[2]MONE(M)CARD'!EV32)","v":"n.d."},{"$f":"IF('[2]MONE(M)CARD'!EZ32=\"\",\"\",'[2]MONE(M)CARD'!EZ32)","v":"n.d."},{"$f":"IF('[2]MONE(M)CAPARD'!FC32=\"\",\"\",'[2]MONE(M)CAPARD'!FC32)","v":"n.d."},{"$f":"IF('[2]MONE(M)CAPARD'!FG32=\"\",\"\",'[2]MONE(M)CAPARD'!FG32)","v":"n.d."},{"$f":"IF('[2]MONE(M)CAPARD'!FL32=\"\",\"\",'[2]MONE(M)CAPARD'!FL32)","v":"n.d."},{"$f":"IF('[2]MONE(M)CAPARD'!FO32=\"\",\"\",'[2]MONE(M)CAPARD'!FO32)","v":"n.d."},{"$f":"IF('[2]MONE(M)CAPARD'!FR32=\"\",\"\",'[2]MONE(M)CAPARD'!FR32)","v":"n.d."},{"$f":"IF('[2]MONE(M)CAPARD'!FV32=\"\",\"\",'[2]MONE(M)CAPARD'!FV32)","v":"n.d."},{"$f":"IF('[2]MONE(M)CARD'!FV32=\"\",\"\",'[2]MONE(M)CARD'!FV32)","v":""},{"$f":"IF('[2]MONE(M)CARD'!GD32=\"\",\"\",'[2]MONE(M)CARD'!GD32)","v":"n.d."},{"$f":"IF('[2]MONE(M)CARD'!GE32=\"\",\"\",'[2]MONE(M)CARD'!GE32)","v":"n.d."},"n.d.","n.d.","n.d.","n.d.","n.d.","n.d.","n.d.","n.d.",null,"n.d.","n.d.","n.d.","n.d.","n.d.",{"$f":"IF('[2]MONE(M)CAPARD'!GS32=\"\",\"\",'[2]MONE(M)CAPARD'!GS32)","v":"n.d."},{"$f":"IF('[2]MONE(M)CARD'!HA32=\"\",\"\",'[2]MONE(M)CAPARD'!HA32)","v":"n.d."},{"$f":"IF('[2]MONE(M)CAPARD'!HB32=\"\",\"\",'[2]MONE(M)CAPARD'!HB32)","v":"n.d."},"n.d.","n.d.","n.d.","n.d.","n.d.","n.d.","n.d.","n.d.","n.d.","n.d.","n.d.","n.d.","n.d.","n.d.",{"$f":"IF('[2]MONE(M)CAPARD'!AS32=\"\",\"\",'[2]MONE(M)CAPARD'!AS32)","v":"n.d."},{"$f":"IF('[2]MONE(M)CAPARD'!AT32=\"\",\"\",'[2]MONE(M)CAPARD'!AT32)","v":"n.a."},{"$f":"IF('[2]MONE(M)CAPARD'!AU32=\"\",\"\",'[2]MONE(M)CAPARD'!AU32)","v":"n.d."},{"$f":"IF('[2]MONE(M)CAPARD'!AV32=\"\",\"\",'[2]MONE(M)CAPARD'!AV32)","v":"n.d."},{"$f":"IF('[2]MONE(M)CAPARD'!AW32=\"\",\"\",'[2]MONE(M)CAPARD'!AW32)","v":"n.a."},{"$f":"IF('[2]MONE(M)CAPARD'!AX32=\"\",\"\",'[2]MONE(M)CAPARD'!AX32)","v":"n.d."},{"$f":"IF('[2]MONE(M)CAPARD'!AY32=\"\",\"\",'[2]MONE(M)CAPARD'!AY32)","v":"n.a."},{"$f":"IF('[2]FISCAL(M)'!$K32=\"\",\"\",'[2]FISCAL(M)'!$K32)","v":"n.d."},{"$f":"IF('[2]FISCAL(M)'!$L32=\"\",\"\",'[2]FISCAL(M)'!$L32)","v":"n.d."},{"$f":"IF('[2]FISCAL(M)'!$AY32=\"\",\"\",'[2]FISCAL(M)'!$AY32)","v":"n.d."},{"$f":"IF('[2]FISCAL(M)'!$BI32=\"\",\"\",'[2]FISCAL(M)'!$BI32)","v":"n.d."},{"$f":"IF('[2]FISCAL(M)'!$BS32=\"\",\"\",'[2]FISCAL(M)'!$BS32)","v":"n.d."},{"$f":"IF('[2]FISCAL(M)'!$AZ32=\"\",\"\",'[2]FISCAL(M)'!$AZ32)","v":"n.d."},{"$f":"IF('[2]FISCAL(M)'!$BJ32=\"\",\"\",'[2]FISCAL(M)'!$BJ32)","v":"n.d."},{"$f":"IF('[2]FISCAL(M)'!$BT32=\"\",\"\",'[2]FISCAL(M)'!$BT32)","v":"n.d."},{"$f":"IF('[3]MONE(M)'!$AO32=\"\",\"\",'[3]MONE(M)'!$AO32)","v":"n.d."},{"$f":"IF('[4]MONE(M)'!$AO32=\"\",\"\",'[4]MONE(M)'!$AO32)","v":"n.d."},{"$f":"IF('[5]MONE(M)'!$AO32=\"\",\"\",'[5]MONE(M)'!$AO32)","v":"n.d."},{"$f":"+'[1]MONE(M)'!$AO32","v":"n.d."},{"$f":"IF('[6]MONE(M)'!$AO32=\"\",\"\",'[6]MONE(M)'!$AO32)","v":"n.d."},{"$f":"IF('[7]MONE(M)'!$AO32=\"\",\"\",'[7]MONE(M)'!$AO32)","v":"n.d."},{"$f":"IF('[8]MONE(M)'!$AO32=\"\",\"\",'[8]MONE(M)'!$AO32)","v":"n.d."},"n.d.","n.d.","n.d.","n.d.","n.d.","n.d.","n.d.",{"$f":"IF('[2]FISCAL(M)'!$K32=\"\",\"\",'[2]FISCAL(M)'!$K32)","v":"n.d."},"n.d.","n.d.",{"$f":"IF('[2]FISCAL(M)'!$L32=\"\",\"\",'[2]FISCAL(M)'!$L32)","v":"n.d."},"n.d.","n.d.","n.d.","n.d.","n.d.","n.d.","n.d.","n.d.","n.d.","n.d.","n.d.","n.d.","n.d.","n.d.","n.d.","n.d.","n.d.","n.d."]
[1991,"diciembre","1991-diciembre",{"$f":"IF('[2]REAL IPC(M)'!$AL33=\"\",\"\",+'[2]REAL IPC(M)'!$AL33)","v":"n.d."},{"$f":"IF('[2]REAL IPC(M)'!$BE33=\"\",\"\",+'[2]REAL IPC(M)'!$BE33)","v":"n.d."},{"$f":"IF('[2]REAL IPC(M)'!$AM33=\"\",\"\",+'[2]REAL IPC(M)'!$AM33)","v":"n.d."},{"$f":"IF('[2]REAL IPC(M)'!$BI33=\"\",\"\",+'[2]REAL IPC(M)'!$BI33)","v":"n.d."},{"$f":"IF('[2]REAL IMAE(M)'!BJ33=\"\",\"\",'[2]REAL IMAE(M)'!BJ33)","v":"n.d."},{"$f":"IF('[2]REAL IMAE(M)'!BK33=\"\",\"\",'[2]REAL IMAE(M)'!BK33)","v":"n.d."},{"$f":"IF('[2]REAL IMAE(M)'!BN33=\"\",\"\",'[2]REAL IMAE(M)'!BN33)","v":"n.d."},{"$f":"IF('[2]REAL IMAE(M)'!BO33=\"\",\"\",'[2]REAL IMAE(M)'!BO33)","v":"n.d."},{"$f":"IF('[2]EXT RIN(M)'!$K33=\"\",\"\",'[2]EXT RIN(M)'!$K33)","v":"n.d."},"n.d.",{"$f":"IF('[2]EXT RIN(M)'!$L33=\"\",\"\",'[2]EXT RIN(M)'!$L33)","v":"n.d."},"n.d.",{"$f":"IF('[2]MONE(M)CARD'!EG33=\"\",\"\",'[2]MONE(M)CARD'!EG33)","v":"n.d."},{"$f":"IF('[2]MONE(M)CARD'!EK33=\"\",\"\",'[2]MONE(M)CARD'!EK33)","v":"n.d."},{"$f":"IF('[2]MONE(M)CARD'!EP33=\"\",\"\",'[2]MONE(M)CARD'!EP33)","v":"n.d."},{"$f":"IF('[2]MONE(M)CARD'!ES33=\"\",\"\",'[2]MONE(M)CARD'!ES33)","v":"n.d."},{"$f":"IF('[2]MONE(M)CARD'!EV33=\"\",\"\",'[2]MONE(M)CARD'!EV33)","v":"n.d."},{"$f":"IF('[2]MONE(M)CARD'!EZ33=\"\",\"\",'[2]MONE(M)CARD'!EZ33)","v":"n.d."},{"$f":"IF('[2]MONE(M)CAPARD'!FC33=\"\",\"\",'[2]MONE(M)CAPARD'!FC33)","v":"n.d."},{"$f":"IF('[2]MONE(M)CAPARD'!FG33=\"\",\"\",'[2]MONE(M)CAPARD'!FG33)","v":"n.d."},{"$f":"IF('[2]MONE(M)CAPARD'!FL33=\"\",\"\",'[2]MONE(M)CAPARD'!FL33)","v":"n.d."},{"$f":"IF('[2]MONE(M)CAPARD'!FO33=\"\",\"\",'[2]MONE(M)CAPARD'!FO33)","v":"n.d."},{"$f":"IF('[2]MONE(M)CAPARD'!FR33=\"\",\"\",'[2]MONE(M)CAPARD'!FR33)","v":"n.d."},{"$f":"IF('[2]MONE(M)CAPARD'!FV33=\"\",\"\",'[2]MONE(M)CAPARD'!FV33)","v":"n.d."},{"$f":"IF('[2]MONE(M)CARD'!FV33=\"\",\"\",'[2]MONE(M)CARD'!FV33)","v":""},{"$f":"IF('[2]MONE(M)CARD'!GD33=\"\",\"\",'[2]MONE(M)CARD'!GD33)","v":"n.d."},{"$f":"IF('[2]MONE(M)CARD'!GE33=\"\",\"\",'[2]MONE(M)CARD'!GE33)","v":"n.d."},"n.d.","n.d.","n.d.","n.d.","n.d.","n.d.","n.d.","n.d.",null,"n.d.","n.d.","n.d.","n.d.","n.d.",{"$f":"IF('[2]MONE(M)CAPARD'!GS33=\"\",\"\",'[2]MONE(M)CAPARD'!GS33)","v":"n.d."},{"$f":"IF('[2]MONE(M)CARD'!HA33=\"\",\"\",'[2]MONE(M)CAPARD'!HA33)","v":"n.d."},{"$f":"IF('[2]MONE(M)CAPARD'!HB33=\"\",\"\",'[2]MONE(M)CAPARD'!HB33)","v":"n.d."},"n.d.","n.d.","n.d.","n.d.","n.d.","n.d.","n.d.","n.d.","n.d.","n.d.","n.d.","n.d.","n.d.","n.d.",{"$f":"IF('[2]MONE(M)CAPARD'!AS33=\"\",\"\",'[2]MONE(M)CAPARD'!AS33)","v":"n.d."},{"$f":"IF('[2]MONE(M)CAPARD'!AT33=\"\",\"\",'[2]MONE(M)CAPARD'!AT33)","v":"n.a."},{"$f":"IF('[2]MONE(M)CAPARD'!AU33=\"\",\"\",'[2]MONE(M)CAPARD'!AU33)","v":"n.d."},{"$f":"IF('[2]MONE(M)CAPARD'!AV33=\"\",\"\",'[2]MONE(M)CAPARD'!AV33)","v":"n.d."},{"$f":"IF('[2]MONE(M)CAPARD'!AW33=\"\",\"\",'[2]MONE(M)CAPARD'!AW33)","v":"n.a."},{"$f":"IF('[2]MONE(M)CAPARD'!AX33=\"\",\"\",'[2]MONE(M)CAPARD'!AX33)","v":"n.d."},{"$f":"IF('[2]MONE(M)CAPARD'!AY33=\"\",\"\",'[2]MONE(M)CAPARD'!AY33)","v":"n.a."},{"$f":"IF('[2]FISCAL(M)'!$K33=\"\",\"\",'[2]FISCAL(M)'!$K33)","v":"n.d."},{"$f":"IF('[2]FISCAL(M)'!$L33=\"\",\"\",'[2]FISCAL(M)'!$L33)","v":"n.d."},{"$f":"IF('[2]FISCAL(M)'!$AY33=\"\",\"\",'[2]FISCAL(M)'!$AY33)","v":"n.d."},{"$f":"IF('[2]FISCAL(M)'!$BI33=\"\",\"\",'[2]FISCAL(M)'!$BI33)","v":"n.d."},{"$f":"IF('[2]FISCAL(M)'!$BS33=\"\",\"\",'[2]FISCAL(M)'!$BS33)","v":"n.d."},{"$f":"IF('[2]FISCAL(M)'!$AZ33=\"\",\"\",'[2]FISCAL(M)'!$AZ33)","v":"n.d."},{"$f":"IF('[2]FISCAL(M)'!$BJ33=\"\",\"\",'[2]FISCAL(M)'!$BJ33)","v":"n.d."},{"$f":"IF('[2]FISCAL(M)'!$BT33=\"\",\"\",'[2]FISCAL(M)'!$BT33)","v":"n.d."},{"$f":"IF('[3]MONE(M)'!$AO33=\"\",\"\",'[3]MONE(M)'!$AO33)","v":"n.d."},{"$f":"IF('[4]MONE(M)'!$AO33=\"\",\"\",'[4]MONE(M)'!$AO33)","v":"n.d."},{"$f":"IF('[5]MONE(M)'!$AO33=\"\",\"\",'[5]MONE(M)'!$AO33)","v":"n.d."},{"$f":"+'[1]MONE(M)'!$AO33","v":"n.d."},{"$f":"IF('[6]MONE(M)'!$AO33=\"\",\"\",'[6]MONE(M)'!$AO33)","v":"n.d."},{"$f":"IF('[7]MONE(M)'!$AO33=\"\",\"\",'[7]MONE(M)'!$AO33)","v":"n.d."},{"$f":"IF('[8]MONE(M)'!$AO33=\"\",\"\",'[8]MONE(M)'!$AO33)","v":"n.d."},"n.d.","n.d.","n.d.","n.d.","n.d.","n.d.","n.d.",{"$f":"IF('[2]FISCAL(M)'!$K33=\"\",\"\",'[2]FISCAL(M)'!$K33)","v":"n.d."},"n.d.","n.d.",{"$f":"IF('[2]FISCAL(M)'!$L33=\"\",\"\",'[2]FISCAL(M)'!$L33)","v":"n.d."},"n.d.","n.d.","n.d.","n.d.","n.d.","n.d.","n.d.","n.d.","n.d.","n.d.","n.d.","n.d.","n.d.","n.d.","n.d.","n.d.","n.d.","n.d."]
[1992,"enero","1992-enero",{"$f":"IF('[2]REAL IPC(M)'!$AL34=\"\",\"\",+'[2]REAL IPC(M)'!$AL34)","v":"n.d."},{"$f":"IF('[2]REAL IPC(M)'!$BE34=\"\",\"\",+'[2]REAL IPC(M)'!$BE34)","v":"n.d."},{"$f":"IF('[2]REAL IPC(M)'!$AM34=\"\",\"\",+'[2]REAL IPC(M)'!$AM34)","v":"n.d."},{"$f":"IF('[2]REAL IPC(M)'!$BI34=\"\",\"\",+'[2]REAL IPC(M)'!$BI34)","v":"n.d."},{"$f":"IF('[2]REAL IMAE(M)'!BJ34=\"\",\"\",'[2]REAL IMAE(M)'!BJ34)","v":"n.d."},{"$f":"IF('[2]REAL IMAE(M)'!BK34=\"\",\"\",'[2]REAL IMAE(M)'!BK34)","v":"n.d."},{"$f":"IF('[2]REAL IMAE(M)'!BN34=\"\",\"\",'[2]REAL IMAE(M)'!BN34)","v":"n.d."},{"$f":"IF('[2]REAL IMAE(M)'!BO34=\"\",\"\",'[2]REAL IMAE(M)'!BO34)","v":"n.d."},{"$f":"IF('[2]EXT RIN(M)'!$K34=\"\",\"\",'[2]EXT RIN(M)'!$K34)","v":"n.d."},"",{"$f":"IF('[2]EXT RIN(M)'!$L34=\"\",\"\",'[2]EXT RIN(M)'!$L34)","v":"n.d."},"",{"$f":"IF('[2]MONE(M)CARD'!EG34=\"\",\"\",'[2]MONE(M)CARD'!EG34)","v":"n.d."},{"$f":"IF('[2]MONE(M)CARD'!EK34=\"\",\"\",'[2]MONE(M)CARD'!EK34)","v":"n.d."},{"$f":"IF('[2]MONE(M)CARD'!EP34=\"\",\"\",'[2]MONE(M)CARD'!EP34)","v":"n.d."},{"$f":"IF('[2]MONE(M)CARD'!ES34=\"\",\"\",'[2]MONE(M)CARD'!ES34)","v":"n.d."},{"$f":"IF('[2]MONE(M)CARD'!EV34=\"\",\"\",'[2]MONE(M)CARD'!EV34)","v":"n.d."},{"$f":"IF('[2]MONE(M)CARD'!EZ34=\"\",\"\",'[2]MONE(M)CARD'!EZ34)","v":"n.d."},{"$f":"IF('[2]MONE(M)CAPARD'!FC34=\"\",\"\",'[2]MONE(M)CAPARD'!FC34)","v":"n.d."},{"$f":"IF('[2]MONE(M)CAPARD'!FG34=\"\",\"\",'[2]MONE(M)CAPARD'!FG34)","v":"n.d."},{"$f":"IF('[2]MONE(M)CAPARD'!FL34=\"\",\"\",'[2]MONE(M)CAPARD'!FL34)","v":"n.d."},{"$f":"IF('[2]MONE(M)CAPARD'!FO34=\"\",\"\",'[2]MONE(M)CAPARD'!FO34)","v":"n.d."},{"$f":"IF('[2]MONE(M)CAPARD'!FR34=\"\",\"\",'[2]MONE(M)CAPARD'!FR34)","v":"n.d."},{"$f":"IF('[2]MONE(M)CAPARD'!FV34=\"\",\"\",'[2]MONE(M)CAPARD'!FV34)","v":"n.d."},{"$f":"IF('[2]MONE(M)CARD'!FV34=\"\",\"\",'[2]MONE(M)CARD'!FV34)","v":""},{"$f":"IF('[2]MONE(M)CARD'!GD34=\"\",\"\",'[2]MONE(M)CARD'!GD34)","v":"n.d."},{"$f":"IF('[2]MONE(M)CARD'!GE34=\"\",\"\",'[2]MONE(M)CARD'!GE34)","v":"n.d."},"n.d.","n.d.","n.d.","n.d.","n.d.","n.d.","n.d.","n.d.",null,"n.d.","n.d.","n.d.","n.d.","n.d.",{"$f":"IF('[2]MONE(M)CAPARD'!GS34=\"\",\"\",'[2]MONE(M)CAPARD'!GS34)","v":"n.d."},{"$f":"IF('[2]MONE(M)CARD'!HA34=\"\",\"\",'[2]MONE(M)CAPARD'!HA34)","v":"n.d."},{"$f":"IF('[2]MONE(M)CAPARD'!HB34=\"\",\"\",'[2]MONE(M)CAPARD'!HB34)","v":"n.d."},"n.d.","n.d.","n.d.","n.d.","n.d.","n.d.","n.d.","n.d.","n.d.","n.d.","n.d.","n.d.","n.d.","n.d.",{"$f":"IF('[2]MONE(M)CAPARD'!AS34=\"\",\"\",'[2]MONE(M)CAPARD'!AS34)","v":"n.d."},{"$f":"IF('[2]MONE(M)CAPARD'!AT34=\"\",\"\",'[2]MONE(M)CAPARD'!AT34)","v":"n.a."},{"$f":"IF('[2]MONE(M)CAPARD'!AU34=\"\",\"\",'[2]MONE(M)CAPARD'!AU34)","v":"n.d."},{"$f":"IF('[2]MONE(M)CAPARD'!AV34=\"\",\"\",'[2]MONE(M)CAPARD'!AV34)","v":"n.d."},{"$f":"IF('[2]MONE(M)CAPARD'!AW34=\"\",\"\",'[2]MONE(M)CAPARD'!AW34)","v":"n.a."},{"$f":"IF('[2]MONE(M)CAPARD'!AX34=\"\",\"\",'[2]MONE(M)CAPARD'!AX34)","v":"n.d."},{"$f":"IF('[2]MONE(M)CAPARD'!AY34=\"\",\"\",'[2]MONE(M)CAPARD'!AY34)","v":"n.a."},{"$f":"IF('[2]FISCAL(M)'!$K34=\"\",\"\",'[2]FISCAL(M)'!$K34)","v":"n.d."},{"$f":"IF('[2]FISCAL(M)'!$L34=\"\",\"\",'[2]FISCAL(M)'!$L34)","v":"n.d."},{"$f":"IF('[2]FISCAL(M)'!$AY34=\"\",\"\",'[2]FISCAL(M)'!$AY34)","v":"n.d."},{"$f":"IF('[2]FISCAL(M)'!$BI34=\"\",\"\",'[2]FISCAL(M)'!$BI34)","v":"n.d."},{"$f":"IF('[2]FISCAL(M)'!$BS34=\"\",\"\",'[2]FISCAL(M)'!$BS34)","v":"n.d."},{"$f":"IF('[2]FISCAL(M)'!$AZ34=\"\",\"\",'[2]FISCAL(M)'!$AZ34)","v":"n.d."},{"$f":"IF('[2]FISCAL(M)'!$BJ34=\"\",\"\",'[2]FISCAL(M)'!$BJ34)","v":"n.d."},{"$f":"IF('[2]FISCAL(M)'!$BT34=\"\",\"\",'[2]FISCAL(M)'!$BT34)","v":"n.d."},{"$f":"IF('[3]MONE(M)'!$AO34=\"\",\"\",'[3]MONE(M)'!$AO34)","v":"n.d."},{"$f":"IF('[4]MONE(M)'!$AO34=\"\",\"\",'[4]MONE(M)'!$AO34)","v":"n.d."},{"$f":"IF('[5]MONE(M)'!$AO34=\"\",\"\",'[5]MONE(M)'!$AO34)","v":"n.d."},{"$f":"+'[1]MONE(M)'!$AO34","v":"n.d."},{"$f":"IF('[6]MONE(M)'!$AO34=\"\",\"\",'[6]MONE(M)'!$AO34)","v":"n.d."},{"$f":"IF('[7]MONE(M)'!$AO34=\"\",\"\",'[7]MONE(M)'!$AO34)","v":"n.d."},{"$f":"IF('[8]MONE(M)'!$AO34=\"\",\"\",'[8]MONE(M)'!$AO34)","v":"n.d."},"n.d.","n.d.","n.d.","n.d.","n.d.","n.d.","n.d.",{"$f":"IF('[2]FISCAL(M)'!$K34=\"\",\"\",'[2]FISCAL(M)'!$K34)","v":"n.d."},"n.d.","n.d.",{"$f":"IF('[2]FISCAL(M)'!$L34=\"\",\"\",'[2]FISCAL(M)'!$L34)","v":"n.d."},"n.d.","n.d.","n.d.","n.d.","n.d.","n.d.","n.d.","n.d.","n.d.","n.d.","n.d.","n.d.","n.d.","n.d.","n.d.","n.d.","n.d.","n.d."]
[1992,"febrero","1992-febrero",{"$f":"IF('[2]REAL IPC(M)'!$AL35=\"\",\"\",+'[2]REAL IPC(M)'!$AL35)","v":"n.d."},{"$f":"IF('[2]REAL IPC(M)'!$BE35=\"\",\"\",+'[2]REAL IPC(M)'!$BE35)","v":"n.d."},{"$f":"IF('[2]REAL IPC(M)'!$AM35=\"\",\"\",+'[2]REAL IPC(M)'!$AM35)","v":"n.d."},{"$f":"IF('[2]REAL IPC(M)'!$BI35=\"\",\"\",+'[2]REAL IPC(M)'!$BI35)","v":"n.d."},{"$f":"IF('[2]REAL IMAE(M)'!BJ35=\"\",\"\",'[2]REAL IMAE(M)'!BJ35)","v":"n.d."},{"$f":"IF('[2]REAL IMAE(M)'!BK35=\"\",\"\",'[2]REAL IMAE(M)'!BK35)","v":"n.d."},{"$f":"IF('[2]REAL IMAE(M)'!BN35=\"\",\"\",'[2]REAL IMAE(M)'!BN35)","v":"n.d."},{"$f":"IF('[2]REAL IMAE(M)'!BO35=\"\",\"\",'[2]REAL IMAE(M)'!BO35)","v":"n.d."},{"$f":"IF('[2]EXT RIN(M)'!$K35=\"\",\"\",'[2]EXT RIN(M)'!$K35)","v":"n.d."},"",{"$f":"IF('[2]EXT RIN(M)'!$L35=\"\",\"\",'[2]EXT RIN(M)'!$L35)","v":"n.d."},"",{"$f":"IF('[2]MONE(M)CARD'!EG35=\"\",\"\",'[2]MONE(M)CARD'!EG35)","v":"n.d."},{"$f":"IF('[2]MONE(M)CARD'!EK35=\"\",\"\",'[2]MONE(M)CARD'!EK35)","v":"n.d."},{"$f":"IF('[2]MONE(M)CARD'!EP35=\"\",\"\",'[2]MONE(M)CARD'!EP35)","v":"n.d."},{"$f":"IF('[2]MONE(M)CARD'!ES35=\"\",\"\",'[2]MONE(M)CARD'!ES35)","v":"n.d."},{"$f":"IF('[2]MONE(M)CARD'!EV35=\"\",\"\",'[2]MONE(M)CARD'!EV35)","v":"n.d."},{"$f":"IF('[2]MONE(M)CARD'!EZ35=\"\",\"\",'[2]MONE(M)CARD'!EZ35)","v":"n.d."},{"$f":"IF('[2]MONE(M)CAPARD'!FC35=\"\",\"\",'[2]MONE(M)CAPARD'!FC35)","v":"n.d."},{"$f":"IF('[2]MONE(M)CAPARD'!FG35=\"\",\"\",'[2]MONE(M)CAPARD'!FG35)","v":"n.d."},{"$f":"IF('[2]MONE(M)CAPARD'!FL35=\"\",\"\",'[2]MONE(M)CAPARD'!FL35)","v":"n.d."},{"$f":"IF('[2]MONE(M)CAPARD'!FO35=\"\",\"\",'[2]MONE(M)CAPARD'!FO35)","v":"n.d."},{"$f":"IF('[2]MONE(M)CAPARD'!FR35=\"\",\"\",'[2]MONE(M)CAPARD'!FR35)","v":"n.d."},{"$f":"IF('[2]MONE(M)CAPARD'!FV35=\"\",\"\",'[2]MONE(M)CAPARD'!FV35)","v":"n.d."},{"$f":"IF('[2]MONE(M)CARD'!FV35=\"\",\"\",'[2]MONE(M)CARD'!FV35)","v":""},{"$f":"IF('[2]MONE(M)CARD'!GD35=\"\",\"\",'[2]MONE(M)CARD'!GD35)","v":"n.d."},{"$f":"IF('[2]MONE(M)CARD'!GE35=\"\",\"\",'[2]MONE(M)CARD'!GE35)","v":"n.d."},"n.d.","n.d.","n.d.","n.d.","n.d.","n.d.","n.d.","n.d.",null,"n.d.","n.d.","n.d.","n.d.","n.d.",{"$f":"IF('[2]MONE(M)CAPARD'!GS35=\"\",\"\",'[2]MONE(M)CAPARD'!GS35)","v":"n.d."},{"$f":"IF('[2]MONE(M)CARD'!HA35=\"\",\"\",'[2]MONE(M)CAPARD'!HA35)","v":"n.d."},{"$f":"IF('[2]MONE(M)CAPARD'!HB35=\"\",\"\",'[2]MONE(M)CAPARD'!HB35)","v":"n.d."},"n.d.","n.d.","n.d.","n.d.","n.d.","n.d.","n.d.","n.d.","n.d.","n.d.","n.d.","n.d.","n.d.","n.d.",{"$f":"IF('[2]MONE(M)CAPARD'!AS35=\"\",\"\",'[2]MONE(M)CAPARD'!AS35)","v":"n.d."},{"$f":"IF('[2]MONE(M)CAPARD'!AT35=\"\",\"\",'[2]MONE(M)CAPARD'!AT35)","v":"n.a."},{"$f":"IF('[2]MONE(M)CAPARD'!AU35=\"\",\"\",'[2]MONE(M)CAPARD'!AU35)","v":"n.d."},{"$f":"IF('[2]MONE(M)CAPARD'!AV35=\"\",\"\",'[2]MONE(M)CAPARD'!AV35)","v":"n.d."},{"$f":"IF('[2]MONE(M)CAPARD'!AW35=\"\",\"\",'[2]MONE(M)CAPARD'!AW35)","v":"n.a."},{"$f":"IF('[2]MONE(M)CAPARD'!AX35=\"\",\"\",'[2]MONE(M)CAPARD'!AX35)","v":"n.d."},{"$f":"IF('[2]MONE(M)CAPARD'!AY35=\"\",\"\",'[2]MONE(M)CAPARD'!AY35)","v":"n.a."},{"$f":"IF('[2]FISCAL(M)'!$K35=\"\",\"\",'[2]FISCAL(M)'!$K35)","v":"n.d."},{"$f":"IF('[2]FISCAL(M)'!$L35=\"\",\"\",'[2]FISCAL(M)'!$L35)","v":"n.d."},{"$f":"IF('[2]FISCAL(M)'!$AY35=\"\",\"\",'[2]FISCAL(M)'!$AY35)","v":"n.d."},{"$f":"IF('[2]FISCAL(M)'!$BI35=\"\",\"\",'[2]FISCAL(M)'!$BI35)","v":"n.d."},{"$f":"IF('[2]FISCAL(M)'!$BS35=\"\",\"\",'[2]FISCAL(M)'!$BS35)","v":"n.d."},{"$f":"IF('[2]FISCAL(M)'!$AZ35=\"\",\"\",'[2]FISCAL(M)'!$AZ35)","v":"n.d."},{"$f":"IF('[2]FISCAL(M)'!$BJ35=\"\",\"\",'[2]FISCAL(M)'!$BJ35)","v":"n.d."},{"$f":"IF('[2]FISCAL(M)'!$BT35=\"\",\"\",'[2]FISCAL(M)'!$BT35)","v":"n.d."},{"$f":"IF('[3]MONE(M)'!$AO35=\"\",\"\",'[3]MONE(M)'!$AO35)","v":"n.d."},{"$f":"IF('[4]MONE(M)'!$AO35=\"\",\"\",'[4]MONE(M)'!$AO35)","v":"n.d."},{"$f":"IF('[5]MONE(M)'!$AO35=\"\",\"\",'[5]MONE(M)'!$AO35)","v":"n.d."},{"$f":"+'[1]MONE(M)'!$AO35","v":"n.d."},{"$f":"IF('[6]MONE(M)'!$AO35=\"\",\"\",'[6]MONE(M)'!$AO35)","v":"n.d."},{"$f":"IF('[7]MONE(M)'!$AO35=\"\",\"\",'[7]MONE(M)'!$AO35)","v":"n.d."},{"$f":"IF('[8]MONE(M)'!$AO35=\"\",\"\",'[8]MONE(M)'!$AO35)","v":"n.d."},"n.d.","n.d.","n.d.","n.d.","n.d.","n.d.","n.d.",{"$f":"IF('[2]FISCAL(M)'!$K35=\"\",\"\",'[2]FISCAL(M)'!$K35)","v":"n.d."},"n.d.","n.d.",{"$f":"IF('[2]FISCAL(M)'!$L35=\"\",\"\",'[2]FISCAL(M)'!$L35)","v":"n.d."},"n.d.","n.d.","n.d.","n.d.","n.d.","n.d.","n.d.","n.d.","n.d.","n.d.","n.d.","n.d.","n.d.","n.d.","n.d.","n.d.","n.d.","n.d."]
[1992,"marzo","1992-marzo",{"$f":"IF('[2]REAL IPC(M)'!$AL36=\"\",\"\",+'[2]REAL IPC(M)'!$AL36)","v":"n.d."},{"$f":"IF('[2]REAL IPC(M)'!$BE36=\"\",\"\",+'[2]REAL IPC(M)'!$BE36)","v":"n.d."},{"$f":"IF('[2]REAL IPC(M)'!$AM36=\"\",\"\",+'[2]REAL IPC(M)'!$AM36)","v":"n.d."},{"$f":"IF('[2]REAL IPC(M)'!$BI36=\"\",\"\",+'[2]REAL IPC(M)'!$BI36)","v":"n.d."},{"$f":"IF('[2]REAL IMAE(M)'!BJ36=\"\",\"\",'[2]REAL IMAE(M)'!BJ36)","v":"n.d."},{"$f":"IF('[2]REAL IMAE(M)'!BK36=\"\",\"\",'[2]REAL IMAE(M)'!BK36)","v":"n.d."},{"$f":"IF('[2]REAL IMAE(M)'!BN36=\"\",\"\",'[2]REAL IMAE(M)'!BN36)","v":"n.d."},{"$f":"IF('[2]REAL IMAE(M)'!BO36=\"\",\"\",'[2]REAL IMAE(M)'!BO36)","v":"n.d."},{"$f":"IF('[2]EXT RIN(M)'!$K36=\"\",\"\",'[2]EXT RIN(M)'!$K36)","v":"n.d."},"",{"$f":"IF('[2]EXT RIN(M)'!$L36=\"\",\"\",'[2]EXT RIN(M)'!$L36)","v":"n.d."},"",{"$f":"IF('[2]MONE(M)CARD'!EG36=\"\",\"\",'[2]MONE(M)CARD'!EG36)","v":"n.d."},{"$f":"IF('[2]MONE(M)CARD'!EK36=\"\",\"\",'[2]MONE(M)CARD'!EK36)","v":"n.d."},{"$f":"IF('[2]MONE(M)CARD'!EP36=\"\",\"\",'[2]MONE(M)CARD'!EP36)","v":"n.d."},{"$f":"IF('[2]MONE(M)CARD'!ES36=\"\",\"\",'[2]MONE(M)CARD'!ES36)","v":"n.d."},{"$f":"IF('[2]MONE(M)CARD'!EV36=\"\",\"\",'[2]MONE(M)CARD'!EV36)","v":"n.d."},{"$f":"IF('[2]MONE(M)CARD'!EZ36=\"\",\"\",'[2]MONE(M)CARD'!EZ36)","v":"n.d."},{"$f":"IF('[2]MONE(M)CAPARD'!FC36=\"\",\"\",'[2]MONE(M)CAPARD'!FC36)","v":"n.d."},{"$f":"IF('[2]MONE(M)CAPARD'!FG36=\"\",\"\",'[2]MONE(M)CAPARD'!FG36)","v":"n.d."},{"$f":"IF('[2]MONE(M)CAPARD'!FL36=\"\",\"\",'[2]MONE(M)CAPARD'!FL36)","v":"n.d."},{"$f":"IF('[2]MONE(M)CAPARD'!FO36=\"\",\"\",'[2]MONE(M)CAPARD'!FO36)","v":"n.d."},{"$f":"IF('[2]MONE(M)CAPARD'!FR36=\"\",\"\",'[2]MONE(M)CAPARD'!FR36)","v":"n.d."},{"$f":"IF('[2]MONE(M)CAPARD'!FV36=\"\",\"\",'[2]MONE(M)CAPARD'!FV36)","v":"n.d."},{"$f":"IF('[2]MONE(M)CARD'!FV36=\"\",\"\",'[2]MONE(M)CARD'!FV36)","v":""},{"$f":"IF('[2]MONE(M)CARD'!GD36=\"\",\"\",'[2]MONE(M)CARD'!GD36)","v":"n.d."},{"$f":"IF('[2]MONE(M)CARD'!GE36=\"\",\"\",'[2]MONE(M)CARD'!GE36)","v":"n.d."},"n.d.","n.d.","n.d.","n.d.","n.d.","n.d.","n.d.","n.d.",null,"n.d.","n.d.","n.d.","n.d.","n.d.",{"$f":"IF('[2]MONE(M)CAPARD'!GS36=\"\",\"\",'[2]MONE(M)CAPARD'!GS36)","v":"n.d."},{"$f":"IF('[2]MONE(M)CARD'!HA36=\"\",\"\",'[2]MONE(M)CAPARD'!HA36)","v":"n.d."},{"$f":"IF('[2]MONE(M)CAPARD'!HB36=\"\",\"\",'[2]MONE(M)CAPARD'!HB36)","v":"n.d."},"n.d.","n.d.","n.d.","n.d.","n.d.","n.d.","n.d.","n.d.","n.d.","n.d.","n.d.","n.d.","n.d.","n.d.",{"$f":"IF('[2]MONE(M)CAPARD'!AS36=\"\",\"\",'[2]MONE(M)CAPARD'!AS36)","v":"n.d."},{"$f":"IF('[2]MONE(M)CAPARD'!AT36=\"\",\"\",'[2]MONE(M)CAPARD'!AT36)","v":"n.a."},{"$f":"IF('[2]MONE(M)CAPARD'!AU36=\"\",\"\",'[2]MONE(M)CAPARD'!AU36)","v":"n.d."},{"$f":"IF('[2]MONE(M)CAPARD'!AV36=\"\",\"\",'[2]MONE(M)CAPARD'!AV36)","v":"n.d."},{"$f":"IF('[2]MONE(M)CAPARD'!AW36=\"\",\"\",'[2]MONE(M)CAPARD'!AW36)","v":"n.a."},{"$f":"IF('[2]MONE(M)CAPARD'!AX36=\"\",\"\",'[2]MONE(M)CAPARD'!AX36)","v":"n.d."},{"$f":"IF('[2]MONE(M)CAPARD'!AY36=\"\",\"\",'[2]MONE(M)CAPARD'!AY36)","v":"n.a."},{"$f":"IF('[2]FISCAL(M)'!$K36=\"\",\"\",'[2]FISCAL(M)'!$K36)","v":"n.d."},{"$f":"IF('[2]FISCAL(M)'!$L36=\"\",\"\",'[2]FISCAL(M)'!$L36)","v":"n.d."},{"$f":"IF('[2]FISCAL(M)'!$AY36=\"\",\"\",'[2]FISCAL(M)'!$AY36)","v":"n.d."},{"$f":"IF('[2]FISCAL(M)'!$BI36=\"\",\"\",'[2]FISCAL(M)'!$BI36)","v":"n.d."},{"$f":"IF('[2]FISCAL(M)'!$BS36=\"\",\"\",'[2]FISCAL(M)'!$BS36)","v":"n.d."},{"$f":"IF('[2]FISCAL(M)'!$AZ36=\"\",\"\",'[2]FISCAL(M)'!$AZ36)","v":"n.d."},{"$f":"IF('[2]FISCAL(M)'!$BJ36=\"\",\"\",'[2]FISCAL(M)'!$BJ36)","v":"n.d."},{"$f":"IF('[2]FISCAL(M)'!$BT36=\"\",\"\",'[2]FISCAL(M)'!$BT36)","v":"n.d."},{"$f":"IF('[3]MONE(M)'!$AO36=\"\",\"\",'[3]MONE(M)'!$AO36)","v":"n.d."},{"$f":"IF('[4]MONE(M)'!$AO36=\"\",\"\",'[4]MONE(M)'!$AO36)","v":"n.d."},{"$f":"IF('[5]MONE(M)'!$AO36=\"\",\"\",'[5]MONE(M)'!$AO36)","v":"n.d."},{"$f":"+'[1]MONE(M)'!$AO36","v":"n.d."},{"$f":"IF('[6]MONE(M)'!$AO36=\"\",\"\",'[6]MONE(M)'!$AO36)","v":"n.d."},{"$f":"IF('[7]MONE(M)'!$AO36=\"\",\"\",'[7]MONE(M)'!$AO36)","v":"n.d."},{"$f":"IF('[8]MONE(M)'!$AO36=\"\",\"\",'[8]MONE(M)'!$AO36)","v":"n.d."},"n.d.","n.d.","n.d.","n.d.","n.d.","n.d.","n.d.",{"$f":"IF('[2]FISCAL(M)'!$K36=\"\",\"\",'[2]FISCAL(M)'!$K36)","v":"n.d."},"n.d.","n.d.",{"$f":"IF('[2]FISCAL(M)'!$L36=\"\",\"\",'[2]FISCAL(M)'!$L36)","v":"n.d."},"n.d.","n.d.","n.d.","n.d.","n.d.","n.d.","n.d.","n.d.","n.d.","n.d.","n.d.","n.d.","n.d.","n.d.","n.d.","n.d.","n.d.","n.d."]
[1992,"abril","1992-abril",{"$f":"IF('[2]REAL IPC(M)'!$AL37=\"\",\"\",+'[2]REAL IPC(M)'!$AL37)","v":"n.d."},{"$f":"IF('[2]REAL IPC(M)'!$BE37=\"\",\"\",+'[2]REAL IPC(M)'!$BE37)","v":"n.d."},{"$f":"IF('[2]REAL IPC(M)'!$AM37=\"\",\"\",+'[2]REAL IPC(M)'!$AM37)","v":"n.d."},{"$f":"IF('[2]REAL IPC(M)'!$BI37=\"\",\"\",+'[2]REAL IPC(M)'!$BI37)","v":"n.d."},{"$f":"IF('[2]REAL IMAE(M)'!BJ37=\"\",\"\",'[2]REAL IMAE(M)'!BJ37)","v":"n.d."},{"$f":"IF('[2]REAL IMAE(M)'!BK37=\"\",\"\",'[2]REAL IMAE(M)'!BK37)","v":"n.d."},{"$f":"IF('[2]REAL IMAE(M)'!BN37=\"\",\"\",'[2]REAL IMAE(M)'!BN37)","v":"n.d."},{"$f":"IF('[2]REAL IMAE(M)'!BO37=\"\",\"\",'[2]REAL IMAE(M)'!BO37)","v":"n.d."},{"$f":"IF('[2]EXT RIN(M)'!$K37=\"\",\"\",'[2]EXT RIN(M)'!$K37)","v":"n.d."},"",{"$f":"IF('[2]EXT RIN(M)'!$L37=\"\",\"\",'[2]EXT RIN(M)'!$L37)","v":"n.d."},"",{"$f":"IF('[2]MONE(M)CARD'!EG37=\"\",\"\",'[2]MONE(M)CARD'!EG37)","v":"n.d."},{"$f":"IF('[2]MONE(M)CARD'!EK37=\"\",\"\",'[2]MONE(M)CARD'!EK37)","v":"n.d."},{"$f":"IF('[2]MONE(M)CARD'!EP37=\"\",\"\",'[2]MONE(M)CARD'!EP37)","v":"n.d."},{"$f":"IF('[2]MONE(M)CARD'!ES37=\"\",\"\",'[2]MONE(M)CARD'!ES37)","v":"n.d."},{"$f":"IF('[2]MONE(M)CARD'!EV37=\"\",\"\",'[2]MONE(M)CARD'!EV37)","v":"n.d."},{"$f":"IF('[2]MONE(M)CARD'!EZ37=\"\",\"\",'[2]MONE(M)CARD'!EZ37)","v":"n.d."},{"$f":"IF('[2]MONE(M)CAPARD'!FC37=\"\",\"\",'[2]MONE(M)CAPARD'!FC37)","v":"n.d."},{"$f":"IF('[2]MONE(M)CAPARD'!FG37=\"\",\"\",'[2]MONE(M)CAPARD'!FG37)","v":"n.d."},{"$f":"IF('[2]MONE(M)CAPARD'!FL37=\"\",\"\",'[2]MONE(M)CAPARD'!FL37)","v":"n.d."},{"$f":"IF('[2]MONE(M)CAPARD'!FO37=\"\",\"\",'[2]MONE(M)CAPARD'!FO37)","v":"n.d."},{"$f":"IF('[2]MONE(M)CAPARD'!FR37=\"\",\"\",'[2]MONE(M)CAPARD'!FR37)","v":"n.d."},{"$f":"IF('[2]MONE(M)CAPARD'!FV37=\"\",\"\",'[2]MONE(M)CAPARD'!FV37)","v":"n.d."},{"$f":"IF('[2]MONE(M)CARD'!FV37=\"\",\"\",'[2]MONE(M)CARD'!FV37)","v":""},{"$f":"IF('[2]MONE(M)CARD'!GD37=\"\",\"\",'[2]MONE(M)CARD'!GD37)","v":"n.d."},{"$f":"IF('[2]MONE(M)CARD'!GE37=\"\",\"\",'[2]MONE(M)CARD'!GE37)","v":"n.d."},"n.d.","n.d.","n.d.","n.d.","n.d.","n.d.","n.d.","n.d.",null,"n.d.","n.d.","n.d.","n.d.","n.d.",{"$f":"IF('[2]MONE(M)CAPARD'!GS37=\"\",\"\",'[2]MONE(M)CAPARD'!GS37)","v":"n.d."},{"$f":"IF('[2]MONE(M)CARD'!HA37=\"\",\"\",'[2]MONE(M)CAPARD'!HA37)","v":"n.d."},{"$f":"IF('[2]MONE(M)CAPARD'!HB37=\"\",\"\",'[2]MONE(M)CAPARD'!HB37)","v":"n.d."},"n.d.","n.d.","n.d.","n.d.","n.d.","n.d.","n.d.","n.d.","n.d.","n.d.","n.d.","n.d.","n.d.","n.d.",{"$f":"IF('[2]MONE(M)CAPARD'!AS37=\"\",\"\",'[2]MONE(M)CAPARD'!AS37)","v":"n.d."},{"$f":"IF('[2]MONE(M)CAPARD'!AT37=\"\",\"\",'[2]MONE(M)CAPARD'!AT37)","v":"n.a."},{"$f":"IF('[2]MONE(M)CAPARD'!AU37=\"\",\"\",'[2]MONE(M)CAPARD'!AU37)","v":"n.d."},{"$f":"IF('[2]MONE(M)CAPARD'!AV37=\"\",\"\",'[2]MONE(M)CAPARD'!AV37)","v":"n.d."},{"$f":"IF('[2]MONE(M)CAPARD'!AW37=\"\",\"\",'[2]MONE(M)CAPARD'!AW37)","v":"n.a."},{"$f":"IF('[2]MONE(M)CAPARD'!AX37=\"\",\"\",'[2]MONE(M)CAPARD'!AX37)","v":"n.d."},{"$f":"IF('[2]MONE(M)CAPARD'!AY37=\"\",\"\",'[2]MONE(M)CAPARD'!AY37)","v":"n.a."},{"$f":"IF('[2]FISCAL(M)'!$K37=\"\",\"\",'[2]FISCAL(M)'!$K37)","v":"n.d."},{"$f":"IF('[2]FISCAL(M)'!$L37=\"\",\"\",'[2]FISCAL(M)'!$L37)","v":"n.d."},{"$f":"IF('[2]FISCAL(M)'!$AY37=\"\",\"\",'[2]FISCAL(M)'!$AY37)","v":"n.d."},{"$f":"IF('[2]FISCAL(M)'!$BI37=\"\",\"\",'[2]FISCAL(M)'!$BI37)","v":"n.d."},{"$f":"IF('[2]FISCAL(M)'!$BS37=\"\",\"\",'[2]FISCAL(M)'!$BS37)","v":"n.d."},{"$f":"IF('[2]FISCAL(M)'!$AZ37=\"\",\"\",'[2]FISCAL(M)'!$AZ37)","v":"n.d."},{"$f":"IF('[2]FISCAL(M)'!$BJ37=\"\",\"\",'[2]FISCAL(M)'!$BJ37)","v":"n.d."},{"$f":"IF('[2]FISCAL(M)'!$BT37=\"\",\"\",'[2]FISCAL(M)'!$BT37)","v":"n.d."},{"$f":"IF('[3]MONE(M)'!$AO37=\"\",\"\",'[3]MONE(M)'!$AO37)","v":"n.d."},{"$f":"IF('[4]MONE(M)'!$AO37=\"\",\"\",'[4]MONE(M)'!$AO37)","v":"n.d."},{"$f":"IF('[5]MONE(M)'!$AO37=\"\",\"\",'[5]MONE(M)'!$AO37)","v":"n.d."},{"$f":"+'[1]MONE(M)'!$AO37","v":"n.d."},{"$f":"IF('[6]MONE(M)'!$AO37=\"\",\"\",'[6]MONE(M)'!$AO37)","v":"n.d."},{"$f":"IF('[7]MONE(M)'!$AO37=\"\",\"\",'[7]MONE(M)'!$AO37)","v":"n.d."},{"$f":"IF('[8]MONE(M)'!$AO37=\"\",\"\",'[8]MONE(M)'!$AO37)","v":"n.d."},"n.d.","n.d.","n.d.","n.d.","n.d.","n.d.","n.d.",{"$f":"IF('[2]FISCAL(M)'!$K37=\"\",\"\",'[2]FISCAL(M)'!$K37)","v":"n.d."},"n.d.","n.d.",{"$f":"IF('[2]FISCAL(M)'!$L37=\"\",\"\",'[2]FISCAL(M)'!$L37)","v":"n.d."},"n.d.","n.d.","n.d.","n.d.","n.d.","n.d.","n.d.","n.d.","n.d.","n.d.","n.d.","n.d.","n.d.","n.d.","n.d.","n.d.","n.d.","n.d."]
[1992,"mayo ","1992-mayo ",{"$f":"IF('[2]REAL IPC(M)'!$AL38=\"\",\"\",+'[2]REAL IPC(M)'!$AL38)","v":"n.d."},{"$f":"IF('[2]REAL IPC(M)'!$BE38=\"\",\"\",+'[2]REAL IPC(M)'!$BE38)","v":"n.d."},{"$f":"IF('[2]REAL IPC(M)'!$AM38=\"\",\"\",+'[2]REAL IPC(M)'!$AM38)","v":"n.d."},{"$f":"IF('[2]REAL IPC(M)'!$BI38=\"\",\"\",+'[2]REAL IPC(M)'!$BI38)","v":"n.d."},{"$f":"IF('[2]REAL IMAE(M)'!BJ38=\"\",\"\",'[2]REAL IMAE(M)'!BJ38)","v":"n.d."},{"$f":"IF('[2]REAL IMAE(M)'!BK38=\"\",\"\",'[2]REAL IMAE(M)'!BK38)","v":"n.d."},{"$f":"IF('[2]REAL IMAE(M)'!BN38=\"\",\"\",'[2]REAL IMAE(M)'!BN38)","v":"n.d."},{"$f":"IF('[2]REAL IMAE(M)'!BO38=\"\",\"\",'[2]REAL IMAE(M)'!BO38)","v":"n.d."},{"$f":"IF('[2]EXT RIN(M)'!$K38=\"\",\"\",'[2]EXT RIN(M)'!$K38)","v":"n.d."},"",{"$f":"IF('[2]EXT RIN(M)'!$L38=\"\",\"\",'[2]EXT RIN(M)'!$L38)","v":"n.d."},"",{"$f":"IF('[2]MONE(M)CARD'!EG38=\"\",\"\",'[2]MONE(M)CARD'!EG38)","v":"n.d."},{"$f":"IF('[2]MONE(M)CARD'!EK38=\"\",\"\",'[2]MONE(M)CARD'!EK38)","v":"n.d."},{"$f":"IF('[2]MONE(M)CARD'!EP38=\"\",\"\",'[2]MONE(M)CARD'!EP38)","v":"n.d."},{"$f":"IF('[2]MONE(M)CARD'!ES38=\"\",\"\",'[2]MONE(M)CARD'!ES38)","v":"n.d."},{"$f":"IF('[2]MONE(M)CARD'!EV38=\"\",\"\",'[2]MONE(M)CARD'!EV38)","v":"n.d."},{"$f":"IF('[2]MONE(M)CARD'!EZ38=\"\",\"\",'[2]MONE(M)CARD'!EZ38)","v":"n.d."},{"$f":"IF('[2]MONE(M)CAPARD'!FC38=\"\",\"\",'[2]MONE(M)CAPARD'!FC38)","v":"n.d."},{"$f":"IF('[2]MONE(M)CAPARD'!FG38=\"\",\"\",'[2]MONE(M)CAPARD'!FG38)","v":"n.d."},{"$f":"IF('[2]MONE(M)CAPARD'!FL38=\"\",\"\",'[2]MONE(M)CAPARD'!FL38)","v":"n.d."},{"$f":"IF('[2]MONE(M)CAPARD'!FO38=\"\",\"\",'[2]MONE(M)CAPARD'!FO38)","v":"n.d."},{"$f":"IF('[2]MONE(M)CAPARD'!FR38=\"\",\"\",'[2]MONE(M)CAPARD'!FR38)","v":"n.d."},{"$f":"IF('[2]MONE(M)CAPARD'!FV38=\"\",\"\",'[2]MONE(M)CAPARD'!FV38)","v":"n.d."},{"$f":"IF('[2]MONE(M)CARD'!FV38=\"\",\"\",'[2]MONE(M)CARD'!FV38)","v":""},{"$f":"IF('[2]MONE(M)CARD'!GD38=\"\",\"\",'[2]MONE(M)CARD'!GD38)","v":"n.d."},{"$f":"IF('[2]MONE(M)CARD'!GE38=\"\",\"\",'[2]MONE(M)CARD'!GE38)","v":"n.d."},"n.d.","n.d.","n.d.","n.d.","n.d.","n.d.","n.d.","n.d.",null,"n.d.","n.d.","n.d.","n.d.","n.d.",{"$f":"IF('[2]MONE(M)CAPARD'!GS38=\"\",\"\",'[2]MONE(M)CAPARD'!GS38)","v":"n.d."},{"$f":"IF('[2]MONE(M)CARD'!HA38=\"\",\"\",'[2]MONE(M)CAPARD'!HA38)","v":"n.d."},{"$f":"IF('[2]MONE(M)CAPARD'!HB38=\"\",\"\",'[2]MONE(M)CAPARD'!HB38)","v":"n.d."},"n.d.","n.d.","n.d.","n.d.","n.d.","n.d.","n.d.","n.d.","n.d.","n.d.","n.d.","n.d.","n.d.","n.d.",{"$f":"IF('[2]MONE(M)CAPARD'!AS38=\"\",\"\",'[2]MONE(M)CAPARD'!AS38)","v":"n.d."},{"$f":"IF('[2]MONE(M)CAPARD'!AT38=\"\",\"\",'[2]MONE(M)CAPARD'!AT38)","v":"n.a."},{"$f":"IF('[2]MONE(M)CAPARD'!AU38=\"\",\"\",'[2]MONE(M)CAPARD'!AU38)","v":"n.d."},{"$f":"IF('[2]MONE(M)CAPARD'!AV38=\"\",\"\",'[2]MONE(M)CAPARD'!AV38)","v":"n.d."},{"$f":"IF('[2]MONE(M)CAPARD'!AW38=\"\",\"\",'[2]MONE(M)CAPARD'!AW38)","v":"n.a."},{"$f":"IF('[2]MONE(M)CAPARD'!AX38=\"\",\"\",'[2]MONE(M)CAPARD'!AX38)","v":"n.d."},{"$f":"IF('[2]MONE(M)CAPARD'!AY38=\"\",\"\",'[2]MONE(M)CAPARD'!AY38)","v":"n.a."},{"$f":"IF('[2]FISCAL(M)'!$K38=\"\",\"\",'[2]FISCAL(M)'!$K38)","v":"n.d."},{"$f":"IF('[2]FISCAL(M)'!$L38=\"\",\"\",'[2]FISCAL(M)'!$L38)","v":"n.d."},{"$f":"IF('[2]FISCAL(M)'!$AY38=\"\",\"\",'[2]FISCAL(M)'!$AY38)","v":"n.d."},{"$f":"IF('[2]FISCAL(M)'!$BI38=\"\",\"\",'[2]FISCAL(M)'!$BI38)","v":"n.d."},{"$f":"IF('[2]FISCAL(M)'!$BS38=\"\",\"\",'[2]FISCAL(M)'!$BS38)","v":"n.d."},{"$f":"IF('[2]FISCAL(M)'!$AZ38=\"\",\"\",'[2]FISCAL(M)'!$AZ38)","v":"n.d."},{"$f":"IF('[2]FISCAL(M)'!$BJ38=\"\",\"\",'[2]FISCAL(M)'!$BJ38)","v":"n.d."},{"$f":"IF('[2]FISCAL(M)'!$BT38=\"\",\"\",'[2]FISCAL(M)'!$BT38)","v":"n.d."},{"$f":"IF('[3]MONE(M)'!$AO38=\"\",\"\",'[3]MONE(M)'!$AO38)","v":"n.d."},{"$f":"IF('[4]MONE(M)'!$AO38=\"\",\"\",'[4]MONE(M)'!$AO38)","v":"n.d."},{"$f":"IF('[5]MONE(M)'!$AO38=\"\",\"\",'[5]MONE(M)'!$AO38)","v":"n.d."},{"$f":"+'[1]MONE(M)'!$AO38","v":"n.d."},{"$f":"IF('[6]MONE(M)'!$AO38=\"\",\"\",'[6]MONE(M)'!$AO38)","v":"n.d."},{"$f":"IF('[7]MONE(M)'!$AO38=\"\",\"\",'[7]MONE(M)'!$AO38)","v":"n.d."},{"$f":"IF('[8]MONE(M)'!$AO38=\"\",\"\",'[8]MONE(M)'!$AO38)","v":"n.d."},"n.d.","n.d.","n.d.","n.d.","n.d.","n.d.","n.d.",{"$f":"IF('[2]FISCAL(M)'!$K38=\"\",\"\",'[2]FISCAL(M)'!$K38)","v":"n.d."},"n.d.","n.d.",{"$f":"IF('[2]FISCAL(M)'!$L38=\"\",\"\",'[2]FISCAL(M)'!$L38)","v":"n.d."},"n.d.","n.d.","n.d.","n.d.","n.d.","n.d.","n.d.","n.d.","n.d.","n.d.","n.d.","n.d.","n.d.","n.d.","n.d.","n.d.","n.d.","n.d."]
[1992,"junio ","1992-junio ",{"$f":"IF('[2]REAL IPC(M)'!$AL39=\"\",\"\",+'[2]REAL IPC(M)'!$AL39)","v":"n.d."},{"$f":"IF('[2]REAL IPC(M)'!$BE39=\"\",\"\",+'[2]REAL IPC(M)'!$BE39)","v":"n.d."},{"$f":"IF('[2]REAL IPC(M)'!$AM39=\"\",\"\",+'[2]REAL IPC(M)'!$AM39)","v":"n.d."},{"$f":"IF('[2]REAL IPC(M)'!$BI39=\"\",\"\",+'[2]REAL IPC(M)'!$BI39)","v":"n.d."},{"$f":"IF('[2]REAL IMAE(M)'!BJ39=\"\",\"\",'[2]REAL IMAE(M)'!BJ39)","v":"n.d."},{"$f":"IF('[2]REAL IMAE(M)'!BK39=\"\",\"\",'[2]REAL IMAE(M)'!BK39)","v":"n.d."},{"$f":"IF('[2]REAL IMAE(M)'!BN39=\"\",\"\",'[2]REAL IMAE(M)'!BN39)","v":"n.d."},{"$f":"IF('[2]REAL IMAE(M)'!BO39=\"\",\"\",'[2]REAL IMAE(M)'!BO39)","v":"n.d."},{"$f":"IF('[2]EXT RIN(M)'!$K39=\"\",\"\",'[2]EXT RIN(M)'!$K39)","v":"n.d."},"",{"$f":"IF('[2]EXT RIN(M)'!$L39=\"\",\"\",'[2]EXT RIN(M)'!$L39)","v":"n.d."},"",{"$f":"IF('[2]MONE(M)CARD'!EG39=\"\",\"\",'[2]MONE(M)CARD'!EG39)","v":"n.d."},{"$f":"IF('[2]MONE(M)CARD'!EK39=\"\",\"\",'[2]MONE(M)CARD'!EK39)","v":"n.d."},{"$f":"IF('[2]MONE(M)CARD'!EP39=\"\",\"\",'[2]MONE(M)CARD'!EP39)","v":"n.d."},{"$f":"IF('[2]MONE(M)CARD'!ES39=\"\",\"\",'[2]MONE(M)CARD'!ES39)","v":"n.d."},{"$f":"IF('[2]MONE(M)CARD'!EV39=\"\",\"\",'[2]MONE(M)CARD'!EV39)","v":"n.d."},{"$f":"IF('[2]MONE(M)CARD'!EZ39=\"\",\"\",'[2]MONE(M)CARD'!EZ39)","v":"n.d."},{"$f":"IF('[2]MONE(M)CAPARD'!FC39=\"\",\"\",'[2]MONE(M)CAPARD'!FC39)","v":"n.d."},{"$f":"IF('[2]MONE(M)CAPARD'!FG39=\"\",\"\",'[2]MONE(M)CAPARD'!FG39)","v":"n.d."},{"$f":"IF('[2]MONE(M)CAPARD'!FL39=\"\",\"\",'[2]MONE(M)CAPARD'!FL39)","v":"n.d."},{"$f":"IF('[2]MONE(M)CAPARD'!FO39=\"\",\"\",'[2]MONE(M)CAPARD'!FO39)","v":"n.d."},{"$f":"IF('[2]MONE(M)CAPARD'!FR39=\"\",\"\",'[2]MONE(M)CAPARD'!FR39)","v":"n.d."},{"$f":"IF('[2]MONE(M)CAPARD'!FV39=\"\",\"\",'[2]MONE(M)CAPARD'!FV39)","v":"n.d."},{"$f":"IF('[2]MONE(M)CARD'!FV39=\"\",\"\",'[2]MONE(M)CARD'!FV39)","v":""},{"$f":"IF('[2]MONE(M)CARD'!GD39=\"\",\"\",'[2]MONE(M)CARD'!GD39)","v":"n.d."},{"$f":"IF('[2]MONE(M)CARD'!GE39=\"\",\"\",'[2]MONE(M)CARD'!GE39)","v":"n.d."},"n.d.","n.d.","n.d.","n.d.","n.d.","n.d.","n.d.","n.d.",null,"n.d.","n.d.","n.d.","n.d.","n.d.",{"$f":"IF('[2]MONE(M)CAPARD'!GS39=\"\",\"\",'[2]MONE(M)CAPARD'!GS39)","v":"n.d."},{"$f":"IF('[2]MONE(M)CARD'!HA39=\"\",\"\",'[2]MONE(M)CAPARD'!HA39)","v":"n.d."},{"$f":"IF('[2]MONE(M)CAPARD'!HB39=\"\",\"\",'[2]MONE(M)CAPARD'!HB39)","v":"n.d."},"n.d.","n.d.","n.d.","n.d.","n.d.","n.d.","n.d.","n.d.","n.d.","n.d.","n.d.","n.d.","n.d.","n.d.",{"$f":"IF('[2]MONE(M)CAPARD'!AS39=\"\",\"\",'[2]MONE(M)CAPARD'!AS39)","v":"n.d."},{"$f":"IF('[2]MONE(M)CAPARD'!AT39=\"\",\"\",'[2]MONE(M)CAPARD'!AT39)","v":"n.a."},{"$f":"IF('[2]MONE(M)CAPARD'!AU39=\"\",\"\",'[2]MONE(M)CAPARD'!AU39)","v":"n.d."},{"$f":"IF('[2]MONE(M)CAPARD'!AV39=\"\",\"\",'[2]MONE(M)CAPARD'!AV39)","v":"n.d."},{"$f":"IF('[2]MONE(M)CAPARD'!AW39=\"\",\"\",'[2]MONE(M)CAPARD'!AW39)","v":"n.a."},{"$f":"IF('[2]MONE(M)CAPARD'!AX39=\"\",\"\",'[2]MONE(M)CAPARD'!AX39)","v":"n.d."},{"$f":"IF('[2]MONE(M)CAPARD'!AY39=\"\",\"\",'[2]MONE(M)CAPARD'!AY39)","v":"n.a."},{"$f":"IF('[2]FISCAL(M)'!$K39=\"\",\"\",'[2]FISCAL(M)'!$K39)","v":"n.d."},{"$f":"IF('[2]FISCAL(M)'!$L39=\"\",\"\",'[2]FISCAL(M)'!$L39)","v":"n.d."},{"$f":"IF('[2]FISCAL(M)'!$AY39=\"\",\"\",'[2]FISCAL(M)'!$AY39)","v":"n.d."},{"$f":"IF('[2]FISCAL(M)'!$BI39=\"\",\"\",'[2]FISCAL(M)'!$BI39)","v":"n.d."},{"$f":"IF('[2]FISCAL(M)'!$BS39=\"\",\"\",'[2]FISCAL(M)'!$BS39)","v":"n.d."},{"$f":"IF('[2]FISCAL(M)'!$AZ39=\"\",\"\",'[2]FISCAL(M)'!$AZ39)","v":"n.d."},{"$f":"IF('[2]FISCAL(M)'!$BJ39=\"\",\"\",'[2]FISCAL(M)'!$BJ39)","v":"n.d."},{"$f":"IF('[2]FISCAL(M)'!$BT39=\"\",\"\",'[2]FISCAL(M)'!$BT39)","v":"n.d."},{"$f":"IF('[3]MONE(M)'!$AO39=\"\",\"\",'[3]MONE(M)'!$AO39)","v":"n.d."},{"$f":"IF('[4]MONE(M)'!$AO39=\"\",\"\",'[4]MONE(M)'!$AO39)","v":"n.d."},{"$f":"IF('[5]MONE(M)'!$AO39=\"\",\"\",'[5]MONE(M)'!$AO39)","v":"n.d."},{"$f":"+'[1]MONE(M)'!$AO39","v":"n.d."},{"$f":"IF('[6]MONE(M)'!$AO39=\"\",\"\",'[6]MONE(M)'!$AO39)","v":"n.d."},{"$f":"IF('[7]MONE(M)'!$AO39=\"\",\"\",'[7]MONE(M)'!$AO39)","v":"n.d."},{"$f":"IF('[8]MONE(M)'!$AO39=\"\",\"\",'[8]MONE(M)'!$AO39)","v":"n.d."},"n.d.","n.d.","n.d.","n.d.","n.d.","n.d.","n.d.",{"$f":"IF('[2]FISCAL(M)'!$K39=\"\",\"\",'[2]FISCAL(M)'!$K39)","v":"n.d."},"n.d.","n.d.",{"$f":"IF('[2]FISCAL(M)'!$L39=\"\",\"\",'[2]FISCAL(M)'!$L39)","v":"n.d."},"n.d.","n.d.","n.d.","n.d.","n.d.","n.d.","n.d.","n.d.","n.d.","n.d.","n.d.","n.d.","n.d.","n.d.","n.d.","n.d.","n.d.","n.d."]
[1992,"julio","1992-julio",{"$f":"IF('[2]REAL IPC(M)'!$AL40=\"\",\"\",+'[2]REAL IPC(M)'!$AL40)","v":"n.d."},{"$f":"IF('[2]REAL IPC(M)'!$BE40=\"\",\"\",+'[2]REAL IPC(M)'!$BE40)","v":"n.d."},{"$f":"IF('[2]REAL IPC(M)'!$AM40=\"\",\"\",+'[2]REAL IPC(M)'!$AM40)","v":"n.d."},{"$f":"IF('[2]REAL IPC(M)'!$BI40=\"\",\"\",+'[2]REAL IPC(M)'!$BI40)","v":"n.d."},{"$f":"IF('[2]REAL IMAE(M)'!BJ40=\"\",\"\",'[2]REAL IMAE(M)'!BJ40)","v":"n.d."},{"$f":"IF('[2]REAL IMAE(M)'!BK40=\"\",\"\",'[2]REAL IMAE(M)'!BK40)","v":"n.d."},{"$f":"IF('[2]REAL IMAE(M)'!BN40=\"\",\"\",'[2]REAL IMAE(M)'!BN40)","v":"n.d."},{"$f":"IF('[2]REAL IMAE(M)'!BO40=\"\",\"\",'[2]REAL IMAE(M)'!BO40)","v":"n.d."},{"$f":"IF('[2]EXT RIN(M)'!$K40=\"\",\"\",'[2]EXT RIN(M)'!$K40)","v":"n.d."},"",{"$f":"IF('[2]EXT RIN(M)'!$L40=\"\",\"\",'[2]EXT RIN(M)'!$L40)","v":"n.d."},"",{"$f":"IF('[2]MONE(M)CARD'!EG40=\"\",\"\",'[2]MONE(M)CARD'!EG40)","v":"n.d."},{"$f":"IF('[2]MONE(M)CARD'!EK40=\"\",\"\",'[2]MONE(M)CARD'!EK40)","v":"n.d."},{"$f":"IF('[2]MONE(M)CARD'!EP40=\"\",\"\",'[2]MONE(M)CARD'!EP40)","v":"n.d."},{"$f":"IF('[2]MONE(M)CARD'!ES40=\"\",\"\",'[2]MONE(M)CARD'!ES40)","v":"n.d."},{"$f":"IF('[2]MONE(M)CARD'!EV40=\"\",\"\",'[2]MONE(M)CARD'!EV40)","v":"n.d."},{"$f":"IF('[2]MONE(M)CARD'!EZ40=\"\",\"\",'[2]MONE(M)CARD'!EZ40)","v":"n.d."},{"$f":"IF('[2]MONE(M)CAPARD'!FC40=\"\",\"\",'[2]MONE(M)CAPARD'!FC40)","v":"n.d."},{"$f":"IF('[2]MONE(M)CAPARD'!FG40=\"\",\"\",'[2]MONE(M)CAPARD'!FG40)","v":"n.d."},{"$f":"IF('[2]MONE(M)CAPARD'!FL40=\"\",\"\",'[2]MONE(M)CAPARD'!FL40)","v":"n.d."},{"$f":"IF('[2]MONE(M)CAPARD'!FO40=\"\",\"\",'[2]MONE(M)CAPARD'!FO40)","v":"n.d."},{"$f":"IF('[2]MONE(M)CAPARD'!FR40=\"\",\"\",'[2]MONE(M)CAPARD'!FR40)","v":"n.d."},{"$f":"IF('[2]MONE(M)CAPARD'!FV40=\"\",\"\",'[2]MONE(M)CAPARD'!FV40)","v":"n.d."},{"$f":"IF('[2]MONE(M)CARD'!FV40=\"\",\"\",'[2]MONE(M)CARD'!FV40)","v":""},{"$f":"IF('[2]MONE(M)CARD'!GD40=\"\",\"\",'[2]MONE(M)CARD'!GD40)","v":"n.d."},{"$f":"IF('[2]MONE(M)CARD'!GE40=\"\",\"\",'[2]MONE(M)CARD'!GE40)","v":"n.d."},"n.d.","n.d.","n.d.","n.d.","n.d.","n.d.","n.d.","n.d.",null,"n.d.","n.d.","n.d.","n.d.","n.d.",{"$f":"IF('[2]MONE(M)CAPARD'!GS40=\"\",\"\",'[2]MONE(M)CAPARD'!GS40)","v":"n.d."},{"$f":"IF('[2]MONE(M)CARD'!HA40=\"\",\"\",'[2]MONE(M)CAPARD'!HA40)","v":"n.d."},{"$f":"IF('[2]MONE(M)CAPARD'!HB40=\"\",\"\",'[2]MONE(M)CAPARD'!HB40)","v":"n.d."},"n.d.","n.d.","n.d.","n.d.","n.d.","n.d.","n.d.","n.d.","n.d.","n.d.","n.d.","n.d.","n.d.","n.d.",{"$f":"IF('[2]MONE(M)CAPARD'!AS40=\"\",\"\",'[2]MONE(M)CAPARD'!AS40)","v":"n.d."},{"$f":"IF('[2]MONE(M)CAPARD'!AT40=\"\",\"\",'[2]MONE(M)CAPARD'!AT40)","v":"n.a."},{"$f":"IF('[2]MONE(M)CAPARD'!AU40=\"\",\"\",'[2]MONE(M)CAPARD'!AU40)","v":"n.d."},{"$f":"IF('[2]MONE(M)CAPARD'!AV40=\"\",\"\",'[2]MONE(M)CAPARD'!AV40)","v":"n.d."},{"$f":"IF('[2]MONE(M)CAPARD'!AW40=\"\",\"\",'[2]MONE(M)CAPARD'!AW40)","v":"n.a."},{"$f":"IF('[2]MONE(M)CAPARD'!AX40=\"\",\"\",'[2]MONE(M)CAPARD'!AX40)","v":"n.d."},{"$f":"IF('[2]MONE(M)CAPARD'!AY40=\"\",\"\",'[2]MONE(M)CAPARD'!AY40)","v":"n.a."},{"$f":"IF('[2]FISCAL(M)'!$K40=\"\",\"\",'[2]FISCAL(M)'!$K40)","v":"n.d."},{"$f":"IF('[2]FISCAL(M)'!$L40=\"\",\"\",'[2]FISCAL(M)'!$L40)","v":"n.d."},{"$f":"IF('[2]FISCAL(M)'!$AY40=\"\",\"\",'[2]FISCAL(M)'!$AY40)","v":"n.d."},{"$f":"IF('[2]FISCAL(M)'!$BI40=\"\",\"\",'[2]FISCAL(M)'!$BI40)","v":"n.d."},{"$f":"IF('[2]FISCAL(M)'!$BS40=\"\",\"\",'[2]FISCAL(M)'!$BS40)","v":"n.d."},{"$f":"IF('[2]FISCAL(M)'!$AZ40=\"\",\"\",'[2]FISCAL(M)'!$AZ40)","v":"n.d."},{"$f":"IF('[2]FISCAL(M)'!$BJ40=\"\",\"\",'[2]FISCAL(M)'!$BJ40)","v":"n.d."},{"$f":"IF('[2]FISCAL(M)'!$BT40=\"\",\"\",'[2]FISCAL(M)'!$BT40)","v":"n.d."},{"$f":"IF('[3]MONE(M)'!$AO40=\"\",\"\",'[3]MONE(M)'!$AO40)","v":"n.d."},{"$f":"IF('[4]MONE(M)'!$AO40=\"\",\"\",'[4]MONE(M)'!$AO40)","v":"n.d."},{"$f":"IF('[5]MONE(M)'!$AO40=\"\",\"\",'[5]MONE(M)'!$AO40)","v":"n.d."},{"$f":"+'[1]MONE(M)'!$AO40","v":"n.d."},{"$f":"IF('[6]MONE(M)'!$AO40=\"\",\"\",'[6]MONE(M)'!$AO40)","v":"n.d."},{"$f":"IF('[7]MONE(M)'!$AO40=\"\",\"\",'[7]MONE(M)'!$AO40)","v":"n.d."},{"$f":"IF('[8]MONE(M)'!$AO40=\"\",\"\",'[8]MONE(M)'!$AO40)","v":"n.d."},"n.d.","n.d.","n.d.","n.d.","n.d.","n.d.","n.d.",{"$f":"IF('[2]FISCAL(M)'!$K40=\"\",\"\",'[2]FISCAL(M)'!$K40)","v":"n.d."},"n.d.","n.d.",{"$f":"IF('[2]FISCAL(M)'!$L40=\"\",\"\",'[2]FISCAL(M)'!$L40)","v":"n.d."},"n.d.","n.d.","n.d.","n.d.","n.d.","n.d.","n.d.","n.d.","n.d.","n.d.","n.d.","n.d.","n.d.","n.d.","n.d.","n.d.","n.d.","n.d."]
[1992,"agosto","1992-agosto",{"$f":"IF('[2]REAL IPC(M)'!$AL41=\"\",\"\",+'[2]REAL IPC(M)'!$AL41)","v":"n.d."},{"$f":"IF('[2]REAL IPC(M)'!$BE41=\"\",\"\",+'[2]REAL IPC(M)'!$BE41)","v":"n.d."},{"$f":"IF('[2]REAL IPC(M)'!$AM41=\"\",\"\",+'[2]REAL IPC(M)'!$AM41)","v":"n.d."},{"$f":"IF('[2]REAL IPC(M)'!$BI41=\"\",\"\",+'[2]REAL IPC(M)'!$BI41)","v":"n.d."},{"$f":"IF('[2]REAL IMAE(M)'!BJ41=\"\",\"\",'[2]REAL IMAE(M)'!BJ41)","v":"n.d."},{"$f":"IF('[2]REAL IMAE(M)'!BK41=\"\",\"\",'[2]REAL IMAE(M)'!BK41)","v":"n.d."},{"$f":"IF('[2]REAL IMAE(M)'!BN41=\"\",\"\",'[2]REAL IMAE(M)'!BN41)","v":"n.d."},{"$f":"IF('[2]REAL IMAE(M)'!BO41=\"\",\"\",'[2]REAL IMAE(M)'!BO41)","v":"n.d."},{"$f":"IF('[2]EXT RIN(M)'!$K41=\"\",\"\",'[2]EXT RIN(M)'!$K41)","v":"n.d."},"",{"$f":"IF('[2]EXT RIN(M)'!$L41=\"\",\"\",'[2]EXT RIN(M)'!$L41)","v":"n.d."},"",{"$f":"IF('[2]MONE(M)CARD'!EG41=\"\",\"\",'[2]MONE(M)CARD'!EG41)","v":"n.d."},{"$f":"IF('[2]MONE(M)CARD'!EK41=\"\",\"\",'[2]MONE(M)CARD'!EK41)","v":"n.d."},{"$f":"IF('[2]MONE(M)CARD'!EP41=\"\",\"\",'[2]MONE(M)CARD'!EP41)","v":"n.d."},{"$f":"IF('[2]MONE(M)CARD'!ES41=\"\",\"\",'[2]MONE(M)CARD'!ES41)","v":"n.d."},{"$f":"IF('[2]MONE(M)CARD'!EV41=\"\",\"\",'[2]MONE(M)CARD'!EV41)","v":"n.d."},{"$f":"IF('[2]MONE(M)CARD'!EZ41=\"\",\"\",'[2]MONE(M)CARD'!EZ41)","v":"n.d."},{"$f":"IF('[2]MONE(M)CAPARD'!FC41=\"\",\"\",'[2]MONE(M)CAPARD'!FC41)","v":"n.d."},{"$f":"IF('[2]MONE(M)CAPARD'!FG41=\"\",\"\",'[2]MONE(M)CAPARD'!FG41)","v":"n.d."},{"$f":"IF('[2]MONE(M)CAPARD'!FL41=\"\",\"\",'[2]MONE(M)CAPARD'!FL41)","v":"n.d."},{"$f":"IF('[2]MONE(M)CAPARD'!FO41=\"\",\"\",'[2]MONE(M)CAPARD'!FO41)","v":"n.d."},{"$f":"IF('[2]MONE(M)CAPARD'!FR41=\"\",\"\",'[2]MONE(M)CAPARD'!FR41)","v":"n.d."},{"$f":"IF('[2]MONE(M)CAPARD'!FV41=\"\",\"\",'[2]MONE(M)CAPARD'!FV41)","v":"n.d."},{"$f":"IF('[2]MONE(M)CARD'!FV41=\"\",\"\",'[2]MONE(M)CARD'!FV41)","v":""},{"$f":"IF('[2]MONE(M)CARD'!GD41=\"\",\"\",'[2]MONE(M)CARD'!GD41)","v":"n.d."},{"$f":"IF('[2]MONE(M)CARD'!GE41=\"\",\"\",'[2]MONE(M)CARD'!GE41)","v":"n.d."},"n.d.","n.d.","n.d.","n.d.","n.d.","n.d.","n.d.","n.d.",null,"n.d.","n.d.","n.d.","n.d.","n.d.",{"$f":"IF('[2]MONE(M)CAPARD'!GS41=\"\",\"\",'[2]MONE(M)CAPARD'!GS41)","v":"n.d."},{"$f":"IF('[2]MONE(M)CARD'!HA41=\"\",\"\",'[2]MONE(M)CAPARD'!HA41)","v":"n.d."},{"$f":"IF('[2]MONE(M)CAPARD'!HB41=\"\",\"\",'[2]MONE(M)CAPARD'!HB41)","v":"n.d."},"n.d.","n.d.","n.d.","n.d.","n.d.","n.d.","n.d.","n.d.","n.d.","n.d.","n.d.","n.d.","n.d.","n.d.",{"$f":"IF('[2]MONE(M)CAPARD'!AS41=\"\",\"\",'[2]MONE(M)CAPARD'!AS41)","v":"n.d."},{"$f":"IF('[2]MONE(M)CAPARD'!AT41=\"\",\"\",'[2]MONE(M)CAPARD'!AT41)","v":"n.a."},{"$f":"IF('[2]MONE(M)CAPARD'!AU41=\"\",\"\",'[2]MONE(M)CAPARD'!AU41)","v":"n.d."},{"$f":"IF('[2]MONE(M)CAPARD'!AV41=\"\",\"\",'[2]MONE(M)CAPARD'!AV41)","v":"n.d."},{"$f":"IF('[2]MONE(M)CAPARD'!AW41=\"\",\"\",'[2]MONE(M)CAPARD'!AW41)","v":"n.a."},{"$f":"IF('[2]MONE(M)CAPARD'!AX41=\"\",\"\",'[2]MONE(M)CAPARD'!AX41)","v":"n.d."},{"$f":"IF('[2]MONE(M)CAPARD'!AY41=\"\",\"\",'[2]MONE(M)CAPARD'!AY41)","v":"n.a."},{"$f":"IF('[2]FISCAL(M)'!$K41=\"\",\"\",'[2]FISCAL(M)'!$K41)","v":"n.d."},{"$f":"IF('[2]FISCAL(M)'!$L41=\"\",\"\",'[2]FISCAL(M)'!$L41)","v":"n.d."},{"$f":"IF('[2]FISCAL(M)'!$AY41=\"\",\"\",'[2]FISCAL(M)'!$AY41)","v":"n.d."},{"$f":"IF('[2]FISCAL(M)'!$BI41=\"\",\"\",'[2]FISCAL(M)'!$BI41)","v":"n.d."},{"$f":"IF('[2]FISCAL(M)'!$BS41=\"\",\"\",'[2]FISCAL(M)'!$BS41)","v":"n.d."},{"$f":"IF('[2]FISCAL(M)'!$AZ41=\"\",\"\",'[2]FISCAL(M)'!$AZ41)","v":"n.d."},{"$f":"IF('[2]FISCAL(M)'!$BJ41=\"\",\"\",'[2]FISCAL(M)'!$BJ41)","v":"n.d."},{"$f":"IF('[2]FISCAL(M)'!$BT41=\"\",\"\",'[2]FISCAL(M)'!$BT41)","v":"n.d."},{"$f":"IF('[3]MONE(M)'!$AO41=\"\",\"\",'[3]MONE(M)'!$AO41)","v":"n.d."},{"$f":"IF('[4]MONE(M)'!$AO41=\"\",\"\",'[4]MONE(M)'!$AO41)","v":"n.d."},{"$f":"IF('[5]MONE(M)'!$AO41=\"\",\"\",'[5]MONE(M)'!$AO41)","v":"n.d."},{"$f":"+'[1]MONE(M)'!$AO41","v":"n.d."},{"$f":"IF('[6]MONE(M)'!$AO41=\"\",\"\",'[6]MONE(M)'!$AO41)","v":"n.d."},{"$f":"IF('[7]MONE(M)'!$AO41=\"\",\"\",'[7]MONE(M)'!$AO41)","v":"n.d."},{"$f":"IF('[8]MONE(M)'!$AO41=\"\",\"\",'[8]MONE(M)'!$AO41)","v":"n.d."},"n.d.","n.d.","n.d.","n.d.","n.d.","n.d.","n.d.",{"$f":"IF('[2]FISCAL(M)'!$K41=\"\",\"\",'[2]FISCAL(M)'!$K41)","v":"n.d."},"n.d.","n.d.",{"$f":"IF('[2]FISCAL(M)'!$L41=\"\",\"\",'[2]FISCAL(M)'!$L41)","v":"n.d."},"n.d.","n.d.","n.d.","n.d.","n.d.","n.d.","n.d.","n.d.","n.d.","n.d.","n.d.","n.d.","n.d.","n.d.","n.d.","n.d.","n.d.","n.d."]
[1992,"septiembre","1992-septiembre",{"$f":"IF('[2]REAL IPC(M)'!$AL42=\"\",\"\",+'[2]REAL IPC(M)'!$AL42)","v":"n.d."},{"$f":"IF('[2]REAL IPC(M)'!$BE42=\"\",\"\",+'[2]REAL IPC(M)'!$BE42)","v":"n.d."},{"$f":"IF('[2]REAL IPC(M)'!$AM42=\"\",\"\",+'[2]REAL IPC(M)'!$AM42)","v":"n.d."},{"$f":"IF('[2]REAL IPC(M)'!$BI42=\"\",\"\",+'[2]REAL IPC(M)'!$BI42)","v":"n.d."},{"$f":"IF('[2]REAL IMAE(M)'!BJ42=\"\",\"\",'[2]REAL IMAE(M)'!BJ42)","v":"n.d."},{"$f":"IF('[2]REAL IMAE(M)'!BK42=\"\",\"\",'[2]REAL IMAE(M)'!BK42)","v":"n.d."},{"$f":"IF('[2]REAL IMAE(M)'!BN42=\"\",\"\",'[2]REAL IMAE(M)'!BN42)","v":"n.d."},{"$f":"IF('[2]REAL IMAE(M)'!BO42=\"\",\"\",'[2]REAL IMAE(M)'!BO42)","v":"n.d."},{"$f":"IF('[2]EXT RIN(M)'!$K42=\"\",\"\",'[2]EXT RIN(M)'!$K42)","v":"n.d."},"",{"$f":"IF('[2]EXT RIN(M)'!$L42=\"\",\"\",'[2]EXT RIN(M)'!$L42)","v":"n.d."},"",{"$f":"IF('[2]MONE(M)CARD'!EG42=\"\",\"\",'[2]MONE(M)CARD'!EG42)","v":"n.d."},{"$f":"IF('[2]MONE(M)CARD'!EK42=\"\",\"\",'[2]MONE(M)CARD'!EK42)","v":"n.d."},{"$f":"IF('[2]MONE(M)CARD'!EP42=\"\",\"\",'[2]MONE(M)CARD'!EP42)","v":"n.d."},{"$f":"IF('[2]MONE(M)CARD'!ES42=\"\",\"\",'[2]MONE(M)CARD'!ES42)","v":"n.d."},{"$f":"IF('[2]MONE(M)CARD'!EV42=\"\",\"\",'[2]MONE(M)CARD'!EV42)","v":"n.d."},{"$f":"IF('[2]MONE(M)CARD'!EZ42=\"\",\"\",'[2]MONE(M)CARD'!EZ42)","v":"n.d."},{"$f":"IF('[2]MONE(M)CAPARD'!FC42=\"\",\"\",'[2]MONE(M)CAPARD'!FC42)","v":"n.d."},{"$f":"IF('[2]MONE(M)CAPARD'!FG42=\"\",\"\",'[2]MONE(M)CAPARD'!FG42)","v":"n.d."},{"$f":"IF('[2]MONE(M)CAPARD'!FL42=\"\",\"\",'[2]MONE(M)CAPARD'!FL42)","v":"n.d."},{"$f":"IF('[2]MONE(M)CAPARD'!FO42=\"\",\"\",'[2]MONE(M)CAPARD'!FO42)","v":"n.d."},{"$f":"IF('[2]MONE(M)CAPARD'!FR42=\"\",\"\",'[2]MONE(M)CAPARD'!FR42)","v":"n.d."},{"$f":"IF('[2]MONE(M)CAPARD'!FV42=\"\",\"\",'[2]MONE(M)CAPARD'!FV42)","v":"n.d."},{"$f":"IF('[2]MONE(M)CARD'!FV42=\"\",\"\",'[2]MONE(M)CARD'!FV42)","v":""},{"$f":"IF('[2]MONE(M)CARD'!GD42=\"\",\"\",'[2]MONE(M)CARD'!GD42)","v":"n.d."},{"$f":"IF('[2]MONE(M)CARD'!GE42=\"\",\"\",'[2]MONE(M)CARD'!GE42)","v":"n.d."},"n.d.","n.d.","n.d.","n.d.","n.d.","n.d.","n.d.","n.d.",null,"n.d.","n.d.","n.d.","n.d.","n.d.",{"$f":"IF('[2]MONE(M)CAPARD'!GS42=\"\",\"\",'[2]MONE(M)CAPARD'!GS42)","v":"n.d."},{"$f":"IF('[2]MONE(M)CARD'!HA42=\"\",\"\",'[2]MONE(M)CAPARD'!HA42)","v":"n.d."},{"$f":"IF('[2]MONE(M)CAPARD'!HB42=\"\",\"\",'[2]MONE(M)CAPARD'!HB42)","v":"n.d."},"n.d.","n.d.","n.d.","n.d.","n.d.","n.d.","n.d.","n.d.","n.d.","n.d.","n.d.","n.d.","n.d.","n.d.",{"$f":"IF('[2]MONE(M)CAPARD'!AS42=\"\",\"\",'[2]MONE(M)CAPARD'!AS42)","v":"n.d."},{"$f":"IF('[2]MONE(M)CAPARD'!AT42=\"\",\"\",'[2]MONE(M)CAPARD'!AT42)","v":"n.a."},{"$f":"IF('[2]MONE(M)CAPARD'!AU42=\"\",\"\",'[2]MONE(M)CAPARD'!AU42)","v":"n.d."},{"$f":"IF('[2]MONE(M)CAPARD'!AV42=\"\",\"\",'[2]MONE(M)CAPARD'!AV42)","v":"n.d."},{"$f":"IF('[2]MONE(M)CAPARD'!AW42=\"\",\"\",'[2]MONE(M)CAPARD'!AW42)","v":"n.a."},{"$f":"IF('[2]MONE(M)CAPARD'!AX42=\"\",\"\",'[2]MONE(M)CAPARD'!AX42)","v":"n.d."},{"$f":"IF('[2]MONE(M)CAPARD'!AY42=\"\",\"\",'[2]MONE(M)CAPARD'!AY42)","v":"n.a."},{"$f":"IF('[2]FISCAL(M)'!$K42=\"\",\"\",'[2]FISCAL(M)'!$K42)","v":"n.d."},{"$f":"IF('[2]FISCAL(M)'!$L42=\"\",\"\",'[2]FISCAL(M)'!$L42)","v":"n.d."},{"$f":"IF('[2]FISCAL(M)'!$AY42=\"\",\"\",'[2]FISCAL(M)'!$AY42)","v":"n.d."},{"$f":"IF('[2]FISCAL(M)'!$BI42=\"\",\"\",'[2]FISCAL(M)'!$BI42)","v":"n.d."},{"$f":"IF('[2]FISCAL(M)'!$BS42=\"\",\"\",'[2]FISCAL(M)'!$BS42)","v":"n.d."},{"$f":"IF('[2]FISCAL(M)'!$AZ42=\"\",\"\",'[2]FISCAL(M)'!$AZ42)","v":"n.d."},{"$f":"IF('[2]FISCAL(M)'!$BJ42=\"\",\"\",'[2]FISCAL(M)'!$BJ42)","v":"n.d."},{"$f":"IF('[2]FISCAL(M)'!$BT42=\"\",\"\",'[2]FISCAL(M)'!$BT42)","v":"n.d."},{"$f":"IF('[3]MONE(M)'!$AO42=\"\",\"\",'[3]MONE(M)'!$AO42)","v":"n.d."},{"$f":"IF('[4]MONE(M)'!$AO42=\"\",\"\",'[4]MONE(M)'!$AO42)","v":"n.d."},{"$f":"IF('[5]MONE(M)'!$AO42=\"\",\"\",'[5]MONE(M)'!$AO42)","v":"n.d."},{"$f":"+'[1]MONE(M)'!$AO42","v":"n.d."},{"$f":"IF('[6]MONE(M)'!$AO42=\"\",\"\",'[6]MONE(M)'!$AO42)","v":"n.d."},{"$f":"IF('[7]MONE(M)'!$AO42=\"\",\"\",'[7]MONE(M)'!$AO42)","v":"n.d."},{"$f":"IF('[8]MONE(M)'!$AO42=\"\",\"\",'[8]MONE(M)'!$AO42)","v":"n.d."},"n.d.","n.d.","n.d.","n.d.","n.d.","n.d.","n.d.",{"$f":"IF('[2]FISCAL(M)'!$K42=\"\",\"\",'[2]FISCAL(M)'!$K42)","v":"n.d."},"n.d.","n.d.",{"$f":"IF('[2]FISCAL(M)'!$L42=\"\",\"\",'[2]FISCAL(M)'!$L42)","v":"n.d."},"n.d.","n.d.","n.d.","n.d.","n.d.","n.d.","n.d.","n.d.","n.d.","n.d.","n.d.","n.d.","n.d.","n.d.","n.d.","n.d.","n.d.","n.d."]
[1992,"octubre","1992-octubre",{"$f":"IF('[2]REAL IPC(M)'!$AL43=\"\",\"\",+'[2]REAL IPC(M)'!$AL43)","v":"n.d."},{"$f":"IF('[2]REAL IPC(M)'!$BE43=\"\",\"\",+'[2]REAL IPC(M)'!$BE43)","v":"n.d."},{"$f":"IF('[2]REAL IPC(M)'!$AM43=\"\",\"\",+'[2]REAL IPC(M)'!$AM43)","v":"n.d."},{"$f":"IF('[2]REAL IPC(M)'!$BI43=\"\",\"\",+'[2]REAL IPC(M)'!$BI43)","v":"n.d."},{"$f":"IF('[2]REAL IMAE(M)'!BJ43=\"\",\"\",'[2]REAL IMAE(M)'!BJ43)","v":"n.d."},{"$f":"IF('[2]REAL IMAE(M)'!BK43=\"\",\"\",'[2]REAL IMAE(M)'!BK43)","v":"n.d."},{"$f":"IF('[2]REAL IMAE(M)'!BN43=\"\",\"\",'[2]REAL IMAE(M)'!BN43)","v":"n.d."},{"$f":"IF('[2]REAL IMAE(M)'!BO43=\"\",\"\",'[2]REAL IMAE(M)'!BO43)","v":"n.d."},{"$f":"IF('[2]EXT RIN(M)'!$K43=\"\",\"\",'[2]EXT RIN(M)'!$K43)","v":"n.d."},"",{"$f":"IF('[2]EXT RIN(M)'!$L43=\"\",\"\",'[2]EXT RIN(M)'!$L43)","v":"n.d."},"",{"$f":"IF('[2]MONE(M)CARD'!EG43=\"\",\"\",'[2]MONE(M)CARD'!EG43)","v":"n.d."},{"$f":"IF('[2]MONE(M)CARD'!EK43=\"\",\"\",'[2]MONE(M)CARD'!EK43)","v":"n.d."},{"$f":"IF('[2]MONE(M)CARD'!EP43=\"\",\"\",'[2]MONE(M)CARD'!EP43)","v":"n.d."},{"$f":"IF('[2]MONE(M)CARD'!ES43=\"\",\"\",'[2]MONE(M)CARD'!ES43)","v":"n.d."},{"$f":"IF('[2]MONE(M)CARD'!EV43=\"\",\"\",'[2]MONE(M)CARD'!EV43)","v":"n.d."},{"$f":"IF('[2]MONE(M)CARD'!EZ43=\"\",\"\",'[2]MONE(M)CARD'!EZ43)","v":"n.d."},{"$f":"IF('[2]MONE(M)CAPARD'!FC43=\"\",\"\",'[2]MONE(M)CAPARD'!FC43)","v":"n.d."},{"$f":"IF('[2]MONE(M)CAPARD'!FG43=\"\",\"\",'[2]MONE(M)CAPARD'!FG43)","v":"n.d."},{"$f":"IF('[2]MONE(M)CAPARD'!FL43=\"\",\"\",'[2]MONE(M)CAPARD'!FL43)","v":"n.d."},{"$f":"IF('[2]MONE(M)CAPARD'!FO43=\"\",\"\",'[2]MONE(M)CAPARD'!FO43)","v":"n.d."},{"$f":"IF('[2]MONE(M)CAPARD'!FR43=\"\",\"\",'[2]MONE(M)CAPARD'!FR43)","v":"n.d."},{"$f":"IF('[2]MONE(M)CAPARD'!FV43=\"\",\"\",'[2]MONE(M)CAPARD'!FV43)","v":"n.d."},{"$f":"IF('[2]MONE(M)CARD'!FV43=\"\",\"\",'[2]MONE(M)CARD'!FV43)","v":""},{"$f":"IF('[2]MONE(M)CARD'!GD43=\"\",\"\",'[2]MONE(M)CARD'!GD43)","v":"n.d."},{"$f":"IF('[2]MONE(M)CARD'!GE43=\"\",\"\",'[2]MONE(M)CARD'!GE43)","v":"n.d."},"n.d.","n.d.","n.d.","n.d.","n.d.","n.d.","n.d.","n.d.",null,"n.d.","n.d.","n.d.","n.d.","n.d.",{"$f":"IF('[2]MONE(M)CAPARD'!GS43=\"\",\"\",'[2]MONE(M)CAPARD'!GS43)","v":"n.d."},{"$f":"IF('[2]MONE(M)CARD'!HA43=\"\",\"\",'[2]MONE(M)CAPARD'!HA43)","v":"n.d."},{"$f":"IF('[2]MONE(M)CAPARD'!HB43=\"\",\"\",'[2]MONE(M)CAPARD'!HB43)","v":"n.d."},"n.d.","n.d.","n.d.","n.d.","n.d.","n.d.","n.d.","n.d.","n.d.","n.d.","n.d.","n.d.","n.d.","n.d.",{"$f":"IF('[2]MONE(M)CAPARD'!AS43=\"\",\"\",'[2]MONE(M)CAPARD'!AS43)","v":"n.d."},{"$f":"IF('[2]MONE(M)CAPARD'!AT43=\"\",\"\",'[2]MONE(M)CAPARD'!AT43)","v":"n.a."},{"$f":"IF('[2]MONE(M)CAPARD'!AU43=\"\",\"\",'[2]MONE(M)CAPARD'!AU43)","v":"n.d."},{"$f":"IF('[2]MONE(M)CAPARD'!AV43=\"\",\"\",'[2]MONE(M)CAPARD'!AV43)","v":"n.d."},{"$f":"IF('[2]MONE(M)CAPARD'!AW43=\"\",\"\",'[2]MONE(M)CAPARD'!AW43)","v":"n.a."},{"$f":"IF('[2]MONE(M)CAPARD'!AX43=\"\",\"\",'[2]MONE(M)CAPARD'!AX43)","v":"n.d."},{"$f":"IF('[2]MONE(M)CAPARD'!AY43=\"\",\"\",'[2]MONE(M)CAPARD'!AY43)","v":"n.a."},{"$f":"IF('[2]FISCAL(M)'!$K43=\"\",\"\",'[2]FISCAL(M)'!$K43)","v":"n.d."},{"$f":"IF('[2]FISCAL(M)'!$L43=\"\",\"\",'[2]FISCAL(M)'!$L43)","v":"n.d."},{"$f":"IF('[2]FISCAL(M)'!$AY43=\"\",\"\",'[2]FISCAL(M)'!$AY43)","v":"n.d."},{"$f":"IF('[2]FISCAL(M)'!$BI43=\"\",\"\",'[2]FISCAL(M)'!$BI43)","v":"n.d."},{"$f":"IF('[2]FISCAL(M)'!$BS43=\"\",\"\",'[2]FISCAL(M)'!$BS43)","v":"n.d."},{"$f":"IF('[2]FISCAL(M)'!$AZ43=\"\",\"\",'[2]FISCAL(M)'!$AZ43)","v":"n.d."},{"$f":"IF('[2]FISCAL(M)'!$BJ43=\"\",\"\",'[2]FISCAL(M)'!$BJ43)","v":"n.d."},{"$f":"IF('[2]FISCAL(M)'!$BT43=\"\",\"\",'[2]FISCAL(M)'!$BT43)","v":"n.d."},{"$f":"IF('[3]MONE(M)'!$AO43=\"\",\"\",'[3]MONE(M)'!$AO43)","v":"n.d."},{"$f":"IF('[4]MONE(M)'!$AO43=\"\",\"\",'[4]MONE(M)'!$AO43)","v":"n.d."},{"$f":"IF('[5]MONE(M)'!$AO43=\"\",\"\",'[5]MONE(M)'!$AO43)","v":"n.d."},{"$f":"+'[1]MONE(M)'!$AO43","v":"n.d."},{"$f":"IF('[6]MONE(M)'!$AO43=\"\",\"\",'[6]MONE(M)'!$AO43)","v":"n.d."},{"$f":"IF('[7]MONE(M)'!$AO43=\"\",\"\",'[7]MONE(M)'!$AO43)","v":"n.d."},{"$f":"IF('[8]MONE(M)'!$AO43=\"\",\"\",'[8]MONE(M)'!$AO43)","v":"n.d."},"n.d.","n.d.","n.d.","n.d.","n.d.","n.d.","n.d.",{"$f":"IF('[2]FISCAL(M)'!$K43=\"\",\"\",'[2]FISCAL(M)'!$K43)","v":"n.d."},"n.d.","n.d.",{"$f":"IF('[2]FISCAL(M)'!$L43=\"\",\"\",'[2]FISCAL(M)'!$L43)","v":"n.d."},"n.d.","n.d.","n.d.","n.d.","n.d.","n.d.","n.d.","n.d.","n.d.","n.d.","n.d.","n.d.","n.d.","n.d.","n.d.","n.d.","n.d.","n.d."]
[1992,"noviembre","1992-noviembre",{"$f":"IF('[2]REAL IPC(M)'!$AL44=\"\",\"\",+'[2]REAL IPC(M)'!$AL44)","v":"n.d."},{"$f":"IF('[2]REAL IPC(M)'!$BE44=\"\",\"\",+'[2]REAL IPC(M)'!$BE44)","v":"n.d."},{"$f":"IF('[2]REAL IPC(M)'!$AM44=\"\",\"\",+'[2]REAL IPC(M)'!$AM44)","v":"n.d."},{"$f":"IF('[2]REAL IPC(M)'!$BI44=\"\",\"\",+'[2]REAL IPC(M)'!$BI44)","v":"n.d."},{"$f":"IF('[2]REAL IMAE(M)'!BJ44=\"\",\"\",'[2]REAL IMAE(M)'!BJ44)","v":"n.d."},{"$f":"IF('[2]REAL IMAE(M)'!BK44=\"\",\"\",'[2]REAL IMAE(M)'!BK44)","v":"n.d."},{"$f":"IF('[2]REAL IMAE(M)'!BN44=\"\",\"\",'[2]REAL IMAE(M)'!BN44)","v":"n.d."},{"$f":"IF('[2]REAL IMAE(M)'!BO44=\"\",\"\",'[2]REAL IMAE(M)'!BO44)","v":"n.d."},{"$f":"IF('[2]EXT RIN(M)'!$K44=\"\",\"\",'[2]EXT RIN(M)'!$K44)","v":"n.d."},"",{"$f":"IF('[2]EXT RIN(M)'!$L44=\"\",\"\",'[2]EXT RIN(M)'!$L44)","v":"n.d."},"",{"$f":"IF('[2]MONE(M)CARD'!EG44=\"\",\"\",'[2]MONE(M)CARD'!EG44)","v":"n.d."},{"$f":"IF('[2]MONE(M)CARD'!EK44=\"\",\"\",'[2]MONE(M)CARD'!EK44)","v":"n.d."},{"$f":"IF('[2]MONE(M)CARD'!EP44=\"\",\"\",'[2]MONE(M)CARD'!EP44)","v":"n.d."},{"$f":"IF('[2]MONE(M)CARD'!ES44=\"\",\"\",'[2]MONE(M)CARD'!ES44)","v":"n.d."},{"$f":"IF('[2]MONE(M)CARD'!EV44=\"\",\"\",'[2]MONE(M)CARD'!EV44)","v":"n.d."},{"$f":"IF('[2]MONE(M)CARD'!EZ44=\"\",\"\",'[2]MONE(M)CARD'!EZ44)","v":"n.d."},{"$f":"IF('[2]MONE(M)CAPARD'!FC44=\"\",\"\",'[2]MONE(M)CAPARD'!FC44)","v":"n.d."},{"$f":"IF('[2]MONE(M)CAPARD'!FG44=\"\",\"\",'[2]MONE(M)CAPARD'!FG44)","v":"n.d."},{"$f":"IF('[2]MONE(M)CAPARD'!FL44=\"\",\"\",'[2]MONE(M)CAPARD'!FL44)","v":"n.d."},{"$f":"IF('[2]MONE(M)CAPARD'!FO44=\"\",\"\",'[2]MONE(M)CAPARD'!FO44)","v":"n.d."},{"$f":"IF('[2]MONE(M)CAPARD'!FR44=\"\",\"\",'[2]MONE(M)CAPARD'!FR44)","v":"n.d."},{"$f":"IF('[2]MONE(M)CAPARD'!FV44=\"\",\"\",'[2]MONE(M)CAPARD'!FV44)","v":"n.d."},{"$f":"IF('[2]MONE(M)CARD'!FV44=\"\",\"\",'[2]MONE(M)CARD'!FV44)","v":""},{"$f":"IF('[2]MONE(M)CARD'!GD44=\"\",\"\",'[2]MONE(M)CARD'!GD44)","v":"n.d."},{"$f":"IF('[2]MONE(M)CARD'!GE44=\"\",\"\",'[2]MONE(M)CARD'!GE44)","v":"n.d."},"n.d.","n.d.","n.d.","n.d.","n.d.","n.d.","n.d.","n.d.",null,"n.d.","n.d.","n.d.","n.d.","n.d.",{"$f":"IF('[2]MONE(M)CAPARD'!GS44=\"\",\"\",'[2]MONE(M)CAPARD'!GS44)","v":"n.d."},{"$f":"IF('[2]MONE(M)CARD'!HA44=\"\",\"\",'[2]MONE(M)CAPARD'!HA44)","v":"n.d."},{"$f":"IF('[2]MONE(M)CAPARD'!HB44=\"\",\"\",'[2]MONE(M)CAPARD'!HB44)","v":"n.d."},"n.d.","n.d.","n.d.","n.d.","n.d.","n.d.","n.d.","n.d.","n.d.","n.d.","n.d.","n.d.","n.d.","n.d.",{"$f":"IF('[2]MONE(M)CAPARD'!AS44=\"\",\"\",'[2]MONE(M)CAPARD'!AS44)","v":"n.d."},{"$f":"IF('[2]MONE(M)CAPARD'!AT44=\"\",\"\",'[2]MONE(M)CAPARD'!AT44)","v":"n.a."},{"$f":"IF('[2]MONE(M)CAPARD'!AU44=\"\",\"\",'[2]MONE(M)CAPARD'!AU44)","v":"n.d."},{"$f":"IF('[2]MONE(M)CAPARD'!AV44=\"\",\"\",'[2]MONE(M)CAPARD'!AV44)","v":"n.d."},{"$f":"IF('[2]MONE(M)CAPARD'!AW44=\"\",\"\",'[2]MONE(M)CAPARD'!AW44)","v":"n.a."},{"$f":"IF('[2]MONE(M)CAPARD'!AX44=\"\",\"\",'[2]MONE(M)CAPARD'!AX44)","v":"n.d."},{"$f":"IF('[2]MONE(M)CAPARD'!AY44=\"\",\"\",'[2]MONE(M)CAPARD'!AY44)","v":"n.a."},{"$f":"IF('[2]FISCAL(M)'!$K44=\"\",\"\",'[2]FISCAL(M)'!$K44)","v":"n.d."},{"$f":"IF('[2]FISCAL(M)'!$L44=\"\",\"\",'[2]FISCAL(M)'!$L44)","v":"n.d."},{"$f":"IF('[2]FISCAL(M)'!$AY44=\"\",\"\",'[2]FISCAL(M)'!$AY44)","v":"n.d."},{"$f":"IF('[2]FISCAL(M)'!$BI44=\"\",\"\",'[2]FISCAL(M)'!$BI44)","v":"n.d."},{"$f":"IF('[2]FISCAL(M)'!$BS44=\"\",\"\",'[2]FISCAL(M)'!$BS44)","v":"n.d."},{"$f":"IF('[2]FISCAL(M)'!$AZ44=\"\",\"\",'[2]FISCAL(M)'!$AZ44)","v":"n.d."},{"$f":"IF('[2]FISCAL(M)'!$BJ44=\"\",\"\",'[2]FISCAL(M)'!$BJ44)","v":"n.d."},{"$f":"IF('[2]FISCAL(M)'!$BT44=\"\",\"\",'[2]FISCAL(M)'!$BT44)","v":"n.d."},{"$f":"IF('[3]MONE(M)'!$AO44=\"\",\"\",'[3]MONE(M)'!$AO44)","v":"n.d."},{"$f":"IF('[4]MONE(M)'!$AO44=\"\",\"\",'[4]MONE(M)'!$AO44)","v":"n.d."},{"$f":"IF('[5]MONE(M)'!$AO44=\"\",\"\",'[5]MONE(M)'!$AO44)","v":"n.d."},{"$f":"+'[1]MONE(M)'!$AO44","v":"n.d."},{"$f":"IF('[6]MONE(M)'!$AO44=\"\",\"\",'[6]MONE(M)'!$AO44)","v":"n.d."},{"$f":"IF('[7]MONE(M)'!$AO44=\"\",\"\",'[7]MONE(M)'!$AO44)","v":"n.d."},{"$f":"IF('[8]MONE(M)'!$AO44=\"\",\"\",'[8]MONE(M)'!$AO44)","v":"n.d."},"n.d.","n.d.","n.d.","n.d.","n.d.","n.d.","n.d.",{"$f":"IF('[2]FISCAL(M)'!$K44=\"\",\"\",'[2]FISCAL(M)'!$K44)","v":"n.d."},"n.d.","n.d.",{"$f":"IF('[2]FISCAL(M)'!$L44=\"\",\"\",'[2]FISCAL(M)'!$L44)","v":"n.d."},"n.d.","n.d.","n.d.","n.d.","n.d.","n.d.","n.d.","n.d.","n.d.","n.d.","n.d.","n.d.","n.d.","n.d.","n.d.","n.d.","n.d.","n.d."]
[1992,"diciembre","1992-diciembre",{"$f":"IF('[2]REAL IPC(M)'!$AL45=\"\",\"\",+'[2]REAL IPC(M)'!$AL45)","v":"n.d."},{"$f":"IF('[2]REAL IPC(M)'!$BE45=\"\",\"\",+'[2]REAL IPC(M)'!$BE45)","v":"n.d."},{"$f":"IF('[2]REAL IPC(M)'!$AM45=\"\",\"\",+'[2]REAL IPC(M)'!$AM45)","v":"n.d."},{"$f":"IF('[2]REAL IPC(M)'!$BI45=\"\",\"\",+'[2]REAL IPC(M)'!$BI45)","v":"n.d."},{"$f":"IF('[2]REAL IMAE(M)'!BJ45=\"\",\"\",'[2]REAL IMAE(M)'!BJ45)","v":"n.d."},{"$f":"IF('[2]REAL IMAE(M)'!BK45=\"\",\"\",'[2]REAL IMAE(M)'!BK45)","v":"n.d."},{"$f":"IF('[2]REAL IMAE(M)'!BN45=\"\",\"\",'[2]REAL IMAE(M)'!BN45)","v":"n.d."},{"$f":"IF('[2]REAL IMAE(M)'!BO45=\"\",\"\",'[2]REAL IMAE(M)'!BO45)","v":"n.d."},{"$f":"IF('[2]EXT RIN(M)'!$K45=\"\",\"\",'[2]EXT RIN(M)'!$K45)","v":"n.d."},"n.d.",{"$f":"IF('[2]EXT RIN(M)'!$L45=\"\",\"\",'[2]EXT RIN(M)'!$L45)","v":"n.d."},"n.d.",{"$f":"IF('[2]MONE(M)CARD'!EG45=\"\",\"\",'[2]MONE(M)CARD'!EG45)","v":"n.d."},{"$f":"IF('[2]MONE(M)CARD'!EK45=\"\",\"\",'[2]MONE(M)CARD'!EK45)","v":"n.d."},{"$f":"IF('[2]MONE(M)CARD'!EP45=\"\",\"\",'[2]MONE(M)CARD'!EP45)","v":"n.d."},{"$f":"IF('[2]MONE(M)CARD'!ES45=\"\",\"\",'[2]MONE(M)CARD'!ES45)","v":"n.d."},{"$f":"IF('[2]MONE(M)CARD'!EV45=\"\",\"\",'[2]MONE(M)CARD'!EV45)","v":"n.d."},{"$f":"IF('[2]MONE(M)CARD'!EZ45=\"\",\"\",'[2]MONE(M)CARD'!EZ45)","v":"n.d."},{"$f":"IF('[2]MONE(M)CAPARD'!FC45=\"\",\"\",'[2]MONE(M)CAPARD'!FC45)","v":"n.d."},{"$f":"IF('[2]MONE(M)CAPARD'!FG45=\"\",\"\",'[2]MONE(M)CAPARD'!FG45)","v":"n.d."},{"$f":"IF('[2]MONE(M)CAPARD'!FL45=\"\",\"\",'[2]MONE(M)CAPARD'!FL45)","v":"n.d."},{"$f":"IF('[2]MONE(M)CAPARD'!FO45=\"\",\"\",'[2]MONE(M)CAPARD'!FO45)","v":"n.d."},{"$f":"IF('[2]MONE(M)CAPARD'!FR45=\"\",\"\",'[2]MONE(M)CAPARD'!FR45)","v":"n.d."},{"$f":"IF('[2]MONE(M)CAPARD'!FV45=\"\",\"\",'[2]MONE(M)CAPARD'!FV45)","v":"n.d."},{"$f":"IF('[2]MONE(M)CARD'!FV45=\"\",\"\",'[2]MONE(M)CARD'!FV45)","v":""},{"$f":"IF('[2]MONE(M)CARD'!GD45=\"\",\"\",'[2]MONE(M)CARD'!GD45)","v":"n.d."},{"$f":"IF('[2]MONE(M)CARD'!GE45=\"\",\"\",'[2]MONE(M)CARD'!GE45)","v":"n.d."},"n.d.","n.d.","n.d.","n.d.","n.d.","n.d.","n.d.","n.d.",null,"n.d.","n.d.","n.d.","n.d.","n.d.",{"$f":"IF('[2]MONE(M)CAPARD'!GS45=\"\",\"\",'[2]MONE(M)CAPARD'!GS45)","v":"n.d."},{"$f":"IF('[2]MONE(M)CARD'!HA45=\"\",\"\",'[2]MONE(M)CAPARD'!HA45)","v":"n.d."},{"$f":"IF('[2]MONE(M)CAPARD'!HB45=\"\",\"\",'[2]MONE(M)CAPARD'!HB45)","v":"n.d."},"n.d.","n.d.","n.d.","n.d.","n.d.","n.d.","n.d.","n.d.","n.d.","n.d.","n.d.","n.d.","n.d.","n.d.",{"$f":"IF('[2]MONE(M)CAPARD'!AS45=\"\",\"\",'[2]MONE(M)CAPARD'!AS45)","v":"n.d."},{"$f":"IF('[2]MONE(M)CAPARD'!AT45=\"\",\"\",'[2]MONE(M)CAPARD'!AT45)","v":"n.a."},{"$f":"IF('[2]MONE(M)CAPARD'!AU45=\"\",\"\",'[2]MONE(M)CAPARD'!AU45)","v":"n.d."},{"$f":"IF('[2]MONE(M)CAPARD'!AV45=\"\",\"\",'[2]MONE(M)CAPARD'!AV45)","v":"n.d."},{"$f":"IF('[2]MONE(M)CAPARD'!AW45=\"\",\"\",'[2]MONE(M)CAPARD'!AW45)","v":"n.a."},{"$f":"IF('[2]MONE(M)CAPARD'!AX45=\"\",\"\",'[2]MONE(M)CAPARD'!AX45)","v":"n.d."},{"$f":"IF('[2]MONE(M)CAPARD'!AY45=\"\",\"\",'[2]MONE(M)CAPARD'!AY45)","v":"n.a."},{"$f":"IF('[2]FISCAL(M)'!$K45=\"\",\"\",'[2]FISCAL(M)'!$K45)","v":"n.d."},{"$f":"IF('[2]FISCAL(M)'!$L45=\"\",\"\",'[2]FISCAL(M)'!$L45)","v":"n.d."},{"$f":"IF('[2]FISCAL(M)'!$AY45=\"\",\"\",'[2]FISCAL(M)'!$AY45)","v":"n.d."},{"$f":"IF('[2]FISCAL(M)'!$BI45=\"\",\"\",'[2]FISCAL(M)'!$BI45)","v":"n.d."},{"$f":"IF('[2]FISCAL(M)'!$BS45=\"\",\"\",'[2]FISCAL(M)'!$BS45)","v":"n.d."},{"$f":"IF('[2]FISCAL(M)'!$AZ45=\"\",\"\",'[2]FISCAL(M)'!$AZ45)","v":"n.d."},{"$f":"IF('[2]FISCAL(M)'!$BJ45=\"\",\"\",'[2]FISCAL(M)'!$BJ45)","v":"n.d."},{"$f":"IF('[2]FISCAL(M)'!$BT45=\"\",\"\",'[2]FISCAL(M)'!$BT45)","v":"n.d."},{"$f":"IF('[3]MONE(M)'!$AO45=\"\",\"\",'[3]MONE(M)'!$AO45)","v":"n.d."},{"$f":"IF('[4]MONE(M)'!$AO45=\"\",\"\",'[4]MONE(M)'!$AO45)","v":"n.d."},{"$f":"IF('[5]MONE(M)'!$AO45=\"\",\"\",'[5]MONE(M)'!$AO45)","v":"n.d."},{"$f":"+'[1]MONE(M)'!$AO45","v":"n.d."},{"$f":"IF('[6]MONE(M)'!$AO45=\"\",\"\",'[6]MONE(M)'!$AO45)","v":"n.d."},{"$f":"IF('[7]MONE(M)'!$AO45=\"\",\"\",'[7]MONE(M)'!$AO45)","v":"n.d."},{"$f":"IF('[8]MONE(M)'!$AO45=\"\",\"\",'[8]MONE(M)'!$AO45)","v":"n.d."},"n.d.","n.d.","n.d.","n.d.","n.d.","n.d.","n.d.",{"$f":"IF('[2]FISCAL(M)'!$K45=\"\",\"\",'[2]FISCAL(M)'!$K45)","v":"n.d."},"n.d.","n.d.",{"$f":"IF('[2]FISCAL(M)'!$L45=\"\",\"\",'[2]FISCAL(M)'!$L45)","v":"n.d."},"n.d.","n.d.","n.d.","n.d.","n.d.","n.d.","n.d.","n.d.","n.d.","n.d.","n.d.","n.d.","n.d.","n.d.","n.d.","n.d.","n.d.","n.d."]
[1993,"enero","1993-enero",{"$f":"IF('[2]REAL IPC(M)'!$AL46=\"\",\"\",+'[2]REAL IPC(M)'!$AL46)","v":13.408794079233788},{"$f":"IF('[2]REAL IPC(M)'!$BE46=\"\",\"\",+'[2]REAL IPC(M)'!$BE46)","v":"n.d."},{"$f":"IF('[2]REAL IPC(M)'!$AM46=\"\",\"\",+'[2]REAL IPC(M)'!$AM46)","v":12.218774243599672},{"$f":"IF('[2]REAL IPC(M)'!$BI46=\"\",\"\",+'[2]REAL IPC(M)'!$BI46)","v":"n.d."},{"$f":"IF('[2]REAL IMAE(M)'!BJ46=\"\",\"\",'[2]REAL IMAE(M)'!BJ46)","v":"n.d."},{"$f":"IF('[2]REAL IMAE(M)'!BK46=\"\",\"\",'[2]REAL IMAE(M)'!BK46)","v":"n.d."},{"$f":"IF('[2]REAL IMAE(M)'!BN46=\"\",\"\",'[2]REAL IMAE(M)'!BN46)","v":"n.d."},{"$f":"IF('[2]REAL IMAE(M)'!BO46=\"\",\"\",'[2]REAL IMAE(M)'!BO46)","v":"n.d."},{"$f":"IF('[2]EXT RIN(M)'!$K46=\"\",\"\",'[2]EXT RIN(M)'!$K46)","v":"n.d."},"",{"$f":"IF('[2]EXT RIN(M)'!$L46=\"\",\"\",'[2]EXT RIN(M)'!$L46)","v":"n.d."},"",{"$f":"IF('[2]MONE(M)CARD'!EG46=\"\",\"\",'[2]MONE(M)CARD'!EG46)","v":"n.d."},{"$f":"IF('[2]MONE(M)CARD'!EK46=\"\",\"\",'[2]MONE(M)CARD'!EK46)","v":"n.d."},{"$f":"IF('[2]MONE(M)CARD'!EP46=\"\",\"\",'[2]MONE(M)CARD'!EP46)","v":"n.d."},{"$f":"IF('[2]MONE(M)CARD'!ES46=\"\",\"\",'[2]MONE(M)CARD'!ES46)","v":"n.d."},{"$f":"IF('[2]MONE(M)CARD'!EV46=\"\",\"\",'[2]MONE(M)CARD'!EV46)","v":"n.d."},{"$f":"IF('[2]MONE(M)CARD'!EZ46=\"\",\"\",'[2]MONE(M)CARD'!EZ46)","v":"n.d."},{"$f":"IF('[2]MONE(M)CAPARD'!FC46=\"\",\"\",'[2]MONE(M)CAPARD'!FC46)","v":"n.d."},{"$f":"IF('[2]MONE(M)CAPARD'!FG46=\"\",\"\",'[2]MONE(M)CAPARD'!FG46)","v":"n.d."},{"$f":"IF('[2]MONE(M)CAPARD'!FL46=\"\",\"\",'[2]MONE(M)CAPARD'!FL46)","v":"n.d."},{"$f":"IF('[2]MONE(M)CAPARD'!FO46=\"\",\"\",'[2]MONE(M)CAPARD'!FO46)","v":"n.d."},{"$f":"IF('[2]MONE(M)CAPARD'!FR46=\"\",\"\",'[2]MONE(M)CAPARD'!FR46)","v":"n.d."},{"$f":"IF('[2]MONE(M)CAPARD'!FV46=\"\",\"\",'[2]MONE(M)CAPARD'!FV46)","v":"n.d."},{"$f":"IF('[2]MONE(M)CARD'!FV46=\"\",\"\",'[2]MONE(M)CARD'!FV46)","v":""},{"$f":"IF('[2]MONE(M)CARD'!GD46=\"\",\"\",'[2]MONE(M)CARD'!GD46)","v":"n.d."},{"$f":"IF('[2]MONE(M)CARD'!GE46=\"\",\"\",'[2]MONE(M)CARD'!GE46)","v":"n.d."},"n.d.","n.d.","n.d.","n.d.","n.d.","n.d.","n.d.","n.d.",null,"n.d.","n.d.","n.d.","n.d.","n.d.",{"$f":"IF('[2]MONE(M)CAPARD'!GS46=\"\",\"\",'[2]MONE(M)CAPARD'!GS46)","v":"n.d."},{"$f":"IF('[2]MONE(M)CARD'!HA46=\"\",\"\",'[2]MONE(M)CAPARD'!HA46)","v":"n.d."},{"$f":"IF('[2]MONE(M)CAPARD'!HB46=\"\",\"\",'[2]MONE(M)CAPARD'!HB46)","v":"n.d."},"n.d.","n.d.","n.d.","n.d.","n.d.","n.d.","n.d.","n.d.","n.d.","n.d.","n.d.","n.d.","n.d.","n.d.",{"$f":"IF('[2]MONE(M)CAPARD'!AS46=\"\",\"\",'[2]MONE(M)CAPARD'!AS46)","v":"n.d."},{"$f":"IF('[2]MONE(M)CAPARD'!AT46=\"\",\"\",'[2]MONE(M)CAPARD'!AT46)","v":"n.a."},{"$f":"IF('[2]MONE(M)CAPARD'!AU46=\"\",\"\",'[2]MONE(M)CAPARD'!AU46)","v":"n.d."},{"$f":"IF('[2]MONE(M)CAPARD'!AV46=\"\",\"\",'[2]MONE(M)CAPARD'!AV46)","v":"n.d."},{"$f":"IF('[2]MONE(M)CAPARD'!AW46=\"\",\"\",'[2]MONE(M)CAPARD'!AW46)","v":"n.a."},{"$f":"IF('[2]MONE(M)CAPARD'!AX46=\"\",\"\",'[2]MONE(M)CAPARD'!AX46)","v":"n.d."},{"$f":"IF('[2]MONE(M)CAPARD'!AY46=\"\",\"\",'[2]MONE(M)CAPARD'!AY46)","v":"n.a."},{"$f":"IF('[2]FISCAL(M)'!$K46=\"\",\"\",'[2]FISCAL(M)'!$K46)","v":"n.d."},{"$f":"IF('[2]FISCAL(M)'!$L46=\"\",\"\",'[2]FISCAL(M)'!$L46)","v":"n.d."},{"$f":"IF('[2]FISCAL(M)'!$AY46=\"\",\"\",'[2]FISCAL(M)'!$AY46)","v":"n.d."},{"$f":"IF('[2]FISCAL(M)'!$BI46=\"\",\"\",'[2]FISCAL(M)'!$BI46)","v":"n.d."},{"$f":"IF('[2]FISCAL(M)'!$BS46=\"\",\"\",'[2]FISCAL(M)'!$BS46)","v":"n.d."},{"$f":"IF('[2]FISCAL(M)'!$AZ46=\"\",\"\",'[2]FISCAL(M)'!$AZ46)","v":"n.d."},{"$f":"IF('[2]FISCAL(M)'!$BJ46=\"\",\"\",'[2]FISCAL(M)'!$BJ46)","v":"n.d."},{"$f":"IF('[2]FISCAL(M)'!$BT46=\"\",\"\",'[2]FISCAL(M)'!$BT46)","v":"n.d."},{"$f":"IF('[3]MONE(M)'!$AO46=\"\",\"\",'[3]MONE(M)'!$AO46)","v":"n.d."},{"$f":"IF('[4]MONE(M)'!$AO46=\"\",\"\",'[4]MONE(M)'!$AO46)","v":"n.d."},{"$f":"IF('[5]MONE(M)'!$AO46=\"\",\"\",'[5]MONE(M)'!$AO46)","v":"n.d."},{"$f":"+'[1]MONE(M)'!$AO46","v":"n.d."},{"$f":"IF('[6]MONE(M)'!$AO46=\"\",\"\",'[6]MONE(M)'!$AO46)","v":"n.d."},{"$f":"IF('[7]MONE(M)'!$AO46=\"\",\"\",'[7]MONE(M)'!$AO46)","v":"n.d."},{"$f":"IF('[8]MONE(M)'!$AO46=\"\",\"\",'[8]MONE(M)'!$AO46)","v":"n.d."},"n.d.","n.d.","n.d.","n.d.","n.d.","n.d.","n.d.",{"$f":"IF('[2]FISCAL(M)'!$K46=\"\",\"\",'[2]FISCAL(M)'!$K46)","v":"n.d."},"n.d.","n.d.",{"$f":"IF('[2]FISCAL(M)'!$L46=\"\",\"\",'[2]FISCAL(M)'!$L46)","v":"n.d."},"n.d.","n.d.","n.d.","n.d.","n.d.","n.d.","n.d.","n.d.","n.d.","n.d.","n.d.","n.d.","n.d.","n.d.","n.d.","n.d.","n.d.","n.d."]
[1993,"febrero","1993-febrero",{"$f":"IF('[2]REAL IPC(M)'!$AL47=\"\",\"\",+'[2]REAL IPC(M)'!$AL47)","v":13.580786026200897},{"$f":"IF('[2]REAL IPC(M)'!$BE47=\"\",\"\",+'[2]REAL IPC(M)'!$BE47)","v":"n.d."},{"$f":"IF('[2]REAL IPC(M)'!$AM47=\"\",\"\",+'[2]REAL IPC(M)'!$AM47)","v":12.329832749902758},{"$f":"IF('[2]REAL IPC(M)'!$BI47=\"\",\"\",+'[2]REAL IPC(M)'!$BI47)","v":"n.d."},{"$f":"IF('[2]REAL IMAE(M)'!BJ47=\"\",\"\",'[2]REAL IMAE(M)'!BJ47)","v":"n.d."},{"$f":"IF('[2]REAL IMAE(M)'!BK47=\"\",\"\",'[2]REAL IMAE(M)'!BK47)","v":"n.d."},{"$f":"IF('[2]REAL IMAE(M)'!BN47=\"\",\"\",'[2]REAL IMAE(M)'!BN47)","v":"n.d."},{"$f":"IF('[2]REAL IMAE(M)'!BO47=\"\",\"\",'[2]REAL IMAE(M)'!BO47)","v":"n.d."},{"$f":"IF('[2]EXT RIN(M)'!$K47=\"\",\"\",'[2]EXT RIN(M)'!$K47)","v":"n.d."},"",{"$f":"IF('[2]EXT RIN(M)'!$L47=\"\",\"\",'[2]EXT RIN(M)'!$L47)","v":"n.d."},"",{"$f":"IF('[2]MONE(M)CARD'!EG47=\"\",\"\",'[2]MONE(M)CARD'!EG47)","v":"n.d."},{"$f":"IF('[2]MONE(M)CARD'!EK47=\"\",\"\",'[2]MONE(M)CARD'!EK47)","v":"n.d."},{"$f":"IF('[2]MONE(M)CARD'!EP47=\"\",\"\",'[2]MONE(M)CARD'!EP47)","v":"n.d."},{"$f":"IF('[2]MONE(M)CARD'!ES47=\"\",\"\",'[2]MONE(M)CARD'!ES47)","v":"n.d."},{"$f":"IF('[2]MONE(M)CARD'!EV47=\"\",\"\",'[2]MONE(M)CARD'!EV47)","v":"n.d."},{"$f":"IF('[2]MONE(M)CARD'!EZ47=\"\",\"\",'[2]MONE(M)CARD'!EZ47)","v":"n.d."},{"$f":"IF('[2]MONE(M)CAPARD'!FC47=\"\",\"\",'[2]MONE(M)CAPARD'!FC47)","v":"n.d."},{"$f":"IF('[2]MONE(M)CAPARD'!FG47=\"\",\"\",'[2]MONE(M)CAPARD'!FG47)","v":"n.d."},{"$f":"IF('[2]MONE(M)CAPARD'!FL47=\"\",\"\",'[2]MONE(M)CAPARD'!FL47)","v":"n.d."},{"$f":"IF('[2]MONE(M)CAPARD'!FO47=\"\",\"\",'[2]MONE(M)CAPARD'!FO47)","v":"n.d."},{"$f":"IF('[2]MONE(M)CAPARD'!FR47=\"\",\"\",'[2]MONE(M)CAPARD'!FR47)","v":"n.d."},{"$f":"IF('[2]MONE(M)CAPARD'!FV47=\"\",\"\",'[2]MONE(M)CAPARD'!FV47)","v":"n.d."},{"$f":"IF('[2]MONE(M)CARD'!FV47=\"\",\"\",'[2]MONE(M)CARD'!FV47)","v":""},{"$f":"IF('[2]MONE(M)CARD'!GD47=\"\",\"\",'[2]MONE(M)CARD'!GD47)","v":"n.d."},{"$f":"IF('[2]MONE(M)CARD'!GE47=\"\",\"\",'[2]MONE(M)CARD'!GE47)","v":"n.d."},"n.d.","n.d.","n.d.","n.d.","n.d.","n.d.","n.d.","n.d.",null,"n.d.","n.d.","n.d.","n.d.","n.d.",{"$f":"IF('[2]MONE(M)CAPARD'!GS47=\"\",\"\",'[2]MONE(M)CAPARD'!GS47)","v":"n.d."},{"$f":"IF('[2]MONE(M)CARD'!HA47=\"\",\"\",'[2]MONE(M)CAPARD'!HA47)","v":"n.d."},{"$f":"IF('[2]MONE(M)CAPARD'!HB47=\"\",\"\",'[2]MONE(M)CAPARD'!HB47)","v":"n.d."},"n.d.","n.d.","n.d.","n.d.","n.d.","n.d.","n.d.","n.d.","n.d.","n.d.","n.d.","n.d.","n.d.","n.d.",{"$f":"IF('[2]MONE(M)CAPARD'!AS47=\"\",\"\",'[2]MONE(M)CAPARD'!AS47)","v":"n.d."},{"$f":"IF('[2]MONE(M)CAPARD'!AT47=\"\",\"\",'[2]MONE(M)CAPARD'!AT47)","v":"n.a."},{"$f":"IF('[2]MONE(M)CAPARD'!AU47=\"\",\"\",'[2]MONE(M)CAPARD'!AU47)","v":"n.d."},{"$f":"IF('[2]MONE(M)CAPARD'!AV47=\"\",\"\",'[2]MONE(M)CAPARD'!AV47)","v":"n.d."},{"$f":"IF('[2]MONE(M)CAPARD'!AW47=\"\",\"\",'[2]MONE(M)CAPARD'!AW47)","v":"n.a."},{"$f":"IF('[2]MONE(M)CAPARD'!AX47=\"\",\"\",'[2]MONE(M)CAPARD'!AX47)","v":"n.d."},{"$f":"IF('[2]MONE(M)CAPARD'!AY47=\"\",\"\",'[2]MONE(M)CAPARD'!AY47)","v":"n.a."},{"$f":"IF('[2]FISCAL(M)'!$K47=\"\",\"\",'[2]FISCAL(M)'!$K47)","v":"n.d."},{"$f":"IF('[2]FISCAL(M)'!$L47=\"\",\"\",'[2]FISCAL(M)'!$L47)","v":"n.d."},{"$f":"IF('[2]FISCAL(M)'!$AY47=\"\",\"\",'[2]FISCAL(M)'!$AY47)","v":"n.d."},{"$f":"IF('[2]FISCAL(M)'!$BI47=\"\",\"\",'[2]FISCAL(M)'!$BI47)","v":"n.d."},{"$f":"IF('[2]FISCAL(M)'!$BS47=\"\",\"\",'[2]FISCAL(M)'!$BS47)","v":"n.d."},{"$f":"IF('[2]FISCAL(M)'!$AZ47=\"\",\"\",'[2]FISCAL(M)'!$AZ47)","v":"n.d."},{"$f":"IF('[2]FISCAL(M)'!$BJ47=\"\",\"\",'[2]FISCAL(M)'!$BJ47)","v":"n.d."},{"$f":"IF('[2]FISCAL(M)'!$BT47=\"\",\"\",'[2]FISCAL(M)'!$BT47)","v":"n.d."},{"$f":"IF('[3]MONE(M)'!$AO47=\"\",\"\",'[3]MONE(M)'!$AO47)","v":"n.d."},{"$f":"IF('[4]MONE(M)'!$AO47=\"\",\"\",'[4]MONE(M)'!$AO47)","v":"n.d."},{"$f":"IF('[5]MONE(M)'!$AO47=\"\",\"\",'[5]MONE(M)'!$AO47)","v":"n.d."},{"$f":"+'[1]MONE(M)'!$AO47","v":"n.d."},{"$f":"IF('[6]MONE(M)'!$AO47=\"\",\"\",'[6]MONE(M)'!$AO47)","v":"n.d."},{"$f":"IF('[7]MONE(M)'!$AO47=\"\",\"\",'[7]MONE(M)'!$AO47)","v":"n.d."},{"$f":"IF('[8]MONE(M)'!$AO47=\"\",\"\",'[8]MONE(M)'!$AO47)","v":"n.d."},"n.d.","n.d.","n.d.","n.d.","n.d.","n.d.","n.d.",{"$f":"IF('[2]FISCAL(M)'!$K47=\"\",\"\",'[2]FISCAL(M)'!$K47)","v":"n.d."},"n.d.","n.d.",{"$f":"IF('[2]FISCAL(M)'!$L47=\"\",\"\",'[2]FISCAL(M)'!$L47)","v":"n.d."},"n.d.","n.d.","n.d.","n.d.","n.d.","n.d.","n.d.","n.d.","n.d.","n.d.","n.d.","n.d.","n.d.","n.d.","n.d.","n.d.","n.d.","n.d."]
[1993,"marzo","1993-marzo",{"$f":"IF('[2]REAL IPC(M)'!$AL48=\"\",\"\",+'[2]REAL IPC(M)'!$AL48)","v":13.101952277657269},{"$f":"IF('[2]REAL IPC(M)'!$BE48=\"\",\"\",+'[2]REAL IPC(M)'!$BE48)","v":"n.d."},{"$f":"IF('[2]REAL IPC(M)'!$AM48=\"\",\"\",+'[2]REAL IPC(M)'!$AM48)","v":11.871616395978357},{"$f":"IF('[2]REAL IPC(M)'!$BI48=\"\",\"\",+'[2]REAL IPC(M)'!$BI48)","v":"n.d."},{"$f":"IF('[2]REAL IMAE(M)'!BJ48=\"\",\"\",'[2]REAL IMAE(M)'!BJ48)","v":"n.d."},{"$f":"IF('[2]REAL IMAE(M)'!BK48=\"\",\"\",'[2]REAL IMAE(M)'!BK48)","v":"n.d."},{"$f":"IF('[2]REAL IMAE(M)'!BN48=\"\",\"\",'[2]REAL IMAE(M)'!BN48)","v":"n.d."},{"$f":"IF('[2]REAL IMAE(M)'!BO48=\"\",\"\",'[2]REAL IMAE(M)'!BO48)","v":"n.d."},{"$f":"IF('[2]EXT RIN(M)'!$K48=\"\",\"\",'[2]EXT RIN(M)'!$K48)","v":"n.d."},"",{"$f":"IF('[2]EXT RIN(M)'!$L48=\"\",\"\",'[2]EXT RIN(M)'!$L48)","v":"n.d."},"",{"$f":"IF('[2]MONE(M)CARD'!EG48=\"\",\"\",'[2]MONE(M)CARD'!EG48)","v":"n.d."},{"$f":"IF('[2]MONE(M)CARD'!EK48=\"\",\"\",'[2]MONE(M)CARD'!EK48)","v":"n.d."},{"$f":"IF('[2]MONE(M)CARD'!EP48=\"\",\"\",'[2]MONE(M)CARD'!EP48)","v":"n.d."},{"$f":"IF('[2]MONE(M)CARD'!ES48=\"\",\"\",'[2]MONE(M)CARD'!ES48)","v":"n.d."},{"$f":"IF('[2]MONE(M)CARD'!EV48=\"\",\"\",'[2]MONE(M)CARD'!EV48)","v":"n.d."},{"$f":"IF('[2]MONE(M)CARD'!EZ48=\"\",\"\",'[2]MONE(M)CARD'!EZ48)","v":"n.d."},{"$f":"IF('[2]MONE(M)CAPARD'!FC48=\"\",\"\",'[2]MONE(M)CAPARD'!FC48)","v":"n.d."},{"$f":"IF('[2]MONE(M)CAPARD'!FG48=\"\",\"\",'[2]MONE(M)CAPARD'!FG48)","v":"n.d."},{"$f":"IF('[2]MONE(M)CAPARD'!FL48=\"\",\"\",'[2]MONE(M)CAPARD'!FL48)","v":"n.d."},{"$f":"IF('[2]MONE(M)CAPARD'!FO48=\"\",\"\",'[2]MONE(M)CAPARD'!FO48)","v":"n.d."},{"$f":"IF('[2]MONE(M)CAPARD'!FR48=\"\",\"\",'[2]MONE(M)CAPARD'!FR48)","v":"n.d."},{"$f":"IF('[2]MONE(M)CAPARD'!FV48=\"\",\"\",'[2]MONE(M)CAPARD'!FV48)","v":"n.d."},{"$f":"IF('[2]MONE(M)CARD'!FV48=\"\",\"\",'[2]MONE(M)CARD'!FV48)","v":""},{"$f":"IF('[2]MONE(M)CARD'!GD48=\"\",\"\",'[2]MONE(M)CARD'!GD48)","v":"n.d."},{"$f":"IF('[2]MONE(M)CARD'!GE48=\"\",\"\",'[2]MONE(M)CARD'!GE48)","v":"n.d."},"n.d.","n.d.","n.d.","n.d.","n.d.","n.d.","n.d.","n.d.",null,"n.d.","n.d.","n.d.","n.d.","n.d.",{"$f":"IF('[2]MONE(M)CAPARD'!GS48=\"\",\"\",'[2]MONE(M)CAPARD'!GS48)","v":"n.d."},{"$f":"IF('[2]MONE(M)CARD'!HA48=\"\",\"\",'[2]MONE(M)CAPARD'!HA48)","v":"n.d."},{"$f":"IF('[2]MONE(M)CAPARD'!HB48=\"\",\"\",'[2]MONE(M)CAPARD'!HB48)","v":"n.d."},"n.d.","n.d.","n.d.","n.d.","n.d.","n.d.","n.d.","n.d.","n.d.","n.d.","n.d.","n.d.","n.d.","n.d.",{"$f":"IF('[2]MONE(M)CAPARD'!AS48=\"\",\"\",'[2]MONE(M)CAPARD'!AS48)","v":"n.d."},{"$f":"IF('[2]MONE(M)CAPARD'!AT48=\"\",\"\",'[2]MONE(M)CAPARD'!AT48)","v":"n.a."},{"$f":"IF('[2]MONE(M)CAPARD'!AU48=\"\",\"\",'[2]MONE(M)CAPARD'!AU48)","v":"n.d."},{"$f":"IF('[2]MONE(M)CAPARD'!AV48=\"\",\"\",'[2]MONE(M)CAPARD'!AV48)","v":"n.d."},{"$f":"IF('[2]MONE(M)CAPARD'!AW48=\"\",\"\",'[2]MONE(M)CAPARD'!AW48)","v":"n.a."},{"$f":"IF('[2]MONE(M)CAPARD'!AX48=\"\",\"\",'[2]MONE(M)CAPARD'!AX48)","v":"n.d."},{"$f":"IF('[2]MONE(M)CAPARD'!AY48=\"\",\"\",'[2]MONE(M)CAPARD'!AY48)","v":"n.a."},{"$f":"IF('[2]FISCAL(M)'!$K48=\"\",\"\",'[2]FISCAL(M)'!$K48)","v":"n.d."},{"$f":"IF('[2]FISCAL(M)'!$L48=\"\",\"\",'[2]FISCAL(M)'!$L48)","v":"n.d."},{"$f":"IF('[2]FISCAL(M)'!$AY48=\"\",\"\",'[2]FISCAL(M)'!$AY48)","v":"n.d."},{"$f":"IF('[2]FISCAL(M)'!$BI48=\"\",\"\",'[2]FISCAL(M)'!$BI48)","v":"n.d."},{"$f":"IF('[2]FISCAL(M)'!$BS48=\"\",\"\",'[2]FISCAL(M)'!$BS48)","v":"n.d."},{"$f":"IF('[2]FISCAL(M)'!$AZ48=\"\",\"\",'[2]FISCAL(M)'!$AZ48)","v":"n.d."},{"$f":"IF('[2]FISCAL(M)'!$BJ48=\"\",\"\",'[2]FISCAL(M)'!$BJ48)","v":"n.d."},{"$f":"IF('[2]FISCAL(M)'!$BT48=\"\",\"\",'[2]FISCAL(M)'!$BT48)","v":"n.d."},{"$f":"IF('[3]MONE(M)'!$AO48=\"\",\"\",'[3]MONE(M)'!$AO48)","v":"n.d."},{"$f":"IF('[4]MONE(M)'!$AO48=\"\",\"\",'[4]MONE(M)'!$AO48)","v":"n.d."},{"$f":"IF('[5]MONE(M)'!$AO48=\"\",\"\",'[5]MONE(M)'!$AO48)","v":"n.d."},{"$f":"+'[1]MONE(M)'!$AO48","v":"n.d."},{"$f":"IF('[6]MONE(M)'!$AO48=\"\",\"\",'[6]MONE(M)'!$AO48)","v":"n.d."},{"$f":"IF('[7]MONE(M)'!$AO48=\"\",\"\",'[7]MONE(M)'!$AO48)","v":"n.d."},{"$f":"IF('[8]MONE(M)'!$AO48=\"\",\"\",'[8]MONE(M)'!$AO48)","v":"n.d."},"n.d.","n.d.","n.d.","n.d.","n.d.","n.d.","n.d.",{"$f":"IF('[2]FISCAL(M)'!$K48=\"\",\"\",'[2]FISCAL(M)'!$K48)","v":"n.d."},"n.d.","n.d.",{"$f":"IF('[2]FISCAL(M)'!$L48=\"\",\"\",'[2]FISCAL(M)'!$L48)","v":"n.d."},"n.d.","n.d.","n.d.","n.d.","n.d.","n.d.","n.d.","n.d.","n.d.","n.d.","n.d.","n.d.","n.d.","n.d.","n.d.","n.d.","n.d.","n.d."]
[1993,"abril","1993-abril",{"$f":"IF('[2]REAL IPC(M)'!$AL49=\"\",\"\",+'[2]REAL IPC(M)'!$AL49)","v":12.854686156491834},{"$f":"IF('[2]REAL IPC(M)'!$BE49=\"\",\"\",+'[2]REAL IPC(M)'!$BE49)","v":"n.d."},{"$f":"IF('[2]REAL IPC(M)'!$AM49=\"\",\"\",+'[2]REAL IPC(M)'!$AM49)","v":11.618098159509206},{"$f":"IF('[2]REAL IPC(M)'!$BI49=\"\",\"\",+'[2]REAL IPC(M)'!$BI49)","v":"n.d."},{"$f":"IF('[2]REAL IMAE(M)'!BJ49=\"\",\"\",'[2]REAL IMAE(M)'!BJ49)","v":"n.d."},{"$f":"IF('[2]REAL IMAE(M)'!BK49=\"\",\"\",'[2]REAL IMAE(M)'!BK49)","v":"n.d."},{"$f":"IF('[2]REAL IMAE(M)'!BN49=\"\",\"\",'[2]REAL IMAE(M)'!BN49)","v":"n.d."},{"$f":"IF('[2]REAL IMAE(M)'!BO49=\"\",\"\",'[2]REAL IMAE(M)'!BO49)","v":"n.d."},{"$f":"IF('[2]EXT RIN(M)'!$K49=\"\",\"\",'[2]EXT RIN(M)'!$K49)","v":"n.d."},"",{"$f":"IF('[2]EXT RIN(M)'!$L49=\"\",\"\",'[2]EXT RIN(M)'!$L49)","v":"n.d."},"",{"$f":"IF('[2]MONE(M)CARD'!EG49=\"\",\"\",'[2]MONE(M)CARD'!EG49)","v":"n.d."},{"$f":"IF('[2]MONE(M)CARD'!EK49=\"\",\"\",'[2]MONE(M)CARD'!EK49)","v":"n.d."},{"$f":"IF('[2]MONE(M)CARD'!EP49=\"\",\"\",'[2]MONE(M)CARD'!EP49)","v":"n.d."},{"$f":"IF('[2]MONE(M)CARD'!ES49=\"\",\"\",'[2]MONE(M)CARD'!ES49)","v":"n.d."},{"$f":"IF('[2]MONE(M)CARD'!EV49=\"\",\"\",'[2]MONE(M)CARD'!EV49)","v":"n.d."},{"$f":"IF('[2]MONE(M)CARD'!EZ49=\"\",\"\",'[2]MONE(M)CARD'!EZ49)","v":"n.d."},{"$f":"IF('[2]MONE(M)CAPARD'!FC49=\"\",\"\",'[2]MONE(M)CAPARD'!FC49)","v":"n.d."},{"$f":"IF('[2]MONE(M)CAPARD'!FG49=\"\",\"\",'[2]MONE(M)CAPARD'!FG49)","v":"n.d."},{"$f":"IF('[2]MONE(M)CAPARD'!FL49=\"\",\"\",'[2]MONE(M)CAPARD'!FL49)","v":"n.d."},{"$f":"IF('[2]MONE(M)CAPARD'!FO49=\"\",\"\",'[2]MONE(M)CAPARD'!FO49)","v":"n.d."},{"$f":"IF('[2]MONE(M)CAPARD'!FR49=\"\",\"\",'[2]MONE(M)CAPARD'!FR49)","v":"n.d."},{"$f":"IF('[2]MONE(M)CAPARD'!FV49=\"\",\"\",'[2]MONE(M)CAPARD'!FV49)","v":"n.d."},{"$f":"IF('[2]MONE(M)CARD'!FV49=\"\",\"\",'[2]MONE(M)CARD'!FV49)","v":""},{"$f":"IF('[2]MONE(M)CARD'!GD49=\"\",\"\",'[2]MONE(M)CARD'!GD49)","v":"n.d."},{"$f":"IF('[2]MONE(M)CARD'!GE49=\"\",\"\",'[2]MONE(M)CARD'!GE49)","v":"n.d."},"n.d.","n.d.","n.d.","n.d.","n.d.","n.d.","n.d.","n.d.",null,"n.d.","n.d.","n.d.","n.d.","n.d.",{"$f":"IF('[2]MONE(M)CAPARD'!GS49=\"\",\"\",'[2]MONE(M)CAPARD'!GS49)","v":"n.d."},{"$f":"IF('[2]MONE(M)CARD'!HA49=\"\",\"\",'[2]MONE(M)CAPARD'!HA49)","v":"n.d."},{"$f":"IF('[2]MONE(M)CAPARD'!HB49=\"\",\"\",'[2]MONE(M)CAPARD'!HB49)","v":"n.d."},"n.d.","n.d.","n.d.","n.d.","n.d.","n.d.","n.d.","n.d.","n.d.","n.d.","n.d.","n.d.","n.d.","n.d.",{"$f":"IF('[2]MONE(M)CAPARD'!AS49=\"\",\"\",'[2]MONE(M)CAPARD'!AS49)","v":"n.d."},{"$f":"IF('[2]MONE(M)CAPARD'!AT49=\"\",\"\",'[2]MONE(M)CAPARD'!AT49)","v":"n.a."},{"$f":"IF('[2]MONE(M)CAPARD'!AU49=\"\",\"\",'[2]MONE(M)CAPARD'!AU49)","v":"n.d."},{"$f":"IF('[2]MONE(M)CAPARD'!AV49=\"\",\"\",'[2]MONE(M)CAPARD'!AV49)","v":"n.d."},{"$f":"IF('[2]MONE(M)CAPARD'!AW49=\"\",\"\",'[2]MONE(M)CAPARD'!AW49)","v":"n.a."},{"$f":"IF('[2]MONE(M)CAPARD'!AX49=\"\",\"\",'[2]MONE(M)CAPARD'!AX49)","v":"n.d."},{"$f":"IF('[2]MONE(M)CAPARD'!AY49=\"\",\"\",'[2]MONE(M)CAPARD'!AY49)","v":"n.a."},{"$f":"IF('[2]FISCAL(M)'!$K49=\"\",\"\",'[2]FISCAL(M)'!$K49)","v":"n.d."},{"$f":"IF('[2]FISCAL(M)'!$L49=\"\",\"\",'[2]FISCAL(M)'!$L49)","v":"n.d."},{"$f":"IF('[2]FISCAL(M)'!$AY49=\"\",\"\",'[2]FISCAL(M)'!$AY49)","v":"n.d."},{"$f":"IF('[2]FISCAL(M)'!$BI49=\"\",\"\",'[2]FISCAL(M)'!$BI49)","v":"n.d."},{"$f":"IF('[2]FISCAL(M)'!$BS49=\"\",\"\",'[2]FISCAL(M)'!$BS49)","v":"n.d."},{"$f":"IF('[2]FISCAL(M)'!$AZ49=\"\",\"\",'[2]FISCAL(M)'!$AZ49)","v":"n.d."},{"$f":"IF('[2]FISCAL(M)'!$BJ49=\"\",\"\",'[2]FISCAL(M)'!$BJ49)","v":"n.d."},{"$f":"IF('[2]FISCAL(M)'!$BT49=\"\",\"\",'[2]FISCAL(M)'!$BT49)","v":"n.d."},{"$f":"IF('[3]MONE(M)'!$AO49=\"\",\"\",'[3]MONE(M)'!$AO49)","v":"n.d."},{"$f":"IF('[4]MONE(M)'!$AO49=\"\",\"\",'[4]MONE(M)'!$AO49)","v":"n.d."},{"$f":"IF('[5]MONE(M)'!$AO49=\"\",\"\",'[5]MONE(M)'!$AO49)","v":"n.d."},{"$f":"+'[1]MONE(M)'!$AO49","v":"n.d."},{"$f":"IF('[6]MONE(M)'!$AO49=\"\",\"\",'[6]MONE(M)'!$AO49)","v":"n.d."},{"$f":"IF('[7]MONE(M)'!$AO49=\"\",\"\",'[7]MONE(M)'!$AO49)","v":"n.d."},{"$f":"IF('[8]MONE(M)'!$AO49=\"\",\"\",'[8]MONE(M)'!$AO49)","v":"n.d."},"n.d.","n.d.","n.d.","n.d.","n.d.","n.d.","n.d.",{"$f":"IF('[2]FISCAL(M)'!$K49=\"\",\"\",'[2]FISCAL(M)'!$K49)","v":"n.d."},"n.d.","n.d.",{"$f":"IF('[2]FISCAL(M)'!$L49=\"\",\"\",'[2]FISCAL(M)'!$L49)","v":"n.d."},"n.d.","n.d.","n.d.","n.d.","n.d.","n.d.","n.d.","n.d.","n.d.","n.d.","n.d.","n.d.","n.d.","n.d.","n.d.","n.d.","n.d.","n.d."]
[1993,"mayo ","1993-mayo ",{"$f":"IF('[2]REAL IPC(M)'!$AL50=\"\",\"\",+'[2]REAL IPC(M)'!$AL50)","v":13.013698630136993},{"$f":"IF('[2]REAL IPC(M)'!$BE50=\"\",\"\",+'[2]REAL IPC(M)'!$BE50)","v":"n.d."},{"$f":"IF('[2]REAL IPC(M)'!$AM50=\"\",\"\",+'[2]REAL IPC(M)'!$AM50)","v":11.760213822069488},{"$f":"IF('[2]REAL IPC(M)'!$BI50=\"\",\"\",+'[2]REAL IPC(M)'!$BI50)","v":"n.d."},{"$f":"IF('[2]REAL IMAE(M)'!BJ50=\"\",\"\",'[2]REAL IMAE(M)'!BJ50)","v":"n.d."},{"$f":"IF('[2]REAL IMAE(M)'!BK50=\"\",\"\",'[2]REAL IMAE(M)'!BK50)","v":"n.d."},{"$f":"IF('[2]REAL IMAE(M)'!BN50=\"\",\"\",'[2]REAL IMAE(M)'!BN50)","v":"n.d."},{"$f":"IF('[2]REAL IMAE(M)'!BO50=\"\",\"\",'[2]REAL IMAE(M)'!BO50)","v":"n.d."},{"$f":"IF('[2]EXT RIN(M)'!$K50=\"\",\"\",'[2]EXT RIN(M)'!$K50)","v":"n.d."},"",{"$f":"IF('[2]EXT RIN(M)'!$L50=\"\",\"\",'[2]EXT RIN(M)'!$L50)","v":"n.d."},"",{"$f":"IF('[2]MONE(M)CARD'!EG50=\"\",\"\",'[2]MONE(M)CARD'!EG50)","v":"n.d."},{"$f":"IF('[2]MONE(M)CARD'!EK50=\"\",\"\",'[2]MONE(M)CARD'!EK50)","v":"n.d."},{"$f":"IF('[2]MONE(M)CARD'!EP50=\"\",\"\",'[2]MONE(M)CARD'!EP50)","v":"n.d."},{"$f":"IF('[2]MONE(M)CARD'!ES50=\"\",\"\",'[2]MONE(M)CARD'!ES50)","v":"n.d."},{"$f":"IF('[2]MONE(M)CARD'!EV50=\"\",\"\",'[2]MONE(M)CARD'!EV50)","v":"n.d."},{"$f":"IF('[2]MONE(M)CARD'!EZ50=\"\",\"\",'[2]MONE(M)CARD'!EZ50)","v":"n.d."},{"$f":"IF('[2]MONE(M)CAPARD'!FC50=\"\",\"\",'[2]MONE(M)CAPARD'!FC50)","v":"n.d."},{"$f":"IF('[2]MONE(M)CAPARD'!FG50=\"\",\"\",'[2]MONE(M)CAPARD'!FG50)","v":"n.d."},{"$f":"IF('[2]MONE(M)CAPARD'!FL50=\"\",\"\",'[2]MONE(M)CAPARD'!FL50)","v":"n.d."},{"$f":"IF('[2]MONE(M)CAPARD'!FO50=\"\",\"\",'[2]MONE(M)CAPARD'!FO50)","v":"n.d."},{"$f":"IF('[2]MONE(M)CAPARD'!FR50=\"\",\"\",'[2]MONE(M)CAPARD'!FR50)","v":"n.d."},{"$f":"IF('[2]MONE(M)CAPARD'!FV50=\"\",\"\",'[2]MONE(M)CAPARD'!FV50)","v":"n.d."},{"$f":"IF('[2]MONE(M)CARD'!FV50=\"\",\"\",'[2]MONE(M)CARD'!FV50)","v":""},{"$f":"IF('[2]MONE(M)CARD'!GD50=\"\",\"\",'[2]MONE(M)CARD'!GD50)","v":"n.d."},{"$f":"IF('[2]MONE(M)CARD'!GE50=\"\",\"\",'[2]MONE(M)CARD'!GE50)","v":"n.d."},"n.d.","n.d.","n.d.","n.d.","n.d.","n.d.","n.d.","n.d.",null,"n.d.","n.d.","n.d.","n.d.","n.d.",{"$f":"IF('[2]MONE(M)CAPARD'!GS50=\"\",\"\",'[2]MONE(M)CAPARD'!GS50)","v":"n.d."},{"$f":"IF('[2]MONE(M)CARD'!HA50=\"\",\"\",'[2]MONE(M)CAPARD'!HA50)","v":"n.d."},{"$f":"IF('[2]MONE(M)CAPARD'!HB50=\"\",\"\",'[2]MONE(M)CAPARD'!HB50)","v":"n.d."},"n.d.","n.d.","n.d.","n.d.","n.d.","n.d.","n.d.","n.d.","n.d.","n.d.","n.d.","n.d.","n.d.","n.d.",{"$f":"IF('[2]MONE(M)CAPARD'!AS50=\"\",\"\",'[2]MONE(M)CAPARD'!AS50)","v":"n.d."},{"$f":"IF('[2]MONE(M)CAPARD'!AT50=\"\",\"\",'[2]MONE(M)CAPARD'!AT50)","v":"n.a."},{"$f":"IF('[2]MONE(M)CAPARD'!AU50=\"\",\"\",'[2]MONE(M)CAPARD'!AU50)","v":"n.d."},{"$f":"IF('[2]MONE(M)CAPARD'!AV50=\"\",\"\",'[2]MONE(M)CAPARD'!AV50)","v":"n.d."},{"$f":"IF('[2]MONE(M)CAPARD'!AW50=\"\",\"\",'[2]MONE(M)CAPARD'!AW50)","v":"n.a."},{"$f":"IF('[2]MONE(M)CAPARD'!AX50=\"\",\"\",'[2]MONE(M)CAPARD'!AX50)","v":"n.d."},{"$f":"IF('[2]MONE(M)CAPARD'!AY50=\"\",\"\",'[2]MONE(M)CAPARD'!AY50)","v":"n.a."},{"$f":"IF('[2]FISCAL(M)'!$K50=\"\",\"\",'[2]FISCAL(M)'!$K50)","v":"n.d."},{"$f":"IF('[2]FISCAL(M)'!$L50=\"\",\"\",'[2]FISCAL(M)'!$L50)","v":"n.d."},{"$f":"IF('[2]FISCAL(M)'!$AY50=\"\",\"\",'[2]FISCAL(M)'!$AY50)","v":"n.d."},{"$f":"IF('[2]FISCAL(M)'!$BI50=\"\",\"\",'[2]FISCAL(M)'!$BI50)","v":"n.d."},{"$f":"IF('[2]FISCAL(M)'!$BS50=\"\",\"\",'[2]FISCAL(M)'!$BS50)","v":"n.d."},{"$f":"IF('[2]FISCAL(M)'!$AZ50=\"\",\"\",'[2]FISCAL(M)'!$AZ50)","v":"n.d."},{"$f":"IF('[2]FISCAL(M)'!$BJ50=\"\",\"\",'[2]FISCAL(M)'!$BJ50)","v":"n.d."},{"$f":"IF('[2]FISCAL(M)'!$BT50=\"\",\"\",'[2]FISCAL(M)'!$BT50)","v":"n.d."},{"$f":"IF('[3]MONE(M)'!$AO50=\"\",\"\",'[3]MONE(M)'!$AO50)","v":"n.d."},{"$f":"IF('[4]MONE(M)'!$AO50=\"\",\"\",'[4]MONE(M)'!$AO50)","v":"n.d."},{"$f":"IF('[5]MONE(M)'!$AO50=\"\",\"\",'[5]MONE(M)'!$AO50)","v":"n.d."},{"$f":"+'[1]MONE(M)'!$AO50","v":"n.d."},{"$f":"IF('[6]MONE(M)'!$AO50=\"\",\"\",'[6]MONE(M)'!$AO50)","v":"n.d."},{"$f":"IF('[7]MONE(M)'!$AO50=\"\",\"\",'[7]MONE(M)'!$AO50)","v":"n.d."},{"$f":"IF('[8]MONE(M)'!$AO50=\"\",\"\",'[8]MONE(M)'!$AO50)","v":"n.d."},"n.d.","n.d.","n.d.","n.d.","n.d.","n.d.","n.d.",{"$f":"IF('[2]FISCAL(M)'!$K50=\"\",\"\",'[2]FISCAL(M)'!$K50)","v":"n.d."},"n.d.","n.d.",{"$f":"IF('[2]FISCAL(M)'!$L50=\"\",\"\",'[2]FISCAL(M)'!$L50)","v":"n.d."},"n.d.","n.d.","n.d.","n.d.","n.d.","n.d.","n.d.","n.d.","n.d.","n.d.","n.d.","n.d.","n.d.","n.d.","n.d.","n.d.","n.d.","n.d."]
[1993,"junio ","1993-junio ",{"$f":"IF('[2]REAL IPC(M)'!$AL51=\"\",\"\",+'[2]REAL IPC(M)'!$AL51)","v":13.423385394681308},{"$f":"IF('[2]REAL IPC(M)'!$BE51=\"\",\"\",+'[2]REAL IPC(M)'!$BE51)","v":"n.d."},{"$f":"IF('[2]REAL IPC(M)'!$AM51=\"\",\"\",+'[2]REAL IPC(M)'!$AM51)","v":12.094951017332335},{"$f":"IF('[2]REAL IPC(M)'!$BI51=\"\",\"\",+'[2]REAL IPC(M)'!$BI51)","v":"n.d."},{"$f":"IF('[2]REAL IMAE(M)'!BJ51=\"\",\"\",'[2]REAL IMAE(M)'!BJ51)","v":"n.d."},{"$f":"IF('[2]REAL IMAE(M)'!BK51=\"\",\"\",'[2]REAL IMAE(M)'!BK51)","v":"n.d."},{"$f":"IF('[2]REAL IMAE(M)'!BN51=\"\",\"\",'[2]REAL IMAE(M)'!BN51)","v":"n.d."},{"$f":"IF('[2]REAL IMAE(M)'!BO51=\"\",\"\",'[2]REAL IMAE(M)'!BO51)","v":"n.d."},{"$f":"IF('[2]EXT RIN(M)'!$K51=\"\",\"\",'[2]EXT RIN(M)'!$K51)","v":"n.d."},"",{"$f":"IF('[2]EXT RIN(M)'!$L51=\"\",\"\",'[2]EXT RIN(M)'!$L51)","v":"n.d."},"",{"$f":"IF('[2]MONE(M)CARD'!EG51=\"\",\"\",'[2]MONE(M)CARD'!EG51)","v":"n.d."},{"$f":"IF('[2]MONE(M)CARD'!EK51=\"\",\"\",'[2]MONE(M)CARD'!EK51)","v":"n.d."},{"$f":"IF('[2]MONE(M)CARD'!EP51=\"\",\"\",'[2]MONE(M)CARD'!EP51)","v":"n.d."},{"$f":"IF('[2]MONE(M)CARD'!ES51=\"\",\"\",'[2]MONE(M)CARD'!ES51)","v":"n.d."},{"$f":"IF('[2]MONE(M)CARD'!EV51=\"\",\"\",'[2]MONE(M)CARD'!EV51)","v":"n.d."},{"$f":"IF('[2]MONE(M)CARD'!EZ51=\"\",\"\",'[2]MONE(M)CARD'!EZ51)","v":"n.d."},{"$f":"IF('[2]MONE(M)CAPARD'!FC51=\"\",\"\",'[2]MONE(M)CAPARD'!FC51)","v":"n.d."},{"$f":"IF('[2]MONE(M)CAPARD'!FG51=\"\",\"\",'[2]MONE(M)CAPARD'!FG51)","v":"n.d."},{"$f":"IF('[2]MONE(M)CAPARD'!FL51=\"\",\"\",'[2]MONE(M)CAPARD'!FL51)","v":"n.d."},{"$f":"IF('[2]MONE(M)CAPARD'!FO51=\"\",\"\",'[2]MONE(M)CAPARD'!FO51)","v":"n.d."},{"$f":"IF('[2]MONE(M)CAPARD'!FR51=\"\",\"\",'[2]MONE(M)CAPARD'!FR51)","v":"n.d."},{"$f":"IF('[2]MONE(M)CAPARD'!FV51=\"\",\"\",'[2]MONE(M)CAPARD'!FV51)","v":"n.d."},{"$f":"IF('[2]MONE(M)CARD'!FV51=\"\",\"\",'[2]MONE(M)CARD'!FV51)","v":""},{"$f":"IF('[2]MONE(M)CARD'!GD51=\"\",\"\",'[2]MONE(M)CARD'!GD51)","v":"n.d."},{"$f":"IF('[2]MONE(M)CARD'!GE51=\"\",\"\",'[2]MONE(M)CARD'!GE51)","v":"n.d."},"n.d.","n.d.","n.d.","n.d.","n.d.","n.d.","n.d.","n.d.",null,"n.d.","n.d.","n.d.","n.d.","n.d.",{"$f":"IF('[2]MONE(M)CAPARD'!GS51=\"\",\"\",'[2]MONE(M)CAPARD'!GS51)","v":"n.d."},{"$f":"IF('[2]MONE(M)CARD'!HA51=\"\",\"\",'[2]MONE(M)CAPARD'!HA51)","v":"n.d."},{"$f":"IF('[2]MONE(M)CAPARD'!HB51=\"\",\"\",'[2]MONE(M)CAPARD'!HB51)","v":"n.d."},"n.d.","n.d.","n.d.","n.d.","n.d.","n.d.","n.d.","n.d.","n.d.","n.d.","n.d.","n.d.","n.d.","n.d.",{"$f":"IF('[2]MONE(M)CAPARD'!AS51=\"\",\"\",'[2]MONE(M)CAPARD'!AS51)","v":"n.d."},{"$f":"IF('[2]MONE(M)CAPARD'!AT51=\"\",\"\",'[2]MONE(M)CAPARD'!AT51)","v":"n.a."},{"$f":"IF('[2]MONE(M)CAPARD'!AU51=\"\",\"\",'[2]MONE(M)CAPARD'!AU51)","v":"n.d."},{"$f":"IF('[2]MONE(M)CAPARD'!AV51=\"\",\"\",'[2]MONE(M)CAPARD'!AV51)","v":"n.d."},{"$f":"IF('[2]MONE(M)CAPARD'!AW51=\"\",\"\",'[2]MONE(M)CAPARD'!AW51)","v":"n.a."},{"$f":"IF('[2]MONE(M)CAPARD'!AX51=\"\",\"\",'[2]MONE(M)CAPARD'!AX51)","v":"n.d."},{"$f":"IF('[2]MONE(M)CAPARD'!AY51=\"\",\"\",'[2]MONE(M)CAPARD'!AY51)","v":"n.a."},{"$f":"IF('[2]FISCAL(M)'!$K51=\"\",\"\",'[2]FISCAL(M)'!$K51)","v":"n.d."},{"$f":"IF('[2]FISCAL(M)'!$L51=\"\",\"\",'[2]FISCAL(M)'!$L51)","v":"n.d."},{"$f":"IF('[2]FISCAL(M)'!$AY51=\"\",\"\",'[2]FISCAL(M)'!$AY51)","v":"n.d."},{"$f":"IF('[2]FISCAL(M)'!$BI51=\"\",\"\",'[2]FISCAL(M)'!$BI51)","v":"n.d."},{"$f":"IF('[2]FISCAL(M)'!$BS51=\"\",\"\",'[2]FISCAL(M)'!$BS51)","v":"n.d."},{"$f":"IF('[2]FISCAL(M)'!$AZ51=\"\",\"\",'[2]FISCAL(M)'!$AZ51)","v":"n.d."},{"$f":"IF('[2]FISCAL(M)'!$BJ51=\"\",\"\",'[2]FISCAL(M)'!$BJ51)","v":"n.d."},{"$f":"IF('[2]FISCAL(M)'!$BT51=\"\",\"\",'[2]FISCAL(M)'!$BT51)","v":"n.d."},{"$f":"IF('[3]MONE(M)'!$AO51=\"\",\"\",'[3]MONE(M)'!$AO51)","v":"n.d."},{"$f":"IF('[4]MONE(M)'!$AO51=\"\",\"\",'[4]MONE(M)'!$AO51)","v":"n.d."},{"$f":"IF('[5]MONE(M)'!$AO51=\"\",\"\",'[5]MONE(M)'!$AO51)","v":"n.d."},{"$f":"+'[1]MONE(M)'!$AO51","v":"n.d."},{"$f":"IF('[6]MONE(M)'!$AO51=\"\",\"\",'[6]MONE(M)'!$AO51)","v":"n.d."},{"$f":"IF('[7]MONE(M)'!$AO51=\"\",\"\",'[7]MONE(M)'!$AO51)","v":"n.d."},{"$f":"IF('[8]MONE(M)'!$AO51=\"\",\"\",'[8]MONE(M)'!$AO51)","v":"n.d."},"n.d.","n.d.","n.d.","n.d.","n.d.","n.d.","n.d.",{"$f":"IF('[2]FISCAL(M)'!$K51=\"\",\"\",'[2]FISCAL(M)'!$K51)","v":"n.d."},"n.d.","n.d.",{"$f":"IF('[2]FISCAL(M)'!$L51=\"\",\"\",'[2]FISCAL(M)'!$L51)","v":"n.d."},"n.d.","n.d.","n.d.","n.d.","n.d.","n.d.","n.d.","n.d.","n.d.","n.d.","n.d.","n.d.","n.d.","n.d.","n.d.","n.d.","n.d.","n.d."]
[1993,"julio","1993-julio",{"$f":"IF('[2]REAL IPC(M)'!$AL52=\"\",\"\",+'[2]REAL IPC(M)'!$AL52)","v":14.327485380116967},{"$f":"IF('[2]REAL IPC(M)'!$BE52=\"\",\"\",+'[2]REAL IPC(M)'!$BE52)","v":"n.d."},{"$f":"IF('[2]REAL IPC(M)'!$AM52=\"\",\"\",+'[2]REAL IPC(M)'!$AM52)","v":12.957430918595957},{"$f":"IF('[2]REAL IPC(M)'!$BI52=\"\",\"\",+'[2]REAL IPC(M)'!$BI52)","v":"n.d."},{"$f":"IF('[2]REAL IMAE(M)'!BJ52=\"\",\"\",'[2]REAL IMAE(M)'!BJ52)","v":"n.d."},{"$f":"IF('[2]REAL IMAE(M)'!BK52=\"\",\"\",'[2]REAL IMAE(M)'!BK52)","v":"n.d."},{"$f":"IF('[2]REAL IMAE(M)'!BN52=\"\",\"\",'[2]REAL IMAE(M)'!BN52)","v":"n.d."},{"$f":"IF('[2]REAL IMAE(M)'!BO52=\"\",\"\",'[2]REAL IMAE(M)'!BO52)","v":"n.d."},{"$f":"IF('[2]EXT RIN(M)'!$K52=\"\",\"\",'[2]EXT RIN(M)'!$K52)","v":"n.d."},"",{"$f":"IF('[2]EXT RIN(M)'!$L52=\"\",\"\",'[2]EXT RIN(M)'!$L52)","v":"n.d."},"",{"$f":"IF('[2]MONE(M)CARD'!EG52=\"\",\"\",'[2]MONE(M)CARD'!EG52)","v":"n.d."},{"$f":"IF('[2]MONE(M)CARD'!EK52=\"\",\"\",'[2]MONE(M)CARD'!EK52)","v":"n.d."},{"$f":"IF('[2]MONE(M)CARD'!EP52=\"\",\"\",'[2]MONE(M)CARD'!EP52)","v":"n.d."},{"$f":"IF('[2]MONE(M)CARD'!ES52=\"\",\"\",'[2]MONE(M)CARD'!ES52)","v":"n.d."},{"$f":"IF('[2]MONE(M)CARD'!EV52=\"\",\"\",'[2]MONE(M)CARD'!EV52)","v":"n.d."},{"$f":"IF('[2]MONE(M)CARD'!EZ52=\"\",\"\",'[2]MONE(M)CARD'!EZ52)","v":"n.d."},{"$f":"IF('[2]MONE(M)CAPARD'!FC52=\"\",\"\",'[2]MONE(M)CAPARD'!FC52)","v":"n.d."},{"$f":"IF('[2]MONE(M)CAPARD'!FG52=\"\",\"\",'[2]MONE(M)CAPARD'!FG52)","v":"n.d."},{"$f":"IF('[2]MONE(M)CAPARD'!FL52=\"\",\"\",'[2]MONE(M)CAPARD'!FL52)","v":"n.d."},{"$f":"IF('[2]MONE(M)CAPARD'!FO52=\"\",\"\",'[2]MONE(M)CAPARD'!FO52)","v":"n.d."},{"$f":"IF('[2]MONE(M)CAPARD'!FR52=\"\",\"\",'[2]MONE(M)CAPARD'!FR52)","v":"n.d."},{"$f":"IF('[2]MONE(M)CAPARD'!FV52=\"\",\"\",'[2]MONE(M)CAPARD'!FV52)","v":"n.d."},{"$f":"IF('[2]MONE(M)CARD'!FV52=\"\",\"\",'[2]MONE(M)CARD'!FV52)","v":""},{"$f":"IF('[2]MONE(M)CARD'!GD52=\"\",\"\",'[2]MONE(M)CARD'!GD52)","v":"n.d."},{"$f":"IF('[2]MONE(M)CARD'!GE52=\"\",\"\",'[2]MONE(M)CARD'!GE52)","v":"n.d."},"n.d.","n.d.","n.d.","n.d.","n.d.","n.d.","n.d.","n.d.",null,"n.d.","n.d.","n.d.","n.d.","n.d.",{"$f":"IF('[2]MONE(M)CAPARD'!GS52=\"\",\"\",'[2]MONE(M)CAPARD'!GS52)","v":"n.d."},{"$f":"IF('[2]MONE(M)CARD'!HA52=\"\",\"\",'[2]MONE(M)CAPARD'!HA52)","v":"n.d."},{"$f":"IF('[2]MONE(M)CAPARD'!HB52=\"\",\"\",'[2]MONE(M)CAPARD'!HB52)","v":"n.d."},"n.d.","n.d.","n.d.","n.d.","n.d.","n.d.","n.d.","n.d.","n.d.","n.d.","n.d.","n.d.","n.d.","n.d.",{"$f":"IF('[2]MONE(M)CAPARD'!AS52=\"\",\"\",'[2]MONE(M)CAPARD'!AS52)","v":"n.d."},{"$f":"IF('[2]MONE(M)CAPARD'!AT52=\"\",\"\",'[2]MONE(M)CAPARD'!AT52)","v":"n.a."},{"$f":"IF('[2]MONE(M)CAPARD'!AU52=\"\",\"\",'[2]MONE(M)CAPARD'!AU52)","v":"n.d."},{"$f":"IF('[2]MONE(M)CAPARD'!AV52=\"\",\"\",'[2]MONE(M)CAPARD'!AV52)","v":"n.d."},{"$f":"IF('[2]MONE(M)CAPARD'!AW52=\"\",\"\",'[2]MONE(M)CAPARD'!AW52)","v":"n.a."},{"$f":"IF('[2]MONE(M)CAPARD'!AX52=\"\",\"\",'[2]MONE(M)CAPARD'!AX52)","v":"n.d."},{"$f":"IF('[2]MONE(M)CAPARD'!AY52=\"\",\"\",'[2]MONE(M)CAPARD'!AY52)","v":"n.a."},{"$f":"IF('[2]FISCAL(M)'!$K52=\"\",\"\",'[2]FISCAL(M)'!$K52)","v":"n.d."},{"$f":"IF('[2]FISCAL(M)'!$L52=\"\",\"\",'[2]FISCAL(M)'!$L52)","v":"n.d."},{"$f":"IF('[2]FISCAL(M)'!$AY52=\"\",\"\",'[2]FISCAL(M)'!$AY52)","v":"n.d."},{"$f":"IF('[2]FISCAL(M)'!$BI52=\"\",\"\",'[2]FISCAL(M)'!$BI52)","v":"n.d."},{"$f":"IF('[2]FISCAL(M)'!$BS52=\"\",\"\",'[2]FISCAL(M)'!$BS52)","v":"n.d."},{"$f":"IF('[2]FISCAL(M)'!$AZ52=\"\",\"\",'[2]FISCAL(M)'!$AZ52)","v":"n.d."},{"$f":"IF('[2]FISCAL(M)'!$BJ52=\"\",\"\",'[2]FISCAL(M)'!$BJ52)","v":"n.d."},{"$f":"IF('[2]FISCAL(M)'!$BT52=\"\",\"\",'[2]FISCAL(M)'!$BT52)","v":"n.d."},{"$f":"IF('[3]MONE(M)'!$AO52=\"\",\"\",'[3]MONE(M)'!$AO52)","v":"n.d."},{"$f":"IF('[4]MONE(M)'!$AO52=\"\",\"\",'[4]MONE(M)'!$AO52)","v":"n.d."},{"$f":"IF('[5]MONE(M)'!$AO52=\"\",\"\",'[5]MONE(M)'!$AO52)","v":"n.d."},{"$f":"+'[1]MONE(M)'!$AO52","v":"n.d."},{"$f":"IF('[6]MONE(M)'!$AO52=\"\",\"\",'[6]MONE(M)'!$AO52)","v":"n.d."},{"$f":"IF('[7]MONE(M)'!$AO52=\"\",\"\",'[7]MONE(M)'!$AO52)","v":"n.d."},{"$f":"IF('[8]MONE(M)'!$AO52=\"\",\"\",'[8]MONE(M)'!$AO52)","v":"n.d."},"n.d.","n.d.","n.d.","n.d.","n.d.","n.d.","n.d.",{"$f":"IF('[2]FISCAL(M)'!$K52=\"\",\"\",'[2]FISCAL(M)'!$K52)","v":"n.d."},"n.d.","n.d.",{"$f":"IF('[2]FISCAL(M)'!$L52=\"\",\"\",'[2]FISCAL(M)'!$L52)","v":"n.d."},"n.d.","n.d.","n.d.","n.d.","n.d.","n.d.","n.d.","n.d.","n.d.","n.d.","n.d.","n.d.","n.d.","n.d.","n.d.","n.d.","n.d.","n.d."]
[1993,"agosto","1993-agosto",{"$f":"IF('[2]REAL IPC(M)'!$AL53=\"\",\"\",+'[2]REAL IPC(M)'!$AL53)","v":13.371853074700768},{"$f":"IF('[2]REAL IPC(M)'!$BE53=\"\",\"\",+'[2]REAL IPC(M)'!$BE53)","v":"n.d."},{"$f":"IF('[2]REAL IPC(M)'!$AM53=\"\",\"\",+'[2]REAL IPC(M)'!$AM53)","v":12.033960871170169},{"$f":"IF('[2]REAL IPC(M)'!$BI53=\"\",\"\",+'[2]REAL IPC(M)'!$BI53)","v":"n.d."},{"$f":"IF('[2]REAL IMAE(M)'!BJ53=\"\",\"\",'[2]REAL IMAE(M)'!BJ53)","v":"n.d."},{"$f":"IF('[2]REAL IMAE(M)'!BK53=\"\",\"\",'[2]REAL IMAE(M)'!BK53)","v":"n.d."},{"$f":"IF('[2]REAL IMAE(M)'!BN53=\"\",\"\",'[2]REAL IMAE(M)'!BN53)","v":"n.d."},{"$f":"IF('[2]REAL IMAE(M)'!BO53=\"\",\"\",'[2]REAL IMAE(M)'!BO53)","v":"n.d."},{"$f":"IF('[2]EXT RIN(M)'!$K53=\"\",\"\",'[2]EXT RIN(M)'!$K53)","v":"n.d."},"",{"$f":"IF('[2]EXT RIN(M)'!$L53=\"\",\"\",'[2]EXT RIN(M)'!$L53)","v":"n.d."},"",{"$f":"IF('[2]MONE(M)CARD'!EG53=\"\",\"\",'[2]MONE(M)CARD'!EG53)","v":"n.d."},{"$f":"IF('[2]MONE(M)CARD'!EK53=\"\",\"\",'[2]MONE(M)CARD'!EK53)","v":"n.d."},{"$f":"IF('[2]MONE(M)CARD'!EP53=\"\",\"\",'[2]MONE(M)CARD'!EP53)","v":"n.d."},{"$f":"IF('[2]MONE(M)CARD'!ES53=\"\",\"\",'[2]MONE(M)CARD'!ES53)","v":"n.d."},{"$f":"IF('[2]MONE(M)CARD'!EV53=\"\",\"\",'[2]MONE(M)CARD'!EV53)","v":"n.d."},{"$f":"IF('[2]MONE(M)CARD'!EZ53=\"\",\"\",'[2]MONE(M)CARD'!EZ53)","v":"n.d."},{"$f":"IF('[2]MONE(M)CAPARD'!FC53=\"\",\"\",'[2]MONE(M)CAPARD'!FC53)","v":"n.d."},{"$f":"IF('[2]MONE(M)CAPARD'!FG53=\"\",\"\",'[2]MONE(M)CAPARD'!FG53)","v":"n.d."},{"$f":"IF('[2]MONE(M)CAPARD'!FL53=\"\",\"\",'[2]MONE(M)CAPARD'!FL53)","v":"n.d."},{"$f":"IF('[2]MONE(M)CAPARD'!FO53=\"\",\"\",'[2]MONE(M)CAPARD'!FO53)","v":"n.d."},{"$f":"IF('[2]MONE(M)CAPARD'!FR53=\"\",\"\",'[2]MONE(M)CAPARD'!FR53)","v":"n.d."},{"$f":"IF('[2]MONE(M)CAPARD'!FV53=\"\",\"\",'[2]MONE(M)CAPARD'!FV53)","v":"n.d."},{"$f":"IF('[2]MONE(M)CARD'!FV53=\"\",\"\",'[2]MONE(M)CARD'!FV53)","v":""},{"$f":"IF('[2]MONE(M)CARD'!GD53=\"\",\"\",'[2]MONE(M)CARD'!GD53)","v":"n.d."},{"$f":"IF('[2]MONE(M)CARD'!GE53=\"\",\"\",'[2]MONE(M)CARD'!GE53)","v":"n.d."},"n.d.","n.d.","n.d.","n.d.","n.d.","n.d.","n.d.","n.d.",null,"n.d.","n.d.","n.d.","n.d.","n.d.",{"$f":"IF('[2]MONE(M)CAPARD'!GS53=\"\",\"\",'[2]MONE(M)CAPARD'!GS53)","v":"n.d."},{"$f":"IF('[2]MONE(M)CARD'!HA53=\"\",\"\",'[2]MONE(M)CAPARD'!HA53)","v":"n.d."},{"$f":"IF('[2]MONE(M)CAPARD'!HB53=\"\",\"\",'[2]MONE(M)CAPARD'!HB53)","v":"n.d."},"n.d.","n.d.","n.d.","n.d.","n.d.","n.d.","n.d.","n.d.","n.d.","n.d.","n.d.","n.d.","n.d.","n.d.",{"$f":"IF('[2]MONE(M)CAPARD'!AS53=\"\",\"\",'[2]MONE(M)CAPARD'!AS53)","v":"n.d."},{"$f":"IF('[2]MONE(M)CAPARD'!AT53=\"\",\"\",'[2]MONE(M)CAPARD'!AT53)","v":"n.a."},{"$f":"IF('[2]MONE(M)CAPARD'!AU53=\"\",\"\",'[2]MONE(M)CAPARD'!AU53)","v":"n.d."},{"$f":"IF('[2]MONE(M)CAPARD'!AV53=\"\",\"\",'[2]MONE(M)CAPARD'!AV53)","v":"n.d."},{"$f":"IF('[2]MONE(M)CAPARD'!AW53=\"\",\"\",'[2]MONE(M)CAPARD'!AW53)","v":"n.a."},{"$f":"IF('[2]MONE(M)CAPARD'!AX53=\"\",\"\",'[2]MONE(M)CAPARD'!AX53)","v":"n.d."},{"$f":"IF('[2]MONE(M)CAPARD'!AY53=\"\",\"\",'[2]MONE(M)CAPARD'!AY53)","v":"n.a."},{"$f":"IF('[2]FISCAL(M)'!$K53=\"\",\"\",'[2]FISCAL(M)'!$K53)","v":"n.d."},{"$f":"IF('[2]FISCAL(M)'!$L53=\"\",\"\",'[2]FISCAL(M)'!$L53)","v":"n.d."},{"$f":"IF('[2]FISCAL(M)'!$AY53=\"\",\"\",'[2]FISCAL(M)'!$AY53)","v":"n.d."},{"$f":"IF('[2]FISCAL(M)'!$BI53=\"\",\"\",'[2]FISCAL(M)'!$BI53)","v":"n.d."},{"$f":"IF('[2]FISCAL(M)'!$BS53=\"\",\"\",'[2]FISCAL(M)'!$BS53)","v":"n.d."},{"$f":"IF('[2]FISCAL(M)'!$AZ53=\"\",\"\",'[2]FISCAL(M)'!$AZ53)","v":"n.d."},{"$f":"IF('[2]FISCAL(M)'!$BJ53=\"\",\"\",'[2]FISCAL(M)'!$BJ53)","v":"n.d."},{"$f":"IF('[2]FISCAL(M)'!$BT53=\"\",\"\",'[2]FISCAL(M)'!$BT53)","v":"n.d."},{"$f":"IF('[3]MONE(M)'!$AO53=\"\",\"\",'[3]MONE(M)'!$AO53)","v":"n.d."},{"$f":"IF('[4]MONE(M)'!$AO53=\"\",\"\",'[4]MONE(M)'!$AO53)","v":"n.d."},{"$f":"IF('[5]MONE(M)'!$AO53=\"\",\"\",'[5]MONE(M)'!$AO53)","v":"n.d."},{"$f":"+'[1]MONE(M)'!$AO53","v":"n.d."},{"$f":"IF('[6]MONE(M)'!$AO53=\"\",\"\",'[6]MONE(M)'!$AO53)","v":"n.d."},{"$f":"IF('[7]MONE(M)'!$AO53=\"\",\"\",'[7]MONE(M)'!$AO53)","v":"n.d."},{"$f":"IF('[8]MONE(M)'!$AO53=\"\",\"\",'[8]MONE(M)'!$AO53)","v":"n.d."},"n.d.","n.d.","n.d.","n.d.","n.d.","n.d.","n.d.",{"$f":"IF('[2]FISCAL(M)'!$K53=\"\",\"\",'[2]FISCAL(M)'!$K53)","v":"n.d."},"n.d.","n.d.",{"$f":"IF('[2]FISCAL(M)'!$L53=\"\",\"\",'[2]FISCAL(M)'!$L53)","v":"n.d."},"n.d.","n.d.","n.d.","n.d.","n.d.","n.d.","n.d.","n.d.","n.d.","n.d.","n.d.","n.d.","n.d.","n.d.","n.d.","n.d.","n.d.","n.d."]
[1993,"septiembre","1993-septiembre",{"$f":"IF('[2]REAL IPC(M)'!$AL54=\"\",\"\",+'[2]REAL IPC(M)'!$AL54)","v":11.860276198212837},{"$f":"IF('[2]REAL IPC(M)'!$BE54=\"\",\"\",+'[2]REAL IPC(M)'!$BE54)","v":"n.d."},{"$f":"IF('[2]REAL IPC(M)'!$AM54=\"\",\"\",+'[2]REAL IPC(M)'!$AM54)","v":10.698689956331876},{"$f":"IF('[2]REAL IPC(M)'!$BI54=\"\",\"\",+'[2]REAL IPC(M)'!$BI54)","v":"n.d."},{"$f":"IF('[2]REAL IMAE(M)'!BJ54=\"\",\"\",'[2]REAL IMAE(M)'!BJ54)","v":"n.d."},{"$f":"IF('[2]REAL IMAE(M)'!BK54=\"\",\"\",'[2]REAL IMAE(M)'!BK54)","v":"n.d."},{"$f":"IF('[2]REAL IMAE(M)'!BN54=\"\",\"\",'[2]REAL IMAE(M)'!BN54)","v":"n.d."},{"$f":"IF('[2]REAL IMAE(M)'!BO54=\"\",\"\",'[2]REAL IMAE(M)'!BO54)","v":"n.d."},{"$f":"IF('[2]EXT RIN(M)'!$K54=\"\",\"\",'[2]EXT RIN(M)'!$K54)","v":"n.d."},"",{"$f":"IF('[2]EXT RIN(M)'!$L54=\"\",\"\",'[2]EXT RIN(M)'!$L54)","v":"n.d."},"",{"$f":"IF('[2]MONE(M)CARD'!EG54=\"\",\"\",'[2]MONE(M)CARD'!EG54)","v":"n.d."},{"$f":"IF('[2]MONE(M)CARD'!EK54=\"\",\"\",'[2]MONE(M)CARD'!EK54)","v":"n.d."},{"$f":"IF('[2]MONE(M)CARD'!EP54=\"\",\"\",'[2]MONE(M)CARD'!EP54)","v":"n.d."},{"$f":"IF('[2]MONE(M)CARD'!ES54=\"\",\"\",'[2]MONE(M)CARD'!ES54)","v":"n.d."},{"$f":"IF('[2]MONE(M)CARD'!EV54=\"\",\"\",'[2]MONE(M)CARD'!EV54)","v":"n.d."},{"$f":"IF('[2]MONE(M)CARD'!EZ54=\"\",\"\",'[2]MONE(M)CARD'!EZ54)","v":"n.d."},{"$f":"IF('[2]MONE(M)CAPARD'!FC54=\"\",\"\",'[2]MONE(M)CAPARD'!FC54)","v":"n.d."},{"$f":"IF('[2]MONE(M)CAPARD'!FG54=\"\",\"\",'[2]MONE(M)CAPARD'!FG54)","v":"n.d."},{"$f":"IF('[2]MONE(M)CAPARD'!FL54=\"\",\"\",'[2]MONE(M)CAPARD'!FL54)","v":"n.d."},{"$f":"IF('[2]MONE(M)CAPARD'!FO54=\"\",\"\",'[2]MONE(M)CAPARD'!FO54)","v":"n.d."},{"$f":"IF('[2]MONE(M)CAPARD'!FR54=\"\",\"\",'[2]MONE(M)CAPARD'!FR54)","v":"n.d."},{"$f":"IF('[2]MONE(M)CAPARD'!FV54=\"\",\"\",'[2]MONE(M)CAPARD'!FV54)","v":"n.d."},{"$f":"IF('[2]MONE(M)CARD'!FV54=\"\",\"\",'[2]MONE(M)CARD'!FV54)","v":""},{"$f":"IF('[2]MONE(M)CARD'!GD54=\"\",\"\",'[2]MONE(M)CARD'!GD54)","v":"n.d."},{"$f":"IF('[2]MONE(M)CARD'!GE54=\"\",\"\",'[2]MONE(M)CARD'!GE54)","v":"n.d."},"n.d.","n.d.","n.d.","n.d.","n.d.","n.d.","n.d.","n.d.",null,"n.d.","n.d.","n.d.","n.d.","n.d.",{"$f":"IF('[2]MONE(M)CAPARD'!GS54=\"\",\"\",'[2]MONE(M)CAPARD'!GS54)","v":"n.d."},{"$f":"IF('[2]MONE(M)CARD'!HA54=\"\",\"\",'[2]MONE(M)CAPARD'!HA54)","v":"n.d."},{"$f":"IF('[2]MONE(M)CAPARD'!HB54=\"\",\"\",'[2]MONE(M)CAPARD'!HB54)","v":"n.d."},"n.d.","n.d.","n.d.","n.d.","n.d.","n.d.","n.d.","n.d.","n.d.","n.d.","n.d.","n.d.","n.d.","n.d.",{"$f":"IF('[2]MONE(M)CAPARD'!AS54=\"\",\"\",'[2]MONE(M)CAPARD'!AS54)","v":"n.d."},{"$f":"IF('[2]MONE(M)CAPARD'!AT54=\"\",\"\",'[2]MONE(M)CAPARD'!AT54)","v":"n.a."},{"$f":"IF('[2]MONE(M)CAPARD'!AU54=\"\",\"\",'[2]MONE(M)CAPARD'!AU54)","v":"n.d."},{"$f":"IF('[2]MONE(M)CAPARD'!AV54=\"\",\"\",'[2]MONE(M)CAPARD'!AV54)","v":"n.d."},{"$f":"IF('[2]MONE(M)CAPARD'!AW54=\"\",\"\",'[2]MONE(M)CAPARD'!AW54)","v":"n.a."},{"$f":"IF('[2]MONE(M)CAPARD'!AX54=\"\",\"\",'[2]MONE(M)CAPARD'!AX54)","v":"n.d."},{"$f":"IF('[2]MONE(M)CAPARD'!AY54=\"\",\"\",'[2]MONE(M)CAPARD'!AY54)","v":"n.a."},{"$f":"IF('[2]FISCAL(M)'!$K54=\"\",\"\",'[2]FISCAL(M)'!$K54)","v":"n.d."},{"$f":"IF('[2]FISCAL(M)'!$L54=\"\",\"\",'[2]FISCAL(M)'!$L54)","v":"n.d."},{"$f":"IF('[2]FISCAL(M)'!$AY54=\"\",\"\",'[2]FISCAL(M)'!$AY54)","v":"n.d."},{"$f":"IF('[2]FISCAL(M)'!$BI54=\"\",\"\",'[2]FISCAL(M)'!$BI54)","v":"n.d."},{"$f":"IF('[2]FISCAL(M)'!$BS54=\"\",\"\",'[2]FISCAL(M)'!$BS54)","v":"n.d."},{"$f":"IF('[2]FISCAL(M)'!$AZ54=\"\",\"\",'[2]FISCAL(M)'!$AZ54)","v":"n.d."},{"$f":"IF('[2]FISCAL(M)'!$BJ54=\"\",\"\",'[2]FISCAL(M)'!$BJ54)","v":"n.d."},{"$f":"IF('[2]FISCAL(M)'!$BT54=\"\",\"\",'[2]FISCAL(M)'!$BT54)","v":"n.d."},{"$f":"IF('[3]MONE(M)'!$AO54=\"\",\"\",'[3]MONE(M)'!$AO54)","v":"n.d."},{"$f":"IF('[4]MONE(M)'!$AO54=\"\",\"\",'[4]MONE(M)'!$AO54)","v":"n.d."},{"$f":"IF('[5]MONE(M)'!$AO54=\"\",\"\",'[5]MONE(M)'!$AO54)","v":"n.d."},{"$f":"+'[1]MONE(M)'!$AO54","v":"n.d."},{"$f":"IF('[6]MONE(M)'!$AO54=\"\",\"\",'[6]MONE(M)'!$AO54)","v":"n.d."},{"$f":"IF('[7]MONE(M)'!$AO54=\"\",\"\",'[7]MONE(M)'!$AO54)","v":"n.d."},{"$f":"IF('[8]MONE(M)'!$AO54=\"\",\"\",'[8]MONE(M)'!$AO54)","v":"n.d."},"n.d.","n.d.","n.d.","n.d.","n.d.","n.d.","n.d.",{"$f":"IF('[2]FISCAL(M)'!$K54=\"\",\"\",'[2]FISCAL(M)'!$K54)","v":"n.d."},"n.d.","n.d.",{"$f":"IF('[2]FISCAL(M)'!$L54=\"\",\"\",'[2]FISCAL(M)'!$L54)","v":"n.d."},"n.d.","n.d.","n.d.","n.d.","n.d.","n.d.","n.d.","n.d.","n.d.","n.d.","n.d.","n.d.","n.d.","n.d.","n.d.","n.d.","n.d.","n.d."]
[1993,"octubre","1993-octubre",{"$f":"IF('[2]REAL IPC(M)'!$AL55=\"\",\"\",+'[2]REAL IPC(M)'!$AL55)","v":11.61575562700965},{"$f":"IF('[2]REAL IPC(M)'!$BE55=\"\",\"\",+'[2]REAL IPC(M)'!$BE55)","v":"n.d."},{"$f":"IF('[2]REAL IPC(M)'!$AM55=\"\",\"\",+'[2]REAL IPC(M)'!$AM55)","v":10.642135642135653},{"$f":"IF('[2]REAL IPC(M)'!$BI55=\"\",\"\",+'[2]REAL IPC(M)'!$BI55)","v":"n.d."},{"$f":"IF('[2]REAL IMAE(M)'!BJ55=\"\",\"\",'[2]REAL IMAE(M)'!BJ55)","v":"n.d."},{"$f":"IF('[2]REAL IMAE(M)'!BK55=\"\",\"\",'[2]REAL IMAE(M)'!BK55)","v":"n.d."},{"$f":"IF('[2]REAL IMAE(M)'!BN55=\"\",\"\",'[2]REAL IMAE(M)'!BN55)","v":"n.d."},{"$f":"IF('[2]REAL IMAE(M)'!BO55=\"\",\"\",'[2]REAL IMAE(M)'!BO55)","v":"n.d."},{"$f":"IF('[2]EXT RIN(M)'!$K55=\"\",\"\",'[2]EXT RIN(M)'!$K55)","v":"n.d."},"",{"$f":"IF('[2]EXT RIN(M)'!$L55=\"\",\"\",'[2]EXT RIN(M)'!$L55)","v":"n.d."},"",{"$f":"IF('[2]MONE(M)CARD'!EG55=\"\",\"\",'[2]MONE(M)CARD'!EG55)","v":"n.d."},{"$f":"IF('[2]MONE(M)CARD'!EK55=\"\",\"\",'[2]MONE(M)CARD'!EK55)","v":"n.d."},{"$f":"IF('[2]MONE(M)CARD'!EP55=\"\",\"\",'[2]MONE(M)CARD'!EP55)","v":"n.d."},{"$f":"IF('[2]MONE(M)CARD'!ES55=\"\",\"\",'[2]MONE(M)CARD'!ES55)","v":"n.d."},{"$f":"IF('[2]MONE(M)CARD'!EV55=\"\",\"\",'[2]MONE(M)CARD'!EV55)","v":"n.d."},{"$f":"IF('[2]MONE(M)CARD'!EZ55=\"\",\"\",'[2]MONE(M)CARD'!EZ55)","v":"n.d."},{"$f":"IF('[2]MONE(M)CAPARD'!FC55=\"\",\"\",'[2]MONE(M)CAPARD'!FC55)","v":"n.d."},{"$f":"IF('[2]MONE(M)CAPARD'!FG55=\"\",\"\",'[2]MONE(M)CAPARD'!FG55)","v":"n.d."},{"$f":"IF('[2]MONE(M)CAPARD'!FL55=\"\",\"\",'[2]MONE(M)CAPARD'!FL55)","v":"n.d."},{"$f":"IF('[2]MONE(M)CAPARD'!FO55=\"\",\"\",'[2]MONE(M)CAPARD'!FO55)","v":"n.d."},{"$f":"IF('[2]MONE(M)CAPARD'!FR55=\"\",\"\",'[2]MONE(M)CAPARD'!FR55)","v":"n.d."},{"$f":"IF('[2]MONE(M)CAPARD'!FV55=\"\",\"\",'[2]MONE(M)CAPARD'!FV55)","v":"n.d."},{"$f":"IF('[2]MONE(M)CARD'!FV55=\"\",\"\",'[2]MONE(M)CARD'!FV55)","v":""},{"$f":"IF('[2]MONE(M)CARD'!GD55=\"\",\"\",'[2]MONE(M)CARD'!GD55)","v":"n.d."},{"$f":"IF('[2]MONE(M)CARD'!GE55=\"\",\"\",'[2]MONE(M)CARD'!GE55)","v":"n.d."},"n.d.","n.d.","n.d.","n.d.","n.d.","n.d.","n.d.","n.d.",null,"n.d.","n.d.","n.d.","n.d.","n.d.",{"$f":"IF('[2]MONE(M)CAPARD'!GS55=\"\",\"\",'[2]MONE(M)CAPARD'!GS55)","v":"n.d."},{"$f":"IF('[2]MONE(M)CARD'!HA55=\"\",\"\",'[2]MONE(M)CAPARD'!HA55)","v":"n.d."},{"$f":"IF('[2]MONE(M)CAPARD'!HB55=\"\",\"\",'[2]MONE(M)CAPARD'!HB55)","v":"n.d."},"n.d.","n.d.","n.d.","n.d.","n.d.","n.d.","n.d.","n.d.","n.d.","n.d.","n.d.","n.d.","n.d.","n.d.",{"$f":"IF('[2]MONE(M)CAPARD'!AS55=\"\",\"\",'[2]MONE(M)CAPARD'!AS55)","v":"n.d."},{"$f":"IF('[2]MONE(M)CAPARD'!AT55=\"\",\"\",'[2]MONE(M)CAPARD'!AT55)","v":"n.a."},{"$f":"IF('[2]MONE(M)CAPARD'!AU55=\"\",\"\",'[2]MONE(M)CAPARD'!AU55)","v":"n.d."},{"$f":"IF('[2]MONE(M)CAPARD'!AV55=\"\",\"\",'[2]MONE(M)CAPARD'!AV55)","v":"n.d."},{"$f":"IF('[2]MONE(M)CAPARD'!AW55=\"\",\"\",'[2]MONE(M)CAPARD'!AW55)","v":"n.a."},{"$f":"IF('[2]MONE(M)CAPARD'!AX55=\"\",\"\",'[2]MONE(M)CAPARD'!AX55)","v":"n.d."},{"$f":"IF('[2]MONE(M)CAPARD'!AY55=\"\",\"\",'[2]MONE(M)CAPARD'!AY55)","v":"n.a."},{"$f":"IF('[2]FISCAL(M)'!$K55=\"\",\"\",'[2]FISCAL(M)'!$K55)","v":"n.d."},{"$f":"IF('[2]FISCAL(M)'!$L55=\"\",\"\",'[2]FISCAL(M)'!$L55)","v":"n.d."},{"$f":"IF('[2]FISCAL(M)'!$AY55=\"\",\"\",'[2]FISCAL(M)'!$AY55)","v":"n.d."},{"$f":"IF('[2]FISCAL(M)'!$BI55=\"\",\"\",'[2]FISCAL(M)'!$BI55)","v":"n.d."},{"$f":"IF('[2]FISCAL(M)'!$BS55=\"\",\"\",'[2]FISCAL(M)'!$BS55)","v":"n.d."},{"$f":"IF('[2]FISCAL(M)'!$AZ55=\"\",\"\",'[2]FISCAL(M)'!$AZ55)","v":"n.d."},{"$f":"IF('[2]FISCAL(M)'!$BJ55=\"\",\"\",'[2]FISCAL(M)'!$BJ55)","v":"n.d."},{"$f":"IF('[2]FISCAL(M)'!$BT55=\"\",\"\",'[2]FISCAL(M)'!$BT55)","v":"n.d."},{"$f":"IF('[3]MONE(M)'!$AO55=\"\",\"\",'[3]MONE(M)'!$AO55)","v":"n.d."},{"$f":"IF('[4]MONE(M)'!$AO55=\"\",\"\",'[4]MONE(M)'!$AO55)","v":"n.d."},{"$f":"IF('[5]MONE(M)'!$AO55=\"\",\"\",'[5]MONE(M)'!$AO55)","v":"n.d."},{"$f":"+'[1]MONE(M)'!$AO55","v":"n.d."},{"$f":"IF('[6]MONE(M)'!$AO55=\"\",\"\",'[6]MONE(M)'!$AO55)","v":"n.d."},{"$f":"IF('[7]MONE(M)'!$AO55=\"\",\"\",'[7]MONE(M)'!$AO55)","v":"n.d."},{"$f":"IF('[8]MONE(M)'!$AO55=\"\",\"\",'[8]MONE(M)'!$AO55)","v":"n.d."},"n.d.","n.d.","n.d.","n.d.","n.d.","n.d.","n.d.",{"$f":"IF('[2]FISCAL(M)'!$K55=\"\",\"\",'[2]FISCAL(M)'!$K55)","v":"n.d."},"n.d.","n.d.",{"$f":"IF('[2]FISCAL(M)'!$L55=\"\",\"\",'[2]FISCAL(M)'!$L55)","v":"n.d."},"n.d.","n.d.","n.d.","n.d.","n.d.","n.d.","n.d.","n.d.","n.d.","n.d.","n.d.","n.d.","n.d.","n.d.","n.d.","n.d.","n.d.","n.d."]
[1993,"noviembre","1993-noviembre",{"$f":"IF('[2]REAL IPC(M)'!$AL56=\"\",\"\",+'[2]REAL IPC(M)'!$AL56)","v":10.830039525691703},{"$f":"IF('[2]REAL IPC(M)'!$BE56=\"\",\"\",+'[2]REAL IPC(M)'!$BE56)","v":"n.d."},{"$f":"IF('[2]REAL IPC(M)'!$AM56=\"\",\"\",+'[2]REAL IPC(M)'!$AM56)","v":9.9111900532859778},{"$f":"IF('[2]REAL IPC(M)'!$BI56=\"\",\"\",+'[2]REAL IPC(M)'!$BI56)","v":"n.d."},{"$f":"IF('[2]REAL IMAE(M)'!BJ56=\"\",\"\",'[2]REAL IMAE(M)'!BJ56)","v":"n.d."},{"$f":"IF('[2]REAL IMAE(M)'!BK56=\"\",\"\",'[2]REAL IMAE(M)'!BK56)","v":"n.d."},{"$f":"IF('[2]REAL IMAE(M)'!BN56=\"\",\"\",'[2]REAL IMAE(M)'!BN56)","v":"n.d."},{"$f":"IF('[2]REAL IMAE(M)'!BO56=\"\",\"\",'[2]REAL IMAE(M)'!BO56)","v":"n.d."},{"$f":"IF('[2]EXT RIN(M)'!$K56=\"\",\"\",'[2]EXT RIN(M)'!$K56)","v":"n.d."},"",{"$f":"IF('[2]EXT RIN(M)'!$L56=\"\",\"\",'[2]EXT RIN(M)'!$L56)","v":"n.d."},"",{"$f":"IF('[2]MONE(M)CARD'!EG56=\"\",\"\",'[2]MONE(M)CARD'!EG56)","v":"n.d."},{"$f":"IF('[2]MONE(M)CARD'!EK56=\"\",\"\",'[2]MONE(M)CARD'!EK56)","v":"n.d."},{"$f":"IF('[2]MONE(M)CARD'!EP56=\"\",\"\",'[2]MONE(M)CARD'!EP56)","v":"n.d."},{"$f":"IF('[2]MONE(M)CARD'!ES56=\"\",\"\",'[2]MONE(M)CARD'!ES56)","v":"n.d."},{"$f":"IF('[2]MONE(M)CARD'!EV56=\"\",\"\",'[2]MONE(M)CARD'!EV56)","v":"n.d."},{"$f":"IF('[2]MONE(M)CARD'!EZ56=\"\",\"\",'[2]MONE(M)CARD'!EZ56)","v":"n.d."},{"$f":"IF('[2]MONE(M)CAPARD'!FC56=\"\",\"\",'[2]MONE(M)CAPARD'!FC56)","v":"n.d."},{"$f":"IF('[2]MONE(M)CAPARD'!FG56=\"\",\"\",'[2]MONE(M)CAPARD'!FG56)","v":"n.d."},{"$f":"IF('[2]MONE(M)CAPARD'!FL56=\"\",\"\",'[2]MONE(M)CAPARD'!FL56)","v":"n.d."},{"$f":"IF('[2]MONE(M)CAPARD'!FO56=\"\",\"\",'[2]MONE(M)CAPARD'!FO56)","v":"n.d."},{"$f":"IF('[2]MONE(M)CAPARD'!FR56=\"\",\"\",'[2]MONE(M)CAPARD'!FR56)","v":"n.d."},{"$f":"IF('[2]MONE(M)CAPARD'!FV56=\"\",\"\",'[2]MONE(M)CAPARD'!FV56)","v":"n.d."},{"$f":"IF('[2]MONE(M)CARD'!FV56=\"\",\"\",'[2]MONE(M)CARD'!FV56)","v":""},{"$f":"IF('[2]MONE(M)CARD'!GD56=\"\",\"\",'[2]MONE(M)CARD'!GD56)","v":"n.d."},{"$f":"IF('[2]MONE(M)CARD'!GE56=\"\",\"\",'[2]MONE(M)CARD'!GE56)","v":"n.d."},"n.d.","n.d.","n.d.","n.d.","n.d.","n.d.","n.d.","n.d.",null,"n.d.","n.d.","n.d.","n.d.","n.d.",{"$f":"IF('[2]MONE(M)CAPARD'!GS56=\"\",\"\",'[2]MONE(M)CAPARD'!GS56)","v":"n.d."},{"$f":"IF('[2]MONE(M)CARD'!HA56=\"\",\"\",'[2]MONE(M)CAPARD'!HA56)","v":"n.d."},{"$f":"IF('[2]MONE(M)CAPARD'!HB56=\"\",\"\",'[2]MONE(M)CAPARD'!HB56)","v":"n.d."},"n.d.","n.d.","n.d.","n.d.","n.d.","n.d.","n.d.","n.d.","n.d.","n.d.","n.d.","n.d.","n.d.","n.d.",{"$f":"IF('[2]MONE(M)CAPARD'!AS56=\"\",\"\",'[2]MONE(M)CAPARD'!AS56)","v":"n.d."},{"$f":"IF('[2]MONE(M)CAPARD'!AT56=\"\",\"\",'[2]MONE(M)CAPARD'!AT56)","v":"n.a."},{"$f":"IF('[2]MONE(M)CAPARD'!AU56=\"\",\"\",'[2]MONE(M)CAPARD'!AU56)","v":"n.d."},{"$f":"IF('[2]MONE(M)CAPARD'!AV56=\"\",\"\",'[2]MONE(M)CAPARD'!AV56)","v":"n.d."},{"$f":"IF('[2]MONE(M)CAPARD'!AW56=\"\",\"\",'[2]MONE(M)CAPARD'!AW56)","v":"n.a."},{"$f":"IF('[2]MONE(M)CAPARD'!AX56=\"\",\"\",'[2]MONE(M)CAPARD'!AX56)","v":"n.d."},{"$f":"IF('[2]MONE(M)CAPARD'!AY56=\"\",\"\",'[2]MONE(M)CAPARD'!AY56)","v":"n.a."},{"$f":"IF('[2]FISCAL(M)'!$K56=\"\",\"\",'[2]FISCAL(M)'!$K56)","v":"n.d."},{"$f":"IF('[2]FISCAL(M)'!$L56=\"\",\"\",'[2]FISCAL(M)'!$L56)","v":"n.d."},{"$f":"IF('[2]FISCAL(M)'!$AY56=\"\",\"\",'[2]FISCAL(M)'!$AY56)","v":"n.d."},{"$f":"IF('[2]FISCAL(M)'!$BI56=\"\",\"\",'[2]FISCAL(M)'!$BI56)","v":"n.d."},{"$f":"IF('[2]FISCAL(M)'!$BS56=\"\",\"\",'[2]FISCAL(M)'!$BS56)","v":"n.d."},{"$f":"IF('[2]FISCAL(M)'!$AZ56=\"\",\"\",'[2]FISCAL(M)'!$AZ56)","v":"n.d."},{"$f":"IF('[2]FISCAL(M)'!$BJ56=\"\",\"\",'[2]FISCAL(M)'!$BJ56)","v":"n.d."},{"$f":"IF('[2]FISCAL(M)'!$BT56=\"\",\"\",'[2]FISCAL(M)'!$BT56)","v":"n.d."},{"$f":"IF('[3]MONE(M)'!$AO56=\"\",\"\",'[3]MONE(M)'!$AO56)","v":"n.d."},{"$f":"IF('[4]MONE(M)'!$AO56=\"\",\"\",'[4]MONE(M)'!$AO56)","v":"n.d."},{"$f":"IF('[5]MONE(M)'!$AO56=\"\",\"\",'[5]MONE(M)'!$AO56)","v":"n.d."},{"$f":"+'[1]MONE(M)'!$AO56","v":"n.d."},{"$f":"IF('[6]MONE(M)'!$AO56=\"\",\"\",'[6]MONE(M)'!$AO56)","v":"n.d."},{"$f":"IF('[7]MONE(M)'!$AO56=\"\",\"\",'[7]MONE(M)'!$AO56)","v":"n.d."},{"$f":"IF('[8]MONE(M)'!$AO56=\"\",\"\",'[8]MONE(M)'!$AO56)","v":"n.d."},"n.d.","n.d.","n.d.","n.d.","n.d.","n.d.","n.d.",{"$f":"IF('[2]FISCAL(M)'!$K56=\"\",\"\",'[2]FISCAL(M)'!$K56)","v":"n.d."},"n.d.","n.d.",{"$f":"IF('[2]FISCAL(M)'!$L56=\"\",\"\",'[2]FISCAL(M)'!$L56)","v":"n.d."},"n.d.","n.d.","n.d.","n.d.","n.d.","n.d.","n.d.","n.d.","n.d.","n.d.","n.d.","n.d.","n.d.","n.d.","n.d.","n.d.","n.d.","n.d."]
[1993,"diciembre","1993-diciembre",{"$f":"IF('[2]REAL IPC(M)'!$AL57=\"\",\"\",+'[2]REAL IPC(M)'!$AL57)","v":10.210444271239293},{"$f":"IF('[2]REAL IPC(M)'!$BE57=\"\",\"\",+'[2]REAL IPC(M)'!$BE57)","v":"n.d."},{"$f":"IF('[2]REAL IPC(M)'!$AM57=\"\",\"\",+'[2]REAL IPC(M)'!$AM57)","v":9.3235191026989064},{"$f":"IF('[2]REAL IPC(M)'!$BI57=\"\",\"\",+'[2]REAL IPC(M)'!$BI57)","v":"n.d."},{"$f":"IF('[2]REAL IMAE(M)'!BJ57=\"\",\"\",'[2]REAL IMAE(M)'!BJ57)","v":"n.d."},{"$f":"IF('[2]REAL IMAE(M)'!BK57=\"\",\"\",'[2]REAL IMAE(M)'!BK57)","v":"n.d."},{"$f":"IF('[2]REAL IMAE(M)'!BN57=\"\",\"\",'[2]REAL IMAE(M)'!BN57)","v":"n.d."},{"$f":"IF('[2]REAL IMAE(M)'!BO57=\"\",\"\",'[2]REAL IMAE(M)'!BO57)","v":"n.d."},{"$f":"IF('[2]EXT RIN(M)'!$K57=\"\",\"\",'[2]EXT RIN(M)'!$K57)","v":"n.d."},"n.d.",{"$f":"IF('[2]EXT RIN(M)'!$L57=\"\",\"\",'[2]EXT RIN(M)'!$L57)","v":"n.d."},"n.d.",{"$f":"IF('[2]MONE(M)CARD'!EG57=\"\",\"\",'[2]MONE(M)CARD'!EG57)","v":"n.d."},{"$f":"IF('[2]MONE(M)CARD'!EK57=\"\",\"\",'[2]MONE(M)CARD'!EK57)","v":"n.d."},{"$f":"IF('[2]MONE(M)CARD'!EP57=\"\",\"\",'[2]MONE(M)CARD'!EP57)","v":"n.d."},{"$f":"IF('[2]MONE(M)CARD'!ES57=\"\",\"\",'[2]MONE(M)CARD'!ES57)","v":"n.d."},{"$f":"IF('[2]MONE(M)CARD'!EV57=\"\",\"\",'[2]MONE(M)CARD'!EV57)","v":"n.d."},{"$f":"IF('[2]MONE(M)CARD'!EZ57=\"\",\"\",'[2]MONE(M)CARD'!EZ57)","v":"n.d."},{"$f":"IF('[2]MONE(M)CAPARD'!FC57=\"\",\"\",'[2]MONE(M)CAPARD'!FC57)","v":"n.d."},{"$f":"IF('[2]MONE(M)CAPARD'!FG57=\"\",\"\",'[2]MONE(M)CAPARD'!FG57)","v":"n.d."},{"$f":"IF('[2]MONE(M)CAPARD'!FL57=\"\",\"\",'[2]MONE(M)CAPARD'!FL57)","v":"n.d."},{"$f":"IF('[2]MONE(M)CAPARD'!FO57=\"\",\"\",'[2]MONE(M)CAPARD'!FO57)","v":"n.d."},{"$f":"IF('[2]MONE(M)CAPARD'!FR57=\"\",\"\",'[2]MONE(M)CAPARD'!FR57)","v":"n.d."},{"$f":"IF('[2]MONE(M)CAPARD'!FV57=\"\",\"\",'[2]MONE(M)CAPARD'!FV57)","v":"n.d."},{"$f":"IF('[2]MONE(M)CARD'!FV57=\"\",\"\",'[2]MONE(M)CARD'!FV57)","v":""},{"$f":"IF('[2]MONE(M)CARD'!GD57=\"\",\"\",'[2]MONE(M)CARD'!GD57)","v":"n.d."},{"$f":"IF('[2]MONE(M)CARD'!GE57=\"\",\"\",'[2]MONE(M)CARD'!GE57)","v":"n.d."},"n.d.","n.d.","n.d.","n.d.","n.d.","n.d.","n.d.","n.d.",null,"n.d.","n.d.","n.d.","n.d.","n.d.",{"$f":"IF('[2]MONE(M)CAPARD'!GS57=\"\",\"\",'[2]MONE(M)CAPARD'!GS57)","v":"n.d."},{"$f":"IF('[2]MONE(M)CARD'!HA57=\"\",\"\",'[2]MONE(M)CAPARD'!HA57)","v":"n.d."},{"$f":"IF('[2]MONE(M)CAPARD'!HB57=\"\",\"\",'[2]MONE(M)CAPARD'!HB57)","v":"n.d."},"n.d.","n.d.","n.d.","n.d.","n.d.","n.d.","n.d.","n.d.","n.d.","n.d.","n.d.","n.d.","n.d.","n.d.",{"$f":"IF('[2]MONE(M)CAPARD'!AS57=\"\",\"\",'[2]MONE(M)CAPARD'!AS57)","v":"n.d."},{"$f":"IF('[2]MONE(M)CAPARD'!AT57=\"\",\"\",'[2]MONE(M)CAPARD'!AT57)","v":"n.a."},{"$f":"IF('[2]MONE(M)CAPARD'!AU57=\"\",\"\",'[2]MONE(M)CAPARD'!AU57)","v":"n.d."},{"$f":"IF('[2]MONE(M)CAPARD'!AV57=\"\",\"\",'[2]MONE(M)CAPARD'!AV57)","v":"n.d."},{"$f":"IF('[2]MONE(M)CAPARD'!AW57=\"\",\"\",'[2]MONE(M)CAPARD'!AW57)","v":"n.a."},{"$f":"IF('[2]MONE(M)CAPARD'!AX57=\"\",\"\",'[2]MONE(M)CAPARD'!AX57)","v":"n.d."},{"$f":"IF('[2]MONE(M)CAPARD'!AY57=\"\",\"\",'[2]MONE(M)CAPARD'!AY57)","v":"n.a."},{"$f":"IF('[2]FISCAL(M)'!$K57=\"\",\"\",'[2]FISCAL(M)'!$K57)","v":"n.d."},{"$f":"IF('[2]FISCAL(M)'!$L57=\"\",\"\",'[2]FISCAL(M)'!$L57)","v":"n.d."},{"$f":"IF('[2]FISCAL(M)'!$AY57=\"\",\"\",'[2]FISCAL(M)'!$AY57)","v":"n.d."},{"$f":"IF('[2]FISCAL(M)'!$BI57=\"\",\"\",'[2]FISCAL(M)'!$BI57)","v":"n.d."},{"$f":"IF('[2]FISCAL(M)'!$BS57=\"\",\"\",'[2]FISCAL(M)'!$BS57)","v":"n.d."},{"$f":"IF('[2]FISCAL(M)'!$AZ57=\"\",\"\",'[2]FISCAL(M)'!$AZ57)","v":"n.d."},{"$f":"IF('[2]FISCAL(M)'!$BJ57=\"\",\"\",'[2]FISCAL(M)'!$BJ57)","v":"n.d."},{"$f":"IF('[2]FISCAL(M)'!$BT57=\"\",\"\",'[2]FISCAL(M)'!$BT57)","v":"n.d."},{"$f":"IF('[3]MONE(M)'!$AO57=\"\",\"\",'[3]MONE(M)'!$AO57)","v":"n.d."},{"$f":"IF('[4]MONE(M)'!$AO57=\"\",\"\",'[4]MONE(M)'!$AO57)","v":"n.d."},{"$f":"IF('[5]MONE(M)'!$AO57=\"\",\"\",'[5]MONE(M)'!$AO57)","v":"n.d."},{"$f":"+'[1]MONE(M)'!$AO57","v":"n.d."},{"$f":"IF('[6]MONE(M)'!$AO57=\"\",\"\",'[6]MONE(M)'!$AO57)","v":"n.d."},{"$f":"IF('[7]MONE(M)'!$AO57=\"\",\"\",'[7]MONE(M)'!$AO57)","v":"n.d."},{"$f":"IF('[8]MONE(M)'!$AO57=\"\",\"\",'[8]MONE(M)'!$AO57)","v":"n.d."},"n.d.","n.d.","n.d.","n.d.","n.d.","n.d.","n.d.",{"$f":"IF('[2]FISCAL(M)'!$K57=\"\",\"\",'[2]FISCAL(M)'!$K57)","v":"n.d."},"n.d.","n.d.",{"$f":"IF('[2]FISCAL(M)'!$L57=\"\",\"\",'[2]FISCAL(M)'!$L57)","v":"n.d."},"n.d.","n.d.","n.d.","n.d.","n.d.","n.d.","n.d.","n.d.","n.d.","n.d.","n.d.","n.d.","n.d.","n.d.","n.d.","n.d.","n.d.","n.d."]
[1994,"enero","1994-enero",{"$f":"IF('[2]REAL IPC(M)'!$AL58=\"\",\"\",+'[2]REAL IPC(M)'!$AL58)","v":9.7888675623800445},{"$f":"IF('[2]REAL IPC(M)'!$BE58=\"\",\"\",+'[2]REAL IPC(M)'!$BE58)","v":"n.d."},{"$f":"IF('[2]REAL IPC(M)'!$AM58=\"\",\"\",+'[2]REAL IPC(M)'!$AM58)","v":8.8835119253370287},{"$f":"IF('[2]REAL IPC(M)'!$BI58=\"\",\"\",+'[2]REAL IPC(M)'!$BI58)","v":"n.d."},{"$f":"IF('[2]REAL IMAE(M)'!BJ58=\"\",\"\",'[2]REAL IMAE(M)'!BJ58)","v":"n.d."},{"$f":"IF('[2]REAL IMAE(M)'!BK58=\"\",\"\",'[2]REAL IMAE(M)'!BK58)","v":"n.d."},{"$f":"IF('[2]REAL IMAE(M)'!BN58=\"\",\"\",'[2]REAL IMAE(M)'!BN58)","v":"n.d."},{"$f":"IF('[2]REAL IMAE(M)'!BO58=\"\",\"\",'[2]REAL IMAE(M)'!BO58)","v":"n.d."},{"$f":"IF('[2]EXT RIN(M)'!$K58=\"\",\"\",'[2]EXT RIN(M)'!$K58)","v":"n.d."},"",{"$f":"IF('[2]EXT RIN(M)'!$L58=\"\",\"\",'[2]EXT RIN(M)'!$L58)","v":"n.d."},"",{"$f":"IF('[2]MONE(M)CARD'!EG58=\"\",\"\",'[2]MONE(M)CARD'!EG58)","v":"n.d."},{"$f":"IF('[2]MONE(M)CARD'!EK58=\"\",\"\",'[2]MONE(M)CARD'!EK58)","v":"n.d."},{"$f":"IF('[2]MONE(M)CARD'!EP58=\"\",\"\",'[2]MONE(M)CARD'!EP58)","v":"n.d."},{"$f":"IF('[2]MONE(M)CARD'!ES58=\"\",\"\",'[2]MONE(M)CARD'!ES58)","v":"n.d."},{"$f":"IF('[2]MONE(M)CARD'!EV58=\"\",\"\",'[2]MONE(M)CARD'!EV58)","v":"n.d."},{"$f":"IF('[2]MONE(M)CARD'!EZ58=\"\",\"\",'[2]MONE(M)CARD'!EZ58)","v":"n.d."},{"$f":"IF('[2]MONE(M)CAPARD'!FC58=\"\",\"\",'[2]MONE(M)CAPARD'!FC58)","v":"n.d."},{"$f":"IF('[2]MONE(M)CAPARD'!FG58=\"\",\"\",'[2]MONE(M)CAPARD'!FG58)","v":"n.d."},{"$f":"IF('[2]MONE(M)CAPARD'!FL58=\"\",\"\",'[2]MONE(M)CAPARD'!FL58)","v":"n.d."},{"$f":"IF('[2]MONE(M)CAPARD'!FO58=\"\",\"\",'[2]MONE(M)CAPARD'!FO58)","v":"n.d."},{"$f":"IF('[2]MONE(M)CAPARD'!FR58=\"\",\"\",'[2]MONE(M)CAPARD'!FR58)","v":"n.d."},{"$f":"IF('[2]MONE(M)CAPARD'!FV58=\"\",\"\",'[2]MONE(M)CAPARD'!FV58)","v":"n.d."},{"$f":"IF('[2]MONE(M)CARD'!FV58=\"\",\"\",'[2]MONE(M)CARD'!FV58)","v":""},{"$f":"IF('[2]MONE(M)CARD'!GD58=\"\",\"\",'[2]MONE(M)CARD'!GD58)","v":"n.d."},{"$f":"IF('[2]MONE(M)CARD'!GE58=\"\",\"\",'[2]MONE(M)CARD'!GE58)","v":"n.d."},"n.d.","n.d.","n.d.","n.d.","n.d.","n.d.","n.d.","n.d.",null,"n.d.","n.d.","n.d.","n.d.","n.d.",{"$f":"IF('[2]MONE(M)CAPARD'!GS58=\"\",\"\",'[2]MONE(M)CAPARD'!GS58)","v":"n.d."},{"$f":"IF('[2]MONE(M)CARD'!HA58=\"\",\"\",'[2]MONE(M)CAPARD'!HA58)","v":"n.d."},{"$f":"IF('[2]MONE(M)CAPARD'!HB58=\"\",\"\",'[2]MONE(M)CAPARD'!HB58)","v":"n.d."},"n.d.","n.d.","n.d.","n.d.","n.d.","n.d.","n.d.","n.d.","n.d.","n.d.","n.d.","n.d.","n.d.","n.d.",{"$f":"IF('[2]MONE(M)CAPARD'!AS58=\"\",\"\",'[2]MONE(M)CAPARD'!AS58)","v":"n.d."},{"$f":"IF('[2]MONE(M)CAPARD'!AT58=\"\",\"\",'[2]MONE(M)CAPARD'!AT58)","v":"n.a."},{"$f":"IF('[2]MONE(M)CAPARD'!AU58=\"\",\"\",'[2]MONE(M)CAPARD'!AU58)","v":"n.d."},{"$f":"IF('[2]MONE(M)CAPARD'!AV58=\"\",\"\",'[2]MONE(M)CAPARD'!AV58)","v":"n.d."},{"$f":"IF('[2]MONE(M)CAPARD'!AW58=\"\",\"\",'[2]MONE(M)CAPARD'!AW58)","v":"n.a."},{"$f":"IF('[2]MONE(M)CAPARD'!AX58=\"\",\"\",'[2]MONE(M)CAPARD'!AX58)","v":"n.d."},{"$f":"IF('[2]MONE(M)CAPARD'!AY58=\"\",\"\",'[2]MONE(M)CAPARD'!AY58)","v":"n.a."},{"$f":"IF('[2]FISCAL(M)'!$K58=\"\",\"\",'[2]FISCAL(M)'!$K58)","v":"n.d."},{"$f":"IF('[2]FISCAL(M)'!$L58=\"\",\"\",'[2]FISCAL(M)'!$L58)","v":"n.d."},{"$f":"IF('[2]FISCAL(M)'!$AY58=\"\",\"\",'[2]FISCAL(M)'!$AY58)","v":"n.d."},{"$f":"IF('[2]FISCAL(M)'!$BI58=\"\",\"\",'[2]FISCAL(M)'!$BI58)","v":"n.d."},{"$f":"IF('[2]FISCAL(M)'!$BS58=\"\",\"\",'[2]FISCAL(M)'!$BS58)","v":"n.d."},{"$f":"IF('[2]FISCAL(M)'!$AZ58=\"\",\"\",'[2]FISCAL(M)'!$AZ58)","v":"n.d."},{"$f":"IF('[2]FISCAL(M)'!$BJ58=\"\",\"\",'[2]FISCAL(M)'!$BJ58)","v":"n.d."},{"$f":"IF('[2]FISCAL(M)'!$BT58=\"\",\"\",'[2]FISCAL(M)'!$BT58)","v":"n.d."},{"$f":"IF('[3]MONE(M)'!$AO58=\"\",\"\",'[3]MONE(M)'!$AO58)","v":"n.d."},{"$f":"IF('[4]MONE(M)'!$AO58=\"\",\"\",'[4]MONE(M)'!$AO58)","v":"n.d."},{"$f":"IF('[5]MONE(M)'!$AO58=\"\",\"\",'[5]MONE(M)'!$AO58)","v":"n.d."},{"$f":"+'[1]MONE(M)'!$AO58","v":"n.d."},{"$f":"IF('[6]MONE(M)'!$AO58=\"\",\"\",'[6]MONE(M)'!$AO58)","v":"n.d."},{"$f":"IF('[7]MONE(M)'!$AO58=\"\",\"\",'[7]MONE(M)'!$AO58)","v":"n.d."},{"$f":"IF('[8]MONE(M)'!$AO58=\"\",\"\",'[8]MONE(M)'!$AO58)","v":"n.d."},"n.d.","n.d.","n.d.","n.d.","n.d.","n.d.","n.d.",{"$f":"IF('[2]FISCAL(M)'!$K58=\"\",\"\",'[2]FISCAL(M)'!$K58)","v":"n.d."},"n.d.","n.d.",{"$f":"IF('[2]FISCAL(M)'!$L58=\"\",\"\",'[2]FISCAL(M)'!$L58)","v":"n.d."},"n.d.","n.d.","n.d.","n.d.","n.d.","n.d.","n.d.","n.d.","n.d.","n.d.","n.d.","n.d.","n.d.","n.d.","n.d.","n.d.","n.d.","n.d."]
[1994,"febrero","1994-febrero",{"$f":"IF('[2]REAL IPC(M)'!$AL59=\"\",\"\",+'[2]REAL IPC(M)'!$AL59)","v":9.7654748173779282},{"$f":"IF('[2]REAL IPC(M)'!$BE59=\"\",\"\",+'[2]REAL IPC(M)'!$BE59)","v":"n.d."},{"$f":"IF('[2]REAL IPC(M)'!$AM59=\"\",\"\",+'[2]REAL IPC(M)'!$AM59)","v":8.8642659279778435},{"$f":"IF('[2]REAL IPC(M)'!$BI59=\"\",\"\",+'[2]REAL IPC(M)'!$BI59)","v":"n.d."},{"$f":"IF('[2]REAL IMAE(M)'!BJ59=\"\",\"\",'[2]REAL IMAE(M)'!BJ59)","v":"n.d."},{"$f":"IF('[2]REAL IMAE(M)'!BK59=\"\",\"\",'[2]REAL IMAE(M)'!BK59)","v":"n.d."},{"$f":"IF('[2]REAL IMAE(M)'!BN59=\"\",\"\",'[2]REAL IMAE(M)'!BN59)","v":"n.d."},{"$f":"IF('[2]REAL IMAE(M)'!BO59=\"\",\"\",'[2]REAL IMAE(M)'!BO59)","v":"n.d."},{"$f":"IF('[2]EXT RIN(M)'!$K59=\"\",\"\",'[2]EXT RIN(M)'!$K59)","v":"n.d."},"",{"$f":"IF('[2]EXT RIN(M)'!$L59=\"\",\"\",'[2]EXT RIN(M)'!$L59)","v":"n.d."},"",{"$f":"IF('[2]MONE(M)CARD'!EG59=\"\",\"\",'[2]MONE(M)CARD'!EG59)","v":"n.d."},{"$f":"IF('[2]MONE(M)CARD'!EK59=\"\",\"\",'[2]MONE(M)CARD'!EK59)","v":"n.d."},{"$f":"IF('[2]MONE(M)CARD'!EP59=\"\",\"\",'[2]MONE(M)CARD'!EP59)","v":"n.d."},{"$f":"IF('[2]MONE(M)CARD'!ES59=\"\",\"\",'[2]MONE(M)CARD'!ES59)","v":"n.d."},{"$f":"IF('[2]MONE(M)CARD'!EV59=\"\",\"\",'[2]MONE(M)CARD'!EV59)","v":"n.d."},{"$f":"IF('[2]MONE(M)CARD'!EZ59=\"\",\"\",'[2]MONE(M)CARD'!EZ59)","v":"n.d."},{"$f":"IF('[2]MONE(M)CAPARD'!FC59=\"\",\"\",'[2]MONE(M)CAPARD'!FC59)","v":"n.d."},{"$f":"IF('[2]MONE(M)CAPARD'!FG59=\"\",\"\",'[2]MONE(M)CAPARD'!FG59)","v":"n.d."},{"$f":"IF('[2]MONE(M)CAPARD'!FL59=\"\",\"\",'[2]MONE(M)CAPARD'!FL59)","v":"n.d."},{"$f":"IF('[2]MONE(M)CAPARD'!FO59=\"\",\"\",'[2]MONE(M)CAPARD'!FO59)","v":"n.d."},{"$f":"IF('[2]MONE(M)CAPARD'!FR59=\"\",\"\",'[2]MONE(M)CAPARD'!FR59)","v":"n.d."},{"$f":"IF('[2]MONE(M)CAPARD'!FV59=\"\",\"\",'[2]MONE(M)CAPARD'!FV59)","v":"n.d."},{"$f":"IF('[2]MONE(M)CARD'!FV59=\"\",\"\",'[2]MONE(M)CARD'!FV59)","v":""},{"$f":"IF('[2]MONE(M)CARD'!GD59=\"\",\"\",'[2]MONE(M)CARD'!GD59)","v":"n.d."},{"$f":"IF('[2]MONE(M)CARD'!GE59=\"\",\"\",'[2]MONE(M)CARD'!GE59)","v":"n.d."},"n.d.","n.d.","n.d.","n.d.","n.d.","n.d.","n.d.","n.d.",null,"n.d.","n.d.","n.d.","n.d.","n.d.",{"$f":"IF('[2]MONE(M)CAPARD'!GS59=\"\",\"\",'[2]MONE(M)CAPARD'!GS59)","v":"n.d."},{"$f":"IF('[2]MONE(M)CARD'!HA59=\"\",\"\",'[2]MONE(M)CAPARD'!HA59)","v":"n.d."},{"$f":"IF('[2]MONE(M)CAPARD'!HB59=\"\",\"\",'[2]MONE(M)CAPARD'!HB59)","v":"n.d."},"n.d.","n.d.","n.d.","n.d.","n.d.","n.d.","n.d.","n.d.","n.d.","n.d.","n.d.","n.d.","n.d.","n.d.",{"$f":"IF('[2]MONE(M)CAPARD'!AS59=\"\",\"\",'[2]MONE(M)CAPARD'!AS59)","v":"n.d."},{"$f":"IF('[2]MONE(M)CAPARD'!AT59=\"\",\"\",'[2]MONE(M)CAPARD'!AT59)","v":"n.a."},{"$f":"IF('[2]MONE(M)CAPARD'!AU59=\"\",\"\",'[2]MONE(M)CAPARD'!AU59)","v":"n.d."},{"$f":"IF('[2]MONE(M)CAPARD'!AV59=\"\",\"\",'[2]MONE(M)CAPARD'!AV59)","v":"n.d."},{"$f":"IF('[2]MONE(M)CAPARD'!AW59=\"\",\"\",'[2]MONE(M)CAPARD'!AW59)","v":"n.a."},{"$f":"IF('[2]MONE(M)CAPARD'!AX59=\"\",\"\",'[2]MONE(M)CAPARD'!AX59)","v":"n.d."},{"$f":"IF('[2]MONE(M)CAPARD'!AY59=\"\",\"\",'[2]MONE(M)CAPARD'!AY59)","v":"n.a."},{"$f":"IF('[2]FISCAL(M)'!$K59=\"\",\"\",'[2]FISCAL(M)'!$K59)","v":"n.d."},{"$f":"IF('[2]FISCAL(M)'!$L59=\"\",\"\",'[2]FISCAL(M)'!$L59)","v":"n.d."},{"$f":"IF('[2]FISCAL(M)'!$AY59=\"\",\"\",'[2]FISCAL(M)'!$AY59)","v":"n.d."},{"$f":"IF('[2]FISCAL(M)'!$BI59=\"\",\"\",'[2]FISCAL(M)'!$BI59)","v":"n.d."},{"$f":"IF('[2]FISCAL(M)'!$BS59=\"\",\"\",'[2]FISCAL(M)'!$BS59)","v":"n.d."},{"$f":"IF('[2]FISCAL(M)'!$AZ59=\"\",\"\",'[2]FISCAL(M)'!$AZ59)","v":"n.d."},{"$f":"IF('[2]FISCAL(M)'!$BJ59=\"\",\"\",'[2]FISCAL(M)'!$BJ59)","v":"n.d."},{"$f":"IF('[2]FISCAL(M)'!$BT59=\"\",\"\",'[2]FISCAL(M)'!$BT59)","v":"n.d."},{"$f":"IF('[3]MONE(M)'!$AO59=\"\",\"\",'[3]MONE(M)'!$AO59)","v":"n.d."},{"$f":"IF('[4]MONE(M)'!$AO59=\"\",\"\",'[4]MONE(M)'!$AO59)","v":"n.d."},{"$f":"IF('[5]MONE(M)'!$AO59=\"\",\"\",'[5]MONE(M)'!$AO59)","v":"n.d."},{"$f":"+'[1]MONE(M)'!$AO59","v":"n.d."},{"$f":"IF('[6]MONE(M)'!$AO59=\"\",\"\",'[6]MONE(M)'!$AO59)","v":"n.d."},{"$f":"IF('[7]MONE(M)'!$AO59=\"\",\"\",'[7]MONE(M)'!$AO59)","v":"n.d."},{"$f":"IF('[8]MONE(M)'!$AO59=\"\",\"\",'[8]MONE(M)'!$AO59)","v":"n.d."},"n.d.","n.d.","n.d.","n.d.","n.d.","n.d.","n.d.",{"$f":"IF('[2]FISCAL(M)'!$K59=\"\",\"\",'[2]FISCAL(M)'!$K59)","v":"n.d."},"n.d.","n.d.",{"$f":"IF('[2]FISCAL(M)'!$L59=\"\",\"\",'[2]FISCAL(M)'!$L59)","v":"n.d."},"n.d.","n.d.","n.d.","n.d.","n.d.","n.d.","n.d.","n.d.","n.d.","n.d.","n.d.","n.d.","n.d.","n.d.","n.d.","n.d.","n.d.","n.d."]
[1994,"marzo","1994-marzo",{"$f":"IF('[2]REAL IPC(M)'!$AL60=\"\",\"\",+'[2]REAL IPC(M)'!$AL60)","v":10.395090141925589},{"$f":"IF('[2]REAL IPC(M)'!$BE60=\"\",\"\",+'[2]REAL IPC(M)'!$BE60)","v":"n.d."},{"$f":"IF('[2]REAL IPC(M)'!$AM60=\"\",\"\",+'[2]REAL IPC(M)'!$AM60)","v":9.4365710335292174},{"$f":"IF('[2]REAL IPC(M)'!$BI60=\"\",\"\",+'[2]REAL IPC(M)'!$BI60)","v":"n.d."},{"$f":"IF('[2]REAL IMAE(M)'!BJ60=\"\",\"\",'[2]REAL IMAE(M)'!BJ60)","v":"n.d."},{"$f":"IF('[2]REAL IMAE(M)'!BK60=\"\",\"\",'[2]REAL IMAE(M)'!BK60)","v":"n.d."},{"$f":"IF('[2]REAL IMAE(M)'!BN60=\"\",\"\",'[2]REAL IMAE(M)'!BN60)","v":"n.d."},{"$f":"IF('[2]REAL IMAE(M)'!BO60=\"\",\"\",'[2]REAL IMAE(M)'!BO60)","v":"n.d."},{"$f":"IF('[2]EXT RIN(M)'!$K60=\"\",\"\",'[2]EXT RIN(M)'!$K60)","v":"n.d."},"",{"$f":"IF('[2]EXT RIN(M)'!$L60=\"\",\"\",'[2]EXT RIN(M)'!$L60)","v":"n.d."},"",{"$f":"IF('[2]MONE(M)CARD'!EG60=\"\",\"\",'[2]MONE(M)CARD'!EG60)","v":"n.d."},{"$f":"IF('[2]MONE(M)CARD'!EK60=\"\",\"\",'[2]MONE(M)CARD'!EK60)","v":"n.d."},{"$f":"IF('[2]MONE(M)CARD'!EP60=\"\",\"\",'[2]MONE(M)CARD'!EP60)","v":"n.d."},{"$f":"IF('[2]MONE(M)CARD'!ES60=\"\",\"\",'[2]MONE(M)CARD'!ES60)","v":"n.d."},{"$f":"IF('[2]MONE(M)CARD'!EV60=\"\",\"\",'[2]MONE(M)CARD'!EV60)","v":"n.d."},{"$f":"IF('[2]MONE(M)CARD'!EZ60=\"\",\"\",'[2]MONE(M)CARD'!EZ60)","v":"n.d."},{"$f":"IF('[2]MONE(M)CAPARD'!FC60=\"\",\"\",'[2]MONE(M)CAPARD'!FC60)","v":"n.d."},{"$f":"IF('[2]MONE(M)CAPARD'!FG60=\"\",\"\",'[2]MONE(M)CAPARD'!FG60)","v":"n.d."},{"$f":"IF('[2]MONE(M)CAPARD'!FL60=\"\",\"\",'[2]MONE(M)CAPARD'!FL60)","v":"n.d."},{"$f":"IF('[2]MONE(M)CAPARD'!FO60=\"\",\"\",'[2]MONE(M)CAPARD'!FO60)","v":"n.d."},{"$f":"IF('[2]MONE(M)CAPARD'!FR60=\"\",\"\",'[2]MONE(M)CAPARD'!FR60)","v":"n.d."},{"$f":"IF('[2]MONE(M)CAPARD'!FV60=\"\",\"\",'[2]MONE(M)CAPARD'!FV60)","v":"n.d."},{"$f":"IF('[2]MONE(M)CARD'!FV60=\"\",\"\",'[2]MONE(M)CARD'!FV60)","v":""},{"$f":"IF('[2]MONE(M)CARD'!GD60=\"\",\"\",'[2]MONE(M)CARD'!GD60)","v":"n.d."},{"$f":"IF('[2]MONE(M)CARD'!GE60=\"\",\"\",'[2]MONE(M)CARD'!GE60)","v":"n.d."},"n.d.","n.d.","n.d.","n.d.","n.d.","n.d.","n.d.","n.d.",null,"n.d.","n.d.","n.d.","n.d.","n.d.",{"$f":"IF('[2]MONE(M)CAPARD'!GS60=\"\",\"\",'[2]MONE(M)CAPARD'!GS60)","v":"n.d."},{"$f":"IF('[2]MONE(M)CARD'!HA60=\"\",\"\",'[2]MONE(M)CAPARD'!HA60)","v":"n.d."},{"$f":"IF('[2]MONE(M)CAPARD'!HB60=\"\",\"\",'[2]MONE(M)CAPARD'!HB60)","v":"n.d."},"n.d.","n.d.","n.d.","n.d.","n.d.","n.d.","n.d.","n.d.","n.d.","n.d.","n.d.","n.d.","n.d.","n.d.",{"$f":"IF('[2]MONE(M)CAPARD'!AS60=\"\",\"\",'[2]MONE(M)CAPARD'!AS60)","v":"n.d."},{"$f":"IF('[2]MONE(M)CAPARD'!AT60=\"\",\"\",'[2]MONE(M)CAPARD'!AT60)","v":"n.a."},{"$f":"IF('[2]MONE(M)CAPARD'!AU60=\"\",\"\",'[2]MONE(M)CAPARD'!AU60)","v":"n.d."},{"$f":"IF('[2]MONE(M)CAPARD'!AV60=\"\",\"\",'[2]MONE(M)CAPARD'!AV60)","v":"n.d."},{"$f":"IF('[2]MONE(M)CAPARD'!AW60=\"\",\"\",'[2]MONE(M)CAPARD'!AW60)","v":"n.a."},{"$f":"IF('[2]MONE(M)CAPARD'!AX60=\"\",\"\",'[2]MONE(M)CAPARD'!AX60)","v":"n.d."},{"$f":"IF('[2]MONE(M)CAPARD'!AY60=\"\",\"\",'[2]MONE(M)CAPARD'!AY60)","v":"n.a."},{"$f":"IF('[2]FISCAL(M)'!$K60=\"\",\"\",'[2]FISCAL(M)'!$K60)","v":"n.d."},{"$f":"IF('[2]FISCAL(M)'!$L60=\"\",\"\",'[2]FISCAL(M)'!$L60)","v":"n.d."},{"$f":"IF('[2]FISCAL(M)'!$AY60=\"\",\"\",'[2]FISCAL(M)'!$AY60)","v":"n.d."},{"$f":"IF('[2]FISCAL(M)'!$BI60=\"\",\"\",'[2]FISCAL(M)'!$BI60)","v":"n.d."},{"$f":"IF('[2]FISCAL(M)'!$BS60=\"\",\"\",'[2]FISCAL(M)'!$BS60)","v":"n.d."},{"$f":"IF('[2]FISCAL(M)'!$AZ60=\"\",\"\",'[2]FISCAL(M)'!$AZ60)","v":"n.d."},{"$f":"IF('[2]FISCAL(M)'!$BJ60=\"\",\"\",'[2]FISCAL(M)'!$BJ60)","v":"n.d."},{"$f":"IF('[2]FISCAL(M)'!$BT60=\"\",\"\",'[2]FISCAL(M)'!$BT60)","v":"n.d."},{"$f":"IF('[3]MONE(M)'!$AO60=\"\",\"\",'[3]MONE(M)'!$AO60)","v":"n.d."},{"$f":"IF('[4]MONE(M)'!$AO60=\"\",\"\",'[4]MONE(M)'!$AO60)","v":"n.d."},{"$f":"IF('[5]MONE(M)'!$AO60=\"\",\"\",'[5]MONE(M)'!$AO60)","v":"n.d."},{"$f":"+'[1]MONE(M)'!$AO60","v":"n.d."},{"$f":"IF('[6]MONE(M)'!$AO60=\"\",\"\",'[6]MONE(M)'!$AO60)","v":"n.d."},{"$f":"IF('[7]MONE(M)'!$AO60=\"\",\"\",'[7]MONE(M)'!$AO60)","v":"n.d."},{"$f":"IF('[8]MONE(M)'!$AO60=\"\",\"\",'[8]MONE(M)'!$AO60)","v":"n.d."},"n.d.","n.d.","n.d.","n.d.","n.d.","n.d.","n.d.",{"$f":"IF('[2]FISCAL(M)'!$K60=\"\",\"\",'[2]FISCAL(M)'!$K60)","v":"n.d."},"n.d.","n.d.",{"$f":"IF('[2]FISCAL(M)'!$L60=\"\",\"\",'[2]FISCAL(M)'!$L60)","v":"n.d."},"n.d.","n.d.","n.d.","n.d.","n.d.","n.d.","n.d.","n.d.","n.d.","n.d.","n.d.","n.d.","n.d.","n.d.","n.d.","n.d.","n.d.","n.d."]
[1994,"abril","1994-abril",{"$f":"IF('[2]REAL IPC(M)'!$AL61=\"\",\"\",+'[2]REAL IPC(M)'!$AL61)","v":10.895238095238092},{"$f":"IF('[2]REAL IPC(M)'!$BE61=\"\",\"\",+'[2]REAL IPC(M)'!$BE61)","v":"n.d."},{"$f":"IF('[2]REAL IPC(M)'!$AM61=\"\",\"\",+'[2]REAL IPC(M)'!$AM61)","v":9.9278598419787034},{"$f":"IF('[2]REAL IPC(M)'!$BI61=\"\",\"\",+'[2]REAL IPC(M)'!$BI61)","v":"n.d."},{"$f":"IF('[2]REAL IMAE(M)'!BJ61=\"\",\"\",'[2]REAL IMAE(M)'!BJ61)","v":"n.d."},{"$f":"IF('[2]REAL IMAE(M)'!BK61=\"\",\"\",'[2]REAL IMAE(M)'!BK61)","v":"n.d."},{"$f":"IF('[2]REAL IMAE(M)'!BN61=\"\",\"\",'[2]REAL IMAE(M)'!BN61)","v":"n.d."},{"$f":"IF('[2]REAL IMAE(M)'!BO61=\"\",\"\",'[2]REAL IMAE(M)'!BO61)","v":"n.d."},{"$f":"IF('[2]EXT RIN(M)'!$K61=\"\",\"\",'[2]EXT RIN(M)'!$K61)","v":"n.d."},"",{"$f":"IF('[2]EXT RIN(M)'!$L61=\"\",\"\",'[2]EXT RIN(M)'!$L61)","v":"n.d."},"",{"$f":"IF('[2]MONE(M)CARD'!EG61=\"\",\"\",'[2]MONE(M)CARD'!EG61)","v":"n.d."},{"$f":"IF('[2]MONE(M)CARD'!EK61=\"\",\"\",'[2]MONE(M)CARD'!EK61)","v":"n.d."},{"$f":"IF('[2]MONE(M)CARD'!EP61=\"\",\"\",'[2]MONE(M)CARD'!EP61)","v":"n.d."},{"$f":"IF('[2]MONE(M)CARD'!ES61=\"\",\"\",'[2]MONE(M)CARD'!ES61)","v":"n.d."},{"$f":"IF('[2]MONE(M)CARD'!EV61=\"\",\"\",'[2]MONE(M)CARD'!EV61)","v":"n.d."},{"$f":"IF('[2]MONE(M)CARD'!EZ61=\"\",\"\",'[2]MONE(M)CARD'!EZ61)","v":"n.d."},{"$f":"IF('[2]MONE(M)CAPARD'!FC61=\"\",\"\",'[2]MONE(M)CAPARD'!FC61)","v":"n.d."},{"$f":"IF('[2]MONE(M)CAPARD'!FG61=\"\",\"\",'[2]MONE(M)CAPARD'!FG61)","v":"n.d."},{"$f":"IF('[2]MONE(M)CAPARD'!FL61=\"\",\"\",'[2]MONE(M)CAPARD'!FL61)","v":"n.d."},{"$f":"IF('[2]MONE(M)CAPARD'!FO61=\"\",\"\",'[2]MONE(M)CAPARD'!FO61)","v":"n.d."},{"$f":"IF('[2]MONE(M)CAPARD'!FR61=\"\",\"\",'[2]MONE(M)CAPARD'!FR61)","v":"n.d."},{"$f":"IF('[2]MONE(M)CAPARD'!FV61=\"\",\"\",'[2]MONE(M)CAPARD'!FV61)","v":"n.d."},{"$f":"IF('[2]MONE(M)CARD'!FV61=\"\",\"\",'[2]MONE(M)CARD'!FV61)","v":""},{"$f":"IF('[2]MONE(M)CARD'!GD61=\"\",\"\",'[2]MONE(M)CARD'!GD61)","v":"n.d."},{"$f":"IF('[2]MONE(M)CARD'!GE61=\"\",\"\",'[2]MONE(M)CARD'!GE61)","v":"n.d."},"n.d.","n.d.","n.d.","n.d.","n.d.","n.d.","n.d.","n.d.",null,"n.d.","n.d.","n.d.","n.d.","n.d.",{"$f":"IF('[2]MONE(M)CAPARD'!GS61=\"\",\"\",'[2]MONE(M)CAPARD'!GS61)","v":"n.d."},{"$f":"IF('[2]MONE(M)CARD'!HA61=\"\",\"\",'[2]MONE(M)CAPARD'!HA61)","v":"n.d."},{"$f":"IF('[2]MONE(M)CAPARD'!HB61=\"\",\"\",'[2]MONE(M)CAPARD'!HB61)","v":"n.d."},"n.d.","n.d.","n.d.","n.d.","n.d.","n.d.","n.d.","n.d.","n.d.","n.d.","n.d.","n.d.","n.d.","n.d.",{"$f":"IF('[2]MONE(M)CAPARD'!AS61=\"\",\"\",'[2]MONE(M)CAPARD'!AS61)","v":"n.d."},{"$f":"IF('[2]MONE(M)CAPARD'!AT61=\"\",\"\",'[2]MONE(M)CAPARD'!AT61)","v":"n.a."},{"$f":"IF('[2]MONE(M)CAPARD'!AU61=\"\",\"\",'[2]MONE(M)CAPARD'!AU61)","v":"n.d."},{"$f":"IF('[2]MONE(M)CAPARD'!AV61=\"\",\"\",'[2]MONE(M)CAPARD'!AV61)","v":"n.d."},{"$f":"IF('[2]MONE(M)CAPARD'!AW61=\"\",\"\",'[2]MONE(M)CAPARD'!AW61)","v":"n.a."},{"$f":"IF('[2]MONE(M)CAPARD'!AX61=\"\",\"\",'[2]MONE(M)CAPARD'!AX61)","v":"n.d."},{"$f":"IF('[2]MONE(M)CAPARD'!AY61=\"\",\"\",'[2]MONE(M)CAPARD'!AY61)","v":"n.a."},{"$f":"IF('[2]FISCAL(M)'!$K61=\"\",\"\",'[2]FISCAL(M)'!$K61)","v":"n.d."},{"$f":"IF('[2]FISCAL(M)'!$L61=\"\",\"\",'[2]FISCAL(M)'!$L61)","v":"n.d."},{"$f":"IF('[2]FISCAL(M)'!$AY61=\"\",\"\",'[2]FISCAL(M)'!$AY61)","v":"n.d."},{"$f":"IF('[2]FISCAL(M)'!$BI61=\"\",\"\",'[2]FISCAL(M)'!$BI61)","v":"n.d."},{"$f":"IF('[2]FISCAL(M)'!$BS61=\"\",\"\",'[2]FISCAL(M)'!$BS61)","v":"n.d."},{"$f":"IF('[2]FISCAL(M)'!$AZ61=\"\",\"\",'[2]FISCAL(M)'!$AZ61)","v":"n.d."},{"$f":"IF('[2]FISCAL(M)'!$BJ61=\"\",\"\",'[2]FISCAL(M)'!$BJ61)","v":"n.d."},{"$f":"IF('[2]FISCAL(M)'!$BT61=\"\",\"\",'[2]FISCAL(M)'!$BT61)","v":"n.d."},{"$f":"IF('[3]MONE(M)'!$AO61=\"\",\"\",'[3]MONE(M)'!$AO61)","v":"n.d."},{"$f":"IF('[4]MONE(M)'!$AO61=\"\",\"\",'[4]MONE(M)'!$AO61)","v":"n.d."},{"$f":"IF('[5]MONE(M)'!$AO61=\"\",\"\",'[5]MONE(M)'!$AO61)","v":"n.d."},{"$f":"+'[1]MONE(M)'!$AO61","v":"n.d."},{"$f":"IF('[6]MONE(M)'!$AO61=\"\",\"\",'[6]MONE(M)'!$AO61)","v":"n.d."},{"$f":"IF('[7]MONE(M)'!$AO61=\"\",\"\",'[7]MONE(M)'!$AO61)","v":"n.d."},{"$f":"IF('[8]MONE(M)'!$AO61=\"\",\"\",'[8]MONE(M)'!$AO61)","v":"n.d."},"n.d.","n.d.","n.d.","n.d.","n.d.","n.d.","n.d.",{"$f":"IF('[2]FISCAL(M)'!$K61=\"\",\"\",'[2]FISCAL(M)'!$K61)","v":"n.d."},"n.d.","n.d.",{"$f":"IF('[2]FISCAL(M)'!$L61=\"\",\"\",'[2]FISCAL(M)'!$L61)","v":"n.d."},"n.d.","n.d.","n.d.","n.d.","n.d.","n.d.","n.d.","n.d.","n.d.","n.d.","n.d.","n.d.","n.d.","n.d.","n.d.","n.d.","n.d.","n.d."]
[1994,"mayo ","1994-mayo ",{"$f":"IF('[2]REAL IPC(M)'!$AL62=\"\",\"\",+'[2]REAL IPC(M)'!$AL62)","v":11.28787878787878},{"$f":"IF('[2]REAL IPC(M)'!$BE62=\"\",\"\",+'[2]REAL IPC(M)'!$BE62)","v":"n.d."},{"$f":"IF('[2]REAL IPC(M)'!$AM62=\"\",\"\",+'[2]REAL IPC(M)'!$AM62)","v":10.249402118209794},{"$f":"IF('[2]REAL IPC(M)'!$BI62=\"\",\"\",+'[2]REAL IPC(M)'!$BI62)","v":"n.d."},{"$f":"IF('[2]REAL IMAE(M)'!BJ62=\"\",\"\",'[2]REAL IMAE(M)'!BJ62)","v":"n.d."},{"$f":"IF('[2]REAL IMAE(M)'!BK62=\"\",\"\",'[2]REAL IMAE(M)'!BK62)","v":"n.d."},{"$f":"IF('[2]REAL IMAE(M)'!BN62=\"\",\"\",'[2]REAL IMAE(M)'!BN62)","v":"n.d."},{"$f":"IF('[2]REAL IMAE(M)'!BO62=\"\",\"\",'[2]REAL IMAE(M)'!BO62)","v":"n.d."},{"$f":"IF('[2]EXT RIN(M)'!$K62=\"\",\"\",'[2]EXT RIN(M)'!$K62)","v":"n.d."},"",{"$f":"IF('[2]EXT RIN(M)'!$L62=\"\",\"\",'[2]EXT RIN(M)'!$L62)","v":"n.d."},"",{"$f":"IF('[2]MONE(M)CARD'!EG62=\"\",\"\",'[2]MONE(M)CARD'!EG62)","v":"n.d."},{"$f":"IF('[2]MONE(M)CARD'!EK62=\"\",\"\",'[2]MONE(M)CARD'!EK62)","v":"n.d."},{"$f":"IF('[2]MONE(M)CARD'!EP62=\"\",\"\",'[2]MONE(M)CARD'!EP62)","v":"n.d."},{"$f":"IF('[2]MONE(M)CARD'!ES62=\"\",\"\",'[2]MONE(M)CARD'!ES62)","v":"n.d."},{"$f":"IF('[2]MONE(M)CARD'!EV62=\"\",\"\",'[2]MONE(M)CARD'!EV62)","v":"n.d."},{"$f":"IF('[2]MONE(M)CARD'!EZ62=\"\",\"\",'[2]MONE(M)CARD'!EZ62)","v":"n.d."},{"$f":"IF('[2]MONE(M)CAPARD'!FC62=\"\",\"\",'[2]MONE(M)CAPARD'!FC62)","v":"n.d."},{"$f":"IF('[2]MONE(M)CAPARD'!FG62=\"\",\"\",'[2]MONE(M)CAPARD'!FG62)","v":"n.d."},{"$f":"IF('[2]MONE(M)CAPARD'!FL62=\"\",\"\",'[2]MONE(M)CAPARD'!FL62)","v":"n.d."},{"$f":"IF('[2]MONE(M)CAPARD'!FO62=\"\",\"\",'[2]MONE(M)CAPARD'!FO62)","v":"n.d."},{"$f":"IF('[2]MONE(M)CAPARD'!FR62=\"\",\"\",'[2]MONE(M)CAPARD'!FR62)","v":"n.d."},{"$f":"IF('[2]MONE(M)CAPARD'!FV62=\"\",\"\",'[2]MONE(M)CAPARD'!FV62)","v":"n.d."},{"$f":"IF('[2]MONE(M)CARD'!FV62=\"\",\"\",'[2]MONE(M)CARD'!FV62)","v":""},{"$f":"IF('[2]MONE(M)CARD'!GD62=\"\",\"\",'[2]MONE(M)CARD'!GD62)","v":"n.d."},{"$f":"IF('[2]MONE(M)CARD'!GE62=\"\",\"\",'[2]MONE(M)CARD'!GE62)","v":"n.d."},"n.d.","n.d.","n.d.","n.d.","n.d.","n.d.","n.d.","n.d.",null,"n.d.","n.d.","n.d.","n.d.","n.d.",{"$f":"IF('[2]MONE(M)CAPARD'!GS62=\"\",\"\",'[2]MONE(M)CAPARD'!GS62)","v":"n.d."},{"$f":"IF('[2]MONE(M)CARD'!HA62=\"\",\"\",'[2]MONE(M)CAPARD'!HA62)","v":"n.d."},{"$f":"IF('[2]MONE(M)CAPARD'!HB62=\"\",\"\",'[2]MONE(M)CAPARD'!HB62)","v":"n.d."},"n.d.","n.d.","n.d.","n.d.","n.d.","n.d.","n.d.","n.d.","n.d.","n.d.","n.d.","n.d.","n.d.","n.d.",{"$f":"IF('[2]MONE(M)CAPARD'!AS62=\"\",\"\",'[2]MONE(M)CAPARD'!AS62)","v":"n.d."},{"$f":"IF('[2]MONE(M)CAPARD'!AT62=\"\",\"\",'[2]MONE(M)CAPARD'!AT62)","v":"n.a."},{"$f":"IF('[2]MONE(M)CAPARD'!AU62=\"\",\"\",'[2]MONE(M)CAPARD'!AU62)","v":"n.d."},{"$f":"IF('[2]MONE(M)CAPARD'!AV62=\"\",\"\",'[2]MONE(M)CAPARD'!AV62)","v":"n.d."},{"$f":"IF('[2]MONE(M)CAPARD'!AW62=\"\",\"\",'[2]MONE(M)CAPARD'!AW62)","v":"n.a."},{"$f":"IF('[2]MONE(M)CAPARD'!AX62=\"\",\"\",'[2]MONE(M)CAPARD'!AX62)","v":"n.d."},{"$f":"IF('[2]MONE(M)CAPARD'!AY62=\"\",\"\",'[2]MONE(M)CAPARD'!AY62)","v":"n.a."},{"$f":"IF('[2]FISCAL(M)'!$K62=\"\",\"\",'[2]FISCAL(M)'!$K62)","v":"n.d."},{"$f":"IF('[2]FISCAL(M)'!$L62=\"\",\"\",'[2]FISCAL(M)'!$L62)","v":"n.d."},{"$f":"IF('[2]FISCAL(M)'!$AY62=\"\",\"\",'[2]FISCAL(M)'!$AY62)","v":"n.d."},{"$f":"IF('[2]FISCAL(M)'!$BI62=\"\",\"\",'[2]FISCAL(M)'!$BI62)","v":"n.d."},{"$f":"IF('[2]FISCAL(M)'!$BS62=\"\",\"\",'[2]FISCAL(M)'!$BS62)","v":"n.d."},{"$f":"IF('[2]FISCAL(M)'!$AZ62=\"\",\"\",'[2]FISCAL(M)'!$AZ62)","v":"n.d."},{"$f":"IF('[2]FISCAL(M)'!$BJ62=\"\",\"\",'[2]FISCAL(M)'!$BJ62)","v":"n.d."},{"$f":"IF('[2]FISCAL(M)'!$BT62=\"\",\"\",'[2]FISCAL(M)'!$BT62)","v":"n.d."},{"$f":"IF('[3]MONE(M)'!$AO62=\"\",\"\",'[3]MONE(M)'!$AO62)","v":"n.d."},{"$f":"IF('[4]MONE(M)'!$AO62=\"\",\"\",'[4]MONE(M)'!$AO62)","v":"n.d."},{"$f":"IF('[5]MONE(M)'!$AO62=\"\",\"\",'[5]MONE(M)'!$AO62)","v":"n.d."},{"$f":"+'[1]MONE(M)'!$AO62","v":"n.d."},{"$f":"IF('[6]MONE(M)'!$AO62=\"\",\"\",'[6]MONE(M)'!$AO62)","v":"n.d."},{"$f":"IF('[7]MONE(M)'!$AO62=\"\",\"\",'[7]MONE(M)'!$AO62)","v":"n.d."},{"$f":"IF('[8]MONE(M)'!$AO62=\"\",\"\",'[8]MONE(M)'!$AO62)","v":"n.d."},"n.d.","n.d.","n.d.","n.d.","n.d.","n.d.","n.d.",{"$f":"IF('[2]FISCAL(M)'!$K62=\"\",\"\",'[2]FISCAL(M)'!$K62)","v":"n.d."},"n.d.","n.d.",{"$f":"IF('[2]FISCAL(M)'!$L62=\"\",\"\",'[2]FISCAL(M)'!$L62)","v":"n.d."},"n.d.","n.d.","n.d.","n.d.","n.d.","n.d.","n.d.","n.d.","n.d.","n.d.","n.d.","n.d.","n.d.","n.d.","n.d.","n.d.","n.d.","n.d."]
[1994,"junio ","1994-junio ",{"$f":"IF('[2]REAL IPC(M)'!$AL63=\"\",\"\",+'[2]REAL IPC(M)'!$AL63)","v":10.569408262002234},{"$f":"IF('[2]REAL IPC(M)'!$BE63=\"\",\"\",+'[2]REAL IPC(M)'!$BE63)","v":"n.d."},{"$f":"IF('[2]REAL IPC(M)'!$AM63=\"\",\"\",+'[2]REAL IPC(M)'!$AM63)","v":9.5798319327731196},{"$f":"IF('[2]REAL IPC(M)'!$BI63=\"\",\"\",+'[2]REAL IPC(M)'!$BI63)","v":"n.d."},{"$f":"IF('[2]REAL IMAE(M)'!BJ63=\"\",\"\",'[2]REAL IMAE(M)'!BJ63)","v":"n.d."},{"$f":"IF('[2]REAL IMAE(M)'!BK63=\"\",\"\",'[2]REAL IMAE(M)'!BK63)","v":"n.d."},{"$f":"IF('[2]REAL IMAE(M)'!BN63=\"\",\"\",'[2]REAL IMAE(M)'!BN63)","v":"n.d."},{"$f":"IF('[2]REAL IMAE(M)'!BO63=\"\",\"\",'[2]REAL IMAE(M)'!BO63)","v":"n.d."},{"$f":"IF('[2]EXT RIN(M)'!$K63=\"\",\"\",'[2]EXT RIN(M)'!$K63)","v":"n.d."},"",{"$f":"IF('[2]EXT RIN(M)'!$L63=\"\",\"\",'[2]EXT RIN(M)'!$L63)","v":"n.d."},"",{"$f":"IF('[2]MONE(M)CARD'!EG63=\"\",\"\",'[2]MONE(M)CARD'!EG63)","v":"n.d."},{"$f":"IF('[2]MONE(M)CARD'!EK63=\"\",\"\",'[2]MONE(M)CARD'!EK63)","v":"n.d."},{"$f":"IF('[2]MONE(M)CARD'!EP63=\"\",\"\",'[2]MONE(M)CARD'!EP63)","v":"n.d."},{"$f":"IF('[2]MONE(M)CARD'!ES63=\"\",\"\",'[2]MONE(M)CARD'!ES63)","v":"n.d."},{"$f":"IF('[2]MONE(M)CARD'!EV63=\"\",\"\",'[2]MONE(M)CARD'!EV63)","v":"n.d."},{"$f":"IF('[2]MONE(M)CARD'!EZ63=\"\",\"\",'[2]MONE(M)CARD'!EZ63)","v":"n.d."},{"$f":"IF('[2]MONE(M)CAPARD'!FC63=\"\",\"\",'[2]MONE(M)CAPARD'!FC63)","v":"n.d."},{"$f":"IF('[2]MONE(M)CAPARD'!FG63=\"\",\"\",'[2]MONE(M)CAPARD'!FG63)","v":"n.d."},{"$f":"IF('[2]MONE(M)CAPARD'!FL63=\"\",\"\",'[2]MONE(M)CAPARD'!FL63)","v":"n.d."},{"$f":"IF('[2]MONE(M)CAPARD'!FO63=\"\",\"\",'[2]MONE(M)CAPARD'!FO63)","v":"n.d."},{"$f":"IF('[2]MONE(M)CAPARD'!FR63=\"\",\"\",'[2]MONE(M)CAPARD'!FR63)","v":"n.d."},{"$f":"IF('[2]MONE(M)CAPARD'!FV63=\"\",\"\",'[2]MONE(M)CAPARD'!FV63)","v":"n.d."},{"$f":"IF('[2]MONE(M)CARD'!FV63=\"\",\"\",'[2]MONE(M)CARD'!FV63)","v":""},{"$f":"IF('[2]MONE(M)CARD'!GD63=\"\",\"\",'[2]MONE(M)CARD'!GD63)","v":"n.d."},{"$f":"IF('[2]MONE(M)CARD'!GE63=\"\",\"\",'[2]MONE(M)CARD'!GE63)","v":"n.d."},"n.d.","n.d.","n.d.","n.d.","n.d.","n.d.","n.d.","n.d.",null,"n.d.","n.d.","n.d.","n.d.","n.d.",{"$f":"IF('[2]MONE(M)CAPARD'!GS63=\"\",\"\",'[2]MONE(M)CAPARD'!GS63)","v":"n.d."},{"$f":"IF('[2]MONE(M)CARD'!HA63=\"\",\"\",'[2]MONE(M)CAPARD'!HA63)","v":"n.d."},{"$f":"IF('[2]MONE(M)CAPARD'!HB63=\"\",\"\",'[2]MONE(M)CAPARD'!HB63)","v":"n.d."},"n.d.","n.d.","n.d.","n.d.","n.d.","n.d.","n.d.","n.d.","n.d.","n.d.","n.d.","n.d.","n.d.","n.d.",{"$f":"IF('[2]MONE(M)CAPARD'!AS63=\"\",\"\",'[2]MONE(M)CAPARD'!AS63)","v":"n.d."},{"$f":"IF('[2]MONE(M)CAPARD'!AT63=\"\",\"\",'[2]MONE(M)CAPARD'!AT63)","v":"n.a."},{"$f":"IF('[2]MONE(M)CAPARD'!AU63=\"\",\"\",'[2]MONE(M)CAPARD'!AU63)","v":"n.d."},{"$f":"IF('[2]MONE(M)CAPARD'!AV63=\"\",\"\",'[2]MONE(M)CAPARD'!AV63)","v":"n.d."},{"$f":"IF('[2]MONE(M)CAPARD'!AW63=\"\",\"\",'[2]MONE(M)CAPARD'!AW63)","v":"n.a."},{"$f":"IF('[2]MONE(M)CAPARD'!AX63=\"\",\"\",'[2]MONE(M)CAPARD'!AX63)","v":"n.d."},{"$f":"IF('[2]MONE(M)CAPARD'!AY63=\"\",\"\",'[2]MONE(M)CAPARD'!AY63)","v":"n.a."},{"$f":"IF('[2]FISCAL(M)'!$K63=\"\",\"\",'[2]FISCAL(M)'!$K63)","v":"n.d."},{"$f":"IF('[2]FISCAL(M)'!$L63=\"\",\"\",'[2]FISCAL(M)'!$L63)","v":"n.d."},{"$f":"IF('[2]FISCAL(M)'!$AY63=\"\",\"\",'[2]FISCAL(M)'!$AY63)","v":"n.d."},{"$f":"IF('[2]FISCAL(M)'!$BI63=\"\",\"\",'[2]FISCAL(M)'!$BI63)","v":"n.d."},{"$f":"IF('[2]FISCAL(M)'!$BS63=\"\",\"\",'[2]FISCAL(M)'!$BS63)","v":"n.d."},{"$f":"IF('[2]FISCAL(M)'!$AZ63=\"\",\"\",'[2]FISCAL(M)'!$AZ63)","v":"n.d."},{"$f":"IF('[2]FISCAL(M)'!$BJ63=\"\",\"\",'[2]FISCAL(M)'!$BJ63)","v":"n.d."},{"$f":"IF('[2]FISCAL(M)'!$BT63=\"\",\"\",'[2]FISCAL(M)'!$BT63)","v":"n.d."},{"$f":"IF('[3]MONE(M)'!$AO63=\"\",\"\",'[3]MONE(M)'!$AO63)","v":"n.d."},{"$f":"IF('[4]MONE(M)'!$AO63=\"\",\"\",'[4]MONE(M)'!$AO63)","v":"n.d."},{"$f":"IF('[5]MONE(M)'!$AO63=\"\",\"\",'[5]MONE(M)'!$AO63)","v":"n.d."},{"$f":"+'[1]MONE(M)'!$AO63","v":"n.d."},{"$f":"IF('[6]MONE(M)'!$AO63=\"\",\"\",'[6]MONE(M)'!$AO63)","v":"n.d."},{"$f":"IF('[7]MONE(M)'!$AO63=\"\",\"\",'[7]MONE(M)'!$AO63)","v":"n.d."},{"$f":"IF('[8]MONE(M)'!$AO63=\"\",\"\",'[8]MONE(M)'!$AO63)","v":"n.d."},"n.d.","n.d.","n.d.","n.d.","n.d.","n.d.","n.d.",{"$f":"IF('[2]FISCAL(M)'!$K63=\"\",\"\",'[2]FISCAL(M)'!$K63)","v":"n.d."},"n.d.","n.d.",{"$f":"IF('[2]FISCAL(M)'!$L63=\"\",\"\",'[2]FISCAL(M)'!$L63)","v":"n.d."},"n.d.","n.d.","n.d.","n.d.","n.d.","n.d.","n.d.","n.d.","n.d.","n.d.","n.d.","n.d.","n.d.","n.d.","n.d.","n.d.","n.d.","n.d."]
[1994,"julio","1994-julio",{"$f":"IF('[2]REAL IPC(M)'!$AL64=\"\",\"\",+'[2]REAL IPC(M)'!$AL64)","v":9.4629156010230133},{"$f":"IF('[2]REAL IPC(M)'!$BE64=\"\",\"\",+'[2]REAL IPC(M)'!$BE64)","v":"n.d."},{"$f":"IF('[2]REAL IPC(M)'!$AM64=\"\",\"\",+'[2]REAL IPC(M)'!$AM64)","v":8.5950413223140565},{"$f":"IF('[2]REAL IPC(M)'!$BI64=\"\",\"\",+'[2]REAL IPC(M)'!$BI64)","v":"n.d."},{"$f":"IF('[2]REAL IMAE(M)'!BJ64=\"\",\"\",'[2]REAL IMAE(M)'!BJ64)","v":"n.d."},{"$f":"IF('[2]REAL IMAE(M)'!BK64=\"\",\"\",'[2]REAL IMAE(M)'!BK64)","v":"n.d."},{"$f":"IF('[2]REAL IMAE(M)'!BN64=\"\",\"\",'[2]REAL IMAE(M)'!BN64)","v":"n.d."},{"$f":"IF('[2]REAL IMAE(M)'!BO64=\"\",\"\",'[2]REAL IMAE(M)'!BO64)","v":"n.d."},{"$f":"IF('[2]EXT RIN(M)'!$K64=\"\",\"\",'[2]EXT RIN(M)'!$K64)","v":"n.d."},"",{"$f":"IF('[2]EXT RIN(M)'!$L64=\"\",\"\",'[2]EXT RIN(M)'!$L64)","v":"n.d."},"",{"$f":"IF('[2]MONE(M)CARD'!EG64=\"\",\"\",'[2]MONE(M)CARD'!EG64)","v":"n.d."},{"$f":"IF('[2]MONE(M)CARD'!EK64=\"\",\"\",'[2]MONE(M)CARD'!EK64)","v":"n.d."},{"$f":"IF('[2]MONE(M)CARD'!EP64=\"\",\"\",'[2]MONE(M)CARD'!EP64)","v":"n.d."},{"$f":"IF('[2]MONE(M)CARD'!ES64=\"\",\"\",'[2]MONE(M)CARD'!ES64)","v":"n.d."},{"$f":"IF('[2]MONE(M)CARD'!EV64=\"\",\"\",'[2]MONE(M)CARD'!EV64)","v":"n.d."},{"$f":"IF('[2]MONE(M)CARD'!EZ64=\"\",\"\",'[2]MONE(M)CARD'!EZ64)","v":"n.d."},{"$f":"IF('[2]MONE(M)CAPARD'!FC64=\"\",\"\",'[2]MONE(M)CAPARD'!FC64)","v":"n.d."},{"$f":"IF('[2]MONE(M)CAPARD'!FG64=\"\",\"\",'[2]MONE(M)CAPARD'!FG64)","v":"n.d."},{"$f":"IF('[2]MONE(M)CAPARD'!FL64=\"\",\"\",'[2]MONE(M)CAPARD'!FL64)","v":"n.d."},{"$f":"IF('[2]MONE(M)CAPARD'!FO64=\"\",\"\",'[2]MONE(M)CAPARD'!FO64)","v":"n.d."},{"$f":"IF('[2]MONE(M)CAPARD'!FR64=\"\",\"\",'[2]MONE(M)CAPARD'!FR64)","v":"n.d."},{"$f":"IF('[2]MONE(M)CAPARD'!FV64=\"\",\"\",'[2]MONE(M)CAPARD'!FV64)","v":"n.d."},{"$f":"IF('[2]MONE(M)CARD'!FV64=\"\",\"\",'[2]MONE(M)CARD'!FV64)","v":""},{"$f":"IF('[2]MONE(M)CARD'!GD64=\"\",\"\",'[2]MONE(M)CARD'!GD64)","v":"n.d."},{"$f":"IF('[2]MONE(M)CARD'!GE64=\"\",\"\",'[2]MONE(M)CARD'!GE64)","v":"n.d."},"n.d.","n.d.","n.d.","n.d.","n.d.","n.d.","n.d.","n.d.",null,"n.d.","n.d.","n.d.","n.d.","n.d.",{"$f":"IF('[2]MONE(M)CAPARD'!GS64=\"\",\"\",'[2]MONE(M)CAPARD'!GS64)","v":"n.d."},{"$f":"IF('[2]MONE(M)CARD'!HA64=\"\",\"\",'[2]MONE(M)CAPARD'!HA64)","v":"n.d."},{"$f":"IF('[2]MONE(M)CAPARD'!HB64=\"\",\"\",'[2]MONE(M)CAPARD'!HB64)","v":"n.d."},"n.d.","n.d.","n.d.","n.d.","n.d.","n.d.","n.d.","n.d.","n.d.","n.d.","n.d.","n.d.","n.d.","n.d.",{"$f":"IF('[2]MONE(M)CAPARD'!AS64=\"\",\"\",'[2]MONE(M)CAPARD'!AS64)","v":"n.d."},{"$f":"IF('[2]MONE(M)CAPARD'!AT64=\"\",\"\",'[2]MONE(M)CAPARD'!AT64)","v":"n.a."},{"$f":"IF('[2]MONE(M)CAPARD'!AU64=\"\",\"\",'[2]MONE(M)CAPARD'!AU64)","v":"n.d."},{"$f":"IF('[2]MONE(M)CAPARD'!AV64=\"\",\"\",'[2]MONE(M)CAPARD'!AV64)","v":"n.d."},{"$f":"IF('[2]MONE(M)CAPARD'!AW64=\"\",\"\",'[2]MONE(M)CAPARD'!AW64)","v":"n.a."},{"$f":"IF('[2]MONE(M)CAPARD'!AX64=\"\",\"\",'[2]MONE(M)CAPARD'!AX64)","v":"n.d."},{"$f":"IF('[2]MONE(M)CAPARD'!AY64=\"\",\"\",'[2]MONE(M)CAPARD'!AY64)","v":"n.a."},{"$f":"IF('[2]FISCAL(M)'!$K64=\"\",\"\",'[2]FISCAL(M)'!$K64)","v":"n.d."},{"$f":"IF('[2]FISCAL(M)'!$L64=\"\",\"\",'[2]FISCAL(M)'!$L64)","v":"n.d."},{"$f":"IF('[2]FISCAL(M)'!$AY64=\"\",\"\",'[2]FISCAL(M)'!$AY64)","v":"n.d."},{"$f":"IF('[2]FISCAL(M)'!$BI64=\"\",\"\",'[2]FISCAL(M)'!$BI64)","v":"n.d."},{"$f":"IF('[2]FISCAL(M)'!$BS64=\"\",\"\",'[2]FISCAL(M)'!$BS64)","v":"n.d."},{"$f":"IF('[2]FISCAL(M)'!$AZ64=\"\",\"\",'[2]FISCAL(M)'!$AZ64)","v":"n.d."},{"$f":"IF('[2]FISCAL(M)'!$BJ64=\"\",\"\",'[2]FISCAL(M)'!$BJ64)","v":"n.d."},{"$f":"IF('[2]FISCAL(M)'!$BT64=\"\",\"\",'[2]FISCAL(M)'!$BT64)","v":"n.d."},{"$f":"IF('[3]MONE(M)'!$AO64=\"\",\"\",'[3]MONE(M)'!$AO64)","v":"n.d."},{"$f":"IF('[4]MONE(M)'!$AO64=\"\",\"\",'[4]MONE(M)'!$AO64)","v":"n.d."},{"$f":"IF('[5]MONE(M)'!$AO64=\"\",\"\",'[5]MONE(M)'!$AO64)","v":"n.d."},{"$f":"+'[1]MONE(M)'!$AO64","v":"n.d."},{"$f":"IF('[6]MONE(M)'!$AO64=\"\",\"\",'[6]MONE(M)'!$AO64)","v":"n.d."},{"$f":"IF('[7]MONE(M)'!$AO64=\"\",\"\",'[7]MONE(M)'!$AO64)","v":"n.d."},{"$f":"IF('[8]MONE(M)'!$AO64=\"\",\"\",'[8]MONE(M)'!$AO64)","v":"n.d."},"n.d.","n.d.","n.d.","n.d.","n.d.","n.d.","n.d.",{"$f":"IF('[2]FISCAL(M)'!$K64=\"\",\"\",'[2]FISCAL(M)'!$K64)","v":"n.d."},"n.d.","n.d.",{"$f":"IF('[2]FISCAL(M)'!$L64=\"\",\"\",'[2]FISCAL(M)'!$L64)","v":"n.d."},"n.d.","n.d.","n.d.","n.d.","n.d.","n.d.","n.d.","n.d.","n.d.","n.d.","n.d.","n.d.","n.d.","n.d.","n.d.","n.d.","n.d.","n.d."]
[1994,"agosto","1994-agosto",{"$f":"IF('[2]REAL IPC(M)'!$AL65=\"\",\"\",+'[2]REAL IPC(M)'!$AL65)","v":10.702584637786682},{"$f":"IF('[2]REAL IPC(M)'!$BE65=\"\",\"\",+'[2]REAL IPC(M)'!$BE65)","v":"n.d."},{"$f":"IF('[2]REAL IPC(M)'!$AM65=\"\",\"\",+'[2]REAL IPC(M)'!$AM65)","v":9.7858319604612767},{"$f":"IF('[2]REAL IPC(M)'!$BI65=\"\",\"\",+'[2]REAL IPC(M)'!$BI65)","v":"n.d."},{"$f":"IF('[2]REAL IMAE(M)'!BJ65=\"\",\"\",'[2]REAL IMAE(M)'!BJ65)","v":"n.d."},{"$f":"IF('[2]REAL IMAE(M)'!BK65=\"\",\"\",'[2]REAL IMAE(M)'!BK65)","v":"n.d."},{"$f":"IF('[2]REAL IMAE(M)'!BN65=\"\",\"\",'[2]REAL IMAE(M)'!BN65)","v":"n.d."},{"$f":"IF('[2]REAL IMAE(M)'!BO65=\"\",\"\",'[2]REAL IMAE(M)'!BO65)","v":"n.d."},{"$f":"IF('[2]EXT RIN(M)'!$K65=\"\",\"\",'[2]EXT RIN(M)'!$K65)","v":"n.d."},"",{"$f":"IF('[2]EXT RIN(M)'!$L65=\"\",\"\",'[2]EXT RIN(M)'!$L65)","v":"n.d."},"",{"$f":"IF('[2]MONE(M)CARD'!EG65=\"\",\"\",'[2]MONE(M)CARD'!EG65)","v":"n.d."},{"$f":"IF('[2]MONE(M)CARD'!EK65=\"\",\"\",'[2]MONE(M)CARD'!EK65)","v":"n.d."},{"$f":"IF('[2]MONE(M)CARD'!EP65=\"\",\"\",'[2]MONE(M)CARD'!EP65)","v":"n.d."},{"$f":"IF('[2]MONE(M)CARD'!ES65=\"\",\"\",'[2]MONE(M)CARD'!ES65)","v":"n.d."},{"$f":"IF('[2]MONE(M)CARD'!EV65=\"\",\"\",'[2]MONE(M)CARD'!EV65)","v":"n.d."},{"$f":"IF('[2]MONE(M)CARD'!EZ65=\"\",\"\",'[2]MONE(M)CARD'!EZ65)","v":"n.d."},{"$f":"IF('[2]MONE(M)CAPARD'!FC65=\"\",\"\",'[2]MONE(M)CAPARD'!FC65)","v":"n.d."},{"$f":"IF('[2]MONE(M)CAPARD'!FG65=\"\",\"\",'[2]MONE(M)CAPARD'!FG65)","v":"n.d."},{"$f":"IF('[2]MONE(M)CAPARD'!FL65=\"\",\"\",'[2]MONE(M)CAPARD'!FL65)","v":"n.d."},{"$f":"IF('[2]MONE(M)CAPARD'!FO65=\"\",\"\",'[2]MONE(M)CAPARD'!FO65)","v":"n.d."},{"$f":"IF('[2]MONE(M)CAPARD'!FR65=\"\",\"\",'[2]MONE(M)CAPARD'!FR65)","v":"n.d."},{"$f":"IF('[2]MONE(M)CAPARD'!FV65=\"\",\"\",'[2]MONE(M)CAPARD'!FV65)","v":"n.d."},{"$f":"IF('[2]MONE(M)CARD'!FV65=\"\",\"\",'[2]MONE(M)CARD'!FV65)","v":""},{"$f":"IF('[2]MONE(M)CARD'!GD65=\"\",\"\",'[2]MONE(M)CARD'!GD65)","v":"n.d."},{"$f":"IF('[2]MONE(M)CARD'!GE65=\"\",\"\",'[2]MONE(M)CARD'!GE65)","v":"n.d."},"n.d.","n.d.","n.d.","n.d.","n.d.","n.d.","n.d.","n.d.",null,"n.d.","n.d.","n.d.","n.d.","n.d.",{"$f":"IF('[2]MONE(M)CAPARD'!GS65=\"\",\"\",'[2]MONE(M)CAPARD'!GS65)","v":"n.d."},{"$f":"IF('[2]MONE(M)CARD'!HA65=\"\",\"\",'[2]MONE(M)CAPARD'!HA65)","v":"n.d."},{"$f":"IF('[2]MONE(M)CAPARD'!HB65=\"\",\"\",'[2]MONE(M)CAPARD'!HB65)","v":"n.d."},"n.d.","n.d.","n.d.","n.d.","n.d.","n.d.","n.d.","n.d.","n.d.","n.d.","n.d.","n.d.","n.d.","n.d.",{"$f":"IF('[2]MONE(M)CAPARD'!AS65=\"\",\"\",'[2]MONE(M)CAPARD'!AS65)","v":"n.d."},{"$f":"IF('[2]MONE(M)CAPARD'!AT65=\"\",\"\",'[2]MONE(M)CAPARD'!AT65)","v":"n.a."},{"$f":"IF('[2]MONE(M)CAPARD'!AU65=\"\",\"\",'[2]MONE(M)CAPARD'!AU65)","v":"n.d."},{"$f":"IF('[2]MONE(M)CAPARD'!AV65=\"\",\"\",'[2]MONE(M)CAPARD'!AV65)","v":"n.d."},{"$f":"IF('[2]MONE(M)CAPARD'!AW65=\"\",\"\",'[2]MONE(M)CAPARD'!AW65)","v":"n.a."},{"$f":"IF('[2]MONE(M)CAPARD'!AX65=\"\",\"\",'[2]MONE(M)CAPARD'!AX65)","v":"n.d."},{"$f":"IF('[2]MONE(M)CAPARD'!AY65=\"\",\"\",'[2]MONE(M)CAPARD'!AY65)","v":"n.a."},{"$f":"IF('[2]FISCAL(M)'!$K65=\"\",\"\",'[2]FISCAL(M)'!$K65)","v":"n.d."},{"$f":"IF('[2]FISCAL(M)'!$L65=\"\",\"\",'[2]FISCAL(M)'!$L65)","v":"n.d."},{"$f":"IF('[2]FISCAL(M)'!$AY65=\"\",\"\",'[2]FISCAL(M)'!$AY65)","v":"n.d."},{"$f":"IF('[2]FISCAL(M)'!$BI65=\"\",\"\",'[2]FISCAL(M)'!$BI65)","v":"n.d."},{"$f":"IF('[2]FISCAL(M)'!$BS65=\"\",\"\",'[2]FISCAL(M)'!$BS65)","v":"n.d."},{"$f":"IF('[2]FISCAL(M)'!$AZ65=\"\",\"\",'[2]FISCAL(M)'!$AZ65)","v":"n.d."},{"$f":"IF('[2]FISCAL(M)'!$BJ65=\"\",\"\",'[2]FISCAL(M)'!$BJ65)","v":"n.d."},{"$f":"IF('[2]FISCAL(M)'!$BT65=\"\",\"\",'[2]FISCAL(M)'!$BT65)","v":"n.d."},{"$f":"IF('[3]MONE(M)'!$AO65=\"\",\"\",'[3]MONE(M)'!$AO65)","v":"n.d."},{"$f":"IF('[4]MONE(M)'!$AO65=\"\",\"\",'[4]MONE(M)'!$AO65)","v":"n.d."},{"$f":"IF('[5]MONE(M)'!$AO65=\"\",\"\",'[5]MONE(M)'!$AO65)","v":"n.d."},{"$f":"+'[1]MONE(M)'!$AO65","v":"n.d."},{"$f":"IF('[6]MONE(M)'!$AO65=\"\",\"\",'[6]MONE(M)'!$AO65)","v":"n.d."},{"$f":"IF('[7]MONE(M)'!$AO65=\"\",\"\",'[7]MONE(M)'!$AO65)","v":"n.d."},{"$f":"IF('[8]MONE(M)'!$AO65=\"\",\"\",'[8]MONE(M)'!$AO65)","v":"n.d."},"n.d.","n.d.","n.d.","n.d.","n.d.","n.d.","n.d.",{"$f":"IF('[2]FISCAL(M)'!$K65=\"\",\"\",'[2]FISCAL(M)'!$K65)","v":"n.d."},"n.d.","n.d.",{"$f":"IF('[2]FISCAL(M)'!$L65=\"\",\"\",'[2]FISCAL(M)'!$L65)","v":"n.d."},"n.d.","n.d.","n.d.","n.d.","n.d.","n.d.","n.d.","n.d.","n.d.","n.d.","n.d.","n.d.","n.d.","n.d.","n.d.","n.d.","n.d.","n.d."]
[1994,"septiembre","1994-septiembre",{"$f":"IF('[2]REAL IPC(M)'!$AL66=\"\",\"\",+'[2]REAL IPC(M)'!$AL66)","v":11.837327523602049},{"$f":"IF('[2]REAL IPC(M)'!$BE66=\"\",\"\",+'[2]REAL IPC(M)'!$BE66)","v":"n.d."},{"$f":"IF('[2]REAL IPC(M)'!$AM66=\"\",\"\",+'[2]REAL IPC(M)'!$AM66)","v":10.815253122945423},{"$f":"IF('[2]REAL IPC(M)'!$BI66=\"\",\"\",+'[2]REAL IPC(M)'!$BI66)","v":"n.d."},{"$f":"IF('[2]REAL IMAE(M)'!BJ66=\"\",\"\",'[2]REAL IMAE(M)'!BJ66)","v":"n.d."},{"$f":"IF('[2]REAL IMAE(M)'!BK66=\"\",\"\",'[2]REAL IMAE(M)'!BK66)","v":"n.d."},{"$f":"IF('[2]REAL IMAE(M)'!BN66=\"\",\"\",'[2]REAL IMAE(M)'!BN66)","v":"n.d."},{"$f":"IF('[2]REAL IMAE(M)'!BO66=\"\",\"\",'[2]REAL IMAE(M)'!BO66)","v":"n.d."},{"$f":"IF('[2]EXT RIN(M)'!$K66=\"\",\"\",'[2]EXT RIN(M)'!$K66)","v":"n.d."},"",{"$f":"IF('[2]EXT RIN(M)'!$L66=\"\",\"\",'[2]EXT RIN(M)'!$L66)","v":"n.d."},"",{"$f":"IF('[2]MONE(M)CARD'!EG66=\"\",\"\",'[2]MONE(M)CARD'!EG66)","v":"n.d."},{"$f":"IF('[2]MONE(M)CARD'!EK66=\"\",\"\",'[2]MONE(M)CARD'!EK66)","v":"n.d."},{"$f":"IF('[2]MONE(M)CARD'!EP66=\"\",\"\",'[2]MONE(M)CARD'!EP66)","v":"n.d."},{"$f":"IF('[2]MONE(M)CARD'!ES66=\"\",\"\",'[2]MONE(M)CARD'!ES66)","v":"n.d."},{"$f":"IF('[2]MONE(M)CARD'!EV66=\"\",\"\",'[2]MONE(M)CARD'!EV66)","v":"n.d."},{"$f":"IF('[2]MONE(M)CARD'!EZ66=\"\",\"\",'[2]MONE(M)CARD'!EZ66)","v":"n.d."},{"$f":"IF('[2]MONE(M)CAPARD'!FC66=\"\",\"\",'[2]MONE(M)CAPARD'!FC66)","v":"n.d."},{"$f":"IF('[2]MONE(M)CAPARD'!FG66=\"\",\"\",'[2]MONE(M)CAPARD'!FG66)","v":"n.d."},{"$f":"IF('[2]MONE(M)CAPARD'!FL66=\"\",\"\",'[2]MONE(M)CAPARD'!FL66)","v":"n.d."},{"$f":"IF('[2]MONE(M)CAPARD'!FO66=\"\",\"\",'[2]MONE(M)CAPARD'!FO66)","v":"n.d."},{"$f":"IF('[2]MONE(M)CAPARD'!FR66=\"\",\"\",'[2]MONE(M)CAPARD'!FR66)","v":"n.d."},{"$f":"IF('[2]MONE(M)CAPARD'!FV66=\"\",\"\",'[2]MONE(M)CAPARD'!FV66)","v":"n.d."},{"$f":"IF('[2]MONE(M)CARD'!FV66=\"\",\"\",'[2]MONE(M)CARD'!FV66)","v":""},{"$f":"IF('[2]MONE(M)CARD'!GD66=\"\",\"\",'[2]MONE(M)CARD'!GD66)","v":"n.d."},{"$f":"IF('[2]MONE(M)CARD'!GE66=\"\",\"\",'[2]MONE(M)CARD'!GE66)","v":"n.d."},"n.d.","n.d.","n.d.","n.d.","n.d.","n.d.","n.d.","n.d.",null,"n.d.","n.d.","n.d.","n.d.","n.d.",{"$f":"IF('[2]MONE(M)CAPARD'!GS66=\"\",\"\",'[2]MONE(M)CAPARD'!GS66)","v":"n.d."},{"$f":"IF('[2]MONE(M)CARD'!HA66=\"\",\"\",'[2]MONE(M)CAPARD'!HA66)","v":"n.d."},{"$f":"IF('[2]MONE(M)CAPARD'!HB66=\"\",\"\",'[2]MONE(M)CAPARD'!HB66)","v":"n.d."},"n.d.","n.d.","n.d.","n.d.","n.d.","n.d.","n.d.","n.d.","n.d.","n.d.","n.d.","n.d.","n.d.","n.d.",{"$f":"IF('[2]MONE(M)CAPARD'!AS66=\"\",\"\",'[2]MONE(M)CAPARD'!AS66)","v":"n.d."},{"$f":"IF('[2]MONE(M)CAPARD'!AT66=\"\",\"\",'[2]MONE(M)CAPARD'!AT66)","v":"n.a."},{"$f":"IF('[2]MONE(M)CAPARD'!AU66=\"\",\"\",'[2]MONE(M)CAPARD'!AU66)","v":"n.d."},{"$f":"IF('[2]MONE(M)CAPARD'!AV66=\"\",\"\",'[2]MONE(M)CAPARD'!AV66)","v":"n.d."},{"$f":"IF('[2]MONE(M)CAPARD'!AW66=\"\",\"\",'[2]MONE(M)CAPARD'!AW66)","v":"n.a."},{"$f":"IF('[2]MONE(M)CAPARD'!AX66=\"\",\"\",'[2]MONE(M)CAPARD'!AX66)","v":"n.d."},{"$f":"IF('[2]MONE(M)CAPARD'!AY66=\"\",\"\",'[2]MONE(M)CAPARD'!AY66)","v":"n.a."},{"$f":"IF('[2]FISCAL(M)'!$K66=\"\",\"\",'[2]FISCAL(M)'!$K66)","v":"n.d."},{"$f":"IF('[2]FISCAL(M)'!$L66=\"\",\"\",'[2]FISCAL(M)'!$L66)","v":"n.d."},{"$f":"IF('[2]FISCAL(M)'!$AY66=\"\",\"\",'[2]FISCAL(M)'!$AY66)","v":"n.d."},{"$f":"IF('[2]FISCAL(M)'!$BI66=\"\",\"\",'[2]FISCAL(M)'!$BI66)","v":"n.d."},{"$f":"IF('[2]FISCAL(M)'!$BS66=\"\",\"\",'[2]FISCAL(M)'!$BS66)","v":"n.d."},{"$f":"IF('[2]FISCAL(M)'!$AZ66=\"\",\"\",'[2]FISCAL(M)'!$AZ66)","v":"n.d."},{"$f":"IF('[2]FISCAL(M)'!$BJ66=\"\",\"\",'[2]FISCAL(M)'!$BJ66)","v":"n.d."},{"$f":"IF('[2]FISCAL(M)'!$BT66=\"\",\"\",'[2]FISCAL(M)'!$BT66)","v":"n.d."},{"$f":"IF('[3]MONE(M)'!$AO66=\"\",\"\",'[3]MONE(M)'!$AO66)","v":"n.d."},{"$f":"IF('[4]MONE(M)'!$AO66=\"\",\"\",'[4]MONE(M)'!$AO66)","v":"n.d."},{"$f":"IF('[5]MONE(M)'!$AO66=\"\",\"\",'[5]MONE(M)'!$AO66)","v":"n.d."},{"$f":"+'[1]MONE(M)'!$AO66","v":"n.d."},{"$f":"IF('[6]MONE(M)'!$AO66=\"\",\"\",'[6]MONE(M)'!$AO66)","v":"n.d."},{"$f":"IF('[7]MONE(M)'!$AO66=\"\",\"\",'[7]MONE(M)'!$AO66)","v":"n.d."},{"$f":"IF('[8]MONE(M)'!$AO66=\"\",\"\",'[8]MONE(M)'!$AO66)","v":"n.d."},"n.d.","n.d.","n.d.","n.d.","n.d.","n.d.","n.d.",{"$f":"IF('[2]FISCAL(M)'!$K66=\"\",\"\",'[2]FISCAL(M)'!$K66)","v":"n.d."},"n.d.","n.d.",{"$f":"IF('[2]FISCAL(M)'!$L66=\"\",\"\",'[2]FISCAL(M)'!$L66)","v":"n.d."},"n.d.","n.d.","n.d.","n.d.","n.d.","n.d.","n.d.","n.d.","n.d.","n.d.","n.d.","n.d.","n.d.","n.d.","n.d.","n.d.","n.d.","n.d."]
[1994,"octubre","1994-octubre",{"$f":"IF('[2]REAL IPC(M)'!$AL67=\"\",\"\",+'[2]REAL IPC(M)'!$AL67)","v":12.423478574000724},{"$f":"IF('[2]REAL IPC(M)'!$BE67=\"\",\"\",+'[2]REAL IPC(M)'!$BE67)","v":"n.d."},{"$f":"IF('[2]REAL IPC(M)'!$AM67=\"\",\"\",+'[2]REAL IPC(M)'!$AM67)","v":11.281382458428425},{"$f":"IF('[2]REAL IPC(M)'!$BI67=\"\",\"\",+'[2]REAL IPC(M)'!$BI67)","v":"n.d."},{"$f":"IF('[2]REAL IMAE(M)'!BJ67=\"\",\"\",'[2]REAL IMAE(M)'!BJ67)","v":"n.d."},{"$f":"IF('[2]REAL IMAE(M)'!BK67=\"\",\"\",'[2]REAL IMAE(M)'!BK67)","v":"n.d."},{"$f":"IF('[2]REAL IMAE(M)'!BN67=\"\",\"\",'[2]REAL IMAE(M)'!BN67)","v":"n.d."},{"$f":"IF('[2]REAL IMAE(M)'!BO67=\"\",\"\",'[2]REAL IMAE(M)'!BO67)","v":"n.d."},{"$f":"IF('[2]EXT RIN(M)'!$K67=\"\",\"\",'[2]EXT RIN(M)'!$K67)","v":"n.d."},"",{"$f":"IF('[2]EXT RIN(M)'!$L67=\"\",\"\",'[2]EXT RIN(M)'!$L67)","v":"n.d."},"",{"$f":"IF('[2]MONE(M)CARD'!EG67=\"\",\"\",'[2]MONE(M)CARD'!EG67)","v":"n.d."},{"$f":"IF('[2]MONE(M)CARD'!EK67=\"\",\"\",'[2]MONE(M)CARD'!EK67)","v":"n.d."},{"$f":"IF('[2]MONE(M)CARD'!EP67=\"\",\"\",'[2]MONE(M)CARD'!EP67)","v":"n.d."},{"$f":"IF('[2]MONE(M)CARD'!ES67=\"\",\"\",'[2]MONE(M)CARD'!ES67)","v":"n.d."},{"$f":"IF('[2]MONE(M)CARD'!EV67=\"\",\"\",'[2]MONE(M)CARD'!EV67)","v":"n.d."},{"$f":"IF('[2]MONE(M)CARD'!EZ67=\"\",\"\",'[2]MONE(M)CARD'!EZ67)","v":"n.d."},{"$f":"IF('[2]MONE(M)CAPARD'!FC67=\"\",\"\",'[2]MONE(M)CAPARD'!FC67)","v":"n.d."},{"$f":"IF('[2]MONE(M)CAPARD'!FG67=\"\",\"\",'[2]MONE(M)CAPARD'!FG67)","v":"n.d."},{"$f":"IF('[2]MONE(M)CAPARD'!FL67=\"\",\"\",'[2]MONE(M)CAPARD'!FL67)","v":"n.d."},{"$f":"IF('[2]MONE(M)CAPARD'!FO67=\"\",\"\",'[2]MONE(M)CAPARD'!FO67)","v":"n.d."},{"$f":"IF('[2]MONE(M)CAPARD'!FR67=\"\",\"\",'[2]MONE(M)CAPARD'!FR67)","v":"n.d."},{"$f":"IF('[2]MONE(M)CAPARD'!FV67=\"\",\"\",'[2]MONE(M)CAPARD'!FV67)","v":"n.d."},{"$f":"IF('[2]MONE(M)CARD'!FV67=\"\",\"\",'[2]MONE(M)CARD'!FV67)","v":""},{"$f":"IF('[2]MONE(M)CARD'!GD67=\"\",\"\",'[2]MONE(M)CARD'!GD67)","v":"n.d."},{"$f":"IF('[2]MONE(M)CARD'!GE67=\"\",\"\",'[2]MONE(M)CARD'!GE67)","v":"n.d."},"n.d.","n.d.","n.d.","n.d.","n.d.","n.d.","n.d.","n.d.",null,"n.d.","n.d.","n.d.","n.d.","n.d.",{"$f":"IF('[2]MONE(M)CAPARD'!GS67=\"\",\"\",'[2]MONE(M)CAPARD'!GS67)","v":"n.d."},{"$f":"IF('[2]MONE(M)CARD'!HA67=\"\",\"\",'[2]MONE(M)CAPARD'!HA67)","v":"n.d."},{"$f":"IF('[2]MONE(M)CAPARD'!HB67=\"\",\"\",'[2]MONE(M)CAPARD'!HB67)","v":"n.d."},"n.d.","n.d.","n.d.","n.d.","n.d.","n.d.","n.d.","n.d.","n.d.","n.d.","n.d.","n.d.","n.d.","n.d.",{"$f":"IF('[2]MONE(M)CAPARD'!AS67=\"\",\"\",'[2]MONE(M)CAPARD'!AS67)","v":"n.d."},{"$f":"IF('[2]MONE(M)CAPARD'!AT67=\"\",\"\",'[2]MONE(M)CAPARD'!AT67)","v":"n.a."},{"$f":"IF('[2]MONE(M)CAPARD'!AU67=\"\",\"\",'[2]MONE(M)CAPARD'!AU67)","v":"n.d."},{"$f":"IF('[2]MONE(M)CAPARD'!AV67=\"\",\"\",'[2]MONE(M)CAPARD'!AV67)","v":"n.d."},{"$f":"IF('[2]MONE(M)CAPARD'!AW67=\"\",\"\",'[2]MONE(M)CAPARD'!AW67)","v":"n.a."},{"$f":"IF('[2]MONE(M)CAPARD'!AX67=\"\",\"\",'[2]MONE(M)CAPARD'!AX67)","v":"n.d."},{"$f":"IF('[2]MONE(M)CAPARD'!AY67=\"\",\"\",'[2]MONE(M)CAPARD'!AY67)","v":"n.a."},{"$f":"IF('[2]FISCAL(M)'!$K67=\"\",\"\",'[2]FISCAL(M)'!$K67)","v":"n.d."},{"$f":"IF('[2]FISCAL(M)'!$L67=\"\",\"\",'[2]FISCAL(M)'!$L67)","v":"n.d."},{"$f":"IF('[2]FISCAL(M)'!$AY67=\"\",\"\",'[2]FISCAL(M)'!$AY67)","v":"n.d."},{"$f":"IF('[2]FISCAL(M)'!$BI67=\"\",\"\",'[2]FISCAL(M)'!$BI67)","v":"n.d."},{"$f":"IF('[2]FISCAL(M)'!$BS67=\"\",\"\",'[2]FISCAL(M)'!$BS67)","v":"n.d."},{"$f":"IF('[2]FISCAL(M)'!$AZ67=\"\",\"\",'[2]FISCAL(M)'!$AZ67)","v":"n.d."},{"$f":"IF('[2]FISCAL(M)'!$BJ67=\"\",\"\",'[2]FISCAL(M)'!$BJ67)","v":"n.d."},{"$f":"IF('[2]FISCAL(M)'!$BT67=\"\",\"\",'[2]FISCAL(M)'!$BT67)","v":"n.d."},{"$f":"IF('[3]MONE(M)'!$AO67=\"\",\"\",'[3]MONE(M)'!$AO67)","v":"n.d."},{"$f":"IF('[4]MONE(M)'!$AO67=\"\",\"\",'[4]MONE(M)'!$AO67)","v":"n.d."},{"$f":"IF('[5]MONE(M)'!$AO67=\"\",\"\",'[5]MONE(M)'!$AO67)","v":"n.d."},{"$f":"+'[1]MONE(M)'!$AO67","v":"n.d."},{"$f":"IF('[6]MONE(M)'!$AO67=\"\",\"\",'[6]MONE(M)'!$AO67)","v":"n.d."},{"$f":"IF('[7]MONE(M)'!$AO67=\"\",\"\",'[7]MONE(M)'!$AO67)","v":"n.d."},{"$f":"IF('[8]MONE(M)'!$AO67=\"\",\"\",'[8]MONE(M)'!$AO67)","v":"n.d."},"n.d.","n.d.","n.d.","n.d.","n.d.","n.d.","n.d.",{"$f":"IF('[2]FISCAL(M)'!$K67=\"\",\"\",'[2]FISCAL(M)'!$K67)","v":"n.d."},"n.d.","n.d.",{"$f":"IF('[2]FISCAL(M)'!$L67=\"\",\"\",'[2]FISCAL(M)'!$L67)","v":"n.d."},"n.d.","n.d.","n.d.","n.d.","n.d.","n.d.","n.d.","n.d.","n.d.","n.d.","n.d.","n.d.","n.d.","n.d.","n.d.","n.d.","n.d.","n.d."]
[1994,"noviembre","1994-noviembre",{"$f":"IF('[2]REAL IPC(M)'!$AL68=\"\",\"\",+'[2]REAL IPC(M)'!$AL68)","v":12.910128388017128},{"$f":"IF('[2]REAL IPC(M)'!$BE68=\"\",\"\",+'[2]REAL IPC(M)'!$BE68)","v":"n.d."},{"$f":"IF('[2]REAL IPC(M)'!$AM68=\"\",\"\",+'[2]REAL IPC(M)'!$AM68)","v":11.732385261797029},{"$f":"IF('[2]REAL IPC(M)'!$BI68=\"\",\"\",+'[2]REAL IPC(M)'!$BI68)","v":"n.d."},{"$f":"IF('[2]REAL IMAE(M)'!BJ68=\"\",\"\",'[2]REAL IMAE(M)'!BJ68)","v":"n.d."},{"$f":"IF('[2]REAL IMAE(M)'!BK68=\"\",\"\",'[2]REAL IMAE(M)'!BK68)","v":"n.d."},{"$f":"IF('[2]REAL IMAE(M)'!BN68=\"\",\"\",'[2]REAL IMAE(M)'!BN68)","v":"n.d."},{"$f":"IF('[2]REAL IMAE(M)'!BO68=\"\",\"\",'[2]REAL IMAE(M)'!BO68)","v":"n.d."},{"$f":"IF('[2]EXT RIN(M)'!$K68=\"\",\"\",'[2]EXT RIN(M)'!$K68)","v":"n.d."},"",{"$f":"IF('[2]EXT RIN(M)'!$L68=\"\",\"\",'[2]EXT RIN(M)'!$L68)","v":"n.d."},"",{"$f":"IF('[2]MONE(M)CARD'!EG68=\"\",\"\",'[2]MONE(M)CARD'!EG68)","v":"n.d."},{"$f":"IF('[2]MONE(M)CARD'!EK68=\"\",\"\",'[2]MONE(M)CARD'!EK68)","v":"n.d."},{"$f":"IF('[2]MONE(M)CARD'!EP68=\"\",\"\",'[2]MONE(M)CARD'!EP68)","v":"n.d."},{"$f":"IF('[2]MONE(M)CARD'!ES68=\"\",\"\",'[2]MONE(M)CARD'!ES68)","v":"n.d."},{"$f":"IF('[2]MONE(M)CARD'!EV68=\"\",\"\",'[2]MONE(M)CARD'!EV68)","v":"n.d."},{"$f":"IF('[2]MONE(M)CARD'!EZ68=\"\",\"\",'[2]MONE(M)CARD'!EZ68)","v":"n.d."},{"$f":"IF('[2]MONE(M)CAPARD'!FC68=\"\",\"\",'[2]MONE(M)CAPARD'!FC68)","v":"n.d."},{"$f":"IF('[2]MONE(M)CAPARD'!FG68=\"\",\"\",'[2]MONE(M)CAPARD'!FG68)","v":"n.d."},{"$f":"IF('[2]MONE(M)CAPARD'!FL68=\"\",\"\",'[2]MONE(M)CAPARD'!FL68)","v":"n.d."},{"$f":"IF('[2]MONE(M)CAPARD'!FO68=\"\",\"\",'[2]MONE(M)CAPARD'!FO68)","v":"n.d."},{"$f":"IF('[2]MONE(M)CAPARD'!FR68=\"\",\"\",'[2]MONE(M)CAPARD'!FR68)","v":"n.d."},{"$f":"IF('[2]MONE(M)CAPARD'!FV68=\"\",\"\",'[2]MONE(M)CAPARD'!FV68)","v":"n.d."},{"$f":"IF('[2]MONE(M)CARD'!FV68=\"\",\"\",'[2]MONE(M)CARD'!FV68)","v":""},{"$f":"IF('[2]MONE(M)CARD'!GD68=\"\",\"\",'[2]MONE(M)CARD'!GD68)","v":"n.d."},{"$f":"IF('[2]MONE(M)CARD'!GE68=\"\",\"\",'[2]MONE(M)CARD'!GE68)","v":"n.d."},"n.d.","n.d.","n.d.","n.d.","n.d.","n.d.","n.d.","n.d.",null,"n.d.","n.d.","n.d.","n.d.","n.d.",{"$f":"IF('[2]MONE(M)CAPARD'!GS68=\"\",\"\",'[2]MONE(M)CAPARD'!GS68)","v":"n.d."},{"$f":"IF('[2]MONE(M)CARD'!HA68=\"\",\"\",'[2]MONE(M)CAPARD'!HA68)","v":"n.d."},{"$f":"IF('[2]MONE(M)CAPARD'!HB68=\"\",\"\",'[2]MONE(M)CAPARD'!HB68)","v":"n.d."},"n.d.","n.d.","n.d.","n.d.","n.d.","n.d.","n.d.","n.d.","n.d.","n.d.","n.d.","n.d.","n.d.","n.d.",{"$f":"IF('[2]MONE(M)CAPARD'!AS68=\"\",\"\",'[2]MONE(M)CAPARD'!AS68)","v":"n.d."},{"$f":"IF('[2]MONE(M)CAPARD'!AT68=\"\",\"\",'[2]MONE(M)CAPARD'!AT68)","v":"n.a."},{"$f":"IF('[2]MONE(M)CAPARD'!AU68=\"\",\"\",'[2]MONE(M)CAPARD'!AU68)","v":"n.d."},{"$f":"IF('[2]MONE(M)CAPARD'!AV68=\"\",\"\",'[2]MONE(M)CAPARD'!AV68)","v":"n.d."},{"$f":"IF('[2]MONE(M)CAPARD'!AW68=\"\",\"\",'[2]MONE(M)CAPARD'!AW68)","v":"n.a."},{"$f":"IF('[2]MONE(M)CAPARD'!AX68=\"\",\"\",'[2]MONE(M)CAPARD'!AX68)","v":"n.d."},{"$f":"IF('[2]MONE(M)CAPARD'!AY68=\"\",\"\",'[2]MONE(M)CAPARD'!AY68)","v":"n.a."},{"$f":"IF('[2]FISCAL(M)'!$K68=\"\",\"\",'[2]FISCAL(M)'!$K68)","v":"n.d."},{"$f":"IF('[2]FISCAL(M)'!$L68=\"\",\"\",'[2]FISCAL(M)'!$L68)","v":"n.d."},{"$f":"IF('[2]FISCAL(M)'!$AY68=\"\",\"\",'[2]FISCAL(M)'!$AY68)","v":"n.d."},{"$f":"IF('[2]FISCAL(M)'!$BI68=\"\",\"\",'[2]FISCAL(M)'!$BI68)","v":"n.d."},{"$f":"IF('[2]FISCAL(M)'!$BS68=\"\",\"\",'[2]FISCAL(M)'!$BS68)","v":"n.d."},{"$f":"IF('[2]FISCAL(M)'!$AZ68=\"\",\"\",'[2]FISCAL(M)'!$AZ68)","v":"n.d."},{"$f":"IF('[2]FISCAL(M)'!$BJ68=\"\",\"\",'[2]FISCAL(M)'!$BJ68)","v":"n.d."},{"$f":"IF('[2]FISCAL(M)'!$BT68=\"\",\"\",'[2]FISCAL(M)'!$BT68)","v":"n.d."},{"$f":"IF('[3]MONE(M)'!$AO68=\"\",\"\",'[3]MONE(M)'!$AO68)","v":"n.d."},{"$f":"IF('[4]MONE(M)'!$AO68=\"\",\"\",'[4]MONE(M)'!$AO68)","v":"n.d."},{"$f":"IF('[5]MONE(M)'!$AO68=\"\",\"\",'[5]MONE(M)'!$AO68)","v":"n.d."},{"$f":"+'[1]MONE(M)'!$AO68","v":"n.d."},{"$f":"IF('[6]MONE(M)'!$AO68=\"\",\"\",'[6]MONE(M)'!$AO68)","v":"n.d."},{"$f":"IF('[7]MONE(M)'!$AO68=\"\",\"\",'[7]MONE(M)'!$AO68)","v":"n.d."},{"$f":"IF('[8]MONE(M)'!$AO68=\"\",\"\",'[8]MONE(M)'!$AO68)","v":"n.d."},"n.d.","n.d.","n.d.","n.d.","n.d.","n.d.","n.d.",{"$f":"IF('[2]FISCAL(M)'!$K68=\"\",\"\",'[2]FISCAL(M)'!$K68)","v":"n.d."},"n.d.","n.d.",{"$f":"IF('[2]FISCAL(M)'!$L68=\"\",\"\",'[2]FISCAL(M)'!$L68)","v":"n.d."},"n.d.","n.d.","n.d.","n.d.","n.d.","n.d.","n.d.","n.d.","n.d.","n.d.","n.d.","n.d.","n.d.","n.d.","n.d.","n.d.","n.d.","n.d."]
[1994,"diciembre","1994-diciembre",{"$f":"IF('[2]REAL IPC(M)'!$AL69=\"\",\"\",+'[2]REAL IPC(M)'!$AL69)","v":13.790664780763784},{"$f":"IF('[2]REAL IPC(M)'!$BE69=\"\",\"\",+'[2]REAL IPC(M)'!$BE69)","v":"n.d."},{"$f":"IF('[2]REAL IPC(M)'!$AM69=\"\",\"\",+'[2]REAL IPC(M)'!$AM69)","v":12.504007694773978},{"$f":"IF('[2]REAL IPC(M)'!$BI69=\"\",\"\",+'[2]REAL IPC(M)'!$BI69)","v":"n.d."},{"$f":"IF('[2]REAL IMAE(M)'!BJ69=\"\",\"\",'[2]REAL IMAE(M)'!BJ69)","v":"n.d."},{"$f":"IF('[2]REAL IMAE(M)'!BK69=\"\",\"\",'[2]REAL IMAE(M)'!BK69)","v":"n.d."},{"$f":"IF('[2]REAL IMAE(M)'!BN69=\"\",\"\",'[2]REAL IMAE(M)'!BN69)","v":"n.d."},{"$f":"IF('[2]REAL IMAE(M)'!BO69=\"\",\"\",'[2]REAL IMAE(M)'!BO69)","v":"n.d."},{"$f":"IF('[2]EXT RIN(M)'!$K69=\"\",\"\",'[2]EXT RIN(M)'!$K69)","v":"n.d."},"n.d.",{"$f":"IF('[2]EXT RIN(M)'!$L69=\"\",\"\",'[2]EXT RIN(M)'!$L69)","v":"n.d."},"n.d.",{"$f":"IF('[2]MONE(M)CARD'!EG69=\"\",\"\",'[2]MONE(M)CARD'!EG69)","v":"n.d."},{"$f":"IF('[2]MONE(M)CARD'!EK69=\"\",\"\",'[2]MONE(M)CARD'!EK69)","v":"n.d."},{"$f":"IF('[2]MONE(M)CARD'!EP69=\"\",\"\",'[2]MONE(M)CARD'!EP69)","v":"n.d."},{"$f":"IF('[2]MONE(M)CARD'!ES69=\"\",\"\",'[2]MONE(M)CARD'!ES69)","v":"n.d."},{"$f":"IF('[2]MONE(M)CARD'!EV69=\"\",\"\",'[2]MONE(M)CARD'!EV69)","v":"n.d."},{"$f":"IF('[2]MONE(M)CARD'!EZ69=\"\",\"\",'[2]MONE(M)CARD'!EZ69)","v":"n.d."},{"$f":"IF('[2]MONE(M)CAPARD'!FC69=\"\",\"\",'[2]MONE(M)CAPARD'!FC69)","v":"n.d."},{"$f":"IF('[2]MONE(M)CAPARD'!FG69=\"\",\"\",'[2]MONE(M)CAPARD'!FG69)","v":"n.d."},{"$f":"IF('[2]MONE(M)CAPARD'!FL69=\"\",\"\",'[2]MONE(M)CAPARD'!FL69)","v":"n.d."},{"$f":"IF('[2]MONE(M)CAPARD'!FO69=\"\",\"\",'[2]MONE(M)CAPARD'!FO69)","v":"n.d."},{"$f":"IF('[2]MONE(M)CAPARD'!FR69=\"\",\"\",'[2]MONE(M)CAPARD'!FR69)","v":"n.d."},{"$f":"IF('[2]MONE(M)CAPARD'!FV69=\"\",\"\",'[2]MONE(M)CAPARD'!FV69)","v":"n.d."},{"$f":"IF('[2]MONE(M)CARD'!FV69=\"\",\"\",'[2]MONE(M)CARD'!FV69)","v":""},{"$f":"IF('[2]MONE(M)CARD'!GD69=\"\",\"\",'[2]MONE(M)CARD'!GD69)","v":"n.d."},{"$f":"IF('[2]MONE(M)CARD'!GE69=\"\",\"\",'[2]MONE(M)CARD'!GE69)","v":"n.d."},"n.d.","n.d.","n.d.","n.d.","n.d.","n.d.","n.d.","n.d.",null,"n.d.","n.d.","n.d.","n.d.","n.d.",{"$f":"IF('[2]MONE(M)CAPARD'!GS69=\"\",\"\",'[2]MONE(M)CAPARD'!GS69)","v":"n.d."},{"$f":"IF('[2]MONE(M)CARD'!HA69=\"\",\"\",'[2]MONE(M)CAPARD'!HA69)","v":"n.d."},{"$f":"IF('[2]MONE(M)CAPARD'!HB69=\"\",\"\",'[2]MONE(M)CAPARD'!HB69)","v":"n.d."},"n.d.","n.d.","n.d.","n.d.","n.d.","n.d.","n.d.","n.d.","n.d.","n.d.","n.d.","n.d.","n.d.","n.d.",{"$f":"IF('[2]MONE(M)CAPARD'!AS69=\"\",\"\",'[2]MONE(M)CAPARD'!AS69)","v":"n.d."},{"$f":"IF('[2]MONE(M)CAPARD'!AT69=\"\",\"\",'[2]MONE(M)CAPARD'!AT69)","v":"n.a."},{"$f":"IF('[2]MONE(M)CAPARD'!AU69=\"\",\"\",'[2]MONE(M)CAPARD'!AU69)","v":"n.d."},{"$f":"IF('[2]MONE(M)CAPARD'!AV69=\"\",\"\",'[2]MONE(M)CAPARD'!AV69)","v":"n.d."},{"$f":"IF('[2]MONE(M)CAPARD'!AW69=\"\",\"\",'[2]MONE(M)CAPARD'!AW69)","v":"n.a."},{"$f":"IF('[2]MONE(M)CAPARD'!AX69=\"\",\"\",'[2]MONE(M)CAPARD'!AX69)","v":"n.d."},{"$f":"IF('[2]MONE(M)CAPARD'!AY69=\"\",\"\",'[2]MONE(M)CAPARD'!AY69)","v":"n.a."},{"$f":"IF('[2]FISCAL(M)'!$K69=\"\",\"\",'[2]FISCAL(M)'!$K69)","v":"n.d."},{"$f":"IF('[2]FISCAL(M)'!$L69=\"\",\"\",'[2]FISCAL(M)'!$L69)","v":"n.d."},{"$f":"IF('[2]FISCAL(M)'!$AY69=\"\",\"\",'[2]FISCAL(M)'!$AY69)","v":"n.d."},{"$f":"IF('[2]FISCAL(M)'!$BI69=\"\",\"\",'[2]FISCAL(M)'!$BI69)","v":"n.d."},{"$f":"IF('[2]FISCAL(M)'!$BS69=\"\",\"\",'[2]FISCAL(M)'!$BS69)","v":"n.d."},{"$f":"IF('[2]FISCAL(M)'!$AZ69=\"\",\"\",'[2]FISCAL(M)'!$AZ69)","v":"n.d."},{"$f":"IF('[2]FISCAL(M)'!$BJ69=\"\",\"\",'[2]FISCAL(M)'!$BJ69)","v":"n.d."},{"$f":"IF('[2]FISCAL(M)'!$BT69=\"\",\"\",'[2]FISCAL(M)'!$BT69)","v":"n.d."},{"$f":"IF('[3]MONE(M)'!$AO69=\"\",\"\",'[3]MONE(M)'!$AO69)","v":"n.d."},{"$f":"IF('[4]MONE(M)'!$AO69=\"\",\"\",'[4]MONE(M)'!$AO69)","v":"n.d."},{"$f":"IF('[5]MONE(M)'!$AO69=\"\",\"\",'[5]MONE(M)'!$AO69)","v":"n.d."},{"$f":"+'[1]MONE(M)'!$AO69","v":"n.d."},{"$f":"IF('[6]MONE(M)'!$AO69=\"\",\"\",'[6]MONE(M)'!$AO69)","v":"n.d."},{"$f":"IF('[7]MONE(M)'!$AO69=\"\",\"\",'[7]MONE(M)'!$AO69)","v":"n.d."},{"$f":"IF('[8]MONE(M)'!$AO69=\"\",\"\",'[8]MONE(M)'!$AO69)","v":"n.d."},"n.d.","n.d.","n.d.","n.d.","n.d.","n.d.","n.d.",{"$f":"IF('[2]FISCAL(M)'!$K69=\"\",\"\",'[2]FISCAL(M)'!$K69)","v":"n.d."},"n.d.","n.d.",{"$f":"IF('[2]FISCAL(M)'!$L69=\"\",\"\",'[2]FISCAL(M)'!$L69)","v":"n.d."},"n.d.","n.d.","n.d.","n.d.","n.d.","n.d.","n.d.","n.d.","n.d.","n.d.","n.d.","n.d.","n.d.","n.d.","n.d.","n.d.","n.d.","n.d."]
[1995,"enero","1995-enero",{"$f":"IF('[2]REAL IPC(M)'!$AL70=\"\",\"\",+'[2]REAL IPC(M)'!$AL70)","v":13.671328671328652},{"$f":"IF('[2]REAL IPC(M)'!$BE70=\"\",\"\",+'[2]REAL IPC(M)'!$BE70)","v":13.967424629663473},{"$f":"IF('[2]REAL IPC(M)'!$AM70=\"\",\"\",+'[2]REAL IPC(M)'!$AM70)","v":12.444444444444457},{"$f":"IF('[2]REAL IPC(M)'!$BI70=\"\",\"\",+'[2]REAL IPC(M)'!$BI70)","v":12.680779569125434},{"$f":"IF('[2]REAL IMAE(M)'!BJ70=\"\",\"\",'[2]REAL IMAE(M)'!BJ70)","v":"n.d."},{"$f":"IF('[2]REAL IMAE(M)'!BK70=\"\",\"\",'[2]REAL IMAE(M)'!BK70)","v":"n.d."},{"$f":"IF('[2]REAL IMAE(M)'!BN70=\"\",\"\",'[2]REAL IMAE(M)'!BN70)","v":"n.d."},{"$f":"IF('[2]REAL IMAE(M)'!BO70=\"\",\"\",'[2]REAL IMAE(M)'!BO70)","v":"n.d."},{"$f":"IF('[2]EXT RIN(M)'!$K70=\"\",\"\",'[2]EXT RIN(M)'!$K70)","v":"n.d."},"",{"$f":"IF('[2]EXT RIN(M)'!$L70=\"\",\"\",'[2]EXT RIN(M)'!$L70)","v":"n.d."},"",{"$f":"IF('[2]MONE(M)CARD'!EG70=\"\",\"\",'[2]MONE(M)CARD'!EG70)","v":"n.d."},{"$f":"IF('[2]MONE(M)CARD'!EK70=\"\",\"\",'[2]MONE(M)CARD'!EK70)","v":"n.d."},{"$f":"IF('[2]MONE(M)CARD'!EP70=\"\",\"\",'[2]MONE(M)CARD'!EP70)","v":"n.d."},{"$f":"IF('[2]MONE(M)CARD'!ES70=\"\",\"\",'[2]MONE(M)CARD'!ES70)","v":"n.d."},{"$f":"IF('[2]MONE(M)CARD'!EV70=\"\",\"\",'[2]MONE(M)CARD'!EV70)","v":"n.d."},{"$f":"IF('[2]MONE(M)CARD'!EZ70=\"\",\"\",'[2]MONE(M)CARD'!EZ70)","v":"n.d."},{"$f":"IF('[2]MONE(M)CAPARD'!FC70=\"\",\"\",'[2]MONE(M)CAPARD'!FC70)","v":"n.d."},{"$f":"IF('[2]MONE(M)CAPARD'!FG70=\"\",\"\",'[2]MONE(M)CAPARD'!FG70)","v":"n.d."},{"$f":"IF('[2]MONE(M)CAPARD'!FL70=\"\",\"\",'[2]MONE(M)CAPARD'!FL70)","v":"n.d."},{"$f":"IF('[2]MONE(M)CAPARD'!FO70=\"\",\"\",'[2]MONE(M)CAPARD'!FO70)","v":"n.d."},{"$f":"IF('[2]MONE(M)CAPARD'!FR70=\"\",\"\",'[2]MONE(M)CAPARD'!FR70)","v":"n.d."},{"$f":"IF('[2]MONE(M)CAPARD'!FV70=\"\",\"\",'[2]MONE(M)CAPARD'!FV70)","v":"n.d."},{"$f":"IF('[2]MONE(M)CARD'!FV70=\"\",\"\",'[2]MONE(M)CARD'!FV70)","v":""},{"$f":"IF('[2]MONE(M)CARD'!GD70=\"\",\"\",'[2]MONE(M)CARD'!GD70)","v":"n.d."},{"$f":"IF('[2]MONE(M)CARD'!GE70=\"\",\"\",'[2]MONE(M)CARD'!GE70)","v":"n.d."},"n.d.","n.d.","n.d.","n.d.","n.d.","n.d.","n.d.","n.d.",null,"n.d.","n.d.","n.d.","n.d.","n.d.",{"$f":"IF('[2]MONE(M)CAPARD'!GS70=\"\",\"\",'[2]MONE(M)CAPARD'!GS70)","v":"n.d."},{"$f":"IF('[2]MONE(M)CARD'!HA70=\"\",\"\",'[2]MONE(M)CAPARD'!HA70)","v":"n.d."},{"$f":"IF('[2]MONE(M)CAPARD'!HB70=\"\",\"\",'[2]MONE(M)CAPARD'!HB70)","v":"n.d."},"n.d.","n.d.","n.d.","n.d.","n.d.","n.d.","n.d.","n.d.","n.d.","n.d.","n.d.","n.d.","n.d.","n.d.",{"$f":"IF('[2]MONE(M)CAPARD'!AS70=\"\",\"\",'[2]MONE(M)CAPARD'!AS70)","v":"n.d."},{"$f":"IF('[2]MONE(M)CAPARD'!AT70=\"\",\"\",'[2]MONE(M)CAPARD'!AT70)","v":"n.a."},{"$f":"IF('[2]MONE(M)CAPARD'!AU70=\"\",\"\",'[2]MONE(M)CAPARD'!AU70)","v":"n.d."},{"$f":"IF('[2]MONE(M)CAPARD'!AV70=\"\",\"\",'[2]MONE(M)CAPARD'!AV70)","v":"n.d."},{"$f":"IF('[2]MONE(M)CAPARD'!AW70=\"\",\"\",'[2]MONE(M)CAPARD'!AW70)","v":"n.a."},{"$f":"IF('[2]MONE(M)CAPARD'!AX70=\"\",\"\",'[2]MONE(M)CAPARD'!AX70)","v":"n.d."},{"$f":"IF('[2]MONE(M)CAPARD'!AY70=\"\",\"\",'[2]MONE(M)CAPARD'!AY70)","v":"n.a."},{"$f":"IF('[2]FISCAL(M)'!$K70=\"\",\"\",'[2]FISCAL(M)'!$K70)","v":"n.d."},{"$f":"IF('[2]FISCAL(M)'!$L70=\"\",\"\",'[2]FISCAL(M)'!$L70)","v":"n.d."},{"$f":"IF('[2]FISCAL(M)'!$AY70=\"\",\"\",'[2]FISCAL(M)'!$AY70)","v":"n.d."},{"$f":"IF('[2]FISCAL(M)'!$BI70=\"\",\"\",'[2]FISCAL(M)'!$BI70)","v":"n.d."},{"$f":"IF('[2]FISCAL(M)'!$BS70=\"\",\"\",'[2]FISCAL(M)'!$BS70)","v":"n.d."},{"$f":"IF('[2]FISCAL(M)'!$AZ70=\"\",\"\",'[2]FISCAL(M)'!$AZ70)","v":"n.d."},{"$f":"IF('[2]FISCAL(M)'!$BJ70=\"\",\"\",'[2]FISCAL(M)'!$BJ70)","v":"n.d."},{"$f":"IF('[2]FISCAL(M)'!$BT70=\"\",\"\",'[2]FISCAL(M)'!$BT70)","v":"n.d."},{"$f":"IF('[3]MONE(M)'!$AO70=\"\",\"\",'[3]MONE(M)'!$AO70)","v":"n.d."},{"$f":"IF('[4]MONE(M)'!$AO70=\"\",\"\",'[4]MONE(M)'!$AO70)","v":"n.d."},{"$f":"IF('[5]MONE(M)'!$AO70=\"\",\"\",'[5]MONE(M)'!$AO70)","v":"n.d."},{"$f":"+'[1]MONE(M)'!$AO70","v":"n.d."},{"$f":"IF('[6]MONE(M)'!$AO70=\"\",\"\",'[6]MONE(M)'!$AO70)","v":"n.d."},{"$f":"IF('[7]MONE(M)'!$AO70=\"\",\"\",'[7]MONE(M)'!$AO70)","v":"n.d."},{"$f":"IF('[8]MONE(M)'!$AO70=\"\",\"\",'[8]MONE(M)'!$AO70)","v":"n.d."},"n.d.","n.d.","n.d.","n.d.","n.d.","n.d.","n.d.",{"$f":"IF('[2]FISCAL(M)'!$K70=\"\",\"\",'[2]FISCAL(M)'!$K70)","v":"n.d."},"n.d.","n.d.",{"$f":"IF('[2]FISCAL(M)'!$L70=\"\",\"\",'[2]FISCAL(M)'!$L70)","v":"n.d."},"n.d.","n.d.","n.d.","n.d.","n.d.","n.d.","n.d.","n.d.","n.d.","n.d.","n.d.","n.d.","n.d.","n.d.","n.d.","n.d.","n.d.","n.d."]
[1995,"febrero","1995-febrero",{"$f":"IF('[2]REAL IPC(M)'!$AL71=\"\",\"\",+'[2]REAL IPC(M)'!$AL71)","v":14.045534150612959},{"$f":"IF('[2]REAL IPC(M)'!$BE71=\"\",\"\",+'[2]REAL IPC(M)'!$BE71)","v":13.799356116602057},{"$f":"IF('[2]REAL IPC(M)'!$AM71=\"\",\"\",+'[2]REAL IPC(M)'!$AM71)","v":12.754452926208648},{"$f":"IF('[2]REAL IPC(M)'!$BI71=\"\",\"\",+'[2]REAL IPC(M)'!$BI71)","v":12.540865090796039},{"$f":"IF('[2]REAL IMAE(M)'!BJ71=\"\",\"\",'[2]REAL IMAE(M)'!BJ71)","v":"n.d."},{"$f":"IF('[2]REAL IMAE(M)'!BK71=\"\",\"\",'[2]REAL IMAE(M)'!BK71)","v":"n.d."},{"$f":"IF('[2]REAL IMAE(M)'!BN71=\"\",\"\",'[2]REAL IMAE(M)'!BN71)","v":"n.d."},{"$f":"IF('[2]REAL IMAE(M)'!BO71=\"\",\"\",'[2]REAL IMAE(M)'!BO71)","v":"n.d."},{"$f":"IF('[2]EXT RIN(M)'!$K71=\"\",\"\",'[2]EXT RIN(M)'!$K71)","v":"n.d."},"",{"$f":"IF('[2]EXT RIN(M)'!$L71=\"\",\"\",'[2]EXT RIN(M)'!$L71)","v":"n.d."},"",{"$f":"IF('[2]MONE(M)CARD'!EG71=\"\",\"\",'[2]MONE(M)CARD'!EG71)","v":"n.d."},{"$f":"IF('[2]MONE(M)CARD'!EK71=\"\",\"\",'[2]MONE(M)CARD'!EK71)","v":"n.d."},{"$f":"IF('[2]MONE(M)CARD'!EP71=\"\",\"\",'[2]MONE(M)CARD'!EP71)","v":"n.d."},{"$f":"IF('[2]MONE(M)CARD'!ES71=\"\",\"\",'[2]MONE(M)CARD'!ES71)","v":"n.d."},{"$f":"IF('[2]MONE(M)CARD'!EV71=\"\",\"\",'[2]MONE(M)CARD'!EV71)","v":"n.d."},{"$f":"IF('[2]MONE(M)CARD'!EZ71=\"\",\"\",'[2]MONE(M)CARD'!EZ71)","v":"n.d."},{"$f":"IF('[2]MONE(M)CAPARD'!FC71=\"\",\"\",'[2]MONE(M)CAPARD'!FC71)","v":"n.d."},{"$f":"IF('[2]MONE(M)CAPARD'!FG71=\"\",\"\",'[2]MONE(M)CAPARD'!FG71)","v":"n.d."},{"$f":"IF('[2]MONE(M)CAPARD'!FL71=\"\",\"\",'[2]MONE(M)CAPARD'!FL71)","v":"n.d."},{"$f":"IF('[2]MONE(M)CAPARD'!FO71=\"\",\"\",'[2]MONE(M)CAPARD'!FO71)","v":"n.d."},{"$f":"IF('[2]MONE(M)CAPARD'!FR71=\"\",\"\",'[2]MONE(M)CAPARD'!FR71)","v":"n.d."},{"$f":"IF('[2]MONE(M)CAPARD'!FV71=\"\",\"\",'[2]MONE(M)CAPARD'!FV71)","v":"n.d."},{"$f":"IF('[2]MONE(M)CARD'!FV71=\"\",\"\",'[2]MONE(M)CARD'!FV71)","v":""},{"$f":"IF('[2]MONE(M)CARD'!GD71=\"\",\"\",'[2]MONE(M)CARD'!GD71)","v":"n.d."},{"$f":"IF('[2]MONE(M)CARD'!GE71=\"\",\"\",'[2]MONE(M)CARD'!GE71)","v":"n.d."},"n.d.","n.d.","n.d.","n.d.","n.d.","n.d.","n.d.","n.d.",null,"n.d.","n.d.","n.d.","n.d.","n.d.",{"$f":"IF('[2]MONE(M)CAPARD'!GS71=\"\",\"\",'[2]MONE(M)CAPARD'!GS71)","v":"n.d."},{"$f":"IF('[2]MONE(M)CARD'!HA71=\"\",\"\",'[2]MONE(M)CAPARD'!HA71)","v":"n.d."},{"$f":"IF('[2]MONE(M)CAPARD'!HB71=\"\",\"\",'[2]MONE(M)CAPARD'!HB71)","v":"n.d."},"n.d.","n.d.","n.d.","n.d.","n.d.","n.d.","n.d.","n.d.","n.d.","n.d.","n.d.","n.d.","n.d.","n.d.",{"$f":"IF('[2]MONE(M)CAPARD'!AS71=\"\",\"\",'[2]MONE(M)CAPARD'!AS71)","v":"n.d."},{"$f":"IF('[2]MONE(M)CAPARD'!AT71=\"\",\"\",'[2]MONE(M)CAPARD'!AT71)","v":"n.a."},{"$f":"IF('[2]MONE(M)CAPARD'!AU71=\"\",\"\",'[2]MONE(M)CAPARD'!AU71)","v":"n.d."},{"$f":"IF('[2]MONE(M)CAPARD'!AV71=\"\",\"\",'[2]MONE(M)CAPARD'!AV71)","v":"n.d."},{"$f":"IF('[2]MONE(M)CAPARD'!AW71=\"\",\"\",'[2]MONE(M)CAPARD'!AW71)","v":"n.a."},{"$f":"IF('[2]MONE(M)CAPARD'!AX71=\"\",\"\",'[2]MONE(M)CAPARD'!AX71)","v":"n.d."},{"$f":"IF('[2]MONE(M)CAPARD'!AY71=\"\",\"\",'[2]MONE(M)CAPARD'!AY71)","v":"n.a."},{"$f":"IF('[2]FISCAL(M)'!$K71=\"\",\"\",'[2]FISCAL(M)'!$K71)","v":"n.d."},{"$f":"IF('[2]FISCAL(M)'!$L71=\"\",\"\",'[2]FISCAL(M)'!$L71)","v":"n.d."},{"$f":"IF('[2]FISCAL(M)'!$AY71=\"\",\"\",'[2]FISCAL(M)'!$AY71)","v":"n.d."},{"$f":"IF('[2]FISCAL(M)'!$BI71=\"\",\"\",'[2]FISCAL(M)'!$BI71)","v":"n.d."},{"$f":"IF('[2]FISCAL(M)'!$BS71=\"\",\"\",'[2]FISCAL(M)'!$BS71)","v":"n.d."},{"$f":"IF('[2]FISCAL(M)'!$AZ71=\"\",\"\",'[2]FISCAL(M)'!$AZ71)","v":"n.d."},{"$f":"IF('[2]FISCAL(M)'!$BJ71=\"\",\"\",'[2]FISCAL(M)'!$BJ71)","v":"n.d."},{"$f":"IF('[2]FISCAL(M)'!$BT71=\"\",\"\",'[2]FISCAL(M)'!$BT71)","v":"n.d."},{"$f":"IF('[3]MONE(M)'!$AO71=\"\",\"\",'[3]MONE(M)'!$AO71)","v":"n.d."},{"$f":"IF('[4]MONE(M)'!$AO71=\"\",\"\",'[4]MONE(M)'!$AO71)","v":"n.d."},{"$f":"IF('[5]MONE(M)'!$AO71=\"\",\"\",'[5]MONE(M)'!$AO71)","v":"n.d."},{"$f":"+'[1]MONE(M)'!$AO71","v":"n.d."},{"$f":"IF('[6]MONE(M)'!$AO71=\"\",\"\",'[6]MONE(M)'!$AO71)","v":"n.d."},{"$f":"IF('[7]MONE(M)'!$AO71=\"\",\"\",'[7]MONE(M)'!$AO71)","v":"n.d."},{"$f":"IF('[8]MONE(M)'!$AO71=\"\",\"\",'[8]MONE(M)'!$AO71)","v":"n.d."},"n.d.","n.d.","n.d.","n.d.","n.d.","n.d.","n.d.",{"$f":"IF('[2]FISCAL(M)'!$K71=\"\",\"\",'[2]FISCAL(M)'!$K71)","v":"n.d."},"n.d.","n.d.",{"$f":"IF('[2]FISCAL(M)'!$L71=\"\",\"\",'[2]FISCAL(M)'!$L71)","v":"n.d."},"n.d.","n.d.","n.d.","n.d.","n.d.","n.d.","n.d.","n.d.","n.d.","n.d.","n.d.","n.d.","n.d.","n.d.","n.d.","n.d.","n.d.","n.d."]
[1995,"marzo","1995-marzo",{"$f":"IF('[2]REAL IPC(M)'!$AL72=\"\",\"\",+'[2]REAL IPC(M)'!$AL72)","v":13.933287004864493},{"$f":"IF('[2]REAL IPC(M)'!$BE72=\"\",\"\",+'[2]REAL IPC(M)'!$BE72)","v":13.632998994350466},{"$f":"IF('[2]REAL IPC(M)'!$AM72=\"\",\"\",+'[2]REAL IPC(M)'!$AM72)","v":12.697409981048647},{"$f":"IF('[2]REAL IPC(M)'!$BI72=\"\",\"\",+'[2]REAL IPC(M)'!$BI72)","v":12.401772473928574},{"$f":"IF('[2]REAL IMAE(M)'!BJ72=\"\",\"\",'[2]REAL IMAE(M)'!BJ72)","v":"n.d."},{"$f":"IF('[2]REAL IMAE(M)'!BK72=\"\",\"\",'[2]REAL IMAE(M)'!BK72)","v":"n.d."},{"$f":"IF('[2]REAL IMAE(M)'!BN72=\"\",\"\",'[2]REAL IMAE(M)'!BN72)","v":"n.d."},{"$f":"IF('[2]REAL IMAE(M)'!BO72=\"\",\"\",'[2]REAL IMAE(M)'!BO72)","v":"n.d."},{"$f":"IF('[2]EXT RIN(M)'!$K72=\"\",\"\",'[2]EXT RIN(M)'!$K72)","v":"n.d."},"",{"$f":"IF('[2]EXT RIN(M)'!$L72=\"\",\"\",'[2]EXT RIN(M)'!$L72)","v":"n.d."},"",{"$f":"IF('[2]MONE(M)CARD'!EG72=\"\",\"\",'[2]MONE(M)CARD'!EG72)","v":"n.d."},{"$f":"IF('[2]MONE(M)CARD'!EK72=\"\",\"\",'[2]MONE(M)CARD'!EK72)","v":"n.d."},{"$f":"IF('[2]MONE(M)CARD'!EP72=\"\",\"\",'[2]MONE(M)CARD'!EP72)","v":"n.d."},{"$f":"IF('[2]MONE(M)CARD'!ES72=\"\",\"\",'[2]MONE(M)CARD'!ES72)","v":"n.d."},{"$f":"IF('[2]MONE(M)CARD'!EV72=\"\",\"\",'[2]MONE(M)CARD'!EV72)","v":"n.d."},{"$f":"IF('[2]MONE(M)CARD'!EZ72=\"\",\"\",'[2]MONE(M)CARD'!EZ72)","v":"n.d."},{"$f":"IF('[2]MONE(M)CAPARD'!FC72=\"\",\"\",'[2]MONE(M)CAPARD'!FC72)","v":"n.d."},{"$f":"IF('[2]MONE(M)CAPARD'!FG72=\"\",\"\",'[2]MONE(M)CAPARD'!FG72)","v":"n.d."},{"$f":"IF('[2]MONE(M)CAPARD'!FL72=\"\",\"\",'[2]MONE(M)CAPARD'!FL72)","v":"n.d."},{"$f":"IF('[2]MONE(M)CAPARD'!FO72=\"\",\"\",'[2]MONE(M)CAPARD'!FO72)","v":"n.d."},{"$f":"IF('[2]MONE(M)CAPARD'!FR72=\"\",\"\",'[2]MONE(M)CAPARD'!FR72)","v":"n.d."},{"$f":"IF('[2]MONE(M)CAPARD'!FV72=\"\",\"\",'[2]MONE(M)CAPARD'!FV72)","v":"n.d."},{"$f":"IF('[2]MONE(M)CARD'!FV72=\"\",\"\",'[2]MONE(M)CARD'!FV72)","v":""},{"$f":"IF('[2]MONE(M)CARD'!GD72=\"\",\"\",'[2]MONE(M)CARD'!GD72)","v":"n.d."},{"$f":"IF('[2]MONE(M)CARD'!GE72=\"\",\"\",'[2]MONE(M)CARD'!GE72)","v":"n.d."},"n.d.","n.d.","n.d.","n.d.","n.d.","n.d.","n.d.","n.d.",null,"n.d.","n.d.","n.d.","n.d.","n.d.",{"$f":"IF('[2]MONE(M)CAPARD'!GS72=\"\",\"\",'[2]MONE(M)CAPARD'!GS72)","v":"n.d."},{"$f":"IF('[2]MONE(M)CARD'!HA72=\"\",\"\",'[2]MONE(M)CAPARD'!HA72)","v":"n.d."},{"$f":"IF('[2]MONE(M)CAPARD'!HB72=\"\",\"\",'[2]MONE(M)CAPARD'!HB72)","v":"n.d."},"n.d.","n.d.","n.d.","n.d.","n.d.","n.d.","n.d.","n.d.","n.d.","n.d.","n.d.","n.d.","n.d.","n.d.",{"$f":"IF('[2]MONE(M)CAPARD'!AS72=\"\",\"\",'[2]MONE(M)CAPARD'!AS72)","v":"n.d."},{"$f":"IF('[2]MONE(M)CAPARD'!AT72=\"\",\"\",'[2]MONE(M)CAPARD'!AT72)","v":"n.a."},{"$f":"IF('[2]MONE(M)CAPARD'!AU72=\"\",\"\",'[2]MONE(M)CAPARD'!AU72)","v":"n.d."},{"$f":"IF('[2]MONE(M)CAPARD'!AV72=\"\",\"\",'[2]MONE(M)CAPARD'!AV72)","v":"n.d."},{"$f":"IF('[2]MONE(M)CAPARD'!AW72=\"\",\"\",'[2]MONE(M)CAPARD'!AW72)","v":"n.a."},{"$f":"IF('[2]MONE(M)CAPARD'!AX72=\"\",\"\",'[2]MONE(M)CAPARD'!AX72)","v":"n.d."},{"$f":"IF('[2]MONE(M)CAPARD'!AY72=\"\",\"\",'[2]MONE(M)CAPARD'!AY72)","v":"n.a."},{"$f":"IF('[2]FISCAL(M)'!$K72=\"\",\"\",'[2]FISCAL(M)'!$K72)","v":"n.d."},{"$f":"IF('[2]FISCAL(M)'!$L72=\"\",\"\",'[2]FISCAL(M)'!$L72)","v":"n.d."},{"$f":"IF('[2]FISCAL(M)'!$AY72=\"\",\"\",'[2]FISCAL(M)'!$AY72)","v":"n.d."},{"$f":"IF('[2]FISCAL(M)'!$BI72=\"\",\"\",'[2]FISCAL(M)'!$BI72)","v":"n.d."},{"$f":"IF('[2]FISCAL(M)'!$BS72=\"\",\"\",'[2]FISCAL(M)'!$BS72)","v":"n.d."},{"$f":"IF('[2]FISCAL(M)'!$AZ72=\"\",\"\",'[2]FISCAL(M)'!$AZ72)","v":"n.d."},{"$f":"IF('[2]FISCAL(M)'!$BJ72=\"\",\"\",'[2]FISCAL(M)'!$BJ72)","v":"n.d."},{"$f":"IF('[2]FISCAL(M)'!$BT72=\"\",\"\",'[2]FISCAL(M)'!$BT72)","v":"n.d."},{"$f":"IF('[3]MONE(M)'!$AO72=\"\",\"\",'[3]MONE(M)'!$AO72)","v":"n.d."},{"$f":"IF('[4]MONE(M)'!$AO72=\"\",\"\",'[4]MONE(M)'!$AO72)","v":"n.d."},{"$f":"IF('[5]MONE(M)'!$AO72=\"\",\"\",'[5]MONE(M)'!$AO72)","v":"n.d."},{"$f":"+'[1]MONE(M)'!$AO72","v":"n.d."},{"$f":"IF('[6]MONE(M)'!$AO72=\"\",\"\",'[6]MONE(M)'!$AO72)","v":"n.d."},{"$f":"IF('[7]MONE(M)'!$AO72=\"\",\"\",'[7]MONE(M)'!$AO72)","v":"n.d."},{"$f":"IF('[8]MONE(M)'!$AO72=\"\",\"\",'[8]MONE(M)'!$AO72)","v":"n.d."},"n.d.","n.d.","n.d.","n.d.","n.d.","n.d.","n.d.",{"$f":"IF('[2]FISCAL(M)'!$K72=\"\",\"\",'[2]FISCAL(M)'!$K72)","v":"n.d."},"n.d.","n.d.",{"$f":"IF('[2]FISCAL(M)'!$L72=\"\",\"\",'[2]FISCAL(M)'!$L72)","v":"n.d."},"n.d.","n.d.","n.d.","n.d.","n.d.","n.d.","n.d.","n.d.","n.d.","n.d.","n.d.","n.d.","n.d.","n.d.","n.d.","n.d.","n.d.","n.d."]
[1995,"abril","1995-abril",{"$f":"IF('[2]REAL IPC(M)'!$AL73=\"\",\"\",+'[2]REAL IPC(M)'!$AL73)","v":13.294400549639285},{"$f":"IF('[2]REAL IPC(M)'!$BE73=\"\",\"\",+'[2]REAL IPC(M)'!$BE73)","v":13.468011715059735},{"$f":"IF('[2]REAL IPC(M)'!$AM73=\"\",\"\",+'[2]REAL IPC(M)'!$AM73)","v":12.062499999999998},{"$f":"IF('[2]REAL IPC(M)'!$BI73=\"\",\"\",+'[2]REAL IPC(M)'!$BI73)","v":12.263193549312955},{"$f":"IF('[2]REAL IMAE(M)'!BJ73=\"\",\"\",'[2]REAL IMAE(M)'!BJ73)","v":"n.d."},{"$f":"IF('[2]REAL IMAE(M)'!BK73=\"\",\"\",'[2]REAL IMAE(M)'!BK73)","v":"n.d."},{"$f":"IF('[2]REAL IMAE(M)'!BN73=\"\",\"\",'[2]REAL IMAE(M)'!BN73)","v":"n.d."},{"$f":"IF('[2]REAL IMAE(M)'!BO73=\"\",\"\",'[2]REAL IMAE(M)'!BO73)","v":"n.d."},{"$f":"IF('[2]EXT RIN(M)'!$K73=\"\",\"\",'[2]EXT RIN(M)'!$K73)","v":"n.d."},"",{"$f":"IF('[2]EXT RIN(M)'!$L73=\"\",\"\",'[2]EXT RIN(M)'!$L73)","v":"n.d."},"",{"$f":"IF('[2]MONE(M)CARD'!EG73=\"\",\"\",'[2]MONE(M)CARD'!EG73)","v":"n.d."},{"$f":"IF('[2]MONE(M)CARD'!EK73=\"\",\"\",'[2]MONE(M)CARD'!EK73)","v":"n.d."},{"$f":"IF('[2]MONE(M)CARD'!EP73=\"\",\"\",'[2]MONE(M)CARD'!EP73)","v":"n.d."},{"$f":"IF('[2]MONE(M)CARD'!ES73=\"\",\"\",'[2]MONE(M)CARD'!ES73)","v":"n.d."},{"$f":"IF('[2]MONE(M)CARD'!EV73=\"\",\"\",'[2]MONE(M)CARD'!EV73)","v":"n.d."},{"$f":"IF('[2]MONE(M)CARD'!EZ73=\"\",\"\",'[2]MONE(M)CARD'!EZ73)","v":"n.d."},{"$f":"IF('[2]MONE(M)CAPARD'!FC73=\"\",\"\",'[2]MONE(M)CAPARD'!FC73)","v":"n.d."},{"$f":"IF('[2]MONE(M)CAPARD'!FG73=\"\",\"\",'[2]MONE(M)CAPARD'!FG73)","v":"n.d."},{"$f":"IF('[2]MONE(M)CAPARD'!FL73=\"\",\"\",'[2]MONE(M)CAPARD'!FL73)","v":"n.d."},{"$f":"IF('[2]MONE(M)CAPARD'!FO73=\"\",\"\",'[2]MONE(M)CAPARD'!FO73)","v":"n.d."},{"$f":"IF('[2]MONE(M)CAPARD'!FR73=\"\",\"\",'[2]MONE(M)CAPARD'!FR73)","v":"n.d."},{"$f":"IF('[2]MONE(M)CAPARD'!FV73=\"\",\"\",'[2]MONE(M)CAPARD'!FV73)","v":"n.d."},{"$f":"IF('[2]MONE(M)CARD'!FV73=\"\",\"\",'[2]MONE(M)CARD'!FV73)","v":""},{"$f":"IF('[2]MONE(M)CARD'!GD73=\"\",\"\",'[2]MONE(M)CARD'!GD73)","v":"n.d."},{"$f":"IF('[2]MONE(M)CARD'!GE73=\"\",\"\",'[2]MONE(M)CARD'!GE73)","v":"n.d."},"n.d.","n.d.","n.d.","n.d.","n.d.","n.d.","n.d.","n.d.",null,"n.d.","n.d.","n.d.","n.d.","n.d.",{"$f":"IF('[2]MONE(M)CAPARD'!GS73=\"\",\"\",'[2]MONE(M)CAPARD'!GS73)","v":"n.d."},{"$f":"IF('[2]MONE(M)CARD'!HA73=\"\",\"\",'[2]MONE(M)CAPARD'!HA73)","v":"n.d."},{"$f":"IF('[2]MONE(M)CAPARD'!HB73=\"\",\"\",'[2]MONE(M)CAPARD'!HB73)","v":"n.d."},"n.d.","n.d.","n.d.","n.d.","n.d.","n.d.","n.d.","n.d.","n.d.","n.d.","n.d.","n.d.","n.d.","n.d.",{"$f":"IF('[2]MONE(M)CAPARD'!AS73=\"\",\"\",'[2]MONE(M)CAPARD'!AS73)","v":"n.d."},{"$f":"IF('[2]MONE(M)CAPARD'!AT73=\"\",\"\",'[2]MONE(M)CAPARD'!AT73)","v":"n.a."},{"$f":"IF('[2]MONE(M)CAPARD'!AU73=\"\",\"\",'[2]MONE(M)CAPARD'!AU73)","v":"n.d."},{"$f":"IF('[2]MONE(M)CAPARD'!AV73=\"\",\"\",'[2]MONE(M)CAPARD'!AV73)","v":"n.d."},{"$f":"IF('[2]MONE(M)CAPARD'!AW73=\"\",\"\",'[2]MONE(M)CAPARD'!AW73)","v":"n.a."},{"$f":"IF('[2]MONE(M)CAPARD'!AX73=\"\",\"\",'[2]MONE(M)CAPARD'!AX73)","v":"n.d."},{"$f":"IF('[2]MONE(M)CAPARD'!AY73=\"\",\"\",'[2]MONE(M)CAPARD'!AY73)","v":"n.a."},{"$f":"IF('[2]FISCAL(M)'!$K73=\"\",\"\",'[2]FISCAL(M)'!$K73)","v":"n.d."},{"$f":"IF('[2]FISCAL(M)'!$L73=\"\",\"\",'[2]FISCAL(M)'!$L73)","v":"n.d."},{"$f":"IF('[2]FISCAL(M)'!$AY73=\"\",\"\",'[2]FISCAL(M)'!$AY73)","v":"n.d."},{"$f":"IF('[2]FISCAL(M)'!$BI73=\"\",\"\",'[2]FISCAL(M)'!$BI73)","v":"n.d."},{"$f":"IF('[2]FISCAL(M)'!$BS73=\"\",\"\",'[2]FISCAL(M)'!$BS73)","v":"n.d."},{"$f":"IF('[2]FISCAL(M)'!$AZ73=\"\",\"\",'[2]FISCAL(M)'!$AZ73)","v":"n.d."},{"$f":"IF('[2]FISCAL(M)'!$BJ73=\"\",\"\",'[2]FISCAL(M)'!$BJ73)","v":"n.d."},{"$f":"IF('[2]FISCAL(M)'!$BT73=\"\",\"\",'[2]FISCAL(M)'!$BT73)","v":"n.d."},{"$f":"IF('[3]MONE(M)'!$AO73=\"\",\"\",'[3]MONE(M)'!$AO73)","v":"n.d."},{"$f":"IF('[4]MONE(M)'!$AO73=\"\",\"\",'[4]MONE(M)'!$AO73)","v":"n.d."},{"$f":"IF('[5]MONE(M)'!$AO73=\"\",\"\",'[5]MONE(M)'!$AO73)","v":"n.d."},{"$f":"+'[1]MONE(M)'!$AO73","v":"n.d."},{"$f":"IF('[6]MONE(M)'!$AO73=\"\",\"\",'[6]MONE(M)'!$AO73)","v":"n.d."},{"$f":"IF('[7]MONE(M)'!$AO73=\"\",\"\",'[7]MONE(M)'!$AO73)","v":"n.d."},{"$f":"IF('[8]MONE(M)'!$AO73=\"\",\"\",'[8]MONE(M)'!$AO73)","v":"n.d."},"n.d.","n.d.","n.d.","n.d.","n.d.","n.d.","n.d.",{"$f":"IF('[2]FISCAL(M)'!$K73=\"\",\"\",'[2]FISCAL(M)'!$K73)","v":"n.d."},"n.d.","n.d.",{"$f":"IF('[2]FISCAL(M)'!$L73=\"\",\"\",'[2]FISCAL(M)'!$L73)","v":"n.d."},"n.d.","n.d.","n.d.","n.d.","n.d.","n.d.","n.d.","n.d.","n.d.","n.d.","n.d.","n.d.","n.d.","n.d.","n.d.","n.d.","n.d.","n.d."]
[1995,"mayo ","1995-mayo ",{"$f":"IF('[2]REAL IPC(M)'!$AL74=\"\",\"\",+'[2]REAL IPC(M)'!$AL74)","v":13.172226004084408},{"$f":"IF('[2]REAL IPC(M)'!$BE74=\"\",\"\",+'[2]REAL IPC(M)'!$BE74)","v":13.304080021352638},{"$f":"IF('[2]REAL IPC(M)'!$AM74=\"\",\"\",+'[2]REAL IPC(M)'!$AM74)","v":11.992562751781822},{"$f":"IF('[2]REAL IPC(M)'!$BI74=\"\",\"\",+'[2]REAL IPC(M)'!$BI74)","v":12.124844279831294},{"$f":"IF('[2]REAL IMAE(M)'!BJ74=\"\",\"\",'[2]REAL IMAE(M)'!BJ74)","v":"n.d."},{"$f":"IF('[2]REAL IMAE(M)'!BK74=\"\",\"\",'[2]REAL IMAE(M)'!BK74)","v":"n.d."},{"$f":"IF('[2]REAL IMAE(M)'!BN74=\"\",\"\",'[2]REAL IMAE(M)'!BN74)","v":"n.d."},{"$f":"IF('[2]REAL IMAE(M)'!BO74=\"\",\"\",'[2]REAL IMAE(M)'!BO74)","v":"n.d."},{"$f":"IF('[2]EXT RIN(M)'!$K74=\"\",\"\",'[2]EXT RIN(M)'!$K74)","v":"n.d."},"",{"$f":"IF('[2]EXT RIN(M)'!$L74=\"\",\"\",'[2]EXT RIN(M)'!$L74)","v":"n.d."},"",{"$f":"IF('[2]MONE(M)CARD'!EG74=\"\",\"\",'[2]MONE(M)CARD'!EG74)","v":"n.d."},{"$f":"IF('[2]MONE(M)CARD'!EK74=\"\",\"\",'[2]MONE(M)CARD'!EK74)","v":"n.d."},{"$f":"IF('[2]MONE(M)CARD'!EP74=\"\",\"\",'[2]MONE(M)CARD'!EP74)","v":"n.d."},{"$f":"IF('[2]MONE(M)CARD'!ES74=\"\",\"\",'[2]MONE(M)CARD'!ES74)","v":"n.d."},{"$f":"IF('[2]MONE(M)CARD'!EV74=\"\",\"\",'[2]MONE(M)CARD'!EV74)","v":"n.d."},{"$f":"IF('[2]MONE(M)CARD'!EZ74=\"\",\"\",'[2]MONE(M)CARD'!EZ74)","v":"n.d."},{"$f":"IF('[2]MONE(M)CAPARD'!FC74=\"\",\"\",'[2]MONE(M)CAPARD'!FC74)","v":"n.d."},{"$f":"IF('[2]MONE(M)CAPARD'!FG74=\"\",\"\",'[2]MONE(M)CAPARD'!FG74)","v":"n.d."},{"$f":"IF('[2]MONE(M)CAPARD'!FL74=\"\",\"\",'[2]MONE(M)CAPARD'!FL74)","v":"n.d."},{"$f":"IF('[2]MONE(M)CAPARD'!FO74=\"\",\"\",'[2]MONE(M)CAPARD'!FO74)","v":"n.d."},{"$f":"IF('[2]MONE(M)CAPARD'!FR74=\"\",\"\",'[2]MONE(M)CAPARD'!FR74)","v":"n.d."},{"$f":"IF('[2]MONE(M)CAPARD'!FV74=\"\",\"\",'[2]MONE(M)CAPARD'!FV74)","v":"n.d."},{"$f":"IF('[2]MONE(M)CARD'!FV74=\"\",\"\",'[2]MONE(M)CARD'!FV74)","v":""},{"$f":"IF('[2]MONE(M)CARD'!GD74=\"\",\"\",'[2]MONE(M)CARD'!GD74)","v":"n.d."},{"$f":"IF('[2]MONE(M)CARD'!GE74=\"\",\"\",'[2]MONE(M)CARD'!GE74)","v":"n.d."},"n.d.","n.d.","n.d.","n.d.","n.d.","n.d.","n.d.","n.d.",null,"n.d.","n.d.","n.d.","n.d.","n.d.",{"$f":"IF('[2]MONE(M)CAPARD'!GS74=\"\",\"\",'[2]MONE(M)CAPARD'!GS74)","v":"n.d."},{"$f":"IF('[2]MONE(M)CARD'!HA74=\"\",\"\",'[2]MONE(M)CAPARD'!HA74)","v":"n.d."},{"$f":"IF('[2]MONE(M)CAPARD'!HB74=\"\",\"\",'[2]MONE(M)CAPARD'!HB74)","v":"n.d."},"n.d.","n.d.","n.d.","n.d.","n.d.","n.d.","n.d.","n.d.","n.d.","n.d.","n.d.","n.d.","n.d.","n.d.",{"$f":"IF('[2]MONE(M)CAPARD'!AS74=\"\",\"\",'[2]MONE(M)CAPARD'!AS74)","v":"n.d."},{"$f":"IF('[2]MONE(M)CAPARD'!AT74=\"\",\"\",'[2]MONE(M)CAPARD'!AT74)","v":"n.a."},{"$f":"IF('[2]MONE(M)CAPARD'!AU74=\"\",\"\",'[2]MONE(M)CAPARD'!AU74)","v":"n.d."},{"$f":"IF('[2]MONE(M)CAPARD'!AV74=\"\",\"\",'[2]MONE(M)CAPARD'!AV74)","v":"n.d."},{"$f":"IF('[2]MONE(M)CAPARD'!AW74=\"\",\"\",'[2]MONE(M)CAPARD'!AW74)","v":"n.a."},{"$f":"IF('[2]MONE(M)CAPARD'!AX74=\"\",\"\",'[2]MONE(M)CAPARD'!AX74)","v":"n.d."},{"$f":"IF('[2]MONE(M)CAPARD'!AY74=\"\",\"\",'[2]MONE(M)CAPARD'!AY74)","v":"n.a."},{"$f":"IF('[2]FISCAL(M)'!$K74=\"\",\"\",'[2]FISCAL(M)'!$K74)","v":"n.d."},{"$f":"IF('[2]FISCAL(M)'!$L74=\"\",\"\",'[2]FISCAL(M)'!$L74)","v":"n.d."},{"$f":"IF('[2]FISCAL(M)'!$AY74=\"\",\"\",'[2]FISCAL(M)'!$AY74)","v":"n.d."},{"$f":"IF('[2]FISCAL(M)'!$BI74=\"\",\"\",'[2]FISCAL(M)'!$BI74)","v":"n.d."},{"$f":"IF('[2]FISCAL(M)'!$BS74=\"\",\"\",'[2]FISCAL(M)'!$BS74)","v":"n.d."},{"$f":"IF('[2]FISCAL(M)'!$AZ74=\"\",\"\",'[2]FISCAL(M)'!$AZ74)","v":"n.d."},{"$f":"IF('[2]FISCAL(M)'!$BJ74=\"\",\"\",'[2]FISCAL(M)'!$BJ74)","v":"n.d."},{"$f":"IF('[2]FISCAL(M)'!$BT74=\"\",\"\",'[2]FISCAL(M)'!$BT74)","v":"n.d."},{"$f":"IF('[3]MONE(M)'!$AO74=\"\",\"\",'[3]MONE(M)'!$AO74)","v":"n.d."},{"$f":"IF('[4]MONE(M)'!$AO74=\"\",\"\",'[4]MONE(M)'!$AO74)","v":"n.d."},{"$f":"IF('[5]MONE(M)'!$AO74=\"\",\"\",'[5]MONE(M)'!$AO74)","v":"n.d."},{"$f":"+'[1]MONE(M)'!$AO74","v":"n.d."},{"$f":"IF('[6]MONE(M)'!$AO74=\"\",\"\",'[6]MONE(M)'!$AO74)","v":"n.d."},{"$f":"IF('[7]MONE(M)'!$AO74=\"\",\"\",'[7]MONE(M)'!$AO74)","v":"n.d."},{"$f":"IF('[8]MONE(M)'!$AO74=\"\",\"\",'[8]MONE(M)'!$AO74)","v":"n.d."},"n.d.","n.d.","n.d.","n.d.","n.d.","n.d.","n.d.",{"$f":"IF('[2]FISCAL(M)'!$K74=\"\",\"\",'[2]FISCAL(M)'!$K74)","v":"n.d."},"n.d.",{"$f":"IF(OR(CM67=\"n.d.\",CM67=\"\",CN67=\"\",CN67=\"n.d.\"),\"n.d.\",(CM67/CN67)*100)","v":"n.d."},{"$f":"IF('[2]FISCAL(M)'!$L74=\"\",\"\",'[2]FISCAL(M)'!$L74)","v":"n.d."},"n.d.","n.d.","n.d.","n.d.","n.d.","n.d.","n.d.","n.d.","n.d.","n.d.","n.d.","n.d.","n.d.","n.d.","n.d.","n.d.","n.d.","n.d."]
[1995,"junio ",{"$f":"A68&\"-\"&B68","v":"1995-junio "},{"$f":"IF('[2]REAL IPC(M)'!$AL75=\"\",\"\",+'[2]REAL IPC(M)'!$AL75)","v":13.295186805789271},{"$f":"IF('[2]REAL IPC(M)'!$BE75=\"\",\"\",+'[2]REAL IPC(M)'!$BE75)","v":13.140897165494337},{"$f":"IF('[2]REAL IPC(M)'!$AM75=\"\",\"\",+'[2]REAL IPC(M)'!$AM75)","v":12.1165644171779},{"$f":"IF('[2]REAL IPC(M)'!$BI75=\"\",\"\",+'[2]REAL IPC(M)'!$BI75)","v":11.986442226663762},{"$f":"IF('[2]REAL IMAE(M)'!BJ75=\"\",\"\",'[2]REAL IMAE(M)'!BJ75)","v":"n.d."},{"$f":"IF('[2]REAL IMAE(M)'!BK75=\"\",\"\",'[2]REAL IMAE(M)'!BK75)","v":"n.d."},{"$f":"IF('[2]REAL IMAE(M)'!BN75=\"\",\"\",'[2]REAL IMAE(M)'!BN75)","v":"n.d."},{"$f":"IF('[2]REAL IMAE(M)'!BO75=\"\",\"\",'[2]REAL IMAE(M)'!BO75)","v":"n.d."},{"$f":"IF('[2]EXT RIN(M)'!$K75=\"\",\"\",'[2]EXT RIN(M)'!$K75)","v":"n.d."},{"$f":"IF(B68<>\"diciembre\",\"\",L68)","v":""},{"$f":"IF('[2]EXT RIN(M)'!$L75=\"\",\"\",'[2]EXT RIN(M)'!$L75)","v":"n.d."},{"$f":"IF(B68<>\"diciembre\",\"\",N68)","v":""},{"$f":"IF('[2]MONE(M)CARD'!EG75=\"\",\"\",'[2]MONE(M)CARD'!EG75)","v":"n.d."},{"$f":"IF('[2]MONE(M)CARD'!EK75=\"\",\"\",'[2]MONE(M)CARD'!EK75)","v":"n.d."},{"$f":"IF('[2]MONE(M)CARD'!EP75=\"\",\"\",'[2]MONE(M)CARD'!EP75)","v":"n.d."},{"$f":"IF('[2]MONE(M)CARD'!ES75=\"\",\"\",'[2]MONE(M)CARD'!ES75)","v":"n.d."},{"$f":"IF('[2]MONE(M)CARD'!EV75=\"\",\"\",'[2]MONE(M)CARD'!EV75)","v":"n.d."},{"$f":"IF('[2]MONE(M)CARD'!EZ75=\"\",\"\",'[2]MONE(M)CARD'!EZ75)","v":"n.d."},{"$f":"IF('[2]MONE(M)CAPARD'!FC75=\"\",\"\",'[2]MONE(M)CAPARD'!FC75)","v":"n.d."},{"$f":"IF('[2]MONE(M)CAPARD'!FG75=\"\",\"\",'[2]MONE(M)CAPARD'!FG75)","v":"n.d."},{"$f":"IF('[2]MONE(M)CAPARD'!FL75=\"\",\"\",'[2]MONE(M)CAPARD'!FL75)","v":"n.d."},{"$f":"IF('[2]MONE(M)CAPARD'!FO75=\"\",\"\",'[2]MONE(M)CAPARD'!FO75)","v":"n.d."},{"$f":"IF('[2]MONE(M)CAPARD'!FR75=\"\",\"\",'[2]MONE(M)CAPARD'!FR75)","v":"n.d."},{"$f":"IF('[2]MONE(M)CAPARD'!FV75=\"\",\"\",'[2]MONE(M)CAPARD'!FV75)","v":"n.d."},{"$f":"IF('[2]MONE(M)CARD'!FV75=\"\",\"\",'[2]MONE(M)CARD'!FV75)","v":""},{"$f":"IF('[2]MONE(M)CARD'!GD75=\"\",\"\",'[2]MONE(M)CARD'!GD75)","v":"n.d."},{"$f":"IF('[2]MONE(M)CARD'!GE75=\"\",\"\",'[2]MONE(M)CARD'!GE75)","v":"n.d."},"n.d.","n.d.","n.d.","n.d.","n.d.","n.d.","n.d.","n.d.",null,"n.d.","n.d.","n.d.","n.d.","n.d.",{"$f":"IF('[2]MONE(M)CAPARD'!GS75=\"\",\"\",'[2]MONE(M)CAPARD'!GS75)","v":"n.d."},{"$f":"IF('[2]MONE(M)CARD'!HA75=\"\",\"\",'[2]MONE(M)CAPARD'!HA75)","v":"n.d."},{"$f":"IF('[2]MONE(M)CAPARD'!HB75=\"\",\"\",'[2]MONE(M)CAPARD'!HB75)","v":"n.d."},"n.d.","n.d.","n.d.","n.d.","n.d.","n.d.","n.d.","n.d.","n.d.","n.d.","n.d.","n.d.","n.d.","n.d.",{"$f":"IF('[2]MONE(M)CAPARD'!AS75=\"\",\"\",'[2]MONE(M)CAPARD'!AS75)","v":"n.d."},{"$f":"IF('[2]MONE(M)CAPARD'!AT75=\"\",\"\",'[2]MONE(M)CAPARD'!AT75)","v":"n.a."},{"$f":"IF('[2]MONE(M)CAPARD'!AU75=\"\",\"\",'[2]MONE(M)CAPARD'!AU75)","v":"n.d."},{"$f":"IF('[2]MONE(M)CAPARD'!AV75=\"\",\"\",'[2]MONE(M)CAPARD'!AV75)","v":"n.d."},{"$f":"IF('[2]MONE(M)CAPARD'!AW75=\"\",\"\",'[2]MONE(M)CAPARD'!AW75)","v":"n.a."},{"$f":"IF('[2]MONE(M)CAPARD'!AX75=\"\",\"\",'[2]MONE(M)CAPARD'!AX75)","v":"n.d."},{"$f":"IF('[2]MONE(M)CAPARD'!AY75=\"\",\"\",'[2]MONE(M)CAPARD'!AY75)","v":"n.a."},{"$f":"IF('[2]FISCAL(M)'!$K75=\"\",\"\",'[2]FISCAL(M)'!$K75)","v":"n.d."},{"$f":"IF('[2]FISCAL(M)'!$L75=\"\",\"\",'[2]FISCAL(M)'!$L75)","v":"n.d."},{"$f":"IF('[2]FISCAL(M)'!$AY75=\"\",\"\",'[2]FISCAL(M)'!$AY75)","v":"n.d."},{"$f":"IF('[2]FISCAL(M)'!$BI75=\"\",\"\",'[2]FISCAL(M)'!$BI75)","v":"n.d."},{"$f":"IF('[2]FISCAL(M)'!$BS75=\"\",\"\",'[2]FISCAL(M)'!$BS75)","v":"n.d."},{"$f":"IF('[2]FISCAL(M)'!$AZ75=\"\",\"\",'[2]FISCAL(M)'!$AZ75)","v":"n.d."},{"$f":"IF('[2]FISCAL(M)'!$BJ75=\"\",\"\",'[2]FISCAL(M)'!$BJ75)","v":"n.d."},{"$f":"IF('[2]FISCAL(M)'!$BT75=\"\",\"\",'[2]FISCAL(M)'!$BT75)","v":"n.d."},{"$f":"IF('[3]MONE(M)'!$AO75=\"\",\"\",'[3]MONE(M)'!$AO75)","v":"n.d."},{"$f":"IF('[4]MONE(M)'!$AO75=\"\",\"\",'[4]MONE(M)'!$AO75)","v":"n.d."},{"$f":"IF('[5]MONE(M)'!$AO75=\"\",\"\",'[5]MONE(M)'!$AO75)","v":"n.d."},{"$f":"+'[1]MONE(M)'!$AO75","v":"n.d."},{"$f":"IF('[6]MONE(M)'!$AO75=\"\",\"\",'[6]MONE(M)'!$AO75)","v":"n.d."},{"$f":"IF('[7]MONE(M)'!$AO75=\"\",\"\",'[7]MONE(M)'!$AO75)","v":"n.d."},{"$f":"IF('[8]MONE(M)'!$AO75=\"\",\"\",'[8]MONE(M)'!$AO75)","v":"n.d."},"n.d.","n.d.","n.d.","n.d.","n.d.","n.d.","n.d.",{"$f":"IF('[2]FISCAL(M)'!$K75=\"\",\"\",'[2]FISCAL(M)'!$K75)","v":"n.d."},"n.d.","n.d.",{"$f":"IF('[2]FISCAL(M)'!$L75=\"\",\"\",'[2]FISCAL(M)'!$L75)","v":"n.d."},"n.d.",{"$f":"IF(OR(CP68=\"n.d.\",CP68=\"\",CQ68=\"\",CQ68=\"n.d.\"),\"n.d.\",(CP68/CQ68)*100)","v":"n.d."},"n.d.","n.d.","n.d.","n.d.","n.d.","n.d.","n.d.","n.d.","n.d.","n.d.","n.d.","n.d.","n.d.","n.d.","n.d.","n.d."]
[1995,"julio","1995-julio",{"$f":"IF('[2]REAL IPC(M)'!$AL76=\"\",\"\",+'[2]REAL IPC(M)'!$AL76)","v":13.718291054739652},{"$f":"IF('[2]REAL IPC(M)'!$BE76=\"\",\"\",+'[2]REAL IPC(M)'!$BE76)","v":12.978159855395699},{"$f":"IF('[2]REAL IPC(M)'!$AM76=\"\",\"\",+'[2]REAL IPC(M)'!$AM76)","v":12.511415525114145},{"$f":"IF('[2]REAL IPC(M)'!$BI76=\"\",\"\",+'[2]REAL IPC(M)'!$BI76)","v":11.847704906541479},{"$f":"IF('[2]REAL IMAE(M)'!BJ76=\"\",\"\",'[2]REAL IMAE(M)'!BJ76)","v":"n.d."},{"$f":"IF('[2]REAL IMAE(M)'!BK76=\"\",\"\",'[2]REAL IMAE(M)'!BK76)","v":"n.d."},{"$f":"IF('[2]REAL IMAE(M)'!BN76=\"\",\"\",'[2]REAL IMAE(M)'!BN76)","v":"n.d."},{"$f":"IF('[2]REAL IMAE(M)'!BO76=\"\",\"\",'[2]REAL IMAE(M)'!BO76)","v":"n.d."},{"$f":"IF('[2]EXT RIN(M)'!$K76=\"\",\"\",'[2]EXT RIN(M)'!$K76)","v":"n.d."},"",{"$f":"IF('[2]EXT RIN(M)'!$L76=\"\",\"\",'[2]EXT RIN(M)'!$L76)","v":"n.d."},"",{"$f":"IF('[2]MONE(M)CARD'!EG76=\"\",\"\",'[2]MONE(M)CARD'!EG76)","v":"n.d."},{"$f":"IF('[2]MONE(M)CARD'!EK76=\"\",\"\",'[2]MONE(M)CARD'!EK76)","v":"n.d."},{"$f":"IF('[2]MONE(M)CARD'!EP76=\"\",\"\",'[2]MONE(M)CARD'!EP76)","v":"n.d."},{"$f":"IF('[2]MONE(M)CARD'!ES76=\"\",\"\",'[2]MONE(M)CARD'!ES76)","v":"n.d."},{"$f":"IF('[2]MONE(M)CARD'!EV76=\"\",\"\",'[2]MONE(M)CARD'!EV76)","v":"n.d."},{"$f":"IF('[2]MONE(M)CARD'!EZ76=\"\",\"\",'[2]MONE(M)CARD'!EZ76)","v":"n.d."},{"$f":"IF('[2]MONE(M)CAPARD'!FC76=\"\",\"\",'[2]MONE(M)CAPARD'!FC76)","v":"n.d."},{"$f":"IF('[2]MONE(M)CAPARD'!FG76=\"\",\"\",'[2]MONE(M)CAPARD'!FG76)","v":"n.d."},{"$f":"IF('[2]MONE(M)CAPARD'!FL76=\"\",\"\",'[2]MONE(M)CAPARD'!FL76)","v":"n.d."},{"$f":"IF('[2]MONE(M)CAPARD'!FO76=\"\",\"\",'[2]MONE(M)CAPARD'!FO76)","v":"n.d."},{"$f":"IF('[2]MONE(M)CAPARD'!FR76=\"\",\"\",'[2]MONE(M)CAPARD'!FR76)","v":"n.d."},{"$f":"IF('[2]MONE(M)CAPARD'!FV76=\"\",\"\",'[2]MONE(M)CAPARD'!FV76)","v":"n.d."},{"$f":"IF('[2]MONE(M)CARD'!FV76=\"\",\"\",'[2]MONE(M)CARD'!FV76)","v":""},{"$f":"IF('[2]MONE(M)CARD'!GD76=\"\",\"\",'[2]MONE(M)CARD'!GD76)","v":"n.d."},{"$f":"IF('[2]MONE(M)CARD'!GE76=\"\",\"\",'[2]MONE(M)CARD'!GE76)","v":"n.d."},"n.d.","n.d.","n.d.","n.d.","n.d.","n.d.","n.d.","n.d.",null,"n.d.","n.d.","n.d.","n.d.","n.d.",{"$f":"IF('[2]MONE(M)CAPARD'!GS76=\"\",\"\",'[2]MONE(M)CAPARD'!GS76)","v":"n.d."},{"$f":"IF('[2]MONE(M)CARD'!HA76=\"\",\"\",'[2]MONE(M)CAPARD'!HA76)","v":"n.d."},{"$f":"IF('[2]MONE(M)CAPARD'!HB76=\"\",\"\",'[2]MONE(M)CAPARD'!HB76)","v":"n.d."},"n.d.","n.d.","n.d.","n.d.","n.d.","n.d.","n.d.","n.d.","n.d.","n.d.","n.d.","n.d.","n.d.","n.d.",{"$f":"IF('[2]MONE(M)CAPARD'!AS76=\"\",\"\",'[2]MONE(M)CAPARD'!AS76)","v":"n.d."},{"$f":"IF('[2]MONE(M)CAPARD'!AT76=\"\",\"\",'[2]MONE(M)CAPARD'!AT76)","v":"n.a."},{"$f":"IF('[2]MONE(M)CAPARD'!AU76=\"\",\"\",'[2]MONE(M)CAPARD'!AU76)","v":"n.d."},{"$f":"IF('[2]MONE(M)CAPARD'!AV76=\"\",\"\",'[2]MONE(M)CAPARD'!AV76)","v":"n.d."},{"$f":"IF('[2]MONE(M)CAPARD'!AW76=\"\",\"\",'[2]MONE(M)CAPARD'!AW76)","v":"n.a."},{"$f":"IF('[2]MONE(M)CAPARD'!AX76=\"\",\"\",'[2]MONE(M)CAPARD'!AX76)","v":"n.d."},{"$f":"IF('[2]MONE(M)CAPARD'!AY76=\"\",\"\",'[2]MONE(M)CAPARD'!AY76)","v":"n.a."},{"$f":"IF('[2]FISCAL(M)'!$K76=\"\",\"\",'[2]FISCAL(M)'!$K76)","v":"n.d."},{"$f":"IF('[2]FISCAL(M)'!$L76=\"\",\"\",'[2]FISCAL(M)'!$L76)","v":"n.d."},{"$f":"IF('[2]FISCAL(M)'!$AY76=\"\",\"\",'[2]FISCAL(M)'!$AY76)","v":"n.d."},{"$f":"IF('[2]FISCAL(M)'!$BI76=\"\",\"\",'[2]FISCAL(M)'!$BI76)","v":"n.d."},{"$f":"IF('[2]FISCAL(M)'!$BS76=\"\",\"\",'[2]FISCAL(M)'!$BS76)","v":"n.d."},{"$f":"IF('[2]FISCAL(M)'!$AZ76=\"\",\"\",'[2]FISCAL(M)'!$AZ76)","v":"n.d."},{"$f":"IF('[2]FISCAL(M)'!$BJ76=\"\",\"\",'[2]FISCAL(M)'!$BJ76)","v":"n.d."},{"$f":"IF('[2]FISCAL(M)'!$BT76=\"\",\"\",'[2]FISCAL(M)'!$BT76)","v":"n.d."},{"$f":"IF('[3]MONE(M)'!$AO76=\"\",\"\",'[3]MONE(M)'!$AO76)","v":"n.d."},{"$f":"IF('[4]MONE(M)'!$AO76=\"\",\"\",'[4]MONE(M)'!$AO76)","v":"n.d."},{"$f":"IF('[5]MONE(M)'!$AO76=\"\",\"\",'[5]MONE(M)'!$AO76)","v":"n.d."},{"$f":"+'[1]MONE(M)'!$AO76","v":"n.d."},{"$f":"IF('[6]MONE(M)'!$AO76=\"\",\"\",'[6]MONE(M)'!$AO76)","v":"n.d."},{"$f":"IF('[7]MONE(M)'!$AO76=\"\",\"\",'[7]MONE(M)'!$AO76)","v":"n.d."},{"$f":"IF('[8]MONE(M)'!$AO76=\"\",\"\",'[8]MONE(M)'!$AO76)","v":"n.d."},"n.d.","n.d.","n.d.","n.d.","n.d.","n.d.","n.d.",{"$f":"IF('[2]FISCAL(M)'!$K76=\"\",\"\",'[2]FISCAL(M)'!$K76)","v":"n.d."},"n.d.","n.d.",{"$f":"IF('[2]FISCAL(M)'!$L76=\"\",\"\",'[2]FISCAL(M)'!$L76)","v":"n.d."},"n.d.","n.d.","n.d.","n.d.","n.d.","n.d.","n.d.","n.d.","n.d.","n.d.","n.d.","n.d.","n.d.","n.d.","n.d.","n.d.","n.d.","n.d."]
[1995,"agosto","1995-agosto",{"$f":"IF('[2]REAL IPC(M)'!$AL77=\"\",\"\",+'[2]REAL IPC(M)'!$AL77)","v":12.989148306478127},{"$f":"IF('[2]REAL IPC(M)'!$BE77=\"\",\"\",+'[2]REAL IPC(M)'!$BE77)","v":12.815592356894401},{"$f":"IF('[2]REAL IPC(M)'!$AM77=\"\",\"\",+'[2]REAL IPC(M)'!$AM77)","v":11.824729891956775},{"$f":"IF('[2]REAL IPC(M)'!$BI77=\"\",\"\",+'[2]REAL IPC(M)'!$BI77)","v":11.708375001222237},{"$f":"IF('[2]REAL IMAE(M)'!BJ77=\"\",\"\",'[2]REAL IMAE(M)'!BJ77)","v":"n.d."},{"$f":"IF('[2]REAL IMAE(M)'!BK77=\"\",\"\",'[2]REAL IMAE(M)'!BK77)","v":"n.d."},{"$f":"IF('[2]REAL IMAE(M)'!BN77=\"\",\"\",'[2]REAL IMAE(M)'!BN77)","v":"n.d."},{"$f":"IF('[2]REAL IMAE(M)'!BO77=\"\",\"\",'[2]REAL IMAE(M)'!BO77)","v":"n.d."},{"$f":"IF('[2]EXT RIN(M)'!$K77=\"\",\"\",'[2]EXT RIN(M)'!$K77)","v":"n.d."},"",{"$f":"IF('[2]EXT RIN(M)'!$L77=\"\",\"\",'[2]EXT RIN(M)'!$L77)","v":"n.d."},"",{"$f":"IF('[2]MONE(M)CARD'!EG77=\"\",\"\",'[2]MONE(M)CARD'!EG77)","v":"n.d."},{"$f":"IF('[2]MONE(M)CARD'!EK77=\"\",\"\",'[2]MONE(M)CARD'!EK77)","v":"n.d."},{"$f":"IF('[2]MONE(M)CARD'!EP77=\"\",\"\",'[2]MONE(M)CARD'!EP77)","v":"n.d."},{"$f":"IF('[2]MONE(M)CARD'!ES77=\"\",\"\",'[2]MONE(M)CARD'!ES77)","v":"n.d."},{"$f":"IF('[2]MONE(M)CARD'!EV77=\"\",\"\",'[2]MONE(M)CARD'!EV77)","v":"n.d."},{"$f":"IF('[2]MONE(M)CARD'!EZ77=\"\",\"\",'[2]MONE(M)CARD'!EZ77)","v":"n.d."},{"$f":"IF('[2]MONE(M)CAPARD'!FC77=\"\",\"\",'[2]MONE(M)CAPARD'!FC77)","v":"n.d."},{"$f":"IF('[2]MONE(M)CAPARD'!FG77=\"\",\"\",'[2]MONE(M)CAPARD'!FG77)","v":"n.d."},{"$f":"IF('[2]MONE(M)CAPARD'!FL77=\"\",\"\",'[2]MONE(M)CAPARD'!FL77)","v":"n.d."},{"$f":"IF('[2]MONE(M)CAPARD'!FO77=\"\",\"\",'[2]MONE(M)CAPARD'!FO77)","v":"n.d."},{"$f":"IF('[2]MONE(M)CAPARD'!FR77=\"\",\"\",'[2]MONE(M)CAPARD'!FR77)","v":"n.d."},{"$f":"IF('[2]MONE(M)CAPARD'!FV77=\"\",\"\",'[2]MONE(M)CAPARD'!FV77)","v":"n.d."},{"$f":"IF('[2]MONE(M)CARD'!FV77=\"\",\"\",'[2]MONE(M)CARD'!FV77)","v":""},{"$f":"IF('[2]MONE(M)CARD'!GD77=\"\",\"\",'[2]MONE(M)CARD'!GD77)","v":"n.d."},{"$f":"IF('[2]MONE(M)CARD'!GE77=\"\",\"\",'[2]MONE(M)CARD'!GE77)","v":"n.d."},"n.d.","n.d.","n.d.","n.d.","n.d.","n.d.","n.d.","n.d.",null,"n.d.","n.d.","n.d.","n.d.","n.d.",{"$f":"IF('[2]MONE(M)CAPARD'!GS77=\"\",\"\",'[2]MONE(M)CAPARD'!GS77)","v":"n.d."},{"$f":"IF('[2]MONE(M)CARD'!HA77=\"\",\"\",'[2]MONE(M)CAPARD'!HA77)","v":"n.d."},{"$f":"IF('[2]MONE(M)CAPARD'!HB77=\"\",\"\",'[2]MONE(M)CAPARD'!HB77)","v":"n.d."},"n.d.","n.d.","n.d.","n.d.","n.d.","n.d.","n.d.","n.d.","n.d.","n.d.","n.d.","n.d.","n.d.","n.d.",{"$f":"IF('[2]MONE(M)CAPARD'!AS77=\"\",\"\",'[2]MONE(M)CAPARD'!AS77)","v":"n.d."},{"$f":"IF('[2]MONE(M)CAPARD'!AT77=\"\",\"\",'[2]MONE(M)CAPARD'!AT77)","v":"n.a."},{"$f":"IF('[2]MONE(M)CAPARD'!AU77=\"\",\"\",'[2]MONE(M)CAPARD'!AU77)","v":"n.d."},{"$f":"IF('[2]MONE(M)CAPARD'!AV77=\"\",\"\",'[2]MONE(M)CAPARD'!AV77)","v":"n.d."},{"$f":"IF('[2]MONE(M)CAPARD'!AW77=\"\",\"\",'[2]MONE(M)CAPARD'!AW77)","v":"n.a."},{"$f":"IF('[2]MONE(M)CAPARD'!AX77=\"\",\"\",'[2]MONE(M)CAPARD'!AX77)","v":"n.d."},{"$f":"IF('[2]MONE(M)CAPARD'!AY77=\"\",\"\",'[2]MONE(M)CAPARD'!AY77)","v":"n.a."},{"$f":"IF('[2]FISCAL(M)'!$K77=\"\",\"\",'[2]FISCAL(M)'!$K77)","v":"n.d."},{"$f":"IF('[2]FISCAL(M)'!$L77=\"\",\"\",'[2]FISCAL(M)'!$L77)","v":"n.d."},{"$f":"IF('[2]FISCAL(M)'!$AY77=\"\",\"\",'[2]FISCAL(M)'!$AY77)","v":"n.d."},{"$f":"IF('[2]FISCAL(M)'!$BI77=\"\",\"\",'[2]FISCAL(M)'!$BI77)","v":"n.d."},{"$f":"IF('[2]FISCAL(M)'!$BS77=\"\",\"\",'[2]FISCAL(M)'!$BS77)","v":"n.d."},{"$f":"IF('[2]FISCAL(M)'!$AZ77=\"\",\"\",'[2]FISCAL(M)'!$AZ77)","v":"n.d."},{"$f":"IF('[2]FISCAL(M)'!$BJ77=\"\",\"\",'[2]FISCAL(M)'!$BJ77)","v":"n.d."},{"$f":"IF('[2]FISCAL(M)'!$BT77=\"\",\"\",'[2]FISCAL(M)'!$BT77)","v":"n.d."},{"$f":"IF('[3]MONE(M)'!$AO77=\"\",\"\",'[3]MONE(M)'!$AO77)","v":"n.d."},{"$f":"IF('[4]MONE(M)'!$AO77=\"\",\"\",'[4]MONE(M)'!$AO77)","v":"n.d."},{"$f":"IF('[5]MONE(M)'!$AO77=\"\",\"\",'[5]MONE(M)'!$AO77)","v":"n.d."},{"$f":"+'[1]MONE(M)'!$AO77","v":"n.d."},{"$f":"IF('[6]MONE(M)'!$AO77=\"\",\"\",'[6]MONE(M)'!$AO77)","v":"n.d."},{"$f":"IF('[7]MONE(M)'!$AO77=\"\",\"\",'[7]MONE(M)'!$AO77)","v":"n.d."},{"$f":"IF('[8]MONE(M)'!$AO77=\"\",\"\",'[8]MONE(M)'!$AO77)","v":"n.d."},"n.d.","n.d.","n.d.","n.d.","n.d.","n.d.","n.d.",{"$f":"IF('[2]FISCAL(M)'!$K77=\"\",\"\",'[2]FISCAL(M)'!$K77)","v":"n.d."},"n.d.","n.d.",{"$f":"IF('[2]FISCAL(M)'!$L77=\"\",\"\",'[2]FISCAL(M)'!$L77)","v":"n.d."},"n.d.","n.d.","n.d.","n.d.","n.d.","n.d.","n.d.","n.d.","n.d.","n.d.","n.d.","n.d.","n.d.","n.d.","n.d.","n.d.","n.d.","n.d."]
[1995,"septiembre","1995-septiembre",{"$f":"IF('[2]REAL IPC(M)'!$AL78=\"\",\"\",+'[2]REAL IPC(M)'!$AL78)","v":13.344155844155825},{"$f":"IF('[2]REAL IPC(M)'!$BE78=\"\",\"\",+'[2]REAL IPC(M)'!$BE78)","v":12.652959082947412},{"$f":"IF('[2]REAL IPC(M)'!$AM78=\"\",\"\",+'[2]REAL IPC(M)'!$AM78)","v":12.132898249777501},{"$f":"IF('[2]REAL IPC(M)'!$BI78=\"\",\"\",+'[2]REAL IPC(M)'!$BI78)","v":11.568234175938375},{"$f":"IF('[2]REAL IMAE(M)'!BJ78=\"\",\"\",'[2]REAL IMAE(M)'!BJ78)","v":"n.d."},{"$f":"IF('[2]REAL IMAE(M)'!BK78=\"\",\"\",'[2]REAL IMAE(M)'!BK78)","v":"n.d."},{"$f":"IF('[2]REAL IMAE(M)'!BN78=\"\",\"\",'[2]REAL IMAE(M)'!BN78)","v":"n.d."},{"$f":"IF('[2]REAL IMAE(M)'!BO78=\"\",\"\",'[2]REAL IMAE(M)'!BO78)","v":"n.d."},{"$f":"IF('[2]EXT RIN(M)'!$K78=\"\",\"\",'[2]EXT RIN(M)'!$K78)","v":"n.d."},"",{"$f":"IF('[2]EXT RIN(M)'!$L78=\"\",\"\",'[2]EXT RIN(M)'!$L78)","v":"n.d."},"",{"$f":"IF('[2]MONE(M)CARD'!EG78=\"\",\"\",'[2]MONE(M)CARD'!EG78)","v":"n.d."},{"$f":"IF('[2]MONE(M)CARD'!EK78=\"\",\"\",'[2]MONE(M)CARD'!EK78)","v":"n.d."},{"$f":"IF('[2]MONE(M)CARD'!EP78=\"\",\"\",'[2]MONE(M)CARD'!EP78)","v":"n.d."},{"$f":"IF('[2]MONE(M)CARD'!ES78=\"\",\"\",'[2]MONE(M)CARD'!ES78)","v":"n.d."},{"$f":"IF('[2]MONE(M)CARD'!EV78=\"\",\"\",'[2]MONE(M)CARD'!EV78)","v":"n.d."},{"$f":"IF('[2]MONE(M)CARD'!EZ78=\"\",\"\",'[2]MONE(M)CARD'!EZ78)","v":"n.d."},{"$f":"IF('[2]MONE(M)CAPARD'!FC78=\"\",\"\",'[2]MONE(M)CAPARD'!FC78)","v":"n.d."},{"$f":"IF('[2]MONE(M)CAPARD'!FG78=\"\",\"\",'[2]MONE(M)CAPARD'!FG78)","v":"n.d."},{"$f":"IF('[2]MONE(M)CAPARD'!FL78=\"\",\"\",'[2]MONE(M)CAPARD'!FL78)","v":"n.d."},{"$f":"IF('[2]MONE(M)CAPARD'!FO78=\"\",\"\",'[2]MONE(M)CAPARD'!FO78)","v":"n.d."},{"$f":"IF('[2]MONE(M)CAPARD'!FR78=\"\",\"\",'[2]MONE(M)CAPARD'!FR78)","v":"n.d."},{"$f":"IF('[2]MONE(M)CAPARD'!FV78=\"\",\"\",'[2]MONE(M)CAPARD'!FV78)","v":"n.d."},{"$f":"IF('[2]MONE(M)CARD'!FV78=\"\",\"\",'[2]MONE(M)CARD'!FV78)","v":""},{"$f":"IF('[2]MONE(M)CARD'!GD78=\"\",\"\",'[2]MONE(M)CARD'!GD78)","v":"n.d."},{"$f":"IF('[2]MONE(M)CARD'!GE78=\"\",\"\",'[2]MONE(M)CARD'!GE78)","v":"n.d."},"n.d.","n.d.","n.d.","n.d.","n.d.",{"$f":"IFERROR(+AF71+AH71,\"n.d.\")","v":"n.d."},"n.d.","n.d.",null,"n.d.","n.d.","n.d.","n.d.","n.d.",{"$f":"IF('[2]MONE(M)CAPARD'!GS78=\"\",\"\",'[2]MONE(M)CAPARD'!GS78)","v":"n.d."},{"$f":"IF('[2]MONE(M)CARD'!HA78=\"\",\"\",'[2]MONE(M)CAPARD'!HA78)","v":"n.d."},{"$f":"IF('[2]MONE(M)CAPARD'!HB78=\"\",\"\",'[2]MONE(M)CAPARD'!HB78)","v":"n.d."},"n.d.","n.d.","n.d.","n.d.","n.d.","n.d.","n.d.","n.d.","n.d.","n.d.","n.d.","n.d.","n.d.","n.d.",{"$f":"IF('[2]MONE(M)CAPARD'!AS78=\"\",\"\",'[2]MONE(M)CAPARD'!AS78)","v":"n.d."},{"$f":"IF('[2]MONE(M)CAPARD'!AT78=\"\",\"\",'[2]MONE(M)CAPARD'!AT78)","v":"n.a."},{"$f":"IF('[2]MONE(M)CAPARD'!AU78=\"\",\"\",'[2]MONE(M)CAPARD'!AU78)","v":"n.d."},{"$f":"IF('[2]MONE(M)CAPARD'!AV78=\"\",\"\",'[2]MONE(M)CAPARD'!AV78)","v":"n.d."},{"$f":"IF('[2]MONE(M)CAPARD'!AW78=\"\",\"\",'[2]MONE(M)CAPARD'!AW78)","v":"n.a."},{"$f":"IF('[2]MONE(M)CAPARD'!AX78=\"\",\"\",'[2]MONE(M)CAPARD'!AX78)","v":"n.d."},{"$f":"IF('[2]MONE(M)CAPARD'!AY78=\"\",\"\",'[2]MONE(M)CAPARD'!AY78)","v":"n.a."},{"$f":"IF('[2]FISCAL(M)'!$K78=\"\",\"\",'[2]FISCAL(M)'!$K78)","v":"n.d."},{"$f":"IF('[2]FISCAL(M)'!$L78=\"\",\"\",'[2]FISCAL(M)'!$L78)","v":"n.d."},{"$f":"IF('[2]FISCAL(M)'!$AY78=\"\",\"\",'[2]FISCAL(M)'!$AY78)","v":"n.d."},{"$f":"IF('[2]FISCAL(M)'!$BI78=\"\",\"\",'[2]FISCAL(M)'!$BI78)","v":"n.d."},{"$f":"IF('[2]FISCAL(M)'!$BS78=\"\",\"\",'[2]FISCAL(M)'!$BS78)","v":"n.d."},{"$f":"IF('[2]FISCAL(M)'!$AZ78=\"\",\"\",'[2]FISCAL(M)'!$AZ78)","v":"n.d."},{"$f":"IF('[2]FISCAL(M)'!$BJ78=\"\",\"\",'[2]FISCAL(M)'!$BJ78)","v":"n.d."},{"$f":"IF('[2]FISCAL(M)'!$BT78=\"\",\"\",'[2]FISCAL(M)'!$BT78)","v":"n.d."},{"$f":"IF('[3]MONE(M)'!$AO78=\"\",\"\",'[3]MONE(M)'!$AO78)","v":"n.d."},{"$f":"IF('[4]MONE(M)'!$AO78=\"\",\"\",'[4]MONE(M)'!$AO78)","v":"n.d."},{"$f":"IF('[5]MONE(M)'!$AO78=\"\",\"\",'[5]MONE(M)'!$AO78)","v":"n.d."},{"$f":"+'[1]MONE(M)'!$AO78","v":"n.d."},{"$f":"IF('[6]MONE(M)'!$AO78=\"\",\"\",'[6]MONE(M)'!$AO78)","v":"n.d."},{"$f":"IF('[7]MONE(M)'!$AO78=\"\",\"\",'[7]MONE(M)'!$AO78)","v":"n.d."},{"$f":"IF('[8]MONE(M)'!$AO78=\"\",\"\",'[8]MONE(M)'!$AO78)","v":"n.d."},"n.d.","n.d.","n.d.","n.d.","n.d.","n.d.","n.d.",{"$f":"IF('[2]FISCAL(M)'!$K78=\"\",\"\",'[2]FISCAL(M)'!$K78)","v":"n.d."},"n.d.","n.d.",{"$f":"IF('[2]FISCAL(M)'!$L78=\"\",\"\",'[2]FISCAL(M)'!$L78)","v":"n.d."},"n.d.","n.d.","n.d.","n.d.","n.d.","n.d.","n.d.","n.d.","n.d.","n.d.","n.d.","n.d.","n.d.","n.d.","n.d.","n.d.","n.d.","n.d."]
[1995,"octubre","1995-octubre",{"$f":"IF('[2]REAL IPC(M)'!$AL79=\"\",\"\",+'[2]REAL IPC(M)'!$AL79)","v":13.645099295323515},{"$f":"IF('[2]REAL IPC(M)'!$BE79=\"\",\"\",+'[2]REAL IPC(M)'!$BE79)","v":12.490054712453546},{"$f":"IF('[2]REAL IPC(M)'!$AM79=\"\",\"\",+'[2]REAL IPC(M)'!$AM79)","v":12.393788455903888},{"$f":"IF('[2]REAL IPC(M)'!$BI79=\"\",\"\",+'[2]REAL IPC(M)'!$BI79)","v":11.427093331880233},{"$f":"IF('[2]REAL IMAE(M)'!BJ79=\"\",\"\",'[2]REAL IMAE(M)'!BJ79)","v":"n.d."},{"$f":"IF('[2]REAL IMAE(M)'!BK79=\"\",\"\",'[2]REAL IMAE(M)'!BK79)","v":"n.d."},{"$f":"IF('[2]REAL IMAE(M)'!BN79=\"\",\"\",'[2]REAL IMAE(M)'!BN79)","v":"n.d."},{"$f":"IF('[2]REAL IMAE(M)'!BO79=\"\",\"\",'[2]REAL IMAE(M)'!BO79)","v":"n.d."},{"$f":"IF('[2]EXT RIN(M)'!$K79=\"\",\"\",'[2]EXT RIN(M)'!$K79)","v":"n.d."},"",{"$f":"IF('[2]EXT RIN(M)'!$L79=\"\",\"\",'[2]EXT RIN(M)'!$L79)","v":"n.d."},"",{"$f":"IF('[2]MONE(M)CARD'!EG79=\"\",\"\",'[2]MONE(M)CARD'!EG79)","v":"n.d."},{"$f":"IF('[2]MONE(M)CARD'!EK79=\"\",\"\",'[2]MONE(M)CARD'!EK79)","v":"n.d."},{"$f":"IF('[2]MONE(M)CARD'!EP79=\"\",\"\",'[2]MONE(M)CARD'!EP79)","v":"n.d."},{"$f":"IF('[2]MONE(M)CARD'!ES79=\"\",\"\",'[2]MONE(M)CARD'!ES79)","v":"n.d."},{"$f":"IF('[2]MONE(M)CARD'!EV79=\"\",\"\",'[2]MONE(M)CARD'!EV79)","v":"n.d."},{"$f":"IF('[2]MONE(M)CARD'!EZ79=\"\",\"\",'[2]MONE(M)CARD'!EZ79)","v":"n.d."},{"$f":"IF('[2]MONE(M)CAPARD'!FC79=\"\",\"\",'[2]MONE(M)CAPARD'!FC79)","v":"n.d."},{"$f":"IF('[2]MONE(M)CAPARD'!FG79=\"\",\"\",'[2]MONE(M)CAPARD'!FG79)","v":"n.d."},{"$f":"IF('[2]MONE(M)CAPARD'!FL79=\"\",\"\",'[2]MONE(M)CAPARD'!FL79)","v":"n.d."},{"$f":"IF('[2]MONE(M)CAPARD'!FO79=\"\",\"\",'[2]MONE(M)CAPARD'!FO79)","v":"n.d."},{"$f":"IF('[2]MONE(M)CAPARD'!FR79=\"\",\"\",'[2]MONE(M)CAPARD'!FR79)","v":"n.d."},{"$f":"IF('[2]MONE(M)CAPARD'!FV79=\"\",\"\",'[2]MONE(M)CAPARD'!FV79)","v":"n.d."},{"$f":"IF('[2]MONE(M)CARD'!FV79=\"\",\"\",'[2]MONE(M)CARD'!FV79)","v":""},{"$f":"IF('[2]MONE(M)CARD'!GD79=\"\",\"\",'[2]MONE(M)CARD'!GD79)","v":"n.d."},{"$f":"IF('[2]MONE(M)CARD'!GE79=\"\",\"\",'[2]MONE(M)CARD'!GE79)","v":"n.d."},"n.d.","n.d.","n.d.","n.d.","n.d.","n.d.","n.d.","n.d.",null,"n.d.","n.d.","n.d.","n.d.","n.d.",{"$f":"IF('[2]MONE(M)CAPARD'!GS79=\"\",\"\",'[2]MONE(M)CAPARD'!GS79)","v":"n.d."},{"$f":"IF('[2]MONE(M)CARD'!HA79=\"\",\"\",'[2]MONE(M)CAPARD'!HA79)","v":"n.d."},{"$f":"IF('[2]MONE(M)CAPARD'!HB79=\"\",\"\",'[2]MONE(M)CAPARD'!HB79)","v":"n.d."},"n.d.","n.d.","n.d.","n.d.","n.d.","n.d.","n.d.","n.d.","n.d.","n.d.","n.d.","n.d.","n.d.","n.d.",{"$f":"IF('[2]MONE(M)CAPARD'!AS79=\"\",\"\",'[2]MONE(M)CAPARD'!AS79)","v":"n.d."},{"$f":"IF('[2]MONE(M)CAPARD'!AT79=\"\",\"\",'[2]MONE(M)CAPARD'!AT79)","v":"n.a."},{"$f":"IF('[2]MONE(M)CAPARD'!AU79=\"\",\"\",'[2]MONE(M)CAPARD'!AU79)","v":"n.d."},{"$f":"IF('[2]MONE(M)CAPARD'!AV79=\"\",\"\",'[2]MONE(M)CAPARD'!AV79)","v":"n.d."},{"$f":"IF('[2]MONE(M)CAPARD'!AW79=\"\",\"\",'[2]MONE(M)CAPARD'!AW79)","v":"n.a."},{"$f":"IF('[2]MONE(M)CAPARD'!AX79=\"\",\"\",'[2]MONE(M)CAPARD'!AX79)","v":"n.d."},{"$f":"IF('[2]MONE(M)CAPARD'!AY79=\"\",\"\",'[2]MONE(M)CAPARD'!AY79)","v":"n.a."},{"$f":"IF('[2]FISCAL(M)'!$K79=\"\",\"\",'[2]FISCAL(M)'!$K79)","v":"n.d."},{"$f":"IF('[2]FISCAL(M)'!$L79=\"\",\"\",'[2]FISCAL(M)'!$L79)","v":"n.d."},{"$f":"IF('[2]FISCAL(M)'!$AY79=\"\",\"\",'[2]FISCAL(M)'!$AY79)","v":"n.d."},{"$f":"IF('[2]FISCAL(M)'!$BI79=\"\",\"\",'[2]FISCAL(M)'!$BI79)","v":"n.d."},{"$f":"IF('[2]FISCAL(M)'!$BS79=\"\",\"\",'[2]FISCAL(M)'!$BS79)","v":"n.d."},{"$f":"IF('[2]FISCAL(M)'!$AZ79=\"\",\"\",'[2]FISCAL(M)'!$AZ79)","v":"n.d."},{"$f":"IF('[2]FISCAL(M)'!$BJ79=\"\",\"\",'[2]FISCAL(M)'!$BJ79)","v":"n.d."},{"$f":"IF('[2]FISCAL(M)'!$BT79=\"\",\"\",'[2]FISCAL(M)'!$BT79)","v":"n.d."},{"$f":"IF('[3]MONE(M)'!$AO79=\"\",\"\",'[3]MONE(M)'!$AO79)","v":"n.d."},{"$f":"IF('[4]MONE(M)'!$AO79=\"\",\"\",'[4]MONE(M)'!$AO79)","v":"n.d."},{"$f":"IF('[5]MONE(M)'!$AO79=\"\",\"\",'[5]MONE(M)'!$AO79)","v":"n.d."},{"$f":"+'[1]MONE(M)'!$AO79","v":"n.d."},{"$f":"IF('[6]MONE(M)'!$AO79=\"\",\"\",'[6]MONE(M)'!$AO79)","v":"n.d."},{"$f":"IF('[7]MONE(M)'!$AO79=\"\",\"\",'[7]MONE(M)'!$AO79)","v":"n.d."},{"$f":"IF('[8]MONE(M)'!$AO79=\"\",\"\",'[8]MONE(M)'!$AO79)","v":"n.d."},"n.d.","n.d.","n.d.","n.d.","n.d.","n.d.","n.d.",{"$f":"IF('[2]FISCAL(M)'!$K79=\"\",\"\",'[2]FISCAL(M)'!$K79)","v":"n.d."},"n.d.","n.d.",{"$f":"IF('[2]FISCAL(M)'!$L79=\"\",\"\",'[2]FISCAL(M)'!$L79)","v":"n.d."},"n.d.","n.d.","n.d.","n.d.","n.d.","n.d.","n.d.","n.d.","n.d.","n.d.","n.d.","n.d.","n.d.","n.d.","n.d.","n.d.","n.d.","n.d."]
[1995,"noviembre","1995-noviembre",{"$f":"IF('[2]REAL IPC(M)'!$AL80=\"\",\"\",+'[2]REAL IPC(M)'!$AL80)","v":13.834491471888821},{"$f":"IF('[2]REAL IPC(M)'!$BE80=\"\",\"\",+'[2]REAL IPC(M)'!$BE80)","v":12.326717697976264},{"$f":"IF('[2]REAL IPC(M)'!$AM80=\"\",\"\",+'[2]REAL IPC(M)'!$AM80)","v":12.525310963262948},{"$f":"IF('[2]REAL IPC(M)'!$BI80=\"\",\"\",+'[2]REAL IPC(M)'!$BI80)","v":11.284805389590534},{"$f":"IF('[2]REAL IMAE(M)'!BJ80=\"\",\"\",'[2]REAL IMAE(M)'!BJ80)","v":"n.d."},{"$f":"IF('[2]REAL IMAE(M)'!BK80=\"\",\"\",'[2]REAL IMAE(M)'!BK80)","v":"n.d."},{"$f":"IF('[2]REAL IMAE(M)'!BN80=\"\",\"\",'[2]REAL IMAE(M)'!BN80)","v":"n.d."},{"$f":"IF('[2]REAL IMAE(M)'!BO80=\"\",\"\",'[2]REAL IMAE(M)'!BO80)","v":"n.d."},{"$f":"IF('[2]EXT RIN(M)'!$K80=\"\",\"\",'[2]EXT RIN(M)'!$K80)","v":"n.d."},"",{"$f":"IF('[2]EXT RIN(M)'!$L80=\"\",\"\",'[2]EXT RIN(M)'!$L80)","v":"n.d."},"",{"$f":"IF('[2]MONE(M)CARD'!EG80=\"\",\"\",'[2]MONE(M)CARD'!EG80)","v":"n.d."},{"$f":"IF('[2]MONE(M)CARD'!EK80=\"\",\"\",'[2]MONE(M)CARD'!EK80)","v":"n.d."},{"$f":"IF('[2]MONE(M)CARD'!EP80=\"\",\"\",'[2]MONE(M)CARD'!EP80)","v":"n.d."},{"$f":"IF('[2]MONE(M)CARD'!ES80=\"\",\"\",'[2]MONE(M)CARD'!ES80)","v":"n.d."},{"$f":"IF('[2]MONE(M)CARD'!EV80=\"\",\"\",'[2]MONE(M)CARD'!EV80)","v":"n.d."},{"$f":"IF('[2]MONE(M)CARD'!EZ80=\"\",\"\",'[2]MONE(M)CARD'!EZ80)","v":"n.d."},{"$f":"IF('[2]MONE(M)CAPARD'!FC80=\"\",\"\",'[2]MONE(M)CAPARD'!FC80)","v":"n.d."},{"$f":"IF('[2]MONE(M)CAPARD'!FG80=\"\",\"\",'[2]MONE(M)CAPARD'!FG80)","v":"n.d."},{"$f":"IF('[2]MONE(M)CAPARD'!FL80=\"\",\"\",'[2]MONE(M)CAPARD'!FL80)","v":"n.d."},{"$f":"IF('[2]MONE(M)CAPARD'!FO80=\"\",\"\",'[2]MONE(M)CAPARD'!FO80)","v":"n.d."},{"$f":"IF('[2]MONE(M)CAPARD'!FR80=\"\",\"\",'[2]MONE(M)CAPARD'!FR80)","v":"n.d."},{"$f":"IF('[2]MONE(M)CAPARD'!FV80=\"\",\"\",'[2]MONE(M)CAPARD'!FV80)","v":"n.d."},{"$f":"IF('[2]MONE(M)CARD'!FV80=\"\",\"\",'[2]MONE(M)CARD'!FV80)","v":""},{"$f":"IF('[2]MONE(M)CARD'!GD80=\"\",\"\",'[2]MONE(M)CARD'!GD80)","v":"n.d."},{"$f":"IF('[2]MONE(M)CARD'!GE80=\"\",\"\",'[2]MONE(M)CARD'!GE80)","v":"n.d."},"n.d.","n.d.","n.d.","n.d.","n.d.","n.d.","n.d.","n.d.",null,"n.d.","n.d.","n.d.","n.d.","n.d.",{"$f":"IF('[2]MONE(M)CAPARD'!GS80=\"\",\"\",'[2]MONE(M)CAPARD'!GS80)","v":"n.d."},{"$f":"IF('[2]MONE(M)CARD'!HA80=\"\",\"\",'[2]MONE(M)CAPARD'!HA80)","v":"n.d."},{"$f":"IF('[2]MONE(M)CAPARD'!HB80=\"\",\"\",'[2]MONE(M)CAPARD'!HB80)","v":"n.d."},"n.d.","n.d.","n.d.","n.d.","n.d.","n.d.","n.d.","n.d.","n.d.","n.d.","n.d.","n.d.","n.d.","n.d.",{"$f":"IF('[2]MONE(M)CAPARD'!AS80=\"\",\"\",'[2]MONE(M)CAPARD'!AS80)","v":"n.d."},{"$f":"IF('[2]MONE(M)CAPARD'!AT80=\"\",\"\",'[2]MONE(M)CAPARD'!AT80)","v":"n.a."},{"$f":"IF('[2]MONE(M)CAPARD'!AU80=\"\",\"\",'[2]MONE(M)CAPARD'!AU80)","v":"n.d."},{"$f":"IF('[2]MONE(M)CAPARD'!AV80=\"\",\"\",'[2]MONE(M)CAPARD'!AV80)","v":"n.d."},{"$f":"IF('[2]MONE(M)CAPARD'!AW80=\"\",\"\",'[2]MONE(M)CAPARD'!AW80)","v":"n.a."},{"$f":"IF('[2]MONE(M)CAPARD'!AX80=\"\",\"\",'[2]MONE(M)CAPARD'!AX80)","v":"n.d."},{"$f":"IF('[2]MONE(M)CAPARD'!AY80=\"\",\"\",'[2]MONE(M)CAPARD'!AY80)","v":"n.a."},{"$f":"IF('[2]FISCAL(M)'!$K80=\"\",\"\",'[2]FISCAL(M)'!$K80)","v":"n.d."},{"$f":"IF('[2]FISCAL(M)'!$L80=\"\",\"\",'[2]FISCAL(M)'!$L80)","v":"n.d."},{"$f":"IF('[2]FISCAL(M)'!$AY80=\"\",\"\",'[2]FISCAL(M)'!$AY80)","v":"n.d."},{"$f":"IF('[2]FISCAL(M)'!$BI80=\"\",\"\",'[2]FISCAL(M)'!$BI80)","v":"n.d."},{"$f":"IF('[2]FISCAL(M)'!$BS80=\"\",\"\",'[2]FISCAL(M)'!$BS80)","v":"n.d."},{"$f":"IF('[2]FISCAL(M)'!$AZ80=\"\",\"\",'[2]FISCAL(M)'!$AZ80)","v":"n.d."},{"$f":"IF('[2]FISCAL(M)'!$BJ80=\"\",\"\",'[2]FISCAL(M)'!$BJ80)","v":"n.d."},{"$f":"IF('[2]FISCAL(M)'!$BT80=\"\",\"\",'[2]FISCAL(M)'!$BT80)","v":"n.d."},{"$f":"IF('[3]MONE(M)'!$AO80=\"\",\"\",'[3]MONE(M)'!$AO80)","v":"n.d."},{"$f":"IF('[4]MONE(M)'!$AO80=\"\",\"\",'[4]MONE(M)'!$AO80)","v":"n.d."},{"$f":"IF('[5]MONE(M)'!$AO80=\"\",\"\",'[5]MONE(M)'!$AO80)","v":"n.d."},{"$f":"+'[1]MONE(M)'!$AO80","v":"n.d."},{"$f":"IF('[6]MONE(M)'!$AO80=\"\",\"\",'[6]MONE(M)'!$AO80)","v":"n.d."},{"$f":"IF('[7]MONE(M)'!$AO80=\"\",\"\",'[7]MONE(M)'!$AO80)","v":"n.d."},{"$f":"IF('[8]MONE(M)'!$AO80=\"\",\"\",'[8]MONE(M)'!$AO80)","v":"n.d."},"n.d.","n.d.","n.d.","n.d.","n.d.","n.d.","n.d.",{"$f":"IF('[2]FISCAL(M)'!$K80=\"\",\"\",'[2]FISCAL(M)'!$K80)","v":"n.d."},"n.d.","n.d.",{"$f":"IF('[2]FISCAL(M)'!$L80=\"\",\"\",'[2]FISCAL(M)'!$L80)","v":"n.d."},"n.d.","n.d.","n.d.","n.d.","n.d.","n.d.","n.d.","n.d.","n.d.","n.d.","n.d.","n.d.","n.d.","n.d.","n.d.","n.d.","n.d.","n.d."]
[1995,"diciembre","1995-diciembre",{"$f":"IF('[2]REAL IPC(M)'!$AL81=\"\",\"\",+'[2]REAL IPC(M)'!$AL81)","v":12.647607209446864},{"$f":"IF('[2]REAL IPC(M)'!$BE81=\"\",\"\",+'[2]REAL IPC(M)'!$BE81)","v":12.162865019164215},{"$f":"IF('[2]REAL IPC(M)'!$AM81=\"\",\"\",+'[2]REAL IPC(M)'!$AM81)","v":11.513251638643474},{"$f":"IF('[2]REAL IPC(M)'!$BI81=\"\",\"\",+'[2]REAL IPC(M)'!$BI81)","v":11.141298507639764},{"$f":"IF('[2]REAL IMAE(M)'!BJ81=\"\",\"\",'[2]REAL IMAE(M)'!BJ81)","v":"n.d."},{"$f":"IF('[2]REAL IMAE(M)'!BK81=\"\",\"\",'[2]REAL IMAE(M)'!BK81)","v":"n.d."},{"$f":"IF('[2]REAL IMAE(M)'!BN81=\"\",\"\",'[2]REAL IMAE(M)'!BN81)","v":"n.d."},{"$f":"IF('[2]REAL IMAE(M)'!BO81=\"\",\"\",'[2]REAL IMAE(M)'!BO81)","v":"n.d."},{"$f":"IF('[2]EXT RIN(M)'!$K81=\"\",\"\",'[2]EXT RIN(M)'!$K81)","v":"n.d."},"n.d.",{"$f":"IF('[2]EXT RIN(M)'!$L81=\"\",\"\",'[2]EXT RIN(M)'!$L81)","v":"n.d."},"n.d.",{"$f":"IF('[2]MONE(M)CARD'!EG81=\"\",\"\",'[2]MONE(M)CARD'!EG81)","v":"n.d."},{"$f":"IF('[2]MONE(M)CARD'!EK81=\"\",\"\",'[2]MONE(M)CARD'!EK81)","v":"n.d."},{"$f":"IF('[2]MONE(M)CARD'!EP81=\"\",\"\",'[2]MONE(M)CARD'!EP81)","v":"n.d."},{"$f":"IF('[2]MONE(M)CARD'!ES81=\"\",\"\",'[2]MONE(M)CARD'!ES81)","v":"n.d."},{"$f":"IF('[2]MONE(M)CARD'!EV81=\"\",\"\",'[2]MONE(M)CARD'!EV81)","v":"n.d."},{"$f":"IF('[2]MONE(M)CARD'!EZ81=\"\",\"\",'[2]MONE(M)CARD'!EZ81)","v":"n.d."},{"$f":"IF('[2]MONE(M)CAPARD'!FC81=\"\",\"\",'[2]MONE(M)CAPARD'!FC81)","v":"n.d."},{"$f":"IF('[2]MONE(M)CAPARD'!FG81=\"\",\"\",'[2]MONE(M)CAPARD'!FG81)","v":"n.d."},{"$f":"IF('[2]MONE(M)CAPARD'!FL81=\"\",\"\",'[2]MONE(M)CAPARD'!FL81)","v":"n.d."},{"$f":"IF('[2]MONE(M)CAPARD'!FO81=\"\",\"\",'[2]MONE(M)CAPARD'!FO81)","v":"n.d."},{"$f":"IF('[2]MONE(M)CAPARD'!FR81=\"\",\"\",'[2]MONE(M)CAPARD'!FR81)","v":"n.d."},{"$f":"IF('[2]MONE(M)CAPARD'!FV81=\"\",\"\",'[2]MONE(M)CAPARD'!FV81)","v":"n.d."},{"$f":"IF('[2]MONE(M)CARD'!FV81=\"\",\"\",'[2]MONE(M)CARD'!FV81)","v":""},{"$f":"IF('[2]MONE(M)CARD'!GD81=\"\",\"\",'[2]MONE(M)CARD'!GD81)","v":"n.d."},{"$f":"IF('[2]MONE(M)CARD'!GE81=\"\",\"\",'[2]MONE(M)CARD'!GE81)","v":"n.d."},"n.d.","n.d.","n.d.","n.d.","n.d.","n.d.","n.d.","n.d.",null,"n.d.","n.d.","n.d.","n.d.","n.d.",{"$f":"IF('[2]MONE(M)CAPARD'!GS81=\"\",\"\",'[2]MONE(M)CAPARD'!GS81)","v":"n.d."},{"$f":"IF('[2]MONE(M)CARD'!HA81=\"\",\"\",'[2]MONE(M)CAPARD'!HA81)","v":"n.d."},{"$f":"IF('[2]MONE(M)CAPARD'!HB81=\"\",\"\",'[2]MONE(M)CAPARD'!HB81)","v":"n.d."},"n.d.","n.d.","n.d.","n.d.","n.d.","n.d.","n.d.","n.d.","n.d.","n.d.","n.d.","n.d.","n.d.","n.d.",{"$f":"IF('[2]MONE(M)CAPARD'!AS81=\"\",\"\",'[2]MONE(M)CAPARD'!AS81)","v":"n.d."},{"$f":"IF('[2]MONE(M)CAPARD'!AT81=\"\",\"\",'[2]MONE(M)CAPARD'!AT81)","v":"n.a."},{"$f":"IF('[2]MONE(M)CAPARD'!AU81=\"\",\"\",'[2]MONE(M)CAPARD'!AU81)","v":"n.d."},{"$f":"IF('[2]MONE(M)CAPARD'!AV81=\"\",\"\",'[2]MONE(M)CAPARD'!AV81)","v":"n.d."},{"$f":"IF('[2]MONE(M)CAPARD'!AW81=\"\",\"\",'[2]MONE(M)CAPARD'!AW81)","v":"n.a."},{"$f":"IF('[2]MONE(M)CAPARD'!AX81=\"\",\"\",'[2]MONE(M)CAPARD'!AX81)","v":"n.d."},{"$f":"IF('[2]MONE(M)CAPARD'!AY81=\"\",\"\",'[2]MONE(M)CAPARD'!AY81)","v":"n.a."},{"$f":"IF('[2]FISCAL(M)'!$K81=\"\",\"\",'[2]FISCAL(M)'!$K81)","v":"n.d."},{"$f":"IF('[2]FISCAL(M)'!$L81=\"\",\"\",'[2]FISCAL(M)'!$L81)","v":"n.d."},{"$f":"IF('[2]FISCAL(M)'!$AY81=\"\",\"\",'[2]FISCAL(M)'!$AY81)","v":"n.d."},{"$f":"IF('[2]FISCAL(M)'!$BI81=\"\",\"\",'[2]FISCAL(M)'!$BI81)","v":"n.d."},{"$f":"IF('[2]FISCAL(M)'!$BS81=\"\",\"\",'[2]FISCAL(M)'!$BS81)","v":"n.d."},{"$f":"IF('[2]FISCAL(M)'!$AZ81=\"\",\"\",'[2]FISCAL(M)'!$AZ81)","v":"n.d."},{"$f":"IF('[2]FISCAL(M)'!$BJ81=\"\",\"\",'[2]FISCAL(M)'!$BJ81)","v":"n.d."},{"$f":"IF('[2]FISCAL(M)'!$BT81=\"\",\"\",'[2]FISCAL(M)'!$BT81)","v":"n.d."},{"$f":"IF('[3]MONE(M)'!$AO81=\"\",\"\",'[3]MONE(M)'!$AO81)","v":"n.d."},{"$f":"IF('[4]MONE(M)'!$AO81=\"\",\"\",'[4]MONE(M)'!$AO81)","v":"n.d."},{"$f":"IF('[5]MONE(M)'!$AO81=\"\",\"\",'[5]MONE(M)'!$AO81)","v":"n.d."},{"$f":"+'[1]MONE(M)'!$AO81","v":"n.d."},{"$f":"IF('[6]MONE(M)'!$AO81=\"\",\"\",'[6]MONE(M)'!$AO81)","v":"n.d."},{"$f":"IF('[7]MONE(M)'!$AO81=\"\",\"\",'[7]MONE(M)'!$AO81)","v":"n.d."},{"$f":"IF('[8]MONE(M)'!$AO81=\"\",\"\",'[8]MONE(M)'!$AO81)","v":"n.d."},"n.d.","n.d.","n.d.","n.d.","n.d.","n.d.","n.d.",{"$f":"IF('[2]FISCAL(M)'!$K81=\"\",\"\",'[2]FISCAL(M)'!$K81)","v":"n.d."},"n.d.","n.d.",{"$f":"IF('[2]FISCAL(M)'!$L81=\"\",\"\",'[2]FISCAL(M)'!$L81)","v":"n.d."},"n.d.","n.d.","n.d.","n.d.","n.d.","n.d.","n.d.","n.d.","n.d.","n.d.","n.d.","n.d.","n.d.","n.d.","n.d.","n.d.","n.d.","n.d."]
[1996,"enero","1996-enero",{"$f":"IF('[2]REAL IPC(M)'!$AL82=\"\",\"\",+'[2]REAL IPC(M)'!$AL82)","v":12.027068594278688},{"$f":"IF('[2]REAL IPC(M)'!$BE82=\"\",\"\",+'[2]REAL IPC(M)'!$BE82)","v":11.998493730214289},{"$f":"IF('[2]REAL IPC(M)'!$AM82=\"\",\"\",+'[2]REAL IPC(M)'!$AM82)","v":11.010728402032743},{"$f":"IF('[2]REAL IPC(M)'!$BI82=\"\",\"\",+'[2]REAL IPC(M)'!$BI82)","v":10.99657527756419},{"$f":"IF('[2]REAL IMAE(M)'!BJ82=\"\",\"\",'[2]REAL IMAE(M)'!BJ82)","v":"n.d."},{"$f":"IF('[2]REAL IMAE(M)'!BK82=\"\",\"\",'[2]REAL IMAE(M)'!BK82)","v":"n.d."},{"$f":"IF('[2]REAL IMAE(M)'!BN82=\"\",\"\",'[2]REAL IMAE(M)'!BN82)","v":"n.d."},{"$f":"IF('[2]REAL IMAE(M)'!BO82=\"\",\"\",'[2]REAL IMAE(M)'!BO82)","v":"n.d."},{"$f":"IF('[2]EXT RIN(M)'!$K82=\"\",\"\",'[2]EXT RIN(M)'!$K82)","v":"n.d."},"",{"$f":"IF('[2]EXT RIN(M)'!$L82=\"\",\"\",'[2]EXT RIN(M)'!$L82)","v":"n.d."},"",{"$f":"IF('[2]MONE(M)CARD'!EG82=\"\",\"\",'[2]MONE(M)CARD'!EG82)","v":"n.d."},{"$f":"IF('[2]MONE(M)CARD'!EK82=\"\",\"\",'[2]MONE(M)CARD'!EK82)","v":"n.d."},{"$f":"IF('[2]MONE(M)CARD'!EP82=\"\",\"\",'[2]MONE(M)CARD'!EP82)","v":"n.d."},{"$f":"IF('[2]MONE(M)CARD'!ES82=\"\",\"\",'[2]MONE(M)CARD'!ES82)","v":"n.d."},{"$f":"IF('[2]MONE(M)CARD'!EV82=\"\",\"\",'[2]MONE(M)CARD'!EV82)","v":"n.d."},{"$f":"IF('[2]MONE(M)CARD'!EZ82=\"\",\"\",'[2]MONE(M)CARD'!EZ82)","v":"n.d."},{"$f":"IF('[2]MONE(M)CAPARD'!FC82=\"\",\"\",'[2]MONE(M)CAPARD'!FC82)","v":"n.d."},{"$f":"IF('[2]MONE(M)CAPARD'!FG82=\"\",\"\",'[2]MONE(M)CAPARD'!FG82)","v":"n.d."},{"$f":"IF('[2]MONE(M)CAPARD'!FL82=\"\",\"\",'[2]MONE(M)CAPARD'!FL82)","v":"n.d."},{"$f":"IF('[2]MONE(M)CAPARD'!FO82=\"\",\"\",'[2]MONE(M)CAPARD'!FO82)","v":"n.d."},{"$f":"IF('[2]MONE(M)CAPARD'!FR82=\"\",\"\",'[2]MONE(M)CAPARD'!FR82)","v":"n.d."},{"$f":"IF('[2]MONE(M)CAPARD'!FV82=\"\",\"\",'[2]MONE(M)CAPARD'!FV82)","v":"n.d."},{"$f":"IF('[2]MONE(M)CARD'!FV82=\"\",\"\",'[2]MONE(M)CARD'!FV82)","v":""},{"$f":"IF('[2]MONE(M)CARD'!GD82=\"\",\"\",'[2]MONE(M)CARD'!GD82)","v":"n.d."},{"$f":"IF('[2]MONE(M)CARD'!GE82=\"\",\"\",'[2]MONE(M)CARD'!GE82)","v":"n.d."},"n.d.","n.d.","n.d.","n.d.","n.d.","n.d.","n.d.","n.d.",null,"n.d.","n.d.","n.d.","n.d.","n.d.",{"$f":"IF('[2]MONE(M)CAPARD'!GS82=\"\",\"\",'[2]MONE(M)CAPARD'!GS82)","v":"n.d."},{"$f":"IF('[2]MONE(M)CARD'!HA82=\"\",\"\",'[2]MONE(M)CAPARD'!HA82)","v":"n.d."},{"$f":"IF('[2]MONE(M)CAPARD'!HB82=\"\",\"\",'[2]MONE(M)CAPARD'!HB82)","v":"n.d."},"n.d.","n.d.","n.d.","n.d.","n.d.","n.d.","n.d.","n.d.","n.d.","n.d.","n.d.","n.d.","n.d.","n.d.",{"$f":"IF('[2]MONE(M)CAPARD'!AS82=\"\",\"\",'[2]MONE(M)CAPARD'!AS82)","v":"n.d."},{"$f":"IF('[2]MONE(M)CAPARD'!AT82=\"\",\"\",'[2]MONE(M)CAPARD'!AT82)","v":"n.a."},{"$f":"IF('[2]MONE(M)CAPARD'!AU82=\"\",\"\",'[2]MONE(M)CAPARD'!AU82)","v":"n.d."},{"$f":"IF('[2]MONE(M)CAPARD'!AV82=\"\",\"\",'[2]MONE(M)CAPARD'!AV82)","v":"n.d."},{"$f":"IF('[2]MONE(M)CAPARD'!AW82=\"\",\"\",'[2]MONE(M)CAPARD'!AW82)","v":"n.a."},{"$f":"IF('[2]MONE(M)CAPARD'!AX82=\"\",\"\",'[2]MONE(M)CAPARD'!AX82)","v":"n.d."},{"$f":"IF('[2]MONE(M)CAPARD'!AY82=\"\",\"\",'[2]MONE(M)CAPARD'!AY82)","v":"n.a."},{"$f":"IF('[2]FISCAL(M)'!$K82=\"\",\"\",'[2]FISCAL(M)'!$K82)","v":"n.d."},{"$f":"IF('[2]FISCAL(M)'!$L82=\"\",\"\",'[2]FISCAL(M)'!$L82)","v":"n.d."},{"$f":"IF('[2]FISCAL(M)'!$AY82=\"\",\"\",'[2]FISCAL(M)'!$AY82)","v":"n.d."},{"$f":"IF('[2]FISCAL(M)'!$BI82=\"\",\"\",'[2]FISCAL(M)'!$BI82)","v":"n.d."},{"$f":"IF('[2]FISCAL(M)'!$BS82=\"\",\"\",'[2]FISCAL(M)'!$BS82)","v":"n.d."},{"$f":"IF('[2]FISCAL(M)'!$AZ82=\"\",\"\",'[2]FISCAL(M)'!$AZ82)","v":"n.d."},{"$f":"IF('[2]FISCAL(M)'!$BJ82=\"\",\"\",'[2]FISCAL(M)'!$BJ82)","v":"n.d."},{"$f":"IF('[2]FISCAL(M)'!$BT82=\"\",\"\",'[2]FISCAL(M)'!$BT82)","v":"n.d."},{"$f":"IF('[3]MONE(M)'!$AO82=\"\",\"\",'[3]MONE(M)'!$AO82)","v":"n.d."},{"$f":"IF('[4]MONE(M)'!$AO82=\"\",\"\",'[4]MONE(M)'!$AO82)","v":"n.d."},{"$f":"IF('[5]MONE(M)'!$AO82=\"\",\"\",'[5]MONE(M)'!$AO82)","v":"n.d."},{"$f":"+'[1]MONE(M)'!$AO82","v":"n.d."},{"$f":"IF('[6]MONE(M)'!$AO82=\"\",\"\",'[6]MONE(M)'!$AO82)","v":"n.d."},{"$f":"IF('[7]MONE(M)'!$AO82=\"\",\"\",'[7]MONE(M)'!$AO82)","v":"n.d."},{"$f":"IF('[8]MONE(M)'!$AO82=\"\",\"\",'[8]MONE(M)'!$AO82)","v":"n.d."},"n.d.","n.d.","n.d.","n.d.","n.d.","n.d.","n.d.",{"$f":"IF('[2]FISCAL(M)'!$K82=\"\",\"\",'[2]FISCAL(M)'!$K82)","v":"n.d."},"n.d.","n.d.",{"$f":"IF('[2]FISCAL(M)'!$L82=\"\",\"\",'[2]FISCAL(M)'!$L82)","v":"n.d."},"n.d.","n.d.","n.d.","n.d.","n.d.","n.d.","n.d.","n.d.","n.d.","n.d.","n.d.","n.d.","n.d.","n.d.","n.d.","n.d.","n.d.","n.d."]
[1996,"febrero","1996-febrero",{"$f":"IF('[2]REAL IPC(M)'!$AL83=\"\",\"\",+'[2]REAL IPC(M)'!$AL83)","v":11.885749385749378},{"$f":"IF('[2]REAL IPC(M)'!$BE83=\"\",\"\",+'[2]REAL IPC(M)'!$BE83)","v":11.833635525298547},{"$f":"IF('[2]REAL IPC(M)'!$AM83=\"\",\"\",+'[2]REAL IPC(M)'!$AM83)","v":10.888575458392102},{"$f":"IF('[2]REAL IPC(M)'!$BI83=\"\",\"\",+'[2]REAL IPC(M)'!$BI83)","v":10.850670631135028},{"$f":"IF('[2]REAL IMAE(M)'!BJ83=\"\",\"\",'[2]REAL IMAE(M)'!BJ83)","v":"n.d."},{"$f":"IF('[2]REAL IMAE(M)'!BK83=\"\",\"\",'[2]REAL IMAE(M)'!BK83)","v":"n.d."},{"$f":"IF('[2]REAL IMAE(M)'!BN83=\"\",\"\",'[2]REAL IMAE(M)'!BN83)","v":"n.d."},{"$f":"IF('[2]REAL IMAE(M)'!BO83=\"\",\"\",'[2]REAL IMAE(M)'!BO83)","v":"n.d."},{"$f":"IF('[2]EXT RIN(M)'!$K83=\"\",\"\",'[2]EXT RIN(M)'!$K83)","v":"n.d."},"",{"$f":"IF('[2]EXT RIN(M)'!$L83=\"\",\"\",'[2]EXT RIN(M)'!$L83)","v":"n.d."},"",{"$f":"IF('[2]MONE(M)CARD'!EG83=\"\",\"\",'[2]MONE(M)CARD'!EG83)","v":"n.d."},{"$f":"IF('[2]MONE(M)CARD'!EK83=\"\",\"\",'[2]MONE(M)CARD'!EK83)","v":"n.d."},{"$f":"IF('[2]MONE(M)CARD'!EP83=\"\",\"\",'[2]MONE(M)CARD'!EP83)","v":"n.d."},{"$f":"IF('[2]MONE(M)CARD'!ES83=\"\",\"\",'[2]MONE(M)CARD'!ES83)","v":"n.d."},{"$f":"IF('[2]MONE(M)CARD'!EV83=\"\",\"\",'[2]MONE(M)CARD'!EV83)","v":"n.d."},{"$f":"IF('[2]MONE(M)CARD'!EZ83=\"\",\"\",'[2]MONE(M)CARD'!EZ83)","v":"n.d."},{"$f":"IF('[2]MONE(M)CAPARD'!FC83=\"\",\"\",'[2]MONE(M)CAPARD'!FC83)","v":"n.d."},{"$f":"IF('[2]MONE(M)CAPARD'!FG83=\"\",\"\",'[2]MONE(M)CAPARD'!FG83)","v":"n.d."},{"$f":"IF('[2]MONE(M)CAPARD'!FL83=\"\",\"\",'[2]MONE(M)CAPARD'!FL83)","v":"n.d."},{"$f":"IF('[2]MONE(M)CAPARD'!FO83=\"\",\"\",'[2]MONE(M)CAPARD'!FO83)","v":"n.d."},{"$f":"IF('[2]MONE(M)CAPARD'!FR83=\"\",\"\",'[2]MONE(M)CAPARD'!FR83)","v":"n.d."},{"$f":"IF('[2]MONE(M)CAPARD'!FV83=\"\",\"\",'[2]MONE(M)CAPARD'!FV83)","v":"n.d."},{"$f":"IF('[2]MONE(M)CARD'!FV83=\"\",\"\",'[2]MONE(M)CARD'!FV83)","v":""},{"$f":"IF('[2]MONE(M)CARD'!GD83=\"\",\"\",'[2]MONE(M)CARD'!GD83)","v":"n.d."},{"$f":"IF('[2]MONE(M)CARD'!GE83=\"\",\"\",'[2]MONE(M)CARD'!GE83)","v":"n.d."},"n.d.","n.d.","n.d.","n.d.","n.d.","n.d.","n.d.","n.d.",null,"n.d.","n.d.","n.d.","n.d.","n.d.",{"$f":"IF('[2]MONE(M)CAPARD'!GS83=\"\",\"\",'[2]MONE(M)CAPARD'!GS83)","v":"n.d."},{"$f":"IF('[2]MONE(M)CARD'!HA83=\"\",\"\",'[2]MONE(M)CAPARD'!HA83)","v":"n.d."},{"$f":"IF('[2]MONE(M)CAPARD'!HB83=\"\",\"\",'[2]MONE(M)CAPARD'!HB83)","v":"n.d."},"n.d.","n.d.","n.d.","n.d.","n.d.","n.d.","n.d.","n.d.","n.d.","n.d.","n.d.","n.d.","n.d.","n.d.",{"$f":"IF('[2]MONE(M)CAPARD'!AS83=\"\",\"\",'[2]MONE(M)CAPARD'!AS83)","v":"n.d."},{"$f":"IF('[2]MONE(M)CAPARD'!AT83=\"\",\"\",'[2]MONE(M)CAPARD'!AT83)","v":"n.a."},{"$f":"IF('[2]MONE(M)CAPARD'!AU83=\"\",\"\",'[2]MONE(M)CAPARD'!AU83)","v":"n.d."},{"$f":"IF('[2]MONE(M)CAPARD'!AV83=\"\",\"\",'[2]MONE(M)CAPARD'!AV83)","v":"n.d."},{"$f":"IF('[2]MONE(M)CAPARD'!AW83=\"\",\"\",'[2]MONE(M)CAPARD'!AW83)","v":"n.a."},{"$f":"IF('[2]MONE(M)CAPARD'!AX83=\"\",\"\",'[2]MONE(M)CAPARD'!AX83)","v":"n.d."},{"$f":"IF('[2]MONE(M)CAPARD'!AY83=\"\",\"\",'[2]MONE(M)CAPARD'!AY83)","v":"n.a."},{"$f":"IF('[2]FISCAL(M)'!$K83=\"\",\"\",'[2]FISCAL(M)'!$K83)","v":"n.d."},{"$f":"IF('[2]FISCAL(M)'!$L83=\"\",\"\",'[2]FISCAL(M)'!$L83)","v":"n.d."},{"$f":"IF('[2]FISCAL(M)'!$AY83=\"\",\"\",'[2]FISCAL(M)'!$AY83)","v":"n.d."},{"$f":"IF('[2]FISCAL(M)'!$BI83=\"\",\"\",'[2]FISCAL(M)'!$BI83)","v":"n.d."},{"$f":"IF('[2]FISCAL(M)'!$BS83=\"\",\"\",'[2]FISCAL(M)'!$BS83)","v":"n.d."},{"$f":"IF('[2]FISCAL(M)'!$AZ83=\"\",\"\",'[2]FISCAL(M)'!$AZ83)","v":"n.d."},{"$f":"IF('[2]FISCAL(M)'!$BJ83=\"\",\"\",'[2]FISCAL(M)'!$BJ83)","v":"n.d."},{"$f":"IF('[2]FISCAL(M)'!$BT83=\"\",\"\",'[2]FISCAL(M)'!$BT83)","v":"n.d."},{"$f":"IF('[3]MONE(M)'!$AO83=\"\",\"\",'[3]MONE(M)'!$AO83)","v":"n.d."},{"$f":"IF('[4]MONE(M)'!$AO83=\"\",\"\",'[4]MONE(M)'!$AO83)","v":"n.d."},{"$f":"IF('[5]MONE(M)'!$AO83=\"\",\"\",'[5]MONE(M)'!$AO83)","v":"n.d."},{"$f":"+'[1]MONE(M)'!$AO83","v":"n.d."},{"$f":"IF('[6]MONE(M)'!$AO83=\"\",\"\",'[6]MONE(M)'!$AO83)","v":"n.d."},{"$f":"IF('[7]MONE(M)'!$AO83=\"\",\"\",'[7]MONE(M)'!$AO83)","v":"n.d."},{"$f":"IF('[8]MONE(M)'!$AO83=\"\",\"\",'[8]MONE(M)'!$AO83)","v":"n.d."},"n.d.","n.d.","n.d.","n.d.","n.d.","n.d.","n.d.",{"$f":"IF('[2]FISCAL(M)'!$K83=\"\",\"\",'[2]FISCAL(M)'!$K83)","v":"n.d."},"n.d.","n.d.",{"$f":"IF('[2]FISCAL(M)'!$L83=\"\",\"\",'[2]FISCAL(M)'!$L83)","v":"n.d."},"n.d.","n.d.","n.d.","n.d.","n.d.","n.d.","n.d.","n.d.","n.d.","n.d.","n.d.","n.d.","n.d.","n.d.","n.d.","n.d.","n.d.","n.d."]
[1996,"marzo","1996-marzo",{"$f":"IF('[2]REAL IPC(M)'!$AL84=\"\",\"\",+'[2]REAL IPC(M)'!$AL84)","v":11.771881671241236},{"$f":"IF('[2]REAL IPC(M)'!$BE84=\"\",\"\",+'[2]REAL IPC(M)'!$BE84)","v":11.668320942640943},{"$f":"IF('[2]REAL IPC(M)'!$AM84=\"\",\"\",+'[2]REAL IPC(M)'!$AM84)","v":10.790358744394624},{"$f":"IF('[2]REAL IPC(M)'!$BI84=\"\",\"\",+'[2]REAL IPC(M)'!$BI84)","v":10.70362037974002},{"$f":"IF('[2]REAL IMAE(M)'!BJ84=\"\",\"\",'[2]REAL IMAE(M)'!BJ84)","v":"n.d."},{"$f":"IF('[2]REAL IMAE(M)'!BK84=\"\",\"\",'[2]REAL IMAE(M)'!BK84)","v":"n.d."},{"$f":"IF('[2]REAL IMAE(M)'!BN84=\"\",\"\",'[2]REAL IMAE(M)'!BN84)","v":"n.d."},{"$f":"IF('[2]REAL IMAE(M)'!BO84=\"\",\"\",'[2]REAL IMAE(M)'!BO84)","v":"n.d."},{"$f":"IF('[2]EXT RIN(M)'!$K84=\"\",\"\",'[2]EXT RIN(M)'!$K84)","v":"n.d."},"",{"$f":"IF('[2]EXT RIN(M)'!$L84=\"\",\"\",'[2]EXT RIN(M)'!$L84)","v":"n.d."},"",{"$f":"IF('[2]MONE(M)CARD'!EG84=\"\",\"\",'[2]MONE(M)CARD'!EG84)","v":"n.d."},{"$f":"IF('[2]MONE(M)CARD'!EK84=\"\",\"\",'[2]MONE(M)CARD'!EK84)","v":"n.d."},{"$f":"IF('[2]MONE(M)CARD'!EP84=\"\",\"\",'[2]MONE(M)CARD'!EP84)","v":"n.d."},{"$f":"IF('[2]MONE(M)CARD'!ES84=\"\",\"\",'[2]MONE(M)CARD'!ES84)","v":"n.d."},{"$f":"IF('[2]MONE(M)CARD'!EV84=\"\",\"\",'[2]MONE(M)CARD'!EV84)","v":"n.d."},{"$f":"IF('[2]MONE(M)CARD'!EZ84=\"\",\"\",'[2]MONE(M)CARD'!EZ84)","v":"n.d."},{"$f":"IF('[2]MONE(M)CAPARD'!FC84=\"\",\"\",'[2]MONE(M)CAPARD'!FC84)","v":"n.d."},{"$f":"IF('[2]MONE(M)CAPARD'!FG84=\"\",\"\",'[2]MONE(M)CAPARD'!FG84)","v":"n.d."},{"$f":"IF('[2]MONE(M)CAPARD'!FL84=\"\",\"\",'[2]MONE(M)CAPARD'!FL84)","v":"n.d."},{"$f":"IF('[2]MONE(M)CAPARD'!FO84=\"\",\"\",'[2]MONE(M)CAPARD'!FO84)","v":"n.d."},{"$f":"IF('[2]MONE(M)CAPARD'!FR84=\"\",\"\",'[2]MONE(M)CAPARD'!FR84)","v":"n.d."},{"$f":"IF('[2]MONE(M)CAPARD'!FV84=\"\",\"\",'[2]MONE(M)CAPARD'!FV84)","v":"n.d."},{"$f":"IF('[2]MONE(M)CARD'!FV84=\"\",\"\",'[2]MONE(M)CARD'!FV84)","v":""},{"$f":"IF('[2]MONE(M)CARD'!GD84=\"\",\"\",'[2]MONE(M)CARD'!GD84)","v":"n.d."},{"$f":"IF('[2]MONE(M)CARD'!GE84=\"\",\"\",'[2]MONE(M)CARD'!GE84)","v":"n.d."},"n.d.","n.d.","n.d.","n.d.","n.d.","n.d.","n.d.","n.d.",null,"n.d.","n.d.","n.d.","n.d.","n.d.",{"$f":"IF('[2]MONE(M)CAPARD'!GS84=\"\",\"\",'[2]MONE(M)CAPARD'!GS84)","v":"n.d."},{"$f":"IF('[2]MONE(M)CARD'!HA84=\"\",\"\",'[2]MONE(M)CAPARD'!HA84)","v":"n.d."},{"$f":"IF('[2]MONE(M)CAPARD'!HB84=\"\",\"\",'[2]MONE(M)CAPARD'!HB84)","v":"n.d."},"n.d.","n.d.","n.d.","n.d.","n.d.","n.d.","n.d.","n.d.","n.d.","n.d.","n.d.","n.d.","n.d.","n.d.",{"$f":"IF('[2]MONE(M)CAPARD'!AS84=\"\",\"\",'[2]MONE(M)CAPARD'!AS84)","v":"n.d."},{"$f":"IF('[2]MONE(M)CAPARD'!AT84=\"\",\"\",'[2]MONE(M)CAPARD'!AT84)","v":"n.a."},{"$f":"IF('[2]MONE(M)CAPARD'!AU84=\"\",\"\",'[2]MONE(M)CAPARD'!AU84)","v":"n.d."},{"$f":"IF('[2]MONE(M)CAPARD'!AV84=\"\",\"\",'[2]MONE(M)CAPARD'!AV84)","v":"n.d."},{"$f":"IF('[2]MONE(M)CAPARD'!AW84=\"\",\"\",'[2]MONE(M)CAPARD'!AW84)","v":"n.a."},{"$f":"IF('[2]MONE(M)CAPARD'!AX84=\"\",\"\",'[2]MONE(M)CAPARD'!AX84)","v":"n.d."},{"$f":"IF('[2]MONE(M)CAPARD'!AY84=\"\",\"\",'[2]MONE(M)CAPARD'!AY84)","v":"n.a."},{"$f":"IF('[2]FISCAL(M)'!$K84=\"\",\"\",'[2]FISCAL(M)'!$K84)","v":"n.d."},{"$f":"IF('[2]FISCAL(M)'!$L84=\"\",\"\",'[2]FISCAL(M)'!$L84)","v":"n.d."},{"$f":"IF('[2]FISCAL(M)'!$AY84=\"\",\"\",'[2]FISCAL(M)'!$AY84)","v":"n.d."},{"$f":"IF('[2]FISCAL(M)'!$BI84=\"\",\"\",'[2]FISCAL(M)'!$BI84)","v":"n.d."},{"$f":"IF('[2]FISCAL(M)'!$BS84=\"\",\"\",'[2]FISCAL(M)'!$BS84)","v":"n.d."},{"$f":"IF('[2]FISCAL(M)'!$AZ84=\"\",\"\",'[2]FISCAL(M)'!$AZ84)","v":"n.d."},{"$f":"IF('[2]FISCAL(M)'!$BJ84=\"\",\"\",'[2]FISCAL(M)'!$BJ84)","v":"n.d."},{"$f":"IF('[2]FISCAL(M)'!$BT84=\"\",\"\",'[2]FISCAL(M)'!$BT84)","v":"n.d."},{"$f":"IF('[3]MONE(M)'!$AO84=\"\",\"\",'[3]MONE(M)'!$AO84)","v":"n.d."},{"$f":"IF('[4]MONE(M)'!$AO84=\"\",\"\",'[4]MONE(M)'!$AO84)","v":"n.d."},{"$f":"IF('[5]MONE(M)'!$AO84=\"\",\"\",'[5]MONE(M)'!$AO84)","v":"n.d."},{"$f":"+'[1]MONE(M)'!$AO84","v":"n.d."},{"$f":"IF('[6]MONE(M)'!$AO84=\"\",\"\",'[6]MONE(M)'!$AO84)","v":"n.d."},{"$f":"IF('[7]MONE(M)'!$AO84=\"\",\"\",'[7]MONE(M)'!$AO84)","v":"n.d."},{"$f":"IF('[8]MONE(M)'!$AO84=\"\",\"\",'[8]MONE(M)'!$AO84)","v":"n.d."},"n.d.","n.d.","n.d.","n.d.","n.d.","n.d.","n.d.",{"$f":"IF('[2]FISCAL(M)'!$K84=\"\",\"\",'[2]FISCAL(M)'!$K84)","v":"n.d."},"n.d.","n.d.",{"$f":"IF('[2]FISCAL(M)'!$L84=\"\",\"\",'[2]FISCAL(M)'!$L84)","v":"n.d."},"n.d.","n.d.","n.d.","n.d.","n.d.","n.d.","n.d.","n.d.","n.d.","n.d.","n.d.","n.d.","n.d.","n.d.","n.d.","n.d.","n.d.","n.d."]
[1996,"abril","1996-abril",{"$f":"IF('[2]REAL IPC(M)'!$AL85=\"\",\"\",+'[2]REAL IPC(M)'!$AL85)","v":11.976955730745908},{"$f":"IF('[2]REAL IPC(M)'!$BE85=\"\",\"\",+'[2]REAL IPC(M)'!$BE85)","v":11.502578713127543},{"$f":"IF('[2]REAL IPC(M)'!$AM85=\"\",\"\",+'[2]REAL IPC(M)'!$AM85)","v":11.015058561070834},{"$f":"IF('[2]REAL IPC(M)'!$BI85=\"\",\"\",+'[2]REAL IPC(M)'!$BI85)","v":10.555455980561756},{"$f":"IF('[2]REAL IMAE(M)'!BJ85=\"\",\"\",'[2]REAL IMAE(M)'!BJ85)","v":"n.d."},{"$f":"IF('[2]REAL IMAE(M)'!BK85=\"\",\"\",'[2]REAL IMAE(M)'!BK85)","v":"n.d."},{"$f":"IF('[2]REAL IMAE(M)'!BN85=\"\",\"\",'[2]REAL IMAE(M)'!BN85)","v":"n.d."},{"$f":"IF('[2]REAL IMAE(M)'!BO85=\"\",\"\",'[2]REAL IMAE(M)'!BO85)","v":"n.d."},{"$f":"IF('[2]EXT RIN(M)'!$K85=\"\",\"\",'[2]EXT RIN(M)'!$K85)","v":"n.d."},"",{"$f":"IF('[2]EXT RIN(M)'!$L85=\"\",\"\",'[2]EXT RIN(M)'!$L85)","v":"n.d."},"",{"$f":"IF('[2]MONE(M)CARD'!EG85=\"\",\"\",'[2]MONE(M)CARD'!EG85)","v":"n.d."},{"$f":"IF('[2]MONE(M)CARD'!EK85=\"\",\"\",'[2]MONE(M)CARD'!EK85)","v":"n.d."},{"$f":"IF('[2]MONE(M)CARD'!EP85=\"\",\"\",'[2]MONE(M)CARD'!EP85)","v":"n.d."},{"$f":"IF('[2]MONE(M)CARD'!ES85=\"\",\"\",'[2]MONE(M)CARD'!ES85)","v":"n.d."},{"$f":"IF('[2]MONE(M)CARD'!EV85=\"\",\"\",'[2]MONE(M)CARD'!EV85)","v":"n.d."},{"$f":"IF('[2]MONE(M)CARD'!EZ85=\"\",\"\",'[2]MONE(M)CARD'!EZ85)","v":"n.d."},{"$f":"IF('[2]MONE(M)CAPARD'!FC85=\"\",\"\",'[2]MONE(M)CAPARD'!FC85)","v":"n.d."},{"$f":"IF('[2]MONE(M)CAPARD'!FG85=\"\",\"\",'[2]MONE(M)CAPARD'!FG85)","v":"n.d."},{"$f":"IF('[2]MONE(M)CAPARD'!FL85=\"\",\"\",'[2]MONE(M)CAPARD'!FL85)","v":"n.d."},{"$f":"IF('[2]MONE(M)CAPARD'!FO85=\"\",\"\",'[2]MONE(M)CAPARD'!FO85)","v":"n.d."},{"$f":"IF('[2]MONE(M)CAPARD'!FR85=\"\",\"\",'[2]MONE(M)CAPARD'!FR85)","v":"n.d."},{"$f":"IF('[2]MONE(M)CAPARD'!FV85=\"\",\"\",'[2]MONE(M)CAPARD'!FV85)","v":"n.d."},{"$f":"IF('[2]MONE(M)CARD'!FV85=\"\",\"\",'[2]MONE(M)CARD'!FV85)","v":""},{"$f":"IF('[2]MONE(M)CARD'!GD85=\"\",\"\",'[2]MONE(M)CARD'!GD85)","v":"n.d."},{"$f":"IF('[2]MONE(M)CARD'!GE85=\"\",\"\",'[2]MONE(M)CARD'!GE85)","v":"n.d."},"n.d.","n.d.","n.d.","n.d.","n.d.","n.d.","n.d.","n.d.",null,"n.d.","n.d.","n.d.","n.d.","n.d.",{"$f":"IF('[2]MONE(M)CAPARD'!GS85=\"\",\"\",'[2]MONE(M)CAPARD'!GS85)","v":"n.d."},{"$f":"IF('[2]MONE(M)CARD'!HA85=\"\",\"\",'[2]MONE(M)CAPARD'!HA85)","v":"n.d."},{"$f":"IF('[2]MONE(M)CAPARD'!HB85=\"\",\"\",'[2]MONE(M)CAPARD'!HB85)","v":"n.d."},"n.d.","n.d.","n.d.","n.d.","n.d.","n.d.","n.d.","n.d.","n.d.","n.d.","n.d.","n.d.","n.d.","n.d.",{"$f":"IF('[2]MONE(M)CAPARD'!AS85=\"\",\"\",'[2]MONE(M)CAPARD'!AS85)","v":"n.d."},{"$f":"IF('[2]MONE(M)CAPARD'!AT85=\"\",\"\",'[2]MONE(M)CAPARD'!AT85)","v":"n.a."},{"$f":"IF('[2]MONE(M)CAPARD'!AU85=\"\",\"\",'[2]MONE(M)CAPARD'!AU85)","v":"n.d."},{"$f":"IF('[2]MONE(M)CAPARD'!AV85=\"\",\"\",'[2]MONE(M)CAPARD'!AV85)","v":"n.d."},{"$f":"IF('[2]MONE(M)CAPARD'!AW85=\"\",\"\",'[2]MONE(M)CAPARD'!AW85)","v":"n.a."},{"$f":"IF('[2]MONE(M)CAPARD'!AX85=\"\",\"\",'[2]MONE(M)CAPARD'!AX85)","v":"n.d."},{"$f":"IF('[2]MONE(M)CAPARD'!AY85=\"\",\"\",'[2]MONE(M)CAPARD'!AY85)","v":"n.a."},{"$f":"IF('[2]FISCAL(M)'!$K85=\"\",\"\",'[2]FISCAL(M)'!$K85)","v":"n.d."},{"$f":"IF('[2]FISCAL(M)'!$L85=\"\",\"\",'[2]FISCAL(M)'!$L85)","v":"n.d."},{"$f":"IF('[2]FISCAL(M)'!$AY85=\"\",\"\",'[2]FISCAL(M)'!$AY85)","v":"n.d."},{"$f":"IF('[2]FISCAL(M)'!$BI85=\"\",\"\",'[2]FISCAL(M)'!$BI85)","v":"n.d."},{"$f":"IF('[2]FISCAL(M)'!$BS85=\"\",\"\",'[2]FISCAL(M)'!$BS85)","v":"n.d."},{"$f":"IF('[2]FISCAL(M)'!$AZ85=\"\",\"\",'[2]FISCAL(M)'!$AZ85)","v":"n.d."},{"$f":"IF('[2]FISCAL(M)'!$BJ85=\"\",\"\",'[2]FISCAL(M)'!$BJ85)","v":"n.d."},{"$f":"IF('[2]FISCAL(M)'!$BT85=\"\",\"\",'[2]FISCAL(M)'!$BT85)","v":"n.d."},{"$f":"IF('[3]MONE(M)'!$AO85=\"\",\"\",'[3]MONE(M)'!$AO85)","v":"n.d."},{"$f":"IF('[4]MONE(M)'!$AO85=\"\",\"\",'[4]MONE(M)'!$AO85)","v":"n.d."},{"$f":"IF('[5]MONE(M)'!$AO85=\"\",\"\",'[5]MONE(M)'!$AO85)","v":"n.d."},{"$f":"+'[1]MONE(M)'!$AO85","v":"n.d."},{"$f":"IF('[6]MONE(M)'!$AO85=\"\",\"\",'[6]MONE(M)'!$AO85)","v":"n.d."},{"$f":"IF('[7]MONE(M)'!$AO85=\"\",\"\",'[7]MONE(M)'!$AO85)","v":"n.d."},{"$f":"IF('[8]MONE(M)'!$AO85=\"\",\"\",'[8]MONE(M)'!$AO85)","v":"n.d."},"n.d.","n.d.","n.d.","n.d.","n.d.","n.d.","n.d.",{"$f":"IF('[2]FISCAL(M)'!$K85=\"\",\"\",'[2]FISCAL(M)'!$K85)","v":"n.d."},"n.d.","n.d.",{"$f":"IF('[2]FISCAL(M)'!$L85=\"\",\"\",'[2]FISCAL(M)'!$L85)","v":"n.d."},"n.d.","n.d.","n.d.","n.d.","n.d.","n.d.","n.d.","n.d.","n.d.","n.d.","n.d.","n.d.","n.d.","n.d.","n.d.","n.d.","n.d.","n.d."]
[1996,"mayo ","1996-mayo ",{"$f":"IF('[2]REAL IPC(M)'!$AL86=\"\",\"\",+'[2]REAL IPC(M)'!$AL86)","v":11.879699248120312},{"$f":"IF('[2]REAL IPC(M)'!$BE86=\"\",\"\",+'[2]REAL IPC(M)'!$BE86)","v":11.336443795139783},{"$f":"IF('[2]REAL IPC(M)'!$AM86=\"\",\"\",+'[2]REAL IPC(M)'!$AM86)","v":10.846707249584941},{"$f":"IF('[2]REAL IPC(M)'!$BI86=\"\",\"\",+'[2]REAL IPC(M)'!$BI86)","v":10.406214956990546},{"$f":"IF('[2]REAL IMAE(M)'!BJ86=\"\",\"\",'[2]REAL IMAE(M)'!BJ86)","v":"n.d."},{"$f":"IF('[2]REAL IMAE(M)'!BK86=\"\",\"\",'[2]REAL IMAE(M)'!BK86)","v":"n.d."},{"$f":"IF('[2]REAL IMAE(M)'!BN86=\"\",\"\",'[2]REAL IMAE(M)'!BN86)","v":"n.d."},{"$f":"IF('[2]REAL IMAE(M)'!BO86=\"\",\"\",'[2]REAL IMAE(M)'!BO86)","v":"n.d."},{"$f":"IF('[2]EXT RIN(M)'!$K86=\"\",\"\",'[2]EXT RIN(M)'!$K86)","v":"n.d."},"",{"$f":"IF('[2]EXT RIN(M)'!$L86=\"\",\"\",'[2]EXT RIN(M)'!$L86)","v":"n.d."},"",{"$f":"IF('[2]MONE(M)CARD'!EG86=\"\",\"\",'[2]MONE(M)CARD'!EG86)","v":"n.d."},{"$f":"IF('[2]MONE(M)CARD'!EK86=\"\",\"\",'[2]MONE(M)CARD'!EK86)","v":"n.d."},{"$f":"IF('[2]MONE(M)CARD'!EP86=\"\",\"\",'[2]MONE(M)CARD'!EP86)","v":"n.d."},{"$f":"IF('[2]MONE(M)CARD'!ES86=\"\",\"\",'[2]MONE(M)CARD'!ES86)","v":"n.d."},{"$f":"IF('[2]MONE(M)CARD'!EV86=\"\",\"\",'[2]MONE(M)CARD'!EV86)","v":"n.d."},{"$f":"IF('[2]MONE(M)CARD'!EZ86=\"\",\"\",'[2]MONE(M)CARD'!EZ86)","v":"n.d."},{"$f":"IF('[2]MONE(M)CAPARD'!FC86=\"\",\"\",'[2]MONE(M)CAPARD'!FC86)","v":"n.d."},{"$f":"IF('[2]MONE(M)CAPARD'!FG86=\"\",\"\",'[2]MONE(M)CAPARD'!FG86)","v":"n.d."},{"$f":"IF('[2]MONE(M)CAPARD'!FL86=\"\",\"\",'[2]MONE(M)CAPARD'!FL86)","v":"n.d."},{"$f":"IF('[2]MONE(M)CAPARD'!FO86=\"\",\"\",'[2]MONE(M)CAPARD'!FO86)","v":"n.d."},{"$f":"IF('[2]MONE(M)CAPARD'!FR86=\"\",\"\",'[2]MONE(M)CAPARD'!FR86)","v":"n.d."},{"$f":"IF('[2]MONE(M)CAPARD'!FV86=\"\",\"\",'[2]MONE(M)CAPARD'!FV86)","v":"n.d."},{"$f":"IF('[2]MONE(M)CARD'!FV86=\"\",\"\",'[2]MONE(M)CARD'!FV86)","v":""},{"$f":"IF('[2]MONE(M)CARD'!GD86=\"\",\"\",'[2]MONE(M)CARD'!GD86)","v":"n.d."},{"$f":"IF('[2]MONE(M)CARD'!GE86=\"\",\"\",'[2]MONE(M)CARD'!GE86)","v":"n.d."},"n.d.","n.d.","n.d.","n.d.","n.d.","n.d.","n.d.","n.d.",null,"n.d.","n.d.","n.d.","n.d.","n.d.",{"$f":"IF('[2]MONE(M)CAPARD'!GS86=\"\",\"\",'[2]MONE(M)CAPARD'!GS86)","v":"n.d."},{"$f":"IF('[2]MONE(M)CARD'!HA86=\"\",\"\",'[2]MONE(M)CAPARD'!HA86)","v":"n.d."},{"$f":"IF('[2]MONE(M)CAPARD'!HB86=\"\",\"\",'[2]MONE(M)CAPARD'!HB86)","v":"n.d."},"n.d.","n.d.","n.d.","n.d.","n.d.","n.d.","n.d.","n.d.","n.d.","n.d.","n.d.","n.d.","n.d.","n.d.",{"$f":"IF('[2]MONE(M)CAPARD'!AS86=\"\",\"\",'[2]MONE(M)CAPARD'!AS86)","v":"n.d."},{"$f":"IF('[2]MONE(M)CAPARD'!AT86=\"\",\"\",'[2]MONE(M)CAPARD'!AT86)","v":"n.a."},{"$f":"IF('[2]MONE(M)CAPARD'!AU86=\"\",\"\",'[2]MONE(M)CAPARD'!AU86)","v":"n.d."},{"$f":"IF('[2]MONE(M)CAPARD'!AV86=\"\",\"\",'[2]MONE(M)CAPARD'!AV86)","v":"n.d."},{"$f":"IF('[2]MONE(M)CAPARD'!AW86=\"\",\"\",'[2]MONE(M)CAPARD'!AW86)","v":"n.a."},{"$f":"IF('[2]MONE(M)CAPARD'!AX86=\"\",\"\",'[2]MONE(M)CAPARD'!AX86)","v":"n.d."},{"$f":"IF('[2]MONE(M)CAPARD'!AY86=\"\",\"\",'[2]MONE(M)CAPARD'!AY86)","v":"n.a."},{"$f":"IF('[2]FISCAL(M)'!$K86=\"\",\"\",'[2]FISCAL(M)'!$K86)","v":"n.d."},{"$f":"IF('[2]FISCAL(M)'!$L86=\"\",\"\",'[2]FISCAL(M)'!$L86)","v":"n.d."},{"$f":"IF('[2]FISCAL(M)'!$AY86=\"\",\"\",'[2]FISCAL(M)'!$AY86)","v":"n.d."},{"$f":"IF('[2]FISCAL(M)'!$BI86=\"\",\"\",'[2]FISCAL(M)'!$BI86)","v":"n.d."},{"$f":"IF('[2]FISCAL(M)'!$BS86=\"\",\"\",'[2]FISCAL(M)'!$BS86)","v":"n.d."},{"$f":"IF('[2]FISCAL(M)'!$AZ86=\"\",\"\",'[2]FISCAL(M)'!$AZ86)","v":"n.d."},{"$f":"IF('[2]FISCAL(M)'!$BJ86=\"\",\"\",'[2]FISCAL(M)'!$BJ86)","v":"n.d."},{"$f":"IF('[2]FISCAL(M)'!$BT86=\"\",\"\",'[2]FISCAL(M)'!$BT86)","v":"n.d."},{"$f":"IF('[3]MONE(M)'!$AO86=\"\",\"\",'[3]MONE(M)'!$AO86)","v":"n.d."},{"$f":"IF('[4]MONE(M)'!$AO86=\"\",\"\",'[4]MONE(M)'!$AO86)","v":"n.d."},{"$f":"IF('[5]MONE(M)'!$AO86=\"\",\"\",'[5]MONE(M)'!$AO86)","v":"n.d."},{"$f":"+'[1]MONE(M)'!$AO86","v":"n.d."},{"$f":"IF('[6]MONE(M)'!$AO86=\"\",\"\",'[6]MONE(M)'!$AO86)","v":"n.d."},{"$f":"IF('[7]MONE(M)'!$AO86=\"\",\"\",'[7]MONE(M)'!$AO86)","v":"n.d."},{"$f":"IF('[8]MONE(M)'!$AO86=\"\",\"\",'[8]MONE(M)'!$AO86)","v":"n.d."},"n.d.","n.d.","n.d.","n.d.","n.d.","n.d.","n.d.",{"$f":"IF('[2]FISCAL(M)'!$K86=\"\",\"\",'[2]FISCAL(M)'!$K86)","v":"n.d."},"n.d.","n.d.",{"$f":"IF('[2]FISCAL(M)'!$L86=\"\",\"\",'[2]FISCAL(M)'!$L86)","v":"n.d."},"n.d.","n.d.","n.d.","n.d.","n.d.","n.d.","n.d.","n.d.","n.d.","n.d.","n.d.","n.d.","n.d.","n.d.","n.d.","n.d.","n.d.","n.d."]
[1996,"junio ","1996-junio ",{"$f":"IF('[2]REAL IPC(M)'!$AL87=\"\",\"\",+'[2]REAL IPC(M)'!$AL87)","v":11.705288175876415},{"$f":"IF('[2]REAL IPC(M)'!$BE87=\"\",\"\",+'[2]REAL IPC(M)'!$BE87)","v":11.169971967281068},{"$f":"IF('[2]REAL IPC(M)'!$AM87=\"\",\"\",+'[2]REAL IPC(M)'!$AM87)","v":10.697674418604652},{"$f":"IF('[2]REAL IPC(M)'!$BI87=\"\",\"\",+'[2]REAL IPC(M)'!$BI87)","v":10.255958455421577},{"$f":"IF('[2]REAL IMAE(M)'!BJ87=\"\",\"\",'[2]REAL IMAE(M)'!BJ87)","v":"n.d."},{"$f":"IF('[2]REAL IMAE(M)'!BK87=\"\",\"\",'[2]REAL IMAE(M)'!BK87)","v":"n.d."},{"$f":"IF('[2]REAL IMAE(M)'!BN87=\"\",\"\",'[2]REAL IMAE(M)'!BN87)","v":"n.d."},{"$f":"IF('[2]REAL IMAE(M)'!BO87=\"\",\"\",'[2]REAL IMAE(M)'!BO87)","v":"n.d."},{"$f":"IF('[2]EXT RIN(M)'!$K87=\"\",\"\",'[2]EXT RIN(M)'!$K87)","v":"n.d."},"",{"$f":"IF('[2]EXT RIN(M)'!$L87=\"\",\"\",'[2]EXT RIN(M)'!$L87)","v":"n.d."},"",{"$f":"IF('[2]MONE(M)CARD'!EG87=\"\",\"\",'[2]MONE(M)CARD'!EG87)","v":"n.d."},{"$f":"IF('[2]MONE(M)CARD'!EK87=\"\",\"\",'[2]MONE(M)CARD'!EK87)","v":"n.d."},{"$f":"IF('[2]MONE(M)CARD'!EP87=\"\",\"\",'[2]MONE(M)CARD'!EP87)","v":"n.d."},{"$f":"IF('[2]MONE(M)CARD'!ES87=\"\",\"\",'[2]MONE(M)CARD'!ES87)","v":"n.d."},{"$f":"IF('[2]MONE(M)CARD'!EV87=\"\",\"\",'[2]MONE(M)CARD'!EV87)","v":"n.d."},{"$f":"IF('[2]MONE(M)CARD'!EZ87=\"\",\"\",'[2]MONE(M)CARD'!EZ87)","v":"n.d."},{"$f":"IF('[2]MONE(M)CAPARD'!FC87=\"\",\"\",'[2]MONE(M)CAPARD'!FC87)","v":"n.d."},{"$f":"IF('[2]MONE(M)CAPARD'!FG87=\"\",\"\",'[2]MONE(M)CAPARD'!FG87)","v":"n.d."},{"$f":"IF('[2]MONE(M)CAPARD'!FL87=\"\",\"\",'[2]MONE(M)CAPARD'!FL87)","v":"n.d."},{"$f":"IF('[2]MONE(M)CAPARD'!FO87=\"\",\"\",'[2]MONE(M)CAPARD'!FO87)","v":"n.d."},{"$f":"IF('[2]MONE(M)CAPARD'!FR87=\"\",\"\",'[2]MONE(M)CAPARD'!FR87)","v":"n.d."},{"$f":"IF('[2]MONE(M)CAPARD'!FV87=\"\",\"\",'[2]MONE(M)CAPARD'!FV87)","v":"n.d."},{"$f":"IF('[2]MONE(M)CARD'!FV87=\"\",\"\",'[2]MONE(M)CARD'!FV87)","v":""},{"$f":"IF('[2]MONE(M)CARD'!GD87=\"\",\"\",'[2]MONE(M)CARD'!GD87)","v":"n.d."},{"$f":"IF('[2]MONE(M)CARD'!GE87=\"\",\"\",'[2]MONE(M)CARD'!GE87)","v":"n.d."},"n.d.","n.d.","n.d.","n.d.","n.d.","n.d.","n.d.","n.d.",null,"n.d.","n.d.","n.d.","n.d.","n.d.",{"$f":"IF('[2]MONE(M)CAPARD'!GS87=\"\",\"\",'[2]MONE(M)CAPARD'!GS87)","v":"n.d."},{"$f":"IF('[2]MONE(M)CARD'!HA87=\"\",\"\",'[2]MONE(M)CAPARD'!HA87)","v":"n.d."},{"$f":"IF('[2]MONE(M)CAPARD'!HB87=\"\",\"\",'[2]MONE(M)CAPARD'!HB87)","v":"n.d."},"n.d.","n.d.","n.d.","n.d.","n.d.","n.d.","n.d.","n.d.","n.d.","n.d.","n.d.","n.d.","n.d.","n.d.",{"$f":"IF('[2]MONE(M)CAPARD'!AS87=\"\",\"\",'[2]MONE(M)CAPARD'!AS87)","v":"n.d."},{"$f":"IF('[2]MONE(M)CAPARD'!AT87=\"\",\"\",'[2]MONE(M)CAPARD'!AT87)","v":"n.a."},{"$f":"IF('[2]MONE(M)CAPARD'!AU87=\"\",\"\",'[2]MONE(M)CAPARD'!AU87)","v":"n.d."},{"$f":"IF('[2]MONE(M)CAPARD'!AV87=\"\",\"\",'[2]MONE(M)CAPARD'!AV87)","v":"n.d."},{"$f":"IF('[2]MONE(M)CAPARD'!AW87=\"\",\"\",'[2]MONE(M)CAPARD'!AW87)","v":"n.a."},{"$f":"IF('[2]MONE(M)CAPARD'!AX87=\"\",\"\",'[2]MONE(M)CAPARD'!AX87)","v":"n.d."},{"$f":"IF('[2]MONE(M)CAPARD'!AY87=\"\",\"\",'[2]MONE(M)CAPARD'!AY87)","v":"n.a."},{"$f":"IF('[2]FISCAL(M)'!$K87=\"\",\"\",'[2]FISCAL(M)'!$K87)","v":"n.d."},{"$f":"IF('[2]FISCAL(M)'!$L87=\"\",\"\",'[2]FISCAL(M)'!$L87)","v":"n.d."},{"$f":"IF('[2]FISCAL(M)'!$AY87=\"\",\"\",'[2]FISCAL(M)'!$AY87)","v":"n.d."},{"$f":"IF('[2]FISCAL(M)'!$BI87=\"\",\"\",'[2]FISCAL(M)'!$BI87)","v":"n.d."},{"$f":"IF('[2]FISCAL(M)'!$BS87=\"\",\"\",'[2]FISCAL(M)'!$BS87)","v":"n.d."},{"$f":"IF('[2]FISCAL(M)'!$AZ87=\"\",\"\",'[2]FISCAL(M)'!$AZ87)","v":"n.d."},{"$f":"IF('[2]FISCAL(M)'!$BJ87=\"\",\"\",'[2]FISCAL(M)'!$BJ87)","v":"n.d."},{"$f":"IF('[2]FISCAL(M)'!$BT87=\"\",\"\",'[2]FISCAL(M)'!$BT87)","v":"n.d."},{"$f":"IF('[3]MONE(M)'!$AO87=\"\",\"\",'[3]MONE(M)'!$AO87)","v":"n.d."},{"$f":"IF('[4]MONE(M)'!$AO87=\"\",\"\",'[4]MONE(M)'!$AO87)","v":"n.d."},{"$f":"IF('[5]MONE(M)'!$AO87=\"\",\"\",'[5]MONE(M)'!$AO87)","v":"n.d."},{"$f":"+'[1]MONE(M)'!$AO87","v":"n.d."},{"$f":"IF('[6]MONE(M)'!$AO87=\"\",\"\",'[6]MONE(M)'!$AO87)","v":"n.d."},{"$f":"IF('[7]MONE(M)'!$AO87=\"\",\"\",'[7]MONE(M)'!$AO87)","v":"n.d."},{"$f":"IF('[8]MONE(M)'!$AO87=\"\",\"\",'[8]MONE(M)'!$AO87)","v":"n.d."},"n.d.","n.d.","n.d.","n.d.","n.d.","n.d.","n.d.",{"$f":"IF('[2]FISCAL(M)'!$K87=\"\",\"\",'[2]FISCAL(M)'!$K87)","v":"n.d."},"n.d.","n.d.",{"$f":"IF('[2]FISCAL(M)'!$L87=\"\",\"\",'[2]FISCAL(M)'!$L87)","v":"n.d."},"n.d.","n.d.","n.d.","n.d.","n.d.","n.d.","n.d.","n.d.","n.d.","n.d.","n.d.","n.d.","n.d.","n.d.","n.d.","n.d.","n.d.","n.d."]
[1996,"julio","1996-julio",{"$f":"IF('[2]REAL IPC(M)'!$AL88=\"\",\"\",+'[2]REAL IPC(M)'!$AL88)","v":11.505723510419719},{"$f":"IF('[2]REAL IPC(M)'!$BE88=\"\",\"\",+'[2]REAL IPC(M)'!$BE88)","v":11.003247222854595},{"$f":"IF('[2]REAL IPC(M)'!$AM88=\"\",\"\",+'[2]REAL IPC(M)'!$AM88)","v":10.497835497835496},{"$f":"IF('[2]REAL IPC(M)'!$BI88=\"\",\"\",+'[2]REAL IPC(M)'!$BI88)","v":10.104775483332551},{"$f":"IF('[2]REAL IMAE(M)'!BJ88=\"\",\"\",'[2]REAL IMAE(M)'!BJ88)","v":"n.d."},{"$f":"IF('[2]REAL IMAE(M)'!BK88=\"\",\"\",'[2]REAL IMAE(M)'!BK88)","v":"n.d."},{"$f":"IF('[2]REAL IMAE(M)'!BN88=\"\",\"\",'[2]REAL IMAE(M)'!BN88)","v":"n.d."},{"$f":"IF('[2]REAL IMAE(M)'!BO88=\"\",\"\",'[2]REAL IMAE(M)'!BO88)","v":"n.d."},{"$f":"IF('[2]EXT RIN(M)'!$K88=\"\",\"\",'[2]EXT RIN(M)'!$K88)","v":"n.d."},"",{"$f":"IF('[2]EXT RIN(M)'!$L88=\"\",\"\",'[2]EXT RIN(M)'!$L88)","v":"n.d."},"",{"$f":"IF('[2]MONE(M)CARD'!EG88=\"\",\"\",'[2]MONE(M)CARD'!EG88)","v":"n.d."},{"$f":"IF('[2]MONE(M)CARD'!EK88=\"\",\"\",'[2]MONE(M)CARD'!EK88)","v":"n.d."},{"$f":"IF('[2]MONE(M)CARD'!EP88=\"\",\"\",'[2]MONE(M)CARD'!EP88)","v":"n.d."},{"$f":"IF('[2]MONE(M)CARD'!ES88=\"\",\"\",'[2]MONE(M)CARD'!ES88)","v":"n.d."},{"$f":"IF('[2]MONE(M)CARD'!EV88=\"\",\"\",'[2]MONE(M)CARD'!EV88)","v":"n.d."},{"$f":"IF('[2]MONE(M)CARD'!EZ88=\"\",\"\",'[2]MONE(M)CARD'!EZ88)","v":"n.d."},{"$f":"IF('[2]MONE(M)CAPARD'!FC88=\"\",\"\",'[2]MONE(M)CAPARD'!FC88)","v":"n.d."},{"$f":"IF('[2]MONE(M)CAPARD'!FG88=\"\",\"\",'[2]MONE(M)CAPARD'!FG88)","v":"n.d."},{"$f":"IF('[2]MONE(M)CAPARD'!FL88=\"\",\"\",'[2]MONE(M)CAPARD'!FL88)","v":"n.d."},{"$f":"IF('[2]MONE(M)CAPARD'!FO88=\"\",\"\",'[2]MONE(M)CAPARD'!FO88)","v":"n.d."},{"$f":"IF('[2]MONE(M)CAPARD'!FR88=\"\",\"\",'[2]MONE(M)CAPARD'!FR88)","v":"n.d."},{"$f":"IF('[2]MONE(M)CAPARD'!FV88=\"\",\"\",'[2]MONE(M)CAPARD'!FV88)","v":"n.d."},{"$f":"IF('[2]MONE(M)CARD'!FV88=\"\",\"\",'[2]MONE(M)CARD'!FV88)","v":""},{"$f":"IF('[2]MONE(M)CARD'!GD88=\"\",\"\",'[2]MONE(M)CARD'!GD88)","v":"n.d."},{"$f":"IF('[2]MONE(M)CARD'!GE88=\"\",\"\",'[2]MONE(M)CARD'!GE88)","v":"n.d."},"n.d.","n.d.","n.d.","n.d.","n.d.","n.d.","n.d.","n.d.",null,"n.d.","n.d.","n.d.","n.d.","n.d.",{"$f":"IF('[2]MONE(M)CAPARD'!GS88=\"\",\"\",'[2]MONE(M)CAPARD'!GS88)","v":"n.d."},{"$f":"IF('[2]MONE(M)CARD'!HA88=\"\",\"\",'[2]MONE(M)CAPARD'!HA88)","v":"n.d."},{"$f":"IF('[2]MONE(M)CAPARD'!HB88=\"\",\"\",'[2]MONE(M)CAPARD'!HB88)","v":"n.d."},"n.d.","n.d.","n.d.","n.d.","n.d.","n.d.","n.d.","n.d.","n.d.","n.d.","n.d.","n.d.","n.d.","n.d.",{"$f":"IF('[2]MONE(M)CAPARD'!AS88=\"\",\"\",'[2]MONE(M)CAPARD'!AS88)","v":"n.d."},{"$f":"IF('[2]MONE(M)CAPARD'!AT88=\"\",\"\",'[2]MONE(M)CAPARD'!AT88)","v":"n.a."},{"$f":"IF('[2]MONE(M)CAPARD'!AU88=\"\",\"\",'[2]MONE(M)CAPARD'!AU88)","v":"n.d."},{"$f":"IF('[2]MONE(M)CAPARD'!AV88=\"\",\"\",'[2]MONE(M)CAPARD'!AV88)","v":"n.d."},{"$f":"IF('[2]MONE(M)CAPARD'!AW88=\"\",\"\",'[2]MONE(M)CAPARD'!AW88)","v":"n.a."},{"$f":"IF('[2]MONE(M)CAPARD'!AX88=\"\",\"\",'[2]MONE(M)CAPARD'!AX88)","v":"n.d."},{"$f":"IF('[2]MONE(M)CAPARD'!AY88=\"\",\"\",'[2]MONE(M)CAPARD'!AY88)","v":"n.a."},{"$f":"IF('[2]FISCAL(M)'!$K88=\"\",\"\",'[2]FISCAL(M)'!$K88)","v":"n.d."},{"$f":"IF('[2]FISCAL(M)'!$L88=\"\",\"\",'[2]FISCAL(M)'!$L88)","v":"n.d."},{"$f":"IF('[2]FISCAL(M)'!$AY88=\"\",\"\",'[2]FISCAL(M)'!$AY88)","v":"n.d."},{"$f":"IF('[2]FISCAL(M)'!$BI88=\"\",\"\",'[2]FISCAL(M)'!$BI88)","v":"n.d."},{"$f":"IF('[2]FISCAL(M)'!$BS88=\"\",\"\",'[2]FISCAL(M)'!$BS88)","v":"n.d."},{"$f":"IF('[2]FISCAL(M)'!$AZ88=\"\",\"\",'[2]FISCAL(M)'!$AZ88)","v":"n.d."},{"$f":"IF('[2]FISCAL(M)'!$BJ88=\"\",\"\",'[2]FISCAL(M)'!$BJ88)","v":"n.d."},{"$f":"IF('[2]FISCAL(M)'!$BT88=\"\",\"\",'[2]FISCAL(M)'!$BT88)","v":"n.d."},{"$f":"IF('[3]MONE(M)'!$AO88=\"\",\"\",'[3]MONE(M)'!$AO88)","v":"n.d."},{"$f":"IF('[4]MONE(M)'!$AO88=\"\",\"\",'[4]MONE(M)'!$AO88)","v":"n.d."},{"$f":"IF('[5]MONE(M)'!$AO88=\"\",\"\",'[5]MONE(M)'!$AO88)","v":"n.d."},{"$f":"+'[1]MONE(M)'!$AO88","v":"n.d."},{"$f":"IF('[6]MONE(M)'!$AO88=\"\",\"\",'[6]MONE(M)'!$AO88)","v":"n.d."},{"$f":"IF('[7]MONE(M)'!$AO88=\"\",\"\",'[7]MONE(M)'!$AO88)","v":"n.d."},{"$f":"IF('[8]MONE(M)'!$AO88=\"\",\"\",'[8]MONE(M)'!$AO88)","v":"n.d."},"n.d.","n.d.","n.d.","n.d.","n.d.","n.d.","n.d.",{"$f":"IF('[2]FISCAL(M)'!$K88=\"\",\"\",'[2]FISCAL(M)'!$K88)","v":"n.d."},"n.d.","n.d.",{"$f":"IF('[2]FISCAL(M)'!$L88=\"\",\"\",'[2]FISCAL(M)'!$L88)","v":"n.d."},"n.d.","n.d.","n.d.","n.d.","n.d.","n.d.","n.d.","n.d.","n.d.","n.d.","n.d.","n.d.","n.d.","n.d.","n.d.","n.d.","n.d.","n.d."]
[1996,"agosto","1996-agosto",{"$f":"IF('[2]REAL IPC(M)'!$AL89=\"\",\"\",+'[2]REAL IPC(M)'!$AL89)","v":11.961583236321305},{"$f":"IF('[2]REAL IPC(M)'!$BE89=\"\",\"\",+'[2]REAL IPC(M)'!$BE89)","v":10.836377504754502},{"$f":"IF('[2]REAL IPC(M)'!$AM89=\"\",\"\",+'[2]REAL IPC(M)'!$AM89)","v":10.923242082662377},{"$f":"IF('[2]REAL IPC(M)'!$BI89=\"\",\"\",+'[2]REAL IPC(M)'!$BI89)","v":9.9527751480299678},{"$f":"IF('[2]REAL IMAE(M)'!BJ89=\"\",\"\",'[2]REAL IMAE(M)'!BJ89)","v":"n.d."},{"$f":"IF('[2]REAL IMAE(M)'!BK89=\"\",\"\",'[2]REAL IMAE(M)'!BK89)","v":"n.d."},{"$f":"IF('[2]REAL IMAE(M)'!BN89=\"\",\"\",'[2]REAL IMAE(M)'!BN89)","v":"n.d."},{"$f":"IF('[2]REAL IMAE(M)'!BO89=\"\",\"\",'[2]REAL IMAE(M)'!BO89)","v":"n.d."},{"$f":"IF('[2]EXT RIN(M)'!$K89=\"\",\"\",'[2]EXT RIN(M)'!$K89)","v":"n.d."},"",{"$f":"IF('[2]EXT RIN(M)'!$L89=\"\",\"\",'[2]EXT RIN(M)'!$L89)","v":"n.d."},"",{"$f":"IF('[2]MONE(M)CARD'!EG89=\"\",\"\",'[2]MONE(M)CARD'!EG89)","v":"n.d."},{"$f":"IF('[2]MONE(M)CARD'!EK89=\"\",\"\",'[2]MONE(M)CARD'!EK89)","v":"n.d."},{"$f":"IF('[2]MONE(M)CARD'!EP89=\"\",\"\",'[2]MONE(M)CARD'!EP89)","v":"n.d."},{"$f":"IF('[2]MONE(M)CARD'!ES89=\"\",\"\",'[2]MONE(M)CARD'!ES89)","v":"n.d."},{"$f":"IF('[2]MONE(M)CARD'!EV89=\"\",\"\",'[2]MONE(M)CARD'!EV89)","v":"n.d."},{"$f":"IF('[2]MONE(M)CARD'!EZ89=\"\",\"\",'[2]MONE(M)CARD'!EZ89)","v":"n.d."},{"$f":"IF('[2]MONE(M)CAPARD'!FC89=\"\",\"\",'[2]MONE(M)CAPARD'!FC89)","v":"n.d."},{"$f":"IF('[2]MONE(M)CAPARD'!FG89=\"\",\"\",'[2]MONE(M)CAPARD'!FG89)","v":"n.d."},{"$f":"IF('[2]MONE(M)CAPARD'!FL89=\"\",\"\",'[2]MONE(M)CAPARD'!FL89)","v":"n.d."},{"$f":"IF('[2]MONE(M)CAPARD'!FO89=\"\",\"\",'[2]MONE(M)CAPARD'!FO89)","v":"n.d."},{"$f":"IF('[2]MONE(M)CAPARD'!FR89=\"\",\"\",'[2]MONE(M)CAPARD'!FR89)","v":"n.d."},{"$f":"IF('[2]MONE(M)CAPARD'!FV89=\"\",\"\",'[2]MONE(M)CAPARD'!FV89)","v":"n.d."},{"$f":"IF('[2]MONE(M)CARD'!FV89=\"\",\"\",'[2]MONE(M)CARD'!FV89)","v":""},{"$f":"IF('[2]MONE(M)CARD'!GD89=\"\",\"\",'[2]MONE(M)CARD'!GD89)","v":"n.d."},{"$f":"IF('[2]MONE(M)CARD'!GE89=\"\",\"\",'[2]MONE(M)CARD'!GE89)","v":"n.d."},"n.d.","n.d.","n.d.","n.d.","n.d.","n.d.","n.d.","n.d.",null,"n.d.","n.d.","n.d.","n.d.","n.d.",{"$f":"IF('[2]MONE(M)CAPARD'!GS89=\"\",\"\",'[2]MONE(M)CAPARD'!GS89)","v":"n.d."},{"$f":"IF('[2]MONE(M)CARD'!HA89=\"\",\"\",'[2]MONE(M)CAPARD'!HA89)","v":"n.d."},{"$f":"IF('[2]MONE(M)CAPARD'!HB89=\"\",\"\",'[2]MONE(M)CAPARD'!HB89)","v":"n.d."},"n.d.","n.d.","n.d.","n.d.","n.d.","n.d.","n.d.","n.d.","n.d.","n.d.","n.d.","n.d.","n.d.","n.d.",{"$f":"IF('[2]MONE(M)CAPARD'!AS89=\"\",\"\",'[2]MONE(M)CAPARD'!AS89)","v":"n.d."},{"$f":"IF('[2]MONE(M)CAPARD'!AT89=\"\",\"\",'[2]MONE(M)CAPARD'!AT89)","v":"n.a."},{"$f":"IF('[2]MONE(M)CAPARD'!AU89=\"\",\"\",'[2]MONE(M)CAPARD'!AU89)","v":"n.d."},{"$f":"IF('[2]MONE(M)CAPARD'!AV89=\"\",\"\",'[2]MONE(M)CAPARD'!AV89)","v":"n.d."},{"$f":"IF('[2]MONE(M)CAPARD'!AW89=\"\",\"\",'[2]MONE(M)CAPARD'!AW89)","v":"n.a."},{"$f":"IF('[2]MONE(M)CAPARD'!AX89=\"\",\"\",'[2]MONE(M)CAPARD'!AX89)","v":"n.d."},{"$f":"IF('[2]MONE(M)CAPARD'!AY89=\"\",\"\",'[2]MONE(M)CAPARD'!AY89)","v":"n.a."},{"$f":"IF('[2]FISCAL(M)'!$K89=\"\",\"\",'[2]FISCAL(M)'!$K89)","v":"n.d."},{"$f":"IF('[2]FISCAL(M)'!$L89=\"\",\"\",'[2]FISCAL(M)'!$L89)","v":"n.d."},{"$f":"IF('[2]FISCAL(M)'!$AY89=\"\",\"\",'[2]FISCAL(M)'!$AY89)","v":"n.d."},{"$f":"IF('[2]FISCAL(M)'!$BI89=\"\",\"\",'[2]FISCAL(M)'!$BI89)","v":"n.d."},{"$f":"IF('[2]FISCAL(M)'!$BS89=\"\",\"\",'[2]FISCAL(M)'!$BS89)","v":"n.d."},{"$f":"IF('[2]FISCAL(M)'!$AZ89=\"\",\"\",'[2]FISCAL(M)'!$AZ89)","v":"n.d."},{"$f":"IF('[2]FISCAL(M)'!$BJ89=\"\",\"\",'[2]FISCAL(M)'!$BJ89)","v":"n.d."},{"$f":"IF('[2]FISCAL(M)'!$BT89=\"\",\"\",'[2]FISCAL(M)'!$BT89)","v":"n.d."},{"$f":"IF('[3]MONE(M)'!$AO89=\"\",\"\",'[3]MONE(M)'!$AO89)","v":"n.d."},{"$f":"IF('[4]MONE(M)'!$AO89=\"\",\"\",'[4]MONE(M)'!$AO89)","v":"n.d."},{"$f":"IF('[5]MONE(M)'!$AO89=\"\",\"\",'[5]MONE(M)'!$AO89)","v":"n.d."},{"$f":"+'[1]MONE(M)'!$AO89","v":"n.d."},{"$f":"IF('[6]MONE(M)'!$AO89=\"\",\"\",'[6]MONE(M)'!$AO89)","v":"n.d."},{"$f":"IF('[7]MONE(M)'!$AO89=\"\",\"\",'[7]MONE(M)'!$AO89)","v":"n.d."},{"$f":"IF('[8]MONE(M)'!$AO89=\"\",\"\",'[8]MONE(M)'!$AO89)","v":"n.d."},"n.d.","n.d.","n.d.","n.d.","n.d.","n.d.","n.d.",{"$f":"IF('[2]FISCAL(M)'!$K89=\"\",\"\",'[2]FISCAL(M)'!$K89)","v":"n.d."},"n.d.","n.d.",{"$f":"IF('[2]FISCAL(M)'!$L89=\"\",\"\",'[2]FISCAL(M)'!$L89)","v":"n.d."},"n.d.","n.d.","n.d.","n.d.","n.d.","n.d.","n.d.","n.d.","n.d.","n.d.","n.d.","n.d.","n.d.","n.d.","n.d.","n.d.","n.d.","n.d."]
[1996,"septiembre","1996-septiembre",{"$f":"IF('[2]REAL IPC(M)'!$AL90=\"\",\"\",+'[2]REAL IPC(M)'!$AL90)","v":11.057003723861381},{"$f":"IF('[2]REAL IPC(M)'!$BE90=\"\",\"\",+'[2]REAL IPC(M)'!$BE90)","v":10.669503860302164},{"$f":"IF('[2]REAL IPC(M)'!$AM90=\"\",\"\",+'[2]REAL IPC(M)'!$AM90)","v":10.158730158730167},{"$f":"IF('[2]REAL IPC(M)'!$BI90=\"\",\"\",+'[2]REAL IPC(M)'!$BI90)","v":9.8000972668217621},{"$f":"IF('[2]REAL IMAE(M)'!BJ90=\"\",\"\",'[2]REAL IMAE(M)'!BJ90)","v":"n.d."},{"$f":"IF('[2]REAL IMAE(M)'!BK90=\"\",\"\",'[2]REAL IMAE(M)'!BK90)","v":"n.d."},{"$f":"IF('[2]REAL IMAE(M)'!BN90=\"\",\"\",'[2]REAL IMAE(M)'!BN90)","v":"n.d."},{"$f":"IF('[2]REAL IMAE(M)'!BO90=\"\",\"\",'[2]REAL IMAE(M)'!BO90)","v":"n.d."},{"$f":"IF('[2]EXT RIN(M)'!$K90=\"\",\"\",'[2]EXT RIN(M)'!$K90)","v":"n.d."},"",{"$f":"IF('[2]EXT RIN(M)'!$L90=\"\",\"\",'[2]EXT RIN(M)'!$L90)","v":"n.d."},"",{"$f":"IF('[2]MONE(M)CARD'!EG90=\"\",\"\",'[2]MONE(M)CARD'!EG90)","v":"n.d."},{"$f":"IF('[2]MONE(M)CARD'!EK90=\"\",\"\",'[2]MONE(M)CARD'!EK90)","v":"n.d."},{"$f":"IF('[2]MONE(M)CARD'!EP90=\"\",\"\",'[2]MONE(M)CARD'!EP90)","v":"n.d."},{"$f":"IF('[2]MONE(M)CARD'!ES90=\"\",\"\",'[2]MONE(M)CARD'!ES90)","v":"n.d."},{"$f":"IF('[2]MONE(M)CARD'!EV90=\"\",\"\",'[2]MONE(M)CARD'!EV90)","v":"n.d."},{"$f":"IF('[2]MONE(M)CARD'!EZ90=\"\",\"\",'[2]MONE(M)CARD'!EZ90)","v":"n.d."},{"$f":"IF('[2]MONE(M)CAPARD'!FC90=\"\",\"\",'[2]MONE(M)CAPARD'!FC90)","v":"n.d."},{"$f":"IF('[2]MONE(M)CAPARD'!FG90=\"\",\"\",'[2]MONE(M)CAPARD'!FG90)","v":"n.d."},{"$f":"IF('[2]MONE(M)CAPARD'!FL90=\"\",\"\",'[2]MONE(M)CAPARD'!FL90)","v":"n.d."},{"$f":"IF('[2]MONE(M)CAPARD'!FO90=\"\",\"\",'[2]MONE(M)CAPARD'!FO90)","v":"n.d."},{"$f":"IF('[2]MONE(M)CAPARD'!FR90=\"\",\"\",'[2]MONE(M)CAPARD'!FR90)","v":"n.d."},{"$f":"IF('[2]MONE(M)CAPARD'!FV90=\"\",\"\",'[2]MONE(M)CAPARD'!FV90)","v":"n.d."},{"$f":"IF('[2]MONE(M)CARD'!FV90=\"\",\"\",'[2]MONE(M)CARD'!FV90)","v":""},{"$f":"IF('[2]MONE(M)CARD'!GD90=\"\",\"\",'[2]MONE(M)CARD'!GD90)","v":"n.d."},{"$f":"IF('[2]MONE(M)CARD'!GE90=\"\",\"\",'[2]MONE(M)CARD'!GE90)","v":"n.d."},"n.d.","n.d.","n.d.","n.d.","n.d.","n.d.","n.d.","n.d.",null,"n.d.","n.d.","n.d.","n.d.","n.d.",{"$f":"IF('[2]MONE(M)CAPARD'!GS90=\"\",\"\",'[2]MONE(M)CAPARD'!GS90)","v":"n.d."},{"$f":"IF('[2]MONE(M)CARD'!HA90=\"\",\"\",'[2]MONE(M)CAPARD'!HA90)","v":"n.d."},{"$f":"IF('[2]MONE(M)CAPARD'!HB90=\"\",\"\",'[2]MONE(M)CAPARD'!HB90)","v":"n.d."},"n.d.","n.d.","n.d.","n.d.","n.d.","n.d.","n.d.","n.d.","n.d.","n.d.","n.d.","n.d.","n.d.","n.d.",{"$f":"IF('[2]MONE(M)CAPARD'!AS90=\"\",\"\",'[2]MONE(M)CAPARD'!AS90)","v":"n.d."},{"$f":"IF('[2]MONE(M)CAPARD'!AT90=\"\",\"\",'[2]MONE(M)CAPARD'!AT90)","v":"n.a."},{"$f":"IF('[2]MONE(M)CAPARD'!AU90=\"\",\"\",'[2]MONE(M)CAPARD'!AU90)","v":"n.d."},{"$f":"IF('[2]MONE(M)CAPARD'!AV90=\"\",\"\",'[2]MONE(M)CAPARD'!AV90)","v":"n.d."},{"$f":"IF('[2]MONE(M)CAPARD'!AW90=\"\",\"\",'[2]MONE(M)CAPARD'!AW90)","v":"n.a."},{"$f":"IF('[2]MONE(M)CAPARD'!AX90=\"\",\"\",'[2]MONE(M)CAPARD'!AX90)","v":"n.d."},{"$f":"IF('[2]MONE(M)CAPARD'!AY90=\"\",\"\",'[2]MONE(M)CAPARD'!AY90)","v":"n.a."},{"$f":"IF('[2]FISCAL(M)'!$K90=\"\",\"\",'[2]FISCAL(M)'!$K90)","v":"n.d."},{"$f":"IF('[2]FISCAL(M)'!$L90=\"\",\"\",'[2]FISCAL(M)'!$L90)","v":"n.d."},{"$f":"IF('[2]FISCAL(M)'!$AY90=\"\",\"\",'[2]FISCAL(M)'!$AY90)","v":"n.d."},{"$f":"IF('[2]FISCAL(M)'!$BI90=\"\",\"\",'[2]FISCAL(M)'!$BI90)","v":"n.d."},{"$f":"IF('[2]FISCAL(M)'!$BS90=\"\",\"\",'[2]FISCAL(M)'!$BS90)","v":"n.d."},{"$f":"IF('[2]FISCAL(M)'!$AZ90=\"\",\"\",'[2]FISCAL(M)'!$AZ90)","v":"n.d."},{"$f":"IF('[2]FISCAL(M)'!$BJ90=\"\",\"\",'[2]FISCAL(M)'!$BJ90)","v":"n.d."},{"$f":"IF('[2]FISCAL(M)'!$BT90=\"\",\"\",'[2]FISCAL(M)'!$BT90)","v":"n.d."},{"$f":"IF('[3]MONE(M)'!$AO90=\"\",\"\",'[3]MONE(M)'!$AO90)","v":"n.d."},{"$f":"IF('[4]MONE(M)'!$AO90=\"\",\"\",'[4]MONE(M)'!$AO90)","v":"n.d."},{"$f":"IF('[5]MONE(M)'!$AO90=\"\",\"\",'[5]MONE(M)'!$AO90)","v":"n.d."},{"$f":"+'[1]MONE(M)'!$AO90","v":"n.d."},{"$f":"IF('[6]MONE(M)'!$AO90=\"\",\"\",'[6]MONE(M)'!$AO90)","v":"n.d."},{"$f":"IF('[7]MONE(M)'!$AO90=\"\",\"\",'[7]MONE(M)'!$AO90)","v":"n.d."},{"$f":"IF('[8]MONE(M)'!$AO90=\"\",\"\",'[8]MONE(M)'!$AO90)","v":"n.d."},"n.d.","n.d.","n.d.","n.d.","n.d.","n.d.","n.d.",{"$f":"IF('[2]FISCAL(M)'!$K90=\"\",\"\",'[2]FISCAL(M)'!$K90)","v":"n.d."},"n.d.","n.d.",{"$f":"IF('[2]FISCAL(M)'!$L90=\"\",\"\",'[2]FISCAL(M)'!$L90)","v":"n.d."},"n.d.","n.d.","n.d.","n.d.","n.d.","n.d.","n.d.","n.d.","n.d.","n.d.","n.d.","n.d.","n.d.","n.d.","n.d.","n.d.","n.d.","n.d."]
[1996,"octubre","1996-octubre",{"$f":"IF('[2]REAL IPC(M)'!$AL91=\"\",\"\",+'[2]REAL IPC(M)'!$AL91)","v":10.146561443066515},{"$f":"IF('[2]REAL IPC(M)'!$BE91=\"\",\"\",+'[2]REAL IPC(M)'!$BE91)","v":10.502814478432509},{"$f":"IF('[2]REAL IPC(M)'!$AM91=\"\",\"\",+'[2]REAL IPC(M)'!$AM91)","v":9.3587069864442327},{"$f":"IF('[2]REAL IPC(M)'!$BI91=\"\",\"\",+'[2]REAL IPC(M)'!$BI91)","v":9.6469279797080976},{"$f":"IF('[2]REAL IMAE(M)'!BJ91=\"\",\"\",'[2]REAL IMAE(M)'!BJ91)","v":"n.d."},{"$f":"IF('[2]REAL IMAE(M)'!BK91=\"\",\"\",'[2]REAL IMAE(M)'!BK91)","v":"n.d."},{"$f":"IF('[2]REAL IMAE(M)'!BN91=\"\",\"\",'[2]REAL IMAE(M)'!BN91)","v":"n.d."},{"$f":"IF('[2]REAL IMAE(M)'!BO91=\"\",\"\",'[2]REAL IMAE(M)'!BO91)","v":"n.d."},{"$f":"IF('[2]EXT RIN(M)'!$K91=\"\",\"\",'[2]EXT RIN(M)'!$K91)","v":"n.d."},"",{"$f":"IF('[2]EXT RIN(M)'!$L91=\"\",\"\",'[2]EXT RIN(M)'!$L91)","v":"n.d."},"",{"$f":"IF('[2]MONE(M)CARD'!EG91=\"\",\"\",'[2]MONE(M)CARD'!EG91)","v":"n.d."},{"$f":"IF('[2]MONE(M)CARD'!EK91=\"\",\"\",'[2]MONE(M)CARD'!EK91)","v":"n.d."},{"$f":"IF('[2]MONE(M)CARD'!EP91=\"\",\"\",'[2]MONE(M)CARD'!EP91)","v":"n.d."},{"$f":"IF('[2]MONE(M)CARD'!ES91=\"\",\"\",'[2]MONE(M)CARD'!ES91)","v":"n.d."},{"$f":"IF('[2]MONE(M)CARD'!EV91=\"\",\"\",'[2]MONE(M)CARD'!EV91)","v":"n.d."},{"$f":"IF('[2]MONE(M)CARD'!EZ91=\"\",\"\",'[2]MONE(M)CARD'!EZ91)","v":"n.d."},{"$f":"IF('[2]MONE(M)CAPARD'!FC91=\"\",\"\",'[2]MONE(M)CAPARD'!FC91)","v":"n.d."},{"$f":"IF('[2]MONE(M)CAPARD'!FG91=\"\",\"\",'[2]MONE(M)CAPARD'!FG91)","v":"n.d."},{"$f":"IF('[2]MONE(M)CAPARD'!FL91=\"\",\"\",'[2]MONE(M)CAPARD'!FL91)","v":"n.d."},{"$f":"IF('[2]MONE(M)CAPARD'!FO91=\"\",\"\",'[2]MONE(M)CAPARD'!FO91)","v":"n.d."},{"$f":"IF('[2]MONE(M)CAPARD'!FR91=\"\",\"\",'[2]MONE(M)CAPARD'!FR91)","v":"n.d."},{"$f":"IF('[2]MONE(M)CAPARD'!FV91=\"\",\"\",'[2]MONE(M)CAPARD'!FV91)","v":"n.d."},{"$f":"IF('[2]MONE(M)CARD'!FV91=\"\",\"\",'[2]MONE(M)CARD'!FV91)","v":""},{"$f":"IF('[2]MONE(M)CARD'!GD91=\"\",\"\",'[2]MONE(M)CARD'!GD91)","v":"n.d."},{"$f":"IF('[2]MONE(M)CARD'!GE91=\"\",\"\",'[2]MONE(M)CARD'!GE91)","v":"n.d."},"n.d.","n.d.","n.d.","n.d.","n.d.","n.d.","n.d.","n.d.",null,"n.d.","n.d.","n.d.","n.d.","n.d.",{"$f":"IF('[2]MONE(M)CAPARD'!GS91=\"\",\"\",'[2]MONE(M)CAPARD'!GS91)","v":"n.d."},{"$f":"IF('[2]MONE(M)CARD'!HA91=\"\",\"\",'[2]MONE(M)CAPARD'!HA91)","v":"n.d."},{"$f":"IF('[2]MONE(M)CAPARD'!HB91=\"\",\"\",'[2]MONE(M)CAPARD'!HB91)","v":"n.d."},"n.d.","n.d.","n.d.","n.d.","n.d.","n.d.","n.d.","n.d.","n.d.","n.d.","n.d.","n.d.","n.d.","n.d.",{"$f":"IF('[2]MONE(M)CAPARD'!AS91=\"\",\"\",'[2]MONE(M)CAPARD'!AS91)","v":"n.d."},{"$f":"IF('[2]MONE(M)CAPARD'!AT91=\"\",\"\",'[2]MONE(M)CAPARD'!AT91)","v":"n.a."},{"$f":"IF('[2]MONE(M)CAPARD'!AU91=\"\",\"\",'[2]MONE(M)CAPARD'!AU91)","v":"n.d."},{"$f":"IF('[2]MONE(M)CAPARD'!AV91=\"\",\"\",'[2]MONE(M)CAPARD'!AV91)","v":"n.d."},{"$f":"IF('[2]MONE(M)CAPARD'!AW91=\"\",\"\",'[2]MONE(M)CAPARD'!AW91)","v":"n.a."},{"$f":"IF('[2]MONE(M)CAPARD'!AX91=\"\",\"\",'[2]MONE(M)CAPARD'!AX91)","v":"n.d."},{"$f":"IF('[2]MONE(M)CAPARD'!AY91=\"\",\"\",'[2]MONE(M)CAPARD'!AY91)","v":"n.a."},{"$f":"IF('[2]FISCAL(M)'!$K91=\"\",\"\",'[2]FISCAL(M)'!$K91)","v":"n.d."},{"$f":"IF('[2]FISCAL(M)'!$L91=\"\",\"\",'[2]FISCAL(M)'!$L91)","v":"n.d."},{"$f":"IF('[2]FISCAL(M)'!$AY91=\"\",\"\",'[2]FISCAL(M)'!$AY91)","v":"n.d."},{"$f":"IF('[2]FISCAL(M)'!$BI91=\"\",\"\",'[2]FISCAL(M)'!$BI91)","v":"n.d."},{"$f":"IF('[2]FISCAL(M)'!$BS91=\"\",\"\",'[2]FISCAL(M)'!$BS91)","v":"n.d."},{"$f":"IF('[2]FISCAL(M)'!$AZ91=\"\",\"\",'[2]FISCAL(M)'!$AZ91)","v":"n.d."},{"$f":"IF('[2]FISCAL(M)'!$BJ91=\"\",\"\",'[2]FISCAL(M)'!$BJ91)","v":"n.d."},{"$f":"IF('[2]FISCAL(M)'!$BT91=\"\",\"\",'[2]FISCAL(M)'!$BT91)","v":"n.d."},{"$f":"IF('[3]MONE(M)'!$AO91=\"\",\"\",'[3]MONE(M)'!$AO91)","v":"n.d."},{"$f":"IF('[4]MONE(M)'!$AO91=\"\",\"\",'[4]MONE(M)'!$AO91)","v":"n.d."},{"$f":"IF('[5]MONE(M)'!$AO91=\"\",\"\",'[5]MONE(M)'!$AO91)","v":"n.d."},{"$f":"+'[1]MONE(M)'!$AO91","v":"n.d."},{"$f":"IF('[6]MONE(M)'!$AO91=\"\",\"\",'[6]MONE(M)'!$AO91)","v":"n.d."},{"$f":"IF('[7]MONE(M)'!$AO91=\"\",\"\",'[7]MONE(M)'!$AO91)","v":"n.d."},{"$f":"IF('[8]MONE(M)'!$AO91=\"\",\"\",'[8]MONE(M)'!$AO91)","v":"n.d."},"n.d.","n.d.","n.d.","n.d.","n.d.","n.d.","n.d.",{"$f":"IF('[2]FISCAL(M)'!$K91=\"\",\"\",'[2]FISCAL(M)'!$K91)","v":"n.d."},"n.d.","n.d.",{"$f":"IF('[2]FISCAL(M)'!$L91=\"\",\"\",'[2]FISCAL(M)'!$L91)","v":"n.d."},"n.d.","n.d.","n.d.","n.d.","n.d.","n.d.","n.d.","n.d.","n.d.","n.d.","n.d.","n.d.","n.d.","n.d.","n.d.","n.d.","n.d.","n.d."]
[1996,"noviembre","1996-noviembre",{"$f":"IF('[2]REAL IPC(M)'!$AL92=\"\",\"\",+'[2]REAL IPC(M)'!$AL92)","v":9.5449500554938957},{"$f":"IF('[2]REAL IPC(M)'!$BE92=\"\",\"\",+'[2]REAL IPC(M)'!$BE92)","v":10.336514842194621},{"$f":"IF('[2]REAL IPC(M)'!$AM92=\"\",\"\",+'[2]REAL IPC(M)'!$AM92)","v":8.8688946015424328},{"$f":"IF('[2]REAL IPC(M)'!$BI92=\"\",\"\",+'[2]REAL IPC(M)'!$BI92)","v":9.4934728492979339},{"$f":"IF('[2]REAL IMAE(M)'!BJ92=\"\",\"\",'[2]REAL IMAE(M)'!BJ92)","v":"n.d."},{"$f":"IF('[2]REAL IMAE(M)'!BK92=\"\",\"\",'[2]REAL IMAE(M)'!BK92)","v":"n.d."},{"$f":"IF('[2]REAL IMAE(M)'!BN92=\"\",\"\",'[2]REAL IMAE(M)'!BN92)","v":"n.d."},{"$f":"IF('[2]REAL IMAE(M)'!BO92=\"\",\"\",'[2]REAL IMAE(M)'!BO92)","v":"n.d."},{"$f":"IF('[2]EXT RIN(M)'!$K92=\"\",\"\",'[2]EXT RIN(M)'!$K92)","v":"n.d."},"",{"$f":"IF('[2]EXT RIN(M)'!$L92=\"\",\"\",'[2]EXT RIN(M)'!$L92)","v":"n.d."},"",{"$f":"IF('[2]MONE(M)CARD'!EG92=\"\",\"\",'[2]MONE(M)CARD'!EG92)","v":"n.d."},{"$f":"IF('[2]MONE(M)CARD'!EK92=\"\",\"\",'[2]MONE(M)CARD'!EK92)","v":"n.d."},{"$f":"IF('[2]MONE(M)CARD'!EP92=\"\",\"\",'[2]MONE(M)CARD'!EP92)","v":"n.d."},{"$f":"IF('[2]MONE(M)CARD'!ES92=\"\",\"\",'[2]MONE(M)CARD'!ES92)","v":"n.d."},{"$f":"IF('[2]MONE(M)CARD'!EV92=\"\",\"\",'[2]MONE(M)CARD'!EV92)","v":"n.d."},{"$f":"IF('[2]MONE(M)CARD'!EZ92=\"\",\"\",'[2]MONE(M)CARD'!EZ92)","v":"n.d."},{"$f":"IF('[2]MONE(M)CAPARD'!FC92=\"\",\"\",'[2]MONE(M)CAPARD'!FC92)","v":"n.d."},{"$f":"IF('[2]MONE(M)CAPARD'!FG92=\"\",\"\",'[2]MONE(M)CAPARD'!FG92)","v":"n.d."},{"$f":"IF('[2]MONE(M)CAPARD'!FL92=\"\",\"\",'[2]MONE(M)CAPARD'!FL92)","v":"n.d."},{"$f":"IF('[2]MONE(M)CAPARD'!FO92=\"\",\"\",'[2]MONE(M)CAPARD'!FO92)","v":"n.d."},{"$f":"IF('[2]MONE(M)CAPARD'!FR92=\"\",\"\",'[2]MONE(M)CAPARD'!FR92)","v":"n.d."},{"$f":"IF('[2]MONE(M)CAPARD'!FV92=\"\",\"\",'[2]MONE(M)CAPARD'!FV92)","v":"n.d."},{"$f":"IF('[2]MONE(M)CARD'!FV92=\"\",\"\",'[2]MONE(M)CARD'!FV92)","v":""},{"$f":"IF('[2]MONE(M)CARD'!GD92=\"\",\"\",'[2]MONE(M)CARD'!GD92)","v":"n.d."},{"$f":"IF('[2]MONE(M)CARD'!GE92=\"\",\"\",'[2]MONE(M)CARD'!GE92)","v":"n.d."},"n.d.","n.d.","n.d.","n.d.","n.d.","n.d.","n.d.","n.d.",null,"n.d.","n.d.","n.d.","n.d.","n.d.",{"$f":"IF('[2]MONE(M)CAPARD'!GS92=\"\",\"\",'[2]MONE(M)CAPARD'!GS92)","v":"n.d."},{"$f":"IF('[2]MONE(M)CARD'!HA92=\"\",\"\",'[2]MONE(M)CAPARD'!HA92)","v":"n.d."},{"$f":"IF('[2]MONE(M)CAPARD'!HB92=\"\",\"\",'[2]MONE(M)CAPARD'!HB92)","v":"n.d."},"n.d.","n.d.","n.d.","n.d.","n.d.","n.d.","n.d.","n.d.","n.d.","n.d.","n.d.","n.d.","n.d.","n.d.",{"$f":"IF('[2]MONE(M)CAPARD'!AS92=\"\",\"\",'[2]MONE(M)CAPARD'!AS92)","v":"n.d."},{"$f":"IF('[2]MONE(M)CAPARD'!AT92=\"\",\"\",'[2]MONE(M)CAPARD'!AT92)","v":"n.a."},{"$f":"IF('[2]MONE(M)CAPARD'!AU92=\"\",\"\",'[2]MONE(M)CAPARD'!AU92)","v":"n.d."},{"$f":"IF('[2]MONE(M)CAPARD'!AV92=\"\",\"\",'[2]MONE(M)CAPARD'!AV92)","v":"n.d."},{"$f":"IF('[2]MONE(M)CAPARD'!AW92=\"\",\"\",'[2]MONE(M)CAPARD'!AW92)","v":"n.a."},{"$f":"IF('[2]MONE(M)CAPARD'!AX92=\"\",\"\",'[2]MONE(M)CAPARD'!AX92)","v":"n.d."},{"$f":"IF('[2]MONE(M)CAPARD'!AY92=\"\",\"\",'[2]MONE(M)CAPARD'!AY92)","v":"n.a."},{"$f":"IF('[2]FISCAL(M)'!$K92=\"\",\"\",'[2]FISCAL(M)'!$K92)","v":"n.d."},{"$f":"IF('[2]FISCAL(M)'!$L92=\"\",\"\",'[2]FISCAL(M)'!$L92)","v":"n.d."},{"$f":"IF('[2]FISCAL(M)'!$AY92=\"\",\"\",'[2]FISCAL(M)'!$AY92)","v":"n.d."},{"$f":"IF('[2]FISCAL(M)'!$BI92=\"\",\"\",'[2]FISCAL(M)'!$BI92)","v":"n.d."},{"$f":"IF('[2]FISCAL(M)'!$BS92=\"\",\"\",'[2]FISCAL(M)'!$BS92)","v":"n.d."},{"$f":"IF('[2]FISCAL(M)'!$AZ92=\"\",\"\",'[2]FISCAL(M)'!$AZ92)","v":"n.d."},{"$f":"IF('[2]FISCAL(M)'!$BJ92=\"\",\"\",'[2]FISCAL(M)'!$BJ92)","v":"n.d."},{"$f":"IF('[2]FISCAL(M)'!$BT92=\"\",\"\",'[2]FISCAL(M)'!$BT92)","v":"n.d."},{"$f":"IF('[3]MONE(M)'!$AO92=\"\",\"\",'[3]MONE(M)'!$AO92)","v":"n.d."},{"$f":"IF('[4]MONE(M)'!$AO92=\"\",\"\",'[4]MONE(M)'!$AO92)","v":"n.d."},{"$f":"IF('[5]MONE(M)'!$AO92=\"\",\"\",'[5]MONE(M)'!$AO92)","v":"n.d."},{"$f":"+'[1]MONE(M)'!$AO92","v":"n.d."},{"$f":"IF('[6]MONE(M)'!$AO92=\"\",\"\",'[6]MONE(M)'!$AO92)","v":"n.d."},{"$f":"IF('[7]MONE(M)'!$AO92=\"\",\"\",'[7]MONE(M)'!$AO92)","v":"n.d."},{"$f":"IF('[8]MONE(M)'!$AO92=\"\",\"\",'[8]MONE(M)'!$AO92)","v":"n.d."},"n.d.","n.d.","n.d.","n.d.","n.d.","n.d.","n.d.",{"$f":"IF('[2]FISCAL(M)'!$K92=\"\",\"\",'[2]FISCAL(M)'!$K92)","v":"n.d."},"n.d.","n.d.",{"$f":"IF('[2]FISCAL(M)'!$L92=\"\",\"\",'[2]FISCAL(M)'!$L92)","v":"n.d."},"n.d.","n.d.","n.d.","n.d.","n.d.","n.d.","n.d.","n.d.","n.d.","n.d.","n.d.","n.d.","n.d.","n.d.","n.d.","n.d.","n.d.","n.d."]
[1996,"diciembre","1996-diciembre",{"$f":"IF('[2]REAL IPC(M)'!$AL93=\"\",\"\",+'[2]REAL IPC(M)'!$AL93)","v":10.124137931034483},{"$f":"IF('[2]REAL IPC(M)'!$BE93=\"\",\"\",+'[2]REAL IPC(M)'!$BE93)","v":10.17077846469514},{"$f":"IF('[2]REAL IPC(M)'!$AM93=\"\",\"\",+'[2]REAL IPC(M)'!$AM93)","v":9.3789930999233171},{"$f":"IF('[2]REAL IPC(M)'!$BI93=\"\",\"\",+'[2]REAL IPC(M)'!$BI93)","v":9.3399074473202059},{"$f":"IF('[2]REAL IMAE(M)'!BJ93=\"\",\"\",'[2]REAL IMAE(M)'!BJ93)","v":"n.d."},{"$f":"IF('[2]REAL IMAE(M)'!BK93=\"\",\"\",'[2]REAL IMAE(M)'!BK93)","v":"n.d."},{"$f":"IF('[2]REAL IMAE(M)'!BN93=\"\",\"\",'[2]REAL IMAE(M)'!BN93)","v":"n.d."},{"$f":"IF('[2]REAL IMAE(M)'!BO93=\"\",\"\",'[2]REAL IMAE(M)'!BO93)","v":"n.d."},{"$f":"IF('[2]EXT RIN(M)'!$K93=\"\",\"\",'[2]EXT RIN(M)'!$K93)","v":"n.d."},"n.d.",{"$f":"IF('[2]EXT RIN(M)'!$L93=\"\",\"\",'[2]EXT RIN(M)'!$L93)","v":"n.d."},"n.d.",{"$f":"IF('[2]MONE(M)CARD'!EG93=\"\",\"\",'[2]MONE(M)CARD'!EG93)","v":"n.d."},{"$f":"IF('[2]MONE(M)CARD'!EK93=\"\",\"\",'[2]MONE(M)CARD'!EK93)","v":"n.d."},{"$f":"IF('[2]MONE(M)CARD'!EP93=\"\",\"\",'[2]MONE(M)CARD'!EP93)","v":"n.d."},{"$f":"IF('[2]MONE(M)CARD'!ES93=\"\",\"\",'[2]MONE(M)CARD'!ES93)","v":"n.d."},{"$f":"IF('[2]MONE(M)CARD'!EV93=\"\",\"\",'[2]MONE(M)CARD'!EV93)","v":"n.d."},{"$f":"IF('[2]MONE(M)CARD'!EZ93=\"\",\"\",'[2]MONE(M)CARD'!EZ93)","v":"n.d."},{"$f":"IF('[2]MONE(M)CAPARD'!FC93=\"\",\"\",'[2]MONE(M)CAPARD'!FC93)","v":"n.d."},{"$f":"IF('[2]MONE(M)CAPARD'!FG93=\"\",\"\",'[2]MONE(M)CAPARD'!FG93)","v":"n.d."},{"$f":"IF('[2]MONE(M)CAPARD'!FL93=\"\",\"\",'[2]MONE(M)CAPARD'!FL93)","v":"n.d."},{"$f":"IF('[2]MONE(M)CAPARD'!FO93=\"\",\"\",'[2]MONE(M)CAPARD'!FO93)","v":"n.d."},{"$f":"IF('[2]MONE(M)CAPARD'!FR93=\"\",\"\",'[2]MONE(M)CAPARD'!FR93)","v":"n.d."},{"$f":"IF('[2]MONE(M)CAPARD'!FV93=\"\",\"\",'[2]MONE(M)CAPARD'!FV93)","v":"n.d."},{"$f":"IF('[2]MONE(M)CARD'!FV93=\"\",\"\",'[2]MONE(M)CARD'!FV93)","v":""},{"$f":"IF('[2]MONE(M)CARD'!GD93=\"\",\"\",'[2]MONE(M)CARD'!GD93)","v":"n.d."},{"$f":"IF('[2]MONE(M)CARD'!GE93=\"\",\"\",'[2]MONE(M)CARD'!GE93)","v":"n.d."},"n.d.","n.d.","n.d.","n.d.","n.d.","n.d.","n.d.","n.d.",null,"n.d.","n.d.","n.d.","n.d.","n.d.",{"$f":"IF('[2]MONE(M)CAPARD'!GS93=\"\",\"\",'[2]MONE(M)CAPARD'!GS93)","v":"n.d."},{"$f":"IF('[2]MONE(M)CARD'!HA93=\"\",\"\",'[2]MONE(M)CAPARD'!HA93)","v":"n.d."},{"$f":"IF('[2]MONE(M)CAPARD'!HB93=\"\",\"\",'[2]MONE(M)CAPARD'!HB93)","v":"n.d."},"n.d.","n.d.","n.d.","n.d.","n.d.","n.d.","n.d.","n.d.","n.d.","n.d.","n.d.","n.d.","n.d.","n.d.",{"$f":"IF('[2]MONE(M)CAPARD'!AS93=\"\",\"\",'[2]MONE(M)CAPARD'!AS93)","v":"n.d."},{"$f":"IF('[2]MONE(M)CAPARD'!AT93=\"\",\"\",'[2]MONE(M)CAPARD'!AT93)","v":"n.a."},{"$f":"IF('[2]MONE(M)CAPARD'!AU93=\"\",\"\",'[2]MONE(M)CAPARD'!AU93)","v":"n.d."},{"$f":"IF('[2]MONE(M)CAPARD'!AV93=\"\",\"\",'[2]MONE(M)CAPARD'!AV93)","v":"n.d."},{"$f":"IF('[2]MONE(M)CAPARD'!AW93=\"\",\"\",'[2]MONE(M)CAPARD'!AW93)","v":"n.a."},{"$f":"IF('[2]MONE(M)CAPARD'!AX93=\"\",\"\",'[2]MONE(M)CAPARD'!AX93)","v":"n.d."},{"$f":"IF('[2]MONE(M)CAPARD'!AY93=\"\",\"\",'[2]MONE(M)CAPARD'!AY93)","v":"n.a."},{"$f":"IF('[2]FISCAL(M)'!$K93=\"\",\"\",'[2]FISCAL(M)'!$K93)","v":"n.d."},{"$f":"IF('[2]FISCAL(M)'!$L93=\"\",\"\",'[2]FISCAL(M)'!$L93)","v":"n.d."},{"$f":"IF('[2]FISCAL(M)'!$AY93=\"\",\"\",'[2]FISCAL(M)'!$AY93)","v":"n.d."},{"$f":"IF('[2]FISCAL(M)'!$BI93=\"\",\"\",'[2]FISCAL(M)'!$BI93)","v":"n.d."},{"$f":"IF('[2]FISCAL(M)'!$BS93=\"\",\"\",'[2]FISCAL(M)'!$BS93)","v":"n.d."},{"$f":"IF('[2]FISCAL(M)'!$AZ93=\"\",\"\",'[2]FISCAL(M)'!$AZ93)","v":"n.d."},{"$f":"IF('[2]FISCAL(M)'!$BJ93=\"\",\"\",'[2]FISCAL(M)'!$BJ93)","v":"n.d."},{"$f":"IF('[2]FISCAL(M)'!$BT93=\"\",\"\",'[2]FISCAL(M)'!$BT93)","v":"n.d."},{"$f":"IF('[3]MONE(M)'!$AO93=\"\",\"\",'[3]MONE(M)'!$AO93)","v":"n.d."},{"$f":"IF('[4]MONE(M)'!$AO93=\"\",\"\",'[4]MONE(M)'!$AO93)","v":"n.d."},{"$f":"IF('[5]MONE(M)'!$AO93=\"\",\"\",'[5]MONE(M)'!$AO93)","v":"n.d."},{"$f":"+'[1]MONE(M)'!$AO93","v":"n.d."},{"$f":"IF('[6]MONE(M)'!$AO93=\"\",\"\",'[6]MONE(M)'!$AO93)","v":"n.d."},{"$f":"IF('[7]MONE(M)'!$AO93=\"\",\"\",'[7]MONE(M)'!$AO93)","v":"n.d."},{"$f":"IF('[8]MONE(M)'!$AO93=\"\",\"\",'[8]MONE(M)'!$AO93)","v":"n.d."},"n.d.","n.d.","n.d.","n.d.","n.d.","n.d.","n.d.",{"$f":"IF('[2]FISCAL(M)'!$K93=\"\",\"\",'[2]FISCAL(M)'!$K93)","v":"n.d."},"n.d.","n.d.",{"$f":"IF('[2]FISCAL(M)'!$L93=\"\",\"\",'[2]FISCAL(M)'!$L93)","v":"n.d."},"n.d.","n.d.","n.d.","n.d.","n.d.","n.d.","n.d.","n.d.","n.d.","n.d.","n.d.","n.d.","n.d.","n.d.","n.d.","n.d.","n.d.","n.d."]
[1997,"enero","1997-enero",{"$f":"IF('[2]REAL IPC(M)'!$AL94=\"\",\"\",+'[2]REAL IPC(M)'!$AL94)","v":10.928061504667763},{"$f":"IF('[2]REAL IPC(M)'!$BE94=\"\",\"\",+'[2]REAL IPC(M)'!$BE94)","v":10.005732556036717},{"$f":"IF('[2]REAL IPC(M)'!$AM94=\"\",\"\",+'[2]REAL IPC(M)'!$AM94)","v":10.122075279755837},{"$f":"IF('[2]REAL IPC(M)'!$BI94=\"\",\"\",+'[2]REAL IPC(M)'!$BI94)","v":9.1863666308132039},{"$f":"IF('[2]REAL IMAE(M)'!BJ94=\"\",\"\",'[2]REAL IMAE(M)'!BJ94)","v":"n.d."},{"$f":"IF('[2]REAL IMAE(M)'!BK94=\"\",\"\",'[2]REAL IMAE(M)'!BK94)","v":"n.d."},{"$f":"IF('[2]REAL IMAE(M)'!BN94=\"\",\"\",'[2]REAL IMAE(M)'!BN94)","v":"n.d."},{"$f":"IF('[2]REAL IMAE(M)'!BO94=\"\",\"\",'[2]REAL IMAE(M)'!BO94)","v":"n.d."},{"$f":"IF('[2]EXT RIN(M)'!$K94=\"\",\"\",'[2]EXT RIN(M)'!$K94)","v":"n.d."},"",{"$f":"IF('[2]EXT RIN(M)'!$L94=\"\",\"\",'[2]EXT RIN(M)'!$L94)","v":"n.d."},"",{"$f":"IF('[2]MONE(M)CARD'!EG94=\"\",\"\",'[2]MONE(M)CARD'!EG94)","v":"n.d."},{"$f":"IF('[2]MONE(M)CARD'!EK94=\"\",\"\",'[2]MONE(M)CARD'!EK94)","v":"n.d."},{"$f":"IF('[2]MONE(M)CARD'!EP94=\"\",\"\",'[2]MONE(M)CARD'!EP94)","v":"n.d."},{"$f":"IF('[2]MONE(M)CARD'!ES94=\"\",\"\",'[2]MONE(M)CARD'!ES94)","v":"n.d."},{"$f":"IF('[2]MONE(M)CARD'!EV94=\"\",\"\",'[2]MONE(M)CARD'!EV94)","v":"n.d."},{"$f":"IF('[2]MONE(M)CARD'!EZ94=\"\",\"\",'[2]MONE(M)CARD'!EZ94)","v":"n.d."},{"$f":"IF('[2]MONE(M)CAPARD'!FC94=\"\",\"\",'[2]MONE(M)CAPARD'!FC94)","v":"n.d."},{"$f":"IF('[2]MONE(M)CAPARD'!FG94=\"\",\"\",'[2]MONE(M)CAPARD'!FG94)","v":"n.d."},{"$f":"IF('[2]MONE(M)CAPARD'!FL94=\"\",\"\",'[2]MONE(M)CAPARD'!FL94)","v":"n.d."},{"$f":"IF('[2]MONE(M)CAPARD'!FO94=\"\",\"\",'[2]MONE(M)CAPARD'!FO94)","v":"n.d."},{"$f":"IF('[2]MONE(M)CAPARD'!FR94=\"\",\"\",'[2]MONE(M)CAPARD'!FR94)","v":"n.d."},{"$f":"IF('[2]MONE(M)CAPARD'!FV94=\"\",\"\",'[2]MONE(M)CAPARD'!FV94)","v":"n.d."},{"$f":"IF('[2]MONE(M)CARD'!FV94=\"\",\"\",'[2]MONE(M)CARD'!FV94)","v":""},{"$f":"IF('[2]MONE(M)CARD'!GD94=\"\",\"\",'[2]MONE(M)CARD'!GD94)","v":"n.d."},{"$f":"IF('[2]MONE(M)CARD'!GE94=\"\",\"\",'[2]MONE(M)CARD'!GE94)","v":"n.d."},"n.d.","n.d.","n.d.","n.d.","n.d.","n.d.","n.d.","n.d.",null,"n.d.","n.d.","n.d.","n.d.","n.d.",{"$f":"IF('[2]MONE(M)CAPARD'!GS94=\"\",\"\",'[2]MONE(M)CAPARD'!GS94)","v":"n.d."},{"$f":"IF('[2]MONE(M)CARD'!HA94=\"\",\"\",'[2]MONE(M)CAPARD'!HA94)","v":"n.d."},{"$f":"IF('[2]MONE(M)CAPARD'!HB94=\"\",\"\",'[2]MONE(M)CAPARD'!HB94)","v":"n.d."},"n.d.","n.d.","n.d.","n.d.","n.d.","n.d.","n.d.","n.d.","n.d.","n.d.","n.d.","n.d.","n.d.","n.d.",{"$f":"IF('[2]MONE(M)CAPARD'!AS94=\"\",\"\",'[2]MONE(M)CAPARD'!AS94)","v":"n.d."},{"$f":"IF('[2]MONE(M)CAPARD'!AT94=\"\",\"\",'[2]MONE(M)CAPARD'!AT94)","v":"n.a."},{"$f":"IF('[2]MONE(M)CAPARD'!AU94=\"\",\"\",'[2]MONE(M)CAPARD'!AU94)","v":"n.d."},{"$f":"IF('[2]MONE(M)CAPARD'!AV94=\"\",\"\",'[2]MONE(M)CAPARD'!AV94)","v":"n.d."},{"$f":"IF('[2]MONE(M)CAPARD'!AW94=\"\",\"\",'[2]MONE(M)CAPARD'!AW94)","v":"n.a."},{"$f":"IF('[2]MONE(M)CAPARD'!AX94=\"\",\"\",'[2]MONE(M)CAPARD'!AX94)","v":"n.d."},{"$f":"IF('[2]MONE(M)CAPARD'!AY94=\"\",\"\",'[2]MONE(M)CAPARD'!AY94)","v":"n.a."},{"$f":"IF('[2]FISCAL(M)'!$K94=\"\",\"\",'[2]FISCAL(M)'!$K94)","v":"n.d."},{"$f":"IF('[2]FISCAL(M)'!$L94=\"\",\"\",'[2]FISCAL(M)'!$L94)","v":"n.d."},{"$f":"IF('[2]FISCAL(M)'!$AY94=\"\",\"\",'[2]FISCAL(M)'!$AY94)","v":"n.d."},{"$f":"IF('[2]FISCAL(M)'!$BI94=\"\",\"\",'[2]FISCAL(M)'!$BI94)","v":"n.d."},{"$f":"IF('[2]FISCAL(M)'!$BS94=\"\",\"\",'[2]FISCAL(M)'!$BS94)","v":"n.d."},{"$f":"IF('[2]FISCAL(M)'!$AZ94=\"\",\"\",'[2]FISCAL(M)'!$AZ94)","v":"n.d."},{"$f":"IF('[2]FISCAL(M)'!$BJ94=\"\",\"\",'[2]FISCAL(M)'!$BJ94)","v":"n.d."},{"$f":"IF('[2]FISCAL(M)'!$BT94=\"\",\"\",'[2]FISCAL(M)'!$BT94)","v":"n.d."},{"$f":"IF('[3]MONE(M)'!$AO94=\"\",\"\",'[3]MONE(M)'!$AO94)","v":"n.d."},{"$f":"IF('[4]MONE(M)'!$AO94=\"\",\"\",'[4]MONE(M)'!$AO94)","v":"n.d."},{"$f":"IF('[5]MONE(M)'!$AO94=\"\",\"\",'[5]MONE(M)'!$AO94)","v":"n.d."},{"$f":"+'[1]MONE(M)'!$AO94","v":"n.d."},{"$f":"IF('[6]MONE(M)'!$AO94=\"\",\"\",'[6]MONE(M)'!$AO94)","v":"n.d."},{"$f":"IF('[7]MONE(M)'!$AO94=\"\",\"\",'[7]MONE(M)'!$AO94)","v":"n.d."},{"$f":"IF('[8]MONE(M)'!$AO94=\"\",\"\",'[8]MONE(M)'!$AO94)","v":"n.d."},"n.d.","n.d.","n.d.","n.d.","n.d.","n.d.","n.d.",{"$f":"IF('[2]FISCAL(M)'!$K94=\"\",\"\",'[2]FISCAL(M)'!$K94)","v":"n.d."},"n.d.","n.d.",{"$f":"IF('[2]FISCAL(M)'!$L94=\"\",\"\",'[2]FISCAL(M)'!$L94)","v":"n.d."},"n.d.","n.d.","n.d.","n.d.","n.d.","n.d.","n.d.","n.d.","n.d.","n.d.","n.d.","n.d.","n.d.","n.d.","n.d.","n.d.","n.d.","n.d."]
[1997,"febrero","1997-febrero",{"$f":"IF('[2]REAL IPC(M)'!$AL95=\"\",\"\",+'[2]REAL IPC(M)'!$AL95)","v":11.501509744715888},{"$f":"IF('[2]REAL IPC(M)'!$BE95=\"\",\"\",+'[2]REAL IPC(M)'!$BE95)","v":9.8414946529184597},{"$f":"IF('[2]REAL IPC(M)'!$AM95=\"\",\"\",+'[2]REAL IPC(M)'!$AM95)","v":10.633426609005348},{"$f":"IF('[2]REAL IPC(M)'!$BI95=\"\",\"\",+'[2]REAL IPC(M)'!$BI95)","v":9.0329833758716163},{"$f":"IF('[2]REAL IMAE(M)'!BJ95=\"\",\"\",'[2]REAL IMAE(M)'!BJ95)","v":"n.d."},{"$f":"IF('[2]REAL IMAE(M)'!BK95=\"\",\"\",'[2]REAL IMAE(M)'!BK95)","v":"n.d."},{"$f":"IF('[2]REAL IMAE(M)'!BN95=\"\",\"\",'[2]REAL IMAE(M)'!BN95)","v":"n.d."},{"$f":"IF('[2]REAL IMAE(M)'!BO95=\"\",\"\",'[2]REAL IMAE(M)'!BO95)","v":"n.d."},{"$f":"IF('[2]EXT RIN(M)'!$K95=\"\",\"\",'[2]EXT RIN(M)'!$K95)","v":"n.d."},"",{"$f":"IF('[2]EXT RIN(M)'!$L95=\"\",\"\",'[2]EXT RIN(M)'!$L95)","v":"n.d."},"",{"$f":"IF('[2]MONE(M)CARD'!EG95=\"\",\"\",'[2]MONE(M)CARD'!EG95)","v":"n.d."},{"$f":"IF('[2]MONE(M)CARD'!EK95=\"\",\"\",'[2]MONE(M)CARD'!EK95)","v":"n.d."},{"$f":"IF('[2]MONE(M)CARD'!EP95=\"\",\"\",'[2]MONE(M)CARD'!EP95)","v":"n.d."},{"$f":"IF('[2]MONE(M)CARD'!ES95=\"\",\"\",'[2]MONE(M)CARD'!ES95)","v":"n.d."},{"$f":"IF('[2]MONE(M)CARD'!EV95=\"\",\"\",'[2]MONE(M)CARD'!EV95)","v":"n.d."},{"$f":"IF('[2]MONE(M)CARD'!EZ95=\"\",\"\",'[2]MONE(M)CARD'!EZ95)","v":"n.d."},{"$f":"IF('[2]MONE(M)CAPARD'!FC95=\"\",\"\",'[2]MONE(M)CAPARD'!FC95)","v":"n.d."},{"$f":"IF('[2]MONE(M)CAPARD'!FG95=\"\",\"\",'[2]MONE(M)CAPARD'!FG95)","v":"n.d."},{"$f":"IF('[2]MONE(M)CAPARD'!FL95=\"\",\"\",'[2]MONE(M)CAPARD'!FL95)","v":"n.d."},{"$f":"IF('[2]MONE(M)CAPARD'!FO95=\"\",\"\",'[2]MONE(M)CAPARD'!FO95)","v":"n.d."},{"$f":"IF('[2]MONE(M)CAPARD'!FR95=\"\",\"\",'[2]MONE(M)CAPARD'!FR95)","v":"n.d."},{"$f":"IF('[2]MONE(M)CAPARD'!FV95=\"\",\"\",'[2]MONE(M)CAPARD'!FV95)","v":"n.d."},{"$f":"IF('[2]MONE(M)CARD'!FV95=\"\",\"\",'[2]MONE(M)CARD'!FV95)","v":""},{"$f":"IF('[2]MONE(M)CARD'!GD95=\"\",\"\",'[2]MONE(M)CARD'!GD95)","v":"n.d."},{"$f":"IF('[2]MONE(M)CARD'!GE95=\"\",\"\",'[2]MONE(M)CARD'!GE95)","v":"n.d."},"n.d.","n.d.","n.d.","n.d.","n.d.","n.d.","n.d.","n.d.",null,"n.d.","n.d.","n.d.","n.d.","n.d.",{"$f":"IF('[2]MONE(M)CAPARD'!GS95=\"\",\"\",'[2]MONE(M)CAPARD'!GS95)","v":"n.d."},{"$f":"IF('[2]MONE(M)CARD'!HA95=\"\",\"\",'[2]MONE(M)CAPARD'!HA95)","v":"n.d."},{"$f":"IF('[2]MONE(M)CAPARD'!HB95=\"\",\"\",'[2]MONE(M)CAPARD'!HB95)","v":"n.d."},"n.d.","n.d.","n.d.","n.d.","n.d.","n.d.","n.d.","n.d.","n.d.","n.d.","n.d.","n.d.","n.d.","n.d.",{"$f":"IF('[2]MONE(M)CAPARD'!AS95=\"\",\"\",'[2]MONE(M)CAPARD'!AS95)","v":"n.d."},{"$f":"IF('[2]MONE(M)CAPARD'!AT95=\"\",\"\",'[2]MONE(M)CAPARD'!AT95)","v":"n.a."},{"$f":"IF('[2]MONE(M)CAPARD'!AU95=\"\",\"\",'[2]MONE(M)CAPARD'!AU95)","v":"n.d."},{"$f":"IF('[2]MONE(M)CAPARD'!AV95=\"\",\"\",'[2]MONE(M)CAPARD'!AV95)","v":"n.d."},{"$f":"IF('[2]MONE(M)CAPARD'!AW95=\"\",\"\",'[2]MONE(M)CAPARD'!AW95)","v":"n.a."},{"$f":"IF('[2]MONE(M)CAPARD'!AX95=\"\",\"\",'[2]MONE(M)CAPARD'!AX95)","v":"n.d."},{"$f":"IF('[2]MONE(M)CAPARD'!AY95=\"\",\"\",'[2]MONE(M)CAPARD'!AY95)","v":"n.a."},{"$f":"IF('[2]FISCAL(M)'!$K95=\"\",\"\",'[2]FISCAL(M)'!$K95)","v":"n.d."},{"$f":"IF('[2]FISCAL(M)'!$L95=\"\",\"\",'[2]FISCAL(M)'!$L95)","v":"n.d."},{"$f":"IF('[2]FISCAL(M)'!$AY95=\"\",\"\",'[2]FISCAL(M)'!$AY95)","v":"n.d."},{"$f":"IF('[2]FISCAL(M)'!$BI95=\"\",\"\",'[2]FISCAL(M)'!$BI95)","v":"n.d."},{"$f":"IF('[2]FISCAL(M)'!$BS95=\"\",\"\",'[2]FISCAL(M)'!$BS95)","v":"n.d."},{"$f":"IF('[2]FISCAL(M)'!$AZ95=\"\",\"\",'[2]FISCAL(M)'!$AZ95)","v":"n.d."},{"$f":"IF('[2]FISCAL(M)'!$BJ95=\"\",\"\",'[2]FISCAL(M)'!$BJ95)","v":"n.d."},{"$f":"IF('[2]FISCAL(M)'!$BT95=\"\",\"\",'[2]FISCAL(M)'!$BT95)","v":"n.d."},{"$f":"IF('[3]MONE(M)'!$AO95=\"\",\"\",'[3]MONE(M)'!$AO95)","v":"n.d."},{"$f":"IF('[4]MONE(M)'!$AO95=\"\",\"\",'[4]MONE(M)'!$AO95)","v":"n.d."},{"$f":"IF('[5]MONE(M)'!$AO95=\"\",\"\",'[5]MONE(M)'!$AO95)","v":"n.d."},{"$f":"+'[1]MONE(M)'!$AO95","v":"n.d."},{"$f":"IF('[6]MONE(M)'!$AO95=\"\",\"\",'[6]MONE(M)'!$AO95)","v":"n.d."},{"$f":"IF('[7]MONE(M)'!$AO95=\"\",\"\",'[7]MONE(M)'!$AO95)","v":"n.d."},{"$f":"IF('[8]MONE(M)'!$AO95=\"\",\"\",'[8]MONE(M)'!$AO95)","v":"n.d."},"n.d.","n.d.","n.d.","n.d.","n.d.","n.d.","n.d.",{"$f":"IF('[2]FISCAL(M)'!$K95=\"\",\"\",'[2]FISCAL(M)'!$K95)","v":"n.d."},"n.d.","n.d.",{"$f":"IF('[2]FISCAL(M)'!$L95=\"\",\"\",'[2]FISCAL(M)'!$L95)","v":"n.d."},"n.d.","n.d.","n.d.","n.d.","n.d.","n.d.","n.d.","n.d.","n.d.","n.d.","n.d.","n.d.","n.d.","n.d.","n.d.","n.d.","n.d.","n.d."]
[1997,"marzo","1997-marzo",{"$f":"IF('[2]REAL IPC(M)'!$AL96=\"\",\"\",+'[2]REAL IPC(M)'!$AL96)","v":11.023192360163714},{"$f":"IF('[2]REAL IPC(M)'!$BE96=\"\",\"\",+'[2]REAL IPC(M)'!$BE96)","v":9.678235423680448},{"$f":"IF('[2]REAL IPC(M)'!$AM96=\"\",\"\",+'[2]REAL IPC(M)'!$AM96)","v":10.169491525423723},{"$f":"IF('[2]REAL IPC(M)'!$BI96=\"\",\"\",+'[2]REAL IPC(M)'!$BI96)","v":8.879949626073703},{"$f":"IF('[2]REAL IMAE(M)'!BJ96=\"\",\"\",'[2]REAL IMAE(M)'!BJ96)","v":"n.d."},{"$f":"IF('[2]REAL IMAE(M)'!BK96=\"\",\"\",'[2]REAL IMAE(M)'!BK96)","v":"n.d."},{"$f":"IF('[2]REAL IMAE(M)'!BN96=\"\",\"\",'[2]REAL IMAE(M)'!BN96)","v":"n.d."},{"$f":"IF('[2]REAL IMAE(M)'!BO96=\"\",\"\",'[2]REAL IMAE(M)'!BO96)","v":"n.d."},{"$f":"IF('[2]EXT RIN(M)'!$K96=\"\",\"\",'[2]EXT RIN(M)'!$K96)","v":"n.d."},"",{"$f":"IF('[2]EXT RIN(M)'!$L96=\"\",\"\",'[2]EXT RIN(M)'!$L96)","v":"n.d."},"",{"$f":"IF('[2]MONE(M)CARD'!EG96=\"\",\"\",'[2]MONE(M)CARD'!EG96)","v":"n.d."},{"$f":"IF('[2]MONE(M)CARD'!EK96=\"\",\"\",'[2]MONE(M)CARD'!EK96)","v":"n.d."},{"$f":"IF('[2]MONE(M)CARD'!EP96=\"\",\"\",'[2]MONE(M)CARD'!EP96)","v":"n.d."},{"$f":"IF('[2]MONE(M)CARD'!ES96=\"\",\"\",'[2]MONE(M)CARD'!ES96)","v":"n.d."},{"$f":"IF('[2]MONE(M)CARD'!EV96=\"\",\"\",'[2]MONE(M)CARD'!EV96)","v":"n.d."},{"$f":"IF('[2]MONE(M)CARD'!EZ96=\"\",\"\",'[2]MONE(M)CARD'!EZ96)","v":"n.d."},{"$f":"IF('[2]MONE(M)CAPARD'!FC96=\"\",\"\",'[2]MONE(M)CAPARD'!FC96)","v":"n.d."},{"$f":"IF('[2]MONE(M)CAPARD'!FG96=\"\",\"\",'[2]MONE(M)CAPARD'!FG96)","v":"n.d."},{"$f":"IF('[2]MONE(M)CAPARD'!FL96=\"\",\"\",'[2]MONE(M)CAPARD'!FL96)","v":"n.d."},{"$f":"IF('[2]MONE(M)CAPARD'!FO96=\"\",\"\",'[2]MONE(M)CAPARD'!FO96)","v":"n.d."},{"$f":"IF('[2]MONE(M)CAPARD'!FR96=\"\",\"\",'[2]MONE(M)CAPARD'!FR96)","v":"n.d."},{"$f":"IF('[2]MONE(M)CAPARD'!FV96=\"\",\"\",'[2]MONE(M)CAPARD'!FV96)","v":"n.d."},{"$f":"IF('[2]MONE(M)CARD'!FV96=\"\",\"\",'[2]MONE(M)CARD'!FV96)","v":""},{"$f":"IF('[2]MONE(M)CARD'!GD96=\"\",\"\",'[2]MONE(M)CARD'!GD96)","v":"n.d."},{"$f":"IF('[2]MONE(M)CARD'!GE96=\"\",\"\",'[2]MONE(M)CARD'!GE96)","v":"n.d."},"n.d.","n.d.","n.d.","n.d.","n.d.","n.d.","n.d.","n.d.",null,"n.d.","n.d.","n.d.","n.d.","n.d.",{"$f":"IF('[2]MONE(M)CAPARD'!GS96=\"\",\"\",'[2]MONE(M)CAPARD'!GS96)","v":"n.d."},{"$f":"IF('[2]MONE(M)CARD'!HA96=\"\",\"\",'[2]MONE(M)CAPARD'!HA96)","v":"n.d."},{"$f":"IF('[2]MONE(M)CAPARD'!HB96=\"\",\"\",'[2]MONE(M)CAPARD'!HB96)","v":"n.d."},"n.d.","n.d.","n.d.","n.d.","n.d.","n.d.","n.d.","n.d.","n.d.","n.d.","n.d.","n.d.","n.d.","n.d.",{"$f":"IF('[2]MONE(M)CAPARD'!AS96=\"\",\"\",'[2]MONE(M)CAPARD'!AS96)","v":"n.d."},{"$f":"IF('[2]MONE(M)CAPARD'!AT96=\"\",\"\",'[2]MONE(M)CAPARD'!AT96)","v":"n.a."},{"$f":"IF('[2]MONE(M)CAPARD'!AU96=\"\",\"\",'[2]MONE(M)CAPARD'!AU96)","v":"n.d."},{"$f":"IF('[2]MONE(M)CAPARD'!AV96=\"\",\"\",'[2]MONE(M)CAPARD'!AV96)","v":"n.d."},{"$f":"IF('[2]MONE(M)CAPARD'!AW96=\"\",\"\",'[2]MONE(M)CAPARD'!AW96)","v":"n.a."},{"$f":"IF('[2]MONE(M)CAPARD'!AX96=\"\",\"\",'[2]MONE(M)CAPARD'!AX96)","v":"n.d."},{"$f":"IF('[2]MONE(M)CAPARD'!AY96=\"\",\"\",'[2]MONE(M)CAPARD'!AY96)","v":"n.a."},{"$f":"IF('[2]FISCAL(M)'!$K96=\"\",\"\",'[2]FISCAL(M)'!$K96)","v":"n.d."},{"$f":"IF('[2]FISCAL(M)'!$L96=\"\",\"\",'[2]FISCAL(M)'!$L96)","v":"n.d."},{"$f":"IF('[2]FISCAL(M)'!$AY96=\"\",\"\",'[2]FISCAL(M)'!$AY96)","v":"n.d."},{"$f":"IF('[2]FISCAL(M)'!$BI96=\"\",\"\",'[2]FISCAL(M)'!$BI96)","v":"n.d."},{"$f":"IF('[2]FISCAL(M)'!$BS96=\"\",\"\",'[2]FISCAL(M)'!$BS96)","v":"n.d."},{"$f":"IF('[2]FISCAL(M)'!$AZ96=\"\",\"\",'[2]FISCAL(M)'!$AZ96)","v":"n.d."},{"$f":"IF('[2]FISCAL(M)'!$BJ96=\"\",\"\",'[2]FISCAL(M)'!$BJ96)","v":"n.d."},{"$f":"IF('[2]FISCAL(M)'!$BT96=\"\",\"\",'[2]FISCAL(M)'!$BT96)","v":"n.d."},{"$f":"IF('[3]MONE(M)'!$AO96=\"\",\"\",'[3]MONE(M)'!$AO96)","v":"n.d."},{"$f":"IF('[4]MONE(M)'!$AO96=\"\",\"\",'[4]MONE(M)'!$AO96)","v":"n.d."},{"$f":"IF('[5]MONE(M)'!$AO96=\"\",\"\",'[5]MONE(M)'!$AO96)","v":"n.d."},{"$f":"+'[1]MONE(M)'!$AO96","v":"n.d."},{"$f":"IF('[6]MONE(M)'!$AO96=\"\",\"\",'[6]MONE(M)'!$AO96)","v":"n.d."},{"$f":"IF('[7]MONE(M)'!$AO96=\"\",\"\",'[7]MONE(M)'!$AO96)","v":"n.d."},{"$f":"IF('[8]MONE(M)'!$AO96=\"\",\"\",'[8]MONE(M)'!$AO96)","v":"n.d."},"n.d.","n.d.","n.d.","n.d.","n.d.","n.d.","n.d.",{"$f":"IF('[2]FISCAL(M)'!$K96=\"\",\"\",'[2]FISCAL(M)'!$K96)","v":"n.d."},"n.d.","n.d.",{"$f":"IF('[2]FISCAL(M)'!$L96=\"\",\"\",'[2]FISCAL(M)'!$L96)","v":"n.d."},"n.d.","n.d.","n.d.","n.d.","n.d.","n.d.","n.d.","n.d.","n.d.","n.d.","n.d.","n.d.","n.d.","n.d.","n.d.","n.d.","n.d.","n.d."]
[1997,"abril","1997-abril",{"$f":"IF('[2]REAL IPC(M)'!$AL97=\"\",\"\",+'[2]REAL IPC(M)'!$AL97)","v":10.668832927159478},{"$f":"IF('[2]REAL IPC(M)'!$BE97=\"\",\"\",+'[2]REAL IPC(M)'!$BE97)","v":9.5162091502001278},{"$f":"IF('[2]REAL IPC(M)'!$AM97=\"\",\"\",+'[2]REAL IPC(M)'!$AM97)","v":9.7965335342878657},{"$f":"IF('[2]REAL IPC(M)'!$BI97=\"\",\"\",+'[2]REAL IPC(M)'!$BI97)","v":8.7275507362295279},{"$f":"IF('[2]REAL IMAE(M)'!BJ97=\"\",\"\",'[2]REAL IMAE(M)'!BJ97)","v":"n.d."},{"$f":"IF('[2]REAL IMAE(M)'!BK97=\"\",\"\",'[2]REAL IMAE(M)'!BK97)","v":"n.d."},{"$f":"IF('[2]REAL IMAE(M)'!BN97=\"\",\"\",'[2]REAL IMAE(M)'!BN97)","v":"n.d."},{"$f":"IF('[2]REAL IMAE(M)'!BO97=\"\",\"\",'[2]REAL IMAE(M)'!BO97)","v":"n.d."},{"$f":"IF('[2]EXT RIN(M)'!$K97=\"\",\"\",'[2]EXT RIN(M)'!$K97)","v":"n.d."},"",{"$f":"IF('[2]EXT RIN(M)'!$L97=\"\",\"\",'[2]EXT RIN(M)'!$L97)","v":"n.d."},"",{"$f":"IF('[2]MONE(M)CARD'!EG97=\"\",\"\",'[2]MONE(M)CARD'!EG97)","v":"n.d."},{"$f":"IF('[2]MONE(M)CARD'!EK97=\"\",\"\",'[2]MONE(M)CARD'!EK97)","v":"n.d."},{"$f":"IF('[2]MONE(M)CARD'!EP97=\"\",\"\",'[2]MONE(M)CARD'!EP97)","v":"n.d."},{"$f":"IF('[2]MONE(M)CARD'!ES97=\"\",\"\",'[2]MONE(M)CARD'!ES97)","v":"n.d."},{"$f":"IF('[2]MONE(M)CARD'!EV97=\"\",\"\",'[2]MONE(M)CARD'!EV97)","v":"n.d."},{"$f":"IF('[2]MONE(M)CARD'!EZ97=\"\",\"\",'[2]MONE(M)CARD'!EZ97)","v":"n.d."},{"$f":"IF('[2]MONE(M)CAPARD'!FC97=\"\",\"\",'[2]MONE(M)CAPARD'!FC97)","v":"n.d."},{"$f":"IF('[2]MONE(M)CAPARD'!FG97=\"\",\"\",'[2]MONE(M)CAPARD'!FG97)","v":"n.d."},{"$f":"IF('[2]MONE(M)CAPARD'!FL97=\"\",\"\",'[2]MONE(M)CAPARD'!FL97)","v":"n.d."},{"$f":"IF('[2]MONE(M)CAPARD'!FO97=\"\",\"\",'[2]MONE(M)CAPARD'!FO97)","v":"n.d."},{"$f":"IF('[2]MONE(M)CAPARD'!FR97=\"\",\"\",'[2]MONE(M)CAPARD'!FR97)","v":"n.d."},{"$f":"IF('[2]MONE(M)CAPARD'!FV97=\"\",\"\",'[2]MONE(M)CAPARD'!FV97)","v":"n.d."},{"$f":"IF('[2]MONE(M)CARD'!FV97=\"\",\"\",'[2]MONE(M)CARD'!FV97)","v":""},{"$f":"IF('[2]MONE(M)CARD'!GD97=\"\",\"\",'[2]MONE(M)CARD'!GD97)","v":"n.d."},{"$f":"IF('[2]MONE(M)CARD'!GE97=\"\",\"\",'[2]MONE(M)CARD'!GE97)","v":"n.d."},"n.d.","n.d.","n.d.","n.d.","n.d.","n.d.","n.d.","n.d.",null,"n.d.","n.d.","n.d.","n.d.","n.d.",{"$f":"IF('[2]MONE(M)CAPARD'!GS97=\"\",\"\",'[2]MONE(M)CAPARD'!GS97)","v":"n.d."},{"$f":"IF('[2]MONE(M)CARD'!HA97=\"\",\"\",'[2]MONE(M)CAPARD'!HA97)","v":"n.d."},{"$f":"IF('[2]MONE(M)CAPARD'!HB97=\"\",\"\",'[2]MONE(M)CAPARD'!HB97)","v":"n.d."},"n.d.","n.d.","n.d.","n.d.","n.d.","n.d.","n.d.","n.d.","n.d.","n.d.","n.d.","n.d.","n.d.","n.d.",{"$f":"IF('[2]MONE(M)CAPARD'!AS97=\"\",\"\",'[2]MONE(M)CAPARD'!AS97)","v":"n.d."},{"$f":"IF('[2]MONE(M)CAPARD'!AT97=\"\",\"\",'[2]MONE(M)CAPARD'!AT97)","v":"n.a."},{"$f":"IF('[2]MONE(M)CAPARD'!AU97=\"\",\"\",'[2]MONE(M)CAPARD'!AU97)","v":"n.d."},{"$f":"IF('[2]MONE(M)CAPARD'!AV97=\"\",\"\",'[2]MONE(M)CAPARD'!AV97)","v":"n.d."},{"$f":"IF('[2]MONE(M)CAPARD'!AW97=\"\",\"\",'[2]MONE(M)CAPARD'!AW97)","v":"n.a."},{"$f":"IF('[2]MONE(M)CAPARD'!AX97=\"\",\"\",'[2]MONE(M)CAPARD'!AX97)","v":"n.d."},{"$f":"IF('[2]MONE(M)CAPARD'!AY97=\"\",\"\",'[2]MONE(M)CAPARD'!AY97)","v":"n.a."},{"$f":"IF('[2]FISCAL(M)'!$K97=\"\",\"\",'[2]FISCAL(M)'!$K97)","v":"n.d."},{"$f":"IF('[2]FISCAL(M)'!$L97=\"\",\"\",'[2]FISCAL(M)'!$L97)","v":"n.d."},{"$f":"IF('[2]FISCAL(M)'!$AY97=\"\",\"\",'[2]FISCAL(M)'!$AY97)","v":"n.d."},{"$f":"IF('[2]FISCAL(M)'!$BI97=\"\",\"\",'[2]FISCAL(M)'!$BI97)","v":"n.d."},{"$f":"IF('[2]FISCAL(M)'!$BS97=\"\",\"\",'[2]FISCAL(M)'!$BS97)","v":"n.d."},{"$f":"IF('[2]FISCAL(M)'!$AZ97=\"\",\"\",'[2]FISCAL(M)'!$AZ97)","v":"n.d."},{"$f":"IF('[2]FISCAL(M)'!$BJ97=\"\",\"\",'[2]FISCAL(M)'!$BJ97)","v":"n.d."},{"$f":"IF('[2]FISCAL(M)'!$BT97=\"\",\"\",'[2]FISCAL(M)'!$BT97)","v":"n.d."},{"$f":"IF('[3]MONE(M)'!$AO97=\"\",\"\",'[3]MONE(M)'!$AO97)","v":"n.d."},{"$f":"IF('[4]MONE(M)'!$AO97=\"\",\"\",'[4]MONE(M)'!$AO97)","v":"n.d."},{"$f":"IF('[5]MONE(M)'!$AO97=\"\",\"\",'[5]MONE(M)'!$AO97)","v":"n.d."},{"$f":"+'[1]MONE(M)'!$AO97","v":"n.d."},{"$f":"IF('[6]MONE(M)'!$AO97=\"\",\"\",'[6]MONE(M)'!$AO97)","v":"n.d."},{"$f":"IF('[7]MONE(M)'!$AO97=\"\",\"\",'[7]MONE(M)'!$AO97)","v":"n.d."},{"$f":"IF('[8]MONE(M)'!$AO97=\"\",\"\",'[8]MONE(M)'!$AO97)","v":"n.d."},"n.d.","n.d.","n.d.","n.d.","n.d.","n.d.","n.d.",{"$f":"IF('[2]FISCAL(M)'!$K97=\"\",\"\",'[2]FISCAL(M)'!$K97)","v":"n.d."},"n.d.","n.d.",{"$f":"IF('[2]FISCAL(M)'!$L97=\"\",\"\",'[2]FISCAL(M)'!$L97)","v":"n.d."},"n.d.","n.d.","n.d.","n.d.","n.d.","n.d.","n.d.","n.d.","n.d.","n.d.","n.d.","n.d.","n.d.","n.d.","n.d.","n.d.","n.d.","n.d."]
[1997,"mayo ","1997-mayo ",{"$f":"IF('[2]REAL IPC(M)'!$AL98=\"\",\"\",+'[2]REAL IPC(M)'!$AL98)","v":9.9999999999999858},{"$f":"IF('[2]REAL IPC(M)'!$BE98=\"\",\"\",+'[2]REAL IPC(M)'!$BE98)","v":9.3557460226447731},{"$f":"IF('[2]REAL IPC(M)'!$AM98=\"\",\"\",+'[2]REAL IPC(M)'!$AM98)","v":9.2361457813279877},{"$f":"IF('[2]REAL IPC(M)'!$BI98=\"\",\"\",+'[2]REAL IPC(M)'!$BI98)","v":8.5761541049649281},{"$f":"IF('[2]REAL IMAE(M)'!BJ98=\"\",\"\",'[2]REAL IMAE(M)'!BJ98)","v":"n.d."},{"$f":"IF('[2]REAL IMAE(M)'!BK98=\"\",\"\",'[2]REAL IMAE(M)'!BK98)","v":"n.d."},{"$f":"IF('[2]REAL IMAE(M)'!BN98=\"\",\"\",'[2]REAL IMAE(M)'!BN98)","v":"n.d."},{"$f":"IF('[2]REAL IMAE(M)'!BO98=\"\",\"\",'[2]REAL IMAE(M)'!BO98)","v":"n.d."},{"$f":"IF('[2]EXT RIN(M)'!$K98=\"\",\"\",'[2]EXT RIN(M)'!$K98)","v":"n.d."},"",{"$f":"IF('[2]EXT RIN(M)'!$L98=\"\",\"\",'[2]EXT RIN(M)'!$L98)","v":"n.d."},"",{"$f":"IF('[2]MONE(M)CARD'!EG98=\"\",\"\",'[2]MONE(M)CARD'!EG98)","v":"n.d."},{"$f":"IF('[2]MONE(M)CARD'!EK98=\"\",\"\",'[2]MONE(M)CARD'!EK98)","v":"n.d."},{"$f":"IF('[2]MONE(M)CARD'!EP98=\"\",\"\",'[2]MONE(M)CARD'!EP98)","v":"n.d."},{"$f":"IF('[2]MONE(M)CARD'!ES98=\"\",\"\",'[2]MONE(M)CARD'!ES98)","v":"n.d."},{"$f":"IF('[2]MONE(M)CARD'!EV98=\"\",\"\",'[2]MONE(M)CARD'!EV98)","v":"n.d."},{"$f":"IF('[2]MONE(M)CARD'!EZ98=\"\",\"\",'[2]MONE(M)CARD'!EZ98)","v":"n.d."},{"$f":"IF('[2]MONE(M)CAPARD'!FC98=\"\",\"\",'[2]MONE(M)CAPARD'!FC98)","v":"n.d."},{"$f":"IF('[2]MONE(M)CAPARD'!FG98=\"\",\"\",'[2]MONE(M)CAPARD'!FG98)","v":"n.d."},{"$f":"IF('[2]MONE(M)CAPARD'!FL98=\"\",\"\",'[2]MONE(M)CAPARD'!FL98)","v":"n.d."},{"$f":"IF('[2]MONE(M)CAPARD'!FO98=\"\",\"\",'[2]MONE(M)CAPARD'!FO98)","v":"n.d."},{"$f":"IF('[2]MONE(M)CAPARD'!FR98=\"\",\"\",'[2]MONE(M)CAPARD'!FR98)","v":"n.d."},{"$f":"IF('[2]MONE(M)CAPARD'!FV98=\"\",\"\",'[2]MONE(M)CAPARD'!FV98)","v":"n.d."},{"$f":"IF('[2]MONE(M)CARD'!FV98=\"\",\"\",'[2]MONE(M)CARD'!FV98)","v":""},{"$f":"IF('[2]MONE(M)CARD'!GD98=\"\",\"\",'[2]MONE(M)CARD'!GD98)","v":"n.d."},{"$f":"IF('[2]MONE(M)CARD'!GE98=\"\",\"\",'[2]MONE(M)CARD'!GE98)","v":"n.d."},"n.d.","n.d.","n.d.","n.d.","n.d.","n.d.","n.d.","n.d.",null,"n.d.","n.d.","n.d.","n.d.","n.d.",{"$f":"IF('[2]MONE(M)CAPARD'!GS98=\"\",\"\",'[2]MONE(M)CAPARD'!GS98)","v":"n.d."},{"$f":"IF('[2]MONE(M)CARD'!HA98=\"\",\"\",'[2]MONE(M)CAPARD'!HA98)","v":"n.d."},{"$f":"IF('[2]MONE(M)CAPARD'!HB98=\"\",\"\",'[2]MONE(M)CAPARD'!HB98)","v":"n.d."},"n.d.","n.d.","n.d.","n.d.","n.d.","n.d.","n.d.","n.d.","n.d.","n.d.","n.d.","n.d.","n.d.","n.d.",{"$f":"IF('[2]MONE(M)CAPARD'!AS98=\"\",\"\",'[2]MONE(M)CAPARD'!AS98)","v":"n.d."},{"$f":"IF('[2]MONE(M)CAPARD'!AT98=\"\",\"\",'[2]MONE(M)CAPARD'!AT98)","v":"n.a."},{"$f":"IF('[2]MONE(M)CAPARD'!AU98=\"\",\"\",'[2]MONE(M)CAPARD'!AU98)","v":"n.d."},{"$f":"IF('[2]MONE(M)CAPARD'!AV98=\"\",\"\",'[2]MONE(M)CAPARD'!AV98)","v":"n.d."},{"$f":"IF('[2]MONE(M)CAPARD'!AW98=\"\",\"\",'[2]MONE(M)CAPARD'!AW98)","v":"n.a."},{"$f":"IF('[2]MONE(M)CAPARD'!AX98=\"\",\"\",'[2]MONE(M)CAPARD'!AX98)","v":"n.d."},{"$f":"IF('[2]MONE(M)CAPARD'!AY98=\"\",\"\",'[2]MONE(M)CAPARD'!AY98)","v":"n.a."},{"$f":"IF('[2]FISCAL(M)'!$K98=\"\",\"\",'[2]FISCAL(M)'!$K98)","v":"n.d."},{"$f":"IF('[2]FISCAL(M)'!$L98=\"\",\"\",'[2]FISCAL(M)'!$L98)","v":"n.d."},{"$f":"IF('[2]FISCAL(M)'!$AY98=\"\",\"\",'[2]FISCAL(M)'!$AY98)","v":"n.d."},{"$f":"IF('[2]FISCAL(M)'!$BI98=\"\",\"\",'[2]FISCAL(M)'!$BI98)","v":"n.d."},{"$f":"IF('[2]FISCAL(M)'!$BS98=\"\",\"\",'[2]FISCAL(M)'!$BS98)","v":"n.d."},{"$f":"IF('[2]FISCAL(M)'!$AZ98=\"\",\"\",'[2]FISCAL(M)'!$AZ98)","v":"n.d."},{"$f":"IF('[2]FISCAL(M)'!$BJ98=\"\",\"\",'[2]FISCAL(M)'!$BJ98)","v":"n.d."},{"$f":"IF('[2]FISCAL(M)'!$BT98=\"\",\"\",'[2]FISCAL(M)'!$BT98)","v":"n.d."},{"$f":"IF('[3]MONE(M)'!$AO98=\"\",\"\",'[3]MONE(M)'!$AO98)","v":"n.d."},{"$f":"IF('[4]MONE(M)'!$AO98=\"\",\"\",'[4]MONE(M)'!$AO98)","v":"n.d."},{"$f":"IF('[5]MONE(M)'!$AO98=\"\",\"\",'[5]MONE(M)'!$AO98)","v":"n.d."},{"$f":"+'[1]MONE(M)'!$AO98","v":"n.d."},{"$f":"IF('[6]MONE(M)'!$AO98=\"\",\"\",'[6]MONE(M)'!$AO98)","v":"n.d."},{"$f":"IF('[7]MONE(M)'!$AO98=\"\",\"\",'[7]MONE(M)'!$AO98)","v":"n.d."},{"$f":"IF('[8]MONE(M)'!$AO98=\"\",\"\",'[8]MONE(M)'!$AO98)","v":"n.d."},"n.d.","n.d.","n.d.","n.d.","n.d.","n.d.","n.d.",{"$f":"IF('[2]FISCAL(M)'!$K98=\"\",\"\",'[2]FISCAL(M)'!$K98)","v":"n.d."},"n.d.","n.d.",{"$f":"IF('[2]FISCAL(M)'!$L98=\"\",\"\",'[2]FISCAL(M)'!$L98)","v":"n.d."},"n.d.","n.d.","n.d.","n.d.","n.d.","n.d.","n.d.","n.d.","n.d.","n.d.","n.d.","n.d.","n.d.","n.d.","n.d.","n.d.","n.d.","n.d."]
[1997,"junio ","1997-junio ",{"$f":"IF('[2]REAL IPC(M)'!$AL99=\"\",\"\",+'[2]REAL IPC(M)'!$AL99)","v":9.5212765957446663},{"$f":"IF('[2]REAL IPC(M)'!$BE99=\"\",\"\",+'[2]REAL IPC(M)'!$BE99)","v":9.1972281269352862},{"$f":"IF('[2]REAL IPC(M)'!$AM99=\"\",\"\",+'[2]REAL IPC(M)'!$AM99)","v":8.8235294117646959},{"$f":"IF('[2]REAL IPC(M)'!$BI99=\"\",\"\",+'[2]REAL IPC(M)'!$BI99)","v":8.4261825234429821},{"$f":"IF('[2]REAL IMAE(M)'!BJ99=\"\",\"\",'[2]REAL IMAE(M)'!BJ99)","v":"n.d."},{"$f":"IF('[2]REAL IMAE(M)'!BK99=\"\",\"\",'[2]REAL IMAE(M)'!BK99)","v":"n.d."},{"$f":"IF('[2]REAL IMAE(M)'!BN99=\"\",\"\",'[2]REAL IMAE(M)'!BN99)","v":"n.d."},{"$f":"IF('[2]REAL IMAE(M)'!BO99=\"\",\"\",'[2]REAL IMAE(M)'!BO99)","v":"n.d."},{"$f":"IF('[2]EXT RIN(M)'!$K99=\"\",\"\",'[2]EXT RIN(M)'!$K99)","v":"n.d."},"",{"$f":"IF('[2]EXT RIN(M)'!$L99=\"\",\"\",'[2]EXT RIN(M)'!$L99)","v":"n.d."},"",{"$f":"IF('[2]MONE(M)CARD'!EG99=\"\",\"\",'[2]MONE(M)CARD'!EG99)","v":"n.d."},{"$f":"IF('[2]MONE(M)CARD'!EK99=\"\",\"\",'[2]MONE(M)CARD'!EK99)","v":"n.d."},{"$f":"IF('[2]MONE(M)CARD'!EP99=\"\",\"\",'[2]MONE(M)CARD'!EP99)","v":"n.d."},{"$f":"IF('[2]MONE(M)CARD'!ES99=\"\",\"\",'[2]MONE(M)CARD'!ES99)","v":"n.d."},{"$f":"IF('[2]MONE(M)CARD'!EV99=\"\",\"\",'[2]MONE(M)CARD'!EV99)","v":"n.d."},{"$f":"IF('[2]MONE(M)CARD'!EZ99=\"\",\"\",'[2]MONE(M)CARD'!EZ99)","v":"n.d."},{"$f":"IF('[2]MONE(M)CAPARD'!FC99=\"\",\"\",'[2]MONE(M)CAPARD'!FC99)","v":"n.d."},{"$f":"IF('[2]MONE(M)CAPARD'!FG99=\"\",\"\",'[2]MONE(M)CAPARD'!FG99)","v":"n.d."},{"$f":"IF('[2]MONE(M)CAPARD'!FL99=\"\",\"\",'[2]MONE(M)CAPARD'!FL99)","v":"n.d."},{"$f":"IF('[2]MONE(M)CAPARD'!FO99=\"\",\"\",'[2]MONE(M)CAPARD'!FO99)","v":"n.d."},{"$f":"IF('[2]MONE(M)CAPARD'!FR99=\"\",\"\",'[2]MONE(M)CAPARD'!FR99)","v":"n.d."},{"$f":"IF('[2]MONE(M)CAPARD'!FV99=\"\",\"\",'[2]MONE(M)CAPARD'!FV99)","v":"n.d."},{"$f":"IF('[2]MONE(M)CARD'!FV99=\"\",\"\",'[2]MONE(M)CARD'!FV99)","v":""},{"$f":"IF('[2]MONE(M)CARD'!GD99=\"\",\"\",'[2]MONE(M)CARD'!GD99)","v":"n.d."},{"$f":"IF('[2]MONE(M)CARD'!GE99=\"\",\"\",'[2]MONE(M)CARD'!GE99)","v":"n.d."},"n.d.","n.d.","n.d.","n.d.","n.d.","n.d.","n.d.","n.d.",null,"n.d.","n.d.","n.d.","n.d.","n.d.",{"$f":"IF('[2]MONE(M)CAPARD'!GS99=\"\",\"\",'[2]MONE(M)CAPARD'!GS99)","v":"n.d."},{"$f":"IF('[2]MONE(M)CARD'!HA99=\"\",\"\",'[2]MONE(M)CAPARD'!HA99)","v":"n.d."},{"$f":"IF('[2]MONE(M)CAPARD'!HB99=\"\",\"\",'[2]MONE(M)CAPARD'!HB99)","v":"n.d."},"n.d.","n.d.","n.d.","n.d.","n.d.","n.d.","n.d.","n.d.","n.d.","n.d.","n.d.","n.d.","n.d.","n.d.",{"$f":"IF('[2]MONE(M)CAPARD'!AS99=\"\",\"\",'[2]MONE(M)CAPARD'!AS99)","v":"n.d."},{"$f":"IF('[2]MONE(M)CAPARD'!AT99=\"\",\"\",'[2]MONE(M)CAPARD'!AT99)","v":"n.a."},{"$f":"IF('[2]MONE(M)CAPARD'!AU99=\"\",\"\",'[2]MONE(M)CAPARD'!AU99)","v":"n.d."},{"$f":"IF('[2]MONE(M)CAPARD'!AV99=\"\",\"\",'[2]MONE(M)CAPARD'!AV99)","v":"n.d."},{"$f":"IF('[2]MONE(M)CAPARD'!AW99=\"\",\"\",'[2]MONE(M)CAPARD'!AW99)","v":"n.a."},{"$f":"IF('[2]MONE(M)CAPARD'!AX99=\"\",\"\",'[2]MONE(M)CAPARD'!AX99)","v":"n.d."},{"$f":"IF('[2]MONE(M)CAPARD'!AY99=\"\",\"\",'[2]MONE(M)CAPARD'!AY99)","v":"n.a."},{"$f":"IF('[2]FISCAL(M)'!$K99=\"\",\"\",'[2]FISCAL(M)'!$K99)","v":"n.d."},{"$f":"IF('[2]FISCAL(M)'!$L99=\"\",\"\",'[2]FISCAL(M)'!$L99)","v":"n.d."},{"$f":"IF('[2]FISCAL(M)'!$AY99=\"\",\"\",'[2]FISCAL(M)'!$AY99)","v":"n.d."},{"$f":"IF('[2]FISCAL(M)'!$BI99=\"\",\"\",'[2]FISCAL(M)'!$BI99)","v":"n.d."},{"$f":"IF('[2]FISCAL(M)'!$BS99=\"\",\"\",'[2]FISCAL(M)'!$BS99)","v":"n.d."},{"$f":"IF('[2]FISCAL(M)'!$AZ99=\"\",\"\",'[2]FISCAL(M)'!$AZ99)","v":"n.d."},{"$f":"IF('[2]FISCAL(M)'!$BJ99=\"\",\"\",'[2]FISCAL(M)'!$BJ99)","v":"n.d."},{"$f":"IF('[2]FISCAL(M)'!$BT99=\"\",\"\",'[2]FISCAL(M)'!$BT99)","v":"n.d."},{"$f":"IF('[3]MONE(M)'!$AO99=\"\",\"\",'[3]MONE(M)'!$AO99)","v":"n.d."},{"$f":"IF('[4]MONE(M)'!$AO99=\"\",\"\",'[4]MONE(M)'!$AO99)","v":"n.d."},{"$f":"IF('[5]MONE(M)'!$AO99=\"\",\"\",'[5]MONE(M)'!$AO99)","v":"n.d."},{"$f":"+'[1]MONE(M)'!$AO99","v":"n.d."},{"$f":"IF('[6]MONE(M)'!$AO99=\"\",\"\",'[6]MONE(M)'!$AO99)","v":"n.d."},{"$f":"IF('[7]MONE(M)'!$AO99=\"\",\"\",'[7]MONE(M)'!$AO99)","v":"n.d."},{"$f":"IF('[8]MONE(M)'!$AO99=\"\",\"\",'[8]MONE(M)'!$AO99)","v":"n.d."},"n.d.","n.d.","n.d.","n.d.","n.d.","n.d.","n.d.",{"$f":"IF('[2]FISCAL(M)'!$K99=\"\",\"\",'[2]FISCAL(M)'!$K99)","v":"n.d."},"n.d.","n.d.",{"$f":"IF('[2]FISCAL(M)'!$L99=\"\",\"\",'[2]FISCAL(M)'!$L99)","v":"n.d."},"n.d.","n.d.","n.d.","n.d.","n.d.","n.d.","n.d.","n.d.","n.d.","n.d.","n.d.","n.d.","n.d.","n.d.","n.d.","n.d.","n.d.","n.d."]
[1997,"julio","1997-julio",{"$f":"IF('[2]REAL IPC(M)'!$AL100=\"\",\"\",+'[2]REAL IPC(M)'!$AL100)","v":9.7394051066069807},{"$f":"IF('[2]REAL IPC(M)'!$BE100=\"\",\"\",+'[2]REAL IPC(M)'!$BE100)","v":9.0410615387273232},{"$f":"IF('[2]REAL IPC(M)'!$AM100=\"\",\"\",+'[2]REAL IPC(M)'!$AM100)","v":9.0352595494613155},{"$f":"IF('[2]REAL IPC(M)'!$BI100=\"\",\"\",+'[2]REAL IPC(M)'!$BI100)","v":8.2780870793574213},{"$f":"IF('[2]REAL IMAE(M)'!BJ100=\"\",\"\",'[2]REAL IMAE(M)'!BJ100)","v":"n.d."},{"$f":"IF('[2]REAL IMAE(M)'!BK100=\"\",\"\",'[2]REAL IMAE(M)'!BK100)","v":"n.d."},{"$f":"IF('[2]REAL IMAE(M)'!BN100=\"\",\"\",'[2]REAL IMAE(M)'!BN100)","v":"n.d."},{"$f":"IF('[2]REAL IMAE(M)'!BO100=\"\",\"\",'[2]REAL IMAE(M)'!BO100)","v":"n.d."},{"$f":"IF('[2]EXT RIN(M)'!$K100=\"\",\"\",'[2]EXT RIN(M)'!$K100)","v":"n.d."},"",{"$f":"IF('[2]EXT RIN(M)'!$L100=\"\",\"\",'[2]EXT RIN(M)'!$L100)","v":"n.d."},"",{"$f":"IF('[2]MONE(M)CARD'!EG100=\"\",\"\",'[2]MONE(M)CARD'!EG100)","v":"n.d."},{"$f":"IF('[2]MONE(M)CARD'!EK100=\"\",\"\",'[2]MONE(M)CARD'!EK100)","v":"n.d."},{"$f":"IF('[2]MONE(M)CARD'!EP100=\"\",\"\",'[2]MONE(M)CARD'!EP100)","v":"n.d."},{"$f":"IF('[2]MONE(M)CARD'!ES100=\"\",\"\",'[2]MONE(M)CARD'!ES100)","v":"n.d."},{"$f":"IF('[2]MONE(M)CARD'!EV100=\"\",\"\",'[2]MONE(M)CARD'!EV100)","v":"n.d."},{"$f":"IF('[2]MONE(M)CARD'!EZ100=\"\",\"\",'[2]MONE(M)CARD'!EZ100)","v":"n.d."},{"$f":"IF('[2]MONE(M)CAPARD'!FC100=\"\",\"\",'[2]MONE(M)CAPARD'!FC100)","v":"n.d."},{"$f":"IF('[2]MONE(M)CAPARD'!FG100=\"\",\"\",'[2]MONE(M)CAPARD'!FG100)","v":"n.d."},{"$f":"IF('[2]MONE(M)CAPARD'!FL100=\"\",\"\",'[2]MONE(M)CAPARD'!FL100)","v":"n.d."},{"$f":"IF('[2]MONE(M)CAPARD'!FO100=\"\",\"\",'[2]MONE(M)CAPARD'!FO100)","v":"n.d."},{"$f":"IF('[2]MONE(M)CAPARD'!FR100=\"\",\"\",'[2]MONE(M)CAPARD'!FR100)","v":"n.d."},{"$f":"IF('[2]MONE(M)CAPARD'!FV100=\"\",\"\",'[2]MONE(M)CAPARD'!FV100)","v":"n.d."},{"$f":"IF('[2]MONE(M)CARD'!FV100=\"\",\"\",'[2]MONE(M)CARD'!FV100)","v":""},{"$f":"IF('[2]MONE(M)CARD'!GD100=\"\",\"\",'[2]MONE(M)CARD'!GD100)","v":"n.d."},{"$f":"IF('[2]MONE(M)CARD'!GE100=\"\",\"\",'[2]MONE(M)CARD'!GE100)","v":"n.d."},"n.d.","n.d.","n.d.","n.d.","n.d.","n.d.","n.d.","n.d.",null,"n.d.","n.d.","n.d.","n.d.","n.d.",{"$f":"IF('[2]MONE(M)CAPARD'!GS100=\"\",\"\",'[2]MONE(M)CAPARD'!GS100)","v":"n.d."},{"$f":"IF('[2]MONE(M)CARD'!HA100=\"\",\"\",'[2]MONE(M)CAPARD'!HA100)","v":"n.d."},{"$f":"IF('[2]MONE(M)CAPARD'!HB100=\"\",\"\",'[2]MONE(M)CAPARD'!HB100)","v":"n.d."},"n.d.","n.d.","n.d.","n.d.","n.d.","n.d.","n.d.","n.d.","n.d.","n.d.","n.d.","n.d.","n.d.","n.d.",{"$f":"IF('[2]MONE(M)CAPARD'!AS100=\"\",\"\",'[2]MONE(M)CAPARD'!AS100)","v":"n.d."},{"$f":"IF('[2]MONE(M)CAPARD'!AT100=\"\",\"\",'[2]MONE(M)CAPARD'!AT100)","v":"n.a."},{"$f":"IF('[2]MONE(M)CAPARD'!AU100=\"\",\"\",'[2]MONE(M)CAPARD'!AU100)","v":"n.d."},{"$f":"IF('[2]MONE(M)CAPARD'!AV100=\"\",\"\",'[2]MONE(M)CAPARD'!AV100)","v":"n.d."},{"$f":"IF('[2]MONE(M)CAPARD'!AW100=\"\",\"\",'[2]MONE(M)CAPARD'!AW100)","v":"n.a."},{"$f":"IF('[2]MONE(M)CAPARD'!AX100=\"\",\"\",'[2]MONE(M)CAPARD'!AX100)","v":"n.d."},{"$f":"IF('[2]MONE(M)CAPARD'!AY100=\"\",\"\",'[2]MONE(M)CAPARD'!AY100)","v":"n.a."},{"$f":"IF('[2]FISCAL(M)'!$K100=\"\",\"\",'[2]FISCAL(M)'!$K100)","v":"n.d."},{"$f":"IF('[2]FISCAL(M)'!$L100=\"\",\"\",'[2]FISCAL(M)'!$L100)","v":"n.d."},{"$f":"IF('[2]FISCAL(M)'!$AY100=\"\",\"\",'[2]FISCAL(M)'!$AY100)","v":"n.d."},{"$f":"IF('[2]FISCAL(M)'!$BI100=\"\",\"\",'[2]FISCAL(M)'!$BI100)","v":"n.d."},{"$f":"IF('[2]FISCAL(M)'!$BS100=\"\",\"\",'[2]FISCAL(M)'!$BS100)","v":"n.d."},{"$f":"IF('[2]FISCAL(M)'!$AZ100=\"\",\"\",'[2]FISCAL(M)'!$AZ100)","v":"n.d."},{"$f":"IF('[2]FISCAL(M)'!$BJ100=\"\",\"\",'[2]FISCAL(M)'!$BJ100)","v":"n.d."},{"$f":"IF('[2]FISCAL(M)'!$BT100=\"\",\"\",'[2]FISCAL(M)'!$BT100)","v":"n.d."},{"$f":"IF('[3]MONE(M)'!$AO100=\"\",\"\",'[3]MONE(M)'!$AO100)","v":"n.d."},{"$f":"IF('[4]MONE(M)'!$AO100=\"\",\"\",'[4]MONE(M)'!$AO100)","v":"n.d."},{"$f":"IF('[5]MONE(M)'!$AO100=\"\",\"\",'[5]MONE(M)'!$AO100)","v":"n.d."},{"$f":"+'[1]MONE(M)'!$AO100","v":"n.d."},{"$f":"IF('[6]MONE(M)'!$AO100=\"\",\"\",'[6]MONE(M)'!$AO100)","v":"n.d."},{"$f":"IF('[7]MONE(M)'!$AO100=\"\",\"\",'[7]MONE(M)'!$AO100)","v":"n.d."},{"$f":"IF('[8]MONE(M)'!$AO100=\"\",\"\",'[8]MONE(M)'!$AO100)","v":"n.d."},"n.d.","n.d.","n.d.","n.d.","n.d.","n.d.","n.d.",{"$f":"IF('[2]FISCAL(M)'!$K100=\"\",\"\",'[2]FISCAL(M)'!$K100)","v":"n.d."},"n.d.","n.d.",{"$f":"IF('[2]FISCAL(M)'!$L100=\"\",\"\",'[2]FISCAL(M)'!$L100)","v":"n.d."},"n.d.","n.d.","n.d.","n.d.","n.d.","n.d.","n.d.","n.d.","n.d.","n.d.","n.d.","n.d.","n.d.","n.d.","n.d.","n.d.","n.d.","n.d."]
[1997,"agosto","1997-agosto",{"$f":"IF('[2]REAL IPC(M)'!$AL101=\"\",\"\",+'[2]REAL IPC(M)'!$AL101)","v":9.2019755653756086},{"$f":"IF('[2]REAL IPC(M)'!$BE101=\"\",\"\",+'[2]REAL IPC(M)'!$BE101)","v":8.8876642621143596},{"$f":"IF('[2]REAL IPC(M)'!$AM101=\"\",\"\",+'[2]REAL IPC(M)'!$AM101)","v":8.4926203726107161},{"$f":"IF('[2]REAL IPC(M)'!$BI101=\"\",\"\",+'[2]REAL IPC(M)'!$BI101)","v":8.1323384214973427},{"$f":"IF('[2]REAL IMAE(M)'!BJ101=\"\",\"\",'[2]REAL IMAE(M)'!BJ101)","v":"n.d."},{"$f":"IF('[2]REAL IMAE(M)'!BK101=\"\",\"\",'[2]REAL IMAE(M)'!BK101)","v":"n.d."},{"$f":"IF('[2]REAL IMAE(M)'!BN101=\"\",\"\",'[2]REAL IMAE(M)'!BN101)","v":"n.d."},{"$f":"IF('[2]REAL IMAE(M)'!BO101=\"\",\"\",'[2]REAL IMAE(M)'!BO101)","v":"n.d."},{"$f":"IF('[2]EXT RIN(M)'!$K101=\"\",\"\",'[2]EXT RIN(M)'!$K101)","v":"n.d."},"",{"$f":"IF('[2]EXT RIN(M)'!$L101=\"\",\"\",'[2]EXT RIN(M)'!$L101)","v":"n.d."},"",{"$f":"IF('[2]MONE(M)CARD'!EG101=\"\",\"\",'[2]MONE(M)CARD'!EG101)","v":"n.d."},{"$f":"IF('[2]MONE(M)CARD'!EK101=\"\",\"\",'[2]MONE(M)CARD'!EK101)","v":"n.d."},{"$f":"IF('[2]MONE(M)CARD'!EP101=\"\",\"\",'[2]MONE(M)CARD'!EP101)","v":"n.d."},{"$f":"IF('[2]MONE(M)CARD'!ES101=\"\",\"\",'[2]MONE(M)CARD'!ES101)","v":"n.d."},{"$f":"IF('[2]MONE(M)CARD'!EV101=\"\",\"\",'[2]MONE(M)CARD'!EV101)","v":"n.d."},{"$f":"IF('[2]MONE(M)CARD'!EZ101=\"\",\"\",'[2]MONE(M)CARD'!EZ101)","v":"n.d."},{"$f":"IF('[2]MONE(M)CAPARD'!FC101=\"\",\"\",'[2]MONE(M)CAPARD'!FC101)","v":"n.d."},{"$f":"IF('[2]MONE(M)CAPARD'!FG101=\"\",\"\",'[2]MONE(M)CAPARD'!FG101)","v":"n.d."},{"$f":"IF('[2]MONE(M)CAPARD'!FL101=\"\",\"\",'[2]MONE(M)CAPARD'!FL101)","v":"n.d."},{"$f":"IF('[2]MONE(M)CAPARD'!FO101=\"\",\"\",'[2]MONE(M)CAPARD'!FO101)","v":"n.d."},{"$f":"IF('[2]MONE(M)CAPARD'!FR101=\"\",\"\",'[2]MONE(M)CAPARD'!FR101)","v":"n.d."},{"$f":"IF('[2]MONE(M)CAPARD'!FV101=\"\",\"\",'[2]MONE(M)CAPARD'!FV101)","v":"n.d."},{"$f":"IF('[2]MONE(M)CARD'!FV101=\"\",\"\",'[2]MONE(M)CARD'!FV101)","v":""},{"$f":"IF('[2]MONE(M)CARD'!GD101=\"\",\"\",'[2]MONE(M)CARD'!GD101)","v":"n.d."},{"$f":"IF('[2]MONE(M)CARD'!GE101=\"\",\"\",'[2]MONE(M)CARD'!GE101)","v":"n.d."},"n.d.","n.d.","n.d.","n.d.","n.d.","n.d.","n.d.","n.d.",null,"n.d.","n.d.","n.d.","n.d.","n.d.",{"$f":"IF('[2]MONE(M)CAPARD'!GS101=\"\",\"\",'[2]MONE(M)CAPARD'!GS101)","v":"n.d."},{"$f":"IF('[2]MONE(M)CARD'!HA101=\"\",\"\",'[2]MONE(M)CAPARD'!HA101)","v":"n.d."},{"$f":"IF('[2]MONE(M)CAPARD'!HB101=\"\",\"\",'[2]MONE(M)CAPARD'!HB101)","v":"n.d."},"n.d.","n.d.","n.d.","n.d.","n.d.","n.d.","n.d.","n.d.","n.d.","n.d.","n.d.","n.d.","n.d.","n.d.",{"$f":"IF('[2]MONE(M)CAPARD'!AS101=\"\",\"\",'[2]MONE(M)CAPARD'!AS101)","v":"n.d."},{"$f":"IF('[2]MONE(M)CAPARD'!AT101=\"\",\"\",'[2]MONE(M)CAPARD'!AT101)","v":"n.a."},{"$f":"IF('[2]MONE(M)CAPARD'!AU101=\"\",\"\",'[2]MONE(M)CAPARD'!AU101)","v":"n.d."},{"$f":"IF('[2]MONE(M)CAPARD'!AV101=\"\",\"\",'[2]MONE(M)CAPARD'!AV101)","v":"n.d."},{"$f":"IF('[2]MONE(M)CAPARD'!AW101=\"\",\"\",'[2]MONE(M)CAPARD'!AW101)","v":"n.a."},{"$f":"IF('[2]MONE(M)CAPARD'!AX101=\"\",\"\",'[2]MONE(M)CAPARD'!AX101)","v":"n.d."},{"$f":"IF('[2]MONE(M)CAPARD'!AY101=\"\",\"\",'[2]MONE(M)CAPARD'!AY101)","v":"n.a."},{"$f":"IF('[2]FISCAL(M)'!$K101=\"\",\"\",'[2]FISCAL(M)'!$K101)","v":"n.d."},{"$f":"IF('[2]FISCAL(M)'!$L101=\"\",\"\",'[2]FISCAL(M)'!$L101)","v":"n.d."},{"$f":"IF('[2]FISCAL(M)'!$AY101=\"\",\"\",'[2]FISCAL(M)'!$AY101)","v":"n.d."},{"$f":"IF('[2]FISCAL(M)'!$BI101=\"\",\"\",'[2]FISCAL(M)'!$BI101)","v":"n.d."},{"$f":"IF('[2]FISCAL(M)'!$BS101=\"\",\"\",'[2]FISCAL(M)'!$BS101)","v":"n.d."},{"$f":"IF('[2]FISCAL(M)'!$AZ101=\"\",\"\",'[2]FISCAL(M)'!$AZ101)","v":"n.d."},{"$f":"IF('[2]FISCAL(M)'!$BJ101=\"\",\"\",'[2]FISCAL(M)'!$BJ101)","v":"n.d."},{"$f":"IF('[2]FISCAL(M)'!$BT101=\"\",\"\",'[2]FISCAL(M)'!$BT101)","v":"n.d."},{"$f":"IF('[3]MONE(M)'!$AO101=\"\",\"\",'[3]MONE(M)'!$AO101)","v":"n.d."},{"$f":"IF('[4]MONE(M)'!$AO101=\"\",\"\",'[4]MONE(M)'!$AO101)","v":"n.d."},{"$f":"IF('[5]MONE(M)'!$AO101=\"\",\"\",'[5]MONE(M)'!$AO101)","v":"n.d."},{"$f":"+'[1]MONE(M)'!$AO101","v":"n.d."},{"$f":"IF('[6]MONE(M)'!$AO101=\"\",\"\",'[6]MONE(M)'!$AO101)","v":"n.d."},{"$f":"IF('[7]MONE(M)'!$AO101=\"\",\"\",'[7]MONE(M)'!$AO101)","v":"n.d."},{"$f":"IF('[8]MONE(M)'!$AO101=\"\",\"\",'[8]MONE(M)'!$AO101)","v":"n.d."},"n.d.","n.d.","n.d.","n.d.","n.d.","n.d.","n.d.",{"$f":"IF('[2]FISCAL(M)'!$K101=\"\",\"\",'[2]FISCAL(M)'!$K101)","v":"n.d."},"n.d.","n.d.",{"$f":"IF('[2]FISCAL(M)'!$L101=\"\",\"\",'[2]FISCAL(M)'!$L101)","v":"n.d."},"n.d.","n.d.","n.d.","n.d.","n.d.","n.d.","n.d.","n.d.","n.d.","n.d.","n.d.","n.d.","n.d.","n.d.","n.d.","n.d.","n.d.","n.d."]
[1997,"septiembre","1997-septiembre",{"$f":"IF('[2]REAL IPC(M)'!$AL102=\"\",\"\",+'[2]REAL IPC(M)'!$AL102)","v":8.9244261026566676},{"$f":"IF('[2]REAL IPC(M)'!$BE102=\"\",\"\",+'[2]REAL IPC(M)'!$BE102)","v":8.737471666235086},{"$f":"IF('[2]REAL IPC(M)'!$AM102=\"\",\"\",+'[2]REAL IPC(M)'!$AM102)","v":8.2132564841498557},{"$f":"IF('[2]REAL IPC(M)'!$BI102=\"\",\"\",+'[2]REAL IPC(M)'!$BI102)","v":7.9894331785102191},{"$f":"IF('[2]REAL IMAE(M)'!BJ102=\"\",\"\",'[2]REAL IMAE(M)'!BJ102)","v":"n.d."},{"$f":"IF('[2]REAL IMAE(M)'!BK102=\"\",\"\",'[2]REAL IMAE(M)'!BK102)","v":"n.d."},{"$f":"IF('[2]REAL IMAE(M)'!BN102=\"\",\"\",'[2]REAL IMAE(M)'!BN102)","v":"n.d."},{"$f":"IF('[2]REAL IMAE(M)'!BO102=\"\",\"\",'[2]REAL IMAE(M)'!BO102)","v":"n.d."},{"$f":"IF('[2]EXT RIN(M)'!$K102=\"\",\"\",'[2]EXT RIN(M)'!$K102)","v":"n.d."},"",{"$f":"IF('[2]EXT RIN(M)'!$L102=\"\",\"\",'[2]EXT RIN(M)'!$L102)","v":"n.d."},"",{"$f":"IF('[2]MONE(M)CARD'!EG102=\"\",\"\",'[2]MONE(M)CARD'!EG102)","v":"n.d."},{"$f":"IF('[2]MONE(M)CARD'!EK102=\"\",\"\",'[2]MONE(M)CARD'!EK102)","v":"n.d."},{"$f":"IF('[2]MONE(M)CARD'!EP102=\"\",\"\",'[2]MONE(M)CARD'!EP102)","v":"n.d."},{"$f":"IF('[2]MONE(M)CARD'!ES102=\"\",\"\",'[2]MONE(M)CARD'!ES102)","v":"n.d."},{"$f":"IF('[2]MONE(M)CARD'!EV102=\"\",\"\",'[2]MONE(M)CARD'!EV102)","v":"n.d."},{"$f":"IF('[2]MONE(M)CARD'!EZ102=\"\",\"\",'[2]MONE(M)CARD'!EZ102)","v":"n.d."},{"$f":"IF('[2]MONE(M)CAPARD'!FC102=\"\",\"\",'[2]MONE(M)CAPARD'!FC102)","v":"n.d."},{"$f":"IF('[2]MONE(M)CAPARD'!FG102=\"\",\"\",'[2]MONE(M)CAPARD'!FG102)","v":"n.d."},{"$f":"IF('[2]MONE(M)CAPARD'!FL102=\"\",\"\",'[2]MONE(M)CAPARD'!FL102)","v":"n.d."},{"$f":"IF('[2]MONE(M)CAPARD'!FO102=\"\",\"\",'[2]MONE(M)CAPARD'!FO102)","v":"n.d."},{"$f":"IF('[2]MONE(M)CAPARD'!FR102=\"\",\"\",'[2]MONE(M)CAPARD'!FR102)","v":"n.d."},{"$f":"IF('[2]MONE(M)CAPARD'!FV102=\"\",\"\",'[2]MONE(M)CAPARD'!FV102)","v":"n.d."},{"$f":"IF('[2]MONE(M)CARD'!FV102=\"\",\"\",'[2]MONE(M)CARD'!FV102)","v":""},{"$f":"IF('[2]MONE(M)CARD'!GD102=\"\",\"\",'[2]MONE(M)CARD'!GD102)","v":"n.d."},{"$f":"IF('[2]MONE(M)CARD'!GE102=\"\",\"\",'[2]MONE(M)CARD'!GE102)","v":"n.d."},"n.d.","n.d.","n.d.","n.d.","n.d.","n.d.","n.d.","n.d.",null,"n.d.","n.d.","n.d.","n.d.","n.d.",{"$f":"IF('[2]MONE(M)CAPARD'!GS102=\"\",\"\",'[2]MONE(M)CAPARD'!GS102)","v":"n.d."},{"$f":"IF('[2]MONE(M)CARD'!HA102=\"\",\"\",'[2]MONE(M)CAPARD'!HA102)","v":"n.d."},{"$f":"IF('[2]MONE(M)CAPARD'!HB102=\"\",\"\",'[2]MONE(M)CAPARD'!HB102)","v":"n.d."},"n.d.","n.d.","n.d.","n.d.","n.d.","n.d.","n.d.","n.d.","n.d.","n.d.","n.d.","n.d.","n.d.","n.d.",{"$f":"IF('[2]MONE(M)CAPARD'!AS102=\"\",\"\",'[2]MONE(M)CAPARD'!AS102)","v":"n.d."},{"$f":"IF('[2]MONE(M)CAPARD'!AT102=\"\",\"\",'[2]MONE(M)CAPARD'!AT102)","v":"n.a."},{"$f":"IF('[2]MONE(M)CAPARD'!AU102=\"\",\"\",'[2]MONE(M)CAPARD'!AU102)","v":"n.d."},{"$f":"IF('[2]MONE(M)CAPARD'!AV102=\"\",\"\",'[2]MONE(M)CAPARD'!AV102)","v":"n.d."},{"$f":"IF('[2]MONE(M)CAPARD'!AW102=\"\",\"\",'[2]MONE(M)CAPARD'!AW102)","v":"n.a."},{"$f":"IF('[2]MONE(M)CAPARD'!AX102=\"\",\"\",'[2]MONE(M)CAPARD'!AX102)","v":"n.d."},{"$f":"IF('[2]MONE(M)CAPARD'!AY102=\"\",\"\",'[2]MONE(M)CAPARD'!AY102)","v":"n.a."},{"$f":"IF('[2]FISCAL(M)'!$K102=\"\",\"\",'[2]FISCAL(M)'!$K102)","v":"n.d."},{"$f":"IF('[2]FISCAL(M)'!$L102=\"\",\"\",'[2]FISCAL(M)'!$L102)","v":"n.d."},{"$f":"IF('[2]FISCAL(M)'!$AY102=\"\",\"\",'[2]FISCAL(M)'!$AY102)","v":"n.d."},{"$f":"IF('[2]FISCAL(M)'!$BI102=\"\",\"\",'[2]FISCAL(M)'!$BI102)","v":"n.d."},{"$f":"IF('[2]FISCAL(M)'!$BS102=\"\",\"\",'[2]FISCAL(M)'!$BS102)","v":"n.d."},{"$f":"IF('[2]FISCAL(M)'!$AZ102=\"\",\"\",'[2]FISCAL(M)'!$AZ102)","v":"n.d."},{"$f":"IF('[2]FISCAL(M)'!$BJ102=\"\",\"\",'[2]FISCAL(M)'!$BJ102)","v":"n.d."},{"$f":"IF('[2]FISCAL(M)'!$BT102=\"\",\"\",'[2]FISCAL(M)'!$BT102)","v":"n.d."},{"$f":"IF('[3]MONE(M)'!$AO102=\"\",\"\",'[3]MONE(M)'!$AO102)","v":"n.d."},{"$f":"IF('[4]MONE(M)'!$AO102=\"\",\"\",'[4]MONE(M)'!$AO102)","v":"n.d."},{"$f":"IF('[5]MONE(M)'!$AO102=\"\",\"\",'[5]MONE(M)'!$AO102)","v":"n.d."},{"$f":"+'[1]MONE(M)'!$AO102","v":"n.d."},{"$f":"IF('[6]MONE(M)'!$AO102=\"\",\"\",'[6]MONE(M)'!$AO102)","v":"n.d."},{"$f":"IF('[7]MONE(M)'!$AO102=\"\",\"\",'[7]MONE(M)'!$AO102)","v":"n.d."},{"$f":"IF('[8]MONE(M)'!$AO102=\"\",\"\",'[8]MONE(M)'!$AO102)","v":"n.d."},"n.d.","n.d.","n.d.","n.d.","n.d.","n.d.","n.d.",{"$f":"IF('[2]FISCAL(M)'!$K102=\"\",\"\",'[2]FISCAL(M)'!$K102)","v":"n.d."},"n.d.","n.d.",{"$f":"IF('[2]FISCAL(M)'!$L102=\"\",\"\",'[2]FISCAL(M)'!$L102)","v":"n.d."},"n.d.","n.d.","n.d.","n.d.","n.d.","n.d.","n.d.","n.d.","n.d.","n.d.","n.d.","n.d.","n.d.","n.d.","n.d.","n.d.","n.d.","n.d."]
[1997,"octubre","1997-octubre",{"$f":"IF('[2]REAL IPC(M)'!$AL103=\"\",\"\",+'[2]REAL IPC(M)'!$AL103)","v":8.4698055271238637},{"$f":"IF('[2]REAL IPC(M)'!$BE103=\"\",\"\",+'[2]REAL IPC(M)'!$BE103)","v":8.5909289328593772},{"$f":"IF('[2]REAL IPC(M)'!$AM103=\"\",\"\",+'[2]REAL IPC(M)'!$AM103)","v":7.7234803337306257},{"$f":"IF('[2]REAL IPC(M)'!$BI103=\"\",\"\",+'[2]REAL IPC(M)'!$BI103)","v":7.8498830763132688},{"$f":"IF('[2]REAL IMAE(M)'!BJ103=\"\",\"\",'[2]REAL IMAE(M)'!BJ103)","v":"n.d."},{"$f":"IF('[2]REAL IMAE(M)'!BK103=\"\",\"\",'[2]REAL IMAE(M)'!BK103)","v":"n.d."},{"$f":"IF('[2]REAL IMAE(M)'!BN103=\"\",\"\",'[2]REAL IMAE(M)'!BN103)","v":"n.d."},{"$f":"IF('[2]REAL IMAE(M)'!BO103=\"\",\"\",'[2]REAL IMAE(M)'!BO103)","v":"n.d."},{"$f":"IF('[2]EXT RIN(M)'!$K103=\"\",\"\",'[2]EXT RIN(M)'!$K103)","v":"n.d."},"",{"$f":"IF('[2]EXT RIN(M)'!$L103=\"\",\"\",'[2]EXT RIN(M)'!$L103)","v":"n.d."},"",{"$f":"IF('[2]MONE(M)CARD'!EG103=\"\",\"\",'[2]MONE(M)CARD'!EG103)","v":"n.d."},{"$f":"IF('[2]MONE(M)CARD'!EK103=\"\",\"\",'[2]MONE(M)CARD'!EK103)","v":"n.d."},{"$f":"IF('[2]MONE(M)CARD'!EP103=\"\",\"\",'[2]MONE(M)CARD'!EP103)","v":"n.d."},{"$f":"IF('[2]MONE(M)CARD'!ES103=\"\",\"\",'[2]MONE(M)CARD'!ES103)","v":"n.d."},{"$f":"IF('[2]MONE(M)CARD'!EV103=\"\",\"\",'[2]MONE(M)CARD'!EV103)","v":"n.d."},{"$f":"IF('[2]MONE(M)CARD'!EZ103=\"\",\"\",'[2]MONE(M)CARD'!EZ103)","v":"n.d."},{"$f":"IF('[2]MONE(M)CAPARD'!FC103=\"\",\"\",'[2]MONE(M)CAPARD'!FC103)","v":"n.d."},{"$f":"IF('[2]MONE(M)CAPARD'!FG103=\"\",\"\",'[2]MONE(M)CAPARD'!FG103)","v":"n.d."},{"$f":"IF('[2]MONE(M)CAPARD'!FL103=\"\",\"\",'[2]MONE(M)CAPARD'!FL103)","v":"n.d."},{"$f":"IF('[2]MONE(M)CAPARD'!FO103=\"\",\"\",'[2]MONE(M)CAPARD'!FO103)","v":"n.d."},{"$f":"IF('[2]MONE(M)CAPARD'!FR103=\"\",\"\",'[2]MONE(M)CAPARD'!FR103)","v":"n.d."},{"$f":"IF('[2]MONE(M)CAPARD'!FV103=\"\",\"\",'[2]MONE(M)CAPARD'!FV103)","v":"n.d."},{"$f":"IF('[2]MONE(M)CARD'!FV103=\"\",\"\",'[2]MONE(M)CARD'!FV103)","v":""},{"$f":"IF('[2]MONE(M)CARD'!GD103=\"\",\"\",'[2]MONE(M)CARD'!GD103)","v":"n.d."},{"$f":"IF('[2]MONE(M)CARD'!GE103=\"\",\"\",'[2]MONE(M)CARD'!GE103)","v":"n.d."},"n.d.","n.d.","n.d.","n.d.","n.d.","n.d.","n.d.","n.d.",null,"n.d.","n.d.","n.d.","n.d.","n.d.",{"$f":"IF('[2]MONE(M)CAPARD'!GS103=\"\",\"\",'[2]MONE(M)CAPARD'!GS103)","v":"n.d."},{"$f":"IF('[2]MONE(M)CARD'!HA103=\"\",\"\",'[2]MONE(M)CAPARD'!HA103)","v":"n.d."},{"$f":"IF('[2]MONE(M)CAPARD'!HB103=\"\",\"\",'[2]MONE(M)CAPARD'!HB103)","v":"n.d."},"n.d.","n.d.","n.d.","n.d.","n.d.","n.d.","n.d.","n.d.","n.d.","n.d.","n.d.","n.d.","n.d.","n.d.",{"$f":"IF('[2]MONE(M)CAPARD'!AS103=\"\",\"\",'[2]MONE(M)CAPARD'!AS103)","v":"n.d."},{"$f":"IF('[2]MONE(M)CAPARD'!AT103=\"\",\"\",'[2]MONE(M)CAPARD'!AT103)","v":"n.a."},{"$f":"IF('[2]MONE(M)CAPARD'!AU103=\"\",\"\",'[2]MONE(M)CAPARD'!AU103)","v":"n.d."},{"$f":"IF('[2]MONE(M)CAPARD'!AV103=\"\",\"\",'[2]MONE(M)CAPARD'!AV103)","v":"n.d."},{"$f":"IF('[2]MONE(M)CAPARD'!AW103=\"\",\"\",'[2]MONE(M)CAPARD'!AW103)","v":"n.a."},{"$f":"IF('[2]MONE(M)CAPARD'!AX103=\"\",\"\",'[2]MONE(M)CAPARD'!AX103)","v":"n.d."},{"$f":"IF('[2]MONE(M)CAPARD'!AY103=\"\",\"\",'[2]MONE(M)CAPARD'!AY103)","v":"n.a."},{"$f":"IF('[2]FISCAL(M)'!$K103=\"\",\"\",'[2]FISCAL(M)'!$K103)","v":"n.d."},{"$f":"IF('[2]FISCAL(M)'!$L103=\"\",\"\",'[2]FISCAL(M)'!$L103)","v":"n.d."},{"$f":"IF('[2]FISCAL(M)'!$AY103=\"\",\"\",'[2]FISCAL(M)'!$AY103)","v":"n.d."},{"$f":"IF('[2]FISCAL(M)'!$BI103=\"\",\"\",'[2]FISCAL(M)'!$BI103)","v":"n.d."},{"$f":"IF('[2]FISCAL(M)'!$BS103=\"\",\"\",'[2]FISCAL(M)'!$BS103)","v":"n.d."},{"$f":"IF('[2]FISCAL(M)'!$AZ103=\"\",\"\",'[2]FISCAL(M)'!$AZ103)","v":"n.d."},{"$f":"IF('[2]FISCAL(M)'!$BJ103=\"\",\"\",'[2]FISCAL(M)'!$BJ103)","v":"n.d."},{"$f":"IF('[2]FISCAL(M)'!$BT103=\"\",\"\",'[2]FISCAL(M)'!$BT103)","v":"n.d."},{"$f":"IF('[3]MONE(M)'!$AO103=\"\",\"\",'[3]MONE(M)'!$AO103)","v":"n.d."},{"$f":"IF('[4]MONE(M)'!$AO103=\"\",\"\",'[4]MONE(M)'!$AO103)","v":"n.d."},{"$f":"IF('[5]MONE(M)'!$AO103=\"\",\"\",'[5]MONE(M)'!$AO103)","v":"n.d."},{"$f":"+'[1]MONE(M)'!$AO103","v":"n.d."},{"$f":"IF('[6]MONE(M)'!$AO103=\"\",\"\",'[6]MONE(M)'!$AO103)","v":"n.d."},{"$f":"IF('[7]MONE(M)'!$AO103=\"\",\"\",'[7]MONE(M)'!$AO103)","v":"n.d."},{"$f":"IF('[8]MONE(M)'!$AO103=\"\",\"\",'[8]MONE(M)'!$AO103)","v":"n.d."},"n.d.","n.d.","n.d.","n.d.","n.d.","n.d.","n.d.",{"$f":"IF('[2]FISCAL(M)'!$K103=\"\",\"\",'[2]FISCAL(M)'!$K103)","v":"n.d."},"n.d.","n.d.",{"$f":"IF('[2]FISCAL(M)'!$L103=\"\",\"\",'[2]FISCAL(M)'!$L103)","v":"n.d."},"n.d.","n.d.","n.d.","n.d.","n.d.","n.d.","n.d.","n.d.","n.d.","n.d.","n.d.","n.d.","n.d.","n.d.","n.d.","n.d.","n.d.","n.d."]
[1997,"noviembre","1997-noviembre",{"$f":"IF('[2]REAL IPC(M)'!$AL104=\"\",\"\",+'[2]REAL IPC(M)'!$AL104)","v":8.2573454913880582},{"$f":"IF('[2]REAL IPC(M)'!$BE104=\"\",\"\",+'[2]REAL IPC(M)'!$BE104)","v":8.4484775413568478},{"$f":"IF('[2]REAL IPC(M)'!$AM104=\"\",\"\",+'[2]REAL IPC(M)'!$AM104)","v":7.5088547815820528},{"$f":"IF('[2]REAL IPC(M)'!$BI104=\"\",\"\",+'[2]REAL IPC(M)'!$BI104)","v":7.714197529294009},{"$f":"IF('[2]REAL IMAE(M)'!BJ104=\"\",\"\",'[2]REAL IMAE(M)'!BJ104)","v":"n.d."},{"$f":"IF('[2]REAL IMAE(M)'!BK104=\"\",\"\",'[2]REAL IMAE(M)'!BK104)","v":"n.d."},{"$f":"IF('[2]REAL IMAE(M)'!BN104=\"\",\"\",'[2]REAL IMAE(M)'!BN104)","v":"n.d."},{"$f":"IF('[2]REAL IMAE(M)'!BO104=\"\",\"\",'[2]REAL IMAE(M)'!BO104)","v":"n.d."},{"$f":"IF('[2]EXT RIN(M)'!$K104=\"\",\"\",'[2]EXT RIN(M)'!$K104)","v":"n.d."},"",{"$f":"IF('[2]EXT RIN(M)'!$L104=\"\",\"\",'[2]EXT RIN(M)'!$L104)","v":"n.d."},"",{"$f":"IF('[2]MONE(M)CARD'!EG104=\"\",\"\",'[2]MONE(M)CARD'!EG104)","v":"n.d."},{"$f":"IF('[2]MONE(M)CARD'!EK104=\"\",\"\",'[2]MONE(M)CARD'!EK104)","v":"n.d."},{"$f":"IF('[2]MONE(M)CARD'!EP104=\"\",\"\",'[2]MONE(M)CARD'!EP104)","v":"n.d."},{"$f":"IF('[2]MONE(M)CARD'!ES104=\"\",\"\",'[2]MONE(M)CARD'!ES104)","v":"n.d."},{"$f":"IF('[2]MONE(M)CARD'!EV104=\"\",\"\",'[2]MONE(M)CARD'!EV104)","v":"n.d."},{"$f":"IF('[2]MONE(M)CARD'!EZ104=\"\",\"\",'[2]MONE(M)CARD'!EZ104)","v":"n.d."},{"$f":"IF('[2]MONE(M)CAPARD'!FC104=\"\",\"\",'[2]MONE(M)CAPARD'!FC104)","v":"n.d."},{"$f":"IF('[2]MONE(M)CAPARD'!FG104=\"\",\"\",'[2]MONE(M)CAPARD'!FG104)","v":"n.d."},{"$f":"IF('[2]MONE(M)CAPARD'!FL104=\"\",\"\",'[2]MONE(M)CAPARD'!FL104)","v":"n.d."},{"$f":"IF('[2]MONE(M)CAPARD'!FO104=\"\",\"\",'[2]MONE(M)CAPARD'!FO104)","v":"n.d."},{"$f":"IF('[2]MONE(M)CAPARD'!FR104=\"\",\"\",'[2]MONE(M)CAPARD'!FR104)","v":"n.d."},{"$f":"IF('[2]MONE(M)CAPARD'!FV104=\"\",\"\",'[2]MONE(M)CAPARD'!FV104)","v":"n.d."},{"$f":"IF('[2]MONE(M)CARD'!FV104=\"\",\"\",'[2]MONE(M)CARD'!FV104)","v":""},{"$f":"IF('[2]MONE(M)CARD'!GD104=\"\",\"\",'[2]MONE(M)CARD'!GD104)","v":"n.d."},{"$f":"IF('[2]MONE(M)CARD'!GE104=\"\",\"\",'[2]MONE(M)CARD'!GE104)","v":"n.d."},"n.d.","n.d.","n.d.","n.d.","n.d.","n.d.","n.d.","n.d.",null,"n.d.","n.d.","n.d.","n.d.","n.d.",{"$f":"IF('[2]MONE(M)CAPARD'!GS104=\"\",\"\",'[2]MONE(M)CAPARD'!GS104)","v":"n.d."},{"$f":"IF('[2]MONE(M)CARD'!HA104=\"\",\"\",'[2]MONE(M)CAPARD'!HA104)","v":"n.d."},{"$f":"IF('[2]MONE(M)CAPARD'!HB104=\"\",\"\",'[2]MONE(M)CAPARD'!HB104)","v":"n.d."},"n.d.","n.d.","n.d.","n.d.","n.d.","n.d.","n.d.","n.d.","n.d.","n.d.","n.d.","n.d.","n.d.","n.d.",{"$f":"IF('[2]MONE(M)CAPARD'!AS104=\"\",\"\",'[2]MONE(M)CAPARD'!AS104)","v":"n.d."},{"$f":"IF('[2]MONE(M)CAPARD'!AT104=\"\",\"\",'[2]MONE(M)CAPARD'!AT104)","v":"n.a."},{"$f":"IF('[2]MONE(M)CAPARD'!AU104=\"\",\"\",'[2]MONE(M)CAPARD'!AU104)","v":"n.d."},{"$f":"IF('[2]MONE(M)CAPARD'!AV104=\"\",\"\",'[2]MONE(M)CAPARD'!AV104)","v":"n.d."},{"$f":"IF('[2]MONE(M)CAPARD'!AW104=\"\",\"\",'[2]MONE(M)CAPARD'!AW104)","v":"n.a."},{"$f":"IF('[2]MONE(M)CAPARD'!AX104=\"\",\"\",'[2]MONE(M)CAPARD'!AX104)","v":"n.d."},{"$f":"IF('[2]MONE(M)CAPARD'!AY104=\"\",\"\",'[2]MONE(M)CAPARD'!AY104)","v":"n.a."},{"$f":"IF('[2]FISCAL(M)'!$K104=\"\",\"\",'[2]FISCAL(M)'!$K104)","v":"n.d."},{"$f":"IF('[2]FISCAL(M)'!$L104=\"\",\"\",'[2]FISCAL(M)'!$L104)","v":"n.d."},{"$f":"IF('[2]FISCAL(M)'!$AY104=\"\",\"\",'[2]FISCAL(M)'!$AY104)","v":"n.d."},{"$f":"IF('[2]FISCAL(M)'!$BI104=\"\",\"\",'[2]FISCAL(M)'!$BI104)","v":"n.d."},{"$f":"IF('[2]FISCAL(M)'!$BS104=\"\",\"\",'[2]FISCAL(M)'!$BS104)","v":"n.d."},{"$f":"IF('[2]FISCAL(M)'!$AZ104=\"\",\"\",'[2]FISCAL(M)'!$AZ104)","v":"n.d."},{"$f":"IF('[2]FISCAL(M)'!$BJ104=\"\",\"\",'[2]FISCAL(M)'!$BJ104)","v":"n.d."},{"$f":"IF('[2]FISCAL(M)'!$BT104=\"\",\"\",'[2]FISCAL(M)'!$BT104)","v":"n.d."},{"$f":"IF('[3]MONE(M)'!$AO104=\"\",\"\",'[3]MONE(M)'!$AO104)","v":"n.d."},{"$f":"IF('[4]MONE(M)'!$AO104=\"\",\"\",'[4]MONE(M)'!$AO104)","v":"n.d."},{"$f":"IF('[5]MONE(M)'!$AO104=\"\",\"\",'[5]MONE(M)'!$AO104)","v":"n.d."},{"$f":"+'[1]MONE(M)'!$AO104","v":"n.d."},{"$f":"IF('[6]MONE(M)'!$AO104=\"\",\"\",'[6]MONE(M)'!$AO104)","v":"n.d."},{"$f":"IF('[7]MONE(M)'!$AO104=\"\",\"\",'[7]MONE(M)'!$AO104)","v":"n.d."},{"$f":"IF('[8]MONE(M)'!$AO104=\"\",\"\",'[8]MONE(M)'!$AO104)","v":"n.d."},"n.d.","n.d.","n.d.","n.d.","n.d.","n.d.","n.d.",{"$f":"IF('[2]FISCAL(M)'!$K104=\"\",\"\",'[2]FISCAL(M)'!$K104)","v":"n.d."},"n.d.","n.d.",{"$f":"IF('[2]FISCAL(M)'!$L104=\"\",\"\",'[2]FISCAL(M)'!$L104)","v":"n.d."},"n.d.","n.d.","n.d.","n.d.","n.d.","n.d.","n.d.","n.d.","n.d.","n.d.","n.d.","n.d.","n.d.","n.d.","n.d.","n.d.","n.d.","n.d."]
[1997,"diciembre","1997-diciembre",{"$f":"IF('[2]REAL IPC(M)'!$AL105=\"\",\"\",+'[2]REAL IPC(M)'!$AL105)","v":7.5651302605210358},{"$f":"IF('[2]REAL IPC(M)'!$BE105=\"\",\"\",+'[2]REAL IPC(M)'!$BE105)","v":8.3105444551113017},{"$f":"IF('[2]REAL IPC(M)'!$AM105=\"\",\"\",+'[2]REAL IPC(M)'!$AM105)","v":6.8457943925233744},{"$f":"IF('[2]REAL IPC(M)'!$BI105=\"\",\"\",+'[2]REAL IPC(M)'!$BI105)","v":7.5828710403895494},{"$f":"IF('[2]REAL IMAE(M)'!BJ105=\"\",\"\",'[2]REAL IMAE(M)'!BJ105)","v":"n.d."},{"$f":"IF('[2]REAL IMAE(M)'!BK105=\"\",\"\",'[2]REAL IMAE(M)'!BK105)","v":"n.d."},{"$f":"IF('[2]REAL IMAE(M)'!BN105=\"\",\"\",'[2]REAL IMAE(M)'!BN105)","v":"n.d."},{"$f":"IF('[2]REAL IMAE(M)'!BO105=\"\",\"\",'[2]REAL IMAE(M)'!BO105)","v":"n.d."},{"$f":"IF('[2]EXT RIN(M)'!$K105=\"\",\"\",'[2]EXT RIN(M)'!$K105)","v":"n.d."},"n.d.",{"$f":"IF('[2]EXT RIN(M)'!$L105=\"\",\"\",'[2]EXT RIN(M)'!$L105)","v":"n.d."},"n.d.",{"$f":"IF('[2]MONE(M)CARD'!EG105=\"\",\"\",'[2]MONE(M)CARD'!EG105)","v":"n.d."},{"$f":"IF('[2]MONE(M)CARD'!EK105=\"\",\"\",'[2]MONE(M)CARD'!EK105)","v":"n.d."},{"$f":"IF('[2]MONE(M)CARD'!EP105=\"\",\"\",'[2]MONE(M)CARD'!EP105)","v":"n.d."},{"$f":"IF('[2]MONE(M)CARD'!ES105=\"\",\"\",'[2]MONE(M)CARD'!ES105)","v":"n.d."},{"$f":"IF('[2]MONE(M)CARD'!EV105=\"\",\"\",'[2]MONE(M)CARD'!EV105)","v":"n.d."},{"$f":"IF('[2]MONE(M)CARD'!EZ105=\"\",\"\",'[2]MONE(M)CARD'!EZ105)","v":"n.d."},{"$f":"IF('[2]MONE(M)CAPARD'!FC105=\"\",\"\",'[2]MONE(M)CAPARD'!FC105)","v":"n.d."},{"$f":"IF('[2]MONE(M)CAPARD'!FG105=\"\",\"\",'[2]MONE(M)CAPARD'!FG105)","v":"n.d."},{"$f":"IF('[2]MONE(M)CAPARD'!FL105=\"\",\"\",'[2]MONE(M)CAPARD'!FL105)","v":"n.d."},{"$f":"IF('[2]MONE(M)CAPARD'!FO105=\"\",\"\",'[2]MONE(M)CAPARD'!FO105)","v":"n.d."},{"$f":"IF('[2]MONE(M)CAPARD'!FR105=\"\",\"\",'[2]MONE(M)CAPARD'!FR105)","v":"n.d."},{"$f":"IF('[2]MONE(M)CAPARD'!FV105=\"\",\"\",'[2]MONE(M)CAPARD'!FV105)","v":"n.d."},{"$f":"IF('[2]MONE(M)CARD'!FV105=\"\",\"\",'[2]MONE(M)CARD'!FV105)","v":""},{"$f":"IF('[2]MONE(M)CARD'!GD105=\"\",\"\",'[2]MONE(M)CARD'!GD105)","v":"n.d."},{"$f":"IF('[2]MONE(M)CARD'!GE105=\"\",\"\",'[2]MONE(M)CARD'!GE105)","v":"n.d."},"n.d.","n.d.","n.d.","n.d.","n.d.","n.d.","n.d.","n.d.",null,"n.d.","n.d.","n.d.","n.d.","n.d.",{"$f":"IF('[2]MONE(M)CAPARD'!GS105=\"\",\"\",'[2]MONE(M)CAPARD'!GS105)","v":"n.d."},{"$f":"IF('[2]MONE(M)CARD'!HA105=\"\",\"\",'[2]MONE(M)CAPARD'!HA105)","v":"n.d."},{"$f":"IF('[2]MONE(M)CAPARD'!HB105=\"\",\"\",'[2]MONE(M)CAPARD'!HB105)","v":"n.d."},"n.d.","n.d.","n.d.","n.d.","n.d.","n.d.","n.d.","n.d.","n.d.","n.d.","n.d.","n.d.","n.d.","n.d.",{"$f":"IF('[2]MONE(M)CAPARD'!AS105=\"\",\"\",'[2]MONE(M)CAPARD'!AS105)","v":"n.d."},{"$f":"IF('[2]MONE(M)CAPARD'!AT105=\"\",\"\",'[2]MONE(M)CAPARD'!AT105)","v":"n.a."},{"$f":"IF('[2]MONE(M)CAPARD'!AU105=\"\",\"\",'[2]MONE(M)CAPARD'!AU105)","v":"n.d."},{"$f":"IF('[2]MONE(M)CAPARD'!AV105=\"\",\"\",'[2]MONE(M)CAPARD'!AV105)","v":"n.d."},{"$f":"IF('[2]MONE(M)CAPARD'!AW105=\"\",\"\",'[2]MONE(M)CAPARD'!AW105)","v":"n.a."},{"$f":"IF('[2]MONE(M)CAPARD'!AX105=\"\",\"\",'[2]MONE(M)CAPARD'!AX105)","v":"n.d."},{"$f":"IF('[2]MONE(M)CAPARD'!AY105=\"\",\"\",'[2]MONE(M)CAPARD'!AY105)","v":"n.a."},{"$f":"IF('[2]FISCAL(M)'!$K105=\"\",\"\",'[2]FISCAL(M)'!$K105)","v":"n.d."},{"$f":"IF('[2]FISCAL(M)'!$L105=\"\",\"\",'[2]FISCAL(M)'!$L105)","v":"n.d."},{"$f":"IF('[2]FISCAL(M)'!$AY105=\"\",\"\",'[2]FISCAL(M)'!$AY105)","v":"n.d."},{"$f":"IF('[2]FISCAL(M)'!$BI105=\"\",\"\",'[2]FISCAL(M)'!$BI105)","v":"n.d."},{"$f":"IF('[2]FISCAL(M)'!$BS105=\"\",\"\",'[2]FISCAL(M)'!$BS105)","v":"n.d."},{"$f":"IF('[2]FISCAL(M)'!$AZ105=\"\",\"\",'[2]FISCAL(M)'!$AZ105)","v":"n.d."},{"$f":"IF('[2]FISCAL(M)'!$BJ105=\"\",\"\",'[2]FISCAL(M)'!$BJ105)","v":"n.d."},{"$f":"IF('[2]FISCAL(M)'!$BT105=\"\",\"\",'[2]FISCAL(M)'!$BT105)","v":"n.d."},{"$f":"IF('[3]MONE(M)'!$AO105=\"\",\"\",'[3]MONE(M)'!$AO105)","v":"n.d."},{"$f":"IF('[4]MONE(M)'!$AO105=\"\",\"\",'[4]MONE(M)'!$AO105)","v":"n.d."},{"$f":"IF('[5]MONE(M)'!$AO105=\"\",\"\",'[5]MONE(M)'!$AO105)","v":"n.d."},{"$f":"+'[1]MONE(M)'!$AO105","v":"n.d."},{"$f":"IF('[6]MONE(M)'!$AO105=\"\",\"\",'[6]MONE(M)'!$AO105)","v":"n.d."},{"$f":"IF('[7]MONE(M)'!$AO105=\"\",\"\",'[7]MONE(M)'!$AO105)","v":"n.d."},{"$f":"IF('[8]MONE(M)'!$AO105=\"\",\"\",'[8]MONE(M)'!$AO105)","v":"n.d."},"n.d.","n.d.","n.d.","n.d.","n.d.","n.d.","n.d.",{"$f":"IF('[2]FISCAL(M)'!$K105=\"\",\"\",'[2]FISCAL(M)'!$K105)","v":"n.d."},"n.d.","n.d.",{"$f":"IF('[2]FISCAL(M)'!$L105=\"\",\"\",'[2]FISCAL(M)'!$L105)","v":"n.d."},"n.d.","n.d.","n.d.","n.d.","n.d.","n.d.","n.d.","n.d.","n.d.","n.d.","n.d.","n.d.","n.d.","n.d.","n.d.","n.d.","n.d.","n.d."]
[1998,"enero","1998-enero",{"$f":"IF('[2]REAL IPC(M)'!$AL106=\"\",\"\",+'[2]REAL IPC(M)'!$AL106)","v":6.905940594059401},{"$f":"IF('[2]REAL IPC(M)'!$BE106=\"\",\"\",+'[2]REAL IPC(M)'!$BE106)","v":8.1775290882585505},{"$f":"IF('[2]REAL IPC(M)'!$AM106=\"\",\"\",+'[2]REAL IPC(M)'!$AM106)","v":6.2817551963048723},{"$f":"IF('[2]REAL IPC(M)'!$BI106=\"\",\"\",+'[2]REAL IPC(M)'!$BI106)","v":7.4563684282703768},{"$f":"IF('[2]REAL IMAE(M)'!BJ106=\"\",\"\",'[2]REAL IMAE(M)'!BJ106)","v":"n.d."},{"$f":"IF('[2]REAL IMAE(M)'!BK106=\"\",\"\",'[2]REAL IMAE(M)'!BK106)","v":"n.d."},{"$f":"IF('[2]REAL IMAE(M)'!BN106=\"\",\"\",'[2]REAL IMAE(M)'!BN106)","v":"n.d."},{"$f":"IF('[2]REAL IMAE(M)'!BO106=\"\",\"\",'[2]REAL IMAE(M)'!BO106)","v":"n.d."},{"$f":"IF('[2]EXT RIN(M)'!$K106=\"\",\"\",'[2]EXT RIN(M)'!$K106)","v":"n.d."},"",{"$f":"IF('[2]EXT RIN(M)'!$L106=\"\",\"\",'[2]EXT RIN(M)'!$L106)","v":"n.d."},"",{"$f":"IF('[2]MONE(M)CARD'!EG106=\"\",\"\",'[2]MONE(M)CARD'!EG106)","v":"n.d."},{"$f":"IF('[2]MONE(M)CARD'!EK106=\"\",\"\",'[2]MONE(M)CARD'!EK106)","v":"n.d."},{"$f":"IF('[2]MONE(M)CARD'!EP106=\"\",\"\",'[2]MONE(M)CARD'!EP106)","v":"n.d."},{"$f":"IF('[2]MONE(M)CARD'!ES106=\"\",\"\",'[2]MONE(M)CARD'!ES106)","v":"n.d."},{"$f":"IF('[2]MONE(M)CARD'!EV106=\"\",\"\",'[2]MONE(M)CARD'!EV106)","v":"n.d."},{"$f":"IF('[2]MONE(M)CARD'!EZ106=\"\",\"\",'[2]MONE(M)CARD'!EZ106)","v":"n.d."},{"$f":"IF('[2]MONE(M)CAPARD'!FC106=\"\",\"\",'[2]MONE(M)CAPARD'!FC106)","v":"n.d."},{"$f":"IF('[2]MONE(M)CAPARD'!FG106=\"\",\"\",'[2]MONE(M)CAPARD'!FG106)","v":"n.d."},{"$f":"IF('[2]MONE(M)CAPARD'!FL106=\"\",\"\",'[2]MONE(M)CAPARD'!FL106)","v":"n.d."},{"$f":"IF('[2]MONE(M)CAPARD'!FO106=\"\",\"\",'[2]MONE(M)CAPARD'!FO106)","v":"n.d."},{"$f":"IF('[2]MONE(M)CAPARD'!FR106=\"\",\"\",'[2]MONE(M)CAPARD'!FR106)","v":"n.d."},{"$f":"IF('[2]MONE(M)CAPARD'!FV106=\"\",\"\",'[2]MONE(M)CAPARD'!FV106)","v":"n.d."},{"$f":"IF('[2]MONE(M)CARD'!FV106=\"\",\"\",'[2]MONE(M)CARD'!FV106)","v":""},{"$f":"IF('[2]MONE(M)CARD'!GD106=\"\",\"\",'[2]MONE(M)CARD'!GD106)","v":"n.d."},{"$f":"IF('[2]MONE(M)CARD'!GE106=\"\",\"\",'[2]MONE(M)CARD'!GE106)","v":"n.d."},"n.d.","n.d.","n.d.","n.d.","n.d.","n.d.","n.d.","n.d.",null,"n.d.","n.d.","n.d.","n.d.","n.d.",{"$f":"IF('[2]MONE(M)CAPARD'!GS106=\"\",\"\",'[2]MONE(M)CAPARD'!GS106)","v":"n.d."},{"$f":"IF('[2]MONE(M)CARD'!HA106=\"\",\"\",'[2]MONE(M)CAPARD'!HA106)","v":"n.d."},{"$f":"IF('[2]MONE(M)CAPARD'!HB106=\"\",\"\",'[2]MONE(M)CAPARD'!HB106)","v":"n.d."},"n.d.","n.d.","n.d.","n.d.","n.d.","n.d.","n.d.","n.d.","n.d.","n.d.","n.d.","n.d.","n.d.","n.d.",{"$f":"IF('[2]MONE(M)CAPARD'!AS106=\"\",\"\",'[2]MONE(M)CAPARD'!AS106)","v":"n.d."},{"$f":"IF('[2]MONE(M)CAPARD'!AT106=\"\",\"\",'[2]MONE(M)CAPARD'!AT106)","v":"n.a."},{"$f":"IF('[2]MONE(M)CAPARD'!AU106=\"\",\"\",'[2]MONE(M)CAPARD'!AU106)","v":"n.d."},{"$f":"IF('[2]MONE(M)CAPARD'!AV106=\"\",\"\",'[2]MONE(M)CAPARD'!AV106)","v":"n.d."},{"$f":"IF('[2]MONE(M)CAPARD'!AW106=\"\",\"\",'[2]MONE(M)CAPARD'!AW106)","v":"n.a."},{"$f":"IF('[2]MONE(M)CAPARD'!AX106=\"\",\"\",'[2]MONE(M)CAPARD'!AX106)","v":"n.d."},{"$f":"IF('[2]MONE(M)CAPARD'!AY106=\"\",\"\",'[2]MONE(M)CAPARD'!AY106)","v":"n.a."},{"$f":"IF('[2]FISCAL(M)'!$K106=\"\",\"\",'[2]FISCAL(M)'!$K106)","v":"n.d."},{"$f":"IF('[2]FISCAL(M)'!$L106=\"\",\"\",'[2]FISCAL(M)'!$L106)","v":"n.d."},{"$f":"IF('[2]FISCAL(M)'!$AY106=\"\",\"\",'[2]FISCAL(M)'!$AY106)","v":"n.d."},{"$f":"IF('[2]FISCAL(M)'!$BI106=\"\",\"\",'[2]FISCAL(M)'!$BI106)","v":"n.d."},{"$f":"IF('[2]FISCAL(M)'!$BS106=\"\",\"\",'[2]FISCAL(M)'!$BS106)","v":"n.d."},{"$f":"IF('[2]FISCAL(M)'!$AZ106=\"\",\"\",'[2]FISCAL(M)'!$AZ106)","v":"n.d."},{"$f":"IF('[2]FISCAL(M)'!$BJ106=\"\",\"\",'[2]FISCAL(M)'!$BJ106)","v":"n.d."},{"$f":"IF('[2]FISCAL(M)'!$BT106=\"\",\"\",'[2]FISCAL(M)'!$BT106)","v":"n.d."},{"$f":"IF('[3]MONE(M)'!$AO106=\"\",\"\",'[3]MONE(M)'!$AO106)","v":"n.d."},{"$f":"IF('[4]MONE(M)'!$AO106=\"\",\"\",'[4]MONE(M)'!$AO106)","v":"n.d."},{"$f":"IF('[5]MONE(M)'!$AO106=\"\",\"\",'[5]MONE(M)'!$AO106)","v":"n.d."},{"$f":"+'[1]MONE(M)'!$AO106","v":"n.d."},{"$f":"IF('[6]MONE(M)'!$AO106=\"\",\"\",'[6]MONE(M)'!$AO106)","v":"n.d."},{"$f":"IF('[7]MONE(M)'!$AO106=\"\",\"\",'[7]MONE(M)'!$AO106)","v":"n.d."},{"$f":"IF('[8]MONE(M)'!$AO106=\"\",\"\",'[8]MONE(M)'!$AO106)","v":"n.d."},"n.d.","n.d.","n.d.","n.d.","n.d.","n.d.","n.d.",{"$f":"IF('[2]FISCAL(M)'!$K106=\"\",\"\",'[2]FISCAL(M)'!$K106)","v":"n.d."},"n.d.","n.d.",{"$f":"IF('[2]FISCAL(M)'!$L106=\"\",\"\",'[2]FISCAL(M)'!$L106)","v":"n.d."},"n.d.","n.d.","n.d.","n.d.","n.d.","n.d.","n.d.","n.d.","n.d.","n.d.","n.d.","n.d.","n.d.","n.d.","n.d.","n.d.","n.d.","n.d."]
[1998,"febrero","1998-febrero",{"$f":"IF('[2]REAL IPC(M)'!$AL107=\"\",\"\",+'[2]REAL IPC(M)'!$AL107)","v":6.3269325455440617},{"$f":"IF('[2]REAL IPC(M)'!$BE107=\"\",\"\",+'[2]REAL IPC(M)'!$BE107)","v":8.0497792868968077},{"$f":"IF('[2]REAL IPC(M)'!$AM107=\"\",\"\",+'[2]REAL IPC(M)'!$AM107)","v":5.7484479190618609},{"$f":"IF('[2]REAL IPC(M)'!$BI107=\"\",\"\",+'[2]REAL IPC(M)'!$BI107)","v":7.3350981972724716},{"$f":"IF('[2]REAL IMAE(M)'!BJ107=\"\",\"\",'[2]REAL IMAE(M)'!BJ107)","v":"n.d."},{"$f":"IF('[2]REAL IMAE(M)'!BK107=\"\",\"\",'[2]REAL IMAE(M)'!BK107)","v":"n.d."},{"$f":"IF('[2]REAL IMAE(M)'!BN107=\"\",\"\",'[2]REAL IMAE(M)'!BN107)","v":"n.d."},{"$f":"IF('[2]REAL IMAE(M)'!BO107=\"\",\"\",'[2]REAL IMAE(M)'!BO107)","v":"n.d."},{"$f":"IF('[2]EXT RIN(M)'!$K107=\"\",\"\",'[2]EXT RIN(M)'!$K107)","v":"n.d."},"",{"$f":"IF('[2]EXT RIN(M)'!$L107=\"\",\"\",'[2]EXT RIN(M)'!$L107)","v":"n.d."},"",{"$f":"IF('[2]MONE(M)CARD'!EG107=\"\",\"\",'[2]MONE(M)CARD'!EG107)","v":"n.d."},{"$f":"IF('[2]MONE(M)CARD'!EK107=\"\",\"\",'[2]MONE(M)CARD'!EK107)","v":"n.d."},{"$f":"IF('[2]MONE(M)CARD'!EP107=\"\",\"\",'[2]MONE(M)CARD'!EP107)","v":"n.d."},{"$f":"IF('[2]MONE(M)CARD'!ES107=\"\",\"\",'[2]MONE(M)CARD'!ES107)","v":"n.d."},{"$f":"IF('[2]MONE(M)CARD'!EV107=\"\",\"\",'[2]MONE(M)CARD'!EV107)","v":"n.d."},{"$f":"IF('[2]MONE(M)CARD'!EZ107=\"\",\"\",'[2]MONE(M)CARD'!EZ107)","v":"n.d."},{"$f":"IF('[2]MONE(M)CAPARD'!FC107=\"\",\"\",'[2]MONE(M)CAPARD'!FC107)","v":"n.d."},{"$f":"IF('[2]MONE(M)CAPARD'!FG107=\"\",\"\",'[2]MONE(M)CAPARD'!FG107)","v":"n.d."},{"$f":"IF('[2]MONE(M)CAPARD'!FL107=\"\",\"\",'[2]MONE(M)CAPARD'!FL107)","v":"n.d."},{"$f":"IF('[2]MONE(M)CAPARD'!FO107=\"\",\"\",'[2]MONE(M)CAPARD'!FO107)","v":"n.d."},{"$f":"IF('[2]MONE(M)CAPARD'!FR107=\"\",\"\",'[2]MONE(M)CAPARD'!FR107)","v":"n.d."},{"$f":"IF('[2]MONE(M)CAPARD'!FV107=\"\",\"\",'[2]MONE(M)CAPARD'!FV107)","v":"n.d."},{"$f":"IF('[2]MONE(M)CARD'!FV107=\"\",\"\",'[2]MONE(M)CARD'!FV107)","v":""},{"$f":"IF('[2]MONE(M)CARD'!GD107=\"\",\"\",'[2]MONE(M)CARD'!GD107)","v":"n.d."},{"$f":"IF('[2]MONE(M)CARD'!GE107=\"\",\"\",'[2]MONE(M)CARD'!GE107)","v":"n.d."},"n.d.","n.d.","n.d.","n.d.","n.d.","n.d.","n.d.","n.d.",null,"n.d.","n.d.","n.d.","n.d.","n.d.",{"$f":"IF('[2]MONE(M)CAPARD'!GS107=\"\",\"\",'[2]MONE(M)CAPARD'!GS107)","v":"n.d."},{"$f":"IF('[2]MONE(M)CARD'!HA107=\"\",\"\",'[2]MONE(M)CAPARD'!HA107)","v":"n.d."},{"$f":"IF('[2]MONE(M)CAPARD'!HB107=\"\",\"\",'[2]MONE(M)CAPARD'!HB107)","v":"n.d."},"n.d.","n.d.","n.d.","n.d.","n.d.","n.d.","n.d.","n.d.","n.d.","n.d.","n.d.","n.d.","n.d.","n.d.",{"$f":"IF('[2]MONE(M)CAPARD'!AS107=\"\",\"\",'[2]MONE(M)CAPARD'!AS107)","v":"n.d."},{"$f":"IF('[2]MONE(M)CAPARD'!AT107=\"\",\"\",'[2]MONE(M)CAPARD'!AT107)","v":"n.a."},{"$f":"IF('[2]MONE(M)CAPARD'!AU107=\"\",\"\",'[2]MONE(M)CAPARD'!AU107)","v":"n.d."},{"$f":"IF('[2]MONE(M)CAPARD'!AV107=\"\",\"\",'[2]MONE(M)CAPARD'!AV107)","v":"n.d."},{"$f":"IF('[2]MONE(M)CAPARD'!AW107=\"\",\"\",'[2]MONE(M)CAPARD'!AW107)","v":"n.a."},{"$f":"IF('[2]MONE(M)CAPARD'!AX107=\"\",\"\",'[2]MONE(M)CAPARD'!AX107)","v":"n.d."},{"$f":"IF('[2]MONE(M)CAPARD'!AY107=\"\",\"\",'[2]MONE(M)CAPARD'!AY107)","v":"n.a."},{"$f":"IF('[2]FISCAL(M)'!$K107=\"\",\"\",'[2]FISCAL(M)'!$K107)","v":"n.d."},{"$f":"IF('[2]FISCAL(M)'!$L107=\"\",\"\",'[2]FISCAL(M)'!$L107)","v":"n.d."},{"$f":"IF('[2]FISCAL(M)'!$AY107=\"\",\"\",'[2]FISCAL(M)'!$AY107)","v":"n.d."},{"$f":"IF('[2]FISCAL(M)'!$BI107=\"\",\"\",'[2]FISCAL(M)'!$BI107)","v":"n.d."},{"$f":"IF('[2]FISCAL(M)'!$BS107=\"\",\"\",'[2]FISCAL(M)'!$BS107)","v":"n.d."},{"$f":"IF('[2]FISCAL(M)'!$AZ107=\"\",\"\",'[2]FISCAL(M)'!$AZ107)","v":"n.d."},{"$f":"IF('[2]FISCAL(M)'!$BJ107=\"\",\"\",'[2]FISCAL(M)'!$BJ107)","v":"n.d."},{"$f":"IF('[2]FISCAL(M)'!$BT107=\"\",\"\",'[2]FISCAL(M)'!$BT107)","v":"n.d."},{"$f":"IF('[3]MONE(M)'!$AO107=\"\",\"\",'[3]MONE(M)'!$AO107)","v":"n.d."},{"$f":"IF('[4]MONE(M)'!$AO107=\"\",\"\",'[4]MONE(M)'!$AO107)","v":"n.d."},{"$f":"IF('[5]MONE(M)'!$AO107=\"\",\"\",'[5]MONE(M)'!$AO107)","v":"n.d."},{"$f":"+'[1]MONE(M)'!$AO107","v":"n.d."},{"$f":"IF('[6]MONE(M)'!$AO107=\"\",\"\",'[6]MONE(M)'!$AO107)","v":"n.d."},{"$f":"IF('[7]MONE(M)'!$AO107=\"\",\"\",'[7]MONE(M)'!$AO107)","v":"n.d."},{"$f":"IF('[8]MONE(M)'!$AO107=\"\",\"\",'[8]MONE(M)'!$AO107)","v":"n.d."},"n.d.","n.d.","n.d.","n.d.","n.d.","n.d.","n.d.",{"$f":"IF('[2]FISCAL(M)'!$K107=\"\",\"\",'[2]FISCAL(M)'!$K107)","v":"n.d."},"n.d.","n.d.",{"$f":"IF('[2]FISCAL(M)'!$L107=\"\",\"\",'[2]FISCAL(M)'!$L107)","v":"n.d."},"n.d.","n.d.","n.d.","n.d.","n.d.","n.d.","n.d.","n.d.","n.d.","n.d.","n.d.","n.d.","n.d.","n.d.","n.d.","n.d.","n.d.","n.d."]
[1998,"marzo","1998-marzo",{"$f":"IF('[2]REAL IPC(M)'!$AL108=\"\",\"\",+'[2]REAL IPC(M)'!$AL108)","v":6.6355369869746994},{"$f":"IF('[2]REAL IPC(M)'!$BE108=\"\",\"\",+'[2]REAL IPC(M)'!$BE108)","v":7.9275556334276409},{"$f":"IF('[2]REAL IPC(M)'!$AM108=\"\",\"\",+'[2]REAL IPC(M)'!$AM108)","v":6.0390355912744109},{"$f":"IF('[2]REAL IPC(M)'!$BI108=\"\",\"\",+'[2]REAL IPC(M)'!$BI108)","v":7.2193764610465339},{"$f":"IF('[2]REAL IMAE(M)'!BJ108=\"\",\"\",'[2]REAL IMAE(M)'!BJ108)","v":"n.d."},{"$f":"IF('[2]REAL IMAE(M)'!BK108=\"\",\"\",'[2]REAL IMAE(M)'!BK108)","v":"n.d."},{"$f":"IF('[2]REAL IMAE(M)'!BN108=\"\",\"\",'[2]REAL IMAE(M)'!BN108)","v":"n.d."},{"$f":"IF('[2]REAL IMAE(M)'!BO108=\"\",\"\",'[2]REAL IMAE(M)'!BO108)","v":"n.d."},{"$f":"IF('[2]EXT RIN(M)'!$K108=\"\",\"\",'[2]EXT RIN(M)'!$K108)","v":"n.d."},"",{"$f":"IF('[2]EXT RIN(M)'!$L108=\"\",\"\",'[2]EXT RIN(M)'!$L108)","v":"n.d."},"",{"$f":"IF('[2]MONE(M)CARD'!EG108=\"\",\"\",'[2]MONE(M)CARD'!EG108)","v":"n.d."},{"$f":"IF('[2]MONE(M)CARD'!EK108=\"\",\"\",'[2]MONE(M)CARD'!EK108)","v":"n.d."},{"$f":"IF('[2]MONE(M)CARD'!EP108=\"\",\"\",'[2]MONE(M)CARD'!EP108)","v":"n.d."},{"$f":"IF('[2]MONE(M)CARD'!ES108=\"\",\"\",'[2]MONE(M)CARD'!ES108)","v":"n.d."},{"$f":"IF('[2]MONE(M)CARD'!EV108=\"\",\"\",'[2]MONE(M)CARD'!EV108)","v":"n.d."},{"$f":"IF('[2]MONE(M)CARD'!EZ108=\"\",\"\",'[2]MONE(M)CARD'!EZ108)","v":"n.d."},{"$f":"IF('[2]MONE(M)CAPARD'!FC108=\"\",\"\",'[2]MONE(M)CAPARD'!FC108)","v":"n.d."},{"$f":"IF('[2]MONE(M)CAPARD'!FG108=\"\",\"\",'[2]MONE(M)CAPARD'!FG108)","v":"n.d."},{"$f":"IF('[2]MONE(M)CAPARD'!FL108=\"\",\"\",'[2]MONE(M)CAPARD'!FL108)","v":"n.d."},{"$f":"IF('[2]MONE(M)CAPARD'!FO108=\"\",\"\",'[2]MONE(M)CAPARD'!FO108)","v":"n.d."},{"$f":"IF('[2]MONE(M)CAPARD'!FR108=\"\",\"\",'[2]MONE(M)CAPARD'!FR108)","v":"n.d."},{"$f":"IF('[2]MONE(M)CAPARD'!FV108=\"\",\"\",'[2]MONE(M)CAPARD'!FV108)","v":"n.d."},{"$f":"IF('[2]MONE(M)CARD'!FV108=\"\",\"\",'[2]MONE(M)CARD'!FV108)","v":""},{"$f":"IF('[2]MONE(M)CARD'!GD108=\"\",\"\",'[2]MONE(M)CARD'!GD108)","v":"n.d."},{"$f":"IF('[2]MONE(M)CARD'!GE108=\"\",\"\",'[2]MONE(M)CARD'!GE108)","v":"n.d."},"n.d.","n.d.","n.d.","n.d.","n.d.","n.d.","n.d.","n.d.",null,"n.d.","n.d.","n.d.","n.d.","n.d.",{"$f":"IF('[2]MONE(M)CAPARD'!GS108=\"\",\"\",'[2]MONE(M)CAPARD'!GS108)","v":"n.d."},{"$f":"IF('[2]MONE(M)CARD'!HA108=\"\",\"\",'[2]MONE(M)CAPARD'!HA108)","v":"n.d."},{"$f":"IF('[2]MONE(M)CAPARD'!HB108=\"\",\"\",'[2]MONE(M)CAPARD'!HB108)","v":"n.d."},"n.d.","n.d.","n.d.","n.d.","n.d.","n.d.","n.d.","n.d.","n.d.","n.d.","n.d.","n.d.","n.d.","n.d.",{"$f":"IF('[2]MONE(M)CAPARD'!AS108=\"\",\"\",'[2]MONE(M)CAPARD'!AS108)","v":"n.d."},{"$f":"IF('[2]MONE(M)CAPARD'!AT108=\"\",\"\",'[2]MONE(M)CAPARD'!AT108)","v":"n.a."},{"$f":"IF('[2]MONE(M)CAPARD'!AU108=\"\",\"\",'[2]MONE(M)CAPARD'!AU108)","v":"n.d."},{"$f":"IF('[2]MONE(M)CAPARD'!AV108=\"\",\"\",'[2]MONE(M)CAPARD'!AV108)","v":"n.d."},{"$f":"IF('[2]MONE(M)CAPARD'!AW108=\"\",\"\",'[2]MONE(M)CAPARD'!AW108)","v":"n.a."},{"$f":"IF('[2]MONE(M)CAPARD'!AX108=\"\",\"\",'[2]MONE(M)CAPARD'!AX108)","v":"n.d."},{"$f":"IF('[2]MONE(M)CAPARD'!AY108=\"\",\"\",'[2]MONE(M)CAPARD'!AY108)","v":"n.a."},{"$f":"IF('[2]FISCAL(M)'!$K108=\"\",\"\",'[2]FISCAL(M)'!$K108)","v":"n.d."},{"$f":"IF('[2]FISCAL(M)'!$L108=\"\",\"\",'[2]FISCAL(M)'!$L108)","v":"n.d."},{"$f":"IF('[2]FISCAL(M)'!$AY108=\"\",\"\",'[2]FISCAL(M)'!$AY108)","v":"n.d."},{"$f":"IF('[2]FISCAL(M)'!$BI108=\"\",\"\",'[2]FISCAL(M)'!$BI108)","v":"n.d."},{"$f":"IF('[2]FISCAL(M)'!$BS108=\"\",\"\",'[2]FISCAL(M)'!$BS108)","v":"n.d."},{"$f":"IF('[2]FISCAL(M)'!$AZ108=\"\",\"\",'[2]FISCAL(M)'!$AZ108)","v":"n.d."},{"$f":"IF('[2]FISCAL(M)'!$BJ108=\"\",\"\",'[2]FISCAL(M)'!$BJ108)","v":"n.d."},{"$f":"IF('[2]FISCAL(M)'!$BT108=\"\",\"\",'[2]FISCAL(M)'!$BT108)","v":"n.d."},{"$f":"IF('[3]MONE(M)'!$AO108=\"\",\"\",'[3]MONE(M)'!$AO108)","v":"n.d."},{"$f":"IF('[4]MONE(M)'!$AO108=\"\",\"\",'[4]MONE(M)'!$AO108)","v":"n.d."},{"$f":"IF('[5]MONE(M)'!$AO108=\"\",\"\",'[5]MONE(M)'!$AO108)","v":"n.d."},{"$f":"+'[1]MONE(M)'!$AO108","v":"n.d."},{"$f":"IF('[6]MONE(M)'!$AO108=\"\",\"\",'[6]MONE(M)'!$AO108)","v":"n.d."},{"$f":"IF('[7]MONE(M)'!$AO108=\"\",\"\",'[7]MONE(M)'!$AO108)","v":"n.d."},{"$f":"IF('[8]MONE(M)'!$AO108=\"\",\"\",'[8]MONE(M)'!$AO108)","v":"n.d."},"n.d.","n.d.","n.d.","n.d.","n.d.","n.d.","n.d.",{"$f":"IF('[2]FISCAL(M)'!$K108=\"\",\"\",'[2]FISCAL(M)'!$K108)","v":"n.d."},"n.d.","n.d.",{"$f":"IF('[2]FISCAL(M)'!$L108=\"\",\"\",'[2]FISCAL(M)'!$L108)","v":"n.d."},"n.d.","n.d.","n.d.","n.d.","n.d.","n.d.","n.d.","n.d.","n.d.","n.d.","n.d.","n.d.","n.d.","n.d.","n.d.","n.d.","n.d.","n.d."]
[1998,"abril","1998-abril",{"$f":"IF('[2]REAL IPC(M)'!$AL109=\"\",\"\",+'[2]REAL IPC(M)'!$AL109)","v":6.9488622461463256},{"$f":"IF('[2]REAL IPC(M)'!$BE109=\"\",\"\",+'[2]REAL IPC(M)'!$BE109)","v":7.8110160412495633},{"$f":"IF('[2]REAL IPC(M)'!$AM109=\"\",\"\",+'[2]REAL IPC(M)'!$AM109)","v":6.3372226035232071},{"$f":"IF('[2]REAL IPC(M)'!$BI109=\"\",\"\",+'[2]REAL IPC(M)'!$BI109)","v":7.1094104497746002},{"$f":"IF('[2]REAL IMAE(M)'!BJ109=\"\",\"\",'[2]REAL IMAE(M)'!BJ109)","v":"n.d."},{"$f":"IF('[2]REAL IMAE(M)'!BK109=\"\",\"\",'[2]REAL IMAE(M)'!BK109)","v":"n.d."},{"$f":"IF('[2]REAL IMAE(M)'!BN109=\"\",\"\",'[2]REAL IMAE(M)'!BN109)","v":"n.d."},{"$f":"IF('[2]REAL IMAE(M)'!BO109=\"\",\"\",'[2]REAL IMAE(M)'!BO109)","v":"n.d."},{"$f":"IF('[2]EXT RIN(M)'!$K109=\"\",\"\",'[2]EXT RIN(M)'!$K109)","v":"n.d."},"",{"$f":"IF('[2]EXT RIN(M)'!$L109=\"\",\"\",'[2]EXT RIN(M)'!$L109)","v":"n.d."},"",{"$f":"IF('[2]MONE(M)CARD'!EG109=\"\",\"\",'[2]MONE(M)CARD'!EG109)","v":"n.d."},{"$f":"IF('[2]MONE(M)CARD'!EK109=\"\",\"\",'[2]MONE(M)CARD'!EK109)","v":"n.d."},{"$f":"IF('[2]MONE(M)CARD'!EP109=\"\",\"\",'[2]MONE(M)CARD'!EP109)","v":"n.d."},{"$f":"IF('[2]MONE(M)CARD'!ES109=\"\",\"\",'[2]MONE(M)CARD'!ES109)","v":"n.d."},{"$f":"IF('[2]MONE(M)CARD'!EV109=\"\",\"\",'[2]MONE(M)CARD'!EV109)","v":"n.d."},{"$f":"IF('[2]MONE(M)CARD'!EZ109=\"\",\"\",'[2]MONE(M)CARD'!EZ109)","v":"n.d."},{"$f":"IF('[2]MONE(M)CAPARD'!FC109=\"\",\"\",'[2]MONE(M)CAPARD'!FC109)","v":"n.d."},{"$f":"IF('[2]MONE(M)CAPARD'!FG109=\"\",\"\",'[2]MONE(M)CAPARD'!FG109)","v":"n.d."},{"$f":"IF('[2]MONE(M)CAPARD'!FL109=\"\",\"\",'[2]MONE(M)CAPARD'!FL109)","v":"n.d."},{"$f":"IF('[2]MONE(M)CAPARD'!FO109=\"\",\"\",'[2]MONE(M)CAPARD'!FO109)","v":"n.d."},{"$f":"IF('[2]MONE(M)CAPARD'!FR109=\"\",\"\",'[2]MONE(M)CAPARD'!FR109)","v":"n.d."},{"$f":"IF('[2]MONE(M)CAPARD'!FV109=\"\",\"\",'[2]MONE(M)CAPARD'!FV109)","v":"n.d."},{"$f":"IF('[2]MONE(M)CARD'!FV109=\"\",\"\",'[2]MONE(M)CARD'!FV109)","v":""},{"$f":"IF('[2]MONE(M)CARD'!GD109=\"\",\"\",'[2]MONE(M)CARD'!GD109)","v":"n.d."},{"$f":"IF('[2]MONE(M)CARD'!GE109=\"\",\"\",'[2]MONE(M)CARD'!GE109)","v":"n.d."},"n.d.","n.d.","n.d.","n.d.","n.d.","n.d.","n.d.","n.d.",null,"n.d.","n.d.","n.d.","n.d.","n.d.",{"$f":"IF('[2]MONE(M)CAPARD'!GS109=\"\",\"\",'[2]MONE(M)CAPARD'!GS109)","v":"n.d."},{"$f":"IF('[2]MONE(M)CARD'!HA109=\"\",\"\",'[2]MONE(M)CAPARD'!HA109)","v":"n.d."},{"$f":"IF('[2]MONE(M)CAPARD'!HB109=\"\",\"\",'[2]MONE(M)CAPARD'!HB109)","v":"n.d."},"n.d.","n.d.","n.d.","n.d.","n.d.","n.d.","n.d.","n.d.","n.d.","n.d.","n.d.","n.d.","n.d.","n.d.",{"$f":"IF('[2]MONE(M)CAPARD'!AS109=\"\",\"\",'[2]MONE(M)CAPARD'!AS109)","v":"n.d."},{"$f":"IF('[2]MONE(M)CAPARD'!AT109=\"\",\"\",'[2]MONE(M)CAPARD'!AT109)","v":"n.a."},{"$f":"IF('[2]MONE(M)CAPARD'!AU109=\"\",\"\",'[2]MONE(M)CAPARD'!AU109)","v":"n.d."},{"$f":"IF('[2]MONE(M)CAPARD'!AV109=\"\",\"\",'[2]MONE(M)CAPARD'!AV109)","v":"n.d."},{"$f":"IF('[2]MONE(M)CAPARD'!AW109=\"\",\"\",'[2]MONE(M)CAPARD'!AW109)","v":"n.a."},{"$f":"IF('[2]MONE(M)CAPARD'!AX109=\"\",\"\",'[2]MONE(M)CAPARD'!AX109)","v":"n.d."},{"$f":"IF('[2]MONE(M)CAPARD'!AY109=\"\",\"\",'[2]MONE(M)CAPARD'!AY109)","v":"n.a."},{"$f":"IF('[2]FISCAL(M)'!$K109=\"\",\"\",'[2]FISCAL(M)'!$K109)","v":"n.d."},{"$f":"IF('[2]FISCAL(M)'!$L109=\"\",\"\",'[2]FISCAL(M)'!$L109)","v":"n.d."},{"$f":"IF('[2]FISCAL(M)'!$AY109=\"\",\"\",'[2]FISCAL(M)'!$AY109)","v":"n.d."},{"$f":"IF('[2]FISCAL(M)'!$BI109=\"\",\"\",'[2]FISCAL(M)'!$BI109)","v":"n.d."},{"$f":"IF('[2]FISCAL(M)'!$BS109=\"\",\"\",'[2]FISCAL(M)'!$BS109)","v":"n.d."},{"$f":"IF('[2]FISCAL(M)'!$AZ109=\"\",\"\",'[2]FISCAL(M)'!$AZ109)","v":"n.d."},{"$f":"IF('[2]FISCAL(M)'!$BJ109=\"\",\"\",'[2]FISCAL(M)'!$BJ109)","v":"n.d."},{"$f":"IF('[2]FISCAL(M)'!$BT109=\"\",\"\",'[2]FISCAL(M)'!$BT109)","v":"n.d."},{"$f":"IF('[3]MONE(M)'!$AO109=\"\",\"\",'[3]MONE(M)'!$AO109)","v":"n.d."},{"$f":"IF('[4]MONE(M)'!$AO109=\"\",\"\",'[4]MONE(M)'!$AO109)","v":"n.d."},{"$f":"IF('[5]MONE(M)'!$AO109=\"\",\"\",'[5]MONE(M)'!$AO109)","v":"n.d."},{"$f":"+'[1]MONE(M)'!$AO109","v":"n.d."},{"$f":"IF('[6]MONE(M)'!$AO109=\"\",\"\",'[6]MONE(M)'!$AO109)","v":"n.d."},{"$f":"IF('[7]MONE(M)'!$AO109=\"\",\"\",'[7]MONE(M)'!$AO109)","v":"n.d."},{"$f":"IF('[8]MONE(M)'!$AO109=\"\",\"\",'[8]MONE(M)'!$AO109)","v":"n.d."},"n.d.","n.d.","n.d.","n.d.","n.d.","n.d.","n.d.",{"$f":"IF('[2]FISCAL(M)'!$K109=\"\",\"\",'[2]FISCAL(M)'!$K109)","v":"n.d."},"n.d.","n.d.",{"$f":"IF('[2]FISCAL(M)'!$L109=\"\",\"\",'[2]FISCAL(M)'!$L109)","v":"n.d."},"n.d.","n.d.","n.d.","n.d.","n.d.","n.d.","n.d.","n.d.","n.d.","n.d.","n.d.","n.d.","n.d.","n.d.","n.d.","n.d.","n.d.","n.d."]
[1998,"mayo ","1998-mayo ",{"$f":"IF('[2]REAL IPC(M)'!$AL110=\"\",\"\",+'[2]REAL IPC(M)'!$AL110)","v":7.4046920821114304},{"$f":"IF('[2]REAL IPC(M)'!$BE110=\"\",\"\",+'[2]REAL IPC(M)'!$BE110)","v":7.7002334724591393},{"$f":"IF('[2]REAL IPC(M)'!$AM110=\"\",\"\",+'[2]REAL IPC(M)'!$AM110)","v":6.7413162705667329},{"$f":"IF('[2]REAL IPC(M)'!$BI110=\"\",\"\",+'[2]REAL IPC(M)'!$BI110)","v":7.005317539883027},{"$f":"IF('[2]REAL IMAE(M)'!BJ110=\"\",\"\",'[2]REAL IMAE(M)'!BJ110)","v":"n.d."},{"$f":"IF('[2]REAL IMAE(M)'!BK110=\"\",\"\",'[2]REAL IMAE(M)'!BK110)","v":"n.d."},{"$f":"IF('[2]REAL IMAE(M)'!BN110=\"\",\"\",'[2]REAL IMAE(M)'!BN110)","v":"n.d."},{"$f":"IF('[2]REAL IMAE(M)'!BO110=\"\",\"\",'[2]REAL IMAE(M)'!BO110)","v":"n.d."},{"$f":"IF('[2]EXT RIN(M)'!$K110=\"\",\"\",'[2]EXT RIN(M)'!$K110)","v":"n.d."},"",{"$f":"IF('[2]EXT RIN(M)'!$L110=\"\",\"\",'[2]EXT RIN(M)'!$L110)","v":"n.d."},"",{"$f":"IF('[2]MONE(M)CARD'!EG110=\"\",\"\",'[2]MONE(M)CARD'!EG110)","v":"n.d."},{"$f":"IF('[2]MONE(M)CARD'!EK110=\"\",\"\",'[2]MONE(M)CARD'!EK110)","v":"n.d."},{"$f":"IF('[2]MONE(M)CARD'!EP110=\"\",\"\",'[2]MONE(M)CARD'!EP110)","v":"n.d."},{"$f":"IF('[2]MONE(M)CARD'!ES110=\"\",\"\",'[2]MONE(M)CARD'!ES110)","v":"n.d."},{"$f":"IF('[2]MONE(M)CARD'!EV110=\"\",\"\",'[2]MONE(M)CARD'!EV110)","v":"n.d."},{"$f":"IF('[2]MONE(M)CARD'!EZ110=\"\",\"\",'[2]MONE(M)CARD'!EZ110)","v":"n.d."},{"$f":"IF('[2]MONE(M)CAPARD'!FC110=\"\",\"\",'[2]MONE(M)CAPARD'!FC110)","v":"n.d."},{"$f":"IF('[2]MONE(M)CAPARD'!FG110=\"\",\"\",'[2]MONE(M)CAPARD'!FG110)","v":"n.d."},{"$f":"IF('[2]MONE(M)CAPARD'!FL110=\"\",\"\",'[2]MONE(M)CAPARD'!FL110)","v":"n.d."},{"$f":"IF('[2]MONE(M)CAPARD'!FO110=\"\",\"\",'[2]MONE(M)CAPARD'!FO110)","v":"n.d."},{"$f":"IF('[2]MONE(M)CAPARD'!FR110=\"\",\"\",'[2]MONE(M)CAPARD'!FR110)","v":"n.d."},{"$f":"IF('[2]MONE(M)CAPARD'!FV110=\"\",\"\",'[2]MONE(M)CAPARD'!FV110)","v":"n.d."},{"$f":"IF('[2]MONE(M)CARD'!FV110=\"\",\"\",'[2]MONE(M)CARD'!FV110)","v":""},{"$f":"IF('[2]MONE(M)CARD'!GD110=\"\",\"\",'[2]MONE(M)CARD'!GD110)","v":"n.d."},{"$f":"IF('[2]MONE(M)CARD'!GE110=\"\",\"\",'[2]MONE(M)CARD'!GE110)","v":"n.d."},"n.d.","n.d.","n.d.","n.d.","n.d.","n.d.","n.d.","n.d.",null,"n.d.","n.d.","n.d.","n.d.","n.d.",{"$f":"IF('[2]MONE(M)CAPARD'!GS110=\"\",\"\",'[2]MONE(M)CAPARD'!GS110)","v":"n.d."},{"$f":"IF('[2]MONE(M)CARD'!HA110=\"\",\"\",'[2]MONE(M)CAPARD'!HA110)","v":"n.d."},{"$f":"IF('[2]MONE(M)CAPARD'!HB110=\"\",\"\",'[2]MONE(M)CAPARD'!HB110)","v":"n.d."},"n.d.","n.d.","n.d.","n.d.","n.d.","n.d.","n.d.","n.d.","n.d.","n.d.","n.d.","n.d.","n.d.","n.d.",{"$f":"IF('[2]MONE(M)CAPARD'!AS110=\"\",\"\",'[2]MONE(M)CAPARD'!AS110)","v":"n.d."},{"$f":"IF('[2]MONE(M)CAPARD'!AT110=\"\",\"\",'[2]MONE(M)CAPARD'!AT110)","v":"n.a."},{"$f":"IF('[2]MONE(M)CAPARD'!AU110=\"\",\"\",'[2]MONE(M)CAPARD'!AU110)","v":"n.d."},{"$f":"IF('[2]MONE(M)CAPARD'!AV110=\"\",\"\",'[2]MONE(M)CAPARD'!AV110)","v":"n.d."},{"$f":"IF('[2]MONE(M)CAPARD'!AW110=\"\",\"\",'[2]MONE(M)CAPARD'!AW110)","v":"n.a."},{"$f":"IF('[2]MONE(M)CAPARD'!AX110=\"\",\"\",'[2]MONE(M)CAPARD'!AX110)","v":"n.d."},{"$f":"IF('[2]MONE(M)CAPARD'!AY110=\"\",\"\",'[2]MONE(M)CAPARD'!AY110)","v":"n.a."},{"$f":"IF('[2]FISCAL(M)'!$K110=\"\",\"\",'[2]FISCAL(M)'!$K110)","v":"n.d."},{"$f":"IF('[2]FISCAL(M)'!$L110=\"\",\"\",'[2]FISCAL(M)'!$L110)","v":"n.d."},{"$f":"IF('[2]FISCAL(M)'!$AY110=\"\",\"\",'[2]FISCAL(M)'!$AY110)","v":"n.d."},{"$f":"IF('[2]FISCAL(M)'!$BI110=\"\",\"\",'[2]FISCAL(M)'!$BI110)","v":"n.d."},{"$f":"IF('[2]FISCAL(M)'!$BS110=\"\",\"\",'[2]FISCAL(M)'!$BS110)","v":"n.d."},{"$f":"IF('[2]FISCAL(M)'!$AZ110=\"\",\"\",'[2]FISCAL(M)'!$AZ110)","v":"n.d."},{"$f":"IF('[2]FISCAL(M)'!$BJ110=\"\",\"\",'[2]FISCAL(M)'!$BJ110)","v":"n.d."},{"$f":"IF('[2]FISCAL(M)'!$BT110=\"\",\"\",'[2]FISCAL(M)'!$BT110)","v":"n.d."},{"$f":"IF('[3]MONE(M)'!$AO110=\"\",\"\",'[3]MONE(M)'!$AO110)","v":"n.d."},{"$f":"IF('[4]MONE(M)'!$AO110=\"\",\"\",'[4]MONE(M)'!$AO110)","v":"n.d."},{"$f":"IF('[5]MONE(M)'!$AO110=\"\",\"\",'[5]MONE(M)'!$AO110)","v":"n.d."},{"$f":"+'[1]MONE(M)'!$AO110","v":"n.d."},{"$f":"IF('[6]MONE(M)'!$AO110=\"\",\"\",'[6]MONE(M)'!$AO110)","v":"n.d."},{"$f":"IF('[7]MONE(M)'!$AO110=\"\",\"\",'[7]MONE(M)'!$AO110)","v":"n.d."},{"$f":"IF('[8]MONE(M)'!$AO110=\"\",\"\",'[8]MONE(M)'!$AO110)","v":"n.d."},"n.d.","n.d.","n.d.","n.d.","n.d.","n.d.","n.d.",{"$f":"IF('[2]FISCAL(M)'!$K110=\"\",\"\",'[2]FISCAL(M)'!$K110)","v":"n.d."},"n.d.","n.d.",{"$f":"IF('[2]FISCAL(M)'!$L110=\"\",\"\",'[2]FISCAL(M)'!$L110)","v":"n.d."},"n.d.","n.d.","n.d.","n.d.","n.d.","n.d.","n.d.","n.d.","n.d.","n.d.","n.d.","n.d.","n.d.","n.d.","n.d.","n.d.","n.d.","n.d."]
[1998,"junio ","1998-junio ",{"$f":"IF('[2]REAL IPC(M)'!$AL111=\"\",\"\",+'[2]REAL IPC(M)'!$AL111)","v":7.4550752792617692},{"$f":"IF('[2]REAL IPC(M)'!$BE111=\"\",\"\",+'[2]REAL IPC(M)'!$BE111)","v":7.5952321442716686},{"$f":"IF('[2]REAL IPC(M)'!$AM111=\"\",\"\",+'[2]REAL IPC(M)'!$AM111)","v":6.7681126504655742},{"$f":"IF('[2]REAL IPC(M)'!$BI111=\"\",\"\",+'[2]REAL IPC(M)'!$BI111)","v":6.9071625276491355},{"$f":"IF('[2]REAL IMAE(M)'!BJ111=\"\",\"\",'[2]REAL IMAE(M)'!BJ111)","v":"n.d."},{"$f":"IF('[2]REAL IMAE(M)'!BK111=\"\",\"\",'[2]REAL IMAE(M)'!BK111)","v":"n.d."},{"$f":"IF('[2]REAL IMAE(M)'!BN111=\"\",\"\",'[2]REAL IMAE(M)'!BN111)","v":"n.d."},{"$f":"IF('[2]REAL IMAE(M)'!BO111=\"\",\"\",'[2]REAL IMAE(M)'!BO111)","v":"n.d."},{"$f":"IF('[2]EXT RIN(M)'!$K111=\"\",\"\",'[2]EXT RIN(M)'!$K111)","v":"n.d."},"",{"$f":"IF('[2]EXT RIN(M)'!$L111=\"\",\"\",'[2]EXT RIN(M)'!$L111)","v":"n.d."},"",{"$f":"IF('[2]MONE(M)CARD'!EG111=\"\",\"\",'[2]MONE(M)CARD'!EG111)","v":"n.d."},{"$f":"IF('[2]MONE(M)CARD'!EK111=\"\",\"\",'[2]MONE(M)CARD'!EK111)","v":"n.d."},{"$f":"IF('[2]MONE(M)CARD'!EP111=\"\",\"\",'[2]MONE(M)CARD'!EP111)","v":"n.d."},{"$f":"IF('[2]MONE(M)CARD'!ES111=\"\",\"\",'[2]MONE(M)CARD'!ES111)","v":"n.d."},{"$f":"IF('[2]MONE(M)CARD'!EV111=\"\",\"\",'[2]MONE(M)CARD'!EV111)","v":"n.d."},{"$f":"IF('[2]MONE(M)CARD'!EZ111=\"\",\"\",'[2]MONE(M)CARD'!EZ111)","v":"n.d."},{"$f":"IF('[2]MONE(M)CAPARD'!FC111=\"\",\"\",'[2]MONE(M)CAPARD'!FC111)","v":"n.d."},{"$f":"IF('[2]MONE(M)CAPARD'!FG111=\"\",\"\",'[2]MONE(M)CAPARD'!FG111)","v":"n.d."},{"$f":"IF('[2]MONE(M)CAPARD'!FL111=\"\",\"\",'[2]MONE(M)CAPARD'!FL111)","v":"n.d."},{"$f":"IF('[2]MONE(M)CAPARD'!FO111=\"\",\"\",'[2]MONE(M)CAPARD'!FO111)","v":"n.d."},{"$f":"IF('[2]MONE(M)CAPARD'!FR111=\"\",\"\",'[2]MONE(M)CAPARD'!FR111)","v":"n.d."},{"$f":"IF('[2]MONE(M)CAPARD'!FV111=\"\",\"\",'[2]MONE(M)CAPARD'!FV111)","v":"n.d."},{"$f":"IF('[2]MONE(M)CARD'!FV111=\"\",\"\",'[2]MONE(M)CARD'!FV111)","v":""},{"$f":"IF('[2]MONE(M)CARD'!GD111=\"\",\"\",'[2]MONE(M)CARD'!GD111)","v":"n.d."},{"$f":"IF('[2]MONE(M)CARD'!GE111=\"\",\"\",'[2]MONE(M)CARD'!GE111)","v":"n.d."},"n.d.","n.d.","n.d.","n.d.","n.d.","n.d.","n.d.","n.d.",null,"n.d.","n.d.","n.d.","n.d.","n.d.",{"$f":"IF('[2]MONE(M)CAPARD'!GS111=\"\",\"\",'[2]MONE(M)CAPARD'!GS111)","v":"n.d."},{"$f":"IF('[2]MONE(M)CARD'!HA111=\"\",\"\",'[2]MONE(M)CAPARD'!HA111)","v":"n.d."},{"$f":"IF('[2]MONE(M)CAPARD'!HB111=\"\",\"\",'[2]MONE(M)CAPARD'!HB111)","v":"n.d."},"n.d.","n.d.","n.d.","n.d.","n.d.","n.d.","n.d.","n.d.","n.d.","n.d.","n.d.","n.d.","n.d.","n.d.",{"$f":"IF('[2]MONE(M)CAPARD'!AS111=\"\",\"\",'[2]MONE(M)CAPARD'!AS111)","v":"n.d."},{"$f":"IF('[2]MONE(M)CAPARD'!AT111=\"\",\"\",'[2]MONE(M)CAPARD'!AT111)","v":"n.a."},{"$f":"IF('[2]MONE(M)CAPARD'!AU111=\"\",\"\",'[2]MONE(M)CAPARD'!AU111)","v":"n.d."},{"$f":"IF('[2]MONE(M)CAPARD'!AV111=\"\",\"\",'[2]MONE(M)CAPARD'!AV111)","v":"n.d."},{"$f":"IF('[2]MONE(M)CAPARD'!AW111=\"\",\"\",'[2]MONE(M)CAPARD'!AW111)","v":"n.a."},{"$f":"IF('[2]MONE(M)CAPARD'!AX111=\"\",\"\",'[2]MONE(M)CAPARD'!AX111)","v":"n.d."},{"$f":"IF('[2]MONE(M)CAPARD'!AY111=\"\",\"\",'[2]MONE(M)CAPARD'!AY111)","v":"n.a."},{"$f":"IF('[2]FISCAL(M)'!$K111=\"\",\"\",'[2]FISCAL(M)'!$K111)","v":"n.d."},{"$f":"IF('[2]FISCAL(M)'!$L111=\"\",\"\",'[2]FISCAL(M)'!$L111)","v":"n.d."},{"$f":"IF('[2]FISCAL(M)'!$AY111=\"\",\"\",'[2]FISCAL(M)'!$AY111)","v":"n.d."},{"$f":"IF('[2]FISCAL(M)'!$BI111=\"\",\"\",'[2]FISCAL(M)'!$BI111)","v":"n.d."},{"$f":"IF('[2]FISCAL(M)'!$BS111=\"\",\"\",'[2]FISCAL(M)'!$BS111)","v":"n.d."},{"$f":"IF('[2]FISCAL(M)'!$AZ111=\"\",\"\",'[2]FISCAL(M)'!$AZ111)","v":"n.d."},{"$f":"IF('[2]FISCAL(M)'!$BJ111=\"\",\"\",'[2]FISCAL(M)'!$BJ111)","v":"n.d."},{"$f":"IF('[2]FISCAL(M)'!$BT111=\"\",\"\",'[2]FISCAL(M)'!$BT111)","v":"n.d."},{"$f":"IF('[3]MONE(M)'!$AO111=\"\",\"\",'[3]MONE(M)'!$AO111)","v":"n.d."},{"$f":"IF('[4]MONE(M)'!$AO111=\"\",\"\",'[4]MONE(M)'!$AO111)","v":"n.d."},{"$f":"IF('[5]MONE(M)'!$AO111=\"\",\"\",'[5]MONE(M)'!$AO111)","v":"n.d."},{"$f":"+'[1]MONE(M)'!$AO111","v":"n.d."},{"$f":"IF('[6]MONE(M)'!$AO111=\"\",\"\",'[6]MONE(M)'!$AO111)","v":"n.d."},{"$f":"IF('[7]MONE(M)'!$AO111=\"\",\"\",'[7]MONE(M)'!$AO111)","v":"n.d."},{"$f":"IF('[8]MONE(M)'!$AO111=\"\",\"\",'[8]MONE(M)'!$AO111)","v":"n.d."},"n.d.","n.d.","n.d.","n.d.","n.d.","n.d.","n.d.",{"$f":"IF('[2]FISCAL(M)'!$K111=\"\",\"\",'[2]FISCAL(M)'!$K111)","v":"n.d."},"n.d.","n.d.",{"$f":"IF('[2]FISCAL(M)'!$L111=\"\",\"\",'[2]FISCAL(M)'!$L111)","v":"n.d."},"n.d.","n.d.","n.d.","n.d.","n.d.","n.d.","n.d.","n.d.","n.d.","n.d.","n.d.","n.d.","n.d.","n.d.","n.d.","n.d.","n.d.","n.d."]
[1998,"julio","1998-julio",{"$f":"IF('[2]REAL IPC(M)'!$AL112=\"\",\"\",+'[2]REAL IPC(M)'!$AL112)","v":7.0040777164787738},{"$f":"IF('[2]REAL IPC(M)'!$BE112=\"\",\"\",+'[2]REAL IPC(M)'!$BE112)","v":7.4960174401746515},{"$f":"IF('[2]REAL IPC(M)'!$AM112=\"\",\"\",+'[2]REAL IPC(M)'!$AM112)","v":6.3777228834493549},{"$f":"IF('[2]REAL IPC(M)'!$BI112=\"\",\"\",+'[2]REAL IPC(M)'!$BI112)","v":6.814989861691223},{"$f":"IF('[2]REAL IMAE(M)'!BJ112=\"\",\"\",'[2]REAL IMAE(M)'!BJ112)","v":"n.d."},{"$f":"IF('[2]REAL IMAE(M)'!BK112=\"\",\"\",'[2]REAL IMAE(M)'!BK112)","v":"n.d."},{"$f":"IF('[2]REAL IMAE(M)'!BN112=\"\",\"\",'[2]REAL IMAE(M)'!BN112)","v":"n.d."},{"$f":"IF('[2]REAL IMAE(M)'!BO112=\"\",\"\",'[2]REAL IMAE(M)'!BO112)","v":"n.d."},{"$f":"IF('[2]EXT RIN(M)'!$K112=\"\",\"\",'[2]EXT RIN(M)'!$K112)","v":"n.d."},"",{"$f":"IF('[2]EXT RIN(M)'!$L112=\"\",\"\",'[2]EXT RIN(M)'!$L112)","v":"n.d."},"",{"$f":"IF('[2]MONE(M)CARD'!EG112=\"\",\"\",'[2]MONE(M)CARD'!EG112)","v":"n.d."},{"$f":"IF('[2]MONE(M)CARD'!EK112=\"\",\"\",'[2]MONE(M)CARD'!EK112)","v":"n.d."},{"$f":"IF('[2]MONE(M)CARD'!EP112=\"\",\"\",'[2]MONE(M)CARD'!EP112)","v":"n.d."},{"$f":"IF('[2]MONE(M)CARD'!ES112=\"\",\"\",'[2]MONE(M)CARD'!ES112)","v":"n.d."},{"$f":"IF('[2]MONE(M)CARD'!EV112=\"\",\"\",'[2]MONE(M)CARD'!EV112)","v":"n.d."},{"$f":"IF('[2]MONE(M)CARD'!EZ112=\"\",\"\",'[2]MONE(M)CARD'!EZ112)","v":"n.d."},{"$f":"IF('[2]MONE(M)CAPARD'!FC112=\"\",\"\",'[2]MONE(M)CAPARD'!FC112)","v":"n.d."},{"$f":"IF('[2]MONE(M)CAPARD'!FG112=\"\",\"\",'[2]MONE(M)CAPARD'!FG112)","v":"n.d."},{"$f":"IF('[2]MONE(M)CAPARD'!FL112=\"\",\"\",'[2]MONE(M)CAPARD'!FL112)","v":"n.d."},{"$f":"IF('[2]MONE(M)CAPARD'!FO112=\"\",\"\",'[2]MONE(M)CAPARD'!FO112)","v":"n.d."},{"$f":"IF('[2]MONE(M)CAPARD'!FR112=\"\",\"\",'[2]MONE(M)CAPARD'!FR112)","v":"n.d."},{"$f":"IF('[2]MONE(M)CAPARD'!FV112=\"\",\"\",'[2]MONE(M)CAPARD'!FV112)","v":"n.d."},{"$f":"IF('[2]MONE(M)CARD'!FV112=\"\",\"\",'[2]MONE(M)CARD'!FV112)","v":""},{"$f":"IF('[2]MONE(M)CARD'!GD112=\"\",\"\",'[2]MONE(M)CARD'!GD112)","v":"n.d."},{"$f":"IF('[2]MONE(M)CARD'!GE112=\"\",\"\",'[2]MONE(M)CARD'!GE112)","v":"n.d."},"n.d.","n.d.","n.d.","n.d.","n.d.","n.d.","n.d.","n.d.",null,"n.d.","n.d.","n.d.","n.d.","n.d.",{"$f":"IF('[2]MONE(M)CAPARD'!GS112=\"\",\"\",'[2]MONE(M)CAPARD'!GS112)","v":"n.d."},{"$f":"IF('[2]MONE(M)CARD'!HA112=\"\",\"\",'[2]MONE(M)CAPARD'!HA112)","v":"n.d."},{"$f":"IF('[2]MONE(M)CAPARD'!HB112=\"\",\"\",'[2]MONE(M)CAPARD'!HB112)","v":"n.d."},"n.d.","n.d.","n.d.","n.d.","n.d.","n.d.","n.d.","n.d.","n.d.","n.d.","n.d.","n.d.","n.d.","n.d.",{"$f":"IF('[2]MONE(M)CAPARD'!AS112=\"\",\"\",'[2]MONE(M)CAPARD'!AS112)","v":"n.d."},{"$f":"IF('[2]MONE(M)CAPARD'!AT112=\"\",\"\",'[2]MONE(M)CAPARD'!AT112)","v":"n.a."},{"$f":"IF('[2]MONE(M)CAPARD'!AU112=\"\",\"\",'[2]MONE(M)CAPARD'!AU112)","v":"n.d."},{"$f":"IF('[2]MONE(M)CAPARD'!AV112=\"\",\"\",'[2]MONE(M)CAPARD'!AV112)","v":"n.d."},{"$f":"IF('[2]MONE(M)CAPARD'!AW112=\"\",\"\",'[2]MONE(M)CAPARD'!AW112)","v":"n.a."},{"$f":"IF('[2]MONE(M)CAPARD'!AX112=\"\",\"\",'[2]MONE(M)CAPARD'!AX112)","v":"n.d."},{"$f":"IF('[2]MONE(M)CAPARD'!AY112=\"\",\"\",'[2]MONE(M)CAPARD'!AY112)","v":"n.a."},{"$f":"IF('[2]FISCAL(M)'!$K112=\"\",\"\",'[2]FISCAL(M)'!$K112)","v":"n.d."},{"$f":"IF('[2]FISCAL(M)'!$L112=\"\",\"\",'[2]FISCAL(M)'!$L112)","v":"n.d."},{"$f":"IF('[2]FISCAL(M)'!$AY112=\"\",\"\",'[2]FISCAL(M)'!$AY112)","v":"n.d."},{"$f":"IF('[2]FISCAL(M)'!$BI112=\"\",\"\",'[2]FISCAL(M)'!$BI112)","v":"n.d."},{"$f":"IF('[2]FISCAL(M)'!$BS112=\"\",\"\",'[2]FISCAL(M)'!$BS112)","v":"n.d."},{"$f":"IF('[2]FISCAL(M)'!$AZ112=\"\",\"\",'[2]FISCAL(M)'!$AZ112)","v":"n.d."},{"$f":"IF('[2]FISCAL(M)'!$BJ112=\"\",\"\",'[2]FISCAL(M)'!$BJ112)","v":"n.d."},{"$f":"IF('[2]FISCAL(M)'!$BT112=\"\",\"\",'[2]FISCAL(M)'!$BT112)","v":"n.d."},{"$f":"IF('[3]MONE(M)'!$AO112=\"\",\"\",'[3]MONE(M)'!$AO112)","v":"n.d."},{"$f":"IF('[4]MONE(M)'!$AO112=\"\",\"\",'[4]MONE(M)'!$AO112)","v":"n.d."},{"$f":"IF('[5]MONE(M)'!$AO112=\"\",\"\",'[5]MONE(M)'!$AO112)","v":"n.d."},{"$f":"+'[1]MONE(M)'!$AO112","v":"n.d."},{"$f":"IF('[6]MONE(M)'!$AO112=\"\",\"\",'[6]MONE(M)'!$AO112)","v":"n.d."},{"$f":"IF('[7]MONE(M)'!$AO112=\"\",\"\",'[7]MONE(M)'!$AO112)","v":"n.d."},{"$f":"IF('[8]MONE(M)'!$AO112=\"\",\"\",'[8]MONE(M)'!$AO112)","v":"n.d."},"n.d.","n.d.","n.d.","n.d.","n.d.","n.d.","n.d.",{"$f":"IF('[2]FISCAL(M)'!$K112=\"\",\"\",'[2]FISCAL(M)'!$K112)","v":"n.d."},"n.d.","n.d.",{"$f":"IF('[2]FISCAL(M)'!$L112=\"\",\"\",'[2]FISCAL(M)'!$L112)","v":"n.d."},"n.d.","n.d.","n.d.","n.d.","n.d.","n.d.","n.d.","n.d.","n.d.","n.d.","n.d.","n.d.","n.d.","n.d.","n.d.","n.d.","n.d.","n.d."]
[1998,"agosto","1998-agosto",{"$f":"IF('[2]REAL IPC(M)'!$AL113=\"\",\"\",+'[2]REAL IPC(M)'!$AL113)","v":6.569864318019536},{"$f":"IF('[2]REAL IPC(M)'!$BE113=\"\",\"\",+'[2]REAL IPC(M)'!$BE113)","v":7.4025859558857654},{"$f":"IF('[2]REAL IPC(M)'!$AM113=\"\",\"\",+'[2]REAL IPC(M)'!$AM113)","v":5.9768064228367557},{"$f":"IF('[2]REAL IPC(M)'!$BI113=\"\",\"\",+'[2]REAL IPC(M)'!$BI113)","v":6.7288330102217575},{"$f":"IF('[2]REAL IMAE(M)'!BJ113=\"\",\"\",'[2]REAL IMAE(M)'!BJ113)","v":"n.d."},{"$f":"IF('[2]REAL IMAE(M)'!BK113=\"\",\"\",'[2]REAL IMAE(M)'!BK113)","v":"n.d."},{"$f":"IF('[2]REAL IMAE(M)'!BN113=\"\",\"\",'[2]REAL IMAE(M)'!BN113)","v":"n.d."},{"$f":"IF('[2]REAL IMAE(M)'!BO113=\"\",\"\",'[2]REAL IMAE(M)'!BO113)","v":"n.d."},{"$f":"IF('[2]EXT RIN(M)'!$K113=\"\",\"\",'[2]EXT RIN(M)'!$K113)","v":"n.d."},"",{"$f":"IF('[2]EXT RIN(M)'!$L113=\"\",\"\",'[2]EXT RIN(M)'!$L113)","v":"n.d."},"",{"$f":"IF('[2]MONE(M)CARD'!EG113=\"\",\"\",'[2]MONE(M)CARD'!EG113)","v":"n.d."},{"$f":"IF('[2]MONE(M)CARD'!EK113=\"\",\"\",'[2]MONE(M)CARD'!EK113)","v":"n.d."},{"$f":"IF('[2]MONE(M)CARD'!EP113=\"\",\"\",'[2]MONE(M)CARD'!EP113)","v":"n.d."},{"$f":"IF('[2]MONE(M)CARD'!ES113=\"\",\"\",'[2]MONE(M)CARD'!ES113)","v":"n.d."},{"$f":"IF('[2]MONE(M)CARD'!EV113=\"\",\"\",'[2]MONE(M)CARD'!EV113)","v":"n.d."},{"$f":"IF('[2]MONE(M)CARD'!EZ113=\"\",\"\",'[2]MONE(M)CARD'!EZ113)","v":"n.d."},{"$f":"IF('[2]MONE(M)CAPARD'!FC113=\"\",\"\",'[2]MONE(M)CAPARD'!FC113)","v":"n.d."},{"$f":"IF('[2]MONE(M)CAPARD'!FG113=\"\",\"\",'[2]MONE(M)CAPARD'!FG113)","v":"n.d."},{"$f":"IF('[2]MONE(M)CAPARD'!FL113=\"\",\"\",'[2]MONE(M)CAPARD'!FL113)","v":"n.d."},{"$f":"IF('[2]MONE(M)CAPARD'!FO113=\"\",\"\",'[2]MONE(M)CAPARD'!FO113)","v":"n.d."},{"$f":"IF('[2]MONE(M)CAPARD'!FR113=\"\",\"\",'[2]MONE(M)CAPARD'!FR113)","v":"n.d."},{"$f":"IF('[2]MONE(M)CAPARD'!FV113=\"\",\"\",'[2]MONE(M)CAPARD'!FV113)","v":"n.d."},{"$f":"IF('[2]MONE(M)CARD'!FV113=\"\",\"\",'[2]MONE(M)CARD'!FV113)","v":""},{"$f":"IF('[2]MONE(M)CARD'!GD113=\"\",\"\",'[2]MONE(M)CARD'!GD113)","v":"n.d."},{"$f":"IF('[2]MONE(M)CARD'!GE113=\"\",\"\",'[2]MONE(M)CARD'!GE113)","v":"n.d."},"n.d.","n.d.","n.d.","n.d.","n.d.","n.d.","n.d.","n.d.",null,"n.d.","n.d.","n.d.","n.d.","n.d.",{"$f":"IF('[2]MONE(M)CAPARD'!GS113=\"\",\"\",'[2]MONE(M)CAPARD'!GS113)","v":"n.d."},{"$f":"IF('[2]MONE(M)CARD'!HA113=\"\",\"\",'[2]MONE(M)CAPARD'!HA113)","v":"n.d."},{"$f":"IF('[2]MONE(M)CAPARD'!HB113=\"\",\"\",'[2]MONE(M)CAPARD'!HB113)","v":"n.d."},"n.d.","n.d.","n.d.","n.d.","n.d.","n.d.","n.d.","n.d.","n.d.","n.d.","n.d.","n.d.","n.d.","n.d.",{"$f":"IF('[2]MONE(M)CAPARD'!AS113=\"\",\"\",'[2]MONE(M)CAPARD'!AS113)","v":"n.d."},{"$f":"IF('[2]MONE(M)CAPARD'!AT113=\"\",\"\",'[2]MONE(M)CAPARD'!AT113)","v":"n.a."},{"$f":"IF('[2]MONE(M)CAPARD'!AU113=\"\",\"\",'[2]MONE(M)CAPARD'!AU113)","v":"n.d."},{"$f":"IF('[2]MONE(M)CAPARD'!AV113=\"\",\"\",'[2]MONE(M)CAPARD'!AV113)","v":"n.d."},{"$f":"IF('[2]MONE(M)CAPARD'!AW113=\"\",\"\",'[2]MONE(M)CAPARD'!AW113)","v":"n.a."},{"$f":"IF('[2]MONE(M)CAPARD'!AX113=\"\",\"\",'[2]MONE(M)CAPARD'!AX113)","v":"n.d."},{"$f":"IF('[2]MONE(M)CAPARD'!AY113=\"\",\"\",'[2]MONE(M)CAPARD'!AY113)","v":"n.a."},{"$f":"IF('[2]FISCAL(M)'!$K113=\"\",\"\",'[2]FISCAL(M)'!$K113)","v":"n.d."},{"$f":"IF('[2]FISCAL(M)'!$L113=\"\",\"\",'[2]FISCAL(M)'!$L113)","v":"n.d."},{"$f":"IF('[2]FISCAL(M)'!$AY113=\"\",\"\",'[2]FISCAL(M)'!$AY113)","v":"n.d."},{"$f":"IF('[2]FISCAL(M)'!$BI113=\"\",\"\",'[2]FISCAL(M)'!$BI113)","v":"n.d."},{"$f":"IF('[2]FISCAL(M)'!$BS113=\"\",\"\",'[2]FISCAL(M)'!$BS113)","v":"n.d."},{"$f":"IF('[2]FISCAL(M)'!$AZ113=\"\",\"\",'[2]FISCAL(M)'!$AZ113)","v":"n.d."},{"$f":"IF('[2]FISCAL(M)'!$BJ113=\"\",\"\",'[2]FISCAL(M)'!$BJ113)","v":"n.d."},{"$f":"IF('[2]FISCAL(M)'!$BT113=\"\",\"\",'[2]FISCAL(M)'!$BT113)","v":"n.d."},{"$f":"IF('[3]MONE(M)'!$AO113=\"\",\"\",'[3]MONE(M)'!$AO113)","v":"n.d."},{"$f":"IF('[4]MONE(M)'!$AO113=\"\",\"\",'[4]MONE(M)'!$AO113)","v":"n.d."},{"$f":"IF('[5]MONE(M)'!$AO113=\"\",\"\",'[5]MONE(M)'!$AO113)","v":"n.d."},{"$f":"+'[1]MONE(M)'!$AO113","v":"n.d."},{"$f":"IF('[6]MONE(M)'!$AO113=\"\",\"\",'[6]MONE(M)'!$AO113)","v":"n.d."},{"$f":"IF('[7]MONE(M)'!$AO113=\"\",\"\",'[7]MONE(M)'!$AO113)","v":"n.d."},{"$f":"IF('[8]MONE(M)'!$AO113=\"\",\"\",'[8]MONE(M)'!$AO113)","v":"n.d."},"n.d.","n.d.","n.d.","n.d.","n.d.","n.d.","n.d.",{"$f":"IF('[2]FISCAL(M)'!$K113=\"\",\"\",'[2]FISCAL(M)'!$K113)","v":"n.d."},"n.d.","n.d.",{"$f":"IF('[2]FISCAL(M)'!$L113=\"\",\"\",'[2]FISCAL(M)'!$L113)","v":"n.d."},"n.d.","n.d.","n.d.","n.d.","n.d.","n.d.","n.d.","n.d.","n.d.","n.d.","n.d.","n.d.","n.d.","n.d.","n.d.","n.d.","n.d.","n.d."]
[1998,"septiembre","1998-septiembre",{"$f":"IF('[2]REAL IPC(M)'!$AL114=\"\",\"\",+'[2]REAL IPC(M)'!$AL114)","v":6.2751598389770402},{"$f":"IF('[2]REAL IPC(M)'!$BE114=\"\",\"\",+'[2]REAL IPC(M)'!$BE114)","v":7.3149088466979872},{"$f":"IF('[2]REAL IPC(M)'!$AM114=\"\",\"\",+'[2]REAL IPC(M)'!$AM114)","v":5.7700843320017681},{"$f":"IF('[2]REAL IPC(M)'!$BI114=\"\",\"\",+'[2]REAL IPC(M)'!$BI114)","v":6.6486986171660156},{"$f":"IF('[2]REAL IMAE(M)'!BJ114=\"\",\"\",'[2]REAL IMAE(M)'!BJ114)","v":"n.d."},{"$f":"IF('[2]REAL IMAE(M)'!BK114=\"\",\"\",'[2]REAL IMAE(M)'!BK114)","v":"n.d."},{"$f":"IF('[2]REAL IMAE(M)'!BN114=\"\",\"\",'[2]REAL IMAE(M)'!BN114)","v":"n.d."},{"$f":"IF('[2]REAL IMAE(M)'!BO114=\"\",\"\",'[2]REAL IMAE(M)'!BO114)","v":"n.d."},{"$f":"IF('[2]EXT RIN(M)'!$K114=\"\",\"\",'[2]EXT RIN(M)'!$K114)","v":"n.d."},"",{"$f":"IF('[2]EXT RIN(M)'!$L114=\"\",\"\",'[2]EXT RIN(M)'!$L114)","v":"n.d."},"",{"$f":"IF('[2]MONE(M)CARD'!EG114=\"\",\"\",'[2]MONE(M)CARD'!EG114)","v":"n.d."},{"$f":"IF('[2]MONE(M)CARD'!EK114=\"\",\"\",'[2]MONE(M)CARD'!EK114)","v":"n.d."},{"$f":"IF('[2]MONE(M)CARD'!EP114=\"\",\"\",'[2]MONE(M)CARD'!EP114)","v":"n.d."},{"$f":"IF('[2]MONE(M)CARD'!ES114=\"\",\"\",'[2]MONE(M)CARD'!ES114)","v":"n.d."},{"$f":"IF('[2]MONE(M)CARD'!EV114=\"\",\"\",'[2]MONE(M)CARD'!EV114)","v":"n.d."},{"$f":"IF('[2]MONE(M)CARD'!EZ114=\"\",\"\",'[2]MONE(M)CARD'!EZ114)","v":"n.d."},{"$f":"IF('[2]MONE(M)CAPARD'!FC114=\"\",\"\",'[2]MONE(M)CAPARD'!FC114)","v":"n.d."},{"$f":"IF('[2]MONE(M)CAPARD'!FG114=\"\",\"\",'[2]MONE(M)CAPARD'!FG114)","v":"n.d."},{"$f":"IF('[2]MONE(M)CAPARD'!FL114=\"\",\"\",'[2]MONE(M)CAPARD'!FL114)","v":"n.d."},{"$f":"IF('[2]MONE(M)CAPARD'!FO114=\"\",\"\",'[2]MONE(M)CAPARD'!FO114)","v":"n.d."},{"$f":"IF('[2]MONE(M)CAPARD'!FR114=\"\",\"\",'[2]MONE(M)CAPARD'!FR114)","v":"n.d."},{"$f":"IF('[2]MONE(M)CAPARD'!FV114=\"\",\"\",'[2]MONE(M)CAPARD'!FV114)","v":"n.d."},{"$f":"IF('[2]MONE(M)CARD'!FV114=\"\",\"\",'[2]MONE(M)CARD'!FV114)","v":""},{"$f":"IF('[2]MONE(M)CARD'!GD114=\"\",\"\",'[2]MONE(M)CARD'!GD114)","v":"n.d."},{"$f":"IF('[2]MONE(M)CARD'!GE114=\"\",\"\",'[2]MONE(M)CARD'!GE114)","v":"n.d."},"n.d.","n.d.","n.d.","n.d.","n.d.","n.d.","n.d.","n.d.",null,"n.d.","n.d.","n.d.","n.d.","n.d.",{"$f":"IF('[2]MONE(M)CAPARD'!GS114=\"\",\"\",'[2]MONE(M)CAPARD'!GS114)","v":"n.d."},{"$f":"IF('[2]MONE(M)CARD'!HA114=\"\",\"\",'[2]MONE(M)CAPARD'!HA114)","v":"n.d."},{"$f":"IF('[2]MONE(M)CAPARD'!HB114=\"\",\"\",'[2]MONE(M)CAPARD'!HB114)","v":"n.d."},"n.d.","n.d.","n.d.","n.d.","n.d.","n.d.","n.d.","n.d.","n.d.","n.d.","n.d.","n.d.","n.d.","n.d.",{"$f":"IF('[2]MONE(M)CAPARD'!AS114=\"\",\"\",'[2]MONE(M)CAPARD'!AS114)","v":"n.d."},{"$f":"IF('[2]MONE(M)CAPARD'!AT114=\"\",\"\",'[2]MONE(M)CAPARD'!AT114)","v":"n.a."},{"$f":"IF('[2]MONE(M)CAPARD'!AU114=\"\",\"\",'[2]MONE(M)CAPARD'!AU114)","v":"n.d."},{"$f":"IF('[2]MONE(M)CAPARD'!AV114=\"\",\"\",'[2]MONE(M)CAPARD'!AV114)","v":"n.d."},{"$f":"IF('[2]MONE(M)CAPARD'!AW114=\"\",\"\",'[2]MONE(M)CAPARD'!AW114)","v":"n.a."},{"$f":"IF('[2]MONE(M)CAPARD'!AX114=\"\",\"\",'[2]MONE(M)CAPARD'!AX114)","v":"n.d."},{"$f":"IF('[2]MONE(M)CAPARD'!AY114=\"\",\"\",'[2]MONE(M)CAPARD'!AY114)","v":"n.a."},{"$f":"IF('[2]FISCAL(M)'!$K114=\"\",\"\",'[2]FISCAL(M)'!$K114)","v":"n.d."},{"$f":"IF('[2]FISCAL(M)'!$L114=\"\",\"\",'[2]FISCAL(M)'!$L114)","v":"n.d."},{"$f":"IF('[2]FISCAL(M)'!$AY114=\"\",\"\",'[2]FISCAL(M)'!$AY114)","v":"n.d."},{"$f":"IF('[2]FISCAL(M)'!$BI114=\"\",\"\",'[2]FISCAL(M)'!$BI114)","v":"n.d."},{"$f":"IF('[2]FISCAL(M)'!$BS114=\"\",\"\",'[2]FISCAL(M)'!$BS114)","v":"n.d."},{"$f":"IF('[2]FISCAL(M)'!$AZ114=\"\",\"\",'[2]FISCAL(M)'!$AZ114)","v":"n.d."},{"$f":"IF('[2]FISCAL(M)'!$BJ114=\"\",\"\",'[2]FISCAL(M)'!$BJ114)","v":"n.d."},{"$f":"IF('[2]FISCAL(M)'!$BT114=\"\",\"\",'[2]FISCAL(M)'!$BT114)","v":"n.d."},{"$f":"IF('[3]MONE(M)'!$AO114=\"\",\"\",'[3]MONE(M)'!$AO114)","v":"n.d."},{"$f":"IF('[4]MONE(M)'!$AO114=\"\",\"\",'[4]MONE(M)'!$AO114)","v":"n.d."},{"$f":"IF('[5]MONE(M)'!$AO114=\"\",\"\",'[5]MONE(M)'!$AO114)","v":"n.d."},{"$f":"+'[1]MONE(M)'!$AO114","v":"n.d."},{"$f":"IF('[6]MONE(M)'!$AO114=\"\",\"\",'[6]MONE(M)'!$AO114)","v":"n.d."},{"$f":"IF('[7]MONE(M)'!$AO114=\"\",\"\",'[7]MONE(M)'!$AO114)","v":"n.d."},{"$f":"IF('[8]MONE(M)'!$AO114=\"\",\"\",'[8]MONE(M)'!$AO114)","v":"n.d."},"n.d.","n.d.","n.d.","n.d.","n.d.","n.d.","n.d.",{"$f":"IF('[2]FISCAL(M)'!$K114=\"\",\"\",'[2]FISCAL(M)'!$K114)","v":"n.d."},"n.d.","n.d.",{"$f":"IF('[2]FISCAL(M)'!$L114=\"\",\"\",'[2]FISCAL(M)'!$L114)","v":"n.d."},"n.d.","n.d.","n.d.","n.d.","n.d.","n.d.","n.d.","n.d.","n.d.","n.d.","n.d.","n.d.","n.d.","n.d.","n.d.","n.d.","n.d.","n.d."]
[1998,"octubre","1998-octubre",{"$f":"IF('[2]REAL IPC(M)'!$AL115=\"\",\"\",+'[2]REAL IPC(M)'!$AL115)","v":6.8648266100495237},{"$f":"IF('[2]REAL IPC(M)'!$BE115=\"\",\"\",+'[2]REAL IPC(M)'!$BE115)","v":7.2329089360533061},{"$f":"IF('[2]REAL IPC(M)'!$AM115=\"\",\"\",+'[2]REAL IPC(M)'!$AM115)","v":6.395220181456085},{"$f":"IF('[2]REAL IPC(M)'!$BI115=\"\",\"\",+'[2]REAL IPC(M)'!$BI115)","v":6.5745437980521348},{"$f":"IF('[2]REAL IMAE(M)'!BJ115=\"\",\"\",'[2]REAL IMAE(M)'!BJ115)","v":"n.d."},{"$f":"IF('[2]REAL IMAE(M)'!BK115=\"\",\"\",'[2]REAL IMAE(M)'!BK115)","v":"n.d."},{"$f":"IF('[2]REAL IMAE(M)'!BN115=\"\",\"\",'[2]REAL IMAE(M)'!BN115)","v":"n.d."},{"$f":"IF('[2]REAL IMAE(M)'!BO115=\"\",\"\",'[2]REAL IMAE(M)'!BO115)","v":"n.d."},{"$f":"IF('[2]EXT RIN(M)'!$K115=\"\",\"\",'[2]EXT RIN(M)'!$K115)","v":"n.d."},"",{"$f":"IF('[2]EXT RIN(M)'!$L115=\"\",\"\",'[2]EXT RIN(M)'!$L115)","v":"n.d."},"",{"$f":"IF('[2]MONE(M)CARD'!EG115=\"\",\"\",'[2]MONE(M)CARD'!EG115)","v":"n.d."},{"$f":"IF('[2]MONE(M)CARD'!EK115=\"\",\"\",'[2]MONE(M)CARD'!EK115)","v":"n.d."},{"$f":"IF('[2]MONE(M)CARD'!EP115=\"\",\"\",'[2]MONE(M)CARD'!EP115)","v":"n.d."},{"$f":"IF('[2]MONE(M)CARD'!ES115=\"\",\"\",'[2]MONE(M)CARD'!ES115)","v":"n.d."},{"$f":"IF('[2]MONE(M)CARD'!EV115=\"\",\"\",'[2]MONE(M)CARD'!EV115)","v":"n.d."},{"$f":"IF('[2]MONE(M)CARD'!EZ115=\"\",\"\",'[2]MONE(M)CARD'!EZ115)","v":"n.d."},{"$f":"IF('[2]MONE(M)CAPARD'!FC115=\"\",\"\",'[2]MONE(M)CAPARD'!FC115)","v":"n.d."},{"$f":"IF('[2]MONE(M)CAPARD'!FG115=\"\",\"\",'[2]MONE(M)CAPARD'!FG115)","v":"n.d."},{"$f":"IF('[2]MONE(M)CAPARD'!FL115=\"\",\"\",'[2]MONE(M)CAPARD'!FL115)","v":"n.d."},{"$f":"IF('[2]MONE(M)CAPARD'!FO115=\"\",\"\",'[2]MONE(M)CAPARD'!FO115)","v":"n.d."},{"$f":"IF('[2]MONE(M)CAPARD'!FR115=\"\",\"\",'[2]MONE(M)CAPARD'!FR115)","v":"n.d."},{"$f":"IF('[2]MONE(M)CAPARD'!FV115=\"\",\"\",'[2]MONE(M)CAPARD'!FV115)","v":"n.d."},{"$f":"IF('[2]MONE(M)CARD'!FV115=\"\",\"\",'[2]MONE(M)CARD'!FV115)","v":""},{"$f":"IF('[2]MONE(M)CARD'!GD115=\"\",\"\",'[2]MONE(M)CARD'!GD115)","v":"n.d."},{"$f":"IF('[2]MONE(M)CARD'!GE115=\"\",\"\",'[2]MONE(M)CARD'!GE115)","v":"n.d."},"n.d.","n.d.","n.d.","n.d.","n.d.","n.d.","n.d.","n.d.",null,"n.d.","n.d.","n.d.","n.d.","n.d.",{"$f":"IF('[2]MONE(M)CAPARD'!GS115=\"\",\"\",'[2]MONE(M)CAPARD'!GS115)","v":"n.d."},{"$f":"IF('[2]MONE(M)CARD'!HA115=\"\",\"\",'[2]MONE(M)CAPARD'!HA115)","v":"n.d."},{"$f":"IF('[2]MONE(M)CAPARD'!HB115=\"\",\"\",'[2]MONE(M)CAPARD'!HB115)","v":"n.d."},"n.d.","n.d.","n.d.","n.d.","n.d.","n.d.","n.d.","n.d.","n.d.","n.d.","n.d.","n.d.","n.d.","n.d.",{"$f":"IF('[2]MONE(M)CAPARD'!AS115=\"\",\"\",'[2]MONE(M)CAPARD'!AS115)","v":"n.d."},{"$f":"IF('[2]MONE(M)CAPARD'!AT115=\"\",\"\",'[2]MONE(M)CAPARD'!AT115)","v":"n.a."},{"$f":"IF('[2]MONE(M)CAPARD'!AU115=\"\",\"\",'[2]MONE(M)CAPARD'!AU115)","v":"n.d."},{"$f":"IF('[2]MONE(M)CAPARD'!AV115=\"\",\"\",'[2]MONE(M)CAPARD'!AV115)","v":"n.d."},{"$f":"IF('[2]MONE(M)CAPARD'!AW115=\"\",\"\",'[2]MONE(M)CAPARD'!AW115)","v":"n.a."},{"$f":"IF('[2]MONE(M)CAPARD'!AX115=\"\",\"\",'[2]MONE(M)CAPARD'!AX115)","v":"n.d."},{"$f":"IF('[2]MONE(M)CAPARD'!AY115=\"\",\"\",'[2]MONE(M)CAPARD'!AY115)","v":"n.a."},{"$f":"IF('[2]FISCAL(M)'!$K115=\"\",\"\",'[2]FISCAL(M)'!$K115)","v":"n.d."},{"$f":"IF('[2]FISCAL(M)'!$L115=\"\",\"\",'[2]FISCAL(M)'!$L115)","v":"n.d."},{"$f":"IF('[2]FISCAL(M)'!$AY115=\"\",\"\",'[2]FISCAL(M)'!$AY115)","v":"n.d."},{"$f":"IF('[2]FISCAL(M)'!$BI115=\"\",\"\",'[2]FISCAL(M)'!$BI115)","v":"n.d."},{"$f":"IF('[2]FISCAL(M)'!$BS115=\"\",\"\",'[2]FISCAL(M)'!$BS115)","v":"n.d."},{"$f":"IF('[2]FISCAL(M)'!$AZ115=\"\",\"\",'[2]FISCAL(M)'!$AZ115)","v":"n.d."},{"$f":"IF('[2]FISCAL(M)'!$BJ115=\"\",\"\",'[2]FISCAL(M)'!$BJ115)","v":"n.d."},{"$f":"IF('[2]FISCAL(M)'!$BT115=\"\",\"\",'[2]FISCAL(M)'!$BT115)","v":"n.d."},{"$f":"IF('[3]MONE(M)'!$AO115=\"\",\"\",'[3]MONE(M)'!$AO115)","v":"n.d."},{"$f":"IF('[4]MONE(M)'!$AO115=\"\",\"\",'[4]MONE(M)'!$AO115)","v":"n.d."},{"$f":"IF('[5]MONE(M)'!$AO115=\"\",\"\",'[5]MONE(M)'!$AO115)","v":"n.d."},{"$f":"+'[1]MONE(M)'!$AO115","v":"n.d."},{"$f":"IF('[6]MONE(M)'!$AO115=\"\",\"\",'[6]MONE(M)'!$AO115)","v":"n.d."},{"$f":"IF('[7]MONE(M)'!$AO115=\"\",\"\",'[7]MONE(M)'!$AO115)","v":"n.d."},{"$f":"IF('[8]MONE(M)'!$AO115=\"\",\"\",'[8]MONE(M)'!$AO115)","v":"n.d."},"n.d.","n.d.","n.d.","n.d.","n.d.","n.d.","n.d.",{"$f":"IF('[2]FISCAL(M)'!$K115=\"\",\"\",'[2]FISCAL(M)'!$K115)","v":"n.d."},"n.d.","n.d.",{"$f":"IF('[2]FISCAL(M)'!$L115=\"\",\"\",'[2]FISCAL(M)'!$L115)","v":"n.d."},"n.d.","n.d.","n.d.","n.d.","n.d.","n.d.","n.d.","n.d.","n.d.","n.d.","n.d.","n.d.","n.d.","n.d.","n.d.","n.d.","n.d.","n.d."]
[1998,"noviembre","1998-noviembre",{"$f":"IF('[2]REAL IPC(M)'!$AL116=\"\",\"\",+'[2]REAL IPC(M)'!$AL116)","v":8.6335985025737028},{"$f":"IF('[2]REAL IPC(M)'!$BE116=\"\",\"\",+'[2]REAL IPC(M)'!$BE116)","v":7.1564598498139453},{"$f":"IF('[2]REAL IPC(M)'!$AM116=\"\",\"\",+'[2]REAL IPC(M)'!$AM116)","v":7.9727652097518087},{"$f":"IF('[2]REAL IPC(M)'!$BI116=\"\",\"\",+'[2]REAL IPC(M)'!$BI116)","v":6.5062782112157436},{"$f":"IF('[2]REAL IMAE(M)'!BJ116=\"\",\"\",'[2]REAL IMAE(M)'!BJ116)","v":"n.d."},{"$f":"IF('[2]REAL IMAE(M)'!BK116=\"\",\"\",'[2]REAL IMAE(M)'!BK116)","v":"n.d."},{"$f":"IF('[2]REAL IMAE(M)'!BN116=\"\",\"\",'[2]REAL IMAE(M)'!BN116)","v":"n.d."},{"$f":"IF('[2]REAL IMAE(M)'!BO116=\"\",\"\",'[2]REAL IMAE(M)'!BO116)","v":"n.d."},{"$f":"IF('[2]EXT RIN(M)'!$K116=\"\",\"\",'[2]EXT RIN(M)'!$K116)","v":"n.d."},"",{"$f":"IF('[2]EXT RIN(M)'!$L116=\"\",\"\",'[2]EXT RIN(M)'!$L116)","v":"n.d."},"",{"$f":"IF('[2]MONE(M)CARD'!EG116=\"\",\"\",'[2]MONE(M)CARD'!EG116)","v":"n.d."},{"$f":"IF('[2]MONE(M)CARD'!EK116=\"\",\"\",'[2]MONE(M)CARD'!EK116)","v":"n.d."},{"$f":"IF('[2]MONE(M)CARD'!EP116=\"\",\"\",'[2]MONE(M)CARD'!EP116)","v":"n.d."},{"$f":"IF('[2]MONE(M)CARD'!ES116=\"\",\"\",'[2]MONE(M)CARD'!ES116)","v":"n.d."},{"$f":"IF('[2]MONE(M)CARD'!EV116=\"\",\"\",'[2]MONE(M)CARD'!EV116)","v":"n.d."},{"$f":"IF('[2]MONE(M)CARD'!EZ116=\"\",\"\",'[2]MONE(M)CARD'!EZ116)","v":"n.d."},{"$f":"IF('[2]MONE(M)CAPARD'!FC116=\"\",\"\",'[2]MONE(M)CAPARD'!FC116)","v":"n.d."},{"$f":"IF('[2]MONE(M)CAPARD'!FG116=\"\",\"\",'[2]MONE(M)CAPARD'!FG116)","v":"n.d."},{"$f":"IF('[2]MONE(M)CAPARD'!FL116=\"\",\"\",'[2]MONE(M)CAPARD'!FL116)","v":"n.d."},{"$f":"IF('[2]MONE(M)CAPARD'!FO116=\"\",\"\",'[2]MONE(M)CAPARD'!FO116)","v":"n.d."},{"$f":"IF('[2]MONE(M)CAPARD'!FR116=\"\",\"\",'[2]MONE(M)CAPARD'!FR116)","v":"n.d."},{"$f":"IF('[2]MONE(M)CAPARD'!FV116=\"\",\"\",'[2]MONE(M)CAPARD'!FV116)","v":"n.d."},{"$f":"IF('[2]MONE(M)CARD'!FV116=\"\",\"\",'[2]MONE(M)CARD'!FV116)","v":""},{"$f":"IF('[2]MONE(M)CARD'!GD116=\"\",\"\",'[2]MONE(M)CARD'!GD116)","v":"n.d."},{"$f":"IF('[2]MONE(M)CARD'!GE116=\"\",\"\",'[2]MONE(M)CARD'!GE116)","v":"n.d."},"n.d.","n.d.","n.d.","n.d.","n.d.","n.d.","n.d.","n.d.",null,"n.d.","n.d.","n.d.","n.d.","n.d.",{"$f":"IF('[2]MONE(M)CAPARD'!GS116=\"\",\"\",'[2]MONE(M)CAPARD'!GS116)","v":"n.d."},{"$f":"IF('[2]MONE(M)CARD'!HA116=\"\",\"\",'[2]MONE(M)CAPARD'!HA116)","v":"n.d."},{"$f":"IF('[2]MONE(M)CAPARD'!HB116=\"\",\"\",'[2]MONE(M)CAPARD'!HB116)","v":"n.d."},"n.d.","n.d.","n.d.","n.d.","n.d.","n.d.","n.d.","n.d.","n.d.","n.d.","n.d.","n.d.","n.d.","n.d.",{"$f":"IF('[2]MONE(M)CAPARD'!AS116=\"\",\"\",'[2]MONE(M)CAPARD'!AS116)","v":"n.d."},{"$f":"IF('[2]MONE(M)CAPARD'!AT116=\"\",\"\",'[2]MONE(M)CAPARD'!AT116)","v":"n.a."},{"$f":"IF('[2]MONE(M)CAPARD'!AU116=\"\",\"\",'[2]MONE(M)CAPARD'!AU116)","v":"n.d."},{"$f":"IF('[2]MONE(M)CAPARD'!AV116=\"\",\"\",'[2]MONE(M)CAPARD'!AV116)","v":"n.d."},{"$f":"IF('[2]MONE(M)CAPARD'!AW116=\"\",\"\",'[2]MONE(M)CAPARD'!AW116)","v":"n.a."},{"$f":"IF('[2]MONE(M)CAPARD'!AX116=\"\",\"\",'[2]MONE(M)CAPARD'!AX116)","v":"n.d."},{"$f":"IF('[2]MONE(M)CAPARD'!AY116=\"\",\"\",'[2]MONE(M)CAPARD'!AY116)","v":"n.a."},{"$f":"IF('[2]FISCAL(M)'!$K116=\"\",\"\",'[2]FISCAL(M)'!$K116)","v":"n.d."},{"$f":"IF('[2]FISCAL(M)'!$L116=\"\",\"\",'[2]FISCAL(M)'!$L116)","v":"n.d."},{"$f":"IF('[2]FISCAL(M)'!$AY116=\"\",\"\",'[2]FISCAL(M)'!$AY116)","v":"n.d."},{"$f":"IF('[2]FISCAL(M)'!$BI116=\"\",\"\",'[2]FISCAL(M)'!$BI116)","v":"n.d."},{"$f":"IF('[2]FISCAL(M)'!$BS116=\"\",\"\",'[2]FISCAL(M)'!$BS116)","v":"n.d."},{"$f":"IF('[2]FISCAL(M)'!$AZ116=\"\",\"\",'[2]FISCAL(M)'!$AZ116)","v":"n.d."},{"$f":"IF('[2]FISCAL(M)'!$BJ116=\"\",\"\",'[2]FISCAL(M)'!$BJ116)","v":"n.d."},{"$f":"IF('[2]FISCAL(M)'!$BT116=\"\",\"\",'[2]FISCAL(M)'!$BT116)","v":"n.d."},{"$f":"IF('[3]MONE(M)'!$AO116=\"\",\"\",'[3]MONE(M)'!$AO116)","v":"n.d."},{"$f":"IF('[4]MONE(M)'!$AO116=\"\",\"\",'[4]MONE(M)'!$AO116)","v":"n.d."},{"$f":"IF('[5]MONE(M)'!$AO116=\"\",\"\",'[5]MONE(M)'!$AO116)","v":"n.d."},{"$f":"+'[1]MONE(M)'!$AO116","v":"n.d."},{"$f":"IF('[6]MONE(M)'!$AO116=\"\",\"\",'[6]MONE(M)'!$AO116)","v":"n.d."},{"$f":"IF('[7]MONE(M)'!$AO116=\"\",\"\",'[7]MONE(M)'!$AO116)","v":"n.d."},{"$f":"IF('[8]MONE(M)'!$AO116=\"\",\"\",'[8]MONE(M)'!$AO116)","v":"n.d."},"n.d.","n.d.","n.d.","n.d.","n.d.","n.d.","n.d.",{"$f":"IF('[2]FISCAL(M)'!$K116=\"\",\"\",'[2]FISCAL(M)'!$K116)","v":"n.d."},"n.d.","n.d.",{"$f":"IF('[2]FISCAL(M)'!$L116=\"\",\"\",'[2]FISCAL(M)'!$L116)","v":"n.d."},"n.d.","n.d.","n.d.","n.d.","n.d.","n.d.","n.d.","n.d.","n.d.","n.d.","n.d.","n.d.","n.d.","n.d.","n.d.","n.d.","n.d.","n.d."]
[1998,"diciembre","1998-diciembre",{"$f":"IF('[2]REAL IPC(M)'!$AL117=\"\",\"\",+'[2]REAL IPC(M)'!$AL117)","v":9.0358639962738749},{"$f":"IF('[2]REAL IPC(M)'!$BE117=\"\",\"\",+'[2]REAL IPC(M)'!$BE117)","v":7.0854106593602584},{"$f":"IF('[2]REAL IPC(M)'!$AM117=\"\",\"\",+'[2]REAL IPC(M)'!$AM117)","v":8.3096435600262595},{"$f":"IF('[2]REAL IPC(M)'!$BI117=\"\",\"\",+'[2]REAL IPC(M)'!$BI117)","v":6.4437980769824543},{"$f":"IF('[2]REAL IMAE(M)'!BJ117=\"\",\"\",'[2]REAL IMAE(M)'!BJ117)","v":"n.d."},{"$f":"IF('[2]REAL IMAE(M)'!BK117=\"\",\"\",'[2]REAL IMAE(M)'!BK117)","v":"n.d."},{"$f":"IF('[2]REAL IMAE(M)'!BN117=\"\",\"\",'[2]REAL IMAE(M)'!BN117)","v":"n.d."},{"$f":"IF('[2]REAL IMAE(M)'!BO117=\"\",\"\",'[2]REAL IMAE(M)'!BO117)","v":"n.d."},{"$f":"IF('[2]EXT RIN(M)'!$K117=\"\",\"\",'[2]EXT RIN(M)'!$K117)","v":"n.d."},"n.d.",{"$f":"IF('[2]EXT RIN(M)'!$L117=\"\",\"\",'[2]EXT RIN(M)'!$L117)","v":"n.d."},"n.d.",{"$f":"IF('[2]MONE(M)CARD'!EG117=\"\",\"\",'[2]MONE(M)CARD'!EG117)","v":"n.d."},{"$f":"IF('[2]MONE(M)CARD'!EK117=\"\",\"\",'[2]MONE(M)CARD'!EK117)","v":"n.d."},{"$f":"IF('[2]MONE(M)CARD'!EP117=\"\",\"\",'[2]MONE(M)CARD'!EP117)","v":"n.d."},{"$f":"IF('[2]MONE(M)CARD'!ES117=\"\",\"\",'[2]MONE(M)CARD'!ES117)","v":"n.d."},{"$f":"IF('[2]MONE(M)CARD'!EV117=\"\",\"\",'[2]MONE(M)CARD'!EV117)","v":"n.d."},{"$f":"IF('[2]MONE(M)CARD'!EZ117=\"\",\"\",'[2]MONE(M)CARD'!EZ117)","v":"n.d."},{"$f":"IF('[2]MONE(M)CAPARD'!FC117=\"\",\"\",'[2]MONE(M)CAPARD'!FC117)","v":"n.d."},{"$f":"IF('[2]MONE(M)CAPARD'!FG117=\"\",\"\",'[2]MONE(M)CAPARD'!FG117)","v":"n.d."},{"$f":"IF('[2]MONE(M)CAPARD'!FL117=\"\",\"\",'[2]MONE(M)CAPARD'!FL117)","v":"n.d."},{"$f":"IF('[2]MONE(M)CAPARD'!FO117=\"\",\"\",'[2]MONE(M)CAPARD'!FO117)","v":"n.d."},{"$f":"IF('[2]MONE(M)CAPARD'!FR117=\"\",\"\",'[2]MONE(M)CAPARD'!FR117)","v":"n.d."},{"$f":"IF('[2]MONE(M)CAPARD'!FV117=\"\",\"\",'[2]MONE(M)CAPARD'!FV117)","v":"n.d."},{"$f":"IF('[2]MONE(M)CARD'!FV117=\"\",\"\",'[2]MONE(M)CARD'!FV117)","v":""},{"$f":"IF('[2]MONE(M)CARD'!GD117=\"\",\"\",'[2]MONE(M)CARD'!GD117)","v":"n.d."},{"$f":"IF('[2]MONE(M)CARD'!GE117=\"\",\"\",'[2]MONE(M)CARD'!GE117)","v":"n.d."},"n.d.","n.d.","n.d.","n.d.","n.d.","n.d.","n.d.","n.d.",null,"n.d.","n.d.","n.d.","n.d.","n.d.",{"$f":"IF('[2]MONE(M)CAPARD'!GS117=\"\",\"\",'[2]MONE(M)CAPARD'!GS117)","v":"n.d."},{"$f":"IF('[2]MONE(M)CARD'!HA117=\"\",\"\",'[2]MONE(M)CAPARD'!HA117)","v":"n.d."},{"$f":"IF('[2]MONE(M)CAPARD'!HB117=\"\",\"\",'[2]MONE(M)CAPARD'!HB117)","v":"n.d."},"n.d.","n.d.","n.d.","n.d.","n.d.","n.d.","n.d.","n.d.","n.d.","n.d.","n.d.","n.d.","n.d.","n.d.",{"$f":"IF('[2]MONE(M)CAPARD'!AS117=\"\",\"\",'[2]MONE(M)CAPARD'!AS117)","v":"n.d."},{"$f":"IF('[2]MONE(M)CAPARD'!AT117=\"\",\"\",'[2]MONE(M)CAPARD'!AT117)","v":"n.a."},{"$f":"IF('[2]MONE(M)CAPARD'!AU117=\"\",\"\",'[2]MONE(M)CAPARD'!AU117)","v":"n.d."},{"$f":"IF('[2]MONE(M)CAPARD'!AV117=\"\",\"\",'[2]MONE(M)CAPARD'!AV117)","v":"n.d."},{"$f":"IF('[2]MONE(M)CAPARD'!AW117=\"\",\"\",'[2]MONE(M)CAPARD'!AW117)","v":"n.a."},{"$f":"IF('[2]MONE(M)CAPARD'!AX117=\"\",\"\",'[2]MONE(M)CAPARD'!AX117)","v":"n.d."},{"$f":"IF('[2]MONE(M)CAPARD'!AY117=\"\",\"\",'[2]MONE(M)CAPARD'!AY117)","v":"n.a."},{"$f":"IF('[2]FISCAL(M)'!$K117=\"\",\"\",'[2]FISCAL(M)'!$K117)","v":"n.d."},{"$f":"IF('[2]FISCAL(M)'!$L117=\"\",\"\",'[2]FISCAL(M)'!$L117)","v":"n.d."},{"$f":"IF('[2]FISCAL(M)'!$AY117=\"\",\"\",'[2]FISCAL(M)'!$AY117)","v":"n.d."},{"$f":"IF('[2]FISCAL(M)'!$BI117=\"\",\"\",'[2]FISCAL(M)'!$BI117)","v":"n.d."},{"$f":"IF('[2]FISCAL(M)'!$BS117=\"\",\"\",'[2]FISCAL(M)'!$BS117)","v":"n.d."},{"$f":"IF('[2]FISCAL(M)'!$AZ117=\"\",\"\",'[2]FISCAL(M)'!$AZ117)","v":"n.d."},{"$f":"IF('[2]FISCAL(M)'!$BJ117=\"\",\"\",'[2]FISCAL(M)'!$BJ117)","v":"n.d."},{"$f":"IF('[2]FISCAL(M)'!$BT117=\"\",\"\",'[2]FISCAL(M)'!$BT117)","v":"n.d."},{"$f":"IF('[3]MONE(M)'!$AO117=\"\",\"\",'[3]MONE(M)'!$AO117)","v":"n.d."},{"$f":"IF('[4]MONE(M)'!$AO117=\"\",\"\",'[4]MONE(M)'!$AO117)","v":"n.d."},{"$f":"IF('[5]MONE(M)'!$AO117=\"\",\"\",'[5]MONE(M)'!$AO117)","v":"n.d."},{"$f":"+'[1]MONE(M)'!$AO117","v":"n.d."},{"$f":"IF('[6]MONE(M)'!$AO117=\"\",\"\",'[6]MONE(M)'!$AO117)","v":"n.d."},{"$f":"IF('[7]MONE(M)'!$AO117=\"\",\"\",'[7]MONE(M)'!$AO117)","v":"n.d."},{"$f":"IF('[8]MONE(M)'!$AO117=\"\",\"\",'[8]MONE(M)'!$AO117)","v":"n.d."},"n.d.","n.d.","n.d.","n.d.","n.d.","n.d.","n.d.",{"$f":"IF('[2]FISCAL(M)'!$K117=\"\",\"\",'[2]FISCAL(M)'!$K117)","v":"n.d."},"n.d.","n.d.",{"$f":"IF('[2]FISCAL(M)'!$L117=\"\",\"\",'[2]FISCAL(M)'!$L117)","v":"n.d."},"n.d.","n.d.","n.d.","n.d.","n.d.","n.d.","n.d.","n.d.","n.d.","n.d.","n.d.","n.d.","n.d.","n.d.","n.d.","n.d.","n.d.","n.d."]
[1999,"enero","1999-enero",{"$f":"IF('[2]REAL IPC(M)'!$AL118=\"\",\"\",+'[2]REAL IPC(M)'!$AL118)","v":8.3584163000694609},{"$f":"IF('[2]REAL IPC(M)'!$BE118=\"\",\"\",+'[2]REAL IPC(M)'!$BE118)","v":7.0197154540733608},{"$f":"IF('[2]REAL IPC(M)'!$AM118=\"\",\"\",+'[2]REAL IPC(M)'!$AM118)","v":7.6271186440677985},{"$f":"IF('[2]REAL IPC(M)'!$BI118=\"\",\"\",+'[2]REAL IPC(M)'!$BI118)","v":6.3870301430911658},{"$f":"IF('[2]REAL IMAE(M)'!BJ118=\"\",\"\",'[2]REAL IMAE(M)'!BJ118)","v":"n.d."},{"$f":"IF('[2]REAL IMAE(M)'!BK118=\"\",\"\",'[2]REAL IMAE(M)'!BK118)","v":"n.d."},{"$f":"IF('[2]REAL IMAE(M)'!BN118=\"\",\"\",'[2]REAL IMAE(M)'!BN118)","v":"n.d."},{"$f":"IF('[2]REAL IMAE(M)'!BO118=\"\",\"\",'[2]REAL IMAE(M)'!BO118)","v":"n.d."},{"$f":"IF('[2]EXT RIN(M)'!$K118=\"\",\"\",'[2]EXT RIN(M)'!$K118)","v":"n.d."},"",{"$f":"IF('[2]EXT RIN(M)'!$L118=\"\",\"\",'[2]EXT RIN(M)'!$L118)","v":"n.d."},"",{"$f":"IF('[2]MONE(M)CARD'!EG118=\"\",\"\",'[2]MONE(M)CARD'!EG118)","v":"n.d."},{"$f":"IF('[2]MONE(M)CARD'!EK118=\"\",\"\",'[2]MONE(M)CARD'!EK118)","v":"n.d."},{"$f":"IF('[2]MONE(M)CARD'!EP118=\"\",\"\",'[2]MONE(M)CARD'!EP118)","v":"n.d."},{"$f":"IF('[2]MONE(M)CARD'!ES118=\"\",\"\",'[2]MONE(M)CARD'!ES118)","v":"n.d."},{"$f":"IF('[2]MONE(M)CARD'!EV118=\"\",\"\",'[2]MONE(M)CARD'!EV118)","v":"n.d."},{"$f":"IF('[2]MONE(M)CARD'!EZ118=\"\",\"\",'[2]MONE(M)CARD'!EZ118)","v":"n.d."},{"$f":"IF('[2]MONE(M)CAPARD'!FC118=\"\",\"\",'[2]MONE(M)CAPARD'!FC118)","v":"n.d."},{"$f":"IF('[2]MONE(M)CAPARD'!FG118=\"\",\"\",'[2]MONE(M)CAPARD'!FG118)","v":"n.d."},{"$f":"IF('[2]MONE(M)CAPARD'!FL118=\"\",\"\",'[2]MONE(M)CAPARD'!FL118)","v":"n.d."},{"$f":"IF('[2]MONE(M)CAPARD'!FO118=\"\",\"\",'[2]MONE(M)CAPARD'!FO118)","v":"n.d."},{"$f":"IF('[2]MONE(M)CAPARD'!FR118=\"\",\"\",'[2]MONE(M)CAPARD'!FR118)","v":"n.d."},{"$f":"IF('[2]MONE(M)CAPARD'!FV118=\"\",\"\",'[2]MONE(M)CAPARD'!FV118)","v":"n.d."},{"$f":"IF('[2]MONE(M)CARD'!FV118=\"\",\"\",'[2]MONE(M)CARD'!FV118)","v":""},{"$f":"IF('[2]MONE(M)CARD'!GD118=\"\",\"\",'[2]MONE(M)CARD'!GD118)","v":"n.d."},{"$f":"IF('[2]MONE(M)CARD'!GE118=\"\",\"\",'[2]MONE(M)CARD'!GE118)","v":"n.d."},"n.d.","n.d.","n.d.","n.d.","n.d.","n.d.","n.d.","n.d.",null,"n.d.","n.d.","n.d.","n.d.","n.d.",{"$f":"IF('[2]MONE(M)CAPARD'!GS118=\"\",\"\",'[2]MONE(M)CAPARD'!GS118)","v":"n.d."},{"$f":"IF('[2]MONE(M)CARD'!HA118=\"\",\"\",'[2]MONE(M)CAPARD'!HA118)","v":"n.d."},{"$f":"IF('[2]MONE(M)CAPARD'!HB118=\"\",\"\",'[2]MONE(M)CAPARD'!HB118)","v":"n.d."},"n.d.","n.d.","n.d.","n.d.","n.d.","n.d.","n.d.","n.d.","n.d.","n.d.","n.d.","n.d.","n.d.","n.d.",{"$f":"IF('[2]MONE(M)CAPARD'!AS118=\"\",\"\",'[2]MONE(M)CAPARD'!AS118)","v":"n.d."},{"$f":"IF('[2]MONE(M)CAPARD'!AT118=\"\",\"\",'[2]MONE(M)CAPARD'!AT118)","v":"n.a."},{"$f":"IF('[2]MONE(M)CAPARD'!AU118=\"\",\"\",'[2]MONE(M)CAPARD'!AU118)","v":"n.d."},{"$f":"IF('[2]MONE(M)CAPARD'!AV118=\"\",\"\",'[2]MONE(M)CAPARD'!AV118)","v":"n.d."},{"$f":"IF('[2]MONE(M)CAPARD'!AW118=\"\",\"\",'[2]MONE(M)CAPARD'!AW118)","v":"n.a."},{"$f":"IF('[2]MONE(M)CAPARD'!AX118=\"\",\"\",'[2]MONE(M)CAPARD'!AX118)","v":"n.d."},{"$f":"IF('[2]MONE(M)CAPARD'!AY118=\"\",\"\",'[2]MONE(M)CAPARD'!AY118)","v":"n.a."},{"$f":"IF('[2]FISCAL(M)'!$K118=\"\",\"\",'[2]FISCAL(M)'!$K118)","v":"n.d."},{"$f":"IF('[2]FISCAL(M)'!$L118=\"\",\"\",'[2]FISCAL(M)'!$L118)","v":"n.d."},{"$f":"IF('[2]FISCAL(M)'!$AY118=\"\",\"\",'[2]FISCAL(M)'!$AY118)","v":"n.d."},{"$f":"IF('[2]FISCAL(M)'!$BI118=\"\",\"\",'[2]FISCAL(M)'!$BI118)","v":"n.d."},{"$f":"IF('[2]FISCAL(M)'!$BS118=\"\",\"\",'[2]FISCAL(M)'!$BS118)","v":"n.d."},{"$f":"IF('[2]FISCAL(M)'!$AZ118=\"\",\"\",'[2]FISCAL(M)'!$AZ118)","v":"n.d."},{"$f":"IF('[2]FISCAL(M)'!$BJ118=\"\",\"\",'[2]FISCAL(M)'!$BJ118)","v":"n.d."},{"$f":"IF('[2]FISCAL(M)'!$BT118=\"\",\"\",'[2]FISCAL(M)'!$BT118)","v":"n.d."},{"$f":"IF('[3]MONE(M)'!$AO118=\"\",\"\",'[3]MONE(M)'!$AO118)","v":"n.d."},{"$f":"IF('[4]MONE(M)'!$AO118=\"\",\"\",'[4]MONE(M)'!$AO118)","v":"n.d."},{"$f":"IF('[5]MONE(M)'!$AO118=\"\",\"\",'[5]MONE(M)'!$AO118)","v":"n.d."},{"$f":"+'[1]MONE(M)'!$AO118","v":"n.d."},{"$f":"IF('[6]MONE(M)'!$AO118=\"\",\"\",'[6]MONE(M)'!$AO118)","v":"n.d."},{"$f":"IF('[7]MONE(M)'!$AO118=\"\",\"\",'[7]MONE(M)'!$AO118)","v":"n.d."},{"$f":"IF('[8]MONE(M)'!$AO118=\"\",\"\",'[8]MONE(M)'!$AO118)","v":"n.d."},"n.d.","n.d.","n.d.","n.d.","n.d.","n.d.","n.d.",{"$f":"IF('[2]FISCAL(M)'!$K118=\"\",\"\",'[2]FISCAL(M)'!$K118)","v":"n.d."},"n.d.","n.d.",{"$f":"IF('[2]FISCAL(M)'!$L118=\"\",\"\",'[2]FISCAL(M)'!$L118)","v":"n.d."},"n.d.","n.d.","n.d.","n.d.","n.d.","n.d.","n.d.","n.d.","n.d.","n.d.","n.d.","n.d.","n.d.","n.d.","n.d.","n.d.","n.d.","n.d."]
[1999,"febrero","1999-febrero",{"$f":"IF('[2]REAL IPC(M)'!$AL119=\"\",\"\",+'[2]REAL IPC(M)'!$AL119)","v":7.5480435285945946},{"$f":"IF('[2]REAL IPC(M)'!$BE119=\"\",\"\",+'[2]REAL IPC(M)'!$BE119)","v":6.9594419250967654},{"$f":"IF('[2]REAL IPC(M)'!$AM119=\"\",\"\",+'[2]REAL IPC(M)'!$AM119)","v":6.9145466405740263},{"$f":"IF('[2]REAL IPC(M)'!$BI119=\"\",\"\",+'[2]REAL IPC(M)'!$BI119)","v":6.3359631755288692},{"$f":"IF('[2]REAL IMAE(M)'!BJ119=\"\",\"\",'[2]REAL IMAE(M)'!BJ119)","v":"n.d."},{"$f":"IF('[2]REAL IMAE(M)'!BK119=\"\",\"\",'[2]REAL IMAE(M)'!BK119)","v":"n.d."},{"$f":"IF('[2]REAL IMAE(M)'!BN119=\"\",\"\",'[2]REAL IMAE(M)'!BN119)","v":"n.d."},{"$f":"IF('[2]REAL IMAE(M)'!BO119=\"\",\"\",'[2]REAL IMAE(M)'!BO119)","v":"n.d."},{"$f":"IF('[2]EXT RIN(M)'!$K119=\"\",\"\",'[2]EXT RIN(M)'!$K119)","v":"n.d."},"",{"$f":"IF('[2]EXT RIN(M)'!$L119=\"\",\"\",'[2]EXT RIN(M)'!$L119)","v":"n.d."},"",{"$f":"IF('[2]MONE(M)CARD'!EG119=\"\",\"\",'[2]MONE(M)CARD'!EG119)","v":"n.d."},{"$f":"IF('[2]MONE(M)CARD'!EK119=\"\",\"\",'[2]MONE(M)CARD'!EK119)","v":"n.d."},{"$f":"IF('[2]MONE(M)CARD'!EP119=\"\",\"\",'[2]MONE(M)CARD'!EP119)","v":"n.d."},{"$f":"IF('[2]MONE(M)CARD'!ES119=\"\",\"\",'[2]MONE(M)CARD'!ES119)","v":"n.d."},{"$f":"IF('[2]MONE(M)CARD'!EV119=\"\",\"\",'[2]MONE(M)CARD'!EV119)","v":"n.d."},{"$f":"IF('[2]MONE(M)CARD'!EZ119=\"\",\"\",'[2]MONE(M)CARD'!EZ119)","v":"n.d."},{"$f":"IF('[2]MONE(M)CAPARD'!FC119=\"\",\"\",'[2]MONE(M)CAPARD'!FC119)","v":"n.d."},{"$f":"IF('[2]MONE(M)CAPARD'!FG119=\"\",\"\",'[2]MONE(M)CAPARD'!FG119)","v":"n.d."},{"$f":"IF('[2]MONE(M)CAPARD'!FL119=\"\",\"\",'[2]MONE(M)CAPARD'!FL119)","v":"n.d."},{"$f":"IF('[2]MONE(M)CAPARD'!FO119=\"\",\"\",'[2]MONE(M)CAPARD'!FO119)","v":"n.d."},{"$f":"IF('[2]MONE(M)CAPARD'!FR119=\"\",\"\",'[2]MONE(M)CAPARD'!FR119)","v":"n.d."},{"$f":"IF('[2]MONE(M)CAPARD'!FV119=\"\",\"\",'[2]MONE(M)CAPARD'!FV119)","v":"n.d."},{"$f":"IF('[2]MONE(M)CARD'!FV119=\"\",\"\",'[2]MONE(M)CARD'!FV119)","v":""},{"$f":"IF('[2]MONE(M)CARD'!GD119=\"\",\"\",'[2]MONE(M)CARD'!GD119)","v":"n.d."},{"$f":"IF('[2]MONE(M)CARD'!GE119=\"\",\"\",'[2]MONE(M)CARD'!GE119)","v":"n.d."},"n.d.","n.d.","n.d.","n.d.","n.d.","n.d.","n.d.","n.d.",null,"n.d.","n.d.","n.d.","n.d.","n.d.",{"$f":"IF('[2]MONE(M)CAPARD'!GS119=\"\",\"\",'[2]MONE(M)CAPARD'!GS119)","v":"n.d."},{"$f":"IF('[2]MONE(M)CARD'!HA119=\"\",\"\",'[2]MONE(M)CAPARD'!HA119)","v":"n.d."},{"$f":"IF('[2]MONE(M)CAPARD'!HB119=\"\",\"\",'[2]MONE(M)CAPARD'!HB119)","v":"n.d."},"n.d.","n.d.","n.d.","n.d.","n.d.","n.d.","n.d.","n.d.","n.d.","n.d.","n.d.","n.d.","n.d.","n.d.",{"$f":"IF('[2]MONE(M)CAPARD'!AS119=\"\",\"\",'[2]MONE(M)CAPARD'!AS119)","v":"n.d."},{"$f":"IF('[2]MONE(M)CAPARD'!AT119=\"\",\"\",'[2]MONE(M)CAPARD'!AT119)","v":"n.a."},{"$f":"IF('[2]MONE(M)CAPARD'!AU119=\"\",\"\",'[2]MONE(M)CAPARD'!AU119)","v":"n.d."},{"$f":"IF('[2]MONE(M)CAPARD'!AV119=\"\",\"\",'[2]MONE(M)CAPARD'!AV119)","v":"n.d."},{"$f":"IF('[2]MONE(M)CAPARD'!AW119=\"\",\"\",'[2]MONE(M)CAPARD'!AW119)","v":"n.a."},{"$f":"IF('[2]MONE(M)CAPARD'!AX119=\"\",\"\",'[2]MONE(M)CAPARD'!AX119)","v":"n.d."},{"$f":"IF('[2]MONE(M)CAPARD'!AY119=\"\",\"\",'[2]MONE(M)CAPARD'!AY119)","v":"n.a."},{"$f":"IF('[2]FISCAL(M)'!$K119=\"\",\"\",'[2]FISCAL(M)'!$K119)","v":"n.d."},{"$f":"IF('[2]FISCAL(M)'!$L119=\"\",\"\",'[2]FISCAL(M)'!$L119)","v":"n.d."},{"$f":"IF('[2]FISCAL(M)'!$AY119=\"\",\"\",'[2]FISCAL(M)'!$AY119)","v":"n.d."},{"$f":"IF('[2]FISCAL(M)'!$BI119=\"\",\"\",'[2]FISCAL(M)'!$BI119)","v":"n.d."},{"$f":"IF('[2]FISCAL(M)'!$BS119=\"\",\"\",'[2]FISCAL(M)'!$BS119)","v":"n.d."},{"$f":"IF('[2]FISCAL(M)'!$AZ119=\"\",\"\",'[2]FISCAL(M)'!$AZ119)","v":"n.d."},{"$f":"IF('[2]FISCAL(M)'!$BJ119=\"\",\"\",'[2]FISCAL(M)'!$BJ119)","v":"n.d."},{"$f":"IF('[2]FISCAL(M)'!$BT119=\"\",\"\",'[2]FISCAL(M)'!$BT119)","v":"n.d."},{"$f":"IF('[3]MONE(M)'!$AO119=\"\",\"\",'[3]MONE(M)'!$AO119)","v":"n.d."},{"$f":"IF('[4]MONE(M)'!$AO119=\"\",\"\",'[4]MONE(M)'!$AO119)","v":"n.d."},{"$f":"IF('[5]MONE(M)'!$AO119=\"\",\"\",'[5]MONE(M)'!$AO119)","v":"n.d."},{"$f":"+'[1]MONE(M)'!$AO119","v":"n.d."},{"$f":"IF('[6]MONE(M)'!$AO119=\"\",\"\",'[6]MONE(M)'!$AO119)","v":"n.d."},{"$f":"IF('[7]MONE(M)'!$AO119=\"\",\"\",'[7]MONE(M)'!$AO119)","v":"n.d."},{"$f":"IF('[8]MONE(M)'!$AO119=\"\",\"\",'[8]MONE(M)'!$AO119)","v":"n.d."},"n.d.","n.d.","n.d.","n.d.","n.d.","n.d.","n.d.",{"$f":"IF('[2]FISCAL(M)'!$K119=\"\",\"\",'[2]FISCAL(M)'!$K119)","v":"n.d."},"n.d.","n.d.",{"$f":"IF('[2]FISCAL(M)'!$L119=\"\",\"\",'[2]FISCAL(M)'!$L119)","v":"n.d."},"n.d.","n.d.","n.d.","n.d.","n.d.","n.d.","n.d.","n.d.","n.d.","n.d.","n.d.","n.d.","n.d.","n.d.","n.d.","n.d.","n.d.","n.d."]
[1999,"marzo","1999-marzo",{"$f":"IF('[2]REAL IPC(M)'!$AL120=\"\",\"\",+'[2]REAL IPC(M)'!$AL120)","v":6.7296612122608845},{"$f":"IF('[2]REAL IPC(M)'!$BE120=\"\",\"\",+'[2]REAL IPC(M)'!$BE120)","v":6.9047421673958054},{"$f":"IF('[2]REAL IPC(M)'!$AM120=\"\",\"\",+'[2]REAL IPC(M)'!$AM120)","v":6.1931572109138244},{"$f":"IF('[2]REAL IPC(M)'!$BI120=\"\",\"\",+'[2]REAL IPC(M)'!$BI120)","v":6.2906360972201814},{"$f":"IF('[2]REAL IMAE(M)'!BJ120=\"\",\"\",'[2]REAL IMAE(M)'!BJ120)","v":"n.d."},{"$f":"IF('[2]REAL IMAE(M)'!BK120=\"\",\"\",'[2]REAL IMAE(M)'!BK120)","v":"n.d."},{"$f":"IF('[2]REAL IMAE(M)'!BN120=\"\",\"\",'[2]REAL IMAE(M)'!BN120)","v":"n.d."},{"$f":"IF('[2]REAL IMAE(M)'!BO120=\"\",\"\",'[2]REAL IMAE(M)'!BO120)","v":"n.d."},{"$f":"IF('[2]EXT RIN(M)'!$K120=\"\",\"\",'[2]EXT RIN(M)'!$K120)","v":"n.d."},"",{"$f":"IF('[2]EXT RIN(M)'!$L120=\"\",\"\",'[2]EXT RIN(M)'!$L120)","v":"n.d."},"",{"$f":"IF('[2]MONE(M)CARD'!EG120=\"\",\"\",'[2]MONE(M)CARD'!EG120)","v":"n.d."},{"$f":"IF('[2]MONE(M)CARD'!EK120=\"\",\"\",'[2]MONE(M)CARD'!EK120)","v":"n.d."},{"$f":"IF('[2]MONE(M)CARD'!EP120=\"\",\"\",'[2]MONE(M)CARD'!EP120)","v":"n.d."},{"$f":"IF('[2]MONE(M)CARD'!ES120=\"\",\"\",'[2]MONE(M)CARD'!ES120)","v":"n.d."},{"$f":"IF('[2]MONE(M)CARD'!EV120=\"\",\"\",'[2]MONE(M)CARD'!EV120)","v":"n.d."},{"$f":"IF('[2]MONE(M)CARD'!EZ120=\"\",\"\",'[2]MONE(M)CARD'!EZ120)","v":"n.d."},{"$f":"IF('[2]MONE(M)CAPARD'!FC120=\"\",\"\",'[2]MONE(M)CAPARD'!FC120)","v":"n.d."},{"$f":"IF('[2]MONE(M)CAPARD'!FG120=\"\",\"\",'[2]MONE(M)CAPARD'!FG120)","v":"n.d."},{"$f":"IF('[2]MONE(M)CAPARD'!FL120=\"\",\"\",'[2]MONE(M)CAPARD'!FL120)","v":"n.d."},{"$f":"IF('[2]MONE(M)CAPARD'!FO120=\"\",\"\",'[2]MONE(M)CAPARD'!FO120)","v":"n.d."},{"$f":"IF('[2]MONE(M)CAPARD'!FR120=\"\",\"\",'[2]MONE(M)CAPARD'!FR120)","v":"n.d."},{"$f":"IF('[2]MONE(M)CAPARD'!FV120=\"\",\"\",'[2]MONE(M)CAPARD'!FV120)","v":"n.d."},{"$f":"IF('[2]MONE(M)CARD'!FV120=\"\",\"\",'[2]MONE(M)CARD'!FV120)","v":""},{"$f":"IF('[2]MONE(M)CARD'!GD120=\"\",\"\",'[2]MONE(M)CARD'!GD120)","v":"n.d."},{"$f":"IF('[2]MONE(M)CARD'!GE120=\"\",\"\",'[2]MONE(M)CARD'!GE120)","v":"n.d."},"n.d.","n.d.","n.d.","n.d.","n.d.","n.d.","n.d.","n.d.",null,"n.d.","n.d.","n.d.","n.d.","n.d.",{"$f":"IF('[2]MONE(M)CAPARD'!GS120=\"\",\"\",'[2]MONE(M)CAPARD'!GS120)","v":"n.d."},{"$f":"IF('[2]MONE(M)CARD'!HA120=\"\",\"\",'[2]MONE(M)CAPARD'!HA120)","v":"n.d."},{"$f":"IF('[2]MONE(M)CAPARD'!HB120=\"\",\"\",'[2]MONE(M)CAPARD'!HB120)","v":"n.d."},"n.d.","n.d.","n.d.","n.d.","n.d.","n.d.","n.d.","n.d.","n.d.","n.d.","n.d.","n.d.","n.d.","n.d.",{"$f":"IF('[2]MONE(M)CAPARD'!AS120=\"\",\"\",'[2]MONE(M)CAPARD'!AS120)","v":"n.d."},{"$f":"IF('[2]MONE(M)CAPARD'!AT120=\"\",\"\",'[2]MONE(M)CAPARD'!AT120)","v":"n.a."},{"$f":"IF('[2]MONE(M)CAPARD'!AU120=\"\",\"\",'[2]MONE(M)CAPARD'!AU120)","v":"n.d."},{"$f":"IF('[2]MONE(M)CAPARD'!AV120=\"\",\"\",'[2]MONE(M)CAPARD'!AV120)","v":"n.d."},{"$f":"IF('[2]MONE(M)CAPARD'!AW120=\"\",\"\",'[2]MONE(M)CAPARD'!AW120)","v":"n.a."},{"$f":"IF('[2]MONE(M)CAPARD'!AX120=\"\",\"\",'[2]MONE(M)CAPARD'!AX120)","v":"n.d."},{"$f":"IF('[2]MONE(M)CAPARD'!AY120=\"\",\"\",'[2]MONE(M)CAPARD'!AY120)","v":"n.a."},{"$f":"IF('[2]FISCAL(M)'!$K120=\"\",\"\",'[2]FISCAL(M)'!$K120)","v":"n.d."},{"$f":"IF('[2]FISCAL(M)'!$L120=\"\",\"\",'[2]FISCAL(M)'!$L120)","v":"n.d."},{"$f":"IF('[2]FISCAL(M)'!$AY120=\"\",\"\",'[2]FISCAL(M)'!$AY120)","v":"n.d."},{"$f":"IF('[2]FISCAL(M)'!$BI120=\"\",\"\",'[2]FISCAL(M)'!$BI120)","v":"n.d."},{"$f":"IF('[2]FISCAL(M)'!$BS120=\"\",\"\",'[2]FISCAL(M)'!$BS120)","v":"n.d."},{"$f":"IF('[2]FISCAL(M)'!$AZ120=\"\",\"\",'[2]FISCAL(M)'!$AZ120)","v":"n.d."},{"$f":"IF('[2]FISCAL(M)'!$BJ120=\"\",\"\",'[2]FISCAL(M)'!$BJ120)","v":"n.d."},{"$f":"IF('[2]FISCAL(M)'!$BT120=\"\",\"\",'[2]FISCAL(M)'!$BT120)","v":"n.d."},{"$f":"IF('[3]MONE(M)'!$AO120=\"\",\"\",'[3]MONE(M)'!$AO120)","v":"n.d."},{"$f":"IF('[4]MONE(M)'!$AO120=\"\",\"\",'[4]MONE(M)'!$AO120)","v":"n.d."},{"$f":"IF('[5]MONE(M)'!$AO120=\"\",\"\",'[5]MONE(M)'!$AO120)","v":"n.d."},{"$f":"+'[1]MONE(M)'!$AO120","v":"n.d."},{"$f":"IF('[6]MONE(M)'!$AO120=\"\",\"\",'[6]MONE(M)'!$AO120)","v":"n.d."},{"$f":"IF('[7]MONE(M)'!$AO120=\"\",\"\",'[7]MONE(M)'!$AO120)","v":"n.d."},{"$f":"IF('[8]MONE(M)'!$AO120=\"\",\"\",'[8]MONE(M)'!$AO120)","v":"n.d."},"n.d.","n.d.","n.d.","n.d.","n.d.","n.d.","n.d.",{"$f":"IF('[2]FISCAL(M)'!$K120=\"\",\"\",'[2]FISCAL(M)'!$K120)","v":"n.d."},"n.d.","n.d.",{"$f":"IF('[2]FISCAL(M)'!$L120=\"\",\"\",'[2]FISCAL(M)'!$L120)","v":"n.d."},"n.d.","n.d.","n.d.","n.d.","n.d.","n.d.","n.d.","n.d.","n.d.","n.d.","n.d.","n.d.","n.d.","n.d.","n.d.","n.d.","n.d.","n.d."]
[1999,"abril","1999-abril",{"$f":"IF('[2]REAL IPC(M)'!$AL121=\"\",\"\",+'[2]REAL IPC(M)'!$AL121)","v":6.0626858842370179},{"$f":"IF('[2]REAL IPC(M)'!$BE121=\"\",\"\",+'[2]REAL IPC(M)'!$BE121)","v":6.8558004648083148},{"$f":"IF('[2]REAL IPC(M)'!$AM121=\"\",\"\",+'[2]REAL IPC(M)'!$AM121)","v":5.6153184165232517},{"$f":"IF('[2]REAL IPC(M)'!$BI121=\"\",\"\",+'[2]REAL IPC(M)'!$BI121)","v":6.2510974549146114},{"$f":"IF('[2]REAL IMAE(M)'!BJ121=\"\",\"\",'[2]REAL IMAE(M)'!BJ121)","v":"n.d."},{"$f":"IF('[2]REAL IMAE(M)'!BK121=\"\",\"\",'[2]REAL IMAE(M)'!BK121)","v":"n.d."},{"$f":"IF('[2]REAL IMAE(M)'!BN121=\"\",\"\",'[2]REAL IMAE(M)'!BN121)","v":"n.d."},{"$f":"IF('[2]REAL IMAE(M)'!BO121=\"\",\"\",'[2]REAL IMAE(M)'!BO121)","v":"n.d."},{"$f":"IF('[2]EXT RIN(M)'!$K121=\"\",\"\",'[2]EXT RIN(M)'!$K121)","v":"n.d."},"",{"$f":"IF('[2]EXT RIN(M)'!$L121=\"\",\"\",'[2]EXT RIN(M)'!$L121)","v":"n.d."},"",{"$f":"IF('[2]MONE(M)CARD'!EG121=\"\",\"\",'[2]MONE(M)CARD'!EG121)","v":"n.d."},{"$f":"IF('[2]MONE(M)CARD'!EK121=\"\",\"\",'[2]MONE(M)CARD'!EK121)","v":"n.d."},{"$f":"IF('[2]MONE(M)CARD'!EP121=\"\",\"\",'[2]MONE(M)CARD'!EP121)","v":"n.d."},{"$f":"IF('[2]MONE(M)CARD'!ES121=\"\",\"\",'[2]MONE(M)CARD'!ES121)","v":"n.d."},{"$f":"IF('[2]MONE(M)CARD'!EV121=\"\",\"\",'[2]MONE(M)CARD'!EV121)","v":"n.d."},{"$f":"IF('[2]MONE(M)CARD'!EZ121=\"\",\"\",'[2]MONE(M)CARD'!EZ121)","v":"n.d."},{"$f":"IF('[2]MONE(M)CAPARD'!FC121=\"\",\"\",'[2]MONE(M)CAPARD'!FC121)","v":"n.d."},{"$f":"IF('[2]MONE(M)CAPARD'!FG121=\"\",\"\",'[2]MONE(M)CAPARD'!FG121)","v":"n.d."},{"$f":"IF('[2]MONE(M)CAPARD'!FL121=\"\",\"\",'[2]MONE(M)CAPARD'!FL121)","v":"n.d."},{"$f":"IF('[2]MONE(M)CAPARD'!FO121=\"\",\"\",'[2]MONE(M)CAPARD'!FO121)","v":"n.d."},{"$f":"IF('[2]MONE(M)CAPARD'!FR121=\"\",\"\",'[2]MONE(M)CAPARD'!FR121)","v":"n.d."},{"$f":"IF('[2]MONE(M)CAPARD'!FV121=\"\",\"\",'[2]MONE(M)CAPARD'!FV121)","v":"n.d."},{"$f":"IF('[2]MONE(M)CARD'!FV121=\"\",\"\",'[2]MONE(M)CARD'!FV121)","v":""},{"$f":"IF('[2]MONE(M)CARD'!GD121=\"\",\"\",'[2]MONE(M)CARD'!GD121)","v":"n.d."},{"$f":"IF('[2]MONE(M)CARD'!GE121=\"\",\"\",'[2]MONE(M)CARD'!GE121)","v":"n.d."},"n.d.","n.d.","n.d.","n.d.","n.d.","n.d.","n.d.","n.d.",null,"n.d.","n.d.","n.d.","n.d.","n.d.",{"$f":"IF('[2]MONE(M)CAPARD'!GS121=\"\",\"\",'[2]MONE(M)CAPARD'!GS121)","v":"n.d."},{"$f":"IF('[2]MONE(M)CARD'!HA121=\"\",\"\",'[2]MONE(M)CAPARD'!HA121)","v":"n.d."},{"$f":"IF('[2]MONE(M)CAPARD'!HB121=\"\",\"\",'[2]MONE(M)CAPARD'!HB121)","v":"n.d."},"n.d.","n.d.","n.d.","n.d.","n.d.","n.d.","n.d.","n.d.","n.d.","n.d.","n.d.","n.d.","n.d.","n.d.",{"$f":"IF('[2]MONE(M)CAPARD'!AS121=\"\",\"\",'[2]MONE(M)CAPARD'!AS121)","v":"n.d."},{"$f":"IF('[2]MONE(M)CAPARD'!AT121=\"\",\"\",'[2]MONE(M)CAPARD'!AT121)","v":"n.a."},{"$f":"IF('[2]MONE(M)CAPARD'!AU121=\"\",\"\",'[2]MONE(M)CAPARD'!AU121)","v":"n.d."},{"$f":"IF('[2]MONE(M)CAPARD'!AV121=\"\",\"\",'[2]MONE(M)CAPARD'!AV121)","v":"n.d."},{"$f":"IF('[2]MONE(M)CAPARD'!AW121=\"\",\"\",'[2]MONE(M)CAPARD'!AW121)","v":"n.a."},{"$f":"IF('[2]MONE(M)CAPARD'!AX121=\"\",\"\",'[2]MONE(M)CAPARD'!AX121)","v":"n.d."},{"$f":"IF('[2]MONE(M)CAPARD'!AY121=\"\",\"\",'[2]MONE(M)CAPARD'!AY121)","v":"n.a."},{"$f":"IF('[2]FISCAL(M)'!$K121=\"\",\"\",'[2]FISCAL(M)'!$K121)","v":"n.d."},{"$f":"IF('[2]FISCAL(M)'!$L121=\"\",\"\",'[2]FISCAL(M)'!$L121)","v":"n.d."},{"$f":"IF('[2]FISCAL(M)'!$AY121=\"\",\"\",'[2]FISCAL(M)'!$AY121)","v":"n.d."},{"$f":"IF('[2]FISCAL(M)'!$BI121=\"\",\"\",'[2]FISCAL(M)'!$BI121)","v":"n.d."},{"$f":"IF('[2]FISCAL(M)'!$BS121=\"\",\"\",'[2]FISCAL(M)'!$BS121)","v":"n.d."},{"$f":"IF('[2]FISCAL(M)'!$AZ121=\"\",\"\",'[2]FISCAL(M)'!$AZ121)","v":"n.d."},{"$f":"IF('[2]FISCAL(M)'!$BJ121=\"\",\"\",'[2]FISCAL(M)'!$BJ121)","v":"n.d."},{"$f":"IF('[2]FISCAL(M)'!$BT121=\"\",\"\",'[2]FISCAL(M)'!$BT121)","v":"n.d."},{"$f":"IF('[3]MONE(M)'!$AO121=\"\",\"\",'[3]MONE(M)'!$AO121)","v":"n.d."},{"$f":"IF('[4]MONE(M)'!$AO121=\"\",\"\",'[4]MONE(M)'!$AO121)","v":"n.d."},{"$f":"IF('[5]MONE(M)'!$AO121=\"\",\"\",'[5]MONE(M)'!$AO121)","v":"n.d."},{"$f":"+'[1]MONE(M)'!$AO121","v":"n.d."},{"$f":"IF('[6]MONE(M)'!$AO121=\"\",\"\",'[6]MONE(M)'!$AO121)","v":"n.d."},{"$f":"IF('[7]MONE(M)'!$AO121=\"\",\"\",'[7]MONE(M)'!$AO121)","v":"n.d."},{"$f":"IF('[8]MONE(M)'!$AO121=\"\",\"\",'[8]MONE(M)'!$AO121)","v":"n.d."},"n.d.","n.d.","n.d.","n.d.","n.d.","n.d.","n.d.",{"$f":"IF('[2]FISCAL(M)'!$K121=\"\",\"\",'[2]FISCAL(M)'!$K121)","v":"n.d."},"n.d.","n.d.",{"$f":"IF('[2]FISCAL(M)'!$L121=\"\",\"\",'[2]FISCAL(M)'!$L121)","v":"n.d."},"n.d.","n.d.","n.d.","n.d.","n.d.","n.d.","n.d.","n.d.","n.d.","n.d.","n.d.","n.d.","n.d.","n.d.","n.d.","n.d.","n.d.","n.d."]
[1999,"mayo ","1999-mayo ",{"$f":"IF('[2]REAL IPC(M)'!$AL122=\"\",\"\",+'[2]REAL IPC(M)'!$AL122)","v":5.7565415244595908},{"$f":"IF('[2]REAL IPC(M)'!$BE122=\"\",\"\",+'[2]REAL IPC(M)'!$BE122)","v":6.8127875393820814},{"$f":"IF('[2]REAL IPC(M)'!$AM122=\"\",\"\",+'[2]REAL IPC(M)'!$AM122)","v":5.3093555983729335},{"$f":"IF('[2]REAL IPC(M)'!$BI122=\"\",\"\",+'[2]REAL IPC(M)'!$BI122)","v":6.2173669432352474},{"$f":"IF('[2]REAL IMAE(M)'!BJ122=\"\",\"\",'[2]REAL IMAE(M)'!BJ122)","v":"n.d."},{"$f":"IF('[2]REAL IMAE(M)'!BK122=\"\",\"\",'[2]REAL IMAE(M)'!BK122)","v":"n.d."},{"$f":"IF('[2]REAL IMAE(M)'!BN122=\"\",\"\",'[2]REAL IMAE(M)'!BN122)","v":"n.d."},{"$f":"IF('[2]REAL IMAE(M)'!BO122=\"\",\"\",'[2]REAL IMAE(M)'!BO122)","v":"n.d."},{"$f":"IF('[2]EXT RIN(M)'!$K122=\"\",\"\",'[2]EXT RIN(M)'!$K122)","v":"n.d."},"",{"$f":"IF('[2]EXT RIN(M)'!$L122=\"\",\"\",'[2]EXT RIN(M)'!$L122)","v":"n.d."},"",{"$f":"IF('[2]MONE(M)CARD'!EG122=\"\",\"\",'[2]MONE(M)CARD'!EG122)","v":"n.d."},{"$f":"IF('[2]MONE(M)CARD'!EK122=\"\",\"\",'[2]MONE(M)CARD'!EK122)","v":"n.d."},{"$f":"IF('[2]MONE(M)CARD'!EP122=\"\",\"\",'[2]MONE(M)CARD'!EP122)","v":"n.d."},{"$f":"IF('[2]MONE(M)CARD'!ES122=\"\",\"\",'[2]MONE(M)CARD'!ES122)","v":"n.d."},{"$f":"IF('[2]MONE(M)CARD'!EV122=\"\",\"\",'[2]MONE(M)CARD'!EV122)","v":"n.d."},{"$f":"IF('[2]MONE(M)CARD'!EZ122=\"\",\"\",'[2]MONE(M)CARD'!EZ122)","v":"n.d."},{"$f":"IF('[2]MONE(M)CAPARD'!FC122=\"\",\"\",'[2]MONE(M)CAPARD'!FC122)","v":"n.d."},{"$f":"IF('[2]MONE(M)CAPARD'!FG122=\"\",\"\",'[2]MONE(M)CAPARD'!FG122)","v":"n.d."},{"$f":"IF('[2]MONE(M)CAPARD'!FL122=\"\",\"\",'[2]MONE(M)CAPARD'!FL122)","v":"n.d."},{"$f":"IF('[2]MONE(M)CAPARD'!FO122=\"\",\"\",'[2]MONE(M)CAPARD'!FO122)","v":"n.d."},{"$f":"IF('[2]MONE(M)CAPARD'!FR122=\"\",\"\",'[2]MONE(M)CAPARD'!FR122)","v":"n.d."},{"$f":"IF('[2]MONE(M)CAPARD'!FV122=\"\",\"\",'[2]MONE(M)CAPARD'!FV122)","v":"n.d."},{"$f":"IF('[2]MONE(M)CARD'!FV122=\"\",\"\",'[2]MONE(M)CARD'!FV122)","v":""},{"$f":"IF('[2]MONE(M)CARD'!GD122=\"\",\"\",'[2]MONE(M)CARD'!GD122)","v":"n.d."},{"$f":"IF('[2]MONE(M)CARD'!GE122=\"\",\"\",'[2]MONE(M)CARD'!GE122)","v":"n.d."},"n.d.","n.d.","n.d.","n.d.","n.d.","n.d.","n.d.","n.d.",null,"n.d.","n.d.","n.d.","n.d.","n.d.",{"$f":"IF('[2]MONE(M)CAPARD'!GS122=\"\",\"\",'[2]MONE(M)CAPARD'!GS122)","v":"n.d."},{"$f":"IF('[2]MONE(M)CARD'!HA122=\"\",\"\",'[2]MONE(M)CAPARD'!HA122)","v":"n.d."},{"$f":"IF('[2]MONE(M)CAPARD'!HB122=\"\",\"\",'[2]MONE(M)CAPARD'!HB122)","v":"n.d."},"n.d.","n.d.","n.d.","n.d.","n.d.","n.d.","n.d.","n.d.","n.d.","n.d.","n.d.","n.d.","n.d.","n.d.",{"$f":"IF('[2]MONE(M)CAPARD'!AS122=\"\",\"\",'[2]MONE(M)CAPARD'!AS122)","v":"n.d."},{"$f":"IF('[2]MONE(M)CAPARD'!AT122=\"\",\"\",'[2]MONE(M)CAPARD'!AT122)","v":"n.a."},{"$f":"IF('[2]MONE(M)CAPARD'!AU122=\"\",\"\",'[2]MONE(M)CAPARD'!AU122)","v":"n.d."},{"$f":"IF('[2]MONE(M)CAPARD'!AV122=\"\",\"\",'[2]MONE(M)CAPARD'!AV122)","v":"n.d."},{"$f":"IF('[2]MONE(M)CAPARD'!AW122=\"\",\"\",'[2]MONE(M)CAPARD'!AW122)","v":"n.a."},{"$f":"IF('[2]MONE(M)CAPARD'!AX122=\"\",\"\",'[2]MONE(M)CAPARD'!AX122)","v":"n.d."},{"$f":"IF('[2]MONE(M)CAPARD'!AY122=\"\",\"\",'[2]MONE(M)CAPARD'!AY122)","v":"n.a."},{"$f":"IF('[2]FISCAL(M)'!$K122=\"\",\"\",'[2]FISCAL(M)'!$K122)","v":"n.d."},{"$f":"IF('[2]FISCAL(M)'!$L122=\"\",\"\",'[2]FISCAL(M)'!$L122)","v":"n.d."},{"$f":"IF('[2]FISCAL(M)'!$AY122=\"\",\"\",'[2]FISCAL(M)'!$AY122)","v":"n.d."},{"$f":"IF('[2]FISCAL(M)'!$BI122=\"\",\"\",'[2]FISCAL(M)'!$BI122)","v":"n.d."},{"$f":"IF('[2]FISCAL(M)'!$BS122=\"\",\"\",'[2]FISCAL(M)'!$BS122)","v":"n.d."},{"$f":"IF('[2]FISCAL(M)'!$AZ122=\"\",\"\",'[2]FISCAL(M)'!$AZ122)","v":"n.d."},{"$f":"IF('[2]FISCAL(M)'!$BJ122=\"\",\"\",'[2]FISCAL(M)'!$BJ122)","v":"n.d."},{"$f":"IF('[2]FISCAL(M)'!$BT122=\"\",\"\",'[2]FISCAL(M)'!$BT122)","v":"n.d."},{"$f":"IF('[3]MONE(M)'!$AO122=\"\",\"\",'[3]MONE(M)'!$AO122)","v":"n.d."},{"$f":"IF('[4]MONE(M)'!$AO122=\"\",\"\",'[4]MONE(M)'!$AO122)","v":"n.d."},{"$f":"IF('[5]MONE(M)'!$AO122=\"\",\"\",'[5]MONE(M)'!$AO122)","v":"n.d."},{"$f":"+'[1]MONE(M)'!$AO122","v":"n.d."},{"$f":"IF('[6]MONE(M)'!$AO122=\"\",\"\",'[6]MONE(M)'!$AO122)","v":"n.d."},{"$f":"IF('[7]MONE(M)'!$AO122=\"\",\"\",'[7]MONE(M)'!$AO122)","v":"n.d."},{"$f":"IF('[8]MONE(M)'!$AO122=\"\",\"\",'[8]MONE(M)'!$AO122)","v":"n.d."},"n.d.","n.d.","n.d.","n.d.","n.d.","n.d.","n.d.",{"$f":"IF('[2]FISCAL(M)'!$K122=\"\",\"\",'[2]FISCAL(M)'!$K122)","v":"n.d."},"n.d.","n.d.",{"$f":"IF('[2]FISCAL(M)'!$L122=\"\",\"\",'[2]FISCAL(M)'!$L122)","v":"n.d."},"n.d.","n.d.","n.d.","n.d.","n.d.","n.d.","n.d.","n.d.","n.d.","n.d.","n.d.","n.d.","n.d.","n.d.","n.d.","n.d.","n.d.","n.d."]
[1999,"junio ","1999-junio ",{"$f":"IF('[2]REAL IPC(M)'!$AL123=\"\",\"\",+'[2]REAL IPC(M)'!$AL123)","v":5.5593220338983063},{"$f":"IF('[2]REAL IPC(M)'!$BE123=\"\",\"\",+'[2]REAL IPC(M)'!$BE123)","v":6.7758248984999048},{"$f":"IF('[2]REAL IPC(M)'!$AM123=\"\",\"\",+'[2]REAL IPC(M)'!$AM123)","v":5.147840884918109},{"$f":"IF('[2]REAL IPC(M)'!$BI123=\"\",\"\",+'[2]REAL IPC(M)'!$BI123)","v":6.1894059969658466},{"$f":"IF('[2]REAL IMAE(M)'!BJ123=\"\",\"\",'[2]REAL IMAE(M)'!BJ123)","v":"n.d."},{"$f":"IF('[2]REAL IMAE(M)'!BK123=\"\",\"\",'[2]REAL IMAE(M)'!BK123)","v":"n.d."},{"$f":"IF('[2]REAL IMAE(M)'!BN123=\"\",\"\",'[2]REAL IMAE(M)'!BN123)","v":"n.d."},{"$f":"IF('[2]REAL IMAE(M)'!BO123=\"\",\"\",'[2]REAL IMAE(M)'!BO123)","v":"n.d."},{"$f":"IF('[2]EXT RIN(M)'!$K123=\"\",\"\",'[2]EXT RIN(M)'!$K123)","v":"n.d."},"",{"$f":"IF('[2]EXT RIN(M)'!$L123=\"\",\"\",'[2]EXT RIN(M)'!$L123)","v":"n.d."},"",{"$f":"IF('[2]MONE(M)CARD'!EG123=\"\",\"\",'[2]MONE(M)CARD'!EG123)","v":"n.d."},{"$f":"IF('[2]MONE(M)CARD'!EK123=\"\",\"\",'[2]MONE(M)CARD'!EK123)","v":"n.d."},{"$f":"IF('[2]MONE(M)CARD'!EP123=\"\",\"\",'[2]MONE(M)CARD'!EP123)","v":"n.d."},{"$f":"IF('[2]MONE(M)CARD'!ES123=\"\",\"\",'[2]MONE(M)CARD'!ES123)","v":"n.d."},{"$f":"IF('[2]MONE(M)CARD'!EV123=\"\",\"\",'[2]MONE(M)CARD'!EV123)","v":"n.d."},{"$f":"IF('[2]MONE(M)CARD'!EZ123=\"\",\"\",'[2]MONE(M)CARD'!EZ123)","v":"n.d."},{"$f":"IF('[2]MONE(M)CAPARD'!FC123=\"\",\"\",'[2]MONE(M)CAPARD'!FC123)","v":"n.d."},{"$f":"IF('[2]MONE(M)CAPARD'!FG123=\"\",\"\",'[2]MONE(M)CAPARD'!FG123)","v":"n.d."},{"$f":"IF('[2]MONE(M)CAPARD'!FL123=\"\",\"\",'[2]MONE(M)CAPARD'!FL123)","v":"n.d."},{"$f":"IF('[2]MONE(M)CAPARD'!FO123=\"\",\"\",'[2]MONE(M)CAPARD'!FO123)","v":"n.d."},{"$f":"IF('[2]MONE(M)CAPARD'!FR123=\"\",\"\",'[2]MONE(M)CAPARD'!FR123)","v":"n.d."},{"$f":"IF('[2]MONE(M)CAPARD'!FV123=\"\",\"\",'[2]MONE(M)CAPARD'!FV123)","v":"n.d."},{"$f":"IF('[2]MONE(M)CARD'!FV123=\"\",\"\",'[2]MONE(M)CARD'!FV123)","v":""},{"$f":"IF('[2]MONE(M)CARD'!GD123=\"\",\"\",'[2]MONE(M)CARD'!GD123)","v":"n.d."},{"$f":"IF('[2]MONE(M)CARD'!GE123=\"\",\"\",'[2]MONE(M)CARD'!GE123)","v":"n.d."},"n.d.","n.d.","n.d.","n.d.","n.d.","n.d.","n.d.","n.d.",null,"n.d.","n.d.","n.d.","n.d.","n.d.",{"$f":"IF('[2]MONE(M)CAPARD'!GS123=\"\",\"\",'[2]MONE(M)CAPARD'!GS123)","v":"n.d."},{"$f":"IF('[2]MONE(M)CARD'!HA123=\"\",\"\",'[2]MONE(M)CAPARD'!HA123)","v":"n.d."},{"$f":"IF('[2]MONE(M)CAPARD'!HB123=\"\",\"\",'[2]MONE(M)CAPARD'!HB123)","v":"n.d."},"n.d.","n.d.","n.d.","n.d.","n.d.","n.d.","n.d.","n.d.","n.d.","n.d.","n.d.","n.d.","n.d.","n.d.",{"$f":"IF('[2]MONE(M)CAPARD'!AS123=\"\",\"\",'[2]MONE(M)CAPARD'!AS123)","v":"n.d."},{"$f":"IF('[2]MONE(M)CAPARD'!AT123=\"\",\"\",'[2]MONE(M)CAPARD'!AT123)","v":"n.a."},{"$f":"IF('[2]MONE(M)CAPARD'!AU123=\"\",\"\",'[2]MONE(M)CAPARD'!AU123)","v":"n.d."},{"$f":"IF('[2]MONE(M)CAPARD'!AV123=\"\",\"\",'[2]MONE(M)CAPARD'!AV123)","v":"n.d."},{"$f":"IF('[2]MONE(M)CAPARD'!AW123=\"\",\"\",'[2]MONE(M)CAPARD'!AW123)","v":"n.a."},{"$f":"IF('[2]MONE(M)CAPARD'!AX123=\"\",\"\",'[2]MONE(M)CAPARD'!AX123)","v":"n.d."},{"$f":"IF('[2]MONE(M)CAPARD'!AY123=\"\",\"\",'[2]MONE(M)CAPARD'!AY123)","v":"n.a."},{"$f":"IF('[2]FISCAL(M)'!$K123=\"\",\"\",'[2]FISCAL(M)'!$K123)","v":"n.d."},{"$f":"IF('[2]FISCAL(M)'!$L123=\"\",\"\",'[2]FISCAL(M)'!$L123)","v":"n.d."},{"$f":"IF('[2]FISCAL(M)'!$AY123=\"\",\"\",'[2]FISCAL(M)'!$AY123)","v":"n.d."},{"$f":"IF('[2]FISCAL(M)'!$BI123=\"\",\"\",'[2]FISCAL(M)'!$BI123)","v":"n.d."},{"$f":"IF('[2]FISCAL(M)'!$BS123=\"\",\"\",'[2]FISCAL(M)'!$BS123)","v":"n.d."},{"$f":"IF('[2]FISCAL(M)'!$AZ123=\"\",\"\",'[2]FISCAL(M)'!$AZ123)","v":"n.d."},{"$f":"IF('[2]FISCAL(M)'!$BJ123=\"\",\"\",'[2]FISCAL(M)'!$BJ123)","v":"n.d."},{"$f":"IF('[2]FISCAL(M)'!$BT123=\"\",\"\",'[2]FISCAL(M)'!$BT123)","v":"n.d."},{"$f":"IF('[3]MONE(M)'!$AO123=\"\",\"\",'[3]MONE(M)'!$AO123)","v":"n.d."},{"$f":"IF('[4]MONE(M)'!$AO123=\"\",\"\",'[4]MONE(M)'!$AO123)","v":"n.d."},{"$f":"IF('[5]MONE(M)'!$AO123=\"\",\"\",'[5]MONE(M)'!$AO123)","v":"n.d."},{"$f":"+'[1]MONE(M)'!$AO123","v":"n.d."},{"$f":"IF('[6]MONE(M)'!$AO123=\"\",\"\",'[6]MONE(M)'!$AO123)","v":"n.d."},{"$f":"IF('[7]MONE(M)'!$AO123=\"\",\"\",'[7]MONE(M)'!$AO123)","v":"n.d."},{"$f":"IF('[8]MONE(M)'!$AO123=\"\",\"\",'[8]MONE(M)'!$AO123)","v":"n.d."},"n.d.","n.d.","n.d.","n.d.","n.d.","n.d.","n.d.",{"$f":"IF('[2]FISCAL(M)'!$K123=\"\",\"\",'[2]FISCAL(M)'!$K123)","v":"n.d."},"n.d.","n.d.",{"$f":"IF('[2]FISCAL(M)'!$L123=\"\",\"\",'[2]FISCAL(M)'!$L123)","v":"n.d."},"n.d.","n.d.","n.d.","n.d.","n.d.","n.d.","n.d.","n.d.","n.d.","n.d.","n.d.","n.d.","n.d.","n.d.","n.d.","n.d.","n.d.","n.d."]
[1999,"julio","1999-julio",{"$f":"IF('[2]REAL IPC(M)'!$AL124=\"\",\"\",+'[2]REAL IPC(M)'!$AL124)","v":5.4696256444743296},{"$f":"IF('[2]REAL IPC(M)'!$BE124=\"\",\"\",+'[2]REAL IPC(M)'!$BE124)","v":6.7449680225109221},{"$f":"IF('[2]REAL IPC(M)'!$AM124=\"\",\"\",+'[2]REAL IPC(M)'!$AM124)","v":5.0453873759763512},{"$f":"IF('[2]REAL IPC(M)'!$BI124=\"\",\"\",+'[2]REAL IPC(M)'!$BI124)","v":6.167103801491125},{"$f":"IF('[2]REAL IMAE(M)'!BJ124=\"\",\"\",'[2]REAL IMAE(M)'!BJ124)","v":"n.d."},{"$f":"IF('[2]REAL IMAE(M)'!BK124=\"\",\"\",'[2]REAL IMAE(M)'!BK124)","v":"n.d."},{"$f":"IF('[2]REAL IMAE(M)'!BN124=\"\",\"\",'[2]REAL IMAE(M)'!BN124)","v":"n.d."},{"$f":"IF('[2]REAL IMAE(M)'!BO124=\"\",\"\",'[2]REAL IMAE(M)'!BO124)","v":"n.d."},{"$f":"IF('[2]EXT RIN(M)'!$K124=\"\",\"\",'[2]EXT RIN(M)'!$K124)","v":"n.d."},"",{"$f":"IF('[2]EXT RIN(M)'!$L124=\"\",\"\",'[2]EXT RIN(M)'!$L124)","v":"n.d."},"",{"$f":"IF('[2]MONE(M)CARD'!EG124=\"\",\"\",'[2]MONE(M)CARD'!EG124)","v":"n.d."},{"$f":"IF('[2]MONE(M)CARD'!EK124=\"\",\"\",'[2]MONE(M)CARD'!EK124)","v":"n.d."},{"$f":"IF('[2]MONE(M)CARD'!EP124=\"\",\"\",'[2]MONE(M)CARD'!EP124)","v":"n.d."},{"$f":"IF('[2]MONE(M)CARD'!ES124=\"\",\"\",'[2]MONE(M)CARD'!ES124)","v":"n.d."},{"$f":"IF('[2]MONE(M)CARD'!EV124=\"\",\"\",'[2]MONE(M)CARD'!EV124)","v":"n.d."},{"$f":"IF('[2]MONE(M)CARD'!EZ124=\"\",\"\",'[2]MONE(M)CARD'!EZ124)","v":"n.d."},{"$f":"IF('[2]MONE(M)CAPARD'!FC124=\"\",\"\",'[2]MONE(M)CAPARD'!FC124)","v":"n.d."},{"$f":"IF('[2]MONE(M)CAPARD'!FG124=\"\",\"\",'[2]MONE(M)CAPARD'!FG124)","v":"n.d."},{"$f":"IF('[2]MONE(M)CAPARD'!FL124=\"\",\"\",'[2]MONE(M)CAPARD'!FL124)","v":"n.d."},{"$f":"IF('[2]MONE(M)CAPARD'!FO124=\"\",\"\",'[2]MONE(M)CAPARD'!FO124)","v":"n.d."},{"$f":"IF('[2]MONE(M)CAPARD'!FR124=\"\",\"\",'[2]MONE(M)CAPARD'!FR124)","v":"n.d."},{"$f":"IF('[2]MONE(M)CAPARD'!FV124=\"\",\"\",'[2]MONE(M)CAPARD'!FV124)","v":"n.d."},{"$f":"IF('[2]MONE(M)CARD'!FV124=\"\",\"\",'[2]MONE(M)CARD'!FV124)","v":""},{"$f":"IF('[2]MONE(M)CARD'!GD124=\"\",\"\",'[2]MONE(M)CARD'!GD124)","v":"n.d."},{"$f":"IF('[2]MONE(M)CARD'!GE124=\"\",\"\",'[2]MONE(M)CARD'!GE124)","v":"n.d."},"n.d.","n.d.","n.d.","n.d.","n.d.","n.d.","n.d.","n.d.",null,"n.d.","n.d.","n.d.","n.d.","n.d.",{"$f":"IF('[2]MONE(M)CAPARD'!GS124=\"\",\"\",'[2]MONE(M)CAPARD'!GS124)","v":"n.d."},{"$f":"IF('[2]MONE(M)CARD'!HA124=\"\",\"\",'[2]MONE(M)CAPARD'!HA124)","v":"n.d."},{"$f":"IF('[2]MONE(M)CAPARD'!HB124=\"\",\"\",'[2]MONE(M)CAPARD'!HB124)","v":"n.d."},"n.d.","n.d.","n.d.","n.d.","n.d.","n.d.","n.d.","n.d.","n.d.","n.d.","n.d.","n.d.","n.d.","n.d.",{"$f":"IF('[2]MONE(M)CAPARD'!AS124=\"\",\"\",'[2]MONE(M)CAPARD'!AS124)","v":"n.d."},{"$f":"IF('[2]MONE(M)CAPARD'!AT124=\"\",\"\",'[2]MONE(M)CAPARD'!AT124)","v":"n.a."},{"$f":"IF('[2]MONE(M)CAPARD'!AU124=\"\",\"\",'[2]MONE(M)CAPARD'!AU124)","v":"n.d."},{"$f":"IF('[2]MONE(M)CAPARD'!AV124=\"\",\"\",'[2]MONE(M)CAPARD'!AV124)","v":"n.d."},{"$f":"IF('[2]MONE(M)CAPARD'!AW124=\"\",\"\",'[2]MONE(M)CAPARD'!AW124)","v":"n.a."},{"$f":"IF('[2]MONE(M)CAPARD'!AX124=\"\",\"\",'[2]MONE(M)CAPARD'!AX124)","v":"n.d."},{"$f":"IF('[2]MONE(M)CAPARD'!AY124=\"\",\"\",'[2]MONE(M)CAPARD'!AY124)","v":"n.a."},{"$f":"IF('[2]FISCAL(M)'!$K124=\"\",\"\",'[2]FISCAL(M)'!$K124)","v":"n.d."},{"$f":"IF('[2]FISCAL(M)'!$L124=\"\",\"\",'[2]FISCAL(M)'!$L124)","v":"n.d."},{"$f":"IF('[2]FISCAL(M)'!$AY124=\"\",\"\",'[2]FISCAL(M)'!$AY124)","v":"n.d."},{"$f":"IF('[2]FISCAL(M)'!$BI124=\"\",\"\",'[2]FISCAL(M)'!$BI124)","v":"n.d."},{"$f":"IF('[2]FISCAL(M)'!$BS124=\"\",\"\",'[2]FISCAL(M)'!$BS124)","v":"n.d."},{"$f":"IF('[2]FISCAL(M)'!$AZ124=\"\",\"\",'[2]FISCAL(M)'!$AZ124)","v":"n.d."},{"$f":"IF('[2]FISCAL(M)'!$BJ124=\"\",\"\",'[2]FISCAL(M)'!$BJ124)","v":"n.d."},{"$f":"IF('[2]FISCAL(M)'!$BT124=\"\",\"\",'[2]FISCAL(M)'!$BT124)","v":"n.d."},{"$f":"IF('[3]MONE(M)'!$AO124=\"\",\"\",'[3]MONE(M)'!$AO124)","v":"n.d."},{"$f":"IF('[4]MONE(M)'!$AO124=\"\",\"\",'[4]MONE(M)'!$AO124)","v":"n.d."},{"$f":"IF('[5]MONE(M)'!$AO124=\"\",\"\",'[5]MONE(M)'!$AO124)","v":"n.d."},{"$f":"+'[1]MONE(M)'!$AO124","v":"n.d."},{"$f":"IF('[6]MONE(M)'!$AO124=\"\",\"\",'[6]MONE(M)'!$AO124)","v":"n.d."},{"$f":"IF('[7]MONE(M)'!$AO124=\"\",\"\",'[7]MONE(M)'!$AO124)","v":"n.d."},{"$f":"IF('[8]MONE(M)'!$AO124=\"\",\"\",'[8]MONE(M)'!$AO124)","v":"n.d."},"n.d.","n.d.","n.d.","n.d.","n.d.","n.d.","n.d.",{"$f":"IF('[2]FISCAL(M)'!$K124=\"\",\"\",'[2]FISCAL(M)'!$K124)","v":"n.d."},"n.d.","n.d.",{"$f":"IF('[2]FISCAL(M)'!$L124=\"\",\"\",'[2]FISCAL(M)'!$L124)","v":"n.d."},"n.d.","n.d.","n.d.","n.d.","n.d.","n.d.","n.d.","n.d.","n.d.","n.d.","n.d.","n.d.","n.d.","n.d.","n.d.","n.d.","n.d.","n.d."]
[1999,"agosto","1999-agosto",{"$f":"IF('[2]REAL IPC(M)'!$AL125=\"\",\"\",+'[2]REAL IPC(M)'!$AL125)","v":5.9191422827786333},{"$f":"IF('[2]REAL IPC(M)'!$BE125=\"\",\"\",+'[2]REAL IPC(M)'!$BE125)","v":6.7201968908226384},{"$f":"IF('[2]REAL IPC(M)'!$AM125=\"\",\"\",+'[2]REAL IPC(M)'!$AM125)","v":5.4713804713804493},{"$f":"IF('[2]REAL IPC(M)'!$BI125=\"\",\"\",+'[2]REAL IPC(M)'!$BI125)","v":6.1502710158413354},{"$f":"IF('[2]REAL IMAE(M)'!BJ125=\"\",\"\",'[2]REAL IMAE(M)'!BJ125)","v":"n.d."},{"$f":"IF('[2]REAL IMAE(M)'!BK125=\"\",\"\",'[2]REAL IMAE(M)'!BK125)","v":"n.d."},{"$f":"IF('[2]REAL IMAE(M)'!BN125=\"\",\"\",'[2]REAL IMAE(M)'!BN125)","v":"n.d."},{"$f":"IF('[2]REAL IMAE(M)'!BO125=\"\",\"\",'[2]REAL IMAE(M)'!BO125)","v":"n.d."},{"$f":"IF('[2]EXT RIN(M)'!$K125=\"\",\"\",'[2]EXT RIN(M)'!$K125)","v":"n.d."},"",{"$f":"IF('[2]EXT RIN(M)'!$L125=\"\",\"\",'[2]EXT RIN(M)'!$L125)","v":"n.d."},"",{"$f":"IF('[2]MONE(M)CARD'!EG125=\"\",\"\",'[2]MONE(M)CARD'!EG125)","v":"n.d."},{"$f":"IF('[2]MONE(M)CARD'!EK125=\"\",\"\",'[2]MONE(M)CARD'!EK125)","v":"n.d."},{"$f":"IF('[2]MONE(M)CARD'!EP125=\"\",\"\",'[2]MONE(M)CARD'!EP125)","v":"n.d."},{"$f":"IF('[2]MONE(M)CARD'!ES125=\"\",\"\",'[2]MONE(M)CARD'!ES125)","v":"n.d."},{"$f":"IF('[2]MONE(M)CARD'!EV125=\"\",\"\",'[2]MONE(M)CARD'!EV125)","v":"n.d."},{"$f":"IF('[2]MONE(M)CARD'!EZ125=\"\",\"\",'[2]MONE(M)CARD'!EZ125)","v":"n.d."},{"$f":"IF('[2]MONE(M)CAPARD'!FC125=\"\",\"\",'[2]MONE(M)CAPARD'!FC125)","v":"n.d."},{"$f":"IF('[2]MONE(M)CAPARD'!FG125=\"\",\"\",'[2]MONE(M)CAPARD'!FG125)","v":"n.d."},{"$f":"IF('[2]MONE(M)CAPARD'!FL125=\"\",\"\",'[2]MONE(M)CAPARD'!FL125)","v":"n.d."},{"$f":"IF('[2]MONE(M)CAPARD'!FO125=\"\",\"\",'[2]MONE(M)CAPARD'!FO125)","v":"n.d."},{"$f":"IF('[2]MONE(M)CAPARD'!FR125=\"\",\"\",'[2]MONE(M)CAPARD'!FR125)","v":"n.d."},{"$f":"IF('[2]MONE(M)CAPARD'!FV125=\"\",\"\",'[2]MONE(M)CAPARD'!FV125)","v":"n.d."},{"$f":"IF('[2]MONE(M)CARD'!FV125=\"\",\"\",'[2]MONE(M)CARD'!FV125)","v":""},{"$f":"IF('[2]MONE(M)CARD'!GD125=\"\",\"\",'[2]MONE(M)CARD'!GD125)","v":"n.d."},{"$f":"IF('[2]MONE(M)CARD'!GE125=\"\",\"\",'[2]MONE(M)CARD'!GE125)","v":"n.d."},"n.d.","n.d.","n.d.","n.d.","n.d.","n.d.","n.d.","n.d.",null,"n.d.","n.d.","n.d.","n.d.","n.d.",{"$f":"IF('[2]MONE(M)CAPARD'!GS125=\"\",\"\",'[2]MONE(M)CAPARD'!GS125)","v":"n.d."},{"$f":"IF('[2]MONE(M)CARD'!HA125=\"\",\"\",'[2]MONE(M)CAPARD'!HA125)","v":"n.d."},{"$f":"IF('[2]MONE(M)CAPARD'!HB125=\"\",\"\",'[2]MONE(M)CAPARD'!HB125)","v":"n.d."},"n.d.","n.d.","n.d.","n.d.","n.d.","n.d.","n.d.","n.d.","n.d.","n.d.","n.d.","n.d.","n.d.","n.d.",{"$f":"IF('[2]MONE(M)CAPARD'!AS125=\"\",\"\",'[2]MONE(M)CAPARD'!AS125)","v":"n.d."},{"$f":"IF('[2]MONE(M)CAPARD'!AT125=\"\",\"\",'[2]MONE(M)CAPARD'!AT125)","v":"n.a."},{"$f":"IF('[2]MONE(M)CAPARD'!AU125=\"\",\"\",'[2]MONE(M)CAPARD'!AU125)","v":"n.d."},{"$f":"IF('[2]MONE(M)CAPARD'!AV125=\"\",\"\",'[2]MONE(M)CAPARD'!AV125)","v":"n.d."},{"$f":"IF('[2]MONE(M)CAPARD'!AW125=\"\",\"\",'[2]MONE(M)CAPARD'!AW125)","v":"n.a."},{"$f":"IF('[2]MONE(M)CAPARD'!AX125=\"\",\"\",'[2]MONE(M)CAPARD'!AX125)","v":"n.d."},{"$f":"IF('[2]MONE(M)CAPARD'!AY125=\"\",\"\",'[2]MONE(M)CAPARD'!AY125)","v":"n.a."},{"$f":"IF('[2]FISCAL(M)'!$K125=\"\",\"\",'[2]FISCAL(M)'!$K125)","v":"n.d."},{"$f":"IF('[2]FISCAL(M)'!$L125=\"\",\"\",'[2]FISCAL(M)'!$L125)","v":"n.d."},{"$f":"IF('[2]FISCAL(M)'!$AY125=\"\",\"\",'[2]FISCAL(M)'!$AY125)","v":"n.d."},{"$f":"IF('[2]FISCAL(M)'!$BI125=\"\",\"\",'[2]FISCAL(M)'!$BI125)","v":"n.d."},{"$f":"IF('[2]FISCAL(M)'!$BS125=\"\",\"\",'[2]FISCAL(M)'!$BS125)","v":"n.d."},{"$f":"IF('[2]FISCAL(M)'!$AZ125=\"\",\"\",'[2]FISCAL(M)'!$AZ125)","v":"n.d."},{"$f":"IF('[2]FISCAL(M)'!$BJ125=\"\",\"\",'[2]FISCAL(M)'!$BJ125)","v":"n.d."},{"$f":"IF('[2]FISCAL(M)'!$BT125=\"\",\"\",'[2]FISCAL(M)'!$BT125)","v":"n.d."},{"$f":"IF('[3]MONE(M)'!$AO125=\"\",\"\",'[3]MONE(M)'!$AO125)","v":"n.d."},{"$f":"IF('[4]MONE(M)'!$AO125=\"\",\"\",'[4]MONE(M)'!$AO125)","v":"n.d."},{"$f":"IF('[5]MONE(M)'!$AO125=\"\",\"\",'[5]MONE(M)'!$AO125)","v":"n.d."},{"$f":"+'[1]MONE(M)'!$AO125","v":"n.d."},{"$f":"IF('[6]MONE(M)'!$AO125=\"\",\"\",'[6]MONE(M)'!$AO125)","v":"n.d."},{"$f":"IF('[7]MONE(M)'!$AO125=\"\",\"\",'[7]MONE(M)'!$AO125)","v":"n.d."},{"$f":"IF('[8]MONE(M)'!$AO125=\"\",\"\",'[8]MONE(M)'!$AO125)","v":"n.d."},"n.d.","n.d.","n.d.","n.d.","n.d.","n.d.","n.d.",{"$f":"IF('[2]FISCAL(M)'!$K125=\"\",\"\",'[2]FISCAL(M)'!$K125)","v":"n.d."},"n.d.","n.d.",{"$f":"IF('[2]FISCAL(M)'!$L125=\"\",\"\",'[2]FISCAL(M)'!$L125)","v":"n.d."},"n.d.","n.d.","n.d.","n.d.","n.d.","n.d.","n.d.","n.d.","n.d.","n.d.","n.d.","n.d.","n.d.","n.d.","n.d.","n.d.","n.d.","n.d."]
[1999,"septiembre","1999-septiembre",{"$f":"IF('[2]REAL IPC(M)'!$AL126=\"\",\"\",+'[2]REAL IPC(M)'!$AL126)","v":6.550802139037426},{"$f":"IF('[2]REAL IPC(M)'!$BE126=\"\",\"\",+'[2]REAL IPC(M)'!$BE126)","v":6.7014188177998424},{"$f":"IF('[2]REAL IPC(M)'!$AM126=\"\",\"\",+'[2]REAL IPC(M)'!$AM126)","v":5.9798573227024754},{"$f":"IF('[2]REAL IPC(M)'!$BI126=\"\",\"\",+'[2]REAL IPC(M)'!$BI126)","v":6.1386437414901573},{"$f":"IF('[2]REAL IMAE(M)'!BJ126=\"\",\"\",'[2]REAL IMAE(M)'!BJ126)","v":"n.d."},{"$f":"IF('[2]REAL IMAE(M)'!BK126=\"\",\"\",'[2]REAL IMAE(M)'!BK126)","v":"n.d."},{"$f":"IF('[2]REAL IMAE(M)'!BN126=\"\",\"\",'[2]REAL IMAE(M)'!BN126)","v":"n.d."},{"$f":"IF('[2]REAL IMAE(M)'!BO126=\"\",\"\",'[2]REAL IMAE(M)'!BO126)","v":"n.d."},{"$f":"IF('[2]EXT RIN(M)'!$K126=\"\",\"\",'[2]EXT RIN(M)'!$K126)","v":"n.d."},"",{"$f":"IF('[2]EXT RIN(M)'!$L126=\"\",\"\",'[2]EXT RIN(M)'!$L126)","v":"n.d."},"",{"$f":"IF('[2]MONE(M)CARD'!EG126=\"\",\"\",'[2]MONE(M)CARD'!EG126)","v":"n.d."},{"$f":"IF('[2]MONE(M)CARD'!EK126=\"\",\"\",'[2]MONE(M)CARD'!EK126)","v":"n.d."},{"$f":"IF('[2]MONE(M)CARD'!EP126=\"\",\"\",'[2]MONE(M)CARD'!EP126)","v":"n.d."},{"$f":"IF('[2]MONE(M)CARD'!ES126=\"\",\"\",'[2]MONE(M)CARD'!ES126)","v":"n.d."},{"$f":"IF('[2]MONE(M)CARD'!EV126=\"\",\"\",'[2]MONE(M)CARD'!EV126)","v":"n.d."},{"$f":"IF('[2]MONE(M)CARD'!EZ126=\"\",\"\",'[2]MONE(M)CARD'!EZ126)","v":"n.d."},{"$f":"IF('[2]MONE(M)CAPARD'!FC126=\"\",\"\",'[2]MONE(M)CAPARD'!FC126)","v":"n.d."},{"$f":"IF('[2]MONE(M)CAPARD'!FG126=\"\",\"\",'[2]MONE(M)CAPARD'!FG126)","v":"n.d."},{"$f":"IF('[2]MONE(M)CAPARD'!FL126=\"\",\"\",'[2]MONE(M)CAPARD'!FL126)","v":"n.d."},{"$f":"IF('[2]MONE(M)CAPARD'!FO126=\"\",\"\",'[2]MONE(M)CAPARD'!FO126)","v":"n.d."},{"$f":"IF('[2]MONE(M)CAPARD'!FR126=\"\",\"\",'[2]MONE(M)CAPARD'!FR126)","v":"n.d."},{"$f":"IF('[2]MONE(M)CAPARD'!FV126=\"\",\"\",'[2]MONE(M)CAPARD'!FV126)","v":"n.d."},{"$f":"IF('[2]MONE(M)CARD'!FV126=\"\",\"\",'[2]MONE(M)CARD'!FV126)","v":""},{"$f":"IF('[2]MONE(M)CARD'!GD126=\"\",\"\",'[2]MONE(M)CARD'!GD126)","v":"n.d."},{"$f":"IF('[2]MONE(M)CARD'!GE126=\"\",\"\",'[2]MONE(M)CARD'!GE126)","v":"n.d."},"n.d.","n.d.","n.d.","n.d.","n.d.","n.d.","n.d.","n.d.",null,"n.d.","n.d.","n.d.","n.d.","n.d.",{"$f":"IF('[2]MONE(M)CAPARD'!GS126=\"\",\"\",'[2]MONE(M)CAPARD'!GS126)","v":"n.d."},{"$f":"IF('[2]MONE(M)CARD'!HA126=\"\",\"\",'[2]MONE(M)CAPARD'!HA126)","v":"n.d."},{"$f":"IF('[2]MONE(M)CAPARD'!HB126=\"\",\"\",'[2]MONE(M)CAPARD'!HB126)","v":"n.d."},"n.d.","n.d.","n.d.","n.d.","n.d.","n.d.","n.d.","n.d.","n.d.","n.d.","n.d.","n.d.","n.d.","n.d.",{"$f":"IF('[2]MONE(M)CAPARD'!AS126=\"\",\"\",'[2]MONE(M)CAPARD'!AS126)","v":"n.d."},{"$f":"IF('[2]MONE(M)CAPARD'!AT126=\"\",\"\",'[2]MONE(M)CAPARD'!AT126)","v":"n.a."},{"$f":"IF('[2]MONE(M)CAPARD'!AU126=\"\",\"\",'[2]MONE(M)CAPARD'!AU126)","v":"n.d."},{"$f":"IF('[2]MONE(M)CAPARD'!AV126=\"\",\"\",'[2]MONE(M)CAPARD'!AV126)","v":"n.d."},{"$f":"IF('[2]MONE(M)CAPARD'!AW126=\"\",\"\",'[2]MONE(M)CAPARD'!AW126)","v":"n.a."},{"$f":"IF('[2]MONE(M)CAPARD'!AX126=\"\",\"\",'[2]MONE(M)CAPARD'!AX126)","v":"n.d."},{"$f":"IF('[2]MONE(M)CAPARD'!AY126=\"\",\"\",'[2]MONE(M)CAPARD'!AY126)","v":"n.a."},{"$f":"IF('[2]FISCAL(M)'!$K126=\"\",\"\",'[2]FISCAL(M)'!$K126)","v":"n.d."},{"$f":"IF('[2]FISCAL(M)'!$L126=\"\",\"\",'[2]FISCAL(M)'!$L126)","v":"n.d."},{"$f":"IF('[2]FISCAL(M)'!$AY126=\"\",\"\",'[2]FISCAL(M)'!$AY126)","v":"n.d."},{"$f":"IF('[2]FISCAL(M)'!$BI126=\"\",\"\",'[2]FISCAL(M)'!$BI126)","v":"n.d."},{"$f":"IF('[2]FISCAL(M)'!$BS126=\"\",\"\",'[2]FISCAL(M)'!$BS126)","v":"n.d."},{"$f":"IF('[2]FISCAL(M)'!$AZ126=\"\",\"\",'[2]FISCAL(M)'!$AZ126)","v":"n.d."},{"$f":"IF('[2]FISCAL(M)'!$BJ126=\"\",\"\",'[2]FISCAL(M)'!$BJ126)","v":"n.d."},{"$f":"IF('[2]FISCAL(M)'!$BT126=\"\",\"\",'[2]FISCAL(M)'!$BT126)","v":"n.d."},{"$f":"IF('[3]MONE(M)'!$AO126=\"\",\"\",'[3]MONE(M)'!$AO126)","v":"n.d."},{"$f":"IF('[4]MONE(M)'!$AO126=\"\",\"\",'[4]MONE(M)'!$AO126)","v":"n.d."},{"$f":"IF('[5]MONE(M)'!$AO126=\"\",\"\",'[5]MONE(M)'!$AO126)","v":"n.d."},{"$f":"+'[1]MONE(M)'!$AO126","v":"n.d."},{"$f":"IF('[6]MONE(M)'!$AO126=\"\",\"\",'[6]MONE(M)'!$AO126)","v":"n.d."},{"$f":"IF('[7]MONE(M)'!$AO126=\"\",\"\",'[7]MONE(M)'!$AO126)","v":"n.d."},{"$f":"IF('[8]MONE(M)'!$AO126=\"\",\"\",'[8]MONE(M)'!$AO126)","v":"n.d."},"n.d.","n.d.","n.d.","n.d.","n.d.","n.d.","n.d.",{"$f":"IF('[2]FISCAL(M)'!$K126=\"\",\"\",'[2]FISCAL(M)'!$K126)","v":"n.d."},"n.d.","n.d.",{"$f":"IF('[2]FISCAL(M)'!$L126=\"\",\"\",'[2]FISCAL(M)'!$L126)","v":"n.d."},"n.d.","n.d.","n.d.","n.d.","n.d.","n.d.","n.d.","n.d.","n.d.","n.d.","n.d.","n.d.","n.d.","n.d.","n.d.","n.d.","n.d.","n.d."]
[1999,"octubre","1999-octubre",{"$f":"IF('[2]REAL IPC(M)'!$AL127=\"\",\"\",+'[2]REAL IPC(M)'!$AL127)","v":7.3951434878587241},{"$f":"IF('[2]REAL IPC(M)'!$BE127=\"\",\"\",+'[2]REAL IPC(M)'!$BE127)","v":6.6884944303349458},{"$f":"IF('[2]REAL IPC(M)'!$AM127=\"\",\"\",+'[2]REAL IPC(M)'!$AM127)","v":6.697171381031608},{"$f":"IF('[2]REAL IPC(M)'!$BI127=\"\",\"\",+'[2]REAL IPC(M)'!$BI127)","v":6.1319111114759961},{"$f":"IF('[2]REAL IMAE(M)'!BJ127=\"\",\"\",'[2]REAL IMAE(M)'!BJ127)","v":"n.d."},{"$f":"IF('[2]REAL IMAE(M)'!BK127=\"\",\"\",'[2]REAL IMAE(M)'!BK127)","v":"n.d."},{"$f":"IF('[2]REAL IMAE(M)'!BN127=\"\",\"\",'[2]REAL IMAE(M)'!BN127)","v":"n.d."},{"$f":"IF('[2]REAL IMAE(M)'!BO127=\"\",\"\",'[2]REAL IMAE(M)'!BO127)","v":"n.d."},{"$f":"IF('[2]EXT RIN(M)'!$K127=\"\",\"\",'[2]EXT RIN(M)'!$K127)","v":"n.d."},"",{"$f":"IF('[2]EXT RIN(M)'!$L127=\"\",\"\",'[2]EXT RIN(M)'!$L127)","v":"n.d."},"",{"$f":"IF('[2]MONE(M)CARD'!EG127=\"\",\"\",'[2]MONE(M)CARD'!EG127)","v":"n.d."},{"$f":"IF('[2]MONE(M)CARD'!EK127=\"\",\"\",'[2]MONE(M)CARD'!EK127)","v":"n.d."},{"$f":"IF('[2]MONE(M)CARD'!EP127=\"\",\"\",'[2]MONE(M)CARD'!EP127)","v":"n.d."},{"$f":"IF('[2]MONE(M)CARD'!ES127=\"\",\"\",'[2]MONE(M)CARD'!ES127)","v":"n.d."},{"$f":"IF('[2]MONE(M)CARD'!EV127=\"\",\"\",'[2]MONE(M)CARD'!EV127)","v":"n.d."},{"$f":"IF('[2]MONE(M)CARD'!EZ127=\"\",\"\",'[2]MONE(M)CARD'!EZ127)","v":"n.d."},{"$f":"IF('[2]MONE(M)CAPARD'!FC127=\"\",\"\",'[2]MONE(M)CAPARD'!FC127)","v":"n.d."},{"$f":"IF('[2]MONE(M)CAPARD'!FG127=\"\",\"\",'[2]MONE(M)CAPARD'!FG127)","v":"n.d."},{"$f":"IF('[2]MONE(M)CAPARD'!FL127=\"\",\"\",'[2]MONE(M)CAPARD'!FL127)","v":"n.d."},{"$f":"IF('[2]MONE(M)CAPARD'!FO127=\"\",\"\",'[2]MONE(M)CAPARD'!FO127)","v":"n.d."},{"$f":"IF('[2]MONE(M)CAPARD'!FR127=\"\",\"\",'[2]MONE(M)CAPARD'!FR127)","v":"n.d."},{"$f":"IF('[2]MONE(M)CAPARD'!FV127=\"\",\"\",'[2]MONE(M)CAPARD'!FV127)","v":"n.d."},{"$f":"IF('[2]MONE(M)CARD'!FV127=\"\",\"\",'[2]MONE(M)CARD'!FV127)","v":""},{"$f":"IF('[2]MONE(M)CARD'!GD127=\"\",\"\",'[2]MONE(M)CARD'!GD127)","v":"n.d."},{"$f":"IF('[2]MONE(M)CARD'!GE127=\"\",\"\",'[2]MONE(M)CARD'!GE127)","v":"n.d."},"n.d.","n.d.","n.d.","n.d.","n.d.","n.d.","n.d.","n.d.",null,"n.d.","n.d.","n.d.","n.d.","n.d.",{"$f":"IF('[2]MONE(M)CAPARD'!GS127=\"\",\"\",'[2]MONE(M)CAPARD'!GS127)","v":"n.d."},{"$f":"IF('[2]MONE(M)CARD'!HA127=\"\",\"\",'[2]MONE(M)CAPARD'!HA127)","v":"n.d."},{"$f":"IF('[2]MONE(M)CAPARD'!HB127=\"\",\"\",'[2]MONE(M)CAPARD'!HB127)","v":"n.d."},"n.d.","n.d.","n.d.","n.d.","n.d.","n.d.","n.d.","n.d.","n.d.","n.d.","n.d.","n.d.","n.d.","n.d.",{"$f":"IF('[2]MONE(M)CAPARD'!AS127=\"\",\"\",'[2]MONE(M)CAPARD'!AS127)","v":"n.d."},{"$f":"IF('[2]MONE(M)CAPARD'!AT127=\"\",\"\",'[2]MONE(M)CAPARD'!AT127)","v":"n.a."},{"$f":"IF('[2]MONE(M)CAPARD'!AU127=\"\",\"\",'[2]MONE(M)CAPARD'!AU127)","v":"n.d."},{"$f":"IF('[2]MONE(M)CAPARD'!AV127=\"\",\"\",'[2]MONE(M)CAPARD'!AV127)","v":"n.d."},{"$f":"IF('[2]MONE(M)CAPARD'!AW127=\"\",\"\",'[2]MONE(M)CAPARD'!AW127)","v":"n.a."},{"$f":"IF('[2]MONE(M)CAPARD'!AX127=\"\",\"\",'[2]MONE(M)CAPARD'!AX127)","v":"n.d."},{"$f":"IF('[2]MONE(M)CAPARD'!AY127=\"\",\"\",'[2]MONE(M)CAPARD'!AY127)","v":"n.a."},{"$f":"IF('[2]FISCAL(M)'!$K127=\"\",\"\",'[2]FISCAL(M)'!$K127)","v":"n.d."},{"$f":"IF('[2]FISCAL(M)'!$L127=\"\",\"\",'[2]FISCAL(M)'!$L127)","v":"n.d."},{"$f":"IF('[2]FISCAL(M)'!$AY127=\"\",\"\",'[2]FISCAL(M)'!$AY127)","v":"n.d."},{"$f":"IF('[2]FISCAL(M)'!$BI127=\"\",\"\",'[2]FISCAL(M)'!$BI127)","v":"n.d."},{"$f":"IF('[2]FISCAL(M)'!$BS127=\"\",\"\",'[2]FISCAL(M)'!$BS127)","v":"n.d."},{"$f":"IF('[2]FISCAL(M)'!$AZ127=\"\",\"\",'[2]FISCAL(M)'!$AZ127)","v":"n.d."},{"$f":"IF('[2]FISCAL(M)'!$BJ127=\"\",\"\",'[2]FISCAL(M)'!$BJ127)","v":"n.d."},{"$f":"IF('[2]FISCAL(M)'!$BT127=\"\",\"\",'[2]FISCAL(M)'!$BT127)","v":"n.d."},{"$f":"IF('[3]MONE(M)'!$AO127=\"\",\"\",'[3]MONE(M)'!$AO127)","v":"n.d."},{"$f":"IF('[4]MONE(M)'!$AO127=\"\",\"\",'[4]MONE(M)'!$AO127)","v":"n.d."},{"$f":"IF('[5]MONE(M)'!$AO127=\"\",\"\",'[5]MONE(M)'!$AO127)","v":"n.d."},{"$f":"+'[1]MONE(M)'!$AO127","v":"n.d."},{"$f":"IF('[6]MONE(M)'!$AO127=\"\",\"\",'[6]MONE(M)'!$AO127)","v":"n.d."},{"$f":"IF('[7]MONE(M)'!$AO127=\"\",\"\",'[7]MONE(M)'!$AO127)","v":"n.d."},{"$f":"IF('[8]MONE(M)'!$AO127=\"\",\"\",'[8]MONE(M)'!$AO127)","v":"n.d."},"n.d.","n.d.","n.d.","n.d.","n.d.","n.d.","n.d.",{"$f":"IF('[2]FISCAL(M)'!$K127=\"\",\"\",'[2]FISCAL(M)'!$K127)","v":"n.d."},"n.d.","n.d.",{"$f":"IF('[2]FISCAL(M)'!$L127=\"\",\"\",'[2]FISCAL(M)'!$L127)","v":"n.d."},"n.d.","n.d.","n.d.","n.d.","n.d.","n.d.","n.d.","n.d.","n.d.","n.d.","n.d.","n.d.","n.d.","n.d.","n.d.","n.d.","n.d.","n.d."]
[1999,"noviembre","1999-noviembre",{"$f":"IF('[2]REAL IPC(M)'!$AL128=\"\",\"\",+'[2]REAL IPC(M)'!$AL128)","v":5.7075166917941011},{"$f":"IF('[2]REAL IPC(M)'!$BE128=\"\",\"\",+'[2]REAL IPC(M)'!$BE128)","v":6.6812824475062316},{"$f":"IF('[2]REAL IPC(M)'!$AM128=\"\",\"\",+'[2]REAL IPC(M)'!$AM128)","v":5.2278275020341658},{"$f":"IF('[2]REAL IPC(M)'!$BI128=\"\",\"\",+'[2]REAL IPC(M)'!$BI128)","v":6.1297617583434105},{"$f":"IF('[2]REAL IMAE(M)'!BJ128=\"\",\"\",'[2]REAL IMAE(M)'!BJ128)","v":"n.d."},{"$f":"IF('[2]REAL IMAE(M)'!BK128=\"\",\"\",'[2]REAL IMAE(M)'!BK128)","v":"n.d."},{"$f":"IF('[2]REAL IMAE(M)'!BN128=\"\",\"\",'[2]REAL IMAE(M)'!BN128)","v":"n.d."},{"$f":"IF('[2]REAL IMAE(M)'!BO128=\"\",\"\",'[2]REAL IMAE(M)'!BO128)","v":"n.d."},{"$f":"IF('[2]EXT RIN(M)'!$K128=\"\",\"\",'[2]EXT RIN(M)'!$K128)","v":"n.d."},"",{"$f":"IF('[2]EXT RIN(M)'!$L128=\"\",\"\",'[2]EXT RIN(M)'!$L128)","v":"n.d."},"",{"$f":"IF('[2]MONE(M)CARD'!EG128=\"\",\"\",'[2]MONE(M)CARD'!EG128)","v":"n.d."},{"$f":"IF('[2]MONE(M)CARD'!EK128=\"\",\"\",'[2]MONE(M)CARD'!EK128)","v":"n.d."},{"$f":"IF('[2]MONE(M)CARD'!EP128=\"\",\"\",'[2]MONE(M)CARD'!EP128)","v":"n.d."},{"$f":"IF('[2]MONE(M)CARD'!ES128=\"\",\"\",'[2]MONE(M)CARD'!ES128)","v":"n.d."},{"$f":"IF('[2]MONE(M)CARD'!EV128=\"\",\"\",'[2]MONE(M)CARD'!EV128)","v":"n.d."},{"$f":"IF('[2]MONE(M)CARD'!EZ128=\"\",\"\",'[2]MONE(M)CARD'!EZ128)","v":"n.d."},{"$f":"IF('[2]MONE(M)CAPARD'!FC128=\"\",\"\",'[2]MONE(M)CAPARD'!FC128)","v":"n.d."},{"$f":"IF('[2]MONE(M)CAPARD'!FG128=\"\",\"\",'[2]MONE(M)CAPARD'!FG128)","v":"n.d."},{"$f":"IF('[2]MONE(M)CAPARD'!FL128=\"\",\"\",'[2]MONE(M)CAPARD'!FL128)","v":"n.d."},{"$f":"IF('[2]MONE(M)CAPARD'!FO128=\"\",\"\",'[2]MONE(M)CAPARD'!FO128)","v":"n.d."},{"$f":"IF('[2]MONE(M)CAPARD'!FR128=\"\",\"\",'[2]MONE(M)CAPARD'!FR128)","v":"n.d."},{"$f":"IF('[2]MONE(M)CAPARD'!FV128=\"\",\"\",'[2]MONE(M)CAPARD'!FV128)","v":"n.d."},{"$f":"IF('[2]MONE(M)CARD'!FV128=\"\",\"\",'[2]MONE(M)CARD'!FV128)","v":""},{"$f":"IF('[2]MONE(M)CARD'!GD128=\"\",\"\",'[2]MONE(M)CARD'!GD128)","v":"n.d."},{"$f":"IF('[2]MONE(M)CARD'!GE128=\"\",\"\",'[2]MONE(M)CARD'!GE128)","v":"n.d."},"n.d.","n.d.","n.d.","n.d.","n.d.","n.d.","n.d.","n.d.",null,"n.d.","n.d.","n.d.","n.d.","n.d.",{"$f":"IF('[2]MONE(M)CAPARD'!GS128=\"\",\"\",'[2]MONE(M)CAPARD'!GS128)","v":"n.d."},{"$f":"IF('[2]MONE(M)CARD'!HA128=\"\",\"\",'[2]MONE(M)CAPARD'!HA128)","v":"n.d."},{"$f":"IF('[2]MONE(M)CAPARD'!HB128=\"\",\"\",'[2]MONE(M)CAPARD'!HB128)","v":"n.d."},"n.d.","n.d.","n.d.","n.d.","n.d.","n.d.","n.d.","n.d.","n.d.","n.d.","n.d.","n.d.","n.d.","n.d.",{"$f":"IF('[2]MONE(M)CAPARD'!AS128=\"\",\"\",'[2]MONE(M)CAPARD'!AS128)","v":"n.d."},{"$f":"IF('[2]MONE(M)CAPARD'!AT128=\"\",\"\",'[2]MONE(M)CAPARD'!AT128)","v":"n.a."},{"$f":"IF('[2]MONE(M)CAPARD'!AU128=\"\",\"\",'[2]MONE(M)CAPARD'!AU128)","v":"n.d."},{"$f":"IF('[2]MONE(M)CAPARD'!AV128=\"\",\"\",'[2]MONE(M)CAPARD'!AV128)","v":"n.d."},{"$f":"IF('[2]MONE(M)CAPARD'!AW128=\"\",\"\",'[2]MONE(M)CAPARD'!AW128)","v":"n.a."},{"$f":"IF('[2]MONE(M)CAPARD'!AX128=\"\",\"\",'[2]MONE(M)CAPARD'!AX128)","v":"n.d."},{"$f":"IF('[2]MONE(M)CAPARD'!AY128=\"\",\"\",'[2]MONE(M)CAPARD'!AY128)","v":"n.a."},{"$f":"IF('[2]FISCAL(M)'!$K128=\"\",\"\",'[2]FISCAL(M)'!$K128)","v":"n.d."},{"$f":"IF('[2]FISCAL(M)'!$L128=\"\",\"\",'[2]FISCAL(M)'!$L128)","v":"n.d."},{"$f":"IF('[2]FISCAL(M)'!$AY128=\"\",\"\",'[2]FISCAL(M)'!$AY128)","v":"n.d."},{"$f":"IF('[2]FISCAL(M)'!$BI128=\"\",\"\",'[2]FISCAL(M)'!$BI128)","v":"n.d."},{"$f":"IF('[2]FISCAL(M)'!$BS128=\"\",\"\",'[2]FISCAL(M)'!$BS128)","v":"n.d."},{"$f":"IF('[2]FISCAL(M)'!$AZ128=\"\",\"\",'[2]FISCAL(M)'!$AZ128)","v":"n.d."},{"$f":"IF('[2]FISCAL(M)'!$BJ128=\"\",\"\",'[2]FISCAL(M)'!$BJ128)","v":"n.d."},{"$f":"IF('[2]FISCAL(M)'!$BT128=\"\",\"\",'[2]FISCAL(M)'!$BT128)","v":"n.d."},{"$f":"IF('[3]MONE(M)'!$AO128=\"\",\"\",'[3]MONE(M)'!$AO128)","v":"n.d."},{"$f":"IF('[4]MONE(M)'!$AO128=\"\",\"\",'[4]MONE(M)'!$AO128)","v":"n.d."},{"$f":"IF('[5]MONE(M)'!$AO128=\"\",\"\",'[5]MONE(M)'!$AO128)","v":"n.d."},{"$f":"+'[1]MONE(M)'!$AO128","v":"n.d."},{"$f":"IF('[6]MONE(M)'!$AO128=\"\",\"\",'[6]MONE(M)'!$AO128)","v":"n.d."},{"$f":"IF('[7]MONE(M)'!$AO128=\"\",\"\",'[7]MONE(M)'!$AO128)","v":"n.d."},{"$f":"IF('[8]MONE(M)'!$AO128=\"\",\"\",'[8]MONE(M)'!$AO128)","v":"n.d."},"n.d.","n.d.","n.d.","n.d.","n.d.","n.d.","n.d.",{"$f":"IF('[2]FISCAL(M)'!$K128=\"\",\"\",'[2]FISCAL(M)'!$K128)","v":"n.d."},"n.d.","n.d.",{"$f":"IF('[2]FISCAL(M)'!$L128=\"\",\"\",'[2]FISCAL(M)'!$L128)","v":"n.d."},"n.d.","n.d.","n.d.","n.d.","n.d.","n.d.","n.d.","n.d.","n.d.","n.d.","n.d.","n.d.","n.d.","n.d.","n.d.","n.d.","n.d.","n.d."]
[1999,"diciembre","1999-diciembre",{"$f":"IF('[2]REAL IPC(M)'!$AL129=\"\",\"\",+'[2]REAL IPC(M)'!$AL129)","v":5.3823152498932103},{"$f":"IF('[2]REAL IPC(M)'!$BE129=\"\",\"\",+'[2]REAL IPC(M)'!$BE129)","v":6.6796827505247514},{"$f":"IF('[2]REAL IPC(M)'!$AM129=\"\",\"\",+'[2]REAL IPC(M)'!$AM129)","v":5.0070664243892615},{"$f":"IF('[2]REAL IPC(M)'!$BI129=\"\",\"\",+'[2]REAL IPC(M)'!$BI129)","v":6.1319228849136653},{"$f":"IF('[2]REAL IMAE(M)'!BJ129=\"\",\"\",'[2]REAL IMAE(M)'!BJ129)","v":"n.d."},{"$f":"IF('[2]REAL IMAE(M)'!BK129=\"\",\"\",'[2]REAL IMAE(M)'!BK129)","v":"n.d."},{"$f":"IF('[2]REAL IMAE(M)'!BN129=\"\",\"\",'[2]REAL IMAE(M)'!BN129)","v":"n.d."},{"$f":"IF('[2]REAL IMAE(M)'!BO129=\"\",\"\",'[2]REAL IMAE(M)'!BO129)","v":"n.d."},{"$f":"IF('[2]EXT RIN(M)'!$K129=\"\",\"\",'[2]EXT RIN(M)'!$K129)","v":"n.d."},"n.d.",{"$f":"IF('[2]EXT RIN(M)'!$L129=\"\",\"\",'[2]EXT RIN(M)'!$L129)","v":"n.d."},"n.d.",{"$f":"IF('[2]MONE(M)CARD'!EG129=\"\",\"\",'[2]MONE(M)CARD'!EG129)","v":"n.d."},{"$f":"IF('[2]MONE(M)CARD'!EK129=\"\",\"\",'[2]MONE(M)CARD'!EK129)","v":"n.d."},{"$f":"IF('[2]MONE(M)CARD'!EP129=\"\",\"\",'[2]MONE(M)CARD'!EP129)","v":"n.d."},{"$f":"IF('[2]MONE(M)CARD'!ES129=\"\",\"\",'[2]MONE(M)CARD'!ES129)","v":"n.d."},{"$f":"IF('[2]MONE(M)CARD'!EV129=\"\",\"\",'[2]MONE(M)CARD'!EV129)","v":"n.d."},{"$f":"IF('[2]MONE(M)CARD'!EZ129=\"\",\"\",'[2]MONE(M)CARD'!EZ129)","v":"n.d."},{"$f":"IF('[2]MONE(M)CAPARD'!FC129=\"\",\"\",'[2]MONE(M)CAPARD'!FC129)","v":"n.d."},{"$f":"IF('[2]MONE(M)CAPARD'!FG129=\"\",\"\",'[2]MONE(M)CAPARD'!FG129)","v":"n.d."},{"$f":"IF('[2]MONE(M)CAPARD'!FL129=\"\",\"\",'[2]MONE(M)CAPARD'!FL129)","v":"n.d."},{"$f":"IF('[2]MONE(M)CAPARD'!FO129=\"\",\"\",'[2]MONE(M)CAPARD'!FO129)","v":"n.d."},{"$f":"IF('[2]MONE(M)CAPARD'!FR129=\"\",\"\",'[2]MONE(M)CAPARD'!FR129)","v":"n.d."},{"$f":"IF('[2]MONE(M)CAPARD'!FV129=\"\",\"\",'[2]MONE(M)CAPARD'!FV129)","v":"n.d."},{"$f":"IF('[2]MONE(M)CARD'!FV129=\"\",\"\",'[2]MONE(M)CARD'!FV129)","v":""},{"$f":"IF('[2]MONE(M)CARD'!GD129=\"\",\"\",'[2]MONE(M)CARD'!GD129)","v":"n.d."},{"$f":"IF('[2]MONE(M)CARD'!GE129=\"\",\"\",'[2]MONE(M)CARD'!GE129)","v":"n.d."},"n.d.","n.d.","n.d.","n.d.","n.d.","n.d.","n.d.","n.d.",null,"n.d.","n.d.","n.d.","n.d.","n.d.",{"$f":"IF('[2]MONE(M)CAPARD'!GS129=\"\",\"\",'[2]MONE(M)CAPARD'!GS129)","v":"n.d."},{"$f":"IF('[2]MONE(M)CARD'!HA129=\"\",\"\",'[2]MONE(M)CAPARD'!HA129)","v":"n.d."},{"$f":"IF('[2]MONE(M)CAPARD'!HB129=\"\",\"\",'[2]MONE(M)CAPARD'!HB129)","v":"n.d."},"n.d.","n.d.","n.d.","n.d.","n.d.","n.d.","n.d.","n.d.","n.d.","n.d.","n.d.","n.d.","n.d.","n.d.",{"$f":"IF('[2]MONE(M)CAPARD'!AS129=\"\",\"\",'[2]MONE(M)CAPARD'!AS129)","v":"n.d."},{"$f":"IF('[2]MONE(M)CAPARD'!AT129=\"\",\"\",'[2]MONE(M)CAPARD'!AT129)","v":"n.a."},{"$f":"IF('[2]MONE(M)CAPARD'!AU129=\"\",\"\",'[2]MONE(M)CAPARD'!AU129)","v":"n.d."},{"$f":"IF('[2]MONE(M)CAPARD'!AV129=\"\",\"\",'[2]MONE(M)CAPARD'!AV129)","v":"n.d."},{"$f":"IF('[2]MONE(M)CAPARD'!AW129=\"\",\"\",'[2]MONE(M)CAPARD'!AW129)","v":"n.a."},{"$f":"IF('[2]MONE(M)CAPARD'!AX129=\"\",\"\",'[2]MONE(M)CAPARD'!AX129)","v":"n.d."},{"$f":"IF('[2]MONE(M)CAPARD'!AY129=\"\",\"\",'[2]MONE(M)CAPARD'!AY129)","v":"n.a."},{"$f":"IF('[2]FISCAL(M)'!$K129=\"\",\"\",'[2]FISCAL(M)'!$K129)","v":"n.d."},{"$f":"IF('[2]FISCAL(M)'!$L129=\"\",\"\",'[2]FISCAL(M)'!$L129)","v":"n.d."},{"$f":"IF('[2]FISCAL(M)'!$AY129=\"\",\"\",'[2]FISCAL(M)'!$AY129)","v":"n.d."},{"$f":"IF('[2]FISCAL(M)'!$BI129=\"\",\"\",'[2]FISCAL(M)'!$BI129)","v":"n.d."},{"$f":"IF('[2]FISCAL(M)'!$BS129=\"\",\"\",'[2]FISCAL(M)'!$BS129)","v":"n.d."},{"$f":"IF('[2]FISCAL(M)'!$AZ129=\"\",\"\",'[2]FISCAL(M)'!$AZ129)","v":"n.d."},{"$f":"IF('[2]FISCAL(M)'!$BJ129=\"\",\"\",'[2]FISCAL(M)'!$BJ129)","v":"n.d."},{"$f":"IF('[2]FISCAL(M)'!$BT129=\"\",\"\",'[2]FISCAL(M)'!$BT129)","v":"n.d."},{"$f":"IF('[3]MONE(M)'!$AO129=\"\",\"\",'[3]MONE(M)'!$AO129)","v":"n.d."},{"$f":"IF('[4]MONE(M)'!$AO129=\"\",\"\",'[4]MONE(M)'!$AO129)","v":"n.d."},{"$f":"IF('[5]MONE(M)'!$AO129=\"\",\"\",'[5]MONE(M)'!$AO129)","v":"n.d."},{"$f":"+'[1]MONE(M)'!$AO129","v":"n.d."},{"$f":"IF('[6]MONE(M)'!$AO129=\"\",\"\",'[6]MONE(M)'!$AO129)","v":"n.d."},{"$f":"IF('[7]MONE(M)'!$AO129=\"\",\"\",'[7]MONE(M)'!$AO129)","v":"n.d."},{"$f":"IF('[8]MONE(M)'!$AO129=\"\",\"\",'[8]MONE(M)'!$AO129)","v":"n.d."},"n.d.","n.d.","n.d.","n.d.","n.d.","n.d.","n.d.",{"$f":"IF('[2]FISCAL(M)'!$K129=\"\",\"\",'[2]FISCAL(M)'!$K129)","v":"n.d."},"n.d.","n.d.",{"$f":"IF('[2]FISCAL(M)'!$L129=\"\",\"\",'[2]FISCAL(M)'!$L129)","v":"n.d."},"n.d.","n.d.","n.d.","n.d.","n.d.","n.d.","n.d.","n.d.","n.d.","n.d.","n.d.","n.d.","n.d.","n.d.","n.d.","n.d.","n.d.","n.d."]
[2000,"enero","2000-enero",{"$f":"IF('[2]REAL IPC(M)'!$AL130=\"\",\"\",+'[2]REAL IPC(M)'!$AL130)","v":5.8119658119658357},{"$f":"IF('[2]REAL IPC(M)'!$BE130=\"\",\"\",+'[2]REAL IPC(M)'!$BE130)","v":6.6835377005131091},{"$f":"IF('[2]REAL IPC(M)'!$AM130=\"\",\"\",+'[2]REAL IPC(M)'!$AM130)","v":5.350292751867558},{"$f":"IF('[2]REAL IPC(M)'!$BI130=\"\",\"\",+'[2]REAL IPC(M)'!$BI130)","v":6.1381510698717001},{"$f":"IF('[2]REAL IMAE(M)'!BJ130=\"\",\"\",'[2]REAL IMAE(M)'!BJ130)","v":"n.d."},{"$f":"IF('[2]REAL IMAE(M)'!BK130=\"\",\"\",'[2]REAL IMAE(M)'!BK130)","v":"n.d."},{"$f":"IF('[2]REAL IMAE(M)'!BN130=\"\",\"\",'[2]REAL IMAE(M)'!BN130)","v":"n.d."},{"$f":"IF('[2]REAL IMAE(M)'!BO130=\"\",\"\",'[2]REAL IMAE(M)'!BO130)","v":"n.d."},{"$f":"IF('[2]EXT RIN(M)'!$K130=\"\",\"\",'[2]EXT RIN(M)'!$K130)","v":"n.d."},"",{"$f":"IF('[2]EXT RIN(M)'!$L130=\"\",\"\",'[2]EXT RIN(M)'!$L130)","v":"n.d."},"",{"$f":"IF('[2]MONE(M)CARD'!EG130=\"\",\"\",'[2]MONE(M)CARD'!EG130)","v":"n.d."},{"$f":"IF('[2]MONE(M)CARD'!EK130=\"\",\"\",'[2]MONE(M)CARD'!EK130)","v":"n.d."},{"$f":"IF('[2]MONE(M)CARD'!EP130=\"\",\"\",'[2]MONE(M)CARD'!EP130)","v":"n.d."},{"$f":"IF('[2]MONE(M)CARD'!ES130=\"\",\"\",'[2]MONE(M)CARD'!ES130)","v":"n.d."},{"$f":"IF('[2]MONE(M)CARD'!EV130=\"\",\"\",'[2]MONE(M)CARD'!EV130)","v":"n.d."},{"$f":"IF('[2]MONE(M)CARD'!EZ130=\"\",\"\",'[2]MONE(M)CARD'!EZ130)","v":"n.d."},{"$f":"IF('[2]MONE(M)CAPARD'!FC130=\"\",\"\",'[2]MONE(M)CAPARD'!FC130)","v":"n.d."},{"$f":"IF('[2]MONE(M)CAPARD'!FG130=\"\",\"\",'[2]MONE(M)CAPARD'!FG130)","v":"n.d."},{"$f":"IF('[2]MONE(M)CAPARD'!FL130=\"\",\"\",'[2]MONE(M)CAPARD'!FL130)","v":"n.d."},{"$f":"IF('[2]MONE(M)CAPARD'!FO130=\"\",\"\",'[2]MONE(M)CAPARD'!FO130)","v":"n.d."},{"$f":"IF('[2]MONE(M)CAPARD'!FR130=\"\",\"\",'[2]MONE(M)CAPARD'!FR130)","v":"n.d."},{"$f":"IF('[2]MONE(M)CAPARD'!FV130=\"\",\"\",'[2]MONE(M)CAPARD'!FV130)","v":"n.d."},{"$f":"IF('[2]MONE(M)CARD'!FV130=\"\",\"\",'[2]MONE(M)CARD'!FV130)","v":""},{"$f":"IF('[2]MONE(M)CARD'!GD130=\"\",\"\",'[2]MONE(M)CARD'!GD130)","v":"n.d."},{"$f":"IF('[2]MONE(M)CARD'!GE130=\"\",\"\",'[2]MONE(M)CARD'!GE130)","v":"n.d."},"n.d.","n.d.","n.d.","n.d.","n.d.","n.d.","n.d.","n.d.",null,"n.d.","n.d.","n.d.","n.d.","n.d.",{"$f":"IF('[2]MONE(M)CAPARD'!GS130=\"\",\"\",'[2]MONE(M)CAPARD'!GS130)","v":"n.d."},{"$f":"IF('[2]MONE(M)CARD'!HA130=\"\",\"\",'[2]MONE(M)CAPARD'!HA130)","v":"n.d."},{"$f":"IF('[2]MONE(M)CAPARD'!HB130=\"\",\"\",'[2]MONE(M)CAPARD'!HB130)","v":"n.d."},"n.d.","n.d.","n.d.","n.d.","n.d.","n.d.","n.d.","n.d.","n.d.","n.d.","n.d.","n.d.","n.d.","n.d.",{"$f":"IF('[2]MONE(M)CAPARD'!AS130=\"\",\"\",'[2]MONE(M)CAPARD'!AS130)","v":"n.d."},{"$f":"IF('[2]MONE(M)CAPARD'!AT130=\"\",\"\",'[2]MONE(M)CAPARD'!AT130)","v":"n.a."},{"$f":"IF('[2]MONE(M)CAPARD'!AU130=\"\",\"\",'[2]MONE(M)CAPARD'!AU130)","v":"n.d."},{"$f":"IF('[2]MONE(M)CAPARD'!AV130=\"\",\"\",'[2]MONE(M)CAPARD'!AV130)","v":"n.d."},{"$f":"IF('[2]MONE(M)CAPARD'!AW130=\"\",\"\",'[2]MONE(M)CAPARD'!AW130)","v":"n.a."},{"$f":"IF('[2]MONE(M)CAPARD'!AX130=\"\",\"\",'[2]MONE(M)CAPARD'!AX130)","v":"n.d."},{"$f":"IF('[2]MONE(M)CAPARD'!AY130=\"\",\"\",'[2]MONE(M)CAPARD'!AY130)","v":"n.a."},{"$f":"IF('[2]FISCAL(M)'!$K130=\"\",\"\",'[2]FISCAL(M)'!$K130)","v":"n.d."},{"$f":"IF('[2]FISCAL(M)'!$L130=\"\",\"\",'[2]FISCAL(M)'!$L130)","v":"n.d."},{"$f":"IF('[2]FISCAL(M)'!$AY130=\"\",\"\",'[2]FISCAL(M)'!$AY130)","v":"n.d."},{"$f":"IF('[2]FISCAL(M)'!$BI130=\"\",\"\",'[2]FISCAL(M)'!$BI130)","v":"n.d."},{"$f":"IF('[2]FISCAL(M)'!$BS130=\"\",\"\",'[2]FISCAL(M)'!$BS130)","v":"n.d."},{"$f":"IF('[2]FISCAL(M)'!$AZ130=\"\",\"\",'[2]FISCAL(M)'!$AZ130)","v":"n.d."},{"$f":"IF('[2]FISCAL(M)'!$BJ130=\"\",\"\",'[2]FISCAL(M)'!$BJ130)","v":"n.d."},{"$f":"IF('[2]FISCAL(M)'!$BT130=\"\",\"\",'[2]FISCAL(M)'!$BT130)","v":"n.d."},{"$f":"IF('[3]MONE(M)'!$AO130=\"\",\"\",'[3]MONE(M)'!$AO130)","v":"n.d."},{"$f":"IF('[4]MONE(M)'!$AO130=\"\",\"\",'[4]MONE(M)'!$AO130)","v":"n.d."},{"$f":"IF('[5]MONE(M)'!$AO130=\"\",\"\",'[5]MONE(M)'!$AO130)","v":"n.d."},{"$f":"+'[1]MONE(M)'!$AO130","v":"n.d."},{"$f":"IF('[6]MONE(M)'!$AO130=\"\",\"\",'[6]MONE(M)'!$AO130)","v":"n.d."},{"$f":"IF('[7]MONE(M)'!$AO130=\"\",\"\",'[7]MONE(M)'!$AO130)","v":"n.d."},{"$f":"IF('[8]MONE(M)'!$AO130=\"\",\"\",'[8]MONE(M)'!$AO130)","v":"n.d."},"n.d.","n.d.","n.d.","n.d.","n.d.","n.d.","n.d.",{"$f":"IF('[2]FISCAL(M)'!$K130=\"\",\"\",'[2]FISCAL(M)'!$K130)","v":"n.d."},{"$f":"+'[2]REAL(A)'!$AO$20","v":"n.d."},"n.d.",{"$f":"IF('[2]FISCAL(M)'!$L130=\"\",\"\",'[2]FISCAL(M)'!$L130)","v":"n.d."},{"$f":"+'[2]REAL(A)'!$AP$20","v":"n.d."},"n.d.","n.d.","n.d.","n.d.","n.d.","n.d.","n.d.","n.d.","n.d.","n.d.","n.d.","n.d.","n.d.","n.d.","n.d.","n.d.","n.d."]
[2000,"febrero","2000-febrero",{"$f":"IF('[2]REAL IPC(M)'!$AL131=\"\",\"\",+'[2]REAL IPC(M)'!$AL131)","v":6.8030139935414402},{"$f":"IF('[2]REAL IPC(M)'!$BE131=\"\",\"\",+'[2]REAL IPC(M)'!$BE131)","v":6.6926206564916768},{"$f":"IF('[2]REAL IPC(M)'!$AM131=\"\",\"\",+'[2]REAL IPC(M)'!$AM131)","v":6.2436444986780471},{"$f":"IF('[2]REAL IPC(M)'!$BI131=\"\",\"\",+'[2]REAL IPC(M)'!$BI131)","v":6.1481980541019832},{"$f":"IF('[2]REAL IMAE(M)'!BJ131=\"\",\"\",'[2]REAL IMAE(M)'!BJ131)","v":"n.d."},{"$f":"IF('[2]REAL IMAE(M)'!BK131=\"\",\"\",'[2]REAL IMAE(M)'!BK131)","v":"n.d."},{"$f":"IF('[2]REAL IMAE(M)'!BN131=\"\",\"\",'[2]REAL IMAE(M)'!BN131)","v":"n.d."},{"$f":"IF('[2]REAL IMAE(M)'!BO131=\"\",\"\",'[2]REAL IMAE(M)'!BO131)","v":"n.d."},{"$f":"IF('[2]EXT RIN(M)'!$K131=\"\",\"\",'[2]EXT RIN(M)'!$K131)","v":"n.d."},"",{"$f":"IF('[2]EXT RIN(M)'!$L131=\"\",\"\",'[2]EXT RIN(M)'!$L131)","v":"n.d."},"",{"$f":"IF('[2]MONE(M)CARD'!EG131=\"\",\"\",'[2]MONE(M)CARD'!EG131)","v":"n.d."},{"$f":"IF('[2]MONE(M)CARD'!EK131=\"\",\"\",'[2]MONE(M)CARD'!EK131)","v":"n.d."},{"$f":"IF('[2]MONE(M)CARD'!EP131=\"\",\"\",'[2]MONE(M)CARD'!EP131)","v":"n.d."},{"$f":"IF('[2]MONE(M)CARD'!ES131=\"\",\"\",'[2]MONE(M)CARD'!ES131)","v":"n.d."},{"$f":"IF('[2]MONE(M)CARD'!EV131=\"\",\"\",'[2]MONE(M)CARD'!EV131)","v":"n.d."},{"$f":"IF('[2]MONE(M)CARD'!EZ131=\"\",\"\",'[2]MONE(M)CARD'!EZ131)","v":"n.d."},{"$f":"IF('[2]MONE(M)CAPARD'!FC131=\"\",\"\",'[2]MONE(M)CAPARD'!FC131)","v":"n.d."},{"$f":"IF('[2]MONE(M)CAPARD'!FG131=\"\",\"\",'[2]MONE(M)CAPARD'!FG131)","v":"n.d."},{"$f":"IF('[2]MONE(M)CAPARD'!FL131=\"\",\"\",'[2]MONE(M)CAPARD'!FL131)","v":"n.d."},{"$f":"IF('[2]MONE(M)CAPARD'!FO131=\"\",\"\",'[2]MONE(M)CAPARD'!FO131)","v":"n.d."},{"$f":"IF('[2]MONE(M)CAPARD'!FR131=\"\",\"\",'[2]MONE(M)CAPARD'!FR131)","v":"n.d."},{"$f":"IF('[2]MONE(M)CAPARD'!FV131=\"\",\"\",'[2]MONE(M)CAPARD'!FV131)","v":"n.d."},{"$f":"IF('[2]MONE(M)CARD'!FV131=\"\",\"\",'[2]MONE(M)CARD'!FV131)","v":""},{"$f":"IF('[2]MONE(M)CARD'!GD131=\"\",\"\",'[2]MONE(M)CARD'!GD131)","v":"n.d."},{"$f":"IF('[2]MONE(M)CARD'!GE131=\"\",\"\",'[2]MONE(M)CARD'!GE131)","v":"n.d."},"n.d.","n.d.","n.d.","n.d.","n.d.","n.d.","n.d.","n.d.",null,"n.d.","n.d.","n.d.","n.d.","n.d.",{"$f":"IF('[2]MONE(M)CAPARD'!GS131=\"\",\"\",'[2]MONE(M)CAPARD'!GS131)","v":"n.d."},{"$f":"IF('[2]MONE(M)CARD'!HA131=\"\",\"\",'[2]MONE(M)CAPARD'!HA131)","v":"n.d."},{"$f":"IF('[2]MONE(M)CAPARD'!HB131=\"\",\"\",'[2]MONE(M)CAPARD'!HB131)","v":"n.d."},"n.d.","n.d.","n.d.","n.d.","n.d.","n.d.","n.d.","n.d.","n.d.","n.d.","n.d.","n.d.","n.d.","n.d.",{"$f":"IF('[2]MONE(M)CAPARD'!AS131=\"\",\"\",'[2]MONE(M)CAPARD'!AS131)","v":"n.d."},{"$f":"IF('[2]MONE(M)CAPARD'!AT131=\"\",\"\",'[2]MONE(M)CAPARD'!AT131)","v":"n.a."},{"$f":"IF('[2]MONE(M)CAPARD'!AU131=\"\",\"\",'[2]MONE(M)CAPARD'!AU131)","v":"n.d."},{"$f":"IF('[2]MONE(M)CAPARD'!AV131=\"\",\"\",'[2]MONE(M)CAPARD'!AV131)","v":"n.d."},{"$f":"IF('[2]MONE(M)CAPARD'!AW131=\"\",\"\",'[2]MONE(M)CAPARD'!AW131)","v":"n.a."},{"$f":"IF('[2]MONE(M)CAPARD'!AX131=\"\",\"\",'[2]MONE(M)CAPARD'!AX131)","v":"n.d."},{"$f":"IF('[2]MONE(M)CAPARD'!AY131=\"\",\"\",'[2]MONE(M)CAPARD'!AY131)","v":"n.a."},{"$f":"IF('[2]FISCAL(M)'!$K131=\"\",\"\",'[2]FISCAL(M)'!$K131)","v":"n.d."},{"$f":"IF('[2]FISCAL(M)'!$L131=\"\",\"\",'[2]FISCAL(M)'!$L131)","v":"n.d."},{"$f":"IF('[2]FISCAL(M)'!$AY131=\"\",\"\",'[2]FISCAL(M)'!$AY131)","v":"n.d."},{"$f":"IF('[2]FISCAL(M)'!$BI131=\"\",\"\",'[2]FISCAL(M)'!$BI131)","v":"n.d."},{"$f":"IF('[2]FISCAL(M)'!$BS131=\"\",\"\",'[2]FISCAL(M)'!$BS131)","v":"n.d."},{"$f":"IF('[2]FISCAL(M)'!$AZ131=\"\",\"\",'[2]FISCAL(M)'!$AZ131)","v":"n.d."},{"$f":"IF('[2]FISCAL(M)'!$BJ131=\"\",\"\",'[2]FISCAL(M)'!$BJ131)","v":"n.d."},{"$f":"IF('[2]FISCAL(M)'!$BT131=\"\",\"\",'[2]FISCAL(M)'!$BT131)","v":"n.d."},{"$f":"IF('[3]MONE(M)'!$AO131=\"\",\"\",'[3]MONE(M)'!$AO131)","v":"n.d."},{"$f":"IF('[4]MONE(M)'!$AO131=\"\",\"\",'[4]MONE(M)'!$AO131)","v":"n.d."},{"$f":"IF('[5]MONE(M)'!$AO131=\"\",\"\",'[5]MONE(M)'!$AO131)","v":"n.d."},{"$f":"+'[1]MONE(M)'!$AO131","v":"n.d."},{"$f":"IF('[6]MONE(M)'!$AO131=\"\",\"\",'[6]MONE(M)'!$AO131)","v":"n.d."},{"$f":"IF('[7]MONE(M)'!$AO131=\"\",\"\",'[7]MONE(M)'!$AO131)","v":"n.d."},{"$f":"IF('[8]MONE(M)'!$AO131=\"\",\"\",'[8]MONE(M)'!$AO131)","v":"n.d."},"n.d.","n.d.","n.d.","n.d.","n.d.","n.d.","n.d.",{"$f":"IF('[2]FISCAL(M)'!$K131=\"\",\"\",'[2]FISCAL(M)'!$K131)","v":"n.d."},{"$f":"+'[2]REAL(A)'!$AO$20","v":"n.d."},"n.d.",{"$f":"IF('[2]FISCAL(M)'!$L131=\"\",\"\",'[2]FISCAL(M)'!$L131)","v":"n.d."},{"$f":"+'[2]REAL(A)'!$AP$20","v":"n.d."},"n.d.","n.d.","n.d.","n.d.","n.d.","n.d.","n.d.","n.d.","n.d.","n.d.","n.d.","n.d.","n.d.","n.d.","n.d.","n.d.","n.d."]
[2000,"marzo","2000-marzo",{"$f":"IF('[2]REAL IPC(M)'!$AL132=\"\",\"\",+'[2]REAL IPC(M)'!$AL132)","v":7.6873245519326172},{"$f":"IF('[2]REAL IPC(M)'!$BE132=\"\",\"\",+'[2]REAL IPC(M)'!$BE132)","v":6.7066595926745354},{"$f":"IF('[2]REAL IPC(M)'!$AM132=\"\",\"\",+'[2]REAL IPC(M)'!$AM132)","v":7.0554649265905489},{"$f":"IF('[2]REAL IPC(M)'!$BI132=\"\",\"\",+'[2]REAL IPC(M)'!$BI132)","v":6.1618121216008959},{"$f":"IF('[2]REAL IMAE(M)'!BJ132=\"\",\"\",'[2]REAL IMAE(M)'!BJ132)","v":"n.d."},{"$f":"IF('[2]REAL IMAE(M)'!BK132=\"\",\"\",'[2]REAL IMAE(M)'!BK132)","v":"n.d."},{"$f":"IF('[2]REAL IMAE(M)'!BN132=\"\",\"\",'[2]REAL IMAE(M)'!BN132)","v":"n.d."},{"$f":"IF('[2]REAL IMAE(M)'!BO132=\"\",\"\",'[2]REAL IMAE(M)'!BO132)","v":"n.d."},{"$f":"IF('[2]EXT RIN(M)'!$K132=\"\",\"\",'[2]EXT RIN(M)'!$K132)","v":"n.d."},"",{"$f":"IF('[2]EXT RIN(M)'!$L132=\"\",\"\",'[2]EXT RIN(M)'!$L132)","v":"n.d."},"",{"$f":"IF('[2]MONE(M)CARD'!EG132=\"\",\"\",'[2]MONE(M)CARD'!EG132)","v":"n.d."},{"$f":"IF('[2]MONE(M)CARD'!EK132=\"\",\"\",'[2]MONE(M)CARD'!EK132)","v":"n.d."},{"$f":"IF('[2]MONE(M)CARD'!EP132=\"\",\"\",'[2]MONE(M)CARD'!EP132)","v":"n.d."},{"$f":"IF('[2]MONE(M)CARD'!ES132=\"\",\"\",'[2]MONE(M)CARD'!ES132)","v":"n.d."},{"$f":"IF('[2]MONE(M)CARD'!EV132=\"\",\"\",'[2]MONE(M)CARD'!EV132)","v":"n.d."},{"$f":"IF('[2]MONE(M)CARD'!EZ132=\"\",\"\",'[2]MONE(M)CARD'!EZ132)","v":"n.d."},{"$f":"IF('[2]MONE(M)CAPARD'!FC132=\"\",\"\",'[2]MONE(M)CAPARD'!FC132)","v":"n.d."},{"$f":"IF('[2]MONE(M)CAPARD'!FG132=\"\",\"\",'[2]MONE(M)CAPARD'!FG132)","v":"n.d."},{"$f":"IF('[2]MONE(M)CAPARD'!FL132=\"\",\"\",'[2]MONE(M)CAPARD'!FL132)","v":"n.d."},{"$f":"IF('[2]MONE(M)CAPARD'!FO132=\"\",\"\",'[2]MONE(M)CAPARD'!FO132)","v":"n.d."},{"$f":"IF('[2]MONE(M)CAPARD'!FR132=\"\",\"\",'[2]MONE(M)CAPARD'!FR132)","v":"n.d."},{"$f":"IF('[2]MONE(M)CAPARD'!FV132=\"\",\"\",'[2]MONE(M)CAPARD'!FV132)","v":"n.d."},{"$f":"IF('[2]MONE(M)CARD'!FV132=\"\",\"\",'[2]MONE(M)CARD'!FV132)","v":""},{"$f":"IF('[2]MONE(M)CARD'!GD132=\"\",\"\",'[2]MONE(M)CARD'!GD132)","v":"n.d."},{"$f":"IF('[2]MONE(M)CARD'!GE132=\"\",\"\",'[2]MONE(M)CARD'!GE132)","v":"n.d."},"n.d.","n.d.","n.d.","n.d.","n.d.","n.d.","n.d.","n.d.",null,"n.d.","n.d.","n.d.","n.d.","n.d.",{"$f":"IF('[2]MONE(M)CAPARD'!GS132=\"\",\"\",'[2]MONE(M)CAPARD'!GS132)","v":"n.d."},{"$f":"IF('[2]MONE(M)CARD'!HA132=\"\",\"\",'[2]MONE(M)CAPARD'!HA132)","v":"n.d."},{"$f":"IF('[2]MONE(M)CAPARD'!HB132=\"\",\"\",'[2]MONE(M)CAPARD'!HB132)","v":"n.d."},"n.d.","n.d.","n.d.","n.d.","n.d.","n.d.","n.d.","n.d.","n.d.","n.d.","n.d.","n.d.","n.d.","n.d.",{"$f":"IF('[2]MONE(M)CAPARD'!AS132=\"\",\"\",'[2]MONE(M)CAPARD'!AS132)","v":"n.d."},{"$f":"IF('[2]MONE(M)CAPARD'!AT132=\"\",\"\",'[2]MONE(M)CAPARD'!AT132)","v":"n.a."},{"$f":"IF('[2]MONE(M)CAPARD'!AU132=\"\",\"\",'[2]MONE(M)CAPARD'!AU132)","v":"n.d."},{"$f":"IF('[2]MONE(M)CAPARD'!AV132=\"\",\"\",'[2]MONE(M)CAPARD'!AV132)","v":"n.d."},{"$f":"IF('[2]MONE(M)CAPARD'!AW132=\"\",\"\",'[2]MONE(M)CAPARD'!AW132)","v":"n.a."},{"$f":"IF('[2]MONE(M)CAPARD'!AX132=\"\",\"\",'[2]MONE(M)CAPARD'!AX132)","v":"n.d."},{"$f":"IF('[2]MONE(M)CAPARD'!AY132=\"\",\"\",'[2]MONE(M)CAPARD'!AY132)","v":"n.a."},{"$f":"IF('[2]FISCAL(M)'!$K132=\"\",\"\",'[2]FISCAL(M)'!$K132)","v":"n.d."},{"$f":"IF('[2]FISCAL(M)'!$L132=\"\",\"\",'[2]FISCAL(M)'!$L132)","v":"n.d."},{"$f":"IF('[2]FISCAL(M)'!$AY132=\"\",\"\",'[2]FISCAL(M)'!$AY132)","v":"n.d."},{"$f":"IF('[2]FISCAL(M)'!$BI132=\"\",\"\",'[2]FISCAL(M)'!$BI132)","v":"n.d."},{"$f":"IF('[2]FISCAL(M)'!$BS132=\"\",\"\",'[2]FISCAL(M)'!$BS132)","v":"n.d."},{"$f":"IF('[2]FISCAL(M)'!$AZ132=\"\",\"\",'[2]FISCAL(M)'!$AZ132)","v":"n.d."},{"$f":"IF('[2]FISCAL(M)'!$BJ132=\"\",\"\",'[2]FISCAL(M)'!$BJ132)","v":"n.d."},{"$f":"IF('[2]FISCAL(M)'!$BT132=\"\",\"\",'[2]FISCAL(M)'!$BT132)","v":"n.d."},{"$f":"IF('[3]MONE(M)'!$AO132=\"\",\"\",'[3]MONE(M)'!$AO132)","v":"n.d."},{"$f":"IF('[4]MONE(M)'!$AO132=\"\",\"\",'[4]MONE(M)'!$AO132)","v":"n.d."},{"$f":"IF('[5]MONE(M)'!$AO132=\"\",\"\",'[5]MONE(M)'!$AO132)","v":"n.d."},{"$f":"+'[1]MONE(M)'!$AO132","v":"n.d."},{"$f":"IF('[6]MONE(M)'!$AO132=\"\",\"\",'[6]MONE(M)'!$AO132)","v":"n.d."},{"$f":"IF('[7]MONE(M)'!$AO132=\"\",\"\",'[7]MONE(M)'!$AO132)","v":"n.d."},{"$f":"IF('[8]MONE(M)'!$AO132=\"\",\"\",'[8]MONE(M)'!$AO132)","v":"n.d."},"n.d.","n.d.","n.d.","n.d.","n.d.","n.d.","n.d.",{"$f":"IF('[2]FISCAL(M)'!$K132=\"\",\"\",'[2]FISCAL(M)'!$K132)","v":"n.d."},{"$f":"+'[2]REAL(A)'!$AO$20","v":"n.d."},"n.d.",{"$f":"IF('[2]FISCAL(M)'!$L132=\"\",\"\",'[2]FISCAL(M)'!$L132)","v":"n.d."},{"$f":"+'[2]REAL(A)'!$AP$20","v":"n.d."},"n.d.","n.d.","n.d.","n.d.","n.d.","n.d.","n.d.","n.d.","n.d.","n.d.","n.d.","n.d.","n.d.","n.d.","n.d.","n.d.","n.d."]
[2000,"abril","2000-abril",{"$f":"IF('[2]REAL IPC(M)'!$AL133=\"\",\"\",+'[2]REAL IPC(M)'!$AL133)","v":8.0025884383088997},{"$f":"IF('[2]REAL IPC(M)'!$BE133=\"\",\"\",+'[2]REAL IPC(M)'!$BE133)","v":6.7253931852535143},{"$f":"IF('[2]REAL IPC(M)'!$AM133=\"\",\"\",+'[2]REAL IPC(M)'!$AM133)","v":7.3334691383173611},{"$f":"IF('[2]REAL IPC(M)'!$BI133=\"\",\"\",+'[2]REAL IPC(M)'!$BI133)","v":6.1787797961339486},{"$f":"IF('[2]REAL IMAE(M)'!BJ133=\"\",\"\",'[2]REAL IMAE(M)'!BJ133)","v":"n.d."},{"$f":"IF('[2]REAL IMAE(M)'!BK133=\"\",\"\",'[2]REAL IMAE(M)'!BK133)","v":"n.d."},{"$f":"IF('[2]REAL IMAE(M)'!BN133=\"\",\"\",'[2]REAL IMAE(M)'!BN133)","v":"n.d."},{"$f":"IF('[2]REAL IMAE(M)'!BO133=\"\",\"\",'[2]REAL IMAE(M)'!BO133)","v":"n.d."},{"$f":"IF('[2]EXT RIN(M)'!$K133=\"\",\"\",'[2]EXT RIN(M)'!$K133)","v":"n.d."},"",{"$f":"IF('[2]EXT RIN(M)'!$L133=\"\",\"\",'[2]EXT RIN(M)'!$L133)","v":"n.d."},"",{"$f":"IF('[2]MONE(M)CARD'!EG133=\"\",\"\",'[2]MONE(M)CARD'!EG133)","v":"n.d."},{"$f":"IF('[2]MONE(M)CARD'!EK133=\"\",\"\",'[2]MONE(M)CARD'!EK133)","v":"n.d."},{"$f":"IF('[2]MONE(M)CARD'!EP133=\"\",\"\",'[2]MONE(M)CARD'!EP133)","v":"n.d."},{"$f":"IF('[2]MONE(M)CARD'!ES133=\"\",\"\",'[2]MONE(M)CARD'!ES133)","v":"n.d."},{"$f":"IF('[2]MONE(M)CARD'!EV133=\"\",\"\",'[2]MONE(M)CARD'!EV133)","v":"n.d."},{"$f":"IF('[2]MONE(M)CARD'!EZ133=\"\",\"\",'[2]MONE(M)CARD'!EZ133)","v":"n.d."},{"$f":"IF('[2]MONE(M)CAPARD'!FC133=\"\",\"\",'[2]MONE(M)CAPARD'!FC133)","v":"n.d."},{"$f":"IF('[2]MONE(M)CAPARD'!FG133=\"\",\"\",'[2]MONE(M)CAPARD'!FG133)","v":"n.d."},{"$f":"IF('[2]MONE(M)CAPARD'!FL133=\"\",\"\",'[2]MONE(M)CAPARD'!FL133)","v":"n.d."},{"$f":"IF('[2]MONE(M)CAPARD'!FO133=\"\",\"\",'[2]MONE(M)CAPARD'!FO133)","v":"n.d."},{"$f":"IF('[2]MONE(M)CAPARD'!FR133=\"\",\"\",'[2]MONE(M)CAPARD'!FR133)","v":"n.d."},{"$f":"IF('[2]MONE(M)CAPARD'!FV133=\"\",\"\",'[2]MONE(M)CAPARD'!FV133)","v":"n.d."},{"$f":"IF('[2]MONE(M)CARD'!FV133=\"\",\"\",'[2]MONE(M)CARD'!FV133)","v":""},{"$f":"IF('[2]MONE(M)CARD'!GD133=\"\",\"\",'[2]MONE(M)CARD'!GD133)","v":"n.d."},{"$f":"IF('[2]MONE(M)CARD'!GE133=\"\",\"\",'[2]MONE(M)CARD'!GE133)","v":"n.d."},"n.d.","n.d.","n.d.","n.d.","n.d.","n.d.","n.d.","n.d.",null,"n.d.","n.d.","n.d.","n.d.","n.d.",{"$f":"IF('[2]MONE(M)CAPARD'!GS133=\"\",\"\",'[2]MONE(M)CAPARD'!GS133)","v":"n.d."},{"$f":"IF('[2]MONE(M)CARD'!HA133=\"\",\"\",'[2]MONE(M)CAPARD'!HA133)","v":"n.d."},{"$f":"IF('[2]MONE(M)CAPARD'!HB133=\"\",\"\",'[2]MONE(M)CAPARD'!HB133)","v":"n.d."},"n.d.","n.d.","n.d.","n.d.","n.d.","n.d.","n.d.","n.d.","n.d.","n.d.","n.d.","n.d.","n.d.","n.d.",{"$f":"IF('[2]MONE(M)CAPARD'!AS133=\"\",\"\",'[2]MONE(M)CAPARD'!AS133)","v":"n.d."},{"$f":"IF('[2]MONE(M)CAPARD'!AT133=\"\",\"\",'[2]MONE(M)CAPARD'!AT133)","v":"n.a."},{"$f":"IF('[2]MONE(M)CAPARD'!AU133=\"\",\"\",'[2]MONE(M)CAPARD'!AU133)","v":"n.d."},{"$f":"IF('[2]MONE(M)CAPARD'!AV133=\"\",\"\",'[2]MONE(M)CAPARD'!AV133)","v":"n.d."},{"$f":"IF('[2]MONE(M)CAPARD'!AW133=\"\",\"\",'[2]MONE(M)CAPARD'!AW133)","v":"n.a."},{"$f":"IF('[2]MONE(M)CAPARD'!AX133=\"\",\"\",'[2]MONE(M)CAPARD'!AX133)","v":"n.d."},{"$f":"IF('[2]MONE(M)CAPARD'!AY133=\"\",\"\",'[2]MONE(M)CAPARD'!AY133)","v":"n.a."},{"$f":"IF('[2]FISCAL(M)'!$K133=\"\",\"\",'[2]FISCAL(M)'!$K133)","v":"n.d."},{"$f":"IF('[2]FISCAL(M)'!$L133=\"\",\"\",'[2]FISCAL(M)'!$L133)","v":"n.d."},{"$f":"IF('[2]FISCAL(M)'!$AY133=\"\",\"\",'[2]FISCAL(M)'!$AY133)","v":"n.d."},{"$f":"IF('[2]FISCAL(M)'!$BI133=\"\",\"\",'[2]FISCAL(M)'!$BI133)","v":"n.d."},{"$f":"IF('[2]FISCAL(M)'!$BS133=\"\",\"\",'[2]FISCAL(M)'!$BS133)","v":"n.d."},{"$f":"IF('[2]FISCAL(M)'!$AZ133=\"\",\"\",'[2]FISCAL(M)'!$AZ133)","v":"n.d."},{"$f":"IF('[2]FISCAL(M)'!$BJ133=\"\",\"\",'[2]FISCAL(M)'!$BJ133)","v":"n.d."},{"$f":"IF('[2]FISCAL(M)'!$BT133=\"\",\"\",'[2]FISCAL(M)'!$BT133)","v":"n.d."},{"$f":"IF('[3]MONE(M)'!$AO133=\"\",\"\",'[3]MONE(M)'!$AO133)","v":"n.d."},{"$f":"IF('[4]MONE(M)'!$AO133=\"\",\"\",'[4]MONE(M)'!$AO133)","v":"n.d."},{"$f":"IF('[5]MONE(M)'!$AO133=\"\",\"\",'[5]MONE(M)'!$AO133)","v":"n.d."},{"$f":"+'[1]MONE(M)'!$AO133","v":"n.d."},{"$f":"IF('[6]MONE(M)'!$AO133=\"\",\"\",'[6]MONE(M)'!$AO133)","v":"n.d."},{"$f":"IF('[7]MONE(M)'!$AO133=\"\",\"\",'[7]MONE(M)'!$AO133)","v":"n.d."},{"$f":"IF('[8]MONE(M)'!$AO133=\"\",\"\",'[8]MONE(M)'!$AO133)","v":"n.d."},"n.d.","n.d.","n.d.","n.d.","n.d.","n.d.","n.d.",{"$f":"IF('[2]FISCAL(M)'!$K133=\"\",\"\",'[2]FISCAL(M)'!$K133)","v":"n.d."},{"$f":"+'[2]REAL(A)'!$AO$20","v":"n.d."},"n.d.",{"$f":"IF('[2]FISCAL(M)'!$L133=\"\",\"\",'[2]FISCAL(M)'!$L133)","v":"n.d."},{"$f":"+'[2]REAL(A)'!$AP$20","v":"n.d."},"n.d.","n.d.","n.d.","n.d.","n.d.","n.d.","n.d.","n.d.","n.d.","n.d.","n.d.","n.d.","n.d.","n.d.","n.d.","n.d.","n.d."]
[2000,"mayo ","2000-mayo ",{"$f":"IF('[2]REAL IPC(M)'!$AL134=\"\",\"\",+'[2]REAL IPC(M)'!$AL134)","v":7.5086058519793442},{"$f":"IF('[2]REAL IPC(M)'!$BE134=\"\",\"\",+'[2]REAL IPC(M)'!$BE134)","v":6.7486201347395802},{"$f":"IF('[2]REAL IPC(M)'!$AM134=\"\",\"\",+'[2]REAL IPC(M)'!$AM134)","v":6.9119739784509138},{"$f":"IF('[2]REAL IPC(M)'!$BI134=\"\",\"\",+'[2]REAL IPC(M)'!$BI134)","v":6.1989684712660864},{"$f":"IF('[2]REAL IMAE(M)'!BJ134=\"\",\"\",'[2]REAL IMAE(M)'!BJ134)","v":"n.d."},{"$f":"IF('[2]REAL IMAE(M)'!BK134=\"\",\"\",'[2]REAL IMAE(M)'!BK134)","v":"n.d."},{"$f":"IF('[2]REAL IMAE(M)'!BN134=\"\",\"\",'[2]REAL IMAE(M)'!BN134)","v":"n.d."},{"$f":"IF('[2]REAL IMAE(M)'!BO134=\"\",\"\",'[2]REAL IMAE(M)'!BO134)","v":"n.d."},{"$f":"IF('[2]EXT RIN(M)'!$K134=\"\",\"\",'[2]EXT RIN(M)'!$K134)","v":"n.d."},"",{"$f":"IF('[2]EXT RIN(M)'!$L134=\"\",\"\",'[2]EXT RIN(M)'!$L134)","v":"n.d."},"",{"$f":"IF('[2]MONE(M)CARD'!EG134=\"\",\"\",'[2]MONE(M)CARD'!EG134)","v":"n.d."},{"$f":"IF('[2]MONE(M)CARD'!EK134=\"\",\"\",'[2]MONE(M)CARD'!EK134)","v":"n.d."},{"$f":"IF('[2]MONE(M)CARD'!EP134=\"\",\"\",'[2]MONE(M)CARD'!EP134)","v":"n.d."},{"$f":"IF('[2]MONE(M)CARD'!ES134=\"\",\"\",'[2]MONE(M)CARD'!ES134)","v":"n.d."},{"$f":"IF('[2]MONE(M)CARD'!EV134=\"\",\"\",'[2]MONE(M)CARD'!EV134)","v":"n.d."},{"$f":"IF('[2]MONE(M)CARD'!EZ134=\"\",\"\",'[2]MONE(M)CARD'!EZ134)","v":"n.d."},{"$f":"IF('[2]MONE(M)CAPARD'!FC134=\"\",\"\",'[2]MONE(M)CAPARD'!FC134)","v":"n.d."},{"$f":"IF('[2]MONE(M)CAPARD'!FG134=\"\",\"\",'[2]MONE(M)CAPARD'!FG134)","v":"n.d."},{"$f":"IF('[2]MONE(M)CAPARD'!FL134=\"\",\"\",'[2]MONE(M)CAPARD'!FL134)","v":"n.d."},{"$f":"IF('[2]MONE(M)CAPARD'!FO134=\"\",\"\",'[2]MONE(M)CAPARD'!FO134)","v":"n.d."},{"$f":"IF('[2]MONE(M)CAPARD'!FR134=\"\",\"\",'[2]MONE(M)CAPARD'!FR134)","v":"n.d."},{"$f":"IF('[2]MONE(M)CAPARD'!FV134=\"\",\"\",'[2]MONE(M)CAPARD'!FV134)","v":"n.d."},{"$f":"IF('[2]MONE(M)CARD'!FV134=\"\",\"\",'[2]MONE(M)CARD'!FV134)","v":""},{"$f":"IF('[2]MONE(M)CARD'!GD134=\"\",\"\",'[2]MONE(M)CARD'!GD134)","v":"n.d."},{"$f":"IF('[2]MONE(M)CARD'!GE134=\"\",\"\",'[2]MONE(M)CARD'!GE134)","v":"n.d."},"n.d.","n.d.","n.d.","n.d.","n.d.","n.d.","n.d.","n.d.",null,"n.d.","n.d.","n.d.","n.d.","n.d.",{"$f":"IF('[2]MONE(M)CAPARD'!GS134=\"\",\"\",'[2]MONE(M)CAPARD'!GS134)","v":"n.d."},{"$f":"IF('[2]MONE(M)CARD'!HA134=\"\",\"\",'[2]MONE(M)CAPARD'!HA134)","v":"n.d."},{"$f":"IF('[2]MONE(M)CAPARD'!HB134=\"\",\"\",'[2]MONE(M)CAPARD'!HB134)","v":"n.d."},"n.d.","n.d.","n.d.","n.d.","n.d.","n.d.","n.d.","n.d.","n.d.","n.d.","n.d.","n.d.","n.d.","n.d.",{"$f":"IF('[2]MONE(M)CAPARD'!AS134=\"\",\"\",'[2]MONE(M)CAPARD'!AS134)","v":"n.d."},{"$f":"IF('[2]MONE(M)CAPARD'!AT134=\"\",\"\",'[2]MONE(M)CAPARD'!AT134)","v":"n.a."},{"$f":"IF('[2]MONE(M)CAPARD'!AU134=\"\",\"\",'[2]MONE(M)CAPARD'!AU134)","v":"n.d."},{"$f":"IF('[2]MONE(M)CAPARD'!AV134=\"\",\"\",'[2]MONE(M)CAPARD'!AV134)","v":"n.d."},{"$f":"IF('[2]MONE(M)CAPARD'!AW134=\"\",\"\",'[2]MONE(M)CAPARD'!AW134)","v":"n.a."},{"$f":"IF('[2]MONE(M)CAPARD'!AX134=\"\",\"\",'[2]MONE(M)CAPARD'!AX134)","v":"n.d."},{"$f":"IF('[2]MONE(M)CAPARD'!AY134=\"\",\"\",'[2]MONE(M)CAPARD'!AY134)","v":"n.a."},{"$f":"IF('[2]FISCAL(M)'!$K134=\"\",\"\",'[2]FISCAL(M)'!$K134)","v":"n.d."},{"$f":"IF('[2]FISCAL(M)'!$L134=\"\",\"\",'[2]FISCAL(M)'!$L134)","v":"n.d."},{"$f":"IF('[2]FISCAL(M)'!$AY134=\"\",\"\",'[2]FISCAL(M)'!$AY134)","v":"n.d."},{"$f":"IF('[2]FISCAL(M)'!$BI134=\"\",\"\",'[2]FISCAL(M)'!$BI134)","v":"n.d."},{"$f":"IF('[2]FISCAL(M)'!$BS134=\"\",\"\",'[2]FISCAL(M)'!$BS134)","v":"n.d."},{"$f":"IF('[2]FISCAL(M)'!$AZ134=\"\",\"\",'[2]FISCAL(M)'!$AZ134)","v":"n.d."},{"$f":"IF('[2]FISCAL(M)'!$BJ134=\"\",\"\",'[2]FISCAL(M)'!$BJ134)","v":"n.d."},{"$f":"IF('[2]FISCAL(M)'!$BT134=\"\",\"\",'[2]FISCAL(M)'!$BT134)","v":"n.d."},{"$f":"IF('[3]MONE(M)'!$AO134=\"\",\"\",'[3]MONE(M)'!$AO134)","v":"n.d."},{"$f":"IF('[4]MONE(M)'!$AO134=\"\",\"\",'[4]MONE(M)'!$AO134)","v":"n.d."},{"$f":"IF('[5]MONE(M)'!$AO134=\"\",\"\",'[5]MONE(M)'!$AO134)","v":"n.d."},{"$f":"+'[1]MONE(M)'!$AO134","v":"n.d."},{"$f":"IF('[6]MONE(M)'!$AO134=\"\",\"\",'[6]MONE(M)'!$AO134)","v":"n.d."},{"$f":"IF('[7]MONE(M)'!$AO134=\"\",\"\",'[7]MONE(M)'!$AO134)","v":"n.d."},{"$f":"IF('[8]MONE(M)'!$AO134=\"\",\"\",'[8]MONE(M)'!$AO134)","v":"n.d."},"n.d.","n.d.","n.d.","n.d.","n.d.","n.d.","n.d.",{"$f":"IF('[2]FISCAL(M)'!$K134=\"\",\"\",'[2]FISCAL(M)'!$K134)","v":"n.d."},{"$f":"+'[2]REAL(A)'!$AO$20","v":"n.d."},"n.d.",{"$f":"IF('[2]FISCAL(M)'!$L134=\"\",\"\",'[2]FISCAL(M)'!$L134)","v":"n.d."},{"$f":"+'[2]REAL(A)'!$AP$20","v":"n.d."},"n.d.","n.d.","n.d.","n.d.","n.d.","n.d.","n.d.","n.d.","n.d.","n.d.","n.d.","n.d.","n.d.","n.d.","n.d.","n.d.","n.d."]
[2000,"junio ","2000-junio ",{"$f":"IF('[2]REAL IPC(M)'!$AL135=\"\",\"\",+'[2]REAL IPC(M)'!$AL135)","v":8.0068507814172527},{"$f":"IF('[2]REAL IPC(M)'!$BE135=\"\",\"\",+'[2]REAL IPC(M)'!$BE135)","v":6.7762082903009002},{"$f":"IF('[2]REAL IPC(M)'!$AM135=\"\",\"\",+'[2]REAL IPC(M)'!$AM135)","v":7.3639490188144974},{"$f":"IF('[2]REAL IPC(M)'!$BI135=\"\",\"\",+'[2]REAL IPC(M)'!$BI135)","v":6.2223303307592515},{"$f":"IF('[2]REAL IMAE(M)'!BJ135=\"\",\"\",'[2]REAL IMAE(M)'!BJ135)","v":"n.d."},{"$f":"IF('[2]REAL IMAE(M)'!BK135=\"\",\"\",'[2]REAL IMAE(M)'!BK135)","v":"n.d."},{"$f":"IF('[2]REAL IMAE(M)'!BN135=\"\",\"\",'[2]REAL IMAE(M)'!BN135)","v":"n.d."},{"$f":"IF('[2]REAL IMAE(M)'!BO135=\"\",\"\",'[2]REAL IMAE(M)'!BO135)","v":"n.d."},{"$f":"IF('[2]EXT RIN(M)'!$K135=\"\",\"\",'[2]EXT RIN(M)'!$K135)","v":"n.d."},"",{"$f":"IF('[2]EXT RIN(M)'!$L135=\"\",\"\",'[2]EXT RIN(M)'!$L135)","v":"n.d."},"",{"$f":"IF('[2]MONE(M)CARD'!EG135=\"\",\"\",'[2]MONE(M)CARD'!EG135)","v":"n.d."},{"$f":"IF('[2]MONE(M)CARD'!EK135=\"\",\"\",'[2]MONE(M)CARD'!EK135)","v":"n.d."},{"$f":"IF('[2]MONE(M)CARD'!EP135=\"\",\"\",'[2]MONE(M)CARD'!EP135)","v":"n.d."},{"$f":"IF('[2]MONE(M)CARD'!ES135=\"\",\"\",'[2]MONE(M)CARD'!ES135)","v":"n.d."},{"$f":"IF('[2]MONE(M)CARD'!EV135=\"\",\"\",'[2]MONE(M)CARD'!EV135)","v":"n.d."},{"$f":"IF('[2]MONE(M)CARD'!EZ135=\"\",\"\",'[2]MONE(M)CARD'!EZ135)","v":"n.d."},{"$f":"IF('[2]MONE(M)CAPARD'!FC135=\"\",\"\",'[2]MONE(M)CAPARD'!FC135)","v":"n.d."},{"$f":"IF('[2]MONE(M)CAPARD'!FG135=\"\",\"\",'[2]MONE(M)CAPARD'!FG135)","v":"n.d."},{"$f":"IF('[2]MONE(M)CAPARD'!FL135=\"\",\"\",'[2]MONE(M)CAPARD'!FL135)","v":"n.d."},{"$f":"IF('[2]MONE(M)CAPARD'!FO135=\"\",\"\",'[2]MONE(M)CAPARD'!FO135)","v":"n.d."},{"$f":"IF('[2]MONE(M)CAPARD'!FR135=\"\",\"\",'[2]MONE(M)CAPARD'!FR135)","v":"n.d."},{"$f":"IF('[2]MONE(M)CAPARD'!FV135=\"\",\"\",'[2]MONE(M)CAPARD'!FV135)","v":"n.d."},{"$f":"IF('[2]MONE(M)CARD'!FV135=\"\",\"\",'[2]MONE(M)CARD'!FV135)","v":""},{"$f":"IF('[2]MONE(M)CARD'!GD135=\"\",\"\",'[2]MONE(M)CARD'!GD135)","v":"n.d."},{"$f":"IF('[2]MONE(M)CARD'!GE135=\"\",\"\",'[2]MONE(M)CARD'!GE135)","v":"n.d."},"n.d.","n.d.","n.d.","n.d.","n.d.","n.d.","n.d.","n.d.",null,"n.d.","n.d.","n.d.","n.d.","n.d.",{"$f":"IF('[2]MONE(M)CAPARD'!GS135=\"\",\"\",'[2]MONE(M)CAPARD'!GS135)","v":"n.d."},{"$f":"IF('[2]MONE(M)CARD'!HA135=\"\",\"\",'[2]MONE(M)CAPARD'!HA135)","v":"n.d."},{"$f":"IF('[2]MONE(M)CAPARD'!HB135=\"\",\"\",'[2]MONE(M)CAPARD'!HB135)","v":"n.d."},"n.d.","n.d.","n.d.","n.d.","n.d.","n.d.","n.d.","n.d.","n.d.","n.d.","n.d.","n.d.","n.d.","n.d.",{"$f":"IF('[2]MONE(M)CAPARD'!AS135=\"\",\"\",'[2]MONE(M)CAPARD'!AS135)","v":"n.d."},{"$f":"IF('[2]MONE(M)CAPARD'!AT135=\"\",\"\",'[2]MONE(M)CAPARD'!AT135)","v":"n.a."},{"$f":"IF('[2]MONE(M)CAPARD'!AU135=\"\",\"\",'[2]MONE(M)CAPARD'!AU135)","v":"n.d."},{"$f":"IF('[2]MONE(M)CAPARD'!AV135=\"\",\"\",'[2]MONE(M)CAPARD'!AV135)","v":"n.d."},{"$f":"IF('[2]MONE(M)CAPARD'!AW135=\"\",\"\",'[2]MONE(M)CAPARD'!AW135)","v":"n.a."},{"$f":"IF('[2]MONE(M)CAPARD'!AX135=\"\",\"\",'[2]MONE(M)CAPARD'!AX135)","v":"n.d."},{"$f":"IF('[2]MONE(M)CAPARD'!AY135=\"\",\"\",'[2]MONE(M)CAPARD'!AY135)","v":"n.a."},{"$f":"IF('[2]FISCAL(M)'!$K135=\"\",\"\",'[2]FISCAL(M)'!$K135)","v":"n.d."},{"$f":"IF('[2]FISCAL(M)'!$L135=\"\",\"\",'[2]FISCAL(M)'!$L135)","v":"n.d."},{"$f":"IF('[2]FISCAL(M)'!$AY135=\"\",\"\",'[2]FISCAL(M)'!$AY135)","v":"n.d."},{"$f":"IF('[2]FISCAL(M)'!$BI135=\"\",\"\",'[2]FISCAL(M)'!$BI135)","v":"n.d."},{"$f":"IF('[2]FISCAL(M)'!$BS135=\"\",\"\",'[2]FISCAL(M)'!$BS135)","v":"n.d."},{"$f":"IF('[2]FISCAL(M)'!$AZ135=\"\",\"\",'[2]FISCAL(M)'!$AZ135)","v":"n.d."},{"$f":"IF('[2]FISCAL(M)'!$BJ135=\"\",\"\",'[2]FISCAL(M)'!$BJ135)","v":"n.d."},{"$f":"IF('[2]FISCAL(M)'!$BT135=\"\",\"\",'[2]FISCAL(M)'!$BT135)","v":"n.d."},{"$f":"IF('[3]MONE(M)'!$AO135=\"\",\"\",'[3]MONE(M)'!$AO135)","v":"n.d."},{"$f":"IF('[4]MONE(M)'!$AO135=\"\",\"\",'[4]MONE(M)'!$AO135)","v":"n.d."},{"$f":"IF('[5]MONE(M)'!$AO135=\"\",\"\",'[5]MONE(M)'!$AO135)","v":"n.d."},{"$f":"+'[1]MONE(M)'!$AO135","v":"n.d."},{"$f":"IF('[6]MONE(M)'!$AO135=\"\",\"\",'[6]MONE(M)'!$AO135)","v":"n.d."},{"$f":"IF('[7]MONE(M)'!$AO135=\"\",\"\",'[7]MONE(M)'!$AO135)","v":"n.d."},{"$f":"IF('[8]MONE(M)'!$AO135=\"\",\"\",'[8]MONE(M)'!$AO135)","v":"n.d."},"n.d.","n.d.","n.d.","n.d.","n.d.","n.d.","n.d.",{"$f":"IF('[2]FISCAL(M)'!$K135=\"\",\"\",'[2]FISCAL(M)'!$K135)","v":"n.d."},{"$f":"+'[2]REAL(A)'!$AO$20","v":"n.d."},"n.d.",{"$f":"IF('[2]FISCAL(M)'!$L135=\"\",\"\",'[2]FISCAL(M)'!$L135)","v":"n.d."},{"$f":"+'[2]REAL(A)'!$AP$20","v":"n.d."},"n.d.","n.d.","n.d.","n.d.","n.d.","n.d.","n.d.","n.d.","n.d.","n.d.","n.d.","n.d.","n.d.","n.d.","n.d.","n.d.","n.d."]
[2000,"julio","2000-julio",{"$f":"IF('[2]REAL IPC(M)'!$AL136=\"\",\"\",+'[2]REAL IPC(M)'!$AL136)","v":7.8214665249734416},{"$f":"IF('[2]REAL IPC(M)'!$BE136=\"\",\"\",+'[2]REAL IPC(M)'!$BE136)","v":6.8080832966439964},{"$f":"IF('[2]REAL IPC(M)'!$AM136=\"\",\"\",+'[2]REAL IPC(M)'!$AM136)","v":7.1945337620578975},{"$f":"IF('[2]REAL IPC(M)'!$BI136=\"\",\"\",+'[2]REAL IPC(M)'!$BI136)","v":6.2488872683057028},{"$f":"IF('[2]REAL IMAE(M)'!BJ136=\"\",\"\",'[2]REAL IMAE(M)'!BJ136)","v":"n.d."},{"$f":"IF('[2]REAL IMAE(M)'!BK136=\"\",\"\",'[2]REAL IMAE(M)'!BK136)","v":"n.d."},{"$f":"IF('[2]REAL IMAE(M)'!BN136=\"\",\"\",'[2]REAL IMAE(M)'!BN136)","v":"n.d."},{"$f":"IF('[2]REAL IMAE(M)'!BO136=\"\",\"\",'[2]REAL IMAE(M)'!BO136)","v":"n.d."},{"$f":"IF('[2]EXT RIN(M)'!$K136=\"\",\"\",'[2]EXT RIN(M)'!$K136)","v":"n.d."},"",{"$f":"IF('[2]EXT RIN(M)'!$L136=\"\",\"\",'[2]EXT RIN(M)'!$L136)","v":"n.d."},"",{"$f":"IF('[2]MONE(M)CARD'!EG136=\"\",\"\",'[2]MONE(M)CARD'!EG136)","v":"n.d."},{"$f":"IF('[2]MONE(M)CARD'!EK136=\"\",\"\",'[2]MONE(M)CARD'!EK136)","v":"n.d."},{"$f":"IF('[2]MONE(M)CARD'!EP136=\"\",\"\",'[2]MONE(M)CARD'!EP136)","v":"n.d."},{"$f":"IF('[2]MONE(M)CARD'!ES136=\"\",\"\",'[2]MONE(M)CARD'!ES136)","v":"n.d."},{"$f":"IF('[2]MONE(M)CARD'!EV136=\"\",\"\",'[2]MONE(M)CARD'!EV136)","v":"n.d."},{"$f":"IF('[2]MONE(M)CARD'!EZ136=\"\",\"\",'[2]MONE(M)CARD'!EZ136)","v":"n.d."},{"$f":"IF('[2]MONE(M)CAPARD'!FC136=\"\",\"\",'[2]MONE(M)CAPARD'!FC136)","v":"n.d."},{"$f":"IF('[2]MONE(M)CAPARD'!FG136=\"\",\"\",'[2]MONE(M)CAPARD'!FG136)","v":"n.d."},{"$f":"IF('[2]MONE(M)CAPARD'!FL136=\"\",\"\",'[2]MONE(M)CAPARD'!FL136)","v":"n.d."},{"$f":"IF('[2]MONE(M)CAPARD'!FO136=\"\",\"\",'[2]MONE(M)CAPARD'!FO136)","v":"n.d."},{"$f":"IF('[2]MONE(M)CAPARD'!FR136=\"\",\"\",'[2]MONE(M)CAPARD'!FR136)","v":"n.d."},{"$f":"IF('[2]MONE(M)CAPARD'!FV136=\"\",\"\",'[2]MONE(M)CAPARD'!FV136)","v":"n.d."},{"$f":"IF('[2]MONE(M)CARD'!FV136=\"\",\"\",'[2]MONE(M)CARD'!FV136)","v":""},{"$f":"IF('[2]MONE(M)CARD'!GD136=\"\",\"\",'[2]MONE(M)CARD'!GD136)","v":"n.d."},{"$f":"IF('[2]MONE(M)CARD'!GE136=\"\",\"\",'[2]MONE(M)CARD'!GE136)","v":"n.d."},"n.d.","n.d.","n.d.","n.d.","n.d.","n.d.","n.d.","n.d.",null,"n.d.","n.d.","n.d.","n.d.","n.d.",{"$f":"IF('[2]MONE(M)CAPARD'!GS136=\"\",\"\",'[2]MONE(M)CAPARD'!GS136)","v":"n.d."},{"$f":"IF('[2]MONE(M)CARD'!HA136=\"\",\"\",'[2]MONE(M)CAPARD'!HA136)","v":"n.d."},{"$f":"IF('[2]MONE(M)CAPARD'!HB136=\"\",\"\",'[2]MONE(M)CAPARD'!HB136)","v":"n.d."},"n.d.","n.d.","n.d.","n.d.","n.d.","n.d.","n.d.","n.d.","n.d.","n.d.","n.d.","n.d.","n.d.","n.d.",{"$f":"IF('[2]MONE(M)CAPARD'!AS136=\"\",\"\",'[2]MONE(M)CAPARD'!AS136)","v":"n.d."},{"$f":"IF('[2]MONE(M)CAPARD'!AT136=\"\",\"\",'[2]MONE(M)CAPARD'!AT136)","v":"n.a."},{"$f":"IF('[2]MONE(M)CAPARD'!AU136=\"\",\"\",'[2]MONE(M)CAPARD'!AU136)","v":"n.d."},{"$f":"IF('[2]MONE(M)CAPARD'!AV136=\"\",\"\",'[2]MONE(M)CAPARD'!AV136)","v":"n.d."},{"$f":"IF('[2]MONE(M)CAPARD'!AW136=\"\",\"\",'[2]MONE(M)CAPARD'!AW136)","v":"n.a."},{"$f":"IF('[2]MONE(M)CAPARD'!AX136=\"\",\"\",'[2]MONE(M)CAPARD'!AX136)","v":"n.d."},{"$f":"IF('[2]MONE(M)CAPARD'!AY136=\"\",\"\",'[2]MONE(M)CAPARD'!AY136)","v":"n.a."},{"$f":"IF('[2]FISCAL(M)'!$K136=\"\",\"\",'[2]FISCAL(M)'!$K136)","v":"n.d."},{"$f":"IF('[2]FISCAL(M)'!$L136=\"\",\"\",'[2]FISCAL(M)'!$L136)","v":"n.d."},{"$f":"IF('[2]FISCAL(M)'!$AY136=\"\",\"\",'[2]FISCAL(M)'!$AY136)","v":"n.d."},{"$f":"IF('[2]FISCAL(M)'!$BI136=\"\",\"\",'[2]FISCAL(M)'!$BI136)","v":"n.d."},{"$f":"IF('[2]FISCAL(M)'!$BS136=\"\",\"\",'[2]FISCAL(M)'!$BS136)","v":"n.d."},{"$f":"IF('[2]FISCAL(M)'!$AZ136=\"\",\"\",'[2]FISCAL(M)'!$AZ136)","v":"n.d."},{"$f":"IF('[2]FISCAL(M)'!$BJ136=\"\",\"\",'[2]FISCAL(M)'!$BJ136)","v":"n.d."},{"$f":"IF('[2]FISCAL(M)'!$BT136=\"\",\"\",'[2]FISCAL(M)'!$BT136)","v":"n.d."},{"$f":"IF('[3]MONE(M)'!$AO136=\"\",\"\",'[3]MONE(M)'!$AO136)","v":"n.d."},{"$f":"IF('[4]MONE(M)'!$AO136=\"\",\"\",'[4]MONE(M)'!$AO136)","v":"n.d."},{"$f":"IF('[5]MONE(M)'!$AO136=\"\",\"\",'[5]MONE(M)'!$AO136)","v":"n.d."},{"$f":"+'[1]MONE(M)'!$AO136","v":"n.d."},{"$f":"IF('[6]MONE(M)'!$AO136=\"\",\"\",'[6]MONE(M)'!$AO136)","v":"n.d."},{"$f":"IF('[7]MONE(M)'!$AO136=\"\",\"\",'[7]MONE(M)'!$AO136)","v":"n.d."},{"$f":"IF('[8]MONE(M)'!$AO136=\"\",\"\",'[8]MONE(M)'!$AO136)","v":"n.d."},"n.d.","n.d.","n.d.","n.d.","n.d.","n.d.","n.d.",{"$f":"IF('[2]FISCAL(M)'!$K136=\"\",\"\",'[2]FISCAL(M)'!$K136)","v":"n.d."},{"$f":"+'[2]REAL(A)'!$AO$20","v":"n.d."},"n.d.",{"$f":"IF('[2]FISCAL(M)'!$L136=\"\",\"\",'[2]FISCAL(M)'!$L136)","v":"n.d."},{"$f":"+'[2]REAL(A)'!$AP$20","v":"n.d."},"n.d.","n.d.","n.d.","n.d.","n.d.","n.d.","n.d.","n.d.","n.d.","n.d.","n.d.","n.d.","n.d.","n.d.","n.d.","n.d.","n.d."]
[2000,"agosto","2000-agosto",{"$f":"IF('[2]REAL IPC(M)'!$AL137=\"\",\"\",+'[2]REAL IPC(M)'!$AL137)","v":7.5073808519611873},{"$f":"IF('[2]REAL IPC(M)'!$BE137=\"\",\"\",+'[2]REAL IPC(M)'!$BE137)","v":6.8442349917707146},{"$f":"IF('[2]REAL IPC(M)'!$AM137=\"\",\"\",+'[2]REAL IPC(M)'!$AM137)","v":6.8834796488427941},{"$f":"IF('[2]REAL IPC(M)'!$BI137=\"\",\"\",+'[2]REAL IPC(M)'!$BI137)","v":6.2787338264453707},{"$f":"IF('[2]REAL IMAE(M)'!BJ137=\"\",\"\",'[2]REAL IMAE(M)'!BJ137)","v":"n.d."},{"$f":"IF('[2]REAL IMAE(M)'!BK137=\"\",\"\",'[2]REAL IMAE(M)'!BK137)","v":"n.d."},{"$f":"IF('[2]REAL IMAE(M)'!BN137=\"\",\"\",'[2]REAL IMAE(M)'!BN137)","v":"n.d."},{"$f":"IF('[2]REAL IMAE(M)'!BO137=\"\",\"\",'[2]REAL IMAE(M)'!BO137)","v":"n.d."},{"$f":"IF('[2]EXT RIN(M)'!$K137=\"\",\"\",'[2]EXT RIN(M)'!$K137)","v":"n.d."},"",{"$f":"IF('[2]EXT RIN(M)'!$L137=\"\",\"\",'[2]EXT RIN(M)'!$L137)","v":"n.d."},"",{"$f":"IF('[2]MONE(M)CARD'!EG137=\"\",\"\",'[2]MONE(M)CARD'!EG137)","v":"n.d."},{"$f":"IF('[2]MONE(M)CARD'!EK137=\"\",\"\",'[2]MONE(M)CARD'!EK137)","v":"n.d."},{"$f":"IF('[2]MONE(M)CARD'!EP137=\"\",\"\",'[2]MONE(M)CARD'!EP137)","v":"n.d."},{"$f":"IF('[2]MONE(M)CARD'!ES137=\"\",\"\",'[2]MONE(M)CARD'!ES137)","v":"n.d."},{"$f":"IF('[2]MONE(M)CARD'!EV137=\"\",\"\",'[2]MONE(M)CARD'!EV137)","v":"n.d."},{"$f":"IF('[2]MONE(M)CARD'!EZ137=\"\",\"\",'[2]MONE(M)CARD'!EZ137)","v":"n.d."},{"$f":"IF('[2]MONE(M)CAPARD'!FC137=\"\",\"\",'[2]MONE(M)CAPARD'!FC137)","v":"n.d."},{"$f":"IF('[2]MONE(M)CAPARD'!FG137=\"\",\"\",'[2]MONE(M)CAPARD'!FG137)","v":"n.d."},{"$f":"IF('[2]MONE(M)CAPARD'!FL137=\"\",\"\",'[2]MONE(M)CAPARD'!FL137)","v":"n.d."},{"$f":"IF('[2]MONE(M)CAPARD'!FO137=\"\",\"\",'[2]MONE(M)CAPARD'!FO137)","v":"n.d."},{"$f":"IF('[2]MONE(M)CAPARD'!FR137=\"\",\"\",'[2]MONE(M)CAPARD'!FR137)","v":"n.d."},{"$f":"IF('[2]MONE(M)CAPARD'!FV137=\"\",\"\",'[2]MONE(M)CAPARD'!FV137)","v":"n.d."},{"$f":"IF('[2]MONE(M)CARD'!FV137=\"\",\"\",'[2]MONE(M)CARD'!FV137)","v":""},{"$f":"IF('[2]MONE(M)CARD'!GD137=\"\",\"\",'[2]MONE(M)CARD'!GD137)","v":"n.d."},{"$f":"IF('[2]MONE(M)CARD'!GE137=\"\",\"\",'[2]MONE(M)CARD'!GE137)","v":"n.d."},"n.d.","n.d.","n.d.","n.d.","n.d.","n.d.","n.d.","n.d.",null,"n.d.","n.d.","n.d.","n.d.","n.d.",{"$f":"IF('[2]MONE(M)CAPARD'!GS137=\"\",\"\",'[2]MONE(M)CAPARD'!GS137)","v":"n.d."},{"$f":"IF('[2]MONE(M)CARD'!HA137=\"\",\"\",'[2]MONE(M)CAPARD'!HA137)","v":"n.d."},{"$f":"IF('[2]MONE(M)CAPARD'!HB137=\"\",\"\",'[2]MONE(M)CAPARD'!HB137)","v":"n.d."},"n.d.","n.d.","n.d.","n.d.","n.d.","n.d.","n.d.","n.d.","n.d.","n.d.","n.d.","n.d.","n.d.","n.d.",{"$f":"IF('[2]MONE(M)CAPARD'!AS137=\"\",\"\",'[2]MONE(M)CAPARD'!AS137)","v":"n.d."},{"$f":"IF('[2]MONE(M)CAPARD'!AT137=\"\",\"\",'[2]MONE(M)CAPARD'!AT137)","v":"n.a."},{"$f":"IF('[2]MONE(M)CAPARD'!AU137=\"\",\"\",'[2]MONE(M)CAPARD'!AU137)","v":"n.d."},{"$f":"IF('[2]MONE(M)CAPARD'!AV137=\"\",\"\",'[2]MONE(M)CAPARD'!AV137)","v":"n.d."},{"$f":"IF('[2]MONE(M)CAPARD'!AW137=\"\",\"\",'[2]MONE(M)CAPARD'!AW137)","v":"n.a."},{"$f":"IF('[2]MONE(M)CAPARD'!AX137=\"\",\"\",'[2]MONE(M)CAPARD'!AX137)","v":"n.d."},{"$f":"IF('[2]MONE(M)CAPARD'!AY137=\"\",\"\",'[2]MONE(M)CAPARD'!AY137)","v":"n.a."},{"$f":"IF('[2]FISCAL(M)'!$K137=\"\",\"\",'[2]FISCAL(M)'!$K137)","v":"n.d."},{"$f":"IF('[2]FISCAL(M)'!$L137=\"\",\"\",'[2]FISCAL(M)'!$L137)","v":"n.d."},{"$f":"IF('[2]FISCAL(M)'!$AY137=\"\",\"\",'[2]FISCAL(M)'!$AY137)","v":"n.d."},{"$f":"IF('[2]FISCAL(M)'!$BI137=\"\",\"\",'[2]FISCAL(M)'!$BI137)","v":"n.d."},{"$f":"IF('[2]FISCAL(M)'!$BS137=\"\",\"\",'[2]FISCAL(M)'!$BS137)","v":"n.d."},{"$f":"IF('[2]FISCAL(M)'!$AZ137=\"\",\"\",'[2]FISCAL(M)'!$AZ137)","v":"n.d."},{"$f":"IF('[2]FISCAL(M)'!$BJ137=\"\",\"\",'[2]FISCAL(M)'!$BJ137)","v":"n.d."},{"$f":"IF('[2]FISCAL(M)'!$BT137=\"\",\"\",'[2]FISCAL(M)'!$BT137)","v":"n.d."},{"$f":"IF('[3]MONE(M)'!$AO137=\"\",\"\",'[3]MONE(M)'!$AO137)","v":"n.d."},{"$f":"IF('[4]MONE(M)'!$AO137=\"\",\"\",'[4]MONE(M)'!$AO137)","v":"n.d."},{"$f":"IF('[5]MONE(M)'!$AO137=\"\",\"\",'[5]MONE(M)'!$AO137)","v":"n.d."},{"$f":"+'[1]MONE(M)'!$AO137","v":"n.d."},{"$f":"IF('[6]MONE(M)'!$AO137=\"\",\"\",'[6]MONE(M)'!$AO137)","v":"n.d."},{"$f":"IF('[7]MONE(M)'!$AO137=\"\",\"\",'[7]MONE(M)'!$AO137)","v":"n.d."},{"$f":"IF('[8]MONE(M)'!$AO137=\"\",\"\",'[8]MONE(M)'!$AO137)","v":"n.d."},"n.d.","n.d.","n.d.","n.d.","n.d.","n.d.","n.d.",{"$f":"IF('[2]FISCAL(M)'!$K137=\"\",\"\",'[2]FISCAL(M)'!$K137)","v":"n.d."},{"$f":"+'[2]REAL(A)'!$AO$20","v":"n.d."},"n.d.",{"$f":"IF('[2]FISCAL(M)'!$L137=\"\",\"\",'[2]FISCAL(M)'!$L137)","v":"n.d."},{"$f":"+'[2]REAL(A)'!$AP$20","v":"n.d."},"n.d.","n.d.","n.d.","n.d.","n.d.","n.d.","n.d.","n.d.","n.d.","n.d.","n.d.","n.d.","n.d.","n.d.","n.d.","n.d.","n.d."]
[2000,"septiembre","2000-septiembre",{"$f":"IF('[2]REAL IPC(M)'!$AL138=\"\",\"\",+'[2]REAL IPC(M)'!$AL138)","v":8.1346716854872483},{"$f":"IF('[2]REAL IPC(M)'!$BE138=\"\",\"\",+'[2]REAL IPC(M)'!$BE138)","v":6.8847114978545898},{"$f":"IF('[2]REAL IPC(M)'!$AM138=\"\",\"\",+'[2]REAL IPC(M)'!$AM138)","v":7.4836666006731445},{"$f":"IF('[2]REAL IPC(M)'!$BI138=\"\",\"\",+'[2]REAL IPC(M)'!$BI138)","v":6.3120298761758287},{"$f":"IF('[2]REAL IMAE(M)'!BJ138=\"\",\"\",'[2]REAL IMAE(M)'!BJ138)","v":"n.d."},{"$f":"IF('[2]REAL IMAE(M)'!BK138=\"\",\"\",'[2]REAL IMAE(M)'!BK138)","v":"n.d."},{"$f":"IF('[2]REAL IMAE(M)'!BN138=\"\",\"\",'[2]REAL IMAE(M)'!BN138)","v":"n.d."},{"$f":"IF('[2]REAL IMAE(M)'!BO138=\"\",\"\",'[2]REAL IMAE(M)'!BO138)","v":"n.d."},{"$f":"IF('[2]EXT RIN(M)'!$K138=\"\",\"\",'[2]EXT RIN(M)'!$K138)","v":"n.d."},"",{"$f":"IF('[2]EXT RIN(M)'!$L138=\"\",\"\",'[2]EXT RIN(M)'!$L138)","v":"n.d."},"",{"$f":"IF('[2]MONE(M)CARD'!EG138=\"\",\"\",'[2]MONE(M)CARD'!EG138)","v":"n.d."},{"$f":"IF('[2]MONE(M)CARD'!EK138=\"\",\"\",'[2]MONE(M)CARD'!EK138)","v":"n.d."},{"$f":"IF('[2]MONE(M)CARD'!EP138=\"\",\"\",'[2]MONE(M)CARD'!EP138)","v":"n.d."},{"$f":"IF('[2]MONE(M)CARD'!ES138=\"\",\"\",'[2]MONE(M)CARD'!ES138)","v":"n.d."},{"$f":"IF('[2]MONE(M)CARD'!EV138=\"\",\"\",'[2]MONE(M)CARD'!EV138)","v":"n.d."},{"$f":"IF('[2]MONE(M)CARD'!EZ138=\"\",\"\",'[2]MONE(M)CARD'!EZ138)","v":"n.d."},{"$f":"IF('[2]MONE(M)CAPARD'!FC138=\"\",\"\",'[2]MONE(M)CAPARD'!FC138)","v":"n.d."},{"$f":"IF('[2]MONE(M)CAPARD'!FG138=\"\",\"\",'[2]MONE(M)CAPARD'!FG138)","v":"n.d."},{"$f":"IF('[2]MONE(M)CAPARD'!FL138=\"\",\"\",'[2]MONE(M)CAPARD'!FL138)","v":"n.d."},{"$f":"IF('[2]MONE(M)CAPARD'!FO138=\"\",\"\",'[2]MONE(M)CAPARD'!FO138)","v":"n.d."},{"$f":"IF('[2]MONE(M)CAPARD'!FR138=\"\",\"\",'[2]MONE(M)CAPARD'!FR138)","v":"n.d."},{"$f":"IF('[2]MONE(M)CAPARD'!FV138=\"\",\"\",'[2]MONE(M)CAPARD'!FV138)","v":"n.d."},{"$f":"IF('[2]MONE(M)CARD'!FV138=\"\",\"\",'[2]MONE(M)CARD'!FV138)","v":""},{"$f":"IF('[2]MONE(M)CARD'!GD138=\"\",\"\",'[2]MONE(M)CARD'!GD138)","v":"n.d."},{"$f":"IF('[2]MONE(M)CARD'!GE138=\"\",\"\",'[2]MONE(M)CARD'!GE138)","v":"n.d."},"n.d.","n.d.","n.d.","n.d.","n.d.","n.d.","n.d.","n.d.",null,"n.d.","n.d.","n.d.","n.d.","n.d.",{"$f":"IF('[2]MONE(M)CAPARD'!GS138=\"\",\"\",'[2]MONE(M)CAPARD'!GS138)","v":"n.d."},{"$f":"IF('[2]MONE(M)CARD'!HA138=\"\",\"\",'[2]MONE(M)CAPARD'!HA138)","v":"n.d."},{"$f":"IF('[2]MONE(M)CAPARD'!HB138=\"\",\"\",'[2]MONE(M)CAPARD'!HB138)","v":"n.d."},"n.d.","n.d.","n.d.","n.d.","n.d.","n.d.","n.d.","n.d.","n.d.","n.d.","n.d.","n.d.","n.d.","n.d.",{"$f":"IF('[2]MONE(M)CAPARD'!AS138=\"\",\"\",'[2]MONE(M)CAPARD'!AS138)","v":"n.d."},{"$f":"IF('[2]MONE(M)CAPARD'!AT138=\"\",\"\",'[2]MONE(M)CAPARD'!AT138)","v":"n.a."},{"$f":"IF('[2]MONE(M)CAPARD'!AU138=\"\",\"\",'[2]MONE(M)CAPARD'!AU138)","v":"n.d."},{"$f":"IF('[2]MONE(M)CAPARD'!AV138=\"\",\"\",'[2]MONE(M)CAPARD'!AV138)","v":"n.d."},{"$f":"IF('[2]MONE(M)CAPARD'!AW138=\"\",\"\",'[2]MONE(M)CAPARD'!AW138)","v":"n.a."},{"$f":"IF('[2]MONE(M)CAPARD'!AX138=\"\",\"\",'[2]MONE(M)CAPARD'!AX138)","v":"n.d."},{"$f":"IF('[2]MONE(M)CAPARD'!AY138=\"\",\"\",'[2]MONE(M)CAPARD'!AY138)","v":"n.a."},{"$f":"IF('[2]FISCAL(M)'!$K138=\"\",\"\",'[2]FISCAL(M)'!$K138)","v":"n.d."},{"$f":"IF('[2]FISCAL(M)'!$L138=\"\",\"\",'[2]FISCAL(M)'!$L138)","v":"n.d."},{"$f":"IF('[2]FISCAL(M)'!$AY138=\"\",\"\",'[2]FISCAL(M)'!$AY138)","v":"n.d."},{"$f":"IF('[2]FISCAL(M)'!$BI138=\"\",\"\",'[2]FISCAL(M)'!$BI138)","v":"n.d."},{"$f":"IF('[2]FISCAL(M)'!$BS138=\"\",\"\",'[2]FISCAL(M)'!$BS138)","v":"n.d."},{"$f":"IF('[2]FISCAL(M)'!$AZ138=\"\",\"\",'[2]FISCAL(M)'!$AZ138)","v":"n.d."},{"$f":"IF('[2]FISCAL(M)'!$BJ138=\"\",\"\",'[2]FISCAL(M)'!$BJ138)","v":"n.d."},{"$f":"IF('[2]FISCAL(M)'!$BT138=\"\",\"\",'[2]FISCAL(M)'!$BT138)","v":"n.d."},{"$f":"IF('[3]MONE(M)'!$AO138=\"\",\"\",'[3]MONE(M)'!$AO138)","v":"n.d."},{"$f":"IF('[4]MONE(M)'!$AO138=\"\",\"\",'[4]MONE(M)'!$AO138)","v":"n.d."},{"$f":"IF('[5]MONE(M)'!$AO138=\"\",\"\",'[5]MONE(M)'!$AO138)","v":"n.d."},{"$f":"+'[1]MONE(M)'!$AO138","v":"n.d."},{"$f":"IF('[6]MONE(M)'!$AO138=\"\",\"\",'[6]MONE(M)'!$AO138)","v":"n.d."},{"$f":"IF('[7]MONE(M)'!$AO138=\"\",\"\",'[7]MONE(M)'!$AO138)","v":"n.d."},{"$f":"IF('[8]MONE(M)'!$AO138=\"\",\"\",'[8]MONE(M)'!$AO138)","v":"n.d."},"n.d.","n.d.","n.d.","n.d.","n.d.","n.d.","n.d.",{"$f":"IF('[2]FISCAL(M)'!$K138=\"\",\"\",'[2]FISCAL(M)'!$K138)","v":"n.d."},{"$f":"+'[2]REAL(A)'!$AO$20","v":"n.d."},{"$f":"IF(OR(CM131=\"n.d.\",CM131=\"\",CN131=\"\",CN131=\"n.d.\"),\"n.d.\",(CM131/CN131)*100)","v":"n.d."},{"$f":"IF('[2]FISCAL(M)'!$L138=\"\",\"\",'[2]FISCAL(M)'!$L138)","v":"n.d."},{"$f":"+'[2]REAL(A)'!$AP$20","v":"n.d."},"n.d.","n.d.","n.d.","n.d.","n.d.","n.d.","n.d.","n.d.","n.d.","n.d.","n.d.","n.d.","n.d.","n.d.","n.d.","n.d.","n.d."]
[2000,"octubre",{"$f":"A132&\"-\"&B132","v":"2000-octubre"},{"$f":"IF('[2]REAL IPC(M)'!$AL139=\"\",\"\",+'[2]REAL IPC(M)'!$AL139)","v":6.8036998972250906},{"$f":"IF('[2]REAL IPC(M)'!$BE139=\"\",\"\",+'[2]REAL IPC(M)'!$BE139)","v":6.9296025996691712},{"$f":"IF('[2]REAL IPC(M)'!$AM139=\"\",\"\",+'[2]REAL IPC(M)'!$AM139)","v":6.2768031189083917},{"$f":"IF('[2]REAL IPC(M)'!$BI139=\"\",\"\",+'[2]REAL IPC(M)'!$BI139)","v":6.3489791898499126},{"$f":"IF('[2]REAL IMAE(M)'!BJ139=\"\",\"\",'[2]REAL IMAE(M)'!BJ139)","v":"n.d."},{"$f":"IF('[2]REAL IMAE(M)'!BK139=\"\",\"\",'[2]REAL IMAE(M)'!BK139)","v":"n.d."},{"$f":"IF('[2]REAL IMAE(M)'!BN139=\"\",\"\",'[2]REAL IMAE(M)'!BN139)","v":"n.d."},{"$f":"IF('[2]REAL IMAE(M)'!BO139=\"\",\"\",'[2]REAL IMAE(M)'!BO139)","v":"n.d."},{"$f":"IF('[2]EXT RIN(M)'!$K139=\"\",\"\",'[2]EXT RIN(M)'!$K139)","v":"n.d."},{"$f":"IF(B132<>\"diciembre\",\"\",L132)","v":""},{"$f":"IF('[2]EXT RIN(M)'!$L139=\"\",\"\",'[2]EXT RIN(M)'!$L139)","v":"n.d."},{"$f":"IF(B132<>\"diciembre\",\"\",N132)","v":""},{"$f":"IF('[2]MONE(M)CARD'!EG139=\"\",\"\",'[2]MONE(M)CARD'!EG139)","v":"n.d."},{"$f":"IF('[2]MONE(M)CARD'!EK139=\"\",\"\",'[2]MONE(M)CARD'!EK139)","v":"n.d."},{"$f":"IF('[2]MONE(M)CARD'!EP139=\"\",\"\",'[2]MONE(M)CARD'!EP139)","v":"n.d."},{"$f":"IF('[2]MONE(M)CARD'!ES139=\"\",\"\",'[2]MONE(M)CARD'!ES139)","v":"n.d."},{"$f":"IF('[2]MONE(M)CARD'!EV139=\"\",\"\",'[2]MONE(M)CARD'!EV139)","v":"n.d."},{"$f":"IF('[2]MONE(M)CARD'!EZ139=\"\",\"\",'[2]MONE(M)CARD'!EZ139)","v":"n.d."},{"$f":"IF('[2]MONE(M)CAPARD'!FC139=\"\",\"\",'[2]MONE(M)CAPARD'!FC139)","v":"n.d."},{"$f":"IF('[2]MONE(M)CAPARD'!FG139=\"\",\"\",'[2]MONE(M)CAPARD'!FG139)","v":"n.d."},{"$f":"IF('[2]MONE(M)CAPARD'!FL139=\"\",\"\",'[2]MONE(M)CAPARD'!FL139)","v":"n.d."},{"$f":"IF('[2]MONE(M)CAPARD'!FO139=\"\",\"\",'[2]MONE(M)CAPARD'!FO139)","v":"n.d."},{"$f":"IF('[2]MONE(M)CAPARD'!FR139=\"\",\"\",'[2]MONE(M)CAPARD'!FR139)","v":"n.d."},{"$f":"IF('[2]MONE(M)CAPARD'!FV139=\"\",\"\",'[2]MONE(M)CAPARD'!FV139)","v":"n.d."},{"$f":"IF('[2]MONE(M)CARD'!FV139=\"\",\"\",'[2]MONE(M)CARD'!FV139)","v":""},{"$f":"IF('[2]MONE(M)CARD'!GD139=\"\",\"\",'[2]MONE(M)CARD'!GD139)","v":"n.d."},{"$f":"IF('[2]MONE(M)CARD'!GE139=\"\",\"\",'[2]MONE(M)CARD'!GE139)","v":"n.d."},"n.d.","n.d.","n.d.","n.d.","n.d.","n.d.","n.d.","n.d.",null,"n.d.","n.d.","n.d.","n.d.","n.d.",{"$f":"IF('[2]MONE(M)CAPARD'!GS139=\"\",\"\",'[2]MONE(M)CAPARD'!GS139)","v":"n.d."},{"$f":"IF('[2]MONE(M)CARD'!HA139=\"\",\"\",'[2]MONE(M)CAPARD'!HA139)","v":"n.d."},{"$f":"IF('[2]MONE(M)CAPARD'!HB139=\"\",\"\",'[2]MONE(M)CAPARD'!HB139)","v":"n.d."},"n.d.","n.d.","n.d.","n.d.","n.d.","n.d.","n.d.","n.d.","n.d.","n.d.","n.d.","n.d.","n.d.","n.d.",{"$f":"IF('[2]MONE(M)CAPARD'!AS139=\"\",\"\",'[2]MONE(M)CAPARD'!AS139)","v":"n.d."},{"$f":"IF('[2]MONE(M)CAPARD'!AT139=\"\",\"\",'[2]MONE(M)CAPARD'!AT139)","v":"n.a."},{"$f":"IF('[2]MONE(M)CAPARD'!AU139=\"\",\"\",'[2]MONE(M)CAPARD'!AU139)","v":"n.d."},{"$f":"IF('[2]MONE(M)CAPARD'!AV139=\"\",\"\",'[2]MONE(M)CAPARD'!AV139)","v":"n.d."},{"$f":"IF('[2]MONE(M)CAPARD'!AW139=\"\",\"\",'[2]MONE(M)CAPARD'!AW139)","v":"n.a."},{"$f":"IF('[2]MONE(M)CAPARD'!AX139=\"\",\"\",'[2]MONE(M)CAPARD'!AX139)","v":"n.d."},{"$f":"IF('[2]MONE(M)CAPARD'!AY139=\"\",\"\",'[2]MONE(M)CAPARD'!AY139)","v":"n.a."},{"$f":"IF('[2]FISCAL(M)'!$K139=\"\",\"\",'[2]FISCAL(M)'!$K139)","v":"n.d."},{"$f":"IF('[2]FISCAL(M)'!$L139=\"\",\"\",'[2]FISCAL(M)'!$L139)","v":"n.d."},{"$f":"IF('[2]FISCAL(M)'!$AY139=\"\",\"\",'[2]FISCAL(M)'!$AY139)","v":"n.d."},{"$f":"IF('[2]FISCAL(M)'!$BI139=\"\",\"\",'[2]FISCAL(M)'!$BI139)","v":"n.d."},{"$f":"IF('[2]FISCAL(M)'!$BS139=\"\",\"\",'[2]FISCAL(M)'!$BS139)","v":"n.d."},{"$f":"IF('[2]FISCAL(M)'!$AZ139=\"\",\"\",'[2]FISCAL(M)'!$AZ139)","v":"n.d."},{"$f":"IF('[2]FISCAL(M)'!$BJ139=\"\",\"\",'[2]FISCAL(M)'!$BJ139)","v":"n.d."},{"$f":"IF('[2]FISCAL(M)'!$BT139=\"\",\"\",'[2]FISCAL(M)'!$BT139)","v":"n.d."},{"$f":"IF('[3]MONE(M)'!$AO139=\"\",\"\",'[3]MONE(M)'!$AO139)","v":"n.d."},{"$f":"IF('[4]MONE(M)'!$AO139=\"\",\"\",'[4]MONE(M)'!$AO139)","v":"n.d."},{"$f":"IF('[5]MONE(M)'!$AO139=\"\",\"\",'[5]MONE(M)'!$AO139)","v":"n.d."},{"$f":"+'[1]MONE(M)'!$AO139","v":"n.d."},{"$f":"IF('[6]MONE(M)'!$AO139=\"\",\"\",'[6]MONE(M)'!$AO139)","v":"n.d."},{"$f":"IF('[7]MONE(M)'!$AO139=\"\",\"\",'[7]MONE(M)'!$AO139)","v":"n.d."},{"$f":"IF('[8]MONE(M)'!$AO139=\"\",\"\",'[8]MONE(M)'!$AO139)","v":"n.d."},"n.d.","n.d.","n.d.","n.d.","n.d.","n.d.","n.d.",{"$f":"IF('[2]FISCAL(M)'!$K139=\"\",\"\",'[2]FISCAL(M)'!$K139)","v":"n.d."},{"$f":"+'[2]REAL(A)'!$AO$20","v":"n.d."},"n.d.",{"$f":"IF('[2]FISCAL(M)'!$L139=\"\",\"\",'[2]FISCAL(M)'!$L139)","v":"n.d."},{"$f":"+'[2]REAL(A)'!$AP$20","v":"n.d."},{"$f":"IF(OR(CP132=\"n.d.\",CP132=\"\",CQ132=\"\",CQ132=\"n.d.\"),\"n.d.\",(CP132/CQ132)*100)","v":"n.d."},"n.d.","n.d.","n.d.","n.d.","n.d.","n.d.","n.d.","n.d.","n.d.","n.d.","n.d.","n.d.","n.d.","n.d.","n.d.","n.d."]
[2000,"noviembre","2000-noviembre",{"$f":"IF('[2]REAL IPC(M)'!$AL140=\"\",\"\",+'[2]REAL IPC(M)'!$AL140)","v":6.744091279543607},{"$f":"IF('[2]REAL IPC(M)'!$BE140=\"\",\"\",+'[2]REAL IPC(M)'!$BE140)","v":6.9790233782202726},{"$f":"IF('[2]REAL IPC(M)'!$AM140=\"\",\"\",+'[2]REAL IPC(M)'!$AM140)","v":6.1666344480958868},{"$f":"IF('[2]REAL IPC(M)'!$BI140=\"\",\"\",+'[2]REAL IPC(M)'!$BI140)","v":6.389790788359262},{"$f":"IF('[2]REAL IMAE(M)'!BJ140=\"\",\"\",'[2]REAL IMAE(M)'!BJ140)","v":"n.d."},{"$f":"IF('[2]REAL IMAE(M)'!BK140=\"\",\"\",'[2]REAL IMAE(M)'!BK140)","v":"n.d."},{"$f":"IF('[2]REAL IMAE(M)'!BN140=\"\",\"\",'[2]REAL IMAE(M)'!BN140)","v":"n.d."},{"$f":"IF('[2]REAL IMAE(M)'!BO140=\"\",\"\",'[2]REAL IMAE(M)'!BO140)","v":"n.d."},{"$f":"IF('[2]EXT RIN(M)'!$K140=\"\",\"\",'[2]EXT RIN(M)'!$K140)","v":"n.d."},"",{"$f":"IF('[2]EXT RIN(M)'!$L140=\"\",\"\",'[2]EXT RIN(M)'!$L140)","v":"n.d."},"",{"$f":"IF('[2]MONE(M)CARD'!EG140=\"\",\"\",'[2]MONE(M)CARD'!EG140)","v":"n.d."},{"$f":"IF('[2]MONE(M)CARD'!EK140=\"\",\"\",'[2]MONE(M)CARD'!EK140)","v":"n.d."},{"$f":"IF('[2]MONE(M)CARD'!EP140=\"\",\"\",'[2]MONE(M)CARD'!EP140)","v":"n.d."},{"$f":"IF('[2]MONE(M)CARD'!ES140=\"\",\"\",'[2]MONE(M)CARD'!ES140)","v":"n.d."},{"$f":"IF('[2]MONE(M)CARD'!EV140=\"\",\"\",'[2]MONE(M)CARD'!EV140)","v":"n.d."},{"$f":"IF('[2]MONE(M)CARD'!EZ140=\"\",\"\",'[2]MONE(M)CARD'!EZ140)","v":"n.d."},{"$f":"IF('[2]MONE(M)CAPARD'!FC140=\"\",\"\",'[2]MONE(M)CAPARD'!FC140)","v":"n.d."},{"$f":"IF('[2]MONE(M)CAPARD'!FG140=\"\",\"\",'[2]MONE(M)CAPARD'!FG140)","v":"n.d."},{"$f":"IF('[2]MONE(M)CAPARD'!FL140=\"\",\"\",'[2]MONE(M)CAPARD'!FL140)","v":"n.d."},{"$f":"IF('[2]MONE(M)CAPARD'!FO140=\"\",\"\",'[2]MONE(M)CAPARD'!FO140)","v":"n.d."},{"$f":"IF('[2]MONE(M)CAPARD'!FR140=\"\",\"\",'[2]MONE(M)CAPARD'!FR140)","v":"n.d."},{"$f":"IF('[2]MONE(M)CAPARD'!FV140=\"\",\"\",'[2]MONE(M)CAPARD'!FV140)","v":"n.d."},{"$f":"IF('[2]MONE(M)CARD'!FV140=\"\",\"\",'[2]MONE(M)CARD'!FV140)","v":""},{"$f":"IF('[2]MONE(M)CARD'!GD140=\"\",\"\",'[2]MONE(M)CARD'!GD140)","v":"n.d."},{"$f":"IF('[2]MONE(M)CARD'!GE140=\"\",\"\",'[2]MONE(M)CARD'!GE140)","v":"n.d."},"n.d.","n.d.","n.d.","n.d.","n.d.","n.d.","n.d.","n.d.",null,"n.d.","n.d.","n.d.","n.d.","n.d.",{"$f":"IF('[2]MONE(M)CAPARD'!GS140=\"\",\"\",'[2]MONE(M)CAPARD'!GS140)","v":"n.d."},{"$f":"IF('[2]MONE(M)CARD'!HA140=\"\",\"\",'[2]MONE(M)CAPARD'!HA140)","v":"n.d."},{"$f":"IF('[2]MONE(M)CAPARD'!HB140=\"\",\"\",'[2]MONE(M)CAPARD'!HB140)","v":"n.d."},"n.d.","n.d.","n.d.","n.d.","n.d.","n.d.","n.d.","n.d.","n.d.","n.d.","n.d.","n.d.","n.d.","n.d.",{"$f":"IF('[2]MONE(M)CAPARD'!AS140=\"\",\"\",'[2]MONE(M)CAPARD'!AS140)","v":"n.d."},{"$f":"IF('[2]MONE(M)CAPARD'!AT140=\"\",\"\",'[2]MONE(M)CAPARD'!AT140)","v":"n.a."},{"$f":"IF('[2]MONE(M)CAPARD'!AU140=\"\",\"\",'[2]MONE(M)CAPARD'!AU140)","v":"n.d."},{"$f":"IF('[2]MONE(M)CAPARD'!AV140=\"\",\"\",'[2]MONE(M)CAPARD'!AV140)","v":"n.d."},{"$f":"IF('[2]MONE(M)CAPARD'!AW140=\"\",\"\",'[2]MONE(M)CAPARD'!AW140)","v":"n.a."},{"$f":"IF('[2]MONE(M)CAPARD'!AX140=\"\",\"\",'[2]MONE(M)CAPARD'!AX140)","v":"n.d."},{"$f":"IF('[2]MONE(M)CAPARD'!AY140=\"\",\"\",'[2]MONE(M)CAPARD'!AY140)","v":"n.a."},{"$f":"IF('[2]FISCAL(M)'!$K140=\"\",\"\",'[2]FISCAL(M)'!$K140)","v":"n.d."},{"$f":"IF('[2]FISCAL(M)'!$L140=\"\",\"\",'[2]FISCAL(M)'!$L140)","v":"n.d."},{"$f":"IF('[2]FISCAL(M)'!$AY140=\"\",\"\",'[2]FISCAL(M)'!$AY140)","v":"n.d."},{"$f":"IF('[2]FISCAL(M)'!$BI140=\"\",\"\",'[2]FISCAL(M)'!$BI140)","v":"n.d."},{"$f":"IF('[2]FISCAL(M)'!$BS140=\"\",\"\",'[2]FISCAL(M)'!$BS140)","v":"n.d."},{"$f":"IF('[2]FISCAL(M)'!$AZ140=\"\",\"\",'[2]FISCAL(M)'!$AZ140)","v":"n.d."},{"$f":"IF('[2]FISCAL(M)'!$BJ140=\"\",\"\",'[2]FISCAL(M)'!$BJ140)","v":"n.d."},{"$f":"IF('[2]FISCAL(M)'!$BT140=\"\",\"\",'[2]FISCAL(M)'!$BT140)","v":"n.d."},{"$f":"IF('[3]MONE(M)'!$AO140=\"\",\"\",'[3]MONE(M)'!$AO140)","v":"n.d."},{"$f":"IF('[4]MONE(M)'!$AO140=\"\",\"\",'[4]MONE(M)'!$AO140)","v":"n.d."},{"$f":"IF('[5]MONE(M)'!$AO140=\"\",\"\",'[5]MONE(M)'!$AO140)","v":"n.d."},{"$f":"+'[1]MONE(M)'!$AO140","v":"n.d."},{"$f":"IF('[6]MONE(M)'!$AO140=\"\",\"\",'[6]MONE(M)'!$AO140)","v":"n.d."},{"$f":"IF('[7]MONE(M)'!$AO140=\"\",\"\",'[7]MONE(M)'!$AO140)","v":"n.d."},{"$f":"IF('[8]MONE(M)'!$AO140=\"\",\"\",'[8]MONE(M)'!$AO140)","v":"n.d."},"n.d.","n.d.","n.d.","n.d.","n.d.","n.d.","n.d.",{"$f":"IF('[2]FISCAL(M)'!$K140=\"\",\"\",'[2]FISCAL(M)'!$K140)","v":"n.d."},{"$f":"+'[2]REAL(A)'!$AO$20","v":"n.d."},"n.d.",{"$f":"IF('[2]FISCAL(M)'!$L140=\"\",\"\",'[2]FISCAL(M)'!$L140)","v":"n.d."},{"$f":"+'[2]REAL(A)'!$AP$20","v":"n.d."},"n.d.","n.d.","n.d.","n.d.","n.d.","n.d.","n.d.","n.d.","n.d.","n.d.","n.d.","n.d.","n.d.","n.d.","n.d.","n.d.","n.d."]
[2000,"diciembre","2000-diciembre",{"$f":"IF('[2]REAL IPC(M)'!$AL141=\"\",\"\",+'[2]REAL IPC(M)'!$AL141)","v":7.3773814349412214},{"$f":"IF('[2]REAL IPC(M)'!$BE141=\"\",\"\",+'[2]REAL IPC(M)'!$BE141)","v":7.0330830664260047},{"$f":"IF('[2]REAL IPC(M)'!$AM141=\"\",\"\",+'[2]REAL IPC(M)'!$AM141)","v":6.6910209575081758},{"$f":"IF('[2]REAL IPC(M)'!$BI141=\"\",\"\",+'[2]REAL IPC(M)'!$BI141)","v":6.4346318624934673},{"$f":"IF('[2]REAL IMAE(M)'!BJ141=\"\",\"\",'[2]REAL IMAE(M)'!BJ141)","v":"n.d."},{"$f":"IF('[2]REAL IMAE(M)'!BK141=\"\",\"\",'[2]REAL IMAE(M)'!BK141)","v":"n.d."},{"$f":"IF('[2]REAL IMAE(M)'!BN141=\"\",\"\",'[2]REAL IMAE(M)'!BN141)","v":"n.d."},{"$f":"IF('[2]REAL IMAE(M)'!BO141=\"\",\"\",'[2]REAL IMAE(M)'!BO141)","v":"n.d."},{"$f":"IF('[2]EXT RIN(M)'!$K141=\"\",\"\",'[2]EXT RIN(M)'!$K141)","v":"n.d."},"n.d.",{"$f":"IF('[2]EXT RIN(M)'!$L141=\"\",\"\",'[2]EXT RIN(M)'!$L141)","v":"n.d."},"n.d.",{"$f":"IF('[2]MONE(M)CARD'!EG141=\"\",\"\",'[2]MONE(M)CARD'!EG141)","v":"n.d."},{"$f":"IF('[2]MONE(M)CARD'!EK141=\"\",\"\",'[2]MONE(M)CARD'!EK141)","v":"n.d."},{"$f":"IF('[2]MONE(M)CARD'!EP141=\"\",\"\",'[2]MONE(M)CARD'!EP141)","v":"n.d."},{"$f":"IF('[2]MONE(M)CARD'!ES141=\"\",\"\",'[2]MONE(M)CARD'!ES141)","v":"n.d."},{"$f":"IF('[2]MONE(M)CARD'!EV141=\"\",\"\",'[2]MONE(M)CARD'!EV141)","v":"n.d."},{"$f":"IF('[2]MONE(M)CARD'!EZ141=\"\",\"\",'[2]MONE(M)CARD'!EZ141)","v":"n.d."},{"$f":"IF('[2]MONE(M)CAPARD'!FC141=\"\",\"\",'[2]MONE(M)CAPARD'!FC141)","v":"n.d."},{"$f":"IF('[2]MONE(M)CAPARD'!FG141=\"\",\"\",'[2]MONE(M)CAPARD'!FG141)","v":"n.d."},{"$f":"IF('[2]MONE(M)CAPARD'!FL141=\"\",\"\",'[2]MONE(M)CAPARD'!FL141)","v":"n.d."},{"$f":"IF('[2]MONE(M)CAPARD'!FO141=\"\",\"\",'[2]MONE(M)CAPARD'!FO141)","v":"n.d."},{"$f":"IF('[2]MONE(M)CAPARD'!FR141=\"\",\"\",'[2]MONE(M)CAPARD'!FR141)","v":"n.d."},{"$f":"IF('[2]MONE(M)CAPARD'!FV141=\"\",\"\",'[2]MONE(M)CAPARD'!FV141)","v":"n.d."},{"$f":"IF('[2]MONE(M)CARD'!FV141=\"\",\"\",'[2]MONE(M)CARD'!FV141)","v":""},{"$f":"IF('[2]MONE(M)CARD'!GD141=\"\",\"\",'[2]MONE(M)CARD'!GD141)","v":"n.d."},{"$f":"IF('[2]MONE(M)CARD'!GE141=\"\",\"\",'[2]MONE(M)CARD'!GE141)","v":"n.d."},"n.d.","n.d.","n.d.","n.d.","n.d.","n.d.","n.d.","n.d.",null,"n.d.","n.d.","n.d.","n.d.","n.d.",{"$f":"IF('[2]MONE(M)CAPARD'!GS141=\"\",\"\",'[2]MONE(M)CAPARD'!GS141)","v":"n.d."},{"$f":"IF('[2]MONE(M)CARD'!HA141=\"\",\"\",'[2]MONE(M)CAPARD'!HA141)","v":"n.d."},{"$f":"IF('[2]MONE(M)CAPARD'!HB141=\"\",\"\",'[2]MONE(M)CAPARD'!HB141)","v":"n.d."},"n.d.","n.d.","n.d.","n.d.","n.d.","n.d.","n.d.","n.d.","n.d.","n.d.","n.d.","n.d.","n.d.","n.d.",{"$f":"IF('[2]MONE(M)CAPARD'!AS141=\"\",\"\",'[2]MONE(M)CAPARD'!AS141)","v":"n.d."},{"$f":"IF('[2]MONE(M)CAPARD'!AT141=\"\",\"\",'[2]MONE(M)CAPARD'!AT141)","v":"n.a."},{"$f":"IF('[2]MONE(M)CAPARD'!AU141=\"\",\"\",'[2]MONE(M)CAPARD'!AU141)","v":"n.d."},{"$f":"IF('[2]MONE(M)CAPARD'!AV141=\"\",\"\",'[2]MONE(M)CAPARD'!AV141)","v":"n.d."},{"$f":"IF('[2]MONE(M)CAPARD'!AW141=\"\",\"\",'[2]MONE(M)CAPARD'!AW141)","v":"n.a."},{"$f":"IF('[2]MONE(M)CAPARD'!AX141=\"\",\"\",'[2]MONE(M)CAPARD'!AX141)","v":"n.d."},{"$f":"IF('[2]MONE(M)CAPARD'!AY141=\"\",\"\",'[2]MONE(M)CAPARD'!AY141)","v":"n.a."},{"$f":"IF('[2]FISCAL(M)'!$K141=\"\",\"\",'[2]FISCAL(M)'!$K141)","v":"n.d."},{"$f":"IF('[2]FISCAL(M)'!$L141=\"\",\"\",'[2]FISCAL(M)'!$L141)","v":"n.d."},{"$f":"IF('[2]FISCAL(M)'!$AY141=\"\",\"\",'[2]FISCAL(M)'!$AY141)","v":"n.d."},{"$f":"IF('[2]FISCAL(M)'!$BI141=\"\",\"\",'[2]FISCAL(M)'!$BI141)","v":"n.d."},{"$f":"IF('[2]FISCAL(M)'!$BS141=\"\",\"\",'[2]FISCAL(M)'!$BS141)","v":"n.d."},{"$f":"IF('[2]FISCAL(M)'!$AZ141=\"\",\"\",'[2]FISCAL(M)'!$AZ141)","v":"n.d."},{"$f":"IF('[2]FISCAL(M)'!$BJ141=\"\",\"\",'[2]FISCAL(M)'!$BJ141)","v":"n.d."},{"$f":"IF('[2]FISCAL(M)'!$BT141=\"\",\"\",'[2]FISCAL(M)'!$BT141)","v":"n.d."},{"$f":"IF('[3]MONE(M)'!$AO141=\"\",\"\",'[3]MONE(M)'!$AO141)","v":"n.d."},{"$f":"IF('[4]MONE(M)'!$AO141=\"\",\"\",'[4]MONE(M)'!$AO141)","v":"n.d."},{"$f":"IF('[5]MONE(M)'!$AO141=\"\",\"\",'[5]MONE(M)'!$AO141)","v":"n.d."},{"$f":"+'[1]MONE(M)'!$AO141","v":"n.d."},{"$f":"IF('[6]MONE(M)'!$AO141=\"\",\"\",'[6]MONE(M)'!$AO141)","v":"n.d."},{"$f":"IF('[7]MONE(M)'!$AO141=\"\",\"\",'[7]MONE(M)'!$AO141)","v":"n.d."},{"$f":"IF('[8]MONE(M)'!$AO141=\"\",\"\",'[8]MONE(M)'!$AO141)","v":"n.d."},"n.d.","n.d.","n.d.","n.d.","n.d.","n.d.","n.d.",{"$f":"IF('[2]FISCAL(M)'!$K141=\"\",\"\",'[2]FISCAL(M)'!$K141)","v":"n.d."},{"$f":"+'[2]REAL(A)'!$AO$20","v":"n.d."},"n.d.",{"$f":"IF('[2]FISCAL(M)'!$L141=\"\",\"\",'[2]FISCAL(M)'!$L141)","v":"n.d."},{"$f":"+'[2]REAL(A)'!$AP$20","v":"n.d."},"n.d.","n.d.","n.d.","n.d.","n.d.","n.d.","n.d.","n.d.","n.d.","n.d.","n.d.","n.d.","n.d.","n.d.","n.d.","n.d.","n.d."]
[2001,"enero","2001-enero",{"$f":"IF('[2]REAL IPC(M)'!$AL142=\"\",\"\",+'[2]REAL IPC(M)'!$AL142)","v":8.4612277867528221},{"$f":"IF('[2]REAL IPC(M)'!$BE142=\"\",\"\",+'[2]REAL IPC(M)'!$BE142)","v":7.0918769721619812},{"$f":"IF('[2]REAL IPC(M)'!$AM142=\"\",\"\",+'[2]REAL IPC(M)'!$AM142)","v":7.7424300498275089},{"$f":"IF('[2]REAL IPC(M)'!$BI142=\"\",\"\",+'[2]REAL IPC(M)'!$BI142)","v":6.4836235205327553},{"$f":"IF('[2]REAL IMAE(M)'!BJ142=\"\",\"\",'[2]REAL IMAE(M)'!BJ142)","v":"n.d."},{"$f":"IF('[2]REAL IMAE(M)'!BK142=\"\",\"\",'[2]REAL IMAE(M)'!BK142)","v":"n.d."},{"$f":"IF('[2]REAL IMAE(M)'!BN142=\"\",\"\",'[2]REAL IMAE(M)'!BN142)","v":"n.d."},{"$f":"IF('[2]REAL IMAE(M)'!BO142=\"\",\"\",'[2]REAL IMAE(M)'!BO142)","v":"n.d."},{"$f":"IF('[2]EXT RIN(M)'!$K142=\"\",\"\",'[2]EXT RIN(M)'!$K142)","v":"n.d."},"",{"$f":"IF('[2]EXT RIN(M)'!$L142=\"\",\"\",'[2]EXT RIN(M)'!$L142)","v":"n.d."},"",{"$f":"IF('[2]MONE(M)CARD'!EG142=\"\",\"\",'[2]MONE(M)CARD'!EG142)","v":"n.d."},{"$f":"IF('[2]MONE(M)CARD'!EK142=\"\",\"\",'[2]MONE(M)CARD'!EK142)","v":"n.d."},{"$f":"IF('[2]MONE(M)CARD'!EP142=\"\",\"\",'[2]MONE(M)CARD'!EP142)","v":"n.d."},{"$f":"IF('[2]MONE(M)CARD'!ES142=\"\",\"\",'[2]MONE(M)CARD'!ES142)","v":"n.d."},{"$f":"IF('[2]MONE(M)CARD'!EV142=\"\",\"\",'[2]MONE(M)CARD'!EV142)","v":"n.d."},{"$f":"IF('[2]MONE(M)CARD'!EZ142=\"\",\"\",'[2]MONE(M)CARD'!EZ142)","v":"n.d."},{"$f":"IF('[2]MONE(M)CAPARD'!FC142=\"\",\"\",'[2]MONE(M)CAPARD'!FC142)","v":"n.d."},{"$f":"IF('[2]MONE(M)CAPARD'!FG142=\"\",\"\",'[2]MONE(M)CAPARD'!FG142)","v":"n.d."},{"$f":"IF('[2]MONE(M)CAPARD'!FL142=\"\",\"\",'[2]MONE(M)CAPARD'!FL142)","v":"n.d."},{"$f":"IF('[2]MONE(M)CAPARD'!FO142=\"\",\"\",'[2]MONE(M)CAPARD'!FO142)","v":"n.d."},{"$f":"IF('[2]MONE(M)CAPARD'!FR142=\"\",\"\",'[2]MONE(M)CAPARD'!FR142)","v":"n.d."},{"$f":"IF('[2]MONE(M)CAPARD'!FV142=\"\",\"\",'[2]MONE(M)CAPARD'!FV142)","v":"n.d."},{"$f":"IF('[2]MONE(M)CARD'!FV142=\"\",\"\",'[2]MONE(M)CARD'!FV142)","v":""},{"$f":"IF('[2]MONE(M)CARD'!GD142=\"\",\"\",'[2]MONE(M)CARD'!GD142)","v":"n.d."},{"$f":"IF('[2]MONE(M)CARD'!GE142=\"\",\"\",'[2]MONE(M)CARD'!GE142)","v":"n.d."},"n.d.","n.d.","n.d.","n.d.","n.d.",{"$f":"IFERROR(+AF135+AH135,\"n.d.\")","v":"n.d."},"n.d.","n.d.",null,"n.d.","n.d.","n.d.","n.d.","n.d.",{"$f":"IF('[2]MONE(M)CAPARD'!GS142=\"\",\"\",'[2]MONE(M)CAPARD'!GS142)","v":"n.d."},{"$f":"IF('[2]MONE(M)CARD'!HA142=\"\",\"\",'[2]MONE(M)CAPARD'!HA142)","v":"n.d."},{"$f":"IF('[2]MONE(M)CAPARD'!HB142=\"\",\"\",'[2]MONE(M)CAPARD'!HB142)","v":"n.d."},"n.d.","n.d.","n.d.","n.d.","n.d.","n.d.","n.d.","n.d.","n.d.","n.d.","n.d.","n.d.","n.d.","n.d.",{"$f":"IF('[2]MONE(M)CAPARD'!AS142=\"\",\"\",'[2]MONE(M)CAPARD'!AS142)","v":"n.d."},{"$f":"IF('[2]MONE(M)CAPARD'!AT142=\"\",\"\",'[2]MONE(M)CAPARD'!AT142)","v":"n.a."},{"$f":"IF('[2]MONE(M)CAPARD'!AU142=\"\",\"\",'[2]MONE(M)CAPARD'!AU142)","v":"n.d."},{"$f":"IF('[2]MONE(M)CAPARD'!AV142=\"\",\"\",'[2]MONE(M)CAPARD'!AV142)","v":"n.d."},{"$f":"IF('[2]MONE(M)CAPARD'!AW142=\"\",\"\",'[2]MONE(M)CAPARD'!AW142)","v":"n.a."},{"$f":"IF('[2]MONE(M)CAPARD'!AX142=\"\",\"\",'[2]MONE(M)CAPARD'!AX142)","v":"n.d."},{"$f":"IF('[2]MONE(M)CAPARD'!AY142=\"\",\"\",'[2]MONE(M)CAPARD'!AY142)","v":"n.a."},{"$f":"IF('[2]FISCAL(M)'!$K142=\"\",\"\",'[2]FISCAL(M)'!$K142)","v":"n.d."},{"$f":"IF('[2]FISCAL(M)'!$L142=\"\",\"\",'[2]FISCAL(M)'!$L142)","v":"n.d."},{"$f":"IF('[2]FISCAL(M)'!$AY142=\"\",\"\",'[2]FISCAL(M)'!$AY142)","v":"n.d."},{"$f":"IF('[2]FISCAL(M)'!$BI142=\"\",\"\",'[2]FISCAL(M)'!$BI142)","v":"n.d."},{"$f":"IF('[2]FISCAL(M)'!$BS142=\"\",\"\",'[2]FISCAL(M)'!$BS142)","v":"n.d."},{"$f":"IF('[2]FISCAL(M)'!$AZ142=\"\",\"\",'[2]FISCAL(M)'!$AZ142)","v":"n.d."},{"$f":"IF('[2]FISCAL(M)'!$BJ142=\"\",\"\",'[2]FISCAL(M)'!$BJ142)","v":"n.d."},{"$f":"IF('[2]FISCAL(M)'!$BT142=\"\",\"\",'[2]FISCAL(M)'!$BT142)","v":"n.d."},{"$f":"IF('[3]MONE(M)'!$AO142=\"\",\"\",'[3]MONE(M)'!$AO142)","v":"n.d."},{"$f":"IF('[4]MONE(M)'!$AO142=\"\",\"\",'[4]MONE(M)'!$AO142)","v":"n.d."},{"$f":"IF('[5]MONE(M)'!$AO142=\"\",\"\",'[5]MONE(M)'!$AO142)","v":"n.d."},{"$f":"+'[1]MONE(M)'!$AO142","v":"n.d."},{"$f":"IF('[6]MONE(M)'!$AO142=\"\",\"\",'[6]MONE(M)'!$AO142)","v":"n.d."},{"$f":"IF('[7]MONE(M)'!$AO142=\"\",\"\",'[7]MONE(M)'!$AO142)","v":"n.d."},{"$f":"IF('[8]MONE(M)'!$AO142=\"\",\"\",'[8]MONE(M)'!$AO142)","v":"n.d."},"n.d.","n.d.","n.d.","n.d.","n.d.","n.d.","n.d.",{"$f":"IF('[2]FISCAL(M)'!$K142=\"\",\"\",'[2]FISCAL(M)'!$K142)","v":"n.d."},{"$f":"+'[2]REAL(A)'!$AO$21","v":86214.197483650845},"n.d.",{"$f":"IF('[2]FISCAL(M)'!$L142=\"\",\"\",'[2]FISCAL(M)'!$L142)","v":"n.d."},{"$f":"+'[2]REAL(A)'!$AP$21","v":"n.d."},"n.d.","n.d.","n.d.","n.d.","n.d.","n.d.","n.d.","n.d.","n.d.","n.d.","n.d.","n.d.","n.d.","n.d.","n.d.","n.d.","n.d."]
[2001,"febrero","2001-febrero",{"$f":"IF('[2]REAL IPC(M)'!$AL143=\"\",\"\",+'[2]REAL IPC(M)'!$AL143)","v":8.2039911308203983},{"$f":"IF('[2]REAL IPC(M)'!$BE143=\"\",\"\",+'[2]REAL IPC(M)'!$BE143)","v":7.1555256946003176},{"$f":"IF('[2]REAL IPC(M)'!$AM143=\"\",\"\",+'[2]REAL IPC(M)'!$AM143)","v":7.5229709035222081},{"$f":"IF('[2]REAL IPC(M)'!$BI143=\"\",\"\",+'[2]REAL IPC(M)'!$BI143)","v":6.5368918112523211},{"$f":"IF('[2]REAL IMAE(M)'!BJ143=\"\",\"\",'[2]REAL IMAE(M)'!BJ143)","v":"n.d."},{"$f":"IF('[2]REAL IMAE(M)'!BK143=\"\",\"\",'[2]REAL IMAE(M)'!BK143)","v":"n.d."},{"$f":"IF('[2]REAL IMAE(M)'!BN143=\"\",\"\",'[2]REAL IMAE(M)'!BN143)","v":"n.d."},{"$f":"IF('[2]REAL IMAE(M)'!BO143=\"\",\"\",'[2]REAL IMAE(M)'!BO143)","v":"n.d."},{"$f":"IF('[2]EXT RIN(M)'!$K143=\"\",\"\",'[2]EXT RIN(M)'!$K143)","v":"n.d."},"",{"$f":"IF('[2]EXT RIN(M)'!$L143=\"\",\"\",'[2]EXT RIN(M)'!$L143)","v":"n.d."},"",{"$f":"IF('[2]MONE(M)CARD'!EG143=\"\",\"\",'[2]MONE(M)CARD'!EG143)","v":"n.d."},{"$f":"IF('[2]MONE(M)CARD'!EK143=\"\",\"\",'[2]MONE(M)CARD'!EK143)","v":"n.d."},{"$f":"IF('[2]MONE(M)CARD'!EP143=\"\",\"\",'[2]MONE(M)CARD'!EP143)","v":"n.d."},{"$f":"IF('[2]MONE(M)CARD'!ES143=\"\",\"\",'[2]MONE(M)CARD'!ES143)","v":"n.d."},{"$f":"IF('[2]MONE(M)CARD'!EV143=\"\",\"\",'[2]MONE(M)CARD'!EV143)","v":"n.d."},{"$f":"IF('[2]MONE(M)CARD'!EZ143=\"\",\"\",'[2]MONE(M)CARD'!EZ143)","v":"n.d."},{"$f":"IF('[2]MONE(M)CAPARD'!FC143=\"\",\"\",'[2]MONE(M)CAPARD'!FC143)","v":"n.d."},{"$f":"IF('[2]MONE(M)CAPARD'!FG143=\"\",\"\",'[2]MONE(M)CAPARD'!FG143)","v":"n.d."},{"$f":"IF('[2]MONE(M)CAPARD'!FL143=\"\",\"\",'[2]MONE(M)CAPARD'!FL143)","v":"n.d."},{"$f":"IF('[2]MONE(M)CAPARD'!FO143=\"\",\"\",'[2]MONE(M)CAPARD'!FO143)","v":"n.d."},{"$f":"IF('[2]MONE(M)CAPARD'!FR143=\"\",\"\",'[2]MONE(M)CAPARD'!FR143)","v":"n.d."},{"$f":"IF('[2]MONE(M)CAPARD'!FV143=\"\",\"\",'[2]MONE(M)CAPARD'!FV143)","v":"n.d."},{"$f":"IF('[2]MONE(M)CARD'!FV143=\"\",\"\",'[2]MONE(M)CARD'!FV143)","v":""},{"$f":"IF('[2]MONE(M)CARD'!GD143=\"\",\"\",'[2]MONE(M)CARD'!GD143)","v":"n.d."},{"$f":"IF('[2]MONE(M)CARD'!GE143=\"\",\"\",'[2]MONE(M)CARD'!GE143)","v":"n.d."},"n.d.","n.d.","n.d.","n.d.","n.d.","n.d.","n.d.","n.d.",null,"n.d.","n.d.","n.d.","n.d.","n.d.",{"$f":"IF('[2]MONE(M)CAPARD'!GS143=\"\",\"\",'[2]MONE(M)CAPARD'!GS143)","v":"n.d."},{"$f":"IF('[2]MONE(M)CARD'!HA143=\"\",\"\",'[2]MONE(M)CAPARD'!HA143)","v":"n.d."},{"$f":"IF('[2]MONE(M)CAPARD'!HB143=\"\",\"\",'[2]MONE(M)CAPARD'!HB143)","v":"n.d."},"n.d.","n.d.","n.d.","n.d.","n.d.","n.d.","n.d.","n.d.","n.d.","n.d.","n.d.","n.d.","n.d.","n.d.",{"$f":"IF('[2]MONE(M)CAPARD'!AS143=\"\",\"\",'[2]MONE(M)CAPARD'!AS143)","v":"n.d."},{"$f":"IF('[2]MONE(M)CAPARD'!AT143=\"\",\"\",'[2]MONE(M)CAPARD'!AT143)","v":"n.a."},{"$f":"IF('[2]MONE(M)CAPARD'!AU143=\"\",\"\",'[2]MONE(M)CAPARD'!AU143)","v":"n.d."},{"$f":"IF('[2]MONE(M)CAPARD'!AV143=\"\",\"\",'[2]MONE(M)CAPARD'!AV143)","v":"n.d."},{"$f":"IF('[2]MONE(M)CAPARD'!AW143=\"\",\"\",'[2]MONE(M)CAPARD'!AW143)","v":"n.a."},{"$f":"IF('[2]MONE(M)CAPARD'!AX143=\"\",\"\",'[2]MONE(M)CAPARD'!AX143)","v":"n.d."},{"$f":"IF('[2]MONE(M)CAPARD'!AY143=\"\",\"\",'[2]MONE(M)CAPARD'!AY143)","v":"n.a."},{"$f":"IF('[2]FISCAL(M)'!$K143=\"\",\"\",'[2]FISCAL(M)'!$K143)","v":"n.d."},{"$f":"IF('[2]FISCAL(M)'!$L143=\"\",\"\",'[2]FISCAL(M)'!$L143)","v":"n.d."},{"$f":"IF('[2]FISCAL(M)'!$AY143=\"\",\"\",'[2]FISCAL(M)'!$AY143)","v":"n.d."},{"$f":"IF('[2]FISCAL(M)'!$BI143=\"\",\"\",'[2]FISCAL(M)'!$BI143)","v":"n.d."},{"$f":"IF('[2]FISCAL(M)'!$BS143=\"\",\"\",'[2]FISCAL(M)'!$BS143)","v":"n.d."},{"$f":"IF('[2]FISCAL(M)'!$AZ143=\"\",\"\",'[2]FISCAL(M)'!$AZ143)","v":"n.d."},{"$f":"IF('[2]FISCAL(M)'!$BJ143=\"\",\"\",'[2]FISCAL(M)'!$BJ143)","v":"n.d."},{"$f":"IF('[2]FISCAL(M)'!$BT143=\"\",\"\",'[2]FISCAL(M)'!$BT143)","v":"n.d."},{"$f":"IF('[3]MONE(M)'!$AO143=\"\",\"\",'[3]MONE(M)'!$AO143)","v":"n.d."},{"$f":"IF('[4]MONE(M)'!$AO143=\"\",\"\",'[4]MONE(M)'!$AO143)","v":"n.d."},{"$f":"IF('[5]MONE(M)'!$AO143=\"\",\"\",'[5]MONE(M)'!$AO143)","v":"n.d."},{"$f":"+'[1]MONE(M)'!$AO143","v":"n.d."},{"$f":"IF('[6]MONE(M)'!$AO143=\"\",\"\",'[6]MONE(M)'!$AO143)","v":"n.d."},{"$f":"IF('[7]MONE(M)'!$AO143=\"\",\"\",'[7]MONE(M)'!$AO143)","v":"n.d."},{"$f":"IF('[8]MONE(M)'!$AO143=\"\",\"\",'[8]MONE(M)'!$AO143)","v":"n.d."},"n.d.","n.d.","n.d.","n.d.","n.d.","n.d.","n.d.",{"$f":"IF('[2]FISCAL(M)'!$K143=\"\",\"\",'[2]FISCAL(M)'!$K143)","v":"n.d."},{"$f":"+'[2]REAL(A)'!$AO$21","v":86214.197483650845},"n.d.",{"$f":"IF('[2]FISCAL(M)'!$L143=\"\",\"\",'[2]FISCAL(M)'!$L143)","v":"n.d."},{"$f":"+'[2]REAL(A)'!$AP$21","v":"n.d."},"n.d.","n.d.","n.d.","n.d.","n.d.","n.d.","n.d.","n.d.","n.d.","n.d.","n.d.","n.d.","n.d.","n.d.","n.d.","n.d.","n.d."]
[2001,"marzo","2001-marzo",{"$f":"IF('[2]REAL IPC(M)'!$AL144=\"\",\"\",+'[2]REAL IPC(M)'!$AL144)","v":8.0008020854221087},{"$f":"IF('[2]REAL IPC(M)'!$BE144=\"\",\"\",+'[2]REAL IPC(M)'!$BE144)","v":7.2242168295501452},{"$f":"IF('[2]REAL IPC(M)'!$AM144=\"\",\"\",+'[2]REAL IPC(M)'!$AM144)","v":7.3142857142857176},{"$f":"IF('[2]REAL IPC(M)'!$BI144=\"\",\"\",+'[2]REAL IPC(M)'!$BI144)","v":6.594620005213625},{"$f":"IF('[2]REAL IMAE(M)'!BJ144=\"\",\"\",'[2]REAL IMAE(M)'!BJ144)","v":"n.d."},{"$f":"IF('[2]REAL IMAE(M)'!BK144=\"\",\"\",'[2]REAL IMAE(M)'!BK144)","v":"n.d."},{"$f":"IF('[2]REAL IMAE(M)'!BN144=\"\",\"\",'[2]REAL IMAE(M)'!BN144)","v":"n.d."},{"$f":"IF('[2]REAL IMAE(M)'!BO144=\"\",\"\",'[2]REAL IMAE(M)'!BO144)","v":"n.d."},{"$f":"IF('[2]EXT RIN(M)'!$K144=\"\",\"\",'[2]EXT RIN(M)'!$K144)","v":"n.d."},"",{"$f":"IF('[2]EXT RIN(M)'!$L144=\"\",\"\",'[2]EXT RIN(M)'!$L144)","v":"n.d."},"",{"$f":"IF('[2]MONE(M)CARD'!EG144=\"\",\"\",'[2]MONE(M)CARD'!EG144)","v":"n.d."},{"$f":"IF('[2]MONE(M)CARD'!EK144=\"\",\"\",'[2]MONE(M)CARD'!EK144)","v":"n.d."},{"$f":"IF('[2]MONE(M)CARD'!EP144=\"\",\"\",'[2]MONE(M)CARD'!EP144)","v":"n.d."},{"$f":"IF('[2]MONE(M)CARD'!ES144=\"\",\"\",'[2]MONE(M)CARD'!ES144)","v":"n.d."},{"$f":"IF('[2]MONE(M)CARD'!EV144=\"\",\"\",'[2]MONE(M)CARD'!EV144)","v":"n.d."},{"$f":"IF('[2]MONE(M)CARD'!EZ144=\"\",\"\",'[2]MONE(M)CARD'!EZ144)","v":"n.d."},{"$f":"IF('[2]MONE(M)CAPARD'!FC144=\"\",\"\",'[2]MONE(M)CAPARD'!FC144)","v":"n.d."},{"$f":"IF('[2]MONE(M)CAPARD'!FG144=\"\",\"\",'[2]MONE(M)CAPARD'!FG144)","v":"n.d."},{"$f":"IF('[2]MONE(M)CAPARD'!FL144=\"\",\"\",'[2]MONE(M)CAPARD'!FL144)","v":"n.d."},{"$f":"IF('[2]MONE(M)CAPARD'!FO144=\"\",\"\",'[2]MONE(M)CAPARD'!FO144)","v":"n.d."},{"$f":"IF('[2]MONE(M)CAPARD'!FR144=\"\",\"\",'[2]MONE(M)CAPARD'!FR144)","v":"n.d."},{"$f":"IF('[2]MONE(M)CAPARD'!FV144=\"\",\"\",'[2]MONE(M)CAPARD'!FV144)","v":"n.d."},{"$f":"IF('[2]MONE(M)CARD'!FV144=\"\",\"\",'[2]MONE(M)CARD'!FV144)","v":""},{"$f":"IF('[2]MONE(M)CARD'!GD144=\"\",\"\",'[2]MONE(M)CARD'!GD144)","v":"n.d."},{"$f":"IF('[2]MONE(M)CARD'!GE144=\"\",\"\",'[2]MONE(M)CARD'!GE144)","v":"n.d."},"n.d.","n.d.","n.d.","n.d.","n.d.","n.d.","n.d.","n.d.",null,"n.d.","n.d.","n.d.","n.d.","n.d.",{"$f":"IF('[2]MONE(M)CAPARD'!GS144=\"\",\"\",'[2]MONE(M)CAPARD'!GS144)","v":"n.d."},{"$f":"IF('[2]MONE(M)CARD'!HA144=\"\",\"\",'[2]MONE(M)CAPARD'!HA144)","v":"n.d."},{"$f":"IF('[2]MONE(M)CAPARD'!HB144=\"\",\"\",'[2]MONE(M)CAPARD'!HB144)","v":"n.d."},"n.d.","n.d.","n.d.","n.d.","n.d.","n.d.","n.d.","n.d.","n.d.","n.d.","n.d.","n.d.","n.d.","n.d.",{"$f":"IF('[2]MONE(M)CAPARD'!AS144=\"\",\"\",'[2]MONE(M)CAPARD'!AS144)","v":"n.d."},{"$f":"IF('[2]MONE(M)CAPARD'!AT144=\"\",\"\",'[2]MONE(M)CAPARD'!AT144)","v":"n.a."},{"$f":"IF('[2]MONE(M)CAPARD'!AU144=\"\",\"\",'[2]MONE(M)CAPARD'!AU144)","v":"n.d."},{"$f":"IF('[2]MONE(M)CAPARD'!AV144=\"\",\"\",'[2]MONE(M)CAPARD'!AV144)","v":"n.d."},{"$f":"IF('[2]MONE(M)CAPARD'!AW144=\"\",\"\",'[2]MONE(M)CAPARD'!AW144)","v":"n.a."},{"$f":"IF('[2]MONE(M)CAPARD'!AX144=\"\",\"\",'[2]MONE(M)CAPARD'!AX144)","v":"n.d."},{"$f":"IF('[2]MONE(M)CAPARD'!AY144=\"\",\"\",'[2]MONE(M)CAPARD'!AY144)","v":"n.a."},{"$f":"IF('[2]FISCAL(M)'!$K144=\"\",\"\",'[2]FISCAL(M)'!$K144)","v":"n.d."},{"$f":"IF('[2]FISCAL(M)'!$L144=\"\",\"\",'[2]FISCAL(M)'!$L144)","v":"n.d."},{"$f":"IF('[2]FISCAL(M)'!$AY144=\"\",\"\",'[2]FISCAL(M)'!$AY144)","v":"n.d."},{"$f":"IF('[2]FISCAL(M)'!$BI144=\"\",\"\",'[2]FISCAL(M)'!$BI144)","v":"n.d."},{"$f":"IF('[2]FISCAL(M)'!$BS144=\"\",\"\",'[2]FISCAL(M)'!$BS144)","v":"n.d."},{"$f":"IF('[2]FISCAL(M)'!$AZ144=\"\",\"\",'[2]FISCAL(M)'!$AZ144)","v":"n.d."},{"$f":"IF('[2]FISCAL(M)'!$BJ144=\"\",\"\",'[2]FISCAL(M)'!$BJ144)","v":"n.d."},{"$f":"IF('[2]FISCAL(M)'!$BT144=\"\",\"\",'[2]FISCAL(M)'!$BT144)","v":"n.d."},{"$f":"IF('[3]MONE(M)'!$AO144=\"\",\"\",'[3]MONE(M)'!$AO144)","v":"n.d."},{"$f":"IF('[4]MONE(M)'!$AO144=\"\",\"\",'[4]MONE(M)'!$AO144)","v":"n.d."},{"$f":"IF('[5]MONE(M)'!$AO144=\"\",\"\",'[5]MONE(M)'!$AO144)","v":"n.d."},{"$f":"+'[1]MONE(M)'!$AO144","v":"n.d."},{"$f":"IF('[6]MONE(M)'!$AO144=\"\",\"\",'[6]MONE(M)'!$AO144)","v":"n.d."},{"$f":"IF('[7]MONE(M)'!$AO144=\"\",\"\",'[7]MONE(M)'!$AO144)","v":"n.d."},{"$f":"IF('[8]MONE(M)'!$AO144=\"\",\"\",'[8]MONE(M)'!$AO144)","v":"n.d."},"n.d.","n.d.","n.d.","n.d.","n.d.","n.d.","n.d.",{"$f":"IF('[2]FISCAL(M)'!$K144=\"\",\"\",'[2]FISCAL(M)'!$K144)","v":"n.d."},{"$f":"+'[2]REAL(A)'!$AO$21","v":86214.197483650845},"n.d.",{"$f":"IF('[2]FISCAL(M)'!$L144=\"\",\"\",'[2]FISCAL(M)'!$L144)","v":"n.d."},{"$f":"+'[2]REAL(A)'!$AP$21","v":"n.d."},"n.d.","n.d.","n.d.","n.d.","n.d.","n.d.","n.d.","n.d.","n.d.","n.d.","n.d.","n.d.","n.d.","n.d.","n.d.","n.d.","n.d."]
[2001,"abril","2001-abril",{"$f":"IF('[2]REAL IPC(M)'!$AL145=\"\",\"\",+'[2]REAL IPC(M)'!$AL145)","v":8.1685640103854595},{"$f":"IF('[2]REAL IPC(M)'!$BE145=\"\",\"\",+'[2]REAL IPC(M)'!$BE145)","v":7.2981979454313617},{"$f":"IF('[2]REAL IPC(M)'!$AM145=\"\",\"\",+'[2]REAL IPC(M)'!$AM145)","v":7.4776997532738809},{"$f":"IF('[2]REAL IPC(M)'!$BI145=\"\",\"\",+'[2]REAL IPC(M)'!$BI145)","v":6.6570462704186317},{"$f":"IF('[2]REAL IMAE(M)'!BJ145=\"\",\"\",'[2]REAL IMAE(M)'!BJ145)","v":"n.d."},{"$f":"IF('[2]REAL IMAE(M)'!BK145=\"\",\"\",'[2]REAL IMAE(M)'!BK145)","v":"n.d."},{"$f":"IF('[2]REAL IMAE(M)'!BN145=\"\",\"\",'[2]REAL IMAE(M)'!BN145)","v":"n.d."},{"$f":"IF('[2]REAL IMAE(M)'!BO145=\"\",\"\",'[2]REAL IMAE(M)'!BO145)","v":"n.d."},{"$f":"IF('[2]EXT RIN(M)'!$K145=\"\",\"\",'[2]EXT RIN(M)'!$K145)","v":"n.d."},"",{"$f":"IF('[2]EXT RIN(M)'!$L145=\"\",\"\",'[2]EXT RIN(M)'!$L145)","v":"n.d."},"",{"$f":"IF('[2]MONE(M)CARD'!EG145=\"\",\"\",'[2]MONE(M)CARD'!EG145)","v":"n.d."},{"$f":"IF('[2]MONE(M)CARD'!EK145=\"\",\"\",'[2]MONE(M)CARD'!EK145)","v":"n.d."},{"$f":"IF('[2]MONE(M)CARD'!EP145=\"\",\"\",'[2]MONE(M)CARD'!EP145)","v":"n.d."},{"$f":"IF('[2]MONE(M)CARD'!ES145=\"\",\"\",'[2]MONE(M)CARD'!ES145)","v":"n.d."},{"$f":"IF('[2]MONE(M)CARD'!EV145=\"\",\"\",'[2]MONE(M)CARD'!EV145)","v":"n.d."},{"$f":"IF('[2]MONE(M)CARD'!EZ145=\"\",\"\",'[2]MONE(M)CARD'!EZ145)","v":"n.d."},{"$f":"IF('[2]MONE(M)CAPARD'!FC145=\"\",\"\",'[2]MONE(M)CAPARD'!FC145)","v":"n.d."},{"$f":"IF('[2]MONE(M)CAPARD'!FG145=\"\",\"\",'[2]MONE(M)CAPARD'!FG145)","v":"n.d."},{"$f":"IF('[2]MONE(M)CAPARD'!FL145=\"\",\"\",'[2]MONE(M)CAPARD'!FL145)","v":"n.d."},{"$f":"IF('[2]MONE(M)CAPARD'!FO145=\"\",\"\",'[2]MONE(M)CAPARD'!FO145)","v":"n.d."},{"$f":"IF('[2]MONE(M)CAPARD'!FR145=\"\",\"\",'[2]MONE(M)CAPARD'!FR145)","v":"n.d."},{"$f":"IF('[2]MONE(M)CAPARD'!FV145=\"\",\"\",'[2]MONE(M)CAPARD'!FV145)","v":"n.d."},{"$f":"IF('[2]MONE(M)CARD'!FV145=\"\",\"\",'[2]MONE(M)CARD'!FV145)","v":""},{"$f":"IF('[2]MONE(M)CARD'!GD145=\"\",\"\",'[2]MONE(M)CARD'!GD145)","v":"n.d."},{"$f":"IF('[2]MONE(M)CARD'!GE145=\"\",\"\",'[2]MONE(M)CARD'!GE145)","v":"n.d."},"n.d.","n.d.","n.d.","n.d.","n.d.","n.d.","n.d.","n.d.",null,"n.d.","n.d.","n.d.","n.d.","n.d.",{"$f":"IF('[2]MONE(M)CAPARD'!GS145=\"\",\"\",'[2]MONE(M)CAPARD'!GS145)","v":"n.d."},{"$f":"IF('[2]MONE(M)CARD'!HA145=\"\",\"\",'[2]MONE(M)CAPARD'!HA145)","v":"n.d."},{"$f":"IF('[2]MONE(M)CAPARD'!HB145=\"\",\"\",'[2]MONE(M)CAPARD'!HB145)","v":"n.d."},"n.d.","n.d.","n.d.","n.d.","n.d.","n.d.","n.d.","n.d.","n.d.","n.d.","n.d.","n.d.","n.d.","n.d.",{"$f":"IF('[2]MONE(M)CAPARD'!AS145=\"\",\"\",'[2]MONE(M)CAPARD'!AS145)","v":"n.d."},{"$f":"IF('[2]MONE(M)CAPARD'!AT145=\"\",\"\",'[2]MONE(M)CAPARD'!AT145)","v":"n.a."},{"$f":"IF('[2]MONE(M)CAPARD'!AU145=\"\",\"\",'[2]MONE(M)CAPARD'!AU145)","v":"n.d."},{"$f":"IF('[2]MONE(M)CAPARD'!AV145=\"\",\"\",'[2]MONE(M)CAPARD'!AV145)","v":"n.d."},{"$f":"IF('[2]MONE(M)CAPARD'!AW145=\"\",\"\",'[2]MONE(M)CAPARD'!AW145)","v":"n.a."},{"$f":"IF('[2]MONE(M)CAPARD'!AX145=\"\",\"\",'[2]MONE(M)CAPARD'!AX145)","v":"n.d."},{"$f":"IF('[2]MONE(M)CAPARD'!AY145=\"\",\"\",'[2]MONE(M)CAPARD'!AY145)","v":"n.a."},{"$f":"IF('[2]FISCAL(M)'!$K145=\"\",\"\",'[2]FISCAL(M)'!$K145)","v":"n.d."},{"$f":"IF('[2]FISCAL(M)'!$L145=\"\",\"\",'[2]FISCAL(M)'!$L145)","v":"n.d."},{"$f":"IF('[2]FISCAL(M)'!$AY145=\"\",\"\",'[2]FISCAL(M)'!$AY145)","v":"n.d."},{"$f":"IF('[2]FISCAL(M)'!$BI145=\"\",\"\",'[2]FISCAL(M)'!$BI145)","v":"n.d."},{"$f":"IF('[2]FISCAL(M)'!$BS145=\"\",\"\",'[2]FISCAL(M)'!$BS145)","v":"n.d."},{"$f":"IF('[2]FISCAL(M)'!$AZ145=\"\",\"\",'[2]FISCAL(M)'!$AZ145)","v":"n.d."},{"$f":"IF('[2]FISCAL(M)'!$BJ145=\"\",\"\",'[2]FISCAL(M)'!$BJ145)","v":"n.d."},{"$f":"IF('[2]FISCAL(M)'!$BT145=\"\",\"\",'[2]FISCAL(M)'!$BT145)","v":"n.d."},{"$f":"IF('[3]MONE(M)'!$AO145=\"\",\"\",'[3]MONE(M)'!$AO145)","v":"n.d."},{"$f":"IF('[4]MONE(M)'!$AO145=\"\",\"\",'[4]MONE(M)'!$AO145)","v":"n.d."},{"$f":"IF('[5]MONE(M)'!$AO145=\"\",\"\",'[5]MONE(M)'!$AO145)","v":"n.d."},{"$f":"+'[1]MONE(M)'!$AO145","v":"n.d."},{"$f":"IF('[6]MONE(M)'!$AO145=\"\",\"\",'[6]MONE(M)'!$AO145)","v":"n.d."},{"$f":"IF('[7]MONE(M)'!$AO145=\"\",\"\",'[7]MONE(M)'!$AO145)","v":"n.d."},{"$f":"IF('[8]MONE(M)'!$AO145=\"\",\"\",'[8]MONE(M)'!$AO145)","v":"n.d."},"n.d.","n.d.","n.d.","n.d.","n.d.","n.d.","n.d.",{"$f":"IF('[2]FISCAL(M)'!$K145=\"\",\"\",'[2]FISCAL(M)'!$K145)","v":"n.d."},{"$f":"+'[2]REAL(A)'!$AO$21","v":86214.197483650845},"n.d.",{"$f":"IF('[2]FISCAL(M)'!$L145=\"\",\"\",'[2]FISCAL(M)'!$L145)","v":"n.d."},{"$f":"+'[2]REAL(A)'!$AP$21","v":"n.d."},"n.d.","n.d.","n.d.","n.d.","n.d.","n.d.","n.d.","n.d.","n.d.","n.d.","n.d.","n.d.","n.d.","n.d.","n.d.","n.d.","n.d."]
[2001,"mayo ","2001-mayo ",{"$f":"IF('[2]REAL IPC(M)'!$AL146=\"\",\"\",+'[2]REAL IPC(M)'!$AL146)","v":8.6651991194716782},{"$f":"IF('[2]REAL IPC(M)'!$BE146=\"\",\"\",+'[2]REAL IPC(M)'!$BE146)","v":7.3777542789196682},{"$f":"IF('[2]REAL IPC(M)'!$AM146=\"\",\"\",+'[2]REAL IPC(M)'!$AM146)","v":7.9102490967864592},{"$f":"IF('[2]REAL IPC(M)'!$BI146=\"\",\"\",+'[2]REAL IPC(M)'!$BI146)","v":6.7244446002098446},{"$f":"IF('[2]REAL IMAE(M)'!BJ146=\"\",\"\",'[2]REAL IMAE(M)'!BJ146)","v":"n.d."},{"$f":"IF('[2]REAL IMAE(M)'!BK146=\"\",\"\",'[2]REAL IMAE(M)'!BK146)","v":"n.d."},{"$f":"IF('[2]REAL IMAE(M)'!BN146=\"\",\"\",'[2]REAL IMAE(M)'!BN146)","v":"n.d."},{"$f":"IF('[2]REAL IMAE(M)'!BO146=\"\",\"\",'[2]REAL IMAE(M)'!BO146)","v":"n.d."},{"$f":"IF('[2]EXT RIN(M)'!$K146=\"\",\"\",'[2]EXT RIN(M)'!$K146)","v":"n.d."},"",{"$f":"IF('[2]EXT RIN(M)'!$L146=\"\",\"\",'[2]EXT RIN(M)'!$L146)","v":"n.d."},"",{"$f":"IF('[2]MONE(M)CARD'!EG146=\"\",\"\",'[2]MONE(M)CARD'!EG146)","v":"n.d."},{"$f":"IF('[2]MONE(M)CARD'!EK146=\"\",\"\",'[2]MONE(M)CARD'!EK146)","v":"n.d."},{"$f":"IF('[2]MONE(M)CARD'!EP146=\"\",\"\",'[2]MONE(M)CARD'!EP146)","v":"n.d."},{"$f":"IF('[2]MONE(M)CARD'!ES146=\"\",\"\",'[2]MONE(M)CARD'!ES146)","v":"n.d."},{"$f":"IF('[2]MONE(M)CARD'!EV146=\"\",\"\",'[2]MONE(M)CARD'!EV146)","v":"n.d."},{"$f":"IF('[2]MONE(M)CARD'!EZ146=\"\",\"\",'[2]MONE(M)CARD'!EZ146)","v":"n.d."},{"$f":"IF('[2]MONE(M)CAPARD'!FC146=\"\",\"\",'[2]MONE(M)CAPARD'!FC146)","v":"n.d."},{"$f":"IF('[2]MONE(M)CAPARD'!FG146=\"\",\"\",'[2]MONE(M)CAPARD'!FG146)","v":"n.d."},{"$f":"IF('[2]MONE(M)CAPARD'!FL146=\"\",\"\",'[2]MONE(M)CAPARD'!FL146)","v":"n.d."},{"$f":"IF('[2]MONE(M)CAPARD'!FO146=\"\",\"\",'[2]MONE(M)CAPARD'!FO146)","v":"n.d."},{"$f":"IF('[2]MONE(M)CAPARD'!FR146=\"\",\"\",'[2]MONE(M)CAPARD'!FR146)","v":"n.d."},{"$f":"IF('[2]MONE(M)CAPARD'!FV146=\"\",\"\",'[2]MONE(M)CAPARD'!FV146)","v":"n.d."},{"$f":"IF('[2]MONE(M)CARD'!FV146=\"\",\"\",'[2]MONE(M)CARD'!FV146)","v":""},{"$f":"IF('[2]MONE(M)CARD'!GD146=\"\",\"\",'[2]MONE(M)CARD'!GD146)","v":"n.d."},{"$f":"IF('[2]MONE(M)CARD'!GE146=\"\",\"\",'[2]MONE(M)CARD'!GE146)","v":"n.d."},"n.d.","n.d.","n.d.","n.d.","n.d.","n.d.","n.d.","n.d.",null,"n.d.","n.d.","n.d.","n.d.","n.d.",{"$f":"IF('[2]MONE(M)CAPARD'!GS146=\"\",\"\",'[2]MONE(M)CAPARD'!GS146)","v":"n.d."},{"$f":"IF('[2]MONE(M)CARD'!HA146=\"\",\"\",'[2]MONE(M)CAPARD'!HA146)","v":"n.d."},{"$f":"IF('[2]MONE(M)CAPARD'!HB146=\"\",\"\",'[2]MONE(M)CAPARD'!HB146)","v":"n.d."},"n.d.","n.d.","n.d.","n.d.","n.d.","n.d.","n.d.","n.d.","n.d.","n.d.","n.d.","n.d.","n.d.","n.d.",{"$f":"IF('[2]MONE(M)CAPARD'!AS146=\"\",\"\",'[2]MONE(M)CAPARD'!AS146)","v":"n.d."},{"$f":"IF('[2]MONE(M)CAPARD'!AT146=\"\",\"\",'[2]MONE(M)CAPARD'!AT146)","v":"n.a."},{"$f":"IF('[2]MONE(M)CAPARD'!AU146=\"\",\"\",'[2]MONE(M)CAPARD'!AU146)","v":"n.d."},{"$f":"IF('[2]MONE(M)CAPARD'!AV146=\"\",\"\",'[2]MONE(M)CAPARD'!AV146)","v":"n.d."},{"$f":"IF('[2]MONE(M)CAPARD'!AW146=\"\",\"\",'[2]MONE(M)CAPARD'!AW146)","v":"n.a."},{"$f":"IF('[2]MONE(M)CAPARD'!AX146=\"\",\"\",'[2]MONE(M)CAPARD'!AX146)","v":"n.d."},{"$f":"IF('[2]MONE(M)CAPARD'!AY146=\"\",\"\",'[2]MONE(M)CAPARD'!AY146)","v":"n.a."},{"$f":"IF('[2]FISCAL(M)'!$K146=\"\",\"\",'[2]FISCAL(M)'!$K146)","v":"n.d."},{"$f":"IF('[2]FISCAL(M)'!$L146=\"\",\"\",'[2]FISCAL(M)'!$L146)","v":"n.d."},{"$f":"IF('[2]FISCAL(M)'!$AY146=\"\",\"\",'[2]FISCAL(M)'!$AY146)","v":"n.d."},{"$f":"IF('[2]FISCAL(M)'!$BI146=\"\",\"\",'[2]FISCAL(M)'!$BI146)","v":"n.d."},{"$f":"IF('[2]FISCAL(M)'!$BS146=\"\",\"\",'[2]FISCAL(M)'!$BS146)","v":"n.d."},{"$f":"IF('[2]FISCAL(M)'!$AZ146=\"\",\"\",'[2]FISCAL(M)'!$AZ146)","v":"n.d."},{"$f":"IF('[2]FISCAL(M)'!$BJ146=\"\",\"\",'[2]FISCAL(M)'!$BJ146)","v":"n.d."},{"$f":"IF('[2]FISCAL(M)'!$BT146=\"\",\"\",'[2]FISCAL(M)'!$BT146)","v":"n.d."},{"$f":"IF('[3]MONE(M)'!$AO146=\"\",\"\",'[3]MONE(M)'!$AO146)","v":"n.d."},{"$f":"IF('[4]MONE(M)'!$AO146=\"\",\"\",'[4]MONE(M)'!$AO146)","v":"n.d."},{"$f":"IF('[5]MONE(M)'!$AO146=\"\",\"\",'[5]MONE(M)'!$AO146)","v":"n.d."},{"$f":"+'[1]MONE(M)'!$AO146","v":"n.d."},{"$f":"IF('[6]MONE(M)'!$AO146=\"\",\"\",'[6]MONE(M)'!$AO146)","v":"n.d."},{"$f":"IF('[7]MONE(M)'!$AO146=\"\",\"\",'[7]MONE(M)'!$AO146)","v":"n.d."},{"$f":"IF('[8]MONE(M)'!$AO146=\"\",\"\",'[8]MONE(M)'!$AO146)","v":"n.d."},"n.d.","n.d.","n.d.","n.d.","n.d.","n.d.","n.d.",{"$f":"IF('[2]FISCAL(M)'!$K146=\"\",\"\",'[2]FISCAL(M)'!$K146)","v":"n.d."},{"$f":"+'[2]REAL(A)'!$AO$21","v":86214.197483650845},"n.d.",{"$f":"IF('[2]FISCAL(M)'!$L146=\"\",\"\",'[2]FISCAL(M)'!$L146)","v":"n.d."},{"$f":"+'[2]REAL(A)'!$AP$21","v":"n.d."},"n.d.","n.d.","n.d.","n.d.","n.d.","n.d.","n.d.","n.d.","n.d.","n.d.","n.d.","n.d.","n.d.","n.d.","n.d.","n.d.","n.d."]
[2001,"junio ","2001-junio ",{"$f":"IF('[2]REAL IPC(M)'!$AL147=\"\",\"\",+'[2]REAL IPC(M)'!$AL147)","v":7.9881070366699669},{"$f":"IF('[2]REAL IPC(M)'!$BE147=\"\",\"\",+'[2]REAL IPC(M)'!$BE147)","v":7.4632178972333429},{"$f":"IF('[2]REAL IPC(M)'!$AM147=\"\",\"\",+'[2]REAL IPC(M)'!$AM147)","v":7.2168833615978922},{"$f":"IF('[2]REAL IPC(M)'!$BI147=\"\",\"\",+'[2]REAL IPC(M)'!$BI147)","v":6.7971344880735529},{"$f":"IF('[2]REAL IMAE(M)'!BJ147=\"\",\"\",'[2]REAL IMAE(M)'!BJ147)","v":"n.d."},{"$f":"IF('[2]REAL IMAE(M)'!BK147=\"\",\"\",'[2]REAL IMAE(M)'!BK147)","v":"n.d."},{"$f":"IF('[2]REAL IMAE(M)'!BN147=\"\",\"\",'[2]REAL IMAE(M)'!BN147)","v":"n.d."},{"$f":"IF('[2]REAL IMAE(M)'!BO147=\"\",\"\",'[2]REAL IMAE(M)'!BO147)","v":"n.d."},{"$f":"IF('[2]EXT RIN(M)'!$K147=\"\",\"\",'[2]EXT RIN(M)'!$K147)","v":"n.d."},"",{"$f":"IF('[2]EXT RIN(M)'!$L147=\"\",\"\",'[2]EXT RIN(M)'!$L147)","v":"n.d."},"",{"$f":"IF('[2]MONE(M)CARD'!EG147=\"\",\"\",'[2]MONE(M)CARD'!EG147)","v":"n.d."},{"$f":"IF('[2]MONE(M)CARD'!EK147=\"\",\"\",'[2]MONE(M)CARD'!EK147)","v":"n.d."},{"$f":"IF('[2]MONE(M)CARD'!EP147=\"\",\"\",'[2]MONE(M)CARD'!EP147)","v":"n.d."},{"$f":"IF('[2]MONE(M)CARD'!ES147=\"\",\"\",'[2]MONE(M)CARD'!ES147)","v":"n.d."},{"$f":"IF('[2]MONE(M)CARD'!EV147=\"\",\"\",'[2]MONE(M)CARD'!EV147)","v":"n.d."},{"$f":"IF('[2]MONE(M)CARD'!EZ147=\"\",\"\",'[2]MONE(M)CARD'!EZ147)","v":"n.d."},{"$f":"IF('[2]MONE(M)CAPARD'!FC147=\"\",\"\",'[2]MONE(M)CAPARD'!FC147)","v":"n.d."},{"$f":"IF('[2]MONE(M)CAPARD'!FG147=\"\",\"\",'[2]MONE(M)CAPARD'!FG147)","v":"n.d."},{"$f":"IF('[2]MONE(M)CAPARD'!FL147=\"\",\"\",'[2]MONE(M)CAPARD'!FL147)","v":"n.d."},{"$f":"IF('[2]MONE(M)CAPARD'!FO147=\"\",\"\",'[2]MONE(M)CAPARD'!FO147)","v":"n.d."},{"$f":"IF('[2]MONE(M)CAPARD'!FR147=\"\",\"\",'[2]MONE(M)CAPARD'!FR147)","v":"n.d."},{"$f":"IF('[2]MONE(M)CAPARD'!FV147=\"\",\"\",'[2]MONE(M)CAPARD'!FV147)","v":"n.d."},{"$f":"IF('[2]MONE(M)CARD'!FV147=\"\",\"\",'[2]MONE(M)CARD'!FV147)","v":""},{"$f":"IF('[2]MONE(M)CARD'!GD147=\"\",\"\",'[2]MONE(M)CARD'!GD147)","v":"n.d."},{"$f":"IF('[2]MONE(M)CARD'!GE147=\"\",\"\",'[2]MONE(M)CARD'!GE147)","v":"n.d."},"n.d.","n.d.","n.d.","n.d.","n.d.","n.d.","n.d.","n.d.",null,"n.d.","n.d.","n.d.","n.d.","n.d.",{"$f":"IF('[2]MONE(M)CAPARD'!GS147=\"\",\"\",'[2]MONE(M)CAPARD'!GS147)","v":"n.d."},{"$f":"IF('[2]MONE(M)CARD'!HA147=\"\",\"\",'[2]MONE(M)CAPARD'!HA147)","v":"n.d."},{"$f":"IF('[2]MONE(M)CAPARD'!HB147=\"\",\"\",'[2]MONE(M)CAPARD'!HB147)","v":"n.d."},"n.d.","n.d.","n.d.","n.d.","n.d.","n.d.","n.d.","n.d.","n.d.","n.d.","n.d.","n.d.","n.d.","n.d.",{"$f":"IF('[2]MONE(M)CAPARD'!AS147=\"\",\"\",'[2]MONE(M)CAPARD'!AS147)","v":"n.d."},{"$f":"IF('[2]MONE(M)CAPARD'!AT147=\"\",\"\",'[2]MONE(M)CAPARD'!AT147)","v":"n.a."},{"$f":"IF('[2]MONE(M)CAPARD'!AU147=\"\",\"\",'[2]MONE(M)CAPARD'!AU147)","v":"n.d."},{"$f":"IF('[2]MONE(M)CAPARD'!AV147=\"\",\"\",'[2]MONE(M)CAPARD'!AV147)","v":"n.d."},{"$f":"IF('[2]MONE(M)CAPARD'!AW147=\"\",\"\",'[2]MONE(M)CAPARD'!AW147)","v":"n.a."},{"$f":"IF('[2]MONE(M)CAPARD'!AX147=\"\",\"\",'[2]MONE(M)CAPARD'!AX147)","v":"n.d."},{"$f":"IF('[2]MONE(M)CAPARD'!AY147=\"\",\"\",'[2]MONE(M)CAPARD'!AY147)","v":"n.a."},{"$f":"IF('[2]FISCAL(M)'!$K147=\"\",\"\",'[2]FISCAL(M)'!$K147)","v":"n.d."},{"$f":"IF('[2]FISCAL(M)'!$L147=\"\",\"\",'[2]FISCAL(M)'!$L147)","v":"n.d."},{"$f":"IF('[2]FISCAL(M)'!$AY147=\"\",\"\",'[2]FISCAL(M)'!$AY147)","v":"n.d."},{"$f":"IF('[2]FISCAL(M)'!$BI147=\"\",\"\",'[2]FISCAL(M)'!$BI147)","v":"n.d."},{"$f":"IF('[2]FISCAL(M)'!$BS147=\"\",\"\",'[2]FISCAL(M)'!$BS147)","v":"n.d."},{"$f":"IF('[2]FISCAL(M)'!$AZ147=\"\",\"\",'[2]FISCAL(M)'!$AZ147)","v":"n.d."},{"$f":"IF('[2]FISCAL(M)'!$BJ147=\"\",\"\",'[2]FISCAL(M)'!$BJ147)","v":"n.d."},{"$f":"IF('[2]FISCAL(M)'!$BT147=\"\",\"\",'[2]FISCAL(M)'!$BT147)","v":"n.d."},{"$f":"IF('[3]MONE(M)'!$AO147=\"\",\"\",'[3]MONE(M)'!$AO147)","v":"n.d."},{"$f":"IF('[4]MONE(M)'!$AO147=\"\",\"\",'[4]MONE(M)'!$AO147)","v":"n.d."},{"$f":"IF('[5]MONE(M)'!$AO147=\"\",\"\",'[5]MONE(M)'!$AO147)","v":"n.d."},{"$f":"+'[1]MONE(M)'!$AO147","v":"n.d."},{"$f":"IF('[6]MONE(M)'!$AO147=\"\",\"\",'[6]MONE(M)'!$AO147)","v":"n.d."},{"$f":"IF('[7]MONE(M)'!$AO147=\"\",\"\",'[7]MONE(M)'!$AO147)","v":"n.d."},{"$f":"IF('[8]MONE(M)'!$AO147=\"\",\"\",'[8]MONE(M)'!$AO147)","v":"n.d."},"n.d.","n.d.","n.d.","n.d.","n.d.","n.d.","n.d.",{"$f":"IF('[2]FISCAL(M)'!$K147=\"\",\"\",'[2]FISCAL(M)'!$K147)","v":"n.d."},{"$f":"+'[2]REAL(A)'!$AO$21","v":86214.197483650845},"n.d.",{"$f":"IF('[2]FISCAL(M)'!$L147=\"\",\"\",'[2]FISCAL(M)'!$L147)","v":"n.d."},{"$f":"+'[2]REAL(A)'!$AP$21","v":"n.d."},"n.d.","n.d.","n.d.","n.d.","n.d.","n.d.","n.d.","n.d.","n.d.","n.d.","n.d.","n.d.","n.d.","n.d.","n.d.","n.d.","n.d."]
[2001,"julio","2001-julio",{"$f":"IF('[2]REAL IPC(M)'!$AL148=\"\",\"\",+'[2]REAL IPC(M)'!$AL148)","v":7.8848807411787902},{"$f":"IF('[2]REAL IPC(M)'!$BE148=\"\",\"\",+'[2]REAL IPC(M)'!$BE148)","v":7.5549718189530601},{"$f":"IF('[2]REAL IPC(M)'!$AM148=\"\",\"\",+'[2]REAL IPC(M)'!$AM148)","v":7.1241094863142118},{"$f":"IF('[2]REAL IPC(M)'!$BI148=\"\",\"\",+'[2]REAL IPC(M)'!$BI148)","v":6.8754864219184197},{"$f":"IF('[2]REAL IMAE(M)'!BJ148=\"\",\"\",'[2]REAL IMAE(M)'!BJ148)","v":"n.d."},{"$f":"IF('[2]REAL IMAE(M)'!BK148=\"\",\"\",'[2]REAL IMAE(M)'!BK148)","v":"n.d."},{"$f":"IF('[2]REAL IMAE(M)'!BN148=\"\",\"\",'[2]REAL IMAE(M)'!BN148)","v":"n.d."},{"$f":"IF('[2]REAL IMAE(M)'!BO148=\"\",\"\",'[2]REAL IMAE(M)'!BO148)","v":"n.d."},{"$f":"IF('[2]EXT RIN(M)'!$K148=\"\",\"\",'[2]EXT RIN(M)'!$K148)","v":"n.d."},"",{"$f":"IF('[2]EXT RIN(M)'!$L148=\"\",\"\",'[2]EXT RIN(M)'!$L148)","v":"n.d."},"",{"$f":"IF('[2]MONE(M)CARD'!EG148=\"\",\"\",'[2]MONE(M)CARD'!EG148)","v":"n.d."},{"$f":"IF('[2]MONE(M)CARD'!EK148=\"\",\"\",'[2]MONE(M)CARD'!EK148)","v":"n.d."},{"$f":"IF('[2]MONE(M)CARD'!EP148=\"\",\"\",'[2]MONE(M)CARD'!EP148)","v":"n.d."},{"$f":"IF('[2]MONE(M)CARD'!ES148=\"\",\"\",'[2]MONE(M)CARD'!ES148)","v":"n.d."},{"$f":"IF('[2]MONE(M)CARD'!EV148=\"\",\"\",'[2]MONE(M)CARD'!EV148)","v":"n.d."},{"$f":"IF('[2]MONE(M)CARD'!EZ148=\"\",\"\",'[2]MONE(M)CARD'!EZ148)","v":"n.d."},{"$f":"IF('[2]MONE(M)CAPARD'!FC148=\"\",\"\",'[2]MONE(M)CAPARD'!FC148)","v":"n.d."},{"$f":"IF('[2]MONE(M)CAPARD'!FG148=\"\",\"\",'[2]MONE(M)CAPARD'!FG148)","v":"n.d."},{"$f":"IF('[2]MONE(M)CAPARD'!FL148=\"\",\"\",'[2]MONE(M)CAPARD'!FL148)","v":"n.d."},{"$f":"IF('[2]MONE(M)CAPARD'!FO148=\"\",\"\",'[2]MONE(M)CAPARD'!FO148)","v":"n.d."},{"$f":"IF('[2]MONE(M)CAPARD'!FR148=\"\",\"\",'[2]MONE(M)CAPARD'!FR148)","v":"n.d."},{"$f":"IF('[2]MONE(M)CAPARD'!FV148=\"\",\"\",'[2]MONE(M)CAPARD'!FV148)","v":"n.d."},{"$f":"IF('[2]MONE(M)CARD'!FV148=\"\",\"\",'[2]MONE(M)CARD'!FV148)","v":""},{"$f":"IF('[2]MONE(M)CARD'!GD148=\"\",\"\",'[2]MONE(M)CARD'!GD148)","v":"n.d."},{"$f":"IF('[2]MONE(M)CARD'!GE148=\"\",\"\",'[2]MONE(M)CARD'!GE148)","v":"n.d."},"n.d.","n.d.","n.d.","n.d.","n.d.","n.d.","n.d.","n.d.",null,"n.d.","n.d.","n.d.","n.d.","n.d.",{"$f":"IF('[2]MONE(M)CAPARD'!GS148=\"\",\"\",'[2]MONE(M)CAPARD'!GS148)","v":"n.d."},{"$f":"IF('[2]MONE(M)CARD'!HA148=\"\",\"\",'[2]MONE(M)CAPARD'!HA148)","v":"n.d."},{"$f":"IF('[2]MONE(M)CAPARD'!HB148=\"\",\"\",'[2]MONE(M)CAPARD'!HB148)","v":"n.d."},"n.d.","n.d.","n.d.","n.d.","n.d.","n.d.","n.d.","n.d.","n.d.","n.d.","n.d.","n.d.","n.d.","n.d.",{"$f":"IF('[2]MONE(M)CAPARD'!AS148=\"\",\"\",'[2]MONE(M)CAPARD'!AS148)","v":"n.d."},{"$f":"IF('[2]MONE(M)CAPARD'!AT148=\"\",\"\",'[2]MONE(M)CAPARD'!AT148)","v":"n.a."},{"$f":"IF('[2]MONE(M)CAPARD'!AU148=\"\",\"\",'[2]MONE(M)CAPARD'!AU148)","v":"n.d."},{"$f":"IF('[2]MONE(M)CAPARD'!AV148=\"\",\"\",'[2]MONE(M)CAPARD'!AV148)","v":"n.d."},{"$f":"IF('[2]MONE(M)CAPARD'!AW148=\"\",\"\",'[2]MONE(M)CAPARD'!AW148)","v":"n.a."},{"$f":"IF('[2]MONE(M)CAPARD'!AX148=\"\",\"\",'[2]MONE(M)CAPARD'!AX148)","v":"n.d."},{"$f":"IF('[2]MONE(M)CAPARD'!AY148=\"\",\"\",'[2]MONE(M)CAPARD'!AY148)","v":"n.a."},{"$f":"IF('[2]FISCAL(M)'!$K148=\"\",\"\",'[2]FISCAL(M)'!$K148)","v":"n.d."},{"$f":"IF('[2]FISCAL(M)'!$L148=\"\",\"\",'[2]FISCAL(M)'!$L148)","v":"n.d."},{"$f":"IF('[2]FISCAL(M)'!$AY148=\"\",\"\",'[2]FISCAL(M)'!$AY148)","v":"n.d."},{"$f":"IF('[2]FISCAL(M)'!$BI148=\"\",\"\",'[2]FISCAL(M)'!$BI148)","v":"n.d."},{"$f":"IF('[2]FISCAL(M)'!$BS148=\"\",\"\",'[2]FISCAL(M)'!$BS148)","v":"n.d."},{"$f":"IF('[2]FISCAL(M)'!$AZ148=\"\",\"\",'[2]FISCAL(M)'!$AZ148)","v":"n.d."},{"$f":"IF('[2]FISCAL(M)'!$BJ148=\"\",\"\",'[2]FISCAL(M)'!$BJ148)","v":"n.d."},{"$f":"IF('[2]FISCAL(M)'!$BT148=\"\",\"\",'[2]FISCAL(M)'!$BT148)","v":"n.d."},{"$f":"IF('[3]MONE(M)'!$AO148=\"\",\"\",'[3]MONE(M)'!$AO148)","v":"n.d."},{"$f":"IF('[4]MONE(M)'!$AO148=\"\",\"\",'[4]MONE(M)'!$AO148)","v":"n.d."},{"$f":"IF('[5]MONE(M)'!$AO148=\"\",\"\",'[5]MONE(M)'!$AO148)","v":"n.d."},{"$f":"+'[1]MONE(M)'!$AO148","v":"n.d."},{"$f":"IF('[6]MONE(M)'!$AO148=\"\",\"\",'[6]MONE(M)'!$AO148)","v":"n.d."},{"$f":"IF('[7]MONE(M)'!$AO148=\"\",\"\",'[7]MONE(M)'!$AO148)","v":"n.d."},{"$f":"IF('[8]MONE(M)'!$AO148=\"\",\"\",'[8]MONE(M)'!$AO148)","v":"n.d."},"n.d.","n.d.","n.d.","n.d.","n.d.","n.d.","n.d.",{"$f":"IF('[2]FISCAL(M)'!$K148=\"\",\"\",'[2]FISCAL(M)'!$K148)","v":"n.d."},{"$f":"+'[2]REAL(A)'!$AO$21","v":86214.197483650845},"n.d.",{"$f":"IF('[2]FISCAL(M)'!$L148=\"\",\"\",'[2]FISCAL(M)'!$L148)","v":"n.d."},{"$f":"+'[2]REAL(A)'!$AP$21","v":"n.d."},"n.d.","n.d.","n.d.","n.d.","n.d.","n.d.","n.d.","n.d.","n.d.","n.d.","n.d.","n.d.","n.d.","n.d.","n.d.","n.d.","n.d."]
[2001,"agosto","2001-agosto",{"$f":"IF('[2]REAL IPC(M)'!$AL149=\"\",\"\",+'[2]REAL IPC(M)'!$AL149)","v":8.3758336602589356},{"$f":"IF('[2]REAL IPC(M)'!$BE149=\"\",\"\",+'[2]REAL IPC(M)'!$BE149)","v":7.6534214226699149},{"$f":"IF('[2]REAL IPC(M)'!$AM149=\"\",\"\",+'[2]REAL IPC(M)'!$AM149)","v":7.5975359342915771},{"$f":"IF('[2]REAL IPC(M)'!$BI149=\"\",\"\",+'[2]REAL IPC(M)'!$BI149)","v":6.9598905579093762},{"$f":"IF('[2]REAL IMAE(M)'!BJ149=\"\",\"\",'[2]REAL IMAE(M)'!BJ149)","v":"n.d."},{"$f":"IF('[2]REAL IMAE(M)'!BK149=\"\",\"\",'[2]REAL IMAE(M)'!BK149)","v":"n.d."},{"$f":"IF('[2]REAL IMAE(M)'!BN149=\"\",\"\",'[2]REAL IMAE(M)'!BN149)","v":"n.d."},{"$f":"IF('[2]REAL IMAE(M)'!BO149=\"\",\"\",'[2]REAL IMAE(M)'!BO149)","v":"n.d."},{"$f":"IF('[2]EXT RIN(M)'!$K149=\"\",\"\",'[2]EXT RIN(M)'!$K149)","v":"n.d."},"",{"$f":"IF('[2]EXT RIN(M)'!$L149=\"\",\"\",'[2]EXT RIN(M)'!$L149)","v":"n.d."},"",{"$f":"IF('[2]MONE(M)CARD'!EG149=\"\",\"\",'[2]MONE(M)CARD'!EG149)","v":"n.d."},{"$f":"IF('[2]MONE(M)CARD'!EK149=\"\",\"\",'[2]MONE(M)CARD'!EK149)","v":"n.d."},{"$f":"IF('[2]MONE(M)CARD'!EP149=\"\",\"\",'[2]MONE(M)CARD'!EP149)","v":"n.d."},{"$f":"IF('[2]MONE(M)CARD'!ES149=\"\",\"\",'[2]MONE(M)CARD'!ES149)","v":"n.d."},{"$f":"IF('[2]MONE(M)CARD'!EV149=\"\",\"\",'[2]MONE(M)CARD'!EV149)","v":"n.d."},{"$f":"IF('[2]MONE(M)CARD'!EZ149=\"\",\"\",'[2]MONE(M)CARD'!EZ149)","v":"n.d."},{"$f":"IF('[2]MONE(M)CAPARD'!FC149=\"\",\"\",'[2]MONE(M)CAPARD'!FC149)","v":"n.d."},{"$f":"IF('[2]MONE(M)CAPARD'!FG149=\"\",\"\",'[2]MONE(M)CAPARD'!FG149)","v":"n.d."},{"$f":"IF('[2]MONE(M)CAPARD'!FL149=\"\",\"\",'[2]MONE(M)CAPARD'!FL149)","v":"n.d."},{"$f":"IF('[2]MONE(M)CAPARD'!FO149=\"\",\"\",'[2]MONE(M)CAPARD'!FO149)","v":"n.d."},{"$f":"IF('[2]MONE(M)CAPARD'!FR149=\"\",\"\",'[2]MONE(M)CAPARD'!FR149)","v":"n.d."},{"$f":"IF('[2]MONE(M)CAPARD'!FV149=\"\",\"\",'[2]MONE(M)CAPARD'!FV149)","v":"n.d."},{"$f":"IF('[2]MONE(M)CARD'!FV149=\"\",\"\",'[2]MONE(M)CARD'!FV149)","v":""},{"$f":"IF('[2]MONE(M)CARD'!GD149=\"\",\"\",'[2]MONE(M)CARD'!GD149)","v":"n.d."},{"$f":"IF('[2]MONE(M)CARD'!GE149=\"\",\"\",'[2]MONE(M)CARD'!GE149)","v":"n.d."},"n.d.","n.d.","n.d.","n.d.","n.d.","n.d.","n.d.","n.d.",null,"n.d.","n.d.","n.d.","n.d.","n.d.",{"$f":"IF('[2]MONE(M)CAPARD'!GS149=\"\",\"\",'[2]MONE(M)CAPARD'!GS149)","v":"n.d."},{"$f":"IF('[2]MONE(M)CARD'!HA149=\"\",\"\",'[2]MONE(M)CAPARD'!HA149)","v":"n.d."},{"$f":"IF('[2]MONE(M)CAPARD'!HB149=\"\",\"\",'[2]MONE(M)CAPARD'!HB149)","v":"n.d."},"n.d.","n.d.","n.d.","n.d.","n.d.","n.d.","n.d.","n.d.","n.d.","n.d.","n.d.","n.d.","n.d.","n.d.",{"$f":"IF('[2]MONE(M)CAPARD'!AS149=\"\",\"\",'[2]MONE(M)CAPARD'!AS149)","v":"n.d."},{"$f":"IF('[2]MONE(M)CAPARD'!AT149=\"\",\"\",'[2]MONE(M)CAPARD'!AT149)","v":"n.a."},{"$f":"IF('[2]MONE(M)CAPARD'!AU149=\"\",\"\",'[2]MONE(M)CAPARD'!AU149)","v":"n.d."},{"$f":"IF('[2]MONE(M)CAPARD'!AV149=\"\",\"\",'[2]MONE(M)CAPARD'!AV149)","v":"n.d."},{"$f":"IF('[2]MONE(M)CAPARD'!AW149=\"\",\"\",'[2]MONE(M)CAPARD'!AW149)","v":"n.a."},{"$f":"IF('[2]MONE(M)CAPARD'!AX149=\"\",\"\",'[2]MONE(M)CAPARD'!AX149)","v":"n.d."},{"$f":"IF('[2]MONE(M)CAPARD'!AY149=\"\",\"\",'[2]MONE(M)CAPARD'!AY149)","v":"n.a."},{"$f":"IF('[2]FISCAL(M)'!$K149=\"\",\"\",'[2]FISCAL(M)'!$K149)","v":"n.d."},{"$f":"IF('[2]FISCAL(M)'!$L149=\"\",\"\",'[2]FISCAL(M)'!$L149)","v":"n.d."},{"$f":"IF('[2]FISCAL(M)'!$AY149=\"\",\"\",'[2]FISCAL(M)'!$AY149)","v":"n.d."},{"$f":"IF('[2]FISCAL(M)'!$BI149=\"\",\"\",'[2]FISCAL(M)'!$BI149)","v":"n.d."},{"$f":"IF('[2]FISCAL(M)'!$BS149=\"\",\"\",'[2]FISCAL(M)'!$BS149)","v":"n.d."},{"$f":"IF('[2]FISCAL(M)'!$AZ149=\"\",\"\",'[2]FISCAL(M)'!$AZ149)","v":"n.d."},{"$f":"IF('[2]FISCAL(M)'!$BJ149=\"\",\"\",'[2]FISCAL(M)'!$BJ149)","v":"n.d."},{"$f":"IF('[2]FISCAL(M)'!$BT149=\"\",\"\",'[2]FISCAL(M)'!$BT149)","v":"n.d."},{"$f":"IF('[3]MONE(M)'!$AO149=\"\",\"\",'[3]MONE(M)'!$AO149)","v":"n.d."},{"$f":"IF('[4]MONE(M)'!$AO149=\"\",\"\",'[4]MONE(M)'!$AO149)","v":"n.d."},{"$f":"IF('[5]MONE(M)'!$AO149=\"\",\"\",'[5]MONE(M)'!$AO149)","v":"n.d."},{"$f":"+'[1]MONE(M)'!$AO149","v":"n.d."},{"$f":"IF('[6]MONE(M)'!$AO149=\"\",\"\",'[6]MONE(M)'!$AO149)","v":"n.d."},{"$f":"IF('[7]MONE(M)'!$AO149=\"\",\"\",'[7]MONE(M)'!$AO149)","v":"n.d."},{"$f":"IF('[8]MONE(M)'!$AO149=\"\",\"\",'[8]MONE(M)'!$AO149)","v":"n.d."},"n.d.","n.d.","n.d.","n.d.","n.d.","n.d.","n.d.",{"$f":"IF('[2]FISCAL(M)'!$K149=\"\",\"\",'[2]FISCAL(M)'!$K149)","v":"n.d."},{"$f":"+'[2]REAL(A)'!$AO$21","v":86214.197483650845},"n.d.",{"$f":"IF('[2]FISCAL(M)'!$L149=\"\",\"\",'[2]FISCAL(M)'!$L149)","v":"n.d."},{"$f":"+'[2]REAL(A)'!$AP$21","v":"n.d."},"n.d.","n.d.","n.d.","n.d.","n.d.","n.d.","n.d.","n.d.","n.d.","n.d.","n.d.","n.d.","n.d.","n.d.","n.d.","n.d.","n.d."]
[2001,"septiembre","2001-septiembre",{"$f":"IF('[2]REAL IPC(M)'!$AL150=\"\",\"\",+'[2]REAL IPC(M)'!$AL150)","v":7.7161090698124157},{"$f":"IF('[2]REAL IPC(M)'!$BE150=\"\",\"\",+'[2]REAL IPC(M)'!$BE150)","v":7.7589795389606309},{"$f":"IF('[2]REAL IPC(M)'!$AM150=\"\",\"\",+'[2]REAL IPC(M)'!$AM150)","v":7.0362866089519249},{"$f":"IF('[2]REAL IPC(M)'!$BI150=\"\",\"\",+'[2]REAL IPC(M)'!$BI150)","v":7.0507415750684865},{"$f":"IF('[2]REAL IMAE(M)'!BJ150=\"\",\"\",'[2]REAL IMAE(M)'!BJ150)","v":"n.d."},{"$f":"IF('[2]REAL IMAE(M)'!BK150=\"\",\"\",'[2]REAL IMAE(M)'!BK150)","v":"n.d."},{"$f":"IF('[2]REAL IMAE(M)'!BN150=\"\",\"\",'[2]REAL IMAE(M)'!BN150)","v":"n.d."},{"$f":"IF('[2]REAL IMAE(M)'!BO150=\"\",\"\",'[2]REAL IMAE(M)'!BO150)","v":"n.d."},{"$f":"IF('[2]EXT RIN(M)'!$K150=\"\",\"\",'[2]EXT RIN(M)'!$K150)","v":"n.d."},"",{"$f":"IF('[2]EXT RIN(M)'!$L150=\"\",\"\",'[2]EXT RIN(M)'!$L150)","v":"n.d."},"",{"$f":"IF('[2]MONE(M)CARD'!EG150=\"\",\"\",'[2]MONE(M)CARD'!EG150)","v":"n.d."},{"$f":"IF('[2]MONE(M)CARD'!EK150=\"\",\"\",'[2]MONE(M)CARD'!EK150)","v":"n.d."},{"$f":"IF('[2]MONE(M)CARD'!EP150=\"\",\"\",'[2]MONE(M)CARD'!EP150)","v":"n.d."},{"$f":"IF('[2]MONE(M)CARD'!ES150=\"\",\"\",'[2]MONE(M)CARD'!ES150)","v":"n.d."},{"$f":"IF('[2]MONE(M)CARD'!EV150=\"\",\"\",'[2]MONE(M)CARD'!EV150)","v":"n.d."},{"$f":"IF('[2]MONE(M)CARD'!EZ150=\"\",\"\",'[2]MONE(M)CARD'!EZ150)","v":"n.d."},{"$f":"IF('[2]MONE(M)CAPARD'!FC150=\"\",\"\",'[2]MONE(M)CAPARD'!FC150)","v":"n.d."},{"$f":"IF('[2]MONE(M)CAPARD'!FG150=\"\",\"\",'[2]MONE(M)CAPARD'!FG150)","v":"n.d."},{"$f":"IF('[2]MONE(M)CAPARD'!FL150=\"\",\"\",'[2]MONE(M)CAPARD'!FL150)","v":"n.d."},{"$f":"IF('[2]MONE(M)CAPARD'!FO150=\"\",\"\",'[2]MONE(M)CAPARD'!FO150)","v":"n.d."},{"$f":"IF('[2]MONE(M)CAPARD'!FR150=\"\",\"\",'[2]MONE(M)CAPARD'!FR150)","v":"n.d."},{"$f":"IF('[2]MONE(M)CAPARD'!FV150=\"\",\"\",'[2]MONE(M)CAPARD'!FV150)","v":"n.d."},{"$f":"IF('[2]MONE(M)CARD'!FV150=\"\",\"\",'[2]MONE(M)CARD'!FV150)","v":""},{"$f":"IF('[2]MONE(M)CARD'!GD150=\"\",\"\",'[2]MONE(M)CARD'!GD150)","v":"n.d."},{"$f":"IF('[2]MONE(M)CARD'!GE150=\"\",\"\",'[2]MONE(M)CARD'!GE150)","v":"n.d."},"n.d.","n.d.","n.d.","n.d.","n.d.","n.d.","n.d.","n.d.",null,"n.d.","n.d.","n.d.","n.d.","n.d.",{"$f":"IF('[2]MONE(M)CAPARD'!GS150=\"\",\"\",'[2]MONE(M)CAPARD'!GS150)","v":"n.d."},{"$f":"IF('[2]MONE(M)CARD'!HA150=\"\",\"\",'[2]MONE(M)CAPARD'!HA150)","v":"n.d."},{"$f":"IF('[2]MONE(M)CAPARD'!HB150=\"\",\"\",'[2]MONE(M)CAPARD'!HB150)","v":"n.d."},"n.d.","n.d.","n.d.","n.d.","n.d.","n.d.","n.d.","n.d.","n.d.","n.d.","n.d.","n.d.","n.d.","n.d.",{"$f":"IF('[2]MONE(M)CAPARD'!AS150=\"\",\"\",'[2]MONE(M)CAPARD'!AS150)","v":"n.d."},{"$f":"IF('[2]MONE(M)CAPARD'!AT150=\"\",\"\",'[2]MONE(M)CAPARD'!AT150)","v":"n.a."},{"$f":"IF('[2]MONE(M)CAPARD'!AU150=\"\",\"\",'[2]MONE(M)CAPARD'!AU150)","v":"n.d."},{"$f":"IF('[2]MONE(M)CAPARD'!AV150=\"\",\"\",'[2]MONE(M)CAPARD'!AV150)","v":"n.d."},{"$f":"IF('[2]MONE(M)CAPARD'!AW150=\"\",\"\",'[2]MONE(M)CAPARD'!AW150)","v":"n.a."},{"$f":"IF('[2]MONE(M)CAPARD'!AX150=\"\",\"\",'[2]MONE(M)CAPARD'!AX150)","v":"n.d."},{"$f":"IF('[2]MONE(M)CAPARD'!AY150=\"\",\"\",'[2]MONE(M)CAPARD'!AY150)","v":"n.a."},{"$f":"IF('[2]FISCAL(M)'!$K150=\"\",\"\",'[2]FISCAL(M)'!$K150)","v":"n.d."},{"$f":"IF('[2]FISCAL(M)'!$L150=\"\",\"\",'[2]FISCAL(M)'!$L150)","v":"n.d."},{"$f":"IF('[2]FISCAL(M)'!$AY150=\"\",\"\",'[2]FISCAL(M)'!$AY150)","v":"n.d."},{"$f":"IF('[2]FISCAL(M)'!$BI150=\"\",\"\",'[2]FISCAL(M)'!$BI150)","v":"n.d."},{"$f":"IF('[2]FISCAL(M)'!$BS150=\"\",\"\",'[2]FISCAL(M)'!$BS150)","v":"n.d."},{"$f":"IF('[2]FISCAL(M)'!$AZ150=\"\",\"\",'[2]FISCAL(M)'!$AZ150)","v":"n.d."},{"$f":"IF('[2]FISCAL(M)'!$BJ150=\"\",\"\",'[2]FISCAL(M)'!$BJ150)","v":"n.d."},{"$f":"IF('[2]FISCAL(M)'!$BT150=\"\",\"\",'[2]FISCAL(M)'!$BT150)","v":"n.d."},{"$f":"IF('[3]MONE(M)'!$AO150=\"\",\"\",'[3]MONE(M)'!$AO150)","v":"n.d."},{"$f":"IF('[4]MONE(M)'!$AO150=\"\",\"\",'[4]MONE(M)'!$AO150)","v":"n.d."},{"$f":"IF('[5]MONE(M)'!$AO150=\"\",\"\",'[5]MONE(M)'!$AO150)","v":"n.d."},{"$f":"+'[1]MONE(M)'!$AO150","v":"n.d."},{"$f":"IF('[6]MONE(M)'!$AO150=\"\",\"\",'[6]MONE(M)'!$AO150)","v":"n.d."},{"$f":"IF('[7]MONE(M)'!$AO150=\"\",\"\",'[7]MONE(M)'!$AO150)","v":"n.d."},{"$f":"IF('[8]MONE(M)'!$AO150=\"\",\"\",'[8]MONE(M)'!$AO150)","v":"n.d."},"n.d.","n.d.","n.d.","n.d.","n.d.","n.d.","n.d.",{"$f":"IF('[2]FISCAL(M)'!$K150=\"\",\"\",'[2]FISCAL(M)'!$K150)","v":"n.d."},{"$f":"+'[2]REAL(A)'!$AO$21","v":86214.197483650845},"n.d.",{"$f":"IF('[2]FISCAL(M)'!$L150=\"\",\"\",'[2]FISCAL(M)'!$L150)","v":"n.d."},{"$f":"+'[2]REAL(A)'!$AP$21","v":"n.d."},"n.d.","n.d.","n.d.","n.d.","n.d.","n.d.","n.d.","n.d.","n.d.","n.d.","n.d.","n.d.","n.d.","n.d.","n.d.","n.d.","n.d."]
[2001,"octubre","2001-octubre",{"$f":"IF('[2]REAL IPC(M)'!$AL151=\"\",\"\",+'[2]REAL IPC(M)'!$AL151)","v":7.4672825250192476},{"$f":"IF('[2]REAL IPC(M)'!$BE151=\"\",\"\",+'[2]REAL IPC(M)'!$BE151)","v":7.8720832663343732},{"$f":"IF('[2]REAL IPC(M)'!$AM151=\"\",\"\",+'[2]REAL IPC(M)'!$AM151)","v":6.8231841526045445},{"$f":"IF('[2]REAL IPC(M)'!$BI151=\"\",\"\",+'[2]REAL IPC(M)'!$BI151)","v":7.1484623899695565},{"$f":"IF('[2]REAL IMAE(M)'!BJ151=\"\",\"\",'[2]REAL IMAE(M)'!BJ151)","v":"n.d."},{"$f":"IF('[2]REAL IMAE(M)'!BK151=\"\",\"\",'[2]REAL IMAE(M)'!BK151)","v":"n.d."},{"$f":"IF('[2]REAL IMAE(M)'!BN151=\"\",\"\",'[2]REAL IMAE(M)'!BN151)","v":"n.d."},{"$f":"IF('[2]REAL IMAE(M)'!BO151=\"\",\"\",'[2]REAL IMAE(M)'!BO151)","v":"n.d."},{"$f":"IF('[2]EXT RIN(M)'!$K151=\"\",\"\",'[2]EXT RIN(M)'!$K151)","v":"n.d."},"",{"$f":"IF('[2]EXT RIN(M)'!$L151=\"\",\"\",'[2]EXT RIN(M)'!$L151)","v":"n.d."},"",{"$f":"IF('[2]MONE(M)CARD'!EG151=\"\",\"\",'[2]MONE(M)CARD'!EG151)","v":"n.d."},{"$f":"IF('[2]MONE(M)CARD'!EK151=\"\",\"\",'[2]MONE(M)CARD'!EK151)","v":"n.d."},{"$f":"IF('[2]MONE(M)CARD'!EP151=\"\",\"\",'[2]MONE(M)CARD'!EP151)","v":"n.d."},{"$f":"IF('[2]MONE(M)CARD'!ES151=\"\",\"\",'[2]MONE(M)CARD'!ES151)","v":"n.d."},{"$f":"IF('[2]MONE(M)CARD'!EV151=\"\",\"\",'[2]MONE(M)CARD'!EV151)","v":"n.d."},{"$f":"IF('[2]MONE(M)CARD'!EZ151=\"\",\"\",'[2]MONE(M)CARD'!EZ151)","v":"n.d."},{"$f":"IF('[2]MONE(M)CAPARD'!FC151=\"\",\"\",'[2]MONE(M)CAPARD'!FC151)","v":"n.d."},{"$f":"IF('[2]MONE(M)CAPARD'!FG151=\"\",\"\",'[2]MONE(M)CAPARD'!FG151)","v":"n.d."},{"$f":"IF('[2]MONE(M)CAPARD'!FL151=\"\",\"\",'[2]MONE(M)CAPARD'!FL151)","v":"n.d."},{"$f":"IF('[2]MONE(M)CAPARD'!FO151=\"\",\"\",'[2]MONE(M)CAPARD'!FO151)","v":"n.d."},{"$f":"IF('[2]MONE(M)CAPARD'!FR151=\"\",\"\",'[2]MONE(M)CAPARD'!FR151)","v":"n.d."},{"$f":"IF('[2]MONE(M)CAPARD'!FV151=\"\",\"\",'[2]MONE(M)CAPARD'!FV151)","v":"n.d."},{"$f":"IF('[2]MONE(M)CARD'!FV151=\"\",\"\",'[2]MONE(M)CARD'!FV151)","v":""},{"$f":"IF('[2]MONE(M)CARD'!GD151=\"\",\"\",'[2]MONE(M)CARD'!GD151)","v":"n.d."},{"$f":"IF('[2]MONE(M)CARD'!GE151=\"\",\"\",'[2]MONE(M)CARD'!GE151)","v":"n.d."},"n.d.","n.d.","n.d.","n.d.","n.d.","n.d.","n.d.","n.d.",null,"n.d.","n.d.","n.d.","n.d.","n.d.",{"$f":"IF('[2]MONE(M)CAPARD'!GS151=\"\",\"\",'[2]MONE(M)CAPARD'!GS151)","v":"n.d."},{"$f":"IF('[2]MONE(M)CARD'!HA151=\"\",\"\",'[2]MONE(M)CAPARD'!HA151)","v":"n.d."},{"$f":"IF('[2]MONE(M)CAPARD'!HB151=\"\",\"\",'[2]MONE(M)CAPARD'!HB151)","v":"n.d."},"n.d.","n.d.","n.d.","n.d.","n.d.","n.d.","n.d.","n.d.","n.d.","n.d.","n.d.","n.d.","n.d.","n.d.",{"$f":"IF('[2]MONE(M)CAPARD'!AS151=\"\",\"\",'[2]MONE(M)CAPARD'!AS151)","v":"n.d."},{"$f":"IF('[2]MONE(M)CAPARD'!AT151=\"\",\"\",'[2]MONE(M)CAPARD'!AT151)","v":"n.a."},{"$f":"IF('[2]MONE(M)CAPARD'!AU151=\"\",\"\",'[2]MONE(M)CAPARD'!AU151)","v":"n.d."},{"$f":"IF('[2]MONE(M)CAPARD'!AV151=\"\",\"\",'[2]MONE(M)CAPARD'!AV151)","v":"n.d."},{"$f":"IF('[2]MONE(M)CAPARD'!AW151=\"\",\"\",'[2]MONE(M)CAPARD'!AW151)","v":"n.a."},{"$f":"IF('[2]MONE(M)CAPARD'!AX151=\"\",\"\",'[2]MONE(M)CAPARD'!AX151)","v":"n.d."},{"$f":"IF('[2]MONE(M)CAPARD'!AY151=\"\",\"\",'[2]MONE(M)CAPARD'!AY151)","v":"n.a."},{"$f":"IF('[2]FISCAL(M)'!$K151=\"\",\"\",'[2]FISCAL(M)'!$K151)","v":"n.d."},{"$f":"IF('[2]FISCAL(M)'!$L151=\"\",\"\",'[2]FISCAL(M)'!$L151)","v":"n.d."},{"$f":"IF('[2]FISCAL(M)'!$AY151=\"\",\"\",'[2]FISCAL(M)'!$AY151)","v":"n.d."},{"$f":"IF('[2]FISCAL(M)'!$BI151=\"\",\"\",'[2]FISCAL(M)'!$BI151)","v":"n.d."},{"$f":"IF('[2]FISCAL(M)'!$BS151=\"\",\"\",'[2]FISCAL(M)'!$BS151)","v":"n.d."},{"$f":"IF('[2]FISCAL(M)'!$AZ151=\"\",\"\",'[2]FISCAL(M)'!$AZ151)","v":"n.d."},{"$f":"IF('[2]FISCAL(M)'!$BJ151=\"\",\"\",'[2]FISCAL(M)'!$BJ151)","v":"n.d."},{"$f":"IF('[2]FISCAL(M)'!$BT151=\"\",\"\",'[2]FISCAL(M)'!$BT151)","v":"n.d."},{"$f":"IF('[3]MONE(M)'!$AO151=\"\",\"\",'[3]MONE(M)'!$AO151)","v":"n.d."},{"$f":"IF('[4]MONE(M)'!$AO151=\"\",\"\",'[4]MONE(M)'!$AO151)","v":"n.d."},{"$f":"IF('[5]MONE(M)'!$AO151=\"\",\"\",'[5]MONE(M)'!$AO151)","v":"n.d."},{"$f":"+'[1]MONE(M)'!$AO151","v":"n.d."},{"$f":"IF('[6]MONE(M)'!$AO151=\"\",\"\",'[6]MONE(M)'!$AO151)","v":"n.d."},{"$f":"IF('[7]MONE(M)'!$AO151=\"\",\"\",'[7]MONE(M)'!$AO151)","v":"n.d."},{"$f":"IF('[8]MONE(M)'!$AO151=\"\",\"\",'[8]MONE(M)'!$AO151)","v":"n.d."},"n.d.","n.d.","n.d.","n.d.","n.d.","n.d.","n.d.",{"$f":"IF('[2]FISCAL(M)'!$K151=\"\",\"\",'[2]FISCAL(M)'!$K151)","v":"n.d."},{"$f":"+'[2]REAL(A)'!$AO$21","v":86214.197483650845},"n.d.",{"$f":"IF('[2]FISCAL(M)'!$L151=\"\",\"\",'[2]FISCAL(M)'!$L151)","v":"n.d."},{"$f":"+'[2]REAL(A)'!$AP$21","v":"n.d."},"n.d.","n.d.","n.d.","n.d.","n.d.","n.d.","n.d.","n.d.","n.d.","n.d.","n.d.","n.d.","n.d.","n.d.","n.d.","n.d.","n.d."]
[2001,"noviembre","2001-noviembre",{"$f":"IF('[2]REAL IPC(M)'!$AL152=\"\",\"\",+'[2]REAL IPC(M)'!$AL152)","v":7.4059935102118724},{"$f":"IF('[2]REAL IPC(M)'!$BE152=\"\",\"\",+'[2]REAL IPC(M)'!$BE152)","v":7.9931815189322242},{"$f":"IF('[2]REAL IPC(M)'!$AM152=\"\",\"\",+'[2]REAL IPC(M)'!$AM152)","v":6.7370721048798154},{"$f":"IF('[2]REAL IPC(M)'!$BI152=\"\",\"\",+'[2]REAL IPC(M)'!$BI152)","v":7.2535161407057958},{"$f":"IF('[2]REAL IMAE(M)'!BJ152=\"\",\"\",'[2]REAL IMAE(M)'!BJ152)","v":"n.d."},{"$f":"IF('[2]REAL IMAE(M)'!BK152=\"\",\"\",'[2]REAL IMAE(M)'!BK152)","v":"n.d."},{"$f":"IF('[2]REAL IMAE(M)'!BN152=\"\",\"\",'[2]REAL IMAE(M)'!BN152)","v":"n.d."},{"$f":"IF('[2]REAL IMAE(M)'!BO152=\"\",\"\",'[2]REAL IMAE(M)'!BO152)","v":"n.d."},{"$f":"IF('[2]EXT RIN(M)'!$K152=\"\",\"\",'[2]EXT RIN(M)'!$K152)","v":"n.d."},"",{"$f":"IF('[2]EXT RIN(M)'!$L152=\"\",\"\",'[2]EXT RIN(M)'!$L152)","v":"n.d."},"",{"$f":"IF('[2]MONE(M)CARD'!EG152=\"\",\"\",'[2]MONE(M)CARD'!EG152)","v":"n.d."},{"$f":"IF('[2]MONE(M)CARD'!EK152=\"\",\"\",'[2]MONE(M)CARD'!EK152)","v":"n.d."},{"$f":"IF('[2]MONE(M)CARD'!EP152=\"\",\"\",'[2]MONE(M)CARD'!EP152)","v":"n.d."},{"$f":"IF('[2]MONE(M)CARD'!ES152=\"\",\"\",'[2]MONE(M)CARD'!ES152)","v":"n.d."},{"$f":"IF('[2]MONE(M)CARD'!EV152=\"\",\"\",'[2]MONE(M)CARD'!EV152)","v":"n.d."},{"$f":"IF('[2]MONE(M)CARD'!EZ152=\"\",\"\",'[2]MONE(M)CARD'!EZ152)","v":"n.d."},{"$f":"IF('[2]MONE(M)CAPARD'!FC152=\"\",\"\",'[2]MONE(M)CAPARD'!FC152)","v":"n.d."},{"$f":"IF('[2]MONE(M)CAPARD'!FG152=\"\",\"\",'[2]MONE(M)CAPARD'!FG152)","v":"n.d."},{"$f":"IF('[2]MONE(M)CAPARD'!FL152=\"\",\"\",'[2]MONE(M)CAPARD'!FL152)","v":"n.d."},{"$f":"IF('[2]MONE(M)CAPARD'!FO152=\"\",\"\",'[2]MONE(M)CAPARD'!FO152)","v":"n.d."},{"$f":"IF('[2]MONE(M)CAPARD'!FR152=\"\",\"\",'[2]MONE(M)CAPARD'!FR152)","v":"n.d."},{"$f":"IF('[2]MONE(M)CAPARD'!FV152=\"\",\"\",'[2]MONE(M)CAPARD'!FV152)","v":"n.d."},{"$f":"IF('[2]MONE(M)CARD'!FV152=\"\",\"\",'[2]MONE(M)CARD'!FV152)","v":""},{"$f":"IF('[2]MONE(M)CARD'!GD152=\"\",\"\",'[2]MONE(M)CARD'!GD152)","v":"n.d."},{"$f":"IF('[2]MONE(M)CARD'!GE152=\"\",\"\",'[2]MONE(M)CARD'!GE152)","v":"n.d."},"n.d.","n.d.","n.d.","n.d.","n.d.","n.d.","n.d.","n.d.",null,"n.d.","n.d.","n.d.","n.d.","n.d.",{"$f":"IF('[2]MONE(M)CAPARD'!GS152=\"\",\"\",'[2]MONE(M)CAPARD'!GS152)","v":"n.d."},{"$f":"IF('[2]MONE(M)CARD'!HA152=\"\",\"\",'[2]MONE(M)CAPARD'!HA152)","v":"n.d."},{"$f":"IF('[2]MONE(M)CAPARD'!HB152=\"\",\"\",'[2]MONE(M)CAPARD'!HB152)","v":"n.d."},"n.d.","n.d.","n.d.","n.d.","n.d.","n.d.","n.d.","n.d.","n.d.","n.d.","n.d.","n.d.","n.d.","n.d.",{"$f":"IF('[2]MONE(M)CAPARD'!AS152=\"\",\"\",'[2]MONE(M)CAPARD'!AS152)","v":"n.d."},{"$f":"IF('[2]MONE(M)CAPARD'!AT152=\"\",\"\",'[2]MONE(M)CAPARD'!AT152)","v":"n.a."},{"$f":"IF('[2]MONE(M)CAPARD'!AU152=\"\",\"\",'[2]MONE(M)CAPARD'!AU152)","v":"n.d."},{"$f":"IF('[2]MONE(M)CAPARD'!AV152=\"\",\"\",'[2]MONE(M)CAPARD'!AV152)","v":"n.d."},{"$f":"IF('[2]MONE(M)CAPARD'!AW152=\"\",\"\",'[2]MONE(M)CAPARD'!AW152)","v":"n.a."},{"$f":"IF('[2]MONE(M)CAPARD'!AX152=\"\",\"\",'[2]MONE(M)CAPARD'!AX152)","v":"n.d."},{"$f":"IF('[2]MONE(M)CAPARD'!AY152=\"\",\"\",'[2]MONE(M)CAPARD'!AY152)","v":"n.a."},{"$f":"IF('[2]FISCAL(M)'!$K152=\"\",\"\",'[2]FISCAL(M)'!$K152)","v":"n.d."},{"$f":"IF('[2]FISCAL(M)'!$L152=\"\",\"\",'[2]FISCAL(M)'!$L152)","v":"n.d."},{"$f":"IF('[2]FISCAL(M)'!$AY152=\"\",\"\",'[2]FISCAL(M)'!$AY152)","v":"n.d."},{"$f":"IF('[2]FISCAL(M)'!$BI152=\"\",\"\",'[2]FISCAL(M)'!$BI152)","v":"n.d."},{"$f":"IF('[2]FISCAL(M)'!$BS152=\"\",\"\",'[2]FISCAL(M)'!$BS152)","v":"n.d."},{"$f":"IF('[2]FISCAL(M)'!$AZ152=\"\",\"\",'[2]FISCAL(M)'!$AZ152)","v":"n.d."},{"$f":"IF('[2]FISCAL(M)'!$BJ152=\"\",\"\",'[2]FISCAL(M)'!$BJ152)","v":"n.d."},{"$f":"IF('[2]FISCAL(M)'!$BT152=\"\",\"\",'[2]FISCAL(M)'!$BT152)","v":"n.d."},{"$f":"IF('[3]MONE(M)'!$AO152=\"\",\"\",'[3]MONE(M)'!$AO152)","v":"n.d."},{"$f":"IF('[4]MONE(M)'!$AO152=\"\",\"\",'[4]MONE(M)'!$AO152)","v":"n.d."},{"$f":"IF('[5]MONE(M)'!$AO152=\"\",\"\",'[5]MONE(M)'!$AO152)","v":"n.d."},{"$f":"+'[1]MONE(M)'!$AO152","v":"n.d."},{"$f":"IF('[6]MONE(M)'!$AO152=\"\",\"\",'[6]MONE(M)'!$AO152)","v":"n.d."},{"$f":"IF('[7]MONE(M)'!$AO152=\"\",\"\",'[7]MONE(M)'!$AO152)","v":"n.d."},{"$f":"IF('[8]MONE(M)'!$AO152=\"\",\"\",'[8]MONE(M)'!$AO152)","v":"n.d."},"n.d.","n.d.","n.d.","n.d.","n.d.","n.d.","n.d.",{"$f":"IF('[2]FISCAL(M)'!$K152=\"\",\"\",'[2]FISCAL(M)'!$K152)","v":"n.d."},{"$f":"+'[2]REAL(A)'!$AO$21","v":86214.197483650845},"n.d.",{"$f":"IF('[2]FISCAL(M)'!$L152=\"\",\"\",'[2]FISCAL(M)'!$L152)","v":"n.d."},{"$f":"+'[2]REAL(A)'!$AP$21","v":"n.d."},"n.d.","n.d.","n.d.","n.d.","n.d.","n.d.","n.d.","n.d.","n.d.","n.d.","n.d.","n.d.","n.d.","n.d.","n.d.","n.d.","n.d."]
[2001,"diciembre","2001-diciembre",{"$f":"IF('[2]REAL IPC(M)'!$AL153=\"\",\"\",+'[2]REAL IPC(M)'!$AL153)","v":6.6440166100415254},{"$f":"IF('[2]REAL IPC(M)'!$BE153=\"\",\"\",+'[2]REAL IPC(M)'!$BE153)","v":8.122695338807894},{"$f":"IF('[2]REAL IPC(M)'!$AM153=\"\",\"\",+'[2]REAL IPC(M)'!$AM153)","v":6.0191025409983778},{"$f":"IF('[2]REAL IPC(M)'!$BI153=\"\",\"\",+'[2]REAL IPC(M)'!$BI153)","v":7.3663823342417611},{"$f":"IF('[2]REAL IMAE(M)'!BJ153=\"\",\"\",'[2]REAL IMAE(M)'!BJ153)","v":"n.d."},{"$f":"IF('[2]REAL IMAE(M)'!BK153=\"\",\"\",'[2]REAL IMAE(M)'!BK153)","v":"n.d."},{"$f":"IF('[2]REAL IMAE(M)'!BN153=\"\",\"\",'[2]REAL IMAE(M)'!BN153)","v":"n.d."},{"$f":"IF('[2]REAL IMAE(M)'!BO153=\"\",\"\",'[2]REAL IMAE(M)'!BO153)","v":"n.d."},{"$f":"IF('[2]EXT RIN(M)'!$K153=\"\",\"\",'[2]EXT RIN(M)'!$K153)","v":7764.9711239690441},7764.9711239690441,{"$f":"IF('[2]EXT RIN(M)'!$L153=\"\",\"\",'[2]EXT RIN(M)'!$L153)","v":7764.9711239690441},7764.9711239690441,{"$f":"IF('[2]MONE(M)CARD'!EG153=\"\",\"\",'[2]MONE(M)CARD'!EG153)","v":7462.4323230993487},{"$f":"IF('[2]MONE(M)CARD'!EK153=\"\",\"\",'[2]MONE(M)CARD'!EK153)","v":15753.820039318378},{"$f":"IF('[2]MONE(M)CARD'!EP153=\"\",\"\",'[2]MONE(M)CARD'!EP153)","v":6146.0459476120595},{"$f":"IF('[2]MONE(M)CARD'!ES153=\"\",\"\",'[2]MONE(M)CARD'!ES153)","v":"n.d."},{"$f":"IF('[2]MONE(M)CARD'!EV153=\"\",\"\",'[2]MONE(M)CARD'!EV153)","v":"n.d."},{"$f":"IF('[2]MONE(M)CARD'!EZ153=\"\",\"\",'[2]MONE(M)CARD'!EZ153)","v":"n.d."},{"$f":"IF('[2]MONE(M)CAPARD'!FC153=\"\",\"\",'[2]MONE(M)CAPARD'!FC153)","v":7462.4323230993487},{"$f":"IF('[2]MONE(M)CAPARD'!FG153=\"\",\"\",'[2]MONE(M)CAPARD'!FG153)","v":15753.820039318378},{"$f":"IF('[2]MONE(M)CAPARD'!FL153=\"\",\"\",'[2]MONE(M)CAPARD'!FL153)","v":6146.0459476120595},{"$f":"IF('[2]MONE(M)CAPARD'!FO153=\"\",\"\",'[2]MONE(M)CAPARD'!FO153)","v":"n.d."},{"$f":"IF('[2]MONE(M)CAPARD'!FR153=\"\",\"\",'[2]MONE(M)CAPARD'!FR153)","v":"n.d."},{"$f":"IF('[2]MONE(M)CAPARD'!FV153=\"\",\"\",'[2]MONE(M)CAPARD'!FV153)","v":"n.d."},{"$f":"IF('[2]MONE(M)CARD'!FV153=\"\",\"\",'[2]MONE(M)CARD'!FV153)","v":293.51303073301335},{"$f":"IF('[2]MONE(M)CARD'!GD153=\"\",\"\",'[2]MONE(M)CARD'!GD153)","v":68.191909845091004},{"$f":"IF('[2]MONE(M)CARD'!GE153=\"\",\"\",'[2]MONE(M)CARD'!GE153)","v":1950.1612816674933},"n.d.",{"$f":"IF('[9]II.2.Balance OSD-Activos'!J11=\"\",\"\",'[9]II.2.Balance OSD-Activos'!J11)","v":31.64999656382119},{"$f":"IF('[9]II.2.Balance OSD-Activos'!N11=\"\",\"\",'[9]II.2.Balance OSD-Activos'!N11)","v":17.021121511511133},{"$f":"IF('[9]II.2.Balance OSD-Activos'!R11=\"\",\"\",'[9]II.2.Balance OSD-Activos'!R11)","v":13128.825920009214},{"$f":"IF('[9]II.2.Balance OSD-Activos'!S11=\"\",\"\",'[9]II.2.Balance OSD-Activos'!S11)","v":7496.4465559661458},13160.475916573036,{"$f":"IF(OR(AF146=\"\",AG146=\"\",AH146=\"\",AI146=\"\"),\"\",SUM(AF146:AI146))","v":20673.943594050692},"n.d.",null,"n.d.","n.d.","n.d.","n.d.","n.d.",{"$f":"IF('[2]MONE(M)CAPARD'!GS153=\"\",\"\",'[2]MONE(M)CAPARD'!GS153)","v":2345.2936879445801},{"$f":"IF('[2]MONE(M)CARD'!HA153=\"\",\"\",'[2]MONE(M)CAPARD'!HA153)","v":1950.1612816674933},{"$f":"IF('[2]MONE(M)CAPARD'!HB153=\"\",\"\",'[2]MONE(M)CAPARD'!HB153)","v":395.13240627708683},"n.d.",{"$f":"IF('[10]II.2.Balance OSD-Activos'!J11=\"\",\"\",'[10]II.2.Balance OSD-Activos'!J11)","v":31.64999656382119},{"$f":"IF('[10]II.2.Balance OSD-Activos'!N11=\"\",\"\",'[10]II.2.Balance OSD-Activos'!N11)","v":17.021121511511133},{"$f":"IF('[10]II.2.Balance OSD-Activos'!R11=\"\",\"\",'[10]II.2.Balance OSD-Activos'!R11)","v":13128.825920009214},{"$f":"IF('[10]II.2.Balance OSD-Activos'!S11=\"\",\"\",'[10]II.2.Balance OSD-Activos'!S11)","v":7496.4465559661458},{"$f":"IFERROR(+AW146+AY146,\"n.d.\")","v":13160.475916573036},{"$f":"IF(OR(AW146=\"\",AX146=\"\",AY146=\"\",AZ146=\"\"),\"\",SUM(AW146:AZ146))","v":20673.943594050692},"n.d.","n.d.","n.d.","n.d.","n.d.","n.d.","n.d.",{"$f":"IF('[2]MONE(M)CAPARD'!AS153=\"\",\"\",'[2]MONE(M)CAPARD'!AS153)","v":"n.d."},{"$f":"IF('[2]MONE(M)CAPARD'!AT153=\"\",\"\",'[2]MONE(M)CAPARD'!AT153)","v":"n.a."},{"$f":"IF('[2]MONE(M)CAPARD'!AU153=\"\",\"\",'[2]MONE(M)CAPARD'!AU153)","v":"n.d."},{"$f":"IF('[2]MONE(M)CAPARD'!AV153=\"\",\"\",'[2]MONE(M)CAPARD'!AV153)","v":"n.d."},{"$f":"IF('[2]MONE(M)CAPARD'!AW153=\"\",\"\",'[2]MONE(M)CAPARD'!AW153)","v":"n.a."},{"$f":"IF('[2]MONE(M)CAPARD'!AX153=\"\",\"\",'[2]MONE(M)CAPARD'!AX153)","v":"n.d."},{"$f":"IF('[2]MONE(M)CAPARD'!AY153=\"\",\"\",'[2]MONE(M)CAPARD'!AY153)","v":"n.a."},{"$f":"IF('[2]FISCAL(M)'!$K153=\"\",\"\",'[2]FISCAL(M)'!$K153)","v":"n.d."},{"$f":"IF('[2]FISCAL(M)'!$L153=\"\",\"\",'[2]FISCAL(M)'!$L153)","v":"n.d."},{"$f":"IF('[2]FISCAL(M)'!$AY153=\"\",\"\",'[2]FISCAL(M)'!$AY153)","v":"n.d."},{"$f":"IF('[2]FISCAL(M)'!$BI153=\"\",\"\",'[2]FISCAL(M)'!$BI153)","v":"n.d."},{"$f":"IF('[2]FISCAL(M)'!$BS153=\"\",\"\",'[2]FISCAL(M)'!$BS153)","v":"n.d."},{"$f":"IF('[2]FISCAL(M)'!$AZ153=\"\",\"\",'[2]FISCAL(M)'!$AZ153)","v":"n.d."},{"$f":"IF('[2]FISCAL(M)'!$BJ153=\"\",\"\",'[2]FISCAL(M)'!$BJ153)","v":"n.d."},{"$f":"IF('[2]FISCAL(M)'!$BT153=\"\",\"\",'[2]FISCAL(M)'!$BT153)","v":"n.d."},{"$f":"IF('[3]MONE(M)'!$AO153=\"\",\"\",'[3]MONE(M)'!$AO153)","v":1530647.7155016826},{"$f":"IF('[4]MONE(M)'!$AO153=\"\",\"\",'[4]MONE(M)'!$AO153)","v":5793.6577428571427},{"$f":"IF('[5]MONE(M)'!$AO153=\"\",\"\",'[5]MONE(M)'!$AO153)","v":36171.978717497179},{"$f":"+'[1]MONE(M)'!$AO153","v":41245.89378272053},{"$f":"IF('[6]MONE(M)'!$AO153=\"\",\"\",'[6]MONE(M)'!$AO153)","v":9904.0127808399993},{"$f":"IF('[7]MONE(M)'!$AO153=\"\",\"\",'[7]MONE(M)'!$AO153)","v":134642.91197099999},{"$f":"IF('[8]MONE(M)'!$AO153=\"\",\"\",'[8]MONE(M)'!$AO153)","v":0},"n.d.","n.d.","n.d.","n.d.","n.d.","n.d.","n.d.",{"$f":"IF('[2]FISCAL(M)'!$K153=\"\",\"\",'[2]FISCAL(M)'!$K153)","v":"n.d."},{"$f":"+'[2]REAL(A)'!$AO$21","v":86214.197483650845},"n.d.",{"$f":"IF('[2]FISCAL(M)'!$L153=\"\",\"\",'[2]FISCAL(M)'!$L153)","v":"n.d."},{"$f":"+'[2]REAL(A)'!$AP$21","v":"n.d."},"n.d.","n.d.","n.d.","n.d.","n.d.","n.d.","n.d.","n.d.","n.d.","n.d.","n.d.","n.d.","n.d.","n.d.","n.d.","n.d.","n.d."]
[2002,"enero","2002-enero",{"$f":"IF('[2]REAL IPC(M)'!$AL154=\"\",\"\",+'[2]REAL IPC(M)'!$AL154)","v":5.9765406814373589},{"$f":"IF('[2]REAL IPC(M)'!$BE154=\"\",\"\",+'[2]REAL IPC(M)'!$BE154)","v":8.2609870274478645},{"$f":"IF('[2]REAL IPC(M)'!$AM154=\"\",\"\",+'[2]REAL IPC(M)'!$AM154)","v":5.4606901458555734},{"$f":"IF('[2]REAL IPC(M)'!$BI154=\"\",\"\",+'[2]REAL IPC(M)'!$BI154)","v":7.4875168403673475},{"$f":"IF('[2]REAL IMAE(M)'!BJ154=\"\",\"\",'[2]REAL IMAE(M)'!BJ154)","v":"n.d."},{"$f":"IF('[2]REAL IMAE(M)'!BK154=\"\",\"\",'[2]REAL IMAE(M)'!BK154)","v":"n.d."},{"$f":"IF('[2]REAL IMAE(M)'!BN154=\"\",\"\",'[2]REAL IMAE(M)'!BN154)","v":"n.d."},{"$f":"IF('[2]REAL IMAE(M)'!BO154=\"\",\"\",'[2]REAL IMAE(M)'!BO154)","v":"n.d."},{"$f":"IF('[2]EXT RIN(M)'!$K154=\"\",\"\",'[2]EXT RIN(M)'!$K154)","v":7465.7883886444188},"",{"$f":"IF('[2]EXT RIN(M)'!$L154=\"\",\"\",'[2]EXT RIN(M)'!$L154)","v":7465.7883886444188},"",{"$f":"IF('[2]MONE(M)CARD'!EG154=\"\",\"\",'[2]MONE(M)CARD'!EG154)","v":6733.4277393746197},{"$f":"IF('[2]MONE(M)CARD'!EK154=\"\",\"\",'[2]MONE(M)CARD'!EK154)","v":13811.052902622912},{"$f":"IF('[2]MONE(M)CARD'!EP154=\"\",\"\",'[2]MONE(M)CARD'!EP154)","v":5418.4576215442394},{"$f":"IF('[2]MONE(M)CARD'!ES154=\"\",\"\",'[2]MONE(M)CARD'!ES154)","v":"n.d."},{"$f":"IF('[2]MONE(M)CARD'!EV154=\"\",\"\",'[2]MONE(M)CARD'!EV154)","v":"n.d."},{"$f":"IF('[2]MONE(M)CARD'!EZ154=\"\",\"\",'[2]MONE(M)CARD'!EZ154)","v":"n.d."},{"$f":"IF('[2]MONE(M)CAPARD'!FC154=\"\",\"\",'[2]MONE(M)CAPARD'!FC154)","v":6733.4277393746197},{"$f":"IF('[2]MONE(M)CAPARD'!FG154=\"\",\"\",'[2]MONE(M)CAPARD'!FG154)","v":13811.052902622912},{"$f":"IF('[2]MONE(M)CAPARD'!FL154=\"\",\"\",'[2]MONE(M)CAPARD'!FL154)","v":5418.4576215442394},{"$f":"IF('[2]MONE(M)CAPARD'!FO154=\"\",\"\",'[2]MONE(M)CAPARD'!FO154)","v":"n.d."},{"$f":"IF('[2]MONE(M)CAPARD'!FR154=\"\",\"\",'[2]MONE(M)CAPARD'!FR154)","v":"n.d."},{"$f":"IF('[2]MONE(M)CAPARD'!FV154=\"\",\"\",'[2]MONE(M)CAPARD'!FV154)","v":"n.d."},{"$f":"IF('[2]MONE(M)CARD'!FV154=\"\",\"\",'[2]MONE(M)CARD'!FV154)","v":299.77935913193755},{"$f":"IF('[2]MONE(M)CARD'!GD154=\"\",\"\",'[2]MONE(M)CARD'!GD154)","v":15.061624705436079},{"$f":"IF('[2]MONE(M)CARD'!GE154=\"\",\"\",'[2]MONE(M)CARD'!GE154)","v":2285.2473724130377},"n.d.",{"$f":"IF('[9]II.2.Balance OSD-Activos'!J12=\"\",\"\",'[9]II.2.Balance OSD-Activos'!J12)","v":44.896652289626317},{"$f":"IF('[9]II.2.Balance OSD-Activos'!N12=\"\",\"\",'[9]II.2.Balance OSD-Activos'!N12)","v":15.466224372399777},{"$f":"IF('[9]II.2.Balance OSD-Activos'!R12=\"\",\"\",'[9]II.2.Balance OSD-Activos'!R12)","v":10706.942762440305},{"$f":"IF('[9]II.2.Balance OSD-Activos'!S12=\"\",\"\",'[9]II.2.Balance OSD-Activos'!S12)","v":7393.7027034928788},10751.839414729931,18161.008342595211,"n.d.",null,"n.d.","n.d.","n.d.","n.d.","n.d.",{"$f":"IF('[2]MONE(M)CAPARD'!GS154=\"\",\"\",'[2]MONE(M)CAPARD'!GS154)","v":2371.7486626950827},{"$f":"IF('[2]MONE(M)CARD'!HA154=\"\",\"\",'[2]MONE(M)CAPARD'!HA154)","v":2285.2473724130377},{"$f":"IF('[2]MONE(M)CAPARD'!HB154=\"\",\"\",'[2]MONE(M)CAPARD'!HB154)","v":86.50129028204492},"n.d.",{"$f":"IF('[10]II.2.Balance OSD-Activos'!J12=\"\",\"\",'[10]II.2.Balance OSD-Activos'!J12)","v":44.896652289626317},{"$f":"IF('[10]II.2.Balance OSD-Activos'!N12=\"\",\"\",'[10]II.2.Balance OSD-Activos'!N12)","v":15.466224372399777},{"$f":"IF('[10]II.2.Balance OSD-Activos'!R12=\"\",\"\",'[10]II.2.Balance OSD-Activos'!R12)","v":10706.942762440305},{"$f":"IF('[10]II.2.Balance OSD-Activos'!S12=\"\",\"\",'[10]II.2.Balance OSD-Activos'!S12)","v":7393.7027034928788},10751.839414729931,18161.008342595211,"n.d.","n.d.","n.d.","n.d.","n.d.","n.d.","n.d.",{"$f":"IF('[2]MONE(M)CAPARD'!AS154=\"\",\"\",'[2]MONE(M)CAPARD'!AS154)","v":"n.d."},{"$f":"IF('[2]MONE(M)CAPARD'!AT154=\"\",\"\",'[2]MONE(M)CAPARD'!AT154)","v":"n.a."},{"$f":"IF('[2]MONE(M)CAPARD'!AU154=\"\",\"\",'[2]MONE(M)CAPARD'!AU154)","v":"n.d."},{"$f":"IF('[2]MONE(M)CAPARD'!AV154=\"\",\"\",'[2]MONE(M)CAPARD'!AV154)","v":"n.d."},{"$f":"IF('[2]MONE(M)CAPARD'!AW154=\"\",\"\",'[2]MONE(M)CAPARD'!AW154)","v":"n.a."},{"$f":"IF('[2]MONE(M)CAPARD'!AX154=\"\",\"\",'[2]MONE(M)CAPARD'!AX154)","v":"n.d."},{"$f":"IF('[2]MONE(M)CAPARD'!AY154=\"\",\"\",'[2]MONE(M)CAPARD'!AY154)","v":"n.a."},{"$f":"IF('[2]FISCAL(M)'!$K154=\"\",\"\",'[2]FISCAL(M)'!$K154)","v":15.59640378748103},{"$f":"IF('[2]FISCAL(M)'!$L154=\"\",\"\",'[2]FISCAL(M)'!$L154)","v":66.144494440481054},{"$f":"IF('[2]FISCAL(M)'!$AY154=\"\",\"\",'[2]FISCAL(M)'!$AY154)","v":"n.d."},{"$f":"IF('[2]FISCAL(M)'!$BI154=\"\",\"\",'[2]FISCAL(M)'!$BI154)","v":"n.d."},{"$f":"IF('[2]FISCAL(M)'!$BS154=\"\",\"\",'[2]FISCAL(M)'!$BS154)","v":"n.d."},{"$f":"IF('[2]FISCAL(M)'!$AZ154=\"\",\"\",'[2]FISCAL(M)'!$AZ154)","v":"n.d."},{"$f":"IF('[2]FISCAL(M)'!$BJ154=\"\",\"\",'[2]FISCAL(M)'!$BJ154)","v":"n.d."},{"$f":"IF('[2]FISCAL(M)'!$BT154=\"\",\"\",'[2]FISCAL(M)'!$BT154)","v":"n.d."},{"$f":"IF('[3]MONE(M)'!$AO154=\"\",\"\",'[3]MONE(M)'!$AO154)","v":1555656.2210431478},{"$f":"IF('[4]MONE(M)'!$AO154=\"\",\"\",'[4]MONE(M)'!$AO154)","v":5805.6617428571435},{"$f":"IF('[5]MONE(M)'!$AO154=\"\",\"\",'[5]MONE(M)'!$AO154)","v":35624.893431773249},{"$f":"+'[1]MONE(M)'!$AO154","v":42270.620131316355},{"$f":"IF('[6]MONE(M)'!$AO154=\"\",\"\",'[6]MONE(M)'!$AO154)","v":10101.976076520001},{"$f":"IF('[7]MONE(M)'!$AO154=\"\",\"\",'[7]MONE(M)'!$AO154)","v":136430.585999},{"$f":"IF('[8]MONE(M)'!$AO154=\"\",\"\",'[8]MONE(M)'!$AO154)","v":0},"n.d.","n.d.","n.d.","n.d.","n.d.","n.d.","n.d.",{"$f":"IF('[2]FISCAL(M)'!$K154=\"\",\"\",'[2]FISCAL(M)'!$K154)","v":15.59640378748103},{"$f":"+'[2]REAL(A)'!$AO$22","v":90015.237527740421},1.732640407983661E-2,{"$f":"IF('[2]FISCAL(M)'!$L154=\"\",\"\",'[2]FISCAL(M)'!$L154)","v":66.144494440481054},{"$f":"+'[2]REAL(A)'!$AP$22","v":"n.d."},"n.d.","n.d.",{"$f":"'[2]Gráfico REM'!BG148","v":6609.5245323925374},{"$f":"'[2]Gráfico REM'!BH148","v":26129.731447709215},{"$f":"'[2]Gráfico REM'!BI148","v":843.15762417990481},"n.d.","n.d.","n.d.","n.d.","n.d.","n.d.","n.d.","n.d.","n.d.","n.d.","n.d.","n.d."]
[2002,"febrero","2002-febrero",{"$f":"IF('[2]REAL IPC(M)'!$AL155=\"\",\"\",+'[2]REAL IPC(M)'!$AL155)","v":5.923994038748126},{"$f":"IF('[2]REAL IPC(M)'!$BE155=\"\",\"\",+'[2]REAL IPC(M)'!$BE155)","v":8.4083169734202592},{"$f":"IF('[2]REAL IPC(M)'!$AM155=\"\",\"\",+'[2]REAL IPC(M)'!$AM155)","v":5.4121417126580029},{"$f":"IF('[2]REAL IPC(M)'!$BI155=\"\",\"\",+'[2]REAL IPC(M)'!$BI155)","v":7.6172945821574745},{"$f":"IF('[2]REAL IMAE(M)'!BJ155=\"\",\"\",'[2]REAL IMAE(M)'!BJ155)","v":"n.d."},{"$f":"IF('[2]REAL IMAE(M)'!BK155=\"\",\"\",'[2]REAL IMAE(M)'!BK155)","v":"n.d."},{"$f":"IF('[2]REAL IMAE(M)'!BN155=\"\",\"\",'[2]REAL IMAE(M)'!BN155)","v":"n.d."},{"$f":"IF('[2]REAL IMAE(M)'!BO155=\"\",\"\",'[2]REAL IMAE(M)'!BO155)","v":"n.d."},{"$f":"IF('[2]EXT RIN(M)'!$K155=\"\",\"\",'[2]EXT RIN(M)'!$K155)","v":7585.2437964367746},"",{"$f":"IF('[2]EXT RIN(M)'!$L155=\"\",\"\",'[2]EXT RIN(M)'!$L155)","v":7585.2437964367746},"",{"$f":"IF('[2]MONE(M)CARD'!EG155=\"\",\"\",'[2]MONE(M)CARD'!EG155)","v":6562.9599914261571},{"$f":"IF('[2]MONE(M)CARD'!EK155=\"\",\"\",'[2]MONE(M)CARD'!EK155)","v":14277.506801532836},{"$f":"IF('[2]MONE(M)CARD'!EP155=\"\",\"\",'[2]MONE(M)CARD'!EP155)","v":5643.5102864771397},{"$f":"IF('[2]MONE(M)CARD'!ES155=\"\",\"\",'[2]MONE(M)CARD'!ES155)","v":"n.d."},{"$f":"IF('[2]MONE(M)CARD'!EV155=\"\",\"\",'[2]MONE(M)CARD'!EV155)","v":"n.d."},{"$f":"IF('[2]MONE(M)CARD'!EZ155=\"\",\"\",'[2]MONE(M)CARD'!EZ155)","v":"n.d."},{"$f":"IF('[2]MONE(M)CAPARD'!FC155=\"\",\"\",'[2]MONE(M)CAPARD'!FC155)","v":6562.9599914261571},{"$f":"IF('[2]MONE(M)CAPARD'!FG155=\"\",\"\",'[2]MONE(M)CAPARD'!FG155)","v":14277.506801532836},{"$f":"IF('[2]MONE(M)CAPARD'!FL155=\"\",\"\",'[2]MONE(M)CAPARD'!FL155)","v":5643.5102864771397},{"$f":"IF('[2]MONE(M)CAPARD'!FO155=\"\",\"\",'[2]MONE(M)CAPARD'!FO155)","v":"n.d."},{"$f":"IF('[2]MONE(M)CAPARD'!FR155=\"\",\"\",'[2]MONE(M)CAPARD'!FR155)","v":"n.d."},{"$f":"IF('[2]MONE(M)CAPARD'!FV155=\"\",\"\",'[2]MONE(M)CAPARD'!FV155)","v":"n.d."},{"$f":"IF('[2]MONE(M)CARD'!FV155=\"\",\"\",'[2]MONE(M)CARD'!FV155)","v":294.35408088826114},{"$f":"IF('[2]MONE(M)CARD'!GD155=\"\",\"\",'[2]MONE(M)CARD'!GD155)","v":13.809557185571254},{"$f":"IF('[2]MONE(M)CARD'!GE155=\"\",\"\",'[2]MONE(M)CARD'!GE155)","v":1913.427941224993},"n.d.",{"$f":"IF('[9]II.2.Balance OSD-Activos'!J13=\"\",\"\",'[9]II.2.Balance OSD-Activos'!J13)","v":34.019748319692596},{"$f":"IF('[9]II.2.Balance OSD-Activos'!N13=\"\",\"\",'[9]II.2.Balance OSD-Activos'!N13)","v":15.384225492535423},{"$f":"IF('[9]II.2.Balance OSD-Activos'!R13=\"\",\"\",'[9]II.2.Balance OSD-Activos'!R13)","v":10631.201978448056},{"$f":"IF('[9]II.2.Balance OSD-Activos'!S13=\"\",\"\",'[9]II.2.Balance OSD-Activos'!S13)","v":7546.0969760928656},10665.22172676775,18226.702928353152,"n.d.",null,"n.d.","n.d.","n.d.","n.d.","n.d.",{"$f":"IF('[2]MONE(M)CAPARD'!GS155=\"\",\"\",'[2]MONE(M)CAPARD'!GS155)","v":2372.1670673831454},{"$f":"IF('[2]MONE(M)CARD'!HA155=\"\",\"\",'[2]MONE(M)CAPARD'!HA155)","v":1913.427941224993},{"$f":"IF('[2]MONE(M)CAPARD'!HB155=\"\",\"\",'[2]MONE(M)CAPARD'!HB155)","v":458.73912615815243},"n.d.",{"$f":"IF('[10]II.2.Balance OSD-Activos'!J13=\"\",\"\",'[10]II.2.Balance OSD-Activos'!J13)","v":34.019748319692596},{"$f":"IF('[10]II.2.Balance OSD-Activos'!N13=\"\",\"\",'[10]II.2.Balance OSD-Activos'!N13)","v":15.384225492535423},{"$f":"IF('[10]II.2.Balance OSD-Activos'!R13=\"\",\"\",'[10]II.2.Balance OSD-Activos'!R13)","v":10631.201978448056},{"$f":"IF('[10]II.2.Balance OSD-Activos'!S13=\"\",\"\",'[10]II.2.Balance OSD-Activos'!S13)","v":7546.0969760928656},10665.22172676775,18226.702928353152,"n.d.","n.d.","n.d.","n.d.","n.d.","n.d.","n.d.",{"$f":"IF('[2]MONE(M)CAPARD'!AS155=\"\",\"\",'[2]MONE(M)CAPARD'!AS155)","v":"n.d."},{"$f":"IF('[2]MONE(M)CAPARD'!AT155=\"\",\"\",'[2]MONE(M)CAPARD'!AT155)","v":"n.a."},{"$f":"IF('[2]MONE(M)CAPARD'!AU155=\"\",\"\",'[2]MONE(M)CAPARD'!AU155)","v":"n.d."},{"$f":"IF('[2]MONE(M)CAPARD'!AV155=\"\",\"\",'[2]MONE(M)CAPARD'!AV155)","v":"n.d."},{"$f":"IF('[2]MONE(M)CAPARD'!AW155=\"\",\"\",'[2]MONE(M)CAPARD'!AW155)","v":"n.a."},{"$f":"IF('[2]MONE(M)CAPARD'!AX155=\"\",\"\",'[2]MONE(M)CAPARD'!AX155)","v":"n.d."},{"$f":"IF('[2]MONE(M)CAPARD'!AY155=\"\",\"\",'[2]MONE(M)CAPARD'!AY155)","v":"n.a."},{"$f":"IF('[2]FISCAL(M)'!$K155=\"\",\"\",'[2]FISCAL(M)'!$K155)","v":-203.49347393374867},{"$f":"IF('[2]FISCAL(M)'!$L155=\"\",\"\",'[2]FISCAL(M)'!$L155)","v":-369.66503359074864},{"$f":"IF('[2]FISCAL(M)'!$AY155=\"\",\"\",'[2]FISCAL(M)'!$AY155)","v":"n.d."},{"$f":"IF('[2]FISCAL(M)'!$BI155=\"\",\"\",'[2]FISCAL(M)'!$BI155)","v":"n.d."},{"$f":"IF('[2]FISCAL(M)'!$BS155=\"\",\"\",'[2]FISCAL(M)'!$BS155)","v":"n.d."},{"$f":"IF('[2]FISCAL(M)'!$AZ155=\"\",\"\",'[2]FISCAL(M)'!$AZ155)","v":"n.d."},{"$f":"IF('[2]FISCAL(M)'!$BJ155=\"\",\"\",'[2]FISCAL(M)'!$BJ155)","v":"n.d."},{"$f":"IF('[2]FISCAL(M)'!$BT155=\"\",\"\",'[2]FISCAL(M)'!$BT155)","v":"n.d."},{"$f":"IF('[3]MONE(M)'!$AO155=\"\",\"\",'[3]MONE(M)'!$AO155)","v":1565422.9569562464},{"$f":"IF('[4]MONE(M)'!$AO155=\"\",\"\",'[4]MONE(M)'!$AO155)","v":5890.6657428571443},{"$f":"IF('[5]MONE(M)'!$AO155=\"\",\"\",'[5]MONE(M)'!$AO155)","v":36059.338473854223},{"$f":"+'[1]MONE(M)'!$AO155","v":42544.854746607489},{"$f":"IF('[6]MONE(M)'!$AO155=\"\",\"\",'[6]MONE(M)'!$AO155)","v":10157.002826709999},{"$f":"IF('[7]MONE(M)'!$AO155=\"\",\"\",'[7]MONE(M)'!$AO155)","v":138279.52566300001},{"$f":"IF('[8]MONE(M)'!$AO155=\"\",\"\",'[8]MONE(M)'!$AO155)","v":0},"n.d.","n.d.","n.d.","n.d.","n.d.","n.d.","n.d.",{"$f":"IF('[2]FISCAL(M)'!$K155=\"\",\"\",'[2]FISCAL(M)'!$K155)","v":-203.49347393374867},{"$f":"+'[2]REAL(A)'!$AO$22","v":90015.237527740421},-0.22606558569712945,{"$f":"IF('[2]FISCAL(M)'!$L155=\"\",\"\",'[2]FISCAL(M)'!$L155)","v":-369.66503359074864},{"$f":"+'[2]REAL(A)'!$AP$22","v":"n.d."},"n.d.","n.d.",{"$f":"'[2]Gráfico REM'!BG149","v":6803.2255155732018},{"$f":"'[2]Gráfico REM'!BH149","v":26379.834770216716},{"$f":"'[2]Gráfico REM'!BI149","v":806.16507432037963},"n.d.","n.d.","n.d.","n.d.","n.d.","n.d.","n.d.","n.d.","n.d.","n.d.","n.d.","n.d."]
[2002,"marzo","2002-marzo",{"$f":"IF('[2]REAL IPC(M)'!$AL156=\"\",\"\",+'[2]REAL IPC(M)'!$AL156)","v":6.2569624953583425},{"$f":"IF('[2]REAL IPC(M)'!$BE156=\"\",\"\",+'[2]REAL IPC(M)'!$BE156)","v":8.5647957040815506},{"$f":"IF('[2]REAL IPC(M)'!$AM156=\"\",\"\",+'[2]REAL IPC(M)'!$AM156)","v":5.733049343272989},{"$f":"IF('[2]REAL IPC(M)'!$BI156=\"\",\"\",+'[2]REAL IPC(M)'!$BI156)","v":7.7559547054765643},{"$f":"IF('[2]REAL IMAE(M)'!BJ156=\"\",\"\",'[2]REAL IMAE(M)'!BJ156)","v":"n.d."},{"$f":"IF('[2]REAL IMAE(M)'!BK156=\"\",\"\",'[2]REAL IMAE(M)'!BK156)","v":"n.d."},{"$f":"IF('[2]REAL IMAE(M)'!BN156=\"\",\"\",'[2]REAL IMAE(M)'!BN156)","v":"n.d."},{"$f":"IF('[2]REAL IMAE(M)'!BO156=\"\",\"\",'[2]REAL IMAE(M)'!BO156)","v":"n.d."},{"$f":"IF('[2]EXT RIN(M)'!$K156=\"\",\"\",'[2]EXT RIN(M)'!$K156)","v":7737.9052355600579},"",{"$f":"IF('[2]EXT RIN(M)'!$L156=\"\",\"\",'[2]EXT RIN(M)'!$L156)","v":7737.9052355600579},"",{"$f":"IF('[2]MONE(M)CARD'!EG156=\"\",\"\",'[2]MONE(M)CARD'!EG156)","v":6836.7720729030007},{"$f":"IF('[2]MONE(M)CARD'!EK156=\"\",\"\",'[2]MONE(M)CARD'!EK156)","v":14089.996707756913},{"$f":"IF('[2]MONE(M)CARD'!EP156=\"\",\"\",'[2]MONE(M)CARD'!EP156)","v":5605.501744285757},{"$f":"IF('[2]MONE(M)CARD'!ES156=\"\",\"\",'[2]MONE(M)CARD'!ES156)","v":"n.d."},{"$f":"IF('[2]MONE(M)CARD'!EV156=\"\",\"\",'[2]MONE(M)CARD'!EV156)","v":"n.d."},{"$f":"IF('[2]MONE(M)CARD'!EZ156=\"\",\"\",'[2]MONE(M)CARD'!EZ156)","v":"n.d."},{"$f":"IF('[2]MONE(M)CAPARD'!FC156=\"\",\"\",'[2]MONE(M)CAPARD'!FC156)","v":6836.7720729030007},{"$f":"IF('[2]MONE(M)CAPARD'!FG156=\"\",\"\",'[2]MONE(M)CAPARD'!FG156)","v":14089.996707756913},{"$f":"IF('[2]MONE(M)CAPARD'!FL156=\"\",\"\",'[2]MONE(M)CAPARD'!FL156)","v":5605.501744285757},{"$f":"IF('[2]MONE(M)CAPARD'!FO156=\"\",\"\",'[2]MONE(M)CAPARD'!FO156)","v":"n.d."},{"$f":"IF('[2]MONE(M)CAPARD'!FR156=\"\",\"\",'[2]MONE(M)CAPARD'!FR156)","v":"n.d."},{"$f":"IF('[2]MONE(M)CAPARD'!FV156=\"\",\"\",'[2]MONE(M)CAPARD'!FV156)","v":"n.d."},{"$f":"IF('[2]MONE(M)CARD'!FV156=\"\",\"\",'[2]MONE(M)CARD'!FV156)","v":284.02749494527222},{"$f":"IF('[2]MONE(M)CARD'!GD156=\"\",\"\",'[2]MONE(M)CARD'!GD156)","v":12.796551777791118},{"$f":"IF('[2]MONE(M)CARD'!GE156=\"\",\"\",'[2]MONE(M)CARD'!GE156)","v":2444.5362344084642},"n.d.",{"$f":"IF('[9]II.2.Balance OSD-Activos'!J14=\"\",\"\",'[9]II.2.Balance OSD-Activos'!J14)","v":40.203385364223045},{"$f":"IF('[9]II.2.Balance OSD-Activos'!N14=\"\",\"\",'[9]II.2.Balance OSD-Activos'!N14)","v":15.33166959057451},{"$f":"IF('[9]II.2.Balance OSD-Activos'!R14=\"\",\"\",'[9]II.2.Balance OSD-Activos'!R14)","v":10786.209362776704},{"$f":"IF('[9]II.2.Balance OSD-Activos'!S14=\"\",\"\",'[9]II.2.Balance OSD-Activos'!S14)","v":7601.4979202947634},10826.412748140927,18443.242338026266,"n.d.",null,"n.d.","n.d.","n.d.","n.d.","n.d.",{"$f":"IF('[2]MONE(M)CAPARD'!GS156=\"\",\"\",'[2]MONE(M)CAPARD'!GS156)","v":2429.5394229197291},{"$f":"IF('[2]MONE(M)CARD'!HA156=\"\",\"\",'[2]MONE(M)CAPARD'!HA156)","v":2444.5362344084642},{"$f":"IF('[2]MONE(M)CAPARD'!HB156=\"\",\"\",'[2]MONE(M)CAPARD'!HB156)","v":-14.996811488735148},"n.d.",{"$f":"IF('[10]II.2.Balance OSD-Activos'!J14=\"\",\"\",'[10]II.2.Balance OSD-Activos'!J14)","v":40.203385364223045},{"$f":"IF('[10]II.2.Balance OSD-Activos'!N14=\"\",\"\",'[10]II.2.Balance OSD-Activos'!N14)","v":15.33166959057451},{"$f":"IF('[10]II.2.Balance OSD-Activos'!R14=\"\",\"\",'[10]II.2.Balance OSD-Activos'!R14)","v":10786.209362776704},{"$f":"IF('[10]II.2.Balance OSD-Activos'!S14=\"\",\"\",'[10]II.2.Balance OSD-Activos'!S14)","v":7601.4979202947634},10826.412748140927,18443.242338026266,"n.d.","n.d.","n.d.","n.d.","n.d.","n.d.","n.d.",{"$f":"IF('[2]MONE(M)CAPARD'!AS156=\"\",\"\",'[2]MONE(M)CAPARD'!AS156)","v":"n.d."},{"$f":"IF('[2]MONE(M)CAPARD'!AT156=\"\",\"\",'[2]MONE(M)CAPARD'!AT156)","v":"n.a."},{"$f":"IF('[2]MONE(M)CAPARD'!AU156=\"\",\"\",'[2]MONE(M)CAPARD'!AU156)","v":"n.d."},{"$f":"IF('[2]MONE(M)CAPARD'!AV156=\"\",\"\",'[2]MONE(M)CAPARD'!AV156)","v":"n.d."},{"$f":"IF('[2]MONE(M)CAPARD'!AW156=\"\",\"\",'[2]MONE(M)CAPARD'!AW156)","v":"n.a."},{"$f":"IF('[2]MONE(M)CAPARD'!AX156=\"\",\"\",'[2]MONE(M)CAPARD'!AX156)","v":"n.d."},{"$f":"IF('[2]MONE(M)CAPARD'!AY156=\"\",\"\",'[2]MONE(M)CAPARD'!AY156)","v":"n.a."},{"$f":"IF('[2]FISCAL(M)'!$K156=\"\",\"\",'[2]FISCAL(M)'!$K156)","v":-239.48396330420698},{"$f":"IF('[2]FISCAL(M)'!$L156=\"\",\"\",'[2]FISCAL(M)'!$L156)","v":-398.23370950620705},{"$f":"IF('[2]FISCAL(M)'!$AY156=\"\",\"\",'[2]FISCAL(M)'!$AY156)","v":"n.d."},{"$f":"IF('[2]FISCAL(M)'!$BI156=\"\",\"\",'[2]FISCAL(M)'!$BI156)","v":"n.d."},{"$f":"IF('[2]FISCAL(M)'!$BS156=\"\",\"\",'[2]FISCAL(M)'!$BS156)","v":"n.d."},{"$f":"IF('[2]FISCAL(M)'!$AZ156=\"\",\"\",'[2]FISCAL(M)'!$AZ156)","v":"n.d."},{"$f":"IF('[2]FISCAL(M)'!$BJ156=\"\",\"\",'[2]FISCAL(M)'!$BJ156)","v":"n.d."},{"$f":"IF('[2]FISCAL(M)'!$BT156=\"\",\"\",'[2]FISCAL(M)'!$BT156)","v":"n.d."},{"$f":"IF('[3]MONE(M)'!$AO156=\"\",\"\",'[3]MONE(M)'!$AO156)","v":1596602.9556422816},{"$f":"IF('[4]MONE(M)'!$AO156=\"\",\"\",'[4]MONE(M)'!$AO156)","v":5811.2257428571429},{"$f":"IF('[5]MONE(M)'!$AO156=\"\",\"\",'[5]MONE(M)'!$AO156)","v":35860.147330091728},{"$f":"+'[1]MONE(M)'!$AO156","v":42927.815958334751},{"$f":"IF('[6]MONE(M)'!$AO156=\"\",\"\",'[6]MONE(M)'!$AO156)","v":9924.1195131900004},{"$f":"IF('[7]MONE(M)'!$AO156=\"\",\"\",'[7]MONE(M)'!$AO156)","v":140953.09512399998},{"$f":"IF('[8]MONE(M)'!$AO156=\"\",\"\",'[8]MONE(M)'!$AO156)","v":0},"n.d.","n.d.","n.d.","n.d.","n.d.","n.d.","n.d.",{"$f":"IF('[2]FISCAL(M)'!$K156=\"\",\"\",'[2]FISCAL(M)'!$K156)","v":-239.48396330420698},{"$f":"+'[2]REAL(A)'!$AO$22","v":90015.237527740421},-0.26604824903161989,{"$f":"IF('[2]FISCAL(M)'!$L156=\"\",\"\",'[2]FISCAL(M)'!$L156)","v":-398.23370950620705},{"$f":"+'[2]REAL(A)'!$AP$22","v":"n.d."},"n.d.","n.d.",{"$f":"'[2]Gráfico REM'!BG150","v":7063.2160628032798},{"$f":"'[2]Gráfico REM'!BH150","v":26538.533317388901},{"$f":"'[2]Gráfico REM'!BI150","v":864.48690803304407},"n.d.","n.d.","n.d.","n.d.","n.d.","n.d.","n.d.","n.d.","n.d.","n.d.","n.d.","n.d."]
[2002,"abril","2002-abril",{"$f":"IF('[2]REAL IPC(M)'!$AL157=\"\",\"\",+'[2]REAL IPC(M)'!$AL157)","v":6.2038404726735719},{"$f":"IF('[2]REAL IPC(M)'!$BE157=\"\",\"\",+'[2]REAL IPC(M)'!$BE157)","v":8.7303711690527752},{"$f":"IF('[2]REAL IPC(M)'!$AM157=\"\",\"\",+'[2]REAL IPC(M)'!$AM157)","v":5.6683736535405371},{"$f":"IF('[2]REAL IPC(M)'!$BI157=\"\",\"\",+'[2]REAL IPC(M)'!$BI157)","v":7.9035839116742279},{"$f":"IF('[2]REAL IMAE(M)'!BJ157=\"\",\"\",'[2]REAL IMAE(M)'!BJ157)","v":"n.d."},{"$f":"IF('[2]REAL IMAE(M)'!BK157=\"\",\"\",'[2]REAL IMAE(M)'!BK157)","v":"n.d."},{"$f":"IF('[2]REAL IMAE(M)'!BN157=\"\",\"\",'[2]REAL IMAE(M)'!BN157)","v":"n.d."},{"$f":"IF('[2]REAL IMAE(M)'!BO157=\"\",\"\",'[2]REAL IMAE(M)'!BO157)","v":"n.d."},{"$f":"IF('[2]EXT RIN(M)'!$K157=\"\",\"\",'[2]EXT RIN(M)'!$K157)","v":8031.5617016391616},"",{"$f":"IF('[2]EXT RIN(M)'!$L157=\"\",\"\",'[2]EXT RIN(M)'!$L157)","v":8031.5617016391616},"",{"$f":"IF('[2]MONE(M)CARD'!EG157=\"\",\"\",'[2]MONE(M)CARD'!EG157)","v":6681.1071674203831},{"$f":"IF('[2]MONE(M)CARD'!EK157=\"\",\"\",'[2]MONE(M)CARD'!EK157)","v":13858.773327845114},{"$f":"IF('[2]MONE(M)CARD'!EP157=\"\",\"\",'[2]MONE(M)CARD'!EP157)","v":5630.3683881064244},{"$f":"IF('[2]MONE(M)CARD'!ES157=\"\",\"\",'[2]MONE(M)CARD'!ES157)","v":"n.d."},{"$f":"IF('[2]MONE(M)CARD'!EV157=\"\",\"\",'[2]MONE(M)CARD'!EV157)","v":"n.d."},{"$f":"IF('[2]MONE(M)CARD'!EZ157=\"\",\"\",'[2]MONE(M)CARD'!EZ157)","v":"n.d."},{"$f":"IF('[2]MONE(M)CAPARD'!FC157=\"\",\"\",'[2]MONE(M)CAPARD'!FC157)","v":6681.1071674203831},{"$f":"IF('[2]MONE(M)CAPARD'!FG157=\"\",\"\",'[2]MONE(M)CAPARD'!FG157)","v":13858.773327845114},{"$f":"IF('[2]MONE(M)CAPARD'!FL157=\"\",\"\",'[2]MONE(M)CAPARD'!FL157)","v":5630.3683881064244},{"$f":"IF('[2]MONE(M)CAPARD'!FO157=\"\",\"\",'[2]MONE(M)CAPARD'!FO157)","v":"n.d."},{"$f":"IF('[2]MONE(M)CAPARD'!FR157=\"\",\"\",'[2]MONE(M)CAPARD'!FR157)","v":"n.d."},{"$f":"IF('[2]MONE(M)CAPARD'!FV157=\"\",\"\",'[2]MONE(M)CAPARD'!FV157)","v":"n.d."},{"$f":"IF('[2]MONE(M)CARD'!FV157=\"\",\"\",'[2]MONE(M)CARD'!FV157)","v":286.48544827451343},{"$f":"IF('[2]MONE(M)CARD'!GD157=\"\",\"\",'[2]MONE(M)CARD'!GD157)","v":11.117123854024493},{"$f":"IF('[2]MONE(M)CARD'!GE157=\"\",\"\",'[2]MONE(M)CARD'!GE157)","v":2566.5395674963734},"n.d.",{"$f":"IF('[9]II.2.Balance OSD-Activos'!J15=\"\",\"\",'[9]II.2.Balance OSD-Activos'!J15)","v":36.91229231483598},{"$f":"IF('[9]II.2.Balance OSD-Activos'!N15=\"\",\"\",'[9]II.2.Balance OSD-Activos'!N15)","v":6.3848281878188109},{"$f":"IF('[9]II.2.Balance OSD-Activos'!R15=\"\",\"\",'[9]II.2.Balance OSD-Activos'!R15)","v":10660.466831601629},{"$f":"IF('[9]II.2.Balance OSD-Activos'!S15=\"\",\"\",'[9]II.2.Balance OSD-Activos'!S15)","v":7574.5024903908143},10697.379123916464,18278.2664424951,"n.d.",null,"n.d.","n.d.","n.d.","n.d.","n.d.",{"$f":"IF('[2]MONE(M)CAPARD'!GS157=\"\",\"\",'[2]MONE(M)CAPARD'!GS157)","v":2526.7269591144695},{"$f":"IF('[2]MONE(M)CARD'!HA157=\"\",\"\",'[2]MONE(M)CAPARD'!HA157)","v":2566.5395674963734},{"$f":"IF('[2]MONE(M)CAPARD'!HB157=\"\",\"\",'[2]MONE(M)CAPARD'!HB157)","v":-39.812608381903829},"n.d.",{"$f":"IF('[10]II.2.Balance OSD-Activos'!J15=\"\",\"\",'[10]II.2.Balance OSD-Activos'!J15)","v":36.91229231483598},{"$f":"IF('[10]II.2.Balance OSD-Activos'!N15=\"\",\"\",'[10]II.2.Balance OSD-Activos'!N15)","v":6.3848281878188109},{"$f":"IF('[10]II.2.Balance OSD-Activos'!R15=\"\",\"\",'[10]II.2.Balance OSD-Activos'!R15)","v":10660.466831601629},{"$f":"IF('[10]II.2.Balance OSD-Activos'!S15=\"\",\"\",'[10]II.2.Balance OSD-Activos'!S15)","v":7574.5024903908143},10697.379123916464,18278.2664424951,"n.d.","n.d.","n.d.","n.d.","n.d.","n.d.","n.d.",{"$f":"IF('[2]MONE(M)CAPARD'!AS157=\"\",\"\",'[2]MONE(M)CAPARD'!AS157)","v":"n.d."},{"$f":"IF('[2]MONE(M)CAPARD'!AT157=\"\",\"\",'[2]MONE(M)CAPARD'!AT157)","v":"n.a."},{"$f":"IF('[2]MONE(M)CAPARD'!AU157=\"\",\"\",'[2]MONE(M)CAPARD'!AU157)","v":"n.d."},{"$f":"IF('[2]MONE(M)CAPARD'!AV157=\"\",\"\",'[2]MONE(M)CAPARD'!AV157)","v":"n.d."},{"$f":"IF('[2]MONE(M)CAPARD'!AW157=\"\",\"\",'[2]MONE(M)CAPARD'!AW157)","v":"n.a."},{"$f":"IF('[2]MONE(M)CAPARD'!AX157=\"\",\"\",'[2]MONE(M)CAPARD'!AX157)","v":"n.d."},{"$f":"IF('[2]MONE(M)CAPARD'!AY157=\"\",\"\",'[2]MONE(M)CAPARD'!AY157)","v":"n.a."},{"$f":"IF('[2]FISCAL(M)'!$K157=\"\",\"\",'[2]FISCAL(M)'!$K157)","v":-231.43086247671164},{"$f":"IF('[2]FISCAL(M)'!$L157=\"\",\"\",'[2]FISCAL(M)'!$L157)","v":-464.45235431971179},{"$f":"IF('[2]FISCAL(M)'!$AY157=\"\",\"\",'[2]FISCAL(M)'!$AY157)","v":"n.d."},{"$f":"IF('[2]FISCAL(M)'!$BI157=\"\",\"\",'[2]FISCAL(M)'!$BI157)","v":"n.d."},{"$f":"IF('[2]FISCAL(M)'!$BS157=\"\",\"\",'[2]FISCAL(M)'!$BS157)","v":"n.d."},{"$f":"IF('[2]FISCAL(M)'!$AZ157=\"\",\"\",'[2]FISCAL(M)'!$AZ157)","v":"n.d."},{"$f":"IF('[2]FISCAL(M)'!$BJ157=\"\",\"\",'[2]FISCAL(M)'!$BJ157)","v":"n.d."},{"$f":"IF('[2]FISCAL(M)'!$BT157=\"\",\"\",'[2]FISCAL(M)'!$BT157)","v":"n.d."},{"$f":"IF('[3]MONE(M)'!$AO157=\"\",\"\",'[3]MONE(M)'!$AO157)","v":1624659.0883578556},{"$f":"IF('[4]MONE(M)'!$AO157=\"\",\"\",'[4]MONE(M)'!$AO157)","v":5737.4057428571432},{"$f":"IF('[5]MONE(M)'!$AO157=\"\",\"\",'[5]MONE(M)'!$AO157)","v":35844.910562476973},{"$f":"+'[1]MONE(M)'!$AO157","v":42985.767731163287},{"$f":"IF('[6]MONE(M)'!$AO157=\"\",\"\",'[6]MONE(M)'!$AO157)","v":9786.5350100899996},{"$f":"IF('[7]MONE(M)'!$AO157=\"\",\"\",'[7]MONE(M)'!$AO157)","v":140390.03914000001},{"$f":"IF('[8]MONE(M)'!$AO157=\"\",\"\",'[8]MONE(M)'!$AO157)","v":0},"n.d.","n.d.","n.d.","n.d.","n.d.","n.d.","n.d.",{"$f":"IF('[2]FISCAL(M)'!$K157=\"\",\"\",'[2]FISCAL(M)'!$K157)","v":-231.43086247671164},{"$f":"+'[2]REAL(A)'!$AO$22","v":90015.237527740421},-0.25710187389706163,{"$f":"IF('[2]FISCAL(M)'!$L157=\"\",\"\",'[2]FISCAL(M)'!$L157)","v":-464.45235431971179},{"$f":"+'[2]REAL(A)'!$AP$22","v":"n.d."},"n.d.","n.d.",{"$f":"'[2]Gráfico REM'!BG151","v":7117.9962993215104},{"$f":"'[2]Gráfico REM'!BH151","v":26281.548735464028},{"$f":"'[2]Gráfico REM'!BI151","v":864.96060624905385},"n.d.","n.d.","n.d.","n.d.","n.d.","n.d.","n.d.","n.d.","n.d.","n.d.","n.d.","n.d."]
[2002,"mayo ","2002-mayo ",{"$f":"IF('[2]REAL IPC(M)'!$AL158=\"\",\"\",+'[2]REAL IPC(M)'!$AL158)","v":5.9300184162062619},{"$f":"IF('[2]REAL IPC(M)'!$BE158=\"\",\"\",+'[2]REAL IPC(M)'!$BE158)","v":8.9048378595780964},{"$f":"IF('[2]REAL IPC(M)'!$AM158=\"\",\"\",+'[2]REAL IPC(M)'!$AM158)","v":5.4096916299559483},{"$f":"IF('[2]REAL IPC(M)'!$BI158=\"\",\"\",+'[2]REAL IPC(M)'!$BI158)","v":8.0601187131332352},{"$f":"IF('[2]REAL IMAE(M)'!BJ158=\"\",\"\",'[2]REAL IMAE(M)'!BJ158)","v":"n.d."},{"$f":"IF('[2]REAL IMAE(M)'!BK158=\"\",\"\",'[2]REAL IMAE(M)'!BK158)","v":"n.d."},{"$f":"IF('[2]REAL IMAE(M)'!BN158=\"\",\"\",'[2]REAL IMAE(M)'!BN158)","v":"n.d."},{"$f":"IF('[2]REAL IMAE(M)'!BO158=\"\",\"\",'[2]REAL IMAE(M)'!BO158)","v":"n.d."},{"$f":"IF('[2]EXT RIN(M)'!$K158=\"\",\"\",'[2]EXT RIN(M)'!$K158)","v":7688.4760407747617},"",{"$f":"IF('[2]EXT RIN(M)'!$L158=\"\",\"\",'[2]EXT RIN(M)'!$L158)","v":7688.4760407747617},"",{"$f":"IF('[2]MONE(M)CARD'!EG158=\"\",\"\",'[2]MONE(M)CARD'!EG158)","v":6414.8849599252708},{"$f":"IF('[2]MONE(M)CARD'!EK158=\"\",\"\",'[2]MONE(M)CARD'!EK158)","v":13934.487945201035},{"$f":"IF('[2]MONE(M)CARD'!EP158=\"\",\"\",'[2]MONE(M)CARD'!EP158)","v":5721.0836620550726},{"$f":"IF('[2]MONE(M)CARD'!ES158=\"\",\"\",'[2]MONE(M)CARD'!ES158)","v":"n.d."},{"$f":"IF('[2]MONE(M)CARD'!EV158=\"\",\"\",'[2]MONE(M)CARD'!EV158)","v":"n.d."},{"$f":"IF('[2]MONE(M)CARD'!EZ158=\"\",\"\",'[2]MONE(M)CARD'!EZ158)","v":"n.d."},{"$f":"IF('[2]MONE(M)CAPARD'!FC158=\"\",\"\",'[2]MONE(M)CAPARD'!FC158)","v":6414.8849599252708},{"$f":"IF('[2]MONE(M)CAPARD'!FG158=\"\",\"\",'[2]MONE(M)CAPARD'!FG158)","v":13934.487945201035},{"$f":"IF('[2]MONE(M)CAPARD'!FL158=\"\",\"\",'[2]MONE(M)CAPARD'!FL158)","v":5721.0836620550726},{"$f":"IF('[2]MONE(M)CAPARD'!FO158=\"\",\"\",'[2]MONE(M)CAPARD'!FO158)","v":"n.d."},{"$f":"IF('[2]MONE(M)CAPARD'!FR158=\"\",\"\",'[2]MONE(M)CAPARD'!FR158)","v":"n.d."},{"$f":"IF('[2]MONE(M)CAPARD'!FV158=\"\",\"\",'[2]MONE(M)CAPARD'!FV158)","v":"n.d."},{"$f":"IF('[2]MONE(M)CARD'!FV158=\"\",\"\",'[2]MONE(M)CARD'!FV158)","v":290.06927367819969},{"$f":"IF('[2]MONE(M)CARD'!GD158=\"\",\"\",'[2]MONE(M)CARD'!GD158)","v":9.9408187356265394},{"$f":"IF('[2]MONE(M)CARD'!GE158=\"\",\"\",'[2]MONE(M)CARD'!GE158)","v":2491.1617862457447},"n.d.",{"$f":"IF('[9]II.2.Balance OSD-Activos'!J16=\"\",\"\",'[9]II.2.Balance OSD-Activos'!J16)","v":31.894450845743609},{"$f":"IF('[9]II.2.Balance OSD-Activos'!N16=\"\",\"\",'[9]II.2.Balance OSD-Activos'!N16)","v":7.9958367062067337},{"$f":"IF('[9]II.2.Balance OSD-Activos'!R16=\"\",\"\",'[9]II.2.Balance OSD-Activos'!R16)","v":10811.297250791544},{"$f":"IF('[9]II.2.Balance OSD-Activos'!S16=\"\",\"\",'[9]II.2.Balance OSD-Activos'!S16)","v":7570.1565375647006},10843.191701637288,18421.344075908193,"n.d.",null,"n.d.","n.d.","n.d.","n.d.","n.d.",{"$f":"IF('[2]MONE(M)CAPARD'!GS158=\"\",\"\",'[2]MONE(M)CAPARD'!GS158)","v":2378.0717762648515},{"$f":"IF('[2]MONE(M)CARD'!HA158=\"\",\"\",'[2]MONE(M)CAPARD'!HA158)","v":2491.1617862457447},{"$f":"IF('[2]MONE(M)CAPARD'!HB158=\"\",\"\",'[2]MONE(M)CAPARD'!HB158)","v":-113.09000998089323},"n.d.",{"$f":"IF('[10]II.2.Balance OSD-Activos'!J16=\"\",\"\",'[10]II.2.Balance OSD-Activos'!J16)","v":31.894450845743609},{"$f":"IF('[10]II.2.Balance OSD-Activos'!N16=\"\",\"\",'[10]II.2.Balance OSD-Activos'!N16)","v":7.9958367062067337},{"$f":"IF('[10]II.2.Balance OSD-Activos'!R16=\"\",\"\",'[10]II.2.Balance OSD-Activos'!R16)","v":10811.297250791544},{"$f":"IF('[10]II.2.Balance OSD-Activos'!S16=\"\",\"\",'[10]II.2.Balance OSD-Activos'!S16)","v":7570.1565375647006},10843.191701637288,18421.344075908193,"n.d.","n.d.","n.d.","n.d.","n.d.","n.d.","n.d.",{"$f":"IF('[2]MONE(M)CAPARD'!AS158=\"\",\"\",'[2]MONE(M)CAPARD'!AS158)","v":"n.d."},{"$f":"IF('[2]MONE(M)CAPARD'!AT158=\"\",\"\",'[2]MONE(M)CAPARD'!AT158)","v":"n.a."},{"$f":"IF('[2]MONE(M)CAPARD'!AU158=\"\",\"\",'[2]MONE(M)CAPARD'!AU158)","v":"n.d."},{"$f":"IF('[2]MONE(M)CAPARD'!AV158=\"\",\"\",'[2]MONE(M)CAPARD'!AV158)","v":"n.d."},{"$f":"IF('[2]MONE(M)CAPARD'!AW158=\"\",\"\",'[2]MONE(M)CAPARD'!AW158)","v":"n.a."},{"$f":"IF('[2]MONE(M)CAPARD'!AX158=\"\",\"\",'[2]MONE(M)CAPARD'!AX158)","v":"n.d."},{"$f":"IF('[2]MONE(M)CAPARD'!AY158=\"\",\"\",'[2]MONE(M)CAPARD'!AY158)","v":"n.a."},{"$f":"IF('[2]FISCAL(M)'!$K158=\"\",\"\",'[2]FISCAL(M)'!$K158)","v":-262.971412665331},{"$f":"IF('[2]FISCAL(M)'!$L158=\"\",\"\",'[2]FISCAL(M)'!$L158)","v":-554.64970911233081},{"$f":"IF('[2]FISCAL(M)'!$AY158=\"\",\"\",'[2]FISCAL(M)'!$AY158)","v":"n.d."},{"$f":"IF('[2]FISCAL(M)'!$BI158=\"\",\"\",'[2]FISCAL(M)'!$BI158)","v":"n.d."},{"$f":"IF('[2]FISCAL(M)'!$BS158=\"\",\"\",'[2]FISCAL(M)'!$BS158)","v":"n.d."},{"$f":"IF('[2]FISCAL(M)'!$AZ158=\"\",\"\",'[2]FISCAL(M)'!$AZ158)","v":"n.d."},{"$f":"IF('[2]FISCAL(M)'!$BJ158=\"\",\"\",'[2]FISCAL(M)'!$BJ158)","v":"n.d."},{"$f":"IF('[2]FISCAL(M)'!$BT158=\"\",\"\",'[2]FISCAL(M)'!$BT158)","v":"n.d."},{"$f":"IF('[3]MONE(M)'!$AO158=\"\",\"\",'[3]MONE(M)'!$AO158)","v":1654548.1975979139},{"$f":"IF('[4]MONE(M)'!$AO158=\"\",\"\",'[4]MONE(M)'!$AO158)","v":5752.3697428571431},{"$f":"IF('[5]MONE(M)'!$AO158=\"\",\"\",'[5]MONE(M)'!$AO158)","v":35836.640044445288},{"$f":"+'[1]MONE(M)'!$AO158","v":42658.406941517125},{"$f":"IF('[6]MONE(M)'!$AO158=\"\",\"\",'[6]MONE(M)'!$AO158)","v":10037.0502098},{"$f":"IF('[7]MONE(M)'!$AO158=\"\",\"\",'[7]MONE(M)'!$AO158)","v":141147.08231700002},{"$f":"IF('[8]MONE(M)'!$AO158=\"\",\"\",'[8]MONE(M)'!$AO158)","v":0},"n.d.","n.d.","n.d.","n.d.","n.d.","n.d.","n.d.",{"$f":"IF('[2]FISCAL(M)'!$K158=\"\",\"\",'[2]FISCAL(M)'!$K158)","v":-262.971412665331},{"$f":"+'[2]REAL(A)'!$AO$22","v":90015.237527740421},-0.2921409973331347,{"$f":"IF('[2]FISCAL(M)'!$L158=\"\",\"\",'[2]FISCAL(M)'!$L158)","v":-554.64970911233081},{"$f":"+'[2]REAL(A)'!$AP$22","v":"n.d."},"n.d.","n.d.",{"$f":"'[2]Gráfico REM'!BG152","v":6831.9531436227853},{"$f":"'[2]Gráfico REM'!BH152","v":26327.183434161783},{"$f":"'[2]Gráfico REM'!BI152","v":940.31645552878763},"n.d.","n.d.","n.d.","n.d.","n.d.","n.d.","n.d.","n.d.","n.d.","n.d.","n.d.","n.d."]
[2002,"junio ","2002-junio ",{"$f":"IF('[2]REAL IPC(M)'!$AL159=\"\",\"\",+'[2]REAL IPC(M)'!$AL159)","v":6.1857562408223377},{"$f":"IF('[2]REAL IPC(M)'!$BE159=\"\",\"\",+'[2]REAL IPC(M)'!$BE159)","v":9.0878262927196687},{"$f":"IF('[2]REAL IPC(M)'!$AM159=\"\",\"\",+'[2]REAL IPC(M)'!$AM159)","v":5.6942003514938611},{"$f":"IF('[2]REAL IPC(M)'!$BI159=\"\",\"\",+'[2]REAL IPC(M)'!$BI159)","v":8.2253327998464734},{"$f":"IF('[2]REAL IMAE(M)'!BJ159=\"\",\"\",'[2]REAL IMAE(M)'!BJ159)","v":"n.d."},{"$f":"IF('[2]REAL IMAE(M)'!BK159=\"\",\"\",'[2]REAL IMAE(M)'!BK159)","v":"n.d."},{"$f":"IF('[2]REAL IMAE(M)'!BN159=\"\",\"\",'[2]REAL IMAE(M)'!BN159)","v":"n.d."},{"$f":"IF('[2]REAL IMAE(M)'!BO159=\"\",\"\",'[2]REAL IMAE(M)'!BO159)","v":"n.d."},{"$f":"IF('[2]EXT RIN(M)'!$K159=\"\",\"\",'[2]EXT RIN(M)'!$K159)","v":7693.1354164281493},"",{"$f":"IF('[2]EXT RIN(M)'!$L159=\"\",\"\",'[2]EXT RIN(M)'!$L159)","v":7693.1354164281493},"",{"$f":"IF('[2]MONE(M)CARD'!EG159=\"\",\"\",'[2]MONE(M)CARD'!EG159)","v":6262.8443640483838},{"$f":"IF('[2]MONE(M)CARD'!EK159=\"\",\"\",'[2]MONE(M)CARD'!EK159)","v":14112.805518240601},{"$f":"IF('[2]MONE(M)CARD'!EP159=\"\",\"\",'[2]MONE(M)CARD'!EP159)","v":5718.6395742677269},{"$f":"IF('[2]MONE(M)CARD'!ES159=\"\",\"\",'[2]MONE(M)CARD'!ES159)","v":"n.d."},{"$f":"IF('[2]MONE(M)CARD'!EV159=\"\",\"\",'[2]MONE(M)CARD'!EV159)","v":"n.d."},{"$f":"IF('[2]MONE(M)CARD'!EZ159=\"\",\"\",'[2]MONE(M)CARD'!EZ159)","v":"n.d."},{"$f":"IF('[2]MONE(M)CAPARD'!FC159=\"\",\"\",'[2]MONE(M)CAPARD'!FC159)","v":6262.8443640483838},{"$f":"IF('[2]MONE(M)CAPARD'!FG159=\"\",\"\",'[2]MONE(M)CAPARD'!FG159)","v":14112.805518240601},{"$f":"IF('[2]MONE(M)CAPARD'!FL159=\"\",\"\",'[2]MONE(M)CAPARD'!FL159)","v":5718.6395742677269},{"$f":"IF('[2]MONE(M)CAPARD'!FO159=\"\",\"\",'[2]MONE(M)CAPARD'!FO159)","v":"n.d."},{"$f":"IF('[2]MONE(M)CAPARD'!FR159=\"\",\"\",'[2]MONE(M)CAPARD'!FR159)","v":"n.d."},{"$f":"IF('[2]MONE(M)CAPARD'!FV159=\"\",\"\",'[2]MONE(M)CAPARD'!FV159)","v":"n.d."},{"$f":"IF('[2]MONE(M)CARD'!FV159=\"\",\"\",'[2]MONE(M)CARD'!FV159)","v":313.98383963815826},{"$f":"IF('[2]MONE(M)CARD'!GD159=\"\",\"\",'[2]MONE(M)CARD'!GD159)","v":8.7963355110448447},{"$f":"IF('[2]MONE(M)CARD'!GE159=\"\",\"\",'[2]MONE(M)CARD'!GE159)","v":2422.3516633202908},"n.d.",{"$f":"IF('[9]II.2.Balance OSD-Activos'!J17=\"\",\"\",'[9]II.2.Balance OSD-Activos'!J17)","v":26.291206140878749},{"$f":"IF('[9]II.2.Balance OSD-Activos'!N17=\"\",\"\",'[9]II.2.Balance OSD-Activos'!N17)","v":0.55576563162079007},{"$f":"IF('[9]II.2.Balance OSD-Activos'!R17=\"\",\"\",'[9]II.2.Balance OSD-Activos'!R17)","v":10983.11353978741},{"$f":"IF('[9]II.2.Balance OSD-Activos'!S17=\"\",\"\",'[9]II.2.Balance OSD-Activos'!S17)","v":7677.8016115185528},11009.404745928288,18687.762123078464,"n.d.",null,"n.d.","n.d.","n.d.","n.d.","n.d.",{"$f":"IF('[2]MONE(M)CAPARD'!GS159=\"\",\"\",'[2]MONE(M)CAPARD'!GS159)","v":2476.6210460547186},{"$f":"IF('[2]MONE(M)CARD'!HA159=\"\",\"\",'[2]MONE(M)CAPARD'!HA159)","v":2422.3516633202908},{"$f":"IF('[2]MONE(M)CAPARD'!HB159=\"\",\"\",'[2]MONE(M)CAPARD'!HB159)","v":54.269382734427836},"n.d.",{"$f":"IF('[10]II.2.Balance OSD-Activos'!J17=\"\",\"\",'[10]II.2.Balance OSD-Activos'!J17)","v":26.291206140878749},{"$f":"IF('[10]II.2.Balance OSD-Activos'!N17=\"\",\"\",'[10]II.2.Balance OSD-Activos'!N17)","v":0.55576563162079007},{"$f":"IF('[10]II.2.Balance OSD-Activos'!R17=\"\",\"\",'[10]II.2.Balance OSD-Activos'!R17)","v":10983.11353978741},{"$f":"IF('[10]II.2.Balance OSD-Activos'!S17=\"\",\"\",'[10]II.2.Balance OSD-Activos'!S17)","v":7677.8016115185528},11009.404745928288,18687.762123078464,"n.d.","n.d.","n.d.","n.d.","n.d.","n.d.","n.d.",{"$f":"IF('[2]MONE(M)CAPARD'!AS159=\"\",\"\",'[2]MONE(M)CAPARD'!AS159)","v":"n.d."},{"$f":"IF('[2]MONE(M)CAPARD'!AT159=\"\",\"\",'[2]MONE(M)CAPARD'!AT159)","v":"n.a."},{"$f":"IF('[2]MONE(M)CAPARD'!AU159=\"\",\"\",'[2]MONE(M)CAPARD'!AU159)","v":"n.d."},{"$f":"IF('[2]MONE(M)CAPARD'!AV159=\"\",\"\",'[2]MONE(M)CAPARD'!AV159)","v":"n.d."},{"$f":"IF('[2]MONE(M)CAPARD'!AW159=\"\",\"\",'[2]MONE(M)CAPARD'!AW159)","v":"n.a."},{"$f":"IF('[2]MONE(M)CAPARD'!AX159=\"\",\"\",'[2]MONE(M)CAPARD'!AX159)","v":"n.d."},{"$f":"IF('[2]MONE(M)CAPARD'!AY159=\"\",\"\",'[2]MONE(M)CAPARD'!AY159)","v":"n.a."},{"$f":"IF('[2]FISCAL(M)'!$K159=\"\",\"\",'[2]FISCAL(M)'!$K159)","v":-502.91161332883735},{"$f":"IF('[2]FISCAL(M)'!$L159=\"\",\"\",'[2]FISCAL(M)'!$L159)","v":-715.02644628083726},{"$f":"IF('[2]FISCAL(M)'!$AY159=\"\",\"\",'[2]FISCAL(M)'!$AY159)","v":"n.d."},{"$f":"IF('[2]FISCAL(M)'!$BI159=\"\",\"\",'[2]FISCAL(M)'!$BI159)","v":"n.d."},{"$f":"IF('[2]FISCAL(M)'!$BS159=\"\",\"\",'[2]FISCAL(M)'!$BS159)","v":"n.d."},{"$f":"IF('[2]FISCAL(M)'!$AZ159=\"\",\"\",'[2]FISCAL(M)'!$AZ159)","v":"n.d."},{"$f":"IF('[2]FISCAL(M)'!$BJ159=\"\",\"\",'[2]FISCAL(M)'!$BJ159)","v":"n.d."},{"$f":"IF('[2]FISCAL(M)'!$BT159=\"\",\"\",'[2]FISCAL(M)'!$BT159)","v":"n.d."},{"$f":"IF('[3]MONE(M)'!$AO159=\"\",\"\",'[3]MONE(M)'!$AO159)","v":1699922.5302329597},{"$f":"IF('[4]MONE(M)'!$AO159=\"\",\"\",'[4]MONE(M)'!$AO159)","v":5783.6187428571429},{"$f":"IF('[5]MONE(M)'!$AO159=\"\",\"\",'[5]MONE(M)'!$AO159)","v":36447.315969735559},{"$f":"+'[1]MONE(M)'!$AO159","v":42336.07979756844},{"$f":"IF('[6]MONE(M)'!$AO159=\"\",\"\",'[6]MONE(M)'!$AO159)","v":9958.3758454300005},{"$f":"IF('[7]MONE(M)'!$AO159=\"\",\"\",'[7]MONE(M)'!$AO159)","v":146163.84596999999},{"$f":"IF('[8]MONE(M)'!$AO159=\"\",\"\",'[8]MONE(M)'!$AO159)","v":0},"n.d.","n.d.","n.d.","n.d.","n.d.","n.d.","n.d.",{"$f":"IF('[2]FISCAL(M)'!$K159=\"\",\"\",'[2]FISCAL(M)'!$K159)","v":-502.91161332883735},{"$f":"+'[2]REAL(A)'!$AO$22","v":90015.237527740421},-0.5586960909522154,{"$f":"IF('[2]FISCAL(M)'!$L159=\"\",\"\",'[2]FISCAL(M)'!$L159)","v":-715.02644628083726},{"$f":"+'[2]REAL(A)'!$AP$22","v":"n.d."},"n.d.","n.d.",{"$f":"'[2]Gráfico REM'!BG153","v":6966.9896721287078},{"$f":"'[2]Gráfico REM'!BH153","v":26726.342443288126},{"$f":"'[2]Gráfico REM'!BI153","v":935.28727544792184},"n.d.","n.d.","n.d.","n.d.","n.d.","n.d.","n.d.","n.d.","n.d.","n.d.","n.d.","n.d."]
[2002,"julio","2002-julio",{"$f":"IF('[2]REAL IPC(M)'!$AL160=\"\",\"\",+'[2]REAL IPC(M)'!$AL160)","v":6.5594737803764014},{"$f":"IF('[2]REAL IPC(M)'!$BE160=\"\",\"\",+'[2]REAL IPC(M)'!$BE160)","v":9.2787856703921747},{"$f":"IF('[2]REAL IPC(M)'!$AM160=\"\",\"\",+'[2]REAL IPC(M)'!$AM160)","v":6.0378018900945074},{"$f":"IF('[2]REAL IPC(M)'!$BI160=\"\",\"\",+'[2]REAL IPC(M)'!$BI160)","v":8.3988165705990205},{"$f":"IF('[2]REAL IMAE(M)'!BJ160=\"\",\"\",'[2]REAL IMAE(M)'!BJ160)","v":"n.d."},{"$f":"IF('[2]REAL IMAE(M)'!BK160=\"\",\"\",'[2]REAL IMAE(M)'!BK160)","v":"n.d."},{"$f":"IF('[2]REAL IMAE(M)'!BN160=\"\",\"\",'[2]REAL IMAE(M)'!BN160)","v":"n.d."},{"$f":"IF('[2]REAL IMAE(M)'!BO160=\"\",\"\",'[2]REAL IMAE(M)'!BO160)","v":"n.d."},{"$f":"IF('[2]EXT RIN(M)'!$K160=\"\",\"\",'[2]EXT RIN(M)'!$K160)","v":7554.0963995284937},"",{"$f":"IF('[2]EXT RIN(M)'!$L160=\"\",\"\",'[2]EXT RIN(M)'!$L160)","v":7554.0963995284937},"",{"$f":"IF('[2]MONE(M)CARD'!EG160=\"\",\"\",'[2]MONE(M)CARD'!EG160)","v":6337.5361146871674},{"$f":"IF('[2]MONE(M)CARD'!EK160=\"\",\"\",'[2]MONE(M)CARD'!EK160)","v":14060.216167078766},{"$f":"IF('[2]MONE(M)CARD'!EP160=\"\",\"\",'[2]MONE(M)CARD'!EP160)","v":5730.5185324503509},{"$f":"IF('[2]MONE(M)CARD'!ES160=\"\",\"\",'[2]MONE(M)CARD'!ES160)","v":"n.d."},{"$f":"IF('[2]MONE(M)CARD'!EV160=\"\",\"\",'[2]MONE(M)CARD'!EV160)","v":"n.d."},{"$f":"IF('[2]MONE(M)CARD'!EZ160=\"\",\"\",'[2]MONE(M)CARD'!EZ160)","v":"n.d."},{"$f":"IF('[2]MONE(M)CAPARD'!FC160=\"\",\"\",'[2]MONE(M)CAPARD'!FC160)","v":6337.5361146871674},{"$f":"IF('[2]MONE(M)CAPARD'!FG160=\"\",\"\",'[2]MONE(M)CAPARD'!FG160)","v":14060.216167078766},{"$f":"IF('[2]MONE(M)CAPARD'!FL160=\"\",\"\",'[2]MONE(M)CAPARD'!FL160)","v":5730.5185324503509},{"$f":"IF('[2]MONE(M)CAPARD'!FO160=\"\",\"\",'[2]MONE(M)CAPARD'!FO160)","v":"n.d."},{"$f":"IF('[2]MONE(M)CAPARD'!FR160=\"\",\"\",'[2]MONE(M)CAPARD'!FR160)","v":"n.d."},{"$f":"IF('[2]MONE(M)CAPARD'!FV160=\"\",\"\",'[2]MONE(M)CAPARD'!FV160)","v":"n.d."},{"$f":"IF('[2]MONE(M)CARD'!FV160=\"\",\"\",'[2]MONE(M)CARD'!FV160)","v":315.97185492449432},{"$f":"IF('[2]MONE(M)CARD'!GD160=\"\",\"\",'[2]MONE(M)CARD'!GD160)","v":7.43593727421983},{"$f":"IF('[2]MONE(M)CARD'!GE160=\"\",\"\",'[2]MONE(M)CARD'!GE160)","v":2420.5167735006908},"n.d.",{"$f":"IF('[9]II.2.Balance OSD-Activos'!J18=\"\",\"\",'[9]II.2.Balance OSD-Activos'!J18)","v":37.272178452413371},{"$f":"IF('[9]II.2.Balance OSD-Activos'!N18=\"\",\"\",'[9]II.2.Balance OSD-Activos'!N18)","v":2.2622932325118992},{"$f":"IF('[9]II.2.Balance OSD-Activos'!R18=\"\",\"\",'[9]II.2.Balance OSD-Activos'!R18)","v":10804.637115009649},{"$f":"IF('[9]II.2.Balance OSD-Activos'!S18=\"\",\"\",'[9]II.2.Balance OSD-Activos'!S18)","v":7838.1121836857446},10841.909293462062,18682.28377038032,"n.d.",null,"n.d.","n.d.","n.d.","n.d.","n.d.",{"$f":"IF('[2]MONE(M)CAPARD'!GS160=\"\",\"\",'[2]MONE(M)CAPARD'!GS160)","v":2489.433003595932},{"$f":"IF('[2]MONE(M)CARD'!HA160=\"\",\"\",'[2]MONE(M)CAPARD'!HA160)","v":2420.5167735006908},{"$f":"IF('[2]MONE(M)CAPARD'!HB160=\"\",\"\",'[2]MONE(M)CAPARD'!HB160)","v":68.91623009524119},"n.d.",{"$f":"IF('[10]II.2.Balance OSD-Activos'!J18=\"\",\"\",'[10]II.2.Balance OSD-Activos'!J18)","v":37.272178452413371},{"$f":"IF('[10]II.2.Balance OSD-Activos'!N18=\"\",\"\",'[10]II.2.Balance OSD-Activos'!N18)","v":2.2622932325118992},{"$f":"IF('[10]II.2.Balance OSD-Activos'!R18=\"\",\"\",'[10]II.2.Balance OSD-Activos'!R18)","v":10804.637115009649},{"$f":"IF('[10]II.2.Balance OSD-Activos'!S18=\"\",\"\",'[10]II.2.Balance OSD-Activos'!S18)","v":7838.1121836857446},10841.909293462062,18682.28377038032,"n.d.","n.d.","n.d.","n.d.","n.d.","n.d.","n.d.",{"$f":"IF('[2]MONE(M)CAPARD'!AS160=\"\",\"\",'[2]MONE(M)CAPARD'!AS160)","v":"n.d."},{"$f":"IF('[2]MONE(M)CAPARD'!AT160=\"\",\"\",'[2]MONE(M)CAPARD'!AT160)","v":"n.a."},{"$f":"IF('[2]MONE(M)CAPARD'!AU160=\"\",\"\",'[2]MONE(M)CAPARD'!AU160)","v":"n.d."},{"$f":"IF('[2]MONE(M)CAPARD'!AV160=\"\",\"\",'[2]MONE(M)CAPARD'!AV160)","v":"n.d."},{"$f":"IF('[2]MONE(M)CAPARD'!AW160=\"\",\"\",'[2]MONE(M)CAPARD'!AW160)","v":"n.a."},{"$f":"IF('[2]MONE(M)CAPARD'!AX160=\"\",\"\",'[2]MONE(M)CAPARD'!AX160)","v":"n.d."},{"$f":"IF('[2]MONE(M)CAPARD'!AY160=\"\",\"\",'[2]MONE(M)CAPARD'!AY160)","v":"n.a."},{"$f":"IF('[2]FISCAL(M)'!$K160=\"\",\"\",'[2]FISCAL(M)'!$K160)","v":-654.36573121956781},{"$f":"IF('[2]FISCAL(M)'!$L160=\"\",\"\",'[2]FISCAL(M)'!$L160)","v":-800.27436618656793},{"$f":"IF('[2]FISCAL(M)'!$AY160=\"\",\"\",'[2]FISCAL(M)'!$AY160)","v":"n.d."},{"$f":"IF('[2]FISCAL(M)'!$BI160=\"\",\"\",'[2]FISCAL(M)'!$BI160)","v":"n.d."},{"$f":"IF('[2]FISCAL(M)'!$BS160=\"\",\"\",'[2]FISCAL(M)'!$BS160)","v":"n.d."},{"$f":"IF('[2]FISCAL(M)'!$AZ160=\"\",\"\",'[2]FISCAL(M)'!$AZ160)","v":"n.d."},{"$f":"IF('[2]FISCAL(M)'!$BJ160=\"\",\"\",'[2]FISCAL(M)'!$BJ160)","v":"n.d."},{"$f":"IF('[2]FISCAL(M)'!$BT160=\"\",\"\",'[2]FISCAL(M)'!$BT160)","v":"n.d."},{"$f":"IF('[3]MONE(M)'!$AO160=\"\",\"\",'[3]MONE(M)'!$AO160)","v":1716024.834583095},{"$f":"IF('[4]MONE(M)'!$AO160=\"\",\"\",'[4]MONE(M)'!$AO160)","v":5785.3647428571421},{"$f":"IF('[5]MONE(M)'!$AO160=\"\",\"\",'[5]MONE(M)'!$AO160)","v":36453.343606806462},{"$f":"+'[1]MONE(M)'!$AO160","v":42822.981925366868},{"$f":"IF('[6]MONE(M)'!$AO160=\"\",\"\",'[6]MONE(M)'!$AO160)","v":10127.78694482},{"$f":"IF('[7]MONE(M)'!$AO160=\"\",\"\",'[7]MONE(M)'!$AO160)","v":145255.14780400001},{"$f":"IF('[8]MONE(M)'!$AO160=\"\",\"\",'[8]MONE(M)'!$AO160)","v":0},"n.d.","n.d.","n.d.","n.d.","n.d.","n.d.","n.d.",{"$f":"IF('[2]FISCAL(M)'!$K160=\"\",\"\",'[2]FISCAL(M)'!$K160)","v":-654.36573121956781},{"$f":"+'[2]REAL(A)'!$AO$22","v":90015.237527740421},-0.72694995779787708,{"$f":"IF('[2]FISCAL(M)'!$L160=\"\",\"\",'[2]FISCAL(M)'!$L160)","v":-800.27436618656793},{"$f":"+'[2]REAL(A)'!$AP$22","v":"n.d."},"n.d.","n.d.",{"$f":"'[2]Gráfico REM'!BG154","v":7187.3155139648352},{"$f":"'[2]Gráfico REM'!BH154","v":26776.949215050772},{"$f":"'[2]Gráfico REM'!BI154","v":927.73428689849777},"n.d.","n.d.","n.d.","n.d.","n.d.","n.d.","n.d.","n.d.","n.d.","n.d.","n.d.","n.d."]
[2002,"agosto","2002-agosto",{"$f":"IF('[2]REAL IPC(M)'!$AL161=\"\",\"\",+'[2]REAL IPC(M)'!$AL161)","v":6.0995475113122088},{"$f":"IF('[2]REAL IPC(M)'!$BE161=\"\",\"\",+'[2]REAL IPC(M)'!$BE161)","v":9.4769901978301263},{"$f":"IF('[2]REAL IPC(M)'!$AM161=\"\",\"\",+'[2]REAL IPC(M)'!$AM161)","v":5.6557945870922888},{"$f":"IF('[2]REAL IPC(M)'!$BI161=\"\",\"\",+'[2]REAL IPC(M)'!$BI161)","v":8.5799837921167956},{"$f":"IF('[2]REAL IMAE(M)'!BJ161=\"\",\"\",'[2]REAL IMAE(M)'!BJ161)","v":"n.d."},{"$f":"IF('[2]REAL IMAE(M)'!BK161=\"\",\"\",'[2]REAL IMAE(M)'!BK161)","v":"n.d."},{"$f":"IF('[2]REAL IMAE(M)'!BN161=\"\",\"\",'[2]REAL IMAE(M)'!BN161)","v":"n.d."},{"$f":"IF('[2]REAL IMAE(M)'!BO161=\"\",\"\",'[2]REAL IMAE(M)'!BO161)","v":"n.d."},{"$f":"IF('[2]EXT RIN(M)'!$K161=\"\",\"\",'[2]EXT RIN(M)'!$K161)","v":7328.4886992093507},"",{"$f":"IF('[2]EXT RIN(M)'!$L161=\"\",\"\",'[2]EXT RIN(M)'!$L161)","v":7328.4886992093507},"",{"$f":"IF('[2]MONE(M)CARD'!EG161=\"\",\"\",'[2]MONE(M)CARD'!EG161)","v":6307.549984858123},{"$f":"IF('[2]MONE(M)CARD'!EK161=\"\",\"\",'[2]MONE(M)CARD'!EK161)","v":13926.924967581457},{"$f":"IF('[2]MONE(M)CARD'!EP161=\"\",\"\",'[2]MONE(M)CARD'!EP161)","v":5778.871897570938},{"$f":"IF('[2]MONE(M)CARD'!ES161=\"\",\"\",'[2]MONE(M)CARD'!ES161)","v":"n.d."},{"$f":"IF('[2]MONE(M)CARD'!EV161=\"\",\"\",'[2]MONE(M)CARD'!EV161)","v":"n.d."},{"$f":"IF('[2]MONE(M)CARD'!EZ161=\"\",\"\",'[2]MONE(M)CARD'!EZ161)","v":"n.d."},{"$f":"IF('[2]MONE(M)CAPARD'!FC161=\"\",\"\",'[2]MONE(M)CAPARD'!FC161)","v":6307.549984858123},{"$f":"IF('[2]MONE(M)CAPARD'!FG161=\"\",\"\",'[2]MONE(M)CAPARD'!FG161)","v":13926.924967581457},{"$f":"IF('[2]MONE(M)CAPARD'!FL161=\"\",\"\",'[2]MONE(M)CAPARD'!FL161)","v":5778.871897570938},{"$f":"IF('[2]MONE(M)CAPARD'!FO161=\"\",\"\",'[2]MONE(M)CAPARD'!FO161)","v":"n.d."},{"$f":"IF('[2]MONE(M)CAPARD'!FR161=\"\",\"\",'[2]MONE(M)CAPARD'!FR161)","v":"n.d."},{"$f":"IF('[2]MONE(M)CAPARD'!FV161=\"\",\"\",'[2]MONE(M)CAPARD'!FV161)","v":"n.d."},{"$f":"IF('[2]MONE(M)CARD'!FV161=\"\",\"\",'[2]MONE(M)CARD'!FV161)","v":299.18842806757937},{"$f":"IF('[2]MONE(M)CARD'!GD161=\"\",\"\",'[2]MONE(M)CARD'!GD161)","v":6.0894717709408352},{"$f":"IF('[2]MONE(M)CARD'!GE161=\"\",\"\",'[2]MONE(M)CARD'!GE161)","v":2513.0465306101864},"n.d.",{"$f":"IF('[9]II.2.Balance OSD-Activos'!J19=\"\",\"\",'[9]II.2.Balance OSD-Activos'!J19)","v":38.070889604730752},{"$f":"IF('[9]II.2.Balance OSD-Activos'!N19=\"\",\"\",'[9]II.2.Balance OSD-Activos'!N19)","v":2.7074737783496641},{"$f":"IF('[9]II.2.Balance OSD-Activos'!R19=\"\",\"\",'[9]II.2.Balance OSD-Activos'!R19)","v":10819.913055980838},{"$f":"IF('[9]II.2.Balance OSD-Activos'!S19=\"\",\"\",'[9]II.2.Balance OSD-Activos'!S19)","v":7917.2416240542279},10857.983945585569,18777.933043418147,"n.d.",null,"n.d.","n.d.","n.d.","n.d.","n.d.",{"$f":"IF('[2]MONE(M)CAPARD'!GS161=\"\",\"\",'[2]MONE(M)CAPARD'!GS161)","v":2378.9159302498088},{"$f":"IF('[2]MONE(M)CARD'!HA161=\"\",\"\",'[2]MONE(M)CAPARD'!HA161)","v":2513.0465306101864},{"$f":"IF('[2]MONE(M)CAPARD'!HB161=\"\",\"\",'[2]MONE(M)CAPARD'!HB161)","v":-134.13060036037768},"n.d.",{"$f":"IF('[10]II.2.Balance OSD-Activos'!J19=\"\",\"\",'[10]II.2.Balance OSD-Activos'!J19)","v":38.070889604730752},{"$f":"IF('[10]II.2.Balance OSD-Activos'!N19=\"\",\"\",'[10]II.2.Balance OSD-Activos'!N19)","v":2.7074737783496641},{"$f":"IF('[10]II.2.Balance OSD-Activos'!R19=\"\",\"\",'[10]II.2.Balance OSD-Activos'!R19)","v":10819.913055980838},{"$f":"IF('[10]II.2.Balance OSD-Activos'!S19=\"\",\"\",'[10]II.2.Balance OSD-Activos'!S19)","v":7917.2416240542279},10857.983945585569,18777.933043418147,"n.d.","n.d.","n.d.","n.d.","n.d.","n.d.","n.d.",{"$f":"IF('[2]MONE(M)CAPARD'!AS161=\"\",\"\",'[2]MONE(M)CAPARD'!AS161)","v":"n.d."},{"$f":"IF('[2]MONE(M)CAPARD'!AT161=\"\",\"\",'[2]MONE(M)CAPARD'!AT161)","v":"n.a."},{"$f":"IF('[2]MONE(M)CAPARD'!AU161=\"\",\"\",'[2]MONE(M)CAPARD'!AU161)","v":"n.d."},{"$f":"IF('[2]MONE(M)CAPARD'!AV161=\"\",\"\",'[2]MONE(M)CAPARD'!AV161)","v":"n.d."},{"$f":"IF('[2]MONE(M)CAPARD'!AW161=\"\",\"\",'[2]MONE(M)CAPARD'!AW161)","v":"n.a."},{"$f":"IF('[2]MONE(M)CAPARD'!AX161=\"\",\"\",'[2]MONE(M)CAPARD'!AX161)","v":"n.d."},{"$f":"IF('[2]MONE(M)CAPARD'!AY161=\"\",\"\",'[2]MONE(M)CAPARD'!AY161)","v":"n.a."},{"$f":"IF('[2]FISCAL(M)'!$K161=\"\",\"\",'[2]FISCAL(M)'!$K161)","v":-908.82414488682809},{"$f":"IF('[2]FISCAL(M)'!$L161=\"\",\"\",'[2]FISCAL(M)'!$L161)","v":-1139.2381496838279},{"$f":"IF('[2]FISCAL(M)'!$AY161=\"\",\"\",'[2]FISCAL(M)'!$AY161)","v":"n.d."},{"$f":"IF('[2]FISCAL(M)'!$BI161=\"\",\"\",'[2]FISCAL(M)'!$BI161)","v":"n.d."},{"$f":"IF('[2]FISCAL(M)'!$BS161=\"\",\"\",'[2]FISCAL(M)'!$BS161)","v":"n.d."},{"$f":"IF('[2]FISCAL(M)'!$AZ161=\"\",\"\",'[2]FISCAL(M)'!$AZ161)","v":"n.d."},{"$f":"IF('[2]FISCAL(M)'!$BJ161=\"\",\"\",'[2]FISCAL(M)'!$BJ161)","v":"n.d."},{"$f":"IF('[2]FISCAL(M)'!$BT161=\"\",\"\",'[2]FISCAL(M)'!$BT161)","v":"n.d."},{"$f":"IF('[3]MONE(M)'!$AO161=\"\",\"\",'[3]MONE(M)'!$AO161)","v":1738334.0258143651},{"$f":"IF('[4]MONE(M)'!$AO161=\"\",\"\",'[4]MONE(M)'!$AO161)","v":5792.9357428571429},{"$f":"IF('[5]MONE(M)'!$AO161=\"\",\"\",'[5]MONE(M)'!$AO161)","v":36549.315806997824},{"$f":"+'[1]MONE(M)'!$AO161","v":43194.911477279595},{"$f":"IF('[6]MONE(M)'!$AO161=\"\",\"\",'[6]MONE(M)'!$AO161)","v":10543.21374413},{"$f":"IF('[7]MONE(M)'!$AO161=\"\",\"\",'[7]MONE(M)'!$AO161)","v":145371.19292},{"$f":"IF('[8]MONE(M)'!$AO161=\"\",\"\",'[8]MONE(M)'!$AO161)","v":0},"n.d.","n.d.","n.d.","n.d.","n.d.","n.d.","n.d.",{"$f":"IF('[2]FISCAL(M)'!$K161=\"\",\"\",'[2]FISCAL(M)'!$K161)","v":-908.82414488682809},{"$f":"+'[2]REAL(A)'!$AO$22","v":90015.237527740421},-1.0096336685294547,{"$f":"IF('[2]FISCAL(M)'!$L161=\"\",\"\",'[2]FISCAL(M)'!$L161)","v":-1139.2381496838279},{"$f":"+'[2]REAL(A)'!$AP$22","v":"n.d."},"n.d.","n.d.",{"$f":"'[2]Gráfico REM'!BG155","v":7175.3658003690625},{"$f":"'[2]Gráfico REM'!BH155","v":26861.041762878202},{"$f":"'[2]Gráfico REM'!BI155","v":939.70615140943983},"n.d.","n.d.","n.d.","n.d.","n.d.","n.d.","n.d.","n.d.","n.d.","n.d.","n.d.","n.d."]
[2002,"septiembre","2002-septiembre",{"$f":"IF('[2]REAL IPC(M)'!$AL162=\"\",\"\",+'[2]REAL IPC(M)'!$AL162)","v":5.9066427289048429},{"$f":"IF('[2]REAL IPC(M)'!$BE162=\"\",\"\",+'[2]REAL IPC(M)'!$BE162)","v":9.6815476965385283},{"$f":"IF('[2]REAL IPC(M)'!$AM162=\"\",\"\",+'[2]REAL IPC(M)'!$AM162)","v":5.4035450008604435},{"$f":"IF('[2]REAL IPC(M)'!$BI162=\"\",\"\",+'[2]REAL IPC(M)'!$BI162)","v":8.7680781987375731},{"$f":"IF('[2]REAL IMAE(M)'!BJ162=\"\",\"\",'[2]REAL IMAE(M)'!BJ162)","v":"n.d."},{"$f":"IF('[2]REAL IMAE(M)'!BK162=\"\",\"\",'[2]REAL IMAE(M)'!BK162)","v":"n.d."},{"$f":"IF('[2]REAL IMAE(M)'!BN162=\"\",\"\",'[2]REAL IMAE(M)'!BN162)","v":"n.d."},{"$f":"IF('[2]REAL IMAE(M)'!BO162=\"\",\"\",'[2]REAL IMAE(M)'!BO162)","v":"n.d."},{"$f":"IF('[2]EXT RIN(M)'!$K162=\"\",\"\",'[2]EXT RIN(M)'!$K162)","v":7176.8849209277223},"",{"$f":"IF('[2]EXT RIN(M)'!$L162=\"\",\"\",'[2]EXT RIN(M)'!$L162)","v":7176.8849209277223},"",{"$f":"IF('[2]MONE(M)CARD'!EG162=\"\",\"\",'[2]MONE(M)CARD'!EG162)","v":6191.2508055903827},{"$f":"IF('[2]MONE(M)CARD'!EK162=\"\",\"\",'[2]MONE(M)CARD'!EK162)","v":14233.44346683655},{"$f":"IF('[2]MONE(M)CARD'!EP162=\"\",\"\",'[2]MONE(M)CARD'!EP162)","v":5869.895367319099},{"$f":"IF('[2]MONE(M)CARD'!ES162=\"\",\"\",'[2]MONE(M)CARD'!ES162)","v":"n.d."},{"$f":"IF('[2]MONE(M)CARD'!EV162=\"\",\"\",'[2]MONE(M)CARD'!EV162)","v":"n.d."},{"$f":"IF('[2]MONE(M)CARD'!EZ162=\"\",\"\",'[2]MONE(M)CARD'!EZ162)","v":"n.d."},{"$f":"IF('[2]MONE(M)CAPARD'!FC162=\"\",\"\",'[2]MONE(M)CAPARD'!FC162)","v":6191.2508055903827},{"$f":"IF('[2]MONE(M)CAPARD'!FG162=\"\",\"\",'[2]MONE(M)CAPARD'!FG162)","v":14233.44346683655},{"$f":"IF('[2]MONE(M)CAPARD'!FL162=\"\",\"\",'[2]MONE(M)CAPARD'!FL162)","v":5869.895367319099},{"$f":"IF('[2]MONE(M)CAPARD'!FO162=\"\",\"\",'[2]MONE(M)CAPARD'!FO162)","v":"n.d."},{"$f":"IF('[2]MONE(M)CAPARD'!FR162=\"\",\"\",'[2]MONE(M)CAPARD'!FR162)","v":"n.d."},{"$f":"IF('[2]MONE(M)CAPARD'!FV162=\"\",\"\",'[2]MONE(M)CAPARD'!FV162)","v":"n.d."},{"$f":"IF('[2]MONE(M)CARD'!FV162=\"\",\"\",'[2]MONE(M)CARD'!FV162)","v":334.1577727210688},{"$f":"IF('[2]MONE(M)CARD'!GD162=\"\",\"\",'[2]MONE(M)CARD'!GD162)","v":5.0197344436712674},{"$f":"IF('[2]MONE(M)CARD'!GE162=\"\",\"\",'[2]MONE(M)CARD'!GE162)","v":2554.8397257731208},"n.d.",{"$f":"IF('[9]II.2.Balance OSD-Activos'!J20=\"\",\"\",'[9]II.2.Balance OSD-Activos'!J20)","v":30.113531395477551},{"$f":"IF('[9]II.2.Balance OSD-Activos'!N20=\"\",\"\",'[9]II.2.Balance OSD-Activos'!N20)","v":13.278832686858843},{"$f":"IF('[9]II.2.Balance OSD-Activos'!R20=\"\",\"\",'[9]II.2.Balance OSD-Activos'!R20)","v":10813.197874512136},{"$f":"IF('[9]II.2.Balance OSD-Activos'!S20=\"\",\"\",'[9]II.2.Balance OSD-Activos'!S20)","v":7976.4881047115095},10843.311405907614,18833.078343305981,"n.d.",null,"n.d.","n.d.","n.d.","n.d.","n.d.",{"$f":"IF('[2]MONE(M)CAPARD'!GS162=\"\",\"\",'[2]MONE(M)CAPARD'!GS162)","v":2455.6421031792393},{"$f":"IF('[2]MONE(M)CARD'!HA162=\"\",\"\",'[2]MONE(M)CAPARD'!HA162)","v":2554.8397257731208},{"$f":"IF('[2]MONE(M)CAPARD'!HB162=\"\",\"\",'[2]MONE(M)CAPARD'!HB162)","v":-99.197622593881533},"n.d.",{"$f":"IF('[10]II.2.Balance OSD-Activos'!J20=\"\",\"\",'[10]II.2.Balance OSD-Activos'!J20)","v":30.113531395477551},{"$f":"IF('[10]II.2.Balance OSD-Activos'!N20=\"\",\"\",'[10]II.2.Balance OSD-Activos'!N20)","v":13.278832686858843},{"$f":"IF('[10]II.2.Balance OSD-Activos'!R20=\"\",\"\",'[10]II.2.Balance OSD-Activos'!R20)","v":10813.197874512136},{"$f":"IF('[10]II.2.Balance OSD-Activos'!S20=\"\",\"\",'[10]II.2.Balance OSD-Activos'!S20)","v":7976.4881047115095},10843.311405907614,18833.078343305981,"n.d.","n.d.","n.d.","n.d.","n.d.","n.d.","n.d.",{"$f":"IF('[2]MONE(M)CAPARD'!AS162=\"\",\"\",'[2]MONE(M)CAPARD'!AS162)","v":"n.d."},{"$f":"IF('[2]MONE(M)CAPARD'!AT162=\"\",\"\",'[2]MONE(M)CAPARD'!AT162)","v":"n.a."},{"$f":"IF('[2]MONE(M)CAPARD'!AU162=\"\",\"\",'[2]MONE(M)CAPARD'!AU162)","v":"n.d."},{"$f":"IF('[2]MONE(M)CAPARD'!AV162=\"\",\"\",'[2]MONE(M)CAPARD'!AV162)","v":"n.d."},{"$f":"IF('[2]MONE(M)CAPARD'!AW162=\"\",\"\",'[2]MONE(M)CAPARD'!AW162)","v":"n.a."},{"$f":"IF('[2]MONE(M)CAPARD'!AX162=\"\",\"\",'[2]MONE(M)CAPARD'!AX162)","v":"n.d."},{"$f":"IF('[2]MONE(M)CAPARD'!AY162=\"\",\"\",'[2]MONE(M)CAPARD'!AY162)","v":"n.a."},{"$f":"IF('[2]FISCAL(M)'!$K162=\"\",\"\",'[2]FISCAL(M)'!$K162)","v":-1171.1928275656933},{"$f":"IF('[2]FISCAL(M)'!$L162=\"\",\"\",'[2]FISCAL(M)'!$L162)","v":-1311.9538929926935},{"$f":"IF('[2]FISCAL(M)'!$AY162=\"\",\"\",'[2]FISCAL(M)'!$AY162)","v":"n.d."},{"$f":"IF('[2]FISCAL(M)'!$BI162=\"\",\"\",'[2]FISCAL(M)'!$BI162)","v":"n.d."},{"$f":"IF('[2]FISCAL(M)'!$BS162=\"\",\"\",'[2]FISCAL(M)'!$BS162)","v":"n.d."},{"$f":"IF('[2]FISCAL(M)'!$AZ162=\"\",\"\",'[2]FISCAL(M)'!$AZ162)","v":"n.d."},{"$f":"IF('[2]FISCAL(M)'!$BJ162=\"\",\"\",'[2]FISCAL(M)'!$BJ162)","v":"n.d."},{"$f":"IF('[2]FISCAL(M)'!$BT162=\"\",\"\",'[2]FISCAL(M)'!$BT162)","v":"n.d."},{"$f":"IF('[3]MONE(M)'!$AO162=\"\",\"\",'[3]MONE(M)'!$AO162)","v":1772486.7060930179},{"$f":"IF('[4]MONE(M)'!$AO162=\"\",\"\",'[4]MONE(M)'!$AO162)","v":5784.2947428571424},{"$f":"IF('[5]MONE(M)'!$AO162=\"\",\"\",'[5]MONE(M)'!$AO162)","v":36597.350374896159},{"$f":"+'[1]MONE(M)'!$AO162","v":43775.040130770336},{"$f":"IF('[6]MONE(M)'!$AO162=\"\",\"\",'[6]MONE(M)'!$AO162)","v":10640.785055209999},{"$f":"IF('[7]MONE(M)'!$AO162=\"\",\"\",'[7]MONE(M)'!$AO162)","v":145088.56660199998},{"$f":"IF('[8]MONE(M)'!$AO162=\"\",\"\",'[8]MONE(M)'!$AO162)","v":0},"n.d.","n.d.","n.d.","n.d.","n.d.","n.d.","n.d.",{"$f":"IF('[2]FISCAL(M)'!$K162=\"\",\"\",'[2]FISCAL(M)'!$K162)","v":-1171.1928275656933},{"$f":"+'[2]REAL(A)'!$AO$22","v":90015.237527740421},-1.3011050792425685,{"$f":"IF('[2]FISCAL(M)'!$L162=\"\",\"\",'[2]FISCAL(M)'!$L162)","v":-1311.9538929926935},{"$f":"+'[2]REAL(A)'!$AP$22","v":"n.d."},"n.d.","n.d.",{"$f":"'[2]Gráfico REM'!BG156","v":7334.5755788182687},{"$f":"'[2]Gráfico REM'!BH156","v":26943.15452119377},{"$f":"'[2]Gráfico REM'!BI156","v":929.81871032703634},"n.d.","n.d.","n.d.","n.d.","n.d.","n.d.","n.d.","n.d.","n.d.","n.d.","n.d.","n.d."]
[2002,"octubre","2002-octubre",{"$f":"IF('[2]REAL IPC(M)'!$AL163=\"\",\"\",+'[2]REAL IPC(M)'!$AL163)","v":6.7514326647564404},{"$f":"IF('[2]REAL IPC(M)'!$BE163=\"\",\"\",+'[2]REAL IPC(M)'!$BE163)","v":9.8913726367331201},{"$f":"IF('[2]REAL IPC(M)'!$AM163=\"\",\"\",+'[2]REAL IPC(M)'!$AM163)","v":6.1984890109890056},{"$f":"IF('[2]REAL IPC(M)'!$BI163=\"\",\"\",+'[2]REAL IPC(M)'!$BI163)","v":8.9621460039122969},{"$f":"IF('[2]REAL IMAE(M)'!BJ163=\"\",\"\",'[2]REAL IMAE(M)'!BJ163)","v":"n.d."},{"$f":"IF('[2]REAL IMAE(M)'!BK163=\"\",\"\",'[2]REAL IMAE(M)'!BK163)","v":"n.d."},{"$f":"IF('[2]REAL IMAE(M)'!BN163=\"\",\"\",'[2]REAL IMAE(M)'!BN163)","v":"n.d."},{"$f":"IF('[2]REAL IMAE(M)'!BO163=\"\",\"\",'[2]REAL IMAE(M)'!BO163)","v":"n.d."},{"$f":"IF('[2]EXT RIN(M)'!$K163=\"\",\"\",'[2]EXT RIN(M)'!$K163)","v":7461.0011579488491},"",{"$f":"IF('[2]EXT RIN(M)'!$L163=\"\",\"\",'[2]EXT RIN(M)'!$L163)","v":7461.0011579488491},"",{"$f":"IF('[2]MONE(M)CARD'!EG163=\"\",\"\",'[2]MONE(M)CARD'!EG163)","v":6347.5683693334922},{"$f":"IF('[2]MONE(M)CARD'!EK163=\"\",\"\",'[2]MONE(M)CARD'!EK163)","v":14245.796622464035},{"$f":"IF('[2]MONE(M)CARD'!EP163=\"\",\"\",'[2]MONE(M)CARD'!EP163)","v":5783.0625796278582},{"$f":"IF('[2]MONE(M)CARD'!ES163=\"\",\"\",'[2]MONE(M)CARD'!ES163)","v":"n.d."},{"$f":"IF('[2]MONE(M)CARD'!EV163=\"\",\"\",'[2]MONE(M)CARD'!EV163)","v":"n.d."},{"$f":"IF('[2]MONE(M)CARD'!EZ163=\"\",\"\",'[2]MONE(M)CARD'!EZ163)","v":"n.d."},{"$f":"IF('[2]MONE(M)CAPARD'!FC163=\"\",\"\",'[2]MONE(M)CAPARD'!FC163)","v":6347.5683693334922},{"$f":"IF('[2]MONE(M)CAPARD'!FG163=\"\",\"\",'[2]MONE(M)CAPARD'!FG163)","v":14245.796622464035},{"$f":"IF('[2]MONE(M)CAPARD'!FL163=\"\",\"\",'[2]MONE(M)CAPARD'!FL163)","v":5783.0625796278582},{"$f":"IF('[2]MONE(M)CAPARD'!FO163=\"\",\"\",'[2]MONE(M)CAPARD'!FO163)","v":"n.d."},{"$f":"IF('[2]MONE(M)CAPARD'!FR163=\"\",\"\",'[2]MONE(M)CAPARD'!FR163)","v":"n.d."},{"$f":"IF('[2]MONE(M)CAPARD'!FV163=\"\",\"\",'[2]MONE(M)CAPARD'!FV163)","v":"n.d."},{"$f":"IF('[2]MONE(M)CARD'!FV163=\"\",\"\",'[2]MONE(M)CARD'!FV163)","v":352.09352006734633},{"$f":"IF('[2]MONE(M)CARD'!GD163=\"\",\"\",'[2]MONE(M)CARD'!GD163)","v":3.7196100320570222},{"$f":"IF('[2]MONE(M)CARD'!GE163=\"\",\"\",'[2]MONE(M)CARD'!GE163)","v":2627.9329020515816},"n.d.",{"$f":"IF('[9]II.2.Balance OSD-Activos'!J21=\"\",\"\",'[9]II.2.Balance OSD-Activos'!J21)","v":63.52736887092847},{"$f":"IF('[9]II.2.Balance OSD-Activos'!N21=\"\",\"\",'[9]II.2.Balance OSD-Activos'!N21)","v":9.0827905858643696},{"$f":"IF('[9]II.2.Balance OSD-Activos'!R21=\"\",\"\",'[9]II.2.Balance OSD-Activos'!R21)","v":10945.020027935268},{"$f":"IF('[9]II.2.Balance OSD-Activos'!S21=\"\",\"\",'[9]II.2.Balance OSD-Activos'!S21)","v":8108.3913158772866},11008.547396806196,19126.021503269349,"n.d.",null,"n.d.","n.d.","n.d.","n.d.","n.d.",{"$f":"IF('[2]MONE(M)CAPARD'!GS163=\"\",\"\",'[2]MONE(M)CAPARD'!GS163)","v":2468.6035450610711},{"$f":"IF('[2]MONE(M)CARD'!HA163=\"\",\"\",'[2]MONE(M)CAPARD'!HA163)","v":2627.9329020515816},{"$f":"IF('[2]MONE(M)CAPARD'!HB163=\"\",\"\",'[2]MONE(M)CAPARD'!HB163)","v":-159.32935699051041},"n.d.",{"$f":"IF('[10]II.2.Balance OSD-Activos'!J21=\"\",\"\",'[10]II.2.Balance OSD-Activos'!J21)","v":63.52736887092847},{"$f":"IF('[10]II.2.Balance OSD-Activos'!N21=\"\",\"\",'[10]II.2.Balance OSD-Activos'!N21)","v":9.0827905858643696},{"$f":"IF('[10]II.2.Balance OSD-Activos'!R21=\"\",\"\",'[10]II.2.Balance OSD-Activos'!R21)","v":10945.020027935268},{"$f":"IF('[10]II.2.Balance OSD-Activos'!S21=\"\",\"\",'[10]II.2.Balance OSD-Activos'!S21)","v":8108.3913158772866},11008.547396806196,19126.021503269349,"n.d.","n.d.","n.d.","n.d.","n.d.","n.d.","n.d.",{"$f":"IF('[2]MONE(M)CAPARD'!AS163=\"\",\"\",'[2]MONE(M)CAPARD'!AS163)","v":"n.d."},{"$f":"IF('[2]MONE(M)CAPARD'!AT163=\"\",\"\",'[2]MONE(M)CAPARD'!AT163)","v":"n.a."},{"$f":"IF('[2]MONE(M)CAPARD'!AU163=\"\",\"\",'[2]MONE(M)CAPARD'!AU163)","v":"n.d."},{"$f":"IF('[2]MONE(M)CAPARD'!AV163=\"\",\"\",'[2]MONE(M)CAPARD'!AV163)","v":"n.d."},{"$f":"IF('[2]MONE(M)CAPARD'!AW163=\"\",\"\",'[2]MONE(M)CAPARD'!AW163)","v":"n.a."},{"$f":"IF('[2]MONE(M)CAPARD'!AX163=\"\",\"\",'[2]MONE(M)CAPARD'!AX163)","v":"n.d."},{"$f":"IF('[2]MONE(M)CAPARD'!AY163=\"\",\"\",'[2]MONE(M)CAPARD'!AY163)","v":"n.a."},{"$f":"IF('[2]FISCAL(M)'!$K163=\"\",\"\",'[2]FISCAL(M)'!$K163)","v":-1326.5443534470278},{"$f":"IF('[2]FISCAL(M)'!$L163=\"\",\"\",'[2]FISCAL(M)'!$L163)","v":-1557.4761097840278},{"$f":"IF('[2]FISCAL(M)'!$AY163=\"\",\"\",'[2]FISCAL(M)'!$AY163)","v":"n.d."},{"$f":"IF('[2]FISCAL(M)'!$BI163=\"\",\"\",'[2]FISCAL(M)'!$BI163)","v":"n.d."},{"$f":"IF('[2]FISCAL(M)'!$BS163=\"\",\"\",'[2]FISCAL(M)'!$BS163)","v":"n.d."},{"$f":"IF('[2]FISCAL(M)'!$AZ163=\"\",\"\",'[2]FISCAL(M)'!$AZ163)","v":"n.d."},{"$f":"IF('[2]FISCAL(M)'!$BJ163=\"\",\"\",'[2]FISCAL(M)'!$BJ163)","v":"n.d."},{"$f":"IF('[2]FISCAL(M)'!$BT163=\"\",\"\",'[2]FISCAL(M)'!$BT163)","v":"n.d."},{"$f":"IF('[3]MONE(M)'!$AO163=\"\",\"\",'[3]MONE(M)'!$AO163)","v":1820075.2550575347},{"$f":"IF('[4]MONE(M)'!$AO163=\"\",\"\",'[4]MONE(M)'!$AO163)","v":5852.2237428571434},{"$f":"IF('[5]MONE(M)'!$AO163=\"\",\"\",'[5]MONE(M)'!$AO163)","v":36703.46766061653},{"$f":"+'[1]MONE(M)'!$AO163","v":44301.073934143787},{"$f":"IF('[6]MONE(M)'!$AO163=\"\",\"\",'[6]MONE(M)'!$AO163)","v":10975.947526249998},{"$f":"IF('[7]MONE(M)'!$AO163=\"\",\"\",'[7]MONE(M)'!$AO163)","v":146954.63974499999},{"$f":"IF('[8]MONE(M)'!$AO163=\"\",\"\",'[8]MONE(M)'!$AO163)","v":0},"n.d.","n.d.","n.d.","n.d.","n.d.","n.d.","n.d.",{"$f":"IF('[2]FISCAL(M)'!$K163=\"\",\"\",'[2]FISCAL(M)'!$K163)","v":-1326.5443534470278},{"$f":"+'[2]REAL(A)'!$AO$22","v":90015.237527740421},-1.4736886663640922,{"$f":"IF('[2]FISCAL(M)'!$L163=\"\",\"\",'[2]FISCAL(M)'!$L163)","v":-1557.4761097840278},{"$f":"+'[2]REAL(A)'!$AP$22","v":"n.d."},"n.d.","n.d.",{"$f":"'[2]Gráfico REM'!BG157","v":7393.4026697855124},{"$f":"'[2]Gráfico REM'!BH157","v":27301.472738844033},{"$f":"'[2]Gráfico REM'!BI157","v":934.69804147474883},"n.d.","n.d.","n.d.","n.d.","n.d.","n.d.","n.d.","n.d.","n.d.","n.d.","n.d.","n.d."]
[2002,"noviembre","2002-noviembre",{"$f":"IF('[2]REAL IPC(M)'!$AL164=\"\",\"\",+'[2]REAL IPC(M)'!$AL164)","v":6.5754398436111527},{"$f":"IF('[2]REAL IPC(M)'!$BE164=\"\",\"\",+'[2]REAL IPC(M)'!$BE164)","v":10.105179386006702},{"$f":"IF('[2]REAL IPC(M)'!$AM164=\"\",\"\",+'[2]REAL IPC(M)'!$AM164)","v":6.0900716479017403},{"$f":"IF('[2]REAL IPC(M)'!$BI164=\"\",\"\",+'[2]REAL IPC(M)'!$BI164)","v":9.1610251429665936},{"$f":"IF('[2]REAL IMAE(M)'!BJ164=\"\",\"\",'[2]REAL IMAE(M)'!BJ164)","v":"n.d."},{"$f":"IF('[2]REAL IMAE(M)'!BK164=\"\",\"\",'[2]REAL IMAE(M)'!BK164)","v":"n.d."},{"$f":"IF('[2]REAL IMAE(M)'!BN164=\"\",\"\",'[2]REAL IMAE(M)'!BN164)","v":"n.d."},{"$f":"IF('[2]REAL IMAE(M)'!BO164=\"\",\"\",'[2]REAL IMAE(M)'!BO164)","v":"n.d."},{"$f":"IF('[2]EXT RIN(M)'!$K164=\"\",\"\",'[2]EXT RIN(M)'!$K164)","v":7298.0689126914285},"",{"$f":"IF('[2]EXT RIN(M)'!$L164=\"\",\"\",'[2]EXT RIN(M)'!$L164)","v":7298.0689126914285},"",{"$f":"IF('[2]MONE(M)CARD'!EG164=\"\",\"\",'[2]MONE(M)CARD'!EG164)","v":6560.3731090870842},{"$f":"IF('[2]MONE(M)CARD'!EK164=\"\",\"\",'[2]MONE(M)CARD'!EK164)","v":14100.308760668266},{"$f":"IF('[2]MONE(M)CARD'!EP164=\"\",\"\",'[2]MONE(M)CARD'!EP164)","v":5948.8889114317353},{"$f":"IF('[2]MONE(M)CARD'!ES164=\"\",\"\",'[2]MONE(M)CARD'!ES164)","v":"n.d."},{"$f":"IF('[2]MONE(M)CARD'!EV164=\"\",\"\",'[2]MONE(M)CARD'!EV164)","v":"n.d."},{"$f":"IF('[2]MONE(M)CARD'!EZ164=\"\",\"\",'[2]MONE(M)CARD'!EZ164)","v":"n.d."},{"$f":"IF('[2]MONE(M)CAPARD'!FC164=\"\",\"\",'[2]MONE(M)CAPARD'!FC164)","v":6560.3731090870842},{"$f":"IF('[2]MONE(M)CAPARD'!FG164=\"\",\"\",'[2]MONE(M)CAPARD'!FG164)","v":14100.308760668266},{"$f":"IF('[2]MONE(M)CAPARD'!FL164=\"\",\"\",'[2]MONE(M)CAPARD'!FL164)","v":5948.8889114317353},{"$f":"IF('[2]MONE(M)CAPARD'!FO164=\"\",\"\",'[2]MONE(M)CAPARD'!FO164)","v":"n.d."},{"$f":"IF('[2]MONE(M)CAPARD'!FR164=\"\",\"\",'[2]MONE(M)CAPARD'!FR164)","v":"n.d."},{"$f":"IF('[2]MONE(M)CAPARD'!FV164=\"\",\"\",'[2]MONE(M)CAPARD'!FV164)","v":"n.d."},{"$f":"IF('[2]MONE(M)CARD'!FV164=\"\",\"\",'[2]MONE(M)CARD'!FV164)","v":363.24681366135701},{"$f":"IF('[2]MONE(M)CARD'!GD164=\"\",\"\",'[2]MONE(M)CARD'!GD164)","v":2.5892910926760107},{"$f":"IF('[2]MONE(M)CARD'!GE164=\"\",\"\",'[2]MONE(M)CARD'!GE164)","v":2591.2340015322648},"n.d.",{"$f":"IF('[9]II.2.Balance OSD-Activos'!J22=\"\",\"\",'[9]II.2.Balance OSD-Activos'!J22)","v":49.641224152954329},{"$f":"IF('[9]II.2.Balance OSD-Activos'!N22=\"\",\"\",'[9]II.2.Balance OSD-Activos'!N22)","v":13.345519896926655},{"$f":"IF('[9]II.2.Balance OSD-Activos'!R22=\"\",\"\",'[9]II.2.Balance OSD-Activos'!R22)","v":11133.634832936032},{"$f":"IF('[9]II.2.Balance OSD-Activos'!S22=\"\",\"\",'[9]II.2.Balance OSD-Activos'!S22)","v":8223.0811288968544},11183.276057088986,19419.702705882766,"n.d.",null,"n.d.","n.d.","n.d.","n.d.","n.d.",{"$f":"IF('[2]MONE(M)CAPARD'!GS164=\"\",\"\",'[2]MONE(M)CAPARD'!GS164)","v":2607.0801467932993},{"$f":"IF('[2]MONE(M)CARD'!HA164=\"\",\"\",'[2]MONE(M)CAPARD'!HA164)","v":2591.2340015322648},{"$f":"IF('[2]MONE(M)CAPARD'!HB164=\"\",\"\",'[2]MONE(M)CAPARD'!HB164)","v":15.846145261034508},"n.d.",{"$f":"IF('[10]II.2.Balance OSD-Activos'!J22=\"\",\"\",'[10]II.2.Balance OSD-Activos'!J22)","v":49.641224152954329},{"$f":"IF('[10]II.2.Balance OSD-Activos'!N22=\"\",\"\",'[10]II.2.Balance OSD-Activos'!N22)","v":13.345519896926655},{"$f":"IF('[10]II.2.Balance OSD-Activos'!R22=\"\",\"\",'[10]II.2.Balance OSD-Activos'!R22)","v":11133.634832936032},{"$f":"IF('[10]II.2.Balance OSD-Activos'!S22=\"\",\"\",'[10]II.2.Balance OSD-Activos'!S22)","v":8223.0811288968544},11183.276057088986,19419.702705882766,"n.d.","n.d.","n.d.","n.d.","n.d.","n.d.","n.d.",{"$f":"IF('[2]MONE(M)CAPARD'!AS164=\"\",\"\",'[2]MONE(M)CAPARD'!AS164)","v":"n.d."},{"$f":"IF('[2]MONE(M)CAPARD'!AT164=\"\",\"\",'[2]MONE(M)CAPARD'!AT164)","v":"n.a."},{"$f":"IF('[2]MONE(M)CAPARD'!AU164=\"\",\"\",'[2]MONE(M)CAPARD'!AU164)","v":"n.d."},{"$f":"IF('[2]MONE(M)CAPARD'!AV164=\"\",\"\",'[2]MONE(M)CAPARD'!AV164)","v":"n.d."},{"$f":"IF('[2]MONE(M)CAPARD'!AW164=\"\",\"\",'[2]MONE(M)CAPARD'!AW164)","v":"n.a."},{"$f":"IF('[2]MONE(M)CAPARD'!AX164=\"\",\"\",'[2]MONE(M)CAPARD'!AX164)","v":"n.d."},{"$f":"IF('[2]MONE(M)CAPARD'!AY164=\"\",\"\",'[2]MONE(M)CAPARD'!AY164)","v":"n.a."},{"$f":"IF('[2]FISCAL(M)'!$K164=\"\",\"\",'[2]FISCAL(M)'!$K164)","v":-1664.5953429299557},{"$f":"IF('[2]FISCAL(M)'!$L164=\"\",\"\",'[2]FISCAL(M)'!$L164)","v":-1909.3839482369558},{"$f":"IF('[2]FISCAL(M)'!$AY164=\"\",\"\",'[2]FISCAL(M)'!$AY164)","v":"n.d."},{"$f":"IF('[2]FISCAL(M)'!$BI164=\"\",\"\",'[2]FISCAL(M)'!$BI164)","v":"n.d."},{"$f":"IF('[2]FISCAL(M)'!$BS164=\"\",\"\",'[2]FISCAL(M)'!$BS164)","v":"n.d."},{"$f":"IF('[2]FISCAL(M)'!$AZ164=\"\",\"\",'[2]FISCAL(M)'!$AZ164)","v":"n.d."},{"$f":"IF('[2]FISCAL(M)'!$BJ164=\"\",\"\",'[2]FISCAL(M)'!$BJ164)","v":"n.d."},{"$f":"IF('[2]FISCAL(M)'!$BT164=\"\",\"\",'[2]FISCAL(M)'!$BT164)","v":"n.d."},{"$f":"IF('[3]MONE(M)'!$AO164=\"\",\"\",'[3]MONE(M)'!$AO164)","v":1843303.470993524},{"$f":"IF('[4]MONE(M)'!$AO164=\"\",\"\",'[4]MONE(M)'!$AO164)","v":5948.3077428571432},{"$f":"IF('[5]MONE(M)'!$AO164=\"\",\"\",'[5]MONE(M)'!$AO164)","v":37029.239523973389},{"$f":"+'[1]MONE(M)'!$AO164","v":44837.604244254791},{"$f":"IF('[6]MONE(M)'!$AO164=\"\",\"\",'[6]MONE(M)'!$AO164)","v":11152.98817402},{"$f":"IF('[7]MONE(M)'!$AO164=\"\",\"\",'[7]MONE(M)'!$AO164)","v":149451.24821799999},{"$f":"IF('[8]MONE(M)'!$AO164=\"\",\"\",'[8]MONE(M)'!$AO164)","v":0},"n.d.","n.d.","n.d.","n.d.","n.d.","n.d.","n.d.",{"$f":"IF('[2]FISCAL(M)'!$K164=\"\",\"\",'[2]FISCAL(M)'!$K164)","v":-1664.5953429299557},{"$f":"+'[2]REAL(A)'!$AO$22","v":90015.237527740421},-1.8492372943158313,{"$f":"IF('[2]FISCAL(M)'!$L164=\"\",\"\",'[2]FISCAL(M)'!$L164)","v":-1909.3839482369558},{"$f":"+'[2]REAL(A)'!$AP$22","v":"n.d."},"n.d.","n.d.",{"$f":"'[2]Gráfico REM'!BG158","v":7251.0761357349656},{"$f":"'[2]Gráfico REM'!BH158","v":27686.284065501295},{"$f":"'[2]Gráfico REM'!BI158","v":955.7065909508085},"n.d.","n.d.","n.d.","n.d.","n.d.","n.d.","n.d.","n.d.","n.d.","n.d.","n.d.","n.d."]
[2002,"diciembre","2002-diciembre",{"$f":"IF('[2]REAL IPC(M)'!$AL165=\"\",\"\",+'[2]REAL IPC(M)'!$AL165)","v":7.2212389380530873},{"$f":"IF('[2]REAL IPC(M)'!$BE165=\"\",\"\",+'[2]REAL IPC(M)'!$BE165)","v":10.321503735332648},{"$f":"IF('[2]REAL IPC(M)'!$AM165=\"\",\"\",+'[2]REAL IPC(M)'!$AM165)","v":6.6802651708312011},{"$f":"IF('[2]REAL IPC(M)'!$BI165=\"\",\"\",+'[2]REAL IPC(M)'!$BI165)","v":9.3633666126921469},{"$f":"IF('[2]REAL IMAE(M)'!BJ165=\"\",\"\",'[2]REAL IMAE(M)'!BJ165)","v":"n.d."},{"$f":"IF('[2]REAL IMAE(M)'!BK165=\"\",\"\",'[2]REAL IMAE(M)'!BK165)","v":"n.d."},{"$f":"IF('[2]REAL IMAE(M)'!BN165=\"\",\"\",'[2]REAL IMAE(M)'!BN165)","v":"n.d."},{"$f":"IF('[2]REAL IMAE(M)'!BO165=\"\",\"\",'[2]REAL IMAE(M)'!BO165)","v":"n.d."},{"$f":"IF('[2]EXT RIN(M)'!$K165=\"\",\"\",'[2]EXT RIN(M)'!$K165)","v":7459.2233140622684},7459.2233140622684,{"$f":"IF('[2]EXT RIN(M)'!$L165=\"\",\"\",'[2]EXT RIN(M)'!$L165)","v":8687.6969895204275},8687.6969895204275,{"$f":"IF('[2]MONE(M)CARD'!EG165=\"\",\"\",'[2]MONE(M)CARD'!EG165)","v":7386.435797722339},{"$f":"IF('[2]MONE(M)CARD'!EK165=\"\",\"\",'[2]MONE(M)CARD'!EK165)","v":14577.031153461461},{"$f":"IF('[2]MONE(M)CARD'!EP165=\"\",\"\",'[2]MONE(M)CARD'!EP165)","v":6788.1757116519948},{"$f":"IF('[2]MONE(M)CARD'!ES165=\"\",\"\",'[2]MONE(M)CARD'!ES165)","v":-1.0183881352165636},{"$f":"IF('[2]MONE(M)CARD'!EV165=\"\",\"\",'[2]MONE(M)CARD'!EV165)","v":-5.3961569321236524},{"$f":"IF('[2]MONE(M)CARD'!EZ165=\"\",\"\",'[2]MONE(M)CARD'!EZ165)","v":-2.0797270048353078},{"$f":"IF('[2]MONE(M)CAPARD'!FC165=\"\",\"\",'[2]MONE(M)CAPARD'!FC165)","v":8721.957700532339},{"$f":"IF('[2]MONE(M)CAPARD'!FG165=\"\",\"\",'[2]MONE(M)CAPARD'!FG165)","v":23313.15657704146},{"$f":"IF('[2]MONE(M)CAPARD'!FL165=\"\",\"\",'[2]MONE(M)CAPARD'!FL165)","v":6788.1757116519984},{"$f":"IF('[2]MONE(M)CAPARD'!FO165=\"\",\"\",'[2]MONE(M)CAPARD'!FO165)","v":16.878215076527159},{"$f":"IF('[2]MONE(M)CAPARD'!FR165=\"\",\"\",'[2]MONE(M)CAPARD'!FR165)","v":37.98572559209417},{"$f":"IF('[2]MONE(M)CAPARD'!FV165=\"\",\"\",'[2]MONE(M)CAPARD'!FV165)","v":32.221563786661278},{"$f":"IF('[2]MONE(M)CARD'!FV165=\"\",\"\",'[2]MONE(M)CARD'!FV165)","v":376.9366609303263},{"$f":"IF('[2]MONE(M)CARD'!GD165=\"\",\"\",'[2]MONE(M)CARD'!GD165)","v":55.795244096774461},{"$f":"IF('[2]MONE(M)CARD'!GE165=\"\",\"\",'[2]MONE(M)CARD'!GE165)","v":2486.1932384469214},"n.d.",{"$f":"IF('[9]II.2.Balance OSD-Activos'!J23=\"\",\"\",'[9]II.2.Balance OSD-Activos'!J23)","v":54.364207368468627},{"$f":"IF('[9]II.2.Balance OSD-Activos'!N23=\"\",\"\",'[9]II.2.Balance OSD-Activos'!N23)","v":13.705203433015559},{"$f":"IF('[9]II.2.Balance OSD-Activos'!R23=\"\",\"\",'[9]II.2.Balance OSD-Activos'!R23)","v":12804.50344418546},{"$f":"IF('[9]II.2.Balance OSD-Activos'!S23=\"\",\"\",'[9]II.2.Balance OSD-Activos'!S23)","v":8001.483503549709},12858.867651553928,20874.056358536654,{"$f":"IF(OR(AF158=\"\",AF146=\"\"),\"\",((AF158/AF146)-1)*100)","v":71.766866574045181},{"$f":"IF(OR(AJ158=\"\",AJ146=\"\"),\"\",((AJ158/AJ146)-1)*100)","v":-2.2917732377694011},{"$f":"IF(OR(AG158=\"\",AG146=\"\"),\"\",((AG158/AG146)-1)*100)","v":-19.481196208211472},-2.4703082956524236,6.7370179165970656,{"$f":"IF(OR(AK158=\"\",AK146=\"\"),\"\",((AK158/AK146)-1)*100)","v":0.9679467469551728},"n.d.",{"$f":"IF('[2]MONE(M)CAPARD'!GS165=\"\",\"\",'[2]MONE(M)CAPARD'!GS165)","v":3031.5166291452119},{"$f":"IF('[2]MONE(M)CARD'!HA165=\"\",\"\",'[2]MONE(M)CAPARD'!HA165)","v":2649.6022683869214},{"$f":"IF('[2]MONE(M)CAPARD'!HB165=\"\",\"\",'[2]MONE(M)CAPARD'!HB165)","v":381.91436075829051},"n.d.",{"$f":"IF('[10]II.2.Balance OSD-Activos'!J23=\"\",\"\",'[10]II.2.Balance OSD-Activos'!J23)","v":832.41570615846865},{"$f":"IF('[10]II.2.Balance OSD-Activos'!N23=\"\",\"\",'[10]II.2.Balance OSD-Activos'!N23)","v":409.22349667301546},{"$f":"IF('[10]II.2.Balance OSD-Activos'!R23=\"\",\"\",'[10]II.2.Balance OSD-Activos'!R23)","v":17441.340176095458},{"$f":"IF('[10]II.2.Balance OSD-Activos'!S23=\"\",\"\",'[10]II.2.Balance OSD-Activos'!S23)","v":12468.210623469709},18273.755882253929,31151.190002396652,{"$f":"IF(OR(AW158=\"\",AW146=\"\"),\"\",((AW158/AW146)-1)*100)","v":2530.0657078427462},{"$f":"IF(OR(BA158=\"\",BA146=\"\"),\"\",((BA158/BA146)-1)*100)","v":38.853305899384097},{"$f":"IF(OR(AX158=\"\",AX146=\"\"),\"\",((AX158/AX146)-1)*100)","v":2304.2099481885707},32.847676421039921,66.321610250749004,{"$f":"IF(OR(BB158=\"\",BB146=\"\"),\"\",((BB158/BB146)-1)*100)","v":50.678509209829613},"n.d.",{"$f":"IF('[2]MONE(M)CAPARD'!AS165=\"\",\"\",'[2]MONE(M)CAPARD'!AS165)","v":"n.d."},{"$f":"IF('[2]MONE(M)CAPARD'!AT165=\"\",\"\",'[2]MONE(M)CAPARD'!AT165)","v":"n.a."},{"$f":"IF('[2]MONE(M)CAPARD'!AU165=\"\",\"\",'[2]MONE(M)CAPARD'!AU165)","v":"n.d."},{"$f":"IF('[2]MONE(M)CAPARD'!AV165=\"\",\"\",'[2]MONE(M)CAPARD'!AV165)","v":"n.d."},{"$f":"IF('[2]MONE(M)CAPARD'!AW165=\"\",\"\",'[2]MONE(M)CAPARD'!AW165)","v":"n.a."},{"$f":"IF('[2]MONE(M)CAPARD'!AX165=\"\",\"\",'[2]MONE(M)CAPARD'!AX165)","v":"n.d."},{"$f":"IF('[2]MONE(M)CAPARD'!AY165=\"\",\"\",'[2]MONE(M)CAPARD'!AY165)","v":"n.a."},{"$f":"IF('[2]FISCAL(M)'!$K165=\"\",\"\",'[2]FISCAL(M)'!$K165)","v":-2133.2719280894394},{"$f":"IF('[2]FISCAL(M)'!$L165=\"\",\"\",'[2]FISCAL(M)'!$L165)","v":-2125.3181362064397},{"$f":"IF('[2]FISCAL(M)'!$AY165=\"\",\"\",'[2]FISCAL(M)'!$AY165)","v":"n.d."},{"$f":"IF('[2]FISCAL(M)'!$BI165=\"\",\"\",'[2]FISCAL(M)'!$BI165)","v":"n.d."},{"$f":"IF('[2]FISCAL(M)'!$BS165=\"\",\"\",'[2]FISCAL(M)'!$BS165)","v":"n.d."},{"$f":"IF('[2]FISCAL(M)'!$AZ165=\"\",\"\",'[2]FISCAL(M)'!$AZ165)","v":"n.d."},{"$f":"IF('[2]FISCAL(M)'!$BJ165=\"\",\"\",'[2]FISCAL(M)'!$BJ165)","v":"n.d."},{"$f":"IF('[2]FISCAL(M)'!$BT165=\"\",\"\",'[2]FISCAL(M)'!$BT165)","v":"n.d."},{"$f":"IF('[3]MONE(M)'!$AO165=\"\",\"\",'[3]MONE(M)'!$AO165)","v":1875498.132815789},{"$f":"IF('[4]MONE(M)'!$AO165=\"\",\"\",'[4]MONE(M)'!$AO165)","v":6003.8447428571435},{"$f":"IF('[5]MONE(M)'!$AO165=\"\",\"\",'[5]MONE(M)'!$AO165)","v":37833.536927033972},{"$f":"+'[1]MONE(M)'!$AO165","v":42627.886621851845},{"$f":"IF('[6]MONE(M)'!$AO165=\"\",\"\",'[6]MONE(M)'!$AO165)","v":11385.75509588},{"$f":"IF('[7]MONE(M)'!$AO165=\"\",\"\",'[7]MONE(M)'!$AO165)","v":152060.32945600001},{"$f":"IF('[8]MONE(M)'!$AO165=\"\",\"\",'[8]MONE(M)'!$AO165)","v":10055.359689329998},{"$f":"((BY158/BY146)-1)*100","v":22.529705158255741},3.6278808540103125,4.5934954858664057,3.350619206875538,14.96102991614201,12.936007718513576,"n.d.",{"$f":"IF('[2]FISCAL(M)'!$K165=\"\",\"\",'[2]FISCAL(M)'!$K165)","v":-2133.2719280894394},{"$f":"+'[2]REAL(A)'!$AO$22","v":90015.237527740421},-2.3699009042019346,{"$f":"IF('[2]FISCAL(M)'!$L165=\"\",\"\",'[2]FISCAL(M)'!$L165)","v":-2125.3181362064397},{"$f":"+'[2]REAL(A)'!$AP$22","v":"n.d."},"n.d.","n.d.",{"$f":"'[2]Gráfico REM'!BG159","v":7228.0250645440883},{"$f":"'[2]Gráfico REM'!BH159","v":26449.667417987279},{"$f":"'[2]Gráfico REM'!BI159","v":968.49648227157923},"n.d.","n.d.","n.d.","n.d.","n.d.",{"$f":"'[2]Gráfico REM'!BK159","v":7633.8463521140884},{"$f":"'[2]Gráfico REM'!BL159","v":36505.027107317277},{"$f":"'[2]Gráfico REM'!BM159","v":8003.0034102815789},"n.d.","n.d.","n.d.","n.d."]
[2003,"enero","2003-enero",{"$f":"IF('[2]REAL IPC(M)'!$AL166=\"\",\"\",+'[2]REAL IPC(M)'!$AL166)","v":7.9761068165846716},{"$f":"IF('[2]REAL IPC(M)'!$BE166=\"\",\"\",+'[2]REAL IPC(M)'!$BE166)","v":10.53871283173482},{"$f":"IF('[2]REAL IPC(M)'!$AM166=\"\",\"\",+'[2]REAL IPC(M)'!$AM166)","v":7.3030865238657316},{"$f":"IF('[2]REAL IPC(M)'!$BI166=\"\",\"\",+'[2]REAL IPC(M)'!$BI166)","v":9.5676471849119427},{"$f":"IF('[2]REAL IMAE(M)'!BJ166=\"\",\"\",'[2]REAL IMAE(M)'!BJ166)","v":"n.d."},{"$f":"IF('[2]REAL IMAE(M)'!BK166=\"\",\"\",'[2]REAL IMAE(M)'!BK166)","v":"n.d."},{"$f":"IF('[2]REAL IMAE(M)'!BN166=\"\",\"\",'[2]REAL IMAE(M)'!BN166)","v":"n.d."},{"$f":"IF('[2]REAL IMAE(M)'!BO166=\"\",\"\",'[2]REAL IMAE(M)'!BO166)","v":"n.d."},{"$f":"IF('[2]EXT RIN(M)'!$K166=\"\",\"\",'[2]EXT RIN(M)'!$K166)","v":7662.8379251623801},"",{"$f":"IF('[2]EXT RIN(M)'!$L166=\"\",\"\",'[2]EXT RIN(M)'!$L166)","v":8908.8598632187004},"",{"$f":"IF('[2]MONE(M)CARD'!EG166=\"\",\"\",'[2]MONE(M)CARD'!EG166)","v":6598.3122603649745},{"$f":"IF('[2]MONE(M)CARD'!EK166=\"\",\"\",'[2]MONE(M)CARD'!EK166)","v":12906.861524238295},{"$f":"IF('[2]MONE(M)CARD'!EP166=\"\",\"\",'[2]MONE(M)CARD'!EP166)","v":6534.6104272230987},{"$f":"IF('[2]MONE(M)CARD'!ES166=\"\",\"\",'[2]MONE(M)CARD'!ES166)","v":-2.0066373953868899},{"$f":"IF('[2]MONE(M)CARD'!EV166=\"\",\"\",'[2]MONE(M)CARD'!EV166)","v":-5.0588129994860287},{"$f":"IF('[2]MONE(M)CARD'!EZ166=\"\",\"\",'[2]MONE(M)CARD'!EZ166)","v":0.2959832492938963},{"$f":"IF('[2]MONE(M)CAPARD'!FC166=\"\",\"\",'[2]MONE(M)CAPARD'!FC166)","v":7820.5049661549747},{"$f":"IF('[2]MONE(M)CAPARD'!FG166=\"\",\"\",'[2]MONE(M)CAPARD'!FG166)","v":21545.621316048298},{"$f":"IF('[2]MONE(M)CAPARD'!FL166=\"\",\"\",'[2]MONE(M)CAPARD'!FL166)","v":6534.6104272231023},{"$f":"IF('[2]MONE(M)CAPARD'!FO166=\"\",\"\",'[2]MONE(M)CAPARD'!FO166)","v":16.144484931850165},{"$f":"IF('[2]MONE(M)CAPARD'!FR166=\"\",\"\",'[2]MONE(M)CAPARD'!FR166)","v":42.939248715649292},{"$f":"IF('[2]MONE(M)CAPARD'!FV166=\"\",\"\",'[2]MONE(M)CAPARD'!FV166)","v":38.276863523724018},{"$f":"IF('[2]MONE(M)CARD'!FV166=\"\",\"\",'[2]MONE(M)CARD'!FV166)","v":344.16079581900067},{"$f":"IF('[2]MONE(M)CARD'!GD166=\"\",\"\",'[2]MONE(M)CARD'!GD166)","v":1.2143361705167248},{"$f":"IF('[2]MONE(M)CARD'!GE166=\"\",\"\",'[2]MONE(M)CARD'!GE166)","v":2366.5705500137237},{"$f":"IF(AD159=\"\",\"\",((AD159/AD146)-1)*100)","v":21.352555414810514},{"$f":"IF('[9]II.2.Balance OSD-Activos'!J24=\"\",\"\",'[9]II.2.Balance OSD-Activos'!J24)","v":53.231905079854485},{"$f":"IF('[9]II.2.Balance OSD-Activos'!N24=\"\",\"\",'[9]II.2.Balance OSD-Activos'!N24)","v":12.531357331127296},{"$f":"IF('[9]II.2.Balance OSD-Activos'!R24=\"\",\"\",'[9]II.2.Balance OSD-Activos'!R24)","v":10486.122049769907},{"$f":"IF('[9]II.2.Balance OSD-Activos'!S24=\"\",\"\",'[9]II.2.Balance OSD-Activos'!S24)","v":7536.1281609142607},10539.353954849761,18088.013473095147,{"$f":"IF(OR(AF159=\"\",AF147=\"\"),\"\",((AF159/AF147)-1)*100)","v":18.56542161864947},-1.9762707726927786,-18.975976105130687,-2.062406772594616,1.9263076043630756,-0.40193180974902321,{"$f":"IF(OR(AQ159=\"\",AQ158=\"\"),\"\",AQ159-AQ158)","v":-1.369878556704196},{"$f":"IF('[2]MONE(M)CAPARD'!GS166=\"\",\"\",'[2]MONE(M)CAPARD'!GS166)","v":3024.8710917156341},{"$f":"IF('[2]MONE(M)CARD'!HA166=\"\",\"\",'[2]MONE(M)CAPARD'!HA166)","v":2554.741826683724},{"$f":"IF('[2]MONE(M)CAPARD'!HB166=\"\",\"\",'[2]MONE(M)CAPARD'!HB166)","v":470.12926503191011},"n.d.",{"$f":"IF('[10]II.2.Balance OSD-Activos'!J24=\"\",\"\",'[10]II.2.Balance OSD-Activos'!J24)","v":893.16207418985425},{"$f":"IF('[10]II.2.Balance OSD-Activos'!N24=\"\",\"\",'[10]II.2.Balance OSD-Activos'!N24)","v":380.99647545112731},{"$f":"IF('[10]II.2.Balance OSD-Activos'!R24=\"\",\"\",'[10]II.2.Balance OSD-Activos'!R24)","v":15004.199253629906},{"$f":"IF('[10]II.2.Balance OSD-Activos'!S24=\"\",\"\",'[10]II.2.Balance OSD-Activos'!S24)","v":12010.059875834258},15897.361327819761,28288.417679105143,1889.3734357477374,47.857131367126883,2363.4097261063525,40.135233619294873,62.436337481632222,55.764576203386753,{"$f":"IF(OR(BH159=\"\",BH158=\"\"),\"\",BH159-BH158)","v":5.0860669935571394},{"$f":"IF('[2]MONE(M)CAPARD'!AS166=\"\",\"\",'[2]MONE(M)CAPARD'!AS166)","v":"n.d."},{"$f":"IF('[2]MONE(M)CAPARD'!AT166=\"\",\"\",'[2]MONE(M)CAPARD'!AT166)","v":"n.a."},{"$f":"IF('[2]MONE(M)CAPARD'!AU166=\"\",\"\",'[2]MONE(M)CAPARD'!AU166)","v":"n.d."},{"$f":"IF('[2]MONE(M)CAPARD'!AV166=\"\",\"\",'[2]MONE(M)CAPARD'!AV166)","v":"n.d."},{"$f":"IF('[2]MONE(M)CAPARD'!AW166=\"\",\"\",'[2]MONE(M)CAPARD'!AW166)","v":"n.a."},{"$f":"IF('[2]MONE(M)CAPARD'!AX166=\"\",\"\",'[2]MONE(M)CAPARD'!AX166)","v":"n.d."},{"$f":"IF('[2]MONE(M)CAPARD'!AY166=\"\",\"\",'[2]MONE(M)CAPARD'!AY166)","v":"n.a."},{"$f":"IF('[2]FISCAL(M)'!$K166=\"\",\"\",'[2]FISCAL(M)'!$K166)","v":94.883604179853705},{"$f":"IF('[2]FISCAL(M)'!$L166=\"\",\"\",'[2]FISCAL(M)'!$L166)","v":-10.19145086014629},{"$f":"IF('[2]FISCAL(M)'!$AY166=\"\",\"\",'[2]FISCAL(M)'!$AY166)","v":"n.d."},{"$f":"IF('[2]FISCAL(M)'!$BI166=\"\",\"\",'[2]FISCAL(M)'!$BI166)","v":"n.d."},{"$f":"IF('[2]FISCAL(M)'!$BS166=\"\",\"\",'[2]FISCAL(M)'!$BS166)","v":"n.d."},{"$f":"IF('[2]FISCAL(M)'!$AZ166=\"\",\"\",'[2]FISCAL(M)'!$AZ166)","v":"n.d."},{"$f":"IF('[2]FISCAL(M)'!$BJ166=\"\",\"\",'[2]FISCAL(M)'!$BJ166)","v":"n.d."},{"$f":"IF('[2]FISCAL(M)'!$BT166=\"\",\"\",'[2]FISCAL(M)'!$BT166)","v":"n.d."},{"$f":"IF('[3]MONE(M)'!$AO166=\"\",\"\",'[3]MONE(M)'!$AO166)","v":1903495.3336585597},{"$f":"IF('[4]MONE(M)'!$AO166=\"\",\"\",'[4]MONE(M)'!$AO166)","v":6000.7417428571434},{"$f":"IF('[5]MONE(M)'!$AO166=\"\",\"\",'[5]MONE(M)'!$AO166)","v":37514.57144007436},{"$f":"+'[1]MONE(M)'!$AO166","v":45323.643012334811},{"$f":"IF('[6]MONE(M)'!$AO166=\"\",\"\",'[6]MONE(M)'!$AO166)","v":11419.762618000001},{"$f":"IF('[7]MONE(M)'!$AO166=\"\",\"\",'[7]MONE(M)'!$AO166)","v":159434.00236344},{"$f":"IF('[8]MONE(M)'!$AO166=\"\",\"\",'[8]MONE(M)'!$AO166)","v":10017.526527799999},22.359638839882479,3.3601682054593018,5.3043751889956248,7.2225646833049773,13.044839262121478,16.860893908795948,"n.d.",{"$f":"IF('[2]FISCAL(M)'!$K166=\"\",\"\",'[2]FISCAL(M)'!$K166)","v":94.883604179853705},{"$f":"+'[2]REAL(A)'!$AO$23","v":87995.190722536092},0.10782817038153593,{"$f":"IF('[2]FISCAL(M)'!$L166=\"\",\"\",'[2]FISCAL(M)'!$L166)","v":-10.19145086014629},{"$f":"+'[2]REAL(A)'!$AP$23","v":"n.d."},"n.d.","n.d.",{"$f":"'[2]Gráfico REM'!BG160","v":7565.0644516947868},{"$f":"'[2]Gráfico REM'!BH160","v":26214.551818798893},{"$f":"'[2]Gráfico REM'!BI160","v":938.58518251166606},"n.d.",{"$f":"+((CT159/CT147)-1)*100","v":14.457014489003805},0.32461248696498135,11.317878839627248,"n.d.",{"$f":"'[2]Gráfico REM'!BK160","v":7993.0175701267872},{"$f":"'[2]Gráfico REM'!BL160","v":36232.078346598893},{"$f":"'[2]Gráfico REM'!BM160","v":7806.8564683716659},"n.d.","n.d.","n.d.","n.d."]
[2003,"febrero","2003-febrero",{"$f":"IF('[2]REAL IPC(M)'!$AL167=\"\",\"\",+'[2]REAL IPC(M)'!$AL167)","v":9.145269081955675},{"$f":"IF('[2]REAL IPC(M)'!$BE167=\"\",\"\",+'[2]REAL IPC(M)'!$BE167)","v":10.755025543050678},{"$f":"IF('[2]REAL IPC(M)'!$AM167=\"\",\"\",+'[2]REAL IPC(M)'!$AM167)","v":8.3431852727579923},{"$f":"IF('[2]REAL IPC(M)'!$BI167=\"\",\"\",+'[2]REAL IPC(M)'!$BI167)","v":9.7721911414391904},{"$f":"IF('[2]REAL IMAE(M)'!BJ167=\"\",\"\",'[2]REAL IMAE(M)'!BJ167)","v":"n.d."},{"$f":"IF('[2]REAL IMAE(M)'!BK167=\"\",\"\",'[2]REAL IMAE(M)'!BK167)","v":"n.d."},{"$f":"IF('[2]REAL IMAE(M)'!BN167=\"\",\"\",'[2]REAL IMAE(M)'!BN167)","v":"n.d."},{"$f":"IF('[2]REAL IMAE(M)'!BO167=\"\",\"\",'[2]REAL IMAE(M)'!BO167)","v":"n.d."},{"$f":"IF('[2]EXT RIN(M)'!$K167=\"\",\"\",'[2]EXT RIN(M)'!$K167)","v":7809.4259864399328},"",{"$f":"IF('[2]EXT RIN(M)'!$L167=\"\",\"\",'[2]EXT RIN(M)'!$L167)","v":9365.0088917713329},"",{"$f":"IF('[2]MONE(M)CARD'!EG167=\"\",\"\",'[2]MONE(M)CARD'!EG167)","v":6470.0109152168916},{"$f":"IF('[2]MONE(M)CARD'!EK167=\"\",\"\",'[2]MONE(M)CARD'!EK167)","v":12939.763025498392},{"$f":"IF('[2]MONE(M)CARD'!EP167=\"\",\"\",'[2]MONE(M)CARD'!EP167)","v":6224.4032029371192},{"$f":"IF('[2]MONE(M)CARD'!ES167=\"\",\"\",'[2]MONE(M)CARD'!ES167)","v":-1.4162676038052102},{"$f":"IF('[2]MONE(M)CARD'!EV167=\"\",\"\",'[2]MONE(M)CARD'!EV167)","v":-6.864975081686131},{"$f":"IF('[2]MONE(M)CARD'!EZ167=\"\",\"\",'[2]MONE(M)CARD'!EZ167)","v":-3.2087323336477569},{"$f":"IF('[2]MONE(M)CAPARD'!FC167=\"\",\"\",'[2]MONE(M)CAPARD'!FC167)","v":7663.0719865168912},{"$f":"IF('[2]MONE(M)CAPARD'!FG167=\"\",\"\",'[2]MONE(M)CAPARD'!FG167)","v":21654.182371418388},{"$f":"IF('[2]MONE(M)CAPARD'!FL167=\"\",\"\",'[2]MONE(M)CAPARD'!FL167)","v":6224.4032029371156},{"$f":"IF('[2]MONE(M)CAPARD'!FO167=\"\",\"\",'[2]MONE(M)CAPARD'!FO167)","v":16.762436408692416},{"$f":"IF('[2]MONE(M)CAPARD'!FR167=\"\",\"\",'[2]MONE(M)CAPARD'!FR167)","v":40.674653064105982},{"$f":"IF('[2]MONE(M)CAPARD'!FV167=\"\",\"\",'[2]MONE(M)CAPARD'!FV167)","v":34.20060534816438},{"$f":"IF('[2]MONE(M)CARD'!FV167=\"\",\"\",'[2]MONE(M)CARD'!FV167)","v":333.54985389786168},{"$f":"IF('[2]MONE(M)CARD'!GD167=\"\",\"\",'[2]MONE(M)CARD'!GD167)","v":1.2834406725486689},{"$f":"IF('[2]MONE(M)CARD'!GE167=\"\",\"\",'[2]MONE(M)CARD'!GE167)","v":2413.6618667194466},{"$f":"IF(AD160=\"\",\"\",((AD160/AD147)-1)*100)","v":5.6192820023161616},{"$f":"IF('[9]II.2.Balance OSD-Activos'!J25=\"\",\"\",'[9]II.2.Balance OSD-Activos'!J25)","v":48.440455924615605},{"$f":"IF('[9]II.2.Balance OSD-Activos'!N25=\"\",\"\",'[9]II.2.Balance OSD-Activos'!N25)","v":12.558367741518641},{"$f":"IF('[9]II.2.Balance OSD-Activos'!R25=\"\",\"\",'[9]II.2.Balance OSD-Activos'!R25)","v":10458.950292540354},{"$f":"IF('[9]II.2.Balance OSD-Activos'!S25=\"\",\"\",'[9]II.2.Balance OSD-Activos'!S25)","v":7598.6682655176965},10507.39074846497,18118.617381724183,{"$f":"IF(OR(AF160=\"\",AF148=\"\"),\"\",((AF160/AF148)-1)*100)","v":42.389224839078167},-1.4798658888324212,-18.368540895269092,-1.6202465747231276,0.69666861678805425,-0.59300657422156622,{"$f":"IF(OR(AQ160=\"\",AQ159=\"\"),\"\",AQ160-AQ159)","v":-0.19107476447254301},{"$f":"IF('[2]MONE(M)CAPARD'!GS167=\"\",\"\",'[2]MONE(M)CAPARD'!GS167)","v":2966.933221763089},{"$f":"IF('[2]MONE(M)CARD'!HA167=\"\",\"\",'[2]MONE(M)CAPARD'!HA167)","v":2581.4311747094471},{"$f":"IF('[2]MONE(M)CAPARD'!HB167=\"\",\"\",'[2]MONE(M)CAPARD'!HB167)","v":385.50204705364195},"n.d.",{"$f":"IF('[10]II.2.Balance OSD-Activos'!J25=\"\",\"\",'[10]II.2.Balance OSD-Activos'!J25)","v":837.67665698461542},{"$f":"IF('[10]II.2.Balance OSD-Activos'!N25=\"\",\"\",'[10]II.2.Balance OSD-Activos'!N25)","v":380.03246877151861},{"$f":"IF('[10]II.2.Balance OSD-Activos'!R25=\"\",\"\",'[10]II.2.Balance OSD-Activos'!R25)","v":14948.785532910355},{"$f":"IF('[10]II.2.Balance OSD-Activos'!S25=\"\",\"\",'[10]II.2.Balance OSD-Activos'!S25)","v":12092.054977737698},15786.46218989497,28258.549636404186,2362.3246742237648,48.018134027854728,2370.2736511234452,40.612374435318358,60.242507034392602,55.039283558221939,-0.72529264516481362,{"$f":"IF('[2]MONE(M)CAPARD'!AS167=\"\",\"\",'[2]MONE(M)CAPARD'!AS167)","v":"n.d."},{"$f":"IF('[2]MONE(M)CAPARD'!AT167=\"\",\"\",'[2]MONE(M)CAPARD'!AT167)","v":"n.a."},{"$f":"IF('[2]MONE(M)CAPARD'!AU167=\"\",\"\",'[2]MONE(M)CAPARD'!AU167)","v":"n.d."},{"$f":"IF('[2]MONE(M)CAPARD'!AV167=\"\",\"\",'[2]MONE(M)CAPARD'!AV167)","v":"n.d."},{"$f":"IF('[2]MONE(M)CAPARD'!AW167=\"\",\"\",'[2]MONE(M)CAPARD'!AW167)","v":"n.a."},{"$f":"IF('[2]MONE(M)CAPARD'!AX167=\"\",\"\",'[2]MONE(M)CAPARD'!AX167)","v":"n.d."},{"$f":"IF('[2]MONE(M)CAPARD'!AY167=\"\",\"\",'[2]MONE(M)CAPARD'!AY167)","v":"n.a."},{"$f":"IF('[2]FISCAL(M)'!$K167=\"\",\"\",'[2]FISCAL(M)'!$K167)","v":-36.29785521236704},{"$f":"IF('[2]FISCAL(M)'!$L167=\"\",\"\",'[2]FISCAL(M)'!$L167)","v":72.186170927632929},{"$f":"IF('[2]FISCAL(M)'!$AY167=\"\",\"\",'[2]FISCAL(M)'!$AY167)","v":"n.d."},{"$f":"IF('[2]FISCAL(M)'!$BI167=\"\",\"\",'[2]FISCAL(M)'!$BI167)","v":"n.d."},{"$f":"IF('[2]FISCAL(M)'!$BS167=\"\",\"\",'[2]FISCAL(M)'!$BS167)","v":"n.d."},{"$f":"IF('[2]FISCAL(M)'!$AZ167=\"\",\"\",'[2]FISCAL(M)'!$AZ167)","v":"n.d."},{"$f":"IF('[2]FISCAL(M)'!$BJ167=\"\",\"\",'[2]FISCAL(M)'!$BJ167)","v":"n.d."},{"$f":"IF('[2]FISCAL(M)'!$BT167=\"\",\"\",'[2]FISCAL(M)'!$BT167)","v":"n.d."},{"$f":"IF('[3]MONE(M)'!$AO167=\"\",\"\",'[3]MONE(M)'!$AO167)","v":1943682.9997312583},{"$f":"IF('[4]MONE(M)'!$AO167=\"\",\"\",'[4]MONE(M)'!$AO167)","v":6045.6527428571426},{"$f":"IF('[5]MONE(M)'!$AO167=\"\",\"\",'[5]MONE(M)'!$AO167)","v":37562.021141400408},{"$f":"+'[1]MONE(M)'!$AO167","v":45788.79121983597},{"$f":"IF('[6]MONE(M)'!$AO167=\"\",\"\",'[6]MONE(M)'!$AO167)","v":11787.464581},{"$f":"IF('[7]MONE(M)'!$AO167=\"\",\"\",'[7]MONE(M)'!$AO167)","v":159568.44684996002},{"$f":"IF('[8]MONE(M)'!$AO167=\"\",\"\",'[8]MONE(M)'!$AO167)","v":9960.7984162399989},24.163440372082402,2.6310608472044361,4.1672496810659654,7.624744502123737,16.052587383380022,15.395570012904924,"n.d.",{"$f":"IF('[2]FISCAL(M)'!$K167=\"\",\"\",'[2]FISCAL(M)'!$K167)","v":-36.29785521236704},{"$f":"+'[2]REAL(A)'!$AO$23","v":87995.190722536092},-4.1249817080140659E-2,{"$f":"IF('[2]FISCAL(M)'!$L167=\"\",\"\",'[2]FISCAL(M)'!$L167)","v":72.186170927632929},{"$f":"+'[2]REAL(A)'!$AP$23","v":"n.d."},"n.d.","n.d.",{"$f":"'[2]Gráfico REM'!BG161","v":7220.1174980888536},{"$f":"'[2]Gráfico REM'!BH161","v":26290.805892405428},{"$f":"'[2]Gráfico REM'!BI161","v":912.25683565266479},"n.d.",6.1278577574908955,-0.33748838302734008,13.160054275698263,"n.d.",{"$f":"'[2]Gráfico REM'!BK161","v":7668.5322385608533},{"$f":"'[2]Gráfico REM'!BL161","v":36251.60430864543},{"$f":"'[2]Gráfico REM'!BM161","v":7833.0856596926651},"n.d.","n.d.","n.d.","n.d."]
[2003,"marzo","2003-marzo",{"$f":"IF('[2]REAL IPC(M)'!$AL168=\"\",\"\",+'[2]REAL IPC(M)'!$AL168)","v":9.1560370435086469},{"$f":"IF('[2]REAL IPC(M)'!$BE168=\"\",\"\",+'[2]REAL IPC(M)'!$BE168)","v":10.96856276794651},{"$f":"IF('[2]REAL IPC(M)'!$AM168=\"\",\"\",+'[2]REAL IPC(M)'!$AM168)","v":8.3263387611213666},{"$f":"IF('[2]REAL IPC(M)'!$BI168=\"\",\"\",+'[2]REAL IPC(M)'!$BI168)","v":9.9752162960698563},{"$f":"IF('[2]REAL IMAE(M)'!BJ168=\"\",\"\",'[2]REAL IMAE(M)'!BJ168)","v":"n.d."},{"$f":"IF('[2]REAL IMAE(M)'!BK168=\"\",\"\",'[2]REAL IMAE(M)'!BK168)","v":"n.d."},{"$f":"IF('[2]REAL IMAE(M)'!BN168=\"\",\"\",'[2]REAL IMAE(M)'!BN168)","v":"n.d."},{"$f":"IF('[2]REAL IMAE(M)'!BO168=\"\",\"\",'[2]REAL IMAE(M)'!BO168)","v":"n.d."},{"$f":"IF('[2]EXT RIN(M)'!$K168=\"\",\"\",'[2]EXT RIN(M)'!$K168)","v":7924.6638087683677},"",{"$f":"IF('[2]EXT RIN(M)'!$L168=\"\",\"\",'[2]EXT RIN(M)'!$L168)","v":9372.4970008247274},"",{"$f":"IF('[2]MONE(M)CARD'!EG168=\"\",\"\",'[2]MONE(M)CARD'!EG168)","v":6389.5354793286624},{"$f":"IF('[2]MONE(M)CARD'!EK168=\"\",\"\",'[2]MONE(M)CARD'!EK168)","v":13125.174689724065},{"$f":"IF('[2]MONE(M)CARD'!EP168=\"\",\"\",'[2]MONE(M)CARD'!EP168)","v":6595.4996166703786},{"$f":"IF('[2]MONE(M)CARD'!ES168=\"\",\"\",'[2]MONE(M)CARD'!ES168)","v":-6.5416338120576683},{"$f":"IF('[2]MONE(M)CARD'!EV168=\"\",\"\",'[2]MONE(M)CARD'!EV168)","v":-6.7476189296466149},{"$f":"IF('[2]MONE(M)CARD'!EZ168=\"\",\"\",'[2]MONE(M)CARD'!EZ168)","v":-1.5907448962038218},{"$f":"IF('[2]MONE(M)CAPARD'!FC168=\"\",\"\",'[2]MONE(M)CAPARD'!FC168)","v":7644.3136736186625},{"$f":"IF('[2]MONE(M)CAPARD'!FG168=\"\",\"\",'[2]MONE(M)CAPARD'!FG168)","v":21796.096220984065},{"$f":"IF('[2]MONE(M)CAPARD'!FL168=\"\",\"\",'[2]MONE(M)CAPARD'!FL168)","v":6595.499616670375},{"$f":"IF('[2]MONE(M)CAPARD'!FO168=\"\",\"\",'[2]MONE(M)CAPARD'!FO168)","v":11.811737938672673},{"$f":"IF('[2]MONE(M)CAPARD'!FR168=\"\",\"\",'[2]MONE(M)CAPARD'!FR168)","v":40.683018019537464},{"$f":"IF('[2]MONE(M)CAPARD'!FV168=\"\",\"\",'[2]MONE(M)CAPARD'!FV168)","v":35.819169631155766},{"$f":"IF('[2]MONE(M)CARD'!FV168=\"\",\"\",'[2]MONE(M)CARD'!FV168)","v":317.87383309266897},{"$f":"IF('[2]MONE(M)CARD'!GD168=\"\",\"\",'[2]MONE(M)CARD'!GD168)","v":2.2250312481163621},{"$f":"IF('[2]MONE(M)CARD'!GE168=\"\",\"\",'[2]MONE(M)CARD'!GE168)","v":2409.4229067995939},25.921800078714252,{"$f":"IF('[9]II.2.Balance OSD-Activos'!J26=\"\",\"\",'[9]II.2.Balance OSD-Activos'!J26)","v":46.955226482555666},{"$f":"IF('[9]II.2.Balance OSD-Activos'!N26=\"\",\"\",'[9]II.2.Balance OSD-Activos'!N26)","v":11.66562170848896},{"$f":"IF('[9]II.2.Balance OSD-Activos'!R26=\"\",\"\",'[9]II.2.Balance OSD-Activos'!R26)","v":10747.109611997277},{"$f":"IF('[9]II.2.Balance OSD-Activos'!S26=\"\",\"\",'[9]II.2.Balance OSD-Activos'!S26)","v":7586.0799186974054},10794.064838479833,18391.810378885726,16.794210380952347,-0.29878696123651904,-23.911602454173263,-0.3624976065675245,-0.20282846563957069,-0.27886614619001548,0.31414042803155073,{"$f":"IF('[2]MONE(M)CAPARD'!GS168=\"\",\"\",'[2]MONE(M)CAPARD'!GS168)","v":2980.082626574434},{"$f":"IF('[2]MONE(M)CARD'!HA168=\"\",\"\",'[2]MONE(M)CAPARD'!HA168)","v":2577.8788453295938},{"$f":"IF('[2]MONE(M)CAPARD'!HB168=\"\",\"\",'[2]MONE(M)CAPARD'!HB168)","v":402.20378124484023},"n.d.",{"$f":"IF('[10]II.2.Balance OSD-Activos'!J26=\"\",\"\",'[10]II.2.Balance OSD-Activos'!J26)","v":830.3595047425556},{"$f":"IF('[10]II.2.Balance OSD-Activos'!N26=\"\",\"\",'[10]II.2.Balance OSD-Activos'!N26)","v":377.83840821848889},{"$f":"IF('[10]II.2.Balance OSD-Activos'!R26=\"\",\"\",'[10]II.2.Balance OSD-Activos'!R26)","v":15260.359813277279},{"$f":"IF('[10]II.2.Balance OSD-Activos'!S26=\"\",\"\",'[10]II.2.Balance OSD-Activos'!S26)","v":12075.456519077405},16090.719318019834,28544.014245315728,1965.3969739610329,48.624661670901801,2364.4309348459583,41.480285613043108,58.856276035252208,54.766790579244827,-0.27249297897711244,{"$f":"IF('[2]MONE(M)CAPARD'!AS168=\"\",\"\",'[2]MONE(M)CAPARD'!AS168)","v":"n.d."},{"$f":"IF('[2]MONE(M)CAPARD'!AT168=\"\",\"\",'[2]MONE(M)CAPARD'!AT168)","v":"n.a."},{"$f":"IF('[2]MONE(M)CAPARD'!AU168=\"\",\"\",'[2]MONE(M)CAPARD'!AU168)","v":"n.d."},{"$f":"IF('[2]MONE(M)CAPARD'!AV168=\"\",\"\",'[2]MONE(M)CAPARD'!AV168)","v":"n.d."},{"$f":"IF('[2]MONE(M)CAPARD'!AW168=\"\",\"\",'[2]MONE(M)CAPARD'!AW168)","v":"n.a."},{"$f":"IF('[2]MONE(M)CAPARD'!AX168=\"\",\"\",'[2]MONE(M)CAPARD'!AX168)","v":"n.d."},{"$f":"IF('[2]MONE(M)CAPARD'!AY168=\"\",\"\",'[2]MONE(M)CAPARD'!AY168)","v":"n.a."},{"$f":"IF('[2]FISCAL(M)'!$K168=\"\",\"\",'[2]FISCAL(M)'!$K168)","v":-283.27285962072409},{"$f":"IF('[2]FISCAL(M)'!$L168=\"\",\"\",'[2]FISCAL(M)'!$L168)","v":-224.43536975072419},{"$f":"IF('[2]FISCAL(M)'!$AY168=\"\",\"\",'[2]FISCAL(M)'!$AY168)","v":"n.d."},{"$f":"IF('[2]FISCAL(M)'!$BI168=\"\",\"\",'[2]FISCAL(M)'!$BI168)","v":"n.d."},{"$f":"IF('[2]FISCAL(M)'!$BS168=\"\",\"\",'[2]FISCAL(M)'!$BS168)","v":"n.d."},{"$f":"IF('[2]FISCAL(M)'!$AZ168=\"\",\"\",'[2]FISCAL(M)'!$AZ168)","v":"n.d."},{"$f":"IF('[2]FISCAL(M)'!$BJ168=\"\",\"\",'[2]FISCAL(M)'!$BJ168)","v":"n.d."},{"$f":"IF('[2]FISCAL(M)'!$BT168=\"\",\"\",'[2]FISCAL(M)'!$BT168)","v":"n.d."},{"$f":"IF('[3]MONE(M)'!$AO168=\"\",\"\",'[3]MONE(M)'!$AO168)","v":1953315.3066062636},{"$f":"IF('[4]MONE(M)'!$AO168=\"\",\"\",'[4]MONE(M)'!$AO168)","v":6091.3517428571431},{"$f":"IF('[5]MONE(M)'!$AO168=\"\",\"\",'[5]MONE(M)'!$AO168)","v":38146.826167492778},{"$f":"+'[1]MONE(M)'!$AO168","v":46566.461801363112},{"$f":"IF('[6]MONE(M)'!$AO168=\"\",\"\",'[6]MONE(M)'!$AO168)","v":11753.310185},{"$f":"IF('[7]MONE(M)'!$AO168=\"\",\"\",'[7]MONE(M)'!$AO168)","v":170966.5583727},{"$f":"IF('[8]MONE(M)'!$AO168=\"\",\"\",'[8]MONE(M)'!$AO168)","v":9980.0307720099991},22.34195732278874,4.8204288113280924,6.3766576761445704,8.4761960556297247,18.431767869974248,21.293227525295855,"n.d.",{"$f":"IF('[2]FISCAL(M)'!$K168=\"\",\"\",'[2]FISCAL(M)'!$K168)","v":-283.27285962072409},{"$f":"+'[2]REAL(A)'!$AO$23","v":87995.190722536092},-0.32191856997495683,{"$f":"IF('[2]FISCAL(M)'!$L168=\"\",\"\",'[2]FISCAL(M)'!$L168)","v":-224.43536975072419},{"$f":"+'[2]REAL(A)'!$AP$23","v":"n.d."},"n.d.","n.d.",{"$f":"'[2]Gráfico REM'!BG162","v":7388.3055906613708},{"$f":"'[2]Gráfico REM'!BH162","v":26650.042799606294},{"$f":"'[2]Gráfico REM'!BI162","v":915.98419137350641},"n.d.",4.6025709105813162,0.42017952116566448,5.9569766600206187,"n.d.",{"$f":"'[2]Gráfico REM'!BK162","v":7819.2538490433708},{"$f":"'[2]Gráfico REM'!BL162","v":36630.073571616289},{"$f":"'[2]Gráfico REM'!BM162","v":7970.3741910735071},"n.d.","n.d.","n.d.","n.d."]
[2003,"abril","2003-abril",{"$f":"IF('[2]REAL IPC(M)'!$AL169=\"\",\"\",+'[2]REAL IPC(M)'!$AL169)","v":8.9881780250347543},{"$f":"IF('[2]REAL IPC(M)'!$BE169=\"\",\"\",+'[2]REAL IPC(M)'!$BE169)","v":11.177393115102596},{"$f":"IF('[2]REAL IPC(M)'!$AM169=\"\",\"\",+'[2]REAL IPC(M)'!$AM169)","v":8.1717914438502746},{"$f":"IF('[2]REAL IPC(M)'!$BI169=\"\",\"\",+'[2]REAL IPC(M)'!$BI169)","v":10.174875185021804},{"$f":"IF('[2]REAL IMAE(M)'!BJ169=\"\",\"\",'[2]REAL IMAE(M)'!BJ169)","v":"n.d."},{"$f":"IF('[2]REAL IMAE(M)'!BK169=\"\",\"\",'[2]REAL IMAE(M)'!BK169)","v":"n.d."},{"$f":"IF('[2]REAL IMAE(M)'!BN169=\"\",\"\",'[2]REAL IMAE(M)'!BN169)","v":"n.d."},{"$f":"IF('[2]REAL IMAE(M)'!BO169=\"\",\"\",'[2]REAL IMAE(M)'!BO169)","v":"n.d."},{"$f":"IF('[2]EXT RIN(M)'!$K169=\"\",\"\",'[2]EXT RIN(M)'!$K169)","v":7571.810839168661},"",{"$f":"IF('[2]EXT RIN(M)'!$L169=\"\",\"\",'[2]EXT RIN(M)'!$L169)","v":8952.3561764059505},"",{"$f":"IF('[2]MONE(M)CARD'!EG169=\"\",\"\",'[2]MONE(M)CARD'!EG169)","v":6893.7047661616734},{"$f":"IF('[2]MONE(M)CARD'!EK169=\"\",\"\",'[2]MONE(M)CARD'!EK169)","v":14347.515887442278},{"$f":"IF('[2]MONE(M)CARD'!EP169=\"\",\"\",'[2]MONE(M)CARD'!EP169)","v":6566.635602130671},{"$f":"IF('[2]MONE(M)CARD'!ES169=\"\",\"\",'[2]MONE(M)CARD'!ES169)","v":3.1820713755049024},{"$f":"IF('[2]MONE(M)CARD'!EV169=\"\",\"\",'[2]MONE(M)CARD'!EV169)","v":3.4145289136424894},{"$f":"IF('[2]MONE(M)CARD'!EZ169=\"\",\"\",'[2]MONE(M)CARD'!EZ169)","v":6.2575154698020663},{"$f":"IF('[2]MONE(M)CAPARD'!FC169=\"\",\"\",'[2]MONE(M)CAPARD'!FC169)","v":8127.8805949516736},{"$f":"IF('[2]MONE(M)CAPARD'!FG169=\"\",\"\",'[2]MONE(M)CAPARD'!FG169)","v":23030.15223895228},{"$f":"IF('[2]MONE(M)CAPARD'!FL169=\"\",\"\",'[2]MONE(M)CAPARD'!FL169)","v":6566.6356021306674},{"$f":"IF('[2]MONE(M)CAPARD'!FO169=\"\",\"\",'[2]MONE(M)CAPARD'!FO169)","v":21.654695715499184},{"$f":"IF('[2]MONE(M)CAPARD'!FR169=\"\",\"\",'[2]MONE(M)CAPARD'!FR169)","v":51.695297550956873},{"$f":"IF('[2]MONE(M)CAPARD'!FV169=\"\",\"\",'[2]MONE(M)CAPARD'!FV169)","v":44.150973130424291},{"$f":"IF('[2]MONE(M)CARD'!FV169=\"\",\"\",'[2]MONE(M)CARD'!FV169)","v":341.06433447786145},{"$f":"IF('[2]MONE(M)CARD'!GD169=\"\",\"\",'[2]MONE(M)CARD'!GD169)","v":1.6080395597465154},{"$f":"IF('[2]MONE(M)CARD'!GE169=\"\",\"\",'[2]MONE(M)CARD'!GE169)","v":2148.8927230351724},-12.094053146437922,{"$f":"IF('[9]II.2.Balance OSD-Activos'!J27=\"\",\"\",'[9]II.2.Balance OSD-Activos'!J27)","v":40.389645864264352},{"$f":"IF('[9]II.2.Balance OSD-Activos'!N27=\"\",\"\",'[9]II.2.Balance OSD-Activos'!N27)","v":11.572374119933022},{"$f":"IF('[9]II.2.Balance OSD-Activos'!R27=\"\",\"\",'[9]II.2.Balance OSD-Activos'!R27)","v":10677.465845152139},{"$f":"IF('[9]II.2.Balance OSD-Activos'!S27=\"\",\"\",'[9]II.2.Balance OSD-Activos'!S27)","v":7640.2889853294837},10717.855491016404,18369.716850465818,9.4205841234919383,0.19141480228703767,81.248011371882868,0.15945843478559762,0.86852562293202595,0.50032320219441928,0.77918934838443477,{"$f":"IF('[2]MONE(M)CAPARD'!GS169=\"\",\"\",'[2]MONE(M)CAPARD'!GS169)","v":3003.0713450723247},{"$f":"IF('[2]MONE(M)CARD'!HA169=\"\",\"\",'[2]MONE(M)CAPARD'!HA169)","v":2373.2752777651722},{"$f":"IF('[2]MONE(M)CAPARD'!HB169=\"\",\"\",'[2]MONE(M)CAPARD'!HB169)","v":629.7960673071525},"n.d.",{"$f":"IF('[10]II.2.Balance OSD-Activos'!J27=\"\",\"\",'[10]II.2.Balance OSD-Activos'!J27)","v":854.29007027426439},{"$f":"IF('[10]II.2.Balance OSD-Activos'!N27=\"\",\"\",'[10]II.2.Balance OSD-Activos'!N27)","v":362.99428535993303},{"$f":"IF('[10]II.2.Balance OSD-Activos'!R27=\"\",\"\",'[10]II.2.Balance OSD-Activos'!R27)","v":15128.808905722137},{"$f":"IF('[10]II.2.Balance OSD-Activos'!S27=\"\",\"\",'[10]II.2.Balance OSD-Activos'!S27)","v":12149.347699979484},15983.098975996401,28495.440961335818,2214.3782645297911,49.411353854538895,5585.2631689050877,41.915069430868293,60.39796297370583,55.89794060057487,1.1311500213300434,{"$f":"IF('[2]MONE(M)CAPARD'!AS169=\"\",\"\",'[2]MONE(M)CAPARD'!AS169)","v":"n.d."},{"$f":"IF('[2]MONE(M)CAPARD'!AT169=\"\",\"\",'[2]MONE(M)CAPARD'!AT169)","v":"n.a."},{"$f":"IF('[2]MONE(M)CAPARD'!AU169=\"\",\"\",'[2]MONE(M)CAPARD'!AU169)","v":"n.d."},{"$f":"IF('[2]MONE(M)CAPARD'!AV169=\"\",\"\",'[2]MONE(M)CAPARD'!AV169)","v":"n.d."},{"$f":"IF('[2]MONE(M)CAPARD'!AW169=\"\",\"\",'[2]MONE(M)CAPARD'!AW169)","v":"n.a."},{"$f":"IF('[2]MONE(M)CAPARD'!AX169=\"\",\"\",'[2]MONE(M)CAPARD'!AX169)","v":"n.d."},{"$f":"IF('[2]MONE(M)CAPARD'!AY169=\"\",\"\",'[2]MONE(M)CAPARD'!AY169)","v":"n.a."},{"$f":"IF('[2]FISCAL(M)'!$K169=\"\",\"\",'[2]FISCAL(M)'!$K169)","v":-245.24544325149634},{"$f":"IF('[2]FISCAL(M)'!$L169=\"\",\"\",'[2]FISCAL(M)'!$L169)","v":-270.4000950914965},{"$f":"IF('[2]FISCAL(M)'!$AY169=\"\",\"\",'[2]FISCAL(M)'!$AY169)","v":"n.d."},{"$f":"IF('[2]FISCAL(M)'!$BI169=\"\",\"\",'[2]FISCAL(M)'!$BI169)","v":"n.d."},{"$f":"IF('[2]FISCAL(M)'!$BS169=\"\",\"\",'[2]FISCAL(M)'!$BS169)","v":"n.d."},{"$f":"IF('[2]FISCAL(M)'!$AZ169=\"\",\"\",'[2]FISCAL(M)'!$AZ169)","v":"n.d."},{"$f":"IF('[2]FISCAL(M)'!$BJ169=\"\",\"\",'[2]FISCAL(M)'!$BJ169)","v":"n.d."},{"$f":"IF('[2]FISCAL(M)'!$BT169=\"\",\"\",'[2]FISCAL(M)'!$BT169)","v":"n.d."},{"$f":"IF('[3]MONE(M)'!$AO169=\"\",\"\",'[3]MONE(M)'!$AO169)","v":1966727.1879855446},{"$f":"IF('[4]MONE(M)'!$AO169=\"\",\"\",'[4]MONE(M)'!$AO169)","v":6142.4447428571439},{"$f":"IF('[5]MONE(M)'!$AO169=\"\",\"\",'[5]MONE(M)'!$AO169)","v":38032.85910167174},{"$f":"+'[1]MONE(M)'!$AO169","v":47008.551999850315},{"$f":"IF('[6]MONE(M)'!$AO169=\"\",\"\",'[6]MONE(M)'!$AO169)","v":11911.678702000001},{"$f":"IF('[7]MONE(M)'!$AO169=\"\",\"\",'[7]MONE(M)'!$AO169)","v":169902.86564636001},{"$f":"IF('[8]MONE(M)'!$AO169=\"\",\"\",'[8]MONE(M)'!$AO169)","v":9974.0501950399994},21.054761708404833,7.0596192452356821,6.1039308087579514,9.3584097272517486,21.714975624354892,21.022023134368652,"n.d.",{"$f":"IF('[2]FISCAL(M)'!$K169=\"\",\"\",'[2]FISCAL(M)'!$K169)","v":-245.24544325149634},{"$f":"+'[2]REAL(A)'!$AO$23","v":87995.190722536092},-0.27870323507201344,{"$f":"IF('[2]FISCAL(M)'!$L169=\"\",\"\",'[2]FISCAL(M)'!$L169)","v":-270.4000950914965},{"$f":"+'[2]REAL(A)'!$AP$23","v":"n.d."},"n.d.","n.d.",{"$f":"'[2]Gráfico REM'!BG163","v":8082.4887662434749},{"$f":"'[2]Gráfico REM'!BH163","v":26645.269816893109},{"$f":"'[2]Gráfico REM'!BI163","v":1035.0707734878345},"n.d.",13.550055751137435,1.3839408213347726,19.666810951827294,"n.d.",{"$f":"'[2]Gráfico REM'!BK163","v":8528.4317452854757},{"$f":"'[2]Gráfico REM'!BL163","v":36619.320011933109},{"$f":"'[2]Gráfico REM'!BM163","v":7764.8597508078328},"n.d.","n.d.","n.d.","n.d."]
[2003,"mayo ","2003-mayo ",{"$f":"IF('[2]REAL IPC(M)'!$AL170=\"\",\"\",+'[2]REAL IPC(M)'!$AL170)","v":9.3706536856745348},{"$f":"IF('[2]REAL IPC(M)'!$BE170=\"\",\"\",+'[2]REAL IPC(M)'!$BE170)","v":11.379535464754142},{"$f":"IF('[2]REAL IPC(M)'!$AM170=\"\",\"\",+'[2]REAL IPC(M)'!$AM170)","v":8.508859913072552},{"$f":"IF('[2]REAL IPC(M)'!$BI170=\"\",\"\",+'[2]REAL IPC(M)'!$BI170)","v":10.369256429107709},{"$f":"IF('[2]REAL IMAE(M)'!BJ170=\"\",\"\",'[2]REAL IMAE(M)'!BJ170)","v":"n.d."},{"$f":"IF('[2]REAL IMAE(M)'!BK170=\"\",\"\",'[2]REAL IMAE(M)'!BK170)","v":"n.d."},{"$f":"IF('[2]REAL IMAE(M)'!BN170=\"\",\"\",'[2]REAL IMAE(M)'!BN170)","v":"n.d."},{"$f":"IF('[2]REAL IMAE(M)'!BO170=\"\",\"\",'[2]REAL IMAE(M)'!BO170)","v":"n.d."},{"$f":"IF('[2]EXT RIN(M)'!$K170=\"\",\"\",'[2]EXT RIN(M)'!$K170)","v":7628.0775964053664},"",{"$f":"IF('[2]EXT RIN(M)'!$L170=\"\",\"\",'[2]EXT RIN(M)'!$L170)","v":8938.3776070529166},"",{"$f":"IF('[2]MONE(M)CARD'!EG170=\"\",\"\",'[2]MONE(M)CARD'!EG170)","v":6562.6843808066351},{"$f":"IF('[2]MONE(M)CARD'!EK170=\"\",\"\",'[2]MONE(M)CARD'!EK170)","v":13849.368754535912},{"$f":"IF('[2]MONE(M)CARD'!EP170=\"\",\"\",'[2]MONE(M)CARD'!EP170)","v":6388.4472412730938},{"$f":"IF('[2]MONE(M)CARD'!ES170=\"\",\"\",'[2]MONE(M)CARD'!ES170)","v":2.3040073486070067},{"$f":"IF('[2]MONE(M)CARD'!EV170=\"\",\"\",'[2]MONE(M)CARD'!EV170)","v":0.30802045108941911},{"$f":"IF('[2]MONE(M)CARD'!EZ170=\"\",\"\",'[2]MONE(M)CARD'!EZ170)","v":2.8002724369364129},{"$f":"IF('[2]MONE(M)CAPARD'!FC170=\"\",\"\",'[2]MONE(M)CAPARD'!FC170)","v":7830.3538348966358},{"$f":"IF('[2]MONE(M)CAPARD'!FG170=\"\",\"\",'[2]MONE(M)CAPARD'!FG170)","v":22545.502947815909},{"$f":"IF('[2]MONE(M)CAPARD'!FL170=\"\",\"\",'[2]MONE(M)CAPARD'!FL170)","v":6388.4472412730902},{"$f":"IF('[2]MONE(M)CAPARD'!FO170=\"\",\"\",'[2]MONE(M)CAPARD'!FO170)","v":22.065382057729899},{"$f":"IF('[2]MONE(M)CAPARD'!FR170=\"\",\"\",'[2]MONE(M)CAPARD'!FR170)","v":49.271709375675243},{"$f":"IF('[2]MONE(M)CAPARD'!FV170=\"\",\"\",'[2]MONE(M)CAPARD'!FV170)","v":41.019026380482096},{"$f":"IF('[2]MONE(M)CARD'!FV170=\"\",\"\",'[2]MONE(M)CARD'!FV170)","v":387.04621983439699},{"$f":"IF('[2]MONE(M)CARD'!GD170=\"\",\"\",'[2]MONE(M)CARD'!GD170)","v":2.2910725357047808},{"$f":"IF('[2]MONE(M)CARD'!GE170=\"\",\"\",'[2]MONE(M)CARD'!GE170)","v":2181.3157703077718},-15.009462626924641,{"$f":"IF('[9]II.2.Balance OSD-Activos'!J28=\"\",\"\",'[9]II.2.Balance OSD-Activos'!J28)","v":37.973255442554276},{"$f":"IF('[9]II.2.Balance OSD-Activos'!N28=\"\",\"\",'[9]II.2.Balance OSD-Activos'!N28)","v":12.494011696936628},{"$f":"IF('[9]II.2.Balance OSD-Activos'!R28=\"\",\"\",'[9]II.2.Balance OSD-Activos'!R28)","v":10420.01163249216},{"$f":"IF('[9]II.2.Balance OSD-Activos'!S28=\"\",\"\",'[9]II.2.Balance OSD-Activos'!S28)","v":7293.4151328507405},10457.984887934714,17763.894032482393,19.059129207806681,-3.5525223965597652,56.25646390750083,-3.6192291195280557,-3.6556893287570946,-3.5689580560282042,-4.0692812582226239,{"$f":"IF('[2]MONE(M)CAPARD'!GS170=\"\",\"\",'[2]MONE(M)CAPARD'!GS170)","v":3002.5845433144168},{"$f":"IF('[2]MONE(M)CARD'!HA170=\"\",\"\",'[2]MONE(M)CAPARD'!HA170)","v":2405.5960624677714},{"$f":"IF('[2]MONE(M)CAPARD'!HB170=\"\",\"\",'[2]MONE(M)CAPARD'!HB170)","v":596.98848084664542},"n.d.",{"$f":"IF('[10]II.2.Balance OSD-Activos'!J28=\"\",\"\",'[10]II.2.Balance OSD-Activos'!J28)","v":853.84823183255412},{"$f":"IF('[10]II.2.Balance OSD-Activos'!N28=\"\",\"\",'[10]II.2.Balance OSD-Activos'!N28)","v":343.84930158693663},{"$f":"IF('[10]II.2.Balance OSD-Activos'!R28=\"\",\"\",'[10]II.2.Balance OSD-Activos'!R28)","v":14854.538431172161},{"$f":"IF('[10]II.2.Balance OSD-Activos'!S28=\"\",\"\",'[10]II.2.Balance OSD-Activos'!S28)","v":11829.050154900739},15708.386663004716,27881.28611949239,2577.1059202811207,44.868661324440097,4200.3542245932194,37.398298155983014,56.258990104134796,51.353158621884162,-4.5447819786907075,{"$f":"IF('[2]MONE(M)CAPARD'!AS170=\"\",\"\",'[2]MONE(M)CAPARD'!AS170)","v":"n.d."},{"$f":"IF('[2]MONE(M)CAPARD'!AT170=\"\",\"\",'[2]MONE(M)CAPARD'!AT170)","v":"n.a."},{"$f":"IF('[2]MONE(M)CAPARD'!AU170=\"\",\"\",'[2]MONE(M)CAPARD'!AU170)","v":"n.d."},{"$f":"IF('[2]MONE(M)CAPARD'!AV170=\"\",\"\",'[2]MONE(M)CAPARD'!AV170)","v":"n.d."},{"$f":"IF('[2]MONE(M)CAPARD'!AW170=\"\",\"\",'[2]MONE(M)CAPARD'!AW170)","v":"n.a."},{"$f":"IF('[2]MONE(M)CAPARD'!AX170=\"\",\"\",'[2]MONE(M)CAPARD'!AX170)","v":"n.d."},{"$f":"IF('[2]MONE(M)CAPARD'!AY170=\"\",\"\",'[2]MONE(M)CAPARD'!AY170)","v":"n.a."},{"$f":"IF('[2]FISCAL(M)'!$K170=\"\",\"\",'[2]FISCAL(M)'!$K170)","v":-400.98814242022939},{"$f":"IF('[2]FISCAL(M)'!$L170=\"\",\"\",'[2]FISCAL(M)'!$L170)","v":-458.04990963022959},{"$f":"IF('[2]FISCAL(M)'!$AY170=\"\",\"\",'[2]FISCAL(M)'!$AY170)","v":"n.d."},{"$f":"IF('[2]FISCAL(M)'!$BI170=\"\",\"\",'[2]FISCAL(M)'!$BI170)","v":"n.d."},{"$f":"IF('[2]FISCAL(M)'!$BS170=\"\",\"\",'[2]FISCAL(M)'!$BS170)","v":"n.d."},{"$f":"IF('[2]FISCAL(M)'!$AZ170=\"\",\"\",'[2]FISCAL(M)'!$AZ170)","v":"n.d."},{"$f":"IF('[2]FISCAL(M)'!$BJ170=\"\",\"\",'[2]FISCAL(M)'!$BJ170)","v":"n.d."},{"$f":"IF('[2]FISCAL(M)'!$BT170=\"\",\"\",'[2]FISCAL(M)'!$BT170)","v":"n.d."},{"$f":"IF('[3]MONE(M)'!$AO170=\"\",\"\",'[3]MONE(M)'!$AO170)","v":1985439.6547130526},{"$f":"IF('[4]MONE(M)'!$AO170=\"\",\"\",'[4]MONE(M)'!$AO170)","v":6141.6707428571426},{"$f":"IF('[5]MONE(M)'!$AO170=\"\",\"\",'[5]MONE(M)'!$AO170)","v":38542.270371465063},{"$f":"+'[1]MONE(M)'!$AO170","v":47210.578546490782},{"$f":"IF('[6]MONE(M)'!$AO170=\"\",\"\",'[6]MONE(M)'!$AO170)","v":12014.256410999998},{"$f":"IF('[7]MONE(M)'!$AO170=\"\",\"\",'[7]MONE(M)'!$AO170)","v":180805.81584694001},{"$f":"IF('[8]MONE(M)'!$AO170=\"\",\"\",'[8]MONE(M)'!$AO170)","v":9979.2638480599999},19.998901065289566,6.7676630224161816,7.5498995543784142,10.671218011526996,19.699076520205992,28.09745187709305,"n.d.",{"$f":"IF('[2]FISCAL(M)'!$K170=\"\",\"\",'[2]FISCAL(M)'!$K170)","v":-400.98814242022939},{"$f":"+'[2]REAL(A)'!$AO$23","v":87995.190722536092},-0.45569324769647207,{"$f":"IF('[2]FISCAL(M)'!$L170=\"\",\"\",'[2]FISCAL(M)'!$L170)","v":-458.04990963022959},{"$f":"+'[2]REAL(A)'!$AP$23","v":"n.d."},"n.d.","n.d.",{"$f":"'[2]Gráfico REM'!BG164","v":7949.2360211884297},{"$f":"'[2]Gráfico REM'!BH164","v":26046.500542324382},{"$f":"'[2]Gráfico REM'!BI164","v":1049.6723240153055},"n.d.",16.35378425580334,-1.0661333846794685,11.629687840039082,"n.d.",{"$f":"'[2]Gráfico REM'!BK164","v":8402.3412661604289},{"$f":"'[2]Gráfico REM'!BL164","v":36025.764390384385},{"$f":"'[2]Gráfico REM'!BM164","v":7591.1924008653059},"n.d.","n.d.","n.d.","n.d."]
[2003,"junio ","2003-junio ",{"$f":"IF('[2]REAL IPC(M)'!$AL171=\"\",\"\",+'[2]REAL IPC(M)'!$AL171)","v":10.700086430423529},{"$f":"IF('[2]REAL IPC(M)'!$BE171=\"\",\"\",+'[2]REAL IPC(M)'!$BE171)","v":11.572943219958741},{"$f":"IF('[2]REAL IPC(M)'!$AM171=\"\",\"\",+'[2]REAL IPC(M)'!$AM171)","v":9.7106750914532913},{"$f":"IF('[2]REAL IPC(M)'!$BI171=\"\",\"\",+'[2]REAL IPC(M)'!$BI171)","v":10.556365512321907},{"$f":"IF('[2]REAL IMAE(M)'!BJ171=\"\",\"\",'[2]REAL IMAE(M)'!BJ171)","v":"n.d."},{"$f":"IF('[2]REAL IMAE(M)'!BK171=\"\",\"\",'[2]REAL IMAE(M)'!BK171)","v":"n.d."},{"$f":"IF('[2]REAL IMAE(M)'!BN171=\"\",\"\",'[2]REAL IMAE(M)'!BN171)","v":"n.d."},{"$f":"IF('[2]REAL IMAE(M)'!BO171=\"\",\"\",'[2]REAL IMAE(M)'!BO171)","v":"n.d."},{"$f":"IF('[2]EXT RIN(M)'!$K171=\"\",\"\",'[2]EXT RIN(M)'!$K171)","v":7813.3999860276135},"",{"$f":"IF('[2]EXT RIN(M)'!$L171=\"\",\"\",'[2]EXT RIN(M)'!$L171)","v":9064.493008427793},"",{"$f":"IF('[2]MONE(M)CARD'!EG171=\"\",\"\",'[2]MONE(M)CARD'!EG171)","v":6790.8268885406424},{"$f":"IF('[2]MONE(M)CARD'!EK171=\"\",\"\",'[2]MONE(M)CARD'!EK171)","v":14040.725876445998},{"$f":"IF('[2]MONE(M)CARD'!EP171=\"\",\"\",'[2]MONE(M)CARD'!EP171)","v":6260.0171958237879},{"$f":"IF('[2]MONE(M)CARD'!ES171=\"\",\"\",'[2]MONE(M)CARD'!ES171)","v":8.4303951016749146},{"$f":"IF('[2]MONE(M)CARD'!EV171=\"\",\"\",'[2]MONE(M)CARD'!EV171)","v":2.2374887933952037},{"$f":"IF('[2]MONE(M)CARD'!EZ171=\"\",\"\",'[2]MONE(M)CARD'!EZ171)","v":3.8218342979372988},{"$f":"IF('[2]MONE(M)CAPARD'!FC171=\"\",\"\",'[2]MONE(M)CAPARD'!FC171)","v":8050.9504162406429},{"$f":"IF('[2]MONE(M)CAPARD'!FG171=\"\",\"\",'[2]MONE(M)CAPARD'!FG171)","v":22708.256316666004},{"$f":"IF('[2]MONE(M)CAPARD'!FL171=\"\",\"\",'[2]MONE(M)CAPARD'!FL171)","v":6260.0171958237879},{"$f":"IF('[2]MONE(M)CAPARD'!FO171=\"\",\"\",'[2]MONE(M)CAPARD'!FO171)","v":28.551021680449431},{"$f":"IF('[2]MONE(M)CAPARD'!FR171=\"\",\"\",'[2]MONE(M)CAPARD'!FR171)","v":50.960616768564051},{"$f":"IF('[2]MONE(M)CAPARD'!FV171=\"\",\"\",'[2]MONE(M)CAPARD'!FV171)","v":41.867146796091873},{"$f":"IF('[2]MONE(M)CARD'!FV171=\"\",\"\",'[2]MONE(M)CARD'!FV171)","v":344.10187677863331},{"$f":"IF('[2]MONE(M)CARD'!GD171=\"\",\"\",'[2]MONE(M)CARD'!GD171)","v":2.5164391224532476},{"$f":"IF('[2]MONE(M)CARD'!GE171=\"\",\"\",'[2]MONE(M)CARD'!GE171)","v":2315.8867834339244},-7.0358739355890982,{"$f":"IF('[9]II.2.Balance OSD-Activos'!J29=\"\",\"\",'[9]II.2.Balance OSD-Activos'!J29)","v":56.131205983406318},{"$f":"IF('[9]II.2.Balance OSD-Activos'!N29=\"\",\"\",'[9]II.2.Balance OSD-Activos'!N29)","v":11.405626186707273},{"$f":"IF('[9]II.2.Balance OSD-Activos'!R29=\"\",\"\",'[9]II.2.Balance OSD-Activos'!R29)","v":10175.08486307887},{"$f":"IF('[9]II.2.Balance OSD-Activos'!S29=\"\",\"\",'[9]II.2.Balance OSD-Activos'!S29)","v":7357.7455111370036},10231.216069062277,17600.367206385985,113.49802547145602,-7.0683991989105133,1952.2366871526087,-7.3570092285887512,-4.1685903931326873,-5.8187540569643703,-2.2497960009361662,{"$f":"IF('[2]MONE(M)CAPARD'!GS171=\"\",\"\",'[2]MONE(M)CAPARD'!GS171)","v":2947.0349872238257},{"$f":"IF('[2]MONE(M)CARD'!HA171=\"\",\"\",'[2]MONE(M)CAPARD'!HA171)","v":2541.1557422039241},{"$f":"IF('[2]MONE(M)CAPARD'!HB171=\"\",\"\",'[2]MONE(M)CAPARD'!HB171)","v":405.87924501990165},"n.d.",{"$f":"IF('[10]II.2.Balance OSD-Activos'!J29=\"\",\"\",'[10]II.2.Balance OSD-Activos'!J29)","v":890.27435999340639},{"$f":"IF('[10]II.2.Balance OSD-Activos'!N29=\"\",\"\",'[10]II.2.Balance OSD-Activos'!N29)","v":353.32519433670723},{"$f":"IF('[10]II.2.Balance OSD-Activos'!R29=\"\",\"\",'[10]II.2.Balance OSD-Activos'!R29)","v":14599.801919848869},{"$f":"IF('[10]II.2.Balance OSD-Activos'!S29=\"\",\"\",'[10]II.2.Balance OSD-Activos'!S29)","v":11917.335438827002},15490.076279842275,27760.736913005985,3286.2058485371954,40.698581234113632,63474.495116997095,32.929536483071487,55.218069465980022,48.550354666184688,-2.8028039556994742,{"$f":"IF('[2]MONE(M)CAPARD'!AS171=\"\",\"\",'[2]MONE(M)CAPARD'!AS171)","v":"n.d."},{"$f":"IF('[2]MONE(M)CAPARD'!AT171=\"\",\"\",'[2]MONE(M)CAPARD'!AT171)","v":"n.a."},{"$f":"IF('[2]MONE(M)CAPARD'!AU171=\"\",\"\",'[2]MONE(M)CAPARD'!AU171)","v":"n.d."},{"$f":"IF('[2]MONE(M)CAPARD'!AV171=\"\",\"\",'[2]MONE(M)CAPARD'!AV171)","v":"n.d."},{"$f":"IF('[2]MONE(M)CAPARD'!AW171=\"\",\"\",'[2]MONE(M)CAPARD'!AW171)","v":"n.a."},{"$f":"IF('[2]MONE(M)CAPARD'!AX171=\"\",\"\",'[2]MONE(M)CAPARD'!AX171)","v":"n.d."},{"$f":"IF('[2]MONE(M)CAPARD'!AY171=\"\",\"\",'[2]MONE(M)CAPARD'!AY171)","v":"n.a."},{"$f":"IF('[2]FISCAL(M)'!$K171=\"\",\"\",'[2]FISCAL(M)'!$K171)","v":-730.48956258168459},{"$f":"IF('[2]FISCAL(M)'!$L171=\"\",\"\",'[2]FISCAL(M)'!$L171)","v":-760.45859779168495},{"$f":"IF('[2]FISCAL(M)'!$AY171=\"\",\"\",'[2]FISCAL(M)'!$AY171)","v":"n.d."},{"$f":"IF('[2]FISCAL(M)'!$BI171=\"\",\"\",'[2]FISCAL(M)'!$BI171)","v":"n.d."},{"$f":"IF('[2]FISCAL(M)'!$BS171=\"\",\"\",'[2]FISCAL(M)'!$BS171)","v":"n.d."},{"$f":"IF('[2]FISCAL(M)'!$AZ171=\"\",\"\",'[2]FISCAL(M)'!$AZ171)","v":"n.d."},{"$f":"IF('[2]FISCAL(M)'!$BJ171=\"\",\"\",'[2]FISCAL(M)'!$BJ171)","v":"n.d."},{"$f":"IF('[2]FISCAL(M)'!$BT171=\"\",\"\",'[2]FISCAL(M)'!$BT171)","v":"n.d."},{"$f":"IF('[3]MONE(M)'!$AO171=\"\",\"\",'[3]MONE(M)'!$AO171)","v":1998030.5642120999},{"$f":"IF('[4]MONE(M)'!$AO171=\"\",\"\",'[4]MONE(M)'!$AO171)","v":6186.051742857142},{"$f":"IF('[5]MONE(M)'!$AO171=\"\",\"\",'[5]MONE(M)'!$AO171)","v":38346.304910672923},{"$f":"+'[1]MONE(M)'!$AO171","v":47538.801702526427},{"$f":"IF('[6]MONE(M)'!$AO171=\"\",\"\",'[6]MONE(M)'!$AO171)","v":12226.691024},{"$f":"IF('[7]MONE(M)'!$AO171=\"\",\"\",'[7]MONE(M)'!$AO171)","v":193984.12053185},{"$f":"IF('[8]MONE(M)'!$AO171=\"\",\"\",'[8]MONE(M)'!$AO171)","v":10011.83390279},17.536565853873775,6.9581522899829773,5.2102298630555266,12.289096982609159,22.777963131517588,32.716896743169357,"n.d.",{"$f":"IF('[2]FISCAL(M)'!$K171=\"\",\"\",'[2]FISCAL(M)'!$K171)","v":-730.48956258168459},{"$f":"+'[2]REAL(A)'!$AO$23","v":87995.190722536092},-0.83014714393317612,{"$f":"IF('[2]FISCAL(M)'!$L171=\"\",\"\",'[2]FISCAL(M)'!$L171)","v":-760.45859779168495},{"$f":"+'[2]REAL(A)'!$AP$23","v":"n.d."},"n.d.","n.d.",{"$f":"'[2]Gráfico REM'!BG165","v":7901.3010483531034},{"$f":"'[2]Gráfico REM'!BH165","v":25859.961965965398},{"$f":"'[2]Gráfico REM'!BI165","v":1169.6838687733552},"n.d.",13.410546307569371,-3.2416724404438879,25.061454323023668,"n.d.",{"$f":"'[2]Gráfico REM'!BK165","v":8342.3016350051039},{"$f":"'[2]Gráfico REM'!BL165","v":35871.795868755398},{"$f":"'[2]Gráfico REM'!BM165","v":7708.1003401533553},"n.d.","n.d.","n.d.","n.d."]
[2003,"julio","2003-julio",{"$f":"IF('[2]REAL IPC(M)'!$AL172=\"\",\"\",+'[2]REAL IPC(M)'!$AL172)","v":11.265432098765427},{"$f":"IF('[2]REAL IPC(M)'!$BE172=\"\",\"\",+'[2]REAL IPC(M)'!$BE172)","v":11.755529534601372},{"$f":"IF('[2]REAL IPC(M)'!$AM172=\"\",\"\",+'[2]REAL IPC(M)'!$AM172)","v":10.232711668592188},{"$f":"IF('[2]REAL IPC(M)'!$BI172=\"\",\"\",+'[2]REAL IPC(M)'!$BI172)","v":10.734148339420591},{"$f":"IF('[2]REAL IMAE(M)'!BJ172=\"\",\"\",'[2]REAL IMAE(M)'!BJ172)","v":"n.d."},{"$f":"IF('[2]REAL IMAE(M)'!BK172=\"\",\"\",'[2]REAL IMAE(M)'!BK172)","v":"n.d."},{"$f":"IF('[2]REAL IMAE(M)'!BN172=\"\",\"\",'[2]REAL IMAE(M)'!BN172)","v":"n.d."},{"$f":"IF('[2]REAL IMAE(M)'!BO172=\"\",\"\",'[2]REAL IMAE(M)'!BO172)","v":"n.d."},{"$f":"IF('[2]EXT RIN(M)'!$K172=\"\",\"\",'[2]EXT RIN(M)'!$K172)","v":7650.0005756941255},"",{"$f":"IF('[2]EXT RIN(M)'!$L172=\"\",\"\",'[2]EXT RIN(M)'!$L172)","v":8919.3132505869762},"",{"$f":"IF('[2]MONE(M)CARD'!EG172=\"\",\"\",'[2]MONE(M)CARD'!EG172)","v":6547.4233187926475},{"$f":"IF('[2]MONE(M)CARD'!EK172=\"\",\"\",'[2]MONE(M)CARD'!EK172)","v":13671.740691556755},{"$f":"IF('[2]MONE(M)CARD'!EP172=\"\",\"\",'[2]MONE(M)CARD'!EP172)","v":6320.364498088471},{"$f":"IF('[2]MONE(M)CARD'!ES172=\"\",\"\",'[2]MONE(M)CARD'!ES172)","v":3.3118107779941397},{"$f":"IF('[2]MONE(M)CARD'!EV172=\"\",\"\",'[2]MONE(M)CARD'!EV172)","v":-0.8755291708105295},{"$f":"IF('[2]MONE(M)CARD'!EZ172=\"\",\"\",'[2]MONE(M)CARD'!EZ172)","v":1.5739950689650062},{"$f":"IF('[2]MONE(M)CAPARD'!FC172=\"\",\"\",'[2]MONE(M)CAPARD'!FC172)","v":7772.473595332649},{"$f":"IF('[2]MONE(M)CAPARD'!FG172=\"\",\"\",'[2]MONE(M)CAPARD'!FG172)","v":22421.533343366751},{"$f":"IF('[2]MONE(M)CAPARD'!FL172=\"\",\"\",'[2]MONE(M)CAPARD'!FL172)","v":6320.3644980884637},{"$f":"IF('[2]MONE(M)CAPARD'!FO172=\"\",\"\",'[2]MONE(M)CAPARD'!FO172)","v":22.641882502571153},{"$f":"IF('[2]MONE(M)CAPARD'!FR172=\"\",\"\",'[2]MONE(M)CAPARD'!FR172)","v":48.026147791247496},{"$f":"IF('[2]MONE(M)CAPARD'!FV172=\"\",\"\",'[2]MONE(M)CAPARD'!FV172)","v":39.750432381926103},{"$f":"IF('[2]MONE(M)CARD'!FV172=\"\",\"\",'[2]MONE(M)CARD'!FV172)","v":328.3467170793881},{"$f":"IF('[2]MONE(M)CARD'!GD172=\"\",\"\",'[2]MONE(M)CARD'!GD172)","v":2.47649242738306},{"$f":"IF('[2]MONE(M)CARD'!GE172=\"\",\"\",'[2]MONE(M)CARD'!GE172)","v":2114.0087540897025},-12.729072904631277,{"$f":"IF('[9]II.2.Balance OSD-Activos'!J30=\"\",\"\",'[9]II.2.Balance OSD-Activos'!J30)","v":46.900237692366012},{"$f":"IF('[9]II.2.Balance OSD-Activos'!N30=\"\",\"\",'[9]II.2.Balance OSD-Activos'!N30)","v":12.710280309837836},{"$f":"IF('[9]II.2.Balance OSD-Activos'!R30=\"\",\"\",'[9]II.2.Balance OSD-Activos'!R30)","v":9734.5230223077124},{"$f":"IF('[9]II.2.Balance OSD-Activos'!S30=\"\",\"\",'[9]II.2.Balance OSD-Activos'!S30)","v":7257.4857814721518},9781.4232600000778,17051.619321782069,25.831758807028415,-9.7813586588617163,461.83169039166467,-9.9042113243706265,-7.4077327372541246,-8.7283999570950463,-2.909645900130676,{"$f":"IF('[2]MONE(M)CAPARD'!GS172=\"\",\"\",'[2]MONE(M)CAPARD'!GS172)","v":2955.6929822289321},{"$f":"IF('[2]MONE(M)CARD'!HA172=\"\",\"\",'[2]MONE(M)CAPARD'!HA172)","v":2331.2432259997026},{"$f":"IF('[2]MONE(M)CAPARD'!HB172=\"\",\"\",'[2]MONE(M)CAPARD'!HB172)","v":624.44975622922948},"n.d.",{"$f":"IF('[10]II.2.Balance OSD-Activos'!J30=\"\",\"\",'[10]II.2.Balance OSD-Activos'!J30)","v":855.53883028236601},{"$f":"IF('[10]II.2.Balance OSD-Activos'!N30=\"\",\"\",'[10]II.2.Balance OSD-Activos'!N30)","v":384.87381311983785},{"$f":"IF('[10]II.2.Balance OSD-Activos'!R30=\"\",\"\",'[10]II.2.Balance OSD-Activos'!R30)","v":14165.180569957713},{"$f":"IF('[10]II.2.Balance OSD-Activos'!S30=\"\",\"\",'[10]II.2.Balance OSD-Activos'!S30)","v":11835.801836052153},15020.719400240079,27241.395049412069,2195.3818794752256,38.54311997701312,16912.552024146742,31.102788730216989,51.003220656718895,45.814052415806493,-2.7363022503781949,{"$f":"IF('[2]MONE(M)CAPARD'!AS172=\"\",\"\",'[2]MONE(M)CAPARD'!AS172)","v":"n.d."},{"$f":"IF('[2]MONE(M)CAPARD'!AT172=\"\",\"\",'[2]MONE(M)CAPARD'!AT172)","v":"n.a."},{"$f":"IF('[2]MONE(M)CAPARD'!AU172=\"\",\"\",'[2]MONE(M)CAPARD'!AU172)","v":"n.d."},{"$f":"IF('[2]MONE(M)CAPARD'!AV172=\"\",\"\",'[2]MONE(M)CAPARD'!AV172)","v":"n.d."},{"$f":"IF('[2]MONE(M)CAPARD'!AW172=\"\",\"\",'[2]MONE(M)CAPARD'!AW172)","v":"n.a."},{"$f":"IF('[2]MONE(M)CAPARD'!AX172=\"\",\"\",'[2]MONE(M)CAPARD'!AX172)","v":"n.d."},{"$f":"IF('[2]MONE(M)CAPARD'!AY172=\"\",\"\",'[2]MONE(M)CAPARD'!AY172)","v":"n.a."},{"$f":"IF('[2]FISCAL(M)'!$K172=\"\",\"\",'[2]FISCAL(M)'!$K172)","v":-1206.9675415556133},{"$f":"IF('[2]FISCAL(M)'!$L172=\"\",\"\",'[2]FISCAL(M)'!$L172)","v":-1421.1726923156136},{"$f":"IF('[2]FISCAL(M)'!$AY172=\"\",\"\",'[2]FISCAL(M)'!$AY172)","v":"n.d."},{"$f":"IF('[2]FISCAL(M)'!$BI172=\"\",\"\",'[2]FISCAL(M)'!$BI172)","v":"n.d."},{"$f":"IF('[2]FISCAL(M)'!$BS172=\"\",\"\",'[2]FISCAL(M)'!$BS172)","v":"n.d."},{"$f":"IF('[2]FISCAL(M)'!$AZ172=\"\",\"\",'[2]FISCAL(M)'!$AZ172)","v":"n.d."},{"$f":"IF('[2]FISCAL(M)'!$BJ172=\"\",\"\",'[2]FISCAL(M)'!$BJ172)","v":"n.d."},{"$f":"IF('[2]FISCAL(M)'!$BT172=\"\",\"\",'[2]FISCAL(M)'!$BT172)","v":"n.d."},{"$f":"IF('[3]MONE(M)'!$AO172=\"\",\"\",'[3]MONE(M)'!$AO172)","v":2029534.6683925537},{"$f":"IF('[4]MONE(M)'!$AO172=\"\",\"\",'[4]MONE(M)'!$AO172)","v":6222.6887428571426},{"$f":"IF('[5]MONE(M)'!$AO172=\"\",\"\",'[5]MONE(M)'!$AO172)","v":38154.617088068444},{"$f":"+'[1]MONE(M)'!$AO172","v":48027.698329458064},{"$f":"IF('[6]MONE(M)'!$AO172=\"\",\"\",'[6]MONE(M)'!$AO172)","v":12599.967671},{"$f":"IF('[7]MONE(M)'!$AO172=\"\",\"\",'[7]MONE(M)'!$AO172)","v":197515.72991003998},{"$f":"IF('[8]MONE(M)'!$AO172=\"\",\"\",'[8]MONE(M)'!$AO172)","v":10045.76826959},18.269539431556382,7.5591431039838897,4.6669888491225331,12.154026109536531,24.409880852049646,35.978471604020392,"n.d.",{"$f":"IF('[2]FISCAL(M)'!$K172=\"\",\"\",'[2]FISCAL(M)'!$K172)","v":-1206.9675415556133},{"$f":"+'[2]REAL(A)'!$AO$23","v":87995.190722536092},-1.3716289852264638,{"$f":"IF('[2]FISCAL(M)'!$L172=\"\",\"\",'[2]FISCAL(M)'!$L172)","v":-1421.1726923156136},{"$f":"+'[2]REAL(A)'!$AP$23","v":"n.d."},"n.d.","n.d.",{"$f":"'[2]Gráfico REM'!BG166","v":7750.7483942063946},{"$f":"'[2]Gráfico REM'!BH166","v":25317.856524754632},{"$f":"'[2]Gráfico REM'!BI166","v":1211.603442771687},"n.d.",7.8392673752365249,-5.4490624700293093,30.598109812475549,"n.d.",{"$f":"'[2]Gráfico REM'!BK166","v":8309.775339908394},{"$f":"'[2]Gráfico REM'!BL166","v":35363.624794344636},{"$f":"'[2]Gráfico REM'!BM166","v":7537.7424915516867},"n.d.","n.d.","n.d.","n.d."]
[2003,"agosto","2003-agosto",{"$f":"IF('[2]REAL IPC(M)'!$AL173=\"\",\"\",+'[2]REAL IPC(M)'!$AL173)","v":12.043671102012986},{"$f":"IF('[2]REAL IPC(M)'!$BE173=\"\",\"\",+'[2]REAL IPC(M)'!$BE173)","v":11.925223430112863},{"$f":"IF('[2]REAL IPC(M)'!$AM173=\"\",\"\",+'[2]REAL IPC(M)'!$AM173)","v":10.903119868637123},{"$f":"IF('[2]REAL IPC(M)'!$BI173=\"\",\"\",+'[2]REAL IPC(M)'!$BI173)","v":10.900548407398913},{"$f":"IF('[2]REAL IMAE(M)'!BJ173=\"\",\"\",'[2]REAL IMAE(M)'!BJ173)","v":"n.d."},{"$f":"IF('[2]REAL IMAE(M)'!BK173=\"\",\"\",'[2]REAL IMAE(M)'!BK173)","v":"n.d."},{"$f":"IF('[2]REAL IMAE(M)'!BN173=\"\",\"\",'[2]REAL IMAE(M)'!BN173)","v":"n.d."},{"$f":"IF('[2]REAL IMAE(M)'!BO173=\"\",\"\",'[2]REAL IMAE(M)'!BO173)","v":"n.d."},{"$f":"IF('[2]EXT RIN(M)'!$K173=\"\",\"\",'[2]EXT RIN(M)'!$K173)","v":8078.4117113547582},"",{"$f":"IF('[2]EXT RIN(M)'!$L173=\"\",\"\",'[2]EXT RIN(M)'!$L173)","v":9299.0378931412379},"",{"$f":"IF('[2]MONE(M)CARD'!EG173=\"\",\"\",'[2]MONE(M)CARD'!EG173)","v":6446.7226806314247},{"$f":"IF('[2]MONE(M)CARD'!EK173=\"\",\"\",'[2]MONE(M)CARD'!EK173)","v":14200.191327376368},{"$f":"IF('[2]MONE(M)CARD'!EP173=\"\",\"\",'[2]MONE(M)CARD'!EP173)","v":6228.053599279956},{"$f":"IF('[2]MONE(M)CARD'!ES173=\"\",\"\",'[2]MONE(M)CARD'!ES173)","v":2.2064461812811409},{"$f":"IF('[2]MONE(M)CARD'!EV173=\"\",\"\",'[2]MONE(M)CARD'!EV173)","v":2.0382987773966743},{"$f":"IF('[2]MONE(M)CARD'!EZ173=\"\",\"\",'[2]MONE(M)CARD'!EZ173)","v":3.3122256903166614},{"$f":"IF('[2]MONE(M)CAPARD'!FC173=\"\",\"\",'[2]MONE(M)CAPARD'!FC173)","v":7714.7660906614246},{"$f":"IF('[2]MONE(M)CAPARD'!FG173=\"\",\"\",'[2]MONE(M)CAPARD'!FG173)","v":22983.440774556373},{"$f":"IF('[2]MONE(M)CAPARD'!FL173=\"\",\"\",'[2]MONE(M)CAPARD'!FL173)","v":6228.053599279956},{"$f":"IF('[2]MONE(M)CAPARD'!FO173=\"\",\"\",'[2]MONE(M)CAPARD'!FO173)","v":22.310027018120483},{"$f":"IF('[2]MONE(M)CAPARD'!FR173=\"\",\"\",'[2]MONE(M)CAPARD'!FR173)","v":51.71239647864769},{"$f":"IF('[2]MONE(M)CAPARD'!FV173=\"\",\"\",'[2]MONE(M)CAPARD'!FV173)","v":41.951209421108459},{"$f":"IF('[2]MONE(M)CARD'!FV173=\"\",\"\",'[2]MONE(M)CARD'!FV173)","v":340.45908592439991},{"$f":"IF('[2]MONE(M)CARD'!GD173=\"\",\"\",'[2]MONE(M)CARD'!GD173)","v":2.9495790783997986},{"$f":"IF('[2]MONE(M)CARD'!GE173=\"\",\"\",'[2]MONE(M)CARD'!GE173)","v":2177.5794721601719},-10.03658821951351,{"$f":"IF('[9]II.2.Balance OSD-Activos'!J31=\"\",\"\",'[9]II.2.Balance OSD-Activos'!J31)","v":53.159561936859909},{"$f":"IF('[9]II.2.Balance OSD-Activos'!N31=\"\",\"\",'[9]II.2.Balance OSD-Activos'!N31)","v":12.975130687494396},{"$f":"IF('[9]II.2.Balance OSD-Activos'!R31=\"\",\"\",'[9]II.2.Balance OSD-Activos'!R31)","v":9840.7409749001181},{"$f":"IF('[9]II.2.Balance OSD-Activos'!S31=\"\",\"\",'[9]II.2.Balance OSD-Activos'!S31)","v":7399.7093346766651},9893.9005368369781,17306.585002201136,39.633096281139203,-8.8790277604025132,379.23384489445971,-9.04972226684826,-6.5367752299638315,-7.8355164959581725,0.89288346113687389,{"$f":"IF('[2]MONE(M)CAPARD'!GS173=\"\",\"\",'[2]MONE(M)CAPARD'!GS173)","v":3103.4750772379639},{"$f":"IF('[2]MONE(M)CARD'!HA173=\"\",\"\",'[2]MONE(M)CAPARD'!HA173)","v":2394.8822395701714},{"$f":"IF('[2]MONE(M)CAPARD'!HB173=\"\",\"\",'[2]MONE(M)CAPARD'!HB173)","v":708.59283766779254},"n.d.",{"$f":"IF('[10]II.2.Balance OSD-Activos'!J31=\"\",\"\",'[10]II.2.Balance OSD-Activos'!J31)","v":850.93345891685988},{"$f":"IF('[10]II.2.Balance OSD-Activos'!N31=\"\",\"\",'[10]II.2.Balance OSD-Activos'!N31)","v":376.64580374749443},{"$f":"IF('[10]II.2.Balance OSD-Activos'!R31=\"\",\"\",'[10]II.2.Balance OSD-Activos'!R31)","v":14308.109332280117},{"$f":"IF('[10]II.2.Balance OSD-Activos'!S31=\"\",\"\",'[10]II.2.Balance OSD-Activos'!S31)","v":11992.685848816665},15159.042791196976,27528.374443761139,2135.1289075501968,39.611946998319603,13811.337083274662,32.238671958377111,51.475556996775104,46.599598476095913,0.78554606028941976,{"$f":"IF('[2]MONE(M)CAPARD'!AS173=\"\",\"\",'[2]MONE(M)CAPARD'!AS173)","v":"n.d."},{"$f":"IF('[2]MONE(M)CAPARD'!AT173=\"\",\"\",'[2]MONE(M)CAPARD'!AT173)","v":"n.a."},{"$f":"IF('[2]MONE(M)CAPARD'!AU173=\"\",\"\",'[2]MONE(M)CAPARD'!AU173)","v":"n.d."},{"$f":"IF('[2]MONE(M)CAPARD'!AV173=\"\",\"\",'[2]MONE(M)CAPARD'!AV173)","v":"n.d."},{"$f":"IF('[2]MONE(M)CAPARD'!AW173=\"\",\"\",'[2]MONE(M)CAPARD'!AW173)","v":"n.a."},{"$f":"IF('[2]MONE(M)CAPARD'!AX173=\"\",\"\",'[2]MONE(M)CAPARD'!AX173)","v":"n.d."},{"$f":"IF('[2]MONE(M)CAPARD'!AY173=\"\",\"\",'[2]MONE(M)CAPARD'!AY173)","v":"n.a."},{"$f":"IF('[2]FISCAL(M)'!$K173=\"\",\"\",'[2]FISCAL(M)'!$K173)","v":-1374.278820882706},{"$f":"IF('[2]FISCAL(M)'!$L173=\"\",\"\",'[2]FISCAL(M)'!$L173)","v":-1700.7774350427064},{"$f":"IF('[2]FISCAL(M)'!$AY173=\"\",\"\",'[2]FISCAL(M)'!$AY173)","v":"n.d."},{"$f":"IF('[2]FISCAL(M)'!$BI173=\"\",\"\",'[2]FISCAL(M)'!$BI173)","v":"n.d."},{"$f":"IF('[2]FISCAL(M)'!$BS173=\"\",\"\",'[2]FISCAL(M)'!$BS173)","v":"n.d."},{"$f":"IF('[2]FISCAL(M)'!$AZ173=\"\",\"\",'[2]FISCAL(M)'!$AZ173)","v":"n.d."},{"$f":"IF('[2]FISCAL(M)'!$BJ173=\"\",\"\",'[2]FISCAL(M)'!$BJ173)","v":"n.d."},{"$f":"IF('[2]FISCAL(M)'!$BT173=\"\",\"\",'[2]FISCAL(M)'!$BT173)","v":"n.d."},{"$f":"IF('[3]MONE(M)'!$AO173=\"\",\"\",'[3]MONE(M)'!$AO173)","v":2042080.423384988},{"$f":"IF('[4]MONE(M)'!$AO173=\"\",\"\",'[4]MONE(M)'!$AO173)","v":6220.5107428571428},{"$f":"IF('[5]MONE(M)'!$AO173=\"\",\"\",'[5]MONE(M)'!$AO173)","v":38546.529042018679},{"$f":"+'[1]MONE(M)'!$AO173","v":48699.381771089698},{"$f":"IF('[6]MONE(M)'!$AO173=\"\",\"\",'[6]MONE(M)'!$AO173)","v":12938.940635999999},{"$f":"IF('[7]MONE(M)'!$AO173=\"\",\"\",'[7]MONE(M)'!$AO173)","v":193800.72302725},{"$f":"IF('[8]MONE(M)'!$AO173=\"\",\"\",'[8]MONE(M)'!$AO173)","v":10095.383021199999},17.473419553432802,7.3809726014518962,5.4644339871294134,12.743330419152365,22.72292822673576,33.314392717339473,"n.d.",{"$f":"IF('[2]FISCAL(M)'!$K173=\"\",\"\",'[2]FISCAL(M)'!$K173)","v":-1374.278820882706},{"$f":"+'[2]REAL(A)'!$AO$23","v":87995.190722536092},-1.5617658301531983,{"$f":"IF('[2]FISCAL(M)'!$L173=\"\",\"\",'[2]FISCAL(M)'!$L173)","v":-1700.7774350427064},{"$f":"+'[2]REAL(A)'!$AP$23","v":"n.d."},"n.d.","n.d.",{"$f":"'[2]Gráfico REM'!BG167","v":8127.5974801717839},{"$f":"'[2]Gráfico REM'!BH167","v":25688.126176884172},{"$f":"'[2]Gráfico REM'!BI167","v":1122.0245258314744},"n.d.",13.270845087141669,-4.3666049751465374,19.401636793435916,"n.d.",{"$f":"'[2]Gráfico REM'!BK167","v":8708.0056806537832},{"$f":"'[2]Gráfico REM'!BL167","v":35783.509198084168},{"$f":"'[2]Gráfico REM'!BM167","v":7378.6127488914735},"n.d.","n.d.","n.d.","n.d."]
[2003,"septiembre","2003-septiembre",{"$f":"IF('[2]REAL IPC(M)'!$AL174=\"\",\"\",+'[2]REAL IPC(M)'!$AL174)","v":12.324122732666565},{"$f":"IF('[2]REAL IPC(M)'!$BE174=\"\",\"\",+'[2]REAL IPC(M)'!$BE174)","v":12.080011634866562},{"$f":"IF('[2]REAL IPC(M)'!$AM174=\"\",\"\",+'[2]REAL IPC(M)'!$AM174)","v":11.134693877551015},{"$f":"IF('[2]REAL IPC(M)'!$BI174=\"\",\"\",+'[2]REAL IPC(M)'!$BI174)","v":11.053552193619677},{"$f":"IF('[2]REAL IMAE(M)'!BJ174=\"\",\"\",'[2]REAL IMAE(M)'!BJ174)","v":"n.d."},{"$f":"IF('[2]REAL IMAE(M)'!BK174=\"\",\"\",'[2]REAL IMAE(M)'!BK174)","v":"n.d."},{"$f":"IF('[2]REAL IMAE(M)'!BN174=\"\",\"\",'[2]REAL IMAE(M)'!BN174)","v":"n.d."},{"$f":"IF('[2]REAL IMAE(M)'!BO174=\"\",\"\",'[2]REAL IMAE(M)'!BO174)","v":"n.d."},{"$f":"IF('[2]EXT RIN(M)'!$K174=\"\",\"\",'[2]EXT RIN(M)'!$K174)","v":7983.5524035407252},"",{"$f":"IF('[2]EXT RIN(M)'!$L174=\"\",\"\",'[2]EXT RIN(M)'!$L174)","v":9030.2890626496846},"",{"$f":"IF('[2]MONE(M)CARD'!EG174=\"\",\"\",'[2]MONE(M)CARD'!EG174)","v":6275.5088537224256},{"$f":"IF('[2]MONE(M)CARD'!EK174=\"\",\"\",'[2]MONE(M)CARD'!EK174)","v":14594.943122051784},{"$f":"IF('[2]MONE(M)CARD'!EP174=\"\",\"\",'[2]MONE(M)CARD'!EP174)","v":6185.8371747074161},{"$f":"IF('[2]MONE(M)CARD'!ES174=\"\",\"\",'[2]MONE(M)CARD'!ES174)","v":1.3609212544896776},{"$f":"IF('[2]MONE(M)CARD'!EV174=\"\",\"\",'[2]MONE(M)CARD'!EV174)","v":2.1824449237854315},{"$f":"IF('[2]MONE(M)CARD'!EZ174=\"\",\"\",'[2]MONE(M)CARD'!EZ174)","v":2.8967917779718189},{"$f":"IF('[2]MONE(M)CAPARD'!FC174=\"\",\"\",'[2]MONE(M)CAPARD'!FC174)","v":7534.8206438424259},{"$f":"IF('[2]MONE(M)CAPARD'!FG174=\"\",\"\",'[2]MONE(M)CAPARD'!FG174)","v":23351.788850851786},{"$f":"IF('[2]MONE(M)CAPARD'!FL174=\"\",\"\",'[2]MONE(M)CAPARD'!FL174)","v":6185.8371747074125},{"$f":"IF('[2]MONE(M)CAPARD'!FO174=\"\",\"\",'[2]MONE(M)CAPARD'!FO174)","v":21.701105001898302},{"$f":"IF('[2]MONE(M)CAPARD'!FR174=\"\",\"\",'[2]MONE(M)CAPARD'!FR174)","v":51.221893863991518},{"$f":"IF('[2]MONE(M)CAPARD'!FV174=\"\",\"\",'[2]MONE(M)CAPARD'!FV174)","v":40.988877093423582},{"$f":"IF('[2]MONE(M)CARD'!FV174=\"\",\"\",'[2]MONE(M)CARD'!FV174)","v":323.06992095125315},{"$f":"IF('[2]MONE(M)CARD'!GD174=\"\",\"\",'[2]MONE(M)CARD'!GD174)","v":2.6986666836617017},{"$f":"IF('[2]MONE(M)CARD'!GE174=\"\",\"\",'[2]MONE(M)CARD'!GE174)","v":2074.1568188023252},-17.464448288639346,{"$f":"IF('[9]II.2.Balance OSD-Activos'!J32=\"\",\"\",'[9]II.2.Balance OSD-Activos'!J32)","v":53.147199793231813},{"$f":"IF('[9]II.2.Balance OSD-Activos'!N32=\"\",\"\",'[9]II.2.Balance OSD-Activos'!N32)","v":13.426554447073055},{"$f":"IF('[9]II.2.Balance OSD-Activos'!R32=\"\",\"\",'[9]II.2.Balance OSD-Activos'!R32)","v":10052.889794803639},{"$f":"IF('[9]II.2.Balance OSD-Activos'!S32=\"\",\"\",'[9]II.2.Balance OSD-Activos'!S32)","v":7349.9034520818523},10106.03699459687,17469.367001125796,76.489429603110111,-6.7993473922464691,1.1124604375835068,-7.0312972030283856,-7.8553950611366163,-7.2410432183270812,0.59447327763109126,{"$f":"IF('[2]MONE(M)CAPARD'!GS174=\"\",\"\",'[2]MONE(M)CAPARD'!GS174)","v":3109.8287711157027},{"$f":"IF('[2]MONE(M)CARD'!HA174=\"\",\"\",'[2]MONE(M)CAPARD'!HA174)","v":2291.4776327523255},{"$f":"IF('[2]MONE(M)CAPARD'!HB174=\"\",\"\",'[2]MONE(M)CAPARD'!HB174)","v":818.35113836337723},"n.d.",{"$f":"IF('[10]II.2.Balance OSD-Activos'!J32=\"\",\"\",'[10]II.2.Balance OSD-Activos'!J32)","v":654.27011133323174},{"$f":"IF('[10]II.2.Balance OSD-Activos'!N32=\"\",\"\",'[10]II.2.Balance OSD-Activos'!N32)","v":403.83719067707307},{"$f":"IF('[10]II.2.Balance OSD-Activos'!R32=\"\",\"\",'[10]II.2.Balance OSD-Activos'!R32)","v":14692.342973333638},{"$f":"IF('[10]II.2.Balance OSD-Activos'!S32=\"\",\"\",'[10]II.2.Balance OSD-Activos'!S32)","v":11941.86910227185},15346.613084666869,27692.319377615793,2072.6781317699924,41.530686615767422,2941.2100235039729,35.874171025437931,49.713369411509433,47.040854781229832,0.44125630513391911,{"$f":"IF('[2]MONE(M)CAPARD'!AS174=\"\",\"\",'[2]MONE(M)CAPARD'!AS174)","v":"n.d."},{"$f":"IF('[2]MONE(M)CAPARD'!AT174=\"\",\"\",'[2]MONE(M)CAPARD'!AT174)","v":"n.a."},{"$f":"IF('[2]MONE(M)CAPARD'!AU174=\"\",\"\",'[2]MONE(M)CAPARD'!AU174)","v":"n.d."},{"$f":"IF('[2]MONE(M)CAPARD'!AV174=\"\",\"\",'[2]MONE(M)CAPARD'!AV174)","v":"n.d."},{"$f":"IF('[2]MONE(M)CAPARD'!AW174=\"\",\"\",'[2]MONE(M)CAPARD'!AW174)","v":"n.a."},{"$f":"IF('[2]MONE(M)CAPARD'!AX174=\"\",\"\",'[2]MONE(M)CAPARD'!AX174)","v":"n.d."},{"$f":"IF('[2]MONE(M)CAPARD'!AY174=\"\",\"\",'[2]MONE(M)CAPARD'!AY174)","v":"n.a."},{"$f":"IF('[2]FISCAL(M)'!$K174=\"\",\"\",'[2]FISCAL(M)'!$K174)","v":-1541.503388740239},{"$f":"IF('[2]FISCAL(M)'!$L174=\"\",\"\",'[2]FISCAL(M)'!$L174)","v":-1966.9336404402395},{"$f":"IF('[2]FISCAL(M)'!$AY174=\"\",\"\",'[2]FISCAL(M)'!$AY174)","v":"n.d."},{"$f":"IF('[2]FISCAL(M)'!$BI174=\"\",\"\",'[2]FISCAL(M)'!$BI174)","v":"n.d."},{"$f":"IF('[2]FISCAL(M)'!$BS174=\"\",\"\",'[2]FISCAL(M)'!$BS174)","v":"n.d."},{"$f":"IF('[2]FISCAL(M)'!$AZ174=\"\",\"\",'[2]FISCAL(M)'!$AZ174)","v":"n.d."},{"$f":"IF('[2]FISCAL(M)'!$BJ174=\"\",\"\",'[2]FISCAL(M)'!$BJ174)","v":"n.d."},{"$f":"IF('[2]FISCAL(M)'!$BT174=\"\",\"\",'[2]FISCAL(M)'!$BT174)","v":"n.d."},{"$f":"IF('[3]MONE(M)'!$AO174=\"\",\"\",'[3]MONE(M)'!$AO174)","v":2079781.4646080632},{"$f":"IF('[4]MONE(M)'!$AO174=\"\",\"\",'[4]MONE(M)'!$AO174)","v":6247.6117428571433},{"$f":"IF('[5]MONE(M)'!$AO174=\"\",\"\",'[5]MONE(M)'!$AO174)","v":36597.350374896159},{"$f":"+'[1]MONE(M)'!$AO174","v":49180.531348771467},{"$f":"IF('[6]MONE(M)'!$AO174=\"\",\"\",'[6]MONE(M)'!$AO174)","v":13462.753408},{"$f":"IF('[7]MONE(M)'!$AO174=\"\",\"\",'[7]MONE(M)'!$AO174)","v":193587.22985244001},{"$f":"IF('[8]MONE(M)'!$AO174=\"\",\"\",'[8]MONE(M)'!$AO174)","v":10064.665276559997},17.336928816374364,8.0099134051240704,0,12.348340976623117,26.520302197141877,33.426936654132945,"n.d.",{"$f":"IF('[2]FISCAL(M)'!$K174=\"\",\"\",'[2]FISCAL(M)'!$K174)","v":-1541.503388740239},{"$f":"+'[2]REAL(A)'!$AO$23","v":87995.190722536092},-1.7518041339337092,{"$f":"IF('[2]FISCAL(M)'!$L174=\"\",\"\",'[2]FISCAL(M)'!$L174)","v":-1966.9336404402395},{"$f":"+'[2]REAL(A)'!$AP$23","v":"n.d."},"n.d.","n.d.",{"$f":"'[2]Gráfico REM'!BG168","v":7635.6132067677308},{"$f":"'[2]Gráfico REM'!BH168","v":25449.9254798449},{"$f":"'[2]Gráfico REM'!BI168","v":1099.8789336023628},"n.d.",4.1043632956600407,-5.5421462998116233,18.289610801175726,"n.d.",{"$f":"'[2]Gráfico REM'!BK168","v":8223.2039107937308},{"$f":"'[2]Gráfico REM'!BL168","v":35514.590756404898},{"$f":"'[2]Gráfico REM'!BM168","v":7330.479925652362},"n.d.","n.d.","n.d.","n.d."]
[2003,"octubre","2003-octubre",{"$f":"IF('[2]REAL IPC(M)'!$AL175=\"\",\"\",+'[2]REAL IPC(M)'!$AL175)","v":12.397248783761118},{"$f":"IF('[2]REAL IPC(M)'!$BE175=\"\",\"\",+'[2]REAL IPC(M)'!$BE175)","v":12.217970412568313},{"$f":"IF('[2]REAL IPC(M)'!$AM175=\"\",\"\",+'[2]REAL IPC(M)'!$AM175)","v":11.13985448666126},{"$f":"IF('[2]REAL IPC(M)'!$BI175=\"\",\"\",+'[2]REAL IPC(M)'!$BI175)","v":11.19121783742527},{"$f":"IF('[2]REAL IMAE(M)'!BJ175=\"\",\"\",'[2]REAL IMAE(M)'!BJ175)","v":"n.d."},{"$f":"IF('[2]REAL IMAE(M)'!BK175=\"\",\"\",'[2]REAL IMAE(M)'!BK175)","v":"n.d."},{"$f":"IF('[2]REAL IMAE(M)'!BN175=\"\",\"\",'[2]REAL IMAE(M)'!BN175)","v":"n.d."},{"$f":"IF('[2]REAL IMAE(M)'!BO175=\"\",\"\",'[2]REAL IMAE(M)'!BO175)","v":"n.d."},{"$f":"IF('[2]EXT RIN(M)'!$K175=\"\",\"\",'[2]EXT RIN(M)'!$K175)","v":7753.021110945172},"",{"$f":"IF('[2]EXT RIN(M)'!$L175=\"\",\"\",'[2]EXT RIN(M)'!$L175)","v":8737.1272924986315},"",{"$f":"IF('[2]MONE(M)CARD'!EG175=\"\",\"\",'[2]MONE(M)CARD'!EG175)","v":6187.4293115133187},{"$f":"IF('[2]MONE(M)CARD'!EK175=\"\",\"\",'[2]MONE(M)CARD'!EK175)","v":13757.568755495449},{"$f":"IF('[2]MONE(M)CARD'!EP175=\"\",\"\",'[2]MONE(M)CARD'!EP175)","v":6236.8546778691634},{"$f":"IF('[2]MONE(M)CARD'!ES175=\"\",\"\",'[2]MONE(M)CARD'!ES175)","v":-2.5228410078076635},{"$f":"IF('[2]MONE(M)CARD'!EV175=\"\",\"\",'[2]MONE(M)CARD'!EV175)","v":-3.1484263258918954},{"$f":"IF('[2]MONE(M)CARD'!EZ175=\"\",\"\",'[2]MONE(M)CARD'!EZ175)","v":-0.73768453298143077},{"$f":"IF('[2]MONE(M)CAPARD'!FC175=\"\",\"\",'[2]MONE(M)CAPARD'!FC175)","v":7474.5948401033183},{"$f":"IF('[2]MONE(M)CAPARD'!FG175=\"\",\"\",'[2]MONE(M)CAPARD'!FG175)","v":22532.097780575452},{"$f":"IF('[2]MONE(M)CAPARD'!FL175=\"\",\"\",'[2]MONE(M)CAPARD'!FL175)","v":6236.8546778691671},{"$f":"IF('[2]MONE(M)CAPARD'!FO175=\"\",\"\",'[2]MONE(M)CAPARD'!FO175)","v":17.755247445852508},{"$f":"IF('[2]MONE(M)CAPARD'!FR175=\"\",\"\",'[2]MONE(M)CAPARD'!FR175)","v":45.710487978194102},{"$f":"IF('[2]MONE(M)CAPARD'!FV175=\"\",\"\",'[2]MONE(M)CAPARD'!FV175)","v":37.408855692845933},{"$f":"IF('[2]MONE(M)CARD'!FV175=\"\",\"\",'[2]MONE(M)CARD'!FV175)","v":343.92759877325346},{"$f":"IF('[2]MONE(M)CARD'!GD175=\"\",\"\",'[2]MONE(M)CARD'!GD175)","v":2.8152006536174539},{"$f":"IF('[2]MONE(M)CARD'!GE175=\"\",\"\",'[2]MONE(M)CARD'!GE175)","v":1994.501142585262},-21.93243582112747,{"$f":"IF('[9]II.2.Balance OSD-Activos'!J33=\"\",\"\",'[9]II.2.Balance OSD-Activos'!J33)","v":47.911944973031062},{"$f":"IF('[9]II.2.Balance OSD-Activos'!N33=\"\",\"\",'[9]II.2.Balance OSD-Activos'!N33)","v":8.7963727082896419},{"$f":"IF('[9]II.2.Balance OSD-Activos'!R33=\"\",\"\",'[9]II.2.Balance OSD-Activos'!R33)","v":9858.9289983262552},{"$f":"IF('[9]II.2.Balance OSD-Activos'!S33=\"\",\"\",'[9]II.2.Balance OSD-Activos'!S33)","v":7143.7203311948324},9906.8409432992867,17059.357647202407,-24.580624344168879,-10.007736841161597,-3.1534127630387321,-9.9231525098807829,-11.897193254517735,-10.805508378800432,-3.5644651604733513,{"$f":"IF('[2]MONE(M)CAPARD'!GS175=\"\",\"\",'[2]MONE(M)CAPARD'!GS175)","v":3101.5377754768606},{"$f":"IF('[2]MONE(M)CARD'!HA175=\"\",\"\",'[2]MONE(M)CAPARD'!HA175)","v":2207.2136247752619},{"$f":"IF('[2]MONE(M)CAPARD'!HB175=\"\",\"\",'[2]MONE(M)CAPARD'!HB175)","v":894.32415070159868},"n.d.",{"$f":"IF('[10]II.2.Balance OSD-Activos'!J33=\"\",\"\",'[10]II.2.Balance OSD-Activos'!J33)","v":613.78446077303113},{"$f":"IF('[10]II.2.Balance OSD-Activos'!N33=\"\",\"\",'[10]II.2.Balance OSD-Activos'!N33)","v":381.37710950828966},{"$f":"IF('[10]II.2.Balance OSD-Activos'!R33=\"\",\"\",'[10]II.2.Balance OSD-Activos'!R33)","v":14614.699268116256},{"$f":"IF('[10]II.2.Balance OSD-Activos'!S33=\"\",\"\",'[10]II.2.Balance OSD-Activos'!S33)","v":11667.027900354831},15228.483728889287,27276.888738752408,866.17327567915777,38.333271229838914,4098.8979697696695,33.528300823705813,43.888318235323332,42.616637412489446,-4.4242173687403863,{"$f":"IF('[2]MONE(M)CAPARD'!AS175=\"\",\"\",'[2]MONE(M)CAPARD'!AS175)","v":"n.d."},{"$f":"IF('[2]MONE(M)CAPARD'!AT175=\"\",\"\",'[2]MONE(M)CAPARD'!AT175)","v":"n.a."},{"$f":"IF('[2]MONE(M)CAPARD'!AU175=\"\",\"\",'[2]MONE(M)CAPARD'!AU175)","v":"n.d."},{"$f":"IF('[2]MONE(M)CAPARD'!AV175=\"\",\"\",'[2]MONE(M)CAPARD'!AV175)","v":"n.d."},{"$f":"IF('[2]MONE(M)CAPARD'!AW175=\"\",\"\",'[2]MONE(M)CAPARD'!AW175)","v":"n.a."},{"$f":"IF('[2]MONE(M)CAPARD'!AX175=\"\",\"\",'[2]MONE(M)CAPARD'!AX175)","v":"n.d."},{"$f":"IF('[2]MONE(M)CAPARD'!AY175=\"\",\"\",'[2]MONE(M)CAPARD'!AY175)","v":"n.a."},{"$f":"IF('[2]FISCAL(M)'!$K175=\"\",\"\",'[2]FISCAL(M)'!$K175)","v":-1744.2214500513369},{"$f":"IF('[2]FISCAL(M)'!$L175=\"\",\"\",'[2]FISCAL(M)'!$L175)","v":-2257.2615974013374},{"$f":"IF('[2]FISCAL(M)'!$AY175=\"\",\"\",'[2]FISCAL(M)'!$AY175)","v":"n.d."},{"$f":"IF('[2]FISCAL(M)'!$BI175=\"\",\"\",'[2]FISCAL(M)'!$BI175)","v":"n.d."},{"$f":"IF('[2]FISCAL(M)'!$BS175=\"\",\"\",'[2]FISCAL(M)'!$BS175)","v":"n.d."},{"$f":"IF('[2]FISCAL(M)'!$AZ175=\"\",\"\",'[2]FISCAL(M)'!$AZ175)","v":"n.d."},{"$f":"IF('[2]FISCAL(M)'!$BJ175=\"\",\"\",'[2]FISCAL(M)'!$BJ175)","v":"n.d."},{"$f":"IF('[2]FISCAL(M)'!$BT175=\"\",\"\",'[2]FISCAL(M)'!$BT175)","v":"n.d."},{"$f":"IF('[3]MONE(M)'!$AO175=\"\",\"\",'[3]MONE(M)'!$AO175)","v":2109425.7564644422},{"$f":"IF('[4]MONE(M)'!$AO175=\"\",\"\",'[4]MONE(M)'!$AO175)","v":6266.851742857144},{"$f":"IF('[5]MONE(M)'!$AO175=\"\",\"\",'[5]MONE(M)'!$AO175)","v":39480.498458993025},{"$f":"+'[1]MONE(M)'!$AO175","v":49678.25358820011},{"$f":"IF('[6]MONE(M)'!$AO175=\"\",\"\",'[6]MONE(M)'!$AO175)","v":13669.641947100001},{"$f":"IF('[7]MONE(M)'!$AO175=\"\",\"\",'[7]MONE(M)'!$AO175)","v":202834.07321843001},{"$f":"IF('[8]MONE(M)'!$AO175=\"\",\"\",'[8]MONE(M)'!$AO175)","v":10065.422418589998},15.897721844350921,7.0849649333053932,7.5661265144064238,12.137808808088547,24.541793903512943,38.024953530146213,"n.d.",{"$f":"IF('[2]FISCAL(M)'!$K175=\"\",\"\",'[2]FISCAL(M)'!$K175)","v":-1744.2214500513369},{"$f":"+'[2]REAL(A)'!$AO$23","v":87995.190722536092},-1.9821781573849482,{"$f":"IF('[2]FISCAL(M)'!$L175=\"\",\"\",'[2]FISCAL(M)'!$L175)","v":-2257.2615974013374},{"$f":"+'[2]REAL(A)'!$AP$23","v":"n.d."},"n.d.","n.d.",{"$f":"'[2]Gráfico REM'!BG169","v":7644.9238595455517},{"$f":"'[2]Gráfico REM'!BH169","v":25373.716755975431},{"$f":"'[2]Gráfico REM'!BI169","v":1268.1039740576462},"n.d.",3.4019679570264305,-7.060996310744172,35.669908118867546,"n.d.",{"$f":"'[2]Gráfico REM'!BK169","v":8229.4914499305523},{"$f":"'[2]Gráfico REM'!BL169","v":35439.139174565425},{"$f":"'[2]Gráfico REM'!BM169","v":7304.9162820076463},"n.d.","n.d.","n.d.","n.d."]
[2003,"noviembre","2003-noviembre",{"$f":"IF('[2]REAL IPC(M)'!$AL176=\"\",\"\",+'[2]REAL IPC(M)'!$AL176)","v":14.357178589294639},{"$f":"IF('[2]REAL IPC(M)'!$BE176=\"\",\"\",+'[2]REAL IPC(M)'!$BE176)","v":12.337277444901297},{"$f":"IF('[2]REAL IPC(M)'!$AM176=\"\",\"\",+'[2]REAL IPC(M)'!$AM176)","v":12.912043736935196},{"$f":"IF('[2]REAL IPC(M)'!$BI176=\"\",\"\",+'[2]REAL IPC(M)'!$BI176)","v":11.311685694989325},{"$f":"IF('[2]REAL IMAE(M)'!BJ176=\"\",\"\",'[2]REAL IMAE(M)'!BJ176)","v":"n.d."},{"$f":"IF('[2]REAL IMAE(M)'!BK176=\"\",\"\",'[2]REAL IMAE(M)'!BK176)","v":"n.d."},{"$f":"IF('[2]REAL IMAE(M)'!BN176=\"\",\"\",'[2]REAL IMAE(M)'!BN176)","v":"n.d."},{"$f":"IF('[2]REAL IMAE(M)'!BO176=\"\",\"\",'[2]REAL IMAE(M)'!BO176)","v":"n.d."},{"$f":"IF('[2]EXT RIN(M)'!$K176=\"\",\"\",'[2]EXT RIN(M)'!$K176)","v":8067.47697786751},"",{"$f":"IF('[2]EXT RIN(M)'!$L176=\"\",\"\",'[2]EXT RIN(M)'!$L176)","v":9069.9126021642896},"",{"$f":"IF('[2]MONE(M)CARD'!EG176=\"\",\"\",'[2]MONE(M)CARD'!EG176)","v":6419.7892541092924},{"$f":"IF('[2]MONE(M)CARD'!EK176=\"\",\"\",'[2]MONE(M)CARD'!EK176)","v":13125.722515000773},{"$f":"IF('[2]MONE(M)CARD'!EP176=\"\",\"\",'[2]MONE(M)CARD'!EP176)","v":6270.8372868053957},{"$f":"IF('[2]MONE(M)CARD'!ES176=\"\",\"\",'[2]MONE(M)CARD'!ES176)","v":-2.1429246879733466},{"$f":"IF('[2]MONE(M)CARD'!EV176=\"\",\"\",'[2]MONE(M)CARD'!EV176)","v":-5.397547417240645},{"$f":"IF('[2]MONE(M)CARD'!EZ176=\"\",\"\",'[2]MONE(M)CARD'!EZ176)","v":-2.9809639989850312},{"$f":"IF('[2]MONE(M)CAPARD'!FC176=\"\",\"\",'[2]MONE(M)CAPARD'!FC176)","v":7830.8526297992921},{"$f":"IF('[2]MONE(M)CAPARD'!FG176=\"\",\"\",'[2]MONE(M)CAPARD'!FG176)","v":21938.416141880771},{"$f":"IF('[2]MONE(M)CAPARD'!FL176=\"\",\"\",'[2]MONE(M)CAPARD'!FL176)","v":6270.8372868053993},{"$f":"IF('[2]MONE(M)CAPARD'!FO176=\"\",\"\",'[2]MONE(M)CAPARD'!FO176)","v":19.365964398463966},{"$f":"IF('[2]MONE(M)CAPARD'!FR176=\"\",\"\",'[2]MONE(M)CAPARD'!FR176)","v":44.086574486481723},{"$f":"IF('[2]MONE(M)CAPARD'!FV176=\"\",\"\",'[2]MONE(M)CAPARD'!FV176)","v":35.440388553601743},{"$f":"IF('[2]MONE(M)CARD'!FV176=\"\",\"\",'[2]MONE(M)CARD'!FV176)","v":305.22684522296476},{"$f":"IF('[2]MONE(M)CARD'!GD176=\"\",\"\",'[2]MONE(M)CARD'!GD176)","v":3.0698693873827421},{"$f":"IF('[2]MONE(M)CARD'!GE176=\"\",\"\",'[2]MONE(M)CARD'!GE176)","v":1932.2161884176239},-26.473914653255559,{"$f":"IF('[9]II.2.Balance OSD-Activos'!J34=\"\",\"\",'[9]II.2.Balance OSD-Activos'!J34)","v":41.113702984614648},{"$f":"IF('[9]II.2.Balance OSD-Activos'!N34=\"\",\"\",'[9]II.2.Balance OSD-Activos'!N34)","v":6.0703974752865948},{"$f":"IF('[9]II.2.Balance OSD-Activos'!R34=\"\",\"\",'[9]II.2.Balance OSD-Activos'!R34)","v":9666.4878909500367},{"$f":"IF('[9]II.2.Balance OSD-Activos'!S34=\"\",\"\",'[9]II.2.Balance OSD-Activos'!S34)","v":7069.7226606674849},9707.6015939346507,16783.394652077423,-17.178305559235852,-13.195368294775456,-54.513593159569986,-13.177609684537284,-14.025867556825322,-13.575429519869697,-2.7699211410692648,{"$f":"IF('[2]MONE(M)CAPARD'!GS176=\"\",\"\",'[2]MONE(M)CAPARD'!GS176)","v":2997.9865186853503},{"$f":"IF('[2]MONE(M)CARD'!HA176=\"\",\"\",'[2]MONE(M)CAPARD'!HA176)","v":2144.9810067776239},{"$f":"IF('[2]MONE(M)CAPARD'!HB176=\"\",\"\",'[2]MONE(M)CAPARD'!HB176)","v":853.00551190772649},"n.d.",{"$f":"IF('[10]II.2.Balance OSD-Activos'!J34=\"\",\"\",'[10]II.2.Balance OSD-Activos'!J34)","v":651.64905113461464},{"$f":"IF('[10]II.2.Balance OSD-Activos'!N34=\"\",\"\",'[10]II.2.Balance OSD-Activos'!N34)","v":386.76354821528656},{"$f":"IF('[10]II.2.Balance OSD-Activos'!R34=\"\",\"\",'[10]II.2.Balance OSD-Activos'!R34)","v":14364.849087500037},{"$f":"IF('[10]II.2.Balance OSD-Activos'!S34=\"\",\"\",'[10]II.2.Balance OSD-Activos'!S34)","v":11628.365402167485},15016.498138634652,27031.627089017424,1212.7175291381943,34.276378960669753,2798.0777909173435,29.022096584354262,41.411293648849814,39.196915104312048,-3.4197223081773984,{"$f":"IF('[2]MONE(M)CAPARD'!AS176=\"\",\"\",'[2]MONE(M)CAPARD'!AS176)","v":"n.d."},{"$f":"IF('[2]MONE(M)CAPARD'!AT176=\"\",\"\",'[2]MONE(M)CAPARD'!AT176)","v":"n.a."},{"$f":"IF('[2]MONE(M)CAPARD'!AU176=\"\",\"\",'[2]MONE(M)CAPARD'!AU176)","v":"n.d."},{"$f":"IF('[2]MONE(M)CAPARD'!AV176=\"\",\"\",'[2]MONE(M)CAPARD'!AV176)","v":"n.d."},{"$f":"IF('[2]MONE(M)CAPARD'!AW176=\"\",\"\",'[2]MONE(M)CAPARD'!AW176)","v":"n.a."},{"$f":"IF('[2]MONE(M)CAPARD'!AX176=\"\",\"\",'[2]MONE(M)CAPARD'!AX176)","v":"n.d."},{"$f":"IF('[2]MONE(M)CAPARD'!AY176=\"\",\"\",'[2]MONE(M)CAPARD'!AY176)","v":"n.a."},{"$f":"IF('[2]FISCAL(M)'!$K176=\"\",\"\",'[2]FISCAL(M)'!$K176)","v":-2039.0465171801561},{"$f":"IF('[2]FISCAL(M)'!$L176=\"\",\"\",'[2]FISCAL(M)'!$L176)","v":-2585.8326988901567},{"$f":"IF('[2]FISCAL(M)'!$AY176=\"\",\"\",'[2]FISCAL(M)'!$AY176)","v":"n.d."},{"$f":"IF('[2]FISCAL(M)'!$BI176=\"\",\"\",'[2]FISCAL(M)'!$BI176)","v":"n.d."},{"$f":"IF('[2]FISCAL(M)'!$BS176=\"\",\"\",'[2]FISCAL(M)'!$BS176)","v":"n.d."},{"$f":"IF('[2]FISCAL(M)'!$AZ176=\"\",\"\",'[2]FISCAL(M)'!$AZ176)","v":"n.d."},{"$f":"IF('[2]FISCAL(M)'!$BJ176=\"\",\"\",'[2]FISCAL(M)'!$BJ176)","v":"n.d."},{"$f":"IF('[2]FISCAL(M)'!$BT176=\"\",\"\",'[2]FISCAL(M)'!$BT176)","v":"n.d."},{"$f":"IF('[3]MONE(M)'!$AO176=\"\",\"\",'[3]MONE(M)'!$AO176)","v":2158016.1933991141},{"$f":"IF('[4]MONE(M)'!$AO176=\"\",\"\",'[4]MONE(M)'!$AO176)","v":6362.569742857143},{"$f":"IF('[5]MONE(M)'!$AO176=\"\",\"\",'[5]MONE(M)'!$AO176)","v":39998.238513835764},{"$f":"+'[1]MONE(M)'!$AO176","v":51187.338888561811},{"$f":"IF('[6]MONE(M)'!$AO176=\"\",\"\",'[6]MONE(M)'!$AO176)","v":14058.138825347},{"$f":"IF('[7]MONE(M)'!$AO176=\"\",\"\",'[7]MONE(M)'!$AO176)","v":213154.61761736998},{"$f":"IF('[8]MONE(M)'!$AO176=\"\",\"\",'[8]MONE(M)'!$AO176)","v":10104.14578203},17.073299505911677,6.9643673109794024,8.0179853219513042,14.161627837465552,26.048181940103877,42.624849346489114,"n.d.",{"$f":"IF('[2]FISCAL(M)'!$K176=\"\",\"\",'[2]FISCAL(M)'!$K176)","v":-2039.0465171801561},{"$f":"+'[2]REAL(A)'!$AO$23","v":87995.190722536092},-2.317224953360939,{"$f":"IF('[2]FISCAL(M)'!$L176=\"\",\"\",'[2]FISCAL(M)'!$L176)","v":-2585.8326988901567},{"$f":"+'[2]REAL(A)'!$AP$23","v":"n.d."},"n.d.","n.d.",{"$f":"'[2]Gráfico REM'!BG170","v":7386.2647675767921},{"$f":"'[2]Gráfico REM'!BH170","v":25288.258471185905},{"$f":"'[2]Gráfico REM'!BI170","v":1063.3805341854261},"n.d.",1.8643940473274778,-8.6614208993957007,11.266422587657932,"n.d.",{"$f":"'[2]Gráfico REM'!BK170","v":7999.3939050527924},{"$f":"'[2]Gráfico REM'!BL170","v":35392.404253215907},{"$f":"'[2]Gráfico REM'!BM170","v":6933.3956546454247},"n.d.","n.d.","n.d.","n.d."]
[2003,"diciembre","2003-diciembre",{"$f":"IF('[2]REAL IPC(M)'!$AL177=\"\",\"\",+'[2]REAL IPC(M)'!$AL177)","v":15.021459227467826},{"$f":"IF('[2]REAL IPC(M)'!$BE177=\"\",\"\",+'[2]REAL IPC(M)'!$BE177)","v":12.436216906899489},{"$f":"IF('[2]REAL IPC(M)'!$AM177=\"\",\"\",+'[2]REAL IPC(M)'!$AM177)","v":13.527724665391982},{"$f":"IF('[2]REAL IPC(M)'!$BI177=\"\",\"\",+'[2]REAL IPC(M)'!$BI177)","v":11.413183872148046},{"$f":"IF('[2]REAL IMAE(M)'!BJ177=\"\",\"\",'[2]REAL IMAE(M)'!BJ177)","v":"n.d."},{"$f":"IF('[2]REAL IMAE(M)'!BK177=\"\",\"\",'[2]REAL IMAE(M)'!BK177)","v":"n.d."},{"$f":"IF('[2]REAL IMAE(M)'!BN177=\"\",\"\",'[2]REAL IMAE(M)'!BN177)","v":"n.d."},{"$f":"IF('[2]REAL IMAE(M)'!BO177=\"\",\"\",'[2]REAL IMAE(M)'!BO177)","v":"n.d."},{"$f":"IF('[2]EXT RIN(M)'!$K177=\"\",\"\",'[2]EXT RIN(M)'!$K177)","v":8374.3777768190575},8374.3777768190575,{"$f":"IF('[2]EXT RIN(M)'!$L177=\"\",\"\",'[2]EXT RIN(M)'!$L177)","v":9337.3727874570268},9337.3727874570268,{"$f":"IF('[2]MONE(M)CARD'!EG177=\"\",\"\",'[2]MONE(M)CARD'!EG177)","v":7949.3679869298448},{"$f":"IF('[2]MONE(M)CARD'!EK177=\"\",\"\",'[2]MONE(M)CARD'!EK177)","v":15427.892426851851},{"$f":"IF('[2]MONE(M)CARD'!EP177=\"\",\"\",'[2]MONE(M)CARD'!EP177)","v":7344.3092830496425},{"$f":"IF('[2]MONE(M)CARD'!ES177=\"\",\"\",'[2]MONE(M)CARD'!ES177)","v":7.6211613371240494},{"$f":"IF('[2]MONE(M)CARD'!EV177=\"\",\"\",'[2]MONE(M)CARD'!EV177)","v":6.4370231973859493},{"$f":"IF('[2]MONE(M)CARD'!EZ177=\"\",\"\",'[2]MONE(M)CARD'!EZ177)","v":6.8515286486287019},{"$f":"IF('[2]MONE(M)CAPARD'!FC177=\"\",\"\",'[2]MONE(M)CAPARD'!FC177)","v":9412.878201769845},{"$f":"IF('[2]MONE(M)CAPARD'!FG177=\"\",\"\",'[2]MONE(M)CAPARD'!FG177)","v":24333.783156131845},{"$f":"IF('[2]MONE(M)CAPARD'!FL177=\"\",\"\",'[2]MONE(M)CAPARD'!FL177)","v":7344.3092830496389},{"$f":"IF('[2]MONE(M)CAPARD'!FO177=\"\",\"\",'[2]MONE(M)CAPARD'!FO177)","v":7.9216217844686021},{"$f":"IF('[2]MONE(M)CAPARD'!FR177=\"\",\"\",'[2]MONE(M)CAPARD'!FR177)","v":5.3427219441076312},{"$f":"IF('[2]MONE(M)CAPARD'!FV177=\"\",\"\",'[2]MONE(M)CAPARD'!FV177)","v":5.8410316393970207},{"$f":"IF('[2]MONE(M)CARD'!FV177=\"\",\"\",'[2]MONE(M)CARD'!FV177)","v":339.66039698831628},{"$f":"IF('[2]MONE(M)CARD'!GD177=\"\",\"\",'[2]MONE(M)CARD'!GD177)","v":32.317352218750159},{"$f":"IF('[2]MONE(M)CARD'!GE177=\"\",\"\",'[2]MONE(M)CARD'!GE177)","v":2026.4772477248268},-21.794895925010337,{"$f":"IF('[9]II.2.Balance OSD-Activos'!J35=\"\",\"\",'[9]II.2.Balance OSD-Activos'!J35)","v":46.104319039377728},{"$f":"IF('[9]II.2.Balance OSD-Activos'!N35=\"\",\"\",'[9]II.2.Balance OSD-Activos'!N35)","v":5.4534396454811365},{"$f":"IF('[9]II.2.Balance OSD-Activos'!R35=\"\",\"\",'[9]II.2.Balance OSD-Activos'!R35)","v":12500.763781599802},{"$f":"IF('[9]II.2.Balance OSD-Activos'!S35=\"\",\"\",'[9]II.2.Balance OSD-Activos'!S35)","v":7463.74923480692},12546.86810063918,20016.070775091583,-15.193614933272537,-2.4263376789405267,-60.208984331134332,-2.3721315231758244,-6.7204321361686636,-4.1102963827832628,9.4651331370864344,{"$f":"IF('[2]MONE(M)CAPARD'!GS177=\"\",\"\",'[2]MONE(M)CAPARD'!GS177)","v":3192.0178707737946},{"$f":"IF('[2]MONE(M)CARD'!HA177=\"\",\"\",'[2]MONE(M)CAPARD'!HA177)","v":2239.1822421248271},{"$f":"IF('[2]MONE(M)CAPARD'!HB177=\"\",\"\",'[2]MONE(M)CAPARD'!HB177)","v":952.83562864896749},"n.d.",{"$f":"IF('[10]II.2.Balance OSD-Activos'!J35=\"\",\"\",'[10]II.2.Balance OSD-Activos'!J35)","v":502.82665698937762},{"$f":"IF('[10]II.2.Balance OSD-Activos'!N35=\"\",\"\",'[10]II.2.Balance OSD-Activos'!N35)","v":354.52414172548123},{"$f":"IF('[10]II.2.Balance OSD-Activos'!R35=\"\",\"\",'[10]II.2.Balance OSD-Activos'!R35)","v":17231.736972819803},{"$f":"IF('[10]II.2.Balance OSD-Activos'!S35=\"\",\"\",'[10]II.2.Balance OSD-Activos'!S35)","v":12067.741082906921},17734.563629809181,30156.828854441585,-39.594285250829529,-2.9506372741269327,-13.366621269853674,-1.2017608805252933,-3.2119247312758614,-3.1920486757602728,-42.388963780072324,{"$f":"IF('[2]MONE(M)CAPARD'!AS177=\"\",\"\",'[2]MONE(M)CAPARD'!AS177)","v":"n.d."},{"$f":"IF('[2]MONE(M)CAPARD'!AT177=\"\",\"\",'[2]MONE(M)CAPARD'!AT177)","v":"n.a."},{"$f":"IF('[2]MONE(M)CAPARD'!AU177=\"\",\"\",'[2]MONE(M)CAPARD'!AU177)","v":"n.d."},{"$f":"IF('[2]MONE(M)CAPARD'!AV177=\"\",\"\",'[2]MONE(M)CAPARD'!AV177)","v":"n.d."},{"$f":"IF('[2]MONE(M)CAPARD'!AW177=\"\",\"\",'[2]MONE(M)CAPARD'!AW177)","v":"n.a."},{"$f":"IF('[2]MONE(M)CAPARD'!AX177=\"\",\"\",'[2]MONE(M)CAPARD'!AX177)","v":"n.d."},{"$f":"IF('[2]MONE(M)CAPARD'!AY177=\"\",\"\",'[2]MONE(M)CAPARD'!AY177)","v":"n.a."},{"$f":"IF('[2]FISCAL(M)'!$K177=\"\",\"\",'[2]FISCAL(M)'!$K177)","v":-2750.6917761730833},{"$f":"IF('[2]FISCAL(M)'!$L177=\"\",\"\",'[2]FISCAL(M)'!$L177)","v":-2711.1174293430845},{"$f":"IF('[2]FISCAL(M)'!$AY177=\"\",\"\",'[2]FISCAL(M)'!$AY177)","v":"n.d."},{"$f":"IF('[2]FISCAL(M)'!$BI177=\"\",\"\",'[2]FISCAL(M)'!$BI177)","v":"n.d."},{"$f":"IF('[2]FISCAL(M)'!$BS177=\"\",\"\",'[2]FISCAL(M)'!$BS177)","v":29190.5},{"$f":"IF('[2]FISCAL(M)'!$AZ177=\"\",\"\",'[2]FISCAL(M)'!$AZ177)","v":"n.d."},{"$f":"IF('[2]FISCAL(M)'!$BJ177=\"\",\"\",'[2]FISCAL(M)'!$BJ177)","v":"n.d."},{"$f":"IF('[2]FISCAL(M)'!$BT177=\"\",\"\",'[2]FISCAL(M)'!$BT177)","v":35700.183792249998},{"$f":"IF('[3]MONE(M)'!$AO177=\"\",\"\",'[3]MONE(M)'!$AO177)","v":2256103.1479283469},{"$f":"IF('[4]MONE(M)'!$AO177=\"\",\"\",'[4]MONE(M)'!$AO177)","v":6449.6837428571425},{"$f":"IF('[5]MONE(M)'!$AO177=\"\",\"\",'[5]MONE(M)'!$AO177)","v":49003.152351801451},{"$f":"+'[1]MONE(M)'!$AO177","v":51901.963230121968},{"$f":"IF('[6]MONE(M)'!$AO177=\"\",\"\",'[6]MONE(M)'!$AO177)","v":14319.503887999999},{"$f":"IF('[7]MONE(M)'!$AO177=\"\",\"\",'[7]MONE(M)'!$AO177)","v":194502.96766075},{"$f":"IF('[8]MONE(M)'!$AO177=\"\",\"\",'[8]MONE(M)'!$AO177)","v":10006.67172056},20.293542736890636,7.4258915594114905,29.52305370314512,21.75589113891483,25.766835553854417,27.911710014432888,-0.48419917610369456,{"$f":"IF('[2]FISCAL(M)'!$K177=\"\",\"\",'[2]FISCAL(M)'!$K177)","v":-2750.6917761730833},{"$f":"+'[2]REAL(A)'!$AO$23","v":87995.190722536092},-3.1259569455863625,{"$f":"IF('[2]FISCAL(M)'!$L177=\"\",\"\",'[2]FISCAL(M)'!$L177)","v":-2711.1174293430845},{"$f":"+'[2]REAL(A)'!$AP$23","v":"n.d."},"n.d.","n.d.",{"$f":"'[2]Gráfico REM'!BG171","v":7782.4062554361471},{"$f":"'[2]Gráfico REM'!BH171","v":27038.117523629313},{"$f":"'[2]Gráfico REM'!BI171","v":1900.9433874951978},"n.d.",7.6698847325735731,2.2247920790181785,96.27777924774621,"n.d.",{"$f":"'[2]Gráfico REM'!BK171","v":8313.9098441561473},{"$f":"'[2]Gráfico REM'!BL171","v":37044.789244189313},{"$f":"'[2]Gráfico REM'!BM171","v":8256.9461251251978},"n.d.",{"$f":"+((DB170/DB158)-1)*100","v":8.9085299948920884},1.4785967293908575,3.1730926731503573]
[2004,"enero","2004-enero",{"$f":"IF('[2]REAL IPC(M)'!$AL178=\"\",\"\",+'[2]REAL IPC(M)'!$AL178)","v":17.556134070940455},{"$f":"IF('[2]REAL IPC(M)'!$BE178=\"\",\"\",+'[2]REAL IPC(M)'!$BE178)","v":12.513282024649941},{"$f":"IF('[2]REAL IPC(M)'!$AM178=\"\",\"\",+'[2]REAL IPC(M)'!$AM178)","v":15.844074190506131},{"$f":"IF('[2]REAL IPC(M)'!$BI178=\"\",\"\",+'[2]REAL IPC(M)'!$BI178)","v":11.494132142977209},{"$f":"IF('[2]REAL IMAE(M)'!BJ178=\"\",\"\",'[2]REAL IMAE(M)'!BJ178)","v":"n.d."},{"$f":"IF('[2]REAL IMAE(M)'!BK178=\"\",\"\",'[2]REAL IMAE(M)'!BK178)","v":"n.d."},{"$f":"IF('[2]REAL IMAE(M)'!BN178=\"\",\"\",'[2]REAL IMAE(M)'!BN178)","v":"n.d."},{"$f":"IF('[2]REAL IMAE(M)'!BO178=\"\",\"\",'[2]REAL IMAE(M)'!BO178)","v":"n.d."},{"$f":"IF('[2]EXT RIN(M)'!$K178=\"\",\"\",'[2]EXT RIN(M)'!$K178)","v":8150.2850558651699},"",{"$f":"IF('[2]EXT RIN(M)'!$L178=\"\",\"\",'[2]EXT RIN(M)'!$L178)","v":9337.725847862479},"",{"$f":"IF('[2]MONE(M)CARD'!EG178=\"\",\"\",'[2]MONE(M)CARD'!EG178)","v":6723.871712880531},{"$f":"IF('[2]MONE(M)CARD'!EK178=\"\",\"\",'[2]MONE(M)CARD'!EK178)","v":12295.459409041776},{"$f":"IF('[2]MONE(M)CARD'!EP178=\"\",\"\",'[2]MONE(M)CARD'!EP178)","v":6395.1377527500917},{"$f":"IF('[2]MONE(M)CARD'!ES178=\"\",\"\",'[2]MONE(M)CARD'!ES178)","v":1.9029025538814359},{"$f":"IF('[2]MONE(M)CARD'!EV178=\"\",\"\",'[2]MONE(M)CARD'!EV178)","v":-2.4908399589060326},{"$f":"IF('[2]MONE(M)CARD'!EZ178=\"\",\"\",'[2]MONE(M)CARD'!EZ178)","v":-2.401384481788349},{"$f":"IF('[2]MONE(M)CAPARD'!FC178=\"\",\"\",'[2]MONE(M)CAPARD'!FC178)","v":8116.8679587405304},{"$f":"IF('[2]MONE(M)CAPARD'!FG178=\"\",\"\",'[2]MONE(M)CAPARD'!FG178)","v":21284.674012611773},{"$f":"IF('[2]MONE(M)CAPARD'!FL178=\"\",\"\",'[2]MONE(M)CAPARD'!FL178)","v":6395.1377527500917},{"$f":"IF('[2]MONE(M)CAPARD'!FO178=\"\",\"\",'[2]MONE(M)CAPARD'!FO178)","v":3.7895633832870645},{"$f":"IF('[2]MONE(M)CAPARD'!FR178=\"\",\"\",'[2]MONE(M)CAPARD'!FR178)","v":0.12060047964341791},{"$f":"IF('[2]MONE(M)CAPARD'!FV178=\"\",\"\",'[2]MONE(M)CAPARD'!FV178)","v":-0.28984637882558673},{"$f":"IF('[2]MONE(M)CARD'!FV178=\"\",\"\",'[2]MONE(M)CARD'!FV178)","v":331.36521428476033},{"$f":"IF('[2]MONE(M)CARD'!GD178=\"\",\"\",'[2]MONE(M)CARD'!GD178)","v":3.9851172335243668},{"$f":"IF('[2]MONE(M)CARD'!GE178=\"\",\"\",'[2]MONE(M)CARD'!GE178)","v":1785.6296234757717},-28.178164276915929,{"$f":"IF('[9]II.2.Balance OSD-Activos'!J36=\"\",\"\",'[9]II.2.Balance OSD-Activos'!J36)","v":39.112801751722294},{"$f":"IF('[9]II.2.Balance OSD-Activos'!N36=\"\",\"\",'[9]II.2.Balance OSD-Activos'!N36)","v":5.6855468359398831},{"$f":"IF('[9]II.2.Balance OSD-Activos'!R36=\"\",\"\",'[9]II.2.Balance OSD-Activos'!R36)","v":9197.2061488016534},{"$f":"IF('[9]II.2.Balance OSD-Activos'!S36=\"\",\"\",'[9]II.2.Balance OSD-Activos'!S36)","v":6894.883568591441},9236.3189505533755,16136.888065980758,-26.52376109205894,-12.363518768593817,-54.629441283130163,-12.291635505010511,-8.508939585828724,-10.786841849806073,-6.6765454670228106,{"$f":"IF('[2]MONE(M)CAPARD'!GS178=\"\",\"\",'[2]MONE(M)CAPARD'!GS178)","v":3144.4011199095171},{"$f":"IF('[2]MONE(M)CARD'!HA178=\"\",\"\",'[2]MONE(M)CAPARD'!HA178)","v":1998.4043408757716},{"$f":"IF('[2]MONE(M)CAPARD'!HB178=\"\",\"\",'[2]MONE(M)CAPARD'!HB178)","v":1145.9967790337455},"n.d.",{"$f":"IF('[10]II.2.Balance OSD-Activos'!J36=\"\",\"\",'[10]II.2.Balance OSD-Activos'!J36)","v":511.26716500172228},{"$f":"IF('[10]II.2.Balance OSD-Activos'!N36=\"\",\"\",'[10]II.2.Balance OSD-Activos'!N36)","v":345.74872634593987},{"$f":"IF('[10]II.2.Balance OSD-Activos'!R36=\"\",\"\",'[10]II.2.Balance OSD-Activos'!R36)","v":13977.45293248165},{"$f":"IF('[10]II.2.Balance OSD-Activos'!S36=\"\",\"\",'[10]II.2.Balance OSD-Activos'!S36)","v":11509.465662831441},14488.720097483372,26343.934486660753,-42.757627112025673,-8.8608493025274626,-9.2514633011897445,-6.8430597580864454,-4.1681242073578373,-6.8737785707988053,-3.6817298950385324,{"$f":"IF('[2]MONE(M)CAPARD'!AS178=\"\",\"\",'[2]MONE(M)CAPARD'!AS178)","v":"n.d."},{"$f":"IF('[2]MONE(M)CAPARD'!AT178=\"\",\"\",'[2]MONE(M)CAPARD'!AT178)","v":"n.a."},{"$f":"IF('[2]MONE(M)CAPARD'!AU178=\"\",\"\",'[2]MONE(M)CAPARD'!AU178)","v":"n.d."},{"$f":"IF('[2]MONE(M)CAPARD'!AV178=\"\",\"\",'[2]MONE(M)CAPARD'!AV178)","v":"n.d."},{"$f":"IF('[2]MONE(M)CAPARD'!AW178=\"\",\"\",'[2]MONE(M)CAPARD'!AW178)","v":"n.a."},{"$f":"IF('[2]MONE(M)CAPARD'!AX178=\"\",\"\",'[2]MONE(M)CAPARD'!AX178)","v":45},{"$f":"IF('[2]MONE(M)CAPARD'!AY178=\"\",\"\",'[2]MONE(M)CAPARD'!AY178)","v":"n.a."},{"$f":"IF('[2]FISCAL(M)'!$K178=\"\",\"\",'[2]FISCAL(M)'!$K178)","v":-130.77758964961183},{"$f":"IF('[2]FISCAL(M)'!$L178=\"\",\"\",'[2]FISCAL(M)'!$L178)","v":-29.795601342611832},{"$f":"IF('[2]FISCAL(M)'!$AY178=\"\",\"\",'[2]FISCAL(M)'!$AY178)","v":"n.d."},{"$f":"IF('[2]FISCAL(M)'!$BI178=\"\",\"\",'[2]FISCAL(M)'!$BI178)","v":"n.d."},{"$f":"IF('[2]FISCAL(M)'!$BS178=\"\",\"\",'[2]FISCAL(M)'!$BS178)","v":"n.d."},{"$f":"IF('[2]FISCAL(M)'!$AZ178=\"\",\"\",'[2]FISCAL(M)'!$AZ178)","v":"n.d."},{"$f":"IF('[2]FISCAL(M)'!$BJ178=\"\",\"\",'[2]FISCAL(M)'!$BJ178)","v":"n.d."},{"$f":"IF('[2]FISCAL(M)'!$BT178=\"\",\"\",'[2]FISCAL(M)'!$BT178)","v":"n.d."},{"$f":"IF('[3]MONE(M)'!$AO178=\"\",\"\",'[3]MONE(M)'!$AO178)","v":2257287.0812391425},{"$f":"IF('[4]MONE(M)'!$AO178=\"\",\"\",'[4]MONE(M)'!$AO178)","v":6454.7767428571424},{"$f":"IF('[5]MONE(M)'!$AO178=\"\",\"\",'[5]MONE(M)'!$AO178)","v":47210.935087723381},{"$f":"+'[1]MONE(M)'!$AO178","v":54468.857097785367},{"$f":"IF('[6]MONE(M)'!$AO178=\"\",\"\",'[6]MONE(M)'!$AO178)","v":14279.604961210829},{"$f":"IF('[7]MONE(M)'!$AO178=\"\",\"\",'[7]MONE(M)'!$AO178)","v":212308.14318394},{"$f":"IF('[8]MONE(M)'!$AO178=\"\",\"\",'[8]MONE(M)'!$AO178)","v":10069.615774819998},18.586425788635232,7.5663146233621914,25.846926342042732,20.177579465449604,25.042922859912188,33.163653948779405,0.51998112383775386,{"$f":"IF('[2]FISCAL(M)'!$K178=\"\",\"\",'[2]FISCAL(M)'!$K178)","v":-130.77758964961183},{"$f":"+'[2]REAL(A)'!$AO$24","v":95171.868879548187},-0.1374120222595682,{"$f":"IF('[2]FISCAL(M)'!$L178=\"\",\"\",'[2]FISCAL(M)'!$L178)","v":-29.795601342611832},{"$f":"+'[2]REAL(A)'!$AP$24","v":"n.d."},"n.d.","n.d.",{"$f":"'[2]Gráfico REM'!BG172","v":7746.24174379743},{"$f":"'[2]Gráfico REM'!BH172","v":25728.548583205054},{"$f":"'[2]Gráfico REM'!BI172","v":1993.0703846406323},"n.d.",2.3949206680196067,-1.8539444769195557,112.34837516901237,"n.d.",{"$f":"'[2]Gráfico REM'!BK172","v":8291.7041828174297},{"$f":"'[2]Gráfico REM'!BL172","v":35798.164358025053},{"$f":"'[2]Gráfico REM'!BM172","v":8318.9819805306324},"n.d.",3.7368441901961758,-1.1975961865145712,6.5599452767419075]
[2004,"febrero","2004-febrero",{"$f":"IF('[2]REAL IPC(M)'!$AL179=\"\",\"\",+'[2]REAL IPC(M)'!$AL179)","v":20.238478891395427},{"$f":"IF('[2]REAL IPC(M)'!$BE179=\"\",\"\",+'[2]REAL IPC(M)'!$BE179)","v":12.567201939922779},{"$f":"IF('[2]REAL IPC(M)'!$AM179=\"\",\"\",+'[2]REAL IPC(M)'!$AM179)","v":18.285268901013229},{"$f":"IF('[2]REAL IPC(M)'!$BI179=\"\",\"\",+'[2]REAL IPC(M)'!$BI179)","v":11.55317380487142},{"$f":"IF('[2]REAL IMAE(M)'!BJ179=\"\",\"\",'[2]REAL IMAE(M)'!BJ179)","v":"n.d."},{"$f":"IF('[2]REAL IMAE(M)'!BK179=\"\",\"\",'[2]REAL IMAE(M)'!BK179)","v":"n.d."},{"$f":"IF('[2]REAL IMAE(M)'!BN179=\"\",\"\",'[2]REAL IMAE(M)'!BN179)","v":"n.d."},{"$f":"IF('[2]REAL IMAE(M)'!BO179=\"\",\"\",'[2]REAL IMAE(M)'!BO179)","v":"n.d."},{"$f":"IF('[2]EXT RIN(M)'!$K179=\"\",\"\",'[2]EXT RIN(M)'!$K179)","v":8259.4031791232519},"",{"$f":"IF('[2]EXT RIN(M)'!$L179=\"\",\"\",'[2]EXT RIN(M)'!$L179)","v":9318.0039083325319},"",{"$f":"IF('[2]MONE(M)CARD'!EG179=\"\",\"\",'[2]MONE(M)CARD'!EG179)","v":6690.5212505255186},{"$f":"IF('[2]MONE(M)CARD'!EK179=\"\",\"\",'[2]MONE(M)CARD'!EK179)","v":12489.151230428019},{"$f":"IF('[2]MONE(M)CARD'!EP179=\"\",\"\",'[2]MONE(M)CARD'!EP179)","v":6373.2751175847952},{"$f":"IF('[2]MONE(M)CARD'!ES179=\"\",\"\",'[2]MONE(M)CARD'!ES179)","v":3.4081910865096932},{"$f":"IF('[2]MONE(M)CARD'!EV179=\"\",\"\",'[2]MONE(M)CARD'!EV179)","v":-1.185492734045035},{"$f":"IF('[2]MONE(M)CARD'!EZ179=\"\",\"\",'[2]MONE(M)CARD'!EZ179)","v":-0.31687986183003281},{"$f":"IF('[2]MONE(M)CAPARD'!FC179=\"\",\"\",'[2]MONE(M)CAPARD'!FC179)","v":8115.5706262555177},{"$f":"IF('[2]MONE(M)CAPARD'!FG179=\"\",\"\",'[2]MONE(M)CAPARD'!FG179)","v":21540.326589889017},{"$f":"IF('[2]MONE(M)CAPARD'!FL179=\"\",\"\",'[2]MONE(M)CAPARD'!FL179)","v":6373.2751175848025},{"$f":"IF('[2]MONE(M)CAPARD'!FO179=\"\",\"\",'[2]MONE(M)CAPARD'!FO179)","v":5.9049248204218197},{"$f":"IF('[2]MONE(M)CAPARD'!FR179=\"\",\"\",'[2]MONE(M)CAPARD'!FR179)","v":1.1550974524242807},{"$f":"IF('[2]MONE(M)CAPARD'!FV179=\"\",\"\",'[2]MONE(M)CAPARD'!FV179)","v":1.3716714591095691},{"$f":"IF('[2]MONE(M)CARD'!FV179=\"\",\"\",'[2]MONE(M)CARD'!FV179)","v":313.96141685825285},{"$f":"IF('[2]MONE(M)CARD'!GD179=\"\",\"\",'[2]MONE(M)CARD'!GD179)","v":3.7097485937224537},{"$f":"IF('[2]MONE(M)CARD'!GE179=\"\",\"\",'[2]MONE(M)CARD'!GE179)","v":1885.2445659293926},-20.338543639932471,{"$f":"IF('[9]II.2.Balance OSD-Activos'!J37=\"\",\"\",'[9]II.2.Balance OSD-Activos'!J37)","v":34.758660108647959},{"$f":"IF('[9]II.2.Balance OSD-Activos'!N37=\"\",\"\",'[9]II.2.Balance OSD-Activos'!N37)","v":6.221343336749853},{"$f":"IF('[9]II.2.Balance OSD-Activos'!R37=\"\",\"\",'[9]II.2.Balance OSD-Activos'!R37)","v":9196.9241376863138},{"$f":"IF('[9]II.2.Balance OSD-Activos'!S37=\"\",\"\",'[9]II.2.Balance OSD-Activos'!S37)","v":7155.8552701979352},9231.6827977949615,16393.759411329647,-28.244564496378068,-12.141053675541446,-50.460573660526308,-12.066470530547946,-5.8275079243716998,-9.5198101160542166,1.2670317337518568,{"$f":"IF('[2]MONE(M)CAPARD'!GS179=\"\",\"\",'[2]MONE(M)CAPARD'!GS179)","v":3090.3337270104739},{"$f":"IF('[2]MONE(M)CARD'!HA179=\"\",\"\",'[2]MONE(M)CAPARD'!HA179)","v":2077.9444853393929},{"$f":"IF('[2]MONE(M)CAPARD'!HB179=\"\",\"\",'[2]MONE(M)CAPARD'!HB179)","v":1012.389241671081},"n.d.",{"$f":"IF('[10]II.2.Balance OSD-Activos'!J37=\"\",\"\",'[10]II.2.Balance OSD-Activos'!J37)","v":523.88521217864798},{"$f":"IF('[10]II.2.Balance OSD-Activos'!N37=\"\",\"\",'[10]II.2.Balance OSD-Activos'!N37)","v":349.52070435674977},{"$f":"IF('[10]II.2.Balance OSD-Activos'!R37=\"\",\"\",'[10]II.2.Balance OSD-Activos'!R37)","v":13976.097513046312},{"$f":"IF('[10]II.2.Balance OSD-Activos'!S37=\"\",\"\",'[10]II.2.Balance OSD-Activos'!S37)","v":11812.060248557935},14499.98272522496,26661.563678139646,-37.459733680000404,-8.1492575676233248,-8.0287256805715135,-6.5068029621712764,-2.3155264319857372,-5.6513373078681202,1.2224412629306851,{"$f":"IF('[2]MONE(M)CAPARD'!AS179=\"\",\"\",'[2]MONE(M)CAPARD'!AS179)","v":"n.d."},{"$f":"IF('[2]MONE(M)CAPARD'!AT179=\"\",\"\",'[2]MONE(M)CAPARD'!AT179)","v":"n.a."},{"$f":"IF('[2]MONE(M)CAPARD'!AU179=\"\",\"\",'[2]MONE(M)CAPARD'!AU179)","v":"n.d."},{"$f":"IF('[2]MONE(M)CAPARD'!AV179=\"\",\"\",'[2]MONE(M)CAPARD'!AV179)","v":"n.d."},{"$f":"IF('[2]MONE(M)CAPARD'!AW179=\"\",\"\",'[2]MONE(M)CAPARD'!AW179)","v":"n.a."},{"$f":"IF('[2]MONE(M)CAPARD'!AX179=\"\",\"\",'[2]MONE(M)CAPARD'!AX179)","v":50},{"$f":"IF('[2]MONE(M)CAPARD'!AY179=\"\",\"\",'[2]MONE(M)CAPARD'!AY179)","v":"n.a."},{"$f":"IF('[2]FISCAL(M)'!$K179=\"\",\"\",'[2]FISCAL(M)'!$K179)","v":-256.08403758575764},{"$f":"IF('[2]FISCAL(M)'!$L179=\"\",\"\",'[2]FISCAL(M)'!$L179)","v":-487.7470750887577},{"$f":"IF('[2]FISCAL(M)'!$AY179=\"\",\"\",'[2]FISCAL(M)'!$AY179)","v":"n.d."},{"$f":"IF('[2]FISCAL(M)'!$BI179=\"\",\"\",'[2]FISCAL(M)'!$BI179)","v":"n.d."},{"$f":"IF('[2]FISCAL(M)'!$BS179=\"\",\"\",'[2]FISCAL(M)'!$BS179)","v":"n.d."},{"$f":"IF('[2]FISCAL(M)'!$AZ179=\"\",\"\",'[2]FISCAL(M)'!$AZ179)","v":"n.d."},{"$f":"IF('[2]FISCAL(M)'!$BJ179=\"\",\"\",'[2]FISCAL(M)'!$BJ179)","v":"n.d."},{"$f":"IF('[2]FISCAL(M)'!$BT179=\"\",\"\",'[2]FISCAL(M)'!$BT179)","v":"n.d."},{"$f":"IF('[3]MONE(M)'!$AO179=\"\",\"\",'[3]MONE(M)'!$AO179)","v":2264679.7001891024},{"$f":"IF('[4]MONE(M)'!$AO179=\"\",\"\",'[4]MONE(M)'!$AO179)","v":6519.8817428571429},{"$f":"IF('[5]MONE(M)'!$AO179=\"\",\"\",'[5]MONE(M)'!$AO179)","v":47060.365496984297},{"$f":"+'[1]MONE(M)'!$AO179","v":55252.158056538923},{"$f":"IF('[6]MONE(M)'!$AO179=\"\",\"\",'[6]MONE(M)'!$AO179)","v":14523.739080641208},{"$f":"IF('[7]MONE(M)'!$AO179=\"\",\"\",'[7]MONE(M)'!$AO179)","v":209462.19771930002},{"$f":"IF('[8]MONE(M)'!$AO179=\"\",\"\",'[8]MONE(M)'!$AO179)","v":10139.172773419999},16.514868962800342,7.8441323074716074,25.287096026669676,20.667431012250368,23.21342711859986,31.26793037990425,1.7907636489177481,{"$f":"IF('[2]FISCAL(M)'!$K179=\"\",\"\",'[2]FISCAL(M)'!$K179)","v":-256.08403758575764},{"$f":"+'[2]REAL(A)'!$AO$24","v":95171.868879548187},-0.26907534821015627,{"$f":"IF('[2]FISCAL(M)'!$L179=\"\",\"\",'[2]FISCAL(M)'!$L179)","v":-487.7470750887577},{"$f":"+'[2]REAL(A)'!$AP$24","v":"n.d."},"n.d.","n.d.",{"$f":"'[2]Gráfico REM'!BG173","v":7684.5847636800518},{"$f":"'[2]Gráfico REM'!BH173","v":26026.018963127757},{"$f":"'[2]Gráfico REM'!BI173","v":2037.6084268549625},"n.d.",6.4329599305571028,-1.0071464920524131,123.35907468395963,"n.d.",{"$f":"'[2]Gráfico REM'!BK173","v":8227.4450437800515},{"$f":"'[2]Gráfico REM'!BL173","v":36165.191736547757},{"$f":"'[2]Gráfico REM'!BM173","v":8268.4573336649628},"n.d.",7.2883934999807609,-0.23836895978991413,5.5581119993698636]
[2004,"marzo","2004-marzo",{"$f":"IF('[2]REAL IPC(M)'!$AL180=\"\",\"\",+'[2]REAL IPC(M)'!$AL180)","v":20.601888906675203},{"$f":"IF('[2]REAL IPC(M)'!$BE180=\"\",\"\",+'[2]REAL IPC(M)'!$BE180)","v":12.597076610753643},{"$f":"IF('[2]REAL IPC(M)'!$AM180=\"\",\"\",+'[2]REAL IPC(M)'!$AM180)","v":18.596001859600175},{"$f":"IF('[2]REAL IPC(M)'!$BI180=\"\",\"\",+'[2]REAL IPC(M)'!$BI180)","v":11.589320405016302},{"$f":"IF('[2]REAL IMAE(M)'!BJ180=\"\",\"\",'[2]REAL IMAE(M)'!BJ180)","v":"n.d."},{"$f":"IF('[2]REAL IMAE(M)'!BK180=\"\",\"\",'[2]REAL IMAE(M)'!BK180)","v":"n.d."},{"$f":"IF('[2]REAL IMAE(M)'!BN180=\"\",\"\",'[2]REAL IMAE(M)'!BN180)","v":"n.d."},{"$f":"IF('[2]REAL IMAE(M)'!BO180=\"\",\"\",'[2]REAL IMAE(M)'!BO180)","v":"n.d."},{"$f":"IF('[2]EXT RIN(M)'!$K180=\"\",\"\",'[2]EXT RIN(M)'!$K180)","v":8521.7542298615499},"",{"$f":"IF('[2]EXT RIN(M)'!$L180=\"\",\"\",'[2]EXT RIN(M)'!$L180)","v":9482.0687180005898},"",{"$f":"IF('[2]MONE(M)CARD'!EG180=\"\",\"\",'[2]MONE(M)CARD'!EG180)","v":6747.302275157871},{"$f":"IF('[2]MONE(M)CARD'!EK180=\"\",\"\",'[2]MONE(M)CARD'!EK180)","v":13238.980742685148},{"$f":"IF('[2]MONE(M)CARD'!EP180=\"\",\"\",'[2]MONE(M)CARD'!EP180)","v":6410.3623639602047},{"$f":"IF('[2]MONE(M)CARD'!ES180=\"\",\"\",'[2]MONE(M)CARD'!ES180)","v":5.599261432801339},{"$f":"IF('[2]MONE(M)CARD'!EV180=\"\",\"\",'[2]MONE(M)CARD'!EV180)","v":2.4164993725509287},{"$f":"IF('[2]MONE(M)CARD'!EZ180=\"\",\"\",'[2]MONE(M)CARD'!EZ180)","v":1.0970252572874317},{"$f":"IF('[2]MONE(M)CAPARD'!FC180=\"\",\"\",'[2]MONE(M)CAPARD'!FC180)","v":8205.832946107872},{"$f":"IF('[2]MONE(M)CAPARD'!FG180=\"\",\"\",'[2]MONE(M)CAPARD'!FG180)","v":22350.222028095148},{"$f":"IF('[2]MONE(M)CAPARD'!FL180=\"\",\"\",'[2]MONE(M)CAPARD'!FL180)","v":6410.3623639602083},{"$f":"IF('[2]MONE(M)CAPARD'!FO180=\"\",\"\",'[2]MONE(M)CAPARD'!FO180)","v":7.3455812577010393},{"$f":"IF('[2]MONE(M)CAPARD'!FR180=\"\",\"\",'[2]MONE(M)CAPARD'!FR180)","v":3.7895025361206702},{"$f":"IF('[2]MONE(M)CAPARD'!FV180=\"\",\"\",'[2]MONE(M)CAPARD'!FV180)","v":2.5821682857734896},{"$f":"IF('[2]MONE(M)CARD'!FV180=\"\",\"\",'[2]MONE(M)CARD'!FV180)","v":308.85218716521996},{"$f":"IF('[2]MONE(M)CARD'!GD180=\"\",\"\",'[2]MONE(M)CARD'!GD180)","v":1.9524097455413267},{"$f":"IF('[2]MONE(M)CARD'!GE180=\"\",\"\",'[2]MONE(M)CARD'!GE180)","v":1799.6908390792296},-25.437325588389147,{"$f":"IF('[9]II.2.Balance OSD-Activos'!J38=\"\",\"\",'[9]II.2.Balance OSD-Activos'!J38)","v":31.860360255101064},{"$f":"IF('[9]II.2.Balance OSD-Activos'!N38=\"\",\"\",'[9]II.2.Balance OSD-Activos'!N38)","v":7.2063528394402621},{"$f":"IF('[9]II.2.Balance OSD-Activos'!R38=\"\",\"\",'[9]II.2.Balance OSD-Activos'!R38)","v":9255.2895540670288},{"$f":"IF('[9]II.2.Balance OSD-Activos'!S38=\"\",\"\",'[9]II.2.Balance OSD-Activos'!S38)","v":7472.372042982086},9287.1499143221299,16766.728310143655,-32.147361131486598,-13.960588033394917,-38.225728387915503,-13.881128152493128,-1.4989016321204862,-8.835900519112073,0.68390959694214359,{"$f":"IF('[2]MONE(M)CAPARD'!GS180=\"\",\"\",'[2]MONE(M)CAPARD'!GS180)","v":3173.6636204160422},{"$f":"IF('[2]MONE(M)CARD'!HA180=\"\",\"\",'[2]MONE(M)CAPARD'!HA180)","v":1999.2494521692295},{"$f":"IF('[2]MONE(M)CAPARD'!HB180=\"\",\"\",'[2]MONE(M)CAPARD'!HB180)","v":1174.4141682468128},"n.d.",{"$f":"IF('[10]II.2.Balance OSD-Activos'!J38=\"\",\"\",'[10]II.2.Balance OSD-Activos'!J38)","v":514.90659575510108},{"$f":"IF('[10]II.2.Balance OSD-Activos'!N38=\"\",\"\",'[10]II.2.Balance OSD-Activos'!N38)","v":364.80788350944016},{"$f":"IF('[10]II.2.Balance OSD-Activos'!R38=\"\",\"\",'[10]II.2.Balance OSD-Activos'!R38)","v":14091.217349777031},{"$f":"IF('[10]II.2.Balance OSD-Activos'!S38=\"\",\"\",'[10]II.2.Balance OSD-Activos'!S38)","v":12162.944537372086},14606.123945532132,27133.876366413657,-37.989919689696031,-9.2264077394297654,-3.4487030501975102,-7.6613033886857362,0.72451106222330974,-4.9402227268488863,0.71111458101923386,{"$f":"IF('[2]MONE(M)CAPARD'!AS180=\"\",\"\",'[2]MONE(M)CAPARD'!AS180)","v":"n.d."},{"$f":"IF('[2]MONE(M)CAPARD'!AT180=\"\",\"\",'[2]MONE(M)CAPARD'!AT180)","v":"n.a."},{"$f":"IF('[2]MONE(M)CAPARD'!AU180=\"\",\"\",'[2]MONE(M)CAPARD'!AU180)","v":"n.d."},{"$f":"IF('[2]MONE(M)CAPARD'!AV180=\"\",\"\",'[2]MONE(M)CAPARD'!AV180)","v":"n.d."},{"$f":"IF('[2]MONE(M)CAPARD'!AW180=\"\",\"\",'[2]MONE(M)CAPARD'!AW180)","v":"n.a."},{"$f":"IF('[2]MONE(M)CAPARD'!AX180=\"\",\"\",'[2]MONE(M)CAPARD'!AX180)","v":50},{"$f":"IF('[2]MONE(M)CAPARD'!AY180=\"\",\"\",'[2]MONE(M)CAPARD'!AY180)","v":"n.a."},{"$f":"IF('[2]FISCAL(M)'!$K180=\"\",\"\",'[2]FISCAL(M)'!$K180)","v":-477.92053644253923},{"$f":"IF('[2]FISCAL(M)'!$L180=\"\",\"\",'[2]FISCAL(M)'!$L180)","v":-682.02588688553942},{"$f":"IF('[2]FISCAL(M)'!$AY180=\"\",\"\",'[2]FISCAL(M)'!$AY180)","v":"n.d."},{"$f":"IF('[2]FISCAL(M)'!$BI180=\"\",\"\",'[2]FISCAL(M)'!$BI180)","v":"n.d."},{"$f":"IF('[2]FISCAL(M)'!$BS180=\"\",\"\",'[2]FISCAL(M)'!$BS180)","v":"n.d."},{"$f":"IF('[2]FISCAL(M)'!$AZ180=\"\",\"\",'[2]FISCAL(M)'!$AZ180)","v":"n.d."},{"$f":"IF('[2]FISCAL(M)'!$BJ180=\"\",\"\",'[2]FISCAL(M)'!$BJ180)","v":"n.d."},{"$f":"IF('[2]FISCAL(M)'!$BT180=\"\",\"\",'[2]FISCAL(M)'!$BT180)","v":"n.d."},{"$f":"IF('[3]MONE(M)'!$AO180=\"\",\"\",'[3]MONE(M)'!$AO180)","v":2293291.7168150079},{"$f":"IF('[4]MONE(M)'!$AO180=\"\",\"\",'[4]MONE(M)'!$AO180)","v":6534.0687428571437},{"$f":"IF('[5]MONE(M)'!$AO180=\"\",\"\",'[5]MONE(M)'!$AO180)","v":47367.7027573175},{"$f":"+'[1]MONE(M)'!$AO180","v":56106.371277071557},{"$f":"IF('[6]MONE(M)'!$AO180=\"\",\"\",'[6]MONE(M)'!$AO180)","v":15044.625254663562},{"$f":"IF('[7]MONE(M)'!$AO180=\"\",\"\",'[7]MONE(M)'!$AO180)","v":200932.02052202},{"$f":"IF('[8]MONE(M)'!$AO180=\"\",\"\",'[8]MONE(M)'!$AO180)","v":10212.338378479999},17.405096302625477,7.2679598665294609,24.172067551146338,20.486653068902893,28.003303051288974,17.527089762195793,2.3277243505253509,{"$f":"IF('[2]FISCAL(M)'!$K180=\"\",\"\",'[2]FISCAL(M)'!$K180)","v":-477.92053644253923},{"$f":"+'[2]REAL(A)'!$AO$24","v":95171.868879548187},-0.50216575766459626,{"$f":"IF('[2]FISCAL(M)'!$L180=\"\",\"\",'[2]FISCAL(M)'!$L180)","v":-682.02588688553942},{"$f":"+'[2]REAL(A)'!$AP$24","v":"n.d."},"n.d.","n.d.",{"$f":"'[2]Gráfico REM'!BG174","v":7969.4904818365485},{"$f":"'[2]Gráfico REM'!BH174","v":26443.189789213458},{"$f":"'[2]Gráfico REM'!BI174","v":2020.0238783190803},"n.d.",7.8662811661415422,-0.77618265737228187,120.53043025667077,"n.d.",{"$f":"'[2]Gráfico REM'!BK174","v":8509.6849449465481},{"$f":"'[2]Gráfico REM'!BL174","v":36655.528167693454},{"$f":"'[2]Gráfico REM'!BM174","v":8188.0980909490791},"n.d.",8.8298846569311316,6.9490977208652716E-2,2.7316647205775313]
[2004,"abril","2004-abril",{"$f":"IF('[2]REAL IPC(M)'!$AL181=\"\",\"\",+'[2]REAL IPC(M)'!$AL181)","v":21.0400382836178},{"$f":"IF('[2]REAL IPC(M)'!$BE181=\"\",\"\",+'[2]REAL IPC(M)'!$BE181)","v":12.602384367339582},{"$f":"IF('[2]REAL IPC(M)'!$AM181=\"\",\"\",+'[2]REAL IPC(M)'!$AM181)","v":18.986559555074912},{"$f":"IF('[2]REAL IPC(M)'!$BI181=\"\",\"\",+'[2]REAL IPC(M)'!$BI181)","v":11.601957563066701},{"$f":"IF('[2]REAL IMAE(M)'!BJ181=\"\",\"\",'[2]REAL IMAE(M)'!BJ181)","v":"n.d."},{"$f":"IF('[2]REAL IMAE(M)'!BK181=\"\",\"\",'[2]REAL IMAE(M)'!BK181)","v":"n.d."},{"$f":"IF('[2]REAL IMAE(M)'!BN181=\"\",\"\",'[2]REAL IMAE(M)'!BN181)","v":"n.d."},{"$f":"IF('[2]REAL IMAE(M)'!BO181=\"\",\"\",'[2]REAL IMAE(M)'!BO181)","v":"n.d."},{"$f":"IF('[2]EXT RIN(M)'!$K181=\"\",\"\",'[2]EXT RIN(M)'!$K181)","v":8396.2645054101631},"",{"$f":"IF('[2]EXT RIN(M)'!$L181=\"\",\"\",'[2]EXT RIN(M)'!$L181)","v":9340.6075733727121},"",{"$f":"IF('[2]MONE(M)CARD'!EG181=\"\",\"\",'[2]MONE(M)CARD'!EG181)","v":6719.1105301668022},{"$f":"IF('[2]MONE(M)CARD'!EK181=\"\",\"\",'[2]MONE(M)CARD'!EK181)","v":13013.744058559725},{"$f":"IF('[2]MONE(M)CARD'!EP181=\"\",\"\",'[2]MONE(M)CARD'!EP181)","v":6696.4092315656271},{"$f":"IF('[2]MONE(M)CARD'!ES181=\"\",\"\",'[2]MONE(M)CARD'!ES181)","v":-2.5326619273265294},{"$f":"IF('[2]MONE(M)CARD'!EV181=\"\",\"\",'[2]MONE(M)CARD'!EV181)","v":-7.1011270466770586},{"$f":"IF('[2]MONE(M)CARD'!EZ181=\"\",\"\",'[2]MONE(M)CARD'!EZ181)","v":-4.957564591690411},{"$f":"IF('[2]MONE(M)CAPARD'!FC181=\"\",\"\",'[2]MONE(M)CAPARD'!FC181)","v":8176.788275096802},{"$f":"IF('[2]MONE(M)CAPARD'!FG181=\"\",\"\",'[2]MONE(M)CAPARD'!FG181)","v":22228.286362519728},{"$f":"IF('[2]MONE(M)CAPARD'!FL181=\"\",\"\",'[2]MONE(M)CAPARD'!FL181)","v":6696.4092315656271},{"$f":"IF('[2]MONE(M)CAPARD'!FO181=\"\",\"\",'[2]MONE(M)CAPARD'!FO181)","v":0.60172734544730044},{"$f":"IF('[2]MONE(M)CAPARD'!FR181=\"\",\"\",'[2]MONE(M)CAPARD'!FR181)","v":-2.4165780949691573},{"$f":"IF('[2]MONE(M)CAPARD'!FV181=\"\",\"\",'[2]MONE(M)CAPARD'!FV181)","v":-1.6519285461955024},{"$f":"IF('[2]MONE(M)CARD'!FV181=\"\",\"\",'[2]MONE(M)CARD'!FV181)","v":305.41726100815634},{"$f":"IF('[2]MONE(M)CARD'!GD181=\"\",\"\",'[2]MONE(M)CARD'!GD181)","v":2.5774977144615385},{"$f":"IF('[2]MONE(M)CARD'!GE181=\"\",\"\",'[2]MONE(M)CARD'!GE181)","v":2081.8677708951514},-13.594754784643836,{"$f":"IF('[9]II.2.Balance OSD-Activos'!J39=\"\",\"\",'[9]II.2.Balance OSD-Activos'!J39)","v":29.851598225417391},{"$f":"IF('[9]II.2.Balance OSD-Activos'!N39=\"\",\"\",'[9]II.2.Balance OSD-Activos'!N39)","v":8.8910027427909704},{"$f":"IF('[9]II.2.Balance OSD-Activos'!R39=\"\",\"\",'[9]II.2.Balance OSD-Activos'!R39)","v":9108.215091639122},{"$f":"IF('[9]II.2.Balance OSD-Activos'!S39=\"\",\"\",'[9]II.2.Balance OSD-Activos'!S39)","v":7497.8312427826895},9138.0666898645395,16644.788935390017,-26.090963199483596,-14.739784488380414,{"$f":"IF(OR(AG174=\"\",AG162=\"\"),\"\",((AG174/AG162)-1)*100)","v":-23.170451882673582},-14.696846389122376,-1.8645596105112627,-9.3900626183688889,-0.55416209925681592,{"$f":"IF('[2]MONE(M)CAPARD'!GS181=\"\",\"\",'[2]MONE(M)CAPARD'!GS181)","v":3407.2136786849273},{"$f":"IF('[2]MONE(M)CARD'!HA181=\"\",\"\",'[2]MONE(M)CAPARD'!HA181)","v":2270.4826934751513},{"$f":"IF('[2]MONE(M)CAPARD'!HB181=\"\",\"\",'[2]MONE(M)CAPARD'!HB181)","v":1136.730985209776},"n.d.",{"$f":"IF('[10]II.2.Balance OSD-Activos'!J39=\"\",\"\",'[10]II.2.Balance OSD-Activos'!J39)","v":536.3735720454174},{"$f":"IF('[10]II.2.Balance OSD-Activos'!N39=\"\",\"\",'[10]II.2.Balance OSD-Activos'!N39)","v":394.75348631279093},{"$f":"IF('[10]II.2.Balance OSD-Activos'!R39=\"\",\"\",'[10]II.2.Balance OSD-Activos'!R39)","v":13939.497847819124},{"$f":"IF('[10]II.2.Balance OSD-Activos'!S39=\"\",\"\",'[10]II.2.Balance OSD-Activos'!S39)","v":12236.811980282688},14475.871419864541,27107.436886460018,-37.214116058586747,-9.4301334077667391,8.7492289090354447,-7.8612339234001567,0.71990926972442804,-4.8709689271316137,6.9253799717272635E-2,{"$f":"IF('[2]MONE(M)CAPARD'!AS181=\"\",\"\",'[2]MONE(M)CAPARD'!AS181)","v":"n.d."},{"$f":"IF('[2]MONE(M)CAPARD'!AT181=\"\",\"\",'[2]MONE(M)CAPARD'!AT181)","v":"n.a."},{"$f":"IF('[2]MONE(M)CAPARD'!AU181=\"\",\"\",'[2]MONE(M)CAPARD'!AU181)","v":"n.d."},{"$f":"IF('[2]MONE(M)CAPARD'!AV181=\"\",\"\",'[2]MONE(M)CAPARD'!AV181)","v":"n.d."},{"$f":"IF('[2]MONE(M)CAPARD'!AW181=\"\",\"\",'[2]MONE(M)CAPARD'!AW181)","v":"n.a."},{"$f":"IF('[2]MONE(M)CAPARD'!AX181=\"\",\"\",'[2]MONE(M)CAPARD'!AX181)","v":50},{"$f":"IF('[2]MONE(M)CAPARD'!AY181=\"\",\"\",'[2]MONE(M)CAPARD'!AY181)","v":"n.a."},{"$f":"IF('[2]FISCAL(M)'!$K181=\"\",\"\",'[2]FISCAL(M)'!$K181)","v":-288.45871613859413},{"$f":"IF('[2]FISCAL(M)'!$L181=\"\",\"\",'[2]FISCAL(M)'!$L181)","v":-563.76182943159415},{"$f":"IF('[2]FISCAL(M)'!$AY181=\"\",\"\",'[2]FISCAL(M)'!$AY181)","v":"n.d."},{"$f":"IF('[2]FISCAL(M)'!$BI181=\"\",\"\",'[2]FISCAL(M)'!$BI181)","v":"n.d."},{"$f":"IF('[2]FISCAL(M)'!$BS181=\"\",\"\",'[2]FISCAL(M)'!$BS181)","v":"n.d."},{"$f":"IF('[2]FISCAL(M)'!$AZ181=\"\",\"\",'[2]FISCAL(M)'!$AZ181)","v":"n.d."},{"$f":"IF('[2]FISCAL(M)'!$BJ181=\"\",\"\",'[2]FISCAL(M)'!$BJ181)","v":"n.d."},{"$f":"IF('[2]FISCAL(M)'!$BT181=\"\",\"\",'[2]FISCAL(M)'!$BT181)","v":"n.d."},{"$f":"IF('[3]MONE(M)'!$AO181=\"\",\"\",'[3]MONE(M)'!$AO181)","v":2363615.6141269617},{"$f":"IF('[4]MONE(M)'!$AO181=\"\",\"\",'[4]MONE(M)'!$AO181)","v":6574.8637428571428},{"$f":"IF('[5]MONE(M)'!$AO181=\"\",\"\",'[5]MONE(M)'!$AO181)","v":47524.420238413499},{"$f":"+'[1]MONE(M)'!$AO181","v":56717.839087645792},{"$f":"IF('[6]MONE(M)'!$AO181=\"\",\"\",'[6]MONE(M)'!$AO181)","v":15006.401547596222},{"$f":"IF('[7]MONE(M)'!$AO181=\"\",\"\",'[7]MONE(M)'!$AO181)","v":200349.53881819002},{"$f":"IF('[8]MONE(M)'!$AO181=\"\",\"\",'[8]MONE(M)'!$AO181)","v":10276.651957710001},20.180146416134971,7.0398516893920071,24.956212498693155,20.654299430083256,25.98057690287272,17.920046878551467,3.0338905134093208,{"$f":"IF('[2]FISCAL(M)'!$K181=\"\",\"\",'[2]FISCAL(M)'!$K181)","v":-288.45871613859413},{"$f":"+'[2]REAL(A)'!$AO$24","v":95171.868879548187},-0.30309241536874137,{"$f":"IF('[2]FISCAL(M)'!$L181=\"\",\"\",'[2]FISCAL(M)'!$L181)","v":-563.76182943159415},{"$f":"+'[2]REAL(A)'!$AP$24","v":"n.d."},"n.d.","n.d.",{"$f":"'[2]Gráfico REM'!BG175","v":8467.7530404840327},{"$f":"'[2]Gráfico REM'!BH175","v":26465.312137103556},{"$f":"'[2]Gráfico REM'!BI175","v":2100.3960726269515},"n.d.",4.7666540020397496,-0.67538321445504979,102.92294270365061,"n.d.",{"$f":"'[2]Gráfico REM'!BK175","v":9003.3417582940328},{"$f":"'[2]Gráfico REM'!BL175","v":36741.964094813557},{"$f":"'[2]Gráfico REM'!BM175","v":8427.8090572069523},"n.d.",5.5685503172501427,0.33491633061586423,8.5378143028294708]
[2004,"mayo ","2004-mayo ",{"$f":"IF('[2]REAL IPC(M)'!$AL182=\"\",\"\",+'[2]REAL IPC(M)'!$AL182)","v":21.999682085519012},{"$f":"IF('[2]REAL IPC(M)'!$BE182=\"\",\"\",+'[2]REAL IPC(M)'!$BE182)","v":12.583013685102863},{"$f":"IF('[2]REAL IPC(M)'!$AM182=\"\",\"\",+'[2]REAL IPC(M)'!$AM182)","v":19.919889077183804},{"$f":"IF('[2]REAL IPC(M)'!$BI182=\"\",\"\",+'[2]REAL IPC(M)'!$BI182)","v":11.590878852911102},{"$f":"IF('[2]REAL IMAE(M)'!BJ182=\"\",\"\",'[2]REAL IMAE(M)'!BJ182)","v":"n.d."},{"$f":"IF('[2]REAL IMAE(M)'!BK182=\"\",\"\",'[2]REAL IMAE(M)'!BK182)","v":"n.d."},{"$f":"IF('[2]REAL IMAE(M)'!BN182=\"\",\"\",'[2]REAL IMAE(M)'!BN182)","v":"n.d."},{"$f":"IF('[2]REAL IMAE(M)'!BO182=\"\",\"\",'[2]REAL IMAE(M)'!BO182)","v":"n.d."},{"$f":"IF('[2]EXT RIN(M)'!$K182=\"\",\"\",'[2]EXT RIN(M)'!$K182)","v":8390.096511707261},"",{"$f":"IF('[2]EXT RIN(M)'!$L182=\"\",\"\",'[2]EXT RIN(M)'!$L182)","v":9223.7991021306207},"",{"$f":"IF('[2]MONE(M)CARD'!EG182=\"\",\"\",'[2]MONE(M)CARD'!EG182)","v":6801.0372026461864},{"$f":"IF('[2]MONE(M)CARD'!EK182=\"\",\"\",'[2]MONE(M)CARD'!EK182)","v":13045.187262939102},{"$f":"IF('[2]MONE(M)CARD'!EP182=\"\",\"\",'[2]MONE(M)CARD'!EP182)","v":7131.2094910646374},{"$f":"IF('[2]MONE(M)CARD'!ES182=\"\",\"\",'[2]MONE(M)CARD'!ES182)","v":3.6319409560003013},{"$f":"IF('[2]MONE(M)CARD'!EV182=\"\",\"\",'[2]MONE(M)CARD'!EV182)","v":-2.772032122420609},{"$f":"IF('[2]MONE(M)CARD'!EZ182=\"\",\"\",'[2]MONE(M)CARD'!EZ182)","v":0.66018759929074022},{"$f":"IF('[2]MONE(M)CAPARD'!FC182=\"\",\"\",'[2]MONE(M)CAPARD'!FC182)","v":8209.7425501461876},{"$f":"IF('[2]MONE(M)CAPARD'!FG182=\"\",\"\",'[2]MONE(M)CAPARD'!FG182)","v":22365.017810489098},{"$f":"IF('[2]MONE(M)CAPARD'!FL182=\"\",\"\",'[2]MONE(M)CAPARD'!FL182)","v":7131.209491064641},{"$f":"IF('[2]MONE(M)CAPARD'!FO182=\"\",\"\",'[2]MONE(M)CAPARD'!FO182)","v":4.8451030853647215},{"$f":"IF('[2]MONE(M)CAPARD'!FR182=\"\",\"\",'[2]MONE(M)CAPARD'!FR182)","v":0.6548081239174941},{"$f":"IF('[2]MONE(M)CAPARD'!FV182=\"\",\"\",'[2]MONE(M)CAPARD'!FV182)","v":2.5613590484398596},{"$f":"IF('[2]MONE(M)CARD'!FV182=\"\",\"\",'[2]MONE(M)CARD'!FV182)","v":266.02061097256836},{"$f":"IF('[2]MONE(M)CARD'!GD182=\"\",\"\",'[2]MONE(M)CARD'!GD182)","v":3.0500842002490853},{"$f":"IF('[2]MONE(M)CARD'!GE182=\"\",\"\",'[2]MONE(M)CARD'!GE182)","v":1941.1230715888482},-9.6686842120654042,{"$f":"IF('[9]II.2.Balance OSD-Activos'!J40=\"\",\"\",'[9]II.2.Balance OSD-Activos'!J40)","v":30.815637434316582},{"$f":"IF('[9]II.2.Balance OSD-Activos'!N40=\"\",\"\",'[9]II.2.Balance OSD-Activos'!N40)","v":10.297305464819754},{"$f":"IF('[9]II.2.Balance OSD-Activos'!R40=\"\",\"\",'[9]II.2.Balance OSD-Activos'!R40)","v":9035.4637889888454},{"$f":"IF('[9]II.2.Balance OSD-Activos'!S40=\"\",\"\",'[9]II.2.Balance OSD-Activos'!S40)","v":7518.9001175446865},9066.2794264231616,16595.476849432671,-18.849102940530603,-13.307587230472585,-17.582072799367388,-13.287392493746875,3.0916241649035614,-6.5774834105247315,2.8125792078441574,{"$f":"IF('[2]MONE(M)CAPARD'!GS182=\"\",\"\",'[2]MONE(M)CAPARD'!GS182)","v":3766.6221561811094},{"$f":"IF('[2]MONE(M)CARD'!HA182=\"\",\"\",'[2]MONE(M)CAPARD'!HA182)","v":2131.7794306488477},{"$f":"IF('[2]MONE(M)CAPARD'!HB182=\"\",\"\",'[2]MONE(M)CAPARD'!HB182)","v":1634.8427255322617},"n.d.",{"$f":"IF('[10]II.2.Balance OSD-Activos'!J40=\"\",\"\",'[10]II.2.Balance OSD-Activos'!J40)","v":538.26657756431655},{"$f":"IF('[10]II.2.Balance OSD-Activos'!N40=\"\",\"\",'[10]II.2.Balance OSD-Activos'!N40)","v":450.79833013481976},{"$f":"IF('[10]II.2.Balance OSD-Activos'!R40=\"\",\"\",'[10]II.2.Balance OSD-Activos'!R40)","v":13896.345944598845},{"$f":"IF('[10]II.2.Balance OSD-Activos'!S40=\"\",\"\",'[10]II.2.Balance OSD-Activos'!S40)","v":12266.770652824685},14434.612522163161,27152.181505122666,-36.959923614402399,-8.1088794678161218,31.103459583687076,-6.4505032654704086,3.7003858483311891,-2.6150322163940309,2.2559367107375827,{"$f":"IF('[2]MONE(M)CAPARD'!AS182=\"\",\"\",'[2]MONE(M)CAPARD'!AS182)","v":"n.d."},{"$f":"IF('[2]MONE(M)CAPARD'!AT182=\"\",\"\",'[2]MONE(M)CAPARD'!AT182)","v":"n.a."},{"$f":"IF('[2]MONE(M)CAPARD'!AU182=\"\",\"\",'[2]MONE(M)CAPARD'!AU182)","v":"n.d."},{"$f":"IF('[2]MONE(M)CAPARD'!AV182=\"\",\"\",'[2]MONE(M)CAPARD'!AV182)","v":"n.d."},{"$f":"IF('[2]MONE(M)CAPARD'!AW182=\"\",\"\",'[2]MONE(M)CAPARD'!AW182)","v":"n.a."},{"$f":"IF('[2]MONE(M)CAPARD'!AX182=\"\",\"\",'[2]MONE(M)CAPARD'!AX182)","v":15},{"$f":"IF('[2]MONE(M)CAPARD'!AY182=\"\",\"\",'[2]MONE(M)CAPARD'!AY182)","v":"n.a."},{"$f":"IF('[2]FISCAL(M)'!$K182=\"\",\"\",'[2]FISCAL(M)'!$K182)","v":-426.47591313525845},{"$f":"IF('[2]FISCAL(M)'!$L182=\"\",\"\",'[2]FISCAL(M)'!$L182)","v":-738.92504648825843},{"$f":"IF('[2]FISCAL(M)'!$AY182=\"\",\"\",'[2]FISCAL(M)'!$AY182)","v":"n.d."},{"$f":"IF('[2]FISCAL(M)'!$BI182=\"\",\"\",'[2]FISCAL(M)'!$BI182)","v":"n.d."},{"$f":"IF('[2]FISCAL(M)'!$BS182=\"\",\"\",'[2]FISCAL(M)'!$BS182)","v":"n.d."},{"$f":"IF('[2]FISCAL(M)'!$AZ182=\"\",\"\",'[2]FISCAL(M)'!$AZ182)","v":"n.d."},{"$f":"IF('[2]FISCAL(M)'!$BJ182=\"\",\"\",'[2]FISCAL(M)'!$BJ182)","v":"n.d."},{"$f":"IF('[2]FISCAL(M)'!$BT182=\"\",\"\",'[2]FISCAL(M)'!$BT182)","v":"n.d."},{"$f":"IF('[3]MONE(M)'!$AO182=\"\",\"\",'[3]MONE(M)'!$AO182)","v":2408493.9769793162},{"$f":"IF('[4]MONE(M)'!$AO182=\"\",\"\",'[4]MONE(M)'!$AO182)","v":6631.9647428571425},{"$f":"IF('[5]MONE(M)'!$AO182=\"\",\"\",'[5]MONE(M)'!$AO182)","v":47901.264479007077},{"$f":"+'[1]MONE(M)'!$AO182","v":57479.781979124004},{"$f":"IF('[6]MONE(M)'!$AO182=\"\",\"\",'[6]MONE(M)'!$AO182)","v":15486.079968726992},{"$f":"IF('[7]MONE(M)'!$AO182=\"\",\"\",'[7]MONE(M)'!$AO182)","v":203216.12938179},{"$f":"IF('[8]MONE(M)'!$AO182=\"\",\"\",'[8]MONE(M)'!$AO182)","v":10337.750404279999},21.307840873532168,7.9830720422487511,24.282415169997318,21.751911857044036,28.897531723630145,12.394686216189687,3.5923146404200024,{"$f":"IF('[2]FISCAL(M)'!$K182=\"\",\"\",'[2]FISCAL(M)'!$K182)","v":-426.47591313525845},{"$f":"+'[2]REAL(A)'!$AO$24","v":95171.868879548187},-0.44811131498848328,{"$f":"IF('[2]FISCAL(M)'!$L182=\"\",\"\",'[2]FISCAL(M)'!$L182)","v":-738.92504648825843},{"$f":"+'[2]REAL(A)'!$AP$24","v":"n.d."},"n.d.","n.d.",{"$f":"'[2]Gráfico REM'!BG176","v":9042.3929774327662},{"$f":"'[2]Gráfico REM'!BH176","v":26522.675407951116},{"$f":"'[2]Gráfico REM'!BI176","v":2230.2725274909126},"n.d.",{"$f":"+((CT175/CT163)-1)*100","v":13.751723477961431},1.8281721371858461,112.47321439889583,"n.d.",{"$f":"'[2]Gráfico REM'!BK176","v":9575.7179858327654},{"$f":"'[2]Gráfico REM'!BL176","v":36860.425812231115},{"$f":"'[2]Gráfico REM'!BM176","v":8814.8024091909137},"n.d.",13.964878151259953,2.3168458351143562,16.118811692694422]
[2004,"junio ","2004-junio ",{"$f":"IF('[2]REAL IPC(M)'!$AL183=\"\",\"\",+'[2]REAL IPC(M)'!$AL183)","v":20.830730793254194},{"$f":"IF('[2]REAL IPC(M)'!$BE183=\"\",\"\",+'[2]REAL IPC(M)'!$BE183)","v":12.539311095021489},{"$f":"IF('[2]REAL IPC(M)'!$AM183=\"\",\"\",+'[2]REAL IPC(M)'!$AM183)","v":18.884510457714441},{"$f":"IF('[2]REAL IPC(M)'!$BI183=\"\",\"\",+'[2]REAL IPC(M)'!$BI183)","v":11.556338801871169},{"$f":"IF('[2]REAL IMAE(M)'!BJ183=\"\",\"\",'[2]REAL IMAE(M)'!BJ183)","v":"n.d."},{"$f":"IF('[2]REAL IMAE(M)'!BK183=\"\",\"\",'[2]REAL IMAE(M)'!BK183)","v":"n.d."},{"$f":"IF('[2]REAL IMAE(M)'!BN183=\"\",\"\",'[2]REAL IMAE(M)'!BN183)","v":"n.d."},{"$f":"IF('[2]REAL IMAE(M)'!BO183=\"\",\"\",'[2]REAL IMAE(M)'!BO183)","v":"n.d."},{"$f":"IF('[2]EXT RIN(M)'!$K183=\"\",\"\",'[2]EXT RIN(M)'!$K183)","v":8503.4657828836152},"",{"$f":"IF('[2]EXT RIN(M)'!$L183=\"\",\"\",'[2]EXT RIN(M)'!$L183)","v":9287.7916653421744},"",{"$f":"IF('[2]MONE(M)CARD'!EG183=\"\",\"\",'[2]MONE(M)CARD'!EG183)","v":6763.4453663024051},{"$f":"IF('[2]MONE(M)CARD'!EK183=\"\",\"\",'[2]MONE(M)CARD'!EK183)","v":13434.543170180301},{"$f":"IF('[2]MONE(M)CARD'!EP183=\"\",\"\",'[2]MONE(M)CARD'!EP183)","v":7260.2807602324174},{"$f":"IF('[2]MONE(M)CARD'!ES183=\"\",\"\",'[2]MONE(M)CARD'!ES183)","v":-0.40321337427173809},{"$f":"IF('[2]MONE(M)CARD'!EV183=\"\",\"\",'[2]MONE(M)CARD'!EV183)","v":-3.0413682342913084},{"$f":"IF('[2]MONE(M)CARD'!EZ183=\"\",\"\",'[2]MONE(M)CARD'!EZ183)","v":1.3535551333316853},{"$f":"IF('[2]MONE(M)CAPARD'!FC183=\"\",\"\",'[2]MONE(M)CAPARD'!FC183)","v":8176.1855945324041},{"$f":"IF('[2]MONE(M)CAPARD'!FG183=\"\",\"\",'[2]MONE(M)CAPARD'!FG183)","v":22771.974940870299},{"$f":"IF('[2]MONE(M)CAPARD'!FL183=\"\",\"\",'[2]MONE(M)CAPARD'!FL183)","v":7260.2807602324101},{"$f":"IF('[2]MONE(M)CAPARD'!FO183=\"\",\"\",'[2]MONE(M)CAPARD'!FO183)","v":1.5555328478875419},{"$f":"IF('[2]MONE(M)CAPARD'!FR183=\"\",\"\",'[2]MONE(M)CAPARD'!FR183)","v":0.61429998548667708},{"$f":"IF('[2]MONE(M)CAPARD'!FV183=\"\",\"\",'[2]MONE(M)CAPARD'!FV183)","v":3.2124319223821862},{"$f":"IF('[2]MONE(M)CARD'!FV183=\"\",\"\",'[2]MONE(M)CARD'!FV183)","v":272.71438695498443},{"$f":"IF('[2]MONE(M)CARD'!GD183=\"\",\"\",'[2]MONE(M)CARD'!GD183)","v":3.2313682451144419},{"$f":"IF('[2]MONE(M)CARD'!GE183=\"\",\"\",'[2]MONE(M)CARD'!GE183)","v":1943.6129927407792},-10.897219962493276,{"$f":"IF('[9]II.2.Balance OSD-Activos'!J41=\"\",\"\",'[9]II.2.Balance OSD-Activos'!J41)","v":29.323419132208691},{"$f":"IF('[9]II.2.Balance OSD-Activos'!N41=\"\",\"\",'[9]II.2.Balance OSD-Activos'!N41)","v":10.995681009429386},{"$f":"IF('[9]II.2.Balance OSD-Activos'!R41=\"\",\"\",'[9]II.2.Balance OSD-Activos'!R41)","v":8805.2530483707487},{"$f":"IF('[9]II.2.Balance OSD-Activos'!S41=\"\",\"\",'[9]II.2.Balance OSD-Activos'!S41)","v":7797.6037454698489},8834.5764675029568,16643.175893982236,-47.759149979999769,-13.650768316608586,-3.5942364809014915,-13.462608254783881,5.9781659160004441,-5.4384735339865431,1.1390098765381884,{"$f":"IF('[2]MONE(M)CAPARD'!GS183=\"\",\"\",'[2]MONE(M)CAPARD'!GS183)","v":3912.9892226220436},{"$f":"IF('[2]MONE(M)CARD'!HA183=\"\",\"\",'[2]MONE(M)CAPARD'!HA183)","v":2132.1688925107792},{"$f":"IF('[2]MONE(M)CAPARD'!HB183=\"\",\"\",'[2]MONE(M)CAPARD'!HB183)","v":1780.8203301112644},"n.d.",{"$f":"IF('[10]II.2.Balance OSD-Activos'!J41=\"\",\"\",'[10]II.2.Balance OSD-Activos'!J41)","v":516.89325971220865},{"$f":"IF('[10]II.2.Balance OSD-Activos'!N41=\"\",\"\",'[10]II.2.Balance OSD-Activos'!N41)","v":451.66257138942933},{"$f":"IF('[10]II.2.Balance OSD-Activos'!R41=\"\",\"\",'[10]II.2.Balance OSD-Activos'!R41)","v":13660.798237520747},{"$f":"IF('[10]II.2.Balance OSD-Activos'!S41=\"\",\"\",'[10]II.2.Balance OSD-Activos'!S41)","v":12589.644447419849},14177.691497232956,27218.998516042233,-41.940003785345802,-8.4724229816554697,27.83197423476398,-6.4316193293795232,5.6414373166206788,-1.9514553906166188,0.66357682577741217,{"$f":"IF('[2]MONE(M)CAPARD'!AS183=\"\",\"\",'[2]MONE(M)CAPARD'!AS183)","v":"n.d."},{"$f":"IF('[2]MONE(M)CAPARD'!AT183=\"\",\"\",'[2]MONE(M)CAPARD'!AT183)","v":"n.a."},{"$f":"IF('[2]MONE(M)CAPARD'!AU183=\"\",\"\",'[2]MONE(M)CAPARD'!AU183)","v":"n.d."},{"$f":"IF('[2]MONE(M)CAPARD'!AV183=\"\",\"\",'[2]MONE(M)CAPARD'!AV183)","v":"n.d."},{"$f":"IF('[2]MONE(M)CAPARD'!AW183=\"\",\"\",'[2]MONE(M)CAPARD'!AW183)","v":"n.a."},{"$f":"IF('[2]MONE(M)CAPARD'!AX183=\"\",\"\",'[2]MONE(M)CAPARD'!AX183)","v":15},{"$f":"IF('[2]MONE(M)CAPARD'!AY183=\"\",\"\",'[2]MONE(M)CAPARD'!AY183)","v":"n.a."},{"$f":"IF('[2]FISCAL(M)'!$K183=\"\",\"\",'[2]FISCAL(M)'!$K183)","v":-570.27454012328474},{"$f":"IF('[2]FISCAL(M)'!$L183=\"\",\"\",'[2]FISCAL(M)'!$L183)","v":-950.35953792628493},{"$f":"IF('[2]FISCAL(M)'!$AY183=\"\",\"\",'[2]FISCAL(M)'!$AY183)","v":"n.d."},{"$f":"IF('[2]FISCAL(M)'!$BI183=\"\",\"\",'[2]FISCAL(M)'!$BI183)","v":"n.d."},{"$f":"IF('[2]FISCAL(M)'!$BS183=\"\",\"\",'[2]FISCAL(M)'!$BS183)","v":"n.d."},{"$f":"IF('[2]FISCAL(M)'!$AZ183=\"\",\"\",'[2]FISCAL(M)'!$AZ183)","v":"n.d."},{"$f":"IF('[2]FISCAL(M)'!$BJ183=\"\",\"\",'[2]FISCAL(M)'!$BJ183)","v":"n.d."},{"$f":"IF('[2]FISCAL(M)'!$BT183=\"\",\"\",'[2]FISCAL(M)'!$BT183)","v":"n.d."},{"$f":"IF('[3]MONE(M)'!$AO183=\"\",\"\",'[3]MONE(M)'!$AO183)","v":2461975.7006435492},{"$f":"IF('[4]MONE(M)'!$AO183=\"\",\"\",'[4]MONE(M)'!$AO183)","v":6597.9387428571426},{"$f":"IF('[5]MONE(M)'!$AO183=\"\",\"\",'[5]MONE(M)'!$AO183)","v":48513.300211865833},{"$f":"+'[1]MONE(M)'!$AO183","v":58009.834696750171},{"$f":"IF('[6]MONE(M)'!$AO183=\"\",\"\",'[6]MONE(M)'!$AO183)","v":15354.614238086782},{"$f":"IF('[7]MONE(M)'!$AO183=\"\",\"\",'[7]MONE(M)'!$AO183)","v":198157.96853673999},{"$f":"IF('[8]MONE(M)'!$AO183=\"\",\"\",'[8]MONE(M)'!$AO183)","v":10361.280687480001},23.220122091295469,6.6583180536049502,26.513624519694279,22.026287199551486,25.582745224745796,2.1516441621337146,3.490337415532041,{"$f":"IF('[2]FISCAL(M)'!$K183=\"\",\"\",'[2]FISCAL(M)'!$K183)","v":-570.27454012328474},{"$f":"+'[2]REAL(A)'!$AO$24","v":95171.868879548187},-0.5992049403222689,{"$f":"IF('[2]FISCAL(M)'!$L183=\"\",\"\",'[2]FISCAL(M)'!$L183)","v":-950.35953792628493},{"$f":"+'[2]REAL(A)'!$AP$24","v":"n.d."},"n.d.","n.d.",{"$f":"'[2]Gráfico REM'!BG177","v":9471.7090314907364},{"$f":"'[2]Gráfico REM'!BH177","v":26757.95342993419},{"$f":"'[2]Gráfico REM'!BI177","v":2333.7336531001156},"n.d.",19.875308807085123,3.4725165688590298,99.518324173137202,"n.d.",{"$f":"'[2]Gráfico REM'!BK177","v":9993.8569473007356},{"$f":"'[2]Gráfico REM'!BL177","v":37119.234117414191},{"$f":"'[2]Gráfico REM'!BM177","v":9040.0866680501149},"n.d.",19.797357906186775,3.4774903749531072,17.280344950339078]
[2004,"julio","2004-julio",{"$f":"IF('[2]REAL IPC(M)'!$AL184=\"\",\"\",+'[2]REAL IPC(M)'!$AL184)","v":20.064724919093834},{"$f":"IF('[2]REAL IPC(M)'!$BE184=\"\",\"\",+'[2]REAL IPC(M)'!$BE184)","v":12.472105346812601},{"$f":"IF('[2]REAL IPC(M)'!$AM184=\"\",\"\",+'[2]REAL IPC(M)'!$AM184)","v":18.176373708639026},{"$f":"IF('[2]REAL IPC(M)'!$BI184=\"\",\"\",+'[2]REAL IPC(M)'!$BI184)","v":11.499081225141072},{"$f":"IF('[2]REAL IMAE(M)'!BJ184=\"\",\"\",'[2]REAL IMAE(M)'!BJ184)","v":"n.d."},{"$f":"IF('[2]REAL IMAE(M)'!BK184=\"\",\"\",'[2]REAL IMAE(M)'!BK184)","v":"n.d."},{"$f":"IF('[2]REAL IMAE(M)'!BN184=\"\",\"\",'[2]REAL IMAE(M)'!BN184)","v":"n.d."},{"$f":"IF('[2]REAL IMAE(M)'!BO184=\"\",\"\",'[2]REAL IMAE(M)'!BO184)","v":"n.d."},{"$f":"IF('[2]EXT RIN(M)'!$K184=\"\",\"\",'[2]EXT RIN(M)'!$K184)","v":8406.7013149666036},"",{"$f":"IF('[2]EXT RIN(M)'!$L184=\"\",\"\",'[2]EXT RIN(M)'!$L184)","v":9114.2238620290846},"",{"$f":"IF('[2]MONE(M)CARD'!EG184=\"\",\"\",'[2]MONE(M)CARD'!EG184)","v":6931.335225736042},{"$f":"IF('[2]MONE(M)CARD'!EK184=\"\",\"\",'[2]MONE(M)CARD'!EK184)","v":13885.790687191657},{"$f":"IF('[2]MONE(M)CARD'!EP184=\"\",\"\",'[2]MONE(M)CARD'!EP184)","v":7367.5755987807133},{"$f":"IF('[2]MONE(M)CARD'!ES184=\"\",\"\",'[2]MONE(M)CARD'!ES184)","v":5.8635571315738266},{"$f":"IF('[2]MONE(M)CARD'!EV184=\"\",\"\",'[2]MONE(M)CARD'!EV184)","v":2.9574017119215368},{"$f":"IF('[2]MONE(M)CARD'!EZ184=\"\",\"\",'[2]MONE(M)CARD'!EZ184)","v":6.1989533941700481},{"$f":"IF('[2]MONE(M)CAPARD'!FC184=\"\",\"\",'[2]MONE(M)CAPARD'!FC184)","v":8378.6975803760415},{"$f":"IF('[2]MONE(M)CAPARD'!FG184=\"\",\"\",'[2]MONE(M)CAPARD'!FG184)","v":23270.478079221655},{"$f":"IF('[2]MONE(M)CAPARD'!FL184=\"\",\"\",'[2]MONE(M)CAPARD'!FL184)","v":7367.5755987807133},{"$f":"IF('[2]MONE(M)CAPARD'!FO184=\"\",\"\",'[2]MONE(M)CAPARD'!FO184)","v":7.7996274623232997},{"$f":"IF('[2]MONE(M)CAPARD'!FR184=\"\",\"\",'[2]MONE(M)CAPARD'!FR184)","v":4.819395861743736},{"$f":"IF('[2]MONE(M)CAPARD'!FV184=\"\",\"\",'[2]MONE(M)CAPARD'!FV184)","v":6.853136787312808},{"$f":"IF('[2]MONE(M)CARD'!FV184=\"\",\"\",'[2]MONE(M)CARD'!FV184)","v":264.70404511413778},{"$f":"IF('[2]MONE(M)CARD'!GD184=\"\",\"\",'[2]MONE(M)CARD'!GD184)","v":3.6125578434905359},{"$f":"IF('[2]MONE(M)CARD'!GE184=\"\",\"\",'[2]MONE(M)CARD'!GE184)","v":1940.6251437214171},-16.203799011110597,{"$f":"IF('[9]II.2.Balance OSD-Activos'!J42=\"\",\"\",'[9]II.2.Balance OSD-Activos'!J42)","v":31.384510426355831},{"$f":"IF('[9]II.2.Balance OSD-Activos'!N42=\"\",\"\",'[9]II.2.Balance OSD-Activos'!N42)","v":12.44717109055812},{"$f":"IF('[9]II.2.Balance OSD-Activos'!R42=\"\",\"\",'[9]II.2.Balance OSD-Activos'!R42)","v":8762.0659166629302},{"$f":"IF('[9]II.2.Balance OSD-Activos'!S42=\"\",\"\",'[9]II.2.Balance OSD-Activos'!S42)","v":7935.6472143931333},8793.4504270892867,16741.544812572978,-33.082406464084272,-10.100501804793415,-2.0700504856377422,-9.98977662712689,9.3443026047984823,-1.8184461156307674,3.6200274183557757,{"$f":"IF('[2]MONE(M)CAPARD'!GS184=\"\",\"\",'[2]MONE(M)CAPARD'!GS184)","v":3888.9042798172341},{"$f":"IF('[2]MONE(M)CARD'!HA184=\"\",\"\",'[2]MONE(M)CAPARD'!HA184)","v":2126.7908912114171},{"$f":"IF('[2]MONE(M)CAPARD'!HB184=\"\",\"\",'[2]MONE(M)CAPARD'!HB184)","v":1762.1133886058169},"n.d.",{"$f":"IF('[10]II.2.Balance OSD-Activos'!J42=\"\",\"\",'[10]II.2.Balance OSD-Activos'!J42)","v":460.39275368635577},{"$f":"IF('[10]II.2.Balance OSD-Activos'!N42=\"\",\"\",'[10]II.2.Balance OSD-Activos'!N42)","v":462.59897265055804},{"$f":"IF('[10]II.2.Balance OSD-Activos'!R42=\"\",\"\",'[10]II.2.Balance OSD-Activos'!R42)","v":13714.258822172927},{"$f":"IF('[10]II.2.Balance OSD-Activos'!S42=\"\",\"\",'[10]II.2.Balance OSD-Activos'!S42)","v":12770.076100723134},14174.651575859283,27407.326649232975,-46.186807963537369,-5.6326717904554791,20.194972191189066,-3.1833109755136091,7.8936288188363957,0.60911564741794599,2.5605710380345648,{"$f":"IF('[2]MONE(M)CAPARD'!AS184=\"\",\"\",'[2]MONE(M)CAPARD'!AS184)","v":"n.d."},{"$f":"IF('[2]MONE(M)CAPARD'!AT184=\"\",\"\",'[2]MONE(M)CAPARD'!AT184)","v":"n.a."},{"$f":"IF('[2]MONE(M)CAPARD'!AU184=\"\",\"\",'[2]MONE(M)CAPARD'!AU184)","v":"n.d."},{"$f":"IF('[2]MONE(M)CAPARD'!AV184=\"\",\"\",'[2]MONE(M)CAPARD'!AV184)","v":"n.d."},{"$f":"IF('[2]MONE(M)CAPARD'!AW184=\"\",\"\",'[2]MONE(M)CAPARD'!AW184)","v":"n.a."},{"$f":"IF('[2]MONE(M)CAPARD'!AX184=\"\",\"\",'[2]MONE(M)CAPARD'!AX184)","v":15},{"$f":"IF('[2]MONE(M)CAPARD'!AY184=\"\",\"\",'[2]MONE(M)CAPARD'!AY184)","v":"n.a."},{"$f":"IF('[2]FISCAL(M)'!$K184=\"\",\"\",'[2]FISCAL(M)'!$K184)","v":-926.16793047577312},{"$f":"IF('[2]FISCAL(M)'!$L184=\"\",\"\",'[2]FISCAL(M)'!$L184)","v":-1419.4973074987738},{"$f":"IF('[2]FISCAL(M)'!$AY184=\"\",\"\",'[2]FISCAL(M)'!$AY184)","v":"n.d."},{"$f":"IF('[2]FISCAL(M)'!$BI184=\"\",\"\",'[2]FISCAL(M)'!$BI184)","v":"n.d."},{"$f":"IF('[2]FISCAL(M)'!$BS184=\"\",\"\",'[2]FISCAL(M)'!$BS184)","v":"n.d."},{"$f":"IF('[2]FISCAL(M)'!$AZ184=\"\",\"\",'[2]FISCAL(M)'!$AZ184)","v":"n.d."},{"$f":"IF('[2]FISCAL(M)'!$BJ184=\"\",\"\",'[2]FISCAL(M)'!$BJ184)","v":"n.d."},{"$f":"IF('[2]FISCAL(M)'!$BT184=\"\",\"\",'[2]FISCAL(M)'!$BT184)","v":"n.d."},{"$f":"IF('[3]MONE(M)'!$AO184=\"\",\"\",'[3]MONE(M)'!$AO184)","v":2463364.7670165291},{"$f":"IF('[4]MONE(M)'!$AO184=\"\",\"\",'[4]MONE(M)'!$AO184)","v":6528.0667428571423},{"$f":"IF('[5]MONE(M)'!$AO184=\"\",\"\",'[5]MONE(M)'!$AO184)","v":49441.854667981839},{"$f":"+'[1]MONE(M)'!$AO184","v":58443.203254193839},{"$f":"IF('[6]MONE(M)'!$AO184=\"\",\"\",'[6]MONE(M)'!$AO184)","v":15593.408725326481},{"$f":"IF('[7]MONE(M)'!$AO184=\"\",\"\",'[7]MONE(M)'!$AO184)","v":195954.06866322004},{"$f":"IF('[8]MONE(M)'!$AO184=\"\",\"\",'[8]MONE(M)'!$AO184)","v":10410.079837609999},21.375840747159081,4.9074927675039959,29.582887842538707,21.686454456526327,23.757529642049512,-0.79065158381624867,3.6265177360583101,{"$f":"IF('[2]FISCAL(M)'!$K184=\"\",\"\",'[2]FISCAL(M)'!$K184)","v":-926.16793047577312},{"$f":"+'[2]REAL(A)'!$AO$24","v":95171.868879548187},-0.97315303500864692,{"$f":"IF('[2]FISCAL(M)'!$L184=\"\",\"\",'[2]FISCAL(M)'!$L184)","v":-1419.4973074987738},{"$f":"+'[2]REAL(A)'!$AP$24","v":"n.d."},"n.d.","n.d.",{"$f":"'[2]Gráfico REM'!BG178","v":9723.1669288360208},{"$f":"'[2]Gráfico REM'!BH178","v":26927.500133737816},{"$f":"'[2]Gráfico REM'!BI178","v":2291.8458084806712},"n.d.",25.448104290212669,6.3577404643609947,89.15807991084948,"n.d.",{"$f":"'[2]Gráfico REM'!BK178","v":10254.29358577602},{"$f":"'[2]Gráfico REM'!BL178","v":37337.579971347819},{"$f":"'[2]Gráfico REM'!BM178","v":8760.2829457106709},"n.d.",23.40037084431048,5.5818802186784255,16.218920393330084]
[2004,"agosto","2004-agosto",{"$f":"IF('[2]REAL IPC(M)'!$AL185=\"\",\"\",+'[2]REAL IPC(M)'!$AL185)","v":19.168696711327637},{"$f":"IF('[2]REAL IPC(M)'!$BE185=\"\",\"\",+'[2]REAL IPC(M)'!$BE185)","v":12.382665022823192},{"$f":"IF('[2]REAL IPC(M)'!$AM185=\"\",\"\",+'[2]REAL IPC(M)'!$AM185)","v":17.382291975125842},{"$f":"IF('[2]REAL IPC(M)'!$BI185=\"\",\"\",+'[2]REAL IPC(M)'!$BI185)","v":11.420299016223279},{"$f":"IF('[2]REAL IMAE(M)'!BJ185=\"\",\"\",'[2]REAL IMAE(M)'!BJ185)","v":"n.d."},{"$f":"IF('[2]REAL IMAE(M)'!BK185=\"\",\"\",'[2]REAL IMAE(M)'!BK185)","v":"n.d."},{"$f":"IF('[2]REAL IMAE(M)'!BN185=\"\",\"\",'[2]REAL IMAE(M)'!BN185)","v":"n.d."},{"$f":"IF('[2]REAL IMAE(M)'!BO185=\"\",\"\",'[2]REAL IMAE(M)'!BO185)","v":"n.d."},{"$f":"IF('[2]EXT RIN(M)'!$K185=\"\",\"\",'[2]EXT RIN(M)'!$K185)","v":8525.2251585985505},"",{"$f":"IF('[2]EXT RIN(M)'!$L185=\"\",\"\",'[2]EXT RIN(M)'!$L185)","v":9065.6491115261706},"",{"$f":"IF('[2]MONE(M)CARD'!EG185=\"\",\"\",'[2]MONE(M)CARD'!EG185)","v":7121.1189917455831},{"$f":"IF('[2]MONE(M)CARD'!EK185=\"\",\"\",'[2]MONE(M)CARD'!EK185)","v":15072.489857773677},{"$f":"IF('[2]MONE(M)CARD'!EP185=\"\",\"\",'[2]MONE(M)CARD'!EP185)","v":7382.218904895064},{"$f":"IF('[2]MONE(M)CARD'!ES185=\"\",\"\",'[2]MONE(M)CARD'!ES185)","v":10.461072152836959},{"$f":"IF('[2]MONE(M)CARD'!EV185=\"\",\"\",'[2]MONE(M)CARD'!EV185)","v":7.4911671589836137},{"$f":"IF('[2]MONE(M)CARD'!EZ185=\"\",\"\",'[2]MONE(M)CARD'!EZ185)","v":10.049724288390127},{"$f":"IF('[2]MONE(M)CAPARD'!FC185=\"\",\"\",'[2]MONE(M)CAPARD'!FC185)","v":8720.0510101755845},{"$f":"IF('[2]MONE(M)CAPARD'!FG185=\"\",\"\",'[2]MONE(M)CAPARD'!FG185)","v":24587.963785743676},{"$f":"IF('[2]MONE(M)CAPARD'!FL185=\"\",\"\",'[2]MONE(M)CAPARD'!FL185)","v":7382.2189048950677},{"$f":"IF('[2]MONE(M)CAPARD'!FO185=\"\",\"\",'[2]MONE(M)CAPARD'!FO185)","v":13.030659746522154},{"$f":"IF('[2]MONE(M)CAPARD'!FR185=\"\",\"\",'[2]MONE(M)CAPARD'!FR185)","v":8.5014995897316545},{"$f":"IF('[2]MONE(M)CAPARD'!FV185=\"\",\"\",'[2]MONE(M)CAPARD'!FV185)","v":10.193215313355108},{"$f":"IF('[2]MONE(M)CARD'!FV185=\"\",\"\",'[2]MONE(M)CARD'!FV185)","v":267.33982225321637},{"$f":"IF('[2]MONE(M)CARD'!GD185=\"\",\"\",'[2]MONE(M)CARD'!GD185)","v":7.395854352990443},{"$f":"IF('[2]MONE(M)CARD'!GE185=\"\",\"\",'[2]MONE(M)CARD'!GE185)","v":1992.6519143672003},-5.7406025158471374,{"$f":"IF('[9]II.2.Balance OSD-Activos'!J43=\"\",\"\",'[9]II.2.Balance OSD-Activos'!J43)","v":35.499804530836606},{"$f":"IF('[9]II.2.Balance OSD-Activos'!N43=\"\",\"\",'[9]II.2.Balance OSD-Activos'!N43)","v":11.712516826206288},{"$f":"IF('[9]II.2.Balance OSD-Activos'!R43=\"\",\"\",'[9]II.2.Balance OSD-Activos'!R43)","v":9082.0328432652823},{"$f":"IF('[9]II.2.Balance OSD-Activos'!S43=\"\",\"\",'[9]II.2.Balance OSD-Activos'!S43)","v":8314.3483828581484},9117.5326477961189,17443.593547480472,-33.220283919943924,-7.8469344436027599,-9.7310300119368485,-7.7098679212266985,12.360472645800868,0.79165557654448104,2.6101016921752485,{"$f":"IF('[2]MONE(M)CAPARD'!GS185=\"\",\"\",'[2]MONE(M)CAPARD'!GS185)","v":4019.5775925704065},{"$f":"IF('[2]MONE(M)CARD'!HA185=\"\",\"\",'[2]MONE(M)CAPARD'!HA185)","v":2178.7828091271999},{"$f":"IF('[2]MONE(M)CAPARD'!HB185=\"\",\"\",'[2]MONE(M)CAPARD'!HB185)","v":1840.7947834432066},"n.d.",{"$f":"IF('[10]II.2.Balance OSD-Activos'!J43=\"\",\"\",'[10]II.2.Balance OSD-Activos'!J43)","v":413.34271373083652},{"$f":"IF('[10]II.2.Balance OSD-Activos'!N43=\"\",\"\",'[10]II.2.Balance OSD-Activos'!N43)","v":396.53833852620625},{"$f":"IF('[10]II.2.Balance OSD-Activos'!R43=\"\",\"\",'[10]II.2.Balance OSD-Activos'!R43)","v":14158.279929525284},{"$f":"IF('[10]II.2.Balance OSD-Activos'!S43=\"\",\"\",'[10]II.2.Balance OSD-Activos'!S43)","v":13207.09110404815},14571.622643256122,28175.252085830478,-51.424790105565464,-3.8750477588332721,5.2814964565615741,-1.0471642288671035,10.126215849732368,2.349857756370155,1.740742108952209,{"$f":"IF('[2]MONE(M)CAPARD'!AS185=\"\",\"\",'[2]MONE(M)CAPARD'!AS185)","v":"n.d."},{"$f":"IF('[2]MONE(M)CAPARD'!AT185=\"\",\"\",'[2]MONE(M)CAPARD'!AT185)","v":"n.a."},{"$f":"IF('[2]MONE(M)CAPARD'!AU185=\"\",\"\",'[2]MONE(M)CAPARD'!AU185)","v":"n.d."},{"$f":"IF('[2]MONE(M)CAPARD'!AV185=\"\",\"\",'[2]MONE(M)CAPARD'!AV185)","v":"n.d."},{"$f":"IF('[2]MONE(M)CAPARD'!AW185=\"\",\"\",'[2]MONE(M)CAPARD'!AW185)","v":"n.a."},{"$f":"IF('[2]MONE(M)CAPARD'!AX185=\"\",\"\",'[2]MONE(M)CAPARD'!AX185)","v":15},{"$f":"IF('[2]MONE(M)CAPARD'!AY185=\"\",\"\",'[2]MONE(M)CAPARD'!AY185)","v":"n.a."},{"$f":"IF('[2]FISCAL(M)'!$K185=\"\",\"\",'[2]FISCAL(M)'!$K185)","v":-1099.8668623780768},{"$f":"IF('[2]FISCAL(M)'!$L185=\"\",\"\",'[2]FISCAL(M)'!$L185)","v":-1659.2411535310771},{"$f":"IF('[2]FISCAL(M)'!$AY185=\"\",\"\",'[2]FISCAL(M)'!$AY185)","v":"n.d."},{"$f":"IF('[2]FISCAL(M)'!$BI185=\"\",\"\",'[2]FISCAL(M)'!$BI185)","v":"n.d."},{"$f":"IF('[2]FISCAL(M)'!$BS185=\"\",\"\",'[2]FISCAL(M)'!$BS185)","v":"n.d."},{"$f":"IF('[2]FISCAL(M)'!$AZ185=\"\",\"\",'[2]FISCAL(M)'!$AZ185)","v":"n.d."},{"$f":"IF('[2]FISCAL(M)'!$BJ185=\"\",\"\",'[2]FISCAL(M)'!$BJ185)","v":"n.d."},{"$f":"IF('[2]FISCAL(M)'!$BT185=\"\",\"\",'[2]FISCAL(M)'!$BT185)","v":"n.d."},{"$f":"IF('[3]MONE(M)'!$AO185=\"\",\"\",'[3]MONE(M)'!$AO185)","v":2518569.3244763548},{"$f":"IF('[4]MONE(M)'!$AO185=\"\",\"\",'[4]MONE(M)'!$AO185)","v":6547.1337428571433},{"$f":"IF('[5]MONE(M)'!$AO185=\"\",\"\",'[5]MONE(M)'!$AO185)","v":49393.675168607762},{"$f":"+'[1]MONE(M)'!$AO185","v":59154.479556865306},{"$f":"IF('[6]MONE(M)'!$AO185=\"\",\"\",'[6]MONE(M)'!$AO185)","v":16069.099658784027},{"$f":"IF('[7]MONE(M)'!$AO185=\"\",\"\",'[7]MONE(M)'!$AO185)","v":186837.66881447},{"$f":"IF('[8]MONE(M)'!$AO185=\"\",\"\",'[8]MONE(M)'!$AO185)","v":10524.29272053},23.333503207553917,5.2507424792257451,28.140396544562705,21.468645813451094,24.191772037928594,-3.5928938262015375,4.2485728221435926,{"$f":"IF('[2]FISCAL(M)'!$K185=\"\",\"\",'[2]FISCAL(M)'!$K185)","v":-1099.8668623780768},{"$f":"+'[2]REAL(A)'!$AO$24","v":95171.868879548187},-1.1556638272703197,{"$f":"IF('[2]FISCAL(M)'!$L185=\"\",\"\",'[2]FISCAL(M)'!$L185)","v":-1659.2411535310771},{"$f":"+'[2]REAL(A)'!$AP$24","v":"n.d."},"n.d.","n.d.",{"$f":"'[2]Gráfico REM'!BG179","v":10167.192999657502},{"$f":"'[2]Gráfico REM'!BH179","v":27663.548763747851},{"$f":"'[2]Gráfico REM'!BI179","v":2149.5287172375401},"n.d.",25.09469156736106,7.6900221264145419,91.575911911964255,"n.d.",{"$f":"'[2]Gráfico REM'!BK179","v":10695.793238377502},{"$f":"'[2]Gráfico REM'!BL179","v":38187.841484277851},{"$f":"'[2]Gráfico REM'!BM179","v":8640.4961816775394},"n.d.",22.827127480404673,6.7191070414145182,17.10190622181176]
[2004,"septiembre","2004-septiembre",{"$f":"IF('[2]REAL IPC(M)'!$AL186=\"\",\"\",+'[2]REAL IPC(M)'!$AL186)","v":18.442499245396917},{"$f":"IF('[2]REAL IPC(M)'!$BE186=\"\",\"\",+'[2]REAL IPC(M)'!$BE186)","v":12.272634661573424},{"$f":"IF('[2]REAL IPC(M)'!$AM186=\"\",\"\",+'[2]REAL IPC(M)'!$AM186)","v":16.732775084471861},{"$f":"IF('[2]REAL IPC(M)'!$BI186=\"\",\"\",+'[2]REAL IPC(M)'!$BI186)","v":11.321569195076698},{"$f":"IF('[2]REAL IMAE(M)'!BJ186=\"\",\"\",'[2]REAL IMAE(M)'!BJ186)","v":"n.d."},{"$f":"IF('[2]REAL IMAE(M)'!BK186=\"\",\"\",'[2]REAL IMAE(M)'!BK186)","v":"n.d."},{"$f":"IF('[2]REAL IMAE(M)'!BN186=\"\",\"\",'[2]REAL IMAE(M)'!BN186)","v":"n.d."},{"$f":"IF('[2]REAL IMAE(M)'!BO186=\"\",\"\",'[2]REAL IMAE(M)'!BO186)","v":"n.d."},{"$f":"IF('[2]EXT RIN(M)'!$K186=\"\",\"\",'[2]EXT RIN(M)'!$K186)","v":8809.5398741231602},"",{"$f":"IF('[2]EXT RIN(M)'!$L186=\"\",\"\",'[2]EXT RIN(M)'!$L186)","v":9276.5959094052196},"",{"$f":"IF('[2]MONE(M)CARD'!EG186=\"\",\"\",'[2]MONE(M)CARD'!EG186)","v":7439.6720029541011},{"$f":"IF('[2]MONE(M)CARD'!EK186=\"\",\"\",'[2]MONE(M)CARD'!EK186)","v":16578.173896381864},{"$f":"IF('[2]MONE(M)CARD'!EP186=\"\",\"\",'[2]MONE(M)CARD'!EP186)","v":7390.4228549862783},{"$f":"IF('[2]MONE(M)CARD'!ES186=\"\",\"\",'[2]MONE(M)CARD'!ES186)","v":18.550896451068375},{"$f":"IF('[2]MONE(M)CARD'!EV186=\"\",\"\",'[2]MONE(M)CARD'!EV186)","v":15.080621767152703},{"$f":"IF('[2]MONE(M)CARD'!EZ186=\"\",\"\",'[2]MONE(M)CARD'!EZ186)","v":16.084909425811446},{"$f":"IF('[2]MONE(M)CAPARD'!FC186=\"\",\"\",'[2]MONE(M)CAPARD'!FC186)","v":8898.8002422941008},{"$f":"IF('[2]MONE(M)CAPARD'!FG186=\"\",\"\",'[2]MONE(M)CAPARD'!FG186)","v":26080.027385101865},{"$f":"IF('[2]MONE(M)CAPARD'!FL186=\"\",\"\",'[2]MONE(M)CAPARD'!FL186)","v":7390.4228549862819},{"$f":"IF('[2]MONE(M)CAPARD'!FO186=\"\",\"\",'[2]MONE(M)CAPARD'!FO186)","v":18.102349915473305},{"$f":"IF('[2]MONE(M)CAPARD'!FR186=\"\",\"\",'[2]MONE(M)CAPARD'!FR186)","v":13.249165899561511},{"$f":"IF('[2]MONE(M)CAPARD'!FV186=\"\",\"\",'[2]MONE(M)CAPARD'!FV186)","v":14.287710385601372},{"$f":"IF('[2]MONE(M)CARD'!FV186=\"\",\"\",'[2]MONE(M)CARD'!FV186)","v":270.36706442635983},{"$f":"IF('[2]MONE(M)CARD'!GD186=\"\",\"\",'[2]MONE(M)CARD'!GD186)","v":4.436785566535705},{"$f":"IF('[2]MONE(M)CARD'!GE186=\"\",\"\",'[2]MONE(M)CARD'!GE186)","v":2189.8649919979994},0.56418238667725884,{"$f":"IF('[9]II.2.Balance OSD-Activos'!J44=\"\",\"\",'[9]II.2.Balance OSD-Activos'!J44)","v":38.451300882449452},{"$f":"IF('[9]II.2.Balance OSD-Activos'!N44=\"\",\"\",'[9]II.2.Balance OSD-Activos'!N44)","v":12.287453594906818},{"$f":"IF('[9]II.2.Balance OSD-Activos'!R44=\"\",\"\",'[9]II.2.Balance OSD-Activos'!R44)","v":9527.9461596435704},{"$f":"IF('[9]II.2.Balance OSD-Activos'!S44=\"\",\"\",'[9]II.2.Balance OSD-Activos'!S44)","v":8726.7925892569656},9566.3974605260191,18305.477503377893,-27.651313649555355,-5.3397739822184098,-8.4839402145690297,-5.2218182619629738,18.733431617868533,4.7861522526730038,3.9944966761285228,{"$f":"IF('[2]MONE(M)CAPARD'!GS186=\"\",\"\",'[2]MONE(M)CAPARD'!GS186)","v":4186.7281405042277},{"$f":"IF('[2]MONE(M)CARD'!HA186=\"\",\"\",'[2]MONE(M)CAPARD'!HA186)","v":2385.7431817679994},{"$f":"IF('[2]MONE(M)CAPARD'!HB186=\"\",\"\",'[2]MONE(M)CAPARD'!HB186)","v":1800.9849587362282},"n.d.",{"$f":"IF('[10]II.2.Balance OSD-Activos'!J44=\"\",\"\",'[10]II.2.Balance OSD-Activos'!J44)","v":380.6563683324494},{"$f":"IF('[10]II.2.Balance OSD-Activos'!N44=\"\",\"\",'[10]II.2.Balance OSD-Activos'!N44)","v":425.19435802490676},{"$f":"IF('[10]II.2.Balance OSD-Activos'!R44=\"\",\"\",'[10]II.2.Balance OSD-Activos'!R44)","v":14716.40387090357},{"$f":"IF('[10]II.2.Balance OSD-Activos'!S44=\"\",\"\",'[10]II.2.Balance OSD-Activos'!S44)","v":13667.955919926966},15097.06023923602,29190.210517187894,-41.81969163213477,-1.6261102306683095,5.288558815503408,0.16376487816547325,14.454075847529936,5.4090490548901915,3.0591912985200365,{"$f":"IF('[2]MONE(M)CAPARD'!AS186=\"\",\"\",'[2]MONE(M)CAPARD'!AS186)","v":"n.d."},{"$f":"IF('[2]MONE(M)CAPARD'!AT186=\"\",\"\",'[2]MONE(M)CAPARD'!AT186)","v":"n.a."},{"$f":"IF('[2]MONE(M)CAPARD'!AU186=\"\",\"\",'[2]MONE(M)CAPARD'!AU186)","v":"n.d."},{"$f":"IF('[2]MONE(M)CAPARD'!AV186=\"\",\"\",'[2]MONE(M)CAPARD'!AV186)","v":"n.d."},{"$f":"IF('[2]MONE(M)CAPARD'!AW186=\"\",\"\",'[2]MONE(M)CAPARD'!AW186)","v":"n.a."},{"$f":"IF('[2]MONE(M)CAPARD'!AX186=\"\",\"\",'[2]MONE(M)CAPARD'!AX186)","v":15},{"$f":"IF('[2]MONE(M)CAPARD'!AY186=\"\",\"\",'[2]MONE(M)CAPARD'!AY186)","v":"n.a."},{"$f":"IF('[2]FISCAL(M)'!$K186=\"\",\"\",'[2]FISCAL(M)'!$K186)","v":-1277.2697936605723},{"$f":"IF('[2]FISCAL(M)'!$L186=\"\",\"\",'[2]FISCAL(M)'!$L186)","v":-1818.7511584135727},{"$f":"IF('[2]FISCAL(M)'!$AY186=\"\",\"\",'[2]FISCAL(M)'!$AY186)","v":"n.d."},{"$f":"IF('[2]FISCAL(M)'!$BI186=\"\",\"\",'[2]FISCAL(M)'!$BI186)","v":"n.d."},{"$f":"IF('[2]FISCAL(M)'!$BS186=\"\",\"\",'[2]FISCAL(M)'!$BS186)","v":"n.d."},{"$f":"IF('[2]FISCAL(M)'!$AZ186=\"\",\"\",'[2]FISCAL(M)'!$AZ186)","v":"n.d."},{"$f":"IF('[2]FISCAL(M)'!$BJ186=\"\",\"\",'[2]FISCAL(M)'!$BJ186)","v":"n.d."},{"$f":"IF('[2]FISCAL(M)'!$BT186=\"\",\"\",'[2]FISCAL(M)'!$BT186)","v":"n.d."},{"$f":"IF('[3]MONE(M)'!$AO186=\"\",\"\",'[3]MONE(M)'!$AO186)","v":2549579.0251839012},{"$f":"IF('[4]MONE(M)'!$AO186=\"\",\"\",'[4]MONE(M)'!$AO186)","v":6537.297742857143},{"$f":"IF('[5]MONE(M)'!$AO186=\"\",\"\",'[5]MONE(M)'!$AO186)","v":50253.277152913179},{"$f":"+'[1]MONE(M)'!$AO186","v":59734.488432101294},{"$f":"IF('[6]MONE(M)'!$AO186=\"\",\"\",'[6]MONE(M)'!$AO186)","v":16585.598392886699},{"$f":"IF('[7]MONE(M)'!$AO186=\"\",\"\",'[7]MONE(M)'!$AO186)","v":176313.911513231},{"$f":"IF('[8]MONE(M)'!$AO186=\"\",\"\",'[8]MONE(M)'!$AO186)","v":10657.694451959998},22.588794475306663,4.6367477993682238,37.313976662595394,21.459623948518946,23.196183501593403,-8.9227571221383926,5.8921897460527672,{"$f":"IF('[2]FISCAL(M)'!$K186=\"\",\"\",'[2]FISCAL(M)'!$K186)","v":-1277.2697936605723},{"$f":"+'[2]REAL(A)'!$AO$24","v":95171.868879548187},-1.342066525221981,{"$f":"IF('[2]FISCAL(M)'!$L186=\"\",\"\",'[2]FISCAL(M)'!$L186)","v":-1818.7511584135727},{"$f":"+'[2]REAL(A)'!$AP$24","v":"n.d."},"n.d.","n.d.",{"$f":"'[2]Gráfico REM'!BG180","v":10765.421617133401},{"$f":"'[2]Gráfico REM'!BH180","v":28635.291594171507},{"$f":"'[2]Gráfico REM'!BI180","v":2215.4741202452078},"n.d.",40.989614397853515,12.516209985955594,101.42890754248812,"n.d.",{"$f":"'[2]Gráfico REM'!BK180","v":11260.183584113402},{"$f":"'[2]Gráfico REM'!BL180","v":39292.986046131504},{"$f":"'[2]Gráfico REM'!BM180","v":8673.6046394052082},"n.d.",36.931829810681791,10.638994309811078,18.322466296547656]
[2004,"octubre","2004-octubre",{"$f":"IF('[2]REAL IPC(M)'!$AL187=\"\",\"\",+'[2]REAL IPC(M)'!$AL187)","v":18.253731343283587},{"$f":"IF('[2]REAL IPC(M)'!$BE187=\"\",\"\",+'[2]REAL IPC(M)'!$BE187)","v":12.143978280945555},{"$f":"IF('[2]REAL IPC(M)'!$AM187=\"\",\"\",+'[2]REAL IPC(M)'!$AM187)","v":16.598778004073345},{"$f":"IF('[2]REAL IPC(M)'!$BI187=\"\",\"\",+'[2]REAL IPC(M)'!$BI187)","v":11.204797752034533},{"$f":"IF('[2]REAL IMAE(M)'!BJ187=\"\",\"\",'[2]REAL IMAE(M)'!BJ187)","v":"n.d."},{"$f":"IF('[2]REAL IMAE(M)'!BK187=\"\",\"\",'[2]REAL IMAE(M)'!BK187)","v":"n.d."},{"$f":"IF('[2]REAL IMAE(M)'!BN187=\"\",\"\",'[2]REAL IMAE(M)'!BN187)","v":"n.d."},{"$f":"IF('[2]REAL IMAE(M)'!BO187=\"\",\"\",'[2]REAL IMAE(M)'!BO187)","v":"n.d."},{"$f":"IF('[2]EXT RIN(M)'!$K187=\"\",\"\",'[2]EXT RIN(M)'!$K187)","v":9165.31045957278},"",{"$f":"IF('[2]EXT RIN(M)'!$L187=\"\",\"\",'[2]EXT RIN(M)'!$L187)","v":9634.0542299420995},"",{"$f":"IF('[2]MONE(M)CARD'!EG187=\"\",\"\",'[2]MONE(M)CARD'!EG187)","v":7383.7845326914139},{"$f":"IF('[2]MONE(M)CARD'!EK187=\"\",\"\",'[2]MONE(M)CARD'!EK187)","v":16444.26572891558},{"$f":"IF('[2]MONE(M)CARD'!EP187=\"\",\"\",'[2]MONE(M)CARD'!EP187)","v":7372.9870874022927},{"$f":"IF('[2]MONE(M)CARD'!ES187=\"\",\"\",'[2]MONE(M)CARD'!ES187)","v":19.3352547713469},{"$f":"IF('[2]MONE(M)CARD'!EV187=\"\",\"\",'[2]MONE(M)CARD'!EV187)","v":19.468802060308164},{"$f":"IF('[2]MONE(M)CARD'!EZ187=\"\",\"\",'[2]MONE(M)CARD'!EZ187)","v":19.170471444627914},{"$f":"IF('[2]MONE(M)CAPARD'!FC187=\"\",\"\",'[2]MONE(M)CAPARD'!FC187)","v":8844.0360346414127},{"$f":"IF('[2]MONE(M)CAPARD'!FG187=\"\",\"\",'[2]MONE(M)CAPARD'!FG187)","v":25956.425668825581},{"$f":"IF('[2]MONE(M)CAPARD'!FL187=\"\",\"\",'[2]MONE(M)CAPARD'!FL187)","v":7372.987087402289},{"$f":"IF('[2]MONE(M)CAPARD'!FO187=\"\",\"\",'[2]MONE(M)CAPARD'!FO187)","v":18.321276588674131},{"$f":"IF('[2]MONE(M)CAPARD'!FR187=\"\",\"\",'[2]MONE(M)CAPARD'!FR187)","v":15.975666306804692},{"$f":"IF('[2]MONE(M)CAPARD'!FV187=\"\",\"\",'[2]MONE(M)CAPARD'!FV187)","v":16.361261339777645},{"$f":"IF('[2]MONE(M)CARD'!FV187=\"\",\"\",'[2]MONE(M)CARD'!FV187)","v":254.16776326438091},{"$f":"IF('[2]MONE(M)CARD'!GD187=\"\",\"\",'[2]MONE(M)CARD'!GD187)","v":5.0348831019516949},{"$f":"IF('[2]MONE(M)CARD'!GE187=\"\",\"\",'[2]MONE(M)CARD'!GE187)","v":2160.8088210217402},4.1776977243914493,{"$f":"IF('[9]II.2.Balance OSD-Activos'!J45=\"\",\"\",'[9]II.2.Balance OSD-Activos'!J45)","v":36.579513876447336},{"$f":"IF('[9]II.2.Balance OSD-Activos'!N45=\"\",\"\",'[9]II.2.Balance OSD-Activos'!N45)","v":11.845692559114905},{"$f":"IF('[9]II.2.Balance OSD-Activos'!R45=\"\",\"\",'[9]II.2.Balance OSD-Activos'!R45)","v":9450.6330767121981},{"$f":"IF('[9]II.2.Balance OSD-Activos'!S45=\"\",\"\",'[9]II.2.Balance OSD-Activos'!S45)","v":8742.113317417643},9487.212590588646,18241.171600565402,-23.652621706262579,-4.2357433122459209,34.665650853466047,-4.1413821083747919,22.374797894075304,6.9276579916055736,2.1415057389325698,{"$f":"IF('[2]MONE(M)CAPARD'!GS187=\"\",\"\",'[2]MONE(M)CAPARD'!GS187)","v":4085.0323126358317},{"$f":"IF('[2]MONE(M)CARD'!HA187=\"\",\"\",'[2]MONE(M)CAPARD'!HA187)","v":2356.7656394717396},{"$f":"IF('[2]MONE(M)CAPARD'!HB187=\"\",\"\",'[2]MONE(M)CAPARD'!HB187)","v":1728.266673164092},"n.d.",{"$f":"IF('[10]II.2.Balance OSD-Activos'!J45=\"\",\"\",'[10]II.2.Balance OSD-Activos'!J45)","v":380.28825388644731},{"$f":"IF('[10]II.2.Balance OSD-Activos'!N45=\"\",\"\",'[10]II.2.Balance OSD-Activos'!N45)","v":438.66549846911488},{"$f":"IF('[10]II.2.Balance OSD-Activos'!R45=\"\",\"\",'[10]II.2.Balance OSD-Activos'!R45)","v":14724.873607472198},{"$f":"IF('[10]II.2.Balance OSD-Activos'!S45=\"\",\"\",'[10]II.2.Balance OSD-Activos'!S45)","v":13721.277845027642},15105.161861358645,29265.105204855405,-38.042052513435564,-0.80981054795818963,15.021454495443432,0.75385977730175746,17.607311495418077,7.2890148328329296,1.8799657779427381,{"$f":"IF('[2]MONE(M)CAPARD'!AS187=\"\",\"\",'[2]MONE(M)CAPARD'!AS187)","v":"n.d."},{"$f":"IF('[2]MONE(M)CAPARD'!AT187=\"\",\"\",'[2]MONE(M)CAPARD'!AT187)","v":"n.a."},{"$f":"IF('[2]MONE(M)CAPARD'!AU187=\"\",\"\",'[2]MONE(M)CAPARD'!AU187)","v":"n.d."},{"$f":"IF('[2]MONE(M)CAPARD'!AV187=\"\",\"\",'[2]MONE(M)CAPARD'!AV187)","v":"n.d."},{"$f":"IF('[2]MONE(M)CAPARD'!AW187=\"\",\"\",'[2]MONE(M)CAPARD'!AW187)","v":"n.a."},{"$f":"IF('[2]MONE(M)CAPARD'!AX187=\"\",\"\",'[2]MONE(M)CAPARD'!AX187)","v":10},{"$f":"IF('[2]MONE(M)CAPARD'!AY187=\"\",\"\",'[2]MONE(M)CAPARD'!AY187)","v":"n.a."},{"$f":"IF('[2]FISCAL(M)'!$K187=\"\",\"\",'[2]FISCAL(M)'!$K187)","v":-1269.8405519212999},{"$f":"IF('[2]FISCAL(M)'!$L187=\"\",\"\",'[2]FISCAL(M)'!$L187)","v":-1832.2734074643008},{"$f":"IF('[2]FISCAL(M)'!$AY187=\"\",\"\",'[2]FISCAL(M)'!$AY187)","v":"n.d."},{"$f":"IF('[2]FISCAL(M)'!$BI187=\"\",\"\",'[2]FISCAL(M)'!$BI187)","v":"n.d."},{"$f":"IF('[2]FISCAL(M)'!$BS187=\"\",\"\",'[2]FISCAL(M)'!$BS187)","v":"n.d."},{"$f":"IF('[2]FISCAL(M)'!$AZ187=\"\",\"\",'[2]FISCAL(M)'!$AZ187)","v":"n.d."},{"$f":"IF('[2]FISCAL(M)'!$BJ187=\"\",\"\",'[2]FISCAL(M)'!$BJ187)","v":"n.d."},{"$f":"IF('[2]FISCAL(M)'!$BT187=\"\",\"\",'[2]FISCAL(M)'!$BT187)","v":"n.d."},{"$f":"IF('[3]MONE(M)'!$AO187=\"\",\"\",'[3]MONE(M)'!$AO187)","v":2588565.4009046839},{"$f":"IF('[4]MONE(M)'!$AO187=\"\",\"\",'[4]MONE(M)'!$AO187)","v":6636.096742857143},{"$f":"IF('[5]MONE(M)'!$AO187=\"\",\"\",'[5]MONE(M)'!$AO187)","v":50783.251943715441},{"$f":"+'[1]MONE(M)'!$AO187","v":60793.421366840157},{"$f":"IF('[6]MONE(M)'!$AO187=\"\",\"\",'[6]MONE(M)'!$AO187)","v":16794.499270341697},{"$f":"IF('[7]MONE(M)'!$AO187=\"\",\"\",'[7]MONE(M)'!$AO187)","v":177089.60509937},{"$f":"IF('[8]MONE(M)'!$AO187=\"\",\"\",'[8]MONE(M)'!$AO187)","v":10768.90565017},22.714221772057819,5.8920334348240955,28.628700056718337,22.374312653535377,22.859833017825547,-12.692378410867899,6.989107881659562,{"$f":"IF('[2]FISCAL(M)'!$K187=\"\",\"\",'[2]FISCAL(M)'!$K187)","v":-1269.8405519212999},{"$f":"+'[2]REAL(A)'!$AO$24","v":95171.868879548187},-1.3342603931929096,{"$f":"IF('[2]FISCAL(M)'!$L187=\"\",\"\",'[2]FISCAL(M)'!$L187)","v":-1832.2734074643008},{"$f":"+'[2]REAL(A)'!$AP$24","v":"n.d."},"n.d.","n.d.",{"$f":"'[2]Gráfico REM'!BG181","v":10703.957532714236},{"$f":"'[2]Gráfico REM'!BH181","v":28731.655595806929},{"$f":"'[2]Gráfico REM'!BI181","v":2125.5185358314375},"n.d.",40.013919423790398,13.233925767066479,67.613900698556947,"n.d.",{"$f":"'[2]Gráfico REM'!BK181","v":11232.779689444236},{"$f":"'[2]Gráfico REM'!BL181","v":39500.561245976933},{"$f":"'[2]Gráfico REM'!BM181","v":8752.7359284914364},"n.d.",36.494214226798036,11.460272924254266,19.819797935944017]
[2004,"noviembre","2004-noviembre",{"$f":"IF('[2]REAL IPC(M)'!$AL188=\"\",\"\",+'[2]REAL IPC(M)'!$AL188)","v":15.835520559930005},{"$f":"IF('[2]REAL IPC(M)'!$BE188=\"\",\"\",+'[2]REAL IPC(M)'!$BE188)","v":11.99893757064423},{"$f":"IF('[2]REAL IPC(M)'!$AM188=\"\",\"\",+'[2]REAL IPC(M)'!$AM188)","v":14.411848476217614},{"$f":"IF('[2]REAL IPC(M)'!$BI188=\"\",\"\",+'[2]REAL IPC(M)'!$BI188)","v":11.072179958269812},{"$f":"IF('[2]REAL IMAE(M)'!BJ188=\"\",\"\",'[2]REAL IMAE(M)'!BJ188)","v":"n.d."},{"$f":"IF('[2]REAL IMAE(M)'!BK188=\"\",\"\",'[2]REAL IMAE(M)'!BK188)","v":"n.d."},{"$f":"IF('[2]REAL IMAE(M)'!BN188=\"\",\"\",'[2]REAL IMAE(M)'!BN188)","v":"n.d."},{"$f":"IF('[2]REAL IMAE(M)'!BO188=\"\",\"\",'[2]REAL IMAE(M)'!BO188)","v":"n.d."},{"$f":"IF('[2]EXT RIN(M)'!$K188=\"\",\"\",'[2]EXT RIN(M)'!$K188)","v":9764.1279495399504},"",{"$f":"IF('[2]EXT RIN(M)'!$L188=\"\",\"\",'[2]EXT RIN(M)'!$L188)","v":10252.877585201149},"",{"$f":"IF('[2]MONE(M)CARD'!EG188=\"\",\"\",'[2]MONE(M)CARD'!EG188)","v":7823.3619008539736},{"$f":"IF('[2]MONE(M)CARD'!EK188=\"\",\"\",'[2]MONE(M)CARD'!EK188)","v":17478.997797716183},{"$f":"IF('[2]MONE(M)CARD'!EP188=\"\",\"\",'[2]MONE(M)CARD'!EP188)","v":7472.6183552772964},{"$f":"IF('[2]MONE(M)CARD'!ES188=\"\",\"\",'[2]MONE(M)CARD'!ES188)","v":21.863219977918401},{"$f":"IF('[2]MONE(M)CARD'!EV188=\"\",\"\",'[2]MONE(M)CARD'!EV188)","v":29.453554337514333},{"$f":"IF('[2]MONE(M)CARD'!EZ188=\"\",\"\",'[2]MONE(M)CARD'!EZ188)","v":26.954349675317534},{"$f":"IF('[2]MONE(M)CAPARD'!FC188=\"\",\"\",'[2]MONE(M)CAPARD'!FC188)","v":9354.4661982639736},{"$f":"IF('[2]MONE(M)CAPARD'!FG188=\"\",\"\",'[2]MONE(M)CAPARD'!FG188)","v":27072.711815136186},{"$f":"IF('[2]MONE(M)CAPARD'!FL188=\"\",\"\",'[2]MONE(M)CAPARD'!FL188)","v":7472.6183552772927},{"$f":"IF('[2]MONE(M)CAPARD'!FO188=\"\",\"\",'[2]MONE(M)CAPARD'!FO188)","v":19.456547588020847},{"$f":"IF('[2]MONE(M)CAPARD'!FR188=\"\",\"\",'[2]MONE(M)CAPARD'!FR188)","v":22.36504125373029},{"$f":"IF('[2]MONE(M)CAPARD'!FV188=\"\",\"\",'[2]MONE(M)CAPARD'!FV188)","v":21.80817752710653},{"$f":"IF('[2]MONE(M)CARD'!FV188=\"\",\"\",'[2]MONE(M)CARD'!FV188)","v":277.06365178335875},{"$f":"IF('[2]MONE(M)CARD'!GD188=\"\",\"\",'[2]MONE(M)CARD'!GD188)","v":5.2923251614773807},{"$f":"IF('[2]MONE(M)CARD'!GE188=\"\",\"\",'[2]MONE(M)CARD'!GE188)","v":2265.5419022152428},13.589401070919372,{"$f":"IF('[9]II.2.Balance OSD-Activos'!J46=\"\",\"\",'[9]II.2.Balance OSD-Activos'!J46)","v":40.124887355547926},{"$f":"IF('[9]II.2.Balance OSD-Activos'!N46=\"\",\"\",'[9]II.2.Balance OSD-Activos'!N46)","v":12.400017840115797},{"$f":"IF('[9]II.2.Balance OSD-Activos'!R46=\"\",\"\",'[9]II.2.Balance OSD-Activos'!R46)","v":9896.4731849293257},{"$f":"IF('[9]II.2.Balance OSD-Activos'!S46=\"\",\"\",'[9]II.2.Balance OSD-Activos'!S46)","v":9186.9882736506661},9936.5980722848744,19135.986363775657,-2.4050755764732479,2.3589398074731704,104.27027868599939,2.3792022146389424,29.948354618811599,14.017377059098312,7.0897190674927382,{"$f":"IF('[2]MONE(M)CAPARD'!GS188=\"\",\"\",'[2]MONE(M)CAPARD'!GS188)","v":4327.7201577429605},{"$f":"IF('[2]MONE(M)CARD'!HA188=\"\",\"\",'[2]MONE(M)CAPARD'!HA188)","v":2462.5032274352425},{"$f":"IF('[2]MONE(M)CAPARD'!HB188=\"\",\"\",'[2]MONE(M)CAPARD'!HB188)","v":1865.216930307718},"n.d.",{"$f":"IF('[10]II.2.Balance OSD-Activos'!J46=\"\",\"\",'[10]II.2.Balance OSD-Activos'!J46)","v":385.44657105554791},{"$f":"IF('[10]II.2.Balance OSD-Activos'!N46=\"\",\"\",'[10]II.2.Balance OSD-Activos'!N46)","v":417.88658367011584},{"$f":"IF('[10]II.2.Balance OSD-Activos'!R46=\"\",\"\",'[10]II.2.Balance OSD-Activos'!R46)","v":15198.124417839324},{"$f":"IF('[10]II.2.Balance OSD-Activos'!S46=\"\",\"\",'[10]II.2.Balance OSD-Activos'!S46)","v":14221.825549760666},15583.570988894873,30223.283122325654,-40.85058968712837,3.7763321716216103,8.0470446603476464,5.8007941835211074,22.302877987561097,11.807117724722382,4.5181028918894519,{"$f":"IF('[2]MONE(M)CAPARD'!AS188=\"\",\"\",'[2]MONE(M)CAPARD'!AS188)","v":"n.d."},{"$f":"IF('[2]MONE(M)CAPARD'!AT188=\"\",\"\",'[2]MONE(M)CAPARD'!AT188)","v":"n.a."},{"$f":"IF('[2]MONE(M)CAPARD'!AU188=\"\",\"\",'[2]MONE(M)CAPARD'!AU188)","v":"n.d."},{"$f":"IF('[2]MONE(M)CAPARD'!AV188=\"\",\"\",'[2]MONE(M)CAPARD'!AV188)","v":"n.d."},{"$f":"IF('[2]MONE(M)CAPARD'!AW188=\"\",\"\",'[2]MONE(M)CAPARD'!AW188)","v":"n.a."},{"$f":"IF('[2]MONE(M)CAPARD'!AX188=\"\",\"\",'[2]MONE(M)CAPARD'!AX188)","v":10},{"$f":"IF('[2]MONE(M)CAPARD'!AY188=\"\",\"\",'[2]MONE(M)CAPARD'!AY188)","v":"n.a."},{"$f":"IF('[2]FISCAL(M)'!$K188=\"\",\"\",'[2]FISCAL(M)'!$K188)","v":-1329.2293723879461},{"$f":"IF('[2]FISCAL(M)'!$L188=\"\",\"\",'[2]FISCAL(M)'!$L188)","v":-2155.4310446009472},{"$f":"IF('[2]FISCAL(M)'!$AY188=\"\",\"\",'[2]FISCAL(M)'!$AY188)","v":"n.d."},{"$f":"IF('[2]FISCAL(M)'!$BI188=\"\",\"\",'[2]FISCAL(M)'!$BI188)","v":"n.d."},{"$f":"IF('[2]FISCAL(M)'!$BS188=\"\",\"\",'[2]FISCAL(M)'!$BS188)","v":"n.d."},{"$f":"IF('[2]FISCAL(M)'!$AZ188=\"\",\"\",'[2]FISCAL(M)'!$AZ188)","v":"n.d."},{"$f":"IF('[2]FISCAL(M)'!$BJ188=\"\",\"\",'[2]FISCAL(M)'!$BJ188)","v":"n.d."},{"$f":"IF('[2]FISCAL(M)'!$BT188=\"\",\"\",'[2]FISCAL(M)'!$BT188)","v":"n.d."},{"$f":"IF('[3]MONE(M)'!$AO188=\"\",\"\",'[3]MONE(M)'!$AO188)","v":2625052.4513633177},{"$f":"IF('[4]MONE(M)'!$AO188=\"\",\"\",'[4]MONE(M)'!$AO188)","v":6701.444742857143},{"$f":"IF('[5]MONE(M)'!$AO188=\"\",\"\",'[5]MONE(M)'!$AO188)","v":51762.247456015735},{"$f":"+'[1]MONE(M)'!$AO188","v":61572.106925390712},{"$f":"IF('[6]MONE(M)'!$AO188=\"\",\"\",'[6]MONE(M)'!$AO188)","v":17430.040360053201},{"$f":"IF('[7]MONE(M)'!$AO188=\"\",\"\",'[7]MONE(M)'!$AO188)","v":175892.96741039},{"$f":"IF('[8]MONE(M)'!$AO188=\"\",\"\",'[8]MONE(M)'!$AO188)","v":10862.323132049998},21.64192555147466,5.3260712840190738,29.411317546173166,20.287766979715862,23.985405014116235,-17.481042927189915,7.5036263962897198,{"$f":"IF('[2]FISCAL(M)'!$K188=\"\",\"\",'[2]FISCAL(M)'!$K188)","v":-1329.2293723879461},{"$f":"+'[2]REAL(A)'!$AO$24","v":95171.868879548187},-1.3966620473432658,{"$f":"IF('[2]FISCAL(M)'!$L188=\"\",\"\",'[2]FISCAL(M)'!$L188)","v":-2155.4310446009472},{"$f":"+'[2]REAL(A)'!$AP$24","v":"n.d."},"n.d.","n.d.",{"$f":"'[2]Gráfico REM'!BG182","v":11285.508730542975},{"$f":"'[2]Gráfico REM'!BH182","v":29804.435970170503},{"$f":"'[2]Gráfico REM'!BI182","v":2176.6309618407527},"n.d.",52.790471038657415,17.858792071942986,104.68975045777964,"n.d.",{"$f":"'[2]Gráfico REM'!BK182","v":11893.136209622975},{"$f":"'[2]Gráfico REM'!BL182","v":40666.759102220502},{"$f":"'[2]Gráfico REM'!BM182","v":9350.7877657007521},"n.d.",48.675466551418502,14.902505100442109,34.865918973420442]
[2004,"diciembre","2004-diciembre",{"$f":"IF('[2]REAL IPC(M)'!$AL189=\"\",\"\",+'[2]REAL IPC(M)'!$AL189)","v":14.064293915040182},{"$f":"IF('[2]REAL IPC(M)'!$BE189=\"\",\"\",+'[2]REAL IPC(M)'!$BE189)","v":11.84000577339086},{"$f":"IF('[2]REAL IPC(M)'!$AM189=\"\",\"\",+'[2]REAL IPC(M)'!$AM189)","v":12.856140350877187},{"$f":"IF('[2]REAL IPC(M)'!$BI189=\"\",\"\",+'[2]REAL IPC(M)'!$BI189)","v":10.926173586295974},{"$f":"IF('[2]REAL IMAE(M)'!BJ189=\"\",\"\",'[2]REAL IMAE(M)'!BJ189)","v":"n.d."},{"$f":"IF('[2]REAL IMAE(M)'!BK189=\"\",\"\",'[2]REAL IMAE(M)'!BK189)","v":"n.d."},{"$f":"IF('[2]REAL IMAE(M)'!BN189=\"\",\"\",'[2]REAL IMAE(M)'!BN189)","v":"n.d."},{"$f":"IF('[2]REAL IMAE(M)'!BO189=\"\",\"\",'[2]REAL IMAE(M)'!BO189)","v":"n.d."},{"$f":"IF('[2]EXT RIN(M)'!$K189=\"\",\"\",'[2]EXT RIN(M)'!$K189)","v":10190.404261494246},10190.404261494246,{"$f":"IF('[2]EXT RIN(M)'!$L189=\"\",\"\",'[2]EXT RIN(M)'!$L189)","v":10808.749128948926},10808.749128948926,{"$f":"IF('[2]MONE(M)CARD'!EG189=\"\",\"\",'[2]MONE(M)CARD'!EG189)","v":8781.6343367442551},{"$f":"IF('[2]MONE(M)CARD'!EK189=\"\",\"\",'[2]MONE(M)CARD'!EK189)","v":18751.235134411894},{"$f":"IF('[2]MONE(M)CARD'!EP189=\"\",\"\",'[2]MONE(M)CARD'!EP189)","v":8696.5422589693335},{"$f":"IF('[2]MONE(M)CARD'!ES189=\"\",\"\",'[2]MONE(M)CARD'!ES189)","v":10.469591433970615},{"$f":"IF('[2]MONE(M)CARD'!EV189=\"\",\"\",'[2]MONE(M)CARD'!EV189)","v":17.776287656549261},{"$f":"IF('[2]MONE(M)CARD'!EZ189=\"\",\"\",'[2]MONE(M)CARD'!EZ189)","v":17.92825720706006},{"$f":"IF('[2]MONE(M)CAPARD'!FC189=\"\",\"\",'[2]MONE(M)CAPARD'!FC189)","v":10414.698485594256},{"$f":"IF('[2]MONE(M)CAPARD'!FG189=\"\",\"\",'[2]MONE(M)CAPARD'!FG189)","v":28346.300139071893},{"$f":"IF('[2]MONE(M)CAPARD'!FL189=\"\",\"\",'[2]MONE(M)CAPARD'!FL189)","v":8696.5422589693335},{"$f":"IF('[2]MONE(M)CAPARD'!FO189=\"\",\"\",'[2]MONE(M)CAPARD'!FO189)","v":10.643081343983019},{"$f":"IF('[2]MONE(M)CAPARD'!FR189=\"\",\"\",'[2]MONE(M)CAPARD'!FR189)","v":14.858765474855961},{"$f":"IF('[2]MONE(M)CAPARD'!FV189=\"\",\"\",'[2]MONE(M)CAPARD'!FV189)","v":15.493842426635741},{"$f":"IF('[2]MONE(M)CARD'!FV189=\"\",\"\",'[2]MONE(M)CARD'!FV189)","v":378.84712026353338},{"$f":"IF('[2]MONE(M)CARD'!GD189=\"\",\"\",'[2]MONE(M)CARD'!GD189)","v":15.107685496573541},{"$f":"IF('[2]MONE(M)CARD'!GE189=\"\",\"\",'[2]MONE(M)CARD'!GE189)","v":2253.5019013909555},16.627834654280925,{"$f":"IF('[9]II.2.Balance OSD-Activos'!J47=\"\",\"\",'[9]II.2.Balance OSD-Activos'!J47)","v":21.124847112298074},{"$f":"IF('[9]II.2.Balance OSD-Activos'!N47=\"\",\"\",'[9]II.2.Balance OSD-Activos'!N47)","v":11.824464891618662},{"$f":"IF('[9]II.2.Balance OSD-Activos'!R47=\"\",\"\",'[9]II.2.Balance OSD-Activos'!R47)","v":12512.331300883792},{"$f":"IF('[9]II.2.Balance OSD-Activos'!S47=\"\",\"\",'[9]II.2.Balance OSD-Activos'!S47)","v":9429.7643290981378},12533.45614799609,21975.044941985849,-54.180329408497862,-0.1068948245531165,116.82581380389392,9.2534500180030399E-2,26.340851393060994,9.7870065953806105,-4.2303704637177013,{"$f":"IF('[2]MONE(M)CAPARD'!GS189=\"\",\"\",'[2]MONE(M)CAPARD'!GS189)","v":4489.0797992060807},{"$f":"IF('[2]MONE(M)CARD'!HA189=\"\",\"\",'[2]MONE(M)CAPARD'!HA189)","v":2446.3888242709554},{"$f":"IF('[2]MONE(M)CAPARD'!HB189=\"\",\"\",'[2]MONE(M)CAPARD'!HB189)","v":2042.6909749351253},"n.d.",{"$f":"IF('[10]II.2.Balance OSD-Activos'!J47=\"\",\"\",'[10]II.2.Balance OSD-Activos'!J47)","v":358.28758782229806},{"$f":"IF('[10]II.2.Balance OSD-Activos'!N47=\"\",\"\",'[10]II.2.Balance OSD-Activos'!N47)","v":415.40273592161867},{"$f":"IF('[10]II.2.Balance OSD-Activos'!R47=\"\",\"\",'[10]II.2.Balance OSD-Activos'!R47)","v":17632.149896243791},{"$f":"IF('[10]II.2.Balance OSD-Activos'!S47=\"\",\"\",'[10]II.2.Balance OSD-Activos'!S47)","v":14528.544605858136},17990.437484066089,32934.384825845846,-28.745307584226389,1.4427975765178847,17.171917799402657,2.3236944949634131,20.391583694455996,9.2103715042809462,-2.5967462204414353,{"$f":"IF('[2]MONE(M)CAPARD'!AS189=\"\",\"\",'[2]MONE(M)CAPARD'!AS189)","v":"n.d."},{"$f":"IF('[2]MONE(M)CAPARD'!AT189=\"\",\"\",'[2]MONE(M)CAPARD'!AT189)","v":"n.a."},{"$f":"IF('[2]MONE(M)CAPARD'!AU189=\"\",\"\",'[2]MONE(M)CAPARD'!AU189)","v":"n.d."},{"$f":"IF('[2]MONE(M)CAPARD'!AV189=\"\",\"\",'[2]MONE(M)CAPARD'!AV189)","v":"n.d."},{"$f":"IF('[2]MONE(M)CAPARD'!AW189=\"\",\"\",'[2]MONE(M)CAPARD'!AW189)","v":"n.a."},{"$f":"IF('[2]MONE(M)CAPARD'!AX189=\"\",\"\",'[2]MONE(M)CAPARD'!AX189)","v":7},{"$f":"IF('[2]MONE(M)CAPARD'!AY189=\"\",\"\",'[2]MONE(M)CAPARD'!AY189)","v":"n.a."},{"$f":"IF('[2]FISCAL(M)'!$K189=\"\",\"\",'[2]FISCAL(M)'!$K189)","v":-2034.4539905514384},{"$f":"IF('[2]FISCAL(M)'!$L189=\"\",\"\",'[2]FISCAL(M)'!$L189)","v":-1939.3242303844397},{"$f":"IF('[2]FISCAL(M)'!$AY189=\"\",\"\",'[2]FISCAL(M)'!$AY189)","v":"n.d."},{"$f":"IF('[2]FISCAL(M)'!$BI189=\"\",\"\",'[2]FISCAL(M)'!$BI189)","v":"n.d."},{"$f":"IF('[2]FISCAL(M)'!$BS189=\"\",\"\",'[2]FISCAL(M)'!$BS189)","v":29450.300000000003},{"$f":"IF('[2]FISCAL(M)'!$AZ189=\"\",\"\",'[2]FISCAL(M)'!$AZ189)","v":"n.d."},{"$f":"IF('[2]FISCAL(M)'!$BJ189=\"\",\"\",'[2]FISCAL(M)'!$BJ189)","v":"n.d."},{"$f":"IF('[2]FISCAL(M)'!$BT189=\"\",\"\",'[2]FISCAL(M)'!$BT189)","v":36669.483222289993},{"$f":"IF('[3]MONE(M)'!$AO189=\"\",\"\",'[3]MONE(M)'!$AO189)","v":2698691.7171735931},{"$f":"IF('[4]MONE(M)'!$AO189=\"\",\"\",'[4]MONE(M)'!$AO189)","v":6707.2817428571416},{"$f":"IF('[5]MONE(M)'!$AO189=\"\",\"\",'[5]MONE(M)'!$AO189)","v":53400.474005754833},{"$f":"+'[1]MONE(M)'!$AO189","v":59931.860351520394},{"$f":"IF('[6]MONE(M)'!$AO189=\"\",\"\",'[6]MONE(M)'!$AO189)","v":18320.389897868121},{"$f":"IF('[7]MONE(M)'!$AO189=\"\",\"\",'[7]MONE(M)'!$AO189)","v":178521.91516318999},{"$f":"IF('[8]MONE(M)'!$AO189=\"\",\"\",'[8]MONE(M)'!$AO189)","v":10709.198761289997},19.617390705369587,3.9939632743277054,8.9735485227242293,15.471278197696714,27.940116090341192,-8.2163540689178518,7.0205864681916585,{"$f":"IF('[2]FISCAL(M)'!$K189=\"\",\"\",'[2]FISCAL(M)'!$K189)","v":-2034.4539905514384},{"$f":"+'[2]REAL(A)'!$AO$24","v":95171.868879548187},-2.1376631713792364,{"$f":"IF('[2]FISCAL(M)'!$L189=\"\",\"\",'[2]FISCAL(M)'!$L189)","v":-1939.3242303844397},{"$f":"+'[2]REAL(A)'!$AP$24","v":"n.d."},"n.d.","n.d.",{"$f":"'[2]Gráfico REM'!BG183","v":11074.575200335561},{"$f":"'[2]Gráfico REM'!BH183","v":29723.677656432315},{"$f":"'[2]Gráfico REM'!BI183","v":2398.2170712095713},"n.d.",42.3027125138806,9.9324967074946091,26.159310528948065,"n.d.",{"$f":"'[2]Gráfico REM'!BK183","v":11597.361395835562},{"$f":"'[2]Gráfico REM'!BL183","v":40432.876417722313},{"$f":"'[2]Gráfico REM'!BM183","v":9834.523836169572},"n.d.",39.493470740332292,9.1459210395276926,19.106067632486258]
[2005,"enero","2005-enero",{"$f":"IF('[2]REAL IPC(M)'!$AL190=\"\",\"\",+'[2]REAL IPC(M)'!$AL190)","v":11.432525951557103},{"$f":"IF('[2]REAL IPC(M)'!$BE190=\"\",\"\",+'[2]REAL IPC(M)'!$BE190)","v":11.669787025910839},{"$f":"IF('[2]REAL IPC(M)'!$AM190=\"\",\"\",+'[2]REAL IPC(M)'!$AM190)","v":10.393487109905021},{"$f":"IF('[2]REAL IPC(M)'!$BI190=\"\",\"\",+'[2]REAL IPC(M)'!$BI190)","v":10.769359704044978},{"$f":"IF('[2]REAL IMAE(M)'!BJ190=\"\",\"\",'[2]REAL IMAE(M)'!BJ190)","v":"n.d."},{"$f":"IF('[2]REAL IMAE(M)'!BK190=\"\",\"\",'[2]REAL IMAE(M)'!BK190)","v":"n.d."},{"$f":"IF('[2]REAL IMAE(M)'!BN190=\"\",\"\",'[2]REAL IMAE(M)'!BN190)","v":"n.d."},{"$f":"IF('[2]REAL IMAE(M)'!BO190=\"\",\"\",'[2]REAL IMAE(M)'!BO190)","v":"n.d."},{"$f":"IF('[2]EXT RIN(M)'!$K190=\"\",\"\",'[2]EXT RIN(M)'!$K190)","v":10185.619650385206},"",{"$f":"IF('[2]EXT RIN(M)'!$L190=\"\",\"\",'[2]EXT RIN(M)'!$L190)","v":11283.375532274325},"",{"$f":"IF('[2]MONE(M)CARD'!EG190=\"\",\"\",'[2]MONE(M)CARD'!EG190)","v":8201.8722891417492},{"$f":"IF('[2]MONE(M)CARD'!EK190=\"\",\"\",'[2]MONE(M)CARD'!EK190)","v":17438.128966620476},{"$f":"IF('[2]MONE(M)CARD'!EP190=\"\",\"\",'[2]MONE(M)CARD'!EP190)","v":7639.6649675542212},{"$f":"IF('[2]MONE(M)CARD'!ES190=\"\",\"\",'[2]MONE(M)CARD'!ES190)","v":21.981391665011962},{"$f":"IF('[2]MONE(M)CARD'!EV190=\"\",\"\",'[2]MONE(M)CARD'!EV190)","v":34.810215413983279},{"$f":"IF('[2]MONE(M)CARD'!EZ190=\"\",\"\",'[2]MONE(M)CARD'!EZ190)","v":30.947714813282445},{"$f":"IF('[2]MONE(M)CAPARD'!FC190=\"\",\"\",'[2]MONE(M)CAPARD'!FC190)","v":9723.7801046717505},{"$f":"IF('[2]MONE(M)CAPARD'!FG190=\"\",\"\",'[2]MONE(M)CAPARD'!FG190)","v":27048.947354990472},{"$f":"IF('[2]MONE(M)CAPARD'!FL190=\"\",\"\",'[2]MONE(M)CAPARD'!FL190)","v":7639.6649675542212},{"$f":"IF('[2]MONE(M)CAPARD'!FO190=\"\",\"\",'[2]MONE(M)CAPARD'!FO190)","v":19.797194608800318},{"$f":"IF('[2]MONE(M)CAPARD'!FR190=\"\",\"\",'[2]MONE(M)CAPARD'!FR190)","v":25.070744573506065},{"$f":"IF('[2]MONE(M)CAPARD'!FV190=\"\",\"\",'[2]MONE(M)CAPARD'!FV190)","v":24.06846883431195},{"$f":"IF('[2]MONE(M)CARD'!FV190=\"\",\"\",'[2]MONE(M)CARD'!FV190)","v":298.77140738891831},{"$f":"IF('[2]MONE(M)CARD'!GD190=\"\",\"\",'[2]MONE(M)CARD'!GD190)","v":13.758618765850446},{"$f":"IF('[2]MONE(M)CARD'!GE190=\"\",\"\",'[2]MONE(M)CARD'!GE190)","v":2252.8141972193548},11.168985477070702,{"$f":"IF('[9]II.2.Balance OSD-Activos'!J48=\"\",\"\",'[9]II.2.Balance OSD-Activos'!J48)","v":23.010254583098025},{"$f":"IF('[9]II.2.Balance OSD-Activos'!N48=\"\",\"\",'[9]II.2.Balance OSD-Activos'!N48)","v":113.59840938919477},{"$f":"IF('[9]II.2.Balance OSD-Activos'!R48=\"\",\"\",'[9]II.2.Balance OSD-Activos'!R48)","v":9780.1335865902001},{"$f":"IF('[9]II.2.Balance OSD-Activos'!S48=\"\",\"\",'[9]II.2.Balance OSD-Activos'!S48)","v":9415.7632274428925},9803.1438411732979,19332.505478005383,-41.169505756296807,6.1369133488613725,1898.0208178236865,6.3380925506872465,36.561598666218572,19.803182614630121,10.01617601924951,{"$f":"IF('[2]MONE(M)CAPARD'!GS190=\"\",\"\",'[2]MONE(M)CAPARD'!GS190)","v":4306.8620389320822},{"$f":"IF('[2]MONE(M)CARD'!HA190=\"\",\"\",'[2]MONE(M)CAPARD'!HA190)","v":2443.3859263993545},{"$f":"IF('[2]MONE(M)CAPARD'!HB190=\"\",\"\",'[2]MONE(M)CAPARD'!HB190)","v":1863.4761125327277},"n.d.",{"$f":"IF('[10]II.2.Balance OSD-Activos'!J48=\"\",\"\",'[10]II.2.Balance OSD-Activos'!J48)","v":357.315151093098},{"$f":"IF('[10]II.2.Balance OSD-Activos'!N48=\"\",\"\",'[10]II.2.Balance OSD-Activos'!N48)","v":510.3129279991947},{"$f":"IF('[10]II.2.Balance OSD-Activos'!R48=\"\",\"\",'[10]II.2.Balance OSD-Activos'!R48)","v":14954.887562850199},{"$f":"IF('[10]II.2.Balance OSD-Activos'!S48=\"\",\"\",'[10]II.2.Balance OSD-Activos'!S48)","v":14537.543250572893},15312.202713943298,30360.058892515386,-30.11185236354963,5.6836118782014555,47.596473714439554,6.9929380917257644,26.309454117581655,15.244968088909406,6.0345965846284599,{"$f":"IF('[2]MONE(M)CAPARD'!AS190=\"\",\"\",'[2]MONE(M)CAPARD'!AS190)","v":"n.d."},{"$f":"IF('[2]MONE(M)CAPARD'!AT190=\"\",\"\",'[2]MONE(M)CAPARD'!AT190)","v":"n.a."},{"$f":"IF('[2]MONE(M)CAPARD'!AU190=\"\",\"\",'[2]MONE(M)CAPARD'!AU190)","v":2.5499999999999998},{"$f":"IF('[2]MONE(M)CAPARD'!AV190=\"\",\"\",'[2]MONE(M)CAPARD'!AV190)","v":"n.d."},{"$f":"IF('[2]MONE(M)CAPARD'!AW190=\"\",\"\",'[2]MONE(M)CAPARD'!AW190)","v":"n.a."},{"$f":"IF('[2]MONE(M)CAPARD'!AX190=\"\",\"\",'[2]MONE(M)CAPARD'!AX190)","v":4},{"$f":"IF('[2]MONE(M)CAPARD'!AY190=\"\",\"\",'[2]MONE(M)CAPARD'!AY190)","v":"n.a."},{"$f":"IF('[2]FISCAL(M)'!$K190=\"\",\"\",'[2]FISCAL(M)'!$K190)","v":13.76561769264822},{"$f":"IF('[2]FISCAL(M)'!$L190=\"\",\"\",'[2]FISCAL(M)'!$L190)","v":395.50920881264818},{"$f":"IF('[2]FISCAL(M)'!$AY190=\"\",\"\",'[2]FISCAL(M)'!$AY190)","v":"n.d."},{"$f":"IF('[2]FISCAL(M)'!$BI190=\"\",\"\",'[2]FISCAL(M)'!$BI190)","v":"n.d."},{"$f":"IF('[2]FISCAL(M)'!$BS190=\"\",\"\",'[2]FISCAL(M)'!$BS190)","v":"n.d."},{"$f":"IF('[2]FISCAL(M)'!$AZ190=\"\",\"\",'[2]FISCAL(M)'!$AZ190)","v":"n.d."},{"$f":"IF('[2]FISCAL(M)'!$BJ190=\"\",\"\",'[2]FISCAL(M)'!$BJ190)","v":"n.d."},{"$f":"IF('[2]FISCAL(M)'!$BT190=\"\",\"\",'[2]FISCAL(M)'!$BT190)","v":"n.d."},{"$f":"IF('[3]MONE(M)'!$AO190=\"\",\"\",'[3]MONE(M)'!$AO190)","v":2717067.2638911577},{"$f":"IF('[4]MONE(M)'!$AO190=\"\",\"\",'[4]MONE(M)'!$AO190)","v":6837.908530337143},{"$f":"IF('[5]MONE(M)'!$AO190=\"\",\"\",'[5]MONE(M)'!$AO190)","v":53462.139755380893},{"$f":"+'[1]MONE(M)'!$AO190","v":61841.894977776632},{"$f":"IF('[6]MONE(M)'!$AO190=\"\",\"\",'[6]MONE(M)'!$AO190)","v":18485.997000725532},{"$f":"IF('[7]MONE(M)'!$AO190=\"\",\"\",'[7]MONE(M)'!$AO190)","v":174373.72288120998},{"$f":"IF('[8]MONE(M)'!$AO190=\"\",\"\",'[8]MONE(M)'!$AO190)","v":10780.578187610001},20.368706597993636,5.9356319008860181,13.241010066930571,13.536244879812331,29.457341788802726,-17.86762379145501,7.0604721042865304,{"$f":"IF('[2]FISCAL(M)'!$K190=\"\",\"\",'[2]FISCAL(M)'!$K190)","v":13.76561769264822},{"$f":"+'[2]REAL(A)'!$AO$25","v":114915.86219205651},1.1978866476798501E-2,{"$f":"IF('[2]FISCAL(M)'!$L190=\"\",\"\",'[2]FISCAL(M)'!$L190)","v":395.50920881264818},{"$f":"+'[2]REAL(A)'!$AP$25","v":"n.d."},"n.d.","n.d.",{"$f":"'[2]Gráfico REM'!BG184","v":11577.558395291777},{"$f":"'[2]Gráfico REM'!BH184","v":30155.148883539736},{"$f":"'[2]Gráfico REM'!BI184","v":2503.1801285577521},"n.d.",49.460328998409551,17.205013668063085,25.594166058972224,"n.d.",{"$f":"'[2]Gráfico REM'!BK184","v":12088.582280261777},{"$f":"'[2]Gráfico REM'!BL184","v":40935.72707114974},{"$f":"'[2]Gráfico REM'!BM184","v":9912.6114917177511},"n.d.",45.79128745707628,14.3514697059403,19.156544814218577]
[2005,"febrero","2005-febrero",{"$f":"IF('[2]REAL IPC(M)'!$AL191=\"\",\"\",+'[2]REAL IPC(M)'!$AL191)","v":8.536585365853643},{"$f":"IF('[2]REAL IPC(M)'!$BE191=\"\",\"\",+'[2]REAL IPC(M)'!$BE191)","v":11.490916872435907},{"$f":"IF('[2]REAL IPC(M)'!$AM191=\"\",\"\",+'[2]REAL IPC(M)'!$AM191)","v":7.8545071164997537},{"$f":"IF('[2]REAL IPC(M)'!$BI191=\"\",\"\",+'[2]REAL IPC(M)'!$BI191)","v":10.604359450390866},{"$f":"IF('[2]REAL IMAE(M)'!BJ191=\"\",\"\",'[2]REAL IMAE(M)'!BJ191)","v":"n.d."},{"$f":"IF('[2]REAL IMAE(M)'!BK191=\"\",\"\",'[2]REAL IMAE(M)'!BK191)","v":"n.d."},{"$f":"IF('[2]REAL IMAE(M)'!BN191=\"\",\"\",'[2]REAL IMAE(M)'!BN191)","v":"n.d."},{"$f":"IF('[2]REAL IMAE(M)'!BO191=\"\",\"\",'[2]REAL IMAE(M)'!BO191)","v":"n.d."},{"$f":"IF('[2]EXT RIN(M)'!$K191=\"\",\"\",'[2]EXT RIN(M)'!$K191)","v":10369.812376920985},"",{"$f":"IF('[2]EXT RIN(M)'!$L191=\"\",\"\",'[2]EXT RIN(M)'!$L191)","v":11456.428338557105},"",{"$f":"IF('[2]MONE(M)CARD'!EG191=\"\",\"\",'[2]MONE(M)CARD'!EG191)","v":8221.9930809188136},{"$f":"IF('[2]MONE(M)CARD'!EK191=\"\",\"\",'[2]MONE(M)CARD'!EK191)","v":17833.519774816028},{"$f":"IF('[2]MONE(M)CARD'!EP191=\"\",\"\",'[2]MONE(M)CARD'!EP191)","v":7850.1414813472802},{"$f":"IF('[2]MONE(M)CARD'!ES191=\"\",\"\",'[2]MONE(M)CARD'!ES191)","v":22.890172126319808},{"$f":"IF('[2]MONE(M)CARD'!EV191=\"\",\"\",'[2]MONE(M)CARD'!EV191)","v":35.849623509522345},{"$f":"IF('[2]MONE(M)CARD'!EZ191=\"\",\"\",'[2]MONE(M)CARD'!EZ191)","v":32.687840439282944},{"$f":"IF('[2]MONE(M)CAPARD'!FC191=\"\",\"\",'[2]MONE(M)CAPARD'!FC191)","v":9779.1228648488122},{"$f":"IF('[2]MONE(M)CAPARD'!FG191=\"\",\"\",'[2]MONE(M)CAPARD'!FG191)","v":27583.239965716035},{"$f":"IF('[2]MONE(M)CAPARD'!FL191=\"\",\"\",'[2]MONE(M)CAPARD'!FL191)","v":7850.1414813472729},{"$f":"IF('[2]MONE(M)CAPARD'!FO191=\"\",\"\",'[2]MONE(M)CAPARD'!FO191)","v":20.498278127373638},{"$f":"IF('[2]MONE(M)CAPARD'!FR191=\"\",\"\",'[2]MONE(M)CAPARD'!FR191)","v":25.986283801337649},{"$f":"IF('[2]MONE(M)CAPARD'!FV191=\"\",\"\",'[2]MONE(M)CAPARD'!FV191)","v":25.488600995659418},{"$f":"IF('[2]MONE(M)CARD'!FV191=\"\",\"\",'[2]MONE(M)CARD'!FV191)","v":261.42449860745046},{"$f":"IF('[2]MONE(M)CARD'!GD191=\"\",\"\",'[2]MONE(M)CARD'!GD191)","v":14.553012434472292},{"$f":"IF('[2]MONE(M)CARD'!GE191=\"\",\"\",'[2]MONE(M)CARD'!GE191)","v":2253.2040288991152},26.185408176259894,{"$f":"IF('[9]II.2.Balance OSD-Activos'!J49=\"\",\"\",'[9]II.2.Balance OSD-Activos'!J49)","v":21.902843167741736},{"$f":"IF('[9]II.2.Balance OSD-Activos'!N49=\"\",\"\",'[9]II.2.Balance OSD-Activos'!N49)","v":113.98236116432044},{"$f":"IF('[9]II.2.Balance OSD-Activos'!R49=\"\",\"\",'[9]II.2.Balance OSD-Activos'!R49)","v":9737.4619488886292},{"$f":"IF('[9]II.2.Balance OSD-Activos'!S49=\"\",\"\",'[9]II.2.Balance OSD-Activos'!S49)","v":9529.6731556868435},9759.3647920563708,19403.020308907537,-36.98593933345461,5.7159892277435009,1732.1181615394814,5.8773759912550405,33.173084080880912,18.356136759565977,-1.4470458550641432,{"$f":"IF('[2]MONE(M)CAPARD'!GS191=\"\",\"\",'[2]MONE(M)CAPARD'!GS191)","v":4251.172146720507},{"$f":"IF('[2]MONE(M)CARD'!HA191=\"\",\"\",'[2]MONE(M)CAPARD'!HA191)","v":2442.7969464091148},{"$f":"IF('[2]MONE(M)CAPARD'!HB191=\"\",\"\",'[2]MONE(M)CAPARD'!HB191)","v":1808.3752003113923},"n.d.",{"$f":"IF('[10]II.2.Balance OSD-Activos'!J49=\"\",\"\",'[10]II.2.Balance OSD-Activos'!J49)","v":357.72134758774172},{"$f":"IF('[10]II.2.Balance OSD-Activos'!N49=\"\",\"\",'[10]II.2.Balance OSD-Activos'!N49)","v":508.56218083432043},{"$f":"IF('[10]II.2.Balance OSD-Activos'!R49=\"\",\"\",'[10]II.2.Balance OSD-Activos'!R49)","v":14946.44686334863},{"$f":"IF('[10]II.2.Balance OSD-Activos'!S49=\"\",\"\",'[10]II.2.Balance OSD-Activos'!S49)","v":14708.068877526845},15304.168210936372,30520.799269297539,-31.717609264039194,5.5461134054484607,45.502734028379543,6.9429205784842463,24.51738789024942,14.474903414319073,-0.77006467459033345,{"$f":"IF('[2]MONE(M)CAPARD'!AS191=\"\",\"\",'[2]MONE(M)CAPARD'!AS191)","v":"n.d."},{"$f":"IF('[2]MONE(M)CAPARD'!AT191=\"\",\"\",'[2]MONE(M)CAPARD'!AT191)","v":"n.a."},{"$f":"IF('[2]MONE(M)CAPARD'!AU191=\"\",\"\",'[2]MONE(M)CAPARD'!AU191)","v":2.75},{"$f":"IF('[2]MONE(M)CAPARD'!AV191=\"\",\"\",'[2]MONE(M)CAPARD'!AV191)","v":"n.d."},{"$f":"IF('[2]MONE(M)CAPARD'!AW191=\"\",\"\",'[2]MONE(M)CAPARD'!AW191)","v":"n.a."},{"$f":"IF('[2]MONE(M)CAPARD'!AX191=\"\",\"\",'[2]MONE(M)CAPARD'!AX191)","v":4},{"$f":"IF('[2]MONE(M)CAPARD'!AY191=\"\",\"\",'[2]MONE(M)CAPARD'!AY191)","v":"n.a."},{"$f":"IF('[2]FISCAL(M)'!$K191=\"\",\"\",'[2]FISCAL(M)'!$K191)","v":14.994565399093432},{"$f":"IF('[2]FISCAL(M)'!$L191=\"\",\"\",'[2]FISCAL(M)'!$L191)","v":335.52587747909331},{"$f":"IF('[2]FISCAL(M)'!$AY191=\"\",\"\",'[2]FISCAL(M)'!$AY191)","v":"n.d."},{"$f":"IF('[2]FISCAL(M)'!$BI191=\"\",\"\",'[2]FISCAL(M)'!$BI191)","v":"n.d."},{"$f":"IF('[2]FISCAL(M)'!$BS191=\"\",\"\",'[2]FISCAL(M)'!$BS191)","v":"n.d."},{"$f":"IF('[2]FISCAL(M)'!$AZ191=\"\",\"\",'[2]FISCAL(M)'!$AZ191)","v":"n.d."},{"$f":"IF('[2]FISCAL(M)'!$BJ191=\"\",\"\",'[2]FISCAL(M)'!$BJ191)","v":"n.d."},{"$f":"IF('[2]FISCAL(M)'!$BT191=\"\",\"\",'[2]FISCAL(M)'!$BT191)","v":"n.d."},{"$f":"IF('[3]MONE(M)'!$AO191=\"\",\"\",'[3]MONE(M)'!$AO191)","v":2750379.1107620043},{"$f":"IF('[4]MONE(M)'!$AO191=\"\",\"\",'[4]MONE(M)'!$AO191)","v":6834.513994277143},{"$f":"IF('[5]MONE(M)'!$AO191=\"\",\"\",'[5]MONE(M)'!$AO191)","v":53482.864195850903},{"$f":"+'[1]MONE(M)'!$AO191","v":62799.294391446703},{"$f":"IF('[6]MONE(M)'!$AO191=\"\",\"\",'[6]MONE(M)'!$AO191)","v":18587.690754977426},{"$f":"IF('[7]MONE(M)'!$AO191=\"\",\"\",'[7]MONE(M)'!$AO191)","v":173953.11533895001},{"$f":"IF('[8]MONE(M)'!$AO191=\"\",\"\",'[8]MONE(M)'!$AO191)","v":10874.787632219999},21.446715424364228,4.8257355551685421,13.647362554543196,13.659441731099232,27.981442325365702,-16.952501581185398,7.2551762874425663,{"$f":"IF('[2]FISCAL(M)'!$K191=\"\",\"\",'[2]FISCAL(M)'!$K191)","v":14.994565399093432},{"$f":"+'[2]REAL(A)'!$AO$25","v":114915.86219205651},1.3048299088626534E-2,{"$f":"IF('[2]FISCAL(M)'!$L191=\"\",\"\",'[2]FISCAL(M)'!$L191)","v":335.52587747909331},{"$f":"+'[2]REAL(A)'!$AP$25","v":"n.d."},"n.d.","n.d.",{"$f":"'[2]Gráfico REM'!BG185","v":11669.793672398091},{"$f":"'[2]Gráfico REM'!BH185","v":30303.823756558479},{"$f":"'[2]Gráfico REM'!BI185","v":2570.0057286903393},"n.d.",51.859782034723409,16.436646724538551,26.128538477686259,"n.d.",{"$f":"'[2]Gráfico REM'!BK185","v":12173.783942188091},{"$f":"'[2]Gráfico REM'!BL185","v":41178.611388778474},{"$f":"'[2]Gráfico REM'!BM185","v":9939.8045084403384},"n.d.",47.965545529732488,13.862555157323463,20.21353085986788]
[2005,"marzo","2005-marzo",{"$f":"IF('[2]REAL IPC(M)'!$AL192=\"\",\"\",+'[2]REAL IPC(M)'!$AL192)","v":7.9240775152641385},{"$f":"IF('[2]REAL IPC(M)'!$BE192=\"\",\"\",+'[2]REAL IPC(M)'!$BE192)","v":11.305897447929203},{"$f":"IF('[2]REAL IPC(M)'!$AM192=\"\",\"\",+'[2]REAL IPC(M)'!$AM192)","v":7.395792499673326},{"$f":"IF('[2]REAL IPC(M)'!$BI192=\"\",\"\",+'[2]REAL IPC(M)'!$BI192)","v":10.433660698878388},{"$f":"IF('[2]REAL IMAE(M)'!BJ192=\"\",\"\",'[2]REAL IMAE(M)'!BJ192)","v":"n.d."},{"$f":"IF('[2]REAL IMAE(M)'!BK192=\"\",\"\",'[2]REAL IMAE(M)'!BK192)","v":"n.d."},{"$f":"IF('[2]REAL IMAE(M)'!BN192=\"\",\"\",'[2]REAL IMAE(M)'!BN192)","v":"n.d."},{"$f":"IF('[2]REAL IMAE(M)'!BO192=\"\",\"\",'[2]REAL IMAE(M)'!BO192)","v":"n.d."},{"$f":"IF('[2]EXT RIN(M)'!$K192=\"\",\"\",'[2]EXT RIN(M)'!$K192)","v":10778.609506630964},"",{"$f":"IF('[2]EXT RIN(M)'!$L192=\"\",\"\",'[2]EXT RIN(M)'!$L192)","v":11797.245055901005},"",{"$f":"IF('[2]MONE(M)CARD'!EG192=\"\",\"\",'[2]MONE(M)CARD'!EG192)","v":8428.103780036683},{"$f":"IF('[2]MONE(M)CARD'!EK192=\"\",\"\",'[2]MONE(M)CARD'!EK192)","v":18334.11662734962},{"$f":"IF('[2]MONE(M)CARD'!EP192=\"\",\"\",'[2]MONE(M)CARD'!EP192)","v":8074.0812216267586},{"$f":"IF('[2]MONE(M)CARD'!ES192=\"\",\"\",'[2]MONE(M)CARD'!ES192)","v":24.910718926394694},{"$f":"IF('[2]MONE(M)CARD'!EV192=\"\",\"\",'[2]MONE(M)CARD'!EV192)","v":33.90293924835337},{"$f":"IF('[2]MONE(M)CARD'!EZ192=\"\",\"\",'[2]MONE(M)CARD'!EZ192)","v":31.972457579885493},{"$f":"IF('[2]MONE(M)CAPARD'!FC192=\"\",\"\",'[2]MONE(M)CAPARD'!FC192)","v":9944.9915500066818},{"$f":"IF('[2]MONE(M)CAPARD'!FG192=\"\",\"\",'[2]MONE(M)CAPARD'!FG192)","v":27997.84698402962},{"$f":"IF('[2]MONE(M)CAPARD'!FL192=\"\",\"\",'[2]MONE(M)CAPARD'!FL192)","v":8074.0812216267514},{"$f":"IF('[2]MONE(M)CAPARD'!FO192=\"\",\"\",'[2]MONE(M)CAPARD'!FO192)","v":21.194175110812054},{"$f":"IF('[2]MONE(M)CAPARD'!FR192=\"\",\"\",'[2]MONE(M)CAPARD'!FR192)","v":24.174532890681011},{"$f":"IF('[2]MONE(M)CAPARD'!FV192=\"\",\"\",'[2]MONE(M)CAPARD'!FV192)","v":24.48303911820069},{"$f":"IF('[2]MONE(M)CARD'!FV192=\"\",\"\",'[2]MONE(M)CARD'!FV192)","v":286.21042065749822},{"$f":"IF('[2]MONE(M)CARD'!GD192=\"\",\"\",'[2]MONE(M)CARD'!GD192)","v":12.481361612321425},{"$f":"IF('[2]MONE(M)CARD'!GE192=\"\",\"\",'[2]MONE(M)CARD'!GE192)","v":2413.1124184445453},27.999966797672382,{"$f":"IF('[9]II.2.Balance OSD-Activos'!J50=\"\",\"\",'[9]II.2.Balance OSD-Activos'!J50)","v":28.42626929199702},{"$f":"IF('[9]II.2.Balance OSD-Activos'!N50=\"\",\"\",'[9]II.2.Balance OSD-Activos'!N50)","v":117.03691181164527},{"$f":"IF('[9]II.2.Balance OSD-Activos'!R50=\"\",\"\",'[9]II.2.Balance OSD-Activos'!R50)","v":9778.0297033142851},{"$f":"IF('[9]II.2.Balance OSD-Activos'!S50=\"\",\"\",'[9]II.2.Balance OSD-Activos'!S50)","v":9729.8053319952705},9806.4559726062816,19653.298216413197,-10.778569154924178,5.5916622761015944,1524.0796755205211,5.6480150749854241,30.210397394938649,17.216059405717242,-1.140077353848735,{"$f":"IF('[2]MONE(M)CAPARD'!GS192=\"\",\"\",'[2]MONE(M)CAPARD'!GS192)","v":4291.0065828102906},{"$f":"IF('[2]MONE(M)CARD'!HA192=\"\",\"\",'[2]MONE(M)CAPARD'!HA192)","v":2602.1314177645454},{"$f":"IF('[2]MONE(M)CAPARD'!HB192=\"\",\"\",'[2]MONE(M)CAPARD'!HB192)","v":1688.8751650457452},"n.d.",{"$f":"IF('[10]II.2.Balance OSD-Activos'!J50=\"\",\"\",'[10]II.2.Balance OSD-Activos'!J50)","v":285.0300480719971},{"$f":"IF('[10]II.2.Balance OSD-Activos'!N50=\"\",\"\",'[10]II.2.Balance OSD-Activos'!N50)","v":478.13120133164534},{"$f":"IF('[10]II.2.Balance OSD-Activos'!R50=\"\",\"\",'[10]II.2.Balance OSD-Activos'!R50)","v":15157.722625104283},{"$f":"IF('[10]II.2.Balance OSD-Activos'!S50=\"\",\"\",'[10]II.2.Balance OSD-Activos'!S50)","v":14982.58793408527},15442.752673176281,30903.471808593196,-44.644319878247863,5.7279311798532628,31.063834677046586,7.5685815416375535,23.182243313282356,13.892579855805455,-0.58232355851361817,{"$f":"IF('[2]MONE(M)CAPARD'!AS192=\"\",\"\",'[2]MONE(M)CAPARD'!AS192)","v":"n.d."},{"$f":"IF('[2]MONE(M)CAPARD'!AT192=\"\",\"\",'[2]MONE(M)CAPARD'!AT192)","v":"n.a."},{"$f":"IF('[2]MONE(M)CAPARD'!AU192=\"\",\"\",'[2]MONE(M)CAPARD'!AU192)","v":2.75},{"$f":"IF('[2]MONE(M)CAPARD'!AV192=\"\",\"\",'[2]MONE(M)CAPARD'!AV192)","v":"n.d."},{"$f":"IF('[2]MONE(M)CAPARD'!AW192=\"\",\"\",'[2]MONE(M)CAPARD'!AW192)","v":"n.a."},{"$f":"IF('[2]MONE(M)CAPARD'!AX192=\"\",\"\",'[2]MONE(M)CAPARD'!AX192)","v":4},{"$f":"IF('[2]MONE(M)CAPARD'!AY192=\"\",\"\",'[2]MONE(M)CAPARD'!AY192)","v":"n.a."},{"$f":"IF('[2]FISCAL(M)'!$K192=\"\",\"\",'[2]FISCAL(M)'!$K192)","v":-151.16031499924424},{"$f":"IF('[2]FISCAL(M)'!$L192=\"\",\"\",'[2]FISCAL(M)'!$L192)","v":123.07818804075561},{"$f":"IF('[2]FISCAL(M)'!$AY192=\"\",\"\",'[2]FISCAL(M)'!$AY192)","v":"n.d."},{"$f":"IF('[2]FISCAL(M)'!$BI192=\"\",\"\",'[2]FISCAL(M)'!$BI192)","v":"n.d."},{"$f":"IF('[2]FISCAL(M)'!$BS192=\"\",\"\",'[2]FISCAL(M)'!$BS192)","v":"n.d."},{"$f":"IF('[2]FISCAL(M)'!$AZ192=\"\",\"\",'[2]FISCAL(M)'!$AZ192)","v":"n.d."},{"$f":"IF('[2]FISCAL(M)'!$BJ192=\"\",\"\",'[2]FISCAL(M)'!$BJ192)","v":"n.d."},{"$f":"IF('[2]FISCAL(M)'!$BT192=\"\",\"\",'[2]FISCAL(M)'!$BT192)","v":"n.d."},{"$f":"IF('[3]MONE(M)'!$AO192=\"\",\"\",'[3]MONE(M)'!$AO192)","v":2815781.7630589642},{"$f":"IF('[4]MONE(M)'!$AO192=\"\",\"\",'[4]MONE(M)'!$AO192)","v":6888.9800619271418},{"$f":"IF('[5]MONE(M)'!$AO192=\"\",\"\",'[5]MONE(M)'!$AO192)","v":53820.536737998729},{"$f":"+'[1]MONE(M)'!$AO192","v":63034.66028350142},{"$f":"IF('[6]MONE(M)'!$AO192=\"\",\"\",'[6]MONE(M)'!$AO192)","v":19187.166980985618},{"$f":"IF('[7]MONE(M)'!$AO192=\"\",\"\",'[7]MONE(M)'!$AO192)","v":170518.6867165},{"$f":"IF('[8]MONE(M)'!$AO192=\"\",\"\",'[8]MONE(M)'!$AO192)","v":11019.436326880001},22.783409647055542,5.4317047009641017,13.622856091927282,12.348488859163087,27.535027667358758,-15.136130979276663,7.9031649607377075,{"$f":"IF('[2]FISCAL(M)'!$K192=\"\",\"\",'[2]FISCAL(M)'!$K192)","v":-151.16031499924424},{"$f":"+'[2]REAL(A)'!$AO$25","v":114915.86219205651},-0.13153999118643267,{"$f":"IF('[2]FISCAL(M)'!$L192=\"\",\"\",'[2]FISCAL(M)'!$L192)","v":123.07818804075561},{"$f":"+'[2]REAL(A)'!$AP$25","v":"n.d."},"n.d.","n.d.",{"$f":"'[2]Gráfico REM'!BG186","v":12031.993056217281},{"$f":"'[2]Gráfico REM'!BH186","v":30700.525172527166},{"$f":"'[2]Gráfico REM'!BI186","v":2602.9986447142915},"n.d.",50.975687638245844,16.099931276257507,28.859795800053668,"n.d.",{"$f":"'[2]Gráfico REM'!BK186","v":12558.774906267281},{"$f":"'[2]Gráfico REM'!BL186","v":41719.961499407167},{"$f":"'[2]Gráfico REM'!BM186","v":9798.6329166042906},"n.d.",47.582137147454247,13.816287978568198,19.66921753704267]
[2005,"abril","2005-abril",{"$f":"IF('[2]REAL IPC(M)'!$AL193=\"\",\"\",+'[2]REAL IPC(M)'!$AL193)","v":7.8808645229309526},{"$f":"IF('[2]REAL IPC(M)'!$BE193=\"\",\"\",+'[2]REAL IPC(M)'!$BE193)","v":11.117067881980391},{"$f":"IF('[2]REAL IPC(M)'!$AM193=\"\",\"\",+'[2]REAL IPC(M)'!$AM193)","v":7.3876915086990458},{"$f":"IF('[2]REAL IPC(M)'!$BI193=\"\",\"\",+'[2]REAL IPC(M)'!$BI193)","v":10.259593766894447},{"$f":"IF('[2]REAL IMAE(M)'!BJ193=\"\",\"\",'[2]REAL IMAE(M)'!BJ193)","v":"n.d."},{"$f":"IF('[2]REAL IMAE(M)'!BK193=\"\",\"\",'[2]REAL IMAE(M)'!BK193)","v":"n.d."},{"$f":"IF('[2]REAL IMAE(M)'!BN193=\"\",\"\",'[2]REAL IMAE(M)'!BN193)","v":"n.d."},{"$f":"IF('[2]REAL IMAE(M)'!BO193=\"\",\"\",'[2]REAL IMAE(M)'!BO193)","v":"n.d."},{"$f":"IF('[2]EXT RIN(M)'!$K193=\"\",\"\",'[2]EXT RIN(M)'!$K193)","v":10981.289959340393},"",{"$f":"IF('[2]EXT RIN(M)'!$L193=\"\",\"\",'[2]EXT RIN(M)'!$L193)","v":12039.017325130273},"",{"$f":"IF('[2]MONE(M)CARD'!EG193=\"\",\"\",'[2]MONE(M)CARD'!EG193)","v":8350.3060967348119},{"$f":"IF('[2]MONE(M)CARD'!EK193=\"\",\"\",'[2]MONE(M)CARD'!EK193)","v":18104.950890111999},{"$f":"IF('[2]MONE(M)CARD'!EP193=\"\",\"\",'[2]MONE(M)CARD'!EP193)","v":8150.4116886324118},{"$f":"IF('[2]MONE(M)CARD'!ES193=\"\",\"\",'[2]MONE(M)CARD'!ES193)","v":24.276956886546628},{"$f":"IF('[2]MONE(M)CARD'!EV193=\"\",\"\",'[2]MONE(M)CARD'!EV193)","v":34.06705485966954},{"$f":"IF('[2]MONE(M)CARD'!EZ193=\"\",\"\",'[2]MONE(M)CARD'!EZ193)","v":30.936937596079762},{"$f":"IF('[2]MONE(M)CAPARD'!FC193=\"\",\"\",'[2]MONE(M)CAPARD'!FC193)","v":9881.4418108248101},{"$f":"IF('[2]MONE(M)CAPARD'!FG193=\"\",\"\",'[2]MONE(M)CAPARD'!FG193)","v":27734.322806701999},{"$f":"IF('[2]MONE(M)CAPARD'!FL193=\"\",\"\",'[2]MONE(M)CAPARD'!FL193)","v":8150.4116886324118},{"$f":"IF('[2]MONE(M)CAPARD'!FO193=\"\",\"\",'[2]MONE(M)CAPARD'!FO193)","v":20.847470649566603},{"$f":"IF('[2]MONE(M)CAPARD'!FR193=\"\",\"\",'[2]MONE(M)CAPARD'!FR193)","v":23.715416146321068},{"$f":"IF('[2]MONE(M)CAPARD'!FV193=\"\",\"\",'[2]MONE(M)CAPARD'!FV193)","v":23.354032058470509},{"$f":"IF('[2]MONE(M)CARD'!FV193=\"\",\"\",'[2]MONE(M)CARD'!FV193)","v":293.11735427661813},{"$f":"IF('[2]MONE(M)CARD'!GD193=\"\",\"\",'[2]MONE(M)CARD'!GD193)","v":13.641446068102223},{"$f":"IF('[2]MONE(M)CARD'!GE193=\"\",\"\",'[2]MONE(M)CARD'!GE193)","v":2536.8576690704831},40.96074803427949,{"$f":"IF('[9]II.2.Balance OSD-Activos'!J51=\"\",\"\",'[9]II.2.Balance OSD-Activos'!J51)","v":23.002570065870785},{"$f":"IF('[9]II.2.Balance OSD-Activos'!N51=\"\",\"\",'[9]II.2.Balance OSD-Activos'!N51)","v":117.41573118298788},{"$f":"IF('[9]II.2.Balance OSD-Activos'!R51=\"\",\"\",'[9]II.2.Balance OSD-Activos'!R51)","v":9799.0240096022189},{"$f":"IF('[9]II.2.Balance OSD-Activos'!S51=\"\",\"\",'[9]II.2.Balance OSD-Activos'!S51)","v":9705.9208162469404},9822.0265796680906,19645.363127098019,-22.943589511783468,7.4847329639448068,1220.6129227458766,7.5844598641200855,29.449710215733749,18.027108684617833,0.81104927890059031,{"$f":"IF('[2]MONE(M)CAPARD'!GS193=\"\",\"\",'[2]MONE(M)CAPARD'!GS193)","v":4229.1165668190433},{"$f":"IF('[2]MONE(M)CARD'!HA193=\"\",\"\",'[2]MONE(M)CAPARD'!HA193)","v":2766.1268786104833},{"$f":"IF('[2]MONE(M)CAPARD'!HB193=\"\",\"\",'[2]MONE(M)CAPARD'!HB193)","v":1462.98968820856},"n.d.",{"$f":"IF('[10]II.2.Balance OSD-Activos'!J51=\"\",\"\",'[10]II.2.Balance OSD-Activos'!J51)","v":252.55288620587078},{"$f":"IF('[10]II.2.Balance OSD-Activos'!N51=\"\",\"\",'[10]II.2.Balance OSD-Activos'!N51)","v":437.31330464298787},{"$f":"IF('[10]II.2.Balance OSD-Activos'!R51=\"\",\"\",'[10]II.2.Balance OSD-Activos'!R51)","v":15227.415065052219},{"$f":"IF('[10]II.2.Balance OSD-Activos'!S51=\"\",\"\",'[10]II.2.Balance OSD-Activos'!S51)","v":15050.638691566941},15479.96795125809,30967.919947468021,-52.914740888000743,6.9363460220824846,10.781366043838769,9.2393372508364315,22.994769518549461,14.241416763885507,0.34883690808005241,{"$f":"IF('[2]MONE(M)CAPARD'!AS193=\"\",\"\",'[2]MONE(M)CAPARD'!AS193)","v":"n.d."},{"$f":"IF('[2]MONE(M)CAPARD'!AT193=\"\",\"\",'[2]MONE(M)CAPARD'!AT193)","v":"n.a."},{"$f":"IF('[2]MONE(M)CAPARD'!AU193=\"\",\"\",'[2]MONE(M)CAPARD'!AU193)","v":2.75},{"$f":"IF('[2]MONE(M)CAPARD'!AV193=\"\",\"\",'[2]MONE(M)CAPARD'!AV193)","v":"n.d."},{"$f":"IF('[2]MONE(M)CAPARD'!AW193=\"\",\"\",'[2]MONE(M)CAPARD'!AW193)","v":"n.a."},{"$f":"IF('[2]MONE(M)CAPARD'!AX193=\"\",\"\",'[2]MONE(M)CAPARD'!AX193)","v":4},{"$f":"IF('[2]MONE(M)CAPARD'!AY193=\"\",\"\",'[2]MONE(M)CAPARD'!AY193)","v":"n.a."},{"$f":"IF('[2]FISCAL(M)'!$K193=\"\",\"\",'[2]FISCAL(M)'!$K193)","v":135.08734107711126},{"$f":"IF('[2]FISCAL(M)'!$L193=\"\",\"\",'[2]FISCAL(M)'!$L193)","v":369.58086235711113},{"$f":"IF('[2]FISCAL(M)'!$AY193=\"\",\"\",'[2]FISCAL(M)'!$AY193)","v":"n.d."},{"$f":"IF('[2]FISCAL(M)'!$BI193=\"\",\"\",'[2]FISCAL(M)'!$BI193)","v":"n.d."},{"$f":"IF('[2]FISCAL(M)'!$BS193=\"\",\"\",'[2]FISCAL(M)'!$BS193)","v":"n.d."},{"$f":"IF('[2]FISCAL(M)'!$AZ193=\"\",\"\",'[2]FISCAL(M)'!$AZ193)","v":"n.d."},{"$f":"IF('[2]FISCAL(M)'!$BJ193=\"\",\"\",'[2]FISCAL(M)'!$BJ193)","v":"n.d."},{"$f":"IF('[2]FISCAL(M)'!$BT193=\"\",\"\",'[2]FISCAL(M)'!$BT193)","v":"n.d."},{"$f":"IF('[3]MONE(M)'!$AO193=\"\",\"\",'[3]MONE(M)'!$AO193)","v":2861588.1522950102},{"$f":"IF('[4]MONE(M)'!$AO193=\"\",\"\",'[4]MONE(M)'!$AO193)","v":6932.7833944171434},{"$f":"IF('[5]MONE(M)'!$AO193=\"\",\"\",'[5]MONE(M)'!$AO193)","v":54756.477171121449},{"$f":"+'[1]MONE(M)'!$AO193","v":63689.797422516262},{"$f":"IF('[6]MONE(M)'!$AO193=\"\",\"\",'[6]MONE(M)'!$AO193)","v":19527.435021301702},{"$f":"IF('[7]MONE(M)'!$AO193=\"\",\"\",'[7]MONE(M)'!$AO193)","v":172777.71648771997},{"$f":"IF('[8]MONE(M)'!$AO193=\"\",\"\",'[8]MONE(M)'!$AO193)","v":11157.5532551},21.068253873080888,5.4437577044671226,15.217559512409062,12.292355363004459,30.127365707001719,-13.761859644453933,8.5718704984370611,{"$f":"IF('[2]FISCAL(M)'!$K193=\"\",\"\",'[2]FISCAL(M)'!$K193)","v":135.08734107711126},{"$f":"+'[2]REAL(A)'!$AO$25","v":114915.86219205651},0.1175532589672804,{"$f":"IF('[2]FISCAL(M)'!$L193=\"\",\"\",'[2]FISCAL(M)'!$L193)","v":369.58086235711113},{"$f":"+'[2]REAL(A)'!$AP$25","v":"n.d."},"n.d.","n.d.",{"$f":"'[2]Gráfico REM'!BG187","v":11941.059030775252},{"$f":"'[2]Gráfico REM'!BH187","v":30850.863341408694},{"$f":"'[2]Gráfico REM'!BI187","v":2724.6174168559396},"n.d.",41.018035997099389,16.570940790668899,29.719220691946859,"n.d.",{"$f":"'[2]Gráfico REM'!BK187","v":12490.164145825252},{"$f":"'[2]Gráfico REM'!BL187","v":42008.416596508694},{"$f":"'[2]Gráfico REM'!BM187","v":9917.866974055938},"n.d.",38.728090981541371,14.333617245134,17.680252444433098]
[2005,"mayo ","2005-mayo ",{"$f":"IF('[2]REAL IPC(M)'!$AL194=\"\",\"\",+'[2]REAL IPC(M)'!$AL194)","v":7.1400651465798104},{"$f":"IF('[2]REAL IPC(M)'!$BE194=\"\",\"\",+'[2]REAL IPC(M)'!$BE194)","v":10.926560398196393},{"$f":"IF('[2]REAL IPC(M)'!$AM194=\"\",\"\",+'[2]REAL IPC(M)'!$AM194)","v":6.6675231243576549},{"$f":"IF('[2]REAL IPC(M)'!$BI194=\"\",\"\",+'[2]REAL IPC(M)'!$BI194)","v":10.084290677189989},{"$f":"IF('[2]REAL IMAE(M)'!BJ194=\"\",\"\",'[2]REAL IMAE(M)'!BJ194)","v":"n.d."},{"$f":"IF('[2]REAL IMAE(M)'!BK194=\"\",\"\",'[2]REAL IMAE(M)'!BK194)","v":"n.d."},{"$f":"IF('[2]REAL IMAE(M)'!BN194=\"\",\"\",'[2]REAL IMAE(M)'!BN194)","v":"n.d."},{"$f":"IF('[2]REAL IMAE(M)'!BO194=\"\",\"\",'[2]REAL IMAE(M)'!BO194)","v":"n.d."},{"$f":"IF('[2]EXT RIN(M)'!$K194=\"\",\"\",'[2]EXT RIN(M)'!$K194)","v":11194.848773852013},"",{"$f":"IF('[2]EXT RIN(M)'!$L194=\"\",\"\",'[2]EXT RIN(M)'!$L194)","v":12230.488059440313},"",{"$f":"IF('[2]MONE(M)CARD'!EG194=\"\",\"\",'[2]MONE(M)CARD'!EG194)","v":8235.6526667478283},{"$f":"IF('[2]MONE(M)CARD'!EK194=\"\",\"\",'[2]MONE(M)CARD'!EK194)","v":18233.401047152493},{"$f":"IF('[2]MONE(M)CARD'!EP194=\"\",\"\",'[2]MONE(M)CARD'!EP194)","v":8215.9907458067391},{"$f":"IF('[2]MONE(M)CARD'!ES194=\"\",\"\",'[2]MONE(M)CARD'!ES194)","v":21.094068762680095},{"$f":"IF('[2]MONE(M)CARD'!EV194=\"\",\"\",'[2]MONE(M)CARD'!EV194)","v":33.370726305144196},{"$f":"IF('[2]MONE(M)CARD'!EZ194=\"\",\"\",'[2]MONE(M)CARD'!EZ194)","v":28.570584272182842},{"$f":"IF('[2]MONE(M)CAPARD'!FC194=\"\",\"\",'[2]MONE(M)CAPARD'!FC194)","v":9766.2886674678302},{"$f":"IF('[2]MONE(M)CAPARD'!FG194=\"\",\"\",'[2]MONE(M)CAPARD'!FG194)","v":27938.500762482494},{"$f":"IF('[2]MONE(M)CAPARD'!FL194=\"\",\"\",'[2]MONE(M)CAPARD'!FL194)","v":8215.9907458067391},{"$f":"IF('[2]MONE(M)CAPARD'!FO194=\"\",\"\",'[2]MONE(M)CAPARD'!FO194)","v":18.959743351439506},{"$f":"IF('[2]MONE(M)CAPARD'!FR194=\"\",\"\",'[2]MONE(M)CAPARD'!FR194)","v":23.31998349362334},{"$f":"IF('[2]MONE(M)CAPARD'!FV194=\"\",\"\",'[2]MONE(M)CAPARD'!FV194)","v":21.786497884463742},{"$f":"IF('[2]MONE(M)CARD'!FV194=\"\",\"\",'[2]MONE(M)CARD'!FV194)","v":311.57673308450597},{"$f":"IF('[2]MONE(M)CARD'!GD194=\"\",\"\",'[2]MONE(M)CARD'!GD194)","v":14.914180504923902},{"$f":"IF('[2]MONE(M)CARD'!GE194=\"\",\"\",'[2]MONE(M)CARD'!GE194)","v":2465.6215786701082},18.433149940639716,{"$f":"IF('[9]II.2.Balance OSD-Activos'!J52=\"\",\"\",'[9]II.2.Balance OSD-Activos'!J52)","v":25.152478095069306},{"$f":"IF('[9]II.2.Balance OSD-Activos'!N52=\"\",\"\",'[9]II.2.Balance OSD-Activos'!N52)","v":118.20864674282082},{"$f":"IF('[9]II.2.Balance OSD-Activos'!R52=\"\",\"\",'[9]II.2.Balance OSD-Activos'!R52)","v":9850.7301108066713},{"$f":"IF('[9]II.2.Balance OSD-Activos'!S52=\"\",\"\",'[9]II.2.Balance OSD-Activos'!S52)","v":9815.838162062435},9875.8825889017407,19809.929397706997,-18.377550525502773,8.9298280408061981,1047.9570762145004,9.022960424138482,30.548856995161387,19.369449744881639,1.3423410602638057,{"$f":"IF('[2]MONE(M)CAPARD'!GS194=\"\",\"\",'[2]MONE(M)CAPARD'!GS194)","v":4166.3805517027467},{"$f":"IF('[2]MONE(M)CARD'!HA194=\"\",\"\",'[2]MONE(M)CAPARD'!HA194)","v":2693.713541070108},{"$f":"IF('[2]MONE(M)CAPARD'!HB194=\"\",\"\",'[2]MONE(M)CAPARD'!HB194)","v":1472.6670106326387},"n.d.",{"$f":"IF('[10]II.2.Balance OSD-Activos'!J52=\"\",\"\",'[10]II.2.Balance OSD-Activos'!J52)","v":256.91110252506928},{"$f":"IF('[10]II.2.Balance OSD-Activos'!N52=\"\",\"\",'[10]II.2.Balance OSD-Activos'!N52)","v":469.96277317282079},{"$f":"IF('[10]II.2.Balance OSD-Activos'!R52=\"\",\"\",'[10]II.2.Balance OSD-Activos'!R52)","v":15393.02131871667},{"$f":"IF('[10]II.2.Balance OSD-Activos'!S52=\"\",\"\",'[10]II.2.Balance OSD-Activos'!S52)","v":15218.189024882437},15649.93242124174,31338.084219296994,-52.270656727823415,8.4194840506633284,4.2512231649725729,10.77028004401075,24.060271897054864,15.41645084165555,1.175034077770043,{"$f":"IF('[2]MONE(M)CAPARD'!AS194=\"\",\"\",'[2]MONE(M)CAPARD'!AS194)","v":"n.d."},{"$f":"IF('[2]MONE(M)CAPARD'!AT194=\"\",\"\",'[2]MONE(M)CAPARD'!AT194)","v":"n.a."},{"$f":"IF('[2]MONE(M)CAPARD'!AU194=\"\",\"\",'[2]MONE(M)CAPARD'!AU194)","v":3},{"$f":"IF('[2]MONE(M)CAPARD'!AV194=\"\",\"\",'[2]MONE(M)CAPARD'!AV194)","v":7},{"$f":"IF('[2]MONE(M)CAPARD'!AW194=\"\",\"\",'[2]MONE(M)CAPARD'!AW194)","v":"n.a."},{"$f":"IF('[2]MONE(M)CAPARD'!AX194=\"\",\"\",'[2]MONE(M)CAPARD'!AX194)","v":8},{"$f":"IF('[2]MONE(M)CAPARD'!AY194=\"\",\"\",'[2]MONE(M)CAPARD'!AY194)","v":"n.a."},{"$f":"IF('[2]FISCAL(M)'!$K194=\"\",\"\",'[2]FISCAL(M)'!$K194)","v":249.37207836425978},{"$f":"IF('[2]FISCAL(M)'!$L194=\"\",\"\",'[2]FISCAL(M)'!$L194)","v":425.8228320642595},{"$f":"IF('[2]FISCAL(M)'!$AY194=\"\",\"\",'[2]FISCAL(M)'!$AY194)","v":"n.d."},{"$f":"IF('[2]FISCAL(M)'!$BI194=\"\",\"\",'[2]FISCAL(M)'!$BI194)","v":"n.d."},{"$f":"IF('[2]FISCAL(M)'!$BS194=\"\",\"\",'[2]FISCAL(M)'!$BS194)","v":"n.d."},{"$f":"IF('[2]FISCAL(M)'!$AZ194=\"\",\"\",'[2]FISCAL(M)'!$AZ194)","v":"n.d."},{"$f":"IF('[2]FISCAL(M)'!$BJ194=\"\",\"\",'[2]FISCAL(M)'!$BJ194)","v":"n.d."},{"$f":"IF('[2]FISCAL(M)'!$BT194=\"\",\"\",'[2]FISCAL(M)'!$BT194)","v":"n.d."},{"$f":"IF('[3]MONE(M)'!$AO194=\"\",\"\",'[3]MONE(M)'!$AO194)","v":2951390.0473211501},{"$f":"IF('[4]MONE(M)'!$AO194=\"\",\"\",'[4]MONE(M)'!$AO194)","v":6905.3084063471433},{"$f":"IF('[5]MONE(M)'!$AO194=\"\",\"\",'[5]MONE(M)'!$AO194)","v":55014.408145255904},{"$f":"+'[1]MONE(M)'!$AO194","v":64194.405370881395},{"$f":"IF('[6]MONE(M)'!$AO194=\"\",\"\",'[6]MONE(M)'!$AO194)","v":20201.672548388491},{"$f":"IF('[7]MONE(M)'!$AO194=\"\",\"\",'[7]MONE(M)'!$AO194)","v":175147.23265280999},{"$f":"IF('[8]MONE(M)'!$AO194=\"\",\"\",'[8]MONE(M)'!$AO194)","v":11339.529561949999},22.540893833694486,4.1216091171835778,14.849594772944229,11.68171339654014,30.450524530315583,-13.812337049411017,9.6904947255763485,{"$f":"IF('[2]FISCAL(M)'!$K194=\"\",\"\",'[2]FISCAL(M)'!$K194)","v":249.37207836425978},{"$f":"+'[2]REAL(A)'!$AO$25","v":114915.86219205651},0.21700405288478747,{"$f":"IF('[2]FISCAL(M)'!$L194=\"\",\"\",'[2]FISCAL(M)'!$L194)","v":425.8228320642595},{"$f":"+'[2]REAL(A)'!$AP$25","v":"n.d."},"n.d.","n.d.",{"$f":"'[2]Gráfico REM'!BG188","v":11857.095662680118},{"$f":"'[2]Gráfico REM'!BH188","v":31059.115266617173},{"$f":"'[2]Gráfico REM'!BI188","v":2796.1529348442491},"n.d.",31.127851800646656,17.104005492998265,25.372702231594978,"n.d.",{"$f":"'[2]Gráfico REM'!BK188","v":12365.396771290118},{"$f":"'[2]Gráfico REM'!BL188","v":42398.644828567172},{"$f":"'[2]Gráfico REM'!BM188","v":9892.7304719142485},"n.d.",29.132841940256291,15.02483732702391,12.228612879619561]
[2005,"junio ","2005-junio ",{"$f":"IF('[2]REAL IPC(M)'!$AL195=\"\",\"\",+'[2]REAL IPC(M)'!$AL195)","v":6.6942362367536923},{"$f":"IF('[2]REAL IPC(M)'!$BE195=\"\",\"\",+'[2]REAL IPC(M)'!$BE195)","v":10.7362717376144},{"$f":"IF('[2]REAL IPC(M)'!$AM195=\"\",\"\",+'[2]REAL IPC(M)'!$AM195)","v":6.2468128505864362},{"$f":"IF('[2]REAL IPC(M)'!$BI195=\"\",\"\",+'[2]REAL IPC(M)'!$BI195)","v":9.9096539865049174},{"$f":"IF('[2]REAL IMAE(M)'!BJ195=\"\",\"\",'[2]REAL IMAE(M)'!BJ195)","v":"n.d."},{"$f":"IF('[2]REAL IMAE(M)'!BK195=\"\",\"\",'[2]REAL IMAE(M)'!BK195)","v":"n.d."},{"$f":"IF('[2]REAL IMAE(M)'!BN195=\"\",\"\",'[2]REAL IMAE(M)'!BN195)","v":"n.d."},{"$f":"IF('[2]REAL IMAE(M)'!BO195=\"\",\"\",'[2]REAL IMAE(M)'!BO195)","v":"n.d."},{"$f":"IF('[2]EXT RIN(M)'!$K195=\"\",\"\",'[2]EXT RIN(M)'!$K195)","v":11593.846412017558},"",{"$f":"IF('[2]EXT RIN(M)'!$L195=\"\",\"\",'[2]EXT RIN(M)'!$L195)","v":12737.294272005527},"",{"$f":"IF('[2]MONE(M)CARD'!EG195=\"\",\"\",'[2]MONE(M)CARD'!EG195)","v":8301.7005842474773},{"$f":"IF('[2]MONE(M)CARD'!EK195=\"\",\"\",'[2]MONE(M)CARD'!EK195)","v":18461.725440620379},{"$f":"IF('[2]MONE(M)CARD'!EP195=\"\",\"\",'[2]MONE(M)CARD'!EP195)","v":8191.5891901676005},{"$f":"IF('[2]MONE(M)CARD'!ES195=\"\",\"\",'[2]MONE(M)CARD'!ES195)","v":22.743662950382348},{"$f":"IF('[2]MONE(M)CARD'!EV195=\"\",\"\",'[2]MONE(M)CARD'!EV195)","v":32.505402587620537},{"$f":"IF('[2]MONE(M)CARD'!EZ195=\"\",\"\",'[2]MONE(M)CARD'!EZ195)","v":27.302324983815286},{"$f":"IF('[2]MONE(M)CAPARD'!FC195=\"\",\"\",'[2]MONE(M)CAPARD'!FC195)","v":9817.1026874974777},{"$f":"IF('[2]MONE(M)CAPARD'!FG195=\"\",\"\",'[2]MONE(M)CAPARD'!FG195)","v":28206.798159430378},{"$f":"IF('[2]MONE(M)CAPARD'!FL195=\"\",\"\",'[2]MONE(M)CAPARD'!FL195)","v":8191.5891901676005},{"$f":"IF('[2]MONE(M)CAPARD'!FO195=\"\",\"\",'[2]MONE(M)CAPARD'!FO195)","v":20.069469730021684},{"$f":"IF('[2]MONE(M)CAPARD'!FR195=\"\",\"\",'[2]MONE(M)CAPARD'!FR195)","v":22.863201525114739},{"$f":"IF('[2]MONE(M)CAPARD'!FV195=\"\",\"\",'[2]MONE(M)CAPARD'!FV195)","v":20.956229749092259},{"$f":"IF('[2]MONE(M)CARD'!FV195=\"\",\"\",'[2]MONE(M)CARD'!FV195)","v":295.51566584222496},{"$f":"IF('[2]MONE(M)CARD'!GD195=\"\",\"\",'[2]MONE(M)CARD'!GD195)","v":12.253510448993147},{"$f":"IF('[2]MONE(M)CARD'!GE195=\"\",\"\",'[2]MONE(M)CARD'!GE195)","v":2506.4688326218975},29.124673716350323,{"$f":"IF('[9]II.2.Balance OSD-Activos'!J53=\"\",\"\",'[9]II.2.Balance OSD-Activos'!J53)","v":26.203953813335019},{"$f":"IF('[9]II.2.Balance OSD-Activos'!N53=\"\",\"\",'[9]II.2.Balance OSD-Activos'!N53)","v":117.82750593604356},{"$f":"IF('[9]II.2.Balance OSD-Activos'!R53=\"\",\"\",'[9]II.2.Balance OSD-Activos'!R53)","v":9730.0005569103305},{"$f":"IF('[9]II.2.Balance OSD-Activos'!S53=\"\",\"\",'[9]II.2.Balance OSD-Activos'!S53)","v":10057.978359593682},9756.2045107236663,19932.010376253391,-10.638136381058194,10.432056891587504,971.57988518401146,10.502225245084684,28.988067205095369,19.760858764103538,0.39140901922189997,{"$f":"IF('[2]MONE(M)CAPARD'!GS195=\"\",\"\",'[2]MONE(M)CAPARD'!GS195)","v":4128.7339831230192},{"$f":"IF('[2]MONE(M)CARD'!HA195=\"\",\"\",'[2]MONE(M)CAPARD'!HA195)","v":2735.1671506218972},{"$f":"IF('[2]MONE(M)CAPARD'!HB195=\"\",\"\",'[2]MONE(M)CAPARD'!HB195)","v":1393.566832501122},"n.d.",{"$f":"IF('[10]II.2.Balance OSD-Activos'!J53=\"\",\"\",'[10]II.2.Balance OSD-Activos'!J53)","v":233.60228680333503},{"$f":"IF('[10]II.2.Balance OSD-Activos'!N53=\"\",\"\",'[10]II.2.Balance OSD-Activos'!N53)","v":488.68260858604356},{"$f":"IF('[10]II.2.Balance OSD-Activos'!R53=\"\",\"\",'[10]II.2.Balance OSD-Activos'!R53)","v":15440.01715434033},{"$f":"IF('[10]II.2.Balance OSD-Activos'!S53=\"\",\"\",'[10]II.2.Balance OSD-Activos'!S53)","v":15531.488636353683},15673.619441143665,31693.79068608339,-54.806474564323373,10.551280116390371,8.1963925154858721,13.024267585863193,23.367174515692881,16.439958903718743,1.0235080620631933,{"$f":"IF('[2]MONE(M)CAPARD'!AS195=\"\",\"\",'[2]MONE(M)CAPARD'!AS195)","v":"n.d."},{"$f":"IF('[2]MONE(M)CAPARD'!AT195=\"\",\"\",'[2]MONE(M)CAPARD'!AT195)","v":"n.a."},{"$f":"IF('[2]MONE(M)CAPARD'!AU195=\"\",\"\",'[2]MONE(M)CAPARD'!AU195)","v":3},{"$f":"IF('[2]MONE(M)CAPARD'!AV195=\"\",\"\",'[2]MONE(M)CAPARD'!AV195)","v":7},{"$f":"IF('[2]MONE(M)CAPARD'!AW195=\"\",\"\",'[2]MONE(M)CAPARD'!AW195)","v":"n.a."},{"$f":"IF('[2]MONE(M)CAPARD'!AX195=\"\",\"\",'[2]MONE(M)CAPARD'!AX195)","v":8},{"$f":"IF('[2]MONE(M)CAPARD'!AY195=\"\",\"\",'[2]MONE(M)CAPARD'!AY195)","v":"n.a."},{"$f":"IF('[2]FISCAL(M)'!$K195=\"\",\"\",'[2]FISCAL(M)'!$K195)","v":209.665785700941},{"$f":"IF('[2]FISCAL(M)'!$L195=\"\",\"\",'[2]FISCAL(M)'!$L195)","v":556.15304782094074},{"$f":"IF('[2]FISCAL(M)'!$AY195=\"\",\"\",'[2]FISCAL(M)'!$AY195)","v":"n.d."},{"$f":"IF('[2]FISCAL(M)'!$BI195=\"\",\"\",'[2]FISCAL(M)'!$BI195)","v":"n.d."},{"$f":"IF('[2]FISCAL(M)'!$BS195=\"\",\"\",'[2]FISCAL(M)'!$BS195)","v":"n.d."},{"$f":"IF('[2]FISCAL(M)'!$AZ195=\"\",\"\",'[2]FISCAL(M)'!$AZ195)","v":"n.d."},{"$f":"IF('[2]FISCAL(M)'!$BJ195=\"\",\"\",'[2]FISCAL(M)'!$BJ195)","v":"n.d."},{"$f":"IF('[2]FISCAL(M)'!$BT195=\"\",\"\",'[2]FISCAL(M)'!$BT195)","v":"n.d."},{"$f":"IF('[3]MONE(M)'!$AO195=\"\",\"\",'[3]MONE(M)'!$AO195)","v":3004723.7712094462},{"$f":"IF('[4]MONE(M)'!$AO195=\"\",\"\",'[4]MONE(M)'!$AO195)","v":6886.9153133071432},{"$f":"IF('[5]MONE(M)'!$AO195=\"\",\"\",'[5]MONE(M)'!$AO195)","v":56262.965609976687},{"$f":"+'[1]MONE(M)'!$AO195","v":64743.630184938564},{"$f":"IF('[6]MONE(M)'!$AO195=\"\",\"\",'[6]MONE(M)'!$AO195)","v":20642.853274944518},{"$f":"IF('[7]MONE(M)'!$AO195=\"\",\"\",'[7]MONE(M)'!$AO195)","v":177450.96606100001},{"$f":"IF('[8]MONE(M)'!$AO195=\"\",\"\",'[8]MONE(M)'!$AO195)","v":11715.472811669999},22.045224509081262,4.3798007485723156,15.974310888491905,11.608023921098386,34.440715701866196,-10.449745033544156,13.069736889053974,{"$f":"IF('[2]FISCAL(M)'!$K195=\"\",\"\",'[2]FISCAL(M)'!$K195)","v":209.665785700941},{"$f":"+'[2]REAL(A)'!$AO$25","v":114915.86219205651},0.18245156212684627,{"$f":"IF('[2]FISCAL(M)'!$L195=\"\",\"\",'[2]FISCAL(M)'!$L195)","v":556.15304782094074},{"$f":"+'[2]REAL(A)'!$AP$25","v":"n.d."},"n.d.","n.d.",{"$f":"'[2]Gráfico REM'!BG189","v":11840.55816895695},{"$f":"'[2]Gráfico REM'!BH189","v":31392.317150355142},{"$f":"'[2]Gráfico REM'!BI189","v":2953.9971879579189},"n.d.",25.009732980505039,17.31957465490046,26.578163023610244,"n.d.",{"$f":"'[2]Gráfico REM'!BK189","v":12362.44872603695},{"$f":"'[2]Gráfico REM'!BL189","v":43107.789962025141},{"$f":"'[2]Gráfico REM'!BM189","v":10543.068177627918},"n.d.",23.70047711535388,16.133295815501402,16.625742260743024]
[2005,"julio","2005-julio",{"$f":"IF('[2]REAL IPC(M)'!$AL196=\"\",\"\",+'[2]REAL IPC(M)'!$AL196)","v":6.8155564112437395},{"$f":"IF('[2]REAL IPC(M)'!$BE196=\"\",\"\",+'[2]REAL IPC(M)'!$BE196)","v":10.547830849419215},{"$f":"IF('[2]REAL IPC(M)'!$AM196=\"\",\"\",+'[2]REAL IPC(M)'!$AM196)","v":6.3727353351070493},{"$f":"IF('[2]REAL IPC(M)'!$BI196=\"\",\"\",+'[2]REAL IPC(M)'!$BI196)","v":9.7373200783573708},{"$f":"IF('[2]REAL IMAE(M)'!BJ196=\"\",\"\",'[2]REAL IMAE(M)'!BJ196)","v":"n.d."},{"$f":"IF('[2]REAL IMAE(M)'!BK196=\"\",\"\",'[2]REAL IMAE(M)'!BK196)","v":"n.d."},{"$f":"IF('[2]REAL IMAE(M)'!BN196=\"\",\"\",'[2]REAL IMAE(M)'!BN196)","v":"n.d."},{"$f":"IF('[2]REAL IMAE(M)'!BO196=\"\",\"\",'[2]REAL IMAE(M)'!BO196)","v":"n.d."},{"$f":"IF('[2]EXT RIN(M)'!$K196=\"\",\"\",'[2]EXT RIN(M)'!$K196)","v":11690.086854471894},"",{"$f":"IF('[2]EXT RIN(M)'!$L196=\"\",\"\",'[2]EXT RIN(M)'!$L196)","v":12731.930660119113},"",{"$f":"IF('[2]MONE(M)CARD'!EG196=\"\",\"\",'[2]MONE(M)CARD'!EG196)","v":8525.5347333034024},{"$f":"IF('[2]MONE(M)CARD'!EK196=\"\",\"\",'[2]MONE(M)CARD'!EK196)","v":18653.708211360441},{"$f":"IF('[2]MONE(M)CARD'!EP196=\"\",\"\",'[2]MONE(M)CARD'!EP196)","v":8219.9475655899405},{"$f":"IF('[2]MONE(M)CARD'!ES196=\"\",\"\",'[2]MONE(M)CARD'!ES196)","v":22.999890434502412},{"$f":"IF('[2]MONE(M)CARD'!EV196=\"\",\"\",'[2]MONE(M)CARD'!EV196)","v":30.56193760054644},{"$f":"IF('[2]MONE(M)CARD'!EZ196=\"\",\"\",'[2]MONE(M)CARD'!EZ196)","v":25.597180781028861},{"$f":"IF('[2]MONE(M)CAPARD'!FC196=\"\",\"\",'[2]MONE(M)CAPARD'!FC196)","v":10112.4605928534},{"$f":"IF('[2]MONE(M)CAPARD'!FG196=\"\",\"\",'[2]MONE(M)CAPARD'!FG196)","v":28238.446413420439},{"$f":"IF('[2]MONE(M)CAPARD'!FL196=\"\",\"\",'[2]MONE(M)CAPARD'!FL196)","v":8219.9475655899369},{"$f":"IF('[2]MONE(M)CAPARD'!FO196=\"\",\"\",'[2]MONE(M)CAPARD'!FO196)","v":20.692512121908415},{"$f":"IF('[2]MONE(M)CAPARD'!FR196=\"\",\"\",'[2]MONE(M)CAPARD'!FR196)","v":21.175058139764925},{"$f":"IF('[2]MONE(M)CAPARD'!FV196=\"\",\"\",'[2]MONE(M)CAPARD'!FV196)","v":19.361179672444418},{"$f":"IF('[2]MONE(M)CARD'!FV196=\"\",\"\",'[2]MONE(M)CARD'!FV196)","v":296.83499848569869},{"$f":"IF('[2]MONE(M)CARD'!GD196=\"\",\"\",'[2]MONE(M)CARD'!GD196)","v":12.56320723401493},{"$f":"IF('[2]MONE(M)CARD'!GE196=\"\",\"\",'[2]MONE(M)CARD'!GE196)","v":2465.8389640349556},26.868824876384533,{"$f":"IF('[9]II.2.Balance OSD-Activos'!J54=\"\",\"\",'[9]II.2.Balance OSD-Activos'!J54)","v":27.262877831415764},{"$f":"IF('[9]II.2.Balance OSD-Activos'!N54=\"\",\"\",'[9]II.2.Balance OSD-Activos'!N54)","v":121.20506386441994},{"$f":"IF('[9]II.2.Balance OSD-Activos'!R54=\"\",\"\",'[9]II.2.Balance OSD-Activos'!R54)","v":9744.0148808519225},{"$f":"IF('[9]II.2.Balance OSD-Activos'!S54=\"\",\"\",'[9]II.2.Balance OSD-Activos'!S54)","v":10247.917356981645},9771.2777586833381,20140.400179529403,-13.132696795164389,11.119950464288021,873.75590792964033,11.206820098461122,29.137763815844476,20.301921985143622,0.54106322104008342,{"$f":"IF('[2]MONE(M)CAPARD'!GS196=\"\",\"\",'[2]MONE(M)CAPARD'!GS196)","v":3979.1755265519041},{"$f":"IF('[2]MONE(M)CARD'!HA196=\"\",\"\",'[2]MONE(M)CAPARD'!HA196)","v":2746.6499903149556},{"$f":"IF('[2]MONE(M)CAPARD'!HB196=\"\",\"\",'[2]MONE(M)CAPARD'!HB196)","v":1232.5255362369485},"n.d.",{"$f":"IF('[10]II.2.Balance OSD-Activos'!J54=\"\",\"\",'[10]II.2.Balance OSD-Activos'!J54)","v":234.96995585141576},{"$f":"IF('[10]II.2.Balance OSD-Activos'!N54=\"\",\"\",'[10]II.2.Balance OSD-Activos'!N54)","v":467.80385053441995},{"$f":"IF('[10]II.2.Balance OSD-Activos'!R54=\"\",\"\",'[10]II.2.Balance OSD-Activos'!R54)","v":15586.346463641921},{"$f":"IF('[10]II.2.Balance OSD-Activos'!S54=\"\",\"\",'[10]II.2.Balance OSD-Activos'!S54)","v":15790.534715961643},15821.316419493338,32079.6549859894,-48.963150707734663,11.616968747496227,1.1251382280508482,13.650665819739682,23.652628155187493,17.04773470449803,0.60777580077928661,{"$f":"IF('[2]MONE(M)CAPARD'!AS196=\"\",\"\",'[2]MONE(M)CAPARD'!AS196)","v":"n.d."},{"$f":"IF('[2]MONE(M)CAPARD'!AT196=\"\",\"\",'[2]MONE(M)CAPARD'!AT196)","v":"n.a."},{"$f":"IF('[2]MONE(M)CAPARD'!AU196=\"\",\"\",'[2]MONE(M)CAPARD'!AU196)","v":3.25},{"$f":"IF('[2]MONE(M)CAPARD'!AV196=\"\",\"\",'[2]MONE(M)CAPARD'!AV196)","v":7},{"$f":"IF('[2]MONE(M)CAPARD'!AW196=\"\",\"\",'[2]MONE(M)CAPARD'!AW196)","v":"n.a."},{"$f":"IF('[2]MONE(M)CAPARD'!AX196=\"\",\"\",'[2]MONE(M)CAPARD'!AX196)","v":8},{"$f":"IF('[2]MONE(M)CAPARD'!AY196=\"\",\"\",'[2]MONE(M)CAPARD'!AY196)","v":"n.a."},{"$f":"IF('[2]FISCAL(M)'!$K196=\"\",\"\",'[2]FISCAL(M)'!$K196)","v":51.230904150201923},{"$f":"IF('[2]FISCAL(M)'!$L196=\"\",\"\",'[2]FISCAL(M)'!$L196)","v":68.997503430201505},{"$f":"IF('[2]FISCAL(M)'!$AY196=\"\",\"\",'[2]FISCAL(M)'!$AY196)","v":"n.d."},{"$f":"IF('[2]FISCAL(M)'!$BI196=\"\",\"\",'[2]FISCAL(M)'!$BI196)","v":"n.d."},{"$f":"IF('[2]FISCAL(M)'!$BS196=\"\",\"\",'[2]FISCAL(M)'!$BS196)","v":"n.d."},{"$f":"IF('[2]FISCAL(M)'!$AZ196=\"\",\"\",'[2]FISCAL(M)'!$AZ196)","v":"n.d."},{"$f":"IF('[2]FISCAL(M)'!$BJ196=\"\",\"\",'[2]FISCAL(M)'!$BJ196)","v":"n.d."},{"$f":"IF('[2]FISCAL(M)'!$BT196=\"\",\"\",'[2]FISCAL(M)'!$BT196)","v":"n.d."},{"$f":"IF('[3]MONE(M)'!$AO196=\"\",\"\",'[3]MONE(M)'!$AO196)","v":3036219.7722881446},{"$f":"IF('[4]MONE(M)'!$AO196=\"\",\"\",'[4]MONE(M)'!$AO196)","v":6941.0933185371432},{"$f":"IF('[5]MONE(M)'!$AO196=\"\",\"\",'[5]MONE(M)'!$AO196)","v":57169.692320081202},{"$f":"+'[1]MONE(M)'!$AO196","v":65777.814572275092},{"$f":"IF('[6]MONE(M)'!$AO196=\"\",\"\",'[6]MONE(M)'!$AO196)","v":20918.753017400501},{"$f":"IF('[7]MONE(M)'!$AO196=\"\",\"\",'[7]MONE(M)'!$AO196)","v":180549.49750358998},{"$f":"IF('[8]MONE(M)'!$AO196=\"\",\"\",'[8]MONE(M)'!$AO196)","v":11920.71299611},23.254980867710518,6.3269355530398697,15.630153245654533,12.54998170818935,34.151251890324083,-7.8613173304941109,14.511254304143929,{"$f":"IF('[2]FISCAL(M)'!$K196=\"\",\"\",'[2]FISCAL(M)'!$K196)","v":51.230904150201923},{"$f":"+'[2]REAL(A)'!$AO$25","v":114915.86219205651},4.4581229408156703E-2,{"$f":"IF('[2]FISCAL(M)'!$L196=\"\",\"\",'[2]FISCAL(M)'!$L196)","v":68.997503430201505},{"$f":"+'[2]REAL(A)'!$AP$25","v":"n.d."},"n.d.","n.d.",{"$f":"'[2]Gráfico REM'!BG190","v":11756.694878159236},{"$f":"'[2]Gráfico REM'!BH190","v":31772.44889849818},{"$f":"'[2]Gráfico REM'!BI190","v":2777.4675189702384},"n.d.",20.91425524427002,17.992567972138129,21.189109175346289,"n.d.",{"$f":"'[2]Gráfico REM'!BK190","v":12212.172162359237},{"$f":"'[2]Gráfico REM'!BL190","v":43693.16189460818},{"$f":"'[2]Gráfico REM'!BM190","v":10447.277302821238},"n.d.",19.093256499882514,17.021943918533331,19.257304445132984]
[2005,"agosto","2005-agosto",{"$f":"IF('[2]REAL IPC(M)'!$AL197=\"\",\"\",+'[2]REAL IPC(M)'!$AL197)","v":7.1547208381244509},{"$f":"IF('[2]REAL IPC(M)'!$BE197=\"\",\"\",+'[2]REAL IPC(M)'!$BE197)","v":10.362581742855559},{"$f":"IF('[2]REAL IPC(M)'!$AM197=\"\",\"\",+'[2]REAL IPC(M)'!$AM197)","v":6.6473259334006052},{"$f":"IF('[2]REAL IPC(M)'!$BI197=\"\",\"\",+'[2]REAL IPC(M)'!$BI197)","v":9.5686378873766298},{"$f":"IF('[2]REAL IMAE(M)'!BJ197=\"\",\"\",'[2]REAL IMAE(M)'!BJ197)","v":"n.d."},{"$f":"IF('[2]REAL IMAE(M)'!BK197=\"\",\"\",'[2]REAL IMAE(M)'!BK197)","v":"n.d."},{"$f":"IF('[2]REAL IMAE(M)'!BN197=\"\",\"\",'[2]REAL IMAE(M)'!BN197)","v":"n.d."},{"$f":"IF('[2]REAL IMAE(M)'!BO197=\"\",\"\",'[2]REAL IMAE(M)'!BO197)","v":"n.d."},{"$f":"IF('[2]EXT RIN(M)'!$K197=\"\",\"\",'[2]EXT RIN(M)'!$K197)","v":11532.488811667734},"",{"$f":"IF('[2]EXT RIN(M)'!$L197=\"\",\"\",'[2]EXT RIN(M)'!$L197)","v":12512.334124083414},"",{"$f":"IF('[2]MONE(M)CARD'!EG197=\"\",\"\",'[2]MONE(M)CARD'!EG197)","v":8379.629187279721},{"$f":"IF('[2]MONE(M)CARD'!EK197=\"\",\"\",'[2]MONE(M)CARD'!EK197)","v":18266.682855239094},{"$f":"IF('[2]MONE(M)CARD'!EP197=\"\",\"\",'[2]MONE(M)CARD'!EP197)","v":8154.6983738003401},{"$f":"IF('[2]MONE(M)CARD'!ES197=\"\",\"\",'[2]MONE(M)CARD'!ES197)","v":17.672927485033398},{"$f":"IF('[2]MONE(M)CARD'!EV197=\"\",\"\",'[2]MONE(M)CARD'!EV197)","v":20.062997519648572},{"$f":"IF('[2]MONE(M)CARD'!EZ197=\"\",\"\",'[2]MONE(M)CARD'!EZ197)","v":17.667071587286177},{"$f":"IF('[2]MONE(M)CAPARD'!FC197=\"\",\"\",'[2]MONE(M)CAPARD'!FC197)","v":9992.3357533897215},{"$f":"IF('[2]MONE(M)CAPARD'!FG197=\"\",\"\",'[2]MONE(M)CAPARD'!FG197)","v":27979.515959569093},{"$f":"IF('[2]MONE(M)CAPARD'!FL197=\"\",\"\",'[2]MONE(M)CAPARD'!FL197)","v":8154.6983738003401},{"$f":"IF('[2]MONE(M)CAPARD'!FO197=\"\",\"\",'[2]MONE(M)CAPARD'!FO197)","v":14.590336016721528},{"$f":"IF('[2]MONE(M)CAPARD'!FR197=\"\",\"\",'[2]MONE(M)CAPARD'!FR197)","v":14.002146166966822},{"$f":"IF('[2]MONE(M)CAPARD'!FV197=\"\",\"\",'[2]MONE(M)CAPARD'!FV197)","v":13.360248618665537},{"$f":"IF('[2]MONE(M)CARD'!FV197=\"\",\"\",'[2]MONE(M)CARD'!FV197)","v":285.3561334049914},{"$f":"IF('[2]MONE(M)CARD'!GD197=\"\",\"\",'[2]MONE(M)CARD'!GD197)","v":13.111182164906284},{"$f":"IF('[2]MONE(M)CARD'!GE197=\"\",\"\",'[2]MONE(M)CARD'!GE197)","v":2643.7123434239661},36.229933533391304,{"$f":"IF('[9]II.2.Balance OSD-Activos'!J55=\"\",\"\",'[9]II.2.Balance OSD-Activos'!J55)","v":25.704121759920206},{"$f":"IF('[9]II.2.Balance OSD-Activos'!N55=\"\",\"\",'[9]II.2.Balance OSD-Activos'!N55)","v":120.67467820421969},{"$f":"IF('[9]II.2.Balance OSD-Activos'!R55=\"\",\"\",'[9]II.2.Balance OSD-Activos'!R55)","v":9857.3624862682718},{"$f":"IF('[9]II.2.Balance OSD-Activos'!S55=\"\",\"\",'[9]II.2.Balance OSD-Activos'!S55)","v":10382.012053063692},9883.0666080281917,20385.753339296105,-27.593624529418083,8.396284277820687,930.30527080409331,8.5369614532712301,24.868619583808705,16.866706873255445,-3.4352151118881764,{"$f":"IF('[2]MONE(M)CAPARD'!GS197=\"\",\"\",'[2]MONE(M)CAPARD'!GS197)","v":3817.931270074499},{"$f":"IF('[2]MONE(M)CARD'!HA197=\"\",\"\",'[2]MONE(M)CAPARD'!HA197)","v":2929.0022780839658},{"$f":"IF('[2]MONE(M)CAPARD'!HB197=\"\",\"\",'[2]MONE(M)CAPARD'!HB197)","v":888.92899199053318},"n.d.",{"$f":"IF('[10]II.2.Balance OSD-Activos'!J55=\"\",\"\",'[10]II.2.Balance OSD-Activos'!J55)","v":210.34698843992018},{"$f":"IF('[10]II.2.Balance OSD-Activos'!N55=\"\",\"\",'[10]II.2.Balance OSD-Activos'!N55)","v":477.70650635421958},{"$f":"IF('[10]II.2.Balance OSD-Activos'!R55=\"\",\"\",'[10]II.2.Balance OSD-Activos'!R55)","v":15780.38137867827},{"$f":"IF('[10]II.2.Balance OSD-Activos'!S55=\"\",\"\",'[10]II.2.Balance OSD-Activos'!S55)","v":16013.841085893691},15990.72836711819,32482.275959366103,-49.110754477482956,9.7388311419033702,20.469185433541416,11.45691042433976,21.251840846204463,15.286549559219932,-1.7611851452780982,{"$f":"IF('[2]MONE(M)CAPARD'!AS197=\"\",\"\",'[2]MONE(M)CAPARD'!AS197)","v":"n.d."},{"$f":"IF('[2]MONE(M)CAPARD'!AT197=\"\",\"\",'[2]MONE(M)CAPARD'!AT197)","v":"n.a."},{"$f":"IF('[2]MONE(M)CAPARD'!AU197=\"\",\"\",'[2]MONE(M)CAPARD'!AU197)","v":3.5},{"$f":"IF('[2]MONE(M)CAPARD'!AV197=\"\",\"\",'[2]MONE(M)CAPARD'!AV197)","v":7},{"$f":"IF('[2]MONE(M)CAPARD'!AW197=\"\",\"\",'[2]MONE(M)CAPARD'!AW197)","v":"n.a."},{"$f":"IF('[2]MONE(M)CAPARD'!AX197=\"\",\"\",'[2]MONE(M)CAPARD'!AX197)","v":8},{"$f":"IF('[2]MONE(M)CAPARD'!AY197=\"\",\"\",'[2]MONE(M)CAPARD'!AY197)","v":"n.a."},{"$f":"IF('[2]FISCAL(M)'!$K197=\"\",\"\",'[2]FISCAL(M)'!$K197)","v":-51.86366372635149},{"$f":"IF('[2]FISCAL(M)'!$L197=\"\",\"\",'[2]FISCAL(M)'!$L197)","v":-76.999183266352077},{"$f":"IF('[2]FISCAL(M)'!$AY197=\"\",\"\",'[2]FISCAL(M)'!$AY197)","v":"n.d."},{"$f":"IF('[2]FISCAL(M)'!$BI197=\"\",\"\",'[2]FISCAL(M)'!$BI197)","v":"n.d."},{"$f":"IF('[2]FISCAL(M)'!$BS197=\"\",\"\",'[2]FISCAL(M)'!$BS197)","v":"n.d."},{"$f":"IF('[2]FISCAL(M)'!$AZ197=\"\",\"\",'[2]FISCAL(M)'!$AZ197)","v":"n.d."},{"$f":"IF('[2]FISCAL(M)'!$BJ197=\"\",\"\",'[2]FISCAL(M)'!$BJ197)","v":"n.d."},{"$f":"IF('[2]FISCAL(M)'!$BT197=\"\",\"\",'[2]FISCAL(M)'!$BT197)","v":"n.d."},{"$f":"IF('[3]MONE(M)'!$AO197=\"\",\"\",'[3]MONE(M)'!$AO197)","v":3137007.6438775659},{"$f":"IF('[4]MONE(M)'!$AO197=\"\",\"\",'[4]MONE(M)'!$AO197)","v":6999.9075508271444},{"$f":"IF('[5]MONE(M)'!$AO197=\"\",\"\",'[5]MONE(M)'!$AO197)","v":57768.650557290879},{"$f":"+'[1]MONE(M)'!$AO197","v":66670.558501544321},{"$f":"IF('[6]MONE(M)'!$AO197=\"\",\"\",'[6]MONE(M)'!$AO197)","v":21336.468246042743},{"$f":"IF('[7]MONE(M)'!$AO197=\"\",\"\",'[7]MONE(M)'!$AO197)","v":184369.51234999998},{"$f":"IF('[8]MONE(M)'!$AO197=\"\",\"\",'[8]MONE(M)'!$AO197)","v":12055.06158641},{"$f":"((BY190/BY178)-1)*100","v":24.555143802912504},6.9156034648593101,16.955562346990227,12.705849161353534,32.77948795581311,-1.3210165167072963,14.5450996711056,{"$f":"IF('[2]FISCAL(M)'!$K197=\"\",\"\",'[2]FISCAL(M)'!$K197)","v":-51.86366372635149},{"$f":"+'[2]REAL(A)'!$AO$25","v":114915.86219205651},-4.5131857984646903E-2,{"$f":"IF('[2]FISCAL(M)'!$L197=\"\",\"\",'[2]FISCAL(M)'!$L197)","v":-76.999183266352077},{"$f":"+'[2]REAL(A)'!$AP$25","v":"n.d."},"n.d.","n.d.",{"$f":"'[2]Gráfico REM'!BG191","v":11623.036956559965},{"$f":"'[2]Gráfico REM'!BH191","v":32167.522965832184},{"$f":"'[2]Gráfico REM'!BI191","v":3075.7014571762556},"n.d.",14.319035322251739,16.281259648026936,43.087246637438902,"n.d.",{"$f":"'[2]Gráfico REM'!BK191","v":12086.550432339965},{"$f":"'[2]Gráfico REM'!BL191","v":44222.584552242188},{"$f":"'[2]Gráfico REM'!BM191","v":10892.011516576256},"n.d.",13.002842921199109,15.802786524210521,26.057708811597301]
[2005,"septiembre","2005-septiembre",{"$f":"IF('[2]REAL IPC(M)'!$AL198=\"\",\"\",+'[2]REAL IPC(M)'!$AL198)","v":8.1804281345565713},{"$f":"IF('[2]REAL IPC(M)'!$BE198=\"\",\"\",+'[2]REAL IPC(M)'!$BE198)","v":10.181602172784277},{"$f":"IF('[2]REAL IPC(M)'!$AM198=\"\",\"\",+'[2]REAL IPC(M)'!$AM198)","v":7.676818525044049},{"$f":"IF('[2]REAL IPC(M)'!$BI198=\"\",\"\",+'[2]REAL IPC(M)'!$BI198)","v":9.404686752335877},{"$f":"IF('[2]REAL IMAE(M)'!BJ198=\"\",\"\",'[2]REAL IMAE(M)'!BJ198)","v":"n.d."},{"$f":"IF('[2]REAL IMAE(M)'!BK198=\"\",\"\",'[2]REAL IMAE(M)'!BK198)","v":"n.d."},{"$f":"IF('[2]REAL IMAE(M)'!BN198=\"\",\"\",'[2]REAL IMAE(M)'!BN198)","v":"n.d."},{"$f":"IF('[2]REAL IMAE(M)'!BO198=\"\",\"\",'[2]REAL IMAE(M)'!BO198)","v":"n.d."},{"$f":"IF('[2]EXT RIN(M)'!$K198=\"\",\"\",'[2]EXT RIN(M)'!$K198)","v":11645.5177717524},"",{"$f":"IF('[2]EXT RIN(M)'!$L198=\"\",\"\",'[2]EXT RIN(M)'!$L198)","v":12548.251169052821},"",{"$f":"IF('[2]MONE(M)CARD'!EG198=\"\",\"\",'[2]MONE(M)CARD'!EG198)","v":8206.8159807621323},{"$f":"IF('[2]MONE(M)CARD'!EK198=\"\",\"\",'[2]MONE(M)CARD'!EK198)","v":17982.929777073274},{"$f":"IF('[2]MONE(M)CARD'!EP198=\"\",\"\",'[2]MONE(M)CARD'!EP198)","v":8189.7934474158465},{"$f":"IF('[2]MONE(M)CARD'!ES198=\"\",\"\",'[2]MONE(M)CARD'!ES198)","v":10.311529560757759},{"$f":"IF('[2]MONE(M)CARD'!EV198=\"\",\"\",'[2]MONE(M)CARD'!EV198)","v":9.0428586626891914},{"$f":"IF('[2]MONE(M)CARD'!EZ198=\"\",\"\",'[2]MONE(M)CARD'!EZ198)","v":9.460153548005156},{"$f":"IF('[2]MONE(M)CAPARD'!FC198=\"\",\"\",'[2]MONE(M)CAPARD'!FC198)","v":9891.6205578421323},{"$f":"IF('[2]MONE(M)CAPARD'!FG198=\"\",\"\",'[2]MONE(M)CAPARD'!FG198)","v":27714.089533423266},{"$f":"IF('[2]MONE(M)CAPARD'!FL198=\"\",\"\",'[2]MONE(M)CAPARD'!FL198)","v":8189.7934474158465},{"$f":"IF('[2]MONE(M)CAPARD'!FO198=\"\",\"\",'[2]MONE(M)CAPARD'!FO198)","v":11.156788426706864},{"$f":"IF('[2]MONE(M)CAPARD'!FR198=\"\",\"\",'[2]MONE(M)CAPARD'!FR198)","v":7.5099214068913511},{"$f":"IF('[2]MONE(M)CAPARD'!FV198=\"\",\"\",'[2]MONE(M)CAPARD'!FV198)","v":8.0866501467230059},{"$f":"IF('[2]MONE(M)CARD'!FV198=\"\",\"\",'[2]MONE(M)CARD'!FV198)","v":287.39627760492897},{"$f":"IF('[2]MONE(M)CARD'!GD198=\"\",\"\",'[2]MONE(M)CARD'!GD198)","v":13.783338908949531},{"$f":"IF('[2]MONE(M)CARD'!GE198=\"\",\"\",'[2]MONE(M)CARD'!GE198)","v":2644.9854240292411},32.73695244807471,{"$f":"IF('[9]II.2.Balance OSD-Activos'!J56=\"\",\"\",'[9]II.2.Balance OSD-Activos'!J56)","v":21.477416676632629},{"$f":"IF('[9]II.2.Balance OSD-Activos'!N56=\"\",\"\",'[9]II.2.Balance OSD-Activos'!N56)","v":118.16323560509707},{"$f":"IF('[9]II.2.Balance OSD-Activos'!R56=\"\",\"\",'[9]II.2.Balance OSD-Activos'!R56)","v":9965.3934873387334},{"$f":"IF('[9]II.2.Balance OSD-Activos'!S56=\"\",\"\",'[9]II.2.Balance OSD-Activos'!S56)","v":10434.37953176263},9986.8709040153662,20539.413671383096,-44.143849014908909,4.3953164733574246,861.65763469557305,4.5912027667411426,19.567176887047523,12.203648703471281,-4.6630581697841649,{"$f":"IF('[2]MONE(M)CAPARD'!GS198=\"\",\"\",'[2]MONE(M)CAPARD'!GS198)","v":3765.2566447635922},{"$f":"IF('[2]MONE(M)CARD'!HA198=\"\",\"\",'[2]MONE(M)CAPARD'!HA198)","v":2930.3760498092402},{"$f":"IF('[2]MONE(M)CAPARD'!HB198=\"\",\"\",'[2]MONE(M)CAPARD'!HB198)","v":834.88059495435209},"n.d.",{"$f":"IF('[10]II.2.Balance OSD-Activos'!J56=\"\",\"\",'[10]II.2.Balance OSD-Activos'!J56)","v":206.18516056663265},{"$f":"IF('[10]II.2.Balance OSD-Activos'!N56=\"\",\"\",'[10]II.2.Balance OSD-Activos'!N56)","v":483.99179877509704},{"$f":"IF('[10]II.2.Balance OSD-Activos'!R56=\"\",\"\",'[10]II.2.Balance OSD-Activos'!R56)","v":16013.982938428733},{"$f":"IF('[10]II.2.Balance OSD-Activos'!S56=\"\",\"\",'[10]II.2.Balance OSD-Activos'!S56)","v":16145.358914342631},16220.168098995366,32849.518812113092,-45.834306813288585,7.439248714398583,13.828368048746809,8.8172292559234755,18.125629091353581,12.536080521825998,-2.750469037393934,{"$f":"IF('[2]MONE(M)CAPARD'!AS198=\"\",\"\",'[2]MONE(M)CAPARD'!AS198)","v":"n.d."},{"$f":"IF('[2]MONE(M)CAPARD'!AT198=\"\",\"\",'[2]MONE(M)CAPARD'!AT198)","v":"n.a."},{"$f":"IF('[2]MONE(M)CAPARD'!AU198=\"\",\"\",'[2]MONE(M)CAPARD'!AU198)","v":3.75},{"$f":"IF('[2]MONE(M)CAPARD'!AV198=\"\",\"\",'[2]MONE(M)CAPARD'!AV198)","v":7},{"$f":"IF('[2]MONE(M)CAPARD'!AW198=\"\",\"\",'[2]MONE(M)CAPARD'!AW198)","v":"n.a."},{"$f":"IF('[2]MONE(M)CAPARD'!AX198=\"\",\"\",'[2]MONE(M)CAPARD'!AX198)","v":10},{"$f":"IF('[2]MONE(M)CAPARD'!AY198=\"\",\"\",'[2]MONE(M)CAPARD'!AY198)","v":"n.a."},{"$f":"IF('[2]FISCAL(M)'!$K198=\"\",\"\",'[2]FISCAL(M)'!$K198)","v":-294.79733376658527},{"$f":"IF('[2]FISCAL(M)'!$L198=\"\",\"\",'[2]FISCAL(M)'!$L198)","v":-395.01281925658554},{"$f":"IF('[2]FISCAL(M)'!$AY198=\"\",\"\",'[2]FISCAL(M)'!$AY198)","v":"n.d."},{"$f":"IF('[2]FISCAL(M)'!$BI198=\"\",\"\",'[2]FISCAL(M)'!$BI198)","v":"n.d."},{"$f":"IF('[2]FISCAL(M)'!$BS198=\"\",\"\",'[2]FISCAL(M)'!$BS198)","v":"n.d."},{"$f":"IF('[2]FISCAL(M)'!$AZ198=\"\",\"\",'[2]FISCAL(M)'!$AZ198)","v":"n.d."},{"$f":"IF('[2]FISCAL(M)'!$BJ198=\"\",\"\",'[2]FISCAL(M)'!$BJ198)","v":"n.d."},{"$f":"IF('[2]FISCAL(M)'!$BT198=\"\",\"\",'[2]FISCAL(M)'!$BT198)","v":"n.d."},{"$f":"IF('[3]MONE(M)'!$AO198=\"\",\"\",'[3]MONE(M)'!$AO198)","v":3218014.2604387128},{"$f":"IF('[4]MONE(M)'!$AO198=\"\",\"\",'[4]MONE(M)'!$AO198)","v":7170.1626235471431},{"$f":"IF('[5]MONE(M)'!$AO198=\"\",\"\",'[5]MONE(M)'!$AO198)","v":58748.58719386773},{"$f":"+'[1]MONE(M)'!$AO198","v":67888.517346476467},{"$f":"IF('[6]MONE(M)'!$AO198=\"\",\"\",'[6]MONE(M)'!$AO198)","v":21857.599234907109},{"$f":"IF('[7]MONE(M)'!$AO198=\"\",\"\",'[7]MONE(M)'!$AO198)","v":189985.262972},{"$f":"IF('[8]MONE(M)'!$AO198=\"\",\"\",'[8]MONE(M)'!$AO198)","v":12303.719584719998},26.217474675318098,9.6808330534047915,16.904987141643723,13.650454081721408,31.786618228266562,7.7539834159615184,15.444476665938645,{"$f":"IF('[2]FISCAL(M)'!$K198=\"\",\"\",'[2]FISCAL(M)'!$K198)","v":-294.79733376658527},{"$f":"+'[2]REAL(A)'!$AO$25","v":114915.86219205651},-0.25653319580363637,{"$f":"IF('[2]FISCAL(M)'!$L198=\"\",\"\",'[2]FISCAL(M)'!$L198)","v":-395.01281925658554},{"$f":"+'[2]REAL(A)'!$AP$25","v":"n.d."},"n.d.","n.d.",{"$f":"'[2]Gráfico REM'!BG192","v":11457.469033095866},{"$f":"'[2]Gráfico REM'!BH192","v":32404.522915374342},{"$f":"'[2]Gráfico REM'!BI192","v":3205.5512211908158},"n.d.",6.4284283567775491,13.162887860970951,44.689174741342796,"n.d.",{"$f":"'[2]Gráfico REM'!BK192","v":11899.562152765866},{"$f":"'[2]Gráfico REM'!BL192","v":44708.24250009434},{"$f":"'[2]Gráfico REM'!BM192","v":11053.226553050816},"n.d.",5.6782250828888881,13.78173816468189,27.435213069716191]
[2005,"octubre","2005-octubre",{"$f":"IF('[2]REAL IPC(M)'!$AL199=\"\",\"\",+'[2]REAL IPC(M)'!$AL199)","v":8.5699861163700533},{"$f":"IF('[2]REAL IPC(M)'!$BE199=\"\",\"\",+'[2]REAL IPC(M)'!$BE199)","v":10.00575255400522},{"$f":"IF('[2]REAL IPC(M)'!$AM199=\"\",\"\",+'[2]REAL IPC(M)'!$AM199)","v":8.072364316905789},{"$f":"IF('[2]REAL IPC(M)'!$BI199=\"\",\"\",+'[2]REAL IPC(M)'!$BI199)","v":9.2463294410008565},{"$f":"IF('[2]REAL IMAE(M)'!BJ199=\"\",\"\",'[2]REAL IMAE(M)'!BJ199)","v":"n.d."},{"$f":"IF('[2]REAL IMAE(M)'!BK199=\"\",\"\",'[2]REAL IMAE(M)'!BK199)","v":"n.d."},{"$f":"IF('[2]REAL IMAE(M)'!BN199=\"\",\"\",'[2]REAL IMAE(M)'!BN199)","v":"n.d."},{"$f":"IF('[2]REAL IMAE(M)'!BO199=\"\",\"\",'[2]REAL IMAE(M)'!BO199)","v":"n.d."},{"$f":"IF('[2]EXT RIN(M)'!$K199=\"\",\"\",'[2]EXT RIN(M)'!$K199)","v":11730.596740516954},"",{"$f":"IF('[2]EXT RIN(M)'!$L199=\"\",\"\",'[2]EXT RIN(M)'!$L199)","v":12651.523870103554},"",{"$f":"IF('[2]MONE(M)CARD'!EG199=\"\",\"\",'[2]MONE(M)CARD'!EG199)","v":8204.4147585509145},{"$f":"IF('[2]MONE(M)CARD'!EK199=\"\",\"\",'[2]MONE(M)CARD'!EK199)","v":17029.633730514266},{"$f":"IF('[2]MONE(M)CARD'!EP199=\"\",\"\",'[2]MONE(M)CARD'!EP199)","v":8209.8337531871803},{"$f":"IF('[2]MONE(M)CARD'!ES199=\"\",\"\",'[2]MONE(M)CARD'!ES199)","v":11.113951419169844},{"$f":"IF('[2]MONE(M)CARD'!EV199=\"\",\"\",'[2]MONE(M)CARD'!EV199)","v":5.90060123267242},{"$f":"IF('[2]MONE(M)CARD'!EZ199=\"\",\"\",'[2]MONE(M)CARD'!EZ199)","v":7.1883664256255475},{"$f":"IF('[2]MONE(M)CAPARD'!FC199=\"\",\"\",'[2]MONE(M)CAPARD'!FC199)","v":9878.2744414109147},{"$f":"IF('[2]MONE(M)CAPARD'!FG199=\"\",\"\",'[2]MONE(M)CAPARD'!FG199)","v":27021.137703904267},{"$f":"IF('[2]MONE(M)CAPARD'!FL199=\"\",\"\",'[2]MONE(M)CAPARD'!FL199)","v":8209.833753187173},{"$f":"IF('[2]MONE(M)CAPARD'!FO199=\"\",\"\",'[2]MONE(M)CAPARD'!FO199)","v":11.694190330279852},{"$f":"IF('[2]MONE(M)CAPARD'!FR199=\"\",\"\",'[2]MONE(M)CAPARD'!FR199)","v":6.0313867664551157},{"$f":"IF('[2]MONE(M)CAPARD'!FV199=\"\",\"\",'[2]MONE(M)CAPARD'!FV199)","v":6.9612450292865002},{"$f":"IF('[2]MONE(M)CARD'!FV199=\"\",\"\",'[2]MONE(M)CARD'!FV199)","v":326.24008887620556},{"$f":"IF('[2]MONE(M)CARD'!GD199=\"\",\"\",'[2]MONE(M)CARD'!GD199)","v":14.160960958564068},{"$f":"IF('[2]MONE(M)CARD'!GE199=\"\",\"\",'[2]MONE(M)CARD'!GE199)","v":2633.6084769454992},20.263508781088603,{"$f":"IF('[9]II.2.Balance OSD-Activos'!J57=\"\",\"\",'[9]II.2.Balance OSD-Activos'!J57)","v":21.417837595088745},{"$f":"IF('[9]II.2.Balance OSD-Activos'!N57=\"\",\"\",'[9]II.2.Balance OSD-Activos'!N57)","v":115.70865011054934},{"$f":"IF('[9]II.2.Balance OSD-Activos'!R57=\"\",\"\",'[9]II.2.Balance OSD-Activos'!R57)","v":9940.0975514339261},{"$f":"IF('[9]II.2.Balance OSD-Activos'!S57=\"\",\"\",'[9]II.2.Balance OSD-Activos'!S57)","v":10491.231507110413},9961.5153890290148,20568.455546249977,-41.448545031433092,4.9993904311881776,876.79936848871716,5.1791712867135242,20.0079560420231,12.758412653781726,0.5547639503104449,{"$f":"IF('[2]MONE(M)CAPARD'!GS199=\"\",\"\",'[2]MONE(M)CAPARD'!GS199)","v":3776.7354744834356},{"$f":"IF('[2]MONE(M)CARD'!HA199=\"\",\"\",'[2]MONE(M)CAPARD'!HA199)","v":2920.0723843554988},{"$f":"IF('[2]MONE(M)CAPARD'!HB199=\"\",\"\",'[2]MONE(M)CAPARD'!HB199)","v":856.66309012793681},"n.d.",{"$f":"IF('[10]II.2.Balance OSD-Activos'!J57=\"\",\"\",'[10]II.2.Balance OSD-Activos'!J57)","v":206.37886231508872},{"$f":"IF('[10]II.2.Balance OSD-Activos'!N57=\"\",\"\",'[10]II.2.Balance OSD-Activos'!N57)","v":485.53251946054934},{"$f":"IF('[10]II.2.Balance OSD-Activos'!R57=\"\",\"\",'[10]II.2.Balance OSD-Activos'!R57)","v":16093.309332113924},{"$f":"IF('[10]II.2.Balance OSD-Activos'!S57=\"\",\"\",'[10]II.2.Balance OSD-Activos'!S57)","v":16272.871358190414},16299.688194429013,33058.092072079977,-45.730939568616627,7.9080670835189881,10.683999802809719,9.2933614312811876,18.59588838577033,12.960783296945987,0.42470277511998944,{"$f":"IF('[2]MONE(M)CAPARD'!AS199=\"\",\"\",'[2]MONE(M)CAPARD'!AS199)","v":"n.d."},{"$f":"IF('[2]MONE(M)CAPARD'!AT199=\"\",\"\",'[2]MONE(M)CAPARD'!AT199)","v":"n.a."},{"$f":"IF('[2]MONE(M)CAPARD'!AU199=\"\",\"\",'[2]MONE(M)CAPARD'!AU199)","v":3.75},{"$f":"IF('[2]MONE(M)CAPARD'!AV199=\"\",\"\",'[2]MONE(M)CAPARD'!AV199)","v":7},{"$f":"IF('[2]MONE(M)CAPARD'!AW199=\"\",\"\",'[2]MONE(M)CAPARD'!AW199)","v":"n.a."},{"$f":"IF('[2]MONE(M)CAPARD'!AX199=\"\",\"\",'[2]MONE(M)CAPARD'!AX199)","v":10},{"$f":"IF('[2]MONE(M)CAPARD'!AY199=\"\",\"\",'[2]MONE(M)CAPARD'!AY199)","v":"n.a."},{"$f":"IF('[2]FISCAL(M)'!$K199=\"\",\"\",'[2]FISCAL(M)'!$K199)","v":-140.08601061318427},{"$f":"IF('[2]FISCAL(M)'!$L199=\"\",\"\",'[2]FISCAL(M)'!$L199)","v":-314.66478916318516},{"$f":"IF('[2]FISCAL(M)'!$AY199=\"\",\"\",'[2]FISCAL(M)'!$AY199)","v":"n.d."},{"$f":"IF('[2]FISCAL(M)'!$BI199=\"\",\"\",'[2]FISCAL(M)'!$BI199)","v":"n.d."},{"$f":"IF('[2]FISCAL(M)'!$BS199=\"\",\"\",'[2]FISCAL(M)'!$BS199)","v":"n.d."},{"$f":"IF('[2]FISCAL(M)'!$AZ199=\"\",\"\",'[2]FISCAL(M)'!$AZ199)","v":"n.d."},{"$f":"IF('[2]FISCAL(M)'!$BJ199=\"\",\"\",'[2]FISCAL(M)'!$BJ199)","v":"n.d."},{"$f":"IF('[2]FISCAL(M)'!$BT199=\"\",\"\",'[2]FISCAL(M)'!$BT199)","v":"n.d."},{"$f":"IF('[3]MONE(M)'!$AO199=\"\",\"\",'[3]MONE(M)'!$AO199)","v":3280956.5796250599},{"$f":"IF('[4]MONE(M)'!$AO199=\"\",\"\",'[4]MONE(M)'!$AO199)","v":7229.1622279871444},{"$f":"IF('[5]MONE(M)'!$AO199=\"\",\"\",'[5]MONE(M)'!$AO199)","v":59740.580039468769},{"$f":"+'[1]MONE(M)'!$AO199","v":69199.661513740721},{"$f":"IF('[6]MONE(M)'!$AO199=\"\",\"\",'[6]MONE(M)'!$AO199)","v":22603.773957431033},{"$f":"IF('[7]MONE(M)'!$AO199=\"\",\"\",'[7]MONE(M)'!$AO199)","v":197913.70867765998},{"$f":"IF('[8]MONE(M)'!$AO199=\"\",\"\",'[8]MONE(M)'!$AO199)","v":12473.102224572998},26.748065877662984,8.9369626168930729,17.638350741462936,13.827549030635344,34.590341715922676,11.75907731377286,15.82516023228504,{"$f":"IF('[2]FISCAL(M)'!$K199=\"\",\"\",'[2]FISCAL(M)'!$K199)","v":-140.08601061318427},{"$f":"+'[2]REAL(A)'!$AO$25","v":114915.86219205651},-0.12190311062459021,{"$f":"IF('[2]FISCAL(M)'!$L199=\"\",\"\",'[2]FISCAL(M)'!$L199)","v":-314.66478916318516},{"$f":"+'[2]REAL(A)'!$AP$25","v":"n.d."},"n.d.","n.d.",{"$f":"'[2]Gráfico REM'!BG193","v":11032.675028654001},{"$f":"'[2]Gráfico REM'!BH193","v":32722.460771909307},{"$f":"'[2]Gráfico REM'!BI193","v":3087.9454679717701},"n.d.",3.0709902849961335,13.889924173686641,45.279630166286026,"n.d.",{"$f":"'[2]Gráfico REM'!BK193","v":11495.190846344001},{"$f":"'[2]Gráfico REM'!BL193","v":45195.562996482302},{"$f":"'[2]Gráfico REM'!BM193","v":11053.143988341768},"n.d.",2.3361195016257774,14.417521095565178,26.282159985681353]
[2005,"noviembre","2005-noviembre",{"$f":"IF('[2]REAL IPC(M)'!$AL200=\"\",\"\",+'[2]REAL IPC(M)'!$AL200)","v":8.1193353474320329},{"$f":"IF('[2]REAL IPC(M)'!$BE200=\"\",\"\",+'[2]REAL IPC(M)'!$BE200)","v":9.83574654918975},{"$f":"IF('[2]REAL IPC(M)'!$AM200=\"\",\"\",+'[2]REAL IPC(M)'!$AM200)","v":7.6176250933532419},{"$f":"IF('[2]REAL IPC(M)'!$BI200=\"\",\"\",+'[2]REAL IPC(M)'!$BI200)","v":9.09427398934357},{"$f":"IF('[2]REAL IMAE(M)'!BJ200=\"\",\"\",'[2]REAL IMAE(M)'!BJ200)","v":"n.d."},{"$f":"IF('[2]REAL IMAE(M)'!BK200=\"\",\"\",'[2]REAL IMAE(M)'!BK200)","v":"n.d."},{"$f":"IF('[2]REAL IMAE(M)'!BN200=\"\",\"\",'[2]REAL IMAE(M)'!BN200)","v":"n.d."},{"$f":"IF('[2]REAL IMAE(M)'!BO200=\"\",\"\",'[2]REAL IMAE(M)'!BO200)","v":"n.d."},{"$f":"IF('[2]EXT RIN(M)'!$K200=\"\",\"\",'[2]EXT RIN(M)'!$K200)","v":11705.572929376087},"",{"$f":"IF('[2]EXT RIN(M)'!$L200=\"\",\"\",'[2]EXT RIN(M)'!$L200)","v":12649.580598993267},"",{"$f":"IF('[2]MONE(M)CARD'!EG200=\"\",\"\",'[2]MONE(M)CARD'!EG200)","v":8612.5671308500241},{"$f":"IF('[2]MONE(M)CARD'!EK200=\"\",\"\",'[2]MONE(M)CARD'!EK200)","v":17051.167780501426},{"$f":"IF('[2]MONE(M)CARD'!EP200=\"\",\"\",'[2]MONE(M)CARD'!EP200)","v":8291.6938629849683},{"$f":"IF('[2]MONE(M)CARD'!ES200=\"\",\"\",'[2]MONE(M)CARD'!ES200)","v":10.087801638192184},{"$f":"IF('[2]MONE(M)CARD'!EV200=\"\",\"\",'[2]MONE(M)CARD'!EV200)","v":1.4282273158962244},{"$f":"IF('[2]MONE(M)CARD'!EZ200=\"\",\"\",'[2]MONE(M)CARD'!EZ200)","v":3.6016827182906219},{"$f":"IF('[2]MONE(M)CAPARD'!FC200=\"\",\"\",'[2]MONE(M)CAPARD'!FC200)","v":10333.077945020024},{"$f":"IF('[2]MONE(M)CAPARD'!FG200=\"\",\"\",'[2]MONE(M)CAPARD'!FG200)","v":27192.974602481419},{"$f":"IF('[2]MONE(M)CAPARD'!FL200=\"\",\"\",'[2]MONE(M)CAPARD'!FL200)","v":8291.6938629849683},{"$f":"IF('[2]MONE(M)CAPARD'!FO200=\"\",\"\",'[2]MONE(M)CAPARD'!FO200)","v":10.461438696926017},{"$f":"IF('[2]MONE(M)CAPARD'!FR200=\"\",\"\",'[2]MONE(M)CAPARD'!FR200)","v":3.0166337169929891},{"$f":"IF('[2]MONE(M)CAPARD'!FV200=\"\",\"\",'[2]MONE(M)CAPARD'!FV200)","v":4.3689269665437847},{"$f":"IF('[2]MONE(M)CARD'!FV200=\"\",\"\",'[2]MONE(M)CARD'!FV200)","v":321.30814416353439},{"$f":"IF('[2]MONE(M)CARD'!GD200=\"\",\"\",'[2]MONE(M)CARD'!GD200)","v":14.944780803774201},{"$f":"IF('[2]MONE(M)CARD'!GE200=\"\",\"\",'[2]MONE(M)CARD'!GE200)","v":2633.8983449454531},21.894094439137479,{"$f":"IF('[9]II.2.Balance OSD-Activos'!J58=\"\",\"\",'[9]II.2.Balance OSD-Activos'!J58)","v":14.319883388824071},{"$f":"IF('[9]II.2.Balance OSD-Activos'!N58=\"\",\"\",'[9]II.2.Balance OSD-Activos'!N58)","v":115.80367606320061},{"$f":"IF('[9]II.2.Balance OSD-Activos'!R58=\"\",\"\",'[9]II.2.Balance OSD-Activos'!R58)","v":10203.963545077984},{"$f":"IF('[9]II.2.Balance OSD-Activos'!S58=\"\",\"\",'[9]II.2.Balance OSD-Activos'!S58)","v":10651.545558233167},10218.283428466808,20985.632662763175,-64.311716910417417,2.8348269109083724,833.89926979426969,3.1070701087425157,15.941647479653565,9.6658006743195237,-3.0926119794622018,{"$f":"IF('[2]MONE(M)CAPARD'!GS200=\"\",\"\",'[2]MONE(M)CAPARD'!GS200)","v":3734.537979440855},{"$f":"IF('[2]MONE(M)CARD'!HA200=\"\",\"\",'[2]MONE(M)CAPARD'!HA200)","v":2918.3245624054539},{"$f":"IF('[2]MONE(M)CAPARD'!HB200=\"\",\"\",'[2]MONE(M)CAPARD'!HB200)","v":816.21341703540111},"n.d.",{"$f":"IF('[10]II.2.Balance OSD-Activos'!J58=\"\",\"\",'[10]II.2.Balance OSD-Activos'!J58)","v":207.46556773882409},{"$f":"IF('[10]II.2.Balance OSD-Activos'!N58=\"\",\"\",'[10]II.2.Balance OSD-Activos'!N58)","v":504.54207090320057},{"$f":"IF('[10]II.2.Balance OSD-Activos'!R58=\"\",\"\",'[10]II.2.Balance OSD-Activos'!R58)","v":16454.605395587983},{"$f":"IF('[10]II.2.Balance OSD-Activos'!S58=\"\",\"\",'[10]II.2.Balance OSD-Activos'!S58)","v":16510.963986123166},16662.070963326809,33677.577020353172,-46.175272186057249,6.9207499051436416,20.736604289141635,8.2673423588625283,16.095953563437028,11.429247722845393,-1.5315355741005945,{"$f":"IF('[2]MONE(M)CAPARD'!AS200=\"\",\"\",'[2]MONE(M)CAPARD'!AS200)","v":"n.d."},{"$f":"IF('[2]MONE(M)CAPARD'!AT200=\"\",\"\",'[2]MONE(M)CAPARD'!AT200)","v":"n.a."},{"$f":"IF('[2]MONE(M)CAPARD'!AU200=\"\",\"\",'[2]MONE(M)CAPARD'!AU200)","v":4},{"$f":"IF('[2]MONE(M)CAPARD'!AV200=\"\",\"\",'[2]MONE(M)CAPARD'!AV200)","v":7},{"$f":"IF('[2]MONE(M)CAPARD'!AW200=\"\",\"\",'[2]MONE(M)CAPARD'!AW200)","v":"n.a."},{"$f":"IF('[2]MONE(M)CAPARD'!AX200=\"\",\"\",'[2]MONE(M)CAPARD'!AX200)","v":10},{"$f":"IF('[2]MONE(M)CAPARD'!AY200=\"\",\"\",'[2]MONE(M)CAPARD'!AY200)","v":"n.a."},{"$f":"IF('[2]FISCAL(M)'!$K200=\"\",\"\",'[2]FISCAL(M)'!$K200)","v":-417.8482741090948},{"$f":"IF('[2]FISCAL(M)'!$L200=\"\",\"\",'[2]FISCAL(M)'!$L200)","v":-646.31233794909565},{"$f":"IF('[2]FISCAL(M)'!$AY200=\"\",\"\",'[2]FISCAL(M)'!$AY200)","v":"n.d."},{"$f":"IF('[2]FISCAL(M)'!$BI200=\"\",\"\",'[2]FISCAL(M)'!$BI200)","v":"n.d."},{"$f":"IF('[2]FISCAL(M)'!$BS200=\"\",\"\",'[2]FISCAL(M)'!$BS200)","v":"n.d."},{"$f":"IF('[2]FISCAL(M)'!$AZ200=\"\",\"\",'[2]FISCAL(M)'!$AZ200)","v":"n.d."},{"$f":"IF('[2]FISCAL(M)'!$BJ200=\"\",\"\",'[2]FISCAL(M)'!$BJ200)","v":"n.d."},{"$f":"IF('[2]FISCAL(M)'!$BT200=\"\",\"\",'[2]FISCAL(M)'!$BT200)","v":"n.d."},{"$f":"IF('[3]MONE(M)'!$AO200=\"\",\"\",'[3]MONE(M)'!$AO200)","v":3366261.8454746678},{"$f":"IF('[4]MONE(M)'!$AO200=\"\",\"\",'[4]MONE(M)'!$AO200)","v":7328.4168484671427},{"$f":"IF('[5]MONE(M)'!$AO200=\"\",\"\",'[5]MONE(M)'!$AO200)","v":52564.139565937367},{"$f":"+'[1]MONE(M)'!$AO200","v":71027.158985756949},{"$f":"IF('[6]MONE(M)'!$AO200=\"\",\"\",'[6]MONE(M)'!$AO200)","v":23294.631049732943},{"$f":"IF('[7]MONE(M)'!$AO200=\"\",\"\",'[7]MONE(M)'!$AO200)","v":200013.08786217001},{"$f":"IF('[8]MONE(M)'!$AO200=\"\",\"\",'[8]MONE(M)'!$AO200)","v":12668.326296523001},28.235984150579707,9.355775204716398,1.5491833321245041,15.356063861552261,33.646455019808364,13.712953284541163,16.62630675333412,{"$f":"IF('[2]FISCAL(M)'!$K200=\"\",\"\",'[2]FISCAL(M)'!$K200)","v":-417.8482741090948},{"$f":"+'[2]REAL(A)'!$AO$25","v":114915.86219205651},-0.36361235615215037,{"$f":"IF('[2]FISCAL(M)'!$L200=\"\",\"\",'[2]FISCAL(M)'!$L200)","v":-646.31233794909565},{"$f":"+'[2]REAL(A)'!$AP$25","v":"n.d."},"n.d.","n.d.",{"$f":"'[2]Gráfico REM'!BG194","v":11916.34577754446},{"$f":"'[2]Gráfico REM'!BH194","v":32235.508578611807},{"$f":"'[2]Gráfico REM'!BI194","v":3735.5011543150686},"n.d.",5.5897971643422251,8.1567475756777252,71.61848837967446,"n.d.",{"$f":"'[2]Gráfico REM'!BK194","v":12348.48139650446},{"$f":"'[2]Gráfico REM'!BL194","v":44903.834875134809},{"$f":"'[2]Gráfico REM'!BM194","v":11872.131028585067},"n.d.",3.8286384588201106,10.419015103377038,26.963966310226304]
[2005,"diciembre","2005-diciembre",{"$f":"IF('[2]REAL IPC(M)'!$AL201=\"\",\"\",+'[2]REAL IPC(M)'!$AL201)","v":8.5052843482636966},{"$f":"IF('[2]REAL IPC(M)'!$BE201=\"\",\"\",+'[2]REAL IPC(M)'!$BE201)","v":9.6721871639067647},{"$f":"IF('[2]REAL IPC(M)'!$AM201=\"\",\"\",+'[2]REAL IPC(M)'!$AM201)","v":7.9592090536003024},{"$f":"IF('[2]REAL IPC(M)'!$BI201=\"\",\"\",+'[2]REAL IPC(M)'!$BI201)","v":8.9490978799143583},{"$f":"IF('[2]REAL IMAE(M)'!BJ201=\"\",\"\",'[2]REAL IMAE(M)'!BJ201)","v":"n.d."},{"$f":"IF('[2]REAL IMAE(M)'!BK201=\"\",\"\",'[2]REAL IMAE(M)'!BK201)","v":"n.d."},{"$f":"IF('[2]REAL IMAE(M)'!BN201=\"\",\"\",'[2]REAL IMAE(M)'!BN201)","v":"n.d."},{"$f":"IF('[2]REAL IMAE(M)'!BO201=\"\",\"\",'[2]REAL IMAE(M)'!BO201)","v":"n.d."},{"$f":"IF('[2]EXT RIN(M)'!$K201=\"\",\"\",'[2]EXT RIN(M)'!$K201)","v":12142.098525460302},12142.098525460302,{"$f":"IF('[2]EXT RIN(M)'!$L201=\"\",\"\",'[2]EXT RIN(M)'!$L201)","v":13321.749764955292},13321.749764955292,{"$f":"IF('[2]MONE(M)CARD'!EG201=\"\",\"\",'[2]MONE(M)CARD'!EG201)","v":9764.0918779593194},{"$f":"IF('[2]MONE(M)CARD'!EK201=\"\",\"\",'[2]MONE(M)CARD'!EK201)","v":19150.340094096493},{"$f":"IF('[2]MONE(M)CARD'!EP201=\"\",\"\",'[2]MONE(M)CARD'!EP201)","v":9497.5732343280542},{"$f":"IF('[2]MONE(M)CARD'!ES201=\"\",\"\",'[2]MONE(M)CARD'!ES201)","v":11.187638923932974},{"$f":"IF('[2]MONE(M)CARD'!EV201=\"\",\"\",'[2]MONE(M)CARD'!EV201)","v":5.0178660177320422},{"$f":"IF('[2]MONE(M)CARD'!EZ201=\"\",\"\",'[2]MONE(M)CARD'!EZ201)","v":6.024369074818603},{"$f":"IF('[2]MONE(M)CAPARD'!FC201=\"\",\"\",'[2]MONE(M)CAPARD'!FC201)","v":11670.37594559932},{"$f":"IF('[2]MONE(M)CAPARD'!FG201=\"\",\"\",'[2]MONE(M)CAPARD'!FG201)","v":29450.107663086492},{"$f":"IF('[2]MONE(M)CAPARD'!FL201=\"\",\"\",'[2]MONE(M)CAPARD'!FL201)","v":9497.573234328047},{"$f":"IF('[2]MONE(M)CAPARD'!FO201=\"\",\"\",'[2]MONE(M)CAPARD'!FO201)","v":12.056781689282058},{"$f":"IF('[2]MONE(M)CAPARD'!FR201=\"\",\"\",'[2]MONE(M)CAPARD'!FR201)","v":6.0872657251874074},{"$f":"IF('[2]MONE(M)CAPARD'!FV201=\"\",\"\",'[2]MONE(M)CAPARD'!FV201)","v":6.6596707299433566},{"$f":"IF('[2]MONE(M)CARD'!FV201=\"\",\"\",'[2]MONE(M)CARD'!FV201)","v":403.70420846944904},{"$f":"IF('[2]MONE(M)CARD'!GD201=\"\",\"\",'[2]MONE(M)CARD'!GD201)","v":44.525010932048119},{"$f":"IF('[2]MONE(M)CARD'!GE201=\"\",\"\",'[2]MONE(M)CARD'!GE201)","v":2584.4581626001109},14.076820211227714,{"$f":"IF('[9]II.2.Balance OSD-Activos'!J59=\"\",\"\",'[9]II.2.Balance OSD-Activos'!J59)","v":37.897560086835234},{"$f":"IF('[9]II.2.Balance OSD-Activos'!N59=\"\",\"\",'[9]II.2.Balance OSD-Activos'!N59)","v":119.38583263695463},{"$f":"IF('[9]II.2.Balance OSD-Activos'!R59=\"\",\"\",'[9]II.2.Balance OSD-Activos'!R59)","v":12236.731191511517},{"$f":"IF('[9]II.2.Balance OSD-Activos'!S59=\"\",\"\",'[9]II.2.Balance OSD-Activos'!S59)","v":12308.917062062523},12274.628751598351,24702.931646297831,79.398032494032748,-2.0650919693776637,909.65103902145211,-2.2026279735160803,30.532605402236456,12.413565985933616,2.7477653116140921,{"$f":"IF('[2]MONE(M)CAPARD'!GS201=\"\",\"\",'[2]MONE(M)CAPARD'!GS201)","v":3877.9270094886069},{"$f":"IF('[2]MONE(M)CARD'!HA201=\"\",\"\",'[2]MONE(M)CAPARD'!HA201)","v":2828.7439532901108},{"$f":"IF('[2]MONE(M)CAPARD'!HB201=\"\",\"\",'[2]MONE(M)CAPARD'!HB201)","v":1049.1830561984962},"n.d.",{"$f":"IF('[10]II.2.Balance OSD-Activos'!J59=\"\",\"\",'[10]II.2.Balance OSD-Activos'!J59)","v":246.50415651683522},{"$f":"IF('[10]II.2.Balance OSD-Activos'!N59=\"\",\"\",'[10]II.2.Balance OSD-Activos'!N59)","v":500.57925608695456},{"$f":"IF('[10]II.2.Balance OSD-Activos'!R59=\"\",\"\",'[10]II.2.Balance OSD-Activos'!R59)","v":18258.555617921516},{"$f":"IF('[10]II.2.Balance OSD-Activos'!S59=\"\",\"\",'[10]II.2.Balance OSD-Activos'!S59)","v":18258.953047102525},18505.059774438352,37264.592077627836,-31.1993591474636,2.8605323846518926,20.504564077162858,3.5526338272065638,25.676408356417401,13.147982798767144,1.7187350759217512,{"$f":"IF('[2]MONE(M)CAPARD'!AS201=\"\",\"\",'[2]MONE(M)CAPARD'!AS201)","v":"n.d."},{"$f":"IF('[2]MONE(M)CAPARD'!AT201=\"\",\"\",'[2]MONE(M)CAPARD'!AT201)","v":"n.a."},{"$f":"IF('[2]MONE(M)CAPARD'!AU201=\"\",\"\",'[2]MONE(M)CAPARD'!AU201)","v":4.25},{"$f":"IF('[2]MONE(M)CAPARD'!AV201=\"\",\"\",'[2]MONE(M)CAPARD'!AV201)","v":7},{"$f":"IF('[2]MONE(M)CAPARD'!AW201=\"\",\"\",'[2]MONE(M)CAPARD'!AW201)","v":"n.a."},{"$f":"IF('[2]MONE(M)CAPARD'!AX201=\"\",\"\",'[2]MONE(M)CAPARD'!AX201)","v":10},{"$f":"IF('[2]MONE(M)CAPARD'!AY201=\"\",\"\",'[2]MONE(M)CAPARD'!AY201)","v":"n.a."},{"$f":"IF('[2]FISCAL(M)'!$K201=\"\",\"\",'[2]FISCAL(M)'!$K201)","v":-1523.6327316001077},{"$f":"IF('[2]FISCAL(M)'!$L201=\"\",\"\",'[2]FISCAL(M)'!$L201)","v":-1493.6327316001082},{"$f":"IF('[2]FISCAL(M)'!$AY201=\"\",\"\",'[2]FISCAL(M)'!$AY201)","v":"n.d."},{"$f":"IF('[2]FISCAL(M)'!$BI201=\"\",\"\",'[2]FISCAL(M)'!$BI201)","v":"n.d."},{"$f":"IF('[2]FISCAL(M)'!$BS201=\"\",\"\",'[2]FISCAL(M)'!$BS201)","v":28855.4},{"$f":"IF('[2]FISCAL(M)'!$AZ201=\"\",\"\",'[2]FISCAL(M)'!$AZ201)","v":"n.d."},{"$f":"IF('[2]FISCAL(M)'!$BJ201=\"\",\"\",'[2]FISCAL(M)'!$BJ201)","v":"n.d."},{"$f":"IF('[2]FISCAL(M)'!$BT201=\"\",\"\",'[2]FISCAL(M)'!$BT201)","v":36435.104038830003},{"$f":"IF('[3]MONE(M)'!$AO201=\"\",\"\",'[3]MONE(M)'!$AO201)","v":3513450.2858631033},{"$f":"IF('[4]MONE(M)'!$AO201=\"\",\"\",'[4]MONE(M)'!$AO201)","v":7475.5792748771419},{"$f":"IF('[5]MONE(M)'!$AO201=\"\",\"\",'[5]MONE(M)'!$AO201)","v":55942.455012089791},{"$f":"+'[1]MONE(M)'!$AO201","v":69622.793800475964},{"$f":"IF('[6]MONE(M)'!$AO201=\"\",\"\",'[6]MONE(M)'!$AO201)","v":24075.086353959712},{"$f":"IF('[7]MONE(M)'!$AO201=\"\",\"\",'[7]MONE(M)'!$AO201)","v":203881.20671452998},{"$f":"IF('[8]MONE(M)'!$AO201=\"\",\"\",'[8]MONE(M)'!$AO201)","v":12553.650540959999},30.190872247639568,11.454678086814996,4.7602218026398413,16.169919291867462,31.411430041460232,14.205142000722226,17.223060480836793,{"$f":"IF('[2]FISCAL(M)'!$K201=\"\",\"\",'[2]FISCAL(M)'!$K201)","v":-1523.6327316001077},{"$f":"+'[2]REAL(A)'!$AO$25","v":114915.86219205651},-1.3258680764659727,{"$f":"IF('[2]FISCAL(M)'!$L201=\"\",\"\",'[2]FISCAL(M)'!$L201)","v":-1493.6327316001082},{"$f":"+'[2]REAL(A)'!$AP$25","v":"n.d."},"n.d.","n.d.",{"$f":"'[2]Gráfico REM'!BG195","v":11686.671784083781},{"$f":"'[2]Gráfico REM'!BH195","v":32890.991909939257},{"$f":"'[2]Gráfico REM'!BI195","v":3839.3067241926392},"n.d.",5.5270434547202596,10.655862609321233,60.090042318656181,"n.d.",{"$f":"'[2]Gráfico REM'!BK195","v":12122.741737103781},{"$f":"'[2]Gráfico REM'!BL195","v":45444.642450899257},{"$f":"'[2]Gráfico REM'!BM195","v":12451.465192522639},"n.d.",4.5301713323935511,12.395274532039501,26.609741355534045]
[2006,"enero","2006-enero",{"$f":"IF('[2]REAL IPC(M)'!$AL202=\"\",\"\",+'[2]REAL IPC(M)'!$AL202)","v":8.3095267668612536},{"$f":"IF('[2]REAL IPC(M)'!$BE202=\"\",\"\",+'[2]REAL IPC(M)'!$BE202)","v":9.5155727956649514},{"$f":"IF('[2]REAL IPC(M)'!$AM202=\"\",\"\",+'[2]REAL IPC(M)'!$AM202)","v":7.78023598820059},{"$f":"IF('[2]REAL IPC(M)'!$BI202=\"\",\"\",+'[2]REAL IPC(M)'!$BI202)","v":8.8112699411943662},{"$f":"IF('[2]REAL IMAE(M)'!BJ202=\"\",\"\",'[2]REAL IMAE(M)'!BJ202)","v":"n.d."},{"$f":"IF('[2]REAL IMAE(M)'!BK202=\"\",\"\",'[2]REAL IMAE(M)'!BK202)","v":"n.d."},{"$f":"IF('[2]REAL IMAE(M)'!BN202=\"\",\"\",'[2]REAL IMAE(M)'!BN202)","v":"n.d."},{"$f":"IF('[2]REAL IMAE(M)'!BO202=\"\",\"\",'[2]REAL IMAE(M)'!BO202)","v":"n.d."},{"$f":"IF('[2]EXT RIN(M)'!$K202=\"\",\"\",'[2]EXT RIN(M)'!$K202)","v":12574.826265853762},"",{"$f":"IF('[2]EXT RIN(M)'!$L202=\"\",\"\",'[2]EXT RIN(M)'!$L202)","v":13782.379440133562},"",{"$f":"IF('[2]MONE(M)CARD'!EG202=\"\",\"\",'[2]MONE(M)CARD'!EG202)","v":9012.6809911048294},{"$f":"IF('[2]MONE(M)CARD'!EK202=\"\",\"\",'[2]MONE(M)CARD'!EK202)","v":16736.468985073854},{"$f":"IF('[2]MONE(M)CARD'!EP202=\"\",\"\",'[2]MONE(M)CARD'!EP202)","v":8384.0381977598518},{"$f":"IF('[2]MONE(M)CARD'!ES202=\"\",\"\",'[2]MONE(M)CARD'!ES202)","v":9.8856538285348563},{"$f":"IF('[2]MONE(M)CARD'!EV202=\"\",\"\",'[2]MONE(M)CARD'!EV202)","v":0.42569701665646775},{"$f":"IF('[2]MONE(M)CARD'!EZ202=\"\",\"\",'[2]MONE(M)CARD'!EZ202)","v":2.5646950450004535},{"$f":"IF('[2]MONE(M)CAPARD'!FC202=\"\",\"\",'[2]MONE(M)CAPARD'!FC202)","v":10780.505717134831},{"$f":"IF('[2]MONE(M)CAPARD'!FG202=\"\",\"\",'[2]MONE(M)CAPARD'!FG202)","v":26975.120671913857},{"$f":"IF('[2]MONE(M)CAPARD'!FL202=\"\",\"\",'[2]MONE(M)CAPARD'!FL202)","v":8384.0381977598518},{"$f":"IF('[2]MONE(M)CAPARD'!FO202=\"\",\"\",'[2]MONE(M)CAPARD'!FO202)","v":10.867436337390846},{"$f":"IF('[2]MONE(M)CAPARD'!FR202=\"\",\"\",'[2]MONE(M)CAPARD'!FR202)","v":2.6729018957450279},{"$f":"IF('[2]MONE(M)CAPARD'!FV202=\"\",\"\",'[2]MONE(M)CAPARD'!FV202)","v":3.889167111235392},{"$f":"IF('[2]MONE(M)CARD'!FV202=\"\",\"\",'[2]MONE(M)CARD'!FV202)","v":311.78581804772108},{"$f":"IF('[2]MONE(M)CARD'!GD202=\"\",\"\",'[2]MONE(M)CARD'!GD202)","v":16.605082290253439},{"$f":"IF('[2]MONE(M)CARD'!GE202=\"\",\"\",'[2]MONE(M)CARD'!GE202)","v":2385.1369593747704},5.8413555321415123,{"$f":"IF('[9]II.2.Balance OSD-Activos'!J60=\"\",\"\",'[9]II.2.Balance OSD-Activos'!J60)","v":12.458854383093787},{"$f":"IF('[9]II.2.Balance OSD-Activos'!N60=\"\",\"\",'[9]II.2.Balance OSD-Activos'!N60)","v":117.62225650236877},{"$f":"IF('[9]II.2.Balance OSD-Activos'!R60=\"\",\"\",'[9]II.2.Balance OSD-Activos'!R60)","v":10297.060922800447},{"$f":"IF('[9]II.2.Balance OSD-Activos'!S60=\"\",\"\",'[9]II.2.Balance OSD-Activos'!S60)","v":10783.584995792964},10309.519777183541,21210.727029478876,-45.855208432829222,5.1654443127056693,3.5421685345857767,5.2854833897056253,14.526934623456334,9.7153550718521497,-2.6982109140814661,{"$f":"IF('[2]MONE(M)CAPARD'!GS202=\"\",\"\",'[2]MONE(M)CAPARD'!GS202)","v":3786.1510932830301},{"$f":"IF('[2]MONE(M)CARD'!HA202=\"\",\"\",'[2]MONE(M)CAPARD'!HA202)","v":2666.6746258447706},{"$f":"IF('[2]MONE(M)CAPARD'!HB202=\"\",\"\",'[2]MONE(M)CAPARD'!HB202)","v":1119.4764674382595},"n.d.",{"$f":"IF('[10]II.2.Balance OSD-Activos'!J60=\"\",\"\",'[10]II.2.Balance OSD-Activos'!J60)","v":227.98056970309375},{"$f":"IF('[10]II.2.Balance OSD-Activos'!N60=\"\",\"\",'[10]II.2.Balance OSD-Activos'!N60)","v":509.14858690236872},{"$f":"IF('[10]II.2.Balance OSD-Activos'!R60=\"\",\"\",'[10]II.2.Balance OSD-Activos'!R60)","v":16429.717242490446},{"$f":"IF('[10]II.2.Balance OSD-Activos'!S60=\"\",\"\",'[10]II.2.Balance OSD-Activos'!S60)","v":16780.186181072964},16657.697812193539,33947.032580168874,-36.196220897530949,8.7870773616720363,-0.22816217911449943,9.8618573589540404,15.426560677036626,11.814778424352056,-1.3332043744150877,{"$f":"IF('[2]MONE(M)CAPARD'!AS202=\"\",\"\",'[2]MONE(M)CAPARD'!AS202)","v":"n.d."},{"$f":"IF('[2]MONE(M)CAPARD'!AT202=\"\",\"\",'[2]MONE(M)CAPARD'!AT202)","v":"n.a."},{"$f":"IF('[2]MONE(M)CAPARD'!AU202=\"\",\"\",'[2]MONE(M)CAPARD'!AU202)","v":4.25},{"$f":"IF('[2]MONE(M)CAPARD'!AV202=\"\",\"\",'[2]MONE(M)CAPARD'!AV202)","v":7},{"$f":"IF('[2]MONE(M)CAPARD'!AW202=\"\",\"\",'[2]MONE(M)CAPARD'!AW202)","v":"n.a."},{"$f":"IF('[2]MONE(M)CAPARD'!AX202=\"\",\"\",'[2]MONE(M)CAPARD'!AX202)","v":10},{"$f":"IF('[2]MONE(M)CAPARD'!AY202=\"\",\"\",'[2]MONE(M)CAPARD'!AY202)","v":"n.a."},{"$f":"IF('[2]FISCAL(M)'!$K202=\"\",\"\",'[2]FISCAL(M)'!$K202)","v":110.15959957907717},{"$f":"IF('[2]FISCAL(M)'!$L202=\"\",\"\",'[2]FISCAL(M)'!$L202)","v":162.88267670907726},{"$f":"IF('[2]FISCAL(M)'!$AY202=\"\",\"\",'[2]FISCAL(M)'!$AY202)","v":"n.d."},{"$f":"IF('[2]FISCAL(M)'!$BI202=\"\",\"\",'[2]FISCAL(M)'!$BI202)","v":"n.d."},{"$f":"IF('[2]FISCAL(M)'!$BS202=\"\",\"\",'[2]FISCAL(M)'!$BS202)","v":"n.d."},{"$f":"IF('[2]FISCAL(M)'!$AZ202=\"\",\"\",'[2]FISCAL(M)'!$AZ202)","v":"n.d."},{"$f":"IF('[2]FISCAL(M)'!$BJ202=\"\",\"\",'[2]FISCAL(M)'!$BJ202)","v":"n.d."},{"$f":"IF('[2]FISCAL(M)'!$BT202=\"\",\"\",'[2]FISCAL(M)'!$BT202)","v":"n.d."},{"$f":"IF('[3]MONE(M)'!$AO202=\"\",\"\",'[3]MONE(M)'!$AO202)","v":3495870.0193156349},{"$f":"IF('[4]MONE(M)'!$AO202=\"\",\"\",'[4]MONE(M)'!$AO202)","v":7525.5795430471435},{"$f":"IF('[5]MONE(M)'!$AO202=\"\",\"\",'[5]MONE(M)'!$AO202)","v":56440.24675633778},{"$f":"+'[1]MONE(M)'!$AO202","v":73528.739460127894},{"$f":"IF('[6]MONE(M)'!$AO202=\"\",\"\",'[6]MONE(M)'!$AO202)","v":24626.978584329707},{"$f":"IF('[7]MONE(M)'!$AO202=\"\",\"\",'[7]MONE(M)'!$AO202)","v":200863.452326},{"$f":"IF('[8]MONE(M)'!$AO202=\"\",\"\",'[8]MONE(M)'!$AO202)","v":12721.846796449998},28.663359416032286,10.056744831538357,5.5704972052809554,18.897940444016182,33.219639618913476,15.191353953505837,18.007091781691955,{"$f":"IF('[2]FISCAL(M)'!$K202=\"\",\"\",'[2]FISCAL(M)'!$K202)","v":110.15959957907717},{"$f":"+'[2]REAL(A)'!$AO$26","v":125760.26885725796},{"$f":"IF(OR(CM195=\"n.d.\",CM195=\"\",CN195=\"\",CN195=\"n.d.\"),\"n.d.\",(CM195/CN195)*100)","v":8.7594914180814873E-2},{"$f":"IF('[2]FISCAL(M)'!$L202=\"\",\"\",'[2]FISCAL(M)'!$L202)","v":162.88267670907726},{"$f":"+'[2]REAL(A)'!$AP$26","v":"n.d."},"n.d.",{"$f":"+CT195+CU195+CV195","v":48756.21001387162},{"$f":"'[2]Gráfico REM'!BG196","v":11846.879790310279},{"$f":"'[2]Gráfico REM'!BH196","v":33099.71782770117},{"$f":"'[2]Gráfico REM'!BI196","v":3809.6123958601665},"n.d.",2.3262365502559446,9.7647302473400579,52.190901181975136,{"$f":"+DB195+DC195+DD195","v":70324.607526131615},{"$f":"'[2]Gráfico REM'!BK196","v":12344.776753750279},{"$f":"'[2]Gráfico REM'!BL196","v":45821.564624151171},{"$f":"'[2]Gráfico REM'!BM196","v":12158.266148230166},"n.d.",2.1193095066806666,11.935387258444031,22.654521045122355]
[2006,"febrero",{"$f":"A196&\"-\"&B196","v":"2006-febrero"},{"$f":"IF('[2]REAL IPC(M)'!$AL203=\"\",\"\",+'[2]REAL IPC(M)'!$AL203)","v":8.0133349796271283},{"$f":"IF('[2]REAL IPC(M)'!$BE203=\"\",\"\",+'[2]REAL IPC(M)'!$BE203)","v":9.3663163422184059},{"$f":"IF('[2]REAL IPC(M)'!$AM203=\"\",\"\",+'[2]REAL IPC(M)'!$AM203)","v":7.4291300097751645},{"$f":"IF('[2]REAL IPC(M)'!$BI203=\"\",\"\",+'[2]REAL IPC(M)'!$BI203)","v":8.6811821849224646},{"$f":"IF('[2]REAL IMAE(M)'!BJ203=\"\",\"\",'[2]REAL IMAE(M)'!BJ203)","v":"n.d."},{"$f":"IF('[2]REAL IMAE(M)'!BK203=\"\",\"\",'[2]REAL IMAE(M)'!BK203)","v":"n.d."},{"$f":"IF('[2]REAL IMAE(M)'!BN203=\"\",\"\",'[2]REAL IMAE(M)'!BN203)","v":"n.d."},{"$f":"IF('[2]REAL IMAE(M)'!BO203=\"\",\"\",'[2]REAL IMAE(M)'!BO203)","v":"n.d."},{"$f":"IF('[2]EXT RIN(M)'!$K203=\"\",\"\",'[2]EXT RIN(M)'!$K203)","v":12803.313186735255},{"$f":"IF(B196<>\"diciembre\",\"\",L196)","v":""},{"$f":"IF('[2]EXT RIN(M)'!$L203=\"\",\"\",'[2]EXT RIN(M)'!$L203)","v":13916.743114808014},{"$f":"IF(B196<>\"diciembre\",\"\",N196)","v":""},{"$f":"IF('[2]MONE(M)CARD'!EG203=\"\",\"\",'[2]MONE(M)CARD'!EG203)","v":9039.455841375162},{"$f":"IF('[2]MONE(M)CARD'!EK203=\"\",\"\",'[2]MONE(M)CARD'!EK203)","v":17391.844160288485},{"$f":"IF('[2]MONE(M)CARD'!EP203=\"\",\"\",'[2]MONE(M)CARD'!EP203)","v":8487.230177540001},{"$f":"IF('[2]MONE(M)CARD'!ES203=\"\",\"\",'[2]MONE(M)CARD'!ES203)","v":9.9423917341097567},{"$f":"IF('[2]MONE(M)CARD'!EV203=\"\",\"\",'[2]MONE(M)CARD'!EV203)","v":1.442255802100223},{"$f":"IF('[2]MONE(M)CARD'!EZ203=\"\",\"\",'[2]MONE(M)CARD'!EZ203)","v":2.9873360710038099},{"$f":"IF('[2]MONE(M)CAPARD'!FC203=\"\",\"\",'[2]MONE(M)CAPARD'!FC203)","v":10828.506970885161},{"$f":"IF('[2]MONE(M)CAPARD'!FG203=\"\",\"\",'[2]MONE(M)CAPARD'!FG203)","v":27755.113074568486},{"$f":"IF('[2]MONE(M)CAPARD'!FL203=\"\",\"\",'[2]MONE(M)CAPARD'!FL203)","v":8487.2301775400047},{"$f":"IF('[2]MONE(M)CAPARD'!FO203=\"\",\"\",'[2]MONE(M)CAPARD'!FO203)","v":10.73086124941096},{"$f":"IF('[2]MONE(M)CAPARD'!FR203=\"\",\"\",'[2]MONE(M)CAPARD'!FR203)","v":3.268683033851727},{"$f":"IF('[2]MONE(M)CAPARD'!FV203=\"\",\"\",'[2]MONE(M)CAPARD'!FV203)","v":4.110247683386814},{"$f":"IF('[2]MONE(M)CARD'!FV203=\"\",\"\",'[2]MONE(M)CARD'!FV203)","v":310.69209629798149},{"$f":"IF('[2]MONE(M)CARD'!GD203=\"\",\"\",'[2]MONE(M)CARD'!GD203)","v":17.192413815107027},{"$f":"IF('[2]MONE(M)CARD'!GE203=\"\",\"\",'[2]MONE(M)CARD'!GE203)","v":2473.984912013103},9.8175302280471666,{"$f":"IF('[9]II.2.Balance OSD-Activos'!J61=\"\",\"\",'[9]II.2.Balance OSD-Activos'!J61)","v":10.189238127726643},{"$f":"IF('[9]II.2.Balance OSD-Activos'!N61=\"\",\"\",'[9]II.2.Balance OSD-Activos'!N61)","v":117.40477241996737},{"$f":"IF('[9]II.2.Balance OSD-Activos'!R61=\"\",\"\",'[9]II.2.Balance OSD-Activos'!R61)","v":10446.619830092715},{"$f":"IF('[9]II.2.Balance OSD-Activos'!S61=\"\",\"\",'[9]II.2.Balance OSD-Activos'!S61)","v":11071.827416568276},10456.809068220442,21646.041257208686,-53.479837984078529,7.146410560774985,3.0025797155693867,7.2827794853157268,16.182656379575299,11.560163895058251,1.8448088232061011,{"$f":"IF('[2]MONE(M)CAPARD'!GS203=\"\",\"\",'[2]MONE(M)CAPARD'!GS203)","v":3698.2535001413607},{"$f":"IF('[2]MONE(M)CARD'!HA203=\"\",\"\",'[2]MONE(M)CAPARD'!HA203)","v":2756.2449405631028},{"$f":"IF('[2]MONE(M)CAPARD'!HB203=\"\",\"\",'[2]MONE(M)CAPARD'!HB203)","v":942.00855957825797},"n.d.",{"$f":"IF('[10]II.2.Balance OSD-Activos'!J61=\"\",\"\",'[10]II.2.Balance OSD-Activos'!J61)","v":228.28960819772664},{"$f":"IF('[10]II.2.Balance OSD-Activos'!N61=\"\",\"\",'[10]II.2.Balance OSD-Activos'!N61)","v":515.71640976996741},{"$f":"IF('[10]II.2.Balance OSD-Activos'!R61=\"\",\"\",'[10]II.2.Balance OSD-Activos'!R61)","v":16574.014875952718},{"$f":"IF('[10]II.2.Balance OSD-Activos'!S61=\"\",\"\",'[10]II.2.Balance OSD-Activos'!S61)","v":17143.601399908279},16802.304484150445,34461.622293828696,-36.18227994018951,9.7890734900803356,1.4067559887976921,10.88933060468824,16.559159075620045,12.911926027099273,1.0971476027472171,{"$f":"IF('[2]MONE(M)CAPARD'!AS203=\"\",\"\",'[2]MONE(M)CAPARD'!AS203)","v":"n.d."},{"$f":"IF('[2]MONE(M)CAPARD'!AT203=\"\",\"\",'[2]MONE(M)CAPARD'!AT203)","v":"n.a."},{"$f":"IF('[2]MONE(M)CAPARD'!AU203=\"\",\"\",'[2]MONE(M)CAPARD'!AU203)","v":4.25},{"$f":"IF('[2]MONE(M)CAPARD'!AV203=\"\",\"\",'[2]MONE(M)CAPARD'!AV203)","v":7},{"$f":"IF('[2]MONE(M)CAPARD'!AW203=\"\",\"\",'[2]MONE(M)CAPARD'!AW203)","v":"n.a."},{"$f":"IF('[2]MONE(M)CAPARD'!AX203=\"\",\"\",'[2]MONE(M)CAPARD'!AX203)","v":10},{"$f":"IF('[2]MONE(M)CAPARD'!AY203=\"\",\"\",'[2]MONE(M)CAPARD'!AY203)","v":"n.a."},{"$f":"IF('[2]FISCAL(M)'!$K203=\"\",\"\",'[2]FISCAL(M)'!$K203)","v":-77.312917844041692},{"$f":"IF('[2]FISCAL(M)'!$L203=\"\",\"\",'[2]FISCAL(M)'!$L203)","v":-161.50194122404173},{"$f":"IF('[2]FISCAL(M)'!$AY203=\"\",\"\",'[2]FISCAL(M)'!$AY203)","v":"n.d."},{"$f":"IF('[2]FISCAL(M)'!$BI203=\"\",\"\",'[2]FISCAL(M)'!$BI203)","v":"n.d."},{"$f":"IF('[2]FISCAL(M)'!$BS203=\"\",\"\",'[2]FISCAL(M)'!$BS203)","v":"n.d."},{"$f":"IF('[2]FISCAL(M)'!$AZ203=\"\",\"\",'[2]FISCAL(M)'!$AZ203)","v":"n.d."},{"$f":"IF('[2]FISCAL(M)'!$BJ203=\"\",\"\",'[2]FISCAL(M)'!$BJ203)","v":"n.d."},{"$f":"IF('[2]FISCAL(M)'!$BT203=\"\",\"\",'[2]FISCAL(M)'!$BT203)","v":"n.d."},{"$f":"IF('[3]MONE(M)'!$AO203=\"\",\"\",'[3]MONE(M)'!$AO203)","v":3529148.5497338674},{"$f":"IF('[4]MONE(M)'!$AO203=\"\",\"\",'[4]MONE(M)'!$AO203)","v":7595.012520387143},{"$f":"IF('[5]MONE(M)'!$AO203=\"\",\"\",'[5]MONE(M)'!$AO203)","v":57258.815142582098},{"$f":"+'[1]MONE(M)'!$AO203","v":74776.785078442015},{"$f":"IF('[6]MONE(M)'!$AO203=\"\",\"\",'[6]MONE(M)'!$AO203)","v":25253.591314697071},{"$f":"IF('[7]MONE(M)'!$AO203=\"\",\"\",'[7]MONE(M)'!$AO203)","v":200327.37377900002},{"$f":"IF('[8]MONE(M)'!$AO203=\"\",\"\",'[8]MONE(M)'!$AO203)","v":12758.38250928},28.314985229658095,11.127324148385686,7.0601135588099773,19.072651696269148,35.861908009926658,15.161705146044335,17.320750903486658,{"$f":"IF('[2]FISCAL(M)'!$K203=\"\",\"\",'[2]FISCAL(M)'!$K203)","v":-77.312917844041692},{"$f":"+'[2]REAL(A)'!$AO$26","v":125760.26885725796},-6.1476425381846465E-2,{"$f":"IF('[2]FISCAL(M)'!$L203=\"\",\"\",'[2]FISCAL(M)'!$L203)","v":-161.50194122404173},{"$f":"+'[2]REAL(A)'!$AP$26","v":"n.d."},{"$f":"IF(OR(CP196=\"n.d.\",CP196=\"\",CQ196=\"\",CQ196=\"n.d.\"),\"n.d.\",(CP196/CQ196)*100)","v":"n.d."},49237.897320887874,{"$f":"'[2]Gráfico REM'!BG197","v":11748.271925516201},{"$f":"'[2]Gráfico REM'!BH197","v":33697.697792034473},{"$f":"'[2]Gráfico REM'!BI197","v":3791.9276033372007},"n.d.",0.67249049401558736,11.199491069972577,47.545492253417891,71003.293787717877,{"$f":"'[2]Gráfico REM'!BK197","v":12263.0530195762},{"$f":"'[2]Gráfico REM'!BL197","v":46456.080301314476},{"$f":"'[2]Gráfico REM'!BM197","v":12284.160466827201},"n.d.",0.73328948346740308,12.816043898882313,23.585533864334685]
[2006,"marzo","2006-marzo",{"$f":"IF('[2]REAL IPC(M)'!$AL204=\"\",\"\",+'[2]REAL IPC(M)'!$AL204)","v":7.9203050055343782},{"$f":"IF('[2]REAL IPC(M)'!$BE204=\"\",\"\",+'[2]REAL IPC(M)'!$BE204)","v":9.2247533960917671},{"$f":"IF('[2]REAL IPC(M)'!$AM204=\"\",\"\",+'[2]REAL IPC(M)'!$AM204)","v":7.3123251003771816},{"$f":"IF('[2]REAL IPC(M)'!$BI204=\"\",\"\",+'[2]REAL IPC(M)'!$BI204)","v":8.5591524386717577},{"$f":"IF('[2]REAL IMAE(M)'!BJ204=\"\",\"\",'[2]REAL IMAE(M)'!BJ204)","v":"n.d."},{"$f":"IF('[2]REAL IMAE(M)'!BK204=\"\",\"\",'[2]REAL IMAE(M)'!BK204)","v":"n.d."},{"$f":"IF('[2]REAL IMAE(M)'!BN204=\"\",\"\",'[2]REAL IMAE(M)'!BN204)","v":"n.d."},{"$f":"IF('[2]REAL IMAE(M)'!BO204=\"\",\"\",'[2]REAL IMAE(M)'!BO204)","v":"n.d."},{"$f":"IF('[2]EXT RIN(M)'!$K204=\"\",\"\",'[2]EXT RIN(M)'!$K204)","v":13321.735690739448},"",{"$f":"IF('[2]EXT RIN(M)'!$L204=\"\",\"\",'[2]EXT RIN(M)'!$L204)","v":14458.959426737649},"",{"$f":"IF('[2]MONE(M)CARD'!EG204=\"\",\"\",'[2]MONE(M)CARD'!EG204)","v":9366.9450739115255},{"$f":"IF('[2]MONE(M)CARD'!EK204=\"\",\"\",'[2]MONE(M)CARD'!EK204)","v":17614.357376474378},{"$f":"IF('[2]MONE(M)CARD'!EP204=\"\",\"\",'[2]MONE(M)CARD'!EP204)","v":8645.4069589479477},{"$f":"IF('[2]MONE(M)CARD'!ES204=\"\",\"\",'[2]MONE(M)CARD'!ES204)","v":11.139413068199744},{"$f":"IF('[2]MONE(M)CARD'!EV204=\"\",\"\",'[2]MONE(M)CARD'!EV204)","v":0.81862431317221152},{"$f":"IF('[2]MONE(M)CARD'!EZ204=\"\",\"\",'[2]MONE(M)CARD'!EZ204)","v":2.2689199006777017},{"$f":"IF('[2]MONE(M)CAPARD'!FC204=\"\",\"\",'[2]MONE(M)CAPARD'!FC204)","v":11203.203430921525},{"$f":"IF('[2]MONE(M)CAPARD'!FG204=\"\",\"\",'[2]MONE(M)CAPARD'!FG204)","v":28098.112958994381},{"$f":"IF('[2]MONE(M)CAPARD'!FL204=\"\",\"\",'[2]MONE(M)CAPARD'!FL204)","v":8645.4069589479477},{"$f":"IF('[2]MONE(M)CAPARD'!FO204=\"\",\"\",'[2]MONE(M)CAPARD'!FO204)","v":12.651713926433628},{"$f":"IF('[2]MONE(M)CAPARD'!FR204=\"\",\"\",'[2]MONE(M)CAPARD'!FR204)","v":3.5803274303291444},{"$f":"IF('[2]MONE(M)CAPARD'!FV204=\"\",\"\",'[2]MONE(M)CAPARD'!FV204)","v":4.1936826789961579},{"$f":"IF('[2]MONE(M)CARD'!FV204=\"\",\"\",'[2]MONE(M)CARD'!FV204)","v":303.8351894217322},{"$f":"IF('[2]MONE(M)CARD'!GD204=\"\",\"\",'[2]MONE(M)CARD'!GD204)","v":10.476140238108121},{"$f":"IF('[2]MONE(M)CARD'!GE204=\"\",\"\",'[2]MONE(M)CARD'!GE204)","v":2747.9411684424335},21.957050191546124,{"$f":"IF('[9]II.2.Balance OSD-Activos'!J62=\"\",\"\",'[9]II.2.Balance OSD-Activos'!J62)","v":12.105885597430706},{"$f":"IF('[9]II.2.Balance OSD-Activos'!N62=\"\",\"\",'[9]II.2.Balance OSD-Activos'!N62)","v":118.48193799078661},{"$f":"IF('[9]II.2.Balance OSD-Activos'!R62=\"\",\"\",'[9]II.2.Balance OSD-Activos'!R62)","v":10691.106520655056},{"$f":"IF('[9]II.2.Balance OSD-Activos'!S62=\"\",\"\",'[9]II.2.Balance OSD-Activos'!S62)","v":11155.824785362885},10703.212406252487,21977.51912960616,-57.413034144304916,9.1445516724006914,1.2346755880460192,9.3380450361209455,14.656197166435847,11.826111259289384,0.26594736423113297,{"$f":"IF('[2]MONE(M)CAPARD'!GS204=\"\",\"\",'[2]MONE(M)CAPARD'!GS204)","v":3720.2103595974904},{"$f":"IF('[2]MONE(M)CARD'!HA204=\"\",\"\",'[2]MONE(M)CAPARD'!HA204)","v":3030.870489152433},{"$f":"IF('[2]MONE(M)CAPARD'!HB204=\"\",\"\",'[2]MONE(M)CAPARD'!HB204)","v":689.33987044505739},"n.d.",{"$f":"IF('[10]II.2.Balance OSD-Activos'!J62=\"\",\"\",'[10]II.2.Balance OSD-Activos'!J62)","v":275.0059013174307},{"$f":"IF('[10]II.2.Balance OSD-Activos'!N62=\"\",\"\",'[10]II.2.Balance OSD-Activos'!N62)","v":531.47250540078664},{"$f":"IF('[10]II.2.Balance OSD-Activos'!R62=\"\",\"\",'[10]II.2.Balance OSD-Activos'!R62)","v":16856.926720265055},{"$f":"IF('[10]II.2.Balance OSD-Activos'!S62=\"\",\"\",'[10]II.2.Balance OSD-Activos'!S62)","v":17297.638212352882},17131.932621582488,34961.04333933616,-3.5168736848524618,10.938334532419702,11.156206480685672,11.210154303434372,15.451604812549702,13.129824234229549,0.21789820713027552,{"$f":"IF('[2]MONE(M)CAPARD'!AS204=\"\",\"\",'[2]MONE(M)CAPARD'!AS204)","v":8.51},{"$f":"IF('[2]MONE(M)CAPARD'!AT204=\"\",\"\",'[2]MONE(M)CAPARD'!AT204)","v":"n.a."},{"$f":"IF('[2]MONE(M)CAPARD'!AU204=\"\",\"\",'[2]MONE(M)CAPARD'!AU204)","v":4.25},{"$f":"IF('[2]MONE(M)CAPARD'!AV204=\"\",\"\",'[2]MONE(M)CAPARD'!AV204)","v":6.75},{"$f":"IF('[2]MONE(M)CAPARD'!AW204=\"\",\"\",'[2]MONE(M)CAPARD'!AW204)","v":"n.a."},{"$f":"IF('[2]MONE(M)CAPARD'!AX204=\"\",\"\",'[2]MONE(M)CAPARD'!AX204)","v":10},{"$f":"IF('[2]MONE(M)CAPARD'!AY204=\"\",\"\",'[2]MONE(M)CAPARD'!AY204)","v":"n.a."},{"$f":"IF('[2]FISCAL(M)'!$K204=\"\",\"\",'[2]FISCAL(M)'!$K204)","v":-211.65623819985521},{"$f":"IF('[2]FISCAL(M)'!$L204=\"\",\"\",'[2]FISCAL(M)'!$L204)","v":-139.78579145685509},{"$f":"IF('[2]FISCAL(M)'!$AY204=\"\",\"\",'[2]FISCAL(M)'!$AY204)","v":"n.d."},{"$f":"IF('[2]FISCAL(M)'!$BI204=\"\",\"\",'[2]FISCAL(M)'!$BI204)","v":"n.d."},{"$f":"IF('[2]FISCAL(M)'!$BS204=\"\",\"\",'[2]FISCAL(M)'!$BS204)","v":29018.559999999998},{"$f":"IF('[2]FISCAL(M)'!$AZ204=\"\",\"\",'[2]FISCAL(M)'!$AZ204)","v":"n.d."},{"$f":"IF('[2]FISCAL(M)'!$BJ204=\"\",\"\",'[2]FISCAL(M)'!$BJ204)","v":"n.d."},{"$f":"IF('[2]FISCAL(M)'!$BT204=\"\",\"\",'[2]FISCAL(M)'!$BT204)","v":36930.169925500006},{"$f":"IF('[3]MONE(M)'!$AO204=\"\",\"\",'[3]MONE(M)'!$AO204)","v":3619163.4780797553},{"$f":"IF('[4]MONE(M)'!$AO204=\"\",\"\",'[4]MONE(M)'!$AO204)","v":7641.4495203871438},{"$f":"IF('[5]MONE(M)'!$AO204=\"\",\"\",'[5]MONE(M)'!$AO204)","v":58254.997375256207},{"$f":"+'[1]MONE(M)'!$AO204","v":76416.711020273593},{"$f":"IF('[6]MONE(M)'!$AO204=\"\",\"\",'[6]MONE(M)'!$AO204)","v":25881.245450890543},{"$f":"IF('[7]MONE(M)'!$AO204=\"\",\"\",'[7]MONE(M)'!$AO204)","v":201544.99035599999},{"$f":"IF('[8]MONE(M)'!$AO204=\"\",\"\",'[8]MONE(M)'!$AO204)","v":12896.164344569999},28.531391372747095,10.922799190821063,8.2393467364412878,21.229670591680438,34.888310903525891,18.195251345727016,17.031070937013769,{"$f":"IF('[2]FISCAL(M)'!$K204=\"\",\"\",'[2]FISCAL(M)'!$K204)","v":-211.65623819985521},{"$f":"+'[2]REAL(A)'!$AO$26","v":125760.26885725796},-0.16830135632112236,{"$f":"IF('[2]FISCAL(M)'!$L204=\"\",\"\",'[2]FISCAL(M)'!$L204)","v":-139.78579145685509},{"$f":"+'[2]REAL(A)'!$AP$26","v":"n.d."},"n.d.",50234.823334956607,{"$f":"'[2]Gráfico REM'!BG198","v":12009.435994722684},{"$f":"'[2]Gráfico REM'!BH198","v":34245.676230331766},{"$f":"'[2]Gráfico REM'!BI198","v":3979.7111099021586},"n.d.",-0.18747568577544005,11.547525776454904,52.88948067581407,72365.555972197617,{"$f":"'[2]Gráfico REM'!BK198","v":12519.827177357683},{"$f":"'[2]Gráfico REM'!BL198","v":47141.840574901769},{"$f":"'[2]Gráfico REM'!BM198","v":12703.888219938157},"n.d.",-0.31012363228328788,12.995887054142298,29.649598347650731]
[2006,"abril","2006-abril",{"$f":"IF('[2]REAL IPC(M)'!$AL205=\"\",\"\",+'[2]REAL IPC(M)'!$AL205)","v":7.9403860249205982},{"$f":"IF('[2]REAL IPC(M)'!$BE205=\"\",\"\",+'[2]REAL IPC(M)'!$BE205)","v":9.0911351963694607},{"$f":"IF('[2]REAL IPC(M)'!$AM205=\"\",\"\",+'[2]REAL IPC(M)'!$AM205)","v":7.4235279893604122},{"$f":"IF('[2]REAL IPC(M)'!$BI205=\"\",\"\",+'[2]REAL IPC(M)'!$BI205)","v":8.4454114454753935},{"$f":"IF('[2]REAL IMAE(M)'!BJ205=\"\",\"\",'[2]REAL IMAE(M)'!BJ205)","v":"n.d."},{"$f":"IF('[2]REAL IMAE(M)'!BK205=\"\",\"\",'[2]REAL IMAE(M)'!BK205)","v":"n.d."},{"$f":"IF('[2]REAL IMAE(M)'!BN205=\"\",\"\",'[2]REAL IMAE(M)'!BN205)","v":"n.d."},{"$f":"IF('[2]REAL IMAE(M)'!BO205=\"\",\"\",'[2]REAL IMAE(M)'!BO205)","v":"n.d."},{"$f":"IF('[2]EXT RIN(M)'!$K205=\"\",\"\",'[2]EXT RIN(M)'!$K205)","v":13894.785117032368},"",{"$f":"IF('[2]EXT RIN(M)'!$L205=\"\",\"\",'[2]EXT RIN(M)'!$L205)","v":15001.712976087449},"",{"$f":"IF('[2]MONE(M)CARD'!EG205=\"\",\"\",'[2]MONE(M)CARD'!EG205)","v":9486.2311308211829},{"$f":"IF('[2]MONE(M)CARD'!EK205=\"\",\"\",'[2]MONE(M)CARD'!EK205)","v":17767.237711785801},{"$f":"IF('[2]MONE(M)CARD'!EP205=\"\",\"\",'[2]MONE(M)CARD'!EP205)","v":8795.8066186574288},{"$f":"IF('[2]MONE(M)CARD'!ES205=\"\",\"\",'[2]MONE(M)CARD'!ES205)","v":13.6033939466069},{"$f":"IF('[2]MONE(M)CARD'!EV205=\"\",\"\",'[2]MONE(M)CARD'!EV205)","v":3.0172145224558911},{"$f":"IF('[2]MONE(M)CARD'!EZ205=\"\",\"\",'[2]MONE(M)CARD'!EZ205)","v":4.1715904966982853},{"$f":"IF('[2]MONE(M)CAPARD'!FC205=\"\",\"\",'[2]MONE(M)CAPARD'!FC205)","v":11314.527802921182},{"$f":"IF('[2]MONE(M)CAPARD'!FG205=\"\",\"\",'[2]MONE(M)CAPARD'!FG205)","v":28425.778766625801},{"$f":"IF('[2]MONE(M)CAPARD'!FL205=\"\",\"\",'[2]MONE(M)CAPARD'!FL205)","v":8795.806618657436},{"$f":"IF('[2]MONE(M)CAPARD'!FO205=\"\",\"\",'[2]MONE(M)CAPARD'!FO205)","v":14.502802521454615},{"$f":"IF('[2]MONE(M)CAPARD'!FR205=\"\",\"\",'[2]MONE(M)CAPARD'!FR205)","v":5.6480094811903969},{"$f":"IF('[2]MONE(M)CAPARD'!FV205=\"\",\"\",'[2]MONE(M)CAPARD'!FV205)","v":6.0523668473313474},{"$f":"IF('[2]MONE(M)CARD'!FV205=\"\",\"\",'[2]MONE(M)CARD'!FV205)","v":301.69197616023746},{"$f":"IF('[2]MONE(M)CARD'!GD205=\"\",\"\",'[2]MONE(M)CARD'!GD205)","v":11.252754738459902},{"$f":"IF('[2]MONE(M)CARD'!GE205=\"\",\"\",'[2]MONE(M)CARD'!GE205)","v":2872.0179995156004},19.017165448382165,{"$f":"IF('[9]II.2.Balance OSD-Activos'!J63=\"\",\"\",'[9]II.2.Balance OSD-Activos'!J63)","v":12.190108644780434},{"$f":"IF('[9]II.2.Balance OSD-Activos'!N63=\"\",\"\",'[9]II.2.Balance OSD-Activos'!N63)","v":118.60860939421096},{"$f":"IF('[9]II.2.Balance OSD-Activos'!R63=\"\",\"\",'[9]II.2.Balance OSD-Activos'!R63)","v":10826.501481558458},{"$f":"IF('[9]II.2.Balance OSD-Activos'!S63=\"\",\"\",'[9]II.2.Balance OSD-Activos'!S63)","v":11309.462782476161},10838.691590203238,22266.762982073611,-47.005449348170622,10.350868044275874,1.0159441151577964,10.48550826030632,16.521275998306308,13.343606010314657,1.5174947510252732,{"$f":"IF('[2]MONE(M)CAPARD'!GS205=\"\",\"\",'[2]MONE(M)CAPARD'!GS205)","v":3809.7752198531552},{"$f":"IF('[2]MONE(M)CARD'!HA205=\"\",\"\",'[2]MONE(M)CAPARD'!HA205)","v":3154.9393240256004},{"$f":"IF('[2]MONE(M)CAPARD'!HB205=\"\",\"\",'[2]MONE(M)CAPARD'!HB205)","v":654.83589582755485},"n.d.",{"$f":"IF('[10]II.2.Balance OSD-Activos'!J63=\"\",\"\",'[10]II.2.Balance OSD-Activos'!J63)","v":280.20055545478044},{"$f":"IF('[10]II.2.Balance OSD-Activos'!N63=\"\",\"\",'[10]II.2.Balance OSD-Activos'!N63)","v":533.78595831421092},{"$f":"IF('[10]II.2.Balance OSD-Activos'!R63=\"\",\"\",'[10]II.2.Balance OSD-Activos'!R63)","v":17081.809344558456},{"$f":"IF('[10]II.2.Balance OSD-Activos'!S63=\"\",\"\",'[10]II.2.Balance OSD-Activos'!S63)","v":17512.924829716161},17362.009900013236,35408.720688043613,10.947279068659066,12.157918896738984,22.060306111651684,12.177997851796786,16.360010951089208,14.340003294082004,1.2101790598524556,{"$f":"IF('[2]MONE(M)CAPARD'!AS205=\"\",\"\",'[2]MONE(M)CAPARD'!AS205)","v":8.51},{"$f":"IF('[2]MONE(M)CAPARD'!AT205=\"\",\"\",'[2]MONE(M)CAPARD'!AT205)","v":"n.a."},{"$f":"IF('[2]MONE(M)CAPARD'!AU205=\"\",\"\",'[2]MONE(M)CAPARD'!AU205)","v":4.5},{"$f":"IF('[2]MONE(M)CAPARD'!AV205=\"\",\"\",'[2]MONE(M)CAPARD'!AV205)","v":6.5},{"$f":"IF('[2]MONE(M)CAPARD'!AW205=\"\",\"\",'[2]MONE(M)CAPARD'!AW205)","v":"n.a."},{"$f":"IF('[2]MONE(M)CAPARD'!AX205=\"\",\"\",'[2]MONE(M)CAPARD'!AX205)","v":10},{"$f":"IF('[2]MONE(M)CAPARD'!AY205=\"\",\"\",'[2]MONE(M)CAPARD'!AY205)","v":"n.a."},{"$f":"IF('[2]FISCAL(M)'!$K205=\"\",\"\",'[2]FISCAL(M)'!$K205)","v":-81.770061772478272},{"$f":"IF('[2]FISCAL(M)'!$L205=\"\",\"\",'[2]FISCAL(M)'!$L205)","v":-16.855704059477972},{"$f":"IF('[2]FISCAL(M)'!$AY205=\"\",\"\",'[2]FISCAL(M)'!$AY205)","v":"n.d."},{"$f":"IF('[2]FISCAL(M)'!$BI205=\"\",\"\",'[2]FISCAL(M)'!$BI205)","v":"n.d."},{"$f":"IF('[2]FISCAL(M)'!$BS205=\"\",\"\",'[2]FISCAL(M)'!$BS205)","v":"n.d."},{"$f":"IF('[2]FISCAL(M)'!$AZ205=\"\",\"\",'[2]FISCAL(M)'!$AZ205)","v":"n.d."},{"$f":"IF('[2]FISCAL(M)'!$BJ205=\"\",\"\",'[2]FISCAL(M)'!$BJ205)","v":"n.d."},{"$f":"IF('[2]FISCAL(M)'!$BT205=\"\",\"\",'[2]FISCAL(M)'!$BT205)","v":"n.d."},{"$f":"IF('[3]MONE(M)'!$AO205=\"\",\"\",'[3]MONE(M)'!$AO205)","v":3675064.6117537757},{"$f":"IF('[4]MONE(M)'!$AO205=\"\",\"\",'[4]MONE(M)'!$AO205)","v":7723.7642431471431},{"$f":"IF('[5]MONE(M)'!$AO205=\"\",\"\",'[5]MONE(M)'!$AO205)","v":59120.053761321054},{"$f":"+'[1]MONE(M)'!$AO205","v":78453.171528608451},{"$f":"IF('[6]MONE(M)'!$AO205=\"\",\"\",'[6]MONE(M)'!$AO205)","v":26472.48384254142},{"$f":"IF('[7]MONE(M)'!$AO205=\"\",\"\",'[7]MONE(M)'!$AO205)","v":204492.66281200002},{"$f":"IF('[8]MONE(M)'!$AO205=\"\",\"\",'[8]MONE(M)'!$AO205)","v":13040.220975009999},28.427447143515483,11.40928258867806,7.9690601288370688,23.180124138490179,35.565596882865776,18.35592399818189,16.873481818690415,{"$f":"IF('[2]FISCAL(M)'!$K205=\"\",\"\",'[2]FISCAL(M)'!$K205)","v":-81.770061772478272},{"$f":"+'[2]REAL(A)'!$AO$26","v":125760.26885725796},-6.5020584414692995E-2,{"$f":"IF('[2]FISCAL(M)'!$L205=\"\",\"\",'[2]FISCAL(M)'!$L205)","v":-16.855704059477972},{"$f":"+'[2]REAL(A)'!$AP$26","v":"n.d."},"n.d.",50663.147501098611,{"$f":"'[2]Gráfico REM'!BG199","v":11792.387881785244},{"$f":"'[2]Gráfico REM'!BH199","v":34804.821360333619},{"$f":"'[2]Gráfico REM'!BI199","v":4065.9382589797465},"n.d.",-1.2450415713283314,12.816361004775633,49.229694922512039,72839.000212488609,{"$f":"'[2]Gráfico REM'!BK199","v":12286.396591115245},{"$f":"'[2]Gráfico REM'!BL199","v":47845.04233534362},{"$f":"'[2]Gráfico REM'!BM199","v":12707.561286029746},"n.d.",-1.6314241536858898,13.893943670611964,28.127966620961399]
[2006,"mayo ","2006-mayo ",{"$f":"IF('[2]REAL IPC(M)'!$AL206=\"\",\"\",+'[2]REAL IPC(M)'!$AL206)","v":8.2086829624224755},{"$f":"IF('[2]REAL IPC(M)'!$BE206=\"\",\"\",+'[2]REAL IPC(M)'!$BE206)","v":8.9656303782602809},{"$f":"IF('[2]REAL IPC(M)'!$AM206=\"\",\"\",+'[2]REAL IPC(M)'!$AM206)","v":7.6839696495242693},{"$f":"IF('[2]REAL IPC(M)'!$BI206=\"\",\"\",+'[2]REAL IPC(M)'!$BI206)","v":8.340103058209225},{"$f":"IF('[2]REAL IMAE(M)'!BJ206=\"\",\"\",'[2]REAL IMAE(M)'!BJ206)","v":"n.d."},{"$f":"IF('[2]REAL IMAE(M)'!BK206=\"\",\"\",'[2]REAL IMAE(M)'!BK206)","v":"n.d."},{"$f":"IF('[2]REAL IMAE(M)'!BN206=\"\",\"\",'[2]REAL IMAE(M)'!BN206)","v":"n.d."},{"$f":"IF('[2]REAL IMAE(M)'!BO206=\"\",\"\",'[2]REAL IMAE(M)'!BO206)","v":"n.d."},{"$f":"IF('[2]EXT RIN(M)'!$K206=\"\",\"\",'[2]EXT RIN(M)'!$K206)","v":13735.546565379038},"",{"$f":"IF('[2]EXT RIN(M)'!$L206=\"\",\"\",'[2]EXT RIN(M)'!$L206)","v":14904.237773865498},"",{"$f":"IF('[2]MONE(M)CARD'!EG206=\"\",\"\",'[2]MONE(M)CARD'!EG206)","v":9231.3205668302398},{"$f":"IF('[2]MONE(M)CARD'!EK206=\"\",\"\",'[2]MONE(M)CARD'!EK206)","v":17746.201688375815},{"$f":"IF('[2]MONE(M)CARD'!EP206=\"\",\"\",'[2]MONE(M)CARD'!EP206)","v":8906.6119463101822},{"$f":"IF('[2]MONE(M)CARD'!ES206=\"\",\"\",'[2]MONE(M)CARD'!ES206)","v":12.089726708637283},{"$f":"IF('[2]MONE(M)CARD'!EV206=\"\",\"\",'[2]MONE(M)CARD'!EV206)","v":1.9209925175326825},{"$f":"IF('[2]MONE(M)CARD'!EZ206=\"\",\"\",'[2]MONE(M)CARD'!EZ206)","v":3.4570800196094265},{"$f":"IF('[2]MONE(M)CAPARD'!FC206=\"\",\"\",'[2]MONE(M)CAPARD'!FC206)","v":11103.967023720241},{"$f":"IF('[2]MONE(M)CAPARD'!FG206=\"\",\"\",'[2]MONE(M)CAPARD'!FG206)","v":28631.970322775811},{"$f":"IF('[2]MONE(M)CAPARD'!FL206=\"\",\"\",'[2]MONE(M)CAPARD'!FL206)","v":8906.6119463101786},{"$f":"IF('[2]MONE(M)CAPARD'!FO206=\"\",\"\",'[2]MONE(M)CAPARD'!FO206)","v":13.696895533185582},{"$f":"IF('[2]MONE(M)CAPARD'!FR206=\"\",\"\",'[2]MONE(M)CAPARD'!FR206)","v":5.3869758915357169},{"$f":"IF('[2]MONE(M)CAPARD'!FV206=\"\",\"\",'[2]MONE(M)CAPARD'!FV206)","v":5.9270968538249535},{"$f":"IF('[2]MONE(M)CARD'!FV206=\"\",\"\",'[2]MONE(M)CARD'!FV206)","v":300.54978322295153},{"$f":"IF('[2]MONE(M)CARD'!GD206=\"\",\"\",'[2]MONE(M)CARD'!GD206)","v":11.587375122107426},{"$f":"IF('[2]MONE(M)CARD'!GE206=\"\",\"\",'[2]MONE(M)CARD'!GE206)","v":2581.14120039201},1.7456056704100664,{"$f":"IF('[9]II.2.Balance OSD-Activos'!J64=\"\",\"\",'[9]II.2.Balance OSD-Activos'!J64)","v":12.871400791888775},{"$f":"IF('[9]II.2.Balance OSD-Activos'!N64=\"\",\"\",'[9]II.2.Balance OSD-Activos'!N64)","v":119.01679391436105},{"$f":"IF('[9]II.2.Balance OSD-Activos'!R64=\"\",\"\",'[9]II.2.Balance OSD-Activos'!R64)","v":10857.415222296979},{"$f":"IF('[9]II.2.Balance OSD-Activos'!S64=\"\",\"\",'[9]II.2.Balance OSD-Activos'!S64)","v":11464.241863622447},{"$f":"IFERROR(+AF199+AH199,\"n.d.\")","v":10870.286623088867},22453.545280625673,-48.826510281656965,10.069014341104165,0.6836616388126604,10.219395924632346,16.793305618372798,13.344903103110873,1.2970927962161483E-3,{"$f":"IF('[2]MONE(M)CAPARD'!GS206=\"\",\"\",'[2]MONE(M)CAPARD'!GS206)","v":3768.1672702241422},{"$f":"IF('[2]MONE(M)CARD'!HA206=\"\",\"\",'[2]MONE(M)CAPARD'!HA206)","v":2863.8424764920101},{"$f":"IF('[2]MONE(M)CAPARD'!HB206=\"\",\"\",'[2]MONE(M)CAPARD'!HB206)","v":904.32479373213209},"n.d.",{"$f":"IF('[10]II.2.Balance OSD-Activos'!J64=\"\",\"\",'[10]II.2.Balance OSD-Activos'!J64)","v":282.64883972188881},{"$f":"IF('[10]II.2.Balance OSD-Activos'!N64=\"\",\"\",'[10]II.2.Balance OSD-Activos'!N64)","v":543.45655410436098},{"$f":"IF('[10]II.2.Balance OSD-Activos'!R64=\"\",\"\",'[10]II.2.Balance OSD-Activos'!R64)","v":17273.946554906979},{"$f":"IF('[10]II.2.Balance OSD-Activos'!S64=\"\",\"\",'[10]II.2.Balance OSD-Activos'!S64)","v":17727.956745612446},17556.595394628868,35828.00869434567,10.01814905773022,12.18320259836525,15.638213306847204,12.219337563726086,16.491894775563786,14.327373822947109,-1.2629471134895098E-2,{"$f":"IF('[2]MONE(M)CAPARD'!AS206=\"\",\"\",'[2]MONE(M)CAPARD'!AS206)","v":8.51},{"$f":"IF('[2]MONE(M)CAPARD'!AT206=\"\",\"\",'[2]MONE(M)CAPARD'!AT206)","v":"n.a."},{"$f":"IF('[2]MONE(M)CAPARD'!AU206=\"\",\"\",'[2]MONE(M)CAPARD'!AU206)","v":4.5},{"$f":"IF('[2]MONE(M)CAPARD'!AV206=\"\",\"\",'[2]MONE(M)CAPARD'!AV206)","v":6.5},{"$f":"IF('[2]MONE(M)CAPARD'!AW206=\"\",\"\",'[2]MONE(M)CAPARD'!AW206)","v":"n.a."},{"$f":"IF('[2]MONE(M)CAPARD'!AX206=\"\",\"\",'[2]MONE(M)CAPARD'!AX206)","v":10},{"$f":"IF('[2]MONE(M)CAPARD'!AY206=\"\",\"\",'[2]MONE(M)CAPARD'!AY206)","v":"n.a."},{"$f":"IF('[2]FISCAL(M)'!$K206=\"\",\"\",'[2]FISCAL(M)'!$K206)","v":-4.1918626730869164},{"$f":"IF('[2]FISCAL(M)'!$L206=\"\",\"\",'[2]FISCAL(M)'!$L206)","v":24.450628469913454},{"$f":"IF('[2]FISCAL(M)'!$AY206=\"\",\"\",'[2]FISCAL(M)'!$AY206)","v":"n.d."},{"$f":"IF('[2]FISCAL(M)'!$BI206=\"\",\"\",'[2]FISCAL(M)'!$BI206)","v":"n.d."},{"$f":"IF('[2]FISCAL(M)'!$BS206=\"\",\"\",'[2]FISCAL(M)'!$BS206)","v":"n.d."},{"$f":"IF('[2]FISCAL(M)'!$AZ206=\"\",\"\",'[2]FISCAL(M)'!$AZ206)","v":"n.d."},{"$f":"IF('[2]FISCAL(M)'!$BJ206=\"\",\"\",'[2]FISCAL(M)'!$BJ206)","v":"n.d."},{"$f":"IF('[2]FISCAL(M)'!$BT206=\"\",\"\",'[2]FISCAL(M)'!$BT206)","v":"n.d."},{"$f":"IF('[3]MONE(M)'!$AO206=\"\",\"\",'[3]MONE(M)'!$AO206)","v":3776162.0792518761},{"$f":"IF('[4]MONE(M)'!$AO206=\"\",\"\",'[4]MONE(M)'!$AO206)","v":7732.6304125871429},{"$f":"IF('[5]MONE(M)'!$AO206=\"\",\"\",'[5]MONE(M)'!$AO206)","v":59529.508613859252},{"$f":"+'[1]MONE(M)'!$AO206","v":80234.818881439249},{"$f":"IF('[6]MONE(M)'!$AO206=\"\",\"\",'[6]MONE(M)'!$AO206)","v":26974.093116411885},{"$f":"IF('[7]MONE(M)'!$AO206=\"\",\"\",'[7]MONE(M)'!$AO206)","v":207989.4643704},{"$f":"IF('[8]MONE(M)'!$AO206=\"\",\"\",'[8]MONE(M)'!$AO206)","v":13249.534265180002},27.945206113279951,11.980956643146467,8.2071235896640218,24.987245255851832,33.524058722373653,18.751213604780361,16.843773745597513,{"$f":"IF('[2]FISCAL(M)'!$K206=\"\",\"\",'[2]FISCAL(M)'!$K206)","v":-4.1918626730869164},{"$f":"+'[2]REAL(A)'!$AO$26","v":125760.26885725796},-3.3332170097734272E-3,{"$f":"IF('[2]FISCAL(M)'!$L206=\"\",\"\",'[2]FISCAL(M)'!$L206)","v":24.450628469913454},{"$f":"+'[2]REAL(A)'!$AP$26","v":"n.d."},"n.d.",51269.019499329472,{"$f":"'[2]Gráfico REM'!BG200","v":11817.805841406429},{"$f":"'[2]Gráfico REM'!BH200","v":35126.384910513734},{"$f":"'[2]Gráfico REM'!BI200","v":4324.8287474093067},"n.d.",-0.33136125735540034,13.09525274297858,54.670679615391208,74119.246590219467,{"$f":"'[2]Gráfico REM'!BK200","v":12302.462367956428},{"$f":"'[2]Gráfico REM'!BL200","v":48375.919175693736},{"$f":"'[2]Gráfico REM'!BM200","v":13440.865046569306},"n.d.",-0.50895579412226777,14.097795746290508,35.866079488653966]
[2006,"junio ","2006-junio ",{"$f":"IF('[2]REAL IPC(M)'!$AL207=\"\",\"\",+'[2]REAL IPC(M)'!$AL207)","v":8.5029069767441854},{"$f":"IF('[2]REAL IPC(M)'!$BE207=\"\",\"\",+'[2]REAL IPC(M)'!$BE207)","v":8.8483388588305623},{"$f":"IF('[2]REAL IPC(M)'!$AM207=\"\",\"\",+'[2]REAL IPC(M)'!$AM207)","v":7.9433645308375267},{"$f":"IF('[2]REAL IPC(M)'!$BI207=\"\",\"\",+'[2]REAL IPC(M)'!$BI207)","v":8.2433002806302049},{"$f":"IF('[2]REAL IMAE(M)'!BJ207=\"\",\"\",'[2]REAL IMAE(M)'!BJ207)","v":"n.d."},{"$f":"IF('[2]REAL IMAE(M)'!BK207=\"\",\"\",'[2]REAL IMAE(M)'!BK207)","v":"n.d."},{"$f":"IF('[2]REAL IMAE(M)'!BN207=\"\",\"\",'[2]REAL IMAE(M)'!BN207)","v":"n.d."},{"$f":"IF('[2]REAL IMAE(M)'!BO207=\"\",\"\",'[2]REAL IMAE(M)'!BO207)","v":"n.d."},{"$f":"IF('[2]EXT RIN(M)'!$K207=\"\",\"\",'[2]EXT RIN(M)'!$K207)","v":13606.326108222192},"",{"$f":"IF('[2]EXT RIN(M)'!$L207=\"\",\"\",'[2]EXT RIN(M)'!$L207)","v":14812.873694357582},"",{"$f":"IF('[2]MONE(M)CARD'!EG207=\"\",\"\",'[2]MONE(M)CARD'!EG207)","v":9666.3464438213741},{"$f":"IF('[2]MONE(M)CARD'!EK207=\"\",\"\",'[2]MONE(M)CARD'!EK207)","v":17601.385659873096},{"$f":"IF('[2]MONE(M)CARD'!EP207=\"\",\"\",'[2]MONE(M)CARD'!EP207)","v":8814.8920927964136},{"$f":"IF('[2]MONE(M)CARD'!ES207=\"\",\"\",'[2]MONE(M)CARD'!ES207)","v":16.438148373639482},{"$f":"IF('[2]MONE(M)CARD'!EV207=\"\",\"\",'[2]MONE(M)CARD'!EV207)","v":1.8843106198661808},{"$f":"IF('[2]MONE(M)CARD'!EZ207=\"\",\"\",'[2]MONE(M)CARD'!EZ207)","v":3.2258861125324279},{"$f":"IF('[2]MONE(M)CAPARD'!FC207=\"\",\"\",'[2]MONE(M)CAPARD'!FC207)","v":11498.620982051372},{"$f":"IF('[2]MONE(M)CAPARD'!FG207=\"\",\"\",'[2]MONE(M)CAPARD'!FG207)","v":28684.221136023098},{"$f":"IF('[2]MONE(M)CAPARD'!FL207=\"\",\"\",'[2]MONE(M)CAPARD'!FL207)","v":8814.8920927964209},{"$f":"IF('[2]MONE(M)CAPARD'!FO207=\"\",\"\",'[2]MONE(M)CAPARD'!FO207)","v":17.128457836092359},{"$f":"IF('[2]MONE(M)CAPARD'!FR207=\"\",\"\",'[2]MONE(M)CAPARD'!FR207)","v":5.677853200380012},{"$f":"IF('[2]MONE(M)CAPARD'!FV207=\"\",\"\",'[2]MONE(M)CAPARD'!FV207)","v":6.020155085539991},{"$f":"IF('[2]MONE(M)CARD'!FV207=\"\",\"\",'[2]MONE(M)CARD'!FV207)","v":324.46699381841859},{"$f":"IF('[2]MONE(M)CARD'!GD207=\"\",\"\",'[2]MONE(M)CARD'!GD207)","v":12.048544200396021},{"$f":"IF('[2]MONE(M)CARD'!GE207=\"\",\"\",'[2]MONE(M)CARD'!GE207)","v":2486.044911931735},0.82832391792428961,{"$f":"IF('[9]II.2.Balance OSD-Activos'!J65=\"\",\"\",'[9]II.2.Balance OSD-Activos'!J65)","v":23.041685342814063},{"$f":"IF('[9]II.2.Balance OSD-Activos'!N65=\"\",\"\",'[9]II.2.Balance OSD-Activos'!N65)","v":117.14548779806837},{"$f":"IF('[9]II.2.Balance OSD-Activos'!R65=\"\",\"\",'[9]II.2.Balance OSD-Activos'!R65)","v":10701.47188251783},{"$f":"IF('[9]II.2.Balance OSD-Activos'!S65=\"\",\"\",'[9]II.2.Balance OSD-Activos'!S65)","v":11919.749876845806},10724.513567860644,22761.408932504521,-12.067905832255354,9.9250590336912978,-0.57882761122465265,9.9842884892493942,18.510394939121099,14.195249264078358,0.85034616096748472,{"$f":"IF('[2]MONE(M)CAPARD'!GS207=\"\",\"\",'[2]MONE(M)CAPARD'!GS207)","v":3717.4761668281199},{"$f":"IF('[2]MONE(M)CARD'!HA207=\"\",\"\",'[2]MONE(M)CAPARD'!HA207)","v":2771.9909066617352},{"$f":"IF('[2]MONE(M)CAPARD'!HB207=\"\",\"\",'[2]MONE(M)CAPARD'!HB207)","v":945.48526016638471},"n.d.",{"$f":"IF('[10]II.2.Balance OSD-Activos'!J65=\"\",\"\",'[10]II.2.Balance OSD-Activos'!J65)","v":282.66744992281411},{"$f":"IF('[10]II.2.Balance OSD-Activos'!N65=\"\",\"\",'[10]II.2.Balance OSD-Activos'!N65)","v":575.70309463806825},{"$f":"IF('[10]II.2.Balance OSD-Activos'!R65=\"\",\"\",'[10]II.2.Balance OSD-Activos'!R65)","v":17282.416058647828},{"$f":"IF('[10]II.2.Balance OSD-Activos'!S65=\"\",\"\",'[10]II.2.Balance OSD-Activos'!S65)","v":18243.467014195805},17565.083508570642,36384.253617404516,21.003716954528805,12.067819271289903,17.807158372959119,11.932622133062743,17.461161910097566,14.799311883449429,0.47193806050231935,{"$f":"IF('[2]MONE(M)CAPARD'!AS207=\"\",\"\",'[2]MONE(M)CAPARD'!AS207)","v":8.51},{"$f":"IF('[2]MONE(M)CAPARD'!AT207=\"\",\"\",'[2]MONE(M)CAPARD'!AT207)","v":"n.a."},{"$f":"IF('[2]MONE(M)CAPARD'!AU207=\"\",\"\",'[2]MONE(M)CAPARD'!AU207)","v":4.75},{"$f":"IF('[2]MONE(M)CAPARD'!AV207=\"\",\"\",'[2]MONE(M)CAPARD'!AV207)","v":6.5},{"$f":"IF('[2]MONE(M)CAPARD'!AW207=\"\",\"\",'[2]MONE(M)CAPARD'!AW207)","v":"n.a."},{"$f":"IF('[2]MONE(M)CAPARD'!AX207=\"\",\"\",'[2]MONE(M)CAPARD'!AX207)","v":10},{"$f":"IF('[2]MONE(M)CAPARD'!AY207=\"\",\"\",'[2]MONE(M)CAPARD'!AY207)","v":"n.a."},{"$f":"IF('[2]FISCAL(M)'!$K207=\"\",\"\",'[2]FISCAL(M)'!$K207)","v":-115.57957061292342},{"$f":"IF('[2]FISCAL(M)'!$L207=\"\",\"\",'[2]FISCAL(M)'!$L207)","v":-73.30445609692319},{"$f":"IF('[2]FISCAL(M)'!$AY207=\"\",\"\",'[2]FISCAL(M)'!$AY207)","v":"n.d."},{"$f":"IF('[2]FISCAL(M)'!$BI207=\"\",\"\",'[2]FISCAL(M)'!$BI207)","v":"n.d."},{"$f":"IF('[2]FISCAL(M)'!$BS207=\"\",\"\",'[2]FISCAL(M)'!$BS207)","v":29637.64},{"$f":"IF('[2]FISCAL(M)'!$AZ207=\"\",\"\",'[2]FISCAL(M)'!$AZ207)","v":"n.d."},{"$f":"IF('[2]FISCAL(M)'!$BJ207=\"\",\"\",'[2]FISCAL(M)'!$BJ207)","v":"n.d."},{"$f":"IF('[2]FISCAL(M)'!$BT207=\"\",\"\",'[2]FISCAL(M)'!$BT207)","v":37551.269033489996},{"$f":"IF('[3]MONE(M)'!$AO207=\"\",\"\",'[3]MONE(M)'!$AO207)","v":3866381.6137728635},{"$f":"IF('[4]MONE(M)'!$AO207=\"\",\"\",'[4]MONE(M)'!$AO207)","v":7757.9792254971435},{"$f":"IF('[5]MONE(M)'!$AO207=\"\",\"\",'[5]MONE(M)'!$AO207)","v":62132.5483824494},{"$f":"+'[1]MONE(M)'!$AO207","v":80298.696348241909},{"$f":"IF('[6]MONE(M)'!$AO207=\"\",\"\",'[6]MONE(M)'!$AO207)","v":27327.686296880856},{"$f":"IF('[7]MONE(M)'!$AO207=\"\",\"\",'[7]MONE(M)'!$AO207)","v":213704.87678411003},{"$f":"IF('[8]MONE(M)'!$AO207=\"\",\"\",'[8]MONE(M)'!$AO207)","v":13460.768968429998},28.676773912451424,12.648099658012345,10.432409150206446,24.025631739942121,32.383280222459,20.430382278475445,14.897359968446832,{"$f":"IF('[2]FISCAL(M)'!$K207=\"\",\"\",'[2]FISCAL(M)'!$K207)","v":-115.57957061292342},{"$f":"+'[2]REAL(A)'!$AO$26","v":125760.26885725796},-9.1904678371918902E-2,{"$f":"IF('[2]FISCAL(M)'!$L207=\"\",\"\",'[2]FISCAL(M)'!$L207)","v":-73.30445609692319},{"$f":"+'[2]REAL(A)'!$AP$26","v":"n.d."},"n.d.",51743.049461966337,{"$f":"'[2]Gráfico REM'!BG201","v":11619.35130659857},{"$f":"'[2]Gráfico REM'!BH201","v":35810.064195425504},{"$f":"'[2]Gráfico REM'!BI201","v":4313.6339599422608},"n.d.",-1.8682131298364824,14.072701368017304,46.027016461862338,75310.725899821336,{"$f":"'[2]Gráfico REM'!BK201","v":12099.86341362157},{"$f":"'[2]Gráfico REM'!BL201","v":49270.833163855503},{"$f":"'[2]Gráfico REM'!BM201","v":13940.02932234426},"n.d.",-2.1240558261110598,14.296820150742029,32.219853722700911]
[2006,"julio","2006-julio",{"$f":"IF('[2]REAL IPC(M)'!$AL208=\"\",\"\",+'[2]REAL IPC(M)'!$AL208)","v":8.4474885844748826},{"$f":"IF('[2]REAL IPC(M)'!$BE208=\"\",\"\",+'[2]REAL IPC(M)'!$BE208)","v":8.7393158955513464},{"$f":"IF('[2]REAL IPC(M)'!$AM208=\"\",\"\",+'[2]REAL IPC(M)'!$AM208)","v":7.8727965697951374},{"$f":"IF('[2]REAL IPC(M)'!$BI208=\"\",\"\",+'[2]REAL IPC(M)'!$BI208)","v":8.1550320899564266},{"$f":"IF('[2]REAL IMAE(M)'!BJ208=\"\",\"\",'[2]REAL IMAE(M)'!BJ208)","v":"n.d."},{"$f":"IF('[2]REAL IMAE(M)'!BK208=\"\",\"\",'[2]REAL IMAE(M)'!BK208)","v":"n.d."},{"$f":"IF('[2]REAL IMAE(M)'!BN208=\"\",\"\",'[2]REAL IMAE(M)'!BN208)","v":"n.d."},{"$f":"IF('[2]REAL IMAE(M)'!BO208=\"\",\"\",'[2]REAL IMAE(M)'!BO208)","v":"n.d."},{"$f":"IF('[2]EXT RIN(M)'!$K208=\"\",\"\",'[2]EXT RIN(M)'!$K208)","v":13835.306819365764},"",{"$f":"IF('[2]EXT RIN(M)'!$L208=\"\",\"\",'[2]EXT RIN(M)'!$L208)","v":15005.402086167183},"",{"$f":"IF('[2]MONE(M)CARD'!EG208=\"\",\"\",'[2]MONE(M)CARD'!EG208)","v":9940.6259652362714},{"$f":"IF('[2]MONE(M)CARD'!EK208=\"\",\"\",'[2]MONE(M)CARD'!EK208)","v":17722.780076207968},{"$f":"IF('[2]MONE(M)CARD'!EP208=\"\",\"\",'[2]MONE(M)CARD'!EP208)","v":8866.4453538037087},{"$f":"IF('[2]MONE(M)CARD'!ES208=\"\",\"\",'[2]MONE(M)CARD'!ES208)","v":16.598269506839024},{"$f":"IF('[2]MONE(M)CARD'!EV208=\"\",\"\",'[2]MONE(M)CARD'!EV208)","v":1.7813707974358772},{"$f":"IF('[2]MONE(M)CARD'!EZ208=\"\",\"\",'[2]MONE(M)CARD'!EZ208)","v":3.1940303399498715},{"$f":"IF('[2]MONE(M)CAPARD'!FC208=\"\",\"\",'[2]MONE(M)CAPARD'!FC208)","v":11793.709806146271},{"$f":"IF('[2]MONE(M)CAPARD'!FG208=\"\",\"\",'[2]MONE(M)CAPARD'!FG208)","v":28722.437720177975},{"$f":"IF('[2]MONE(M)CAPARD'!FL208=\"\",\"\",'[2]MONE(M)CAPARD'!FL208)","v":8866.4453538037051},{"$f":"IF('[2]MONE(M)CAPARD'!FO208=\"\",\"\",'[2]MONE(M)CAPARD'!FO208)","v":16.625520543249685},{"$f":"IF('[2]MONE(M)CAPARD'!FR208=\"\",\"\",'[2]MONE(M)CAPARD'!FR208)","v":5.6458652195531922},{"$f":"IF('[2]MONE(M)CAPARD'!FV208=\"\",\"\",'[2]MONE(M)CAPARD'!FV208)","v":6.037549308710588},{"$f":"IF('[2]MONE(M)CARD'!FV208=\"\",\"\",'[2]MONE(M)CARD'!FV208)","v":320.46639745277042},{"$f":"IF('[2]MONE(M)CARD'!GD208=\"\",\"\",'[2]MONE(M)CARD'!GD208)","v":12.853965176895189},{"$f":"IF('[2]MONE(M)CARD'!GE208=\"\",\"\",'[2]MONE(M)CARD'!GE208)","v":2469.8350621087384},-1.4615689625327666,{"$f":"IF('[9]II.2.Balance OSD-Activos'!J66=\"\",\"\",'[9]II.2.Balance OSD-Activos'!J66)","v":24.703835875208853},{"$f":"IF('[9]II.2.Balance OSD-Activos'!N66=\"\",\"\",'[9]II.2.Balance OSD-Activos'!N66)","v":120.39246109254879},{"$f":"IF('[9]II.2.Balance OSD-Activos'!R66=\"\",\"\",'[9]II.2.Balance OSD-Activos'!R66)","v":11100.389233662585},{"$f":"IF('[9]II.2.Balance OSD-Activos'!S66=\"\",\"\",'[9]II.2.Balance OSD-Activos'!S66)","v":11860.775909185235},11125.093069537794,23106.261439815578,-9.3865437538588008,13.855048892161271,-0.67043632168712897,13.920076779399103,15.738403189842188,14.725930139663568,0.53068087558520993,{"$f":"IF('[2]MONE(M)CAPARD'!GS208=\"\",\"\",'[2]MONE(M)CAPARD'!GS208)","v":3584.1891743472456},{"$f":"IF('[2]MONE(M)CARD'!HA208=\"\",\"\",'[2]MONE(M)CAPARD'!HA208)","v":2768.5477490987387},{"$f":"IF('[2]MONE(M)CAPARD'!HB208=\"\",\"\",'[2]MONE(M)CAPARD'!HB208)","v":815.64142524850695},"n.d.",{"$f":"IF('[10]II.2.Balance OSD-Activos'!J66=\"\",\"\",'[10]II.2.Balance OSD-Activos'!J66)","v":288.69925655520888},{"$f":"IF('[10]II.2.Balance OSD-Activos'!N66=\"\",\"\",'[10]II.2.Balance OSD-Activos'!N66)","v":579.17235766254885},{"$f":"IF('[10]II.2.Balance OSD-Activos'!R66=\"\",\"\",'[10]II.2.Balance OSD-Activos'!R66)","v":17794.086511092588},{"$f":"IF('[10]II.2.Balance OSD-Activos'!S66=\"\",\"\",'[10]II.2.Balance OSD-Activos'!S66)","v":18287.341661015234},18082.785767647798,{"$f":"IF(OR(AW201=\"\",AX201=\"\",AY201=\"\",AZ201=\"\"),\"\",SUM(AW201:AZ201))","v":36949.29978632558},22.866455632212435,14.293812778866609,23.806667474177768,14.164577007194312,15.81204810328385,15.179854030421991,0.38054214697256228,{"$f":"IF('[2]MONE(M)CAPARD'!AS208=\"\",\"\",'[2]MONE(M)CAPARD'!AS208)","v":9.1999999999999993},{"$f":"IF('[2]MONE(M)CAPARD'!AT208=\"\",\"\",'[2]MONE(M)CAPARD'!AT208)","v":"n.a."},{"$f":"IF('[2]MONE(M)CAPARD'!AU208=\"\",\"\",'[2]MONE(M)CAPARD'!AU208)","v":5},{"$f":"IF('[2]MONE(M)CAPARD'!AV208=\"\",\"\",'[2]MONE(M)CAPARD'!AV208)","v":6.5},{"$f":"IF('[2]MONE(M)CAPARD'!AW208=\"\",\"\",'[2]MONE(M)CAPARD'!AW208)","v":"n.a."},{"$f":"IF('[2]MONE(M)CAPARD'!AX208=\"\",\"\",'[2]MONE(M)CAPARD'!AX208)","v":10},{"$f":"IF('[2]MONE(M)CAPARD'!AY208=\"\",\"\",'[2]MONE(M)CAPARD'!AY208)","v":"n.a."},{"$f":"IF('[2]FISCAL(M)'!$K208=\"\",\"\",'[2]FISCAL(M)'!$K208)","v":-376.22550712780742},{"$f":"IF('[2]FISCAL(M)'!$L208=\"\",\"\",'[2]FISCAL(M)'!$L208)","v":-432.66931862180729},{"$f":"IF('[2]FISCAL(M)'!$AY208=\"\",\"\",'[2]FISCAL(M)'!$AY208)","v":"n.d."},{"$f":"IF('[2]FISCAL(M)'!$BI208=\"\",\"\",'[2]FISCAL(M)'!$BI208)","v":"n.d."},{"$f":"IF('[2]FISCAL(M)'!$BS208=\"\",\"\",'[2]FISCAL(M)'!$BS208)","v":"n.d."},{"$f":"IF('[2]FISCAL(M)'!$AZ208=\"\",\"\",'[2]FISCAL(M)'!$AZ208)","v":"n.d."},{"$f":"IF('[2]FISCAL(M)'!$BJ208=\"\",\"\",'[2]FISCAL(M)'!$BJ208)","v":"n.d."},{"$f":"IF('[2]FISCAL(M)'!$BT208=\"\",\"\",'[2]FISCAL(M)'!$BT208)","v":"n.d."},{"$f":"IF('[3]MONE(M)'!$AO208=\"\",\"\",'[3]MONE(M)'!$AO208)","v":3943473.2047031648},{"$f":"IF('[4]MONE(M)'!$AO208=\"\",\"\",'[4]MONE(M)'!$AO208)","v":7838.7922254971436},{"$f":"IF('[5]MONE(M)'!$AO208=\"\",\"\",'[5]MONE(M)'!$AO208)","v":62595.886150223778},{"$f":"+'[1]MONE(M)'!$AO208","v":81356.732006673628},{"$f":"IF('[6]MONE(M)'!$AO208=\"\",\"\",'[6]MONE(M)'!$AO208)","v":28074.171551599829},{"$f":"IF('[7]MONE(M)'!$AO208=\"\",\"\",'[7]MONE(M)'!$AO208)","v":217800.05156406004},{"$f":"IF('[8]MONE(M)'!$AO208=\"\",\"\",'[8]MONE(M)'!$AO208)","v":13691.081650800001},29.88101983577096,12.933105287067281,9.491381901729401,23.684151770169848,34.20576039234917,20.631768338058865,14.851197703255782,{"$f":"IF('[2]FISCAL(M)'!$K208=\"\",\"\",'[2]FISCAL(M)'!$K208)","v":-376.22550712780742},{"$f":"+'[2]REAL(A)'!$AO$26","v":125760.26885725796},-0.2991608641953809,{"$f":"IF('[2]FISCAL(M)'!$L208=\"\",\"\",'[2]FISCAL(M)'!$L208)","v":-432.66931862180729},{"$f":"+'[2]REAL(A)'!$AP$26","v":"n.d."},"n.d.",52279.919631020704,{"$f":"'[2]Gráfico REM'!BG202","v":11636.435542172349},{"$f":"'[2]Gráfico REM'!BH202","v":36312.537540228092},{"$f":"'[2]Gráfico REM'!BI202","v":4330.9465486202707},"n.d.",-1.0229008852674859,14.289388445422958,55.931492233111449,76261.254218030706,{"$f":"'[2]Gráfico REM'!BK202","v":12128.841140522349},{"$f":"'[2]Gráfico REM'!BL202","v":50003.61919102809},{"$f":"'[2]Gráfico REM'!BM202","v":14128.793886480271},"n.d.",-0.68236035923022742,14.442665677620891,35.239005120165203]
[2006,"agosto","2006-agosto",{"$f":"IF('[2]REAL IPC(M)'!$AL209=\"\",\"\",+'[2]REAL IPC(M)'!$AL209)","v":7.8693215690950113},{"$f":"IF('[2]REAL IPC(M)'!$BE209=\"\",\"\",+'[2]REAL IPC(M)'!$BE209)","v":8.6385960091442282},{"$f":"IF('[2]REAL IPC(M)'!$AM209=\"\",\"\",+'[2]REAL IPC(M)'!$AM209)","v":7.3684210526315796},{"$f":"IF('[2]REAL IPC(M)'!$BI209=\"\",\"\",+'[2]REAL IPC(M)'!$BI209)","v":8.0753067063711104},{"$f":"IF('[2]REAL IMAE(M)'!BJ209=\"\",\"\",'[2]REAL IMAE(M)'!BJ209)","v":"n.d."},{"$f":"IF('[2]REAL IMAE(M)'!BK209=\"\",\"\",'[2]REAL IMAE(M)'!BK209)","v":"n.d."},{"$f":"IF('[2]REAL IMAE(M)'!BN209=\"\",\"\",'[2]REAL IMAE(M)'!BN209)","v":"n.d."},{"$f":"IF('[2]REAL IMAE(M)'!BO209=\"\",\"\",'[2]REAL IMAE(M)'!BO209)","v":"n.d."},{"$f":"IF('[2]EXT RIN(M)'!$K209=\"\",\"\",'[2]EXT RIN(M)'!$K209)","v":13850.715064414244},"",{"$f":"IF('[2]EXT RIN(M)'!$L209=\"\",\"\",'[2]EXT RIN(M)'!$L209)","v":14842.260808864605},"",{"$f":"IF('[2]MONE(M)CARD'!EG209=\"\",\"\",'[2]MONE(M)CARD'!EG209)","v":9743.9387667039809},{"$f":"IF('[2]MONE(M)CARD'!EK209=\"\",\"\",'[2]MONE(M)CARD'!EK209)","v":18184.714000882381},{"$f":"IF('[2]MONE(M)CARD'!EP209=\"\",\"\",'[2]MONE(M)CARD'!EP209)","v":8899.4243159559992},{"$f":"IF('[2]MONE(M)CARD'!ES209=\"\",\"\",'[2]MONE(M)CARD'!ES209)","v":16.281264348728964},{"$f":"IF('[2]MONE(M)CARD'!EV209=\"\",\"\",'[2]MONE(M)CARD'!EV209)","v":4.8124510552205013},{"$f":"IF('[2]MONE(M)CARD'!EZ209=\"\",\"\",'[2]MONE(M)CARD'!EZ209)","v":5.8247350952564725},{"$f":"IF('[2]MONE(M)CAPARD'!FC209=\"\",\"\",'[2]MONE(M)CAPARD'!FC209)","v":11630.483364563981},{"$f":"IF('[2]MONE(M)CAPARD'!FG209=\"\",\"\",'[2]MONE(M)CAPARD'!FG209)","v":29329.47089304238},{"$f":"IF('[2]MONE(M)CAPARD'!FL209=\"\",\"\",'[2]MONE(M)CAPARD'!FL209)","v":8899.4243159560065},{"$f":"IF('[2]MONE(M)CAPARD'!FO209=\"\",\"\",'[2]MONE(M)CAPARD'!FO209)","v":16.394040908989147},{"$f":"IF('[2]MONE(M)CAPARD'!FR209=\"\",\"\",'[2]MONE(M)CAPARD'!FR209)","v":7.8692568569885823},{"$f":"IF('[2]MONE(M)CAPARD'!FV209=\"\",\"\",'[2]MONE(M)CAPARD'!FV209)","v":8.0925811268828021},{"$f":"IF('[2]MONE(M)CARD'!FV209=\"\",\"\",'[2]MONE(M)CARD'!FV209)","v":314.26230395592603},{"$f":"IF('[2]MONE(M)CARD'!GD209=\"\",\"\",'[2]MONE(M)CARD'!GD209)","v":13.66279310717964},{"$f":"IF('[2]MONE(M)CARD'!GE209=\"\",\"\",'[2]MONE(M)CARD'!GE209)","v":2539.6103031278371},2.9917338548404837,{"$f":"IF('[9]II.2.Balance OSD-Activos'!J67=\"\",\"\",'[9]II.2.Balance OSD-Activos'!J67)","v":29.38576071474569},{"$f":"IF('[9]II.2.Balance OSD-Activos'!N67=\"\",\"\",'[9]II.2.Balance OSD-Activos'!N67)","v":121.10525582253409},{"$f":"IF('[9]II.2.Balance OSD-Activos'!R67=\"\",\"\",'[9]II.2.Balance OSD-Activos'!R67)","v":11227.050340547774},{"$f":"IF('[9]II.2.Balance OSD-Activos'!S67=\"\",\"\",'[9]II.2.Balance OSD-Activos'!S67)","v":12139.032012781709},11256.43610126252,23516.573369866761,14.323146261181229,13.896187769479518,0.35680859043660806,13.895074429773025,16.923694084900688,15.357882431234993,0.63195229157142485,{"$f":"IF('[2]MONE(M)CAPARD'!GS209=\"\",\"\",'[2]MONE(M)CAPARD'!GS209)","v":3560.1091315275085},{"$f":"IF('[2]MONE(M)CARD'!HA209=\"\",\"\",'[2]MONE(M)CAPARD'!HA209)","v":2839.0629229078368},{"$f":"IF('[2]MONE(M)CAPARD'!HB209=\"\",\"\",'[2]MONE(M)CAPARD'!HB209)","v":721.04620861967169},"n.d.",{"$f":"IF('[10]II.2.Balance OSD-Activos'!J67=\"\",\"\",'[10]II.2.Balance OSD-Activos'!J67)","v":289.50424973474571},{"$f":"IF('[10]II.2.Balance OSD-Activos'!N67=\"\",\"\",'[10]II.2.Balance OSD-Activos'!N67)","v":598.32702416253414},{"$f":"IF('[10]II.2.Balance OSD-Activos'!R67=\"\",\"\",'[10]II.2.Balance OSD-Activos'!R67)","v":18029.639517507774},{"$f":"IF('[10]II.2.Balance OSD-Activos'!S67=\"\",\"\",'[10]II.2.Balance OSD-Activos'!S67)","v":18646.921579451708},18319.14376724252,37564.39237085676,37.631754027909281,14.561034035899588,25.249921490262128,14.253509372521233,16.442529181068565,15.645813790413454,0.46595975999146333,{"$f":"IF('[2]MONE(M)CAPARD'!AS209=\"\",\"\",'[2]MONE(M)CAPARD'!AS209)","v":9.1999999999999993},{"$f":"IF('[2]MONE(M)CAPARD'!AT209=\"\",\"\",'[2]MONE(M)CAPARD'!AT209)","v":"n.a."},{"$f":"IF('[2]MONE(M)CAPARD'!AU209=\"\",\"\",'[2]MONE(M)CAPARD'!AU209)","v":5},{"$f":"IF('[2]MONE(M)CAPARD'!AV209=\"\",\"\",'[2]MONE(M)CAPARD'!AV209)","v":6.5},{"$f":"IF('[2]MONE(M)CAPARD'!AW209=\"\",\"\",'[2]MONE(M)CAPARD'!AW209)","v":"n.a."},{"$f":"IF('[2]MONE(M)CAPARD'!AX209=\"\",\"\",'[2]MONE(M)CAPARD'!AX209)","v":8},{"$f":"IF('[2]MONE(M)CAPARD'!AY209=\"\",\"\",'[2]MONE(M)CAPARD'!AY209)","v":"n.a."},{"$f":"IF('[2]FISCAL(M)'!$K209=\"\",\"\",'[2]FISCAL(M)'!$K209)","v":-435.23160586164869},{"$f":"IF('[2]FISCAL(M)'!$L209=\"\",\"\",'[2]FISCAL(M)'!$L209)","v":-560.50915517264855},{"$f":"IF('[2]FISCAL(M)'!$AY209=\"\",\"\",'[2]FISCAL(M)'!$AY209)","v":"n.d."},{"$f":"IF('[2]FISCAL(M)'!$BI209=\"\",\"\",'[2]FISCAL(M)'!$BI209)","v":"n.d."},{"$f":"IF('[2]FISCAL(M)'!$BS209=\"\",\"\",'[2]FISCAL(M)'!$BS209)","v":"n.d."},{"$f":"IF('[2]FISCAL(M)'!$AZ209=\"\",\"\",'[2]FISCAL(M)'!$AZ209)","v":"n.d."},{"$f":"IF('[2]FISCAL(M)'!$BJ209=\"\",\"\",'[2]FISCAL(M)'!$BJ209)","v":"n.d."},{"$f":"IF('[2]FISCAL(M)'!$BT209=\"\",\"\",'[2]FISCAL(M)'!$BT209)","v":"n.d."},{"$f":"IF('[3]MONE(M)'!$AO209=\"\",\"\",'[3]MONE(M)'!$AO209)","v":4060619.8525951649},{"$f":"IF('[4]MONE(M)'!$AO209=\"\",\"\",'[4]MONE(M)'!$AO209)","v":7922.5327715871426},{"$f":"IF('[5]MONE(M)'!$AO209=\"\",\"\",'[5]MONE(M)'!$AO209)","v":63427.894183675788},{"$f":"+'[1]MONE(M)'!$AO209","v":84280.720025556453},{"$f":"IF('[6]MONE(M)'!$AO209=\"\",\"\",'[6]MONE(M)'!$AO209)","v":28640.355886556805},{"$f":"IF('[7]MONE(M)'!$AO209=\"\",\"\",'[7]MONE(M)'!$AO209)","v":221967.28311416},{"$f":"IF('[8]MONE(M)'!$AO209=\"\",\"\",'[8]MONE(M)'!$AO209)","v":13880.79527314},29.442459616577409,13.180534372214336,9.7963922850724536,26.41370031961592,34.231942963984707,20.392618218128099,15.144955284079176,{"$f":"IF('[2]FISCAL(M)'!$K209=\"\",\"\",'[2]FISCAL(M)'!$K209)","v":-435.23160586164869},{"$f":"+'[2]REAL(A)'!$AO$26","v":125760.26885725796},-0.34608037165986882,{"$f":"IF('[2]FISCAL(M)'!$L209=\"\",\"\",'[2]FISCAL(M)'!$L209)","v":-560.50915517264855},{"$f":"+'[2]REAL(A)'!$AP$26","v":"n.d."},"n.d.",52571.797405326302,{"$f":"'[2]Gráfico REM'!BG203","v":11320.4462256238},{"$f":"'[2]Gráfico REM'!BH203","v":36980.885225280392},{"$f":"'[2]Gráfico REM'!BI203","v":4270.4659544221049},"n.d.",-2.6033706342590945,14.963422158929941,38.845268758390496,76595.538566096293,{"$f":"'[2]Gráfico REM'!BK203","v":11796.541879243799},{"$f":"'[2]Gráfico REM'!BL203","v":50861.680498420392},{"$f":"'[2]Gráfico REM'!BM203","v":13937.316188432105},"n.d.",-2.3994319530590835,15.01290802742461,27.959065845838317]
[2006,"septiembre","2006-septiembre",{"$f":"IF('[2]REAL IPC(M)'!$AL210=\"\",\"\",+'[2]REAL IPC(M)'!$AL210)","v":6.0895170789163622},{"$f":"IF('[2]REAL IPC(M)'!$BE210=\"\",\"\",+'[2]REAL IPC(M)'!$BE210)","v":8.546200006492132},{"$f":"IF('[2]REAL IPC(M)'!$AM210=\"\",\"\",+'[2]REAL IPC(M)'!$AM210)","v":5.6334735857877405},{"$f":"IF('[2]REAL IPC(M)'!$BI210=\"\",\"\",+'[2]REAL IPC(M)'!$BI210)","v":8.0041166949427645},{"$f":"IF('[2]REAL IMAE(M)'!BJ210=\"\",\"\",'[2]REAL IMAE(M)'!BJ210)","v":"n.d."},{"$f":"IF('[2]REAL IMAE(M)'!BK210=\"\",\"\",'[2]REAL IMAE(M)'!BK210)","v":"n.d."},{"$f":"IF('[2]REAL IMAE(M)'!BN210=\"\",\"\",'[2]REAL IMAE(M)'!BN210)","v":"n.d."},{"$f":"IF('[2]REAL IMAE(M)'!BO210=\"\",\"\",'[2]REAL IMAE(M)'!BO210)","v":"n.d."},{"$f":"IF('[2]EXT RIN(M)'!$K210=\"\",\"\",'[2]EXT RIN(M)'!$K210)","v":13773.250879275691},"",{"$f":"IF('[2]EXT RIN(M)'!$L210=\"\",\"\",'[2]EXT RIN(M)'!$L210)","v":14679.319001923601},"",{"$f":"IF('[2]MONE(M)CARD'!EG210=\"\",\"\",'[2]MONE(M)CARD'!EG210)","v":9907.9752360224702},{"$f":"IF('[2]MONE(M)CARD'!EK210=\"\",\"\",'[2]MONE(M)CARD'!EK210)","v":18194.826599261585},{"$f":"IF('[2]MONE(M)CARD'!EP210=\"\",\"\",'[2]MONE(M)CARD'!EP210)","v":8845.251232443803},{"$f":"IF('[2]MONE(M)CARD'!ES210=\"\",\"\",'[2]MONE(M)CARD'!ES210)","v":20.728614596063586},{"$f":"IF('[2]MONE(M)CARD'!EV210=\"\",\"\",'[2]MONE(M)CARD'!EV210)","v":7.304599651855348},{"$f":"IF('[2]MONE(M)CARD'!EZ210=\"\",\"\",'[2]MONE(M)CARD'!EZ210)","v":7.4710537774871577},{"$f":"IF('[2]MONE(M)CAPARD'!FC210=\"\",\"\",'[2]MONE(M)CAPARD'!FC210)","v":11846.243330992471},{"$f":"IF('[2]MONE(M)CAPARD'!FG210=\"\",\"\",'[2]MONE(M)CAPARD'!FG210)","v":29483.190928281587},{"$f":"IF('[2]MONE(M)CAPARD'!FL210=\"\",\"\",'[2]MONE(M)CAPARD'!FL210)","v":8845.2512324437994},{"$f":"IF('[2]MONE(M)CAPARD'!FO210=\"\",\"\",'[2]MONE(M)CAPARD'!FO210)","v":19.760389733113072},{"$f":"IF('[2]MONE(M)CAPARD'!FR210=\"\",\"\",'[2]MONE(M)CAPARD'!FR210)","v":9.9020179620901807},{"$f":"IF('[2]MONE(M)CAPARD'!FV210=\"\",\"\",'[2]MONE(M)CAPARD'!FV210)","v":9.562471453857313},{"$f":"IF('[2]MONE(M)CARD'!FV210=\"\",\"\",'[2]MONE(M)CARD'!FV210)","v":316.80356652322837},{"$f":"IF('[2]MONE(M)CARD'!GD210=\"\",\"\",'[2]MONE(M)CARD'!GD210)","v":14.506679752561203},{"$f":"IF('[2]MONE(M)CARD'!GE210=\"\",\"\",'[2]MONE(M)CARD'!GE210)","v":2525.9626604751638},-4.4539521571511198,{"$f":"IF('[9]II.2.Balance OSD-Activos'!J68=\"\",\"\",'[9]II.2.Balance OSD-Activos'!J68)","v":28.123454129601889},{"$f":"IF('[9]II.2.Balance OSD-Activos'!N68=\"\",\"\",'[9]II.2.Balance OSD-Activos'!N68)","v":127.56994327090975},{"$f":"IF('[9]II.2.Balance OSD-Activos'!R68=\"\",\"\",'[9]II.2.Balance OSD-Activos'!R68)","v":11175.162668579154},{"$f":"IF('[9]II.2.Balance OSD-Activos'!S68=\"\",\"\",'[9]II.2.Balance OSD-Activos'!S68)","v":12294.071326544843},11203.286122708756,23624.927392524507,30.94430560729462,12.180143614395899,7.960773600724691,12.139703091277433,17.822734826936703,15.022404098323205,-0.33547833291178719,{"$f":"IF('[2]MONE(M)CAPARD'!GS210=\"\",\"\",'[2]MONE(M)CAPARD'!GS210)","v":3554.3854410325071},{"$f":"IF('[2]MONE(M)CARD'!HA210=\"\",\"\",'[2]MONE(M)CAPARD'!HA210)","v":2824.983227465164},{"$f":"IF('[2]MONE(M)CAPARD'!HB210=\"\",\"\",'[2]MONE(M)CAPARD'!HB210)","v":729.4022135673431},"n.d.",{"$f":"IF('[10]II.2.Balance OSD-Activos'!J68=\"\",\"\",'[10]II.2.Balance OSD-Activos'!J68)","v":273.90043894960189},{"$f":"IF('[10]II.2.Balance OSD-Activos'!N68=\"\",\"\",'[10]II.2.Balance OSD-Activos'!N68)","v":616.37278175090989},{"$f":"IF('[10]II.2.Balance OSD-Activos'!R68=\"\",\"\",'[10]II.2.Balance OSD-Activos'!R68)","v":18142.223703439155},{"$f":"IF('[10]II.2.Balance OSD-Activos'!S68=\"\",\"\",'[10]II.2.Balance OSD-Activos'!S68)","v":18890.149157864842},18416.124142388755,37922.646082004503,32.841974755542978,13.538429626567194,27.351906232883948,13.289890298954198,17.000490717390583,15.443536019226922,-0.20227777118653201,{"$f":"IF('[2]MONE(M)CAPARD'!AS210=\"\",\"\",'[2]MONE(M)CAPARD'!AS210)","v":9.1999999999999993},{"$f":"IF('[2]MONE(M)CAPARD'!AT210=\"\",\"\",'[2]MONE(M)CAPARD'!AT210)","v":"n.a."},{"$f":"IF('[2]MONE(M)CAPARD'!AU210=\"\",\"\",'[2]MONE(M)CAPARD'!AU210)","v":5},{"$f":"IF('[2]MONE(M)CAPARD'!AV210=\"\",\"\",'[2]MONE(M)CAPARD'!AV210)","v":6},{"$f":"IF('[2]MONE(M)CAPARD'!AW210=\"\",\"\",'[2]MONE(M)CAPARD'!AW210)","v":"n.a."},{"$f":"IF('[2]MONE(M)CAPARD'!AX210=\"\",\"\",'[2]MONE(M)CAPARD'!AX210)","v":8},{"$f":"IF('[2]MONE(M)CAPARD'!AY210=\"\",\"\",'[2]MONE(M)CAPARD'!AY210)","v":"n.a."},{"$f":"IF('[2]FISCAL(M)'!$K210=\"\",\"\",'[2]FISCAL(M)'!$K210)","v":-638.35654509698384},{"$f":"IF('[2]FISCAL(M)'!$L210=\"\",\"\",'[2]FISCAL(M)'!$L210)","v":-746.48598326398337},{"$f":"IF('[2]FISCAL(M)'!$AY210=\"\",\"\",'[2]FISCAL(M)'!$AY210)","v":"n.d."},{"$f":"IF('[2]FISCAL(M)'!$BI210=\"\",\"\",'[2]FISCAL(M)'!$BI210)","v":"n.d."},{"$f":"IF('[2]FISCAL(M)'!$BS210=\"\",\"\",'[2]FISCAL(M)'!$BS210)","v":27596.32},{"$f":"IF('[2]FISCAL(M)'!$AZ210=\"\",\"\",'[2]FISCAL(M)'!$AZ210)","v":"n.d."},{"$f":"IF('[2]FISCAL(M)'!$BJ210=\"\",\"\",'[2]FISCAL(M)'!$BJ210)","v":"n.d."},{"$f":"IF('[2]FISCAL(M)'!$BT210=\"\",\"\",'[2]FISCAL(M)'!$BT210)","v":35369.072686240004},{"$f":"IF('[3]MONE(M)'!$AO210=\"\",\"\",'[3]MONE(M)'!$AO210)","v":4143710.2077532988},{"$f":"IF('[4]MONE(M)'!$AO210=\"\",\"\",'[4]MONE(M)'!$AO210)","v":7921.5070791057151},{"$f":"IF('[5]MONE(M)'!$AO210=\"\",\"\",'[5]MONE(M)'!$AO210)","v":64949.560633398636},{"$f":"+'[1]MONE(M)'!$AO210","v":85380.852436931076},{"$f":"IF('[6]MONE(M)'!$AO210=\"\",\"\",'[6]MONE(M)'!$AO210)","v":29335.153597519435},{"$f":"IF('[7]MONE(M)'!$AO210=\"\",\"\",'[7]MONE(M)'!$AO210)","v":224755.26879942001},{"$f":"IF('[8]MONE(M)'!$AO210=\"\",\"\",'[8]MONE(M)'!$AO210)","v":14188.895299189999},28.76606106737345,10.478764499582226,10.555102234319214,25.766264714812625,34.210318719132204,18.301422585889938,15.321998372030542,{"$f":"IF('[2]FISCAL(M)'!$K210=\"\",\"\",'[2]FISCAL(M)'!$K210)","v":-638.35654509698384},{"$f":"+'[2]REAL(A)'!$AO$26","v":125760.26885725796},-0.50759794877787634,{"$f":"IF('[2]FISCAL(M)'!$L210=\"\",\"\",'[2]FISCAL(M)'!$L210)","v":-746.48598326398337},{"$f":"+'[2]REAL(A)'!$AP$26","v":"n.d."},"n.d.",53011.64769982599,{"$f":"'[2]Gráfico REM'!BG204","v":11339.307218054444},{"$f":"'[2]Gráfico REM'!BH204","v":37290.299614119576},{"$f":"'[2]Gráfico REM'!BI204","v":4382.0408676519737},"n.d.",-1.0313081772257093,15.077452957738725,36.701633050933104,77542.964287305993,{"$f":"'[2]Gráfico REM'!BK204","v":11817.666954244443},{"$f":"'[2]Gráfico REM'!BL204","v":51479.194913309577},{"$f":"'[2]Gráfico REM'!BM204","v":14246.102419751973},"n.d.",-0.68822026785571033,15.144751917280018,28.886369526370448]
[2006,"octubre","2006-octubre",{"$f":"IF('[2]REAL IPC(M)'!$AL211=\"\",\"\",+'[2]REAL IPC(M)'!$AL211)","v":4.743083003952564},{"$f":"IF('[2]REAL IPC(M)'!$BE211=\"\",\"\",+'[2]REAL IPC(M)'!$BE211)","v":8.4620966844975101},{"$f":"IF('[2]REAL IPC(M)'!$AM211=\"\",\"\",+'[2]REAL IPC(M)'!$AM211)","v":4.3985222812283453},{"$f":"IF('[2]REAL IPC(M)'!$BI211=\"\",\"\",+'[2]REAL IPC(M)'!$BI211)","v":7.9413942784594571},{"$f":"IF('[2]REAL IMAE(M)'!BJ211=\"\",\"\",'[2]REAL IMAE(M)'!BJ211)","v":"n.d."},{"$f":"IF('[2]REAL IMAE(M)'!BK211=\"\",\"\",'[2]REAL IMAE(M)'!BK211)","v":"n.d."},{"$f":"IF('[2]REAL IMAE(M)'!BN211=\"\",\"\",'[2]REAL IMAE(M)'!BN211)","v":"n.d."},{"$f":"IF('[2]REAL IMAE(M)'!BO211=\"\",\"\",'[2]REAL IMAE(M)'!BO211)","v":"n.d."},{"$f":"IF('[2]EXT RIN(M)'!$K211=\"\",\"\",'[2]EXT RIN(M)'!$K211)","v":13999.215422995259},"",{"$f":"IF('[2]EXT RIN(M)'!$L211=\"\",\"\",'[2]EXT RIN(M)'!$L211)","v":14921.116019374978},"",{"$f":"IF('[2]MONE(M)CARD'!EG211=\"\",\"\",'[2]MONE(M)CARD'!EG211)","v":10017.07822706148},{"$f":"IF('[2]MONE(M)CARD'!EK211=\"\",\"\",'[2]MONE(M)CARD'!EK211)","v":18557.653103819554},{"$f":"IF('[2]MONE(M)CARD'!EP211=\"\",\"\",'[2]MONE(M)CARD'!EP211)","v":8838.1440753300121},{"$f":"IF('[2]MONE(M)CARD'!ES211=\"\",\"\",'[2]MONE(M)CARD'!ES211)","v":22.093757103410063},{"$f":"IF('[2]MONE(M)CARD'!EV211=\"\",\"\",'[2]MONE(M)CARD'!EV211)","v":13.238790609693464},{"$f":"IF('[2]MONE(M)CARD'!EZ211=\"\",\"\",'[2]MONE(M)CARD'!EZ211)","v":11.867620915565658},{"$f":"IF('[2]MONE(M)CAPARD'!FC211=\"\",\"\",'[2]MONE(M)CAPARD'!FC211)","v":12001.658235451479},{"$f":"IF('[2]MONE(M)CAPARD'!FG211=\"\",\"\",'[2]MONE(M)CAPARD'!FG211)","v":30086.33184975955},{"$f":"IF('[2]MONE(M)CAPARD'!FL211=\"\",\"\",'[2]MONE(M)CAPARD'!FL211)","v":8838.1440753300121},{"$f":"IF('[2]MONE(M)CAPARD'!FO211=\"\",\"\",'[2]MONE(M)CAPARD'!FO211)","v":21.495493030028445},{"$f":"IF('[2]MONE(M)CAPARD'!FR211=\"\",\"\",'[2]MONE(M)CAPARD'!FR211)","v":14.061410841621225},{"$f":"IF('[2]MONE(M)CAPARD'!FV211=\"\",\"\",'[2]MONE(M)CAPARD'!FV211)","v":12.895113066458542},{"$f":"IF('[2]MONE(M)CARD'!FV211=\"\",\"\",'[2]MONE(M)CARD'!FV211)","v":320.22260292282465},{"$f":"IF('[2]MONE(M)CARD'!GD211=\"\",\"\",'[2]MONE(M)CARD'!GD211)","v":15.497602187067939},{"$f":"IF('[2]MONE(M)CARD'!GE211=\"\",\"\",'[2]MONE(M)CARD'!GE211)","v":2621.5887395716245},-0.88456761406174866,{"$f":"IF('[9]II.2.Balance OSD-Activos'!J69=\"\",\"\",'[9]II.2.Balance OSD-Activos'!J69)","v":28.229645992020991},{"$f":"IF('[9]II.2.Balance OSD-Activos'!N69=\"\",\"\",'[9]II.2.Balance OSD-Activos'!N69)","v":120.96211022780071},{"$f":"IF('[9]II.2.Balance OSD-Activos'!R69=\"\",\"\",'[9]II.2.Balance OSD-Activos'!R69)","v":11427.641431590166},{"$f":"IF('[9]II.2.Balance OSD-Activos'!S69=\"\",\"\",'[9]II.2.Balance OSD-Activos'!S69)","v":12473.84454045173},11455.871077582187,24050.677728261719,31.80437038375079,15.001288761737609,4.540248384396639,14.965083314918282,18.897810347599364,16.929915686579665,1.9075115882564599,{"$f":"IF('[2]MONE(M)CAPARD'!GS211=\"\",\"\",'[2]MONE(M)CAPARD'!GS211)","v":3618.6793922142897},{"$f":"IF('[2]MONE(M)CARD'!HA211=\"\",\"\",'[2]MONE(M)CAPARD'!HA211)","v":2920.7163636116243},{"$f":"IF('[2]MONE(M)CAPARD'!HB211=\"\",\"\",'[2]MONE(M)CAPARD'!HB211)","v":697.96302860266542},"n.d.",{"$f":"IF('[10]II.2.Balance OSD-Activos'!J69=\"\",\"\",'[10]II.2.Balance OSD-Activos'!J69)","v":220.33556241202095},{"$f":"IF('[10]II.2.Balance OSD-Activos'!N69=\"\",\"\",'[10]II.2.Balance OSD-Activos'!N69)","v":614.16116357780061},{"$f":"IF('[10]II.2.Balance OSD-Activos'!R69=\"\",\"\",'[10]II.2.Balance OSD-Activos'!R69)","v":18518.882119090169},{"$f":"IF('[10]II.2.Balance OSD-Activos'!S69=\"\",\"\",'[10]II.2.Balance OSD-Activos'!S69)","v":19169.129743271729},18739.217681502188,38522.508588351717,6.7626596737527578,14.966724872117322,{"$f":"IF(OR(AX204=\"\",AX192=\"\"),\"\",((AX204/AX192)-1)*100)","v":26.492281971177544},15.071932918955678,17.798078294422083,16.529739539587183,1.0862035203602609,{"$f":"IF('[2]MONE(M)CAPARD'!AS211=\"\",\"\",'[2]MONE(M)CAPARD'!AS211)","v":9.1999999999999993},{"$f":"IF('[2]MONE(M)CAPARD'!AT211=\"\",\"\",'[2]MONE(M)CAPARD'!AT211)","v":"n.a."},{"$f":"IF('[2]MONE(M)CAPARD'!AU211=\"\",\"\",'[2]MONE(M)CAPARD'!AU211)","v":5},{"$f":"IF('[2]MONE(M)CAPARD'!AV211=\"\",\"\",'[2]MONE(M)CAPARD'!AV211)","v":6},{"$f":"IF('[2]MONE(M)CAPARD'!AW211=\"\",\"\",'[2]MONE(M)CAPARD'!AW211)","v":"n.a."},{"$f":"IF('[2]MONE(M)CAPARD'!AX211=\"\",\"\",'[2]MONE(M)CAPARD'!AX211)","v":8},{"$f":"IF('[2]MONE(M)CAPARD'!AY211=\"\",\"\",'[2]MONE(M)CAPARD'!AY211)","v":"n.a."},{"$f":"IF('[2]FISCAL(M)'!$K211=\"\",\"\",'[2]FISCAL(M)'!$K211)","v":-577.26466949693781},{"$f":"IF('[2]FISCAL(M)'!$L211=\"\",\"\",'[2]FISCAL(M)'!$L211)","v":-781.49237212393734},{"$f":"IF('[2]FISCAL(M)'!$AY211=\"\",\"\",'[2]FISCAL(M)'!$AY211)","v":"n.d."},{"$f":"IF('[2]FISCAL(M)'!$BI211=\"\",\"\",'[2]FISCAL(M)'!$BI211)","v":"n.d."},{"$f":"IF('[2]FISCAL(M)'!$BS211=\"\",\"\",'[2]FISCAL(M)'!$BS211)","v":"n.d."},{"$f":"IF('[2]FISCAL(M)'!$AZ211=\"\",\"\",'[2]FISCAL(M)'!$AZ211)","v":"n.d."},{"$f":"IF('[2]FISCAL(M)'!$BJ211=\"\",\"\",'[2]FISCAL(M)'!$BJ211)","v":"n.d."},{"$f":"IF('[2]FISCAL(M)'!$BT211=\"\",\"\",'[2]FISCAL(M)'!$BT211)","v":"n.d."},{"$f":"IF('[3]MONE(M)'!$AO211=\"\",\"\",'[3]MONE(M)'!$AO211)","v":4195548.5740256412},{"$f":"IF('[4]MONE(M)'!$AO211=\"\",\"\",'[4]MONE(M)'!$AO211)","v":7962.8052795557142},{"$f":"IF('[5]MONE(M)'!$AO211=\"\",\"\",'[5]MONE(M)'!$AO211)","v":66433.613001004007},{"$f":"+'[1]MONE(M)'!$AO211","v":88679.798786155734},{"$f":"IF('[6]MONE(M)'!$AO211=\"\",\"\",'[6]MONE(M)'!$AO211)","v":30229.731052222858},{"$f":"IF('[7]MONE(M)'!$AO211=\"\",\"\",'[7]MONE(M)'!$AO211)","v":229968.21416733999},{"$f":"IF('[8]MONE(M)'!$AO211=\"\",\"\",'[8]MONE(M)'!$AO211)","v":14368.42081842},27.87577257438436,10.148382736914208,11.203495106865979,28.150625084411594,33.737539178871415,16.1962027309017,15.195246216398939,{"$f":"IF('[2]FISCAL(M)'!$K211=\"\",\"\",'[2]FISCAL(M)'!$K211)","v":-577.26466949693781},{"$f":"+'[2]REAL(A)'!$AO$26","v":125760.26885725796},-0.45901990727465142,{"$f":"IF('[2]FISCAL(M)'!$L211=\"\",\"\",'[2]FISCAL(M)'!$L211)","v":-781.49237212393734},{"$f":"+'[2]REAL(A)'!$AP$26","v":"n.d."},"n.d.",53747.600988538354,{"$f":"'[2]Gráfico REM'!BG205","v":11156.155269746991},{"$f":"'[2]Gráfico REM'!BH205","v":38115.448986563577},{"$f":"'[2]Gráfico REM'!BI205","v":4475.996732227788},"n.d.",1.1192230422113258,16.480998333975826,44.950640438858528,78919.650200188364,{"$f":"'[2]Gráfico REM'!BK205","v":11662.144238476991},{"$f":"'[2]Gráfico REM'!BL205","v":52483.86980498358},{"$f":"'[2]Gráfico REM'!BM205","v":14773.636156727787},"n.d.",1.4523759924011115,16.126155589805457,33.66003530136026]
[2006,"noviembre","2006-noviembre",{"$f":"IF('[2]REAL IPC(M)'!$AL212=\"\",\"\",+'[2]REAL IPC(M)'!$AL212)","v":5.5885434858540028},{"$f":"IF('[2]REAL IPC(M)'!$BE212=\"\",\"\",+'[2]REAL IPC(M)'!$BE212)","v":8.3861106178031655},{"$f":"IF('[2]REAL IPC(M)'!$AM212=\"\",\"\",+'[2]REAL IPC(M)'!$AM212)","v":5.2162849872773531},{"$f":"IF('[2]REAL IPC(M)'!$BI212=\"\",\"\",+'[2]REAL IPC(M)'!$BI212)","v":7.8869240208663038},{"$f":"IF('[2]REAL IMAE(M)'!BJ212=\"\",\"\",'[2]REAL IMAE(M)'!BJ212)","v":"n.d."},{"$f":"IF('[2]REAL IMAE(M)'!BK212=\"\",\"\",'[2]REAL IMAE(M)'!BK212)","v":"n.d."},{"$f":"IF('[2]REAL IMAE(M)'!BN212=\"\",\"\",'[2]REAL IMAE(M)'!BN212)","v":"n.d."},{"$f":"IF('[2]REAL IMAE(M)'!BO212=\"\",\"\",'[2]REAL IMAE(M)'!BO212)","v":"n.d."},{"$f":"IF('[2]EXT RIN(M)'!$K212=\"\",\"\",'[2]EXT RIN(M)'!$K212)","v":14296.851660087217},"",{"$f":"IF('[2]EXT RIN(M)'!$L212=\"\",\"\",'[2]EXT RIN(M)'!$L212)","v":16130.580475214187},"",{"$f":"IF('[2]MONE(M)CARD'!EG212=\"\",\"\",'[2]MONE(M)CARD'!EG212)","v":10689.687299218578},{"$f":"IF('[2]MONE(M)CARD'!EK212=\"\",\"\",'[2]MONE(M)CARD'!EK212)","v":18272.616903022445},{"$f":"IF('[2]MONE(M)CARD'!EP212=\"\",\"\",'[2]MONE(M)CARD'!EP212)","v":8862.7813457638622},{"$f":"IF('[2]MONE(M)CARD'!ES212=\"\",\"\",'[2]MONE(M)CARD'!ES212)","v":24.117317598934651},{"$f":"IF('[2]MONE(M)CARD'!EV212=\"\",\"\",'[2]MONE(M)CARD'!EV212)","v":12.853036794073835},{"$f":"IF('[2]MONE(M)CARD'!EZ212=\"\",\"\",'[2]MONE(M)CARD'!EZ212)","v":11.396283049128098},{"$f":"IF('[2]MONE(M)CAPARD'!FC212=\"\",\"\",'[2]MONE(M)CAPARD'!FC212)","v":13585.913688958577},{"$f":"IF('[2]MONE(M)CAPARD'!FG212=\"\",\"\",'[2]MONE(M)CAPARD'!FG212)","v":30321.482554472444},{"$f":"IF('[2]MONE(M)CAPARD'!FL212=\"\",\"\",'[2]MONE(M)CAPARD'!FL212)","v":8862.7813457638622},{"$f":"IF('[2]MONE(M)CAPARD'!FO212=\"\",\"\",'[2]MONE(M)CAPARD'!FO212)","v":31.479833610528797},{"$f":"IF('[2]MONE(M)CAPARD'!FR212=\"\",\"\",'[2]MONE(M)CAPARD'!FR212)","v":17.00510248940228},{"$f":"IF('[2]MONE(M)CAPARD'!FV212=\"\",\"\",'[2]MONE(M)CAPARD'!FV212)","v":15.174101136317031},{"$f":"IF('[2]MONE(M)CARD'!FV212=\"\",\"\",'[2]MONE(M)CARD'!FV212)","v":323.45308014858256},{"$f":"IF('[2]MONE(M)CARD'!GD212=\"\",\"\",'[2]MONE(M)CARD'!GD212)","v":16.500208625502403},{"$f":"IF('[2]MONE(M)CARD'!GE212=\"\",\"\",'[2]MONE(M)CARD'!GE212)","v":2756.2711959211933},4.6575912877513392,{"$f":"IF('[9]II.2.Balance OSD-Activos'!J70=\"\",\"\",'[9]II.2.Balance OSD-Activos'!J70)","v":14.775434944330357},{"$f":"IF('[9]II.2.Balance OSD-Activos'!N70=\"\",\"\",'[9]II.2.Balance OSD-Activos'!N70)","v":122.54366643047146},{"$f":"IF('[9]II.2.Balance OSD-Activos'!R70=\"\",\"\",'[9]II.2.Balance OSD-Activos'!R70)","v":11804.952127246273},{"$f":"IF('[9]II.2.Balance OSD-Activos'!S70=\"\",\"\",'[9]II.2.Balance OSD-Activos'!S70)","v":12336.83184161465},11819.727562190605,24279.103070235724,3.1812518519656496,15.672340123805739,5.8201868855980443,15.689869677558255,15.821988219154104,15.693929558370989,-1.2359861282086761,{"$f":"IF('[2]MONE(M)CAPARD'!GS212=\"\",\"\",'[2]MONE(M)CAPARD'!GS212)","v":3640.1715993800058},{"$f":"IF('[2]MONE(M)CARD'!HA212=\"\",\"\",'[2]MONE(M)CAPARD'!HA212)","v":3057.8179093111935},{"$f":"IF('[2]MONE(M)CAPARD'!HB212=\"\",\"\",'[2]MONE(M)CAPARD'!HB212)","v":582.35369006881228},"n.d.",{"$f":"IF('[10]II.2.Balance OSD-Activos'!J70=\"\",\"\",'[10]II.2.Balance OSD-Activos'!J70)","v":195.30138563433036},{"$f":"IF('[10]II.2.Balance OSD-Activos'!N70=\"\",\"\",'[10]II.2.Balance OSD-Activos'!N70)","v":622.49611848047141},{"$f":"IF('[10]II.2.Balance OSD-Activos'!R70=\"\",\"\",'[10]II.2.Balance OSD-Activos'!R70)","v":18961.02616155627},{"$f":"IF('[10]II.2.Balance OSD-Activos'!S70=\"\",\"\",'[10]II.2.Balance OSD-Activos'!S70)","v":19108.102724254652},19156.327547190602,38886.92638992572,-5.8632293720214168,14.969667272175524,23.378436483228569,15.232335906641303,15.729782587584108,15.46830214781858,-1.0614373917686031,{"$f":"IF('[2]MONE(M)CAPARD'!AS212=\"\",\"\",'[2]MONE(M)CAPARD'!AS212)","v":9.1999999999999993},{"$f":"IF('[2]MONE(M)CAPARD'!AT212=\"\",\"\",'[2]MONE(M)CAPARD'!AT212)","v":"n.a."},{"$f":"IF('[2]MONE(M)CAPARD'!AU212=\"\",\"\",'[2]MONE(M)CAPARD'!AU212)","v":5},{"$f":"IF('[2]MONE(M)CAPARD'!AV212=\"\",\"\",'[2]MONE(M)CAPARD'!AV212)","v":6},{"$f":"IF('[2]MONE(M)CAPARD'!AW212=\"\",\"\",'[2]MONE(M)CAPARD'!AW212)","v":"n.a."},{"$f":"IF('[2]MONE(M)CAPARD'!AX212=\"\",\"\",'[2]MONE(M)CAPARD'!AX212)","v":8},{"$f":"IF('[2]MONE(M)CAPARD'!AY212=\"\",\"\",'[2]MONE(M)CAPARD'!AY212)","v":"n.a."},{"$f":"IF('[2]FISCAL(M)'!$K212=\"\",\"\",'[2]FISCAL(M)'!$K212)","v":-785.78437118049055},{"$f":"IF('[2]FISCAL(M)'!$L212=\"\",\"\",'[2]FISCAL(M)'!$L212)","v":-930.47978044749004},{"$f":"IF('[2]FISCAL(M)'!$AY212=\"\",\"\",'[2]FISCAL(M)'!$AY212)","v":"n.d."},{"$f":"IF('[2]FISCAL(M)'!$BI212=\"\",\"\",'[2]FISCAL(M)'!$BI212)","v":"n.d."},{"$f":"IF('[2]FISCAL(M)'!$BS212=\"\",\"\",'[2]FISCAL(M)'!$BS212)","v":"n.d."},{"$f":"IF('[2]FISCAL(M)'!$AZ212=\"\",\"\",'[2]FISCAL(M)'!$AZ212)","v":"n.d."},{"$f":"IF('[2]FISCAL(M)'!$BJ212=\"\",\"\",'[2]FISCAL(M)'!$BJ212)","v":"n.d."},{"$f":"IF('[2]FISCAL(M)'!$BT212=\"\",\"\",'[2]FISCAL(M)'!$BT212)","v":"n.d."},{"$f":"IF('[3]MONE(M)'!$AO212=\"\",\"\",'[3]MONE(M)'!$AO212)","v":4346890.2482188297},{"$f":"IF('[4]MONE(M)'!$AO212=\"\",\"\",'[4]MONE(M)'!$AO212)","v":8043.132093082857},{"$f":"IF('[5]MONE(M)'!$AO212=\"\",\"\",'[5]MONE(M)'!$AO212)","v":66687.15894158739},{"$f":"+'[1]MONE(M)'!$AO212","v":91037.734159371437},{"$f":"IF('[6]MONE(M)'!$AO212=\"\",\"\",'[6]MONE(M)'!$AO212)","v":30854.062469912809},{"$f":"IF('[7]MONE(M)'!$AO212=\"\",\"\",'[7]MONE(M)'!$AO212)","v":221276.1634776},{"$f":"IF('[8]MONE(M)'!$AO212=\"\",\"\",'[8]MONE(M)'!$AO212)","v":14503.648456119998},29.131079154238691,9.7526554424262724,26.868164288951913,28.173131882731226,32.451389352511463,10.630842132732067,14.487487270522292,{"$f":"IF('[2]FISCAL(M)'!$K212=\"\",\"\",'[2]FISCAL(M)'!$K212)","v":-785.78437118049055},{"$f":"+'[2]REAL(A)'!$AO$26","v":125760.26885725796},-0.62482720363168243,{"$f":"IF('[2]FISCAL(M)'!$L212=\"\",\"\",'[2]FISCAL(M)'!$L212)","v":-930.47978044749004},{"$f":"+'[2]REAL(A)'!$AP$26","v":"n.d."},"n.d.",54245.177272484958,{"$f":"'[2]Gráfico REM'!BG206","v":11515.263747063189},{"$f":"'[2]Gráfico REM'!BH206","v":38412.158012368425},{"$f":"'[2]Gráfico REM'!BI206","v":4317.7555130533447},"n.d.",-3.3658139665356357,19.161011276412165,15.587048020737049,79296.293553744967,{"$f":"'[2]Gráfico REM'!BK206","v":12032.19931126319},{"$f":"'[2]Gráfico REM'!BL206","v":52915.806468488423},{"$f":"'[2]Gráfico REM'!BM206","v":14348.287773993346},"n.d.",-2.5613034921913691,17.84251081368151,20.85688525039291]
[2006,"diciembre","2006-diciembre",{"$f":"IF('[2]REAL IPC(M)'!$AL213=\"\",\"\",+'[2]REAL IPC(M)'!$AL213)","v":6.2384044526901716},{"$f":"IF('[2]REAL IPC(M)'!$BE213=\"\",\"\",+'[2]REAL IPC(M)'!$BE213)","v":8.3178673281467219},{"$f":"IF('[2]REAL IPC(M)'!$AM213=\"\",\"\",+'[2]REAL IPC(M)'!$AM213)","v":5.8173021541296999},{"$f":"IF('[2]REAL IPC(M)'!$BI213=\"\",\"\",+'[2]REAL IPC(M)'!$BI213)","v":7.8402994416199689},{"$f":"IF('[2]REAL IMAE(M)'!BJ213=\"\",\"\",'[2]REAL IMAE(M)'!BJ213)","v":"n.d."},{"$f":"IF('[2]REAL IMAE(M)'!BK213=\"\",\"\",'[2]REAL IMAE(M)'!BK213)","v":"n.d."},{"$f":"IF('[2]REAL IMAE(M)'!BN213=\"\",\"\",'[2]REAL IMAE(M)'!BN213)","v":"n.d."},{"$f":"IF('[2]REAL IMAE(M)'!BO213=\"\",\"\",'[2]REAL IMAE(M)'!BO213)","v":"n.d."},{"$f":"IF('[2]EXT RIN(M)'!$K213=\"\",\"\",'[2]EXT RIN(M)'!$K213)","v":14371.078990295948},14371.078990295948,{"$f":"IF('[2]EXT RIN(M)'!$L213=\"\",\"\",'[2]EXT RIN(M)'!$L213)","v":15683.127508807547},15683.127508807547,{"$f":"IF('[2]MONE(M)CARD'!EG213=\"\",\"\",'[2]MONE(M)CARD'!EG213)","v":12086.518027304784},{"$f":"IF('[2]MONE(M)CARD'!EK213=\"\",\"\",'[2]MONE(M)CARD'!EK213)","v":21124.081063710521},{"$f":"IF('[2]MONE(M)CARD'!EP213=\"\",\"\",'[2]MONE(M)CARD'!EP213)","v":10279.651085229787},{"$f":"IF('[2]MONE(M)CARD'!ES213=\"\",\"\",'[2]MONE(M)CARD'!ES213)","v":23.785377876133307},{"$f":"IF('[2]MONE(M)CARD'!EV213=\"\",\"\",'[2]MONE(M)CARD'!EV213)","v":14.858210332859034},{"$f":"IF('[2]MONE(M)CARD'!EZ213=\"\",\"\",'[2]MONE(M)CARD'!EZ213)","v":13.220463088496226},{"$f":"IF('[2]MONE(M)CAPARD'!FC213=\"\",\"\",'[2]MONE(M)CAPARD'!FC213)","v":14696.783732714786},{"$f":"IF('[2]MONE(M)CAPARD'!FG213=\"\",\"\",'[2]MONE(M)CAPARD'!FG213)","v":33461.128821160513},{"$f":"IF('[2]MONE(M)CAPARD'!FL213=\"\",\"\",'[2]MONE(M)CAPARD'!FL213)","v":10279.651085229787},{"$f":"IF('[2]MONE(M)CAPARD'!FO213=\"\",\"\",'[2]MONE(M)CAPARD'!FO213)","v":25.932393276984932},{"$f":"IF('[2]MONE(M)CAPARD'!FR213=\"\",\"\",'[2]MONE(M)CAPARD'!FR213)","v":17.114168724666911},{"$f":"IF('[2]MONE(M)CAPARD'!FV213=\"\",\"\",'[2]MONE(M)CAPARD'!FV213)","v":15.448058032615798},{"$f":"IF('[2]MONE(M)CARD'!FV213=\"\",\"\",'[2]MONE(M)CARD'!FV213)","v":497.46820561450613},{"$f":"IF('[2]MONE(M)CARD'!GD213=\"\",\"\",'[2]MONE(M)CARD'!GD213)","v":43.094870626258235},{"$f":"IF('[2]MONE(M)CARD'!GE213=\"\",\"\",'[2]MONE(M)CARD'!GE213)","v":2828.6421573260709},7.3937482346020822,{"$f":"IF('[9]II.2.Balance OSD-Activos'!J71=\"\",\"\",'[9]II.2.Balance OSD-Activos'!J71)","v":48.516555089587065},{"$f":"IF('[9]II.2.Balance OSD-Activos'!N71=\"\",\"\",'[9]II.2.Balance OSD-Activos'!N71)","v":148.18979616150477},{"$f":"IF('[9]II.2.Balance OSD-Activos'!R71=\"\",\"\",'[9]II.2.Balance OSD-Activos'!R71)","v":14454.484224209196},{"$f":"IF('[9]II.2.Balance OSD-Activos'!S71=\"\",\"\",'[9]II.2.Balance OSD-Activos'!S71)","v":14769.631919234485},14503.000779298784,29420.822494694774,28.020260350324321,18.154292669831349,24.126785304703048,18.123737442529663,19.991318852542793,19.098505861364035,3.4045763029930463,{"$f":"IF('[2]MONE(M)CAPARD'!GS213=\"\",\"\",'[2]MONE(M)CAPARD'!GS213)","v":3937.7066180425304},{"$f":"IF('[2]MONE(M)CARD'!HA213=\"\",\"\",'[2]MONE(M)CAPARD'!HA213)","v":3128.928889616071},{"$f":"IF('[2]MONE(M)CAPARD'!HB213=\"\",\"\",'[2]MONE(M)CAPARD'!HB213)","v":808.77772842645936},"n.d.",{"$f":"IF('[10]II.2.Balance OSD-Activos'!J71=\"\",\"\",'[10]II.2.Balance OSD-Activos'!J71)","v":227.01394535958707},{"$f":"IF('[10]II.2.Balance OSD-Activos'!N71=\"\",\"\",'[10]II.2.Balance OSD-Activos'!N71)","v":628.99767488150462},{"$f":"IF('[10]II.2.Balance OSD-Activos'!R71=\"\",\"\",'[10]II.2.Balance OSD-Activos'!R71)","v":21276.9423562292},{"$f":"IF('[10]II.2.Balance OSD-Activos'!S71=\"\",\"\",'[10]II.2.Balance OSD-Activos'!S71)","v":21613.006324774487},21503.956301588787,43745.960301244777,-7.9066460511861836,16.205819185155555,25.653963330083094,16.531355499692513,18.369362520509959,17.392832880379473,1.9245307325608927,{"$f":"IF('[2]MONE(M)CAPARD'!AS213=\"\",\"\",'[2]MONE(M)CAPARD'!AS213)","v":8.9700000000000006},{"$f":"IF('[2]MONE(M)CAPARD'!AT213=\"\",\"\",'[2]MONE(M)CAPARD'!AT213)","v":"n.a."},{"$f":"IF('[2]MONE(M)CAPARD'!AU213=\"\",\"\",'[2]MONE(M)CAPARD'!AU213)","v":5},{"$f":"IF('[2]MONE(M)CAPARD'!AV213=\"\",\"\",'[2]MONE(M)CAPARD'!AV213)","v":6},{"$f":"IF('[2]MONE(M)CAPARD'!AW213=\"\",\"\",'[2]MONE(M)CAPARD'!AW213)","v":"n.a."},{"$f":"IF('[2]MONE(M)CAPARD'!AX213=\"\",\"\",'[2]MONE(M)CAPARD'!AX213)","v":8},{"$f":"IF('[2]MONE(M)CAPARD'!AY213=\"\",\"\",'[2]MONE(M)CAPARD'!AY213)","v":"n.a."},{"$f":"IF('[2]FISCAL(M)'!$K213=\"\",\"\",'[2]FISCAL(M)'!$K213)","v":-1424.3669952308258},{"$f":"IF('[2]FISCAL(M)'!$L213=\"\",\"\",'[2]FISCAL(M)'!$L213)","v":-1413.9774120388256},{"$f":"IF('[2]FISCAL(M)'!$AY213=\"\",\"\",'[2]FISCAL(M)'!$AY213)","v":"n.d."},{"$f":"IF('[2]FISCAL(M)'!$BI213=\"\",\"\",'[2]FISCAL(M)'!$BI213)","v":"n.d."},{"$f":"IF('[2]FISCAL(M)'!$BS213=\"\",\"\",'[2]FISCAL(M)'!$BS213)","v":28099.55},{"$f":"IF('[2]FISCAL(M)'!$AZ213=\"\",\"\",'[2]FISCAL(M)'!$AZ213)","v":"n.d."},{"$f":"IF('[2]FISCAL(M)'!$BJ213=\"\",\"\",'[2]FISCAL(M)'!$BJ213)","v":"n.d."},{"$f":"IF('[2]FISCAL(M)'!$BT213=\"\",\"\",'[2]FISCAL(M)'!$BT213)","v":35887.883448659995},{"$f":"IF('[3]MONE(M)'!$AO213=\"\",\"\",'[3]MONE(M)'!$AO213)","v":4484094.3987209611},{"$f":"IF('[4]MONE(M)'!$AO213=\"\",\"\",'[4]MONE(M)'!$AO213)","v":8138.3648772899996},{"$f":"IF('[5]MONE(M)'!$AO213=\"\",\"\",'[5]MONE(M)'!$AO213)","v":67905.509182619789},{"$f":"+'[1]MONE(M)'!$AO213","v":90497.741792901565},{"$f":"IF('[6]MONE(M)'!$AO213=\"\",\"\",'[6]MONE(M)'!$AO213)","v":31475.069152872486},{"$f":"IF('[7]MONE(M)'!$AO213=\"\",\"\",'[7]MONE(M)'!$AO213)","v":228245.58909178001},{"$f":"IF('[8]MONE(M)'!$AO213=\"\",\"\",'[8]MONE(M)'!$AO213)","v":14115.31720657},27.626521905358679,8.8660099510984089,21.384571284804444,29.982922047409843,30.737097637432441,11.950283584187593,12.439940561628671,{"$f":"IF('[2]FISCAL(M)'!$K213=\"\",\"\",'[2]FISCAL(M)'!$K213)","v":-1424.3669952308258},{"$f":"+'[2]REAL(A)'!$AO$26","v":125760.26885725796},-1.1326049221853438,{"$f":"IF('[2]FISCAL(M)'!$L213=\"\",\"\",'[2]FISCAL(M)'!$L213)","v":-1413.9774120388256},{"$f":"+'[2]REAL(A)'!$AP$26","v":"n.d."},"n.d.",54644.809835960434,{"$f":"'[2]Gráfico REM'!BG207","v":11470.65311389089},{"$f":"'[2]Gráfico REM'!BH207","v":39119.697323836401},{"$f":"'[2]Gráfico REM'!BI207","v":4054.4593982331426},"n.d.",-1.8484190724607275,18.937420406633908,5.6039459594296348,79272.99353725843,{"$f":"'[2]Gráfico REM'!BK207","v":11992.16570926689},{"$f":"'[2]Gráfico REM'!BL207","v":53235.014530406399},{"$f":"'[2]Gráfico REM'!BM207","v":14045.81329758514},"n.d.",-1.0771163047814447,17.142553355820244,12.804501963511417]
[2007,"enero","2007-enero",{"$f":"IF('[2]REAL IPC(M)'!$AL214=\"\",\"\",+'[2]REAL IPC(M)'!$AL214)","v":6.2385321100917324},{"$f":"IF('[2]REAL IPC(M)'!$BE214=\"\",\"\",+'[2]REAL IPC(M)'!$BE214)","v":8.2568328930963766},{"$f":"IF('[2]REAL IPC(M)'!$AM214=\"\",\"\",+'[2]REAL IPC(M)'!$AM214)","v":5.8273463336754538},{"$f":"IF('[2]REAL IPC(M)'!$BI214=\"\",\"\",+'[2]REAL IPC(M)'!$BI214)","v":7.8009478925587183},{"$f":"IF('[2]REAL IMAE(M)'!BJ214=\"\",\"\",'[2]REAL IMAE(M)'!BJ214)","v":"n.d."},{"$f":"IF('[2]REAL IMAE(M)'!BK214=\"\",\"\",'[2]REAL IMAE(M)'!BK214)","v":"n.d."},{"$f":"IF('[2]REAL IMAE(M)'!BN214=\"\",\"\",'[2]REAL IMAE(M)'!BN214)","v":"n.d."},{"$f":"IF('[2]REAL IMAE(M)'!BO214=\"\",\"\",'[2]REAL IMAE(M)'!BO214)","v":"n.d."},{"$f":"IF('[2]EXT RIN(M)'!$K214=\"\",\"\",'[2]EXT RIN(M)'!$K214)","v":14427.89042171833},"",{"$f":"IF('[2]EXT RIN(M)'!$L214=\"\",\"\",'[2]EXT RIN(M)'!$L214)","v":15774.460845826679},"",{"$f":"IF('[2]MONE(M)CARD'!EG214=\"\",\"\",'[2]MONE(M)CARD'!EG214)","v":11245.003623468216},{"$f":"IF('[2]MONE(M)CARD'!EK214=\"\",\"\",'[2]MONE(M)CARD'!EK214)","v":18628.775246233326},{"$f":"IF('[2]MONE(M)CARD'!EP214=\"\",\"\",'[2]MONE(M)CARD'!EP214)","v":8918.0059053993609},{"$f":"IF('[2]MONE(M)CARD'!ES214=\"\",\"\",'[2]MONE(M)CARD'!ES214)","v":24.768685750295649},{"$f":"IF('[2]MONE(M)CARD'!EV214=\"\",\"\",'[2]MONE(M)CARD'!EV214)","v":16.018505066531041},{"$f":"IF('[2]MONE(M)CARD'!EZ214=\"\",\"\",'[2]MONE(M)CARD'!EZ214)","v":13.648290272279073},{"$f":"IF('[2]MONE(M)CAPARD'!FC214=\"\",\"\",'[2]MONE(M)CAPARD'!FC214)","v":13689.130007878213},{"$f":"IF('[2]MONE(M)CAPARD'!FG214=\"\",\"\",'[2]MONE(M)CAPARD'!FG214)","v":31080.459132173331},{"$f":"IF('[2]MONE(M)CAPARD'!FL214=\"\",\"\",'[2]MONE(M)CAPARD'!FL214)","v":8918.0059053993609},{"$f":"IF('[2]MONE(M)CAPARD'!FO214=\"\",\"\",'[2]MONE(M)CAPARD'!FO214)","v":26.98040673658133},{"$f":"IF('[2]MONE(M)CAPARD'!FR214=\"\",\"\",'[2]MONE(M)CAPARD'!FR214)","v":18.577264958415075},{"$f":"IF('[2]MONE(M)CAPARD'!FV214=\"\",\"\",'[2]MONE(M)CAPARD'!FV214)","v":16.358875874447399},{"$f":"IF('[2]MONE(M)CARD'!FV214=\"\",\"\",'[2]MONE(M)CARD'!FV214)","v":380.46026930606024},{"$f":"IF('[2]MONE(M)CARD'!GD214=\"\",\"\",'[2]MONE(M)CARD'!GD214)","v":16.056637557958759},{"$f":"IF('[2]MONE(M)CARD'!GE214=\"\",\"\",'[2]MONE(M)CARD'!GE214)","v":2642.2051520944874},2.2343944401978622,{"$f":"IF('[9]II.2.Balance OSD-Activos'!J72=\"\",\"\",'[9]II.2.Balance OSD-Activos'!J72)","v":17.843891099325923},{"$f":"IF('[9]II.2.Balance OSD-Activos'!N72=\"\",\"\",'[9]II.2.Balance OSD-Activos'!N72)","v":129.80131780336981},{"$f":"IF('[9]II.2.Balance OSD-Activos'!R72=\"\",\"\",'[9]II.2.Balance OSD-Activos'!R72)","v":12119.346363018793},{"$f":"IF('[9]II.2.Balance OSD-Activos'!S72=\"\",\"\",'[9]II.2.Balance OSD-Activos'!S72)","v":12767.436514846406},12137.190254118119,25034.428086767894,43.222567265409538,17.727988465374267,10.354385014502565,17.697141484161925,18.396957225518307,18.027204121644669,-1.0713017397193667,{"$f":"IF('[2]MONE(M)CAPARD'!GS214=\"\",\"\",'[2]MONE(M)CAPARD'!GS214)","v":3569.7012658833573},{"$f":"IF('[2]MONE(M)CARD'!HA214=\"\",\"\",'[2]MONE(M)CAPARD'!HA214)","v":2942.0738821144873},{"$f":"IF('[2]MONE(M)CAPARD'!HB214=\"\",\"\",'[2]MONE(M)CAPARD'!HB214)","v":627.62738376887},"n.d.",{"$f":"IF('[10]II.2.Balance OSD-Activos'!J72=\"\",\"\",'[10]II.2.Balance OSD-Activos'!J72)","v":205.66455689932593},{"$f":"IF('[10]II.2.Balance OSD-Activos'!N72=\"\",\"\",'[10]II.2.Balance OSD-Activos'!N72)","v":583.01302194336995},{"$f":"IF('[10]II.2.Balance OSD-Activos'!R72=\"\",\"\",'[10]II.2.Balance OSD-Activos'!R72)","v":19063.299535768794},{"$f":"IF('[10]II.2.Balance OSD-Activos'!S72=\"\",\"\",'[10]II.2.Balance OSD-Activos'!S72)","v":19683.708779916407},19268.96409266812,39535.685894527895,-9.7885591008175172,15.676033446609395,14.507441823690082,16.029382943167114,17.303279996490396,16.462862552598455,-0.9299703277810174,{"$f":"IF('[2]MONE(M)CAPARD'!AS214=\"\",\"\",'[2]MONE(M)CAPARD'!AS214)","v":5.98},{"$f":"IF('[2]MONE(M)CAPARD'!AT214=\"\",\"\",'[2]MONE(M)CAPARD'!AT214)","v":"n.a."},{"$f":"IF('[2]MONE(M)CAPARD'!AU214=\"\",\"\",'[2]MONE(M)CAPARD'!AU214)","v":5},{"$f":"IF('[2]MONE(M)CAPARD'!AV214=\"\",\"\",'[2]MONE(M)CAPARD'!AV214)","v":6},{"$f":"IF('[2]MONE(M)CAPARD'!AW214=\"\",\"\",'[2]MONE(M)CAPARD'!AW214)","v":"n.a."},{"$f":"IF('[2]MONE(M)CAPARD'!AX214=\"\",\"\",'[2]MONE(M)CAPARD'!AX214)","v":8},{"$f":"IF('[2]MONE(M)CAPARD'!AY214=\"\",\"\",'[2]MONE(M)CAPARD'!AY214)","v":"n.a."},{"$f":"IF('[2]FISCAL(M)'!$K214=\"\",\"\",'[2]FISCAL(M)'!$K214)","v":380.9127097423036},{"$f":"IF('[2]FISCAL(M)'!$L214=\"\",\"\",'[2]FISCAL(M)'!$L214)","v":259.65983899230366},{"$f":"IF('[2]FISCAL(M)'!$AY214=\"\",\"\",'[2]FISCAL(M)'!$AY214)","v":"n.d."},{"$f":"IF('[2]FISCAL(M)'!$BI214=\"\",\"\",'[2]FISCAL(M)'!$BI214)","v":"n.d."},{"$f":"IF('[2]FISCAL(M)'!$BS214=\"\",\"\",'[2]FISCAL(M)'!$BS214)","v":"n.d."},{"$f":"IF('[2]FISCAL(M)'!$AZ214=\"\",\"\",'[2]FISCAL(M)'!$AZ214)","v":"n.d."},{"$f":"IF('[2]FISCAL(M)'!$BJ214=\"\",\"\",'[2]FISCAL(M)'!$BJ214)","v":"n.d."},{"$f":"IF('[2]FISCAL(M)'!$BT214=\"\",\"\",'[2]FISCAL(M)'!$BT214)","v":"n.d."},{"$f":"IF('[3]MONE(M)'!$AO214=\"\",\"\",'[3]MONE(M)'!$AO214)","v":4522219.6535648387},{"$f":"IF('[4]MONE(M)'!$AO214=\"\",\"\",'[4]MONE(M)'!$AO214)","v":8184.1455731300002},{"$f":"IF('[5]MONE(M)'!$AO214=\"\",\"\",'[5]MONE(M)'!$AO214)","v":68525.592850636633},{"$f":"+'[1]MONE(M)'!$AO214","v":94990.763623850857},{"$f":"IF('[6]MONE(M)'!$AO214=\"\",\"\",'[6]MONE(M)'!$AO214)","v":32193.650927890289},{"$f":"IF('[7]MONE(M)'!$AO214=\"\",\"\",'[7]MONE(M)'!$AO214)","v":231239.89426331999},{"$f":"IF('[8]MONE(M)'!$AO214=\"\",\"\",'[8]MONE(M)'!$AO214)","v":14317.807770980002},29.358918626217289,8.7510340740641457,21.412638655662452,29.18861974420366,30.725134704000201,15.122931317549604,12.545041612789687,{"$f":"IF('[2]FISCAL(M)'!$K214=\"\",\"\",'[2]FISCAL(M)'!$K214)","v":380.9127097423036},{"$f":"+'[2]REAL(A)'!$AO$27","v":142802.85135501099},0.2667402689287669,{"$f":"IF('[2]FISCAL(M)'!$L214=\"\",\"\",'[2]FISCAL(M)'!$L214)","v":259.65983899230366},{"$f":"+'[2]REAL(A)'!$AP$27","v":164098.834355011},0.15823381074758655,54815.010200825542,{"$f":"'[2]Gráfico REM'!BG208","v":11426.547637973181},{"$f":"'[2]Gráfico REM'!BH208","v":39482.799236943771},{"$f":"'[2]Gráfico REM'!BI208","v":3905.6633259085875},{"$f":"+((CS207/CS195)-1)*100","v":12.426725098669756},-3.5480410013182806,19.284398261246196,2.5212782841844472,79740.336129575546,{"$f":"'[2]Gráfico REM'!BK208","v":11907.94690004318},{"$f":"'[2]Gráfico REM'!BL208","v":53800.607007923769},{"$f":"'[2]Gráfico REM'!BM208","v":14031.782221608588},{"$f":"+((DA207/DA195)-1)*100","v":13.388952935066412},-3.5385804249104091,17.413290989123233,15.4094017233793]
[2007,"febrero","2007-febrero",{"$f":"IF('[2]REAL IPC(M)'!$AL215=\"\",\"\",+'[2]REAL IPC(M)'!$AL215)","v":6.2871513488797381},{"$f":"IF('[2]REAL IPC(M)'!$BE215=\"\",\"\",+'[2]REAL IPC(M)'!$BE215)","v":8.2023651489053115},{"$f":"IF('[2]REAL IPC(M)'!$AM215=\"\",\"\",+'[2]REAL IPC(M)'!$AM215)","v":5.9258416742493214},{"$f":"IF('[2]REAL IPC(M)'!$BI215=\"\",\"\",+'[2]REAL IPC(M)'!$BI215)","v":7.7681709489495709},{"$f":"IF('[2]REAL IMAE(M)'!BJ215=\"\",\"\",'[2]REAL IMAE(M)'!BJ215)","v":"n.d."},{"$f":"IF('[2]REAL IMAE(M)'!BK215=\"\",\"\",'[2]REAL IMAE(M)'!BK215)","v":"n.d."},{"$f":"IF('[2]REAL IMAE(M)'!BN215=\"\",\"\",'[2]REAL IMAE(M)'!BN215)","v":"n.d."},{"$f":"IF('[2]REAL IMAE(M)'!BO215=\"\",\"\",'[2]REAL IMAE(M)'!BO215)","v":"n.d."},{"$f":"IF('[2]EXT RIN(M)'!$K215=\"\",\"\",'[2]EXT RIN(M)'!$K215)","v":14601.90018196993},"",{"$f":"IF('[2]EXT RIN(M)'!$L215=\"\",\"\",'[2]EXT RIN(M)'!$L215)","v":15872.250847542169},"",{"$f":"IF('[2]MONE(M)CARD'!EG215=\"\",\"\",'[2]MONE(M)CARD'!EG215)","v":11663.914250115318},{"$f":"IF('[2]MONE(M)CARD'!EK215=\"\",\"\",'[2]MONE(M)CARD'!EK215)","v":18688.685254331656},{"$f":"IF('[2]MONE(M)CARD'!EP215=\"\",\"\",'[2]MONE(M)CARD'!EP215)","v":9063.1160341003706},{"$f":"IF('[2]MONE(M)CARD'!ES215=\"\",\"\",'[2]MONE(M)CARD'!ES215)","v":29.033367215840066},{"$f":"IF('[2]MONE(M)CARD'!EV215=\"\",\"\",'[2]MONE(M)CARD'!EV215)","v":14.835817771114224},{"$f":"IF('[2]MONE(M)CARD'!EZ215=\"\",\"\",'[2]MONE(M)CARD'!EZ215)","v":12.879079778741875},{"$f":"IF('[2]MONE(M)CAPARD'!FC215=\"\",\"\",'[2]MONE(M)CAPARD'!FC215)","v":14139.484498055319},{"$f":"IF('[2]MONE(M)CAPARD'!FG215=\"\",\"\",'[2]MONE(M)CAPARD'!FG215)","v":31382.213638871661},{"$f":"IF('[2]MONE(M)CAPARD'!FL215=\"\",\"\",'[2]MONE(M)CAPARD'!FL215)","v":9063.1160341003706},{"$f":"IF('[2]MONE(M)CAPARD'!FO215=\"\",\"\",'[2]MONE(M)CAPARD'!FO215)","v":30.576491625968892},{"$f":"IF('[2]MONE(M)CAPARD'!FR215=\"\",\"\",'[2]MONE(M)CAPARD'!FR215)","v":17.981926224910705},{"$f":"IF('[2]MONE(M)CAPARD'!FV215=\"\",\"\",'[2]MONE(M)CAPARD'!FV215)","v":15.96309374578324},{"$f":"IF('[2]MONE(M)CARD'!FV215=\"\",\"\",'[2]MONE(M)CARD'!FV215)","v":381.2489831018662},{"$f":"IF('[2]MONE(M)CARD'!GD215=\"\",\"\",'[2]MONE(M)CARD'!GD215)","v":16.254495098731596},{"$f":"IF('[2]MONE(M)CARD'!GE215=\"\",\"\",'[2]MONE(M)CARD'!GE215)","v":2652.0450059995992},11.190470449747036,{"$f":"IF('[9]II.2.Balance OSD-Activos'!J73=\"\",\"\",'[9]II.2.Balance OSD-Activos'!J73)","v":13.761752239103702},{"$f":"IF('[9]II.2.Balance OSD-Activos'!N73=\"\",\"\",'[9]II.2.Balance OSD-Activos'!N73)","v":132.81323266865417},{"$f":"IF('[9]II.2.Balance OSD-Activos'!R73=\"\",\"\",'[9]II.2.Balance OSD-Activos'!R73)","v":12238.523656501708},{"$f":"IF('[9]II.2.Balance OSD-Activos'!S73=\"\",\"\",'[9]II.2.Balance OSD-Activos'!S73)","v":12972.680037114251},12252.28540874081,25357.778678523719,35.061641180567207,17.170403789594356,13.124219681265892,17.152953352884559,17.168372925516074,17.147419138725549,-0.87978498291911933,{"$f":"IF('[2]MONE(M)CAPARD'!GS215=\"\",\"\",'[2]MONE(M)CAPARD'!GS215)","v":3456.8978878645357},{"$f":"IF('[2]MONE(M)CARD'!HA215=\"\",\"\",'[2]MONE(M)CAPARD'!HA215)","v":2961.2635875195992},{"$f":"IF('[2]MONE(M)CAPARD'!HB215=\"\",\"\",'[2]MONE(M)CAPARD'!HB215)","v":495.63430034493649},"n.d.",{"$f":"IF('[10]II.2.Balance OSD-Activos'!J73=\"\",\"\",'[10]II.2.Balance OSD-Activos'!J73)","v":187.31543863910372},{"$f":"IF('[10]II.2.Balance OSD-Activos'!N73=\"\",\"\",'[10]II.2.Balance OSD-Activos'!N73)","v":593.09812221865411},{"$f":"IF('[10]II.2.Balance OSD-Activos'!R73=\"\",\"\",'[10]II.2.Balance OSD-Activos'!R73)","v":19245.234812071707},{"$f":"IF('[10]II.2.Balance OSD-Activos'!S73=\"\",\"\",'[10]II.2.Balance OSD-Activos'!S73)","v":19949.781659224249},19432.55025071081,39975.430032153716,-17.948328827624206,15.6540775049129,15.004702387345482,16.116915280404797,16.368674200107016,15.999849604620664,-0.46301294797779136,{"$f":"IF('[2]MONE(M)CAPARD'!AS215=\"\",\"\",'[2]MONE(M)CAPARD'!AS215)","v":5.98},{"$f":"IF('[2]MONE(M)CAPARD'!AT215=\"\",\"\",'[2]MONE(M)CAPARD'!AT215)","v":"n.a."},{"$f":"IF('[2]MONE(M)CAPARD'!AU215=\"\",\"\",'[2]MONE(M)CAPARD'!AU215)","v":5},{"$f":"IF('[2]MONE(M)CAPARD'!AV215=\"\",\"\",'[2]MONE(M)CAPARD'!AV215)","v":6},{"$f":"IF('[2]MONE(M)CAPARD'!AW215=\"\",\"\",'[2]MONE(M)CAPARD'!AW215)","v":"n.a."},{"$f":"IF('[2]MONE(M)CAPARD'!AX215=\"\",\"\",'[2]MONE(M)CAPARD'!AX215)","v":8},{"$f":"IF('[2]MONE(M)CAPARD'!AY215=\"\",\"\",'[2]MONE(M)CAPARD'!AY215)","v":"n.a."},{"$f":"IF('[2]FISCAL(M)'!$K215=\"\",\"\",'[2]FISCAL(M)'!$K215)","v":331.26244296479626},{"$f":"IF('[2]FISCAL(M)'!$L215=\"\",\"\",'[2]FISCAL(M)'!$L215)","v":265.49021808897618},{"$f":"IF('[2]FISCAL(M)'!$AY215=\"\",\"\",'[2]FISCAL(M)'!$AY215)","v":"n.d."},{"$f":"IF('[2]FISCAL(M)'!$BI215=\"\",\"\",'[2]FISCAL(M)'!$BI215)","v":"n.d."},{"$f":"IF('[2]FISCAL(M)'!$BS215=\"\",\"\",'[2]FISCAL(M)'!$BS215)","v":"n.d."},{"$f":"IF('[2]FISCAL(M)'!$AZ215=\"\",\"\",'[2]FISCAL(M)'!$AZ215)","v":"n.d."},{"$f":"IF('[2]FISCAL(M)'!$BJ215=\"\",\"\",'[2]FISCAL(M)'!$BJ215)","v":"n.d."},{"$f":"IF('[2]FISCAL(M)'!$BT215=\"\",\"\",'[2]FISCAL(M)'!$BT215)","v":"n.d."},{"$f":"IF('[3]MONE(M)'!$AO215=\"\",\"\",'[3]MONE(M)'!$AO215)","v":4618994.5735645238},{"$f":"IF('[4]MONE(M)'!$AO215=\"\",\"\",'[4]MONE(M)'!$AO215)","v":8186.0599720800001},{"$f":"IF('[5]MONE(M)'!$AO215=\"\",\"\",'[5]MONE(M)'!$AO215)","v":69179.706225213828},{"$f":"+'[1]MONE(M)'!$AO215","v":97347.278600163874},{"$f":"IF('[6]MONE(M)'!$AO215=\"\",\"\",'[6]MONE(M)'!$AO215)","v":32643.571586732662},{"$f":"IF('[7]MONE(M)'!$AO215=\"\",\"\",'[7]MONE(M)'!$AO215)","v":232746.76703711},{"$f":"IF('[8]MONE(M)'!$AO215=\"\",\"\",'[8]MONE(M)'!$AO215)","v":14438.78675453},30.88127372572178,7.7820471013881898,20.819311494565707,30.183824428992324,29.263086504986614,16.18320684115535,13.170981854696183,{"$f":"IF('[2]FISCAL(M)'!$K215=\"\",\"\",'[2]FISCAL(M)'!$K215)","v":331.26244296479626},{"$f":"+'[2]REAL(A)'!$AO$27","v":142802.85135501099},0.23197186878381762,{"$f":"IF('[2]FISCAL(M)'!$L215=\"\",\"\",'[2]FISCAL(M)'!$L215)","v":265.49021808897618},{"$f":"+'[2]REAL(A)'!$AP$27","v":164098.834355011},0.16178677876200834,55362.047885097614,{"$f":"'[2]Gráfico REM'!BG209","v":11278.645849554272},{"$f":"'[2]Gráfico REM'!BH209","v":40017.438477884411},{"$f":"'[2]Gráfico REM'!BI209","v":4065.9635576589249},12.437879961238174,-3.9974055668727138,18.754220911031517,7.2268245332677283,80451.720028217605,{"$f":"'[2]Gráfico REM'!BK209","v":11779.279510144272},{"$f":"'[2]Gráfico REM'!BL209","v":54456.225232414406},{"$f":"'[2]Gráfico REM'!BM209","v":14216.215285658925},13.30702526103671,-3.944967934654231,17.22087804052974,15.728016774521535]
[2007,"marzo","2007-marzo",{"$f":"IF('[2]REAL IPC(M)'!$AL216=\"\",\"\",+'[2]REAL IPC(M)'!$AL216)","v":6.7920227920227783},{"$f":"IF('[2]REAL IPC(M)'!$BE216=\"\",\"\",+'[2]REAL IPC(M)'!$BE216)","v":8.1537236388139043},{"$f":"IF('[2]REAL IPC(M)'!$AM216=\"\",\"\",+'[2]REAL IPC(M)'!$AM216)","v":6.4285714285714279},{"$f":"IF('[2]REAL IPC(M)'!$BI216=\"\",\"\",+'[2]REAL IPC(M)'!$BI216)","v":7.741159930311059},{"$f":"IF('[2]REAL IMAE(M)'!BJ216=\"\",\"\",'[2]REAL IMAE(M)'!BJ216)","v":"n.d."},{"$f":"IF('[2]REAL IMAE(M)'!BK216=\"\",\"\",'[2]REAL IMAE(M)'!BK216)","v":"n.d."},{"$f":"IF('[2]REAL IMAE(M)'!BN216=\"\",\"\",'[2]REAL IMAE(M)'!BN216)","v":"n.d."},{"$f":"IF('[2]REAL IMAE(M)'!BO216=\"\",\"\",'[2]REAL IMAE(M)'!BO216)","v":"n.d."},{"$f":"IF('[2]EXT RIN(M)'!$K216=\"\",\"\",'[2]EXT RIN(M)'!$K216)","v":15144.447925935823},"",{"$f":"IF('[2]EXT RIN(M)'!$L216=\"\",\"\",'[2]EXT RIN(M)'!$L216)","v":16264.326981243054},"",{"$f":"IF('[2]MONE(M)CARD'!EG216=\"\",\"\",'[2]MONE(M)CARD'!EG216)","v":12076.703181108795},{"$f":"IF('[2]MONE(M)CARD'!EK216=\"\",\"\",'[2]MONE(M)CARD'!EK216)","v":19649.910739508901},{"$f":"IF('[2]MONE(M)CARD'!EP216=\"\",\"\",'[2]MONE(M)CARD'!EP216)","v":9240.2960427649232},{"$f":"IF('[2]MONE(M)CARD'!ES216=\"\",\"\",'[2]MONE(M)CARD'!ES216)","v":28.928941995660761},{"$f":"IF('[2]MONE(M)CARD'!EV216=\"\",\"\",'[2]MONE(M)CARD'!EV216)","v":17.587406979176134},{"$f":"IF('[2]MONE(M)CARD'!EZ216=\"\",\"\",'[2]MONE(M)CARD'!EZ216)","v":14.989317404232928},{"$f":"IF('[2]MONE(M)CAPARD'!FC216=\"\",\"\",'[2]MONE(M)CAPARD'!FC216)","v":14606.170370028794},{"$f":"IF('[2]MONE(M)CAPARD'!FG216=\"\",\"\",'[2]MONE(M)CAPARD'!FG216)","v":32686.535286408904},{"$f":"IF('[2]MONE(M)CAPARD'!FL216=\"\",\"\",'[2]MONE(M)CAPARD'!FL216)","v":9240.2960427649232},{"$f":"IF('[2]MONE(M)CAPARD'!FO216=\"\",\"\",'[2]MONE(M)CAPARD'!FO216)","v":30.374945524195994},{"$f":"IF('[2]MONE(M)CAPARD'!FR216=\"\",\"\",'[2]MONE(M)CAPARD'!FR216)","v":20.333642739183809},{"$f":"IF('[2]MONE(M)CAPARD'!FV216=\"\",\"\",'[2]MONE(M)CAPARD'!FV216)","v":17.907956478828346},{"$f":"IF('[2]MONE(M)CARD'!FV216=\"\",\"\",'[2]MONE(M)CARD'!FV216)","v":376.29840132229572},{"$f":"IF('[2]MONE(M)CARD'!GD216=\"\",\"\",'[2]MONE(M)CARD'!GD216)","v":12.6029667885814},{"$f":"IF('[2]MONE(M)CARD'!GE216=\"\",\"\",'[2]MONE(M)CARD'!GE216)","v":2763.760321840492},11.712901255796115,{"$f":"IF('[9]II.2.Balance OSD-Activos'!J74=\"\",\"\",'[9]II.2.Balance OSD-Activos'!J74)","v":14.031355543113623},{"$f":"IF('[9]II.2.Balance OSD-Activos'!N74=\"\",\"\",'[9]II.2.Balance OSD-Activos'!N74)","v":138.5566878589747},{"$f":"IF('[9]II.2.Balance OSD-Activos'!R74=\"\",\"\",'[9]II.2.Balance OSD-Activos'!R74)","v":12492.018395816151},{"$f":"IF('[9]II.2.Balance OSD-Activos'!S74=\"\",\"\",'[9]II.2.Balance OSD-Activos'!S74)","v":13276.530481290236},12506.049751359264,25921.136920508477,15.905238242888808,16.843890195560498,16.943299720290828,16.844953061516698,19.009851236726515,17.943871497260243,0.79645235853469387,{"$f":"IF('[2]MONE(M)CAPARD'!GS216=\"\",\"\",'[2]MONE(M)CAPARD'!GS216)","v":3525.0752656800696},{"$f":"IF('[2]MONE(M)CARD'!HA216=\"\",\"\",'[2]MONE(M)CAPARD'!HA216)","v":3076.9653394404918},{"$f":"IF('[2]MONE(M)CAPARD'!HB216=\"\",\"\",'[2]MONE(M)CAPARD'!HB216)","v":448.10992623957782},"n.d.",{"$f":"IF('[10]II.2.Balance OSD-Activos'!J74=\"\",\"\",'[10]II.2.Balance OSD-Activos'!J74)","v":186.2934643331136},{"$f":"IF('[10]II.2.Balance OSD-Activos'!N74=\"\",\"\",'[10]II.2.Balance OSD-Activos'!N74)","v":551.2063888389747},{"$f":"IF('[10]II.2.Balance OSD-Activos'!R74=\"\",\"\",'[10]II.2.Balance OSD-Activos'!R74)","v":19603.08166342615},{"$f":"IF('[10]II.2.Balance OSD-Activos'!S74=\"\",\"\",'[10]II.2.Balance OSD-Activos'!S74)","v":20332.86173466024},19789.375127759264,40673.443251258475,-32.258375750969471,15.511632953943444,3.7130581991831502,16.290958540264189,17.547040151064053,16.339329053990358,0.33947944936969421,{"$f":"IF('[2]MONE(M)CAPARD'!AS216=\"\",\"\",'[2]MONE(M)CAPARD'!AS216)","v":5.98},{"$f":"IF('[2]MONE(M)CAPARD'!AT216=\"\",\"\",'[2]MONE(M)CAPARD'!AT216)","v":"n.a."},{"$f":"IF('[2]MONE(M)CAPARD'!AU216=\"\",\"\",'[2]MONE(M)CAPARD'!AU216)","v":5.25},{"$f":"IF('[2]MONE(M)CAPARD'!AV216=\"\",\"\",'[2]MONE(M)CAPARD'!AV216)","v":6},{"$f":"IF('[2]MONE(M)CAPARD'!AW216=\"\",\"\",'[2]MONE(M)CAPARD'!AW216)","v":"n.a."},{"$f":"IF('[2]MONE(M)CAPARD'!AX216=\"\",\"\",'[2]MONE(M)CAPARD'!AX216)","v":8},{"$f":"IF('[2]MONE(M)CAPARD'!AY216=\"\",\"\",'[2]MONE(M)CAPARD'!AY216)","v":"n.a."},{"$f":"IF('[2]FISCAL(M)'!$K216=\"\",\"\",'[2]FISCAL(M)'!$K216)","v":4.9366114106566528},{"$f":"IF('[2]FISCAL(M)'!$L216=\"\",\"\",'[2]FISCAL(M)'!$L216)","v":322.91852150865651},{"$f":"IF('[2]FISCAL(M)'!$AY216=\"\",\"\",'[2]FISCAL(M)'!$AY216)","v":49428.779343204966},{"$f":"IF('[2]FISCAL(M)'!$BI216=\"\",\"\",'[2]FISCAL(M)'!$BI216)","v":22415.708343204962},{"$f":"IF('[2]FISCAL(M)'!$BS216=\"\",\"\",'[2]FISCAL(M)'!$BS216)","v":27013.070999999996},{"$f":"IF('[2]FISCAL(M)'!$AZ216=\"\",\"\",'[2]FISCAL(M)'!$AZ216)","v":60168.125076784963},{"$f":"IF('[2]FISCAL(M)'!$BJ216=\"\",\"\",'[2]FISCAL(M)'!$BJ216)","v":25332.838148764964},{"$f":"IF('[2]FISCAL(M)'!$BT216=\"\",\"\",'[2]FISCAL(M)'!$BT216)","v":34835.286928019996},{"$f":"IF('[3]MONE(M)'!$AO216=\"\",\"\",'[3]MONE(M)'!$AO216)","v":4716069.2168245185},{"$f":"IF('[4]MONE(M)'!$AO216=\"\",\"\",'[4]MONE(M)'!$AO216)","v":8296.4514341200011},{"$f":"IF('[5]MONE(M)'!$AO216=\"\",\"\",'[5]MONE(M)'!$AO216)","v":69257.868007645448},{"$f":"+'[1]MONE(M)'!$AO216","v":99819.638644498744},{"$f":"IF('[6]MONE(M)'!$AO216=\"\",\"\",'[6]MONE(M)'!$AO216)","v":33164.83861275974},{"$f":"IF('[7]MONE(M)'!$AO216=\"\",\"\",'[7]MONE(M)'!$AO216)","v":233788.40120661998},{"$f":"IF('[8]MONE(M)'!$AO216=\"\",\"\",'[8]MONE(M)'!$AO216)","v":14625.204716900002},30.308267238780708,8.5716971889342908,18.887427908567211,30.625405505892921,28.142359592739673,15.998120714222019,13.407400263614221,{"$f":"IF('[2]FISCAL(M)'!$K216=\"\",\"\",'[2]FISCAL(M)'!$K216)","v":4.9366114106566528},{"$f":"+'[2]REAL(A)'!$AO$27","v":142802.85135501099},3.456941765388234E-3,{"$f":"IF('[2]FISCAL(M)'!$L216=\"\",\"\",'[2]FISCAL(M)'!$L216)","v":322.91852150865651},{"$f":"+'[2]REAL(A)'!$AP$27","v":164098.834355011},0.19678294655649742,56200.946617284601,{"$f":"'[2]Gráfico REM'!BG210","v":11406.167155582803},{"$f":"'[2]Gráfico REM'!BH210","v":40767.655730020568},{"$f":"'[2]Gráfico REM'!BI210","v":4027.1237316812299},11.876469122916934,-5.0232903477313684,19.044680139538951,1.1913583792828808,81944.557714010603,{"$f":"'[2]Gráfico REM'!BK210","v":11933.899658592803},{"$f":"'[2]Gráfico REM'!BL210","v":55392.860446920567},{"$f":"'[2]Gráfico REM'!BM210","v":14617.797608497232},13.236962824542076,-4.6799968598970736,17.502540782023736,15.065540214335993]
[2007,"abril","2007-abril",{"$f":"IF('[2]REAL IPC(M)'!$AL217=\"\",\"\",+'[2]REAL IPC(M)'!$AL217)","v":6.6319601629696745},{"$f":"IF('[2]REAL IPC(M)'!$BE217=\"\",\"\",+'[2]REAL IPC(M)'!$BE217)","v":8.1100810905043055},{"$f":"IF('[2]REAL IPC(M)'!$AM217=\"\",\"\",+'[2]REAL IPC(M)'!$AM217)","v":6.235227912211605},{"$f":"IF('[2]REAL IPC(M)'!$BI217=\"\",\"\",+'[2]REAL IPC(M)'!$BI217)","v":7.7190095370021083},{"$f":"IF('[2]REAL IMAE(M)'!BJ217=\"\",\"\",'[2]REAL IMAE(M)'!BJ217)","v":"n.d."},{"$f":"IF('[2]REAL IMAE(M)'!BK217=\"\",\"\",'[2]REAL IMAE(M)'!BK217)","v":"n.d."},{"$f":"IF('[2]REAL IMAE(M)'!BN217=\"\",\"\",'[2]REAL IMAE(M)'!BN217)","v":"n.d."},{"$f":"IF('[2]REAL IMAE(M)'!BO217=\"\",\"\",'[2]REAL IMAE(M)'!BO217)","v":"n.d."},{"$f":"IF('[2]EXT RIN(M)'!$K217=\"\",\"\",'[2]EXT RIN(M)'!$K217)","v":15581.758713182253},"",{"$f":"IF('[2]EXT RIN(M)'!$L217=\"\",\"\",'[2]EXT RIN(M)'!$L217)","v":17230.124370508533},"",{"$f":"IF('[2]MONE(M)CARD'!EG217=\"\",\"\",'[2]MONE(M)CARD'!EG217)","v":11894.261419790208},{"$f":"IF('[2]MONE(M)CARD'!EK217=\"\",\"\",'[2]MONE(M)CARD'!EK217)","v":19941.408595962159},{"$f":"IF('[2]MONE(M)CARD'!EP217=\"\",\"\",'[2]MONE(M)CARD'!EP217)","v":9342.5211731848249},{"$f":"IF('[2]MONE(M)CARD'!ES217=\"\",\"\",'[2]MONE(M)CARD'!ES217)","v":25.384478364070517},{"$f":"IF('[2]MONE(M)CARD'!EV217=\"\",\"\",'[2]MONE(M)CARD'!EV217)","v":16.813276869848416},{"$f":"IF('[2]MONE(M)CARD'!EZ217=\"\",\"\",'[2]MONE(M)CARD'!EZ217)","v":14.227514040286016},{"$f":"IF('[2]MONE(M)CAPARD'!FC217=\"\",\"\",'[2]MONE(M)CAPARD'!FC217)","v":14516.675191200209},{"$f":"IF('[2]MONE(M)CAPARD'!FG217=\"\",\"\",'[2]MONE(M)CAPARD'!FG217)","v":32315.468513072163},{"$f":"IF('[2]MONE(M)CAPARD'!FL217=\"\",\"\",'[2]MONE(M)CAPARD'!FL217)","v":9342.5211731848249},{"$f":"IF('[2]MONE(M)CAPARD'!FO217=\"\",\"\",'[2]MONE(M)CAPARD'!FO217)","v":28.301202171709704},{"$f":"IF('[2]MONE(M)CAPARD'!FR217=\"\",\"\",'[2]MONE(M)CAPARD'!FR217)","v":17.845451499762376},{"$f":"IF('[2]MONE(M)CAPARD'!FV217=\"\",\"\",'[2]MONE(M)CAPARD'!FV217)","v":15.737872663254681},{"$f":"IF('[2]MONE(M)CARD'!FV217=\"\",\"\",'[2]MONE(M)CARD'!FV217)","v":383.59167629063234},{"$f":"IF('[2]MONE(M)CARD'!GD217=\"\",\"\",'[2]MONE(M)CARD'!GD217)","v":12.278593604646373},{"$f":"IF('[2]MONE(M)CARD'!GE217=\"\",\"\",'[2]MONE(M)CARD'!GE217)","v":2902.9829334756982},5.6421064182077929,{"$f":"IF('[9]II.2.Balance OSD-Activos'!J75=\"\",\"\",'[9]II.2.Balance OSD-Activos'!J75)","v":14.461426771640692},{"$f":"IF('[9]II.2.Balance OSD-Activos'!N75=\"\",\"\",'[9]II.2.Balance OSD-Activos'!N75)","v":140.02775812729072},{"$f":"IF('[9]II.2.Balance OSD-Activos'!R75=\"\",\"\",'[9]II.2.Balance OSD-Activos'!R75)","v":12649.985541508673},{"$f":"IF('[9]II.2.Balance OSD-Activos'!S75=\"\",\"\",'[9]II.2.Balance OSD-Activos'!S75)","v":13543.312365976168},12664.446968280314,{"$f":"IF(OR(AF210=\"\",AG210=\"\",AH210=\"\",AI210=\"\"),\"\",SUM(AF210:AI210))","v":26347.787092383773},18.632468282657943,16.844794991005372,18.058679586985527,16.842782158726742,19.752039742871986,18.327873313223343,0.38400181596309935,{"$f":"IF('[2]MONE(M)CAPARD'!GS217=\"\",\"\",'[2]MONE(M)CAPARD'!GS217)","v":3529.4132518058509},{"$f":"IF('[2]MONE(M)CARD'!HA217=\"\",\"\",'[2]MONE(M)CAPARD'!HA217)","v":3203.2696657656984},{"$f":"IF('[2]MONE(M)CAPARD'!HB217=\"\",\"\",'[2]MONE(M)CAPARD'!HB217)","v":326.14358604015251},"n.d.",{"$f":"IF('[10]II.2.Balance OSD-Activos'!J75=\"\",\"\",'[10]II.2.Balance OSD-Activos'!J75)","v":192.95881704164069},{"$f":"IF('[10]II.2.Balance OSD-Activos'!N75=\"\",\"\",'[10]II.2.Balance OSD-Activos'!N75)","v":620.83563684729074},{"$f":"IF('[10]II.2.Balance OSD-Activos'!R75=\"\",\"\",'[10]II.2.Balance OSD-Activos'!R75)","v":19472.443673528673},{"$f":"IF('[10]II.2.Balance OSD-Activos'!S75=\"\",\"\",'[10]II.2.Balance OSD-Activos'!S75)","v":20386.686771516172},{"$f":"IFERROR(+AW210+AY210,\"n.d.\")","v":19665.402490570312},40672.924898933779,-31.135462337518128,13.266854493357471,16.307974606150722,13.995205547307975,16.409377472595409,14.866970928626966,-1.4723581253633924,{"$f":"IF('[2]MONE(M)CAPARD'!AS217=\"\",\"\",'[2]MONE(M)CAPARD'!AS217)","v":5.98},{"$f":"IF('[2]MONE(M)CAPARD'!AT217=\"\",\"\",'[2]MONE(M)CAPARD'!AT217)","v":"n.a."},{"$f":"IF('[2]MONE(M)CAPARD'!AU217=\"\",\"\",'[2]MONE(M)CAPARD'!AU217)","v":5.5},{"$f":"IF('[2]MONE(M)CAPARD'!AV217=\"\",\"\",'[2]MONE(M)CAPARD'!AV217)","v":6},{"$f":"IF('[2]MONE(M)CAPARD'!AW217=\"\",\"\",'[2]MONE(M)CAPARD'!AW217)","v":"n.a."},{"$f":"IF('[2]MONE(M)CAPARD'!AX217=\"\",\"\",'[2]MONE(M)CAPARD'!AX217)","v":7},{"$f":"IF('[2]MONE(M)CAPARD'!AY217=\"\",\"\",'[2]MONE(M)CAPARD'!AY217)","v":"n.a."},{"$f":"IF('[2]FISCAL(M)'!$K217=\"\",\"\",'[2]FISCAL(M)'!$K217)","v":417.74000805146767},{"$f":"IF('[2]FISCAL(M)'!$L217=\"\",\"\",'[2]FISCAL(M)'!$L217)","v":316.07000812946768},{"$f":"IF('[2]FISCAL(M)'!$AY217=\"\",\"\",'[2]FISCAL(M)'!$AY217)","v":"n.d."},{"$f":"IF('[2]FISCAL(M)'!$BI217=\"\",\"\",'[2]FISCAL(M)'!$BI217)","v":"n.d."},{"$f":"IF('[2]FISCAL(M)'!$BS217=\"\",\"\",'[2]FISCAL(M)'!$BS217)","v":"n.d."},{"$f":"IF('[2]FISCAL(M)'!$AZ217=\"\",\"\",'[2]FISCAL(M)'!$AZ217)","v":"n.d."},{"$f":"IF('[2]FISCAL(M)'!$BJ217=\"\",\"\",'[2]FISCAL(M)'!$BJ217)","v":"n.d."},{"$f":"IF('[2]FISCAL(M)'!$BT217=\"\",\"\",'[2]FISCAL(M)'!$BT217)","v":"n.d."},{"$f":"IF('[3]MONE(M)'!$AO217=\"\",\"\",'[3]MONE(M)'!$AO217)","v":4801259.8460711781},{"$f":"IF('[4]MONE(M)'!$AO217=\"\",\"\",'[4]MONE(M)'!$AO217)","v":8341.9750857100007},{"$f":"IF('[5]MONE(M)'!$AO217=\"\",\"\",'[5]MONE(M)'!$AO217)","v":69102.012597915294},{"$f":"+'[1]MONE(M)'!$AO217","v":102274.88345151802},{"$f":"IF('[6]MONE(M)'!$AO217=\"\",\"\",'[6]MONE(M)'!$AO217)","v":33729.893669919482},{"$f":"IF('[7]MONE(M)'!$AO217=\"\",\"\",'[7]MONE(M)'!$AO217)","v":239405.38668714999},{"$f":"IF('[8]MONE(M)'!$AO217=\"\",\"\",'[8]MONE(M)'!$AO217)","v":14115.317206569998},30.64422951138188,8.0040097431943291,16.884218131623019,30.364243355315246,27.41491833764147,17.072849164885163,8.2444632926105257,{"$f":"IF('[2]FISCAL(M)'!$K217=\"\",\"\",'[2]FISCAL(M)'!$K217)","v":417.74000805146767},{"$f":"+'[2]REAL(A)'!$AO$27","v":142802.85135501099},0.29252917857568328,{"$f":"IF('[2]FISCAL(M)'!$L217=\"\",\"\",'[2]FISCAL(M)'!$L217)","v":316.07000812946768},{"$f":"+'[2]REAL(A)'!$AP$27","v":164098.834355011},0.19260953886222168,56863.687447389893,{"$f":"'[2]Gráfico REM'!BG211","v":11527.232152154287},{"$f":"'[2]Gráfico REM'!BH211","v":41317.962015178593},{"$f":"'[2]Gráfico REM'!BI211","v":4018.4932800570118},12.238757858770665,-2.24853297134604,18.71332878687857,-1.1668888187849613,81491.871148687889,{"$f":"'[2]Gráfico REM'!BK211","v":12048.744747530287},{"$f":"'[2]Gráfico REM'!BL211","v":55433.279221748591},{"$f":"'[2]Gráfico REM'!BM211","v":14009.847179409011},11.879447701034884,-1.9342680485897157,15.860027530583798,10.248118140582596]
[2007,"mayo ","2007-mayo ",{"$f":"IF('[2]REAL IPC(M)'!$AL218=\"\",\"\",+'[2]REAL IPC(M)'!$AL218)","v":6.293549112160024},{"$f":"IF('[2]REAL IPC(M)'!$BE218=\"\",\"\",+'[2]REAL IPC(M)'!$BE218)","v":8.0705470955343408},{"$f":"IF('[2]REAL IPC(M)'!$AM218=\"\",\"\",+'[2]REAL IPC(M)'!$AM218)","v":5.9836707303433823},{"$f":"IF('[2]REAL IPC(M)'!$BI218=\"\",\"\",+'[2]REAL IPC(M)'!$BI218)","v":7.7007410466809922},{"$f":"IF('[2]REAL IMAE(M)'!BJ218=\"\",\"\",'[2]REAL IMAE(M)'!BJ218)","v":"n.d."},{"$f":"IF('[2]REAL IMAE(M)'!BK218=\"\",\"\",'[2]REAL IMAE(M)'!BK218)","v":"n.d."},{"$f":"IF('[2]REAL IMAE(M)'!BN218=\"\",\"\",'[2]REAL IMAE(M)'!BN218)","v":"n.d."},{"$f":"IF('[2]REAL IMAE(M)'!BO218=\"\",\"\",'[2]REAL IMAE(M)'!BO218)","v":"n.d."},{"$f":"IF('[2]EXT RIN(M)'!$K218=\"\",\"\",'[2]EXT RIN(M)'!$K218)","v":15791.967384072588},"",{"$f":"IF('[2]EXT RIN(M)'!$L218=\"\",\"\",'[2]EXT RIN(M)'!$L218)","v":17474.150513552489},"",{"$f":"IF('[2]MONE(M)CARD'!EG218=\"\",\"\",'[2]MONE(M)CARD'!EG218)","v":11927.959370668272},{"$f":"IF('[2]MONE(M)CARD'!EK218=\"\",\"\",'[2]MONE(M)CARD'!EK218)","v":20518.606977055555},{"$f":"IF('[2]MONE(M)CARD'!EP218=\"\",\"\",'[2]MONE(M)CARD'!EP218)","v":9397.612800681527},{"$f":"IF('[2]MONE(M)CARD'!ES218=\"\",\"\",'[2]MONE(M)CARD'!ES218)","v":29.21184227452278},{"$f":"IF('[2]MONE(M)CARD'!EV218=\"\",\"\",'[2]MONE(M)CARD'!EV218)","v":20.272595981131559},{"$f":"IF('[2]MONE(M)CARD'!EZ218=\"\",\"\",'[2]MONE(M)CARD'!EZ218)","v":16.609136821914138},{"$f":"IF('[2]MONE(M)CAPARD'!FC218=\"\",\"\",'[2]MONE(M)CAPARD'!FC218)","v":14402.491605668274},{"$f":"IF('[2]MONE(M)CAPARD'!FG218=\"\",\"\",'[2]MONE(M)CAPARD'!FG218)","v":33941.777198405558},{"$f":"IF('[2]MONE(M)CAPARD'!FL218=\"\",\"\",'[2]MONE(M)CAPARD'!FL218)","v":9397.612800681527},{"$f":"IF('[2]MONE(M)CAPARD'!FO218=\"\",\"\",'[2]MONE(M)CAPARD'!FO218)","v":29.705821125925013},{"$f":"IF('[2]MONE(M)CAPARD'!FR218=\"\",\"\",'[2]MONE(M)CAPARD'!FR218)","v":21.663843946887205},{"$f":"IF('[2]MONE(M)CAPARD'!FV218=\"\",\"\",'[2]MONE(M)CAPARD'!FV218)","v":18.706528428794389},{"$f":"IF('[2]MONE(M)CARD'!FV218=\"\",\"\",'[2]MONE(M)CARD'!FV218)","v":379.48707904759817},{"$f":"IF('[2]MONE(M)CARD'!GD218=\"\",\"\",'[2]MONE(M)CARD'!GD218)","v":13.228866648205621},{"$f":"IF('[2]MONE(M)CARD'!GE218=\"\",\"\",'[2]MONE(M)CARD'!GE218)","v":2842.8418938738037},-1.0158747489297681,{"$f":"IF('[9]II.2.Balance OSD-Activos'!J76=\"\",\"\",'[9]II.2.Balance OSD-Activos'!J76)","v":14.711363792182933},{"$f":"IF('[9]II.2.Balance OSD-Activos'!N76=\"\",\"\",'[9]II.2.Balance OSD-Activos'!N76)","v":141.29859898572943},{"$f":"IF('[9]II.2.Balance OSD-Activos'!R76=\"\",\"\",'[9]II.2.Balance OSD-Activos'!R76)","v":12803.970684138347},{"$f":"IF('[9]II.2.Balance OSD-Activos'!S76=\"\",\"\",'[9]II.2.Balance OSD-Activos'!S76)","v":13879.423483454906},12818.68204793053,26839.404130371164,14.29497092075367,17.924048301571037,18.721563855434841,17.928350551095139,21.067085364764935,19.533034961431618,1.205161648208275,{"$f":"IF('[2]MONE(M)CAPARD'!GS218=\"\",\"\",'[2]MONE(M)CAPARD'!GS218)","v":3562.9249929720168},{"$f":"IF('[2]MONE(M)CARD'!HA218=\"\",\"\",'[2]MONE(M)CAPARD'!HA218)","v":3189.8891451338036},{"$f":"IF('[2]MONE(M)CAPARD'!HB218=\"\",\"\",'[2]MONE(M)CAPARD'!HB218)","v":373.03584783821316},"n.d.",{"$f":"IF('[10]II.2.Balance OSD-Activos'!J76=\"\",\"\",'[10]II.2.Balance OSD-Activos'!J76)","v":187.59033393218289},{"$f":"IF('[10]II.2.Balance OSD-Activos'!N76=\"\",\"\",'[10]II.2.Balance OSD-Activos'!N76)","v":556.19437323572936},{"$f":"IF('[10]II.2.Balance OSD-Activos'!R76=\"\",\"\",'[10]II.2.Balance OSD-Activos'!R76)","v":20293.012658638349},{"$f":"IF('[10]II.2.Balance OSD-Activos'!S76=\"\",\"\",'[10]II.2.Balance OSD-Activos'!S76)","v":21110.859768794908},20480.60299257053,42147.65713460117,-33.631309395516482,16.654752998615031,2.3438523346840157,17.477570016411505,19.082306391681094,17.638849242695585,2.7718783140686192,{"$f":"IF('[2]MONE(M)CAPARD'!AS218=\"\",\"\",'[2]MONE(M)CAPARD'!AS218)","v":5.98},{"$f":"IF('[2]MONE(M)CAPARD'!AT218=\"\",\"\",'[2]MONE(M)CAPARD'!AT218)","v":"n.a."},{"$f":"IF('[2]MONE(M)CAPARD'!AU218=\"\",\"\",'[2]MONE(M)CAPARD'!AU218)","v":5.5},{"$f":"IF('[2]MONE(M)CAPARD'!AV218=\"\",\"\",'[2]MONE(M)CAPARD'!AV218)","v":6},{"$f":"IF('[2]MONE(M)CAPARD'!AW218=\"\",\"\",'[2]MONE(M)CAPARD'!AW218)","v":"n.a."},{"$f":"IF('[2]MONE(M)CAPARD'!AX218=\"\",\"\",'[2]MONE(M)CAPARD'!AX218)","v":7},{"$f":"IF('[2]MONE(M)CAPARD'!AY218=\"\",\"\",'[2]MONE(M)CAPARD'!AY218)","v":"n.a."},{"$f":"IF('[2]FISCAL(M)'!$K218=\"\",\"\",'[2]FISCAL(M)'!$K218)","v":451.3313009788925},{"$f":"IF('[2]FISCAL(M)'!$L218=\"\",\"\",'[2]FISCAL(M)'!$L218)","v":300.9632069428925},{"$f":"IF('[2]FISCAL(M)'!$AY218=\"\",\"\",'[2]FISCAL(M)'!$AY218)","v":"n.d."},{"$f":"IF('[2]FISCAL(M)'!$BI218=\"\",\"\",'[2]FISCAL(M)'!$BI218)","v":"n.d."},{"$f":"IF('[2]FISCAL(M)'!$BS218=\"\",\"\",'[2]FISCAL(M)'!$BS218)","v":"n.d."},{"$f":"IF('[2]FISCAL(M)'!$AZ218=\"\",\"\",'[2]FISCAL(M)'!$AZ218)","v":"n.d."},{"$f":"IF('[2]FISCAL(M)'!$BJ218=\"\",\"\",'[2]FISCAL(M)'!$BJ218)","v":"n.d."},{"$f":"IF('[2]FISCAL(M)'!$BT218=\"\",\"\",'[2]FISCAL(M)'!$BT218)","v":"n.d."},{"$f":"IF('[3]MONE(M)'!$AO218=\"\",\"\",'[3]MONE(M)'!$AO218)","v":4929688.3884895658},{"$f":"IF('[4]MONE(M)'!$AO218=\"\",\"\",'[4]MONE(M)'!$AO218)","v":8379.4729804599992},{"$f":"IF('[5]MONE(M)'!$AO218=\"\",\"\",'[5]MONE(M)'!$AO218)","v":69403.257484660266},{"$f":"+'[1]MONE(M)'!$AO218","v":104150.76775869736},{"$f":"IF('[6]MONE(M)'!$AO218=\"\",\"\",'[6]MONE(M)'!$AO218)","v":34291.579764232287},{"$f":"IF('[7]MONE(M)'!$AO218=\"\",\"\",'[7]MONE(M)'!$AO218)","v":245842.03716631001},{"$f":"IF('[8]MONE(M)'!$AO218=\"\",\"\",'[8]MONE(M)'!$AO218)","v":15177.051322940002},30.547584691232956,8.3651038955635073,16.586310051452834,29.807444212715239,27.127831939484981,18.199274136549469,14.547809901707609,{"$f":"IF('[2]FISCAL(M)'!$K218=\"\",\"\",'[2]FISCAL(M)'!$K218)","v":451.3313009788925},{"$f":"+'[2]REAL(A)'!$AO$27","v":142802.85135501099},0.31605202325888654,{"$f":"IF('[2]FISCAL(M)'!$L218=\"\",\"\",'[2]FISCAL(M)'!$L218)","v":300.9632069428925},{"$f":"+'[2]REAL(A)'!$AP$27","v":164098.834355011},0.1834036226557158,57631.201824465905,{"$f":"'[2]Gráfico REM'!BG212","v":11571.077872319463},{"$f":"'[2]Gráfico REM'!BH212","v":41955.592410331061},{"$f":"'[2]Gráfico REM'!BI212","v":4104.531541815385},12.409409010093597,-2.0877646188981802,19.441817076294889,-5.0937787010846609,83775.788968387904,{"$f":"'[2]Gráfico REM'!BK212","v":12113.697041039464},{"$f":"'[2]Gráfico REM'!BL212","v":57132.643733271063},{"$f":"'[2]Gráfico REM'!BM212","v":14529.448194077388},13.02838712265415,-1.5343702851604024,18.1014122455726,8.0990557061350277]
[2007,"junio ","2007-junio ",{"$f":"IF('[2]REAL IPC(M)'!$AL219=\"\",\"\",+'[2]REAL IPC(M)'!$AL219)","v":6.1286001339584617},{"$f":"IF('[2]REAL IPC(M)'!$BE219=\"\",\"\",+'[2]REAL IPC(M)'!$BE219)","v":8.0341676985078223},{"$f":"IF('[2]REAL IPC(M)'!$AM219=\"\",\"\",+'[2]REAL IPC(M)'!$AM219)","v":5.8803912850155626},{"$f":"IF('[2]REAL IPC(M)'!$BI219=\"\",\"\",+'[2]REAL IPC(M)'!$BI219)","v":7.685299957199665},{"$f":"IF('[2]REAL IMAE(M)'!BJ219=\"\",\"\",'[2]REAL IMAE(M)'!BJ219)","v":"n.d."},{"$f":"IF('[2]REAL IMAE(M)'!BK219=\"\",\"\",'[2]REAL IMAE(M)'!BK219)","v":"n.d."},{"$f":"IF('[2]REAL IMAE(M)'!BN219=\"\",\"\",'[2]REAL IMAE(M)'!BN219)","v":"n.d."},{"$f":"IF('[2]REAL IMAE(M)'!BO219=\"\",\"\",'[2]REAL IMAE(M)'!BO219)","v":"n.d."},{"$f":"IF('[2]EXT RIN(M)'!$K219=\"\",\"\",'[2]EXT RIN(M)'!$K219)","v":16139.297376662204},"",{"$f":"IF('[2]EXT RIN(M)'!$L219=\"\",\"\",'[2]EXT RIN(M)'!$L219)","v":17882.353390912253},"",{"$f":"IF('[2]MONE(M)CARD'!EG219=\"\",\"\",'[2]MONE(M)CARD'!EG219)","v":12102.489356032398},{"$f":"IF('[2]MONE(M)CARD'!EK219=\"\",\"\",'[2]MONE(M)CARD'!EK219)","v":20680.932965409127},{"$f":"IF('[2]MONE(M)CARD'!EP219=\"\",\"\",'[2]MONE(M)CARD'!EP219)","v":9424.4892971634181},{"$f":"IF('[2]MONE(M)CARD'!ES219=\"\",\"\",'[2]MONE(M)CARD'!ES219)","v":25.202313266644616},{"$f":"IF('[2]MONE(M)CARD'!EV219=\"\",\"\",'[2]MONE(M)CARD'!EV219)","v":20.227902330754311},{"$f":"IF('[2]MONE(M)CARD'!EZ219=\"\",\"\",'[2]MONE(M)CARD'!EZ219)","v":16.975726013602287},{"$f":"IF('[2]MONE(M)CAPARD'!FC219=\"\",\"\",'[2]MONE(M)CAPARD'!FC219)","v":14594.171790622395},{"$f":"IF('[2]MONE(M)CAPARD'!FG219=\"\",\"\",'[2]MONE(M)CAPARD'!FG219)","v":34133.453803579134},{"$f":"IF('[2]MONE(M)CAPARD'!FL219=\"\",\"\",'[2]MONE(M)CAPARD'!FL219)","v":9424.4892971634181},{"$f":"IF('[2]MONE(M)CAPARD'!FO219=\"\",\"\",'[2]MONE(M)CAPARD'!FO219)","v":26.921061346425667},{"$f":"IF('[2]MONE(M)CAPARD'!FR219=\"\",\"\",'[2]MONE(M)CAPARD'!FR219)","v":21.264756362974047},{"$f":"IF('[2]MONE(M)CAPARD'!FV219=\"\",\"\",'[2]MONE(M)CAPARD'!FV219)","v":18.683273477700958},{"$f":"IF('[2]MONE(M)CARD'!FV219=\"\",\"\",'[2]MONE(M)CARD'!FV219)","v":371.17765130946748},{"$f":"IF('[2]MONE(M)CARD'!GD219=\"\",\"\",'[2]MONE(M)CARD'!GD219)","v":14.337460902288219},{"$f":"IF('[2]MONE(M)CARD'!GE219=\"\",\"\",'[2]MONE(M)CARD'!GE219)","v":2945.7860765842879},14.1272734764335,{"$f":"IF('[9]II.2.Balance OSD-Activos'!J77=\"\",\"\",'[9]II.2.Balance OSD-Activos'!J77)","v":13.933930013957603},{"$f":"IF('[9]II.2.Balance OSD-Activos'!N77=\"\",\"\",'[9]II.2.Balance OSD-Activos'!N77)","v":144.58890970825095},{"$f":"IF('[9]II.2.Balance OSD-Activos'!R77=\"\",\"\",'[9]II.2.Balance OSD-Activos'!R77)","v":12988.344480893553},{"$f":"IF('[9]II.2.Balance OSD-Activos'!S77=\"\",\"\",'[9]II.2.Balance OSD-Activos'!S77)","v":14169.440048888837},13002.278410907511,27316.307369504597,-39.527296694453241,21.238863922676178,23.426785295809836,21.36970150911306,18.873635733020457,20.011495995291551,0.47846103385993288,{"$f":"IF('[2]MONE(M)CAPARD'!GS219=\"\",\"\",'[2]MONE(M)CAPARD'!GS219)","v":3510.5710278016027},{"$f":"IF('[2]MONE(M)CARD'!HA219=\"\",\"\",'[2]MONE(M)CAPARD'!HA219)","v":3298.7194754742882},{"$f":"IF('[2]MONE(M)CAPARD'!HB219=\"\",\"\",'[2]MONE(M)CAPARD'!HB219)","v":211.85155232731449},"n.d.",{"$f":"IF('[10]II.2.Balance OSD-Activos'!J77=\"\",\"\",'[10]II.2.Balance OSD-Activos'!J77)","v":187.57978772395762},{"$f":"IF('[10]II.2.Balance OSD-Activos'!N77=\"\",\"\",'[10]II.2.Balance OSD-Activos'!N77)","v":556.54014555825097},{"$f":"IF('[10]II.2.Balance OSD-Activos'!R77=\"\",\"\",'[10]II.2.Balance OSD-Activos'!R77)","v":20578.252766043548},{"$f":"IF('[10]II.2.Balance OSD-Activos'!S77=\"\",\"\",'[10]II.2.Balance OSD-Activos'!S77)","v":21500.813418658836},20765.832553767505,42823.186117984587,-33.639409923152229,18.222225038868167,-3.3286166529753691,19.070462695790379,17.854864987715267,17.697030611890831,5.8181369195246191E-2,{"$f":"IF('[2]MONE(M)CAPARD'!AS219=\"\",\"\",'[2]MONE(M)CAPARD'!AS219)","v":5.98},{"$f":"IF('[2]MONE(M)CAPARD'!AT219=\"\",\"\",'[2]MONE(M)CAPARD'!AT219)","v":"n.a."},{"$f":"IF('[2]MONE(M)CAPARD'!AU219=\"\",\"\",'[2]MONE(M)CAPARD'!AU219)","v":5.5},{"$f":"IF('[2]MONE(M)CAPARD'!AV219=\"\",\"\",'[2]MONE(M)CAPARD'!AV219)","v":6},{"$f":"IF('[2]MONE(M)CAPARD'!AW219=\"\",\"\",'[2]MONE(M)CAPARD'!AW219)","v":"n.a."},{"$f":"IF('[2]MONE(M)CAPARD'!AX219=\"\",\"\",'[2]MONE(M)CAPARD'!AX219)","v":7},{"$f":"IF('[2]MONE(M)CAPARD'!AY219=\"\",\"\",'[2]MONE(M)CAPARD'!AY219)","v":"n.a."},{"$f":"IF('[2]FISCAL(M)'!$K219=\"\",\"\",'[2]FISCAL(M)'!$K219)","v":441.71946810681442},{"$f":"IF('[2]FISCAL(M)'!$L219=\"\",\"\",'[2]FISCAL(M)'!$L219)","v":326.01024892381434},{"$f":"IF('[2]FISCAL(M)'!$AY219=\"\",\"\",'[2]FISCAL(M)'!$AY219)","v":48501.982935674969},{"$f":"IF('[2]FISCAL(M)'!$BI219=\"\",\"\",'[2]FISCAL(M)'!$BI219)","v":22552.325935674962},{"$f":"IF('[2]FISCAL(M)'!$BS219=\"\",\"\",'[2]FISCAL(M)'!$BS219)","v":25949.657000000003},{"$f":"IF('[2]FISCAL(M)'!$AZ219=\"\",\"\",'[2]FISCAL(M)'!$AZ219)","v":59400.24307797497},{"$f":"IF('[2]FISCAL(M)'!$BJ219=\"\",\"\",'[2]FISCAL(M)'!$BJ219)","v":25181.764581954962},{"$f":"IF('[2]FISCAL(M)'!$BT219=\"\",\"\",'[2]FISCAL(M)'!$BT219)","v":34218.478496020005},{"$f":"IF('[3]MONE(M)'!$AO219=\"\",\"\",'[3]MONE(M)'!$AO219)","v":5071442.3415026702},{"$f":"IF('[4]MONE(M)'!$AO219=\"\",\"\",'[4]MONE(M)'!$AO219)","v":8430.091471830001},{"$f":"IF('[5]MONE(M)'!$AO219=\"\",\"\",'[5]MONE(M)'!$AO219)","v":70205.212432141532},{"$f":"+'[1]MONE(M)'!$AO219","v":105798.49536672767},{"$f":"IF('[6]MONE(M)'!$AO219=\"\",\"\",'[6]MONE(M)'!$AO219)","v":35397.684409204674},{"$f":"IF('[7]MONE(M)'!$AO219=\"\",\"\",'[7]MONE(M)'!$AO219)","v":255504.42318573003},{"$f":"IF('[8]MONE(M)'!$AO219=\"\",\"\",'[8]MONE(M)'!$AO219)","v":15387.371402519999},31.167661346131158,8.6634963409532482,12.992649198938079,31.75618058342744,29.530484303184188,19.55947240448188,14.312721944849716,{"$f":"IF('[2]FISCAL(M)'!$K219=\"\",\"\",'[2]FISCAL(M)'!$K219)","v":441.71946810681442},{"$f":"+'[2]REAL(A)'!$AO$27","v":142802.85135501099},0.30932118225615129,{"$f":"IF('[2]FISCAL(M)'!$L219=\"\",\"\",'[2]FISCAL(M)'!$L219)","v":326.01024892381434},{"$f":"+'[2]REAL(A)'!$AP$27","v":164098.834355011},0.19866701077140173,58356.248941149366,{"$f":"'[2]Gráfico REM'!BG213","v":11641.422160896576},{"$f":"'[2]Gráfico REM'!BH213","v":42573.906829656298},{"$f":"'[2]Gráfico REM'!BI213","v":4140.9199505964916},12.780846022699244,0.18994910916818597,18.888105302795942,-4.0039097185724408,84697.53948170536,{"$f":"'[2]Gráfico REM'!BK213","v":12176.519538126577},{"$f":"'[2]Gráfico REM'!BL213","v":57961.278232176293},{"$f":"'[2]Gráfico REM'!BM213","v":14559.741711402492},12.464112474988486,0.63352884148022426,17.638112672906846,4.4455601543456069]
[2007,"julio","2007-julio",{"$f":"IF('[2]REAL IPC(M)'!$AL220=\"\",\"\",+'[2]REAL IPC(M)'!$AL220)","v":6.0055401662049812},{"$f":"IF('[2]REAL IPC(M)'!$BE220=\"\",\"\",+'[2]REAL IPC(M)'!$BE220)","v":7.9999096892493959},{"$f":"IF('[2]REAL IPC(M)'!$AM220=\"\",\"\",+'[2]REAL IPC(M)'!$AM220)","v":5.8076625814287297},{"$f":"IF('[2]REAL IPC(M)'!$BI220=\"\",\"\",+'[2]REAL IPC(M)'!$BI220)","v":7.6715402008380673},{"$f":"IF('[2]REAL IMAE(M)'!BJ220=\"\",\"\",'[2]REAL IMAE(M)'!BJ220)","v":"n.d."},{"$f":"IF('[2]REAL IMAE(M)'!BK220=\"\",\"\",'[2]REAL IMAE(M)'!BK220)","v":"n.d."},{"$f":"IF('[2]REAL IMAE(M)'!BN220=\"\",\"\",'[2]REAL IMAE(M)'!BN220)","v":"n.d."},{"$f":"IF('[2]REAL IMAE(M)'!BO220=\"\",\"\",'[2]REAL IMAE(M)'!BO220)","v":"n.d."},{"$f":"IF('[2]EXT RIN(M)'!$K220=\"\",\"\",'[2]EXT RIN(M)'!$K220)","v":16690.896929464252},"",{"$f":"IF('[2]EXT RIN(M)'!$L220=\"\",\"\",'[2]EXT RIN(M)'!$L220)","v":18573.760170741552},"",{"$f":"IF('[2]MONE(M)CARD'!EG220=\"\",\"\",'[2]MONE(M)CARD'!EG220)","v":12232.10619547846},{"$f":"IF('[2]MONE(M)CARD'!EK220=\"\",\"\",'[2]MONE(M)CARD'!EK220)","v":21670.316926141975},{"$f":"IF('[2]MONE(M)CARD'!EP220=\"\",\"\",'[2]MONE(M)CARD'!EP220)","v":9436.4269074543918},{"$f":"IF('[2]MONE(M)CARD'!ES220=\"\",\"\",'[2]MONE(M)CARD'!ES220)","v":23.051669364241324},{"$f":"IF('[2]MONE(M)CARD'!EV220=\"\",\"\",'[2]MONE(M)CARD'!EV220)","v":22.553322142722209},{"$f":"IF('[2]MONE(M)CARD'!EZ220=\"\",\"\",'[2]MONE(M)CARD'!EZ220)","v":18.63954649077122},{"$f":"IF('[2]MONE(M)CAPARD'!FC220=\"\",\"\",'[2]MONE(M)CAPARD'!FC220)","v":14794.84396575846},{"$f":"IF('[2]MONE(M)CAPARD'!FG220=\"\",\"\",'[2]MONE(M)CAPARD'!FG220)","v":35050.104380821977},{"$f":"IF('[2]MONE(M)CAPARD'!FL220=\"\",\"\",'[2]MONE(M)CAPARD'!FL220)","v":9436.4269074543918},{"$f":"IF('[2]MONE(M)CAPARD'!FO220=\"\",\"\",'[2]MONE(M)CAPARD'!FO220)","v":25.446905248153161},{"$f":"IF('[2]MONE(M)CAPARD'!FR220=\"\",\"\",'[2]MONE(M)CAPARD'!FR220)","v":23.024895973130377},{"$f":"IF('[2]MONE(M)CAPARD'!FV220=\"\",\"\",'[2]MONE(M)CAPARD'!FV220)","v":20.045084303157857},{"$f":"IF('[2]MONE(M)CARD'!FV220=\"\",\"\",'[2]MONE(M)CARD'!FV220)","v":372.86232007327663},{"$f":"IF('[2]MONE(M)CARD'!GD220=\"\",\"\",'[2]MONE(M)CARD'!GD220)","v":15.183332078521781},{"$f":"IF('[2]MONE(M)CARD'!GE220=\"\",\"\",'[2]MONE(M)CARD'!GE220)","v":2918.7390701496702},17.404921212051573,{"$f":"IF('[9]II.2.Balance OSD-Activos'!J78=\"\",\"\",'[9]II.2.Balance OSD-Activos'!J78)","v":14.515978102006732},{"$f":"IF('[9]II.2.Balance OSD-Activos'!N78=\"\",\"\",'[9]II.2.Balance OSD-Activos'!N78)","v":136.45407786973621},{"$f":"IF('[9]II.2.Balance OSD-Activos'!R78=\"\",\"\",'[9]II.2.Balance OSD-Activos'!R78)","v":13207.943934102752},{"$f":"IF('[9]II.2.Balance OSD-Activos'!S78=\"\",\"\",'[9]II.2.Balance OSD-Activos'!S78)","v":14547.527078666579},13222.459912204758,27906.441068741071,-41.239983234449774,18.852577947503878,13.341048626658147,18.986313507357778,22.652406470310815,20.774367335141708,0.76287133985015743,{"$f":"IF('[2]MONE(M)CAPARD'!GS220=\"\",\"\",'[2]MONE(M)CAPARD'!GS220)","v":3441.721477003407},{"$f":"IF('[2]MONE(M)CARD'!HA220=\"\",\"\",'[2]MONE(M)CAPARD'!HA220)","v":3273.3778270796706},{"$f":"IF('[2]MONE(M)CAPARD'!HB220=\"\",\"\",'[2]MONE(M)CAPARD'!HB220)","v":168.34364992373639},"n.d.",{"$f":"IF('[10]II.2.Balance OSD-Activos'!J78=\"\",\"\",'[10]II.2.Balance OSD-Activos'!J78)","v":187.01728973200673},{"$f":"IF('[10]II.2.Balance OSD-Activos'!N78=\"\",\"\",'[10]II.2.Balance OSD-Activos'!N78)","v":550.9305755397362},{"$f":"IF('[10]II.2.Balance OSD-Activos'!R78=\"\",\"\",'[10]II.2.Balance OSD-Activos'!R78)","v":20993.465317322753},{"$f":"IF('[10]II.2.Balance OSD-Activos'!S78=\"\",\"\",'[10]II.2.Balance OSD-Activos'!S78)","v":21965.943547716579},21180.482607054761,43697.356730311076,-35.220723474137927,17.130639488906073,-4.8762310129565218,17.980011529311813,20.115563841317339,18.263017115368598,0.56598650347776669,{"$f":"IF('[2]MONE(M)CAPARD'!AS220=\"\",\"\",'[2]MONE(M)CAPARD'!AS220)","v":5.98},{"$f":"IF('[2]MONE(M)CAPARD'!AT220=\"\",\"\",'[2]MONE(M)CAPARD'!AT220)","v":"n.a."},{"$f":"IF('[2]MONE(M)CAPARD'!AU220=\"\",\"\",'[2]MONE(M)CAPARD'!AU220)","v":5.5},{"$f":"IF('[2]MONE(M)CAPARD'!AV220=\"\",\"\",'[2]MONE(M)CAPARD'!AV220)","v":6},{"$f":"IF('[2]MONE(M)CAPARD'!AW220=\"\",\"\",'[2]MONE(M)CAPARD'!AW220)","v":"n.a."},{"$f":"IF('[2]MONE(M)CAPARD'!AX220=\"\",\"\",'[2]MONE(M)CAPARD'!AX220)","v":7},{"$f":"IF('[2]MONE(M)CAPARD'!AY220=\"\",\"\",'[2]MONE(M)CAPARD'!AY220)","v":"n.a."},{"$f":"IF('[2]FISCAL(M)'!$K220=\"\",\"\",'[2]FISCAL(M)'!$K220)","v":425.34234362557174},{"$f":"IF('[2]FISCAL(M)'!$L220=\"\",\"\",'[2]FISCAL(M)'!$L220)","v":117.54086767257172},{"$f":"IF('[2]FISCAL(M)'!$AY220=\"\",\"\",'[2]FISCAL(M)'!$AY220)","v":"n.d."},{"$f":"IF('[2]FISCAL(M)'!$BI220=\"\",\"\",'[2]FISCAL(M)'!$BI220)","v":"n.d."},{"$f":"IF('[2]FISCAL(M)'!$BS220=\"\",\"\",'[2]FISCAL(M)'!$BS220)","v":"n.d."},{"$f":"IF('[2]FISCAL(M)'!$AZ220=\"\",\"\",'[2]FISCAL(M)'!$AZ220)","v":"n.d."},{"$f":"IF('[2]FISCAL(M)'!$BJ220=\"\",\"\",'[2]FISCAL(M)'!$BJ220)","v":"n.d."},{"$f":"IF('[2]FISCAL(M)'!$BT220=\"\",\"\",'[2]FISCAL(M)'!$BT220)","v":"n.d."},{"$f":"IF('[3]MONE(M)'!$AO220=\"\",\"\",'[3]MONE(M)'!$AO220)","v":5204961.9180931514},{"$f":"IF('[4]MONE(M)'!$AO220=\"\",\"\",'[4]MONE(M)'!$AO220)","v":8499.9039197499987},{"$f":"IF('[5]MONE(M)'!$AO220=\"\",\"\",'[5]MONE(M)'!$AO220)","v":71565.19277235042},{"$f":"+'[1]MONE(M)'!$AO220","v":108597.51321928579},{"$f":"IF('[6]MONE(M)'!$AO220=\"\",\"\",'[6]MONE(M)'!$AO220)","v":36104.710312523253},{"$f":"IF('[7]MONE(M)'!$AO220=\"\",\"\",'[7]MONE(M)'!$AO220)","v":259731.91515257003},{"$f":"IF('[8]MONE(M)'!$AO220=\"\",\"\",'[8]MONE(M)'!$AO220)","v":15688.103872429998},31.989280715423106,8.4338463788141471,14.328907494976928,33.483131070674773,28.604722123904658,19.252458062975641,14.586299845149986,{"$f":"IF('[2]FISCAL(M)'!$K220=\"\",\"\",'[2]FISCAL(M)'!$K220)","v":425.34234362557174},{"$f":"+'[2]REAL(A)'!$AO$27","v":142802.85135501099},0.29785283668332463,{"$f":"IF('[2]FISCAL(M)'!$L220=\"\",\"\",'[2]FISCAL(M)'!$L220)","v":117.54086767257172},{"$f":"+'[2]REAL(A)'!$AP$27","v":164098.834355011},7.1628094211982102E-2,59104.050257257448,{"$f":"'[2]Gráfico REM'!BG214","v":11432.896072773319},{"$f":"'[2]Gráfico REM'!BH214","v":43540.831033714989},{"$f":"'[2]Gráfico REM'!BI214","v":4130.323150769138},13.053062580049545,-1.7491565064006842,19.905779059034856,-4.6323221863600716,86134.906761057457,{"$f":"'[2]Gráfico REM'!BK214","v":11993.385687963319},{"$f":"'[2]Gráfico REM'!BL214","v":59228.93490614499},{"$f":"'[2]Gráfico REM'!BM214","v":14912.586166949139},12.94714156522787,-1.1168045734103571,18.449295999702663,5.5474818782576429]
[2007,"agosto","2007-agosto",{"$f":"IF('[2]REAL IPC(M)'!$AL221=\"\",\"\",+'[2]REAL IPC(M)'!$AL221)","v":6.035149773405557},{"$f":"IF('[2]REAL IPC(M)'!$BE221=\"\",\"\",+'[2]REAL IPC(M)'!$BE221)","v":7.9666520992049294},{"$f":"IF('[2]REAL IPC(M)'!$AM221=\"\",\"\",+'[2]REAL IPC(M)'!$AM221)","v":5.8493060145406561},{"$f":"IF('[2]REAL IPC(M)'!$BI221=\"\",\"\",+'[2]REAL IPC(M)'!$BI221)","v":7.658217340903839},{"$f":"IF('[2]REAL IMAE(M)'!BJ221=\"\",\"\",'[2]REAL IMAE(M)'!BJ221)","v":"n.d."},{"$f":"IF('[2]REAL IMAE(M)'!BK221=\"\",\"\",'[2]REAL IMAE(M)'!BK221)","v":"n.d."},{"$f":"IF('[2]REAL IMAE(M)'!BN221=\"\",\"\",'[2]REAL IMAE(M)'!BN221)","v":"n.d."},{"$f":"IF('[2]REAL IMAE(M)'!BO221=\"\",\"\",'[2]REAL IMAE(M)'!BO221)","v":"n.d."},{"$f":"IF('[2]EXT RIN(M)'!$K221=\"\",\"\",'[2]EXT RIN(M)'!$K221)","v":16438.12995307249},"",{"$f":"IF('[2]EXT RIN(M)'!$L221=\"\",\"\",'[2]EXT RIN(M)'!$L221)","v":18277.30992536934},"",{"$f":"IF('[2]MONE(M)CARD'!EG221=\"\",\"\",'[2]MONE(M)CARD'!EG221)","v":12274.507322071087},{"$f":"IF('[2]MONE(M)CARD'!EK221=\"\",\"\",'[2]MONE(M)CARD'!EK221)","v":21551.849786981667},{"$f":"IF('[2]MONE(M)CARD'!EP221=\"\",\"\",'[2]MONE(M)CARD'!EP221)","v":9413.5386739430105},{"$f":"IF('[2]MONE(M)CARD'!ES221=\"\",\"\",'[2]MONE(M)CARD'!ES221)","v":25.970694356314251},{"$f":"IF('[2]MONE(M)CARD'!EV221=\"\",\"\",'[2]MONE(M)CARD'!EV221)","v":21.117038442725011},{"$f":"IF('[2]MONE(M)CARD'!EZ221=\"\",\"\",'[2]MONE(M)CARD'!EZ221)","v":17.410137067185349},{"$f":"IF('[2]MONE(M)CAPARD'!FC221=\"\",\"\",'[2]MONE(M)CAPARD'!FC221)","v":14728.072038016486},{"$f":"IF('[2]MONE(M)CAPARD'!FG221=\"\",\"\",'[2]MONE(M)CAPARD'!FG221)","v":35222.15268753557},{"$f":"IF('[2]MONE(M)CAPARD'!FL221=\"\",\"\",'[2]MONE(M)CAPARD'!FL221)","v":9413.5386739430032},{"$f":"IF('[2]MONE(M)CAPARD'!FO221=\"\",\"\",'[2]MONE(M)CAPARD'!FO221)","v":26.633361455038983},{"$f":"IF('[2]MONE(M)CAPARD'!FR221=\"\",\"\",'[2]MONE(M)CAPARD'!FR221)","v":21.948927021265362},{"$f":"IF('[2]MONE(M)CAPARD'!FV221=\"\",\"\",'[2]MONE(M)CAPARD'!FV221)","v":19.062381236681382},{"$f":"IF('[2]MONE(M)CARD'!FV221=\"\",\"\",'[2]MONE(M)CARD'!FV221)","v":366.65808336751957},{"$f":"IF('[2]MONE(M)CARD'!GD221=\"\",\"\",'[2]MONE(M)CARD'!GD221)","v":16.252887903430256},{"$f":"IF('[2]MONE(M)CARD'!GE221=\"\",\"\",'[2]MONE(M)CARD'!GE221)","v":2930.9378309005142},18.669374966200671,{"$f":"IF('[9]II.2.Balance OSD-Activos'!J79=\"\",\"\",'[9]II.2.Balance OSD-Activos'!J79)","v":9.100388988353556},{"$f":"IF('[9]II.2.Balance OSD-Activos'!N79=\"\",\"\",'[9]II.2.Balance OSD-Activos'!N79)","v":135.74739534807091},{"$f":"IF('[9]II.2.Balance OSD-Activos'!R79=\"\",\"\",'[9]II.2.Balance OSD-Activos'!R79)","v":13296.362754694306},{"$f":"IF('[9]II.2.Balance OSD-Activos'!S79=\"\",\"\",'[9]II.2.Balance OSD-Activos'!S79)","v":14940.796182577304},13305.46314368266,28382.006721608035,-69.031296903649647,18.203159721133421,12.090424503948194,18.431487802926959,23.080622629922189,20.68938052843896,-8.4986806702747941E-2,{"$f":"IF('[2]MONE(M)CAPARD'!GS221=\"\",\"\",'[2]MONE(M)CAPARD'!GS221)","v":3464.5000476740929},{"$f":"IF('[2]MONE(M)CARD'!HA221=\"\",\"\",'[2]MONE(M)CAPARD'!HA221)","v":3303.3577085105139},{"$f":"IF('[2]MONE(M)CAPARD'!HB221=\"\",\"\",'[2]MONE(M)CAPARD'!HB221)","v":161.14233916357898},"n.d.",{"$f":"IF('[10]II.2.Balance OSD-Activos'!J79=\"\",\"\",'[10]II.2.Balance OSD-Activos'!J79)","v":181.01793753835355},{"$f":"IF('[10]II.2.Balance OSD-Activos'!N79=\"\",\"\",'[10]II.2.Balance OSD-Activos'!N79)","v":559.37892447807076},{"$f":"IF('[10]II.2.Balance OSD-Activos'!R79=\"\",\"\",'[10]II.2.Balance OSD-Activos'!R79)","v":21213.310293944305},{"$f":"IF('[10]II.2.Balance OSD-Activos'!S79=\"\",\"\",'[10]II.2.Balance OSD-Activos'!S79)","v":22455.516704717298},21394.328231482657,44409.22386067803,-37.47313288001515,16.786725969906115,-6.5095003420542863,17.657983529537624,20.424792955972613,18.22159512722914,-4.1421988139457966E-2,{"$f":"IF('[2]MONE(M)CAPARD'!AS221=\"\",\"\",'[2]MONE(M)CAPARD'!AS221)","v":5.52},{"$f":"IF('[2]MONE(M)CAPARD'!AT221=\"\",\"\",'[2]MONE(M)CAPARD'!AT221)","v":"n.a."},{"$f":"IF('[2]MONE(M)CAPARD'!AU221=\"\",\"\",'[2]MONE(M)CAPARD'!AU221)","v":5.5},{"$f":"IF('[2]MONE(M)CAPARD'!AV221=\"\",\"\",'[2]MONE(M)CAPARD'!AV221)","v":6.25},{"$f":"IF('[2]MONE(M)CAPARD'!AW221=\"\",\"\",'[2]MONE(M)CAPARD'!AW221)","v":"n.a."},{"$f":"IF('[2]MONE(M)CAPARD'!AX221=\"\",\"\",'[2]MONE(M)CAPARD'!AX221)","v":7},{"$f":"IF('[2]MONE(M)CAPARD'!AY221=\"\",\"\",'[2]MONE(M)CAPARD'!AY221)","v":"n.a."},{"$f":"IF('[2]FISCAL(M)'!$K221=\"\",\"\",'[2]FISCAL(M)'!$K221)","v":380.47085727292404},{"$f":"IF('[2]FISCAL(M)'!$L221=\"\",\"\",'[2]FISCAL(M)'!$L221)","v":3.3153931099241163},{"$f":"IF('[2]FISCAL(M)'!$AY221=\"\",\"\",'[2]FISCAL(M)'!$AY221)","v":"n.d."},{"$f":"IF('[2]FISCAL(M)'!$BI221=\"\",\"\",'[2]FISCAL(M)'!$BI221)","v":"n.d."},{"$f":"IF('[2]FISCAL(M)'!$BS221=\"\",\"\",'[2]FISCAL(M)'!$BS221)","v":"n.d."},{"$f":"IF('[2]FISCAL(M)'!$AZ221=\"\",\"\",'[2]FISCAL(M)'!$AZ221)","v":"n.d."},{"$f":"IF('[2]FISCAL(M)'!$BJ221=\"\",\"\",'[2]FISCAL(M)'!$BJ221)","v":"n.d."},{"$f":"IF('[2]FISCAL(M)'!$BT221=\"\",\"\",'[2]FISCAL(M)'!$BT221)","v":"n.d."},{"$f":"IF('[3]MONE(M)'!$AO221=\"\",\"\",'[3]MONE(M)'!$AO221)","v":5347400.4580569863},{"$f":"IF('[4]MONE(M)'!$AO221=\"\",\"\",'[4]MONE(M)'!$AO221)","v":8589.5510584000003},{"$f":"IF('[5]MONE(M)'!$AO221=\"\",\"\",'[5]MONE(M)'!$AO221)","v":72191.215654330736},{"$f":"+'[1]MONE(M)'!$AO221","v":111641.31312252212},{"$f":"IF('[6]MONE(M)'!$AO221=\"\",\"\",'[6]MONE(M)'!$AO221)","v":37071.737199081166},{"$f":"IF('[7]MONE(M)'!$AO221=\"\",\"\",'[7]MONE(M)'!$AO221)","v":265232.88061102002},{"$f":"IF('[8]MONE(M)'!$AO221=\"\",\"\",'[8]MONE(M)'!$AO221)","v":15918.094314499998},31.689265485894545,8.4192556350793488,13.816194883087164,32.463644222153199,29.438814747696206,19.491880465378351,14.677106039466414,{"$f":"IF('[2]FISCAL(M)'!$K221=\"\",\"\",'[2]FISCAL(M)'!$K221)","v":380.47085727292404},{"$f":"+'[2]REAL(A)'!$AO$27","v":142802.85135501099},0.26643085461022425,{"$f":"IF('[2]FISCAL(M)'!$L221=\"\",\"\",'[2]FISCAL(M)'!$L221)","v":3.3153931099241163},{"$f":"+'[2]REAL(A)'!$AP$27","v":164098.834355011},2.0203635954851471E-3,59722.109192216725,{"$f":"'[2]Gráfico REM'!BG215","v":11360.223655582608},{"$f":"'[2]Gráfico REM'!BH215","v":44248.366768928696},{"$f":"'[2]Gráfico REM'!BI215","v":4113.5187677054164},13.601041128120128,0.35137687301380893,19.651994535491003,-3.6751770975756992,87371.670017666707,{"$f":"'[2]Gráfico REM'!BK215","v":11968.369471282607},{"$f":"'[2]Gráfico REM'!BL215","v":60166.461083428694},{"$f":"'[2]Gráfico REM'!BM215","v":15236.839462955415},14.068876142533293,1.45659290491853,18.29428460449174,9.3240567764538937]
[2007,"septiembre","2007-septiembre",{"$f":"IF('[2]REAL IPC(M)'!$AL222=\"\",\"\",+'[2]REAL IPC(M)'!$AL222)","v":7.3720439658043757},{"$f":"IF('[2]REAL IPC(M)'!$BE222=\"\",\"\",+'[2]REAL IPC(M)'!$BE222)","v":7.9331796765545137},{"$f":"IF('[2]REAL IPC(M)'!$AM222=\"\",\"\",+'[2]REAL IPC(M)'!$AM222)","v":7.1475990263332623},{"$f":"IF('[2]REAL IPC(M)'!$BI222=\"\",\"\",+'[2]REAL IPC(M)'!$BI222)","v":7.6439830531166875},{"$f":"IF('[2]REAL IMAE(M)'!BJ222=\"\",\"\",'[2]REAL IMAE(M)'!BJ222)","v":"n.d."},{"$f":"IF('[2]REAL IMAE(M)'!BK222=\"\",\"\",'[2]REAL IMAE(M)'!BK222)","v":"n.d."},{"$f":"IF('[2]REAL IMAE(M)'!BN222=\"\",\"\",'[2]REAL IMAE(M)'!BN222)","v":"n.d."},{"$f":"IF('[2]REAL IMAE(M)'!BO222=\"\",\"\",'[2]REAL IMAE(M)'!BO222)","v":"n.d."},{"$f":"IF('[2]EXT RIN(M)'!$K222=\"\",\"\",'[2]EXT RIN(M)'!$K222)","v":16429.400277607423},"",{"$f":"IF('[2]EXT RIN(M)'!$L222=\"\",\"\",'[2]EXT RIN(M)'!$L222)","v":18149.176740364172},"",{"$f":"IF('[2]MONE(M)CARD'!EG222=\"\",\"\",'[2]MONE(M)CARD'!EG222)","v":12528.048592791669},{"$f":"IF('[2]MONE(M)CARD'!EK222=\"\",\"\",'[2]MONE(M)CARD'!EK222)","v":21305.41798479409},{"$f":"IF('[2]MONE(M)CARD'!EP222=\"\",\"\",'[2]MONE(M)CARD'!EP222)","v":9416.1033573310415},{"$f":"IF('[2]MONE(M)CARD'!ES222=\"\",\"\",'[2]MONE(M)CARD'!ES222)","v":26.44408463238166},{"$f":"IF('[2]MONE(M)CARD'!EV222=\"\",\"\",'[2]MONE(M)CARD'!EV222)","v":20.391791451579209},{"$f":"IF('[2]MONE(M)CARD'!EZ222=\"\",\"\",'[2]MONE(M)CARD'!EZ222)","v":17.055071496292129},{"$f":"IF('[2]MONE(M)CAPARD'!FC222=\"\",\"\",'[2]MONE(M)CAPARD'!FC222)","v":15115.563786637069},{"$f":"IF('[2]MONE(M)CAPARD'!FG222=\"\",\"\",'[2]MONE(M)CAPARD'!FG222)","v":35204.374211267997},{"$f":"IF('[2]MONE(M)CAPARD'!FL222=\"\",\"\",'[2]MONE(M)CAPARD'!FL222)","v":9416.1033573310415},{"$f":"IF('[2]MONE(M)CAPARD'!FO222=\"\",\"\",'[2]MONE(M)CAPARD'!FO222)","v":27.597951217930095},{"$f":"IF('[2]MONE(M)CAPARD'!FR222=\"\",\"\",'[2]MONE(M)CAPARD'!FR222)","v":21.753270761536236},{"$f":"IF('[2]MONE(M)CAPARD'!FV222=\"\",\"\",'[2]MONE(M)CAPARD'!FV222)","v":19.05613512036166},{"$f":"IF('[2]MONE(M)CARD'!FV222=\"\",\"\",'[2]MONE(M)CARD'!FV222)","v":372.97465931617808},{"$f":"IF('[2]MONE(M)CARD'!GD222=\"\",\"\",'[2]MONE(M)CARD'!GD222)","v":17.544703330700891},{"$f":"IF('[2]MONE(M)CARD'!GE222=\"\",\"\",'[2]MONE(M)CARD'!GE222)","v":3073.1078285317767},21.007062569673508,{"$f":"IF('[9]II.2.Balance OSD-Activos'!J80=\"\",\"\",'[9]II.2.Balance OSD-Activos'!J80)","v":8.6395044979160485},{"$f":"IF('[9]II.2.Balance OSD-Activos'!N80=\"\",\"\",'[9]II.2.Balance OSD-Activos'!N80)","v":138.3689092936458},{"$f":"IF('[9]II.2.Balance OSD-Activos'!R80=\"\",\"\",'[9]II.2.Balance OSD-Activos'!R80)","v":13550.088734822648},{"$f":"IF('[9]II.2.Balance OSD-Activos'!S80=\"\",\"\",'[9]II.2.Balance OSD-Activos'!S80)","v":15257.257220533113},13558.728239320564,28954.354369147324,-69.280073286508681,21.024564496638099,8.4651335148775431,21.251825469359797,24.102559805312683,22.558490394807194,1.869109866368234,{"$f":"IF('[2]MONE(M)CAPARD'!GS222=\"\",\"\",'[2]MONE(M)CAPARD'!GS222)","v":3464.9664196515032},{"$f":"IF('[2]MONE(M)CARD'!HA222=\"\",\"\",'[2]MONE(M)CAPARD'!HA222)","v":3435.9018606217764},{"$f":"IF('[2]MONE(M)CAPARD'!HB222=\"\",\"\",'[2]MONE(M)CAPARD'!HB222)","v":29.064559029726752},"n.d.",{"$f":"IF('[10]II.2.Balance OSD-Activos'!J80=\"\",\"\",'[10]II.2.Balance OSD-Activos'!J80)","v":180.15630949791603},{"$f":"IF('[10]II.2.Balance OSD-Activos'!N80=\"\",\"\",'[10]II.2.Balance OSD-Activos'!N80)","v":579.52329195364575},{"$f":"IF('[10]II.2.Balance OSD-Activos'!R80=\"\",\"\",'[10]II.2.Balance OSD-Activos'!R80)","v":21624.325548922647},{"$f":"IF('[10]II.2.Balance OSD-Activos'!S80=\"\",\"\",'[10]II.2.Balance OSD-Activos'!S80)","v":22856.818954693113},21804.481858420564,45240.824105067324,-34.225622204619732,18.398864439845731,-5.9784420870413797,19.193357453879266,20.998615541247666,19.297646074690778,1.0760509474616384,{"$f":"IF('[2]MONE(M)CAPARD'!AS222=\"\",\"\",'[2]MONE(M)CAPARD'!AS222)","v":5.52},{"$f":"IF('[2]MONE(M)CAPARD'!AT222=\"\",\"\",'[2]MONE(M)CAPARD'!AT222)","v":"n.a."},{"$f":"IF('[2]MONE(M)CAPARD'!AU222=\"\",\"\",'[2]MONE(M)CAPARD'!AU222)","v":5.75},{"$f":"IF('[2]MONE(M)CAPARD'!AV222=\"\",\"\",'[2]MONE(M)CAPARD'!AV222)","v":6.25},{"$f":"IF('[2]MONE(M)CAPARD'!AW222=\"\",\"\",'[2]MONE(M)CAPARD'!AW222)","v":"n.a."},{"$f":"IF('[2]MONE(M)CAPARD'!AX222=\"\",\"\",'[2]MONE(M)CAPARD'!AX222)","v":7},{"$f":"IF('[2]MONE(M)CAPARD'!AY222=\"\",\"\",'[2]MONE(M)CAPARD'!AY222)","v":"n.a."},{"$f":"IF('[2]FISCAL(M)'!$K222=\"\",\"\",'[2]FISCAL(M)'!$K222)","v":187.92677121674956},{"$f":"IF('[2]FISCAL(M)'!$L222=\"\",\"\",'[2]FISCAL(M)'!$L222)","v":-226.83739846625087},{"$f":"IF('[2]FISCAL(M)'!$AY222=\"\",\"\",'[2]FISCAL(M)'!$AY222)","v":49207.611589526088},{"$f":"IF('[2]FISCAL(M)'!$BI222=\"\",\"\",'[2]FISCAL(M)'!$BI222)","v":23105.511589526082},{"$f":"IF('[2]FISCAL(M)'!$BS222=\"\",\"\",'[2]FISCAL(M)'!$BS222)","v":26102.100000000002},{"$f":"IF('[2]FISCAL(M)'!$AZ222=\"\",\"\",'[2]FISCAL(M)'!$AZ222)","v":60091.835457736088},{"$f":"IF('[2]FISCAL(M)'!$BJ222=\"\",\"\",'[2]FISCAL(M)'!$BJ222)","v":25722.83003204608},{"$f":"IF('[2]FISCAL(M)'!$BT222=\"\",\"\",'[2]FISCAL(M)'!$BT222)","v":34369.005425690004},{"$f":"IF('[3]MONE(M)'!$AO222=\"\",\"\",'[3]MONE(M)'!$AO222)","v":5551791.8994058557},{"$f":"IF('[4]MONE(M)'!$AO222=\"\",\"\",'[4]MONE(M)'!$AO222)","v":8619.8569313799999},{"$f":"IF('[5]MONE(M)'!$AO222=\"\",\"\",'[5]MONE(M)'!$AO222)","v":72916.757021769969},{"$f":"+'[1]MONE(M)'!$AO222","v":114333.72187025729},{"$f":"IF('[6]MONE(M)'!$AO222=\"\",\"\",'[6]MONE(M)'!$AO222)","v":37738.350563191372},{"$f":"IF('[7]MONE(M)'!$AO222=\"\",\"\",'[7]MONE(M)'!$AO222)","v":271172.71788015001},{"$f":"IF('[8]MONE(M)'!$AO222=\"\",\"\",'[8]MONE(M)'!$AO222)","v":16157.887507600002},33.981181623606169,8.8158710874133739,12.266744086755853,33.910260447110254,28.645484802856135,20.652440909919068,13.8769944163476,{"$f":"IF('[2]FISCAL(M)'!$K222=\"\",\"\",'[2]FISCAL(M)'!$K222)","v":187.92677121674956},{"$f":"+'[2]REAL(A)'!$AO$27","v":142802.85135501099},0.13159875270946764,{"$f":"IF('[2]FISCAL(M)'!$L222=\"\",\"\",'[2]FISCAL(M)'!$L222)","v":-226.83739846625087},{"$f":"+'[2]REAL(A)'!$AP$27","v":164098.834355011},-0.13823218145200925,60679.441507823038,{"$f":"'[2]Gráfico REM'!BG216","v":11425.80742387091},{"$f":"'[2]Gráfico REM'!BH216","v":44980.484029850028},{"$f":"'[2]Gráfico REM'!BI216","v":4273.1500541020978},14.464356685186042,0.76283501410685517,20.622479559854877,-2.4849337748924949,88798.678796353037,{"$f":"'[2]Gráfico REM'!BK216","v":12043.32565799091},{"$f":"'[2]Gráfico REM'!BL216","v":61138.371537450032},{"$f":"'[2]Gráfico REM'!BM216","v":15616.981600912097},14.51545554454594,1.9095029892124193,18.763262790737901,9.6228367645274204]
[2007,"octubre","2007-octubre",{"$f":"IF('[2]REAL IPC(M)'!$AL223=\"\",\"\",+'[2]REAL IPC(M)'!$AL223)","v":8.046614872364044},{"$f":"IF('[2]REAL IPC(M)'!$BE223=\"\",\"\",+'[2]REAL IPC(M)'!$BE223)","v":7.8982046774035419},{"$f":"IF('[2]REAL IPC(M)'!$AM223=\"\",\"\",+'[2]REAL IPC(M)'!$AM223)","v":7.7850270927789289},{"$f":"IF('[2]REAL IPC(M)'!$BI223=\"\",\"\",+'[2]REAL IPC(M)'!$BI223)","v":7.627410223780684},{"$f":"IF('[2]REAL IMAE(M)'!BJ223=\"\",\"\",'[2]REAL IMAE(M)'!BJ223)","v":"n.d."},{"$f":"IF('[2]REAL IMAE(M)'!BK223=\"\",\"\",'[2]REAL IMAE(M)'!BK223)","v":"n.d."},{"$f":"IF('[2]REAL IMAE(M)'!BN223=\"\",\"\",'[2]REAL IMAE(M)'!BN223)","v":"n.d."},{"$f":"IF('[2]REAL IMAE(M)'!BO223=\"\",\"\",'[2]REAL IMAE(M)'!BO223)","v":"n.d."},{"$f":"IF('[2]EXT RIN(M)'!$K223=\"\",\"\",'[2]EXT RIN(M)'!$K223)","v":16238.521462731078},"",{"$f":"IF('[2]EXT RIN(M)'!$L223=\"\",\"\",'[2]EXT RIN(M)'!$L223)","v":18016.600499361677},"",{"$f":"IF('[2]MONE(M)CARD'!EG223=\"\",\"\",'[2]MONE(M)CARD'!EG223)","v":12486.681118551667},{"$f":"IF('[2]MONE(M)CARD'!EK223=\"\",\"\",'[2]MONE(M)CARD'!EK223)","v":21506.06803247835},{"$f":"IF('[2]MONE(M)CARD'!EP223=\"\",\"\",'[2]MONE(M)CARD'!EP223)","v":9446.3030472122991},{"$f":"IF('[2]MONE(M)CARD'!ES223=\"\",\"\",'[2]MONE(M)CARD'!ES223)","v":24.653924383044856},{"$f":"IF('[2]MONE(M)CARD'!EV223=\"\",\"\",'[2]MONE(M)CARD'!EV223)","v":18.960870558715182},{"$f":"IF('[2]MONE(M)CARD'!EZ223=\"\",\"\",'[2]MONE(M)CARD'!EZ223)","v":16.107227061812111},{"$f":"IF('[2]MONE(M)CAPARD'!FC223=\"\",\"\",'[2]MONE(M)CAPARD'!FC223)","v":15134.874206827069},{"$f":"IF('[2]MONE(M)CAPARD'!FG223=\"\",\"\",'[2]MONE(M)CAPARD'!FG223)","v":35628.411308706345},{"$f":"IF('[2]MONE(M)CAPARD'!FL223=\"\",\"\",'[2]MONE(M)CAPARD'!FL223)","v":9446.3030472122991},{"$f":"IF('[2]MONE(M)CAPARD'!FO223=\"\",\"\",'[2]MONE(M)CAPARD'!FO223)","v":26.106525530950719},{"$f":"IF('[2]MONE(M)CAPARD'!FR223=\"\",\"\",'[2]MONE(M)CAPARD'!FR223)","v":20.612282536558403},{"$f":"IF('[2]MONE(M)CAPARD'!FV223=\"\",\"\",'[2]MONE(M)CAPARD'!FV223)","v":18.229254105444646},{"$f":"IF('[2]MONE(M)CARD'!FV223=\"\",\"\",'[2]MONE(M)CARD'!FV223)","v":372.51871838531463},{"$f":"IF('[2]MONE(M)CARD'!GD223=\"\",\"\",'[2]MONE(M)CARD'!GD223)","v":19.037977328641553},{"$f":"IF('[2]MONE(M)CARD'!GE223=\"\",\"\",'[2]MONE(M)CARD'!GE223)","v":2996.0548027306722},18.610415332389696,{"$f":"IF('[9]II.2.Balance OSD-Activos'!J81=\"\",\"\",'[9]II.2.Balance OSD-Activos'!J81)","v":9.0578226132912842},{"$f":"IF('[9]II.2.Balance OSD-Activos'!N81=\"\",\"\",'[9]II.2.Balance OSD-Activos'!N81)","v":138.97492398091873},{"$f":"IF('[9]II.2.Balance OSD-Activos'!R81=\"\",\"\",'[9]II.2.Balance OSD-Activos'!R81)","v":13886.906478741137},{"$f":"IF('[9]II.2.Balance OSD-Activos'!S81=\"\",\"\",'[9]II.2.Balance OSD-Activos'!S81)","v":15691.688115599634},13895.964301354428,29726.627340934981,-67.913793124251555,21.299936139707619,14.89128597309981,21.520320372956991,25.796726620350952,23.599957044052488,1.0414666492452938,{"$f":"IF('[2]MONE(M)CAPARD'!GS223=\"\",\"\",'[2]MONE(M)CAPARD'!GS223)","v":3397.7058695266669},{"$f":"IF('[2]MONE(M)CARD'!HA223=\"\",\"\",'[2]MONE(M)CAPARD'!HA223)","v":3363.4788916506723},{"$f":"IF('[2]MONE(M)CAPARD'!HB223=\"\",\"\",'[2]MONE(M)CAPARD'!HB223)","v":34.226977875994635},"n.d.",{"$f":"IF('[10]II.2.Balance OSD-Activos'!J81=\"\",\"\",'[10]II.2.Balance OSD-Activos'!J81)","v":197.79731867329127},{"$f":"IF('[10]II.2.Balance OSD-Activos'!N81=\"\",\"\",'[10]II.2.Balance OSD-Activos'!N81)","v":572.58154618091874},{"$f":"IF('[10]II.2.Balance OSD-Activos'!R81=\"\",\"\",'[10]II.2.Balance OSD-Activos'!R81)","v":22225.161741761141},{"$f":"IF('[10]II.2.Balance OSD-Activos'!S81=\"\",\"\",'[10]II.2.Balance OSD-Activos'!S81)","v":23373.580635909631},22422.959060434434,46369.121242524983,-10.229054035582251,19.657925114816987,-6.7701476196670445,20.013517008407099,21.933446895854235,20.368903640262648,1.0712575655718695,{"$f":"IF('[2]MONE(M)CAPARD'!AS223=\"\",\"\",'[2]MONE(M)CAPARD'!AS223)","v":5.52},{"$f":"IF('[2]MONE(M)CAPARD'!AT223=\"\",\"\",'[2]MONE(M)CAPARD'!AT223)","v":"n.a."},{"$f":"IF('[2]MONE(M)CAPARD'!AU223=\"\",\"\",'[2]MONE(M)CAPARD'!AU223)","v":6},{"$f":"IF('[2]MONE(M)CAPARD'!AV223=\"\",\"\",'[2]MONE(M)CAPARD'!AV223)","v":6.75},{"$f":"IF('[2]MONE(M)CAPARD'!AW223=\"\",\"\",'[2]MONE(M)CAPARD'!AW223)","v":"n.a."},{"$f":"IF('[2]MONE(M)CAPARD'!AX223=\"\",\"\",'[2]MONE(M)CAPARD'!AX223)","v":7},{"$f":"IF('[2]MONE(M)CAPARD'!AY223=\"\",\"\",'[2]MONE(M)CAPARD'!AY223)","v":"n.a."},{"$f":"IF('[2]FISCAL(M)'!$K223=\"\",\"\",'[2]FISCAL(M)'!$K223)","v":313.90725466152094},{"$f":"IF('[2]FISCAL(M)'!$L223=\"\",\"\",'[2]FISCAL(M)'!$L223)","v":-189.03473733547941},{"$f":"IF('[2]FISCAL(M)'!$AY223=\"\",\"\",'[2]FISCAL(M)'!$AY223)","v":"n.d."},{"$f":"IF('[2]FISCAL(M)'!$BI223=\"\",\"\",'[2]FISCAL(M)'!$BI223)","v":"n.d."},{"$f":"IF('[2]FISCAL(M)'!$BS223=\"\",\"\",'[2]FISCAL(M)'!$BS223)","v":"n.d."},{"$f":"IF('[2]FISCAL(M)'!$AZ223=\"\",\"\",'[2]FISCAL(M)'!$AZ223)","v":"n.d."},{"$f":"IF('[2]FISCAL(M)'!$BJ223=\"\",\"\",'[2]FISCAL(M)'!$BJ223)","v":"n.d."},{"$f":"IF('[2]FISCAL(M)'!$BT223=\"\",\"\",'[2]FISCAL(M)'!$BT223)","v":"n.d."},{"$f":"IF('[3]MONE(M)'!$AO223=\"\",\"\",'[3]MONE(M)'!$AO223)","v":5790629.3549906528},{"$f":"IF('[4]MONE(M)'!$AO223=\"\",\"\",'[4]MONE(M)'!$AO223)","v":8644.5632917099992},{"$f":"IF('[5]MONE(M)'!$AO223=\"\",\"\",'[5]MONE(M)'!$AO223)","v":74564.943046574379},{"$f":"+'[1]MONE(M)'!$AO223","v":117421.45938694669},{"$f":"IF('[6]MONE(M)'!$AO223=\"\",\"\",'[6]MONE(M)'!$AO223)","v":39456.494980529722},{"$f":"IF('[7]MONE(M)'!$AO223=\"\",\"\",'[7]MONE(M)'!$AO223)","v":279081.48264393001},{"$f":"IF('[8]MONE(M)'!$AO223=\"\",\"\",'[8]MONE(M)'!$AO223)","v":16520.5220892},38.018408149057059,8.561781786937317,12.239782962650981,32.410606467544191,30.522150238013456,21.35654644900271,14.977994436389652,{"$f":"IF('[2]FISCAL(M)'!$K223=\"\",\"\",'[2]FISCAL(M)'!$K223)","v":313.90725466152094},{"$f":"+'[2]REAL(A)'!$AO$27","v":142802.85135501099},0.21981861824393176,{"$f":"IF('[2]FISCAL(M)'!$L223=\"\",\"\",'[2]FISCAL(M)'!$L223)","v":-189.03473733547941},{"$f":"+'[2]REAL(A)'!$AP$27","v":164098.834355011},-0.11519566124797824,61593.973319352088,{"$f":"'[2]Gráfico REM'!BG217","v":11252.746663314443},{"$f":"'[2]Gráfico REM'!BH217","v":46173.815739102763},{"$f":"'[2]Gráfico REM'!BI217","v":4167.410916934884},14.598553584720865,0.86581256025888287,21.141996137523968,-6.8942368315652258,90104.91310163209,{"$f":"'[2]Gráfico REM'!BK217","v":11871.047643274444},{"$f":"'[2]Gráfico REM'!BL217","v":62694.337828302763},{"$f":"'[2]Gráfico REM'!BM217","v":15539.527630054887},14.172975771016571,1.7912949842295411,19.45448775263452,5.1841771734598918]
[2007,"noviembre","2007-noviembre",{"$f":"IF('[2]REAL IPC(M)'!$AL224=\"\",\"\",+'[2]REAL IPC(M)'!$AL224)","v":9.3284816407542159},{"$f":"IF('[2]REAL IPC(M)'!$BE224=\"\",\"\",+'[2]REAL IPC(M)'!$BE224)","v":7.8604325341646852},{"$f":"IF('[2]REAL IPC(M)'!$AM224=\"\",\"\",+'[2]REAL IPC(M)'!$AM224)","v":9.0359459162361091},{"$f":"IF('[2]REAL IPC(M)'!$BI224=\"\",\"\",+'[2]REAL IPC(M)'!$BI224)","v":7.6070634754928035},{"$f":"IF('[2]REAL IMAE(M)'!BJ224=\"\",\"\",'[2]REAL IMAE(M)'!BJ224)","v":"n.d."},{"$f":"IF('[2]REAL IMAE(M)'!BK224=\"\",\"\",'[2]REAL IMAE(M)'!BK224)","v":"n.d."},{"$f":"IF('[2]REAL IMAE(M)'!BN224=\"\",\"\",'[2]REAL IMAE(M)'!BN224)","v":"n.d."},{"$f":"IF('[2]REAL IMAE(M)'!BO224=\"\",\"\",'[2]REAL IMAE(M)'!BO224)","v":"n.d."},{"$f":"IF('[2]EXT RIN(M)'!$K224=\"\",\"\",'[2]EXT RIN(M)'!$K224)","v":16090.52848989897},"",{"$f":"IF('[2]EXT RIN(M)'!$L224=\"\",\"\",'[2]EXT RIN(M)'!$L224)","v":17874.624941158971},"",{"$f":"IF('[2]MONE(M)CARD'!EG224=\"\",\"\",'[2]MONE(M)CARD'!EG224)","v":13287.493481888738},{"$f":"IF('[2]MONE(M)CARD'!EK224=\"\",\"\",'[2]MONE(M)CARD'!EK224)","v":21694.428617453716},{"$f":"IF('[2]MONE(M)CARD'!EP224=\"\",\"\",'[2]MONE(M)CARD'!EP224)","v":9609.8442042163297},{"$f":"IF('[2]MONE(M)CARD'!ES224=\"\",\"\",'[2]MONE(M)CARD'!ES224)","v":24.301984800435285},{"$f":"IF('[2]MONE(M)CARD'!EV224=\"\",\"\",'[2]MONE(M)CARD'!EV224)","v":20.784319697310714},{"$f":"IF('[2]MONE(M)CARD'!EZ224=\"\",\"\",'[2]MONE(M)CARD'!EZ224)","v":17.889399739667766},{"$f":"IF('[2]MONE(M)CAPARD'!FC224=\"\",\"\",'[2]MONE(M)CAPARD'!FC224)","v":16075.461425024139},{"$f":"IF('[2]MONE(M)CAPARD'!FG224=\"\",\"\",'[2]MONE(M)CAPARD'!FG224)","v":35956.965711837518},{"$f":"IF('[2]MONE(M)CAPARD'!FL224=\"\",\"\",'[2]MONE(M)CAPARD'!FL224)","v":9609.8442042163297},{"$f":"IF('[2]MONE(M)CAPARD'!FO224=\"\",\"\",'[2]MONE(M)CAPARD'!FO224)","v":18.32447778678916},{"$f":"IF('[2]MONE(M)CAPARD'!FR224=\"\",\"\",'[2]MONE(M)CAPARD'!FR224)","v":18.504925339648715},{"$f":"IF('[2]MONE(M)CAPARD'!FV224=\"\",\"\",'[2]MONE(M)CAPARD'!FV224)","v":16.812703987753363},{"$f":"IF('[2]MONE(M)CARD'!FV224=\"\",\"\",'[2]MONE(M)CARD'!FV224)","v":378.37925373706867},{"$f":"IF('[2]MONE(M)CARD'!GD224=\"\",\"\",'[2]MONE(M)CARD'!GD224)","v":19.717169146557953},{"$f":"IF('[2]MONE(M)CARD'!GE224=\"\",\"\",'[2]MONE(M)CARD'!GE224)","v":2973.5352097612149},13.424930649004075,{"$f":"IF('[9]II.2.Balance OSD-Activos'!J82=\"\",\"\",'[9]II.2.Balance OSD-Activos'!J82)","v":10.224541875107539},{"$f":"IF('[9]II.2.Balance OSD-Activos'!N82=\"\",\"\",'[9]II.2.Balance OSD-Activos'!N82)","v":139.5997470509032},{"$f":"IF('[9]II.2.Balance OSD-Activos'!R82=\"\",\"\",'[9]II.2.Balance OSD-Activos'!R82)","v":14465.442188282581},{"$f":"IF('[9]II.2.Balance OSD-Activos'!S82=\"\",\"\",'[9]II.2.Balance OSD-Activos'!S82)","v":16298.282498898488},14475.666730157689,30913.548976107078,-30.800400031330998,22.470392434957674,13.918369767489347,22.537067769176254,32.110761564578169,27.325745463820962,3.7257884197684739,{"$f":"IF('[2]MONE(M)CAPARD'!GS224=\"\",\"\",'[2]MONE(M)CAPARD'!GS224)","v":3441.782523610003},{"$f":"IF('[2]MONE(M)CARD'!HA224=\"\",\"\",'[2]MONE(M)CAPARD'!HA224)","v":3339.9550705312149},{"$f":"IF('[2]MONE(M)CAPARD'!HB224=\"\",\"\",'[2]MONE(M)CAPARD'!HB224)","v":101.82745307878804},"n.d.",{"$f":"IF('[10]II.2.Balance OSD-Activos'!J82=\"\",\"\",'[10]II.2.Balance OSD-Activos'!J82)","v":210.07465580510757},{"$f":"IF('[10]II.2.Balance OSD-Activos'!N82=\"\",\"\",'[10]II.2.Balance OSD-Activos'!N82)","v":581.5480677209033},{"$f":"IF('[10]II.2.Balance OSD-Activos'!R82=\"\",\"\",'[10]II.2.Balance OSD-Activos'!R82)","v":22912.714062132574},{"$f":"IF('[10]II.2.Balance OSD-Activos'!S82=\"\",\"\",'[10]II.2.Balance OSD-Activos'!S82)","v":24080.932091498489},23122.788717937681,47785.268877157076,7.5643447806549302,20.705749371720184,-6.5780411385573441,20.841107790824132,26.024715478065929,22.882606863824062,2.5137032235614143,{"$f":"IF('[2]MONE(M)CAPARD'!AS224=\"\",\"\",'[2]MONE(M)CAPARD'!AS224)","v":5.52},{"$f":"IF('[2]MONE(M)CAPARD'!AT224=\"\",\"\",'[2]MONE(M)CAPARD'!AT224)","v":"n.a."},{"$f":"IF('[2]MONE(M)CAPARD'!AU224=\"\",\"\",'[2]MONE(M)CAPARD'!AU224)","v":6.25},{"$f":"IF('[2]MONE(M)CAPARD'!AV224=\"\",\"\",'[2]MONE(M)CAPARD'!AV224)","v":7},{"$f":"IF('[2]MONE(M)CAPARD'!AW224=\"\",\"\",'[2]MONE(M)CAPARD'!AW224)","v":"n.a."},{"$f":"IF('[2]MONE(M)CAPARD'!AX224=\"\",\"\",'[2]MONE(M)CAPARD'!AX224)","v":7},{"$f":"IF('[2]MONE(M)CAPARD'!AY224=\"\",\"\",'[2]MONE(M)CAPARD'!AY224)","v":"n.a."},{"$f":"IF('[2]FISCAL(M)'!$K224=\"\",\"\",'[2]FISCAL(M)'!$K224)","v":62.251648201669639},{"$f":"IF('[2]FISCAL(M)'!$L224=\"\",\"\",'[2]FISCAL(M)'!$L224)","v":-533.36589818533071},{"$f":"IF('[2]FISCAL(M)'!$AY224=\"\",\"\",'[2]FISCAL(M)'!$AY224)","v":"n.d."},{"$f":"IF('[2]FISCAL(M)'!$BI224=\"\",\"\",'[2]FISCAL(M)'!$BI224)","v":"n.d."},{"$f":"IF('[2]FISCAL(M)'!$BS224=\"\",\"\",'[2]FISCAL(M)'!$BS224)","v":"n.d."},{"$f":"IF('[2]FISCAL(M)'!$AZ224=\"\",\"\",'[2]FISCAL(M)'!$AZ224)","v":"n.d."},{"$f":"IF('[2]FISCAL(M)'!$BJ224=\"\",\"\",'[2]FISCAL(M)'!$BJ224)","v":"n.d."},{"$f":"IF('[2]FISCAL(M)'!$BT224=\"\",\"\",'[2]FISCAL(M)'!$BT224)","v":"n.d."},{"$f":"IF('[3]MONE(M)'!$AO224=\"\",\"\",'[3]MONE(M)'!$AO224)","v":5941566.1966409096},{"$f":"IF('[4]MONE(M)'!$AO224=\"\",\"\",'[4]MONE(M)'!$AO224)","v":8714.8013859899984},{"$f":"IF('[5]MONE(M)'!$AO224=\"\",\"\",'[5]MONE(M)'!$AO224)","v":75562.089428375009},{"$f":"+'[1]MONE(M)'!$AO224","v":120135.07666471168},{"$f":"IF('[6]MONE(M)'!$AO224=\"\",\"\",'[6]MONE(M)'!$AO224)","v":40727.307321957174},{"$f":"IF('[7]MONE(M)'!$AO224=\"\",\"\",'[7]MONE(M)'!$AO224)","v":286743.46264819999},{"$f":"IF('[8]MONE(M)'!$AO224=\"\",\"\",'[8]MONE(M)'!$AO224)","v":16737.039509909995},36.685443095222148,8.3508424968524508,13.30830496851927,31.961848319293829,31.999821293135099,29.586241076177778,15.398822307000891,{"$f":"IF('[2]FISCAL(M)'!$K224=\"\",\"\",'[2]FISCAL(M)'!$K224)","v":62.251648201669639},{"$f":"+'[2]REAL(A)'!$AO$27","v":142802.85135501099},4.3592720741206133E-2,{"$f":"IF('[2]FISCAL(M)'!$L224=\"\",\"\",'[2]FISCAL(M)'!$L224)","v":-533.36589818533071},{"$f":"+'[2]REAL(A)'!$AP$27","v":164098.834355011},-0.32502723147408125,63146.067337467553,{"$f":"'[2]Gráfico REM'!BG218","v":11220.617135863211},{"$f":"'[2]Gráfico REM'!BH218","v":47609.338699456988},{"$f":"'[2]Gráfico REM'!BI218","v":4316.1115021473561},16.40862932435736,-2.5587482638000703,23.94341053196527,-3.8075590454778041E-2,92312.093996467564,{"$f":"'[2]Gráfico REM'!BK218","v":11876.566639723211},{"$f":"'[2]Gráfico REM'!BL218","v":64346.378209366987},{"$f":"'[2]Gráfico REM'!BM218","v":16089.149147377359},16.414134708453719,-1.2934681974083762,21.601431601889164,12.132885824463102]
[2007,"diciembre","2007-diciembre",{"$f":"IF('[2]REAL IPC(M)'!$AL225=\"\",\"\",+'[2]REAL IPC(M)'!$AL225)","v":9.14647456887141},{"$f":"IF('[2]REAL IPC(M)'!$BE225=\"\",\"\",+'[2]REAL IPC(M)'!$BE225)","v":7.8186097542265243},{"$f":"IF('[2]REAL IPC(M)'!$AM225=\"\",\"\",+'[2]REAL IPC(M)'!$AM225)","v":8.8613106901807015},{"$f":"IF('[2]REAL IPC(M)'!$BI225=\"\",\"\",+'[2]REAL IPC(M)'!$BI225)","v":7.5815534658245864},{"$f":"IF('[2]REAL IMAE(M)'!BJ225=\"\",\"\",'[2]REAL IMAE(M)'!BJ225)","v":"n.d."},{"$f":"IF('[2]REAL IMAE(M)'!BK225=\"\",\"\",'[2]REAL IMAE(M)'!BK225)","v":"n.d."},{"$f":"IF('[2]REAL IMAE(M)'!BN225=\"\",\"\",'[2]REAL IMAE(M)'!BN225)","v":"n.d."},{"$f":"IF('[2]REAL IMAE(M)'!BO225=\"\",\"\",'[2]REAL IMAE(M)'!BO225)","v":"n.d."},{"$f":"IF('[2]EXT RIN(M)'!$K225=\"\",\"\",'[2]EXT RIN(M)'!$K225)","v":16557.801364710427},16557.801364710427,{"$f":"IF('[2]EXT RIN(M)'!$L225=\"\",\"\",'[2]EXT RIN(M)'!$L225)","v":18629.446194005428},18629.446194005428,{"$f":"IF('[2]MONE(M)CARD'!EG225=\"\",\"\",'[2]MONE(M)CARD'!EG225)","v":15282.061430010323},{"$f":"IF('[2]MONE(M)CARD'!EK225=\"\",\"\",'[2]MONE(M)CARD'!EK225)","v":25254.365593284627},{"$f":"IF('[2]MONE(M)CARD'!EP225=\"\",\"\",'[2]MONE(M)CARD'!EP225)","v":11292.416563128456},{"$f":"IF('[2]MONE(M)CARD'!ES225=\"\",\"\",'[2]MONE(M)CARD'!ES225)","v":26.43890817426864},{"$f":"IF('[2]MONE(M)CARD'!EV225=\"\",\"\",'[2]MONE(M)CARD'!EV225)","v":22.058704548517326},{"$f":"IF('[2]MONE(M)CARD'!EZ225=\"\",\"\",'[2]MONE(M)CARD'!EZ225)","v":19.173477679217754},{"$f":"IF('[2]MONE(M)CAPARD'!FC225=\"\",\"\",'[2]MONE(M)CAPARD'!FC225)","v":18336.00437501572},{"$f":"IF('[2]MONE(M)CAPARD'!FG225=\"\",\"\",'[2]MONE(M)CAPARD'!FG225)","v":39738.770466937822},{"$f":"IF('[2]MONE(M)CAPARD'!FL225=\"\",\"\",'[2]MONE(M)CAPARD'!FL225)","v":11292.416563128449},{"$f":"IF('[2]MONE(M)CAPARD'!FO225=\"\",\"\",'[2]MONE(M)CAPARD'!FO225)","v":24.762020782819928},{"$f":"IF('[2]MONE(M)CAPARD'!FR225=\"\",\"\",'[2]MONE(M)CAPARD'!FR225)","v":20.592384017857988},{"$f":"IF('[2]MONE(M)CAPARD'!FV225=\"\",\"\",'[2]MONE(M)CAPARD'!FV225)","v":18.703085969626308},{"$f":"IF('[2]MONE(M)CARD'!FV225=\"\",\"\",'[2]MONE(M)CARD'!FV225)","v":511.05647839803021},{"$f":"IF('[2]MONE(M)CARD'!GD225=\"\",\"\",'[2]MONE(M)CARD'!GD225)","v":37.969833089984377},{"$f":"IF('[2]MONE(M)CARD'!GE225=\"\",\"\",'[2]MONE(M)CARD'!GE225)","v":3163.9498707473622},14.790949287917066,{"$f":"IF('[9]II.2.Balance OSD-Activos'!J83=\"\",\"\",'[9]II.2.Balance OSD-Activos'!J83)","v":74.428442230940789},{"$f":"IF('[9]II.2.Balance OSD-Activos'!N83=\"\",\"\",'[9]II.2.Balance OSD-Activos'!N83)","v":178.80254153297093},{"$f":"IF('[9]II.2.Balance OSD-Activos'!R83=\"\",\"\",'[9]II.2.Balance OSD-Activos'!R83)","v":18006.723106535457},{"$f":"IF('[9]II.2.Balance OSD-Activos'!S83=\"\",\"\",'[9]II.2.Balance OSD-Activos'!S83)","v":19516.382800641164},18081.151548766396,37776.336890940533,53.408340912718884,24.671796022895997,20.657795721712734,24.57534165333113,32.138586170349903,28.400002745512776,1.0742572816918141,{"$f":"IF('[2]MONE(M)CAPARD'!GS225=\"\",\"\",'[2]MONE(M)CAPARD'!GS225)","v":3716.1887499400814},{"$f":"IF('[2]MONE(M)CARD'!HA225=\"\",\"\",'[2]MONE(M)CAPARD'!HA225)","v":3530.182088947362},{"$f":"IF('[2]MONE(M)CAPARD'!HB225=\"\",\"\",'[2]MONE(M)CAPARD'!HB225)","v":186.00666099271939},"n.d.",{"$f":"IF('[10]II.2.Balance OSD-Activos'!J83=\"\",\"\",'[10]II.2.Balance OSD-Activos'!J83)","v":295.1742735209408},{"$f":"IF('[10]II.2.Balance OSD-Activos'!N83=\"\",\"\",'[10]II.2.Balance OSD-Activos'!N83)","v":652.12768368297088},{"$f":"IF('[10]II.2.Balance OSD-Activos'!R83=\"\",\"\",'[10]II.2.Balance OSD-Activos'!R83)","v":26273.233514765459},{"$f":"IF('[10]II.2.Balance OSD-Activos'!S83=\"\",\"\",'[10]II.2.Balance OSD-Activos'!S83)","v":27420.620575271161},26568.4077882864,54641.156047240533,30.024731764116375,23.551254549021916,3.6772804932583725,23.482185902870146,26.87092282872068,24.905604245441015,2.0229973816169533,{"$f":"IF('[2]MONE(M)CAPARD'!AS225=\"\",\"\",'[2]MONE(M)CAPARD'!AS225)","v":5.52},{"$f":"IF('[2]MONE(M)CAPARD'!AT225=\"\",\"\",'[2]MONE(M)CAPARD'!AT225)","v":"n.a."},{"$f":"IF('[2]MONE(M)CAPARD'!AU225=\"\",\"\",'[2]MONE(M)CAPARD'!AU225)","v":6.5},{"$f":"IF('[2]MONE(M)CAPARD'!AV225=\"\",\"\",'[2]MONE(M)CAPARD'!AV225)","v":7.5},{"$f":"IF('[2]MONE(M)CAPARD'!AW225=\"\",\"\",'[2]MONE(M)CAPARD'!AW225)","v":"n.a."},{"$f":"IF('[2]MONE(M)CAPARD'!AX225=\"\",\"\",'[2]MONE(M)CAPARD'!AX225)","v":7},{"$f":"IF('[2]MONE(M)CAPARD'!AY225=\"\",\"\",'[2]MONE(M)CAPARD'!AY225)","v":"n.a."},{"$f":"IF('[2]FISCAL(M)'!$K225=\"\",\"\",'[2]FISCAL(M)'!$K225)","v":-666.07724271691677},{"$f":"IF('[2]FISCAL(M)'!$L225=\"\",\"\",'[2]FISCAL(M)'!$L225)","v":-665.03408758791818},{"$f":"IF('[2]FISCAL(M)'!$AY225=\"\",\"\",'[2]FISCAL(M)'!$AY225)","v":49248.277441989892},{"$f":"IF('[2]FISCAL(M)'!$BI225=\"\",\"\",'[2]FISCAL(M)'!$BI225)","v":22939.418873419898},{"$f":"IF('[2]FISCAL(M)'!$BS225=\"\",\"\",'[2]FISCAL(M)'!$BS225)","v":26308.858568570002},{"$f":"IF('[2]FISCAL(M)'!$AZ225=\"\",\"\",'[2]FISCAL(M)'!$AZ225)","v":59887.920026839893},{"$f":"IF('[2]FISCAL(M)'!$BJ225=\"\",\"\",'[2]FISCAL(M)'!$BJ225)","v":25303.436280549893},{"$f":"IF('[2]FISCAL(M)'!$BT225=\"\",\"\",'[2]FISCAL(M)'!$BT225)","v":34584.483746290003},{"$f":"IF('[3]MONE(M)'!$AO225=\"\",\"\",'[3]MONE(M)'!$AO225)","v":6160428.0506168222},{"$f":"IF('[4]MONE(M)'!$AO225=\"\",\"\",'[4]MONE(M)'!$AO225)","v":8773.6392377900011},{"$f":"IF('[5]MONE(M)'!$AO225=\"\",\"\",'[5]MONE(M)'!$AO225)","v":76736.544869611389},{"$f":"+'[1]MONE(M)'!$AO225","v":120527.7184998024},{"$f":"IF('[6]MONE(M)'!$AO225=\"\",\"\",'[6]MONE(M)'!$AO225)","v":41538.341226571407},{"$f":"IF('[7]MONE(M)'!$AO225=\"\",\"\",'[7]MONE(M)'!$AO225)","v":294178.24319206999},{"$f":"IF('[8]MONE(M)'!$AO225=\"\",\"\",'[8]MONE(M)'!$AO225)","v":16743.095265520002},37.383995581672337,7.8059213377459358,13.004888400500914,33.183122707771616,31.972200044493061,28.886715560482411,18.616500220957821,{"$f":"IF('[2]FISCAL(M)'!$K225=\"\",\"\",'[2]FISCAL(M)'!$K225)","v":-666.07724271691677},{"$f":"+'[2]REAL(A)'!$AO$27","v":142802.85135501099},-0.46643133270569948,{"$f":"IF('[2]FISCAL(M)'!$L225=\"\",\"\",'[2]FISCAL(M)'!$L225)","v":-665.03408758791818},{"$f":"+'[2]REAL(A)'!$AP$27","v":164098.834355011},-0.40526435803266286,63896.287203502266,{"$f":"'[2]Gráfico REM'!BG219","v":10987.899513809776},{"$f":"'[2]Gráfico REM'!BH219","v":48512.877378759367},{"$f":"'[2]Gráfico REM'!BI219","v":4395.510310933123},16.930203244030075,-4.2085973247373509,24.011382238378197,8.4117481321579923,93362.662064242264,{"$f":"'[2]Gráfico REM'!BK219","v":11553.689516669776},{"$f":"'[2]Gráfico REM'!BL219","v":65255.972644279369},{"$f":"'[2]Gráfico REM'!BM219","v":16552.999903293123},17.773604727518787,-3.656355350879481,22.580923889871251,17.850063592537111]
[2008,"enero","2008-enero",{"$f":"IF('[2]REAL IPC(M)'!$AL226=\"\",\"\",+'[2]REAL IPC(M)'!$AL226)","v":9.0565630397236632},{"$f":"IF('[2]REAL IPC(M)'!$BE226=\"\",\"\",+'[2]REAL IPC(M)'!$BE226)","v":7.7716033090333703},{"$f":"IF('[2]REAL IPC(M)'!$AM226=\"\",\"\",+'[2]REAL IPC(M)'!$AM226)","v":8.9116379310344875},{"$f":"IF('[2]REAL IPC(M)'!$BI226=\"\",\"\",+'[2]REAL IPC(M)'!$BI226)","v":7.549622016349522},{"$f":"IF('[2]REAL IMAE(M)'!BJ226=\"\",\"\",'[2]REAL IMAE(M)'!BJ226)","v":5.7657101409770206},{"$f":"IF('[2]REAL IMAE(M)'!BK226=\"\",\"\",'[2]REAL IMAE(M)'!BK226)","v":2.1649377980962337},{"$f":"IF('[2]REAL IMAE(M)'!BN226=\"\",\"\",'[2]REAL IMAE(M)'!BN226)","v":6.7082830609871191},{"$f":"IF('[2]REAL IMAE(M)'!BO226=\"\",\"\",'[2]REAL IMAE(M)'!BO226)","v":2.9650433593672254},{"$f":"IF('[2]EXT RIN(M)'!$K226=\"\",\"\",'[2]EXT RIN(M)'!$K226)","v":16678.656912816023},"",{"$f":"IF('[2]EXT RIN(M)'!$L226=\"\",\"\",'[2]EXT RIN(M)'!$L226)","v":18782.566235151022},"",{"$f":"IF('[2]MONE(M)CARD'!EG226=\"\",\"\",'[2]MONE(M)CARD'!EG226)","v":14600.499046776087},{"$f":"IF('[2]MONE(M)CARD'!EK226=\"\",\"\",'[2]MONE(M)CARD'!EK226)","v":22038.834148915754},{"$f":"IF('[2]MONE(M)CARD'!EP226=\"\",\"\",'[2]MONE(M)CARD'!EP226)","v":9952.8676511912709},{"$f":"IF('[2]MONE(M)CARD'!ES226=\"\",\"\",'[2]MONE(M)CARD'!ES226)","v":29.83987854219081},{"$f":"IF('[2]MONE(M)CARD'!EV226=\"\",\"\",'[2]MONE(M)CARD'!EV226)","v":22.647132642640109},{"$f":"IF('[2]MONE(M)CARD'!EZ226=\"\",\"\",'[2]MONE(M)CARD'!EZ226)","v":20.108422742098277},{"$f":"IF('[2]MONE(M)CAPARD'!FC226=\"\",\"\",'[2]MONE(M)CAPARD'!FC226)","v":17661.016852800487},{"$f":"IF('[2]MONE(M)CAPARD'!FG226=\"\",\"\",'[2]MONE(M)CAPARD'!FG226)","v":36624.802474340555},{"$f":"IF('[2]MONE(M)CAPARD'!FL226=\"\",\"\",'[2]MONE(M)CAPARD'!FL226)","v":9952.8676511912709},{"$f":"IF('[2]MONE(M)CAPARD'!FO226=\"\",\"\",'[2]MONE(M)CAPARD'!FO226)","v":29.014896071820615},{"$f":"IF('[2]MONE(M)CAPARD'!FR226=\"\",\"\",'[2]MONE(M)CAPARD'!FR226)","v":21.256014115564305},{"$f":"IF('[2]MONE(M)CAPARD'!FV226=\"\",\"\",'[2]MONE(M)CAPARD'!FV226)","v":19.652755769650419},{"$f":"IF('[2]MONE(M)CARD'!FV226=\"\",\"\",'[2]MONE(M)CARD'!FV226)","v":402.43322960845717},{"$f":"IF('[2]MONE(M)CARD'!GD226=\"\",\"\",'[2]MONE(M)CARD'!GD226)","v":24.750149420688555},{"$f":"IF('[2]MONE(M)CARD'!GE226=\"\",\"\",'[2]MONE(M)CARD'!GE226)","v":3093.4220707533132},9.360671965574463,{"$f":"IF('[9]II.2.Balance OSD-Activos'!J84=\"\",\"\",'[9]II.2.Balance OSD-Activos'!J84)","v":5.6977296456249347},{"$f":"IF('[9]II.2.Balance OSD-Activos'!N84=\"\",\"\",'[9]II.2.Balance OSD-Activos'!N84)","v":141.07717105877114},{"$f":"IF('[9]II.2.Balance OSD-Activos'!R84=\"\",\"\",'[9]II.2.Balance OSD-Activos'!R84)","v":14926.444254667509},{"$f":"IF('[9]II.2.Balance OSD-Activos'!S84=\"\",\"\",'[9]II.2.Balance OSD-Activos'!S84)","v":16763.991156150722},14932.141984313133,31837.210311522627,-68.069018052681486,23.027996362228031,8.6870098441393484,23.162122837039711,31.302717946997326,27.173707348842481,-1.2262953966702952,{"$f":"IF('[2]MONE(M)CAPARD'!GS226=\"\",\"\",'[2]MONE(M)CAPARD'!GS226)","v":3524.0184622387169},{"$f":"IF('[2]MONE(M)CARD'!HA226=\"\",\"\",'[2]MONE(M)CAPARD'!HA226)","v":3477.0207922433128},{"$f":"IF('[2]MONE(M)CAPARD'!HB226=\"\",\"\",'[2]MONE(M)CAPARD'!HB226)","v":46.997669995404067},"n.d.",{"$f":"IF('[10]II.2.Balance OSD-Activos'!J84=\"\",\"\",'[10]II.2.Balance OSD-Activos'!J84)","v":247.34385917562494},{"$f":"IF('[10]II.2.Balance OSD-Activos'!N84=\"\",\"\",'[10]II.2.Balance OSD-Activos'!N84)","v":607.13016619877112},{"$f":"IF('[10]II.2.Balance OSD-Activos'!R84=\"\",\"\",'[10]II.2.Balance OSD-Activos'!R84)","v":23356.485953067509},{"$f":"IF('[10]II.2.Balance OSD-Activos'!S84=\"\",\"\",'[10]II.2.Balance OSD-Activos'!S84)","v":24701.770307470724},23603.829812243133,48912.730285912628,20.265670908333178,22.496620465572615,4.1366390368110517,22.520689082408516,25.493475765473228,23.717925158553022,-1.187679086887993,{"$f":"IF('[2]MONE(M)CAPARD'!AS226=\"\",\"\",'[2]MONE(M)CAPARD'!AS226)","v":5.99},{"$f":"IF('[2]MONE(M)CAPARD'!AT226=\"\",\"\",'[2]MONE(M)CAPARD'!AT226)","v":"n.a."},{"$f":"IF('[2]MONE(M)CAPARD'!AU226=\"\",\"\",'[2]MONE(M)CAPARD'!AU226)","v":6.5},{"$f":"IF('[2]MONE(M)CAPARD'!AV226=\"\",\"\",'[2]MONE(M)CAPARD'!AV226)","v":7.5},{"$f":"IF('[2]MONE(M)CAPARD'!AW226=\"\",\"\",'[2]MONE(M)CAPARD'!AW226)","v":"n.a."},{"$f":"IF('[2]MONE(M)CAPARD'!AX226=\"\",\"\",'[2]MONE(M)CAPARD'!AX226)","v":7},{"$f":"IF('[2]MONE(M)CAPARD'!AY226=\"\",\"\",'[2]MONE(M)CAPARD'!AY226)","v":"n.a."},{"$f":"IF('[2]FISCAL(M)'!$K226=\"\",\"\",'[2]FISCAL(M)'!$K226)","v":131.63900218738124},{"$f":"IF('[2]FISCAL(M)'!$L226=\"\",\"\",'[2]FISCAL(M)'!$L226)","v":52.730636977381238},{"$f":"IF('[2]FISCAL(M)'!$AY226=\"\",\"\",'[2]FISCAL(M)'!$AY226)","v":"n.d."},{"$f":"IF('[2]FISCAL(M)'!$BI226=\"\",\"\",'[2]FISCAL(M)'!$BI226)","v":"n.d."},{"$f":"IF('[2]FISCAL(M)'!$BS226=\"\",\"\",'[2]FISCAL(M)'!$BS226)","v":"n.d."},{"$f":"IF('[2]FISCAL(M)'!$AZ226=\"\",\"\",'[2]FISCAL(M)'!$AZ226)","v":"n.d."},{"$f":"IF('[2]FISCAL(M)'!$BJ226=\"\",\"\",'[2]FISCAL(M)'!$BJ226)","v":"n.d."},{"$f":"IF('[2]FISCAL(M)'!$BT226=\"\",\"\",'[2]FISCAL(M)'!$BT226)","v":"n.d."},{"$f":"IF('[3]MONE(M)'!$AO226=\"\",\"\",'[3]MONE(M)'!$AO226)","v":6293619.8067052281},{"$f":"IF('[4]MONE(M)'!$AO226=\"\",\"\",'[4]MONE(M)'!$AO226)","v":8854.9335304199994},{"$f":"IF('[5]MONE(M)'!$AO226=\"\",\"\",'[5]MONE(M)'!$AO226)","v":76821.697362542574},{"$f":"+'[1]MONE(M)'!$AO226","v":124443.89473762974},{"$f":"IF('[6]MONE(M)'!$AO226=\"\",\"\",'[6]MONE(M)'!$AO226)","v":42100.755822950588},{"$f":"IF('[7]MONE(M)'!$AO226=\"\",\"\",'[7]MONE(M)'!$AO226)","v":298590.45260459004},{"$f":"IF('[8]MONE(M)'!$AO226=\"\",\"\",'[8]MONE(M)'!$AO226)","v":16927.708996880003},39.171033006855495,8.1961879990541053,12.106578238569554,31.006310498154164,30.773474301659554,29.125838582409958,18.228357774085158,{"$f":"IF('[2]FISCAL(M)'!$K226=\"\",\"\",'[2]FISCAL(M)'!$K226)","v":131.63900218738124},{"$f":"+'[2]REAL(A)'!$AO$28","v":159639.80081281642},8.2460014054848915E-2,{"$f":"IF('[2]FISCAL(M)'!$L226=\"\",\"\",'[2]FISCAL(M)'!$L226)","v":52.730636977381238},{"$f":"+'[2]REAL(A)'!$AP$28","v":184795.6888128164},2.8534560149178184E-2,64998.230235143958,{"$f":"'[2]Gráfico REM'!BG220","v":11389.53627031205},{"$f":"'[2]Gráfico REM'!BH220","v":49040.143455074089},{"$f":"'[2]Gráfico REM'!BI220","v":4568.5505097578207},18.577429789778744,-0.32390682499876533,24.206349100971501,16.972460976139647,94679.256563293966,{"$f":"'[2]Gráfico REM'!BK220","v":11978.67880490005},{"$f":"'[2]Gráfico REM'!BL220","v":65967.852451954095},{"$f":"'[2]Gráfico REM'!BM220","v":16732.725306439825},18.734458818236167,0.59398908519330273,22.615442688663954,19.248752882380504]
[2008,"febrero","2008-febrero",{"$f":"IF('[2]REAL IPC(M)'!$AL227=\"\",\"\",+'[2]REAL IPC(M)'!$AL227)","v":9.4321359432135932},{"$f":"IF('[2]REAL IPC(M)'!$BE227=\"\",\"\",+'[2]REAL IPC(M)'!$BE227)","v":7.7183890251389053},{"$f":"IF('[2]REAL IPC(M)'!$AM227=\"\",\"\",+'[2]REAL IPC(M)'!$AM227)","v":9.3203049500698132},{"$f":"IF('[2]REAL IPC(M)'!$BI227=\"\",\"\",+'[2]REAL IPC(M)'!$BI227)","v":7.5101340742459222},{"$f":"IF('[2]REAL IMAE(M)'!BJ227=\"\",\"\",'[2]REAL IMAE(M)'!BJ227)","v":4.8919142394436621},{"$f":"IF('[2]REAL IMAE(M)'!BK227=\"\",\"\",'[2]REAL IMAE(M)'!BK227)","v":2.1425019267703016},{"$f":"IF('[2]REAL IMAE(M)'!BN227=\"\",\"\",'[2]REAL IMAE(M)'!BN227)","v":5.4082131789043864},{"$f":"IF('[2]REAL IMAE(M)'!BO227=\"\",\"\",'[2]REAL IMAE(M)'!BO227)","v":2.9351075742110933},{"$f":"IF('[2]EXT RIN(M)'!$K227=\"\",\"\",'[2]EXT RIN(M)'!$K227)","v":16845.612612520639},"",{"$f":"IF('[2]EXT RIN(M)'!$L227=\"\",\"\",'[2]EXT RIN(M)'!$L227)","v":18955.004149465891},"",{"$f":"IF('[2]MONE(M)CARD'!EG227=\"\",\"\",'[2]MONE(M)CARD'!EG227)","v":14814.438628565749},{"$f":"IF('[2]MONE(M)CARD'!EK227=\"\",\"\",'[2]MONE(M)CARD'!EK227)","v":22620.93538141892},{"$f":"IF('[2]MONE(M)CARD'!EP227=\"\",\"\",'[2]MONE(M)CARD'!EP227)","v":9971.879677236655},{"$f":"IF('[2]MONE(M)CARD'!ES227=\"\",\"\",'[2]MONE(M)CARD'!ES227)","v":27.010867114521897},{"$f":"IF('[2]MONE(M)CARD'!EV227=\"\",\"\",'[2]MONE(M)CARD'!EV227)","v":23.334984881607902},{"$f":"IF('[2]MONE(M)CARD'!EZ227=\"\",\"\",'[2]MONE(M)CARD'!EZ227)","v":20.275004625651171},{"$f":"IF('[2]MONE(M)CAPARD'!FC227=\"\",\"\",'[2]MONE(M)CAPARD'!FC227)","v":17932.902621880148},{"$f":"IF('[2]MONE(M)CAPARD'!FG227=\"\",\"\",'[2]MONE(M)CAPARD'!FG227)","v":37353.428386755317},{"$f":"IF('[2]MONE(M)CAPARD'!FL227=\"\",\"\",'[2]MONE(M)CAPARD'!FL227)","v":9971.8796772366477},{"$f":"IF('[2]MONE(M)CAPARD'!FO227=\"\",\"\",'[2]MONE(M)CAPARD'!FO227)","v":26.828546149235912},{"$f":"IF('[2]MONE(M)CAPARD'!FR227=\"\",\"\",'[2]MONE(M)CAPARD'!FR227)","v":21.450502224976219},{"$f":"IF('[2]MONE(M)CAPARD'!FV227=\"\",\"\",'[2]MONE(M)CAPARD'!FV227)","v":19.553783734432884},{"$f":"IF('[2]MONE(M)CARD'!FV227=\"\",\"\",'[2]MONE(M)CARD'!FV227)","v":404.85092259673962},{"$f":"IF('[2]MONE(M)CARD'!GD227=\"\",\"\",'[2]MONE(M)CARD'!GD227)","v":22.920772502074133},{"$f":"IF('[2]MONE(M)CARD'!GE227=\"\",\"\",'[2]MONE(M)CARD'!GE227)","v":2853.7960477066476},8.0081175923993442,{"$f":"IF('[9]II.2.Balance OSD-Activos'!J85=\"\",\"\",'[9]II.2.Balance OSD-Activos'!J85)","v":5.9562951880709489},{"$f":"IF('[9]II.2.Balance OSD-Activos'!N85=\"\",\"\",'[9]II.2.Balance OSD-Activos'!N85)","v":140.63862268434607},{"$f":"IF('[9]II.2.Balance OSD-Activos'!R85=\"\",\"\",'[9]II.2.Balance OSD-Activos'!R85)","v":15204.033771638547},{"$f":"IF('[9]II.2.Balance OSD-Activos'!S85=\"\",\"\",'[9]II.2.Balance OSD-Activos'!S85)","v":17072.708225926726},15209.990066826618,32423.336915437692,-56.718482613382079,24.140024162151619,5.8920258610186016,24.230946463558254,31.605097613465215,27.863474661911191,0.68976731306871031,{"$f":"IF('[2]MONE(M)CAPARD'!GS227=\"\",\"\",'[2]MONE(M)CAPARD'!GS227)","v":3677.1020899843979},{"$f":"IF('[2]MONE(M)CARD'!HA227=\"\",\"\",'[2]MONE(M)CAPARD'!HA227)","v":3237.0354219766482},{"$f":"IF('[2]MONE(M)CAPARD'!HB227=\"\",\"\",'[2]MONE(M)CAPARD'!HB227)","v":440.06666800774974},"n.d.",{"$f":"IF('[10]II.2.Balance OSD-Activos'!J85=\"\",\"\",'[10]II.2.Balance OSD-Activos'!J85)","v":275.43895075807097},{"$f":"IF('[10]II.2.Balance OSD-Activos'!N85=\"\",\"\",'[10]II.2.Balance OSD-Activos'!N85)","v":563.80950613434595},{"$f":"IF('[10]II.2.Balance OSD-Activos'!R85=\"\",\"\",'[10]II.2.Balance OSD-Activos'!R85)","v":23696.358491538551},{"$f":"IF('[10]II.2.Balance OSD-Activos'!S85=\"\",\"\",'[10]II.2.Balance OSD-Activos'!S85)","v":25092.123406666724},23971.797442296622,49627.730355097694,47.045514645887131,23.358988568264593,-4.9382412432441463,23.128445679835743,25.776431217555661,24.145582211824301,0.4276570532712789,{"$f":"IF('[2]MONE(M)CAPARD'!AS227=\"\",\"\",'[2]MONE(M)CAPARD'!AS227)","v":5.99},{"$f":"IF('[2]MONE(M)CAPARD'!AT227=\"\",\"\",'[2]MONE(M)CAPARD'!AT227)","v":"n.a."},{"$f":"IF('[2]MONE(M)CAPARD'!AU227=\"\",\"\",'[2]MONE(M)CAPARD'!AU227)","v":6.5},{"$f":"IF('[2]MONE(M)CAPARD'!AV227=\"\",\"\",'[2]MONE(M)CAPARD'!AV227)","v":7.75},{"$f":"IF('[2]MONE(M)CAPARD'!AW227=\"\",\"\",'[2]MONE(M)CAPARD'!AW227)","v":"n.a."},{"$f":"IF('[2]MONE(M)CAPARD'!AX227=\"\",\"\",'[2]MONE(M)CAPARD'!AX227)","v":8},{"$f":"IF('[2]MONE(M)CAPARD'!AY227=\"\",\"\",'[2]MONE(M)CAPARD'!AY227)","v":"n.a."},{"$f":"IF('[2]FISCAL(M)'!$K227=\"\",\"\",'[2]FISCAL(M)'!$K227)","v":8.8851003318127937},{"$f":"IF('[2]FISCAL(M)'!$L227=\"\",\"\",'[2]FISCAL(M)'!$L227)","v":-103.05814791818729},{"$f":"IF('[2]FISCAL(M)'!$AY227=\"\",\"\",'[2]FISCAL(M)'!$AY227)","v":"n.d."},{"$f":"IF('[2]FISCAL(M)'!$BI227=\"\",\"\",'[2]FISCAL(M)'!$BI227)","v":"n.d."},{"$f":"IF('[2]FISCAL(M)'!$BS227=\"\",\"\",'[2]FISCAL(M)'!$BS227)","v":"n.d."},{"$f":"IF('[2]FISCAL(M)'!$AZ227=\"\",\"\",'[2]FISCAL(M)'!$AZ227)","v":"n.d."},{"$f":"IF('[2]FISCAL(M)'!$BJ227=\"\",\"\",'[2]FISCAL(M)'!$BJ227)","v":"n.d."},{"$f":"IF('[2]FISCAL(M)'!$BT227=\"\",\"\",'[2]FISCAL(M)'!$BT227)","v":"n.d."},{"$f":"IF('[3]MONE(M)'!$AO227=\"\",\"\",'[3]MONE(M)'!$AO227)","v":6464478.6328722192},{"$f":"IF('[4]MONE(M)'!$AO227=\"\",\"\",'[4]MONE(M)'!$AO227)","v":8935.6711540199994},{"$f":"IF('[5]MONE(M)'!$AO227=\"\",\"\",'[5]MONE(M)'!$AO227)","v":77209.071496934455},{"$f":"+'[1]MONE(M)'!$AO227","v":127016.80824197558},{"$f":"IF('[6]MONE(M)'!$AO227=\"\",\"\",'[6]MONE(M)'!$AO227)","v":43138.949339513507},{"$f":"IF('[7]MONE(M)'!$AO227=\"\",\"\",'[7]MONE(M)'!$AO227)","v":301205.27564047999},{"$f":"IF('[8]MONE(M)'!$AO227=\"\",\"\",'[8]MONE(M)'!$AO227)","v":17151.067786299998},39.95423744097446,9.157166994826337,11.606532767833833,30.478026780464894,32.151438223893635,29.413301621695442,18.784687923443787,{"$f":"IF('[2]FISCAL(M)'!$K227=\"\",\"\",'[2]FISCAL(M)'!$K227)","v":8.8851003318127937},{"$f":"+'[2]REAL(A)'!$AO$28","v":159639.80081281642},5.5657175006318775E-3,{"$f":"IF('[2]FISCAL(M)'!$L227=\"\",\"\",'[2]FISCAL(M)'!$L227)","v":-103.05814791818729},{"$f":"+'[2]REAL(A)'!$AP$28","v":184795.6888128164},-5.576869708393313E-2,66011.306913803041,{"$f":"'[2]Gráfico REM'!BG221","v":11547.868701423733},{"$f":"'[2]Gráfico REM'!BH221","v":49943.916123528419},{"$f":"'[2]Gráfico REM'!BI221","v":4519.5220888508884},19.235666734741574,2.3870139683488834,24.805379912384605,11.155007288189033,96308.610599434032,{"$f":"'[2]Gráfico REM'!BK221","v":12230.838093296734},{"$f":"'[2]Gráfico REM'!BL221","v":67094.983909828414},{"$f":"'[2]Gráfico REM'!BM221","v":16982.788596308885},19.709821698845943,3.8334991776329153,23.209024539385336,19.460688059787824]
[2008,"marzo","2008-marzo",{"$f":"IF('[2]REAL IPC(M)'!$AL228=\"\",\"\",+'[2]REAL IPC(M)'!$AL228)","v":9.8175221427809323},{"$f":"IF('[2]REAL IPC(M)'!$BE228=\"\",\"\",+'[2]REAL IPC(M)'!$BE228)","v":7.6580503818419077},{"$f":"IF('[2]REAL IPC(M)'!$AM228=\"\",\"\",+'[2]REAL IPC(M)'!$AM228)","v":9.7049110471929332},{"$f":"IF('[2]REAL IPC(M)'!$BI228=\"\",\"\",+'[2]REAL IPC(M)'!$BI228)","v":7.4620813653856422},{"$f":"IF('[2]REAL IMAE(M)'!BJ228=\"\",\"\",'[2]REAL IMAE(M)'!BJ228)","v":5.4329951613157013},{"$f":"IF('[2]REAL IMAE(M)'!BK228=\"\",\"\",'[2]REAL IMAE(M)'!BK228)","v":2.1178990884344273},{"$f":"IF('[2]REAL IMAE(M)'!BN228=\"\",\"\",'[2]REAL IMAE(M)'!BN228)","v":5.8789032378613104},{"$f":"IF('[2]REAL IMAE(M)'!BO228=\"\",\"\",'[2]REAL IMAE(M)'!BO228)","v":2.9024931135672061},{"$f":"IF('[2]EXT RIN(M)'!$K228=\"\",\"\",'[2]EXT RIN(M)'!$K228)","v":17250.804473252341},"",{"$f":"IF('[2]EXT RIN(M)'!$L228=\"\",\"\",'[2]EXT RIN(M)'!$L228)","v":19262.05363292334},"",{"$f":"IF('[2]MONE(M)CARD'!EG228=\"\",\"\",'[2]MONE(M)CARD'!EG228)","v":15266.719690327125},{"$f":"IF('[2]MONE(M)CARD'!EK228=\"\",\"\",'[2]MONE(M)CARD'!EK228)","v":22749.865630252345},{"$f":"IF('[2]MONE(M)CARD'!EP228=\"\",\"\",'[2]MONE(M)CARD'!EP228)","v":10100.129670911323},{"$f":"IF('[2]MONE(M)CARD'!ES228=\"\",\"\",'[2]MONE(M)CARD'!ES228)","v":26.414630395225515},{"$f":"IF('[2]MONE(M)CARD'!EV228=\"\",\"\",'[2]MONE(M)CARD'!EV228)","v":19.825536427239744},{"$f":"IF('[2]MONE(M)CARD'!EZ228=\"\",\"\",'[2]MONE(M)CARD'!EZ228)","v":17.452634417628452},{"$f":"IF('[2]MONE(M)CAPARD'!FC228=\"\",\"\",'[2]MONE(M)CAPARD'!FC228)","v":18402.713661912527},{"$f":"IF('[2]MONE(M)CAPARD'!FG228=\"\",\"\",'[2]MONE(M)CAPARD'!FG228)","v":37833.156200904341},{"$f":"IF('[2]MONE(M)CAPARD'!FL228=\"\",\"\",'[2]MONE(M)CAPARD'!FL228)","v":10100.129670911323},{"$f":"IF('[2]MONE(M)CAPARD'!FO228=\"\",\"\",'[2]MONE(M)CAPARD'!FO228)","v":25.992735917103005},{"$f":"IF('[2]MONE(M)CAPARD'!FR228=\"\",\"\",'[2]MONE(M)CAPARD'!FR228)","v":18.910240135862864},{"$f":"IF('[2]MONE(M)CAPARD'!FV228=\"\",\"\",'[2]MONE(M)CAPARD'!FV228)","v":17.340310154915816},{"$f":"IF('[2]MONE(M)CARD'!FV228=\"\",\"\",'[2]MONE(M)CARD'!FV228)","v":396.93818618702505},{"$f":"IF('[2]MONE(M)CARD'!GD228=\"\",\"\",'[2]MONE(M)CARD'!GD228)","v":13.3519299361928},{"$f":"IF('[2]MONE(M)CARD'!GE228=\"\",\"\",'[2]MONE(M)CARD'!GE228)","v":3156.1141195165274},19.00680842054323,{"$f":"IF('[9]II.2.Balance OSD-Activos'!J86=\"\",\"\",'[9]II.2.Balance OSD-Activos'!J86)","v":7.4867089416587831},{"$f":"IF('[9]II.2.Balance OSD-Activos'!N86=\"\",\"\",'[9]II.2.Balance OSD-Activos'!N86)","v":145.42055181231513},{"$f":"IF('[9]II.2.Balance OSD-Activos'!R86=\"\",\"\",'[9]II.2.Balance OSD-Activos'!R86)","v":15454.278583430159},{"$f":"IF('[9]II.2.Balance OSD-Activos'!S86=\"\",\"\",'[9]II.2.Balance OSD-Activos'!S86)","v":17378.510937585685},15461.765292371818,32985.696781769817,-46.643010230517987,23.634285803887046,4.9538308539293086,23.713223065746792,30.896479031747837,27.254050942773066,-0.60942371913812465,{"$f":"IF('[2]MONE(M)CAPARD'!GS228=\"\",\"\",'[2]MONE(M)CAPARD'!GS228)","v":3709.2852124143487},{"$f":"IF('[2]MONE(M)CARD'!HA228=\"\",\"\",'[2]MONE(M)CAPARD'!HA228)","v":3544.2665882465276},{"$f":"IF('[2]MONE(M)CAPARD'!HB228=\"\",\"\",'[2]MONE(M)CAPARD'!HB228)","v":165.01862416782114},"n.d.",{"$f":"IF('[10]II.2.Balance OSD-Activos'!J86=\"\",\"\",'[10]II.2.Balance OSD-Activos'!J86)","v":259.77553584165872},{"$f":"IF('[10]II.2.Balance OSD-Activos'!N86=\"\",\"\",'[10]II.2.Balance OSD-Activos'!N86)","v":573.32759876231512},{"$f":"IF('[10]II.2.Balance OSD-Activos'!R86=\"\",\"\",'[10]II.2.Balance OSD-Activos'!R86)","v":24060.47691759016},{"$f":"IF('[10]II.2.Balance OSD-Activos'!S86=\"\",\"\",'[10]II.2.Balance OSD-Activos'!S86)","v":25434.318219205685},24320.252453431818,50327.898271399819,39.444256282201586,22.895504766681253,4.0132353998898918,22.738237439883036,25.089712167025112,23.73650777609695,-0.40907443572735147,{"$f":"IF('[2]MONE(M)CAPARD'!AS228=\"\",\"\",'[2]MONE(M)CAPARD'!AS228)","v":5.99},{"$f":"IF('[2]MONE(M)CAPARD'!AT228=\"\",\"\",'[2]MONE(M)CAPARD'!AT228)","v":"n.a."},{"$f":"IF('[2]MONE(M)CAPARD'!AU228=\"\",\"\",'[2]MONE(M)CAPARD'!AU228)","v":6.75},{"$f":"IF('[2]MONE(M)CAPARD'!AV228=\"\",\"\",'[2]MONE(M)CAPARD'!AV228)","v":7.75},{"$f":"IF('[2]MONE(M)CAPARD'!AW228=\"\",\"\",'[2]MONE(M)CAPARD'!AW228)","v":"n.a."},{"$f":"IF('[2]MONE(M)CAPARD'!AX228=\"\",\"\",'[2]MONE(M)CAPARD'!AX228)","v":9},{"$f":"IF('[2]MONE(M)CAPARD'!AY228=\"\",\"\",'[2]MONE(M)CAPARD'!AY228)","v":"n.a."},{"$f":"IF('[2]FISCAL(M)'!$K228=\"\",\"\",'[2]FISCAL(M)'!$K228)","v":6.4149446707088202},{"$f":"IF('[2]FISCAL(M)'!$L228=\"\",\"\",'[2]FISCAL(M)'!$L228)","v":19.726777140708673},{"$f":"IF('[2]FISCAL(M)'!$AY228=\"\",\"\",'[2]FISCAL(M)'!$AY228)","v":51426.212651916794},{"$f":"IF('[2]FISCAL(M)'!$BI228=\"\",\"\",'[2]FISCAL(M)'!$BI228)","v":24944.420651916796},{"$f":"IF('[2]FISCAL(M)'!$BS228=\"\",\"\",'[2]FISCAL(M)'!$BS228)","v":26481.792000000001},{"$f":"IF('[2]FISCAL(M)'!$AZ228=\"\",\"\",'[2]FISCAL(M)'!$AZ228)","v":62170.781452216805},{"$f":"IF('[2]FISCAL(M)'!$BJ228=\"\",\"\",'[2]FISCAL(M)'!$BJ228)","v":27396.536048466798},{"$f":"IF('[2]FISCAL(M)'!$BT228=\"\",\"\",'[2]FISCAL(M)'!$BT228)","v":34774.245403749999},{"$f":"IF('[3]MONE(M)'!$AO228=\"\",\"\",'[3]MONE(M)'!$AO228)","v":6636052.8106466718},{"$f":"IF('[4]MONE(M)'!$AO228=\"\",\"\",'[4]MONE(M)'!$AO228)","v":9017.7701151500005},{"$f":"IF('[5]MONE(M)'!$AO228=\"\",\"\",'[5]MONE(M)'!$AO228)","v":77439.670312014103},{"$f":"+'[1]MONE(M)'!$AO228","v":128485.75099708361},{"$f":"IF('[6]MONE(M)'!$AO228=\"\",\"\",'[6]MONE(M)'!$AO228)","v":43551.628740422915},{"$f":"IF('[7]MONE(M)'!$AO228=\"\",\"\",'[7]MONE(M)'!$AO228)","v":306069.37986423},{"$f":"IF('[8]MONE(M)'!$AO228=\"\",\"\",'[8]MONE(M)'!$AO228)","v":17302.44591925},40.711522786235534,8.6943036641364824,11.813534750254595,28.717908361377063,31.318681356908495,30.917264622434693,18.305666513210173,{"$f":"IF('[2]FISCAL(M)'!$K228=\"\",\"\",'[2]FISCAL(M)'!$K228)","v":6.4149446707088202},{"$f":"+'[2]REAL(A)'!$AO$28","v":159639.80081281642},4.0183867920447862E-3,{"$f":"IF('[2]FISCAL(M)'!$L228=\"\",\"\",'[2]FISCAL(M)'!$L228)","v":19.726777140708673},{"$f":"+'[2]REAL(A)'!$AP$28","v":184795.6888128164},1.0674911989256609E-2,67034.372784763284,{"$f":"'[2]Gráfico REM'!BG222","v":11624.058517428297},{"$f":"'[2]Gráfico REM'!BH222","v":50783.345976982375},{"$f":"'[2]Gráfico REM'!BI222","v":4626.9682903526136},19.27623433329655,1.9102943072234924,24.567736524488048,14.895111216783064,97700.486038803283,{"$f":"'[2]Gráfico REM'!BK222","v":12341.587319598297},{"$f":"'[2]Gráfico REM'!BL222","v":68085.791896232375},{"$f":"'[2]Gráfico REM'!BM222","v":17273.106822972612},19.227546971186825,3.4162149227720873,22.914381649372718,18.164906134230961]
[2008,"abril","2008-abril",{"$f":"IF('[2]REAL IPC(M)'!$AL229=\"\",\"\",+'[2]REAL IPC(M)'!$AL229)","v":10.655911696030573},{"$f":"IF('[2]REAL IPC(M)'!$BE229=\"\",\"\",+'[2]REAL IPC(M)'!$BE229)","v":7.5897935514943615},{"$f":"IF('[2]REAL IPC(M)'!$AM229=\"\",\"\",+'[2]REAL IPC(M)'!$AM229)","v":10.435427481724746},{"$f":"IF('[2]REAL IPC(M)'!$BI229=\"\",\"\",+'[2]REAL IPC(M)'!$BI229)","v":7.4046029661884116},{"$f":"IF('[2]REAL IMAE(M)'!BJ229=\"\",\"\",'[2]REAL IMAE(M)'!BJ229)","v":6.840359048852096},{"$f":"IF('[2]REAL IMAE(M)'!BK229=\"\",\"\",'[2]REAL IMAE(M)'!BK229)","v":2.0915695830252767},{"$f":"IF('[2]REAL IMAE(M)'!BN229=\"\",\"\",'[2]REAL IMAE(M)'!BN229)","v":7.6787412051636528},{"$f":"IF('[2]REAL IMAE(M)'!BO229=\"\",\"\",'[2]REAL IMAE(M)'!BO229)","v":2.8676678402646871},{"$f":"IF('[2]EXT RIN(M)'!$K229=\"\",\"\",'[2]EXT RIN(M)'!$K229)","v":17525.103586873833},"",{"$f":"IF('[2]EXT RIN(M)'!$L229=\"\",\"\",'[2]EXT RIN(M)'!$L229)","v":19483.070407085452},"",{"$f":"IF('[2]MONE(M)CARD'!EG229=\"\",\"\",'[2]MONE(M)CARD'!EG229)","v":15151.510669200519},{"$f":"IF('[2]MONE(M)CARD'!EK229=\"\",\"\",'[2]MONE(M)CARD'!EK229)","v":22769.396114671079},{"$f":"IF('[2]MONE(M)CARD'!EP229=\"\",\"\",'[2]MONE(M)CARD'!EP229)","v":10474.741251540872},{"$f":"IF('[2]MONE(M)CARD'!ES229=\"\",\"\",'[2]MONE(M)CARD'!ES229)","v":27.385048423357784},{"$f":"IF('[2]MONE(M)CARD'!EV229=\"\",\"\",'[2]MONE(M)CARD'!EV229)","v":19.114523944708072},{"$f":"IF('[2]MONE(M)CARD'!EZ229=\"\",\"\",'[2]MONE(M)CARD'!EZ229)","v":17.527377085019459},{"$f":"IF('[2]MONE(M)CAPARD'!FC229=\"\",\"\",'[2]MONE(M)CAPARD'!FC229)","v":18333.471632364919},{"$f":"IF('[2]MONE(M)CAPARD'!FG229=\"\",\"\",'[2]MONE(M)CAPARD'!FG229)","v":37975.319830284177},{"$f":"IF('[2]MONE(M)CAPARD'!FL229=\"\",\"\",'[2]MONE(M)CAPARD'!FL229)","v":10474.741251540865},{"$f":"IF('[2]MONE(M)CAPARD'!FO229=\"\",\"\",'[2]MONE(M)CAPARD'!FO229)","v":26.292497358337229},{"$f":"IF('[2]MONE(M)CAPARD'!FR229=\"\",\"\",'[2]MONE(M)CAPARD'!FR229)","v":20.235349076092369},{"$f":"IF('[2]MONE(M)CAPARD'!FV229=\"\",\"\",'[2]MONE(M)CAPARD'!FV229)","v":18.885502672558154},{"$f":"IF('[2]MONE(M)CARD'!FV229=\"\",\"\",'[2]MONE(M)CARD'!FV229)","v":400.09542188265277},{"$f":"IF('[2]MONE(M)CARD'!GD229=\"\",\"\",'[2]MONE(M)CARD'!GD229)","v":14.97049980337483},{"$f":"IF('[2]MONE(M)CARD'!GE229=\"\",\"\",'[2]MONE(M)CARD'!GE229)","v":3309.9619722995626},19.762989074802782,{"$f":"IF('[9]II.2.Balance OSD-Activos'!J87=\"\",\"\",'[9]II.2.Balance OSD-Activos'!J87)","v":7.303411582142691},{"$f":"IF('[9]II.2.Balance OSD-Activos'!N87=\"\",\"\",'[9]II.2.Balance OSD-Activos'!N87)","v":144.21264277388164},{"$f":"IF('[9]II.2.Balance OSD-Activos'!R87=\"\",\"\",'[9]II.2.Balance OSD-Activos'!R87)","v":15670.202503426612},{"$f":"IF('[9]II.2.Balance OSD-Activos'!S87=\"\",\"\",'[9]II.2.Balance OSD-Activos'!S87)","v":17733.418894928043},15677.505915008755,33555.137452710682,-49.497295823777854,{"$f":"IF(OR(AJ222=\"\",AJ210=\"\"),\"\",((AJ222/AJ210)-1)*100)","v":23.791476676992083},2.9886107601513556,23.875260189093783,30.938565217460102,{"$f":"IF(OR(AK222=\"\",AK210=\"\"),\"\",((AK222/AK210)-1)*100)","v":27.354670565143223},0.1006196223701572,{"$f":"IF('[2]MONE(M)CAPARD'!GS229=\"\",\"\",'[2]MONE(M)CAPARD'!GS229)","v":3797.7106442707568},{"$f":"IF('[2]MONE(M)CARD'!HA229=\"\",\"\",'[2]MONE(M)CAPARD'!HA229)","v":3701.1774721895631},{"$f":"IF('[2]MONE(M)CAPARD'!HB229=\"\",\"\",'[2]MONE(M)CAPARD'!HB229)","v":96.533172081193698},"n.d.",{"$f":"IF('[10]II.2.Balance OSD-Activos'!J87=\"\",\"\",'[10]II.2.Balance OSD-Activos'!J87)","v":258.02630351814264},{"$f":"IF('[10]II.2.Balance OSD-Activos'!N87=\"\",\"\",'[10]II.2.Balance OSD-Activos'!N87)","v":616.56211329388145},{"$f":"IF('[10]II.2.Balance OSD-Activos'!R87=\"\",\"\",'[10]II.2.Balance OSD-Activos'!R87)","v":24387.465326096608},{"$f":"IF('[10]II.2.Balance OSD-Activos'!S87=\"\",\"\",'[10]II.2.Balance OSD-Activos'!S87)","v":25874.216346128043},24645.491629614749,51136.270089036676,{"$f":"IF(OR(AW222=\"\",AW210=\"\"),\"\",((AW222/AW210)-1)*100)","v":33.720919040698895},{"$f":"IF(OR(BA222=\"\",BA210=\"\"),\"\",((BA222/BA210)-1)*100)","v":25.324114985352697},-0.6883502331004987,25.240908305974653,26.917221204766474,{"$f":"IF(OR(BB222=\"\",BB210=\"\"),\"\",((BB222/BB210)-1)*100)","v":25.725578418819815},1.989070642722865,{"$f":"IF('[2]MONE(M)CAPARD'!AS229=\"\",\"\",'[2]MONE(M)CAPARD'!AS229)","v":5.99},{"$f":"IF('[2]MONE(M)CAPARD'!AT229=\"\",\"\",'[2]MONE(M)CAPARD'!AT229)","v":"n.a."},{"$f":"IF('[2]MONE(M)CAPARD'!AU229=\"\",\"\",'[2]MONE(M)CAPARD'!AU229)","v":6.75},{"$f":"IF('[2]MONE(M)CAPARD'!AV229=\"\",\"\",'[2]MONE(M)CAPARD'!AV229)","v":7.75},{"$f":"IF('[2]MONE(M)CAPARD'!AW229=\"\",\"\",'[2]MONE(M)CAPARD'!AW229)","v":"n.a."},{"$f":"IF('[2]MONE(M)CAPARD'!AX229=\"\",\"\",'[2]MONE(M)CAPARD'!AX229)","v":9},{"$f":"IF('[2]MONE(M)CAPARD'!AY229=\"\",\"\",'[2]MONE(M)CAPARD'!AY229)","v":"n.a."},{"$f":"IF('[2]FISCAL(M)'!$K229=\"\",\"\",'[2]FISCAL(M)'!$K229)","v":448.32105740553902},{"$f":"IF('[2]FISCAL(M)'!$L229=\"\",\"\",'[2]FISCAL(M)'!$L229)","v":314.96426358553867},{"$f":"IF('[2]FISCAL(M)'!$AY229=\"\",\"\",'[2]FISCAL(M)'!$AY229)","v":"n.d."},{"$f":"IF('[2]FISCAL(M)'!$BI229=\"\",\"\",'[2]FISCAL(M)'!$BI229)","v":"n.d."},{"$f":"IF('[2]FISCAL(M)'!$BS229=\"\",\"\",'[2]FISCAL(M)'!$BS229)","v":"n.d."},{"$f":"IF('[2]FISCAL(M)'!$AZ229=\"\",\"\",'[2]FISCAL(M)'!$AZ229)","v":"n.d."},{"$f":"IF('[2]FISCAL(M)'!$BJ229=\"\",\"\",'[2]FISCAL(M)'!$BJ229)","v":"n.d."},{"$f":"IF('[2]FISCAL(M)'!$BT229=\"\",\"\",'[2]FISCAL(M)'!$BT229)","v":"n.d."},{"$f":"IF('[3]MONE(M)'!$AO229=\"\",\"\",'[3]MONE(M)'!$AO229)","v":6795777.0476829112},{"$f":"IF('[4]MONE(M)'!$AO229=\"\",\"\",'[4]MONE(M)'!$AO229)","v":9067.2952381499999},{"$f":"IF('[5]MONE(M)'!$AO229=\"\",\"\",'[5]MONE(M)'!$AO229)","v":77150.702241046311},{"$f":"+'[1]MONE(M)'!$AO229","v":129971.8950854204},{"$f":"IF('[6]MONE(M)'!$AO229=\"\",\"\",'[6]MONE(M)'!$AO229)","v":43891.975205281815},{"$f":"IF('[7]MONE(M)'!$AO229=\"\",\"\",'[7]MONE(M)'!$AO229)","v":311953.51904549001},{"$f":"IF('[8]MONE(M)'!$AO229=\"\",\"\",'[8]MONE(M)'!$AO229)","v":17493.786363216001},{"$f":"((BY222/BY210)-1)*100","v":41.541538378595064},8.6948252061132436,11.647547358662358,27.080951548609455,30.12781965697371,30.30346700308144,23.934773177279279,{"$f":"IF('[2]FISCAL(M)'!$K229=\"\",\"\",'[2]FISCAL(M)'!$K229)","v":448.32105740553902},{"$f":"+'[2]REAL(A)'!$AO$28","v":159639.80081281642},0.28083288448299437,{"$f":"IF('[2]FISCAL(M)'!$L229=\"\",\"\",'[2]FISCAL(M)'!$L229)","v":314.96426358553867},{"$f":"+'[2]REAL(A)'!$AP$28","v":184795.6888128164},0.17043918373256689,67926.243175731244,{"$f":"'[2]Gráfico REM'!BG223","v":11762.225869419617},{"$f":"'[2]Gráfico REM'!BH223","v":51496.449186343976},{"$f":"'[2]Gráfico REM'!BI223","v":4667.5681199676546},19.454516977247383,2.0385962056070239,24.634533444379979,16.15219423488583,99402.620450366259,{"$f":"'[2]Gráfico REM'!BK223","v":12487.891682362617},{"$f":"'[2]Gráfico REM'!BL223","v":68990.235549559977},{"$f":"'[2]Gráfico REM'!BM223","v":17924.493218443655},21.978571665140567,3.6447525782496548,24.456349178946766,27.942103785316075]
[2008,"mayo ","2008-mayo ",{"$f":"IF('[2]REAL IPC(M)'!$AL230=\"\",\"\",+'[2]REAL IPC(M)'!$AL230)","v":11.672658067244669},{"$f":"IF('[2]REAL IPC(M)'!$BE230=\"\",\"\",+'[2]REAL IPC(M)'!$BE230)","v":7.5129751811770396},{"$f":"IF('[2]REAL IPC(M)'!$AM230=\"\",\"\",+'[2]REAL IPC(M)'!$AM230)","v":11.386661038412814},{"$f":"IF('[2]REAL IPC(M)'!$BI230=\"\",\"\",+'[2]REAL IPC(M)'!$BI230)","v":7.3370144825396943},{"$f":"IF('[2]REAL IMAE(M)'!BJ230=\"\",\"\",'[2]REAL IMAE(M)'!BJ230)","v":5.7814234628317029},{"$f":"IF('[2]REAL IMAE(M)'!BK230=\"\",\"\",'[2]REAL IMAE(M)'!BK230)","v":2.0641456690531301},{"$f":"IF('[2]REAL IMAE(M)'!BN230=\"\",\"\",'[2]REAL IMAE(M)'!BN230)","v":6.7685183624049072},{"$f":"IF('[2]REAL IMAE(M)'!BO230=\"\",\"\",'[2]REAL IMAE(M)'!BO230)","v":2.8312982891619543},{"$f":"IF('[2]EXT RIN(M)'!$K230=\"\",\"\",'[2]EXT RIN(M)'!$K230)","v":17298.641879493753},"",{"$f":"IF('[2]EXT RIN(M)'!$L230=\"\",\"\",'[2]EXT RIN(M)'!$L230)","v":19252.771926007041},"",{"$f":"IF('[2]MONE(M)CARD'!EG230=\"\",\"\",'[2]MONE(M)CARD'!EG230)","v":14597.964618981383},{"$f":"IF('[2]MONE(M)CARD'!EK230=\"\",\"\",'[2]MONE(M)CARD'!EK230)","v":22590.813569314112},{"$f":"IF('[2]MONE(M)CARD'!EP230=\"\",\"\",'[2]MONE(M)CARD'!EP230)","v":10668.133511025182},{"$f":"IF('[2]MONE(M)CARD'!ES230=\"\",\"\",'[2]MONE(M)CARD'!ES230)","v":22.384426081118704},{"$f":"IF('[2]MONE(M)CARD'!EV230=\"\",\"\",'[2]MONE(M)CARD'!EV230)","v":14.615450490971105},{"$f":"IF('[2]MONE(M)CARD'!EZ230=\"\",\"\",'[2]MONE(M)CARD'!EZ230)","v":14.36934042747129},{"$f":"IF('[2]MONE(M)CAPARD'!FC230=\"\",\"\",'[2]MONE(M)CAPARD'!FC230)","v":17805.088827776781},{"$f":"IF('[2]MONE(M)CAPARD'!FG230=\"\",\"\",'[2]MONE(M)CAPARD'!FG230)","v":38181.80093402051},{"$f":"IF('[2]MONE(M)CAPARD'!FL230=\"\",\"\",'[2]MONE(M)CAPARD'!FL230)","v":10668.133511025189},{"$f":"IF('[2]MONE(M)CAPARD'!FO230=\"\",\"\",'[2]MONE(M)CAPARD'!FO230)","v":23.625059574895868},{"$f":"IF('[2]MONE(M)CAPARD'!FR230=\"\",\"\",'[2]MONE(M)CAPARD'!FR230)","v":15.808742477204341},{"$f":"IF('[2]MONE(M)CAPARD'!FV230=\"\",\"\",'[2]MONE(M)CAPARD'!FV230)","v":15.436181538173299},{"$f":"IF('[2]MONE(M)CARD'!FV230=\"\",\"\",'[2]MONE(M)CARD'!FV230)","v":392.0595383204444},{"$f":"IF('[2]MONE(M)CARD'!GD230=\"\",\"\",'[2]MONE(M)CARD'!GD230)","v":16.589265619611897},{"$f":"IF('[2]MONE(M)CARD'!GE230=\"\",\"\",'[2]MONE(M)CARD'!GE230)","v":3084.8850273974558},6.2660407618714054,{"$f":"IF('[9]II.2.Balance OSD-Activos'!J88=\"\",\"\",'[9]II.2.Balance OSD-Activos'!J88)","v":7.2873128598241816},{"$f":"IF('[9]II.2.Balance OSD-Activos'!N88=\"\",\"\",'[9]II.2.Balance OSD-Activos'!N88)","v":147.81539307289171},{"$f":"IF('[9]II.2.Balance OSD-Activos'!R88=\"\",\"\",'[9]II.2.Balance OSD-Activos'!R88)","v":15693.055837265758},{"$f":"IF('[9]II.2.Balance OSD-Activos'!S88=\"\",\"\",'[9]II.2.Balance OSD-Activos'!S88)","v":17810.656955176499},15700.343150125582,33658.81549837497,-50.464736221828829,22.480166770813014,4.6120726843303261,22.563978193939715,28.324184188254332,25.408207033505036,-1.9464635316381873,{"$f":"IF('[2]MONE(M)CAPARD'!GS230=\"\",\"\",'[2]MONE(M)CAPARD'!GS230)","v":3710.7677826474592},{"$f":"IF('[2]MONE(M)CARD'!HA230=\"\",\"\",'[2]MONE(M)CAPARD'!HA230)","v":3475.281741807456},{"$f":"IF('[2]MONE(M)CAPARD'!HB230=\"\",\"\",'[2]MONE(M)CAPARD'!HB230)","v":235.48604084000317},"n.d.",{"$f":"IF('[10]II.2.Balance OSD-Activos'!J88=\"\",\"\",'[10]II.2.Balance OSD-Activos'!J88)","v":262.09959213982415},{"$f":"IF('[10]II.2.Balance OSD-Activos'!N88=\"\",\"\",'[10]II.2.Balance OSD-Activos'!N88)","v":565.57204876289165},{"$f":"IF('[10]II.2.Balance OSD-Activos'!R88=\"\",\"\",'[10]II.2.Balance OSD-Activos'!R88)","v":24645.654829445753},{"$f":"IF('[10]II.2.Balance OSD-Activos'!S88=\"\",\"\",'[10]II.2.Balance OSD-Activos'!S88)","v":26017.046497226496},24907.754421585578,51490.372967574964,39.719135120564175,21.61631388793106,1.6860428617079481,21.448969869708169,23.24010856101506,22.166631476424058,{"$f":"IF(OR(BH223=\"\",BH222=\"\"),\"\",BH223-BH222)","v":-3.5589469423957567},{"$f":"IF('[2]MONE(M)CAPARD'!AS230=\"\",\"\",'[2]MONE(M)CAPARD'!AS230)","v":7.0012000000000008},{"$f":"IF('[2]MONE(M)CAPARD'!AT230=\"\",\"\",'[2]MONE(M)CAPARD'!AT230)","v":"n.a."},{"$f":"IF('[2]MONE(M)CAPARD'!AU230=\"\",\"\",'[2]MONE(M)CAPARD'!AU230)","v":6.75},{"$f":"IF('[2]MONE(M)CAPARD'!AV230=\"\",\"\",'[2]MONE(M)CAPARD'!AV230)","v":8},{"$f":"IF('[2]MONE(M)CAPARD'!AW230=\"\",\"\",'[2]MONE(M)CAPARD'!AW230)","v":"n.a."},{"$f":"IF('[2]MONE(M)CAPARD'!AX230=\"\",\"\",'[2]MONE(M)CAPARD'!AX230)","v":9},{"$f":"IF('[2]MONE(M)CAPARD'!AY230=\"\",\"\",'[2]MONE(M)CAPARD'!AY230)","v":"n.a."},{"$f":"IF('[2]FISCAL(M)'!$K230=\"\",\"\",'[2]FISCAL(M)'!$K230)","v":156.06626714368997},{"$f":"IF('[2]FISCAL(M)'!$L230=\"\",\"\",'[2]FISCAL(M)'!$L230)","v":90.240024403690043},{"$f":"IF('[2]FISCAL(M)'!$AY230=\"\",\"\",'[2]FISCAL(M)'!$AY230)","v":"n.d."},{"$f":"IF('[2]FISCAL(M)'!$BI230=\"\",\"\",'[2]FISCAL(M)'!$BI230)","v":"n.d."},{"$f":"IF('[2]FISCAL(M)'!$BS230=\"\",\"\",'[2]FISCAL(M)'!$BS230)","v":"n.d."},{"$f":"IF('[2]FISCAL(M)'!$AZ230=\"\",\"\",'[2]FISCAL(M)'!$AZ230)","v":"n.d."},{"$f":"IF('[2]FISCAL(M)'!$BJ230=\"\",\"\",'[2]FISCAL(M)'!$BJ230)","v":"n.d."},{"$f":"IF('[2]FISCAL(M)'!$BT230=\"\",\"\",'[2]FISCAL(M)'!$BT230)","v":"n.d."},{"$f":"IF('[3]MONE(M)'!$AO230=\"\",\"\",'[3]MONE(M)'!$AO230)","v":7103653.2488369644},{"$f":"IF('[4]MONE(M)'!$AO230=\"\",\"\",'[4]MONE(M)'!$AO230)","v":9062.2856041199993},{"$f":"IF('[5]MONE(M)'!$AO230=\"\",\"\",'[5]MONE(M)'!$AO230)","v":77665.696160369378},{"$f":"+'[1]MONE(M)'!$AO230","v":130545.68317507274},{"$f":"IF('[6]MONE(M)'!$AO230=\"\",\"\",'[6]MONE(M)'!$AO230)","v":44235.035900676186},{"$f":"IF('[7]MONE(M)'!$AO230=\"\",\"\",'[7]MONE(M)'!$AO230)","v":319107.42541690002},{"$f":"IF('[8]MONE(M)'!$AO230=\"\",\"\",'[8]MONE(M)'!$AO230)","v":17808.929460299994},44.099437713414822,8.1486344696407809,11.904972439564965,25.342986887555831,28.99678639715335,29.801814651017811,17.34116912013026,{"$f":"IF('[2]FISCAL(M)'!$K230=\"\",\"\",'[2]FISCAL(M)'!$K230)","v":156.06626714368997},{"$f":"+'[2]REAL(A)'!$AO$28","v":159639.80081281642},9.7761502049657056E-2,{"$f":"IF('[2]FISCAL(M)'!$L230=\"\",\"\",'[2]FISCAL(M)'!$L230)","v":90.240024403690043},{"$f":"+'[2]REAL(A)'!$AP$28","v":184795.6888128164},4.8832321242675822E-2,68273.090368770558,{"$f":"'[2]Gráfico REM'!BG224","v":11729.300675729795},{"$f":"'[2]Gráfico REM'!BH224","v":51835.928876304046},{"$f":"'[2]Gráfico REM'!BI224","v":4707.8608167367202},18.465498215216634,1.3673990025495852,23.549510085192061,14.699101926123582,100324.94438667156,{"$f":"'[2]Gráfico REM'!BK224","v":12447.718322579796},{"$f":"'[2]Gráfico REM'!BL224","v":69644.85833660404},{"$f":"'[2]Gráfico REM'!BM224","v":18232.367727487719},19.754102733103874,2.7573851352623135,21.900289896871207,25.485617099483136]
[2008,"junio ","2008-junio ",{"$f":"IF('[2]REAL IPC(M)'!$AL231=\"\",\"\",+'[2]REAL IPC(M)'!$AL231)","v":13.021983801409508},{"$f":"IF('[2]REAL IPC(M)'!$BE231=\"\",\"\",+'[2]REAL IPC(M)'!$BE231)","v":7.4271467598802321},{"$f":"IF('[2]REAL IPC(M)'!$AM231=\"\",\"\",+'[2]REAL IPC(M)'!$AM231)","v":12.671916010498684},{"$f":"IF('[2]REAL IPC(M)'!$BI231=\"\",\"\",+'[2]REAL IPC(M)'!$BI231)","v":7.2588535270752486},{"$f":"IF('[2]REAL IMAE(M)'!BJ231=\"\",\"\",'[2]REAL IMAE(M)'!BJ231)","v":4.043295283172732},{"$f":"IF('[2]REAL IMAE(M)'!BK231=\"\",\"\",'[2]REAL IMAE(M)'!BK231)","v":2.0365363373925804},{"$f":"IF('[2]REAL IMAE(M)'!BN231=\"\",\"\",'[2]REAL IMAE(M)'!BN231)","v":5.0142971013841686},{"$f":"IF('[2]REAL IMAE(M)'!BO231=\"\",\"\",'[2]REAL IMAE(M)'!BO231)","v":2.7943713113584678},{"$f":"IF('[2]EXT RIN(M)'!$K231=\"\",\"\",'[2]EXT RIN(M)'!$K231)","v":16963.930532118793},"",{"$f":"IF('[2]EXT RIN(M)'!$L231=\"\",\"\",'[2]EXT RIN(M)'!$L231)","v":19480.374936027212},"",{"$f":"IF('[2]MONE(M)CARD'!EG231=\"\",\"\",'[2]MONE(M)CARD'!EG231)","v":14149.1767716867},{"$f":"IF('[2]MONE(M)CARD'!EK231=\"\",\"\",'[2]MONE(M)CARD'!EK231)","v":22634.915510330149},{"$f":"IF('[2]MONE(M)CARD'!EP231=\"\",\"\",'[2]MONE(M)CARD'!EP231)","v":10833.885614675819},{"$f":"IF('[2]MONE(M)CARD'!ES231=\"\",\"\",'[2]MONE(M)CARD'!ES231)","v":16.911292837734628},{"$f":"IF('[2]MONE(M)CARD'!EV231=\"\",\"\",'[2]MONE(M)CARD'!EV231)","v":12.203332285899693},{"$f":"IF('[2]MONE(M)CARD'!EZ231=\"\",\"\",'[2]MONE(M)CARD'!EZ231)","v":12.817659226956412},{"$f":"IF('[2]MONE(M)CAPARD'!FC231=\"\",\"\",'[2]MONE(M)CAPARD'!FC231)","v":17410.152281253097},{"$f":"IF('[2]MONE(M)CAPARD'!FG231=\"\",\"\",'[2]MONE(M)CAPARD'!FG231)","v":38444.279345710151},{"$f":"IF('[2]MONE(M)CAPARD'!FL231=\"\",\"\",'[2]MONE(M)CAPARD'!FL231)","v":10833.885614675812},{"$f":"IF('[2]MONE(M)CAPARD'!FO231=\"\",\"\",'[2]MONE(M)CAPARD'!FO231)","v":19.295240120718148},{"$f":"IF('[2]MONE(M)CAPARD'!FR231=\"\",\"\",'[2]MONE(M)CAPARD'!FR231)","v":14.62580198779435},{"$f":"IF('[2]MONE(M)CAPARD'!FV231=\"\",\"\",'[2]MONE(M)CAPARD'!FV231)","v":14.679091837366109},{"$f":"IF('[2]MONE(M)CARD'!FV231=\"\",\"\",'[2]MONE(M)CARD'!FV231)","v":444.62989315678755},{"$f":"IF('[2]MONE(M)CARD'!GD231=\"\",\"\",'[2]MONE(M)CARD'!GD231)","v":18.142834746883171},{"$f":"IF('[2]MONE(M)CARD'!GE231=\"\",\"\",'[2]MONE(M)CARD'!GE231)","v":2937.5116584900848},{"$f":"IF(AD224=\"\",\"\",((AD224/AD211)-1)*100)","v":3.3301100852738408},{"$f":"IF('[9]II.2.Balance OSD-Activos'!J89=\"\",\"\",'[9]II.2.Balance OSD-Activos'!J89)","v":9.2732844014078246},{"$f":"IF('[9]II.2.Balance OSD-Activos'!N89=\"\",\"\",'[9]II.2.Balance OSD-Activos'!N89)","v":149.42497230004466},{"$f":"IF('[9]II.2.Balance OSD-Activos'!R89=\"\",\"\",'[9]II.2.Balance OSD-Activos'!R89)","v":15764.507255861399},{"$f":"IF('[9]II.2.Balance OSD-Activos'!S89=\"\",\"\",'[9]II.2.Balance OSD-Activos'!S89)","v":18066.260235822534},15773.780540262807,33989.465748385388,{"$f":"IF(OR(AF224=\"\",AF212=\"\"),\"\",((AF224/AF212)-1)*100)","v":-33.448177275766525},21.315511341691497,3.3446981525428354,21.374261970428243,27.501582091377585,24.429211051895617,{"$f":"IF(OR(AQ224=\"\",AQ223=\"\"),\"\",AQ224-AQ223)","v":-0.97899598160941892},{"$f":"IF('[2]MONE(M)CAPARD'!GS231=\"\",\"\",'[2]MONE(M)CAPARD'!GS231)","v":3935.2940469951595},{"$f":"IF('[2]MONE(M)CARD'!HA231=\"\",\"\",'[2]MONE(M)CAPARD'!HA231)","v":3327.3642377100846},{"$f":"IF('[2]MONE(M)CAPARD'!HB231=\"\",\"\",'[2]MONE(M)CAPARD'!HB231)","v":607.92980928507495},"n.d.",{"$f":"IF('[10]II.2.Balance OSD-Activos'!J89=\"\",\"\",'[10]II.2.Balance OSD-Activos'!J89)","v":248.90920315140784},{"$f":"IF('[10]II.2.Balance OSD-Activos'!N89=\"\",\"\",'[10]II.2.Balance OSD-Activos'!N89)","v":581.01828072004457},{"$f":"IF('[10]II.2.Balance OSD-Activos'!R89=\"\",\"\",'[10]II.2.Balance OSD-Activos'!R89)","v":25072.6756065314},{"$f":"IF('[10]II.2.Balance OSD-Activos'!S89=\"\",\"\",'[10]II.2.Balance OSD-Activos'!S89)","v":26324.745011882533},25321.584809682809,52227.348102285381,32.695108663681062,21.938693014688514,4.3982694433013947,21.840643574483455,22.436042298927127,21.960444415300763,-0.20618706112329477,{"$f":"IF('[2]MONE(M)CAPARD'!AS231=\"\",\"\",'[2]MONE(M)CAPARD'!AS231)","v":8},{"$f":"IF('[2]MONE(M)CAPARD'!AT231=\"\",\"\",'[2]MONE(M)CAPARD'!AT231)","v":"n.a."},{"$f":"IF('[2]MONE(M)CAPARD'!AU231=\"\",\"\",'[2]MONE(M)CAPARD'!AU231)","v":6.75},{"$f":"IF('[2]MONE(M)CAPARD'!AV231=\"\",\"\",'[2]MONE(M)CAPARD'!AV231)","v":8.5},{"$f":"IF('[2]MONE(M)CAPARD'!AW231=\"\",\"\",'[2]MONE(M)CAPARD'!AW231)","v":"n.a."},{"$f":"IF('[2]MONE(M)CAPARD'!AX231=\"\",\"\",'[2]MONE(M)CAPARD'!AX231)","v":9},{"$f":"IF('[2]MONE(M)CAPARD'!AY231=\"\",\"\",'[2]MONE(M)CAPARD'!AY231)","v":"n.a."},{"$f":"IF('[2]FISCAL(M)'!$K231=\"\",\"\",'[2]FISCAL(M)'!$K231)","v":-95.858662277923258},{"$f":"IF('[2]FISCAL(M)'!$L231=\"\",\"\",'[2]FISCAL(M)'!$L231)","v":286.3956982320766},{"$f":"IF('[2]FISCAL(M)'!$AY231=\"\",\"\",'[2]FISCAL(M)'!$AY231)","v":50987.474098968174},{"$f":"IF('[2]FISCAL(M)'!$BI231=\"\",\"\",'[2]FISCAL(M)'!$BI231)","v":24116.989598968175},{"$f":"IF('[2]FISCAL(M)'!$BS231=\"\",\"\",'[2]FISCAL(M)'!$BS231)","v":26870.484499999999},{"$f":"IF('[2]FISCAL(M)'!$AZ231=\"\",\"\",'[2]FISCAL(M)'!$AZ231)","v":62019.071665178169},{"$f":"IF('[2]FISCAL(M)'!$BJ231=\"\",\"\",'[2]FISCAL(M)'!$BJ231)","v":26692.29610908818},{"$f":"IF('[2]FISCAL(M)'!$BT231=\"\",\"\",'[2]FISCAL(M)'!$BT231)","v":35326.775556089997},{"$f":"IF('[3]MONE(M)'!$AO231=\"\",\"\",'[3]MONE(M)'!$AO231)","v":7243879.8992386963},{"$f":"IF('[4]MONE(M)'!$AO231=\"\",\"\",'[4]MONE(M)'!$AO231)","v":9111.4835499799992},{"$f":"IF('[5]MONE(M)'!$AO231=\"\",\"\",'[5]MONE(M)'!$AO231)","v":78854.306912560729},{"$f":"+'[1]MONE(M)'!$AO231","v":132297.52434996786},{"$f":"IF('[6]MONE(M)'!$AO231=\"\",\"\",'[6]MONE(M)'!$AO231)","v":44794.727666625746},{"$f":"IF('[7]MONE(M)'!$AO231=\"\",\"\",'[7]MONE(M)'!$AO231)","v":321874.37795065006},{"$f":"IF('[8]MONE(M)'!$AO231=\"\",\"\",'[8]MONE(M)'!$AO231)","v":18223.19087287},42.836680601841024,8.0828550962577239,12.319732653439619,25.046697395257866,26.547056436769356,25.976049235231713,18.429525070705566,{"$f":"IF('[2]FISCAL(M)'!$K231=\"\",\"\",'[2]FISCAL(M)'!$K231)","v":-95.858662277923258},{"$f":"+'[2]REAL(A)'!$AO$28","v":159639.80081281642},-6.0046844076384866E-2,{"$f":"IF('[2]FISCAL(M)'!$L231=\"\",\"\",'[2]FISCAL(M)'!$L231)","v":286.3956982320766},{"$f":"+'[2]REAL(A)'!$AP$28","v":184795.6888128164},0.15497964269186662,69010.885428830647,{"$f":"'[2]Gráfico REM'!BG225","v":11954.994052711838},{"$f":"'[2]Gráfico REM'!BH225","v":52318.864414585492},{"$f":"'[2]Gráfico REM'!BI225","v":4737.0269615333127},18.257918699377296,2.6935874971405704,22.889507472076808,14.395521238003006,101823.34195536465,{"$f":"'[2]Gráfico REM'!BK225","v":12694.120710651838},{"$f":"'[2]Gráfico REM'!BL225","v":70542.0552874555},{"$f":"'[2]Gráfico REM'!BM225","v":18587.165957257312},20.219952761860881,4.2508137970342919,21.705485867451401,27.661371511149358]
[2008,"julio","2008-julio",{"$f":"IF('[2]REAL IPC(M)'!$AL232=\"\",\"\",+'[2]REAL IPC(M)'!$AL232)","v":14.058743597784051},{"$f":"IF('[2]REAL IPC(M)'!$BE232=\"\",\"\",+'[2]REAL IPC(M)'!$BE232)","v":7.3321169845824707},{"$f":"IF('[2]REAL IPC(M)'!$AM232=\"\",\"\",+'[2]REAL IPC(M)'!$AM232)","v":13.607429823646044},{"$f":"IF('[2]REAL IPC(M)'!$BI232=\"\",\"\",+'[2]REAL IPC(M)'!$BI232)","v":7.1699452315926893},{"$f":"IF('[2]REAL IMAE(M)'!BJ232=\"\",\"\",'[2]REAL IMAE(M)'!BJ232)","v":2.8888926076932275},{"$f":"IF('[2]REAL IMAE(M)'!BK232=\"\",\"\",'[2]REAL IMAE(M)'!BK232)","v":2.0098646593121883},{"$f":"IF('[2]REAL IMAE(M)'!BN232=\"\",\"\",'[2]REAL IMAE(M)'!BN232)","v":3.9202055157346871},{"$f":"IF('[2]REAL IMAE(M)'!BO232=\"\",\"\",'[2]REAL IMAE(M)'!BO232)","v":2.7581325548565516},{"$f":"IF('[2]EXT RIN(M)'!$K232=\"\",\"\",'[2]EXT RIN(M)'!$K232)","v":16684.934030699034},"",{"$f":"IF('[2]EXT RIN(M)'!$L232=\"\",\"\",'[2]EXT RIN(M)'!$L232)","v":19115.508496185113},"",{"$f":"IF('[2]MONE(M)CARD'!EG232=\"\",\"\",'[2]MONE(M)CARD'!EG232)","v":13785.631761112742},{"$f":"IF('[2]MONE(M)CARD'!EK232=\"\",\"\",'[2]MONE(M)CARD'!EK232)","v":22471.018573876932},{"$f":"IF('[2]MONE(M)CARD'!EP232=\"\",\"\",'[2]MONE(M)CARD'!EP232)","v":10883.046857523528},{"$f":"IF('[2]MONE(M)CARD'!ES232=\"\",\"\",'[2]MONE(M)CARD'!ES232)","v":12.70039305421118},{"$f":"IF('[2]MONE(M)CARD'!EV232=\"\",\"\",'[2]MONE(M)CARD'!EV232)","v":6.9441266924306966},{"$f":"IF('[2]MONE(M)CARD'!EZ232=\"\",\"\",'[2]MONE(M)CARD'!EZ232)","v":8.7700692586178306},{"$f":"IF('[2]MONE(M)CAPARD'!FC232=\"\",\"\",'[2]MONE(M)CAPARD'!FC232)","v":16992.308480388143},{"$f":"IF('[2]MONE(M)CAPARD'!FG232=\"\",\"\",'[2]MONE(M)CAPARD'!FG232)","v":38056.39611813693},{"$f":"IF('[2]MONE(M)CAPARD'!FL232=\"\",\"\",'[2]MONE(M)CAPARD'!FL232)","v":10883.046857523528},{"$f":"IF('[2]MONE(M)CAPARD'!FO232=\"\",\"\",'[2]MONE(M)CAPARD'!FO232)","v":14.852907673210659},{"$f":"IF('[2]MONE(M)CAPARD'!FR232=\"\",\"\",'[2]MONE(M)CAPARD'!FR232)","v":10.439886938515874},{"$f":"IF('[2]MONE(M)CAPARD'!FV232=\"\",\"\",'[2]MONE(M)CAPARD'!FV232)","v":11.218323079576553},{"$f":"IF('[2]MONE(M)CARD'!FV232=\"\",\"\",'[2]MONE(M)CARD'!FV232)","v":442.2210982461753},{"$f":"IF('[2]MONE(M)CARD'!GD232=\"\",\"\",'[2]MONE(M)CARD'!GD232)","v":20.394731966305585},{"$f":"IF('[2]MONE(M)CARD'!GE232=\"\",\"\",'[2]MONE(M)CARD'!GE232)","v":2728.004865521596},-7.3929744184008994,{"$f":"IF('[9]II.2.Balance OSD-Activos'!J90=\"\",\"\",'[9]II.2.Balance OSD-Activos'!J90)","v":6.2601128173446332},{"$f":"IF('[9]II.2.Balance OSD-Activos'!N90=\"\",\"\",'[9]II.2.Balance OSD-Activos'!N90)","v":150.50157736457706},{"$f":"IF('[9]II.2.Balance OSD-Activos'!R90=\"\",\"\",'[9]II.2.Balance OSD-Activos'!R90)","v":15629.597978462331},{"$f":"IF('[9]II.2.Balance OSD-Activos'!S90=\"\",\"\",'[9]II.2.Balance OSD-Activos'!S90)","v":17976.371103959347},15635.858091279675,33762.730772603602,-56.874329973815428,18.252263157532987,10.294671814975786,18.334829830000231,23.569944271291597,20.985440921817712,-3.4437701300779047,{"$f":"IF('[2]MONE(M)CAPARD'!GS232=\"\",\"\",'[2]MONE(M)CAPARD'!GS232)","v":3830.5823537951337},{"$f":"IF('[2]MONE(M)CARD'!HA232=\"\",\"\",'[2]MONE(M)CAPARD'!HA232)","v":3191.7775718915959},{"$f":"IF('[2]MONE(M)CAPARD'!HB232=\"\",\"\",'[2]MONE(M)CAPARD'!HB232)","v":638.80478190353779},"n.d.",{"$f":"IF('[10]II.2.Balance OSD-Activos'!J90=\"\",\"\",'[10]II.2.Balance OSD-Activos'!J90)","v":251.27679765734462},{"$f":"IF('[10]II.2.Balance OSD-Activos'!N90=\"\",\"\",'[10]II.2.Balance OSD-Activos'!N90)","v":558.05629301457702},{"$f":"IF('[10]II.2.Balance OSD-Activos'!R90=\"\",\"\",'[10]II.2.Balance OSD-Activos'!R90)","v":25209.03076104233},{"$f":"IF('[10]II.2.Balance OSD-Activos'!S90=\"\",\"\",'[10]II.2.Balance OSD-Activos'!S90)","v":26312.477139149345},25460.307558699675,52330.840990863595,34.360196331270167,20.206456250526593,1.2933966258561469,20.080369676944688,19.787602485596857,19.75745195261165,-2.2029924626891138,{"$f":"IF('[2]MONE(M)CAPARD'!AS232=\"\",\"\",'[2]MONE(M)CAPARD'!AS232)","v":8.9976000000000003},{"$f":"IF('[2]MONE(M)CAPARD'!AT232=\"\",\"\",'[2]MONE(M)CAPARD'!AT232)","v":"n.a."},{"$f":"IF('[2]MONE(M)CAPARD'!AU232=\"\",\"\",'[2]MONE(M)CAPARD'!AU232)","v":7.25},{"$f":"IF('[2]MONE(M)CAPARD'!AV232=\"\",\"\",'[2]MONE(M)CAPARD'!AV232)","v":9},{"$f":"IF('[2]MONE(M)CAPARD'!AW232=\"\",\"\",'[2]MONE(M)CAPARD'!AW232)","v":"n.a."},{"$f":"IF('[2]MONE(M)CAPARD'!AX232=\"\",\"\",'[2]MONE(M)CAPARD'!AX232)","v":9},{"$f":"IF('[2]MONE(M)CAPARD'!AY232=\"\",\"\",'[2]MONE(M)CAPARD'!AY232)","v":"n.a."},{"$f":"IF('[2]FISCAL(M)'!$K232=\"\",\"\",'[2]FISCAL(M)'!$K232)","v":-310.73472794515084},{"$f":"IF('[2]FISCAL(M)'!$L232=\"\",\"\",'[2]FISCAL(M)'!$L232)","v":-180.36938795515061},{"$f":"IF('[2]FISCAL(M)'!$AY232=\"\",\"\",'[2]FISCAL(M)'!$AY232)","v":"n.d."},{"$f":"IF('[2]FISCAL(M)'!$BI232=\"\",\"\",'[2]FISCAL(M)'!$BI232)","v":"n.d."},{"$f":"IF('[2]FISCAL(M)'!$BS232=\"\",\"\",'[2]FISCAL(M)'!$BS232)","v":"n.d."},{"$f":"IF('[2]FISCAL(M)'!$AZ232=\"\",\"\",'[2]FISCAL(M)'!$AZ232)","v":"n.d."},{"$f":"IF('[2]FISCAL(M)'!$BJ232=\"\",\"\",'[2]FISCAL(M)'!$BJ232)","v":"n.d."},{"$f":"IF('[2]FISCAL(M)'!$BT232=\"\",\"\",'[2]FISCAL(M)'!$BT232)","v":"n.d."},{"$f":"IF('[3]MONE(M)'!$AO232=\"\",\"\",'[3]MONE(M)'!$AO232)","v":7520293.4247210566},{"$f":"IF('[4]MONE(M)'!$AO232=\"\",\"\",'[4]MONE(M)'!$AO232)","v":9136.7193479499983},{"$f":"IF('[5]MONE(M)'!$AO232=\"\",\"\",'[5]MONE(M)'!$AO232)","v":79118.69258897382},{"$f":"+'[1]MONE(M)'!$AO232","v":132988.92893337383},{"$f":"IF('[6]MONE(M)'!$AO232=\"\",\"\",'[6]MONE(M)'!$AO232)","v":45542.517421681579},{"$f":"IF('[7]MONE(M)'!$AO232=\"\",\"\",'[7]MONE(M)'!$AO232)","v":321122.98345044005},{"$f":"IF('[8]MONE(M)'!$AO232=\"\",\"\",'[8]MONE(M)'!$AO232)","v":18573.681732599998},44.483159397948711,7.4920309007296293,10.554711758621483,22.460381449836355,26.140099248725267,23.636320650778742,18.393413784320135,{"$f":"IF('[2]FISCAL(M)'!$K232=\"\",\"\",'[2]FISCAL(M)'!$K232)","v":-310.73472794515084},{"$f":"+'[2]REAL(A)'!$AO$28","v":159639.80081281642},-0.1946474039450217,{"$f":"IF('[2]FISCAL(M)'!$L232=\"\",\"\",'[2]FISCAL(M)'!$L232)","v":-180.36938795515061},{"$f":"+'[2]REAL(A)'!$AP$28","v":184795.6888128164},-9.7604759674805364E-2,68604.261620000616,{"$f":"'[2]Gráfico REM'!BG226","v":11723.51281766383},{"$f":"'[2]Gráfico REM'!BH226","v":52258.114355448182},{"$f":"'[2]Gráfico REM'!BI226","v":4622.6344468885945},16.073706152780321,2.5419346335404436,20.020939230542332,11.919437732802574,102001.0061690906,{"$f":"'[2]Gráfico REM'!BK226","v":12508.149834303829},{"$f":"'[2]Gráfico REM'!BL226","v":70831.796088048184},{"$f":"'[2]Gráfico REM'!BM226","v":18661.060246738594},18.420057563940361,4.2920669753590435,19.589852831710132,25.136311286483792]
[2008,"agosto","2008-agosto",{"$f":"IF('[2]REAL IPC(M)'!$AL233=\"\",\"\",+'[2]REAL IPC(M)'!$AL233)","v":14.395913687063477},{"$f":"IF('[2]REAL IPC(M)'!$BE233=\"\",\"\",+'[2]REAL IPC(M)'!$BE233)","v":7.2280240227043269},{"$f":"IF('[2]REAL IPC(M)'!$AM233=\"\",\"\",+'[2]REAL IPC(M)'!$AM233)","v":13.924445832032472},{"$f":"IF('[2]REAL IPC(M)'!$BI233=\"\",\"\",+'[2]REAL IPC(M)'!$BI233)","v":7.0704801937409689},{"$f":"IF('[2]REAL IMAE(M)'!BJ233=\"\",\"\",'[2]REAL IMAE(M)'!BJ233)","v":1.7487886954154153},{"$f":"IF('[2]REAL IMAE(M)'!BK233=\"\",\"\",'[2]REAL IMAE(M)'!BK233)","v":1.9853636372420214},{"$f":"IF('[2]REAL IMAE(M)'!BN233=\"\",\"\",'[2]REAL IMAE(M)'!BN233)","v":2.6736609164412339},{"$f":"IF('[2]REAL IMAE(M)'!BO233=\"\",\"\",'[2]REAL IMAE(M)'!BO233)","v":2.7239681620630174},{"$f":"IF('[2]EXT RIN(M)'!$K233=\"\",\"\",'[2]EXT RIN(M)'!$K233)","v":16542.386362923153},"",{"$f":"IF('[2]EXT RIN(M)'!$L233=\"\",\"\",'[2]EXT RIN(M)'!$L233)","v":18947.533758389472},"",{"$f":"IF('[2]MONE(M)CARD'!EG233=\"\",\"\",'[2]MONE(M)CARD'!EG233)","v":13624.547535967091},{"$f":"IF('[2]MONE(M)CARD'!EK233=\"\",\"\",'[2]MONE(M)CARD'!EK233)","v":22415.251917473732},{"$f":"IF('[2]MONE(M)CARD'!EP233=\"\",\"\",'[2]MONE(M)CARD'!EP233)","v":10728.363015469971},{"$f":"IF('[2]MONE(M)CARD'!ES233=\"\",\"\",'[2]MONE(M)CARD'!ES233)","v":10.998732401002066},{"$f":"IF('[2]MONE(M)CARD'!EV233=\"\",\"\",'[2]MONE(M)CARD'!EV233)","v":6.5435433595528725},{"$f":"IF('[2]MONE(M)CARD'!EZ233=\"\",\"\",'[2]MONE(M)CARD'!EZ233)","v":8.1597483574475493},{"$f":"IF('[2]MONE(M)CAPARD'!FC233=\"\",\"\",'[2]MONE(M)CAPARD'!FC233)","v":16957.589519193494},{"$f":"IF('[2]MONE(M)CAPARD'!FG233=\"\",\"\",'[2]MONE(M)CAPARD'!FG233)","v":38176.708556283731},{"$f":"IF('[2]MONE(M)CAPARD'!FL233=\"\",\"\",'[2]MONE(M)CAPARD'!FL233)","v":10728.363015469964},{"$f":"IF('[2]MONE(M)CAPARD'!FO233=\"\",\"\",'[2]MONE(M)CAPARD'!FO233)","v":15.137877350288065},{"$f":"IF('[2]MONE(M)CAPARD'!FR233=\"\",\"\",'[2]MONE(M)CAPARD'!FR233)","v":10.378478532196178},{"$f":"IF('[2]MONE(M)CAPARD'!FV233=\"\",\"\",'[2]MONE(M)CAPARD'!FV233)","v":10.947583709808084},{"$f":"IF('[2]MONE(M)CARD'!FV233=\"\",\"\",'[2]MONE(M)CARD'!FV233)","v":492.30852793735983},{"$f":"IF('[2]MONE(M)CARD'!GD233=\"\",\"\",'[2]MONE(M)CARD'!GD233)","v":21.49704470184551},{"$f":"IF('[2]MONE(M)CARD'!GE233=\"\",\"\",'[2]MONE(M)CARD'!GE233)","v":2886.7136353074939},-1.0972352811426278,{"$f":"IF('[9]II.2.Balance OSD-Activos'!J91=\"\",\"\",'[9]II.2.Balance OSD-Activos'!J91)","v":6.1554336675066015},{"$f":"IF('[9]II.2.Balance OSD-Activos'!N91=\"\",\"\",'[9]II.2.Balance OSD-Activos'!N91)","v":148.47239208770549},{"$f":"IF('[9]II.2.Balance OSD-Activos'!R91=\"\",\"\",'[9]II.2.Balance OSD-Activos'!R91)","v":15755.707627330581},{"$f":"IF('[9]II.2.Balance OSD-Activos'!S91=\"\",\"\",'[9]II.2.Balance OSD-Activos'!S91)","v":18145.287050364026},15761.863060998088,34055.62250344982,-32.360763090630883,18.461588978822661,9.3740264459633451,18.49637316617283,21.447925723821392,19.99018546325091,-0.99525545856680253,{"$f":"IF('[2]MONE(M)CAPARD'!GS233=\"\",\"\",'[2]MONE(M)CAPARD'!GS233)","v":3823.6868921981286},{"$f":"IF('[2]MONE(M)CARD'!HA233=\"\",\"\",'[2]MONE(M)CAPARD'!HA233)","v":3350.021000347494},{"$f":"IF('[2]MONE(M)CAPARD'!HB233=\"\",\"\",'[2]MONE(M)CAPARD'!HB233)","v":473.66589185063458},"n.d.",{"$f":"IF('[10]II.2.Balance OSD-Activos'!J91=\"\",\"\",'[10]II.2.Balance OSD-Activos'!J91)","v":279.54244183750654},{"$f":"IF('[10]II.2.Balance OSD-Activos'!N91=\"\",\"\",'[10]II.2.Balance OSD-Activos'!N91)","v":556.7567983277055},{"$f":"IF('[10]II.2.Balance OSD-Activos'!R91=\"\",\"\",'[10]II.2.Balance OSD-Activos'!R91)","v":25634.03658500058},{"$f":"IF('[10]II.2.Balance OSD-Activos'!S91=\"\",\"\",'[10]II.2.Balance OSD-Activos'!S91)","v":26549.440313644027},25913.579026838088,53019.776138809815,54.428033839617655,21.123592881524367,-0.46875669347247184,20.839398612475147,18.231259884866979,19.389107778926906,-0.36834417368474348,{"$f":"IF('[2]MONE(M)CAPARD'!AS233=\"\",\"\",'[2]MONE(M)CAPARD'!AS233)","v":10},{"$f":"IF('[2]MONE(M)CAPARD'!AT233=\"\",\"\",'[2]MONE(M)CAPARD'!AT233)","v":"n.a."},{"$f":"IF('[2]MONE(M)CAPARD'!AU233=\"\",\"\",'[2]MONE(M)CAPARD'!AU233)","v":7.25},{"$f":"IF('[2]MONE(M)CAPARD'!AV233=\"\",\"\",'[2]MONE(M)CAPARD'!AV233)","v":9},{"$f":"IF('[2]MONE(M)CAPARD'!AW233=\"\",\"\",'[2]MONE(M)CAPARD'!AW233)","v":"n.a."},{"$f":"IF('[2]MONE(M)CAPARD'!AX233=\"\",\"\",'[2]MONE(M)CAPARD'!AX233)","v":9.5},{"$f":"IF('[2]MONE(M)CAPARD'!AY233=\"\",\"\",'[2]MONE(M)CAPARD'!AY233)","v":"n.a."},{"$f":"IF('[2]FISCAL(M)'!$K233=\"\",\"\",'[2]FISCAL(M)'!$K233)","v":-416.28011482448608},{"$f":"IF('[2]FISCAL(M)'!$L233=\"\",\"\",'[2]FISCAL(M)'!$L233)","v":-386.39391224448588},{"$f":"IF('[2]FISCAL(M)'!$AY233=\"\",\"\",'[2]FISCAL(M)'!$AY233)","v":"n.d."},{"$f":"IF('[2]FISCAL(M)'!$BI233=\"\",\"\",'[2]FISCAL(M)'!$BI233)","v":"n.d."},{"$f":"IF('[2]FISCAL(M)'!$BS233=\"\",\"\",'[2]FISCAL(M)'!$BS233)","v":"n.d."},{"$f":"IF('[2]FISCAL(M)'!$AZ233=\"\",\"\",'[2]FISCAL(M)'!$AZ233)","v":"n.d."},{"$f":"IF('[2]FISCAL(M)'!$BJ233=\"\",\"\",'[2]FISCAL(M)'!$BJ233)","v":"n.d."},{"$f":"IF('[2]FISCAL(M)'!$BT233=\"\",\"\",'[2]FISCAL(M)'!$BT233)","v":"n.d."},{"$f":"IF('[3]MONE(M)'!$AO233=\"\",\"\",'[3]MONE(M)'!$AO233)","v":7592805.7953898562},{"$f":"IF('[4]MONE(M)'!$AO233=\"\",\"\",'[4]MONE(M)'!$AO233)","v":9241.9938793500005},{"$f":"IF('[5]MONE(M)'!$AO233=\"\",\"\",'[5]MONE(M)'!$AO233)","v":80118.503133820777},{"$f":"+'[1]MONE(M)'!$AO233","v":134678.33039930335},{"$f":"IF('[6]MONE(M)'!$AO233=\"\",\"\",'[6]MONE(M)'!$AO233)","v":46622.095771143329},{"$f":"IF('[7]MONE(M)'!$AO233=\"\",\"\",'[7]MONE(M)'!$AO233)","v":324677.19513931999},{"$f":"IF('[8]MONE(M)'!$AO233=\"\",\"\",'[8]MONE(M)'!$AO233)","v":18962.60600991},41.990596270935598,7.5957732425602664,10.98095856627188,20.634849799284403,25.761831771668021,22.412121148538368,19.126106651075169,{"$f":"IF('[2]FISCAL(M)'!$K233=\"\",\"\",'[2]FISCAL(M)'!$K233)","v":-416.28011482448608},{"$f":"+'[2]REAL(A)'!$AO$28","v":159639.80081281642},-0.26076211114331693,{"$f":"IF('[2]FISCAL(M)'!$L233=\"\",\"\",'[2]FISCAL(M)'!$L233)","v":-386.39391224448588},{"$f":"+'[2]REAL(A)'!$AP$28","v":184795.6888128164},-0.20909249275607977,68739.661893326338,{"$f":"'[2]Gráfico REM'!BG227","v":11347.809808253322},{"$f":"'[2]Gráfico REM'!BH227","v":52726.297847063543},{"$f":"'[2]Gráfico REM'!BI227","v":4665.5542380094685},15.099186587811975,-0.109274673682902,19.159873453426691,13.420030428400986,102700.81847473633,{"$f":"'[2]Gráfico REM'!BK227","v":12137.806920483321},{"$f":"'[2]Gráfico REM'!BL227","v":71688.903856973542},{"$f":"'[2]Gráfico REM'!BM227","v":18874.107697279469},17.544758448556653,1.4157103823312589,19.150939852632298,23.871540047180815]
[2008,"septiembre","2008-septiembre",{"$f":"IF('[2]REAL IPC(M)'!$AL234=\"\",\"\",+'[2]REAL IPC(M)'!$AL234)","v":13.907558680591459},{"$f":"IF('[2]REAL IPC(M)'!$BE234=\"\",\"\",+'[2]REAL IPC(M)'!$BE234)","v":7.1153921326132963},{"$f":"IF('[2]REAL IPC(M)'!$AM234=\"\",\"\",+'[2]REAL IPC(M)'!$AM234)","v":13.517141676992983},{"$f":"IF('[2]REAL IPC(M)'!$BI234=\"\",\"\",+'[2]REAL IPC(M)'!$BI234)","v":6.9610733163006921},{"$f":"IF('[2]REAL IMAE(M)'!BJ234=\"\",\"\",'[2]REAL IMAE(M)'!BJ234)","v":1.3624996895839736},{"$f":"IF('[2]REAL IMAE(M)'!BK234=\"\",\"\",'[2]REAL IMAE(M)'!BK234)","v":1.9643160900513656},{"$f":"IF('[2]REAL IMAE(M)'!BN234=\"\",\"\",'[2]REAL IMAE(M)'!BN234)","v":2.2477055661451306},{"$f":"IF('[2]REAL IMAE(M)'!BO234=\"\",\"\",'[2]REAL IMAE(M)'!BO234)","v":2.6933311199488275},{"$f":"IF('[2]EXT RIN(M)'!$K234=\"\",\"\",'[2]EXT RIN(M)'!$K234)","v":16328.770519770424},"",{"$f":"IF('[2]EXT RIN(M)'!$L234=\"\",\"\",'[2]EXT RIN(M)'!$L234)","v":18552.994452283503},"",{"$f":"IF('[2]MONE(M)CARD'!EG234=\"\",\"\",'[2]MONE(M)CARD'!EG234)","v":13404.879134537794},{"$f":"IF('[2]MONE(M)CARD'!EK234=\"\",\"\",'[2]MONE(M)CARD'!EK234)","v":22495.809797599217},{"$f":"IF('[2]MONE(M)CARD'!EP234=\"\",\"\",'[2]MONE(M)CARD'!EP234)","v":10913.514867377926},{"$f":"IF('[2]MONE(M)CARD'!ES234=\"\",\"\",'[2]MONE(M)CARD'!ES234)","v":6.9989395016445854},{"$f":"IF('[2]MONE(M)CARD'!EV234=\"\",\"\",'[2]MONE(M)CARD'!EV234)","v":6.1099927487795913},{"$f":"IF('[2]MONE(M)CARD'!EZ234=\"\",\"\",'[2]MONE(M)CARD'!EZ234)","v":8.2420099667171343},{"$f":"IF('[2]MONE(M)CAPARD'!FC234=\"\",\"\",'[2]MONE(M)CAPARD'!FC234)","v":16686.036008383195},{"$f":"IF('[2]MONE(M)CAPARD'!FG234=\"\",\"\",'[2]MONE(M)CAPARD'!FG234)","v":38176.413224209216},{"$f":"IF('[2]MONE(M)CAPARD'!FL234=\"\",\"\",'[2]MONE(M)CAPARD'!FL234)","v":10913.514867377919},{"$f":"IF('[2]MONE(M)CAPARD'!FO234=\"\",\"\",'[2]MONE(M)CAPARD'!FO234)","v":10.389769405323168},{"$f":"IF('[2]MONE(M)CAPARD'!FR234=\"\",\"\",'[2]MONE(M)CAPARD'!FR234)","v":9.0272592046446007},{"$f":"IF('[2]MONE(M)CAPARD'!FV234=\"\",\"\",'[2]MONE(M)CAPARD'!FV234)","v":10.111019424297352},{"$f":"IF('[2]MONE(M)CARD'!FV234=\"\",\"\",'[2]MONE(M)CARD'!FV234)","v":469.91600445604172},{"$f":"IF('[2]MONE(M)CARD'!GD234=\"\",\"\",'[2]MONE(M)CARD'!GD234)","v":21.939242497709628},{"$f":"IF('[2]MONE(M)CARD'!GE234=\"\",\"\",'[2]MONE(M)CARD'!GE234)","v":2818.7537923031828},-3.8275816503028137,{"$f":"IF('[9]II.2.Balance OSD-Activos'!J92=\"\",\"\",'[9]II.2.Balance OSD-Activos'!J92)","v":7.1991409363191448},{"$f":"IF('[9]II.2.Balance OSD-Activos'!N92=\"\",\"\",'[9]II.2.Balance OSD-Activos'!N92)","v":151.4629673442688},{"$f":"IF('[9]II.2.Balance OSD-Activos'!R92=\"\",\"\",'[9]II.2.Balance OSD-Activos'!R92)","v":15801.609823377134},{"$f":"IF('[9]II.2.Balance OSD-Activos'!S92=\"\",\"\",'[9]II.2.Balance OSD-Activos'!S92)","v":18261.86449167211},15808.808964313454,34222.13642332983,-16.671830681312059,16.595072084029326,9.4631504414296241,16.616282982474175,19.692971205174526,18.19340188706007,-1.7967835761908404,{"$f":"IF('[2]MONE(M)CAPARD'!GS234=\"\",\"\",'[2]MONE(M)CAPARD'!GS234)","v":3709.6675134470906},{"$f":"IF('[2]MONE(M)CARD'!HA234=\"\",\"\",'[2]MONE(M)CAPARD'!HA234)","v":3284.188066903183},{"$f":"IF('[2]MONE(M)CAPARD'!HB234=\"\",\"\",'[2]MONE(M)CAPARD'!HB234)","v":425.47944654390767},"n.d.",{"$f":"IF('[10]II.2.Balance OSD-Activos'!J92=\"\",\"\",'[10]II.2.Balance OSD-Activos'!J92)","v":272.71061538631909},{"$f":"IF('[10]II.2.Balance OSD-Activos'!N92=\"\",\"\",'[10]II.2.Balance OSD-Activos'!N92)","v":535.55797225426886},{"$f":"IF('[10]II.2.Balance OSD-Activos'!R92=\"\",\"\",'[10]II.2.Balance OSD-Activos'!R92)","v":26047.889987677132},{"$f":"IF('[10]II.2.Balance OSD-Activos'!S92=\"\",\"\",'[10]II.2.Balance OSD-Activos'!S92)","v":26739.678554152109},26320.600603063453,53595.83712946983,51.37444597213716,20.711882877871869,-7.586462927342275,20.456427317220417,16.987751476509551,18.467862134869193,-0.92124564405771281,{"$f":"IF('[2]MONE(M)CAPARD'!AS234=\"\",\"\",'[2]MONE(M)CAPARD'!AS234)","v":10},{"$f":"IF('[2]MONE(M)CAPARD'!AT234=\"\",\"\",'[2]MONE(M)CAPARD'!AT234)","v":"n.a."},{"$f":"IF('[2]MONE(M)CAPARD'!AU234=\"\",\"\",'[2]MONE(M)CAPARD'!AU234)","v":7.25},{"$f":"IF('[2]MONE(M)CAPARD'!AV234=\"\",\"\",'[2]MONE(M)CAPARD'!AV234)","v":9},{"$f":"IF('[2]MONE(M)CAPARD'!AW234=\"\",\"\",'[2]MONE(M)CAPARD'!AW234)","v":"n.a."},{"$f":"IF('[2]MONE(M)CAPARD'!AX234=\"\",\"\",'[2]MONE(M)CAPARD'!AX234)","v":9.5},{"$f":"IF('[2]MONE(M)CAPARD'!AY234=\"\",\"\",'[2]MONE(M)CAPARD'!AY234)","v":"n.a."},{"$f":"IF('[2]FISCAL(M)'!$K234=\"\",\"\",'[2]FISCAL(M)'!$K234)","v":-878.0338940333047},{"$f":"IF('[2]FISCAL(M)'!$L234=\"\",\"\",'[2]FISCAL(M)'!$L234)","v":-918.07818179330434},{"$f":"IF('[2]FISCAL(M)'!$AY234=\"\",\"\",'[2]FISCAL(M)'!$AY234)","v":50288.920674458197},{"$f":"IF('[2]FISCAL(M)'!$BI234=\"\",\"\",'[2]FISCAL(M)'!$BI234)","v":23320.326004458202},{"$f":"IF('[2]FISCAL(M)'!$BS234=\"\",\"\",'[2]FISCAL(M)'!$BS234)","v":26968.594669999999},{"$f":"IF('[2]FISCAL(M)'!$AZ234=\"\",\"\",'[2]FISCAL(M)'!$AZ234)","v":61372.443469998208},{"$f":"IF('[2]FISCAL(M)'!$BJ234=\"\",\"\",'[2]FISCAL(M)'!$BJ234)","v":25920.4543799782},{"$f":"IF('[2]FISCAL(M)'!$BT234=\"\",\"\",'[2]FISCAL(M)'!$BT234)","v":35451.989090019997},{"$f":"IF('[3]MONE(M)'!$AO234=\"\",\"\",'[3]MONE(M)'!$AO234)","v":7726237.9359870385},{"$f":"IF('[4]MONE(M)'!$AO234=\"\",\"\",'[4]MONE(M)'!$AO234)","v":9246.5576702299986},{"$f":"IF('[5]MONE(M)'!$AO234=\"\",\"\",'[5]MONE(M)'!$AO234)","v":80817.858824738185},{"$f":"+'[1]MONE(M)'!$AO234","v":135922.15762641031},{"$f":"IF('[6]MONE(M)'!$AO234=\"\",\"\",'[6]MONE(M)'!$AO234)","v":46704.120908071913},{"$f":"IF('[7]MONE(M)'!$AO234=\"\",\"\",'[7]MONE(M)'!$AO234)","v":328074.00274570996},{"$f":"IF('[8]MONE(M)'!$AO234=\"\",\"\",'[8]MONE(M)'!$AO234)","v":19394.071250630001},39.166562363655764,7.2704308649084171,10.835783331133708,18.88194961469982,23.757716516697556,20.983410613861441,20.028507696367058,{"$f":"IF('[2]FISCAL(M)'!$K234=\"\",\"\",'[2]FISCAL(M)'!$K234)","v":-878.0338940333047},{"$f":"+'[2]REAL(A)'!$AO$28","v":159639.80081281642},-0.55000938961508217,{"$f":"IF('[2]FISCAL(M)'!$L234=\"\",\"\",'[2]FISCAL(M)'!$L234)","v":-918.07818179330434},{"$f":"+'[2]REAL(A)'!$AP$28","v":184795.6888128164},-0.49680714289998712,69115.088891699008,{"$f":"'[2]Gráfico REM'!BG228","v":11297.407778647133},{"$f":"'[2]Gráfico REM'!BH228","v":53094.444179758226},{"$f":"'[2]Gráfico REM'!BI228","v":4723.2369332936514},13.90198586911584,-1.1237686796254143,18.038845790373447,10.532906017645782,103506.02407979901,{"$f":"'[2]Gráfico REM'!BK228","v":12066.151329887134},{"$f":"'[2]Gráfico REM'!BL228","v":72488.51543038823},{"$f":"'[2]Gráfico REM'!BM228","v":18951.357319523649},16.562572194542604,0.18952964110108272,18.56468140631733,21.35096143301347]
[2008,"octubre","2008-octubre",{"$f":"IF('[2]REAL IPC(M)'!$AL235=\"\",\"\",+'[2]REAL IPC(M)'!$AL235)","v":13.18952234206472},{"$f":"IF('[2]REAL IPC(M)'!$BE235=\"\",\"\",+'[2]REAL IPC(M)'!$BE235)","v":6.9951453751650572},{"$f":"IF('[2]REAL IPC(M)'!$AM235=\"\",\"\",+'[2]REAL IPC(M)'!$AM235)","v":12.803939673745779},{"$f":"IF('[2]REAL IPC(M)'!$BI235=\"\",\"\",+'[2]REAL IPC(M)'!$BI235)","v":6.8427779029237357},{"$f":"IF('[2]REAL IMAE(M)'!BJ235=\"\",\"\",'[2]REAL IMAE(M)'!BJ235)","v":1.033319598182314},{"$f":"IF('[2]REAL IMAE(M)'!BK235=\"\",\"\",'[2]REAL IMAE(M)'!BK235)","v":1.9479832661940533},{"$f":"IF('[2]REAL IMAE(M)'!BN235=\"\",\"\",'[2]REAL IMAE(M)'!BN235)","v":2.1483672760730155},{"$f":"IF('[2]REAL IMAE(M)'!BO235=\"\",\"\",'[2]REAL IMAE(M)'!BO235)","v":2.6676567306460619},{"$f":"IF('[2]EXT RIN(M)'!$K235=\"\",\"\",'[2]EXT RIN(M)'!$K235)","v":16116.737809608137},"",{"$f":"IF('[2]EXT RIN(M)'!$L235=\"\",\"\",'[2]EXT RIN(M)'!$L235)","v":18490.632912054338},"",{"$f":"IF('[2]MONE(M)CARD'!EG235=\"\",\"\",'[2]MONE(M)CARD'!EG235)","v":13013.761612873546},{"$f":"IF('[2]MONE(M)CARD'!EK235=\"\",\"\",'[2]MONE(M)CARD'!EK235)","v":22496.833270245617},{"$f":"IF('[2]MONE(M)CARD'!EP235=\"\",\"\",'[2]MONE(M)CARD'!EP235)","v":10856.790101488936},{"$f":"IF('[2]MONE(M)CARD'!ES235=\"\",\"\",'[2]MONE(M)CARD'!ES235)","v":4.2211416253658207},{"$f":"IF('[2]MONE(M)CARD'!EV235=\"\",\"\",'[2]MONE(M)CARD'!EV235)","v":4.4652044038725691},{"$f":"IF('[2]MONE(M)CARD'!EZ235=\"\",\"\",'[2]MONE(M)CARD'!EZ235)","v":6.7412446593028363},{"$f":"IF('[2]MONE(M)CAPARD'!FC235=\"\",\"\",'[2]MONE(M)CAPARD'!FC235)","v":16322.147861008947},{"$f":"IF('[2]MONE(M)CAPARD'!FG235=\"\",\"\",'[2]MONE(M)CAPARD'!FG235)","v":38530.47538602561},{"$f":"IF('[2]MONE(M)CAPARD'!FL235=\"\",\"\",'[2]MONE(M)CAPARD'!FL235)","v":10856.790101488936},{"$f":"IF('[2]MONE(M)CAPARD'!FO235=\"\",\"\",'[2]MONE(M)CAPARD'!FO235)","v":7.8446218842461279},{"$f":"IF('[2]MONE(M)CAPARD'!FR235=\"\",\"\",'[2]MONE(M)CAPARD'!FR235)","v":8.0556994882646329},{"$f":"IF('[2]MONE(M)CAPARD'!FV235=\"\",\"\",'[2]MONE(M)CAPARD'!FV235)","v":9.1344666473617941},{"$f":"IF('[2]MONE(M)CARD'!FV235=\"\",\"\",'[2]MONE(M)CARD'!FV235)","v":446.95747652710224},{"$f":"IF('[2]MONE(M)CARD'!GD235=\"\",\"\",'[2]MONE(M)CARD'!GD235)","v":23.008727328177674},{"$f":"IF('[2]MONE(M)CARD'!GE235=\"\",\"\",'[2]MONE(M)CARD'!GE235)","v":2760.7205216932443},-10.165191860117062,{"$f":"IF('[9]II.2.Balance OSD-Activos'!J93=\"\",\"\",'[9]II.2.Balance OSD-Activos'!J93)","v":8.1846686657762611},{"$f":"IF('[9]II.2.Balance OSD-Activos'!N93=\"\",\"\",'[9]II.2.Balance OSD-Activos'!N93)","v":153.62369372661365},{"$f":"IF('[9]II.2.Balance OSD-Activos'!R93=\"\",\"\",'[9]II.2.Balance OSD-Activos'!R93)","v":15871.660444967125},{"$f":"IF('[9]II.2.Balance OSD-Activos'!S93=\"\",\"\",'[9]II.2.Balance OSD-Activos'!S93)","v":18383.642046033794},15879.8451136329,34417.110853393307,-9.6397775137898272,14.276668889291155,10.540584823565858,14.292268542777053,17.15528571943765,15.778727464313814,-2.4146744227462555,{"$f":"IF('[2]MONE(M)CAPARD'!GS235=\"\",\"\",'[2]MONE(M)CAPARD'!GS235)","v":3726.5655502843415},{"$f":"IF('[2]MONE(M)CARD'!HA235=\"\",\"\",'[2]MONE(M)CAPARD'!HA235)","v":3199.8264678432442},{"$f":"IF('[2]MONE(M)CAPARD'!HB235=\"\",\"\",'[2]MONE(M)CAPARD'!HB235)","v":526.73908244109725},"n.d.",{"$f":"IF('[10]II.2.Balance OSD-Activos'!J93=\"\",\"\",'[10]II.2.Balance OSD-Activos'!J93)","v":292.5021624357762},{"$f":"IF('[10]II.2.Balance OSD-Activos'!N93=\"\",\"\",'[10]II.2.Balance OSD-Activos'!N93)","v":558.2216030166137},{"$f":"IF('[10]II.2.Balance OSD-Activos'!R93=\"\",\"\",'[10]II.2.Balance OSD-Activos'!R93)","v":26325.667816737125},{"$f":"IF('[10]II.2.Balance OSD-Activos'!S93=\"\",\"\",'[10]II.2.Balance OSD-Activos'!S93)","v":26942.987843813797},26618.169979172901,54119.37942600331,47.879740937698067,18.709443777832902,-2.5079297892300123,18.449836822879551,15.271118548350969,16.714265821303908,-1.7535963135652857,{"$f":"IF('[2]MONE(M)CAPARD'!AS235=\"\",\"\",'[2]MONE(M)CAPARD'!AS235)","v":10},{"$f":"IF('[2]MONE(M)CAPARD'!AT235=\"\",\"\",'[2]MONE(M)CAPARD'!AT235)","v":"n.a."},{"$f":"IF('[2]MONE(M)CAPARD'!AU235=\"\",\"\",'[2]MONE(M)CAPARD'!AU235)","v":7.25},{"$f":"IF('[2]MONE(M)CAPARD'!AV235=\"\",\"\",'[2]MONE(M)CAPARD'!AV235)","v":9},{"$f":"IF('[2]MONE(M)CAPARD'!AW235=\"\",\"\",'[2]MONE(M)CAPARD'!AW235)","v":"n.a."},{"$f":"IF('[2]MONE(M)CAPARD'!AX235=\"\",\"\",'[2]MONE(M)CAPARD'!AX235)","v":9.5},{"$f":"IF('[2]MONE(M)CAPARD'!AY235=\"\",\"\",'[2]MONE(M)CAPARD'!AY235)","v":"n.a."},{"$f":"IF('[2]FISCAL(M)'!$K235=\"\",\"\",'[2]FISCAL(M)'!$K235)","v":-1006.3644757209736},{"$f":"IF('[2]FISCAL(M)'!$L235=\"\",\"\",'[2]FISCAL(M)'!$L235)","v":-1159.5039424609736},{"$f":"IF('[2]FISCAL(M)'!$AY235=\"\",\"\",'[2]FISCAL(M)'!$AY235)","v":"n.d."},{"$f":"IF('[2]FISCAL(M)'!$BI235=\"\",\"\",'[2]FISCAL(M)'!$BI235)","v":"n.d."},{"$f":"IF('[2]FISCAL(M)'!$BS235=\"\",\"\",'[2]FISCAL(M)'!$BS235)","v":"n.d."},{"$f":"IF('[2]FISCAL(M)'!$AZ235=\"\",\"\",'[2]FISCAL(M)'!$AZ235)","v":"n.d."},{"$f":"IF('[2]FISCAL(M)'!$BJ235=\"\",\"\",'[2]FISCAL(M)'!$BJ235)","v":"n.d."},{"$f":"IF('[2]FISCAL(M)'!$BT235=\"\",\"\",'[2]FISCAL(M)'!$BT235)","v":"n.d."},{"$f":"IF('[3]MONE(M)'!$AO235=\"\",\"\",'[3]MONE(M)'!$AO235)","v":7807622.5383925419},{"$f":"IF('[4]MONE(M)'!$AO235=\"\",\"\",'[4]MONE(M)'!$AO235)","v":9252.3264112100005},{"$f":"IF('[5]MONE(M)'!$AO235=\"\",\"\",'[5]MONE(M)'!$AO235)","v":81726.145841690013},{"$f":"+'[1]MONE(M)'!$AO235","v":135405.57670348292},{"$f":"IF('[6]MONE(M)'!$AO235=\"\",\"\",'[6]MONE(M)'!$AO235)","v":46554.84925188018},{"$f":"IF('[7]MONE(M)'!$AO235=\"\",\"\",'[7]MONE(M)'!$AO235)","v":331089.07028461999},{"$f":"IF('[8]MONE(M)'!$AO235=\"\",\"\",'[8]MONE(M)'!$AO235)","v":19705.149249319998},34.832020144123788,7.030582101039573,9.6039807750441639,15.315869356785949,17.990331566078609,18.635269939082487,19.276794903484884,{"$f":"IF('[2]FISCAL(M)'!$K235=\"\",\"\",'[2]FISCAL(M)'!$K235)","v":-1006.3644757209736},{"$f":"+'[2]REAL(A)'!$AO$28","v":159639.80081281642},-0.63039697531380234,{"$f":"IF('[2]FISCAL(M)'!$L235=\"\",\"\",'[2]FISCAL(M)'!$L235)","v":-1159.5039424609736},{"$f":"+'[2]REAL(A)'!$AP$28","v":184795.6888128164},-0.6274518360844773,69235.003596035676,{"$f":"'[2]Gráfico REM'!BG229","v":11273.47867460538},{"$f":"'[2]Gráfico REM'!BH229","v":53212.983173362096},{"$f":"'[2]Gráfico REM'!BI229","v":4748.5417480682008},12.405483629163561,0.18423956311506284,15.244933349309786,13.944649153070232,104058.95136671569,{"$f":"'[2]Gráfico REM'!BK229","v":12086.99236766538},{"$f":"'[2]Gráfico REM'!BL229","v":72918.132422682102},{"$f":"'[2]Gráfico REM'!BM229","v":19053.826576368199},15.486434407127625,1.8190873365189431,16.307365144167619,22.61522376984184]
[2008,"noviembre","2008-noviembre",{"$f":"IF('[2]REAL IPC(M)'!$AL236=\"\",\"\",+'[2]REAL IPC(M)'!$AL236)","v":10.32778618255168},{"$f":"IF('[2]REAL IPC(M)'!$BE236=\"\",\"\",+'[2]REAL IPC(M)'!$BE236)","v":6.8685827109445929},{"$f":"IF('[2]REAL IPC(M)'!$AM236=\"\",\"\",+'[2]REAL IPC(M)'!$AM236)","v":10.051416473434816},{"$f":"IF('[2]REAL IPC(M)'!$BI236=\"\",\"\",+'[2]REAL IPC(M)'!$BI236)","v":6.7170618564954321},{"$f":"IF('[2]REAL IMAE(M)'!BJ236=\"\",\"\",'[2]REAL IMAE(M)'!BJ236)","v":-0.2314492040111471},{"$f":"IF('[2]REAL IMAE(M)'!BK236=\"\",\"\",'[2]REAL IMAE(M)'!BK236)","v":1.9375764558937192},{"$f":"IF('[2]REAL IMAE(M)'!BN236=\"\",\"\",'[2]REAL IMAE(M)'!BN236)","v":0.79349492234981334},{"$f":"IF('[2]REAL IMAE(M)'!BO236=\"\",\"\",'[2]REAL IMAE(M)'!BO236)","v":2.6483364431929335},{"$f":"IF('[2]EXT RIN(M)'!$K236=\"\",\"\",'[2]EXT RIN(M)'!$K236)","v":16218.631526435387},"",{"$f":"IF('[2]EXT RIN(M)'!$L236=\"\",\"\",'[2]EXT RIN(M)'!$L236)","v":18571.562904868355},"",{"$f":"IF('[2]MONE(M)CARD'!EG236=\"\",\"\",'[2]MONE(M)CARD'!EG236)","v":13467.132072323626},{"$f":"IF('[2]MONE(M)CARD'!EK236=\"\",\"\",'[2]MONE(M)CARD'!EK236)","v":22622.393510819755},{"$f":"IF('[2]MONE(M)CARD'!EP236=\"\",\"\",'[2]MONE(M)CARD'!EP236)","v":10928.158808378947},{"$f":"IF('[2]MONE(M)CARD'!ES236=\"\",\"\",'[2]MONE(M)CARD'!ES236)","v":1.3519373738902773},{"$f":"IF('[2]MONE(M)CARD'!EV236=\"\",\"\",'[2]MONE(M)CARD'!EV236)","v":3.1662167694946231},{"$f":"IF('[2]MONE(M)CARD'!EZ236=\"\",\"\",'[2]MONE(M)CARD'!EZ236)","v":5.4402825657299481},{"$f":"IF('[2]MONE(M)CAPARD'!FC236=\"\",\"\",'[2]MONE(M)CAPARD'!FC236)","v":16998.293381860029},{"$f":"IF('[2]MONE(M)CAPARD'!FG236=\"\",\"\",'[2]MONE(M)CAPARD'!FG236)","v":38448.831195809747},{"$f":"IF('[2]MONE(M)CAPARD'!FL236=\"\",\"\",'[2]MONE(M)CAPARD'!FL236)","v":10928.158808378954},{"$f":"IF('[2]MONE(M)CAPARD'!FO236=\"\",\"\",'[2]MONE(M)CAPARD'!FO236)","v":5.7406249963024125},{"$f":"IF('[2]MONE(M)CAPARD'!FR236=\"\",\"\",'[2]MONE(M)CAPARD'!FR236)","v":6.5626333974895923},{"$f":"IF('[2]MONE(M)CAPARD'!FV236=\"\",\"\",'[2]MONE(M)CAPARD'!FV236)","v":7.6781921593740865},{"$f":"IF('[2]MONE(M)CARD'!FV236=\"\",\"\",'[2]MONE(M)CARD'!FV236)","v":534.89933285482095},{"$f":"IF('[2]MONE(M)CARD'!GD236=\"\",\"\",'[2]MONE(M)CARD'!GD236)","v":24.267454075289798},{"$f":"IF('[2]MONE(M)CARD'!GE236=\"\",\"\",'[2]MONE(M)CARD'!GE236)","v":2829.088012663829},-5.572888383572483,{"$f":"IF('[9]II.2.Balance OSD-Activos'!J94=\"\",\"\",'[9]II.2.Balance OSD-Activos'!J94)","v":6.1381399988674197},{"$f":"IF('[9]II.2.Balance OSD-Activos'!N94=\"\",\"\",'[9]II.2.Balance OSD-Activos'!N94)","v":150.80868036805481},{"$f":"IF('[9]II.2.Balance OSD-Activos'!R94=\"\",\"\",'[9]II.2.Balance OSD-Activos'!R94)","v":16144.740927919987},{"$f":"IF('[9]II.2.Balance OSD-Activos'!S94=\"\",\"\",'[9]II.2.Balance OSD-Activos'!S94)","v":18751.474136874025},16150.879067918855,35053.161885160938,-39.966601204781504,11.572609186084225,8.0293364092303143,11.609038408778716,15.051841432625391,13.390933898444812,-2.3877935658690017,{"$f":"IF('[2]MONE(M)CAPARD'!GS236=\"\",\"\",'[2]MONE(M)CAPARD'!GS236)","v":3754.0270905321481},{"$f":"IF('[2]MONE(M)CARD'!HA236=\"\",\"\",'[2]MONE(M)CAPARD'!HA236)","v":3315.9217483738289},{"$f":"IF('[2]MONE(M)CAPARD'!HB236=\"\",\"\",'[2]MONE(M)CAPARD'!HB236)","v":438.10534215831922},"n.d.",{"$f":"IF('[10]II.2.Balance OSD-Activos'!J94=\"\",\"\",'[10]II.2.Balance OSD-Activos'!J94)","v":291.38165557786738},{"$f":"IF('[10]II.2.Balance OSD-Activos'!N94=\"\",\"\",'[10]II.2.Balance OSD-Activos'!N94)","v":627.31440792805472},{"$f":"IF('[10]II.2.Balance OSD-Activos'!R94=\"\",\"\",'[10]II.2.Balance OSD-Activos'!R94)","v":26609.519614389988},{"$f":"IF('[10]II.2.Balance OSD-Activos'!S94=\"\",\"\",'[10]II.2.Balance OSD-Activos'!S94)","v":27405.956767654017},26900.901269967857,54934.172445549928,38.703859568948062,16.339346426234801,7.8697433191568189,16.134297937087496,13.807707540230108,14.960475762458803,-1.7537900588451052,{"$f":"IF('[2]MONE(M)CAPARD'!AS236=\"\",\"\",'[2]MONE(M)CAPARD'!AS236)","v":10},{"$f":"IF('[2]MONE(M)CAPARD'!AT236=\"\",\"\",'[2]MONE(M)CAPARD'!AT236)","v":"n.a."},{"$f":"IF('[2]MONE(M)CAPARD'!AU236=\"\",\"\",'[2]MONE(M)CAPARD'!AU236)","v":7.25},{"$f":"IF('[2]MONE(M)CAPARD'!AV236=\"\",\"\",'[2]MONE(M)CAPARD'!AV236)","v":9},{"$f":"IF('[2]MONE(M)CAPARD'!AW236=\"\",\"\",'[2]MONE(M)CAPARD'!AW236)","v":"n.a."},{"$f":"IF('[2]MONE(M)CAPARD'!AX236=\"\",\"\",'[2]MONE(M)CAPARD'!AX236)","v":9.5},{"$f":"IF('[2]MONE(M)CAPARD'!AY236=\"\",\"\",'[2]MONE(M)CAPARD'!AY236)","v":"n.a."},{"$f":"IF('[2]FISCAL(M)'!$K236=\"\",\"\",'[2]FISCAL(M)'!$K236)","v":-1533.7408837567366},{"$f":"IF('[2]FISCAL(M)'!$L236=\"\",\"\",'[2]FISCAL(M)'!$L236)","v":-1915.5614897667365},{"$f":"IF('[2]FISCAL(M)'!$AY236=\"\",\"\",'[2]FISCAL(M)'!$AY236)","v":"n.d."},{"$f":"IF('[2]FISCAL(M)'!$BI236=\"\",\"\",'[2]FISCAL(M)'!$BI236)","v":"n.d."},{"$f":"IF('[2]FISCAL(M)'!$BS236=\"\",\"\",'[2]FISCAL(M)'!$BS236)","v":"n.d."},{"$f":"IF('[2]FISCAL(M)'!$AZ236=\"\",\"\",'[2]FISCAL(M)'!$AZ236)","v":"n.d."},{"$f":"IF('[2]FISCAL(M)'!$BJ236=\"\",\"\",'[2]FISCAL(M)'!$BJ236)","v":"n.d."},{"$f":"IF('[2]FISCAL(M)'!$BT236=\"\",\"\",'[2]FISCAL(M)'!$BT236)","v":"n.d."},{"$f":"IF('[3]MONE(M)'!$AO236=\"\",\"\",'[3]MONE(M)'!$AO236)","v":7753907.2032484924},{"$f":"IF('[4]MONE(M)'!$AO236=\"\",\"\",'[4]MONE(M)'!$AO236)","v":9249.1523016399988},{"$f":"IF('[5]MONE(M)'!$AO236=\"\",\"\",'[5]MONE(M)'!$AO236)","v":82970.320507177239},{"$f":"+'[1]MONE(M)'!$AO236","v":136022.03198019176},{"$f":"IF('[6]MONE(M)'!$AO236=\"\",\"\",'[6]MONE(M)'!$AO236)","v":46966.662599271811},{"$f":"IF('[7]MONE(M)'!$AO236=\"\",\"\",'[7]MONE(M)'!$AO236)","v":335507.00125769002},{"$f":"IF('[8]MONE(M)'!$AO236=\"\",\"\",'[8]MONE(M)'!$AO236)","v":19813.889922388997},30.502748713499095,6.1315329171933719,9.8041638801219975,13.224243706789673,15.319832533958945,17.005980941688303,18.383480606932913,{"$f":"IF('[2]FISCAL(M)'!$K236=\"\",\"\",'[2]FISCAL(M)'!$K236)","v":-1533.7408837567366},{"$f":"+'[2]REAL(A)'!$AO$28","v":159639.80081281642},-0.9607509380164565,{"$f":"IF('[2]FISCAL(M)'!$L236=\"\",\"\",'[2]FISCAL(M)'!$L236)","v":-1915.5614897667365},{"$f":"+'[2]REAL(A)'!$AP$28","v":184795.6888128164},-1.0365834300967112,70054.58226825732,{"$f":"'[2]Gráfico REM'!BG230","v":11425.378458537645},{"$f":"'[2]Gráfico REM'!BH230","v":53856.753173022822},{"$f":"'[2]Gráfico REM'!BI230","v":4772.4506366968562},10.940530775842339,1.8248668517525601,13.122245853914972,10.572922741279079,104687.47028775532,{"$f":"'[2]Gráfico REM'!BK230","v":12206.054767330645},{"$f":"'[2]Gráfico REM'!BL230","v":73670.643095411826},{"$f":"'[2]Gráfico REM'!BM230","v":18810.772425012852},13.406018383421481,2.7742708612891853,14.49073770042817,16.915893144536721]
[2008,"diciembre","2008-diciembre",{"$f":"IF('[2]REAL IPC(M)'!$AL237=\"\",\"\",+'[2]REAL IPC(M)'!$AL237)","v":8.7499999999999911},{"$f":"IF('[2]REAL IPC(M)'!$BE237=\"\",\"\",+'[2]REAL IPC(M)'!$BE237)","v":6.7373251734859085},{"$f":"IF('[2]REAL IPC(M)'!$AM237=\"\",\"\",+'[2]REAL IPC(M)'!$AM237)","v":8.5400000000000134},{"$f":"IF('[2]REAL IPC(M)'!$BI237=\"\",\"\",+'[2]REAL IPC(M)'!$BI237)","v":6.5857472826585051},{"$f":"IF('[2]REAL IMAE(M)'!BJ237=\"\",\"\",'[2]REAL IMAE(M)'!BJ237)","v":-1.4967735586079556},{"$f":"IF('[2]REAL IMAE(M)'!BK237=\"\",\"\",'[2]REAL IMAE(M)'!BK237)","v":1.934240497502171},{"$f":"IF('[2]REAL IMAE(M)'!BN237=\"\",\"\",'[2]REAL IMAE(M)'!BN237)","v":-0.68803617629429326},{"$f":"IF('[2]REAL IMAE(M)'!BO237=\"\",\"\",'[2]REAL IMAE(M)'!BO237)","v":2.6367135295473743},{"$f":"IF('[2]EXT RIN(M)'!$K237=\"\",\"\",'[2]EXT RIN(M)'!$K237)","v":16652.633494081474},16652.633494081474,{"$f":"IF('[2]EXT RIN(M)'!$L237=\"\",\"\",'[2]EXT RIN(M)'!$L237)","v":19264.209030946746},19264.209030946746,{"$f":"IF('[2]MONE(M)CARD'!EG237=\"\",\"\",'[2]MONE(M)CARD'!EG237)","v":14846.634997582782},{"$f":"IF('[2]MONE(M)CARD'!EK237=\"\",\"\",'[2]MONE(M)CARD'!EK237)","v":25881.130627742823},{"$f":"IF('[2]MONE(M)CARD'!EP237=\"\",\"\",'[2]MONE(M)CARD'!EP237)","v":13058.288663589999},{"$f":"IF('[2]MONE(M)CARD'!ES237=\"\",\"\",'[2]MONE(M)CARD'!ES237)","v":-2.8492650315648294},{"$f":"IF('[2]MONE(M)CARD'!EV237=\"\",\"\",'[2]MONE(M)CARD'!EV237)","v":0.4720164456544218},{"$f":"IF('[2]MONE(M)CARD'!EZ237=\"\",\"\",'[2]MONE(M)CARD'!EZ237)","v":3.7762962996243488},{"$f":"IF('[2]MONE(M)CAPARD'!FC237=\"\",\"\",'[2]MONE(M)CAPARD'!FC237)","v":18610.245888017183},{"$f":"IF('[2]MONE(M)CAPARD'!FG237=\"\",\"\",'[2]MONE(M)CAPARD'!FG237)","v":41897.673787442822},{"$f":"IF('[2]MONE(M)CAPARD'!FL237=\"\",\"\",'[2]MONE(M)CAPARD'!FL237)","v":13058.288663589999},{"$f":"IF('[2]MONE(M)CAPARD'!FO237=\"\",\"\",'[2]MONE(M)CAPARD'!FO237)","v":1.4956448929251964},{"$f":"IF('[2]MONE(M)CAPARD'!FR237=\"\",\"\",'[2]MONE(M)CAPARD'!FR237)","v":4.1896758792919986},{"$f":"IF('[2]MONE(M)CAPARD'!FV237=\"\",\"\",'[2]MONE(M)CAPARD'!FV237)","v":6.0533183611934271},{"$f":"IF('[2]MONE(M)CARD'!FV237=\"\",\"\",'[2]MONE(M)CARD'!FV237)","v":657.39468038157065},{"$f":"IF('[2]MONE(M)CARD'!GD237=\"\",\"\",'[2]MONE(M)CARD'!GD237)","v":56.767217344105369},{"$f":"IF('[2]MONE(M)CARD'!GE237=\"\",\"\",'[2]MONE(M)CARD'!GE237)","v":3306.1002450562501},11.184163355568311,{"$f":"IF('[9]II.2.Balance OSD-Activos'!J95=\"\",\"\",'[9]II.2.Balance OSD-Activos'!J95)","v":14.880723059311711},{"$f":"IF('[9]II.2.Balance OSD-Activos'!N95=\"\",\"\",'[9]II.2.Balance OSD-Activos'!N95)","v":179.13734827134931},{"$f":"IF('[9]II.2.Balance OSD-Activos'!R95=\"\",\"\",'[9]II.2.Balance OSD-Activos'!R95)","v":19750.944795260835},{"$f":"IF('[9]II.2.Balance OSD-Activos'!S95=\"\",\"\",'[9]II.2.Balance OSD-Activos'!S95)","v":22122.635494032947},19765.825518320147,42067.598360624441,-80.006671356712047,9.3172935640190921,0.18724942917918153,9.6865025268940919,13.354178999328514,11.359654807380304,-2.0312790910645084,{"$f":"IF('[2]MONE(M)CAPARD'!GS237=\"\",\"\",'[2]MONE(M)CAPARD'!GS237)","v":4477.8281744843534},{"$f":"IF('[2]MONE(M)CARD'!HA237=\"\",\"\",'[2]MONE(M)CAPARD'!HA237)","v":3791.3523959162503},{"$f":"IF('[2]MONE(M)CAPARD'!HB237=\"\",\"\",'[2]MONE(M)CAPARD'!HB237)","v":686.47577856810312},"n.d.",{"$f":"IF('[10]II.2.Balance OSD-Activos'!J95=\"\",\"\",'[10]II.2.Balance OSD-Activos'!J95)","v":318.68080340431175},{"$f":"IF('[10]II.2.Balance OSD-Activos'!N95=\"\",\"\",'[10]II.2.Balance OSD-Activos'!N95)","v":583.04299331134939},{"$f":"IF('[10]II.2.Balance OSD-Activos'!R95=\"\",\"\",'[10]II.2.Balance OSD-Activos'!R95)","v":29797.605436670834},{"$f":"IF('[10]II.2.Balance OSD-Activos'!S95=\"\",\"\",'[10]II.2.Balance OSD-Activos'!S95)","v":30793.377901362943},30116.286240075147,61492.707134749435,7.9636106504055837,13.353748858646131,-10.593736794220609,13.414305932022753,12.300076567681506,12.539176663073025,-2.4212990993857773,{"$f":"IF('[2]MONE(M)CAPARD'!AS237=\"\",\"\",'[2]MONE(M)CAPARD'!AS237)","v":10},{"$f":"IF('[2]MONE(M)CAPARD'!AT237=\"\",\"\",'[2]MONE(M)CAPARD'!AT237)","v":"n.a."},{"$f":"IF('[2]MONE(M)CAPARD'!AU237=\"\",\"\",'[2]MONE(M)CAPARD'!AU237)","v":7.25},{"$f":"IF('[2]MONE(M)CAPARD'!AV237=\"\",\"\",'[2]MONE(M)CAPARD'!AV237)","v":7.75},{"$f":"IF('[2]MONE(M)CAPARD'!AW237=\"\",\"\",'[2]MONE(M)CAPARD'!AW237)","v":"n.a."},{"$f":"IF('[2]MONE(M)CAPARD'!AX237=\"\",\"\",'[2]MONE(M)CAPARD'!AX237)","v":9.5},{"$f":"IF('[2]MONE(M)CAPARD'!AY237=\"\",\"\",'[2]MONE(M)CAPARD'!AY237)","v":"n.a."},{"$f":"IF('[2]FISCAL(M)'!$K237=\"\",\"\",'[2]FISCAL(M)'!$K237)","v":-2663.0519924727291},{"$f":"IF('[2]FISCAL(M)'!$L237=\"\",\"\",'[2]FISCAL(M)'!$L237)","v":-2630.5943166327284},{"$f":"IF('[2]FISCAL(M)'!$AY237=\"\",\"\",'[2]FISCAL(M)'!$AY237)","v":52323.271289437565},{"$f":"IF('[2]FISCAL(M)'!$BI237=\"\",\"\",'[2]FISCAL(M)'!$BI237)","v":24433.678775117569},{"$f":"IF('[2]FISCAL(M)'!$BS237=\"\",\"\",'[2]FISCAL(M)'!$BS237)","v":27889.592514319997},{"$f":"IF('[2]FISCAL(M)'!$AZ237=\"\",\"\",'[2]FISCAL(M)'!$AZ237)","v":62887.385938537562},{"$f":"IF('[2]FISCAL(M)'!$BJ237=\"\",\"\",'[2]FISCAL(M)'!$BJ237)","v":26520.949470437568},{"$f":"IF('[2]FISCAL(M)'!$BT237=\"\",\"\",'[2]FISCAL(M)'!$BT237)","v":36366.436468100001},{"$f":"IF('[3]MONE(M)'!$AO237=\"\",\"\",'[3]MONE(M)'!$AO237)","v":8247192.0173865147},{"$f":"IF('[4]MONE(M)'!$AO237=\"\",\"\",'[4]MONE(M)'!$AO237)","v":9160.9753295700011},{"$f":"IF('[5]MONE(M)'!$AO237=\"\",\"\",'[5]MONE(M)'!$AO237)","v":85347.69851167321},{"$f":"+'[1]MONE(M)'!$AO237","v":133784.15442605762},{"$f":"IF('[6]MONE(M)'!$AO237=\"\",\"\",'[6]MONE(M)'!$AO237)","v":46350.383238286871},{"$f":"IF('[7]MONE(M)'!$AO237=\"\",\"\",'[7]MONE(M)'!$AO237)","v":334228.4666859},{"$f":"IF('[8]MONE(M)'!$AO237=\"\",\"\",'[8]MONE(M)'!$AO237)","v":19424.842702734997},33.873684582043808,4.4147711261212752,11.221711450122829,10.99866162842611,11.58457913730382,13.614271082474684,16.017035050488349,{"$f":"IF('[2]FISCAL(M)'!$K237=\"\",\"\",'[2]FISCAL(M)'!$K237)","v":-2663.0519924727291},{"$f":"+'[2]REAL(A)'!$AO$28","v":159639.80081281642},-1.6681629386366223,{"$f":"IF('[2]FISCAL(M)'!$L237=\"\",\"\",'[2]FISCAL(M)'!$L237)","v":-2630.5943166327284},{"$f":"+'[2]REAL(A)'!$AP$28","v":184795.6888128164},-1.4235149821581146,70526.096871285641,{"$f":"'[2]Gráfico REM'!BG231","v":11812.68264747031},{"$f":"'[2]Gráfico REM'!BH231","v":54016.176159098228},{"$f":"'[2]Gráfico REM'!BI231","v":4697.2380647171158},10.375891867814158,7.5062857339014855,11.343995816559005,6.8644533271482455,104379.72841435965,{"$f":"'[2]Gráfico REM'!BK231","v":12548.66521217331},{"$f":"'[2]Gráfico REM'!BL231","v":73441.018861833232},{"$f":"'[2]Gráfico REM'!BM231","v":18390.044340353117},11.80029157966449,8.6117572578696446,12.542984014922043,11.097954738068516]
[2009,"enero","2009-enero",{"$f":"IF('[2]REAL IPC(M)'!$AL238=\"\",\"\",+'[2]REAL IPC(M)'!$AL238)","v":7.621498564782736},{"$f":"IF('[2]REAL IPC(M)'!$BE238=\"\",\"\",+'[2]REAL IPC(M)'!$BE238)","v":6.603156924345055},{"$f":"IF('[2]REAL IPC(M)'!$AM238=\"\",\"\",+'[2]REAL IPC(M)'!$AM238)","v":7.341446522212336},{"$f":"IF('[2]REAL IPC(M)'!$BI238=\"\",\"\",+'[2]REAL IPC(M)'!$BI238)","v":6.4508381053765218},{"$f":"IF('[2]REAL IMAE(M)'!BJ238=\"\",\"\",'[2]REAL IMAE(M)'!BJ238)","v":-1.9592240804664374},{"$f":"IF('[2]REAL IMAE(M)'!BK238=\"\",\"\",'[2]REAL IMAE(M)'!BK238)","v":1.9389769909863297},{"$f":"IF('[2]REAL IMAE(M)'!BN238=\"\",\"\",'[2]REAL IMAE(M)'!BN238)","v":-0.99885190325960105},{"$f":"IF('[2]REAL IMAE(M)'!BO238=\"\",\"\",'[2]REAL IMAE(M)'!BO238)","v":2.6339900103345748},{"$f":"IF('[2]EXT RIN(M)'!$K238=\"\",\"\",'[2]EXT RIN(M)'!$K238)","v":16453.599035983192},"",{"$f":"IF('[2]EXT RIN(M)'!$L238=\"\",\"\",'[2]EXT RIN(M)'!$L238)","v":19022.837199739151},"",{"$f":"IF('[2]MONE(M)CARD'!EG238=\"\",\"\",'[2]MONE(M)CARD'!EG238)","v":14561.739312234458},{"$f":"IF('[2]MONE(M)CARD'!EK238=\"\",\"\",'[2]MONE(M)CARD'!EK238)","v":25984.432708478649},{"$f":"IF('[2]MONE(M)CARD'!EP238=\"\",\"\",'[2]MONE(M)CARD'!EP238)","v":13006.924954346301},{"$f":"IF('[2]MONE(M)CARD'!ES238=\"\",\"\",'[2]MONE(M)CARD'!ES238)","v":-0.26546855978999417},{"$f":"IF('[2]MONE(M)CARD'!EV238=\"\",\"\",'[2]MONE(M)CARD'!EV238)","v":10.662963772169975},{"$f":"IF('[2]MONE(M)CARD'!EZ238=\"\",\"\",'[2]MONE(M)CARD'!EZ238)","v":14.940045762276899},{"$f":"IF('[2]MONE(M)CAPARD'!FC238=\"\",\"\",'[2]MONE(M)CAPARD'!FC238)","v":18275.97212732986},{"$f":"IF('[2]MONE(M)CAPARD'!FG238=\"\",\"\",'[2]MONE(M)CAPARD'!FG238)","v":41912.328063298643},{"$f":"IF('[2]MONE(M)CAPARD'!FL238=\"\",\"\",'[2]MONE(M)CAPARD'!FL238)","v":13006.924954346294},{"$f":"IF('[2]MONE(M)CAPARD'!FO238=\"\",\"\",'[2]MONE(M)CAPARD'!FO238)","v":3.4819924563509019},{"$f":"IF('[2]MONE(M)CAPARD'!FR238=\"\",\"\",'[2]MONE(M)CAPARD'!FR238)","v":10.872970025408502},{"$f":"IF('[2]MONE(M)CAPARD'!FV238=\"\",\"\",'[2]MONE(M)CAPARD'!FV238)","v":13.942592210303939},{"$f":"IF('[2]MONE(M)CARD'!FV238=\"\",\"\",'[2]MONE(M)CARD'!FV238)","v":591.6705584437143},{"$f":"IF('[2]MONE(M)CARD'!GD238=\"\",\"\",'[2]MONE(M)CARD'!GD238)","v":60.296425505665674},{"$f":"IF('[2]MONE(M)CARD'!GE238=\"\",\"\",'[2]MONE(M)CARD'!GE238)","v":3380.4683234980539},6.8432959305877894,{"$f":"IF('[9]II.2.Balance OSD-Activos'!J96=\"\",\"\",'[9]II.2.Balance OSD-Activos'!J96)","v":13.816519893838466},{"$f":"IF('[9]II.2.Balance OSD-Activos'!N96=\"\",\"\",'[9]II.2.Balance OSD-Activos'!N96)","v":178.70961509443842},{"$f":"IF('[9]II.2.Balance OSD-Activos'!R96=\"\",\"\",'[9]II.2.Balance OSD-Activos'!R96)","v":19253.961417558596},{"$f":"IF('[9]II.2.Balance OSD-Activos'!S96=\"\",\"\",'[9]II.2.Balance OSD-Activos'!S96)","v":22247.687426552904},19267.777937452433,41694.174979099778,142.49167217766527,29.035592868686045,26.675077018655301,28.992284358264818,32.711161795084884,30.960516235964587,19.600861428584281,{"$f":"IF('[2]MONE(M)CAPARD'!GS238=\"\",\"\",'[2]MONE(M)CAPARD'!GS238)","v":4445.6591915008539},{"$f":"IF('[2]MONE(M)CARD'!HA238=\"\",\"\",'[2]MONE(M)CAPARD'!HA238)","v":3842.3285509080538},{"$f":"IF('[2]MONE(M)CAPARD'!HB238=\"\",\"\",'[2]MONE(M)CAPARD'!HB238)","v":603.33064059280014},"n.d.",{"$f":"IF('[10]II.2.Balance OSD-Activos'!J96=\"\",\"\",'[10]II.2.Balance OSD-Activos'!J96)","v":315.10648526983846},{"$f":"IF('[10]II.2.Balance OSD-Activos'!N96=\"\",\"\",'[10]II.2.Balance OSD-Activos'!N96)","v":611.48978287443833},{"$f":"IF('[10]II.2.Balance OSD-Activos'!R96=\"\",\"\",'[10]II.2.Balance OSD-Activos'!R96)","v":29458.528662388591},{"$f":"IF('[10]II.2.Balance OSD-Activos'!S96=\"\",\"\",'[10]II.2.Balance OSD-Activos'!S96)","v":30963.5824349129},29773.635147658431,61348.707365445764,27.396122272879666,26.139001104876058,0.71806952090072151,26.125688263133927,25.349649233635585,25.424827047765163,12.885650384692138,{"$f":"IF('[2]MONE(M)CAPARD'!AS238=\"\",\"\",'[2]MONE(M)CAPARD'!AS238)","v":10},{"$f":"IF('[2]MONE(M)CAPARD'!AT238=\"\",\"\",'[2]MONE(M)CAPARD'!AT238)","v":"n.a."},{"$f":"IF('[2]MONE(M)CAPARD'!AU238=\"\",\"\",'[2]MONE(M)CAPARD'!AU238)","v":7},{"$f":"IF('[2]MONE(M)CAPARD'!AV238=\"\",\"\",'[2]MONE(M)CAPARD'!AV238)","v":6.75},{"$f":"IF('[2]MONE(M)CAPARD'!AW238=\"\",\"\",'[2]MONE(M)CAPARD'!AW238)","v":"n.a."},{"$f":"IF('[2]MONE(M)CAPARD'!AX238=\"\",\"\",'[2]MONE(M)CAPARD'!AX238)","v":8.5},{"$f":"IF('[2]MONE(M)CAPARD'!AY238=\"\",\"\",'[2]MONE(M)CAPARD'!AY238)","v":"n.a."},{"$f":"IF('[2]FISCAL(M)'!$K238=\"\",\"\",'[2]FISCAL(M)'!$K238)","v":-397.86944113847125},{"$f":"IF('[2]FISCAL(M)'!$L238=\"\",\"\",'[2]FISCAL(M)'!$L238)","v":-831.43618581547116},{"$f":"IF('[2]FISCAL(M)'!$AY238=\"\",\"\",'[2]FISCAL(M)'!$AY238)","v":"n.d."},{"$f":"IF('[2]FISCAL(M)'!$BI238=\"\",\"\",'[2]FISCAL(M)'!$BI238)","v":"n.d."},{"$f":"IF('[2]FISCAL(M)'!$BS238=\"\",\"\",'[2]FISCAL(M)'!$BS238)","v":"n.d."},{"$f":"IF('[2]FISCAL(M)'!$AZ238=\"\",\"\",'[2]FISCAL(M)'!$AZ238)","v":"n.d."},{"$f":"IF('[2]FISCAL(M)'!$BJ238=\"\",\"\",'[2]FISCAL(M)'!$BJ238)","v":"n.d."},{"$f":"IF('[2]FISCAL(M)'!$BT238=\"\",\"\",'[2]FISCAL(M)'!$BT238)","v":"n.d."},{"$f":"IF('[3]MONE(M)'!$AO238=\"\",\"\",'[3]MONE(M)'!$AO238)","v":8308684.8381836731},{"$f":"IF('[4]MONE(M)'!$AO238=\"\",\"\",'[4]MONE(M)'!$AO238)","v":9142.5427774899981},{"$f":"IF('[5]MONE(M)'!$AO238=\"\",\"\",'[5]MONE(M)'!$AO238)","v":82857.80745027271},{"$f":"+'[1]MONE(M)'!$AO238","v":134838.81083926689},{"$f":"IF('[6]MONE(M)'!$AO238=\"\",\"\",'[6]MONE(M)'!$AO238)","v":45739.778355130096},{"$f":"IF('[7]MONE(M)'!$AO238=\"\",\"\",'[7]MONE(M)'!$AO238)","v":327045.16066672001},{"$f":"IF('[8]MONE(M)'!$AO238=\"\",\"\",'[8]MONE(M)'!$AO238)","v":19622.744335395997},32.017584369039788,3.2480113609204775,7.8572985171677212,8.3530944796875737,8.6436038048413053,9.5296777957637033,15.920851067399155,{"$f":"IF('[2]FISCAL(M)'!$K238=\"\",\"\",'[2]FISCAL(M)'!$K238)","v":-397.86944113847125},{"$f":"+'[2]REAL(A)'!$AO$29","v":157527.15846004928},-0.25257196602030729,{"$f":"IF('[2]FISCAL(M)'!$L238=\"\",\"\",'[2]FISCAL(M)'!$L238)","v":-831.43618581547116},{"$f":"+'[2]REAL(A)'!$AP$29","v":184643.79346004929},-0.45029197582824032,69800.737758965188,{"$f":"'[2]Gráfico REM'!BG232","v":11781.479768269393},{"$f":"'[2]Gráfico REM'!BH232","v":53164.335834537502},{"$f":"'[2]Gráfico REM'!BI232","v":4854.9221561583017},7.3886742861262622,3.4412594916527262,8.4098293538672273,6.2683261526567113,103652.55488666918,{"$f":"'[2]Gráfico REM'!BK232","v":12477.656040309394},{"$f":"'[2]Gráfico REM'!BL232","v":72787.080169933499},{"$f":"'[2]Gráfico REM'!BM232","v":18387.818676426301},9.4775758165955626,4.1655448279089846,10.337198293587013,9.8913556499340203]
[2009,"febrero","2009-febrero",{"$f":"IF('[2]REAL IPC(M)'!$AL239=\"\",\"\",+'[2]REAL IPC(M)'!$AL239)","v":6.9189189189189149},{"$f":"IF('[2]REAL IPC(M)'!$BE239=\"\",\"\",+'[2]REAL IPC(M)'!$BE239)","v":6.4679367279010913},{"$f":"IF('[2]REAL IPC(M)'!$AM239=\"\",\"\",+'[2]REAL IPC(M)'!$AM239)","v":6.6496414890482303},{"$f":"IF('[2]REAL IPC(M)'!$BI239=\"\",\"\",+'[2]REAL IPC(M)'!$BI239)","v":6.314420762636197},{"$f":"IF('[2]REAL IMAE(M)'!BJ239=\"\",\"\",'[2]REAL IMAE(M)'!BJ239)","v":-1.8371458749889436},{"$f":"IF('[2]REAL IMAE(M)'!BK239=\"\",\"\",'[2]REAL IMAE(M)'!BK239)","v":1.9525737313918379},{"$f":"IF('[2]REAL IMAE(M)'!BN239=\"\",\"\",'[2]REAL IMAE(M)'!BN239)","v":-0.68964886520338498},{"$f":"IF('[2]REAL IMAE(M)'!BO239=\"\",\"\",'[2]REAL IMAE(M)'!BO239)","v":2.6411245495431057},{"$f":"IF('[2]EXT RIN(M)'!$K239=\"\",\"\",'[2]EXT RIN(M)'!$K239)","v":16735.210469273639},"",{"$f":"IF('[2]EXT RIN(M)'!$L239=\"\",\"\",'[2]EXT RIN(M)'!$L239)","v":19262.824464903399},"",{"$f":"IF('[2]MONE(M)CARD'!EG239=\"\",\"\",'[2]MONE(M)CARD'!EG239)","v":14079.569872415806},{"$f":"IF('[2]MONE(M)CARD'!EK239=\"\",\"\",'[2]MONE(M)CARD'!EK239)","v":26170.024611652705},{"$f":"IF('[2]MONE(M)CARD'!EP239=\"\",\"\",'[2]MONE(M)CARD'!EP239)","v":13295.185957001719},{"$f":"IF('[2]MONE(M)CARD'!ES239=\"\",\"\",'[2]MONE(M)CARD'!ES239)","v":-4.9604900636122773},{"$f":"IF('[2]MONE(M)CARD'!EV239=\"\",\"\",'[2]MONE(M)CARD'!EV239)","v":7.5175433624177002},{"$f":"IF('[2]MONE(M)CARD'!EZ239=\"\",\"\",'[2]MONE(M)CARD'!EZ239)","v":12.946387475516818},{"$f":"IF('[2]MONE(M)CAPARD'!FC239=\"\",\"\",'[2]MONE(M)CAPARD'!FC239)","v":17773.869060859208},{"$f":"IF('[2]MONE(M)CAPARD'!FG239=\"\",\"\",'[2]MONE(M)CAPARD'!FG239)","v":42154.946901332703},{"$f":"IF('[2]MONE(M)CAPARD'!FL239=\"\",\"\",'[2]MONE(M)CAPARD'!FL239)","v":13295.185957001719},{"$f":"IF('[2]MONE(M)CAPARD'!FO239=\"\",\"\",'[2]MONE(M)CAPARD'!FO239)","v":-0.88682554282596415},{"$f":"IF('[2]MONE(M)CAPARD'!FR239=\"\",\"\",'[2]MONE(M)CAPARD'!FR239)","v":8.3971659338929925},{"$f":"IF('[2]MONE(M)CAPARD'!FV239=\"\",\"\",'[2]MONE(M)CAPARD'!FV239)","v":12.206573164663936},{"$f":"IF('[2]MONE(M)CARD'!FV239=\"\",\"\",'[2]MONE(M)CARD'!FV239)","v":582.44706339786944},{"$f":"IF('[2]MONE(M)CARD'!GD239=\"\",\"\",'[2]MONE(M)CARD'!GD239)","v":57.896773860337973},{"$f":"IF('[2]MONE(M)CARD'!GE239=\"\",\"\",'[2]MONE(M)CARD'!GE239)","v":3388.882270477694},9.5512410840344906,{"$f":"IF('[9]II.2.Balance OSD-Activos'!J97=\"\",\"\",'[9]II.2.Balance OSD-Activos'!J97)","v":28.650909880684672},{"$f":"IF('[9]II.2.Balance OSD-Activos'!N97=\"\",\"\",'[9]II.2.Balance OSD-Activos'!N97)","v":175.98931557907557},{"$f":"IF('[9]II.2.Balance OSD-Activos'!R97=\"\",\"\",'[9]II.2.Balance OSD-Activos'!R97)","v":19480.466588493175},{"$f":"IF('[9]II.2.Balance OSD-Activos'!S97=\"\",\"\",'[9]II.2.Balance OSD-Activos'!S97)","v":21874.070470913342},19509.11749837386,41559.17728486628,381.01897196206249,28.265156076096009,25.135835533651196,28.126962101543352,28.123026419998421,28.176743168833895,-2.7837730671306922,{"$f":"IF('[2]MONE(M)CAPARD'!GS239=\"\",\"\",'[2]MONE(M)CAPARD'!GS239)","v":4561.4099144710572},{"$f":"IF('[2]MONE(M)CARD'!HA239=\"\",\"\",'[2]MONE(M)CAPARD'!HA239)","v":3830.0420000876939},{"$f":"IF('[2]MONE(M)CAPARD'!HB239=\"\",\"\",'[2]MONE(M)CAPARD'!HB239)","v":731.36791438336331},"n.d.",{"$f":"IF('[10]II.2.Balance OSD-Activos'!J97=\"\",\"\",'[10]II.2.Balance OSD-Activos'!J97)","v":322.02034464068464},{"$f":"IF('[10]II.2.Balance OSD-Activos'!N97=\"\",\"\",'[10]II.2.Balance OSD-Activos'!N97)","v":619.08202652907551},{"$f":"IF('[10]II.2.Balance OSD-Activos'!R97=\"\",\"\",'[10]II.2.Balance OSD-Activos'!R97)","v":29706.190564303175},{"$f":"IF('[10]II.2.Balance OSD-Activos'!S97=\"\",\"\",'[10]II.2.Balance OSD-Activos'!S97)","v":30631.61046680334},30028.21090894386,61278.903402276279,16.911694498694185,25.264744878751166,9.8034034178840379,25.361838085419762,22.076597386193431,23.477142645476224,-1.9476844022889388,{"$f":"IF('[2]MONE(M)CAPARD'!AS239=\"\",\"\",'[2]MONE(M)CAPARD'!AS239)","v":10},{"$f":"IF('[2]MONE(M)CAPARD'!AT239=\"\",\"\",'[2]MONE(M)CAPARD'!AT239)","v":"n.a."},{"$f":"IF('[2]MONE(M)CAPARD'!AU239=\"\",\"\",'[2]MONE(M)CAPARD'!AU239)","v":6.5},{"$f":"IF('[2]MONE(M)CAPARD'!AV239=\"\",\"\",'[2]MONE(M)CAPARD'!AV239)","v":6.75},{"$f":"IF('[2]MONE(M)CAPARD'!AW239=\"\",\"\",'[2]MONE(M)CAPARD'!AW239)","v":"n.a."},{"$f":"IF('[2]MONE(M)CAPARD'!AX239=\"\",\"\",'[2]MONE(M)CAPARD'!AX239)","v":6},{"$f":"IF('[2]MONE(M)CAPARD'!AY239=\"\",\"\",'[2]MONE(M)CAPARD'!AY239)","v":"n.a."},{"$f":"IF('[2]FISCAL(M)'!$K239=\"\",\"\",'[2]FISCAL(M)'!$K239)","v":-441.13491944330036},{"$f":"IF('[2]FISCAL(M)'!$L239=\"\",\"\",'[2]FISCAL(M)'!$L239)","v":-1058.7403557103003},{"$f":"IF('[2]FISCAL(M)'!$AY239=\"\",\"\",'[2]FISCAL(M)'!$AY239)","v":"n.d."},{"$f":"IF('[2]FISCAL(M)'!$BI239=\"\",\"\",'[2]FISCAL(M)'!$BI239)","v":"n.d."},{"$f":"IF('[2]FISCAL(M)'!$BS239=\"\",\"\",'[2]FISCAL(M)'!$BS239)","v":"n.d."},{"$f":"IF('[2]FISCAL(M)'!$AZ239=\"\",\"\",'[2]FISCAL(M)'!$AZ239)","v":"n.d."},{"$f":"IF('[2]FISCAL(M)'!$BJ239=\"\",\"\",'[2]FISCAL(M)'!$BJ239)","v":"n.d."},{"$f":"IF('[2]FISCAL(M)'!$BT239=\"\",\"\",'[2]FISCAL(M)'!$BT239)","v":"n.d."},{"$f":"IF('[3]MONE(M)'!$AO239=\"\",\"\",'[3]MONE(M)'!$AO239)","v":8411247.1449179128},{"$f":"IF('[4]MONE(M)'!$AO239=\"\",\"\",'[4]MONE(M)'!$AO239)","v":9121.4497280399992},{"$f":"IF('[5]MONE(M)'!$AO239=\"\",\"\",'[5]MONE(M)'!$AO239)","v":82812.502123022598},{"$f":"+'[1]MONE(M)'!$AO239","v":135033.3436995892},{"$f":"IF('[6]MONE(M)'!$AO239=\"\",\"\",'[6]MONE(M)'!$AO239)","v":45607.668406559998},{"$f":"IF('[7]MONE(M)'!$AO239=\"\",\"\",'[7]MONE(M)'!$AO239)","v":325660.43809970003},{"$f":"IF('[8]MONE(M)'!$AO239=\"\",\"\",'[8]MONE(M)'!$AO239)","v":19671.569360759997},30.114857246898019,2.0790668190203254,7.2574770262722632,6.3113973406901946,5.7227148663661298,8.1191016349958733,14.695887194110057,{"$f":"IF('[2]FISCAL(M)'!$K239=\"\",\"\",'[2]FISCAL(M)'!$K239)","v":-441.13491944330036},{"$f":"+'[2]REAL(A)'!$AO$29","v":157527.15846004928},-0.28003737498710568,{"$f":"IF('[2]FISCAL(M)'!$L239=\"\",\"\",'[2]FISCAL(M)'!$L239)","v":-1058.7403557103003},{"$f":"+'[2]REAL(A)'!$AP$29","v":184643.79346004929},-0.57339612443533128,69673.498608862006,{"$f":"'[2]Gráfico REM'!BG233","v":11967.342891677255},{"$f":"'[2]Gráfico REM'!BH233","v":52996.292991643233},{"$f":"'[2]Gráfico REM'!BI233","v":4709.8627255415186},5.5478248595214552,3.6324814656214954,6.1116089907031768,4.2115213278894448,104652.45136807201,{"$f":"'[2]Gráfico REM'!BK233","v":12686.767874207255},{"$f":"'[2]Gráfico REM'!BL233","v":72667.86235240323},{"$f":"'[2]Gráfico REM'!BM233","v":19297.821141461518},8.6636498197877785,3.7277067804568409,8.3059539146241192,13.631639656963014]
[2009,"marzo","2009-marzo",{"$f":"IF('[2]REAL IPC(M)'!$AL240=\"\",\"\",+'[2]REAL IPC(M)'!$AL240)","v":5.7137304440773695},{"$f":"IF('[2]REAL IPC(M)'!$BE240=\"\",\"\",+'[2]REAL IPC(M)'!$BE240)","v":6.3335393787442129},{"$f":"IF('[2]REAL IPC(M)'!$AM240=\"\",\"\",+'[2]REAL IPC(M)'!$AM240)","v":5.5059234802874446},{"$f":"IF('[2]REAL IPC(M)'!$BI240=\"\",\"\",+'[2]REAL IPC(M)'!$BI240)","v":6.1785951362687275},{"$f":"IF('[2]REAL IMAE(M)'!BJ240=\"\",\"\",'[2]REAL IMAE(M)'!BJ240)","v":-2.1396625291569382},{"$f":"IF('[2]REAL IMAE(M)'!BK240=\"\",\"\",'[2]REAL IMAE(M)'!BK240)","v":1.975570067720378},{"$f":"IF('[2]REAL IMAE(M)'!BN240=\"\",\"\",'[2]REAL IMAE(M)'!BN240)","v":-1.155363278996091},{"$f":"IF('[2]REAL IMAE(M)'!BO240=\"\",\"\",'[2]REAL IMAE(M)'!BO240)","v":2.6588135026989201},{"$f":"IF('[2]EXT RIN(M)'!$K240=\"\",\"\",'[2]EXT RIN(M)'!$K240)","v":17340.176260494063},"",{"$f":"IF('[2]EXT RIN(M)'!$L240=\"\",\"\",'[2]EXT RIN(M)'!$L240)","v":20195.845471269182},"",{"$f":"IF('[2]MONE(M)CARD'!EG240=\"\",\"\",'[2]MONE(M)CARD'!EG240)","v":14120.654223989903},{"$f":"IF('[2]MONE(M)CARD'!EK240=\"\",\"\",'[2]MONE(M)CARD'!EK240)","v":26478.80193313881},{"$f":"IF('[2]MONE(M)CARD'!EP240=\"\",\"\",'[2]MONE(M)CARD'!EP240)","v":13512.269586797229},{"$f":"IF('[2]MONE(M)CARD'!ES240=\"\",\"\",'[2]MONE(M)CARD'!ES240)","v":-7.5069529642530881},{"$f":"IF('[2]MONE(M)CARD'!EV240=\"\",\"\",'[2]MONE(M)CARD'!EV240)","v":6.7940632089096731},{"$f":"IF('[2]MONE(M)CARD'!EZ240=\"\",\"\",'[2]MONE(M)CARD'!EZ240)","v":12.459310145123869},{"$f":"IF('[2]MONE(M)CAPARD'!FC240=\"\",\"\",'[2]MONE(M)CAPARD'!FC240)","v":17731.220742194302},{"$f":"IF('[2]MONE(M)CAPARD'!FG240=\"\",\"\",'[2]MONE(M)CAPARD'!FG240)","v":42588.606124438811},{"$f":"IF('[2]MONE(M)CAPARD'!FL240=\"\",\"\",'[2]MONE(M)CAPARD'!FL240)","v":13512.269586797222},{"$f":"IF('[2]MONE(M)CAPARD'!FO240=\"\",\"\",'[2]MONE(M)CAPARD'!FO240)","v":-3.6488798992074245},{"$f":"IF('[2]MONE(M)CAPARD'!FR240=\"\",\"\",'[2]MONE(M)CAPARD'!FR240)","v":7.2621922871981104},{"$f":"IF('[2]MONE(M)CAPARD'!FV240=\"\",\"\",'[2]MONE(M)CAPARD'!FV240)","v":11.300194422925358},{"$f":"IF('[2]MONE(M)CARD'!FV240=\"\",\"\",'[2]MONE(M)CARD'!FV240)","v":589.1194305880399},{"$f":"IF('[2]MONE(M)CARD'!GD240=\"\",\"\",'[2]MONE(M)CARD'!GD240)","v":53.88266417330604},{"$f":"IF('[2]MONE(M)CARD'!GE240=\"\",\"\",'[2]MONE(M)CARD'!GE240)","v":3540.1409289302928},24.050242895780926,{"$f":"IF('[9]II.2.Balance OSD-Activos'!J98=\"\",\"\",'[9]II.2.Balance OSD-Activos'!J98)","v":25.633964603213752},{"$f":"IF('[9]II.2.Balance OSD-Activos'!N98=\"\",\"\",'[9]II.2.Balance OSD-Activos'!N98)","v":175.67219110197934},{"$f":"IF('[9]II.2.Balance OSD-Activos'!R98=\"\",\"\",'[9]II.2.Balance OSD-Activos'!R98)","v":19271.71879532891},{"$f":"IF('[9]II.2.Balance OSD-Activos'!S98=\"\",\"\",'[9]II.2.Balance OSD-Activos'!S98)","v":21977.804441529202},19297.352759932124,41450.829392563304,242.39296335639563,24.806918194862405,20.802863771764567,24.701510272965788,26.465406158569738,25.663040155852968,-2.5137030129809261,{"$f":"IF('[2]MONE(M)CAPARD'!GS240=\"\",\"\",'[2]MONE(M)CAPARD'!GS240)","v":4748.2459396925751},{"$f":"IF('[2]MONE(M)CARD'!HA240=\"\",\"\",'[2]MONE(M)CAPARD'!HA240)","v":3999.8212728302919},{"$f":"IF('[2]MONE(M)CAPARD'!HB240=\"\",\"\",'[2]MONE(M)CAPARD'!HB240)","v":748.42466686228317},"n.d.",{"$f":"IF('[10]II.2.Balance OSD-Activos'!J98=\"\",\"\",'[10]II.2.Balance OSD-Activos'!J98)","v":329.35221256321375},{"$f":"IF('[10]II.2.Balance OSD-Activos'!N98=\"\",\"\",'[10]II.2.Balance OSD-Activos'!N98)","v":569.89149233197929},{"$f":"IF('[10]II.2.Balance OSD-Activos'!R98=\"\",\"\",'[10]II.2.Balance OSD-Activos'!R98)","v":29466.368887238907},{"$f":"IF('[10]II.2.Balance OSD-Activos'!S98=\"\",\"\",'[10]II.2.Balance OSD-Activos'!S98)","v":30791.680254859202},29795.721099802122,61157.292846993303,26.783383006459928,22.514028819621323,-0.59932688357470232,22.467933566589448,21.063517368466854,21.517676969529997,-1.9594656759462268,{"$f":"IF('[2]MONE(M)CAPARD'!AS240=\"\",\"\",'[2]MONE(M)CAPARD'!AS240)","v":10},{"$f":"IF('[2]MONE(M)CAPARD'!AT240=\"\",\"\",'[2]MONE(M)CAPARD'!AT240)","v":"n.a."},{"$f":"IF('[2]MONE(M)CAPARD'!AU240=\"\",\"\",'[2]MONE(M)CAPARD'!AU240)","v":6.25},{"$f":"IF('[2]MONE(M)CAPARD'!AV240=\"\",\"\",'[2]MONE(M)CAPARD'!AV240)","v":5.75},{"$f":"IF('[2]MONE(M)CAPARD'!AW240=\"\",\"\",'[2]MONE(M)CAPARD'!AW240)","v":"n.a."},{"$f":"IF('[2]MONE(M)CAPARD'!AX240=\"\",\"\",'[2]MONE(M)CAPARD'!AX240)","v":6},{"$f":"IF('[2]MONE(M)CAPARD'!AY240=\"\",\"\",'[2]MONE(M)CAPARD'!AY240)","v":"n.a."},{"$f":"IF('[2]FISCAL(M)'!$K240=\"\",\"\",'[2]FISCAL(M)'!$K240)","v":-781.64195746402356},{"$f":"IF('[2]FISCAL(M)'!$L240=\"\",\"\",'[2]FISCAL(M)'!$L240)","v":-1126.0071313280237},{"$f":"IF('[2]FISCAL(M)'!$AY240=\"\",\"\",'[2]FISCAL(M)'!$AY240)","v":53202.2635369368},{"$f":"IF('[2]FISCAL(M)'!$BI240=\"\",\"\",'[2]FISCAL(M)'!$BI240)","v":24962.648317326802},{"$f":"IF('[2]FISCAL(M)'!$BS240=\"\",\"\",'[2]FISCAL(M)'!$BS240)","v":28239.615219610001},{"$f":"IF('[2]FISCAL(M)'!$AZ240=\"\",\"\",'[2]FISCAL(M)'!$AZ240)","v":63897.355909876802},{"$f":"IF('[2]FISCAL(M)'!$BJ240=\"\",\"\",'[2]FISCAL(M)'!$BJ240)","v":26879.088561646804},{"$f":"IF('[2]FISCAL(M)'!$BT240=\"\",\"\",'[2]FISCAL(M)'!$BT240)","v":37008.537257579999},{"$f":"IF('[3]MONE(M)'!$AO240=\"\",\"\",'[3]MONE(M)'!$AO240)","v":8445007.9262335859},{"$f":"IF('[4]MONE(M)'!$AO240=\"\",\"\",'[4]MONE(M)'!$AO240)","v":9085.1722397599988},{"$f":"IF('[5]MONE(M)'!$AO240=\"\",\"\",'[5]MONE(M)'!$AO240)","v":83286.580308746255},{"$f":"+'[1]MONE(M)'!$AO240","v":135038.79204356525},{"$f":"IF('[6]MONE(M)'!$AO240=\"\",\"\",'[6]MONE(M)'!$AO240)","v":45427.109112531027},{"$f":"IF('[7]MONE(M)'!$AO240=\"\",\"\",'[7]MONE(M)'!$AO240)","v":323276.96297784004},{"$f":"IF('[8]MONE(M)'!$AO240=\"\",\"\",'[8]MONE(M)'!$AO240)","v":19698.843702170001},27.25950451576702,0.74743671383639132,7.5502774910768844,5.1002083854655433,4.3063380781609206,5.6221184625666165,13.850052149296799,{"$f":"IF('[2]FISCAL(M)'!$K240=\"\",\"\",'[2]FISCAL(M)'!$K240)","v":-781.64195746402356},{"$f":"+'[2]REAL(A)'!$AO$29","v":157527.15846004928},-0.49619504668603359,{"$f":"IF('[2]FISCAL(M)'!$L240=\"\",\"\",'[2]FISCAL(M)'!$L240)","v":-1126.0071313280237},{"$f":"+'[2]REAL(A)'!$AP$29","v":184643.79346004929},-0.60982668858114297,69891.87780746544,{"$f":"'[2]Gráfico REM'!BG234","v":12299.3956619813},{"$f":"'[2]Gráfico REM'!BH234","v":52921.714861831293},{"$f":"'[2]Gráfico REM'!BI234","v":4670.7672836528473},4.2627459674712709,5.809822305526513,4.2107680061454378,0.94660240900192871,105041.23913331544,{"$f":"'[2]Gráfico REM'!BK234","v":12980.172678181299},{"$f":"'[2]Gráfico REM'!BL234","v":72620.558564001287},{"$f":"'[2]Gráfico REM'!BM234","v":19440.507891132846},7.5135277132568845,5.1742562933451586,6.6603714834957417,12.547835721583489]
[2009,"abril","2009-abril",{"$f":"IF('[2]REAL IPC(M)'!$AL241=\"\",\"\",+'[2]REAL IPC(M)'!$AL241)","v":4.4887780548628298},{"$f":"IF('[2]REAL IPC(M)'!$BE241=\"\",\"\",+'[2]REAL IPC(M)'!$BE241)","v":6.2018135603166158},{"$f":"IF('[2]REAL IPC(M)'!$AM241=\"\",\"\",+'[2]REAL IPC(M)'!$AM241)","v":4.4128933231005529},{"$f":"IF('[2]REAL IPC(M)'!$BI241=\"\",\"\",+'[2]REAL IPC(M)'!$BI241)","v":6.0454251591663066},{"$f":"IF('[2]REAL IMAE(M)'!BJ241=\"\",\"\",'[2]REAL IMAE(M)'!BJ241)","v":-2.9135778707841453},{"$f":"IF('[2]REAL IMAE(M)'!BK241=\"\",\"\",'[2]REAL IMAE(M)'!BK241)","v":2.0082701651009227},{"$f":"IF('[2]REAL IMAE(M)'!BN241=\"\",\"\",'[2]REAL IMAE(M)'!BN241)","v":-2.2706826856655149},{"$f":"IF('[2]REAL IMAE(M)'!BO241=\"\",\"\",'[2]REAL IMAE(M)'!BO241)","v":2.6875157750537504},{"$f":"IF('[2]EXT RIN(M)'!$K241=\"\",\"\",'[2]EXT RIN(M)'!$K241)","v":17586.253981363716},"",{"$f":"IF('[2]EXT RIN(M)'!$L241=\"\",\"\",'[2]EXT RIN(M)'!$L241)","v":20429.986758571216},"",{"$f":"IF('[2]MONE(M)CARD'!EG241=\"\",\"\",'[2]MONE(M)CARD'!EG241)","v":13841.609505323999},{"$f":"IF('[2]MONE(M)CARD'!EK241=\"\",\"\",'[2]MONE(M)CARD'!EK241)","v":26354.765935610361},{"$f":"IF('[2]MONE(M)CARD'!EP241=\"\",\"\",'[2]MONE(M)CARD'!EP241)","v":13713.152714122974},{"$f":"IF('[2]MONE(M)CARD'!ES241=\"\",\"\",'[2]MONE(M)CARD'!ES241)","v":-8.6453502391629087},{"$f":"IF('[2]MONE(M)CARD'!EV241=\"\",\"\",'[2]MONE(M)CARD'!EV241)","v":6.0005649918439152},{"$f":"IF('[2]MONE(M)CARD'!EZ241=\"\",\"\",'[2]MONE(M)CARD'!EZ241)","v":11.393338747339833},{"$f":"IF('[2]MONE(M)CAPARD'!FC241=\"\",\"\",'[2]MONE(M)CAPARD'!FC241)","v":17473.5200230474},{"$f":"IF('[2]MONE(M)CAPARD'!FG241=\"\",\"\",'[2]MONE(M)CAPARD'!FG241)","v":42626.016884790362},{"$f":"IF('[2]MONE(M)CAPARD'!FL241=\"\",\"\",'[2]MONE(M)CAPARD'!FL241)","v":13713.152714122982},{"$f":"IF('[2]MONE(M)CAPARD'!FO241=\"\",\"\",'[2]MONE(M)CAPARD'!FO241)","v":-4.6906097577253503},{"$f":"IF('[2]MONE(M)CAPARD'!FR241=\"\",\"\",'[2]MONE(M)CAPARD'!FR241)","v":6.732066781619972},{"$f":"IF('[2]MONE(M)CAPARD'!FV241=\"\",\"\",'[2]MONE(M)CAPARD'!FV241)","v":10.525284635440158},{"$f":"IF('[2]MONE(M)CARD'!FV241=\"\",\"\",'[2]MONE(M)CARD'!FV241)","v":482.61127700283089},{"$f":"IF('[2]MONE(M)CARD'!GD241=\"\",\"\",'[2]MONE(M)CARD'!GD241)","v":194.6243070145488},{"$f":"IF('[2]MONE(M)CARD'!GE241=\"\",\"\",'[2]MONE(M)CARD'!GE241)","v":3816.9919328006672},20.939604471126572,{"$f":"IF('[9]II.2.Balance OSD-Activos'!J99=\"\",\"\",'[9]II.2.Balance OSD-Activos'!J99)","v":21.363669088347141},{"$f":"IF('[9]II.2.Balance OSD-Activos'!N99=\"\",\"\",'[9]II.2.Balance OSD-Activos'!N99)","v":174.00660396713903},{"$f":"IF('[9]II.2.Balance OSD-Activos'!R99=\"\",\"\",'[9]II.2.Balance OSD-Activos'!R99)","v":19121.652803984114},{"$f":"IF('[9]II.2.Balance OSD-Activos'!S99=\"\",\"\",'[9]II.2.Balance OSD-Activos'!S99)","v":21923.344454950719},19143.016473072461,41240.36753199032,192.51629663844608,22.104986449062825,20.659742877032539,22.025562846445478,23.627285775226568,22.903288922927079,-2.7597512329258898,{"$f":"IF('[2]MONE(M)CAPARD'!GS241=\"\",\"\",'[2]MONE(M)CAPARD'!GS241)","v":4859.6852406990256},{"$f":"IF('[2]MONE(M)CARD'!HA241=\"\",\"\",'[2]MONE(M)CAPARD'!HA241)","v":4275.460433670667},{"$f":"IF('[2]MONE(M)CAPARD'!HB241=\"\",\"\",'[2]MONE(M)CAPARD'!HB241)","v":584.22480702835855},"n.d.",{"$f":"IF('[10]II.2.Balance OSD-Activos'!J99=\"\",\"\",'[10]II.2.Balance OSD-Activos'!J99)","v":321.63527844034712},{"$f":"IF('[10]II.2.Balance OSD-Activos'!N99=\"\",\"\",'[10]II.2.Balance OSD-Activos'!N99)","v":587.82828432713904},{"$f":"IF('[10]II.2.Balance OSD-Activos'!R99=\"\",\"\",'[10]II.2.Balance OSD-Activos'!R99)","v":29301.985860474113},{"$f":"IF('[10]II.2.Balance OSD-Activos'!S99=\"\",\"\",'[10]II.2.Balance OSD-Activos'!S99)","v":30774.76136171072},29623.621138914459,60986.210784952316,24.652128118299355,20.198945852302842,-4.6603299727965179,20.151829920260568,18.939878023846003,19.262141487373373,-2.255535482156624,{"$f":"IF('[2]MONE(M)CAPARD'!AS241=\"\",\"\",'[2]MONE(M)CAPARD'!AS241)","v":10},{"$f":"IF('[2]MONE(M)CAPARD'!AT241=\"\",\"\",'[2]MONE(M)CAPARD'!AT241)","v":"n.a."},{"$f":"IF('[2]MONE(M)CAPARD'!AU241=\"\",\"\",'[2]MONE(M)CAPARD'!AU241)","v":5.75},{"$f":"IF('[2]MONE(M)CAPARD'!AV241=\"\",\"\",'[2]MONE(M)CAPARD'!AV241)","v":4.5},{"$f":"IF('[2]MONE(M)CAPARD'!AW241=\"\",\"\",'[2]MONE(M)CAPARD'!AW241)","v":"n.a."},{"$f":"IF('[2]MONE(M)CAPARD'!AX241=\"\",\"\",'[2]MONE(M)CAPARD'!AX241)","v":5},{"$f":"IF('[2]MONE(M)CAPARD'!AY241=\"\",\"\",'[2]MONE(M)CAPARD'!AY241)","v":"n.a."},{"$f":"IF('[2]FISCAL(M)'!$K241=\"\",\"\",'[2]FISCAL(M)'!$K241)","v":-670.22821818179182},{"$f":"IF('[2]FISCAL(M)'!$L241=\"\",\"\",'[2]FISCAL(M)'!$L241)","v":-1030.077473942792},{"$f":"IF('[2]FISCAL(M)'!$AY241=\"\",\"\",'[2]FISCAL(M)'!$AY241)","v":"n.d."},{"$f":"IF('[2]FISCAL(M)'!$BI241=\"\",\"\",'[2]FISCAL(M)'!$BI241)","v":"n.d."},{"$f":"IF('[2]FISCAL(M)'!$BS241=\"\",\"\",'[2]FISCAL(M)'!$BS241)","v":"n.d."},{"$f":"IF('[2]FISCAL(M)'!$AZ241=\"\",\"\",'[2]FISCAL(M)'!$AZ241)","v":"n.d."},{"$f":"IF('[2]FISCAL(M)'!$BJ241=\"\",\"\",'[2]FISCAL(M)'!$BJ241)","v":"n.d."},{"$f":"IF('[2]FISCAL(M)'!$BT241=\"\",\"\",'[2]FISCAL(M)'!$BT241)","v":"n.d."},{"$f":"IF('[3]MONE(M)'!$AO241=\"\",\"\",'[3]MONE(M)'!$AO241)","v":8565013.4202512465},{"$f":"IF('[4]MONE(M)'!$AO241=\"\",\"\",'[4]MONE(M)'!$AO241)","v":9019.2485439299999},{"$f":"IF('[5]MONE(M)'!$AO241=\"\",\"\",'[5]MONE(M)'!$AO241)","v":82764.904261340824},{"$f":"+'[1]MONE(M)'!$AO241","v":134734.26259755637},{"$f":"IF('[6]MONE(M)'!$AO241=\"\",\"\",'[6]MONE(M)'!$AO241)","v":44454.289407475713},{"$f":"IF('[7]MONE(M)'!$AO241=\"\",\"\",'[7]MONE(M)'!$AO241)","v":324705.74239627999},{"$f":"IF('[8]MONE(M)'!$AO241=\"\",\"\",'[8]MONE(M)'!$AO241)","v":19724.875813922001},26.034349863958163,-0.52989003840799853,7.2769292530270757,3.6641517837421977,1.2811321421830835,4.0878600728111669,12.753610935807981,{"$f":"IF('[2]FISCAL(M)'!$K241=\"\",\"\",'[2]FISCAL(M)'!$K241)","v":-670.22821818179182},{"$f":"+'[2]REAL(A)'!$AO$29","v":157527.15846004928},-0.42546836033468444,{"$f":"IF('[2]FISCAL(M)'!$L241=\"\",\"\",'[2]FISCAL(M)'!$L241)","v":-1030.077473942792},{"$f":"+'[2]REAL(A)'!$AP$29","v":184643.79346004929},-0.5578727855619291,69817.574752897723,{"$f":"'[2]Gráfico REM'!BG235","v":12541.987037250423},{"$f":"'[2]Gráfico REM'!BH235","v":52677.118613979044},{"$f":"'[2]Gráfico REM'!BI235","v":4598.4691016682609},2.7843900806841848,6.6293674044985984,2.2927200735000541,-1.4804072811233526,104977.46418569275,{"$f":"'[2]Gráfico REM'!BK235","v":13275.968819240423},{"$f":"'[2]Gráfico REM'!BL235","v":72401.994427901052},{"$f":"'[2]Gráfico REM'!BM235","v":19299.50093855126},5.6083468524958269,6.310730080969984,4.9452779094951715,7.6711107162169112]
[2009,"mayo ","2009-mayo ",{"$f":"IF('[2]REAL IPC(M)'!$AL242=\"\",\"\",+'[2]REAL IPC(M)'!$AL242)","v":3.2285551978791904},{"$f":"IF('[2]REAL IPC(M)'!$BE242=\"\",\"\",+'[2]REAL IPC(M)'!$BE242)","v":6.0745255487864691},{"$f":"IF('[2]REAL IPC(M)'!$AM242=\"\",\"\",+'[2]REAL IPC(M)'!$AM242)","v":3.1549028896257658},{"$f":"IF('[2]REAL IPC(M)'!$BI242=\"\",\"\",+'[2]REAL IPC(M)'!$BI242)","v":5.9168794979488348},{"$f":"IF('[2]REAL IMAE(M)'!BJ242=\"\",\"\",'[2]REAL IMAE(M)'!BJ242)","v":-2.7157971525388791},{"$f":"IF('[2]REAL IMAE(M)'!BK242=\"\",\"\",'[2]REAL IMAE(M)'!BK242)","v":2.050724657435965},{"$f":"IF('[2]REAL IMAE(M)'!BN242=\"\",\"\",'[2]REAL IMAE(M)'!BN242)","v":-1.9522149361184238},{"$f":"IF('[2]REAL IMAE(M)'!BO242=\"\",\"\",'[2]REAL IMAE(M)'!BO242)","v":2.7274192688907295},{"$f":"IF('[2]EXT RIN(M)'!$K242=\"\",\"\",'[2]EXT RIN(M)'!$K242)","v":17464.557393108022},"",{"$f":"IF('[2]EXT RIN(M)'!$L242=\"\",\"\",'[2]EXT RIN(M)'!$L242)","v":20215.518321091073},"",{"$f":"IF('[2]MONE(M)CARD'!EG242=\"\",\"\",'[2]MONE(M)CARD'!EG242)","v":13919.466869149615},{"$f":"IF('[2]MONE(M)CARD'!EK242=\"\",\"\",'[2]MONE(M)CARD'!EK242)","v":26443.857492216182},{"$f":"IF('[2]MONE(M)CARD'!EP242=\"\",\"\",'[2]MONE(M)CARD'!EP242)","v":14101.746039791586},{"$f":"IF('[2]MONE(M)CARD'!ES242=\"\",\"\",'[2]MONE(M)CARD'!ES242)","v":-4.6478928230140664},{"$f":"IF('[2]MONE(M)CARD'!EV242=\"\",\"\",'[2]MONE(M)CARD'!EV242)","v":8.5363013460588277},{"$f":"IF('[2]MONE(M)CARD'!EZ242=\"\",\"\",'[2]MONE(M)CARD'!EZ242)","v":13.808159505475381},{"$f":"IF('[2]MONE(M)CAPARD'!FC242=\"\",\"\",'[2]MONE(M)CAPARD'!FC242)","v":17745.837320038016},{"$f":"IF('[2]MONE(M)CAPARD'!FG242=\"\",\"\",'[2]MONE(M)CAPARD'!FG242)","v":42847.537529326182},{"$f":"IF('[2]MONE(M)CAPARD'!FL242=\"\",\"\",'[2]MONE(M)CAPARD'!FL242)","v":14101.746039791578},{"$f":"IF('[2]MONE(M)CAPARD'!FO242=\"\",\"\",'[2]MONE(M)CAPARD'!FO242)","v":-0.33277850120202457},{"$f":"IF('[2]MONE(M)CAPARD'!FR242=\"\",\"\",'[2]MONE(M)CAPARD'!FR242)","v":8.2277924477779152},{"$f":"IF('[2]MONE(M)CAPARD'!FV242=\"\",\"\",'[2]MONE(M)CAPARD'!FV242)","v":12.062253107953701},{"$f":"IF('[2]MONE(M)CARD'!FV242=\"\",\"\",'[2]MONE(M)CARD'!FV242)","v":500.46941533194661},{"$f":"IF('[2]MONE(M)CARD'!GD242=\"\",\"\",'[2]MONE(M)CARD'!GD242)","v":46.008335746058393},{"$f":"IF('[2]MONE(M)CARD'!GE242=\"\",\"\",'[2]MONE(M)CARD'!GE242)","v":3575.2679033039926},8.0153770111174758,{"$f":"IF('[9]II.2.Balance OSD-Activos'!J100=\"\",\"\",'[9]II.2.Balance OSD-Activos'!J100)","v":15.412254399178622},{"$f":"IF('[9]II.2.Balance OSD-Activos'!N100=\"\",\"\",'[9]II.2.Balance OSD-Activos'!N100)","v":176.87034508830106},{"$f":"IF('[9]II.2.Balance OSD-Activos'!R100=\"\",\"\",'[9]II.2.Balance OSD-Activos'!R100)","v":19140.579407328416},{"$f":"IF('[9]II.2.Balance OSD-Activos'!S100=\"\",\"\",'[9]II.2.Balance OSD-Activos'!S100)","v":21820.236906967322},19155.991661727596,41153.098913783222,111.4943422307035,22.01001900760604,19.65624243280373,21.968465580017526,22.51225186067871,22.265440136388847,-0.63784878653823185,{"$f":"IF('[2]MONE(M)CAPARD'!GS242=\"\",\"\",'[2]MONE(M)CAPARD'!GS242)","v":5180.7772675468877},{"$f":"IF('[2]MONE(M)CARD'!HA242=\"\",\"\",'[2]MONE(M)CAPARD'!HA242)","v":3993.8998985339927},{"$f":"IF('[2]MONE(M)CAPARD'!HB242=\"\",\"\",'[2]MONE(M)CAPARD'!HB242)","v":1186.8773690128951},"n.d.",{"$f":"IF('[10]II.2.Balance OSD-Activos'!J100=\"\",\"\",'[10]II.2.Balance OSD-Activos'!J100)","v":331.64958637417863},{"$f":"IF('[10]II.2.Balance OSD-Activos'!N100=\"\",\"\",'[10]II.2.Balance OSD-Activos'!N100)","v":612.9607393383011},{"$f":"IF('[10]II.2.Balance OSD-Activos'!R100=\"\",\"\",'[10]II.2.Balance OSD-Activos'!R100)","v":29310.398753738413},{"$f":"IF('[10]II.2.Balance OSD-Activos'!S100=\"\",\"\",'[10]II.2.Balance OSD-Activos'!S100)","v":30740.845716887321},29642.048340112593,60995.854796338215,26.535712500174789,19.007309283667006,8.3788954349963909,18.927246837521182,18.156554473484899,18.460697176827878,-0.80144431054549514,{"$f":"IF('[2]MONE(M)CAPARD'!AS242=\"\",\"\",'[2]MONE(M)CAPARD'!AS242)","v":10},{"$f":"IF('[2]MONE(M)CAPARD'!AT242=\"\",\"\",'[2]MONE(M)CAPARD'!AT242)","v":"n.a."},{"$f":"IF('[2]MONE(M)CAPARD'!AU242=\"\",\"\",'[2]MONE(M)CAPARD'!AU242)","v":5.75},{"$f":"IF('[2]MONE(M)CAPARD'!AV242=\"\",\"\",'[2]MONE(M)CAPARD'!AV242)","v":4.5},{"$f":"IF('[2]MONE(M)CAPARD'!AW242=\"\",\"\",'[2]MONE(M)CAPARD'!AW242)","v":"n.a."},{"$f":"IF('[2]MONE(M)CAPARD'!AX242=\"\",\"\",'[2]MONE(M)CAPARD'!AX242)","v":5},{"$f":"IF('[2]MONE(M)CAPARD'!AY242=\"\",\"\",'[2]MONE(M)CAPARD'!AY242)","v":"n.a."},{"$f":"IF('[2]FISCAL(M)'!$K242=\"\",\"\",'[2]FISCAL(M)'!$K242)","v":-667.91062488113732},{"$f":"IF('[2]FISCAL(M)'!$L242=\"\",\"\",'[2]FISCAL(M)'!$L242)","v":-1106.5350506221373},{"$f":"IF('[2]FISCAL(M)'!$AY242=\"\",\"\",'[2]FISCAL(M)'!$AY242)","v":"n.d."},{"$f":"IF('[2]FISCAL(M)'!$BI242=\"\",\"\",'[2]FISCAL(M)'!$BI242)","v":"n.d."},{"$f":"IF('[2]FISCAL(M)'!$BS242=\"\",\"\",'[2]FISCAL(M)'!$BS242)","v":"n.d."},{"$f":"IF('[2]FISCAL(M)'!$AZ242=\"\",\"\",'[2]FISCAL(M)'!$AZ242)","v":"n.d."},{"$f":"IF('[2]FISCAL(M)'!$BJ242=\"\",\"\",'[2]FISCAL(M)'!$BJ242)","v":"n.d."},{"$f":"IF('[2]FISCAL(M)'!$BT242=\"\",\"\",'[2]FISCAL(M)'!$BT242)","v":"n.d."},{"$f":"IF('[3]MONE(M)'!$AO242=\"\",\"\",'[3]MONE(M)'!$AO242)","v":8634753.5660453867},{"$f":"IF('[4]MONE(M)'!$AO242=\"\",\"\",'[4]MONE(M)'!$AO242)","v":8905.7185746699997},{"$f":"IF('[5]MONE(M)'!$AO242=\"\",\"\",'[5]MONE(M)'!$AO242)","v":82843.392487304023},{"$f":"+'[1]MONE(M)'!$AO242","v":134557.94623704444},{"$f":"IF('[6]MONE(M)'!$AO242=\"\",\"\",'[6]MONE(M)'!$AO242)","v":44136.554050752107},{"$f":"IF('[7]MONE(M)'!$AO242=\"\",\"\",'[7]MONE(M)'!$AO242)","v":330078.11533514003},{"$f":"IF('[8]MONE(M)'!$AO242=\"\",\"\",'[8]MONE(M)'!$AO242)","v":19797.154338984998},21.553702912780825,-1.7276770595137658,6.6666450993285276,3.0734551801233634,-0.22263314117164645,3.4379300023831494,11.16420211061644,{"$f":"IF('[2]FISCAL(M)'!$K242=\"\",\"\",'[2]FISCAL(M)'!$K242)","v":-667.91062488113732},{"$f":"+'[2]REAL(A)'!$AO$29","v":157527.15846004928},-0.42399712621651031,{"$f":"IF('[2]FISCAL(M)'!$L242=\"\",\"\",'[2]FISCAL(M)'!$L242)","v":-1106.5350506221373},{"$f":"+'[2]REAL(A)'!$AP$29","v":184643.79346004929},-0.59928093432588314,70180.97076604933,{"$f":"'[2]Gráfico REM'!BG236","v":12953.779690207348},{"$f":"'[2]Gráfico REM'!BH236","v":52687.601801164099},{"$f":"'[2]Gráfico REM'!BI236","v":4539.5892746778791},2.7944837226109742,10.439488664581997,1.6430166167030524,-3.5742675624696907,105374.40003704431,{"$f":"'[2]Gráfico REM'!BK236","v":13735.440987067348},{"$f":"'[2]Gráfico REM'!BL236","v":72484.756140149097},{"$f":"'[2]Gráfico REM'!BM236","v":19154.20290982788},5.0331008716149261,10.345049840593369,4.0776848016825573,5.0560365835007337]
[2009,"junio ","2009-junio ",{"$f":"IF('[2]REAL IPC(M)'!$AL243=\"\",\"\",+'[2]REAL IPC(M)'!$AL243)","v":2.1033038622615186},{"$f":"IF('[2]REAL IPC(M)'!$BE243=\"\",\"\",+'[2]REAL IPC(M)'!$BE243)","v":5.9532935609989845},{"$f":"IF('[2]REAL IPC(M)'!$AM243=\"\",\"\",+'[2]REAL IPC(M)'!$AM243)","v":2.0778978755124911},{"$f":"IF('[2]REAL IPC(M)'!$BI243=\"\",\"\",+'[2]REAL IPC(M)'!$BI243)","v":5.7947634612936616},{"$f":"IF('[2]REAL IMAE(M)'!BJ243=\"\",\"\",'[2]REAL IMAE(M)'!BJ243)","v":-1.7819219751931126},{"$f":"IF('[2]REAL IMAE(M)'!BK243=\"\",\"\",'[2]REAL IMAE(M)'!BK243)","v":2.1026811487838692},{"$f":"IF('[2]REAL IMAE(M)'!BN243=\"\",\"\",'[2]REAL IMAE(M)'!BN243)","v":-0.80626364341847001},{"$f":"IF('[2]REAL IMAE(M)'!BO243=\"\",\"\",'[2]REAL IMAE(M)'!BO243)","v":2.778357797834663},{"$f":"IF('[2]EXT RIN(M)'!$K243=\"\",\"\",'[2]EXT RIN(M)'!$K243)","v":17376.818072119077},"",{"$f":"IF('[2]EXT RIN(M)'!$L243=\"\",\"\",'[2]EXT RIN(M)'!$L243)","v":20082.243497732306},"",{"$f":"IF('[2]MONE(M)CARD'!EG243=\"\",\"\",'[2]MONE(M)CARD'!EG243)","v":13820.227543285298},{"$f":"IF('[2]MONE(M)CARD'!EK243=\"\",\"\",'[2]MONE(M)CARD'!EK243)","v":26556.763417896182},{"$f":"IF('[2]MONE(M)CARD'!EP243=\"\",\"\",'[2]MONE(M)CARD'!EP243)","v":14127.897744215697},{"$f":"IF('[2]MONE(M)CARD'!ES243=\"\",\"\",'[2]MONE(M)CARD'!ES243)","v":-2.3248647869015815},{"$f":"IF('[2]MONE(M)CARD'!EV243=\"\",\"\",'[2]MONE(M)CARD'!EV243)","v":9.767533888341017},{"$f":"IF('[2]MONE(M)CARD'!EZ243=\"\",\"\",'[2]MONE(M)CARD'!EZ243)","v":14.462837593913957},{"$f":"IF('[2]MONE(M)CAPARD'!FC243=\"\",\"\",'[2]MONE(M)CAPARD'!FC243)","v":17755.786080553698},{"$f":"IF('[2]MONE(M)CAPARD'!FG243=\"\",\"\",'[2]MONE(M)CAPARD'!FG243)","v":43114.739638006191},{"$f":"IF('[2]MONE(M)CAPARD'!FL243=\"\",\"\",'[2]MONE(M)CAPARD'!FL243)","v":14127.897744215705},{"$f":"IF('[2]MONE(M)CAPARD'!FO243=\"\",\"\",'[2]MONE(M)CAPARD'!FO243)","v":1.9852428268118727},{"$f":"IF('[2]MONE(M)CAPARD'!FR243=\"\",\"\",'[2]MONE(M)CAPARD'!FR243)","v":8.9806555101979768},{"$f":"IF('[2]MONE(M)CAPARD'!FV243=\"\",\"\",'[2]MONE(M)CAPARD'!FV243)","v":12.461112477955648},{"$f":"IF('[2]MONE(M)CARD'!FV243=\"\",\"\",'[2]MONE(M)CARD'!FV243)","v":491.00498929363334},{"$f":"IF('[2]MONE(M)CARD'!GD243=\"\",\"\",'[2]MONE(M)CARD'!GD243)","v":127.46184033250861},{"$f":"IF('[2]MONE(M)CARD'!GE243=\"\",\"\",'[2]MONE(M)CARD'!GE243)","v":3623.5373516653881},17.461017817003153,{"$f":"IF('[9]II.2.Balance OSD-Activos'!J101=\"\",\"\",'[9]II.2.Balance OSD-Activos'!J101)","v":16.092882576778539},{"$f":"IF('[9]II.2.Balance OSD-Activos'!N101=\"\",\"\",'[9]II.2.Balance OSD-Activos'!N101)","v":179.10744967514532},{"$f":"IF('[9]II.2.Balance OSD-Activos'!R101=\"\",\"\",'[9]II.2.Balance OSD-Activos'!R101)","v":19101.979622127074},{"$f":"IF('[9]II.2.Balance OSD-Activos'!S101=\"\",\"\",'[9]II.2.Balance OSD-Activos'!S101)","v":21861.532495558629},19118.07250470385,41158.712449937622,73.540267721492469,21.201588014393181,19.864469049723745,21.170800406874555,21.007514616725565,21.092554836325416,-1.1728853000634309,{"$f":"IF('[2]MONE(M)CAPARD'!GS243=\"\",\"\",'[2]MONE(M)CAPARD'!GS243)","v":5350.8295672362965},{"$f":"IF('[2]MONE(M)CARD'!HA243=\"\",\"\",'[2]MONE(M)CAPARD'!HA243)","v":4096.0612150753886},{"$f":"IF('[2]MONE(M)CAPARD'!HB243=\"\",\"\",'[2]MONE(M)CAPARD'!HB243)","v":1254.7683521609079},"n.d.",{"$f":"IF('[10]II.2.Balance OSD-Activos'!J101=\"\",\"\",'[10]II.2.Balance OSD-Activos'!J101)","v":325.18558337977851},{"$f":"IF('[10]II.2.Balance OSD-Activos'!N101=\"\",\"\",'[10]II.2.Balance OSD-Activos'!N101)","v":576.81518596514536},{"$f":"IF('[10]II.2.Balance OSD-Activos'!R101=\"\",\"\",'[10]II.2.Balance OSD-Activos'!R101)","v":29248.108855397069},{"$f":"IF('[10]II.2.Balance OSD-Activos'!S101=\"\",\"\",'[10]II.2.Balance OSD-Activos'!S101)","v":30816.362813768628},29573.294438776848,60966.472438510624,30.644258734769593,16.790851208760891,-0.72340146504347169,16.653321386162602,17.062341154144733,16.732850994291315,-1.7278461825365632,{"$f":"IF('[2]MONE(M)CAPARD'!AS243=\"\",\"\",'[2]MONE(M)CAPARD'!AS243)","v":10},{"$f":"IF('[2]MONE(M)CAPARD'!AT243=\"\",\"\",'[2]MONE(M)CAPARD'!AT243)","v":"n.a."},{"$f":"IF('[2]MONE(M)CAPARD'!AU243=\"\",\"\",'[2]MONE(M)CAPARD'!AU243)","v":5.25},{"$f":"IF('[2]MONE(M)CAPARD'!AV243=\"\",\"\",'[2]MONE(M)CAPARD'!AV243)","v":3.5},{"$f":"IF('[2]MONE(M)CAPARD'!AW243=\"\",\"\",'[2]MONE(M)CAPARD'!AW243)","v":"n.a."},{"$f":"IF('[2]MONE(M)CAPARD'!AX243=\"\",\"\",'[2]MONE(M)CAPARD'!AX243)","v":5},{"$f":"IF('[2]MONE(M)CAPARD'!AY243=\"\",\"\",'[2]MONE(M)CAPARD'!AY243)","v":"n.a."},{"$f":"IF('[2]FISCAL(M)'!$K243=\"\",\"\",'[2]FISCAL(M)'!$K243)","v":-1669.8964265816762},{"$f":"IF('[2]FISCAL(M)'!$L243=\"\",\"\",'[2]FISCAL(M)'!$L243)","v":-1949.0873668326763},{"$f":"IF('[2]FISCAL(M)'!$AY243=\"\",\"\",'[2]FISCAL(M)'!$AY243)","v":54366.624062234026},{"$f":"IF('[2]FISCAL(M)'!$BI243=\"\",\"\",'[2]FISCAL(M)'!$BI243)","v":26099.704062234021},{"$f":"IF('[2]FISCAL(M)'!$BS243=\"\",\"\",'[2]FISCAL(M)'!$BS243)","v":28266.920000000002},{"$f":"IF('[2]FISCAL(M)'!$AZ243=\"\",\"\",'[2]FISCAL(M)'!$AZ243)","v":65283.405232104014},{"$f":"IF('[2]FISCAL(M)'!$BJ243=\"\",\"\",'[2]FISCAL(M)'!$BJ243)","v":28109.192074724022},{"$f":"IF('[2]FISCAL(M)'!$BT243=\"\",\"\",'[2]FISCAL(M)'!$BT243)","v":37165.418640769996},{"$f":"IF('[3]MONE(M)'!$AO243=\"\",\"\",'[3]MONE(M)'!$AO243)","v":8645092.2403994203},{"$f":"IF('[4]MONE(M)'!$AO243=\"\",\"\",'[4]MONE(M)'!$AO243)","v":8783.3579088900005},{"$f":"IF('[5]MONE(M)'!$AO243=\"\",\"\",'[5]MONE(M)'!$AO243)","v":81743.382381133488},{"$f":"+'[1]MONE(M)'!$AO243","v":134393.92440370494},{"$f":"IF('[6]MONE(M)'!$AO243=\"\",\"\",'[6]MONE(M)'!$AO243)","v":43674.406571500993},{"$f":"IF('[7]MONE(M)'!$AO243=\"\",\"\",'[7]MONE(M)'!$AO243)","v":336225.90067442995},{"$f":"IF('[8]MONE(M)'!$AO243=\"\",\"\",'[8]MONE(M)'!$AO243)","v":19796.123290302996},19.343395537355423,-3.6012317784486214,3.6638144214194535,1.5846101913377098,-2.5010110642093464,4.4587341232797062,8.6314873635808596,{"$f":"IF('[2]FISCAL(M)'!$K243=\"\",\"\",'[2]FISCAL(M)'!$K243)","v":-1669.8964265816762},{"$f":"+'[2]REAL(A)'!$AO$29","v":157527.15846004928},-1.06006890678802,{"$f":"IF('[2]FISCAL(M)'!$L243=\"\",\"\",'[2]FISCAL(M)'!$L243)","v":-1949.0873668326763},{"$f":"+'[2]REAL(A)'!$AP$29","v":184643.79346004929},-1.0555932210385361,70828.664804025335,{"$f":"'[2]Gráfico REM'!BG237","v":13607.426438631597},{"$f":"'[2]Gráfico REM'!BH237","v":52575.121055447962},{"$f":"'[2]Gráfico REM'!BI237","v":4646.1173099457792},2.6340473157228539,13.822109644169389,0.4897977884837923,-1.9191288613250257,106417.86157630033,{"$f":"'[2]Gráfico REM'!BK237","v":14433.723961701597},{"$f":"'[2]Gráfico REM'!BL237","v":72371.244345750951},{"$f":"'[2]Gráfico REM'!BM237","v":19612.89326884778},4.5122459474466359,13.704007474814928,2.5930475811082987,5.5184707230204522]
[2009,"julio","2009-julio",{"$f":"IF('[2]REAL IPC(M)'!$AL244=\"\",\"\",+'[2]REAL IPC(M)'!$AL244)","v":0.77895894428152701},{"$f":"IF('[2]REAL IPC(M)'!$BE244=\"\",\"\",+'[2]REAL IPC(M)'!$BE244)","v":5.8395263250692775},{"$f":"IF('[2]REAL IPC(M)'!$AM244=\"\",\"\",+'[2]REAL IPC(M)'!$AM244)","v":0.89097088270413405},{"$f":"IF('[2]REAL IPC(M)'!$BI244=\"\",\"\",+'[2]REAL IPC(M)'!$BI244)","v":5.680650066495585},{"$f":"IF('[2]REAL IMAE(M)'!BJ244=\"\",\"\",'[2]REAL IMAE(M)'!BJ244)","v":-0.95421208026083004},{"$f":"IF('[2]REAL IMAE(M)'!BK244=\"\",\"\",'[2]REAL IMAE(M)'!BK244)","v":2.1635890149103831},{"$f":"IF('[2]REAL IMAE(M)'!BN244=\"\",\"\",'[2]REAL IMAE(M)'!BN244)","v":-0.30758250361345718},{"$f":"IF('[2]REAL IMAE(M)'!BO244=\"\",\"\",'[2]REAL IMAE(M)'!BO244)","v":2.8398332833444062},{"$f":"IF('[2]EXT RIN(M)'!$K244=\"\",\"\",'[2]EXT RIN(M)'!$K244)","v":16962.706769246517},"",{"$f":"IF('[2]EXT RIN(M)'!$L244=\"\",\"\",'[2]EXT RIN(M)'!$L244)","v":19449.562611370849},"",{"$f":"IF('[2]MONE(M)CARD'!EG244=\"\",\"\",'[2]MONE(M)CARD'!EG244)","v":13645.162049215549},{"$f":"IF('[2]MONE(M)CARD'!EK244=\"\",\"\",'[2]MONE(M)CARD'!EK244)","v":26441.890901265026},{"$f":"IF('[2]MONE(M)CARD'!EP244=\"\",\"\",'[2]MONE(M)CARD'!EP244)","v":14295.553460930234},{"$f":"IF('[2]MONE(M)CARD'!ES244=\"\",\"\",'[2]MONE(M)CARD'!ES244)","v":-1.018957377734675},{"$f":"IF('[2]MONE(M)CARD'!EV244=\"\",\"\",'[2]MONE(M)CARD'!EV244)","v":10.564689733056642},{"$f":"IF('[2]MONE(M)CARD'!EZ244=\"\",\"\",'[2]MONE(M)CARD'!EZ244)","v":15.364776717420092},{"$f":"IF('[2]MONE(M)CAPARD'!FC244=\"\",\"\",'[2]MONE(M)CAPARD'!FC244)","v":17370.070178377951},{"$f":"IF('[2]MONE(M)CAPARD'!FG244=\"\",\"\",'[2]MONE(M)CAPARD'!FG244)","v":43216.228796945026},{"$f":"IF('[2]MONE(M)CAPARD'!FL244=\"\",\"\",'[2]MONE(M)CAPARD'!FL244)","v":14295.553460930241},{"$f":"IF('[2]MONE(M)CAPARD'!FO244=\"\",\"\",'[2]MONE(M)CAPARD'!FO244)","v":2.2231334749237108},{"$f":"IF('[2]MONE(M)CAPARD'!FR244=\"\",\"\",'[2]MONE(M)CAPARD'!FR244)","v":10.059445389649134},{"$f":"IF('[2]MONE(M)CAPARD'!FV244=\"\",\"\",'[2]MONE(M)CAPARD'!FV244)","v":13.574796334920558},{"$f":"IF('[2]MONE(M)CARD'!FV244=\"\",\"\",'[2]MONE(M)CARD'!FV244)","v":490.36220861547156},{"$f":"IF('[2]MONE(M)CARD'!GD244=\"\",\"\",'[2]MONE(M)CARD'!GD244)","v":47.570845438112357},{"$f":"IF('[2]MONE(M)CARD'!GE244=\"\",\"\",'[2]MONE(M)CARD'!GE244)","v":3372.787348822143},14.817837031353086,{"$f":"IF('[9]II.2.Balance OSD-Activos'!J102=\"\",\"\",'[9]II.2.Balance OSD-Activos'!J102)","v":15.597683707984801},{"$f":"IF('[9]II.2.Balance OSD-Activos'!N102=\"\",\"\",'[9]II.2.Balance OSD-Activos'!N102)","v":181.75396988004991},{"$f":"IF('[9]II.2.Balance OSD-Activos'!R102=\"\",\"\",'[9]II.2.Balance OSD-Activos'!R102)","v":19294.690273380766},{"$f":"IF('[9]II.2.Balance OSD-Activos'!S102=\"\",\"\",'[9]II.2.Balance OSD-Activos'!S102)","v":21621.362693438394},19310.287957088749,41113.404620407193,149.15978614265467,23.500020557607606,20.765491673065071,23.449690132586596,20.27657066267523,21.77156195484109,0.67900711851567408,{"$f":"IF('[2]MONE(M)CAPARD'!GS244=\"\",\"\",'[2]MONE(M)CAPARD'!GS244)","v":5496.7840987325089},{"$f":"IF('[2]MONE(M)CARD'!HA244=\"\",\"\",'[2]MONE(M)CAPARD'!HA244)","v":3839.5334713721431},{"$f":"IF('[2]MONE(M)CAPARD'!HB244=\"\",\"\",'[2]MONE(M)CAPARD'!HB244)","v":1657.2506273603658},"n.d.",{"$f":"IF('[10]II.2.Balance OSD-Activos'!J102=\"\",\"\",'[10]II.2.Balance OSD-Activos'!J102)","v":320.04348242998481},{"$f":"IF('[10]II.2.Balance OSD-Activos'!N102=\"\",\"\",'[10]II.2.Balance OSD-Activos'!N102)","v":571.02828959004989},{"$f":"IF('[10]II.2.Balance OSD-Activos'!R102=\"\",\"\",'[10]II.2.Balance OSD-Activos'!R102)","v":29415.972139580768},{"$f":"IF('[10]II.2.Balance OSD-Activos'!S102=\"\",\"\",'[10]II.2.Balance OSD-Activos'!S102)","v":30632.10594954839},29736.015622010753,60939.149861149192,27.366905903669767,16.793622989248181,2.3244960656924274,16.688231366038011,16.416655822845485,16.449781251917027,-0.28306974237428761,{"$f":"IF('[2]MONE(M)CAPARD'!AS244=\"\",\"\",'[2]MONE(M)CAPARD'!AS244)","v":9},{"$f":"IF('[2]MONE(M)CAPARD'!AT244=\"\",\"\",'[2]MONE(M)CAPARD'!AT244)","v":"n.a."},{"$f":"IF('[2]MONE(M)CAPARD'!AU244=\"\",\"\",'[2]MONE(M)CAPARD'!AU244)","v":4.75},{"$f":"IF('[2]MONE(M)CAPARD'!AV244=\"\",\"\",'[2]MONE(M)CAPARD'!AV244)","v":4},{"$f":"IF('[2]MONE(M)CAPARD'!AW244=\"\",\"\",'[2]MONE(M)CAPARD'!AW244)","v":"n.a."},{"$f":"IF('[2]MONE(M)CAPARD'!AX244=\"\",\"\",'[2]MONE(M)CAPARD'!AX244)","v":5},{"$f":"IF('[2]MONE(M)CAPARD'!AY244=\"\",\"\",'[2]MONE(M)CAPARD'!AY244)","v":"n.a."},{"$f":"IF('[2]FISCAL(M)'!$K244=\"\",\"\",'[2]FISCAL(M)'!$K244)","v":-1916.6322335560412},{"$f":"IF('[2]FISCAL(M)'!$L244=\"\",\"\",'[2]FISCAL(M)'!$L244)","v":-2568.1643441270407},{"$f":"IF('[2]FISCAL(M)'!$AY244=\"\",\"\",'[2]FISCAL(M)'!$AY244)","v":"n.d."},{"$f":"IF('[2]FISCAL(M)'!$BI244=\"\",\"\",'[2]FISCAL(M)'!$BI244)","v":"n.d."},{"$f":"IF('[2]FISCAL(M)'!$BS244=\"\",\"\",'[2]FISCAL(M)'!$BS244)","v":"n.d."},{"$f":"IF('[2]FISCAL(M)'!$AZ244=\"\",\"\",'[2]FISCAL(M)'!$AZ244)","v":"n.d."},{"$f":"IF('[2]FISCAL(M)'!$BJ244=\"\",\"\",'[2]FISCAL(M)'!$BJ244)","v":"n.d."},{"$f":"IF('[2]FISCAL(M)'!$BT244=\"\",\"\",'[2]FISCAL(M)'!$BT244)","v":"n.d."},{"$f":"IF('[3]MONE(M)'!$AO244=\"\",\"\",'[3]MONE(M)'!$AO244)","v":8735541.0576996058},{"$f":"IF('[4]MONE(M)'!$AO244=\"\",\"\",'[4]MONE(M)'!$AO244)","v":8784.7760159999998},{"$f":"IF('[5]MONE(M)'!$AO244=\"\",\"\",'[5]MONE(M)'!$AO244)","v":82035.091625868401},{"$f":"+'[1]MONE(M)'!$AO244","v":135582.58709055913},{"$f":"IF('[6]MONE(M)'!$AO244=\"\",\"\",'[6]MONE(M)'!$AO244)","v":43408.432048480005},{"$f":"IF('[7]MONE(M)'!$AO244=\"\",\"\",'[7]MONE(M)'!$AO244)","v":338303.13677589002},{"$f":"IF('[8]MONE(M)'!$AO244=\"\",\"\",'[8]MONE(M)'!$AO244)","v":19841.930253552},16.159577350848188,-3.8519661001622407,3.6861062050727256,1.950281258738995,-4.6859187722143698,5.350022954087752,6.8282020722149506,{"$f":"IF('[2]FISCAL(M)'!$K244=\"\",\"\",'[2]FISCAL(M)'!$K244)","v":-1916.6322335560412},{"$f":"+'[2]REAL(A)'!$AO$29","v":157527.15846004928},-1.2166995534564418,{"$f":"IF('[2]FISCAL(M)'!$L244=\"\",\"\",'[2]FISCAL(M)'!$L244)","v":-2568.1643441270407},{"$f":"+'[2]REAL(A)'!$AP$29","v":184643.79346004929},-1.3908749901646196,70355.385229445572,{"$f":"'[2]Gráfico REM'!BG238","v":13512.131430636924},{"$f":"'[2]Gráfico REM'!BH238","v":52461.721989363323},{"$f":"'[2]Gráfico REM'!BI238","v":4381.5318094453314},2.5524997545260941,15.256678103155053,0.38961917479503061,-5.215697676582332,105634.74749046759,{"$f":"'[2]Gráfico REM'!BK238","v":14444.156861156924},{"$f":"'[2]Gráfico REM'!BL238","v":72303.652242915326},{"$f":"'[2]Gráfico REM'!BM238","v":18886.938386395334},3.5624563500415096,15.477964786954823,2.0779596680529311,1.210425006243776]
[2009,"agosto","2009-agosto",{"$f":"IF('[2]REAL IPC(M)'!$AL245=\"\",\"\",+'[2]REAL IPC(M)'!$AL245)","v":0.53763440860215006},{"$f":"IF('[2]REAL IPC(M)'!$BE245=\"\",\"\",+'[2]REAL IPC(M)'!$BE245)","v":5.7343585193208924},{"$f":"IF('[2]REAL IPC(M)'!$AM245=\"\",\"\",+'[2]REAL IPC(M)'!$AM245)","v":0.66684936512286797},{"$f":"IF('[2]REAL IPC(M)'!$BI245=\"\",\"\",+'[2]REAL IPC(M)'!$BI245)","v":5.5758106981719013},{"$f":"IF('[2]REAL IMAE(M)'!BJ245=\"\",\"\",'[2]REAL IMAE(M)'!BJ245)","v":-0.2644930969631476},{"$f":"IF('[2]REAL IMAE(M)'!BK245=\"\",\"\",'[2]REAL IMAE(M)'!BK245)","v":2.2326633478779279},{"$f":"IF('[2]REAL IMAE(M)'!BN245=\"\",\"\",'[2]REAL IMAE(M)'!BN245)","v":0.25492341812587416},{"$f":"IF('[2]REAL IMAE(M)'!BO245=\"\",\"\",'[2]REAL IMAE(M)'!BO245)","v":2.911096880611197},{"$f":"IF('[2]EXT RIN(M)'!$K245=\"\",\"\",'[2]EXT RIN(M)'!$K245)","v":17977.42070442831},"",{"$f":"IF('[2]EXT RIN(M)'!$L245=\"\",\"\",'[2]EXT RIN(M)'!$L245)","v":20714.23400179551},"",{"$f":"IF('[2]MONE(M)CARD'!EG245=\"\",\"\",'[2]MONE(M)CARD'!EG245)","v":13753.781188235429},{"$f":"IF('[2]MONE(M)CARD'!EK245=\"\",\"\",'[2]MONE(M)CARD'!EK245)","v":26356.950819254445},{"$f":"IF('[2]MONE(M)CARD'!EP245=\"\",\"\",'[2]MONE(M)CARD'!EP245)","v":14409.55791050534},{"$f":"IF('[2]MONE(M)CARD'!ES245=\"\",\"\",'[2]MONE(M)CARD'!ES245)","v":0.94853536917227643},{"$f":"IF('[2]MONE(M)CARD'!EV245=\"\",\"\",'[2]MONE(M)CARD'!EV245)","v":11.295658177310951},{"$f":"IF('[2]MONE(M)CARD'!EZ245=\"\",\"\",'[2]MONE(M)CARD'!EZ245)","v":16.575651126421008},{"$f":"IF('[2]MONE(M)CAPARD'!FC245=\"\",\"\",'[2]MONE(M)CAPARD'!FC245)","v":17706.227528283827},{"$f":"IF('[2]MONE(M)CAPARD'!FG245=\"\",\"\",'[2]MONE(M)CAPARD'!FG245)","v":43343.576587014453},{"$f":"IF('[2]MONE(M)CAPARD'!FL245=\"\",\"\",'[2]MONE(M)CAPARD'!FL245)","v":14409.557910505333},{"$f":"IF('[2]MONE(M)CAPARD'!FO245=\"\",\"\",'[2]MONE(M)CAPARD'!FO245)","v":4.4147666638762795},{"$f":"IF('[2]MONE(M)CAPARD'!FR245=\"\",\"\",'[2]MONE(M)CAPARD'!FR245)","v":10.729266983181486},{"$f":"IF('[2]MONE(M)CAPARD'!FV245=\"\",\"\",'[2]MONE(M)CAPARD'!FV245)","v":14.570776181674017},{"$f":"IF('[2]MONE(M)CARD'!FV245=\"\",\"\",'[2]MONE(M)CARD'!FV245)","v":511.25250419859532},{"$f":"IF('[2]MONE(M)CARD'!GD245=\"\",\"\",'[2]MONE(M)CARD'!GD245)","v":60.919389926518775},{"$f":"IF('[2]MONE(M)CARD'!GE245=\"\",\"\",'[2]MONE(M)CARD'!GE245)","v":3511.9860154532307},28.738260691545257,{"$f":"IF('[9]II.2.Balance OSD-Activos'!J103=\"\",\"\",'[9]II.2.Balance OSD-Activos'!J103)","v":17.67822238967123},{"$f":"IF('[9]II.2.Balance OSD-Activos'!N103=\"\",\"\",'[9]II.2.Balance OSD-Activos'!N103)","v":170.44563447958384},{"$f":"IF('[9]II.2.Balance OSD-Activos'!R103=\"\",\"\",'[9]II.2.Balance OSD-Activos'!R103)","v":18874.540915448273},{"$f":"IF('[9]II.2.Balance OSD-Activos'!S103=\"\",\"\",'[9]II.2.Balance OSD-Activos'!S103)","v":21920.605674255803},18892.219137837943,40983.270446573326,187.19702533700109,19.860317684054472,{"$f":"IF(OR(AG238=\"\",AG226=\"\"),\"\",((AG238/AG226)-1)*100)","v":14.799547635023181},19.794942644833171,20.806056214007572,20.342156254585376,-1.4294057002557139,{"$f":"IF('[2]MONE(M)CAPARD'!GS245=\"\",\"\",'[2]MONE(M)CAPARD'!GS245)","v":5659.3921693858301},{"$f":"IF('[2]MONE(M)CARD'!HA245=\"\",\"\",'[2]MONE(M)CAPARD'!HA245)","v":3985.1717956032307},{"$f":"IF('[2]MONE(M)CAPARD'!HB245=\"\",\"\",'[2]MONE(M)CAPARD'!HB245)","v":1674.2203737825994},"n.d.",{"$f":"IF('[10]II.2.Balance OSD-Activos'!J103=\"\",\"\",'[10]II.2.Balance OSD-Activos'!J103)","v":327.65881570167119},{"$f":"IF('[10]II.2.Balance OSD-Activos'!N103=\"\",\"\",'[10]II.2.Balance OSD-Activos'!N103)","v":574.03958253958388},{"$f":"IF('[10]II.2.Balance OSD-Activos'!R103=\"\",\"\",'[10]II.2.Balance OSD-Activos'!R103)","v":28965.687567588273},{"$f":"IF('[10]II.2.Balance OSD-Activos'!S103=\"\",\"\",'[10]II.2.Balance OSD-Activos'!S103)","v":30982.1901966158},29293.346383289943,60849.57616244533,17.212546884788928,13.042456825247918,3.1041891655009035,12.996981460723834,16.696208396881861,14.767697251562328,-1.6820840003546991,{"$f":"IF('[2]MONE(M)CAPARD'!AS245=\"\",\"\",'[2]MONE(M)CAPARD'!AS245)","v":9},{"$f":"IF('[2]MONE(M)CAPARD'!AT245=\"\",\"\",'[2]MONE(M)CAPARD'!AT245)","v":"n.a."},{"$f":"IF('[2]MONE(M)CAPARD'!AU245=\"\",\"\",'[2]MONE(M)CAPARD'!AU245)","v":4.75},{"$f":"IF('[2]MONE(M)CAPARD'!AV245=\"\",\"\",'[2]MONE(M)CAPARD'!AV245)","v":4.5},{"$f":"IF('[2]MONE(M)CAPARD'!AW245=\"\",\"\",'[2]MONE(M)CAPARD'!AW245)","v":"n.a."},{"$f":"IF('[2]MONE(M)CAPARD'!AX245=\"\",\"\",'[2]MONE(M)CAPARD'!AX245)","v":5},{"$f":"IF('[2]MONE(M)CAPARD'!AY245=\"\",\"\",'[2]MONE(M)CAPARD'!AY245)","v":"n.a."},{"$f":"IF('[2]FISCAL(M)'!$K245=\"\",\"\",'[2]FISCAL(M)'!$K245)","v":-2430.7066249804093},{"$f":"IF('[2]FISCAL(M)'!$L245=\"\",\"\",'[2]FISCAL(M)'!$L245)","v":-3093.498027511409},{"$f":"IF('[2]FISCAL(M)'!$AY245=\"\",\"\",'[2]FISCAL(M)'!$AY245)","v":"n.d."},{"$f":"IF('[2]FISCAL(M)'!$BI245=\"\",\"\",'[2]FISCAL(M)'!$BI245)","v":"n.d."},{"$f":"IF('[2]FISCAL(M)'!$BS245=\"\",\"\",'[2]FISCAL(M)'!$BS245)","v":"n.d."},{"$f":"IF('[2]FISCAL(M)'!$AZ245=\"\",\"\",'[2]FISCAL(M)'!$AZ245)","v":"n.d."},{"$f":"IF('[2]FISCAL(M)'!$BJ245=\"\",\"\",'[2]FISCAL(M)'!$BJ245)","v":"n.d."},{"$f":"IF('[2]FISCAL(M)'!$BT245=\"\",\"\",'[2]FISCAL(M)'!$BT245)","v":"n.d."},{"$f":"IF('[3]MONE(M)'!$AO245=\"\",\"\",'[3]MONE(M)'!$AO245)","v":8766494.8745375834},{"$f":"IF('[4]MONE(M)'!$AO245=\"\",\"\",'[4]MONE(M)'!$AO245)","v":8758.2896758900006},{"$f":"IF('[5]MONE(M)'!$AO245=\"\",\"\",'[5]MONE(M)'!$AO245)","v":82270.825961052149},{"$f":"+'[1]MONE(M)'!$AO245","v":134328.46444930279},{"$f":"IF('[6]MONE(M)'!$AO245=\"\",\"\",'[6]MONE(M)'!$AO245)","v":43255.715753614306},{"$f":"IF('[7]MONE(M)'!$AO245=\"\",\"\",'[7]MONE(M)'!$AO245)","v":338498.28561035998},{"$f":"IF('[8]MONE(M)'!$AO245=\"\",\"\",'[8]MONE(M)'!$AO245)","v":19884.334488831999},15.457909905457591,-5.2337645942481359,2.6864241630131014,-0.25977894807817092,-7.220567762662955,4.2568713411206272,4.860769023204381,{"$f":"IF('[2]FISCAL(M)'!$K245=\"\",\"\",'[2]FISCAL(M)'!$K245)","v":-2430.7066249804093},{"$f":"+'[2]REAL(A)'!$AO$29","v":157527.15846004928},-1.5430397200980839,{"$f":"IF('[2]FISCAL(M)'!$L245=\"\",\"\",'[2]FISCAL(M)'!$L245)","v":-3093.498027511409},{"$f":"+'[2]REAL(A)'!$AP$29","v":184643.79346004929},-1.6753869542767696,70285.319413563833,{"$f":"'[2]Gráfico REM'!BG239","v":13545.081478717206},{"$f":"'[2]Gráfico REM'!BH239","v":52305.619706962527},{"$f":"'[2]Gráfico REM'!BI239","v":4434.6182278841061},2.2485672429348291,19.362958205959679,-0.79785260349820586,-4.9498087117703315,105197.63113902285,{"$f":"'[2]Gráfico REM'!BK239","v":14402.943540227207},{"$f":"'[2]Gráfico REM'!BL239","v":72189.954195794533},{"$f":"'[2]Gráfico REM'!BM239","v":18604.733403001104},2.4311516708123593,18.661827746833936,0.69892314132831146,-1.427216049621205]
[2009,"septiembre","2009-septiembre",{"$f":"IF('[2]REAL IPC(M)'!$AL246=\"\",\"\",+'[2]REAL IPC(M)'!$AL246)","v":0.39034132171387181},{"$f":"IF('[2]REAL IPC(M)'!$BE246=\"\",\"\",+'[2]REAL IPC(M)'!$BE246)","v":5.6385973843472659},{"$f":"IF('[2]REAL IPC(M)'!$AM246=\"\",\"\",+'[2]REAL IPC(M)'!$AM246)","v":0.40025470754116999},{"$f":"IF('[2]REAL IPC(M)'!$BI246=\"\",\"\",+'[2]REAL IPC(M)'!$BI246)","v":5.481162298884712},{"$f":"IF('[2]REAL IMAE(M)'!BJ246=\"\",\"\",'[2]REAL IMAE(M)'!BJ246)","v":0.1496229878952704},{"$f":"IF('[2]REAL IMAE(M)'!BK246=\"\",\"\",'[2]REAL IMAE(M)'!BK246)","v":2.3089298290308591},{"$f":"IF('[2]REAL IMAE(M)'!BN246=\"\",\"\",'[2]REAL IMAE(M)'!BN246)","v":0.89994584665449295},{"$f":"IF('[2]REAL IMAE(M)'!BO246=\"\",\"\",'[2]REAL IMAE(M)'!BO246)","v":2.9911820287810809},{"$f":"IF('[2]EXT RIN(M)'!$K246=\"\",\"\",'[2]EXT RIN(M)'!$K246)","v":17586.649688050737},"",{"$f":"IF('[2]EXT RIN(M)'!$L246=\"\",\"\",'[2]EXT RIN(M)'!$L246)","v":20303.825851130536},"",{"$f":"IF('[2]MONE(M)CARD'!EG246=\"\",\"\",'[2]MONE(M)CARD'!EG246)","v":13775.248038389082},{"$f":"IF('[2]MONE(M)CARD'!EK246=\"\",\"\",'[2]MONE(M)CARD'!EK246)","v":26259.915871145153},{"$f":"IF('[2]MONE(M)CARD'!EP246=\"\",\"\",'[2]MONE(M)CARD'!EP246)","v":14528.243829586994},{"$f":"IF('[2]MONE(M)CARD'!ES246=\"\",\"\",'[2]MONE(M)CARD'!ES246)","v":2.7629410167304469},{"$f":"IF('[2]MONE(M)CARD'!EV246=\"\",\"\",'[2]MONE(M)CARD'!EV246)","v":11.516422387360347},{"$f":"IF('[2]MONE(M)CARD'!EZ246=\"\",\"\",'[2]MONE(M)CARD'!EZ246)","v":16.553104209125923},{"$f":"IF('[2]MONE(M)CAPARD'!FC246=\"\",\"\",'[2]MONE(M)CAPARD'!FC246)","v":17706.508505943082},{"$f":"IF('[2]MONE(M)CAPARD'!FG246=\"\",\"\",'[2]MONE(M)CAPARD'!FG246)","v":43359.641499855148},{"$f":"IF('[2]MONE(M)CAPARD'!FL246=\"\",\"\",'[2]MONE(M)CAPARD'!FL246)","v":14528.24382958698},{"$f":"IF('[2]MONE(M)CAPARD'!FO246=\"\",\"\",'[2]MONE(M)CAPARD'!FO246)","v":6.1157275283787893},{"$f":"IF('[2]MONE(M)CAPARD'!FR246=\"\",\"\",'[2]MONE(M)CAPARD'!FR246)","v":11.307735728138724},{"$f":"IF('[2]MONE(M)CAPARD'!FV246=\"\",\"\",'[2]MONE(M)CAPARD'!FV246)","v":14.927078408903661},{"$f":"IF('[2]MONE(M)CARD'!FV246=\"\",\"\",'[2]MONE(M)CARD'!FV246)","v":510.78993177685049},{"$f":"IF('[2]MONE(M)CARD'!GD246=\"\",\"\",'[2]MONE(M)CARD'!GD246)","v":141.39280113075404},{"$f":"IF('[2]MONE(M)CARD'!GE246=\"\",\"\",'[2]MONE(M)CARD'!GE246)","v":3573.3402673127102},23.785754970879779,{"$f":"IF('[9]II.2.Balance OSD-Activos'!J104=\"\",\"\",'[9]II.2.Balance OSD-Activos'!J104)","v":31.838046571180143},{"$f":"IF('[9]II.2.Balance OSD-Activos'!N104=\"\",\"\",'[9]II.2.Balance OSD-Activos'!N104)","v":161.72355087030934},{"$f":"IF('[9]II.2.Balance OSD-Activos'!R104=\"\",\"\",'[9]II.2.Balance OSD-Activos'!R104)","v":18929.003211550902},{"$f":"IF('[9]II.2.Balance OSD-Activos'!S104=\"\",\"\",'[9]II.2.Balance OSD-Activos'!S104)","v":22073.749954380983},18960.841258122084,41196.314763373375,342.24785780424855,19.938455205094673,6.7743183076023339,19.791612520055125,20.873473595465519,20.379143644840148,3.6987390254772379E-2,{"$f":"IF('[2]MONE(M)CAPARD'!GS246=\"\",\"\",'[2]MONE(M)CAPARD'!GS246)","v":5732.432923151714},{"$f":"IF('[2]MONE(M)CARD'!HA246=\"\",\"\",'[2]MONE(M)CAPARD'!HA246)","v":4058.4997625327101},{"$f":"IF('[2]MONE(M)CAPARD'!HB246=\"\",\"\",'[2]MONE(M)CAPARD'!HB246)","v":1673.933160619004},"n.d.",{"$f":"IF('[10]II.2.Balance OSD-Activos'!J104=\"\",\"\",'[10]II.2.Balance OSD-Activos'!J104)","v":342.28652086118012},{"$f":"IF('[10]II.2.Balance OSD-Activos'!N104=\"\",\"\",'[10]II.2.Balance OSD-Activos'!N104)","v":570.26084212030946},{"$f":"IF('[10]II.2.Balance OSD-Activos'!R104=\"\",\"\",'[10]II.2.Balance OSD-Activos'!R104)","v":28996.861499700903},{"$f":"IF('[10]II.2.Balance OSD-Activos'!S104=\"\",\"\",'[10]II.2.Balance OSD-Activos'!S104)","v":31186.385215100985},29339.148020562083,61095.794077783379,25.512723579278539,11.468383503176227,6.4797597391687445,11.321345081766253,16.629618983427896,13.993543808628516,-0.77415344293381239,{"$f":"IF('[2]MONE(M)CAPARD'!AS246=\"\",\"\",'[2]MONE(M)CAPARD'!AS246)","v":9},{"$f":"IF('[2]MONE(M)CAPARD'!AT246=\"\",\"\",'[2]MONE(M)CAPARD'!AT246)","v":"n.a."},{"$f":"IF('[2]MONE(M)CAPARD'!AU246=\"\",\"\",'[2]MONE(M)CAPARD'!AU246)","v":4.5},{"$f":"IF('[2]MONE(M)CAPARD'!AV246=\"\",\"\",'[2]MONE(M)CAPARD'!AV246)","v":4.5},{"$f":"IF('[2]MONE(M)CAPARD'!AW246=\"\",\"\",'[2]MONE(M)CAPARD'!AW246)","v":"n.a."},{"$f":"IF('[2]MONE(M)CAPARD'!AX246=\"\",\"\",'[2]MONE(M)CAPARD'!AX246)","v":4},{"$f":"IF('[2]MONE(M)CAPARD'!AY246=\"\",\"\",'[2]MONE(M)CAPARD'!AY246)","v":"n.a."},{"$f":"IF('[2]FISCAL(M)'!$K246=\"\",\"\",'[2]FISCAL(M)'!$K246)","v":-2882.5252943042715},{"$f":"IF('[2]FISCAL(M)'!$L246=\"\",\"\",'[2]FISCAL(M)'!$L246)","v":-3649.5142531052711},{"$f":"IF('[2]FISCAL(M)'!$AY246=\"\",\"\",'[2]FISCAL(M)'!$AY246)","v":54826.50023447843},{"$f":"IF('[2]FISCAL(M)'!$BI246=\"\",\"\",'[2]FISCAL(M)'!$BI246)","v":26227.240234478431},{"$f":"IF('[2]FISCAL(M)'!$BS246=\"\",\"\",'[2]FISCAL(M)'!$BS246)","v":28599.26},{"$f":"IF('[2]FISCAL(M)'!$AZ246=\"\",\"\",'[2]FISCAL(M)'!$AZ246)","v":66040.120081698435},{"$f":"IF('[2]FISCAL(M)'!$BJ246=\"\",\"\",'[2]FISCAL(M)'!$BJ246)","v":28386.575722088426},{"$f":"IF('[2]FISCAL(M)'!$BT246=\"\",\"\",'[2]FISCAL(M)'!$BT246)","v":37644.795770439996},{"$f":"IF('[3]MONE(M)'!$AO246=\"\",\"\",'[3]MONE(M)'!$AO246)","v":8830399.6406132169},{"$f":"IF('[4]MONE(M)'!$AO246=\"\",\"\",'[4]MONE(M)'!$AO246)","v":8724.0280485900003},{"$f":"IF('[5]MONE(M)'!$AO246=\"\",\"\",'[5]MONE(M)'!$AO246)","v":82550.694300061499},{"$f":"+'[1]MONE(M)'!$AO246","v":135020.19004209049},{"$f":"IF('[6]MONE(M)'!$AO246=\"\",\"\",'[6]MONE(M)'!$AO246)","v":43045.906592090127},{"$f":"IF('[7]MONE(M)'!$AO246=\"\",\"\",'[7]MONE(M)'!$AO246)","v":343527.60528498999},{"$f":"IF('[8]MONE(M)'!$AO246=\"\",\"\",'[8]MONE(M)'!$AO246)","v":19920.330438825997},14.29106524772228,-5.6510718937310305,2.1441244553151773,-0.66359127906057136,-7.8327441879963438,4.7104014368545055,2.7135054903900224,{"$f":"IF('[2]FISCAL(M)'!$K246=\"\",\"\",'[2]FISCAL(M)'!$K246)","v":-2882.5252943042715},{"$f":"+'[2]REAL(A)'!$AO$29","v":157527.15846004928},-1.8298592588625366,{"$f":"IF('[2]FISCAL(M)'!$L246=\"\",\"\",'[2]FISCAL(M)'!$L246)","v":-3649.5142531052711},{"$f":"+'[2]REAL(A)'!$AP$29","v":184643.79346004929},-1.9765160716842094,70637.626796219352,{"$f":"'[2]Gráfico REM'!BG240","v":13835.342808615966},{"$f":"'[2]Gráfico REM'!BH240","v":52532.889283821503},{"$f":"'[2]Gráfico REM'!BI240","v":4269.3947037818816},{"$f":"+((CS239/CS227)-1)*100","v":2.2029023313651752},22.464755452712804,-1.0576528384693251,-9.6087119050217158,105889.08823279836,{"$f":"'[2]Gráfico REM'!BK240","v":14694.453639235966},{"$f":"'[2]Gráfico REM'!BL240","v":72453.219722647496},{"$f":"'[2]Gráfico REM'!BM240","v":18741.414870914883},2.302343437674792,21.782441123862629,-4.869144792271074E-2,-1.1077963708303051]
[2009,"octubre","2009-octubre",{"$f":"IF('[2]REAL IPC(M)'!$AL247=\"\",\"\",+'[2]REAL IPC(M)'!$AL247)","v":0.35393411380342243},{"$f":"IF('[2]REAL IPC(M)'!$BE247=\"\",\"\",+'[2]REAL IPC(M)'!$BE247)","v":5.552710275536854},{"$f":"IF('[2]REAL IPC(M)'!$AM247=\"\",\"\",+'[2]REAL IPC(M)'!$AM247)","v":0.39108685766255924},{"$f":"IF('[2]REAL IPC(M)'!$BI247=\"\",\"\",+'[2]REAL IPC(M)'!$BI247)","v":5.3972523921140603},{"$f":"IF('[2]REAL IMAE(M)'!BJ247=\"\",\"\",'[2]REAL IMAE(M)'!BJ247)","v":0.6547808421488055},{"$f":"IF('[2]REAL IMAE(M)'!BK247=\"\",\"\",'[2]REAL IMAE(M)'!BK247)","v":2.3912633884529022},{"$f":"IF('[2]REAL IMAE(M)'!BN247=\"\",\"\",'[2]REAL IMAE(M)'!BN247)","v":1.2710073390878485},{"$f":"IF('[2]REAL IMAE(M)'!BO247=\"\",\"\",'[2]REAL IMAE(M)'!BO247)","v":3.0789413005914978},{"$f":"IF('[2]EXT RIN(M)'!$K247=\"\",\"\",'[2]EXT RIN(M)'!$K247)","v":17595.84583917557},"",{"$f":"IF('[2]EXT RIN(M)'!$L247=\"\",\"\",'[2]EXT RIN(M)'!$L247)","v":20275.244075316172},"",{"$f":"IF('[2]MONE(M)CARD'!EG247=\"\",\"\",'[2]MONE(M)CARD'!EG247)","v":14323.000091674969},{"$f":"IF('[2]MONE(M)CARD'!EK247=\"\",\"\",'[2]MONE(M)CARD'!EK247)","v":26531.674358651333},{"$f":"IF('[2]MONE(M)CARD'!EP247=\"\",\"\",'[2]MONE(M)CARD'!EP247)","v":14388.548498659671},{"$f":"IF('[2]MONE(M)CARD'!ES247=\"\",\"\",'[2]MONE(M)CARD'!ES247)","v":10.060415410608803},{"$f":"IF('[2]MONE(M)CARD'!EV247=\"\",\"\",'[2]MONE(M)CARD'!EV247)","v":15.049253848877587},{"$f":"IF('[2]MONE(M)CARD'!EZ247=\"\",\"\",'[2]MONE(M)CARD'!EZ247)","v":19.142416522571317},{"$f":"IF('[2]MONE(M)CAPARD'!FC247=\"\",\"\",'[2]MONE(M)CAPARD'!FC247)","v":18137.224975794372},{"$f":"IF('[2]MONE(M)CAPARD'!FG247=\"\",\"\",'[2]MONE(M)CAPARD'!FG247)","v":43731.507891871319},{"$f":"IF('[2]MONE(M)CAPARD'!FL247=\"\",\"\",'[2]MONE(M)CAPARD'!FL247)","v":14388.548498659671},{"$f":"IF('[2]MONE(M)CAPARD'!FO247=\"\",\"\",'[2]MONE(M)CAPARD'!FO247)","v":11.12033250918747},{"$f":"IF('[2]MONE(M)CAPARD'!FR247=\"\",\"\",'[2]MONE(M)CAPARD'!FR247)","v":12.790836983371513},{"$f":"IF('[2]MONE(M)CAPARD'!FV247=\"\",\"\",'[2]MONE(M)CAPARD'!FV247)","v":16.052293697793129},{"$f":"IF('[2]MONE(M)CARD'!FV247=\"\",\"\",'[2]MONE(M)CARD'!FV247)","v":499.12229146446663},{"$f":"IF('[2]MONE(M)CARD'!GD247=\"\",\"\",'[2]MONE(M)CARD'!GD247)","v":56.025179926742823},{"$f":"IF('[2]MONE(M)CARD'!GE247=\"\",\"\",'[2]MONE(M)CARD'!GE247)","v":3673.5051071267785},30.323730903974578,{"$f":"IF('[9]II.2.Balance OSD-Activos'!J105=\"\",\"\",'[9]II.2.Balance OSD-Activos'!J105)","v":51.860837560989701},{"$f":"IF('[9]II.2.Balance OSD-Activos'!N105=\"\",\"\",'[9]II.2.Balance OSD-Activos'!N105)","v":167.08767907354533},{"$f":"IF('[9]II.2.Balance OSD-Activos'!R105=\"\",\"\",'[9]II.2.Balance OSD-Activos'!R105)","v":19157.117956891285},{"$f":"IF('[9]II.2.Balance OSD-Activos'!S105=\"\",\"\",'[9]II.2.Balance OSD-Activos'!S105)","v":22202.450067081685},19208.978794452276,41578.51654060751,533.6339280030104,20.9645223677988,8.7642635197224159,20.700149951645241,20.772858889905255,20.807689866007827,0.42854622116767871,{"$f":"IF('[2]MONE(M)CAPARD'!GS247=\"\",\"\",'[2]MONE(M)CAPARD'!GS247)","v":5886.5581184745315},{"$f":"IF('[2]MONE(M)CARD'!HA247=\"\",\"\",'[2]MONE(M)CAPARD'!HA247)","v":4195.6206191367773},{"$f":"IF('[2]MONE(M)CAPARD'!HB247=\"\",\"\",'[2]MONE(M)CAPARD'!HB247)","v":1690.9374993377542},"n.d.",{"$f":"IF('[10]II.2.Balance OSD-Activos'!J105=\"\",\"\",'[10]II.2.Balance OSD-Activos'!J105)","v":361.78378470298969},{"$f":"IF('[10]II.2.Balance OSD-Activos'!N105=\"\",\"\",'[10]II.2.Balance OSD-Activos'!N105)","v":568.71635504354538},{"$f":"IF('[10]II.2.Balance OSD-Activos'!R105=\"\",\"\",'[10]II.2.Balance OSD-Activos'!R105)","v":29329.055562981281},{"$f":"IF('[10]II.2.Balance OSD-Activos'!S105=\"\",\"\",'[10]II.2.Balance OSD-Activos'!S105)","v":31353.705186441686},29690.839347684272,61613.260889169498,23.685849598607824,11.543503444885772,1.8800333004345138,11.408590912685934,16.370557594415438,13.846946403759986,-0.14659740486852968,{"$f":"IF('[2]MONE(M)CAPARD'!AS247=\"\",\"\",'[2]MONE(M)CAPARD'!AS247)","v":9},{"$f":"IF('[2]MONE(M)CAPARD'!AT247=\"\",\"\",'[2]MONE(M)CAPARD'!AT247)","v":"n.a."},{"$f":"IF('[2]MONE(M)CAPARD'!AU247=\"\",\"\",'[2]MONE(M)CAPARD'!AU247)","v":4.5},{"$f":"IF('[2]MONE(M)CAPARD'!AV247=\"\",\"\",'[2]MONE(M)CAPARD'!AV247)","v":4.5},{"$f":"IF('[2]MONE(M)CAPARD'!AW247=\"\",\"\",'[2]MONE(M)CAPARD'!AW247)","v":"n.a."},{"$f":"IF('[2]MONE(M)CAPARD'!AX247=\"\",\"\",'[2]MONE(M)CAPARD'!AX247)","v":4},{"$f":"IF('[2]MONE(M)CAPARD'!AY247=\"\",\"\",'[2]MONE(M)CAPARD'!AY247)","v":"n.a."},{"$f":"IF('[2]FISCAL(M)'!$K247=\"\",\"\",'[2]FISCAL(M)'!$K247)","v":-3119.9665378853624},{"$f":"IF('[2]FISCAL(M)'!$L247=\"\",\"\",'[2]FISCAL(M)'!$L247)","v":-4037.7234651363619},{"$f":"IF('[2]FISCAL(M)'!$AY247=\"\",\"\",'[2]FISCAL(M)'!$AY247)","v":"n.d."},{"$f":"IF('[2]FISCAL(M)'!$BI247=\"\",\"\",'[2]FISCAL(M)'!$BI247)","v":"n.d."},{"$f":"IF('[2]FISCAL(M)'!$BS247=\"\",\"\",'[2]FISCAL(M)'!$BS247)","v":"n.d."},{"$f":"IF('[2]FISCAL(M)'!$AZ247=\"\",\"\",'[2]FISCAL(M)'!$AZ247)","v":"n.d."},{"$f":"IF('[2]FISCAL(M)'!$BJ247=\"\",\"\",'[2]FISCAL(M)'!$BJ247)","v":"n.d."},{"$f":"IF('[2]FISCAL(M)'!$BT247=\"\",\"\",'[2]FISCAL(M)'!$BT247)","v":"n.d."},{"$f":"IF('[3]MONE(M)'!$AO247=\"\",\"\",'[3]MONE(M)'!$AO247)","v":8867636.6548686549},{"$f":"IF('[4]MONE(M)'!$AO247=\"\",\"\",'[4]MONE(M)'!$AO247)","v":8673.7691245499991},{"$f":"IF('[5]MONE(M)'!$AO247=\"\",\"\",'[5]MONE(M)'!$AO247)","v":82560.146147359672},{"$f":"+'[1]MONE(M)'!$AO247","v":136476.55566279634},{"$f":"IF('[6]MONE(M)'!$AO247=\"\",\"\",'[6]MONE(M)'!$AO247)","v":42865.041038729287},{"$f":"IF('[7]MONE(M)'!$AO247=\"\",\"\",'[7]MONE(M)'!$AO247)","v":350956.42670498998},{"$f":"IF('[8]MONE(M)'!$AO247=\"\",\"\",'[8]MONE(M)'!$AO247)","v":20080.086630845999},13.576656802550202,-6.2531006899954278,1.0204816305484199,0.79094154420145113,-7.9257226098780169,6.0006077528596879,1.9027380954190987,{"$f":"IF('[2]FISCAL(M)'!$K247=\"\",\"\",'[2]FISCAL(M)'!$K247)","v":-3119.9665378853624},{"$f":"+'[2]REAL(A)'!$AO$29","v":157527.15846004928},-1.9805896128549938,{"$f":"IF('[2]FISCAL(M)'!$L247=\"\",\"\",'[2]FISCAL(M)'!$L247)","v":-4037.7234651363619},{"$f":"+'[2]REAL(A)'!$AP$29","v":184643.79346004929},-2.1867637083669371,71094.076002558344,{"$f":"'[2]Gráfico REM'!BG241","v":13843.07236329505},{"$f":"'[2]Gráfico REM'!BH241","v":52996.408572905042},{"$f":"'[2]Gráfico REM'!BI241","v":4254.5950663582553},2.6851625766783682,22.793263400390629,-0.40699578851175477,-10.402070949695085,106300.14859284835,{"$f":"'[2]Gráfico REM'!BK241","v":14709.66649918505},{"$f":"'[2]Gráfico REM'!BL241","v":73076.495203751037},{"$f":"'[2]Gráfico REM'!BM241","v":18513.986889912252},2.1537764860174446,21.698318752444479,0.21717887692318527,-2.8332350160334308]
[2009,"noviembre","2009-noviembre",{"$f":"IF('[2]REAL IPC(M)'!$AL248=\"\",\"\",+'[2]REAL IPC(M)'!$AL248)","v":1.6180638083919785},{"$f":"IF('[2]REAL IPC(M)'!$BE248=\"\",\"\",+'[2]REAL IPC(M)'!$BE248)","v":5.4768301554535492},{"$f":"IF('[2]REAL IPC(M)'!$AM248=\"\",\"\",+'[2]REAL IPC(M)'!$AM248)","v":1.6031513374862527},{"$f":"IF('[2]REAL IPC(M)'!$BI248=\"\",\"\",+'[2]REAL IPC(M)'!$BI248)","v":5.3242591034274644},{"$f":"IF('[2]REAL IMAE(M)'!BJ248=\"\",\"\",'[2]REAL IMAE(M)'!BJ248)","v":1.978418404449811},{"$f":"IF('[2]REAL IMAE(M)'!BK248=\"\",\"\",'[2]REAL IMAE(M)'!BK248)","v":2.4784140966394475},{"$f":"IF('[2]REAL IMAE(M)'!BN248=\"\",\"\",'[2]REAL IMAE(M)'!BN248)","v":2.3632082787394815},{"$f":"IF('[2]REAL IMAE(M)'!BO248=\"\",\"\",'[2]REAL IMAE(M)'!BO248)","v":3.1730866106690181},{"$f":"IF('[2]EXT RIN(M)'!$K248=\"\",\"\",'[2]EXT RIN(M)'!$K248)","v":17499.329330105291},"",{"$f":"IF('[2]EXT RIN(M)'!$L248=\"\",\"\",'[2]EXT RIN(M)'!$L248)","v":20526.217725065289},"",{"$f":"IF('[2]MONE(M)CARD'!EG248=\"\",\"\",'[2]MONE(M)CARD'!EG248)","v":14801.570549449531},{"$f":"IF('[2]MONE(M)CARD'!EK248=\"\",\"\",'[2]MONE(M)CARD'!EK248)","v":26685.244170096779},{"$f":"IF('[2]MONE(M)CARD'!EP248=\"\",\"\",'[2]MONE(M)CARD'!EP248)","v":14517.82665586652},{"$f":"IF('[2]MONE(M)CARD'!ES248=\"\",\"\",'[2]MONE(M)CARD'!ES248)","v":9.9088541640451879},{"$f":"IF('[2]MONE(M)CARD'!EV248=\"\",\"\",'[2]MONE(M)CARD'!EV248)","v":14.955278710906317},{"$f":"IF('[2]MONE(M)CARD'!EZ248=\"\",\"\",'[2]MONE(M)CARD'!EZ248)","v":19.113993171281997},{"$f":"IF('[2]MONE(M)CAPARD'!FC248=\"\",\"\",'[2]MONE(M)CAPARD'!FC248)","v":18806.189354437927},{"$f":"IF('[2]MONE(M)CAPARD'!FG248=\"\",\"\",'[2]MONE(M)CAPARD'!FG248)","v":43826.630217516788},{"$f":"IF('[2]MONE(M)CAPARD'!FL248=\"\",\"\",'[2]MONE(M)CAPARD'!FL248)","v":14517.826655866513},{"$f":"IF('[2]MONE(M)CAPARD'!FO248=\"\",\"\",'[2]MONE(M)CAPARD'!FO248)","v":10.635749907147861},{"$f":"IF('[2]MONE(M)CAPARD'!FR248=\"\",\"\",'[2]MONE(M)CAPARD'!FR248)","v":12.959544879950059},{"$f":"IF('[2]MONE(M)CAPARD'!FV248=\"\",\"\",'[2]MONE(M)CAPARD'!FV248)","v":16.233999000955457},{"$f":"IF('[2]MONE(M)CARD'!FV248=\"\",\"\",'[2]MONE(M)CARD'!FV248)","v":545.15987232614748},{"$f":"IF('[2]MONE(M)CARD'!GD248=\"\",\"\",'[2]MONE(M)CARD'!GD248)","v":62.360815540210069},{"$f":"IF('[2]MONE(M)CARD'!GE248=\"\",\"\",'[2]MONE(M)CARD'!GE248)","v":3796.5580487073221},37.520550119965179,{"$f":"IF('[9]II.2.Balance OSD-Activos'!J106=\"\",\"\",'[9]II.2.Balance OSD-Activos'!J106)","v":54.143712243195253},{"$f":"IF('[9]II.2.Balance OSD-Activos'!N106=\"\",\"\",'[9]II.2.Balance OSD-Activos'!N106)","v":167.59837793342177},{"$f":"IF('[9]II.2.Balance OSD-Activos'!R106=\"\",\"\",'[9]II.2.Balance OSD-Activos'!R106)","v":19498.135723659696},{"$f":"IF('[9]II.2.Balance OSD-Activos'!S106=\"\",\"\",'[9]II.2.Balance OSD-Activos'!S106)","v":22617.033324732147},19552.279435902892,42336.911138568459,782.08662971495585,21.060156253292583,11.133110855682183,20.770818254138092,20.61469492820649,20.779150472274367,-2.8539393733460372E-2,{"$f":"IF('[2]MONE(M)CAPARD'!GS248=\"\",\"\",'[2]MONE(M)CAPARD'!GS248)","v":6085.8079573387731},{"$f":"IF('[2]MONE(M)CARD'!HA248=\"\",\"\",'[2]MONE(M)CAPARD'!HA248)","v":4325.512070177323},{"$f":"IF('[2]MONE(M)CAPARD'!HB248=\"\",\"\",'[2]MONE(M)CAPARD'!HB248)","v":1760.2958871614501},"n.d.",{"$f":"IF('[10]II.2.Balance OSD-Activos'!J106=\"\",\"\",'[10]II.2.Balance OSD-Activos'!J106)","v":362.74970886519526},{"$f":"IF('[10]II.2.Balance OSD-Activos'!N106=\"\",\"\",'[10]II.2.Balance OSD-Activos'!N106)","v":575.90748683342179},{"$f":"IF('[10]II.2.Balance OSD-Activos'!R106=\"\",\"\",'[10]II.2.Balance OSD-Activos'!R106)","v":29618.369005819695},{"$f":"IF('[10]II.2.Balance OSD-Activos'!S106=\"\",\"\",'[10]II.2.Balance OSD-Activos'!S106)","v":31809.520311362146},29981.11871468489,62366.546512880457,24.49298091391201,11.450238837000537,-8.1947617406754496,11.307417176379886,16.067906627165996,13.529600495388205,-0.31734590837178089,{"$f":"IF('[2]MONE(M)CAPARD'!AS248=\"\",\"\",'[2]MONE(M)CAPARD'!AS248)","v":9},{"$f":"IF('[2]MONE(M)CAPARD'!AT248=\"\",\"\",'[2]MONE(M)CAPARD'!AT248)","v":"n.a."},{"$f":"IF('[2]MONE(M)CAPARD'!AU248=\"\",\"\",'[2]MONE(M)CAPARD'!AU248)","v":4.5},{"$f":"IF('[2]MONE(M)CAPARD'!AV248=\"\",\"\",'[2]MONE(M)CAPARD'!AV248)","v":4.5},{"$f":"IF('[2]MONE(M)CAPARD'!AW248=\"\",\"\",'[2]MONE(M)CAPARD'!AW248)","v":"n.a."},{"$f":"IF('[2]MONE(M)CAPARD'!AX248=\"\",\"\",'[2]MONE(M)CAPARD'!AX248)","v":4},{"$f":"IF('[2]MONE(M)CAPARD'!AY248=\"\",\"\",'[2]MONE(M)CAPARD'!AY248)","v":"n.a."},{"$f":"IF('[2]FISCAL(M)'!$K248=\"\",\"\",'[2]FISCAL(M)'!$K248)","v":-4120.0053023596656},{"$f":"IF('[2]FISCAL(M)'!$L248=\"\",\"\",'[2]FISCAL(M)'!$L248)","v":-5240.227298560666},{"$f":"IF('[2]FISCAL(M)'!$AY248=\"\",\"\",'[2]FISCAL(M)'!$AY248)","v":"n.d."},{"$f":"IF('[2]FISCAL(M)'!$BI248=\"\",\"\",'[2]FISCAL(M)'!$BI248)","v":"n.d."},{"$f":"IF('[2]FISCAL(M)'!$BS248=\"\",\"\",'[2]FISCAL(M)'!$BS248)","v":"n.d."},{"$f":"IF('[2]FISCAL(M)'!$AZ248=\"\",\"\",'[2]FISCAL(M)'!$AZ248)","v":"n.d."},{"$f":"IF('[2]FISCAL(M)'!$BJ248=\"\",\"\",'[2]FISCAL(M)'!$BJ248)","v":"n.d."},{"$f":"IF('[2]FISCAL(M)'!$BT248=\"\",\"\",'[2]FISCAL(M)'!$BT248)","v":"n.d."},{"$f":"IF('[3]MONE(M)'!$AO248=\"\",\"\",'[3]MONE(M)'!$AO248)","v":8721436.4524679184},{"$f":"IF('[4]MONE(M)'!$AO248=\"\",\"\",'[4]MONE(M)'!$AO248)","v":8668.245999230001},{"$f":"IF('[5]MONE(M)'!$AO248=\"\",\"\",'[5]MONE(M)'!$AO248)","v":82656.796774849383},{"$f":"+'[1]MONE(M)'!$AO248","v":137408.12608176481},{"$f":"IF('[6]MONE(M)'!$AO248=\"\",\"\",'[6]MONE(M)'!$AO248)","v":43103.049052094284},{"$f":"IF('[7]MONE(M)'!$AO248=\"\",\"\",'[7]MONE(M)'!$AO248)","v":356943.13834579004},{"$f":"IF('[8]MONE(M)'!$AO248=\"\",\"\",'[8]MONE(M)'!$AO248)","v":20053.489628337},12.47795754911898,-6.280643711607981,-0.3778745585305221,1.0190217580155592,-8.2262893153439265,6.3891772772979305,1.2092512216758777,{"$f":"IF('[2]FISCAL(M)'!$K248=\"\",\"\",'[2]FISCAL(M)'!$K248)","v":-4120.0053023596656},{"$f":"+'[2]REAL(A)'!$AO$29","v":157527.15846004928},-2.6154253924440254,{"$f":"IF('[2]FISCAL(M)'!$L248=\"\",\"\",'[2]FISCAL(M)'!$L248)","v":-5240.227298560666},{"$f":"+'[2]REAL(A)'!$AP$29","v":184643.79346004929},-2.8380197353855143,72253.621856928992,{"$f":"'[2]Gráfico REM'!BG242","v":14246.507210488116},{"$f":"'[2]Gráfico REM'!BH242","v":53724.048712310323},{"$f":"'[2]Gráfico REM'!BI242","v":4283.0659341305563},3.1390374725966952,24.691775088136136,-0.24640263828412667,-10.254369082484981,107062.55550911301,{"$f":"'[2]Gráfico REM'!BK242","v":15137.433178918116},{"$f":"'[2]Gráfico REM'!BL242","v":73777.538340647327},{"$f":"'[2]Gráfico REM'!BM242","v":18147.583989547558},2.268738765803846,24.015773052512191,0.14509883549822522,-3.5255779001581389]
[2009,"diciembre","2009-diciembre",{"$f":"IF('[2]REAL IPC(M)'!$AL249=\"\",\"\",+'[2]REAL IPC(M)'!$AL249)","v":2.3540229885057551},{"$f":"IF('[2]REAL IPC(M)'!$BE249=\"\",\"\",+'[2]REAL IPC(M)'!$BE249)","v":5.4107836389604813},{"$f":"IF('[2]REAL IPC(M)'!$AM249=\"\",\"\",+'[2]REAL IPC(M)'!$AM249)","v":2.312511516491611},{"$f":"IF('[2]REAL IPC(M)'!$BI249=\"\",\"\",+'[2]REAL IPC(M)'!$BI249)","v":5.2620210687508884},{"$f":"IF('[2]REAL IMAE(M)'!BJ249=\"\",\"\",'[2]REAL IMAE(M)'!BJ249)","v":3.29347606073771},{"$f":"IF('[2]REAL IMAE(M)'!BK249=\"\",\"\",'[2]REAL IMAE(M)'!BK249)","v":2.5690323710839458},{"$f":"IF('[2]REAL IMAE(M)'!BN249=\"\",\"\",'[2]REAL IMAE(M)'!BN249)","v":3.6297139533839173},{"$f":"IF('[2]REAL IMAE(M)'!BO249=\"\",\"\",'[2]REAL IMAE(M)'!BO249)","v":3.2722099301300434},{"$f":"IF('[2]EXT RIN(M)'!$K249=\"\",\"\",'[2]EXT RIN(M)'!$K249)","v":18653.296140537856},18653.296140537856,{"$f":"IF('[2]EXT RIN(M)'!$L249=\"\",\"\",'[2]EXT RIN(M)'!$L249)","v":21857.829325376384},21857.829325376384,{"$f":"IF('[2]MONE(M)CARD'!EG249=\"\",\"\",'[2]MONE(M)CARD'!EG249)","v":15936.519585889864},{"$f":"IF('[2]MONE(M)CARD'!EK249=\"\",\"\",'[2]MONE(M)CARD'!EK249)","v":26719.035225996129},{"$f":"IF('[2]MONE(M)CARD'!EP249=\"\",\"\",'[2]MONE(M)CARD'!EP249)","v":14502.887038106142},{"$f":"IF('[2]MONE(M)CARD'!ES249=\"\",\"\",'[2]MONE(M)CARD'!ES249)","v":7.3409536132903463},{"$f":"IF('[2]MONE(M)CARD'!EV249=\"\",\"\",'[2]MONE(M)CARD'!EV249)","v":4.7333536641686935},{"$f":"IF('[2]MONE(M)CARD'!EZ249=\"\",\"\",'[2]MONE(M)CARD'!EZ249)","v":6.2700036387899116},{"$f":"IF('[2]MONE(M)CAPARD'!FC249=\"\",\"\",'[2]MONE(M)CAPARD'!FC249)","v":20340.022002348262},{"$f":"IF('[2]MONE(M)CAPARD'!FG249=\"\",\"\",'[2]MONE(M)CAPARD'!FG249)","v":44127.677136826125},{"$f":"IF('[2]MONE(M)CAPARD'!FL249=\"\",\"\",'[2]MONE(M)CAPARD'!FL249)","v":14502.887038106135},{"$f":"IF('[2]MONE(M)CAPARD'!FO249=\"\",\"\",'[2]MONE(M)CAPARD'!FO249)","v":9.2947515295585212},{"$f":"IF('[2]MONE(M)CAPARD'!FR249=\"\",\"\",'[2]MONE(M)CAPARD'!FR249)","v":6.5442333581340106},{"$f":"IF('[2]MONE(M)CAPARD'!FV249=\"\",\"\",'[2]MONE(M)CAPARD'!FV249)","v":7.3462775372667988},{"$f":"IF('[2]MONE(M)CARD'!FV249=\"\",\"\",'[2]MONE(M)CARD'!FV249)","v":523.87762463485183},{"$f":"IF('[2]MONE(M)CARD'!GD249=\"\",\"\",'[2]MONE(M)CARD'!GD249)","v":56.78787869363228},{"$f":"IF('[2]MONE(M)CARD'!GE249=\"\",\"\",'[2]MONE(M)CARD'!GE249)","v":3624.9571537409042},28.131650111786243,{"$f":"IF('[9]II.2.Balance OSD-Activos'!J107=\"\",\"\",'[9]II.2.Balance OSD-Activos'!J107)","v":67.280610893937094},{"$f":"IF('[9]II.2.Balance OSD-Activos'!N107=\"\",\"\",'[9]II.2.Balance OSD-Activos'!N107)","v":181.48671947895053},{"$f":"IF('[9]II.2.Balance OSD-Activos'!R107=\"\",\"\",'[9]II.2.Balance OSD-Activos'!R107)","v":19730.543106316472},{"$f":"IF('[9]II.2.Balance OSD-Activos'!S107=\"\",\"\",'[9]II.2.Balance OSD-Activos'!S107)","v":22565.032722962926},19797.823717210409,42544.343159652286,352.13267275904184,0.16188647856172356,1.3114915623527512,-0.10329474947070594,1.9997492118391857,1.1332826631578863,-19.645867809116481,{"$f":"IF('[2]MONE(M)CAPARD'!GS249=\"\",\"\",'[2]MONE(M)CAPARD'!GS249)","v":6247.0638800555953},{"$f":"IF('[2]MONE(M)CARD'!HA249=\"\",\"\",'[2]MONE(M)CAPARD'!HA249)","v":4144.6245084309039},{"$f":"IF('[2]MONE(M)CAPARD'!HB249=\"\",\"\",'[2]MONE(M)CAPARD'!HB249)","v":2102.4393716246914},"n.d.",{"$f":"IF('[10]II.2.Balance OSD-Activos'!J107=\"\",\"\",'[10]II.2.Balance OSD-Activos'!J107)","v":355.46860748793705},{"$f":"IF('[10]II.2.Balance OSD-Activos'!N107=\"\",\"\",'[10]II.2.Balance OSD-Activos'!N107)","v":587.17804623895063},{"$f":"IF('[10]II.2.Balance OSD-Activos'!R107=\"\",\"\",'[10]II.2.Balance OSD-Activos'!R107)","v":29547.86674186647},{"$f":"IF('[10]II.2.Balance OSD-Activos'!S107=\"\",\"\",'[10]II.2.Balance OSD-Activos'!S107)","v":31845.214461152922},29903.335349354405,62335.727856746278,11.543777877625239,-0.70709545334767254,0.70921921282622868,-0.83811665784734313,3.4157881709476978,1.3709279706120681,-12.158672524776136,{"$f":"IF('[2]MONE(M)CAPARD'!AS249=\"\",\"\",'[2]MONE(M)CAPARD'!AS249)","v":9},{"$f":"IF('[2]MONE(M)CAPARD'!AT249=\"\",\"\",'[2]MONE(M)CAPARD'!AT249)","v":"n.a."},{"$f":"IF('[2]MONE(M)CAPARD'!AU249=\"\",\"\",'[2]MONE(M)CAPARD'!AU249)","v":4.5},{"$f":"IF('[2]MONE(M)CAPARD'!AV249=\"\",\"\",'[2]MONE(M)CAPARD'!AV249)","v":4.5},{"$f":"IF('[2]MONE(M)CAPARD'!AW249=\"\",\"\",'[2]MONE(M)CAPARD'!AW249)","v":"n.a."},{"$f":"IF('[2]MONE(M)CAPARD'!AX249=\"\",\"\",'[2]MONE(M)CAPARD'!AX249)","v":4},{"$f":"IF('[2]MONE(M)CAPARD'!AY249=\"\",\"\",'[2]MONE(M)CAPARD'!AY249)","v":"n.a."},{"$f":"IF('[2]FISCAL(M)'!$K249=\"\",\"\",'[2]FISCAL(M)'!$K249)","v":-5600.5145757326582},{"$f":"IF('[2]FISCAL(M)'!$L249=\"\",\"\",'[2]FISCAL(M)'!$L249)","v":-5594.6724984836574},{"$f":"IF('[2]FISCAL(M)'!$AY249=\"\",\"\",'[2]FISCAL(M)'!$AY249)","v":58466.162373634375},{"$f":"IF('[2]FISCAL(M)'!$BI249=\"\",\"\",'[2]FISCAL(M)'!$BI249)","v":27838.56334030678},{"$f":"IF('[2]FISCAL(M)'!$BS249=\"\",\"\",'[2]FISCAL(M)'!$BS249)","v":30627.599033327602},{"$f":"IF('[2]FISCAL(M)'!$AZ249=\"\",\"\",'[2]FISCAL(M)'!$AZ249)","v":69549.130284624378},{"$f":"IF('[2]FISCAL(M)'!$BJ249=\"\",\"\",'[2]FISCAL(M)'!$BJ249)","v":28771.377823616785},{"$f":"IF('[2]FISCAL(M)'!$BT249=\"\",\"\",'[2]FISCAL(M)'!$BT249)","v":40771.021506337602},{"$f":"IF('[3]MONE(M)'!$AO249=\"\",\"\",'[3]MONE(M)'!$AO249)","v":8854743.5806054734},{"$f":"IF('[4]MONE(M)'!$AO249=\"\",\"\",'[4]MONE(M)'!$AO249)","v":8756.3330770001521},{"$f":"IF('[5]MONE(M)'!$AO249=\"\",\"\",'[5]MONE(M)'!$AO249)","v":83044.35708254081},{"$f":"+'[1]MONE(M)'!$AO249","v":137291.81315182406},{"$f":"IF('[6]MONE(M)'!$AO249=\"\",\"\",'[6]MONE(M)'!$AO249)","v":42960.414410638696},{"$f":"IF('[7]MONE(M)'!$AO249=\"\",\"\",'[7]MONE(M)'!$AO249)","v":360918.06613902998},{"$f":"IF('[8]MONE(M)'!$AO249=\"\",\"\",'[8]MONE(M)'!$AO249)","v":19830.130507878999},7.3667687370214452,-4.4170215289603076,-2.6987739204442196,2.6218790564656258,-7.3137881303383834,7.9854357463250425,2.0864406026152249,{"$f":"IF('[2]FISCAL(M)'!$K249=\"\",\"\",'[2]FISCAL(M)'!$K249)","v":-5600.5145757326582},{"$f":"+'[2]REAL(A)'!$AO$29","v":157527.15846004928},-3.5552692186427106,{"$f":"IF('[2]FISCAL(M)'!$L249=\"\",\"\",'[2]FISCAL(M)'!$L249)","v":-5594.6724984836574},{"$f":"+'[2]REAL(A)'!$AP$29","v":184643.79346004929},-3.029981346052748,72714.147311386841,{"$f":"'[2]Gráfico REM'!BG243","v":14520.484575155342},{"$f":"'[2]Gráfico REM'!BH243","v":53883.157952450565},{"$f":"'[2]Gráfico REM'!BI243","v":4310.5047837809379},3.1024692095105166,22.922836484267251,-0.24625624415892666,-8.23320588839408,107156.35586142685,{"$f":"'[2]Gráfico REM'!BK243","v":15330.296102125341},{"$f":"'[2]Gráfico REM'!BL243","v":73713.288460329568},{"$f":"'[2]Gráfico REM'!BM243","v":18112.771298971937},2.6601213561743942,22.166747163304713,0.37073232740487683,-1.5077344907361789]
[2010,"enero","2010-enero",{"$f":"IF('[2]REAL IPC(M)'!$AL250=\"\",\"\",+'[2]REAL IPC(M)'!$AL250)","v":3.6512462061988327},{"$f":"IF('[2]REAL IPC(M)'!$BE250=\"\",\"\",+'[2]REAL IPC(M)'!$BE250)","v":5.3541595675260956},{"$f":"IF('[2]REAL IPC(M)'!$AM250=\"\",\"\",+'[2]REAL IPC(M)'!$AM250)","v":3.5855839247856958},{"$f":"IF('[2]REAL IPC(M)'!$BI250=\"\",\"\",+'[2]REAL IPC(M)'!$BI250)","v":5.2101133024416768},{"$f":"IF('[2]REAL IMAE(M)'!BJ250=\"\",\"\",'[2]REAL IMAE(M)'!BJ250)","v":4.0642080836404526},{"$f":"IF('[2]REAL IMAE(M)'!BK250=\"\",\"\",'[2]REAL IMAE(M)'!BK250)","v":2.6617422040033256},{"$f":"IF('[2]REAL IMAE(M)'!BN250=\"\",\"\",'[2]REAL IMAE(M)'!BN250)","v":4.3211328875893074},{"$f":"IF('[2]REAL IMAE(M)'!BO250=\"\",\"\",'[2]REAL IMAE(M)'!BO250)","v":3.3748541086597639},{"$f":"IF('[2]EXT RIN(M)'!$K250=\"\",\"\",'[2]EXT RIN(M)'!$K250)","v":18653.893631118262},"",{"$f":"IF('[2]EXT RIN(M)'!$L250=\"\",\"\",'[2]EXT RIN(M)'!$L250)","v":21679.004450107292},"",{"$f":"IF('[2]MONE(M)CARD'!EG250=\"\",\"\",'[2]MONE(M)CARD'!EG250)","v":15851.997685072671},{"$f":"IF('[2]MONE(M)CARD'!EK250=\"\",\"\",'[2]MONE(M)CARD'!EK250)","v":26654.464287133382},{"$f":"IF('[2]MONE(M)CARD'!EP250=\"\",\"\",'[2]MONE(M)CARD'!EP250)","v":14641.150734870469},{"$f":"IF('[2]MONE(M)CARD'!ES250=\"\",\"\",'[2]MONE(M)CARD'!ES250)","v":8.8606061760367218},{"$f":"IF('[2]MONE(M)CARD'!EV250=\"\",\"\",'[2]MONE(M)CARD'!EV250)","v":4.8347102914956475},{"$f":"IF('[2]MONE(M)CARD'!EZ250=\"\",\"\",'[2]MONE(M)CARD'!EZ250)","v":6.7120594980550674},{"$f":"IF('[2]MONE(M)CAPARD'!FC250=\"\",\"\",'[2]MONE(M)CAPARD'!FC250)","v":20351.961236901669},{"$f":"IF('[2]MONE(M)CAPARD'!FG250=\"\",\"\",'[2]MONE(M)CAPARD'!FG250)","v":44334.667403483378},{"$f":"IF('[2]MONE(M)CAPARD'!FL250=\"\",\"\",'[2]MONE(M)CAPARD'!FL250)","v":14641.150734870454},{"$f":"IF('[2]MONE(M)CAPARD'!FO250=\"\",\"\",'[2]MONE(M)CAPARD'!FO250)","v":11.35911728858121},{"$f":"IF('[2]MONE(M)CAPARD'!FR250=\"\",\"\",'[2]MONE(M)CAPARD'!FR250)","v":7.4737589124620918},{"$f":"IF('[2]MONE(M)CAPARD'!FV250=\"\",\"\",'[2]MONE(M)CAPARD'!FV250)","v":8.378352847653936},{"$f":"IF('[2]MONE(M)CARD'!FV250=\"\",\"\",'[2]MONE(M)CARD'!FV250)","v":503.24969533558544},{"$f":"IF('[2]MONE(M)CARD'!GD250=\"\",\"\",'[2]MONE(M)CARD'!GD250)","v":59.569786774687515},{"$f":"IF('[2]MONE(M)CARD'!GE250=\"\",\"\",'[2]MONE(M)CARD'!GE250)","v":3868.2628154814242},17.003796883225174,{"$f":"IF('[9]II.2.Balance OSD-Activos'!J108=\"\",\"\",'[9]II.2.Balance OSD-Activos'!J108)","v":44.071285843218639},{"$f":"IF('[9]II.2.Balance OSD-Activos'!N108=\"\",\"\",'[9]II.2.Balance OSD-Activos'!N108)","v":165.57510843317283},{"$f":"IF('[9]II.2.Balance OSD-Activos'!R108=\"\",\"\",'[9]II.2.Balance OSD-Activos'!R108)","v":19686.527672186956},{"$f":"IF('[9]II.2.Balance OSD-Activos'!S108=\"\",\"\",'[9]II.2.Balance OSD-Activos'!S108)","v":22624.402233123343},19730.598958030176,42520.57629958669,218.97530045082055,2.4020466816680353,-7.3496362545041105,2.2466350962658588,1.693276246414821,1.9820546177041987,0.84877195454631238,{"$f":"IF('[2]MONE(M)CAPARD'!GS250=\"\",\"\",'[2]MONE(M)CAPARD'!GS250)","v":6371.3702788106239},{"$f":"IF('[2]MONE(M)CARD'!HA250=\"\",\"\",'[2]MONE(M)CAPARD'!HA250)","v":4433.7105519514243},{"$f":"IF('[2]MONE(M)CAPARD'!HB250=\"\",\"\",'[2]MONE(M)CAPARD'!HB250)","v":1937.6597268591995},"n.d.",{"$f":"IF('[10]II.2.Balance OSD-Activos'!J108=\"\",\"\",'[10]II.2.Balance OSD-Activos'!J108)","v":333.44325529321867},{"$f":"IF('[10]II.2.Balance OSD-Activos'!N108=\"\",\"\",'[10]II.2.Balance OSD-Activos'!N108)","v":567.37033339317281},{"$f":"IF('[10]II.2.Balance OSD-Activos'!R108=\"\",\"\",'[10]II.2.Balance OSD-Activos'!R108)","v":29406.159971026958},{"$f":"IF('[10]II.2.Balance OSD-Activos'!S108=\"\",\"\",'[10]II.2.Balance OSD-Activos'!S108)","v":32089.460368173342},29739.603226320178,62396.433927886697,5.8192296511059505,-0.11430220451575934,-7.2150754954355296,-0.17777089942884183,3.636135888433123,1.7078217413771579,0.33689377076508986,{"$f":"IF('[2]MONE(M)CAPARD'!AS250=\"\",\"\",'[2]MONE(M)CAPARD'!AS250)","v":9},{"$f":"IF('[2]MONE(M)CAPARD'!AT250=\"\",\"\",'[2]MONE(M)CAPARD'!AT250)","v":"n.a."},{"$f":"IF('[2]MONE(M)CAPARD'!AU250=\"\",\"\",'[2]MONE(M)CAPARD'!AU250)","v":4.5},{"$f":"IF('[2]MONE(M)CAPARD'!AV250=\"\",\"\",'[2]MONE(M)CAPARD'!AV250)","v":4.5},{"$f":"IF('[2]MONE(M)CAPARD'!AW250=\"\",\"\",'[2]MONE(M)CAPARD'!AW250)","v":"n.a."},{"$f":"IF('[2]MONE(M)CAPARD'!AX250=\"\",\"\",'[2]MONE(M)CAPARD'!AX250)","v":4},{"$f":"IF('[2]MONE(M)CAPARD'!AY250=\"\",\"\",'[2]MONE(M)CAPARD'!AY250)","v":"n.a."},{"$f":"IF('[2]FISCAL(M)'!$K250=\"\",\"\",'[2]FISCAL(M)'!$K250)","v":-95.214270811794705},{"$f":"IF('[2]FISCAL(M)'!$L250=\"\",\"\",'[2]FISCAL(M)'!$L250)","v":-196.91634431179469},{"$f":"IF('[2]FISCAL(M)'!$AY250=\"\",\"\",'[2]FISCAL(M)'!$AY250)","v":"n.d."},{"$f":"IF('[2]FISCAL(M)'!$BI250=\"\",\"\",'[2]FISCAL(M)'!$BI250)","v":"n.d."},{"$f":"IF('[2]FISCAL(M)'!$BS250=\"\",\"\",'[2]FISCAL(M)'!$BS250)","v":"n.d."},{"$f":"IF('[2]FISCAL(M)'!$AZ250=\"\",\"\",'[2]FISCAL(M)'!$AZ250)","v":"n.d."},{"$f":"IF('[2]FISCAL(M)'!$BJ250=\"\",\"\",'[2]FISCAL(M)'!$BJ250)","v":"n.d."},{"$f":"IF('[2]FISCAL(M)'!$BT250=\"\",\"\",'[2]FISCAL(M)'!$BT250)","v":"n.d."},{"$f":"IF('[3]MONE(M)'!$AO250=\"\",\"\",'[3]MONE(M)'!$AO250)","v":8837210.8583729882},{"$f":"IF('[4]MONE(M)'!$AO250=\"\",\"\",'[4]MONE(M)'!$AO250)","v":8713.9565519601529},{"$f":"IF('[5]MONE(M)'!$AO250=\"\",\"\",'[5]MONE(M)'!$AO250)","v":83425.302783254505},{"$f":"+'[1]MONE(M)'!$AO250","v":137596.94470385916},{"$f":"IF('[6]MONE(M)'!$AO250=\"\",\"\",'[6]MONE(M)'!$AO250)","v":42687.054203158041},{"$f":"IF('[7]MONE(M)'!$AO250=\"\",\"\",'[7]MONE(M)'!$AO250)","v":362454.93796988996},{"$f":"IF('[8]MONE(M)'!$AO250=\"\",\"\",'[8]MONE(M)'!$AO250)","v":19917.52864158},6.3611273081439101,-4.6878230264896796,0.68490266692415869,2.0455044415068846,-6.6741122536062019,10.827182775303257,1.5022583036576886,{"$f":"IF('[2]FISCAL(M)'!$K250=\"\",\"\",'[2]FISCAL(M)'!$K250)","v":-95.214270811794705},{"$f":"+'[2]REAL(A)'!$AO$30","v":176102.1145381197},-5.4067647660860016E-2,{"$f":"IF('[2]FISCAL(M)'!$L250=\"\",\"\",'[2]FISCAL(M)'!$L250)","v":-196.91634431179469},{"$f":"+'[2]REAL(A)'!$AP$30","v":205542.40353811969},-9.5803270236292037E-2,73240.808491305725,{"$f":"'[2]Gráfico REM'!BG244","v":14914.272919321982},{"$f":"'[2]Gráfico REM'!BH244","v":53990.381606564588},{"$f":"'[2]Gráfico REM'!BI244","v":4336.1539654191565},4.9284160064607452,26.590829103573398,1.5537592242250042,-10.685406975704147,107623.45369718573,{"$f":"'[2]Gráfico REM'!BK244","v":15742.749697961983},{"$f":"'[2]Gráfico REM'!BL244","v":73907.910248144588},{"$f":"'[2]Gráfico REM'!BM244","v":17972.793751079156},3.8309705099485614,26.167524149604859,1.5398750377049408,-2.2570644873674883]
[2010,"febrero","2010-febrero",{"$f":"IF('[2]REAL IPC(M)'!$AL251=\"\",\"\",+'[2]REAL IPC(M)'!$AL251)","v":4.035297361889878},{"$f":"IF('[2]REAL IPC(M)'!$BE251=\"\",\"\",+'[2]REAL IPC(M)'!$BE251)","v":5.3063849830834453},{"$f":"IF('[2]REAL IPC(M)'!$AM251=\"\",\"\",+'[2]REAL IPC(M)'!$AM251)","v":3.9233744704365581},{"$f":"IF('[2]REAL IPC(M)'!$BI251=\"\",\"\",+'[2]REAL IPC(M)'!$BI251)","v":5.1679310714523474},{"$f":"IF('[2]REAL IMAE(M)'!BJ251=\"\",\"\",'[2]REAL IMAE(M)'!BJ251)","v":5.1552954432366516},{"$f":"IF('[2]REAL IMAE(M)'!BK251=\"\",\"\",'[2]REAL IMAE(M)'!BK251)","v":2.7552138879209043},{"$f":"IF('[2]REAL IMAE(M)'!BN251=\"\",\"\",'[2]REAL IMAE(M)'!BN251)","v":5.4094963585974654},{"$f":"IF('[2]REAL IMAE(M)'!BO251=\"\",\"\",'[2]REAL IMAE(M)'!BO251)","v":3.4795939146207155},{"$f":"IF('[2]EXT RIN(M)'!$K251=\"\",\"\",'[2]EXT RIN(M)'!$K251)","v":18456.284649492049},"",{"$f":"IF('[2]EXT RIN(M)'!$L251=\"\",\"\",'[2]EXT RIN(M)'!$L251)","v":21154.947260702051},"",{"$f":"IF('[2]MONE(M)CARD'!EG251=\"\",\"\",'[2]MONE(M)CARD'!EG251)","v":15717.345994312022},{"$f":"IF('[2]MONE(M)CARD'!EK251=\"\",\"\",'[2]MONE(M)CARD'!EK251)","v":27053.28764316197},{"$f":"IF('[2]MONE(M)CARD'!EP251=\"\",\"\",'[2]MONE(M)CARD'!EP251)","v":14857.291414655221},{"$f":"IF('[2]MONE(M)CARD'!ES251=\"\",\"\",'[2]MONE(M)CARD'!ES251)","v":11.632288036759464},{"$f":"IF('[2]MONE(M)CARD'!EV251=\"\",\"\",'[2]MONE(M)CARD'!EV251)","v":6.2635144172777935},{"$f":"IF('[2]MONE(M)CARD'!EZ251=\"\",\"\",'[2]MONE(M)CARD'!EZ251)","v":7.6256631877551051},{"$f":"IF('[2]MONE(M)CAPARD'!FC251=\"\",\"\",'[2]MONE(M)CAPARD'!FC251)","v":20032.22819018102},{"$f":"IF('[2]MONE(M)CAPARD'!FG251=\"\",\"\",'[2]MONE(M)CAPARD'!FG251)","v":44943.779308541969},{"$f":"IF('[2]MONE(M)CAPARD'!FL251=\"\",\"\",'[2]MONE(M)CAPARD'!FL251)","v":14857.291414655207},{"$f":"IF('[2]MONE(M)CAPARD'!FO251=\"\",\"\",'[2]MONE(M)CAPARD'!FO251)","v":12.706063725286842},{"$f":"IF('[2]MONE(M)CAPARD'!FR251=\"\",\"\",'[2]MONE(M)CAPARD'!FR251)","v":8.4219777339089585},{"$f":"IF('[2]MONE(M)CAPARD'!FV251=\"\",\"\",'[2]MONE(M)CAPARD'!FV251)","v":9.0261346292958002},{"$f":"IF('[2]MONE(M)CARD'!FV251=\"\",\"\",'[2]MONE(M)CARD'!FV251)","v":522.60775241178146},{"$f":"IF('[2]MONE(M)CARD'!GD251=\"\",\"\",'[2]MONE(M)CARD'!GD251)","v":63.272034237313605},{"$f":"IF('[2]MONE(M)CARD'!GE251=\"\",\"\",'[2]MONE(M)CARD'!GE251)","v":3884.9740678978214},14.924137608179478,{"$f":"IF('[9]II.2.Balance OSD-Activos'!J109=\"\",\"\",'[9]II.2.Balance OSD-Activos'!J109)","v":34.236041920161469},{"$f":"IF('[9]II.2.Balance OSD-Activos'!N109=\"\",\"\",'[9]II.2.Balance OSD-Activos'!N109)","v":162.83939455402151},{"$f":"IF('[9]II.2.Balance OSD-Activos'!R109=\"\",\"\",'[9]II.2.Balance OSD-Activos'!R109)","v":19831.848790297059},{"$f":"IF('[9]II.2.Balance OSD-Activos'!S109=\"\",\"\",'[9]II.2.Balance OSD-Activos'!S109)","v":22636.204695273726},19866.084832217221,42665.128922044969,19.493733576824646,1.8297461885352639,-7.4719996391744203,1.8037668667106876,3.484190221357375,2.6611490155302508,0.67909439782605219,{"$f":"IF('[2]MONE(M)CAPARD'!GS251=\"\",\"\",'[2]MONE(M)CAPARD'!GS251)","v":6670.6839533102493},{"$f":"IF('[2]MONE(M)CARD'!HA251=\"\",\"\",'[2]MONE(M)CAPARD'!HA251)","v":4463.4601776278214},{"$f":"IF('[2]MONE(M)CAPARD'!HB251=\"\",\"\",'[2]MONE(M)CAPARD'!HB251)","v":2207.2237756824279},"n.d.",{"$f":"IF('[10]II.2.Balance OSD-Activos'!J109=\"\",\"\",'[10]II.2.Balance OSD-Activos'!J109)","v":312.40407428416142},{"$f":"IF('[10]II.2.Balance OSD-Activos'!N109=\"\",\"\",'[10]II.2.Balance OSD-Activos'!N109)","v":568.60966865402145},{"$f":"IF('[10]II.2.Balance OSD-Activos'!R109=\"\",\"\",'[10]II.2.Balance OSD-Activos'!R109)","v":29753.96348937706},{"$f":"IF('[10]II.2.Balance OSD-Activos'!S109=\"\",\"\",'[10]II.2.Balance OSD-Activos'!S109)","v":31988.176792133723},30066.367563661221,62623.154024448966,-2.9862306890122703,0.12706935765525174,-8.1527738994508816,0.16081807921644042,4.4286483950967792,2.1936597222507626,0.48583798087360464,{"$f":"IF('[2]MONE(M)CAPARD'!AS251=\"\",\"\",'[2]MONE(M)CAPARD'!AS251)","v":9},{"$f":"IF('[2]MONE(M)CAPARD'!AT251=\"\",\"\",'[2]MONE(M)CAPARD'!AT251)","v":"n.a."},{"$f":"IF('[2]MONE(M)CAPARD'!AU251=\"\",\"\",'[2]MONE(M)CAPARD'!AU251)","v":4.5},{"$f":"IF('[2]MONE(M)CAPARD'!AV251=\"\",\"\",'[2]MONE(M)CAPARD'!AV251)","v":4.5},{"$f":"IF('[2]MONE(M)CAPARD'!AW251=\"\",\"\",'[2]MONE(M)CAPARD'!AW251)","v":"n.a."},{"$f":"IF('[2]MONE(M)CAPARD'!AX251=\"\",\"\",'[2]MONE(M)CAPARD'!AX251)","v":4},{"$f":"IF('[2]MONE(M)CAPARD'!AY251=\"\",\"\",'[2]MONE(M)CAPARD'!AY251)","v":"n.a."},{"$f":"IF('[2]FISCAL(M)'!$K251=\"\",\"\",'[2]FISCAL(M)'!$K251)","v":-862.96624883824916},{"$f":"IF('[2]FISCAL(M)'!$L251=\"\",\"\",'[2]FISCAL(M)'!$L251)","v":-1088.4290208482491},{"$f":"IF('[2]FISCAL(M)'!$AY251=\"\",\"\",'[2]FISCAL(M)'!$AY251)","v":"n.d."},{"$f":"IF('[2]FISCAL(M)'!$BI251=\"\",\"\",'[2]FISCAL(M)'!$BI251)","v":"n.d."},{"$f":"IF('[2]FISCAL(M)'!$BS251=\"\",\"\",'[2]FISCAL(M)'!$BS251)","v":"n.d."},{"$f":"IF('[2]FISCAL(M)'!$AZ251=\"\",\"\",'[2]FISCAL(M)'!$AZ251)","v":"n.d."},{"$f":"IF('[2]FISCAL(M)'!$BJ251=\"\",\"\",'[2]FISCAL(M)'!$BJ251)","v":"n.d."},{"$f":"IF('[2]FISCAL(M)'!$BT251=\"\",\"\",'[2]FISCAL(M)'!$BT251)","v":"n.d."},{"$f":"IF('[3]MONE(M)'!$AO251=\"\",\"\",'[3]MONE(M)'!$AO251)","v":8818985.6963433195},{"$f":"IF('[4]MONE(M)'!$AO251=\"\",\"\",'[4]MONE(M)'!$AO251)","v":8610.5726310601349},{"$f":"IF('[5]MONE(M)'!$AO251=\"\",\"\",'[5]MONE(M)'!$AO251)","v":82435.750228346878},{"$f":"+'[1]MONE(M)'!$AO251","v":137520.87879730397},{"$f":"IF('[6]MONE(M)'!$AO251=\"\",\"\",'[6]MONE(M)'!$AO251)","v":42452.827677035995},{"$f":"IF('[7]MONE(M)'!$AO251=\"\",\"\",'[7]MONE(M)'!$AO251)","v":367857.60218207998},{"$f":"IF('[8]MONE(M)'!$AO251=\"\",\"\",'[8]MONE(M)'!$AO251)","v":20013.656144679},4.8475397809677023,-5.6008322384257685,-0.4549456724735057,1.8421635942370118,-6.9173471035634542,12.957411814775433,1.7389908128091935,{"$f":"IF('[2]FISCAL(M)'!$K251=\"\",\"\",'[2]FISCAL(M)'!$K251)","v":-862.96624883824916},{"$f":"+'[2]REAL(A)'!$AO$30","v":176102.1145381197},-0.4900374144294834,{"$f":"IF('[2]FISCAL(M)'!$L251=\"\",\"\",'[2]FISCAL(M)'!$L251)","v":-1088.4290208482491},{"$f":"+'[2]REAL(A)'!$AP$30","v":205542.40353811969},-0.52953989158076087,73915.504468300976,{"$f":"'[2]Gráfico REM'!BG245","v":15346.65767461408},{"$f":"'[2]Gráfico REM'!BH245","v":54226.55469856596},{"$f":"'[2]Gráfico REM'!BI245","v":4342.292095120938},6.0884065593620251,28.237803608744127,2.3214108713542014,-7.8042748130906281,108555.15826393096,{"$f":"'[2]Gráfico REM'!BK245","v":16285.18262999408},{"$f":"'[2]Gráfico REM'!BL245","v":74240.21084324496},{"$f":"'[2]Gráfico REM'!BM245","v":18029.764790691937},3.7292073380419843,28.363526403778195,2.16374672371209,-6.5709819853452363]
[2010,"marzo","2010-marzo",{"$f":"IF('[2]REAL IPC(M)'!$AL252=\"\",\"\",+'[2]REAL IPC(M)'!$AL252)","v":4.8441952385329445},{"$f":"IF('[2]REAL IPC(M)'!$BE252=\"\",\"\",+'[2]REAL IPC(M)'!$BE252)","v":5.2667894494361489},{"$f":"IF('[2]REAL IPC(M)'!$AM252=\"\",\"\",+'[2]REAL IPC(M)'!$AM252)","v":4.6111366774044926},{"$f":"IF('[2]REAL IPC(M)'!$BI252=\"\",\"\",+'[2]REAL IPC(M)'!$BI252)","v":5.134761997573678},{"$f":"IF('[2]REAL IMAE(M)'!BJ252=\"\",\"\",'[2]REAL IMAE(M)'!BJ252)","v":5.7736613689407301},{"$f":"IF('[2]REAL IMAE(M)'!BK252=\"\",\"\",'[2]REAL IMAE(M)'!BK252)","v":2.8482062954587217},{"$f":"IF('[2]REAL IMAE(M)'!BN252=\"\",\"\",'[2]REAL IMAE(M)'!BN252)","v":6.0849799217431055},{"$f":"IF('[2]REAL IMAE(M)'!BO252=\"\",\"\",'[2]REAL IMAE(M)'!BO252)","v":3.5850763830079568},{"$f":"IF('[2]EXT RIN(M)'!$K252=\"\",\"\",'[2]EXT RIN(M)'!$K252)","v":18137.456825361493},"",{"$f":"IF('[2]EXT RIN(M)'!$L252=\"\",\"\",'[2]EXT RIN(M)'!$L252)","v":21001.003596121493},"",{"$f":"IF('[2]MONE(M)CARD'!EG252=\"\",\"\",'[2]MONE(M)CARD'!EG252)","v":16458.309330803208},{"$f":"IF('[2]MONE(M)CARD'!EK252=\"\",\"\",'[2]MONE(M)CARD'!EK252)","v":27393.739781657354},{"$f":"IF('[2]MONE(M)CARD'!EP252=\"\",\"\",'[2]MONE(M)CARD'!EP252)","v":15323.998404877639},{"$f":"IF('[2]MONE(M)CARD'!ES252=\"\",\"\",'[2]MONE(M)CARD'!ES252)","v":16.55486402918789},{"$f":"IF('[2]MONE(M)CARD'!EV252=\"\",\"\",'[2]MONE(M)CARD'!EV252)","v":8.0114200119913104},{"$f":"IF('[2]MONE(M)CARD'!EZ252=\"\",\"\",'[2]MONE(M)CARD'!EZ252)","v":9.3590099073503232},{"$f":"IF('[2]MONE(M)CAPARD'!FC252=\"\",\"\",'[2]MONE(M)CAPARD'!FC252)","v":20855.193581213207},{"$f":"IF('[2]MONE(M)CAPARD'!FG252=\"\",\"\",'[2]MONE(M)CAPARD'!FG252)","v":45290.252105047352},{"$f":"IF('[2]MONE(M)CAPARD'!FL252=\"\",\"\",'[2]MONE(M)CAPARD'!FL252)","v":15323.998404877653},{"$f":"IF('[2]MONE(M)CAPARD'!FO252=\"\",\"\",'[2]MONE(M)CAPARD'!FO252)","v":17.618487099339465},{"$f":"IF('[2]MONE(M)CAPARD'!FR252=\"\",\"\",'[2]MONE(M)CAPARD'!FR252)","v":9.6578838538576406},{"$f":"IF('[2]MONE(M)CAPARD'!FV252=\"\",\"\",'[2]MONE(M)CAPARD'!FV252)","v":10.344210722128345},{"$f":"IF('[2]MONE(M)CARD'!FV252=\"\",\"\",'[2]MONE(M)CARD'!FV252)","v":510.12291833401611},{"$f":"IF('[2]MONE(M)CARD'!GD252=\"\",\"\",'[2]MONE(M)CARD'!GD252)","v":54.535861841165932},{"$f":"IF('[2]MONE(M)CARD'!GE252=\"\",\"\",'[2]MONE(M)CARD'!GE252)","v":3941.1208429485268},16.295596258438039,{"$f":"IF('[9]II.2.Balance OSD-Activos'!J110=\"\",\"\",'[9]II.2.Balance OSD-Activos'!J110)","v":16.023120815714275},{"$f":"IF('[9]II.2.Balance OSD-Activos'!N110=\"\",\"\",'[9]II.2.Balance OSD-Activos'!N110)","v":161.89947491856447},{"$f":"IF('[9]II.2.Balance OSD-Activos'!R110=\"\",\"\",'[9]II.2.Balance OSD-Activos'!R110)","v":20101.900422994368},{"$f":"IF('[9]II.2.Balance OSD-Activos'!S110=\"\",\"\",'[9]II.2.Balance OSD-Activos'!S110)","v":22987.475699898543},20117.92354381008,43267.298718627193,-37.492615505502243,4.2522453420748008,-7.8400093361502439,4.3077715925715854,4.5940496970728661,4.3822267314867824,1.7210777159565316,{"$f":"IF('[2]MONE(M)CAPARD'!GS252=\"\",\"\",'[2]MONE(M)CAPARD'!GS252)","v":7020.0704491607685},{"$f":"IF('[2]MONE(M)CARD'!HA252=\"\",\"\",'[2]MONE(M)CAPARD'!HA252)","v":4463.5649892985275},{"$f":"IF('[2]MONE(M)CAPARD'!HB252=\"\",\"\",'[2]MONE(M)CAPARD'!HB252)","v":2556.505459862241},"n.d.",{"$f":"IF('[10]II.2.Balance OSD-Activos'!J110=\"\",\"\",'[10]II.2.Balance OSD-Activos'!J110)","v":308.67617614571424},{"$f":"IF('[10]II.2.Balance OSD-Activos'!N110=\"\",\"\",'[10]II.2.Balance OSD-Activos'!N110)","v":586.2866881385645},{"$f":"IF('[10]II.2.Balance OSD-Activos'!R110=\"\",\"\",'[10]II.2.Balance OSD-Activos'!R110)","v":30121.313424304371},{"$f":"IF('[10]II.2.Balance OSD-Activos'!S110=\"\",\"\",'[10]II.2.Balance OSD-Activos'!S110)","v":32404.641468148544},30429.989600450084,63420.917756737195,-6.2777888317756769,2.1287234449653081,2.8768978002279955,2.2226849177507724,5.2383020346374209,3.7013163996764131,1.5076566774256506,{"$f":"IF('[2]MONE(M)CAPARD'!AS252=\"\",\"\",'[2]MONE(M)CAPARD'!AS252)","v":9},{"$f":"IF('[2]MONE(M)CAPARD'!AT252=\"\",\"\",'[2]MONE(M)CAPARD'!AT252)","v":"n.a."},{"$f":"IF('[2]MONE(M)CAPARD'!AU252=\"\",\"\",'[2]MONE(M)CAPARD'!AU252)","v":4.5},{"$f":"IF('[2]MONE(M)CAPARD'!AV252=\"\",\"\",'[2]MONE(M)CAPARD'!AV252)","v":4.5},{"$f":"IF('[2]MONE(M)CAPARD'!AW252=\"\",\"\",'[2]MONE(M)CAPARD'!AW252)","v":"n.a."},{"$f":"IF('[2]MONE(M)CAPARD'!AX252=\"\",\"\",'[2]MONE(M)CAPARD'!AX252)","v":4},{"$f":"IF('[2]MONE(M)CAPARD'!AY252=\"\",\"\",'[2]MONE(M)CAPARD'!AY252)","v":"n.a."},{"$f":"IF('[2]FISCAL(M)'!$K252=\"\",\"\",'[2]FISCAL(M)'!$K252)","v":-1078.3968086462139},{"$f":"IF('[2]FISCAL(M)'!$L252=\"\",\"\",'[2]FISCAL(M)'!$L252)","v":-1341.742072706214},{"$f":"IF('[2]FISCAL(M)'!$AY252=\"\",\"\",'[2]FISCAL(M)'!$AY252)","v":60199.394459518415},{"$f":"IF('[2]FISCAL(M)'!$BI252=\"\",\"\",'[2]FISCAL(M)'!$BI252)","v":29555.727301136245},{"$f":"IF('[2]FISCAL(M)'!$BS252=\"\",\"\",'[2]FISCAL(M)'!$BS252)","v":30643.667158382174},{"$f":"IF('[2]FISCAL(M)'!$AZ252=\"\",\"\",'[2]FISCAL(M)'!$AZ252)","v":71367.241064408416},{"$f":"IF('[2]FISCAL(M)'!$BJ252=\"\",\"\",'[2]FISCAL(M)'!$BJ252)","v":30581.921535156245},{"$f":"IF('[2]FISCAL(M)'!$BT252=\"\",\"\",'[2]FISCAL(M)'!$BT252)","v":40777.736786542169},{"$f":"IF('[3]MONE(M)'!$AO252=\"\",\"\",'[3]MONE(M)'!$AO252)","v":8604176.8285778258},{"$f":"IF('[4]MONE(M)'!$AO252=\"\",\"\",'[4]MONE(M)'!$AO252)","v":8632.6703606643932},{"$f":"IF('[5]MONE(M)'!$AO252=\"\",\"\",'[5]MONE(M)'!$AO252)","v":81799.399276366516},{"$f":"+'[1]MONE(M)'!$AO252","v":137757.22599950628},{"$f":"IF('[6]MONE(M)'!$AO252=\"\",\"\",'[6]MONE(M)'!$AO252)","v":41876.898141370002},{"$f":"IF('[7]MONE(M)'!$AO252=\"\",\"\",'[7]MONE(M)'!$AO252)","v":373254.36855220998},{"$f":"IF('[8]MONE(M)'!$AO252=\"\",\"\",'[8]MONE(M)'!$AO252)","v":20202.428194990003},1.8847691291064006,-4.9806637359641197,-1.785619035943975,2.0130763277740327,-7.8151813763154498,15.459624810257754,2.5564165107037518,{"$f":"IF('[2]FISCAL(M)'!$K252=\"\",\"\",'[2]FISCAL(M)'!$K252)","v":-1078.3968086462139},{"$f":"+'[2]REAL(A)'!$AO$30","v":176102.1145381197},-0.6123701645915105,{"$f":"IF('[2]FISCAL(M)'!$L252=\"\",\"\",'[2]FISCAL(M)'!$L252)","v":-1341.742072706214},{"$f":"+'[2]REAL(A)'!$AP$30","v":205542.40353811969},-0.65278115347978594,75717.8661229688,{"$f":"'[2]Gráfico REM'!BG246","v":16010.650084149313},{"$f":"'[2]Gráfico REM'!BH246","v":55015.771646477762},{"$f":"'[2]Gráfico REM'!BI246","v":4691.4443923417311},8.3357158203024575,30.174282738459123,3.956895180199016,0.44269190548738013,110975.1347119188,{"$f":"'[2]Gráfico REM'!BK246","v":17054.700296289313},{"$f":"'[2]Gráfico REM'!BL246","v":75218.199841467766},{"$f":"'[2]Gráfico REM'!BM246","v":18702.234574161725},5.6491104137416315,31.390396099714369,3.5770053671194901,-3.797603031286334]
[2010,"abril","2010-abril",{"$f":"IF('[2]REAL IPC(M)'!$AL253=\"\",\"\",+'[2]REAL IPC(M)'!$AL253)","v":4.8283458784652122},{"$f":"IF('[2]REAL IPC(M)'!$BE253=\"\",\"\",+'[2]REAL IPC(M)'!$BE253)","v":5.2346509464525015},{"$f":"IF('[2]REAL IPC(M)'!$AM253=\"\",\"\",+'[2]REAL IPC(M)'!$AM253)","v":4.5847115031238506},{"$f":"IF('[2]REAL IPC(M)'!$BI253=\"\",\"\",+'[2]REAL IPC(M)'!$BI253)","v":5.1098332332356611},{"$f":"IF('[2]REAL IMAE(M)'!BJ253=\"\",\"\",'[2]REAL IMAE(M)'!BJ253)","v":5.4474011105588138},{"$f":"IF('[2]REAL IMAE(M)'!BK253=\"\",\"\",'[2]REAL IMAE(M)'!BK253)","v":2.9396260817430742},{"$f":"IF('[2]REAL IMAE(M)'!BN253=\"\",\"\",'[2]REAL IMAE(M)'!BN253)","v":5.7948692481214481},{"$f":"IF('[2]REAL IMAE(M)'!BO253=\"\",\"\",'[2]REAL IMAE(M)'!BO253)","v":3.690088462212282},{"$f":"IF('[2]EXT RIN(M)'!$K253=\"\",\"\",'[2]EXT RIN(M)'!$K253)","v":18370.5543492666},"",{"$f":"IF('[2]EXT RIN(M)'!$L253=\"\",\"\",'[2]EXT RIN(M)'!$L253)","v":21093.066739956601},"",{"$f":"IF('[2]MONE(M)CARD'!EG253=\"\",\"\",'[2]MONE(M)CARD'!EG253)","v":16387.767153311677},{"$f":"IF('[2]MONE(M)CARD'!EK253=\"\",\"\",'[2]MONE(M)CARD'!EK253)","v":27424.599199518965},{"$f":"IF('[2]MONE(M)CARD'!EP253=\"\",\"\",'[2]MONE(M)CARD'!EP253)","v":15355.898187170438},{"$f":"IF('[2]MONE(M)CARD'!ES253=\"\",\"\",'[2]MONE(M)CARD'!ES253)","v":18.39495361437795},{"$f":"IF('[2]MONE(M)CARD'!EV253=\"\",\"\",'[2]MONE(M)CARD'!EV253)","v":8.995813359365501},{"$f":"IF('[2]MONE(M)CARD'!EZ253=\"\",\"\",'[2]MONE(M)CARD'!EZ253)","v":9.7547438549606689},{"$f":"IF('[2]MONE(M)CAPARD'!FC253=\"\",\"\",'[2]MONE(M)CAPARD'!FC253)","v":20891.204761381676},{"$f":"IF('[2]MONE(M)CAPARD'!FG253=\"\",\"\",'[2]MONE(M)CAPARD'!FG253)","v":45511.570679268967},{"$f":"IF('[2]MONE(M)CAPARD'!FL253=\"\",\"\",'[2]MONE(M)CAPARD'!FL253)","v":15355.898187170445},{"$f":"IF('[2]MONE(M)CAPARD'!FO253=\"\",\"\",'[2]MONE(M)CAPARD'!FO253)","v":19.559222948932909},{"$f":"IF('[2]MONE(M)CAPARD'!FR253=\"\",\"\",'[2]MONE(M)CAPARD'!FR253)","v":10.487998505677098},{"$f":"IF('[2]MONE(M)CAPARD'!FV253=\"\",\"\",'[2]MONE(M)CAPARD'!FV253)","v":10.765064986192098},{"$f":"IF('[2]MONE(M)CARD'!FV253=\"\",\"\",'[2]MONE(M)CARD'!FV253)","v":518.12839233724537},{"$f":"IF('[2]MONE(M)CARD'!GD253=\"\",\"\",'[2]MONE(M)CARD'!GD253)","v":166.50111861433285},{"$f":"IF('[2]MONE(M)CARD'!GE253=\"\",\"\",'[2]MONE(M)CARD'!GE253)","v":4323.8817158598267},22.138688901471305,{"$f":"IF('[9]II.2.Balance OSD-Activos'!J111=\"\",\"\",'[9]II.2.Balance OSD-Activos'!J111)","v":21.054045594575655},{"$f":"IF('[9]II.2.Balance OSD-Activos'!N111=\"\",\"\",'[9]II.2.Balance OSD-Activos'!N111)","v":166.67974048403036},{"$f":"IF('[9]II.2.Balance OSD-Activos'!R111=\"\",\"\",'[9]II.2.Balance OSD-Activos'!R111)","v":20232.787485362263},{"$f":"IF('[9]II.2.Balance OSD-Activos'!S111=\"\",\"\",'[9]II.2.Balance OSD-Activos'!S111)","v":23181.075263812454},20253.841530956837,43601.596535253324,-1.4492992401776705,5.8027691688345984,-4.2106812707478287,5.8108715432100944,5.7369477154646242,5.7255285162805425,1.3433017847937601,{"$f":"IF('[2]MONE(M)CAPARD'!GS253=\"\",\"\",'[2]MONE(M)CAPARD'!GS253)","v":7125.2283907615192},{"$f":"IF('[2]MONE(M)CARD'!HA253=\"\",\"\",'[2]MONE(M)CAPARD'!HA253)","v":4840.6851839098272},{"$f":"IF('[2]MONE(M)CAPARD'!HB253=\"\",\"\",'[2]MONE(M)CAPARD'!HB253)","v":2284.543206851692},"n.d.",{"$f":"IF('[10]II.2.Balance OSD-Activos'!J111=\"\",\"\",'[10]II.2.Balance OSD-Activos'!J111)","v":320.65715433457575},{"$f":"IF('[10]II.2.Balance OSD-Activos'!N111=\"\",\"\",'[10]II.2.Balance OSD-Activos'!N111)","v":432.38892618403037},{"$f":"IF('[10]II.2.Balance OSD-Activos'!R111=\"\",\"\",'[10]II.2.Balance OSD-Activos'!R111)","v":30312.402121522264},{"$f":"IF('[10]II.2.Balance OSD-Activos'!S111=\"\",\"\",'[10]II.2.Balance OSD-Activos'!S111)","v":32698.018477342452},30633.059275856838,63763.466679383317,-0.30410970790095693,3.4075447164572115,-26.442987227304513,3.4482859484657569,6.2494623208503741,4.5539079386716974,0.85259153899528428,{"$f":"IF('[2]MONE(M)CAPARD'!AS253=\"\",\"\",'[2]MONE(M)CAPARD'!AS253)","v":9},{"$f":"IF('[2]MONE(M)CAPARD'!AT253=\"\",\"\",'[2]MONE(M)CAPARD'!AT253)","v":"n.a."},{"$f":"IF('[2]MONE(M)CAPARD'!AU253=\"\",\"\",'[2]MONE(M)CAPARD'!AU253)","v":4.5},{"$f":"IF('[2]MONE(M)CAPARD'!AV253=\"\",\"\",'[2]MONE(M)CAPARD'!AV253)","v":4.5},{"$f":"IF('[2]MONE(M)CAPARD'!AW253=\"\",\"\",'[2]MONE(M)CAPARD'!AW253)","v":"n.a."},{"$f":"IF('[2]MONE(M)CAPARD'!AX253=\"\",\"\",'[2]MONE(M)CAPARD'!AX253)","v":4},{"$f":"IF('[2]MONE(M)CAPARD'!AY253=\"\",\"\",'[2]MONE(M)CAPARD'!AY253)","v":"n.a."},{"$f":"IF('[2]FISCAL(M)'!$K253=\"\",\"\",'[2]FISCAL(M)'!$K253)","v":-1197.2662948140792},{"$f":"IF('[2]FISCAL(M)'!$L253=\"\",\"\",'[2]FISCAL(M)'!$L253)","v":-1561.9390059740792},{"$f":"IF('[2]FISCAL(M)'!$AY253=\"\",\"\",'[2]FISCAL(M)'!$AY253)","v":"n.d."},{"$f":"IF('[2]FISCAL(M)'!$BI253=\"\",\"\",'[2]FISCAL(M)'!$BI253)","v":"n.d."},{"$f":"IF('[2]FISCAL(M)'!$BS253=\"\",\"\",'[2]FISCAL(M)'!$BS253)","v":"n.d."},{"$f":"IF('[2]FISCAL(M)'!$AZ253=\"\",\"\",'[2]FISCAL(M)'!$AZ253)","v":"n.d."},{"$f":"IF('[2]FISCAL(M)'!$BJ253=\"\",\"\",'[2]FISCAL(M)'!$BJ253)","v":"n.d."},{"$f":"IF('[2]FISCAL(M)'!$BT253=\"\",\"\",'[2]FISCAL(M)'!$BT253)","v":"n.d."},{"$f":"IF('[3]MONE(M)'!$AO253=\"\",\"\",'[3]MONE(M)'!$AO253)","v":8504879.9075303189},{"$f":"IF('[4]MONE(M)'!$AO253=\"\",\"\",'[4]MONE(M)'!$AO253)","v":8635.7018073201325},{"$f":"IF('[5]MONE(M)'!$AO253=\"\",\"\",'[5]MONE(M)'!$AO253)","v":81513.342282139725},{"$f":"+'[1]MONE(M)'!$AO253","v":138455.71703522481},{"$f":"IF('[6]MONE(M)'!$AO253=\"\",\"\",'[6]MONE(M)'!$AO253)","v":41490.517651009999},{"$f":"IF('[7]MONE(M)'!$AO253=\"\",\"\",'[7]MONE(M)'!$AO253)","v":376748.87770019},{"$f":"IF('[8]MONE(M)'!$AO253=\"\",\"\",'[8]MONE(M)'!$AO253)","v":20355.594547479999},-0.70208311149574376,-4.2525353940711224,-1.5121892429780792,2.7620698446869429,-6.6670096316224221,16.027784085319663,3.1975802509886186,{"$f":"IF('[2]FISCAL(M)'!$K253=\"\",\"\",'[2]FISCAL(M)'!$K253)","v":-1197.2662948140792},{"$f":"+'[2]REAL(A)'!$AO$30","v":176102.1145381197},-0.67987048193842936,{"$f":"IF('[2]FISCAL(M)'!$L253=\"\",\"\",'[2]FISCAL(M)'!$L253)","v":-1561.9390059740792},{"$f":"+'[2]REAL(A)'!$AP$30","v":205542.40353811969},-0.7599108403363608,76388.321099575056,{"$f":"'[2]Gráfico REM'!BG247","v":16406.517050290848},{"$f":"'[2]Gráfico REM'!BH247","v":55188.414421197893},{"$f":"'[2]Gráfico REM'!BI247","v":4793.3896280863191},9.4113070669281882,30.812741247160822,4.7673370778340551,4.2388134422245871,111729.25882883505,{"$f":"'[2]Gráfico REM'!BK247","v":17445.429507540848},{"$f":"'[2]Gráfico REM'!BL247","v":75544.008968677896},{"$f":"'[2]Gráfico REM'!BM247","v":18739.820352616312},6.4316610193585699,31.406074728480561,4.3396795428138457,-2.8999743968351588]
[2010,"mayo ","2010-mayo ",{"$f":"IF('[2]REAL IPC(M)'!$AL254=\"\",\"\",+'[2]REAL IPC(M)'!$AL254)","v":4.8702192057231919},{"$f":"IF('[2]REAL IPC(M)'!$BE254=\"\",\"\",+'[2]REAL IPC(M)'!$BE254)","v":5.2092289910556699},{"$f":"IF('[2]REAL IPC(M)'!$AM254=\"\",\"\",+'[2]REAL IPC(M)'!$AM254)","v":4.6840558412931665},{"$f":"IF('[2]REAL IPC(M)'!$BI254=\"\",\"\",+'[2]REAL IPC(M)'!$BI254)","v":5.0923426881420708},{"$f":"IF('[2]REAL IMAE(M)'!BJ254=\"\",\"\",'[2]REAL IMAE(M)'!BJ254)","v":5.16489049784703},{"$f":"IF('[2]REAL IMAE(M)'!BK254=\"\",\"\",'[2]REAL IMAE(M)'!BK254)","v":3.0285624733054073},{"$f":"IF('[2]REAL IMAE(M)'!BN254=\"\",\"\",'[2]REAL IMAE(M)'!BN254)","v":5.4788702558514757},{"$f":"IF('[2]REAL IMAE(M)'!BO254=\"\",\"\",'[2]REAL IMAE(M)'!BO254)","v":3.7935951095380283},{"$f":"IF('[2]EXT RIN(M)'!$K254=\"\",\"\",'[2]EXT RIN(M)'!$K254)","v":18531.941329973393},"",{"$f":"IF('[2]EXT RIN(M)'!$L254=\"\",\"\",'[2]EXT RIN(M)'!$L254)","v":21283.236425073392},"",{"$f":"IF('[2]MONE(M)CARD'!EG254=\"\",\"\",'[2]MONE(M)CARD'!EG254)","v":16203.64051541049},{"$f":"IF('[2]MONE(M)CARD'!EK254=\"\",\"\",'[2]MONE(M)CARD'!EK254)","v":27379.141749002923},{"$f":"IF('[2]MONE(M)CARD'!EP254=\"\",\"\",'[2]MONE(M)CARD'!EP254)","v":15591.936530665269},{"$f":"IF('[2]MONE(M)CARD'!ES254=\"\",\"\",'[2]MONE(M)CARD'!ES254)","v":16.409921929721307},{"$f":"IF('[2]MONE(M)CARD'!EV254=\"\",\"\",'[2]MONE(M)CARD'!EV254)","v":7.9761960987761338},{"$f":"IF('[2]MONE(M)CARD'!EZ254=\"\",\"\",'[2]MONE(M)CARD'!EZ254)","v":8.6470986987308152},{"$f":"IF('[2]MONE(M)CAPARD'!FC254=\"\",\"\",'[2]MONE(M)CAPARD'!FC254)","v":20699.452594100487},{"$f":"IF('[2]MONE(M)CAPARD'!FG254=\"\",\"\",'[2]MONE(M)CAPARD'!FG254)","v":45522.768430542928},{"$f":"IF('[2]MONE(M)CAPARD'!FL254=\"\",\"\",'[2]MONE(M)CAPARD'!FL254)","v":15591.936530665276},{"$f":"IF('[2]MONE(M)CAPARD'!FO254=\"\",\"\",'[2]MONE(M)CAPARD'!FO254)","v":16.643989352519007},{"$f":"IF('[2]MONE(M)CAPARD'!FR254=\"\",\"\",'[2]MONE(M)CAPARD'!FR254)","v":9.2895406292727412},{"$f":"IF('[2]MONE(M)CAPARD'!FV254=\"\",\"\",'[2]MONE(M)CAPARD'!FV254)","v":9.5307920804054156},{"$f":"IF('[2]MONE(M)CARD'!FV254=\"\",\"\",'[2]MONE(M)CARD'!FV254)","v":563.68359072144676},{"$f":"IF('[2]MONE(M)CARD'!GD254=\"\",\"\",'[2]MONE(M)CARD'!GD254)","v":70.19543604001997},{"$f":"IF('[2]MONE(M)CARD'!GE254=\"\",\"\",'[2]MONE(M)CARD'!GE254)","v":3946.4363991685714},3.3912690581173521,{"$f":"IF('[9]II.2.Balance OSD-Activos'!J112=\"\",\"\",'[9]II.2.Balance OSD-Activos'!J112)","v":15.001852385635482},{"$f":"IF('[9]II.2.Balance OSD-Activos'!N112=\"\",\"\",'[9]II.2.Balance OSD-Activos'!N112)","v":170.97991747222864},{"$f":"IF('[9]II.2.Balance OSD-Activos'!R112=\"\",\"\",'[9]II.2.Balance OSD-Activos'!R112)","v":20137.92773773841},{"$f":"IF('[9]II.2.Balance OSD-Activos'!S112=\"\",\"\",'[9]II.2.Balance OSD-Activos'!S112)","v":22972.190163284846},20152.929590124044,43296.099670881114,-2.6628292196176795,5.2043138564748181,-3.3303647443734485,5.2106485868872676,5.2792884936537998,5.2073861110375486,-0.51814240524299393,{"$f":"IF('[2]MONE(M)CAPARD'!GS254=\"\",\"\",'[2]MONE(M)CAPARD'!GS254)","v":7035.0774862558319},{"$f":"IF('[2]MONE(M)CARD'!HA254=\"\",\"\",'[2]MONE(M)CAPARD'!HA254)","v":4469.4827882685704},{"$f":"IF('[2]MONE(M)CAPARD'!HB254=\"\",\"\",'[2]MONE(M)CAPARD'!HB254)","v":2565.5946979872615},"n.d.",{"$f":"IF('[10]II.2.Balance OSD-Activos'!J112=\"\",\"\",'[10]II.2.Balance OSD-Activos'!J112)","v":320.57118243563542},{"$f":"IF('[10]II.2.Balance OSD-Activos'!N112=\"\",\"\",'[10]II.2.Balance OSD-Activos'!N112)","v":430.1793699922286},{"$f":"IF('[10]II.2.Balance OSD-Activos'!R112=\"\",\"\",'[10]II.2.Balance OSD-Activos'!R112)","v":30411.150391738411},{"$f":"IF('[10]II.2.Balance OSD-Activos'!S112=\"\",\"\",'[10]II.2.Balance OSD-Activos'!S112)","v":32605.741405074841},30731.721574174047,63767.642349241112,-3.3403943178883289,3.6761063930486726,-29.819425228341267,3.7554986789785749,6.0665074258612561,4.5442228199895629,-9.6851186821345081E-3,{"$f":"IF('[2]MONE(M)CAPARD'!AS254=\"\",\"\",'[2]MONE(M)CAPARD'!AS254)","v":9},{"$f":"IF('[2]MONE(M)CAPARD'!AT254=\"\",\"\",'[2]MONE(M)CAPARD'!AT254)","v":"n.a."},{"$f":"IF('[2]MONE(M)CAPARD'!AU254=\"\",\"\",'[2]MONE(M)CAPARD'!AU254)","v":4.5},{"$f":"IF('[2]MONE(M)CAPARD'!AV254=\"\",\"\",'[2]MONE(M)CAPARD'!AV254)","v":4.5},{"$f":"IF('[2]MONE(M)CAPARD'!AW254=\"\",\"\",'[2]MONE(M)CAPARD'!AW254)","v":"n.a."},{"$f":"IF('[2]MONE(M)CAPARD'!AX254=\"\",\"\",'[2]MONE(M)CAPARD'!AX254)","v":4},{"$f":"IF('[2]MONE(M)CAPARD'!AY254=\"\",\"\",'[2]MONE(M)CAPARD'!AY254)","v":"n.a."},{"$f":"IF('[2]FISCAL(M)'!$K254=\"\",\"\",'[2]FISCAL(M)'!$K254)","v":-1857.8387441436053},{"$f":"IF('[2]FISCAL(M)'!$L254=\"\",\"\",'[2]FISCAL(M)'!$L254)","v":-2277.9941046936055},{"$f":"IF('[2]FISCAL(M)'!$AY254=\"\",\"\",'[2]FISCAL(M)'!$AY254)","v":"n.d."},{"$f":"IF('[2]FISCAL(M)'!$BI254=\"\",\"\",'[2]FISCAL(M)'!$BI254)","v":"n.d."},{"$f":"IF('[2]FISCAL(M)'!$BS254=\"\",\"\",'[2]FISCAL(M)'!$BS254)","v":"n.d."},{"$f":"IF('[2]FISCAL(M)'!$AZ254=\"\",\"\",'[2]FISCAL(M)'!$AZ254)","v":"n.d."},{"$f":"IF('[2]FISCAL(M)'!$BJ254=\"\",\"\",'[2]FISCAL(M)'!$BJ254)","v":"n.d."},{"$f":"IF('[2]FISCAL(M)'!$BT254=\"\",\"\",'[2]FISCAL(M)'!$BT254)","v":"n.d."},{"$f":"IF('[3]MONE(M)'!$AO254=\"\",\"\",'[3]MONE(M)'!$AO254)","v":8825589.1578562409},{"$f":"IF('[4]MONE(M)'!$AO254=\"\",\"\",'[4]MONE(M)'!$AO254)","v":8571.6514233403068},{"$f":"IF('[5]MONE(M)'!$AO254=\"\",\"\",'[5]MONE(M)'!$AO254)","v":81267.267311881267},{"$f":"+'[1]MONE(M)'!$AO254","v":138363.11244329557},{"$f":"IF('[6]MONE(M)'!$AO254=\"\",\"\",'[6]MONE(M)'!$AO254)","v":41287.002857567495},{"$f":"IF('[7]MONE(M)'!$AO254=\"\",\"\",'[7]MONE(M)'!$AO254)","v":382818.36672536994},{"$f":"IF('[8]MONE(M)'!$AO254=\"\",\"\",'[8]MONE(M)'!$AO254)","v":20682.085741309998},2.210087298394714,-3.7511532452851104,-1.9025357703262857,2.8279015195042723,-6.4562158384815156,15.978112131633093,4.4699929453112075,{"$f":"IF('[2]FISCAL(M)'!$K254=\"\",\"\",'[2]FISCAL(M)'!$K254)","v":-1857.8387441436053},{"$f":"+'[2]REAL(A)'!$AO$30","v":176102.1145381197},-1.0549781012092565,{"$f":"IF('[2]FISCAL(M)'!$L254=\"\",\"\",'[2]FISCAL(M)'!$L254)","v":-2277.9941046936055},{"$f":"+'[2]REAL(A)'!$AP$30","v":205542.40353811969},-1.1082842593456055,76267.949608210169,{"$f":"'[2]Gráfico REM'!BG248","v":16534.944542697143},{"$f":"'[2]Gráfico REM'!BH248","v":54913.163822889022},{"$f":"'[2]Gráfico REM'!BI248","v":4819.841242623992},8.6732611072764865,27.645713746367349,4.2240715949150465,6.1735093416793507,111763.04984372016,{"$f":"'[2]Gráfico REM'!BK248","v":17681.652615237144},{"$f":"'[2]Gráfico REM'!BL248","v":75595.249564199024},{"$f":"'[2]Gráfico REM'!BM248","v":18486.147664283992},6.0628101364562204,28.730141477695305,4.2912380336022515,-3.4877736687289329]
[2010,"junio ","2010-junio ",{"$f":"IF('[2]REAL IPC(M)'!$AL255=\"\",\"\",+'[2]REAL IPC(M)'!$AL255)","v":4.4025157232704615},{"$f":"IF('[2]REAL IPC(M)'!$BE255=\"\",\"\",+'[2]REAL IPC(M)'!$BE255)","v":5.189778370057474},{"$f":"IF('[2]REAL IPC(M)'!$AM255=\"\",\"\",+'[2]REAL IPC(M)'!$AM255)","v":4.2263806481058985},{"$f":"IF('[2]REAL IPC(M)'!$BI255=\"\",\"\",+'[2]REAL IPC(M)'!$BI255)","v":5.0814725771151981},{"$f":"IF('[2]REAL IMAE(M)'!BJ255=\"\",\"\",'[2]REAL IMAE(M)'!BJ255)","v":4.8896851570800148},{"$f":"IF('[2]REAL IMAE(M)'!BK255=\"\",\"\",'[2]REAL IMAE(M)'!BK255)","v":3.114257439128254},{"$f":"IF('[2]REAL IMAE(M)'!BN255=\"\",\"\",'[2]REAL IMAE(M)'!BN255)","v":5.0653948510753999},{"$f":"IF('[2]REAL IMAE(M)'!BO255=\"\",\"\",'[2]REAL IMAE(M)'!BO255)","v":3.8947126655272335},{"$f":"IF('[2]EXT RIN(M)'!$K255=\"\",\"\",'[2]EXT RIN(M)'!$K255)","v":18724.881527917354},"",{"$f":"IF('[2]EXT RIN(M)'!$L255=\"\",\"\",'[2]EXT RIN(M)'!$L255)","v":21254.379828057354},"",{"$f":"IF('[2]MONE(M)CARD'!EG255=\"\",\"\",'[2]MONE(M)CARD'!EG255)","v":15914.987484030116},{"$f":"IF('[2]MONE(M)CARD'!EK255=\"\",\"\",'[2]MONE(M)CARD'!EK255)","v":27665.387090917011},{"$f":"IF('[2]MONE(M)CARD'!EP255=\"\",\"\",'[2]MONE(M)CARD'!EP255)","v":15842.717957496563},{"$f":"IF('[2]MONE(M)CARD'!ES255=\"\",\"\",'[2]MONE(M)CARD'!ES255)","v":15.1572029779103},{"$f":"IF('[2]MONE(M)CARD'!EV255=\"\",\"\",'[2]MONE(M)CARD'!EV255)","v":7.9336858381680475},{"$f":"IF('[2]MONE(M)CARD'!EZ255=\"\",\"\",'[2]MONE(M)CARD'!EZ255)","v":9.0234177958416808},{"$f":"IF('[2]MONE(M)CAPARD'!FC255=\"\",\"\",'[2]MONE(M)CAPARD'!FC255)","v":20386.315831800115},{"$f":"IF('[2]MONE(M)CAPARD'!FG255=\"\",\"\",'[2]MONE(M)CAPARD'!FG255)","v":45838.041383737022},{"$f":"IF('[2]MONE(M)CAPARD'!FL255=\"\",\"\",'[2]MONE(M)CAPARD'!FL255)","v":15842.717957496556},{"$f":"IF('[2]MONE(M)CAPARD'!FO255=\"\",\"\",'[2]MONE(M)CAPARD'!FO255)","v":14.815056564166419},{"$f":"IF('[2]MONE(M)CAPARD'!FR255=\"\",\"\",'[2]MONE(M)CAPARD'!FR255)","v":8.7954415273676858},{"$f":"IF('[2]MONE(M)CAPARD'!FV255=\"\",\"\",'[2]MONE(M)CAPARD'!FV255)","v":9.425067066598448},{"$f":"IF('[2]MONE(M)CARD'!FV255=\"\",\"\",'[2]MONE(M)CARD'!FV255)","v":604.32949630100245},{"$f":"IF('[2]MONE(M)CARD'!GD255=\"\",\"\",'[2]MONE(M)CARD'!GD255)","v":151.19695238357519},{"$f":"IF('[2]MONE(M)CARD'!GE255=\"\",\"\",'[2]MONE(M)CARD'!GE255)","v":3945.6762320386183},10.3602957527273,{"$f":"IF('[9]II.2.Balance OSD-Activos'!J113=\"\",\"\",'[9]II.2.Balance OSD-Activos'!J113)","v":12.47726442072884},{"$f":"IF('[9]II.2.Balance OSD-Activos'!N113=\"\",\"\",'[9]II.2.Balance OSD-Activos'!N113)","v":175.13524211125949},{"$f":"IF('[9]II.2.Balance OSD-Activos'!R113=\"\",\"\",'[9]II.2.Balance OSD-Activos'!R113)","v":20191.039583747435},{"$f":"IF('[9]II.2.Balance OSD-Activos'!S113=\"\",\"\",'[9]II.2.Balance OSD-Activos'!S113)","v":23165.39040556096},20203.516848168165,43544.042495840382,-22.467187831637503,5.6775825240606759,-2.217779087966687,5.7012937044432332,5.9641651849760446,5.7954437928642522,0.58805768182670359,{"$f":"IF('[2]MONE(M)CAPARD'!GS255=\"\",\"\",'[2]MONE(M)CAPARD'!GS255)","v":6974.9852012867013},{"$f":"IF('[2]MONE(M)CARD'!HA255=\"\",\"\",'[2]MONE(M)CAPARD'!HA255)","v":4488.6449092386183},{"$f":"IF('[2]MONE(M)CAPARD'!HB255=\"\",\"\",'[2]MONE(M)CAPARD'!HB255)","v":2486.340292048083},"n.d.",{"$f":"IF('[10]II.2.Balance OSD-Activos'!J113=\"\",\"\",'[10]II.2.Balance OSD-Activos'!J113)","v":334.06526871072884},{"$f":"IF('[10]II.2.Balance OSD-Activos'!N113=\"\",\"\",'[10]II.2.Balance OSD-Activos'!N113)","v":435.22485610125938},{"$f":"IF('[10]II.2.Balance OSD-Activos'!R113=\"\",\"\",'[10]II.2.Balance OSD-Activos'!R113)","v":30913.937485427439},{"$f":"IF('[10]II.2.Balance OSD-Activos'!S113=\"\",\"\",'[10]II.2.Balance OSD-Activos'!S113)","v":33090.022249010959},31248.002754138168,64773.249859250383,2.7306515985919155,5.6629075222861314,-24.546914385926332,5.6955088558588329,7.3780914671294884,6.2440506535443419,1.699827833554779,{"$f":"IF('[2]MONE(M)CAPARD'!AS255=\"\",\"\",'[2]MONE(M)CAPARD'!AS255)","v":9},{"$f":"IF('[2]MONE(M)CAPARD'!AT255=\"\",\"\",'[2]MONE(M)CAPARD'!AT255)","v":"n.a."},{"$f":"IF('[2]MONE(M)CAPARD'!AU255=\"\",\"\",'[2]MONE(M)CAPARD'!AU255)","v":4.5},{"$f":"IF('[2]MONE(M)CAPARD'!AV255=\"\",\"\",'[2]MONE(M)CAPARD'!AV255)","v":4.5},{"$f":"IF('[2]MONE(M)CAPARD'!AW255=\"\",\"\",'[2]MONE(M)CAPARD'!AW255)","v":"n.a."},{"$f":"IF('[2]MONE(M)CAPARD'!AX255=\"\",\"\",'[2]MONE(M)CAPARD'!AX255)","v":4},{"$f":"IF('[2]MONE(M)CAPARD'!AY255=\"\",\"\",'[2]MONE(M)CAPARD'!AY255)","v":"n.a."},{"$f":"IF('[2]FISCAL(M)'!$K255=\"\",\"\",'[2]FISCAL(M)'!$K255)","v":-2223.9993231096955},{"$f":"IF('[2]FISCAL(M)'!$L255=\"\",\"\",'[2]FISCAL(M)'!$L255)","v":-2604.5623053696954},{"$f":"IF('[2]FISCAL(M)'!$AY255=\"\",\"\",'[2]FISCAL(M)'!$AY255)","v":61811.437324123712},{"$f":"IF('[2]FISCAL(M)'!$BI255=\"\",\"\",'[2]FISCAL(M)'!$BI255)","v":30148.457324123701},{"$f":"IF('[2]FISCAL(M)'!$BS255=\"\",\"\",'[2]FISCAL(M)'!$BS255)","v":31662.980000000003},{"$f":"IF('[2]FISCAL(M)'!$AZ255=\"\",\"\",'[2]FISCAL(M)'!$AZ255)","v":72884.719526423709},{"$f":"IF('[2]FISCAL(M)'!$BJ255=\"\",\"\",'[2]FISCAL(M)'!$BJ255)","v":31069.488056773698},{"$f":"IF('[2]FISCAL(M)'!$BT255=\"\",\"\",'[2]FISCAL(M)'!$BT255)","v":41808.564761810005},{"$f":"IF('[3]MONE(M)'!$AO255=\"\",\"\",'[3]MONE(M)'!$AO255)","v":8962306.9691753425},{"$f":"IF('[4]MONE(M)'!$AO255=\"\",\"\",'[4]MONE(M)'!$AO255)","v":8561.8993762401224},{"$f":"IF('[5]MONE(M)'!$AO255=\"\",\"\",'[5]MONE(M)'!$AO255)","v":81717.678457745904},{"$f":"+'[1]MONE(M)'!$AO255","v":137543.78105146455},{"$f":"IF('[6]MONE(M)'!$AO255=\"\",\"\",'[6]MONE(M)'!$AO255)","v":41612.398186554892},{"$f":"IF('[7]MONE(M)'!$AO255=\"\",\"\",'[7]MONE(M)'!$AO255)","v":388621.26708642003},{"$f":"IF('[8]MONE(M)'!$AO255=\"\",\"\",'[8]MONE(M)'!$AO255)","v":21453.668402280004},3.6693041549463734,-2.5213424631794989,-3.144465354728565E-2,2.3437492890659106,-4.7213197540997172,15.583381978274446,8.3730793533143277,{"$f":"IF('[2]FISCAL(M)'!$K255=\"\",\"\",'[2]FISCAL(M)'!$K255)","v":-2223.9993231096955},{"$f":"+'[2]REAL(A)'!$AO$30","v":176102.1145381197},-1.2629032473248814,{"$f":"IF('[2]FISCAL(M)'!$L255=\"\",\"\",'[2]FISCAL(M)'!$L255)","v":-2604.5623053696954},{"$f":"+'[2]REAL(A)'!$AP$30","v":205542.40353811969},-1.2671654415516533,77053.320635805067,{"$f":"'[2]Gráfico REM'!BG249","v":16788.907843625402},{"$f":"'[2]Gráfico REM'!BH249","v":55442.78658873689},{"$f":"'[2]Gráfico REM'!BI249","v":4821.6262034427782},8.7883286364392568,23.380478441989251,5.454415464425777,3.7775390027559919,112901.13456918506,{"$f":"'[2]Gráfico REM'!BK249","v":17811.906967175404},{"$f":"'[2]Gráfico REM'!BL249","v":76896.454991016886},{"$f":"'[2]Gráfico REM'!BM249","v":18192.772610992779},6.0922789622457341,23.404791545393742,6.2527744080879799,-7.2407504511874059]
[2010,"julio","2010-julio",{"$f":"IF('[2]REAL IPC(M)'!$AL256=\"\",\"\",+'[2]REAL IPC(M)'!$AL256)","v":4.5376011639538083},{"$f":"IF('[2]REAL IPC(M)'!$BE256=\"\",\"\",+'[2]REAL IPC(M)'!$BE256)","v":5.1755408704479144},{"$f":"IF('[2]REAL IPC(M)'!$AM256=\"\",\"\",+'[2]REAL IPC(M)'!$AM256)","v":4.4155134741441948},{"$f":"IF('[2]REAL IPC(M)'!$BI256=\"\",\"\",+'[2]REAL IPC(M)'!$BI256)","v":5.0763829314176778},{"$f":"IF('[2]REAL IMAE(M)'!BJ256=\"\",\"\",'[2]REAL IMAE(M)'!BJ256)","v":4.5990055325558554},{"$f":"IF('[2]REAL IMAE(M)'!BK256=\"\",\"\",'[2]REAL IMAE(M)'!BK256)","v":3.1960882826652659},{"$f":"IF('[2]REAL IMAE(M)'!BN256=\"\",\"\",'[2]REAL IMAE(M)'!BN256)","v":4.6638664929651075},{"$f":"IF('[2]REAL IMAE(M)'!BO256=\"\",\"\",'[2]REAL IMAE(M)'!BO256)","v":3.9926807681011312},{"$f":"IF('[2]EXT RIN(M)'!$K256=\"\",\"\",'[2]EXT RIN(M)'!$K256)","v":18484.677855956041},"",{"$f":"IF('[2]EXT RIN(M)'!$L256=\"\",\"\",'[2]EXT RIN(M)'!$L256)","v":20860.043667066042},"",{"$f":"IF('[2]MONE(M)CARD'!EG256=\"\",\"\",'[2]MONE(M)CARD'!EG256)","v":16282.238730588488},{"$f":"IF('[2]MONE(M)CARD'!EK256=\"\",\"\",'[2]MONE(M)CARD'!EK256)","v":27868.208145030632},{"$f":"IF('[2]MONE(M)CARD'!EP256=\"\",\"\",'[2]MONE(M)CARD'!EP256)","v":15958.245114136524},{"$f":"IF('[2]MONE(M)CARD'!ES256=\"\",\"\",'[2]MONE(M)CARD'!ES256)","v":19.326092807556972},{"$f":"IF('[2]MONE(M)CARD'!EV256=\"\",\"\",'[2]MONE(M)CARD'!EV256)","v":10.136424670973065},{"$f":"IF('[2]MONE(M)CARD'!EZ256=\"\",\"\",'[2]MONE(M)CARD'!EZ256)","v":10.529259180823969},{"$f":"IF('[2]MONE(M)CAPARD'!FC256=\"\",\"\",'[2]MONE(M)CAPARD'!FC256)","v":20791.331514708487},{"$f":"IF('[2]MONE(M)CAPARD'!FG256=\"\",\"\",'[2]MONE(M)CAPARD'!FG256)","v":46075.260189460641},{"$f":"IF('[2]MONE(M)CAPARD'!FL256=\"\",\"\",'[2]MONE(M)CAPARD'!FL256)","v":15958.245114136531},{"$f":"IF('[2]MONE(M)CAPARD'!FO256=\"\",\"\",'[2]MONE(M)CAPARD'!FO256)","v":19.696301173205843},{"$f":"IF('[2]MONE(M)CAPARD'!FR256=\"\",\"\",'[2]MONE(M)CAPARD'!FR256)","v":10.365862967474104},{"$f":"IF('[2]MONE(M)CAPARD'!FV256=\"\",\"\",'[2]MONE(M)CAPARD'!FV256)","v":10.607355619059078},{"$f":"IF('[2]MONE(M)CARD'!FV256=\"\",\"\",'[2]MONE(M)CARD'!FV256)","v":722.11856849228207},{"$f":"IF('[2]MONE(M)CARD'!GD256=\"\",\"\",'[2]MONE(M)CARD'!GD256)","v":76.843635377491424},{"$f":"IF('[2]MONE(M)CARD'!GE256=\"\",\"\",'[2]MONE(M)CARD'!GE256)","v":4083.8675642982148},12.703890368930715,{"$f":"IF('[9]II.2.Balance OSD-Activos'!J114=\"\",\"\",'[9]II.2.Balance OSD-Activos'!J114)","v":10.158630433568291},{"$f":"IF('[9]II.2.Balance OSD-Activos'!N114=\"\",\"\",'[9]II.2.Balance OSD-Activos'!N114)","v":172.74281936458584},{"$f":"IF('[9]II.2.Balance OSD-Activos'!R114=\"\",\"\",'[9]II.2.Balance OSD-Activos'!R114)","v":20347.699615736838},{"$f":"IF('[9]II.2.Balance OSD-Activos'!S114=\"\",\"\",'[9]II.2.Balance OSD-Activos'!S114)","v":23503.019445962767},20357.858246170406,44033.620511497764,-34.870903758819892,5.4249335453182557,-4.9578837377863394,5.4575083996492912,8.7027666997853803,7.1028315899702488,1.3073877971059966,{"$f":"IF('[2]MONE(M)CAPARD'!GS256=\"\",\"\",'[2]MONE(M)CAPARD'!GS256)","v":6913.7339612235455},{"$f":"IF('[2]MONE(M)CARD'!HA256=\"\",\"\",'[2]MONE(M)CAPARD'!HA256)","v":4638.4214856582157},{"$f":"IF('[2]MONE(M)CAPARD'!HB256=\"\",\"\",'[2]MONE(M)CAPARD'!HB256)","v":2275.3124755653298},"n.d.",{"$f":"IF('[10]II.2.Balance OSD-Activos'!J114=\"\",\"\",'[10]II.2.Balance OSD-Activos'!J114)","v":318.95415093356814},{"$f":"IF('[10]II.2.Balance OSD-Activos'!N114=\"\",\"\",'[10]II.2.Balance OSD-Activos'!N114)","v":433.16975154458584},{"$f":"IF('[10]II.2.Balance OSD-Activos'!R114=\"\",\"\",'[10]II.2.Balance OSD-Activos'!R114)","v":31079.496764946831},{"$f":"IF('[10]II.2.Balance OSD-Activos'!S114=\"\",\"\",'[10]II.2.Balance OSD-Activos'!S114)","v":33494.50890612277},31398.450915880399,65326.129573547754,-0.34036984229321998,5.5906457509361296,-24.142155574189651,5.6551747379706807,9.3444536960299409,7.1989512856585058,0.95490063211416398,{"$f":"IF('[2]MONE(M)CAPARD'!AS256=\"\",\"\",'[2]MONE(M)CAPARD'!AS256)","v":9},{"$f":"IF('[2]MONE(M)CAPARD'!AT256=\"\",\"\",'[2]MONE(M)CAPARD'!AT256)","v":"n.a."},{"$f":"IF('[2]MONE(M)CAPARD'!AU256=\"\",\"\",'[2]MONE(M)CAPARD'!AU256)","v":4.5},{"$f":"IF('[2]MONE(M)CAPARD'!AV256=\"\",\"\",'[2]MONE(M)CAPARD'!AV256)","v":4.5},{"$f":"IF('[2]MONE(M)CAPARD'!AW256=\"\",\"\",'[2]MONE(M)CAPARD'!AW256)","v":"n.a."},{"$f":"IF('[2]MONE(M)CAPARD'!AX256=\"\",\"\",'[2]MONE(M)CAPARD'!AX256)","v":4},{"$f":"IF('[2]MONE(M)CAPARD'!AY256=\"\",\"\",'[2]MONE(M)CAPARD'!AY256)","v":"n.a."},{"$f":"IF('[2]FISCAL(M)'!$K256=\"\",\"\",'[2]FISCAL(M)'!$K256)","v":-2603.474184426274},{"$f":"IF('[2]FISCAL(M)'!$L256=\"\",\"\",'[2]FISCAL(M)'!$L256)","v":-3250.0574843062741},{"$f":"IF('[2]FISCAL(M)'!$AY256=\"\",\"\",'[2]FISCAL(M)'!$AY256)","v":"n.d."},{"$f":"IF('[2]FISCAL(M)'!$BI256=\"\",\"\",'[2]FISCAL(M)'!$BI256)","v":"n.d."},{"$f":"IF('[2]FISCAL(M)'!$BS256=\"\",\"\",'[2]FISCAL(M)'!$BS256)","v":"n.d."},{"$f":"IF('[2]FISCAL(M)'!$AZ256=\"\",\"\",'[2]FISCAL(M)'!$AZ256)","v":"n.d."},{"$f":"IF('[2]FISCAL(M)'!$BJ256=\"\",\"\",'[2]FISCAL(M)'!$BJ256)","v":"n.d."},{"$f":"IF('[2]FISCAL(M)'!$BT256=\"\",\"\",'[2]FISCAL(M)'!$BT256)","v":"n.d."},{"$f":"IF('[3]MONE(M)'!$AO256=\"\",\"\",'[3]MONE(M)'!$AO256)","v":8895899.6035036221},{"$f":"IF('[4]MONE(M)'!$AO256=\"\",\"\",'[4]MONE(M)'!$AO256)","v":8650.0145944201795},{"$f":"IF('[5]MONE(M)'!$AO256=\"\",\"\",'[5]MONE(M)'!$AO256)","v":81583.196911323554},{"$f":"+'[1]MONE(M)'!$AO256","v":137121.14323314262},{"$f":"IF('[6]MONE(M)'!$AO256=\"\",\"\",'[6]MONE(M)'!$AO256)","v":41672.245527980005},{"$f":"IF('[7]MONE(M)'!$AO256=\"\",\"\",'[7]MONE(M)'!$AO256)","v":391413.49176891998},{"$f":"IF('[8]MONE(M)'!$AO256=\"\",\"\",'[8]MONE(M)'!$AO256)","v":21515.116758840002},1.8357025025104168,-1.5340336661330389,-0.5508553785808723,1.1347741443787696,-3.9996526908895658,15.699043023716651,8.4325793101126081,{"$f":"IF('[2]FISCAL(M)'!$K256=\"\",\"\",'[2]FISCAL(M)'!$K256)","v":-2603.474184426274},{"$f":"+'[2]REAL(A)'!$AO$30","v":176102.1145381197},-1.4783889399935153,{"$f":"IF('[2]FISCAL(M)'!$L256=\"\",\"\",'[2]FISCAL(M)'!$L256)","v":-3250.0574843062741},{"$f":"+'[2]REAL(A)'!$AP$30","v":205542.40353811969},-1.5812102166565947,78000.484592919616,{"$f":"'[2]Gráfico REM'!BG250","v":17255.109251640952},{"$f":"'[2]Gráfico REM'!BH250","v":56027.742422478063},{"$f":"'[2]Gráfico REM'!BI250","v":4717.6329188006102},10.866402534136599,27.700868957782141,6.7973758730942135,7.6708585940364671,113828.37306023962,{"$f":"'[2]Gráfico REM'!BK250","v":18146.748784400952},{"$f":"'[2]Gráfico REM'!BL250","v":77542.859181318068},{"$f":"'[2]Gráfico REM'!BM250","v":18138.765094520608},7.7565628398093445,25.633839059176932,7.2461165873071165,-3.9613264816580895]
[2010,"agosto","2010-agosto",{"$f":"IF('[2]REAL IPC(M)'!$AL257=\"\",\"\",+'[2]REAL IPC(M)'!$AL257)","v":4.2599474304359619},{"$f":"IF('[2]REAL IPC(M)'!$BE257=\"\",\"\",+'[2]REAL IPC(M)'!$BE257)","v":5.1657329619603898},{"$f":"IF('[2]REAL IPC(M)'!$AM257=\"\",\"\",+'[2]REAL IPC(M)'!$AM257)","v":4.1923774954627957},{"$f":"IF('[2]REAL IPC(M)'!$BI257=\"\",\"\",+'[2]REAL IPC(M)'!$BI257)","v":5.0761995541282356},{"$f":"IF('[2]REAL IMAE(M)'!BJ257=\"\",\"\",'[2]REAL IMAE(M)'!BJ257)","v":4.8325091737864367},{"$f":"IF('[2]REAL IMAE(M)'!BK257=\"\",\"\",'[2]REAL IMAE(M)'!BK257)","v":3.2735439197458804},{"$f":"IF('[2]REAL IMAE(M)'!BN257=\"\",\"\",'[2]REAL IMAE(M)'!BN257)","v":4.8616832704268642},{"$f":"IF('[2]REAL IMAE(M)'!BO257=\"\",\"\",'[2]REAL IMAE(M)'!BO257)","v":4.0868278553670923},{"$f":"IF('[2]EXT RIN(M)'!$K257=\"\",\"\",'[2]EXT RIN(M)'!$K257)","v":18216.653361855304},"",{"$f":"IF('[2]EXT RIN(M)'!$L257=\"\",\"\",'[2]EXT RIN(M)'!$L257)","v":20722.474156895303},"",{"$f":"IF('[2]MONE(M)CARD'!EG257=\"\",\"\",'[2]MONE(M)CARD'!EG257)","v":16191.086917166154},{"$f":"IF('[2]MONE(M)CARD'!EK257=\"\",\"\",'[2]MONE(M)CARD'!EK257)","v":27890.796905608891},{"$f":"IF('[2]MONE(M)CARD'!EP257=\"\",\"\",'[2]MONE(M)CARD'!EP257)","v":15975.043296802971},{"$f":"IF('[2]MONE(M)CARD'!ES257=\"\",\"\",'[2]MONE(M)CARD'!ES257)","v":17.720986655040893},{"$f":"IF('[2]MONE(M)CARD'!EV257=\"\",\"\",'[2]MONE(M)CARD'!EV257)","v":9.9004720595566198},{"$f":"IF('[2]MONE(M)CARD'!EZ257=\"\",\"\",'[2]MONE(M)CARD'!EZ257)","v":10.155186646862191},{"$f":"IF('[2]MONE(M)CAPARD'!FC257=\"\",\"\",'[2]MONE(M)CAPARD'!FC257)","v":20767.208746306154},{"$f":"IF('[2]MONE(M)CAPARD'!FG257=\"\",\"\",'[2]MONE(M)CAPARD'!FG257)","v":46141.887252618886},{"$f":"IF('[2]MONE(M)CAPARD'!FL257=\"\",\"\",'[2]MONE(M)CAPARD'!FL257)","v":15975.043296802964},{"$f":"IF('[2]MONE(M)CAPARD'!FO257=\"\",\"\",'[2]MONE(M)CAPARD'!FO257)","v":17.28759676860998},{"$f":"IF('[2]MONE(M)CAPARD'!FR257=\"\",\"\",'[2]MONE(M)CAPARD'!FR257)","v":9.5975604975913509},{"$f":"IF('[2]MONE(M)CAPARD'!FV257=\"\",\"\",'[2]MONE(M)CAPARD'!FV257)","v":9.8394381698926345},{"$f":"IF('[2]MONE(M)CARD'!FV257=\"\",\"\",'[2]MONE(M)CARD'!FV257)","v":732.06944145560351},{"$f":"IF('[2]MONE(M)CARD'!GD257=\"\",\"\",'[2]MONE(M)CARD'!GD257)","v":84.704705338918984},{"$f":"IF('[2]MONE(M)CARD'!GE257=\"\",\"\",'[2]MONE(M)CARD'!GE257)","v":3995.7125861730601},18.469152452450267,{"$f":"IF('[9]II.2.Balance OSD-Activos'!J115=\"\",\"\",'[9]II.2.Balance OSD-Activos'!J115)","v":11.554951358444342},{"$f":"IF('[9]II.2.Balance OSD-Activos'!N115=\"\",\"\",'[9]II.2.Balance OSD-Activos'!N115)","v":165.73551871550711},{"$f":"IF('[9]II.2.Balance OSD-Activos'!R115=\"\",\"\",'[9]II.2.Balance OSD-Activos'!R115)","v":20560.397256775101},{"$f":"IF('[9]II.2.Balance OSD-Activos'!S115=\"\",\"\",'[9]II.2.Balance OSD-Activos'!S115)","v":23743.896285586823},20571.952208133545,44481.58401243588,-34.637368487934076,8.8911369174803809,-2.763412379823027,8.9319064706204543,8.3177017935792907,{"$f":"IF(OR(AK250=\"\",AK238=\"\"),\"\",((AK250/AK238)-1)*100)","v":8.5359551049568605},1.4331235149866117,{"$f":"IF('[2]MONE(M)CAPARD'!GS257=\"\",\"\",'[2]MONE(M)CAPARD'!GS257)","v":6855.1759026167438},{"$f":"IF('[2]MONE(M)CARD'!HA257=\"\",\"\",'[2]MONE(M)CAPARD'!HA257)","v":4541.0794048730586},{"$f":"IF('[2]MONE(M)CAPARD'!HB257=\"\",\"\",'[2]MONE(M)CAPARD'!HB257)","v":2314.0964977436852},"n.d.",{"$f":"IF('[10]II.2.Balance OSD-Activos'!J115=\"\",\"\",'[10]II.2.Balance OSD-Activos'!J115)","v":330.56787330844423},{"$f":"IF('[10]II.2.Balance OSD-Activos'!N115=\"\",\"\",'[10]II.2.Balance OSD-Activos'!N115)","v":400.74764733550711},{"$f":"IF('[10]II.2.Balance OSD-Activos'!R115=\"\",\"\",'[10]II.2.Balance OSD-Activos'!R115)","v":31633.946544025101},{"$f":"IF('[10]II.2.Balance OSD-Activos'!S115=\"\",\"\",'[10]II.2.Balance OSD-Activos'!S115)","v":33782.181996526822},31964.514417333547,66147.444061195871,0.88783132556449207,9.1186851754408771,-30.188150865385165,9.2117922980793576,9.0374237009779534,8.7064992607462699,1.5075479750877641,{"$f":"IF('[2]MONE(M)CAPARD'!AS257=\"\",\"\",'[2]MONE(M)CAPARD'!AS257)","v":7.5},{"$f":"IF('[2]MONE(M)CAPARD'!AT257=\"\",\"\",'[2]MONE(M)CAPARD'!AT257)","v":"n.a."},{"$f":"IF('[2]MONE(M)CAPARD'!AU257=\"\",\"\",'[2]MONE(M)CAPARD'!AU257)","v":4.5},{"$f":"IF('[2]MONE(M)CAPARD'!AV257=\"\",\"\",'[2]MONE(M)CAPARD'!AV257)","v":4.5},{"$f":"IF('[2]MONE(M)CAPARD'!AW257=\"\",\"\",'[2]MONE(M)CAPARD'!AW257)","v":"n.a."},{"$f":"IF('[2]MONE(M)CAPARD'!AX257=\"\",\"\",'[2]MONE(M)CAPARD'!AX257)","v":4},{"$f":"IF('[2]MONE(M)CAPARD'!AY257=\"\",\"\",'[2]MONE(M)CAPARD'!AY257)","v":"n.a."},{"$f":"IF('[2]FISCAL(M)'!$K257=\"\",\"\",'[2]FISCAL(M)'!$K257)","v":-2949.8078751244375},{"$f":"IF('[2]FISCAL(M)'!$L257=\"\",\"\",'[2]FISCAL(M)'!$L257)","v":-3851.0126633544373},{"$f":"IF('[2]FISCAL(M)'!$AY257=\"\",\"\",'[2]FISCAL(M)'!$AY257)","v":"n.d."},{"$f":"IF('[2]FISCAL(M)'!$BI257=\"\",\"\",'[2]FISCAL(M)'!$BI257)","v":"n.d."},{"$f":"IF('[2]FISCAL(M)'!$BS257=\"\",\"\",'[2]FISCAL(M)'!$BS257)","v":"n.d."},{"$f":"IF('[2]FISCAL(M)'!$AZ257=\"\",\"\",'[2]FISCAL(M)'!$AZ257)","v":"n.d."},{"$f":"IF('[2]FISCAL(M)'!$BJ257=\"\",\"\",'[2]FISCAL(M)'!$BJ257)","v":"n.d."},{"$f":"IF('[2]FISCAL(M)'!$BT257=\"\",\"\",'[2]FISCAL(M)'!$BT257)","v":"n.d."},{"$f":"IF('[3]MONE(M)'!$AO257=\"\",\"\",'[3]MONE(M)'!$AO257)","v":8917607.7135359719},{"$f":"IF('[4]MONE(M)'!$AO257=\"\",\"\",'[4]MONE(M)'!$AO257)","v":8633.9216551201207},{"$f":"IF('[5]MONE(M)'!$AO257=\"\",\"\",'[5]MONE(M)'!$AO257)","v":82069.762803661753},{"$f":"+'[1]MONE(M)'!$AO257","v":136761.90719785457},{"$f":"IF('[6]MONE(M)'!$AO257=\"\",\"\",'[6]MONE(M)'!$AO257)","v":41860.746989763778},{"$f":"IF('[7]MONE(M)'!$AO257=\"\",\"\",'[7]MONE(M)'!$AO257)","v":398940.41208366997},{"$f":"IF('[8]MONE(M)'!$AO257=\"\",\"\",'[8]MONE(M)'!$AO257)","v":21921.66319078},1.7237543757345763,-1.4200035095007446,-0.24439180601587562,1.8115615022683329,-3.2249351086832245,17.855962361618573,10.245898363318439,{"$f":"IF('[2]FISCAL(M)'!$K257=\"\",\"\",'[2]FISCAL(M)'!$K257)","v":-2949.8078751244375},{"$f":"+'[2]REAL(A)'!$AO$30","v":176102.1145381197},-1.6750553409657734,{"$f":"IF('[2]FISCAL(M)'!$L257=\"\",\"\",'[2]FISCAL(M)'!$L257)","v":-3851.0126633544373},{"$f":"+'[2]REAL(A)'!$AP$30","v":205542.40353811969},-1.8735854972330477,78681.138487534248,{"$f":"'[2]Gráfico REM'!BG251","v":17312.552797574972},{"$f":"'[2]Gráfico REM'!BH251","v":56489.201603398003},{"$f":"'[2]Gráfico REM'!BI251","v":4879.3840865612674},11.945338150302497,27.814312706626598,7.9983411340380117,10.029405820788618,115613.09878783424,{"$f":"'[2]Gráfico REM'!BK251","v":18152.180939694972},{"$f":"'[2]Gráfico REM'!BL251","v":78410.864794178007},{"$f":"'[2]Gráfico REM'!BM251","v":19050.053053961263},9.9008575916000865,26.031049757268022,8.6174186805979112,2.393582543291517]
[2010,"septiembre","2010-septiembre",{"$f":"IF('[2]REAL IPC(M)'!$AL258=\"\",\"\",+'[2]REAL IPC(M)'!$AL258)","v":4.4217379509901455},{"$f":"IF('[2]REAL IPC(M)'!$BE258=\"\",\"\",+'[2]REAL IPC(M)'!$BE258)","v":5.1595404310008641},{"$f":"IF('[2]REAL IPC(M)'!$AM258=\"\",\"\",+'[2]REAL IPC(M)'!$AM258)","v":4.394310048020289},{"$f":"IF('[2]REAL IPC(M)'!$BI258=\"\",\"\",+'[2]REAL IPC(M)'!$BI258)","v":5.0800103385780337},{"$f":"IF('[2]REAL IMAE(M)'!BJ258=\"\",\"\",'[2]REAL IMAE(M)'!BJ258)","v":5.248382007278507},{"$f":"IF('[2]REAL IMAE(M)'!BK258=\"\",\"\",'[2]REAL IMAE(M)'!BK258)","v":3.3462015977524295},{"$f":"IF('[2]REAL IMAE(M)'!BN258=\"\",\"\",'[2]REAL IMAE(M)'!BN258)","v":5.4640324346488134},{"$f":"IF('[2]REAL IMAE(M)'!BO258=\"\",\"\",'[2]REAL IMAE(M)'!BO258)","v":4.1765368451338825},{"$f":"IF('[2]EXT RIN(M)'!$K258=\"\",\"\",'[2]EXT RIN(M)'!$K258)","v":18522.040248679332},"",{"$f":"IF('[2]EXT RIN(M)'!$L258=\"\",\"\",'[2]EXT RIN(M)'!$L258)","v":20831.63266923933},"",{"$f":"IF('[2]MONE(M)CARD'!EG258=\"\",\"\",'[2]MONE(M)CARD'!EG258)","v":16147.977231573768},{"$f":"IF('[2]MONE(M)CARD'!EK258=\"\",\"\",'[2]MONE(M)CARD'!EK258)","v":27726.32116856267},{"$f":"IF('[2]MONE(M)CARD'!EP258=\"\",\"\",'[2]MONE(M)CARD'!EP258)","v":15732.824102074461},{"$f":"IF('[2]MONE(M)CARD'!ES258=\"\",\"\",'[2]MONE(M)CARD'!ES258)","v":17.224584171350866},{"$f":"IF('[2]MONE(M)CARD'!EV258=\"\",\"\",'[2]MONE(M)CARD'!EV258)","v":9.5894062012018555},{"$f":"IF('[2]MONE(M)CARD'!EZ258=\"\",\"\",'[2]MONE(M)CARD'!EZ258)","v":9.2437678878209084},{"$f":"IF('[2]MONE(M)CAPARD'!FC258=\"\",\"\",'[2]MONE(M)CAPARD'!FC258)","v":20678.124740313768},{"$f":"IF('[2]MONE(M)CAPARD'!FG258=\"\",\"\",'[2]MONE(M)CAPARD'!FG258)","v":46185.351303472678},{"$f":"IF('[2]MONE(M)CAPARD'!FL258=\"\",\"\",'[2]MONE(M)CAPARD'!FL258)","v":15732.824102074461},{"$f":"IF('[2]MONE(M)CAPARD'!FO258=\"\",\"\",'[2]MONE(M)CAPARD'!FO258)","v":16.782621110047092},{"$f":"IF('[2]MONE(M)CAPARD'!FR258=\"\",\"\",'[2]MONE(M)CAPARD'!FR258)","v":9.4935181560287685},{"$f":"IF('[2]MONE(M)CAPARD'!FV258=\"\",\"\",'[2]MONE(M)CAPARD'!FV258)","v":9.262467697965926},{"$f":"IF('[2]MONE(M)CARD'!FV258=\"\",\"\",'[2]MONE(M)CARD'!FV258)","v":730.28099177364265},{"$f":"IF('[2]MONE(M)CARD'!GD258=\"\",\"\",'[2]MONE(M)CARD'!GD258)","v":178.51287246520434},{"$f":"IF('[2]MONE(M)CARD'!GE258=\"\",\"\",'[2]MONE(M)CARD'!GE258)","v":4080.8208766603716},16.196956898580673,{"$f":"IF('[9]II.2.Balance OSD-Activos'!J116=\"\",\"\",'[9]II.2.Balance OSD-Activos'!J116)","v":10.413120346398244},{"$f":"IF('[9]II.2.Balance OSD-Activos'!N116=\"\",\"\",'[9]II.2.Balance OSD-Activos'!N116)","v":164.10731861619814},{"$f":"IF('[9]II.2.Balance OSD-Activos'!R116=\"\",\"\",'[9]II.2.Balance OSD-Activos'!R116)","v":20577.856108267551},{"$f":"IF('[9]II.2.Balance OSD-Activos'!S116=\"\",\"\",'[9]II.2.Balance OSD-Activos'!S116)","v":23969.11457678051},20588.26922861395,44721.491124010659,-67.29346970732739,8.583100023553758,1.4739768778638807,8.7107222619650759,8.5865094345845669,8.5570187063708669,2.1063601414006428E-2,{"$f":"IF('[2]MONE(M)CAPARD'!GS258=\"\",\"\",'[2]MONE(M)CAPARD'!GS258)","v":6791.6583117688015},{"$f":"IF('[2]MONE(M)CARD'!HA258=\"\",\"\",'[2]MONE(M)CAPARD'!HA258)","v":4629.5340131503708},{"$f":"IF('[2]MONE(M)CAPARD'!HB258=\"\",\"\",'[2]MONE(M)CAPARD'!HB258)","v":2162.1242986184307},"n.d.",{"$f":"IF('[10]II.2.Balance OSD-Activos'!J116=\"\",\"\",'[10]II.2.Balance OSD-Activos'!J116)","v":377.82980408639821},{"$f":"IF('[10]II.2.Balance OSD-Activos'!N116=\"\",\"\",'[10]II.2.Balance OSD-Activos'!N116)","v":399.17231398619805},{"$f":"IF('[10]II.2.Balance OSD-Activos'!R116=\"\",\"\",'[10]II.2.Balance OSD-Activos'!R116)","v":31963.836477547546},{"$f":"IF('[10]II.2.Balance OSD-Activos'!S116=\"\",\"\",'[10]II.2.Balance OSD-Activos'!S116)","v":34052.619955820519},32341.666281633945,66793.458551440664,10.384073300868678,10.233829076998324,-30.00180189437177,10.232055554968422,9.1906603505033768,9.3257883945388578,0.61928913379258788,{"$f":"IF('[2]MONE(M)CAPARD'!AS258=\"\",\"\",'[2]MONE(M)CAPARD'!AS258)","v":7.5},{"$f":"IF('[2]MONE(M)CAPARD'!AT258=\"\",\"\",'[2]MONE(M)CAPARD'!AT258)","v":"n.a."},{"$f":"IF('[2]MONE(M)CAPARD'!AU258=\"\",\"\",'[2]MONE(M)CAPARD'!AU258)","v":4.5},{"$f":"IF('[2]MONE(M)CAPARD'!AV258=\"\",\"\",'[2]MONE(M)CAPARD'!AV258)","v":4.5},{"$f":"IF('[2]MONE(M)CAPARD'!AW258=\"\",\"\",'[2]MONE(M)CAPARD'!AW258)","v":"n.a."},{"$f":"IF('[2]MONE(M)CAPARD'!AX258=\"\",\"\",'[2]MONE(M)CAPARD'!AX258)","v":4},{"$f":"IF('[2]MONE(M)CAPARD'!AY258=\"\",\"\",'[2]MONE(M)CAPARD'!AY258)","v":"n.a."},{"$f":"IF('[2]FISCAL(M)'!$K258=\"\",\"\",'[2]FISCAL(M)'!$K258)","v":-3365.9103100833872},{"$f":"IF('[2]FISCAL(M)'!$L258=\"\",\"\",'[2]FISCAL(M)'!$L258)","v":-4352.2010806033868},{"$f":"IF('[2]FISCAL(M)'!$AY258=\"\",\"\",'[2]FISCAL(M)'!$AY258)","v":64099.001384015341},{"$f":"IF('[2]FISCAL(M)'!$BI258=\"\",\"\",'[2]FISCAL(M)'!$BI258)","v":31526.642430240303},{"$f":"IF('[2]FISCAL(M)'!$BS258=\"\",\"\",'[2]FISCAL(M)'!$BS258)","v":32572.358953775038},{"$f":"IF('[2]FISCAL(M)'!$AZ258=\"\",\"\",'[2]FISCAL(M)'!$AZ258)","v":75604.27069368535},{"$f":"IF('[2]FISCAL(M)'!$BJ258=\"\",\"\",'[2]FISCAL(M)'!$BJ258)","v":32856.709312140301},{"$f":"IF('[2]FISCAL(M)'!$BT258=\"\",\"\",'[2]FISCAL(M)'!$BT258)","v":42740.94511327504},{"$f":"IF('[3]MONE(M)'!$AO258=\"\",\"\",'[3]MONE(M)'!$AO258)","v":8919487.4831184968},{"$f":"IF('[4]MONE(M)'!$AO258=\"\",\"\",'[4]MONE(M)'!$AO258)","v":8607.2974200199988},{"$f":"IF('[5]MONE(M)'!$AO258=\"\",\"\",'[5]MONE(M)'!$AO258)","v":81762.583698642586},{"$f":"+'[1]MONE(M)'!$AO258","v":137364.47350852116},{"$f":"IF('[6]MONE(M)'!$AO258=\"\",\"\",'[6]MONE(M)'!$AO258)","v":42171.95173212378},{"$f":"IF('[7]MONE(M)'!$AO258=\"\",\"\",'[7]MONE(M)'!$AO258)","v":403640.76087067003},{"$f":"IF('[8]MONE(M)'!$AO258=\"\",\"\",'[8]MONE(M)'!$AO258)","v":22386.808676740002},1.008876677512327,-1.3380359155180321,-0.95469893754525081,1.7362466055631298,-2.030285639580276,17.498784569528336,12.381713473520906,{"$f":"IF('[2]FISCAL(M)'!$K258=\"\",\"\",'[2]FISCAL(M)'!$K258)","v":-3365.9103100833872},{"$f":"+'[2]REAL(A)'!$AO$30","v":176102.1145381197},-1.9113400874892903,{"$f":"IF('[2]FISCAL(M)'!$L258=\"\",\"\",'[2]FISCAL(M)'!$L258)","v":-4352.2010806033868},{"$f":"+'[2]REAL(A)'!$AP$30","v":205542.40353811969},-2.1174224907787615,78436.028413827444,{"$f":"'[2]Gráfico REM'!BG252","v":17163.490572969538},{"$f":"'[2]Gráfico REM'!BH252","v":56505.8158271469},{"$f":"'[2]Gráfico REM'!BI252","v":4766.7220137109971},11.040010786468656,24.055405134457295,7.5627413559165024,11.64866086259433,115876.87461070744,{"$f":"'[2]Gráfico REM'!BK252","v":18068.242402789539},{"$f":"'[2]Gráfico REM'!BL252","v":78892.624503886909},{"$f":"'[2]Gráfico REM'!BM252","v":18916.007704030999},9.4323093574578909,22.959606708650604,8.8876723572666627,0.93158832627449062]
[2010,"octubre","2010-octubre",{"$f":"IF('[2]REAL IPC(M)'!$AL259=\"\",\"\",+'[2]REAL IPC(M)'!$AL259)","v":5.17272562850426},{"$f":"IF('[2]REAL IPC(M)'!$BE259=\"\",\"\",+'[2]REAL IPC(M)'!$BE259)","v":5.1561122515256796},{"$f":"IF('[2]REAL IPC(M)'!$AM259=\"\",\"\",+'[2]REAL IPC(M)'!$AM259)","v":5.0552636347164226},{"$f":"IF('[2]REAL IPC(M)'!$BI259=\"\",\"\",+'[2]REAL IPC(M)'!$BI259)","v":5.0868626816830798},{"$f":"IF('[2]REAL IMAE(M)'!BJ259=\"\",\"\",'[2]REAL IMAE(M)'!BJ259)","v":5.2300193029773068},{"$f":"IF('[2]REAL IMAE(M)'!BK259=\"\",\"\",'[2]REAL IMAE(M)'!BK259)","v":3.4137393065986288},{"$f":"IF('[2]REAL IMAE(M)'!BN259=\"\",\"\",'[2]REAL IMAE(M)'!BN259)","v":5.8017607894396361},{"$f":"IF('[2]REAL IMAE(M)'!BO259=\"\",\"\",'[2]REAL IMAE(M)'!BO259)","v":4.2612520640843865},{"$f":"IF('[2]EXT RIN(M)'!$K259=\"\",\"\",'[2]EXT RIN(M)'!$K259)","v":18988.695672263915},"",{"$f":"IF('[2]EXT RIN(M)'!$L259=\"\",\"\",'[2]EXT RIN(M)'!$L259)","v":21306.404632093916},"",{"$f":"IF('[2]MONE(M)CARD'!EG259=\"\",\"\",'[2]MONE(M)CARD'!EG259)","v":16380.449819881687},{"$f":"IF('[2]MONE(M)CARD'!EK259=\"\",\"\",'[2]MONE(M)CARD'!EK259)","v":27682.088924597556},{"$f":"IF('[2]MONE(M)CARD'!EP259=\"\",\"\",'[2]MONE(M)CARD'!EP259)","v":15523.967047904713},{"$f":"IF('[2]MONE(M)CARD'!ES259=\"\",\"\",'[2]MONE(M)CARD'!ES259)","v":14.364656252446583},{"$f":"IF('[2]MONE(M)CARD'!EV259=\"\",\"\",'[2]MONE(M)CARD'!EV259)","v":7.8518904808634993},{"$f":"IF('[2]MONE(M)CARD'!EZ259=\"\",\"\",'[2]MONE(M)CARD'!EZ259)","v":7.8621097965423825},{"$f":"IF('[2]MONE(M)CAPARD'!FC259=\"\",\"\",'[2]MONE(M)CAPARD'!FC259)","v":21109.934803291686},{"$f":"IF('[2]MONE(M)CAPARD'!FG259=\"\",\"\",'[2]MONE(M)CAPARD'!FG259)","v":46250.429638137546},{"$f":"IF('[2]MONE(M)CAPARD'!FL259=\"\",\"\",'[2]MONE(M)CAPARD'!FL259)","v":15523.967047904705},{"$f":"IF('[2]MONE(M)CAPARD'!FO259=\"\",\"\",'[2]MONE(M)CAPARD'!FO259)","v":16.390102849055687},{"$f":"IF('[2]MONE(M)CAPARD'!FR259=\"\",\"\",'[2]MONE(M)CAPARD'!FR259)","v":8.8762632095761305},{"$f":"IF('[2]MONE(M)CAPARD'!FV259=\"\",\"\",'[2]MONE(M)CAPARD'!FV259)","v":8.6903834024366855},{"$f":"IF('[2]MONE(M)CARD'!FV259=\"\",\"\",'[2]MONE(M)CARD'!FV259)","v":687.70689477287658},{"$f":"IF('[2]MONE(M)CARD'!GD259=\"\",\"\",'[2]MONE(M)CARD'!GD259)","v":87.102474031208274},{"$f":"IF('[2]MONE(M)CARD'!GE259=\"\",\"\",'[2]MONE(M)CARD'!GE259)","v":3966.9361196490913},11.01478792649042,{"$f":"IF('[9]II.2.Balance OSD-Activos'!J117=\"\",\"\",'[9]II.2.Balance OSD-Activos'!J117)","v":20.140671353617343},{"$f":"IF('[9]II.2.Balance OSD-Activos'!N117=\"\",\"\",'[9]II.2.Balance OSD-Activos'!N117)","v":167.35238950861449},{"$f":"IF('[9]II.2.Balance OSD-Activos'!R117=\"\",\"\",'[9]II.2.Balance OSD-Activos'!R117)","v":21004.443693920308},{"$f":"IF('[9]II.2.Balance OSD-Activos'!S117=\"\",\"\",'[9]II.2.Balance OSD-Activos'!S117)","v":24116.882242132175},21024.584365273924,45308.818996914713,-61.164006790419869,9.4518588949976454,0.15842606500784395,9.6430253297286495,8.6226167349382266,8.9717064644767142,0.41468775810584724,{"$f":"IF('[2]MONE(M)CAPARD'!GS259=\"\",\"\",'[2]MONE(M)CAPARD'!GS259)","v":6996.1579387124712},{"$f":"IF('[2]MONE(M)CARD'!HA259=\"\",\"\",'[2]MONE(M)CAPARD'!HA259)","v":4511.8146703190914},{"$f":"IF('[2]MONE(M)CAPARD'!HB259=\"\",\"\",'[2]MONE(M)CAPARD'!HB259)","v":2484.3432683933797},"n.d.",{"$f":"IF('[10]II.2.Balance OSD-Activos'!J117=\"\",\"\",'[10]II.2.Balance OSD-Activos'!J117)","v":382.37565162361733},{"$f":"IF('[10]II.2.Balance OSD-Activos'!N117=\"\",\"\",'[10]II.2.Balance OSD-Activos'!N117)","v":405.67156140861442},{"$f":"IF('[10]II.2.Balance OSD-Activos'!R117=\"\",\"\",'[10]II.2.Balance OSD-Activos'!R117)","v":32603.803474130305},{"$f":"IF('[10]II.2.Balance OSD-Activos'!S117=\"\",\"\",'[10]II.2.Balance OSD-Activos'!S117)","v":34265.112658522172},32986.179125753923,67656.963345684708,5.6917606015794098,11.098843449593044,-28.66891240053171,11.165541638791687,9.2856887400327714,9.8090936420110566,0.48330524747219883,{"$f":"IF('[2]MONE(M)CAPARD'!AS259=\"\",\"\",'[2]MONE(M)CAPARD'!AS259)","v":6.5},{"$f":"IF('[2]MONE(M)CAPARD'!AT259=\"\",\"\",'[2]MONE(M)CAPARD'!AT259)","v":"n.a."},{"$f":"IF('[2]MONE(M)CAPARD'!AU259=\"\",\"\",'[2]MONE(M)CAPARD'!AU259)","v":4.5},{"$f":"IF('[2]MONE(M)CAPARD'!AV259=\"\",\"\",'[2]MONE(M)CAPARD'!AV259)","v":4.5},{"$f":"IF('[2]MONE(M)CAPARD'!AW259=\"\",\"\",'[2]MONE(M)CAPARD'!AW259)","v":"n.a."},{"$f":"IF('[2]MONE(M)CAPARD'!AX259=\"\",\"\",'[2]MONE(M)CAPARD'!AX259)","v":4.75},{"$f":"IF('[2]MONE(M)CAPARD'!AY259=\"\",\"\",'[2]MONE(M)CAPARD'!AY259)","v":"n.a."},{"$f":"IF('[2]FISCAL(M)'!$K259=\"\",\"\",'[2]FISCAL(M)'!$K259)","v":-3589.9862929297997},{"$f":"IF('[2]FISCAL(M)'!$L259=\"\",\"\",'[2]FISCAL(M)'!$L259)","v":-4725.9970665498004},{"$f":"IF('[2]FISCAL(M)'!$AY259=\"\",\"\",'[2]FISCAL(M)'!$AY259)","v":"n.d."},{"$f":"IF('[2]FISCAL(M)'!$BI259=\"\",\"\",'[2]FISCAL(M)'!$BI259)","v":"n.d."},{"$f":"IF('[2]FISCAL(M)'!$BS259=\"\",\"\",'[2]FISCAL(M)'!$BS259)","v":"n.d."},{"$f":"IF('[2]FISCAL(M)'!$AZ259=\"\",\"\",'[2]FISCAL(M)'!$AZ259)","v":"n.d."},{"$f":"IF('[2]FISCAL(M)'!$BJ259=\"\",\"\",'[2]FISCAL(M)'!$BJ259)","v":"n.d."},{"$f":"IF('[2]FISCAL(M)'!$BT259=\"\",\"\",'[2]FISCAL(M)'!$BT259)","v":"n.d."},{"$f":"IF('[3]MONE(M)'!$AO259=\"\",\"\",'[3]MONE(M)'!$AO259)","v":9053166.0253772754},{"$f":"IF('[4]MONE(M)'!$AO259=\"\",\"\",'[4]MONE(M)'!$AO259)","v":8599.8996099501201},{"$f":"IF('[5]MONE(M)'!$AO259=\"\",\"\",'[5]MONE(M)'!$AO259)","v":82855.912209006667},{"$f":"+'[1]MONE(M)'!$AO259","v":139100.36406568412},{"$f":"IF('[6]MONE(M)'!$AO259=\"\",\"\",'[6]MONE(M)'!$AO259)","v":42673.691291790987},{"$f":"IF('[7]MONE(M)'!$AO259=\"\",\"\",'[7]MONE(M)'!$AO259)","v":419432.36923305999},{"$f":"IF('[8]MONE(M)'!$AO259=\"\",\"\",'[8]MONE(M)'!$AO259)","v":22667.336794199997},2.0922076279112911,-0.85164261970959165,0.35824314205923358,1.9225341599114154,-0.44640047530903892,19.511237668723513,12.884656380812597,{"$f":"IF('[2]FISCAL(M)'!$K259=\"\",\"\",'[2]FISCAL(M)'!$K259)","v":-3589.9862929297997},{"$f":"+'[2]REAL(A)'!$AO$30","v":176102.1145381197},-2.0385821614610418,{"$f":"IF('[2]FISCAL(M)'!$L259=\"\",\"\",'[2]FISCAL(M)'!$L259)","v":-4725.9970665498004},{"$f":"+'[2]REAL(A)'!$AP$30","v":205542.40353811969},-2.2992808224475794,79562.658061262991,{"$f":"'[2]Gráfico REM'!BG253","v":17453.434740631637},{"$f":"'[2]Gráfico REM'!BH253","v":57300.362036782943},{"$f":"'[2]Gráfico REM'!BI253","v":4808.8612838484141},11.911797065060536,26.080643679285199,8.1212172291960538,13.027472858059475,117595.43338215299,{"$f":"'[2]Gráfico REM'!BK253","v":18432.872494441639},{"$f":"'[2]Gráfico REM'!BL253","v":79967.698830982932},{"$f":"'[2]Gráfico REM'!BM253","v":19194.862056728416},10.625841016053439,25.311287617995038,9.4301233358522687,3.6776258450693433]
[2010,"noviembre","2010-noviembre",{"$f":"IF('[2]REAL IPC(M)'!$AL260=\"\",\"\",+'[2]REAL IPC(M)'!$AL260)","v":5.3436487945303979},{"$f":"IF('[2]REAL IPC(M)'!$BE260=\"\",\"\",+'[2]REAL IPC(M)'!$BE260)","v":5.15457353502764},{"$f":"IF('[2]REAL IPC(M)'!$AM260=\"\",\"\",+'[2]REAL IPC(M)'!$AM260)","v":5.2204490127130132},{"$f":"IF('[2]REAL IPC(M)'!$BI260=\"\",\"\",+'[2]REAL IPC(M)'!$BI260)","v":5.0957783540736656},{"$f":"IF('[2]REAL IMAE(M)'!BJ260=\"\",\"\",'[2]REAL IMAE(M)'!BJ260)","v":4.9944006835986432},{"$f":"IF('[2]REAL IMAE(M)'!BK260=\"\",\"\",'[2]REAL IMAE(M)'!BK260)","v":3.4759534924003521},{"$f":"IF('[2]REAL IMAE(M)'!BN260=\"\",\"\",'[2]REAL IMAE(M)'!BN260)","v":5.6799640179060917},{"$f":"IF('[2]REAL IMAE(M)'!BO260=\"\",\"\",'[2]REAL IMAE(M)'!BO260)","v":4.3405150805674309},{"$f":"IF('[2]EXT RIN(M)'!$K260=\"\",\"\",'[2]EXT RIN(M)'!$K260)","v":19453.529677027203},"",{"$f":"IF('[2]EXT RIN(M)'!$L260=\"\",\"\",'[2]EXT RIN(M)'!$L260)","v":21878.705485017203},"",{"$f":"IF('[2]MONE(M)CARD'!EG260=\"\",\"\",'[2]MONE(M)CARD'!EG260)","v":17411.681462526627},{"$f":"IF('[2]MONE(M)CARD'!EK260=\"\",\"\",'[2]MONE(M)CARD'!EK260)","v":27451.926903595064},{"$f":"IF('[2]MONE(M)CARD'!EP260=\"\",\"\",'[2]MONE(M)CARD'!EP260)","v":15553.14569129506},{"$f":"IF('[2]MONE(M)CARD'!ES260=\"\",\"\",'[2]MONE(M)CARD'!ES260)","v":17.63401325796583},{"$f":"IF('[2]MONE(M)CARD'!EV260=\"\",\"\",'[2]MONE(M)CARD'!EV260)","v":8.1394382032043957},{"$f":"IF('[2]MONE(M)CARD'!EZ260=\"\",\"\",'[2]MONE(M)CARD'!EZ260)","v":7.8781196944525567},{"$f":"IF('[2]MONE(M)CAPARD'!FC260=\"\",\"\",'[2]MONE(M)CAPARD'!FC260)","v":22279.115636666626},{"$f":"IF('[2]MONE(M)CAPARD'!FG260=\"\",\"\",'[2]MONE(M)CAPARD'!FG260)","v":45896.127307405055},{"$f":"IF('[2]MONE(M)CAPARD'!FL260=\"\",\"\",'[2]MONE(M)CAPARD'!FL260)","v":15553.145691295067},{"$f":"IF('[2]MONE(M)CAPARD'!FO260=\"\",\"\",'[2]MONE(M)CAPARD'!FO260)","v":18.466932437905868},{"$f":"IF('[2]MONE(M)CAPARD'!FR260=\"\",\"\",'[2]MONE(M)CAPARD'!FR260)","v":8.8490721158571475},{"$f":"IF('[2]MONE(M)CAPARD'!FV260=\"\",\"\",'[2]MONE(M)CAPARD'!FV260)","v":8.5258422698389893},{"$f":"IF('[2]MONE(M)CARD'!FV260=\"\",\"\",'[2]MONE(M)CARD'!FV260)","v":724.30662679761622},{"$f":"IF('[2]MONE(M)CARD'!GD260=\"\",\"\",'[2]MONE(M)CARD'!GD260)","v":89.457704709005043},{"$f":"IF('[2]MONE(M)CARD'!GE260=\"\",\"\",'[2]MONE(M)CARD'!GE260)","v":4203.4373746562105},14.425793678667764,{"$f":"IF('[9]II.2.Balance OSD-Activos'!J118=\"\",\"\",'[9]II.2.Balance OSD-Activos'!J118)","v":20.626984265679706},{"$f":"IF('[9]II.2.Balance OSD-Activos'!N118=\"\",\"\",'[9]II.2.Balance OSD-Activos'!N118)","v":169.12838176849743},{"$f":"IF('[9]II.2.Balance OSD-Activos'!R118=\"\",\"\",'[9]II.2.Balance OSD-Activos'!R118)","v":21541.348433912139},{"$f":"IF('[9]II.2.Balance OSD-Activos'!S118=\"\",\"\",'[9]II.2.Balance OSD-Activos'!S118)","v":24367.349725826596},21561.975418177819,46098.453525772915,-61.903269260463212,10.278576412858653,0.91289895161363876,10.47901573365877,7.7389301061888016,8.8847822999957415,-8.6924164480972621E-2,{"$f":"IF('[2]MONE(M)CAPARD'!GS260=\"\",\"\",'[2]MONE(M)CAPARD'!GS260)","v":6891.6560667666599},{"$f":"IF('[2]MONE(M)CARD'!HA260=\"\",\"\",'[2]MONE(M)CAPARD'!HA260)","v":4827.3863648462093},{"$f":"IF('[2]MONE(M)CAPARD'!HB260=\"\",\"\",'[2]MONE(M)CAPARD'!HB260)","v":2064.2697019204506},"n.d.",{"$f":"IF('[10]II.2.Balance OSD-Activos'!J118=\"\",\"\",'[10]II.2.Balance OSD-Activos'!J118)","v":417.88609661567966},{"$f":"IF('[10]II.2.Balance OSD-Activos'!N118=\"\",\"\",'[10]II.2.Balance OSD-Activos'!N118)","v":374.76682460849742},{"$f":"IF('[10]II.2.Balance OSD-Activos'!R118=\"\",\"\",'[10]II.2.Balance OSD-Activos'!R118)","v":33335.563780022138},{"$f":"IF('[10]II.2.Balance OSD-Activos'!S118=\"\",\"\",'[10]II.2.Balance OSD-Activos'!S118)","v":34485.885697636601},33753.449876637816,68614.102398882911,15.199567746854935,12.582356241781012,-34.925863410958449,12.550302055700824,8.4137244450004367,10.017479298316045,0.20838565630498884,{"$f":"IF('[2]MONE(M)CAPARD'!AS260=\"\",\"\",'[2]MONE(M)CAPARD'!AS260)","v":6.5},{"$f":"IF('[2]MONE(M)CAPARD'!AT260=\"\",\"\",'[2]MONE(M)CAPARD'!AT260)","v":"n.a."},{"$f":"IF('[2]MONE(M)CAPARD'!AU260=\"\",\"\",'[2]MONE(M)CAPARD'!AU260)","v":4.5},{"$f":"IF('[2]MONE(M)CAPARD'!AV260=\"\",\"\",'[2]MONE(M)CAPARD'!AV260)","v":4.5},{"$f":"IF('[2]MONE(M)CAPARD'!AW260=\"\",\"\",'[2]MONE(M)CAPARD'!AW260)","v":"n.a."},{"$f":"IF('[2]MONE(M)CAPARD'!AX260=\"\",\"\",'[2]MONE(M)CAPARD'!AX260)","v":5},{"$f":"IF('[2]MONE(M)CAPARD'!AY260=\"\",\"\",'[2]MONE(M)CAPARD'!AY260)","v":"n.a."},{"$f":"IF('[2]FISCAL(M)'!$K260=\"\",\"\",'[2]FISCAL(M)'!$K260)","v":-4380.9046044301585},{"$f":"IF('[2]FISCAL(M)'!$L260=\"\",\"\",'[2]FISCAL(M)'!$L260)","v":-5565.7132863401584},{"$f":"IF('[2]FISCAL(M)'!$AY260=\"\",\"\",'[2]FISCAL(M)'!$AY260)","v":"n.d."},{"$f":"IF('[2]FISCAL(M)'!$BI260=\"\",\"\",'[2]FISCAL(M)'!$BI260)","v":"n.d."},{"$f":"IF('[2]FISCAL(M)'!$BS260=\"\",\"\",'[2]FISCAL(M)'!$BS260)","v":"n.d."},{"$f":"IF('[2]FISCAL(M)'!$AZ260=\"\",\"\",'[2]FISCAL(M)'!$AZ260)","v":"n.d."},{"$f":"IF('[2]FISCAL(M)'!$BJ260=\"\",\"\",'[2]FISCAL(M)'!$BJ260)","v":"n.d."},{"$f":"IF('[2]FISCAL(M)'!$BT260=\"\",\"\",'[2]FISCAL(M)'!$BT260)","v":"n.d."},{"$f":"IF('[3]MONE(M)'!$AO260=\"\",\"\",'[3]MONE(M)'!$AO260)","v":9104450.2187164761},{"$f":"IF('[4]MONE(M)'!$AO260=\"\",\"\",'[4]MONE(M)'!$AO260)","v":8676.4209678901207},{"$f":"IF('[5]MONE(M)'!$AO260=\"\",\"\",'[5]MONE(M)'!$AO260)","v":83899.16941222742},{"$f":"+'[1]MONE(M)'!$AO260","v":140672.20093789027},{"$f":"IF('[6]MONE(M)'!$AO260=\"\",\"\",'[6]MONE(M)'!$AO260)","v":43583.336453077507},{"$f":"IF('[7]MONE(M)'!$AO260=\"\",\"\",'[7]MONE(M)'!$AO260)","v":428301.67272053001},{"$f":"IF('[8]MONE(M)'!$AO260=\"\",\"\",'[8]MONE(M)'!$AO260)","v":22864.514068279997},4.3916362669841558,9.4309375401269158E-2,1.5030495807406563,2.3754598430249851,1.1142770907059285,19.991569162932365,14.017632302613414,{"$f":"IF('[2]FISCAL(M)'!$K260=\"\",\"\",'[2]FISCAL(M)'!$K260)","v":-4380.9046044301585},{"$f":"+'[2]REAL(A)'!$AO$30","v":176102.1145381197},-2.4877069851888987,{"$f":"IF('[2]FISCAL(M)'!$L260=\"\",\"\",'[2]FISCAL(M)'!$L260)","v":-5565.7132863401584},{"$f":"+'[2]REAL(A)'!$AP$30","v":205542.40353811969},-2.7078175551780714,80574.821060632123,{"$f":"'[2]Gráfico REM'!BG254","v":17561.103910662547},{"$f":"'[2]Gráfico REM'!BH254","v":58215.692027889803},{"$f":"'[2]Gráfico REM'!BI254","v":4798.0251220797663},11.516653407603727,23.266030411540186,8.3605823150671554,12.023144071765145,119047.21031840213,{"$f":"'[2]Gráfico REM'!BK254","v":18513.896395562548},{"$f":"'[2]Gráfico REM'!BL254","v":81080.206096169801},{"$f":"'[2]Gráfico REM'!BM254","v":19453.107826669766},11.194067573203959,22.305388084862553,9.8982263704766602,7.1939264084637911]
[2010,"diciembre","2010-diciembre",{"$f":"IF('[2]REAL IPC(M)'!$AL261=\"\",\"\",+'[2]REAL IPC(M)'!$AL261)","v":5.6508849160003427},{"$f":"IF('[2]REAL IPC(M)'!$BE261=\"\",\"\",+'[2]REAL IPC(M)'!$BE261)","v":5.1540592693121612},{"$f":"IF('[2]REAL IPC(M)'!$AM261=\"\",\"\",+'[2]REAL IPC(M)'!$AM261)","v":5.5740657361548873},{"$f":"IF('[2]REAL IPC(M)'!$BI261=\"\",\"\",+'[2]REAL IPC(M)'!$BI261)","v":5.1057871730441517},{"$f":"IF('[2]REAL IMAE(M)'!BJ261=\"\",\"\",'[2]REAL IMAE(M)'!BJ261)","v":4.8852761717187221},{"$f":"IF('[2]REAL IMAE(M)'!BK261=\"\",\"\",'[2]REAL IMAE(M)'!BK261)","v":3.532753041572656},{"$f":"IF('[2]REAL IMAE(M)'!BN261=\"\",\"\",'[2]REAL IMAE(M)'!BN261)","v":5.5191418937533765},{"$f":"IF('[2]REAL IMAE(M)'!BO261=\"\",\"\",'[2]REAL IMAE(M)'!BO261)","v":4.413981537337186},{"$f":"IF('[2]EXT RIN(M)'!$K261=\"\",\"\",'[2]EXT RIN(M)'!$K261)","v":21155.417328751882},21155.417328751882,{"$f":"IF('[2]EXT RIN(M)'!$L261=\"\",\"\",'[2]EXT RIN(M)'!$L261)","v":23702.040474911882},23702.040474911882,{"$f":"IF('[2]MONE(M)CARD'!EG261=\"\",\"\",'[2]MONE(M)CARD'!EG261)","v":18694.528176125335},{"$f":"IF('[2]MONE(M)CARD'!EK261=\"\",\"\",'[2]MONE(M)CARD'!EK261)","v":28186.735629490278},{"$f":"IF('[2]MONE(M)CARD'!EP261=\"\",\"\",'[2]MONE(M)CARD'!EP261)","v":15150.45294820956},{"$f":"IF('[2]MONE(M)CARD'!ES261=\"\",\"\",'[2]MONE(M)CARD'!ES261)","v":17.306216551055485},{"$f":"IF('[2]MONE(M)CARD'!EV261=\"\",\"\",'[2]MONE(M)CARD'!EV261)","v":9.9065854666884334},{"$f":"IF('[2]MONE(M)CARD'!EZ261=\"\",\"\",'[2]MONE(M)CARD'!EZ261)","v":8.525905791173539},{"$f":"IF('[2]MONE(M)CAPARD'!FC261=\"\",\"\",'[2]MONE(M)CAPARD'!FC261)","v":23924.884285505337},{"$f":"IF('[2]MONE(M)CAPARD'!FG261=\"\",\"\",'[2]MONE(M)CAPARD'!FG261)","v":47190.591995910276},{"$f":"IF('[2]MONE(M)CAPARD'!FL261=\"\",\"\",'[2]MONE(M)CAPARD'!FL261)","v":15150.452948209568},{"$f":"IF('[2]MONE(M)CAPARD'!FO261=\"\",\"\",'[2]MONE(M)CAPARD'!FO261)","v":17.6246725925036},{"$f":"IF('[2]MONE(M)CAPARD'!FR261=\"\",\"\",'[2]MONE(M)CAPARD'!FR261)","v":10.311795257171896},{"$f":"IF('[2]MONE(M)CAPARD'!FV261=\"\",\"\",'[2]MONE(M)CAPARD'!FV261)","v":9.2380510332890289},{"$f":"IF('[2]MONE(M)CARD'!FV261=\"\",\"\",'[2]MONE(M)CARD'!FV261)","v":549.84567035002715},{"$f":"IF('[2]MONE(M)CARD'!GD261=\"\",\"\",'[2]MONE(M)CARD'!GD261)","v":89.771834037013718},{"$f":"IF('[2]MONE(M)CARD'!GE261=\"\",\"\",'[2]MONE(M)CARD'!GE261)","v":3933.3923700662235},3.6041677646807324,{"$f":"IF('[9]II.2.Balance OSD-Activos'!J119=\"\",\"\",'[9]II.2.Balance OSD-Activos'!J119)","v":17.239117261993758},{"$f":"IF('[9]II.2.Balance OSD-Activos'!N119=\"\",\"\",'[9]II.2.Balance OSD-Activos'!N119)","v":180.8848302829376},{"$f":"IF('[9]II.2.Balance OSD-Activos'!R119=\"\",\"\",'[9]II.2.Balance OSD-Activos'!R119)","v":22012.748642154165},{"$f":"IF('[9]II.2.Balance OSD-Activos'!S119=\"\",\"\",'[9]II.2.Balance OSD-Activos'!S119)","v":24309.920951908269},22029.987759416159,46520.793541607367,-74.377287850180267,11.274795018329776,-0.33164365841256149,11.566866271953135,7.732708613223882,9.346601890251339,0.46181959025559749,{"$f":"IF('[2]MONE(M)CAPARD'!GS261=\"\",\"\",'[2]MONE(M)CAPARD'!GS261)","v":6861.3261104986586},{"$f":"IF('[2]MONE(M)CARD'!HA261=\"\",\"\",'[2]MONE(M)CAPARD'!HA261)","v":4511.1032663162241},{"$f":"IF('[2]MONE(M)CAPARD'!HB261=\"\",\"\",'[2]MONE(M)CAPARD'!HB261)","v":2350.2228441824345},"n.d.",{"$f":"IF('[10]II.2.Balance OSD-Activos'!J119=\"\",\"\",'[10]II.2.Balance OSD-Activos'!J119)","v":488.14498269199385},{"$f":"IF('[10]II.2.Balance OSD-Activos'!N119=\"\",\"\",'[10]II.2.Balance OSD-Activos'!N119)","v":402.1933587229376},{"$f":"IF('[10]II.2.Balance OSD-Activos'!R119=\"\",\"\",'[10]II.2.Balance OSD-Activos'!R119)","v":33537.667875824169},{"$f":"IF('[10]II.2.Balance OSD-Activos'!S119=\"\",\"\",'[10]II.2.Balance OSD-Activos'!S119)","v":34515.69112455826},34025.812858516161,68943.69734179735,37.324357878370229,13.786012366178269,-31.504019726366607,13.502839879484551,8.385802101169638,10.600613343662001,0.5831340453459557,{"$f":"IF('[2]MONE(M)CAPARD'!AS261=\"\",\"\",'[2]MONE(M)CAPARD'!AS261)","v":6.5},{"$f":"IF('[2]MONE(M)CAPARD'!AT261=\"\",\"\",'[2]MONE(M)CAPARD'!AT261)","v":"n.a."},{"$f":"IF('[2]MONE(M)CAPARD'!AU261=\"\",\"\",'[2]MONE(M)CAPARD'!AU261)","v":4.5},{"$f":"IF('[2]MONE(M)CAPARD'!AV261=\"\",\"\",'[2]MONE(M)CAPARD'!AV261)","v":4.5},{"$f":"IF('[2]MONE(M)CAPARD'!AW261=\"\",\"\",'[2]MONE(M)CAPARD'!AW261)","v":"n.a."},{"$f":"IF('[2]MONE(M)CAPARD'!AX261=\"\",\"\",'[2]MONE(M)CAPARD'!AX261)","v":5},{"$f":"IF('[2]MONE(M)CAPARD'!AY261=\"\",\"\",'[2]MONE(M)CAPARD'!AY261)","v":"n.a."},{"$f":"IF('[2]FISCAL(M)'!$K261=\"\",\"\",'[2]FISCAL(M)'!$K261)","v":-5971.153078404227},{"$f":"IF('[2]FISCAL(M)'!$L261=\"\",\"\",'[2]FISCAL(M)'!$L261)","v":-5970.9545345642264},{"$f":"IF('[2]FISCAL(M)'!$AY261=\"\",\"\",'[2]FISCAL(M)'!$AY261)","v":67116.420440396847},{"$f":"IF('[2]FISCAL(M)'!$BI261=\"\",\"\",'[2]FISCAL(M)'!$BI261)","v":32739.638756987682},{"$f":"IF('[2]FISCAL(M)'!$BS261=\"\",\"\",'[2]FISCAL(M)'!$BS261)","v":34376.781683409172},{"$f":"IF('[2]FISCAL(M)'!$AZ261=\"\",\"\",'[2]FISCAL(M)'!$AZ261)","v":78828.462275326849},{"$f":"IF('[2]FISCAL(M)'!$BJ261=\"\",\"\",'[2]FISCAL(M)'!$BJ261)","v":34013.147284697683},{"$f":"IF('[2]FISCAL(M)'!$BT261=\"\",\"\",'[2]FISCAL(M)'!$BT261)","v":44809.567902169169},{"$f":"IF('[3]MONE(M)'!$AO261=\"\",\"\",'[3]MONE(M)'!$AO261)","v":9286261.0529342201},{"$f":"IF('[4]MONE(M)'!$AO261=\"\",\"\",'[4]MONE(M)'!$AO261)","v":8726.804724640002},{"$f":"IF('[5]MONE(M)'!$AO261=\"\",\"\",'[5]MONE(M)'!$AO261)","v":84980.342242991086},{"$f":"+'[1]MONE(M)'!$AO261","v":141187.78096674022},{"$f":"IF('[6]MONE(M)'!$AO261=\"\",\"\",'[6]MONE(M)'!$AO261)","v":45388.328275109772},{"$f":"IF('[7]MONE(M)'!$AO261=\"\",\"\",'[7]MONE(M)'!$AO261)","v":434557.58259563998},{"$f":"IF('[8]MONE(M)'!$AO261=\"\",\"\",'[8]MONE(M)'!$AO261)","v":22764.798215510004},{"$f":"((BY254/BY242)-1)*100","v":4.8732915685316902},-0.33722280891428369,2.3312663598876737,2.837727702385151,5.6515140688908838,20.403388847884152,14.799033755551871,{"$f":"IF('[2]FISCAL(M)'!$K261=\"\",\"\",'[2]FISCAL(M)'!$K261)","v":-5971.153078404227},{"$f":"+'[2]REAL(A)'!$AO$30","v":176102.1145381197},-3.3907333220077205,{"$f":"IF('[2]FISCAL(M)'!$L261=\"\",\"\",'[2]FISCAL(M)'!$L261)","v":-5970.9545345642264},{"$f":"+'[2]REAL(A)'!$AP$30","v":205542.40353811969},-2.9049745608608002,81451.428373863484,{"$f":"'[2]Gráfico REM'!BG255","v":17730.354737906633},{"$f":"'[2]Gráfico REM'!BH255","v":58775.361787356116},{"$f":"'[2]Gráfico REM'!BI255","v":4945.711848600733},12.015930029490152,22.10580608475976,9.0792819515565384,14.736257043719746,119920.13084644348,{"$f":"'[2]Gráfico REM'!BK255","v":18702.103784446634},{"$f":"'[2]Gráfico REM'!BL255","v":81540.16000286612},{"$f":"'[2]Gráfico REM'!BM255","v":19677.867059130731},11.911355964290692,21.994406760700702,10.617992638801832,8.6408409531876895]
[2011,"enero","2011-enero",{"$f":"IF('[2]REAL IPC(M)'!$AL262=\"\",\"\",+'[2]REAL IPC(M)'!$AL262)","v":5.2617568766637035},{"$f":"IF('[2]REAL IPC(M)'!$BE262=\"\",\"\",+'[2]REAL IPC(M)'!$BE262)","v":5.1537361609681032},{"$f":"IF('[2]REAL IPC(M)'!$AM262=\"\",\"\",+'[2]REAL IPC(M)'!$AM262)","v":5.2144509699234787},{"$f":"IF('[2]REAL IPC(M)'!$BI262=\"\",\"\",+'[2]REAL IPC(M)'!$BI262)","v":5.1159503024421626},{"$f":"IF('[2]REAL IMAE(M)'!BJ262=\"\",\"\",'[2]REAL IMAE(M)'!BJ262)","v":4.8232971368969535},{"$f":"IF('[2]REAL IMAE(M)'!BK262=\"\",\"\",'[2]REAL IMAE(M)'!BK262)","v":3.5841419408703112},{"$f":"IF('[2]REAL IMAE(M)'!BN262=\"\",\"\",'[2]REAL IMAE(M)'!BN262)","v":5.8639439379687408},{"$f":"IF('[2]REAL IMAE(M)'!BO262=\"\",\"\",'[2]REAL IMAE(M)'!BO262)","v":4.481406376304653},{"$f":"IF('[2]EXT RIN(M)'!$K262=\"\",\"\",'[2]EXT RIN(M)'!$K262)","v":20329.666946779656},"",{"$f":"IF('[2]EXT RIN(M)'!$L262=\"\",\"\",'[2]EXT RIN(M)'!$L262)","v":23252.229599089656},"",{"$f":"IF('[2]MONE(M)CARD'!EG262=\"\",\"\",'[2]MONE(M)CARD'!EG262)","v":18341.56854084455},{"$f":"IF('[2]MONE(M)CARD'!EK262=\"\",\"\",'[2]MONE(M)CARD'!EK262)","v":28184.768053557404},{"$f":"IF('[2]MONE(M)CARD'!EP262=\"\",\"\",'[2]MONE(M)CARD'!EP262)","v":15609.087949141387},{"$f":"IF('[2]MONE(M)CARD'!ES262=\"\",\"\",'[2]MONE(M)CARD'!ES262)","v":15.705092223904572},{"$f":"IF('[2]MONE(M)CARD'!EV262=\"\",\"\",'[2]MONE(M)CARD'!EV262)","v":9.4570906061868918},{"$f":"IF('[2]MONE(M)CARD'!EZ262=\"\",\"\",'[2]MONE(M)CARD'!EZ262)","v":8.7279443535690948},{"$f":"IF('[2]MONE(M)CAPARD'!FC262=\"\",\"\",'[2]MONE(M)CAPARD'!FC262)","v":23496.431227734553},{"$f":"IF('[2]MONE(M)CAPARD'!FG262=\"\",\"\",'[2]MONE(M)CAPARD'!FG262)","v":47245.219332677407},{"$f":"IF('[2]MONE(M)CAPARD'!FL262=\"\",\"\",'[2]MONE(M)CAPARD'!FL262)","v":15609.087949141394},{"$f":"IF('[2]MONE(M)CAPARD'!FO262=\"\",\"\",'[2]MONE(M)CAPARD'!FO262)","v":15.450451945296596},{"$f":"IF('[2]MONE(M)CAPARD'!FR262=\"\",\"\",'[2]MONE(M)CAPARD'!FR262)","v":9.3605464487704904},{"$f":"IF('[2]MONE(M)CAPARD'!FV262=\"\",\"\",'[2]MONE(M)CAPARD'!FV262)","v":8.8530892829813634},{"$f":"IF('[2]MONE(M)CARD'!FV262=\"\",\"\",'[2]MONE(M)CARD'!FV262)","v":519.23291472997755},{"$f":"IF('[2]MONE(M)CARD'!GD262=\"\",\"\",'[2]MONE(M)CARD'!GD262)","v":84.027790037547788},{"$f":"IF('[2]MONE(M)CARD'!GE262=\"\",\"\",'[2]MONE(M)CARD'!GE262)","v":4133.7854220417985},14.036807794425666,{"$f":"IF('[9]II.2.Balance OSD-Activos'!J120=\"\",\"\",'[9]II.2.Balance OSD-Activos'!J120)","v":47.535044434991008},{"$f":"IF('[9]II.2.Balance OSD-Activos'!N120=\"\",\"\",'[9]II.2.Balance OSD-Activos'!N120)","v":185.44010447428363},{"$f":"IF('[9]II.2.Balance OSD-Activos'!R120=\"\",\"\",'[9]II.2.Balance OSD-Activos'!R120)","v":21959.105893999367},{"$f":"IF('[9]II.2.Balance OSD-Activos'!S120=\"\",\"\",'[9]II.2.Balance OSD-Activos'!S120)","v":24543.526163104871},22006.640938434357,46735.607206013512,7.8594452725852193,11.535594967216412,11.997573928286709,11.543824587324769,8.4825398267178507,9.9129204569783589,0.56631856672701986,{"$f":"IF('[2]MONE(M)CAPARD'!GS262=\"\",\"\",'[2]MONE(M)CAPARD'!GS262)","v":6900.8908292299793},{"$f":"IF('[2]MONE(M)CARD'!HA262=\"\",\"\",'[2]MONE(M)CAPARD'!HA262)","v":4723.2996208917984},{"$f":"IF('[2]MONE(M)CAPARD'!HB262=\"\",\"\",'[2]MONE(M)CAPARD'!HB262)","v":2177.5912083381809},"n.d.",{"$f":"IF('[10]II.2.Balance OSD-Activos'!J120=\"\",\"\",'[10]II.2.Balance OSD-Activos'!J120)","v":522.37153875499109},{"$f":"IF('[10]II.2.Balance OSD-Activos'!N120=\"\",\"\",'[10]II.2.Balance OSD-Activos'!N120)","v":404.56156388428354},{"$f":"IF('[10]II.2.Balance OSD-Activos'!R120=\"\",\"\",'[10]II.2.Balance OSD-Activos'!R120)","v":33616.775730039364},{"$f":"IF('[10]II.2.Balance OSD-Activos'!S120=\"\",\"\",'[10]II.2.Balance OSD-Activos'!S120)","v":34793.074726144863},34139.147268794353,69336.783558823503,56.65980056955577,14.793553259582449,-28.695326478423233,14.318822189503845,8.4252409574733456,11.122990841043844,0.52237749738184291,{"$f":"IF('[2]MONE(M)CAPARD'!AS262=\"\",\"\",'[2]MONE(M)CAPARD'!AS262)","v":6.5},{"$f":"IF('[2]MONE(M)CAPARD'!AT262=\"\",\"\",'[2]MONE(M)CAPARD'!AT262)","v":"n.a."},{"$f":"IF('[2]MONE(M)CAPARD'!AU262=\"\",\"\",'[2]MONE(M)CAPARD'!AU262)","v":4.5},{"$f":"IF('[2]MONE(M)CAPARD'!AV262=\"\",\"\",'[2]MONE(M)CAPARD'!AV262)","v":4.5},{"$f":"IF('[2]MONE(M)CAPARD'!AW262=\"\",\"\",'[2]MONE(M)CAPARD'!AW262)","v":"n.a."},{"$f":"IF('[2]MONE(M)CAPARD'!AX262=\"\",\"\",'[2]MONE(M)CAPARD'!AX262)","v":5},{"$f":"IF('[2]MONE(M)CAPARD'!AY262=\"\",\"\",'[2]MONE(M)CAPARD'!AY262)","v":"n.a."},{"$f":"IF('[2]FISCAL(M)'!$K262=\"\",\"\",'[2]FISCAL(M)'!$K262)","v":-117.03554032841809},{"$f":"IF('[2]FISCAL(M)'!$L262=\"\",\"\",'[2]FISCAL(M)'!$L262)","v":-176.58863572841801},{"$f":"IF('[2]FISCAL(M)'!$AY262=\"\",\"\",'[2]FISCAL(M)'!$AY262)","v":67683.017922230953},{"$f":"IF('[2]FISCAL(M)'!$BI262=\"\",\"\",'[2]FISCAL(M)'!$BI262)","v":33331.974954978985},{"$f":"IF('[2]FISCAL(M)'!$BS262=\"\",\"\",'[2]FISCAL(M)'!$BS262)","v":34351.04296725196},{"$f":"IF('[2]FISCAL(M)'!$AZ262=\"\",\"\",'[2]FISCAL(M)'!$AZ262)","v":79891.855924810952},{"$f":"IF('[2]FISCAL(M)'!$BJ262=\"\",\"\",'[2]FISCAL(M)'!$BJ262)","v":34599.718051978984},{"$f":"IF('[2]FISCAL(M)'!$BT262=\"\",\"\",'[2]FISCAL(M)'!$BT262)","v":45292.137872831961},{"$f":"IF('[3]MONE(M)'!$AO262=\"\",\"\",'[3]MONE(M)'!$AO262)","v":9254828.5438397415},{"$f":"IF('[4]MONE(M)'!$AO262=\"\",\"\",'[4]MONE(M)'!$AO262)","v":8690.8501481400017},{"$f":"IF('[5]MONE(M)'!$AO262=\"\",\"\",'[5]MONE(M)'!$AO262)","v":85261.834755603762},{"$f":"+'[1]MONE(M)'!$AO262","v":143920.61014970619},{"$f":"IF('[6]MONE(M)'!$AO262=\"\",\"\",'[6]MONE(M)'!$AO262)","v":45443.16783084879},{"$f":"IF('[7]MONE(M)'!$AO262=\"\",\"\",'[7]MONE(M)'!$AO262)","v":434180.53339752008},{"$f":"IF('[8]MONE(M)'!$AO262=\"\",\"\",'[8]MONE(M)'!$AO262)","v":22953.672896549993},4.7256729771370409,-0.26516546969647115,2.2014088185220215,4.5957891430344233,6.4565561600332888,19.788831083214141,15.243579209077751,{"$f":"IF('[2]FISCAL(M)'!$K262=\"\",\"\",'[2]FISCAL(M)'!$K262)","v":-117.03554032841809},{"$f":"+'[2]REAL(A)'!$AO$31","v":196050.70057903719},-5.9696568276855301E-2,{"$f":"IF('[2]FISCAL(M)'!$L262=\"\",\"\",'[2]FISCAL(M)'!$L262)","v":-176.58863572841801},{"$f":"+'[2]REAL(A)'!$AP$31","v":230736.92857903719},-7.6532454867938027E-2,82624.042623095724,{"$f":"'[2]Gráfico REM'!BG256","v":18159.791623507834},{"$f":"'[2]Gráfico REM'!BH256","v":59259.668256519275},{"$f":"'[2]Gráfico REM'!BI256","v":5204.5827430686249},12.811483550053747,21.761159405774077,9.7596766186109019,20.027627814307138,121596.12811110573,{"$f":"'[2]Gráfico REM'!BK256","v":19153.533458237835},{"$f":"'[2]Gráfico REM'!BL256","v":82213.341153069268},{"$f":"'[2]Gráfico REM'!BM256","v":20229.253499798626},12.982926986560162,21.665743441994788,11.237539902074523,12.55486364541396]
[2011,"febrero","2011-febrero",{"$f":"IF('[2]REAL IPC(M)'!$AL263=\"\",\"\",+'[2]REAL IPC(M)'!$AL263)","v":5.6016964127937774},{"$f":"IF('[2]REAL IPC(M)'!$BE263=\"\",\"\",+'[2]REAL IPC(M)'!$BE263)","v":5.1528065020893354},{"$f":"IF('[2]REAL IPC(M)'!$AM263=\"\",\"\",+'[2]REAL IPC(M)'!$AM263)","v":5.5299539170506895},{"$f":"IF('[2]REAL IPC(M)'!$BI263=\"\",\"\",+'[2]REAL IPC(M)'!$BI263)","v":5.1253666906558415},{"$f":"IF('[2]REAL IMAE(M)'!BJ263=\"\",\"\",'[2]REAL IMAE(M)'!BJ263)","v":4.4814159290035516},{"$f":"IF('[2]REAL IMAE(M)'!BK263=\"\",\"\",'[2]REAL IMAE(M)'!BK263)","v":3.6302077696059865},{"$f":"IF('[2]REAL IMAE(M)'!BN263=\"\",\"\",'[2]REAL IMAE(M)'!BN263)","v":5.6956659030719781},{"$f":"IF('[2]REAL IMAE(M)'!BO263=\"\",\"\",'[2]REAL IMAE(M)'!BO263)","v":4.5426272325622241},{"$f":"IF('[2]EXT RIN(M)'!$K263=\"\",\"\",'[2]EXT RIN(M)'!$K263)","v":20886.358021187905},"",{"$f":"IF('[2]EXT RIN(M)'!$L263=\"\",\"\",'[2]EXT RIN(M)'!$L263)","v":23395.142635617907},"",{"$f":"IF('[2]MONE(M)CARD'!EG263=\"\",\"\",'[2]MONE(M)CARD'!EG263)","v":18337.417457276919},{"$f":"IF('[2]MONE(M)CARD'!EK263=\"\",\"\",'[2]MONE(M)CARD'!EK263)","v":28321.382794200843},{"$f":"IF('[2]MONE(M)CARD'!EP263=\"\",\"\",'[2]MONE(M)CARD'!EP263)","v":15777.686128212983},{"$f":"IF('[2]MONE(M)CARD'!ES263=\"\",\"\",'[2]MONE(M)CARD'!ES263)","v":16.669935648888057},{"$f":"IF('[2]MONE(M)CARD'!EV263=\"\",\"\",'[2]MONE(M)CARD'!EV263)","v":9.0907388629311914},{"$f":"IF('[2]MONE(M)CARD'!EZ263=\"\",\"\",'[2]MONE(M)CARD'!EZ263)","v":8.3441514217487356},{"$f":"IF('[2]MONE(M)CAPARD'!FC263=\"\",\"\",'[2]MONE(M)CAPARD'!FC263)","v":23664.338789966921},{"$f":"IF('[2]MONE(M)CAPARD'!FG263=\"\",\"\",'[2]MONE(M)CAPARD'!FG263)","v":47349.46824353085},{"$f":"IF('[2]MONE(M)CAPARD'!FL263=\"\",\"\",'[2]MONE(M)CAPARD'!FL263)","v":15777.686128212983},{"$f":"IF('[2]MONE(M)CAPARD'!FO263=\"\",\"\",'[2]MONE(M)CAPARD'!FO263)","v":18.131335991700691},{"$f":"IF('[2]MONE(M)CAPARD'!FR263=\"\",\"\",'[2]MONE(M)CAPARD'!FR263)","v":9.2923523115719942},{"$f":"IF('[2]MONE(M)CAPARD'!FV263=\"\",\"\",'[2]MONE(M)CAPARD'!FV263)","v":8.7159046952104866},{"$f":"IF('[2]MONE(M)CARD'!FV263=\"\",\"\",'[2]MONE(M)CARD'!FV263)","v":733.8768595993572},{"$f":"IF('[2]MONE(M)CARD'!GD263=\"\",\"\",'[2]MONE(M)CARD'!GD263)","v":93.910039273252551},{"$f":"IF('[2]MONE(M)CARD'!GE263=\"\",\"\",'[2]MONE(M)CARD'!GE263)","v":3887.984231587594},0.50982616866779296,{"$f":"IF('[9]II.2.Balance OSD-Activos'!J121=\"\",\"\",'[9]II.2.Balance OSD-Activos'!J121)","v":43.932119411022654},{"$f":"IF('[9]II.2.Balance OSD-Activos'!N121=\"\",\"\",'[9]II.2.Balance OSD-Activos'!N121)","v":193.38678262522924},{"$f":"IF('[9]II.2.Balance OSD-Activos'!R121=\"\",\"\",'[9]II.2.Balance OSD-Activos'!R121)","v":21956.291360376519},{"$f":"IF('[9]II.2.Balance OSD-Activos'!S121=\"\",\"\",'[9]II.2.Balance OSD-Activos'!S121)","v":24708.892109912751},22000.223479787543,46902.502372325522,28.321257210376306,10.742623247582973,18.759212508048062,10.712276966930423,9.1565147185287188,9.9317019714690424,1.8781514490683549E-2,{"$f":"IF('[2]MONE(M)CAPARD'!GS263=\"\",\"\",'[2]MONE(M)CAPARD'!GS263)","v":7239.5808129248117},{"$f":"IF('[2]MONE(M)CARD'!HA263=\"\",\"\",'[2]MONE(M)CAPARD'!HA263)","v":4490.971222997593},{"$f":"IF('[2]MONE(M)CAPARD'!HB263=\"\",\"\",'[2]MONE(M)CAPARD'!HB263)","v":2748.6095899272186},"n.d.",{"$f":"IF('[10]II.2.Balance OSD-Activos'!J121=\"\",\"\",'[10]II.2.Balance OSD-Activos'!J121)","v":528.12862552102274},{"$f":"IF('[10]II.2.Balance OSD-Activos'!N121=\"\",\"\",'[10]II.2.Balance OSD-Activos'!N121)","v":419.9653501752291},{"$f":"IF('[10]II.2.Balance OSD-Activos'!R121=\"\",\"\",'[10]II.2.Balance OSD-Activos'!R121)","v":33680.71005203652},{"$f":"IF('[10]II.2.Balance OSD-Activos'!S121=\"\",\"\",'[10]II.2.Balance OSD-Activos'!S121)","v":35054.205067882751},34208.838677557542,69683.009095615533,69.053053079147489,13.777757173776429,-26.141714900953794,13.197389867274012,9.584879737512896,11.273553977192364,0.15056313614852002,{"$f":"IF('[2]MONE(M)CAPARD'!AS263=\"\",\"\",'[2]MONE(M)CAPARD'!AS263)","v":6.5},{"$f":"IF('[2]MONE(M)CAPARD'!AT263=\"\",\"\",'[2]MONE(M)CAPARD'!AT263)","v":"n.a."},{"$f":"IF('[2]MONE(M)CAPARD'!AU263=\"\",\"\",'[2]MONE(M)CAPARD'!AU263)","v":4.5},{"$f":"IF('[2]MONE(M)CAPARD'!AV263=\"\",\"\",'[2]MONE(M)CAPARD'!AV263)","v":4.5},{"$f":"IF('[2]MONE(M)CAPARD'!AW263=\"\",\"\",'[2]MONE(M)CAPARD'!AW263)","v":"n.a."},{"$f":"IF('[2]MONE(M)CAPARD'!AX263=\"\",\"\",'[2]MONE(M)CAPARD'!AX263)","v":5},{"$f":"IF('[2]MONE(M)CAPARD'!AY263=\"\",\"\",'[2]MONE(M)CAPARD'!AY263)","v":"n.a."},{"$f":"IF('[2]FISCAL(M)'!$K263=\"\",\"\",'[2]FISCAL(M)'!$K263)","v":-1020.6345749840268},{"$f":"IF('[2]FISCAL(M)'!$L263=\"\",\"\",'[2]FISCAL(M)'!$L263)","v":-1289.6164897540264},{"$f":"IF('[2]FISCAL(M)'!$AY263=\"\",\"\",'[2]FISCAL(M)'!$AY263)","v":69384.431751894779},{"$f":"IF('[2]FISCAL(M)'!$BI263=\"\",\"\",'[2]FISCAL(M)'!$BI263)","v":35027.17274062887},{"$f":"IF('[2]FISCAL(M)'!$BS263=\"\",\"\",'[2]FISCAL(M)'!$BS263)","v":34357.259011265909},{"$f":"IF('[2]FISCAL(M)'!$AZ263=\"\",\"\",'[2]FISCAL(M)'!$AZ263)","v":81273.419708184781},{"$f":"IF('[2]FISCAL(M)'!$BJ263=\"\",\"\",'[2]FISCAL(M)'!$BJ263)","v":36306.883876448861},{"$f":"IF('[2]FISCAL(M)'!$BT263=\"\",\"\",'[2]FISCAL(M)'!$BT263)","v":44966.535831735906},{"$f":"IF('[3]MONE(M)'!$AO263=\"\",\"\",'[3]MONE(M)'!$AO263)","v":9339743.5467052702},{"$f":"IF('[4]MONE(M)'!$AO263=\"\",\"\",'[4]MONE(M)'!$AO263)","v":8694.9924182601208},{"$f":"IF('[5]MONE(M)'!$AO263=\"\",\"\",'[5]MONE(M)'!$AO263)","v":86003.143873807538},{"$f":"+'[1]MONE(M)'!$AO263","v":144211.38048234617},{"$f":"IF('[6]MONE(M)'!$AO263=\"\",\"\",'[6]MONE(M)'!$AO263)","v":44766.601000738767},{"$f":"IF('[7]MONE(M)'!$AO263=\"\",\"\",'[7]MONE(M)'!$AO263)","v":435068.90518678993},{"$f":"IF('[8]MONE(M)'!$AO263=\"\",\"\",'[8]MONE(M)'!$AO263)","v":23124.661825380001},5.9049630909127737,0.98042012787240562,4.3274836895145441,4.8650806652446699,5.4502219293966148,18.271011012419436,15.544414564792653,{"$f":"IF('[2]FISCAL(M)'!$K263=\"\",\"\",'[2]FISCAL(M)'!$K263)","v":-1020.6345749840268},{"$f":"+'[2]REAL(A)'!$AO$31","v":196050.70057903719},-0.52059725977493321,{"$f":"IF('[2]FISCAL(M)'!$L263=\"\",\"\",'[2]FISCAL(M)'!$L263)","v":-1289.6164897540264},{"$f":"+'[2]REAL(A)'!$AP$31","v":230736.92857903719},-0.55891204658740956,83791.445609276809,{"$f":"'[2]Gráfico REM'!BG257","v":19122.209115763122},{"$f":"'[2]Gráfico REM'!BH257","v":59700.205526345206},{"$f":"'[2]Gráfico REM'!BI257","v":4969.0309671684745},13.36112255746178,24.601783145227984,10.09404130173146,14.43336510576405,123125.17112622679,{"$f":"'[2]Gráfico REM'!BK257","v":20147.247411583121},{"$f":"'[2]Gráfico REM'!BL257","v":82824.867351725203},{"$f":"'[2]Gráfico REM'!BM257","v":20153.056362918476},13.42176004835407,23.715207064831322,11.563351465429395,11.776590526143259]
[2011,"marzo","2011-marzo",{"$f":"IF('[2]REAL IPC(M)'!$AL264=\"\",\"\",+'[2]REAL IPC(M)'!$AL264)","v":5.628616517622298},{"$f":"IF('[2]REAL IPC(M)'!$BE264=\"\",\"\",+'[2]REAL IPC(M)'!$BE264)","v":5.1505021824457931},{"$f":"IF('[2]REAL IPC(M)'!$AM264=\"\",\"\",+'[2]REAL IPC(M)'!$AM264)","v":5.6220306176315349},{"$f":"IF('[2]REAL IPC(M)'!$BI264=\"\",\"\",+'[2]REAL IPC(M)'!$BI264)","v":5.1331664261256682},{"$f":"IF('[2]REAL IMAE(M)'!BJ264=\"\",\"\",'[2]REAL IMAE(M)'!BJ264)","v":4.0588576766052764},{"$f":"IF('[2]REAL IMAE(M)'!BK264=\"\",\"\",'[2]REAL IMAE(M)'!BK264)","v":3.6711161617370092},{"$f":"IF('[2]REAL IMAE(M)'!BN264=\"\",\"\",'[2]REAL IMAE(M)'!BN264)","v":4.8667466717778884},{"$f":"IF('[2]REAL IMAE(M)'!BO264=\"\",\"\",'[2]REAL IMAE(M)'!BO264)","v":4.5975825572021289},{"$f":"IF('[2]EXT RIN(M)'!$K264=\"\",\"\",'[2]EXT RIN(M)'!$K264)","v":21208.109906462047},"",{"$f":"IF('[2]EXT RIN(M)'!$L264=\"\",\"\",'[2]EXT RIN(M)'!$L264)","v":23384.949252102047},"",{"$f":"IF('[2]MONE(M)CARD'!EG264=\"\",\"\",'[2]MONE(M)CARD'!EG264)","v":18894.614939369374},{"$f":"IF('[2]MONE(M)CARD'!EK264=\"\",\"\",'[2]MONE(M)CARD'!EK264)","v":28607.463180234252},{"$f":"IF('[2]MONE(M)CARD'!EP264=\"\",\"\",'[2]MONE(M)CARD'!EP264)","v":16002.604371615576},{"$f":"IF('[2]MONE(M)CARD'!ES264=\"\",\"\",'[2]MONE(M)CARD'!ES264)","v":14.802891108665705},{"$f":"IF('[2]MONE(M)CARD'!EV264=\"\",\"\",'[2]MONE(M)CARD'!EV264)","v":8.3235084357914602},{"$f":"IF('[2]MONE(M)CARD'!EZ264=\"\",\"\",'[2]MONE(M)CARD'!EZ264)","v":7.314843007405547},{"$f":"IF('[2]MONE(M)CAPARD'!FC264=\"\",\"\",'[2]MONE(M)CAPARD'!FC264)","v":24373.471731829373},{"$f":"IF('[2]MONE(M)CAPARD'!FG264=\"\",\"\",'[2]MONE(M)CAPARD'!FG264)","v":47775.175367734249},{"$f":"IF('[2]MONE(M)CAPARD'!FL264=\"\",\"\",'[2]MONE(M)CAPARD'!FL264)","v":16002.604371615569},{"$f":"IF('[2]MONE(M)CAPARD'!FO264=\"\",\"\",'[2]MONE(M)CAPARD'!FO264)","v":16.870033533448026},{"$f":"IF('[2]MONE(M)CAPARD'!FR264=\"\",\"\",'[2]MONE(M)CAPARD'!FR264)","v":9.075759262062121},{"$f":"IF('[2]MONE(M)CAPARD'!FV264=\"\",\"\",'[2]MONE(M)CAPARD'!FV264)","v":8.2016116036905515},{"$f":"IF('[2]MONE(M)CARD'!FV264=\"\",\"\",'[2]MONE(M)CARD'!FV264)","v":630.92919049828345},{"$f":"IF('[2]MONE(M)CARD'!GD264=\"\",\"\",'[2]MONE(M)CARD'!GD264)","v":79.365834310748454},{"$f":"IF('[2]MONE(M)CARD'!GE264=\"\",\"\",'[2]MONE(M)CARD'!GE264)","v":3783.5709003416118},-2.6101375655019354,{"$f":"IF('[9]II.2.Balance OSD-Activos'!J122=\"\",\"\",'[9]II.2.Balance OSD-Activos'!J122)","v":41.099577424674045},{"$f":"IF('[9]II.2.Balance OSD-Activos'!N122=\"\",\"\",'[9]II.2.Balance OSD-Activos'!N122)","v":197.48503839924325},{"$f":"IF('[9]II.2.Balance OSD-Activos'!R122=\"\",\"\",'[9]II.2.Balance OSD-Activos'!R122)","v":22234.830107385824},{"$f":"IF('[9]II.2.Balance OSD-Activos'!S122=\"\",\"\",'[9]II.2.Balance OSD-Activos'!S122)","v":24783.513933320006},22275.929684810497,47256.928656529752,156.50170086945025,10.726783687695217,21.980036376633304,10.610587255479675,7.8131163981149498,9.2208898083692148,-0.71081216309982764,{"$f":"IF('[2]MONE(M)CAPARD'!GS264=\"\",\"\",'[2]MONE(M)CAPARD'!GS264)","v":7333.8857910325351},{"$f":"IF('[2]MONE(M)CARD'!HA264=\"\",\"\",'[2]MONE(M)CAPARD'!HA264)","v":4366.0710614116106},{"$f":"IF('[2]MONE(M)CAPARD'!HB264=\"\",\"\",'[2]MONE(M)CAPARD'!HB264)","v":2967.8147296209245},"n.d.",{"$f":"IF('[10]II.2.Balance OSD-Activos'!J122=\"\",\"\",'[10]II.2.Balance OSD-Activos'!J122)","v":529.30628494467408},{"$f":"IF('[10]II.2.Balance OSD-Activos'!N122=\"\",\"\",'[10]II.2.Balance OSD-Activos'!N122)","v":439.82041559924323},{"$f":"IF('[10]II.2.Balance OSD-Activos'!R122=\"\",\"\",'[10]II.2.Balance OSD-Activos'!R122)","v":34258.575871105822},{"$f":"IF('[10]II.2.Balance OSD-Activos'!S122=\"\",\"\",'[10]II.2.Balance OSD-Activos'!S122)","v":35175.485767530008},34787.882156050495,70403.188339179746,71.476234918372455,14.321045168993262,-24.982022533096483,13.735332150101943,8.5507636370703466,11.009412713364309,-0.26414126382805492,{"$f":"IF('[2]MONE(M)CAPARD'!AS264=\"\",\"\",'[2]MONE(M)CAPARD'!AS264)","v":6.5},{"$f":"IF('[2]MONE(M)CAPARD'!AT264=\"\",\"\",'[2]MONE(M)CAPARD'!AT264)","v":"n.a."},{"$f":"IF('[2]MONE(M)CAPARD'!AU264=\"\",\"\",'[2]MONE(M)CAPARD'!AU264)","v":4.75},{"$f":"IF('[2]MONE(M)CAPARD'!AV264=\"\",\"\",'[2]MONE(M)CAPARD'!AV264)","v":4.5},{"$f":"IF('[2]MONE(M)CAPARD'!AW264=\"\",\"\",'[2]MONE(M)CAPARD'!AW264)","v":"n.a."},{"$f":"IF('[2]MONE(M)CAPARD'!AX264=\"\",\"\",'[2]MONE(M)CAPARD'!AX264)","v":6},{"$f":"IF('[2]MONE(M)CAPARD'!AY264=\"\",\"\",'[2]MONE(M)CAPARD'!AY264)","v":"n.a."},{"$f":"IF('[2]FISCAL(M)'!$K264=\"\",\"\",'[2]FISCAL(M)'!$K264)","v":-1344.2016804181374},{"$f":"IF('[2]FISCAL(M)'!$L264=\"\",\"\",'[2]FISCAL(M)'!$L264)","v":-1665.7194269181373},{"$f":"IF('[2]FISCAL(M)'!$AY264=\"\",\"\",'[2]FISCAL(M)'!$AY264)","v":70142.533995770893},{"$f":"IF('[2]FISCAL(M)'!$BI264=\"\",\"\",'[2]FISCAL(M)'!$BI264)","v":35474.292583415459},{"$f":"IF('[2]FISCAL(M)'!$BS264=\"\",\"\",'[2]FISCAL(M)'!$BS264)","v":34668.241412355434},{"$f":"IF('[2]FISCAL(M)'!$AZ264=\"\",\"\",'[2]FISCAL(M)'!$AZ264)","v":82143.30634624089},{"$f":"IF('[2]FISCAL(M)'!$BJ264=\"\",\"\",'[2]FISCAL(M)'!$BJ264)","v":36882.755885875464},{"$f":"IF('[2]FISCAL(M)'!$BT264=\"\",\"\",'[2]FISCAL(M)'!$BT264)","v":45260.550460365441},{"$f":"IF('[3]MONE(M)'!$AO264=\"\",\"\",'[3]MONE(M)'!$AO264)","v":9506491.4430962242},{"$f":"IF('[4]MONE(M)'!$AO264=\"\",\"\",'[4]MONE(M)'!$AO264)","v":8700.3799223301212},{"$f":"IF('[5]MONE(M)'!$AO264=\"\",\"\",'[5]MONE(M)'!$AO264)","v":86021.201319454616},{"$f":"+'[1]MONE(M)'!$AO264","v":144618.18617836048},{"$f":"IF('[6]MONE(M)'!$AO264=\"\",\"\",'[6]MONE(M)'!$AO264)","v":44407.497913753767},{"$f":"IF('[7]MONE(M)'!$AO264=\"\",\"\",'[7]MONE(M)'!$AO264)","v":441270.34053927998},{"$f":"IF('[8]MONE(M)'!$AO264=\"\",\"\",'[8]MONE(M)'!$AO264)","v":23600.663155729999},10.486937129435315,0.78434086831640215,5.1611650946535192,4.9804720798303448,6.0429494176976739,18.222418199924185,16.820923346148664,{"$f":"IF('[2]FISCAL(M)'!$K264=\"\",\"\",'[2]FISCAL(M)'!$K264)","v":-1344.2016804181374},{"$f":"+'[2]REAL(A)'!$AO$31","v":196050.70057903719},-0.68563982502894794,{"$f":"IF('[2]FISCAL(M)'!$L264=\"\",\"\",'[2]FISCAL(M)'!$L264)","v":-1665.7194269181373},{"$f":"+'[2]REAL(A)'!$AP$31","v":230736.92857903719},-0.72191280224463839,85092.728633417646,{"$f":"'[2]Gráfico REM'!BG258","v":19550.698984509909},{"$f":"'[2]Gráfico REM'!BH258","v":60387.597990970004},{"$f":"'[2]Gráfico REM'!BI258","v":5154.4316579377391},12.381308389256107,22.110588150728972,9.764157047565746,9.8687573991452116,125231.49756401766,{"$f":"'[2]Gráfico REM'!BK258","v":20554.437885409909},{"$f":"'[2]Gráfico REM'!BL258","v":83988.26114670001},{"$f":"'[2]Gráfico REM'!BM258","v":20688.798531907742},12.846447890427948,20.520663091816704,11.659493744487781,10.622067378464894]
[2011,"abril","2011-abril",{"$f":"IF('[2]REAL IPC(M)'!$AL265=\"\",\"\",+'[2]REAL IPC(M)'!$AL265)","v":6.5323992994746005},{"$f":"IF('[2]REAL IPC(M)'!$BE265=\"\",\"\",+'[2]REAL IPC(M)'!$BE265)","v":5.1460866335866884},{"$f":"IF('[2]REAL IPC(M)'!$AM265=\"\",\"\",+'[2]REAL IPC(M)'!$AM265)","v":6.5009224281823874},{"$f":"IF('[2]REAL IPC(M)'!$BI265=\"\",\"\",+'[2]REAL IPC(M)'!$BI265)","v":5.1385133965011098},{"$f":"IF('[2]REAL IMAE(M)'!BJ265=\"\",\"\",'[2]REAL IMAE(M)'!BJ265)","v":4.2555276423850597},{"$f":"IF('[2]REAL IMAE(M)'!BK265=\"\",\"\",'[2]REAL IMAE(M)'!BK265)","v":3.7070874327247205},{"$f":"IF('[2]REAL IMAE(M)'!BN265=\"\",\"\",'[2]REAL IMAE(M)'!BN265)","v":5.1964280895101966},{"$f":"IF('[2]REAL IMAE(M)'!BO265=\"\",\"\",'[2]REAL IMAE(M)'!BO265)","v":4.6462949599991754},{"$f":"IF('[2]EXT RIN(M)'!$K265=\"\",\"\",'[2]EXT RIN(M)'!$K265)","v":21836.963522189395},"",{"$f":"IF('[2]EXT RIN(M)'!$L265=\"\",\"\",'[2]EXT RIN(M)'!$L265)","v":24229.653686339396},"",{"$f":"IF('[2]MONE(M)CARD'!EG265=\"\",\"\",'[2]MONE(M)CARD'!EG265)","v":19042.776681033731},{"$f":"IF('[2]MONE(M)CARD'!EK265=\"\",\"\",'[2]MONE(M)CARD'!EK265)","v":28778.334546408503},{"$f":"IF('[2]MONE(M)CARD'!EP265=\"\",\"\",'[2]MONE(M)CARD'!EP265)","v":16192.932838958804},{"$f":"IF('[2]MONE(M)CARD'!ES265=\"\",\"\",'[2]MONE(M)CARD'!ES265)","v":16.201167022229292},{"$f":"IF('[2]MONE(M)CARD'!EV265=\"\",\"\",'[2]MONE(M)CARD'!EV265)","v":9.1498022323840864},{"$f":"IF('[2]MONE(M)CARD'!EZ265=\"\",\"\",'[2]MONE(M)CARD'!EZ265)","v":8.189828726722137},{"$f":"IF('[2]MONE(M)CAPARD'!FC265=\"\",\"\",'[2]MONE(M)CAPARD'!FC265)","v":24448.770093963733},{"$f":"IF('[2]MONE(M)CAPARD'!FG265=\"\",\"\",'[2]MONE(M)CAPARD'!FG265)","v":48019.40638494851},{"$f":"IF('[2]MONE(M)CAPARD'!FL265=\"\",\"\",'[2]MONE(M)CAPARD'!FL265)","v":16192.932838958819},{"$f":"IF('[2]MONE(M)CAPARD'!FO265=\"\",\"\",'[2]MONE(M)CAPARD'!FO265)","v":17.029009926504447},{"$f":"IF('[2]MONE(M)CAPARD'!FR265=\"\",\"\",'[2]MONE(M)CAPARD'!FR265)","v":9.1342583167818283},{"$f":"IF('[2]MONE(M)CAPARD'!FV265=\"\",\"\",'[2]MONE(M)CAPARD'!FV265)","v":8.4424506707031277},{"$f":"IF('[2]MONE(M)CARD'!FV265=\"\",\"\",'[2]MONE(M)CARD'!FV265)","v":571.5380450029096},{"$f":"IF('[2]MONE(M)CARD'!GD265=\"\",\"\",'[2]MONE(M)CARD'!GD265)","v":155.49577342096546},{"$f":"IF('[2]MONE(M)CARD'!GE265=\"\",\"\",'[2]MONE(M)CARD'!GE265)","v":4350.8417361173024},10.396049994301748,{"$f":"IF('[9]II.2.Balance OSD-Activos'!J123=\"\",\"\",'[9]II.2.Balance OSD-Activos'!J123)","v":39.652258811153956},{"$f":"IF('[9]II.2.Balance OSD-Activos'!N123=\"\",\"\",'[9]II.2.Balance OSD-Activos'!N123)","v":200.78591902084256},{"$f":"IF('[9]II.2.Balance OSD-Activos'!R123=\"\",\"\",'[9]II.2.Balance OSD-Activos'!R123)","v":22257.085655695915},{"$f":"IF('[9]II.2.Balance OSD-Activos'!S123=\"\",\"\",'[9]II.2.Balance OSD-Activos'!S123)","v":24969.092810527356},22296.73791450707,47466.616644055262,88.335579653964118,10.086463747767471,20.462102015379568,10.005038464414074,7.7132640585751533,8.8644004255141073,-0.35648938285510745,{"$f":"IF('[2]MONE(M)CAPARD'!GS265=\"\",\"\",'[2]MONE(M)CAPARD'!GS265)","v":7530.8199389831852},{"$f":"IF('[2]MONE(M)CARD'!HA265=\"\",\"\",'[2]MONE(M)CAPARD'!HA265)","v":4899.2394464773024},{"$f":"IF('[2]MONE(M)CAPARD'!HB265=\"\",\"\",'[2]MONE(M)CAPARD'!HB265)","v":2631.5804925058828},"n.d.",{"$f":"IF('[10]II.2.Balance OSD-Activos'!J123=\"\",\"\",'[10]II.2.Balance OSD-Activos'!J123)","v":541.30242847115403},{"$f":"IF('[10]II.2.Balance OSD-Activos'!N123=\"\",\"\",'[10]II.2.Balance OSD-Activos'!N123)","v":457.06456959084255},{"$f":"IF('[10]II.2.Balance OSD-Activos'!R123=\"\",\"\",'[10]II.2.Balance OSD-Activos'!R123)","v":34426.681538785917},{"$f":"IF('[10]II.2.Balance OSD-Activos'!S123=\"\",\"\",'[10]II.2.Balance OSD-Activos'!S123)","v":35447.317881867362},34967.983967257074,70872.366418715275,68.810338754006267,14.151132122859057,5.7068166903770035,13.572924378508588,8.4081529479530737,11.148860169534181,0.1394474561698722,{"$f":"IF('[2]MONE(M)CAPARD'!AS265=\"\",\"\",'[2]MONE(M)CAPARD'!AS265)","v":6.5},{"$f":"IF('[2]MONE(M)CAPARD'!AT265=\"\",\"\",'[2]MONE(M)CAPARD'!AT265)","v":"n.a."},{"$f":"IF('[2]MONE(M)CAPARD'!AU265=\"\",\"\",'[2]MONE(M)CAPARD'!AU265)","v":4.75},{"$f":"IF('[2]MONE(M)CAPARD'!AV265=\"\",\"\",'[2]MONE(M)CAPARD'!AV265)","v":4.5},{"$f":"IF('[2]MONE(M)CAPARD'!AW265=\"\",\"\",'[2]MONE(M)CAPARD'!AW265)","v":"n.a."},{"$f":"IF('[2]MONE(M)CAPARD'!AX265=\"\",\"\",'[2]MONE(M)CAPARD'!AX265)","v":6.25},{"$f":"IF('[2]MONE(M)CAPARD'!AY265=\"\",\"\",'[2]MONE(M)CAPARD'!AY265)","v":"n.a."},{"$f":"IF('[2]FISCAL(M)'!$K265=\"\",\"\",'[2]FISCAL(M)'!$K265)","v":-1162.3727406812563},{"$f":"IF('[2]FISCAL(M)'!$L265=\"\",\"\",'[2]FISCAL(M)'!$L265)","v":-1622.5787333012559},{"$f":"IF('[2]FISCAL(M)'!$AY265=\"\",\"\",'[2]FISCAL(M)'!$AY265)","v":70539.611586345622},{"$f":"IF('[2]FISCAL(M)'!$BI265=\"\",\"\",'[2]FISCAL(M)'!$BI265)","v":35816.85306496764},{"$f":"IF('[2]FISCAL(M)'!$BS265=\"\",\"\",'[2]FISCAL(M)'!$BS265)","v":34722.758521377989},{"$f":"IF('[2]FISCAL(M)'!$AZ265=\"\",\"\",'[2]FISCAL(M)'!$AZ265)","v":82865.712634095617},{"$f":"IF('[2]FISCAL(M)'!$BJ265=\"\",\"\",'[2]FISCAL(M)'!$BJ265)","v":37529.711022207644},{"$f":"IF('[2]FISCAL(M)'!$BT265=\"\",\"\",'[2]FISCAL(M)'!$BT265)","v":45336.001611887994},{"$f":"IF('[3]MONE(M)'!$AO265=\"\",\"\",'[3]MONE(M)'!$AO265)","v":9546568.3460912649},{"$f":"IF('[4]MONE(M)'!$AO265=\"\",\"\",'[4]MONE(M)'!$AO265)","v":8795.8187183401224},{"$f":"IF('[5]MONE(M)'!$AO265=\"\",\"\",'[5]MONE(M)'!$AO265)","v":85200.220193048328},{"$f":"+'[1]MONE(M)'!$AO265","v":144449.09560724115},{"$f":"IF('[6]MONE(M)'!$AO265=\"\",\"\",'[6]MONE(M)'!$AO265)","v":44242.104723901415},{"$f":"IF('[7]MONE(M)'!$AO265=\"\",\"\",'[7]MONE(M)'!$AO265)","v":442343.28159104998},{"$f":"IF('[8]MONE(M)'!$AO265=\"\",\"\",'[8]MONE(M)'!$AO265)","v":23857.934232840005},12.248126368470214,1.8541273725346308,4.5230361161579191,4.3287331865765832,6.6318456087626876,17.41064347457959,17.205784273167257,{"$f":"IF('[2]FISCAL(M)'!$K265=\"\",\"\",'[2]FISCAL(M)'!$K265)","v":-1162.3727406812563},{"$f":"+'[2]REAL(A)'!$AO$31","v":196050.70057903719},-0.59289394898777703,{"$f":"IF('[2]FISCAL(M)'!$L265=\"\",\"\",'[2]FISCAL(M)'!$L265)","v":-1622.5787333012559},{"$f":"+'[2]REAL(A)'!$AP$31","v":230736.92857903719},-0.70321588455462769,85948.788018079737,{"$f":"'[2]Gráfico REM'!BG259","v":20094.077458673652},{"$f":"'[2]Gráfico REM'!BH259","v":60627.450031139633},{"$f":"'[2]Gráfico REM'!BI259","v":5227.2605282664526},12.515613356709654,22.476192826785457,9.8553938666021921,9.0514423788526699,126531.78137589974,{"$f":"'[2]Gráfico REM'!BK259","v":21153.823645403652},{"$f":"'[2]Gráfico REM'!BL259","v":84485.384263979635},{"$f":"'[2]Gráfico REM'!BM259","v":20892.573466516456},13.248564165042541,21.257109985511313,11.835981989000643,11.48758671851191]
[2011,"mayo ","2011-mayo ",{"$f":"IF('[2]REAL IPC(M)'!$AL266=\"\",\"\",+'[2]REAL IPC(M)'!$AL266)","v":6.9092181213923354},{"$f":"IF('[2]REAL IPC(M)'!$BE266=\"\",\"\",+'[2]REAL IPC(M)'!$BE266)","v":5.1388731030485246},{"$f":"IF('[2]REAL IPC(M)'!$AM266=\"\",\"\",+'[2]REAL IPC(M)'!$AM266)","v":6.8608527811896858},{"$f":"IF('[2]REAL IPC(M)'!$BI266=\"\",\"\",+'[2]REAL IPC(M)'!$BI266)","v":5.1406278787558657},{"$f":"IF('[2]REAL IMAE(M)'!BJ266=\"\",\"\",'[2]REAL IMAE(M)'!BJ266)","v":4.7215927949507686},{"$f":"IF('[2]REAL IMAE(M)'!BK266=\"\",\"\",'[2]REAL IMAE(M)'!BK266)","v":3.7383626227982525},{"$f":"IF('[2]REAL IMAE(M)'!BN266=\"\",\"\",'[2]REAL IMAE(M)'!BN266)","v":5.8488834726908356},{"$f":"IF('[2]REAL IMAE(M)'!BO266=\"\",\"\",'[2]REAL IMAE(M)'!BO266)","v":4.6888093003599307},{"$f":"IF('[2]EXT RIN(M)'!$K266=\"\",\"\",'[2]EXT RIN(M)'!$K266)","v":21604.527207288796},"",{"$f":"IF('[2]EXT RIN(M)'!$L266=\"\",\"\",'[2]EXT RIN(M)'!$L266)","v":23878.822370268797},"",{"$f":"IF('[2]MONE(M)CARD'!EG266=\"\",\"\",'[2]MONE(M)CARD'!EG266)","v":18365.281901083952},{"$f":"IF('[2]MONE(M)CARD'!EK266=\"\",\"\",'[2]MONE(M)CARD'!EK266)","v":28965.5291170657},{"$f":"IF('[2]MONE(M)CARD'!EP266=\"\",\"\",'[2]MONE(M)CARD'!EP266)","v":16089.98193647217},{"$f":"IF('[2]MONE(M)CARD'!ES266=\"\",\"\",'[2]MONE(M)CARD'!ES266)","v":13.340467431486335},{"$f":"IF('[2]MONE(M)CARD'!EV266=\"\",\"\",'[2]MONE(M)CARD'!EV266)","v":8.5997923009991197},{"$f":"IF('[2]MONE(M)CARD'!EZ266=\"\",\"\",'[2]MONE(M)CARD'!EZ266)","v":7.1754868396540106},{"$f":"IF('[2]MONE(M)CAPARD'!FC266=\"\",\"\",'[2]MONE(M)CAPARD'!FC266)","v":23681.093038993953},{"$f":"IF('[2]MONE(M)CAPARD'!FG266=\"\",\"\",'[2]MONE(M)CAPARD'!FG266)","v":47863.862329225703},{"$f":"IF('[2]MONE(M)CAPARD'!FL266=\"\",\"\",'[2]MONE(M)CAPARD'!FL266)","v":16089.981936472162},{"$f":"IF('[2]MONE(M)CAPARD'!FO266=\"\",\"\",'[2]MONE(M)CAPARD'!FO266)","v":14.40444104180445},{"$f":"IF('[2]MONE(M)CAPARD'!FR266=\"\",\"\",'[2]MONE(M)CAPARD'!FR266)","v":8.0376862346484668},{"$f":"IF('[2]MONE(M)CAPARD'!FV266=\"\",\"\",'[2]MONE(M)CAPARD'!FV266)","v":7.1146362968391053},{"$f":"IF('[2]MONE(M)CARD'!FV266=\"\",\"\",'[2]MONE(M)CARD'!FV266)","v":596.00608699060876},{"$f":"IF('[2]MONE(M)CARD'!GD266=\"\",\"\",'[2]MONE(M)CARD'!GD266)","v":74.579405973330466},{"$f":"IF('[2]MONE(M)CARD'!GE266=\"\",\"\",'[2]MONE(M)CARD'!GE266)","v":4067.148978979576},-5.9375522678746133,{"$f":"IF('[9]II.2.Balance OSD-Activos'!J124=\"\",\"\",'[9]II.2.Balance OSD-Activos'!J124)","v":40.421638487030378},{"$f":"IF('[9]II.2.Balance OSD-Activos'!N124=\"\",\"\",'[9]II.2.Balance OSD-Activos'!N124)","v":204.49153420925734},{"$f":"IF('[9]II.2.Balance OSD-Activos'!R124=\"\",\"\",'[9]II.2.Balance OSD-Activos'!R124)","v":22222.245676588995},{"$f":"IF('[9]II.2.Balance OSD-Activos'!S124=\"\",\"\",'[9]II.2.Balance OSD-Activos'!S124)","v":25168.604801607726},22262.667315076025,47635.763650893008,169.4443155948845,10.4686403806316,19.599738514595909,10.350210637336721,9.5611895196361587,10.023221521107462,1.1588210955933551,{"$f":"IF('[2]MONE(M)CAPARD'!GS266=\"\",\"\",'[2]MONE(M)CAPARD'!GS266)","v":7422.2654496213718},{"$f":"IF('[2]MONE(M)CARD'!HA266=\"\",\"\",'[2]MONE(M)CAPARD'!HA266)","v":4643.9445658895766},{"$f":"IF('[2]MONE(M)CAPARD'!HB266=\"\",\"\",'[2]MONE(M)CAPARD'!HB266)","v":2778.3208837317952},"n.d.",{"$f":"IF('[10]II.2.Balance OSD-Activos'!J124=\"\",\"\",'[10]II.2.Balance OSD-Activos'!J124)","v":645.48793396703024},{"$f":"IF('[10]II.2.Balance OSD-Activos'!N124=\"\",\"\",'[10]II.2.Balance OSD-Activos'!N124)","v":453.90142520925724},{"$f":"IF('[10]II.2.Balance OSD-Activos'!R124=\"\",\"\",'[10]II.2.Balance OSD-Activos'!R124)","v":33769.270094758998},{"$f":"IF('[10]II.2.Balance OSD-Activos'!S124=\"\",\"\",'[10]II.2.Balance OSD-Activos'!S124)","v":35155.547763927723},34414.758028726028,70024.207217863004,101.35557072308954,11.984478141462418,5.5144567294003854,11.04239615984033,7.8201146453796833,9.8115041392875746,-1.3373560302466068,{"$f":"IF('[2]MONE(M)CAPARD'!AS266=\"\",\"\",'[2]MONE(M)CAPARD'!AS266)","v":6.5},{"$f":"IF('[2]MONE(M)CAPARD'!AT266=\"\",\"\",'[2]MONE(M)CAPARD'!AT266)","v":"n.a."},{"$f":"IF('[2]MONE(M)CAPARD'!AU266=\"\",\"\",'[2]MONE(M)CAPARD'!AU266)","v":4.75},{"$f":"IF('[2]MONE(M)CAPARD'!AV266=\"\",\"\",'[2]MONE(M)CAPARD'!AV266)","v":4.5},{"$f":"IF('[2]MONE(M)CAPARD'!AW266=\"\",\"\",'[2]MONE(M)CAPARD'!AW266)","v":"n.a."},{"$f":"IF('[2]MONE(M)CAPARD'!AX266=\"\",\"\",'[2]MONE(M)CAPARD'!AX266)","v":6.75},{"$f":"IF('[2]MONE(M)CAPARD'!AY266=\"\",\"\",'[2]MONE(M)CAPARD'!AY266)","v":"n.a."},{"$f":"IF('[2]FISCAL(M)'!$K266=\"\",\"\",'[2]FISCAL(M)'!$K266)","v":-1756.141130281803},{"$f":"IF('[2]FISCAL(M)'!$L266=\"\",\"\",'[2]FISCAL(M)'!$L266)","v":-2368.9025015718025},{"$f":"IF('[2]FISCAL(M)'!$AY266=\"\",\"\",'[2]FISCAL(M)'!$AY266)","v":71242.398149391869},{"$f":"IF('[2]FISCAL(M)'!$BI266=\"\",\"\",'[2]FISCAL(M)'!$BI266)","v":36414.141967068863},{"$f":"IF('[2]FISCAL(M)'!$BS266=\"\",\"\",'[2]FISCAL(M)'!$BS266)","v":34828.256182322999},{"$f":"IF('[2]FISCAL(M)'!$AZ266=\"\",\"\",'[2]FISCAL(M)'!$AZ266)","v":83538.873863431858},{"$f":"IF('[2]FISCAL(M)'!$BJ266=\"\",\"\",'[2]FISCAL(M)'!$BJ266)","v":38108.393901608863},{"$f":"IF('[2]FISCAL(M)'!$BT266=\"\",\"\",'[2]FISCAL(M)'!$BT266)","v":45430.479961823003},{"$f":"IF('[3]MONE(M)'!$AO266=\"\",\"\",'[3]MONE(M)'!$AO266)","v":9700991.5610177889},{"$f":"IF('[4]MONE(M)'!$AO266=\"\",\"\",'[4]MONE(M)'!$AO266)","v":8774.9934746401195},{"$f":"IF('[5]MONE(M)'!$AO266=\"\",\"\",'[5]MONE(M)'!$AO266)","v":86910.755090227511},{"$f":"+'[1]MONE(M)'!$AO266","v":145113.94347961142},{"$f":"IF('[6]MONE(M)'!$AO266=\"\",\"\",'[6]MONE(M)'!$AO266)","v":44412.531211273774},{"$f":"IF('[7]MONE(M)'!$AO266=\"\",\"\",'[7]MONE(M)'!$AO266)","v":446590.37982990994},{"$f":"IF('[8]MONE(M)'!$AO266=\"\",\"\",'[8]MONE(M)'!$AO266)","v":22827.83568964},9.9189117859887599,2.3722622544603222,6.9443552921351515,4.8790685010663415,7.5702476260840923,16.658556288729322,10.374920475472749,{"$f":"IF('[2]FISCAL(M)'!$K266=\"\",\"\",'[2]FISCAL(M)'!$K266)","v":-1756.141130281803},{"$f":"+'[2]REAL(A)'!$AO$31","v":196050.70057903719},{"$f":"IF(OR(CM259=\"n.d.\",CM259=\"\",CN259=\"\",CN259=\"n.d.\"),\"n.d.\",(CM259/CN259)*100)","v":-0.89575866094588152},{"$f":"IF('[2]FISCAL(M)'!$L266=\"\",\"\",'[2]FISCAL(M)'!$L266)","v":-2368.9025015718025},{"$f":"+'[2]REAL(A)'!$AP$31","v":230736.92857903719},-1.0266681264071491,{"$f":"+CT259+CU259+CV259","v":85868.038585098373},{"$f":"'[2]Gráfico REM'!BG260","v":20012.43120627608},{"$f":"'[2]Gráfico REM'!BH260","v":60764.202255436234},{"$f":"'[2]Gráfico REM'!BI260","v":5091.4051233860673},12.587317511751706,21.031135935165924,10.655074348690817,5.6342909878548619,{"$f":"+DB259+DC259+DD259","v":125481.63370424838},{"$f":"'[2]Gráfico REM'!BK260","v":20993.017740406081},{"$f":"'[2]Gráfico REM'!BL260","v":83592.037945076241},{"$f":"'[2]Gráfico REM'!BM260","v":20896.578018766064},12.274704278123316,18.727690206487658,10.578427119399848,13.039116630768465]
[2011,"junio ",{"$f":"A260&\"-\"&B260","v":"2011-junio "},{"$f":"IF('[2]REAL IPC(M)'!$AL267=\"\",\"\",+'[2]REAL IPC(M)'!$AL267)","v":7.3336825563121932},{"$f":"IF('[2]REAL IPC(M)'!$BE267=\"\",\"\",+'[2]REAL IPC(M)'!$BE267)","v":5.1282612523161353},{"$f":"IF('[2]REAL IPC(M)'!$AM267=\"\",\"\",+'[2]REAL IPC(M)'!$AM267)","v":7.2341916272552043},{"$f":"IF('[2]REAL IPC(M)'!$BI267=\"\",\"\",+'[2]REAL IPC(M)'!$BI267)","v":5.1388270085951593},{"$f":"IF('[2]REAL IMAE(M)'!BJ267=\"\",\"\",'[2]REAL IMAE(M)'!BJ267)","v":4.8131717807590624},{"$f":"IF('[2]REAL IMAE(M)'!BK267=\"\",\"\",'[2]REAL IMAE(M)'!BK267)","v":3.7652175575306535},{"$f":"IF('[2]REAL IMAE(M)'!BN267=\"\",\"\",'[2]REAL IMAE(M)'!BN267)","v":5.8364349270734639},{"$f":"IF('[2]REAL IMAE(M)'!BO267=\"\",\"\",'[2]REAL IMAE(M)'!BO267)","v":4.7252115738295686},{"$f":"IF('[2]EXT RIN(M)'!$K267=\"\",\"\",'[2]EXT RIN(M)'!$K267)","v":21540.918808838822},{"$f":"IF(B260<>\"diciembre\",\"\",L260)","v":""},{"$f":"IF('[2]EXT RIN(M)'!$L267=\"\",\"\",'[2]EXT RIN(M)'!$L267)","v":23889.398043958823},{"$f":"IF(B260<>\"diciembre\",\"\",N260)","v":""},{"$f":"IF('[2]MONE(M)CARD'!EG267=\"\",\"\",'[2]MONE(M)CARD'!EG267)","v":22389.366448411449},{"$f":"IF('[2]MONE(M)CARD'!EK267=\"\",\"\",'[2]MONE(M)CARD'!EK267)","v":36761.008398516758},{"$f":"IF('[2]MONE(M)CARD'!EP267=\"\",\"\",'[2]MONE(M)CARD'!EP267)","v":21455.883936172853},{"$f":"IF('[2]MONE(M)CARD'!ES267=\"\",\"\",'[2]MONE(M)CARD'!ES267)","v":40.681018259537069},{"$f":"IF('[2]MONE(M)CARD'!EV267=\"\",\"\",'[2]MONE(M)CARD'!EV267)","v":35.727091434711397},{"$f":"IF('[2]MONE(M)CARD'!EZ267=\"\",\"\",'[2]MONE(M)CARD'!EZ267)","v":35.6480374007661},{"$f":"IF('[2]MONE(M)CAPARD'!FC267=\"\",\"\",'[2]MONE(M)CAPARD'!FC267)","v":27803.208858621452},{"$f":"IF('[2]MONE(M)CAPARD'!FG267=\"\",\"\",'[2]MONE(M)CAPARD'!FG267)","v":56270.306799676764},{"$f":"IF('[2]MONE(M)CAPARD'!FL267=\"\",\"\",'[2]MONE(M)CAPARD'!FL267)","v":21455.883936172861},{"$f":"IF('[2]MONE(M)CAPARD'!FO267=\"\",\"\",'[2]MONE(M)CAPARD'!FO267)","v":36.381723348227091},{"$f":"IF('[2]MONE(M)CAPARD'!FR267=\"\",\"\",'[2]MONE(M)CAPARD'!FR267)","v":26.952558232718381},{"$f":"IF('[2]MONE(M)CAPARD'!FV267=\"\",\"\",'[2]MONE(M)CAPARD'!FV267)","v":28.5892050764188},{"$f":"IF('[2]MONE(M)CARD'!FV267=\"\",\"\",'[2]MONE(M)CARD'!FV267)","v":2685.2743130998892},{"$f":"IF('[2]MONE(M)CARD'!GD267=\"\",\"\",'[2]MONE(M)CARD'!GD267)","v":169.66393295240579},{"$f":"IF('[2]MONE(M)CARD'!GE267=\"\",\"\",'[2]MONE(M)CARD'!GE267)","v":6012.189482169767},52.344770675549348,{"$f":"IF('[9]II.2.Balance OSD-Activos'!J125=\"\",\"\",'[9]II.2.Balance OSD-Activos'!J125)","v":145.72451818124256},{"$f":"IF('[9]II.2.Balance OSD-Activos'!N125=\"\",\"\",'[9]II.2.Balance OSD-Activos'!N125)","v":405.77107129290454},{"$f":"IF('[9]II.2.Balance OSD-Activos'!R125=\"\",\"\",'[9]II.2.Balance OSD-Activos'!R125)","v":26663.411428794963},{"$f":"IF('[9]II.2.Balance OSD-Activos'!S125=\"\",\"\",'[9]II.2.Balance OSD-Activos'!S125)","v":31144.980220783862},26809.135946976206,58359.887239052972,1067.9204132209156,32.695392334166648,131.69013066777691,32.055664188075774,34.44617023724912,34.02496390781333,24.001742386705867,{"$f":"IF('[2]MONE(M)CAPARD'!GS267=\"\",\"\",'[2]MONE(M)CAPARD'!GS267)","v":13859.915399888214},{"$f":"IF('[2]MONE(M)CARD'!HA267=\"\",\"\",'[2]MONE(M)CAPARD'!HA267)","v":6598.0866249597666},{"$f":"IF('[2]MONE(M)CAPARD'!HB267=\"\",\"\",'[2]MONE(M)CAPARD'!HB267)","v":7261.8287749284473},"n.d.",{"$f":"IF('[10]II.2.Balance OSD-Activos'!J125=\"\",\"\",'[10]II.2.Balance OSD-Activos'!J125)","v":757.96011530124235},{"$f":"IF('[10]II.2.Balance OSD-Activos'!N125=\"\",\"\",'[10]II.2.Balance OSD-Activos'!N125)","v":776.87522873290459},{"$f":"IF('[10]II.2.Balance OSD-Activos'!R125=\"\",\"\",'[10]II.2.Balance OSD-Activos'!R125)","v":39289.873847484967},{"$f":"IF('[10]II.2.Balance OSD-Activos'!S125=\"\",\"\",'[10]II.2.Balance OSD-Activos'!S125)","v":41739.101684803863},40047.833962786208,82563.810876322968,126.88982851359181,28.161259706374931,78.499738202488345,27.094369217786873,26.138028468842812,27.465907694504676,17.654403555217101,{"$f":"IF('[2]MONE(M)CAPARD'!AS267=\"\",\"\",'[2]MONE(M)CAPARD'!AS267)","v":5},{"$f":"IF('[2]MONE(M)CAPARD'!AT267=\"\",\"\",'[2]MONE(M)CAPARD'!AT267)","v":"n.a."},{"$f":"IF('[2]MONE(M)CAPARD'!AU267=\"\",\"\",'[2]MONE(M)CAPARD'!AU267)","v":4.75},{"$f":"IF('[2]MONE(M)CAPARD'!AV267=\"\",\"\",'[2]MONE(M)CAPARD'!AV267)","v":4.5},{"$f":"IF('[2]MONE(M)CAPARD'!AW267=\"\",\"\",'[2]MONE(M)CAPARD'!AW267)","v":"n.a."},{"$f":"IF('[2]MONE(M)CAPARD'!AX267=\"\",\"\",'[2]MONE(M)CAPARD'!AX267)","v":6.75},{"$f":"IF('[2]MONE(M)CAPARD'!AY267=\"\",\"\",'[2]MONE(M)CAPARD'!AY267)","v":"n.a."},{"$f":"IF('[2]FISCAL(M)'!$K267=\"\",\"\",'[2]FISCAL(M)'!$K267)","v":-2256.428854487684},{"$f":"IF('[2]FISCAL(M)'!$L267=\"\",\"\",'[2]FISCAL(M)'!$L267)","v":-2672.1522951376842},{"$f":"IF('[2]FISCAL(M)'!$AY267=\"\",\"\",'[2]FISCAL(M)'!$AY267)","v":71884.634380806703},{"$f":"IF('[2]FISCAL(M)'!$BI267=\"\",\"\",'[2]FISCAL(M)'!$BI267)","v":37002.791944865472},{"$f":"IF('[2]FISCAL(M)'!$BS267=\"\",\"\",'[2]FISCAL(M)'!$BS267)","v":34881.842435941238},{"$f":"IF('[2]FISCAL(M)'!$AZ267=\"\",\"\",'[2]FISCAL(M)'!$AZ267)","v":84476.766988136704},{"$f":"IF('[2]FISCAL(M)'!$BJ267=\"\",\"\",'[2]FISCAL(M)'!$BJ267)","v":38976.182388315472},{"$f":"IF('[2]FISCAL(M)'!$BT267=\"\",\"\",'[2]FISCAL(M)'!$BT267)","v":45500.584599821232},{"$f":"IF('[3]MONE(M)'!$AO267=\"\",\"\",'[3]MONE(M)'!$AO267)","v":9774692.21556288},{"$f":"IF('[4]MONE(M)'!$AO267=\"\",\"\",'[4]MONE(M)'!$AO267)","v":8766.1176485801207},{"$f":"IF('[5]MONE(M)'!$AO267=\"\",\"\",'[5]MONE(M)'!$AO267)","v":88214.304191987379},{"$f":"+'[1]MONE(M)'!$AO267","v":145925.86767964056},{"$f":"IF('[6]MONE(M)'!$AO267=\"\",\"\",'[6]MONE(M)'!$AO267)","v":44337.360101023783},{"$f":"IF('[7]MONE(M)'!$AO267=\"\",\"\",'[7]MONE(M)'!$AO267)","v":449338.85697361},{"$f":"IF('[8]MONE(M)'!$AO267=\"\",\"\",'[8]MONE(M)'!$AO267)","v":24537.730655620006},9.0644657584439727,2.3851982295741259,7.9500860240427906,6.094122587076245,6.5484375648153348,15.623846410260356,14.375454097222097,{"$f":"IF('[2]FISCAL(M)'!$K267=\"\",\"\",'[2]FISCAL(M)'!$K267)","v":-2256.428854487684},{"$f":"+'[2]REAL(A)'!$AO$31","v":196050.70057903719},-1.1509414900448223,{"$f":"IF('[2]FISCAL(M)'!$L267=\"\",\"\",'[2]FISCAL(M)'!$L267)","v":-2672.1522951376842},{"$f":"+'[2]REAL(A)'!$AP$31","v":230736.92857903719},{"$f":"IF(OR(CP260=\"n.d.\",CP260=\"\",CQ260=\"\",CQ260=\"n.d.\"),\"n.d.\",(CP260/CQ260)*100)","v":-1.1580947668818251},86915.283248221036,{"$f":"'[2]Gráfico REM'!BG261","v":20740.026936101509},{"$f":"'[2]Gráfico REM'!BH261","v":61244.158378125387},{"$f":"'[2]Gráfico REM'!BI261","v":4931.0979339941459},12.798880737442641,23.534104357933639,10.463708890431267,2.270431716029786,129234.23538915104,{"$f":"'[2]Gráfico REM'!BK261","v":21759.714180731509},{"$f":"'[2]Gráfico REM'!BL261","v":85781.889033745392},{"$f":"'[2]Gráfico REM'!BM261","v":21692.632174674145},14.466728684606057,22.163866119620469,11.555063290975532,19.237637046959044]
[2011,"julio","2011-julio",{"$f":"IF('[2]REAL IPC(M)'!$AL268=\"\",\"\",+'[2]REAL IPC(M)'!$AL268)","v":7.6722338204592955},{"$f":"IF('[2]REAL IPC(M)'!$BE268=\"\",\"\",+'[2]REAL IPC(M)'!$BE268)","v":5.1137682787144811},{"$f":"IF('[2]REAL IPC(M)'!$AM268=\"\",\"\",+'[2]REAL IPC(M)'!$AM268)","v":7.4112825878454913},{"$f":"IF('[2]REAL IPC(M)'!$BI268=\"\",\"\",+'[2]REAL IPC(M)'!$BI268)","v":5.1325589583504305},{"$f":"IF('[2]REAL IMAE(M)'!BJ268=\"\",\"\",'[2]REAL IMAE(M)'!BJ268)","v":4.7123988472970835},{"$f":"IF('[2]REAL IMAE(M)'!BK268=\"\",\"\",'[2]REAL IMAE(M)'!BK268)","v":3.7879884437398204},{"$f":"IF('[2]REAL IMAE(M)'!BN268=\"\",\"\",'[2]REAL IMAE(M)'!BN268)","v":5.9421629709927259},{"$f":"IF('[2]REAL IMAE(M)'!BO268=\"\",\"\",'[2]REAL IMAE(M)'!BO268)","v":4.7556696286813027},{"$f":"IF('[2]EXT RIN(M)'!$K268=\"\",\"\",'[2]EXT RIN(M)'!$K268)","v":22134.017765918263},"",{"$f":"IF('[2]EXT RIN(M)'!$L268=\"\",\"\",'[2]EXT RIN(M)'!$L268)","v":24249.814748468263},"",{"$f":"IF('[2]MONE(M)CARD'!EG268=\"\",\"\",'[2]MONE(M)CARD'!EG268)","v":22890.662000381897},{"$f":"IF('[2]MONE(M)CARD'!EK268=\"\",\"\",'[2]MONE(M)CARD'!EK268)","v":37001.768599368341},{"$f":"IF('[2]MONE(M)CARD'!EP268=\"\",\"\",'[2]MONE(M)CARD'!EP268)","v":21289.813748946806},{"$f":"IF('[2]MONE(M)CARD'!ES268=\"\",\"\",'[2]MONE(M)CARD'!ES268)","v":40.586699280968965},{"$f":"IF('[2]MONE(M)CARD'!EV268=\"\",\"\",'[2]MONE(M)CARD'!EV268)","v":35.65532137982548},{"$f":"IF('[2]MONE(M)CARD'!EZ268=\"\",\"\",'[2]MONE(M)CARD'!EZ268)","v":35.059076585018659},{"$f":"IF('[2]MONE(M)CAPARD'!FC268=\"\",\"\",'[2]MONE(M)CAPARD'!FC268)","v":28478.904644971899},{"$f":"IF('[2]MONE(M)CAPARD'!FG268=\"\",\"\",'[2]MONE(M)CAPARD'!FG268)","v":56731.74521928835},{"$f":"IF('[2]MONE(M)CAPARD'!FL268=\"\",\"\",'[2]MONE(M)CAPARD'!FL268)","v":21289.813748946821},{"$f":"IF('[2]MONE(M)CAPARD'!FO268=\"\",\"\",'[2]MONE(M)CAPARD'!FO268)","v":36.974895642566061},{"$f":"IF('[2]MONE(M)CAPARD'!FR268=\"\",\"\",'[2]MONE(M)CAPARD'!FR268)","v":27.433816637834376},{"$f":"IF('[2]MONE(M)CAPARD'!FV268=\"\",\"\",'[2]MONE(M)CAPARD'!FV268)","v":28.585177712862951},{"$f":"IF('[2]MONE(M)CARD'!FV268=\"\",\"\",'[2]MONE(M)CARD'!FV268)","v":2927.5499690684996},{"$f":"IF('[2]MONE(M)CARD'!GD268=\"\",\"\",'[2]MONE(M)CARD'!GD268)","v":87.14804512498651},{"$f":"IF('[2]MONE(M)CARD'!GE268=\"\",\"\",'[2]MONE(M)CARD'!GE268)","v":6133.8191268183373},55.456726961329217,{"$f":"IF('[9]II.2.Balance OSD-Activos'!J126=\"\",\"\",'[9]II.2.Balance OSD-Activos'!J126)","v":149.55545718050359},{"$f":"IF('[9]II.2.Balance OSD-Activos'!N126=\"\",\"\",'[9]II.2.Balance OSD-Activos'!N126)","v":423.20707933234451},{"$f":"IF('[9]II.2.Balance OSD-Activos'!R126=\"\",\"\",'[9]II.2.Balance OSD-Activos'!R126)","v":26843.99412852931},{"$f":"IF('[9]II.2.Balance OSD-Activos'!S126=\"\",\"\",'[9]II.2.Balance OSD-Activos'!S126)","v":31504.353188099078},26993.549585709814,58921.109853141235,1372.2009837695334,32.595233051039017,144.99257386736076,31.926432154366303,34.043854495090152,33.809369224490979,-0.21559468332235099,{"$f":"IF('[2]MONE(M)CAPARD'!GS268=\"\",\"\",'[2]MONE(M)CAPARD'!GS268)","v":13594.663256016842},{"$f":"IF('[2]MONE(M)CARD'!HA268=\"\",\"\",'[2]MONE(M)CAPARD'!HA268)","v":6724.2880431383373},{"$f":"IF('[2]MONE(M)CAPARD'!HB268=\"\",\"\",'[2]MONE(M)CAPARD'!HB268)","v":6870.3752128785045},"n.d.",{"$f":"IF('[10]II.2.Balance OSD-Activos'!J126=\"\",\"\",'[10]II.2.Balance OSD-Activos'!J126)","v":767.57126744050345},{"$f":"IF('[10]II.2.Balance OSD-Activos'!N126=\"\",\"\",'[10]II.2.Balance OSD-Activos'!N126)","v":827.93687663234448},{"$f":"IF('[10]II.2.Balance OSD-Activos'!R126=\"\",\"\",'[10]II.2.Balance OSD-Activos'!R126)","v":39813.846662299315},{"$f":"IF('[10]II.2.Balance OSD-Activos'!S126=\"\",\"\",'[10]II.2.Balance OSD-Activos'!S126)","v":42105.348100119074},40581.417929739815,83514.702906491235,140.65254055915184,29.246560725118265,91.134508741690297,28.103253934290095,25.708211510520897,27.842723044636799,0.37681535013212297,{"$f":"IF('[2]MONE(M)CAPARD'!AS268=\"\",\"\",'[2]MONE(M)CAPARD'!AS268)","v":5},{"$f":"IF('[2]MONE(M)CAPARD'!AT268=\"\",\"\",'[2]MONE(M)CAPARD'!AT268)","v":"n.a."},{"$f":"IF('[2]MONE(M)CAPARD'!AU268=\"\",\"\",'[2]MONE(M)CAPARD'!AU268)","v":5},{"$f":"IF('[2]MONE(M)CAPARD'!AV268=\"\",\"\",'[2]MONE(M)CAPARD'!AV268)","v":4.5},{"$f":"IF('[2]MONE(M)CAPARD'!AW268=\"\",\"\",'[2]MONE(M)CAPARD'!AW268)","v":"n.a."},{"$f":"IF('[2]MONE(M)CAPARD'!AX268=\"\",\"\",'[2]MONE(M)CAPARD'!AX268)","v":6.75},{"$f":"IF('[2]MONE(M)CAPARD'!AY268=\"\",\"\",'[2]MONE(M)CAPARD'!AY268)","v":"n.a."},{"$f":"IF('[2]FISCAL(M)'!$K268=\"\",\"\",'[2]FISCAL(M)'!$K268)","v":-2749.5122901452687},{"$f":"IF('[2]FISCAL(M)'!$L268=\"\",\"\",'[2]FISCAL(M)'!$L268)","v":-3353.7131992052682},{"$f":"IF('[2]FISCAL(M)'!$AY268=\"\",\"\",'[2]FISCAL(M)'!$AY268)","v":72752.932546662953},{"$f":"IF('[2]FISCAL(M)'!$BI268=\"\",\"\",'[2]FISCAL(M)'!$BI268)","v":37134.72083748474},{"$f":"IF('[2]FISCAL(M)'!$BS268=\"\",\"\",'[2]FISCAL(M)'!$BS268)","v":35618.211709178213},{"$f":"IF('[2]FISCAL(M)'!$AZ268=\"\",\"\",'[2]FISCAL(M)'!$AZ268)","v":85483.538779772964},{"$f":"IF('[2]FISCAL(M)'!$BJ268=\"\",\"\",'[2]FISCAL(M)'!$BJ268)","v":39192.681313804736},{"$f":"IF('[2]FISCAL(M)'!$BT268=\"\",\"\",'[2]FISCAL(M)'!$BT268)","v":46290.85746596822},{"$f":"IF('[3]MONE(M)'!$AO268=\"\",\"\",'[3]MONE(M)'!$AO268)","v":9891237.1977583189},{"$f":"IF('[4]MONE(M)'!$AO268=\"\",\"\",'[4]MONE(M)'!$AO268)","v":8814.635333860122},{"$f":"IF('[5]MONE(M)'!$AO268=\"\",\"\",'[5]MONE(M)'!$AO268)","v":88584.586281566997},{"$f":"+'[1]MONE(M)'!$AO268","v":147070.86408588706},{"$f":"IF('[6]MONE(M)'!$AO268=\"\",\"\",'[6]MONE(M)'!$AO268)","v":44699.583837033773},{"$f":"IF('[7]MONE(M)'!$AO268=\"\",\"\",'[7]MONE(M)'!$AO268)","v":455480.58472166007},{"$f":"IF('[8]MONE(M)'!$AO268=\"\",\"\",'[8]MONE(M)'!$AO268)","v":24900.120694450001},11.188723328922091,1.9031267247356265,8.5819012190139645,7.2561536595616483,7.264639259770922,16.368136076046035,15.733142299677215,{"$f":"IF('[2]FISCAL(M)'!$K268=\"\",\"\",'[2]FISCAL(M)'!$K268)","v":-2749.5122901452687},{"$f":"+'[2]REAL(A)'!$AO$31","v":196050.70057903719},-1.4024496122811925,{"$f":"IF('[2]FISCAL(M)'!$L268=\"\",\"\",'[2]FISCAL(M)'!$L268)","v":-3353.7131992052682},{"$f":"+'[2]REAL(A)'!$AP$31","v":230736.92857903719},-1.453479172085139,86941.094770384327,{"$f":"'[2]Gráfico REM'!BG262","v":20316.494294582219},{"$f":"'[2]Gráfico REM'!BH262","v":61748.7572553922},{"$f":"'[2]Gráfico REM'!BI262","v":4875.8432204099099},11.46224952848085,17.74190472106185,10.211039362919072,3.3535949984324409,130213.92283423433,{"$f":"'[2]Gráfico REM'!BK262","v":21408.219969662219},{"$f":"'[2]Gráfico REM'!BL262","v":86648.877949842194},{"$f":"'[2]Gráfico REM'!BM262","v":22156.824914729907},14.394960881434393,17.97275767692803,11.743207388357412,22.151782655937712]
[2011,"agosto","2011-agosto",{"$f":"IF('[2]REAL IPC(M)'!$AL269=\"\",\"\",+'[2]REAL IPC(M)'!$AL269)","v":8.0500738937668395},{"$f":"IF('[2]REAL IPC(M)'!$BE269=\"\",\"\",+'[2]REAL IPC(M)'!$BE269)","v":5.0950490350450739},{"$f":"IF('[2]REAL IPC(M)'!$AM269=\"\",\"\",+'[2]REAL IPC(M)'!$AM269)","v":7.7425535620971875},{"$f":"IF('[2]REAL IPC(M)'!$BI269=\"\",\"\",+'[2]REAL IPC(M)'!$BI269)","v":5.1214214183644691},{"$f":"IF('[2]REAL IMAE(M)'!BJ269=\"\",\"\",'[2]REAL IMAE(M)'!BJ269)","v":4.4812550792549199},{"$f":"IF('[2]REAL IMAE(M)'!BK269=\"\",\"\",'[2]REAL IMAE(M)'!BK269)","v":3.8070686308181667},{"$f":"IF('[2]REAL IMAE(M)'!BN269=\"\",\"\",'[2]REAL IMAE(M)'!BN269)","v":5.9409430067655755},{"$f":"IF('[2]REAL IMAE(M)'!BO269=\"\",\"\",'[2]REAL IMAE(M)'!BO269)","v":4.7804279955250717},{"$f":"IF('[2]EXT RIN(M)'!$K269=\"\",\"\",'[2]EXT RIN(M)'!$K269)","v":21294.223249136452},"",{"$f":"IF('[2]EXT RIN(M)'!$L269=\"\",\"\",'[2]EXT RIN(M)'!$L269)","v":23208.238909846452},"",{"$f":"IF('[2]MONE(M)CARD'!EG269=\"\",\"\",'[2]MONE(M)CARD'!EG269)","v":22299.95174824282},{"$f":"IF('[2]MONE(M)CARD'!EK269=\"\",\"\",'[2]MONE(M)CARD'!EK269)","v":37267.157727148675},{"$f":"IF('[2]MONE(M)CARD'!EP269=\"\",\"\",'[2]MONE(M)CARD'!EP269)","v":21186.975064222745},{"$f":"IF('[2]MONE(M)CARD'!ES269=\"\",\"\",'[2]MONE(M)CARD'!ES269)","v":37.729800737465681},{"$f":"IF('[2]MONE(M)CARD'!EV269=\"\",\"\",'[2]MONE(M)CARD'!EV269)","v":35.128321001145515},{"$f":"IF('[2]MONE(M)CARD'!EZ269=\"\",\"\",'[2]MONE(M)CARD'!EZ269)","v":34.462564790946715},{"$f":"IF('[2]MONE(M)CAPARD'!FC269=\"\",\"\",'[2]MONE(M)CAPARD'!FC269)","v":28004.558915362817},{"$f":"IF('[2]MONE(M)CAPARD'!FG269=\"\",\"\",'[2]MONE(M)CAPARD'!FG269)","v":56985.301423778677},{"$f":"IF('[2]MONE(M)CAPARD'!FL269=\"\",\"\",'[2]MONE(M)CAPARD'!FL269)","v":21186.975064222745},{"$f":"IF('[2]MONE(M)CAPARD'!FO269=\"\",\"\",'[2]MONE(M)CAPARD'!FO269)","v":34.849893683203639},{"$f":"IF('[2]MONE(M)CAPARD'!FR269=\"\",\"\",'[2]MONE(M)CAPARD'!FR269)","v":27.022879431082035},{"$f":"IF('[2]MONE(M)CAPARD'!FV269=\"\",\"\",'[2]MONE(M)CAPARD'!FV269)","v":28.102718210692434},{"$f":"IF('[2]MONE(M)CARD'!FV269=\"\",\"\",'[2]MONE(M)CARD'!FV269)","v":2893.7265671141113},{"$f":"IF('[2]MONE(M)CARD'!GD269=\"\",\"\",'[2]MONE(M)CARD'!GD269)","v":83.078211316956072},{"$f":"IF('[2]MONE(M)CARD'!GE269=\"\",\"\",'[2]MONE(M)CARD'!GE269)","v":5951.7683789320708},45.738525680003093,{"$f":"IF('[9]II.2.Balance OSD-Activos'!J127=\"\",\"\",'[9]II.2.Balance OSD-Activos'!J127)","v":154.13882019456634},{"$f":"IF('[9]II.2.Balance OSD-Activos'!N127=\"\",\"\",'[9]II.2.Balance OSD-Activos'!N127)","v":416.27375281355626},{"$f":"IF('[9]II.2.Balance OSD-Activos'!R127=\"\",\"\",'[9]II.2.Balance OSD-Activos'!R127)","v":26780.276592454673},{"$f":"IF('[9]II.2.Balance OSD-Activos'!S127=\"\",\"\",'[9]II.2.Balance OSD-Activos'!S127)","v":31780.186490710519},26934.415412649239,59130.875656173317,1233.963384293452,30.927853322545463,151.16749628551855,30.251746880182417,33.845709686669821,32.933385734738849,-0.87598348975213014,{"$f":"IF('[2]MONE(M)CAPARD'!GS269=\"\",\"\",'[2]MONE(M)CAPARD'!GS269)","v":13557.634646916078},{"$f":"IF('[2]MONE(M)CARD'!HA269=\"\",\"\",'[2]MONE(M)CAPARD'!HA269)","v":6543.5767630520704},{"$f":"IF('[2]MONE(M)CAPARD'!HB269=\"\",\"\",'[2]MONE(M)CAPARD'!HB269)","v":7014.0578838640076},"n.d.",{"$f":"IF('[10]II.2.Balance OSD-Activos'!J127=\"\",\"\",'[10]II.2.Balance OSD-Activos'!J127)","v":823.78786613456634},{"$f":"IF('[10]II.2.Balance OSD-Activos'!N127=\"\",\"\",'[10]II.2.Balance OSD-Activos'!N127)","v":815.48039147355632},{"$f":"IF('[10]II.2.Balance OSD-Activos'!R127=\"\",\"\",'[10]II.2.Balance OSD-Activos'!R127)","v":40226.348279734673},{"$f":"IF('[10]II.2.Balance OSD-Activos'!S127=\"\",\"\",'[10]II.2.Balance OSD-Activos'!S127)","v":42470.269009120522},41050.136145869241,84335.885546463309,149.2038496934974,28.424088068138431,103.48975144221714,27.161965781763865,25.717956920269192,27.496816760509326,-0.34590628412747293,{"$f":"IF('[2]MONE(M)CAPARD'!AS269=\"\",\"\",'[2]MONE(M)CAPARD'!AS269)","v":5},{"$f":"IF('[2]MONE(M)CAPARD'!AT269=\"\",\"\",'[2]MONE(M)CAPARD'!AT269)","v":"n.a."},{"$f":"IF('[2]MONE(M)CAPARD'!AU269=\"\",\"\",'[2]MONE(M)CAPARD'!AU269)","v":5},{"$f":"IF('[2]MONE(M)CAPARD'!AV269=\"\",\"\",'[2]MONE(M)CAPARD'!AV269)","v":4.5},{"$f":"IF('[2]MONE(M)CAPARD'!AW269=\"\",\"\",'[2]MONE(M)CAPARD'!AW269)","v":"n.a."},{"$f":"IF('[2]MONE(M)CAPARD'!AX269=\"\",\"\",'[2]MONE(M)CAPARD'!AX269)","v":6.75},{"$f":"IF('[2]MONE(M)CAPARD'!AY269=\"\",\"\",'[2]MONE(M)CAPARD'!AY269)","v":"n.a."},{"$f":"IF('[2]FISCAL(M)'!$K269=\"\",\"\",'[2]FISCAL(M)'!$K269)","v":-3167.3746173329464},{"$f":"IF('[2]FISCAL(M)'!$L269=\"\",\"\",'[2]FISCAL(M)'!$L269)","v":-4103.1607104629475},{"$f":"IF('[2]FISCAL(M)'!$AY269=\"\",\"\",'[2]FISCAL(M)'!$AY269)","v":72616.417108501919},{"$f":"IF('[2]FISCAL(M)'!$BI269=\"\",\"\",'[2]FISCAL(M)'!$BI269)","v":37205.867108501909},{"$f":"IF('[2]FISCAL(M)'!$BS269=\"\",\"\",'[2]FISCAL(M)'!$BS269)","v":35410.550000000003},{"$f":"IF('[2]FISCAL(M)'!$AZ269=\"\",\"\",'[2]FISCAL(M)'!$AZ269)","v":85357.587501271904},{"$f":"IF('[2]FISCAL(M)'!$BJ269=\"\",\"\",'[2]FISCAL(M)'!$BJ269)","v":39261.39712397191},{"$f":"IF('[2]FISCAL(M)'!$BT269=\"\",\"\",'[2]FISCAL(M)'!$BT269)","v":46096.190377300001},{"$f":"IF('[3]MONE(M)'!$AO269=\"\",\"\",'[3]MONE(M)'!$AO269)","v":10057386.237096863},{"$f":"IF('[4]MONE(M)'!$AO269=\"\",\"\",'[4]MONE(M)'!$AO269)","v":8798.3398399801226},{"$f":"IF('[5]MONE(M)'!$AO269=\"\",\"\",'[5]MONE(M)'!$AO269)","v":89001.923816099472},{"$f":"+'[1]MONE(M)'!$AO269","v":148168.22059366779},{"$f":"IF('[6]MONE(M)'!$AO269=\"\",\"\",'[6]MONE(M)'!$AO269)","v":45733.401889663779},{"$f":"IF('[7]MONE(M)'!$AO269=\"\",\"\",'[7]MONE(M)'!$AO269)","v":459852.30398615007},{"$f":"IF('[8]MONE(M)'!$AO269=\"\",\"\",'[8]MONE(M)'!$AO269)","v":25559.926031169998},12.781213977722183,1.9043279685367231,8.4466687554852093,8.3402707884963956,9.2512799660430911,15.268418555126217,16.596655138466907,{"$f":"IF('[2]FISCAL(M)'!$K269=\"\",\"\",'[2]FISCAL(M)'!$K269)","v":-3167.3746173329464},{"$f":"+'[2]REAL(A)'!$AO$31","v":196050.70057903719},-1.6155895428978737,{"$f":"IF('[2]FISCAL(M)'!$L269=\"\",\"\",'[2]FISCAL(M)'!$L269)","v":-4103.1607104629475},{"$f":"+'[2]REAL(A)'!$AP$31","v":230736.92857903719},-1.7782852254000774,86780.439573786643,{"$f":"'[2]Gráfico REM'!BG263","v":20059.157680953715},{"$f":"'[2]Gráfico REM'!BH263","v":61989.518132910998},{"$f":"'[2]Gráfico REM'!BI263","v":4731.7637599219333},10.293828027838714,15.864817369761152,9.736934446568867,-3.0253885330713715,130788.04992185665,{"$f":"'[2]Gráfico REM'!BK263","v":21149.583869763715},{"$f":"'[2]Gráfico REM'!BL263","v":87549.444164080996},{"$f":"'[2]Gráfico REM'!BM263","v":22089.021888011932},13.125633075427313,16.5126325041971,11.654736105628993,15.95254787712388]
[2011,"septiembre","2011-septiembre",{"$f":"IF('[2]REAL IPC(M)'!$AL270=\"\",\"\",+'[2]REAL IPC(M)'!$AL270)","v":7.5943886387253245},{"$f":"IF('[2]REAL IPC(M)'!$BE270=\"\",\"\",+'[2]REAL IPC(M)'!$BE270)","v":5.0719193833811849},{"$f":"IF('[2]REAL IPC(M)'!$AM270=\"\",\"\",+'[2]REAL IPC(M)'!$AM270)","v":7.4205867036972739},{"$f":"IF('[2]REAL IPC(M)'!$BI270=\"\",\"\",+'[2]REAL IPC(M)'!$BI270)","v":5.105179603804566},{"$f":"IF('[2]REAL IMAE(M)'!BJ270=\"\",\"\",'[2]REAL IMAE(M)'!BJ270)","v":3.9608914882134361},{"$f":"IF('[2]REAL IMAE(M)'!BK270=\"\",\"\",'[2]REAL IMAE(M)'!BK270)","v":3.8229058694893014},{"$f":"IF('[2]REAL IMAE(M)'!BN270=\"\",\"\",'[2]REAL IMAE(M)'!BN270)","v":5.3480338361877156},{"$f":"IF('[2]REAL IMAE(M)'!BO270=\"\",\"\",'[2]REAL IMAE(M)'!BO270)","v":4.7998112455817088},{"$f":"IF('[2]EXT RIN(M)'!$K270=\"\",\"\",'[2]EXT RIN(M)'!$K270)","v":20709.361117411754},"",{"$f":"IF('[2]EXT RIN(M)'!$L270=\"\",\"\",'[2]EXT RIN(M)'!$L270)","v":22507.489649351755},"",{"$f":"IF('[2]MONE(M)CARD'!EG270=\"\",\"\",'[2]MONE(M)CARD'!EG270)","v":22224.798643998402},{"$f":"IF('[2]MONE(M)CARD'!EK270=\"\",\"\",'[2]MONE(M)CARD'!EK270)","v":37169.890726912541},{"$f":"IF('[2]MONE(M)CARD'!EP270=\"\",\"\",'[2]MONE(M)CARD'!EP270)","v":20934.585613389834},{"$f":"IF('[2]MONE(M)CARD'!ES270=\"\",\"\",'[2]MONE(M)CARD'!ES270)","v":37.632090541611383},{"$f":"IF('[2]MONE(M)CARD'!EV270=\"\",\"\",'[2]MONE(M)CARD'!EV270)","v":35.374676146903909},{"$f":"IF('[2]MONE(M)CARD'!EZ270=\"\",\"\",'[2]MONE(M)CARD'!EZ270)","v":34.764557677350162},{"$f":"IF('[2]MONE(M)CAPARD'!FC270=\"\",\"\",'[2]MONE(M)CAPARD'!FC270)","v":27924.634095478403},{"$f":"IF('[2]MONE(M)CAPARD'!FG270=\"\",\"\",'[2]MONE(M)CAPARD'!FG270)","v":56860.621665002553},{"$f":"IF('[2]MONE(M)CAPARD'!FL270=\"\",\"\",'[2]MONE(M)CAPARD'!FL270)","v":20934.585613389834},{"$f":"IF('[2]MONE(M)CAPARD'!FO270=\"\",\"\",'[2]MONE(M)CAPARD'!FO270)","v":35.044325567090453},{"$f":"IF('[2]MONE(M)CAPARD'!FR270=\"\",\"\",'[2]MONE(M)CAPARD'!FR270)","v":26.803541749696347},{"$f":"IF('[2]MONE(M)CAPARD'!FV270=\"\",\"\",'[2]MONE(M)CAPARD'!FV270)","v":27.99585597317904},{"$f":"IF('[2]MONE(M)CARD'!FV270=\"\",\"\",'[2]MONE(M)CARD'!FV270)","v":2758.2713744332136},{"$f":"IF('[2]MONE(M)CARD'!GD270=\"\",\"\",'[2]MONE(M)CARD'!GD270)","v":179.5712528348796},{"$f":"IF('[2]MONE(M)CARD'!GE270=\"\",\"\",'[2]MONE(M)CARD'!GE270)","v":6325.4029935867002},58.304754337822075,{"$f":"IF('[9]II.2.Balance OSD-Activos'!J128=\"\",\"\",'[9]II.2.Balance OSD-Activos'!J128)","v":142.20842899030671},{"$f":"IF('[9]II.2.Balance OSD-Activos'!N128=\"\",\"\",'[9]II.2.Balance OSD-Activos'!N128)","v":400.73706314300392},{"$f":"IF('[9]II.2.Balance OSD-Activos'!R128=\"\",\"\",'[9]II.2.Balance OSD-Activos'!R128)","v":27216.40562933922},{"$f":"IF('[9]II.2.Balance OSD-Activos'!S128=\"\",\"\",'[9]II.2.Balance OSD-Activos'!S128)","v":32064.811775018028},{"$f":"IFERROR(+AF263+AH263,\"n.d.\")","v":27358.614058329527},59824.162896490554,1265.6658548030193,32.884477828306366,144.19207292041474,32.260647008822765,33.775537149294735,33.770501369466579,0.83711563472773065,{"$f":"IF('[2]MONE(M)CAPARD'!GS270=\"\",\"\",'[2]MONE(M)CAPARD'!GS270)","v":13526.670118660277},{"$f":"IF('[2]MONE(M)CARD'!HA270=\"\",\"\",'[2]MONE(M)CAPARD'!HA270)","v":6915.9409792367005},{"$f":"IF('[2]MONE(M)CAPARD'!HB270=\"\",\"\",'[2]MONE(M)CAPARD'!HB270)","v":6610.7291394235763},"n.d.",{"$f":"IF('[10]II.2.Balance OSD-Activos'!J128=\"\",\"\",'[10]II.2.Balance OSD-Activos'!J128)","v":810.92261084030667},{"$f":"IF('[10]II.2.Balance OSD-Activos'!N128=\"\",\"\",'[10]II.2.Balance OSD-Activos'!N128)","v":795.68954930300401},{"$f":"IF('[10]II.2.Balance OSD-Activos'!R128=\"\",\"\",'[10]II.2.Balance OSD-Activos'!R128)","v":41016.706725689226},{"$f":"IF('[10]II.2.Balance OSD-Activos'!S128=\"\",\"\",'[10]II.2.Balance OSD-Activos'!S128)","v":42892.274335488029},41827.629336529535,85515.593221320567,114.62642757924763,29.330471016214887,99.334854002553925,28.322226759296299,25.958808429824121,28.029892561202139,0.53307580069281357,{"$f":"IF('[2]MONE(M)CAPARD'!AS270=\"\",\"\",'[2]MONE(M)CAPARD'!AS270)","v":5},{"$f":"IF('[2]MONE(M)CAPARD'!AT270=\"\",\"\",'[2]MONE(M)CAPARD'!AT270)","v":"n.a."},{"$f":"IF('[2]MONE(M)CAPARD'!AU270=\"\",\"\",'[2]MONE(M)CAPARD'!AU270)","v":5.5},{"$f":"IF('[2]MONE(M)CAPARD'!AV270=\"\",\"\",'[2]MONE(M)CAPARD'!AV270)","v":5},{"$f":"IF('[2]MONE(M)CAPARD'!AW270=\"\",\"\",'[2]MONE(M)CAPARD'!AW270)","v":"n.a."},{"$f":"IF('[2]MONE(M)CAPARD'!AX270=\"\",\"\",'[2]MONE(M)CAPARD'!AX270)","v":6.75},{"$f":"IF('[2]MONE(M)CAPARD'!AY270=\"\",\"\",'[2]MONE(M)CAPARD'!AY270)","v":"n.a."},{"$f":"IF('[2]FISCAL(M)'!$K270=\"\",\"\",'[2]FISCAL(M)'!$K270)","v":-3685.3163453819479},{"$f":"IF('[2]FISCAL(M)'!$L270=\"\",\"\",'[2]FISCAL(M)'!$L270)","v":-4629.0237458519496},{"$f":"IF('[2]FISCAL(M)'!$AY270=\"\",\"\",'[2]FISCAL(M)'!$AY270)","v":72547.394671585382},{"$f":"IF('[2]FISCAL(M)'!$BI270=\"\",\"\",'[2]FISCAL(M)'!$BI270)","v":37361.348671585394},{"$f":"IF('[2]FISCAL(M)'!$BS270=\"\",\"\",'[2]FISCAL(M)'!$BS270)","v":35186.046000000002},{"$f":"IF('[2]FISCAL(M)'!$AZ270=\"\",\"\",'[2]FISCAL(M)'!$AZ270)","v":85507.649582855389},{"$f":"IF('[2]FISCAL(M)'!$BJ270=\"\",\"\",'[2]FISCAL(M)'!$BJ270)","v":39582.114720445396},{"$f":"IF('[2]FISCAL(M)'!$BT270=\"\",\"\",'[2]FISCAL(M)'!$BT270)","v":45925.534862410001},{"$f":"IF('[3]MONE(M)'!$AO270=\"\",\"\",'[3]MONE(M)'!$AO270)","v":10158821.66241068},{"$f":"IF('[4]MONE(M)'!$AO270=\"\",\"\",'[4]MONE(M)'!$AO270)","v":8859.73511315},{"$f":"IF('[5]MONE(M)'!$AO270=\"\",\"\",'[5]MONE(M)'!$AO270)","v":90449.33973190657},{"$f":"+'[1]MONE(M)'!$AO270","v":150808.28715371905},{"$f":"IF('[6]MONE(M)'!$AO270=\"\",\"\",'[6]MONE(M)'!$AO270)","v":47134.255199490617},{"$f":"IF('[7]MONE(M)'!$AO270=\"\",\"\",'[7]MONE(M)'!$AO270)","v":467002.85657869995},{"$f":"IF('[8]MONE(M)'!$AO270=\"\",\"\",'[8]MONE(M)'!$AO270)","v":26055.073206610006},13.894679281044041,2.9328333948684948,10.624365865542229,9.7869655099460218,11.766833792486974,15.697645493323131,16.385830525640532,{"$f":"IF('[2]FISCAL(M)'!$K270=\"\",\"\",'[2]FISCAL(M)'!$K270)","v":-3685.3163453819479},{"$f":"+'[2]REAL(A)'!$AO$31","v":196050.70057903719},-1.8797771874812681,{"$f":"IF('[2]FISCAL(M)'!$L270=\"\",\"\",'[2]FISCAL(M)'!$L270)","v":-4629.0237458519496},{"$f":"+'[2]REAL(A)'!$AP$31","v":230736.92857903719},-2.0061911087918083,87455.525192985559,{"$f":"'[2]Gráfico REM'!BG264","v":20062.91400721886},{"$f":"'[2]Gráfico REM'!BH264","v":62590.166054832385},{"$f":"'[2]Gráfico REM'!BI264","v":4802.4451309343085},11.499175776176941,16.892970703847212,10.767653096625862,0.74942732386233946,131903.00998667555,{"$f":"'[2]Gráfico REM'!BK264","v":21192.778583508862},{"$f":"'[2]Gráfico REM'!BL264","v":88645.239261442388},{"$f":"'[2]Gráfico REM'!BM264","v":22064.992141724306},13.830313796267358,17.292972448924694,12.361884040345217,16.647193673019387]
[2011,"octubre","2011-octubre",{"$f":"IF('[2]REAL IPC(M)'!$AL271=\"\",\"\",+'[2]REAL IPC(M)'!$AL271)","v":6.8787618228718816},{"$f":"IF('[2]REAL IPC(M)'!$BE271=\"\",\"\",+'[2]REAL IPC(M)'!$BE271)","v":5.0443676336289212},{"$f":"IF('[2]REAL IPC(M)'!$AM271=\"\",\"\",+'[2]REAL IPC(M)'!$AM271)","v":6.7954467057606216},{"$f":"IF('[2]REAL IPC(M)'!$BI271=\"\",\"\",+'[2]REAL IPC(M)'!$BI271)","v":5.0837767950621116},{"$f":"IF('[2]REAL IMAE(M)'!BJ271=\"\",\"\",'[2]REAL IMAE(M)'!BJ271)","v":3.6971479945089758},{"$f":"IF('[2]REAL IMAE(M)'!BK271=\"\",\"\",'[2]REAL IMAE(M)'!BK271)","v":3.8359826902975014},{"$f":"IF('[2]REAL IMAE(M)'!BN271=\"\",\"\",'[2]REAL IMAE(M)'!BN271)","v":4.8919199179909612},{"$f":"IF('[2]REAL IMAE(M)'!BO271=\"\",\"\",'[2]REAL IMAE(M)'!BO271)","v":4.8142211242944377},{"$f":"IF('[2]EXT RIN(M)'!$K271=\"\",\"\",'[2]EXT RIN(M)'!$K271)","v":20765.30333387202},"",{"$f":"IF('[2]EXT RIN(M)'!$L271=\"\",\"\",'[2]EXT RIN(M)'!$L271)","v":22473.106082382019},"",{"$f":"IF('[2]MONE(M)CARD'!EG271=\"\",\"\",'[2]MONE(M)CARD'!EG271)","v":22222.387605283398},{"$f":"IF('[2]MONE(M)CARD'!EK271=\"\",\"\",'[2]MONE(M)CARD'!EK271)","v":37600.262602341434},{"$f":"IF('[2]MONE(M)CARD'!EP271=\"\",\"\",'[2]MONE(M)CARD'!EP271)","v":21080.669780313554},{"$f":"IF('[2]MONE(M)CARD'!ES271=\"\",\"\",'[2]MONE(M)CARD'!ES271)","v":35.664086454519015},{"$f":"IF('[2]MONE(M)CARD'!EV271=\"\",\"\",'[2]MONE(M)CARD'!EV271)","v":35.767597401818428},{"$f":"IF('[2]MONE(M)CARD'!EZ271=\"\",\"\",'[2]MONE(M)CARD'!EZ271)","v":35.77456659369853},{"$f":"IF('[2]MONE(M)CAPARD'!FC271=\"\",\"\",'[2]MONE(M)CAPARD'!FC271)","v":27879.439110113399},{"$f":"IF('[2]MONE(M)CAPARD'!FG271=\"\",\"\",'[2]MONE(M)CAPARD'!FG271)","v":57429.967095801447},{"$f":"IF('[2]MONE(M)CAPARD'!FL271=\"\",\"\",'[2]MONE(M)CAPARD'!FL271)","v":21080.669780313547},{"$f":"IF('[2]MONE(M)CAPARD'!FO271=\"\",\"\",'[2]MONE(M)CAPARD'!FO271)","v":32.067859848464053},{"$f":"IF('[2]MONE(M)CAPARD'!FR271=\"\",\"\",'[2]MONE(M)CAPARD'!FR271)","v":26.646295508232498},{"$f":"IF('[2]MONE(M)CAPARD'!FV271=\"\",\"\",'[2]MONE(M)CAPARD'!FV271)","v":28.359696066221286},{"$f":"IF('[2]MONE(M)CARD'!FV271=\"\",\"\",'[2]MONE(M)CARD'!FV271)","v":2795.396379159049},{"$f":"IF('[2]MONE(M)CARD'!GD271=\"\",\"\",'[2]MONE(M)CARD'!GD271)","v":95.224758796620904},{"$f":"IF('[2]MONE(M)CARD'!GE271=\"\",\"\",'[2]MONE(M)CARD'!GE271)","v":6278.3677917122377},53.850609508993607,{"$f":"IF('[9]II.2.Balance OSD-Activos'!J129=\"\",\"\",'[9]II.2.Balance OSD-Activos'!J129)","v":157.89271411869325},{"$f":"IF('[9]II.2.Balance OSD-Activos'!N129=\"\",\"\",'[9]II.2.Balance OSD-Activos'!N129)","v":396.49870614793326},{"$f":"IF('[9]II.2.Balance OSD-Activos'!R129=\"\",\"\",'[9]II.2.Balance OSD-Activos'!R129)","v":27521.83481670131},{"$f":"IF('[9]II.2.Balance OSD-Activos'!S129=\"\",\"\",'[9]II.2.Balance OSD-Activos'!S129)","v":32441.179018124847},27679.727530820004,60517.405255092788,683.94960796743806,31.654100979700249,136.92443670039344,31.028630025880901,34.516471459358591,33.566503375896197,-0.20399799357038262,{"$f":"IF('[2]MONE(M)CAPARD'!GS271=\"\",\"\",'[2]MONE(M)CAPARD'!GS271)","v":13710.821259913146},{"$f":"IF('[2]MONE(M)CARD'!HA271=\"\",\"\",'[2]MONE(M)CAPARD'!HA271)","v":6917.290814802237},{"$f":"IF('[2]MONE(M)CAPARD'!HB271=\"\",\"\",'[2]MONE(M)CAPARD'!HB271)","v":6793.5304451109087},"n.d.",{"$f":"IF('[10]II.2.Balance OSD-Activos'!J129=\"\",\"\",'[10]II.2.Balance OSD-Activos'!J129)","v":805.60307614869339},{"$f":"IF('[10]II.2.Balance OSD-Activos'!N129=\"\",\"\",'[10]II.2.Balance OSD-Activos'!N129)","v":775.46247399793322},{"$f":"IF('[10]II.2.Balance OSD-Activos'!R129=\"\",\"\",'[10]II.2.Balance OSD-Activos'!R129)","v":41724.06079101131},{"$f":"IF('[10]II.2.Balance OSD-Activos'!S129=\"\",\"\",'[10]II.2.Balance OSD-Activos'!S129)","v":43396.559883854847},42529.663867160001,86701.686225012789,110.68367526227067,28.931767771657469,91.155246698904108,27.972985802461771,26.649400853674308,28.148947185260841,0.11905462405870182,{"$f":"IF('[2]MONE(M)CAPARD'!AS271=\"\",\"\",'[2]MONE(M)CAPARD'!AS271)","v":5},{"$f":"IF('[2]MONE(M)CAPARD'!AT271=\"\",\"\",'[2]MONE(M)CAPARD'!AT271)","v":"n.a."},{"$f":"IF('[2]MONE(M)CAPARD'!AU271=\"\",\"\",'[2]MONE(M)CAPARD'!AU271)","v":5.5},{"$f":"IF('[2]MONE(M)CAPARD'!AV271=\"\",\"\",'[2]MONE(M)CAPARD'!AV271)","v":5},{"$f":"IF('[2]MONE(M)CAPARD'!AW271=\"\",\"\",'[2]MONE(M)CAPARD'!AW271)","v":"n.a."},{"$f":"IF('[2]MONE(M)CAPARD'!AX271=\"\",\"\",'[2]MONE(M)CAPARD'!AX271)","v":6.75},{"$f":"IF('[2]MONE(M)CAPARD'!AY271=\"\",\"\",'[2]MONE(M)CAPARD'!AY271)","v":"n.a."},{"$f":"IF('[2]FISCAL(M)'!$K271=\"\",\"\",'[2]FISCAL(M)'!$K271)","v":-3914.0333816336529},{"$f":"IF('[2]FISCAL(M)'!$L271=\"\",\"\",'[2]FISCAL(M)'!$L271)","v":-4875.371033073654},{"$f":"IF('[2]FISCAL(M)'!$AY271=\"\",\"\",'[2]FISCAL(M)'!$AY271)","v":73067.03995739427},{"$f":"IF('[2]FISCAL(M)'!$BI271=\"\",\"\",'[2]FISCAL(M)'!$BI271)","v":37402.635885609241},{"$f":"IF('[2]FISCAL(M)'!$BS271=\"\",\"\",'[2]FISCAL(M)'!$BS271)","v":35664.404071785037},{"$f":"IF('[2]FISCAL(M)'!$AZ271=\"\",\"\",'[2]FISCAL(M)'!$AZ271)","v":86096.119009334274},{"$f":"IF('[2]FISCAL(M)'!$BJ271=\"\",\"\",'[2]FISCAL(M)'!$BJ271)","v":39646.923728509239},{"$f":"IF('[2]FISCAL(M)'!$BT271=\"\",\"\",'[2]FISCAL(M)'!$BT271)","v":46449.195280825043},{"$f":"IF('[3]MONE(M)'!$AO271=\"\",\"\",'[3]MONE(M)'!$AO271)","v":10310987.461434668},{"$f":"IF('[4]MONE(M)'!$AO271=\"\",\"\",'[4]MONE(M)'!$AO271)","v":8914.2742567101213},{"$f":"IF('[5]MONE(M)'!$AO271=\"\",\"\",'[5]MONE(M)'!$AO271)","v":91806.540824940079},{"$f":"+'[1]MONE(M)'!$AO271","v":151982.11770317692},{"$f":"IF('[6]MONE(M)'!$AO271=\"\",\"\",'[6]MONE(M)'!$AO271)","v":48840.133089140283},{"$f":"IF('[7]MONE(M)'!$AO271=\"\",\"\",'[7]MONE(M)'!$AO271)","v":474017.22564463003},{"$f":"IF('[8]MONE(M)'!$AO271=\"\",\"\",'[8]MONE(M)'!$AO271)","v":26556.308537390003},13.893718866212602,3.6555618207015916,10.802643260211987,9.2607619857917545,14.450218883538479,13.013982805232583,17.156721049757806,{"$f":"IF('[2]FISCAL(M)'!$K271=\"\",\"\",'[2]FISCAL(M)'!$K271)","v":-3914.0333816336529},{"$f":"+'[2]REAL(A)'!$AO$31","v":196050.70057903719},-1.9964393751583271,{"$f":"IF('[2]FISCAL(M)'!$L271=\"\",\"\",'[2]FISCAL(M)'!$L271)","v":-4875.371033073654},{"$f":"+'[2]REAL(A)'!$AP$31","v":230736.92857903719},-2.1129565445366634,88135.611836477823,{"$f":"'[2]Gráfico REM'!BG265","v":19963.04580566529},{"$f":"'[2]Gráfico REM'!BH265","v":63352.733204387026},{"$f":"'[2]Gráfico REM'!BI265","v":4819.8328264255106},10.775097242997699,14.378895056061779,10.562535649807714,0.228152610971466,133171.01497615784,{"$f":"'[2]Gráfico REM'!BK265","v":21172.435533315289},{"$f":"'[2]Gráfico REM'!BL265","v":89909.041741777037},{"$f":"'[2]Gráfico REM'!BM265","v":22089.53770106551},13.245056500951424,14.862377199754162,12.43169811826872,15.080471199960609]
[2011,"noviembre","2011-noviembre",{"$f":"IF('[2]REAL IPC(M)'!$AL272=\"\",\"\",+'[2]REAL IPC(M)'!$AL272)","v":6.4816396242527885},{"$f":"IF('[2]REAL IPC(M)'!$BE272=\"\",\"\",+'[2]REAL IPC(M)'!$BE272)","v":5.0125318865498647},{"$f":"IF('[2]REAL IPC(M)'!$AM272=\"\",\"\",+'[2]REAL IPC(M)'!$AM272)","v":6.5209940017137979},{"$f":"IF('[2]REAL IPC(M)'!$BI272=\"\",\"\",+'[2]REAL IPC(M)'!$BI272)","v":5.0573141389450127},{"$f":"IF('[2]REAL IMAE(M)'!BJ272=\"\",\"\",'[2]REAL IMAE(M)'!BJ272)","v":3.9190720771775656},{"$f":"IF('[2]REAL IMAE(M)'!BK272=\"\",\"\",'[2]REAL IMAE(M)'!BK272)","v":3.8467855760142999},{"$f":"IF('[2]REAL IMAE(M)'!BN272=\"\",\"\",'[2]REAL IMAE(M)'!BN272)","v":5.2361903734322812},{"$f":"IF('[2]REAL IMAE(M)'!BO272=\"\",\"\",'[2]REAL IMAE(M)'!BO272)","v":4.8240930139922478},{"$f":"IF('[2]EXT RIN(M)'!$K272=\"\",\"\",'[2]EXT RIN(M)'!$K272)","v":20620.432408491917},"",{"$f":"IF('[2]EXT RIN(M)'!$L272=\"\",\"\",'[2]EXT RIN(M)'!$L272)","v":22832.670791781919},"",{"$f":"IF('[2]MONE(M)CARD'!EG272=\"\",\"\",'[2]MONE(M)CARD'!EG272)","v":22954.752932292326},{"$f":"IF('[2]MONE(M)CARD'!EK272=\"\",\"\",'[2]MONE(M)CARD'!EK272)","v":37330.688356462386},{"$f":"IF('[2]MONE(M)CARD'!EP272=\"\",\"\",'[2]MONE(M)CARD'!EP272)","v":21302.101354408005},{"$f":"IF('[2]MONE(M)CARD'!ES272=\"\",\"\",'[2]MONE(M)CARD'!ES272)","v":31.835359966212806},{"$f":"IF('[2]MONE(M)CARD'!EV272=\"\",\"\",'[2]MONE(M)CARD'!EV272)","v":34.3749276624808},{"$f":"IF('[2]MONE(M)CARD'!EZ272=\"\",\"\",'[2]MONE(M)CARD'!EZ272)","v":35.041254559333666},{"$f":"IF('[2]MONE(M)CAPARD'!FC272=\"\",\"\",'[2]MONE(M)CAPARD'!FC272)","v":28959.957024072319},{"$f":"IF('[2]MONE(M)CAPARD'!FG272=\"\",\"\",'[2]MONE(M)CAPARD'!FG272)","v":57358.399091362378},{"$f":"IF('[2]MONE(M)CAPARD'!FL272=\"\",\"\",'[2]MONE(M)CAPARD'!FL272)","v":21302.101354408005},{"$f":"IF('[2]MONE(M)CAPARD'!FO272=\"\",\"\",'[2]MONE(M)CAPARD'!FO272)","v":29.987013382211948},{"$f":"IF('[2]MONE(M)CAPARD'!FR272=\"\",\"\",'[2]MONE(M)CAPARD'!FR272)","v":26.612465739574876},{"$f":"IF('[2]MONE(M)CAPARD'!FV272=\"\",\"\",'[2]MONE(M)CAPARD'!FV272)","v":28.535206784552859},{"$f":"IF('[2]MONE(M)CARD'!FV272=\"\",\"\",'[2]MONE(M)CARD'!FV272)","v":2874.3495889359574},{"$f":"IF('[2]MONE(M)CARD'!GD272=\"\",\"\",'[2]MONE(M)CARD'!GD272)","v":85.061657145948303},{"$f":"IF('[2]MONE(M)CARD'!GE272=\"\",\"\",'[2]MONE(M)CARD'!GE272)","v":6782.9458773933384},70.987020531940061,{"$f":"IF('[9]II.2.Balance OSD-Activos'!J130=\"\",\"\",'[9]II.2.Balance OSD-Activos'!J130)","v":171.05708199564401},{"$f":"IF('[9]II.2.Balance OSD-Activos'!N130=\"\",\"\",'[9]II.2.Balance OSD-Activos'!N130)","v":441.3263831288283},{"$f":"IF('[9]II.2.Balance OSD-Activos'!R130=\"\",\"\",'[9]II.2.Balance OSD-Activos'!R130)","v":28261.961145818957},{"$f":"IF('[9]II.2.Balance OSD-Activos'!S130=\"\",\"\",'[9]II.2.Balance OSD-Activos'!S130)","v":33043.008146183973},28433.018227814602,61917.352757127403,729.28788713073322,31.866481045350568,160.94164593433814,31.198663038784915,35.603619260908673,34.315466184804635,0.74896280890843769,{"$f":"IF('[2]MONE(M)CAPARD'!GS272=\"\",\"\",'[2]MONE(M)CAPARD'!GS272)","v":13854.510037256941},{"$f":"IF('[2]MONE(M)CARD'!HA272=\"\",\"\",'[2]MONE(M)CAPARD'!HA272)","v":7390.5794818933373},{"$f":"IF('[2]MONE(M)CAPARD'!HB272=\"\",\"\",'[2]MONE(M)CAPARD'!HB272)","v":6463.9305553636041},"n.d.",{"$f":"IF('[10]II.2.Balance OSD-Activos'!J130=\"\",\"\",'[10]II.2.Balance OSD-Activos'!J130)","v":817.17048269564384},{"$f":"IF('[10]II.2.Balance OSD-Activos'!N130=\"\",\"\",'[10]II.2.Balance OSD-Activos'!N130)","v":779.29193569882841},{"$f":"IF('[10]II.2.Balance OSD-Activos'!R130=\"\",\"\",'[10]II.2.Balance OSD-Activos'!R130)","v":42592.177910328959},{"$f":"IF('[10]II.2.Balance OSD-Activos'!S130=\"\",\"\",'[10]II.2.Balance OSD-Activos'!S130)","v":44115.503668063975},43409.3483930246,{"$f":"IF(OR(AW265=\"\",AX265=\"\",AY265=\"\",AZ265=\"\"),\"\",SUM(AW265:AZ265))","v":88304.143996787403},95.548617030725708,28.607145496763088,107.94048046086276,27.767984340658636,27.92335987788568,28.696785222719832,0.54783803745899107,{"$f":"IF('[2]MONE(M)CAPARD'!AS272=\"\",\"\",'[2]MONE(M)CAPARD'!AS272)","v":5},{"$f":"IF('[2]MONE(M)CAPARD'!AT272=\"\",\"\",'[2]MONE(M)CAPARD'!AT272)","v":"n.a."},{"$f":"IF('[2]MONE(M)CAPARD'!AU272=\"\",\"\",'[2]MONE(M)CAPARD'!AU272)","v":5.5},{"$f":"IF('[2]MONE(M)CAPARD'!AV272=\"\",\"\",'[2]MONE(M)CAPARD'!AV272)","v":5.5},{"$f":"IF('[2]MONE(M)CAPARD'!AW272=\"\",\"\",'[2]MONE(M)CAPARD'!AW272)","v":"n.a."},{"$f":"IF('[2]MONE(M)CAPARD'!AX272=\"\",\"\",'[2]MONE(M)CAPARD'!AX272)","v":6.75},{"$f":"IF('[2]MONE(M)CAPARD'!AY272=\"\",\"\",'[2]MONE(M)CAPARD'!AY272)","v":"n.a."},{"$f":"IF('[2]FISCAL(M)'!$K272=\"\",\"\",'[2]FISCAL(M)'!$K272)","v":-4291.9045131756056},{"$f":"IF('[2]FISCAL(M)'!$L272=\"\",\"\",'[2]FISCAL(M)'!$L272)","v":-4753.1167776956063},{"$f":"IF('[2]FISCAL(M)'!$AY272=\"\",\"\",'[2]FISCAL(M)'!$AY272)","v":73208.431830548143},{"$f":"IF('[2]FISCAL(M)'!$BI272=\"\",\"\",'[2]FISCAL(M)'!$BI272)","v":37350.214102568818},{"$f":"IF('[2]FISCAL(M)'!$BS272=\"\",\"\",'[2]FISCAL(M)'!$BS272)","v":35858.217727979325},{"$f":"IF('[2]FISCAL(M)'!$AZ272=\"\",\"\",'[2]FISCAL(M)'!$AZ272)","v":86248.088824448147},{"$f":"IF('[2]FISCAL(M)'!$BJ272=\"\",\"\",'[2]FISCAL(M)'!$BJ272)","v":39614.82202867882},{"$f":"IF('[2]FISCAL(M)'!$BT272=\"\",\"\",'[2]FISCAL(M)'!$BT272)","v":46633.266795769319},{"$f":"IF('[3]MONE(M)'!$AO272=\"\",\"\",'[3]MONE(M)'!$AO272)","v":10364493.493442513},{"$f":"IF('[4]MONE(M)'!$AO272=\"\",\"\",'[4]MONE(M)'!$AO272)","v":8995.4357564101228},{"$f":"IF('[5]MONE(M)'!$AO272=\"\",\"\",'[5]MONE(M)'!$AO272)","v":93934.144497774425},{"$f":"+'[1]MONE(M)'!$AO272","v":155340.59841711127},{"$f":"IF('[6]MONE(M)'!$AO272=\"\",\"\",'[6]MONE(M)'!$AO272)","v":51013.714280906206},{"$f":"IF('[7]MONE(M)'!$AO272=\"\",\"\",'[7]MONE(M)'!$AO272)","v":483562.73545831005},{"$f":"IF('[8]MONE(M)'!$AO272=\"\",\"\",'[8]MONE(M)'!$AO272)","v":26800.069622300009},13.839861215734949,3.6768016409141291,11.960756174166033,10.427360474510095,17.048666835840699,12.902369114453194,17.212504679816565,{"$f":"IF('[2]FISCAL(M)'!$K272=\"\",\"\",'[2]FISCAL(M)'!$K272)","v":-4291.9045131756056},{"$f":"+'[2]REAL(A)'!$AO$31","v":196050.70057903719},-2.1891809111109697,{"$f":"IF('[2]FISCAL(M)'!$L272=\"\",\"\",'[2]FISCAL(M)'!$L272)","v":-4753.1167776956063},{"$f":"+'[2]REAL(A)'!$AP$31","v":230736.92857903719},-2.0599722840063124,89212.099701696905,{"$f":"'[2]Gráfico REM'!BG266","v":19729.555391503269},{"$f":"'[2]Gráfico REM'!BH266","v":64596.284408553111},{"$f":"'[2]Gráfico REM'!BI266","v":4886.259901640532},10.719575330567931,12.348036273073394,10.960262015963851,1.8389811915473953,134627.20331837694,{"$f":"'[2]Gráfico REM'!BK266","v":21024.384402213269},{"$f":"'[2]Gráfico REM'!BL266","v":91396.354030853123},{"$f":"'[2]Gráfico REM'!BM266","v":22206.464885310535},13.087239052729394,13.560019744155216,12.723386423620164,14.153815848725104]
[2011,"diciembre","2011-diciembre",{"$f":"IF('[2]REAL IPC(M)'!$AL273=\"\",\"\",+'[2]REAL IPC(M)'!$AL273)","v":6.3520408163265207},{"$f":"IF('[2]REAL IPC(M)'!$BE273=\"\",\"\",+'[2]REAL IPC(M)'!$BE273)","v":4.9766590531807653},{"$f":"IF('[2]REAL IPC(M)'!$AM273=\"\",\"\",+'[2]REAL IPC(M)'!$AM273)","v":6.3459570112589736},{"$f":"IF('[2]REAL IPC(M)'!$BI273=\"\",\"\",+'[2]REAL IPC(M)'!$BI273)","v":5.0260122141432717},{"$f":"IF('[2]REAL IMAE(M)'!BJ273=\"\",\"\",'[2]REAL IMAE(M)'!BJ273)","v":3.9614091187013534},{"$f":"IF('[2]REAL IMAE(M)'!BK273=\"\",\"\",'[2]REAL IMAE(M)'!BK273)","v":3.8557861595859722},{"$f":"IF('[2]REAL IMAE(M)'!BN273=\"\",\"\",'[2]REAL IMAE(M)'!BN273)","v":5.4970858142099788},{"$f":"IF('[2]REAL IMAE(M)'!BO273=\"\",\"\",'[2]REAL IMAE(M)'!BO273)","v":4.8298628070929661},{"$f":"IF('[2]EXT RIN(M)'!$K273=\"\",\"\",'[2]EXT RIN(M)'!$K273)","v":21614.840209303533},21614.840209303533,{"$f":"IF('[2]EXT RIN(M)'!$L273=\"\",\"\",'[2]EXT RIN(M)'!$L273)","v":23831.723253223532},23831.723253223532,{"$f":"IF('[2]MONE(M)CARD'!EG273=\"\",\"\",'[2]MONE(M)CARD'!EG273)","v":24476.594233486721},{"$f":"IF('[2]MONE(M)CARD'!EK273=\"\",\"\",'[2]MONE(M)CARD'!EK273)","v":37790.982850763241},{"$f":"IF('[2]MONE(M)CARD'!EP273=\"\",\"\",'[2]MONE(M)CARD'!EP273)","v":21754.611011824774},{"$f":"IF('[2]MONE(M)CARD'!ES273=\"\",\"\",'[2]MONE(M)CARD'!ES273)","v":30.929189562246485},{"$f":"IF('[2]MONE(M)CARD'!EV273=\"\",\"\",'[2]MONE(M)CARD'!EV273)","v":32.819749361772367},{"$f":"IF('[2]MONE(M)CARD'!EZ273=\"\",\"\",'[2]MONE(M)CARD'!EZ273)","v":35.450367155755892},{"$f":"IF('[2]MONE(M)CAPARD'!FC273=\"\",\"\",'[2]MONE(M)CAPARD'!FC273)","v":30705.868318766719},{"$f":"IF('[2]MONE(M)CAPARD'!FG273=\"\",\"\",'[2]MONE(M)CAPARD'!FG273)","v":57838.21731124325},{"$f":"IF('[2]MONE(M)CAPARD'!FL273=\"\",\"\",'[2]MONE(M)CAPARD'!FL273)","v":21754.611011824774},{"$f":"IF('[2]MONE(M)CAPARD'!FO273=\"\",\"\",'[2]MONE(M)CAPARD'!FO273)","v":28.342808066869416},{"$f":"IF('[2]MONE(M)CAPARD'!FR273=\"\",\"\",'[2]MONE(M)CAPARD'!FR273)","v":24.507477499871456},{"$f":"IF('[2]MONE(M)CAPARD'!FV273=\"\",\"\",'[2]MONE(M)CAPARD'!FV273)","v":27.858932984119878},{"$f":"IF('[2]MONE(M)CARD'!FV273=\"\",\"\",'[2]MONE(M)CARD'!FV273)","v":2813.5459962475716},{"$f":"IF('[2]MONE(M)CARD'!GD273=\"\",\"\",'[2]MONE(M)CARD'!GD273)","v":107.74456166780035},{"$f":"IF('[2]MONE(M)CARD'!GE273=\"\",\"\",'[2]MONE(M)CARD'!GE273)","v":6340.9030283097272},50.85042224111487,{"$f":"IF('[9]II.2.Balance OSD-Activos'!J131=\"\",\"\",'[9]II.2.Balance OSD-Activos'!J131)","v":175.51720139804308},{"$f":"IF('[9]II.2.Balance OSD-Activos'!N131=\"\",\"\",'[9]II.2.Balance OSD-Activos'!N131)","v":463.88541705919124},{"$f":"IF('[9]II.2.Balance OSD-Activos'!R131=\"\",\"\",'[9]II.2.Balance OSD-Activos'!R131)","v":28747.983310476215},{"$f":"IF('[9]II.2.Balance OSD-Activos'!S131=\"\",\"\",'[9]II.2.Balance OSD-Activos'!S131)","v":33157.232589270898},28923.500511874259,62544.618518204348,918.13334598632434,31.291496063186152,156.45346618264671,30.596972589893447,36.393831369773075,34.444436039693848,0.12896985488921331,{"$f":"IF('[2]MONE(M)CAPARD'!GS273=\"\",\"\",'[2]MONE(M)CAPARD'!GS273)","v":14151.617789429416},{"$f":"IF('[2]MONE(M)CARD'!HA273=\"\",\"\",'[2]MONE(M)CAPARD'!HA273)","v":6906.5226109097275},{"$f":"IF('[2]MONE(M)CAPARD'!HB273=\"\",\"\",'[2]MONE(M)CAPARD'!HB273)","v":7245.0951785196885},"n.d.",{"$f":"IF('[10]II.2.Balance OSD-Activos'!J131=\"\",\"\",'[10]II.2.Balance OSD-Activos'!J131)","v":806.08356680804286},{"$f":"IF('[10]II.2.Balance OSD-Activos'!N131=\"\",\"\",'[10]II.2.Balance OSD-Activos'!N131)","v":812.73455929919123},{"$f":"IF('[10]II.2.Balance OSD-Activos'!R131=\"\",\"\",'[10]II.2.Balance OSD-Activos'!R131)","v":42625.256639366213},{"$f":"IF('[10]II.2.Balance OSD-Activos'!S131=\"\",\"\",'[10]II.2.Balance OSD-Activos'!S131)","v":44421.459283690907},43431.340206174253,88665.534049164358,65.131998768623944,27.642329624181272,102.07557923875781,27.096662764952974,28.69931858929111,28.605713745802518,-9.1071476917313987E-2,{"$f":"IF('[2]MONE(M)CAPARD'!AS273=\"\",\"\",'[2]MONE(M)CAPARD'!AS273)","v":5},{"$f":"IF('[2]MONE(M)CAPARD'!AT273=\"\",\"\",'[2]MONE(M)CAPARD'!AT273)","v":"n.a."},{"$f":"IF('[2]MONE(M)CAPARD'!AU273=\"\",\"\",'[2]MONE(M)CAPARD'!AU273)","v":5.5},{"$f":"IF('[2]MONE(M)CAPARD'!AV273=\"\",\"\",'[2]MONE(M)CAPARD'!AV273)","v":5.5},{"$f":"IF('[2]MONE(M)CAPARD'!AW273=\"\",\"\",'[2]MONE(M)CAPARD'!AW273)","v":"n.a."},{"$f":"IF('[2]MONE(M)CAPARD'!AX273=\"\",\"\",'[2]MONE(M)CAPARD'!AX273)","v":6.75},{"$f":"IF('[2]MONE(M)CAPARD'!AY273=\"\",\"\",'[2]MONE(M)CAPARD'!AY273)","v":"n.a."},{"$f":"IF('[2]FISCAL(M)'!$K273=\"\",\"\",'[2]FISCAL(M)'!$K273)","v":-5758.2434273853632},{"$f":"IF('[2]FISCAL(M)'!$L273=\"\",\"\",'[2]FISCAL(M)'!$L273)","v":-5755.1755719053635},{"$f":"IF('[2]FISCAL(M)'!$AY273=\"\",\"\",'[2]FISCAL(M)'!$AY273)","v":75030.202133718718},{"$f":"IF('[2]FISCAL(M)'!$BI273=\"\",\"\",'[2]FISCAL(M)'!$BI273)","v":38312.063633718732},{"$f":"IF('[2]FISCAL(M)'!$BS273=\"\",\"\",'[2]FISCAL(M)'!$BS273)","v":36718.138500000001},{"$f":"IF('[2]FISCAL(M)'!$AZ273=\"\",\"\",'[2]FISCAL(M)'!$AZ273)","v":87884.248368138738},{"$f":"IF('[2]FISCAL(M)'!$BJ273=\"\",\"\",'[2]FISCAL(M)'!$BJ273)","v":40255.696704898728},{"$f":"IF('[2]FISCAL(M)'!$BT273=\"\",\"\",'[2]FISCAL(M)'!$BT273)","v":47628.551663240003},{"$f":"IF('[3]MONE(M)'!$AO273=\"\",\"\",'[3]MONE(M)'!$AO273)","v":10496810.242187671},{"$f":"IF('[4]MONE(M)'!$AO273=\"\",\"\",'[4]MONE(M)'!$AO273)","v":9142.0049089299991},{"$f":"IF('[5]MONE(M)'!$AO273=\"\",\"\",'[5]MONE(M)'!$AO273)","v":94130.354663270031},{"$f":"+'[1]MONE(M)'!$AO273","v":158047.99478228675},{"$f":"IF('[6]MONE(M)'!$AO273=\"\",\"\",'[6]MONE(M)'!$AO273)","v":52514.577097942776},{"$f":"IF('[7]MONE(M)'!$AO273=\"\",\"\",'[7]MONE(M)'!$AO273)","v":489175.40418530995},{"$f":"IF('[8]MONE(M)'!$AO273=\"\",\"\",'[8]MONE(M)'!$AO273)","v":26523.396707989999},13.035915987640134,4.7577572478238794,10.767210602795153,11.941694741642216,15.700619726814047,12.568603972673609,16.510572406124837,{"$f":"IF('[2]FISCAL(M)'!$K273=\"\",\"\",'[2]FISCAL(M)'!$K273)","v":-5758.2434273853632},{"$f":"+'[2]REAL(A)'!$AO$31","v":196050.70057903719},-2.9371195361089497,{"$f":"IF('[2]FISCAL(M)'!$L273=\"\",\"\",'[2]FISCAL(M)'!$L273)","v":-5755.1755719053635},{"$f":"+'[2]REAL(A)'!$AP$31","v":230736.92857903719},-2.4942585512201494,89512.425645765281,{"$f":"'[2]Gráfico REM'!BG267","v":19736.383141846571},{"$f":"'[2]Gráfico REM'!BH267","v":64874.723495876315},{"$f":"'[2]Gráfico REM'!BI267","v":4901.3190080423901},9.8966923390240389,11.314090629281925,10.377412444668789,-0.89760264886646901,135028.96321235527,{"$f":"'[2]Gráfico REM'!BK267","v":21135.19662603657},{"$f":"'[2]Gráfico REM'!BL267","v":91398.120203866318},{"$f":"'[2]Gráfico REM'!BM267","v":22495.646382452389},12.599079286578242,13.009728047886181,12.089699358762228,14.319536334168802]
[2012,"enero","2012-enero",{"$f":"IF('[2]REAL IPC(M)'!$AL274=\"\",\"\",+'[2]REAL IPC(M)'!$AL274)","v":5.7911152322346782},{"$f":"IF('[2]REAL IPC(M)'!$BE274=\"\",\"\",+'[2]REAL IPC(M)'!$BE274)","v":4.9370820102411672},{"$f":"IF('[2]REAL IPC(M)'!$AM274=\"\",\"\",+'[2]REAL IPC(M)'!$AM274)","v":5.8271312584573742},{"$f":"IF('[2]REAL IPC(M)'!$BI274=\"\",\"\",+'[2]REAL IPC(M)'!$BI274)","v":4.9901891306266988},{"$f":"IF('[2]REAL IMAE(M)'!BJ274=\"\",\"\",'[2]REAL IMAE(M)'!BJ274)","v":3.6482419929260823},{"$f":"IF('[2]REAL IMAE(M)'!BK274=\"\",\"\",'[2]REAL IMAE(M)'!BK274)","v":3.8634564859520548},{"$f":"IF('[2]REAL IMAE(M)'!BN274=\"\",\"\",'[2]REAL IMAE(M)'!BN274)","v":4.8887256313157934},{"$f":"IF('[2]REAL IMAE(M)'!BO274=\"\",\"\",'[2]REAL IMAE(M)'!BO274)","v":4.8319895985335259},{"$f":"IF('[2]EXT RIN(M)'!$K274=\"\",\"\",'[2]EXT RIN(M)'!$K274)","v":20962.801397472798},"",{"$f":"IF('[2]EXT RIN(M)'!$L274=\"\",\"\",'[2]EXT RIN(M)'!$L274)","v":23045.502741922799},"",{"$f":"IF('[2]MONE(M)CARD'!EG274=\"\",\"\",'[2]MONE(M)CARD'!EG274)","v":24155.461374928163},{"$f":"IF('[2]MONE(M)CARD'!EK274=\"\",\"\",'[2]MONE(M)CARD'!EK274)","v":38167.327572764538},{"$f":"IF('[2]MONE(M)CARD'!EP274=\"\",\"\",'[2]MONE(M)CARD'!EP274)","v":21966.523481803008},{"$f":"IF('[2]MONE(M)CARD'!ES274=\"\",\"\",'[2]MONE(M)CARD'!ES274)","v":31.697904250319418},{"$f":"IF('[2]MONE(M)CARD'!EV274=\"\",\"\",'[2]MONE(M)CARD'!EV274)","v":33.951635803605008},{"$f":"IF('[2]MONE(M)CARD'!EZ274=\"\",\"\",'[2]MONE(M)CARD'!EZ274)","v":35.654198951239714},{"$f":"IF('[2]MONE(M)CAPARD'!FC274=\"\",\"\",'[2]MONE(M)CAPARD'!FC274)","v":30274.904420298168},{"$f":"IF('[2]MONE(M)CAPARD'!FG274=\"\",\"\",'[2]MONE(M)CAPARD'!FG274)","v":58262.408715984529},{"$f":"IF('[2]MONE(M)CAPARD'!FL274=\"\",\"\",'[2]MONE(M)CAPARD'!FL274)","v":21966.523481803},{"$f":"IF('[2]MONE(M)CAPARD'!FO274=\"\",\"\",'[2]MONE(M)CAPARD'!FO274)","v":28.84894785452563},{"$f":"IF('[2]MONE(M)CAPARD'!FR274=\"\",\"\",'[2]MONE(M)CAPARD'!FR274)","v":25.155848690120109},{"$f":"IF('[2]MONE(M)CAPARD'!FV274=\"\",\"\",'[2]MONE(M)CAPARD'!FV274)","v":27.970922455816847},{"$f":"IF('[2]MONE(M)CARD'!FV274=\"\",\"\",'[2]MONE(M)CARD'!FV274)","v":2856.6762272374235},{"$f":"IF('[2]MONE(M)CARD'!GD274=\"\",\"\",'[2]MONE(M)CARD'!GD274)","v":76.734221337964456},{"$f":"IF('[2]MONE(M)CARD'!GE274=\"\",\"\",'[2]MONE(M)CARD'!GE274)","v":6788.1969254900641},72.578687474694419,{"$f":"IF('[9]II.2.Balance OSD-Activos'!J132=\"\",\"\",'[9]II.2.Balance OSD-Activos'!J132)","v":164.80657593956988},{"$f":"IF('[9]II.2.Balance OSD-Activos'!N132=\"\",\"\",'[9]II.2.Balance OSD-Activos'!N132)","v":419.98651220112606},{"$f":"IF('[9]II.2.Balance OSD-Activos'!R132=\"\",\"\",'[9]II.2.Balance OSD-Activos'!R132)","v":28810.703341603432},{"$f":"IF('[9]II.2.Balance OSD-Activos'!S132=\"\",\"\",'[9]II.2.Balance OSD-Activos'!S132)","v":33443.721540245489},28975.509917543,62839.217969989622,246.70542101829648,31.667118114957702,126.4809510282436,31.201623056412142,36.262904189047873,34.456834363979439,1.23983242855914E-2,{"$f":"IF('[2]MONE(M)CAPARD'!GS274=\"\",\"\",'[2]MONE(M)CAPARD'!GS274)","v":14363.588908225907},{"$f":"IF('[2]MONE(M)CARD'!HA274=\"\",\"\",'[2]MONE(M)CAPARD'!HA274)","v":7413.142383950064},{"$f":"IF('[2]MONE(M)CAPARD'!HB274=\"\",\"\",'[2]MONE(M)CAPARD'!HB274)","v":6950.4465242758433},"n.d.",{"$f":"IF('[10]II.2.Balance OSD-Activos'!J132=\"\",\"\",'[10]II.2.Balance OSD-Activos'!J132)","v":315.78725303956992},{"$f":"IF('[10]II.2.Balance OSD-Activos'!N132=\"\",\"\",'[10]II.2.Balance OSD-Activos'!N132)","v":748.71522665112593},{"$f":"IF('[10]II.2.Balance OSD-Activos'!R132=\"\",\"\",'[10]II.2.Balance OSD-Activos'!R132)","v":42768.675949453427},{"$f":"IF('[10]II.2.Balance OSD-Activos'!S132=\"\",\"\",'[10]II.2.Balance OSD-Activos'!S132)","v":44771.727017995494},43084.463202492996,88604.905447139608,-39.547385412266081,26.202517196073337,85.068304428761905,27.224205833744143,28.679995574959307,27.789177546676271,-0.8165361991262472,{"$f":"IF('[2]MONE(M)CAPARD'!AS274=\"\",\"\",'[2]MONE(M)CAPARD'!AS274)","v":5},{"$f":"IF('[2]MONE(M)CAPARD'!AT274=\"\",\"\",'[2]MONE(M)CAPARD'!AT274)","v":"n.a."},{"$f":"IF('[2]MONE(M)CAPARD'!AU274=\"\",\"\",'[2]MONE(M)CAPARD'!AU274)","v":5.5},{"$f":"IF('[2]MONE(M)CAPARD'!AV274=\"\",\"\",'[2]MONE(M)CAPARD'!AV274)","v":6},{"$f":"IF('[2]MONE(M)CAPARD'!AW274=\"\",\"\",'[2]MONE(M)CAPARD'!AW274)","v":"n.a."},{"$f":"IF('[2]MONE(M)CAPARD'!AX274=\"\",\"\",'[2]MONE(M)CAPARD'!AX274)","v":6.75},{"$f":"IF('[2]MONE(M)CAPARD'!AY274=\"\",\"\",'[2]MONE(M)CAPARD'!AY274)","v":"n.a."},{"$f":"IF('[2]FISCAL(M)'!$K274=\"\",\"\",'[2]FISCAL(M)'!$K274)","v":-389.96458922035981},{"$f":"IF('[2]FISCAL(M)'!$L274=\"\",\"\",'[2]FISCAL(M)'!$L274)","v":-246.95935018035971},{"$f":"IF('[2]FISCAL(M)'!$AY274=\"\",\"\",'[2]FISCAL(M)'!$AY274)","v":75515.897790758841},{"$f":"IF('[2]FISCAL(M)'!$BI274=\"\",\"\",'[2]FISCAL(M)'!$BI274)","v":38835.287678670749},{"$f":"IF('[2]FISCAL(M)'!$BS274=\"\",\"\",'[2]FISCAL(M)'!$BS274)","v":36680.610112088085},{"$f":"IF('[2]FISCAL(M)'!$AZ274=\"\",\"\",'[2]FISCAL(M)'!$AZ274)","v":88789.711514978844},{"$f":"IF('[2]FISCAL(M)'!$BJ274=\"\",\"\",'[2]FISCAL(M)'!$BJ274)","v":41183.168811150746},{"$f":"IF('[2]FISCAL(M)'!$BT274=\"\",\"\",'[2]FISCAL(M)'!$BT274)","v":47606.54270382809},{"$f":"IF('[3]MONE(M)'!$AO274=\"\",\"\",'[3]MONE(M)'!$AO274)","v":10566586.289198976},{"$f":"IF('[4]MONE(M)'!$AO274=\"\",\"\",'[4]MONE(M)'!$AO274)","v":9129.57861031012},{"$f":"IF('[5]MONE(M)'!$AO274=\"\",\"\",'[5]MONE(M)'!$AO274)","v":94331.451925249363},{"$f":"+'[1]MONE(M)'!$AO274","v":161269.013319808},{"$f":"IF('[6]MONE(M)'!$AO274=\"\",\"\",'[6]MONE(M)'!$AO274)","v":53468.668771855933},{"$f":"IF('[7]MONE(M)'!$AO274=\"\",\"\",'[7]MONE(M)'!$AO274)","v":491725.65763840993},{"$f":"IF('[8]MONE(M)'!$AO274=\"\",\"\",'[8]MONE(M)'!$AO274)","v":25927.470311749992},14.173766041645086,5.0481650781197152,10.637370396312651,12.05414787503749,17.660522635394017,13.253731988072248,12.955649532005697,{"$f":"IF('[2]FISCAL(M)'!$K274=\"\",\"\",'[2]FISCAL(M)'!$K274)","v":-389.96458922035981},{"$f":"+'[2]REAL(A)'!$AO$32","v":208321.52269328642},-0.1871936150325226,{"$f":"IF('[2]FISCAL(M)'!$L274=\"\",\"\",'[2]FISCAL(M)'!$L274)","v":-246.95935018035971},{"$f":"+'[2]REAL(A)'!$AP$32","v":248751.25969328641},-9.9279638014643165E-2,89830.549706529899,{"$f":"'[2]Gráfico REM'!BG268","v":19525.042475377821},{"$f":"'[2]Gráfico REM'!BH268","v":65624.004890002747},{"$f":"'[2]Gráfico REM'!BI268","v":4681.5023411493257},8.7220460953574275,7.5179874316546158,10.739743945129687,-10.050381130282327,134886.36510044988,{"$f":"'[2]Gráfico REM'!BK268","v":20936.450108277822},{"$f":"'[2]Gráfico REM'!BL268","v":91551.475201752735},{"$f":"'[2]Gráfico REM'!BM268","v":22398.439790419325},10.92981922681,9.3085521474533195,11.358416915932445,10.723016994385336]
[2012,"febrero","2012-febrero",{"$f":"IF('[2]REAL IPC(M)'!$AL275=\"\",\"\",+'[2]REAL IPC(M)'!$AL275)","v":5.505354752342706},{"$f":"IF('[2]REAL IPC(M)'!$BE275=\"\",\"\",+'[2]REAL IPC(M)'!$BE275)","v":4.8942045070716533},{"$f":"IF('[2]REAL IPC(M)'!$AM275=\"\",\"\",+'[2]REAL IPC(M)'!$AM275)","v":5.6096741686261442},{"$f":"IF('[2]REAL IPC(M)'!$BI275=\"\",\"\",+'[2]REAL IPC(M)'!$BI275)","v":4.9502427401427962},{"$f":"IF('[2]REAL IMAE(M)'!BJ275=\"\",\"\",'[2]REAL IMAE(M)'!BJ275)","v":3.4169614067543375},{"$f":"IF('[2]REAL IMAE(M)'!BK275=\"\",\"\",'[2]REAL IMAE(M)'!BK275)","v":3.870267202143407},{"$f":"IF('[2]REAL IMAE(M)'!BN275=\"\",\"\",'[2]REAL IMAE(M)'!BN275)","v":4.7399537735882236},{"$f":"IF('[2]REAL IMAE(M)'!BO275=\"\",\"\",'[2]REAL IMAE(M)'!BO275)","v":4.8309718181426264},{"$f":"IF('[2]EXT RIN(M)'!$K275=\"\",\"\",'[2]EXT RIN(M)'!$K275)","v":21044.031879338752},"",{"$f":"IF('[2]EXT RIN(M)'!$L275=\"\",\"\",'[2]EXT RIN(M)'!$L275)","v":23052.555008918753},"",{"$f":"IF('[2]MONE(M)CARD'!EG275=\"\",\"\",'[2]MONE(M)CARD'!EG275)","v":24177.233781961309},{"$f":"IF('[2]MONE(M)CARD'!EK275=\"\",\"\",'[2]MONE(M)CARD'!EK275)","v":38742.560288423098},{"$f":"IF('[2]MONE(M)CARD'!EP275=\"\",\"\",'[2]MONE(M)CARD'!EP275)","v":21917.8569465201},{"$f":"IF('[2]MONE(M)CARD'!ES275=\"\",\"\",'[2]MONE(M)CARD'!ES275)","v":31.846449143071396},{"$f":"IF('[2]MONE(M)CARD'!EV275=\"\",\"\",'[2]MONE(M)CARD'!EV275)","v":34.850861426492919},{"$f":"IF('[2]MONE(M)CARD'!EZ275=\"\",\"\",'[2]MONE(M)CARD'!EZ275)","v":35.878323615116784},{"$f":"IF('[2]MONE(M)CAPARD'!FC275=\"\",\"\",'[2]MONE(M)CAPARD'!FC275)","v":30441.571815601317},{"$f":"IF('[2]MONE(M)CAPARD'!FG275=\"\",\"\",'[2]MONE(M)CAPARD'!FG275)","v":59182.021924513101},{"$f":"IF('[2]MONE(M)CAPARD'!FL275=\"\",\"\",'[2]MONE(M)CAPARD'!FL275)","v":21917.8569465201},{"$f":"IF('[2]MONE(M)CAPARD'!FO275=\"\",\"\",'[2]MONE(M)CAPARD'!FO275)","v":28.639012844541291},{"$f":"IF('[2]MONE(M)CAPARD'!FR275=\"\",\"\",'[2]MONE(M)CAPARD'!FR275)","v":26.205871060874507},{"$f":"IF('[2]MONE(M)CAPARD'!FV275=\"\",\"\",'[2]MONE(M)CAPARD'!FV275)","v":28.516570718295409},{"$f":"IF('[2]MONE(M)CARD'!FV275=\"\",\"\",'[2]MONE(M)CARD'!FV275)","v":2969.6354455151295},{"$f":"IF('[2]MONE(M)CARD'!GD275=\"\",\"\",'[2]MONE(M)CARD'!GD275)","v":81.436145427241371},{"$f":"IF('[2]MONE(M)CARD'!GE275=\"\",\"\",'[2]MONE(M)CARD'!GE275)","v":6520.7629578807173},57.743140781117773,{"$f":"IF('[9]II.2.Balance OSD-Activos'!J133=\"\",\"\",'[9]II.2.Balance OSD-Activos'!J133)","v":161.69908555404578},{"$f":"IF('[9]II.2.Balance OSD-Activos'!N133=\"\",\"\",'[9]II.2.Balance OSD-Activos'!N133)","v":426.09776703501831},{"$f":"IF('[9]II.2.Balance OSD-Activos'!R133=\"\",\"\",'[9]II.2.Balance OSD-Activos'!R133)","v":29154.675797285534},{"$f":"IF('[9]II.2.Balance OSD-Activos'!S133=\"\",\"\",'[9]II.2.Balance OSD-Activos'!S133)","v":33662.684072854128},29316.37488283958,63405.156722728731,268.06575171393888,33.254895841279385,120.33448266253414,32.785065195024686,36.237124364427828,35.185018955706028,0.72818459172658834,{"$f":"IF('[2]MONE(M)CAPARD'!GS275=\"\",\"\",'[2]MONE(M)CAPARD'!GS275)","v":14299.107528500381},{"$f":"IF('[2]MONE(M)CARD'!HA275=\"\",\"\",'[2]MONE(M)CAPARD'!HA275)","v":7138.2641396207182},{"$f":"IF('[2]MONE(M)CAPARD'!HB275=\"\",\"\",'[2]MONE(M)CAPARD'!HB275)","v":7160.8433888796626},"n.d.",{"$f":"IF('[10]II.2.Balance OSD-Activos'!J133=\"\",\"\",'[10]II.2.Balance OSD-Activos'!J133)","v":314.8243512240457},{"$f":"IF('[10]II.2.Balance OSD-Activos'!N133=\"\",\"\",'[10]II.2.Balance OSD-Activos'!N133)","v":776.11228065501837},{"$f":"IF('[10]II.2.Balance OSD-Activos'!R133=\"\",\"\",'[10]II.2.Balance OSD-Activos'!R133)","v":43141.044191795532},{"$f":"IF('[10]II.2.Balance OSD-Activos'!S133=\"\",\"\",'[10]II.2.Balance OSD-Activos'!S133)","v":45078.981630154129},43455.868543019576,89310.962453828717,-40.388697750769097,27.03111307759325,{"$f":"IF(OR(AX268=\"\",AX256=\"\"),\"\",((AX268/AX256)-1)*100)","v":84.803884494563221},28.088285921356302,28.597928673202876,28.16748819110364,0.37831064442736917,{"$f":"IF('[2]MONE(M)CAPARD'!AS275=\"\",\"\",'[2]MONE(M)CAPARD'!AS275)","v":5},{"$f":"IF('[2]MONE(M)CAPARD'!AT275=\"\",\"\",'[2]MONE(M)CAPARD'!AT275)","v":"n.a."},{"$f":"IF('[2]MONE(M)CAPARD'!AU275=\"\",\"\",'[2]MONE(M)CAPARD'!AU275)","v":5.5},{"$f":"IF('[2]MONE(M)CAPARD'!AV275=\"\",\"\",'[2]MONE(M)CAPARD'!AV275)","v":6},{"$f":"IF('[2]MONE(M)CAPARD'!AW275=\"\",\"\",'[2]MONE(M)CAPARD'!AW275)","v":"n.a."},{"$f":"IF('[2]MONE(M)CAPARD'!AX275=\"\",\"\",'[2]MONE(M)CAPARD'!AX275)","v":6.75},{"$f":"IF('[2]MONE(M)CAPARD'!AY275=\"\",\"\",'[2]MONE(M)CAPARD'!AY275)","v":"n.a."},{"$f":"IF('[2]FISCAL(M)'!$K275=\"\",\"\",'[2]FISCAL(M)'!$K275)","v":-1012.4117808018012},{"$f":"IF('[2]FISCAL(M)'!$L275=\"\",\"\",'[2]FISCAL(M)'!$L275)","v":-1260.2017297518014},{"$f":"IF('[2]FISCAL(M)'!$AY275=\"\",\"\",'[2]FISCAL(M)'!$AY275)","v":76150.286733413333},{"$f":"IF('[2]FISCAL(M)'!$BI275=\"\",\"\",'[2]FISCAL(M)'!$BI275)","v":39217.669844531083},{"$f":"IF('[2]FISCAL(M)'!$BS275=\"\",\"\",'[2]FISCAL(M)'!$BS275)","v":36932.61688888225},{"$f":"IF('[2]FISCAL(M)'!$AZ275=\"\",\"\",'[2]FISCAL(M)'!$AZ275)","v":89331.29356641334},{"$f":"IF('[2]FISCAL(M)'!$BJ275=\"\",\"\",'[2]FISCAL(M)'!$BJ275)","v":41783.130457851075},{"$f":"IF('[2]FISCAL(M)'!$BT275=\"\",\"\",'[2]FISCAL(M)'!$BT275)","v":47548.16310856225},{"$f":"IF('[3]MONE(M)'!$AO275=\"\",\"\",'[3]MONE(M)'!$AO275)","v":10793595.924677394},{"$f":"IF('[4]MONE(M)'!$AO275=\"\",\"\",'[4]MONE(M)'!$AO275)","v":9006.949021980121},{"$f":"IF('[5]MONE(M)'!$AO275=\"\",\"\",'[5]MONE(M)'!$AO275)","v":96938.990957904229},{"$f":"+'[1]MONE(M)'!$AO275","v":162862.71818498278},{"$f":"IF('[6]MONE(M)'!$AO275=\"\",\"\",'[6]MONE(M)'!$AO275)","v":54435.216739101204},{"$f":"IF('[7]MONE(M)'!$AO275=\"\",\"\",'[7]MONE(M)'!$AO275)","v":491887.27948678005},{"$f":"IF('[8]MONE(M)'!$AO275=\"\",\"\",'[8]MONE(M)'!$AO275)","v":26061.706378050003},15.566298696552462,3.5877731539462721,12.715636419225396,12.933332751030591,21.597833032270831,13.059626560899829,12.700918936018812,{"$f":"IF('[2]FISCAL(M)'!$K275=\"\",\"\",'[2]FISCAL(M)'!$K275)","v":-1012.4117808018012},{"$f":"+'[2]REAL(A)'!$AO$32","v":208321.52269328642},-0.4859852058072674,{"$f":"IF('[2]FISCAL(M)'!$L275=\"\",\"\",'[2]FISCAL(M)'!$L275)","v":-1260.2017297518014},{"$f":"+'[2]REAL(A)'!$AP$32","v":248751.25969328641},-0.50661119517772357,91657.834195183983,{"$f":"'[2]Gráfico REM'!BG269","v":20401.010043469909},{"$f":"'[2]Gráfico REM'!BH269","v":66252.770249106965},{"$f":"'[2]Gráfico REM'!BI269","v":5004.0539026071101},9.388056893765139,6.6875166983328516,10.975782520330135,0.70482425386437786,136585.74551293399,{"$f":"'[2]Gráfico REM'!BK269","v":21765.990743969909},{"$f":"'[2]Gráfico REM'!BL269","v":92314.476627156968},{"$f":"'[2]Gráfico REM'!BM269","v":22505.27814180711},10.932431007878595,8.0345632299930756,11.457439750712872,11.671786832376995]
[2012,"marzo","2012-marzo",{"$f":"IF('[2]REAL IPC(M)'!$AL276=\"\",\"\",+'[2]REAL IPC(M)'!$AL276)","v":4.9883798140770264},{"$f":"IF('[2]REAL IPC(M)'!$BE276=\"\",\"\",+'[2]REAL IPC(M)'!$BE276)","v":4.8484783244189034},{"$f":"IF('[2]REAL IPC(M)'!$AM276=\"\",\"\",+'[2]REAL IPC(M)'!$AM276)","v":5.1395251978342271},{"$f":"IF('[2]REAL IPC(M)'!$BI276=\"\",\"\",+'[2]REAL IPC(M)'!$BI276)","v":4.9066264910231583},{"$f":"IF('[2]REAL IMAE(M)'!BJ276=\"\",\"\",'[2]REAL IMAE(M)'!BJ276)","v":3.3199773340855554},{"$f":"IF('[2]REAL IMAE(M)'!BK276=\"\",\"\",'[2]REAL IMAE(M)'!BK276)","v":3.8766692200323583},{"$f":"IF('[2]REAL IMAE(M)'!BN276=\"\",\"\",'[2]REAL IMAE(M)'!BN276)","v":5.1023405209491335},{"$f":"IF('[2]REAL IMAE(M)'!BO276=\"\",\"\",'[2]REAL IMAE(M)'!BO276)","v":4.8273050727878575},{"$f":"IF('[2]EXT RIN(M)'!$K276=\"\",\"\",'[2]EXT RIN(M)'!$K276)","v":21387.5321565206},"",{"$f":"IF('[2]EXT RIN(M)'!$L276=\"\",\"\",'[2]EXT RIN(M)'!$L276)","v":23099.7055171106},"",{"$f":"IF('[2]MONE(M)CARD'!EG276=\"\",\"\",'[2]MONE(M)CARD'!EG276)","v":24165.015912768788},{"$f":"IF('[2]MONE(M)CARD'!EK276=\"\",\"\",'[2]MONE(M)CARD'!EK276)","v":39586.595289779012},{"$f":"IF('[2]MONE(M)CARD'!EP276=\"\",\"\",'[2]MONE(M)CARD'!EP276)","v":22446.365347361418},{"$f":"IF('[2]MONE(M)CARD'!ES276=\"\",\"\",'[2]MONE(M)CARD'!ES276)","v":27.893667006771604},{"$f":"IF('[2]MONE(M)CARD'!EV276=\"\",\"\",'[2]MONE(M)CARD'!EV276)","v":34.208046734355733},{"$f":"IF('[2]MONE(M)CARD'!EZ276=\"\",\"\",'[2]MONE(M)CARD'!EZ276)","v":35.734835871083703},{"$f":"IF('[2]MONE(M)CAPARD'!FC276=\"\",\"\",'[2]MONE(M)CAPARD'!FC276)","v":30562.290822768788},{"$f":"IF('[2]MONE(M)CAPARD'!FG276=\"\",\"\",'[2]MONE(M)CAPARD'!FG276)","v":60174.640304339016},{"$f":"IF('[2]MONE(M)CAPARD'!FL276=\"\",\"\",'[2]MONE(M)CAPARD'!FL276)","v":22446.365347361425},{"$f":"IF('[2]MONE(M)CAPARD'!FO276=\"\",\"\",'[2]MONE(M)CAPARD'!FO276)","v":25.391619048087509},{"$f":"IF('[2]MONE(M)CAPARD'!FR276=\"\",\"\",'[2]MONE(M)CAPARD'!FR276)","v":25.76387052953708},{"$f":"IF('[2]MONE(M)CAPARD'!FV276=\"\",\"\",'[2]MONE(M)CAPARD'!FV276)","v":28.396698385472384},{"$f":"IF('[2]MONE(M)CARD'!FV276=\"\",\"\",'[2]MONE(M)CARD'!FV276)","v":2880.258260996743},{"$f":"IF('[2]MONE(M)CARD'!GD276=\"\",\"\",'[2]MONE(M)CARD'!GD276)","v":89.163683422161839},{"$f":"IF('[2]MONE(M)CARD'!GE276=\"\",\"\",'[2]MONE(M)CARD'!GE276)","v":6629.8426606262183},70.521336140271117,{"$f":"IF('[9]II.2.Balance OSD-Activos'!J134=\"\",\"\",'[9]II.2.Balance OSD-Activos'!J134)","v":163.87190451169542},{"$f":"IF('[9]II.2.Balance OSD-Activos'!N134=\"\",\"\",'[9]II.2.Balance OSD-Activos'!N134)","v":429.63994271102621},{"$f":"IF('[9]II.2.Balance OSD-Activos'!R134=\"\",\"\",'[9]II.2.Balance OSD-Activos'!R134)","v":29558.982124087164},{"$f":"IF('[9]II.2.Balance OSD-Activos'!S134=\"\",\"\",'[9]II.2.Balance OSD-Activos'!S134)","v":33977.10522236699},29722.85402859886,64129.599193676877,298.71919562198531,33.430363846346076,117.55569241779713,32.939995409582409,37.095592311010961,35.704120045084096,0.51910108937806854,{"$f":"IF('[2]MONE(M)CAPARD'!GS276=\"\",\"\",'[2]MONE(M)CAPARD'!GS276)","v":14199.200447507092},{"$f":"IF('[2]MONE(M)CARD'!HA276=\"\",\"\",'[2]MONE(M)CAPARD'!HA276)","v":7275.8451131362181},{"$f":"IF('[2]MONE(M)CAPARD'!HB276=\"\",\"\",'[2]MONE(M)CAPARD'!HB276)","v":6923.3553343708736},"n.d.",{"$f":"IF('[10]II.2.Balance OSD-Activos'!J134=\"\",\"\",'[10]II.2.Balance OSD-Activos'!J134)","v":317.57055357169548},{"$f":"IF('[10]II.2.Balance OSD-Activos'!N134=\"\",\"\",'[10]II.2.Balance OSD-Activos'!N134)","v":783.25867993102611},{"$f":"IF('[10]II.2.Balance OSD-Activos'!R134=\"\",\"\",'[10]II.2.Balance OSD-Activos'!R134)","v":43684.995596297158},{"$f":"IF('[10]II.2.Balance OSD-Activos'!S134=\"\",\"\",'[10]II.2.Balance OSD-Activos'!S134)","v":45493.683001656995},44002.566149868857,90279.507831456867,-40.002497116600523,26.488200553524344,78.086021510360709,27.515503740310798,29.3334889596651,28.232129767361471,6.4641576257830735E-2,{"$f":"IF('[2]MONE(M)CAPARD'!AS276=\"\",\"\",'[2]MONE(M)CAPARD'!AS276)","v":5},{"$f":"IF('[2]MONE(M)CAPARD'!AT276=\"\",\"\",'[2]MONE(M)CAPARD'!AT276)","v":"n.a."},{"$f":"IF('[2]MONE(M)CAPARD'!AU276=\"\",\"\",'[2]MONE(M)CAPARD'!AU276)","v":5.5},{"$f":"IF('[2]MONE(M)CAPARD'!AV276=\"\",\"\",'[2]MONE(M)CAPARD'!AV276)","v":6},{"$f":"IF('[2]MONE(M)CAPARD'!AW276=\"\",\"\",'[2]MONE(M)CAPARD'!AW276)","v":"n.a."},{"$f":"IF('[2]MONE(M)CAPARD'!AX276=\"\",\"\",'[2]MONE(M)CAPARD'!AX276)","v":6.75},{"$f":"IF('[2]MONE(M)CAPARD'!AY276=\"\",\"\",'[2]MONE(M)CAPARD'!AY276)","v":"n.a."},{"$f":"IF('[2]FISCAL(M)'!$K276=\"\",\"\",'[2]FISCAL(M)'!$K276)","v":-1753.370993023932},{"$f":"IF('[2]FISCAL(M)'!$L276=\"\",\"\",'[2]FISCAL(M)'!$L276)","v":-1864.438245653932},{"$f":"IF('[2]FISCAL(M)'!$AY276=\"\",\"\",'[2]FISCAL(M)'!$AY276)","v":77331.722535409586},{"$f":"IF('[2]FISCAL(M)'!$BI276=\"\",\"\",'[2]FISCAL(M)'!$BI276)","v":39918.784951160545},{"$f":"IF('[2]FISCAL(M)'!$BS276=\"\",\"\",'[2]FISCAL(M)'!$BS276)","v":37412.937584249041},{"$f":"IF('[2]FISCAL(M)'!$AZ276=\"\",\"\",'[2]FISCAL(M)'!$AZ276)","v":91040.659236139589},{"$f":"IF('[2]FISCAL(M)'!$BJ276=\"\",\"\",'[2]FISCAL(M)'!$BJ276)","v":42793.577723850547},{"$f":"IF('[2]FISCAL(M)'!$BT276=\"\",\"\",'[2]FISCAL(M)'!$BT276)","v":48247.081512289034},{"$f":"IF('[3]MONE(M)'!$AO276=\"\",\"\",'[3]MONE(M)'!$AO276)","v":10854507.987424146},{"$f":"IF('[4]MONE(M)'!$AO276=\"\",\"\",'[4]MONE(M)'!$AO276)","v":9006.3950107501223},{"$f":"IF('[5]MONE(M)'!$AO276=\"\",\"\",'[5]MONE(M)'!$AO276)","v":98760.431064171222},{"$f":"+'[1]MONE(M)'!$AO276","v":164755.88045326649},{"$f":"IF('[6]MONE(M)'!$AO276=\"\",\"\",'[6]MONE(M)'!$AO276)","v":54132.969262592815},{"$f":"IF('[7]MONE(M)'!$AO276=\"\",\"\",'[7]MONE(M)'!$AO276)","v":491994.46645476995},{"$f":"IF('[8]MONE(M)'!$AO276=\"\",\"\",'[8]MONE(M)'!$AO276)","v":26238.33522959},14.179958530408964,3.5172612133246295,14.809406924471169,13.924731603305961,21.900516367140121,11.495022723145087,11.176262533197523,{"$f":"IF('[2]FISCAL(M)'!$K276=\"\",\"\",'[2]FISCAL(M)'!$K276)","v":-1753.370993023932},{"$f":"+'[2]REAL(A)'!$AO$32","v":208321.52269328642},-0.84166579158766774,{"$f":"IF('[2]FISCAL(M)'!$L276=\"\",\"\",'[2]FISCAL(M)'!$L276)","v":-1864.438245653932},{"$f":"+'[2]REAL(A)'!$AP$32","v":248751.25969328641},-0.7495191171907265,92801.690860305986,{"$f":"'[2]Gráfico REM'!BG270","v":20715.132273476953},{"$f":"'[2]Gráfico REM'!BH270","v":66928.421959643791},{"$f":"'[2]Gráfico REM'!BI270","v":5158.1366271852394},9.0594841071542263,5.9559675584470284,10.831402781829237,7.1879297144139542E-2,138481.70750190597,{"$f":"'[2]Gráfico REM'!BK270","v":21909.040328286952},{"$f":"'[2]Gráfico REM'!BL270","v":93166.757189233787},{"$f":"'[2]Gráfico REM'!BM270","v":23405.909984385235},10.580572935426957,6.5903161664108367,10.928308215003945,13.133249126511481]
[2012,"abril","2012-abril",{"$f":"IF('[2]REAL IPC(M)'!$AL277=\"\",\"\",+'[2]REAL IPC(M)'!$AL277)","v":4.4303797468354444},{"$f":"IF('[2]REAL IPC(M)'!$BE277=\"\",\"\",+'[2]REAL IPC(M)'!$BE277)","v":4.8003807286071121},{"$f":"IF('[2]REAL IPC(M)'!$AM277=\"\",\"\",+'[2]REAL IPC(M)'!$AM277)","v":4.6110698671945727},{"$f":"IF('[2]REAL IPC(M)'!$BI277=\"\",\"\",+'[2]REAL IPC(M)'!$BI277)","v":4.859827496355984},{"$f":"IF('[2]REAL IMAE(M)'!BJ277=\"\",\"\",'[2]REAL IMAE(M)'!BJ277)","v":3.0864451298435069},{"$f":"IF('[2]REAL IMAE(M)'!BK277=\"\",\"\",'[2]REAL IMAE(M)'!BK277)","v":3.883075378300993},{"$f":"IF('[2]REAL IMAE(M)'!BN277=\"\",\"\",'[2]REAL IMAE(M)'!BN277)","v":4.7413769882991952},{"$f":"IF('[2]REAL IMAE(M)'!BO277=\"\",\"\",'[2]REAL IMAE(M)'!BO277)","v":4.8214712522778314},{"$f":"IF('[2]EXT RIN(M)'!$K277=\"\",\"\",'[2]EXT RIN(M)'!$K277)","v":21470.533112334517},"",{"$f":"IF('[2]EXT RIN(M)'!$L277=\"\",\"\",'[2]EXT RIN(M)'!$L277)","v":23490.033180274517},"",{"$f":"IF('[2]MONE(M)CARD'!EG277=\"\",\"\",'[2]MONE(M)CARD'!EG277)","v":23977.564581016988},{"$f":"IF('[2]MONE(M)CARD'!EK277=\"\",\"\",'[2]MONE(M)CARD'!EK277)","v":39778.806156892468},{"$f":"IF('[2]MONE(M)CARD'!EP277=\"\",\"\",'[2]MONE(M)CARD'!EP277)","v":22284.511903605031},{"$f":"IF('[2]MONE(M)CARD'!ES277=\"\",\"\",'[2]MONE(M)CARD'!ES277)","v":25.914224499089045},{"$f":"IF('[2]MONE(M)CARD'!EV277=\"\",\"\",'[2]MONE(M)CARD'!EV277)","v":33.322645796910599},{"$f":"IF('[2]MONE(M)CARD'!EZ277=\"\",\"\",'[2]MONE(M)CARD'!EZ277)","v":34.409384528596966},{"$f":"IF('[2]MONE(M)CAPARD'!FC277=\"\",\"\",'[2]MONE(M)CAPARD'!FC277)","v":30370.537731806991},{"$f":"IF('[2]MONE(M)CAPARD'!FG277=\"\",\"\",'[2]MONE(M)CAPARD'!FG277)","v":60561.422151292456},{"$f":"IF('[2]MONE(M)CAPARD'!FL277=\"\",\"\",'[2]MONE(M)CAPARD'!FL277)","v":22284.511903605031},{"$f":"IF('[2]MONE(M)CAPARD'!FO277=\"\",\"\",'[2]MONE(M)CAPARD'!FO277)","v":24.221126932292236},{"$f":"IF('[2]MONE(M)CAPARD'!FR277=\"\",\"\",'[2]MONE(M)CAPARD'!FR277)","v":25.478471104568289},{"$f":"IF('[2]MONE(M)CAPARD'!FV277=\"\",\"\",'[2]MONE(M)CAPARD'!FV277)","v":27.695753705039539},{"$f":"IF('[2]MONE(M)CARD'!FV277=\"\",\"\",'[2]MONE(M)CARD'!FV277)","v":2784.0957102332081},{"$f":"IF('[2]MONE(M)CARD'!GD277=\"\",\"\",'[2]MONE(M)CARD'!GD277)","v":219.22897918570584},{"$f":"IF('[2]MONE(M)CARD'!GE277=\"\",\"\",'[2]MONE(M)CARD'!GE277)","v":6854.0184176462508},81.152107312893591,{"$f":"IF('[9]II.2.Balance OSD-Activos'!J135=\"\",\"\",'[9]II.2.Balance OSD-Activos'!J135)","v":180.6274173249642},{"$f":"IF('[9]II.2.Balance OSD-Activos'!N135=\"\",\"\",'[9]II.2.Balance OSD-Activos'!N135)","v":438.7820977580908},{"$f":"IF('[9]II.2.Balance OSD-Activos'!R135=\"\",\"\",'[9]II.2.Balance OSD-Activos'!R135)","v":29768.628013862479},{"$f":"IF('[9]II.2.Balance OSD-Activos'!S135=\"\",\"\",'[9]II.2.Balance OSD-Activos'!S135)","v":34306.800709995012},29949.255431187445,64694.838238940545,355.52869556615201,34.321242623125457,118.53230540162683,33.748993351446479,37.397065124972158,36.29544891323733,0.5913288681532336,{"$f":"IF('[2]MONE(M)CAPARD'!GS277=\"\",\"\",'[2]MONE(M)CAPARD'!GS277)","v":14355.003040570693},{"$f":"IF('[2]MONE(M)CARD'!HA277=\"\",\"\",'[2]MONE(M)CAPARD'!HA277)","v":7521.6839895962503},{"$f":"IF('[2]MONE(M)CAPARD'!HB277=\"\",\"\",'[2]MONE(M)CAPARD'!HB277)","v":6833.3190509744427},"n.d.",{"$f":"IF('[10]II.2.Balance OSD-Activos'!J135=\"\",\"\",'[10]II.2.Balance OSD-Activos'!J135)","v":388.38187478496411},{"$f":"IF('[10]II.2.Balance OSD-Activos'!N135=\"\",\"\",'[10]II.2.Balance OSD-Activos'!N135)","v":802.88705405809083},{"$f":"IF('[10]II.2.Balance OSD-Activos'!R135=\"\",\"\",'[10]II.2.Balance OSD-Activos'!R135)","v":44157.142985022481},{"$f":"IF('[10]II.2.Balance OSD-Activos'!S135=\"\",\"\",'[10]II.2.Balance OSD-Activos'!S135)","v":45917.400139715013},44545.524859807447,91265.81205358055,-28.25048358236565,27.389456885814422,75.661625834796922,28.26430260283437,29.537022498403154,28.774890222206515,0.54276045484504465,{"$f":"IF('[2]MONE(M)CAPARD'!AS277=\"\",\"\",'[2]MONE(M)CAPARD'!AS277)","v":5},{"$f":"IF('[2]MONE(M)CAPARD'!AT277=\"\",\"\",'[2]MONE(M)CAPARD'!AT277)","v":"n.a."},{"$f":"IF('[2]MONE(M)CAPARD'!AU277=\"\",\"\",'[2]MONE(M)CAPARD'!AU277)","v":5.5},{"$f":"IF('[2]MONE(M)CAPARD'!AV277=\"\",\"\",'[2]MONE(M)CAPARD'!AV277)","v":6},{"$f":"IF('[2]MONE(M)CAPARD'!AW277=\"\",\"\",'[2]MONE(M)CAPARD'!AW277)","v":"n.a."},{"$f":"IF('[2]MONE(M)CAPARD'!AX277=\"\",\"\",'[2]MONE(M)CAPARD'!AX277)","v":6.75},{"$f":"IF('[2]MONE(M)CAPARD'!AY277=\"\",\"\",'[2]MONE(M)CAPARD'!AY277)","v":"n.a."},{"$f":"IF('[2]FISCAL(M)'!$K277=\"\",\"\",'[2]FISCAL(M)'!$K277)","v":-1777.695116772242},{"$f":"IF('[2]FISCAL(M)'!$L277=\"\",\"\",'[2]FISCAL(M)'!$L277)","v":-2086.4379789222421},{"$f":"IF('[2]FISCAL(M)'!$AY277=\"\",\"\",'[2]FISCAL(M)'!$AY277)","v":78271.898787446902},{"$f":"IF('[2]FISCAL(M)'!$BI277=\"\",\"\",'[2]FISCAL(M)'!$BI277)","v":40448.812000118589},{"$f":"IF('[2]FISCAL(M)'!$BS277=\"\",\"\",'[2]FISCAL(M)'!$BS277)","v":37823.086787328328},{"$f":"IF('[2]FISCAL(M)'!$AZ277=\"\",\"\",'[2]FISCAL(M)'!$AZ277)","v":91972.482449636911},{"$f":"IF('[2]FISCAL(M)'!$BJ277=\"\",\"\",'[2]FISCAL(M)'!$BJ277)","v":43239.229772008584},{"$f":"IF('[2]FISCAL(M)'!$BT277=\"\",\"\",'[2]FISCAL(M)'!$BT277)","v":48733.252677628334},{"$f":"IF('[3]MONE(M)'!$AO277=\"\",\"\",'[3]MONE(M)'!$AO277)","v":10921605.837871812},{"$f":"IF('[4]MONE(M)'!$AO277=\"\",\"\",'[4]MONE(M)'!$AO277)","v":9104.7054600201227},{"$f":"IF('[5]MONE(M)'!$AO277=\"\",\"\",'[5]MONE(M)'!$AO277)","v":101003.84208953888},{"$f":"+'[1]MONE(M)'!$AO277","v":167236.2173098007},{"$f":"IF('[6]MONE(M)'!$AO277=\"\",\"\",'[6]MONE(M)'!$AO277)","v":54302.630289920009},{"$f":"IF('[7]MONE(M)'!$AO277=\"\",\"\",'[7]MONE(M)'!$AO277)","v":488027.64754164004},{"$f":"IF('[8]MONE(M)'!$AO277=\"\",\"\",'[8]MONE(M)'!$AO277)","v":26777.274802860004},14.403474022616102,3.511745200431915,18.548804053184842,15.775191673416922,22.739708313613495,10.327808254772064,12.236350982984856,{"$f":"IF('[2]FISCAL(M)'!$K277=\"\",\"\",'[2]FISCAL(M)'!$K277)","v":-1777.695116772242},{"$f":"+'[2]REAL(A)'!$AO$32","v":208321.52269328642},-0.8533420329254976,{"$f":"IF('[2]FISCAL(M)'!$L277=\"\",\"\",'[2]FISCAL(M)'!$L277)","v":-2086.4379789222421},{"$f":"+'[2]REAL(A)'!$AP$32","v":248751.25969328641},-0.83876478916924779,93472.100959973264,{"$f":"'[2]Gráfico REM'!BG271","v":20791.989788686955},{"$f":"'[2]Gráfico REM'!BH271","v":67474.927878179224},{"$f":"'[2]Gráfico REM'!BI271","v":5205.1832931070894},8.7532507617337885,3.4732240454863339,11.294352382497653,-0.42234809303994814,139047.15163305326,{"$f":"'[2]Gráfico REM'!BK271","v":22137.691295046956},{"$f":"'[2]Gráfico REM'!BL271","v":94252.202681039227},{"$f":"'[2]Gráfico REM'!BM271","v":22657.257656967093},9.8910883266338789,4.6510156562503013,11.560364555533752,8.4464663641308455]
[2012,"mayo ","2012-mayo ",{"$f":"IF('[2]REAL IPC(M)'!$AL278=\"\",\"\",+'[2]REAL IPC(M)'!$AL278)","v":4.0003272251308841},{"$f":"IF('[2]REAL IPC(M)'!$BE278=\"\",\"\",+'[2]REAL IPC(M)'!$BE278)","v":4.7503885419529102},{"$f":"IF('[2]REAL IPC(M)'!$AM278=\"\",\"\",+'[2]REAL IPC(M)'!$AM278)","v":4.2282430213464783},{"$f":"IF('[2]REAL IPC(M)'!$BI278=\"\",\"\",+'[2]REAL IPC(M)'!$BI278)","v":4.810339377688555},{"$f":"IF('[2]REAL IMAE(M)'!BJ278=\"\",\"\",'[2]REAL IMAE(M)'!BJ278)","v":3.2610556772888488},{"$f":"IF('[2]REAL IMAE(M)'!BK278=\"\",\"\",'[2]REAL IMAE(M)'!BK278)","v":3.8898594885370175},{"$f":"IF('[2]REAL IMAE(M)'!BN278=\"\",\"\",'[2]REAL IMAE(M)'!BN278)","v":4.7015094365208343},{"$f":"IF('[2]REAL IMAE(M)'!BO278=\"\",\"\",'[2]REAL IMAE(M)'!BO278)","v":4.8139643097226514},{"$f":"IF('[2]EXT RIN(M)'!$K278=\"\",\"\",'[2]EXT RIN(M)'!$K278)","v":21185.559158317894},"",{"$f":"IF('[2]EXT RIN(M)'!$L278=\"\",\"\",'[2]EXT RIN(M)'!$L278)","v":23227.431959187892},"",{"$f":"IF('[2]MONE(M)CARD'!EG278=\"\",\"\",'[2]MONE(M)CARD'!EG278)","v":23567.610315418759},{"$f":"IF('[2]MONE(M)CARD'!EK278=\"\",\"\",'[2]MONE(M)CARD'!EK278)","v":40208.854575063873},{"$f":"IF('[2]MONE(M)CARD'!EP278=\"\",\"\",'[2]MONE(M)CARD'!EP278)","v":22826.998173107},{"$f":"IF('[2]MONE(M)CARD'!ES278=\"\",\"\",'[2]MONE(M)CARD'!ES278)","v":28.326972830336761},{"$f":"IF('[2]MONE(M)CARD'!EV278=\"\",\"\",'[2]MONE(M)CARD'!EV278)","v":34.746190734037221},{"$f":"IF('[2]MONE(M)CARD'!EZ278=\"\",\"\",'[2]MONE(M)CARD'!EZ278)","v":36.553737392648536},{"$f":"IF('[2]MONE(M)CAPARD'!FC278=\"\",\"\",'[2]MONE(M)CAPARD'!FC278)","v":29924.816403978759},{"$f":"IF('[2]MONE(M)CAPARD'!FG278=\"\",\"\",'[2]MONE(M)CAPARD'!FG278)","v":61136.686808153878},{"$f":"IF('[2]MONE(M)CAPARD'!FL278=\"\",\"\",'[2]MONE(M)CAPARD'!FL278)","v":22826.998173107},{"$f":"IF('[2]MONE(M)CAPARD'!FO278=\"\",\"\",'[2]MONE(M)CAPARD'!FO278)","v":26.365858006231878},{"$f":"IF('[2]MONE(M)CAPARD'!FR278=\"\",\"\",'[2]MONE(M)CAPARD'!FR278)","v":27.278719713315034},{"$f":"IF('[2]MONE(M)CAPARD'!FV278=\"\",\"\",'[2]MONE(M)CAPARD'!FV278)","v":29.957873980406504},{"$f":"IF('[2]MONE(M)CARD'!FV278=\"\",\"\",'[2]MONE(M)CARD'!FV278)","v":2682.031236609706},{"$f":"IF('[2]MONE(M)CARD'!GD278=\"\",\"\",'[2]MONE(M)CARD'!GD278)","v":68.990501084856191},{"$f":"IF('[2]MONE(M)CARD'!GE278=\"\",\"\",'[2]MONE(M)CARD'!GE278)","v":6432.2294230407551},47.838735885182679,{"$f":"IF('[9]II.2.Balance OSD-Activos'!J136=\"\",\"\",'[9]II.2.Balance OSD-Activos'!J136)","v":173.82934350763509},{"$f":"IF('[9]II.2.Balance OSD-Activos'!N136=\"\",\"\",'[9]II.2.Balance OSD-Activos'!N136)","v":438.52207432611982},{"$f":"IF('[9]II.2.Balance OSD-Activos'!R136=\"\",\"\",'[9]II.2.Balance OSD-Activos'!R136)","v":29908.158848203599},{"$f":"IF('[9]II.2.Balance OSD-Activos'!S136=\"\",\"\",'[9]II.2.Balance OSD-Activos'!S136)","v":34681.225233765203},30081.988191711233,65201.735499802555,330.04032002168759,35.123019025397959,114.44509965746441,34.586572767988379,37.795581070706909,36.875596196263018,0.58014728302568841,{"$f":"IF('[2]MONE(M)CAPARD'!GS278=\"\",\"\",'[2]MONE(M)CAPARD'!GS278)","v":14441.128551665835},{"$f":"IF('[2]MONE(M)CARD'!HA278=\"\",\"\",'[2]MONE(M)CAPARD'!HA278)","v":7099.0310964407545},{"$f":"IF('[2]MONE(M)CAPARD'!HB278=\"\",\"\",'[2]MONE(M)CAPARD'!HB278)","v":7342.0974552250809},"n.d.",{"$f":"IF('[10]II.2.Balance OSD-Activos'!J136=\"\",\"\",'[10]II.2.Balance OSD-Activos'!J136)","v":841.49404452763508},{"$f":"IF('[10]II.2.Balance OSD-Activos'!N136=\"\",\"\",'[10]II.2.Balance OSD-Activos'!N136)","v":832.32648149611987},{"$f":"IF('[10]II.2.Balance OSD-Activos'!R136=\"\",\"\",'[10]II.2.Balance OSD-Activos'!R136)","v":44560.039505183595},{"$f":"IF('[10]II.2.Balance OSD-Activos'!S136=\"\",\"\",'[10]II.2.Balance OSD-Activos'!S136)","v":46433.563453875206},45401.533549711232,92667.423485082545,30.365573118616386,31.924604879727859,83.371638701597249,31.954405233352468,32.080329869072855,32.336269365779138,3.5613791435726228,{"$f":"IF('[2]MONE(M)CAPARD'!AS278=\"\",\"\",'[2]MONE(M)CAPARD'!AS278)","v":5},{"$f":"IF('[2]MONE(M)CAPARD'!AT278=\"\",\"\",'[2]MONE(M)CAPARD'!AT278)","v":"n.a."},{"$f":"IF('[2]MONE(M)CAPARD'!AU278=\"\",\"\",'[2]MONE(M)CAPARD'!AU278)","v":5.5},{"$f":"IF('[2]MONE(M)CAPARD'!AV278=\"\",\"\",'[2]MONE(M)CAPARD'!AV278)","v":7},{"$f":"IF('[2]MONE(M)CAPARD'!AW278=\"\",\"\",'[2]MONE(M)CAPARD'!AW278)","v":"n.a."},{"$f":"IF('[2]MONE(M)CAPARD'!AX278=\"\",\"\",'[2]MONE(M)CAPARD'!AX278)","v":6.75},{"$f":"IF('[2]MONE(M)CAPARD'!AY278=\"\",\"\",'[2]MONE(M)CAPARD'!AY278)","v":"n.a."},{"$f":"IF('[2]FISCAL(M)'!$K278=\"\",\"\",'[2]FISCAL(M)'!$K278)","v":-2421.5608779039667},{"$f":"IF('[2]FISCAL(M)'!$L278=\"\",\"\",'[2]FISCAL(M)'!$L278)","v":-2678.8597319039673},{"$f":"IF('[2]FISCAL(M)'!$AY278=\"\",\"\",'[2]FISCAL(M)'!$AY278)","v":78615.390751259532},{"$f":"IF('[2]FISCAL(M)'!$BI278=\"\",\"\",'[2]FISCAL(M)'!$BI278)","v":40472.121861587249},{"$f":"IF('[2]FISCAL(M)'!$BS278=\"\",\"\",'[2]FISCAL(M)'!$BS278)","v":38143.268889672283},{"$f":"IF('[2]FISCAL(M)'!$AZ278=\"\",\"\",'[2]FISCAL(M)'!$AZ278)","v":92544.922476549546},{"$f":"IF('[2]FISCAL(M)'!$BJ278=\"\",\"\",'[2]FISCAL(M)'!$BJ278)","v":43385.859029097242},{"$f":"IF('[2]FISCAL(M)'!$BT278=\"\",\"\",'[2]FISCAL(M)'!$BT278)","v":49159.063447452281},{"$f":"IF('[3]MONE(M)'!$AO278=\"\",\"\",'[3]MONE(M)'!$AO278)","v":11026360.641836453},{"$f":"IF('[4]MONE(M)'!$AO278=\"\",\"\",'[4]MONE(M)'!$AO278)","v":9080.1022871201203},{"$f":"IF('[5]MONE(M)'!$AO278=\"\",\"\",'[5]MONE(M)'!$AO278)","v":103053.9520652823},{"$f":"+'[1]MONE(M)'!$AO278","v":169053.08988752589},{"$f":"IF('[6]MONE(M)'!$AO278=\"\",\"\",'[6]MONE(M)'!$AO278)","v":55738.95479518269},{"$f":"IF('[7]MONE(M)'!$AO278=\"\",\"\",'[7]MONE(M)'!$AO278)","v":487152.81905006},{"$f":"IF('[8]MONE(M)'!$AO278=\"\",\"\",'[8]MONE(M)'!$AO278)","v":27802.603829249994},13.662202182965434,3.477026089669133,18.574452561475873,16.496792681592254,25.502765266920413,9.0826943553058204,21.792552773050232,{"$f":"IF('[2]FISCAL(M)'!$K278=\"\",\"\",'[2]FISCAL(M)'!$K278)","v":-2421.5608779039667},{"$f":"+'[2]REAL(A)'!$AO$32","v":208321.52269328642},-1.1624151199534249,{"$f":"IF('[2]FISCAL(M)'!$L278=\"\",\"\",'[2]FISCAL(M)'!$L278)","v":-2678.8597319039673},{"$f":"+'[2]REAL(A)'!$AP$32","v":248751.25969328641},-1.0769230817994797,93612.991141117149,{"$f":"'[2]Gráfico REM'!BG272","v":20326.046693442258},{"$f":"'[2]Gráfico REM'!BH272","v":68045.690168430039},{"$f":"'[2]Gráfico REM'!BI272","v":5241.2542792448494},{"$f":"+((CS271/CS259)-1)*100","v":9.0195987746281681},1.5671033865581885,11.983186880960606,2.9431787930307873,141231.74968807717,{"$f":"'[2]Gráfico REM'!BK272","v":21803.57261518226},{"$f":"'[2]Gráfico REM'!BL272","v":95848.293997680041},{"$f":"'[2]Gráfico REM'!BM272","v":23579.883075214857},{"$f":"+((DA271/DA259)-1)*100","v":12.551730096972392},3.8610688791829606,14.661989770672545,12.840882626997896]
[2012,"junio ","2012-junio ",{"$f":"IF('[2]REAL IPC(M)'!$AL279=\"\",\"\",+'[2]REAL IPC(M)'!$AL279)","v":3.3918984870668689},{"$f":"IF('[2]REAL IPC(M)'!$BE279=\"\",\"\",+'[2]REAL IPC(M)'!$BE279)","v":4.6989486465432551},{"$f":"IF('[2]REAL IPC(M)'!$AM279=\"\",\"\",+'[2]REAL IPC(M)'!$AM279)","v":3.6589349885658207},{"$f":"IF('[2]REAL IPC(M)'!$BI279=\"\",\"\",+'[2]REAL IPC(M)'!$BI279)","v":4.7586315263615342},{"$f":"IF('[2]REAL IMAE(M)'!BJ279=\"\",\"\",'[2]REAL IMAE(M)'!BJ279)","v":3.5277769298655226},{"$f":"IF('[2]REAL IMAE(M)'!BK279=\"\",\"\",'[2]REAL IMAE(M)'!BK279)","v":3.8973395425626167},{"$f":"IF('[2]REAL IMAE(M)'!BN279=\"\",\"\",'[2]REAL IMAE(M)'!BN279)","v":4.7802054583284681},{"$f":"IF('[2]REAL IMAE(M)'!BO279=\"\",\"\",'[2]REAL IMAE(M)'!BO279)","v":4.8052650894331306},{"$f":"IF('[2]EXT RIN(M)'!$K279=\"\",\"\",'[2]EXT RIN(M)'!$K279)","v":21975.220232061871},"",{"$f":"IF('[2]EXT RIN(M)'!$L279=\"\",\"\",'[2]EXT RIN(M)'!$L279)","v":24184.68649118187},"",{"$f":"IF('[2]MONE(M)CARD'!EG279=\"\",\"\",'[2]MONE(M)CARD'!EG279)","v":23824.084273255059},{"$f":"IF('[2]MONE(M)CARD'!EK279=\"\",\"\",'[2]MONE(M)CARD'!EK279)","v":40691.669980582221},{"$f":"IF('[2]MONE(M)CARD'!EP279=\"\",\"\",'[2]MONE(M)CARD'!EP279)","v":22640.544608263735},{"$f":"IF('[2]MONE(M)CARD'!ES279=\"\",\"\",'[2]MONE(M)CARD'!ES279)","v":6.4080322600883921},{"$f":"IF('[2]MONE(M)CARD'!EV279=\"\",\"\",'[2]MONE(M)CARD'!EV279)","v":9.0707445570612499},{"$f":"IF('[2]MONE(M)CARD'!EZ279=\"\",\"\",'[2]MONE(M)CARD'!EZ279)","v":8.1259695932856637},{"$f":"IF('[2]MONE(M)CAPARD'!FC279=\"\",\"\",'[2]MONE(M)CAPARD'!FC279)","v":30298.149433235063},{"$f":"IF('[2]MONE(M)CAPARD'!FG279=\"\",\"\",'[2]MONE(M)CAPARD'!FG279)","v":61862.774120912225},{"$f":"IF('[2]MONE(M)CAPARD'!FL279=\"\",\"\",'[2]MONE(M)CAPARD'!FL279)","v":22640.544608263735},{"$f":"IF('[2]MONE(M)CAPARD'!FO279=\"\",\"\",'[2]MONE(M)CAPARD'!FO279)","v":8.9735705950356746},{"$f":"IF('[2]MONE(M)CAPARD'!FR279=\"\",\"\",'[2]MONE(M)CAPARD'!FR279)","v":9.6194477327662842},{"$f":"IF('[2]MONE(M)CAPARD'!FV279=\"\",\"\",'[2]MONE(M)CAPARD'!FV279)","v":8.7862421311698071},{"$f":"IF('[2]MONE(M)CARD'!FV279=\"\",\"\",'[2]MONE(M)CARD'!FV279)","v":2591.1465368244021},{"$f":"IF('[2]MONE(M)CARD'!GD279=\"\",\"\",'[2]MONE(M)CARD'!GD279)","v":127.30975518748889},{"$f":"IF('[2]MONE(M)CARD'!GE279=\"\",\"\",'[2]MONE(M)CARD'!GE279)","v":6375.0701437749967},56.745429703302008,{"$f":"IF('[9]II.2.Balance OSD-Activos'!J137=\"\",\"\",'[9]II.2.Balance OSD-Activos'!J137)","v":172.52315480065869},{"$f":"IF('[9]II.2.Balance OSD-Activos'!N137=\"\",\"\",'[9]II.2.Balance OSD-Activos'!N137)","v":457.76377605407055},{"$f":"IF('[9]II.2.Balance OSD-Activos'!R137=\"\",\"\",'[9]II.2.Balance OSD-Activos'!R137)","v":30067.006497533228},{"$f":"IF('[9]II.2.Balance OSD-Activos'!S137=\"\",\"\",'[9]II.2.Balance OSD-Activos'!S137)","v":35093.507724660521},30239.529652333887,65790.80115304848,18.389929816810756,12.79561457013163,12.813309878277469,12.765039754300078,12.677893759719595,12.732913419721159,-24.142682776541861,{"$f":"IF('[2]MONE(M)CAPARD'!GS279=\"\",\"\",'[2]MONE(M)CAPARD'!GS279)","v":14385.274179696602},{"$f":"IF('[2]MONE(M)CARD'!HA279=\"\",\"\",'[2]MONE(M)CAPARD'!HA279)","v":6990.0068768849951},{"$f":"IF('[2]MONE(M)CAPARD'!HB279=\"\",\"\",'[2]MONE(M)CAPARD'!HB279)","v":7395.2673028116069},"n.d.",{"$f":"IF('[10]II.2.Balance OSD-Activos'!J137=\"\",\"\",'[10]II.2.Balance OSD-Activos'!J137)","v":896.80488477065853},{"$f":"IF('[10]II.2.Balance OSD-Activos'!N137=\"\",\"\",'[10]II.2.Balance OSD-Activos'!N137)","v":859.10053007407078},{"$f":"IF('[10]II.2.Balance OSD-Activos'!R137=\"\",\"\",'[10]II.2.Balance OSD-Activos'!R137)","v":45126.652140813225},{"$f":"IF('[10]II.2.Balance OSD-Activos'!S137=\"\",\"\",'[10]II.2.Balance OSD-Activos'!S137)","v":46985.449590450517},46023.457025583884,93868.007146108474,18.318215782928625,14.9212141369504,10.584106469101462,14.855680921718918,12.569383848423143,13.69146621238051,-18.644803153398627,{"$f":"IF('[2]MONE(M)CAPARD'!AS279=\"\",\"\",'[2]MONE(M)CAPARD'!AS279)","v":5},{"$f":"IF('[2]MONE(M)CAPARD'!AT279=\"\",\"\",'[2]MONE(M)CAPARD'!AT279)","v":"n.a."},{"$f":"IF('[2]MONE(M)CAPARD'!AU279=\"\",\"\",'[2]MONE(M)CAPARD'!AU279)","v":5},{"$f":"IF('[2]MONE(M)CAPARD'!AV279=\"\",\"\",'[2]MONE(M)CAPARD'!AV279)","v":7},{"$f":"IF('[2]MONE(M)CAPARD'!AW279=\"\",\"\",'[2]MONE(M)CAPARD'!AW279)","v":"n.a."},{"$f":"IF('[2]MONE(M)CAPARD'!AX279=\"\",\"\",'[2]MONE(M)CAPARD'!AX279)","v":6},{"$f":"IF('[2]MONE(M)CAPARD'!AY279=\"\",\"\",'[2]MONE(M)CAPARD'!AY279)","v":"n.a."},{"$f":"IF('[2]FISCAL(M)'!$K279=\"\",\"\",'[2]FISCAL(M)'!$K279)","v":-3163.6801347451196},{"$f":"IF('[2]FISCAL(M)'!$L279=\"\",\"\",'[2]FISCAL(M)'!$L279)","v":-3344.6466317251193},{"$f":"IF('[2]FISCAL(M)'!$AY279=\"\",\"\",'[2]FISCAL(M)'!$AY279)","v":80061.332278014335},{"$f":"IF('[2]FISCAL(M)'!$BI279=\"\",\"\",'[2]FISCAL(M)'!$BI279)","v":40989.792254060187},{"$f":"IF('[2]FISCAL(M)'!$BS279=\"\",\"\",'[2]FISCAL(M)'!$BS279)","v":39071.540023954156},{"$f":"IF('[2]FISCAL(M)'!$AZ279=\"\",\"\",'[2]FISCAL(M)'!$AZ279)","v":94020.953290714344},{"$f":"IF('[2]FISCAL(M)'!$BJ279=\"\",\"\",'[2]FISCAL(M)'!$BJ279)","v":43944.515998690193},{"$f":"IF('[2]FISCAL(M)'!$BT279=\"\",\"\",'[2]FISCAL(M)'!$BT279)","v":50076.437292024159},{"$f":"IF('[3]MONE(M)'!$AO279=\"\",\"\",'[3]MONE(M)'!$AO279)","v":11169343.704898369},{"$f":"IF('[4]MONE(M)'!$AO279=\"\",\"\",'[4]MONE(M)'!$AO279)","v":9105.3619217801206},{"$f":"IF('[5]MONE(M)'!$AO279=\"\",\"\",'[5]MONE(M)'!$AO279)","v":104362.70012020315},{"$f":"+'[1]MONE(M)'!$AO279","v":169807.08105430129},{"$f":"IF('[6]MONE(M)'!$AO279=\"\",\"\",'[6]MONE(M)'!$AO279)","v":56853.005194361322},{"$f":"IF('[7]MONE(M)'!$AO279=\"\",\"\",'[7]MONE(M)'!$AO279)","v":489560.25266124},{"$f":"IF('[8]MONE(M)'!$AO279=\"\",\"\",'[8]MONE(M)'!$AO279)","v":28434.565056349998},14.267983672314299,3.8699488964188067,18.305870092304776,16.365305037684298,28.228214455755428,8.9512391513454581,15.880989384963694,{"$f":"IF('[2]FISCAL(M)'!$K279=\"\",\"\",'[2]FISCAL(M)'!$K279)","v":-3163.6801347451196},{"$f":"+'[2]REAL(A)'!$AO$32","v":208321.52269328642},-1.5186525587195487,{"$f":"IF('[2]FISCAL(M)'!$L279=\"\",\"\",'[2]FISCAL(M)'!$L279)","v":-3344.6466317251193},{"$f":"+'[2]REAL(A)'!$AP$32","v":248751.25969328641},-1.3445747514400983,94252.771229337814,{"$f":"'[2]Gráfico REM'!BG273","v":20186.541222821361},{"$f":"'[2]Gráfico REM'!BH273","v":68732.669392146025},{"$f":"'[2]Gráfico REM'!BI273","v":5333.560614370419},8.4421147891351467,-2.6686836761851684,12.227306591081044,8.1617255581513337,142016.1733529178,{"$f":"'[2]Gráfico REM'!BK273","v":21710.52023201136},{"$f":"'[2]Gráfico REM'!BL273","v":97167.234448496019},{"$f":"'[2]Gráfico REM'!BM273","v":23138.418672410422},9.8905200508810243,-0.22607810153917329,13.272434942848822,6.6648735206242593]
[2012,"julio","2012-julio",{"$f":"IF('[2]REAL IPC(M)'!$AL280=\"\",\"\",+'[2]REAL IPC(M)'!$AL280)","v":2.674099208272751},{"$f":"IF('[2]REAL IPC(M)'!$BE280=\"\",\"\",+'[2]REAL IPC(M)'!$BE280)","v":4.6464530878148169},{"$f":"IF('[2]REAL IPC(M)'!$AM280=\"\",\"\",+'[2]REAL IPC(M)'!$AM280)","v":3.0521957951132439},{"$f":"IF('[2]REAL IPC(M)'!$BI280=\"\",\"\",+'[2]REAL IPC(M)'!$BI280)","v":4.7051218825747254},{"$f":"IF('[2]REAL IMAE(M)'!BJ280=\"\",\"\",'[2]REAL IMAE(M)'!BJ280)","v":3.3945617564352659},{"$f":"IF('[2]REAL IMAE(M)'!BK280=\"\",\"\",'[2]REAL IMAE(M)'!BK280)","v":3.9057881067072753},{"$f":"IF('[2]REAL IMAE(M)'!BN280=\"\",\"\",'[2]REAL IMAE(M)'!BN280)","v":4.7430305722601984},{"$f":"IF('[2]REAL IMAE(M)'!BO280=\"\",\"\",'[2]REAL IMAE(M)'!BO280)","v":4.7958391677866752},{"$f":"IF('[2]EXT RIN(M)'!$K280=\"\",\"\",'[2]EXT RIN(M)'!$K280)","v":21652.862193113695},"",{"$f":"IF('[2]EXT RIN(M)'!$L280=\"\",\"\",'[2]EXT RIN(M)'!$L280)","v":23787.481331853694},"",{"$f":"IF('[2]MONE(M)CARD'!EG280=\"\",\"\",'[2]MONE(M)CARD'!EG280)","v":23510.290319848777},{"$f":"IF('[2]MONE(M)CARD'!EK280=\"\",\"\",'[2]MONE(M)CARD'!EK280)","v":41166.007124510783},{"$f":"IF('[2]MONE(M)CARD'!EP280=\"\",\"\",'[2]MONE(M)CARD'!EP280)","v":22791.746069122077},{"$f":"IF('[2]MONE(M)CARD'!ES280=\"\",\"\",'[2]MONE(M)CARD'!ES280)","v":2.7069043239402291},{"$f":"IF('[2]MONE(M)CARD'!EV280=\"\",\"\",'[2]MONE(M)CARD'!EV280)","v":7.9874314612125241},{"$f":"IF('[2]MONE(M)CARD'!EZ280=\"\",\"\",'[2]MONE(M)CARD'!EZ280)","v":7.7428250662615161},{"$f":"IF('[2]MONE(M)CAPARD'!FC280=\"\",\"\",'[2]MONE(M)CAPARD'!FC280)","v":30069.995190028778},{"$f":"IF('[2]MONE(M)CAPARD'!FG280=\"\",\"\",'[2]MONE(M)CAPARD'!FG280)","v":62539.799245380789},{"$f":"IF('[2]MONE(M)CAPARD'!FL280=\"\",\"\",'[2]MONE(M)CAPARD'!FL280)","v":22791.746069122077},{"$f":"IF('[2]MONE(M)CAPARD'!FO280=\"\",\"\",'[2]MONE(M)CAPARD'!FO280)","v":5.586909204872792},{"$f":"IF('[2]MONE(M)CAPARD'!FR280=\"\",\"\",'[2]MONE(M)CAPARD'!FR280)","v":8.68335657917887},{"$f":"IF('[2]MONE(M)CAPARD'!FV280=\"\",\"\",'[2]MONE(M)CAPARD'!FV280)","v":8.3577822944056699},{"$f":"IF('[2]MONE(M)CARD'!FV280=\"\",\"\",'[2]MONE(M)CARD'!FV280)","v":2588.965563003544},{"$f":"IF('[2]MONE(M)CARD'!GD280=\"\",\"\",'[2]MONE(M)CARD'!GD280)","v":91.242672144220037},{"$f":"IF('[2]MONE(M)CARD'!GE280=\"\",\"\",'[2]MONE(M)CARD'!GE280)","v":6455.8228799104863},7.3788991357706557,{"$f":"IF('[9]II.2.Balance OSD-Activos'!J138=\"\",\"\",'[9]II.2.Balance OSD-Activos'!J138)","v":165.01103634561579},{"$f":"IF('[9]II.2.Balance OSD-Activos'!N138=\"\",\"\",'[9]II.2.Balance OSD-Activos'!N138)","v":443.7563532785336},{"$f":"IF('[9]II.2.Balance OSD-Activos'!R138=\"\",\"\",'[9]II.2.Balance OSD-Activos'!R138)","v":30309.640860933894},{"$f":"IF('[9]II.2.Balance OSD-Activos'!S138=\"\",\"\",'[9]II.2.Balance OSD-Activos'!S138)","v":35360.452074240711},30474.651897279509,66278.860324798763,10.334346506967208,12.896052445850126,4.8556073255220156,12.91032443164395,12.239892255900342,12.487460758964763,-0.2454526607563956,{"$f":"IF('[2]MONE(M)CAPARD'!GS280=\"\",\"\",'[2]MONE(M)CAPARD'!GS280)","v":14440.730819228504},{"$f":"IF('[2]MONE(M)CARD'!HA280=\"\",\"\",'[2]MONE(M)CAPARD'!HA280)","v":7071.6327260704866},{"$f":"IF('[2]MONE(M)CAPARD'!HB280=\"\",\"\",'[2]MONE(M)CAPARD'!HB280)","v":7369.098093158017},"n.d.",{"$f":"IF('[10]II.2.Balance OSD-Activos'!J138=\"\",\"\",'[10]II.2.Balance OSD-Activos'!J138)","v":891.07491065561578},{"$f":"IF('[10]II.2.Balance OSD-Activos'!N138=\"\",\"\",'[10]II.2.Balance OSD-Activos'!N138)","v":842.29954276853357},{"$f":"IF('[10]II.2.Balance OSD-Activos'!R138=\"\",\"\",'[10]II.2.Balance OSD-Activos'!R138)","v":45650.894066143897},{"$f":"IF('[10]II.2.Balance OSD-Activos'!S138=\"\",\"\",'[10]II.2.Balance OSD-Activos'!S138)","v":47397.200560570709},46541.968976799515,94781.469080138748,16.090185817786029,14.687882659446338,1.7347537646359656,14.660847652713294,12.568124238917445,13.490757652892027,-0.20070855948848276,{"$f":"IF('[2]MONE(M)CAPARD'!AS280=\"\",\"\",'[2]MONE(M)CAPARD'!AS280)","v":5},{"$f":"IF('[2]MONE(M)CAPARD'!AT280=\"\",\"\",'[2]MONE(M)CAPARD'!AT280)","v":"n.a."},{"$f":"IF('[2]MONE(M)CAPARD'!AU280=\"\",\"\",'[2]MONE(M)CAPARD'!AU280)","v":5},{"$f":"IF('[2]MONE(M)CAPARD'!AV280=\"\",\"\",'[2]MONE(M)CAPARD'!AV280)","v":7},{"$f":"IF('[2]MONE(M)CAPARD'!AW280=\"\",\"\",'[2]MONE(M)CAPARD'!AW280)","v":"n.a."},{"$f":"IF('[2]MONE(M)CAPARD'!AX280=\"\",\"\",'[2]MONE(M)CAPARD'!AX280)","v":6},{"$f":"IF('[2]MONE(M)CAPARD'!AY280=\"\",\"\",'[2]MONE(M)CAPARD'!AY280)","v":"n.a."},{"$f":"IF('[2]FISCAL(M)'!$K280=\"\",\"\",'[2]FISCAL(M)'!$K280)","v":-4638.8245953236838},{"$f":"IF('[2]FISCAL(M)'!$L280=\"\",\"\",'[2]FISCAL(M)'!$L280)","v":-5035.6092079036844},{"$f":"IF('[2]FISCAL(M)'!$AY280=\"\",\"\",'[2]FISCAL(M)'!$AY280)","v":80646.564498660009},{"$f":"IF('[2]FISCAL(M)'!$BI280=\"\",\"\",'[2]FISCAL(M)'!$BI280)","v":41529.593227695048},{"$f":"IF('[2]FISCAL(M)'!$BS280=\"\",\"\",'[2]FISCAL(M)'!$BS280)","v":39116.971270964954},{"$f":"IF('[2]FISCAL(M)'!$AZ280=\"\",\"\",'[2]FISCAL(M)'!$AZ280)","v":94834.533174190001},{"$f":"IF('[2]FISCAL(M)'!$BJ280=\"\",\"\",'[2]FISCAL(M)'!$BJ280)","v":44821.702780375039},{"$f":"IF('[2]FISCAL(M)'!$BT280=\"\",\"\",'[2]FISCAL(M)'!$BT280)","v":50012.830393814962},{"$f":"IF('[3]MONE(M)'!$AO280=\"\",\"\",'[3]MONE(M)'!$AO280)","v":11301671.195277303},{"$f":"IF('[4]MONE(M)'!$AO280=\"\",\"\",'[4]MONE(M)'!$AO280)","v":9159.5231738301209},{"$f":"IF('[5]MONE(M)'!$AO280=\"\",\"\",'[5]MONE(M)'!$AO280)","v":106524.34773947881},{"$f":"+'[1]MONE(M)'!$AO280","v":170597.08607113338},{"$f":"IF('[6]MONE(M)'!$AO280=\"\",\"\",'[6]MONE(M)'!$AO280)","v":57927.64767306453},{"$f":"IF('[7]MONE(M)'!$AO280=\"\",\"\",'[7]MONE(M)'!$AO280)","v":488069.76338648994},{"$f":"IF('[8]MONE(M)'!$AO280=\"\",\"\",'[8]MONE(M)'!$AO280)","v":28867.846379399998},14.259429526557454,3.9126728095621122,20.251560921546897,15.996521222250637,29.593259490418909,7.1548996286515232,15.934564067532264,{"$f":"IF('[2]FISCAL(M)'!$K280=\"\",\"\",'[2]FISCAL(M)'!$K280)","v":-4638.8245953236838},{"$f":"+'[2]REAL(A)'!$AO$32","v":208321.52269328642},-2.226762043283192,{"$f":"IF('[2]FISCAL(M)'!$L280=\"\",\"\",'[2]FISCAL(M)'!$L280)","v":-5035.6092079036844},{"$f":"+'[2]REAL(A)'!$AP$32","v":248751.25969328641},-2.024355259190509,94651.62210771472,{"$f":"'[2]Gráfico REM'!BG274","v":20218.69127041343},{"$f":"'[2]Gráfico REM'!BH274","v":69235.308085798228},{"$f":"'[2]Gráfico REM'!BI274","v":5197.6227515030587},8.8686798316656592,-0.48139714830067737,12.124212960985981,6.5994642679691573,142448.16951316473,{"$f":"'[2]Gráfico REM'!BK274","v":21707.934396523429},{"$f":"'[2]Gráfico REM'!BL274","v":98103.154465198226},{"$f":"'[2]Gráfico REM'!BM274","v":22637.080651443059},9.3954981254231296,1.3999969511053978,13.219186198794741,2.1675295921748994]
[2012,"agosto","2012-agosto",{"$f":"IF('[2]REAL IPC(M)'!$AL281=\"\",\"\",+'[2]REAL IPC(M)'!$AL281)","v":2.8240405503258348},{"$f":"IF('[2]REAL IPC(M)'!$BE281=\"\",\"\",+'[2]REAL IPC(M)'!$BE281)","v":4.5932045628051643},{"$f":"IF('[2]REAL IPC(M)'!$AM281=\"\",\"\",+'[2]REAL IPC(M)'!$AM281)","v":3.1929512569719432},{"$f":"IF('[2]REAL IPC(M)'!$BI281=\"\",\"\",+'[2]REAL IPC(M)'!$BI281)","v":4.6501421135205501},{"$f":"IF('[2]REAL IMAE(M)'!BJ281=\"\",\"\",'[2]REAL IMAE(M)'!BJ281)","v":3.3116990849990202},{"$f":"IF('[2]REAL IMAE(M)'!BK281=\"\",\"\",'[2]REAL IMAE(M)'!BK281)","v":3.9154537090429153},{"$f":"IF('[2]REAL IMAE(M)'!BN281=\"\",\"\",'[2]REAL IMAE(M)'!BN281)","v":4.714223362820591},{"$f":"IF('[2]REAL IMAE(M)'!BO281=\"\",\"\",'[2]REAL IMAE(M)'!BO281)","v":4.7861428042075715},{"$f":"IF('[2]EXT RIN(M)'!$K281=\"\",\"\",'[2]EXT RIN(M)'!$K281)","v":21529.859739189815},"",{"$f":"IF('[2]EXT RIN(M)'!$L281=\"\",\"\",'[2]EXT RIN(M)'!$L281)","v":23716.883535679815},"",{"$f":"IF('[2]MONE(M)CARD'!EG281=\"\",\"\",'[2]MONE(M)CARD'!EG281)","v":23489.007339482094},{"$f":"IF('[2]MONE(M)CARD'!EK281=\"\",\"\",'[2]MONE(M)CARD'!EK281)","v":41407.565358526699},{"$f":"IF('[2]MONE(M)CARD'!EP281=\"\",\"\",'[2]MONE(M)CARD'!EP281)","v":22982.255746211769},{"$f":"IF('[2]MONE(M)CARD'!ES281=\"\",\"\",'[2]MONE(M)CARD'!ES281)","v":5.3320993904525826},{"$f":"IF('[2]MONE(M)CARD'!EV281=\"\",\"\",'[2]MONE(M)CARD'!EV281)","v":8.9469898229979083},{"$f":"IF('[2]MONE(M)CARD'!EZ281=\"\",\"\",'[2]MONE(M)CARD'!EZ281)","v":8.8227659879064788},{"$f":"IF('[2]MONE(M)CAPARD'!FC281=\"\",\"\",'[2]MONE(M)CAPARD'!FC281)","v":29989.955001242091},{"$f":"IF('[2]MONE(M)CAPARD'!FG281=\"\",\"\",'[2]MONE(M)CAPARD'!FG281)","v":63224.690633366685},{"$f":"IF('[2]MONE(M)CAPARD'!FL281=\"\",\"\",'[2]MONE(M)CAPARD'!FL281)","v":22982.255746211769},{"$f":"IF('[2]MONE(M)CAPARD'!FO281=\"\",\"\",'[2]MONE(M)CAPARD'!FO281)","v":7.0895459981343167},{"$f":"IF('[2]MONE(M)CAPARD'!FR281=\"\",\"\",'[2]MONE(M)CAPARD'!FR281)","v":9.6773724096584033},{"$f":"IF('[2]MONE(M)CAPARD'!FV281=\"\",\"\",'[2]MONE(M)CAPARD'!FV281)","v":9.4371488276046467},{"$f":"IF('[2]MONE(M)CARD'!FV281=\"\",\"\",'[2]MONE(M)CARD'!FV281)","v":1020.2975458382991},{"$f":"IF('[2]MONE(M)CARD'!GD281=\"\",\"\",'[2]MONE(M)CARD'!GD281)","v":89.897931825229733},{"$f":"IF('[2]MONE(M)CARD'!GE281=\"\",\"\",'[2]MONE(M)CARD'!GE281)","v":6733.4022337329116},9.7750372894608528,{"$f":"IF('[9]II.2.Balance OSD-Activos'!J139=\"\",\"\",'[9]II.2.Balance OSD-Activos'!J139)","v":168.48481316537021},{"$f":"IF('[9]II.2.Balance OSD-Activos'!N139=\"\",\"\",'[9]II.2.Balance OSD-Activos'!N139)","v":447.50575196979594},{"$f":"IF('[9]II.2.Balance OSD-Activos'!R139=\"\",\"\",'[9]II.2.Balance OSD-Activos'!R139)","v":32527.581338352335},{"$f":"IF('[9]II.2.Balance OSD-Activos'!S139=\"\",\"\",'[9]II.2.Balance OSD-Activos'!S139)","v":35775.321519520883},32696.066151517705,{"$f":"IF(OR(AF274=\"\",AG274=\"\",AH274=\"\",AI274=\"\"),\"\",SUM(AF274:AI274))","v":68918.893423008383},9.3071900723615375,21.391408169054294,7.5027548446534142,21.460961114632248,12.57115036117915,16.553141921572735,4.0656811626079712,{"$f":"IF('[2]MONE(M)CAPARD'!GS281=\"\",\"\",'[2]MONE(M)CAPARD'!GS281)","v":13163.908862126327},{"$f":"IF('[2]MONE(M)CARD'!HA281=\"\",\"\",'[2]MONE(M)CAPARD'!HA281)","v":7348.4362825629105},{"$f":"IF('[2]MONE(M)CAPARD'!HB281=\"\",\"\",'[2]MONE(M)CAPARD'!HB281)","v":5815.4725795634167},"n.d.",{"$f":"IF('[10]II.2.Balance OSD-Activos'!J139=\"\",\"\",'[10]II.2.Balance OSD-Activos'!J139)","v":891.69312724537031},{"$f":"IF('[10]II.2.Balance OSD-Activos'!N139=\"\",\"\",'[10]II.2.Balance OSD-Activos'!N139)","v":848.05498467979601},{"$f":"IF('[10]II.2.Balance OSD-Activos'!R139=\"\",\"\",'[10]II.2.Balance OSD-Activos'!R139)","v":48219.258695952332},{"$f":"IF('[10]II.2.Balance OSD-Activos'!S139=\"\",\"\",'[10]II.2.Balance OSD-Activos'!S139)","v":47955.934554140877},{"$f":"IFERROR(+AW274+AY274,\"n.d.\")","v":49110.951823197705},97914.941362018377,8.2430518707969913,19.636513868516371,3.994528077784687,19.869838446768352,12.91648410289632,16.101159936328568,2.6104022834365406,{"$f":"IF('[2]MONE(M)CAPARD'!AS281=\"\",\"\",'[2]MONE(M)CAPARD'!AS281)","v":5},{"$f":"IF('[2]MONE(M)CAPARD'!AT281=\"\",\"\",'[2]MONE(M)CAPARD'!AT281)","v":"n.a."},{"$f":"IF('[2]MONE(M)CAPARD'!AU281=\"\",\"\",'[2]MONE(M)CAPARD'!AU281)","v":5},{"$f":"IF('[2]MONE(M)CAPARD'!AV281=\"\",\"\",'[2]MONE(M)CAPARD'!AV281)","v":7},{"$f":"IF('[2]MONE(M)CAPARD'!AW281=\"\",\"\",'[2]MONE(M)CAPARD'!AW281)","v":"n.a."},{"$f":"IF('[2]MONE(M)CAPARD'!AX281=\"\",\"\",'[2]MONE(M)CAPARD'!AX281)","v":5.5},{"$f":"IF('[2]MONE(M)CAPARD'!AY281=\"\",\"\",'[2]MONE(M)CAPARD'!AY281)","v":"n.a."},{"$f":"IF('[2]FISCAL(M)'!$K281=\"\",\"\",'[2]FISCAL(M)'!$K281)","v":-6119.087415902779},{"$f":"IF('[2]FISCAL(M)'!$L281=\"\",\"\",'[2]FISCAL(M)'!$L281)","v":-6531.9869082227797},{"$f":"IF('[2]FISCAL(M)'!$AY281=\"\",\"\",'[2]FISCAL(M)'!$AY281)","v":81985.162512481824},{"$f":"IF('[2]FISCAL(M)'!$BI281=\"\",\"\",'[2]FISCAL(M)'!$BI281)","v":42693.699811545855},{"$f":"IF('[2]FISCAL(M)'!$BS281=\"\",\"\",'[2]FISCAL(M)'!$BS281)","v":39291.462700935968},{"$f":"IF('[2]FISCAL(M)'!$AZ281=\"\",\"\",'[2]FISCAL(M)'!$AZ281)","v":96272.966526171833},{"$f":"IF('[2]FISCAL(M)'!$BJ281=\"\",\"\",'[2]FISCAL(M)'!$BJ281)","v":46096.442531575856},{"$f":"IF('[2]FISCAL(M)'!$BT281=\"\",\"\",'[2]FISCAL(M)'!$BT281)","v":50176.523994595962},{"$f":"IF('[3]MONE(M)'!$AO281=\"\",\"\",'[3]MONE(M)'!$AO281)","v":11394018.173678463},{"$f":"IF('[4]MONE(M)'!$AO281=\"\",\"\",'[4]MONE(M)'!$AO281)","v":9186.5683978801189},{"$f":"IF('[5]MONE(M)'!$AO281=\"\",\"\",'[5]MONE(M)'!$AO281)","v":124248.56784418118},{"$f":"+'[1]MONE(M)'!$AO281","v":172741.53050795171},{"$f":"IF('[6]MONE(M)'!$AO281=\"\",\"\",'[6]MONE(M)'!$AO281)","v":59222.246191431223},{"$f":"IF('[7]MONE(M)'!$AO281=\"\",\"\",'[7]MONE(M)'!$AO281)","v":491197.43676501},{"$f":"IF('[8]MONE(M)'!$AO281=\"\",\"\",'[8]MONE(M)'!$AO281)","v":29367.925865220001},13.290052753979031,4.4125206000325878,39.60211478227167,16.58473714257056,29.494513297546888,6.81634788108052,14.898321025679785,{"$f":"IF('[2]FISCAL(M)'!$K281=\"\",\"\",'[2]FISCAL(M)'!$K281)","v":-6119.087415902779},{"$f":"+'[2]REAL(A)'!$AO$32","v":208321.52269328642},-2.9373284799343389,{"$f":"IF('[2]FISCAL(M)'!$L281=\"\",\"\",'[2]FISCAL(M)'!$L281)","v":-6531.9869082227797},{"$f":"+'[2]REAL(A)'!$AP$32","v":248751.25969328641},-2.62591108735562,96016.716977353033,{"$f":"'[2]Gráfico REM'!BG275","v":18884.433079142982},{"$f":"'[2]Gráfico REM'!BH275","v":71788.900744574828},{"$f":"'[2]Gráfico REM'!BI275","v":5343.3831536352282},10.643271051551984,-5.8563007504853548,15.808128384952248,12.925822689917755,144452.17920375304,{"$f":"'[2]Gráfico REM'!BK275","v":20404.806195982983},{"$f":"'[2]Gráfico REM'!BL275","v":101156.82660979484},{"$f":"'[2]Gráfico REM'!BM275","v":22890.546397975231},10.447536521922629,-3.521476726761974,15.54251152093158,3.6286102391808406]
[2012,"septiembre","2012-septiembre",{"$f":"IF('[2]REAL IPC(M)'!$AL282=\"\",\"\",+'[2]REAL IPC(M)'!$AL282)","v":3.34808853118711},{"$f":"IF('[2]REAL IPC(M)'!$BE282=\"\",\"\",+'[2]REAL IPC(M)'!$BE282)","v":4.5393861127464019},{"$f":"IF('[2]REAL IPC(M)'!$AM282=\"\",\"\",+'[2]REAL IPC(M)'!$AM282)","v":3.5792195200775589},{"$f":"IF('[2]REAL IPC(M)'!$BI282=\"\",\"\",+'[2]REAL IPC(M)'!$BI282)","v":4.5939092966259087},{"$f":"IF('[2]REAL IMAE(M)'!BJ282=\"\",\"\",'[2]REAL IMAE(M)'!BJ282)","v":3.2747076313945467},{"$f":"IF('[2]REAL IMAE(M)'!BK282=\"\",\"\",'[2]REAL IMAE(M)'!BK282)","v":3.9265496806880407},{"$f":"IF('[2]REAL IMAE(M)'!BN282=\"\",\"\",'[2]REAL IMAE(M)'!BN282)","v":4.0567418735452776},{"$f":"IF('[2]REAL IMAE(M)'!BO282=\"\",\"\",'[2]REAL IMAE(M)'!BO282)","v":4.7766212941657615},{"$f":"IF('[2]EXT RIN(M)'!$K282=\"\",\"\",'[2]EXT RIN(M)'!$K282)","v":21490.879023364556},"",{"$f":"IF('[2]EXT RIN(M)'!$L282=\"\",\"\",'[2]EXT RIN(M)'!$L282)","v":23433.439613624556},"",{"$f":"IF('[2]MONE(M)CARD'!EG282=\"\",\"\",'[2]MONE(M)CARD'!EG282)","v":23350.101096062517},{"$f":"IF('[2]MONE(M)CARD'!EK282=\"\",\"\",'[2]MONE(M)CARD'!EK282)","v":41796.479054694661},{"$f":"IF('[2]MONE(M)CARD'!EP282=\"\",\"\",'[2]MONE(M)CARD'!EP282)","v":22916.902582453979},{"$f":"IF('[2]MONE(M)CARD'!ES282=\"\",\"\",'[2]MONE(M)CARD'!ES282)","v":5.0632740034654677},{"$f":"IF('[2]MONE(M)CARD'!EV282=\"\",\"\",'[2]MONE(M)CARD'!EV282)","v":9.6841836210751708},{"$f":"IF('[2]MONE(M)CARD'!EZ282=\"\",\"\",'[2]MONE(M)CARD'!EZ282)","v":9.628130902988886},{"$f":"IF('[2]MONE(M)CAPARD'!FC282=\"\",\"\",'[2]MONE(M)CAPARD'!FC282)","v":29977.144774072516},{"$f":"IF('[2]MONE(M)CAPARD'!FG282=\"\",\"\",'[2]MONE(M)CAPARD'!FG282)","v":63538.141421584674},{"$f":"IF('[2]MONE(M)CAPARD'!FL282=\"\",\"\",'[2]MONE(M)CAPARD'!FL282)","v":22916.902582453971},{"$f":"IF('[2]MONE(M)CAPARD'!FO282=\"\",\"\",'[2]MONE(M)CAPARD'!FO282)","v":7.3501793132768611},{"$f":"IF('[2]MONE(M)CAPARD'!FR282=\"\",\"\",'[2]MONE(M)CAPARD'!FR282)","v":10.296637495366689},{"$f":"IF('[2]MONE(M)CAPARD'!FV282=\"\",\"\",'[2]MONE(M)CAPARD'!FV282)","v":10.132769085754578},{"$f":"IF('[2]MONE(M)CARD'!FV282=\"\",\"\",'[2]MONE(M)CARD'!FV282)","v":956.3532670320983},{"$f":"IF('[2]MONE(M)CARD'!GD282=\"\",\"\",'[2]MONE(M)CARD'!GD282)","v":158.41584472925885},{"$f":"IF('[2]MONE(M)CARD'!GE282=\"\",\"\",'[2]MONE(M)CARD'!GE282)","v":6633.3672615777841},11.452039784653255,{"$f":"IF('[9]II.2.Balance OSD-Activos'!J140=\"\",\"\",'[9]II.2.Balance OSD-Activos'!J140)","v":165.48801664385223},{"$f":"IF('[9]II.2.Balance OSD-Activos'!N140=\"\",\"\",'[9]II.2.Balance OSD-Activos'!N140)","v":455.74199066107212},{"$f":"IF('[9]II.2.Balance OSD-Activos'!R140=\"\",\"\",'[9]II.2.Balance OSD-Activos'!R140)","v":32681.132429884754},{"$f":"IF('[9]II.2.Balance OSD-Activos'!S140=\"\",\"\",'[9]II.2.Balance OSD-Activos'!S140)","v":36182.059564825438},32846.620446528606,69484.422002015112,16.370047696070333,20.059519011081694,13.725939668934384,20.078796866014414,12.840392822811442,16.147754749596753,-0.40538717197598118,{"$f":"IF('[2]MONE(M)CAPARD'!GS282=\"\",\"\",'[2]MONE(M)CAPARD'!GS282)","v":13261.774432714139},{"$f":"IF('[2]MONE(M)CARD'!HA282=\"\",\"\",'[2]MONE(M)CAPARD'!HA282)","v":7247.797721447786},{"$f":"IF('[2]MONE(M)CAPARD'!HB282=\"\",\"\",'[2]MONE(M)CAPARD'!HB282)","v":6013.976711266353},"n.d.",{"$f":"IF('[10]II.2.Balance OSD-Activos'!J140=\"\",\"\",'[10]II.2.Balance OSD-Activos'!J140)","v":941.69737374385238},{"$f":"IF('[10]II.2.Balance OSD-Activos'!N140=\"\",\"\",'[10]II.2.Balance OSD-Activos'!N140)","v":868.12967439107217},{"$f":"IF('[10]II.2.Balance OSD-Activos'!R140=\"\",\"\",'[10]II.2.Balance OSD-Activos'!R140)","v":48761.221445114759},{"$f":"IF('[10]II.2.Balance OSD-Activos'!S140=\"\",\"\",'[10]II.2.Balance OSD-Activos'!S140)","v":48515.364321785441},49702.918818858612,99086.412815035117,16.126663772271964,18.827960387062404,9.1040689363738778,18.881366491023165,13.109796748746906,15.869409405361058,-0.23175053096750986,{"$f":"IF('[2]MONE(M)CAPARD'!AS282=\"\",\"\",'[2]MONE(M)CAPARD'!AS282)","v":5},{"$f":"IF('[2]MONE(M)CAPARD'!AT282=\"\",\"\",'[2]MONE(M)CAPARD'!AT282)","v":"n.a."},{"$f":"IF('[2]MONE(M)CAPARD'!AU282=\"\",\"\",'[2]MONE(M)CAPARD'!AU282)","v":5},{"$f":"IF('[2]MONE(M)CAPARD'!AV282=\"\",\"\",'[2]MONE(M)CAPARD'!AV282)","v":7},{"$f":"IF('[2]MONE(M)CAPARD'!AW282=\"\",\"\",'[2]MONE(M)CAPARD'!AW282)","v":"n.a."},{"$f":"IF('[2]MONE(M)CAPARD'!AX282=\"\",\"\",'[2]MONE(M)CAPARD'!AX282)","v":5},{"$f":"IF('[2]MONE(M)CAPARD'!AY282=\"\",\"\",'[2]MONE(M)CAPARD'!AY282)","v":"n.a."},{"$f":"IF('[2]FISCAL(M)'!$K282=\"\",\"\",'[2]FISCAL(M)'!$K282)","v":-6468.0166322183086},{"$f":"IF('[2]FISCAL(M)'!$L282=\"\",\"\",'[2]FISCAL(M)'!$L282)","v":-7019.6492989483095},{"$f":"IF('[2]FISCAL(M)'!$AY282=\"\",\"\",'[2]FISCAL(M)'!$AY282)","v":82592.132721789472},{"$f":"IF('[2]FISCAL(M)'!$BI282=\"\",\"\",'[2]FISCAL(M)'!$BI282)","v":43100.021274611441},{"$f":"IF('[2]FISCAL(M)'!$BS282=\"\",\"\",'[2]FISCAL(M)'!$BS282)","v":39492.111447178031},{"$f":"IF('[2]FISCAL(M)'!$AZ282=\"\",\"\",'[2]FISCAL(M)'!$AZ282)","v":96966.699309959484},{"$f":"IF('[2]FISCAL(M)'!$BJ282=\"\",\"\",'[2]FISCAL(M)'!$BJ282)","v":46603.969453541446},{"$f":"IF('[2]FISCAL(M)'!$BT282=\"\",\"\",'[2]FISCAL(M)'!$BT282)","v":50362.729856418038},{"$f":"IF('[3]MONE(M)'!$AO282=\"\",\"\",'[3]MONE(M)'!$AO282)","v":11529774.703146648},{"$f":"IF('[4]MONE(M)'!$AO282=\"\",\"\",'[4]MONE(M)'!$AO282)","v":9206.1153650501219},{"$f":"IF('[5]MONE(M)'!$AO282=\"\",\"\",'[5]MONE(M)'!$AO282)","v":126083.00880073145},{"$f":"+'[1]MONE(M)'!$AO282","v":175652.45569757855},{"$f":"IF('[6]MONE(M)'!$AO282=\"\",\"\",'[6]MONE(M)'!$AO282)","v":60349.46380635001},{"$f":"IF('[7]MONE(M)'!$AO282=\"\",\"\",'[7]MONE(M)'!$AO282)","v":493671.25274897006},{"$f":"IF('[8]MONE(M)'!$AO282=\"\",\"\",'[8]MONE(M)'!$AO282)","v":30018.166583800001},13.495197438190299,3.9096005408334245,39.396273288941309,16.474007504995946,28.037376534173418,5.7105424077370515,15.210448060397642,{"$f":"IF('[2]FISCAL(M)'!$K282=\"\",\"\",'[2]FISCAL(M)'!$K282)","v":-6468.0166322183086},{"$f":"+'[2]REAL(A)'!$AO$32","v":208321.52269328642},-3.1048239992663769,{"$f":"IF('[2]FISCAL(M)'!$L282=\"\",\"\",'[2]FISCAL(M)'!$L282)","v":-7019.6492989483095},{"$f":"+'[2]REAL(A)'!$AP$32","v":248751.25969328641},-2.8219552767707103,96698.336929252706,{"$f":"'[2]Gráfico REM'!BG276","v":18904.532958002397},{"$f":"'[2]Gráfico REM'!BH276","v":72475.687734173989},{"$f":"'[2]Gráfico REM'!BI276","v":5318.1162370763204},10.568585250470219,-5.7737427813310926,15.794049293113144,10.737678246866068,146434.4990206527,{"$f":"'[2]Gráfico REM'!BK276","v":20496.936388242397},{"$f":"'[2]Gráfico REM'!BL276","v":102493.85431797399},{"$f":"'[2]Gráfico REM'!BM276","v":23443.708314436313},11.016798657926818,-3.2833929374788684,15.622514160842549,6.2484326477728169]
[2012,"octubre","2012-octubre",{"$f":"IF('[2]REAL IPC(M)'!$AL283=\"\",\"\",+'[2]REAL IPC(M)'!$AL283)","v":3.5156878519710277},{"$f":"IF('[2]REAL IPC(M)'!$BE283=\"\",\"\",+'[2]REAL IPC(M)'!$BE283)","v":4.4850715489340942},{"$f":"IF('[2]REAL IPC(M)'!$AM283=\"\",\"\",+'[2]REAL IPC(M)'!$AM283)","v":3.7225452196382403},{"$f":"IF('[2]REAL IPC(M)'!$BI283=\"\",\"\",+'[2]REAL IPC(M)'!$BI283)","v":4.5365357699269637},{"$f":"IF('[2]REAL IMAE(M)'!BJ283=\"\",\"\",'[2]REAL IMAE(M)'!BJ283)","v":3.2939202186622385},{"$f":"IF('[2]REAL IMAE(M)'!BK283=\"\",\"\",'[2]REAL IMAE(M)'!BK283)","v":3.9392487151196809},{"$f":"IF('[2]REAL IMAE(M)'!BN283=\"\",\"\",'[2]REAL IMAE(M)'!BN283)","v":3.7205079556748233},{"$f":"IF('[2]REAL IMAE(M)'!BO283=\"\",\"\",'[2]REAL IMAE(M)'!BO283)","v":4.767708013774552},{"$f":"IF('[2]EXT RIN(M)'!$K283=\"\",\"\",'[2]EXT RIN(M)'!$K283)","v":21796.266470937961},"",{"$f":"IF('[2]EXT RIN(M)'!$L283=\"\",\"\",'[2]EXT RIN(M)'!$L283)","v":23705.015087257962},"",{"$f":"IF('[2]MONE(M)CARD'!EG283=\"\",\"\",'[2]MONE(M)CARD'!EG283)","v":23366.437381945376},{"$f":"IF('[2]MONE(M)CARD'!EK283=\"\",\"\",'[2]MONE(M)CARD'!EK283)","v":41805.936886963304},{"$f":"IF('[2]MONE(M)CARD'!EP283=\"\",\"\",'[2]MONE(M)CARD'!EP283)","v":23045.21843734158},{"$f":"IF('[2]MONE(M)CARD'!ES283=\"\",\"\",'[2]MONE(M)CARD'!ES283)","v":5.1481856809570736},{"$f":"IF('[2]MONE(M)CARD'!EV283=\"\",\"\",'[2]MONE(M)CARD'!EV283)","v":8.942639690345878},{"$f":"IF('[2]MONE(M)CARD'!EZ283=\"\",\"\",'[2]MONE(M)CARD'!EZ283)","v":9.0407571894482572},{"$f":"IF('[2]MONE(M)CAPARD'!FC283=\"\",\"\",'[2]MONE(M)CAPARD'!FC283)","v":30129.877339875376},{"$f":"IF('[2]MONE(M)CAPARD'!FG283=\"\",\"\",'[2]MONE(M)CAPARD'!FG283)","v":63544.542109603302},{"$f":"IF('[2]MONE(M)CAPARD'!FL283=\"\",\"\",'[2]MONE(M)CAPARD'!FL283)","v":23045.218437341595},{"$f":"IF('[2]MONE(M)CAPARD'!FO283=\"\",\"\",'[2]MONE(M)CAPARD'!FO283)","v":8.0720355272341884},{"$f":"IF('[2]MONE(M)CAPARD'!FR283=\"\",\"\",'[2]MONE(M)CAPARD'!FR283)","v":9.805499317827703},{"$f":"IF('[2]MONE(M)CAPARD'!FV283=\"\",\"\",'[2]MONE(M)CAPARD'!FV283)","v":9.7091404483337307},{"$f":"IF('[2]MONE(M)CARD'!FV283=\"\",\"\",'[2]MONE(M)CARD'!FV283)","v":960.80837677895829},{"$f":"IF('[2]MONE(M)CARD'!GD283=\"\",\"\",'[2]MONE(M)CARD'!GD283)","v":90.433599423876444},{"$f":"IF('[2]MONE(M)CARD'!GE283=\"\",\"\",'[2]MONE(M)CARD'!GE283)","v":6797.1992664961672},7.4587543811488244,{"$f":"IF('[9]II.2.Balance OSD-Activos'!J141=\"\",\"\",'[9]II.2.Balance OSD-Activos'!J141)","v":166.78835380569683},{"$f":"IF('[9]II.2.Balance OSD-Activos'!N141=\"\",\"\",'[9]II.2.Balance OSD-Activos'!N141)","v":468.7611325891653},{"$f":"IF('[9]II.2.Balance OSD-Activos'!R141=\"\",\"\",'[9]II.2.Balance OSD-Activos'!R141)","v":33256.608183043019},{"$f":"IF('[9]II.2.Balance OSD-Activos'!S141=\"\",\"\",'[9]II.2.Balance OSD-Activos'!S141)","v":36651.980291336644},33423.396536848719,70544.137960774533,5.6339773096283796,20.750453557150884,18.225135497484079,20.837176752698294,12.979803449372863,16.568345360177105,0.42059061058035141,{"$f":"IF('[2]MONE(M)CAPARD'!GS283=\"\",\"\",'[2]MONE(M)CAPARD'!GS283)","v":13299.873509284302},{"$f":"IF('[2]MONE(M)CARD'!HA283=\"\",\"\",'[2]MONE(M)CAPARD'!HA283)","v":7408.5620274161674},{"$f":"IF('[2]MONE(M)CAPARD'!HB283=\"\",\"\",'[2]MONE(M)CAPARD'!HB283)","v":5891.3114818681343},"n.d.",{"$f":"IF('[10]II.2.Balance OSD-Activos'!J141=\"\",\"\",'[10]II.2.Balance OSD-Activos'!J141)","v":962.12445208569682},{"$f":"IF('[10]II.2.Balance OSD-Activos'!N141=\"\",\"\",'[10]II.2.Balance OSD-Activos'!N141)","v":866.35407247916521},{"$f":"IF('[10]II.2.Balance OSD-Activos'!R141=\"\",\"\",'[10]II.2.Balance OSD-Activos'!R141)","v":49567.138768673016},{"$f":"IF('[10]II.2.Balance OSD-Activos'!S141=\"\",\"\",'[10]II.2.Balance OSD-Activos'!S141)","v":49087.684032486643},50529.263220758716,100483.30132572452,19.429093628251447,18.809458213883843,11.720953821612557,18.797494368887868,13.11422878648294,15.895440677987448,2.6031272626390489E-2,{"$f":"IF('[2]MONE(M)CAPARD'!AS283=\"\",\"\",'[2]MONE(M)CAPARD'!AS283)","v":5},{"$f":"IF('[2]MONE(M)CAPARD'!AT283=\"\",\"\",'[2]MONE(M)CAPARD'!AT283)","v":"n.a."},{"$f":"IF('[2]MONE(M)CAPARD'!AU283=\"\",\"\",'[2]MONE(M)CAPARD'!AU283)","v":5},{"$f":"IF('[2]MONE(M)CAPARD'!AV283=\"\",\"\",'[2]MONE(M)CAPARD'!AV283)","v":7},{"$f":"IF('[2]MONE(M)CAPARD'!AW283=\"\",\"\",'[2]MONE(M)CAPARD'!AW283)","v":"n.a."},{"$f":"IF('[2]MONE(M)CAPARD'!AX283=\"\",\"\",'[2]MONE(M)CAPARD'!AX283)","v":5},{"$f":"IF('[2]MONE(M)CAPARD'!AY283=\"\",\"\",'[2]MONE(M)CAPARD'!AY283)","v":"n.a."},{"$f":"IF('[2]FISCAL(M)'!$K283=\"\",\"\",'[2]FISCAL(M)'!$K283)","v":-6656.6488060137144},{"$f":"IF('[2]FISCAL(M)'!$L283=\"\",\"\",'[2]FISCAL(M)'!$L283)","v":-7160.6103380737159},{"$f":"IF('[2]FISCAL(M)'!$AY283=\"\",\"\",'[2]FISCAL(M)'!$AY283)","v":83150.92388679857},{"$f":"IF('[2]FISCAL(M)'!$BI283=\"\",\"\",'[2]FISCAL(M)'!$BI283)","v":43432.150670996103},{"$f":"IF('[2]FISCAL(M)'!$BS283=\"\",\"\",'[2]FISCAL(M)'!$BS283)","v":39718.773215802466},{"$f":"IF('[2]FISCAL(M)'!$AZ283=\"\",\"\",'[2]FISCAL(M)'!$AZ283)","v":97541.016301088559},{"$f":"IF('[2]FISCAL(M)'!$BJ283=\"\",\"\",'[2]FISCAL(M)'!$BJ283)","v":46982.620207756103},{"$f":"IF('[2]FISCAL(M)'!$BT283=\"\",\"\",'[2]FISCAL(M)'!$BT283)","v":50558.396093332463},{"$f":"IF('[3]MONE(M)'!$AO283=\"\",\"\",'[3]MONE(M)'!$AO283)","v":11704337.732396938},{"$f":"IF('[4]MONE(M)'!$AO283=\"\",\"\",'[4]MONE(M)'!$AO283)","v":9306.8159702901212},{"$f":"IF('[5]MONE(M)'!$AO283=\"\",\"\",'[5]MONE(M)'!$AO283)","v":127363.9832840014},{"$f":"+'[1]MONE(M)'!$AO283","v":178953.63475167306},{"$f":"IF('[6]MONE(M)'!$AO283=\"\",\"\",'[6]MONE(M)'!$AO283)","v":62159.201039669999},{"$f":"IF('[7]MONE(M)'!$AO283=\"\",\"\",'[7]MONE(M)'!$AO283)","v":501876.99538866},{"$f":"IF('[8]MONE(M)'!$AO283=\"\",\"\",'[8]MONE(M)'!$AO283)","v":30342.233829719997},13.513257349732054,4.403518472460255,38.730837846143771,17.746506928645299,27.270744586671157,5.8773749637774486,14.256218205175596,{"$f":"IF('[2]FISCAL(M)'!$K283=\"\",\"\",'[2]FISCAL(M)'!$K283)","v":-6656.6488060137144},{"$f":"+'[2]REAL(A)'!$AO$32","v":208321.52269328642},-3.1953725759840741,{"$f":"IF('[2]FISCAL(M)'!$L283=\"\",\"\",'[2]FISCAL(M)'!$L283)","v":-7160.6103380737159},{"$f":"+'[2]REAL(A)'!$AP$32","v":248751.25969328641},-2.8786227442236245,97818.645639785755,{"$f":"'[2]Gráfico REM'!BG277","v":18784.59912825621},{"$f":"'[2]Gráfico REM'!BH277","v":73622.810826543224},{"$f":"'[2]Gráfico REM'!BI277","v":5411.2356849863218},10.986516802394618,-5.9031406774343491,16.21094639914449,12.270194420817869,147810.69267792578,{"$f":"'[2]Gráfico REM'!BK277","v":20439.329237156209},{"$f":"'[2]Gráfico REM'!BL277","v":103965.04465626323},{"$f":"'[2]Gráfico REM'!BM277","v":23406.318784506326},10.993141190963328,-3.4625506121179206,15.633581052788536,5.9611074765828942]
[2012,"noviembre","2012-noviembre",{"$f":"IF('[2]REAL IPC(M)'!$AL284=\"\",\"\",+'[2]REAL IPC(M)'!$AL284)","v":3.6169700858128095},{"$f":"IF('[2]REAL IPC(M)'!$BE284=\"\",\"\",+'[2]REAL IPC(M)'!$BE284)","v":4.4302578961854078},{"$f":"IF('[2]REAL IPC(M)'!$AM284=\"\",\"\",+'[2]REAL IPC(M)'!$AM284)","v":3.7165151637036375},{"$f":"IF('[2]REAL IPC(M)'!$BI284=\"\",\"\",+'[2]REAL IPC(M)'!$BI284)","v":4.4780591989834528},{"$f":"IF('[2]REAL IMAE(M)'!BJ284=\"\",\"\",'[2]REAL IMAE(M)'!BJ284)","v":3.3748921878049121},{"$f":"IF('[2]REAL IMAE(M)'!BK284=\"\",\"\",'[2]REAL IMAE(M)'!BK284)","v":3.9536825921579144},{"$f":"IF('[2]REAL IMAE(M)'!BN284=\"\",\"\",'[2]REAL IMAE(M)'!BN284)","v":3.8647820044244385},{"$f":"IF('[2]REAL IMAE(M)'!BO284=\"\",\"\",'[2]REAL IMAE(M)'!BO284)","v":4.7597796100748102},{"$f":"IF('[2]EXT RIN(M)'!$K284=\"\",\"\",'[2]EXT RIN(M)'!$K284)","v":22954.47374048892},"",{"$f":"IF('[2]EXT RIN(M)'!$L284=\"\",\"\",'[2]EXT RIN(M)'!$L284)","v":25060.578619708918},"",{"$f":"IF('[2]MONE(M)CARD'!EG284=\"\",\"\",'[2]MONE(M)CARD'!EG284)","v":24321.429441883021},{"$f":"IF('[2]MONE(M)CARD'!EK284=\"\",\"\",'[2]MONE(M)CARD'!EK284)","v":41050.068164628101},{"$f":"IF('[2]MONE(M)CARD'!EP284=\"\",\"\",'[2]MONE(M)CARD'!EP284)","v":22939.941700677155},{"$f":"IF('[2]MONE(M)CARD'!ES284=\"\",\"\",'[2]MONE(M)CARD'!ES284)","v":5.9537844455214373},{"$f":"IF('[2]MONE(M)CARD'!EV284=\"\",\"\",'[2]MONE(M)CARD'!EV284)","v":8.4366245133634656},{"$f":"IF('[2]MONE(M)CARD'!EZ284=\"\",\"\",'[2]MONE(M)CARD'!EZ284)","v":8.2413275926616514},{"$f":"IF('[2]MONE(M)CAPARD'!FC284=\"\",\"\",'[2]MONE(M)CAPARD'!FC284)","v":31215.63715496302},{"$f":"IF('[2]MONE(M)CAPARD'!FG284=\"\",\"\",'[2]MONE(M)CAPARD'!FG284)","v":63370.793138108107},{"$f":"IF('[2]MONE(M)CAPARD'!FL284=\"\",\"\",'[2]MONE(M)CAPARD'!FL284)","v":22939.941700677155},{"$f":"IF('[2]MONE(M)CAPARD'!FO284=\"\",\"\",'[2]MONE(M)CAPARD'!FO284)","v":7.7889622868422048},{"$f":"IF('[2]MONE(M)CAPARD'!FR284=\"\",\"\",'[2]MONE(M)CAPARD'!FR284)","v":9.5785816015534699},{"$f":"IF('[2]MONE(M)CAPARD'!FV284=\"\",\"\",'[2]MONE(M)CAPARD'!FV284)","v":9.204490258444963},{"$f":"IF('[2]MONE(M)CARD'!FV284=\"\",\"\",'[2]MONE(M)CARD'!FV284)","v":991.57732870855534},{"$f":"IF('[2]MONE(M)CARD'!GD284=\"\",\"\",'[2]MONE(M)CARD'!GD284)","v":86.609482333183024},{"$f":"IF('[2]MONE(M)CARD'!GE284=\"\",\"\",'[2]MONE(M)CARD'!GE284)","v":6841.4347900009634},8.9683659347259415,{"$f":"IF('[9]II.2.Balance OSD-Activos'!J142=\"\",\"\",'[9]II.2.Balance OSD-Activos'!J142)","v":170.73917146405631},{"$f":"IF('[9]II.2.Balance OSD-Activos'!N142=\"\",\"\",'[9]II.2.Balance OSD-Activos'!N142)","v":482.04155512686123},{"$f":"IF('[9]II.2.Balance OSD-Activos'!R142=\"\",\"\",'[9]II.2.Balance OSD-Activos'!R142)","v":33662.460400661832},{"$f":"IF('[9]II.2.Balance OSD-Activos'!S142=\"\",\"\",'[9]II.2.Balance OSD-Activos'!S142)","v":37093.102081604156},33833.199572125886,71408.34320885691,-0.18585055227108294,18.992641938478961,9.2256374317299041,19.108720824357285,12.257037608387101,15.328482289864986,-1.2398630703121185,{"$f":"IF('[2]MONE(M)CAPARD'!GS284=\"\",\"\",'[2]MONE(M)CAPARD'!GS284)","v":13395.678948848743},{"$f":"IF('[2]MONE(M)CARD'!HA284=\"\",\"\",'[2]MONE(M)CAPARD'!HA284)","v":7461.5721065909629},{"$f":"IF('[2]MONE(M)CAPARD'!HB284=\"\",\"\",'[2]MONE(M)CAPARD'!HB284)","v":5934.10684225778},"n.d.",{"$f":"IF('[10]II.2.Balance OSD-Activos'!J142=\"\",\"\",'[10]II.2.Balance OSD-Activos'!J142)","v":976.76516917405615},{"$f":"IF('[10]II.2.Balance OSD-Activos'!N142=\"\",\"\",'[10]II.2.Balance OSD-Activos'!N142)","v":872.03403293686119},{"$f":"IF('[10]II.2.Balance OSD-Activos'!R142=\"\",\"\",'[10]II.2.Balance OSD-Activos'!R142)","v":50190.389814531824},{"$f":"IF('[10]II.2.Balance OSD-Activos'!S142=\"\",\"\",'[10]II.2.Balance OSD-Activos'!S142)","v":49671.53804388416},51167.154983705877,101710.7270605269,19.530158009617395,17.871280905768838,11.900815726376845,17.839453808160943,12.594289793504721,15.182280759357392,-0.71315991863005657,{"$f":"IF('[2]MONE(M)CAPARD'!AS284=\"\",\"\",'[2]MONE(M)CAPARD'!AS284)","v":5},{"$f":"IF('[2]MONE(M)CAPARD'!AT284=\"\",\"\",'[2]MONE(M)CAPARD'!AT284)","v":"n.a."},{"$f":"IF('[2]MONE(M)CAPARD'!AU284=\"\",\"\",'[2]MONE(M)CAPARD'!AU284)","v":5},{"$f":"IF('[2]MONE(M)CAPARD'!AV284=\"\",\"\",'[2]MONE(M)CAPARD'!AV284)","v":7},{"$f":"IF('[2]MONE(M)CAPARD'!AW284=\"\",\"\",'[2]MONE(M)CAPARD'!AW284)","v":"n.a."},{"$f":"IF('[2]MONE(M)CAPARD'!AX284=\"\",\"\",'[2]MONE(M)CAPARD'!AX284)","v":5},{"$f":"IF('[2]MONE(M)CAPARD'!AY284=\"\",\"\",'[2]MONE(M)CAPARD'!AY284)","v":"n.a."},{"$f":"IF('[2]FISCAL(M)'!$K284=\"\",\"\",'[2]FISCAL(M)'!$K284)","v":-7463.3339811715305},{"$f":"IF('[2]FISCAL(M)'!$L284=\"\",\"\",'[2]FISCAL(M)'!$L284)","v":-8340.4978043515293},{"$f":"IF('[2]FISCAL(M)'!$AY284=\"\",\"\",'[2]FISCAL(M)'!$AY284)","v":84503.86335321072},{"$f":"IF('[2]FISCAL(M)'!$BI284=\"\",\"\",'[2]FISCAL(M)'!$BI284)","v":43475.336768676862},{"$f":"IF('[2]FISCAL(M)'!$BS284=\"\",\"\",'[2]FISCAL(M)'!$BS284)","v":41028.526584533858},{"$f":"IF('[2]FISCAL(M)'!$AZ284=\"\",\"\",'[2]FISCAL(M)'!$AZ284)","v":98963.600566230714},{"$f":"IF('[2]FISCAL(M)'!$BJ284=\"\",\"\",'[2]FISCAL(M)'!$BJ284)","v":47134.772078476861},{"$f":"IF('[2]FISCAL(M)'!$BT284=\"\",\"\",'[2]FISCAL(M)'!$BT284)","v":51828.828487753861},{"$f":"IF('[3]MONE(M)'!$AO284=\"\",\"\",'[3]MONE(M)'!$AO284)","v":11782941.795400169},{"$f":"IF('[4]MONE(M)'!$AO284=\"\",\"\",'[4]MONE(M)'!$AO284)","v":9403.6370155900022},{"$f":"IF('[5]MONE(M)'!$AO284=\"\",\"\",'[5]MONE(M)'!$AO284)","v":129533.56495994948},{"$f":"+'[1]MONE(M)'!$AO284","v":182248.33748996846},{"$f":"IF('[6]MONE(M)'!$AO284=\"\",\"\",'[6]MONE(M)'!$AO284)","v":64092.04351090001},{"$f":"IF('[7]MONE(M)'!$AO284=\"\",\"\",'[7]MONE(M)'!$AO284)","v":512239.56744278001},{"$f":"IF('[8]MONE(M)'!$AO284=\"\",\"\",'[8]MONE(M)'!$AO284)","v":30717.344848149995},13.685649982366144,4.5378708740040352,37.898275065483247,17.321768647115764,25.636888853021354,5.9303229719078088,14.616660632069657,{"$f":"IF('[2]FISCAL(M)'!$K284=\"\",\"\",'[2]FISCAL(M)'!$K284)","v":-7463.3339811715305},{"$f":"+'[2]REAL(A)'!$AO$32","v":208321.52269328642},-3.5826034125911526,{"$f":"IF('[2]FISCAL(M)'!$L284=\"\",\"\",'[2]FISCAL(M)'!$L284)","v":-8340.4978043515293},{"$f":"+'[2]REAL(A)'!$AP$32","v":248751.25969328641},-3.3529469618105545,98529.062631161098,{"$f":"'[2]Gráfico REM'!BG278","v":18717.467236477736},{"$f":"'[2]Gráfico REM'!BH278","v":74339.661081520433},{"$f":"'[2]Gráfico REM'!BI278","v":5471.9343131629266},10.44360906269195,-5.1298072102597843,15.083493984488694,11.986149392621503,149469.6068770111,{"$f":"'[2]Gráfico REM'!BK278","v":20405.108473167737},{"$f":"'[2]Gráfico REM'!BL278","v":105057.00592967043},{"$f":"'[2]Gráfico REM'!BM278","v":24007.492474172926},11.024817564941669,-2.94551277791677,14.946604865885371,8.1103750559313958]
[2012,"diciembre","2012-diciembre",{"$f":"IF('[2]REAL IPC(M)'!$AL285=\"\",\"\",+'[2]REAL IPC(M)'!$AL285)","v":3.8138642360278308},{"$f":"IF('[2]REAL IPC(M)'!$BE285=\"\",\"\",+'[2]REAL IPC(M)'!$BE285)","v":4.3748845946149695},{"$f":"IF('[2]REAL IPC(M)'!$AM285=\"\",\"\",+'[2]REAL IPC(M)'!$AM285)","v":3.9059993583574038},{"$f":"IF('[2]REAL IPC(M)'!$BI285=\"\",\"\",+'[2]REAL IPC(M)'!$BI285)","v":4.418459247225015},{"$f":"IF('[2]REAL IMAE(M)'!BJ285=\"\",\"\",'[2]REAL IMAE(M)'!BJ285)","v":3.3460245062581384},{"$f":"IF('[2]REAL IMAE(M)'!BK285=\"\",\"\",'[2]REAL IMAE(M)'!BK285)","v":3.9699416097909612},{"$f":"IF('[2]REAL IMAE(M)'!BN285=\"\",\"\",'[2]REAL IMAE(M)'!BN285)","v":3.8619754955259378},{"$f":"IF('[2]REAL IMAE(M)'!BO285=\"\",\"\",'[2]REAL IMAE(M)'!BO285)","v":4.7531341286194184},{"$f":"IF('[2]EXT RIN(M)'!$K285=\"\",\"\",'[2]EXT RIN(M)'!$K285)","v":24222.216760591709},24222.216760591709,{"$f":"IF('[2]EXT RIN(M)'!$L285=\"\",\"\",'[2]EXT RIN(M)'!$L285)","v":26640.773070751711},26640.773070751711,{"$f":"IF('[2]MONE(M)CARD'!EG285=\"\",\"\",'[2]MONE(M)CARD'!EG285)","v":25947.864539128721},{"$f":"IF('[2]MONE(M)CARD'!EK285=\"\",\"\",'[2]MONE(M)CARD'!EK285)","v":40932.812783652662},{"$f":"IF('[2]MONE(M)CARD'!EP285=\"\",\"\",'[2]MONE(M)CARD'!EP285)","v":22829.320543231806},{"$f":"IF('[2]MONE(M)CARD'!ES285=\"\",\"\",'[2]MONE(M)CARD'!ES285)","v":6.0109273847794409},{"$f":"IF('[2]MONE(M)CARD'!EV285=\"\",\"\",'[2]MONE(M)CARD'!EV285)","v":7.4085109049445652},{"$f":"IF('[2]MONE(M)CARD'!EZ285=\"\",\"\",'[2]MONE(M)CARD'!EZ285)","v":6.7694140069701092},{"$f":"IF('[2]MONE(M)CAPARD'!FC285=\"\",\"\",'[2]MONE(M)CAPARD'!FC285)","v":33017.10404165872},{"$f":"IF('[2]MONE(M)CAPARD'!FG285=\"\",\"\",'[2]MONE(M)CAPARD'!FG285)","v":63083.440668592666},{"$f":"IF('[2]MONE(M)CAPARD'!FL285=\"\",\"\",'[2]MONE(M)CAPARD'!FL285)","v":22829.320543231806},{"$f":"IF('[2]MONE(M)CAPARD'!FO285=\"\",\"\",'[2]MONE(M)CAPARD'!FO285)","v":7.5270163308797544},{"$f":"IF('[2]MONE(M)CAPARD'!FR285=\"\",\"\",'[2]MONE(M)CAPARD'!FR285)","v":8.5341206320846972},{"$f":"IF('[2]MONE(M)CAPARD'!FV285=\"\",\"\",'[2]MONE(M)CAPARD'!FV285)","v":7.8252679990189256},{"$f":"IF('[2]MONE(M)CARD'!FV285=\"\",\"\",'[2]MONE(M)CARD'!FV285)","v":788.87714469537786},{"$f":"IF('[2]MONE(M)CARD'!GD285=\"\",\"\",'[2]MONE(M)CARD'!GD285)","v":73.356155637949513},{"$f":"IF('[2]MONE(M)CARD'!GE285=\"\",\"\",'[2]MONE(M)CARD'!GE285)","v":6304.1089442045804},-7.0594243540208375,{"$f":"IF('[9]II.2.Balance OSD-Activos'!J143=\"\",\"\",'[9]II.2.Balance OSD-Activos'!J143)","v":175.21448136386198},{"$f":"IF('[9]II.2.Balance OSD-Activos'!N143=\"\",\"\",'[9]II.2.Balance OSD-Activos'!N143)","v":540.29311571850235},{"$f":"IF('[9]II.2.Balance OSD-Activos'!R143=\"\",\"\",'[9]II.2.Balance OSD-Activos'!R143)","v":34451.689469744735},{"$f":"IF('[9]II.2.Balance OSD-Activos'!S143=\"\",\"\",'[9]II.2.Balance OSD-Activos'!S143)","v":36915.95231007041},34626.903951108594,72083.14937689752,-0.1724731432417248,19.718925227922735,16.471243942889792,19.840369662347769,11.33604775573389,15.250761911541399,-7.7720378323586914E-2,{"$f":"IF('[2]MONE(M)CAPARD'!GS285=\"\",\"\",'[2]MONE(M)CAPARD'!GS285)","v":13516.550576644242},{"$f":"IF('[2]MONE(M)CARD'!HA285=\"\",\"\",'[2]MONE(M)CAPARD'!HA285)","v":6915.183796214581},{"$f":"IF('[2]MONE(M)CAPARD'!HB285=\"\",\"\",'[2]MONE(M)CAPARD'!HB285)","v":6601.366780429661},"n.d.",{"$f":"IF('[10]II.2.Balance OSD-Activos'!J143=\"\",\"\",'[10]II.2.Balance OSD-Activos'!J143)","v":980.3696243538617},{"$f":"IF('[10]II.2.Balance OSD-Activos'!N143=\"\",\"\",'[10]II.2.Balance OSD-Activos'!N143)","v":917.23777068850211},{"$f":"IF('[10]II.2.Balance OSD-Activos'!R143=\"\",\"\",'[10]II.2.Balance OSD-Activos'!R143)","v":50642.139978314743},{"$f":"IF('[10]II.2.Balance OSD-Activos'!S143=\"\",\"\",'[10]II.2.Balance OSD-Activos'!S143)","v":49665.312538530401},51622.509602668608,102205.05991188751,21.621338620754017,18.860042903603258,12.858221690415439,18.807824212710077,11.804774852961097,15.270337011916713,8.8056252559320924E-2,{"$f":"IF('[2]MONE(M)CAPARD'!AS285=\"\",\"\",'[2]MONE(M)CAPARD'!AS285)","v":5},{"$f":"IF('[2]MONE(M)CAPARD'!AT285=\"\",\"\",'[2]MONE(M)CAPARD'!AT285)","v":"n.a."},{"$f":"IF('[2]MONE(M)CAPARD'!AU285=\"\",\"\",'[2]MONE(M)CAPARD'!AU285)","v":5},{"$f":"IF('[2]MONE(M)CAPARD'!AV285=\"\",\"\",'[2]MONE(M)CAPARD'!AV285)","v":7},{"$f":"IF('[2]MONE(M)CAPARD'!AW285=\"\",\"\",'[2]MONE(M)CAPARD'!AW285)","v":"n.a."},{"$f":"IF('[2]MONE(M)CAPARD'!AX285=\"\",\"\",'[2]MONE(M)CAPARD'!AX285)","v":5},{"$f":"IF('[2]MONE(M)CAPARD'!AY285=\"\",\"\",'[2]MONE(M)CAPARD'!AY285)","v":"n.a."},{"$f":"IF('[2]FISCAL(M)'!$K285=\"\",\"\",'[2]FISCAL(M)'!$K285)","v":-8707.6701324988298},{"$f":"IF('[2]FISCAL(M)'!$L285=\"\",\"\",'[2]FISCAL(M)'!$L285)","v":-9829.6770428688305},{"$f":"IF('[2]FISCAL(M)'!$AY285=\"\",\"\",'[2]FISCAL(M)'!$AY285)","v":86197.729152050655},{"$f":"IF('[2]FISCAL(M)'!$BI285=\"\",\"\",'[2]FISCAL(M)'!$BI285)","v":44433.144911554955},{"$f":"IF('[2]FISCAL(M)'!$BS285=\"\",\"\",'[2]FISCAL(M)'!$BS285)","v":41764.584240495693},{"$f":"IF('[2]FISCAL(M)'!$AZ285=\"\",\"\",'[2]FISCAL(M)'!$AZ285)","v":100398.69967453065},{"$f":"IF('[2]FISCAL(M)'!$BJ285=\"\",\"\",'[2]FISCAL(M)'!$BJ285)","v":47851.714232914965},{"$f":"IF('[2]FISCAL(M)'!$BT285=\"\",\"\",'[2]FISCAL(M)'!$BT285)","v":52546.985441615689},{"$f":"IF('[3]MONE(M)'!$AO285=\"\",\"\",'[3]MONE(M)'!$AO285)","v":11971531.492709562},{"$f":"IF('[4]MONE(M)'!$AO285=\"\",\"\",'[4]MONE(M)'!$AO285)","v":9465.4515203300016},{"$f":"IF('[5]MONE(M)'!$AO285=\"\",\"\",'[5]MONE(M)'!$AO285)","v":132826.68233067147},{"$f":"+'[1]MONE(M)'!$AO285","v":184952.46354363475},{"$f":"IF('[6]MONE(M)'!$AO285=\"\",\"\",'[6]MONE(M)'!$AO285)","v":66318.660793639996},{"$f":"IF('[7]MONE(M)'!$AO285=\"\",\"\",'[7]MONE(M)'!$AO285)","v":517987.74201143003},{"$f":"IF('[8]MONE(M)'!$AO285=\"\",\"\",'[8]MONE(M)'!$AO285)","v":30558.021913370001},14.049232257194166,3.5380271026113297,41.109297639245867,17.022973811473708,26.286194155104383,5.8899808902095563,15.211570560887466,{"$f":"IF('[2]FISCAL(M)'!$K285=\"\",\"\",'[2]FISCAL(M)'!$K285)","v":-8707.6701324988298},{"$f":"+'[2]REAL(A)'!$AO$32","v":208321.52269328642},-4.1799186276682549,{"$f":"IF('[2]FISCAL(M)'!$L285=\"\",\"\",'[2]FISCAL(M)'!$L285)","v":-9829.6770428688305},{"$f":"+'[2]REAL(A)'!$AP$32","v":248751.25969328641},-3.9516089506396677,99312.821677105268,{"$f":"'[2]Gráfico REM'!BG279","v":18704.708861375297},{"$f":"'[2]Gráfico REM'!BH279","v":74998.080938206738},{"$f":"'[2]Gráfico REM'!BI279","v":5610.0318775232299},10.948643119251278,-5.2272712434521029,15.60447104329301,14.459635627020795,150890.55223311528,{"$f":"'[2]Gráfico REM'!BK279","v":20476.394304265297},{"$f":"'[2]Gráfico REM'!BL279","v":105556.10285157674},{"$f":"'[2]Gráfico REM'!BM279","v":24858.055077273231},11.746805013836203,-3.1170863154388218,15.490452775320328,10.501626202053149]
[2013,"enero","2013-enero",{"$f":"IF('[2]REAL IPC(M)'!$AL286=\"\",\"\",+'[2]REAL IPC(M)'!$AL286)","v":4.4701195219123635},{"$f":"IF('[2]REAL IPC(M)'!$BE286=\"\",\"\",+'[2]REAL IPC(M)'!$BE286)","v":4.3188420007744588},{"$f":"IF('[2]REAL IPC(M)'!$AM286=\"\",\"\",+'[2]REAL IPC(M)'!$AM286)","v":4.4993207064652818},{"$f":"IF('[2]REAL IPC(M)'!$BI286=\"\",\"\",+'[2]REAL IPC(M)'!$BI286)","v":4.357662799858808},{"$f":"IF('[2]REAL IMAE(M)'!BJ286=\"\",\"\",'[2]REAL IMAE(M)'!BJ286)","v":3.3368780379696483},{"$f":"IF('[2]REAL IMAE(M)'!BK286=\"\",\"\",'[2]REAL IMAE(M)'!BK286)","v":3.9880783993793134},{"$f":"IF('[2]REAL IMAE(M)'!BN286=\"\",\"\",'[2]REAL IMAE(M)'!BN286)","v":3.979067306155093},{"$f":"IF('[2]REAL IMAE(M)'!BO286=\"\",\"\",'[2]REAL IMAE(M)'!BO286)","v":4.7480029173276872},{"$f":"IF('[2]EXT RIN(M)'!$K286=\"\",\"\",'[2]EXT RIN(M)'!$K286)","v":23785.550960329252},"",{"$f":"IF('[2]EXT RIN(M)'!$L286=\"\",\"\",'[2]EXT RIN(M)'!$L286)","v":26376.386333479251},"",{"$f":"IF('[2]MONE(M)CARD'!EG286=\"\",\"\",'[2]MONE(M)CARD'!EG286)","v":25375.412573301044},{"$f":"IF('[2]MONE(M)CARD'!EK286=\"\",\"\",'[2]MONE(M)CARD'!EK286)","v":41525.086977449493},{"$f":"IF('[2]MONE(M)CARD'!EP286=\"\",\"\",'[2]MONE(M)CARD'!EP286)","v":23218.413544207317},{"$f":"IF('[2]MONE(M)CARD'!ES286=\"\",\"\",'[2]MONE(M)CARD'!ES286)","v":5.0504156366026232},{"$f":"IF('[2]MONE(M)CARD'!EV286=\"\",\"\",'[2]MONE(M)CARD'!EV286)","v":7.3451632706936332},{"$f":"IF('[2]MONE(M)CARD'!EZ286=\"\",\"\",'[2]MONE(M)CARD'!EZ286)","v":6.9161801151698121},{"$f":"IF('[2]MONE(M)CAPARD'!FC286=\"\",\"\",'[2]MONE(M)CAPARD'!FC286)","v":32273.301768631041},{"$f":"IF('[2]MONE(M)CAPARD'!FG286=\"\",\"\",'[2]MONE(M)CAPARD'!FG286)","v":63883.698401479509},{"$f":"IF('[2]MONE(M)CAPARD'!FL286=\"\",\"\",'[2]MONE(M)CAPARD'!FL286)","v":23218.413544207317},{"$f":"IF('[2]MONE(M)CAPARD'!FO286=\"\",\"\",'[2]MONE(M)CAPARD'!FO286)","v":6.6008378444062821},{"$f":"IF('[2]MONE(M)CAPARD'!FR286=\"\",\"\",'[2]MONE(M)CAPARD'!FR286)","v":8.6061873394543973},{"$f":"IF('[2]MONE(M)CAPARD'!FV286=\"\",\"\",'[2]MONE(M)CAPARD'!FV286)","v":8.0282978109559977},{"$f":"IF('[2]MONE(M)CARD'!FV286=\"\",\"\",'[2]MONE(M)CARD'!FV286)","v":1024.9679829169734},{"$f":"IF('[2]MONE(M)CARD'!GD286=\"\",\"\",'[2]MONE(M)CARD'!GD286)","v":73.113681158428051},{"$f":"IF('[2]MONE(M)CARD'!GE286=\"\",\"\",'[2]MONE(M)CARD'!GE286)","v":6820.6302841836041},7.5655983655967596,{"$f":"IF('[9]II.2.Balance OSD-Activos'!J144=\"\",\"\",'[9]II.2.Balance OSD-Activos'!J144)","v":176.9086413334511},{"$f":"IF('[9]II.2.Balance OSD-Activos'!N144=\"\",\"\",'[9]II.2.Balance OSD-Activos'!N144)","v":567.99533306791227},{"$f":"IF('[9]II.2.Balance OSD-Activos'!R144=\"\",\"\",'[9]II.2.Balance OSD-Activos'!R144)","v":34682.382731047917},{"$f":"IF('[9]II.2.Balance OSD-Activos'!S144=\"\",\"\",'[9]II.2.Balance OSD-Activos'!S144)","v":37187.58382486648},34859.291372381369,72614.870530315762,7.3431932705881442,20.306049735042198,35.241327177646767,20.380201482154114,11.194514582103853,15.556610785631886,0.30584887409048633,{"$f":"IF('[2]MONE(M)CAPARD'!GS286=\"\",\"\",'[2]MONE(M)CAPARD'!GS286)","v":13879.41591104595},{"$f":"IF('[2]MONE(M)CARD'!HA286=\"\",\"\",'[2]MONE(M)CAPARD'!HA286)","v":7420.7068050536045},{"$f":"IF('[2]MONE(M)CAPARD'!HB286=\"\",\"\",'[2]MONE(M)CAPARD'!HB286)","v":6458.709105992345},"n.d.",{"$f":"IF('[10]II.2.Balance OSD-Activos'!J144=\"\",\"\",'[10]II.2.Balance OSD-Activos'!J144)","v":1085.7948584034509},{"$f":"IF('[10]II.2.Balance OSD-Activos'!N144=\"\",\"\",'[10]II.2.Balance OSD-Activos'!N144)","v":935.83018018791222},{"$f":"IF('[10]II.2.Balance OSD-Activos'!R144=\"\",\"\",'[10]II.2.Balance OSD-Activos'!R144)","v":50967.486816177916},{"$f":"IF('[10]II.2.Balance OSD-Activos'!S144=\"\",\"\",'[10]II.2.Balance OSD-Activos'!S144)","v":50027.342983946481},52053.281674581369,103016.45483871576,243.83745637364115,20.816827704074559,24.991471640522022,19.170130205607339,11.738693849890014,16.264956571929147,0.99461956001243479,{"$f":"IF('[2]MONE(M)CAPARD'!AS286=\"\",\"\",'[2]MONE(M)CAPARD'!AS286)","v":5},{"$f":"IF('[2]MONE(M)CAPARD'!AT286=\"\",\"\",'[2]MONE(M)CAPARD'!AT286)","v":"n.a."},{"$f":"IF('[2]MONE(M)CAPARD'!AU286=\"\",\"\",'[2]MONE(M)CAPARD'!AU286)","v":5},{"$f":"IF('[2]MONE(M)CAPARD'!AV286=\"\",\"\",'[2]MONE(M)CAPARD'!AV286)","v":7},{"$f":"IF('[2]MONE(M)CAPARD'!AW286=\"\",\"\",'[2]MONE(M)CAPARD'!AW286)","v":"n.a."},{"$f":"IF('[2]MONE(M)CAPARD'!AX286=\"\",\"\",'[2]MONE(M)CAPARD'!AX286)","v":5},{"$f":"IF('[2]MONE(M)CAPARD'!AY286=\"\",\"\",'[2]MONE(M)CAPARD'!AY286)","v":"n.a."},{"$f":"IF('[2]FISCAL(M)'!$K286=\"\",\"\",'[2]FISCAL(M)'!$K286)","v":-125.8875386061642},{"$f":"IF('[2]FISCAL(M)'!$L286=\"\",\"\",'[2]FISCAL(M)'!$L286)","v":-275.12151224616423},{"$f":"IF('[2]FISCAL(M)'!$AY286=\"\",\"\",'[2]FISCAL(M)'!$AY286)","v":86992.217089094745},{"$f":"IF('[2]FISCAL(M)'!$BI286=\"\",\"\",'[2]FISCAL(M)'!$BI286)","v":45345.01175797914},{"$f":"IF('[2]FISCAL(M)'!$BS286=\"\",\"\",'[2]FISCAL(M)'!$BS286)","v":41647.205331115598},{"$f":"IF('[2]FISCAL(M)'!$AZ286=\"\",\"\",'[2]FISCAL(M)'!$AZ286)","v":101148.38374626475},{"$f":"IF('[2]FISCAL(M)'!$BJ286=\"\",\"\",'[2]FISCAL(M)'!$BJ286)","v":48759.041757979146},{"$f":"IF('[2]FISCAL(M)'!$BT286=\"\",\"\",'[2]FISCAL(M)'!$BT286)","v":52389.341988285596},{"$f":"IF('[3]MONE(M)'!$AO286=\"\",\"\",'[3]MONE(M)'!$AO286)","v":12088018.892800894},{"$f":"IF('[4]MONE(M)'!$AO286=\"\",\"\",'[4]MONE(M)'!$AO286)","v":9494.2356777800014},{"$f":"IF('[5]MONE(M)'!$AO286=\"\",\"\",'[5]MONE(M)'!$AO286)","v":132670.58000179299},{"$f":"+'[1]MONE(M)'!$AO286","v":186413.8964899946},{"$f":"IF('[6]MONE(M)'!$AO286=\"\",\"\",'[6]MONE(M)'!$AO286)","v":67235.440435662706},{"$f":"IF('[7]MONE(M)'!$AO286=\"\",\"\",'[7]MONE(M)'!$AO286)","v":524643.84401137999},{"$f":"IF('[8]MONE(M)'!$AO286=\"\",\"\",'[8]MONE(M)'!$AO286)","v":30887.485873059995},14.398525332226786,3.9942376645738076,40.64299583443762,15.591887525424664,25.747361922451905,6.6944211394347031,19.130349014659508,{"$f":"IF('[2]FISCAL(M)'!$K286=\"\",\"\",'[2]FISCAL(M)'!$K286)","v":-125.8875386061642},{"$f":"+'[2]REAL(A)'!$AO$33","v":218144.2130524345},-5.7708401632412351E-2,{"$f":"IF('[2]FISCAL(M)'!$L286=\"\",\"\",'[2]FISCAL(M)'!$L286)","v":-275.12151224616423},{"$f":"+'[2]REAL(A)'!$AP$33","v":263744.20305243449},-0.10431376654427087,101015.08679366008,{"$f":"'[2]Gráfico REM'!BG280","v":19485.020714639944},{"$f":"'[2]Gráfico REM'!BH280","v":75773.535911181258},{"$f":"'[2]Gráfico REM'!BI280","v":5756.5301678388823},12.450705382154826,-0.20497656170708201,15.466186555043215,22.963308535388528,153675.12617827009,{"$f":"'[2]Gráfico REM'!BK280","v":21339.998864629946},{"$f":"'[2]Gráfico REM'!BL280","v":106661.02178424125},{"$f":"'[2]Gráfico REM'!BM280","v":25674.105529398879},13.929325668927483,1.9274936976663826,16.503881067117156,14.624526393935188]
[2013,"febrero","2013-febrero",{"$f":"IF('[2]REAL IPC(M)'!$AL287=\"\",\"\",+'[2]REAL IPC(M)'!$AL287)","v":4.6550356859635267},{"$f":"IF('[2]REAL IPC(M)'!$BE287=\"\",\"\",+'[2]REAL IPC(M)'!$BE287)","v":4.2619932335138166},{"$f":"IF('[2]REAL IPC(M)'!$AM287=\"\",\"\",+'[2]REAL IPC(M)'!$AM287)","v":4.6437659033078837},{"$f":"IF('[2]REAL IPC(M)'!$BI287=\"\",\"\",+'[2]REAL IPC(M)'!$BI287)","v":4.2955659273225644},{"$f":"IF('[2]REAL IMAE(M)'!BJ287=\"\",\"\",'[2]REAL IMAE(M)'!BJ287)","v":3.0226936120538728},{"$f":"IF('[2]REAL IMAE(M)'!BK287=\"\",\"\",'[2]REAL IMAE(M)'!BK287)","v":4.008111758122479},{"$f":"IF('[2]REAL IMAE(M)'!BN287=\"\",\"\",'[2]REAL IMAE(M)'!BN287)","v":3.5271686546606063},{"$f":"IF('[2]REAL IMAE(M)'!BO287=\"\",\"\",'[2]REAL IMAE(M)'!BO287)","v":4.7445523052443983},{"$f":"IF('[2]EXT RIN(M)'!$K287=\"\",\"\",'[2]EXT RIN(M)'!$K287)","v":24364.237688892488},"",{"$f":"IF('[2]EXT RIN(M)'!$L287=\"\",\"\",'[2]EXT RIN(M)'!$L287)","v":26922.061170992489},"",{"$f":"IF('[2]MONE(M)CARD'!EG287=\"\",\"\",'[2]MONE(M)CARD'!EG287)","v":25236.747580552845},{"$f":"IF('[2]MONE(M)CARD'!EK287=\"\",\"\",'[2]MONE(M)CARD'!EK287)","v":41925.091446727769},{"$f":"IF('[2]MONE(M)CARD'!EP287=\"\",\"\",'[2]MONE(M)CARD'!EP287)","v":22957.255350601074},{"$f":"IF('[2]MONE(M)CARD'!ES287=\"\",\"\",'[2]MONE(M)CARD'!ES287)","v":4.3822788336606244},{"$f":"IF('[2]MONE(M)CARD'!EV287=\"\",\"\",'[2]MONE(M)CARD'!EV287)","v":6.7419879857694598},{"$f":"IF('[2]MONE(M)CARD'!EZ287=\"\",\"\",'[2]MONE(M)CARD'!EZ287)","v":6.2253531276164287},{"$f":"IF('[2]MONE(M)CAPARD'!FC287=\"\",\"\",'[2]MONE(M)CAPARD'!FC287)","v":32212.245797282842},{"$f":"IF('[2]MONE(M)CAPARD'!FG287=\"\",\"\",'[2]MONE(M)CAPARD'!FG287)","v":64301.149067367762},{"$f":"IF('[2]MONE(M)CAPARD'!FL287=\"\",\"\",'[2]MONE(M)CAPARD'!FL287)","v":22957.255350601074},{"$f":"IF('[2]MONE(M)CAPARD'!FO287=\"\",\"\",'[2]MONE(M)CAPARD'!FO287)","v":5.8166312580944179},{"$f":"IF('[2]MONE(M)CAPARD'!FR287=\"\",\"\",'[2]MONE(M)CAPARD'!FR287)","v":7.687485891845447},{"$f":"IF('[2]MONE(M)CAPARD'!FV287=\"\",\"\",'[2]MONE(M)CAPARD'!FV287)","v":7.1087469992599628},{"$f":"IF('[2]MONE(M)CARD'!FV287=\"\",\"\",'[2]MONE(M)CARD'!FV287)","v":1076.5820385780385},{"$f":"IF('[2]MONE(M)CARD'!GD287=\"\",\"\",'[2]MONE(M)CARD'!GD287)","v":85.895714821514716},{"$f":"IF('[2]MONE(M)CARD'!GE287=\"\",\"\",'[2]MONE(M)CARD'!GE287)","v":6804.4820282801275},0.2399032168455717,{"$f":"IF('[9]II.2.Balance OSD-Activos'!J145=\"\",\"\",'[9]II.2.Balance OSD-Activos'!J145)","v":176.21764982904307},{"$f":"IF('[9]II.2.Balance OSD-Activos'!N145=\"\",\"\",'[9]II.2.Balance OSD-Activos'!N145)","v":542.36376702150244},{"$f":"IF('[9]II.2.Balance OSD-Activos'!R145=\"\",\"\",'[9]II.2.Balance OSD-Activos'!R145)","v":34655.534631025599},{"$f":"IF('[9]II.2.Balance OSD-Activos'!S145=\"\",\"\",'[9]II.2.Balance OSD-Activos'!S145)","v":37400.824398589117},34831.752280854642,72774.940446465262,8.9787547191444439,18.813299461672205,27.286226068612308,18.867844293614901,11.104700735225848,14.777636722373666,-0.77897406325821983,{"$f":"IF('[2]MONE(M)CAPARD'!GS287=\"\",\"\",'[2]MONE(M)CAPARD'!GS287)","v":14420.576300706858},{"$f":"IF('[2]MONE(M)CARD'!HA287=\"\",\"\",'[2]MONE(M)CAPARD'!HA287)","v":7409.5377809901274},{"$f":"IF('[2]MONE(M)CAPARD'!HB287=\"\",\"\",'[2]MONE(M)CAPARD'!HB287)","v":7011.0385197167307},"n.d.",{"$f":"IF('[10]II.2.Balance OSD-Activos'!J145=\"\",\"\",'[10]II.2.Balance OSD-Activos'!J145)","v":1097.191236049043},{"$f":"IF('[10]II.2.Balance OSD-Activos'!N145=\"\",\"\",'[10]II.2.Balance OSD-Activos'!N145)","v":935.80982762150234},{"$f":"IF('[10]II.2.Balance OSD-Activos'!R145=\"\",\"\",'[10]II.2.Balance OSD-Activos'!R145)","v":51018.514373345606},{"$f":"IF('[10]II.2.Balance OSD-Activos'!S145=\"\",\"\",'[10]II.2.Balance OSD-Activos'!S145)","v":50321.915573049118},52115.705609394652,103373.43101006528,248.50901201991951,19.927888583798946,20.576603533666994,18.259804158954964,11.630550986954624,15.745512275166075,-0.5194442967630728,{"$f":"IF('[2]MONE(M)CAPARD'!AS287=\"\",\"\",'[2]MONE(M)CAPARD'!AS287)","v":5},{"$f":"IF('[2]MONE(M)CAPARD'!AT287=\"\",\"\",'[2]MONE(M)CAPARD'!AT287)","v":"n.a."},{"$f":"IF('[2]MONE(M)CAPARD'!AU287=\"\",\"\",'[2]MONE(M)CAPARD'!AU287)","v":5},{"$f":"IF('[2]MONE(M)CAPARD'!AV287=\"\",\"\",'[2]MONE(M)CAPARD'!AV287)","v":7},{"$f":"IF('[2]MONE(M)CAPARD'!AW287=\"\",\"\",'[2]MONE(M)CAPARD'!AW287)","v":"n.a."},{"$f":"IF('[2]MONE(M)CAPARD'!AX287=\"\",\"\",'[2]MONE(M)CAPARD'!AX287)","v":5},{"$f":"IF('[2]MONE(M)CAPARD'!AY287=\"\",\"\",'[2]MONE(M)CAPARD'!AY287)","v":"n.a."},{"$f":"IF('[2]FISCAL(M)'!$K287=\"\",\"\",'[2]FISCAL(M)'!$K287)","v":-612.91049589017325},{"$f":"IF('[2]FISCAL(M)'!$L287=\"\",\"\",'[2]FISCAL(M)'!$L287)","v":-1555.1617106901735},{"$f":"IF('[2]FISCAL(M)'!$AY287=\"\",\"\",'[2]FISCAL(M)'!$AY287)","v":87870.264394132493},{"$f":"IF('[2]FISCAL(M)'!$BI287=\"\",\"\",'[2]FISCAL(M)'!$BI287)","v":45637.49029008409},{"$f":"IF('[2]FISCAL(M)'!$BS287=\"\",\"\",'[2]FISCAL(M)'!$BS287)","v":42232.774104048411},{"$f":"IF('[2]FISCAL(M)'!$AZ287=\"\",\"\",'[2]FISCAL(M)'!$AZ287)","v":102129.97805937249},{"$f":"IF('[2]FISCAL(M)'!$BJ287=\"\",\"\",'[2]FISCAL(M)'!$BJ287)","v":49163.186190834094},{"$f":"IF('[2]FISCAL(M)'!$BT287=\"\",\"\",'[2]FISCAL(M)'!$BT287)","v":52966.791868538407},{"$f":"IF('[3]MONE(M)'!$AO287=\"\",\"\",'[3]MONE(M)'!$AO287)","v":12191646.071683703},{"$f":"IF('[4]MONE(M)'!$AO287=\"\",\"\",'[4]MONE(M)'!$AO287)","v":9528.9659244801187},{"$f":"IF('[5]MONE(M)'!$AO287=\"\",\"\",'[5]MONE(M)'!$AO287)","v":133399.00141158546},{"$f":"+'[1]MONE(M)'!$AO287","v":187290.33534983685},{"$f":"IF('[6]MONE(M)'!$AO287=\"\",\"\",'[6]MONE(M)'!$AO287)","v":67397.05495907327},{"$f":"IF('[7]MONE(M)'!$AO287=\"\",\"\",'[7]MONE(M)'!$AO287)","v":526596.78524873999},{"$f":"IF('[8]MONE(M)'!$AO287=\"\",\"\",'[8]MONE(M)'!$AO287)","v":31056.740394319993},12.952589264620773,5.7957128571072491,37.611295613252253,14.99890056919515,23.811493728583777,7.0563942613386388,19.166181768040214,{"$f":"IF('[2]FISCAL(M)'!$K287=\"\",\"\",'[2]FISCAL(M)'!$K287)","v":-612.91049589017325},{"$f":"+'[2]REAL(A)'!$AO$33","v":218144.2130524345},-0.28096573698374949,{"$f":"IF('[2]FISCAL(M)'!$L287=\"\",\"\",'[2]FISCAL(M)'!$L287)","v":-1555.1617106901735},{"$f":"+'[2]REAL(A)'!$AP$33","v":263744.20305243449},-0.5896477316625589,102245.88497710935,{"$f":"'[2]Gráfico REM'!BG281","v":20304.670047591706},{"$f":"'[2]Gráfico REM'!BH281","v":76119.422932570742},{"$f":"'[2]Gráfico REM'!BI281","v":5821.7919969469094},11.551713909558758,-0.4722315006606248,14.892437925788871,16.341512506764921,156531.15582756934,{"$f":"'[2]Gráfico REM'!BK281","v":22227.807834981708},{"$f":"'[2]Gráfico REM'!BL281","v":107176.16332689073},{"$f":"'[2]Gráfico REM'!BM281","v":27127.184665696906},14.602849103859539,2.1217370550419057,16.098977368151779,20.536989122137861]
[2013,"marzo","2013-marzo",{"$f":"IF('[2]REAL IPC(M)'!$AL288=\"\",\"\",+'[2]REAL IPC(M)'!$AL288)","v":4.7197406909637252},{"$f":"IF('[2]REAL IPC(M)'!$BE288=\"\",\"\",+'[2]REAL IPC(M)'!$BE288)","v":4.2042076055002653},{"$f":"IF('[2]REAL IPC(M)'!$AM288=\"\",\"\",+'[2]REAL IPC(M)'!$AM288)","v":4.6426873712565486},{"$f":"IF('[2]REAL IPC(M)'!$BI288=\"\",\"\",+'[2]REAL IPC(M)'!$BI288)","v":4.2320699066905831},{"$f":"IF('[2]REAL IMAE(M)'!BJ288=\"\",\"\",'[2]REAL IMAE(M)'!BJ288)","v":2.9934971418039913},{"$f":"IF('[2]REAL IMAE(M)'!BK288=\"\",\"\",'[2]REAL IMAE(M)'!BK288)","v":4.0300201469906538},{"$f":"IF('[2]REAL IMAE(M)'!BN288=\"\",\"\",'[2]REAL IMAE(M)'!BN288)","v":3.3673304724471942},{"$f":"IF('[2]REAL IMAE(M)'!BO288=\"\",\"\",'[2]REAL IMAE(M)'!BO288)","v":4.74289234423666},{"$f":"IF('[2]EXT RIN(M)'!$K288=\"\",\"\",'[2]EXT RIN(M)'!$K288)","v":25494.450753308549},"",{"$f":"IF('[2]EXT RIN(M)'!$L288=\"\",\"\",'[2]EXT RIN(M)'!$L288)","v":27592.216851428548},"",{"$f":"IF('[2]MONE(M)CARD'!EG288=\"\",\"\",'[2]MONE(M)CARD'!EG288)","v":26002.426009283328},{"$f":"IF('[2]MONE(M)CARD'!EK288=\"\",\"\",'[2]MONE(M)CARD'!EK288)","v":41919.096779001804},{"$f":"IF('[2]MONE(M)CARD'!EP288=\"\",\"\",'[2]MONE(M)CARD'!EP288)","v":23429.806526054424},{"$f":"IF('[2]MONE(M)CARD'!ES288=\"\",\"\",'[2]MONE(M)CARD'!ES288)","v":7.6035956406867333},{"$f":"IF('[2]MONE(M)CARD'!EV288=\"\",\"\",'[2]MONE(M)CARD'!EV288)","v":6.5408724690720899},{"$f":"IF('[2]MONE(M)CARD'!EZ288=\"\",\"\",'[2]MONE(M)CARD'!EZ288)","v":5.978507815025691},{"$f":"IF('[2]MONE(M)CAPARD'!FC288=\"\",\"\",'[2]MONE(M)CAPARD'!FC288)","v":32909.277574213331},{"$f":"IF('[2]MONE(M)CAPARD'!FG288=\"\",\"\",'[2]MONE(M)CAPARD'!FG288)","v":64473.614564221811},{"$f":"IF('[2]MONE(M)CAPARD'!FL288=\"\",\"\",'[2]MONE(M)CAPARD'!FL288)","v":23429.806526054424},{"$f":"IF('[2]MONE(M)CAPARD'!FO288=\"\",\"\",'[2]MONE(M)CAPARD'!FO288)","v":7.6793548135994039},{"$f":"IF('[2]MONE(M)CAPARD'!FR288=\"\",\"\",'[2]MONE(M)CAPARD'!FR288)","v":7.3244278032915},{"$f":"IF('[2]MONE(M)CAPARD'!FV288=\"\",\"\",'[2]MONE(M)CAPARD'!FV288)","v":6.740749233913057},{"$f":"IF('[2]MONE(M)CARD'!FV288=\"\",\"\",'[2]MONE(M)CARD'!FV288)","v":1090.6882123147072},{"$f":"IF('[2]MONE(M)CARD'!GD288=\"\",\"\",'[2]MONE(M)CARD'!GD288)","v":102.87369887004716},{"$f":"IF('[2]MONE(M)CARD'!GE288=\"\",\"\",'[2]MONE(M)CARD'!GE288)","v":7326.1992866635192},12.351872533709972,{"$f":"IF('[9]II.2.Balance OSD-Activos'!J146=\"\",\"\",'[9]II.2.Balance OSD-Activos'!J146)","v":183.48045978401706},{"$f":"IF('[9]II.2.Balance OSD-Activos'!N146=\"\",\"\",'[9]II.2.Balance OSD-Activos'!N146)","v":560.86749029311841},{"$f":"IF('[9]II.2.Balance OSD-Activos'!R146=\"\",\"\",'[9]II.2.Balance OSD-Activos'!R146)","v":34813.305508720026},{"$f":"IF('[9]II.2.Balance OSD-Activos'!S146=\"\",\"\",'[9]II.2.Balance OSD-Activos'!S146)","v":37740.833839611725},34996.785968504046,73298.487298408887,11.965782255811996,17.743692899849695,30.543609784985758,17.775725031990163,11.07724920240436,14.297435536812241,-0.48020118556142499,{"$f":"IF('[2]MONE(M)CAPARD'!GS288=\"\",\"\",'[2]MONE(M)CAPARD'!GS288)","v":14286.136706778765},{"$f":"IF('[2]MONE(M)CARD'!HA288=\"\",\"\",'[2]MONE(M)CAPARD'!HA288)","v":7960.3368536035186},{"$f":"IF('[2]MONE(M)CAPARD'!HB288=\"\",\"\",'[2]MONE(M)CAPARD'!HB288)","v":6325.7998531752464},"n.d.",{"$f":"IF('[10]II.2.Balance OSD-Activos'!J146=\"\",\"\",'[10]II.2.Balance OSD-Activos'!J146)","v":1114.5909880340173},{"$f":"IF('[10]II.2.Balance OSD-Activos'!N146=\"\",\"\",'[10]II.2.Balance OSD-Activos'!N146)","v":964.06898406311859},{"$f":"IF('[10]II.2.Balance OSD-Activos'!R146=\"\",\"\",'[10]II.2.Balance OSD-Activos'!R146)","v":51364.288810830039},{"$f":"IF('[10]II.2.Balance OSD-Activos'!S146=\"\",\"\",'[10]II.2.Balance OSD-Activos'!S146)","v":50777.397098041722},52478.879798864058,104220.3458809689,250.97428760263963,19.263225740348023,23.084366476221451,17.578789032048793,11.614170908502363,15.441863147435676,-0.30364912773039876,{"$f":"IF('[2]MONE(M)CAPARD'!AS288=\"\",\"\",'[2]MONE(M)CAPARD'!AS288)","v":5},{"$f":"IF('[2]MONE(M)CAPARD'!AT288=\"\",\"\",'[2]MONE(M)CAPARD'!AT288)","v":"n.a."},{"$f":"IF('[2]MONE(M)CAPARD'!AU288=\"\",\"\",'[2]MONE(M)CAPARD'!AU288)","v":5},{"$f":"IF('[2]MONE(M)CAPARD'!AV288=\"\",\"\",'[2]MONE(M)CAPARD'!AV288)","v":7},{"$f":"IF('[2]MONE(M)CAPARD'!AW288=\"\",\"\",'[2]MONE(M)CAPARD'!AW288)","v":"n.a."},{"$f":"IF('[2]MONE(M)CAPARD'!AX288=\"\",\"\",'[2]MONE(M)CAPARD'!AX288)","v":5},{"$f":"IF('[2]MONE(M)CAPARD'!AY288=\"\",\"\",'[2]MONE(M)CAPARD'!AY288)","v":"n.a."},{"$f":"IF('[2]FISCAL(M)'!$K288=\"\",\"\",'[2]FISCAL(M)'!$K288)","v":-859.41015710433192},{"$f":"IF('[2]FISCAL(M)'!$L288=\"\",\"\",'[2]FISCAL(M)'!$L288)","v":-1972.5623193843321},{"$f":"IF('[2]FISCAL(M)'!$AY288=\"\",\"\",'[2]FISCAL(M)'!$AY288)","v":89270.255224999695},{"$f":"IF('[2]FISCAL(M)'!$BI288=\"\",\"\",'[2]FISCAL(M)'!$BI288)","v":46424.652658265586},{"$f":"IF('[2]FISCAL(M)'!$BS288=\"\",\"\",'[2]FISCAL(M)'!$BS288)","v":42845.602566734116},{"$f":"IF('[2]FISCAL(M)'!$AZ288=\"\",\"\",'[2]FISCAL(M)'!$AZ288)","v":104315.6093856197},{"$f":"IF('[2]FISCAL(M)'!$BJ288=\"\",\"\",'[2]FISCAL(M)'!$BJ288)","v":50449.284836895582},{"$f":"IF('[2]FISCAL(M)'!$BT288=\"\",\"\",'[2]FISCAL(M)'!$BT288)","v":53866.324548724107},{"$f":"IF('[3]MONE(M)'!$AO288=\"\",\"\",'[3]MONE(M)'!$AO288)","v":12222754.948980264},{"$f":"IF('[4]MONE(M)'!$AO288=\"\",\"\",'[4]MONE(M)'!$AO288)","v":9565.9889694901212},{"$f":"IF('[5]MONE(M)'!$AO288=\"\",\"\",'[5]MONE(M)'!$AO288)","v":133989.19945254573},{"$f":"+'[1]MONE(M)'!$AO288","v":189272.75381900664},{"$f":"IF('[6]MONE(M)'!$AO288=\"\",\"\",'[6]MONE(M)'!$AO288)","v":69031.301759118593},{"$f":"IF('[7]MONE(M)'!$AO288=\"\",\"\",'[7]MONE(M)'!$AO288)","v":527028.73258966999},{"$f":"IF('[8]MONE(M)'!$AO288=\"\",\"\",'[8]MONE(M)'!$AO288)","v":31378.984328330011},12.605333775988248,6.2132957534292155,35.670934207936014,14.880727351455247,27.521735274220195,7.1208658884623466,19.592131336681362,{"$f":"IF('[2]FISCAL(M)'!$K288=\"\",\"\",'[2]FISCAL(M)'!$K288)","v":-859.41015710433192},{"$f":"+'[2]REAL(A)'!$AO$33","v":218144.2130524345},-0.39396422443613427,{"$f":"IF('[2]FISCAL(M)'!$L288=\"\",\"\",'[2]FISCAL(M)'!$L288)","v":-1972.5623193843321},{"$f":"+'[2]REAL(A)'!$AP$33","v":263744.20305243449},-0.74790736499796007,103068.29886247221,{"$f":"'[2]Gráfico REM'!BG282","v":20615.500341427432},{"$f":"'[2]Gráfico REM'!BH282","v":76654.447792112041},{"$f":"'[2]Gráfico REM'!BI282","v":5798.3507289327345},11.062953602451596,-0.48096208478999314,14.531981402957328,12.411732143218845,158144.72077722222,{"$f":"'[2]Gráfico REM'!BK282","v":22339.757866267431},{"$f":"'[2]Gráfico REM'!BL282","v":108033.43212044206},{"$f":"'[2]Gráfico REM'!BM282","v":27771.530790512737},14.198996842269306,1.9659352099707261,15.957059556137732,18.651788411729918]
[2013,"abril","2013-abril",{"$f":"IF('[2]REAL IPC(M)'!$AL289=\"\",\"\",+'[2]REAL IPC(M)'!$AL289)","v":4.3919716646989349},{"$f":"IF('[2]REAL IPC(M)'!$BE289=\"\",\"\",+'[2]REAL IPC(M)'!$BE289)","v":4.1453814486032581},{"$f":"IF('[2]REAL IPC(M)'!$AM289=\"\",\"\",+'[2]REAL IPC(M)'!$AM289)","v":4.3053146191452507},{"$f":"IF('[2]REAL IPC(M)'!$BI289=\"\",\"\",+'[2]REAL IPC(M)'!$BI289)","v":4.1671023373249128},{"$f":"IF('[2]REAL IMAE(M)'!BJ289=\"\",\"\",'[2]REAL IMAE(M)'!BJ289)","v":3.8292733784625721},{"$f":"IF('[2]REAL IMAE(M)'!BK289=\"\",\"\",'[2]REAL IMAE(M)'!BK289)","v":4.0537242441443855},{"$f":"IF('[2]REAL IMAE(M)'!BN289=\"\",\"\",'[2]REAL IMAE(M)'!BN289)","v":4.3180685343010561},{"$f":"IF('[2]REAL IMAE(M)'!BO289=\"\",\"\",'[2]REAL IMAE(M)'!BO289)","v":4.7430468033142104},{"$f":"IF('[2]EXT RIN(M)'!$K289=\"\",\"\",'[2]EXT RIN(M)'!$K289)","v":27059.54053773659},"",{"$f":"IF('[2]EXT RIN(M)'!$L289=\"\",\"\",'[2]EXT RIN(M)'!$L289)","v":29922.541141676589},"",{"$f":"IF('[2]MONE(M)CARD'!EG289=\"\",\"\",'[2]MONE(M)CARD'!EG289)","v":25104.748173744923},{"$f":"IF('[2]MONE(M)CARD'!EK289=\"\",\"\",'[2]MONE(M)CARD'!EK289)","v":42479.03649587238},{"$f":"IF('[2]MONE(M)CARD'!EP289=\"\",\"\",'[2]MONE(M)CARD'!EP289)","v":24190.524420383808},{"$f":"IF('[2]MONE(M)CARD'!ES289=\"\",\"\",'[2]MONE(M)CARD'!ES289)","v":4.7009928340275398},{"$f":"IF('[2]MONE(M)CARD'!EV289=\"\",\"\",'[2]MONE(M)CARD'!EV289)","v":6.0031866422284752},{"$f":"IF('[2]MONE(M)CARD'!EZ289=\"\",\"\",'[2]MONE(M)CARD'!EZ289)","v":6.6636071974931932},{"$f":"IF('[2]MONE(M)CAPARD'!FC289=\"\",\"\",'[2]MONE(M)CAPARD'!FC289)","v":32328.779157594923},{"$f":"IF('[2]MONE(M)CAPARD'!FG289=\"\",\"\",'[2]MONE(M)CAPARD'!FG289)","v":65125.133879902394},{"$f":"IF('[2]MONE(M)CAPARD'!FL289=\"\",\"\",'[2]MONE(M)CAPARD'!FL289)","v":24190.524420383808},{"$f":"IF('[2]MONE(M)CAPARD'!FO289=\"\",\"\",'[2]MONE(M)CAPARD'!FO289)","v":6.4478325773503542},{"$f":"IF('[2]MONE(M)CAPARD'!FR289=\"\",\"\",'[2]MONE(M)CAPARD'!FR289)","v":7.1723442041526253},{"$f":"IF('[2]MONE(M)CAPARD'!FV289=\"\",\"\",'[2]MONE(M)CAPARD'!FV289)","v":7.4441161592233795},{"$f":"IF('[2]MONE(M)CARD'!FV289=\"\",\"\",'[2]MONE(M)CARD'!FV289)","v":1338.5706092840335},{"$f":"IF('[2]MONE(M)CARD'!GD289=\"\",\"\",'[2]MONE(M)CARD'!GD289)","v":212.66064487077176},{"$f":"IF('[2]MONE(M)CARD'!GE289=\"\",\"\",'[2]MONE(M)CARD'!GE289)","v":8664.2922710461989},30.686242714360557,{"$f":"IF('[9]II.2.Balance OSD-Activos'!J147=\"\",\"\",'[9]II.2.Balance OSD-Activos'!J147)","v":171.45814874556402},{"$f":"IF('[9]II.2.Balance OSD-Activos'!N147=\"\",\"\",'[9]II.2.Balance OSD-Activos'!N147)","v":578.80454624600134},{"$f":"IF('[9]II.2.Balance OSD-Activos'!R147=\"\",\"\",'[9]II.2.Balance OSD-Activos'!R147)","v":34915.430045449706},{"$f":"IF('[9]II.2.Balance OSD-Activos'!S147=\"\",\"\",'[9]II.2.Balance OSD-Activos'!S147)","v":38024.060897741045},35086.888194195271,73689.753638182316,-5.0763437329693346,17.154459064307126,31.911613806338025,17.2893491402778,10.83534491942013,{"$f":"IF(OR(AK282=\"\",AK270=\"\"),\"\",((AK282/AK270)-1)*100)","v":13.903605981701993},-0.39382955511024775,{"$f":"IF('[2]MONE(M)CAPARD'!GS289=\"\",\"\",'[2]MONE(M)CAPARD'!GS289)","v":14942.422259092371},{"$f":"IF('[2]MONE(M)CARD'!HA289=\"\",\"\",'[2]MONE(M)CAPARD'!HA289)","v":9309.832469716197},{"$f":"IF('[2]MONE(M)CAPARD'!HB289=\"\",\"\",'[2]MONE(M)CAPARD'!HB289)","v":5632.5897893761739},"n.d.",{"$f":"IF('[10]II.2.Balance OSD-Activos'!J147=\"\",\"\",'[10]II.2.Balance OSD-Activos'!J147)","v":1100.7629975655641},{"$f":"IF('[10]II.2.Balance OSD-Activos'!N147=\"\",\"\",'[10]II.2.Balance OSD-Activos'!N147)","v":947.85417123600143},{"$f":"IF('[10]II.2.Balance OSD-Activos'!R147=\"\",\"\",'[10]II.2.Balance OSD-Activos'!R147)","v":51642.791166019706},{"$f":"IF('[10]II.2.Balance OSD-Activos'!S147=\"\",\"\",'[10]II.2.Balance OSD-Activos'!S147)","v":51304.466687251042},52743.554163585271,104995.87502207232,183.42285493498505,18.403710203389579,18.055729812206177,16.952292822785786,11.732080934775379,15.044037476411297,-0.39782567102437838,{"$f":"IF('[2]MONE(M)CAPARD'!AS289=\"\",\"\",'[2]MONE(M)CAPARD'!AS289)","v":5},{"$f":"IF('[2]MONE(M)CAPARD'!AT289=\"\",\"\",'[2]MONE(M)CAPARD'!AT289)","v":"n.a."},{"$f":"IF('[2]MONE(M)CAPARD'!AU289=\"\",\"\",'[2]MONE(M)CAPARD'!AU289)","v":5.25},{"$f":"IF('[2]MONE(M)CAPARD'!AV289=\"\",\"\",'[2]MONE(M)CAPARD'!AV289)","v":7},{"$f":"IF('[2]MONE(M)CAPARD'!AW289=\"\",\"\",'[2]MONE(M)CAPARD'!AW289)","v":"n.a."},{"$f":"IF('[2]MONE(M)CAPARD'!AX289=\"\",\"\",'[2]MONE(M)CAPARD'!AX289)","v":5},{"$f":"IF('[2]MONE(M)CAPARD'!AY289=\"\",\"\",'[2]MONE(M)CAPARD'!AY289)","v":"n.a."},{"$f":"IF('[2]FISCAL(M)'!$K289=\"\",\"\",'[2]FISCAL(M)'!$K289)","v":-734.7293760926384},{"$f":"IF('[2]FISCAL(M)'!$L289=\"\",\"\",'[2]FISCAL(M)'!$L289)","v":-1136.5874541326391},{"$f":"IF('[2]FISCAL(M)'!$AY289=\"\",\"\",'[2]FISCAL(M)'!$AY289)","v":92526.510073356651},{"$f":"IF('[2]FISCAL(M)'!$BI289=\"\",\"\",'[2]FISCAL(M)'!$BI289)","v":47557.953773356647},{"$f":"IF('[2]FISCAL(M)'!$BS289=\"\",\"\",'[2]FISCAL(M)'!$BS289)","v":44968.556299999997},{"$f":"IF('[2]FISCAL(M)'!$AZ289=\"\",\"\",'[2]FISCAL(M)'!$AZ289)","v":108044.85435738665},{"$f":"IF('[2]FISCAL(M)'!$BJ289=\"\",\"\",'[2]FISCAL(M)'!$BJ289)","v":51087.366461826656},{"$f":"IF('[2]FISCAL(M)'!$BT289=\"\",\"\",'[2]FISCAL(M)'!$BT289)","v":56957.48789556},{"$f":"IF('[3]MONE(M)'!$AO289=\"\",\"\",'[3]MONE(M)'!$AO289)","v":12322039.081105549},{"$f":"IF('[4]MONE(M)'!$AO289=\"\",\"\",'[4]MONE(M)'!$AO289)","v":9592.0586392201403},{"$f":"IF('[5]MONE(M)'!$AO289=\"\",\"\",'[5]MONE(M)'!$AO289)","v":135454.25352682572},{"$f":"+'[1]MONE(M)'!$AO289","v":189932.39471495806},{"$f":"IF('[6]MONE(M)'!$AO289=\"\",\"\",'[6]MONE(M)'!$AO289)","v":69545.854347417218},{"$f":"IF('[7]MONE(M)'!$AO289=\"\",\"\",'[7]MONE(M)'!$AO289)","v":529715.02408700006},{"$f":"IF('[8]MONE(M)'!$AO289=\"\",\"\",'[8]MONE(M)'!$AO289)","v":31825.219003119993},12.822594625943996,5.3527616169467995,34.108020768899962,13.571329087833451,28.070876081166098,8.5420112477957666,18.851597996525136,{"$f":"IF('[2]FISCAL(M)'!$K289=\"\",\"\",'[2]FISCAL(M)'!$K289)","v":-734.7293760926384},{"$f":"+'[2]REAL(A)'!$AO$33","v":218144.2130524345},-0.33680901538104713,{"$f":"IF('[2]FISCAL(M)'!$L289=\"\",\"\",'[2]FISCAL(M)'!$L289)","v":-1136.5874541326391},{"$f":"+'[2]REAL(A)'!$AP$33","v":263744.20305243449},-0.43094310357474525,104281.69032846826,{"$f":"'[2]Gráfico REM'!BG283","v":21485.954685253106},{"$f":"'[2]Gráfico REM'!BH283","v":77088.742706551886},{"$f":"'[2]Gráfico REM'!BI283","v":5706.9929366632732},11.56450882934994,3.3376550470592292,14.247980888145095,9.6405758510118122,159653.78646878825,{"$f":"'[2]Gráfico REM'!BK283","v":23391.319287643106},{"$f":"'[2]Gráfico REM'!BL283","v":108913.96170967189},{"$f":"'[2]Gráfico REM'!BM283","v":27348.505471473276},14.819889939289155,5.6628668992083853,15.555879450637145,20.705276364563161]
[2013,"mayo ","2013-mayo ",{"$f":"IF('[2]REAL IPC(M)'!$AL290=\"\",\"\",+'[2]REAL IPC(M)'!$AL290)","v":4.4206717533233686},{"$f":"IF('[2]REAL IPC(M)'!$BE290=\"\",\"\",+'[2]REAL IPC(M)'!$BE290)","v":4.0854390208641123},{"$f":"IF('[2]REAL IPC(M)'!$AM290=\"\",\"\",+'[2]REAL IPC(M)'!$AM290)","v":4.3324143363528744},{"$f":"IF('[2]REAL IPC(M)'!$BI290=\"\",\"\",+'[2]REAL IPC(M)'!$BI290)","v":4.1006153870966955},{"$f":"IF('[2]REAL IMAE(M)'!BJ290=\"\",\"\",'[2]REAL IMAE(M)'!BJ290)","v":3.7294152714054007},{"$f":"IF('[2]REAL IMAE(M)'!BK290=\"\",\"\",'[2]REAL IMAE(M)'!BK290)","v":4.0790854522318565},{"$f":"IF('[2]REAL IMAE(M)'!BN290=\"\",\"\",'[2]REAL IMAE(M)'!BN290)","v":4.2311248734577589},{"$f":"IF('[2]REAL IMAE(M)'!BO290=\"\",\"\",'[2]REAL IMAE(M)'!BO290)","v":4.744943341467045},{"$f":"IF('[2]EXT RIN(M)'!$K290=\"\",\"\",'[2]EXT RIN(M)'!$K290)","v":26830.963498782785},"",{"$f":"IF('[2]EXT RIN(M)'!$L290=\"\",\"\",'[2]EXT RIN(M)'!$L290)","v":29601.338524922787},"",{"$f":"IF('[2]MONE(M)CARD'!EG290=\"\",\"\",'[2]MONE(M)CARD'!EG290)","v":25143.243656943643},{"$f":"IF('[2]MONE(M)CARD'!EK290=\"\",\"\",'[2]MONE(M)CARD'!EK290)","v":42945.076194255395},{"$f":"IF('[2]MONE(M)CARD'!EP290=\"\",\"\",'[2]MONE(M)CARD'!EP290)","v":24754.677922077957},{"$f":"IF('[2]MONE(M)CARD'!ES290=\"\",\"\",'[2]MONE(M)CARD'!ES290)","v":6.6855880610604324},{"$f":"IF('[2]MONE(M)CARD'!EV290=\"\",\"\",'[2]MONE(M)CARD'!EV290)","v":6.7608873714163131},{"$f":"IF('[2]MONE(M)CARD'!EZ290=\"\",\"\",'[2]MONE(M)CARD'!EZ290)","v":7.2047173276499343},{"$f":"IF('[2]MONE(M)CAPARD'!FC290=\"\",\"\",'[2]MONE(M)CAPARD'!FC290)","v":32228.642167873644},{"$f":"IF('[2]MONE(M)CAPARD'!FG290=\"\",\"\",'[2]MONE(M)CAPARD'!FG290)","v":66014.068073485396},{"$f":"IF('[2]MONE(M)CAPARD'!FL290=\"\",\"\",'[2]MONE(M)CAPARD'!FL290)","v":24754.677922077957},{"$f":"IF('[2]MONE(M)CAPARD'!FO290=\"\",\"\",'[2]MONE(M)CAPARD'!FO290)","v":7.6987131108632978},{"$f":"IF('[2]MONE(M)CAPARD'!FR290=\"\",\"\",'[2]MONE(M)CAPARD'!FR290)","v":7.8861063961324973},{"$f":"IF('[2]MONE(M)CAPARD'!FV290=\"\",\"\",'[2]MONE(M)CAPARD'!FV290)","v":7.9980741404135358},{"$f":"IF('[2]MONE(M)CARD'!FV290=\"\",\"\",'[2]MONE(M)CARD'!FV290)","v":1274.6319880070753},{"$f":"IF('[2]MONE(M)CARD'!GD290=\"\",\"\",'[2]MONE(M)CARD'!GD290)","v":61.988387393946759},{"$f":"IF('[2]MONE(M)CARD'!GE290=\"\",\"\",'[2]MONE(M)CARD'!GE290)","v":8600.3460071878817},25.478886736656015,{"$f":"IF('[9]II.2.Balance OSD-Activos'!J148=\"\",\"\",'[9]II.2.Balance OSD-Activos'!J148)","v":173.35972422733136},{"$f":"IF('[9]II.2.Balance OSD-Activos'!N148=\"\",\"\",'[9]II.2.Balance OSD-Activos'!N148)","v":554.63510788943188},{"$f":"IF('[9]II.2.Balance OSD-Activos'!R148=\"\",\"\",'[9]II.2.Balance OSD-Activos'!R148)","v":35086.513651976617},{"$f":"IF('[9]II.2.Balance OSD-Activos'!S148=\"\",\"\",'[9]II.2.Balance OSD-Activos'!S148)","v":38356.871438772985},35259.873376203948,74171.379922866356,-0.2701611079162225,17.212576347993604,26.478264233731874,17.314187844378282,10.598374712059533,13.756757169586331,-0.14684881211566214,{"$f":"IF('[2]MONE(M)CAPARD'!GS290=\"\",\"\",'[2]MONE(M)CAPARD'!GS290)","v":15029.230882149626},{"$f":"IF('[2]MONE(M)CARD'!HA290=\"\",\"\",'[2]MONE(M)CAPARD'!HA290)","v":9248.1776651678811},{"$f":"IF('[2]MONE(M)CAPARD'!HB290=\"\",\"\",'[2]MONE(M)CAPARD'!HB290)","v":5781.0532169817452},"n.d.",{"$f":"IF('[10]II.2.Balance OSD-Activos'!J148=\"\",\"\",'[10]II.2.Balance OSD-Activos'!J148)","v":1100.1689046273314},{"$f":"IF('[10]II.2.Balance OSD-Activos'!N148=\"\",\"\",'[10]II.2.Balance OSD-Activos'!N148)","v":926.05622398943183},{"$f":"IF('[10]II.2.Balance OSD-Activos'!R148=\"\",\"\",'[10]II.2.Balance OSD-Activos'!R148)","v":52022.264854046618},{"$f":"IF('[10]II.2.Balance OSD-Activos'!S148=\"\",\"\",'[10]II.2.Balance OSD-Activos'!S148)","v":51799.816019522979},53122.433758673949,105848.30600218636,30.739951373619178,17.005813692413984,11.261175101004994,16.746451376002391,11.556839851368172,14.223857771577798,-0.82017970483349956,{"$f":"IF('[2]MONE(M)CAPARD'!AS290=\"\",\"\",'[2]MONE(M)CAPARD'!AS290)","v":5},{"$f":"IF('[2]MONE(M)CAPARD'!AT290=\"\",\"\",'[2]MONE(M)CAPARD'!AT290)","v":"n.a."},{"$f":"IF('[2]MONE(M)CAPARD'!AU290=\"\",\"\",'[2]MONE(M)CAPARD'!AU290)","v":5.25},{"$f":"IF('[2]MONE(M)CAPARD'!AV290=\"\",\"\",'[2]MONE(M)CAPARD'!AV290)","v":7},{"$f":"IF('[2]MONE(M)CAPARD'!AW290=\"\",\"\",'[2]MONE(M)CAPARD'!AW290)","v":"n.a."},{"$f":"IF('[2]MONE(M)CAPARD'!AX290=\"\",\"\",'[2]MONE(M)CAPARD'!AX290)","v":4.25},{"$f":"IF('[2]MONE(M)CAPARD'!AY290=\"\",\"\",'[2]MONE(M)CAPARD'!AY290)","v":"n.a."},{"$f":"IF('[2]FISCAL(M)'!$K290=\"\",\"\",'[2]FISCAL(M)'!$K290)","v":-1520.5133287999674},{"$f":"IF('[2]FISCAL(M)'!$L290=\"\",\"\",'[2]FISCAL(M)'!$L290)","v":-2235.3396366899674},{"$f":"IF('[2]FISCAL(M)'!$AY290=\"\",\"\",'[2]FISCAL(M)'!$AY290)","v":93506.504260116912},{"$f":"IF('[2]FISCAL(M)'!$BI290=\"\",\"\",'[2]FISCAL(M)'!$BI290)","v":47898.678818973851},{"$f":"IF('[2]FISCAL(M)'!$BS290=\"\",\"\",'[2]FISCAL(M)'!$BS290)","v":45607.825441143061},{"$f":"IF('[2]FISCAL(M)'!$AZ290=\"\",\"\",'[2]FISCAL(M)'!$AZ290)","v":108847.70485037692},{"$f":"IF('[2]FISCAL(M)'!$BJ290=\"\",\"\",'[2]FISCAL(M)'!$BJ290)","v":51280.253904063851},{"$f":"IF('[2]FISCAL(M)'!$BT290=\"\",\"\",'[2]FISCAL(M)'!$BT290)","v":57567.450946313067},{"$f":"IF('[3]MONE(M)'!$AO290=\"\",\"\",'[3]MONE(M)'!$AO290)","v":12527759.858086705},{"$f":"IF('[4]MONE(M)'!$AO290=\"\",\"\",'[4]MONE(M)'!$AO290)","v":9606.4954403901374},{"$f":"IF('[5]MONE(M)'!$AO290=\"\",\"\",'[5]MONE(M)'!$AO290)","v":136204.87675849444},{"$f":"+'[1]MONE(M)'!$AO290","v":190900.83864294397},{"$f":"IF('[6]MONE(M)'!$AO290=\"\",\"\",'[6]MONE(M)'!$AO290)","v":70241.341703639599},{"$f":"IF('[7]MONE(M)'!$AO290=\"\",\"\",'[7]MONE(M)'!$AO290)","v":540791.83832665998},{"$f":"IF('[8]MONE(M)'!$AO290=\"\",\"\",'[8]MONE(M)'!$AO290)","v":32157.871341670005},{"$f":"IF(BY283=\"\",\"\",((BY283/BY271)-1)*100)","v":13.616453016724407},5.7972161174515868,32.168513704561086,12.923602147676672,26.018404833293161,11.010717208040631,15.66496267460391,{"$f":"IF('[2]FISCAL(M)'!$K290=\"\",\"\",'[2]FISCAL(M)'!$K290)","v":-1520.5133287999674},{"$f":"+'[2]REAL(A)'!$AO$33","v":218144.2130524345},-0.69702207889167678,{"$f":"IF('[2]FISCAL(M)'!$L290=\"\",\"\",'[2]FISCAL(M)'!$L290)","v":-2235.3396366899674},{"$f":"+'[2]REAL(A)'!$AP$33","v":263744.20305243449},-0.84754076518814092,105469.47793751584,{"$f":"'[2]Gráfico REM'!BG284","v":21775.059068446077},{"$f":"'[2]Gráfico REM'!BH284","v":77844.734269120483},{"$f":"'[2]Gráfico REM'!BI284","v":5849.6845999492771},12.665428859682093,7.1288450570730522,14.400682947642052,11.608486982091026,160857.79334044585,{"$f":"'[2]Gráfico REM'!BK284","v":23629.239060706077},{"$f":"'[2]Gráfico REM'!BL284","v":110002.60561079049},{"$f":"'[2]Gráfico REM'!BM284","v":27225.948668949277},13.896339665630798,8.3732445033001923,14.767411106402207,15.462610998130222]
[2013,"junio ","2013-junio ",{"$f":"IF('[2]REAL IPC(M)'!$AL291=\"\",\"\",+'[2]REAL IPC(M)'!$AL291)","v":4.6573833687357347},{"$f":"IF('[2]REAL IPC(M)'!$BE291=\"\",\"\",+'[2]REAL IPC(M)'!$BE291)","v":4.0243236995749943},{"$f":"IF('[2]REAL IPC(M)'!$AM291=\"\",\"\",+'[2]REAL IPC(M)'!$AM291)","v":4.6092026473369074},{"$f":"IF('[2]REAL IPC(M)'!$BI291=\"\",\"\",+'[2]REAL IPC(M)'!$BI291)","v":4.0325745512990174},{"$f":"IF('[2]REAL IMAE(M)'!BJ291=\"\",\"\",'[2]REAL IMAE(M)'!BJ291)","v":3.1591597008376437},{"$f":"IF('[2]REAL IMAE(M)'!BK291=\"\",\"\",'[2]REAL IMAE(M)'!BK291)","v":4.1059576991230529},{"$f":"IF('[2]REAL IMAE(M)'!BN291=\"\",\"\",'[2]REAL IMAE(M)'!BN291)","v":3.7565517885416844},{"$f":"IF('[2]REAL IMAE(M)'!BO291=\"\",\"\",'[2]REAL IMAE(M)'!BO291)","v":4.7484812840859369},{"$f":"IF('[2]EXT RIN(M)'!$K291=\"\",\"\",'[2]EXT RIN(M)'!$K291)","v":26298.456872426334},"",{"$f":"IF('[2]EXT RIN(M)'!$L291=\"\",\"\",'[2]EXT RIN(M)'!$L291)","v":29088.922058286335},"",{"$f":"IF('[2]MONE(M)CARD'!EG291=\"\",\"\",'[2]MONE(M)CARD'!EG291)","v":25410.483303550016},{"$f":"IF('[2]MONE(M)CARD'!EK291=\"\",\"\",'[2]MONE(M)CARD'!EK291)","v":43161.646967987268},{"$f":"IF('[2]MONE(M)CARD'!EP291=\"\",\"\",'[2]MONE(M)CARD'!EP291)","v":24463.018806677865},{"$f":"IF('[2]MONE(M)CARD'!ES291=\"\",\"\",'[2]MONE(M)CARD'!ES291)","v":6.6588038058438714},{"$f":"IF('[2]MONE(M)CARD'!EV291=\"\",\"\",'[2]MONE(M)CARD'!EV291)","v":6.2874193514659948},{"$f":"IF('[2]MONE(M)CARD'!EZ291=\"\",\"\",'[2]MONE(M)CARD'!EZ291)","v":6.7451811204324752},{"$f":"IF('[2]MONE(M)CAPARD'!FC291=\"\",\"\",'[2]MONE(M)CAPARD'!FC291)","v":32370.918349410018},{"$f":"IF('[2]MONE(M)CAPARD'!FG291=\"\",\"\",'[2]MONE(M)CAPARD'!FG291)","v":66413.435888047272},{"$f":"IF('[2]MONE(M)CAPARD'!FL291=\"\",\"\",'[2]MONE(M)CAPARD'!FL291)","v":24463.018806677865},{"$f":"IF('[2]MONE(M)CAPARD'!FO291=\"\",\"\",'[2]MONE(M)CAPARD'!FO291)","v":6.8412393329252863},{"$f":"IF('[2]MONE(M)CAPARD'!FR291=\"\",\"\",'[2]MONE(M)CAPARD'!FR291)","v":7.1868102313650706},{"$f":"IF('[2]MONE(M)CAPARD'!FV291=\"\",\"\",'[2]MONE(M)CAPARD'!FV291)","v":7.3569659142125321},{"$f":"IF('[2]MONE(M)CARD'!FV291=\"\",\"\",'[2]MONE(M)CARD'!FV291)","v":1199.4018427766036},{"$f":"IF('[2]MONE(M)CARD'!GD291=\"\",\"\",'[2]MONE(M)CARD'!GD291)","v":116.15172000335764},{"$f":"IF('[2]MONE(M)CARD'!GE291=\"\",\"\",'[2]MONE(M)CARD'!GE291)","v":8575.6655766928034},33.323378453730058,{"$f":"IF('[9]II.2.Balance OSD-Activos'!J149=\"\",\"\",'[9]II.2.Balance OSD-Activos'!J149)","v":142.78692679554473},{"$f":"IF('[9]II.2.Balance OSD-Activos'!N149=\"\",\"\",'[9]II.2.Balance OSD-Activos'!N149)","v":588.6675285623204},{"$f":"IF('[9]II.2.Balance OSD-Activos'!R149=\"\",\"\",'[9]II.2.Balance OSD-Activos'!R149)","v":35399.506075643163},{"$f":"IF('[9]II.2.Balance OSD-Activos'!S149=\"\",\"\",'[9]II.2.Balance OSD-Activos'!S149)","v":38565.013167597077},35542.29300243871,74695.9736985981,-17.236079434944596,17.535865838758369,28.596354573234663,17.735385724373408,9.8921586014529375,13.535589154528772,-0.22116801505755923,{"$f":"IF('[2]MONE(M)CAPARD'!GS291=\"\",\"\",'[2]MONE(M)CAPARD'!GS291)","v":15038.927571320932},{"$f":"IF('[2]MONE(M)CARD'!HA291=\"\",\"\",'[2]MONE(M)CAPARD'!HA291)","v":9212.7497163228018},{"$f":"IF('[2]MONE(M)CAPARD'!HB291=\"\",\"\",'[2]MONE(M)CAPARD'!HB291)","v":5826.17785499813},"n.d.",{"$f":"IF('[10]II.2.Balance OSD-Activos'!J149=\"\",\"\",'[10]II.2.Balance OSD-Activos'!J149)","v":1083.3936344455444},{"$f":"IF('[10]II.2.Balance OSD-Activos'!N149=\"\",\"\",'[10]II.2.Balance OSD-Activos'!N149)","v":973.1471041923204},{"$f":"IF('[10]II.2.Balance OSD-Activos'!R149=\"\",\"\",'[10]II.2.Balance OSD-Activos'!R149)","v":52498.515595843164},{"$f":"IF('[10]II.2.Balance OSD-Activos'!S149=\"\",\"\",'[10]II.2.Balance OSD-Activos'!S149)","v":52201.644843237082},53581.909230288707,106756.70117771812,20.805947073158791,16.423043146244254,13.275113927402259,16.33594141224297,11.101724679137103,13.730656933568429,-0.49320083800936843,{"$f":"IF('[2]MONE(M)CAPARD'!AS291=\"\",\"\",'[2]MONE(M)CAPARD'!AS291)","v":4},{"$f":"IF('[2]MONE(M)CAPARD'!AT291=\"\",\"\",'[2]MONE(M)CAPARD'!AT291)","v":"n.a."},{"$f":"IF('[2]MONE(M)CAPARD'!AU291=\"\",\"\",'[2]MONE(M)CAPARD'!AU291)","v":5.25},{"$f":"IF('[2]MONE(M)CAPARD'!AV291=\"\",\"\",'[2]MONE(M)CAPARD'!AV291)","v":7},{"$f":"IF('[2]MONE(M)CAPARD'!AW291=\"\",\"\",'[2]MONE(M)CAPARD'!AW291)","v":"n.a."},{"$f":"IF('[2]MONE(M)CAPARD'!AX291=\"\",\"\",'[2]MONE(M)CAPARD'!AX291)","v":4.25},{"$f":"IF('[2]MONE(M)CAPARD'!AY291=\"\",\"\",'[2]MONE(M)CAPARD'!AY291)","v":"n.a."},{"$f":"IF('[2]FISCAL(M)'!$K291=\"\",\"\",'[2]FISCAL(M)'!$K291)","v":-2449.3076851474757},{"$f":"IF('[2]FISCAL(M)'!$L291=\"\",\"\",'[2]FISCAL(M)'!$L291)","v":-2925.5139329974754},{"$f":"IF('[2]FISCAL(M)'!$AY291=\"\",\"\",'[2]FISCAL(M)'!$AY291)","v":93621.858142077064},{"$f":"IF('[2]FISCAL(M)'!$BI291=\"\",\"\",'[2]FISCAL(M)'!$BI291)","v":48146.108591417928},{"$f":"IF('[2]FISCAL(M)'!$BS291=\"\",\"\",'[2]FISCAL(M)'!$BS291)","v":45475.749550659122},{"$f":"IF('[2]FISCAL(M)'!$AZ291=\"\",\"\",'[2]FISCAL(M)'!$AZ291)","v":109046.39882563706},{"$f":"IF('[2]FISCAL(M)'!$BJ291=\"\",\"\",'[2]FISCAL(M)'!$BJ291)","v":51518.210422687931},{"$f":"IF('[2]FISCAL(M)'!$BT291=\"\",\"\",'[2]FISCAL(M)'!$BT291)","v":57528.188402949134},{"$f":"IF('[3]MONE(M)'!$AO291=\"\",\"\",'[3]MONE(M)'!$AO291)","v":12627381.594313376},{"$f":"IF('[4]MONE(M)'!$AO291=\"\",\"\",'[4]MONE(M)'!$AO291)","v":9727.0155866901387},{"$f":"IF('[5]MONE(M)'!$AO291=\"\",\"\",'[5]MONE(M)'!$AO291)","v":137287.05585908607},{"$f":"+'[1]MONE(M)'!$AO291","v":191692.01044292178},{"$f":"IF('[6]MONE(M)'!$AO291=\"\",\"\",'[6]MONE(M)'!$AO291)","v":70875.445612273004},{"$f":"IF('[7]MONE(M)'!$AO291=\"\",\"\",'[7]MONE(M)'!$AO291)","v":552317.74049143994},{"$f":"IF('[8]MONE(M)'!$AO291=\"\",\"\",'[8]MONE(M)'!$AO291)","v":32525.451862620004},13.053926246137259,6.8273361372162,31.548010640737758,12.888113530213774,24.664378549513199,12.819155045584573,14.387020860572042,{"$f":"IF('[2]FISCAL(M)'!$K291=\"\",\"\",'[2]FISCAL(M)'!$K291)","v":-2449.3076851474757},{"$f":"+'[2]REAL(A)'!$AO$33","v":218144.2130524345},-1.1227928767281783,{"$f":"IF('[2]FISCAL(M)'!$L291=\"\",\"\",'[2]FISCAL(M)'!$L291)","v":-2925.5139329974754},{"$f":"+'[2]REAL(A)'!$AP$33","v":263744.20305243449},-1.1092239750254755,105990.32406802487,{"$f":"'[2]Gráfico REM'!BG285","v":21766.364999370933},{"$f":"'[2]Gráfico REM'!BH285","v":78337.839002422785},{"$f":"'[2]Gráfico REM'!BI285","v":5886.1200662311503},12.453270801053694,7.8261241443558616,13.97467855565977,10.360048226918984,161963.30466804488,{"$f":"'[2]Gráfico REM'!BK285","v":23641.052081390932},{"$f":"'[2]Gráfico REM'!BL285","v":110863.29086504279},{"$f":"'[2]Gráfico REM'!BM285","v":27458.961721611147},14.045675815780069,8.8921491919529139,14.095344479322836,18.672594313251032]
[2013,"julio","2013-julio",{"$f":"IF('[2]REAL IPC(M)'!$AL292=\"\",\"\",+'[2]REAL IPC(M)'!$AL292)","v":5.0043276418286098},{"$f":"IF('[2]REAL IPC(M)'!$BE292=\"\",\"\",+'[2]REAL IPC(M)'!$BE292)","v":3.9619988635369197},{"$f":"IF('[2]REAL IPC(M)'!$AM292=\"\",\"\",+'[2]REAL IPC(M)'!$AM292)","v":4.9074438755415617},{"$f":"IF('[2]REAL IPC(M)'!$BI292=\"\",\"\",+'[2]REAL IPC(M)'!$BI292)","v":3.9629618955654866},{"$f":"IF('[2]REAL IMAE(M)'!BJ292=\"\",\"\",'[2]REAL IMAE(M)'!BJ292)","v":3.5267023933513997},{"$f":"IF('[2]REAL IMAE(M)'!BK292=\"\",\"\",'[2]REAL IMAE(M)'!BK292)","v":4.1341743156401378},{"$f":"IF('[2]REAL IMAE(M)'!BN292=\"\",\"\",'[2]REAL IMAE(M)'!BN292)","v":3.9590673311755031},{"$f":"IF('[2]REAL IMAE(M)'!BO292=\"\",\"\",'[2]REAL IMAE(M)'!BO292)","v":4.7535259497039739},{"$f":"IF('[2]EXT RIN(M)'!$K292=\"\",\"\",'[2]EXT RIN(M)'!$K292)","v":25259.959329278969},"",{"$f":"IF('[2]EXT RIN(M)'!$L292=\"\",\"\",'[2]EXT RIN(M)'!$L292)","v":27994.769473568969},"",{"$f":"IF('[2]MONE(M)CARD'!EG292=\"\",\"\",'[2]MONE(M)CARD'!EG292)","v":25178.252525773707},{"$f":"IF('[2]MONE(M)CARD'!EK292=\"\",\"\",'[2]MONE(M)CARD'!EK292)","v":43383.686805974146},{"$f":"IF('[2]MONE(M)CARD'!EP292=\"\",\"\",'[2]MONE(M)CARD'!EP292)","v":24770.715089932492},{"$f":"IF('[2]MONE(M)CARD'!ES292=\"\",\"\",'[2]MONE(M)CARD'!ES292)","v":7.0946048867662759},{"$f":"IF('[2]MONE(M)CARD'!EV292=\"\",\"\",'[2]MONE(M)CARD'!EV292)","v":6.0078298247222328},{"$f":"IF('[2]MONE(M)CARD'!EZ292=\"\",\"\",'[2]MONE(M)CARD'!EZ292)","v":6.7048611957289062},{"$f":"IF('[2]MONE(M)CAPARD'!FC292=\"\",\"\",'[2]MONE(M)CAPARD'!FC292)","v":32250.258717323708},{"$f":"IF('[2]MONE(M)CAPARD'!FG292=\"\",\"\",'[2]MONE(M)CAPARD'!FG292)","v":66806.965982754147},{"$f":"IF('[2]MONE(M)CAPARD'!FL292=\"\",\"\",'[2]MONE(M)CAPARD'!FL292)","v":24770.715089932477},{"$f":"IF('[2]MONE(M)CAPARD'!FO292=\"\",\"\",'[2]MONE(M)CAPARD'!FO292)","v":7.2506281212106893},{"$f":"IF('[2]MONE(M)CAPARD'!FR292=\"\",\"\",'[2]MONE(M)CAPARD'!FR292)","v":6.9619312989243731},{"$f":"IF('[2]MONE(M)CAPARD'!FV292=\"\",\"\",'[2]MONE(M)CAPARD'!FV292)","v":7.301808319575942},{"$f":"IF('[2]MONE(M)CARD'!FV292=\"\",\"\",'[2]MONE(M)CARD'!FV292)","v":1170.2560145547027},{"$f":"IF('[2]MONE(M)CARD'!GD292=\"\",\"\",'[2]MONE(M)CARD'!GD292)","v":73.77625663089222},{"$f":"IF('[2]MONE(M)CARD'!GE292=\"\",\"\",'[2]MONE(M)CARD'!GE292)","v":8323.5119474874373},30.563456711374638,{"$f":"IF('[9]II.2.Balance OSD-Activos'!J150=\"\",\"\",'[9]II.2.Balance OSD-Activos'!J150)","v":136.7076387158356},{"$f":"IF('[9]II.2.Balance OSD-Activos'!N150=\"\",\"\",'[9]II.2.Balance OSD-Activos'!N150)","v":614.35653000741945},{"$f":"IF('[9]II.2.Balance OSD-Activos'!R150=\"\",\"\",'[9]II.2.Balance OSD-Activos'!R150)","v":35714.576675123404},{"$f":"IF('[9]II.2.Balance OSD-Activos'!S150=\"\",\"\",'[9]II.2.Balance OSD-Activos'!S150)","v":38885.797796918749},35851.284313839242,75351.438640765409,-17.152427047666496,17.642965815270585,38.444559828488778,17.832398077523681,9.9697416630206916,13.6884947500705,0.15290559554172845,{"$f":"IF('[2]MONE(M)CAPARD'!GS292=\"\",\"\",'[2]MONE(M)CAPARD'!GS292)","v":15141.043160075311},{"$f":"IF('[2]MONE(M)CARD'!HA292=\"\",\"\",'[2]MONE(M)CAPARD'!HA292)","v":8954.3178921374365},{"$f":"IF('[2]MONE(M)CAPARD'!HB292=\"\",\"\",'[2]MONE(M)CAPARD'!HB292)","v":6186.7252679378744},"n.d.",{"$f":"IF('[10]II.2.Balance OSD-Activos'!J150=\"\",\"\",'[10]II.2.Balance OSD-Activos'!J150)","v":1104.6780191758355},{"$f":"IF('[10]II.2.Balance OSD-Activos'!N150=\"\",\"\",'[10]II.2.Balance OSD-Activos'!N150)","v":1004.9920014074194},{"$f":"IF('[10]II.2.Balance OSD-Activos'!R150=\"\",\"\",'[10]II.2.Balance OSD-Activos'!R150)","v":53132.812587243403},{"$f":"IF('[10]II.2.Balance OSD-Activos'!S150=\"\",\"\",'[10]II.2.Balance OSD-Activos'!S150)","v":52674.207806318751},54237.49060641924,107916.69041414541,23.971397462314314,16.534585447933736,19.315273293884982,16.389423852814144,11.133584227204206,13.858427666805518,0.12777073323708876,{"$f":"IF('[2]MONE(M)CAPARD'!AS292=\"\",\"\",'[2]MONE(M)CAPARD'!AS292)","v":4},{"$f":"IF('[2]MONE(M)CAPARD'!AT292=\"\",\"\",'[2]MONE(M)CAPARD'!AT292)","v":"n.a."},{"$f":"IF('[2]MONE(M)CAPARD'!AU292=\"\",\"\",'[2]MONE(M)CAPARD'!AU292)","v":5.25},{"$f":"IF('[2]MONE(M)CAPARD'!AV292=\"\",\"\",'[2]MONE(M)CAPARD'!AV292)","v":7},{"$f":"IF('[2]MONE(M)CAPARD'!AW292=\"\",\"\",'[2]MONE(M)CAPARD'!AW292)","v":"n.a."},{"$f":"IF('[2]MONE(M)CAPARD'!AX292=\"\",\"\",'[2]MONE(M)CAPARD'!AX292)","v":4.25},{"$f":"IF('[2]MONE(M)CAPARD'!AY292=\"\",\"\",'[2]MONE(M)CAPARD'!AY292)","v":"n.a."},{"$f":"IF('[2]FISCAL(M)'!$K292=\"\",\"\",'[2]FISCAL(M)'!$K292)","v":-3141.9639379187297},{"$f":"IF('[2]FISCAL(M)'!$L292=\"\",\"\",'[2]FISCAL(M)'!$L292)","v":-3973.4997734387307},{"$f":"IF('[2]FISCAL(M)'!$AY292=\"\",\"\",'[2]FISCAL(M)'!$AY292)","v":93461.408166098248},{"$f":"IF('[2]FISCAL(M)'!$BI292=\"\",\"\",'[2]FISCAL(M)'!$BI292)","v":48361.690089142576},{"$f":"IF('[2]FISCAL(M)'!$BS292=\"\",\"\",'[2]FISCAL(M)'!$BS292)","v":45099.718076955673},{"$f":"IF('[2]FISCAL(M)'!$AZ292=\"\",\"\",'[2]FISCAL(M)'!$AZ292)","v":108971.72312305824},{"$f":"IF('[2]FISCAL(M)'!$BJ292=\"\",\"\",'[2]FISCAL(M)'!$BJ292)","v":51802.109641642572},{"$f":"IF('[2]FISCAL(M)'!$BT292=\"\",\"\",'[2]FISCAL(M)'!$BT292)","v":57169.613481415669},{"$f":"IF('[3]MONE(M)'!$AO292=\"\",\"\",'[3]MONE(M)'!$AO292)","v":12702289.917784672},{"$f":"IF('[4]MONE(M)'!$AO292=\"\",\"\",'[4]MONE(M)'!$AO292)","v":9772.1998249500011},{"$f":"IF('[5]MONE(M)'!$AO292=\"\",\"\",'[5]MONE(M)'!$AO292)","v":139271.76641472339},{"$f":"+'[1]MONE(M)'!$AO292","v":193655.6278970103},{"$f":"IF('[6]MONE(M)'!$AO292=\"\",\"\",'[6]MONE(M)'!$AO292)","v":71281.678856350016},{"$f":"IF('[7]MONE(M)'!$AO292=\"\",\"\",'[7]MONE(M)'!$AO292)","v":555649.09522784001},{"$f":"IF('[8]MONE(M)'!$AO292=\"\",\"\",'[8]MONE(M)'!$AO292)","v":33073.522975320004},12.393023105225831,6.6889579238182728,30.741721841220084,13.516374960978084,23.05294918698193,13.846244309921673,14.568723072189972,{"$f":"IF('[2]FISCAL(M)'!$K292=\"\",\"\",'[2]FISCAL(M)'!$K292)","v":-3141.9639379187297},{"$f":"+'[2]REAL(A)'!$AO$33","v":218144.2130524345},-1.4403150530348967,{"$f":"IF('[2]FISCAL(M)'!$L292=\"\",\"\",'[2]FISCAL(M)'!$L292)","v":-3973.4997734387307},{"$f":"+'[2]REAL(A)'!$AP$33","v":263744.20305243449},-1.5065733113568249,106807.78449382099,{"$f":"'[2]Gráfico REM'!BG286","v":21955.928805048985},{"$f":"'[2]Gráfico REM'!BH286","v":78840.360006540111},{"$f":"'[2]Gráfico REM'!BI286","v":6011.4956822318863},12.843057641708878,8.5922353301754129,13.873054350879821,15.658561031453665,163884.18837191098,{"$f":"'[2]Gráfico REM'!BK286","v":23937.719448728985},{"$f":"'[2]Gráfico REM'!BL286","v":111913.88298186011},{"$f":"'[2]Gráfico REM'!BM286","v":28032.585941321882},15.048293657971623,10.27175138580969,14.07776191494554,23.834810561294152]
[2013,"agosto","2013-agosto",{"$f":"IF('[2]REAL IPC(M)'!$AL293=\"\",\"\",+'[2]REAL IPC(M)'!$AL293)","v":4.7261345852895209},{"$f":"IF('[2]REAL IPC(M)'!$BE293=\"\",\"\",+'[2]REAL IPC(M)'!$BE293)","v":3.8984679508214271},{"$f":"IF('[2]REAL IPC(M)'!$AM293=\"\",\"\",+'[2]REAL IPC(M)'!$AM293)","v":4.6216512611624738},{"$f":"IF('[2]REAL IPC(M)'!$BI293=\"\",\"\",+'[2]REAL IPC(M)'!$BI293)","v":3.8918001349239173},{"$f":"IF('[2]REAL IMAE(M)'!BJ293=\"\",\"\",'[2]REAL IMAE(M)'!BJ293)","v":4.1757601450356896},{"$f":"IF('[2]REAL IMAE(M)'!BK293=\"\",\"\",'[2]REAL IMAE(M)'!BK293)","v":4.1635142656271773},{"$f":"IF('[2]REAL IMAE(M)'!BN293=\"\",\"\",'[2]REAL IMAE(M)'!BN293)","v":4.586682939096165},{"$f":"IF('[2]REAL IMAE(M)'!BO293=\"\",\"\",'[2]REAL IMAE(M)'!BO293)","v":4.7598758796691287},{"$f":"IF('[2]EXT RIN(M)'!$K293=\"\",\"\",'[2]EXT RIN(M)'!$K293)","v":25116.18261788338},"",{"$f":"IF('[2]EXT RIN(M)'!$L293=\"\",\"\",'[2]EXT RIN(M)'!$L293)","v":28009.111272093382},"",{"$f":"IF('[2]MONE(M)CARD'!EG293=\"\",\"\",'[2]MONE(M)CARD'!EG293)","v":25254.158748290778},{"$f":"IF('[2]MONE(M)CARD'!EK293=\"\",\"\",'[2]MONE(M)CARD'!EK293)","v":42865.918601929341},{"$f":"IF('[2]MONE(M)CARD'!EP293=\"\",\"\",'[2]MONE(M)CARD'!EP293)","v":24521.12421014659},{"$f":"IF('[2]MONE(M)CARD'!ES293=\"\",\"\",'[2]MONE(M)CARD'!ES293)","v":7.5147978085974065},{"$f":"IF('[2]MONE(M)CARD'!EV293=\"\",\"\",'[2]MONE(M)CARD'!EV293)","v":4.9671415888349779},{"$f":"IF('[2]MONE(M)CARD'!EZ293=\"\",\"\",'[2]MONE(M)CARD'!EZ293)","v":5.4192496650874},{"$f":"IF('[2]MONE(M)CAPARD'!FC293=\"\",\"\",'[2]MONE(M)CAPARD'!FC293)","v":32406.612810210783},{"$f":"IF('[2]MONE(M)CAPARD'!FG293=\"\",\"\",'[2]MONE(M)CAPARD'!FG293)","v":66411.178417089337},{"$f":"IF('[2]MONE(M)CAPARD'!FL293=\"\",\"\",'[2]MONE(M)CAPARD'!FL293)","v":24521.12421014659},{"$f":"IF('[2]MONE(M)CAPARD'!FO293=\"\",\"\",'[2]MONE(M)CAPARD'!FO293)","v":8.0582241916288275},{"$f":"IF('[2]MONE(M)CAPARD'!FR293=\"\",\"\",'[2]MONE(M)CAPARD'!FR293)","v":6.0110142076332806},{"$f":"IF('[2]MONE(M)CAPARD'!FV293=\"\",\"\",'[2]MONE(M)CAPARD'!FV293)","v":6.146475484074343},{"$f":"IF('[2]MONE(M)CARD'!FV293=\"\",\"\",'[2]MONE(M)CARD'!FV293)","v":1132.3012105182745},{"$f":"IF('[2]MONE(M)CARD'!GD293=\"\",\"\",'[2]MONE(M)CARD'!GD293)","v":85.673864013539713},{"$f":"IF('[2]MONE(M)CARD'!GE293=\"\",\"\",'[2]MONE(M)CARD'!GE293)","v":7944.8246595721293},23.064476943677992,{"$f":"IF('[9]II.2.Balance OSD-Activos'!J151=\"\",\"\",'[9]II.2.Balance OSD-Activos'!J151)","v":133.39160676228695},{"$f":"IF('[9]II.2.Balance OSD-Activos'!N151=\"\",\"\",'[9]II.2.Balance OSD-Activos'!N151)","v":638.55988240758563},{"$f":"IF('[9]II.2.Balance OSD-Activos'!R151=\"\",\"\",'[9]II.2.Balance OSD-Activos'!R151)","v":35947.430251513637},{"$f":"IF('[9]II.2.Balance OSD-Activos'!S151=\"\",\"\",'[9]II.2.Balance OSD-Activos'!S151)","v":38957.612737719435},36080.821858275922,75676.99447840295,-20.828706008439333,{"$f":"IF(OR(AJ286=\"\",AJ274=\"\"),\"\",((AJ286/AJ274)-1)*100)","v":10.352180262520982},42.693111674391339,10.51368952885856,8.8952134684858954,{"$f":"IF(OR(AK286=\"\",AK274=\"\"),\"\",((AK286/AK274)-1)*100)","v":9.8058757471842775},-3.8826190028862229,{"$f":"IF('[2]MONE(M)CAPARD'!GS293=\"\",\"\",'[2]MONE(M)CAPARD'!GS293)","v":14895.999433996707},{"$f":"IF('[2]MONE(M)CARD'!HA293=\"\",\"\",'[2]MONE(M)CAPARD'!HA293)","v":8649.0585270121283},{"$f":"IF('[2]MONE(M)CAPARD'!HB293=\"\",\"\",'[2]MONE(M)CAPARD'!HB293)","v":6246.9409069845788},"n.d.",{"$f":"IF('[10]II.2.Balance OSD-Activos'!J151=\"\",\"\",'[10]II.2.Balance OSD-Activos'!J151)","v":1102.4822965522872},{"$f":"IF('[10]II.2.Balance OSD-Activos'!N151=\"\",\"\",'[10]II.2.Balance OSD-Activos'!N151)","v":1029.5233540975858},{"$f":"IF('[10]II.2.Balance OSD-Activos'!R151=\"\",\"\",'[10]II.2.Balance OSD-Activos'!R151)","v":53507.50779981364},{"$f":"IF('[10]II.2.Balance OSD-Activos'!S151=\"\",\"\",'[10]II.2.Balance OSD-Activos'!S151)","v":52899.467374129439},54609.990096365931,108538.98082459296,{"$f":"IF(OR(AW286=\"\",AW274=\"\"),\"\",((AW286/AW274)-1)*100)","v":23.639205334921609},{"$f":"IF(OR(BA286=\"\",BA274=\"\"),\"\",((BA286/BA274)-1)*100)","v":11.197173072444389},21.398184397950047,10.967089181537371,10.308490212837906,{"$f":"IF(OR(BB286=\"\",BB274=\"\"),\"\",((BB286/BB274)-1)*100)","v":10.850274038662388},-3.0081536281431305,{"$f":"IF('[2]MONE(M)CAPARD'!AS293=\"\",\"\",'[2]MONE(M)CAPARD'!AS293)","v":4},{"$f":"IF('[2]MONE(M)CAPARD'!AT293=\"\",\"\",'[2]MONE(M)CAPARD'!AT293)","v":"n.a."},{"$f":"IF('[2]MONE(M)CAPARD'!AU293=\"\",\"\",'[2]MONE(M)CAPARD'!AU293)","v":5.25},{"$f":"IF('[2]MONE(M)CAPARD'!AV293=\"\",\"\",'[2]MONE(M)CAPARD'!AV293)","v":7},{"$f":"IF('[2]MONE(M)CAPARD'!AW293=\"\",\"\",'[2]MONE(M)CAPARD'!AW293)","v":"n.a."},{"$f":"IF('[2]MONE(M)CAPARD'!AX293=\"\",\"\",'[2]MONE(M)CAPARD'!AX293)","v":6.25},{"$f":"IF('[2]MONE(M)CAPARD'!AY293=\"\",\"\",'[2]MONE(M)CAPARD'!AY293)","v":"n.a."},{"$f":"IF('[2]FISCAL(M)'!$K293=\"\",\"\",'[2]FISCAL(M)'!$K293)","v":-3684.4880334785967},{"$f":"IF('[2]FISCAL(M)'!$L293=\"\",\"\",'[2]FISCAL(M)'!$L293)","v":-4768.3834651569578},{"$f":"IF('[2]FISCAL(M)'!$AY293=\"\",\"\",'[2]FISCAL(M)'!$AY293)","v":93232.740734048435},{"$f":"IF('[2]FISCAL(M)'!$BI293=\"\",\"\",'[2]FISCAL(M)'!$BI293)","v":48540.71779397098},{"$f":"IF('[2]FISCAL(M)'!$BS293=\"\",\"\",'[2]FISCAL(M)'!$BS293)","v":44692.022940077441},{"$f":"IF('[2]FISCAL(M)'!$AZ293=\"\",\"\",'[2]FISCAL(M)'!$AZ293)","v":108997.03414928843},{"$f":"IF('[2]FISCAL(M)'!$BJ293=\"\",\"\",'[2]FISCAL(M)'!$BJ293)","v":52142.561822510994},{"$f":"IF('[2]FISCAL(M)'!$BT293=\"\",\"\",'[2]FISCAL(M)'!$BT293)","v":56854.472326777439},{"$f":"IF('[3]MONE(M)'!$AO293=\"\",\"\",'[3]MONE(M)'!$AO293)","v":12851421.169613333},{"$f":"IF('[4]MONE(M)'!$AO293=\"\",\"\",'[4]MONE(M)'!$AO293)","v":9867.433120670139},{"$f":"IF('[5]MONE(M)'!$AO293=\"\",\"\",'[5]MONE(M)'!$AO293)","v":141398.62937413258},{"$f":"+'[1]MONE(M)'!$AO293","v":195975.00754987061},{"$f":"IF('[6]MONE(M)'!$AO293=\"\",\"\",'[6]MONE(M)'!$AO293)","v":72331.096404735537},{"$f":"IF('[7]MONE(M)'!$AO293=\"\",\"\",'[7]MONE(M)'!$AO293)","v":564716.33763188997},{"$f":"IF('[8]MONE(M)'!$AO293=\"\",\"\",'[8]MONE(M)'!$AO293)","v":33410.488901860008},12.790948493496735,7.4115240131139348,13.803025521758228,13.449850174188072,22.13501016312518,14.967281049158165,13.765231685726764,{"$f":"IF('[2]FISCAL(M)'!$K293=\"\",\"\",'[2]FISCAL(M)'!$K293)","v":-3684.4880334785967},{"$f":"+'[2]REAL(A)'!$AO$33","v":218144.2130524345},-1.6890147952689307,{"$f":"IF('[2]FISCAL(M)'!$L293=\"\",\"\",'[2]FISCAL(M)'!$L293)","v":-4768.3834651569578},{"$f":"+'[2]REAL(A)'!$AP$33","v":263744.20305243449},-1.8079576384884426,{"$f":"+IF(OR(CT286=\"\",+CU286=\"\",+CV286=\"\"),\"\",(CT286+CU286+CV286))","v":106964.13014637728},{"$f":"'[2]Gráfico REM'!BG287","v":21794.95726345935},{"$f":"'[2]Gráfico REM'!BH287","v":79123.905678707146},{"$f":"'[2]Gráfico REM'!BI287","v":6045.2672042107906},{"$f":"IFERROR(+((CS286/CS274)-1)*100,\"\")","v":11.401569969952586},{"$f":"IFERROR(+((CT286/CT274)-1)*100,\"\")","v":15.412293141756606},10.21746378347579,13.135574043535581,{"$f":"+IF(OR(DB286=\"\",+DC286=\"\",+DD286=\"\"),\"\",(DB286+DC286+DD286))","v":163952.60766305731},{"$f":"'[2]Gráfico REM'!BK287","v":23901.409248269349},{"$f":"'[2]Gráfico REM'!BL287","v":112534.39458056715},{"$f":"'[2]Gráfico REM'!BM287","v":27516.803834220791},{"$f":"IFERROR(+((DA286/DA274)-1)*100,\"\")","v":13.499573745992777},{"$f":"IFERROR(+((DB286/DB274)-1)*100,\"\")","v":17.136173795047995},11.247454425058701,20.21034079227908]
[2013,"septiembre","2013-septiembre",{"$f":"IF('[2]REAL IPC(M)'!$AL294=\"\",\"\",+'[2]REAL IPC(M)'!$AL294)","v":4.5167821820730536},{"$f":"IF('[2]REAL IPC(M)'!$BE294=\"\",\"\",+'[2]REAL IPC(M)'!$BE294)","v":3.8337905412465512},{"$f":"IF('[2]REAL IPC(M)'!$AM294=\"\",\"\",+'[2]REAL IPC(M)'!$AM294)","v":4.4461778471138969},{"$f":"IF('[2]REAL IPC(M)'!$BI294=\"\",\"\",+'[2]REAL IPC(M)'!$BI294)","v":3.8191699387574163},{"$f":"IF('[2]REAL IMAE(M)'!BJ294=\"\",\"\",'[2]REAL IMAE(M)'!BJ294)","v":4.6758055851257474},{"$f":"IF('[2]REAL IMAE(M)'!BK294=\"\",\"\",'[2]REAL IMAE(M)'!BK294)","v":4.193722253119625},{"$f":"IF('[2]REAL IMAE(M)'!BN294=\"\",\"\",'[2]REAL IMAE(M)'!BN294)","v":5.7070473332303751},{"$f":"IF('[2]REAL IMAE(M)'!BO294=\"\",\"\",'[2]REAL IMAE(M)'!BO294)","v":4.7672780872251463},{"$f":"IF('[2]EXT RIN(M)'!$K294=\"\",\"\",'[2]EXT RIN(M)'!$K294)","v":24726.64213709188},"",{"$f":"IF('[2]EXT RIN(M)'!$L294=\"\",\"\",'[2]EXT RIN(M)'!$L294)","v":27152.135341421879},"",{"$f":"IF('[2]MONE(M)CARD'!EG294=\"\",\"\",'[2]MONE(M)CARD'!EG294)","v":25275.255221506181},{"$f":"IF('[2]MONE(M)CARD'!EK294=\"\",\"\",'[2]MONE(M)CARD'!EK294)","v":43492.813419893828},{"$f":"IF('[2]MONE(M)CARD'!EP294=\"\",\"\",'[2]MONE(M)CARD'!EP294)","v":24210.791365252095},{"$f":"IF('[2]MONE(M)CARD'!ES294=\"\",\"\",'[2]MONE(M)CARD'!ES294)","v":8.2447357188029322},{"$f":"IF('[2]MONE(M)CARD'!EV294=\"\",\"\",'[2]MONE(M)CARD'!EV294)","v":5.5589848035956013},{"$f":"IF('[2]MONE(M)CARD'!EZ294=\"\",\"\",'[2]MONE(M)CARD'!EZ294)","v":5.581629434679658},{"$f":"IF('[2]MONE(M)CAPARD'!FC294=\"\",\"\",'[2]MONE(M)CAPARD'!FC294)","v":32598.113360396179},{"$f":"IF('[2]MONE(M)CAPARD'!FG294=\"\",\"\",'[2]MONE(M)CAPARD'!FG294)","v":67154.002838373839},{"$f":"IF('[2]MONE(M)CAPARD'!FL294=\"\",\"\",'[2]MONE(M)CAPARD'!FL294)","v":24210.791365252095},{"$f":"IF('[2]MONE(M)CAPARD'!FO294=\"\",\"\",'[2]MONE(M)CAPARD'!FO294)","v":8.7432228989018377},{"$f":"IF('[2]MONE(M)CAPARD'!FR294=\"\",\"\",'[2]MONE(M)CAPARD'!FR294)","v":6.6693160624711423},{"$f":"IF('[2]MONE(M)CAPARD'!FV294=\"\",\"\",'[2]MONE(M)CAPARD'!FV294)","v":6.4679010718097008},{"$f":"IF('[2]MONE(M)CARD'!FV294=\"\",\"\",'[2]MONE(M)CARD'!FV294)","v":1141.0598593022096},{"$f":"IF('[2]MONE(M)CARD'!GD294=\"\",\"\",'[2]MONE(M)CARD'!GD294)","v":173.81801893659085},{"$f":"IF('[2]MONE(M)CARD'!GE294=\"\",\"\",'[2]MONE(M)CARD'!GE294)","v":8066.9889554640731},19.805540727244477,{"$f":"IF('[9]II.2.Balance OSD-Activos'!J152=\"\",\"\",'[9]II.2.Balance OSD-Activos'!J152)","v":131.306216100916},{"$f":"IF('[9]II.2.Balance OSD-Activos'!N152=\"\",\"\",'[9]II.2.Balance OSD-Activos'!N152)","v":653.35652117532254},{"$f":"IF('[9]II.2.Balance OSD-Activos'!R152=\"\",\"\",'[9]II.2.Balance OSD-Activos'!R152)","v":36553.766133382043},{"$f":"IF('[9]II.2.Balance OSD-Activos'!S152=\"\",\"\",'[9]II.2.Balance OSD-Activos'!S152)","v":39388.098676257345},36685.072349482958,76726.527546915633,-20.655151494442702,11.685987327685687,43.361053965556827,11.849753712805921,8.8608530028198693,10.422631916964775,0.61675616978049774,{"$f":"IF('[2]MONE(M)CAPARD'!GS294=\"\",\"\",'[2]MONE(M)CAPARD'!GS294)","v":15110.875794651543},{"$f":"IF('[2]MONE(M)CARD'!HA294=\"\",\"\",'[2]MONE(M)CAPARD'!HA294)","v":8850.9661900540741},{"$f":"IF('[2]MONE(M)CAPARD'!HB294=\"\",\"\",'[2]MONE(M)CAPARD'!HB294)","v":6259.9096045974693},"n.d.",{"$f":"IF('[10]II.2.Balance OSD-Activos'!J152=\"\",\"\",'[10]II.2.Balance OSD-Activos'!J152)","v":1140.3171506809158},{"$f":"IF('[10]II.2.Balance OSD-Activos'!N152=\"\",\"\",'[10]II.2.Balance OSD-Activos'!N152)","v":1091.5746672653227},{"$f":"IF('[10]II.2.Balance OSD-Activos'!R152=\"\",\"\",'[10]II.2.Balance OSD-Activos'!R152)","v":54204.486437882035},{"$f":"IF('[10]II.2.Balance OSD-Activos'!S152=\"\",\"\",'[10]II.2.Balance OSD-Activos'!S152)","v":53465.06765181735},55344.803588562951,109901.44590764563,21.091677907884797,11.351214181738678,25.73866548577324,11.163102218212838,10.202341875044496,10.914748839277255,{"$f":"IF(OR(BH287=\"\",BH286=\"\"),\"\",BH287-BH286)","v":6.4474800614867434E-2},{"$f":"IF('[2]MONE(M)CAPARD'!AS294=\"\",\"\",'[2]MONE(M)CAPARD'!AS294)","v":4},{"$f":"IF('[2]MONE(M)CAPARD'!AT294=\"\",\"\",'[2]MONE(M)CAPARD'!AT294)","v":"n.a."},{"$f":"IF('[2]MONE(M)CAPARD'!AU294=\"\",\"\",'[2]MONE(M)CAPARD'!AU294)","v":5.25},{"$f":"IF('[2]MONE(M)CAPARD'!AV294=\"\",\"\",'[2]MONE(M)CAPARD'!AV294)","v":7},{"$f":"IF('[2]MONE(M)CAPARD'!AW294=\"\",\"\",'[2]MONE(M)CAPARD'!AW294)","v":"n.a."},{"$f":"IF('[2]MONE(M)CAPARD'!AX294=\"\",\"\",'[2]MONE(M)CAPARD'!AX294)","v":6.25},{"$f":"IF('[2]MONE(M)CAPARD'!AY294=\"\",\"\",'[2]MONE(M)CAPARD'!AY294)","v":"n.a."},{"$f":"IF('[2]FISCAL(M)'!$K294=\"\",\"\",'[2]FISCAL(M)'!$K294)","v":-4194.2860005743632},{"$f":"IF('[2]FISCAL(M)'!$L294=\"\",\"\",'[2]FISCAL(M)'!$L294)","v":-5370.4119489043633},{"$f":"IF('[2]FISCAL(M)'!$AY294=\"\",\"\",'[2]FISCAL(M)'!$AY294)","v":93822.559080888372},{"$f":"IF('[2]FISCAL(M)'!$BI294=\"\",\"\",'[2]FISCAL(M)'!$BI294)","v":48846.326200147509},{"$f":"IF('[2]FISCAL(M)'!$BS294=\"\",\"\",'[2]FISCAL(M)'!$BS294)","v":44976.232880740885},{"$f":"IF('[2]FISCAL(M)'!$AZ294=\"\",\"\",'[2]FISCAL(M)'!$AZ294)","v":109766.30507096837},{"$f":"IF('[2]FISCAL(M)'!$BJ294=\"\",\"\",'[2]FISCAL(M)'!$BJ294)","v":52645.45252774749},{"$f":"IF('[2]FISCAL(M)'!$BT294=\"\",\"\",'[2]FISCAL(M)'!$BT294)","v":57120.852543220884},{"$f":"IF('[3]MONE(M)'!$AO294=\"\",\"\",'[3]MONE(M)'!$AO294)","v":12959079.200084295},{"$f":"IF('[4]MONE(M)'!$AO294=\"\",\"\",'[4]MONE(M)'!$AO294)","v":9860.6059330701391},{"$f":"IF('[5]MONE(M)'!$AO294=\"\",\"\",'[5]MONE(M)'!$AO294)","v":142408.2464256993},{"$f":"+'[1]MONE(M)'!$AO294","v":198439.086107718},{"$f":"IF('[6]MONE(M)'!$AO294=\"\",\"\",'[6]MONE(M)'!$AO294)","v":73576.075480810279},{"$f":"IF('[7]MONE(M)'!$AO294=\"\",\"\",'[7]MONE(M)'!$AO294)","v":572767.27826401999},{"$f":"IF('[8]MONE(M)'!$AO294=\"\",\"\",'[8]MONE(M)'!$AO294)","v":33689.777177019998},12.396638561788809,7.1093022634140635,12.948007650078486,12.972565808798752,21.916701226877432,16.022003524533758,12.231295282375655,{"$f":"IF('[2]FISCAL(M)'!$K294=\"\",\"\",'[2]FISCAL(M)'!$K294)","v":-4194.2860005743632},{"$f":"+'[2]REAL(A)'!$AO$33","v":218144.2130524345},-1.9227124762490024,{"$f":"IF('[2]FISCAL(M)'!$L294=\"\",\"\",'[2]FISCAL(M)'!$L294)","v":-5370.4119489043633},{"$f":"+'[2]REAL(A)'!$AP$33","v":263744.20305243449},-2.0362199004755688,{"$f":"+IF(OR(CT287=\"\",+CU287=\"\",+CV287=\"\"),\"\",(CT287+CU287+CV287))","v":107897.5310591403},{"$f":"'[2]Gráfico REM'!BG288","v":21634.418697789897},{"$f":"'[2]Gráfico REM'!BH288","v":80165.685074270994},{"$f":"'[2]Gráfico REM'!BI288","v":6097.4272870794048},11.581578841507124,14.440376526900245,10.610451008484855,14.653892755670883,{"$f":"+IF(OR(DB287=\"\",+DC287=\"\",+DD287=\"\"),\"\",(DB287+DC287+DD287))","v":165041.96262627031},{"$f":"'[2]Gráfico REM'!BK288","v":23852.721527129896},{"$f":"'[2]Gráfico REM'!BL288","v":113855.462251291},{"$f":"'[2]Gráfico REM'!BM288","v":27333.778847849408},{"$f":"IFERROR(+((DA287/DA275)-1)*100,\"\")","v":12.707021726480772},16.372130328766922,11.085160187330922,16.59323892465272]
[2013,"octubre","2013-octubre",{"$f":"IF('[2]REAL IPC(M)'!$AL295=\"\",\"\",+'[2]REAL IPC(M)'!$AL295)","v":4.1112924535633866},{"$f":"IF('[2]REAL IPC(M)'!$BE295=\"\",\"\",+'[2]REAL IPC(M)'!$BE295)","v":3.768077793595026},{"$f":"IF('[2]REAL IPC(M)'!$AM295=\"\",\"\",+'[2]REAL IPC(M)'!$AM295)","v":4.079408330089529},{"$f":"IF('[2]REAL IPC(M)'!$BI295=\"\",\"\",+'[2]REAL IPC(M)'!$BI295)","v":3.7452042538947072},{"$f":"IF('[2]REAL IMAE(M)'!BJ295=\"\",\"\",'[2]REAL IMAE(M)'!BJ295)","v":4.6142361158967304},{"$f":"IF('[2]REAL IMAE(M)'!BK295=\"\",\"\",'[2]REAL IMAE(M)'!BK295)","v":4.2245490778366257},{"$f":"IF('[2]REAL IMAE(M)'!BN295=\"\",\"\",'[2]REAL IMAE(M)'!BN295)","v":5.8762426157146441},{"$f":"IF('[2]REAL IMAE(M)'!BO295=\"\",\"\",'[2]REAL IMAE(M)'!BO295)","v":4.7754712688611978},{"$f":"IF('[2]EXT RIN(M)'!$K295=\"\",\"\",'[2]EXT RIN(M)'!$K295)","v":24843.964482748834},"",{"$f":"IF('[2]EXT RIN(M)'!$L295=\"\",\"\",'[2]EXT RIN(M)'!$L295)","v":27521.688168458833},"",{"$f":"IF('[2]MONE(M)CARD'!EG295=\"\",\"\",'[2]MONE(M)CARD'!EG295)","v":25168.552002177803},{"$f":"IF('[2]MONE(M)CARD'!EK295=\"\",\"\",'[2]MONE(M)CARD'!EK295)","v":43745.538209858321},{"$f":"IF('[2]MONE(M)CARD'!EP295=\"\",\"\",'[2]MONE(M)CARD'!EP295)","v":24455.23708334507},{"$f":"IF('[2]MONE(M)CARD'!ES295=\"\",\"\",'[2]MONE(M)CARD'!ES295)","v":7.7124064348160992},{"$f":"IF('[2]MONE(M)CARD'!EV295=\"\",\"\",'[2]MONE(M)CARD'!EV295)","v":5.7412607490540335},{"$f":"IF('[2]MONE(M)CARD'!EZ295=\"\",\"\",'[2]MONE(M)CARD'!EZ295)","v":5.8398040924618533},{"$f":"IF('[2]MONE(M)CAPARD'!FC295=\"\",\"\",'[2]MONE(M)CAPARD'!FC295)","v":32659.714334367804},{"$f":"IF('[2]MONE(M)CAPARD'!FG295=\"\",\"\",'[2]MONE(M)CAPARD'!FG295)","v":67665.090327028316},{"$f":"IF('[2]MONE(M)CAPARD'!FL295=\"\",\"\",'[2]MONE(M)CAPARD'!FL295)","v":24455.237083345084},{"$f":"IF('[2]MONE(M)CAPARD'!FO295=\"\",\"\",'[2]MONE(M)CAPARD'!FO295)","v":8.3964397397141575},{"$f":"IF('[2]MONE(M)CAPARD'!FR295=\"\",\"\",'[2]MONE(M)CAPARD'!FR295)","v":7.099467763986711},{"$f":"IF('[2]MONE(M)CAPARD'!FV295=\"\",\"\",'[2]MONE(M)CAPARD'!FV295)","v":6.9057820978993156},{"$f":"IF('[2]MONE(M)CARD'!FV295=\"\",\"\",'[2]MONE(M)CARD'!FV295)","v":1118.8763205690464},{"$f":"IF('[2]MONE(M)CARD'!GD295=\"\",\"\",'[2]MONE(M)CARD'!GD295)","v":77.012248750322811},{"$f":"IF('[2]MONE(M)CARD'!GE295=\"\",\"\",'[2]MONE(M)CARD'!GE295)","v":8539.290219291137},{"$f":"IF(AD288=\"\",\"\",((AD288/AD275)-1)*100)","v":28.732359939618625},{"$f":"IF('[9]II.2.Balance OSD-Activos'!J153=\"\",\"\",'[9]II.2.Balance OSD-Activos'!J153)","v":135.64587488221778},{"$f":"IF('[9]II.2.Balance OSD-Activos'!N153=\"\",\"\",'[9]II.2.Balance OSD-Activos'!N153)","v":645.84359514701532},{"$f":"IF('[9]II.2.Balance OSD-Activos'!R153=\"\",\"\",'[9]II.2.Balance OSD-Activos'!R153)","v":37241.844028212487},{"$f":"IF('[9]II.2.Balance OSD-Activos'!S153=\"\",\"\",'[9]II.2.Balance OSD-Activos'!S153)","v":39785.939439143171},37377.489903094705,77809.2729373849,{"$f":"IF(OR(AF288=\"\",AF276=\"\"),\"\",((AF288/AF276)-1)*100)","v":-18.671854606682579},11.83031581451235,37.776694833837631,11.983290127588742,8.5505861426736995,10.298708279134527,{"$f":"IF(OR(AQ288=\"\",AQ287=\"\"),\"\",AQ288-AQ287)","v":-0.12392363783024862},{"$f":"IF('[2]MONE(M)CAPARD'!GS295=\"\",\"\",'[2]MONE(M)CAPARD'!GS295)","v":15313.568087901587},{"$f":"IF('[2]MONE(M)CARD'!HA295=\"\",\"\",'[2]MONE(M)CAPARD'!HA295)","v":9163.9792622011355},{"$f":"IF('[2]MONE(M)CAPARD'!HB295=\"\",\"\",'[2]MONE(M)CAPARD'!HB295)","v":6149.5888257004517},"n.d.",{"$f":"IF('[10]II.2.Balance OSD-Activos'!J153=\"\",\"\",'[10]II.2.Balance OSD-Activos'!J153)","v":1221.1449091422176},{"$f":"IF('[10]II.2.Balance OSD-Activos'!N153=\"\",\"\",'[10]II.2.Balance OSD-Activos'!N153)","v":1082.9637814070154},{"$f":"IF('[10]II.2.Balance OSD-Activos'!R153=\"\",\"\",'[10]II.2.Balance OSD-Activos'!R153)","v":54875.81919974248},{"$f":"IF('[10]II.2.Balance OSD-Activos'!S153=\"\",\"\",'[10]II.2.Balance OSD-Activos'!S153)","v":54031.34513977317},56096.964108884698,111211.27303006488,26.921720625124458,11.018765232734729,25.002445975465704,10.710080434226343,10.071082400250898,10.676372653765419,-0.23837618551183581,{"$f":"IF('[2]MONE(M)CAPARD'!AS295=\"\",\"\",'[2]MONE(M)CAPARD'!AS295)","v":4},{"$f":"IF('[2]MONE(M)CAPARD'!AT295=\"\",\"\",'[2]MONE(M)CAPARD'!AT295)","v":"n.a."},{"$f":"IF('[2]MONE(M)CAPARD'!AU295=\"\",\"\",'[2]MONE(M)CAPARD'!AU295)","v":5},{"$f":"IF('[2]MONE(M)CAPARD'!AV295=\"\",\"\",'[2]MONE(M)CAPARD'!AV295)","v":7},{"$f":"IF('[2]MONE(M)CAPARD'!AW295=\"\",\"\",'[2]MONE(M)CAPARD'!AW295)","v":"n.a."},{"$f":"IF('[2]MONE(M)CAPARD'!AX295=\"\",\"\",'[2]MONE(M)CAPARD'!AX295)","v":6.25},{"$f":"IF('[2]MONE(M)CAPARD'!AY295=\"\",\"\",'[2]MONE(M)CAPARD'!AY295)","v":"n.a."},{"$f":"IF('[2]FISCAL(M)'!$K295=\"\",\"\",'[2]FISCAL(M)'!$K295)","v":-4213.3127212670634},{"$f":"IF('[2]FISCAL(M)'!$L295=\"\",\"\",'[2]FISCAL(M)'!$L295)","v":-5420.8381137570641},{"$f":"IF('[2]FISCAL(M)'!$AY295=\"\",\"\",'[2]FISCAL(M)'!$AY295)","v":95242.993993359647},{"$f":"IF('[2]FISCAL(M)'!$BI295=\"\",\"\",'[2]FISCAL(M)'!$BI295)","v":48701.60836398894},{"$f":"IF('[2]FISCAL(M)'!$BS295=\"\",\"\",'[2]FISCAL(M)'!$BS295)","v":46541.385629370707},{"$f":"IF('[2]FISCAL(M)'!$AZ295=\"\",\"\",'[2]FISCAL(M)'!$AZ295)","v":111331.67290577965},{"$f":"IF('[2]FISCAL(M)'!$BJ295=\"\",\"\",'[2]FISCAL(M)'!$BJ295)","v":52452.607731128934},{"$f":"IF('[2]FISCAL(M)'!$BT295=\"\",\"\",'[2]FISCAL(M)'!$BT295)","v":58879.065174650714},{"$f":"IF('[3]MONE(M)'!$AO295=\"\",\"\",'[3]MONE(M)'!$AO295)","v":13137982.485544669},{"$f":"IF('[4]MONE(M)'!$AO295=\"\",\"\",'[4]MONE(M)'!$AO295)","v":10005.759988781869},{"$f":"IF('[5]MONE(M)'!$AO295=\"\",\"\",'[5]MONE(M)'!$AO295)","v":143795.68885715446},{"$f":"+'[1]MONE(M)'!$AO295","v":204453.3633778583},{"$f":"IF('[6]MONE(M)'!$AO295=\"\",\"\",'[6]MONE(M)'!$AO295)","v":76133.186190912937},{"$f":"IF('[7]MONE(M)'!$AO295=\"\",\"\",'[7]MONE(M)'!$AO295)","v":577769.2080932},{"$f":"IF('[8]MONE(M)'!$AO295=\"\",\"\",'[8]MONE(M)'!$AO295)","v":33947.967127519994},12.248832748387661,7.5100229844768274,12.901375372748024,14.249349370059017,22.480960046968335,15.121675909007969,11.883545944689832,{"$f":"IF('[2]FISCAL(M)'!$K295=\"\",\"\",'[2]FISCAL(M)'!$K295)","v":-4213.3127212670634},{"$f":"+'[2]REAL(A)'!$AO$33","v":218144.2130524345},-1.9314345598772888,{"$f":"IF('[2]FISCAL(M)'!$L295=\"\",\"\",'[2]FISCAL(M)'!$L295)","v":-5420.8381137570641},{"$f":"+'[2]REAL(A)'!$AP$33","v":263744.20305243449},-2.055339245761302,{"$f":"+IF(OR(CT288=\"\",+CU288=\"\",+CV288=\"\"),\"\",(CT288+CU288+CV288))","v":108577.8672243903},{"$f":"'[2]Gráfico REM'!BG289","v":21080.946130068594},{"$f":"'[2]Gráfico REM'!BH289","v":81362.993887817094},{"$f":"'[2]Gráfico REM'!BI289","v":6133.9272065046134},10.999152067822582,12.2246260680547,10.513294690024665,13.35538800358349,{"$f":"+IF(OR(DB288=\"\",+DC288=\"\",+DD288=\"\"),\"\",(DB288+DC288+DD288))","v":163761.61153700031},{"$f":"'[2]Gráfico REM'!BK289","v":23337.650096498593},{"$f":"'[2]Gráfico REM'!BL289","v":115310.96101533709},{"$f":"'[2]Gráfico REM'!BM289","v":25113.00042516461},10.791451261128326,14.180117291097737,10.91320298720262,7.2915423239813926]
[2013,"noviembre","2013-noviembre",{"$f":"IF('[2]REAL IPC(M)'!$AL296=\"\",\"\",+'[2]REAL IPC(M)'!$AL296)","v":3.9705882352941257},{"$f":"IF('[2]REAL IPC(M)'!$BE296=\"\",\"\",+'[2]REAL IPC(M)'!$BE296)","v":3.7014772847149269},{"$f":"IF('[2]REAL IPC(M)'!$AM296=\"\",\"\",+'[2]REAL IPC(M)'!$AM296)","v":3.9556348406111885},{"$f":"IF('[2]REAL IPC(M)'!$BI296=\"\",\"\",+'[2]REAL IPC(M)'!$BI296)","v":3.6700737163295916},{"$f":"IF('[2]REAL IMAE(M)'!BJ296=\"\",\"\",'[2]REAL IMAE(M)'!BJ296)","v":3.8858287256009483},{"$f":"IF('[2]REAL IMAE(M)'!BK296=\"\",\"\",'[2]REAL IMAE(M)'!BK296)","v":4.2557753232783213},{"$f":"IF('[2]REAL IMAE(M)'!BN296=\"\",\"\",'[2]REAL IMAE(M)'!BN296)","v":4.7035189988293702},{"$f":"IF('[2]REAL IMAE(M)'!BO296=\"\",\"\",'[2]REAL IMAE(M)'!BO296)","v":4.7842622077777008},{"$f":"IF('[2]EXT RIN(M)'!$K296=\"\",\"\",'[2]EXT RIN(M)'!$K296)","v":24783.645243309606},"",{"$f":"IF('[2]EXT RIN(M)'!$L296=\"\",\"\",'[2]EXT RIN(M)'!$L296)","v":27931.943184259606},"",{"$f":"IF('[2]MONE(M)CARD'!EG296=\"\",\"\",'[2]MONE(M)CARD'!EG296)","v":25970.007250951265},{"$f":"IF('[2]MONE(M)CARD'!EK296=\"\",\"\",'[2]MONE(M)CARD'!EK296)","v":43372.089749407154},{"$f":"IF('[2]MONE(M)CARD'!EP296=\"\",\"\",'[2]MONE(M)CARD'!EP296)","v":24353.612898818348},{"$f":"IF('[2]MONE(M)CARD'!ES296=\"\",\"\",'[2]MONE(M)CARD'!ES296)","v":6.7782932455001665},{"$f":"IF('[2]MONE(M)CARD'!EV296=\"\",\"\",'[2]MONE(M)CARD'!EV296)","v":6.0739000011096778},{"$f":"IF('[2]MONE(M)CARD'!EZ296=\"\",\"\",'[2]MONE(M)CARD'!EZ296)","v":6.0969118318403792},{"$f":"IF('[2]MONE(M)CAPARD'!FC296=\"\",\"\",'[2]MONE(M)CAPARD'!FC296)","v":32313.92985597127},{"$f":"IF('[2]MONE(M)CAPARD'!FG296=\"\",\"\",'[2]MONE(M)CAPARD'!FG296)","v":63952.930409647153},{"$f":"IF('[2]MONE(M)CAPARD'!FL296=\"\",\"\",'[2]MONE(M)CAPARD'!FL296)","v":24353.612898818348},{"$f":"IF('[2]MONE(M)CAPARD'!FO296=\"\",\"\",'[2]MONE(M)CAPARD'!FO296)","v":3.5184055207844178},{"$f":"IF('[2]MONE(M)CAPARD'!FR296=\"\",\"\",'[2]MONE(M)CAPARD'!FR296)","v":1.7766078784668959},{"$f":"IF('[2]MONE(M)CAPARD'!FV296=\"\",\"\",'[2]MONE(M)CAPARD'!FV296)","v":2.6326867052894887},{"$f":"IF('[2]MONE(M)CARD'!FV296=\"\",\"\",'[2]MONE(M)CARD'!FV296)","v":1389.8084607167725},{"$f":"IF('[2]MONE(M)CARD'!GD296=\"\",\"\",'[2]MONE(M)CARD'!GD296)","v":119.39730045242997},{"$f":"IF('[2]MONE(M)CARD'!GE296=\"\",\"\",'[2]MONE(M)CARD'!GE296)","v":8293.7901476391817},22.017757939211926,{"$f":"IF('[9]II.2.Balance OSD-Activos'!J154=\"\",\"\",'[9]II.2.Balance OSD-Activos'!J154)","v":140.97061970659439},{"$f":"IF('[9]II.2.Balance OSD-Activos'!N154=\"\",\"\",'[9]II.2.Balance OSD-Activos'!N154)","v":689.64867456231468},{"$f":"IF('[9]II.2.Balance OSD-Activos'!R154=\"\",\"\",'[9]II.2.Balance OSD-Activos'!R154)","v":37837.652178961893},{"$f":"IF('[9]II.2.Balance OSD-Activos'!S154=\"\",\"\",'[9]II.2.Balance OSD-Activos'!S154)","v":40474.913994088216},37978.62279866849,79143.18546731901,-17.43510379147455,12.252530883771007,43.068303391564754,12.403109364572696,9.1170911104823116,10.831846687492863,0.53313840835833659,{"$f":"IF('[2]MONE(M)CAPARD'!GS296=\"\",\"\",'[2]MONE(M)CAPARD'!GS296)","v":15335.521965082073},{"$f":"IF('[2]MONE(M)CARD'!HA296=\"\",\"\",'[2]MONE(M)CAPARD'!HA296)","v":8939.4792544791835},{"$f":"IF('[2]MONE(M)CAPARD'!HB296=\"\",\"\",'[2]MONE(M)CAPARD'!HB296)","v":6396.0427106028892},"n.d.",{"$f":"IF('[10]II.2.Balance OSD-Activos'!J154=\"\",\"\",'[10]II.2.Balance OSD-Activos'!J154)","v":1393.0622591665947},{"$f":"IF('[10]II.2.Balance OSD-Activos'!N154=\"\",\"\",'[10]II.2.Balance OSD-Activos'!N154)","v":1118.0745259423147},{"$f":"IF('[10]II.2.Balance OSD-Activos'!R154=\"\",\"\",'[10]II.2.Balance OSD-Activos'!R154)","v":53070.225317281896},{"$f":"IF('[10]II.2.Balance OSD-Activos'!S154=\"\",\"\",'[10]II.2.Balance OSD-Activos'!S154)","v":52478.921630908226},54463.287576448492,108060.28373329903,42.619976953575822,6.44189147079266,28.214551693221335,5.7378225460928078,5.6518958292448573,6.2427600866461042,-4.4336125671193152,{"$f":"IF('[2]MONE(M)CAPARD'!AS296=\"\",\"\",'[2]MONE(M)CAPARD'!AS296)","v":4},{"$f":"IF('[2]MONE(M)CAPARD'!AT296=\"\",\"\",'[2]MONE(M)CAPARD'!AT296)","v":"n.a."},{"$f":"IF('[2]MONE(M)CAPARD'!AU296=\"\",\"\",'[2]MONE(M)CAPARD'!AU296)","v":5},{"$f":"IF('[2]MONE(M)CAPARD'!AV296=\"\",\"\",'[2]MONE(M)CAPARD'!AV296)","v":7},{"$f":"IF('[2]MONE(M)CAPARD'!AW296=\"\",\"\",'[2]MONE(M)CAPARD'!AW296)","v":"n.a."},{"$f":"IF('[2]MONE(M)CAPARD'!AX296=\"\",\"\",'[2]MONE(M)CAPARD'!AX296)","v":6.25},{"$f":"IF('[2]MONE(M)CAPARD'!AY296=\"\",\"\",'[2]MONE(M)CAPARD'!AY296)","v":"n.a."},{"$f":"IF('[2]FISCAL(M)'!$K296=\"\",\"\",'[2]FISCAL(M)'!$K296)","v":-5126.2661934168545},{"$f":"IF('[2]FISCAL(M)'!$L296=\"\",\"\",'[2]FISCAL(M)'!$L296)","v":-5905.9604383168562},{"$f":"IF('[2]FISCAL(M)'!$AY296=\"\",\"\",'[2]FISCAL(M)'!$AY296)","v":95487.284040610859},{"$f":"IF('[2]FISCAL(M)'!$BI296=\"\",\"\",'[2]FISCAL(M)'!$BI296)","v":49062.763540729968},{"$f":"IF('[2]FISCAL(M)'!$BS296=\"\",\"\",'[2]FISCAL(M)'!$BS296)","v":46424.520499880891},{"$f":"IF('[2]FISCAL(M)'!$AZ296=\"\",\"\",'[2]FISCAL(M)'!$AZ296)","v":111557.16681473085},{"$f":"IF('[2]FISCAL(M)'!$BJ296=\"\",\"\",'[2]FISCAL(M)'!$BJ296)","v":52911.202304489969},{"$f":"IF('[2]FISCAL(M)'!$BT296=\"\",\"\",'[2]FISCAL(M)'!$BT296)","v":58645.964510240883},{"$f":"IF('[3]MONE(M)'!$AO296=\"\",\"\",'[3]MONE(M)'!$AO296)","v":13339310.96530639},{"$f":"IF('[4]MONE(M)'!$AO296=\"\",\"\",'[4]MONE(M)'!$AO296)","v":10166.939819950137},{"$f":"IF('[5]MONE(M)'!$AO296=\"\",\"\",'[5]MONE(M)'!$AO296)","v":145016.95468086735},{"$f":"+'[1]MONE(M)'!$AO296","v":207259.20307725042},{"$f":"IF('[6]MONE(M)'!$AO296=\"\",\"\",'[6]MONE(M)'!$AO296)","v":78111.581153822539},{"$f":"IF('[7]MONE(M)'!$AO296=\"\",\"\",'[7]MONE(M)'!$AO296)","v":590296.91091129999},{"$f":"IF('[8]MONE(M)'!$AO296=\"\",\"\",'[8]MONE(M)'!$AO296)","v":29382.778042769998},13.208663820386501,8.1171019584728619,11.953187365533546,13.723508226053728,21.874068722022024,15.238444749241165,-4.3446684991081614,{"$f":"IF('[2]FISCAL(M)'!$K296=\"\",\"\",'[2]FISCAL(M)'!$K296)","v":-5126.2661934168545},{"$f":"+'[2]REAL(A)'!$AO$33","v":218144.2130524345},-2.3499437008602531,{"$f":"IF('[2]FISCAL(M)'!$L296=\"\",\"\",'[2]FISCAL(M)'!$L296)","v":-5905.9604383168562},{"$f":"+'[2]REAL(A)'!$AP$33","v":263744.20305243449},-2.2392759234001831,110274.45485619409,{"$f":"'[2]Gráfico REM'!BG290","v":21440.658678484819},{"$f":"'[2]Gráfico REM'!BH290","v":82649.988985625838},{"$f":"'[2]Gráfico REM'!BI290","v":6183.8071920834391},11.920738827082221,14.548931260849018,11.178861704780108,13.009528955932058,159939.52888657412,{"$f":"'[2]Gráfico REM'!BK290","v":23365.020259584817},{"$f":"'[2]Gráfico REM'!BL290","v":112032.76702839584},{"$f":"'[2]Gráfico REM'!BM290","v":24541.741598593442},7.0047163622889874,14.5057390423055,6.6399770648282841,2.2253432964532083]
[2013,"diciembre","2013-diciembre",{"$f":"IF('[2]REAL IPC(M)'!$AL297=\"\",\"\",+'[2]REAL IPC(M)'!$AL297)","v":3.8431916204559435},{"$f":"IF('[2]REAL IPC(M)'!$BE297=\"\",\"\",+'[2]REAL IPC(M)'!$BE297)","v":3.6341574785455633},{"$f":"IF('[2]REAL IPC(M)'!$AM297=\"\",\"\",+'[2]REAL IPC(M)'!$AM297)","v":3.8286375916634308},{"$f":"IF('[2]REAL IPC(M)'!$BI297=\"\",\"\",+'[2]REAL IPC(M)'!$BI297)","v":3.5939714871260797},{"$f":"IF('[2]REAL IMAE(M)'!BJ297=\"\",\"\",'[2]REAL IMAE(M)'!BJ297)","v":3.7307860620107158},{"$f":"IF('[2]REAL IMAE(M)'!BK297=\"\",\"\",'[2]REAL IMAE(M)'!BK297)","v":4.2872086965088929},{"$f":"IF('[2]REAL IMAE(M)'!BN297=\"\",\"\",'[2]REAL IMAE(M)'!BN297)","v":4.1328237346327956},{"$f":"IF('[2]REAL IMAE(M)'!BO297=\"\",\"\",'[2]REAL IMAE(M)'!BO297)","v":4.7935357336808426},{"$f":"IF('[2]EXT RIN(M)'!$K297=\"\",\"\",'[2]EXT RIN(M)'!$K297)","v":26606.603817405314},26606.603817405314,{"$f":"IF('[2]EXT RIN(M)'!$L297=\"\",\"\",'[2]EXT RIN(M)'!$L297)","v":29355.255865725314},29355.255865725314,{"$f":"IF('[2]MONE(M)CARD'!EG297=\"\",\"\",'[2]MONE(M)CARD'!EG297)","v":28027.183861024743},{"$f":"IF('[2]MONE(M)CARD'!EK297=\"\",\"\",'[2]MONE(M)CARD'!EK297)","v":44317.645721954388},{"$f":"IF('[2]MONE(M)CARD'!EP297=\"\",\"\",'[2]MONE(M)CARD'!EP297)","v":24660.321508079927},{"$f":"IF('[2]MONE(M)CARD'!ES297=\"\",\"\",'[2]MONE(M)CARD'!ES297)","v":8.0134506589567778},{"$f":"IF('[2]MONE(M)CARD'!EV297=\"\",\"\",'[2]MONE(M)CARD'!EV297)","v":8.1700013799598672},{"$f":"IF('[2]MONE(M)CARD'!EZ297=\"\",\"\",'[2]MONE(M)CARD'!EZ297)","v":8.1319288803702641},{"$f":"IF('[2]MONE(M)CAPARD'!FC297=\"\",\"\",'[2]MONE(M)CAPARD'!FC297)","v":34373.687086994745},{"$f":"IF('[2]MONE(M)CAPARD'!FG297=\"\",\"\",'[2]MONE(M)CAPARD'!FG297)","v":63779.123446354395},{"$f":"IF('[2]MONE(M)CAPARD'!FL297=\"\",\"\",'[2]MONE(M)CAPARD'!FL297)","v":24660.321508079927},{"$f":"IF('[2]MONE(M)CAPARD'!FO297=\"\",\"\",'[2]MONE(M)CAPARD'!FO297)","v":4.1087281417061305},{"$f":"IF('[2]MONE(M)CAPARD'!FR297=\"\",\"\",'[2]MONE(M)CAPARD'!FR297)","v":2.1355402607607044},{"$f":"IF('[2]MONE(M)CAPARD'!FV297=\"\",\"\",'[2]MONE(M)CAPARD'!FV297)","v":3.2651737893330646},{"$f":"IF('[2]MONE(M)CARD'!FV297=\"\",\"\",'[2]MONE(M)CARD'!FV297)","v":811.76493106394366},{"$f":"IF('[2]MONE(M)CARD'!GD297=\"\",\"\",'[2]MONE(M)CARD'!GD297)","v":131.72594078272627},{"$f":"IF('[2]MONE(M)CARD'!GE297=\"\",\"\",'[2]MONE(M)CARD'!GE297)","v":7419.2279258074213},8.4454965009814309,{"$f":"IF('[9]II.2.Balance OSD-Activos'!J155=\"\",\"\",'[9]II.2.Balance OSD-Activos'!J155)","v":136.89522185579179},{"$f":"IF('[9]II.2.Balance OSD-Activos'!N155=\"\",\"\",'[9]II.2.Balance OSD-Activos'!N155)","v":698.26307548474256},{"$f":"IF('[9]II.2.Balance OSD-Activos'!R155=\"\",\"\",'[9]II.2.Balance OSD-Activos'!R155)","v":38422.248138562209},{"$f":"IF('[9]II.2.Balance OSD-Activos'!S155=\"\",\"\",'[9]II.2.Balance OSD-Activos'!S155)","v":40755.203249960381},38559.143360417998,80012.609685863121,-21.869915779674553,11.356023671251481,29.237825759849944,11.525004230356807,10.399978057298153,11.000435438114998,0.16858875062213485,{"$f":"IF('[2]MONE(M)CAPARD'!GS297=\"\",\"\",'[2]MONE(M)CAPARD'!GS297)","v":15134.749325465211},{"$f":"IF('[2]MONE(M)CARD'!HA297=\"\",\"\",'[2]MONE(M)CAPARD'!HA297)","v":8065.2690594474207},{"$f":"IF('[2]MONE(M)CAPARD'!HB297=\"\",\"\",'[2]MONE(M)CAPARD'!HB297)","v":7069.4802660177902},"n.d.",{"$f":"IF('[10]II.2.Balance OSD-Activos'!J155=\"\",\"\",'[10]II.2.Balance OSD-Activos'!J155)","v":1430.0296368257921},{"$f":"IF('[10]II.2.Balance OSD-Activos'!N155=\"\",\"\",'[10]II.2.Balance OSD-Activos'!N155)","v":1120.9899206147425},{"$f":"IF('[10]II.2.Balance OSD-Activos'!R155=\"\",\"\",'[10]II.2.Balance OSD-Activos'!R155)","v":52768.851292302206},{"$f":"IF('[10]II.2.Balance OSD-Activos'!S155=\"\",\"\",'[10]II.2.Balance OSD-Activos'!S155)","v":52119.046002950381},54198.880929127998,107438.91685269313,45.86637542633887,4.9907905413536957,22.213667648389436,4.1994894269834049,4.9405376489201958,5.1209372073337756,-1.1218228793123286,{"$f":"IF('[2]MONE(M)CAPARD'!AS297=\"\",\"\",'[2]MONE(M)CAPARD'!AS297)","v":3.75},{"$f":"IF('[2]MONE(M)CAPARD'!AT297=\"\",\"\",'[2]MONE(M)CAPARD'!AT297)","v":"n.a."},{"$f":"IF('[2]MONE(M)CAPARD'!AU297=\"\",\"\",'[2]MONE(M)CAPARD'!AU297)","v":5},{"$f":"IF('[2]MONE(M)CAPARD'!AV297=\"\",\"\",'[2]MONE(M)CAPARD'!AV297)","v":7},{"$f":"IF('[2]MONE(M)CAPARD'!AW297=\"\",\"\",'[2]MONE(M)CAPARD'!AW297)","v":"n.a."},{"$f":"IF('[2]MONE(M)CAPARD'!AX297=\"\",\"\",'[2]MONE(M)CAPARD'!AX297)","v":6.25},{"$f":"IF('[2]MONE(M)CAPARD'!AY297=\"\",\"\",'[2]MONE(M)CAPARD'!AY297)","v":"n.a."},{"$f":"IF('[2]FISCAL(M)'!$K297=\"\",\"\",'[2]FISCAL(M)'!$K297)","v":-7769.6732570556997},{"$f":"IF('[2]FISCAL(M)'!$L297=\"\",\"\",'[2]FISCAL(M)'!$L297)","v":-7769.6685659357017},{"$f":"IF('[2]FISCAL(M)'!$AY297=\"\",\"\",'[2]FISCAL(M)'!$AY297)","v":97675.11414806523},{"$f":"IF('[2]FISCAL(M)'!$BI297=\"\",\"\",'[2]FISCAL(M)'!$BI297)","v":49240.560785879803},{"$f":"IF('[2]FISCAL(M)'!$BS297=\"\",\"\",'[2]FISCAL(M)'!$BS297)","v":48434.553362185427},{"$f":"IF('[2]FISCAL(M)'!$AZ297=\"\",\"\",'[2]FISCAL(M)'!$AZ297)","v":113493.16908971523},{"$f":"IF('[2]FISCAL(M)'!$BJ297=\"\",\"\",'[2]FISCAL(M)'!$BJ297)","v":52827.454989289807},{"$f":"IF('[2]FISCAL(M)'!$BT297=\"\",\"\",'[2]FISCAL(M)'!$BT297)","v":60665.714100425415},{"$f":"IF('[3]MONE(M)'!$AO297=\"\",\"\",'[3]MONE(M)'!$AO297)","v":13538153.534550853},{"$f":"IF('[4]MONE(M)'!$AO297=\"\",\"\",'[4]MONE(M)'!$AO297)","v":10221.262812630139},{"$f":"IF('[5]MONE(M)'!$AO297=\"\",\"\",'[5]MONE(M)'!$AO297)","v":146330.10747628048},{"$f":"+'[1]MONE(M)'!$AO297","v":210063.1984479914},{"$f":"IF('[6]MONE(M)'!$AO297=\"\",\"\",'[6]MONE(M)'!$AO297)","v":79746.703067121096},{"$f":"IF('[7]MONE(M)'!$AO297=\"\",\"\",'[7]MONE(M)'!$AO297)","v":596921.87667924003},{"$f":"IF('[8]MONE(M)'!$AO297=\"\",\"\",'[8]MONE(M)'!$AO297)","v":27903.680095200001},13.086229132800042,7.9849470537860512,10.166199221924632,13.576858844290228,20.247758493291013,15.238610543426368,-8.6862357311441318,{"$f":"IF('[2]FISCAL(M)'!$K297=\"\",\"\",'[2]FISCAL(M)'!$K297)","v":-7769.6732570556997},{"$f":"+'[2]REAL(A)'!$AO$33","v":218144.2130524345},-3.5617141286201033,{"$f":"IF('[2]FISCAL(M)'!$L297=\"\",\"\",'[2]FISCAL(M)'!$L297)","v":-7769.6685659357017},{"$f":"+'[2]REAL(A)'!$AP$33","v":263744.20305243449},-2.9459106497938947,110931.66517541307,{"$f":"'[2]Gráfico REM'!BG291","v":21353.396274068877},{"$f":"'[2]Gráfico REM'!BH291","v":83566.885584794465},{"$f":"'[2]Gráfico REM'!BI291","v":6011.3833165497381},11.699238126658029,14.160538035227299,11.425365208541582,7.154173947469622,158850.41645498309,{"$f":"'[2]Gráfico REM'!BK291","v":23307.180178078877},{"$f":"'[2]Gráfico REM'!BL291","v":111470.56567999447},{"$f":"'[2]Gráfico REM'!BM291","v":24072.670596909731},5.2752568693435364,13.824630605125222,5.6031462593253423,-3.1594767890008701]
[2014,"enero","2014-enero",{"$f":"IF('[2]REAL IPC(M)'!$AL298=\"\",\"\",+'[2]REAL IPC(M)'!$AL298)","v":3.470368392952472},{"$f":"IF('[2]REAL IPC(M)'!$BE298=\"\",\"\",+'[2]REAL IPC(M)'!$BE298)","v":3.5662998873432494},{"$f":"IF('[2]REAL IPC(M)'!$AM298=\"\",\"\",+'[2]REAL IPC(M)'!$AM298)","v":3.4567145916182485},{"$f":"IF('[2]REAL IPC(M)'!$BI298=\"\",\"\",+'[2]REAL IPC(M)'!$BI298)","v":3.5171064586417833},{"$f":"IF('[2]REAL IMAE(M)'!BJ298=\"\",\"\",'[2]REAL IMAE(M)'!BJ298)","v":4.42110550650614},{"$f":"IF('[2]REAL IMAE(M)'!BK298=\"\",\"\",'[2]REAL IMAE(M)'!BK298)","v":4.3186394041607734},{"$f":"IF('[2]REAL IMAE(M)'!BN298=\"\",\"\",'[2]REAL IMAE(M)'!BN298)","v":4.815199663459091},{"$f":"IF('[2]REAL IMAE(M)'!BO298=\"\",\"\",'[2]REAL IMAE(M)'!BO298)","v":4.8031727625085896},{"$f":"IF('[2]EXT RIN(M)'!$K298=\"\",\"\",'[2]EXT RIN(M)'!$K298)","v":25728.181331847805},"",{"$f":"IF('[2]EXT RIN(M)'!$L298=\"\",\"\",'[2]EXT RIN(M)'!$L298)","v":28074.358038367805},"",{"$f":"IF('[2]MONE(M)CARD'!EG298=\"\",\"\",'[2]MONE(M)CARD'!EG298)","v":27295.898183601814},{"$f":"IF('[2]MONE(M)CARD'!EK298=\"\",\"\",'[2]MONE(M)CARD'!EK298)","v":44081.734057398768},{"$f":"IF('[2]MONE(M)CARD'!EP298=\"\",\"\",'[2]MONE(M)CARD'!EP298)","v":24821.533055721113},{"$f":"IF('[2]MONE(M)CARD'!ES298=\"\",\"\",'[2]MONE(M)CARD'!ES298)","v":7.5682931450006263},{"$f":"IF('[2]MONE(M)CARD'!EV298=\"\",\"\",'[2]MONE(M)CARD'!EV298)","v":6.6922260974354941},{"$f":"IF('[2]MONE(M)CARD'!EZ298=\"\",\"\",'[2]MONE(M)CARD'!EZ298)","v":6.7469213652822324},{"$f":"IF('[2]MONE(M)CAPARD'!FC298=\"\",\"\",'[2]MONE(M)CAPARD'!FC298)","v":35185.80897855181},{"$f":"IF('[2]MONE(M)CAPARD'!FG298=\"\",\"\",'[2]MONE(M)CAPARD'!FG298)","v":68595.099858808768},{"$f":"IF('[2]MONE(M)CAPARD'!FL298=\"\",\"\",'[2]MONE(M)CAPARD'!FL298)","v":24821.533055721113},{"$f":"IF('[2]MONE(M)CAPARD'!FO298=\"\",\"\",'[2]MONE(M)CAPARD'!FO298)","v":9.0245095800878481},{"$f":"IF('[2]MONE(M)CAPARD'!FR298=\"\",\"\",'[2]MONE(M)CAPARD'!FR298)","v":7.9286049416710469},{"$f":"IF('[2]MONE(M)CAPARD'!FV298=\"\",\"\",'[2]MONE(M)CAPARD'!FV298)","v":7.729420901397166},{"$f":"IF('[2]MONE(M)CARD'!FV298=\"\",\"\",'[2]MONE(M)CARD'!FV298)","v":1061.3100491058253},{"$f":"IF('[2]MONE(M)CARD'!GD298=\"\",\"\",'[2]MONE(M)CARD'!GD298)","v":91.532370041581316},{"$f":"IF('[2]MONE(M)CARD'!GE298=\"\",\"\",'[2]MONE(M)CARD'!GE298)","v":7965.9225853028165},26.36080143611661,{"$f":"IF('[9]II.2.Balance OSD-Activos'!J156=\"\",\"\",'[9]II.2.Balance OSD-Activos'!J156)","v":140.78946297658496},{"$f":"IF('[9]II.2.Balance OSD-Activos'!N156=\"\",\"\",'[9]II.2.Balance OSD-Activos'!N156)","v":673.92378276242903},{"$f":"IF('[9]II.2.Balance OSD-Activos'!R156=\"\",\"\",'[9]II.2.Balance OSD-Activos'!R156)","v":38143.975761471811},{"$f":"IF('[9]II.2.Balance OSD-Activos'!S156=\"\",\"\",'[9]II.2.Balance OSD-Activos'!S156)","v":40739.918643283148},38284.765224448398,79698.60765049397,-20.416853628300679,9.8265733960989152,18.64952817875556,9.9808397170043648,9.5524754583310667,9.7552155205191013,-1.2452199175958967,{"$f":"IF('[2]MONE(M)CAPARD'!GS298=\"\",\"\",'[2]MONE(M)CAPARD'!GS298)","v":16063.592002401858},{"$f":"IF('[2]MONE(M)CARD'!HA298=\"\",\"\",'[2]MONE(M)CAPARD'!HA298)","v":8642.1814408028149},{"$f":"IF('[2]MONE(M)CAPARD'!HB298=\"\",\"\",'[2]MONE(M)CAPARD'!HB298)","v":7421.4105615990429},"n.d.",{"$f":"IF('[10]II.2.Balance OSD-Activos'!J156=\"\",\"\",'[10]II.2.Balance OSD-Activos'!J156)","v":1479.4701213265848},{"$f":"IF('[10]II.2.Balance OSD-Activos'!N156=\"\",\"\",'[10]II.2.Balance OSD-Activos'!N156)","v":1091.1044500424291},{"$f":"IF('[10]II.2.Balance OSD-Activos'!R156=\"\",\"\",'[10]II.2.Balance OSD-Activos'!R156)","v":55289.847192941816},{"$f":"IF('[10]II.2.Balance OSD-Activos'!S156=\"\",\"\",'[10]II.2.Balance OSD-Activos'!S156)","v":55480.700795333149},56769.317314268403,113341.12255964398,36.256873006563396,9.0600159835647176,16.592141730600972,8.4806229358594045,10.900754439700355,10.022348116223467,4.9014109088896918,{"$f":"IF('[2]MONE(M)CAPARD'!AS298=\"\",\"\",'[2]MONE(M)CAPARD'!AS298)","v":3.75},{"$f":"IF('[2]MONE(M)CAPARD'!AT298=\"\",\"\",'[2]MONE(M)CAPARD'!AT298)","v":"n.a."},{"$f":"IF('[2]MONE(M)CAPARD'!AU298=\"\",\"\",'[2]MONE(M)CAPARD'!AU298)","v":5},{"$f":"IF('[2]MONE(M)CAPARD'!AV298=\"\",\"\",'[2]MONE(M)CAPARD'!AV298)","v":7},{"$f":"IF('[2]MONE(M)CAPARD'!AW298=\"\",\"\",'[2]MONE(M)CAPARD'!AW298)","v":"n.a."},{"$f":"IF('[2]MONE(M)CAPARD'!AX298=\"\",\"\",'[2]MONE(M)CAPARD'!AX298)","v":6.25},{"$f":"IF('[2]MONE(M)CAPARD'!AY298=\"\",\"\",'[2]MONE(M)CAPARD'!AY298)","v":"n.a."},{"$f":"IF('[2]FISCAL(M)'!$K298=\"\",\"\",'[2]FISCAL(M)'!$K298)","v":-21.035364648873781},{"$f":"IF('[2]FISCAL(M)'!$L298=\"\",\"\",'[2]FISCAL(M)'!$L298)","v":-674.4387019788735},{"$f":"IF('[2]FISCAL(M)'!$AY298=\"\",\"\",'[2]FISCAL(M)'!$AY298)","v":98908.400087637245},{"$f":"IF('[2]FISCAL(M)'!$BI298=\"\",\"\",'[2]FISCAL(M)'!$BI298)","v":50757.087841382607},{"$f":"IF('[2]FISCAL(M)'!$BS298=\"\",\"\",'[2]FISCAL(M)'!$BS298)","v":48151.312246254631},{"$f":"IF('[2]FISCAL(M)'!$AZ298=\"\",\"\",'[2]FISCAL(M)'!$AZ298)","v":115314.89879924724},{"$f":"IF('[2]FISCAL(M)'!$BJ298=\"\",\"\",'[2]FISCAL(M)'!$BJ298)","v":54916.6865529926},{"$f":"IF('[2]FISCAL(M)'!$BT298=\"\",\"\",'[2]FISCAL(M)'!$BT298)","v":60398.212246254632},{"$f":"IF('[3]MONE(M)'!$AO298=\"\",\"\",'[3]MONE(M)'!$AO298)","v":13727196.264739892},{"$f":"IF('[4]MONE(M)'!$AO298=\"\",\"\",'[4]MONE(M)'!$AO298)","v":10219.984388660137},{"$f":"IF('[5]MONE(M)'!$AO298=\"\",\"\",'[5]MONE(M)'!$AO298)","v":147022.1477756289},{"$f":"+'[1]MONE(M)'!$AO298","v":211606.31311525393},{"$f":"IF('[6]MONE(M)'!$AO298=\"\",\"\",'[6]MONE(M)'!$AO298)","v":80523.091926747715},{"$f":"IF('[7]MONE(M)'!$AO298=\"\",\"\",'[7]MONE(M)'!$AO298)","v":588151.18693446997},{"$f":"IF('[8]MONE(M)'!$AO298=\"\",\"\",'[8]MONE(M)'!$AO298)","v":34259.550486090011},13.560347534824114,7.6440983298808884,10.817445566034278,13.514237457405166,19.762868220964357,12.104848584044836,10.917251818061136,{"$f":"IF('[2]FISCAL(M)'!$K298=\"\",\"\",'[2]FISCAL(M)'!$K298)","v":-21.035364648873781},{"$f":"+'[2]REAL(A)'!$AO$34","v":231352.40693603092},-9.0923474397610528E-3,{"$f":"IF('[2]FISCAL(M)'!$L298=\"\",\"\",'[2]FISCAL(M)'!$L298)","v":-674.4387019788735},{"$f":"+'[2]REAL(A)'!$AP$34","v":281273.86993603094},-0.23978007702324375,111596.55309128939,{"$f":"'[2]Gráfico REM'!BG292","v":22300.487090833118},{"$f":"'[2]Gráfico REM'!BH292","v":83298.288794622655},{"$f":"'[2]Gráfico REM'!BI292","v":5997.777205833615},10.475134589790214,14.449388673617314,9.9305816905015618,4.1908412005300377,167333.04150294937,{"$f":"'[2]Gráfico REM'!BK292","v":24576.848990263119},{"$f":"'[2]Gráfico REM'!BL292","v":117557.83928071267},{"$f":"'[2]Gráfico REM'!BM292","v":25198.353231973611},8.887525043470923,15.167995772474473,10.216307057805984,-1.8530433197779472]
[2014,"febrero","2014-febrero",{"$f":"IF('[2]REAL IPC(M)'!$AL299=\"\",\"\",+'[2]REAL IPC(M)'!$AL299)","v":3.1901189664317764},{"$f":"IF('[2]REAL IPC(M)'!$BE299=\"\",\"\",+'[2]REAL IPC(M)'!$BE299)","v":3.4980929014990281},{"$f":"IF('[2]REAL IPC(M)'!$AM299=\"\",\"\",+'[2]REAL IPC(M)'!$AM299)","v":3.2066869300911849},{"$f":"IF('[2]REAL IPC(M)'!$BI299=\"\",\"\",+'[2]REAL IPC(M)'!$BI299)","v":3.4396968309283515},{"$f":"IF('[2]REAL IMAE(M)'!BJ299=\"\",\"\",'[2]REAL IMAE(M)'!BJ299)","v":5.0336181536549507},{"$f":"IF('[2]REAL IMAE(M)'!BK299=\"\",\"\",'[2]REAL IMAE(M)'!BK299)","v":4.3498271567474989},{"$f":"IF('[2]REAL IMAE(M)'!BN299=\"\",\"\",'[2]REAL IMAE(M)'!BN299)","v":5.569662307019474},{"$f":"IF('[2]REAL IMAE(M)'!BO299=\"\",\"\",'[2]REAL IMAE(M)'!BO299)","v":4.8130104301031373},{"$f":"IF('[2]EXT RIN(M)'!$K299=\"\",\"\",'[2]EXT RIN(M)'!$K299)","v":25535.468368069174},"",{"$f":"IF('[2]EXT RIN(M)'!$L299=\"\",\"\",'[2]EXT RIN(M)'!$L299)","v":27676.012536939175},"",{"$f":"IF('[2]MONE(M)CARD'!EG299=\"\",\"\",'[2]MONE(M)CARD'!EG299)","v":26917.325256337383},{"$f":"IF('[2]MONE(M)CARD'!EK299=\"\",\"\",'[2]MONE(M)CARD'!EK299)","v":43977.342728822259},{"$f":"IF('[2]MONE(M)CARD'!EP299=\"\",\"\",'[2]MONE(M)CARD'!EP299)","v":25904.556588086576},{"$f":"IF('[2]MONE(M)CARD'!ES299=\"\",\"\",'[2]MONE(M)CARD'!ES299)","v":6.6592482665221553},{"$f":"IF('[2]MONE(M)CARD'!EV299=\"\",\"\",'[2]MONE(M)CARD'!EV299)","v":5.5579612052653715},{"$f":"IF('[2]MONE(M)CARD'!EZ299=\"\",\"\",'[2]MONE(M)CARD'!EZ299)","v":7.4125580616176912},{"$f":"IF('[2]MONE(M)CAPARD'!FC299=\"\",\"\",'[2]MONE(M)CAPARD'!FC299)","v":34701.101932467376},{"$f":"IF('[2]MONE(M)CAPARD'!FG299=\"\",\"\",'[2]MONE(M)CAPARD'!FG299)","v":68683.941958272248},{"$f":"IF('[2]MONE(M)CAPARD'!FL299=\"\",\"\",'[2]MONE(M)CAPARD'!FL299)","v":25904.556588086562},{"$f":"IF('[2]MONE(M)CAPARD'!FO299=\"\",\"\",'[2]MONE(M)CAPARD'!FO299)","v":7.7264284857607501},{"$f":"IF('[2]MONE(M)CAPARD'!FR299=\"\",\"\",'[2]MONE(M)CAPARD'!FR299)","v":7.1198915297982834},{"$f":"IF('[2]MONE(M)CAPARD'!FV299=\"\",\"\",'[2]MONE(M)CAPARD'!FV299)","v":8.2187133374461485},{"$f":"IF('[2]MONE(M)CARD'!FV299=\"\",\"\",'[2]MONE(M)CARD'!FV299)","v":1191.4741341975744},{"$f":"IF('[2]MONE(M)CARD'!GD299=\"\",\"\",'[2]MONE(M)CARD'!GD299)","v":119.07915556418604},{"$f":"IF('[2]MONE(M)CARD'!GE299=\"\",\"\",'[2]MONE(M)CARD'!GE299)","v":7774.7481896130203},13.988705818609247,{"$f":"IF('[9]II.2.Balance OSD-Activos'!J157=\"\",\"\",'[9]II.2.Balance OSD-Activos'!J157)","v":198.29853679335466},{"$f":"IF('[9]II.2.Balance OSD-Activos'!N157=\"\",\"\",'[9]II.2.Balance OSD-Activos'!N157)","v":664.21825100733258},{"$f":"IF('[9]II.2.Balance OSD-Activos'!R157=\"\",\"\",'[9]II.2.Balance OSD-Activos'!R157)","v":38008.378334925234},{"$f":"IF('[9]II.2.Balance OSD-Activos'!S157=\"\",\"\",'[9]II.2.Balance OSD-Activos'!S157)","v":40459.729983115503},38206.676871718591,79330.625105841435,12.53046274634424,9.6892185143352183,22.467298037812888,9.6747712583201029,8.1787116559970165,9.0081621766474171,-0.74705334387168421,{"$f":"IF('[2]MONE(M)CAPARD'!GS299=\"\",\"\",'[2]MONE(M)CAPARD'!GS299)","v":16675.517441746346},{"$f":"IF('[2]MONE(M)CARD'!HA299=\"\",\"\",'[2]MONE(M)CAPARD'!HA299)","v":8461.9879900430224},{"$f":"IF('[2]MONE(M)CAPARD'!HB299=\"\",\"\",'[2]MONE(M)CAPARD'!HB299)","v":8213.5294517033235},"n.d.",{"$f":"IF('[10]II.2.Balance OSD-Activos'!J157=\"\",\"\",'[10]II.2.Balance OSD-Activos'!J157)","v":1542.9016958633545},{"$f":"IF('[10]II.2.Balance OSD-Activos'!N157=\"\",\"\",'[10]II.2.Balance OSD-Activos'!N157)","v":1061.9355628473324},{"$f":"IF('[10]II.2.Balance OSD-Activos'!R157=\"\",\"\",'[10]II.2.Balance OSD-Activos'!R157)","v":55253.111923985227},{"$f":"IF('[10]II.2.Balance OSD-Activos'!S157=\"\",\"\",'[10]II.2.Balance OSD-Activos'!S157)","v":55346.38315005551},56796.013619848578,113204.33233275142,40.622860005636127,8.9806095028870381,13.477710054231551,8.3001192854254668,9.9846508619344743,9.5100851607884849,-0.51226295543498246,{"$f":"IF('[2]MONE(M)CAPARD'!AS299=\"\",\"\",'[2]MONE(M)CAPARD'!AS299)","v":3.75},{"$f":"IF('[2]MONE(M)CAPARD'!AT299=\"\",\"\",'[2]MONE(M)CAPARD'!AT299)","v":"n.a."},{"$f":"IF('[2]MONE(M)CAPARD'!AU299=\"\",\"\",'[2]MONE(M)CAPARD'!AU299)","v":5},{"$f":"IF('[2]MONE(M)CAPARD'!AV299=\"\",\"\",'[2]MONE(M)CAPARD'!AV299)","v":7},{"$f":"IF('[2]MONE(M)CAPARD'!AW299=\"\",\"\",'[2]MONE(M)CAPARD'!AW299)","v":"n.a."},{"$f":"IF('[2]MONE(M)CAPARD'!AX299=\"\",\"\",'[2]MONE(M)CAPARD'!AX299)","v":6.25},{"$f":"IF('[2]MONE(M)CAPARD'!AY299=\"\",\"\",'[2]MONE(M)CAPARD'!AY299)","v":"n.a."},{"$f":"IF('[2]FISCAL(M)'!$K299=\"\",\"\",'[2]FISCAL(M)'!$K299)","v":-826.94815900740036},{"$f":"IF('[2]FISCAL(M)'!$L299=\"\",\"\",'[2]FISCAL(M)'!$L299)","v":-2139.7455112774005},{"$f":"IF('[2]FISCAL(M)'!$AY299=\"\",\"\",'[2]FISCAL(M)'!$AY299)","v":97759.347404196902},{"$f":"IF('[2]FISCAL(M)'!$BI299=\"\",\"\",'[2]FISCAL(M)'!$BI299)","v":49879.271046729227},{"$f":"IF('[2]FISCAL(M)'!$BS299=\"\",\"\",'[2]FISCAL(M)'!$BS299)","v":47880.076357467668},{"$f":"IF('[2]FISCAL(M)'!$AZ299=\"\",\"\",'[2]FISCAL(M)'!$AZ299)","v":114243.55042522689},{"$f":"IF('[2]FISCAL(M)'!$BJ299=\"\",\"\",'[2]FISCAL(M)'!$BJ299)","v":54112.925897499226},{"$f":"IF('[2]FISCAL(M)'!$BT299=\"\",\"\",'[2]FISCAL(M)'!$BT299)","v":60130.624527727668},{"$f":"IF('[3]MONE(M)'!$AO299=\"\",\"\",'[3]MONE(M)'!$AO299)","v":14254049.135117486},{"$f":"IF('[4]MONE(M)'!$AO299=\"\",\"\",'[4]MONE(M)'!$AO299)","v":10245.004316930001},{"$f":"IF('[5]MONE(M)'!$AO299=\"\",\"\",'[5]MONE(M)'!$AO299)","v":147297.44250965086},{"$f":"+'[1]MONE(M)'!$AO299","v":213083.38583544374},{"$f":"IF('[6]MONE(M)'!$AO299=\"\",\"\",'[6]MONE(M)'!$AO299)","v":81892.844077341986},{"$f":"IF('[7]MONE(M)'!$AO299=\"\",\"\",'[7]MONE(M)'!$AO299)","v":591011.25803496013},{"$f":"IF('[8]MONE(M)'!$AO299=\"\",\"\",'[8]MONE(M)'!$AO299)","v":34519.436487220002},16.916526704494128,7.5143346940759193,10.418699503741834,13.771693257651773,21.50804531009738,12.232219145772749,11.149579926724385,{"$f":"IF('[2]FISCAL(M)'!$K299=\"\",\"\",'[2]FISCAL(M)'!$K299)","v":-826.94815900740036},{"$f":"+'[2]REAL(A)'!$AO$34","v":231352.40693603092},-0.3574409144729806,{"$f":"IF('[2]FISCAL(M)'!$L299=\"\",\"\",'[2]FISCAL(M)'!$L299)","v":-2139.7455112774005},{"$f":"+'[2]REAL(A)'!$AP$34","v":281273.86993603094},-0.76073383985651943,111854.42272443662,{"$f":"'[2]Gráfico REM'!BG293","v":22877.657643964332},{"$f":"'[2]Gráfico REM'!BH293","v":82937.571712306803},{"$f":"'[2]Gráfico REM'!BI293","v":6039.1933681654937},9.3974811303930927,12.671900554610605,8.9571735006134023,3.7342689558918396,167765.12565124664,{"$f":"'[2]Gráfico REM'!BK293","v":25150.520247314333},{"$f":"'[2]Gráfico REM'!BL293","v":117457.00819952681},{"$f":"'[2]Gráfico REM'!BM293","v":25157.597204405494},7.1768267245482686,13.148900845421728,9.5924733200974721,-7.2605671600784021]
[2014,"marzo","2014-marzo",{"$f":"IF('[2]REAL IPC(M)'!$AL300=\"\",\"\",+'[2]REAL IPC(M)'!$AL300)","v":3.2009663294579438},{"$f":"IF('[2]REAL IPC(M)'!$BE300=\"\",\"\",+'[2]REAL IPC(M)'!$BE300)","v":3.4297167720896304},{"$f":"IF('[2]REAL IPC(M)'!$AM300=\"\",\"\",+'[2]REAL IPC(M)'!$AM300)","v":3.2253179890975092},{"$f":"IF('[2]REAL IPC(M)'!$BI300=\"\",\"\",+'[2]REAL IPC(M)'!$BI300)","v":3.3619540976256745},{"$f":"IF('[2]REAL IMAE(M)'!BJ300=\"\",\"\",'[2]REAL IMAE(M)'!BJ300)","v":5.0523752813407707},{"$f":"IF('[2]REAL IMAE(M)'!BK300=\"\",\"\",'[2]REAL IMAE(M)'!BK300)","v":4.3805451541922169},{"$f":"IF('[2]REAL IMAE(M)'!BN300=\"\",\"\",'[2]REAL IMAE(M)'!BN300)","v":5.6482585328270218},{"$f":"IF('[2]REAL IMAE(M)'!BO300=\"\",\"\",'[2]REAL IMAE(M)'!BO300)","v":4.822889404971975},{"$f":"IF('[2]EXT RIN(M)'!$K300=\"\",\"\",'[2]EXT RIN(M)'!$K300)","v":25210.261352867295},"",{"$f":"IF('[2]EXT RIN(M)'!$L300=\"\",\"\",'[2]EXT RIN(M)'!$L300)","v":27280.285508717294},"",{"$f":"IF('[2]MONE(M)CARD'!EG300=\"\",\"\",'[2]MONE(M)CARD'!EG300)","v":26965.673786328665},{"$f":"IF('[2]MONE(M)CARD'!EK300=\"\",\"\",'[2]MONE(M)CARD'!EK300)","v":44532.659097574753},{"$f":"IF('[2]MONE(M)CARD'!EP300=\"\",\"\",'[2]MONE(M)CARD'!EP300)","v":26130.845069991832},{"$f":"IF('[2]MONE(M)CARD'!ES300=\"\",\"\",'[2]MONE(M)CARD'!ES300)","v":3.7044534871532475},{"$f":"IF('[2]MONE(M)CARD'!EV300=\"\",\"\",'[2]MONE(M)CARD'!EV300)","v":5.2660923206439225},{"$f":"IF('[2]MONE(M)CARD'!EZ300=\"\",\"\",'[2]MONE(M)CARD'!EZ300)","v":6.872202831284091},{"$f":"IF('[2]MONE(M)CAPARD'!FC300=\"\",\"\",'[2]MONE(M)CAPARD'!FC300)","v":34910.31829020867},{"$f":"IF('[2]MONE(M)CAPARD'!FG300=\"\",\"\",'[2]MONE(M)CAPARD'!FG300)","v":69356.506511984742},{"$f":"IF('[2]MONE(M)CAPARD'!FL300=\"\",\"\",'[2]MONE(M)CAPARD'!FL300)","v":26130.845069991847},{"$f":"IF('[2]MONE(M)CAPARD'!FO300=\"\",\"\",'[2]MONE(M)CAPARD'!FO300)","v":6.0804759736302838},{"$f":"IF('[2]MONE(M)CAPARD'!FR300=\"\",\"\",'[2]MONE(M)CAPARD'!FR300)","v":7.0689342990269521},{"$f":"IF('[2]MONE(M)CAPARD'!FV300=\"\",\"\",'[2]MONE(M)CAPARD'!FV300)","v":7.9337448079975781},{"$f":"IF('[2]MONE(M)CARD'!FV300=\"\",\"\",'[2]MONE(M)CARD'!FV300)","v":1172.3222817073661},{"$f":"IF('[2]MONE(M)CARD'!GD300=\"\",\"\",'[2]MONE(M)CARD'!GD300)","v":105.84079158150929},{"$f":"IF('[2]MONE(M)CARD'!GE300=\"\",\"\",'[2]MONE(M)CARD'!GE300)","v":7902.21762330605},16.132537208028765,{"$f":"IF('[9]II.2.Balance OSD-Activos'!J158=\"\",\"\",'[9]II.2.Balance OSD-Activos'!J158)","v":201.50162351251163},{"$f":"IF('[9]II.2.Balance OSD-Activos'!N158=\"\",\"\",'[9]II.2.Balance OSD-Activos'!N158)","v":814.18976833475926},{"$f":"IF('[9]II.2.Balance OSD-Activos'!R158=\"\",\"\",'[9]II.2.Balance OSD-Activos'!R158)","v":38597.347030517194},{"$f":"IF('[9]II.2.Balance OSD-Activos'!S158=\"\",\"\",'[9]II.2.Balance OSD-Activos'!S158)","v":40768.914654982262},38798.848654029709,80381.953077346727,9.8218435629102263,10.864033882846824,45.166154648979663,10.869526655115646,8.0233543017068865,9.6638635257232597,0.65570134907584254,{"$f":"IF('[2]MONE(M)CAPARD'!GS300=\"\",\"\",'[2]MONE(M)CAPARD'!GS300)","v":16510.078115759959},{"$f":"IF('[2]MONE(M)CARD'!HA300=\"\",\"\",'[2]MONE(M)CAPARD'!HA300)","v":8588.4530005360484},{"$f":"IF('[2]MONE(M)CAPARD'!HB300=\"\",\"\",'[2]MONE(M)CAPARD'!HB300)","v":7921.6251152239111},"n.d.",{"$f":"IF('[10]II.2.Balance OSD-Activos'!J158=\"\",\"\",'[10]II.2.Balance OSD-Activos'!J158)","v":1551.0715239825117},{"$f":"IF('[10]II.2.Balance OSD-Activos'!N158=\"\",\"\",'[10]II.2.Balance OSD-Activos'!N158)","v":1280.9638244747593},{"$f":"IF('[10]II.2.Balance OSD-Activos'!R158=\"\",\"\",'[10]II.2.Balance OSD-Activos'!R158)","v":56014.957560257208},{"$f":"IF('[10]II.2.Balance OSD-Activos'!S158=\"\",\"\",'[10]II.2.Balance OSD-Activos'!S158)","v":55799.377220982264},57566.029084239723,114646.37012969673,39.160601569045973,9.6937078399409238,32.87055653176094,9.0542843230150716,9.8901881741674025,10.003828101506684,0.49374294071819946,{"$f":"IF('[2]MONE(M)CAPARD'!AS300=\"\",\"\",'[2]MONE(M)CAPARD'!AS300)","v":4.75},{"$f":"IF('[2]MONE(M)CAPARD'!AT300=\"\",\"\",'[2]MONE(M)CAPARD'!AT300)","v":"n.a."},{"$f":"IF('[2]MONE(M)CAPARD'!AU300=\"\",\"\",'[2]MONE(M)CAPARD'!AU300)","v":4.75},{"$f":"IF('[2]MONE(M)CAPARD'!AV300=\"\",\"\",'[2]MONE(M)CAPARD'!AV300)","v":7},{"$f":"IF('[2]MONE(M)CAPARD'!AW300=\"\",\"\",'[2]MONE(M)CAPARD'!AW300)","v":"n.a."},{"$f":"IF('[2]MONE(M)CAPARD'!AX300=\"\",\"\",'[2]MONE(M)CAPARD'!AX300)","v":6.25},{"$f":"IF('[2]MONE(M)CAPARD'!AY300=\"\",\"\",'[2]MONE(M)CAPARD'!AY300)","v":"n.a."},{"$f":"IF('[2]FISCAL(M)'!$K300=\"\",\"\",'[2]FISCAL(M)'!$K300)","v":-1210.7413135960842},{"$f":"IF('[2]FISCAL(M)'!$L300=\"\",\"\",'[2]FISCAL(M)'!$L300)","v":-2084.7636430060847},{"$f":"IF('[2]FISCAL(M)'!$AY300=\"\",\"\",'[2]FISCAL(M)'!$AY300)","v":97761.367474766623},{"$f":"IF('[2]FISCAL(M)'!$BI300=\"\",\"\",'[2]FISCAL(M)'!$BI300)","v":50157.578295552586},{"$f":"IF('[2]FISCAL(M)'!$BS300=\"\",\"\",'[2]FISCAL(M)'!$BS300)","v":47603.789179214029},{"$f":"IF('[2]FISCAL(M)'!$AZ300=\"\",\"\",'[2]FISCAL(M)'!$AZ300)","v":114823.99763356663},{"$f":"IF('[2]FISCAL(M)'!$BJ300=\"\",\"\",'[2]FISCAL(M)'!$BJ300)","v":54530.765409992593},{"$f":"IF('[2]FISCAL(M)'!$BT300=\"\",\"\",'[2]FISCAL(M)'!$BT300)","v":60293.232223574028},{"$f":"IF('[3]MONE(M)'!$AO300=\"\",\"\",'[3]MONE(M)'!$AO300)","v":14478762.989196805},{"$f":"IF('[4]MONE(M)'!$AO300=\"\",\"\",'[4]MONE(M)'!$AO300)","v":10353.425889730137},{"$f":"IF('[5]MONE(M)'!$AO300=\"\",\"\",'[5]MONE(M)'!$AO300)","v":148106.67709001634},{"$f":"+'[1]MONE(M)'!$AO300","v":214717.60515333322},{"$f":"IF('[6]MONE(M)'!$AO300=\"\",\"\",'[6]MONE(M)'!$AO300)","v":82746.862427795611},{"$f":"IF('[7]MONE(M)'!$AO300=\"\",\"\",'[7]MONE(M)'!$AO300)","v":598363.47290146002},{"$f":"IF('[8]MONE(M)'!$AO300=\"\",\"\",'[8]MONE(M)'!$AO300)","v":34936.032857100006},18.457443102095073,8.2316310707808213,10.536280308526313,13.443483449635018,19.868610788388153,13.535265897415361,11.335766930985635,{"$f":"IF('[2]FISCAL(M)'!$K300=\"\",\"\",'[2]FISCAL(M)'!$K300)","v":-1210.7413135960842},{"$f":"+'[2]REAL(A)'!$AO$34","v":231352.40693603092},-0.52333205849501052,{"$f":"IF('[2]FISCAL(M)'!$L300=\"\",\"\",'[2]FISCAL(M)'!$L300)","v":-2084.7636430060847},{"$f":"+'[2]REAL(A)'!$AP$34","v":281273.86993603094},-0.74118639014715959,113214.60720695584,{"$f":"'[2]Gráfico REM'!BG294","v":23124.563689194103},{"$f":"'[2]Gráfico REM'!BH294","v":83892.035183892702},{"$f":"'[2]Gráfico REM'!BI294","v":6198.008333869052},9.8442571153931837,12.170761350500126,9.4418361885654676,6.892608322951177,169406.34367479588,{"$f":"'[2]Gráfico REM'!BK294","v":25033.191482444105},{"$f":"'[2]Gráfico REM'!BL294","v":118828.06804099272},{"$f":"'[2]Gráfico REM'!BM294","v":25545.084151359053},7.1210868388315474,12.056682226819039,9.9919401880300907,-8.0170108588838769]
[2014,"abril","2014-abril",{"$f":"IF('[2]REAL IPC(M)'!$AL301=\"\",\"\",+'[2]REAL IPC(M)'!$AL301)","v":3.4381361682877198},{"$f":"IF('[2]REAL IPC(M)'!$BE301=\"\",\"\",+'[2]REAL IPC(M)'!$BE301)","v":3.3613318138595583},{"$f":"IF('[2]REAL IPC(M)'!$AM301=\"\",\"\",+'[2]REAL IPC(M)'!$AM301)","v":3.4547928636226244},{"$f":"IF('[2]REAL IPC(M)'!$BI301=\"\",\"\",+'[2]REAL IPC(M)'!$BI301)","v":3.2840713305994029},{"$f":"IF('[2]REAL IMAE(M)'!BJ301=\"\",\"\",'[2]REAL IMAE(M)'!BJ301)","v":4.5876324879148722},{"$f":"IF('[2]REAL IMAE(M)'!BK301=\"\",\"\",'[2]REAL IMAE(M)'!BK301)","v":4.4106130896077955},{"$f":"IF('[2]REAL IMAE(M)'!BN301=\"\",\"\",'[2]REAL IMAE(M)'!BN301)","v":4.9224287141784062},{"$f":"IF('[2]REAL IMAE(M)'!BO301=\"\",\"\",'[2]REAL IMAE(M)'!BO301)","v":4.832704520966935},{"$f":"IF('[2]EXT RIN(M)'!$K301=\"\",\"\",'[2]EXT RIN(M)'!$K301)","v":28071.08602368832},"",{"$f":"IF('[2]EXT RIN(M)'!$L301=\"\",\"\",'[2]EXT RIN(M)'!$L301)","v":30329.396696888318},"",{"$f":"IF('[2]MONE(M)CARD'!EG301=\"\",\"\",'[2]MONE(M)CARD'!EG301)","v":27012.32117875425},{"$f":"IF('[2]MONE(M)CARD'!EK301=\"\",\"\",'[2]MONE(M)CARD'!EK301)","v":44749.099652841702},{"$f":"IF('[2]MONE(M)CARD'!EP301=\"\",\"\",'[2]MONE(M)CARD'!EP301)","v":26047.528649531436},{"$f":"IF('[2]MONE(M)CARD'!ES301=\"\",\"\",'[2]MONE(M)CARD'!ES301)","v":7.5984550484529789},{"$f":"IF('[2]MONE(M)CARD'!EV301=\"\",\"\",'[2]MONE(M)CARD'!EV301)","v":6.1814178983923274},{"$f":"IF('[2]MONE(M)CARD'!EZ301=\"\",\"\",'[2]MONE(M)CARD'!EZ301)","v":6.5755225519684712},{"$f":"IF('[2]MONE(M)CAPARD'!FC301=\"\",\"\",'[2]MONE(M)CAPARD'!FC301)","v":35053.375279734246},{"$f":"IF('[2]MONE(M)CAPARD'!FG301=\"\",\"\",'[2]MONE(M)CAPARD'!FG301)","v":69661.968620141692},{"$f":"IF('[2]MONE(M)CAPARD'!FL301=\"\",\"\",'[2]MONE(M)CAPARD'!FL301)","v":26047.528649531436},{"$f":"IF('[2]MONE(M)CAPARD'!FO301=\"\",\"\",'[2]MONE(M)CAPARD'!FO301)","v":8.4277730032970908},{"$f":"IF('[2]MONE(M)CAPARD'!FR301=\"\",\"\",'[2]MONE(M)CAPARD'!FR301)","v":7.4511434544292099},{"$f":"IF('[2]MONE(M)CAPARD'!FV301=\"\",\"\",'[2]MONE(M)CAPARD'!FV301)","v":7.4959737428877293},{"$f":"IF('[2]MONE(M)CARD'!FV301=\"\",\"\",'[2]MONE(M)CARD'!FV301)","v":1125.676689155101},{"$f":"IF('[2]MONE(M)CARD'!GD301=\"\",\"\",'[2]MONE(M)CARD'!GD301)","v":210.15764986380657},{"$f":"IF('[2]MONE(M)CARD'!GE301=\"\",\"\",'[2]MONE(M)CARD'!GE301)","v":8496.1828141018068},15.969856697293295,{"$f":"IF('[9]II.2.Balance OSD-Activos'!J159=\"\",\"\",'[9]II.2.Balance OSD-Activos'!J159)","v":224.33755827634943},{"$f":"IF('[9]II.2.Balance OSD-Activos'!N159=\"\",\"\",'[9]II.2.Balance OSD-Activos'!N159)","v":735.72703421554229},{"$f":"IF('[9]II.2.Balance OSD-Activos'!R159=\"\",\"\",'[9]II.2.Balance OSD-Activos'!R159)","v":38984.90158526125},{"$f":"IF('[9]II.2.Balance OSD-Activos'!S159=\"\",\"\",'[9]II.2.Balance OSD-Activos'!S159)","v":41080.41833161148},39209.239143537598,81025.384509364623,30.841001094241371,11.74897849739871,27.111481585157815,11.6552238781372,8.037956393163693,9.9547501640463452,0.29088663832308548,{"$f":"IF('[2]MONE(M)CAPARD'!GS301=\"\",\"\",'[2]MONE(M)CAPARD'!GS301)","v":16296.881516751497},{"$f":"IF('[2]MONE(M)CARD'!HA301=\"\",\"\",'[2]MONE(M)CAPARD'!HA301)","v":9244.8386395518064},{"$f":"IF('[2]MONE(M)CAPARD'!HB301=\"\",\"\",'[2]MONE(M)CAPARD'!HB301)","v":7052.0428771996903},"n.d.",{"$f":"IF('[10]II.2.Balance OSD-Activos'!J159=\"\",\"\",'[10]II.2.Balance OSD-Activos'!J159)","v":1576.4448200463494},{"$f":"IF('[10]II.2.Balance OSD-Activos'!N159=\"\",\"\",'[10]II.2.Balance OSD-Activos'!N159)","v":1200.2688569255422},{"$f":"IF('[10]II.2.Balance OSD-Activos'!R159=\"\",\"\",'[10]II.2.Balance OSD-Activos'!R159)","v":56691.608213581247},{"$f":"IF('[10]II.2.Balance OSD-Activos'!S159=\"\",\"\",'[10]II.2.Balance OSD-Activos'!S159)","v":56245.771467981482},58268.053033627599,115714.09335853462,43.213827457209078,10.474263552486395,26.63011814996732,9.7764217106909523,9.6313344622649169,10.208228022490506,0.2043999209838212,{"$f":"IF('[2]MONE(M)CAPARD'!AS301=\"\",\"\",'[2]MONE(M)CAPARD'!AS301)","v":4.75},{"$f":"IF('[2]MONE(M)CAPARD'!AT301=\"\",\"\",'[2]MONE(M)CAPARD'!AT301)","v":"n.a."},{"$f":"IF('[2]MONE(M)CAPARD'!AU301=\"\",\"\",'[2]MONE(M)CAPARD'!AU301)","v":4.75},{"$f":"IF('[2]MONE(M)CAPARD'!AV301=\"\",\"\",'[2]MONE(M)CAPARD'!AV301)","v":7},{"$f":"IF('[2]MONE(M)CAPARD'!AW301=\"\",\"\",'[2]MONE(M)CAPARD'!AW301)","v":"n.a."},{"$f":"IF('[2]MONE(M)CAPARD'!AX301=\"\",\"\",'[2]MONE(M)CAPARD'!AX301)","v":6.25},{"$f":"IF('[2]MONE(M)CAPARD'!AY301=\"\",\"\",'[2]MONE(M)CAPARD'!AY301)","v":"n.a."},{"$f":"IF('[2]FISCAL(M)'!$K301=\"\",\"\",'[2]FISCAL(M)'!$K301)","v":-713.3093396513907},{"$f":"IF('[2]FISCAL(M)'!$L301=\"\",\"\",'[2]FISCAL(M)'!$L301)","v":-1142.5061245913912},{"$f":"IF('[2]FISCAL(M)'!$AY301=\"\",\"\",'[2]FISCAL(M)'!$AY301)","v":100470.63196424338},{"$f":"IF('[2]FISCAL(M)'!$BI301=\"\",\"\",'[2]FISCAL(M)'!$BI301)","v":50593.863073089276},{"$f":"IF('[2]FISCAL(M)'!$BS301=\"\",\"\",'[2]FISCAL(M)'!$BS301)","v":49876.768891154104},{"$f":"IF('[2]FISCAL(M)'!$AZ301=\"\",\"\",'[2]FISCAL(M)'!$AZ301)","v":117874.49503970338},{"$f":"IF('[2]FISCAL(M)'!$BJ301=\"\",\"\",'[2]FISCAL(M)'!$BJ301)","v":54860.973746259268},{"$f":"IF('[2]FISCAL(M)'!$BT301=\"\",\"\",'[2]FISCAL(M)'!$BT301)","v":63013.521293444108},{"$f":"IF('[3]MONE(M)'!$AO301=\"\",\"\",'[3]MONE(M)'!$AO301)","v":14605659.578297991},{"$f":"IF('[4]MONE(M)'!$AO301=\"\",\"\",'[4]MONE(M)'!$AO301)","v":10431.217142760137},{"$f":"IF('[5]MONE(M)'!$AO301=\"\",\"\",'[5]MONE(M)'!$AO301)","v":150020.83559005026},{"$f":"+'[1]MONE(M)'!$AO301","v":216372.60803065432},{"$f":"IF('[6]MONE(M)'!$AO301=\"\",\"\",'[6]MONE(M)'!$AO301)","v":84268.816125169935},{"$f":"IF('[7]MONE(M)'!$AO301=\"\",\"\",'[7]MONE(M)'!$AO301)","v":604285.18331176997},{"$f":"IF('[8]MONE(M)'!$AO301=\"\",\"\",'[8]MONE(M)'!$AO301)","v":35353.083501710011},18.532813296251561,8.7484713668120726,10.753875706339301,13.920855026008883,21.170150134620492,14.077410651755006,11.085122456640949,{"$f":"IF('[2]FISCAL(M)'!$K301=\"\",\"\",'[2]FISCAL(M)'!$K301)","v":-713.3093396513907},{"$f":"+'[2]REAL(A)'!$AO$34","v":231352.40693603092},-0.30832155545657286,{"$f":"IF('[2]FISCAL(M)'!$L301=\"\",\"\",'[2]FISCAL(M)'!$L301)","v":-1142.5061245913912},{"$f":"+'[2]REAL(A)'!$AP$34","v":281273.86993603094},-0.40618992615674793,113747.89311851536,{"$f":"'[2]Gráfico REM'!BG295","v":23080.69781985231},{"$f":"'[2]Gráfico REM'!BH295","v":84532.009525880712},{"$f":"'[2]Gráfico REM'!BI295","v":6135.185772782339},9.0775310222056085,7.422258670655002,9.655452350108451,7.5029501678237409,170662.66730860539,{"$f":"'[2]Gráfico REM'!BK295","v":24838.422204642309},{"$f":"'[2]Gráfico REM'!BL295","v":119885.09302759072},{"$f":"'[2]Gráfico REM'!BM295","v":25939.152076372338},6.8954711838101757,6.1864955080308981,10.073209298146901,-5.1533104672612069]
[2014,"mayo ","2014-mayo ",{"$f":"IF('[2]REAL IPC(M)'!$AL302=\"\",\"\",+'[2]REAL IPC(M)'!$AL302)","v":3.6308851224105432},{"$f":"IF('[2]REAL IPC(M)'!$BE302=\"\",\"\",+'[2]REAL IPC(M)'!$BE302)","v":3.2930830961864777},{"$f":"IF('[2]REAL IPC(M)'!$AM302=\"\",\"\",+'[2]REAL IPC(M)'!$AM302)","v":3.5862589656474153},{"$f":"IF('[2]REAL IPC(M)'!$BI302=\"\",\"\",+'[2]REAL IPC(M)'!$BI302)","v":3.2062308763461056},{"$f":"IF('[2]REAL IMAE(M)'!BJ302=\"\",\"\",'[2]REAL IMAE(M)'!BJ302)","v":4.453371936725592},{"$f":"IF('[2]REAL IMAE(M)'!BK302=\"\",\"\",'[2]REAL IMAE(M)'!BK302)","v":4.4398935334883483},{"$f":"IF('[2]REAL IMAE(M)'!BN302=\"\",\"\",'[2]REAL IMAE(M)'!BN302)","v":4.3662986001967719},{"$f":"IF('[2]REAL IMAE(M)'!BO302=\"\",\"\",'[2]REAL IMAE(M)'!BO302)","v":4.8424090329833414},{"$f":"IF('[2]EXT RIN(M)'!$K302=\"\",\"\",'[2]EXT RIN(M)'!$K302)","v":27436.538089245314},"",{"$f":"IF('[2]EXT RIN(M)'!$L302=\"\",\"\",'[2]EXT RIN(M)'!$L302)","v":29684.044255625315},"",{"$f":"IF('[2]MONE(M)CARD'!EG302=\"\",\"\",'[2]MONE(M)CARD'!EG302)","v":26476.872994832658},{"$f":"IF('[2]MONE(M)CARD'!EK302=\"\",\"\",'[2]MONE(M)CARD'!EK302)","v":45163.670141485993},{"$f":"IF('[2]MONE(M)CARD'!EP302=\"\",\"\",'[2]MONE(M)CARD'!EP302)","v":26081.078188537693},{"$f":"IF('[2]MONE(M)CARD'!ES302=\"\",\"\",'[2]MONE(M)CARD'!ES302)","v":5.3041260550355185},{"$f":"IF('[2]MONE(M)CARD'!EV302=\"\",\"\",'[2]MONE(M)CARD'!EV302)","v":5.2170817151644844},{"$f":"IF('[2]MONE(M)CARD'!EZ302=\"\",\"\",'[2]MONE(M)CARD'!EZ302)","v":5.2547027439731941},{"$f":"IF('[2]MONE(M)CAPARD'!FC302=\"\",\"\",'[2]MONE(M)CAPARD'!FC302)","v":34422.399078702656},{"$f":"IF('[2]MONE(M)CAPARD'!FG302=\"\",\"\",'[2]MONE(M)CAPARD'!FG302)","v":70444.574026255985},{"$f":"IF('[2]MONE(M)CAPARD'!FL302=\"\",\"\",'[2]MONE(M)CAPARD'!FL302)","v":26081.078188537693},{"$f":"IF('[2]MONE(M)CAPARD'!FO302=\"\",\"\",'[2]MONE(M)CAPARD'!FO302)","v":6.806854906893367},{"$f":"IF('[2]MONE(M)CAPARD'!FR302=\"\",\"\",'[2]MONE(M)CAPARD'!FR302)","v":6.7427525638547259},{"$f":"IF('[2]MONE(M)CAPARD'!FV302=\"\",\"\",'[2]MONE(M)CAPARD'!FV302)","v":6.4640910256522188},{"$f":"IF('[2]MONE(M)CARD'!FV302=\"\",\"\",'[2]MONE(M)CARD'!FV302)","v":1090.946176892056},{"$f":"IF('[2]MONE(M)CARD'!GD302=\"\",\"\",'[2]MONE(M)CARD'!GD302)","v":83.084854178741224},{"$f":"IF('[2]MONE(M)CARD'!GE302=\"\",\"\",'[2]MONE(M)CARD'!GE302)","v":7895.8561149814468},-8.8690008603780068,{"$f":"IF('[9]II.2.Balance OSD-Activos'!J160=\"\",\"\",'[9]II.2.Balance OSD-Activos'!J160)","v":218.326435495076},{"$f":"IF('[9]II.2.Balance OSD-Activos'!N160=\"\",\"\",'[9]II.2.Balance OSD-Activos'!N160)","v":765.17701291830906},{"$f":"IF('[9]II.2.Balance OSD-Activos'!R160=\"\",\"\",'[9]II.2.Balance OSD-Activos'!R160)","v":39083.024999352325},{"$f":"IF('[9]II.2.Balance OSD-Activos'!S160=\"\",\"\",'[9]II.2.Balance OSD-Activos'!S160)","v":41304.178995957118},39301.351434847398,81370.707443722829,25.938384170926909,11.461975531003876,37.960435975655791,11.390448726303038,7.6839102007804749,9.7063416217189502,-0.24840854232739495,{"$f":"IF('[2]MONE(M)CAPARD'!GS302=\"\",\"\",'[2]MONE(M)CAPARD'!GS302)","v":15873.429540767116},{"$f":"IF('[2]MONE(M)CARD'!HA302=\"\",\"\",'[2]MONE(M)CAPARD'!HA302)","v":8648.185117091447},{"$f":"IF('[2]MONE(M)CAPARD'!HB302=\"\",\"\",'[2]MONE(M)CAPARD'!HB302)","v":7225.2444236756692},"n.d.",{"$f":"IF('[10]II.2.Balance OSD-Activos'!J160=\"\",\"\",'[10]II.2.Balance OSD-Activos'!J160)","v":1571.6408204750765},{"$f":"IF('[10]II.2.Balance OSD-Activos'!N160=\"\",\"\",'[10]II.2.Balance OSD-Activos'!N160)","v":1224.4417515983091},{"$f":"IF('[10]II.2.Balance OSD-Activos'!R160=\"\",\"\",'[10]II.2.Balance OSD-Activos'!R160)","v":57035.621516082327},{"$f":"IF('[10]II.2.Balance OSD-Activos'!S160=\"\",\"\",'[10]II.2.Balance OSD-Activos'!S160)","v":56630.558389977115},58607.262336557404,116462.26247813282,42.854502964474392,10.324881956274968,32.221102766680666,9.6369442508917214,9.3257905947647934,10.027516619611475,-0.1807114028790302,{"$f":"IF('[2]MONE(M)CAPARD'!AS302=\"\",\"\",'[2]MONE(M)CAPARD'!AS302)","v":5.25},{"$f":"IF('[2]MONE(M)CAPARD'!AT302=\"\",\"\",'[2]MONE(M)CAPARD'!AT302)","v":"n.a."},{"$f":"IF('[2]MONE(M)CAPARD'!AU302=\"\",\"\",'[2]MONE(M)CAPARD'!AU302)","v":4.75},{"$f":"IF('[2]MONE(M)CAPARD'!AV302=\"\",\"\",'[2]MONE(M)CAPARD'!AV302)","v":7},{"$f":"IF('[2]MONE(M)CAPARD'!AW302=\"\",\"\",'[2]MONE(M)CAPARD'!AW302)","v":"n.a."},{"$f":"IF('[2]MONE(M)CAPARD'!AX302=\"\",\"\",'[2]MONE(M)CAPARD'!AX302)","v":6.25},{"$f":"IF('[2]MONE(M)CAPARD'!AY302=\"\",\"\",'[2]MONE(M)CAPARD'!AY302)","v":"n.a."},{"$f":"IF('[2]FISCAL(M)'!$K302=\"\",\"\",'[2]FISCAL(M)'!$K302)","v":-1225.4261870060222},{"$f":"IF('[2]FISCAL(M)'!$L302=\"\",\"\",'[2]FISCAL(M)'!$L302)","v":-1775.6867720860228},{"$f":"IF('[2]FISCAL(M)'!$AY302=\"\",\"\",'[2]FISCAL(M)'!$AY302)","v":100413.27848717492},{"$f":"IF('[2]FISCAL(M)'!$BI302=\"\",\"\",'[2]FISCAL(M)'!$BI302)","v":50372.737077174912},{"$f":"IF('[2]FISCAL(M)'!$BS302=\"\",\"\",'[2]FISCAL(M)'!$BS302)","v":50040.541410000005},{"$f":"IF('[2]FISCAL(M)'!$AZ302=\"\",\"\",'[2]FISCAL(M)'!$AZ302)","v":117877.79907890492},{"$f":"IF('[2]FISCAL(M)'!$BJ302=\"\",\"\",'[2]FISCAL(M)'!$BJ302)","v":54712.052461954911},{"$f":"IF('[2]FISCAL(M)'!$BT302=\"\",\"\",'[2]FISCAL(M)'!$BT302)","v":63165.746616950004},{"$f":"IF('[3]MONE(M)'!$AO302=\"\",\"\",'[3]MONE(M)'!$AO302)","v":14837907.284803541},{"$f":"IF('[4]MONE(M)'!$AO302=\"\",\"\",'[4]MONE(M)'!$AO302)","v":10429.735434620001},{"$f":"IF('[5]MONE(M)'!$AO302=\"\",\"\",'[5]MONE(M)'!$AO302)","v":151421.03097618069},{"$f":"+'[1]MONE(M)'!$AO302","v":217284.67575283538},{"$f":"IF('[6]MONE(M)'!$AO302=\"\",\"\",'[6]MONE(M)'!$AO302)","v":86012.717890607557},{"$f":"IF('[7]MONE(M)'!$AO302=\"\",\"\",'[7]MONE(M)'!$AO302)","v":613718.69300328998},{"$f":"IF('[8]MONE(M)'!$AO302=\"\",\"\",'[8]MONE(M)'!$AO302)","v":35779.634618009994},18.440227565709844,8.5696183310365548,11.171519390356387,13.820702568645626,22.453124904006149,13.485198834043665,11.262447187065284,{"$f":"IF('[2]FISCAL(M)'!$K302=\"\",\"\",'[2]FISCAL(M)'!$K302)","v":-1225.4261870060222},{"$f":"+'[2]REAL(A)'!$AO$34","v":231352.40693603092},-0.52967946313385594,{"$f":"IF('[2]FISCAL(M)'!$L302=\"\",\"\",'[2]FISCAL(M)'!$L302)","v":-1775.6867720860228},{"$f":"+'[2]REAL(A)'!$AP$34","v":281273.86993603094},-0.63130171760706399,113551.1623731936,{"$f":"'[2]Gráfico REM'!BG296","v":22367.727865087345},{"$f":"'[2]Gráfico REM'!BH296","v":84980.924767304285},{"$f":"'[2]Gráfico REM'!BI296","v":6202.5097408019647},7.6625812450362707,2.7217781351513981,9.1672103003306091,6.0315241757777249,171607.0497160636,{"$f":"'[2]Gráfico REM'!BK296","v":24176.200500077346},{"$f":"'[2]Gráfico REM'!BL296","v":120760.55938531428},{"$f":"'[2]Gráfico REM'!BM296","v":26670.289830671965},6.6824591786284193,2.314765354762649,9.779726320835902,-2.0409163516532658]
[2014,"junio ","2014-junio ",{"$f":"IF('[2]REAL IPC(M)'!$AL303=\"\",\"\",+'[2]REAL IPC(M)'!$AL303)","v":3.7660678042546802},{"$f":"IF('[2]REAL IPC(M)'!$BE303=\"\",\"\",+'[2]REAL IPC(M)'!$BE303)","v":3.2251178289241844},{"$f":"IF('[2]REAL IPC(M)'!$AM303=\"\",\"\",+'[2]REAL IPC(M)'!$AM303)","v":3.7056563982827306},{"$f":"IF('[2]REAL IPC(M)'!$BI303=\"\",\"\",+'[2]REAL IPC(M)'!$BI303)","v":3.1286238957227264},{"$f":"IF('[2]REAL IMAE(M)'!BJ303=\"\",\"\",'[2]REAL IMAE(M)'!BJ303)","v":4.4723509721644961},{"$f":"IF('[2]REAL IMAE(M)'!BK303=\"\",\"\",'[2]REAL IMAE(M)'!BK303)","v":4.4682571169267771},{"$f":"IF('[2]REAL IMAE(M)'!BN303=\"\",\"\",'[2]REAL IMAE(M)'!BN303)","v":4.5140489202050604},{"$f":"IF('[2]REAL IMAE(M)'!BO303=\"\",\"\",'[2]REAL IMAE(M)'!BO303)","v":4.85196310349989},{"$f":"IF('[2]EXT RIN(M)'!$K303=\"\",\"\",'[2]EXT RIN(M)'!$K303)","v":27034.576329538308},"",{"$f":"IF('[2]EXT RIN(M)'!$L303=\"\",\"\",'[2]EXT RIN(M)'!$L303)","v":29377.442458988306},"",{"$f":"IF('[2]MONE(M)CARD'!EG303=\"\",\"\",'[2]MONE(M)CARD'!EG303)","v":26758.77296918731},{"$f":"IF('[2]MONE(M)CARD'!EK303=\"\",\"\",'[2]MONE(M)CARD'!EK303)","v":45615.389198847479},{"$f":"IF('[2]MONE(M)CARD'!EP303=\"\",\"\",'[2]MONE(M)CARD'!EP303)","v":26110.905272690492},{"$f":"IF('[2]MONE(M)CARD'!ES303=\"\",\"\",'[2]MONE(M)CARD'!ES303)","v":5.3060370774172805},{"$f":"IF('[2]MONE(M)CARD'!EV303=\"\",\"\",'[2]MONE(M)CARD'!EV303)","v":5.5445731107403473},{"$f":"IF('[2]MONE(M)CARD'!EZ303=\"\",\"\",'[2]MONE(M)CARD'!EZ303)","v":5.8579132903074704},{"$f":"IF('[2]MONE(M)CAPARD'!FC303=\"\",\"\",'[2]MONE(M)CAPARD'!FC303)","v":34710.11824251731},{"$f":"IF('[2]MONE(M)CAPARD'!FG303=\"\",\"\",'[2]MONE(M)CAPARD'!FG303)","v":71072.574453787471},{"$f":"IF('[2]MONE(M)CAPARD'!FL303=\"\",\"\",'[2]MONE(M)CAPARD'!FL303)","v":26110.905272690492},{"$f":"IF('[2]MONE(M)CAPARD'!FO303=\"\",\"\",'[2]MONE(M)CAPARD'!FO303)","v":7.2262388970806724},{"$f":"IF('[2]MONE(M)CAPARD'!FR303=\"\",\"\",'[2]MONE(M)CAPARD'!FR303)","v":7.0844604015175561},{"$f":"IF('[2]MONE(M)CAPARD'!FV303=\"\",\"\",'[2]MONE(M)CAPARD'!FV303)","v":7.0153421621115486},{"$f":"IF('[2]MONE(M)CARD'!FV303=\"\",\"\",'[2]MONE(M)CARD'!FV303)","v":1056.5695076974919},{"$f":"IF('[2]MONE(M)CARD'!GD303=\"\",\"\",'[2]MONE(M)CARD'!GD303)","v":193.09717440058304},{"$f":"IF('[2]MONE(M)CARD'!GE303=\"\",\"\",'[2]MONE(M)CARD'!GE303)","v":8130.9828084275478},-5.4574920400650822,{"$f":"IF('[9]II.2.Balance OSD-Activos'!J161=\"\",\"\",'[9]II.2.Balance OSD-Activos'!J161)","v":209.46090574807096},{"$f":"IF('[9]II.2.Balance OSD-Activos'!N161=\"\",\"\",'[9]II.2.Balance OSD-Activos'!N161)","v":790.77287216776381},{"$f":"IF('[9]II.2.Balance OSD-Activos'!R161=\"\",\"\",'[9]II.2.Balance OSD-Activos'!R161)","v":39350.533120851498},{"$f":"IF('[9]II.2.Balance OSD-Activos'!S161=\"\",\"\",'[9]II.2.Balance OSD-Activos'!S161)","v":41886.78054726118},39559.994026599568,82237.547446028504,46.694736310135788,11.304000627886301,34.332680808645492,11.161249077220493,8.6134221327197835,10.096359112823162,0.3900174911042118,{"$f":"IF('[2]MONE(M)CAPARD'!GS303=\"\",\"\",'[2]MONE(M)CAPARD'!GS303)","v":15693.955508472349},{"$f":"IF('[2]MONE(M)CARD'!HA303=\"\",\"\",'[2]MONE(M)CAPARD'!HA303)","v":8877.4847481575489},{"$f":"IF('[2]MONE(M)CAPARD'!HB303=\"\",\"\",'[2]MONE(M)CAPARD'!HB303)","v":6816.4707603147999},"n.d.",{"$f":"IF('[10]II.2.Balance OSD-Activos'!J161=\"\",\"\",'[10]II.2.Balance OSD-Activos'!J161)","v":1562.7587694180713},{"$f":"IF('[10]II.2.Balance OSD-Activos'!N161=\"\",\"\",'[10]II.2.Balance OSD-Activos'!N161)","v":1286.3802028677642},{"$f":"IF('[10]II.2.Balance OSD-Activos'!R161=\"\",\"\",'[10]II.2.Balance OSD-Activos'!R161)","v":57372.808058191498},{"$f":"IF('[10]II.2.Balance OSD-Activos'!S161=\"\",\"\",'[10]II.2.Balance OSD-Activos'!S161)","v":57331.047854441174},58935.566827609568,117552.9948849185,44.246626501350519,9.9915394472255059,32.187641244169015,9.2846291119406121,9.8261329247532725,10.112989243858106,8.5472624246630602E-2,{"$f":"IF('[2]MONE(M)CAPARD'!AS303=\"\",\"\",'[2]MONE(M)CAPARD'!AS303)","v":5.25},{"$f":"IF('[2]MONE(M)CAPARD'!AT303=\"\",\"\",'[2]MONE(M)CAPARD'!AT303)","v":"n.a."},{"$f":"IF('[2]MONE(M)CAPARD'!AU303=\"\",\"\",'[2]MONE(M)CAPARD'!AU303)","v":4.5},{"$f":"IF('[2]MONE(M)CAPARD'!AV303=\"\",\"\",'[2]MONE(M)CAPARD'!AV303)","v":7},{"$f":"IF('[2]MONE(M)CAPARD'!AW303=\"\",\"\",'[2]MONE(M)CAPARD'!AW303)","v":"n.a."},{"$f":"IF('[2]MONE(M)CAPARD'!AX303=\"\",\"\",'[2]MONE(M)CAPARD'!AX303)","v":6.25},{"$f":"IF('[2]MONE(M)CAPARD'!AY303=\"\",\"\",'[2]MONE(M)CAPARD'!AY303)","v":"n.a."},{"$f":"IF('[2]FISCAL(M)'!$K303=\"\",\"\",'[2]FISCAL(M)'!$K303)","v":-2099.9994619643167},{"$f":"IF('[2]FISCAL(M)'!$L303=\"\",\"\",'[2]FISCAL(M)'!$L303)","v":-2481.6643277443172},{"$f":"IF('[2]FISCAL(M)'!$AY303=\"\",\"\",'[2]FISCAL(M)'!$AY303)","v":100811.79923548938},{"$f":"IF('[2]FISCAL(M)'!$BI303=\"\",\"\",'[2]FISCAL(M)'!$BI303)","v":50652.459678627609},{"$f":"IF('[2]FISCAL(M)'!$BS303=\"\",\"\",'[2]FISCAL(M)'!$BS303)","v":50159.339556861771},{"$f":"IF('[2]FISCAL(M)'!$AZ303=\"\",\"\",'[2]FISCAL(M)'!$AZ303)","v":118492.53358189936},{"$f":"IF('[2]FISCAL(M)'!$BJ303=\"\",\"\",'[2]FISCAL(M)'!$BJ303)","v":55096.997892267602},{"$f":"IF('[2]FISCAL(M)'!$BT303=\"\",\"\",'[2]FISCAL(M)'!$BT303)","v":63395.535689631768},{"$f":"IF('[3]MONE(M)'!$AO303=\"\",\"\",'[3]MONE(M)'!$AO303)","v":14902810.655981675},{"$f":"IF('[4]MONE(M)'!$AO303=\"\",\"\",'[4]MONE(M)'!$AO303)","v":10481.641811309999},{"$f":"IF('[5]MONE(M)'!$AO303=\"\",\"\",'[5]MONE(M)'!$AO303)","v":151583.65360685406},{"$f":"+'[1]MONE(M)'!$AO303","v":219512.19593485951},{"$f":"IF('[6]MONE(M)'!$AO303=\"\",\"\",'[6]MONE(M)'!$AO303)","v":86685.860791585088},{"$f":"IF('[7]MONE(M)'!$AO303=\"\",\"\",'[7]MONE(M)'!$AO303)","v":622881.48003747},{"$f":"IF('[8]MONE(M)'!$AO303=\"\",\"\",'[8]MONE(M)'!$AO303)","v":35876.992916919997},18.019801212731366,7.7580447763694993,10.413653099562614,14.512960361601234,22.307323844993654,12.775932108073151,10.304364312773039,{"$f":"IF('[2]FISCAL(M)'!$K303=\"\",\"\",'[2]FISCAL(M)'!$K303)","v":-2099.9994619643167},{"$f":"+'[2]REAL(A)'!$AO$34","v":231352.40693603092},-0.90770590623030245,{"$f":"IF('[2]FISCAL(M)'!$L303=\"\",\"\",'[2]FISCAL(M)'!$L303)","v":-2481.6643277443172},{"$f":"+'[2]REAL(A)'!$AP$34","v":281273.86993603094},-0.88229465762628878,114528.9634702199,{"$f":"'[2]Gráfico REM'!BG297","v":22250.498279249958},{"$f":"'[2]Gráfico REM'!BH297","v":85851.637860935938},{"$f":"'[2]Gráfico REM'!BI297","v":6426.8273300339943},8.0560555666523861,2.2242265986673226,9.5915319521141953,9.1861405767935,172809.01374037989,{"$f":"'[2]Gráfico REM'!BK297","v":24082.405332189959},{"$f":"'[2]Gráfico REM'!BL297","v":121728.63077785593},{"$f":"'[2]Gráfico REM'!BM297","v":26997.977630333997},6.6963989741775531,1.8668934414574512,9.8006651507755116,-1.6788110779670906]
[2014,"julio","2014-julio",{"$f":"IF('[2]REAL IPC(M)'!$AL304=\"\",\"\",+'[2]REAL IPC(M)'!$AL304)","v":4.0314724615961195},{"$f":"IF('[2]REAL IPC(M)'!$BE304=\"\",\"\",+'[2]REAL IPC(M)'!$BE304)","v":3.157601098376972},{"$f":"IF('[2]REAL IPC(M)'!$AM304=\"\",\"\",+'[2]REAL IPC(M)'!$AM304)","v":3.7993692746658647},{"$f":"IF('[2]REAL IPC(M)'!$BI304=\"\",\"\",+'[2]REAL IPC(M)'!$BI304)","v":3.0514663746441517},{"$f":"IF('[2]REAL IMAE(M)'!BJ304=\"\",\"\",'[2]REAL IMAE(M)'!BJ304)","v":4.237402506544985},{"$f":"IF('[2]REAL IMAE(M)'!BK304=\"\",\"\",'[2]REAL IMAE(M)'!BK304)","v":4.4955797979546519},{"$f":"IF('[2]REAL IMAE(M)'!BN304=\"\",\"\",'[2]REAL IMAE(M)'!BN304)","v":4.5409668535172143},{"$f":"IF('[2]REAL IMAE(M)'!BO304=\"\",\"\",'[2]REAL IMAE(M)'!BO304)","v":4.8612944328693564},{"$f":"IF('[2]EXT RIN(M)'!$K304=\"\",\"\",'[2]EXT RIN(M)'!$K304)","v":26748.668018820754},"",{"$f":"IF('[2]EXT RIN(M)'!$L304=\"\",\"\",'[2]EXT RIN(M)'!$L304)","v":28990.608711730754},"",{"$f":"IF('[2]MONE(M)CARD'!EG304=\"\",\"\",'[2]MONE(M)CARD'!EG304)","v":26720.393993785787},{"$f":"IF('[2]MONE(M)CARD'!EK304=\"\",\"\",'[2]MONE(M)CARD'!EK304)","v":45953.161918410544},{"$f":"IF('[2]MONE(M)CARD'!EP304=\"\",\"\",'[2]MONE(M)CARD'!EP304)","v":26644.045002234037},{"$f":"IF('[2]MONE(M)CARD'!ES304=\"\",\"\",'[2]MONE(M)CARD'!ES304)","v":6.1248947536508558},{"$f":"IF('[2]MONE(M)CARD'!EV304=\"\",\"\",'[2]MONE(M)CARD'!EV304)","v":5.996937397808666},{"$f":"IF('[2]MONE(M)CARD'!EZ304=\"\",\"\",'[2]MONE(M)CARD'!EZ304)","v":6.4124893155934615},{"$f":"IF('[2]MONE(M)CAPARD'!FC304=\"\",\"\",'[2]MONE(M)CAPARD'!FC304)","v":34870.146840305788},{"$f":"IF('[2]MONE(M)CAPARD'!FG304=\"\",\"\",'[2]MONE(M)CAPARD'!FG304)","v":71491.642198670539},{"$f":"IF('[2]MONE(M)CAPARD'!FL304=\"\",\"\",'[2]MONE(M)CAPARD'!FL304)","v":26644.045002234023},{"$f":"IF('[2]MONE(M)CAPARD'!FO304=\"\",\"\",'[2]MONE(M)CAPARD'!FO304)","v":8.1236189326281849},{"$f":"IF('[2]MONE(M)CAPARD'!FR304=\"\",\"\",'[2]MONE(M)CAPARD'!FR304)","v":7.3740853945938767},{"$f":"IF('[2]MONE(M)CAPARD'!FV304=\"\",\"\",'[2]MONE(M)CAPARD'!FV304)","v":7.4118121215325461},{"$f":"IF('[2]MONE(M)CARD'!FV304=\"\",\"\",'[2]MONE(M)CARD'!FV304)","v":992.82832063178523},{"$f":"IF('[2]MONE(M)CARD'!GD304=\"\",\"\",'[2]MONE(M)CARD'!GD304)","v":85.918968626400755},{"$f":"IF('[2]MONE(M)CARD'!GE304=\"\",\"\",'[2]MONE(M)CARD'!GE304)","v":8376.9703511057378},-2.3169656490230395,{"$f":"IF('[9]II.2.Balance OSD-Activos'!J162=\"\",\"\",'[9]II.2.Balance OSD-Activos'!J162)","v":200.52711010640024},{"$f":"IF('[9]II.2.Balance OSD-Activos'!N162=\"\",\"\",'[9]II.2.Balance OSD-Activos'!N162)","v":778.08593810376647},{"$f":"IF('[9]II.2.Balance OSD-Activos'!R162=\"\",\"\",'[9]II.2.Balance OSD-Activos'!R162)","v":39842.351826794024},{"$f":"IF('[9]II.2.Balance OSD-Activos'!S162=\"\",\"\",'[9]II.2.Balance OSD-Activos'!S162)","v":42284.914577874442},40042.878936900423,83105.879452878638,46.683178782146626,11.69161636266165,26.650552260650628,11.557676265405025,8.7412808108183739,10.291032197914852,0.19467308509169001,{"$f":"IF('[2]MONE(M)CAPARD'!GS304=\"\",\"\",'[2]MONE(M)CAPARD'!GS304)","v":15948.648799619983},{"$f":"IF('[2]MONE(M)CARD'!HA304=\"\",\"\",'[2]MONE(M)CAPARD'!HA304)","v":9138.9260246857375},{"$f":"IF('[2]MONE(M)CAPARD'!HB304=\"\",\"\",'[2]MONE(M)CAPARD'!HB304)","v":6809.7227749342455},"n.d.",{"$f":"IF('[10]II.2.Balance OSD-Activos'!J162=\"\",\"\",'[10]II.2.Balance OSD-Activos'!J162)","v":1632.9516415164005},{"$f":"IF('[10]II.2.Balance OSD-Activos'!N162=\"\",\"\",'[10]II.2.Balance OSD-Activos'!N162)","v":1296.0160306437665},{"$f":"IF('[10]II.2.Balance OSD-Activos'!R162=\"\",\"\",'[10]II.2.Balance OSD-Activos'!R162)","v":58194.849004574033},{"$f":"IF('[10]II.2.Balance OSD-Activos'!S162=\"\",\"\",'[10]II.2.Balance OSD-Activos'!S162)","v":57818.686940774431},59827.800646090436,118942.50361750863,47.821502118299854,10.307095658679977,28.957845319046193,9.5271380731423392,9.7665999142725557,10.216967515451136,0.10397827159303041,{"$f":"IF('[2]MONE(M)CAPARD'!AS304=\"\",\"\",'[2]MONE(M)CAPARD'!AS304)","v":5.25},{"$f":"IF('[2]MONE(M)CAPARD'!AT304=\"\",\"\",'[2]MONE(M)CAPARD'!AT304)","v":"n.a."},{"$f":"IF('[2]MONE(M)CAPARD'!AU304=\"\",\"\",'[2]MONE(M)CAPARD'!AU304)","v":4.5},{"$f":"IF('[2]MONE(M)CAPARD'!AV304=\"\",\"\",'[2]MONE(M)CAPARD'!AV304)","v":7},{"$f":"IF('[2]MONE(M)CAPARD'!AW304=\"\",\"\",'[2]MONE(M)CAPARD'!AW304)","v":"n.a."},{"$f":"IF('[2]MONE(M)CAPARD'!AX304=\"\",\"\",'[2]MONE(M)CAPARD'!AX304)","v":6.25},{"$f":"IF('[2]MONE(M)CAPARD'!AY304=\"\",\"\",'[2]MONE(M)CAPARD'!AY304)","v":"n.a."},{"$f":"IF('[2]FISCAL(M)'!$K304=\"\",\"\",'[2]FISCAL(M)'!$K304)","v":-2594.1305898002061},{"$f":"IF('[2]FISCAL(M)'!$L304=\"\",\"\",'[2]FISCAL(M)'!$L304)","v":-3409.1201349882058},{"$f":"IF('[2]FISCAL(M)'!$AY304=\"\",\"\",'[2]FISCAL(M)'!$AY304)","v":101772.87299412642},{"$f":"IF('[2]FISCAL(M)'!$BI304=\"\",\"\",'[2]FISCAL(M)'!$BI304)","v":51484.969579013152},{"$f":"IF('[2]FISCAL(M)'!$BS304=\"\",\"\",'[2]FISCAL(M)'!$BS304)","v":50287.903415113251},{"$f":"IF('[2]FISCAL(M)'!$AZ304=\"\",\"\",'[2]FISCAL(M)'!$AZ304)","v":119446.47049149641},{"$f":"IF('[2]FISCAL(M)'!$BJ304=\"\",\"\",'[2]FISCAL(M)'!$BJ304)","v":55928.867769083161},{"$f":"IF('[2]FISCAL(M)'!$BT304=\"\",\"\",'[2]FISCAL(M)'!$BT304)","v":63517.602722413256},{"$f":"IF('[3]MONE(M)'!$AO304=\"\",\"\",'[3]MONE(M)'!$AO304)","v":15074561.701025927},{"$f":"IF('[4]MONE(M)'!$AO304=\"\",\"\",'[4]MONE(M)'!$AO304)","v":10464.403429309998},{"$f":"IF('[5]MONE(M)'!$AO304=\"\",\"\",'[5]MONE(M)'!$AO304)","v":153597.38913352793},{"$f":"+'[1]MONE(M)'!$AO304","v":219661.00664310571},{"$f":"IF('[6]MONE(M)'!$AO304=\"\",\"\",'[6]MONE(M)'!$AO304)","v":87496.841681857011},{"$f":"IF('[7]MONE(M)'!$AO304=\"\",\"\",'[7]MONE(M)'!$AO304)","v":635111.60416732996},{"$f":"IF('[8]MONE(M)'!$AO304=\"\",\"\",'[8]MONE(M)'!$AO304)","v":36456.568238789994},18.675937949737719,7.0833959268074898,10.286092499283539,13.428671827665939,22.748009145778546,14.300843755879233,10.228862725009581,{"$f":"IF('[2]FISCAL(M)'!$K304=\"\",\"\",'[2]FISCAL(M)'!$K304)","v":-2594.1305898002061},{"$f":"+'[2]REAL(A)'!$AO$34","v":231352.40693603092},-1.1212896481848511,{"$f":"IF('[2]FISCAL(M)'!$L304=\"\",\"\",'[2]FISCAL(M)'!$L304)","v":-3409.1201349882058},{"$f":"+'[2]REAL(A)'!$AP$34","v":281273.86993603094},-1.2120287376013739,114579.28201982263,{"$f":"'[2]Gráfico REM'!BG298","v":21433.293418233668},{"$f":"'[2]Gráfico REM'!BH298","v":86791.903503063484},{"$f":"'[2]Gráfico REM'!BI298","v":6354.0850985254765},7.2761527287847017,-2.3803838655877319,10.085625555063116,5.6989048051082847,173317.20887989263,{"$f":"'[2]Gráfico REM'!BK298","v":23283.76226199367},{"$f":"'[2]Gráfico REM'!BL298","v":123248.47174185349},{"$f":"'[2]Gráfico REM'!BM298","v":26784.974876045479},5.7559064127497228,-2.7319109831493882,10.127955940757216,-4.4505742990957664]
[2014,"agosto","2014-agosto",{"$f":"IF('[2]REAL IPC(M)'!$AL305=\"\",\"\",+'[2]REAL IPC(M)'!$AL305)","v":4.049611476389714},{"$f":"IF('[2]REAL IPC(M)'!$BE305=\"\",\"\",+'[2]REAL IPC(M)'!$BE305)","v":3.090730427162347},{"$f":"IF('[2]REAL IPC(M)'!$AM305=\"\",\"\",+'[2]REAL IPC(M)'!$AM305)","v":3.8035339922132261},{"$f":"IF('[2]REAL IPC(M)'!$BI305=\"\",\"\",+'[2]REAL IPC(M)'!$BI305)","v":2.9750111842405502},{"$f":"IF('[2]REAL IMAE(M)'!BJ305=\"\",\"\",'[2]REAL IMAE(M)'!BJ305)","v":4.0414241821904007},{"$f":"IF('[2]REAL IMAE(M)'!BK305=\"\",\"\",'[2]REAL IMAE(M)'!BK305)","v":4.5217361404977119},{"$f":"IF('[2]REAL IMAE(M)'!BN305=\"\",\"\",'[2]REAL IMAE(M)'!BN305)","v":4.3323075616122475},{"$f":"IF('[2]REAL IMAE(M)'!BO305=\"\",\"\",'[2]REAL IMAE(M)'!BO305)","v":4.8703085045971761},{"$f":"IF('[2]EXT RIN(M)'!$K305=\"\",\"\",'[2]EXT RIN(M)'!$K305)","v":26579.409698319658},"",{"$f":"IF('[2]EXT RIN(M)'!$L305=\"\",\"\",'[2]EXT RIN(M)'!$L305)","v":29037.740975099659},"",{"$f":"IF('[2]MONE(M)CARD'!EG305=\"\",\"\",'[2]MONE(M)CARD'!EG305)","v":26632.262882261388},{"$f":"IF('[2]MONE(M)CARD'!EK305=\"\",\"\",'[2]MONE(M)CARD'!EK305)","v":46378.403912808601},{"$f":"IF('[2]MONE(M)CARD'!EP305=\"\",\"\",'[2]MONE(M)CARD'!EP305)","v":26818.10408923206},{"$f":"IF('[2]MONE(M)CARD'!ES305=\"\",\"\",'[2]MONE(M)CARD'!ES305)","v":5.4569393805837363},{"$f":"IF('[2]MONE(M)CARD'!EV305=\"\",\"\",'[2]MONE(M)CARD'!EV305)","v":7.179365665876003},{"$f":"IF('[2]MONE(M)CARD'!EZ305=\"\",\"\",'[2]MONE(M)CARD'!EZ305)","v":7.7585018359803914},{"$f":"IF('[2]MONE(M)CAPARD'!FC305=\"\",\"\",'[2]MONE(M)CAPARD'!FC305)","v":34851.130090161387},{"$f":"IF('[2]MONE(M)CAPARD'!FG305=\"\",\"\",'[2]MONE(M)CAPARD'!FG305)","v":72158.960015648598},{"$f":"IF('[2]MONE(M)CAPARD'!FL305=\"\",\"\",'[2]MONE(M)CAPARD'!FL305)","v":26818.10408923206},{"$f":"IF('[2]MONE(M)CAPARD'!FO305=\"\",\"\",'[2]MONE(M)CAPARD'!FO305)","v":7.5432668457728447},{"$f":"IF('[2]MONE(M)CAPARD'!FR305=\"\",\"\",'[2]MONE(M)CAPARD'!FR305)","v":8.2903076225069317},{"$f":"IF('[2]MONE(M)CAPARD'!FV305=\"\",\"\",'[2]MONE(M)CAPARD'!FV305)","v":8.5044357009245175},{"$f":"IF('[2]MONE(M)CARD'!FV305=\"\",\"\",'[2]MONE(M)CARD'!FV305)","v":973.77214198331023},{"$f":"IF('[2]MONE(M)CARD'!GD305=\"\",\"\",'[2]MONE(M)CARD'!GD305)","v":95.827699166047765},{"$f":"IF('[2]MONE(M)CARD'!GE305=\"\",\"\",'[2]MONE(M)CARD'!GE305)","v":8192.4004170679509},-1.5751948365865465,{"$f":"IF('[9]II.2.Balance OSD-Activos'!J163=\"\",\"\",'[9]II.2.Balance OSD-Activos'!J163)","v":204.00389803270355},{"$f":"IF('[9]II.2.Balance OSD-Activos'!N163=\"\",\"\",'[9]II.2.Balance OSD-Activos'!N163)","v":790.24634030945151},{"$f":"IF('[9]II.2.Balance OSD-Activos'!R163=\"\",\"\",'[9]II.2.Balance OSD-Activos'!R163)","v":39986.70008150483},{"$f":"IF('[9]II.2.Balance OSD-Activos'!S163=\"\",\"\",'[9]II.2.Balance OSD-Activos'!S163)","v":42847.193372130001},40190.703979537531,83828.143691976991,52.936082699905221,11.390766367254802,23.754460948902214,11.236602454555467,9.9841349638054346,10.770973754646462,0.47994155673161032,{"$f":"IF('[2]MONE(M)CAPARD'!GS305=\"\",\"\",'[2]MONE(M)CAPARD'!GS305)","v":16177.080287311859},{"$f":"IF('[2]MONE(M)CARD'!HA305=\"\",\"\",'[2]MONE(M)CAPARD'!HA305)","v":8905.9230104979506},{"$f":"IF('[2]MONE(M)CAPARD'!HB305=\"\",\"\",'[2]MONE(M)CAPARD'!HB305)","v":7271.1572768139085},"n.d.",{"$f":"IF('[10]II.2.Balance OSD-Activos'!J163=\"\",\"\",'[10]II.2.Balance OSD-Activos'!J163)","v":1655.6151515327037},{"$f":"IF('[10]II.2.Balance OSD-Activos'!N163=\"\",\"\",'[10]II.2.Balance OSD-Activos'!N163)","v":1311.4391924294514},{"$f":"IF('[10]II.2.Balance OSD-Activos'!R163=\"\",\"\",'[10]II.2.Balance OSD-Activos'!R163)","v":58798.252695704832},{"$f":"IF('[10]II.2.Balance OSD-Activos'!S163=\"\",\"\",'[10]II.2.Balance OSD-Activos'!S163)","v":58564.32791901},60453.867847237532,120329.63495867699,50.171586129789915,10.701114833676728,27.383141646065432,9.8878552065727376,10.708728889113473,10.863059561189914,0.64609204573877754,{"$f":"IF('[2]MONE(M)CAPARD'!AS305=\"\",\"\",'[2]MONE(M)CAPARD'!AS305)","v":5.25},{"$f":"IF('[2]MONE(M)CAPARD'!AT305=\"\",\"\",'[2]MONE(M)CAPARD'!AT305)","v":"n.a."},{"$f":"IF('[2]MONE(M)CAPARD'!AU305=\"\",\"\",'[2]MONE(M)CAPARD'!AU305)","v":4.5},{"$f":"IF('[2]MONE(M)CAPARD'!AV305=\"\",\"\",'[2]MONE(M)CAPARD'!AV305)","v":7},{"$f":"IF('[2]MONE(M)CAPARD'!AW305=\"\",\"\",'[2]MONE(M)CAPARD'!AW305)","v":"n.a."},{"$f":"IF('[2]MONE(M)CAPARD'!AX305=\"\",\"\",'[2]MONE(M)CAPARD'!AX305)","v":6.25},{"$f":"IF('[2]MONE(M)CAPARD'!AY305=\"\",\"\",'[2]MONE(M)CAPARD'!AY305)","v":"n.a."},{"$f":"IF('[2]FISCAL(M)'!$K305=\"\",\"\",'[2]FISCAL(M)'!$K305)","v":-3296.7742788991291},{"$f":"IF('[2]FISCAL(M)'!$L305=\"\",\"\",'[2]FISCAL(M)'!$L305)","v":-4153.6399395771286},{"$f":"IF('[2]FISCAL(M)'!$AY305=\"\",\"\",'[2]FISCAL(M)'!$AY305)","v":102457.44643727248},{"$f":"IF('[2]FISCAL(M)'!$BI305=\"\",\"\",'[2]FISCAL(M)'!$BI305)","v":52160.783088609853},{"$f":"IF('[2]FISCAL(M)'!$BS305=\"\",\"\",'[2]FISCAL(M)'!$BS305)","v":50296.663348662638},{"$f":"IF('[2]FISCAL(M)'!$AZ305=\"\",\"\",'[2]FISCAL(M)'!$AZ305)","v":120217.4488892825},{"$f":"IF('[2]FISCAL(M)'!$BJ305=\"\",\"\",'[2]FISCAL(M)'!$BJ305)","v":56696.918828879854},{"$f":"IF('[2]FISCAL(M)'!$BT305=\"\",\"\",'[2]FISCAL(M)'!$BT305)","v":63520.530060402649},{"$f":"IF('[3]MONE(M)'!$AO305=\"\",\"\",'[3]MONE(M)'!$AO305)","v":15281926.864320923},{"$f":"IF('[4]MONE(M)'!$AO305=\"\",\"\",'[4]MONE(M)'!$AO305)","v":10550.57398745},{"$f":"IF('[5]MONE(M)'!$AO305=\"\",\"\",'[5]MONE(M)'!$AO305)","v":153169.31628248544},{"$f":"+'[1]MONE(M)'!$AO305","v":222583.32573240352},{"$f":"IF('[6]MONE(M)'!$AO305=\"\",\"\",'[6]MONE(M)'!$AO305)","v":88768.106611034862},{"$f":"IF('[7]MONE(M)'!$AO305=\"\",\"\",'[7]MONE(M)'!$AO305)","v":643714.60320767004},{"$f":"IF('[8]MONE(M)'!$AO305=\"\",\"\",'[8]MONE(M)'!$AO305)","v":37119.742849839997},18.912349557529275,6.9231872000107941,8.3244703010580743,13.577403830823576,22.724680010827527,13.9890171952622,11.102064261542388,{"$f":"IF('[2]FISCAL(M)'!$K305=\"\",\"\",'[2]FISCAL(M)'!$K305)","v":-3296.7742788991291},{"$f":"+'[2]REAL(A)'!$AO$34","v":231352.40693603092},-1.4250010719839579,{"$f":"IF('[2]FISCAL(M)'!$L305=\"\",\"\",'[2]FISCAL(M)'!$L305)","v":-4153.6399395771286},{"$f":"+'[2]REAL(A)'!$AP$34","v":281273.86993603094},-1.476724425387177,115736.43004061424,{"$f":"'[2]Gráfico REM'!BG299","v":21532.285824157992},{"$f":"'[2]Gráfico REM'!BH299","v":87580.833294046839},{"$f":"'[2]Gráfico REM'!BI299","v":6623.3109224094133},8.2011604097862687,-1.2051936423924214,10.688207998326238,9.5619217260734182,175472.61646963426,{"$f":"'[2]Gráfico REM'!BK299","v":23429.526459687993},{"$f":"'[2]Gráfico REM'!BL299","v":124700.57614388684},{"$f":"'[2]Gráfico REM'!BM299","v":27342.513866059417},7.0264260939673306,-1.9742885604769222,10.8110783451272,-0.63339466753264961]
[2014,"septiembre","2014-septiembre",{"$f":"IF('[2]REAL IPC(M)'!$AL306=\"\",\"\",+'[2]REAL IPC(M)'!$AL306)","v":3.785112882795616},{"$f":"IF('[2]REAL IPC(M)'!$BE306=\"\",\"\",+'[2]REAL IPC(M)'!$BE306)","v":3.024752211016013},{"$f":"IF('[2]REAL IPC(M)'!$AM306=\"\",\"\",+'[2]REAL IPC(M)'!$AM306)","v":3.599701269604183},{"$f":"IF('[2]REAL IPC(M)'!$BI306=\"\",\"\",+'[2]REAL IPC(M)'!$BI306)","v":2.8995593190469071},{"$f":"IF('[2]REAL IMAE(M)'!BJ306=\"\",\"\",'[2]REAL IMAE(M)'!BJ306)","v":4.1185873079375268},{"$f":"IF('[2]REAL IMAE(M)'!BK306=\"\",\"\",'[2]REAL IMAE(M)'!BK306)","v":4.5465871679655434},{"$f":"IF('[2]REAL IMAE(M)'!BN306=\"\",\"\",'[2]REAL IMAE(M)'!BN306)","v":4.1873372291672206},{"$f":"IF('[2]REAL IMAE(M)'!BO306=\"\",\"\",'[2]REAL IMAE(M)'!BO306)","v":4.8788900002171065},{"$f":"IF('[2]EXT RIN(M)'!$K306=\"\",\"\",'[2]EXT RIN(M)'!$K306)","v":26424.330832199164},"",{"$f":"IF('[2]EXT RIN(M)'!$L306=\"\",\"\",'[2]EXT RIN(M)'!$L306)","v":29817.364288359164},"",{"$f":"IF('[2]MONE(M)CARD'!EG306=\"\",\"\",'[2]MONE(M)CARD'!EG306)","v":26917.273380106584},{"$f":"IF('[2]MONE(M)CARD'!EK306=\"\",\"\",'[2]MONE(M)CARD'!EK306)","v":46680.502268668242},{"$f":"IF('[2]MONE(M)CARD'!EP306=\"\",\"\",'[2]MONE(M)CARD'!EP306)","v":26567.288928981114},{"$f":"IF('[2]MONE(M)CARD'!ES306=\"\",\"\",'[2]MONE(M)CARD'!ES306)","v":6.4965443245188048},{"$f":"IF('[2]MONE(M)CARD'!EV306=\"\",\"\",'[2]MONE(M)CARD'!EV306)","v":7.0231825653850333},{"$f":"IF('[2]MONE(M)CARD'!EZ306=\"\",\"\",'[2]MONE(M)CARD'!EZ306)","v":7.7288585497711004},{"$f":"IF('[2]MONE(M)CAPARD'!FC306=\"\",\"\",'[2]MONE(M)CAPARD'!FC306)","v":34991.557676726588},{"$f":"IF('[2]MONE(M)CAPARD'!FG306=\"\",\"\",'[2]MONE(M)CAPARD'!FG306)","v":72541.536739528237},{"$f":"IF('[2]MONE(M)CAPARD'!FL306=\"\",\"\",'[2]MONE(M)CAPARD'!FL306)","v":26567.288928981099},{"$f":"IF('[2]MONE(M)CAPARD'!FO306=\"\",\"\",'[2]MONE(M)CAPARD'!FO306)","v":7.3422786462183254},{"$f":"IF('[2]MONE(M)CAPARD'!FR306=\"\",\"\",'[2]MONE(M)CAPARD'!FR306)","v":7.8003139321677351},{"$f":"IF('[2]MONE(M)CAPARD'!FV306=\"\",\"\",'[2]MONE(M)CAPARD'!FV306)","v":8.177829949638916},{"$f":"IF('[2]MONE(M)CARD'!FV306=\"\",\"\",'[2]MONE(M)CARD'!FV306)","v":937.6189503643177},{"$f":"IF('[2]MONE(M)CARD'!GD306=\"\",\"\",'[2]MONE(M)CARD'!GD306)","v":203.08874616082781},{"$f":"IF('[2]MONE(M)CARD'!GE306=\"\",\"\",'[2]MONE(M)CARD'!GE306)","v":8288.7865719656456},4.329383304628398,{"$f":"IF('[9]II.2.Balance OSD-Activos'!J164=\"\",\"\",'[9]II.2.Balance OSD-Activos'!J164)","v":195.97702807381813},{"$f":"IF('[9]II.2.Balance OSD-Activos'!N164=\"\",\"\",'[9]II.2.Balance OSD-Activos'!N164)","v":845.24485662603342},{"$f":"IF('[9]II.2.Balance OSD-Activos'!R164=\"\",\"\",'[9]II.2.Balance OSD-Activos'!R164)","v":39927.255083022043},{"$f":"IF('[9]II.2.Balance OSD-Activos'!S164=\"\",\"\",'[9]II.2.Balance OSD-Activos'!S164)","v":43508.02986661133},40123.232111095858,{"$f":"IF(OR(AF299=\"\",AG299=\"\",AH299=\"\",AI299=\"\"),\"\",SUM(AF299:AI299))","v":84476.506834333224},49.251904360109712,9.3720948097335786,29.369621214696551,9.2288409827058224,10.459837689087115,10.100782004866238,-0.67019174978022455,{"$f":"IF('[2]MONE(M)CAPARD'!GS306=\"\",\"\",'[2]MONE(M)CAPARD'!GS306)","v":15468.822615104198},{"$f":"IF('[2]MONE(M)CARD'!HA306=\"\",\"\",'[2]MONE(M)CAPARD'!HA306)","v":9103.6633505956452},{"$f":"IF('[2]MONE(M)CAPARD'!HB306=\"\",\"\",'[2]MONE(M)CAPARD'!HB306)","v":6365.159264508553},"n.d.",{"$f":"IF('[10]II.2.Balance OSD-Activos'!J164=\"\",\"\",'[10]II.2.Balance OSD-Activos'!J164)","v":1667.9221707538179},{"$f":"IF('[10]II.2.Balance OSD-Activos'!N164=\"\",\"\",'[10]II.2.Balance OSD-Activos'!N164)","v":1374.5515948360332},{"$f":"IF('[10]II.2.Balance OSD-Activos'!R164=\"\",\"\",'[10]II.2.Balance OSD-Activos'!R164)","v":59031.201796422043},{"$f":"IF('[10]II.2.Balance OSD-Activos'!S164=\"\",\"\",'[10]II.2.Balance OSD-Activos'!S164)","v":59408.364144881329},60699.123967175859,121482.03970689322,46.268270170088563,9.674477153116845,25.923735320794972,8.904641803167701,11.116223646753308,10.537253357866838,-0.32580620332307575,{"$f":"IF('[2]MONE(M)CAPARD'!AS306=\"\",\"\",'[2]MONE(M)CAPARD'!AS306)","v":5.25},{"$f":"IF('[2]MONE(M)CAPARD'!AT306=\"\",\"\",'[2]MONE(M)CAPARD'!AT306)","v":"n.a."},{"$f":"IF('[2]MONE(M)CAPARD'!AU306=\"\",\"\",'[2]MONE(M)CAPARD'!AU306)","v":4.5},{"$f":"IF('[2]MONE(M)CAPARD'!AV306=\"\",\"\",'[2]MONE(M)CAPARD'!AV306)","v":7},{"$f":"IF('[2]MONE(M)CAPARD'!AW306=\"\",\"\",'[2]MONE(M)CAPARD'!AW306)","v":"n.a."},{"$f":"IF('[2]MONE(M)CAPARD'!AX306=\"\",\"\",'[2]MONE(M)CAPARD'!AX306)","v":6.25},{"$f":"IF('[2]MONE(M)CAPARD'!AY306=\"\",\"\",'[2]MONE(M)CAPARD'!AY306)","v":"n.a."},{"$f":"IF('[2]FISCAL(M)'!$K306=\"\",\"\",'[2]FISCAL(M)'!$K306)","v":-3918.4792485454122},{"$f":"IF('[2]FISCAL(M)'!$L306=\"\",\"\",'[2]FISCAL(M)'!$L306)","v":-3458.0925173734126},{"$f":"IF('[2]FISCAL(M)'!$AY306=\"\",\"\",'[2]FISCAL(M)'!$AY306)","v":102476.10531022538},{"$f":"IF('[2]FISCAL(M)'!$BI306=\"\",\"\",'[2]FISCAL(M)'!$BI306)","v":51581.14583550689},{"$f":"IF('[2]FISCAL(M)'!$BS306=\"\",\"\",'[2]FISCAL(M)'!$BS306)","v":50894.959474718489},{"$f":"IF('[2]FISCAL(M)'!$AZ306=\"\",\"\",'[2]FISCAL(M)'!$AZ306)","v":120915.73404786538},{"$f":"IF('[2]FISCAL(M)'!$BJ306=\"\",\"\",'[2]FISCAL(M)'!$BJ306)","v":55584.214525246891},{"$f":"IF('[2]FISCAL(M)'!$BT306=\"\",\"\",'[2]FISCAL(M)'!$BT306)","v":65331.519522618481},{"$f":"IF('[3]MONE(M)'!$AO306=\"\",\"\",'[3]MONE(M)'!$AO306)","v":15338812.09906611},{"$f":"IF('[4]MONE(M)'!$AO306=\"\",\"\",'[4]MONE(M)'!$AO306)","v":10601.511676820001},{"$f":"IF('[5]MONE(M)'!$AO306=\"\",\"\",'[5]MONE(M)'!$AO306)","v":153714.61361493432},{"$f":"+'[1]MONE(M)'!$AO306","v":224961.40416286793},{"$f":"IF('[6]MONE(M)'!$AO306=\"\",\"\",'[6]MONE(M)'!$AO306)","v":89674.577212160846},{"$f":"IF('[7]MONE(M)'!$AO306=\"\",\"\",'[7]MONE(M)'!$AO306)","v":650573.89848040999},{"$f":"IF('[8]MONE(M)'!$AO306=\"\",\"\",'[8]MONE(M)'!$AO306)","v":37682.759860039994},{"$f":"IF(BY299=\"\",\"\",((BY299/BY287)-1)*100)","v":18.363441277265569},7.513795285795144,7.9394048259235239,13.365470772604194,21.880076677301563,13.584334016463263,11.852208644893135,{"$f":"IF('[2]FISCAL(M)'!$K306=\"\",\"\",'[2]FISCAL(M)'!$K306)","v":-3918.4792485454122},{"$f":"+'[2]REAL(A)'!$AO$34","v":231352.40693603092},-1.6937274612530286,{"$f":"IF('[2]FISCAL(M)'!$L306=\"\",\"\",'[2]FISCAL(M)'!$L306)","v":-3458.0925173734126},{"$f":"+'[2]REAL(A)'!$AP$34","v":281273.86993603094},-1.2294396625466395,116013.71364507836,{"$f":"'[2]Gráfico REM'!BG300","v":20841.408860916985},{"$f":"'[2]Gráfico REM'!BH300","v":88251.728712339536},{"$f":"'[2]Gráfico REM'!BI300","v":6920.5760718218407},7.5221207624199149,-3.6655010146120715,10.086664425779034,13.499936054780148,176626.30414236835,{"$f":"'[2]Gráfico REM'!BK300","v":22613.145201106985},{"$f":"'[2]Gráfico REM'!BL300","v":125934.48857237953},{"$f":"'[2]Gráfico REM'!BM300","v":28078.670368881838},7.0190279682569079,-5.1967920080441381,10.609088121243438,2.725168463456118]
[2014,"octubre","2014-octubre",{"$f":"IF('[2]REAL IPC(M)'!$AL307=\"\",\"\",+'[2]REAL IPC(M)'!$AL307)","v":3.9787996416840832},{"$f":"IF('[2]REAL IPC(M)'!$BE307=\"\",\"\",+'[2]REAL IPC(M)'!$BE307)","v":2.9599649117781457},{"$f":"IF('[2]REAL IPC(M)'!$AM307=\"\",\"\",+'[2]REAL IPC(M)'!$AM307)","v":3.7474755030293849},{"$f":"IF('[2]REAL IPC(M)'!$BI307=\"\",\"\",+'[2]REAL IPC(M)'!$BI307)","v":2.8254629073260817},{"$f":"IF('[2]REAL IMAE(M)'!BJ307=\"\",\"\",'[2]REAL IMAE(M)'!BJ307)","v":4.3486672210635513},{"$f":"IF('[2]REAL IMAE(M)'!BK307=\"\",\"\",'[2]REAL IMAE(M)'!BK307)","v":4.569967637816208},{"$f":"IF('[2]REAL IMAE(M)'!BN307=\"\",\"\",'[2]REAL IMAE(M)'!BN307)","v":4.1934794331762948},{"$f":"IF('[2]REAL IMAE(M)'!BO307=\"\",\"\",'[2]REAL IMAE(M)'!BO307)","v":4.8868881784114304},{"$f":"IF('[2]EXT RIN(M)'!$K307=\"\",\"\",'[2]EXT RIN(M)'!$K307)","v":26356.638916895186},"",{"$f":"IF('[2]EXT RIN(M)'!$L307=\"\",\"\",'[2]EXT RIN(M)'!$L307)","v":29773.351893185187},"",{"$f":"IF('[2]MONE(M)CARD'!EG307=\"\",\"\",'[2]MONE(M)CARD'!EG307)","v":26917.148015608502},{"$f":"IF('[2]MONE(M)CARD'!EK307=\"\",\"\",'[2]MONE(M)CARD'!EK307)","v":47123.296283856398},{"$f":"IF('[2]MONE(M)CARD'!EP307=\"\",\"\",'[2]MONE(M)CARD'!EP307)","v":26546.202497352046},{"$f":"IF('[2]MONE(M)CARD'!ES307=\"\",\"\",'[2]MONE(M)CARD'!ES307)","v":6.947543161320513},{"$f":"IF('[2]MONE(M)CARD'!EV307=\"\",\"\",'[2]MONE(M)CARD'!EV307)","v":7.4387604503751259},{"$f":"IF('[2]MONE(M)CARD'!EZ307=\"\",\"\",'[2]MONE(M)CARD'!EZ307)","v":7.7298613050977627},{"$f":"IF('[2]MONE(M)CAPARD'!FC307=\"\",\"\",'[2]MONE(M)CAPARD'!FC307)","v":34869.925733018506},{"$f":"IF('[2]MONE(M)CAPARD'!FG307=\"\",\"\",'[2]MONE(M)CAPARD'!FG307)","v":73208.578058306404},{"$f":"IF('[2]MONE(M)CAPARD'!FL307=\"\",\"\",'[2]MONE(M)CAPARD'!FL307)","v":26546.202497352031},{"$f":"IF('[2]MONE(M)CAPARD'!FO307=\"\",\"\",'[2]MONE(M)CAPARD'!FO307)","v":6.7673935418501197},{"$f":"IF('[2]MONE(M)CAPARD'!FR307=\"\",\"\",'[2]MONE(M)CAPARD'!FR307)","v":7.7285962889218851},{"$f":"IF('[2]MONE(M)CAPARD'!FV307=\"\",\"\",'[2]MONE(M)CAPARD'!FV307)","v":7.8896147222603741},{"$f":"IF('[2]MONE(M)CARD'!FV307=\"\",\"\",'[2]MONE(M)CARD'!FV307)","v":903.43346426385415},{"$f":"IF('[2]MONE(M)CARD'!GD307=\"\",\"\",'[2]MONE(M)CARD'!GD307)","v":97.261820773499636},{"$f":"IF('[2]MONE(M)CARD'!GE307=\"\",\"\",'[2]MONE(M)CARD'!GE307)","v":8215.3835876683133},1.8395293835592463,{"$f":"IF('[9]II.2.Balance OSD-Activos'!J165=\"\",\"\",'[9]II.2.Balance OSD-Activos'!J165)","v":196.90501713872658},{"$f":"IF('[9]II.2.Balance OSD-Activos'!N165=\"\",\"\",'[9]II.2.Balance OSD-Activos'!N165)","v":876.15332325612621},{"$f":"IF('[9]II.2.Balance OSD-Activos'!R165=\"\",\"\",'[9]II.2.Balance OSD-Activos'!R165)","v":40584.624829148088},{"$f":"IF('[9]II.2.Balance OSD-Activos'!S165=\"\",\"\",'[9]II.2.Balance OSD-Activos'!S165)","v":44052.265411362772},40781.529846286816,{"$f":"IF(OR(AF300=\"\",AG300=\"\",AH300=\"\",AI300=\"\"),\"\",SUM(AF300:AI300))","v":85709.948580905708},45.161080135832002,9.1071924626759717,35.660294510884597,8.9758734782393823,10.723200287240676,10.153899844146697,5.3117839280458767E-2,{"$f":"IF('[2]MONE(M)CAPARD'!GS307=\"\",\"\",'[2]MONE(M)CAPARD'!GS307)","v":15617.965264681901},{"$f":"IF('[2]MONE(M)CARD'!HA307=\"\",\"\",'[2]MONE(M)CAPARD'!HA307)","v":8981.8388381383138},{"$f":"IF('[2]MONE(M)CAPARD'!HB307=\"\",\"\",'[2]MONE(M)CAPARD'!HB307)","v":6636.1264265435875},"n.d.",{"$f":"IF('[10]II.2.Balance OSD-Activos'!J165=\"\",\"\",'[10]II.2.Balance OSD-Activos'!J165)","v":1667.2987965987268},{"$f":"IF('[10]II.2.Balance OSD-Activos'!N165=\"\",\"\",'[10]II.2.Balance OSD-Activos'!N165)","v":1404.6722341361265},{"$f":"IF('[10]II.2.Balance OSD-Activos'!R165=\"\",\"\",'[10]II.2.Balance OSD-Activos'!R165)","v":59997.724461748083},{"$f":"IF('[10]II.2.Balance OSD-Activos'!S165=\"\",\"\",'[10]II.2.Balance OSD-Activos'!S165)","v":60102.442476622768},61665.02325834681,123172.13796910571,36.535703839596408,9.9257762659926918,29.706298424046906,9.3336287944283391,11.236250589624097,10.755083197192894,0.21782983932605582,{"$f":"IF('[2]MONE(M)CAPARD'!AS307=\"\",\"\",'[2]MONE(M)CAPARD'!AS307)","v":5.25},{"$f":"IF('[2]MONE(M)CAPARD'!AT307=\"\",\"\",'[2]MONE(M)CAPARD'!AT307)","v":"n.a."},{"$f":"IF('[2]MONE(M)CAPARD'!AU307=\"\",\"\",'[2]MONE(M)CAPARD'!AU307)","v":4.5},{"$f":"IF('[2]MONE(M)CAPARD'!AV307=\"\",\"\",'[2]MONE(M)CAPARD'!AV307)","v":7},{"$f":"IF('[2]MONE(M)CAPARD'!AW307=\"\",\"\",'[2]MONE(M)CAPARD'!AW307)","v":"n.a."},{"$f":"IF('[2]MONE(M)CAPARD'!AX307=\"\",\"\",'[2]MONE(M)CAPARD'!AX307)","v":6.25},{"$f":"IF('[2]MONE(M)CAPARD'!AY307=\"\",\"\",'[2]MONE(M)CAPARD'!AY307)","v":"n.a."},{"$f":"IF('[2]FISCAL(M)'!$K307=\"\",\"\",'[2]FISCAL(M)'!$K307)","v":-4097.3713481987234},{"$f":"IF('[2]FISCAL(M)'!$L307=\"\",\"\",'[2]FISCAL(M)'!$L307)","v":-3716.8610310667236},{"$f":"IF('[2]FISCAL(M)'!$AY307=\"\",\"\",'[2]FISCAL(M)'!$AY307)","v":102793.94626785105},{"$f":"IF('[2]FISCAL(M)'!$BI307=\"\",\"\",'[2]FISCAL(M)'!$BI307)","v":51948.210967851068},{"$f":"IF('[2]FISCAL(M)'!$BS307=\"\",\"\",'[2]FISCAL(M)'!$BS307)","v":50845.7353},{"$f":"IF('[2]FISCAL(M)'!$AZ307=\"\",\"\",'[2]FISCAL(M)'!$AZ307)","v":121218.66322112107},{"$f":"IF('[2]FISCAL(M)'!$BJ307=\"\",\"\",'[2]FISCAL(M)'!$BJ307)","v":55979.936985131069},{"$f":"IF('[2]FISCAL(M)'!$BT307=\"\",\"\",'[2]FISCAL(M)'!$BT307)","v":65238.726235989991},{"$f":"IF('[3]MONE(M)'!$AO307=\"\",\"\",'[3]MONE(M)'!$AO307)","v":15589186.158845015},{"$f":"IF('[4]MONE(M)'!$AO307=\"\",\"\",'[4]MONE(M)'!$AO307)","v":10627.696646820004},{"$f":"IF('[5]MONE(M)'!$AO307=\"\",\"\",'[5]MONE(M)'!$AO307)","v":155019.64690529858},{"$f":"+'[1]MONE(M)'!$AO307","v":228363.13254802587},{"$f":"IF('[6]MONE(M)'!$AO307=\"\",\"\",'[6]MONE(M)'!$AO307)","v":91112.986098151363},{"$f":"IF('[7]MONE(M)'!$AO307=\"\",\"\",'[7]MONE(M)'!$AO307)","v":668563.70064499998},{"$f":"IF('[8]MONE(M)'!$AO307=\"\",\"\",'[8]MONE(M)'!$AO307)","v":38160.711866529993},18.657382714563163,6.2157862944486997,7.80548995407917,11.694485615274019,19.675782213652294,15.714664485400176,12.409416808922646,{"$f":"IF('[2]FISCAL(M)'!$K307=\"\",\"\",'[2]FISCAL(M)'!$K307)","v":-4097.3713481987234},{"$f":"+'[2]REAL(A)'!$AO$34","v":231352.40693603092},-1.771051964603787,{"$f":"IF('[2]FISCAL(M)'!$L307=\"\",\"\",'[2]FISCAL(M)'!$L307)","v":-3716.8610310667236},{"$f":"+'[2]REAL(A)'!$AP$34","v":281273.86993603094},-1.3214384371758512,117055.54889667065,{"$f":"'[2]Gráfico REM'!BG301","v":20373.138539440399},{"$f":"'[2]Gráfico REM'!BH301","v":89638.809078892416},{"$f":"'[2]Gráfico REM'!BI301","v":7043.6012783378364},7.8079279774027288,-3.3575703209004493,10.171473289793109,14.830206508948706,178318.90457461067,{"$f":"'[2]Gráfico REM'!BK301","v":22295.983279890399},{"$f":"'[2]Gráfico REM'!BL301","v":127799.52094542241},{"$f":"'[2]Gráfico REM'!BM301","v":28223.400349297841},8.8893196036491595,-4.463460598222257,10.830332017113498,12.385616499318974]
[2014,"noviembre","2014-noviembre",{"$f":"IF('[2]REAL IPC(M)'!$AL308=\"\",\"\",+'[2]REAL IPC(M)'!$AL308)","v":3.8785081515670283},{"$f":"IF('[2]REAL IPC(M)'!$BE308=\"\",\"\",+'[2]REAL IPC(M)'!$BE308)","v":2.8967152411369934},{"$f":"IF('[2]REAL IPC(M)'!$AM308=\"\",\"\",+'[2]REAL IPC(M)'!$AM308)","v":3.5962098037752632},{"$f":"IF('[2]REAL IPC(M)'!$BI308=\"\",\"\",+'[2]REAL IPC(M)'!$BI308)","v":2.7531242210140139},{"$f":"IF('[2]REAL IMAE(M)'!BJ308=\"\",\"\",'[2]REAL IMAE(M)'!BJ308)","v":4.6552508396246584},{"$f":"IF('[2]REAL IMAE(M)'!BK308=\"\",\"\",'[2]REAL IMAE(M)'!BK308)","v":4.5916886774995058},{"$f":"IF('[2]REAL IMAE(M)'!BN308=\"\",\"\",'[2]REAL IMAE(M)'!BN308)","v":4.6437959362908954},{"$f":"IF('[2]REAL IMAE(M)'!BO308=\"\",\"\",'[2]REAL IMAE(M)'!BO308)","v":4.8941073216187903},{"$f":"IF('[2]EXT RIN(M)'!$K308=\"\",\"\",'[2]EXT RIN(M)'!$K308)","v":26346.914638817725},"",{"$f":"IF('[2]EXT RIN(M)'!$L308=\"\",\"\",'[2]EXT RIN(M)'!$L308)","v":30276.050594377724},"",{"$f":"IF('[2]MONE(M)CARD'!EG308=\"\",\"\",'[2]MONE(M)CARD'!EG308)","v":27884.898383176576},{"$f":"IF('[2]MONE(M)CARD'!EK308=\"\",\"\",'[2]MONE(M)CARD'!EK308)","v":46823.123341853716},{"$f":"IF('[2]MONE(M)CARD'!EP308=\"\",\"\",'[2]MONE(M)CARD'!EP308)","v":26705.905342407976},{"$f":"IF('[2]MONE(M)CARD'!ES308=\"\",\"\",'[2]MONE(M)CARD'!ES308)","v":7.3734716887888796},{"$f":"IF('[2]MONE(M)CARD'!EV308=\"\",\"\",'[2]MONE(M)CARD'!EV308)","v":7.7383363884194978},{"$f":"IF('[2]MONE(M)CARD'!EZ308=\"\",\"\",'[2]MONE(M)CARD'!EZ308)","v":8.2375352901075782},{"$f":"IF('[2]MONE(M)CAPARD'!FC308=\"\",\"\",'[2]MONE(M)CAPARD'!FC308)","v":36023.345381166575},{"$f":"IF('[2]MONE(M)CAPARD'!FG308=\"\",\"\",'[2]MONE(M)CAPARD'!FG308)","v":72914.828997893695},{"$f":"IF('[2]MONE(M)CAPARD'!FL308=\"\",\"\",'[2]MONE(M)CAPARD'!FL308)","v":26705.90534240799},{"$f":"IF('[2]MONE(M)CAPARD'!FO308=\"\",\"\",'[2]MONE(M)CAPARD'!FO308)","v":11.47930796943859},{"$f":"IF('[2]MONE(M)CAPARD'!FR308=\"\",\"\",'[2]MONE(M)CAPARD'!FR308)","v":13.162695945914638},{"$f":"IF('[2]MONE(M)CAPARD'!FV308=\"\",\"\",'[2]MONE(M)CAPARD'!FV308)","v":12.455270786867544},{"$f":"IF('[2]MONE(M)CARD'!FV308=\"\",\"\",'[2]MONE(M)CARD'!FV308)","v":878.98322763971441},{"$f":"IF('[2]MONE(M)CARD'!GD308=\"\",\"\",'[2]MONE(M)CARD'!GD308)","v":96.045669145538653},{"$f":"IF('[2]MONE(M)CARD'!GE308=\"\",\"\",'[2]MONE(M)CARD'!GE308)","v":8006.7947738736611},-6.2358279405296919,{"$f":"IF('[9]II.2.Balance OSD-Activos'!J166=\"\",\"\",'[9]II.2.Balance OSD-Activos'!J166)","v":178.95943375341824},{"$f":"IF('[9]II.2.Balance OSD-Activos'!N166=\"\",\"\",'[9]II.2.Balance OSD-Activos'!N166)","v":872.64235893422926},{"$f":"IF('[9]II.2.Balance OSD-Activos'!R166=\"\",\"\",'[9]II.2.Balance OSD-Activos'!R166)","v":41502.279271721563},{"$f":"IF('[9]II.2.Balance OSD-Activos'!S166=\"\",\"\",'[9]II.2.Balance OSD-Activos'!S166)","v":44616.807898947976},41681.238705474985,87170.688963357185,26.948036495754145,9.7492105662565276,26.534334237363886,9.6851334100408017,10.233237074857593,10.143012880563184,-1.088696358351271E-2,{"$f":"IF('[2]MONE(M)CAPARD'!GS308=\"\",\"\",'[2]MONE(M)CAPARD'!GS308)","v":14982.264288350967},{"$f":"IF('[2]MONE(M)CARD'!HA308=\"\",\"\",'[2]MONE(M)CAPARD'!HA308)","v":8777.34781981366},{"$f":"IF('[2]MONE(M)CAPARD'!HB308=\"\",\"\",'[2]MONE(M)CAPARD'!HB308)","v":6204.9164685373071},"n.d.",{"$f":"IF('[10]II.2.Balance OSD-Activos'!J166=\"\",\"\",'[10]II.2.Balance OSD-Activos'!J166)","v":1649.4962405034182},{"$f":"IF('[10]II.2.Balance OSD-Activos'!N166=\"\",\"\",'[10]II.2.Balance OSD-Activos'!N166)","v":1431.3249416042295},{"$f":"IF('[10]II.2.Balance OSD-Activos'!R166=\"\",\"\",'[10]II.2.Balance OSD-Activos'!R166)","v":61146.596335881564},{"$f":"IF('[10]II.2.Balance OSD-Activos'!S166=\"\",\"\",'[10]II.2.Balance OSD-Activos'!S166)","v":60815.26587112798},62796.092576384981,125042.68338911718,18.407934006498472,15.29985678561907,28.01695310944563,15.218271583199151,15.885128697671158,15.715671909331652,4.9605887121387582,{"$f":"IF('[2]MONE(M)CAPARD'!AS308=\"\",\"\",'[2]MONE(M)CAPARD'!AS308)","v":5.25},{"$f":"IF('[2]MONE(M)CAPARD'!AT308=\"\",\"\",'[2]MONE(M)CAPARD'!AT308)","v":"n.a."},{"$f":"IF('[2]MONE(M)CAPARD'!AU308=\"\",\"\",'[2]MONE(M)CAPARD'!AU308)","v":4},{"$f":"IF('[2]MONE(M)CAPARD'!AV308=\"\",\"\",'[2]MONE(M)CAPARD'!AV308)","v":7},{"$f":"IF('[2]MONE(M)CAPARD'!AW308=\"\",\"\",'[2]MONE(M)CAPARD'!AW308)","v":"n.a."},{"$f":"IF('[2]MONE(M)CAPARD'!AX308=\"\",\"\",'[2]MONE(M)CAPARD'!AX308)","v":6.25},{"$f":"IF('[2]MONE(M)CAPARD'!AY308=\"\",\"\",'[2]MONE(M)CAPARD'!AY308)","v":"n.a."},{"$f":"IF('[2]FISCAL(M)'!$K308=\"\",\"\",'[2]FISCAL(M)'!$K308)","v":-5256.4409725844089},{"$f":"IF('[2]FISCAL(M)'!$L308=\"\",\"\",'[2]FISCAL(M)'!$L308)","v":-4833.4840149624097},{"$f":"IF('[2]FISCAL(M)'!$AY308=\"\",\"\",'[2]FISCAL(M)'!$AY308)","v":102574.25343391729},{"$f":"IF('[2]FISCAL(M)'!$BI308=\"\",\"\",'[2]FISCAL(M)'!$BI308)","v":51252.329003114079},{"$f":"IF('[2]FISCAL(M)'!$BS308=\"\",\"\",'[2]FISCAL(M)'!$BS308)","v":51321.924430803207},{"$f":"IF('[2]FISCAL(M)'!$AZ308=\"\",\"\",'[2]FISCAL(M)'!$AZ308)","v":120913.94708866728},{"$f":"IF('[2]FISCAL(M)'!$BJ308=\"\",\"\",'[2]FISCAL(M)'!$BJ308)","v":55247.494417014081},{"$f":"IF('[2]FISCAL(M)'!$BT308=\"\",\"\",'[2]FISCAL(M)'!$BT308)","v":65666.452671653213},{"$f":"IF('[3]MONE(M)'!$AO308=\"\",\"\",'[3]MONE(M)'!$AO308)","v":15765930.409410212},{"$f":"IF('[4]MONE(M)'!$AO308=\"\",\"\",'[4]MONE(M)'!$AO308)","v":10714.16986333},{"$f":"IF('[5]MONE(M)'!$AO308=\"\",\"\",'[5]MONE(M)'!$AO308)","v":156944.31941509101},{"$f":"+'[1]MONE(M)'!$AO308","v":231765.71305523498},{"$f":"IF('[6]MONE(M)'!$AO308=\"\",\"\",'[6]MONE(M)'!$AO308)","v":94489.953607852527},{"$f":"IF('[7]MONE(M)'!$AO308=\"\",\"\",'[7]MONE(M)'!$AO308)","v":687438.75309000001},{"$f":"IF('[8]MONE(M)'!$AO308=\"\",\"\",'[8]MONE(M)'!$AO308)","v":38531.707593690007},18.191490178279125,5.3824459775601019,8.2248070651267611,11.824087719207533,20.967918216604264,16.456437494943433,31.137047482721659,{"$f":"IF('[2]FISCAL(M)'!$K308=\"\",\"\",'[2]FISCAL(M)'!$K308)","v":-5256.4409725844089},{"$f":"+'[2]REAL(A)'!$AO$34","v":231352.40693603092},-2.2720493995283211,{"$f":"IF('[2]FISCAL(M)'!$L308=\"\",\"\",'[2]FISCAL(M)'!$L308)","v":-4833.4840149624097},{"$f":"+'[2]REAL(A)'!$AP$34","v":281273.86993603094},-1.7184262498545175,117325.02047279736,{"$f":"'[2]Gráfico REM'!BG302","v":19561.128921047399},{"$f":"'[2]Gráfico REM'!BH302","v":91003.794846461751},{"$f":"'[2]Gráfico REM'!BI302","v":6760.0967052882224},6.3936526603534105,-8.7661941063568278,10.107449454456408,9.3193318501675559,179434.31995139737,{"$f":"'[2]Gráfico REM'!BK302","v":21459.251847117397},{"$f":"'[2]Gráfico REM'!BL302","v":129535.50244015176},{"$f":"'[2]Gráfico REM'!BM302","v":28439.565664128226},12.18885112425745,-8.1565022897235995,15.622871661573502,15.882426476848654]
[2014,"diciembre","2014-diciembre",{"$f":"IF('[2]REAL IPC(M)'!$AL309=\"\",\"\",+'[2]REAL IPC(M)'!$AL309)","v":3.1002002521693717},{"$f":"IF('[2]REAL IPC(M)'!$BE309=\"\",\"\",+'[2]REAL IPC(M)'!$BE309)","v":2.8354060574170115},{"$f":"IF('[2]REAL IPC(M)'!$AM309=\"\",\"\",+'[2]REAL IPC(M)'!$AM309)","v":2.8399375511114489},{"$f":"IF('[2]REAL IPC(M)'!$BI309=\"\",\"\",+'[2]REAL IPC(M)'!$BI309)","v":2.6830033504659401},{"$f":"IF('[2]REAL IMAE(M)'!BJ309=\"\",\"\",'[2]REAL IMAE(M)'!BJ309)","v":4.8544958595219345},{"$f":"IF('[2]REAL IMAE(M)'!BK309=\"\",\"\",'[2]REAL IMAE(M)'!BK309)","v":4.6115511855322699},{"$f":"IF('[2]REAL IMAE(M)'!BN309=\"\",\"\",'[2]REAL IMAE(M)'!BN309)","v":5.0911086434127784},{"$f":"IF('[2]REAL IMAE(M)'!BO309=\"\",\"\",'[2]REAL IMAE(M)'!BO309)","v":4.9003070356220757},{"$f":"IF('[2]EXT RIN(M)'!$K309=\"\",\"\",'[2]EXT RIN(M)'!$K309)","v":27526.147964282471},27526.147964282471,{"$f":"IF('[2]EXT RIN(M)'!$L309=\"\",\"\",'[2]EXT RIN(M)'!$L309)","v":31495.95714002247},31495.95714002247,{"$f":"IF('[2]MONE(M)CARD'!EG309=\"\",\"\",'[2]MONE(M)CARD'!EG309)","v":29526.033901290288},{"$f":"IF('[2]MONE(M)CARD'!EK309=\"\",\"\",'[2]MONE(M)CARD'!EK309)","v":47341.764017529014},{"$f":"IF('[2]MONE(M)CARD'!EP309=\"\",\"\",'[2]MONE(M)CARD'!EP309)","v":26976.482826233943},{"$f":"IF('[2]MONE(M)CARD'!ES309=\"\",\"\",'[2]MONE(M)CARD'!ES309)","v":5.347843892193116},{"$f":"IF('[2]MONE(M)CARD'!EV309=\"\",\"\",'[2]MONE(M)CARD'!EV309)","v":6.2519579656378221},{"$f":"IF('[2]MONE(M)CARD'!EZ309=\"\",\"\",'[2]MONE(M)CARD'!EZ309)","v":7.0502747298174517},{"$f":"IF('[2]MONE(M)CAPARD'!FC309=\"\",\"\",'[2]MONE(M)CAPARD'!FC309)","v":37842.580869280282},{"$f":"IF('[2]MONE(M)CAPARD'!FG309=\"\",\"\",'[2]MONE(M)CAPARD'!FG309)","v":73678.477463478994},{"$f":"IF('[2]MONE(M)CAPARD'!FL309=\"\",\"\",'[2]MONE(M)CAPARD'!FL309)","v":26976.482826233958},{"$f":"IF('[2]MONE(M)CAPARD'!FO309=\"\",\"\",'[2]MONE(M)CAPARD'!FO309)","v":10.09171280784129},{"$f":"IF('[2]MONE(M)CAPARD'!FR309=\"\",\"\",'[2]MONE(M)CAPARD'!FR309)","v":13.619831899635759},{"$f":"IF('[2]MONE(M)CAPARD'!FV309=\"\",\"\",'[2]MONE(M)CAPARD'!FV309)","v":12.770954422262658},{"$f":"IF('[2]MONE(M)CARD'!FV309=\"\",\"\",'[2]MONE(M)CARD'!FV309)","v":867.59623256862369},{"$f":"IF('[2]MONE(M)CARD'!GD309=\"\",\"\",'[2]MONE(M)CARD'!GD309)","v":118.32419786704634},{"$f":"IF('[2]MONE(M)CARD'!GE309=\"\",\"\",'[2]MONE(M)CARD'!GE309)","v":7523.1748436745202},-9.2914733824561058,{"$f":"IF('[9]II.2.Balance OSD-Activos'!J167=\"\",\"\",'[9]II.2.Balance OSD-Activos'!J167)","v":178.36396239179453},{"$f":"IF('[9]II.2.Balance OSD-Activos'!N167=\"\",\"\",'[9]II.2.Balance OSD-Activos'!N167)","v":865.17637956772785},{"$f":"IF('[9]II.2.Balance OSD-Activos'!R167=\"\",\"\",'[9]II.2.Balance OSD-Activos'!R167)","v":42335.354548174837},{"$f":"IF('[9]II.2.Balance OSD-Activos'!S167=\"\",\"\",'[9]II.2.Balance OSD-Activos'!S167)","v":44842.070001638254},42513.718510566629,88220.964891772615,30.292321363624186,10.255868791442357,{"$f":"IF(OR(AG302=\"\",AG290=\"\"),\"\",((AG302/AG290)-1)*100)","v":23.904071394167879},10.18448060483288,10.027840436992165,10.258827000064441,0.1158141195012572,{"$f":"IF('[2]MONE(M)CAPARD'!GS309=\"\",\"\",'[2]MONE(M)CAPARD'!GS309)","v":15339.222667551247},{"$f":"IF('[2]MONE(M)CARD'!HA309=\"\",\"\",'[2]MONE(M)CAPARD'!HA309)","v":8294.4084186045184},{"$f":"IF('[2]MONE(M)CAPARD'!HB309=\"\",\"\",'[2]MONE(M)CAPARD'!HB309)","v":7044.8142489467282},"n.d.",{"$f":"IF('[10]II.2.Balance OSD-Activos'!J167=\"\",\"\",'[10]II.2.Balance OSD-Activos'!J167)","v":1671.4427500017948},{"$f":"IF('[10]II.2.Balance OSD-Activos'!N167=\"\",\"\",'[10]II.2.Balance OSD-Activos'!N167)","v":1261.929114757728},{"$f":"IF('[10]II.2.Balance OSD-Activos'!R167=\"\",\"\",'[10]II.2.Balance OSD-Activos'!R167)","v":61923.33640858483},{"$f":"IF('[10]II.2.Balance OSD-Activos'!S167=\"\",\"\",'[10]II.2.Balance OSD-Activos'!S167)","v":61249.076921118256},63594.779158586622,126105.7851944626,16.881686012596386,17.335963526156494,12.572744103327494,17.348274393113527,17.517647805086533,17.37440109095958,1.6587291816279279,{"$f":"IF('[2]MONE(M)CAPARD'!AS309=\"\",\"\",'[2]MONE(M)CAPARD'!AS309)","v":5.25},{"$f":"IF('[2]MONE(M)CAPARD'!AT309=\"\",\"\",'[2]MONE(M)CAPARD'!AT309)","v":"n.a."},{"$f":"IF('[2]MONE(M)CAPARD'!AU309=\"\",\"\",'[2]MONE(M)CAPARD'!AU309)","v":4},{"$f":"IF('[2]MONE(M)CAPARD'!AV309=\"\",\"\",'[2]MONE(M)CAPARD'!AV309)","v":7},{"$f":"IF('[2]MONE(M)CAPARD'!AW309=\"\",\"\",'[2]MONE(M)CAPARD'!AW309)","v":"n.a."},{"$f":"IF('[2]MONE(M)CAPARD'!AX309=\"\",\"\",'[2]MONE(M)CAPARD'!AX309)","v":6.25},{"$f":"IF('[2]MONE(M)CAPARD'!AY309=\"\",\"\",'[2]MONE(M)CAPARD'!AY309)","v":"n.a."},{"$f":"IF('[2]FISCAL(M)'!$K309=\"\",\"\",'[2]FISCAL(M)'!$K309)","v":-7064.8193222270402},{"$f":"IF('[2]FISCAL(M)'!$L309=\"\",\"\",'[2]FISCAL(M)'!$L309)","v":-7063.6709941350427},{"$f":"IF('[2]FISCAL(M)'!$AY309=\"\",\"\",'[2]FISCAL(M)'!$AY309)","v":103142.26576528311},{"$f":"IF('[2]FISCAL(M)'!$BI309=\"\",\"\",'[2]FISCAL(M)'!$BI309)","v":50580.701688610789},{"$f":"IF('[2]FISCAL(M)'!$BS309=\"\",\"\",'[2]FISCAL(M)'!$BS309)","v":52561.564076672337},{"$f":"IF('[2]FISCAL(M)'!$AZ309=\"\",\"\",'[2]FISCAL(M)'!$AZ309)","v":121412.19152366313},{"$f":"IF('[2]FISCAL(M)'!$BJ309=\"\",\"\",'[2]FISCAL(M)'!$BJ309)","v":54498.399849830792},{"$f":"IF('[2]FISCAL(M)'!$BT309=\"\",\"\",'[2]FISCAL(M)'!$BT309)","v":66913.79167383234},{"$f":"IF('[3]MONE(M)'!$AO309=\"\",\"\",'[3]MONE(M)'!$AO309)","v":15934291.533761907},{"$f":"IF('[4]MONE(M)'!$AO309=\"\",\"\",'[4]MONE(M)'!$AO309)","v":10692.22788988},{"$f":"IF('[5]MONE(M)'!$AO309=\"\",\"\",'[5]MONE(M)'!$AO309)","v":158834.03245987653},{"$f":"+'[1]MONE(M)'!$AO309","v":234247.3012695442},{"$f":"IF('[6]MONE(M)'!$AO309=\"\",\"\",'[6]MONE(M)'!$AO309)","v":96172.139906775876},{"$f":"IF('[7]MONE(M)'!$AO309=\"\",\"\",'[7]MONE(M)'!$AO309)","v":713344.75143313},{"$f":"IF('[8]MONE(M)'!$AO309=\"\",\"\",'[8]MONE(M)'!$AO309)","v":38759.416334230002},17.699149245839529,4.607699517009789,8.5450118224117855,11.512774726954579,20.597010544536044,19.50387132761271,38.904317287157419,{"$f":"IF('[2]FISCAL(M)'!$K309=\"\",\"\",'[2]FISCAL(M)'!$K309)","v":-7064.8193222270402},{"$f":"+'[2]REAL(A)'!$AO$34","v":231352.40693603092},-3.0537046991607339,{"$f":"IF('[2]FISCAL(M)'!$L309=\"\",\"\",'[2]FISCAL(M)'!$L309)","v":-7063.6709941350427},{"$f":"+'[2]REAL(A)'!$AP$34","v":281273.86993603094},-2.5113143271152443,118620.32889766364,{"$f":"'[2]Gráfico REM'!BG303","v":19294.674165914446},{"$f":"'[2]Gráfico REM'!BH303","v":92120.958781821988},{"$f":"'[2]Gráfico REM'!BI303","v":7204.6959499272034},6.9309909935028058,{"$f":"IFERROR(+((CT302/CT290)-1)*100,\"\")","v":-9.641192818842125},{"$f":"IFERROR(+((CU302/CU290)-1)*100,\"\")","v":10.236199586913886},{"$f":"IFERROR(+((CV302/CV290)-1)*100,\"\")","v":19.850882409913815},180901.10081531364,{"$f":"'[2]Gráfico REM'!BK303","v":21249.099077844447},{"$f":"'[2]Gráfico REM'!BL303","v":130880.37511605199},{"$f":"'[2]Gráfico REM'!BM303","v":28771.626621417206},13.88141425904259,-8.8302449481646015,17.412497476489431,19.51987838487139]
[2015,"enero","2015-enero",{"$f":"IF('[2]REAL IPC(M)'!$AL310=\"\",\"\",+'[2]REAL IPC(M)'!$AL310)","v":2.3072386849476656},{"$f":"IF('[2]REAL IPC(M)'!$BE310=\"\",\"\",+'[2]REAL IPC(M)'!$BE310)","v":2.7764912324723667},{"$f":"IF('[2]REAL IPC(M)'!$AM310=\"\",\"\",+'[2]REAL IPC(M)'!$AM310)","v":2.1067415730336991},{"$f":"IF('[2]REAL IPC(M)'!$BI310=\"\",\"\",+'[2]REAL IPC(M)'!$BI310)","v":2.6156084279828518},{"$f":"IF('[2]REAL IMAE(M)'!BJ310=\"\",\"\",'[2]REAL IMAE(M)'!BJ310)","v":4.5457731967411208},{"$f":"IF('[2]REAL IMAE(M)'!BK310=\"\",\"\",'[2]REAL IMAE(M)'!BK310)","v":4.6293646333331884},{"$f":"IF('[2]REAL IMAE(M)'!BN310=\"\",\"\",'[2]REAL IMAE(M)'!BN310)","v":4.5435885001079868},{"$f":"IF('[2]REAL IMAE(M)'!BO310=\"\",\"\",'[2]REAL IMAE(M)'!BO310)","v":4.9052339856816785},{"$f":"IF('[2]EXT RIN(M)'!$K310=\"\",\"\",'[2]EXT RIN(M)'!$K310)","v":27587.291850048623},"",{"$f":"IF('[2]EXT RIN(M)'!$L310=\"\",\"\",'[2]EXT RIN(M)'!$L310)","v":31545.068455138622},"",{"$f":"IF('[2]MONE(M)CARD'!EG310=\"\",\"\",'[2]MONE(M)CARD'!EG310)","v":29242.440690727646},{"$f":"IF('[2]MONE(M)CARD'!EK310=\"\",\"\",'[2]MONE(M)CARD'!EK310)","v":47205.584111724675},{"$f":"IF('[2]MONE(M)CARD'!EP310=\"\",\"\",'[2]MONE(M)CARD'!EP310)","v":26832.54854687996},{"$f":"IF('[2]MONE(M)CARD'!ES310=\"\",\"\",'[2]MONE(M)CARD'!ES310)","v":7.1312638039338516},{"$f":"IF('[2]MONE(M)CARD'!EV310=\"\",\"\",'[2]MONE(M)CARD'!EV310)","v":7.1036155196798623},{"$f":"IF('[2]MONE(M)CARD'!EZ310=\"\",\"\",'[2]MONE(M)CARD'!EZ310)","v":7.3611949030621293},{"$f":"IF('[2]MONE(M)CAPARD'!FC310=\"\",\"\",'[2]MONE(M)CAPARD'!FC310)","v":37522.771782317643},{"$f":"IF('[2]MONE(M)CAPARD'!FG310=\"\",\"\",'[2]MONE(M)CAPARD'!FG310)","v":73483.846858214674},{"$f":"IF('[2]MONE(M)CAPARD'!FL310=\"\",\"\",'[2]MONE(M)CAPARD'!FL310)","v":26832.54854687996},{"$f":"IF('[2]MONE(M)CAPARD'!FO310=\"\",\"\",'[2]MONE(M)CAPARD'!FO310)","v":6.6417765332335454},{"$f":"IF('[2]MONE(M)CAPARD'!FR310=\"\",\"\",'[2]MONE(M)CAPARD'!FR310)","v":6.9624653359853017},{"$f":"IF('[2]MONE(M)CAPARD'!FV310=\"\",\"\",'[2]MONE(M)CAPARD'!FV310)","v":7.1823871758281754},{"$f":"IF('[2]MONE(M)CARD'!FV310=\"\",\"\",'[2]MONE(M)CARD'!FV310)","v":1250.8535317043525},{"$f":"IF('[2]MONE(M)CARD'!GD310=\"\",\"\",'[2]MONE(M)CARD'!GD310)","v":85.148140119098812},{"$f":"IF('[2]MONE(M)CARD'!GE310=\"\",\"\",'[2]MONE(M)CARD'!GE310)","v":7679.2673650430434},3.5049393526661587,{"$f":"IF('[9]II.2.Balance OSD-Activos'!J168=\"\",\"\",'[9]II.2.Balance OSD-Activos'!J168)","v":179.7695173842194},{"$f":"IF('[9]II.2.Balance OSD-Activos'!N168=\"\",\"\",'[9]II.2.Balance OSD-Activos'!N168)","v":842.86058057089565},{"$f":"IF('[9]II.2.Balance OSD-Activos'!R168=\"\",\"\",'[9]II.2.Balance OSD-Activos'!R168)","v":41955.051526198557},{"$f":"IF('[9]II.2.Balance OSD-Activos'!S168=\"\",\"\",'[9]II.2.Balance OSD-Activos'!S168)","v":44836.469918629176},42134.821043582779,87814.151542782842,27.68676972233164,10.056365231869723,25.06764149441214,9.9912913865056741,10.055374217153545,10.182792562548082,-7.6034437516359077E-2,{"$f":"IF('[2]MONE(M)CAPARD'!GS310=\"\",\"\",'[2]MONE(M)CAPARD'!GS310)","v":16722.791496220791},{"$f":"IF('[2]MONE(M)CARD'!HA310=\"\",\"\",'[2]MONE(M)CAPARD'!HA310)","v":8441.7228599530445},{"$f":"IF('[2]MONE(M)CAPARD'!HB310=\"\",\"\",'[2]MONE(M)CAPARD'!HB310)","v":8281.0686362677461},"n.d.",{"$f":"IF('[10]II.2.Balance OSD-Activos'!J168=\"\",\"\",'[10]II.2.Balance OSD-Activos'!J168)","v":1680.2507055142196},{"$f":"IF('[10]II.2.Balance OSD-Activos'!N168=\"\",\"\",'[10]II.2.Balance OSD-Activos'!N168)","v":1251.3759320208956},{"$f":"IF('[10]II.2.Balance OSD-Activos'!R168=\"\",\"\",'[10]II.2.Balance OSD-Activos'!R168)","v":61722.425624558557},{"$f":"IF('[10]II.2.Balance OSD-Activos'!S168=\"\",\"\",'[10]II.2.Balance OSD-Activos'!S168)","v":61393.323913379179},63402.676330072776,126047.37617547285,13.57111450196793,11.684760940637817,14.688922034204332,11.634285059912241,10.657080810600327,11.210629759858271,-6.1637713311013087,{"$f":"IF('[2]MONE(M)CAPARD'!AS310=\"\",\"\",'[2]MONE(M)CAPARD'!AS310)","v":5.25},{"$f":"IF('[2]MONE(M)CAPARD'!AT310=\"\",\"\",'[2]MONE(M)CAPARD'!AT310)","v":"n.a."},{"$f":"IF('[2]MONE(M)CAPARD'!AU310=\"\",\"\",'[2]MONE(M)CAPARD'!AU310)","v":4},{"$f":"IF('[2]MONE(M)CAPARD'!AV310=\"\",\"\",'[2]MONE(M)CAPARD'!AV310)","v":7},{"$f":"IF('[2]MONE(M)CAPARD'!AW310=\"\",\"\",'[2]MONE(M)CAPARD'!AW310)","v":"n.a."},{"$f":"IF('[2]MONE(M)CAPARD'!AX310=\"\",\"\",'[2]MONE(M)CAPARD'!AX310)","v":6.25},{"$f":"IF('[2]MONE(M)CAPARD'!AY310=\"\",\"\",'[2]MONE(M)CAPARD'!AY310)","v":"n.a."},{"$f":"IF('[2]FISCAL(M)'!$K310=\"\",\"\",'[2]FISCAL(M)'!$K310)","v":1998.0068540251998},{"$f":"IF('[2]FISCAL(M)'!$L310=\"\",\"\",'[2]FISCAL(M)'!$L310)","v":1528.4575350952},{"$f":"IF('[2]FISCAL(M)'!$AY310=\"\",\"\",'[2]FISCAL(M)'!$AY310)","v":102968.06037282679},{"$f":"IF('[2]FISCAL(M)'!$BI310=\"\",\"\",'[2]FISCAL(M)'!$BI310)","v":52308.519407730593},{"$f":"IF('[2]FISCAL(M)'!$BS310=\"\",\"\",'[2]FISCAL(M)'!$BS310)","v":50659.540965096196},{"$f":"IF('[2]FISCAL(M)'!$AZ310=\"\",\"\",'[2]FISCAL(M)'!$AZ310)","v":121219.80520062678},{"$f":"IF('[2]FISCAL(M)'!$BJ310=\"\",\"\",'[2]FISCAL(M)'!$BJ310)","v":56227.830767650594},{"$f":"IF('[2]FISCAL(M)'!$BT310=\"\",\"\",'[2]FISCAL(M)'!$BT310)","v":64991.974432976189},{"$f":"IF('[3]MONE(M)'!$AO310=\"\",\"\",'[3]MONE(M)'!$AO310)","v":16016954.383987797},{"$f":"IF('[4]MONE(M)'!$AO310=\"\",\"\",'[4]MONE(M)'!$AO310)","v":10748.30459143},{"$f":"IF('[5]MONE(M)'!$AO310=\"\",\"\",'[5]MONE(M)'!$AO310)","v":159927.81189756232},{"$f":"+'[1]MONE(M)'!$AO310","v":234755.89079587767},{"$f":"IF('[6]MONE(M)'!$AO310=\"\",\"\",'[6]MONE(M)'!$AO310)","v":97044.866656666534},{"$f":"IF('[7]MONE(M)'!$AO310=\"\",\"\",'[7]MONE(M)'!$AO310)","v":696334.82851400995},{"$f":"IF('[8]MONE(M)'!$AO310=\"\",\"\",'[8]MONE(M)'!$AO310)","v":39082.341256209998},16.680450072164057,5.169481504845308,8.7780408035045276,10.939927708118535,20.518058031041299,18.393849061736823,14.077215555055588,{"$f":"IF('[2]FISCAL(M)'!$K310=\"\",\"\",'[2]FISCAL(M)'!$K310)","v":1998.0068540251998},{"$f":"+'[2]REAL(A)'!$AO$35","v":247040.68099578074},0.80877645170486079,{"$f":"IF('[2]FISCAL(M)'!$L310=\"\",\"\",'[2]FISCAL(M)'!$L310)","v":1528.4575350952},{"$f":"+'[2]REAL(A)'!$AP$35","v":301132.40099578066},0.50756993602844358,119987.23251509343,{"$f":"'[2]Gráfico REM'!BG304","v":21158.835307495341},{"$f":"'[2]Gráfico REM'!BH304","v":91851.998675279901},{"$f":"'[2]Gráfico REM'!BI304","v":6976.3985323181851},{"$f":"IFERROR(+((CS303/CS291)-1)*100,\"\")","v":7.5187621762297763},-5.1194029022221033,10.268770228578127,16.316400107905537,183003.65460830345,{"$f":"'[2]Gráfico REM'!BK304","v":23271.633871325343},{"$f":"'[2]Gráfico REM'!BL304","v":130934.3399314899},{"$f":"'[2]Gráfico REM'!BM304","v":28797.680805488191},9.3649245627785085,-5.3107504524069649,11.378654739337213,14.283979355236109]
[2015,"febrero","2015-febrero",{"$f":"IF('[2]REAL IPC(M)'!$AL311=\"\",\"\",+'[2]REAL IPC(M)'!$AL311)","v":2.1221912175062307},{"$f":"IF('[2]REAL IPC(M)'!$BE311=\"\",\"\",+'[2]REAL IPC(M)'!$BE311)","v":2.7204362563776119},{"$f":"IF('[2]REAL IPC(M)'!$AM311=\"\",\"\",+'[2]REAL IPC(M)'!$AM311)","v":1.7744073037844199},{"$f":"IF('[2]REAL IPC(M)'!$BI311=\"\",\"\",+'[2]REAL IPC(M)'!$BI311)","v":2.5514537645272117},{"$f":"IF('[2]REAL IMAE(M)'!BJ311=\"\",\"\",'[2]REAL IMAE(M)'!BJ311)","v":4.1789672505242459},{"$f":"IF('[2]REAL IMAE(M)'!BK311=\"\",\"\",'[2]REAL IMAE(M)'!BK311)","v":4.6449546827928678},{"$f":"IF('[2]REAL IMAE(M)'!BN311=\"\",\"\",'[2]REAL IMAE(M)'!BN311)","v":4.1162916774108771},{"$f":"IF('[2]REAL IMAE(M)'!BO311=\"\",\"\",'[2]REAL IMAE(M)'!BO311)","v":4.9086521751988688},{"$f":"IF('[2]EXT RIN(M)'!$K311=\"\",\"\",'[2]EXT RIN(M)'!$K311)","v":27770.155223293394},"",{"$f":"IF('[2]EXT RIN(M)'!$L311=\"\",\"\",'[2]EXT RIN(M)'!$L311)","v":31823.405952363395},"",{"$f":"IF('[2]MONE(M)CARD'!EG311=\"\",\"\",'[2]MONE(M)CARD'!EG311)","v":28938.534034395794},{"$f":"IF('[2]MONE(M)CARD'!EK311=\"\",\"\",'[2]MONE(M)CARD'!EK311)","v":48059.344744936359},{"$f":"IF('[2]MONE(M)CARD'!EP311=\"\",\"\",'[2]MONE(M)CARD'!EP311)","v":27248.158666922158},{"$f":"IF('[2]MONE(M)CARD'!ES311=\"\",\"\",'[2]MONE(M)CARD'!ES311)","v":7.5089510521946901},{"$f":"IF('[2]MONE(M)CARD'!EV311=\"\",\"\",'[2]MONE(M)CARD'!EV311)","v":8.6088431861336865},{"$f":"IF('[2]MONE(M)CARD'!EZ311=\"\",\"\",'[2]MONE(M)CARD'!EZ311)","v":7.6930501311745836},{"$f":"IF('[2]MONE(M)CAPARD'!FC311=\"\",\"\",'[2]MONE(M)CAPARD'!FC311)","v":36988.475920015793},{"$f":"IF('[2]MONE(M)CAPARD'!FG311=\"\",\"\",'[2]MONE(M)CAPARD'!FG311)","v":74580.438529586361},{"$f":"IF('[2]MONE(M)CAPARD'!FL311=\"\",\"\",'[2]MONE(M)CAPARD'!FL311)","v":27248.158666922158},{"$f":"IF('[2]MONE(M)CAPARD'!FO311=\"\",\"\",'[2]MONE(M)CAPARD'!FO311)","v":6.5916465477088515},{"$f":"IF('[2]MONE(M)CAPARD'!FR311=\"\",\"\",'[2]MONE(M)CAPARD'!FR311)","v":7.9159134153983457},{"$f":"IF('[2]MONE(M)CAPARD'!FV311=\"\",\"\",'[2]MONE(M)CAPARD'!FV311)","v":7.3690943451081736},{"$f":"IF('[2]MONE(M)CARD'!FV311=\"\",\"\",'[2]MONE(M)CARD'!FV311)","v":1241.7925597668327},{"$f":"IF('[2]MONE(M)CARD'!GD311=\"\",\"\",'[2]MONE(M)CARD'!GD311)","v":86.582326653021099},{"$f":"IF('[2]MONE(M)CARD'!GE311=\"\",\"\",'[2]MONE(M)CARD'!GE311)","v":7884.1533866541058},-1.0264874880855035,{"$f":"IF('[9]II.2.Balance OSD-Activos'!J169=\"\",\"\",'[9]II.2.Balance OSD-Activos'!J169)","v":187.21716907620498},{"$f":"IF('[9]II.2.Balance OSD-Activos'!N169=\"\",\"\",'[9]II.2.Balance OSD-Activos'!N169)","v":865.74861978911053},{"$f":"IF('[9]II.2.Balance OSD-Activos'!R169=\"\",\"\",'[9]II.2.Balance OSD-Activos'!R169)","v":42156.247709341449},{"$f":"IF('[9]II.2.Balance OSD-Activos'!S169=\"\",\"\",'[9]II.2.Balance OSD-Activos'!S169)","v":45136.019185992649},42343.464878417653,88345.232684199407,-5.5882246517519611,10.82739548531948,{"$f":"IF(OR(AG304=\"\",AG292=\"\"),\"\",((AG304/AG292)-1)*100)","v":30.340986336365084},10.913039587918473,11.557885346315055,11.36333864296526,1.1805460804171783,{"$f":"IF('[2]MONE(M)CAPARD'!GS311=\"\",\"\",'[2]MONE(M)CAPARD'!GS311)","v":16881.261405419158},{"$f":"IF('[2]MONE(M)CARD'!HA311=\"\",\"\",'[2]MONE(M)CAPARD'!HA311)","v":8646.9395989741042},{"$f":"IF('[2]MONE(M)CAPARD'!HB311=\"\",\"\",'[2]MONE(M)CAPARD'!HB311)","v":8234.3218064450539},"n.d.",{"$f":"IF('[10]II.2.Balance OSD-Activos'!J169=\"\",\"\",'[10]II.2.Balance OSD-Activos'!J169)","v":1698.6118394962043},{"$f":"IF('[10]II.2.Balance OSD-Activos'!N169=\"\",\"\",'[10]II.2.Balance OSD-Activos'!N169)","v":1359.0596415291106},{"$f":"IF('[10]II.2.Balance OSD-Activos'!R169=\"\",\"\",'[10]II.2.Balance OSD-Activos'!R169)","v":62060.321046331446},{"$f":"IF('[10]II.2.Balance OSD-Activos'!S169=\"\",\"\",'[10]II.2.Balance OSD-Activos'!S169)","v":61848.03971368265},63758.932885827649,126966.03224103941,10.092032697243214,12.259521086433667,27.979482849704105,12.320046573505717,11.747211278467473,12.156513469676256,0.9458837098179842,{"$f":"IF('[2]MONE(M)CAPARD'!AS311=\"\",\"\",'[2]MONE(M)CAPARD'!AS311)","v":4.75},{"$f":"IF('[2]MONE(M)CAPARD'!AT311=\"\",\"\",'[2]MONE(M)CAPARD'!AT311)","v":"n.a."},{"$f":"IF('[2]MONE(M)CAPARD'!AU311=\"\",\"\",'[2]MONE(M)CAPARD'!AU311)","v":3.5},{"$f":"IF('[2]MONE(M)CAPARD'!AV311=\"\",\"\",'[2]MONE(M)CAPARD'!AV311)","v":6.75},{"$f":"IF('[2]MONE(M)CAPARD'!AW311=\"\",\"\",'[2]MONE(M)CAPARD'!AW311)","v":"n.a."},{"$f":"IF('[2]MONE(M)CAPARD'!AX311=\"\",\"\",'[2]MONE(M)CAPARD'!AX311)","v":6.25},{"$f":"IF('[2]MONE(M)CAPARD'!AY311=\"\",\"\",'[2]MONE(M)CAPARD'!AY311)","v":"n.a."},{"$f":"IF('[2]FISCAL(M)'!$K311=\"\",\"\",'[2]FISCAL(M)'!$K311)","v":1463.707219490112},{"$f":"IF('[2]FISCAL(M)'!$L311=\"\",\"\",'[2]FISCAL(M)'!$L311)","v":884.81661706011232},{"$f":"IF('[2]FISCAL(M)'!$AY311=\"\",\"\",'[2]FISCAL(M)'!$AY311)","v":104281.10056277945},{"$f":"IF('[2]FISCAL(M)'!$BI311=\"\",\"\",'[2]FISCAL(M)'!$BI311)","v":53366.719935169269},{"$f":"IF('[2]FISCAL(M)'!$BS311=\"\",\"\",'[2]FISCAL(M)'!$BS311)","v":50914.380627610168},{"$f":"IF('[2]FISCAL(M)'!$AZ311=\"\",\"\",'[2]FISCAL(M)'!$AZ311)","v":122560.88703386944},{"$f":"IF('[2]FISCAL(M)'!$BJ311=\"\",\"\",'[2]FISCAL(M)'!$BJ311)","v":57336.837193079271},{"$f":"IF('[2]FISCAL(M)'!$BT311=\"\",\"\",'[2]FISCAL(M)'!$BT311)","v":65224.049840790161},{"$f":"IF('[3]MONE(M)'!$AO311=\"\",\"\",'[3]MONE(M)'!$AO311)","v":16095633.810602704},{"$f":"IF('[4]MONE(M)'!$AO311=\"\",\"\",'[4]MONE(M)'!$AO311)","v":10783.257534080003},{"$f":"IF('[5]MONE(M)'!$AO311=\"\",\"\",'[5]MONE(M)'!$AO311)","v":160822.48014138773},{"$f":"+'[1]MONE(M)'!$AO311","v":237183.53316224631},{"$f":"IF('[6]MONE(M)'!$AO311=\"\",\"\",'[6]MONE(M)'!$AO311)","v":98313.366927354451},{"$f":"IF('[7]MONE(M)'!$AO311=\"\",\"\",'[7]MONE(M)'!$AO311)","v":695444.78068095003},{"$f":"IF('[8]MONE(M)'!$AO311=\"\",\"\",'[8]MONE(M)'!$AO311)","v":39361.710748519996},12.919730092329583,5.2538115211970382,9.1821265877380718,11.310195411205925,20.051230403604549,17.670310205801918,14.027674707531013,{"$f":"IF('[2]FISCAL(M)'!$K311=\"\",\"\",'[2]FISCAL(M)'!$K311)","v":1463.707219490112},{"$f":"+'[2]REAL(A)'!$AO$35","v":247040.68099578074},0.59249643159585974,{"$f":"IF('[2]FISCAL(M)'!$L311=\"\",\"\",'[2]FISCAL(M)'!$L311)","v":884.81661706011232},{"$f":"+'[2]REAL(A)'!$AP$35","v":301132.40099578066},0.29382976196988847,121595.12238339357,{"$f":"'[2]Gráfico REM'!BG305","v":22036.633594224932},{"$f":"'[2]Gráfico REM'!BH305","v":92403.294656770871},{"$f":"'[2]Gráfico REM'!BI305","v":7155.1941323977717},8.7083723841246972,-3.6761807647789579,11.4130697933847,18.479301724549391,184953.50691088356,{"$f":"'[2]Gráfico REM'!BK305","v":24176.81510345493},{"$f":"'[2]Gráfico REM'!BL305","v":131765.00540529087},{"$f":"'[2]Gráfico REM'!BM305","v":29011.686402137762},10.24550316575834,-3.8715109440464857,12.181475950297283,15.31978259456892]
[2015,"marzo","2015-marzo",{"$f":"IF('[2]REAL IPC(M)'!$AL312=\"\",\"\",+'[2]REAL IPC(M)'!$AL312)","v":1.9970738844184543},{"$f":"IF('[2]REAL IPC(M)'!$BE312=\"\",\"\",+'[2]REAL IPC(M)'!$BE312)","v":2.6676784513220975},{"$f":"IF('[2]REAL IPC(M)'!$AM312=\"\",\"\",+'[2]REAL IPC(M)'!$AM312)","v":1.7309667008948093},{"$f":"IF('[2]REAL IPC(M)'!$BI312=\"\",\"\",+'[2]REAL IPC(M)'!$BI312)","v":2.4910164285484981},{"$f":"IF('[2]REAL IMAE(M)'!BJ312=\"\",\"\",'[2]REAL IMAE(M)'!BJ312)","v":4.3751248412260413},{"$f":"IF('[2]REAL IMAE(M)'!BK312=\"\",\"\",'[2]REAL IMAE(M)'!BK312)","v":4.6581448270009762},{"$f":"IF('[2]REAL IMAE(M)'!BN312=\"\",\"\",'[2]REAL IMAE(M)'!BN312)","v":4.7317474650775182},{"$f":"IF('[2]REAL IMAE(M)'!BO312=\"\",\"\",'[2]REAL IMAE(M)'!BO312)","v":4.910304677385402},{"$f":"IF('[2]EXT RIN(M)'!$K312=\"\",\"\",'[2]EXT RIN(M)'!$K312)","v":29333.640571309636},"",{"$f":"IF('[2]EXT RIN(M)'!$L312=\"\",\"\",'[2]EXT RIN(M)'!$L312)","v":34075.053537069638},"",{"$f":"IF('[2]MONE(M)CARD'!EG312=\"\",\"\",'[2]MONE(M)CARD'!EG312)","v":29359.801353548697},{"$f":"IF('[2]MONE(M)CARD'!EK312=\"\",\"\",'[2]MONE(M)CARD'!EK312)","v":48706.920918730568},{"$f":"IF('[2]MONE(M)CARD'!EP312=\"\",\"\",'[2]MONE(M)CARD'!EP312)","v":27323.457466969558},{"$f":"IF('[2]MONE(M)CARD'!ES312=\"\",\"\",'[2]MONE(M)CARD'!ES312)","v":8.8784266478586282},{"$f":"IF('[2]MONE(M)CARD'!EV312=\"\",\"\",'[2]MONE(M)CARD'!EV312)","v":9.1867727867744442},{"$f":"IF('[2]MONE(M)CARD'!EZ312=\"\",\"\",'[2]MONE(M)CARD'!EZ312)","v":7.9494695622845946},{"$f":"IF('[2]MONE(M)CAPARD'!FC312=\"\",\"\",'[2]MONE(M)CAPARD'!FC312)","v":37332.958854968696},{"$f":"IF('[2]MONE(M)CAPARD'!FG312=\"\",\"\",'[2]MONE(M)CAPARD'!FG312)","v":75439.778641520563},{"$f":"IF('[2]MONE(M)CAPARD'!FL312=\"\",\"\",'[2]MONE(M)CAPARD'!FL312)","v":27323.457466969558},{"$f":"IF('[2]MONE(M)CAPARD'!FO312=\"\",\"\",'[2]MONE(M)CAPARD'!FO312)","v":6.9396117921947109},{"$f":"IF('[2]MONE(M)CAPARD'!FR312=\"\",\"\",'[2]MONE(M)CAPARD'!FR312)","v":8.1578322831183936},{"$f":"IF('[2]MONE(M)CAPARD'!FV312=\"\",\"\",'[2]MONE(M)CAPARD'!FV312)","v":7.4376521457630185},{"$f":"IF('[2]MONE(M)CARD'!FV312=\"\",\"\",'[2]MONE(M)CARD'!FV312)","v":1228.8657323485545},{"$f":"IF('[2]MONE(M)CARD'!GD312=\"\",\"\",'[2]MONE(M)CARD'!GD312)","v":88.657661681797123},{"$f":"IF('[2]MONE(M)CARD'!GE312=\"\",\"\",'[2]MONE(M)CARD'!GE312)","v":8074.4397363541329},3.8546784980315829,{"$f":"IF('[9]II.2.Balance OSD-Activos'!J170=\"\",\"\",'[9]II.2.Balance OSD-Activos'!J170)","v":192.64754448698659},{"$f":"IF('[9]II.2.Balance OSD-Activos'!N170=\"\",\"\",'[9]II.2.Balance OSD-Activos'!N170)","v":855.49255899436207},{"$f":"IF('[9]II.2.Balance OSD-Activos'!R170=\"\",\"\",'[9]II.2.Balance OSD-Activos'!R170)","v":42502.976313038802},{"$f":"IF('[9]II.2.Balance OSD-Activos'!S170=\"\",\"\",'[9]II.2.Balance OSD-Activos'!S170)","v":45391.941452698746},42695.623857525788,88943.057869218901,-4.394048480197621,10.04353309100412,5.0728702651322122,10.11890604666068,11.339587616791057,10.650530951436753,-0.71280769152850709,{"$f":"IF('[2]MONE(M)CAPARD'!GS312=\"\",\"\",'[2]MONE(M)CAPARD'!GS312)","v":17535.53730102097},{"$f":"IF('[2]MONE(M)CARD'!HA312=\"\",\"\",'[2]MONE(M)CAPARD'!HA312)","v":8831.5413440341326},{"$f":"IF('[2]MONE(M)CAPARD'!HB312=\"\",\"\",'[2]MONE(M)CAPARD'!HB312)","v":8703.995956986837},"n.d.",{"$f":"IF('[10]II.2.Balance OSD-Activos'!J170=\"\",\"\",'[10]II.2.Balance OSD-Activos'!J170)","v":1703.814865306987},{"$f":"IF('[10]II.2.Balance OSD-Activos'!N170=\"\",\"\",'[10]II.2.Balance OSD-Activos'!N170)","v":1338.6881866343622},{"$f":"IF('[10]II.2.Balance OSD-Activos'!R170=\"\",\"\",'[10]II.2.Balance OSD-Activos'!R170)","v":62612.623272618803},{"$f":"IF('[10]II.2.Balance OSD-Activos'!S170=\"\",\"\",'[10]II.2.Balance OSD-Activos'!S170)","v":62292.40866213874},64316.43813792579,127947.5349866989,9.8476014137822254,11.726376060797605,4.5063225874682145,11.778399912673798,11.636386935721754,11.601906664776983,-0.55460680489927228,{"$f":"IF('[2]MONE(M)CAPARD'!AS312=\"\",\"\",'[2]MONE(M)CAPARD'!AS312)","v":4.5},{"$f":"IF('[2]MONE(M)CAPARD'!AT312=\"\",\"\",'[2]MONE(M)CAPARD'!AT312)","v":"n.a."},{"$f":"IF('[2]MONE(M)CAPARD'!AU312=\"\",\"\",'[2]MONE(M)CAPARD'!AU312)","v":3.5},{"$f":"IF('[2]MONE(M)CAPARD'!AV312=\"\",\"\",'[2]MONE(M)CAPARD'!AV312)","v":6.5},{"$f":"IF('[2]MONE(M)CAPARD'!AW312=\"\",\"\",'[2]MONE(M)CAPARD'!AW312)","v":"n.a."},{"$f":"IF('[2]MONE(M)CAPARD'!AX312=\"\",\"\",'[2]MONE(M)CAPARD'!AX312)","v":6.25},{"$f":"IF('[2]MONE(M)CAPARD'!AY312=\"\",\"\",'[2]MONE(M)CAPARD'!AY312)","v":"n.a."},{"$f":"IF('[2]FISCAL(M)'!$K312=\"\",\"\",'[2]FISCAL(M)'!$K312)","v":659.97877197120465},{"$f":"IF('[2]FISCAL(M)'!$L312=\"\",\"\",'[2]FISCAL(M)'!$L312)","v":390.81248290120442},{"$f":"IF('[2]FISCAL(M)'!$AY312=\"\",\"\",'[2]FISCAL(M)'!$AY312)","v":106046.079905035},{"$f":"IF('[2]FISCAL(M)'!$BI312=\"\",\"\",'[2]FISCAL(M)'!$BI312)","v":54145.428883077315},{"$f":"IF('[2]FISCAL(M)'!$BS312=\"\",\"\",'[2]FISCAL(M)'!$BS312)","v":51900.651021957696},{"$f":"IF('[2]FISCAL(M)'!$AZ312=\"\",\"\",'[2]FISCAL(M)'!$AZ312)","v":125200.372589565},{"$f":"IF('[2]FISCAL(M)'!$BJ312=\"\",\"\",'[2]FISCAL(M)'!$BJ312)","v":58132.471418837318},{"$f":"IF('[2]FISCAL(M)'!$BT312=\"\",\"\",'[2]FISCAL(M)'!$BT312)","v":67067.901170727695},{"$f":"IF('[3]MONE(M)'!$AO312=\"\",\"\",'[3]MONE(M)'!$AO312)","v":16223409.784515252},{"$f":"IF('[4]MONE(M)'!$AO312=\"\",\"\",'[4]MONE(M)'!$AO312)","v":10804.044014160001},{"$f":"IF('[5]MONE(M)'!$AO312=\"\",\"\",'[5]MONE(M)'!$AO312)","v":162591.89929699866},{"$f":"+'[1]MONE(M)'!$AO312","v":238802.4008369674},{"$f":"IF('[6]MONE(M)'!$AO312=\"\",\"\",'[6]MONE(M)'!$AO312)","v":99278.412151932571},{"$f":"IF('[7]MONE(M)'!$AO312=\"\",\"\",'[7]MONE(M)'!$AO312)","v":696667.29320204002},{"$f":"IF('[8]MONE(M)'!$AO312=\"\",\"\",'[8]MONE(M)'!$AO312)","v":39769.500701409997},12.049695105999024,4.3523576565786426,9.7802627751741866,11.216963632970312,19.978461103056677,16.428780290331812,13.835193778527977,{"$f":"IF('[2]FISCAL(M)'!$K312=\"\",\"\",'[2]FISCAL(M)'!$K312)","v":659.97877197120465},{"$f":"+'[2]REAL(A)'!$AO$35","v":247040.68099578074},0.26715388304101889,{"$f":"IF('[2]FISCAL(M)'!$L312=\"\",\"\",'[2]FISCAL(M)'!$L312)","v":390.81248290120442},{"$f":"+'[2]REAL(A)'!$AP$35","v":301132.40099578066},0.12978094738688725,122916.82750762319,{"$f":"'[2]Gráfico REM'!BG306","v":22810.954941974996},{"$f":"'[2]Gráfico REM'!BH306","v":93025.636086526181},{"$f":"'[2]Gráfico REM'!BI306","v":7080.2364791220216},8.5697601573017312,-1.3561715214789216,10.887327840613814,14.234058712571084,186681.0702781032,{"$f":"'[2]Gráfico REM'!BK306","v":24842.074097974997},{"$f":"'[2]Gráfico REM'!BL306","v":132795.13678793618},{"$f":"'[2]Gráfico REM'!BM306","v":29043.859392192022},10.197213533201023,-0.76345592851450039,11.754014836061444,13.696471775556173]
[2015,"abril","2015-abril",{"$f":"IF('[2]REAL IPC(M)'!$AL313=\"\",\"\",+'[2]REAL IPC(M)'!$AL313)","v":1.6837961950579405},{"$f":"IF('[2]REAL IPC(M)'!$BE313=\"\",\"\",+'[2]REAL IPC(M)'!$BE313)","v":2.6186142430344228},{"$f":"IF('[2]REAL IPC(M)'!$AM313=\"\",\"\",+'[2]REAL IPC(M)'!$AM313)","v":1.4541468761417597},{"$f":"IF('[2]REAL IPC(M)'!$BI313=\"\",\"\",+'[2]REAL IPC(M)'!$BI313)","v":2.4347182918420529},{"$f":"IF('[2]REAL IMAE(M)'!BJ313=\"\",\"\",'[2]REAL IMAE(M)'!BJ313)","v":4.8286485189663386},{"$f":"IF('[2]REAL IMAE(M)'!BK313=\"\",\"\",'[2]REAL IMAE(M)'!BK313)","v":4.6687341259800563},{"$f":"IF('[2]REAL IMAE(M)'!BN313=\"\",\"\",'[2]REAL IMAE(M)'!BN313)","v":5.4279869724243035},{"$f":"IF('[2]REAL IMAE(M)'!BO313=\"\",\"\",'[2]REAL IMAE(M)'!BO313)","v":4.9098841071815613},{"$f":"IF('[2]EXT RIN(M)'!$K313=\"\",\"\",'[2]EXT RIN(M)'!$K313)","v":29442.456335022081},"",{"$f":"IF('[2]EXT RIN(M)'!$L313=\"\",\"\",'[2]EXT RIN(M)'!$L313)","v":33673.723568032081},"",{"$f":"IF('[2]MONE(M)CARD'!EG313=\"\",\"\",'[2]MONE(M)CARD'!EG313)","v":29437.251119205503},{"$f":"IF('[2]MONE(M)CARD'!EK313=\"\",\"\",'[2]MONE(M)CARD'!EK313)","v":48420.727417734575},{"$f":"IF('[2]MONE(M)CARD'!EP313=\"\",\"\",'[2]MONE(M)CARD'!EP313)","v":27649.067010105369},{"$f":"IF('[2]MONE(M)CARD'!ES313=\"\",\"\",'[2]MONE(M)CARD'!ES313)","v":8.9771253806892872},{"$f":"IF('[2]MONE(M)CARD'!EV313=\"\",\"\",'[2]MONE(M)CARD'!EV313)","v":8.4955922481677817},{"$f":"IF('[2]MONE(M)CARD'!EZ313=\"\",\"\",'[2]MONE(M)CARD'!EZ313)","v":7.8705436534756368},{"$f":"IF('[2]MONE(M)CAPARD'!FC313=\"\",\"\",'[2]MONE(M)CAPARD'!FC313)","v":37290.131162945501},{"$f":"IF('[2]MONE(M)CAPARD'!FG313=\"\",\"\",'[2]MONE(M)CAPARD'!FG313)","v":75277.752258644585},{"$f":"IF('[2]MONE(M)CAPARD'!FL313=\"\",\"\",'[2]MONE(M)CAPARD'!FL313)","v":27649.067010105355},{"$f":"IF('[2]MONE(M)CAPARD'!FO313=\"\",\"\",'[2]MONE(M)CAPARD'!FO313)","v":6.3810000188609939},{"$f":"IF('[2]MONE(M)CAPARD'!FR313=\"\",\"\",'[2]MONE(M)CAPARD'!FR313)","v":7.4989387698734866},{"$f":"IF('[2]MONE(M)CAPARD'!FV313=\"\",\"\",'[2]MONE(M)CAPARD'!FV313)","v":7.2299405006692075},{"$f":"IF('[2]MONE(M)CARD'!FV313=\"\",\"\",'[2]MONE(M)CARD'!FV313)","v":1187.3250317713982},{"$f":"IF('[2]MONE(M)CARD'!GD313=\"\",\"\",'[2]MONE(M)CARD'!GD313)","v":213.50647401268736},{"$f":"IF('[2]MONE(M)CARD'!GE313=\"\",\"\",'[2]MONE(M)CARD'!GE313)","v":8403.3682541919625},6.3418986261257304,{"$f":"IF('[9]II.2.Balance OSD-Activos'!J171=\"\",\"\",'[9]II.2.Balance OSD-Activos'!J171)","v":197.46304401424396},{"$f":"IF('[9]II.2.Balance OSD-Activos'!N171=\"\",\"\",'[9]II.2.Balance OSD-Activos'!N171)","v":880.99569336122693},{"$f":"IF('[9]II.2.Balance OSD-Activos'!R171=\"\",\"\",'[9]II.2.Balance OSD-Activos'!R171)","v":42602.107194066935},{"$f":"IF('[9]II.2.Balance OSD-Activos'!S171=\"\",\"\",'[9]II.2.Balance OSD-Activos'!S171)","v":45641.421276747627},42799.570238081178,{"$f":"IF(OR(AF306=\"\",AG306=\"\",AH306=\"\",AI306=\"\"),\"\",SUM(AF306:AI306))","v":89321.987208190025},-11.979498425760781,9.1568496940225295,19.744912500133303,9.2784782357209217,11.102620495046045,10.239510431285282,-0.41102052015147095,{"$f":"IF('[2]MONE(M)CAPARD'!GS313=\"\",\"\",'[2]MONE(M)CAPARD'!GS313)","v":17389.546156058452},{"$f":"IF('[2]MONE(M)CARD'!HA313=\"\",\"\",'[2]MONE(M)CAPARD'!HA313)","v":9213.4553743719625},{"$f":"IF('[2]MONE(M)CAPARD'!HB313=\"\",\"\",'[2]MONE(M)CAPARD'!HB313)","v":8176.0907816864892},"n.d.",{"$f":"IF('[10]II.2.Balance OSD-Activos'!J171=\"\",\"\",'[10]II.2.Balance OSD-Activos'!J171)","v":1686.2519035942439},{"$f":"IF('[10]II.2.Balance OSD-Activos'!N171=\"\",\"\",'[10]II.2.Balance OSD-Activos'!N171)","v":1357.2391444112268},{"$f":"IF('[10]II.2.Balance OSD-Activos'!R171=\"\",\"\",'[10]II.2.Balance OSD-Activos'!R171)","v":62834.04824316693},{"$f":"IF('[10]II.2.Balance OSD-Activos'!S171=\"\",\"\",'[10]II.2.Balance OSD-Activos'!S171)","v":62737.023856817621},64520.300146761176,128614.56314799003,6.9654885570093139,10.730145916365675,13.077927214387607,10.834831156040803,11.540871819193299,11.148572671683056,-0.45333399309392775,{"$f":"IF('[2]MONE(M)CAPARD'!AS313=\"\",\"\",'[2]MONE(M)CAPARD'!AS313)","v":4},{"$f":"IF('[2]MONE(M)CAPARD'!AT313=\"\",\"\",'[2]MONE(M)CAPARD'!AT313)","v":"n.a."},{"$f":"IF('[2]MONE(M)CAPARD'!AU313=\"\",\"\",'[2]MONE(M)CAPARD'!AU313)","v":3.5},{"$f":"IF('[2]MONE(M)CAPARD'!AV313=\"\",\"\",'[2]MONE(M)CAPARD'!AV313)","v":6.5},{"$f":"IF('[2]MONE(M)CAPARD'!AW313=\"\",\"\",'[2]MONE(M)CAPARD'!AW313)","v":"n.a."},{"$f":"IF('[2]MONE(M)CAPARD'!AX313=\"\",\"\",'[2]MONE(M)CAPARD'!AX313)","v":5.75},{"$f":"IF('[2]MONE(M)CAPARD'!AY313=\"\",\"\",'[2]MONE(M)CAPARD'!AY313)","v":"n.a."},{"$f":"IF('[2]FISCAL(M)'!$K313=\"\",\"\",'[2]FISCAL(M)'!$K313)","v":901.60880504291413},{"$f":"IF('[2]FISCAL(M)'!$L313=\"\",\"\",'[2]FISCAL(M)'!$L313)","v":308.8197984629146},{"$f":"IF('[2]FISCAL(M)'!$AY313=\"\",\"\",'[2]FISCAL(M)'!$AY313)","v":106524.1090889581},{"$f":"IF('[2]FISCAL(M)'!$BI313=\"\",\"\",'[2]FISCAL(M)'!$BI313)","v":54599.308417583023},{"$f":"IF('[2]FISCAL(M)'!$BS313=\"\",\"\",'[2]FISCAL(M)'!$BS313)","v":51924.800671375073},{"$f":"IF('[2]FISCAL(M)'!$AZ313=\"\",\"\",'[2]FISCAL(M)'!$AZ313)","v":125644.1838355081},{"$f":"IF('[2]FISCAL(M)'!$BJ313=\"\",\"\",'[2]FISCAL(M)'!$BJ313)","v":58607.350953343019},{"$f":"IF('[2]FISCAL(M)'!$BT313=\"\",\"\",'[2]FISCAL(M)'!$BT313)","v":67036.832882165065},{"$f":"IF('[3]MONE(M)'!$AO313=\"\",\"\",'[3]MONE(M)'!$AO313)","v":16365029.711580865},{"$f":"IF('[4]MONE(M)'!$AO313=\"\",\"\",'[4]MONE(M)'!$AO313)","v":10806.700211969997},{"$f":"IF('[5]MONE(M)'!$AO313=\"\",\"\",'[5]MONE(M)'!$AO313)","v":164592.73719979438},{"$f":"+'[1]MONE(M)'!$AO313","v":240170.83391994913},{"$f":"IF('[6]MONE(M)'!$AO313=\"\",\"\",'[6]MONE(M)'!$AO313)","v":100644.14816376864},{"$f":"IF('[7]MONE(M)'!$AO313=\"\",\"\",'[7]MONE(M)'!$AO313)","v":701553.19152820995},{"$f":"IF('[8]MONE(M)'!$AO313=\"\",\"\",'[8]MONE(M)'!$AO313)","v":40062.299558889994},12.045810898516752,3.5996093655328298,9.7132518642700774,10.998723963212221,19.432255953703393,16.096374841323268,13.320524239285092,{"$f":"IF('[2]FISCAL(M)'!$K313=\"\",\"\",'[2]FISCAL(M)'!$K313)","v":901.60880504291413},{"$f":"+'[2]REAL(A)'!$AO$35","v":247040.68099578074},0.36496369804708917,{"$f":"IF('[2]FISCAL(M)'!$L313=\"\",\"\",'[2]FISCAL(M)'!$L313)","v":308.8197984629146},{"$f":"+'[2]REAL(A)'!$AP$35","v":301132.40099578066},0.1025528297326071,123254.85490172578,{"$f":"'[2]Gráfico REM'!BG307","v":22634.916101518487},{"$f":"'[2]Gráfico REM'!BH307","v":93452.519519637761},{"$f":"'[2]Gráfico REM'!BI307","v":7167.4192805695293},8.3579234063746455,-1.9314048553176533,10.552819037178928,16.82481258133226,187343.34731904574,{"$f":"'[2]Gráfico REM'!BK307","v":24459.161857428488},{"$f":"'[2]Gráfico REM'!BL307","v":133514.81907852774},{"$f":"'[2]Gráfico REM'!BM307","v":29369.366383089524},9.7740649865017524,-1.5269099787785123,11.36899151239783,13.224080326980792]
[2015,"mayo ","2015-mayo ",{"$f":"IF('[2]REAL IPC(M)'!$AL314=\"\",\"\",+'[2]REAL IPC(M)'!$AL314)","v":1.5846478156574806},{"$f":"IF('[2]REAL IPC(M)'!$BE314=\"\",\"\",+'[2]REAL IPC(M)'!$BE314)","v":2.5735944701487323},{"$f":"IF('[2]REAL IPC(M)'!$AM314=\"\",\"\",+'[2]REAL IPC(M)'!$AM314)","v":1.4139941690961999},{"$f":"IF('[2]REAL IPC(M)'!$BI314=\"\",\"\",+'[2]REAL IPC(M)'!$BI314)","v":2.3829223754012974},{"$f":"IF('[2]REAL IMAE(M)'!BJ314=\"\",\"\",'[2]REAL IMAE(M)'!BJ314)","v":5.038930806441777},{"$f":"IF('[2]REAL IMAE(M)'!BK314=\"\",\"\",'[2]REAL IMAE(M)'!BK314)","v":4.676505429135358},{"$f":"IF('[2]REAL IMAE(M)'!BN314=\"\",\"\",'[2]REAL IMAE(M)'!BN314)","v":6.0173933112161793},{"$f":"IF('[2]REAL IMAE(M)'!BO314=\"\",\"\",'[2]REAL IMAE(M)'!BO314)","v":4.9070757828388878},{"$f":"IF('[2]EXT RIN(M)'!$K314=\"\",\"\",'[2]EXT RIN(M)'!$K314)","v":29778.760732230829},"",{"$f":"IF('[2]EXT RIN(M)'!$L314=\"\",\"\",'[2]EXT RIN(M)'!$L314)","v":33922.076066590831},"",{"$f":"IF('[2]MONE(M)CARD'!EG314=\"\",\"\",'[2]MONE(M)CARD'!EG314)","v":29773.672003487867},{"$f":"IF('[2]MONE(M)CARD'!EK314=\"\",\"\",'[2]MONE(M)CARD'!EK314)","v":49035.001215109063},{"$f":"IF('[2]MONE(M)CARD'!EP314=\"\",\"\",'[2]MONE(M)CARD'!EP314)","v":28137.750486512916},{"$f":"IF('[2]MONE(M)CARD'!ES314=\"\",\"\",'[2]MONE(M)CARD'!ES314)","v":12.451617716709329},{"$f":"IF('[2]MONE(M)CARD'!EV314=\"\",\"\",'[2]MONE(M)CARD'!EV314)","v":10.005689192834089},{"$f":"IF('[2]MONE(M)CARD'!EZ314=\"\",\"\",'[2]MONE(M)CARD'!EZ314)","v":9.4398785603315503},{"$f":"IF('[2]MONE(M)CAPARD'!FC314=\"\",\"\",'[2]MONE(M)CAPARD'!FC314)","v":37784.802266837869},{"$f":"IF('[2]MONE(M)CAPARD'!FG314=\"\",\"\",'[2]MONE(M)CAPARD'!FG314)","v":75918.98091248906},{"$f":"IF('[2]MONE(M)CAPARD'!FL314=\"\",\"\",'[2]MONE(M)CAPARD'!FL314)","v":28137.750486512887},{"$f":"IF('[2]MONE(M)CAPARD'!FO314=\"\",\"\",'[2]MONE(M)CAPARD'!FO314)","v":9.7680675319796286},{"$f":"IF('[2]MONE(M)CAPARD'!FR314=\"\",\"\",'[2]MONE(M)CAPARD'!FR314)","v":8.4266855547778121},{"$f":"IF('[2]MONE(M)CAPARD'!FV314=\"\",\"\",'[2]MONE(M)CAPARD'!FV314)","v":8.3189343138277962},{"$f":"IF('[2]MONE(M)CARD'!FV314=\"\",\"\",'[2]MONE(M)CARD'!FV314)","v":1186.1111970519432},{"$f":"IF('[2]MONE(M)CARD'!GD314=\"\",\"\",'[2]MONE(M)CARD'!GD314)","v":85.408201261800272},{"$f":"IF('[2]MONE(M)CARD'!GE314=\"\",\"\",'[2]MONE(M)CARD'!GE314)","v":8810.6628182155309},3.7014269936818778,{"$f":"IF('[9]II.2.Balance OSD-Activos'!J172=\"\",\"\",'[9]II.2.Balance OSD-Activos'!J172)","v":190.42003829612034},{"$f":"IF('[9]II.2.Balance OSD-Activos'!N172=\"\",\"\",'[9]II.2.Balance OSD-Activos'!N172)","v":863.39706870082364},{"$f":"IF('[9]II.2.Balance OSD-Activos'!R172=\"\",\"\",'[9]II.2.Balance OSD-Activos'!R172)","v":43126.857485031956},{"$f":"IF('[9]II.2.Balance OSD-Activos'!S172=\"\",\"\",'[9]II.2.Balance OSD-Activos'!S172)","v":46151.745377236875},43317.277523328077,90332.419969265786,-12.781959791390008,10.218290063480806,12.836252804813487,10.346774554289606,11.736261315723628,11.013438136495267,0.77392770520998511,{"$f":"IF('[2]MONE(M)CAPARD'!GS314=\"\",\"\",'[2]MONE(M)CAPARD'!GS314)","v":17126.385538812065},{"$f":"IF('[2]MONE(M)CARD'!HA314=\"\",\"\",'[2]MONE(M)CAPARD'!HA314)","v":9660.7724569655329},{"$f":"IF('[2]MONE(M)CAPARD'!HB314=\"\",\"\",'[2]MONE(M)CAPARD'!HB314)","v":7465.6130818465317},"n.d.",{"$f":"IF('[10]II.2.Balance OSD-Activos'!J172=\"\",\"\",'[10]II.2.Balance OSD-Activos'!J172)","v":1684.8500350361203},{"$f":"IF('[10]II.2.Balance OSD-Activos'!N172=\"\",\"\",'[10]II.2.Balance OSD-Activos'!N172)","v":1420.4551054208237},{"$f":"IF('[10]II.2.Balance OSD-Activos'!R172=\"\",\"\",'[10]II.2.Balance OSD-Activos'!R172)","v":63433.971859791942},{"$f":"IF('[10]II.2.Balance OSD-Activos'!S172=\"\",\"\",'[10]II.2.Balance OSD-Activos'!S172)","v":63458.423107726878},65118.821894828063,129997.70010797576,7.2032498193081329,11.110499447794453,16.008385336962828,11.218165373906675,12.056855718657733,11.622166135046852,0.47359346336379637,{"$f":"IF('[2]MONE(M)CAPARD'!AS314=\"\",\"\",'[2]MONE(M)CAPARD'!AS314)","v":3.75},{"$f":"IF('[2]MONE(M)CAPARD'!AT314=\"\",\"\",'[2]MONE(M)CAPARD'!AT314)","v":"n.a."},{"$f":"IF('[2]MONE(M)CAPARD'!AU314=\"\",\"\",'[2]MONE(M)CAPARD'!AU314)","v":3.5},{"$f":"IF('[2]MONE(M)CAPARD'!AV314=\"\",\"\",'[2]MONE(M)CAPARD'!AV314)","v":6.5},{"$f":"IF('[2]MONE(M)CAPARD'!AW314=\"\",\"\",'[2]MONE(M)CAPARD'!AW314)","v":"n.a."},{"$f":"IF('[2]MONE(M)CAPARD'!AX314=\"\",\"\",'[2]MONE(M)CAPARD'!AX314)","v":5.25},{"$f":"IF('[2]MONE(M)CAPARD'!AY314=\"\",\"\",'[2]MONE(M)CAPARD'!AY314)","v":"n.a."},{"$f":"IF('[2]FISCAL(M)'!$K314=\"\",\"\",'[2]FISCAL(M)'!$K314)","v":410.25264668365594},{"$f":"IF('[2]FISCAL(M)'!$L314=\"\",\"\",'[2]FISCAL(M)'!$L314)","v":-282.6883171663444},{"$f":"IF('[2]FISCAL(M)'!$AY314=\"\",\"\",'[2]FISCAL(M)'!$AY314)","v":107548.55466201296},{"$f":"IF('[2]FISCAL(M)'!$BI314=\"\",\"\",'[2]FISCAL(M)'!$BI314)","v":54879.071069737271},{"$f":"IF('[2]FISCAL(M)'!$BS314=\"\",\"\",'[2]FISCAL(M)'!$BS314)","v":52669.483592275676},{"$f":"IF('[2]FISCAL(M)'!$AZ314=\"\",\"\",'[2]FISCAL(M)'!$AZ314)","v":126693.45025970295},{"$f":"IF('[2]FISCAL(M)'!$BJ314=\"\",\"\",'[2]FISCAL(M)'!$BJ314)","v":58936.70443371727},{"$f":"IF('[2]FISCAL(M)'!$BT314=\"\",\"\",'[2]FISCAL(M)'!$BT314)","v":67756.745825985679},{"$f":"IF('[3]MONE(M)'!$AO314=\"\",\"\",'[3]MONE(M)'!$AO314)","v":16612726.332005436},{"$f":"IF('[4]MONE(M)'!$AO314=\"\",\"\",'[4]MONE(M)'!$AO314)","v":10798.7168084},{"$f":"IF('[5]MONE(M)'!$AO314=\"\",\"\",'[5]MONE(M)'!$AO314)","v":166425.83862976098},{"$f":"+'[1]MONE(M)'!$AO314","v":240209.78809517011},{"$f":"IF('[6]MONE(M)'!$AO314=\"\",\"\",'[6]MONE(M)'!$AO314)","v":102213.55756105974},{"$f":"IF('[7]MONE(M)'!$AO314=\"\",\"\",'[7]MONE(M)'!$AO314)","v":719231.44187603996},{"$f":"IF('[8]MONE(M)'!$AO314=\"\",\"\",'[8]MONE(M)'!$AO314)","v":40382.640984409991},11.961383860509777,3.537782680040169,9.9093286823153548,10.550726719638703,18.83540023820278,17.192363549562661,12.864878066929819,{"$f":"IF('[2]FISCAL(M)'!$K314=\"\",\"\",'[2]FISCAL(M)'!$K314)","v":410.25264668365594},{"$f":"+'[2]REAL(A)'!$AO$35","v":247040.68099578074},0.16606683766819064,{"$f":"IF('[2]FISCAL(M)'!$L314=\"\",\"\",'[2]FISCAL(M)'!$L314)","v":-282.6883171663444},{"$f":"+'[2]REAL(A)'!$AP$35","v":301132.40099578066},-9.3875091564891197E-2,124408.65803515298,{"$f":"'[2]Gráfico REM'!BG308","v":22546.104653757531},{"$f":"'[2]Gráfico REM'!BH308","v":94657.239710647074},{"$f":"'[2]Gráfico REM'!BI308","v":7205.3136707483754},9.561765317976656,0.7974738862439601,11.386455219025414,16.16771229474525,189165.89470129297,{"$f":"'[2]Gráfico REM'!BK308","v":24420.615906247531},{"$f":"'[2]Gráfico REM'!BL308","v":135039.88069505707},{"$f":"'[2]Gráfico REM'!BM308","v":29705.398099988382},10.232006793591374,1.0109752612673883,11.824490862270132,11.380109809777593]
[2015,"junio ","2015-junio ",{"$f":"IF('[2]REAL IPC(M)'!$AL315=\"\",\"\",+'[2]REAL IPC(M)'!$AL315)","v":1.5140538974210305},{"$f":"IF('[2]REAL IPC(M)'!$BE315=\"\",\"\",+'[2]REAL IPC(M)'!$BE315)","v":2.5329133731909925},{"$f":"IF('[2]REAL IPC(M)'!$AM315=\"\",\"\",+'[2]REAL IPC(M)'!$AM315)","v":1.3145471711816459},{"$f":"IF('[2]REAL IPC(M)'!$BI315=\"\",\"\",+'[2]REAL IPC(M)'!$BI315)","v":2.3359259149763334},{"$f":"IF('[2]REAL IMAE(M)'!BJ315=\"\",\"\",'[2]REAL IMAE(M)'!BJ315)","v":5.4566962813762387},{"$f":"IF('[2]REAL IMAE(M)'!BK315=\"\",\"\",'[2]REAL IMAE(M)'!BK315)","v":4.6812578464505705},{"$f":"IF('[2]REAL IMAE(M)'!BN315=\"\",\"\",'[2]REAL IMAE(M)'!BN315)","v":6.5135412777723944},{"$f":"IF('[2]REAL IMAE(M)'!BO315=\"\",\"\",'[2]REAL IMAE(M)'!BO315)","v":4.9016056343720971},{"$f":"IF('[2]EXT RIN(M)'!$K315=\"\",\"\",'[2]EXT RIN(M)'!$K315)","v":29798.822963986415},"",{"$f":"IF('[2]EXT RIN(M)'!$L315=\"\",\"\",'[2]EXT RIN(M)'!$L315)","v":34143.533038416412},"",{"$f":"IF('[2]MONE(M)CARD'!EG315=\"\",\"\",'[2]MONE(M)CARD'!EG315)","v":29874.970782532779},{"$f":"IF('[2]MONE(M)CARD'!EK315=\"\",\"\",'[2]MONE(M)CARD'!EK315)","v":49804.278185880787},{"$f":"IF('[2]MONE(M)CARD'!EP315=\"\",\"\",'[2]MONE(M)CARD'!EP315)","v":28188.193641829479},{"$f":"IF('[2]MONE(M)CARD'!ES315=\"\",\"\",'[2]MONE(M)CARD'!ES315)","v":11.645518338728644},{"$f":"IF('[2]MONE(M)CARD'!EV315=\"\",\"\",'[2]MONE(M)CARD'!EV315)","v":10.09350102515616},{"$f":"IF('[2]MONE(M)CARD'!EZ315=\"\",\"\",'[2]MONE(M)CARD'!EZ315)","v":9.5266982227175667},{"$f":"IF('[2]MONE(M)CAPARD'!FC315=\"\",\"\",'[2]MONE(M)CAPARD'!FC315)","v":37774.192273622779},{"$f":"IF('[2]MONE(M)CAPARD'!FG315=\"\",\"\",'[2]MONE(M)CAPARD'!FG315)","v":76677.435779770778},{"$f":"IF('[2]MONE(M)CAPARD'!FL315=\"\",\"\",'[2]MONE(M)CAPARD'!FL315)","v":28188.193641829464},{"$f":"IF('[2]MONE(M)CAPARD'!FO315=\"\",\"\",'[2]MONE(M)CAPARD'!FO315)","v":8.8276104670603104},{"$f":"IF('[2]MONE(M)CAPARD'!FR315=\"\",\"\",'[2]MONE(M)CAPARD'!FR315)","v":8.1950413022446877},{"$f":"IF('[2]MONE(M)CAPARD'!FV315=\"\",\"\",'[2]MONE(M)CAPARD'!FV315)","v":8.1476462024744336},{"$f":"IF('[2]MONE(M)CARD'!FV315=\"\",\"\",'[2]MONE(M)CARD'!FV315)","v":1188.6225507704485},{"$f":"IF('[2]MONE(M)CARD'!GD315=\"\",\"\",'[2]MONE(M)CARD'!GD315)","v":188.11786191723445},{"$f":"IF('[2]MONE(M)CARD'!GE315=\"\",\"\",'[2]MONE(M)CARD'!GE315)","v":8579.5124456542271},8.6584193115629926,{"$f":"IF('[9]II.2.Balance OSD-Activos'!J173=\"\",\"\",'[9]II.2.Balance OSD-Activos'!J173)","v":191.99916900044872},{"$f":"IF('[9]II.2.Balance OSD-Activos'!N173=\"\",\"\",'[9]II.2.Balance OSD-Activos'!N173)","v":928.38905570702684},{"$f":"IF('[9]II.2.Balance OSD-Activos'!R173=\"\",\"\",'[9]II.2.Balance OSD-Activos'!R173)","v":43182.084029776976},{"$f":"IF('[9]II.2.Balance OSD-Activos'!S173=\"\",\"\",'[9]II.2.Balance OSD-Activos'!S173)","v":46741.154438273734},43374.083198777422,91043.626692758175,-8.3365135299397259,9.6412784329879209,17.402744629063037,9.7369733140798775,11.589274295109231,10.708100521247911,-0.30533761524735681,{"$f":"IF('[2]MONE(M)CAPARD'!GS315=\"\",\"\",'[2]MONE(M)CAPARD'!GS315)","v":17581.542086855745},{"$f":"IF('[2]MONE(M)CARD'!HA315=\"\",\"\",'[2]MONE(M)CAPARD'!HA315)","v":9633.1412393642277},{"$f":"IF('[2]MONE(M)CAPARD'!HB315=\"\",\"\",'[2]MONE(M)CAPARD'!HB315)","v":7948.4008474915172},"n.d.",{"$f":"IF('[10]II.2.Balance OSD-Activos'!J173=\"\",\"\",'[10]II.2.Balance OSD-Activos'!J173)","v":1673.283025260449},{"$f":"IF('[10]II.2.Balance OSD-Activos'!N173=\"\",\"\",'[10]II.2.Balance OSD-Activos'!N173)","v":1400.4644305770266},{"$f":"IF('[10]II.2.Balance OSD-Activos'!R173=\"\",\"\",'[10]II.2.Balance OSD-Activos'!R173)","v":63562.865792246979},{"$f":"IF('[10]II.2.Balance OSD-Activos'!S173=\"\",\"\",'[10]II.2.Balance OSD-Activos'!S173)","v":64262.551174883731},65236.148817507426,130899.16442296818,7.0723810997095793,10.690627627842254,8.8686243347753102,10.789183837362625,12.090313329072711,11.353321581568586,-0.26884455347826552,{"$f":"IF('[2]MONE(M)CAPARD'!AS315=\"\",\"\",'[2]MONE(M)CAPARD'!AS315)","v":3.5},{"$f":"IF('[2]MONE(M)CAPARD'!AT315=\"\",\"\",'[2]MONE(M)CAPARD'!AT315)","v":"n.a."},{"$f":"IF('[2]MONE(M)CAPARD'!AU315=\"\",\"\",'[2]MONE(M)CAPARD'!AU315)","v":3.25},{"$f":"IF('[2]MONE(M)CAPARD'!AV315=\"\",\"\",'[2]MONE(M)CAPARD'!AV315)","v":6.5},{"$f":"IF('[2]MONE(M)CAPARD'!AW315=\"\",\"\",'[2]MONE(M)CAPARD'!AW315)","v":"n.a."},{"$f":"IF('[2]MONE(M)CAPARD'!AX315=\"\",\"\",'[2]MONE(M)CAPARD'!AX315)","v":5},{"$f":"IF('[2]MONE(M)CAPARD'!AY315=\"\",\"\",'[2]MONE(M)CAPARD'!AY315)","v":"n.a."},{"$f":"IF('[2]FISCAL(M)'!$K315=\"\",\"\",'[2]FISCAL(M)'!$K315)","v":-574.66251459156592},{"$f":"IF('[2]FISCAL(M)'!$L315=\"\",\"\",'[2]FISCAL(M)'!$L315)","v":-1149.6782773015648},{"$f":"IF('[2]FISCAL(M)'!$AY315=\"\",\"\",'[2]FISCAL(M)'!$AY315)","v":107636.01472116716},{"$f":"IF('[2]FISCAL(M)'!$BI315=\"\",\"\",'[2]FISCAL(M)'!$BI315)","v":55048.718611897333},{"$f":"IF('[2]FISCAL(M)'!$BS315=\"\",\"\",'[2]FISCAL(M)'!$BS315)","v":52587.29610926981},{"$f":"IF('[2]FISCAL(M)'!$AZ315=\"\",\"\",'[2]FISCAL(M)'!$AZ315)","v":126934.08668832714},{"$f":"IF('[2]FISCAL(M)'!$BJ315=\"\",\"\",'[2]FISCAL(M)'!$BJ315)","v":59275.269307477327},{"$f":"IF('[2]FISCAL(M)'!$BT315=\"\",\"\",'[2]FISCAL(M)'!$BT315)","v":67658.81738084981},{"$f":"IF('[3]MONE(M)'!$AO315=\"\",\"\",'[3]MONE(M)'!$AO315)","v":16879297.920215342},{"$f":"IF('[4]MONE(M)'!$AO315=\"\",\"\",'[4]MONE(M)'!$AO315)","v":10803.257626639999},{"$f":"IF('[5]MONE(M)'!$AO315=\"\",\"\",'[5]MONE(M)'!$AO315)","v":167094.5914233845},{"$f":"+'[1]MONE(M)'!$AO315","v":241726.34924189784},{"$f":"IF('[6]MONE(M)'!$AO315=\"\",\"\",'[6]MONE(M)'!$AO315)","v":103599.55341927832},{"$f":"IF('[7]MONE(M)'!$AO315=\"\",\"\",'[7]MONE(M)'!$AO315)","v":723036.62825335003},{"$f":"IF('[8]MONE(M)'!$AO315=\"\",\"\",'[8]MONE(M)'!$AO315)","v":40594.058406819997},13.262513426890688,3.0683725042289334,10.232592662504004,10.11978091350807,19.511477965660461,16.079326713944852,13.147884218789629,{"$f":"IF('[2]FISCAL(M)'!$K315=\"\",\"\",'[2]FISCAL(M)'!$K315)","v":-574.66251459156592},{"$f":"+'[2]REAL(A)'!$AO$35","v":247040.68099578074},-0.23261857612891729,{"$f":"IF('[2]FISCAL(M)'!$L315=\"\",\"\",'[2]FISCAL(M)'!$L315)","v":-1149.6782773015648},{"$f":"+'[2]REAL(A)'!$AP$35","v":301132.40099578066},-0.38178498012828366,125719.43221612435,{"$f":"'[2]Gráfico REM'!BG309","v":22706.149481894641},{"$f":"'[2]Gráfico REM'!BH309","v":95603.963843101083},{"$f":"'[2]Gráfico REM'!BI309","v":7409.3188911286288},9.7708635499999197,2.0478247135238714,11.359510692110653,15.287349583879939,192024.67389005434,{"$f":"'[2]Gráfico REM'!BK309","v":24724.016223874642},{"$f":"'[2]Gráfico REM'!BL309","v":136198.02224992108},{"$f":"'[2]Gráfico REM'!BM309","v":31102.635416258629},11.119593668038142,2.6642309305668466,11.886596751811428,15.203575031163741]
[2015,"julio","2015-julio",{"$f":"IF('[2]REAL IPC(M)'!$AL316=\"\",\"\",+'[2]REAL IPC(M)'!$AL316)","v":1.1020672765252426},{"$f":"IF('[2]REAL IPC(M)'!$BE316=\"\",\"\",+'[2]REAL IPC(M)'!$BE316)","v":2.4968045916143211},{"$f":"IF('[2]REAL IPC(M)'!$AM316=\"\",\"\",+'[2]REAL IPC(M)'!$AM316)","v":1.085069444444442},{"$f":"IF('[2]REAL IPC(M)'!$BI316=\"\",\"\",+'[2]REAL IPC(M)'!$BI316)","v":2.2939572773704064},{"$f":"IF('[2]REAL IMAE(M)'!BJ316=\"\",\"\",'[2]REAL IMAE(M)'!BJ316)","v":6.1166773360104676},{"$f":"IF('[2]REAL IMAE(M)'!BK316=\"\",\"\",'[2]REAL IMAE(M)'!BK316)","v":4.6828147034557288},{"$f":"IF('[2]REAL IMAE(M)'!BN316=\"\",\"\",'[2]REAL IMAE(M)'!BN316)","v":6.6602396240009298},{"$f":"IF('[2]REAL IMAE(M)'!BO316=\"\",\"\",'[2]REAL IMAE(M)'!BO316)","v":4.8932809655034104},{"$f":"IF('[2]EXT RIN(M)'!$K316=\"\",\"\",'[2]EXT RIN(M)'!$K316)","v":29516.055361870625},"",{"$f":"IF('[2]EXT RIN(M)'!$L316=\"\",\"\",'[2]EXT RIN(M)'!$L316)","v":33531.223176000625},"",{"$f":"IF('[2]MONE(M)CARD'!EG316=\"\",\"\",'[2]MONE(M)CARD'!EG316)","v":30000.572892902095},{"$f":"IF('[2]MONE(M)CARD'!EK316=\"\",\"\",'[2]MONE(M)CARD'!EK316)","v":50000.365192263052},{"$f":"IF('[2]MONE(M)CARD'!EP316=\"\",\"\",'[2]MONE(M)CARD'!EP316)","v":28229.416819429287},{"$f":"IF('[2]MONE(M)CARD'!ES316=\"\",\"\",'[2]MONE(M)CARD'!ES316)","v":12.275937622323841},{"$f":"IF('[2]MONE(M)CARD'!EV316=\"\",\"\",'[2]MONE(M)CARD'!EV316)","v":10.082597556973427},{"$f":"IF('[2]MONE(M)CARD'!EZ316=\"\",\"\",'[2]MONE(M)CARD'!EZ316)","v":8.9739924324622855},{"$f":"IF('[2]MONE(M)CAPARD'!FC316=\"\",\"\",'[2]MONE(M)CAPARD'!FC316)","v":37917.15566029209},{"$f":"IF('[2]MONE(M)CAPARD'!FG316=\"\",\"\",'[2]MONE(M)CAPARD'!FG316)","v":77358.084385733033},{"$f":"IF('[2]MONE(M)CAPARD'!FL316=\"\",\"\",'[2]MONE(M)CAPARD'!FL316)","v":28229.416819429272},{"$f":"IF('[2]MONE(M)CAPARD'!FO316=\"\",\"\",'[2]MONE(M)CAPARD'!FO316)","v":8.7381588438403703},{"$f":"IF('[2]MONE(M)CAPARD'!FR316=\"\",\"\",'[2]MONE(M)CAPARD'!FR316)","v":8.3803131628243488},{"$f":"IF('[2]MONE(M)CAPARD'!FV316=\"\",\"\",'[2]MONE(M)CAPARD'!FV316)","v":7.8935054991581044},{"$f":"IF('[2]MONE(M)CARD'!FV316=\"\",\"\",'[2]MONE(M)CARD'!FV316)","v":1211.9312487386073},{"$f":"IF('[2]MONE(M)CARD'!GD316=\"\",\"\",'[2]MONE(M)CARD'!GD316)","v":89.243576387806982},{"$f":"IF('[2]MONE(M)CARD'!GE316=\"\",\"\",'[2]MONE(M)CARD'!GE316)","v":8581.9031449764789},5.5457052016093744,{"$f":"IF('[9]II.2.Balance OSD-Activos'!J174=\"\",\"\",'[9]II.2.Balance OSD-Activos'!J174)","v":184.07038635432269},{"$f":"IF('[9]II.2.Balance OSD-Activos'!N174=\"\",\"\",'[9]II.2.Balance OSD-Activos'!N174)","v":928.49609745773512},{"$f":"IF('[9]II.2.Balance OSD-Activos'!R174=\"\",\"\",'[9]II.2.Balance OSD-Activos'!R174)","v":43514.373343289408},{"$f":"IF('[9]II.2.Balance OSD-Activos'!S174=\"\",\"\",'[9]II.2.Balance OSD-Activos'!S174)","v":47139.571898716509},43698.443729643732,91766.511725817982,-8.2067326175226718,9.1291258016281684,19.330790082201666,9.2163774178258819,11.480825654504834,10.421202843837252,-0.28689767741065886,{"$f":"IF('[2]MONE(M)CAPARD'!GS316=\"\",\"\",'[2]MONE(M)CAPARD'!GS316)","v":17952.201687399222},{"$f":"IF('[2]MONE(M)CARD'!HA316=\"\",\"\",'[2]MONE(M)CAPARD'!HA316)","v":9633.5430259864788},{"$f":"IF('[2]MONE(M)CAPARD'!HB316=\"\",\"\",'[2]MONE(M)CAPARD'!HB316)","v":8318.6586614127427},"n.d.",{"$f":"IF('[10]II.2.Balance OSD-Activos'!J174=\"\",\"\",'[10]II.2.Balance OSD-Activos'!J174)","v":1744.2456515443228},{"$f":"IF('[10]II.2.Balance OSD-Activos'!N174=\"\",\"\",'[10]II.2.Balance OSD-Activos'!N174)","v":1374.8431068777354},{"$f":"IF('[10]II.2.Balance OSD-Activos'!R174=\"\",\"\",'[10]II.2.Balance OSD-Activos'!R174)","v":64232.068073319409},{"$f":"IF('[10]II.2.Balance OSD-Activos'!S174=\"\",\"\",'[10]II.2.Balance OSD-Activos'!S174)","v":64875.594533696516},65976.313724863736,132226.75136543799,6.8155116905098234,10.277016725292377,6.0822608957092461,10.374146805107888,12.205236691297937,11.168629668876328,-0.1846919126922586,{"$f":"IF('[2]MONE(M)CAPARD'!AS316=\"\",\"\",'[2]MONE(M)CAPARD'!AS316)","v":3},{"$f":"IF('[2]MONE(M)CAPARD'!AT316=\"\",\"\",'[2]MONE(M)CAPARD'!AT316)","v":"n.a."},{"$f":"IF('[2]MONE(M)CAPARD'!AU316=\"\",\"\",'[2]MONE(M)CAPARD'!AU316)","v":3.25},{"$f":"IF('[2]MONE(M)CAPARD'!AV316=\"\",\"\",'[2]MONE(M)CAPARD'!AV316)","v":6.25},{"$f":"IF('[2]MONE(M)CAPARD'!AW316=\"\",\"\",'[2]MONE(M)CAPARD'!AW316)","v":"n.a."},{"$f":"IF('[2]MONE(M)CAPARD'!AX316=\"\",\"\",'[2]MONE(M)CAPARD'!AX316)","v":5},{"$f":"IF('[2]MONE(M)CAPARD'!AY316=\"\",\"\",'[2]MONE(M)CAPARD'!AY316)","v":"n.a."},{"$f":"IF('[2]FISCAL(M)'!$K316=\"\",\"\",'[2]FISCAL(M)'!$K316)","v":-1207.8710349750413},{"$f":"IF('[2]FISCAL(M)'!$L316=\"\",\"\",'[2]FISCAL(M)'!$L316)","v":-2095.6154172950405},{"$f":"IF('[2]FISCAL(M)'!$AY316=\"\",\"\",'[2]FISCAL(M)'!$AY316)","v":108801.61193606984},{"$f":"IF('[2]FISCAL(M)'!$BI316=\"\",\"\",'[2]FISCAL(M)'!$BI316)","v":56272.296714679484},{"$f":"IF('[2]FISCAL(M)'!$BS316=\"\",\"\",'[2]FISCAL(M)'!$BS316)","v":52529.315221390338},{"$f":"IF('[2]FISCAL(M)'!$AZ316=\"\",\"\",'[2]FISCAL(M)'!$AZ316)","v":128090.09798976983},{"$f":"IF('[2]FISCAL(M)'!$BJ316=\"\",\"\",'[2]FISCAL(M)'!$BJ316)","v":60520.421357699481},{"$f":"IF('[2]FISCAL(M)'!$BT316=\"\",\"\",'[2]FISCAL(M)'!$BT316)","v":67569.676632070332},{"$f":"IF('[3]MONE(M)'!$AO316=\"\",\"\",'[3]MONE(M)'!$AO316)","v":17073024.664252784},{"$f":"IF('[4]MONE(M)'!$AO316=\"\",\"\",'[4]MONE(M)'!$AO316)","v":10848.296703889999},{"$f":"IF('[5]MONE(M)'!$AO316=\"\",\"\",'[5]MONE(M)'!$AO316)","v":168251.97216642011},{"$f":"+'[1]MONE(M)'!$AO316","v":242598.08533346711},{"$f":"IF('[6]MONE(M)'!$AO316=\"\",\"\",'[6]MONE(M)'!$AO316)","v":105638.67330465179},{"$f":"IF('[7]MONE(M)'!$AO316=\"\",\"\",'[7]MONE(M)'!$AO316)","v":733560.25846168003},{"$f":"IF('[8]MONE(M)'!$AO316=\"\",\"\",'[8]MONE(M)'!$AO316)","v":41196.849325310002},13.257187856353037,3.6685634032872283,9.5409063367297264,10.442034770253251,20.734270259444809,15.501000713633983,13.002543342728345,{"$f":"IF('[2]FISCAL(M)'!$K316=\"\",\"\",'[2]FISCAL(M)'!$K316)","v":-1207.8710349750413},{"$f":"+'[2]REAL(A)'!$AO$35","v":247040.68099578074},-0.488936085387358,{"$f":"IF('[2]FISCAL(M)'!$L316=\"\",\"\",'[2]FISCAL(M)'!$L316)","v":-2095.6154172950405},{"$f":"+'[2]REAL(A)'!$AP$35","v":301132.40099578066},-0.69591163566766223,126897.11933700414,{"$f":"'[2]Gráfico REM'!BG310","v":23110.942109797463},{"$f":"'[2]Gráfico REM'!BH310","v":96357.885419290367},{"$f":"'[2]Gráfico REM'!BI310","v":7428.2918079163028},10.75049267200896,7.8273024067154751,11.02174457539029,16.905765231883741,193677.19226062411,{"$f":"'[2]Gráfico REM'!BK310","v":25127.702854227464},{"$f":"'[2]Gráfico REM'!BL310","v":137554.73474460037},{"$f":"'[2]Gráfico REM'!BM310","v":30994.754661796302},11.747237052981152,7.9194271590879328,11.607659551926663,15.716945060552368]
[2015,"agosto","2015-agosto",{"$f":"IF('[2]REAL IPC(M)'!$AL317=\"\",\"\",+'[2]REAL IPC(M)'!$AL317)","v":0.82579347982192353},{"$f":"IF('[2]REAL IPC(M)'!$BE317=\"\",\"\",+'[2]REAL IPC(M)'!$BE317)","v":2.4654360747379922},{"$f":"IF('[2]REAL IPC(M)'!$AM317=\"\",\"\",+'[2]REAL IPC(M)'!$AM317)","v":0.77178303519909175},{"$f":"IF('[2]REAL IPC(M)'!$BI317=\"\",\"\",+'[2]REAL IPC(M)'!$BI317)","v":2.2571731020809782},{"$f":"IF('[2]REAL IMAE(M)'!BJ317=\"\",\"\",'[2]REAL IMAE(M)'!BJ317)","v":6.1362326446144699},{"$f":"IF('[2]REAL IMAE(M)'!BK317=\"\",\"\",'[2]REAL IMAE(M)'!BK317)","v":4.6810516967342952},{"$f":"IF('[2]REAL IMAE(M)'!BN317=\"\",\"\",'[2]REAL IMAE(M)'!BN317)","v":6.1086731300138641},{"$f":"IF('[2]REAL IMAE(M)'!BO317=\"\",\"\",'[2]REAL IMAE(M)'!BO317)","v":4.8820230790358243},{"$f":"IF('[2]EXT RIN(M)'!$K317=\"\",\"\",'[2]EXT RIN(M)'!$K317)","v":29499.03659697589},"",{"$f":"IF('[2]EXT RIN(M)'!$L317=\"\",\"\",'[2]EXT RIN(M)'!$L317)","v":33953.271433475893},"",{"$f":"IF('[2]MONE(M)CARD'!EG317=\"\",\"\",'[2]MONE(M)CARD'!EG317)","v":29666.393181416301},{"$f":"IF('[2]MONE(M)CARD'!EK317=\"\",\"\",'[2]MONE(M)CARD'!EK317)","v":50167.391528834989},{"$f":"IF('[2]MONE(M)CARD'!EP317=\"\",\"\",'[2]MONE(M)CARD'!EP317)","v":28137.501628664846},{"$f":"IF('[2]MONE(M)CARD'!ES317=\"\",\"\",'[2]MONE(M)CARD'!ES317)","v":11.392686804604256},{"$f":"IF('[2]MONE(M)CARD'!EV317=\"\",\"\",'[2]MONE(M)CARD'!EV317)","v":9.3453713199644675},{"$f":"IF('[2]MONE(M)CARD'!EZ317=\"\",\"\",'[2]MONE(M)CARD'!EZ317)","v":8.1564817261458256},{"$f":"IF('[2]MONE(M)CAPARD'!FC317=\"\",\"\",'[2]MONE(M)CAPARD'!FC317)","v":37653.076376764664},{"$f":"IF('[2]MONE(M)CAPARD'!FG317=\"\",\"\",'[2]MONE(M)CAPARD'!FG317)","v":77403.342119024979},{"$f":"IF('[2]MONE(M)CAPARD'!FL317=\"\",\"\",'[2]MONE(M)CAPARD'!FL317)","v":28137.501628664846},{"$f":"IF('[2]MONE(M)CAPARD'!FO317=\"\",\"\",'[2]MONE(M)CAPARD'!FO317)","v":8.0397573316977713},{"$f":"IF('[2]MONE(M)CAPARD'!FR317=\"\",\"\",'[2]MONE(M)CAPARD'!FR317)","v":7.519224011514769},{"$f":"IF('[2]MONE(M)CAPARD'!FV317=\"\",\"\",'[2]MONE(M)CAPARD'!FV317)","v":6.9983204852654302},{"$f":"IF('[2]MONE(M)CARD'!FV317=\"\",\"\",'[2]MONE(M)CARD'!FV317)","v":1220.4687899919982},{"$f":"IF('[2]MONE(M)CARD'!GD317=\"\",\"\",'[2]MONE(M)CARD'!GD317)","v":98.183533056959448},{"$f":"IF('[2]MONE(M)CARD'!GE317=\"\",\"\",'[2]MONE(M)CARD'!GE317)","v":8361.9741175608306},-0.17901738834408265,{"$f":"IF('[9]II.2.Balance OSD-Activos'!J175=\"\",\"\",'[9]II.2.Balance OSD-Activos'!J175)","v":192.04664496118784},{"$f":"IF('[9]II.2.Balance OSD-Activos'!N175=\"\",\"\",'[9]II.2.Balance OSD-Activos'!N175)","v":954.00996734160753},{"$f":"IF('[9]II.2.Balance OSD-Activos'!R175=\"\",\"\",'[9]II.2.Balance OSD-Activos'!R175)","v":43932.228608207879},{"$f":"IF('[9]II.2.Balance OSD-Activos'!S175=\"\",\"\",'[9]II.2.Balance OSD-Activos'!S175)","v":47612.718820661539},44124.275253169064,92691.004041172215,-5.8612865669845471,9.7872664177125266,20.723111095715808,9.867102108103154,11.122141436762757,10.572654909026058,0.15145206518880627,{"$f":"IF('[2]MONE(M)CAPARD'!GS317=\"\",\"\",'[2]MONE(M)CAPARD'!GS317)","v":17918.384044451086},{"$f":"IF('[2]MONE(M)CARD'!HA317=\"\",\"\",'[2]MONE(M)CAPARD'!HA317)","v":9430.5113513408287},{"$f":"IF('[2]MONE(M)CAPARD'!HB317=\"\",\"\",'[2]MONE(M)CAPARD'!HB317)","v":8487.8726931102574},"n.d.",{"$f":"IF('[10]II.2.Balance OSD-Activos'!J175=\"\",\"\",'[10]II.2.Balance OSD-Activos'!J175)","v":1817.764725111188},{"$f":"IF('[10]II.2.Balance OSD-Activos'!N175=\"\",\"\",'[10]II.2.Balance OSD-Activos'!N175)","v":1398.5207413616076},{"$f":"IF('[10]II.2.Balance OSD-Activos'!R175=\"\",\"\",'[10]II.2.Balance OSD-Activos'!R175)","v":64780.286547637879},{"$f":"IF('[10]II.2.Balance OSD-Activos'!S175=\"\",\"\",'[10]II.2.Balance OSD-Activos'!S175)","v":65686.125214751533},{"$f":"IFERROR(+AW310+AY310,\"\")","v":66598.051272749071},133682.69722886221,9.7939169877959031,10.163424846591184,6.6401514789898197,10.173829285185597,12.160640357028329,11.097068710273117,-7.1560958603210878E-2,{"$f":"IF('[2]MONE(M)CAPARD'!AS317=\"\",\"\",'[2]MONE(M)CAPARD'!AS317)","v":3},{"$f":"IF('[2]MONE(M)CAPARD'!AT317=\"\",\"\",'[2]MONE(M)CAPARD'!AT317)","v":"n.a."},{"$f":"IF('[2]MONE(M)CAPARD'!AU317=\"\",\"\",'[2]MONE(M)CAPARD'!AU317)","v":3.25},{"$f":"IF('[2]MONE(M)CAPARD'!AV317=\"\",\"\",'[2]MONE(M)CAPARD'!AV317)","v":6.25},{"$f":"IF('[2]MONE(M)CAPARD'!AW317=\"\",\"\",'[2]MONE(M)CAPARD'!AW317)","v":"n.a."},{"$f":"IF('[2]MONE(M)CAPARD'!AX317=\"\",\"\",'[2]MONE(M)CAPARD'!AX317)","v":5},{"$f":"IF('[2]MONE(M)CAPARD'!AY317=\"\",\"\",'[2]MONE(M)CAPARD'!AY317)","v":"n.a."},{"$f":"IF('[2]FISCAL(M)'!$K317=\"\",\"\",'[2]FISCAL(M)'!$K317)","v":-1801.7285429807503},{"$f":"IF('[2]FISCAL(M)'!$L317=\"\",\"\",'[2]FISCAL(M)'!$L317)","v":-2375.2999487995216},{"$f":"IF('[2]FISCAL(M)'!$AY317=\"\",\"\",'[2]FISCAL(M)'!$AY317)","v":108805.68466939198},{"$f":"IF('[2]FISCAL(M)'!$BI317=\"\",\"\",'[2]FISCAL(M)'!$BI317)","v":55825.092639721537},{"$f":"IF('[2]FISCAL(M)'!$BS317=\"\",\"\",'[2]FISCAL(M)'!$BS317)","v":52980.592029670443},{"$f":"IF('[2]FISCAL(M)'!$AZ317=\"\",\"\",'[2]FISCAL(M)'!$AZ317)","v":128705.82219024195},{"$f":"IF('[2]FISCAL(M)'!$BJ317=\"\",\"\",'[2]FISCAL(M)'!$BJ317)","v":60084.857722561545},{"$f":"IF('[2]FISCAL(M)'!$BT317=\"\",\"\",'[2]FISCAL(M)'!$BT317)","v":68620.964467680431},{"$f":"IF('[3]MONE(M)'!$AO317=\"\",\"\",'[3]MONE(M)'!$AO317)","v":17206340.55468791},{"$f":"IF('[4]MONE(M)'!$AO317=\"\",\"\",'[4]MONE(M)'!$AO317)","v":10913.55354683},{"$f":"IF('[5]MONE(M)'!$AO317=\"\",\"\",'[5]MONE(M)'!$AO317)","v":170251.55978541091},{"$f":"+'[1]MONE(M)'!$AO317","v":245927.19028035595},{"$f":"IF('[6]MONE(M)'!$AO317=\"\",\"\",'[6]MONE(M)'!$AO317)","v":106688.34104459877},{"$f":"IF('[7]MONE(M)'!$AO317=\"\",\"\",'[7]MONE(M)'!$AO317)","v":756803.84229941003},{"$f":"IF('[8]MONE(M)'!$AO317=\"\",\"\",'[8]MONE(M)'!$AO317)","v":41828.354848989999},12.592742443100956,3.4403773653620018,11.152523179917594,10.487696897842724,20.187694790074783,17.568226435785238,12.684926235070337,{"$f":"IF('[2]FISCAL(M)'!$K317=\"\",\"\",'[2]FISCAL(M)'!$K317)","v":-1801.7285429807503},{"$f":"+'[2]REAL(A)'!$AO$35","v":247040.68099578074},-0.72932463419315241,{"$f":"IF('[2]FISCAL(M)'!$L317=\"\",\"\",'[2]FISCAL(M)'!$L317)","v":-2375.2999487995216},{"$f":"+'[2]REAL(A)'!$AP$35","v":301132.40099578066},-0.78878923056599393,127598.642208463,{"$f":"'[2]Gráfico REM'!BG311","v":22767.234045906986},{"$f":"'[2]Gráfico REM'!BH311","v":97502.210720201168},{"$f":"'[2]Gráfico REM'!BI311","v":7329.1974423548563},10.249333043784103,5.7353326620040113,11.328251916539722,10.657608078719893,195418.42480757303,{"$f":"'[2]Gráfico REM'!BK311","v":24838.754444876984},{"$f":"'[2]Gráfico REM'!BL311","v":139330.56556919118},{"$f":"'[2]Gráfico REM'!BM311","v":31249.104793504855},11.366906551707112,6.0147523152619398,11.732094492028168,14.287607008566749]
[2015,"septiembre","2015-septiembre",{"$f":"IF('[2]REAL IPC(M)'!$AL318=\"\",\"\",+'[2]REAL IPC(M)'!$AL318)","v":0.7107473616196458},{"$f":"IF('[2]REAL IPC(M)'!$BE318=\"\",\"\",+'[2]REAL IPC(M)'!$BE318)","v":2.4388927405488703},{"$f":"IF('[2]REAL IPC(M)'!$AM318=\"\",\"\",+'[2]REAL IPC(M)'!$AM318)","v":0.56228373702422729},{"$f":"IF('[2]REAL IPC(M)'!$BI318=\"\",\"\",+'[2]REAL IPC(M)'!$BI318)","v":2.2256459037425458},{"$f":"IF('[2]REAL IMAE(M)'!BJ318=\"\",\"\",'[2]REAL IMAE(M)'!BJ318)","v":5.7112829468113802},{"$f":"IF('[2]REAL IMAE(M)'!BK318=\"\",\"\",'[2]REAL IMAE(M)'!BK318)","v":4.6759288898089002},{"$f":"IF('[2]REAL IMAE(M)'!BN318=\"\",\"\",'[2]REAL IMAE(M)'!BN318)","v":5.5184990536325307},{"$f":"IF('[2]REAL IMAE(M)'!BO318=\"\",\"\",'[2]REAL IMAE(M)'!BO318)","v":4.8678758210631834},{"$f":"IF('[2]EXT RIN(M)'!$K318=\"\",\"\",'[2]EXT RIN(M)'!$K318)","v":29093.175021051367},"",{"$f":"IF('[2]EXT RIN(M)'!$L318=\"\",\"\",'[2]EXT RIN(M)'!$L318)","v":33155.489269461366},"",{"$f":"IF('[2]MONE(M)CARD'!EG318=\"\",\"\",'[2]MONE(M)CARD'!EG318)","v":29855.020104118739},{"$f":"IF('[2]MONE(M)CARD'!EK318=\"\",\"\",'[2]MONE(M)CARD'!EK318)","v":50078.935831281095},{"$f":"IF('[2]MONE(M)CARD'!EP318=\"\",\"\",'[2]MONE(M)CARD'!EP318)","v":28267.641714978265},{"$f":"IF('[2]MONE(M)CARD'!ES318=\"\",\"\",'[2]MONE(M)CARD'!ES318)","v":10.913983309257901},{"$f":"IF('[2]MONE(M)CARD'!EV318=\"\",\"\",'[2]MONE(M)CARD'!EV318)","v":8.6092007955005165},{"$f":"IF('[2]MONE(M)CARD'!EZ318=\"\",\"\",'[2]MONE(M)CARD'!EZ318)","v":8.0232894637466856},{"$f":"IF('[2]MONE(M)CAPARD'!FC318=\"\",\"\",'[2]MONE(M)CAPARD'!FC318)","v":37662.504829418744},{"$f":"IF('[2]MONE(M)CAPARD'!FG318=\"\",\"\",'[2]MONE(M)CAPARD'!FG318)","v":77526.28779662108},{"$f":"IF('[2]MONE(M)CAPARD'!FL318=\"\",\"\",'[2]MONE(M)CAPARD'!FL318)","v":28267.641714978265},{"$f":"IF('[2]MONE(M)CAPARD'!FO318=\"\",\"\",'[2]MONE(M)CAPARD'!FO318)","v":7.6331187578672521},{"$f":"IF('[2]MONE(M)CAPARD'!FR318=\"\",\"\",'[2]MONE(M)CAPARD'!FR318)","v":7.1193879905940394},{"$f":"IF('[2]MONE(M)CAPARD'!FV318=\"\",\"\",'[2]MONE(M)CAPARD'!FV318)","v":6.976901006834102},{"$f":"IF('[2]MONE(M)CARD'!FV318=\"\",\"\",'[2]MONE(M)CARD'!FV318)","v":1225.3622715503682},{"$f":"IF('[2]MONE(M)CARD'!GD318=\"\",\"\",'[2]MONE(M)CARD'!GD318)","v":195.06548628502003},{"$f":"IF('[2]MONE(M)CARD'!GE318=\"\",\"\",'[2]MONE(M)CARD'!GE318)","v":8547.734382755656},4.3373608173180367,{"$f":"IF('[9]II.2.Balance OSD-Activos'!J176=\"\",\"\",'[9]II.2.Balance OSD-Activos'!J176)","v":179.56121477542214},{"$f":"IF('[9]II.2.Balance OSD-Activos'!N176=\"\",\"\",'[9]II.2.Balance OSD-Activos'!N176)","v":980.66335245797291},{"$f":"IF('[9]II.2.Balance OSD-Activos'!R176=\"\",\"\",'[9]II.2.Balance OSD-Activos'!R176)","v":44686.634925029502},{"$f":"IF('[9]II.2.Balance OSD-Activos'!S176=\"\",\"\",'[9]II.2.Balance OSD-Activos'!S176)","v":48116.953908962845},44866.196139804924,93963.813401225751,-8.3763966928882549,11.820991927012336,16.021215008925328,11.920127822739435,10.59327222235007,11.230704159557714,0.65804925053165597,{"$f":"IF('[2]MONE(M)CAPARD'!GS318=\"\",\"\",'[2]MONE(M)CAPARD'!GS318)","v":17886.69678134927},{"$f":"IF('[2]MONE(M)CARD'!HA318=\"\",\"\",'[2]MONE(M)CAPARD'!HA318)","v":9723.2156037756577},{"$f":"IF('[2]MONE(M)CAPARD'!HB318=\"\",\"\",'[2]MONE(M)CAPARD'!HB318)","v":8163.4811775736125},"n.d.",{"$f":"IF('[10]II.2.Balance OSD-Activos'!J176=\"\",\"\",'[10]II.2.Balance OSD-Activos'!J176)","v":1834.7876120454225},{"$f":"IF('[10]II.2.Balance OSD-Activos'!N176=\"\",\"\",'[10]II.2.Balance OSD-Activos'!N176)","v":1454.5518115379732},{"$f":"IF('[10]II.2.Balance OSD-Activos'!R176=\"\",\"\",'[10]II.2.Balance OSD-Activos'!R176)","v":65924.694573659508},{"$f":"IF('[10]II.2.Balance OSD-Activos'!S176=\"\",\"\",'[10]II.2.Balance OSD-Activos'!S176)","v":66262.088021762844},67759.482185704925,135476.12201900576,10.004390145865717,11.631730010382157,5.8200955862615755,11.677710375964745,11.536631205947856,11.51946604278038,0.42239733250726275,{"$f":"IF('[2]MONE(M)CAPARD'!AS318=\"\",\"\",'[2]MONE(M)CAPARD'!AS318)","v":3},{"$f":"IF('[2]MONE(M)CAPARD'!AT318=\"\",\"\",'[2]MONE(M)CAPARD'!AT318)","v":"n.a."},{"$f":"IF('[2]MONE(M)CAPARD'!AU318=\"\",\"\",'[2]MONE(M)CAPARD'!AU318)","v":3.25},{"$f":"IF('[2]MONE(M)CAPARD'!AV318=\"\",\"\",'[2]MONE(M)CAPARD'!AV318)","v":6.25},{"$f":"IF('[2]MONE(M)CAPARD'!AW318=\"\",\"\",'[2]MONE(M)CAPARD'!AW318)","v":"n.a."},{"$f":"IF('[2]MONE(M)CAPARD'!AX318=\"\",\"\",'[2]MONE(M)CAPARD'!AX318)","v":5},{"$f":"IF('[2]MONE(M)CAPARD'!AY318=\"\",\"\",'[2]MONE(M)CAPARD'!AY318)","v":"n.a."},{"$f":"IF('[2]FISCAL(M)'!$K318=\"\",\"\",'[2]FISCAL(M)'!$K318)","v":-2417.0537304031236},{"$f":"IF('[2]FISCAL(M)'!$L318=\"\",\"\",'[2]FISCAL(M)'!$L318)","v":-3199.8731431108963},{"$f":"IF('[2]FISCAL(M)'!$AY318=\"\",\"\",'[2]FISCAL(M)'!$AY318)","v":109384.60442840474},{"$f":"IF('[2]FISCAL(M)'!$BI318=\"\",\"\",'[2]FISCAL(M)'!$BI318)","v":56265.534389553119},{"$f":"IF('[2]FISCAL(M)'!$BS318=\"\",\"\",'[2]FISCAL(M)'!$BS318)","v":53119.070038851642},{"$f":"IF('[2]FISCAL(M)'!$AZ318=\"\",\"\",'[2]FISCAL(M)'!$AZ318)","v":129354.64122886477},{"$f":"IF('[2]FISCAL(M)'!$BJ318=\"\",\"\",'[2]FISCAL(M)'!$BJ318)","v":60599.204081753116},{"$f":"IF('[2]FISCAL(M)'!$BT318=\"\",\"\",'[2]FISCAL(M)'!$BT318)","v":68755.437147111632},{"$f":"IF('[3]MONE(M)'!$AO318=\"\",\"\",'[3]MONE(M)'!$AO318)","v":17330279.213089805},{"$f":"IF('[4]MONE(M)'!$AO318=\"\",\"\",'[4]MONE(M)'!$AO318)","v":10968.478326539998},{"$f":"IF('[5]MONE(M)'!$AO318=\"\",\"\",'[5]MONE(M)'!$AO318)","v":171781.34326291041},{"$f":"+'[1]MONE(M)'!$AO318","v":248066.59926987783},{"$f":"IF('[6]MONE(M)'!$AO318=\"\",\"\",'[6]MONE(M)'!$AO318)","v":111100.72645336433},{"$f":"IF('[7]MONE(M)'!$AO318=\"\",\"\",'[7]MONE(M)'!$AO318)","v":780925.27624116908},{"$f":"IF('[8]MONE(M)'!$AO318=\"\",\"\",'[8]MONE(M)'!$AO318)","v":42358.296514170004},12.983189970395049,3.4614558839034526,11.753423583547162,10.270737415153297,23.893225825321053,20.036367592556314,12.407627974956515,{"$f":"IF('[2]FISCAL(M)'!$K318=\"\",\"\",'[2]FISCAL(M)'!$K318)","v":-2417.0537304031236},{"$f":"+'[2]REAL(A)'!$AO$35","v":247040.68099578074},-0.97840311994784568,{"$f":"IF('[2]FISCAL(M)'!$L318=\"\",\"\",'[2]FISCAL(M)'!$L318)","v":-3199.8731431108963},{"$f":"+'[2]REAL(A)'!$AP$35","v":301132.40099578066},-1.0626133662567023,128829.87290082707,{"$f":"'[2]Gráfico REM'!BG312","v":22899.358647263329},{"$f":"'[2]Gráfico REM'!BH312","v":98718.082627293814},{"$f":"'[2]Gráfico REM'!BI312","v":7212.4316262699322},11.047107150588499,9.8743314335410837,11.859658805177432,4.2172147436746688,197130.36864257709,{"$f":"'[2]Gráfico REM'!BK312","v":24993.78428758333},{"$f":"'[2]Gráfico REM'!BL312","v":141076.37914146381},{"$f":"'[2]Gráfico REM'!BM312","v":31060.205213529935},11.60872645768638,10.527677885161268,12.023624934468714,10.6185043859925]
[2015,"octubre","2015-octubre",{"$f":"IF('[2]REAL IPC(M)'!$AL319=\"\",\"\",+'[2]REAL IPC(M)'!$AL319)","v":1.2850886639385495},{"$f":"IF('[2]REAL IPC(M)'!$BE319=\"\",\"\",+'[2]REAL IPC(M)'!$BE319)","v":2.4171590469656223},{"$f":"IF('[2]REAL IPC(M)'!$AM319=\"\",\"\",+'[2]REAL IPC(M)'!$AM319)","v":1.0598413842826337},{"$f":"IF('[2]REAL IPC(M)'!$BI319=\"\",\"\",+'[2]REAL IPC(M)'!$BI319)","v":2.1993453027327359},{"$f":"IF('[2]REAL IMAE(M)'!BJ319=\"\",\"\",'[2]REAL IMAE(M)'!BJ319)","v":5.4032891025526997},{"$f":"IF('[2]REAL IMAE(M)'!BK319=\"\",\"\",'[2]REAL IMAE(M)'!BK319)","v":4.6674928270161287},{"$f":"IF('[2]REAL IMAE(M)'!BN319=\"\",\"\",'[2]REAL IMAE(M)'!BN319)","v":5.3786170888087348},{"$f":"IF('[2]REAL IMAE(M)'!BO319=\"\",\"\",'[2]REAL IMAE(M)'!BO319)","v":4.8509668685364549},{"$f":"IF('[2]EXT RIN(M)'!$K319=\"\",\"\",'[2]EXT RIN(M)'!$K319)","v":28716.025055904123},"",{"$f":"IF('[2]EXT RIN(M)'!$L319=\"\",\"\",'[2]EXT RIN(M)'!$L319)","v":32620.078516714122},"",{"$f":"IF('[2]MONE(M)CARD'!EG319=\"\",\"\",'[2]MONE(M)CARD'!EG319)","v":30215.796294750344},{"$f":"IF('[2]MONE(M)CARD'!EK319=\"\",\"\",'[2]MONE(M)CARD'!EK319)","v":50093.732484493303},{"$f":"IF('[2]MONE(M)CARD'!EP319=\"\",\"\",'[2]MONE(M)CARD'!EP319)","v":28102.506985388405},{"$f":"IF('[2]MONE(M)CARD'!ES319=\"\",\"\",'[2]MONE(M)CARD'!ES319)","v":12.254820894208596},{"$f":"IF('[2]MONE(M)CARD'!EV319=\"\",\"\",'[2]MONE(M)CARD'!EV319)","v":8.4671081313649754},{"$f":"IF('[2]MONE(M)CARD'!EZ319=\"\",\"\",'[2]MONE(M)CARD'!EZ319)","v":7.779749317642759},{"$f":"IF('[2]MONE(M)CAPARD'!FC319=\"\",\"\",'[2]MONE(M)CAPARD'!FC319)","v":38163.691824130343},{"$f":"IF('[2]MONE(M)CAPARD'!FG319=\"\",\"\",'[2]MONE(M)CAPARD'!FG319)","v":77446.394271223311},{"$f":"IF('[2]MONE(M)CAPARD'!FL319=\"\",\"\",'[2]MONE(M)CAPARD'!FL319)","v":28102.506985388405},{"$f":"IF('[2]MONE(M)CAPARD'!FO319=\"\",\"\",'[2]MONE(M)CAPARD'!FO319)","v":9.4458649448540442},{"$f":"IF('[2]MONE(M)CAPARD'!FR319=\"\",\"\",'[2]MONE(M)CAPARD'!FR319)","v":6.9686219181665621},{"$f":"IF('[2]MONE(M)CAPARD'!FV319=\"\",\"\",'[2]MONE(M)CAPARD'!FV319)","v":6.7505341646412864},{"$f":"IF('[2]MONE(M)CARD'!FV319=\"\",\"\",'[2]MONE(M)CARD'!FV319)","v":1271.1046592257283},{"$f":"IF('[2]MONE(M)CARD'!GD319=\"\",\"\",'[2]MONE(M)CARD'!GD319)","v":98.133599289187657},{"$f":"IF('[2]MONE(M)CARD'!GE319=\"\",\"\",'[2]MONE(M)CARD'!GE319)","v":8748.5013455373337},5.5462252475716678,{"$f":"IF('[9]II.2.Balance OSD-Activos'!J177=\"\",\"\",'[9]II.2.Balance OSD-Activos'!J177)","v":174.55536431809296},{"$f":"IF('[9]II.2.Balance OSD-Activos'!N177=\"\",\"\",'[9]II.2.Balance OSD-Activos'!N177)","v":975.29978815864797},{"$f":"IF('[9]II.2.Balance OSD-Activos'!R177=\"\",\"\",'[9]II.2.Balance OSD-Activos'!R177)","v":45447.194394884078},{"$f":"IF('[9]II.2.Balance OSD-Activos'!S177=\"\",\"\",'[9]II.2.Balance OSD-Activos'!S177)","v":48655.215840437995},45621.749759202168,95252.265387798805,-11.350474023161883,11.868657039495689,11.316108981251706,11.981309636854554,10.448839318687897,11.133266283418264,-9.7437876139450097E-2,{"$f":"IF('[2]MONE(M)CAPARD'!GS319=\"\",\"\",'[2]MONE(M)CAPARD'!GS319)","v":18398.182932061034},{"$f":"IF('[2]MONE(M)CARD'!HA319=\"\",\"\",'[2]MONE(M)CAPARD'!HA319)","v":9961.7662228473328},{"$f":"IF('[2]MONE(M)CAPARD'!HB319=\"\",\"\",'[2]MONE(M)CAPARD'!HB319)","v":8436.4167092137013},"n.d.",{"$f":"IF('[10]II.2.Balance OSD-Activos'!J177=\"\",\"\",'[10]II.2.Balance OSD-Activos'!J177)","v":1812.0590565480932},{"$f":"IF('[10]II.2.Balance OSD-Activos'!N177=\"\",\"\",'[10]II.2.Balance OSD-Activos'!N177)","v":1452.5474157186479},{"$f":"IF('[10]II.2.Balance OSD-Activos'!R177=\"\",\"\",'[10]II.2.Balance OSD-Activos'!R177)","v":66813.384130994091},{"$f":"IF('[10]II.2.Balance OSD-Activos'!S177=\"\",\"\",'[10]II.2.Balance OSD-Activos'!S177)","v":67041.374893597997},68625.443187542187,137119.36549685884,8.682322583371139,11.287468262250645,3.4082813356074215,11.359863612146448,11.545175422237076,11.323362375386715,-0.19610366739366469,{"$f":"IF('[2]MONE(M)CAPARD'!AS319=\"\",\"\",'[2]MONE(M)CAPARD'!AS319)","v":2.25},{"$f":"IF('[2]MONE(M)CAPARD'!AT319=\"\",\"\",'[2]MONE(M)CAPARD'!AT319)","v":"n.a."},{"$f":"IF('[2]MONE(M)CAPARD'!AU319=\"\",\"\",'[2]MONE(M)CAPARD'!AU319)","v":3},{"$f":"IF('[2]MONE(M)CAPARD'!AV319=\"\",\"\",'[2]MONE(M)CAPARD'!AV319)","v":6.25},{"$f":"IF('[2]MONE(M)CAPARD'!AW319=\"\",\"\",'[2]MONE(M)CAPARD'!AW319)","v":"n.a."},{"$f":"IF('[2]MONE(M)CAPARD'!AX319=\"\",\"\",'[2]MONE(M)CAPARD'!AX319)","v":5},{"$f":"IF('[2]MONE(M)CAPARD'!AY319=\"\",\"\",'[2]MONE(M)CAPARD'!AY319)","v":"n.a."},{"$f":"IF('[2]FISCAL(M)'!$K319=\"\",\"\",'[2]FISCAL(M)'!$K319)","v":-2532.4609604768216},{"$f":"IF('[2]FISCAL(M)'!$L319=\"\",\"\",'[2]FISCAL(M)'!$L319)","v":-3792.4729792245926},{"$f":"IF('[2]FISCAL(M)'!$AY319=\"\",\"\",'[2]FISCAL(M)'!$AY319)","v":109574.15821491796},{"$f":"IF('[2]FISCAL(M)'!$BI319=\"\",\"\",'[2]FISCAL(M)'!$BI319)","v":56484.653614859977},{"$f":"IF('[2]FISCAL(M)'!$BS319=\"\",\"\",'[2]FISCAL(M)'!$BS319)","v":53089.504600057982},{"$f":"IF('[2]FISCAL(M)'!$AZ319=\"\",\"\",'[2]FISCAL(M)'!$AZ319)","v":129576.33897752795},{"$f":"IF('[2]FISCAL(M)'!$BJ319=\"\",\"\",'[2]FISCAL(M)'!$BJ319)","v":60862.323302059973},{"$f":"IF('[2]FISCAL(M)'!$BT319=\"\",\"\",'[2]FISCAL(M)'!$BT319)","v":68714.015675467992},{"$f":"IF('[3]MONE(M)'!$AO319=\"\",\"\",'[3]MONE(M)'!$AO319)","v":17498558.119420163},{"$f":"IF('[4]MONE(M)'!$AO319=\"\",\"\",'[4]MONE(M)'!$AO319)","v":11045.564794469999},{"$f":"IF('[5]MONE(M)'!$AO319=\"\",\"\",'[5]MONE(M)'!$AO319)","v":173758.01663496601},{"$f":"+'[1]MONE(M)'!$AO319","v":251500.57562748992},{"$f":"IF('[6]MONE(M)'!$AO319=\"\",\"\",'[6]MONE(M)'!$AO319)","v":113555.30133992003},{"$f":"IF('[7]MONE(M)'!$AO319=\"\",\"\",'[7]MONE(M)'!$AO319)","v":798194.01647404593},{"$f":"IF('[8]MONE(M)'!$AO319=\"\",\"\",'[8]MONE(M)'!$AO319)","v":42737.173123350003},12.248054139066177,3.9318787648594533,12.087738621359833,10.1318644657312,24.631302521017929,19.389373922632135,11.992599280711879,{"$f":"IF('[2]FISCAL(M)'!$K319=\"\",\"\",'[2]FISCAL(M)'!$K319)","v":-2532.4609604768216},{"$f":"+'[2]REAL(A)'!$AO$35","v":247040.68099578074},-1.0251190007527844,{"$f":"IF('[2]FISCAL(M)'!$L319=\"\",\"\",'[2]FISCAL(M)'!$L319)","v":-3792.4729792245926},{"$f":"+'[2]REAL(A)'!$AP$35","v":301132.40099578066},-1.2594038259196594,130257.30197753807,{"$f":"'[2]Gráfico REM'!BG313","v":23043.338217856392},{"$f":"'[2]Gráfico REM'!BH313","v":99968.556131986465},{"$f":"'[2]Gráfico REM'!BI313","v":7245.4076276952073},11.278195015360716,13.106471902926241,11.523744189866125,2.8651018333194722,198723.39132307805,{"$f":"'[2]Gráfico REM'!BK313","v":25159.963435486392},{"$f":"'[2]Gráfico REM'!BL313","v":142705.72925533645},{"$f":"'[2]Gráfico REM'!BM313","v":30857.6986322552},11.442694086273896,12.845274055166378,11.663743494218437,9.3337381405316666]
[2015,"noviembre","2015-noviembre",{"$f":"IF('[2]REAL IPC(M)'!$AL320=\"\",\"\",+'[2]REAL IPC(M)'!$AL320)","v":1.3472839329224495},{"$f":"IF('[2]REAL IPC(M)'!$BE320=\"\",\"\",+'[2]REAL IPC(M)'!$BE320)","v":2.4001231621938235},{"$f":"IF('[2]REAL IPC(M)'!$AM320=\"\",\"\",+'[2]REAL IPC(M)'!$AM320)","v":1.1595246669067416},{"$f":"IF('[2]REAL IPC(M)'!$BI320=\"\",\"\",+'[2]REAL IPC(M)'!$BI320)","v":2.1781358429412867},{"$f":"IF('[2]REAL IMAE(M)'!BJ320=\"\",\"\",'[2]REAL IMAE(M)'!BJ320)","v":4.772153190962114},{"$f":"IF('[2]REAL IMAE(M)'!BK320=\"\",\"\",'[2]REAL IMAE(M)'!BK320)","v":4.6558547149346152},{"$f":"IF('[2]REAL IMAE(M)'!BN320=\"\",\"\",'[2]REAL IMAE(M)'!BN320)","v":4.8253347351400411},{"$f":"IF('[2]REAL IMAE(M)'!BO320=\"\",\"\",'[2]REAL IMAE(M)'!BO320)","v":4.8314666464132738},{"$f":"IF('[2]EXT RIN(M)'!$K320=\"\",\"\",'[2]EXT RIN(M)'!$K320)","v":28779.212581577587},"",{"$f":"IF('[2]EXT RIN(M)'!$L320=\"\",\"\",'[2]EXT RIN(M)'!$L320)","v":32382.343503027587},"",{"$f":"IF('[2]MONE(M)CARD'!EG320=\"\",\"\",'[2]MONE(M)CARD'!EG320)","v":31636.353762281069},{"$f":"IF('[2]MONE(M)CARD'!EK320=\"\",\"\",'[2]MONE(M)CARD'!EK320)","v":49673.440474535309},{"$f":"IF('[2]MONE(M)CARD'!EP320=\"\",\"\",'[2]MONE(M)CARD'!EP320)","v":28042.646826865515},{"$f":"IF('[2]MONE(M)CARD'!ES320=\"\",\"\",'[2]MONE(M)CARD'!ES320)","v":13.453358615672094},{"$f":"IF('[2]MONE(M)CARD'!EV320=\"\",\"\",'[2]MONE(M)CARD'!EV320)","v":8.8367652620819026},{"$f":"IF('[2]MONE(M)CARD'!EZ320=\"\",\"\",'[2]MONE(M)CARD'!EZ320)","v":7.8278341306758259},{"$f":"IF('[2]MONE(M)CAPARD'!FC320=\"\",\"\",'[2]MONE(M)CAPARD'!FC320)","v":39741.840074701067},{"$f":"IF('[2]MONE(M)CAPARD'!FG320=\"\",\"\",'[2]MONE(M)CAPARD'!FG320)","v":77208.855081175308},{"$f":"IF('[2]MONE(M)CAPARD'!FL320=\"\",\"\",'[2]MONE(M)CAPARD'!FL320)","v":28042.646826865544},{"$f":"IF('[2]MONE(M)CAPARD'!FO320=\"\",\"\",'[2]MONE(M)CAPARD'!FO320)","v":10.322457989919398},{"$f":"IF('[2]MONE(M)CAPARD'!FR320=\"\",\"\",'[2]MONE(M)CAPARD'!FR320)","v":7.3551083653520921},{"$f":"IF('[2]MONE(M)CAPARD'!FV320=\"\",\"\",'[2]MONE(M)CAPARD'!FV320)","v":6.8924956256634529},{"$f":"IF('[2]MONE(M)CARD'!FV320=\"\",\"\",'[2]MONE(M)CARD'!FV320)","v":1299.524175507333},{"$f":"IF('[2]MONE(M)CARD'!GD320=\"\",\"\",'[2]MONE(M)CARD'!GD320)","v":103.93896318705684},{"$f":"IF('[2]MONE(M)CARD'!GE320=\"\",\"\",'[2]MONE(M)CARD'!GE320)","v":8603.8771004508326},4.7288542115752952,{"$f":"IF('[9]II.2.Balance OSD-Activos'!J178=\"\",\"\",'[9]II.2.Balance OSD-Activos'!J178)","v":196.40656770145429},{"$f":"IF('[9]II.2.Balance OSD-Activos'!N178=\"\",\"\",'[9]II.2.Balance OSD-Activos'!N178)","v":1008.0734222070885},{"$f":"IF('[9]II.2.Balance OSD-Activos'!R178=\"\",\"\",'[9]II.2.Balance OSD-Activos'!R178)","v":46075.575975794767},{"$f":"IF('[9]II.2.Balance OSD-Activos'!S178=\"\",\"\",'[9]II.2.Balance OSD-Activos'!S178)","v":49383.908358630964},46271.982543496219,96663.964324334273,9.7492116409330087,11.013933320120417,15.519652683175167,11.019386848927383,10.684539491215794,10.890444338426253,-0.24282194499201104,{"$f":"IF('[2]MONE(M)CAPARD'!GS320=\"\",\"\",'[2]MONE(M)CAPARD'!GS320)","v":18596.869495803228},{"$f":"IF('[2]MONE(M)CARD'!HA320=\"\",\"\",'[2]MONE(M)CAPARD'!HA320)","v":9889.0649665008314},{"$f":"IF('[2]MONE(M)CAPARD'!HB320=\"\",\"\",'[2]MONE(M)CAPARD'!HB320)","v":8707.804529302397},"n.d.",{"$f":"IF('[10]II.2.Balance OSD-Activos'!J178=\"\",\"\",'[10]II.2.Balance OSD-Activos'!J178)","v":1839.3598676614545},{"$f":"IF('[10]II.2.Balance OSD-Activos'!N178=\"\",\"\",'[10]II.2.Balance OSD-Activos'!N178)","v":1487.6033182370884},{"$f":"IF('[10]II.2.Balance OSD-Activos'!R178=\"\",\"\",'[10]II.2.Balance OSD-Activos'!R178)","v":67729.241461374753},{"$f":"IF('[10]II.2.Balance OSD-Activos'!S178=\"\",\"\",'[10]II.2.Balance OSD-Activos'!S178)","v":68026.555996070965},69568.601329036203,139082.76064334426,11.510400720894687,10.784920645202822,3.9319077727928198,10.765350027554055,11.857697276575664,11.228227732874307,-9.5134642512407552E-2,{"$f":"IF('[2]MONE(M)CAPARD'!AS320=\"\",\"\",'[2]MONE(M)CAPARD'!AS320)","v":2.25},{"$f":"IF('[2]MONE(M)CAPARD'!AT320=\"\",\"\",'[2]MONE(M)CAPARD'!AT320)","v":"n.a."},{"$f":"IF('[2]MONE(M)CAPARD'!AU320=\"\",\"\",'[2]MONE(M)CAPARD'!AU320)","v":3},{"$f":"IF('[2]MONE(M)CAPARD'!AV320=\"\",\"\",'[2]MONE(M)CAPARD'!AV320)","v":6.25},{"$f":"IF('[2]MONE(M)CAPARD'!AW320=\"\",\"\",'[2]MONE(M)CAPARD'!AW320)","v":"n.a."},{"$f":"IF('[2]MONE(M)CAPARD'!AX320=\"\",\"\",'[2]MONE(M)CAPARD'!AX320)","v":5},{"$f":"IF('[2]MONE(M)CAPARD'!AY320=\"\",\"\",'[2]MONE(M)CAPARD'!AY320)","v":"n.a."},{"$f":"IF('[2]FISCAL(M)'!$K320=\"\",\"\",'[2]FISCAL(M)'!$K320)","v":-3344.4512097762736},{"$f":"IF('[2]FISCAL(M)'!$L320=\"\",\"\",'[2]FISCAL(M)'!$L320)","v":-5038.3947367840447},{"$f":"IF('[2]FISCAL(M)'!$AY320=\"\",\"\",'[2]FISCAL(M)'!$AY320)","v":109567.46128336029},{"$f":"IF('[2]FISCAL(M)'!$BI320=\"\",\"\",'[2]FISCAL(M)'!$BI320)","v":56305.801296422942},{"$f":"IF('[2]FISCAL(M)'!$BS320=\"\",\"\",'[2]FISCAL(M)'!$BS320)","v":53261.659986937353},{"$f":"IF('[2]FISCAL(M)'!$AZ320=\"\",\"\",'[2]FISCAL(M)'!$AZ320)","v":129868.45362582029},{"$f":"IF('[2]FISCAL(M)'!$BJ320=\"\",\"\",'[2]FISCAL(M)'!$BJ320)","v":60987.861811842944},{"$f":"IF('[2]FISCAL(M)'!$BT320=\"\",\"\",'[2]FISCAL(M)'!$BT320)","v":68880.591813977342},{"$f":"IF('[3]MONE(M)'!$AO320=\"\",\"\",'[3]MONE(M)'!$AO320)","v":17586581.520206105},{"$f":"IF('[4]MONE(M)'!$AO320=\"\",\"\",'[4]MONE(M)'!$AO320)","v":11172.61184942},{"$f":"IF('[5]MONE(M)'!$AO320=\"\",\"\",'[5]MONE(M)'!$AO320)","v":175555.66644840082},{"$f":"+'[1]MONE(M)'!$AO320","v":255217.31929192203},{"$f":"IF('[6]MONE(M)'!$AO320=\"\",\"\",'[6]MONE(M)'!$AO320)","v":116379.04009399176},{"$f":"IF('[7]MONE(M)'!$AO320=\"\",\"\",'[7]MONE(M)'!$AO320)","v":810454.71967745642},{"$f":"IF('[8]MONE(M)'!$AO320=\"\",\"\",'[8]MONE(M)'!$AO320)","v":43297.888723269985},11.548009305617635,4.2788381362054873,11.858566848849094,10.118669378458932,23.165517232638532,17.894825689489615,12.369504045443591,{"$f":"IF('[2]FISCAL(M)'!$K320=\"\",\"\",'[2]FISCAL(M)'!$K320)","v":-3344.4512097762736},{"$f":"+'[2]REAL(A)'!$AO$35","v":247040.68099578074},-1.3538058575192295,{"$f":"IF('[2]FISCAL(M)'!$L320=\"\",\"\",'[2]FISCAL(M)'!$L320)","v":-5038.3947367840447},{"$f":"+'[2]REAL(A)'!$AP$35","v":301132.40099578066},-1.6731493257195664,131473.10735195951,{"$f":"'[2]Gráfico REM'!BG314","v":22900.000072301089},{"$f":"'[2]Gráfico REM'!BH314","v":101214.91477544658},{"$f":"'[2]Gráfico REM'!BI314","v":7358.1925042118437},12.05888294086639,17.068908265622284,11.220542996270266,8.8474444227365723,200729.83351830949,{"$f":"'[2]Gráfico REM'!BK314","v":25063.583310201087},{"$f":"'[2]Gráfico REM'!BL314","v":144512.80349871656},{"$f":"'[2]Gráfico REM'!BM314","v":31153.446709391836},11.868138476898027,16.796165536254982,11.562313633271803,9.542624797138588]
[2015,"diciembre","2015-diciembre",{"$f":"IF('[2]REAL IPC(M)'!$AL321=\"\",\"\",+'[2]REAL IPC(M)'!$AL321)","v":1.9710812171786163},{"$f":"IF('[2]REAL IPC(M)'!$BE321=\"\",\"\",+'[2]REAL IPC(M)'!$BE321)","v":2.3875986870392385},{"$f":"IF('[2]REAL IPC(M)'!$AM321=\"\",\"\",+'[2]REAL IPC(M)'!$AM321)","v":1.7422106556784556},{"$f":"IF('[2]REAL IPC(M)'!$BI321=\"\",\"\",+'[2]REAL IPC(M)'!$BI321)","v":2.1617966198736793},{"$f":"IF('[2]REAL IMAE(M)'!BJ321=\"\",\"\",'[2]REAL IMAE(M)'!BJ321)","v":3.9697314689769447},{"$f":"IF('[2]REAL IMAE(M)'!BK321=\"\",\"\",'[2]REAL IMAE(M)'!BK321)","v":4.6411697027853194},{"$f":"IF('[2]REAL IMAE(M)'!BN321=\"\",\"\",'[2]REAL IMAE(M)'!BN321)","v":4.0733235418358937},{"$f":"IF('[2]REAL IMAE(M)'!BO321=\"\",\"\",'[2]REAL IMAE(M)'!BO321)","v":4.8095792332042198},{"$f":"IF('[2]EXT RIN(M)'!$K321=\"\",\"\",'[2]EXT RIN(M)'!$K321)","v":29674.007232887303},29674.007232887303,{"$f":"IF('[2]EXT RIN(M)'!$L321=\"\",\"\",'[2]EXT RIN(M)'!$L321)","v":33570.121339927304},33570.121339927304,{"$f":"IF('[2]MONE(M)CARD'!EG321=\"\",\"\",'[2]MONE(M)CARD'!EG321)","v":33118.16154321556},{"$f":"IF('[2]MONE(M)CARD'!EK321=\"\",\"\",'[2]MONE(M)CARD'!EK321)","v":50021.174624334984},{"$f":"IF('[2]MONE(M)CARD'!EP321=\"\",\"\",'[2]MONE(M)CARD'!EP321)","v":28082.726489088629},{"$f":"IF('[2]MONE(M)CARD'!ES321=\"\",\"\",'[2]MONE(M)CARD'!ES321)","v":12.165967342360528},{"$f":"IF('[2]MONE(M)CARD'!EV321=\"\",\"\",'[2]MONE(M)CARD'!EV321)","v":8.1588629029735849},{"$f":"IF('[2]MONE(M)CARD'!EZ321=\"\",\"\",'[2]MONE(M)CARD'!EZ321)","v":7.1046588783247655},{"$f":"IF('[2]MONE(M)CAPARD'!FC321=\"\",\"\",'[2]MONE(M)CAPARD'!FC321)","v":41332.833642135556},{"$f":"IF('[2]MONE(M)CAPARD'!FG321=\"\",\"\",'[2]MONE(M)CAPARD'!FG321)","v":77997.565344944975},{"$f":"IF('[2]MONE(M)CAPARD'!FL321=\"\",\"\",'[2]MONE(M)CAPARD'!FL321)","v":28082.726489088629},{"$f":"IF('[2]MONE(M)CAPARD'!FO321=\"\",\"\",'[2]MONE(M)CAPARD'!FO321)","v":9.2230833433683213},{"$f":"IF('[2]MONE(M)CAPARD'!FR321=\"\",\"\",'[2]MONE(M)CAPARD'!FR321)","v":7.0025704302586256},{"$f":"IF('[2]MONE(M)CAPARD'!FV321=\"\",\"\",'[2]MONE(M)CAPARD'!FV321)","v":6.4373592791376444},{"$f":"IF('[2]MONE(M)CARD'!FV321=\"\",\"\",'[2]MONE(M)CARD'!FV321)","v":1334.0231316324371},{"$f":"IF('[2]MONE(M)CARD'!GD321=\"\",\"\",'[2]MONE(M)CARD'!GD321)","v":154.10656703557314},{"$f":"IF('[2]MONE(M)CARD'!GE321=\"\",\"\",'[2]MONE(M)CARD'!GE321)","v":8062.258483798405},0.69270802476071314,{"$f":"IF('[9]II.2.Balance OSD-Activos'!J179=\"\",\"\",'[9]II.2.Balance OSD-Activos'!J179)","v":194.13875347433043},{"$f":"IF('[9]II.2.Balance OSD-Activos'!N179=\"\",\"\",'[9]II.2.Balance OSD-Activos'!N179)","v":1007.694402761087},{"$f":"IF('[9]II.2.Balance OSD-Activos'!R179=\"\",\"\",'[9]II.2.Balance OSD-Activos'!R179)","v":46497.328582384434},{"$f":"IF('[9]II.2.Balance OSD-Activos'!S179=\"\",\"\",'[9]II.2.Balance OSD-Activos'!S179)","v":49519.243381006534},{"$f":"IFERROR(+AF314+AH314,\" \")","v":46691.467335858768},97218.405119626375,8.8441582430676124,9.8268252499573272,16.472713143713658,9.8309653447535172,10.430324423465297,10.198755181256081,-0.69168915717017221,{"$f":"IF('[2]MONE(M)CAPARD'!GS321=\"\",\"\",'[2]MONE(M)CAPARD'!GS321)","v":18606.375397311142},{"$f":"IF('[2]MONE(M)CARD'!HA321=\"\",\"\",'[2]MONE(M)CAPARD'!HA321)","v":9358.6384510784046},{"$f":"IF('[2]MONE(M)CAPARD'!HB321=\"\",\"\",'[2]MONE(M)CAPARD'!HB321)","v":9247.736946232737},"n.d.",{"$f":"IF('[10]II.2.Balance OSD-Activos'!J179=\"\",\"\",'[10]II.2.Balance OSD-Activos'!J179)","v":1816.6722391443307},{"$f":"IF('[10]II.2.Balance OSD-Activos'!N179=\"\",\"\",'[10]II.2.Balance OSD-Activos'!N179)","v":1494.8546344510869},{"$f":"IF('[10]II.2.Balance OSD-Activos'!R179=\"\",\"\",'[10]II.2.Balance OSD-Activos'!R179)","v":67874.352478374436},{"$f":"IF('[10]II.2.Balance OSD-Activos'!S179=\"\",\"\",'[10]II.2.Balance OSD-Activos'!S179)","v":68355.605184106535},69691.024717518769,139541.48453607637,8.6888700879751859,9.5860786680773025,18.45789252101353,9.6102962387610837,11.602669983321823,10.654308460864925,-0.5739192720093822,{"$f":"IF('[2]MONE(M)CAPARD'!AS321=\"\",\"\",'[2]MONE(M)CAPARD'!AS321)","v":2.25},{"$f":"IF('[2]MONE(M)CAPARD'!AT321=\"\",\"\",'[2]MONE(M)CAPARD'!AT321)","v":"n.a."},{"$f":"IF('[2]MONE(M)CAPARD'!AU321=\"\",\"\",'[2]MONE(M)CAPARD'!AU321)","v":3},{"$f":"IF('[2]MONE(M)CAPARD'!AV321=\"\",\"\",'[2]MONE(M)CAPARD'!AV321)","v":6.25},{"$f":"IF('[2]MONE(M)CAPARD'!AW321=\"\",\"\",'[2]MONE(M)CAPARD'!AW321)","v":"n.a."},{"$f":"IF('[2]MONE(M)CAPARD'!AX321=\"\",\"\",'[2]MONE(M)CAPARD'!AX321)","v":5},{"$f":"IF('[2]MONE(M)CAPARD'!AY321=\"\",\"\",'[2]MONE(M)CAPARD'!AY321)","v":"n.a."},{"$f":"IF('[2]FISCAL(M)'!$K321=\"\",\"\",'[2]FISCAL(M)'!$K321)","v":-4992.0167934049123},{"$f":"IF('[2]FISCAL(M)'!$L321=\"\",\"\",'[2]FISCAL(M)'!$L321)","v":-4991.5458977426852},{"$f":"IF('[2]FISCAL(M)'!$AY321=\"\",\"\",'[2]FISCAL(M)'!$AY321)","v":110428.40130848231},{"$f":"IF('[2]FISCAL(M)'!$BI321=\"\",\"\",'[2]FISCAL(M)'!$BI321)","v":56135.037639575188},{"$f":"IF('[2]FISCAL(M)'!$BS321=\"\",\"\",'[2]FISCAL(M)'!$BS321)","v":54293.363668907128},{"$f":"IF('[2]FISCAL(M)'!$AZ321=\"\",\"\",'[2]FISCAL(M)'!$AZ321)","v":130651.24363401231},{"$f":"IF('[2]FISCAL(M)'!$BJ321=\"\",\"\",'[2]FISCAL(M)'!$BJ321)","v":60709.63580116519},{"$f":"IF('[2]FISCAL(M)'!$BT321=\"\",\"\",'[2]FISCAL(M)'!$BT321)","v":69941.607832847119},{"$f":"IF('[3]MONE(M)'!$AO321=\"\",\"\",'[3]MONE(M)'!$AO321)","v":17842699.45193876},{"$f":"IF('[4]MONE(M)'!$AO321=\"\",\"\",'[4]MONE(M)'!$AO321)","v":11199.988952619999},{"$f":"IF('[5]MONE(M)'!$AO321=\"\",\"\",'[5]MONE(M)'!$AO321)","v":177482.76659281901},{"$f":"+'[1]MONE(M)'!$AO321","v":257738.5288175946},{"$f":"IF('[6]MONE(M)'!$AO321=\"\",\"\",'[6]MONE(M)'!$AO321)","v":118867.25213424562},{"$f":"IF('[7]MONE(M)'!$AO321=\"\",\"\",'[7]MONE(M)'!$AO321)","v":819047.0566265299},{"$f":"IF('[8]MONE(M)'!$AO321=\"\",\"\",'[8]MONE(M)'!$AO321)","v":43157.608895640005},11.97673529527985,4.7488799151071737,11.741019128034402,10.028387699980135,23.59842699712118,14.817842982799112,11.347416905052254,{"$f":"IF('[2]FISCAL(M)'!$K321=\"\",\"\",'[2]FISCAL(M)'!$K321)","v":-4992.0167934049123},{"$f":"+'[2]REAL(A)'!$AO$35","v":247040.68099578074},-2.0207266160710478,{"$f":"IF('[2]FISCAL(M)'!$L321=\"\",\"\",'[2]FISCAL(M)'!$L321)","v":-4991.5458977426852},{"$f":"+'[2]REAL(A)'!$AP$35","v":301132.40099578066},-1.6575917706751937,131914.70710434666,{"$f":"'[2]Gráfico REM'!BG315","v":22625.320270852964},{"$f":"'[2]Gráfico REM'!BH315","v":101806.58416363754},{"$f":"'[2]Gráfico REM'!BI315","v":7482.8026698561534},11.20750408486253,17.261997151640763,10.514030151113452,3.8600757320197632,201164.80332531666,{"$f":"'[2]Gráfico REM'!BK315","v":24763.972540752962},{"$f":"'[2]Gráfico REM'!BL315","v":144964.19305927755},{"$f":"'[2]Gráfico REM'!BM315","v":31436.637725286149},11.20153631938965,16.541282291696447,10.76083250123434,9.2626362038396017]
[2016,"enero","2016-enero",{"$f":"IF('[2]REAL IPC(M)'!$AL322=\"\",\"\",+'[2]REAL IPC(M)'!$AL322)","v":2.6586929894084621},{"$f":"IF('[2]REAL IPC(M)'!$BE322=\"\",\"\",+'[2]REAL IPC(M)'!$BE322)","v":2.3793436214041508},{"$f":"IF('[2]REAL IPC(M)'!$AM322=\"\",\"\",+'[2]REAL IPC(M)'!$AM322)","v":2.3383768913342706},{"$f":"IF('[2]REAL IPC(M)'!$BI322=\"\",\"\",+'[2]REAL IPC(M)'!$BI322)","v":2.150043906735899},{"$f":"IF('[2]REAL IMAE(M)'!BJ322=\"\",\"\",'[2]REAL IMAE(M)'!BJ322)","v":3.5475839153842559},{"$f":"IF('[2]REAL IMAE(M)'!BK322=\"\",\"\",'[2]REAL IMAE(M)'!BK322)","v":4.6235938241401264},{"$f":"IF('[2]REAL IMAE(M)'!BN322=\"\",\"\",'[2]REAL IMAE(M)'!BN322)","v":3.7028451034756271},{"$f":"IF('[2]REAL IMAE(M)'!BO322=\"\",\"\",'[2]REAL IMAE(M)'!BO322)","v":4.7855049351628987},{"$f":"IF('[2]EXT RIN(M)'!$K322=\"\",\"\",'[2]EXT RIN(M)'!$K322)","v":29982.491288363257},"",{"$f":"IF('[2]EXT RIN(M)'!$L322=\"\",\"\",'[2]EXT RIN(M)'!$L322)","v":33788.574324923255},"",{"$f":"IF('[2]MONE(M)CARD'!EG322=\"\",\"\",'[2]MONE(M)CARD'!EG322)","v":32502.548275288307},{"$f":"IF('[2]MONE(M)CARD'!EK322=\"\",\"\",'[2]MONE(M)CARD'!EK322)","v":49791.233875204198},{"$f":"IF('[2]MONE(M)CARD'!EP322=\"\",\"\",'[2]MONE(M)CARD'!EP322)","v":28018.979875553254},{"$f":"IF('[2]MONE(M)CARD'!ES322=\"\",\"\",'[2]MONE(M)CARD'!ES322)","v":11.148548163404136},{"$f":"IF('[2]MONE(M)CARD'!EV322=\"\",\"\",'[2]MONE(M)CARD'!EV322)","v":7.6467081564842054},{"$f":"IF('[2]MONE(M)CARD'!EZ322=\"\",\"\",'[2]MONE(M)CARD'!EZ322)","v":6.8088203315139317},{"$f":"IF('[2]MONE(M)CAPARD'!FC322=\"\",\"\",'[2]MONE(M)CAPARD'!FC322)","v":40690.999657328306},{"$f":"IF('[2]MONE(M)CAPARD'!FG322=\"\",\"\",'[2]MONE(M)CAPARD'!FG322)","v":78283.962144894205},{"$f":"IF('[2]MONE(M)CAPARD'!FL322=\"\",\"\",'[2]MONE(M)CAPARD'!FL322)","v":28018.979875553254},{"$f":"IF('[2]MONE(M)CAPARD'!FO322=\"\",\"\",'[2]MONE(M)CAPARD'!FO322)","v":8.443480384100166},{"$f":"IF('[2]MONE(M)CAPARD'!FR322=\"\",\"\",'[2]MONE(M)CAPARD'!FR322)","v":7.1782595121591131},{"$f":"IF('[2]MONE(M)CAPARD'!FV322=\"\",\"\",'[2]MONE(M)CAPARD'!FV322)","v":6.641635086140818},{"$f":"IF('[2]MONE(M)CARD'!FV322=\"\",\"\",'[2]MONE(M)CARD'!FV322)","v":1345.9123855836619},{"$f":"IF('[2]MONE(M)CARD'!GD322=\"\",\"\",'[2]MONE(M)CARD'!GD322)","v":99.272230814880231},{"$f":"IF('[2]MONE(M)CARD'!GE322=\"\",\"\",'[2]MONE(M)CARD'!GE322)","v":8669.5305802310068},15.237659105056455,{"$f":"IF('[9]II.2.Balance OSD-Activos'!J180=\"\",\"\",'[9]II.2.Balance OSD-Activos'!J180)","v":205.29920400880792},{"$f":"IF('[9]II.2.Balance OSD-Activos'!N180=\"\",\"\",'[9]II.2.Balance OSD-Activos'!N180)","v":997.59283791307416},{"$f":"IF('[9]II.2.Balance OSD-Activos'!R180=\"\",\"\",'[9]II.2.Balance OSD-Activos'!R180)","v":46532.799219632063},{"$f":"IF('[9]II.2.Balance OSD-Activos'!S180=\"\",\"\",'[9]II.2.Balance OSD-Activos'!S180)","v":49561.900973727439},{"$f":"IFERROR(+AF315+AH315,\"\")","v":46738.098423640869},97297.592235281394,14.201343473612503,10.925114349712373,18.357989554734377,10.911076323133484,10.53925758132641,10.799444652014035,0.60068947075795442,{"$f":"IF('[2]MONE(M)CAPARD'!GS322=\"\",\"\",'[2]MONE(M)CAPARD'!GS322)","v":19032.475481960806},{"$f":"IF('[2]MONE(M)CARD'!HA322=\"\",\"\",'[2]MONE(M)CAPARD'!HA322)","v":9951.1975353710059},{"$f":"IF('[2]MONE(M)CAPARD'!HB322=\"\",\"\",'[2]MONE(M)CAPARD'!HB322)","v":9081.2779465898002},"n.d.",{"$f":"IF('[10]II.2.Balance OSD-Activos'!J180=\"\",\"\",'[10]II.2.Balance OSD-Activos'!J180)","v":1862.9917578188088},{"$f":"IF('[10]II.2.Balance OSD-Activos'!N180=\"\",\"\",'[10]II.2.Balance OSD-Activos'!N180)","v":1465.6235099030741},{"$f":"IF('[10]II.2.Balance OSD-Activos'!R180=\"\",\"\",'[10]II.2.Balance OSD-Activos'!R180)","v":68051.033784672065},{"$f":"IF('[10]II.2.Balance OSD-Activos'!S180=\"\",\"\",'[10]II.2.Balance OSD-Activos'!S180)","v":68578.35262187745},69914.025542490868,139958.00167427139,10.875820596585539,10.26983337189138,17.120960408450703,10.253336767107601,11.703273663168567,11.036029404874959,0.3817209440100342,{"$f":"IF('[2]MONE(M)CAPARD'!AS322=\"\",\"\",'[2]MONE(M)CAPARD'!AS322)","v":1.75},{"$f":"IF('[2]MONE(M)CAPARD'!AT322=\"\",\"\",'[2]MONE(M)CAPARD'!AT322)","v":"n.a."},{"$f":"IF('[2]MONE(M)CAPARD'!AU322=\"\",\"\",'[2]MONE(M)CAPARD'!AU322)","v":3},{"$f":"IF('[2]MONE(M)CAPARD'!AV322=\"\",\"\",'[2]MONE(M)CAPARD'!AV322)","v":6.25},{"$f":"IF('[2]MONE(M)CAPARD'!AW322=\"\",\"\",'[2]MONE(M)CAPARD'!AW322)","v":"n.a."},{"$f":"IF('[2]MONE(M)CAPARD'!AX322=\"\",\"\",'[2]MONE(M)CAPARD'!AX322)","v":5},{"$f":"IF('[2]MONE(M)CAPARD'!AY322=\"\",\"\",'[2]MONE(M)CAPARD'!AY322)","v":"n.a."},{"$f":"IF('[2]FISCAL(M)'!$K322=\"\",\"\",'[2]FISCAL(M)'!$K322)","v":-235.79817406690802},{"$f":"IF('[2]FISCAL(M)'!$L322=\"\",\"\",'[2]FISCAL(M)'!$L322)","v":"n.d."},{"$f":"IF('[2]FISCAL(M)'!$AY322=\"\",\"\",'[2]FISCAL(M)'!$AY322)","v":111972.73729737516},{"$f":"IF('[2]FISCAL(M)'!$BI322=\"\",\"\",'[2]FISCAL(M)'!$BI322)","v":56936.459509016277},{"$f":"IF('[2]FISCAL(M)'!$BS322=\"\",\"\",'[2]FISCAL(M)'!$BS322)","v":55036.277788358901},{"$f":"IF('[2]FISCAL(M)'!$AZ322=\"\",\"\",'[2]FISCAL(M)'!$AZ322)","v":132180.14881737519},{"$f":"IF('[2]FISCAL(M)'!$BJ322=\"\",\"\",'[2]FISCAL(M)'!$BJ322)","v":61533.753269016277},{"$f":"IF('[2]FISCAL(M)'!$BT322=\"\",\"\",'[2]FISCAL(M)'!$BT322)","v":70646.395548358894},{"$f":"IF('[3]MONE(M)'!$AO322=\"\",\"\",'[3]MONE(M)'!$AO322)","v":17925114.118212901},{"$f":"IF('[4]MONE(M)'!$AO322=\"\",\"\",'[4]MONE(M)'!$AO322)","v":11270.873962209998},{"$f":"IF('[5]MONE(M)'!$AO322=\"\",\"\",'[5]MONE(M)'!$AO322)","v":178076.80083938382},{"$f":"+'[1]MONE(M)'!$AO322","v":259260.49205781106},{"$f":"IF('[6]MONE(M)'!$AO322=\"\",\"\",'[6]MONE(M)'!$AO322)","v":118961.259238431},{"$f":"IF('[7]MONE(M)'!$AO322=\"\",\"\",'[7]MONE(M)'!$AO322)","v":820862.55325719016},{"$f":"IF('[8]MONE(M)'!$AO322=\"\",\"\",'[8]MONE(M)'!$AO322)","v":43498.951632920012},{"$f":"IF(BY315=\"\",\"\",((BY315/BY303)-1)*100)","v":11.913374343706051},4.8618772043049541,11.348238137245549,10.438332848158582,22.583773193591085,17.883311252565726,11.300782488327087,{"$f":"IF('[2]FISCAL(M)'!$K322=\"\",\"\",'[2]FISCAL(M)'!$K322)","v":-235.79817406690802},{"$f":"+'[2]REAL(A)'!$AO$36","v":259854.16291187517},-9.0742503958604934E-2,{"$f":"IF('[2]FISCAL(M)'!$L322=\"\",\"\",'[2]FISCAL(M)'!$L322)","v":"n.d."},{"$f":"+'[2]REAL(A)'!$AP$36","v":317761.85891187517},"n.d.",132496.57729656814,{"$f":"'[2]Gráfico REM'!BG316","v":23184.43237032618},{"$f":"'[2]Gráfico REM'!BH316","v":101899.26951899941},{"$f":"'[2]Gráfico REM'!BI316","v":7412.8754072425472},10.425563219737665,9.5732918820597313,10.938543514158216,6.2564785096834941,201704.43324083817,{"$f":"'[2]Gráfico REM'!BK316","v":25401.715179476181},{"$f":"'[2]Gráfico REM'!BL316","v":145398.22115191942},{"$f":"'[2]Gráfico REM'!BM316","v":30904.496909442554},10.218800642293946,9.1531231538300553,11.046667534275279,7.315922827899568]
[2016,"febrero","2016-febrero",{"$f":"IF('[2]REAL IPC(M)'!$AL323=\"\",\"\",+'[2]REAL IPC(M)'!$AL323)","v":2.4016682246350785},{"$f":"IF('[2]REAL IPC(M)'!$BE323=\"\",\"\",+'[2]REAL IPC(M)'!$BE323)","v":2.3750948863919596},{"$f":"IF('[2]REAL IPC(M)'!$AM323=\"\",\"\",+'[2]REAL IPC(M)'!$AM323)","v":2.2354047601823135},{"$f":"IF('[2]REAL IPC(M)'!$BI323=\"\",\"\",+'[2]REAL IPC(M)'!$BI323)","v":2.1425680461056196},{"$f":"IF('[2]REAL IMAE(M)'!BJ323=\"\",\"\",'[2]REAL IMAE(M)'!BJ323)","v":3.3764580563009572},{"$f":"IF('[2]REAL IMAE(M)'!BK323=\"\",\"\",'[2]REAL IMAE(M)'!BK323)","v":4.6032414426401047},{"$f":"IF('[2]REAL IMAE(M)'!BN323=\"\",\"\",'[2]REAL IMAE(M)'!BN323)","v":3.2539500995168114},{"$f":"IF('[2]REAL IMAE(M)'!BO323=\"\",\"\",'[2]REAL IMAE(M)'!BO323)","v":4.7593904120459607},{"$f":"IF('[2]EXT RIN(M)'!$K323=\"\",\"\",'[2]EXT RIN(M)'!$K323)","v":29315.550582288204},"",{"$f":"IF('[2]EXT RIN(M)'!$L323=\"\",\"\",'[2]EXT RIN(M)'!$L323)","v":32894.030715528206},"",{"$f":"IF('[2]MONE(M)CARD'!EG323=\"\",\"\",'[2]MONE(M)CARD'!EG323)","v":32752.88876540857},{"$f":"IF('[2]MONE(M)CARD'!EK323=\"\",\"\",'[2]MONE(M)CARD'!EK323)","v":50394.127777094734},{"$f":"IF('[2]MONE(M)CARD'!EP323=\"\",\"\",'[2]MONE(M)CARD'!EP323)","v":28433.235982960294},{"$f":"IF('[2]MONE(M)CARD'!ES323=\"\",\"\",'[2]MONE(M)CARD'!ES323)","v":13.180884444523366},{"$f":"IF('[2]MONE(M)CARD'!EV323=\"\",\"\",'[2]MONE(M)CARD'!EV323)","v":7.9861132029285242},{"$f":"IF('[2]MONE(M)CARD'!EZ323=\"\",\"\",'[2]MONE(M)CARD'!EZ323)","v":7.0354857209709909},{"$f":"IF('[2]MONE(M)CAPARD'!FC323=\"\",\"\",'[2]MONE(M)CAPARD'!FC323)","v":40852.558919648574},{"$f":"IF('[2]MONE(M)CAPARD'!FG323=\"\",\"\",'[2]MONE(M)CAPARD'!FG323)","v":78991.258232174732},{"$f":"IF('[2]MONE(M)CAPARD'!FL323=\"\",\"\",'[2]MONE(M)CAPARD'!FL323)","v":28433.235982960279},{"$f":"IF('[2]MONE(M)CAPARD'!FO323=\"\",\"\",'[2]MONE(M)CAPARD'!FO323)","v":10.446721319333374},{"$f":"IF('[2]MONE(M)CAPARD'!FR323=\"\",\"\",'[2]MONE(M)CAPARD'!FR323)","v":7.4168532902227691},{"$f":"IF('[2]MONE(M)CAPARD'!FV323=\"\",\"\",'[2]MONE(M)CAPARD'!FV323)","v":6.8147093191616825},{"$f":"IF('[2]MONE(M)CARD'!FV323=\"\",\"\",'[2]MONE(M)CARD'!FV323)","v":1346.7490508175183},{"$f":"IF('[2]MONE(M)CARD'!GD323=\"\",\"\",'[2]MONE(M)CARD'!GD323)","v":106.46818143779997},{"$f":"IF('[2]MONE(M)CARD'!GE323=\"\",\"\",'[2]MONE(M)CARD'!GE323)","v":8781.9147050198735},14.358756995442224,{"$f":"IF('[9]II.2.Balance OSD-Activos'!J181=\"\",\"\",'[9]II.2.Balance OSD-Activos'!J181)","v":215.87619827608108},{"$f":"IF('[9]II.2.Balance OSD-Activos'!N181=\"\",\"\",'[9]II.2.Balance OSD-Activos'!N181)","v":987.96394269230586},{"$f":"IF('[9]II.2.Balance OSD-Activos'!R181=\"\",\"\",'[9]II.2.Balance OSD-Activos'!R181)","v":46737.05020574345},{"$f":"IF('[9]II.2.Balance OSD-Activos'!S181=\"\",\"\",'[9]II.2.Balance OSD-Activos'!S181)","v":49868.460147581609},{"$f":"IFERROR(+AF316+AH316,\"\")","v":46952.926404019534},97809.350494293438,15.307906503067947,10.885886497095122,14.116721656797559,10.86624817271613,10.484843472987549,10.712652536582979,-8.6792115431055805E-2,{"$f":"IF('[2]MONE(M)CAPARD'!GS323=\"\",\"\",'[2]MONE(M)CAPARD'!GS323)","v":19167.743586969402},{"$f":"IF('[2]MONE(M)CARD'!HA323=\"\",\"\",'[2]MONE(M)CAPARD'!HA323)","v":10084.742701669873},{"$f":"IF('[2]MONE(M)CAPARD'!HB323=\"\",\"\",'[2]MONE(M)CAPARD'!HB323)","v":9083.0008852995288},"n.d.",{"$f":"IF('[10]II.2.Balance OSD-Activos'!J181=\"\",\"\",'[10]II.2.Balance OSD-Activos'!J181)","v":1827.4438662960811},{"$f":"IF('[10]II.2.Balance OSD-Activos'!N181=\"\",\"\",'[10]II.2.Balance OSD-Activos'!N181)","v":1443.1681275923058},{"$f":"IF('[10]II.2.Balance OSD-Activos'!R181=\"\",\"\",'[10]II.2.Balance OSD-Activos'!R181)","v":68274.651948473445},{"$f":"IF('[10]II.2.Balance OSD-Activos'!S181=\"\",\"\",'[10]II.2.Balance OSD-Activos'!S181)","v":69042.629391011607},70102.09581476952,{"$f":"IF(OR(AW316=\"\",AX316=\"\",AY316=\"\",AZ316=\"\"),\"\",SUM(AW316:AZ316))","v":140587.89333337345},7.5845477939260997,9.948665452573513,{"$f":"IF(OR(AX316=\"\",AX304=\"\"),\"\",((AX316/AX304)-1)*100)","v":6.1887266381159378},10.013372147241494,11.632688296404158,10.728744414469471,-0.3072849904054884,{"$f":"IF('[2]MONE(M)CAPARD'!AS323=\"\",\"\",'[2]MONE(M)CAPARD'!AS323)","v":1.75},{"$f":"IF('[2]MONE(M)CAPARD'!AT323=\"\",\"\",'[2]MONE(M)CAPARD'!AT323)","v":"n.a."},{"$f":"IF('[2]MONE(M)CAPARD'!AU323=\"\",\"\",'[2]MONE(M)CAPARD'!AU323)","v":3},{"$f":"IF('[2]MONE(M)CAPARD'!AV323=\"\",\"\",'[2]MONE(M)CAPARD'!AV323)","v":6.25},{"$f":"IF('[2]MONE(M)CAPARD'!AW323=\"\",\"\",'[2]MONE(M)CAPARD'!AW323)","v":"n.a."},{"$f":"IF('[2]MONE(M)CAPARD'!AX323=\"\",\"\",'[2]MONE(M)CAPARD'!AX323)","v":5},{"$f":"IF('[2]MONE(M)CAPARD'!AY323=\"\",\"\",'[2]MONE(M)CAPARD'!AY323)","v":"n.a."},{"$f":"IF('[2]FISCAL(M)'!$K323=\"\",\"\",'[2]FISCAL(M)'!$K323)","v":-1033.3371061995545},{"$f":"IF('[2]FISCAL(M)'!$L323=\"\",\"\",'[2]FISCAL(M)'!$L323)","v":"n.d."},{"$f":"IF('[2]FISCAL(M)'!$AY323=\"\",\"\",'[2]FISCAL(M)'!$AY323)","v":112833.05458399002},{"$f":"IF('[2]FISCAL(M)'!$BI323=\"\",\"\",'[2]FISCAL(M)'!$BI323)","v":57975.147878690186},{"$f":"IF('[2]FISCAL(M)'!$BS323=\"\",\"\",'[2]FISCAL(M)'!$BS323)","v":54857.906705299822},{"$f":"IF('[2]FISCAL(M)'!$AZ323=\"\",\"\",'[2]FISCAL(M)'!$AZ323)","v":133062.81308399001},{"$f":"IF('[2]FISCAL(M)'!$BJ323=\"\",\"\",'[2]FISCAL(M)'!$BJ323)","v":62576.701558690191},{"$f":"IF('[2]FISCAL(M)'!$BT323=\"\",\"\",'[2]FISCAL(M)'!$BT323)","v":70486.111525299813},{"$f":"IF('[3]MONE(M)'!$AO323=\"\",\"\",'[3]MONE(M)'!$AO323)","v":18025543.771382667},{"$f":"IF('[4]MONE(M)'!$AO323=\"\",\"\",'[4]MONE(M)'!$AO323)","v":11262.777750770001},{"$f":"IF('[5]MONE(M)'!$AO323=\"\",\"\",'[5]MONE(M)'!$AO323)","v":178770.44330325976},{"$f":"+'[1]MONE(M)'!$AO323","v":262914.03902949777},{"$f":"IF('[6]MONE(M)'!$AO323=\"\",\"\",'[6]MONE(M)'!$AO323)","v":120215.08192463283},{"$f":"IF('[7]MONE(M)'!$AO323=\"\",\"\",'[7]MONE(M)'!$AO323)","v":824517.49564231001},{"$f":"IF('[8]MONE(M)'!$AO323=\"\",\"\",'[8]MONE(M)'!$AO323)","v":43633.674731430001},11.990270053911578,4.446895710081078,11.160108428929227,10.848352549690032,22.27745390254201,18.55973594840663,10.853095309305449,{"$f":"IF('[2]FISCAL(M)'!$K323=\"\",\"\",'[2]FISCAL(M)'!$K323)","v":-1033.3371061995545},{"$f":"+'[2]REAL(A)'!$AO$36","v":259854.16291187517},-0.39766040098037297,{"$f":"IF('[2]FISCAL(M)'!$L323=\"\",\"\",'[2]FISCAL(M)'!$L323)","v":"n.d."},{"$f":"+'[2]REAL(A)'!$AP$36","v":317761.85891187517},"n.d.",133711.51968845516,{"$f":"'[2]Gráfico REM'!BG317","v":23750.983593430195},{"$f":"'[2]Gráfico REM'!BH317","v":102520.97213975723},{"$f":"'[2]Gráfico REM'!BI317","v":7439.5639552677458},9.9645422181147794,7.7795457816866254,10.94947698625699,3.9743131717752345,203110.48609505518,{"$f":"'[2]Gráfico REM'!BK317","v":25965.229250120196},{"$f":"'[2]Gráfico REM'!BL317","v":146154.64687118723},{"$f":"'[2]Gráfico REM'!BM317","v":30990.609973747753},9.8170505049791856,7.3972280427031745,10.920685216560976,6.8211256118643648]
[2016,"marzo","2016-marzo",{"$f":"IF('[2]REAL IPC(M)'!$AL324=\"\",\"\",+'[2]REAL IPC(M)'!$AL324)","v":2.1085849530230183},{"$f":"IF('[2]REAL IPC(M)'!$BE324=\"\",\"\",+'[2]REAL IPC(M)'!$BE324)","v":2.3746017083990267},{"$f":"IF('[2]REAL IPC(M)'!$AM324=\"\",\"\",+'[2]REAL IPC(M)'!$AM324)","v":1.8961788031723215},{"$f":"IF('[2]REAL IPC(M)'!$BI324=\"\",\"\",+'[2]REAL IPC(M)'!$BI324)","v":2.1390691088200686},{"$f":"IF('[2]REAL IMAE(M)'!BJ324=\"\",\"\",'[2]REAL IMAE(M)'!BJ324)","v":4.1558047034108814},{"$f":"IF('[2]REAL IMAE(M)'!BK324=\"\",\"\",'[2]REAL IMAE(M)'!BK324)","v":4.5801573695977815},{"$f":"IF('[2]REAL IMAE(M)'!BN324=\"\",\"\",'[2]REAL IMAE(M)'!BN324)","v":3.4110669416784978},{"$f":"IF('[2]REAL IMAE(M)'!BO324=\"\",\"\",'[2]REAL IMAE(M)'!BO324)","v":4.731305615420478},{"$f":"IF('[2]EXT RIN(M)'!$K324=\"\",\"\",'[2]EXT RIN(M)'!$K324)","v":29559.050440913721},"",{"$f":"IF('[2]EXT RIN(M)'!$L324=\"\",\"\",'[2]EXT RIN(M)'!$L324)","v":34258.137295753724},"",{"$f":"IF('[2]MONE(M)CARD'!EG324=\"\",\"\",'[2]MONE(M)CARD'!EG324)","v":32957.656725594985},{"$f":"IF('[2]MONE(M)CARD'!EK324=\"\",\"\",'[2]MONE(M)CARD'!EK324)","v":50760.587344006992},{"$f":"IF('[2]MONE(M)CARD'!EP324=\"\",\"\",'[2]MONE(M)CARD'!EP324)","v":28928.475818724895},{"$f":"IF('[2]MONE(M)CARD'!ES324=\"\",\"\",'[2]MONE(M)CARD'!ES324)","v":12.254358701958367},{"$f":"IF('[2]MONE(M)CARD'!EV324=\"\",\"\",'[2]MONE(M)CARD'!EV324)","v":7.2393481278892002},{"$f":"IF('[2]MONE(M)CARD'!EZ324=\"\",\"\",'[2]MONE(M)CARD'!EZ324)","v":6.8854044722495233},{"$f":"IF('[2]MONE(M)CAPARD'!FC324=\"\",\"\",'[2]MONE(M)CAPARD'!FC324)","v":41013.015366164982},{"$f":"IF('[2]MONE(M)CAPARD'!FG324=\"\",\"\",'[2]MONE(M)CAPARD'!FG324)","v":79647.41757950699},{"$f":"IF('[2]MONE(M)CAPARD'!FL324=\"\",\"\",'[2]MONE(M)CAPARD'!FL324)","v":28928.47581872491},{"$f":"IF('[2]MONE(M)CAPARD'!FO324=\"\",\"\",'[2]MONE(M)CAPARD'!FO324)","v":9.8573931026806338},{"$f":"IF('[2]MONE(M)CAPARD'!FR324=\"\",\"\",'[2]MONE(M)CAPARD'!FR324)","v":6.9943282607893398},{"$f":"IF('[2]MONE(M)CAPARD'!FV324=\"\",\"\",'[2]MONE(M)CAPARD'!FV324)","v":6.7758541218154056},{"$f":"IF('[2]MONE(M)CARD'!FV324=\"\",\"\",'[2]MONE(M)CARD'!FV324)","v":1303.1815702093445},{"$f":"IF('[2]MONE(M)CARD'!GD324=\"\",\"\",'[2]MONE(M)CARD'!GD324)","v":97.109012190295488},{"$f":"IF('[2]MONE(M)CARD'!GE324=\"\",\"\",'[2]MONE(M)CARD'!GE324)","v":9196.7838616226818},16.648971812122902,{"$f":"IF('[9]II.2.Balance OSD-Activos'!J182=\"\",\"\",'[9]II.2.Balance OSD-Activos'!J182)","v":209.68910244287466},{"$f":"IF('[9]II.2.Balance OSD-Activos'!N182=\"\",\"\",'[9]II.2.Balance OSD-Activos'!N182)","v":974.37678838016097},{"$f":"IF('[9]II.2.Balance OSD-Activos'!R182=\"\",\"\",'[9]II.2.Balance OSD-Activos'!R182)","v":46803.46166022835},{"$f":"IF('[9]II.2.Balance OSD-Activos'!S182=\"\",\"\",'[9]II.2.Balance OSD-Activos'!S182)","v":50095.16682041483},47013.150762671226,98082.694371466205,8.8459772489024591,10.112340598542179,13.89658251680741,10.118080473979107,10.361366394995763,10.275828964286514,-0.43682357229646485,{"$f":"IF('[2]MONE(M)CAPARD'!GS324=\"\",\"\",'[2]MONE(M)CAPARD'!GS324)","v":19258.363434865292},{"$f":"IF('[2]MONE(M)CARD'!HA324=\"\",\"\",'[2]MONE(M)CAPARD'!HA324)","v":10497.36332195268},{"$f":"IF('[2]MONE(M)CAPARD'!HB324=\"\",\"\",'[2]MONE(M)CAPARD'!HB324)","v":8761.0001129126122},"n.d.",{"$f":"IF('[10]II.2.Balance OSD-Activos'!J182=\"\",\"\",'[10]II.2.Balance OSD-Activos'!J182)","v":1915.2328095228745},{"$f":"IF('[10]II.2.Balance OSD-Activos'!N182=\"\",\"\",'[10]II.2.Balance OSD-Activos'!N182)","v":1426.206572670161},{"$f":"IF('[10]II.2.Balance OSD-Activos'!R182=\"\",\"\",'[10]II.2.Balance OSD-Activos'!R182)","v":68396.334190588357},{"$f":"IF('[10]II.2.Balance OSD-Activos'!S182=\"\",\"\",'[10]II.2.Balance OSD-Activos'!S182)","v":69469.794847074823},70311.56700011123,141207.56841985619,12.408504498978834,9.3213011101904719,6.5376229438336653,9.2372921236456804,11.522088066725367,10.363649002331909,-0.36509541213756158,{"$f":"IF('[2]MONE(M)CAPARD'!AS324=\"\",\"\",'[2]MONE(M)CAPARD'!AS324)","v":1.75},{"$f":"IF('[2]MONE(M)CAPARD'!AT324=\"\",\"\",'[2]MONE(M)CAPARD'!AT324)","v":"n.a."},{"$f":"IF('[2]MONE(M)CAPARD'!AU324=\"\",\"\",'[2]MONE(M)CAPARD'!AU324)","v":3},{"$f":"IF('[2]MONE(M)CAPARD'!AV324=\"\",\"\",'[2]MONE(M)CAPARD'!AV324)","v":5.75},{"$f":"IF('[2]MONE(M)CAPARD'!AW324=\"\",\"\",'[2]MONE(M)CAPARD'!AW324)","v":"n.a."},{"$f":"IF('[2]MONE(M)CAPARD'!AX324=\"\",\"\",'[2]MONE(M)CAPARD'!AX324)","v":5},{"$f":"IF('[2]MONE(M)CAPARD'!AY324=\"\",\"\",'[2]MONE(M)CAPARD'!AY324)","v":"n.a."},{"$f":"IF('[2]FISCAL(M)'!$K324=\"\",\"\",'[2]FISCAL(M)'!$K324)","v":-1526.0397170459341},{"$f":"IF('[2]FISCAL(M)'!$L324=\"\",\"\",'[2]FISCAL(M)'!$L324)","v":-2287.0397170459341},{"$f":"IF('[2]FISCAL(M)'!$AY324=\"\",\"\",'[2]FISCAL(M)'!$AY324)","v":113213.69275720698},{"$f":"IF('[2]FISCAL(M)'!$BI324=\"\",\"\",'[2]FISCAL(M)'!$BI324)","v":58302.596777797553},{"$f":"IF('[2]FISCAL(M)'!$BS324=\"\",\"\",'[2]FISCAL(M)'!$BS324)","v":54911.095979409452},{"$f":"IF('[2]FISCAL(M)'!$AZ324=\"\",\"\",'[2]FISCAL(M)'!$AZ324)","v":134529.81416720699},{"$f":"IF('[2]FISCAL(M)'!$BJ324=\"\",\"\",'[2]FISCAL(M)'!$BJ324)","v":62935.373777797555},{"$f":"IF('[2]FISCAL(M)'!$BT324=\"\",\"\",'[2]FISCAL(M)'!$BT324)","v":71594.440389409443},{"$f":"IF('[3]MONE(M)'!$AO324=\"\",\"\",'[3]MONE(M)'!$AO324)","v":18218143.522819348},{"$f":"IF('[4]MONE(M)'!$AO324=\"\",\"\",'[4]MONE(M)'!$AO324)","v":11300.019904299999},{"$f":"IF('[5]MONE(M)'!$AO324=\"\",\"\",'[5]MONE(M)'!$AO324)","v":179573.07219233573},{"$f":"+'[1]MONE(M)'!$AO324","v":262810.73310183123},{"$f":"IF('[6]MONE(M)'!$AO324=\"\",\"\",'[6]MONE(M)'!$AO324)","v":121530.09490498973},{"$f":"IF('[7]MONE(M)'!$AO324=\"\",\"\",'[7]MONE(M)'!$AO324)","v":826304.49293815007},{"$f":"IF('[8]MONE(M)'!$AO324=\"\",\"\",'[8]MONE(M)'!$AO324)","v":43996.195716560003},12.295403770223491,4.5906504035892581,10.444046086403347,10.053639402584791,22.413415233720578,18.608193753472801,10.62798109255656,{"$f":"IF('[2]FISCAL(M)'!$K324=\"\",\"\",'[2]FISCAL(M)'!$K324)","v":-1526.0397170459341},{"$f":"+'[2]REAL(A)'!$AO$36","v":259854.16291187517},-0.58726775817074861,{"$f":"IF('[2]FISCAL(M)'!$L324=\"\",\"\",'[2]FISCAL(M)'!$L324)","v":-2287.0397170459341},{"$f":"+'[2]REAL(A)'!$AP$36","v":317761.85891187517},-0.71973386764463709,134532.09815099425,{"$f":"'[2]Gráfico REM'!BG318","v":24156.76941088149},{"$f":"'[2]Gráfico REM'!BH318","v":102964.91309288261},{"$f":"'[2]Gráfico REM'!BI318","v":7410.4156472301638},9.4496993445837951,5.8998602747227791,10.684449388888439,4.6633918101713689,204353.41235606425,{"$f":"'[2]Gráfico REM'!BK318","v":26349.702978851488},{"$f":"'[2]Gráfico REM'!BL318","v":146961.10880944261},{"$f":"'[2]Gráfico REM'!BM318","v":31042.600567770161},9.4665956498075197,6.0688526848866609,10.667538257917087,6.8818029607851328]
[2016,"abril","2016-abril",{"$f":"IF('[2]REAL IPC(M)'!$AL325=\"\",\"\",+'[2]REAL IPC(M)'!$AL325)","v":2.0931899641577045},{"$f":"IF('[2]REAL IPC(M)'!$BE325=\"\",\"\",+'[2]REAL IPC(M)'!$BE325)","v":2.3776192263226026},{"$f":"IF('[2]REAL IPC(M)'!$AM325=\"\",\"\",+'[2]REAL IPC(M)'!$AM325)","v":1.8870642466148224},{"$f":"IF('[2]REAL IPC(M)'!$BI325=\"\",\"\",+'[2]REAL IPC(M)'!$BI325)","v":2.1392554475314185},{"$f":"IF('[2]REAL IMAE(M)'!BJ325=\"\",\"\",'[2]REAL IMAE(M)'!BJ325)","v":5.2117988787128366},{"$f":"IF('[2]REAL IMAE(M)'!BK325=\"\",\"\",'[2]REAL IMAE(M)'!BK325)","v":4.5543089693259375},{"$f":"IF('[2]REAL IMAE(M)'!BN325=\"\",\"\",'[2]REAL IMAE(M)'!BN325)","v":4.5680720926457141},{"$f":"IF('[2]REAL IMAE(M)'!BO325=\"\",\"\",'[2]REAL IMAE(M)'!BO325)","v":4.7012158697774531},{"$f":"IF('[2]EXT RIN(M)'!$K325=\"\",\"\",'[2]EXT RIN(M)'!$K325)","v":29728.867960672265},"",{"$f":"IF('[2]EXT RIN(M)'!$L325=\"\",\"\",'[2]EXT RIN(M)'!$L325)","v":34220.537129222263},"",{"$f":"IF('[2]MONE(M)CARD'!EG325=\"\",\"\",'[2]MONE(M)CARD'!EG325)","v":32832.203937089813},{"$f":"IF('[2]MONE(M)CARD'!EK325=\"\",\"\",'[2]MONE(M)CARD'!EK325)","v":50856.865821426429},{"$f":"IF('[2]MONE(M)CARD'!EP325=\"\",\"\",'[2]MONE(M)CARD'!EP325)","v":28794.278159445254},{"$f":"IF('[2]MONE(M)CARD'!ES325=\"\",\"\",'[2]MONE(M)CARD'!ES325)","v":11.532845930948255},{"$f":"IF('[2]MONE(M)CARD'!EV325=\"\",\"\",'[2]MONE(M)CARD'!EV325)","v":7.4893945760607927},{"$f":"IF('[2]MONE(M)CARD'!EZ325=\"\",\"\",'[2]MONE(M)CARD'!EZ325)","v":6.6121673057419894},{"$f":"IF('[2]MONE(M)CAPARD'!FC325=\"\",\"\",'[2]MONE(M)CAPARD'!FC325)","v":40719.374354019805},{"$f":"IF('[2]MONE(M)CAPARD'!FG325=\"\",\"\",'[2]MONE(M)CAPARD'!FG325)","v":79966.007150806414},{"$f":"IF('[2]MONE(M)CAPARD'!FL325=\"\",\"\",'[2]MONE(M)CAPARD'!FL325)","v":28794.278159445239},{"$f":"IF('[2]MONE(M)CAPARD'!FO325=\"\",\"\",'[2]MONE(M)CAPARD'!FO325)","v":9.1961145861612756},{"$f":"IF('[2]MONE(M)CAPARD'!FR325=\"\",\"\",'[2]MONE(M)CAPARD'!FR325)","v":7.2112025530713941},{"$f":"IF('[2]MONE(M)CAPARD'!FV325=\"\",\"\",'[2]MONE(M)CAPARD'!FV325)","v":6.6059839442080825},{"$f":"IF('[2]MONE(M)CARD'!FV325=\"\",\"\",'[2]MONE(M)CARD'!FV325)","v":1300.6681159520376},{"$f":"IF('[2]MONE(M)CARD'!GD325=\"\",\"\",'[2]MONE(M)CARD'!GD325)","v":170.44068834327285},{"$f":"IF('[2]MONE(M)CARD'!GE325=\"\",\"\",'[2]MONE(M)CARD'!GE325)","v":9201.191830834905},13.954554511165828,{"$f":"IF('[9]II.2.Balance OSD-Activos'!J183=\"\",\"\",'[9]II.2.Balance OSD-Activos'!J183)","v":217.46842925848858},{"$f":"IF('[9]II.2.Balance OSD-Activos'!N183=\"\",\"\",'[9]II.2.Balance OSD-Activos'!N183)","v":937.97143987976074},{"$f":"IF('[9]II.2.Balance OSD-Activos'!R183=\"\",\"\",'[9]II.2.Balance OSD-Activos'!R183)","v":47014.839295195226},{"$f":"IF('[9]II.2.Balance OSD-Activos'!S183=\"\",\"\",'[9]II.2.Balance OSD-Activos'!S183)","v":50434.173347631659},47232.307724453713,98604.452511965137,10.131204724465581,10.356967281948259,{"$f":"IF(OR(AG318=\"\",AG306=\"\"),\"\",((AG318/AG306)-1)*100)","v":6.4671992096983599},10.35801370346967,10.50088261236013,10.392139263695199,0.11631029940868487,{"$f":"IF('[2]MONE(M)CAPARD'!GS325=\"\",\"\",'[2]MONE(M)CAPARD'!GS325)","v":19606.825433857994},{"$f":"IF('[2]MONE(M)CARD'!HA325=\"\",\"\",'[2]MONE(M)CAPARD'!HA325)","v":10558.702745204902},{"$f":"IF('[2]MONE(M)CAPARD'!HB325=\"\",\"\",'[2]MONE(M)CAPARD'!HB325)","v":9048.1226886530912},"n.d.",{"$f":"IF('[10]II.2.Balance OSD-Activos'!J183=\"\",\"\",'[10]II.2.Balance OSD-Activos'!J183)","v":1968.0458131284886},{"$f":"IF('[10]II.2.Balance OSD-Activos'!N183=\"\",\"\",'[10]II.2.Balance OSD-Activos'!N183)","v":1387.4753987397607},{"$f":"IF('[10]II.2.Balance OSD-Activos'!R183=\"\",\"\",'[10]II.2.Balance OSD-Activos'!R183)","v":68468.023449315224},{"$f":"IF('[10]II.2.Balance OSD-Activos'!S183=\"\",\"\",'[10]II.2.Balance OSD-Activos'!S183)","v":70050.000251211663},70436.069262443707,141873.54491239513,16.711258201316269,9.168849342340657,2.2277764720417537,8.9664367706261405,11.656556120807027,10.309082766271715,-5.4566236060194839E-2,{"$f":"IF('[2]MONE(M)CAPARD'!AS325=\"\",\"\",'[2]MONE(M)CAPARD'!AS325)","v":1.75},{"$f":"IF('[2]MONE(M)CAPARD'!AT325=\"\",\"\",'[2]MONE(M)CAPARD'!AT325)","v":"n.a."},{"$f":"IF('[2]MONE(M)CAPARD'!AU325=\"\",\"\",'[2]MONE(M)CAPARD'!AU325)","v":3},{"$f":"IF('[2]MONE(M)CAPARD'!AV325=\"\",\"\",'[2]MONE(M)CAPARD'!AV325)","v":5.75},{"$f":"IF('[2]MONE(M)CAPARD'!AW325=\"\",\"\",'[2]MONE(M)CAPARD'!AW325)","v":"n.a."},{"$f":"IF('[2]MONE(M)CAPARD'!AX325=\"\",\"\",'[2]MONE(M)CAPARD'!AX325)","v":5},{"$f":"IF('[2]MONE(M)CAPARD'!AY325=\"\",\"\",'[2]MONE(M)CAPARD'!AY325)","v":"n.a."},{"$f":"IF('[2]FISCAL(M)'!$K325=\"\",\"\",'[2]FISCAL(M)'!$K325)","v":-1327.0758705454668},{"$f":"IF('[2]FISCAL(M)'!$L325=\"\",\"\",'[2]FISCAL(M)'!$L325)","v":"n.d."},{"$f":"IF('[2]FISCAL(M)'!$AY325=\"\",\"\",'[2]FISCAL(M)'!$AY325)","v":114358.97128052702},{"$f":"IF('[2]FISCAL(M)'!$BI325=\"\",\"\",'[2]FISCAL(M)'!$BI325)","v":58935.991765897001},{"$f":"IF('[2]FISCAL(M)'!$BS325=\"\",\"\",'[2]FISCAL(M)'!$BS325)","v":55422.979514630017},{"$f":"IF('[2]FISCAL(M)'!$AZ325=\"\",\"\",'[2]FISCAL(M)'!$AZ325)","v":135749.11128052702},{"$f":"IF('[2]FISCAL(M)'!$BJ325=\"\",\"\",'[2]FISCAL(M)'!$BJ325)","v":63630.051765896991},71600.277879409434,{"$f":"IF('[3]MONE(M)'!$AO325=\"\",\"\",'[3]MONE(M)'!$AO325)","v":18368919.491017371},{"$f":"IF('[4]MONE(M)'!$AO325=\"\",\"\",'[4]MONE(M)'!$AO325)","v":11350.710133280001},{"$f":"IF('[5]MONE(M)'!$AO325=\"\",\"\",'[5]MONE(M)'!$AO325)","v":180427.38552923407},{"$f":"+'[1]MONE(M)'!$AO325","v":263415.91885359382},{"$f":"IF('[6]MONE(M)'!$AO325=\"\",\"\",'[6]MONE(M)'!$AO325)","v":123412.1862852535},{"$f":"IF('[7]MONE(M)'!$AO325=\"\",\"\",'[7]MONE(M)'!$AO325)","v":836415.10969076992},{"$f":"IF('[8]MONE(M)'!$AO325=\"\",\"\",'[8]MONE(M)'!$AO325)","v":44185.614930219992},12.24495045076781,5.0340058541406885,9.6205024588773114,9.6785627772739691,22.622316882683123,19.223334708062122,10.292258349446183,{"$f":"IF('[2]FISCAL(M)'!$K325=\"\",\"\",'[2]FISCAL(M)'!$K325)","v":-1327.0758705454668},{"$f":"+'[2]REAL(A)'!$AO$36","v":259854.16291187517},-0.51070025420201581,{"$f":"IF('[2]FISCAL(M)'!$L325=\"\",\"\",'[2]FISCAL(M)'!$L325)","v":"n.d."},{"$f":"+'[2]REAL(A)'!$AP$36","v":317761.85891187517},"n.d.",135207.78760188143,{"$f":"'[2]Gráfico REM'!BG319","v":24299.760584544158},{"$f":"'[2]Gráfico REM'!BH319","v":103523.13183998995},{"$f":"'[2]Gráfico REM'!BI319","v":7384.8951773473163},9.6977378373338965,7.355205009635446,10.776180644584965,3.0342287546558433,205588.7904973214,{"$f":"'[2]Gráfico REM'!BK319","v":26547.099836974157},{"$f":"'[2]Gráfico REM'!BL319","v":147708.74677020992},{"$f":"'[2]Gráfico REM'!BM319","v":31332.943890137318},9.7390398107938481,8.5364248853504456,10.630975489944628,6.6858013939939731]
[2016,"mayo ","2016-mayo ",{"$f":"IF('[2]REAL IPC(M)'!$AL326=\"\",\"\",+'[2]REAL IPC(M)'!$AL326)","v":2.2110912343470401},{"$f":"IF('[2]REAL IPC(M)'!$BE326=\"\",\"\",+'[2]REAL IPC(M)'!$BE326)","v":2.3838901918741495},{"$f":"IF('[2]REAL IPC(M)'!$AM326=\"\",\"\",+'[2]REAL IPC(M)'!$AM326)","v":1.9548656029898082},{"$f":"IF('[2]REAL IPC(M)'!$BI326=\"\",\"\",+'[2]REAL IPC(M)'!$BI326)","v":2.1428248328305033},{"$f":"IF('[2]REAL IMAE(M)'!BJ326=\"\",\"\",'[2]REAL IMAE(M)'!BJ326)","v":5.1309280356797604},{"$f":"IF('[2]REAL IMAE(M)'!BK326=\"\",\"\",'[2]REAL IMAE(M)'!BK326)","v":4.5256381611936902},{"$f":"IF('[2]REAL IMAE(M)'!BN326=\"\",\"\",'[2]REAL IMAE(M)'!BN326)","v":4.9005182585882157},{"$f":"IF('[2]REAL IMAE(M)'!BO326=\"\",\"\",'[2]REAL IMAE(M)'!BO326)","v":4.6689954439234072},{"$f":"IF('[2]EXT RIN(M)'!$K326=\"\",\"\",'[2]EXT RIN(M)'!$K326)","v":30495.104584422068},"",{"$f":"IF('[2]EXT RIN(M)'!$L326=\"\",\"\",'[2]EXT RIN(M)'!$L326)","v":35516.697338822065},"",{"$f":"IF('[2]MONE(M)CARD'!EG326=\"\",\"\",'[2]MONE(M)CARD'!EG326)","v":32774.886029404079},{"$f":"IF('[2]MONE(M)CARD'!EK326=\"\",\"\",'[2]MONE(M)CARD'!EK326)","v":51508.001348441845},{"$f":"IF('[2]MONE(M)CARD'!EP326=\"\",\"\",'[2]MONE(M)CARD'!EP326)","v":28955.660163740497},{"$f":"IF('[2]MONE(M)CARD'!ES326=\"\",\"\",'[2]MONE(M)CARD'!ES326)","v":10.080093666527357},{"$f":"IF('[2]MONE(M)CARD'!EV326=\"\",\"\",'[2]MONE(M)CARD'!EV326)","v":6.9462077404409461},{"$f":"IF('[2]MONE(M)CARD'!EZ326=\"\",\"\",'[2]MONE(M)CARD'!EZ326)","v":5.8834354796437616},{"$f":"IF('[2]MONE(M)CAPARD'!FC326=\"\",\"\",'[2]MONE(M)CAPARD'!FC326)","v":40721.185612104084},{"$f":"IF('[2]MONE(M)CAPARD'!FG326=\"\",\"\",'[2]MONE(M)CAPARD'!FG326)","v":80536.473259451857},{"$f":"IF('[2]MONE(M)CAPARD'!FL326=\"\",\"\",'[2]MONE(M)CAPARD'!FL326)","v":28955.660163740511},{"$f":"IF('[2]MONE(M)CAPARD'!FO326=\"\",\"\",'[2]MONE(M)CAPARD'!FO326)","v":7.7713344231084003},{"$f":"IF('[2]MONE(M)CAPARD'!FR326=\"\",\"\",'[2]MONE(M)CAPARD'!FR326)","v":6.6434690922424933},{"$f":"IF('[2]MONE(M)CAPARD'!FV326=\"\",\"\",'[2]MONE(M)CAPARD'!FV326)","v":5.9022101306232866},{"$f":"IF('[2]MONE(M)CARD'!FV326=\"\",\"\",'[2]MONE(M)CARD'!FV326)","v":1294.3494076865975},{"$f":"IF('[2]MONE(M)CARD'!GD326=\"\",\"\",'[2]MONE(M)CARD'!GD326)","v":70.06045718313689},{"$f":"IF('[2]MONE(M)CARD'!GE326=\"\",\"\",'[2]MONE(M)CARD'!GE326)","v":8840.469820495091},5.2015043620762924,{"$f":"IF('[9]II.2.Balance OSD-Activos'!J184=\"\",\"\",'[9]II.2.Balance OSD-Activos'!J184)","v":221.90661890823384},{"$f":"IF('[9]II.2.Balance OSD-Activos'!N184=\"\",\"\",'[9]II.2.Balance OSD-Activos'!N184)","v":971.69397042587468},{"$f":"IF('[9]II.2.Balance OSD-Activos'!R184=\"\",\"\",'[9]II.2.Balance OSD-Activos'!R184)","v":47289.905418281567},{"$f":"IF('[9]II.2.Balance OSD-Activos'!S184=\"\",\"\",'[9]II.2.Balance OSD-Activos'!S184)","v":51003.548294312168},47511.812037189804,{"$f":"IF(OR(AF319=\"\",AG319=\"\",AH319=\"\",AI319=\"\"),\"\",SUM(AF319:AI319))","v":99487.054301927841},{"$f":"IF(OR(AF319=\"\",AF307=\"\"),\"\",((AF319/AF307)-1)*100)","v":16.535329419033641},9.6832828692957627,12.543116678402466,9.6530287065188514,10.512718159231982,10.134384018248133,-0.25775524544706663,{"$f":"IF('[2]MONE(M)CAPARD'!GS326=\"\",\"\",'[2]MONE(M)CAPARD'!GS326)","v":19763.946103756829},{"$f":"IF('[2]MONE(M)CARD'!HA326=\"\",\"\",'[2]MONE(M)CAPARD'!HA326)","v":10253.249869335088},{"$f":"IF('[2]MONE(M)CAPARD'!HB326=\"\",\"\",'[2]MONE(M)CAPARD'!HB326)","v":9510.6962344217409},"n.d.",{"$f":"IF('[10]II.2.Balance OSD-Activos'!J184=\"\",\"\",'[10]II.2.Balance OSD-Activos'!J184)","v":2023.7045126382338},{"$f":"IF('[10]II.2.Balance OSD-Activos'!N184=\"\",\"\",'[10]II.2.Balance OSD-Activos'!N184)","v":1441.9185296458745},{"$f":"IF('[10]II.2.Balance OSD-Activos'!R184=\"\",\"\",'[10]II.2.Balance OSD-Activos'!R184)","v":68892.091278761567},{"$f":"IF('[10]II.2.Balance OSD-Activos'!S184=\"\",\"\",'[10]II.2.Balance OSD-Activos'!S184)","v":70830.367769662174},70915.795791399796,143188.08209070785,20.111847971967968,8.9021479933010674,1.511024469773159,8.6044106319460809,11.616967930987986,10.146627187847312,-0.16245557842440306,{"$f":"IF('[2]MONE(M)CAPARD'!AS326=\"\",\"\",'[2]MONE(M)CAPARD'!AS326)","v":1.75},{"$f":"IF('[2]MONE(M)CAPARD'!AT326=\"\",\"\",'[2]MONE(M)CAPARD'!AT326)","v":"n.a."},{"$f":"IF('[2]MONE(M)CAPARD'!AU326=\"\",\"\",'[2]MONE(M)CAPARD'!AU326)","v":3},{"$f":"IF('[2]MONE(M)CAPARD'!AV326=\"\",\"\",'[2]MONE(M)CAPARD'!AV326)","v":5.75},{"$f":"IF('[2]MONE(M)CAPARD'!AW326=\"\",\"\",'[2]MONE(M)CAPARD'!AW326)","v":"n.a."},{"$f":"IF('[2]MONE(M)CAPARD'!AX326=\"\",\"\",'[2]MONE(M)CAPARD'!AX326)","v":5},{"$f":"IF('[2]MONE(M)CAPARD'!AY326=\"\",\"\",'[2]MONE(M)CAPARD'!AY326)","v":"n.a."},{"$f":"IF('[2]FISCAL(M)'!$K326=\"\",\"\",'[2]FISCAL(M)'!$K326)","v":-1700.5834199781357},{"$f":"IF('[2]FISCAL(M)'!$L326=\"\",\"\",'[2]FISCAL(M)'!$L326)","v":"n.d."},{"$f":"IF('[2]FISCAL(M)'!$AY326=\"\",\"\",'[2]FISCAL(M)'!$AY326)","v":115255.11585713876},{"$f":"IF('[2]FISCAL(M)'!$BI326=\"\",\"\",'[2]FISCAL(M)'!$BI326)","v":59242.939240034597},{"$f":"IF('[2]FISCAL(M)'!$BS326=\"\",\"\",'[2]FISCAL(M)'!$BS326)","v":56012.176617104167},{"$f":"IF('[2]FISCAL(M)'!$AZ326=\"\",\"\",'[2]FISCAL(M)'!$AZ326)","v":136670.17585713876},{"$f":"IF('[2]FISCAL(M)'!$BJ326=\"\",\"\",'[2]FISCAL(M)'!$BJ326)","v":63988.359240034595},71600.277879409434,{"$f":"IF('[3]MONE(M)'!$AO326=\"\",\"\",'[3]MONE(M)'!$AO326)","v":18645329.518738486},{"$f":"IF('[4]MONE(M)'!$AO326=\"\",\"\",'[4]MONE(M)'!$AO326)","v":11379.633864710002},{"$f":"IF('[5]MONE(M)'!$AO326=\"\",\"\",'[5]MONE(M)'!$AO326)","v":181069.46086367755},{"$f":"+'[1]MONE(M)'!$AO326","v":264766.04303774965},{"$f":"IF('[6]MONE(M)'!$AO326=\"\",\"\",'[6]MONE(M)'!$AO326)","v":126064.76540791124},{"$f":"IF('[7]MONE(M)'!$AO326=\"\",\"\",'[7]MONE(M)'!$AO326)","v":835977.87984633003},{"$f":"IF('[8]MONE(M)'!$AO326=\"\",\"\",'[8]MONE(M)'!$AO326)","v":44592.114583810006},12.235217423747692,5.3795007927064376,8.7988874531036423,10.222836936540848,23.334681245786214,16.232109884652601,10.423968063468436,{"$f":"IF('[2]FISCAL(M)'!$K326=\"\",\"\",'[2]FISCAL(M)'!$K326)","v":-1700.5834199781357},{"$f":"+'[2]REAL(A)'!$AO$36","v":259854.16291187517},{"$f":"IF(OR(CM319=\"n.d.\",CM319=\"\",CN319=\"\",CN319=\"n.d.\"),\"\",(CM319/CN319)*100)","v":-0.65443762798399252},{"$f":"IF('[2]FISCAL(M)'!$L326=\"\",\"\",'[2]FISCAL(M)'!$L326)","v":"n.d."},{"$f":"+'[2]REAL(A)'!$AP$36","v":317761.85891187517},"n.d.",136576.74239271169,{"$f":"'[2]Gráfico REM'!BG320","v":24567.714845272632},{"$f":"'[2]Gráfico REM'!BH320","v":104502.66307563189},{"$f":"'[2]Gráfico REM'!BI320","v":7506.3644718071791},{"$f":"IFERROR(+((CS319/CS307)-1)*100,\"\")","v":9.7807375706283182},8.9665608430420374,10.401130853890095,4.1781775897000717,207208.88432461169,{"$f":"'[2]Gráfico REM'!BK320","v":26875.76185377263},{"$f":"'[2]Gráfico REM'!BL320","v":149094.7776594419},{"$f":"'[2]Gráfico REM'!BM320","v":31238.344811397168},9.538183218391417,10.053579143747138,10.407960146323859,5.1604987963766336]
[2016,"junio ","2016-junio ",{"$f":"IF('[2]REAL IPC(M)'!$AL327=\"\",\"\",+'[2]REAL IPC(M)'!$AL327)","v":2.2550488831799109},{"$f":"IF('[2]REAL IPC(M)'!$BE327=\"\",\"\",+'[2]REAL IPC(M)'!$BE327)","v":2.393142807320281},{"$f":"IF('[2]REAL IPC(M)'!$AM327=\"\",\"\",+'[2]REAL IPC(M)'!$AM327)","v":1.9569892473118244},{"$f":"IF('[2]REAL IPC(M)'!$BI327=\"\",\"\",+'[2]REAL IPC(M)'!$BI327)","v":2.1494605685904},{"$f":"IF('[2]REAL IMAE(M)'!BJ327=\"\",\"\",'[2]REAL IMAE(M)'!BJ327)","v":4.6226204653866398},{"$f":"IF('[2]REAL IMAE(M)'!BK327=\"\",\"\",'[2]REAL IMAE(M)'!BK327)","v":4.4941253878560961},{"$f":"IF('[2]REAL IMAE(M)'!BN327=\"\",\"\",'[2]REAL IMAE(M)'!BN327)","v":4.226497600682233},{"$f":"IF('[2]REAL IMAE(M)'!BO327=\"\",\"\",'[2]REAL IMAE(M)'!BO327)","v":4.6345112432384594},{"$f":"IF('[2]EXT RIN(M)'!$K327=\"\",\"\",'[2]EXT RIN(M)'!$K327)","v":31092.773042492219},"",{"$f":"IF('[2]EXT RIN(M)'!$L327=\"\",\"\",'[2]EXT RIN(M)'!$L327)","v":35863.322932512223},"",{"$f":"IF('[2]MONE(M)CARD'!EG327=\"\",\"\",'[2]MONE(M)CARD'!EG327)","v":32641.706445554282},{"$f":"IF('[2]MONE(M)CARD'!EK327=\"\",\"\",'[2]MONE(M)CARD'!EK327)","v":51920.786725887403},{"$f":"IF('[2]MONE(M)CARD'!EP327=\"\",\"\",'[2]MONE(M)CARD'!EP327)","v":28604.292218799514},{"$f":"IF('[2]MONE(M)CARD'!ES327=\"\",\"\",'[2]MONE(M)CARD'!ES327)","v":9.2610489334407973},{"$f":"IF('[2]MONE(M)CARD'!EV327=\"\",\"\",'[2]MONE(M)CARD'!EV327)","v":6.1286272978852141},{"$f":"IF('[2]MONE(M)CARD'!EZ327=\"\",\"\",'[2]MONE(M)CARD'!EZ327)","v":4.9128287940841009},{"$f":"IF('[2]MONE(M)CAPARD'!FC327=\"\",\"\",'[2]MONE(M)CAPARD'!FC327)","v":40554.029503234284},{"$f":"IF('[2]MONE(M)CAPARD'!FG327=\"\",\"\",'[2]MONE(M)CAPARD'!FG327)","v":81100.55788895741},{"$f":"IF('[2]MONE(M)CAPARD'!FL327=\"\",\"\",'[2]MONE(M)CAPARD'!FL327)","v":28604.292218799528},{"$f":"IF('[2]MONE(M)CAPARD'!FO327=\"\",\"\",'[2]MONE(M)CAPARD'!FO327)","v":7.3590911209308052},{"$f":"IF('[2]MONE(M)CAPARD'!FR327=\"\",\"\",'[2]MONE(M)CAPARD'!FR327)","v":6.2934529296847064},{"$f":"IF('[2]MONE(M)CAPARD'!FV327=\"\",\"\",'[2]MONE(M)CAPARD'!FV327)","v":5.3414662365799614},{"$f":"IF('[2]MONE(M)CARD'!FV327=\"\",\"\",'[2]MONE(M)CARD'!FV327)","v":1346.9082430395531},{"$f":"IF('[2]MONE(M)CARD'!GD327=\"\",\"\",'[2]MONE(M)CARD'!GD327)","v":176.43228603791272},{"$f":"IF('[2]MONE(M)CARD'!GE327=\"\",\"\",'[2]MONE(M)CARD'!GE327)","v":9087.3111145325238},3.1399260421706154,{"$f":"IF('[9]II.2.Balance OSD-Activos'!J185=\"\",\"\",'[9]II.2.Balance OSD-Activos'!J185)","v":212.25207121872219},{"$f":"IF('[9]II.2.Balance OSD-Activos'!N185=\"\",\"\",'[9]II.2.Balance OSD-Activos'!N185)","v":962.65876871631508},{"$f":"IF('[9]II.2.Balance OSD-Activos'!R185=\"\",\"\",'[9]II.2.Balance OSD-Activos'!R185)","v":47456.643374592648},{"$f":"IF('[9]II.2.Balance OSD-Activos'!S185=\"\",\"\",'[9]II.2.Balance OSD-Activos'!S185)","v":51180.080172029317},47668.895445811373,99811.634386557009,{"$f":"IF(OR(AF320=\"\",AF308=\"\"),\"\",((AF320/AF308)-1)*100)","v":10.548432226926007},9.9017937217287688,3.691309456808467,9.8989185928777257,9.4968252006218954,9.630556264402701,-0.50382775384543166,{"$f":"IF('[2]MONE(M)CAPARD'!GS327=\"\",\"\",'[2]MONE(M)CAPARD'!GS327)","v":19973.078726639687},{"$f":"IF('[2]MONE(M)CARD'!HA327=\"\",\"\",'[2]MONE(M)CAPARD'!HA327)","v":10718.093958912523},{"$f":"IF('[2]MONE(M)CAPARD'!HB327=\"\",\"\",'[2]MONE(M)CAPARD'!HB327)","v":9254.9847677271646},"n.d.",{"$f":"IF('[10]II.2.Balance OSD-Activos'!J185=\"\",\"\",'[10]II.2.Balance OSD-Activos'!J185)","v":1978.6055850787222},{"$f":"IF('[10]II.2.Balance OSD-Activos'!N185=\"\",\"\",'[10]II.2.Balance OSD-Activos'!N185)","v":1426.0526452863151},{"$f":"IF('[10]II.2.Balance OSD-Activos'!R185=\"\",\"\",'[10]II.2.Balance OSD-Activos'!R185)","v":69167.410501422637},{"$f":"IF('[10]II.2.Balance OSD-Activos'!S185=\"\",\"\",'[10]II.2.Balance OSD-Activos'!S185)","v":71228.110969569316},71146.01608650136,143800.17970135697,18.246916702615181,9.0591909181001462,1.8271234992198515,8.8173253979672914,10.83922077063133,9.8556895571176852,-0.29093763072962631,{"$f":"IF('[2]MONE(M)CAPARD'!AS327=\"\",\"\",'[2]MONE(M)CAPARD'!AS327)","v":1.75},{"$f":"IF('[2]MONE(M)CAPARD'!AT327=\"\",\"\",'[2]MONE(M)CAPARD'!AT327)","v":"n.a."},{"$f":"IF('[2]MONE(M)CAPARD'!AU327=\"\",\"\",'[2]MONE(M)CAPARD'!AU327)","v":3},{"$f":"IF('[2]MONE(M)CAPARD'!AV327=\"\",\"\",'[2]MONE(M)CAPARD'!AV327)","v":5.5},{"$f":"IF('[2]MONE(M)CAPARD'!AW327=\"\",\"\",'[2]MONE(M)CAPARD'!AW327)","v":"n.a."},{"$f":"IF('[2]MONE(M)CAPARD'!AX327=\"\",\"\",'[2]MONE(M)CAPARD'!AX327)","v":5},{"$f":"IF('[2]MONE(M)CAPARD'!AY327=\"\",\"\",'[2]MONE(M)CAPARD'!AY327)","v":"n.a."},{"$f":"IF('[2]FISCAL(M)'!$K327=\"\",\"\",'[2]FISCAL(M)'!$K327)","v":-2326.9230790307452},{"$f":"IF('[2]FISCAL(M)'!$L327=\"\",\"\",'[2]FISCAL(M)'!$L327)","v":-3446.9230790307452},{"$f":"IF('[2]FISCAL(M)'!$AY327=\"\",\"\",'[2]FISCAL(M)'!$AY327)","v":115900.60225637263},{"$f":"IF('[2]FISCAL(M)'!$BI327=\"\",\"\",'[2]FISCAL(M)'!$BI327)","v":59826.352914431307},{"$f":"IF('[2]FISCAL(M)'!$BS327=\"\",\"\",'[2]FISCAL(M)'!$BS327)","v":56074.249341941308},{"$f":"IF('[2]FISCAL(M)'!$AZ327=\"\",\"\",'[2]FISCAL(M)'!$AZ327)","v":137567.58225637261},{"$f":"IF('[2]FISCAL(M)'!$BJ327=\"\",\"\",'[2]FISCAL(M)'!$BJ327)","v":64804.032914431315},{"$f":"IF('[2]FISCAL(M)'!$BT327=\"\",\"\",'[2]FISCAL(M)'!$BT327)","v":72763.549341941311},{"$f":"IF('[3]MONE(M)'!$AO327=\"\",\"\",'[3]MONE(M)'!$AO327)","v":18928564.92890469},{"$f":"IF('[4]MONE(M)'!$AO327=\"\",\"\",'[4]MONE(M)'!$AO327)","v":11378.265328050002},{"$f":"IF('[5]MONE(M)'!$AO327=\"\",\"\",'[5]MONE(M)'!$AO327)","v":181782.91227250372},{"$f":"+'[1]MONE(M)'!$AO327","v":265973.64839966962},{"$f":"IF('[6]MONE(M)'!$AO327=\"\",\"\",'[6]MONE(M)'!$AO327)","v":127961.47516669752},{"$f":"IF('[7]MONE(M)'!$AO327=\"\",\"\",'[7]MONE(M)'!$AO327)","v":845636.78794713016},{"$f":"IF('[8]MONE(M)'!$AO327=\"\",\"\",'[8]MONE(M)'!$AO327)","v":44862.944448989991},12.140712358865713,5.3225399345478763,8.7904226725698855,10.03088791677702,23.515469848430648,16.956286155232149,10.516036606610403,{"$f":"IF('[2]FISCAL(M)'!$K327=\"\",\"\",'[2]FISCAL(M)'!$K327)","v":-2326.9230790307452},{"$f":"+'[2]REAL(A)'!$AO$36","v":259854.16291187517},{"$f":"IF(OR(CM320=\"n.d.\",CM320=\"\",CN320=\"\",CN320=\"n.d.\"),\"\",(CM320/CN320)*100)","v":-0.89547269628306048},{"$f":"IF('[2]FISCAL(M)'!$L327=\"\",\"\",'[2]FISCAL(M)'!$L327)","v":-3446.9230790307452},{"$f":"+'[2]REAL(A)'!$AP$36","v":317761.85891187517},-1.08475041366959,136867.11033145824,{"$f":"'[2]Gráfico REM'!BG321","v":24707.155673744113},{"$f":"'[2]Gráfico REM'!BH321","v":104701.33949792307},{"$f":"'[2]Gráfico REM'!BI321","v":7458.615159791063},8.8671082256956968,8.812617892104635,9.5156887739006315,0.66532793886706632,207445.27985180824,{"$f":"'[2]Gráfico REM'!BK321","v":26992.136106054113},{"$f":"'[2]Gráfico REM'!BL321","v":149564.28394691306},{"$f":"'[2]Gráfico REM'!BM321","v":30888.859798841062},8.0305336024593998,9.17375179518476,9.8138441925868172,-0.68732316267262616]
[2016,"julio","2016-julio",{"$f":"IF('[2]REAL IPC(M)'!$AL328=\"\",\"\",+'[2]REAL IPC(M)'!$AL328)","v":2.5220860644058041},{"$f":"IF('[2]REAL IPC(M)'!$BE328=\"\",\"\",+'[2]REAL IPC(M)'!$BE328)","v":2.40509519583052},{"$f":"IF('[2]REAL IPC(M)'!$AM328=\"\",\"\",+'[2]REAL IPC(M)'!$AM328)","v":2.1826248747674137},{"$f":"IF('[2]REAL IPC(M)'!$BI328=\"\",\"\",+'[2]REAL IPC(M)'!$BI328)","v":2.1588338535740714},{"$f":"IF('[2]REAL IMAE(M)'!BJ328=\"\",\"\",'[2]REAL IMAE(M)'!BJ328)","v":4.0319917494683555},{"$f":"IF('[2]REAL IMAE(M)'!BK328=\"\",\"\",'[2]REAL IMAE(M)'!BK328)","v":4.4597893089002527},{"$f":"IF('[2]REAL IMAE(M)'!BN328=\"\",\"\",'[2]REAL IMAE(M)'!BN328)","v":3.6311467133803843},{"$f":"IF('[2]REAL IMAE(M)'!BO328=\"\",\"\",'[2]REAL IMAE(M)'!BO328)","v":4.5976477740967026},{"$f":"IF('[2]EXT RIN(M)'!$K328=\"\",\"\",'[2]EXT RIN(M)'!$K328)","v":31403.958378224743},"",{"$f":"IF('[2]EXT RIN(M)'!$L328=\"\",\"\",'[2]EXT RIN(M)'!$L328)","v":35620.305135394745},"",{"$f":"IF('[2]MONE(M)CARD'!EG328=\"\",\"\",'[2]MONE(M)CARD'!EG328)","v":32964.696997824263},{"$f":"IF('[2]MONE(M)CARD'!EK328=\"\",\"\",'[2]MONE(M)CARD'!EK328)","v":51919.224382132837},{"$f":"IF('[2]MONE(M)CARD'!EP328=\"\",\"\",'[2]MONE(M)CARD'!EP328)","v":29101.326664912893},{"$f":"IF('[2]MONE(M)CARD'!ES328=\"\",\"\",'[2]MONE(M)CARD'!ES328)","v":9.8802250060479935},{"$f":"IF('[2]MONE(M)CARD'!EV328=\"\",\"\",'[2]MONE(M)CARD'!EV328)","v":6.1036575466074661},{"$f":"IF('[2]MONE(M)CARD'!EZ328=\"\",\"\",'[2]MONE(M)CARD'!EZ328)","v":5.3172634843048572},{"$f":"IF('[2]MONE(M)CAPARD'!FC328=\"\",\"\",'[2]MONE(M)CAPARD'!FC328)","v":40883.946012564273},{"$f":"IF('[2]MONE(M)CAPARD'!FG328=\"\",\"\",'[2]MONE(M)CAPARD'!FG328)","v":80881.547255232843},{"$f":"IF('[2]MONE(M)CAPARD'!FL328=\"\",\"\",'[2]MONE(M)CAPARD'!FL328)","v":29101.326664912893},{"$f":"IF('[2]MONE(M)CAPARD'!FO328=\"\",\"\",'[2]MONE(M)CAPARD'!FO328)","v":7.8244011203063124},{"$f":"IF('[2]MONE(M)CAPARD'!FR328=\"\",\"\",'[2]MONE(M)CAPARD'!FR328)","v":5.6302231243939849},{"$f":"IF('[2]MONE(M)CAPARD'!FV328=\"\",\"\",'[2]MONE(M)CAPARD'!FV328)","v":5.1302607372234243},{"$f":"IF('[2]MONE(M)CARD'!FV328=\"\",\"\",'[2]MONE(M)CARD'!FV328)","v":1361.042245445489},{"$f":"IF('[2]MONE(M)CARD'!GD328=\"\",\"\",'[2]MONE(M)CARD'!GD328)","v":72.146138519150526},{"$f":"IF('[2]MONE(M)CARD'!GE328=\"\",\"\",'[2]MONE(M)CARD'!GE328)","v":9224.6271306918898},7.5192464504720391,{"$f":"IF('[9]II.2.Balance OSD-Activos'!J186=\"\",\"\",'[9]II.2.Balance OSD-Activos'!J186)","v":214.92814616352501},{"$f":"IF('[9]II.2.Balance OSD-Activos'!N186=\"\",\"\",'[9]II.2.Balance OSD-Activos'!N186)","v":936.04380775772847},{"$f":"IF('[9]II.2.Balance OSD-Activos'!R186=\"\",\"\",'[9]II.2.Balance OSD-Activos'!R186)","v":47678.151022446516},{"$f":"IF('[9]II.2.Balance OSD-Activos'!S186=\"\",\"\",'[9]II.2.Balance OSD-Activos'!S186)","v":51671.227847593516},47893.079168610042,100500.35082396129,16.764108784888009,9.5990499453892255,0.81289628687286619,9.568740991186143,9.6132734480781181,9.5174578763966409,-0.11309838800606009,{"$f":"IF('[2]MONE(M)CAPARD'!GS328=\"\",\"\",'[2]MONE(M)CAPARD'!GS328)","v":19656.394038155118},{"$f":"IF('[2]MONE(M)CARD'!HA328=\"\",\"\",'[2]MONE(M)CAPARD'!HA328)","v":11164.698621461888},{"$f":"IF('[2]MONE(M)CAPARD'!HB328=\"\",\"\",'[2]MONE(M)CAPARD'!HB328)","v":8491.6954166932301},"n.d.",{"$f":"IF('[10]II.2.Balance OSD-Activos'!J186=\"\",\"\",'[10]II.2.Balance OSD-Activos'!J186)","v":1994.667060793525},{"$f":"IF('[10]II.2.Balance OSD-Activos'!N186=\"\",\"\",'[10]II.2.Balance OSD-Activos'!N186)","v":1398.4598535777286},{"$f":"IF('[10]II.2.Balance OSD-Activos'!R186=\"\",\"\",'[10]II.2.Balance OSD-Activos'!R186)","v":69362.710884736516},{"$f":"IF('[10]II.2.Balance OSD-Activos'!S186=\"\",\"\",'[10]II.2.Balance OSD-Activos'!S186)","v":71427.080666843525},71357.377945530039,144182.91846595128,14.357003500480792,8.1560546760865762,1.7177775836274778,7.9876656089612474,10.098537331698987,9.0421695890189113,-0.81351996809877392,{"$f":"IF('[2]MONE(M)CAPARD'!AS328=\"\",\"\",'[2]MONE(M)CAPARD'!AS328)","v":1.75},{"$f":"IF('[2]MONE(M)CAPARD'!AT328=\"\",\"\",'[2]MONE(M)CAPARD'!AT328)","v":"n.a."},{"$f":"IF('[2]MONE(M)CAPARD'!AU328=\"\",\"\",'[2]MONE(M)CAPARD'!AU328)","v":3},{"$f":"IF('[2]MONE(M)CAPARD'!AV328=\"\",\"\",'[2]MONE(M)CAPARD'!AV328)","v":5.5},{"$f":"IF('[2]MONE(M)CAPARD'!AW328=\"\",\"\",'[2]MONE(M)CAPARD'!AW328)","v":"n.a."},{"$f":"IF('[2]MONE(M)CAPARD'!AX328=\"\",\"\",'[2]MONE(M)CAPARD'!AX328)","v":5},{"$f":"IF('[2]MONE(M)CAPARD'!AY328=\"\",\"\",'[2]MONE(M)CAPARD'!AY328)","v":"n.a."},{"$f":"IF('[2]FISCAL(M)'!$K328=\"\",\"\",'[2]FISCAL(M)'!$K328)","v":-2849.335596875002},{"$f":"IF('[2]FISCAL(M)'!$L328=\"\",\"\",'[2]FISCAL(M)'!$L328)","v":"n.d."},{"$f":"IF('[2]FISCAL(M)'!$AY328=\"\",\"\",'[2]FISCAL(M)'!$AY328)","v":117220.23305827573},{"$f":"IF('[2]FISCAL(M)'!$BI328=\"\",\"\",'[2]FISCAL(M)'!$BI328)","v":60682.709546274404},{"$f":"IF('[2]FISCAL(M)'!$BS328=\"\",\"\",'[2]FISCAL(M)'!$BS328)","v":56537.523512001339},{"$f":"IF('[2]FISCAL(M)'!$AZ328=\"\",\"\",'[2]FISCAL(M)'!$AZ328)","v":138789.64305827575},{"$f":"IF('[2]FISCAL(M)'!$BJ328=\"\",\"\",'[2]FISCAL(M)'!$BJ328)","v":65602.579546274399},{"$f":"IF('[2]FISCAL(M)'!$BT328=\"\",\"\",'[2]FISCAL(M)'!$BT328)","v":73187.063512001347},{"$f":"IF('[3]MONE(M)'!$AO328=\"\",\"\",'[3]MONE(M)'!$AO328)","v":19051753.053379461},{"$f":"IF('[4]MONE(M)'!$AO328=\"\",\"\",'[4]MONE(M)'!$AO328)","v":11441.96045602},{"$f":"IF('[5]MONE(M)'!$AO328=\"\",\"\",'[5]MONE(M)'!$AO328)","v":181941.72017472755},{"$f":"+'[1]MONE(M)'!$AO328","v":267493.49389481609},{"$f":"IF('[6]MONE(M)'!$AO328=\"\",\"\",'[6]MONE(M)'!$AO328)","v":128708.0549673115},{"$f":"IF('[7]MONE(M)'!$AO328=\"\",\"\",'[7]MONE(M)'!$AO328)","v":853573.90783634991},{"$f":"IF('[8]MONE(M)'!$AO328=\"\",\"\",'[8]MONE(M)'!$AO328)","v":44487.128291569999},11.589794005684917,5.4724144106155004,8.1364561924818002,10.261997132882804,21.838007749425081,16.360435014070383,7.9867247620767801,{"$f":"IF('[2]FISCAL(M)'!$K328=\"\",\"\",'[2]FISCAL(M)'!$K328)","v":-2849.335596875002},{"$f":"+'[2]REAL(A)'!$AO$36","v":259854.16291187517},-1.0965133538542935,{"$f":"IF('[2]FISCAL(M)'!$L328=\"\",\"\",'[2]FISCAL(M)'!$L328)","v":"n.d."},{"$f":"+'[2]REAL(A)'!$AP$36","v":317761.85891187517},"n.d.",137007.89806942723,{"$f":"'[2]Gráfico REM'!BG322","v":24267.317128070197},{"$f":"'[2]Gráfico REM'!BH322","v":105338.4894197112},{"$f":"'[2]Gráfico REM'!BI322","v":7402.091521645847},7.9676976004251276,5.003582341121926,9.3200509344334002,-0.35270943775437269,207336.61157317722,{"$f":"'[2]Gráfico REM'!BK322","v":26531.312611530197},{"$f":"'[2]Gráfico REM'!BL322","v":149825.6177112812},{"$f":"'[2]Gráfico REM'!BM322","v":30979.681250365844},7.052673137770471,5.5859055857411688,8.9207274394911487,-4.86321366145126E-2]
[2016,"agosto","2016-agosto",{"$f":"IF('[2]REAL IPC(M)'!$AL329=\"\",\"\",+'[2]REAL IPC(M)'!$AL329)","v":2.4570899508582045},{"$f":"IF('[2]REAL IPC(M)'!$BE329=\"\",\"\",+'[2]REAL IPC(M)'!$BE329)","v":2.4194623012476102},{"$f":"IF('[2]REAL IPC(M)'!$AM329=\"\",\"\",+'[2]REAL IPC(M)'!$AM329)","v":2.1830935509269178},{"$f":"IF('[2]REAL IPC(M)'!$BI329=\"\",\"\",+'[2]REAL IPC(M)'!$BI329)","v":2.1706084653471791},{"$f":"IF('[2]REAL IMAE(M)'!BJ329=\"\",\"\",'[2]REAL IMAE(M)'!BJ329)","v":3.8439117412406576},{"$f":"IF('[2]REAL IMAE(M)'!BK329=\"\",\"\",'[2]REAL IMAE(M)'!BK329)","v":4.4226549863257247},{"$f":"IF('[2]REAL IMAE(M)'!BN329=\"\",\"\",'[2]REAL IMAE(M)'!BN329)","v":3.6744554997197865},{"$f":"IF('[2]REAL IMAE(M)'!BO329=\"\",\"\",'[2]REAL IMAE(M)'!BO329)","v":4.5582624648454084},{"$f":"IF('[2]EXT RIN(M)'!$K329=\"\",\"\",'[2]EXT RIN(M)'!$K329)","v":31290.900717221724},"",{"$f":"IF('[2]EXT RIN(M)'!$L329=\"\",\"\",'[2]EXT RIN(M)'!$L329)","v":35621.300838331721},"",{"$f":"IF('[2]MONE(M)CARD'!EG329=\"\",\"\",'[2]MONE(M)CARD'!EG329)","v":32436.53761362045},{"$f":"IF('[2]MONE(M)CARD'!EK329=\"\",\"\",'[2]MONE(M)CARD'!EK329)","v":52473.975299244172},{"$f":"IF('[2]MONE(M)CARD'!EP329=\"\",\"\",'[2]MONE(M)CARD'!EP329)","v":29342.396856557913},{"$f":"IF('[2]MONE(M)CARD'!ES329=\"\",\"\",'[2]MONE(M)CARD'!ES329)","v":9.3376515819234562},{"$f":"IF('[2]MONE(M)CARD'!EV329=\"\",\"\",'[2]MONE(M)CARD'!EV329)","v":6.3591225457227285},{"$f":"IF('[2]MONE(M)CARD'!EZ329=\"\",\"\",'[2]MONE(M)CARD'!EZ329)","v":5.8178647708138964},{"$f":"IF('[2]MONE(M)CAPARD'!FC329=\"\",\"\",'[2]MONE(M)CAPARD'!FC329)","v":40013.252379627149},{"$f":"IF('[2]MONE(M)CAPARD'!FG329=\"\",\"\",'[2]MONE(M)CAPARD'!FG329)","v":81790.869426864199},{"$f":"IF('[2]MONE(M)CAPARD'!FL329=\"\",\"\",'[2]MONE(M)CAPARD'!FL329)","v":29342.396856557927},{"$f":"IF('[2]MONE(M)CAPARD'!FO329=\"\",\"\",'[2]MONE(M)CAPARD'!FO329)","v":6.2682155881396362},{"$f":"IF('[2]MONE(M)CAPARD'!FR329=\"\",\"\",'[2]MONE(M)CAPARD'!FR329)","v":5.8646909046179196},{"$f":"IF('[2]MONE(M)CAPARD'!FV329=\"\",\"\",'[2]MONE(M)CAPARD'!FV329)","v":5.5537263954244187},{"$f":"IF('[2]MONE(M)CARD'!FV329=\"\",\"\",'[2]MONE(M)CARD'!FV329)","v":1544.7166568573712},{"$f":"IF('[2]MONE(M)CARD'!GD329=\"\",\"\",'[2]MONE(M)CARD'!GD329)","v":80.022853778949212},{"$f":"IF('[2]MONE(M)CARD'!GE329=\"\",\"\",'[2]MONE(M)CARD'!GE329)","v":9271.624836654275},8.0369316691896397,{"$f":"IF('[9]II.2.Balance OSD-Activos'!J187=\"\",\"\",'[9]II.2.Balance OSD-Activos'!J187)","v":214.69787103088279},{"$f":"IF('[9]II.2.Balance OSD-Activos'!N187=\"\",\"\",'[9]II.2.Balance OSD-Activos'!N187)","v":967.23631299589738},{"$f":"IF('[9]II.2.Balance OSD-Activos'!R187=\"\",\"\",'[9]II.2.Balance OSD-Activos'!R187)","v":47990.363550784779},{"$f":"IF('[9]II.2.Balance OSD-Activos'!S187=\"\",\"\",'[9]II.2.Balance OSD-Activos'!S187)","v":52142.353462603845},48205.061421815662,101314.6511974154,11.794648156583376,9.2483925123586275,1.3863949127434827,9.2372617350414021,9.5134971371907184,9.3036506028272967,-0.21380727356934415,{"$f":"IF('[2]MONE(M)CAPARD'!GS329=\"\",\"\",'[2]MONE(M)CAPARD'!GS329)","v":19884.167021325244},{"$f":"IF('[2]MONE(M)CARD'!HA329=\"\",\"\",'[2]MONE(M)CAPARD'!HA329)","v":11156.722875534277},{"$f":"IF('[2]MONE(M)CAPARD'!HB329=\"\",\"\",'[2]MONE(M)CAPARD'!HB329)","v":8727.444145790967},"n.d.",{"$f":"IF('[10]II.2.Balance OSD-Activos'!J187=\"\",\"\",'[10]II.2.Balance OSD-Activos'!J187)","v":2038.8292222708851},{"$f":"IF('[10]II.2.Balance OSD-Activos'!N187=\"\",\"\",'[10]II.2.Balance OSD-Activos'!N187)","v":1424.7192792658975},{"$f":"IF('[10]II.2.Balance OSD-Activos'!R187=\"\",\"\",'[10]II.2.Balance OSD-Activos'!R187)","v":70124.424546514783},{"$f":"IF('[10]II.2.Balance OSD-Activos'!S187=\"\",\"\",'[10]II.2.Balance OSD-Activos'!S187)","v":72576.217223183849},72163.253768785667,146164.19027123542,12.161337168987863,8.3564044137636628,1.8733034934314219,8.2496362453521321,10.489417644755461,9.336655603982269,0.29448601496335769,{"$f":"IF('[2]MONE(M)CAPARD'!AS329=\"\",\"\",'[2]MONE(M)CAPARD'!AS329)","v":1.75},{"$f":"IF('[2]MONE(M)CAPARD'!AT329=\"\",\"\",'[2]MONE(M)CAPARD'!AT329)","v":"n.a."},{"$f":"IF('[2]MONE(M)CAPARD'!AU329=\"\",\"\",'[2]MONE(M)CAPARD'!AU329)","v":3},{"$f":"IF('[2]MONE(M)CAPARD'!AV329=\"\",\"\",'[2]MONE(M)CAPARD'!AV329)","v":5.5},{"$f":"IF('[2]MONE(M)CAPARD'!AW329=\"\",\"\",'[2]MONE(M)CAPARD'!AW329)","v":"n.a."},{"$f":"IF('[2]MONE(M)CAPARD'!AX329=\"\",\"\",'[2]MONE(M)CAPARD'!AX329)","v":5},{"$f":"IF('[2]MONE(M)CAPARD'!AY329=\"\",\"\",'[2]MONE(M)CAPARD'!AY329)","v":"n.a."},{"$f":"IF('[2]FISCAL(M)'!$K329=\"\",\"\",'[2]FISCAL(M)'!$K329)","v":-3177.8241896973132},{"$f":"IF('[2]FISCAL(M)'!$L329=\"\",\"\",'[2]FISCAL(M)'!$L329)","v":"n.d."},{"$f":"IF('[2]FISCAL(M)'!$AY329=\"\",\"\",'[2]FISCAL(M)'!$AY329)","v":117416.5282382603},{"$f":"IF('[2]FISCAL(M)'!$BI329=\"\",\"\",'[2]FISCAL(M)'!$BI329)","v":60992.904438641308},{"$f":"IF('[2]FISCAL(M)'!$BS329=\"\",\"\",'[2]FISCAL(M)'!$BS329)","v":56423.623799618988},{"$f":"IF('[2]FISCAL(M)'!$AZ329=\"\",\"\",'[2]FISCAL(M)'!$AZ329)","v":139084.32823826029},{"$f":"IF('[2]FISCAL(M)'!$BJ329=\"\",\"\",'[2]FISCAL(M)'!$BJ329)","v":66036.074438641313},{"$f":"IF('[2]FISCAL(M)'!$BT329=\"\",\"\",'[2]FISCAL(M)'!$BT329)","v":73048.253799618979},{"$f":"IF('[3]MONE(M)'!$AO329=\"\",\"\",'[3]MONE(M)'!$AO329)","v":19220387.84031675},{"$f":"IF('[4]MONE(M)'!$AO329=\"\",\"\",'[4]MONE(M)'!$AO329)","v":11513.015814629998},{"$f":"IF('[5]MONE(M)'!$AO329=\"\",\"\",'[5]MONE(M)'!$AO329)","v":182956.81868094188},{"$f":"+'[1]MONE(M)'!$AO329","v":269204.6046926867},{"$f":"IF('[6]MONE(M)'!$AO329=\"\",\"\",'[6]MONE(M)'!$AO329)","v":130499.99058629271},{"$f":"IF('[7]MONE(M)'!$AO329=\"\",\"\",'[7]MONE(M)'!$AO329)","v":864902.17160924},{"$f":"IF('[8]MONE(M)'!$AO329=\"\",\"\",'[8]MONE(M)'!$AO329)","v":45715.706811360011},11.705262250433069,5.4928238105737881,7.4626387632189539,9.4651650294522494,22.318886308054964,14.283533363334012,9.2935808171376699,{"$f":"'[2]FISCAL(M)'!$K329","v":-3177.8241896973132},{"$f":"+'[2]REAL(A)'!$AO$36","v":259854.16291187517},-1.2229260266940631,{"$f":"IF('[2]FISCAL(M)'!$L329=\"\",\"\",'[2]FISCAL(M)'!$L329)","v":"n.d."},{"$f":"+'[2]REAL(A)'!$AP$36","v":317761.85891187517},"n.d.",138119.72606332001,{"$f":"'[2]Gráfico REM'!BG323","v":24498.708132834949},{"$f":"'[2]Gráfico REM'!BH323","v":106040.04908749196},{"$f":"'[2]Gráfico REM'!BI323","v":7580.9688429931057},8.2454512624580154,7.6051139257262701,8.7565587531051481,3.4351837649137629,209297.15906283999,{"$f":"'[2]Gráfico REM'!BK323","v":26758.031980964948},{"$f":"'[2]Gráfico REM'!BL323","v":151755.75589885196},{"$f":"'[2]Gráfico REM'!BM323","v":30783.371183023104},7.1020602427499968,7.7269475824453648,8.9177778608028788,-1.4903902481665843]
[2016,"septiembre","2016-septiembre",{"$f":"IF('[2]REAL IPC(M)'!$AL330=\"\",\"\",+'[2]REAL IPC(M)'!$AL330)","v":2.366695181066425},{"$f":"IF('[2]REAL IPC(M)'!$BE330=\"\",\"\",+'[2]REAL IPC(M)'!$BE330)","v":2.4359648575437376},{"$f":"IF('[2]REAL IPC(M)'!$AM330=\"\",\"\",+'[2]REAL IPC(M)'!$AM330)","v":2.2007168458781257},{"$f":"IF('[2]REAL IPC(M)'!$BI330=\"\",\"\",+'[2]REAL IPC(M)'!$BI330)","v":2.1844493296931278},{"$f":"IF('[2]REAL IMAE(M)'!BJ330=\"\",\"\",'[2]REAL IMAE(M)'!BJ330)","v":4.0935691810967789},{"$f":"IF('[2]REAL IMAE(M)'!BK330=\"\",\"\",'[2]REAL IMAE(M)'!BK330)","v":4.3827223841579999},{"$f":"IF('[2]REAL IMAE(M)'!BN330=\"\",\"\",'[2]REAL IMAE(M)'!BN330)","v":4.0748014842324265},{"$f":"IF('[2]REAL IMAE(M)'!BO330=\"\",\"\",'[2]REAL IMAE(M)'!BO330)","v":4.5161471428087463},{"$f":"IF('[2]EXT RIN(M)'!$K330=\"\",\"\",'[2]EXT RIN(M)'!$K330)","v":30755.544114733566},"",{"$f":"IF('[2]EXT RIN(M)'!$L330=\"\",\"\",'[2]EXT RIN(M)'!$L330)","v":34855.727142193566},"",{"$f":"IF('[2]MONE(M)CARD'!EG330=\"\",\"\",'[2]MONE(M)CARD'!EG330)","v":32750.57055646096},{"$f":"IF('[2]MONE(M)CARD'!EK330=\"\",\"\",'[2]MONE(M)CARD'!EK330)","v":52140.181395142929},{"$f":"IF('[2]MONE(M)CARD'!EP330=\"\",\"\",'[2]MONE(M)CARD'!EP330)","v":29107.836659453009},{"$f":"IF('[2]MONE(M)CARD'!ES330=\"\",\"\",'[2]MONE(M)CARD'!ES330)","v":9.698705417862886},{"$f":"IF('[2]MONE(M)CARD'!EV330=\"\",\"\",'[2]MONE(M)CARD'!EV330)","v":6.20111435521844},{"$f":"IF('[2]MONE(M)CARD'!EZ330=\"\",\"\",'[2]MONE(M)CARD'!EZ330)","v":5.3575835168442554},{"$f":"IF('[2]MONE(M)CAPARD'!FC330=\"\",\"\",'[2]MONE(M)CAPARD'!FC330)","v":40547.309974940967},{"$f":"IF('[2]MONE(M)CAPARD'!FG330=\"\",\"\",'[2]MONE(M)CAPARD'!FG330)","v":81718.475195992942},{"$f":"IF('[2]MONE(M)CAPARD'!FL330=\"\",\"\",'[2]MONE(M)CAPARD'!FL330)","v":29107.836659453023},{"$f":"IF('[2]MONE(M)CAPARD'!FO330=\"\",\"\",'[2]MONE(M)CAPARD'!FO330)","v":7.659621043762499},{"$f":"IF('[2]MONE(M)CAPARD'!FR330=\"\",\"\",'[2]MONE(M)CAPARD'!FR330)","v":6.1438204043595901},{"$f":"IF('[2]MONE(M)CAPARD'!FV330=\"\",\"\",'[2]MONE(M)CAPARD'!FV330)","v":5.5188793209152598},{"$f":"IF('[2]MONE(M)CARD'!FV330=\"\",\"\",'[2]MONE(M)CARD'!FV330)","v":1537.0367574402962},{"$f":"IF('[2]MONE(M)CARD'!GD330=\"\",\"\",'[2]MONE(M)CARD'!GD330)","v":162.57692838669141},{"$f":"IF('[2]MONE(M)CARD'!GE330=\"\",\"\",'[2]MONE(M)CARD'!GE330)","v":9369.60223410449},12.050122403841911,{"$f":"IF('[9]II.2.Balance OSD-Activos'!J188=\"\",\"\",'[9]II.2.Balance OSD-Activos'!J188)","v":206.26588678574217},{"$f":"IF('[9]II.2.Balance OSD-Activos'!N188=\"\",\"\",'[9]II.2.Balance OSD-Activos'!N188)","v":968.56220915187544},{"$f":"IF('[9]II.2.Balance OSD-Activos'!R188=\"\",\"\",'[9]II.2.Balance OSD-Activos'!R188)","v":48288.411422684614},{"$f":"IF('[9]II.2.Balance OSD-Activos'!S188=\"\",\"\",'[9]II.2.Balance OSD-Activos'!S188)","v":52596.908522974802},48494.677309470353,102060.14804159704,14.872182750445106,8.0873385351388549,-1.233975275589394,8.0600754648404216,9.3105532459266236,8.6164389750764236,-0.68721162775087308,{"$f":"IF('[2]MONE(M)CAPARD'!GS330=\"\",\"\",'[2]MONE(M)CAPARD'!GS330)","v":19926.962292825337},{"$f":"IF('[2]MONE(M)CARD'!HA330=\"\",\"\",'[2]MONE(M)CAPARD'!HA330)","v":11242.466389414489},{"$f":"IF('[2]MONE(M)CAPARD'!HB330=\"\",\"\",'[2]MONE(M)CAPARD'!HB330)","v":8684.4959034108488},"n.d.",{"$f":"IF('[10]II.2.Balance OSD-Activos'!J188=\"\",\"\",'[10]II.2.Balance OSD-Activos'!J188)","v":2038.1004788857429},{"$f":"IF('[10]II.2.Balance OSD-Activos'!N188=\"\",\"\",'[10]II.2.Balance OSD-Activos'!N188)","v":1480.1630523418753},{"$f":"IF('[10]II.2.Balance OSD-Activos'!R188=\"\",\"\",'[10]II.2.Balance OSD-Activos'!R188)","v":70656.984515594595},{"$f":"IF('[10]II.2.Balance OSD-Activos'!S188=\"\",\"\",'[10]II.2.Balance OSD-Activos'!S188)","v":73212.167147644781},72695.084994480334,147387.415194467,11.081002809565899,7.2840031381123271,1.760765109963458,7.1783266840130144,10.488771684344279,8.7921716372942882,-0.54448396668798082,{"$f":"IF('[2]MONE(M)CAPARD'!AS330=\"\",\"\",'[2]MONE(M)CAPARD'!AS330)","v":1.75},{"$f":"IF('[2]MONE(M)CAPARD'!AT330=\"\",\"\",'[2]MONE(M)CAPARD'!AT330)","v":"n.a."},{"$f":"IF('[2]MONE(M)CAPARD'!AU330=\"\",\"\",'[2]MONE(M)CAPARD'!AU330)","v":3},{"$f":"IF('[2]MONE(M)CAPARD'!AV330=\"\",\"\",'[2]MONE(M)CAPARD'!AV330)","v":5.5},{"$f":"IF('[2]MONE(M)CAPARD'!AW330=\"\",\"\",'[2]MONE(M)CAPARD'!AW330)","v":"n.a."},{"$f":"IF('[2]MONE(M)CAPARD'!AX330=\"\",\"\",'[2]MONE(M)CAPARD'!AX330)","v":5},{"$f":"IF('[2]MONE(M)CAPARD'!AY330=\"\",\"\",'[2]MONE(M)CAPARD'!AY330)","v":"n.a."},{"$f":"IF('[2]FISCAL(M)'!$K330=\"\",\"\",'[2]FISCAL(M)'!$K330)","v":-3765.2952179425965},{"$f":"IF('[2]FISCAL(M)'!$L330=\"\",\"\",'[2]FISCAL(M)'!$L330)","v":-5805.2952179425965},{"$f":"IF('[2]FISCAL(M)'!$AY330=\"\",\"\",'[2]FISCAL(M)'!$AY330)","v":118153.92206270879},{"$f":"IF('[2]FISCAL(M)'!$BI330=\"\",\"\",'[2]FISCAL(M)'!$BI330)","v":61530.276909564374},{"$f":"IF('[2]FISCAL(M)'!$BS330=\"\",\"\",'[2]FISCAL(M)'!$BS330)","v":56623.645153144411},{"$f":"IF('[2]FISCAL(M)'!$AZ330=\"\",\"\",'[2]FISCAL(M)'!$AZ330)","v":139743.49206270877},{"$f":"IF('[2]FISCAL(M)'!$BJ330=\"\",\"\",'[2]FISCAL(M)'!$BJ330)","v":66511.266909564365},{"$f":"IF('[2]FISCAL(M)'!$BT330=\"\",\"\",'[2]FISCAL(M)'!$BT330)","v":73232.225153144405},{"$f":"IF('[3]MONE(M)'!$AO330=\"\",\"\",'[3]MONE(M)'!$AO330)","v":19455222.59875967},{"$f":"IF('[4]MONE(M)'!$AO330=\"\",\"\",'[4]MONE(M)'!$AO330)","v":11560.495396319999},{"$f":"IF('[5]MONE(M)'!$AO330=\"\",\"\",'[5]MONE(M)'!$AO330)","v":182901.08086232658},{"$f":"+'[1]MONE(M)'!$AO330","v":273136.0821493952},{"$f":"IF('[6]MONE(M)'!$AO330=\"\",\"\",'[6]MONE(M)'!$AO330)","v":132476.07889500394},{"$f":"IF('[7]MONE(M)'!$AO330=\"\",\"\",'[7]MONE(M)'!$AO330)","v":875127.70564855007},{"$f":"IF('[8]MONE(M)'!$AO330=\"\",\"\",'[8]MONE(M)'!$AO330)","v":46158.925015069966},12.261449221573217,5.3974403026126216,6.4731928323540133,10.105948544988784,19.239615368862715,12.062924875579117,8.9725716416110934,{"$f":"'[2]FISCAL(M)'!$K330","v":-3765.2952179425965},{"$f":"+'[2]REAL(A)'!$AO$36","v":259854.16291187517},-1.449003231562439,{"$f":"IF('[2]FISCAL(M)'!$L330=\"\",\"\",'[2]FISCAL(M)'!$L330)","v":-5805.2952179425965},{"$f":"+'[2]REAL(A)'!$AP$36","v":317761.85891187517},-1.8269326714735068,138563.51915929888,{"$f":"'[2]Gráfico REM'!BG324","v":24331.487668501275},{"$f":"'[2]Gráfico REM'!BH324","v":106829.70648703151},{"$f":"'[2]Gráfico REM'!BI324","v":7402.3250037661128},7.5554264234699353,6.2540136747851527,8.2169584779749005,2.6328620822487769,210289.67698533888,{"$f":"'[2]Gráfico REM'!BK324","v":26634.016769211274},{"$f":"'[2]Gráfico REM'!BL324","v":152988.63150210149},{"$f":"'[2]Gráfico REM'!BM324","v":30667.028714026117},6.6754343500576185,6.5625615663282844,8.443831939216917,-1.265852871224904]
[2016,"octubre",{"$f":"A324&\"-\"&B324","v":"2016-octubre"},{"$f":"IF('[2]REAL IPC(M)'!$AL331=\"\",\"\",+'[2]REAL IPC(M)'!$AL331)","v":2.0910121916642987},{"$f":"IF('[2]REAL IPC(M)'!$BE331=\"\",\"\",+'[2]REAL IPC(M)'!$BE331)","v":2.4543296188172192},{"$f":"IF('[2]REAL IPC(M)'!$AM331=\"\",\"\",+'[2]REAL IPC(M)'!$AM331)","v":1.9904401797817162},{"$f":"IF('[2]REAL IPC(M)'!$BI331=\"\",\"\",+'[2]REAL IPC(M)'!$BI331)","v":2.20002701710722},{"$f":"IF('[2]REAL IMAE(M)'!BJ331=\"\",\"\",'[2]REAL IMAE(M)'!BJ331)","v":3.994847978997762},{"$f":"IF('[2]REAL IMAE(M)'!BK331=\"\",\"\",'[2]REAL IMAE(M)'!BK331)","v":4.3399542983242778},{"$f":"IF('[2]REAL IMAE(M)'!BN331=\"\",\"\",'[2]REAL IMAE(M)'!BN331)","v":4.0686919586631953},{"$f":"IF('[2]REAL IMAE(M)'!BO331=\"\",\"\",'[2]REAL IMAE(M)'!BO331)","v":4.4710349223621604},{"$f":"IF('[2]EXT RIN(M)'!$K331=\"\",\"\",'[2]EXT RIN(M)'!$K331)","v":31248.119180965379},{"$f":"IF(B324<>\"diciembre\",\"\",L324)","v":""},{"$f":"IF('[2]EXT RIN(M)'!$L331=\"\",\"\",'[2]EXT RIN(M)'!$L331)","v":35189.64248780538},{"$f":"IF(B324<>\"diciembre\",\"\",N324)","v":""},{"$f":"IF('[2]MONE(M)CARD'!EG331=\"\",\"\",'[2]MONE(M)CARD'!EG331)","v":33085.447861083143},{"$f":"IF('[2]MONE(M)CARD'!EK331=\"\",\"\",'[2]MONE(M)CARD'!EK331)","v":52057.930645190878},{"$f":"IF('[2]MONE(M)CARD'!EP331=\"\",\"\",'[2]MONE(M)CARD'!EP331)","v":29244.081753201826},{"$f":"IF('[2]MONE(M)CARD'!ES331=\"\",\"\",'[2]MONE(M)CARD'!ES331)","v":9.4971899411149039},{"$f":"IF('[2]MONE(M)CARD'!EV331=\"\",\"\",'[2]MONE(M)CARD'!EV331)","v":6.0190238948079955},{"$f":"IF('[2]MONE(M)CARD'!EZ331=\"\",\"\",'[2]MONE(M)CARD'!EZ331)","v":5.5117722425365612},{"$f":"IF('[2]MONE(M)CAPARD'!FC331=\"\",\"\",'[2]MONE(M)CAPARD'!FC331)","v":41099.457598883149},{"$f":"IF('[2]MONE(M)CAPARD'!FG331=\"\",\"\",'[2]MONE(M)CAPARD'!FG331)","v":81713.075767370887},{"$f":"IF('[2]MONE(M)CAPARD'!FL331=\"\",\"\",'[2]MONE(M)CAPARD'!FL331)","v":29244.081753201812},{"$f":"IF('[2]MONE(M)CAPARD'!FO331=\"\",\"\",'[2]MONE(M)CAPARD'!FO331)","v":7.6925623136296473},{"$f":"IF('[2]MONE(M)CAPARD'!FR331=\"\",\"\",'[2]MONE(M)CAPARD'!FR331)","v":6.2299471561329867},{"$f":"IF('[2]MONE(M)CAPARD'!FV331=\"\",\"\",'[2]MONE(M)CAPARD'!FV331)","v":5.8060479320875436},{"$f":"IF('[2]MONE(M)CARD'!FV331=\"\",\"\",'[2]MONE(M)CARD'!FV331)","v":1549.4123187369055},{"$f":"IF('[2]MONE(M)CARD'!GD331=\"\",\"\",'[2]MONE(M)CARD'!GD331)","v":71.733868380662798},{"$f":"IF('[2]MONE(M)CARD'!GE331=\"\",\"\",'[2]MONE(M)CARD'!GE331)","v":9551.2454867017568},11.740082915662441,{"$f":"IF('[9]II.2.Balance OSD-Activos'!J189=\"\",\"\",'[9]II.2.Balance OSD-Activos'!J189)","v":214.28258758456897},{"$f":"IF('[9]II.2.Balance OSD-Activos'!N189=\"\",\"\",'[9]II.2.Balance OSD-Activos'!N189)","v":946.6127411260718},{"$f":"IF('[9]II.2.Balance OSD-Activos'!R189=\"\",\"\",'[9]II.2.Balance OSD-Activos'!R189)","v":48836.603553940411},{"$f":"IF('[9]II.2.Balance OSD-Activos'!S189=\"\",\"\",'[9]II.2.Balance OSD-Activos'!S189)","v":53116.752440257558},49050.886141524978,103114.25132290862,22.759096188004246,7.5164508166001065,-2.9413568403143908,7.4579062672301522,9.1696985056050728,8.2538571687523099,-0.36258180632411374,{"$f":"IF('[2]MONE(M)CAPARD'!GS331=\"\",\"\",'[2]MONE(M)CAPARD'!GS331)","v":19807.526248805221},{"$f":"IF('[2]MONE(M)CARD'!HA331=\"\",\"\",'[2]MONE(M)CAPARD'!HA331)","v":11269.356354811758},{"$f":"IF('[2]MONE(M)CAPARD'!HB331=\"\",\"\",'[2]MONE(M)CAPARD'!HB331)","v":8538.1698939934631},"n.d.",{"$f":"IF('[10]II.2.Balance OSD-Activos'!J189=\"\",\"\",'[10]II.2.Balance OSD-Activos'!J189)","v":2048.0417976045687},{"$f":"IF('[10]II.2.Balance OSD-Activos'!N189=\"\",\"\",'[10]II.2.Balance OSD-Activos'!N189)","v":1473.628288836072},{"$f":"IF('[10]II.2.Balance OSD-Activos'!R189=\"\",\"\",'[10]II.2.Balance OSD-Activos'!R189)","v":71379.740865430416},{"$f":"IF('[10]II.2.Balance OSD-Activos'!S189=\"\",\"\",'[10]II.2.Balance OSD-Activos'!S189)","v":74018.087619277547},73427.782663034988,148919.49857114861,13.022905638959358,6.9978993977041215,1.4513036124878864,6.8344940071940474,10.406577634710445,8.6057378048180144,-0.18643383247627376,{"$f":"IF('[2]MONE(M)CAPARD'!AS331=\"\",\"\",'[2]MONE(M)CAPARD'!AS331)","v":1.75},{"$f":"IF('[2]MONE(M)CAPARD'!AT331=\"\",\"\",'[2]MONE(M)CAPARD'!AT331)","v":"n.a."},{"$f":"IF('[2]MONE(M)CAPARD'!AU331=\"\",\"\",'[2]MONE(M)CAPARD'!AU331)","v":3},{"$f":"IF('[2]MONE(M)CAPARD'!AV331=\"\",\"\",'[2]MONE(M)CAPARD'!AV331)","v":5.5},{"$f":"IF('[2]MONE(M)CAPARD'!AW331=\"\",\"\",'[2]MONE(M)CAPARD'!AW331)","v":"n.a."},{"$f":"IF('[2]MONE(M)CAPARD'!AX331=\"\",\"\",'[2]MONE(M)CAPARD'!AX331)","v":5},{"$f":"IF('[2]MONE(M)CAPARD'!AY331=\"\",\"\",'[2]MONE(M)CAPARD'!AY331)","v":"n.a."},{"$f":"IF('[2]FISCAL(M)'!$K331=\"\",\"\",'[2]FISCAL(M)'!$K331)","v":-4121.1893925282857},{"$f":"IF('[2]FISCAL(M)'!$L331=\"\",\"\",'[2]FISCAL(M)'!$L331)","v":"n.d."},{"$f":"IF('[2]FISCAL(M)'!$AY331=\"\",\"\",'[2]FISCAL(M)'!$AY331)","v":118410.1573687912},{"$f":"IF('[2]FISCAL(M)'!$BI331=\"\",\"\",'[2]FISCAL(M)'!$BI331)","v":61838.260817046736},{"$f":"IF('[2]FISCAL(M)'!$BS331=\"\",\"\",'[2]FISCAL(M)'!$BS331)","v":56571.896551744474},{"$f":"IF('[2]FISCAL(M)'!$AZ331=\"\",\"\",'[2]FISCAL(M)'!$AZ331)","v":139821.70736879122},{"$f":"IF('[2]FISCAL(M)'!$BJ331=\"\",\"\",'[2]FISCAL(M)'!$BJ331)","v":66661.170817046746},{"$f":"IF('[2]FISCAL(M)'!$BT331=\"\",\"\",'[2]FISCAL(M)'!$BT331)","v":73160.536551744459},{"$f":"IF('[3]MONE(M)'!$AO331=\"\",\"\",'[3]MONE(M)'!$AO331)","v":19662465.46634306},{"$f":"IF('[4]MONE(M)'!$AO331=\"\",\"\",'[4]MONE(M)'!$AO331)","v":11676.699460260001},{"$f":"IF('[5]MONE(M)'!$AO331=\"\",\"\",'[5]MONE(M)'!$AO331)","v":184127.28641310491},{"$f":"+'[1]MONE(M)'!$AO331","v":275080.33263966843},{"$f":"IF('[6]MONE(M)'!$AO331=\"\",\"\",'[6]MONE(M)'!$AO331)","v":135866.25819322138},{"$f":"IF('[7]MONE(M)'!$AO331=\"\",\"\",'[7]MONE(M)'!$AO331)","v":890865.70091500995},{"$f":"IF('[8]MONE(M)'!$AO331=\"\",\"\",'[8]MONE(M)'!$AO331)","v":46617.08338145},12.366203730359704,5.7139193652277598,5.9676497113355431,9.3756274526797476,19.647657652296679,11.610170275434207,9.0785374290003329,{"$f":"'[2]FISCAL(M)'!$K331","v":-4121.1893925282857},{"$f":"+'[2]REAL(A)'!$AO$36","v":259854.16291187517},-1.5859624284433389,{"$f":"IF('[2]FISCAL(M)'!$L331=\"\",\"\",'[2]FISCAL(M)'!$L331)","v":"n.d."},{"$f":"+'[2]REAL(A)'!$AP$36","v":317761.85891187517},{"$f":"IF(OR(CP324=\"n.d.\",CP324=\"\",CQ324=\"\",CQ324=\"n.d.\"),\"n.d.\",(CP324/CQ324)*100)","v":"n.d."},139441.27338511861,{"$f":"'[2]Gráfico REM'!BG325","v":24086.241321922094},{"$f":"'[2]Gráfico REM'!BH325","v":107872.97913798568},{"$f":"'[2]Gráfico REM'!BI325","v":7482.0529252108327},7.0506384426450408,4.5258334283248658,7.9069092441058864,3.2661419436369687,211727.2789031486,{"$f":"'[2]Gráfico REM'!BK325","v":26352.149836792094},{"$f":"'[2]Gráfico REM'!BL325","v":154490.06251943568},{"$f":"'[2]Gráfico REM'!BM325","v":30885.066546920832},6.5437125914026284,4.7384266052795887,8.2577856723706553,8.8690718617057129E-2]
[2016,"noviembre","2016-noviembre",{"$f":"IF('[2]REAL IPC(M)'!$AL332=\"\",\"\",+'[2]REAL IPC(M)'!$AL332)","v":2.0789138735681112},{"$f":"IF('[2]REAL IPC(M)'!$BE332=\"\",\"\",+'[2]REAL IPC(M)'!$BE332)","v":2.4742794945715518},{"$f":"IF('[2]REAL IPC(M)'!$AM332=\"\",\"\",+'[2]REAL IPC(M)'!$AM332)","v":1.9720916987042481},{"$f":"IF('[2]REAL IPC(M)'!$BI332=\"\",\"\",+'[2]REAL IPC(M)'!$BI332)","v":2.2170130658194953},{"$f":"IF('[2]REAL IMAE(M)'!BJ332=\"\",\"\",'[2]REAL IMAE(M)'!BJ332)","v":4.282235298638204},{"$f":"IF('[2]REAL IMAE(M)'!BK332=\"\",\"\",'[2]REAL IMAE(M)'!BK332)","v":4.2942924008003036},{"$f":"IF('[2]REAL IMAE(M)'!BN332=\"\",\"\",'[2]REAL IMAE(M)'!BN332)","v":4.3565806870210722},{"$f":"IF('[2]REAL IMAE(M)'!BO332=\"\",\"\",'[2]REAL IMAE(M)'!BO332)","v":4.4226319492805866},{"$f":"IF('[2]EXT RIN(M)'!$K332=\"\",\"\",'[2]EXT RIN(M)'!$K332)","v":31300.353677951352},{"$f":"IF(B325<>\"diciembre\",\"\",L325)","v":""},{"$f":"IF('[2]EXT RIN(M)'!$L332=\"\",\"\",'[2]EXT RIN(M)'!$L332)","v":35447.294872941355},"",{"$f":"IF('[2]MONE(M)CARD'!EG332=\"\",\"\",'[2]MONE(M)CARD'!EG332)","v":33629.40643301604},{"$f":"IF('[2]MONE(M)CARD'!EK332=\"\",\"\",'[2]MONE(M)CARD'!EK332)","v":51794.929891580505},{"$f":"IF('[2]MONE(M)CARD'!EP332=\"\",\"\",'[2]MONE(M)CARD'!EP332)","v":29449.42512187954},{"$f":"IF('[2]MONE(M)CARD'!ES332=\"\",\"\",'[2]MONE(M)CARD'!ES332)","v":6.2998810979007835},{"$f":"IF('[2]MONE(M)CARD'!EV332=\"\",\"\",'[2]MONE(M)CARD'!EV332)","v":5.0603277580514749},{"$f":"IF('[2]MONE(M)CARD'!EZ332=\"\",\"\",'[2]MONE(M)CARD'!EZ332)","v":5.0491057438569964},{"$f":"IF('[2]MONE(M)CAPARD'!FC332=\"\",\"\",'[2]MONE(M)CAPARD'!FC332)","v":41858.814911236026},{"$f":"IF('[2]MONE(M)CAPARD'!FG332=\"\",\"\",'[2]MONE(M)CAPARD'!FG332)","v":81557.651785300492},{"$f":"IF('[2]MONE(M)CAPARD'!FL332=\"\",\"\",'[2]MONE(M)CAPARD'!FL332)","v":29449.425121879554},{"$f":"IF('[2]MONE(M)CAPARD'!FO332=\"\",\"\",'[2]MONE(M)CAPARD'!FO332)","v":5.3268163541390301},{"$f":"IF('[2]MONE(M)CAPARD'!FR332=\"\",\"\",'[2]MONE(M)CAPARD'!FR332)","v":5.5286302762393102},{"$f":"IF('[2]MONE(M)CAPARD'!FV332=\"\",\"\",'[2]MONE(M)CAPARD'!FV332)","v":5.4295940268837883},{"$f":"IF('[2]MONE(M)CARD'!FV332=\"\",\"\",'[2]MONE(M)CARD'!FV332)","v":1560.4078513122427},{"$f":"IF('[2]MONE(M)CARD'!GD332=\"\",\"\",'[2]MONE(M)CARD'!GD332)","v":73.486073758707875},{"$f":"IF('[2]MONE(M)CARD'!GE332=\"\",\"\",'[2]MONE(M)CARD'!GE332)","v":9393.1736815566346},7.368945954933781,{"$f":"IF('[9]II.2.Balance OSD-Activos'!J190=\"\",\"\",'[9]II.2.Balance OSD-Activos'!J190)","v":205.62117486195609},{"$f":"IF('[9]II.2.Balance OSD-Activos'!N190=\"\",\"\",'[9]II.2.Balance OSD-Activos'!N190)","v":994.6929430621617},{"$f":"IF('[9]II.2.Balance OSD-Activos'!R190=\"\",\"\",'[9]II.2.Balance OSD-Activos'!R190)","v":49534.392766618599},{"$f":"IF('[9]II.2.Balance OSD-Activos'!S190=\"\",\"\",'[9]II.2.Balance OSD-Activos'!S190)","v":53712.295412973661},49740.013941480553,104447.00229751639,4.6915982842836268,7.4948839607733353,-1.3273318044266458,7.5068335394024688,8.7647721660859759,8.0516436787838366,-0.20221348996847333,{"$f":"IF('[2]MONE(M)CAPARD'!GS332=\"\",\"\",'[2]MONE(M)CAPARD'!GS332)","v":19850.28744750753},{"$f":"IF('[2]MONE(M)CARD'!HA332=\"\",\"\",'[2]MONE(M)CAPARD'!HA332)","v":11103.362324876634},{"$f":"IF('[2]MONE(M)CAPARD'!HB332=\"\",\"\",'[2]MONE(M)CAPARD'!HB332)","v":8746.9251226308952},"n.d.",{"$f":"IF('[10]II.2.Balance OSD-Activos'!J190=\"\",\"\",'[10]II.2.Balance OSD-Activos'!J190)","v":2055.5287359819563},{"$f":"IF('[10]II.2.Balance OSD-Activos'!N190=\"\",\"\",'[10]II.2.Balance OSD-Activos'!N190)","v":1504.8448894321616},{"$f":"IF('[10]II.2.Balance OSD-Activos'!R190=\"\",\"\",'[10]II.2.Balance OSD-Activos'!R190)","v":72055.651533058583},{"$f":"IF('[10]II.2.Balance OSD-Activos'!S190=\"\",\"\",'[10]II.2.Balance OSD-Activos'!S190)","v":74793.838422133675},74111.180269040546,150409.86358060635,11.752396696321155,6.5296395977827215,1.159016720633943,6.3878023411071849,9.9480009343021472,8.1441458918899876,-0.46159191292802682,{"$f":"IF('[2]MONE(M)CAPARD'!AS332=\"\",\"\",'[2]MONE(M)CAPARD'!AS332)","v":1.75},{"$f":"IF('[2]MONE(M)CAPARD'!AT332=\"\",\"\",'[2]MONE(M)CAPARD'!AT332)","v":"n.a."},{"$f":"IF('[2]MONE(M)CAPARD'!AU332=\"\",\"\",'[2]MONE(M)CAPARD'!AU332)","v":3},{"$f":"IF('[2]MONE(M)CAPARD'!AV332=\"\",\"\",'[2]MONE(M)CAPARD'!AV332)","v":5.5},{"$f":"IF('[2]MONE(M)CAPARD'!AW332=\"\",\"\",'[2]MONE(M)CAPARD'!AW332)","v":"n.a."},{"$f":"IF('[2]MONE(M)CAPARD'!AX332=\"\",\"\",'[2]MONE(M)CAPARD'!AX332)","v":5.5},{"$f":"IF('[2]MONE(M)CAPARD'!AY332=\"\",\"\",'[2]MONE(M)CAPARD'!AY332)","v":"n.a."},{"$f":"IF('[2]FISCAL(M)'!$K332=\"\",\"\",'[2]FISCAL(M)'!$K332)","v":-4801.0742766071589},{"$f":"IF('[2]FISCAL(M)'!$L332=\"\",\"\",'[2]FISCAL(M)'!$L332)","v":"n.d."},{"$f":"IF('[2]FISCAL(M)'!$AY332=\"\",\"\",'[2]FISCAL(M)'!$AY332)","v":118005.83784966861},{"$f":"IF('[2]FISCAL(M)'!$BI332=\"\",\"\",'[2]FISCAL(M)'!$BI332)","v":61170.302847340718},{"$f":"IF('[2]FISCAL(M)'!$BS332=\"\",\"\",'[2]FISCAL(M)'!$BS332)","v":56835.535002327873},{"$f":"IF('[2]FISCAL(M)'!$AZ332=\"\",\"\",'[2]FISCAL(M)'!$AZ332)","v":139524.53784966859},{"$f":"IF('[2]FISCAL(M)'!$BJ332=\"\",\"\",'[2]FISCAL(M)'!$BJ332)","v":65952.612847340715},{"$f":"IF('[2]FISCAL(M)'!$BT332=\"\",\"\",'[2]FISCAL(M)'!$BT332)","v":73571.925002327887},{"$f":"IF('[3]MONE(M)'!$AO332=\"\",\"\",'[3]MONE(M)'!$AO332)","v":19855927.539295241},{"$f":"IF('[4]MONE(M)'!$AO332=\"\",\"\",'[4]MONE(M)'!$AO332)","v":11780.790109060001},{"$f":"IF('[5]MONE(M)'!$AO332=\"\",\"\",'[5]MONE(M)'!$AO332)","v":186134.81745132068},{"$f":"+'[1]MONE(M)'!$AO332","v":280536.2784922038},{"$f":"IF('[6]MONE(M)'!$AO332=\"\",\"\",'[6]MONE(M)'!$AO332)","v":138146.11530837673},{"$f":"IF('[7]MONE(M)'!$AO332=\"\",\"\",'[7]MONE(M)'!$AO332)","v":905248.39266111003},{"$f":"IF('[8]MONE(M)'!$AO332=\"\",\"\",'[8]MONE(M)'!$AO332)","v":46778.290020079992},12.903849542799261,5.4434743445559874,6.0260948660573632,9.9205489935114919,18.703604357627569,11.696356462873014,8.0382702238769976,{"$f":"'[2]FISCAL(M)'!$K332","v":-4801.0742766071589},{"$f":"+'[2]REAL(A)'!$AO$36","v":259854.16291187517},-1.8476033721404557,{"$f":"IF('[2]FISCAL(M)'!$L332=\"\",\"\",'[2]FISCAL(M)'!$L332)","v":"n.d."},{"$f":"+'[2]REAL(A)'!$AP$36","v":317761.85891187517},"n.d.",140596.05113287349,{"$f":"'[2]Gráfico REM'!BG326","v":23867.795834297485},{"$f":"'[2]Gráfico REM'!BH326","v":109128.1978045711},{"$f":"'[2]Gráfico REM'!BI326","v":7600.0574940049009},6.9390189101497635,4.226182353453356,7.8182973790777543,3.2870163379744799,212702.4813216535,{"$f":"'[2]Gráfico REM'!BK326","v":26067.312822857486},{"$f":"'[2]Gráfico REM'!BL326","v":155906.48782465109},{"$f":"'[2]Gráfico REM'!BM326","v":30728.6806741449},5.9645582290845267,4.0047326842043152,7.8842040636459831,-1.3634640147822896]
[2016,"diciembre","2016-diciembre",{"$f":"IF('[2]REAL IPC(M)'!$AL333=\"\",\"\",+'[2]REAL IPC(M)'!$AL333)","v":2.229276895943566},{"$f":"IF('[2]REAL IPC(M)'!$BE333=\"\",\"\",+'[2]REAL IPC(M)'!$BE333)","v":2.4955199827081165},{"$f":"IF('[2]REAL IPC(M)'!$AM333=\"\",\"\",+'[2]REAL IPC(M)'!$AM333)","v":2.1173795651556082},{"$f":"IF('[2]REAL IPC(M)'!$BI333=\"\",\"\",+'[2]REAL IPC(M)'!$BI333)","v":2.2350690306625731},{"$f":"IF('[2]REAL IMAE(M)'!BJ333=\"\",\"\",'[2]REAL IMAE(M)'!BJ333)","v":4.9075332185856357},{"$f":"IF('[2]REAL IMAE(M)'!BK333=\"\",\"\",'[2]REAL IMAE(M)'!BK333)","v":4.2456555169913424},{"$f":"IF('[2]REAL IMAE(M)'!BN333=\"\",\"\",'[2]REAL IMAE(M)'!BN333)","v":4.8700557526238697},{"$f":"IF('[2]REAL IMAE(M)'!BO333=\"\",\"\",'[2]REAL IMAE(M)'!BO333)","v":4.3706208574566086},{"$f":"IF('[2]EXT RIN(M)'!$K333=\"\",\"\",'[2]EXT RIN(M)'!$K333)","v":31978.994991460706},{"$f":"IF(B326<>\"diciembre\",\"\",L326)","v":31978.994991460706},{"$f":"IF('[2]EXT RIN(M)'!$L333=\"\",\"\",'[2]EXT RIN(M)'!$L333)","v":36481.172465990705},36481.172465990705,{"$f":"IF('[2]MONE(M)CARD'!EG333=\"\",\"\",'[2]MONE(M)CARD'!EG333)","v":35035.852645129438},{"$f":"IF('[2]MONE(M)CARD'!EK333=\"\",\"\",'[2]MONE(M)CARD'!EK333)","v":52734.018981253881},{"$f":"IF('[2]MONE(M)CARD'!EP333=\"\",\"\",'[2]MONE(M)CARD'!EP333)","v":29464.351342952679},{"$f":"IF('[2]MONE(M)CARD'!ES333=\"\",\"\",'[2]MONE(M)CARD'!ES333)","v":5.7904515605780249},{"$f":"IF('[2]MONE(M)CARD'!EV333=\"\",\"\",'[2]MONE(M)CARD'!EV333)","v":5.5696084095510079},{"$f":"IF('[2]MONE(M)CARD'!EZ333=\"\",\"\",'[2]MONE(M)CARD'!EZ333)","v":5.4055464977819767},{"$f":"IF('[2]MONE(M)CAPARD'!FC333=\"\",\"\",'[2]MONE(M)CAPARD'!FC333)","v":43257.327998569439},{"$f":"IF('[2]MONE(M)CAPARD'!FG333=\"\",\"\",'[2]MONE(M)CAPARD'!FG333)","v":82628.770913263899},{"$f":"IF('[2]MONE(M)CAPARD'!FL333=\"\",\"\",'[2]MONE(M)CAPARD'!FL333)","v":29464.351342952694},{"$f":"IF('[2]MONE(M)CAPARD'!FO333=\"\",\"\",'[2]MONE(M)CAPARD'!FO333)","v":4.6560910222037455},{"$f":"IF('[2]MONE(M)CAPARD'!FR333=\"\",\"\",'[2]MONE(M)CAPARD'!FR333)","v":5.4937383771444193},{"$f":"IF('[2]MONE(M)CAPARD'!FV333=\"\",\"\",'[2]MONE(M)CAPARD'!FV333)","v":5.3844084459765629},{"$f":"IF('[2]MONE(M)CARD'!FV333=\"\",\"\",'[2]MONE(M)CARD'!FV333)","v":1622.7497677285387},{"$f":"IF('[2]MONE(M)CARD'!GD333=\"\",\"\",'[2]MONE(M)CARD'!GD333)","v":111.37005601944571},{"$f":"IF('[2]MONE(M)CARD'!GE333=\"\",\"\",'[2]MONE(M)CARD'!GE333)","v":8928.8032698109055},3.7765087246893314,{"$f":"IF('[9]II.2.Balance OSD-Activos'!J191=\"\",\"\",'[9]II.2.Balance OSD-Activos'!J191)","v":196.87840810774156},{"$f":"IF('[9]II.2.Balance OSD-Activos'!N191=\"\",\"\",'[9]II.2.Balance OSD-Activos'!N191)","v":972.91215524676522},{"$f":"IF('[9]II.2.Balance OSD-Activos'!R191=\"\",\"\",'[9]II.2.Balance OSD-Activos'!R191)","v":50049.10771173954},{"$f":"IF('[9]II.2.Balance OSD-Activos'!S191=\"\",\"\",'[9]II.2.Balance OSD-Activos'!S191)","v":54207.363799129285},50245.986119847279,105426.26207422334,1.4111837973521224,7.6127802076133566,-3.4516662411757215,7.6386735273662687,9.4672698895090779,8.4426986273815849,0.39105494859774836,{"$f":"IF('[2]MONE(M)CAPARD'!GS333=\"\",\"\",'[2]MONE(M)CAPARD'!GS333)","v":20089.214314559558},{"$f":"IF('[2]MONE(M)CARD'!HA333=\"\",\"\",'[2]MONE(M)CAPARD'!HA333)","v":10588.321411980907},{"$f":"IF('[2]MONE(M)CAPARD'!HB333=\"\",\"\",'[2]MONE(M)CAPARD'!HB333)","v":9500.892902578651},"n.d.",{"$f":"IF('[10]II.2.Balance OSD-Activos'!J191=\"\",\"\",'[10]II.2.Balance OSD-Activos'!J191)","v":2103.8598426777417},{"$f":"IF('[10]II.2.Balance OSD-Activos'!N191=\"\",\"\",'[10]II.2.Balance OSD-Activos'!N191)","v":1503.0706030667654},{"$f":"IF('[10]II.2.Balance OSD-Activos'!R191=\"\",\"\",'[10]II.2.Balance OSD-Activos'!R191)","v":72428.230906919533},{"$f":"IF('[10]II.2.Balance OSD-Activos'!S191=\"\",\"\",'[10]II.2.Balance OSD-Activos'!S191)","v":75450.020437339292},74532.090749597279,151485.18179000332,15.808443446500785,6.9464698671040992,0.54961655978646995,6.7092771603176837,10.378688381333045,8.5592447963666949,0.41509890447670728,{"$f":"IF('[2]MONE(M)CAPARD'!AS333=\"\",\"\",'[2]MONE(M)CAPARD'!AS333)","v":1.75},{"$f":"IF('[2]MONE(M)CAPARD'!AT333=\"\",\"\",'[2]MONE(M)CAPARD'!AT333)","v":"n.a."},{"$f":"IF('[2]MONE(M)CAPARD'!AU333=\"\",\"\",'[2]MONE(M)CAPARD'!AU333)","v":3},{"$f":"IF('[2]MONE(M)CAPARD'!AV333=\"\",\"\",'[2]MONE(M)CAPARD'!AV333)","v":5.5},{"$f":"IF('[2]MONE(M)CAPARD'!AW333=\"\",\"\",'[2]MONE(M)CAPARD'!AW333)","v":"n.a."},{"$f":"IF('[2]MONE(M)CAPARD'!AX333=\"\",\"\",'[2]MONE(M)CAPARD'!AX333)","v":5.5},{"$f":"IF('[2]MONE(M)CAPARD'!AY333=\"\",\"\",'[2]MONE(M)CAPARD'!AY333)","v":"n.a."},{"$f":"IF('[2]FISCAL(M)'!$K333=\"\",\"\",'[2]FISCAL(M)'!$K333)","v":-6594.787543339723},{"$f":"IF('[2]FISCAL(M)'!$L333=\"\",\"\",'[2]FISCAL(M)'!$L333)","v":-8796.7875433397239},{"$f":"IF('[2]FISCAL(M)'!$AY333=\"\",\"\",'[2]FISCAL(M)'!$AY333)","v":118318.56217053559},{"$f":"IF('[2]FISCAL(M)'!$BI333=\"\",\"\",'[2]FISCAL(M)'!$BI333)","v":60759.11472310462},{"$f":"IF('[2]FISCAL(M)'!$BS333=\"\",\"\",'[2]FISCAL(M)'!$BS333)","v":57559.447447430968},{"$f":"IF('[2]FISCAL(M)'!$AZ333=\"\",\"\",'[2]FISCAL(M)'!$AZ333)","v":139920.2021705356},{"$f":"IF('[2]FISCAL(M)'!$BJ333=\"\",\"\",'[2]FISCAL(M)'!$BJ333)","v":65458.864723104634},{"$f":"IF('[2]FISCAL(M)'!$BT333=\"\",\"\",'[2]FISCAL(M)'!$BT333)","v":74461.337447430968},{"$f":"IF('[3]MONE(M)'!$AO333=\"\",\"\",'[3]MONE(M)'!$AO333)","v":20012089.320434459},{"$f":"IF('[4]MONE(M)'!$AO333=\"\",\"\",'[4]MONE(M)'!$AO333)","v":11756.41982241},{"$f":"IF('[5]MONE(M)'!$AO333=\"\",\"\",'[5]MONE(M)'!$AO333)","v":189345.88553657505},{"$f":"+'[1]MONE(M)'!$AO333","v":288448.18208633648},{"$f":"IF('[6]MONE(M)'!$AO333=\"\",\"\",'[6]MONE(M)'!$AO333)","v":139683.29761648248},{"$f":"IF('[7]MONE(M)'!$AO333=\"\",\"\",'[7]MONE(M)'!$AO333)","v":912477.50303400005},{"$f":"IF('[8]MONE(M)'!$AO333=\"\",\"\",'[8]MONE(M)'!$AO333)","v":46861.199803229989},12.158417364699691,4.9681376664200805,6.6840962486078404,11.915041732264854,17.512010337992635,11.407213499098457,8.5815479642203698,{"$f":"'[2]FISCAL(M)'!$K333","v":-6594.787543339723},{"$f":"+'[2]REAL(A)'!$AO$36","v":259854.16291187517},-2.5378802746278208,{"$f":"IF('[2]FISCAL(M)'!$L333=\"\",\"\",'[2]FISCAL(M)'!$L333)","v":-8796.7875433397239},{"$f":"+'[2]REAL(A)'!$AP$36","v":317761.85891187517},{"$f":"IF(OR(CP326=\"n.d.\",CP326=\"\",CQ326=\"\",CQ326=\"n.d.\"),\"\",(CP326/CQ326)*100)","v":-2.7683585353707714},141636.1096475524,{"$f":"'[2]Gráfico REM'!BG327","v":23770.021656174773},{"$f":"'[2]Gráfico REM'!BH327","v":110044.77252571487},{"$f":"'[2]Gráfico REM'!BI327","v":7821.3154656627394},7.3694607345911489,5.0593820181032756,8.0919995791586263,4.5238770918048621,213946.46870054238,{"$f":"'[2]Gráfico REM'!BK327","v":25952.997185814773},{"$f":"'[2]Gráfico REM'!BL327","v":156905.97232894486},{"$f":"'[2]Gráfico REM'!BM327","v":31087.499185782748},6.3538278883486621,4.8014293470285851,8.2377441060801573,-1.1106103093925013]
[2017,"enero","2017-enero",{"$f":"IF('[2]REAL IPC(M)'!$AL334=\"\",\"\",+'[2]REAL IPC(M)'!$AL334)","v":2.4073554183043244},{"$f":"IF('[2]REAL IPC(M)'!$BE334=\"\",\"\",+'[2]REAL IPC(M)'!$BE334)","v":2.5177347012693252},{"$f":"IF('[2]REAL IPC(M)'!$AM334=\"\",\"\",+'[2]REAL IPC(M)'!$AM334)","v":2.2990945104697236},{"$f":"IF('[2]REAL IPC(M)'!$BI334=\"\",\"\",+'[2]REAL IPC(M)'!$BI334)","v":2.2538420276929427},{"$f":"IF('[2]REAL IMAE(M)'!BJ334=\"\",\"\",'[2]REAL IMAE(M)'!BJ334)","v":5.1777455868300626},{"$f":"IF('[2]REAL IMAE(M)'!BK334=\"\",\"\",'[2]REAL IMAE(M)'!BK334)","v":4.1939662593001747},{"$f":"IF('[2]REAL IMAE(M)'!BN334=\"\",\"\",'[2]REAL IMAE(M)'!BN334)","v":5.1248452636483366},{"$f":"IF('[2]REAL IMAE(M)'!BO334=\"\",\"\",'[2]REAL IMAE(M)'!BO334)","v":4.3146844118352679},{"$f":"IF('[2]EXT RIN(M)'!$K334=\"\",\"\",'[2]EXT RIN(M)'!$K334)","v":33044.776185614988},null,{"$f":"IF('[2]EXT RIN(M)'!$L334=\"\",\"\",'[2]EXT RIN(M)'!$L334)","v":37365.651209194984},"",{"$f":"IF('[2]MONE(M)CARD'!EG334=\"\",\"\",'[2]MONE(M)CARD'!EG334)","v":34634.623627270164},{"$f":"IF('[2]MONE(M)CARD'!EK334=\"\",\"\",'[2]MONE(M)CARD'!EK334)","v":52603.893062113217},{"$f":"IF('[2]MONE(M)CARD'!EP334=\"\",\"\",'[2]MONE(M)CARD'!EP334)","v":29953.697019964427},{"$f":"IF('[2]MONE(M)CARD'!ES334=\"\",\"\",'[2]MONE(M)CARD'!ES334)","v":6.5597175148352171},{"$f":"IF('[2]MONE(M)CARD'!EV334=\"\",\"\",'[2]MONE(M)CARD'!EV334)","v":6.0086368734983298},{"$f":"IF('[2]MONE(M)CARD'!EZ334=\"\",\"\",'[2]MONE(M)CARD'!EZ334)","v":6.2363153246745462},{"$f":"IF('[2]MONE(M)CAPARD'!FC334=\"\",\"\",'[2]MONE(M)CAPARD'!FC334)","v":42755.617928570158},{"$f":"IF('[2]MONE(M)CAPARD'!FG334=\"\",\"\",'[2]MONE(M)CAPARD'!FG334)","v":82847.154637153202},{"$f":"IF('[2]MONE(M)CAPARD'!FL334=\"\",\"\",'[2]MONE(M)CAPARD'!FL334)","v":29953.697019964398},{"$f":"IF('[2]MONE(M)CAPARD'!FO334=\"\",\"\",'[2]MONE(M)CAPARD'!FO334)","v":5.0738941992790831},{"$f":"IF('[2]MONE(M)CAPARD'!FR334=\"\",\"\",'[2]MONE(M)CAPARD'!FR334)","v":5.5707609929882329},{"$f":"IF('[2]MONE(M)CAPARD'!FV334=\"\",\"\",'[2]MONE(M)CAPARD'!FV334)","v":5.8250889867841327},{"$f":"IF('[2]MONE(M)CARD'!FV334=\"\",\"\",'[2]MONE(M)CARD'!FV334)","v":1632.3338248399382},{"$f":"IF('[2]MONE(M)CARD'!GD334=\"\",\"\",'[2]MONE(M)CARD'!GD334)","v":83.881209104167795},{"$f":"IF('[2]MONE(M)CARD'!GE334=\"\",\"\",'[2]MONE(M)CARD'!GE334)","v":9825.8575882210989},21.874752688303811,{"$f":"IF('[9]II.2.Balance OSD-Activos'!J192=\"\",\"\",'[9]II.2.Balance OSD-Activos'!J192)","v":201.63967569520116},{"$f":"IF('[9]II.2.Balance OSD-Activos'!N192=\"\",\"\",'[9]II.2.Balance OSD-Activos'!N192)","v":1022.7373629648717},{"$f":"IF('[9]II.2.Balance OSD-Activos'!R192=\"\",\"\",'[9]II.2.Balance OSD-Activos'!R192)","v":50230.759928395339},{"$f":"IF('[9]II.2.Balance OSD-Activos'!S192=\"\",\"\",'[9]II.2.Balance OSD-Activos'!S192)","v":54382.024554504984},50432.39960409054,105837.1615215604,{"$f":"IF(OR(AF327=\"\",AF315=\"\"),\"\",((AF327/AF315)-1)*100)","v":-1.782534097623556},{"$f":"IF(OR(AJ327=\"\",AJ315=\"\"),\"\",((AJ327/AJ315)-1)*100)","v":7.9042607745056115},{"$f":"IF(OR(AG327=\"\",AG315=\"\"),\"\",((AG327/AG315)-1)*100)","v":2.5205198048934507},{"$f":"IF(OR(AH327=\"\",AH315=\"\"),\"\",((AH327/AH315)-1)*100)","v":7.9469981836018944},{"$f":"IF(OR(AI327=\"\",AI315=\"\"),\"\",((AI327/AI315)-1)*100)","v":9.7254614655169824},{"$f":"IF(OR(AK327=\"\",AK315=\"\"),\"\",((AK327/AK315)-1)*100)","v":8.7767529391980617},{"$f":"IF(OR(AQ327=\"\",AQ326=\"\"),\"\",AQ327-AQ326)","v":0.33405431181647671},{"$f":"IF('[2]MONE(M)CAPARD'!GS334=\"\",\"\",'[2]MONE(M)CAPARD'!GS334)","v":20288.595434045623},{"$f":"IF('[2]MONE(M)CARD'!HA334=\"\",\"\",'[2]MONE(M)CAPARD'!HA334)","v":11619.759350361099},{"$f":"IF('[2]MONE(M)CAPARD'!HB334=\"\",\"\",'[2]MONE(M)CAPARD'!HB334)","v":8668.8360836845241},"n.d.",{"$f":"IF('[10]II.2.Balance OSD-Activos'!J192=\"\",\"\",'[10]II.2.Balance OSD-Activos'!J192)","v":2111.9245297452017},{"$f":"IF('[10]II.2.Balance OSD-Activos'!N192=\"\",\"\",'[10]II.2.Balance OSD-Activos'!N192)","v":1525.9898408748718},{"$f":"IF('[10]II.2.Balance OSD-Activos'!R192=\"\",\"\",'[10]II.2.Balance OSD-Activos'!R192)","v":72699.780084735336},{"$f":"IF('[10]II.2.Balance OSD-Activos'!S192=\"\",\"\",'[10]II.2.Balance OSD-Activos'!S192)","v":75769.805549024983},74811.704614480535,{"$f":"IF(OR(AW327=\"\",AX327=\"\",AY327=\"\",AZ327=\"\"),\"\",SUM(AW327:AZ327))","v":152107.50000438039},{"$f":"IF(OR(AW327=\"\",AW315=\"\"),\"\",((AW327/AW315)-1)*100)","v":13.361989975620903},{"$f":"IF(OR(BA327=\"\",BA315=\"\"),\"\",((BA327/BA315)-1)*100)","v":7.0052883294684065},{"$f":"IF(OR(AX327=\"\",AX315=\"\"),\"\",((AX327/AX315)-1)*100)","v":4.1188156824660815},{"$f":"IF(OR(AY327=\"\",AY315=\"\"),\"\",((AY327/AY315)-1)*100)","v":6.8312647751581412},{"$f":"IF(OR(AZ327=\"\",AZ315=\"\"),\"\",((AZ327/AZ315)-1)*100)","v":10.486476639063147},{"$f":"IF(OR(BB327=\"\",BB315=\"\"),\"\",((BB327/BB315)-1)*100)","v":8.6808172342906822},{"$f":"IF(OR(BH327=\"\",BH326=\"\"),\"\",BH327-BH326)","v":0.12157243792398731},{"$f":"IF('[2]MONE(M)CAPARD'!AS334=\"\",\"\",'[2]MONE(M)CAPARD'!AS334)","v":1.75},{"$f":"IF('[2]MONE(M)CAPARD'!AT334=\"\",\"\",'[2]MONE(M)CAPARD'!AT334)","v":"n.a."},{"$f":"IF('[2]MONE(M)CAPARD'!AU334=\"\",\"\",'[2]MONE(M)CAPARD'!AU334)","v":3},{"$f":"IF('[2]MONE(M)CAPARD'!AV334=\"\",\"\",'[2]MONE(M)CAPARD'!AV334)","v":5.5},{"$f":"IF('[2]MONE(M)CAPARD'!AW334=\"\",\"\",'[2]MONE(M)CAPARD'!AW334)","v":"n.a."},{"$f":"IF('[2]MONE(M)CAPARD'!AX334=\"\",\"\",'[2]MONE(M)CAPARD'!AX334)","v":5.5},{"$f":"IF('[2]MONE(M)CAPARD'!AY334=\"\",\"\",'[2]MONE(M)CAPARD'!AY334)","v":"n.a."},{"$f":"IF('[2]FISCAL(M)'!$K334=\"\",\"\",'[2]FISCAL(M)'!$K334)","v":-156.29895187211162},{"$f":"IF('[2]FISCAL(M)'!$L334=\"\",\"\",'[2]FISCAL(M)'!$L334)","v":"n.d."},{"$f":"IF('[2]FISCAL(M)'!$AY334=\"\",\"\",'[2]FISCAL(M)'!$AY334)","v":121178.29187048788},{"$f":"IF('[2]FISCAL(M)'!$BI334=\"\",\"\",'[2]FISCAL(M)'!$BI334)","v":61920.218788729937},{"$f":"IF('[2]FISCAL(M)'!$BS334=\"\",\"\",'[2]FISCAL(M)'!$BS334)","v":59258.073081757946},{"$f":"IF('[2]FISCAL(M)'!$AZ334=\"\",\"\",'[2]FISCAL(M)'!$AZ334)","v":143030.75187048787},{"$f":"IF('[2]FISCAL(M)'!$BJ334=\"\",\"\",'[2]FISCAL(M)'!$BJ334)","v":66594.458788729928},{"$f":"IF('[2]FISCAL(M)'!$BT334=\"\",\"\",'[2]FISCAL(M)'!$BT334)","v":76436.293081757947},{"$f":"IF('[3]MONE(M)'!$AO334=\"\",\"\",'[3]MONE(M)'!$AO334)","v":20175859.80472406},{"$f":"IF('[4]MONE(M)'!$AO334=\"\",\"\",'[4]MONE(M)'!$AO334)","v":11870.910147530001},{"$f":"IF('[5]MONE(M)'!$AO334=\"\",\"\",'[5]MONE(M)'!$AO334)","v":189078.5473289947},{"$f":"+'[1]MONE(M)'!$AO334","v":290749.17716967652},{"$f":"IF('[6]MONE(M)'!$AO334=\"\",\"\",'[6]MONE(M)'!$AO334)","v":141163.63279584007},{"$f":"IF('[7]MONE(M)'!$AO334=\"\",\"\",'[7]MONE(M)'!$AO334)","v":913799.20926712011},{"$f":"IF('[8]MONE(M)'!$AO334=\"\",\"\",'[8]MONE(M)'!$AO334)","v":47099.756926850008},12.556381352263069,5.3237769079120145,6.1780908224726483,12.145577932808971,18.663532732878551,11.321829171175658,8.2779128203285488,{"$f":"'[2]FISCAL(M)'!$K334","v":-156.29895187211162},{"$f":"+'[2]REAL(A)'!$AO$37","v":274097.38374316029},{"$f":"IF(OR(CM327=\"n.d.\",CM327=\"\",CN327=\"\",CN327=\"n.d.\"),\"\",(CM327/CN327)*100)","v":-5.7023146203602472E-2},{"$f":"IF('[2]FISCAL(M)'!$L334=\"\",\"\",'[2]FISCAL(M)'!$L334)","v":"n.d."},{"$f":"+'[2]REAL(A)'!$AP$37","v":336300.10894762492},"n.d.",{"$f":"+IF(OR(CT327=\"\",+CU327=\"\",+CV327=\"\"),\"\",(CT327+CU327+CV327))","v":142997.4987473739},{"$f":"'[2]Gráfico REM'!BG328","v":24672.607805914595},{"$f":"'[2]Gráfico REM'!BH328","v":110563.08508363491},{"$f":"'[2]Gráfico REM'!BI328","v":7761.8058578243854},{"$f":"IFERROR(+((CS327/CS315)-1)*100,\"\")","v":7.9254284639379557},{"$f":"IFERROR(+((CT327/CT315)-1)*100,\"\")","v":6.4188564628959277},{"$f":"IFERROR(+((CU327/CU315)-1)*100,\"\")","v":8.5023333391218259},{"$f":"IFERROR(+((CV327/CV315)-1)*100,\"\")","v":4.7070864059164608},{"$f":"+IF(OR(DB327=\"\",+DC327=\"\",+DD327=\"\"),\"\",(DB327+DC327+DD327))","v":215110.70800988391},{"$f":"'[2]Gráfico REM'!BK328","v":26884.039198164595},{"$f":"'[2]Gráfico REM'!BL328","v":157662.84201048492},{"$f":"'[2]Gráfico REM'!BM328","v":30563.826801234383},{"$f":"IFERROR(+((DA327/DA315)-1)*100,\"\")","v":6.6464948507296562},{"$f":"IFERROR(+((DB327/DB315)-1)*100,\"\")","v":5.8355272792212309},{"$f":"IFERROR(+((DC327/DC315)-1)*100,\"\")","v":8.4351931965871874},{"$f":"IFERROR(+((DD327/DD315)-1)*100,\"\")","v":-1.1023318360639078}]
[2017,"febrero","2017-febrero",{"$f":"IF('[2]REAL IPC(M)'!$AL335=\"\",\"\",+'[2]REAL IPC(M)'!$AL335)","v":2.9000772417667298},{"$f":"IF('[2]REAL IPC(M)'!$BE335=\"\",\"\",+'[2]REAL IPC(M)'!$BE335)","v":2.5405916140565976},{"$f":"IF('[2]REAL IPC(M)'!$AM335=\"\",\"\",+'[2]REAL IPC(M)'!$AM335)","v":2.7455420322672008},{"$f":"IF('[2]REAL IPC(M)'!$BI335=\"\",\"\",+'[2]REAL IPC(M)'!$BI335)","v":2.2729706513104686},{"$f":"IF('[2]REAL IMAE(M)'!BJ335=\"\",\"\",'[2]REAL IMAE(M)'!BJ335)","v":5.5277404643337524},{"$f":"IF('[2]REAL IMAE(M)'!BK335=\"\",\"\",'[2]REAL IMAE(M)'!BK335)","v":4.1391854863665145},{"$f":"IF('[2]REAL IMAE(M)'!BN335=\"\",\"\",'[2]REAL IMAE(M)'!BN335)","v":5.8466379997833995},{"$f":"IF('[2]REAL IMAE(M)'!BO335=\"\",\"\",'[2]REAL IMAE(M)'!BO335)","v":4.2545436430480921},{"$f":"IF('[2]EXT RIN(M)'!$K335=\"\",\"\",'[2]EXT RIN(M)'!$K335)","v":33412.314968429993},null,{"$f":"IF('[2]EXT RIN(M)'!$L335=\"\",\"\",'[2]EXT RIN(M)'!$L335)","v":37634.337514009996},"",{"$f":"IF('[2]MONE(M)CARD'!EG335=\"\",\"\",'[2]MONE(M)CARD'!EG335)","v":34701.72654776962},{"$f":"IF('[2]MONE(M)CARD'!EK335=\"\",\"\",'[2]MONE(M)CARD'!EK335)","v":53398.013427131926},{"$f":"IF('[2]MONE(M)CARD'!EP335=\"\",\"\",'[2]MONE(M)CARD'!EP335)","v":30594.785361707312},{"$f":"IF('[2]MONE(M)CARD'!ES335=\"\",\"\",'[2]MONE(M)CARD'!ES335)","v":5.9501248769826987},{"$f":"IF('[2]MONE(M)CARD'!EV335=\"\",\"\",'[2]MONE(M)CARD'!EV335)","v":5.9565858624241796},{"$f":"IF('[2]MONE(M)CARD'!EZ335=\"\",\"\",'[2]MONE(M)CARD'!EZ335)","v":6.3759246373113587},{"$f":"IF('[2]MONE(M)CAPARD'!FC335=\"\",\"\",'[2]MONE(M)CAPARD'!FC335)","v":42759.945258479624},{"$f":"IF('[2]MONE(M)CAPARD'!FG335=\"\",\"\",'[2]MONE(M)CAPARD'!FG335)","v":83939.45535686193},{"$f":"IF('[2]MONE(M)CAPARD'!FL335=\"\",\"\",'[2]MONE(M)CAPARD'!FL335)","v":30594.785361707327},{"$f":"IF('[2]MONE(M)CAPARD'!FO335=\"\",\"\",'[2]MONE(M)CAPARD'!FO335)","v":4.668951931707932},{"$f":"IF('[2]MONE(M)CAPARD'!FR335=\"\",\"\",'[2]MONE(M)CAPARD'!FR335)","v":5.7204314969651726},{"$f":"IF('[2]MONE(M)CAPARD'!FV335=\"\",\"\",'[2]MONE(M)CAPARD'!FV335)","v":6.0812732999682373},{"$f":"IF('[2]MONE(M)CARD'!FV335=\"\",\"\",'[2]MONE(M)CARD'!FV335)","v":1593.1131759978562},{"$f":"IF('[2]MONE(M)CARD'!GD335=\"\",\"\",'[2]MONE(M)CARD'!GD335)","v":89.611215369437545},{"$f":"IF('[2]MONE(M)CARD'!GE335=\"\",\"\",'[2]MONE(M)CARD'!GE335)","v":9948.9965844044364},14.758192411143645,{"$f":"IF('[9]II.2.Balance OSD-Activos'!J193=\"\",\"\",'[9]II.2.Balance OSD-Activos'!J193)","v":309.2152534492609},{"$f":"IF('[9]II.2.Balance OSD-Activos'!N193=\"\",\"\",'[9]II.2.Balance OSD-Activos'!N193)","v":986.55007164375093},{"$f":"IF('[9]II.2.Balance OSD-Activos'!R193=\"\",\"\",'[9]II.2.Balance OSD-Activos'!R193)","v":50408.932565931609},{"$f":"IF('[9]II.2.Balance OSD-Activos'!S193=\"\",\"\",'[9]II.2.Balance OSD-Activos'!S193)","v":54589.410376781059},50718.147819380873,106294.10826780568,43.237307270813517,8.0191410924261408,-0.14310957996118701,7.8564700682306476,9.4668057028995491,8.6747920629605559,-0.10196087623750572,{"$f":"IF('[2]MONE(M)CAPARD'!GS335=\"\",\"\",'[2]MONE(M)CAPARD'!GS335)","v":20087.246931842106},{"$f":"IF('[2]MONE(M)CARD'!HA335=\"\",\"\",'[2]MONE(M)CAPARD'!HA335)","v":11738.482711894438},{"$f":"IF('[2]MONE(M)CAPARD'!HB335=\"\",\"\",'[2]MONE(M)CAPARD'!HB335)","v":8348.7642199476686},"n.d.",{"$f":"IF('[10]II.2.Balance OSD-Activos'!J193=\"\",\"\",'[10]II.2.Balance OSD-Activos'!J193)","v":2221.4049071192608},{"$f":"IF('[10]II.2.Balance OSD-Activos'!N193=\"\",\"\",'[10]II.2.Balance OSD-Activos'!N193)","v":1470.4904502237507},{"$f":"IF('[10]II.2.Balance OSD-Activos'!R193=\"\",\"\",'[10]II.2.Balance OSD-Activos'!R193)","v":72991.779344751601},{"$f":"IF('[10]II.2.Balance OSD-Activos'!S193=\"\",\"\",'[10]II.2.Balance OSD-Activos'!S193)","v":76137.829229681069},75213.184251870858,152821.50393177569,21.55803787405366,7.2909210169783689,1.8932182681326015,6.9090464200947554,10.276549287378622,8.701752553751497,2.0935319460814839E-2,{"$f":"IF('[2]MONE(M)CAPARD'!AS335=\"\",\"\",'[2]MONE(M)CAPARD'!AS335)","v":1.75},{"$f":"IF('[2]MONE(M)CAPARD'!AT335=\"\",\"\",'[2]MONE(M)CAPARD'!AT335)","v":"n.a."},{"$f":"IF('[2]MONE(M)CAPARD'!AU335=\"\",\"\",'[2]MONE(M)CAPARD'!AU335)","v":3},{"$f":"IF('[2]MONE(M)CAPARD'!AV335=\"\",\"\",'[2]MONE(M)CAPARD'!AV335)","v":5.5},{"$f":"IF('[2]MONE(M)CAPARD'!AW335=\"\",\"\",'[2]MONE(M)CAPARD'!AW335)","v":"n.a."},{"$f":"IF('[2]MONE(M)CAPARD'!AX335=\"\",\"\",'[2]MONE(M)CAPARD'!AX335)","v":5.5},{"$f":"IF('[2]MONE(M)CAPARD'!AY335=\"\",\"\",'[2]MONE(M)CAPARD'!AY335)","v":"n.a."},{"$f":"IF('[2]FISCAL(M)'!$K335=\"\",\"\",'[2]FISCAL(M)'!$K335)","v":-743.21264408908723},{"$f":"IF('[2]FISCAL(M)'!$L335=\"\",\"\",'[2]FISCAL(M)'!$L335)","v":"n.d."},{"$f":"IF('[2]FISCAL(M)'!$AY335=\"\",\"\",'[2]FISCAL(M)'!$AY335)","v":121652.35837163788},{"$f":"IF('[2]FISCAL(M)'!$BI335=\"\",\"\",'[2]FISCAL(M)'!$BI335)","v":61896.956309231864},{"$f":"IF('[2]FISCAL(M)'!$BS335=\"\",\"\",'[2]FISCAL(M)'!$BS335)","v":59755.402062406007},{"$f":"IF('[2]FISCAL(M)'!$AZ335=\"\",\"\",'[2]FISCAL(M)'!$AZ335)","v":143494.98837163788},{"$f":"IF('[2]FISCAL(M)'!$BJ335=\"\",\"\",'[2]FISCAL(M)'!$BJ335)","v":66595.176309231858},{"$f":"IF('[2]FISCAL(M)'!$BT335=\"\",\"\",'[2]FISCAL(M)'!$BT335)","v":76899.81206240601},{"$f":"IF('[3]MONE(M)'!$AO335=\"\",\"\",'[3]MONE(M)'!$AO335)","v":20422912.976188079},{"$f":"IF('[4]MONE(M)'!$AO335=\"\",\"\",'[4]MONE(M)'!$AO335)","v":11928.326921799999},{"$f":"IF('[5]MONE(M)'!$AO335=\"\",\"\",'[5]MONE(M)'!$AO335)","v":189809.82006513659},{"$f":"+'[1]MONE(M)'!$AO335","v":290037.89457500406},{"$f":"IF('[6]MONE(M)'!$AO335=\"\",\"\",'[6]MONE(M)'!$AO335)","v":141120.77626893445},{"$f":"IF('[7]MONE(M)'!$AO335=\"\",\"\",'[7]MONE(M)'!$AO335)","v":922055.72451972007},{"$f":"IF('[8]MONE(M)'!$AO335=\"\",\"\",'[8]MONE(M)'!$AO335)","v":47395.471402990006},13.299844016974793,5.909280869761413,6.1751688690227402,10.316625025285585,17.390242563248549,11.829734286162896,8.6213152908029667,{"$f":"'[2]FISCAL(M)'!$K335","v":-743.21264408908723},{"$f":"+'[2]REAL(A)'!$AO$37","v":274097.38374316029},-0.27114912004614605,{"$f":"IF('[2]FISCAL(M)'!$L335=\"\",\"\",'[2]FISCAL(M)'!$L335)","v":"n.d."},{"$f":"+'[2]REAL(A)'!$AP$37","v":336300.10894762492},"n.d.",143625.64212668338,{"$f":"'[2]Gráfico REM'!BG329","v":24696.260268247526},{"$f":"'[2]Gráfico REM'!BH329","v":111136.54154213885},{"$f":"'[2]Gráfico REM'!BI329","v":7792.8403162970062},7.41456118465178,3.9799474876434315,8.4037141109399638,4.7486164935663489,216005.75465893338,{"$f":"'[2]Gráfico REM'!BK329","v":26948.035164477526},{"$f":"'[2]Gráfico REM'!BL329","v":158532.01294512884},{"$f":"'[2]Gráfico REM'!BM329","v":30525.706549327013},6.348893556309676,3.7850846795538295,8.4686777594217268,-1.5001428652568038]
[2017,"marzo","2017-marzo",{"$f":"IF('[2]REAL IPC(M)'!$AL336=\"\",\"\",+'[2]REAL IPC(M)'!$AL336)","v":2.9360118002388136},{"$f":"IF('[2]REAL IPC(M)'!$BE336=\"\",\"\",+'[2]REAL IPC(M)'!$BE336)","v":2.5637580252649839},{"$f":"IF('[2]REAL IPC(M)'!$AM336=\"\",\"\",+'[2]REAL IPC(M)'!$AM336)","v":2.7241208519068749},{"$f":"IF('[2]REAL IPC(M)'!$BI336=\"\",\"\",+'[2]REAL IPC(M)'!$BI336)","v":2.2921020745954035},{"$f":"IF('[2]REAL IMAE(M)'!BJ336=\"\",\"\",'[2]REAL IMAE(M)'!BJ336)","v":4.9548651337739891},{"$f":"IF('[2]REAL IMAE(M)'!BK336=\"\",\"\",'[2]REAL IMAE(M)'!BK336)","v":4.0813318449949287},{"$f":"IF('[2]REAL IMAE(M)'!BN336=\"\",\"\",'[2]REAL IMAE(M)'!BN336)","v":5.7171878843584434},{"$f":"IF('[2]REAL IMAE(M)'!BO336=\"\",\"\",'[2]REAL IMAE(M)'!BO336)","v":4.1899778889116224},{"$f":"IF('[2]EXT RIN(M)'!$K336=\"\",\"\",'[2]EXT RIN(M)'!$K336)","v":33175.574172114153},null,{"$f":"IF('[2]EXT RIN(M)'!$L336=\"\",\"\",'[2]EXT RIN(M)'!$L336)","v":36932.662457524151},"",{"$f":"IF('[2]MONE(M)CARD'!EG336=\"\",\"\",'[2]MONE(M)CARD'!EG336)","v":34441.086237068368},{"$f":"IF('[2]MONE(M)CARD'!EK336=\"\",\"\",'[2]MONE(M)CARD'!EK336)","v":54311.95289498286},{"$f":"IF('[2]MONE(M)CARD'!EP336=\"\",\"\",'[2]MONE(M)CARD'!EP336)","v":30878.84743818373},{"$f":"IF('[2]MONE(M)CARD'!ES336=\"\",\"\",'[2]MONE(M)CARD'!ES336)","v":4.5010163308162321},{"$f":"IF('[2]MONE(M)CARD'!EV336=\"\",\"\",'[2]MONE(M)CARD'!EV336)","v":6.0139759480184463},{"$f":"IF('[2]MONE(M)CARD'!EZ336=\"\",\"\",'[2]MONE(M)CARD'!EZ336)","v":6.2009499156592263},{"$f":"IF('[2]MONE(M)CAPARD'!FC336=\"\",\"\",'[2]MONE(M)CAPARD'!FC336)","v":42434.955652478369},{"$f":"IF('[2]MONE(M)CAPARD'!FG336=\"\",\"\",'[2]MONE(M)CAPARD'!FG336)","v":85014.648209562845},{"$f":"IF('[2]MONE(M)CAPARD'!FL336=\"\",\"\",'[2]MONE(M)CAPARD'!FL336)","v":30878.847438183715},{"$f":"IF('[2]MONE(M)CAPARD'!FO336=\"\",\"\",'[2]MONE(M)CAPARD'!FO336)","v":3.4670464329878525},{"$f":"IF('[2]MONE(M)CAPARD'!FR336=\"\",\"\",'[2]MONE(M)CAPARD'!FR336)","v":5.6266754151512943},{"$f":"IF('[2]MONE(M)CAPARD'!FV336=\"\",\"\",'[2]MONE(M)CAPARD'!FV336)","v":5.8423733470727157},{"$f":"IF('[2]MONE(M)CARD'!FV336=\"\",\"\",'[2]MONE(M)CARD'!FV336)","v":1546.1135452622773},{"$f":"IF('[2]MONE(M)CARD'!GD336=\"\",\"\",'[2]MONE(M)CARD'!GD336)","v":72.646747690286091},{"$f":"IF('[2]MONE(M)CARD'!GE336=\"\",\"\",'[2]MONE(M)CARD'!GE336)","v":10337.20883392297},17.710193974146282,{"$f":"IF('[9]II.2.Balance OSD-Activos'!J194=\"\",\"\",'[9]II.2.Balance OSD-Activos'!J194)","v":230.74732191396811},{"$f":"IF('[9]II.2.Balance OSD-Activos'!N194=\"\",\"\",'[9]II.2.Balance OSD-Activos'!N194)","v":1016.4171986443004},{"$f":"IF('[9]II.2.Balance OSD-Activos'!R194=\"\",\"\",'[9]II.2.Balance OSD-Activos'!R194)","v":50500.795184324445},{"$f":"IF('[9]II.2.Balance OSD-Activos'!S194=\"\",\"\",'[9]II.2.Balance OSD-Activos'!S194)","v":54902.049455102708},50731.542506238409,106650.00915998542,10.042591258089018,7.9092587568489803,4.3145948020815394,7.8997009899332671,9.5955018014411984,8.734787358178032,5.9995295217476041E-2,{"$f":"IF('[2]MONE(M)CAPARD'!GS336=\"\",\"\",'[2]MONE(M)CAPARD'!GS336)","v":20312.886438135043},{"$f":"IF('[2]MONE(M)CARD'!HA336=\"\",\"\",'[2]MONE(M)CAPARD'!HA336)","v":12154.168738142975},{"$f":"IF('[2]MONE(M)CAPARD'!HB336=\"\",\"\",'[2]MONE(M)CAPARD'!HB336)","v":8158.7176999920684},"n.d.",{"$f":"IF('[10]II.2.Balance OSD-Activos'!J194=\"\",\"\",'[10]II.2.Balance OSD-Activos'!J194)","v":2125.7733828839687},{"$f":"IF('[10]II.2.Balance OSD-Activos'!N194=\"\",\"\",'[10]II.2.Balance OSD-Activos'!N194)","v":1490.1789198143003},{"$f":"IF('[10]II.2.Balance OSD-Activos'!R194=\"\",\"\",'[10]II.2.Balance OSD-Activos'!R194)","v":73270.265597104444},{"$f":"IF('[10]II.2.Balance OSD-Activos'!S194=\"\",\"\",'[10]II.2.Balance OSD-Activos'!S194)","v":76593.004118112716},{"$f":"IFERROR(+AW329+AY329,\"\")","v":75396.038979988414},153479.22201791542,10.992949385278351,7.231344993163269,4.4854895756348601,7.1260126206979635,10.253678288122693,8.6905069858377537,-1.1245567913743315E-2,{"$f":"IF('[2]MONE(M)CAPARD'!AS336=\"\",\"\",'[2]MONE(M)CAPARD'!AS336)","v":1.75},{"$f":"IF('[2]MONE(M)CAPARD'!AT336=\"\",\"\",'[2]MONE(M)CAPARD'!AT336)","v":"n.a."},{"$f":"IF('[2]MONE(M)CAPARD'!AU336=\"\",\"\",'[2]MONE(M)CAPARD'!AU336)","v":3},{"$f":"IF('[2]MONE(M)CAPARD'!AV336=\"\",\"\",'[2]MONE(M)CAPARD'!AV336)","v":5.5},{"$f":"IF('[2]MONE(M)CAPARD'!AW336=\"\",\"\",'[2]MONE(M)CAPARD'!AW336)","v":"n.a."},{"$f":"IF('[2]MONE(M)CAPARD'!AX336=\"\",\"\",'[2]MONE(M)CAPARD'!AX336)","v":5.5},{"$f":"IF('[2]MONE(M)CAPARD'!AY336=\"\",\"\",'[2]MONE(M)CAPARD'!AY336)","v":"n.a."},{"$f":"IF('[2]FISCAL(M)'!$K336=\"\",\"\",'[2]FISCAL(M)'!$K336)","v":-1150.1149249712589},{"$f":"IF('[2]FISCAL(M)'!$L336=\"\",\"\",'[2]FISCAL(M)'!$L336)","v":-1420.1149249712589},{"$f":"IF('[2]FISCAL(M)'!$AY336=\"\",\"\",'[2]FISCAL(M)'!$AY336)","v":122848.57453982861},{"$f":"IF('[2]FISCAL(M)'!$BI336=\"\",\"\",'[2]FISCAL(M)'!$BI336)","v":63068.048492843052},{"$f":"IF('[2]FISCAL(M)'!$BS336=\"\",\"\",'[2]FISCAL(M)'!$BS336)","v":59780.526046985557},{"$f":"IF('[2]FISCAL(M)'!$AZ336=\"\",\"\",'[2]FISCAL(M)'!$AZ336)","v":144812.36453982862},{"$f":"IF('[2]FISCAL(M)'!$BJ336=\"\",\"\",'[2]FISCAL(M)'!$BJ336)","v":67923.668492843048},{"$f":"IF('[2]FISCAL(M)'!$BT336=\"\",\"\",'[2]FISCAL(M)'!$BT336)","v":76888.696046985555},{"$f":"IF('[3]MONE(M)'!$AO336=\"\",\"\",'[3]MONE(M)'!$AO336)","v":20537179.358808219},{"$f":"IF('[4]MONE(M)'!$AO336=\"\",\"\",'[4]MONE(M)'!$AO336)","v":11910.683927940001},{"$f":"IF('[5]MONE(M)'!$AO336=\"\",\"\",'[5]MONE(M)'!$AO336)","v":190761.66439785584},{"$f":"+'[1]MONE(M)'!$AO336","v":290478.11551929067},{"$f":"IF('[6]MONE(M)'!$AO336=\"\",\"\",'[6]MONE(M)'!$AO336)","v":143686.22663045669},{"$f":"IF('[7]MONE(M)'!$AO336=\"\",\"\",'[7]MONE(M)'!$AO336)","v":917970.35812075995},{"$f":"IF('[8]MONE(M)'!$AO336=\"\",\"\",'[8]MONE(M)'!$AO336)","v":47702.197122609999},12.72926537813326,5.40409688488801,6.230662575921353,10.527493337473093,18.23098364465876,11.093472922634962,8.423458768856861,{"$f":"'[2]FISCAL(M)'!$K336","v":-1150.1149249712589},{"$f":"+'[2]REAL(A)'!$AO$37","v":274097.38374316029},-0.41960084013387028,{"$f":"IF('[2]FISCAL(M)'!$L336=\"\",\"\",'[2]FISCAL(M)'!$L336)","v":-1420.1149249712589},{"$f":"+'[2]REAL(A)'!$AP$37","v":336300.10894762492},-0.42227608234061748,144676.67191394916,{"$f":"'[2]Gráfico REM'!BG330","v":25235.566692692391},{"$f":"'[2]Gráfico REM'!BH330","v":111593.25024804124},{"$f":"'[2]Gráfico REM'!BI330","v":7847.8549732155207},7.5406344674480374,4.4658176905267633,8.3798809671943086,5.9030336057986244,216909.72655225918,{"$f":"'[2]Gráfico REM'!BK330","v":27487.79618433239},{"$f":"'[2]Gráfico REM'!BL330","v":159295.44737065124},{"$f":"'[2]Gráfico REM'!BM330","v":30126.482997275525},6.1444113173490189,4.3191879862719773,8.3929269866914069,-2.9511624468917419]
[2017,"abril","2017-abril",{"$f":"IF('[2]REAL IPC(M)'!$AL337=\"\",\"\",+'[2]REAL IPC(M)'!$AL337)","v":3.1386041286336264},{"$f":"IF('[2]REAL IPC(M)'!$BE337=\"\",\"\",+'[2]REAL IPC(M)'!$BE337)","v":2.5869198631596868},{"$f":"IF('[2]REAL IPC(M)'!$AM337=\"\",\"\",+'[2]REAL IPC(M)'!$AM337)","v":2.8276544606249177},{"$f":"IF('[2]REAL IPC(M)'!$BI337=\"\",\"\",+'[2]REAL IPC(M)'!$BI337)","v":2.3109121299570656},{"$f":"IF('[2]REAL IMAE(M)'!BJ337=\"\",\"\",'[2]REAL IMAE(M)'!BJ337)","v":3.6119780753656627},{"$f":"IF('[2]REAL IMAE(M)'!BK337=\"\",\"\",'[2]REAL IMAE(M)'!BK337)","v":4.0205052793091278},{"$f":"IF('[2]REAL IMAE(M)'!BN337=\"\",\"\",'[2]REAL IMAE(M)'!BN337)","v":4.3637202780132611},{"$f":"IF('[2]REAL IMAE(M)'!BO337=\"\",\"\",'[2]REAL IMAE(M)'!BO337)","v":4.1208761291848361},{"$f":"IF('[2]EXT RIN(M)'!$K337=\"\",\"\",'[2]EXT RIN(M)'!$K337)","v":33550.562067516235},null,{"$f":"IF('[2]EXT RIN(M)'!$L337=\"\",\"\",'[2]EXT RIN(M)'!$L337)","v":37347.724861346236},"",{"$f":"IF('[2]MONE(M)CARD'!EG337=\"\",\"\",'[2]MONE(M)CARD'!EG337)","v":34700.190536562419},{"$f":"IF('[2]MONE(M)CARD'!EK337=\"\",\"\",'[2]MONE(M)CARD'!EK337)","v":54541.720999400255},{"$f":"IF('[2]MONE(M)CARD'!EP337=\"\",\"\",'[2]MONE(M)CARD'!EP337)","v":30535.985560694462},{"$f":"IF('[2]MONE(M)CARD'!ES337=\"\",\"\",'[2]MONE(M)CARD'!ES337)","v":5.6894949941584061},{"$f":"IF('[2]MONE(M)CARD'!EV337=\"\",\"\",'[2]MONE(M)CARD'!EV337)","v":6.6350860315081528},{"$f":"IF('[2]MONE(M)CARD'!EZ337=\"\",\"\",'[2]MONE(M)CARD'!EZ337)","v":6.4850036149491475},{"$f":"IF('[2]MONE(M)CAPARD'!FC337=\"\",\"\",'[2]MONE(M)CAPARD'!FC337)","v":42660.12305962242},{"$f":"IF('[2]MONE(M)CAPARD'!FG337=\"\",\"\",'[2]MONE(M)CAPARD'!FG337)","v":85460.627150690241},{"$f":"IF('[2]MONE(M)CAPARD'!FL337=\"\",\"\",'[2]MONE(M)CAPARD'!FL337)","v":30535.985560694477},{"$f":"IF('[2]MONE(M)CAPARD'!FO337=\"\",\"\",'[2]MONE(M)CAPARD'!FO337)","v":4.7661555129248301},{"$f":"IF('[2]MONE(M)CAPARD'!FR337=\"\",\"\",'[2]MONE(M)CAPARD'!FR337)","v":6.1609522319727716},{"$f":"IF('[2]MONE(M)CAPARD'!FV337=\"\",\"\",'[2]MONE(M)CAPARD'!FV337)","v":6.1393477395835783},{"$f":"IF('[2]MONE(M)CARD'!FV337=\"\",\"\",'[2]MONE(M)CARD'!FV337)","v":1533.184828051463},{"$f":"IF('[2]MONE(M)CARD'!GD337=\"\",\"\",'[2]MONE(M)CARD'!GD337)","v":168.59567011832866},{"$f":"IF('[2]MONE(M)CARD'!GE337=\"\",\"\",'[2]MONE(M)CARD'!GE337)","v":11529.544051559489},25.364956108963234,{"$f":"IF('[9]II.2.Balance OSD-Activos'!J195=\"\",\"\",'[9]II.2.Balance OSD-Activos'!J195)","v":240.79439246965421},{"$f":"IF('[9]II.2.Balance OSD-Activos'!N195=\"\",\"\",'[9]II.2.Balance OSD-Activos'!N195)","v":987.07101660578235},{"$f":"IF('[9]II.2.Balance OSD-Activos'!R195=\"\",\"\",'[9]II.2.Balance OSD-Activos'!R195)","v":50731.880053840097},{"$f":"IF('[9]II.2.Balance OSD-Activos'!S195=\"\",\"\",'[9]II.2.Balance OSD-Activos'!S195)","v":55218.918079342984},50972.674446309749,107178.66354225852,10.726137716035922,7.9190852661207733,5.2346558368894236,7.9061011679874893,9.487108470542637,8.695561723496148,-3.9225634681884003E-2,{"$f":"IF('[2]MONE(M)CAPARD'!GS337=\"\",\"\",'[2]MONE(M)CAPARD'!GS337)","v":20633.338312638702},{"$f":"IF('[2]MONE(M)CARD'!HA337=\"\",\"\",'[2]MONE(M)CAPARD'!HA337)","v":13320.552628139489},{"$f":"IF('[2]MONE(M)CAPARD'!HB337=\"\",\"\",'[2]MONE(M)CAPARD'!HB337)","v":7312.7856844992129},"n.d.",{"$f":"IF('[10]II.2.Balance OSD-Activos'!J195=\"\",\"\",'[10]II.2.Balance OSD-Activos'!J195)","v":2121.0103225696539},{"$f":"IF('[10]II.2.Balance OSD-Activos'!N195=\"\",\"\",'[10]II.2.Balance OSD-Activos'!N195)","v":1497.7125470057822},{"$f":"IF('[10]II.2.Balance OSD-Activos'!R195=\"\",\"\",'[10]II.2.Balance OSD-Activos'!R195)","v":73720.563534340094},{"$f":"IF('[10]II.2.Balance OSD-Activos'!S195=\"\",\"\",'[10]II.2.Balance OSD-Activos'!S195)","v":77031.397524292988},75841.573856909745,154370.68392820851,7.7724059277871405,7.67434164209988,7.94516056761434,7.6715228809155933,9.96630585017102,8.8086464770653183,0.11813949122756462,{"$f":"IF('[2]MONE(M)CAPARD'!AS337=\"\",\"\",'[2]MONE(M)CAPARD'!AS337)","v":2.5},{"$f":"IF('[2]MONE(M)CAPARD'!AT337=\"\",\"\",'[2]MONE(M)CAPARD'!AT337)","v":"n.a."},{"$f":"IF('[2]MONE(M)CAPARD'!AU337=\"\",\"\",'[2]MONE(M)CAPARD'!AU337)","v":3},{"$f":"IF('[2]MONE(M)CAPARD'!AV337=\"\",\"\",'[2]MONE(M)CAPARD'!AV337)","v":5.5},{"$f":"IF('[2]MONE(M)CAPARD'!AW337=\"\",\"\",'[2]MONE(M)CAPARD'!AW337)","v":"n.a."},{"$f":"IF('[2]MONE(M)CAPARD'!AX337=\"\",\"\",'[2]MONE(M)CAPARD'!AX337)","v":5.75},{"$f":"IF('[2]MONE(M)CAPARD'!AY337=\"\",\"\",'[2]MONE(M)CAPARD'!AY337)","v":"n.a."},{"$f":"IF('[2]FISCAL(M)'!$K337=\"\",\"\",'[2]FISCAL(M)'!$K337)","v":-895.25991254907626},{"$f":"IF('[2]FISCAL(M)'!$L337=\"\",\"\",'[2]FISCAL(M)'!$L337)","v":"n.d."},{"$f":"IF('[2]FISCAL(M)'!$AY337=\"\",\"\",'[2]FISCAL(M)'!$AY337)","v":123671.38451092865},{"$f":"IF('[2]FISCAL(M)'!$BI337=\"\",\"\",'[2]FISCAL(M)'!$BI337)","v":63985.317749506794},{"$f":"IF('[2]FISCAL(M)'!$BS337=\"\",\"\",'[2]FISCAL(M)'!$BS337)","v":59686.066761421847},{"$f":"IF('[2]FISCAL(M)'!$AZ337=\"\",\"\",'[2]FISCAL(M)'!$AZ337)","v":145594.21451092866},{"$f":"IF('[2]FISCAL(M)'!$BJ337=\"\",\"\",'[2]FISCAL(M)'!$BJ337)","v":68868.757749506796},{"$f":"IF('[2]FISCAL(M)'!$BT337=\"\",\"\",'[2]FISCAL(M)'!$BT337)","v":76725.456761421854},{"$f":"IF('[3]MONE(M)'!$AO337=\"\",\"\",'[3]MONE(M)'!$AO337)","v":20752100.19868546},{"$f":"IF('[4]MONE(M)'!$AO337=\"\",\"\",'[4]MONE(M)'!$AO337)","v":12007.872498230001},{"$f":"IF('[5]MONE(M)'!$AO337=\"\",\"\",'[5]MONE(M)'!$AO337)","v":191777.35181338125},{"$f":"+'[1]MONE(M)'!$AO337","v":289809.61916040687},{"$f":"IF('[6]MONE(M)'!$AO337=\"\",\"\",'[6]MONE(M)'!$AO337)","v":147908.98553853593},{"$f":"IF('[7]MONE(M)'!$AO337=\"\",\"\",'[7]MONE(M)'!$AO337)","v":920803.23175712},{"$f":"IF('[8]MONE(M)'!$AO337=\"\",\"\",'[8]MONE(M)'!$AO337)","v":48025.945719710013},12.973984173829557,5.7896145459940485,6.2906006484853672,10.019781804258621,19.849578871134167,10.089263224518884,8.6913598363513866,{"$f":"'[2]FISCAL(M)'!$K337","v":-895.25991254907626},{"$f":"+'[2]REAL(A)'!$AO$37","v":274097.38374316029},-0.32662110828024865,{"$f":"IF('[2]FISCAL(M)'!$L337=\"\",\"\",'[2]FISCAL(M)'!$L337)","v":"n.d."},{"$f":"+'[2]REAL(A)'!$AP$37","v":336300.10894762492},"n.d.",145769.67873204936,{"$f":"'[2]Gráfico REM'!BG331","v":25902.725513855865},{"$f":"'[2]Gráfico REM'!BH331","v":112111.17950681213},{"$f":"'[2]Gráfico REM'!BI331","v":7755.7737113813655},7.811599699617422,6.5966284883122395,8.2957765227739131,5.0221232004984184,217425.21208663937,{"$f":"'[2]Gráfico REM'!BK331","v":28129.711321875864},{"$f":"'[2]Gráfico REM'!BL331","v":160137.12522652216},{"$f":"'[2]Gráfico REM'!BM331","v":29158.375538241351},5.7573282865692965,5.9615230839546784,8.4141113698886336,-6.9401980213562258]
[2017,"mayo ","2017-mayo ",{"$f":"IF('[2]REAL IPC(M)'!$AL338=\"\",\"\",+'[2]REAL IPC(M)'!$AL338)","v":2.9543545225427126},{"$f":"IF('[2]REAL IPC(M)'!$BE338=\"\",\"\",+'[2]REAL IPC(M)'!$BE338)","v":2.6097920296541677},{"$f":"IF('[2]REAL IPC(M)'!$AM338=\"\",\"\",+'[2]REAL IPC(M)'!$AM338)","v":2.6434512900042284},{"$f":"IF('[2]REAL IPC(M)'!$BI338=\"\",\"\",+'[2]REAL IPC(M)'!$BI338)","v":2.3291126076675939},{"$f":"IF('[2]REAL IMAE(M)'!BJ338=\"\",\"\",'[2]REAL IMAE(M)'!BJ338)","v":3.3024698342920988},{"$f":"IF('[2]REAL IMAE(M)'!BK338=\"\",\"\",'[2]REAL IMAE(M)'!BK338)","v":3.9568546332422461},{"$f":"IF('[2]REAL IMAE(M)'!BN338=\"\",\"\",'[2]REAL IMAE(M)'!BN338)","v":3.7902600477752069},{"$f":"IF('[2]REAL IMAE(M)'!BO338=\"\",\"\",'[2]REAL IMAE(M)'!BO338)","v":4.0472316081383575},{"$f":"IF('[2]EXT RIN(M)'!$K338=\"\",\"\",'[2]EXT RIN(M)'!$K338)","v":33118.042297787382},null,{"$f":"IF('[2]EXT RIN(M)'!$L338=\"\",\"\",'[2]EXT RIN(M)'!$L338)","v":37691.95792857738},null,{"$f":"IF('[2]MONE(M)CARD'!EG338=\"\",\"\",'[2]MONE(M)CARD'!EG338)","v":33907.205315711719},{"$f":"IF('[2]MONE(M)CARD'!EK338=\"\",\"\",'[2]MONE(M)CARD'!EK338)","v":54544.813034454783},{"$f":"IF('[2]MONE(M)CARD'!EP338=\"\",\"\",'[2]MONE(M)CARD'!EP338)","v":30929.076258472604},{"$f":"IF('[2]MONE(M)CARD'!ES338=\"\",\"\",'[2]MONE(M)CARD'!ES338)","v":3.4548382114640397},{"$f":"IF('[2]MONE(M)CARD'!EV338=\"\",\"\",'[2]MONE(M)CARD'!EV338)","v":4.946592483987966},{"$f":"IF('[2]MONE(M)CARD'!EZ338=\"\",\"\",'[2]MONE(M)CARD'!EZ338)","v":5.4244311680144541},{"$f":"IF('[2]MONE(M)CAPARD'!FC338=\"\",\"\",'[2]MONE(M)CAPARD'!FC338)","v":41949.679304041718},{"$f":"IF('[2]MONE(M)CAPARD'!FG338=\"\",\"\",'[2]MONE(M)CAPARD'!FG338)","v":85417.880804234766},{"$f":"IF('[2]MONE(M)CAPARD'!FL338=\"\",\"\",'[2]MONE(M)CAPARD'!FL338)","v":30929.076258472604},{"$f":"IF('[2]MONE(M)CAPARD'!FO338=\"\",\"\",'[2]MONE(M)CAPARD'!FO338)","v":3.0168416598667758},{"$f":"IF('[2]MONE(M)CAPARD'!FR338=\"\",\"\",'[2]MONE(M)CAPARD'!FR338)","v":5.0387755244331034},{"$f":"IF('[2]MONE(M)CAPARD'!FV338=\"\",\"\",'[2]MONE(M)CAPARD'!FV338)","v":5.3812254355109834},{"$f":"IF('[2]MONE(M)CARD'!FV338=\"\",\"\",'[2]MONE(M)CARD'!FV338)","v":1521.9499904415379},{"$f":"IF('[2]MONE(M)CARD'!GD338=\"\",\"\",'[2]MONE(M)CARD'!GD338)","v":62.342971057254758},{"$f":"IF('[2]MONE(M)CARD'!GE338=\"\",\"\",'[2]MONE(M)CARD'!GE338)","v":11211.623694147736},{"$f":"IF(AD331=\"\",\"\",((AD331/AD318)-1)*100)","v":21.849689695366425},{"$f":"IF('[9]II.2.Balance OSD-Activos'!J196=\"\",\"\",'[9]II.2.Balance OSD-Activos'!J196)","v":253.77438593887751},{"$f":"IF('[9]II.2.Balance OSD-Activos'!N196=\"\",\"\",'[9]II.2.Balance OSD-Activos'!N196)","v":1034.6827597905601},{"$f":"IF('[9]II.2.Balance OSD-Activos'!R196=\"\",\"\",'[9]II.2.Balance OSD-Activos'!R196)","v":50807.458367220286},{"$f":"IF('[9]II.2.Balance OSD-Activos'!S196=\"\",\"\",'[9]II.2.Balance OSD-Activos'!S196)","v":55366.991023902738},{"$f":"IFERROR(+AF331+AH331,\"\")","v":51061.232753159165},107462.90653685246,14.36089071494624,7.4706069160044963,6.4823690669891354,7.4382744431941372,8.5551748368792868,8.0169749631134213,-0.67858676038272669,{"$f":"IF('[2]MONE(M)CAPARD'!GS338=\"\",\"\",'[2]MONE(M)CAPARD'!GS338)","v":20568.853895135944},{"$f":"IF('[2]MONE(M)CARD'!HA338=\"\",\"\",'[2]MONE(M)CAPARD'!HA338)","v":13104.107037947739},{"$f":"IF('[2]MONE(M)CAPARD'!HB338=\"\",\"\",'[2]MONE(M)CAPARD'!HB338)","v":7464.7468571882055},"n.d.",{"$f":"IF('[10]II.2.Balance OSD-Activos'!J196=\"\",\"\",'[10]II.2.Balance OSD-Activos'!J196)","v":2143.4751076988773},{"$f":"IF('[10]II.2.Balance OSD-Activos'!N196=\"\",\"\",'[10]II.2.Balance OSD-Activos'!N196)","v":1541.1791272205603},{"$f":"IF('[10]II.2.Balance OSD-Activos'!R196=\"\",\"\",'[10]II.2.Balance OSD-Activos'!R196)","v":73926.6883886203},{"$f":"IF('[10]II.2.Balance OSD-Activos'!S196=\"\",\"\",'[10]II.2.Balance OSD-Activos'!S196)","v":77359.047807802737},76070.163496319175,154970.39043134247,5.9183835541535057,7.2682928357471255,6.883925515477185,7.3079464077915546,9.217345954452183,8.2285537794763322,-0.58009269758898618,{"$f":"IF('[2]MONE(M)CAPARD'!AS338=\"\",\"\",'[2]MONE(M)CAPARD'!AS338)","v":4},{"$f":"IF('[2]MONE(M)CAPARD'!AT338=\"\",\"\",'[2]MONE(M)CAPARD'!AT338)","v":"n.a."},{"$f":"IF('[2]MONE(M)CAPARD'!AU338=\"\",\"\",'[2]MONE(M)CAPARD'!AU338)","v":3},{"$f":"IF('[2]MONE(M)CAPARD'!AV338=\"\",\"\",'[2]MONE(M)CAPARD'!AV338)","v":5.5},{"$f":"IF('[2]MONE(M)CAPARD'!AW338=\"\",\"\",'[2]MONE(M)CAPARD'!AW338)","v":"n.a."},{"$f":"IF('[2]MONE(M)CAPARD'!AX338=\"\",\"\",'[2]MONE(M)CAPARD'!AX338)","v":5.75},{"$f":"IF('[2]MONE(M)CAPARD'!AY338=\"\",\"\",'[2]MONE(M)CAPARD'!AY338)","v":"n.a."},{"$f":"IF('[2]FISCAL(M)'!$K338=\"\",\"\",'[2]FISCAL(M)'!$K338)","v":-1246.0490378367813},{"$f":"IF('[2]FISCAL(M)'!$L338=\"\",\"\",'[2]FISCAL(M)'!$L338)","v":"n.d."},{"$f":"IF('[2]FISCAL(M)'!$AY338=\"\",\"\",'[2]FISCAL(M)'!$AY338)","v":123725.04995651101},{"$f":"IF('[2]FISCAL(M)'!$BI338=\"\",\"\",'[2]FISCAL(M)'!$BI338)","v":63830.734260223195},{"$f":"IF('[2]FISCAL(M)'!$BS338=\"\",\"\",'[2]FISCAL(M)'!$BS338)","v":59894.315696287791},{"$f":"IF('[2]FISCAL(M)'!$AZ338=\"\",\"\",'[2]FISCAL(M)'!$AZ338)","v":146684.55995651099},{"$f":"IF('[2]FISCAL(M)'!$BJ338=\"\",\"\",'[2]FISCAL(M)'!$BJ338)","v":68692.084260223201},{"$f":"IF('[2]FISCAL(M)'!$BT338=\"\",\"\",'[2]FISCAL(M)'!$BT338)","v":77992.475696287787},{"$f":"IF('[3]MONE(M)'!$AO338=\"\",\"\",'[3]MONE(M)'!$AO338)","v":20986275.224153712},{"$f":"IF('[4]MONE(M)'!$AO338=\"\",\"\",'[4]MONE(M)'!$AO338)","v":12043.81936548},{"$f":"IF('[5]MONE(M)'!$AO338=\"\",\"\",'[5]MONE(M)'!$AO338)","v":191562.85416945867},{"$f":"+'[1]MONE(M)'!$AO338","v":292758.99362845439},{"$f":"IF('[6]MONE(M)'!$AO338=\"\",\"\",'[6]MONE(M)'!$AO338)","v":150597.28213215157},{"$f":"IF('[7]MONE(M)'!$AO338=\"\",\"\",'[7]MONE(M)'!$AO338)","v":936096.51271639008},{"$f":"IF('[8]MONE(M)'!$AO338=\"\",\"\",'[8]MONE(M)'!$AO338)","v":48352.285771890005},{"$f":"IF(BY331=\"\",\"\",((BY331/BY319)-1)*100)","v":12.55513185252417},5.8366157353246573,5.7952308775477634,10.572711768296351,19.460248583226083,11.976229907956881,8.4323679717247515,{"$f":"'[2]FISCAL(M)'!$K338","v":-1246.0490378367813},{"$f":"+'[2]REAL(A)'!$AO$37","v":274097.38374316029},-0.45460085055185234,{"$f":"IF('[2]FISCAL(M)'!$L338=\"\",\"\",'[2]FISCAL(M)'!$L338)","v":"n.d."},{"$f":"+'[2]REAL(A)'!$AP$37","v":336300.10894762492},"n.d.",146162.26689992449,{"$f":"'[2]Gráfico REM'!BG332","v":25917.065592196603},{"$f":"'[2]Gráfico REM'!BH332","v":112352.05419122829},{"$f":"'[2]Gráfico REM'!BI332","v":7893.1471164996001},7.0184164150369543,5.4923738549644385,7.511187643051298,5.1527293424815879,217965.46516167454,{"$f":"'[2]Gráfico REM'!BK332","v":28162.377223666605},{"$f":"'[2]Gráfico REM'!BL332","v":160704.33996311831},{"$f":"'[2]Gráfico REM'!BM332","v":29098.7479748896},5.1911774305061664,4.7872703177467946,7.7866994980834603,-6.8492644198195336]
[2017,"junio ","2017-junio ",{"$f":"IF('[2]REAL IPC(M)'!$AL339=\"\",\"\",+'[2]REAL IPC(M)'!$AL339)","v":2.8892455858748001},{"$f":"IF('[2]REAL IPC(M)'!$BE339=\"\",\"\",+'[2]REAL IPC(M)'!$BE339)","v":2.6321208351365755},{"$f":"IF('[2]REAL IPC(M)'!$AM339=\"\",\"\",+'[2]REAL IPC(M)'!$AM339)","v":2.5732967728327338},{"$f":"IF('[2]REAL IPC(M)'!$BI339=\"\",\"\",+'[2]REAL IPC(M)'!$BI339)","v":2.3464495003329588},{"$f":"IF('[2]REAL IMAE(M)'!BJ339=\"\",\"\",'[2]REAL IMAE(M)'!BJ339)","v":3.4903589121613621},{"$f":"IF('[2]REAL IMAE(M)'!BK339=\"\",\"\",'[2]REAL IMAE(M)'!BK339)","v":3.8905011967077519},{"$f":"IF('[2]REAL IMAE(M)'!BN339=\"\",\"\",'[2]REAL IMAE(M)'!BN339)","v":3.9494695726474571},{"$f":"IF('[2]REAL IMAE(M)'!BO339=\"\",\"\",'[2]REAL IMAE(M)'!BO339)","v":3.9690522071945233},{"$f":"IF('[2]EXT RIN(M)'!$K339=\"\",\"\",'[2]EXT RIN(M)'!$K339)","v":34446.184761731973},null,{"$f":"IF('[2]EXT RIN(M)'!$L339=\"\",\"\",'[2]EXT RIN(M)'!$L339)","v":38783.821901001975},null,{"$f":"IF('[2]MONE(M)CARD'!EG339=\"\",\"\",'[2]MONE(M)CARD'!EG339)","v":33703.372523151033},{"$f":"IF('[2]MONE(M)CARD'!EK339=\"\",\"\",'[2]MONE(M)CARD'!EK339)","v":55493.310856445314},{"$f":"IF('[2]MONE(M)CARD'!EP339=\"\",\"\",'[2]MONE(M)CARD'!EP339)","v":30986.153695856046},{"$f":"IF('[2]MONE(M)CARD'!ES339=\"\",\"\",'[2]MONE(M)CARD'!ES339)","v":3.2524833815523291},{"$f":"IF('[2]MONE(M)CARD'!EV339=\"\",\"\",'[2]MONE(M)CARD'!EV339)","v":5.4801958106406756},{"$f":"IF('[2]MONE(M)CARD'!EZ339=\"\",\"\",'[2]MONE(M)CARD'!EZ339)","v":6.1997446167771253},{"$f":"IF('[2]MONE(M)CAPARD'!FC339=\"\",\"\",'[2]MONE(M)CAPARD'!FC339)","v":41624.959047881028},{"$f":"IF('[2]MONE(M)CAPARD'!FG339=\"\",\"\",'[2]MONE(M)CAPARD'!FG339)","v":86676.755015965318},{"$f":"IF('[2]MONE(M)CAPARD'!FL339=\"\",\"\",'[2]MONE(M)CAPARD'!FL339)","v":30986.153695856032},{"$f":"IF('[2]MONE(M)CAPARD'!FO339=\"\",\"\",'[2]MONE(M)CAPARD'!FO339)","v":2.6407475601440078},{"$f":"IF('[2]MONE(M)CAPARD'!FR339=\"\",\"\",'[2]MONE(M)CAPARD'!FR339)","v":5.4639342536468183},{"$f":"IF('[2]MONE(M)CAPARD'!FV339=\"\",\"\",'[2]MONE(M)CAPARD'!FV339)","v":6.0089547932784537},{"$f":"IF('[2]MONE(M)CARD'!FV339=\"\",\"\",'[2]MONE(M)CARD'!FV339)","v":1596.3194545212079},{"$f":"IF('[2]MONE(M)CARD'!GD339=\"\",\"\",'[2]MONE(M)CARD'!GD339)","v":190.65488039359167},{"$f":"IF('[2]MONE(M)CARD'!GE339=\"\",\"\",'[2]MONE(M)CARD'!GE339)","v":11475.244476641761},29.80355919589708,{"$f":"IF('[9]II.2.Balance OSD-Activos'!J197=\"\",\"\",'[9]II.2.Balance OSD-Activos'!J197)","v":253.2894004892139},{"$f":"IF('[9]II.2.Balance OSD-Activos'!N197=\"\",\"\",'[9]II.2.Balance OSD-Activos'!N197)","v":1052.5804803259045},{"$f":"IF('[9]II.2.Balance OSD-Activos'!R197=\"\",\"\",'[9]II.2.Balance OSD-Activos'!R197)","v":51247.173541494572},{"$f":"IF('[9]II.2.Balance OSD-Activos'!S197=\"\",\"\",'[9]II.2.Balance OSD-Activos'!S197)","v":55689.52059740929},51500.462941983787,108242.56401971898,19.334242080588893,8.0378776565696484,9.34097465600383,7.9873541349772426,8.8109288032034883,8.4468405762299312,0.42986561311650995,{"$f":"IF('[2]MONE(M)CAPARD'!GS339=\"\",\"\",'[2]MONE(M)CAPARD'!GS339)","v":20793.213789142505},{"$f":"IF('[2]MONE(M)CARD'!HA339=\"\",\"\",'[2]MONE(M)CAPARD'!HA339)","v":13372.997851201761},{"$f":"IF('[2]MONE(M)CAPARD'!HB339=\"\",\"\",'[2]MONE(M)CAPARD'!HB339)","v":7420.215937940744},"n.d.",{"$f":"IF('[10]II.2.Balance OSD-Activos'!J197=\"\",\"\",'[10]II.2.Balance OSD-Activos'!J197)","v":2073.9994402092138},{"$f":"IF('[10]II.2.Balance OSD-Activos'!N197=\"\",\"\",'[10]II.2.Balance OSD-Activos'!N197)","v":1576.1588580859045},{"$f":"IF('[10]II.2.Balance OSD-Activos'!R197=\"\",\"\",'[10]II.2.Balance OSD-Activos'!R197)","v":74447.92308651458},{"$f":"IF('[10]II.2.Balance OSD-Activos'!S197=\"\",\"\",'[10]II.2.Balance OSD-Activos'!S197)","v":77852.142507909288},76521.922526723793,155950.22389271899,4.8212668482231269,7.5561594814897992,10.525993784012933,7.634393924554006,9.2997433852625164,8.4492552210957861,0.22070144161945393,{"$f":"IF('[2]MONE(M)CAPARD'!AS339=\"\",\"\",'[2]MONE(M)CAPARD'!AS339)","v":4.5},{"$f":"IF('[2]MONE(M)CAPARD'!AT339=\"\",\"\",'[2]MONE(M)CAPARD'!AT339)","v":"n.a."},{"$f":"IF('[2]MONE(M)CAPARD'!AU339=\"\",\"\",'[2]MONE(M)CAPARD'!AU339)","v":3},{"$f":"IF('[2]MONE(M)CAPARD'!AV339=\"\",\"\",'[2]MONE(M)CAPARD'!AV339)","v":5.5},{"$f":"IF('[2]MONE(M)CAPARD'!AW339=\"\",\"\",'[2]MONE(M)CAPARD'!AW339)","v":"n.a."},{"$f":"IF('[2]MONE(M)CAPARD'!AX339=\"\",\"\",'[2]MONE(M)CAPARD'!AX339)","v":5.75},{"$f":"IF('[2]MONE(M)CAPARD'!AY339=\"\",\"\",'[2]MONE(M)CAPARD'!AY339)","v":"n.a."},{"$f":"IF('[2]FISCAL(M)'!$K339=\"\",\"\",'[2]FISCAL(M)'!$K339)","v":-1545.5946154472454},{"$f":"IF('[2]FISCAL(M)'!$L339=\"\",\"\",'[2]FISCAL(M)'!$L339)","v":-2364.5946154472454},{"$f":"IF('[2]FISCAL(M)'!$AY339=\"\",\"\",'[2]FISCAL(M)'!$AY339)","v":125615.63216946072},{"$f":"IF('[2]FISCAL(M)'!$BI339=\"\",\"\",'[2]FISCAL(M)'!$BI339)","v":64608.426117330971},{"$f":"IF('[2]FISCAL(M)'!$BS339=\"\",\"\",'[2]FISCAL(M)'!$BS339)","v":61007.206052129739},{"$f":"IF('[2]FISCAL(M)'!$AZ339=\"\",\"\",'[2]FISCAL(M)'!$AZ339)","v":148528.67216946071},{"$f":"IF('[2]FISCAL(M)'!$BJ339=\"\",\"\",'[2]FISCAL(M)'!$BJ339)","v":69471.426117330964},{"$f":"IF('[2]FISCAL(M)'!$BT339=\"\",\"\",'[2]FISCAL(M)'!$BT339)","v":79057.246052129747},{"$f":"IF('[3]MONE(M)'!$AO339=\"\",\"\",'[3]MONE(M)'!$AO339)","v":21162787.06265014},{"$f":"IF('[4]MONE(M)'!$AO339=\"\",\"\",'[4]MONE(M)'!$AO339)","v":12062.40328137},{"$f":"IF('[5]MONE(M)'!$AO339=\"\",\"\",'[5]MONE(M)'!$AO339)","v":191642.2262069037},{"$f":"+'[1]MONE(M)'!$AO339","v":294118.00975753053},{"$f":"IF('[6]MONE(M)'!$AO339=\"\",\"\",'[6]MONE(M)'!$AO339)","v":150793.23878056338},{"$f":"IF('[7]MONE(M)'!$AO339=\"\",\"\",'[7]MONE(M)'!$AO339)","v":948841.52813877002},{"$f":"IF('[8]MONE(M)'!$AO339=\"\",\"\",'[8]MONE(M)'!$AO339)","v":48529.737547619989},11.803441740761356,6.0126735806858234,5.423674761916164,10.581635258681455,17.842685530252389,12.204381557498213,8.1733224238083935,{"$f":"'[2]FISCAL(M)'!$K339","v":-1545.5946154472454},{"$f":"+'[2]REAL(A)'!$AO$37","v":274097.38374316029},-0.56388521274450643,{"$f":"IF('[2]FISCAL(M)'!$L339=\"\",\"\",'[2]FISCAL(M)'!$L339)","v":-2364.5946154472454},{"$f":"+'[2]REAL(A)'!$AP$37","v":336300.10894762492},-0.70312038341192018,147132.30905221761,{"$f":"'[2]Gráfico REM'!BG333","v":26032.825770151245},{"$f":"'[2]Gráfico REM'!BH333","v":113079.96700676682},{"$f":"'[2]Gráfico REM'!BI333","v":8019.5162752995384},7.5001208806846353,5.3655309980334964,8.0024071793369558,7.5201777205540665,219281.26656298761,{"$f":"'[2]Gráfico REM'!BK333","v":28245.318543401245},{"$f":"'[2]Gráfico REM'!BL333","v":161609.70455438682},{"$f":"'[2]Gráfico REM'!BM333","v":29426.243465199535},5.7055946125332824,4.6427686657450229,8.0536745067754332,-4.7350933092596854]
[2017,"julio","2017-julio",{"$f":"IF('[2]REAL IPC(M)'!$AL340=\"\",\"\",+'[2]REAL IPC(M)'!$AL340)","v":3.0437804030576832},{"$f":"IF('[2]REAL IPC(M)'!$BE340=\"\",\"\",+'[2]REAL IPC(M)'!$BE340)","v":2.6536768909501962},{"$f":"IF('[2]REAL IPC(M)'!$AM340=\"\",\"\",+'[2]REAL IPC(M)'!$AM340)","v":2.6682540794173315},{"$f":"IF('[2]REAL IPC(M)'!$BI340=\"\",\"\",+'[2]REAL IPC(M)'!$BI340)","v":2.3626943079301244},{"$f":"IF('[2]REAL IMAE(M)'!BJ340=\"\",\"\",'[2]REAL IMAE(M)'!BJ340)","v":3.5039199932876297},{"$f":"IF('[2]REAL IMAE(M)'!BK340=\"\",\"\",'[2]REAL IMAE(M)'!BK340)","v":3.8215201739089988},{"$f":"IF('[2]REAL IMAE(M)'!BN340=\"\",\"\",'[2]REAL IMAE(M)'!BN340)","v":4.0096679712715799},{"$f":"IF('[2]REAL IMAE(M)'!BO340=\"\",\"\",'[2]REAL IMAE(M)'!BO340)","v":3.8863255737660474},{"$f":"IF('[2]EXT RIN(M)'!$K340=\"\",\"\",'[2]EXT RIN(M)'!$K340)","v":34507.517941837832},null,{"$f":"IF('[2]EXT RIN(M)'!$L340=\"\",\"\",'[2]EXT RIN(M)'!$L340)","v":38417.129475707829},null,{"$f":"IF('[2]MONE(M)CARD'!EG340=\"\",\"\",'[2]MONE(M)CARD'!EG340)","v":34077.884687469807},{"$f":"IF('[2]MONE(M)CARD'!EK340=\"\",\"\",'[2]MONE(M)CARD'!EK340)","v":55926.168952029053},{"$f":"IF('[2]MONE(M)CARD'!EP340=\"\",\"\",'[2]MONE(M)CARD'!EP340)","v":30715.825832756891},{"$f":"IF('[2]MONE(M)CARD'!ES340=\"\",\"\",'[2]MONE(M)CARD'!ES340)","v":3.3769086053453412},{"$f":"IF('[2]MONE(M)CARD'!EV340=\"\",\"\",'[2]MONE(M)CARD'!EV340)","v":6.0319223903700703},{"$f":"IF('[2]MONE(M)CARD'!EZ340=\"\",\"\",'[2]MONE(M)CARD'!EZ340)","v":5.9083359846132888},{"$f":"IF('[2]MONE(M)CAPARD'!FC340=\"\",\"\",'[2]MONE(M)CAPARD'!FC340)","v":42168.703387879817},{"$f":"IF('[2]MONE(M)CAPARD'!FG340=\"\",\"\",'[2]MONE(M)CAPARD'!FG340)","v":87251.805683979037},{"$f":"IF('[2]MONE(M)CAPARD'!FL340=\"\",\"\",'[2]MONE(M)CAPARD'!FL340)","v":30715.825832756876},{"$f":"IF('[2]MONE(M)CAPARD'!FO340=\"\",\"\",'[2]MONE(M)CAPARD'!FO340)","v":3.142449544671444},{"$f":"IF('[2]MONE(M)CAPARD'!FR340=\"\",\"\",'[2]MONE(M)CAPARD'!FR340)","v":6.2866873024742587},{"$f":"IF('[2]MONE(M)CAPARD'!FV340=\"\",\"\",'[2]MONE(M)CAPARD'!FV340)","v":6.1441707169543003},{"$f":"IF('[2]MONE(M)CARD'!FV340=\"\",\"\",'[2]MONE(M)CARD'!FV340)","v":1580.4518627753423},{"$f":"IF('[2]MONE(M)CARD'!GD340=\"\",\"\",'[2]MONE(M)CARD'!GD340)","v":82.702922406756201},{"$f":"IF('[2]MONE(M)CARD'!GE340=\"\",\"\",'[2]MONE(M)CARD'!GE340)","v":11594.827255522827},27.593598473593104,{"$f":"IF('[9]II.2.Balance OSD-Activos'!J198=\"\",\"\",'[9]II.2.Balance OSD-Activos'!J198)","v":273.27494039862142},{"$f":"IF('[9]II.2.Balance OSD-Activos'!N198=\"\",\"\",'[9]II.2.Balance OSD-Activos'!N198)","v":1034.5059307277629},{"$f":"IF('[9]II.2.Balance OSD-Activos'!R198=\"\",\"\",'[9]II.2.Balance OSD-Activos'!R198)","v":51086.392506447221},{"$f":"IF('[9]II.2.Balance OSD-Activos'!S198=\"\",\"\",'[9]II.2.Balance OSD-Activos'!S198)","v":56082.051289068993},51359.667446845844,108476.22466664261,27.147116502230517,7.2381820889642512,10.518965261454817,7.1484346832076717,8.5363240341131288,7.9361651748380835,-0.51067540139184775,{"$f":"IF('[2]MONE(M)CAPARD'!GS340=\"\",\"\",'[2]MONE(M)CAPARD'!GS340)","v":20715.503608799067},{"$f":"IF('[2]MONE(M)CARD'!HA340=\"\",\"\",'[2]MONE(M)CAPARD'!HA340)","v":13472.028480672827},{"$f":"IF('[2]MONE(M)CAPARD'!HB340=\"\",\"\",'[2]MONE(M)CAPARD'!HB340)","v":7243.4751281262397},"n.d.",{"$f":"IF('[10]II.2.Balance OSD-Activos'!J198=\"\",\"\",'[10]II.2.Balance OSD-Activos'!J198)","v":2328.6472308286216},{"$f":"IF('[10]II.2.Balance OSD-Activos'!N198=\"\",\"\",'[10]II.2.Balance OSD-Activos'!N198)","v":1546.3087793977629},{"$f":"IF('[10]II.2.Balance OSD-Activos'!R198=\"\",\"\",'[10]II.2.Balance OSD-Activos'!R198)","v":74423.320514937222},{"$f":"IF('[10]II.2.Balance OSD-Activos'!S198=\"\",\"\",'[10]II.2.Balance OSD-Activos'!S198)","v":78424.179719638996},76751.96774576584,156722.4562448026,16.743654948722696,7.5599607995037399,10.572268159274456,7.2958648323451225,9.7961431259272036,8.6969648778558515,0.2477096567600654,{"$f":"IF('[2]MONE(M)CAPARD'!AS340=\"\",\"\",'[2]MONE(M)CAPARD'!AS340)","v":4.5},{"$f":"IF('[2]MONE(M)CAPARD'!AT340=\"\",\"\",'[2]MONE(M)CAPARD'!AT340)","v":"n.a."},{"$f":"IF('[2]MONE(M)CAPARD'!AU340=\"\",\"\",'[2]MONE(M)CAPARD'!AU340)","v":3},{"$f":"IF('[2]MONE(M)CAPARD'!AV340=\"\",\"\",'[2]MONE(M)CAPARD'!AV340)","v":5.5},{"$f":"IF('[2]MONE(M)CAPARD'!AW340=\"\",\"\",'[2]MONE(M)CAPARD'!AW340)","v":"n.a."},{"$f":"IF('[2]MONE(M)CAPARD'!AX340=\"\",\"\",'[2]MONE(M)CAPARD'!AX340)","v":5.75},{"$f":"IF('[2]MONE(M)CAPARD'!AY340=\"\",\"\",'[2]MONE(M)CAPARD'!AY340)","v":"n.a."},{"$f":"IF('[2]FISCAL(M)'!$K340=\"\",\"\",'[2]FISCAL(M)'!$K340)","v":-2437.9465214414386},{"$f":"IF('[2]FISCAL(M)'!$L340=\"\",\"\",'[2]FISCAL(M)'!$L340)","v":"n.d."},{"$f":"IF('[2]FISCAL(M)'!$AY340=\"\",\"\",'[2]FISCAL(M)'!$AY340)","v":125951.27013737455},{"$f":"IF('[2]FISCAL(M)'!$BI340=\"\",\"\",'[2]FISCAL(M)'!$BI340)","v":64963.523414734496},{"$f":"IF('[2]FISCAL(M)'!$BS340=\"\",\"\",'[2]FISCAL(M)'!$BS340)","v":60987.746722640055},{"$f":"IF('[2]FISCAL(M)'!$AZ340=\"\",\"\",'[2]FISCAL(M)'!$AZ340)","v":149015.88013737457},{"$f":"IF('[2]FISCAL(M)'!$BJ340=\"\",\"\",'[2]FISCAL(M)'!$BJ340)","v":69991.343414734496},{"$f":"IF('[2]FISCAL(M)'!$BT340=\"\",\"\",'[2]FISCAL(M)'!$BT340)","v":79024.536722640056},{"$f":"IF('[3]MONE(M)'!$AO340=\"\",\"\",'[3]MONE(M)'!$AO340)","v":21121361.3444787},{"$f":"IF('[4]MONE(M)'!$AO340=\"\",\"\",'[4]MONE(M)'!$AO340)","v":12164.02189425},{"$f":"IF('[5]MONE(M)'!$AO340=\"\",\"\",'[5]MONE(M)'!$AO340)","v":191484.2450991465},{"$f":"+'[1]MONE(M)'!$AO340","v":296186.19779640855},{"$f":"IF('[6]MONE(M)'!$AO340=\"\",\"\",'[6]MONE(M)'!$AO340)","v":152144.66035176095},{"$f":"IF('[7]MONE(M)'!$AO340=\"\",\"\",'[7]MONE(M)'!$AO340)","v":942007.74326862989},{"$f":"IF('[8]MONE(M)'!$AO340=\"\",\"\",'[8]MONE(M)'!$AO340)","v":49112.423718860002},10.863085855147192,6.3106444127771777,5.2448250545585662,10.726505338060676,18.20912093683782,10.360419246699237,10.396929639907704,{"$f":"'[2]FISCAL(M)'!$K340","v":-2437.9465214414386},{"$f":"+'[2]REAL(A)'!$AO$37","v":274097.38374316029},-0.88944538183767829,{"$f":"IF('[2]FISCAL(M)'!$L340=\"\",\"\",'[2]FISCAL(M)'!$L340)","v":"n.d."},{"$f":"+'[2]REAL(A)'!$AP$37","v":336300.10894762492},"n.d.",147367.85835352584,{"$f":"'[2]Gráfico REM'!BG334","v":26300.854665053197},{"$f":"'[2]Gráfico REM'!BH334","v":113146.73426457777},{"$f":"'[2]Gráfico REM'!BI334","v":7920.2694238948852},7.5615788798166994,8.3797377610844048,7.4125278308817988,7.0004254977628522,219931.31857986585,{"$f":"'[2]Gráfico REM'!BK334","v":28568.493478303197},{"$f":"'[2]Gráfico REM'!BL334","v":162259.15798343776},{"$f":"'[2]Gráfico REM'!BM334","v":29103.667118124893},6.0745214803722636,7.6784021077331399,8.2986744604093055,-6.0556276130788067]
[2017,"agosto","2017-agosto",{"$f":"IF('[2]REAL IPC(M)'!$AL341=\"\",\"\",+'[2]REAL IPC(M)'!$AL341)","v":3.1071875434450114},{"$f":"IF('[2]REAL IPC(M)'!$BE341=\"\",\"\",+'[2]REAL IPC(M)'!$BE341)","v":2.6742493600739881},{"$f":"IF('[2]REAL IPC(M)'!$AM341=\"\",\"\",+'[2]REAL IPC(M)'!$AM341)","v":2.7598767161669979},{"$f":"IF('[2]REAL IPC(M)'!$BI341=\"\",\"\",+'[2]REAL IPC(M)'!$BI341)","v":2.3776369342023429},{"$f":"IF('[2]REAL IMAE(M)'!BJ341=\"\",\"\",'[2]REAL IMAE(M)'!BJ341)","v":3.2750969611570868},{"$f":"IF('[2]REAL IMAE(M)'!BK341=\"\",\"\",'[2]REAL IMAE(M)'!BK341)","v":3.7499590040943165},{"$f":"IF('[2]REAL IMAE(M)'!BN341=\"\",\"\",'[2]REAL IMAE(M)'!BN341)","v":3.6237435980174038},{"$f":"IF('[2]REAL IMAE(M)'!BO341=\"\",\"\",'[2]REAL IMAE(M)'!BO341)","v":3.7990363263201266},{"$f":"IF('[2]EXT RIN(M)'!$K341=\"\",\"\",'[2]EXT RIN(M)'!$K341)","v":34677.313132066774},null,{"$f":"IF('[2]EXT RIN(M)'!$L341=\"\",\"\",'[2]EXT RIN(M)'!$L341)","v":38248.688950976772},null,{"$f":"IF('[2]MONE(M)CARD'!EG341=\"\",\"\",'[2]MONE(M)CARD'!EG341)","v":34045.509817830578},{"$f":"IF('[2]MONE(M)CARD'!EK341=\"\",\"\",'[2]MONE(M)CARD'!EK341)","v":56269.297383464364},{"$f":"IF('[2]MONE(M)CARD'!EP341=\"\",\"\",'[2]MONE(M)CARD'!EP341)","v":31032.394993526235},{"$f":"IF('[2]MONE(M)CARD'!ES341=\"\",\"\",'[2]MONE(M)CARD'!ES341)","v":4.9603697638014976},{"$f":"IF('[2]MONE(M)CARD'!EV341=\"\",\"\",'[2]MONE(M)CARD'!EV341)","v":6.3646939619552478},{"$f":"IF('[2]MONE(M)CARD'!EZ341=\"\",\"\",'[2]MONE(M)CARD'!EZ341)","v":6.2092881833083036},{"$f":"IF('[2]MONE(M)CAPARD'!FC341=\"\",\"\",'[2]MONE(M)CAPARD'!FC341)","v":42126.402634010577},{"$f":"IF('[2]MONE(M)CAPARD'!FG341=\"\",\"\",'[2]MONE(M)CAPARD'!FG341)","v":87798.768236314383},{"$f":"IF('[2]MONE(M)CAPARD'!FL341=\"\",\"\",'[2]MONE(M)CAPARD'!FL341)","v":31032.394993526235},{"$f":"IF('[2]MONE(M)CAPARD'!FO341=\"\",\"\",'[2]MONE(M)CAPARD'!FO341)","v":5.2811259488102502},{"$f":"IF('[2]MONE(M)CAPARD'!FR341=\"\",\"\",'[2]MONE(M)CAPARD'!FR341)","v":6.6673023403390541},{"$f":"IF('[2]MONE(M)CAPARD'!FV341=\"\",\"\",'[2]MONE(M)CAPARD'!FV341)","v":6.491083808998388},{"$f":"IF('[2]MONE(M)CARD'!FV341=\"\",\"\",'[2]MONE(M)CARD'!FV341)","v":1592.2531750397015},{"$f":"IF('[2]MONE(M)CARD'!GD341=\"\",\"\",'[2]MONE(M)CARD'!GD341)","v":83.164866979963833},{"$f":"IF('[2]MONE(M)CARD'!GE341=\"\",\"\",'[2]MONE(M)CARD'!GE341)","v":11526.824927568077},24.957082430100485,{"$f":"IF('[9]II.2.Balance OSD-Activos'!J199=\"\",\"\",'[9]II.2.Balance OSD-Activos'!J199)","v":295.92035396073595},{"$f":"IF('[9]II.2.Balance OSD-Activos'!N199=\"\",\"\",'[9]II.2.Balance OSD-Activos'!N199)","v":1005.9305122789051},{"$f":"IF('[9]II.2.Balance OSD-Activos'!R199=\"\",\"\",'[9]II.2.Balance OSD-Activos'!R199)","v":51316.271754234498},{"$f":"IF('[9]II.2.Balance OSD-Activos'!S199=\"\",\"\",'[9]II.2.Balance OSD-Activos'!S199)","v":56352.316242084264},51612.192108195231,108970.4388625584,37.831061174411865,7.0679936626688811,4.0004907552692259,6.9303667598394902,8.073979212502902,7.5564467474950048,-0.3797184273430787,{"$f":"IF('[2]MONE(M)CAPARD'!GS341=\"\",\"\",'[2]MONE(M)CAPARD'!GS341)","v":20783.605543178499},{"$f":"IF('[2]MONE(M)CARD'!HA341=\"\",\"\",'[2]MONE(M)CAPARD'!HA341)","v":13453.855804988078},{"$f":"IF('[2]MONE(M)CAPARD'!HB341=\"\",\"\",'[2]MONE(M)CAPARD'!HB341)","v":7329.7497381904213},"n.d.",{"$f":"IF('[10]II.2.Balance OSD-Activos'!J199=\"\",\"\",'[10]II.2.Balance OSD-Activos'!J199)","v":2478.6155203207363},{"$f":"IF('[10]II.2.Balance OSD-Activos'!N199=\"\",\"\",'[10]II.2.Balance OSD-Activos'!N199)","v":1565.2836819189051},{"$f":"IF('[10]II.2.Balance OSD-Activos'!R199=\"\",\"\",'[10]II.2.Balance OSD-Activos'!R199)","v":74656.045150824502},{"$f":"IF('[10]II.2.Balance OSD-Activos'!S199=\"\",\"\",'[10]II.2.Balance OSD-Activos'!S199)","v":78848.307503174248},77134.660671145233,157548.25185623841,21.570531422931506,6.889111345073462,9.8661122017970513,6.4622571003114748,8.64207383625779,7.7885435303118422,-0.90842134754400927,{"$f":"IF('[2]MONE(M)CAPARD'!AS341=\"\",\"\",'[2]MONE(M)CAPARD'!AS341)","v":4.5},{"$f":"IF('[2]MONE(M)CAPARD'!AT341=\"\",\"\",'[2]MONE(M)CAPARD'!AT341)","v":"n.a."},{"$f":"IF('[2]MONE(M)CAPARD'!AU341=\"\",\"\",'[2]MONE(M)CAPARD'!AU341)","v":3},{"$f":"IF('[2]MONE(M)CAPARD'!AV341=\"\",\"\",'[2]MONE(M)CAPARD'!AV341)","v":5.5},{"$f":"IF('[2]MONE(M)CAPARD'!AW341=\"\",\"\",'[2]MONE(M)CAPARD'!AW341)","v":"n.a."},{"$f":"IF('[2]MONE(M)CAPARD'!AX341=\"\",\"\",'[2]MONE(M)CAPARD'!AX341)","v":5.25},{"$f":"IF('[2]MONE(M)CAPARD'!AY341=\"\",\"\",'[2]MONE(M)CAPARD'!AY341)","v":"n.a."},{"$f":"IF('[2]FISCAL(M)'!$K341=\"\",\"\",'[2]FISCAL(M)'!$K341)","v":-2883.5255577843541},{"$f":"IF('[2]FISCAL(M)'!$L341=\"\",\"\",'[2]FISCAL(M)'!$L341)","v":"n.d."},{"$f":"IF('[2]FISCAL(M)'!$AY341=\"\",\"\",'[2]FISCAL(M)'!$AY341)","v":125951.50996104047},{"$f":"IF('[2]FISCAL(M)'!$BI341=\"\",\"\",'[2]FISCAL(M)'!$BI341)","v":65481.13399647428},{"$f":"IF('[2]FISCAL(M)'!$BS341=\"\",\"\",'[2]FISCAL(M)'!$BS341)","v":60470.375964566178},{"$f":"IF('[2]FISCAL(M)'!$AZ341=\"\",\"\",'[2]FISCAL(M)'!$AZ341)","v":149005.89996104047},{"$f":"IF('[2]FISCAL(M)'!$BJ341=\"\",\"\",'[2]FISCAL(M)'!$BJ341)","v":70519.483996474271},{"$f":"IF('[2]FISCAL(M)'!$BT341=\"\",\"\",'[2]FISCAL(M)'!$BT341)","v":78486.415964566171},{"$f":"IF('[3]MONE(M)'!$AO341=\"\",\"\",'[3]MONE(M)'!$AO341)","v":21279663.753664903},{"$f":"IF('[4]MONE(M)'!$AO341=\"\",\"\",'[4]MONE(M)'!$AO341)","v":12164.323858629999},{"$f":"IF('[5]MONE(M)'!$AO341=\"\",\"\",'[5]MONE(M)'!$AO341)","v":191689.69312869001},{"$f":"+'[1]MONE(M)'!$AO341","v":298627.18354582915},{"$f":"IF('[6]MONE(M)'!$AO341=\"\",\"\",'[6]MONE(M)'!$AO341)","v":153947.64398992402},{"$f":"IF('[7]MONE(M)'!$AO341=\"\",\"\",'[7]MONE(M)'!$AO341)","v":954628.71069402993},{"$f":"IF('[8]MONE(M)'!$AO341=\"\",\"\",'[8]MONE(M)'!$AO341)","v":49428.905064760009},10.714018522709567,5.6571453951479889,4.7731888380598608,10.929448583069412,17.967551796968607,10.374183581692753,8.122368683310599,{"$f":"'[2]FISCAL(M)'!$K341","v":-2883.5255577843541},{"$f":"+'[2]REAL(A)'!$AO$37","v":274097.38374316029},-1.0520076909914351,{"$f":"IF('[2]FISCAL(M)'!$L341=\"\",\"\",'[2]FISCAL(M)'!$L341)","v":"n.d."},{"$f":"+'[2]REAL(A)'!$AP$37","v":336300.10894762492},"n.d.",147780.13315940255,{"$f":"'[2]Gráfico REM'!BG335","v":26336.579754626924},{"$f":"'[2]Gráfico REM'!BH335","v":113601.28488302475},{"$f":"'[2]Gráfico REM'!BI335","v":7842.2685217508561},6.9942269445667726,7.5019123940201826,7.1305472419143534,3.446784760225774,220175.74646466254,{"$f":"'[2]Gráfico REM'!BK335","v":28544.742320766927},{"$f":"'[2]Gráfico REM'!BL335","v":163030.18994778476},{"$f":"'[2]Gráfico REM'!BM335","v":28600.814196110859},5.1976756161111304,6.6772860615197827,7.4293287804170216,-7.090051878775105]
[2017,"septiembre","2017-septiembre",{"$f":"IF('[2]REAL IPC(M)'!$AL342=\"\",\"\",+'[2]REAL IPC(M)'!$AL342)","v":3.3844011142061481},{"$f":"IF('[2]REAL IPC(M)'!$BE342=\"\",\"\",+'[2]REAL IPC(M)'!$BE342)","v":2.693650026854888},{"$f":"IF('[2]REAL IPC(M)'!$AM342=\"\",\"\",+'[2]REAL IPC(M)'!$AM342)","v":3.0090481868555896},{"$f":"IF('[2]REAL IPC(M)'!$BI342=\"\",\"\",+'[2]REAL IPC(M)'!$BI342)","v":2.3910889370770461},{"$f":"IF('[2]REAL IMAE(M)'!BJ342=\"\",\"\",'[2]REAL IMAE(M)'!BJ342)","v":2.8981559770414611},{"$f":"IF('[2]REAL IMAE(M)'!BK342=\"\",\"\",'[2]REAL IMAE(M)'!BK342)","v":3.6758461901448269},{"$f":"IF('[2]REAL IMAE(M)'!BN342=\"\",\"\",'[2]REAL IMAE(M)'!BN342)","v":2.8720710477199596},{"$f":"IF('[2]REAL IMAE(M)'!BO342=\"\",\"\",'[2]REAL IMAE(M)'!BO342)","v":3.7071761894531319},{"$f":"IF('[2]EXT RIN(M)'!$K342=\"\",\"\",'[2]EXT RIN(M)'!$K342)","v":34665.42727563584},null,{"$f":"IF('[2]EXT RIN(M)'!$L342=\"\",\"\",'[2]EXT RIN(M)'!$L342)","v":38236.803094545838},null,{"$f":"IF('[2]MONE(M)CARD'!EG342=\"\",\"\",'[2]MONE(M)CARD'!EG342)","v":34129.534098737735},{"$f":"IF('[2]MONE(M)CARD'!EK342=\"\",\"\",'[2]MONE(M)CARD'!EK342)","v":56303.111676095992},{"$f":"IF('[2]MONE(M)CARD'!EP342=\"\",\"\",'[2]MONE(M)CARD'!EP342)","v":30745.927291208311},{"$f":"IF('[2]MONE(M)CARD'!ES342=\"\",\"\",'[2]MONE(M)CARD'!ES342)","v":4.2105023480415005},{"$f":"IF('[2]MONE(M)CARD'!EV342=\"\",\"\",'[2]MONE(M)CARD'!EV342)","v":6.5282656777374992},{"$f":"IF('[2]MONE(M)CARD'!EZ342=\"\",\"\",'[2]MONE(M)CARD'!EZ342)","v":6.2983099549433819},{"$f":"IF('[2]MONE(M)CAPARD'!FC342=\"\",\"\",'[2]MONE(M)CAPARD'!FC342)","v":42212.588626417739},{"$f":"IF('[2]MONE(M)CAPARD'!FG342=\"\",\"\",'[2]MONE(M)CAPARD'!FG342)","v":87843.79476440599},{"$f":"IF('[2]MONE(M)CAPARD'!FL342=\"\",\"\",'[2]MONE(M)CAPARD'!FL342)","v":30745.927291208325},{"$f":"IF('[2]MONE(M)CAPARD'!FO342=\"\",\"\",'[2]MONE(M)CAPARD'!FO342)","v":4.1070015557282291},{"$f":"IF('[2]MONE(M)CAPARD'!FR342=\"\",\"\",'[2]MONE(M)CAPARD'!FR342)","v":6.3718547335202214},{"$f":"IF('[2]MONE(M)CAPARD'!FV342=\"\",\"\",'[2]MONE(M)CAPARD'!FV342)","v":6.228752894748002},{"$f":"IF('[2]MONE(M)CARD'!FV342=\"\",\"\",'[2]MONE(M)CARD'!FV342)","v":1637.834925174217},{"$f":"IF('[2]MONE(M)CARD'!GD342=\"\",\"\",'[2]MONE(M)CARD'!GD342)","v":199.90246352282887},{"$f":"IF('[2]MONE(M)CARD'!GE342=\"\",\"\",'[2]MONE(M)CARD'!GE342)","v":11869.454776888258},28.019144281634102,{"$f":"IF('[9]II.2.Balance OSD-Activos'!J200=\"\",\"\",'[9]II.2.Balance OSD-Activos'!J200)","v":284.48560478874617},{"$f":"IF('[9]II.2.Balance OSD-Activos'!N200=\"\",\"\",'[9]II.2.Balance OSD-Activos'!N200)","v":1038.1608825758631},{"$f":"IF('[9]II.2.Balance OSD-Activos'!R200=\"\",\"\",'[9]II.2.Balance OSD-Activos'!R200)","v":51397.465670479738},{"$f":"IF('[9]II.2.Balance OSD-Activos'!S200=\"\",\"\",'[9]II.2.Balance OSD-Activos'!S200)","v":56749.086954299724},51681.951275268482,109469.19911214407,37.921790763324047,6.5724201966711471,7.1857721441487943,6.4385101025182578,7.8943393213143143,7.2594947319959635,-0.29695201549904127,{"$f":"IF('[2]MONE(M)CAPARD'!GS342=\"\",\"\",'[2]MONE(M)CAPARD'!GS342)","v":21054.16507569297},{"$f":"IF('[2]MONE(M)CARD'!HA342=\"\",\"\",'[2]MONE(M)CAPARD'!HA342)","v":13796.485654308257},{"$f":"IF('[2]MONE(M)CAPARD'!HB342=\"\",\"\",'[2]MONE(M)CAPARD'!HB342)","v":7257.6794213847134},"n.d.",{"$f":"IF('[10]II.2.Balance OSD-Activos'!J200=\"\",\"\",'[10]II.2.Balance OSD-Activos'!J200)","v":2467.1807711487463},{"$f":"IF('[10]II.2.Balance OSD-Activos'!N200=\"\",\"\",'[10]II.2.Balance OSD-Activos'!N200)","v":1597.5140522158631},{"$f":"IF('[10]II.2.Balance OSD-Activos'!R200=\"\",\"\",'[10]II.2.Balance OSD-Activos'!R200)","v":74740.929631959734},{"$f":"IF('[10]II.2.Balance OSD-Activos'!S200=\"\",\"\",'[10]II.2.Balance OSD-Activos'!S200)","v":79251.809989459725},77208.110403108483,158057.43444478407,21.052950858320173,6.2081575514641996,7.92824815403399,5.7799595388390523,8.2495069837708499,7.2394371230669607,-0.54910640724488147,{"$f":"IF('[2]MONE(M)CAPARD'!AS342=\"\",\"\",'[2]MONE(M)CAPARD'!AS342)","v":4.5},{"$f":"IF('[2]MONE(M)CAPARD'!AT342=\"\",\"\",'[2]MONE(M)CAPARD'!AT342)","v":"n.a."},{"$f":"IF('[2]MONE(M)CAPARD'!AU342=\"\",\"\",'[2]MONE(M)CAPARD'!AU342)","v":3},{"$f":"IF('[2]MONE(M)CAPARD'!AV342=\"\",\"\",'[2]MONE(M)CAPARD'!AV342)","v":5.5},{"$f":"IF('[2]MONE(M)CAPARD'!AW342=\"\",\"\",'[2]MONE(M)CAPARD'!AW342)","v":"n.a."},{"$f":"IF('[2]MONE(M)CAPARD'!AX342=\"\",\"\",'[2]MONE(M)CAPARD'!AX342)","v":5.25},{"$f":"IF('[2]MONE(M)CAPARD'!AY342=\"\",\"\",'[2]MONE(M)CAPARD'!AY342)","v":"n.a."},{"$f":"IF('[2]FISCAL(M)'!$K342=\"\",\"\",'[2]FISCAL(M)'!$K342)","v":-3543.8621473088961},{"$f":"IF('[2]FISCAL(M)'!$L342=\"\",\"\",'[2]FISCAL(M)'!$L342)","v":-5513.8621473088961},{"$f":"IF('[2]FISCAL(M)'!$AY342=\"\",\"\",'[2]FISCAL(M)'!$AY342)","v":126327.12494495645},{"$f":"IF('[2]FISCAL(M)'!$BI342=\"\",\"\",'[2]FISCAL(M)'!$BI342)","v":65944.229882635685},{"$f":"IF('[2]FISCAL(M)'!$BS342=\"\",\"\",'[2]FISCAL(M)'!$BS342)","v":60382.895062320771},{"$f":"IF('[2]FISCAL(M)'!$AZ342=\"\",\"\",'[2]FISCAL(M)'!$AZ342)","v":149707.32494495646},{"$f":"IF('[2]FISCAL(M)'!$BJ342=\"\",\"\",'[2]FISCAL(M)'!$BJ342)","v":71050.939882635692},{"$f":"IF('[2]FISCAL(M)'!$BT342=\"\",\"\",'[2]FISCAL(M)'!$BT342)","v":78656.385062320769},{"$f":"IF('[3]MONE(M)'!$AO342=\"\",\"\",'[3]MONE(M)'!$AO342)","v":21242025.294716924},{"$f":"IF('[4]MONE(M)'!$AO342=\"\",\"\",'[4]MONE(M)'!$AO342)","v":12213.186449140001},{"$f":"IF('[5]MONE(M)'!$AO342=\"\",\"\",'[5]MONE(M)'!$AO342)","v":192569.09123292693},{"$f":"+'[1]MONE(M)'!$AO342","v":301575.38982280227},{"$f":"IF('[6]MONE(M)'!$AO342=\"\",\"\",'[6]MONE(M)'!$AO342)","v":156009.53315301012},{"$f":"IF('[7]MONE(M)'!$AO342=\"\",\"\",'[7]MONE(M)'!$AO342)","v":963192.85069634998},{"$f":"IF('[8]MONE(M)'!$AO342=\"\",\"\",'[8]MONE(M)'!$AO342)","v":49439.32740372001},9.1841801700648151,5.6458744235802438,5.2859230382994227,10.412138685452721,17.764304661113961,10.063119300118096,7.1067564670950656,{"$f":"'[2]FISCAL(M)'!$K342","v":-3543.8621473088961},{"$f":"+'[2]REAL(A)'!$AO$37","v":274097.38374316029},-1.2929208221227058,{"$f":"IF('[2]FISCAL(M)'!$L342=\"\",\"\",'[2]FISCAL(M)'!$L342)","v":-5513.8621473088961},{"$f":"+'[2]REAL(A)'!$AP$37","v":336300.10894762492},-1.6395659711688111,148226.69046538812,{"$f":"'[2]Gráfico REM'!BG336","v":26242.213167288879},{"$f":"'[2]Gráfico REM'!BH336","v":114036.18317892718},{"$f":"'[2]Gráfico REM'!BI336","v":7948.2941191720602},6.9738206453749285,7.8528922062631068,6.7457610143022428,7.3756436677418602,220685.23863445816,{"$f":"'[2]Gráfico REM'!BK336","v":28450.375733428882},{"$f":"'[2]Gráfico REM'!BL336","v":163475.5105826472},{"$f":"'[2]Gráfico REM'!BM336","v":28759.352318382058},4.9434483889782443,6.8196959548260994,6.8546786631016099,-6.2206104589831002]
[2017,"octubre","2017-octubre",{"$f":"IF('[2]REAL IPC(M)'!$AL343=\"\",\"\",+'[2]REAL IPC(M)'!$AL343)","v":3.3881830174269156},{"$f":"IF('[2]REAL IPC(M)'!$BE343=\"\",\"\",+'[2]REAL IPC(M)'!$BE343)","v":2.7117217935676674},{"$f":"IF('[2]REAL IPC(M)'!$AM343=\"\",\"\",+'[2]REAL IPC(M)'!$AM343)","v":2.9658645775041848},{"$f":"IF('[2]REAL IPC(M)'!$BI343=\"\",\"\",+'[2]REAL IPC(M)'!$BI343)","v":2.4028928083905665},{"$f":"IF('[2]REAL IMAE(M)'!BJ343=\"\",\"\",'[2]REAL IMAE(M)'!BJ343)","v":3.2278079756626665},{"$f":"IF('[2]REAL IMAE(M)'!BK343=\"\",\"\",'[2]REAL IMAE(M)'!BK343)","v":3.5991823989572902},{"$f":"IF('[2]REAL IMAE(M)'!BN343=\"\",\"\",'[2]REAL IMAE(M)'!BN343)","v":2.904752180532677},{"$f":"IF('[2]REAL IMAE(M)'!BO343=\"\",\"\",'[2]REAL IMAE(M)'!BO343)","v":3.6107230760665798},{"$f":"IF('[2]EXT RIN(M)'!$K343=\"\",\"\",'[2]EXT RIN(M)'!$K343)","v":34569.499943348463},null,{"$f":"IF('[2]EXT RIN(M)'!$L343=\"\",\"\",'[2]EXT RIN(M)'!$L343)","v":38021.486226318462},null,{"$f":"IF('[2]MONE(M)CARD'!EG343=\"\",\"\",'[2]MONE(M)CARD'!EG343)","v":34541.904615463871},{"$f":"IF('[2]MONE(M)CARD'!EK343=\"\",\"\",'[2]MONE(M)CARD'!EK343)","v":56360.669853475607},{"$f":"IF('[2]MONE(M)CARD'!EP343=\"\",\"\",'[2]MONE(M)CARD'!EP343)","v":30843.085321379884},{"$f":"IF('[2]MONE(M)CARD'!ES343=\"\",\"\",'[2]MONE(M)CARD'!ES343)","v":4.4021068129287411},{"$f":"IF('[2]MONE(M)CARD'!EV343=\"\",\"\",'[2]MONE(M)CARD'!EV343)","v":6.7641149126365319},{"$f":"IF('[2]MONE(M)CARD'!EZ343=\"\",\"\",'[2]MONE(M)CARD'!EZ343)","v":6.4326977049339318},{"$f":"IF('[2]MONE(M)CAPARD'!FC343=\"\",\"\",'[2]MONE(M)CAPARD'!FC343)","v":42327.983754673871},{"$f":"IF('[2]MONE(M)CAPARD'!FG343=\"\",\"\",'[2]MONE(M)CAPARD'!FG343)","v":88043.008819965602},{"$f":"IF('[2]MONE(M)CAPARD'!FL343=\"\",\"\",'[2]MONE(M)CAPARD'!FL343)","v":30843.085321379884},{"$f":"IF('[2]MONE(M)CAPARD'!FO343=\"\",\"\",'[2]MONE(M)CAPARD'!FO343)","v":2.9891541824729639},{"$f":"IF('[2]MONE(M)CAPARD'!FR343=\"\",\"\",'[2]MONE(M)CAPARD'!FR343)","v":6.1544689301737954},{"$f":"IF('[2]MONE(M)CAPARD'!FV343=\"\",\"\",'[2]MONE(M)CAPARD'!FV343)","v":6.0224034116302061},{"$f":"IF('[2]MONE(M)CARD'!FV343=\"\",\"\",'[2]MONE(M)CARD'!FV343)","v":1622.5289544622065},{"$f":"IF('[2]MONE(M)CARD'!GD343=\"\",\"\",'[2]MONE(M)CARD'!GD343)","v":87.838474563917117},{"$f":"IF('[2]MONE(M)CARD'!GE343=\"\",\"\",'[2]MONE(M)CARD'!GE343)","v":12313.29706081877},31.417500478296745,{"$f":"IF('[9]II.2.Balance OSD-Activos'!J201=\"\",\"\",'[9]II.2.Balance OSD-Activos'!J201)","v":301.24381051048397},{"$f":"IF('[9]II.2.Balance OSD-Activos'!N201=\"\",\"\",'[9]II.2.Balance OSD-Activos'!N201)","v":1102.1647844264571},{"$f":"IF('[9]II.2.Balance OSD-Activos'!R201=\"\",\"\",'[9]II.2.Balance OSD-Activos'!R201)","v":51737.589940317557},{"$f":"IF('[9]II.2.Balance OSD-Activos'!S201=\"\",\"\",'[9]II.2.Balance OSD-Activos'!S201)","v":57141.717742971501},52038.833750828038,110282.716278226,40.58249618233436,6.0915262584289032,16.432489923529193,5.9401886602801657,7.5775816814873442,6.9519633448812845,-0.30753138711467898,{"$f":"IF('[2]MONE(M)CAPARD'!GS343=\"\",\"\",'[2]MONE(M)CAPARD'!GS343)","v":21273.434413083534},{"$f":"IF('[2]MONE(M)CARD'!HA343=\"\",\"\",'[2]MONE(M)CAPARD'!HA343)","v":14274.705133038768},{"$f":"IF('[2]MONE(M)CAPARD'!HB343=\"\",\"\",'[2]MONE(M)CAPARD'!HB343)","v":6998.7292800447667},"n.d.",{"$f":"IF('[10]II.2.Balance OSD-Activos'!J201=\"\",\"\",'[10]II.2.Balance OSD-Activos'!J201)","v":2402.267550940483},{"$f":"IF('[10]II.2.Balance OSD-Activos'!N201=\"\",\"\",'[10]II.2.Balance OSD-Activos'!N201)","v":1605.125582056457},{"$f":"IF('[10]II.2.Balance OSD-Activos'!R201=\"\",\"\",'[10]II.2.Balance OSD-Activos'!R201)","v":75410.974910907564},{"$f":"IF('[10]II.2.Balance OSD-Activos'!S201=\"\",\"\",'[10]II.2.Balance OSD-Activos'!S201)","v":80002.172997771515},77813.242461848044,159420.54104167601,17.295826371816435,5.9724802244652153,8.9233692252370211,5.6475885126524572,8.084625759684517,7.0514892752679748,-0.18794784779898599,{"$f":"IF('[2]MONE(M)CAPARD'!AS343=\"\",\"\",'[2]MONE(M)CAPARD'!AS343)","v":4.5},{"$f":"IF('[2]MONE(M)CAPARD'!AT343=\"\",\"\",'[2]MONE(M)CAPARD'!AT343)","v":"n.a."},{"$f":"IF('[2]MONE(M)CAPARD'!AU343=\"\",\"\",'[2]MONE(M)CAPARD'!AU343)","v":3},{"$f":"IF('[2]MONE(M)CAPARD'!AV343=\"\",\"\",'[2]MONE(M)CAPARD'!AV343)","v":5.5},{"$f":"IF('[2]MONE(M)CAPARD'!AW343=\"\",\"\",'[2]MONE(M)CAPARD'!AW343)","v":"n.a."},{"$f":"IF('[2]MONE(M)CAPARD'!AX343=\"\",\"\",'[2]MONE(M)CAPARD'!AX343)","v":5.25},{"$f":"IF('[2]MONE(M)CAPARD'!AY343=\"\",\"\",'[2]MONE(M)CAPARD'!AY343)","v":"n.a."},{"$f":"IF('[2]FISCAL(M)'!$K343=\"\",\"\",'[2]FISCAL(M)'!$K343)","v":-4025.1600757333731},{"$f":"IF('[2]FISCAL(M)'!$L343=\"\",\"\",'[2]FISCAL(M)'!$L343)","v":"n.d."},{"$f":"IF('[2]FISCAL(M)'!$AY343=\"\",\"\",'[2]FISCAL(M)'!$AY343)","v":127217.60793845502},{"$f":"IF('[2]FISCAL(M)'!$BI343=\"\",\"\",'[2]FISCAL(M)'!$BI343)","v":66768.974704694323},{"$f":"IF('[2]FISCAL(M)'!$BS343=\"\",\"\",'[2]FISCAL(M)'!$BS343)","v":60448.633233760702},{"$f":"IF('[2]FISCAL(M)'!$AZ343=\"\",\"\",'[2]FISCAL(M)'!$AZ343)","v":150636.30793845502},{"$f":"IF('[2]FISCAL(M)'!$BJ343=\"\",\"\",'[2]FISCAL(M)'!$BJ343)","v":71922.184704694315},{"$f":"IF('[2]FISCAL(M)'!$BT343=\"\",\"\",'[2]FISCAL(M)'!$BT343)","v":78714.123233760678},{"$f":"IF('[3]MONE(M)'!$AO343=\"\",\"\",'[3]MONE(M)'!$AO343)","v":21255751.591678791},{"$f":"IF('[4]MONE(M)'!$AO343=\"\",\"\",'[4]MONE(M)'!$AO343)","v":12277.975965770001},{"$f":"IF('[5]MONE(M)'!$AO343=\"\",\"\",'[5]MONE(M)'!$AO343)","v":193982.15318468469},{"$f":"+'[1]MONE(M)'!$AO343","v":304038.37016366934},{"$f":"IF('[6]MONE(M)'!$AO343=\"\",\"\",'[6]MONE(M)'!$AO343)","v":158415.80551325923},{"$f":"IF('[7]MONE(M)'!$AO343=\"\",\"\",'[7]MONE(M)'!$AO343)","v":989061.79507474008},{"$f":"IF('[8]MONE(M)'!$AO343=\"\",\"\",'[8]MONE(M)'!$AO343)","v":50054.290763560013},8.1031858800363352,5.1493703983421124,5.3522033390909662,10.527120294686231,16.596870790368822,11.022547400676963,7.3732784910300886,{"$f":"'[2]FISCAL(M)'!$K343","v":-4025.1600757333731},{"$f":"+'[2]REAL(A)'!$AO$37","v":274097.38374316029},-1.4685145916989495,{"$f":"IF('[2]FISCAL(M)'!$L343=\"\",\"\",'[2]FISCAL(M)'!$L343)","v":"n.d."},{"$f":"+'[2]REAL(A)'!$AP$37","v":336300.10894762492},"n.d.",149465.51146842213,{"$f":"'[2]Gráfico REM'!BG337","v":26407.990788107043},{"$f":"'[2]Gráfico REM'!BH337","v":115009.43588528407},{"$f":"'[2]Gráfico REM'!BI337","v":8048.0847950310163},7.1888601129006302,9.6393182944314759,6.615611068059768,7.5651946795636027,223326.93812376214,{"$f":"'[2]Gráfico REM'!BK337","v":28708.269964597042},{"$f":"'[2]Gráfico REM'!BL337","v":165063.72664884408},{"$f":"'[2]Gráfico REM'!BM337","v":29554.941510321009},5.478585131167546,8.9409028955785619,6.8442357760572392,-4.3066931216712341]
[2017,"noviembre","2017-noviembre",{"$f":"IF('[2]REAL IPC(M)'!$AL344=\"\",\"\",+'[2]REAL IPC(M)'!$AL344)","v":3.8584095317262257},{"$f":"IF('[2]REAL IPC(M)'!$BE344=\"\",\"\",+'[2]REAL IPC(M)'!$BE344)","v":2.7283463669761199},{"$f":"IF('[2]REAL IPC(M)'!$AM344=\"\",\"\",+'[2]REAL IPC(M)'!$AM344)","v":3.3652167841932812},{"$f":"IF('[2]REAL IPC(M)'!$BI344=\"\",\"\",+'[2]REAL IPC(M)'!$BI344)","v":2.4129303209702746},{"$f":"IF('[2]REAL IMAE(M)'!BJ344=\"\",\"\",'[2]REAL IMAE(M)'!BJ344)","v":3.9617017095892715},{"$f":"IF('[2]REAL IMAE(M)'!BK344=\"\",\"\",'[2]REAL IMAE(M)'!BK344)","v":3.5199227778454967},{"$f":"IF('[2]REAL IMAE(M)'!BN344=\"\",\"\",'[2]REAL IMAE(M)'!BN344)","v":4.1085742545377446},{"$f":"IF('[2]REAL IMAE(M)'!BO344=\"\",\"\",'[2]REAL IMAE(M)'!BO344)","v":3.5095953867461338},{"$f":"IF('[2]EXT RIN(M)'!$K344=\"\",\"\",'[2]EXT RIN(M)'!$K344)","v":35312.710180463109},null,{"$f":"IF('[2]EXT RIN(M)'!$L344=\"\",\"\",'[2]EXT RIN(M)'!$L344)","v":38577.649339733107},null,{"$f":"IF('[2]MONE(M)CARD'!EG344=\"\",\"\",'[2]MONE(M)CARD'!EG344)","v":35814.30959872283},{"$f":"IF('[2]MONE(M)CARD'!EK344=\"\",\"\",'[2]MONE(M)CARD'!EK344)","v":56003.406833774396},{"$f":"IF('[2]MONE(M)CARD'!EP344=\"\",\"\",'[2]MONE(M)CARD'!EP344)","v":30941.813067773794},{"$f":"IF('[2]MONE(M)CARD'!ES344=\"\",\"\",'[2]MONE(M)CARD'!ES344)","v":6.4970018726281609},{"$f":"IF('[2]MONE(M)CARD'!EV344=\"\",\"\",'[2]MONE(M)CARD'!EV344)","v":7.4842607891117074},{"$f":"IF('[2]MONE(M)CARD'!EZ344=\"\",\"\",'[2]MONE(M)CARD'!EZ344)","v":6.8647252031258654},{"$f":"IF('[2]MONE(M)CAPARD'!FC344=\"\",\"\",'[2]MONE(M)CAPARD'!FC344)","v":44063.351049172823},{"$f":"IF('[2]MONE(M)CAPARD'!FG344=\"\",\"\",'[2]MONE(M)CAPARD'!FG344)","v":87804.623345894375},{"$f":"IF('[2]MONE(M)CAPARD'!FL344=\"\",\"\",'[2]MONE(M)CAPARD'!FL344)","v":30941.813067773823},{"$f":"IF('[2]MONE(M)CAPARD'!FO344=\"\",\"\",'[2]MONE(M)CAPARD'!FO344)","v":5.2665995026654144},{"$f":"IF('[2]MONE(M)CAPARD'!FR344=\"\",\"\",'[2]MONE(M)CAPARD'!FR344)","v":6.8479579141669467},{"$f":"IF('[2]MONE(M)CAPARD'!FV344=\"\",\"\",'[2]MONE(M)CAPARD'!FV344)","v":6.5049799704416378},{"$f":"IF('[2]MONE(M)CARD'!FV344=\"\",\"\",'[2]MONE(M)CARD'!FV344)","v":1660.0897133486112},{"$f":"IF('[2]MONE(M)CARD'!GD344=\"\",\"\",'[2]MONE(M)CARD'!GD344)","v":65.072248633361184},{"$f":"IF('[2]MONE(M)CARD'!GE344=\"\",\"\",'[2]MONE(M)CARD'!GE344)","v":11501.640477704657},20.420321032669975,{"$f":"IF('[9]II.2.Balance OSD-Activos'!J202=\"\",\"\",'[9]II.2.Balance OSD-Activos'!J202)","v":301.23622686846818},{"$f":"IF('[9]II.2.Balance OSD-Activos'!N202=\"\",\"\",'[9]II.2.Balance OSD-Activos'!N202)","v":1083.5578452881568},{"$f":"IF('[9]II.2.Balance OSD-Activos'!R202=\"\",\"\",'[9]II.2.Balance OSD-Activos'!R202)","v":52322.616611384758},{"$f":"IF('[9]II.2.Balance OSD-Activos'!S202=\"\",\"\",'[9]II.2.Balance OSD-Activos'!S202)","v":57875.520882190554},52623.852838253224,111582.93156573194,46.500586367480537,5.7978248662445608,8.9339029542548687,5.6288644899774587,7.750972914502019,6.832105384785403,-0.11985796009588157,{"$f":"IF('[2]MONE(M)CAPARD'!GS344=\"\",\"\",'[2]MONE(M)CAPARD'!GS344)","v":21269.422165871285},{"$f":"IF('[2]MONE(M)CARD'!HA344=\"\",\"\",'[2]MONE(M)CAPARD'!HA344)","v":13252.382015604657},{"$f":"IF('[2]MONE(M)CAPARD'!HB344=\"\",\"\",'[2]MONE(M)CAPARD'!HB344)","v":8017.0401502666282},"n.d.",{"$f":"IF('[10]II.2.Balance OSD-Activos'!J202=\"\",\"\",'[10]II.2.Balance OSD-Activos'!J202)","v":2366.3099086984685},{"$f":"IF('[10]II.2.Balance OSD-Activos'!N202=\"\",\"\",'[10]II.2.Balance OSD-Activos'!N202)","v":1566.1909433281567},{"$f":"IF('[10]II.2.Balance OSD-Activos'!R202=\"\",\"\",'[10]II.2.Balance OSD-Activos'!R202)","v":76106.528332394751},{"$f":"IF('[10]II.2.Balance OSD-Activos'!S202=\"\",\"\",'[10]II.2.Balance OSD-Activos'!S202)","v":80911.020163810565},78472.838241093224,160950.04934823193,15.119281344809199,5.8852901225143972,4.0765699060946625,5.6218724182622415,8.1787241713037204,7.0076426616642484,-4.3846613603726325E-2,{"$f":"IF('[2]MONE(M)CAPARD'!AS344=\"\",\"\",'[2]MONE(M)CAPARD'!AS344)","v":4.75},{"$f":"IF('[2]MONE(M)CAPARD'!AT344=\"\",\"\",'[2]MONE(M)CAPARD'!AT344)","v":"n.a."},{"$f":"IF('[2]MONE(M)CAPARD'!AU344=\"\",\"\",'[2]MONE(M)CAPARD'!AU344)","v":2.75},{"$f":"IF('[2]MONE(M)CAPARD'!AV344=\"\",\"\",'[2]MONE(M)CAPARD'!AV344)","v":5.5},{"$f":"IF('[2]MONE(M)CAPARD'!AW344=\"\",\"\",'[2]MONE(M)CAPARD'!AW344)","v":"n.a."},{"$f":"IF('[2]MONE(M)CAPARD'!AX344=\"\",\"\",'[2]MONE(M)CAPARD'!AX344)","v":5.25},{"$f":"IF('[2]MONE(M)CAPARD'!AY344=\"\",\"\",'[2]MONE(M)CAPARD'!AY344)","v":"n.a."},{"$f":"IF('[2]FISCAL(M)'!$K344=\"\",\"\",'[2]FISCAL(M)'!$K344)","v":-4982.1504544045783},{"$f":"IF('[2]FISCAL(M)'!$L344=\"\",\"\",'[2]FISCAL(M)'!$L344)","v":"n.d."},{"$f":"IF('[2]FISCAL(M)'!$AY344=\"\",\"\",'[2]FISCAL(M)'!$AY344)","v":127836.35191198118},{"$f":"IF('[2]FISCAL(M)'!$BI344=\"\",\"\",'[2]FISCAL(M)'!$BI344)","v":67175.888839698891},{"$f":"IF('[2]FISCAL(M)'!$BS344=\"\",\"\",'[2]FISCAL(M)'!$BS344)","v":60660.463072282277},{"$f":"IF('[2]FISCAL(M)'!$AZ344=\"\",\"\",'[2]FISCAL(M)'!$AZ344)","v":151301.87191198117},{"$f":"IF('[2]FISCAL(M)'!$BJ344=\"\",\"\",'[2]FISCAL(M)'!$BJ344)","v":72361.098839698883},{"$f":"IF('[2]FISCAL(M)'!$BT344=\"\",\"\",'[2]FISCAL(M)'!$BT344)","v":78940.773072282274},{"$f":"IF('[3]MONE(M)'!$AO344=\"\",\"\",'[3]MONE(M)'!$AO344)","v":21293709.595980667},{"$f":"IF('[4]MONE(M)'!$AO344=\"\",\"\",'[4]MONE(M)'!$AO344)","v":12387.01806979},{"$f":"IF('[5]MONE(M)'!$AO344=\"\",\"\",'[5]MONE(M)'!$AO344)","v":195264.96583115641},{"$f":"+'[1]MONE(M)'!$AO344","v":309504.32598062092},{"$f":"IF('[6]MONE(M)'!$AO344=\"\",\"\",'[6]MONE(M)'!$AO344)","v":161754.62509811853},{"$f":"IF('[7]MONE(M)'!$AO344=\"\",\"\",'[7]MONE(M)'!$AO344)","v":1007599.3219701201},{"$f":"IF('[8]MONE(M)'!$AO344=\"\",\"\",'[8]MONE(M)'!$AO344)","v":50294.687295940006},7.2410722382020509,5.145902398038471,4.9051265662446664,10.325954149000438,17.089521292033226,11.30639171952954,7.5171565150213171,{"$f":"'[2]FISCAL(M)'!$K344","v":-4982.1504544045783},{"$f":"+'[2]REAL(A)'!$AO$37","v":274097.38374316029},-1.8176570627441828,{"$f":"IF('[2]FISCAL(M)'!$L344=\"\",\"\",'[2]FISCAL(M)'!$L344)","v":"n.d."},{"$f":"+'[2]REAL(A)'!$AP$37","v":336300.10894762492},"n.d.",150684.61459648938,{"$f":"'[2]Gráfico REM'!BG338","v":26373.38071091348},{"$f":"'[2]Gráfico REM'!BH338","v":116187.1921628964},{"$f":"'[2]Gráfico REM'!BI338","v":8124.0417226794771},7.1755667263239564,10.497763991325604,6.4685337981725821,6.8944771679412487,224919.13752240935,{"$f":"'[2]Gráfico REM'!BK338","v":28668.018967603479},{"$f":"'[2]Gráfico REM'!BL338","v":166481.8794588364},{"$f":"'[2]Gráfico REM'!BM338","v":29769.239095969471},5.7435419299512347,9.9768862345700917,6.7831632805938735,-3.1222999397520601]
[2017,"diciembre","2017-diciembre",{"$f":"IF('[2]REAL IPC(M)'!$AL345=\"\",\"\",+'[2]REAL IPC(M)'!$AL345)","v":4.2716168656407483},{"$f":"IF('[2]REAL IPC(M)'!$BE345=\"\",\"\",+'[2]REAL IPC(M)'!$BE345)","v":2.7434516630744366},{"$f":"IF('[2]REAL IPC(M)'!$AM345=\"\",\"\",+'[2]REAL IPC(M)'!$AM345)","v":3.7294739771778662},{"$f":"IF('[2]REAL IPC(M)'!$BI345=\"\",\"\",+'[2]REAL IPC(M)'!$BI345)","v":2.4211282615482776},{"$f":"IF('[2]REAL IMAE(M)'!BJ345=\"\",\"\",'[2]REAL IMAE(M)'!BJ345)","v":4.1546496389677223},{"$f":"IF('[2]REAL IMAE(M)'!BK345=\"\",\"\",'[2]REAL IMAE(M)'!BK345)","v":3.4379994848465545},{"$f":"IF('[2]REAL IMAE(M)'!BN345=\"\",\"\",'[2]REAL IMAE(M)'!BN345)","v":4.9573868334862548},{"$f":"IF('[2]REAL IMAE(M)'!BO345=\"\",\"\",'[2]REAL IMAE(M)'!BO345)","v":3.4036616175347367},{"$f":"IF('[2]EXT RIN(M)'!$K345=\"\",\"\",'[2]EXT RIN(M)'!$K345)","v":36474.703866077441},{"$f":"IF(B338<>\"diciembre\",\"\",L338)","v":36474.703866077441},{"$f":"IF('[2]EXT RIN(M)'!$L345=\"\",\"\",'[2]EXT RIN(M)'!$L345)","v":39985.087701877441},{"$f":"IF(B338<>\"diciembre\",\"\",N338)","v":39985.087701877441},{"$f":"IF('[2]MONE(M)CARD'!EG345=\"\",\"\",'[2]MONE(M)CARD'!EG345)","v":37586.311238256712},{"$f":"IF('[2]MONE(M)CARD'!EK345=\"\",\"\",'[2]MONE(M)CARD'!EK345)","v":56365.12904263565},{"$f":"IF('[2]MONE(M)CARD'!EP345=\"\",\"\",'[2]MONE(M)CARD'!EP345)","v":30795.526219740146},{"$f":"IF('[2]MONE(M)CARD'!ES345=\"\",\"\",'[2]MONE(M)CARD'!ES345)","v":7.2795676444935342},{"$f":"IF('[2]MONE(M)CARD'!EV345=\"\",\"\",'[2]MONE(M)CARD'!EV345)","v":7.0429277609321383},{"$f":"IF('[2]MONE(M)CARD'!EZ345=\"\",\"\",'[2]MONE(M)CARD'!EZ345)","v":6.4083194659477094},{"$f":"IF('[2]MONE(M)CAPARD'!FC345=\"\",\"\",'[2]MONE(M)CAPARD'!FC345)","v":45933.269371396709},{"$f":"IF('[2]MONE(M)CAPARD'!FG345=\"\",\"\",'[2]MONE(M)CAPARD'!FG345)","v":88047.521353045653},{"$f":"IF('[2]MONE(M)CAPARD'!FL345=\"\",\"\",'[2]MONE(M)CAPARD'!FL345)","v":30795.526219740161},{"$f":"IF('[2]MONE(M)CAPARD'!FO345=\"\",\"\",'[2]MONE(M)CAPARD'!FO345)","v":6.1860995503831617},{"$f":"IF('[2]MONE(M)CAPARD'!FR345=\"\",\"\",'[2]MONE(M)CAPARD'!FR345)","v":6.4301713076980072},{"$f":"IF('[2]MONE(M)CAPARD'!FV345=\"\",\"\",'[2]MONE(M)CAPARD'!FV345)","v":6.067485915835702},{"$f":"IF('[2]MONE(M)CARD'!FV345=\"\",\"\",'[2]MONE(M)CARD'!FV345)","v":1833.1012734044857},{"$f":"IF('[2]MONE(M)CARD'!GD345=\"\",\"\",'[2]MONE(M)CARD'!GD345)","v":110.53156395915957},{"$f":"IF('[2]MONE(M)CARD'!GE345=\"\",\"\",'[2]MONE(M)CARD'!GE345)","v":10738.104296934425},14.318170417933862,{"$f":"IF('[9]II.2.Balance OSD-Activos'!J203=\"\",\"\",'[9]II.2.Balance OSD-Activos'!J203)","v":308.9290675771017},{"$f":"IF('[9]II.2.Balance OSD-Activos'!N203=\"\",\"\",'[9]II.2.Balance OSD-Activos'!N203)","v":1107.7443845267994},{"$f":"IF('[9]II.2.Balance OSD-Activos'!R203=\"\",\"\",'[9]II.2.Balance OSD-Activos'!R203)","v":52752.229040080514},{"$f":"IF('[9]II.2.Balance OSD-Activos'!S203=\"\",\"\",'[9]II.2.Balance OSD-Activos'!S203)","v":57893.080501618395},53061.158107657619,112061.98299380281,56.913635449571757,5.6027798540873697,13.858623160673321,5.4009381024527903,6.7992915430215239,6.2941821032293843,-0.53792328155601865,{"$f":"IF('[2]MONE(M)CAPARD'!GS345=\"\",\"\",'[2]MONE(M)CAPARD'!GS345)","v":21600.257642294331},{"$f":"IF('[2]MONE(M)CARD'!HA345=\"\",\"\",'[2]MONE(M)CAPARD'!HA345)","v":12754.041516444426},{"$f":"IF('[2]MONE(M)CAPARD'!HB345=\"\",\"\",'[2]MONE(M)CAPARD'!HB345)","v":8846.2161258499054},"n.d.",{"$f":"IF('[10]II.2.Balance OSD-Activos'!J203=\"\",\"\",'[10]II.2.Balance OSD-Activos'!J203)","v":2651.4619450871019},{"$f":"IF('[10]II.2.Balance OSD-Activos'!N203=\"\",\"\",'[10]II.2.Balance OSD-Activos'!N203)","v":1625.1837474367994},{"$f":"IF('[10]II.2.Balance OSD-Activos'!R203=\"\",\"\",'[10]II.2.Balance OSD-Activos'!R203)","v":76304.833558260521},{"$f":"IF('[10]II.2.Balance OSD-Activos'!S203=\"\",\"\",'[10]II.2.Balance OSD-Activos'!S203)","v":81090.044397028396},78956.295503347617,161671.52364781284,26.028449771273053,5.9359729604448797,{"$f":"IF(OR(AX338=\"\",AX326=\"\"),\"\",((AX338/AX326)-1)*100)","v":8.1242454027696596},5.3523365168520742,7.4751788362643401,6.7243156970497209,-0.28332696461452755,{"$f":"IF('[2]MONE(M)CAPARD'!AS345=\"\",\"\",'[2]MONE(M)CAPARD'!AS345)","v":4.75},{"$f":"IF('[2]MONE(M)CAPARD'!AT345=\"\",\"\",'[2]MONE(M)CAPARD'!AT345)","v":"n.a."},{"$f":"IF('[2]MONE(M)CAPARD'!AU345=\"\",\"\",'[2]MONE(M)CAPARD'!AU345)","v":2.75},{"$f":"IF('[2]MONE(M)CAPARD'!AV345=\"\",\"\",'[2]MONE(M)CAPARD'!AV345)","v":5.5},{"$f":"IF('[2]MONE(M)CAPARD'!AW345=\"\",\"\",'[2]MONE(M)CAPARD'!AW345)","v":"n.a."},{"$f":"IF('[2]MONE(M)CAPARD'!AX345=\"\",\"\",'[2]MONE(M)CAPARD'!AX345)","v":5.25},{"$f":"IF('[2]MONE(M)CAPARD'!AY345=\"\",\"\",'[2]MONE(M)CAPARD'!AY345)","v":"n.a."},{"$f":"IF('[2]FISCAL(M)'!$K345=\"\",\"\",'[2]FISCAL(M)'!$K345)","v":-7591.5968860678022},{"$f":"IF('[2]FISCAL(M)'!$L345=\"\",\"\",'[2]FISCAL(M)'!$L345)","v":-9534.5968860678022},{"$f":"IF('[2]FISCAL(M)'!$AY345=\"\",\"\",'[2]FISCAL(M)'!$AY345)","v":128286.62905123024},{"$f":"IF('[2]FISCAL(M)'!$BI345=\"\",\"\",'[2]FISCAL(M)'!$BI345)","v":67677.177882080243},{"$f":"IF('[2]FISCAL(M)'!$BS345=\"\",\"\",'[2]FISCAL(M)'!$BS345)","v":60609.451169150008},{"$f":"IF('[2]FISCAL(M)'!$AZ345=\"\",\"\",'[2]FISCAL(M)'!$AZ345)","v":151660.19905123021},{"$f":"IF('[2]FISCAL(M)'!$BJ345=\"\",\"\",'[2]FISCAL(M)'!$BJ345)","v":72660.707882080242},{"$f":"IF('[2]FISCAL(M)'!$BT345=\"\",\"\",'[2]FISCAL(M)'!$BT345)","v":78999.491169150002},{"$f":"IF('[3]MONE(M)'!$AO345=\"\",\"\",'[3]MONE(M)'!$AO345)","v":21399461.384278394},{"$f":"IF('[4]MONE(M)'!$AO345=\"\",\"\",'[4]MONE(M)'!$AO345)","v":12387.1523165},{"$f":"IF('[5]MONE(M)'!$AO345=\"\",\"\",'[5]MONE(M)'!$AO345)","v":196404.14799292589},{"$f":"+'[1]MONE(M)'!$AO345","v":312133.79158487008},{"$f":"IF('[6]MONE(M)'!$AO345=\"\",\"\",'[6]MONE(M)'!$AO345)","v":162304.82634707497},{"$f":"IF('[7]MONE(M)'!$AO345=\"\",\"\",'[7]MONE(M)'!$AO345)","v":1020323.4839092001},{"$f":"IF('[8]MONE(M)'!$AO345=\"\",\"\",'[8]MONE(M)'!$AO345)","v":50510.213475560013},6.9326697559124018,5.3650048536689976,3.727708387403772,8.211391497500987,16.194870193215682,11.819029018974248,7.786854983765279,{"$f":"'[2]FISCAL(M)'!$K345","v":-7591.5968860678022},{"$f":"+'[2]REAL(A)'!$AO$37","v":274097.38374316029},-2.7696714147339025,{"$f":"IF('[2]FISCAL(M)'!$L345=\"\",\"\",'[2]FISCAL(M)'!$L345)","v":-9534.5968860678022},{"$f":"+'[2]REAL(A)'!$AP$37","v":336300.10894762492},-2.8351453455974682,151019.89649797327,{"$f":"'[2]Gráfico REM'!BG339","v":26059.870113092205},{"$f":"'[2]Gráfico REM'!BH339","v":116583.63278146884},{"$f":"'[2]Gráfico REM'!BI339","v":8376.3936034122235},6.6252785915763335,9.6333461114983763,5.9419998839345123,7.0969920620948868,225533.98203595326,{"$f":"'[2]Gráfico REM'!BK339","v":28354.508369782205},{"$f":"'[2]Gráfico REM'!BL339","v":167093.84625702887},{"$f":"'[2]Gráfico REM'!BM339","v":30085.627409142195},5.4160806699874664,9.2533096149682201,6.4929803352071769,-3.2227480591257684]
[2018,"enero",{"$f":"A339&\"-\"&B339","v":"2018-enero"},{"$f":"IF('[2]REAL IPC(M)'!$AL346=\"\",\"\",+'[2]REAL IPC(M)'!$AL346)","v":3.7694469193338298},{"$f":"IF('[2]REAL IPC(M)'!$BE346=\"\",\"\",+'[2]REAL IPC(M)'!$BE346)","v":2.7570352202548776},{"$f":"IF('[2]REAL IPC(M)'!$AM346=\"\",\"\",+'[2]REAL IPC(M)'!$AM346)","v":3.2708664684323319},{"$f":"IF('[2]REAL IPC(M)'!$BI346=\"\",\"\",+'[2]REAL IPC(M)'!$BI346)","v":2.4274804567945285},{"$f":"IF('[2]REAL IMAE(M)'!BJ346=\"\",\"\",'[2]REAL IMAE(M)'!BJ346)","v":3.9571703038547623},{"$f":"IF('[2]REAL IMAE(M)'!BK346=\"\",\"\",'[2]REAL IMAE(M)'!BK346)","v":3.3533697728136191},{"$f":"IF('[2]REAL IMAE(M)'!BN346=\"\",\"\",'[2]REAL IMAE(M)'!BN346)","v":4.4558720635410776},{"$f":"IF('[2]REAL IMAE(M)'!BO346=\"\",\"\",'[2]REAL IMAE(M)'!BO346)","v":3.2928299714975351},{"$f":"IF('[2]EXT RIN(M)'!$K346=\"\",\"\",'[2]EXT RIN(M)'!$K346)","v":36125.627438655705},null,{"$f":"IF('[2]EXT RIN(M)'!$L346=\"\",\"\",'[2]EXT RIN(M)'!$L346)","v":39345.605161375708},null,{"$f":"IF('[2]MONE(M)CARD'!EG346=\"\",\"\",'[2]MONE(M)CARD'!EG346)","v":36712.543756148683},{"$f":"IF('[2]MONE(M)CARD'!EK346=\"\",\"\",'[2]MONE(M)CARD'!EK346)","v":56273.39524143545},{"$f":"IF('[2]MONE(M)CARD'!EP346=\"\",\"\",'[2]MONE(M)CARD'!EP346)","v":30993.839346661785},{"$f":"IF('[2]MONE(M)CARD'!ES346=\"\",\"\",'[2]MONE(M)CARD'!ES346)","v":5.9995458626622256},{"$f":"IF('[2]MONE(M)CARD'!EV346=\"\",\"\",'[2]MONE(M)CARD'!EV346)","v":6.5881705997646645},{"$f":"IF('[2]MONE(M)CARD'!EZ346=\"\",\"\",'[2]MONE(M)CARD'!EZ346)","v":5.7918221868665798},{"$f":"IF('[2]MONE(M)CAPARD'!FC346=\"\",\"\",'[2]MONE(M)CAPARD'!FC346)","v":44847.749623298689},{"$f":"IF('[2]MONE(M)CAPARD'!FG346=\"\",\"\",'[2]MONE(M)CAPARD'!FG346)","v":88069.562102555457},{"$f":"IF('[2]MONE(M)CAPARD'!FL346=\"\",\"\",'[2]MONE(M)CAPARD'!FL346)","v":30993.839346661756},{"$f":"IF('[2]MONE(M)CAPARD'!FO346=\"\",\"\",'[2]MONE(M)CAPARD'!FO346)","v":4.8932322723618693},{"$f":"IF('[2]MONE(M)CAPARD'!FR346=\"\",\"\",'[2]MONE(M)CAPARD'!FR346)","v":5.8235491229330583},{"$f":"IF('[2]MONE(M)CAPARD'!FV346=\"\",\"\",'[2]MONE(M)CAPARD'!FV346)","v":5.3708351115708375},{"$f":"IF('[2]MONE(M)CARD'!FV346=\"\",\"\",'[2]MONE(M)CARD'!FV346)","v":1780.9861402738056},{"$f":"IF('[2]MONE(M)CARD'!GD346=\"\",\"\",'[2]MONE(M)CARD'!GD346)","v":76.49058567026286},{"$f":"IF('[2]MONE(M)CARD'!GE346=\"\",\"\",'[2]MONE(M)CARD'!GE346)","v":11362.249665207552},27.253891947920383,{"$f":"IF('[9]II.2.Balance OSD-Activos'!J204=\"\",\"\",'[9]II.2.Balance OSD-Activos'!J204)","v":281.2620828778791},{"$f":"IF('[9]II.2.Balance OSD-Activos'!N204=\"\",\"\",'[9]II.2.Balance OSD-Activos'!N204)","v":1135.887885321345},{"$f":"IF('[9]II.2.Balance OSD-Activos'!R204=\"\",\"\",'[9]II.2.Balance OSD-Activos'!R204)","v":53006.910335949964},{"$f":"IF('[9]II.2.Balance OSD-Activos'!S204=\"\",\"\",'[9]II.2.Balance OSD-Activos'!S204)","v":57859.545143198178},53288.172418827846,112283.60544734736,39.487470364232927,5.6625757194898041,11.063497477832907,5.5267935653612765,6.3946140607689328,6.0909077994063088,-0.20327430382307554,{"$f":"IF('[2]MONE(M)CAPARD'!GS346=\"\",\"\",'[2]MONE(M)CAPARD'!GS346)","v":22025.453651472566},{"$f":"IF('[2]MONE(M)CARD'!HA346=\"\",\"\",'[2]MONE(M)CAPARD'!HA346)","v":13365.772656977551},{"$f":"IF('[2]MONE(M)CAPARD'!HB346=\"\",\"\",'[2]MONE(M)CAPARD'!HB346)","v":8659.6809944950146},"n.d.",{"$f":"IF('[10]II.2.Balance OSD-Activos'!J204=\"\",\"\",'[10]II.2.Balance OSD-Activos'!J204)","v":2572.1970677978793},{"$f":"IF('[10]II.2.Balance OSD-Activos'!N204=\"\",\"\",'[10]II.2.Balance OSD-Activos'!N204)","v":1642.104891441345},{"$f":"IF('[10]II.2.Balance OSD-Activos'!R204=\"\",\"\",'[10]II.2.Balance OSD-Activos'!R204)","v":76628.936737619952},{"$f":"IF('[10]II.2.Balance OSD-Activos'!S204=\"\",\"\",'[10]II.2.Balance OSD-Activos'!S204)","v":81135.966209038175},79201.133805417834,161979.20490589735,21.793986080942407,5.8673027349889884,7.6091627516932103,5.404633477989873,7.0821887704874076,6.489952764480833,-0.23436293256888785,{"$f":"IF('[2]MONE(M)CAPARD'!AS346=\"\",\"\",'[2]MONE(M)CAPARD'!AS346)","v":4.75},{"$f":"IF('[2]MONE(M)CAPARD'!AT346=\"\",\"\",'[2]MONE(M)CAPARD'!AT346)","v":"n.a."},{"$f":"IF('[2]MONE(M)CAPARD'!AU346=\"\",\"\",'[2]MONE(M)CAPARD'!AU346)","v":2.75},{"$f":"IF('[2]MONE(M)CAPARD'!AV346=\"\",\"\",'[2]MONE(M)CAPARD'!AV346)","v":5.5},{"$f":"IF('[2]MONE(M)CAPARD'!AW346=\"\",\"\",'[2]MONE(M)CAPARD'!AW346)","v":"n.a."},{"$f":"IF('[2]MONE(M)CAPARD'!AX346=\"\",\"\",'[2]MONE(M)CAPARD'!AX346)","v":5.25},{"$f":"IF('[2]MONE(M)CAPARD'!AY346=\"\",\"\",'[2]MONE(M)CAPARD'!AY346)","v":"n.a."},{"$f":"IF('[2]FISCAL(M)'!$K346=\"\",\"\",'[2]FISCAL(M)'!$K346)","v":247.06145116413117},{"$f":"IF('[2]FISCAL(M)'!$L346=\"\",\"\",'[2]FISCAL(M)'!$L346)","v":"n.d."},{"$f":"IF('[2]FISCAL(M)'!$AY346=\"\",\"\",'[2]FISCAL(M)'!$AY346)","v":129839.27222936621},{"$f":"IF('[2]FISCAL(M)'!$BI346=\"\",\"\",'[2]FISCAL(M)'!$BI346)","v":69025.392329026974},{"$f":"IF('[2]FISCAL(M)'!$BS346=\"\",\"\",'[2]FISCAL(M)'!$BS346)","v":60813.879900339234},{"$f":"IF('[2]FISCAL(M)'!$AZ346=\"\",\"\",'[2]FISCAL(M)'!$AZ346)","v":153223.3622293662},{"$f":"IF('[2]FISCAL(M)'!$BJ346=\"\",\"\",'[2]FISCAL(M)'!$BJ346)","v":74037.772329026979},{"$f":"IF('[2]FISCAL(M)'!$BT346=\"\",\"\",'[2]FISCAL(M)'!$BT346)","v":79185.589900339226},{"$f":"IF('[3]MONE(M)'!$AO346=\"\",\"\",'[3]MONE(M)'!$AO346)","v":21417637.061319809},{"$f":"IF('[4]MONE(M)'!$AO346=\"\",\"\",'[4]MONE(M)'!$AO346)","v":12428.562464769999},{"$f":"IF('[5]MONE(M)'!$AO346=\"\",\"\",'[5]MONE(M)'!$AO346)","v":196801.54827932426},{"$f":"+'[1]MONE(M)'!$AO346","v":315712.13774291723},{"$f":"IF('[6]MONE(M)'!$AO346=\"\",\"\",'[6]MONE(M)'!$AO346)","v":163974.13918666716},{"$f":"IF('[7]MONE(M)'!$AO346=\"\",\"\",'[7]MONE(M)'!$AO346)","v":1021457.8907678099},{"$f":"IF('[8]MONE(M)'!$AO346=\"\",\"\",'[8]MONE(M)'!$AO346)","v":50541.883697339996},{"$f":"IF(BY339=\"\",\"\",((BY339/BY327)-1)*100)","v":6.1547674726853296},{"$f":"IF(BZ339=\"\",\"\",((BZ339/BZ327)-1)*100)","v":4.6976374204637406},{"$f":"IF(CA339=\"\",\"\",((CA339/CA327)-1)*100)","v":4.0845463747357869},{"$f":"IF(CB339=\"\",\"\",((CB339/CB327)-1)*100)","v":8.5857373067208087},{"$f":"IF(CC339=\"\",\"\",((CC339/CC327)-1)*100)","v":16.158911427150024},{"$f":"IF(CD339=\"\",\"\",((CD339/CD327)-1)*100)","v":11.781437367081281},{"$f":"IF(CE339=\"\",\"\",((CE339/CE327)-1)*100)","v":7.3081624939931311},{"$f":"'[2]FISCAL(M)'!$K346","v":247.06145116413117},{"$f":"+'[2]REAL(A)'!$AO$38","v":284395.32118885993},{"$f":"IF(OR(CM339=\"n.d.\",CM339=\"\",CN339=\"\",CN339=\"n.d.\"),\"\",(CM339/CN339)*100)","v":8.6872544221662393E-2},{"$f":"IF('[2]FISCAL(M)'!$L346=\"\",\"\",'[2]FISCAL(M)'!$L346)","v":"n.d."},{"$f":"+'[2]REAL(A)'!$AP$38","v":349324.72961703659},"n.d.",152926.38757141188,{"$f":"'[2]Gráfico REM'!BG340","v":27684.515770531998},{"$f":"'[2]Gráfico REM'!BH340","v":116768.45930825644},{"$f":"'[2]Gráfico REM'!BI340","v":8473.4124926234472},6.9434003468681782,12.207497433227864,5.6125190608850239,9.1680550613323817,227539.06820028188,{"$f":"'[2]Gráfico REM'!BK340","v":29880.369660892},{"$f":"'[2]Gráfico REM'!BL340","v":167310.34300559643},{"$f":"'[2]Gráfico REM'!BM340","v":30348.355533793452},5.7776576096002286,11.145387940559059,6.1190708426211993,-0.70498785653447804]
[2018,"febrero","2018-febrero",{"$f":"IF('[2]REAL IPC(M)'!$AL347=\"\",\"\",+'[2]REAL IPC(M)'!$AL347)","v":3.3369728401801746},{"$f":"IF('[2]REAL IPC(M)'!$BE347=\"\",\"\",+'[2]REAL IPC(M)'!$BE347)","v":2.769179331075633},{"$f":"IF('[2]REAL IPC(M)'!$AM347=\"\",\"\",+'[2]REAL IPC(M)'!$AM347)","v":2.906336088154271},{"$f":"IF('[2]REAL IPC(M)'!$BI347=\"\",\"\",+'[2]REAL IPC(M)'!$BI347)","v":2.4320627929344862},{"$f":"IF('[2]REAL IMAE(M)'!BJ347=\"\",\"\",'[2]REAL IMAE(M)'!BJ347)","v":3.9323059180512931},{"$f":"IF('[2]REAL IMAE(M)'!BK347=\"\",\"\",'[2]REAL IMAE(M)'!BK347)","v":3.2660325473322205},{"$f":"IF('[2]REAL IMAE(M)'!BN347=\"\",\"\",'[2]REAL IMAE(M)'!BN347)","v":3.7925125863460751},{"$f":"IF('[2]REAL IMAE(M)'!BO347=\"\",\"\",'[2]REAL IMAE(M)'!BO347)","v":3.1771121460401952},{"$f":"IF('[2]EXT RIN(M)'!$K347=\"\",\"\",'[2]EXT RIN(M)'!$K347)","v":37446.972792715576},null,{"$f":"IF('[2]EXT RIN(M)'!$L347=\"\",\"\",'[2]EXT RIN(M)'!$L347)","v":40271.882445475574},null,{"$f":"IF('[2]MONE(M)CARD'!EG347=\"\",\"\",'[2]MONE(M)CARD'!EG347)","v":36617.524809463364},{"$f":"IF('[2]MONE(M)CARD'!EK347=\"\",\"\",'[2]MONE(M)CARD'!EK347)","v":56346.057494157976},{"$f":"IF('[2]MONE(M)CARD'!EP347=\"\",\"\",'[2]MONE(M)CARD'!EP347)","v":31430.767289324373},{"$f":"IF('[2]MONE(M)CARD'!ES347=\"\",\"\",'[2]MONE(M)CARD'!ES347)","v":5.5207577613076486},{"$f":"IF('[2]MONE(M)CARD'!EV347=\"\",\"\",'[2]MONE(M)CARD'!EV347)","v":5.5208361910096926},{"$f":"IF('[2]MONE(M)CARD'!EZ347=\"\",\"\",'[2]MONE(M)CARD'!EZ347)","v":4.8020953284682477},{"$f":"IF('[2]MONE(M)CAPARD'!FC347=\"\",\"\",'[2]MONE(M)CAPARD'!FC347)","v":44763.542737813361},{"$f":"IF('[2]MONE(M)CAPARD'!FG347=\"\",\"\",'[2]MONE(M)CAPARD'!FG347)","v":88419.144303758003},{"$f":"IF('[2]MONE(M)CAPARD'!FL347=\"\",\"\",'[2]MONE(M)CAPARD'!FL347)","v":31430.767289324343},{"$f":"IF('[2]MONE(M)CAPARD'!FO347=\"\",\"\",'[2]MONE(M)CAPARD'!FO347)","v":4.6856876621852228},{"$f":"IF('[2]MONE(M)CAPARD'!FR347=\"\",\"\",'[2]MONE(M)CAPARD'!FR347)","v":5.1170616393940271},{"$f":"IF('[2]MONE(M)CAPARD'!FV347=\"\",\"\",'[2]MONE(M)CAPARD'!FV347)","v":4.6532351519431137},{"$f":"IF('[2]MONE(M)CARD'!FV347=\"\",\"\",'[2]MONE(M)CARD'!FV347)","v":1780.7397128588016},{"$f":"IF('[2]MONE(M)CARD'!GD347=\"\",\"\",'[2]MONE(M)CARD'!GD347)","v":64.388227705650024},{"$f":"IF('[2]MONE(M)CARD'!GE347=\"\",\"\",'[2]MONE(M)CARD'!GE347)","v":11640.462642328272},18.467650663718736,{"$f":"IF('[9]II.2.Balance OSD-Activos'!J205=\"\",\"\",'[9]II.2.Balance OSD-Activos'!J205)","v":287.18719882082701},{"$f":"IF('[9]II.2.Balance OSD-Activos'!N205=\"\",\"\",'[9]II.2.Balance OSD-Activos'!N205)","v":1097.8236953281089},{"$f":"IF('[9]II.2.Balance OSD-Activos'!R205=\"\",\"\",'[9]II.2.Balance OSD-Activos'!R205)","v":52646.225714417626},{"$f":"IF('[9]II.2.Balance OSD-Activos'!S205=\"\",\"\",'[9]II.2.Balance OSD-Activos'!S205)","v":58202.49446005356},52933.412913238455,112233.73106862012,-7.1238576954769979,4.3677957281615498,11.279064984401476,4.4382870943751485,6.6186537981170135,5.5879134766808392,-0.50299432272546962,{"$f":"IF('[2]MONE(M)CAPARD'!GS347=\"\",\"\",'[2]MONE(M)CAPARD'!GS347)","v":21559.297045994572},{"$f":"IF('[2]MONE(M)CARD'!HA347=\"\",\"\",'[2]MONE(M)CAPARD'!HA347)","v":13632.679264658273},{"$f":"IF('[2]MONE(M)CAPARD'!HB347=\"\",\"\",'[2]MONE(M)CAPARD'!HB347)","v":7926.6177813362992},"n.d.",{"$f":"IF('[10]II.2.Balance OSD-Activos'!J205=\"\",\"\",'[10]II.2.Balance OSD-Activos'!J205)","v":2580.3782518308276},{"$f":"IF('[10]II.2.Balance OSD-Activos'!N205=\"\",\"\",'[10]II.2.Balance OSD-Activos'!N205)","v":1662.3063195881086},{"$f":"IF('[10]II.2.Balance OSD-Activos'!R205=\"\",\"\",'[10]II.2.Balance OSD-Activos'!R205)","v":76347.251956587628},{"$f":"IF('[10]II.2.Balance OSD-Activos'!S205=\"\",\"\",'[10]II.2.Balance OSD-Activos'!S205)","v":81647.074893713565},78927.630208418457,162237.01142172015,16.159743933270001,4.9385569744113234,{"$f":"IF(OR(AX340=\"\",AX328=\"\"),\"\",((AX340/AX328)-1)*100)","v":13.044346485566848},{"$f":"IF(OR(AY340=\"\",AY328=\"\"),\"\",((AY340/AY328)-1)*100)","v":4.5970555067408325},{"$f":"IF(OR(AZ340=\"\",AZ328=\"\"),\"\",((AZ340/AZ328)-1)*100)","v":7.2358848679715315},6.1611142723394741,-0.32883849214135896,{"$f":"IF('[2]MONE(M)CAPARD'!AS347=\"\",\"\",'[2]MONE(M)CAPARD'!AS347)","v":5},{"$f":"IF('[2]MONE(M)CAPARD'!AT347=\"\",\"\",'[2]MONE(M)CAPARD'!AT347)","v":"n.a."},{"$f":"IF('[2]MONE(M)CAPARD'!AU347=\"\",\"\",'[2]MONE(M)CAPARD'!AU347)","v":2.75},{"$f":"IF('[2]MONE(M)CAPARD'!AV347=\"\",\"\",'[2]MONE(M)CAPARD'!AV347)","v":5.5},{"$f":"IF('[2]MONE(M)CAPARD'!AW347=\"\",\"\",'[2]MONE(M)CAPARD'!AW347)","v":"n.a."},{"$f":"IF('[2]MONE(M)CAPARD'!AX347=\"\",\"\",'[2]MONE(M)CAPARD'!AX347)","v":5.25},{"$f":"IF('[2]MONE(M)CAPARD'!AY347=\"\",\"\",'[2]MONE(M)CAPARD'!AY347)","v":"n.a."},{"$f":"IF('[2]FISCAL(M)'!$K347=\"\",\"\",'[2]FISCAL(M)'!$K347)","v":-363.11734660538912},{"$f":"IF('[2]FISCAL(M)'!$L347=\"\",\"\",'[2]FISCAL(M)'!$L347)","v":"n.d."},{"$f":"IF('[2]FISCAL(M)'!$AY347=\"\",\"\",'[2]FISCAL(M)'!$AY347)","v":132184.96896449564},{"$f":"IF('[2]FISCAL(M)'!$BI347=\"\",\"\",'[2]FISCAL(M)'!$BI347)","v":69678.398808648926},{"$f":"IF('[2]FISCAL(M)'!$BS347=\"\",\"\",'[2]FISCAL(M)'!$BS347)","v":62506.570155846726},{"$f":"IF('[2]FISCAL(M)'!$AZ347=\"\",\"\",'[2]FISCAL(M)'!$AZ347)","v":155511.13896449565},{"$f":"IF('[2]FISCAL(M)'!$BJ347=\"\",\"\",'[2]FISCAL(M)'!$BJ347)","v":74663.68880864892},{"$f":"IF('[2]FISCAL(M)'!$BT347=\"\",\"\",'[2]FISCAL(M)'!$BT347)","v":80847.450155846731},{"$f":"IF('[3]MONE(M)'!$AO347=\"\",\"\",'[3]MONE(M)'!$AO347)","v":21425531.55567161},{"$f":"IF('[4]MONE(M)'!$AO347=\"\",\"\",'[4]MONE(M)'!$AO347)","v":12515.20647085},{"$f":"IF('[5]MONE(M)'!$AO347=\"\",\"\",'[5]MONE(M)'!$AO347)","v":196545.94725095161},{"$f":"+'[1]MONE(M)'!$AO347","v":317338.01309441047},{"$f":"IF('[6]MONE(M)'!$AO347=\"\",\"\",'[6]MONE(M)'!$AO347)","v":164651.83950322599},{"$f":"IF('[7]MONE(M)'!$AO347=\"\",\"\",'[7]MONE(M)'!$AO347)","v":1028956.28682644},{"$f":"IF('[8]MONE(M)'!$AO347=\"\",\"\",'[8]MONE(M)'!$AO347)","v":50784.165615800004},4.9092829247841641,4.9200491644593614,3.5488823410208203,9.4126040183161628,16.674414537975824,11.593720364612704,7.1498270035061262,{"$f":"'[2]FISCAL(M)'!$K347","v":-363.11734660538912},{"$f":"+'[2]REAL(A)'!$AO$38","v":284395.32118885993},-0.12768049245235361,{"$f":"IF('[2]FISCAL(M)'!$L347=\"\",\"\",'[2]FISCAL(M)'!$L347)","v":"n.d."},{"$f":"+'[2]REAL(A)'!$AP$38","v":349324.72961703659},"n.d.",152729.18114062989,{"$f":"'[2]Gráfico REM'!BG341","v":27621.334176322503},{"$f":"'[2]Gráfico REM'!BH341","v":116721.7919462822},{"$f":"'[2]Gráfico REM'!BI341","v":8386.0550180252012},6.3383800268178137,11.84419777044463,5.0255751408510685,7.6123040849126244,227326.95544317993,{"$f":"'[2]Gráfico REM'!BK341","v":29811.360604842503},{"$f":"'[2]Gráfico REM'!BL341","v":167505.95756208221},{"$f":"'[2]Gráfico REM'!BM341","v":30009.637276255206},5.2411570247850037,10.625358854137779,5.6606514042431666,-1.690605497493991]
[2018,"marzo","2018-marzo",{"$f":"IF('[2]REAL IPC(M)'!$AL348=\"\",\"\",+'[2]REAL IPC(M)'!$AL348)","v":3.5414534288638722},{"$f":"IF('[2]REAL IPC(M)'!$BE348=\"\",\"\",+'[2]REAL IPC(M)'!$BE348)","v":2.780027806132801},{"$f":"IF('[2]REAL IPC(M)'!$AM348=\"\",\"\",+'[2]REAL IPC(M)'!$AM348)","v":3.1064884970381623},{"$f":"IF('[2]REAL IPC(M)'!$BI348=\"\",\"\",+'[2]REAL IPC(M)'!$BI348)","v":2.435010624291789},{"$f":"IF('[2]REAL IMAE(M)'!BJ348=\"\",\"\",'[2]REAL IMAE(M)'!BJ348)","v":4.3280848110357706},{"$f":"IF('[2]REAL IMAE(M)'!BK348=\"\",\"\",'[2]REAL IMAE(M)'!BK348)","v":3.1760231891694524},{"$f":"IF('[2]REAL IMAE(M)'!BN348=\"\",\"\",'[2]REAL IMAE(M)'!BN348)","v":4.4329696556049569},{"$f":"IF('[2]REAL IMAE(M)'!BO348=\"\",\"\",'[2]REAL IMAE(M)'!BO348)","v":3.0565951932692403},{"$f":"IF('[2]EXT RIN(M)'!$K348=\"\",\"\",'[2]EXT RIN(M)'!$K348)","v":38876.111293439797},null,{"$f":"IF('[2]EXT RIN(M)'!$L348=\"\",\"\",'[2]EXT RIN(M)'!$L348)","v":41663.817642469796},null,{"$f":"IF('[2]MONE(M)CARD'!EG348=\"\",\"\",'[2]MONE(M)CARD'!EG348)","v":37396.818128848579},{"$f":"IF('[2]MONE(M)CARD'!EK348=\"\",\"\",'[2]MONE(M)CARD'!EK348)","v":56515.656829898304},{"$f":"IF('[2]MONE(M)CARD'!EP348=\"\",\"\",'[2]MONE(M)CARD'!EP348)","v":31357.761866564411},{"$f":"IF('[2]MONE(M)CARD'!ES348=\"\",\"\",'[2]MONE(M)CARD'!ES348)","v":8.5819938181827879},{"$f":"IF('[2]MONE(M)CARD'!EV348=\"\",\"\",'[2]MONE(M)CARD'!EV348)","v":5.8132497513907033},{"$f":"IF('[2]MONE(M)CARD'!EZ348=\"\",\"\",'[2]MONE(M)CARD'!EZ348)","v":4.7130831225052239},{"$f":"IF('[2]MONE(M)CAPARD'!FC348=\"\",\"\",'[2]MONE(M)CAPARD'!FC348)","v":45510.240432418577},{"$f":"IF('[2]MONE(M)CAPARD'!FG348=\"\",\"\",'[2]MONE(M)CAPARD'!FG348)","v":88702.460185648306},{"$f":"IF('[2]MONE(M)CAPARD'!FL348=\"\",\"\",'[2]MONE(M)CAPARD'!FL348)","v":31357.761866564397},{"$f":"IF('[2]MONE(M)CAPARD'!FO348=\"\",\"\",'[2]MONE(M)CAPARD'!FO348)","v":7.2470554821013389},{"$f":"IF('[2]MONE(M)CAPARD'!FR348=\"\",\"\",'[2]MONE(M)CAPARD'!FR348)","v":5.3064870749589987},{"$f":"IF('[2]MONE(M)CAPARD'!FV348=\"\",\"\",'[2]MONE(M)CAPARD'!FV348)","v":4.5740428362265328},{"$f":"IF('[2]MONE(M)CARD'!FV348=\"\",\"\",'[2]MONE(M)CARD'!FV348)","v":1688.7163155737157},{"$f":"IF('[2]MONE(M)CARD'!GD348=\"\",\"\",'[2]MONE(M)CARD'!GD348)","v":68.207969778381099},{"$f":"IF('[2]MONE(M)CARD'!GE348=\"\",\"\",'[2]MONE(M)CARD'!GE348)","v":11499.785157509112},15.587386727377272,{"$f":"IF('[9]II.2.Balance OSD-Activos'!J206=\"\",\"\",'[9]II.2.Balance OSD-Activos'!J206)","v":273.81148827631984},{"$f":"IF('[9]II.2.Balance OSD-Activos'!N206=\"\",\"\",'[9]II.2.Balance OSD-Activos'!N206)","v":1109.3170953125796},{"$f":"IF('[9]II.2.Balance OSD-Activos'!R206=\"\",\"\",'[9]II.2.Balance OSD-Activos'!R206)","v":52927.352628731081},{"$f":"IF('[9]II.2.Balance OSD-Activos'!S206=\"\",\"\",'[9]II.2.Balance OSD-Activos'!S206)","v":58409.51113499338},53201.1641170074,112719.99234731335,18.662910583381674,4.8680199512271871,9.1399374973376357,4.8049885859219987,6.3885805989063682,5.6914980459330078,0.10358456925216863,{"$f":"IF('[2]MONE(M)CAPARD'!GS348=\"\",\"\",'[2]MONE(M)CAPARD'!GS348)","v":21687.620685206668},{"$f":"IF('[2]MONE(M)CARD'!HA348=\"\",\"\",'[2]MONE(M)CAPARD'!HA348)","v":13392.849862619114},{"$f":"IF('[2]MONE(M)CAPARD'!HB348=\"\",\"\",'[2]MONE(M)CAPARD'!HB348)","v":8294.770822587554},"n.d.",{"$f":"IF('[10]II.2.Balance OSD-Activos'!J206=\"\",\"\",'[10]II.2.Balance OSD-Activos'!J206)","v":2547.9677249163201},{"$f":"IF('[10]II.2.Balance OSD-Activos'!N206=\"\",\"\",'[10]II.2.Balance OSD-Activos'!N206)","v":1664.6008412325793},{"$f":"IF('[10]II.2.Balance OSD-Activos'!R206=\"\",\"\",'[10]II.2.Balance OSD-Activos'!R206)","v":76719.578931781085},{"$f":"IF('[10]II.2.Balance OSD-Activos'!S206=\"\",\"\",'[10]II.2.Balance OSD-Activos'!S206)","v":81968.93237101339},79267.546656697406,162901.07986894337,19.860740821750888,5.134895319549293,11.70476370985134,4.7076577470642533,7.0188241273452912,6.1388491074890528,-2.2265164850421293E-2,{"$f":"IF('[2]MONE(M)CAPARD'!AS348=\"\",\"\",'[2]MONE(M)CAPARD'!AS348)","v":5},{"$f":"IF('[2]MONE(M)CAPARD'!AT348=\"\",\"\",'[2]MONE(M)CAPARD'!AT348)","v":"n.a."},{"$f":"IF('[2]MONE(M)CAPARD'!AU348=\"\",\"\",'[2]MONE(M)CAPARD'!AU348)","v":2.75},{"$f":"IF('[2]MONE(M)CAPARD'!AV348=\"\",\"\",'[2]MONE(M)CAPARD'!AV348)","v":5.5},{"$f":"IF('[2]MONE(M)CAPARD'!AW348=\"\",\"\",'[2]MONE(M)CAPARD'!AW348)","v":"n.a."},{"$f":"IF('[2]MONE(M)CAPARD'!AX348=\"\",\"\",'[2]MONE(M)CAPARD'!AX348)","v":5.25},{"$f":"IF('[2]MONE(M)CAPARD'!AY348=\"\",\"\",'[2]MONE(M)CAPARD'!AY348)","v":"n.a."},{"$f":"IF('[2]FISCAL(M)'!$K348=\"\",\"\",'[2]FISCAL(M)'!$K348)","v":-896.63724633367985},{"$f":"IF('[2]FISCAL(M)'!$L348=\"\",\"\",'[2]FISCAL(M)'!$L348)","v":-1801.6372463336797},{"$f":"IF('[2]FISCAL(M)'!$AY348=\"\",\"\",'[2]FISCAL(M)'!$AY348)","v":134042.66736864403},{"$f":"IF('[2]FISCAL(M)'!$BI348=\"\",\"\",'[2]FISCAL(M)'!$BI348)","v":70625.389107224561},{"$f":"IF('[2]FISCAL(M)'!$BS348=\"\",\"\",'[2]FISCAL(M)'!$BS348)","v":63417.278261419444},{"$f":"IF('[2]FISCAL(M)'!$AZ348=\"\",\"\",'[2]FISCAL(M)'!$AZ348)","v":157715.64966864401},{"$f":"IF('[2]FISCAL(M)'!$BJ348=\"\",\"\",'[2]FISCAL(M)'!$BJ348)","v":75828.961407224575},{"$f":"IF('[2]FISCAL(M)'!$BT348=\"\",\"\",'[2]FISCAL(M)'!$BT348)","v":81886.688261419447},{"$f":"IF('[3]MONE(M)'!$AO348=\"\",\"\",'[3]MONE(M)'!$AO348)","v":21334644.844102934},{"$f":"IF('[4]MONE(M)'!$AO348=\"\",\"\",'[4]MONE(M)'!$AO348)","v":12548.006143149998},{"$f":"IF('[5]MONE(M)'!$AO348=\"\",\"\",'[5]MONE(M)'!$AO348)","v":197925.36200012689},{"$f":"+'[1]MONE(M)'!$AO348","v":319802.51179749845},{"$f":"IF('[6]MONE(M)'!$AO348=\"\",\"\",'[6]MONE(M)'!$AO348)","v":166524.83952769733},{"$f":"IF('[7]MONE(M)'!$AO348=\"\",\"\",'[7]MONE(M)'!$AO348)","v":1035364.0489089899},{"$f":"IF('[8]MONE(M)'!$AO348=\"\",\"\",'[8]MONE(M)'!$AO348)","v":50957.433308420004},3.8830331632307979,5.3508448302869605,3.7553130105482335,10.095217061631057,15.894782285555277,12.788396678576275,6.8240801937131002,{"$f":"'[2]FISCAL(M)'!$K348","v":-896.63724633367985},{"$f":"+'[2]REAL(A)'!$AO$38","v":284395.32118885993},-0.31527848017522242,{"$f":"IF('[2]FISCAL(M)'!$L348=\"\",\"\",'[2]FISCAL(M)'!$L348)","v":-1801.6372463336797},{"$f":"+'[2]REAL(A)'!$AP$38","v":349324.72961703659},-0.51574855530806762,153064.14894652565,{"$f":"'[2]Gráfico REM'!BG342","v":27356.637150390558},{"$f":"'[2]Gráfico REM'!BH342","v":117147.89976500123},{"$f":"'[2]Gráfico REM'!BI342","v":8559.6120311338436},5.7973942319914595,8.4050835217121431,4.9775855659849766,9.0694471336120195,227336.87196392566,{"$f":"'[2]Gráfico REM'!BK342","v":29639.139839600557},{"$f":"'[2]Gráfico REM'!BL342","v":168105.33307342124},{"$f":"'[2]Gráfico REM'!BM342","v":29592.399050903841},4.8071359350288612,7.8265410614998698,5.5305320071521002,-1.7728054961476336]
[2018,"abril","2018-abril",{"$f":"IF('[2]REAL IPC(M)'!$AL349=\"\",\"\",+'[2]REAL IPC(M)'!$AL349)","v":3.4651780243719843},{"$f":"IF('[2]REAL IPC(M)'!$BE349=\"\",\"\",+'[2]REAL IPC(M)'!$BE349)","v":2.7897632624307889},{"$f":"IF('[2]REAL IPC(M)'!$AM349=\"\",\"\",+'[2]REAL IPC(M)'!$AM349)","v":3.0661350199367332},{"$f":"IF('[2]REAL IPC(M)'!$BI349=\"\",\"\",+'[2]REAL IPC(M)'!$BI349)","v":2.4364967314902453},{"$f":"IF('[2]REAL IMAE(M)'!BJ349=\"\",\"\",'[2]REAL IMAE(M)'!BJ349)","v":4.7425500006572641},{"$f":"IF('[2]REAL IMAE(M)'!BK349=\"\",\"\",'[2]REAL IMAE(M)'!BK349)","v":3.0834169692130597},{"$f":"IF('[2]REAL IMAE(M)'!BN349=\"\",\"\",'[2]REAL IMAE(M)'!BN349)","v":5.0062237934019205},{"$f":"IF('[2]REAL IMAE(M)'!BO349=\"\",\"\",'[2]REAL IMAE(M)'!BO349)","v":2.9314029825900922},{"$f":"IF('[2]EXT RIN(M)'!$K349=\"\",\"\",'[2]EXT RIN(M)'!$K349)","v":38383.28818037254},null,{"$f":"IF('[2]EXT RIN(M)'!$L349=\"\",\"\",'[2]EXT RIN(M)'!$L349)","v":41727.930410402536},null,{"$f":"IF('[2]MONE(M)CARD'!EG349=\"\",\"\",'[2]MONE(M)CARD'!EG349)","v":36917.411721358061},{"$f":"IF('[2]MONE(M)CARD'!EK349=\"\",\"\",'[2]MONE(M)CARD'!EK349)","v":56860.736906286489},{"$f":"IF('[2]MONE(M)CARD'!EP349=\"\",\"\",'[2]MONE(M)CARD'!EP349)","v":31811.271449174703},{"$f":"IF('[2]MONE(M)CARD'!ES349=\"\",\"\",'[2]MONE(M)CARD'!ES349)","v":6.3896513261488597},{"$f":"IF('[2]MONE(M)CARD'!EV349=\"\",\"\",'[2]MONE(M)CARD'!EV349)","v":5.0830792545875303},{"$f":"IF('[2]MONE(M)CARD'!EZ349=\"\",\"\",'[2]MONE(M)CARD'!EZ349)","v":4.8519160220957813},{"$f":"IF('[2]MONE(M)CAPARD'!FC349=\"\",\"\",'[2]MONE(M)CAPARD'!FC349)","v":45370.330090168063},{"$f":"IF('[2]MONE(M)CAPARD'!FG349=\"\",\"\",'[2]MONE(M)CAPARD'!FG349)","v":88813.984693216495},{"$f":"IF('[2]MONE(M)CAPARD'!FL349=\"\",\"\",'[2]MONE(M)CAPARD'!FL349)","v":31811.271449174703},{"$f":"IF('[2]MONE(M)CAPARD'!FO349=\"\",\"\",'[2]MONE(M)CAPARD'!FO349)","v":6.3530220640897417},{"$f":"IF('[2]MONE(M)CAPARD'!FR349=\"\",\"\",'[2]MONE(M)CAPARD'!FR349)","v":4.7326951825667818},{"$f":"IF('[2]MONE(M)CAPARD'!FV349=\"\",\"\",'[2]MONE(M)CAPARD'!FV349)","v":4.6256154369294755},{"$f":"IF('[2]MONE(M)CARD'!FV349=\"\",\"\",'[2]MONE(M)CARD'!FV349)","v":1691.1942177467004},{"$f":"IF('[2]MONE(M)CARD'!GD349=\"\",\"\",'[2]MONE(M)CARD'!GD349)","v":141.57578360524906},{"$f":"IF('[2]MONE(M)CARD'!GE349=\"\",\"\",'[2]MONE(M)CARD'!GE349)","v":11999.469907383649},16.080366568640269,{"$f":"IF('[9]II.2.Balance OSD-Activos'!J207=\"\",\"\",'[9]II.2.Balance OSD-Activos'!J207)","v":278.12774231133869},{"$f":"IF('[9]II.2.Balance OSD-Activos'!N207=\"\",\"\",'[9]II.2.Balance OSD-Activos'!N207)","v":1165.889778966713},{"$f":"IF('[9]II.2.Balance OSD-Activos'!R207=\"\",\"\",'[9]II.2.Balance OSD-Activos'!R207)","v":54139.910276679977},{"$f":"IF('[9]II.2.Balance OSD-Activos'!S207=\"\",\"\",'[9]II.2.Balance OSD-Activos'!S207)","v":57656.242957148883},54418.038018991312,113240.17075510691,15.504243873282618,6.7592364146217498,18.11609897896005,6.7177290083139996,4.4139308819918455,5.6555166975546856,-3.5981348378322231E-2,{"$f":"IF('[2]MONE(M)CAPARD'!GS349=\"\",\"\",'[2]MONE(M)CAPARD'!GS349)","v":21539.827789875573},{"$f":"IF('[2]MONE(M)CARD'!HA349=\"\",\"\",'[2]MONE(M)CAPARD'!HA349)","v":13905.724416133649},{"$f":"IF('[2]MONE(M)CAPARD'!HB349=\"\",\"\",'[2]MONE(M)CAPARD'!HB349)","v":7634.1033737419239},"n.d.",{"$f":"IF('[10]II.2.Balance OSD-Activos'!J207=\"\",\"\",'[10]II.2.Balance OSD-Activos'!J207)","v":2524.3654399613388},{"$f":"IF('[10]II.2.Balance OSD-Activos'!N207=\"\",\"\",'[10]II.2.Balance OSD-Activos'!N207)","v":1791.3369845467128},{"$f":"IF('[10]II.2.Balance OSD-Activos'!R207=\"\",\"\",'[10]II.2.Balance OSD-Activos'!R207)","v":77976.746561219974},{"$f":"IF('[10]II.2.Balance OSD-Activos'!S207=\"\",\"\",'[10]II.2.Balance OSD-Activos'!S207)","v":81341.205945598893},80501.112001181318,163633.65493132692,19.017121845169083,6.1437782832180154,19.604859298798203,5.773400015990493,5.5948724284104356,6.0004728666138707,-0.13837624087518208,{"$f":"IF('[2]MONE(M)CAPARD'!AS349=\"\",\"\",'[2]MONE(M)CAPARD'!AS349)","v":5},{"$f":"IF('[2]MONE(M)CAPARD'!AT349=\"\",\"\",'[2]MONE(M)CAPARD'!AT349)","v":"n.a."},{"$f":"IF('[2]MONE(M)CAPARD'!AU349=\"\",\"\",'[2]MONE(M)CAPARD'!AU349)","v":2.75},{"$f":"IF('[2]MONE(M)CAPARD'!AV349=\"\",\"\",'[2]MONE(M)CAPARD'!AV349)","v":5.5},{"$f":"IF('[2]MONE(M)CAPARD'!AW349=\"\",\"\",'[2]MONE(M)CAPARD'!AW349)","v":"n.a."},{"$f":"IF('[2]MONE(M)CAPARD'!AX349=\"\",\"\",'[2]MONE(M)CAPARD'!AX349)","v":5.25},{"$f":"IF('[2]MONE(M)CAPARD'!AY349=\"\",\"\",'[2]MONE(M)CAPARD'!AY349)","v":"n.a."},{"$f":"IF('[2]FISCAL(M)'!$K349=\"\",\"\",'[2]FISCAL(M)'!$K349)","v":-209.70235611360278},{"$f":"IF('[2]FISCAL(M)'!$L349=\"\",\"\",'[2]FISCAL(M)'!$L349)","v":"n.d."},{"$f":"IF('[2]FISCAL(M)'!$AY349=\"\",\"\",'[2]FISCAL(M)'!$AY349)","v":134356.67635913682},{"$f":"IF('[2]FISCAL(M)'!$BI349=\"\",\"\",'[2]FISCAL(M)'!$BI349)","v":71071.769910360017},{"$f":"IF('[2]FISCAL(M)'!$BS349=\"\",\"\",'[2]FISCAL(M)'!$BS349)","v":63284.906448776819},{"$f":"IF('[2]FISCAL(M)'!$AZ349=\"\",\"\",'[2]FISCAL(M)'!$AZ349)","v":159156.66665913683},{"$f":"IF('[2]FISCAL(M)'!$BJ349=\"\",\"\",'[2]FISCAL(M)'!$BJ349)","v":76217.342210360017},{"$f":"IF('[2]FISCAL(M)'!$BT349=\"\",\"\",'[2]FISCAL(M)'!$BT349)","v":82939.324448776824},{"$f":"IF('[3]MONE(M)'!$AO349=\"\",\"\",'[3]MONE(M)'!$AO349)","v":21373079.821764626},{"$f":"IF('[4]MONE(M)'!$AO349=\"\",\"\",'[4]MONE(M)'!$AO349)","v":12615.719560829999},{"$f":"IF('[5]MONE(M)'!$AO349=\"\",\"\",'[5]MONE(M)'!$AO349)","v":198391.13962014142},{"$f":"+'[1]MONE(M)'!$AO349","v":322803.60269061406},{"$f":"IF('[6]MONE(M)'!$AO349=\"\",\"\",'[6]MONE(M)'!$AO349)","v":168339.33452671391},{"$f":"IF('[7]MONE(M)'!$AO349=\"\",\"\",'[7]MONE(M)'!$AO349)","v":1045414.5419804598},{"$f":"IF('[8]MONE(M)'!$AO349=\"\",\"\",'[8]MONE(M)'!$AO349)","v":51130.021452860005},2.9923700113904772,5.0620712594141581,3.4486803286323697,11.384709598595254,13.812784202251937,13.532892362416082,6.4633307822110631,{"$f":"'[2]FISCAL(M)'!$K349","v":-209.70235611360278},{"$f":"+'[2]REAL(A)'!$AO$38","v":284395.32118885993},-7.3736218738403442E-2,{"$f":"IF('[2]FISCAL(M)'!$L349=\"\",\"\",'[2]FISCAL(M)'!$L349)","v":"n.d."},{"$f":"+'[2]REAL(A)'!$AP$38","v":349324.72961703659},"n.d.",154125.53369647919,{"$f":"'[2]Gráfico REM'!BG343","v":27750.056905136957},{"$f":"'[2]Gráfico REM'!BH343","v":117634.85377736096},{"$f":"'[2]Gráfico REM'!BI343","v":8740.6230139812651},5.7322311725673591,7.1318031389898229,4.9269611602054342,12.698272786822828,229058.03065863918,{"$f":"'[2]Gráfico REM'!BK343","v":29975.486912706958},{"$f":"'[2]Gráfico REM'!BL343","v":168764.87523022096},{"$f":"'[2]Gráfico REM'!BM343","v":30317.668515711273},5.3502620327970041,6.5616584888152474,5.3877262948828442,3.9758489835947985]
[2018,"mayo ","2018-mayo ",{"$f":"IF('[2]REAL IPC(M)'!$AL350=\"\",\"\",+'[2]REAL IPC(M)'!$AL350)","v":3.576771385828903},{"$f":"IF('[2]REAL IPC(M)'!$BE350=\"\",\"\",+'[2]REAL IPC(M)'!$BE350)","v":2.7986077730344228},{"$f":"IF('[2]REAL IPC(M)'!$AM350=\"\",\"\",+'[2]REAL IPC(M)'!$AM350)","v":3.1659913467481537},{"$f":"IF('[2]REAL IPC(M)'!$BI350=\"\",\"\",+'[2]REAL IPC(M)'!$BI350)","v":2.4367343285914611},{"$f":"IF('[2]REAL IMAE(M)'!BJ350=\"\",\"\",'[2]REAL IMAE(M)'!BJ350)","v":4.6178181895508708},{"$f":"IF('[2]REAL IMAE(M)'!BK350=\"\",\"\",'[2]REAL IMAE(M)'!BK350)","v":2.98835778953499},{"$f":"IF('[2]REAL IMAE(M)'!BN350=\"\",\"\",'[2]REAL IMAE(M)'!BN350)","v":4.4678744194906361},{"$f":"IF('[2]REAL IMAE(M)'!BO350=\"\",\"\",'[2]REAL IMAE(M)'!BO350)","v":2.8017485238353457},{"$f":"IF('[2]EXT RIN(M)'!$K350=\"\",\"\",'[2]EXT RIN(M)'!$K350)","v":38062.624750515293},null,{"$f":"IF('[2]EXT RIN(M)'!$L350=\"\",\"\",'[2]EXT RIN(M)'!$L350)","v":41370.624140785294},null,{"$f":"IF('[2]MONE(M)CARD'!EG350=\"\",\"\",'[2]MONE(M)CARD'!EG350)","v":36085.506815056819},{"$f":"IF('[2]MONE(M)CARD'!EK350=\"\",\"\",'[2]MONE(M)CARD'!EK350)","v":56887.966562645299},{"$f":"IF('[2]MONE(M)CARD'!EP350=\"\",\"\",'[2]MONE(M)CARD'!EP350)","v":31943.728574490495},{"$f":"IF('[2]MONE(M)CARD'!ES350=\"\",\"\",'[2]MONE(M)CARD'!ES350)","v":6.4243026786278135},{"$f":"IF('[2]MONE(M)CARD'!EV350=\"\",\"\",'[2]MONE(M)CARD'!EV350)","v":5.1117601518553712},{"$f":"IF('[2]MONE(M)CARD'!EZ350=\"\",\"\",'[2]MONE(M)CARD'!EZ350)","v":4.6373400760834294},{"$f":"IF('[2]MONE(M)CAPARD'!FC350=\"\",\"\",'[2]MONE(M)CAPARD'!FC350)","v":44154.666024686827},{"$f":"IF('[2]MONE(M)CAPARD'!FG350=\"\",\"\",'[2]MONE(M)CAPARD'!FG350)","v":89047.898632775294},{"$f":"IF('[2]MONE(M)CAPARD'!FL350=\"\",\"\",'[2]MONE(M)CAPARD'!FL350)","v":31943.728574490495},{"$f":"IF('[2]MONE(M)CAPARD'!FO350=\"\",\"\",'[2]MONE(M)CAPARD'!FO350)","v":5.2562659768239595},{"$f":"IF('[2]MONE(M)CAPARD'!FR350=\"\",\"\",'[2]MONE(M)CAPARD'!FR350)","v":4.5812328855363349},{"$f":"IF('[2]MONE(M)CAPARD'!FV350=\"\",\"\",'[2]MONE(M)CAPARD'!FV350)","v":4.3271019665471089},{"$f":"IF('[2]MONE(M)CARD'!FV350=\"\",\"\",'[2]MONE(M)CARD'!FV350)","v":1680.8692222678287},{"$f":"IF('[2]MONE(M)CARD'!GD350=\"\",\"\",'[2]MONE(M)CARD'!GD350)","v":64.880974362017668},{"$f":"IF('[2]MONE(M)CARD'!GE350=\"\",\"\",'[2]MONE(M)CARD'!GE350)","v":11488.096767928748},-0.35948762106629006,{"$f":"IF('[9]II.2.Balance OSD-Activos'!J208=\"\",\"\",'[9]II.2.Balance OSD-Activos'!J208)","v":265.77980967084955},{"$f":"IF('[9]II.2.Balance OSD-Activos'!N208=\"\",\"\",'[9]II.2.Balance OSD-Activos'!N208)","v":1223.3697318217462},{"$f":"IF('[9]II.2.Balance OSD-Activos'!R208=\"\",\"\",'[9]II.2.Balance OSD-Activos'!R208)","v":53211.85509101722},{"$f":"IF('[9]II.2.Balance OSD-Activos'!S208=\"\",\"\",'[9]II.2.Balance OSD-Activos'!S208)","v":58733.025263255258},53477.63490068807,113434.02989576507,4.7307468354444548,4.7323615534515362,18.236214940836561,4.7323696186861275,6.0794964239601734,5.5564506408217307,-9.9066056732954877E-2,{"$f":"IF('[2]MONE(M)CAPARD'!GS350=\"\",\"\",'[2]MONE(M)CAPARD'!GS350)","v":21663.397802869629},{"$f":"IF('[2]MONE(M)CARD'!HA350=\"\",\"\",'[2]MONE(M)CAPARD'!HA350)","v":13412.72193212875},{"$f":"IF('[2]MONE(M)CAPARD'!HB350=\"\",\"\",'[2]MONE(M)CAPARD'!HB350)","v":8250.675870740879},"n.d.",{"$f":"IF('[10]II.2.Balance OSD-Activos'!J208=\"\",\"\",'[10]II.2.Balance OSD-Activos'!J208)","v":2511.2965674308484},{"$f":"IF('[10]II.2.Balance OSD-Activos'!N208=\"\",\"\",'[10]II.2.Balance OSD-Activos'!N208)","v":1822.018000451746},{"$f":"IF('[10]II.2.Balance OSD-Activos'!R208=\"\",\"\",'[10]II.2.Balance OSD-Activos'!R208)","v":77060.649562877225},{"$f":"IF('[10]II.2.Balance OSD-Activos'!S208=\"\",\"\",'[10]II.2.Balance OSD-Activos'!S208)","v":82545.096512375269},79571.946130308075,163939.0606431351,17.160052776486179,4.603358890057252,18.222338226035074,4.2392825142960611,6.7038683276676059,5.7873443996813601,-0.21312846693251064,{"$f":"IF('[2]MONE(M)CAPARD'!AS350=\"\",\"\",'[2]MONE(M)CAPARD'!AS350)","v":5},{"$f":"IF('[2]MONE(M)CAPARD'!AT350=\"\",\"\",'[2]MONE(M)CAPARD'!AT350)","v":"n.a."},{"$f":"IF('[2]MONE(M)CAPARD'!AU350=\"\",\"\",'[2]MONE(M)CAPARD'!AU350)","v":2.75},{"$f":"IF('[2]MONE(M)CAPARD'!AV350=\"\",\"\",'[2]MONE(M)CAPARD'!AV350)","v":5.5},{"$f":"IF('[2]MONE(M)CAPARD'!AW350=\"\",\"\",'[2]MONE(M)CAPARD'!AW350)","v":"n.a."},{"$f":"IF('[2]MONE(M)CAPARD'!AX350=\"\",\"\",'[2]MONE(M)CAPARD'!AX350)","v":5.25},{"$f":"IF('[2]MONE(M)CAPARD'!AY350=\"\",\"\",'[2]MONE(M)CAPARD'!AY350)","v":"n.a."},{"$f":"IF('[2]FISCAL(M)'!$K350=\"\",\"\",'[2]FISCAL(M)'!$K350)","v":-947.72401574037258},{"$f":"IF('[2]FISCAL(M)'!$L350=\"\",\"\",'[2]FISCAL(M)'!$L350)","v":"n.d."},{"$f":"IF('[2]FISCAL(M)'!$AY350=\"\",\"\",'[2]FISCAL(M)'!$AY350)","v":134046.53521055129},{"$f":"IF('[2]FISCAL(M)'!$BI350=\"\",\"\",'[2]FISCAL(M)'!$BI350)","v":70967.158987808827},{"$f":"IF('[2]FISCAL(M)'!$BS350=\"\",\"\",'[2]FISCAL(M)'!$BS350)","v":63079.37622274246},{"$f":"IF('[2]FISCAL(M)'!$AZ350=\"\",\"\",'[2]FISCAL(M)'!$AZ350)","v":158895.99401055131},{"$f":"IF('[2]FISCAL(M)'!$BJ350=\"\",\"\",'[2]FISCAL(M)'!$BJ350)","v":76167.731287808827},{"$f":"IF('[2]FISCAL(M)'!$BT350=\"\",\"\",'[2]FISCAL(M)'!$BT350)","v":82728.262722742467},{"$f":"IF('[3]MONE(M)'!$AO350=\"\",\"\",'[3]MONE(M)'!$AO350)","v":21424517.32481106},{"$f":"IF('[4]MONE(M)'!$AO350=\"\",\"\",'[4]MONE(M)'!$AO350)","v":12671.7997163},{"$f":"IF('[5]MONE(M)'!$AO350=\"\",\"\",'[5]MONE(M)'!$AO350)","v":198924.63618635177},{"$f":"+'[1]MONE(M)'!$AO350","v":327578.43389759277},{"$f":"IF('[6]MONE(M)'!$AO350=\"\",\"\",'[6]MONE(M)'!$AO350)","v":167029.4531335904},{"$f":"IF('[7]MONE(M)'!$AO350=\"\",\"\",'[7]MONE(M)'!$AO350)","v":1056564.0815769201},{"$f":"IF('[8]MONE(M)'!$AO350=\"\",\"\",'[8]MONE(M)'!$AO350)","v":51317.143930300008},2.0882319324248666,5.2141296026069428,3.8430112397368932,11.893551018736016,10.911333039210724,12.869139797450369,6.1317849013327264,{"$f":"'[2]FISCAL(M)'!$K350","v":-947.72401574037258},{"$f":"+'[2]REAL(A)'!$AO$38","v":284395.32118885993},-0.33324177478679839,{"$f":"IF('[2]FISCAL(M)'!$L350=\"\",\"\",'[2]FISCAL(M)'!$L350)","v":"n.d."},{"$f":"+'[2]REAL(A)'!$AP$38","v":349324.72961703659},"n.d.",153860.85142228988,{"$f":"'[2]Gráfico REM'!BG344","v":27238.306640269671},{"$f":"'[2]Gráfico REM'!BH344","v":117706.11895856276},{"$f":"'[2]Gráfico REM'!BI344","v":8916.4258234574463},5.2671490978150493,5.097957727401381,4.7654355818199878,12.964140815503299,228760.66783464985,{"$f":"'[2]Gráfico REM'!BK344","v":29472.307786089674},{"$f":"'[2]Gráfico REM'!BL344","v":169023.26288886275},{"$f":"'[2]Gráfico REM'!BM344","v":30265.097159697441},4.9527124239466369,4.6513493943339812,5.1765390577837689,4.0082452544498715]
[2018,"junio ","2018-junio ",{"$f":"IF('[2]REAL IPC(M)'!$AL351=\"\",\"\",+'[2]REAL IPC(M)'!$AL351)","v":3.6152750457844274},{"$f":"IF('[2]REAL IPC(M)'!$BE351=\"\",\"\",+'[2]REAL IPC(M)'!$BE351)","v":2.8068247621866993},{"$f":"IF('[2]REAL IPC(M)'!$AM351=\"\",\"\",+'[2]REAL IPC(M)'!$AM351)","v":3.255877716087463},{"$f":"IF('[2]REAL IPC(M)'!$BI351=\"\",\"\",+'[2]REAL IPC(M)'!$BI351)","v":2.4359810363600687},{"$f":"IF('[2]REAL IMAE(M)'!BJ351=\"\",\"\",'[2]REAL IMAE(M)'!BJ351)","v":4.3231274388487728},{"$f":"IF('[2]REAL IMAE(M)'!BK351=\"\",\"\",'[2]REAL IMAE(M)'!BK351)","v":2.8910871867292576},{"$f":"IF('[2]REAL IMAE(M)'!BN351=\"\",\"\",'[2]REAL IMAE(M)'!BN351)","v":4.281203667790745},{"$f":"IF('[2]REAL IMAE(M)'!BO351=\"\",\"\",'[2]REAL IMAE(M)'!BO351)","v":2.6679825283489667},{"$f":"IF('[2]EXT RIN(M)'!$K351=\"\",\"\",'[2]EXT RIN(M)'!$K351)","v":37562.589857708386},null,{"$f":"IF('[2]EXT RIN(M)'!$L351=\"\",\"\",'[2]EXT RIN(M)'!$L351)","v":40458.500935618387},null,{"$f":"IF('[2]MONE(M)CARD'!EG351=\"\",\"\",'[2]MONE(M)CARD'!EG351)","v":36290.257463713402},{"$f":"IF('[2]MONE(M)CARD'!EK351=\"\",\"\",'[2]MONE(M)CARD'!EK351)","v":57563.8373859044},{"$f":"IF('[2]MONE(M)CARD'!EP351=\"\",\"\",'[2]MONE(M)CARD'!EP351)","v":31081.495118625666},{"$f":"IF('[2]MONE(M)CARD'!ES351=\"\",\"\",'[2]MONE(M)CARD'!ES351)","v":7.6754483213376412},{"$f":"IF('[2]MONE(M)CARD'!EV351=\"\",\"\",'[2]MONE(M)CARD'!EV351)","v":5.2215074524697425},{"$f":"IF('[2]MONE(M)CARD'!EZ351=\"\",\"\",'[2]MONE(M)CARD'!EZ351)","v":3.9546020117724678},{"$f":"IF('[2]MONE(M)CAPARD'!FC351=\"\",\"\",'[2]MONE(M)CAPARD'!FC351)","v":44418.300630343409},{"$f":"IF('[2]MONE(M)CAPARD'!FG351=\"\",\"\",'[2]MONE(M)CAPARD'!FG351)","v":89701.929859164375},{"$f":"IF('[2]MONE(M)CAPARD'!FL351=\"\",\"\",'[2]MONE(M)CAPARD'!FL351)","v":31081.495118625695},{"$f":"IF('[2]MONE(M)CAPARD'!FO351=\"\",\"\",'[2]MONE(M)CAPARD'!FO351)","v":6.7107371306941443},{"$f":"IF('[2]MONE(M)CAPARD'!FR351=\"\",\"\",'[2]MONE(M)CAPARD'!FR351)","v":4.5350262606514979},{"$f":"IF('[2]MONE(M)CAPARD'!FV351=\"\",\"\",'[2]MONE(M)CAPARD'!FV351)","v":3.7126856750650861},{"$f":"IF('[2]MONE(M)CARD'!FV351=\"\",\"\",'[2]MONE(M)CARD'!FV351)","v":1668.3673338967756},{"$f":"IF('[2]MONE(M)CARD'!GD351=\"\",\"\",'[2]MONE(M)CARD'!GD351)","v":124.0893027866403},{"$f":"IF('[2]MONE(M)CARD'!GE351=\"\",\"\",'[2]MONE(M)CARD'!GE351)","v":11378.474069696105},1.4881910069409532,{"$f":"IF('[9]II.2.Balance OSD-Activos'!J209=\"\",\"\",'[9]II.2.Balance OSD-Activos'!J209)","v":268.1390564741439},{"$f":"IF('[9]II.2.Balance OSD-Activos'!N209=\"\",\"\",'[9]II.2.Balance OSD-Activos'!N209)","v":1574.7611788673034},{"$f":"IF('[9]II.2.Balance OSD-Activos'!R209=\"\",\"\",'[9]II.2.Balance OSD-Activos'!R209)","v":54159.880001378362},{"$f":"IF('[9]II.2.Balance OSD-Activos'!S209=\"\",\"\",'[9]II.2.Balance OSD-Activos'!S209)","v":58021.833839819818},54428.019057852507,114024.61407653963,5.8627230181163226,5.6845238831477296,49.609574593262366,5.6836431330703263,4.1880648592242053,5.341752672975586,-0.2146979678461447,{"$f":"IF('[2]MONE(M)CAPARD'!GS351=\"\",\"\",'[2]MONE(M)CAPARD'!GS351)","v":21744.476568713748},{"$f":"IF('[2]MONE(M)CARD'!HA351=\"\",\"\",'[2]MONE(M)CAPARD'!HA351)","v":13214.493670156102},{"$f":"IF('[2]MONE(M)CAPARD'!HB351=\"\",\"\",'[2]MONE(M)CAPARD'!HB351)","v":8529.982898557646},"n.d.",{"$f":"IF('[10]II.2.Balance OSD-Activos'!J209=\"\",\"\",'[10]II.2.Balance OSD-Activos'!J209)","v":2540.972263114144},{"$f":"IF('[10]II.2.Balance OSD-Activos'!N209=\"\",\"\",'[10]II.2.Balance OSD-Activos'!N209)","v":2109.6869881073035},{"$f":"IF('[10]II.2.Balance OSD-Activos'!R209=\"\",\"\",'[10]II.2.Balance OSD-Activos'!R209)","v":77973.491170478344},{"$f":"IF('[10]II.2.Balance OSD-Activos'!S209=\"\",\"\",'[10]II.2.Balance OSD-Activos'!S209)","v":81958.921142749808},80514.463433592493,164583.07156444958,22.515571308824669,5.2175125441658698,33.849895731279169,4.7356164387108102,5.2751003409100772,5.535643012394309,-0.25170138728705105,{"$f":"IF('[2]MONE(M)CAPARD'!AS351=\"\",\"\",'[2]MONE(M)CAPARD'!AS351)","v":5},{"$f":"IF('[2]MONE(M)CAPARD'!AT351=\"\",\"\",'[2]MONE(M)CAPARD'!AT351)","v":"n.a."},{"$f":"IF('[2]MONE(M)CAPARD'!AU351=\"\",\"\",'[2]MONE(M)CAPARD'!AU351)","v":2.75},{"$f":"IF('[2]MONE(M)CAPARD'!AV351=\"\",\"\",'[2]MONE(M)CAPARD'!AV351)","v":5.5},{"$f":"IF('[2]MONE(M)CAPARD'!AW351=\"\",\"\",'[2]MONE(M)CAPARD'!AW351)","v":"n.a."},{"$f":"IF('[2]MONE(M)CAPARD'!AX351=\"\",\"\",'[2]MONE(M)CAPARD'!AX351)","v":5.25},{"$f":"IF('[2]MONE(M)CAPARD'!AY351=\"\",\"\",'[2]MONE(M)CAPARD'!AY351)","v":"n.a."},{"$f":"IF('[2]FISCAL(M)'!$K351=\"\",\"\",'[2]FISCAL(M)'!$K351)","v":-1652.9336067769577},{"$f":"IF('[2]FISCAL(M)'!$L351=\"\",\"\",'[2]FISCAL(M)'!$L351)","v":-3329.9336067769577},{"$f":"IF('[2]FISCAL(M)'!$AY351=\"\",\"\",'[2]FISCAL(M)'!$AY351)","v":134494.36185208429},{"$f":"IF('[2]FISCAL(M)'!$BI351=\"\",\"\",'[2]FISCAL(M)'!$BI351)","v":71595.017871659322},{"$f":"IF('[2]FISCAL(M)'!$BS351=\"\",\"\",'[2]FISCAL(M)'!$BS351)","v":62899.343980425001},{"$f":"IF('[2]FISCAL(M)'!$AZ351=\"\",\"\",'[2]FISCAL(M)'!$AZ351)","v":158727.08015208429},{"$f":"IF('[2]FISCAL(M)'!$BJ351=\"\",\"\",'[2]FISCAL(M)'!$BJ351)","v":76224.276671659318},{"$f":"IF('[2]FISCAL(M)'!$BT351=\"\",\"\",'[2]FISCAL(M)'!$BT351)","v":82502.803480425006},{"$f":"IF('[3]MONE(M)'!$AO351=\"\",\"\",'[3]MONE(M)'!$AO351)","v":21480360.278876342},{"$f":"IF('[4]MONE(M)'!$AO351=\"\",\"\",'[4]MONE(M)'!$AO351)","v":12738.23255895},{"$f":"IF('[5]MONE(M)'!$AO351=\"\",\"\",'[5]MONE(M)'!$AO351)","v":199285.70229430648},{"$f":"+'[1]MONE(M)'!$AO351","v":329697.47392102209},{"$f":"IF('[6]MONE(M)'!$AO351=\"\",\"\",'[6]MONE(M)'!$AO351)","v":163978.14760418495},{"$f":"IF('[7]MONE(M)'!$AO351=\"\",\"\",'[7]MONE(M)'!$AO351)","v":1062061.6106490199},{"$f":"IF('[8]MONE(M)'!$AO351=\"\",\"\",'[8]MONE(M)'!$AO351)","v":51452.042798259994},1.5006209498118483,5.602774686067713,3.9884091510973274,12.097002897858289,8.7437002681588716,11.932454382803037,6.021679486258269,{"$f":"'[2]FISCAL(M)'!$K351","v":-1652.9336067769577},{"$f":"+'[2]REAL(A)'!$AO$38","v":284395.32118885993},-0.58120984545989951,{"$f":"IF('[2]FISCAL(M)'!$L351=\"\",\"\",'[2]FISCAL(M)'!$L351)","v":-3329.9336067769577},{"$f":"+'[2]REAL(A)'!$AP$38","v":349324.72961703659},-0.95324874663971026,154927.05571766739,{"$f":"'[2]Gráfico REM'!BG345","v":27635.700829989157},{"$f":"'[2]Gráfico REM'!BH345","v":117926.81455400256},{"$f":"'[2]Gráfico REM'!BI345","v":9364.5403336757008},5.2977804233898196,6.1571305166407964,4.2862123818498299,16.771885138744523,229948.9494796574,{"$f":"'[2]Gráfico REM'!BK345","v":29642.59942961916},{"$f":"'[2]Gráfico REM'!BL345","v":169378.85735226254},{"$f":"'[2]Gráfico REM'!BM345","v":30927.492697775702},4.8648400676787995,4.9469468155258323,4.8073553622896226,5.101735919338779]
[2018,"julio","2018-julio",{"$f":"IF('[2]REAL IPC(M)'!$AL352=\"\",\"\",+'[2]REAL IPC(M)'!$AL352)","v":3.2168869705961667},{"$f":"IF('[2]REAL IPC(M)'!$BE352=\"\",\"\",+'[2]REAL IPC(M)'!$BE352)","v":2.8147225110070728},{"$f":"IF('[2]REAL IPC(M)'!$AM352=\"\",\"\",+'[2]REAL IPC(M)'!$AM352)","v":2.9331514324693053},{"$f":"IF('[2]REAL IPC(M)'!$BI352=\"\",\"\",+'[2]REAL IPC(M)'!$BI352)","v":2.4345442798882733},{"$f":"IF('[2]REAL IMAE(M)'!BJ352=\"\",\"\",'[2]REAL IMAE(M)'!BJ352)","v":4.2589695171297626},{"$f":"IF('[2]REAL IMAE(M)'!BK352=\"\",\"\",'[2]REAL IMAE(M)'!BK352)","v":2.7919444809828331},{"$f":"IF('[2]REAL IMAE(M)'!BN352=\"\",\"\",'[2]REAL IMAE(M)'!BN352)","v":4.2972858925029778},{"$f":"IF('[2]REAL IMAE(M)'!BO352=\"\",\"\",'[2]REAL IMAE(M)'!BO352)","v":2.5305638635695793},{"$f":"IF('[2]EXT RIN(M)'!$K352=\"\",\"\",'[2]EXT RIN(M)'!$K352)","v":38399.33678136456},null,{"$f":"IF('[2]EXT RIN(M)'!$L352=\"\",\"\",'[2]EXT RIN(M)'!$L352)","v":40925.743485954561},null,{"$f":"IF('[2]MONE(M)CARD'!EG352=\"\",\"\",'[2]MONE(M)CARD'!EG352)","v":36265.645743589281},{"$f":"IF('[2]MONE(M)CARD'!EK352=\"\",\"\",'[2]MONE(M)CARD'!EK352)","v":57414.784795607804},{"$f":"IF('[2]MONE(M)CARD'!EP352=\"\",\"\",'[2]MONE(M)CARD'!EP352)","v":31035.452544151281},{"$f":"IF('[2]MONE(M)CARD'!ES352=\"\",\"\",'[2]MONE(M)CARD'!ES352)","v":6.419885143058468},{"$f":"IF('[2]MONE(M)CARD'!EV352=\"\",\"\",'[2]MONE(M)CARD'!EV352)","v":4.0846792461409986},{"$f":"IF('[2]MONE(M)CARD'!EZ352=\"\",\"\",'[2]MONE(M)CARD'!EZ352)","v":3.3101454611798031},{"$f":"IF('[2]MONE(M)CAPARD'!FC352=\"\",\"\",'[2]MONE(M)CAPARD'!FC352)","v":44248.143163409281},{"$f":"IF('[2]MONE(M)CAPARD'!FG352=\"\",\"\",'[2]MONE(M)CAPARD'!FG352)","v":89559.306536187796},{"$f":"IF('[2]MONE(M)CAPARD'!FL352=\"\",\"\",'[2]MONE(M)CAPARD'!FL352)","v":31035.452544151281},{"$f":"IF('[2]MONE(M)CAPARD'!FO352=\"\",\"\",'[2]MONE(M)CAPARD'!FO352)","v":4.9312395413304122},{"$f":"IF('[2]MONE(M)CAPARD'!FR352=\"\",\"\",'[2]MONE(M)CAPARD'!FR352)","v":3.3896796258948703},{"$f":"IF('[2]MONE(M)CAPARD'!FV352=\"\",\"\",'[2]MONE(M)CAPARD'!FV352)","v":2.9391001997991717},{"$f":"IF('[2]MONE(M)CARD'!FV352=\"\",\"\",'[2]MONE(M)CARD'!FV352)","v":1660.9429198843306},{"$f":"IF('[2]MONE(M)CARD'!GD352=\"\",\"\",'[2]MONE(M)CARD'!GD352)","v":98.64615939251496},{"$f":"IF('[2]MONE(M)CARD'!GE352=\"\",\"\",'[2]MONE(M)CARD'!GE352)","v":11751.084938040458},2.4037872305045838,{"$f":"IF('[9]II.2.Balance OSD-Activos'!J210=\"\",\"\",'[9]II.2.Balance OSD-Activos'!J210)","v":271.40978095973088},{"$f":"IF('[9]II.2.Balance OSD-Activos'!N210=\"\",\"\",'[9]II.2.Balance OSD-Activos'!N210)","v":1556.1615942534986},{"$f":"IF('[9]II.2.Balance OSD-Activos'!R210=\"\",\"\",'[9]II.2.Balance OSD-Activos'!R210)","v":54239.5664497412},{"$f":"IF('[9]II.2.Balance OSD-Activos'!S210=\"\",\"\",'[9]II.2.Balance OSD-Activos'!S210)","v":58335.654123741093},54510.97623070093,114402.79194869552,-0.6825212133135472,6.1357655540049905,50.425584622676546,6.1722384153393595,4.0184030057248465,5.4634711894387955,0.12171851646320953,{"$f":"IF('[2]MONE(M)CAPARD'!GS352=\"\",\"\",'[2]MONE(M)CAPARD'!GS352)","v":21596.136982838703},{"$f":"IF('[2]MONE(M)CARD'!HA352=\"\",\"\",'[2]MONE(M)CAPARD'!HA352)","v":13525.600671550457},{"$f":"IF('[2]MONE(M)CAPARD'!HB352=\"\",\"\",'[2]MONE(M)CAPARD'!HB352)","v":8070.536311288246},"n.d.",{"$f":"IF('[10]II.2.Balance OSD-Activos'!J210=\"\",\"\",'[10]II.2.Balance OSD-Activos'!J210)","v":2505.2103493497302},{"$f":"IF('[10]II.2.Balance OSD-Activos'!N210=\"\",\"\",'[10]II.2.Balance OSD-Activos'!N210)","v":2068.2814079034988},{"$f":"IF('[10]II.2.Balance OSD-Activos'!R210=\"\",\"\",'[10]II.2.Balance OSD-Activos'!R210)","v":78211.826001591195},{"$f":"IF('[10]II.2.Balance OSD-Activos'!S210=\"\",\"\",'[10]II.2.Balance OSD-Activos'!S210)","v":82370.260371461089},80717.036350940922,165155.57813030551,7.5822183877237936,5.1660807164045863,33.756041190494138,5.0904816668232211,5.0317142824178207,5.3809275885328578,-0.15471542386145121,{"$f":"IF('[2]MONE(M)CAPARD'!AS352=\"\",\"\",'[2]MONE(M)CAPARD'!AS352)","v":5},{"$f":"IF('[2]MONE(M)CAPARD'!AT352=\"\",\"\",'[2]MONE(M)CAPARD'!AT352)","v":"n.a."},{"$f":"IF('[2]MONE(M)CAPARD'!AU352=\"\",\"\",'[2]MONE(M)CAPARD'!AU352)","v":2.75},{"$f":"IF('[2]MONE(M)CAPARD'!AV352=\"\",\"\",'[2]MONE(M)CAPARD'!AV352)","v":5.5},{"$f":"IF('[2]MONE(M)CAPARD'!AW352=\"\",\"\",'[2]MONE(M)CAPARD'!AW352)","v":"n.a."},{"$f":"IF('[2]MONE(M)CAPARD'!AX352=\"\",\"\",'[2]MONE(M)CAPARD'!AX352)","v":5.5},{"$f":"IF('[2]MONE(M)CAPARD'!AY352=\"\",\"\",'[2]MONE(M)CAPARD'!AY352)","v":"n.a."},{"$f":"IF('[2]FISCAL(M)'!$K352=\"\",\"\",'[2]FISCAL(M)'!$K352)","v":-2419.1419544970822},{"$f":"IF('[2]FISCAL(M)'!$L352=\"\",\"\",'[2]FISCAL(M)'!$L352)","v":"n.d."},{"$f":"IF('[2]FISCAL(M)'!$AY352=\"\",\"\",'[2]FISCAL(M)'!$AY352)","v":137283.607799183},{"$f":"IF('[2]FISCAL(M)'!$BI352=\"\",\"\",'[2]FISCAL(M)'!$BI352)","v":72691.100699182964},{"$f":"IF('[2]FISCAL(M)'!$BS352=\"\",\"\",'[2]FISCAL(M)'!$BS352)","v":64592.507100000003},{"$f":"IF('[2]FISCAL(M)'!$AZ352=\"\",\"\",'[2]FISCAL(M)'!$AZ352)","v":161692.81499918294},{"$f":"IF('[2]FISCAL(M)'!$BJ352=\"\",\"\",'[2]FISCAL(M)'!$BJ352)","v":77520.35949918296},{"$f":"IF('[2]FISCAL(M)'!$BT352=\"\",\"\",'[2]FISCAL(M)'!$BT352)","v":84172.455499999982},{"$f":"IF('[3]MONE(M)'!$AO352=\"\",\"\",'[3]MONE(M)'!$AO352)","v":21545531.561863597},{"$f":"IF('[4]MONE(M)'!$AO352=\"\",\"\",'[4]MONE(M)'!$AO352)","v":12845.441010859999},{"$f":"IF('[5]MONE(M)'!$AO352=\"\",\"\",'[5]MONE(M)'!$AO352)","v":198959.1061095878},{"$f":"+'[1]MONE(M)'!$AO352","v":332929.99304367416},{"$f":"IF('[6]MONE(M)'!$AO352=\"\",\"\",'[6]MONE(M)'!$AO352)","v":160978.38218384958},{"$f":"IF('[7]MONE(M)'!$AO352=\"\",\"\",'[7]MONE(M)'!$AO352)","v":1071031.7178051001},{"$f":"IF('[8]MONE(M)'!$AO352=\"\",\"\",'[8]MONE(M)'!$AO352)","v":51645.736701969996},2.0082522639847777,5.6019228059110082,3.9036428331589157,12.405640614125591,5.806133328415819,13.696699996199158,5.1581917390429277,{"$f":"'[2]FISCAL(M)'!$K352","v":-2419.1419544970822},{"$f":"+'[2]REAL(A)'!$AO$38","v":284395.32118885993},-0.85062649567662529,{"$f":"IF('[2]FISCAL(M)'!$L352=\"\",\"\",'[2]FISCAL(M)'!$L352)","v":"n.d."},{"$f":"+'[2]REAL(A)'!$AP$38","v":349324.72961703659},"n.d.",155496.2373109812,{"$f":"'[2]Gráfico REM'!BG346","v":27777.08295849483},{"$f":"'[2]Gráfico REM'!BH346","v":118227.97315615567},{"$f":"'[2]Gráfico REM'!BI346","v":9491.1811963307009},5.5157067818383476,5.6128529366885838,4.4908400800116155,19.834069882730088,230647.0876557412,{"$f":"'[2]Gráfico REM'!BK346","v":29810.70053322483},{"$f":"'[2]Gráfico REM'!BL346","v":169873.70985812566},{"$f":"'[2]Gráfico REM'!BM346","v":30962.677264390702},4.8723252081917634,4.348171372302323,4.6928333471723871,6.3875460735601797]
[2018,"agosto","2018-agosto",{"$f":"IF('[2]REAL IPC(M)'!$AL353=\"\",\"\",+'[2]REAL IPC(M)'!$AL353)","v":3.3236701948358149},{"$f":"IF('[2]REAL IPC(M)'!$BE353=\"\",\"\",+'[2]REAL IPC(M)'!$BE353)","v":2.8226502649497665},{"$f":"IF('[2]REAL IPC(M)'!$AM353=\"\",\"\",+'[2]REAL IPC(M)'!$AM353)","v":2.999318336741652},{"$f":"IF('[2]REAL IPC(M)'!$BI353=\"\",\"\",+'[2]REAL IPC(M)'!$BI353)","v":2.4327804996282731},{"$f":"IF('[2]REAL IMAE(M)'!BJ353=\"\",\"\",'[2]REAL IMAE(M)'!BJ353)","v":4.2599380785951269},{"$f":"IF('[2]REAL IMAE(M)'!BK353=\"\",\"\",'[2]REAL IMAE(M)'!BK353)","v":2.6913502823806335},{"$f":"IF('[2]REAL IMAE(M)'!BN353=\"\",\"\",'[2]REAL IMAE(M)'!BN353)","v":4.1858473418109554},{"$f":"IF('[2]REAL IMAE(M)'!BO353=\"\",\"\",'[2]REAL IMAE(M)'!BO353)","v":2.3900545398430229},{"$f":"IF('[2]EXT RIN(M)'!$K353=\"\",\"\",'[2]EXT RIN(M)'!$K353)","v":38464.041854337032},null,{"$f":"IF('[2]EXT RIN(M)'!$L353=\"\",\"\",'[2]EXT RIN(M)'!$L353)","v":41252.022345677033},null,{"$f":"IF('[2]MONE(M)CARD'!EG353=\"\",\"\",'[2]MONE(M)CARD'!EG353)","v":35798.948581389464},{"$f":"IF('[2]MONE(M)CARD'!EK353=\"\",\"\",'[2]MONE(M)CARD'!EK353)","v":57324.672276222533},{"$f":"IF('[2]MONE(M)CARD'!EP353=\"\",\"\",'[2]MONE(M)CARD'!EP353)","v":31071.947137330004},{"$f":"IF('[2]MONE(M)CARD'!ES353=\"\",\"\",'[2]MONE(M)CARD'!ES353)","v":5.1502790615888028},{"$f":"IF('[2]MONE(M)CARD'!EV353=\"\",\"\",'[2]MONE(M)CARD'!EV353)","v":3.1100256351726863},{"$f":"IF('[2]MONE(M)CARD'!EZ353=\"\",\"\",'[2]MONE(M)CARD'!EZ353)","v":2.3472859271594926},{"$f":"IF('[2]MONE(M)CAPARD'!FC353=\"\",\"\",'[2]MONE(M)CAPARD'!FC353)","v":43754.584889539459},{"$f":"IF('[2]MONE(M)CAPARD'!FG353=\"\",\"\",'[2]MONE(M)CAPARD'!FG353)","v":89744.06611526254},{"$f":"IF('[2]MONE(M)CAPARD'!FL353=\"\",\"\",'[2]MONE(M)CAPARD'!FL353)","v":31071.947137329989},{"$f":"IF('[2]MONE(M)CAPARD'!FO353=\"\",\"\",'[2]MONE(M)CAPARD'!FO353)","v":3.8649923889166216},{"$f":"IF('[2]MONE(M)CAPARD'!FR353=\"\",\"\",'[2]MONE(M)CAPARD'!FR353)","v":2.750414034893689},{"$f":"IF('[2]MONE(M)CAPARD'!FV353=\"\",\"\",'[2]MONE(M)CAPARD'!FV353)","v":2.2447110571595763},{"$f":"IF('[2]MONE(M)CARD'!FV353=\"\",\"\",'[2]MONE(M)CARD'!FV353)","v":1632.749705738775},{"$f":"IF('[2]MONE(M)CARD'!GD353=\"\",\"\",'[2]MONE(M)CARD'!GD353)","v":87.984907402435752},{"$f":"IF('[2]MONE(M)CARD'!GE353=\"\",\"\",'[2]MONE(M)CARD'!GE353)","v":11457.472533736653},-1.1846206826475081,{"$f":"IF('[9]II.2.Balance OSD-Activos'!J211=\"\",\"\",'[9]II.2.Balance OSD-Activos'!J211)","v":277.80200852511564},{"$f":"IF('[9]II.2.Balance OSD-Activos'!N211=\"\",\"\",'[9]II.2.Balance OSD-Activos'!N211)","v":1554.152834494033},{"$f":"IF('[9]II.2.Balance OSD-Activos'!R211=\"\",\"\",'[9]II.2.Balance OSD-Activos'!R211)","v":54165.796364618422},{"$f":"IF('[9]II.2.Balance OSD-Activos'!S211=\"\",\"\",'[9]II.2.Balance OSD-Activos'!S211)","v":58553.419834475688},54443.598373143541,114551.17104211326,-6.1227101120676313,5.4859252228868671,54.499025084063391,5.5528675661220106,3.9059682710036014,5.1213266990634887,-0.34214449037530681,{"$f":"IF('[2]MONE(M)CAPARD'!GS353=\"\",\"\",'[2]MONE(M)CAPARD'!GS353)","v":21758.712776319127},{"$f":"IF('[2]MONE(M)CARD'!HA353=\"\",\"\",'[2]MONE(M)CAPARD'!HA353)","v":13240.995861926651},{"$f":"IF('[2]MONE(M)CAPARD'!HB353=\"\",\"\",'[2]MONE(M)CAPARD'!HB353)","v":8517.7169143924766},"n.d.",{"$f":"IF('[10]II.2.Balance OSD-Activos'!J211=\"\",\"\",'[10]II.2.Balance OSD-Activos'!J211)","v":2522.9014295451161},{"$f":"IF('[10]II.2.Balance OSD-Activos'!N211=\"\",\"\",'[10]II.2.Balance OSD-Activos'!N211)","v":2060.9737059140334},{"$f":"IF('[10]II.2.Balance OSD-Activos'!R211=\"\",\"\",'[10]II.2.Balance OSD-Activos'!R211)","v":78312.244813488418},{"$f":"IF('[10]II.2.Balance OSD-Activos'!S211=\"\",\"\",'[10]II.2.Balance OSD-Activos'!S211)","v":82719.670568695699},80835.146243033538,165615.79051764327,1.7867195965370675,4.7974354715384138,31.667743663401282,4.8973926428562464,4.9098873369800566,5.1206779931562973,-0.26024959537656045,{"$f":"IF('[2]MONE(M)CAPARD'!AS353=\"\",\"\",'[2]MONE(M)CAPARD'!AS353)","v":5},{"$f":"IF('[2]MONE(M)CAPARD'!AT353=\"\",\"\",'[2]MONE(M)CAPARD'!AT353)","v":"n.a."},{"$f":"IF('[2]MONE(M)CAPARD'!AU353=\"\",\"\",'[2]MONE(M)CAPARD'!AU353)","v":2.75},{"$f":"IF('[2]MONE(M)CAPARD'!AV353=\"\",\"\",'[2]MONE(M)CAPARD'!AV353)","v":5.5},{"$f":"IF('[2]MONE(M)CAPARD'!AW353=\"\",\"\",'[2]MONE(M)CAPARD'!AW353)","v":"n.a."},{"$f":"IF('[2]MONE(M)CAPARD'!AX353=\"\",\"\",'[2]MONE(M)CAPARD'!AX353)","v":5.5},{"$f":"IF('[2]MONE(M)CAPARD'!AY353=\"\",\"\",'[2]MONE(M)CAPARD'!AY353)","v":"n.a."},{"$f":"IF('[2]FISCAL(M)'!$K353=\"\",\"\",'[2]FISCAL(M)'!$K353)","v":-3194.5667574125141},{"$f":"IF('[2]FISCAL(M)'!$L353=\"\",\"\",'[2]FISCAL(M)'!$L353)","v":"n.d."},{"$f":"IF('[2]FISCAL(M)'!$AY353=\"\",\"\",'[2]FISCAL(M)'!$AY353)","v":137219.271879254},{"$f":"IF('[2]FISCAL(M)'!$BI353=\"\",\"\",'[2]FISCAL(M)'!$BI353)","v":72565.413625083413},{"$f":"IF('[2]FISCAL(M)'!$BS353=\"\",\"\",'[2]FISCAL(M)'!$BS353)","v":64653.858254170569},{"$f":"IF('[2]FISCAL(M)'!$AZ353=\"\",\"\",'[2]FISCAL(M)'!$AZ353)","v":161940.83897925398},{"$f":"IF('[2]FISCAL(M)'!$BJ353=\"\",\"\",'[2]FISCAL(M)'!$BJ353)","v":77659.014525083418},{"$f":"IF('[2]FISCAL(M)'!$BT353=\"\",\"\",'[2]FISCAL(M)'!$BT353)","v":84281.824454170564},{"$f":"IF('[3]MONE(M)'!$AO353=\"\",\"\",'[3]MONE(M)'!$AO353)","v":21702351.865697019},{"$f":"IF('[4]MONE(M)'!$AO353=\"\",\"\",'[4]MONE(M)'!$AO353)","v":12950.189451270071},{"$f":"IF('[5]MONE(M)'!$AO353=\"\",\"\",'[5]MONE(M)'!$AO353)","v":199785.09831934574},{"$f":"+'[1]MONE(M)'!$AO353","v":338616.85330028267},{"$f":"IF('[6]MONE(M)'!$AO353=\"\",\"\",'[6]MONE(M)'!$AO353)","v":158985.63534788016},{"$f":"IF('[7]MONE(M)'!$AO353=\"\",\"\",'[7]MONE(M)'!$AO353)","v":1082205.9812156302},{"$f":"IF('[8]MONE(M)'!$AO353=\"\",\"\",'[8]MONE(M)'!$AO353)","v":51982.767461390002},1.9863477023189136,6.4604132689425109,4.2231822997498947,13.391168640317863,3.2725355370075482,13.364072240070124,5.1667387600109915,{"$f":"'[2]FISCAL(M)'!$K353","v":-3194.5667574125141},{"$f":"+'[2]REAL(A)'!$AO$38","v":284395.32118885993},-1.1232838655918256,{"$f":"IF('[2]FISCAL(M)'!$L353=\"\",\"\",'[2]FISCAL(M)'!$L353)","v":"n.d."},{"$f":"+'[2]REAL(A)'!$AP$38","v":349324.72961703659},"n.d.",154763.89641393939,{"$f":"'[2]Gráfico REM'!BG347","v":27516.673080755885},{"$f":"'[2]Gráfico REM'!BH347","v":118336.69414495301},{"$f":"'[2]Gráfico REM'!BI347","v":8910.5291882304991},4.7257795112444656,4.4808146582573594,4.1684469210047315,13.621832299120818,230324.0202021994,{"$f":"'[2]Gráfico REM'!BK347","v":29576.330818345887},{"$f":"'[2]Gráfico REM'!BL347","v":170319.46160634301},{"$f":"'[2]Gráfico REM'!BM347","v":30428.227777510499},4.6091696749013256,3.6139352248713674,4.4711176874006275,6.389376081636633]
[2018,"septiembre","2018-septiembre",{"$f":"IF('[2]REAL IPC(M)'!$AL354=\"\",\"\",+'[2]REAL IPC(M)'!$AL354)","v":3.4824195069378838},{"$f":"IF('[2]REAL IPC(M)'!$BE354=\"\",\"\",+'[2]REAL IPC(M)'!$BE354)","v":2.8309836590158621},{"$f":"IF('[2]REAL IPC(M)'!$AM354=\"\",\"\",+'[2]REAL IPC(M)'!$AM354)","v":3.0845703390984358},{"$f":"IF('[2]REAL IPC(M)'!$BI354=\"\",\"\",+'[2]REAL IPC(M)'!$BI354)","v":2.4310824253739316},{"$f":"IF('[2]REAL IMAE(M)'!BJ354=\"\",\"\",'[2]REAL IMAE(M)'!BJ354)","v":3.9841840663039418},{"$f":"IF('[2]REAL IMAE(M)'!BK354=\"\",\"\",'[2]REAL IMAE(M)'!BK354)","v":2.5898071190801453},{"$f":"IF('[2]REAL IMAE(M)'!BN354=\"\",\"\",'[2]REAL IMAE(M)'!BN354)","v":4.0879727490997109},{"$f":"IF('[2]REAL IMAE(M)'!BO354=\"\",\"\",'[2]REAL IMAE(M)'!BO354)","v":2.2471290800982535},{"$f":"IF('[2]EXT RIN(M)'!$K354=\"\",\"\",'[2]EXT RIN(M)'!$K354)","v":37417.505900372038},null,{"$f":"IF('[2]EXT RIN(M)'!$L354=\"\",\"\",'[2]EXT RIN(M)'!$L354)","v":39617.686410122034},null,{"$f":"IF('[2]MONE(M)CARD'!EG354=\"\",\"\",'[2]MONE(M)CARD'!EG354)","v":35346.29157282025},{"$f":"IF('[2]MONE(M)CARD'!EK354=\"\",\"\",'[2]MONE(M)CARD'!EK354)","v":57004.821104320901},{"$f":"IF('[2]MONE(M)CARD'!EP354=\"\",\"\",'[2]MONE(M)CARD'!EP354)","v":31046.001956883381},{"$f":"IF('[2]MONE(M)CARD'!ES354=\"\",\"\",'[2]MONE(M)CARD'!ES354)","v":3.5651159800845766},{"$f":"IF('[2]MONE(M)CARD'!EV354=\"\",\"\",'[2]MONE(M)CARD'!EV354)","v":2.1214317969687313},{"$f":"IF('[2]MONE(M)CARD'!EZ354=\"\",\"\",'[2]MONE(M)CARD'!EZ354)","v":1.8308035091099795},{"$f":"IF('[2]MONE(M)CAPARD'!FC354=\"\",\"\",'[2]MONE(M)CAPARD'!FC354)","v":43188.91520078024},{"$f":"IF('[2]MONE(M)CAPARD'!FG354=\"\",\"\",'[2]MONE(M)CAPARD'!FG354)","v":89387.715753300872},{"$f":"IF('[2]MONE(M)CAPARD'!FL354=\"\",\"\",'[2]MONE(M)CAPARD'!FL354)","v":31046.001956883381},{"$f":"IF('[2]MONE(M)CAPARD'!FO354=\"\",\"\",'[2]MONE(M)CAPARD'!FO354)","v":2.3128801292027212},{"$f":"IF('[2]MONE(M)CAPARD'!FR354=\"\",\"\",'[2]MONE(M)CAPARD'!FR354)","v":1.9378115072475444},{"$f":"IF('[2]MONE(M)CAPARD'!FV354=\"\",\"\",'[2]MONE(M)CAPARD'!FV354)","v":1.7539065309262192},{"$f":"IF('[2]MONE(M)CARD'!FV354=\"\",\"\",'[2]MONE(M)CARD'!FV354)","v":1631.0118412571453},{"$f":"IF('[2]MONE(M)CARD'!GD354=\"\",\"\",'[2]MONE(M)CARD'!GD354)","v":163.39980489216879},{"$f":"IF('[2]MONE(M)CARD'!GE354=\"\",\"\",'[2]MONE(M)CARD'!GE354)","v":11407.177145233129},-1.0379942706407741,{"$f":"IF('[9]II.2.Balance OSD-Activos'!J212=\"\",\"\",'[9]II.2.Balance OSD-Activos'!J212)","v":236.25175012837678},{"$f":"IF('[9]II.2.Balance OSD-Activos'!N212=\"\",\"\",'[9]II.2.Balance OSD-Activos'!N212)","v":1529.4783015360163},{"$f":"IF('[9]II.2.Balance OSD-Activos'!R212=\"\",\"\",'[9]II.2.Balance OSD-Activos'!R212)","v":54286.936951626485},{"$f":"IF('[9]II.2.Balance OSD-Activos'!S212=\"\",\"\",'[9]II.2.Balance OSD-Activos'!S212)","v":58444.204182141257},54523.188701754865,114496.87118543213,-16.954761101598436,5.497542868212113,47.325749525555885,5.6218166468980701,2.9870387680538624,4.5927732312516012,-0.5285534678118875,{"$f":"IF('[2]MONE(M)CAPARD'!GS354=\"\",\"\",'[2]MONE(M)CAPARD'!GS354)","v":22054.293803130964},{"$f":"IF('[2]MONE(M)CARD'!HA354=\"\",\"\",'[2]MONE(M)CAPARD'!HA354)","v":13248.068170673127},{"$f":"IF('[2]MONE(M)CAPARD'!HB354=\"\",\"\",'[2]MONE(M)CAPARD'!HB354)","v":8806.2256324578375},"n.d.",{"$f":"IF('[10]II.2.Balance OSD-Activos'!J212=\"\",\"\",'[10]II.2.Balance OSD-Activos'!J212)","v":2409.1268646983767},{"$f":"IF('[10]II.2.Balance OSD-Activos'!N212=\"\",\"\",'[10]II.2.Balance OSD-Activos'!N212)","v":2027.1568844760163},{"$f":"IF('[10]II.2.Balance OSD-Activos'!R212=\"\",\"\",'[10]II.2.Balance OSD-Activos'!R212)","v":78327.180679656492},{"$f":"IF('[10]II.2.Balance OSD-Activos'!S212=\"\",\"\",'[10]II.2.Balance OSD-Activos'!S212)","v":82758.210042681254},80736.307544354873,165521.67447151215,-2.3530463243412458,4.5697234692384514,26.894463411086033,4.798242496255023,4.4243785141157899,4.7224858817606741,-0.39819211139562327,{"$f":"IF('[2]MONE(M)CAPARD'!AS354=\"\",\"\",'[2]MONE(M)CAPARD'!AS354)","v":5},{"$f":"IF('[2]MONE(M)CAPARD'!AT354=\"\",\"\",'[2]MONE(M)CAPARD'!AT354)","v":"n.a."},{"$f":"IF('[2]MONE(M)CAPARD'!AU354=\"\",\"\",'[2]MONE(M)CAPARD'!AU354)","v":2.75},{"$f":"IF('[2]MONE(M)CAPARD'!AV354=\"\",\"\",'[2]MONE(M)CAPARD'!AV354)","v":5.5},{"$f":"IF('[2]MONE(M)CAPARD'!AW354=\"\",\"\",'[2]MONE(M)CAPARD'!AW354)","v":"n.a."},{"$f":"IF('[2]MONE(M)CAPARD'!AX354=\"\",\"\",'[2]MONE(M)CAPARD'!AX354)","v":5.5},{"$f":"IF('[2]MONE(M)CAPARD'!AY354=\"\",\"\",'[2]MONE(M)CAPARD'!AY354)","v":"n.a."},{"$f":"IF('[2]FISCAL(M)'!$K354=\"\",\"\",'[2]FISCAL(M)'!$K354)","v":-3993.5134082143873},{"$f":"IF('[2]FISCAL(M)'!$L354=\"\",\"\",'[2]FISCAL(M)'!$L354)","v":-7352.5134082143868},{"$f":"IF('[2]FISCAL(M)'!$AY354=\"\",\"\",'[2]FISCAL(M)'!$AY354)","v":137145.45524427577},{"$f":"IF('[2]FISCAL(M)'!$BI354=\"\",\"\",'[2]FISCAL(M)'!$BI354)","v":72755.674030867463},{"$f":"IF('[2]FISCAL(M)'!$BS354=\"\",\"\",'[2]FISCAL(M)'!$BS354)","v":64389.781213408321},{"$f":"IF('[2]FISCAL(M)'!$AZ354=\"\",\"\",'[2]FISCAL(M)'!$AZ354)","v":162083.3419442758},{"$f":"IF('[2]FISCAL(M)'!$BJ354=\"\",\"\",'[2]FISCAL(M)'!$BJ354)","v":77912.535230867463},{"$f":"IF('[2]FISCAL(M)'!$BT354=\"\",\"\",'[2]FISCAL(M)'!$BT354)","v":84170.806713408325},{"$f":"IF('[3]MONE(M)'!$AO354=\"\",\"\",'[3]MONE(M)'!$AO354)","v":22023223.353797209},{"$f":"IF('[4]MONE(M)'!$AO354=\"\",\"\",'[4]MONE(M)'!$AO354)","v":13033.667922940063},{"$f":"IF('[5]MONE(M)'!$AO354=\"\",\"\",'[5]MONE(M)'!$AO354)","v":202141.65840643999},{"$f":"+'[1]MONE(M)'!$AO354","v":341877.74655558093},{"$f":"IF('[6]MONE(M)'!$AO354=\"\",\"\",'[6]MONE(M)'!$AO354)","v":156086.89726901299},{"$f":"IF('[7]MONE(M)'!$AO354=\"\",\"\",'[7]MONE(M)'!$AO354)","v":1090351.16395399},{"$f":"IF('[8]MONE(M)'!$AO354=\"\",\"\",'[8]MONE(M)'!$AO354)","v":51957.06643466001},3.6776062933818965,6.7179967915566907,4.970978007023108,13.363940856201584,4.9589351650070057E-2,13.201750113251954,5.0925835021585542,{"$f":"'[2]FISCAL(M)'!$K354","v":-3993.5134082143873},{"$f":"+'[2]REAL(A)'!$AO$38","v":284395.32118885993},-1.4042120635178781,{"$f":"IF('[2]FISCAL(M)'!$L354=\"\",\"\",'[2]FISCAL(M)'!$L354)","v":-7352.5134082143868},{"$f":"+'[2]REAL(A)'!$AP$38","v":349324.72961703659},-2.1047789591864623,154046.02239795163,{"$f":"'[2]Gráfico REM'!BG348","v":27074.968337009552},{"$f":"'[2]Gráfico REM'!BH348","v":118312.44666777711},{"$f":"'[2]Gráfico REM'!BI348","v":8658.6073931649862},3.9259676609472383,3.1733419906774696,3.7499181133941573,8.9366757614012027,{"$f":"+IF(OR(DB347=\"\",+DC347=\"\",+DD347=\"\"),\"\",(DB347+DC347+DD347))","v":229905.84525429166},{"$f":"'[2]Gráfico REM'!BK348","v":29171.028700419552},{"$f":"'[2]Gráfico REM'!BL348","v":170269.51310243714},{"$f":"'[2]Gráfico REM'!BM348","v":30465.303451434986},4.178170989998331,2.5330173975309345,4.1559757150017473,5.9318134642501574]
[2018,"octubre","2018-octubre",{"$f":"IF('[2]REAL IPC(M)'!$AL355=\"\",\"\",+'[2]REAL IPC(M)'!$AL355)","v":3.4987576388422648},{"$f":"IF('[2]REAL IPC(M)'!$BE355=\"\",\"\",+'[2]REAL IPC(M)'!$BE355)","v":2.8401238938149387},{"$f":"IF('[2]REAL IPC(M)'!$AM355=\"\",\"\",+'[2]REAL IPC(M)'!$AM355)","v":3.1385869565217384},{"$f":"IF('[2]REAL IPC(M)'!$BI355=\"\",\"\",+'[2]REAL IPC(M)'!$BI355)","v":2.4298779068599341},{"$f":"IF('[2]REAL IMAE(M)'!BJ355=\"\",\"\",'[2]REAL IMAE(M)'!BJ355)","v":3.4252287966586747},{"$f":"IF('[2]REAL IMAE(M)'!BK355=\"\",\"\",'[2]REAL IMAE(M)'!BK355)","v":2.4879046181634168},{"$f":"IF('[2]REAL IMAE(M)'!BN355=\"\",\"\",'[2]REAL IMAE(M)'!BN355)","v":3.8360567524598821},{"$f":"IF('[2]REAL IMAE(M)'!BO355=\"\",\"\",'[2]REAL IMAE(M)'!BO355)","v":2.1025749991876674},{"$f":"IF('[2]EXT RIN(M)'!$K355=\"\",\"\",'[2]EXT RIN(M)'!$K355)","v":36353.402806299287},null,{"$f":"IF('[2]EXT RIN(M)'!$L355=\"\",\"\",'[2]EXT RIN(M)'!$L355)","v":38727.451202819284},null,{"$f":"IF('[2]MONE(M)CARD'!EG355=\"\",\"\",'[2]MONE(M)CARD'!EG355)","v":35015.763713143635},{"$f":"IF('[2]MONE(M)CARD'!EK355=\"\",\"\",'[2]MONE(M)CARD'!EK355)","v":56717.319523289203},{"$f":"IF('[2]MONE(M)CARD'!EP355=\"\",\"\",'[2]MONE(M)CARD'!EP355)","v":30857.637415026955},{"$f":"IF('[2]MONE(M)CARD'!ES355=\"\",\"\",'[2]MONE(M)CARD'!ES355)","v":1.3718383596821759},{"$f":"IF('[2]MONE(M)CARD'!EV355=\"\",\"\",'[2]MONE(M)CARD'!EV355)","v":0.91362513366124443},{"$f":"IF('[2]MONE(M)CARD'!EZ355=\"\",\"\",'[2]MONE(M)CARD'!EZ355)","v":0.69411990751528929},{"$f":"IF('[2]MONE(M)CAPARD'!FC355=\"\",\"\",'[2]MONE(M)CAPARD'!FC355)","v":43013.249065643628},{"$f":"IF('[2]MONE(M)CAPARD'!FG355=\"\",\"\",'[2]MONE(M)CAPARD'!FG355)","v":89047.317283229218},{"$f":"IF('[2]MONE(M)CAPARD'!FL355=\"\",\"\",'[2]MONE(M)CAPARD'!FL355)","v":30857.637415026955},{"$f":"IF('[2]MONE(M)CAPARD'!FO355=\"\",\"\",'[2]MONE(M)CAPARD'!FO355)","v":1.6189415374505911},{"$f":"IF('[2]MONE(M)CAPARD'!FR355=\"\",\"\",'[2]MONE(M)CAPARD'!FR355)","v":1.2959736984943682},{"$f":"IF('[2]MONE(M)CAPARD'!FV355=\"\",\"\",'[2]MONE(M)CAPARD'!FV355)","v":1.0570577272907666},{"$f":"IF('[2]MONE(M)CARD'!FV355=\"\",\"\",'[2]MONE(M)CARD'!FV355)","v":1618.5378603144786},{"$f":"IF('[2]MONE(M)CARD'!GD355=\"\",\"\",'[2]MONE(M)CARD'!GD355)","v":87.1376031010508},{"$f":"IF('[2]MONE(M)CARD'!GE355=\"\",\"\",'[2]MONE(M)CARD'!GE355)","v":11564.407572391769},-2.5700186759249122,{"$f":"IF('[9]II.2.Balance OSD-Activos'!J213=\"\",\"\",'[9]II.2.Balance OSD-Activos'!J213)","v":232.15056010528841},{"$f":"IF('[9]II.2.Balance OSD-Activos'!N213=\"\",\"\",'[9]II.2.Balance OSD-Activos'!N213)","v":1520.3037779397109},{"$f":"IF('[9]II.2.Balance OSD-Activos'!R213=\"\",\"\",'[9]II.2.Balance OSD-Activos'!R213)","v":54327.027179425197},{"$f":"IF('[9]II.2.Balance OSD-Activos'!S213=\"\",\"\",'[9]II.2.Balance OSD-Activos'!S213)","v":58072.989170144014},54559.177739530482,114152.4706876142,-22.935990050089661,4.8431984482402823,37.937974377474262,5.0049436823298432,1.629757494098194,3.5089400587716923,-1.0838331724799088,{"$f":"IF('[2]MONE(M)CAPARD'!GS355=\"\",\"\",'[2]MONE(M)CAPARD'!GS355)","v":21838.582772298178},{"$f":"IF('[2]MONE(M)CARD'!HA355=\"\",\"\",'[2]MONE(M)CAPARD'!HA355)","v":13465.570996171769},{"$f":"IF('[2]MONE(M)CAPARD'!HB355=\"\",\"\",'[2]MONE(M)CAPARD'!HB355)","v":8373.0117761264082},"n.d.",{"$f":"IF('[10]II.2.Balance OSD-Activos'!J213=\"\",\"\",'[10]II.2.Balance OSD-Activos'!J213)","v":2381.6757487052887},{"$f":"IF('[10]II.2.Balance OSD-Activos'!N213=\"\",\"\",'[10]II.2.Balance OSD-Activos'!N213)","v":2005.7931389197111},{"$f":"IF('[10]II.2.Balance OSD-Activos'!R213=\"\",\"\",'[10]II.2.Balance OSD-Activos'!R213)","v":78593.083166335186},{"$f":"IF('[10]II.2.Balance OSD-Activos'!S213=\"\",\"\",'[10]II.2.Balance OSD-Activos'!S213)","v":82518.800957734013},80974.758915040467,165499.35301169421,-0.85718188330574652,4.0629542648123351,24.961757593441767,4.2196885256914562,3.145699504977939,3.8130669550475726,-0.90941892671310143,{"$f":"IF('[2]MONE(M)CAPARD'!AS355=\"\",\"\",'[2]MONE(M)CAPARD'!AS355)","v":5},{"$f":"IF('[2]MONE(M)CAPARD'!AT355=\"\",\"\",'[2]MONE(M)CAPARD'!AT355)","v":"n.a."},{"$f":"IF('[2]MONE(M)CAPARD'!AU355=\"\",\"\",'[2]MONE(M)CAPARD'!AU355)","v":2.75},{"$f":"IF('[2]MONE(M)CAPARD'!AV355=\"\",\"\",'[2]MONE(M)CAPARD'!AV355)","v":5.5},{"$f":"IF('[2]MONE(M)CAPARD'!AW355=\"\",\"\",'[2]MONE(M)CAPARD'!AW355)","v":"n.a."},{"$f":"IF('[2]MONE(M)CAPARD'!AX355=\"\",\"\",'[2]MONE(M)CAPARD'!AX355)","v":5.5},{"$f":"IF('[2]MONE(M)CAPARD'!AY355=\"\",\"\",'[2]MONE(M)CAPARD'!AY355)","v":"n.a."},{"$f":"IF('[2]FISCAL(M)'!$K355=\"\",\"\",'[2]FISCAL(M)'!$K355)","v":-4322.387498954623},{"$f":"IF('[2]FISCAL(M)'!$L355=\"\",\"\",'[2]FISCAL(M)'!$L355)","v":"n.d."},{"$f":"IF('[2]FISCAL(M)'!$AY355=\"\",\"\",'[2]FISCAL(M)'!$AY355)","v":135309.37471962167},{"$f":"IF('[2]FISCAL(M)'!$BI355=\"\",\"\",'[2]FISCAL(M)'!$BI355)","v":71593.838907275203},{"$f":"IF('[2]FISCAL(M)'!$BS355=\"\",\"\",'[2]FISCAL(M)'!$BS355)","v":63715.535812346439},{"$f":"IF('[2]FISCAL(M)'!$AZ355=\"\",\"\",'[2]FISCAL(M)'!$AZ355)","v":161123.98471962166},{"$f":"IF('[2]FISCAL(M)'!$BJ355=\"\",\"\",'[2]FISCAL(M)'!$BJ355)","v":76859.708907275213},{"$f":"IF('[2]FISCAL(M)'!$BT355=\"\",\"\",'[2]FISCAL(M)'!$BT355)","v":84264.27581234643},{"$f":"IF('[3]MONE(M)'!$AO355=\"\",\"\",'[3]MONE(M)'!$AO355)","v":22343789.452976037},{"$f":"IF('[4]MONE(M)'!$AO355=\"\",\"\",'[4]MONE(M)'!$AO355)","v":13107.870034889998},{"$f":"IF('[5]MONE(M)'!$AO355=\"\",\"\",'[5]MONE(M)'!$AO355)","v":204019.30995471351},{"$f":"+'[1]MONE(M)'!$AO355","v":345666.25118990941},{"$f":"IF('[6]MONE(M)'!$AO355=\"\",\"\",'[6]MONE(M)'!$AO355)","v":153239.9007812487},{"$f":"IF('[7]MONE(M)'!$AO355=\"\",\"\",'[7]MONE(M)'!$AO355)","v":1101796.99283883},{"$f":"IF('[8]MONE(M)'!$AO355=\"\",\"\",'[8]MONE(M)'!$AO355)","v":52286.49654072999},5.1187927023158775,6.7592091028168877,5.1742681505719368,13.691653788247526,-3.2672906060357221,11.398195575390812,4.4595692859063396,{"$f":"'[2]FISCAL(M)'!$K355","v":-4322.387498954623},{"$f":"+'[2]REAL(A)'!$AO$38","v":284395.32118885993},-1.5198518319097913,{"$f":"IF('[2]FISCAL(M)'!$L355=\"\",\"\",'[2]FISCAL(M)'!$L355)","v":"n.d."},{"$f":"+'[2]REAL(A)'!$AP$38","v":349324.72961703659},"n.d.",{"$f":"+IF(OR(CT348=\"\",+CU348=\"\",+CV348=\"\"),\"\",(CT348+CU348+CV348))","v":152335.50436792811},{"$f":"'[2]Gráfico REM'!BG349","v":26411.133487264611},{"$f":"'[2]Gráfico REM'!BH349","v":117685.19707033451},{"$f":"'[2]Gráfico REM'!BI349","v":8239.1738103289772},1.9201706609837776,1.190056139743767E-2,2.3265579597480768,2.3743414758246706,228519.94295221809,{"$f":"'[2]Gráfico REM'!BK349","v":28562.398188784609},{"$f":"'[2]Gráfico REM'!BL349","v":169971.69361106452},{"$f":"'[2]Gráfico REM'!BM349","v":29985.851152368974},2.3252926279668573,-0.50811761207596451,2.97337704767906,1.4579952455581191]
[2018,"noviembre","2018-noviembre",{"$f":"IF('[2]REAL IPC(M)'!$AL356=\"\",\"\",+'[2]REAL IPC(M)'!$AL356)","v":2.8079770559594319},{"$f":"IF('[2]REAL IPC(M)'!$BE356=\"\",\"\",+'[2]REAL IPC(M)'!$BE356)","v":2.8505091530062643},{"$f":"IF('[2]REAL IPC(M)'!$AM356=\"\",\"\",+'[2]REAL IPC(M)'!$AM356)","v":2.5059101654846261},{"$f":"IF('[2]REAL IPC(M)'!$BI356=\"\",\"\",+'[2]REAL IPC(M)'!$BI356)","v":2.4296396560451239},{"$f":"IF('[2]REAL IMAE(M)'!BJ356=\"\",\"\",'[2]REAL IMAE(M)'!BJ356)","v":2.9441821213994857},{"$f":"IF('[2]REAL IMAE(M)'!BK356=\"\",\"\",'[2]REAL IMAE(M)'!BK356)","v":2.3863078978417995},{"$f":"IF('[2]REAL IMAE(M)'!BN356=\"\",\"\",'[2]REAL IMAE(M)'!BN356)","v":3.0417036964021538},{"$f":"IF('[2]REAL IMAE(M)'!BO356=\"\",\"\",'[2]REAL IMAE(M)'!BO356)","v":1.9572946530561186},{"$f":"IF('[2]EXT RIN(M)'!$K356=\"\",\"\",'[2]EXT RIN(M)'!$K356)","v":35691.162898871546},null,{"$f":"IF('[2]EXT RIN(M)'!$L356=\"\",\"\",'[2]EXT RIN(M)'!$L356)","v":38270.433953681546},null,{"$f":"IF('[2]MONE(M)CARD'!EG356=\"\",\"\",'[2]MONE(M)CARD'!EG356)","v":36027.786430811553},{"$f":"IF('[2]MONE(M)CARD'!EK356=\"\",\"\",'[2]MONE(M)CARD'!EK356)","v":56606.523266512449},{"$f":"IF('[2]MONE(M)CARD'!EP356=\"\",\"\",'[2]MONE(M)CARD'!EP356)","v":31329.401671547836},{"$f":"IF('[2]MONE(M)CARD'!ES356=\"\",\"\",'[2]MONE(M)CARD'!ES356)","v":0.59606574712900429},{"$f":"IF('[2]MONE(M)CARD'!EV356=\"\",\"\",'[2]MONE(M)CARD'!EV356)","v":0.88936350908610518},{"$f":"IF('[2]MONE(M)CARD'!EZ356=\"\",\"\",'[2]MONE(M)CARD'!EZ356)","v":0.98092740620854268},{"$f":"IF('[2]MONE(M)CAPARD'!FC356=\"\",\"\",'[2]MONE(M)CAPARD'!FC356)","v":44292.08447904155},{"$f":"IF('[2]MONE(M)CAPARD'!FG356=\"\",\"\",'[2]MONE(M)CAPARD'!FG356)","v":89557.656897382432},{"$f":"IF('[2]MONE(M)CAPARD'!FL356=\"\",\"\",'[2]MONE(M)CAPARD'!FL356)","v":31329.40167154785},{"$f":"IF('[2]MONE(M)CAPARD'!FO356=\"\",\"\",'[2]MONE(M)CAPARD'!FO356)","v":0.51910130396908283},{"$f":"IF('[2]MONE(M)CAPARD'!FR356=\"\",\"\",'[2]MONE(M)CAPARD'!FR356)","v":1.5028417555118745},{"$f":"IF('[2]MONE(M)CAPARD'!FV356=\"\",\"\",'[2]MONE(M)CAPARD'!FV356)","v":1.4552906321259051},{"$f":"IF('[2]MONE(M)CARD'!FV356=\"\",\"\",'[2]MONE(M)CARD'!FV356)","v":1638.6197197965057},{"$f":"IF('[2]MONE(M)CARD'!GD356=\"\",\"\",'[2]MONE(M)CARD'!GD356)","v":97.654923886653862},{"$f":"IF('[2]MONE(M)CARD'!GE356=\"\",\"\",'[2]MONE(M)CARD'!GE356)","v":11389.513927378828},-7.5023215055814996,{"$f":"IF('[9]II.2.Balance OSD-Activos'!J214=\"\",\"\",'[9]II.2.Balance OSD-Activos'!J214)","v":226.43172918169176},{"$f":"IF('[9]II.2.Balance OSD-Activos'!N214=\"\",\"\",'[9]II.2.Balance OSD-Activos'!N214)","v":1476.822195779401},{"$f":"IF('[9]II.2.Balance OSD-Activos'!R214=\"\",\"\",'[9]II.2.Balance OSD-Activos'!R214)","v":54755.276693091524},{"$f":"IF('[9]II.2.Balance OSD-Activos'!S214=\"\",\"\",'[9]II.2.Balance OSD-Activos'!S214)","v":58831.842033102817},54981.708422273216,115290.37265115543,-24.832503867285215,4.4805833416781349,36.293803067492078,4.6493471451835688,1.6523758859275262,3.3225879920886436,-0.18635206668304871,{"$f":"IF('[2]MONE(M)CAPARD'!GS356=\"\",\"\",'[2]MONE(M)CAPARD'!GS356)","v":22148.623343195275},{"$f":"IF('[2]MONE(M)CARD'!HA356=\"\",\"\",'[2]MONE(M)CAPARD'!HA356)","v":13267.22128098883},{"$f":"IF('[2]MONE(M)CAPARD'!HB356=\"\",\"\",'[2]MONE(M)CAPARD'!HB356)","v":8881.4020622064454},"n.d.",{"$f":"IF('[10]II.2.Balance OSD-Activos'!J214=\"\",\"\",'[10]II.2.Balance OSD-Activos'!J214)","v":2410.6819019216923},{"$f":"IF('[10]II.2.Balance OSD-Activos'!N214=\"\",\"\",'[10]II.2.Balance OSD-Activos'!N214)","v":1918.609795469401},{"$f":"IF('[10]II.2.Balance OSD-Activos'!R214=\"\",\"\",'[10]II.2.Balance OSD-Activos'!R214)","v":79023.749327221522},{"$f":"IF('[10]II.2.Balance OSD-Activos'!S214=\"\",\"\",'[10]II.2.Balance OSD-Activos'!S214)","v":83473.058820722814},81434.431229143214,166826.09984533541,1.8751556193089547,3.7740357739464603,22.501653048277383,3.8330758986743207,3.1664891280881236,3.6508534920607794,-0.16221346298679329,{"$f":"IF('[2]MONE(M)CAPARD'!AS356=\"\",\"\",'[2]MONE(M)CAPARD'!AS356)","v":5.25},{"$f":"IF('[2]MONE(M)CAPARD'!AT356=\"\",\"\",'[2]MONE(M)CAPARD'!AT356)","v":"n.a."},{"$f":"IF('[2]MONE(M)CAPARD'!AU356=\"\",\"\",'[2]MONE(M)CAPARD'!AU356)","v":2.75},{"$f":"IF('[2]MONE(M)CAPARD'!AV356=\"\",\"\",'[2]MONE(M)CAPARD'!AV356)","v":5.5},{"$f":"IF('[2]MONE(M)CAPARD'!AW356=\"\",\"\",'[2]MONE(M)CAPARD'!AW356)","v":"n.a."},{"$f":"IF('[2]MONE(M)CAPARD'!AX356=\"\",\"\",'[2]MONE(M)CAPARD'!AX356)","v":5.5},{"$f":"IF('[2]MONE(M)CAPARD'!AY356=\"\",\"\",'[2]MONE(M)CAPARD'!AY356)","v":"n.a."},{"$f":"IF('[2]FISCAL(M)'!$K356=\"\",\"\",'[2]FISCAL(M)'!$K356)","v":-5287.9414963883364},{"$f":"IF('[2]FISCAL(M)'!$L356=\"\",\"\",'[2]FISCAL(M)'!$L356)","v":"n.d."},{"$f":"IF('[2]FISCAL(M)'!$AY356=\"\",\"\",'[2]FISCAL(M)'!$AY356)","v":135840.81379547098},{"$f":"IF('[2]FISCAL(M)'!$BI356=\"\",\"\",'[2]FISCAL(M)'!$BI356)","v":72050.808982375456},{"$f":"IF('[2]FISCAL(M)'!$BS356=\"\",\"\",'[2]FISCAL(M)'!$BS356)","v":63790.00481309554},{"$f":"IF('[2]FISCAL(M)'!$AZ356=\"\",\"\",'[2]FISCAL(M)'!$AZ356)","v":162016.50619547098},{"$f":"IF('[2]FISCAL(M)'!$BJ356=\"\",\"\",'[2]FISCAL(M)'!$BJ356)","v":77664.670182375456},{"$f":"IF('[2]FISCAL(M)'!$BT356=\"\",\"\",'[2]FISCAL(M)'!$BT356)","v":84351.836013095541},{"$f":"IF('[3]MONE(M)'!$AO356=\"\",\"\",'[3]MONE(M)'!$AO356)","v":22285236.430422902},{"$f":"IF('[4]MONE(M)'!$AO356=\"\",\"\",'[4]MONE(M)'!$AO356)","v":13234.59790574},{"$f":"IF('[5]MONE(M)'!$AO356=\"\",\"\",'[5]MONE(M)'!$AO356)","v":204893.92936122854},{"$f":"+'[1]MONE(M)'!$AO356","v":352031.35219936841},{"$f":"IF('[6]MONE(M)'!$AO356=\"\",\"\",'[6]MONE(M)'!$AO356)","v":151492.95698615874},{"$f":"IF('[7]MONE(M)'!$AO356=\"\",\"\",'[7]MONE(M)'!$AO356)","v":1119459.0879851398},{"$f":"IF('[8]MONE(M)'!$AO356=\"\",\"\",'[8]MONE(M)'!$AO356)","v":52540.32601651999},4.6564307171231167,6.8424848593473531,4.9312294650942112,13.740365690853128,-6.343971991981789,11.101611878450313,4.4649620890699238,{"$f":"'[2]FISCAL(M)'!$K356","v":-5287.9414963883364},{"$f":"+'[2]REAL(A)'!$AO$38","v":284395.32118885993},-1.8593630423605825,{"$f":"IF('[2]FISCAL(M)'!$L356=\"\",\"\",'[2]FISCAL(M)'!$L356)","v":"n.d."},{"$f":"+'[2]REAL(A)'!$AP$38","v":349324.72961703659},"n.d.",153849.47565299936,{"$f":"'[2]Gráfico REM'!BG350","v":26428.07145904507},{"$f":"'[2]Gráfico REM'!BH350","v":118750.91200690763},{"$f":"'[2]Gráfico REM'!BI350","v":8670.4921870466442},2.1003213002103838,0.20737101826675541,2.2065425597141974,6.7263374933399067,230685.52778192933,{"$f":"'[2]Gráfico REM'!BK350","v":28609.062719975071},{"$f":"'[2]Gráfico REM'!BL350","v":171291.23802342761},{"$f":"'[2]Gráfico REM'!BM350","v":30785.227038526638},2.5637615024846294,-0.2056516276727427,2.8888180384702755,3.4128784389881206]
[2018,"diciembre","2018-diciembre",{"$f":"IF('[2]REAL IPC(M)'!$AL357=\"\",\"\",+'[2]REAL IPC(M)'!$AL357)","v":2.0317670416942324},{"$f":"IF('[2]REAL IPC(M)'!$BE357=\"\",\"\",+'[2]REAL IPC(M)'!$BE357)","v":2.8626089829408841},{"$f":"IF('[2]REAL IPC(M)'!$AM357=\"\",\"\",+'[2]REAL IPC(M)'!$AM357)","v":1.7574456667560856},{"$f":"IF('[2]REAL IPC(M)'!$BI357=\"\",\"\",+'[2]REAL IPC(M)'!$BI357)","v":2.4308796734144433},{"$f":"IF('[2]REAL IMAE(M)'!BJ357=\"\",\"\",'[2]REAL IMAE(M)'!BJ357)","v":2.7681904501394738},{"$f":"IF('[2]REAL IMAE(M)'!BK357=\"\",\"\",'[2]REAL IMAE(M)'!BK357)","v":2.2857334457628831},{"$f":"IF('[2]REAL IMAE(M)'!BN357=\"\",\"\",'[2]REAL IMAE(M)'!BN357)","v":2.1184715692113665},{"$f":"IF('[2]REAL IMAE(M)'!BO357=\"\",\"\",'[2]REAL IMAE(M)'!BO357)","v":1.8122967635337828},{"$f":"IF('[2]EXT RIN(M)'!$K357=\"\",\"\",'[2]EXT RIN(M)'!$K357)","v":38123.294928362244},{"$f":"IF(B350<>\"diciembre\",\"\",L350)","v":38123.294928362244},{"$f":"IF('[2]EXT RIN(M)'!$L357=\"\",\"\",'[2]EXT RIN(M)'!$L357)","v":41030.353193532246},{"$f":"IF(B350<>\"diciembre\",\"\",N350)","v":41030.353193532246},{"$f":"IF('[2]MONE(M)CARD'!EG357=\"\",\"\",'[2]MONE(M)CARD'!EG357)","v":38051.220006289906},{"$f":"IF('[2]MONE(M)CARD'!EK357=\"\",\"\",'[2]MONE(M)CARD'!EK357)","v":56869.942537419556},{"$f":"IF('[2]MONE(M)CARD'!EP357=\"\",\"\",'[2]MONE(M)CARD'!EP357)","v":30956.239241717354},{"$f":"IF('[2]MONE(M)CARD'!ES357=\"\",\"\",'[2]MONE(M)CARD'!ES357)","v":1.2369098023111924},{"$f":"IF('[2]MONE(M)CARD'!EV357=\"\",\"\",'[2]MONE(M)CARD'!EV357)","v":1.0321526311016127},{"$f":"IF('[2]MONE(M)CARD'!EZ357=\"\",\"\",'[2]MONE(M)CARD'!EZ357)","v":0.9061825842382909},{"$f":"IF('[2]MONE(M)CAPARD'!FC357=\"\",\"\",'[2]MONE(M)CAPARD'!FC357)","v":46776.923854309905},{"$f":"IF('[2]MONE(M)CAPARD'!FG357=\"\",\"\",'[2]MONE(M)CAPARD'!FG357)","v":89364.629182909543},{"$f":"IF('[2]MONE(M)CAPARD'!FL357=\"\",\"\",'[2]MONE(M)CAPARD'!FL357)","v":30956.239241717325},{"$f":"IF('[2]MONE(M)CAPARD'!FO357=\"\",\"\",'[2]MONE(M)CAPARD'!FO357)","v":1.8366959166171481},{"$f":"IF('[2]MONE(M)CAPARD'!FR357=\"\",\"\",'[2]MONE(M)CAPARD'!FR357)","v":1.612740379492994},{"$f":"IF('[2]MONE(M)CAPARD'!FV357=\"\",\"\",'[2]MONE(M)CAPARD'!FV357)","v":1.4088646826234452},{"$f":"IF('[2]MONE(M)CARD'!FV357=\"\",\"\",'[2]MONE(M)CARD'!FV357)","v":1930.9085329799866},{"$f":"IF('[2]MONE(M)CARD'!GD357=\"\",\"\",'[2]MONE(M)CARD'!GD357)","v":139.92902010472352},{"$f":"IF('[2]MONE(M)CARD'!GE357=\"\",\"\",'[2]MONE(M)CARD'!GE357)","v":11056.450666195085},-3.87066360118411,{"$f":"IF('[9]II.2.Balance OSD-Activos'!J215=\"\",\"\",'[9]II.2.Balance OSD-Activos'!J215)","v":196.42542109404496},{"$f":"IF('[9]II.2.Balance OSD-Activos'!N215=\"\",\"\",'[9]II.2.Balance OSD-Activos'!N215)","v":1464.4654755518911},{"$f":"IF('[9]II.2.Balance OSD-Activos'!R215=\"\",\"\",'[9]II.2.Balance OSD-Activos'!R215)","v":54639.243310104866},{"$f":"IF('[9]II.2.Balance OSD-Activos'!S215=\"\",\"\",'[9]II.2.Balance OSD-Activos'!S215)","v":58686.062921934339},54835.668731198908,114986.19712868513,-36.417306848271366,3.3442742051368768,32.20247342327751,3.5771270794843879,1.3697360953072391,2.6094613505492248,-0.71312664153941885,{"$f":"IF('[2]MONE(M)CAPARD'!GS357=\"\",\"\",'[2]MONE(M)CAPARD'!GS357)","v":22529.921044004386},{"$f":"IF('[2]MONE(M)CARD'!HA357=\"\",\"\",'[2]MONE(M)CAPARD'!HA357)","v":13050.936837555086},{"$f":"IF('[2]MONE(M)CAPARD'!HB357=\"\",\"\",'[2]MONE(M)CAPARD'!HB357)","v":9478.9842064493005},"n.d.",{"$f":"IF('[10]II.2.Balance OSD-Activos'!J215=\"\",\"\",'[10]II.2.Balance OSD-Activos'!J215)","v":2294.8979907340458},{"$f":"IF('[10]II.2.Balance OSD-Activos'!N215=\"\",\"\",'[10]II.2.Balance OSD-Activos'!N215)","v":1969.8380057618911},{"$f":"IF('[10]II.2.Balance OSD-Activos'!R215=\"\",\"\",'[10]II.2.Balance OSD-Activos'!R215)","v":78595.40903969486},{"$f":"IF('[10]II.2.Balance OSD-Activos'!S215=\"\",\"\",'[10]II.2.Balance OSD-Activos'!S215)","v":83481.846729144338},80890.307030428899,166341.99176533514,-13.447824699642929,2.4494709570046735,21.207094820427042,3.0018746842366495,2.9495634758877953,2.8888625604200469,-0.76199093164073251,{"$f":"IF('[2]MONE(M)CAPARD'!AS357=\"\",\"\",'[2]MONE(M)CAPARD'!AS357)","v":5.25},{"$f":"IF('[2]MONE(M)CAPARD'!AT357=\"\",\"\",'[2]MONE(M)CAPARD'!AT357)","v":"n.a."},{"$f":"IF('[2]MONE(M)CAPARD'!AU357=\"\",\"\",'[2]MONE(M)CAPARD'!AU357)","v":2.75},{"$f":"IF('[2]MONE(M)CAPARD'!AV357=\"\",\"\",'[2]MONE(M)CAPARD'!AV357)","v":5.5},{"$f":"IF('[2]MONE(M)CAPARD'!AW357=\"\",\"\",'[2]MONE(M)CAPARD'!AW357)","v":"n.a."},{"$f":"IF('[2]MONE(M)CAPARD'!AX357=\"\",\"\",'[2]MONE(M)CAPARD'!AX357)","v":5.5},{"$f":"IF('[2]MONE(M)CAPARD'!AY357=\"\",\"\",'[2]MONE(M)CAPARD'!AY357)","v":"n.a."},{"$f":"IF('[2]FISCAL(M)'!$K357=\"\",\"\",'[2]FISCAL(M)'!$K357)","v":-7542.8764382229729},{"$f":"IF('[2]FISCAL(M)'!$L357=\"\",\"\",'[2]FISCAL(M)'!$L357)","v":-9351.8764382229729},{"$f":"IF('[2]FISCAL(M)'!$AY357=\"\",\"\",'[2]FISCAL(M)'!$AY357)","v":136075.40717569168},{"$f":"IF('[2]FISCAL(M)'!$BI357=\"\",\"\",'[2]FISCAL(M)'!$BI357)","v":71473.840193954558},{"$f":"IF('[2]FISCAL(M)'!$BS357=\"\",\"\",'[2]FISCAL(M)'!$BS357)","v":64601.566981737145},{"$f":"IF('[2]FISCAL(M)'!$AZ357=\"\",\"\",'[2]FISCAL(M)'!$AZ357)","v":161762.26697569172},{"$f":"IF('[2]FISCAL(M)'!$BJ357=\"\",\"\",'[2]FISCAL(M)'!$BJ357)","v":76585.921293954554},{"$f":"IF('[2]FISCAL(M)'!$BT357=\"\",\"\",'[2]FISCAL(M)'!$BT357)","v":85176.345681737148},{"$f":"IF('[3]MONE(M)'!$AO357=\"\",\"\",'[3]MONE(M)'!$AO357)","v":22350284.702658173},{"$f":"IF('[4]MONE(M)'!$AO357=\"\",\"\",'[4]MONE(M)'!$AO357)","v":13240.182238460002},{"$f":"IF('[5]MONE(M)'!$AO357=\"\",\"\",'[5]MONE(M)'!$AO357)","v":205320.44231235483},{"$f":"+'[1]MONE(M)'!$AO357","v":356744.63632406201},{"$f":"IF('[6]MONE(M)'!$AO357=\"\",\"\",'[6]MONE(M)'!$AO357)","v":147976.4229178922},{"$f":"IF('[7]MONE(M)'!$AO357=\"\",\"\",'[7]MONE(M)'!$AO357)","v":1126154.4775040201},{"$f":"IF('[8]MONE(M)'!$AO357=\"\",\"\",'[8]MONE(M)'!$AO357)","v":52204.380966039986},4.4432114496036901,6.8864085962981436,4.5397688442660122,14.292218895198383,-8.828082165925677,10.372298125428436,3.3541087512918955,{"$f":"'[2]FISCAL(M)'!$K357","v":-7542.8764382229729},{"$f":"+'[2]REAL(A)'!$AO$38","v":284395.32118885993},-2.6522505386837691,{"$f":"IF('[2]FISCAL(M)'!$L357=\"\",\"\",'[2]FISCAL(M)'!$L357)","v":-9351.8764382229729},{"$f":"+'[2]REAL(A)'!$AP$38","v":349324.72961703659},-2.6771298008232627,153661.32812703104,{"$f":"'[2]Gráfico REM'!BG351","v":26496.315680818334},{"$f":"'[2]Gráfico REM'!BH351","v":118424.27535814724},{"$f":"'[2]Gráfico REM'!BI351","v":8740.7370880654707},1.7490620046168637,1.6747802879756524,1.5788173114562376,4.3496461831118882,230914.35251775105,{"$f":"'[2]Gráfico REM'!BK351","v":28695.804595488335},{"$f":"'[2]Gráfico REM'!BL351","v":170628.65632418724},{"$f":"'[2]Gráfico REM'!BM351","v":31589.891598075472},2.3856141026854516,1.2036753424011115,2.1154639421735677,4.9999428912563593]
[2019,"enero",{"$f":"A351&\"-\"&B351","v":"2019-enero"},{"$f":"IF('[2]REAL IPC(M)'!$AL358=\"\",\"\",+'[2]REAL IPC(M)'!$AL358)","v":2.2257446667987679},{"$f":"IF('[2]REAL IPC(M)'!$BE358=\"\",\"\",+'[2]REAL IPC(M)'!$BE358)","v":2.8768841993084049},{"$f":"IF('[2]REAL IPC(M)'!$AM358=\"\",\"\",+'[2]REAL IPC(M)'!$AM358)","v":1.8615240391054},{"$f":"IF('[2]REAL IPC(M)'!$BI358=\"\",\"\",+'[2]REAL IPC(M)'!$BI358)","v":2.4341085594355105},{"$f":"IF('[2]REAL IMAE(M)'!BJ358=\"\",\"\",'[2]REAL IMAE(M)'!BJ358)","v":2.9993942769390269},{"$f":"IF('[2]REAL IMAE(M)'!BK358=\"\",\"\",'[2]REAL IMAE(M)'!BK358)","v":2.1869208662709028},{"$f":"IF('[2]REAL IMAE(M)'!BN358=\"\",\"\",'[2]REAL IMAE(M)'!BN358)","v":2.5226498082713933},{"$f":"IF('[2]REAL IMAE(M)'!BO358=\"\",\"\",'[2]REAL IMAE(M)'!BO358)","v":1.6686524511864143},{"$f":"IF('[2]EXT RIN(M)'!$K358=\"\",\"\",'[2]EXT RIN(M)'!$K358)","v":37314.542464646191},null,{"$f":"IF('[2]EXT RIN(M)'!$L358=\"\",\"\",'[2]EXT RIN(M)'!$L358)","v":40159.23565579619},null,{"$f":"IF('[2]MONE(M)CARD'!EG358=\"\",\"\",'[2]MONE(M)CARD'!EG358)","v":37331.932305954979},{"$f":"IF('[2]MONE(M)CARD'!EK358=\"\",\"\",'[2]MONE(M)CARD'!EK358)","v":56710.068866490619},{"$f":"IF('[2]MONE(M)CARD'!EP358=\"\",\"\",'[2]MONE(M)CARD'!EP358)","v":31239.094199617233},{"$f":"IF('[2]MONE(M)CARD'!ES358=\"\",\"\",'[2]MONE(M)CARD'!ES358)","v":1.6871305729191155},{"$f":"IF('[2]MONE(M)CARD'!EV358=\"\",\"\",'[2]MONE(M)CARD'!EV358)","v":1.1357224395926124},{"$f":"IF('[2]MONE(M)CARD'!EZ358=\"\",\"\",'[2]MONE(M)CARD'!EZ358)","v":1.0496203858371356},{"$f":"IF('[2]MONE(M)CAPARD'!FC358=\"\",\"\",'[2]MONE(M)CAPARD'!FC358)","v":45553.282879974984},{"$f":"IF('[2]MONE(M)CAPARD'!FG358=\"\",\"\",'[2]MONE(M)CAPARD'!FG358)","v":89482.762310850609},{"$f":"IF('[2]MONE(M)CAPARD'!FL358=\"\",\"\",'[2]MONE(M)CAPARD'!FL358)","v":31239.094199617219},{"$f":"IF('[2]MONE(M)CAPARD'!FO358=\"\",\"\",'[2]MONE(M)CAPARD'!FO358)","v":1.5731742676108995},{"$f":"IF('[2]MONE(M)CAPARD'!FR358=\"\",\"\",'[2]MONE(M)CAPARD'!FR358)","v":1.5940237110282585},{"$f":"IF('[2]MONE(M)CAPARD'!FV358=\"\",\"\",'[2]MONE(M)CAPARD'!FV358)","v":1.4422376406111992},{"$f":"IF('[2]MONE(M)CARD'!FV358=\"\",\"\",'[2]MONE(M)CARD'!FV358)","v":1825.5519719088502},{"$f":"IF('[2]MONE(M)CARD'!GD358=\"\",\"\",'[2]MONE(M)CARD'!GD358)","v":106.25644710570292},{"$f":"IF('[2]MONE(M)CARD'!GE358=\"\",\"\",'[2]MONE(M)CARD'!GE358)","v":11960.682481131276},11.38541916142386,{"$f":"IF('[9]II.2.Balance OSD-Activos'!J216=\"\",\"\",'[9]II.2.Balance OSD-Activos'!J216)","v":217.66976975512586},{"$f":"IF('[9]II.2.Balance OSD-Activos'!N216=\"\",\"\",'[9]II.2.Balance OSD-Activos'!N216)","v":1494.8674069677659},{"$f":"IF('[9]II.2.Balance OSD-Activos'!R216=\"\",\"\",'[9]II.2.Balance OSD-Activos'!R216)","v":54258.923834224137},{"$f":"IF('[9]II.2.Balance OSD-Activos'!S216=\"\",\"\",'[9]II.2.Balance OSD-Activos'!S216)","v":58783.460486493743},54476.593603979265,{"$f":"IF(OR(AF351=\"\",AG351=\"\",AH351=\"\",AI351=\"\"),\"\",SUM(AF351:AI351))","v":114754.92149744078},-22.609628881389011,2.2301781637598994,31.603429025468021,2.3619816554843354,1.5968244150709188,2.2009589380813654,-0.40850241246785934,{"$f":"IF('[2]MONE(M)CAPARD'!GS358=\"\",\"\",'[2]MONE(M)CAPARD'!GS358)","v":22955.298544572353},{"$f":"IF('[2]MONE(M)CARD'!HA358=\"\",\"\",'[2]MONE(M)CAPARD'!HA358)","v":14041.484178221275},{"$f":"IF('[2]MONE(M)CAPARD'!HB358=\"\",\"\",'[2]MONE(M)CAPARD'!HB358)","v":8913.8143663510782},"n.d.",{"$f":"IF('[10]II.2.Balance OSD-Activos'!J216=\"\",\"\",'[10]II.2.Balance OSD-Activos'!J216)","v":2282.500013115126},{"$f":"IF('[10]II.2.Balance OSD-Activos'!N216=\"\",\"\",'[10]II.2.Balance OSD-Activos'!N216)","v":1995.7760316077656},{"$f":"IF('[10]II.2.Balance OSD-Activos'!R216=\"\",\"\",'[10]II.2.Balance OSD-Activos'!R216)","v":78194.289568814129},{"$f":"IF('[10]II.2.Balance OSD-Activos'!S216=\"\",\"\",'[10]II.2.Balance OSD-Activos'!S216)","v":83528.815748673747},80476.789581929261,166001.38136221078,-11.262630624595571,1.6106534278227169,21.537670462450698,2.0427698697608188,2.9491847468367416,2.4831437212265328,-0.40571883919351404,{"$f":"IF('[2]MONE(M)CAPARD'!AS358=\"\",\"\",'[2]MONE(M)CAPARD'!AS358)","v":5.25},{"$f":"IF('[2]MONE(M)CAPARD'!AT358=\"\",\"\",'[2]MONE(M)CAPARD'!AT358)","v":"n.a."},{"$f":"IF('[2]MONE(M)CAPARD'!AU358=\"\",\"\",'[2]MONE(M)CAPARD'!AU358)","v":2.75},{"$f":"IF('[2]MONE(M)CAPARD'!AV358=\"\",\"\",'[2]MONE(M)CAPARD'!AV358)","v":5.75},{"$f":"IF('[2]MONE(M)CAPARD'!AW358=\"\",\"\",'[2]MONE(M)CAPARD'!AW358)","v":"n.a."},{"$f":"IF('[2]MONE(M)CAPARD'!AX358=\"\",\"\",'[2]MONE(M)CAPARD'!AX358)","v":5.5},{"$f":"IF('[2]MONE(M)CAPARD'!AY358=\"\",\"\",'[2]MONE(M)CAPARD'!AY358)","v":"n.a."},{"$f":"IF('[2]FISCAL(M)'!$K358=\"\",\"\",'[2]FISCAL(M)'!$K358)","v":-187.83856794137427},{"$f":"IF('[2]FISCAL(M)'!$L358=\"\",\"\",'[2]FISCAL(M)'!$L358)","v":"n.d."},{"$f":"IF('[2]FISCAL(M)'!$AY358=\"\",\"\",'[2]FISCAL(M)'!$AY358)","v":137621.50868877256},{"$f":"IF('[2]FISCAL(M)'!$BI358=\"\",\"\",'[2]FISCAL(M)'!$BI358)","v":72924.994924211322},{"$f":"IF('[2]FISCAL(M)'!$BS358=\"\",\"\",'[2]FISCAL(M)'!$BS358)","v":64696.513764561263},{"$f":"IF('[2]FISCAL(M)'!$AZ358=\"\",\"\",'[2]FISCAL(M)'!$AZ358)","v":163223.94228877258},{"$f":"IF('[2]FISCAL(M)'!$BJ358=\"\",\"\",'[2]FISCAL(M)'!$BJ358)","v":77994.499324211312},{"$f":"IF('[2]FISCAL(M)'!$BT358=\"\",\"\",'[2]FISCAL(M)'!$BT358)","v":85229.442964561254},{"$f":"IF('[3]MONE(M)'!$AO358=\"\",\"\",'[3]MONE(M)'!$AO358)","v":22376322.748207457},{"$f":"IF('[4]MONE(M)'!$AO358=\"\",\"\",'[4]MONE(M)'!$AO358)","v":13336.49345133},{"$f":"IF('[5]MONE(M)'!$AO358=\"\",\"\",'[5]MONE(M)'!$AO358)","v":206000.61681531777},{"$f":"+'[1]MONE(M)'!$AO358","v":359306.14386077668},{"$f":"IF('[6]MONE(M)'!$AO358=\"\",\"\",'[6]MONE(M)'!$AO358)","v":144443.09945521521},{"$f":"IF('[7]MONE(M)'!$AO358=\"\",\"\",'[7]MONE(M)'!$AO358)","v":1123080.12822832},{"$f":"IF('[8]MONE(M)'!$AO358=\"\",\"\",'[8]MONE(M)'!$AO358)","v":52052.281296899993},4.4761505862802808,7.3051971145787986,4.6742866691968699,13.808150180579325,-11.911048796065293,9.9487446696527648,2.9884078096588329,{"$f":"'[2]FISCAL(M)'!$K358","v":-187.83856794137427},{"$f":"+'[2]REAL(A)'!$AO$39","v":295165.15530963027},{"$f":"IF(OR(CM351=\"n.d.\",CM351=\"\",CN351=\"\",CN351=\"n.d.\"),\"\",(CM351/CN351)*100)","v":-6.363846292911178E-2},{"$f":"IF('[2]FISCAL(M)'!$L358=\"\",\"\",'[2]FISCAL(M)'!$L358)","v":"n.d."},{"$f":"+'[2]REAL(A)'!$AP$39","v":362149.55683805706},"n.d.",154685.30384416567,{"$f":"'[2]Gráfico REM'!BG352","v":27752.904085380927},{"$f":"'[2]Gráfico REM'!BH352","v":118202.29815007804},{"$f":"'[2]Gráfico REM'!BI352","v":8730.1016087066891},1.1501718576412578,0.24702731091914565,1.2279333394614955,3.029347577575181,231516.25286415566,{"$f":"'[2]Gráfico REM'!BK352","v":30054.198985360927},{"$f":"'[2]Gráfico REM'!BL352","v":170254.57944697805},{"$f":"'[2]Gráfico REM'!BM352","v":31207.474431816692},1.7479128728667526,0.58175091687850955,1.7597456251005061,2.8308581566029112]
[2019,"febrero","2019-febrero",{"$f":"IF('[2]REAL IPC(M)'!$AL359=\"\",\"\",+'[2]REAL IPC(M)'!$AL359)","v":2.4697880208677248},{"$f":"IF('[2]REAL IPC(M)'!$BE359=\"\",\"\",+'[2]REAL IPC(M)'!$BE359)","v":2.8937480741149546},{"$f":"IF('[2]REAL IPC(M)'!$AM359=\"\",\"\",+'[2]REAL IPC(M)'!$AM359)","v":2.0412260741534016},{"$f":"IF('[2]REAL IPC(M)'!$BI359=\"\",\"\",+'[2]REAL IPC(M)'!$BI359)","v":2.4397938369235206},{"$f":"IF('[2]REAL IMAE(M)'!BJ359=\"\",\"\",'[2]REAL IMAE(M)'!BJ359)","v":3.3015507868303873},{"$f":"IF('[2]REAL IMAE(M)'!BK359=\"\",\"\",'[2]REAL IMAE(M)'!BK359)","v":2.0906302713496361},{"$f":"IF('[2]REAL IMAE(M)'!BN359=\"\",\"\",'[2]REAL IMAE(M)'!BN359)","v":3.2585387943921518},{"$f":"IF('[2]REAL IMAE(M)'!BO359=\"\",\"\",'[2]REAL IMAE(M)'!BO359)","v":1.5274425342807874},{"$f":"IF('[2]EXT RIN(M)'!$K359=\"\",\"\",'[2]EXT RIN(M)'!$K359)","v":37607.46481905636},null,{"$f":"IF('[2]EXT RIN(M)'!$L359=\"\",\"\",'[2]EXT RIN(M)'!$L359)","v":40087.90890632636},null,{"$f":"IF('[2]MONE(M)CARD'!EG359=\"\",\"\",'[2]MONE(M)CARD'!EG359)","v":37287.437307220462},{"$f":"IF('[2]MONE(M)CARD'!EK359=\"\",\"\",'[2]MONE(M)CARD'!EK359)","v":57351.905697167211},{"$f":"IF('[2]MONE(M)CARD'!EP359=\"\",\"\",'[2]MONE(M)CARD'!EP359)","v":31803.135704458153},{"$f":"IF('[2]MONE(M)CARD'!ES359=\"\",\"\",'[2]MONE(M)CARD'!ES359)","v":1.8294860213598163},{"$f":"IF('[2]MONE(M)CARD'!EV359=\"\",\"\",'[2]MONE(M)CARD'!EV359)","v":1.8025991030479638},{"$f":"IF('[2]MONE(M)CARD'!EZ359=\"\",\"\",'[2]MONE(M)CARD'!EZ359)","v":1.646480826984642},{"$f":"IF('[2]MONE(M)CAPARD'!FC359=\"\",\"\",'[2]MONE(M)CAPARD'!FC359)","v":45423.584882250463},{"$f":"IF('[2]MONE(M)CAPARD'!FG359=\"\",\"\",'[2]MONE(M)CAPARD'!FG359)","v":90275.678527607204},{"$f":"IF('[2]MONE(M)CAPARD'!FL359=\"\",\"\",'[2]MONE(M)CAPARD'!FL359)","v":31803.135704458138},{"$f":"IF('[2]MONE(M)CAPARD'!FO359=\"\",\"\",'[2]MONE(M)CAPARD'!FO359)","v":1.4745082807745336},{"$f":"IF('[2]MONE(M)CAPARD'!FR359=\"\",\"\",'[2]MONE(M)CAPARD'!FR359)","v":1.8895671984007878},{"$f":"IF('[2]MONE(M)CAPARD'!FV359=\"\",\"\",'[2]MONE(M)CAPARD'!FV359)","v":1.7549870362436604},{"$f":"IF('[2]MONE(M)CARD'!FV359=\"\",\"\",'[2]MONE(M)CARD'!FV359)","v":1836.2709535683321},{"$f":"IF('[2]MONE(M)CARD'!GD359=\"\",\"\",'[2]MONE(M)CARD'!GD359)","v":94.854109225773314},{"$f":"IF('[2]MONE(M)CARD'!GE359=\"\",\"\",'[2]MONE(M)CARD'!GE359)","v":12060.56957604096},6.145965204159709,{"$f":"IF('[9]II.2.Balance OSD-Activos'!J217=\"\",\"\",'[9]II.2.Balance OSD-Activos'!J217)","v":208.37463662814594},{"$f":"IF('[9]II.2.Balance OSD-Activos'!N217=\"\",\"\",'[9]II.2.Balance OSD-Activos'!N217)","v":1494.371448514441},{"$f":"IF('[9]II.2.Balance OSD-Activos'!R217=\"\",\"\",'[9]II.2.Balance OSD-Activos'!R217)","v":54396.29107883526},{"$f":"IF('[9]II.2.Balance OSD-Activos'!S217=\"\",\"\",'[9]II.2.Balance OSD-Activos'!S217)","v":58951.117112158339},54604.665715463409,115050.15427613619,-27.442923123412399,3.1572738469825445,36.121260168994176,3.3241991057648912,1.2862380883324365,2.5094266943634702,0.30846775628210477,{"$f":"IF('[2]MONE(M)CAPARD'!GS359=\"\",\"\",'[2]MONE(M)CAPARD'!GS359)","v":23233.665470535623},{"$f":"IF('[2]MONE(M)CARD'!HA359=\"\",\"\",'[2]MONE(M)CAPARD'!HA359)","v":14163.41614862096},{"$f":"IF('[2]MONE(M)CAPARD'!HB359=\"\",\"\",'[2]MONE(M)CAPARD'!HB359)","v":9070.2493219146636},"n.d.",{"$f":"IF('[10]II.2.Balance OSD-Activos'!J217=\"\",\"\",'[10]II.2.Balance OSD-Activos'!J217)","v":2295.2946449081464},{"$f":"IF('[10]II.2.Balance OSD-Activos'!N217=\"\",\"\",'[10]II.2.Balance OSD-Activos'!N217)","v":1988.5989643544408},{"$f":"IF('[10]II.2.Balance OSD-Activos'!R217=\"\",\"\",'[10]II.2.Balance OSD-Activos'!R217)","v":78479.927639095258},{"$f":"IF('[10]II.2.Balance OSD-Activos'!S217=\"\",\"\",'[10]II.2.Balance OSD-Activos'!S217)","v":83861.764373048325},80775.222284003408,166625.58562140615,-11.048132448039693,2.3408685535168727,19.628912007456112,2.7933889273713541,2.7125153990118944,2.7050388571805639,0.2218951359540311,{"$f":"IF('[2]MONE(M)CAPARD'!AS359=\"\",\"\",'[2]MONE(M)CAPARD'!AS359)","v":5.25},{"$f":"IF('[2]MONE(M)CAPARD'!AT359=\"\",\"\",'[2]MONE(M)CAPARD'!AT359)","v":"n.a."},{"$f":"IF('[2]MONE(M)CAPARD'!AU359=\"\",\"\",'[2]MONE(M)CAPARD'!AU359)","v":2.75},{"$f":"IF('[2]MONE(M)CAPARD'!AV359=\"\",\"\",'[2]MONE(M)CAPARD'!AV359)","v":5.75},{"$f":"IF('[2]MONE(M)CAPARD'!AW359=\"\",\"\",'[2]MONE(M)CAPARD'!AW359)","v":"n.a."},{"$f":"IF('[2]MONE(M)CAPARD'!AX359=\"\",\"\",'[2]MONE(M)CAPARD'!AX359)","v":5.5},{"$f":"IF('[2]MONE(M)CAPARD'!AY359=\"\",\"\",'[2]MONE(M)CAPARD'!AY359)","v":"n.a."},{"$f":"IF('[2]FISCAL(M)'!$K359=\"\",\"\",'[2]FISCAL(M)'!$K359)","v":-994.34667542552006},{"$f":"IF('[2]FISCAL(M)'!$L359=\"\",\"\",'[2]FISCAL(M)'!$L359)","v":"n.d."},{"$f":"IF('[2]FISCAL(M)'!$AY359=\"\",\"\",'[2]FISCAL(M)'!$AY359)","v":138614.66625134408},{"$f":"IF('[2]FISCAL(M)'!$BI359=\"\",\"\",'[2]FISCAL(M)'!$BI359)","v":74024.725809377764},{"$f":"IF('[2]FISCAL(M)'!$BS359=\"\",\"\",'[2]FISCAL(M)'!$BS359)","v":64589.940441966319},{"$f":"IF('[2]FISCAL(M)'!$AZ359=\"\",\"\",'[2]FISCAL(M)'!$AZ359)","v":164319.13625134411},{"$f":"IF('[2]FISCAL(M)'!$BJ359=\"\",\"\",'[2]FISCAL(M)'!$BJ359)","v":79248.655809377786},{"$f":"IF('[2]FISCAL(M)'!$BT359=\"\",\"\",'[2]FISCAL(M)'!$BT359)","v":85070.480441966341},{"$f":"IF('[3]MONE(M)'!$AO359=\"\",\"\",'[3]MONE(M)'!$AO359)","v":22329382.033653934},{"$f":"IF('[4]MONE(M)'!$AO359=\"\",\"\",'[4]MONE(M)'!$AO359)","v":13397.301815500001},{"$f":"IF('[5]MONE(M)'!$AO359=\"\",\"\",'[5]MONE(M)'!$AO359)","v":204832.62430575467},{"$f":"+'[1]MONE(M)'!$AO359","v":362318.62279630057},{"$f":"IF('[6]MONE(M)'!$AO359=\"\",\"\",'[6]MONE(M)'!$AO359)","v":141435.93885392853},{"$f":"IF('[7]MONE(M)'!$AO359=\"\",\"\",'[7]MONE(M)'!$AO359)","v":1128088.1871721298},{"$f":"IF('[8]MONE(M)'!$AO359=\"\",\"\",'[8]MONE(M)'!$AO359)","v":52431.739503529985},4.218567346316604,7.0481885113485632,4.2161525947022271,14.17435284959323,-14.099994703577302,9.634218830756879,3.2442669240535515,{"$f":"'[2]FISCAL(M)'!$K359","v":-994.34667542552006},{"$f":"+'[2]REAL(A)'!$AO$39","v":295165.15530963027},-0.33687806895175132,{"$f":"IF('[2]FISCAL(M)'!$L359=\"\",\"\",'[2]FISCAL(M)'!$L359)","v":"n.d."},{"$f":"+'[2]REAL(A)'!$AP$39","v":362149.55683805706},"n.d.",155509.54860816011,{"$f":"'[2]Gráfico REM'!BG353","v":28098.801223108221},{"$f":"'[2]Gráfico REM'!BH353","v":118426.81727206192},{"$f":"'[2]Gráfico REM'!BI353","v":8983.9301129899668},1.8204559513549157,1.7286168862726825,1.4607600666072695,7.1293962856155524,232835.59696375008,{"$f":"'[2]Gráfico REM'!BK353","v":30435.033399658219},{"$f":"'[2]Gráfico REM'!BL353","v":170858.55677559192},{"$f":"'[2]Gráfico REM'!BM353","v":31542.006788499952},2.4232240782140924,2.0920641733957135,2.0014805815292469,5.106258026841326]
[2019,"marzo","2019-marzo",{"$f":"IF('[2]REAL IPC(M)'!$AL360=\"\",\"\",+'[2]REAL IPC(M)'!$AL360)","v":2.6031369447739428},{"$f":"IF('[2]REAL IPC(M)'!$BE360=\"\",\"\",+'[2]REAL IPC(M)'!$BE360)","v":2.9135680860899571},{"$f":"IF('[2]REAL IPC(M)'!$AM360=\"\",\"\",+'[2]REAL IPC(M)'!$AM360)","v":2.1978756095931473},{"$f":"IF('[2]REAL IPC(M)'!$BI360=\"\",\"\",+'[2]REAL IPC(M)'!$BI360)","v":2.4483570990631476},{"$f":"IF('[2]REAL IMAE(M)'!BJ360=\"\",\"\",'[2]REAL IMAE(M)'!BJ360)","v":3.1104261488931639},{"$f":"IF('[2]REAL IMAE(M)'!BK360=\"\",\"\",'[2]REAL IMAE(M)'!BK360)","v":1.9976648593977187},{"$f":"IF('[2]REAL IMAE(M)'!BN360=\"\",\"\",'[2]REAL IMAE(M)'!BN360)","v":2.8271967077429627},{"$f":"IF('[2]REAL IMAE(M)'!BO360=\"\",\"\",'[2]REAL IMAE(M)'!BO360)","v":1.3897967568334169},{"$f":"IF('[2]EXT RIN(M)'!$K360=\"\",\"\",'[2]EXT RIN(M)'!$K360)","v":38787.577114171581},null,{"$f":"IF('[2]EXT RIN(M)'!$L360=\"\",\"\",'[2]EXT RIN(M)'!$L360)","v":41484.629562651578},null,{"$f":"IF('[2]MONE(M)CARD'!EG360=\"\",\"\",'[2]MONE(M)CARD'!EG360)","v":37955.858144567377},{"$f":"IF('[2]MONE(M)CARD'!EK360=\"\",\"\",'[2]MONE(M)CARD'!EK360)","v":57903.775752169866},{"$f":"IF('[2]MONE(M)CARD'!EP360=\"\",\"\",'[2]MONE(M)CARD'!EP360)","v":31727.366413556141},{"$f":"IF('[2]MONE(M)CARD'!ES360=\"\",\"\",'[2]MONE(M)CARD'!ES360)","v":1.4948865804375489},{"$f":"IF('[2]MONE(M)CARD'!EV360=\"\",\"\",'[2]MONE(M)CARD'!EV360)","v":2.0733762355274798},{"$f":"IF('[2]MONE(M)CARD'!EZ360=\"\",\"\",'[2]MONE(M)CARD'!EZ360)","v":1.8494125529696204},{"$f":"IF('[2]MONE(M)CAPARD'!FC360=\"\",\"\",'[2]MONE(M)CAPARD'!FC360)","v":45817.26946737738},{"$f":"IF('[2]MONE(M)CAPARD'!FG360=\"\",\"\",'[2]MONE(M)CAPARD'!FG360)","v":91014.460774459862},{"$f":"IF('[2]MONE(M)CAPARD'!FL360=\"\",\"\",'[2]MONE(M)CAPARD'!FL360)","v":31727.366413556127},{"$f":"IF('[2]MONE(M)CAPARD'!FO360=\"\",\"\",'[2]MONE(M)CAPARD'!FO360)","v":0.67463725096055249},{"$f":"IF('[2]MONE(M)CAPARD'!FR360=\"\",\"\",'[2]MONE(M)CAPARD'!FR360)","v":1.9514022232690165},{"$f":"IF('[2]MONE(M)CAPARD'!FV360=\"\",\"\",'[2]MONE(M)CAPARD'!FV360)","v":1.8050527406357375},{"$f":"IF('[2]MONE(M)CARD'!FV360=\"\",\"\",'[2]MONE(M)CARD'!FV360)","v":1729.2718111409504},{"$f":"IF('[2]MONE(M)CARD'!GD360=\"\",\"\",'[2]MONE(M)CARD'!GD360)","v":116.21816853253794},{"$f":"IF('[2]MONE(M)CARD'!GE360=\"\",\"\",'[2]MONE(M)CARD'!GE360)","v":12167.245537096742},4.5254463757559593,{"$f":"IF('[9]II.2.Balance OSD-Activos'!J218=\"\",\"\",'[9]II.2.Balance OSD-Activos'!J218)","v":214.45938535964274},{"$f":"IF('[9]II.2.Balance OSD-Activos'!N218=\"\",\"\",'[9]II.2.Balance OSD-Activos'!N218)","v":1508.0985245526081},{"$f":"IF('[9]II.2.Balance OSD-Activos'!R218=\"\",\"\",'[9]II.2.Balance OSD-Activos'!R218)","v":55153.823325584912},{"$f":"IF('[9]II.2.Balance OSD-Activos'!S218=\"\",\"\",'[9]II.2.Balance OSD-Activos'!S218)","v":58769.283809052198},55368.282710944557,115645.66504454936,-21.676264677682656,4.0734420569650043,35.948371383176166,4.206654189700032,0.61594878482602589,2.595522441326481,8.6095746963010811E-2,{"$f":"IF('[2]MONE(M)CAPARD'!GS360=\"\",\"\",'[2]MONE(M)CAPARD'!GS360)","v":24090.825529956946},{"$f":"IF('[2]MONE(M)CARD'!HA360=\"\",\"\",'[2]MONE(M)CAPARD'!HA360)","v":14244.462834976743},{"$f":"IF('[2]MONE(M)CAPARD'!HB360=\"\",\"\",'[2]MONE(M)CAPARD'!HB360)","v":9846.3626949802037},"n.d.",{"$f":"IF('[10]II.2.Balance OSD-Activos'!J218=\"\",\"\",'[10]II.2.Balance OSD-Activos'!J218)","v":2383.4425575196433},{"$f":"IF('[10]II.2.Balance OSD-Activos'!N218=\"\",\"\",'[10]II.2.Balance OSD-Activos'!N218)","v":2001.6417071026081},{"$f":"IF('[10]II.2.Balance OSD-Activos'!R218=\"\",\"\",'[10]II.2.Balance OSD-Activos'!R218)","v":79272.505501054897},{"$f":"IF('[10]II.2.Balance OSD-Activos'!S218=\"\",\"\",'[10]II.2.Balance OSD-Activos'!S218)","v":83768.059008902201},81655.948058574533,167425.64877457934,-6.45711347862854,3.0130885874658508,20.247548692842287,3.3276076391710596,2.1948884606005192,2.7774947282584339,7.2455871077869993E-2,{"$f":"IF('[2]MONE(M)CAPARD'!AS360=\"\",\"\",'[2]MONE(M)CAPARD'!AS360)","v":5},{"$f":"IF('[2]MONE(M)CAPARD'!AT360=\"\",\"\",'[2]MONE(M)CAPARD'!AT360)","v":"n.a."},{"$f":"IF('[2]MONE(M)CAPARD'!AU360=\"\",\"\",'[2]MONE(M)CAPARD'!AU360)","v":2.75},{"$f":"IF('[2]MONE(M)CAPARD'!AV360=\"\",\"\",'[2]MONE(M)CAPARD'!AV360)","v":5.75},{"$f":"IF('[2]MONE(M)CAPARD'!AW360=\"\",\"\",'[2]MONE(M)CAPARD'!AW360)","v":"n.a."},{"$f":"IF('[2]MONE(M)CAPARD'!AX360=\"\",\"\",'[2]MONE(M)CAPARD'!AX360)","v":5.5},{"$f":"IF('[2]MONE(M)CAPARD'!AY360=\"\",\"\",'[2]MONE(M)CAPARD'!AY360)","v":"n.a."},{"$f":"IF('[2]FISCAL(M)'!$K360=\"\",\"\",'[2]FISCAL(M)'!$K360)","v":-1560.4738375683958},{"$f":"IF('[2]FISCAL(M)'!$L360=\"\",\"\",'[2]FISCAL(M)'!$L360)","v":-2870.6738375683954},{"$f":"IF('[2]FISCAL(M)'!$AY360=\"\",\"\",'[2]FISCAL(M)'!$AY360)","v":140461.42028816504},{"$f":"IF('[2]FISCAL(M)'!$BI360=\"\",\"\",'[2]FISCAL(M)'!$BI360)","v":75972.222144648957},{"$f":"IF('[2]FISCAL(M)'!$BS360=\"\",\"\",'[2]FISCAL(M)'!$BS360)","v":64489.198143516092},{"$f":"IF('[2]FISCAL(M)'!$AZ360=\"\",\"\",'[2]FISCAL(M)'!$AZ360)","v":166354.48028816504},{"$f":"IF('[2]FISCAL(M)'!$BJ360=\"\",\"\",'[2]FISCAL(M)'!$BJ360)","v":81404.912144648959},{"$f":"IF('[2]FISCAL(M)'!$BT360=\"\",\"\",'[2]FISCAL(M)'!$BT360)","v":84949.56814351611},{"$f":"IF('[3]MONE(M)'!$AO360=\"\",\"\",'[3]MONE(M)'!$AO360)","v":22245778.552107282},{"$f":"IF('[4]MONE(M)'!$AO360=\"\",\"\",'[4]MONE(M)'!$AO360)","v":13422.83540878},{"$f":"IF('[5]MONE(M)'!$AO360=\"\",\"\",'[5]MONE(M)'!$AO360)","v":206386.45032696461},{"$f":"+'[1]MONE(M)'!$AO360","v":364541.41098259343},{"$f":"IF('[6]MONE(M)'!$AO360=\"\",\"\",'[6]MONE(M)'!$AO360)","v":138522.68770312061},{"$f":"IF('[7]MONE(M)'!$AO360=\"\",\"\",'[7]MONE(M)'!$AO360)","v":1158290.71325079},{"$f":"IF('[8]MONE(M)'!$AO360=\"\",\"\",'[8]MONE(M)'!$AO360)","v":52719.492688639992},4.2706767075909147,6.9718587610636096,4.2748883929449644,13.989539648589133,-16.815600545838837,11.87279628564788,3.4579045014985654,{"$f":"'[2]FISCAL(M)'!$K360","v":-1560.4738375683958},{"$f":"+'[2]REAL(A)'!$AO$39","v":295165.15530963027},-0.52867820252409126,{"$f":"IF('[2]FISCAL(M)'!$L360=\"\",\"\",'[2]FISCAL(M)'!$L360)","v":-2870.6738375683954},{"$f":"+'[2]REAL(A)'!$AP$39","v":362149.55683805706},-0.79267633588519859,157142.85260970751,{"$f":"'[2]Gráfico REM'!BG354","v":28364.058636327802},{"$f":"'[2]Gráfico REM'!BH354","v":119726.71386811737},{"$f":"'[2]Gráfico REM'!BI354","v":9052.0801052623538},2.6647021469454524,3.6825487007011715,2.2013319131535702,5.7533924707949158,234505.21834485751,{"$f":"'[2]Gráfico REM'!BK354","v":30732.1020833978},{"$f":"'[2]Gráfico REM'!BL354","v":172446.20655675736},{"$f":"'[2]Gráfico REM'!BM354","v":31326.909704702357},3.1531824639820627,3.6875639769307522,2.5822342479998595,5.8613384160401072]
[2019,"abril","2019-abril",{"$f":"IF('[2]REAL IPC(M)'!$AL361=\"\",\"\",+'[2]REAL IPC(M)'!$AL361)","v":3.033293854454544},{"$f":"IF('[2]REAL IPC(M)'!$BE361=\"\",\"\",+'[2]REAL IPC(M)'!$BE361)","v":2.9366808778352516},{"$f":"IF('[2]REAL IPC(M)'!$AM361=\"\",\"\",+'[2]REAL IPC(M)'!$AM361)","v":2.5813767342582672},{"$f":"IF('[2]REAL IPC(M)'!$BI361=\"\",\"\",+'[2]REAL IPC(M)'!$BI361)","v":2.4601879616584332},{"$f":"IF('[2]REAL IMAE(M)'!BJ361=\"\",\"\",'[2]REAL IMAE(M)'!BJ361)","v":2.7003119272084986},{"$f":"IF('[2]REAL IMAE(M)'!BK361=\"\",\"\",'[2]REAL IMAE(M)'!BK361)","v":1.9088928502867031},{"$f":"IF('[2]REAL IMAE(M)'!BN361=\"\",\"\",'[2]REAL IMAE(M)'!BN361)","v":2.5411988704535204},{"$f":"IF('[2]REAL IMAE(M)'!BO361=\"\",\"\",'[2]REAL IMAE(M)'!BO361)","v":1.2569556527991965},{"$f":"IF('[2]EXT RIN(M)'!$K361=\"\",\"\",'[2]EXT RIN(M)'!$K361)","v":38892.683578244294},null,{"$f":"IF('[2]EXT RIN(M)'!$L361=\"\",\"\",'[2]EXT RIN(M)'!$L361)","v":41872.394911354291},null,{"$f":"IF('[2]MONE(M)CARD'!EG361=\"\",\"\",'[2]MONE(M)CARD'!EG361)","v":37767.775718663717},{"$f":"IF('[2]MONE(M)CARD'!EK361=\"\",\"\",'[2]MONE(M)CARD'!EK361)","v":58580.994855881218},{"$f":"IF('[2]MONE(M)CARD'!EP361=\"\",\"\",'[2]MONE(M)CARD'!EP361)","v":31671.883848128535},{"$f":"IF('[2]MONE(M)CARD'!ES361=\"\",\"\",'[2]MONE(M)CARD'!ES361)","v":2.3034225793616248},{"$f":"IF('[2]MONE(M)CARD'!EV361=\"\",\"\",'[2]MONE(M)CARD'!EV361)","v":2.7411737003971925},{"$f":"IF('[2]MONE(M)CARD'!EZ361=\"\",\"\",'[2]MONE(M)CARD'!EZ361)","v":1.935859202444834},{"$f":"IF('[2]MONE(M)CAPARD'!FC361=\"\",\"\",'[2]MONE(M)CAPARD'!FC361)","v":45757.515655253723},{"$f":"IF('[2]MONE(M)CAPARD'!FG361=\"\",\"\",'[2]MONE(M)CAPARD'!FG361)","v":91706.472765011218},{"$f":"IF('[2]MONE(M)CAPARD'!FL361=\"\",\"\",'[2]MONE(M)CAPARD'!FL361)","v":31671.88384812852},{"$f":"IF('[2]MONE(M)CAPARD'!FO361=\"\",\"\",'[2]MONE(M)CAPARD'!FO361)","v":0.85338935008005823},{"$f":"IF('[2]MONE(M)CAPARD'!FR361=\"\",\"\",'[2]MONE(M)CAPARD'!FR361)","v":2.4441557436685413},{"$f":"IF('[2]MONE(M)CAPARD'!FV361=\"\",\"\",'[2]MONE(M)CAPARD'!FV361)","v":1.8917888765034307},{"$f":"IF('[2]MONE(M)CARD'!FV361=\"\",\"\",'[2]MONE(M)CARD'!FV361)","v":1765.2585106341903},{"$f":"IF('[2]MONE(M)CARD'!GD361=\"\",\"\",'[2]MONE(M)CARD'!GD361)","v":277.5253024758627},{"$f":"IF('[2]MONE(M)CARD'!GE361=\"\",\"\",'[2]MONE(M)CARD'!GE361)","v":13228.010733460327},15.028329245113948,{"$f":"IF('[9]II.2.Balance OSD-Activos'!J219=\"\",\"\",'[9]II.2.Balance OSD-Activos'!J219)","v":200.8565105027379},{"$f":"IF('[9]II.2.Balance OSD-Activos'!N219=\"\",\"\",'[9]II.2.Balance OSD-Activos'!N219)","v":1484.5790999805181},{"$f":"IF('[9]II.2.Balance OSD-Activos'!R219=\"\",\"\",'[9]II.2.Balance OSD-Activos'!R219)","v":55267.547732025312},{"$f":"IF('[9]II.2.Balance OSD-Activos'!S219=\"\",\"\",'[9]II.2.Balance OSD-Activos'!S219)","v":59094.498964274302},55468.40424252805,116047.48230678287,-27.782640870863816,1.9301802523093103,27.334429614457044,2.0828210641328893,2.4945364688336635,2.4790774624908085,-0.11644497883567251,{"$f":"IF('[2]MONE(M)CAPARD'!GS361=\"\",\"\",'[2]MONE(M)CAPARD'!GS361)","v":24420.852659644199},{"$f":"IF('[2]MONE(M)CARD'!HA361=\"\",\"\",'[2]MONE(M)CAPARD'!HA361)","v":15441.726159040329},{"$f":"IF('[2]MONE(M)CAPARD'!HB361=\"\",\"\",'[2]MONE(M)CAPARD'!HB361)","v":8979.1265006038702},"n.d.",{"$f":"IF('[10]II.2.Balance OSD-Activos'!J219=\"\",\"\",'[10]II.2.Balance OSD-Activos'!J219)","v":2326.8851093527383},{"$f":"IF('[10]II.2.Balance OSD-Activos'!N219=\"\",\"\",'[10]II.2.Balance OSD-Activos'!N219)","v":1926.6878178005181},{"$f":"IF('[10]II.2.Balance OSD-Activos'!R219=\"\",\"\",'[10]II.2.Balance OSD-Activos'!R219)","v":79375.300185225293},{"$f":"IF('[10]II.2.Balance OSD-Activos'!S219=\"\",\"\",'[10]II.2.Balance OSD-Activos'!S219)","v":84196.279774744326},81702.185294578027,167825.15288712288,-7.8229691898976768,1.4919959035833985,7.5558554544138401,1.793552162255585,3.5099969270862674,2.5615133742230567,-0.21598135403537722,{"$f":"IF('[2]MONE(M)CAPARD'!AS361=\"\",\"\",'[2]MONE(M)CAPARD'!AS361)","v":5},{"$f":"IF('[2]MONE(M)CAPARD'!AT361=\"\",\"\",'[2]MONE(M)CAPARD'!AT361)","v":"n.a."},{"$f":"IF('[2]MONE(M)CAPARD'!AU361=\"\",\"\",'[2]MONE(M)CAPARD'!AU361)","v":2.75},{"$f":"IF('[2]MONE(M)CAPARD'!AV361=\"\",\"\",'[2]MONE(M)CAPARD'!AV361)","v":5.75},{"$f":"IF('[2]MONE(M)CAPARD'!AW361=\"\",\"\",'[2]MONE(M)CAPARD'!AW361)","v":"n.a."},{"$f":"IF('[2]MONE(M)CAPARD'!AX361=\"\",\"\",'[2]MONE(M)CAPARD'!AX361)","v":5.5},{"$f":"IF('[2]MONE(M)CAPARD'!AY361=\"\",\"\",'[2]MONE(M)CAPARD'!AY361)","v":"n.a."},{"$f":"IF('[2]FISCAL(M)'!$K361=\"\",\"\",'[2]FISCAL(M)'!$K361)","v":-1310.1971799575956},{"$f":"IF('[2]FISCAL(M)'!$L361=\"\",\"\",'[2]FISCAL(M)'!$L361)","v":"n.d."},{"$f":"IF('[2]FISCAL(M)'!$AY361=\"\",\"\",'[2]FISCAL(M)'!$AY361)","v":140451.61883732455},{"$f":"IF('[2]FISCAL(M)'!$BI361=\"\",\"\",'[2]FISCAL(M)'!$BI361)","v":76229.053520332876},{"$f":"IF('[2]FISCAL(M)'!$BS361=\"\",\"\",'[2]FISCAL(M)'!$BS361)","v":64222.565316991677},{"$f":"IF('[2]FISCAL(M)'!$AZ361=\"\",\"\",'[2]FISCAL(M)'!$AZ361)","v":167423.36883732455},{"$f":"IF('[2]FISCAL(M)'!$BJ361=\"\",\"\",'[2]FISCAL(M)'!$BJ361)","v":82739.743520332879},{"$f":"IF('[2]FISCAL(M)'!$BT361=\"\",\"\",'[2]FISCAL(M)'!$BT361)","v":84683.625316991674},{"$f":"IF('[3]MONE(M)'!$AO361=\"\",\"\",'[3]MONE(M)'!$AO361)","v":22254279.521246675},{"$f":"IF('[4]MONE(M)'!$AO361=\"\",\"\",'[4]MONE(M)'!$AO361)","v":13492.689582529998},{"$f":"IF('[5]MONE(M)'!$AO361=\"\",\"\",'[5]MONE(M)'!$AO361)","v":207576.96406313614},{"$f":"+'[1]MONE(M)'!$AO361","v":365891.59845745662},{"$f":"IF('[6]MONE(M)'!$AO361=\"\",\"\",'[6]MONE(M)'!$AO361)","v":135262.83279765147},{"$f":"IF('[7]MONE(M)'!$AO361=\"\",\"\",'[7]MONE(M)'!$AO361)","v":1159637.5011751801},{"$f":"IF('[8]MONE(M)'!$AO361=\"\",\"\",'[8]MONE(M)'!$AO361)","v":52760.859422689995},4.1229420693254859,6.9514070717207943,4.6301586152399654,13.348052936119048,-19.648706478528645,10.926092435861223,3.1895898407427126,{"$f":"'[2]FISCAL(M)'!$K361","v":-1310.1971799575956},{"$f":"+'[2]REAL(A)'!$AO$39","v":295165.15530963027},-0.44388612828746332,{"$f":"IF('[2]FISCAL(M)'!$L361=\"\",\"\",'[2]FISCAL(M)'!$L361)","v":"n.d."},{"$f":"+'[2]REAL(A)'!$AP$39","v":362149.55683805706},"n.d.",{"$f":"+IF(OR(CT354=\"\",+CU354=\"\",+CV354=\"\"),\"\",(CT354+CU354+CV354))","v":158226.31655017749},{"$f":"'[2]Gráfico REM'!BG355","v":28788.093449406479},{"$f":"'[2]Gráfico REM'!BH355","v":120219.98428003385},{"$f":"'[2]Gráfico REM'!BI355","v":9218.238820737166},2.6606771476126889,3.7406645608620837,2.1975889115020131,5.464322234146457,{"$f":"+IF(OR(DB354=\"\",+DC354=\"\",+DD354=\"\"),\"\",(DB354+DC354+DD354))","v":235490.4199357875},{"$f":"'[2]Gráfico REM'!BK355","v":31120.257524286477},{"$f":"'[2]Gráfico REM'!BL355","v":172980.84370272385},{"$f":"'[2]Gráfico REM'!BM355","v":31389.318708777166},2.8081919933793609,3.8190225730553085,2.4981314783373509,3.5347381429100988]
[2019,"mayo ","2019-mayo ",{"$f":"IF('[2]REAL IPC(M)'!$AL362=\"\",\"\",+'[2]REAL IPC(M)'!$AL362)","v":2.9805672268907735},{"$f":"IF('[2]REAL IPC(M)'!$BE362=\"\",\"\",+'[2]REAL IPC(M)'!$BE362)","v":2.9634053829645124},{"$f":"IF('[2]REAL IPC(M)'!$AM362=\"\",\"\",+'[2]REAL IPC(M)'!$AM362)","v":2.5429370256956352},{"$f":"IF('[2]REAL IPC(M)'!$BI362=\"\",\"\",+'[2]REAL IPC(M)'!$BI362)","v":2.4756597637928257},{"$f":"IF('[2]REAL IMAE(M)'!BJ362=\"\",\"\",'[2]REAL IMAE(M)'!BJ362)","v":2.7295599764699086},{"$f":"IF('[2]REAL IMAE(M)'!BK362=\"\",\"\",'[2]REAL IMAE(M)'!BK362)","v":1.8252437690371215},{"$f":"IF('[2]REAL IMAE(M)'!BN362=\"\",\"\",'[2]REAL IMAE(M)'!BN362)","v":2.9505548581427732},{"$f":"IF('[2]REAL IMAE(M)'!BO362=\"\",\"\",'[2]REAL IMAE(M)'!BO362)","v":1.1302528617090912},{"$f":"IF('[2]EXT RIN(M)'!$K362=\"\",\"\",'[2]EXT RIN(M)'!$K362)","v":39532.157200000001},null,{"$f":"IF('[2]EXT RIN(M)'!$L362=\"\",\"\",'[2]EXT RIN(M)'!$L362)","v":42329.966554040002},null,{"$f":"IF('[2]MONE(M)CARD'!EG362=\"\",\"\",'[2]MONE(M)CARD'!EG362)","v":37539.237701475809},{"$f":"IF('[2]MONE(M)CARD'!EK362=\"\",\"\",'[2]MONE(M)CARD'!EK362)","v":58846.898051656652},{"$f":"IF('[2]MONE(M)CARD'!EP362=\"\",\"\",'[2]MONE(M)CARD'!EP362)","v":31814.777508091778},{"$f":"IF('[2]MONE(M)CARD'!ES362=\"\",\"\",'[2]MONE(M)CARD'!ES362)","v":4.0285727282965977},{"$f":"IF('[2]MONE(M)CARD'!EV362=\"\",\"\",'[2]MONE(M)CARD'!EV362)","v":3.6705764036226718},{"$f":"IF('[2]MONE(M)CARD'!EZ362=\"\",\"\",'[2]MONE(M)CARD'!EZ362)","v":2.6287102638500759},{"$f":"IF('[2]MONE(M)CAPARD'!FC362=\"\",\"\",'[2]MONE(M)CAPARD'!FC362)","v":45448.424397755807},{"$f":"IF('[2]MONE(M)CAPARD'!FG362=\"\",\"\",'[2]MONE(M)CAPARD'!FG362)","v":92067.739305466661},{"$f":"IF('[2]MONE(M)CAPARD'!FL362=\"\",\"\",'[2]MONE(M)CAPARD'!FL362)","v":31814.777508091764},{"$f":"IF('[2]MONE(M)CAPARD'!FO362=\"\",\"\",'[2]MONE(M)CAPARD'!FO362)","v":2.9300603753760424},{"$f":"IF('[2]MONE(M)CAPARD'!FR362=\"\",\"\",'[2]MONE(M)CAPARD'!FR362)","v":3.2383753697633466},{"$f":"IF('[2]MONE(M)CAPARD'!FV362=\"\",\"\",'[2]MONE(M)CAPARD'!FV362)","v":2.5339036665413817},{"$f":"IF('[2]MONE(M)CARD'!FV362=\"\",\"\",'[2]MONE(M)CARD'!FV362)","v":1776.2769294017533},{"$f":"IF('[2]MONE(M)CARD'!GD362=\"\",\"\",'[2]MONE(M)CARD'!GD362)","v":127.77999492205164},{"$f":"IF('[2]MONE(M)CARD'!GE362=\"\",\"\",'[2]MONE(M)CARD'!GE362)","v":12032.044950342144},0.27147068337118885,{"$f":"IF('[9]II.2.Balance OSD-Activos'!J220=\"\",\"\",'[9]II.2.Balance OSD-Activos'!J220)","v":202.99913645742203},{"$f":"IF('[9]II.2.Balance OSD-Activos'!N220=\"\",\"\",'[9]II.2.Balance OSD-Activos'!N220)","v":1491.7667930278749},{"$f":"IF('[9]II.2.Balance OSD-Activos'!R220=\"\",\"\",'[9]II.2.Balance OSD-Activos'!R220)","v":55177.149837542849},{"$f":"IF('[9]II.2.Balance OSD-Activos'!S220=\"\",\"\",'[9]II.2.Balance OSD-Activos'!S220)","v":59454.161551398225},55380.148974000273,116326.07731842637,-23.621310170692489,3.5575882831118344,21.939161499970481,3.6933400332765265,1.2278207787027151,2.5495412843207665,7.0463821829958029E-2,{"$f":"IF('[2]MONE(M)CAPARD'!GS362=\"\",\"\",'[2]MONE(M)CAPARD'!GS362)","v":24847.919049623852},{"$f":"IF('[2]MONE(M)CARD'!HA362=\"\",\"\",'[2]MONE(M)CAPARD'!HA362)","v":14226.137655722145},{"$f":"IF('[2]MONE(M)CAPARD'!HB362=\"\",\"\",'[2]MONE(M)CAPARD'!HB362)","v":10621.781393901707},"n.d.",{"$f":"IF('[10]II.2.Balance OSD-Activos'!J220=\"\",\"\",'[10]II.2.Balance OSD-Activos'!J220)","v":2371.376354257422},{"$f":"IF('[10]II.2.Balance OSD-Activos'!N220=\"\",\"\",'[10]II.2.Balance OSD-Activos'!N220)","v":1929.9262655078749},{"$f":"IF('[10]II.2.Balance OSD-Activos'!R220=\"\",\"\",'[10]II.2.Balance OSD-Activos'!R220)","v":78802.76279897285},{"$f":"IF('[10]II.2.Balance OSD-Activos'!S220=\"\",\"\",'[10]II.2.Balance OSD-Activos'!S220)","v":84677.839380788209},81174.139153230266,167781.90479952635,-5.571632398501225,2.0135149394215013,5.9224587808339058,2.2607040635884479,2.5837305406665845,2.344068668757604,-0.21744470546545269,{"$f":"IF('[2]MONE(M)CAPARD'!AS362=\"\",\"\",'[2]MONE(M)CAPARD'!AS362)","v":4.75},{"$f":"IF('[2]MONE(M)CAPARD'!AT362=\"\",\"\",'[2]MONE(M)CAPARD'!AT362)","v":"n.a."},{"$f":"IF('[2]MONE(M)CAPARD'!AU362=\"\",\"\",'[2]MONE(M)CAPARD'!AU362)","v":2.75},{"$f":"IF('[2]MONE(M)CAPARD'!AV362=\"\",\"\",'[2]MONE(M)CAPARD'!AV362)","v":5.75},{"$f":"IF('[2]MONE(M)CAPARD'!AW362=\"\",\"\",'[2]MONE(M)CAPARD'!AW362)","v":"n.a."},{"$f":"IF('[2]MONE(M)CAPARD'!AX362=\"\",\"\",'[2]MONE(M)CAPARD'!AX362)","v":5.5},{"$f":"IF('[2]MONE(M)CAPARD'!AY362=\"\",\"\",'[2]MONE(M)CAPARD'!AY362)","v":"n.a."},{"$f":"IF('[2]FISCAL(M)'!$K362=\"\",\"\",'[2]FISCAL(M)'!$K362)","v":-2093.6414240708082},{"$f":"IF('[2]FISCAL(M)'!$L362=\"\",\"\",'[2]FISCAL(M)'!$L362)","v":"n.d."},{"$f":"IF('[2]FISCAL(M)'!$AY362=\"\",\"\",'[2]FISCAL(M)'!$AY362)","v":141934.36253904516},{"$f":"IF('[2]FISCAL(M)'!$BI362=\"\",\"\",'[2]FISCAL(M)'!$BI362)","v":77036.579430517391},{"$f":"IF('[2]FISCAL(M)'!$BS362=\"\",\"\",'[2]FISCAL(M)'!$BS362)","v":64897.783108527787},{"$f":"IF('[2]FISCAL(M)'!$AZ362=\"\",\"\",'[2]FISCAL(M)'!$AZ362)","v":169125.16433904518},{"$f":"IF('[2]FISCAL(M)'!$BJ362=\"\",\"\",'[2]FISCAL(M)'!$BJ362)","v":83773.7634305174},{"$f":"IF('[2]FISCAL(M)'!$BT362=\"\",\"\",'[2]FISCAL(M)'!$BT362)","v":85351.400908527794},{"$f":"IF('[3]MONE(M)'!$AO362=\"\",\"\",'[3]MONE(M)'!$AO362)","v":22187965.965359066},{"$f":"IF('[4]MONE(M)'!$AO362=\"\",\"\",'[4]MONE(M)'!$AO362)","v":13500.602585479999},{"$f":"IF('[5]MONE(M)'!$AO362=\"\",\"\",'[5]MONE(M)'!$AO362)","v":208256.80610456504},{"$f":"+'[1]MONE(M)'!$AO362","v":368859.68503635249},{"$f":"IF('[6]MONE(M)'!$AO362=\"\",\"\",'[6]MONE(M)'!$AO362)","v":131473.27400348475},{"$f":"IF('[7]MONE(M)'!$AO362=\"\",\"\",'[7]MONE(M)'!$AO362)","v":1167583.84940597},{"$f":"IF('[8]MONE(M)'!$AO362=\"\",\"\",'[8]MONE(M)'!$AO362)","v":52403.962509809993},3.5634344941058771,6.5405300567834335,4.6913092802999712,12.601944104679674,-21.287370857682063,10.507622752360945,2.1178469732963334,{"$f":"'[2]FISCAL(M)'!$K362","v":-2093.6414240708082},{"$f":"+'[2]REAL(A)'!$AO$39","v":295165.15530963027},-0.70931185013168774,{"$f":"IF('[2]FISCAL(M)'!$L362=\"\",\"\",'[2]FISCAL(M)'!$L362)","v":"n.d."},{"$f":"+'[2]REAL(A)'!$AP$39","v":362149.55683805706},"n.d.",158730.91420732724,{"$f":"'[2]Gráfico REM'!BG356","v":29026.706416055502},{"$f":"'[2]Gráfico REM'!BH356","v":120633.0948206051},{"$f":"'[2]Gráfico REM'!BI356","v":9071.1129706666361},3.1652384216118046,6.565752414071957,2.4866811410821921,1.7348559868264335,235706.06040640722,{"$f":"'[2]Gráfico REM'!BK356","v":31618.139966445502},{"$f":"'[2]Gráfico REM'!BL356","v":173037.05733041509},{"$f":"'[2]Gráfico REM'!BM356","v":31050.863109546637},3.036095600480393,7.2808420566529808,2.3746994188554416,2.596277638571598]
[2019,"junio ","2019-junio ",{"$f":"IF('[2]REAL IPC(M)'!$AL363=\"\",\"\",+'[2]REAL IPC(M)'!$AL363)","v":2.8541503011259683},{"$f":"IF('[2]REAL IPC(M)'!$BE363=\"\",\"\",+'[2]REAL IPC(M)'!$BE363)","v":2.9940590674908174},{"$f":"IF('[2]REAL IPC(M)'!$AM363=\"\",\"\",+'[2]REAL IPC(M)'!$AM363)","v":2.3632501327668587},{"$f":"IF('[2]REAL IPC(M)'!$BI363=\"\",\"\",+'[2]REAL IPC(M)'!$BI363)","v":2.4951475468536266},{"$f":"IF('[2]REAL IMAE(M)'!BJ363=\"\",\"\",'[2]REAL IMAE(M)'!BJ363)","v":2.8912524219486091},{"$f":"IF('[2]REAL IMAE(M)'!BK363=\"\",\"\",'[2]REAL IMAE(M)'!BK363)","v":1.7476886750209086},{"$f":"IF('[2]REAL IMAE(M)'!BN363=\"\",\"\",'[2]REAL IMAE(M)'!BN363)","v":2.8986193288503381},{"$f":"IF('[2]REAL IMAE(M)'!BO363=\"\",\"\",'[2]REAL IMAE(M)'!BO363)","v":1.0111075437984285},{"$f":"IF('[2]EXT RIN(M)'!$K363=\"\",\"\",'[2]EXT RIN(M)'!$K363)","v":41583.267500000002},null,{"$f":"IF('[2]EXT RIN(M)'!$L363=\"\",\"\",'[2]EXT RIN(M)'!$L363)","v":44507.043855110001},null,{"$f":"IF('[2]MONE(M)CARD'!EG363=\"\",\"\",'[2]MONE(M)CARD'!EG363)","v":38002.643195992889},{"$f":"IF('[2]MONE(M)CARD'!EK363=\"\",\"\",'[2]MONE(M)CARD'!EK363)","v":59556.880506287736},{"$f":"IF('[2]MONE(M)CARD'!EP363=\"\",\"\",'[2]MONE(M)CARD'!EP363)","v":31232.296099995554},{"$f":"IF('[2]MONE(M)CARD'!ES363=\"\",\"\",'[2]MONE(M)CARD'!ES363)","v":4.7185824845461521},{"$f":"IF('[2]MONE(M)CARD'!EV363=\"\",\"\",'[2]MONE(M)CARD'!EV363)","v":3.9480737186800674},{"$f":"IF('[2]MONE(M)CARD'!EZ363=\"\",\"\",'[2]MONE(M)CARD'!EZ363)","v":3.0865743180249039},{"$f":"IF('[2]MONE(M)CAPARD'!FC363=\"\",\"\",'[2]MONE(M)CAPARD'!FC363)","v":45867.28928169288},{"$f":"IF('[2]MONE(M)CAPARD'!FG363=\"\",\"\",'[2]MONE(M)CAPARD'!FG363)","v":92902.511469887744},{"$f":"IF('[2]MONE(M)CAPARD'!FL363=\"\",\"\",'[2]MONE(M)CAPARD'!FL363)","v":31232.296099995554},{"$f":"IF('[2]MONE(M)CAPARD'!FO363=\"\",\"\",'[2]MONE(M)CAPARD'!FO363)","v":3.2621433751106377},{"$f":"IF('[2]MONE(M)CAPARD'!FR363=\"\",\"\",'[2]MONE(M)CAPARD'!FR363)","v":3.4667180671424269},{"$f":"IF('[2]MONE(M)CAPARD'!FV363=\"\",\"\",'[2]MONE(M)CAPARD'!FV363)","v":2.9057633785432913},{"$f":"IF('[2]MONE(M)CARD'!FV363=\"\",\"\",'[2]MONE(M)CARD'!FV363)","v":1800.5352849249848},{"$f":"IF('[2]MONE(M)CARD'!GD363=\"\",\"\",'[2]MONE(M)CARD'!GD363)","v":163.3773292928914},{"$f":"IF('[2]MONE(M)CARD'!GE363=\"\",\"\",'[2]MONE(M)CARD'!GE363)","v":12774.501954952533},11.197722416606325,{"$f":"IF('[9]II.2.Balance OSD-Activos'!J221=\"\",\"\",'[9]II.2.Balance OSD-Activos'!J221)","v":212.3643618096668},{"$f":"IF('[9]II.2.Balance OSD-Activos'!N221=\"\",\"\",'[9]II.2.Balance OSD-Activos'!N221)","v":1482.9400644229681},{"$f":"IF('[9]II.2.Balance OSD-Activos'!R221=\"\",\"\",'[9]II.2.Balance OSD-Activos'!R221)","v":55230.288767680904},{"$f":"IF('[9]II.2.Balance OSD-Activos'!S221=\"\",\"\",'[9]II.2.Balance OSD-Activos'!S221)","v":60171.54062238519},55442.653129490573,117097.13381629874,-20.800660447559729,1.8641760056701484,-5.8307961662085521,1.9763868868898804,3.7049962751953824,2.6946109527690831,0.14506966844831659,{"$f":"IF('[2]MONE(M)CAPARD'!GS363=\"\",\"\",'[2]MONE(M)CAPARD'!GS363)","v":24483.159254289105},{"$f":"IF('[2]MONE(M)CARD'!HA363=\"\",\"\",'[2]MONE(M)CAPARD'!HA363)","v":14831.626103812532},{"$f":"IF('[2]MONE(M)CAPARD'!HB363=\"\",\"\",'[2]MONE(M)CAPARD'!HB363)","v":9651.5331504765727},"n.d.",{"$f":"IF('[10]II.2.Balance OSD-Activos'!J221=\"\",\"\",'[10]II.2.Balance OSD-Activos'!J221)","v":2397.1933207696666},{"$f":"IF('[10]II.2.Balance OSD-Activos'!N221=\"\",\"\",'[10]II.2.Balance OSD-Activos'!N221)","v":1875.088798552968},{"$f":"IF('[10]II.2.Balance OSD-Activos'!R221=\"\",\"\",'[10]II.2.Balance OSD-Activos'!R221)","v":78966.590076190914},{"$f":"IF('[10]II.2.Balance OSD-Activos'!S221=\"\",\"\",'[10]II.2.Balance OSD-Activos'!S221)","v":85511.841703925194},81363.783396960585,168750.71389943874,-5.6584223461088046,1.0548663273010517,-11.120047233395713,1.2736365793103888,4.3350016223214771,2.5322424082704797,0.18817373951287575,{"$f":"IF('[2]MONE(M)CAPARD'!AS363=\"\",\"\",'[2]MONE(M)CAPARD'!AS363)","v":4.5},{"$f":"IF('[2]MONE(M)CAPARD'!AT363=\"\",\"\",'[2]MONE(M)CAPARD'!AT363)","v":"n.a."},{"$f":"IF('[2]MONE(M)CAPARD'!AU363=\"\",\"\",'[2]MONE(M)CAPARD'!AU363)","v":2.75},{"$f":"IF('[2]MONE(M)CAPARD'!AV363=\"\",\"\",'[2]MONE(M)CAPARD'!AV363)","v":5.75},{"$f":"IF('[2]MONE(M)CAPARD'!AW363=\"\",\"\",'[2]MONE(M)CAPARD'!AW363)","v":"n.a."},{"$f":"IF('[2]MONE(M)CAPARD'!AX363=\"\",\"\",'[2]MONE(M)CAPARD'!AX363)","v":5.5},{"$f":"IF('[2]MONE(M)CAPARD'!AY363=\"\",\"\",'[2]MONE(M)CAPARD'!AY363)","v":"n.a."},{"$f":"IF('[2]FISCAL(M)'!$K363=\"\",\"\",'[2]FISCAL(M)'!$K363)","v":-2778.2854002512131},{"$f":"IF('[2]FISCAL(M)'!$L363=\"\",\"\",'[2]FISCAL(M)'!$L363)","v":-5360.4854002512129},{"$f":"IF('[2]FISCAL(M)'!$AY363=\"\",\"\",'[2]FISCAL(M)'!$AY363)","v":145941.32482932569},{"$f":"IF('[2]FISCAL(M)'!$BI363=\"\",\"\",'[2]FISCAL(M)'!$BI363)","v":78719.11657864161},{"$f":"IF('[2]FISCAL(M)'!$BS363=\"\",\"\",'[2]FISCAL(M)'!$BS363)","v":67222.208250684082},{"$f":"IF('[2]FISCAL(M)'!$AZ363=\"\",\"\",'[2]FISCAL(M)'!$AZ363)","v":172553.75482932568},{"$f":"IF('[2]FISCAL(M)'!$BJ363=\"\",\"\",'[2]FISCAL(M)'!$BJ363)","v":84725.286578641608},{"$f":"IF('[2]FISCAL(M)'!$BT363=\"\",\"\",'[2]FISCAL(M)'!$BT363)","v":87828.468250684076},{"$f":"IF('[3]MONE(M)'!$AO363=\"\",\"\",'[3]MONE(M)'!$AO363)","v":22127179.766031887},{"$f":"IF('[4]MONE(M)'!$AO363=\"\",\"\",'[4]MONE(M)'!$AO363)","v":13570.643642850002},{"$f":"IF('[5]MONE(M)'!$AO363=\"\",\"\",'[5]MONE(M)'!$AO363)","v":209043.58933239366},{"$f":"+'[1]MONE(M)'!$AO363","v":370395.27335572999},{"$f":"IF('[6]MONE(M)'!$AO363=\"\",\"\",'[6]MONE(M)'!$AO363)","v":130421.74285146568},{"$f":"IF('[7]MONE(M)'!$AO363=\"\",\"\",'[7]MONE(M)'!$AO363)","v":1184908.3448854799},{"$f":"IF('[8]MONE(M)'!$AO363=\"\",\"\",'[8]MONE(M)'!$AO363)","v":52638.698963910007},3.011213400324686,6.5347455390516007,4.8964310664277644,12.343982788432562,-20.463949156029415,11.566818064480167,2.3063344060075819,{"$f":"'[2]FISCAL(M)'!$K363","v":-2778.2854002512131},{"$f":"+'[2]REAL(A)'!$AO$39","v":295165.15530963027},-0.94126469546744851,{"$f":"IF('[2]FISCAL(M)'!$L363=\"\",\"\",'[2]FISCAL(M)'!$L363)","v":-5360.4854002512129},{"$f":"+'[2]REAL(A)'!$AP$39","v":362149.55683805706},-1.4801855473892707,159797.98415509899,{"$f":"'[2]Gráfico REM'!BG357","v":29238.62830803054},{"$f":"'[2]Gráfico REM'!BH357","v":121479.37322205433},{"$f":"'[2]Gráfico REM'!BI357","v":9079.9826250141123},3.1440140747967193,5.8002056394457435,3.0125113456913821,-3.0386724657300523,236292.14485888899,{"$f":"'[2]Gráfico REM'!BK357","v":31477.90857794054},{"$f":"'[2]Gráfico REM'!BL357","v":174118.07218596432},{"$f":"'[2]Gráfico REM'!BM357","v":30696.164094984117},2.7585233129289621,6.1914581839523919,2.7979966967456305,-0.74797076197586909]
[2019,"julio","2019-julio",{"$f":"IF('[2]REAL IPC(M)'!$AL364=\"\",\"\",+'[2]REAL IPC(M)'!$AL364)","v":2.9336818033322221},{"$f":"IF('[2]REAL IPC(M)'!$BE364=\"\",\"\",+'[2]REAL IPC(M)'!$BE364)","v":3.0289572845936918},{"$f":"IF('[2]REAL IPC(M)'!$AM364=\"\",\"\",+'[2]REAL IPC(M)'!$AM364)","v":2.4718356527501539},{"$f":"IF('[2]REAL IPC(M)'!$BI364=\"\",\"\",+'[2]REAL IPC(M)'!$BI364)","v":2.5190278686836542},{"$f":"IF('[2]REAL IMAE(M)'!BJ364=\"\",\"\",'[2]REAL IMAE(M)'!BJ364)","v":2.9522445988918733},{"$f":"IF('[2]REAL IMAE(M)'!BK364=\"\",\"\",'[2]REAL IMAE(M)'!BK364)","v":1.6772461419057194},{"$f":"IF('[2]REAL IMAE(M)'!BN364=\"\",\"\",'[2]REAL IMAE(M)'!BN364)","v":2.9585510686927385},{"$f":"IF('[2]REAL IMAE(M)'!BO364=\"\",\"\",'[2]REAL IMAE(M)'!BO364)","v":0.90106428782752435},{"$f":"IF('[2]EXT RIN(M)'!$K364=\"\",\"\",'[2]EXT RIN(M)'!$K364)","v":41214.443083205813},null,{"$f":"IF('[2]EXT RIN(M)'!$L364=\"\",\"\",'[2]EXT RIN(M)'!$L364)","v":45114.342480805812},null,{"$f":"IF('[2]MONE(M)CARD'!EG364=\"\",\"\",'[2]MONE(M)CARD'!EG364)","v":38745.635972450997},{"$f":"IF('[2]MONE(M)CARD'!EK364=\"\",\"\",'[2]MONE(M)CARD'!EK364)","v":59920.333234257647},{"$f":"IF('[2]MONE(M)CARD'!EP364=\"\",\"\",'[2]MONE(M)CARD'!EP364)","v":31493.457514891648},{"$f":"IF('[2]MONE(M)CARD'!ES364=\"\",\"\",'[2]MONE(M)CARD'!ES364)","v":6.8384008557192288},{"$f":"IF('[2]MONE(M)CARD'!EV364=\"\",\"\",'[2]MONE(M)CARD'!EV364)","v":5.3218571251394398},{"$f":"IF('[2]MONE(M)CARD'!EZ364=\"\",\"\",'[2]MONE(M)CARD'!EZ364)","v":4.3647557180940488},{"$f":"IF('[2]MONE(M)CAPARD'!FC364=\"\",\"\",'[2]MONE(M)CAPARD'!FC364)","v":46547.179849120992},{"$f":"IF('[2]MONE(M)CAPARD'!FG364=\"\",\"\",'[2]MONE(M)CAPARD'!FG364)","v":93277.992213877646},{"$f":"IF('[2]MONE(M)CAPARD'!FL364=\"\",\"\",'[2]MONE(M)CAPARD'!FL364)","v":31493.457514891663},{"$f":"IF('[2]MONE(M)CAPARD'!FO364=\"\",\"\",'[2]MONE(M)CAPARD'!FO364)","v":5.1957811590450875},{"$f":"IF('[2]MONE(M)CAPARD'!FR364=\"\",\"\",'[2]MONE(M)CAPARD'!FR364)","v":4.4972999462373542},{"$f":"IF('[2]MONE(M)CAPARD'!FV364=\"\",\"\",'[2]MONE(M)CAPARD'!FV364)","v":3.9284235147513114},{"$f":"IF('[2]MONE(M)CARD'!FV364=\"\",\"\",'[2]MONE(M)CARD'!FV364)","v":2144.7356432321249},{"$f":"IF('[2]MONE(M)CARD'!GD364=\"\",\"\",'[2]MONE(M)CARD'!GD364)","v":115.13013762660411},{"$f":"IF('[2]MONE(M)CARD'!GE364=\"\",\"\",'[2]MONE(M)CARD'!GE364)","v":13273.972541953441},16.658635073973137,{"$f":"IF('[9]II.2.Balance OSD-Activos'!J222=\"\",\"\",'[9]II.2.Balance OSD-Activos'!J222)","v":222.46508322832662},{"$f":"IF('[9]II.2.Balance OSD-Activos'!N222=\"\",\"\",'[9]II.2.Balance OSD-Activos'!N222)","v":1314.5064229402733},{"$f":"IF('[9]II.2.Balance OSD-Activos'!R222=\"\",\"\",'[9]II.2.Balance OSD-Activos'!R222)","v":54339.953091092248},{"$f":"IF('[9]II.2.Balance OSD-Activos'!S222=\"\",\"\",'[9]II.2.Balance OSD-Activos'!S222)","v":61367.457379127904},54562.418174320577,117244.38197638874,-18.033505483233192,9.4369881401390465E-2,-15.528925286782247,0.18508009543931614,5.1971702399286945,2.4838467482223292,-0.21076420454675393,{"$f":"IF('[2]MONE(M)CAPARD'!GS364=\"\",\"\",'[2]MONE(M)CAPARD'!GS364)","v":24935.813509234995},{"$f":"IF('[2]MONE(M)CARD'!HA364=\"\",\"\",'[2]MONE(M)CAPARD'!HA364)","v":15752.032506313442},{"$f":"IF('[2]MONE(M)CAPARD'!HB364=\"\",\"\",'[2]MONE(M)CAPARD'!HB364)","v":9183.7810029215525},"n.d.",{"$f":"IF('[10]II.2.Balance OSD-Activos'!J222=\"\",\"\",'[10]II.2.Balance OSD-Activos'!J222)","v":2389.4505602383269},{"$f":"IF('[10]II.2.Balance OSD-Activos'!N222=\"\",\"\",'[10]II.2.Balance OSD-Activos'!N222)","v":1688.1177838502736},{"$f":"IF('[10]II.2.Balance OSD-Activos'!R222=\"\",\"\",'[10]II.2.Balance OSD-Activos'!R222)","v":77974.514195752243},{"$f":"IF('[10]II.2.Balance OSD-Activos'!S222=\"\",\"\",'[10]II.2.Balance OSD-Activos'!S222)","v":86820.788787687896},80363.964755990572,168872.87132752873,-4.6207612523016532,-0.43741892779024516,-18.38065277773665,-0.30342189662484476,5.4030767854277517,2.2507827100398226,-0.2814596982306572,{"$f":"IF('[2]MONE(M)CAPARD'!AS364=\"\",\"\",'[2]MONE(M)CAPARD'!AS364)","v":4},{"$f":"IF('[2]MONE(M)CAPARD'!AT364=\"\",\"\",'[2]MONE(M)CAPARD'!AT364)","v":"n.a."},{"$f":"IF('[2]MONE(M)CAPARD'!AU364=\"\",\"\",'[2]MONE(M)CAPARD'!AU364)","v":2.75},{"$f":"IF('[2]MONE(M)CAPARD'!AV364=\"\",\"\",'[2]MONE(M)CAPARD'!AV364)","v":5.75},{"$f":"IF('[2]MONE(M)CAPARD'!AW364=\"\",\"\",'[2]MONE(M)CAPARD'!AW364)","v":"n.a."},{"$f":"IF('[2]MONE(M)CAPARD'!AX364=\"\",\"\",'[2]MONE(M)CAPARD'!AX364)","v":5},{"$f":"IF('[2]MONE(M)CAPARD'!AY364=\"\",\"\",'[2]MONE(M)CAPARD'!AY364)","v":"n.a."},{"$f":"IF('[2]FISCAL(M)'!$K364=\"\",\"\",'[2]FISCAL(M)'!$K364)","v":-3689.3400905158974},{"$f":"IF('[2]FISCAL(M)'!$L364=\"\",\"\",'[2]FISCAL(M)'!$L364)","v":"n.d."},{"$f":"IF('[2]FISCAL(M)'!$AY364=\"\",\"\",'[2]FISCAL(M)'!$AY364)","v":146328.69289757119},{"$f":"IF('[2]FISCAL(M)'!$BI364=\"\",\"\",'[2]FISCAL(M)'!$BI364)","v":79056.482148199168},{"$f":"IF('[2]FISCAL(M)'!$BS364=\"\",\"\",'[2]FISCAL(M)'!$BS364)","v":67272.210749372054},{"$f":"IF('[2]FISCAL(M)'!$AZ364=\"\",\"\",'[2]FISCAL(M)'!$AZ364)","v":174913.81289757125},{"$f":"IF('[2]FISCAL(M)'!$BJ364=\"\",\"\",'[2]FISCAL(M)'!$BJ364)","v":85086.752148199157},{"$f":"IF('[2]FISCAL(M)'!$BT364=\"\",\"\",'[2]FISCAL(M)'!$BT364)","v":89827.060749372045},{"$f":"IF('[3]MONE(M)'!$AO364=\"\",\"\",'[3]MONE(M)'!$AO364)","v":21853660.006397165},{"$f":"IF('[4]MONE(M)'!$AO364=\"\",\"\",'[4]MONE(M)'!$AO364)","v":13623.162004269998},{"$f":"IF('[5]MONE(M)'!$AO364=\"\",\"\",'[5]MONE(M)'!$AO364)","v":208900.21952130328},{"$f":"+'[1]MONE(M)'!$AO364","v":371930.03894138348},{"$f":"IF('[6]MONE(M)'!$AO364=\"\",\"\",'[6]MONE(M)'!$AO364)","v":126893.60545700815},{"$f":"IF('[7]MONE(M)'!$AO364=\"\",\"\",'[7]MONE(M)'!$AO364)","v":1193446.5880739898},{"$f":"IF('[8]MONE(M)'!$AO364=\"\",\"\",'[8]MONE(M)'!$AO364)","v":52668.000938389996},1.4301269089084245,6.0544514801203375,4.996561155758239,11.714188181475516,-21.173511787386467,11.429621385980848,1.9793777796590195,{"$f":"'[2]FISCAL(M)'!$K364","v":-3689.3400905158974},{"$f":"+'[2]REAL(A)'!$AO$39","v":295165.15530963027},-1.2499239914161802,{"$f":"IF('[2]FISCAL(M)'!$L364=\"\",\"\",'[2]FISCAL(M)'!$L364)","v":"n.d."},{"$f":"+'[2]REAL(A)'!$AP$39","v":362149.55683805706},"n.d.",160665.86581998266,{"$f":"'[2]Gráfico REM'!BG358","v":29940.065855561756},{"$f":"'[2]Gráfico REM'!BH358","v":121780.07038632376},{"$f":"'[2]Gráfico REM'!BI358","v":8945.7295780971617},3.3246003880226249,7.7869332078494446,3.0044473700623131,-5.7469308292671828,237104.80440059269,{"$f":"'[2]Gráfico REM'!BK358","v":32215.054316571757},{"$f":"'[2]Gráfico REM'!BL358","v":174448.07132471376},{"$f":"'[2]Gráfico REM'!BM358","v":30441.67875930716},2.7998258336954018,8.065405174451401,2.6928012995115491,-1.6826662004539528]
[2019,"agosto","2019-agosto",{"$f":"IF('[2]REAL IPC(M)'!$AL365=\"\",\"\",+'[2]REAL IPC(M)'!$AL365)","v":2.5707947279133503},{"$f":"IF('[2]REAL IPC(M)'!$BE365=\"\",\"\",+'[2]REAL IPC(M)'!$BE365)","v":3.0684065839859054},{"$f":"IF('[2]REAL IPC(M)'!$AM365=\"\",\"\",+'[2]REAL IPC(M)'!$AM365)","v":2.1045665122435553},{"$f":"IF('[2]REAL IPC(M)'!$BI365=\"\",\"\",+'[2]REAL IPC(M)'!$BI365)","v":2.547669636531813},{"$f":"IF('[2]REAL IMAE(M)'!BJ365=\"\",\"\",'[2]REAL IMAE(M)'!BJ365)","v":3.0983784316502838},{"$f":"IF('[2]REAL IMAE(M)'!BK365=\"\",\"\",'[2]REAL IMAE(M)'!BK365)","v":1.6150043658447633},{"$f":"IF('[2]REAL IMAE(M)'!BN365=\"\",\"\",'[2]REAL IMAE(M)'!BN365)","v":3.1602112404274463},{"$f":"IF('[2]REAL IMAE(M)'!BO365=\"\",\"\",'[2]REAL IMAE(M)'!BO365)","v":0.80179937587199213},{"$f":"IF('[2]EXT RIN(M)'!$K365=\"\",\"\",'[2]EXT RIN(M)'!$K365)","v":41942.503514983837},null,{"$f":"IF('[2]EXT RIN(M)'!$L365=\"\",\"\",'[2]EXT RIN(M)'!$L365)","v":45874.61088735384},null,{"$f":"IF('[2]MONE(M)CARD'!EG365=\"\",\"\",'[2]MONE(M)CARD'!EG365)","v":38721.708412349501},{"$f":"IF('[2]MONE(M)CARD'!EK365=\"\",\"\",'[2]MONE(M)CARD'!EK365)","v":60244.093271644146},{"$f":"IF('[2]MONE(M)CARD'!EP365=\"\",\"\",'[2]MONE(M)CARD'!EP365)","v":31813.60653245743},{"$f":"IF('[2]MONE(M)CARD'!ES365=\"\",\"\",'[2]MONE(M)CARD'!ES365)","v":8.1643733874336988},{"$f":"IF('[2]MONE(M)CARD'!EV365=\"\",\"\",'[2]MONE(M)CARD'!EV365)","v":6.2735756756220562},{"$f":"IF('[2]MONE(M)CARD'!EZ365=\"\",\"\",'[2]MONE(M)CARD'!EZ365)","v":5.3011877378564831},{"$f":"IF('[2]MONE(M)CAPARD'!FC365=\"\",\"\",'[2]MONE(M)CAPARD'!FC365)","v":46592.422594729491},{"$f":"IF('[2]MONE(M)CAPARD'!FG365=\"\",\"\",'[2]MONE(M)CAPARD'!FG365)","v":93837.63918385416},{"$f":"IF('[2]MONE(M)CAPARD'!FL365=\"\",\"\",'[2]MONE(M)CAPARD'!FL365)","v":31813.606532457459},{"$f":"IF('[2]MONE(M)CAPARD'!FO365=\"\",\"\",'[2]MONE(M)CAPARD'!FO365)","v":6.4858064871470944},{"$f":"IF('[2]MONE(M)CAPARD'!FR365=\"\",\"\",'[2]MONE(M)CAPARD'!FR365)","v":5.1921204608519345},{"$f":"IF('[2]MONE(M)CAPARD'!FV365=\"\",\"\",'[2]MONE(M)CAPARD'!FV365)","v":4.6624793587261903},{"$f":"IF('[2]MONE(M)CARD'!FV365=\"\",\"\",'[2]MONE(M)CARD'!FV365)","v":2104.5368644164691},{"$f":"IF('[2]MONE(M)CARD'!GD365=\"\",\"\",'[2]MONE(M)CARD'!GD365)","v":131.64088408893693},{"$f":"IF('[2]MONE(M)CARD'!GE365=\"\",\"\",'[2]MONE(M)CARD'!GE365)","v":13142.375128001046},11.839674355996888,{"$f":"IF('[9]II.2.Balance OSD-Activos'!J223=\"\",\"\",'[9]II.2.Balance OSD-Activos'!J223)","v":223.05695361747439},{"$f":"IF('[9]II.2.Balance OSD-Activos'!N223=\"\",\"\",'[9]II.2.Balance OSD-Activos'!N223)","v":1184.7339825871393},{"$f":"IF('[9]II.2.Balance OSD-Activos'!R223=\"\",\"\",'[9]II.2.Balance OSD-Activos'!R223)","v":54372.979425617865},{"$f":"IF('[9]II.2.Balance OSD-Activos'!S223=\"\",\"\",'[9]II.2.Balance OSD-Activos'!S223)","v":61603.435772768185},54596.036379235338,117384.20613459067,-19.706500755084289,0.27999252556201171,-23.769789155077593,0.38249795056051195,5.2089458598909566,2.4731611791518837,-1.0685569070445489E-2,{"$f":"IF('[2]MONE(M)CAPARD'!GS365=\"\",\"\",'[2]MONE(M)CAPARD'!GS365)","v":24918.322534767856},{"$f":"IF('[2]MONE(M)CARD'!HA365=\"\",\"\",'[2]MONE(M)CAPARD'!HA365)","v":15595.216235151047},{"$f":"IF('[2]MONE(M)CAPARD'!HB365=\"\",\"\",'[2]MONE(M)CAPARD'!HB365)","v":9323.1062996168093},"n.d.",{"$f":"IF('[10]II.2.Balance OSD-Activos'!J223=\"\",\"\",'[10]II.2.Balance OSD-Activos'!J223)","v":2420.5808482774742},{"$f":"IF('[10]II.2.Balance OSD-Activos'!N223=\"\",\"\",'[10]II.2.Balance OSD-Activos'!N223)","v":1666.2619299571393},{"$f":"IF('[10]II.2.Balance OSD-Activos'!R223=\"\",\"\",'[10]II.2.Balance OSD-Activos'!R223)","v":78169.174897577876},{"$f":"IF('[10]II.2.Balance OSD-Activos'!S223=\"\",\"\",'[10]II.2.Balance OSD-Activos'!S223)","v":87214.163213698179},80589.755745855349,169470.18088951067,-4.0556709853737942,-0.30356906442702281,-19.151713329687581,-0.18269162919705151,5.4334024955647875,2.3273085010917294,7.6525791051906822E-2,{"$f":"IF('[2]MONE(M)CAPARD'!AS365=\"\",\"\",'[2]MONE(M)CAPARD'!AS365)","v":4},{"$f":"IF('[2]MONE(M)CAPARD'!AT365=\"\",\"\",'[2]MONE(M)CAPARD'!AT365)","v":"n.a."},{"$f":"IF('[2]MONE(M)CAPARD'!AU365=\"\",\"\",'[2]MONE(M)CAPARD'!AU365)","v":2.75},{"$f":"IF('[2]MONE(M)CAPARD'!AV365=\"\",\"\",'[2]MONE(M)CAPARD'!AV365)","v":5.75},{"$f":"IF('[2]MONE(M)CAPARD'!AW365=\"\",\"\",'[2]MONE(M)CAPARD'!AW365)","v":"n.a."},{"$f":"IF('[2]MONE(M)CAPARD'!AX365=\"\",\"\",'[2]MONE(M)CAPARD'!AX365)","v":4.75},{"$f":"IF('[2]MONE(M)CAPARD'!AY365=\"\",\"\",'[2]MONE(M)CAPARD'!AY365)","v":"n.a."},{"$f":"IF('[2]FISCAL(M)'!$K365=\"\",\"\",'[2]FISCAL(M)'!$K365)","v":-4520.453407458348},{"$f":"IF('[2]FISCAL(M)'!$L365=\"\",\"\",'[2]FISCAL(M)'!$L365)","v":"n.d."},{"$f":"IF('[2]FISCAL(M)'!$AY365=\"\",\"\",'[2]FISCAL(M)'!$AY365)","v":147649.08329008892},{"$f":"IF('[2]FISCAL(M)'!$BI365=\"\",\"\",'[2]FISCAL(M)'!$BI365)","v":79595.542962881547},{"$f":"IF('[2]FISCAL(M)'!$BS365=\"\",\"\",'[2]FISCAL(M)'!$BS365)","v":68053.54032720736},{"$f":"IF('[2]FISCAL(M)'!$AZ365=\"\",\"\",'[2]FISCAL(M)'!$AZ365)","v":176205.58329008892},{"$f":"IF('[2]FISCAL(M)'!$BJ365=\"\",\"\",'[2]FISCAL(M)'!$BJ365)","v":85615.812962881551},{"$f":"IF('[2]FISCAL(M)'!$BT365=\"\",\"\",'[2]FISCAL(M)'!$BT365)","v":90589.77032720737},{"$f":"IF('[3]MONE(M)'!$AO365=\"\",\"\",'[3]MONE(M)'!$AO365)","v":21873000.107930131},{"$f":"IF('[4]MONE(M)'!$AO365=\"\",\"\",'[4]MONE(M)'!$AO365)","v":13675.564226780001},{"$f":"IF('[5]MONE(M)'!$AO365=\"\",\"\",'[5]MONE(M)'!$AO365)","v":209601.34232143371},{"$f":"+'[1]MONE(M)'!$AO365","v":374142.17416014482},{"$f":"IF('[6]MONE(M)'!$AO365=\"\",\"\",'[6]MONE(M)'!$AO365)","v":125941.03436514412},{"$f":"IF('[7]MONE(M)'!$AO365=\"\",\"\",'[7]MONE(M)'!$AO365)","v":1203791.1929849698},{"$f":"IF('[8]MONE(M)'!$AO365=\"\",\"\",'[8]MONE(M)'!$AO365)","v":53008.527013740008},0.78631220841480776,5.6012676744183754,4.9134014922360469,10.491303227709858,-20.784645675963354,11.234941765223304,1.9732684549969015,{"$f":"'[2]FISCAL(M)'!$K365","v":-4520.453407458348},{"$f":"+'[2]REAL(A)'!$AO$39","v":295165.15530963027},-1.5314996794646583,{"$f":"IF('[2]FISCAL(M)'!$L365=\"\",\"\",'[2]FISCAL(M)'!$L365)","v":"n.d."},{"$f":"+'[2]REAL(A)'!$AP$39","v":362149.55683805706},"n.d.",161190.44986866068,{"$f":"'[2]Gráfico REM'!BG359","v":30086.912577310366},{"$f":"'[2]Gráfico REM'!BH359","v":122011.90812582793},{"$f":"'[2]Gráfico REM'!BI359","v":9091.6291655223758},4.1524887933374943,9.340662255976028,3.1057264252904337,2.0324267332077595,237891.97619997067,{"$f":"'[2]Gráfico REM'!BK359","v":32362.228820960365},{"$f":"'[2]Gráfico REM'!BL359","v":175020.43513956794},{"$f":"'[2]Gráfico REM'!BM359","v":30509.31223944237},3.2857866891726761,9.4193496134632682,2.7600918232645766,0.26647776704169512]
[2019,"septiembre","2019-septiembre",{"$f":"IF('[2]REAL IPC(M)'!$AL366=\"\",\"\",+'[2]REAL IPC(M)'!$AL366)","v":2.2261277094317578},{"$f":"IF('[2]REAL IPC(M)'!$BE366=\"\",\"\",+'[2]REAL IPC(M)'!$BE366)","v":3.1126999502402164},{"$f":"IF('[2]REAL IPC(M)'!$AM366=\"\",\"\",+'[2]REAL IPC(M)'!$AM366)","v":1.8165004293546394},{"$f":"IF('[2]REAL IPC(M)'!$BI366=\"\",\"\",+'[2]REAL IPC(M)'!$BI366)","v":2.5814294238063473},{"$f":"IF('[2]REAL IMAE(M)'!BJ366=\"\",\"\",'[2]REAL IMAE(M)'!BJ366)","v":3.3723714131406402},{"$f":"IF('[2]REAL IMAE(M)'!BK366=\"\",\"\",'[2]REAL IMAE(M)'!BK366)","v":1.5621257670560551},{"$f":"IF('[2]REAL IMAE(M)'!BN366=\"\",\"\",'[2]REAL IMAE(M)'!BN366)","v":3.1481722281480273},{"$f":"IF('[2]REAL IMAE(M)'!BO366=\"\",\"\",'[2]REAL IMAE(M)'!BO366)","v":0.71513380431817986},{"$f":"IF('[2]EXT RIN(M)'!$K366=\"\",\"\",'[2]EXT RIN(M)'!$K366)","v":41139.629934993405},null,{"$f":"IF('[2]EXT RIN(M)'!$L366=\"\",\"\",'[2]EXT RIN(M)'!$L366)","v":44427.411022193402},null,{"$f":"IF('[2]MONE(M)CARD'!EG366=\"\",\"\",'[2]MONE(M)CARD'!EG366)","v":38740.937943696808},{"$f":"IF('[2]MONE(M)CARD'!EK366=\"\",\"\",'[2]MONE(M)CARD'!EK366)","v":59924.027634208724},{"$f":"IF('[2]MONE(M)CARD'!EP366=\"\",\"\",'[2]MONE(M)CARD'!EP366)","v":31765.458224977585},{"$f":"IF('[2]MONE(M)CARD'!ES366=\"\",\"\",'[2]MONE(M)CARD'!ES366)","v":9.6039675446091053},{"$f":"IF('[2]MONE(M)CARD'!EV366=\"\",\"\",'[2]MONE(M)CARD'!EV366)","v":6.8367913690845938},{"$f":"IF('[2]MONE(M)CARD'!EZ366=\"\",\"\",'[2]MONE(M)CARD'!EZ366)","v":5.6997355162786478},{"$f":"IF('[2]MONE(M)CAPARD'!FC366=\"\",\"\",'[2]MONE(M)CAPARD'!FC366)","v":46356.629604126807},{"$f":"IF('[2]MONE(M)CAPARD'!FG366=\"\",\"\",'[2]MONE(M)CAPARD'!FG366)","v":93504.050106668714},{"$f":"IF('[2]MONE(M)CAPARD'!FL366=\"\",\"\",'[2]MONE(M)CAPARD'!FL366)","v":31765.45822497757},{"$f":"IF('[2]MONE(M)CAPARD'!FO366=\"\",\"\",'[2]MONE(M)CAPARD'!FO366)","v":7.3345542221197935},{"$f":"IF('[2]MONE(M)CAPARD'!FR366=\"\",\"\",'[2]MONE(M)CAPARD'!FR366)","v":5.4942177247189861},{"$f":"IF('[2]MONE(M)CAPARD'!FV366=\"\",\"\",'[2]MONE(M)CAPARD'!FV366)","v":4.8914412892767212},{"$f":"IF('[2]MONE(M)CARD'!FV366=\"\",\"\",'[2]MONE(M)CARD'!FV366)","v":2217.1139344631406},{"$f":"IF('[2]MONE(M)CARD'!GD366=\"\",\"\",'[2]MONE(M)CARD'!GD366)","v":205.07877498718025},{"$f":"IF('[2]MONE(M)CARD'!GE366=\"\",\"\",'[2]MONE(M)CARD'!GE366)","v":13679.536859895672},19.394018354537845,{"$f":"IF('[9]II.2.Balance OSD-Activos'!J224=\"\",\"\",'[9]II.2.Balance OSD-Activos'!J224)","v":222.65852824090109},{"$f":"IF('[9]II.2.Balance OSD-Activos'!N224=\"\",\"\",'[9]II.2.Balance OSD-Activos'!N224)","v":1164.8368549890124},{"$f":"IF('[9]II.2.Balance OSD-Activos'!R224=\"\",\"\",'[9]II.2.Balance OSD-Activos'!R224)","v":54466.525509923566},{"$f":"IF('[9]II.2.Balance OSD-Activos'!S224=\"\",\"\",'[9]II.2.Balance OSD-Activos'!S224)","v":61030.831648474676},54689.184038164465,116884.85254162815,-5.7537020911334054,{"$f":"IF(OR(AJ359=\"\",AJ347=\"\"),\"\",((AJ359/AJ347)-1)*100)","v":0.30444906169666552},{"$f":"IF(OR(AG359=\"\",AG347=\"\"),\"\",((AG359/AG347)-1)*100)","v":-23.840903540821966},{"$f":"IF(OR(AH359=\"\",AH347=\"\"),\"\",((AH359/AH347)-1)*100)","v":0.33081357759621177},{"$f":"IF(OR(AI359=\"\",AI347=\"\"),\"\",((AI359/AI347)-1)*100)","v":4.4258066347728775},{"$f":"IF(OR(AK359=\"\",AK347=\"\"),\"\",((AK359/AK347)-1)*100)","v":2.0856302285575889},{"$f":"IF(OR(AQ359=\"\",AQ358=\"\"),\"\",AQ359-AQ358)","v":-0.38753095059429477},{"$f":"IF('[2]MONE(M)CAPARD'!GS366=\"\",\"\",'[2]MONE(M)CAPARD'!GS366)","v":24927.270661974675},{"$f":"IF('[2]MONE(M)CARD'!HA366=\"\",\"\",'[2]MONE(M)CAPARD'!HA366)","v":16135.488559025673},{"$f":"IF('[2]MONE(M)CAPARD'!HB366=\"\",\"\",'[2]MONE(M)CAPARD'!HB366)","v":8791.7821029490024},"n.d.",{"$f":"IF('[10]II.2.Balance OSD-Activos'!J224=\"\",\"\",'[10]II.2.Balance OSD-Activos'!J224)","v":2457.6280258109018},{"$f":"IF('[10]II.2.Balance OSD-Activos'!N224=\"\",\"\",'[10]II.2.Balance OSD-Activos'!N224)","v":1654.852503029012},{"$f":"IF('[10]II.2.Balance OSD-Activos'!R224=\"\",\"\",'[10]II.2.Balance OSD-Activos'!R224)","v":78253.670956443559},{"$f":"IF('[10]II.2.Balance OSD-Activos'!S224=\"\",\"\",'[10]II.2.Balance OSD-Activos'!S224)","v":86719.451932534692},80711.298982254462,169085.60341781814,{"$f":"IF(OR(AW359=\"\",AW347=\"\"),\"\",((AW359/AW347)-1)*100)","v":2.0132256969620954},{"$f":"IF(OR(BA359=\"\",BA347=\"\"),\"\",((BA359/BA347)-1)*100)","v":-3.0975607952676842E-2},-18.365839580454491,-9.3849571215354199E-2,4.7865243675648594,{"$f":"IF(OR(BB359=\"\",BB347=\"\"),\"\",((BB359/BB347)-1)*100)","v":2.1531494033546483},{"$f":"IF(OR(BH359=\"\",BH358=\"\"),\"\",BH359-BH358)","v":-0.17415909773708105},{"$f":"IF('[2]MONE(M)CAPARD'!AS366=\"\",\"\",'[2]MONE(M)CAPARD'!AS366)","v":3.75},{"$f":"IF('[2]MONE(M)CAPARD'!AT366=\"\",\"\",'[2]MONE(M)CAPARD'!AT366)","v":"n.a."},{"$f":"IF('[2]MONE(M)CAPARD'!AU366=\"\",\"\",'[2]MONE(M)CAPARD'!AU366)","v":2.75},{"$f":"IF('[2]MONE(M)CAPARD'!AV366=\"\",\"\",'[2]MONE(M)CAPARD'!AV366)","v":5.75},{"$f":"IF('[2]MONE(M)CAPARD'!AW366=\"\",\"\",'[2]MONE(M)CAPARD'!AW366)","v":"n.a."},{"$f":"IF('[2]MONE(M)CAPARD'!AX366=\"\",\"\",'[2]MONE(M)CAPARD'!AX366)","v":4.5},{"$f":"IF('[2]MONE(M)CAPARD'!AY366=\"\",\"\",'[2]MONE(M)CAPARD'!AY366)","v":"n.a."},{"$f":"IF('[2]FISCAL(M)'!$K366=\"\",\"\",'[2]FISCAL(M)'!$K366)","v":-5139.1625995955765},{"$f":"IF('[2]FISCAL(M)'!$L366=\"\",\"\",'[2]FISCAL(M)'!$L366)","v":-8490.3625995955772},{"$f":"IF('[2]FISCAL(M)'!$AY366=\"\",\"\",'[2]FISCAL(M)'!$AY366)","v":146948.93987167676},{"$f":"IF('[2]FISCAL(M)'!$BI366=\"\",\"\",'[2]FISCAL(M)'!$BI366)","v":79066.3074892656},{"$f":"IF('[2]FISCAL(M)'!$BS366=\"\",\"\",'[2]FISCAL(M)'!$BS366)","v":67882.632382411161},{"$f":"IF('[2]FISCAL(M)'!$AZ366=\"\",\"\",'[2]FISCAL(M)'!$AZ366)","v":175593.32987167675},{"$f":"IF('[2]FISCAL(M)'!$BJ366=\"\",\"\",'[2]FISCAL(M)'!$BJ366)","v":85079.727489265599},{"$f":"IF('[2]FISCAL(M)'!$BT366=\"\",\"\",'[2]FISCAL(M)'!$BT366)","v":90513.602382411162},{"$f":"IF('[3]MONE(M)'!$AO366=\"\",\"\",'[3]MONE(M)'!$AO366)","v":21984031.128369011},{"$f":"IF('[4]MONE(M)'!$AO366=\"\",\"\",'[4]MONE(M)'!$AO366)","v":13704.826792600003},{"$f":"IF('[5]MONE(M)'!$AO366=\"\",\"\",'[5]MONE(M)'!$AO366)","v":211056.97696443734},{"$f":"+'[1]MONE(M)'!$AO366","v":376174.80104082008},{"$f":"IF('[6]MONE(M)'!$AO366=\"\",\"\",'[6]MONE(M)'!$AO366)","v":125196.65111664357},{"$f":"IF('[7]MONE(M)'!$AO366=\"\",\"\",'[7]MONE(M)'!$AO366)","v":1221724.5182614101},{"$f":"IF('[8]MONE(M)'!$AO366=\"\",\"\",'[8]MONE(M)'!$AO366)","v":53096.578084360001},-0.17795862485061598,5.1494243495237235,4.4104310948471559,10.031964592835308,-19.790415911164306,12.048719591495182,2.1931793457450333,{"$f":"'[2]FISCAL(M)'!$K366","v":-5139.1625995955765},{"$f":"+'[2]REAL(A)'!$AO$39","v":295165.15530963027},-1.7411142565946038,{"$f":"IF('[2]FISCAL(M)'!$L366=\"\",\"\",'[2]FISCAL(M)'!$L366)","v":-8490.3625995955772},{"$f":"+'[2]REAL(A)'!$AP$39","v":362149.55683805706},-2.3444354519512016,160570.75156897106,{"$f":"'[2]Gráfico REM'!BG360","v":30308.025366839389},{"$f":"'[2]Gráfico REM'!BH360","v":121419.54286606243},{"$f":"'[2]Gráfico REM'!BI360","v":8843.1833360692199},{"$f":"IFERROR(+((CS359/CS347)-1)*100,\"\")","v":4.2355713373526171},{"$f":"IFERROR(+((CT359/CT347)-1)*100,\"\")","v":11.94112949491608},{"$f":"IFERROR(+((CU359/CU347)-1)*100,\"\")","v":2.626178636141363},{"$f":"IFERROR(+((CV359/CV347)-1)*100,\"\")","v":2.1317047248260224},237354.02973847103,{"$f":"'[2]Gráfico REM'!BK360","v":32544.641699949389},{"$f":"'[2]Gráfico REM'!BL360","v":174516.12095042242},{"$f":"'[2]Gráfico REM'!BM360","v":30293.267088099223},{"$f":"IFERROR(+((DA359/DA347)-1)*100,\"\")","v":3.2396672976892527},{"$f":"IFERROR(+((DB359/DB347)-1)*100,\"\")","v":11.564943540991113},{"$f":"IFERROR(+((DC359/DC347)-1)*100,\"\")","v":2.4940506204598423},{"$f":"IFERROR(+((DD359/DD347)-1)*100,\"\")","v":-0.56469604384544736}]
[2019,"octubre","2019-octubre",{"$f":"IF('[2]REAL IPC(M)'!$AL367=\"\",\"\",+'[2]REAL IPC(M)'!$AL367)","v":2.3228652997663968},{"$f":"IF('[2]REAL IPC(M)'!$BE367=\"\",\"\",+'[2]REAL IPC(M)'!$BE367)","v":3.1620969435826929},{"$f":"IF('[2]REAL IPC(M)'!$AM367=\"\",\"\",+'[2]REAL IPC(M)'!$AM367)","v":1.877223027269137},{"$f":"IF('[2]REAL IPC(M)'!$BI367=\"\",\"\",+'[2]REAL IPC(M)'!$BI367)","v":2.6206310580242365},{"$f":"IF('[2]REAL IMAE(M)'!BJ367=\"\",\"\",'[2]REAL IMAE(M)'!BJ367)","v":3.8004207229373588},{"$f":"IF('[2]REAL IMAE(M)'!BK367=\"\",\"\",'[2]REAL IMAE(M)'!BK367)","v":1.5198592035867931},{"$f":"IF('[2]REAL IMAE(M)'!BN367=\"\",\"\",'[2]REAL IMAE(M)'!BN367)","v":3.4838208400063575},{"$f":"IF('[2]REAL IMAE(M)'!BO367=\"\",\"\",'[2]REAL IMAE(M)'!BO367)","v":0.64305567550522191},{"$f":"IF('[2]EXT RIN(M)'!$K367=\"\",\"\",'[2]EXT RIN(M)'!$K367)","v":41932.65},null,{"$f":"IF('[2]EXT RIN(M)'!$L367=\"\",\"\",'[2]EXT RIN(M)'!$L367)","v":45321.220355850004},null,{"$f":"IF('[2]MONE(M)CARD'!EG367=\"\",\"\",'[2]MONE(M)CARD'!EG367)","v":38446.622748961832},{"$f":"IF('[2]MONE(M)CARD'!EK367=\"\",\"\",'[2]MONE(M)CARD'!EK367)","v":60076.236501868014},{"$f":"IF('[2]MONE(M)CARD'!EP367=\"\",\"\",'[2]MONE(M)CARD'!EP367)","v":31734.682642426313},{"$f":"IF('[2]MONE(M)CARD'!ES367=\"\",\"\",'[2]MONE(M)CARD'!ES367)","v":9.7980414304954309},{"$f":"IF('[2]MONE(M)CARD'!EV367=\"\",\"\",'[2]MONE(M)CARD'!EV367)","v":7.4016655440404699},{"$f":"IF('[2]MONE(M)CARD'!EZ367=\"\",\"\",'[2]MONE(M)CARD'!EZ367)","v":6.2539980196332001},{"$f":"IF('[2]MONE(M)CAPARD'!FC367=\"\",\"\",'[2]MONE(M)CAPARD'!FC367)","v":46123.703491401837},{"$f":"IF('[2]MONE(M)CAPARD'!FG367=\"\",\"\",'[2]MONE(M)CAPARD'!FG367)","v":94232.697783038049},{"$f":"IF('[2]MONE(M)CAPARD'!FL367=\"\",\"\",'[2]MONE(M)CAPARD'!FL367)","v":31734.682642426313},{"$f":"IF('[2]MONE(M)CAPARD'!FO367=\"\",\"\",'[2]MONE(M)CAPARD'!FO367)","v":7.2313868245834412},{"$f":"IF('[2]MONE(M)CAPARD'!FR367=\"\",\"\",'[2]MONE(M)CAPARD'!FR367)","v":6.281841093768592},{"$f":"IF('[2]MONE(M)CAPARD'!FV367=\"\",\"\",'[2]MONE(M)CAPARD'!FV367)","v":5.630359248411354},{"$f":"IF('[2]MONE(M)CARD'!FV367=\"\",\"\",'[2]MONE(M)CARD'!FV367)","v":2314.6179595074391},{"$f":"IF('[2]MONE(M)CARD'!GD367=\"\",\"\",'[2]MONE(M)CARD'!GD367)","v":117.62644724714592},{"$f":"IF('[2]MONE(M)CARD'!GE367=\"\",\"\",'[2]MONE(M)CARD'!GE367)","v":14024.026503716861},22.940376266333963,{"$f":"IF('[9]II.2.Balance OSD-Activos'!J225=\"\",\"\",'[9]II.2.Balance OSD-Activos'!J225)","v":212.8911266549996},{"$f":"IF('[9]II.2.Balance OSD-Activos'!N225=\"\",\"\",'[9]II.2.Balance OSD-Activos'!N225)","v":1134.5252749893007},{"$f":"IF('[9]II.2.Balance OSD-Activos'!R225=\"\",\"\",'[9]II.2.Balance OSD-Activos'!R225)","v":54874.477633292285},{"$f":"IF('[9]II.2.Balance OSD-Activos'!S225=\"\",\"\",'[9]II.2.Balance OSD-Activos'!S225)","v":61302.130613652822},55087.368759947283,117524.0246485894,-8.2960960514391946,0.96810663631776706,-25.375093356224543,1.007694479690624,5.5604877407773312,2.9535532088496685,0.86792298029207959,{"$f":"IF('[2]MONE(M)CAPARD'!GS367=\"\",\"\",'[2]MONE(M)CAPARD'!GS367)","v":25086.554871019587},{"$f":"IF('[2]MONE(M)CARD'!HA367=\"\",\"\",'[2]MONE(M)CAPARD'!HA367)","v":16477.951948506859},{"$f":"IF('[2]MONE(M)CAPARD'!HB367=\"\",\"\",'[2]MONE(M)CAPARD'!HB367)","v":8608.6029225127277},"n.d.",{"$f":"IF('[10]II.2.Balance OSD-Activos'!J225=\"\",\"\",'[10]II.2.Balance OSD-Activos'!J225)","v":2584.624164545},{"$f":"IF('[10]II.2.Balance OSD-Activos'!N225=\"\",\"\",'[10]II.2.Balance OSD-Activos'!N225)","v":1614.3549084893007},{"$f":"IF('[10]II.2.Balance OSD-Activos'!R225=\"\",\"\",'[10]II.2.Balance OSD-Activos'!R225)","v":78740.821621142299},{"$f":"IF('[10]II.2.Balance OSD-Activos'!S225=\"\",\"\",'[10]II.2.Balance OSD-Activos'!S225)","v":87170.775050742814},81325.445785687305,170110.57574491942,8.5212445879770513,0.43308171008547003,-19.515383856644007,0.18797895292443911,5.6374717507002181,2.7862481933082606,0.63309878995361224,{"$f":"IF('[2]MONE(M)CAPARD'!AS367=\"\",\"\",'[2]MONE(M)CAPARD'!AS367)","v":3.25},{"$f":"IF('[2]MONE(M)CAPARD'!AT367=\"\",\"\",'[2]MONE(M)CAPARD'!AT367)","v":"n.a."},{"$f":"IF('[2]MONE(M)CAPARD'!AU367=\"\",\"\",'[2]MONE(M)CAPARD'!AU367)","v":2.75},{"$f":"IF('[2]MONE(M)CAPARD'!AV367=\"\",\"\",'[2]MONE(M)CAPARD'!AV367)","v":5.75},{"$f":"IF('[2]MONE(M)CAPARD'!AW367=\"\",\"\",'[2]MONE(M)CAPARD'!AW367)","v":"n.a."},{"$f":"IF('[2]MONE(M)CAPARD'!AX367=\"\",\"\",'[2]MONE(M)CAPARD'!AX367)","v":4.5},{"$f":"IF('[2]MONE(M)CAPARD'!AY367=\"\",\"\",'[2]MONE(M)CAPARD'!AY367)","v":"n.a."},{"$f":"IF('[2]FISCAL(M)'!$K367=\"\",\"\",'[2]FISCAL(M)'!$K367)","v":-5674.8460310684923},{"$f":"IF('[2]FISCAL(M)'!$L367=\"\",\"\",'[2]FISCAL(M)'!$L367)","v":"n.d."},{"$f":"IF('[2]FISCAL(M)'!$AY367=\"\",\"\",'[2]FISCAL(M)'!$AY367)","v":147623.68878761731},{"$f":"IF('[2]FISCAL(M)'!$BI367=\"\",\"\",'[2]FISCAL(M)'!$BI367)","v":79182.306157944957},{"$f":"IF('[2]FISCAL(M)'!$BS367=\"\",\"\",'[2]FISCAL(M)'!$BS367)","v":68441.382629672371},{"$f":"IF('[2]FISCAL(M)'!$AZ367=\"\",\"\",'[2]FISCAL(M)'!$AZ367)","v":176265.65878761734},{"$f":"IF('[2]FISCAL(M)'!$BJ367=\"\",\"\",'[2]FISCAL(M)'!$BJ367)","v":85194.726157944955},{"$f":"IF('[2]FISCAL(M)'!$BT367=\"\",\"\",'[2]FISCAL(M)'!$BT367)","v":91070.932629672388},{"$f":"IF('[3]MONE(M)'!$AO367=\"\",\"\",'[3]MONE(M)'!$AO367)","v":22084984.402671989},{"$f":"IF('[4]MONE(M)'!$AO367=\"\",\"\",'[4]MONE(M)'!$AO367)","v":13796.163614450001},{"$f":"IF('[5]MONE(M)'!$AO367=\"\",\"\",'[5]MONE(M)'!$AO367)","v":212406.02354226512},{"$f":"+'[1]MONE(M)'!$AO367","v":378100.51378766581},{"$f":"IF('[6]MONE(M)'!$AO367=\"\",\"\",'[6]MONE(M)'!$AO367)","v":125833.76462112449},{"$f":"IF('[7]MONE(M)'!$AO367=\"\",\"\",'[7]MONE(M)'!$AO367)","v":1239081.282865},{"$f":"IF('[8]MONE(M)'!$AO367=\"\",\"\",'[8]MONE(M)'!$AO367)","v":53545.438851780003},-1.1582862918070314,5.2509948430059961,4.110745002232008,9.383115211885972,-17.884464829592073,12.46003491736265,2.4077771400677461,{"$f":"'[2]FISCAL(M)'!$K367","v":-5674.8460310684923},{"$f":"+'[2]REAL(A)'!$AO$39","v":295165.15530963027},-1.9226002558179811,{"$f":"IF('[2]FISCAL(M)'!$L367=\"\",\"\",'[2]FISCAL(M)'!$L367)","v":"n.d."},{"$f":"+'[2]REAL(A)'!$AP$39","v":362149.55683805706},"n.d.",161096.10959893005,{"$f":"'[2]Gráfico REM'!BG361","v":30175.936766195569},{"$f":"'[2]Gráfico REM'!BH361","v":122005.53565254576},{"$f":"'[2]Gráfico REM'!BI361","v":8914.6371801887399},5.7508623924222624,14.254606985142605,3.6710977164181369,8.1981929913042215,238004.19774250008,{"$f":"'[2]Gráfico REM'!BK361","v":32536.978360375571},{"$f":"'[2]Gráfico REM'!BL361","v":175550.97450432577},{"$f":"'[2]Gráfico REM'!BM361","v":29916.244877798745},4.150296323268865,13.915428758190318,3.2824764963676589,-0.23213039448684025]
[2019,"noviembre","2019-noviembre",{"$f":"IF('[2]REAL IPC(M)'!$AL368=\"\",\"\",+'[2]REAL IPC(M)'!$AL368)","v":2.7312832489944316},{"$f":"IF('[2]REAL IPC(M)'!$BE368=\"\",\"\",+'[2]REAL IPC(M)'!$BE368)","v":3.2168019359362754},{"$f":"IF('[2]REAL IPC(M)'!$AM368=\"\",\"\",+'[2]REAL IPC(M)'!$AM368)","v":2.2865050079072136},{"$f":"IF('[2]REAL IPC(M)'!$BI368=\"\",\"\",+'[2]REAL IPC(M)'!$BI368)","v":2.6655429986853774},{"$f":"IF('[2]REAL IMAE(M)'!BJ368=\"\",\"\",'[2]REAL IMAE(M)'!BJ368)","v":3.9766319884962265},{"$f":"IF('[2]REAL IMAE(M)'!BK368=\"\",\"\",'[2]REAL IMAE(M)'!BK368)","v":1.4895597371672009},{"$f":"IF('[2]REAL IMAE(M)'!BN368=\"\",\"\",'[2]REAL IMAE(M)'!BN368)","v":3.603503122015117},{"$f":"IF('[2]REAL IMAE(M)'!BO368=\"\",\"\",'[2]REAL IMAE(M)'!BO368)","v":0.58772571346061842},{"$f":"IF('[2]EXT RIN(M)'!$K368=\"\",\"\",'[2]EXT RIN(M)'!$K368)","v":42248.09647830898},null,{"$f":"IF('[2]EXT RIN(M)'!$L368=\"\",\"\",'[2]EXT RIN(M)'!$L368)","v":46817.968345138979},null,{"$f":"IF('[2]MONE(M)CARD'!EG368=\"\",\"\",'[2]MONE(M)CARD'!EG368)","v":40839.44705733531},{"$f":"IF('[2]MONE(M)CARD'!EK368=\"\",\"\",'[2]MONE(M)CARD'!EK368)","v":60125.1669436296},{"$f":"IF('[2]MONE(M)CARD'!EP368=\"\",\"\",'[2]MONE(M)CARD'!EP368)","v":32043.682497597882},{"$f":"IF('[2]MONE(M)CARD'!ES368=\"\",\"\",'[2]MONE(M)CARD'!ES368)","v":13.355415647764435},{"$f":"IF('[2]MONE(M)CARD'!EV368=\"\",\"\",'[2]MONE(M)CARD'!EV368)","v":8.9926770446712148},{"$f":"IF('[2]MONE(M)CARD'!EZ368=\"\",\"\",'[2]MONE(M)CARD'!EZ368)","v":7.2961554876148416},{"$f":"IF('[2]MONE(M)CAPARD'!FC368=\"\",\"\",'[2]MONE(M)CAPARD'!FC368)","v":48662.275178725307},{"$f":"IF('[2]MONE(M)CAPARD'!FG368=\"\",\"\",'[2]MONE(M)CAPARD'!FG368)","v":94421.943549949588},{"$f":"IF('[2]MONE(M)CAPARD'!FL368=\"\",\"\",'[2]MONE(M)CAPARD'!FL368)","v":32043.682497597911},{"$f":"IF('[2]MONE(M)CAPARD'!FO368=\"\",\"\",'[2]MONE(M)CAPARD'!FO368)","v":9.8667532835391203},{"$f":"IF('[2]MONE(M)CAPARD'!FR368=\"\",\"\",'[2]MONE(M)CAPARD'!FR368)","v":6.8991372394817896},{"$f":"IF('[2]MONE(M)CAPARD'!FV368=\"\",\"\",'[2]MONE(M)CAPARD'!FV368)","v":6.0230111348934745},{"$f":"IF('[2]MONE(M)CARD'!FV368=\"\",\"\",'[2]MONE(M)CARD'!FV368)","v":2346.748377402203},{"$f":"IF('[2]MONE(M)CARD'!GD368=\"\",\"\",'[2]MONE(M)CARD'!GD368)","v":143.76060734687584},{"$f":"IF('[2]MONE(M)CARD'!GE368=\"\",\"\",'[2]MONE(M)CARD'!GE368)","v":13651.490224931704},18.047467105211012,{"$f":"IF('[9]II.2.Balance OSD-Activos'!J226=\"\",\"\",'[9]II.2.Balance OSD-Activos'!J226)","v":250.4420987634397},{"$f":"IF('[9]II.2.Balance OSD-Activos'!N226=\"\",\"\",'[9]II.2.Balance OSD-Activos'!N226)","v":1207.0430707753021},{"$f":"IF('[9]II.2.Balance OSD-Activos'!R226=\"\",\"\",'[9]II.2.Balance OSD-Activos'!R226)","v":55622.585530269018},{"$f":"IF('[9]II.2.Balance OSD-Activos'!S226=\"\",\"\",'[9]II.2.Balance OSD-Activos'!S226)","v":62425.471025974301},55873.027629032455,119505.54172578207,10.603800831499942,1.6211195183563287,-18.267542685578441,1.5839730699177101,6.1083060952765278,3.6561327521950737,0.70257954334540518,{"$f":"IF('[2]MONE(M)CAPARD'!GS368=\"\",\"\",'[2]MONE(M)CAPARD'!GS368)","v":25677.697659811329},{"$f":"IF('[2]MONE(M)CARD'!HA368=\"\",\"\",'[2]MONE(M)CAPARD'!HA368)","v":16013.637149351704},{"$f":"IF('[2]MONE(M)CAPARD'!HB368=\"\",\"\",'[2]MONE(M)CAPARD'!HB368)","v":9664.0605104596252},"n.d.",{"$f":"IF('[10]II.2.Balance OSD-Activos'!J226=\"\",\"\",'[10]II.2.Balance OSD-Activos'!J226)","v":2682.2901441334402},{"$f":"IF('[10]II.2.Balance OSD-Activos'!N226=\"\",\"\",'[10]II.2.Balance OSD-Activos'!N226)","v":1683.911466665302},{"$f":"IF('[10]II.2.Balance OSD-Activos'!R226=\"\",\"\",'[10]II.2.Balance OSD-Activos'!R226)","v":79287.275944019028},{"$f":"IF('[10]II.2.Balance OSD-Activos'!S226=\"\",\"\",'[10]II.2.Balance OSD-Activos'!S226)","v":88413.129385074295},{"$f":"IFERROR(+AW361+AY361,\"\")","v":81969.566088152467},172066.60693989205,11.266863620423484,0.65713587107087967,-12.232728580783592,0.33347774440097844,5.9181616609514709,3.1412992927456251,0.35505109943736457,{"$f":"IF('[2]MONE(M)CAPARD'!AS368=\"\",\"\",'[2]MONE(M)CAPARD'!AS368)","v":3.25},{"$f":"IF('[2]MONE(M)CAPARD'!AT368=\"\",\"\",'[2]MONE(M)CAPARD'!AT368)","v":"n.a."},{"$f":"IF('[2]MONE(M)CAPARD'!AU368=\"\",\"\",'[2]MONE(M)CAPARD'!AU368)","v":2.75},{"$f":"IF('[2]MONE(M)CAPARD'!AV368=\"\",\"\",'[2]MONE(M)CAPARD'!AV368)","v":5.75},{"$f":"IF('[2]MONE(M)CAPARD'!AW368=\"\",\"\",'[2]MONE(M)CAPARD'!AW368)","v":"n.a."},{"$f":"IF('[2]MONE(M)CAPARD'!AX368=\"\",\"\",'[2]MONE(M)CAPARD'!AX368)","v":4.5},{"$f":"IF('[2]MONE(M)CAPARD'!AY368=\"\",\"\",'[2]MONE(M)CAPARD'!AY368)","v":"n.a."},{"$f":"IF('[2]FISCAL(M)'!$K368=\"\",\"\",'[2]FISCAL(M)'!$K368)","v":-6915.7754963378402},{"$f":"IF('[2]FISCAL(M)'!$L368=\"\",\"\",'[2]FISCAL(M)'!$L368)","v":"n.d."},{"$f":"IF('[2]FISCAL(M)'!$AY368=\"\",\"\",'[2]FISCAL(M)'!$AY368)","v":149552.72227484634},{"$f":"IF('[2]FISCAL(M)'!$BI368=\"\",\"\",'[2]FISCAL(M)'!$BI368)","v":80322.698685259238},{"$f":"IF('[2]FISCAL(M)'!$BS368=\"\",\"\",'[2]FISCAL(M)'!$BS368)","v":69230.023589587101},{"$f":"IF('[2]FISCAL(M)'!$AZ368=\"\",\"\",'[2]FISCAL(M)'!$AZ368)","v":179923.14227484638},{"$f":"IF('[2]FISCAL(M)'!$BJ368=\"\",\"\",'[2]FISCAL(M)'!$BJ368)","v":86637.018685259245},{"$f":"IF('[2]FISCAL(M)'!$BT368=\"\",\"\",'[2]FISCAL(M)'!$BT368)","v":93286.123589587092},{"$f":"IF('[3]MONE(M)'!$AO368=\"\",\"\",'[3]MONE(M)'!$AO368)","v":21771057.566668939},{"$f":"IF('[4]MONE(M)'!$AO368=\"\",\"\",'[4]MONE(M)'!$AO368)","v":13874.821805390002},{"$f":"IF('[5]MONE(M)'!$AO368=\"\",\"\",'[5]MONE(M)'!$AO368)","v":214609.24647035153},{"$f":"+'[1]MONE(M)'!$AO368","v":382792.09376303817},{"$f":"IF('[6]MONE(M)'!$AO368=\"\",\"\",'[6]MONE(M)'!$AO368)","v":126250.28693509489},{"$f":"IF('[7]MONE(M)'!$AO368=\"\",\"\",'[7]MONE(M)'!$AO368)","v":1260731.1478180001},{"$f":"IF('[8]MONE(M)'!$AO368=\"\",\"\",'[8]MONE(M)'!$AO368)","v":53565.726717270001},-2.3072623230150135,4.8375017073418514,4.7416324824318457,8.7380687462884854,-16.662603036635005,12.619671531465171,1.951645104805011,{"$f":"'[2]FISCAL(M)'!$K368","v":-6915.7754963378402},{"$f":"+'[2]REAL(A)'!$AO$39","v":295165.15530963027},-2.3430189410681432,{"$f":"IF('[2]FISCAL(M)'!$L368=\"\",\"\",'[2]FISCAL(M)'!$L368)","v":"n.d."},{"$f":"+'[2]REAL(A)'!$AP$39","v":362149.55683805706},"n.d.",163632.80089933929,{"$f":"'[2]Gráfico REM'!BG362","v":30660.542448604796},{"$f":"'[2]Gráfico REM'!BH362","v":123837.28191363165},{"$f":"'[2]Gráfico REM'!BI362","v":9134.9765371028243},6.3590241076971754,16.015058064750143,4.2832259733956102,5.357070164368527,241152.54190962925,{"$f":"'[2]Gráfico REM'!BK362","v":33017.514565364792},{"$f":"'[2]Gráfico REM'!BL362","v":177403.00863090166},{"$f":"'[2]Gráfico REM'!BM362","v":30732.018713362821},4.5373518782654498,15.409284423399527,3.5680579333766893,-0.17283720239330558]
[2019,"diciembre","2019-diciembre",{"$f":"IF('[2]REAL IPC(M)'!$AL369=\"\",\"\",+'[2]REAL IPC(M)'!$AL369)","v":3.0485827333463167},{"$f":"IF('[2]REAL IPC(M)'!$BE369=\"\",\"\",+'[2]REAL IPC(M)'!$BE369)","v":3.2769661212637136},{"$f":"IF('[2]REAL IPC(M)'!$AM369=\"\",\"\",+'[2]REAL IPC(M)'!$AM369)","v":2.5972313777191891},{"$f":"IF('[2]REAL IPC(M)'!$BI369=\"\",\"\",+'[2]REAL IPC(M)'!$BI369)","v":2.7163805250287609},{"$f":"IF('[2]REAL IMAE(M)'!BJ369=\"\",\"\",'[2]REAL IMAE(M)'!BJ369)","v":3.5770912464973659},{"$f":"IF('[2]REAL IMAE(M)'!BK369=\"\",\"\",'[2]REAL IMAE(M)'!BK369)","v":1.4727156025488242},{"$f":"IF('[2]REAL IMAE(M)'!BN369=\"\",\"\",'[2]REAL IMAE(M)'!BN369)","v":3.6662876645631615},{"$f":"IF('[2]REAL IMAE(M)'!BO369=\"\",\"\",'[2]REAL IMAE(M)'!BO369)","v":0.55150645051318392},{"$f":"IF('[2]EXT RIN(M)'!$K369=\"\",\"\",'[2]EXT RIN(M)'!$K369)","v":44436.54692909844},{"$f":"IF(B362<>\"diciembre\",\"\",L362)","v":44436.54692909844},{"$f":"IF('[2]EXT RIN(M)'!$L369=\"\",\"\",'[2]EXT RIN(M)'!$L369)","v":48578.88734922844},{"$f":"IF(B362<>\"diciembre\",\"\",N362)","v":48578.88734922844},{"$f":"IF('[2]MONE(M)CARD'!EG369=\"\",\"\",'[2]MONE(M)CARD'!EG369)","v":43749.957713104115},{"$f":"IF('[2]MONE(M)CARD'!EK369=\"\",\"\",'[2]MONE(M)CARD'!EK369)","v":61178.004115481541},{"$f":"IF('[2]MONE(M)CARD'!EP369=\"\",\"\",'[2]MONE(M)CARD'!EP369)","v":31948.19104820292},{"$f":"IF('[2]MONE(M)CARD'!ES369=\"\",\"\",'[2]MONE(M)CARD'!ES369)","v":14.976491439360418},{"$f":"IF('[2]MONE(M)CARD'!EV369=\"\",\"\",'[2]MONE(M)CARD'!EV369)","v":10.542221583377941},{"$f":"IF('[2]MONE(M)CARD'!EZ369=\"\",\"\",'[2]MONE(M)CARD'!EZ369)","v":8.7376692999355576},{"$f":"IF('[2]MONE(M)CAPARD'!FC369=\"\",\"\",'[2]MONE(M)CAPARD'!FC369)","v":51659.767802434108},{"$f":"IF('[2]MONE(M)CAPARD'!FG369=\"\",\"\",'[2]MONE(M)CAPARD'!FG369)","v":95513.397109341546},{"$f":"IF('[2]MONE(M)CAPARD'!FL369=\"\",\"\",'[2]MONE(M)CAPARD'!FL369)","v":31948.19104820292},{"$f":"IF('[2]MONE(M)CAPARD'!FO369=\"\",\"\",'[2]MONE(M)CAPARD'!FO369)","v":10.438574292170589},{"$f":"IF('[2]MONE(M)CAPARD'!FR369=\"\",\"\",'[2]MONE(M)CAPARD'!FR369)","v":8.1030454173975031},{"$f":"IF('[2]MONE(M)CAPARD'!FV369=\"\",\"\",'[2]MONE(M)CAPARD'!FV369)","v":7.1955251574903123},{"$f":"IF('[2]MONE(M)CARD'!FV369=\"\",\"\",'[2]MONE(M)CARD'!FV369)","v":1844.2684661341227},{"$f":"IF('[2]MONE(M)CARD'!GD369=\"\",\"\",'[2]MONE(M)CARD'!GD369)","v":170.9390430265575},{"$f":"IF('[2]MONE(M)CARD'!GE369=\"\",\"\",'[2]MONE(M)CARD'!GE369)","v":12985.955057205038},14.016762611691313,{"$f":"IF('[9]II.2.Balance OSD-Activos'!J227=\"\",\"\",'[9]II.2.Balance OSD-Activos'!J227)","v":306.80767823024701},{"$f":"IF('[9]II.2.Balance OSD-Activos'!N227=\"\",\"\",'[9]II.2.Balance OSD-Activos'!N227)","v":1236.4726781016418},{"$f":"IF('[9]II.2.Balance OSD-Activos'!R227=\"\",\"\",'[9]II.2.Balance OSD-Activos'!R227)","v":55904.297512030244},{"$f":"IF('[9]II.2.Balance OSD-Activos'!S227=\"\",\"\",'[9]II.2.Balance OSD-Activos'!S227)","v":62209.317097102066},56211.105190260489,119656.89496546419,56.195504900230311,2.5082879280708514,-15.568328598824021,2.3152849953385513,6.0035620039027737,4.061963916896838,0.40583116470176428,{"$f":"IF('[2]MONE(M)CAPARD'!GS369=\"\",\"\",'[2]MONE(M)CAPARD'!GS369)","v":25901.005277673026},{"$f":"IF('[2]MONE(M)CARD'!HA369=\"\",\"\",'[2]MONE(M)CAPARD'!HA369)","v":15969.053531555035},{"$f":"IF('[2]MONE(M)CAPARD'!HB369=\"\",\"\",'[2]MONE(M)CAPARD'!HB369)","v":9931.9517461179912},"n.d.",{"$f":"IF('[10]II.2.Balance OSD-Activos'!J227=\"\",\"\",'[10]II.2.Balance OSD-Activos'!J227)","v":2759.3360958802464},{"$f":"IF('[10]II.2.Balance OSD-Activos'!N227=\"\",\"\",'[10]II.2.Balance OSD-Activos'!N227)","v":1817.4494105216418},{"$f":"IF('[10]II.2.Balance OSD-Activos'!R227=\"\",\"\",'[10]II.2.Balance OSD-Activos'!R227)","v":79214.784078400247},{"$f":"IF('[10]II.2.Balance OSD-Activos'!S227=\"\",\"\",'[10]II.2.Balance OSD-Activos'!S227)","v":88320.92058384206},81974.120174280499,172112.4901686442,20.237854014489145,1.3398553963256621,-7.7360978311162505,0.78805498472891422,5.7965582270814275,3.4690569362964663,0.32775764355084114,{"$f":"IF('[2]MONE(M)CAPARD'!AS369=\"\",\"\",'[2]MONE(M)CAPARD'!AS369)","v":2.75},{"$f":"IF('[2]MONE(M)CAPARD'!AT369=\"\",\"\",'[2]MONE(M)CAPARD'!AT369)","v":"n.a."},{"$f":"IF('[2]MONE(M)CAPARD'!AU369=\"\",\"\",'[2]MONE(M)CAPARD'!AU369)","v":2.75},{"$f":"IF('[2]MONE(M)CAPARD'!AV369=\"\",\"\",'[2]MONE(M)CAPARD'!AV369)","v":5.5},{"$f":"IF('[2]MONE(M)CAPARD'!AW369=\"\",\"\",'[2]MONE(M)CAPARD'!AW369)","v":"n.a."},{"$f":"IF('[2]MONE(M)CAPARD'!AX369=\"\",\"\",'[2]MONE(M)CAPARD'!AX369)","v":4.5},{"$f":"IF('[2]MONE(M)CAPARD'!AY369=\"\",\"\",'[2]MONE(M)CAPARD'!AY369)","v":"n.a."},{"$f":"IF('[2]FISCAL(M)'!$K369=\"\",\"\",'[2]FISCAL(M)'!$K369)","v":-10214.327575055984},{"$f":"IF('[2]FISCAL(M)'!$L369=\"\",\"\",'[2]FISCAL(M)'!$L369)","v":-12762.427575055985},{"$f":"IF('[2]FISCAL(M)'!$AY369=\"\",\"\",'[2]FISCAL(M)'!$AY369)","v":151012.49558313415},{"$f":"IF('[2]FISCAL(M)'!$BI369=\"\",\"\",'[2]FISCAL(M)'!$BI369)","v":81153.047040213482},{"$f":"IF('[2]FISCAL(M)'!$BS369=\"\",\"\",'[2]FISCAL(M)'!$BS369)","v":69859.448542920654},{"$f":"IF('[2]FISCAL(M)'!$AZ369=\"\",\"\",'[2]FISCAL(M)'!$AZ369)","v":182030.97558313416},{"$f":"IF('[2]FISCAL(M)'!$BJ369=\"\",\"\",'[2]FISCAL(M)'!$BJ369)","v":87948.367040213489},{"$f":"IF('[2]FISCAL(M)'!$BT369=\"\",\"\",'[2]FISCAL(M)'!$BT369)","v":94082.608542920658},{"$f":"IF('[3]MONE(M)'!$AO369=\"\",\"\",'[3]MONE(M)'!$AO369)","v":21874299.761970032},{"$f":"IF('[4]MONE(M)'!$AO369=\"\",\"\",'[4]MONE(M)'!$AO369)","v":13981.318384759999},{"$f":"IF('[5]MONE(M)'!$AO369=\"\",\"\",'[5]MONE(M)'!$AO369)","v":215686.97627656333},{"$f":"+'[1]MONE(M)'!$AO369","v":389411.92068450298},{"$f":"IF('[6]MONE(M)'!$AO369=\"\",\"\",'[6]MONE(M)'!$AO369)","v":126086.99903374136},{"$f":"IF('[7]MONE(M)'!$AO369=\"\",\"\",'[7]MONE(M)'!$AO369)","v":1269853.82479244},{"$f":"IF('[8]MONE(M)'!$AO369=\"\",\"\",'[8]MONE(M)'!$AO369)","v":53345.007250070004},-2.1296594071194552,5.597627985415099,5.0489536489688014,9.1570498990674274,-14.792507787741727,12.760180788599396,2.1849244506356946,{"$f":"'[2]FISCAL(M)'!$K369","v":-10214.327575055984},{"$f":"+'[2]REAL(A)'!$AO$39","v":295165.15530963027},-3.4605465419321213,{"$f":"IF('[2]FISCAL(M)'!$L369=\"\",\"\",'[2]FISCAL(M)'!$L369)","v":-12762.427575055985},{"$f":"+'[2]REAL(A)'!$AP$39","v":362149.55683805706},-3.5240765407764885,163590.71818611809,{"$f":"'[2]Gráfico REM'!BG363","v":30543.953744952018},{"$f":"'[2]Gráfico REM'!BH363","v":123903.98777187268},{"$f":"'[2]Gráfico REM'!BI363","v":9142.7766692933928},6.4618666128399394,15.27622977055605,4.6271867800358413,4.5996073005886817,241479.41633198809,{"$f":"'[2]Gráfico REM'!BK363","v":33144.489440202022},{"$f":"'[2]Gráfico REM'!BL363","v":177248.99502194268},{"$f":"'[2]Gráfico REM'!BM363","v":31085.931869843393},4.5753170814381905,15.502910294465577,3.8799688401560672,-1.5953195871770021]
[2020,"enero","2020-enero",{"$f":"IF('[2]REAL IPC(M)'!$AL370=\"\",\"\",+'[2]REAL IPC(M)'!$AL370)","v":2.8104406254037873},{"$f":"IF('[2]REAL IPC(M)'!$BE370=\"\",\"\",+'[2]REAL IPC(M)'!$BE370)","v":3.342708016464635},{"$f":"IF('[2]REAL IPC(M)'!$AM370=\"\",\"\",+'[2]REAL IPC(M)'!$AM370)","v":2.4454378122534814},{"$f":"IF('[2]REAL IPC(M)'!$BI370=\"\",\"\",+'[2]REAL IPC(M)'!$BI370)","v":2.7733284745505626},{"$f":"IF('[2]REAL IMAE(M)'!BJ370=\"\",\"\",'[2]REAL IMAE(M)'!BJ370)","v":2.5202032880844438},{"$f":"IF('[2]REAL IMAE(M)'!BK370=\"\",\"\",'[2]REAL IMAE(M)'!BK370)","v":1.4709657643086516},{"$f":"IF('[2]REAL IMAE(M)'!BN370=\"\",\"\",'[2]REAL IMAE(M)'!BN370)","v":3.1713957307295981},{"$f":"IF('[2]REAL IMAE(M)'!BO370=\"\",\"\",'[2]REAL IMAE(M)'!BO370)","v":0.53697519356508128},{"$f":"IF('[2]EXT RIN(M)'!$K370=\"\",\"\",'[2]EXT RIN(M)'!$K370)","v":45464.801424746962},null,{"$f":"IF('[2]EXT RIN(M)'!$L370=\"\",\"\",'[2]EXT RIN(M)'!$L370)","v":48809.163533406965},null,{"$f":"IF('[2]MONE(M)CARD'!EG370=\"\",\"\",'[2]MONE(M)CARD'!EG370)","v":42952.230657746397},{"$f":"IF('[2]MONE(M)CARD'!EK370=\"\",\"\",'[2]MONE(M)CARD'!EK370)","v":61473.756149352375},{"$f":"IF('[2]MONE(M)CARD'!EP370=\"\",\"\",'[2]MONE(M)CARD'!EP370)","v":32829.491560720038},{"$f":"IF('[2]MONE(M)CARD'!ES370=\"\",\"\",'[2]MONE(M)CARD'!ES370)","v":15.054935559536787},{"$f":"IF('[2]MONE(M)CARD'!EV370=\"\",\"\",'[2]MONE(M)CARD'!EV370)","v":11.041859493836137},{"$f":"IF('[2]MONE(M)CARD'!EZ370=\"\",\"\",'[2]MONE(M)CARD'!EZ370)","v":9.5580126915351116},{"$f":"IF('[2]MONE(M)CAPARD'!FC370=\"\",\"\",'[2]MONE(M)CAPARD'!FC370)","v":50755.467511406401},{"$f":"IF('[2]MONE(M)CAPARD'!FG370=\"\",\"\",'[2]MONE(M)CAPARD'!FG370)","v":95915.0987778524},{"$f":"IF('[2]MONE(M)CAPARD'!FL370=\"\",\"\",'[2]MONE(M)CAPARD'!FL370)","v":32829.491560720024},{"$f":"IF('[2]MONE(M)CAPARD'!FO370=\"\",\"\",'[2]MONE(M)CAPARD'!FO370)","v":11.419999399688209},{"$f":"IF('[2]MONE(M)CAPARD'!FR370=\"\",\"\",'[2]MONE(M)CAPARD'!FR370)","v":8.6158633289296525},{"$f":"IF('[2]MONE(M)CAPARD'!FV370=\"\",\"\",'[2]MONE(M)CAPARD'!FV370)","v":7.9536354671046805},{"$f":"IF('[2]MONE(M)CARD'!FV370=\"\",\"\",'[2]MONE(M)CARD'!FV370)","v":1835.3888004325579},{"$f":"IF('[2]MONE(M)CARD'!GD370=\"\",\"\",'[2]MONE(M)CARD'!GD370)","v":132.25090267771469},{"$f":"IF('[2]MONE(M)CARD'!GE370=\"\",\"\",'[2]MONE(M)CARD'!GE370)","v":13472.248617963716},{"$f":"IF(AD363=\"\",\"\",((AD363/AD350)-1)*100)","v":21.84966970598343},{"$f":"IF('[9]II.2.Balance OSD-Activos'!J228=\"\",\"\",'[9]II.2.Balance OSD-Activos'!J228)","v":303.70112947817165},{"$f":"IF('[9]II.2.Balance OSD-Activos'!N228=\"\",\"\",'[9]II.2.Balance OSD-Activos'!N228)","v":1234.2355671966588},{"$f":"IF('[9]II.2.Balance OSD-Activos'!R228=\"\",\"\",'[9]II.2.Balance OSD-Activos'!R228)","v":55999.015510862824},{"$f":"IF('[9]II.2.Balance OSD-Activos'!S228=\"\",\"\",'[9]II.2.Balance OSD-Activos'!S228)","v":62209.702062924182},{"$f":"IFERROR(+AF363+AH363,\"\")","v":56302.716640340994},119746.65427046183,39.523797824488604,3.3521241244209188,-17.435114215232005,3.2070147243523417,5.8285809444948544,4.3499073572477398,0.2879434403509018,{"$f":"IF('[2]MONE(M)CAPARD'!GS370=\"\",\"\",'[2]MONE(M)CAPARD'!GS370)","v":25922.389658535158},{"$f":"IF('[2]MONE(M)CARD'!HA370=\"\",\"\",'[2]MONE(M)CAPARD'!HA370)","v":15978.284470943716},{"$f":"IF('[2]MONE(M)CAPARD'!HB370=\"\",\"\",'[2]MONE(M)CAPARD'!HB370)","v":9944.1051875914418},"n.d.",{"$f":"IF('[10]II.2.Balance OSD-Activos'!J228=\"\",\"\",'[10]II.2.Balance OSD-Activos'!J228)","v":2762.7255928381719},{"$f":"IF('[10]II.2.Balance OSD-Activos'!N228=\"\",\"\",'[10]II.2.Balance OSD-Activos'!N228)","v":1825.3628768166591},{"$f":"IF('[10]II.2.Balance OSD-Activos'!R228=\"\",\"\",'[10]II.2.Balance OSD-Activos'!R228)","v":79172.605257952819},{"$f":"IF('[10]II.2.Balance OSD-Activos'!S228=\"\",\"\",'[10]II.2.Balance OSD-Activos'!S228)","v":88415.005057704169},81935.330850790997,172175.69878531183,21.039455726777433,1.8123750666978022,-8.538691320680126,1.2511344428517868,5.8497049972937143,3.7194373760232935,0.25038043972682722,{"$f":"IF('[2]MONE(M)CAPARD'!AS370=\"\",\"\",'[2]MONE(M)CAPARD'!AS370)","v":2.25},{"$f":"IF('[2]MONE(M)CAPARD'!AT370=\"\",\"\",'[2]MONE(M)CAPARD'!AT370)","v":"n.a."},{"$f":"IF('[2]MONE(M)CAPARD'!AU370=\"\",\"\",'[2]MONE(M)CAPARD'!AU370)","v":2.75},{"$f":"IF('[2]MONE(M)CAPARD'!AV370=\"\",\"\",'[2]MONE(M)CAPARD'!AV370)","v":5.5},{"$f":"IF('[2]MONE(M)CAPARD'!AW370=\"\",\"\",'[2]MONE(M)CAPARD'!AW370)","v":"n.a."},{"$f":"IF('[2]MONE(M)CAPARD'!AX370=\"\",\"\",'[2]MONE(M)CAPARD'!AX370)","v":4.5},{"$f":"IF('[2]MONE(M)CAPARD'!AY370=\"\",\"\",'[2]MONE(M)CAPARD'!AY370)","v":"n.a."},{"$f":"IF('[2]FISCAL(M)'!$K370=\"\",\"\",'[2]FISCAL(M)'!$K370)","v":-207.04758689708555},{"$f":"IF('[2]FISCAL(M)'!$L370=\"\",\"\",'[2]FISCAL(M)'!$L370)","v":"n.d."},{"$f":"IF('[2]FISCAL(M)'!$AY370=\"\",\"\",'[2]FISCAL(M)'!$AY370)","v":155166.37984339058},{"$f":"IF('[2]FISCAL(M)'!$BI370=\"\",\"\",'[2]FISCAL(M)'!$BI370)","v":83471.779829671897},{"$f":"IF('[2]FISCAL(M)'!$BS370=\"\",\"\",'[2]FISCAL(M)'!$BS370)","v":71694.600013718678},{"$f":"IF('[2]FISCAL(M)'!$AZ370=\"\",\"\",'[2]FISCAL(M)'!$AZ370)","v":185063.28984339058},{"$f":"IF('[2]FISCAL(M)'!$BJ370=\"\",\"\",'[2]FISCAL(M)'!$BJ370)","v":90330.099829671904},{"$f":"IF('[2]FISCAL(M)'!$BT370=\"\",\"\",'[2]FISCAL(M)'!$BT370)","v":94733.190013718675},{"$f":"IF('[3]MONE(M)'!$AO370=\"\",\"\",'[3]MONE(M)'!$AO370)","v":21893044.50148236},{"$f":"IF('[4]MONE(M)'!$AO370=\"\",\"\",'[4]MONE(M)'!$AO370)","v":14069.849257939997},{"$f":"IF('[5]MONE(M)'!$AO370=\"\",\"\",'[5]MONE(M)'!$AO370)","v":216234.59291585968},{"$f":"+'[1]MONE(M)'!$AO370","v":391442.36163189798},{"$f":"IF('[6]MONE(M)'!$AO370=\"\",\"\",'[6]MONE(M)'!$AO370)","v":125823.86578434633},{"$f":"IF('[7]MONE(M)'!$AO370=\"\",\"\",'[7]MONE(M)'!$AO370)","v":1273257.45037324},{"$f":"IF('[8]MONE(M)'!$AO370=\"\",\"\",'[8]MONE(M)'!$AO370)","v":53328.072230379985},-2.1597750987204178,5.4988652698424456,4.9679346881358111,8.9439655625742418,-12.890358723326756,13.371915179536442,2.450979864269609,{"$f":"'[2]FISCAL(M)'!$K370","v":-207.04758689708555},{"$f":"+'[2]REAL(A)'!$AO$40","v":280375.55734848662},{"$f":"IF(OR(CM363=\"n.d.\",CM363=\"\",CN363=\"\",CN363=\"n.d.\"),\"\",(CM363/CN363)*100)","v":-7.3846518168393799E-2},{"$f":"IF('[2]FISCAL(M)'!$L370=\"\",\"\",'[2]FISCAL(M)'!$L370)","v":"n.d."},{"$f":"+'[2]REAL(A)'!$AP$40","v":334352.59023561911},"n.d.",165160.24635150284,{"$f":"'[2]Gráfico REM'!BG364","v":32124.372741973439},{"$f":"'[2]Gráfico REM'!BH364","v":124026.32347344601},{"$f":"'[2]Gráfico REM'!BI364","v":9009.5501360834023},6.7717761461618453,15.751391793607716,4.9271675885466992,3.2009768030421881,242759.20092524283,{"$f":"'[2]Gráfico REM'!BK364","v":34334.677352973435},{"$f":"'[2]Gráfico REM'!BL364","v":177354.39570382598},{"$f":"'[2]Gráfico REM'!BM364","v":31070.127868443415},4.8562240974434179,14.242530202510073,4.1701176437718201,-0.44010790963990853]
[2020,"febrero","2020-febrero",{"$f":"IF('[2]REAL IPC(M)'!$AL371=\"\",\"\",+'[2]REAL IPC(M)'!$AL371)","v":2.4811497067732224},{"$f":"IF('[2]REAL IPC(M)'!$BE371=\"\",\"\",+'[2]REAL IPC(M)'!$BE371)","v":3.4141255499120726},{"$f":"IF('[2]REAL IPC(M)'!$AM371=\"\",\"\",+'[2]REAL IPC(M)'!$AM371)","v":2.1118908637764777},{"$f":"IF('[2]REAL IPC(M)'!$BI371=\"\",\"\",+'[2]REAL IPC(M)'!$BI371)","v":2.8365565046794883},{"$f":"IF('[2]REAL IMAE(M)'!BJ371=\"\",\"\",'[2]REAL IMAE(M)'!BJ371)","v":-0.7488129953294842},{"$f":"IF('[2]REAL IMAE(M)'!BK371=\"\",\"\",'[2]REAL IMAE(M)'!BK371)","v":1.4860756062644143},{"$f":"IF('[2]REAL IMAE(M)'!BN371=\"\",\"\",'[2]REAL IMAE(M)'!BN371)","v":-0.58168185401462624},{"$f":"IF('[2]REAL IMAE(M)'!BO371=\"\",\"\",'[2]REAL IMAE(M)'!BO371)","v":0.54693201532327596},{"$f":"IF('[2]EXT RIN(M)'!$K371=\"\",\"\",'[2]EXT RIN(M)'!$K371)","v":45161.449199999995},null,{"$f":"IF('[2]EXT RIN(M)'!$L371=\"\",\"\",'[2]EXT RIN(M)'!$L371)","v":48536.206183649992},null,{"$f":"IF('[2]MONE(M)CARD'!EG371=\"\",\"\",'[2]MONE(M)CARD'!EG371)","v":43143.337196831679},{"$f":"IF('[2]MONE(M)CARD'!EK371=\"\",\"\",'[2]MONE(M)CARD'!EK371)","v":61421.032238322019},{"$f":"IF('[2]MONE(M)CARD'!EP371=\"\",\"\",'[2]MONE(M)CARD'!EP371)","v":33144.394789232902},{"$f":"IF('[2]MONE(M)CARD'!ES371=\"\",\"\",'[2]MONE(M)CARD'!ES371)","v":15.704752894018981},{"$f":"IF('[2]MONE(M)CARD'!EV371=\"\",\"\",'[2]MONE(M)CARD'!EV371)","v":10.487209775226237},{"$f":"IF('[2]MONE(M)CARD'!EZ371=\"\",\"\",'[2]MONE(M)CARD'!EZ371)","v":8.9102061511173059},{"$f":"IF('[2]MONE(M)CAPARD'!FC371=\"\",\"\",'[2]MONE(M)CAPARD'!FC371)","v":50977.386278761689},{"$f":"IF('[2]MONE(M)CAPARD'!FG371=\"\",\"\",'[2]MONE(M)CAPARD'!FG371)","v":95910.20890194198},{"$f":"IF('[2]MONE(M)CAPARD'!FL371=\"\",\"\",'[2]MONE(M)CAPARD'!FL371)","v":33144.394789232931},{"$f":"IF('[2]MONE(M)CAPARD'!FO371=\"\",\"\",'[2]MONE(M)CAPARD'!FO371)","v":12.226691070086382},{"$f":"IF('[2]MONE(M)CAPARD'!FR371=\"\",\"\",'[2]MONE(M)CAPARD'!FR371)","v":8.2449465750255904},{"$f":"IF('[2]MONE(M)CAPARD'!FV371=\"\",\"\",'[2]MONE(M)CAPARD'!FV371)","v":7.4802456095388159},{"$f":"IF('[2]MONE(M)CARD'!FV371=\"\",\"\",'[2]MONE(M)CARD'!FV371)","v":1817.8336613955278},{"$f":"IF('[2]MONE(M)CARD'!GD371=\"\",\"\",'[2]MONE(M)CARD'!GD371)","v":121.09228448913959},{"$f":"IF('[2]MONE(M)CARD'!GE371=\"\",\"\",'[2]MONE(M)CARD'!GE371)","v":13414.873625993272},12.158095051482842,{"$f":"IF('[9]II.2.Balance OSD-Activos'!J229=\"\",\"\",'[9]II.2.Balance OSD-Activos'!J229)","v":299.28990023124493},{"$f":"IF('[9]II.2.Balance OSD-Activos'!N229=\"\",\"\",'[9]II.2.Balance OSD-Activos'!N229)","v":1176.833944741601},{"$f":"IF('[9]II.2.Balance OSD-Activos'!R229=\"\",\"\",'[9]II.2.Balance OSD-Activos'!R229)","v":56013.272711858575},{"$f":"IF('[9]II.2.Balance OSD-Activos'!S229=\"\",\"\",'[9]II.2.Balance OSD-Activos'!S229)","v":62280.749390602854},56312.562612089823,119770.14594743427,43.630676494155772,3.1277490197010094,-21.248900605569311,2.9725953754454748,5.6481241434486629,4.1025513620515763,-0.24735599519616347,{"$f":"IF('[2]MONE(M)CAPARD'!GS371=\"\",\"\",'[2]MONE(M)CAPARD'!GS371)","v":26262.522650449093},{"$f":"IF('[2]MONE(M)CARD'!HA371=\"\",\"\",'[2]MONE(M)CAPARD'!HA371)","v":15716.850828293273},{"$f":"IF('[2]MONE(M)CAPARD'!HB371=\"\",\"\",'[2]MONE(M)CAPARD'!HB371)","v":10545.67182215582},"n.d.",{"$f":"IF('[10]II.2.Balance OSD-Activos'!J229=\"\",\"\",'[10]II.2.Balance OSD-Activos'!J229)","v":2775.3478275112438},{"$f":"IF('[10]II.2.Balance OSD-Activos'!N229=\"\",\"\",'[10]II.2.Balance OSD-Activos'!N229)","v":1754.9940516316012},{"$f":"IF('[10]II.2.Balance OSD-Activos'!R229=\"\",\"\",'[10]II.2.Balance OSD-Activos'!R229)","v":79057.679722898582},{"$f":"IF('[10]II.2.Balance OSD-Activos'!S229=\"\",\"\",'[10]II.2.Balance OSD-Activos'!S229)","v":88590.173478832847},81833.027550409824,172178.19508087425,20.914664863094657,1.309566518662364,-11.747210820793864,0.73617815559186006,5.6383372579078994,3.3323870633435115,-0.38705031267978196,{"$f":"IF('[2]MONE(M)CAPARD'!AS371=\"\",\"\",'[2]MONE(M)CAPARD'!AS371)","v":2.25},{"$f":"IF('[2]MONE(M)CAPARD'!AT371=\"\",\"\",'[2]MONE(M)CAPARD'!AT371)","v":"n.a."},{"$f":"IF('[2]MONE(M)CAPARD'!AU371=\"\",\"\",'[2]MONE(M)CAPARD'!AU371)","v":2.75},{"$f":"IF('[2]MONE(M)CAPARD'!AV371=\"\",\"\",'[2]MONE(M)CAPARD'!AV371)","v":5.25},{"$f":"IF('[2]MONE(M)CAPARD'!AW371=\"\",\"\",'[2]MONE(M)CAPARD'!AW371)","v":"n.a."},{"$f":"IF('[2]MONE(M)CAPARD'!AX371=\"\",\"\",'[2]MONE(M)CAPARD'!AX371)","v":4.5},{"$f":"IF('[2]MONE(M)CAPARD'!AY371=\"\",\"\",'[2]MONE(M)CAPARD'!AY371)","v":"n.a."},{"$f":"IF('[2]FISCAL(M)'!$K371=\"\",\"\",'[2]FISCAL(M)'!$K371)","v":-988.91147632627644},{"$f":"IF('[2]FISCAL(M)'!$L371=\"\",\"\",'[2]FISCAL(M)'!$L371)","v":"n.d."},{"$f":"IF('[2]FISCAL(M)'!$AY371=\"\",\"\",'[2]FISCAL(M)'!$AY371)","v":156267.85853846662},{"$f":"IF('[2]FISCAL(M)'!$BI371=\"\",\"\",'[2]FISCAL(M)'!$BI371)","v":84758.82064776383},{"$f":"IF('[2]FISCAL(M)'!$BS371=\"\",\"\",'[2]FISCAL(M)'!$BS371)","v":71509.037890702777},{"$f":"IF('[2]FISCAL(M)'!$AZ371=\"\",\"\",'[2]FISCAL(M)'!$AZ371)","v":186100.1185384666},{"$f":"IF('[2]FISCAL(M)'!$BJ371=\"\",\"\",'[2]FISCAL(M)'!$BJ371)","v":91608.640647763823},{"$f":"IF('[2]FISCAL(M)'!$BT371=\"\",\"\",'[2]FISCAL(M)'!$BT371)","v":94491.477890702779},{"$f":"IF('[3]MONE(M)'!$AO371=\"\",\"\",'[3]MONE(M)'!$AO371)","v":21892731.591718059},{"$f":"IF('[4]MONE(M)'!$AO371=\"\",\"\",'[4]MONE(M)'!$AO371)","v":14116.425639100002},{"$f":"IF('[5]MONE(M)'!$AO371=\"\",\"\",'[5]MONE(M)'!$AO371)","v":216934.42896437462},{"$f":"+'[1]MONE(M)'!$AO371","v":393404.27814102813},{"$f":"IF('[6]MONE(M)'!$AO371=\"\",\"\",'[6]MONE(M)'!$AO371)","v":125488.80216099654},{"$f":"IF('[7]MONE(M)'!$AO371=\"\",\"\",'[7]MONE(M)'!$AO371)","v":1277813.36441686},{"$f":"IF('[8]MONE(M)'!$AO371=\"\",\"\",'[8]MONE(M)'!$AO371)","v":53395.190578830014},{"$f":"IF(BY364=\"\",\"\",((BY364/BY352)-1)*100)","v":-1.9554972066749166},{"$f":"IF(BZ364=\"\",\"\",((BZ364/BZ352)-1)*100)","v":5.3676765180285191},{"$f":"IF(CA364=\"\",\"\",((CA364/CA352)-1)*100)","v":5.9081431484056646},{"$f":"IF(CB364=\"\",\"\",((CB364/CB352)-1)*100)","v":8.5796460322174148},{"$f":"IF(CC364=\"\",\"\",((CC364/CC352)-1)*100)","v":-11.275165861062931},{"$f":"IF(CD364=\"\",\"\",((CD364/CD352)-1)*100)","v":13.272470977651007},{"$f":"IF(CE364=\"\",\"\",((CE364/CE352)-1)*100)","v":1.8375340670037543},{"$f":"'[2]FISCAL(M)'!$K371","v":-988.91147632627644},{"$f":"+'[2]REAL(A)'!$AO$40","v":280375.55734848662},{"$f":"IF(OR(CM364=\"n.d.\",CM364=\"\",CN364=\"\",CN364=\"n.d.\"),\"\",(CM364/CN364)*100)","v":-0.35270958912339523},{"$f":"IF('[2]FISCAL(M)'!$L371=\"\",\"\",'[2]FISCAL(M)'!$L371)","v":"n.d."},{"$f":"+'[2]REAL(A)'!$AP$40","v":334352.59023561911},"n.d.",165957.43542722537,{"$f":"'[2]Gráfico REM'!BG365","v":32658.320645883949},{"$f":"'[2]Gráfico REM'!BH365","v":124143.71340164541},{"$f":"'[2]Gráfico REM'!BI365","v":9155.401379696008},6.7184857216652016,16.226740018453235,4.8273661838349247,1.9086442631394585,243153.34819904537,{"$f":"'[2]Gráfico REM'!BK365","v":34953.881260873946},{"$f":"'[2]Gráfico REM'!BL365","v":177538.90398047541},{"$f":"'[2]Gráfico REM'!BM365","v":30660.562957696005},4.4313461385810493,14.847520624920607,3.9098698543132082,-2.7945077709047861]
[2020,"marzo","2020-marzo",{"$f":"IF('[2]REAL IPC(M)'!$AL372=\"\",\"\",+'[2]REAL IPC(M)'!$AL372)","v":2.1388656946496276},{"$f":"IF('[2]REAL IPC(M)'!$BE372=\"\",\"\",+'[2]REAL IPC(M)'!$BE372)","v":3.4912827085673781},{"$f":"IF('[2]REAL IPC(M)'!$AM372=\"\",\"\",+'[2]REAL IPC(M)'!$AM372)","v":1.693031768858666},{"$f":"IF('[2]REAL IPC(M)'!$BI372=\"\",\"\",+'[2]REAL IPC(M)'!$BI372)","v":2.9062083957501317},{"$f":"IF('[2]REAL IMAE(M)'!BJ372=\"\",\"\",'[2]REAL IMAE(M)'!BJ372)","v":-7.6705446823447492},{"$f":"IF('[2]REAL IMAE(M)'!BK372=\"\",\"\",'[2]REAL IMAE(M)'!BK372)","v":1.5198710459583653},{"$f":"IF('[2]REAL IMAE(M)'!BN372=\"\",\"\",'[2]REAL IMAE(M)'!BN372)","v":-9.3557429828641681},{"$f":"IF('[2]REAL IMAE(M)'!BO372=\"\",\"\",'[2]REAL IMAE(M)'!BO372)","v":0.58436727876667316},{"$f":"IF('[2]EXT RIN(M)'!$K372=\"\",\"\",'[2]EXT RIN(M)'!$K372)","v":45039.837708020001},null,{"$f":"IF('[2]EXT RIN(M)'!$L372=\"\",\"\",'[2]EXT RIN(M)'!$L372)","v":48263.564983589997},null,{"$f":"IF('[2]MONE(M)CARD'!EG372=\"\",\"\",'[2]MONE(M)CARD'!EG372)","v":43539.936387316724},{"$f":"IF('[2]MONE(M)CARD'!EK372=\"\",\"\",'[2]MONE(M)CARD'!EK372)","v":61264.333703772842},{"$f":"IF('[2]MONE(M)CARD'!EP372=\"\",\"\",'[2]MONE(M)CARD'!EP372)","v":34070.210902468214},{"$f":"IF('[2]MONE(M)CARD'!ES372=\"\",\"\",'[2]MONE(M)CARD'!ES372)","v":14.712032649823236},{"$f":"IF('[2]MONE(M)CARD'!EV372=\"\",\"\",'[2]MONE(M)CARD'!EV372)","v":9.3309726218939524},{"$f":"IF('[2]MONE(M)CARD'!EZ372=\"\",\"\",'[2]MONE(M)CARD'!EZ372)","v":8.8468893036226959},{"$f":"IF('[2]MONE(M)CAPARD'!FC372=\"\",\"\",'[2]MONE(M)CAPARD'!FC372)","v":51655.618377176725},{"$f":"IF('[2]MONE(M)CAPARD'!FG372=\"\",\"\",'[2]MONE(M)CAPARD'!FG372)","v":95683.542961532832},{"$f":"IF('[2]MONE(M)CAPARD'!FL372=\"\",\"\",'[2]MONE(M)CAPARD'!FL372)","v":34070.210902468214},{"$f":"IF('[2]MONE(M)CAPARD'!FO372=\"\",\"\",'[2]MONE(M)CAPARD'!FO372)","v":12.742681913762532},{"$f":"IF('[2]MONE(M)CAPARD'!FR372=\"\",\"\",'[2]MONE(M)CAPARD'!FR372)","v":7.679089549113649},{"$f":"IF('[2]MONE(M)CAPARD'!FV372=\"\",\"\",'[2]MONE(M)CAPARD'!FV372)","v":7.6236025469784252},{"$f":"IF('[2]MONE(M)CARD'!FV372=\"\",\"\",'[2]MONE(M)CARD'!FV372)","v":1731.9444916799457},{"$f":"IF('[2]MONE(M)CARD'!GD372=\"\",\"\",'[2]MONE(M)CARD'!GD372)","v":119.488585842364},{"$f":"IF('[2]MONE(M)CARD'!GE372=\"\",\"\",'[2]MONE(M)CARD'!GE372)","v":13995.090983102018},16.040050139125263,{"$f":"IF('[9]II.2.Balance OSD-Activos'!J230=\"\",\"\",'[9]II.2.Balance OSD-Activos'!J230)","v":307.55819882269816},{"$f":"IF('[9]II.2.Balance OSD-Activos'!N230=\"\",\"\",'[9]II.2.Balance OSD-Activos'!N230)","v":1236.1792200556181},{"$f":"IF('[9]II.2.Balance OSD-Activos'!R230=\"\",\"\",'[9]II.2.Balance OSD-Activos'!R230)","v":56732.635383431538},{"$f":"IF('[9]II.2.Balance OSD-Activos'!S230=\"\",\"\",'[9]II.2.Balance OSD-Activos'!S230)","v":61761.283872816675},57040.193582254236,120037.65667512652,43.410929909610239,3.0196184339652543,-18.030606095689773,2.862561401276853,5.091094990175149,3.7978004872774695,-0.30475087477410678,{"$f":"IF('[2]MONE(M)CAPARD'!GS372=\"\",\"\",'[2]MONE(M)CAPARD'!GS372)","v":27070.509310733236},{"$f":"IF('[2]MONE(M)CARD'!HA372=\"\",\"\",'[2]MONE(M)CAPARD'!HA372)","v":16346.245769262016},{"$f":"IF('[2]MONE(M)CAPARD'!HB372=\"\",\"\",'[2]MONE(M)CAPARD'!HB372)","v":10724.26354147122},"n.d.",{"$f":"IF('[10]II.2.Balance OSD-Activos'!J230=\"\",\"\",'[10]II.2.Balance OSD-Activos'!J230)","v":2666.6598607426977},{"$f":"IF('[10]II.2.Balance OSD-Activos'!N230=\"\",\"\",'[10]II.2.Balance OSD-Activos'!N230)","v":1854.1844853656182},{"$f":"IF('[10]II.2.Balance OSD-Activos'!R230=\"\",\"\",'[10]II.2.Balance OSD-Activos'!R230)","v":80121.706042891543},{"$f":"IF('[10]II.2.Balance OSD-Activos'!S230=\"\",\"\",'[10]II.2.Balance OSD-Activos'!S230)","v":88109.951842096692},82788.365903634243,172752.50223109656,11.882698927629608,1.3868161131965318,-7.3668140114064311,1.0712422125037424,5.1832319914838498,3.1816233029440033,-0.15076376039950823,{"$f":"IF('[2]MONE(M)CAPARD'!AS372=\"\",\"\",'[2]MONE(M)CAPARD'!AS372)","v":1.25},{"$f":"IF('[2]MONE(M)CAPARD'!AT372=\"\",\"\",'[2]MONE(M)CAPARD'!AT372)","v":"n.a."},{"$f":"IF('[2]MONE(M)CAPARD'!AU372=\"\",\"\",'[2]MONE(M)CAPARD'!AU372)","v":2},{"$f":"IF('[2]MONE(M)CAPARD'!AV372=\"\",\"\",'[2]MONE(M)CAPARD'!AV372)","v":4.5},{"$f":"IF('[2]MONE(M)CAPARD'!AW372=\"\",\"\",'[2]MONE(M)CAPARD'!AW372)","v":"n.a."},{"$f":"IF('[2]MONE(M)CAPARD'!AX372=\"\",\"\",'[2]MONE(M)CAPARD'!AX372)","v":3.5},{"$f":"IF('[2]MONE(M)CAPARD'!AY372=\"\",\"\",'[2]MONE(M)CAPARD'!AY372)","v":"n.a."},{"$f":"IF('[2]FISCAL(M)'!$K372=\"\",\"\",'[2]FISCAL(M)'!$K372)","v":-2125.863133584875},{"$f":"IF('[2]FISCAL(M)'!$L372=\"\",\"\",'[2]FISCAL(M)'!$L372)","v":-3305.363133584875},{"$f":"IF('[2]FISCAL(M)'!$AY372=\"\",\"\",'[2]FISCAL(M)'!$AY372)","v":156090.34538472182},{"$f":"IF('[2]FISCAL(M)'!$BI372=\"\",\"\",'[2]FISCAL(M)'!$BI372)","v":84213.246105638129},{"$f":"IF('[2]FISCAL(M)'!$BS372=\"\",\"\",'[2]FISCAL(M)'!$BS372)","v":71877.09927908369},{"$f":"IF('[2]FISCAL(M)'!$AZ372=\"\",\"\",'[2]FISCAL(M)'!$AZ372)","v":185935.5453847218},{"$f":"IF('[2]FISCAL(M)'!$BJ372=\"\",\"\",'[2]FISCAL(M)'!$BJ372)","v":91068.066105638136},{"$f":"IF('[2]FISCAL(M)'!$BT372=\"\",\"\",'[2]FISCAL(M)'!$BT372)","v":94867.479279083695},{"$f":"IF('[3]MONE(M)'!$AO372=\"\",\"\",'[3]MONE(M)'!$AO372)","v":22105003.91057907},{"$f":"IF('[4]MONE(M)'!$AO372=\"\",\"\",'[4]MONE(M)'!$AO372)","v":14274.276373519999},{"$f":"IF('[5]MONE(M)'!$AO372=\"\",\"\",'[5]MONE(M)'!$AO372)","v":222075.93682207522},{"$f":"+'[1]MONE(M)'!$AO372","v":395447.55821512325},{"$f":"IF('[6]MONE(M)'!$AO372=\"\",\"\",'[6]MONE(M)'!$AO372)","v":125749.82383803197},{"$f":"IF('[7]MONE(M)'!$AO372=\"\",\"\",'[7]MONE(M)'!$AO372)","v":1280219.9285854099},{"$f":"IF('[8]MONE(M)'!$AO372=\"\",\"\",'[8]MONE(M)'!$AO372)","v":53682.633953929995},-0.63281508084093163,6.3432273346886392,7.6019944479178703,8.4780895397383418,-9.2207739229426604,10.526650515259718,1.8269167933354202,{"$f":"'[2]FISCAL(M)'!$K372","v":-2125.863133584875},{"$f":"+'[2]REAL(A)'!$AO$40","v":280375.55734848662},-0.75821985114864354,{"$f":"IF('[2]FISCAL(M)'!$L372=\"\",\"\",'[2]FISCAL(M)'!$L372)","v":-3305.363133584875},{"$f":"+'[2]REAL(A)'!$AP$40","v":334352.59023561911},-0.98858607054773451,165917.18278745978,{"$f":"'[2]Gráfico REM'!BG366","v":32748.693647047323},{"$f":"'[2]Gráfico REM'!BH366","v":124245.46733008538},{"$f":"'[2]Gráfico REM'!BI366","v":8923.0218103270818},5.5836648196433636,15.458418934107755,3.7742232422294242,-1.4257308092119669,242881.98496474978,{"$f":"'[2]Gráfico REM'!BK366","v":34972.273040247324},{"$f":"'[2]Gráfico REM'!BL366","v":177928.10128401537},{"$f":"'[2]Gráfico REM'!BM366","v":29981.610640487081},3.5721024372146859,13.797204452018796,3.1789013146275025,-4.2943880417714464]
[2020,"abril","2020-abril",{"$f":"IF('[2]REAL IPC(M)'!$AL373=\"\",\"\",+'[2]REAL IPC(M)'!$AL373)","v":1.4049428443706491},{"$f":"IF('[2]REAL IPC(M)'!$BE373=\"\",\"\",+'[2]REAL IPC(M)'!$BE373)","v":3.5741852758681913},{"$f":"IF('[2]REAL IPC(M)'!$AM373=\"\",\"\",+'[2]REAL IPC(M)'!$AM373)","v":0.83880616424996113},{"$f":"IF('[2]REAL IPC(M)'!$BI373=\"\",\"\",+'[2]REAL IPC(M)'!$BI373)","v":2.9823757680715213},{"$f":"IF('[2]REAL IMAE(M)'!BJ373=\"\",\"\",'[2]REAL IMAE(M)'!BJ373)","v":-13.244959997208595},{"$f":"IF('[2]REAL IMAE(M)'!BK373=\"\",\"\",'[2]REAL IMAE(M)'!BK373)","v":1.574037897983227},{"$f":"IF('[2]REAL IMAE(M)'!BN373=\"\",\"\",'[2]REAL IMAE(M)'!BN373)","v":-17.289721197879949},{"$f":"IF('[2]REAL IMAE(M)'!BO373=\"\",\"\",'[2]REAL IMAE(M)'!BO373)","v":0.65219772817994848},{"$f":"IF('[2]EXT RIN(M)'!$K373=\"\",\"\",'[2]EXT RIN(M)'!$K373)","v":45983.061426110231},null,{"$f":"IF('[2]EXT RIN(M)'!$L373=\"\",\"\",'[2]EXT RIN(M)'!$L373)","v":51616.40378145023},null,{"$f":"IF('[2]MONE(M)CARD'!EG373=\"\",\"\",'[2]MONE(M)CARD'!EG373)","v":45387.95151133008},{"$f":"IF('[2]MONE(M)CARD'!EK373=\"\",\"\",'[2]MONE(M)CARD'!EK373)","v":61197.844335364156},{"$f":"IF('[2]MONE(M)CARD'!EP373=\"\",\"\",'[2]MONE(M)CARD'!EP373)","v":34308.843317718507},{"$f":"IF('[2]MONE(M)CARD'!ES373=\"\",\"\",'[2]MONE(M)CARD'!ES373)","v":20.176395479124555},{"$f":"IF('[2]MONE(M)CARD'!EV373=\"\",\"\",'[2]MONE(M)CARD'!EV373)","v":10.624967201038583},{"$f":"IF('[2]MONE(M)CARD'!EZ373=\"\",\"\",'[2]MONE(M)CARD'!EZ373)","v":10.05617788769808},{"$f":"IF('[2]MONE(M)CAPARD'!FC373=\"\",\"\",'[2]MONE(M)CAPARD'!FC373)","v":53461.949631720076},{"$f":"IF('[2]MONE(M)CAPARD'!FG373=\"\",\"\",'[2]MONE(M)CAPARD'!FG373)","v":95902.961918084155},{"$f":"IF('[2]MONE(M)CAPARD'!FL373=\"\",\"\",'[2]MONE(M)CAPARD'!FL373)","v":34308.843317718507},{"$f":"IF('[2]MONE(M)CAPARD'!FO373=\"\",\"\",'[2]MONE(M)CAPARD'!FO373)","v":16.837526832778906},{"$f":"IF('[2]MONE(M)CAPARD'!FR373=\"\",\"\",'[2]MONE(M)CAPARD'!FR373)","v":8.6574842373661642},{"$f":"IF('[2]MONE(M)CAPARD'!FV373=\"\",\"\",'[2]MONE(M)CAPARD'!FV373)","v":8.5953868946617273},{"$f":"IF('[2]MONE(M)CARD'!FV373=\"\",\"\",'[2]MONE(M)CARD'!FV373)","v":1861.6226465336183},{"$f":"IF('[2]MONE(M)CARD'!GD373=\"\",\"\",'[2]MONE(M)CARD'!GD373)","v":178.51354531071343},{"$f":"IF('[2]MONE(M)CARD'!GE373=\"\",\"\",'[2]MONE(M)CARD'!GE373)","v":14440.706639102629},18.685092653668622,{"$f":"IF('[9]II.2.Balance OSD-Activos'!J231=\"\",\"\",'[9]II.2.Balance OSD-Activos'!J231)","v":353.60038146853788},{"$f":"IF('[9]II.2.Balance OSD-Activos'!N231=\"\",\"\",'[9]II.2.Balance OSD-Activos'!N231)","v":1220.5000154587699},{"$f":"IF('[9]II.2.Balance OSD-Activos'!R231=\"\",\"\",'[9]II.2.Balance OSD-Activos'!R231)","v":57630.88530904759},{"$f":"IF('[9]II.2.Balance OSD-Activos'!S231=\"\",\"\",'[9]II.2.Balance OSD-Activos'!S231)","v":61592.993644443399},57984.485690516129,120797.97935041829,{"$f":"IF(OR(AF366=\"\",AF354=\"\"),\"\",((AF366/AF354)-1)*100)","v":76.046263366562812},4.5360624347274392,-17.788145106260334,4.2761759368831642,4.2279649103710515,4.0935804458704483,0.29577995859297879,{"$f":"IF('[2]MONE(M)CAPARD'!GS373=\"\",\"\",'[2]MONE(M)CAPARD'!GS373)","v":27438.993501407833},{"$f":"IF('[2]MONE(M)CARD'!HA373=\"\",\"\",'[2]MONE(M)CAPARD'!HA373)","v":16564.793199192631},{"$f":"IF('[2]MONE(M)CAPARD'!HB373=\"\",\"\",'[2]MONE(M)CAPARD'!HB373)","v":10874.200302215202},"n.d.",{"$f":"IF('[10]II.2.Balance OSD-Activos'!J231=\"\",\"\",'[10]II.2.Balance OSD-Activos'!J231)","v":2708.9469918785376},{"$f":"IF('[10]II.2.Balance OSD-Activos'!N231=\"\",\"\",'[10]II.2.Balance OSD-Activos'!N231)","v":1844.8566185987697},{"$f":"IF('[10]II.2.Balance OSD-Activos'!R231=\"\",\"\",'[10]II.2.Balance OSD-Activos'!R231)","v":81166.371420177587},{"$f":"IF('[10]II.2.Balance OSD-Activos'!S231=\"\",\"\",'[10]II.2.Balance OSD-Activos'!S231)","v":87852.46704015338},83875.31841205612,173572.64207080827,16.419456250337873,2.6598225122655528,-4.2472474495201755,2.2564591639625542,4.342457024456059,3.4246887816339999,0.24306547868999662,{"$f":"IF('[2]MONE(M)CAPARD'!AS373=\"\",\"\",'[2]MONE(M)CAPARD'!AS373)","v":1.25},{"$f":"IF('[2]MONE(M)CAPARD'!AT373=\"\",\"\",'[2]MONE(M)CAPARD'!AT373)","v":"n.a."},{"$f":"IF('[2]MONE(M)CAPARD'!AU373=\"\",\"\",'[2]MONE(M)CAPARD'!AU373)","v":2},{"$f":"IF('[2]MONE(M)CAPARD'!AV373=\"\",\"\",'[2]MONE(M)CAPARD'!AV373)","v":4.5},{"$f":"IF('[2]MONE(M)CAPARD'!AW373=\"\",\"\",'[2]MONE(M)CAPARD'!AW373)","v":6},{"$f":"IF('[2]MONE(M)CAPARD'!AX373=\"\",\"\",'[2]MONE(M)CAPARD'!AX373)","v":3.5},{"$f":"IF('[2]MONE(M)CAPARD'!AY373=\"\",\"\",'[2]MONE(M)CAPARD'!AY373)","v":"n.a."},{"$f":"IF('[2]FISCAL(M)'!$K373=\"\",\"\",'[2]FISCAL(M)'!$K373)","v":-3266.4708984483536},{"$f":"IF('[2]FISCAL(M)'!$L373=\"\",\"\",'[2]FISCAL(M)'!$L373)","v":"n.d."},{"$f":"IF('[2]FISCAL(M)'!$AY373=\"\",\"\",'[2]FISCAL(M)'!$AY373)","v":159451.89435133076},{"$f":"IF('[2]FISCAL(M)'!$BI373=\"\",\"\",'[2]FISCAL(M)'!$BI373)","v":85310.591162012497},{"$f":"IF('[2]FISCAL(M)'!$BS373=\"\",\"\",'[2]FISCAL(M)'!$BS373)","v":74141.303189318292},{"$f":"IF('[2]FISCAL(M)'!$AZ373=\"\",\"\",'[2]FISCAL(M)'!$AZ373)","v":191762.38435133075},{"$f":"IF('[2]FISCAL(M)'!$BJ373=\"\",\"\",'[2]FISCAL(M)'!$BJ373)","v":92130.41116201249},{"$f":"IF('[2]FISCAL(M)'!$BT373=\"\",\"\",'[2]FISCAL(M)'!$BT373)","v":99631.973189318291},{"$f":"IF('[3]MONE(M)'!$AO373=\"\",\"\",'[3]MONE(M)'!$AO373)","v":21807261.442182757},{"$f":"IF('[4]MONE(M)'!$AO373=\"\",\"\",'[4]MONE(M)'!$AO373)","v":14312.26813343},{"$f":"IF('[5]MONE(M)'!$AO373=\"\",\"\",'[5]MONE(M)'!$AO373)","v":223963.90581514587},{"$f":"+'[1]MONE(M)'!$AO373","v":398260.32642811537},{"$f":"IF('[6]MONE(M)'!$AO373=\"\",\"\",'[6]MONE(M)'!$AO373)","v":122152.09898141396},{"$f":"IF('[7]MONE(M)'!$AO373=\"\",\"\",'[7]MONE(M)'!$AO373)","v":1296522.0614603101},{"$f":"IF('[8]MONE(M)'!$AO373=\"\",\"\",'[8]MONE(M)'!$AO373)","v":53715.252187639991},-2.0086836719972911,6.0742415060164978,7.8943932078250789,8.846534904633053,-9.6927837049300294,11.804081891661045,1.8089029924701183,{"$f":"'[2]FISCAL(M)'!$K373","v":-3266.4708984483536},{"$f":"+'[2]REAL(A)'!$AO$40","v":280375.55734848662},-1.1650341168607525,{"$f":"IF('[2]FISCAL(M)'!$L373=\"\",\"\",'[2]FISCAL(M)'!$L373)","v":"n.d."},{"$f":"+'[2]REAL(A)'!$AP$40","v":334352.59023561911},"n.d.",166562.07557734332,{"$f":"'[2]Gráfico REM'!BG367","v":32671.148732125883},{"$f":"'[2]Gráfico REM'!BH367","v":124932.57387140507},{"$f":"'[2]Gráfico REM'!BI367","v":8958.3529738123798},5.2682506986897693,13.488407245667954,3.91997189119071,-2.8192570400774608,243379.92760495332,{"$f":"'[2]Gráfico REM'!BK367","v":34840.631168855885},{"$f":"'[2]Gráfico REM'!BL367","v":178647.82605904507},{"$f":"'[2]Gráfico REM'!BM367","v":29891.470377052377},3.3502457005754493,11.954829235156561,3.276075104628462,-4.7718408469501261]
[2020,"mayo ","2020-mayo ",{"$f":"IF('[2]REAL IPC(M)'!$AL374=\"\",\"\",+'[2]REAL IPC(M)'!$AL374)","v":1.1921458625525849},{"$f":"IF('[2]REAL IPC(M)'!$BE374=\"\",\"\",+'[2]REAL IPC(M)'!$BE374)","v":3.6627497250799834},{"$f":"IF('[2]REAL IPC(M)'!$AM374=\"\",\"\",+'[2]REAL IPC(M)'!$AM374)","v":0.64269021033498408},{"$f":"IF('[2]REAL IPC(M)'!$BI374=\"\",\"\",+'[2]REAL IPC(M)'!$BI374)","v":3.0650563729457403},{"$f":"IF('[2]REAL IMAE(M)'!BJ374=\"\",\"\",'[2]REAL IMAE(M)'!BJ374)","v":-12.793125332173217},{"$f":"IF('[2]REAL IMAE(M)'!BK374=\"\",\"\",'[2]REAL IMAE(M)'!BK374)","v":1.6496901190516278},{"$f":"IF('[2]REAL IMAE(M)'!BN374=\"\",\"\",'[2]REAL IMAE(M)'!BN374)","v":-17.968418087487237},{"$f":"IF('[2]REAL IMAE(M)'!BO374=\"\",\"\",'[2]REAL IMAE(M)'!BO374)","v":0.75263435092598474},{"$f":"IF('[2]EXT RIN(M)'!$K374=\"\",\"\",'[2]EXT RIN(M)'!$K374)","v":45626.928408744338},null,{"$f":"IF('[2]EXT RIN(M)'!$L374=\"\",\"\",'[2]EXT RIN(M)'!$L374)","v":51731.122347164339},null,{"$f":"IF('[2]MONE(M)CARD'!EG374=\"\",\"\",'[2]MONE(M)CARD'!EG374)","v":46094.034645979569},{"$f":"IF('[2]MONE(M)CARD'!EK374=\"\",\"\",'[2]MONE(M)CARD'!EK374)","v":61430.939411444735},{"$f":"IF('[2]MONE(M)CARD'!EP374=\"\",\"\",'[2]MONE(M)CARD'!EP374)","v":35508.985135161245},{"$f":"IF('[2]MONE(M)CARD'!ES374=\"\",\"\",'[2]MONE(M)CARD'!ES374)","v":22.788946894804528},{"$f":"IF('[2]MONE(M)CARD'!EV374=\"\",\"\",'[2]MONE(M)CARD'!EV374)","v":11.556473570868153},{"$f":"IF('[2]MONE(M)CARD'!EZ374=\"\",\"\",'[2]MONE(M)CARD'!EZ374)","v":11.570156213425143},{"$f":"IF('[2]MONE(M)CAPARD'!FC374=\"\",\"\",'[2]MONE(M)CAPARD'!FC374)","v":54171.167980909566},{"$f":"IF('[2]MONE(M)CAPARD'!FG374=\"\",\"\",'[2]MONE(M)CAPARD'!FG374)","v":96214.055307014714},{"$f":"IF('[2]MONE(M)CAPARD'!FL374=\"\",\"\",'[2]MONE(M)CAPARD'!FL374)","v":35508.985135161231},{"$f":"IF('[2]MONE(M)CAPARD'!FO374=\"\",\"\",'[2]MONE(M)CAPARD'!FO374)","v":19.192620423568485},{"$f":"IF('[2]MONE(M)CAPARD'!FR374=\"\",\"\",'[2]MONE(M)CAPARD'!FR374)","v":9.3582159639610687},{"$f":"IF('[2]MONE(M)CAPARD'!FV374=\"\",\"\",'[2]MONE(M)CAPARD'!FV374)","v":9.7815951965337433},{"$f":"IF('[2]MONE(M)CARD'!FV374=\"\",\"\",'[2]MONE(M)CARD'!FV374)","v":1899.6785695323836},{"$f":"IF('[2]MONE(M)CARD'!GD374=\"\",\"\",'[2]MONE(M)CARD'!GD374)","v":109.24319233752489},{"$f":"IF('[2]MONE(M)CARD'!GE374=\"\",\"\",'[2]MONE(M)CARD'!GE374)","v":13876.706172508506},4.9039530744203308,{"$f":"IF('[9]II.2.Balance OSD-Activos'!J232=\"\",\"\",'[9]II.2.Balance OSD-Activos'!J232)","v":363.75629617224376},{"$f":"IF('[9]II.2.Balance OSD-Activos'!N232=\"\",\"\",'[9]II.2.Balance OSD-Activos'!N232)","v":1154.9220681014967},{"$f":"IF('[9]II.2.Balance OSD-Activos'!R232=\"\",\"\",'[9]II.2.Balance OSD-Activos'!R232)","v":57536.18393010259},{"$f":"IF('[9]II.2.Balance OSD-Activos'!S232=\"\",\"\",'[9]II.2.Balance OSD-Activos'!S232)","v":61077.715683855386},57899.940226274834,120132.57797823171,79.191055942516144,4.5499900216186662,-22.580253595984423,4.2753822905050365,2.7307661736236888,3.2722677043304671,-0.82131274153998124,{"$f":"IF('[2]MONE(M)CAPARD'!GS374=\"\",\"\",'[2]MONE(M)CAPARD'!GS374)","v":27486.355987391016},{"$f":"IF('[2]MONE(M)CARD'!HA374=\"\",\"\",'[2]MONE(M)CAPARD'!HA374)","v":16055.616932938507},{"$f":"IF('[2]MONE(M)CAPARD'!HB374=\"\",\"\",'[2]MONE(M)CAPARD'!HB374)","v":11430.73905445251},"n.d.",{"$f":"IF('[10]II.2.Balance OSD-Activos'!J232=\"\",\"\",'[10]II.2.Balance OSD-Activos'!J232)","v":2722.0124778422437},{"$f":"IF('[10]II.2.Balance OSD-Activos'!N232=\"\",\"\",'[10]II.2.Balance OSD-Activos'!N232)","v":1773.1429364114965},{"$f":"IF('[10]II.2.Balance OSD-Activos'!R232=\"\",\"\",'[10]II.2.Balance OSD-Activos'!R232)","v":80959.645103892588},{"$f":"IF('[10]II.2.Balance OSD-Activos'!S232=\"\",\"\",'[10]II.2.Balance OSD-Activos'!S232)","v":87273.711115635379},83681.657581734835,172728.51163378172,14.78618621440293,3.0890606967462819,-8.1237989190804498,2.7370643214908341,3.0655856996702369,2.948236188023845,-0.47645259361015491,{"$f":"IF('[2]MONE(M)CAPARD'!AS374=\"\",\"\",'[2]MONE(M)CAPARD'!AS374)","v":1.25},{"$f":"IF('[2]MONE(M)CAPARD'!AT374=\"\",\"\",'[2]MONE(M)CAPARD'!AT374)","v":"n.a."},{"$f":"IF('[2]MONE(M)CAPARD'!AU374=\"\",\"\",'[2]MONE(M)CAPARD'!AU374)","v":2},{"$f":"IF('[2]MONE(M)CAPARD'!AV374=\"\",\"\",'[2]MONE(M)CAPARD'!AV374)","v":4.5},{"$f":"IF('[2]MONE(M)CAPARD'!AW374=\"\",\"\",'[2]MONE(M)CAPARD'!AW374)","v":5.5},{"$f":"IF('[2]MONE(M)CAPARD'!AX374=\"\",\"\",'[2]MONE(M)CAPARD'!AX374)","v":3.5},{"$f":"IF('[2]MONE(M)CAPARD'!AY374=\"\",\"\",'[2]MONE(M)CAPARD'!AY374)","v":"n.a."},{"$f":"IF('[2]FISCAL(M)'!$K374=\"\",\"\",'[2]FISCAL(M)'!$K374)","v":-5485.8250659715814},{"$f":"IF('[2]FISCAL(M)'!$L374=\"\",\"\",'[2]FISCAL(M)'!$L374)","v":"n.d."},{"$f":"IF('[2]FISCAL(M)'!$AY374=\"\",\"\",'[2]FISCAL(M)'!$AY374)","v":160158.64103704662},{"$f":"IF('[2]FISCAL(M)'!$BI374=\"\",\"\",'[2]FISCAL(M)'!$BI374)","v":85491.959592933752},{"$f":"IF('[2]FISCAL(M)'!$BS374=\"\",\"\",'[2]FISCAL(M)'!$BS374)","v":74666.681444112837},{"$f":"IF('[2]FISCAL(M)'!$AZ374=\"\",\"\",'[2]FISCAL(M)'!$AZ374)","v":192908.99103704662},{"$f":"IF('[2]FISCAL(M)'!$BJ374=\"\",\"\",'[2]FISCAL(M)'!$BJ374)","v":92291.939592933748},{"$f":"IF('[2]FISCAL(M)'!$BT374=\"\",\"\",'[2]FISCAL(M)'!$BT374)","v":100617.05144411283},{"$f":"IF('[3]MONE(M)'!$AO374=\"\",\"\",'[3]MONE(M)'!$AO374)","v":21962843.53539509},{"$f":"IF('[4]MONE(M)'!$AO374=\"\",\"\",'[4]MONE(M)'!$AO374)","v":14335.814131730001},{"$f":"IF('[5]MONE(M)'!$AO374=\"\",\"\",'[5]MONE(M)'!$AO374)","v":224301.43059929917},{"$f":"+'[1]MONE(M)'!$AO374","v":400027.4145674695},{"$f":"IF('[6]MONE(M)'!$AO374=\"\",\"\",'[6]MONE(M)'!$AO374)","v":120997.29928182665},{"$f":"IF('[7]MONE(M)'!$AO374=\"\",\"\",'[7]MONE(M)'!$AO374)","v":1322004.8554127801},{"$f":"IF('[8]MONE(M)'!$AO374=\"\",\"\",'[8]MONE(M)'!$AO374)","v":53507.692154499993},-1.014614995874108,6.1864760551375575,7.7042497649167707,8.4497522487569476,-7.9681401418362992,13.225688766196498,2.1061950124160678,{"$f":"'[2]FISCAL(M)'!$K374","v":-5485.8250659715814},{"$f":"+'[2]REAL(A)'!$AO$40","v":280375.55734848662},-1.9565988982246036,{"$f":"IF('[2]FISCAL(M)'!$L374=\"\",\"\",'[2]FISCAL(M)'!$L374)","v":"n.d."},{"$f":"+'[2]REAL(A)'!$AP$40","v":334352.59023561911},"n.d.",166991.73508774885,{"$f":"'[2]Gráfico REM'!BG368","v":33496.130861352969},{"$f":"'[2]Gráfico REM'!BH368","v":124417.38898149107},{"$f":"'[2]Gráfico REM'!BI368","v":9078.2152449048117},5.2042923848039324,15.397628588082934,3.137028165043465,7.8295510828074733E-2,243864.00339238884,{"$f":"'[2]Gráfico REM'!BK368","v":35673.632735182968},{"$f":"'[2]Gráfico REM'!BL368","v":177925.08113599106},{"$f":"'[2]Gráfico REM'!BM368","v":30265.289521214811},3.4610662839621442,12.826474843369429,2.8248421933356527,-2.5299573334253034]
[2020,"junio ","2020-junio ",{"$f":"IF('[2]REAL IPC(M)'!$AL375=\"\",\"\",+'[2]REAL IPC(M)'!$AL375)","v":2.0302953156822845},{"$f":"IF('[2]REAL IPC(M)'!$BE375=\"\",\"\",+'[2]REAL IPC(M)'!$BE375)","v":3.7567603703769104},{"$f":"IF('[2]REAL IPC(M)'!$AM375=\"\",\"\",+'[2]REAL IPC(M)'!$AM375)","v":1.478599221789878},{"$f":"IF('[2]REAL IPC(M)'!$BI375=\"\",\"\",+'[2]REAL IPC(M)'!$BI375)","v":3.1541000043555423},{"$f":"IF('[2]REAL IMAE(M)'!BJ375=\"\",\"\",'[2]REAL IMAE(M)'!BJ375)","v":-9.7857978181443492},{"$f":"IF('[2]REAL IMAE(M)'!BK375=\"\",\"\",'[2]REAL IMAE(M)'!BK375)","v":1.7470202139139523},{"$f":"IF('[2]REAL IMAE(M)'!BN375=\"\",\"\",'[2]REAL IMAE(M)'!BN375)","v":-14.776196323685319},{"$f":"IF('[2]REAL IMAE(M)'!BO375=\"\",\"\",'[2]REAL IMAE(M)'!BO375)","v":0.88659523716323463},{"$f":"IF('[2]EXT RIN(M)'!$K375=\"\",\"\",'[2]EXT RIN(M)'!$K375)","v":45766.896163788471},null,{"$f":"IF('[2]EXT RIN(M)'!$L375=\"\",\"\",'[2]EXT RIN(M)'!$L375)","v":51676.59941306847},null,{"$f":"IF('[2]MONE(M)CARD'!EG375=\"\",\"\",'[2]MONE(M)CARD'!EG375)","v":47192.189506511379},{"$f":"IF('[2]MONE(M)CARD'!EK375=\"\",\"\",'[2]MONE(M)CARD'!EK375)","v":62066.535634543718},{"$f":"IF('[2]MONE(M)CARD'!EP375=\"\",\"\",'[2]MONE(M)CARD'!EP375)","v":35753.128737130814},{"$f":"IF('[2]MONE(M)CARD'!ES375=\"\",\"\",'[2]MONE(M)CARD'!ES375)","v":24.181334606450378},{"$f":"IF('[2]MONE(M)CARD'!EV375=\"\",\"\",'[2]MONE(M)CARD'!EV375)","v":11.991859938222493},{"$f":"IF('[2]MONE(M)CARD'!EZ375=\"\",\"\",'[2]MONE(M)CARD'!EZ375)","v":12.593994013603549},{"$f":"IF('[2]MONE(M)CAPARD'!FC375=\"\",\"\",'[2]MONE(M)CAPARD'!FC375)","v":55436.325712821381},{"$f":"IF('[2]MONE(M)CAPARD'!FG375=\"\",\"\",'[2]MONE(M)CAPARD'!FG375)","v":97124.905875443714},{"$f":"IF('[2]MONE(M)CAPARD'!FL375=\"\",\"\",'[2]MONE(M)CAPARD'!FL375)","v":35753.128737130814},{"$f":"IF('[2]MONE(M)CAPARD'!FO375=\"\",\"\",'[2]MONE(M)CAPARD'!FO375)","v":20.86244158088455},{"$f":"IF('[2]MONE(M)CAPARD'!FR375=\"\",\"\",'[2]MONE(M)CAPARD'!FR375)","v":9.9383516889047563},{"$f":"IF('[2]MONE(M)CAPARD'!FV375=\"\",\"\",'[2]MONE(M)CAPARD'!FV375)","v":10.771786826728169},{"$f":"IF('[2]MONE(M)CARD'!FV375=\"\",\"\",'[2]MONE(M)CARD'!FV375)","v":1907.9979425277852},{"$f":"IF('[2]MONE(M)CARD'!GD375=\"\",\"\",'[2]MONE(M)CARD'!GD375)","v":129.98080462929224},{"$f":"IF('[2]MONE(M)CARD'!GE375=\"\",\"\",'[2]MONE(M)CARD'!GE375)","v":14265.065981479152},18.558948544100229,{"$f":"IF('[9]II.2.Balance OSD-Activos'!J233=\"\",\"\",'[9]II.2.Balance OSD-Activos'!J233)","v":373.02172446546558},{"$f":"IF('[9]II.2.Balance OSD-Activos'!N233=\"\",\"\",'[9]II.2.Balance OSD-Activos'!N233)","v":1112.8685460232948},{"$f":"IF('[9]II.2.Balance OSD-Activos'!R233=\"\",\"\",'[9]II.2.Balance OSD-Activos'!R233)","v":57273.135127375324},{"$f":"IF('[9]II.2.Balance OSD-Activos'!S233=\"\",\"\",'[9]II.2.Balance OSD-Activos'!S233)","v":60877.406007114259},57646.156851840788,119636.43140497834,75.651753093953289,3.974383616173216,-24.955257955328968,3.6987790672023957,1.1730884358750693,2.1685394901836297,-1.1037282141468374,{"$f":"IF('[2]MONE(M)CAPARD'!GS375=\"\",\"\",'[2]MONE(M)CAPARD'!GS375)","v":28692.426206284948},{"$f":"IF('[2]MONE(M)CARD'!HA375=\"\",\"\",'[2]MONE(M)CAPARD'!HA375)","v":16552.671164359155},{"$f":"IF('[2]MONE(M)CAPARD'!HB375=\"\",\"\",'[2]MONE(M)CAPARD'!HB375)","v":12139.755041925793},"n.d.",{"$f":"IF('[10]II.2.Balance OSD-Activos'!J233=\"\",\"\",'[10]II.2.Balance OSD-Activos'!J233)","v":2749.8841106154655},{"$f":"IF('[10]II.2.Balance OSD-Activos'!N233=\"\",\"\",'[10]II.2.Balance OSD-Activos'!N233)","v":1712.4728971132949},{"$f":"IF('[10]II.2.Balance OSD-Activos'!R233=\"\",\"\",'[10]II.2.Balance OSD-Activos'!R233)","v":80519.366739425343},{"$f":"IF('[10]II.2.Balance OSD-Activos'!S233=\"\",\"\",'[10]II.2.Balance OSD-Activos'!S233)","v":87049.317914024257},83269.250850040815,172031.04166117834,14.7126552869153,2.3419110733626569,-8.6724373568423001,1.9663716791319397,1.7979687718835402,1.9438897092277863,-1.0043464787960588,{"$f":"IF('[2]MONE(M)CAPARD'!AS375=\"\",\"\",'[2]MONE(M)CAPARD'!AS375)","v":0.75},{"$f":"IF('[2]MONE(M)CAPARD'!AT375=\"\",\"\",'[2]MONE(M)CAPARD'!AT375)","v":"n.a."},{"$f":"IF('[2]MONE(M)CAPARD'!AU375=\"\",\"\",'[2]MONE(M)CAPARD'!AU375)","v":1.75},{"$f":"IF('[2]MONE(M)CAPARD'!AV375=\"\",\"\",'[2]MONE(M)CAPARD'!AV375)","v":4.5},{"$f":"IF('[2]MONE(M)CAPARD'!AW375=\"\",\"\",'[2]MONE(M)CAPARD'!AW375)","v":4.5},{"$f":"IF('[2]MONE(M)CAPARD'!AX375=\"\",\"\",'[2]MONE(M)CAPARD'!AX375)","v":3.5},{"$f":"IF('[2]MONE(M)CAPARD'!AY375=\"\",\"\",'[2]MONE(M)CAPARD'!AY375)","v":"n.a."},{"$f":"IF('[2]FISCAL(M)'!$K375=\"\",\"\",'[2]FISCAL(M)'!$K375)","v":-8098.6889799146702},{"$f":"IF('[2]FISCAL(M)'!$L375=\"\",\"\",'[2]FISCAL(M)'!$L375)","v":-10848.488979914669},{"$f":"IF('[2]FISCAL(M)'!$AY375=\"\",\"\",'[2]FISCAL(M)'!$AY375)","v":160613.01178351726},{"$f":"IF('[2]FISCAL(M)'!$BI375=\"\",\"\",'[2]FISCAL(M)'!$BI375)","v":85091.806173738514},{"$f":"IF('[2]FISCAL(M)'!$BS375=\"\",\"\",'[2]FISCAL(M)'!$BS375)","v":75521.205609778728},{"$f":"IF('[2]FISCAL(M)'!$AZ375=\"\",\"\",'[2]FISCAL(M)'!$AZ375)","v":193657.60178351725},{"$f":"IF('[2]FISCAL(M)'!$BJ375=\"\",\"\",'[2]FISCAL(M)'!$BJ375)","v":91873.78617373851},{"$f":"IF('[2]FISCAL(M)'!$BT375=\"\",\"\",'[2]FISCAL(M)'!$BT375)","v":101783.81560977873},{"$f":"IF('[3]MONE(M)'!$AO375=\"\",\"\",'[3]MONE(M)'!$AO375)","v":22095634.528315797},{"$f":"IF('[4]MONE(M)'!$AO375=\"\",\"\",'[4]MONE(M)'!$AO375)","v":14327.95091824},{"$f":"IF('[5]MONE(M)'!$AO375=\"\",\"\",'[5]MONE(M)'!$AO375)","v":223800.74096534547},{"$f":"+'[1]MONE(M)'!$AO375","v":400053.00115933857},{"$f":"IF('[6]MONE(M)'!$AO375=\"\",\"\",'[6]MONE(M)'!$AO375)","v":120431.58566582217},{"$f":"IF('[7]MONE(M)'!$AO375=\"\",\"\",'[7]MONE(M)'!$AO375)","v":1341007.6719844202},{"$f":"IF('[8]MONE(M)'!$AO375=\"\",\"\",'[8]MONE(M)'!$AO375)","v":53295.340445430003},-0.14256330020202546,5.580481628732481,7.0593657906853791,8.0070481285880568,-7.6598862791007694,13.173957949804716,1.2474500594518823,{"$f":"'[2]FISCAL(M)'!$K375","v":-8098.6889799146702},{"$f":"+'[2]REAL(A)'!$AO$40","v":280375.55734848662},-2.8885146253489502,{"$f":"IF('[2]FISCAL(M)'!$L375=\"\",\"\",'[2]FISCAL(M)'!$L375)","v":-10848.488979914669},{"$f":"+'[2]REAL(A)'!$AP$40","v":334352.59023561911},-3.244625373552426,167290.31152286238,{"$f":"'[2]Gráfico REM'!BG369","v":34244.262983595137},{"$f":"'[2]Gráfico REM'!BH369","v":124003.74582793572},{"$f":"'[2]Gráfico REM'!BI369","v":9042.3027113315056},4.688624457547208,17.119936759104991,2.0780257083373721,-0.41497781701479441,244326.37556382234,{"$f":"'[2]Gráfico REM'!BK369","v":36400.171976725134},{"$f":"'[2]Gráfico REM'!BL369","v":177299.08627336571},{"$f":"'[2]Gráfico REM'!BM369","v":30627.117313731505},3.40012602184947,15.637199614443498,1.8269293057666891,-0.22493618759320544]
[2020,"julio","2020-julio",{"$f":"IF('[2]REAL IPC(M)'!$AL376=\"\",\"\",+'[2]REAL IPC(M)'!$AL376)","v":2.577123270280568},{"$f":"IF('[2]REAL IPC(M)'!$BE376=\"\",\"\",+'[2]REAL IPC(M)'!$BE376)","v":3.855858189264838},{"$f":"IF('[2]REAL IPC(M)'!$AM376=\"\",\"\",+'[2]REAL IPC(M)'!$AM376)","v":1.856043458578549},{"$f":"IF('[2]REAL IPC(M)'!$BI376=\"\",\"\",+'[2]REAL IPC(M)'!$BI376)","v":3.2491948124650394},{"$f":"IF('[2]REAL IMAE(M)'!BJ376=\"\",\"\",'[2]REAL IMAE(M)'!BJ376)","v":-7.646239097175922},{"$f":"IF('[2]REAL IMAE(M)'!BK376=\"\",\"\",'[2]REAL IMAE(M)'!BK376)","v":1.8653257270270895},{"$f":"IF('[2]REAL IMAE(M)'!BN376=\"\",\"\",'[2]REAL IMAE(M)'!BN376)","v":-12.249247593139966},{"$f":"IF('[2]REAL IMAE(M)'!BO376=\"\",\"\",'[2]REAL IMAE(M)'!BO376)","v":1.053644048567115},{"$f":"IF('[2]EXT RIN(M)'!$K376=\"\",\"\",'[2]EXT RIN(M)'!$K376)","v":46130.955335859893},null,{"$f":"IF('[2]EXT RIN(M)'!$L376=\"\",\"\",'[2]EXT RIN(M)'!$L376)","v":52703.267982909892},null,{"$f":"IF('[2]MONE(M)CARD'!EG376=\"\",\"\",'[2]MONE(M)CARD'!EG376)","v":47954.44641854801},{"$f":"IF('[2]MONE(M)CARD'!EK376=\"\",\"\",'[2]MONE(M)CARD'!EK376)","v":62251.976159504971},{"$f":"IF('[2]MONE(M)CARD'!EP376=\"\",\"\",'[2]MONE(M)CARD'!EP376)","v":36557.973784480317},{"$f":"IF('[2]MONE(M)CARD'!ES376=\"\",\"\",'[2]MONE(M)CARD'!ES376)","v":23.767348799345257},{"$f":"IF('[2]MONE(M)CARD'!EV376=\"\",\"\",'[2]MONE(M)CARD'!EV376)","v":11.696488124660975},{"$f":"IF('[2]MONE(M)CARD'!EZ376=\"\",\"\",'[2]MONE(M)CARD'!EZ376)","v":12.757408402273928},{"$f":"IF('[2]MONE(M)CAPARD'!FC376=\"\",\"\",'[2]MONE(M)CAPARD'!FC376)","v":56166.744645768013},{"$f":"IF('[2]MONE(M)CAPARD'!FG376=\"\",\"\",'[2]MONE(M)CAPARD'!FG376)","v":97364.228899134963},{"$f":"IF('[2]MONE(M)CAPARD'!FL376=\"\",\"\",'[2]MONE(M)CAPARD'!FL376)","v":36557.973784480302},{"$f":"IF('[2]MONE(M)CAPARD'!FO376=\"\",\"\",'[2]MONE(M)CAPARD'!FO376)","v":20.666267704784858},{"$f":"IF('[2]MONE(M)CAPARD'!FR376=\"\",\"\",'[2]MONE(M)CAPARD'!FR376)","v":9.8020987778431934},{"$f":"IF('[2]MONE(M)CAPARD'!FV376=\"\",\"\",'[2]MONE(M)CAPARD'!FV376)","v":10.956378648218767},{"$f":"IF('[2]MONE(M)CARD'!FV376=\"\",\"\",'[2]MONE(M)CARD'!FV376)","v":1938.3078901692215},{"$f":"IF('[2]MONE(M)CARD'!GD376=\"\",\"\",'[2]MONE(M)CARD'!GD376)","v":114.71522284302308},{"$f":"IF('[2]MONE(M)CARD'!GE376=\"\",\"\",'[2]MONE(M)CARD'!GE376)","v":13829.477959081774},8.2584511540995109,{"$f":"IF('[9]II.2.Balance OSD-Activos'!J234=\"\",\"\",'[9]II.2.Balance OSD-Activos'!J234)","v":368.13581209553661},{"$f":"IF('[9]II.2.Balance OSD-Activos'!N234=\"\",\"\",'[9]II.2.Balance OSD-Activos'!N234)","v":1050.2960187174792},{"$f":"IF('[9]II.2.Balance OSD-Activos'!R234=\"\",\"\",'[9]II.2.Balance OSD-Activos'!R234)","v":56208.052336927052},{"$f":"IF('[9]II.2.Balance OSD-Activos'!S234=\"\",\"\",'[9]II.2.Balance OSD-Activos'!S234)","v":60826.162743747074},56576.188149022586,{"$f":"IF(OR(AF369=\"\",AG369=\"\",AH369=\"\",AI369=\"\"),\"\",SUM(AF369:AI369))","v":118452.64691148714},65.480266275180426,3.6907637932546367,-20.099590204497531,3.4378006228736213,-0.88205485203128875,1.0305525217760403,-1.1379869684075894,{"$f":"IF('[2]MONE(M)CAPARD'!GS376=\"\",\"\",'[2]MONE(M)CAPARD'!GS376)","v":29689.440938329422},{"$f":"IF('[2]MONE(M)CARD'!HA376=\"\",\"\",'[2]MONE(M)CAPARD'!HA376)","v":16078.473166451773},{"$f":"IF('[2]MONE(M)CAPARD'!HB376=\"\",\"\",'[2]MONE(M)CAPARD'!HB376)","v":13610.967771877649},"n.d.",{"$f":"IF('[10]II.2.Balance OSD-Activos'!J234=\"\",\"\",'[10]II.2.Balance OSD-Activos'!J234)","v":2784.8390046855366},{"$f":"IF('[10]II.2.Balance OSD-Activos'!N234=\"\",\"\",'[10]II.2.Balance OSD-Activos'!N234)","v":1644.6811764174793},{"$f":"IF('[10]II.2.Balance OSD-Activos'!R234=\"\",\"\",'[10]II.2.Balance OSD-Activos'!R234)","v":79522.499849037064},{"$f":"IF('[10]II.2.Balance OSD-Activos'!S234=\"\",\"\",'[10]II.2.Balance OSD-Activos'!S234)","v":87014.290251557075},82307.338853722598,170966.31028169714,16.547253625024695,2.4182158055948255,-2.5730791920054119,1.9852456526996187,0.22287457482375039,1.239653792649853,-0.70423591657793327,{"$f":"IF('[2]MONE(M)CAPARD'!AS376=\"\",\"\",'[2]MONE(M)CAPARD'!AS376)","v":0.75},{"$f":"IF('[2]MONE(M)CAPARD'!AT376=\"\",\"\",'[2]MONE(M)CAPARD'!AT376)","v":"n.a."},{"$f":"IF('[2]MONE(M)CAPARD'!AU376=\"\",\"\",'[2]MONE(M)CAPARD'!AU376)","v":1.75},{"$f":"IF('[2]MONE(M)CAPARD'!AV376=\"\",\"\",'[2]MONE(M)CAPARD'!AV376)","v":4.5},{"$f":"IF('[2]MONE(M)CAPARD'!AW376=\"\",\"\",'[2]MONE(M)CAPARD'!AW376)","v":4.5},{"$f":"IF('[2]MONE(M)CAPARD'!AX376=\"\",\"\",'[2]MONE(M)CAPARD'!AX376)","v":3.5},{"$f":"IF('[2]MONE(M)CAPARD'!AY376=\"\",\"\",'[2]MONE(M)CAPARD'!AY376)","v":"n.a."},{"$f":"IF('[2]FISCAL(M)'!$K376=\"\",\"\",'[2]FISCAL(M)'!$K376)","v":-9904.5782821615339},{"$f":"IF('[2]FISCAL(M)'!$L376=\"\",\"\",'[2]FISCAL(M)'!$L376)","v":"n.d."},{"$f":"IF('[2]FISCAL(M)'!$AY376=\"\",\"\",'[2]FISCAL(M)'!$AY376)","v":162582.44266539402},{"$f":"IF('[2]FISCAL(M)'!$BI376=\"\",\"\",'[2]FISCAL(M)'!$BI376)","v":86188.999634662134},{"$f":"IF('[2]FISCAL(M)'!$BS376=\"\",\"\",'[2]FISCAL(M)'!$BS376)","v":76393.443030731869},{"$f":"IF('[2]FISCAL(M)'!$AZ376=\"\",\"\",'[2]FISCAL(M)'!$AZ376)","v":196048.862665394},{"$f":"IF('[2]FISCAL(M)'!$BJ376=\"\",\"\",'[2]FISCAL(M)'!$BJ376)","v":92989.629634662124},{"$f":"IF('[2]FISCAL(M)'!$BT376=\"\",\"\",'[2]FISCAL(M)'!$BT376)","v":103059.23303073188},{"$f":"IF('[3]MONE(M)'!$AO376=\"\",\"\",'[3]MONE(M)'!$AO376)","v":22170718.192790329},{"$f":"IF('[4]MONE(M)'!$AO376=\"\",\"\",'[4]MONE(M)'!$AO376)","v":14343.920235869999},{"$f":"IF('[5]MONE(M)'!$AO376=\"\",\"\",'[5]MONE(M)'!$AO376)","v":222470.44728606858},{"$f":"+'[1]MONE(M)'!$AO376","v":397508.96304594062},{"$f":"IF('[6]MONE(M)'!$AO376=\"\",\"\",'[6]MONE(M)'!$AO376)","v":119838.5669241743},{"$f":"IF('[7]MONE(M)'!$AO376=\"\",\"\",'[7]MONE(M)'!$AO376)","v":1311897.8496489399},{"$f":"IF('[8]MONE(M)'!$AO376=\"\",\"\",'[8]MONE(M)'!$AO376)","v":53663.978342709997},1.4508241928370413,5.290682378834588,6.4960332717034053,6.8773482715625445,-5.5598061915138057,9.9251414146743997,1.8910484289788698,{"$f":"'[2]FISCAL(M)'!$K376","v":-9904.5782821615339},{"$f":"+'[2]REAL(A)'!$AO$40","v":280375.55734848662},-3.5326111790304378,null,{"$f":"+'[2]REAL(A)'!$AP$40","v":334352.59023561911},"n.d.",166863.42068842892,{"$f":"'[2]Gráfico REM'!BG370","v":34929.668717308552},{"$f":"'[2]Gráfico REM'!BH370","v":122972.66867540756},{"$f":"'[2]Gráfico REM'!BI370","v":8961.0832957128059},3.8574185231045055,16.665303562850763,0.97930497601168565,0.17163181025767749,243614.4680460589,{"$f":"'[2]Gráfico REM'!BK370","v":37154.226206498555},{"$f":"'[2]Gráfico REM'!BL370","v":176636.64701811757},{"$f":"'[2]Gráfico REM'!BM370","v":29823.594821442799},2.7454794355275869,15.331875096004532,1.2545714474137437,-2.0303871634391735]
[2020,"agosto","2020-agosto",{"$f":"IF('[2]REAL IPC(M)'!$AL377=\"\",\"\",+'[2]REAL IPC(M)'!$AL377)","v":3.0279898218829704},{"$f":"IF('[2]REAL IPC(M)'!$BE377=\"\",\"\",+'[2]REAL IPC(M)'!$BE377)","v":3.9595743034148478},{"$f":"IF('[2]REAL IPC(M)'!$AM377=\"\",\"\",+'[2]REAL IPC(M)'!$AM377)","v":2.2815659839253266},{"$f":"IF('[2]REAL IPC(M)'!$BI377=\"\",\"\",+'[2]REAL IPC(M)'!$BI377)","v":3.3499029617496401},{"$f":"IF('[2]REAL IMAE(M)'!BJ377=\"\",\"\",'[2]REAL IMAE(M)'!BJ377)","v":-5.7371397539964892},{"$f":"IF('[2]REAL IMAE(M)'!BK377=\"\",\"\",'[2]REAL IMAE(M)'!BK377)","v":2.003186683016156},{"$f":"IF('[2]REAL IMAE(M)'!BN377=\"\",\"\",'[2]REAL IMAE(M)'!BN377)","v":-9.8359824488571945},{"$f":"IF('[2]REAL IMAE(M)'!BO377=\"\",\"\",'[2]REAL IMAE(M)'!BO377)","v":1.2522096890395851},{"$f":"IF('[2]EXT RIN(M)'!$K377=\"\",\"\",'[2]EXT RIN(M)'!$K377)","v":46573.956327584398},null,{"$f":"IF('[2]EXT RIN(M)'!$L377=\"\",\"\",'[2]EXT RIN(M)'!$L377)","v":53355.206943594399},null,{"$f":"IF('[2]MONE(M)CARD'!EG377=\"\",\"\",'[2]MONE(M)CARD'!EG377)","v":48717.083699934054},{"$f":"IF('[2]MONE(M)CARD'!EK377=\"\",\"\",'[2]MONE(M)CARD'!EK377)","v":62977.241920229455},{"$f":"IF('[2]MONE(M)CARD'!EP377=\"\",\"\",'[2]MONE(M)CARD'!EP377)","v":36748.571585167709},{"$f":"IF('[2]MONE(M)CARD'!ES377=\"\",\"\",'[2]MONE(M)CARD'!ES377)","v":25.813363349424769},{"$f":"IF('[2]MONE(M)CARD'!EV377=\"\",\"\",'[2]MONE(M)CARD'!EV377)","v":12.861537742919648},{"$f":"IF('[2]MONE(M)CARD'!EZ377=\"\",\"\",'[2]MONE(M)CARD'!EZ377)","v":13.506322768830369},{"$f":"IF('[2]MONE(M)CAPARD'!FC377=\"\",\"\",'[2]MONE(M)CAPARD'!FC377)","v":56919.443539574058},{"$f":"IF('[2]MONE(M)CAPARD'!FG377=\"\",\"\",'[2]MONE(M)CAPARD'!FG377)","v":98620.001180409439},{"$f":"IF('[2]MONE(M)CAPARD'!FL377=\"\",\"\",'[2]MONE(M)CAPARD'!FL377)","v":36748.571585167694},{"$f":"IF('[2]MONE(M)CAPARD'!FO377=\"\",\"\",'[2]MONE(M)CAPARD'!FO377)","v":22.16459323154567},{"$f":"IF('[2]MONE(M)CAPARD'!FR377=\"\",\"\",'[2]MONE(M)CAPARD'!FR377)","v":10.759365017743017},{"$f":"IF('[2]MONE(M)CAPARD'!FV377=\"\",\"\",'[2]MONE(M)CAPARD'!FV377)","v":11.637204543225121},{"$f":"IF('[2]MONE(M)CARD'!FV377=\"\",\"\",'[2]MONE(M)CARD'!FV377)","v":2160.7734728860778},{"$f":"IF('[2]MONE(M)CARD'!GD377=\"\",\"\",'[2]MONE(M)CARD'!GD377)","v":130.198014140461},{"$f":"IF('[2]MONE(M)CARD'!GE377=\"\",\"\",'[2]MONE(M)CARD'!GE377)","v":13804.269467726626},3.9950129781957999,{"$f":"IF('[9]II.2.Balance OSD-Activos'!J235=\"\",\"\",'[9]II.2.Balance OSD-Activos'!J235)","v":357.4051372076575},{"$f":"IF('[9]II.2.Balance OSD-Activos'!N235=\"\",\"\",'[9]II.2.Balance OSD-Activos'!N235)","v":1015.1032339802941},{"$f":"IF('[9]II.2.Balance OSD-Activos'!R235=\"\",\"\",'[9]II.2.Balance OSD-Activos'!R235)","v":55918.279180773439},{"$f":"IF('[9]II.2.Balance OSD-Activos'!S235=\"\",\"\",'[9]II.2.Balance OSD-Activos'!S235)","v":60513.356659933583},56275.684317981097,117804.14421189498,60.23043954082685,3.0765016109934651,-14.318045324944373,2.8420361942268491,-1.7695102540311147,0.35774666041767933,-0.67280586135836096,{"$f":"IF('[2]MONE(M)CAPARD'!GS377=\"\",\"\",'[2]MONE(M)CAPARD'!GS377)","v":30655.974931043191},{"$f":"IF('[2]MONE(M)CARD'!HA377=\"\",\"\",'[2]MONE(M)CAPARD'!HA377)","v":15864.211921396625},{"$f":"IF('[2]MONE(M)CAPARD'!HB377=\"\",\"\",'[2]MONE(M)CAPARD'!HB377)","v":14791.763009646565},"n.d.",{"$f":"IF('[10]II.2.Balance OSD-Activos'!J235=\"\",\"\",'[10]II.2.Balance OSD-Activos'!J235)","v":2843.445359547658},{"$f":"IF('[10]II.2.Balance OSD-Activos'!N235=\"\",\"\",'[10]II.2.Balance OSD-Activos'!N235)","v":1617.6373594702939},{"$f":"IF('[10]II.2.Balance OSD-Activos'!R235=\"\",\"\",'[10]II.2.Balance OSD-Activos'!R235)","v":78494.35942006344},{"$f":"IF('[10]II.2.Balance OSD-Activos'!S235=\"\",\"\",'[10]II.2.Balance OSD-Activos'!S235)","v":86716.433496303594},81337.804779611091,169671.87563538499,17.469547095322223,0.92821851466426963,-2.9181828866543302,0.416000965740837,-0.57069826626096054,0.11901488793819581,-1.1206389047116572,{"$f":"IF('[2]MONE(M)CAPARD'!AS377=\"\",\"\",'[2]MONE(M)CAPARD'!AS377)","v":0.75},{"$f":"IF('[2]MONE(M)CAPARD'!AT377=\"\",\"\",'[2]MONE(M)CAPARD'!AT377)","v":"n.a."},{"$f":"IF('[2]MONE(M)CAPARD'!AU377=\"\",\"\",'[2]MONE(M)CAPARD'!AU377)","v":1.75},{"$f":"IF('[2]MONE(M)CAPARD'!AV377=\"\",\"\",'[2]MONE(M)CAPARD'!AV377)","v":3.75},{"$f":"IF('[2]MONE(M)CAPARD'!AW377=\"\",\"\",'[2]MONE(M)CAPARD'!AW377)","v":4.25},{"$f":"IF('[2]MONE(M)CAPARD'!AX377=\"\",\"\",'[2]MONE(M)CAPARD'!AX377)","v":3.5},{"$f":"IF('[2]MONE(M)CAPARD'!AY377=\"\",\"\",'[2]MONE(M)CAPARD'!AY377)","v":"n.a."},{"$f":"IF('[2]FISCAL(M)'!$K377=\"\",\"\",'[2]FISCAL(M)'!$K377)","v":-11664.074522260404},{"$f":"IF('[2]FISCAL(M)'!$L377=\"\",\"\",'[2]FISCAL(M)'!$L377)","v":"n.d."},{"$f":"IF('[2]FISCAL(M)'!$AY377=\"\",\"\",'[2]FISCAL(M)'!$AY377)","v":164406.055391067},{"$f":"IF('[2]FISCAL(M)'!$BI377=\"\",\"\",'[2]FISCAL(M)'!$BI377)","v":87662.460065332663},{"$f":"IF('[2]FISCAL(M)'!$BS377=\"\",\"\",'[2]FISCAL(M)'!$BS377)","v":76743.59532573435},{"$f":"IF('[2]FISCAL(M)'!$AZ377=\"\",\"\",'[2]FISCAL(M)'!$AZ377)","v":197985.45539106699},{"$f":"IF('[2]FISCAL(M)'!$BJ377=\"\",\"\",'[2]FISCAL(M)'!$BJ377)","v":94461.690065332659},{"$f":"IF('[2]FISCAL(M)'!$BT377=\"\",\"\",'[2]FISCAL(M)'!$BT377)","v":103523.76532573433},{"$f":"IF('[3]MONE(M)'!$AO377=\"\",\"\",'[3]MONE(M)'!$AO377)","v":22303672.382524308},{"$f":"IF('[4]MONE(M)'!$AO377=\"\",\"\",'[4]MONE(M)'!$AO377)","v":14263.436860500002},{"$f":"IF('[5]MONE(M)'!$AO377=\"\",\"\",'[5]MONE(M)'!$AO377)","v":222719.48001334921},{"$f":"+'[1]MONE(M)'!$AO377","v":395815.41744029906},{"$f":"IF('[6]MONE(M)'!$AO377=\"\",\"\",'[6]MONE(M)'!$AO377)","v":119117.95275686838},{"$f":"IF('[7]MONE(M)'!$AO377=\"\",\"\",'[7]MONE(M)'!$AO377)","v":1307421.484529},{"$f":"IF('[8]MONE(M)'!$AO377=\"\",\"\",'[8]MONE(M)'!$AO377)","v":51982.96225781001},1.9689675511775473,4.2987084406272968,6.2586133975221392,5.7927827379538943,-5.4176795058657357,8.6086600523355159,-1.9347165705324465,{"$f":"'[2]FISCAL(M)'!$K377","v":-11664.074522260404},{"$f":"+'[2]REAL(A)'!$AO$40","v":280375.55734848662},-4.1601609757168667,null,{"$f":"+'[2]REAL(A)'!$AP$40","v":334352.59023561911},"n.d.",168696.64445129473,{"$f":"'[2]Gráfico REM'!BG371","v":37491.163599173844},{"$f":"'[2]Gráfico REM'!BH371","v":122390.00628360205},{"$f":"'[2]Gráfico REM'!BI371","v":8815.4745685188354},4.6567241351768374,24.609540785674678,0.30988627551353787,-3.0374599752790665,245159.06907942475,{"$f":"'[2]Gráfico REM'!BK371","v":40800.013839183841},{"$f":"'[2]Gráfico REM'!BL371","v":174372.96854141206},{"$f":"'[2]Gráfico REM'!BM371","v":29986.086698828836},3.0547868808090461,26.072941591583131,-0.36993771478145421,-1.7149699623091097]
[2020,"septiembre","2020-septiembre",{"$f":"IF('[2]REAL IPC(M)'!$AL378=\"\",\"\",+'[2]REAL IPC(M)'!$AL378)","v":3.3747214262973557},{"$f":"IF('[2]REAL IPC(M)'!$BE378=\"\",\"\",+'[2]REAL IPC(M)'!$BE378)","v":4.0673644037868106},{"$f":"IF('[2]REAL IPC(M)'!$AM378=\"\",\"\",+'[2]REAL IPC(M)'!$AM378)","v":2.5885558583106372},{"$f":"IF('[2]REAL IPC(M)'!$BI378=\"\",\"\",+'[2]REAL IPC(M)'!$BI378)","v":3.4556923680651774},{"$f":"IF('[2]REAL IMAE(M)'!BJ378=\"\",\"\",'[2]REAL IMAE(M)'!BJ378)","v":-3.9711705307115541},{"$f":"IF('[2]REAL IMAE(M)'!BK378=\"\",\"\",'[2]REAL IMAE(M)'!BK378)","v":2.1585917148858824},{"$f":"IF('[2]REAL IMAE(M)'!BN378=\"\",\"\",'[2]REAL IMAE(M)'!BN378)","v":-7.2538978636180751},{"$f":"IF('[2]REAL IMAE(M)'!BO378=\"\",\"\",'[2]REAL IMAE(M)'!BO378)","v":1.4797514489888641},{"$f":"IF('[2]EXT RIN(M)'!$K378=\"\",\"\",'[2]EXT RIN(M)'!$K378)","v":50486.732410726865},null,{"$f":"IF('[2]EXT RIN(M)'!$L378=\"\",\"\",'[2]EXT RIN(M)'!$L378)","v":59529.729615596865},null,{"$f":"IF('[2]MONE(M)CARD'!EG378=\"\",\"\",'[2]MONE(M)CARD'!EG378)","v":49264.756775469417},{"$f":"IF('[2]MONE(M)CARD'!EK378=\"\",\"\",'[2]MONE(M)CARD'!EK378)","v":63111.015938387689},{"$f":"IF('[2]MONE(M)CARD'!EP378=\"\",\"\",'[2]MONE(M)CARD'!EP378)","v":36357.747345122727},{"$f":"IF('[2]MONE(M)CARD'!ES378=\"\",\"\",'[2]MONE(M)CARD'!ES378)","v":27.164594845553669},{"$f":"IF('[2]MONE(M)CARD'!EV378=\"\",\"\",'[2]MONE(M)CARD'!EV378)","v":13.896327896780702},{"$f":"IF('[2]MONE(M)CARD'!EZ378=\"\",\"\",'[2]MONE(M)CARD'!EZ378)","v":14.032842739020634},{"$f":"IF('[2]MONE(M)CAPARD'!FC378=\"\",\"\",'[2]MONE(M)CAPARD'!FC378)","v":57503.943880709419},{"$f":"IF('[2]MONE(M)CAPARD'!FG378=\"\",\"\",'[2]MONE(M)CAPARD'!FG378)","v":99010.467386567703},{"$f":"IF('[2]MONE(M)CAPARD'!FL378=\"\",\"\",'[2]MONE(M)CAPARD'!FL378)","v":36357.747345122712},{"$f":"IF('[2]MONE(M)CAPARD'!FO378=\"\",\"\",'[2]MONE(M)CAPARD'!FO378)","v":24.046860981433916},{"$f":"IF('[2]MONE(M)CAPARD'!FR378=\"\",\"\",'[2]MONE(M)CAPARD'!FR378)","v":11.907372101235492},{"$f":"IF('[2]MONE(M)CAPARD'!FV378=\"\",\"\",'[2]MONE(M)CAPARD'!FV378)","v":12.379245336498546},{"$f":"IF('[2]MONE(M)CARD'!FV378=\"\",\"\",'[2]MONE(M)CARD'!FV378)","v":2187.9689286107473},{"$f":"IF('[2]MONE(M)CARD'!GD378=\"\",\"\",'[2]MONE(M)CARD'!GD378)","v":157.52826361291335},{"$f":"IF('[2]MONE(M)CARD'!GE378=\"\",\"\",'[2]MONE(M)CARD'!GE378)","v":14007.93786371597},6.5860449674029153,{"$f":"IF('[9]II.2.Balance OSD-Activos'!J236=\"\",\"\",'[9]II.2.Balance OSD-Activos'!J236)","v":338.98897923532343},{"$f":"IF('[9]II.2.Balance OSD-Activos'!N236=\"\",\"\",'[9]II.2.Balance OSD-Activos'!N236)","v":1104.9901002450988},{"$f":"IF('[9]II.2.Balance OSD-Activos'!R236=\"\",\"\",'[9]II.2.Balance OSD-Activos'!R236)","v":55685.012152455623},{"$f":"IF('[9]II.2.Balance OSD-Activos'!S236=\"\",\"\",'[9]II.2.Balance OSD-Activos'!S236)","v":60513.093133358874},56024.001131690944,117642.08436529493,52.246124104692207,2.4407332400406379,-5.1377799807405751,2.2371293764829048,-0.8483228904660356,0.64784427340325301,0.29009761298557368,{"$f":"IF('[2]MONE(M)CAPARD'!GS378=\"\",\"\",'[2]MONE(M)CAPARD'!GS378)","v":31170.391083648115},{"$f":"IF('[2]MONE(M)CARD'!HA378=\"\",\"\",'[2]MONE(M)CAPARD'!HA378)","v":16107.501128675967},{"$f":"IF('[2]MONE(M)CAPARD'!HB378=\"\",\"\",'[2]MONE(M)CAPARD'!HB378)","v":15062.889954972148},"n.d.",{"$f":"IF('[10]II.2.Balance OSD-Activos'!J236=\"\",\"\",'[10]II.2.Balance OSD-Activos'!J236)","v":2808.5898534553235},{"$f":"IF('[10]II.2.Balance OSD-Activos'!N236=\"\",\"\",'[10]II.2.Balance OSD-Activos'!N236)","v":1659.5853615150986},{"$f":"IF('[10]II.2.Balance OSD-Activos'!R236=\"\",\"\",'[10]II.2.Balance OSD-Activos'!R236)","v":78214.336477605626},{"$f":"IF('[10]II.2.Balance OSD-Activos'!S236=\"\",\"\",'[10]II.2.Balance OSD-Activos'!S236)","v":86733.847983248881},81022.926331060953,169416.35967582493,14.280510474265974,0.38610126802074429,0.28599881121873505,-5.0265346477895712E-2,1.6600716901882251E-2,0.19561467760769169,7.6599789669495877E-2,{"$f":"IF('[2]MONE(M)CAPARD'!AS378=\"\",\"\",'[2]MONE(M)CAPARD'!AS378)","v":0.75},{"$f":"IF('[2]MONE(M)CAPARD'!AT378=\"\",\"\",'[2]MONE(M)CAPARD'!AT378)","v":"n.a."},{"$f":"IF('[2]MONE(M)CAPARD'!AU378=\"\",\"\",'[2]MONE(M)CAPARD'!AU378)","v":1.75},{"$f":"IF('[2]MONE(M)CAPARD'!AV378=\"\",\"\",'[2]MONE(M)CAPARD'!AV378)","v":3.75},{"$f":"IF('[2]MONE(M)CAPARD'!AW378=\"\",\"\",'[2]MONE(M)CAPARD'!AW378)","v":4.25},{"$f":"IF('[2]MONE(M)CAPARD'!AX378=\"\",\"\",'[2]MONE(M)CAPARD'!AX378)","v":3},{"$f":"IF('[2]MONE(M)CAPARD'!AY378=\"\",\"\",'[2]MONE(M)CAPARD'!AY378)","v":"n.a."},{"$f":"IF('[2]FISCAL(M)'!$K378=\"\",\"\",'[2]FISCAL(M)'!$K378)","v":-13575.148970972497},{"$f":"IF('[2]FISCAL(M)'!$L378=\"\",\"\",'[2]FISCAL(M)'!$L378)","v":-17635.348970972496},{"$f":"IF('[2]FISCAL(M)'!$AY378=\"\",\"\",'[2]FISCAL(M)'!$AY378)","v":169428.52791282954},{"$f":"IF('[2]FISCAL(M)'!$BI378=\"\",\"\",'[2]FISCAL(M)'!$BI378)","v":88586.149508101458},{"$f":"IF('[2]FISCAL(M)'!$BS378=\"\",\"\",'[2]FISCAL(M)'!$BS378)","v":80842.378404728108},{"$f":"IF('[2]FISCAL(M)'!$AZ378=\"\",\"\",'[2]FISCAL(M)'!$AZ378)","v":205535.75791282955},{"$f":"IF('[2]FISCAL(M)'!$BJ378=\"\",\"\",'[2]FISCAL(M)'!$BJ378)","v":95710.37950810144},{"$f":"IF('[2]FISCAL(M)'!$BT378=\"\",\"\",'[2]FISCAL(M)'!$BT378)","v":109825.37840472811},{"$f":"IF('[3]MONE(M)'!$AO378=\"\",\"\",'[3]MONE(M)'!$AO378)","v":22523658.827886127},{"$f":"IF('[4]MONE(M)'!$AO378=\"\",\"\",'[4]MONE(M)'!$AO378)","v":14327.33763708},{"$f":"IF('[5]MONE(M)'!$AO378=\"\",\"\",'[5]MONE(M)'!$AO378)","v":222781.0837701339},{"$f":"+'[1]MONE(M)'!$AO378","v":395984.33927125897},{"$f":"IF('[6]MONE(M)'!$AO378=\"\",\"\",'[6]MONE(M)'!$AO378)","v":119776.90645110408},{"$f":"IF('[7]MONE(M)'!$AO378=\"\",\"\",'[7]MONE(M)'!$AO378)","v":1313366.25284601},{"$f":"IF('[8]MONE(M)'!$AO378=\"\",\"\",'[8]MONE(M)'!$AO378)","v":51813.338749860006},{"$f":"IF(BY371=\"\",\"\",((BY371/BY359)-1)*100)","v":2.4546348955117647},4.5422744402441095,5.5549487035778222,5.2660460444529544,-4.3289853340326196,7.5010146080240592,-2.4168023266229688,{"$f":"'[2]FISCAL(M)'!$K378","v":-13575.148970972497},{"$f":"+'[2]REAL(A)'!$AO$40","v":280375.55734848662},{"$f":"IF(OR(CM371=\"n.d.\",CM371=\"\",CN371=\"\",CN371=\"n.d.\"),\"\",(CM371/CN371)*100)","v":-4.8417733340783222},{"$f":"IF('[2]FISCAL(M)'!$L378=\"\",\"\",'[2]FISCAL(M)'!$L378)","v":-17635.348970972496},{"$f":"+'[2]REAL(A)'!$AP$40","v":334352.59023561911},-5.2744765513988749,169259.67046416772,{"$f":"'[2]Gráfico REM'!BG372","v":38234.687219657215},{"$f":"'[2]Gráfico REM'!BH372","v":122257.24640702587},{"$f":"'[2]Gráfico REM'!BI372","v":8767.7368374846465},5.4112712373177496,26.153673018535038,0.68992480221039543,-0.85315995063502958,245925.35208169773,{"$f":"'[2]Gráfico REM'!BK372","v":41816.745492067217},{"$f":"'[2]Gráfico REM'!BL372","v":174070.58515688588},{"$f":"'[2]Gráfico REM'!BM372","v":30038.021432744645},3.6111973125845021,28.490415957267246,-0.25529778630772881,-0.84258213091467082]
[2020,"octubre","2020-octubre",{"$f":"IF('[2]REAL IPC(M)'!$AL379=\"\",\"\",+'[2]REAL IPC(M)'!$AL379)","v":3.5320228281547461},{"$f":"IF('[2]REAL IPC(M)'!$BE379=\"\",\"\",+'[2]REAL IPC(M)'!$BE379)","v":4.178630129686689},{"$f":"IF('[2]REAL IPC(M)'!$AM379=\"\",\"\",+'[2]REAL IPC(M)'!$AM379)","v":2.7154587185621137},{"$f":"IF('[2]REAL IPC(M)'!$BI379=\"\",\"\",+'[2]REAL IPC(M)'!$BI379)","v":3.5659572210624102},{"$f":"IF('[2]REAL IMAE(M)'!BJ379=\"\",\"\",'[2]REAL IMAE(M)'!BJ379)","v":-3.0711076311737528},{"$f":"IF('[2]REAL IMAE(M)'!BK379=\"\",\"\",'[2]REAL IMAE(M)'!BK379)","v":2.3290499708822132},{"$f":"IF('[2]REAL IMAE(M)'!BN379=\"\",\"\",'[2]REAL IMAE(M)'!BN379)","v":-5.6772895861097012},{"$f":"IF('[2]REAL IMAE(M)'!BO379=\"\",\"\",'[2]REAL IMAE(M)'!BO379)","v":1.7329127257471377},{"$f":"IF('[2]EXT RIN(M)'!$K379=\"\",\"\",'[2]EXT RIN(M)'!$K379)","v":50228.972790499283},null,{"$f":"IF('[2]EXT RIN(M)'!$L379=\"\",\"\",'[2]EXT RIN(M)'!$L379)","v":58421.75265477928},null,{"$f":"IF('[2]MONE(M)CARD'!EG379=\"\",\"\",'[2]MONE(M)CARD'!EG379)","v":49621.931869597385},{"$f":"IF('[2]MONE(M)CARD'!EK379=\"\",\"\",'[2]MONE(M)CARD'!EK379)","v":63458.551449354876},{"$f":"IF('[2]MONE(M)CARD'!EP379=\"\",\"\",'[2]MONE(M)CARD'!EP379)","v":36937.770243419654},{"$f":"IF('[2]MONE(M)CARD'!ES379=\"\",\"\",'[2]MONE(M)CARD'!ES379)","v":29.067076173647322},{"$f":"IF('[2]MONE(M)CARD'!EV379=\"\",\"\",'[2]MONE(M)CARD'!EV379)","v":14.775884681807794},{"$f":"IF('[2]MONE(M)CARD'!EZ379=\"\",\"\",'[2]MONE(M)CARD'!EZ379)","v":15.170493302652165},{"$f":"IF('[2]MONE(M)CAPARD'!FC379=\"\",\"\",'[2]MONE(M)CAPARD'!FC379)","v":58094.763183017385},{"$f":"IF('[2]MONE(M)CAPARD'!FG379=\"\",\"\",'[2]MONE(M)CAPARD'!FG379)","v":99600.926343594881},{"$f":"IF('[2]MONE(M)CAPARD'!FL379=\"\",\"\",'[2]MONE(M)CAPARD'!FL379)","v":36937.770243419654},{"$f":"IF('[2]MONE(M)CAPARD'!FO379=\"\",\"\",'[2]MONE(M)CAPARD'!FO379)","v":25.954246483800112},{"$f":"IF('[2]MONE(M)CAPARD'!FR379=\"\",\"\",'[2]MONE(M)CAPARD'!FR379)","v":12.35375664717191},{"$f":"IF('[2]MONE(M)CAPARD'!FV379=\"\",\"\",'[2]MONE(M)CAPARD'!FV379)","v":13.099095746329015},{"$f":"IF('[2]MONE(M)CARD'!FV379=\"\",\"\",'[2]MONE(M)CARD'!FV379)","v":2375.5465416098682},{"$f":"IF('[2]MONE(M)CARD'!GD379=\"\",\"\",'[2]MONE(M)CARD'!GD379)","v":134.10316469277396},{"$f":"IF('[2]MONE(M)CARD'!GE379=\"\",\"\",'[2]MONE(M)CARD'!GE379)","v":14500.340702389261},6.0002312278564229,{"$f":"IF('[9]II.2.Balance OSD-Activos'!J237=\"\",\"\",'[9]II.2.Balance OSD-Activos'!J237)","v":341.43808687989838},{"$f":"IF('[9]II.2.Balance OSD-Activos'!N237=\"\",\"\",'[9]II.2.Balance OSD-Activos'!N237)","v":970.77006364567069},{"$f":"IF('[9]II.2.Balance OSD-Activos'!R237=\"\",\"\",'[9]II.2.Balance OSD-Activos'!R237)","v":56055.869471321013},{"$f":"IF('[9]II.2.Balance OSD-Activos'!S237=\"\",\"\",'[9]II.2.Balance OSD-Activos'!S237)","v":60615.725361018813},56397.307558200911,117983.8029828654,60.381549125443534,2.3779295104144671,-14.433809008369103,2.1528985586406479,-1.119708639427186,0.39122071904087452,-0.25662355436237849,{"$f":"IF('[2]MONE(M)CAPARD'!GS379=\"\",\"\",'[2]MONE(M)CAPARD'!GS379)","v":31701.223794083748},{"$f":"IF('[2]MONE(M)CARD'!HA379=\"\",\"\",'[2]MONE(M)CAPARD'!HA379)","v":16576.262938489261},{"$f":"IF('[2]MONE(M)CAPARD'!HB379=\"\",\"\",'[2]MONE(M)CAPARD'!HB379)","v":15124.960855594487},"n.d.",{"$f":"IF('[10]II.2.Balance OSD-Activos'!J237=\"\",\"\",'[10]II.2.Balance OSD-Activos'!J237)","v":2918.560120059899},{"$f":"IF('[10]II.2.Balance OSD-Activos'!N237=\"\",\"\",'[10]II.2.Balance OSD-Activos'!N237)","v":1529.5874734756708},{"$f":"IF('[10]II.2.Balance OSD-Activos'!R237=\"\",\"\",'[10]II.2.Balance OSD-Activos'!R237)","v":78549.919500841017},{"$f":"IF('[10]II.2.Balance OSD-Activos'!S237=\"\",\"\",'[10]II.2.Balance OSD-Activos'!S237)","v":86909.063113098819},81468.479620900922,169907.13020747539,12.920097246466987,0.17587832914012225,{"$f":"IF(OR(AX372=\"\",AX360=\"\"),\"\",((AX372/AX360)-1)*100)","v":-5.2508549741986155},{"$f":"IF(OR(AY372=\"\",AY360=\"\"),\"\",((AY372/AY360)-1)*100)","v":-0.24244364787021633},{"$f":"IF(OR(AZ372=\"\",AZ360=\"\"),\"\",((AZ372/AZ360)-1)*100)","v":-0.30022899015369475},-0.11959605483264912,-0.31521073244034081,{"$f":"IF('[2]MONE(M)CAPARD'!AS379=\"\",\"\",'[2]MONE(M)CAPARD'!AS379)","v":0.75},{"$f":"IF('[2]MONE(M)CAPARD'!AT379=\"\",\"\",'[2]MONE(M)CAPARD'!AT379)","v":"n.a."},{"$f":"IF('[2]MONE(M)CAPARD'!AU379=\"\",\"\",'[2]MONE(M)CAPARD'!AU379)","v":1.75},{"$f":"IF('[2]MONE(M)CAPARD'!AV379=\"\",\"\",'[2]MONE(M)CAPARD'!AV379)","v":3.75},{"$f":"IF('[2]MONE(M)CAPARD'!AW379=\"\",\"\",'[2]MONE(M)CAPARD'!AW379)","v":4.25},{"$f":"IF('[2]MONE(M)CAPARD'!AX379=\"\",\"\",'[2]MONE(M)CAPARD'!AX379)","v":3},{"$f":"IF('[2]MONE(M)CAPARD'!AY379=\"\",\"\",'[2]MONE(M)CAPARD'!AY379)","v":"n.a."},{"$f":"IF('[2]FISCAL(M)'!$K379=\"\",\"\",'[2]FISCAL(M)'!$K379)","v":-14173.613464784459},{"$f":"IF('[2]FISCAL(M)'!$L379=\"\",\"\",'[2]FISCAL(M)'!$L379)","v":"n.d."},{"$f":"IF('[2]FISCAL(M)'!$AY379=\"\",\"\",'[2]FISCAL(M)'!$AY379)","v":170824.4222823375},{"$f":"IF('[2]FISCAL(M)'!$BI379=\"\",\"\",'[2]FISCAL(M)'!$BI379)","v":90012.147785062145},{"$f":"IF('[2]FISCAL(M)'!$BS379=\"\",\"\",'[2]FISCAL(M)'!$BS379)","v":80812.274497275357},{"$f":"IF('[2]FISCAL(M)'!$AZ379=\"\",\"\",'[2]FISCAL(M)'!$AZ379)","v":206571.20228233747},{"$f":"IF('[2]FISCAL(M)'!$BJ379=\"\",\"\",'[2]FISCAL(M)'!$BJ379)","v":96774.697785062133},{"$f":"IF('[2]FISCAL(M)'!$BT379=\"\",\"\",'[2]FISCAL(M)'!$BT379)","v":109796.50449727535},{"$f":"IF('[3]MONE(M)'!$AO379=\"\",\"\",'[3]MONE(M)'!$AO379)","v":22600208.665732775},{"$f":"IF('[4]MONE(M)'!$AO379=\"\",\"\",'[4]MONE(M)'!$AO379)","v":14281.540471080003},{"$f":"IF('[5]MONE(M)'!$AO379=\"\",\"\",'[5]MONE(M)'!$AO379)","v":226281.25096829396},{"$f":"+'[1]MONE(M)'!$AO379","v":394951.152578993},{"$f":"IF('[6]MONE(M)'!$AO379=\"\",\"\",'[6]MONE(M)'!$AO379)","v":120210.35180215609},{"$f":"IF('[7]MONE(M)'!$AO379=\"\",\"\",'[7]MONE(M)'!$AO379)","v":1322080.8102400401},{"$f":"IF('[8]MONE(M)'!$AO379=\"\",\"\",'[8]MONE(M)'!$AO379)","v":52014.428685849998},2.3329165810886954,3.5182016551443374,6.5324076947695042,4.4566558829883585,-4.4689220225589299,6.6984731770888262,-2.8592727947715946,{"$f":"'[2]FISCAL(M)'!$K379","v":-14173.613464784459},{"$f":"+'[2]REAL(A)'!$AO$40","v":280375.55734848662},-5.0552243565111059,{"$f":"IF('[2]FISCAL(M)'!$L379=\"\",\"\",'[2]FISCAL(M)'!$L379)","v":"n.d."},{"$f":"+'[2]REAL(A)'!$AP$40","v":334352.59023561911},"n.d.",171017.98742895736,{"$f":"'[2]Gráfico REM'!BG373","v":39785.180453608133},{"$f":"'[2]Gráfico REM'!BH373","v":122537.27608375601},{"$f":"'[2]Gráfico REM'!BI373","v":8695.5308915932292},6.1589804091043199,31.844060921340688,0.43583303689151975,-2.4578262038800314,248004.91799926735,{"$f":"'[2]Gráfico REM'!BK373","v":43409.644820348134},{"$f":"'[2]Gráfico REM'!BL373","v":174551.704769606},{"$f":"'[2]Gráfico REM'!BM373","v":30043.568409313226},4.2019091896804195,33.416337373274942,-0.56921913281383629,0.42559997765283519]
[2020,"noviembre","2020-noviembre",{"$f":"IF('[2]REAL IPC(M)'!$AL380=\"\",\"\",+'[2]REAL IPC(M)'!$AL380)","v":3.624881591411433},{"$f":"IF('[2]REAL IPC(M)'!$BE380=\"\",\"\",+'[2]REAL IPC(M)'!$BE380)","v":4.292733267648563},{"$f":"IF('[2]REAL IPC(M)'!$AM380=\"\",\"\",+'[2]REAL IPC(M)'!$AM380)","v":2.7765251562198001},{"$f":"IF('[2]REAL IPC(M)'!$BI380=\"\",\"\",+'[2]REAL IPC(M)'!$BI380)","v":3.6800324895965186},{"$f":"IF('[2]REAL IMAE(M)'!BJ380=\"\",\"\",'[2]REAL IMAE(M)'!BJ380)","v":-2.6302401731183256},{"$f":"IF('[2]REAL IMAE(M)'!BK380=\"\",\"\",'[2]REAL IMAE(M)'!BK380)","v":2.5116895648480408},{"$f":"IF('[2]REAL IMAE(M)'!BN380=\"\",\"\",'[2]REAL IMAE(M)'!BN380)","v":-4.5688664617361425},{"$f":"IF('[2]REAL IMAE(M)'!BO380=\"\",\"\",'[2]REAL IMAE(M)'!BO380)","v":2.0076860023692689},{"$f":"IF('[2]EXT RIN(M)'!$K380=\"\",\"\",'[2]EXT RIN(M)'!$K380)","v":50072.119983109995},null,{"$f":"IF('[2]EXT RIN(M)'!$L380=\"\",\"\",'[2]EXT RIN(M)'!$L380)","v":57820.893073819992},null,{"$f":"IF('[2]MONE(M)CARD'!EG380=\"\",\"\",'[2]MONE(M)CARD'!EG380)","v":50547.060557105215},{"$f":"IF('[2]MONE(M)CARD'!EK380=\"\",\"\",'[2]MONE(M)CARD'!EK380)","v":63561.236185211397},{"$f":"IF('[2]MONE(M)CARD'!EP380=\"\",\"\",'[2]MONE(M)CARD'!EP380)","v":37576.677096861866},{"$f":"IF('[2]MONE(M)CARD'!ES380=\"\",\"\",'[2]MONE(M)CARD'!ES380)","v":23.770188382181544},{"$f":"IF('[2]MONE(M)CARD'!EV380=\"\",\"\",'[2]MONE(M)CARD'!EV380)","v":13.018108246544768},{"$f":"IF('[2]MONE(M)CARD'!EZ380=\"\",\"\",'[2]MONE(M)CARD'!EZ380)","v":14.041738622535838},{"$f":"IF('[2]MONE(M)CAPARD'!FC380=\"\",\"\",'[2]MONE(M)CAPARD'!FC380)","v":59212.900031155223},{"$f":"IF('[2]MONE(M)CAPARD'!FG380=\"\",\"\",'[2]MONE(M)CAPARD'!FG380)","v":99713.803611891388},{"$f":"IF('[2]MONE(M)CAPARD'!FL380=\"\",\"\",'[2]MONE(M)CAPARD'!FL380)","v":37576.677096861851},{"$f":"IF('[2]MONE(M)CAPARD'!FO380=\"\",\"\",'[2]MONE(M)CAPARD'!FO380)","v":21.68132257211548},{"$f":"IF('[2]MONE(M)CAPARD'!FR380=\"\",\"\",'[2]MONE(M)CAPARD'!FR380)","v":11.072139929291014},{"$f":"IF('[2]MONE(M)CAPARD'!FV380=\"\",\"\",'[2]MONE(M)CAPARD'!FV380)","v":12.205639058060559},{"$f":"IF('[2]MONE(M)CARD'!FV380=\"\",\"\",'[2]MONE(M)CARD'!FV380)","v":2406.2748122920148},{"$f":"IF('[2]MONE(M)CARD'!GD380=\"\",\"\",'[2]MONE(M)CARD'!GD380)","v":185.13568697996209},{"$f":"IF('[2]MONE(M)CARD'!GE380=\"\",\"\",'[2]MONE(M)CARD'!GE380)","v":14628.20626477587},4.3081761211652081,{"$f":"IF('[9]II.2.Balance OSD-Activos'!J238=\"\",\"\",'[9]II.2.Balance OSD-Activos'!J238)","v":338.70064788383434},{"$f":"IF('[9]II.2.Balance OSD-Activos'!N238=\"\",\"\",'[9]II.2.Balance OSD-Activos'!N238)","v":941.3231843450518},{"$f":"IF('[9]II.2.Balance OSD-Activos'!R238=\"\",\"\",'[9]II.2.Balance OSD-Activos'!R238)","v":56312.195947244007},{"$f":"IF('[9]II.2.Balance OSD-Activos'!S238=\"\",\"\",'[9]II.2.Balance OSD-Activos'!S238)","v":61179.156329363956},56650.896595127844,118771.37610883685,{"$f":"IF(OR(AF373=\"\",AF361=\"\"),\"\",((AF373/AF361)-1)*100)","v":35.241099462179903},1.3922083679803965,-22.014118042993648,1.2398028793532356,-1.9964842493407464,-0.61433604362033378,-1.0055567626612083,{"$f":"IF('[2]MONE(M)CAPARD'!GS380=\"\",\"\",'[2]MONE(M)CAPARD'!GS380)","v":31838.853908325687},{"$f":"IF('[2]MONE(M)CARD'!HA380=\"\",\"\",'[2]MONE(M)CAPARD'!HA380)","v":16737.444482295872},{"$f":"IF('[2]MONE(M)CAPARD'!HB380=\"\",\"\",'[2]MONE(M)CAPARD'!HB380)","v":15101.409426029815},"n.d.",{"$f":"IF('[10]II.2.Balance OSD-Activos'!J238=\"\",\"\",'[10]II.2.Balance OSD-Activos'!J238)","v":2909.0782323438343},{"$f":"IF('[10]II.2.Balance OSD-Activos'!N238=\"\",\"\",'[10]II.2.Balance OSD-Activos'!N238)","v":1485.5458500150517},{"$f":"IF('[10]II.2.Balance OSD-Activos'!R238=\"\",\"\",'[10]II.2.Balance OSD-Activos'!R238)","v":78678.727868993999},{"$f":"IF('[10]II.2.Balance OSD-Activos'!S238=\"\",\"\",'[10]II.2.Balance OSD-Activos'!S238)","v":87548.452429573954},81587.806101337832,{"$f":"IF(OR(AW373=\"\",AX373=\"\",AY373=\"\",AZ373=\"\"),\"\",SUM(AW373:AZ373))","v":170621.80438092683},8.4550170199302563,-0.46573381443069106,-11.780050232871176,-0.76752299505749022,-0.97799609799391618,-0.83967632340767873,-0.7200802685750296,{"$f":"IF('[2]MONE(M)CAPARD'!AS380=\"\",\"\",'[2]MONE(M)CAPARD'!AS380)","v":0.75},{"$f":"IF('[2]MONE(M)CAPARD'!AT380=\"\",\"\",'[2]MONE(M)CAPARD'!AT380)","v":"n.a."},{"$f":"IF('[2]MONE(M)CAPARD'!AU380=\"\",\"\",'[2]MONE(M)CAPARD'!AU380)","v":1.75},{"$f":"IF('[2]MONE(M)CAPARD'!AV380=\"\",\"\",'[2]MONE(M)CAPARD'!AV380)","v":3},{"$f":"IF('[2]MONE(M)CAPARD'!AW380=\"\",\"\",'[2]MONE(M)CAPARD'!AW380)","v":4.25},{"$f":"IF('[2]MONE(M)CAPARD'!AX380=\"\",\"\",'[2]MONE(M)CAPARD'!AX380)","v":3},{"$f":"IF('[2]MONE(M)CAPARD'!AY380=\"\",\"\",'[2]MONE(M)CAPARD'!AY380)","v":"n.a."},{"$f":"IF('[2]FISCAL(M)'!$K380=\"\",\"\",'[2]FISCAL(M)'!$K380)","v":-15764.496346639746},{"$f":"IF('[2]FISCAL(M)'!$L380=\"\",\"\",'[2]FISCAL(M)'!$L380)","v":"n.d."},{"$f":"IF('[2]FISCAL(M)'!$AY380=\"\",\"\",'[2]FISCAL(M)'!$AY380)","v":171877.28470131865},{"$f":"IF('[2]FISCAL(M)'!$BI380=\"\",\"\",'[2]FISCAL(M)'!$BI380)","v":90276.125273152909},{"$f":"IF('[2]FISCAL(M)'!$BS380=\"\",\"\",'[2]FISCAL(M)'!$BS380)","v":81601.15942816576},{"$f":"IF('[2]FISCAL(M)'!$AZ380=\"\",\"\",'[2]FISCAL(M)'!$AZ380)","v":207963.05470131864},{"$f":"IF('[2]FISCAL(M)'!$BJ380=\"\",\"\",'[2]FISCAL(M)'!$BJ380)","v":97398.675273152912},{"$f":"IF('[2]FISCAL(M)'!$BT380=\"\",\"\",'[2]FISCAL(M)'!$BT380)","v":110564.37942816575},{"$f":"IF('[3]MONE(M)'!$AO380=\"\",\"\",'[3]MONE(M)'!$AO380)","v":22595674.431345936},{"$f":"IF('[4]MONE(M)'!$AO380=\"\",\"\",'[4]MONE(M)'!$AO380)","v":14390.750813340001},{"$f":"IF('[5]MONE(M)'!$AO380=\"\",\"\",'[5]MONE(M)'!$AO380)","v":227316.9952330903},{"$f":"+'[1]MONE(M)'!$AO380","v":396345.03074977879},{"$f":"IF('[6]MONE(M)'!$AO380=\"\",\"\",'[6]MONE(M)'!$AO380)","v":121212.29724189983},{"$f":"IF('[7]MONE(M)'!$AO380=\"\",\"\",'[7]MONE(M)'!$AO380)","v":1331330.4879480998},{"$f":"IF('[8]MONE(M)'!$AO380=\"\",\"\",'[8]MONE(M)'!$AO380)","v":51993.249332569991},3.7876748162178009,3.7184550200823008,5.921342613024061,3.5405477823505782,-3.990477816327731,5.5998727605238496,-2.9356035679303671,{"$f":"'[2]FISCAL(M)'!$K380","v":-15764.496346639746},{"$f":"+'[2]REAL(A)'!$AO$40","v":280375.55734848662},-5.6226357588816533,{"$f":"IF('[2]FISCAL(M)'!$L380=\"\",\"\",'[2]FISCAL(M)'!$L380)","v":"n.d."},{"$f":"+'[2]REAL(A)'!$AP$40","v":334352.59023561911},"n.d.",172492.72318941975,{"$f":"'[2]Gráfico REM'!BG374","v":40442.934207111961},{"$f":"'[2]Gráfico REM'!BH374","v":123347.59688811339},{"$f":"'[2]Gráfico REM'!BI374","v":8702.1920941943899},5.4145148413921929,31.905475171892505,-0.39542617372673172,-4.7376634318722965,249999.7471901697,{"$f":"'[2]Gráfico REM'!BK374","v":44073.672974181958},{"$f":"'[2]Gráfico REM'!BL374","v":175340.84622068336},{"$f":"'[2]Gráfico REM'!BM374","v":30585.227995304391},3.6687174062033812,33.48573796167873,-1.1624168192709505,-0.47764749666315831]
[2020,"diciembre","2020-diciembre",{"$f":"IF('[2]REAL IPC(M)'!$AL381=\"\",\"\",+'[2]REAL IPC(M)'!$AL381)","v":3.6948448416944668},{"$f":"IF('[2]REAL IPC(M)'!$BE381=\"\",\"\",+'[2]REAL IPC(M)'!$BE381)","v":4.4090006021655137},{"$f":"IF('[2]REAL IPC(M)'!$AM381=\"\",\"\",+'[2]REAL IPC(M)'!$AM381)","v":2.9041377537908142},{"$f":"IF('[2]REAL IPC(M)'!$BI381=\"\",\"\",+'[2]REAL IPC(M)'!$BI381)","v":3.7971967844495413},{"$f":"IF('[2]REAL IMAE(M)'!BJ381=\"\",\"\",'[2]REAL IMAE(M)'!BJ381)","v":-1.5459610316502004},{"$f":"IF('[2]REAL IMAE(M)'!BK381=\"\",\"\",'[2]REAL IMAE(M)'!BK381)","v":2.7033015490657286},{"$f":"IF('[2]REAL IMAE(M)'!BN381=\"\",\"\",'[2]REAL IMAE(M)'!BN381)","v":-3.6365463555691369},{"$f":"IF('[2]REAL IMAE(M)'!BO381=\"\",\"\",'[2]REAL IMAE(M)'!BO381)","v":2.2995012216499466},{"$f":"IF('[2]EXT RIN(M)'!$K381=\"\",\"\",'[2]EXT RIN(M)'!$K381)","v":50582.038843558301},{"$f":"IF(B374<>\"diciembre\",\"\",L374)","v":50582.038843558301},{"$f":"IF('[2]EXT RIN(M)'!$L381=\"\",\"\",'[2]EXT RIN(M)'!$L381)","v":59254.370432578304},{"$f":"IF(B374<>\"diciembre\",\"\",N374)","v":59254.370432578304},{"$f":"IF('[2]MONE(M)CARD'!EG381=\"\",\"\",'[2]MONE(M)CARD'!EG381)","v":52937.081931986861},{"$f":"IF('[2]MONE(M)CARD'!EK381=\"\",\"\",'[2]MONE(M)CARD'!EK381)","v":64420.54388506191},{"$f":"IF('[2]MONE(M)CARD'!EP381=\"\",\"\",'[2]MONE(M)CARD'!EP381)","v":37510.362383849337},{"$f":"IF('[2]MONE(M)CARD'!ES381=\"\",\"\",'[2]MONE(M)CARD'!ES381)","v":20.999161368631427},{"$f":"IF('[2]MONE(M)CARD'!EV381=\"\",\"\",'[2]MONE(M)CARD'!EV381)","v":11.845902438063828},{"$f":"IF('[2]MONE(M)CARD'!EZ381=\"\",\"\",'[2]MONE(M)CARD'!EZ381)","v":13.144609156501641},{"$f":"IF('[2]MONE(M)CAPARD'!FC381=\"\",\"\",'[2]MONE(M)CAPARD'!FC381)","v":62048.254222386851},{"$f":"IF('[2]MONE(M)CAPARD'!FG381=\"\",\"\",'[2]MONE(M)CAPARD'!FG381)","v":100936.07992968189},{"$f":"IF('[2]MONE(M)CAPARD'!FL381=\"\",\"\",'[2]MONE(M)CAPARD'!FL381)","v":37510.362383849337},{"$f":"IF('[2]MONE(M)CAPARD'!FO381=\"\",\"\",'[2]MONE(M)CAPARD'!FO381)","v":20.109433049877666},{"$f":"IF('[2]MONE(M)CAPARD'!FR381=\"\",\"\",'[2]MONE(M)CAPARD'!FR381)","v":10.743241982851458},{"$f":"IF('[2]MONE(M)CAPARD'!FV381=\"\",\"\",'[2]MONE(M)CAPARD'!FV381)","v":11.932324016525975},{"$f":"IF('[2]MONE(M)CARD'!FV381=\"\",\"\",'[2]MONE(M)CARD'!FV381)","v":1971.3676927068},{"$f":"IF('[2]MONE(M)CARD'!GD381=\"\",\"\",'[2]MONE(M)CARD'!GD381)","v":131.03831828576762},{"$f":"IF('[2]MONE(M)CARD'!GE381=\"\",\"\",'[2]MONE(M)CARD'!GE381)","v":14162.675514105991},3.744538367252459,{"$f":"IF('[9]II.2.Balance OSD-Activos'!J239=\"\",\"\",'[9]II.2.Balance OSD-Activos'!J239)","v":344.43239741211369},{"$f":"IF('[9]II.2.Balance OSD-Activos'!N239=\"\",\"\",'[9]II.2.Balance OSD-Activos'!N239)","v":1035.5368641023272},{"$f":"IF('[9]II.2.Balance OSD-Activos'!R239=\"\",\"\",'[9]II.2.Balance OSD-Activos'!R239)","v":56282.663703640625},{"$f":"IF('[9]II.2.Balance OSD-Activos'!S239=\"\",\"\",'[9]II.2.Balance OSD-Activos'!S239)","v":61352.6728664529},56627.096101052739,119015.30583160796,12.263291257538489,0.74005111513859578,-16.250728184937469,0.67681056457056243,-1.3770352587411216,-0.53619069259770447,7.8145351022629317E-2,{"$f":"IF('[2]MONE(M)CAPARD'!GS381=\"\",\"\",'[2]MONE(M)CAPARD'!GS381)","v":32106.488006092815},{"$f":"IF('[2]MONE(M)CARD'!HA381=\"\",\"\",'[2]MONE(M)CAPARD'!HA381)","v":16296.39637375599},{"$f":"IF('[2]MONE(M)CAPARD'!HB381=\"\",\"\",'[2]MONE(M)CAPARD'!HB381)","v":15810.091632336826},"n.d.",{"$f":"IF('[10]II.2.Balance OSD-Activos'!J239=\"\",\"\",'[10]II.2.Balance OSD-Activos'!J239)","v":2949.3679264021143},{"$f":"IF('[10]II.2.Balance OSD-Activos'!N239=\"\",\"\",'[10]II.2.Balance OSD-Activos'!N239)","v":1565.5702533423273},{"$f":"IF('[10]II.2.Balance OSD-Activos'!R239=\"\",\"\",'[10]II.2.Balance OSD-Activos'!R239)","v":78088.741152580624},{"$f":"IF('[10]II.2.Balance OSD-Activos'!S239=\"\",\"\",'[10]II.2.Balance OSD-Activos'!S239)","v":87744.630711772901},81038.109078982743,170348.31004409795,6.8868678522195914,-1.141837318055694,-13.858936359995877,-1.4215060217864894,-0.65249531850394282,-1.0250157457007525,-0.18533942229307376,{"$f":"IF('[2]MONE(M)CAPARD'!AS381=\"\",\"\",'[2]MONE(M)CAPARD'!AS381)","v":0.75},{"$f":"IF('[2]MONE(M)CAPARD'!AT381=\"\",\"\",'[2]MONE(M)CAPARD'!AT381)","v":"n.a."},{"$f":"IF('[2]MONE(M)CAPARD'!AU381=\"\",\"\",'[2]MONE(M)CAPARD'!AU381)","v":1.75},{"$f":"IF('[2]MONE(M)CAPARD'!AV381=\"\",\"\",'[2]MONE(M)CAPARD'!AV381)","v":3},{"$f":"IF('[2]MONE(M)CAPARD'!AW381=\"\",\"\",'[2]MONE(M)CAPARD'!AW381)","v":4},{"$f":"IF('[2]MONE(M)CAPARD'!AX381=\"\",\"\",'[2]MONE(M)CAPARD'!AX381)","v":3},{"$f":"IF('[2]MONE(M)CAPARD'!AY381=\"\",\"\",'[2]MONE(M)CAPARD'!AY381)","v":"n.a."},{"$f":"IF('[2]FISCAL(M)'!$K381=\"\",\"\",'[2]FISCAL(M)'!$K381)","v":-19370.04493222235},{"$f":"IF('[2]FISCAL(M)'!$L381=\"\",\"\",'[2]FISCAL(M)'!$L381)","v":-24256.34493222235},{"$f":"IF('[2]FISCAL(M)'!$AY381=\"\",\"\",'[2]FISCAL(M)'!$AY381)","v":171447.79968894806},{"$f":"IF('[2]FISCAL(M)'!$BI381=\"\",\"\",'[2]FISCAL(M)'!$BI381)","v":89093.80079930785},{"$f":"IF('[2]FISCAL(M)'!$BS381=\"\",\"\",'[2]FISCAL(M)'!$BS381)","v":82353.998889640206},{"$f":"IF('[2]FISCAL(M)'!$AZ381=\"\",\"\",'[2]FISCAL(M)'!$AZ381)","v":208407.73968894806},{"$f":"IF('[2]FISCAL(M)'!$BJ381=\"\",\"\",'[2]FISCAL(M)'!$BJ381)","v":96236.350799307838},{"$f":"IF('[2]FISCAL(M)'!$BT381=\"\",\"\",'[2]FISCAL(M)'!$BT381)","v":112171.38888964021},{"$f":"IF('[3]MONE(M)'!$AO381=\"\",\"\",'[3]MONE(M)'!$AO381)","v":22737170.456663206},{"$f":"IF('[4]MONE(M)'!$AO381=\"\",\"\",'[4]MONE(M)'!$AO381)","v":14355.025587390002},{"$f":"IF('[5]MONE(M)'!$AO381=\"\",\"\",'[5]MONE(M)'!$AO381)","v":228437.58019367466},{"$f":"+'[1]MONE(M)'!$AO381","v":400836.6353920137},{"$f":"IF('[6]MONE(M)'!$AO381=\"\",\"\",'[6]MONE(M)'!$AO381)","v":120945.47346676538},{"$f":"IF('[7]MONE(M)'!$AO381=\"\",\"\",'[7]MONE(M)'!$AO381)","v":1335093.4105642601},{"$f":"IF('[8]MONE(M)'!$AO381=\"\",\"\",'[8]MONE(M)'!$AO381)","v":51600.883864019997},3.9446780197889275,2.6729038875000111,5.9116243999646656,2.9338379491384181,-4.0777602816925551,5.1375665842864793,-3.2695156978307827,{"$f":"'[2]FISCAL(M)'!$K381","v":-19370.04493222235},{"$f":"+'[2]REAL(A)'!$AO$40","v":280375.55734848662},-6.9086068398418838,{"$f":"IF('[2]FISCAL(M)'!$L381=\"\",\"\",'[2]FISCAL(M)'!$L381)","v":-24256.34493222235},{"$f":"+'[2]REAL(A)'!$AP$40","v":334352.59023561911},-7.2547202087260159,171927.66860430146,{"$f":"'[2]Gráfico REM'!BG375","v":39321.554877457464},{"$f":"'[2]Gráfico REM'!BH375","v":123567.92833916922},{"$f":"'[2]Gráfico REM'!BI375","v":9038.1853876747755},5.0962245967392628,28.737606158652973,-0.27122567945286891,-1.1439772117577185,250218.19251571147,{"$f":"'[2]Gráfico REM'!BK375","v":43319.631147317465},{"$f":"'[2]Gráfico REM'!BL375","v":175168.81220318921},{"$f":"'[2]Gráfico REM'!BM375","v":31729.749165204776},3.6188493066875882,30.699346645459812,-1.1735935758033222,2.0710889352040018]
[2021,"enero",{"$f":"A375&\"-\"&B375","v":"2021-enero"},{"$f":"IF('[2]REAL IPC(M)'!$AL382=\"\",\"\",+'[2]REAL IPC(M)'!$AL382)","v":4.1538364858920485},{"$f":"IF('[2]REAL IPC(M)'!$BE382=\"\",\"\",+'[2]REAL IPC(M)'!$BE382)","v":4.5267218973344514},{"$f":"IF('[2]REAL IPC(M)'!$AM382=\"\",\"\",+'[2]REAL IPC(M)'!$AM382)","v":3.3495893223819184},{"$f":"IF('[2]REAL IPC(M)'!$BI382=\"\",\"\",+'[2]REAL IPC(M)'!$BI382)","v":3.9166690365439294},{"$f":"IF('[2]REAL IMAE(M)'!BJ382=\"\",\"\",'[2]REAL IMAE(M)'!BJ382)","v":6.1015186089852236E-2},{"$f":"IF('[2]REAL IMAE(M)'!BK382=\"\",\"\",'[2]REAL IMAE(M)'!BK382)","v":2.9003531316236231},{"$f":"IF('[2]REAL IMAE(M)'!BN382=\"\",\"\",'[2]REAL IMAE(M)'!BN382)","v":-2.9377543975886988},{"$f":"IF('[2]REAL IMAE(M)'!BO382=\"\",\"\",'[2]REAL IMAE(M)'!BO382)","v":2.6032804844261292},{"$f":"IF('[2]EXT RIN(M)'!$K382=\"\",\"\",'[2]EXT RIN(M)'!$K382)","v":52144.534202933362},null,{"$f":"IF('[2]EXT RIN(M)'!$L382=\"\",\"\",'[2]EXT RIN(M)'!$L382)","v":61821.123641323364},null,{"$f":"IF('[2]MONE(M)CARD'!EG382=\"\",\"\",'[2]MONE(M)CARD'!EG382)","v":52772.532416609312},{"$f":"IF('[2]MONE(M)CARD'!EK382=\"\",\"\",'[2]MONE(M)CARD'!EK382)","v":64560.160368822726},{"$f":"IF('[2]MONE(M)CARD'!EP382=\"\",\"\",'[2]MONE(M)CARD'!EP382)","v":38128.564424709068},{"$f":"IF('[2]MONE(M)CARD'!ES382=\"\",\"\",'[2]MONE(M)CARD'!ES382)","v":22.863310259980253},{"$f":"IF('[2]MONE(M)CARD'!EV382=\"\",\"\",'[2]MONE(M)CARD'!EV382)","v":12.359668673445444},{"$f":"IF('[2]MONE(M)CARD'!EZ382=\"\",\"\",'[2]MONE(M)CARD'!EZ382)","v":13.26415459609871},{"$f":"IF('[2]MONE(M)CAPARD'!FC382=\"\",\"\",'[2]MONE(M)CAPARD'!FC382)","v":61820.443016379308},{"$f":"IF('[2]MONE(M)CAPARD'!FG382=\"\",\"\",'[2]MONE(M)CAPARD'!FG382)","v":101190.11299825273},{"$f":"IF('[2]MONE(M)CAPARD'!FL382=\"\",\"\",'[2]MONE(M)CAPARD'!FL382)","v":38128.564424709068},{"$f":"IF('[2]MONE(M)CAPARD'!FO382=\"\",\"\",'[2]MONE(M)CAPARD'!FO382)","v":21.800558732881825},{"$f":"IF('[2]MONE(M)CAPARD'!FR382=\"\",\"\",'[2]MONE(M)CAPARD'!FR382)","v":11.140605875311117},{"$f":"IF('[2]MONE(M)CAPARD'!FV382=\"\",\"\",'[2]MONE(M)CAPARD'!FV382)","v":12.055184186875101},{"$f":"IF('[2]MONE(M)CARD'!FV382=\"\",\"\",'[2]MONE(M)CARD'!FV382)","v":1954.0046816006263},{"$f":"IF('[2]MONE(M)CARD'!GD382=\"\",\"\",'[2]MONE(M)CARD'!GD382)","v":165.71472286348174},{"$f":"IF('[2]MONE(M)CARD'!GE382=\"\",\"\",'[2]MONE(M)CARD'!GE382)","v":14687.979050493965},13.10665242403244,{"$f":"IF('[9]II.2.Balance OSD-Activos'!J240=\"\",\"\",'[9]II.2.Balance OSD-Activos'!J240)","v":360.26940866018458},{"$f":"IF('[9]II.2.Balance OSD-Activos'!N240=\"\",\"\",'[9]II.2.Balance OSD-Activos'!N240)","v":1194.435938207972},{"$f":"IF('[9]II.2.Balance OSD-Activos'!R240=\"\",\"\",'[9]II.2.Balance OSD-Activos'!R240)","v":56390.147760718784},{"$f":"IF('[9]II.2.Balance OSD-Activos'!S240=\"\",\"\",'[9]II.2.Balance OSD-Activos'!S240)","v":61316.624188474023},56750.417169378969,119261.47729606097,18.626298584799539,0.79516683341918082,-3.2246379902245437,0.69846272526004061,-1.4355925922082458,-0.40516954511733427,0.13102114748037019,{"$f":"IF('[2]MONE(M)CAPARD'!GS382=\"\",\"\",'[2]MONE(M)CAPARD'!GS382)","v":32896.978339445552},{"$f":"IF('[2]MONE(M)CARD'!HA382=\"\",\"\",'[2]MONE(M)CAPARD'!HA382)","v":16860.710740533967},{"$f":"IF('[2]MONE(M)CAPARD'!HB382=\"\",\"\",'[2]MONE(M)CAPARD'!HB382)","v":16036.267598911585},"n.d.",{"$f":"IF('[10]II.2.Balance OSD-Activos'!J240=\"\",\"\",'[10]II.2.Balance OSD-Activos'!J240)","v":2953.9345757001852},{"$f":"IF('[10]II.2.Balance OSD-Activos'!N240=\"\",\"\",'[10]II.2.Balance OSD-Activos'!N240)","v":1731.3733407079721},{"$f":"IF('[10]II.2.Balance OSD-Activos'!R240=\"\",\"\",'[10]II.2.Balance OSD-Activos'!R240)","v":78133.804179868777},{"$f":"IF('[10]II.2.Balance OSD-Activos'!S240=\"\",\"\",'[10]II.2.Balance OSD-Activos'!S240)","v":87738.000309154013},81087.738755568964,170557.11240543093,6.9210269509822231,-1.0344647253155648,-5.1490877404387625,-1.3120713594045763,-0.76571250333391516,-0.94007829867973625,8.4937447021016244E-2,{"$f":"IF('[2]MONE(M)CAPARD'!AS382=\"\",\"\",'[2]MONE(M)CAPARD'!AS382)","v":0.75},{"$f":"IF('[2]MONE(M)CAPARD'!AT382=\"\",\"\",'[2]MONE(M)CAPARD'!AT382)","v":"n.a."},{"$f":"IF('[2]MONE(M)CAPARD'!AU382=\"\",\"\",'[2]MONE(M)CAPARD'!AU382)","v":1.75},{"$f":"IF('[2]MONE(M)CAPARD'!AV382=\"\",\"\",'[2]MONE(M)CAPARD'!AV382)","v":3},{"$f":"IF('[2]MONE(M)CAPARD'!AW382=\"\",\"\",'[2]MONE(M)CAPARD'!AW382)","v":3.75},{"$f":"IF('[2]MONE(M)CAPARD'!AX382=\"\",\"\",'[2]MONE(M)CAPARD'!AX382)","v":3},{"$f":"IF('[2]MONE(M)CAPARD'!AY382=\"\",\"\",'[2]MONE(M)CAPARD'!AY382)","v":"n.a."},{"$f":"IF('[2]FISCAL(M)'!$K382=\"\",\"\",'[2]FISCAL(M)'!$K382)","v":-130.62834549317188},{"$f":"IF('[2]FISCAL(M)'!$L382=\"\",\"\",'[2]FISCAL(M)'!$L382)","v":"n.d."},{"$f":"IF('[2]FISCAL(M)'!$AY382=\"\",\"\",'[2]FISCAL(M)'!$AY382)","v":177087.89699072952},{"$f":"IF('[2]FISCAL(M)'!$BI382=\"\",\"\",'[2]FISCAL(M)'!$BI382)","v":92324.115094436536},{"$f":"IF('[2]FISCAL(M)'!$BS382=\"\",\"\",'[2]FISCAL(M)'!$BS382)","v":84763.781896292989},{"$f":"IF('[2]FISCAL(M)'!$AZ382=\"\",\"\",'[2]FISCAL(M)'!$AZ382)","v":215995.76699072952},{"$f":"IF('[2]FISCAL(M)'!$BJ382=\"\",\"\",'[2]FISCAL(M)'!$BJ382)","v":99403.665094436539},{"$f":"IF('[2]FISCAL(M)'!$BT382=\"\",\"\",'[2]FISCAL(M)'!$BT382)","v":116592.101896293},{"$f":"IF('[3]MONE(M)'!$AO382=\"\",\"\",'[3]MONE(M)'!$AO382)","v":22696180.662487213},{"$f":"IF('[4]MONE(M)'!$AO382=\"\",\"\",'[4]MONE(M)'!$AO382)","v":14364.358130569999},{"$f":"IF('[5]MONE(M)'!$AO382=\"\",\"\",'[5]MONE(M)'!$AO382)","v":229473.78707608837},{"$f":"+'[1]MONE(M)'!$AO382","v":401474.10262275499},{"$f":"IF('[6]MONE(M)'!$AO382=\"\",\"\",'[6]MONE(M)'!$AO382)","v":120304.863003438},{"$f":"IF('[7]MONE(M)'!$AO382=\"\",\"\",'[7]MONE(M)'!$AO382)","v":1327017.0076150002},{"$f":"IF('[8]MONE(M)'!$AO382=\"\",\"\",'[8]MONE(M)'!$AO382)","v":51572.005258420002},{"$f":"IF(BY375=\"\",\"\",((BY375/BY363)-1)*100)","v":3.6684535170541155},2.0931913855708251,6.122606925053975,2.5627632505167197,-4.3862924942772992,{"$f":"IF(CD375=\"\",\"\",((CD375/CD363)-1)*100)","v":4.2222063751522709},{"$f":"IF(CE375=\"\",\"\",((CE375/CE363)-1)*100)","v":-3.2929504077583882},{"$f":"'[2]FISCAL(M)'!$K382","v":-130.62834549317188},{"$f":"+'[2]REAL(A)'!$AO$41","v":317624.39829411363},-4.1126672319489993E-2,{"$f":"IF('[2]FISCAL(M)'!$L382=\"\",\"\",'[2]FISCAL(M)'!$L382)","v":"n.d."},{"$f":"+'[2]REAL(A)'!$AP$41","v":381229.46407471638},"n.d.",174508.96193983636,{"$f":"'[2]Gráfico REM'!BG376","v":41771.995754262025},{"$f":"'[2]Gráfico REM'!BH376","v":123677.59827027447},{"$f":"'[2]Gráfico REM'!BI376","v":9059.3679152998648},5.6603909202442626,30.032097715274865,-0.28117031401500014,0.55294413665496478,252493.44137098637,{"$f":"'[2]Gráfico REM'!BK376","v":45803.708640182027},{"$f":"'[2]Gráfico REM'!BL376","v":175249.60352869448},{"$f":"'[2]Gráfico REM'!BM376","v":31440.129202109856},4.0098337812296547,33.403637871131345,-1.1867719245292396,1.1908587413386185]
[2021,"febrero","2021-febrero",{"$f":"IF('[2]REAL IPC(M)'!$AL383=\"\",\"\",+'[2]REAL IPC(M)'!$AL383)","v":4.622060118224125},{"$f":"IF('[2]REAL IPC(M)'!$BE383=\"\",\"\",+'[2]REAL IPC(M)'!$BE383)","v":4.6451523648839643},{"$f":"IF('[2]REAL IPC(M)'!$AM383=\"\",\"\",+'[2]REAL IPC(M)'!$AM383)","v":3.8730811227439155},{"$f":"IF('[2]REAL IPC(M)'!$BI383=\"\",\"\",+'[2]REAL IPC(M)'!$BI383)","v":4.0376129823091134},{"$f":"IF('[2]REAL IMAE(M)'!BJ383=\"\",\"\",'[2]REAL IMAE(M)'!BJ383)","v":3.4346736392899313},{"$f":"IF('[2]REAL IMAE(M)'!BK383=\"\",\"\",'[2]REAL IMAE(M)'!BK383)","v":3.0990463148980574},{"$f":"IF('[2]REAL IMAE(M)'!BN383=\"\",\"\",'[2]REAL IMAE(M)'!BN383)","v":1.1648029765515489},{"$f":"IF('[2]REAL IMAE(M)'!BO383=\"\",\"\",'[2]REAL IMAE(M)'!BO383)","v":2.9134818910131033},{"$f":"IF('[2]EXT RIN(M)'!$K383=\"\",\"\",'[2]EXT RIN(M)'!$K383)","v":51550.395087251425},null,{"$f":"IF('[2]EXT RIN(M)'!$L383=\"\",\"\",'[2]EXT RIN(M)'!$L383)","v":60613.072001821427},null,{"$f":"IF('[2]MONE(M)CARD'!EG383=\"\",\"\",'[2]MONE(M)CARD'!EG383)","v":52946.975610727008},{"$f":"IF('[2]MONE(M)CARD'!EK383=\"\",\"\",'[2]MONE(M)CARD'!EK383)","v":65268.102753344807},{"$f":"IF('[2]MONE(M)CARD'!EP383=\"\",\"\",'[2]MONE(M)CARD'!EP383)","v":38529.460289381357},{"$f":"IF('[2]MONE(M)CARD'!ES383=\"\",\"\",'[2]MONE(M)CARD'!ES383)","v":22.72341235256896},{"$f":"IF('[2]MONE(M)CARD'!EV383=\"\",\"\",'[2]MONE(M)CARD'!EV383)","v":13.054837898088877},{"$f":"IF('[2]MONE(M)CARD'!EZ383=\"\",\"\",'[2]MONE(M)CARD'!EZ383)","v":13.823212005627417},{"$f":"IF('[2]MONE(M)CAPARD'!FC383=\"\",\"\",'[2]MONE(M)CAPARD'!FC383)","v":62041.284752217005},{"$f":"IF('[2]MONE(M)CAPARD'!FG383=\"\",\"\",'[2]MONE(M)CAPARD'!FG383)","v":101987.65437718481},{"$f":"IF('[2]MONE(M)CAPARD'!FL383=\"\",\"\",'[2]MONE(M)CAPARD'!FL383)","v":38529.460289381357},{"$f":"IF('[2]MONE(M)CAPARD'!FO383=\"\",\"\",'[2]MONE(M)CAPARD'!FO383)","v":21.703542062659231},{"$f":"IF('[2]MONE(M)CAPARD'!FR383=\"\",\"\",'[2]MONE(M)CAPARD'!FR383)","v":11.669701534435607},{"$f":"IF('[2]MONE(M)CAPARD'!FV383=\"\",\"\",'[2]MONE(M)CAPARD'!FV383)","v":12.512448178020041},{"$f":"IF('[2]MONE(M)CARD'!FV383=\"\",\"\",'[2]MONE(M)CARD'!FV383)","v":1945.8783818192528},{"$f":"IF('[2]MONE(M)CARD'!GD383=\"\",\"\",'[2]MONE(M)CARD'!GD383)","v":136.34823891235359},{"$f":"IF('[2]MONE(M)CARD'!GE383=\"\",\"\",'[2]MONE(M)CARD'!GE383)","v":14853.031016338644},10.249086381421213,{"$f":"IF('[9]II.2.Balance OSD-Activos'!J241=\"\",\"\",'[9]II.2.Balance OSD-Activos'!J241)","v":352.86296616909362},{"$f":"IF('[9]II.2.Balance OSD-Activos'!N241=\"\",\"\",'[9]II.2.Balance OSD-Activos'!N241)","v":1225.8946862049147},{"$f":"IF('[9]II.2.Balance OSD-Activos'!R241=\"\",\"\",'[9]II.2.Balance OSD-Activos'!R241)","v":56851.348630038898},{"$f":"IF('[9]II.2.Balance OSD-Activos'!S241=\"\",\"\",'[9]II.2.Balance OSD-Activos'!S241)","v":61691.874123843503},57204.211596207992,120121.98040625641,17.900058069602665,1.5833926618831207,4.1688754545643247,1.4962095189322788,-0.94551731076023549,0.2937580613590951,0.69892760647642937,{"$f":"IF('[2]MONE(M)CAPARD'!GS383=\"\",\"\",'[2]MONE(M)CAPARD'!GS383)","v":33767.055402475104},{"$f":"IF('[2]MONE(M)CARD'!HA383=\"\",\"\",'[2]MONE(M)CAPARD'!HA383)","v":17052.863046628641},{"$f":"IF('[2]MONE(M)CAPARD'!HB383=\"\",\"\",'[2]MONE(M)CAPARD'!HB383)","v":16714.192355846462},"n.d.",{"$f":"IF('[10]II.2.Balance OSD-Activos'!J241=\"\",\"\",'[10]II.2.Balance OSD-Activos'!J241)","v":2978.798733629093},{"$f":"IF('[10]II.2.Balance OSD-Activos'!N241=\"\",\"\",'[10]II.2.Balance OSD-Activos'!N241)","v":1749.2594410849144},{"$f":"IF('[10]II.2.Balance OSD-Activos'!R241=\"\",\"\",'[10]II.2.Balance OSD-Activos'!R241)","v":78573.458815368882},{"$f":"IF('[10]II.2.Balance OSD-Activos'!S241=\"\",\"\",'[10]II.2.Balance OSD-Activos'!S241)","v":88167.637659393498},81552.257548997979,171469.1546494764,7.330645337535624,-0.34310108010959794,-0.32675954322212153,-0.61249066406567909,-0.47695562932869029,-0.41180617038342193,0.52827212829631431,{"$f":"IF('[2]MONE(M)CAPARD'!AS383=\"\",\"\",'[2]MONE(M)CAPARD'!AS383)","v":0.75},{"$f":"IF('[2]MONE(M)CAPARD'!AT383=\"\",\"\",'[2]MONE(M)CAPARD'!AT383)","v":"n.a."},{"$f":"IF('[2]MONE(M)CAPARD'!AU383=\"\",\"\",'[2]MONE(M)CAPARD'!AU383)","v":1.75},{"$f":"IF('[2]MONE(M)CAPARD'!AV383=\"\",\"\",'[2]MONE(M)CAPARD'!AV383)","v":3},{"$f":"IF('[2]MONE(M)CAPARD'!AW383=\"\",\"\",'[2]MONE(M)CAPARD'!AW383)","v":3.75},{"$f":"IF('[2]MONE(M)CAPARD'!AX383=\"\",\"\",'[2]MONE(M)CAPARD'!AX383)","v":3},{"$f":"IF('[2]MONE(M)CAPARD'!AY383=\"\",\"\",'[2]MONE(M)CAPARD'!AY383)","v":"n.a."},{"$f":"IF('[2]FISCAL(M)'!$K383=\"\",\"\",'[2]FISCAL(M)'!$K383)","v":-795.50697029209175},{"$f":"IF('[2]FISCAL(M)'!$L383=\"\",\"\",'[2]FISCAL(M)'!$L383)","v":"n.d."},{"$f":"IF('[2]FISCAL(M)'!$AY383=\"\",\"\",'[2]FISCAL(M)'!$AY383)","v":177988.50242504649},{"$f":"IF('[2]FISCAL(M)'!$BI383=\"\",\"\",'[2]FISCAL(M)'!$BI383)","v":93312.872145244968},{"$f":"IF('[2]FISCAL(M)'!$BS383=\"\",\"\",'[2]FISCAL(M)'!$BS383)","v":84675.630279801524},{"$f":"IF('[2]FISCAL(M)'!$AZ383=\"\",\"\",'[2]FISCAL(M)'!$AZ383)","v":216428.09242504652},{"$f":"IF('[2]FISCAL(M)'!$BJ383=\"\",\"\",'[2]FISCAL(M)'!$BJ383)","v":99969.492145244993},{"$f":"IF('[2]FISCAL(M)'!$BT383=\"\",\"\",'[2]FISCAL(M)'!$BT383)","v":116458.60027980153},{"$f":"IF('[3]MONE(M)'!$AO383=\"\",\"\",'[3]MONE(M)'!$AO383)","v":22670237.152413562},{"$f":"IF('[4]MONE(M)'!$AO383=\"\",\"\",'[4]MONE(M)'!$AO383)","v":14372.210108990954},{"$f":"IF('[5]MONE(M)'!$AO383=\"\",\"\",'[5]MONE(M)'!$AO383)","v":230672.50789236353},{"$f":"+'[1]MONE(M)'!$AO383","v":404954.6624271468},{"$f":"IF('[6]MONE(M)'!$AO383=\"\",\"\",'[6]MONE(M)'!$AO383)","v":120840.82856581564},{"$f":"IF('[7]MONE(M)'!$AO383=\"\",\"\",'[7]MONE(M)'!$AO383)","v":1335748.133712},{"$f":"IF('[8]MONE(M)'!$AO383=\"\",\"\",'[8]MONE(M)'!$AO383)","v":51681.814670609994},3.5514323895042388,1.8119634277849572,6.3328255425260327,2.9360088153332464,-3.703895100710064,4.5338991521331362,-3.2088581193290722,{"$f":"'[2]FISCAL(M)'!$K383","v":-795.50697029209175},{"$f":"+'[2]REAL(A)'!$AO$41","v":317624.39829411363},-0.25045524668903696,{"$f":"IF('[2]FISCAL(M)'!$L383=\"\",\"\",'[2]FISCAL(M)'!$L383)","v":"n.d."},{"$f":"+'[2]REAL(A)'!$AP$41","v":381229.46407471638},"n.d.",176540.23122526627,{"$f":"'[2]Gráfico REM'!BG377","v":42958.446242274462},{"$f":"'[2]Gráfico REM'!BH377","v":124492.0066096074},{"$f":"'[2]Gráfico REM'!BI377","v":9089.7783733844135},6.3768132899845842,31.539054650345832,0.28055646026565739,-0.71676820698574062,255038.92228382625,{"$f":"'[2]Gráfico REM'!BK377","v":47049.466779924463},{"$f":"'[2]Gráfico REM'!BL377","v":176173.82128021738},{"$f":"'[2]Gráfico REM'!BM377","v":31815.634223684414},4.8880980553273501,34.604413251783448,-0.7688921524536152,3.7672865549863488]
[2021,"marzo","2021-marzo",{"$f":"IF('[2]REAL IPC(M)'!$AL384=\"\",\"\",+'[2]REAL IPC(M)'!$AL384)","v":5.0622563199597348},{"$f":"IF('[2]REAL IPC(M)'!$BE384=\"\",\"\",+'[2]REAL IPC(M)'!$BE384)","v":4.7635300703218419},{"$f":"IF('[2]REAL IPC(M)'!$AM384=\"\",\"\",+'[2]REAL IPC(M)'!$AM384)","v":4.3774506652953571},{"$f":"IF('[2]REAL IPC(M)'!$BI384=\"\",\"\",+'[2]REAL IPC(M)'!$BI384)","v":4.1591580870453004},{"$f":"IF('[2]REAL IMAE(M)'!BJ384=\"\",\"\",'[2]REAL IMAE(M)'!BJ384)","v":11.352853188217992},{"$f":"IF('[2]REAL IMAE(M)'!BK384=\"\",\"\",'[2]REAL IMAE(M)'!BK384)","v":3.2954105534966249},{"$f":"IF('[2]REAL IMAE(M)'!BN384=\"\",\"\",'[2]REAL IMAE(M)'!BN384)","v":11.578465117301583},{"$f":"IF('[2]REAL IMAE(M)'!BO384=\"\",\"\",'[2]REAL IMAE(M)'!BO384)","v":3.2241308644999744},{"$f":"IF('[2]EXT RIN(M)'!$K384=\"\",\"\",'[2]EXT RIN(M)'!$K384)","v":51971.14136282503},null,{"$f":"IF('[2]EXT RIN(M)'!$L384=\"\",\"\",'[2]EXT RIN(M)'!$L384)","v":59862.44055592503},null,{"$f":"IF('[2]MONE(M)CARD'!EG384=\"\",\"\",'[2]MONE(M)CARD'!EG384)","v":53516.65063554715},{"$f":"IF('[2]MONE(M)CARD'!EK384=\"\",\"\",'[2]MONE(M)CARD'!EK384)","v":66322.819548070562},{"$f":"IF('[2]MONE(M)CARD'!EP384=\"\",\"\",'[2]MONE(M)CARD'!EP384)","v":38688.613284190375},{"$f":"IF('[2]MONE(M)CARD'!ES384=\"\",\"\",'[2]MONE(M)CARD'!ES384)","v":22.913938503448673},{"$f":"IF('[2]MONE(M)CARD'!EV384=\"\",\"\",'[2]MONE(M)CARD'!EV384)","v":14.345980444747575},{"$f":"IF('[2]MONE(M)CARD'!EZ384=\"\",\"\",'[2]MONE(M)CARD'!EZ384)","v":14.152061871728616},{"$f":"IF('[2]MONE(M)CAPARD'!FC384=\"\",\"\",'[2]MONE(M)CAPARD'!FC384)","v":62741.734620737145},{"$f":"IF('[2]MONE(M)CAPARD'!FG384=\"\",\"\",'[2]MONE(M)CAPARD'!FG384)","v":103333.96111081052},{"$f":"IF('[2]MONE(M)CAPARD'!FL384=\"\",\"\",'[2]MONE(M)CAPARD'!FL384)","v":38688.613284190389},{"$f":"IF('[2]MONE(M)CAPARD'!FO384=\"\",\"\",'[2]MONE(M)CAPARD'!FO384)","v":21.461588481261231},{"$f":"IF('[2]MONE(M)CAPARD'!FR384=\"\",\"\",'[2]MONE(M)CAPARD'!FR384)","v":12.716601766020474},{"$f":"IF('[2]MONE(M)CAPARD'!FV384=\"\",\"\",'[2]MONE(M)CAPARD'!FV384)","v":12.87416217035946},{"$f":"IF('[2]MONE(M)CARD'!FV384=\"\",\"\",'[2]MONE(M)CARD'!FV384)","v":1911.9055911655114},{"$f":"IF('[2]MONE(M)CARD'!GD384=\"\",\"\",'[2]MONE(M)CARD'!GD384)","v":133.18813669907533},{"$f":"IF('[2]MONE(M)CARD'!GE384=\"\",\"\",'[2]MONE(M)CARD'!GE384)","v":14854.06055092755},10.728292826744523,{"$f":"IF('[9]II.2.Balance OSD-Activos'!J242=\"\",\"\",'[9]II.2.Balance OSD-Activos'!J242)","v":323.53461029305373},{"$f":"IF('[9]II.2.Balance OSD-Activos'!N242=\"\",\"\",'[9]II.2.Balance OSD-Activos'!N242)","v":1262.424338167817},{"$f":"IF('[9]II.2.Balance OSD-Activos'!R242=\"\",\"\",'[9]II.2.Balance OSD-Activos'!R242)","v":57522.387402972912},{"$f":"IF('[9]II.2.Balance OSD-Activos'!S242=\"\",\"\",'[9]II.2.Balance OSD-Activos'!S242)","v":62208.995199330238},57845.922013265968,121317.34155076402,5.1945978131981763,1.4125625815940568,2.1230835858103259,1.3920594631357863,0.72490611988493825,1.066069524416724,0.77231146305762888,{"$f":"IF('[2]MONE(M)CAPARD'!GS384=\"\",\"\",'[2]MONE(M)CAPARD'!GS384)","v":35195.20933186906},{"$f":"IF('[2]MONE(M)CARD'!HA384=\"\",\"\",'[2]MONE(M)CAPARD'!HA384)","v":17127.722750557547},{"$f":"IF('[2]MONE(M)CAPARD'!HB384=\"\",\"\",'[2]MONE(M)CAPARD'!HB384)","v":18067.486581311514},"n.d.",{"$f":"IF('[10]II.2.Balance OSD-Activos'!J242=\"\",\"\",'[10]II.2.Balance OSD-Activos'!J242)","v":2922.4512480730536},{"$f":"IF('[10]II.2.Balance OSD-Activos'!N242=\"\",\"\",'[10]II.2.Balance OSD-Activos'!N242)","v":1777.6016052678169},{"$f":"IF('[10]II.2.Balance OSD-Activos'!R242=\"\",\"\",'[10]II.2.Balance OSD-Activos'!R242)","v":79240.394086542918},{"$f":"IF('[10]II.2.Balance OSD-Activos'!S242=\"\",\"\",'[10]II.2.Balance OSD-Activos'!S242)","v":88730.140945560241},82162.845334615966,172670.58788544402,9.5922015063111488,-0.75556578776586614,-4.1302729422148188,-1.0999665382522394,0.7038808789443074,-4.7417168836694223E-2,0.36438900154672771,{"$f":"IF('[2]MONE(M)CAPARD'!AS384=\"\",\"\",'[2]MONE(M)CAPARD'!AS384)","v":0.75},{"$f":"IF('[2]MONE(M)CAPARD'!AT384=\"\",\"\",'[2]MONE(M)CAPARD'!AT384)","v":"n.a."},{"$f":"IF('[2]MONE(M)CAPARD'!AU384=\"\",\"\",'[2]MONE(M)CAPARD'!AU384)","v":1.75},{"$f":"IF('[2]MONE(M)CAPARD'!AV384=\"\",\"\",'[2]MONE(M)CAPARD'!AV384)","v":3},{"$f":"IF('[2]MONE(M)CAPARD'!AW384=\"\",\"\",'[2]MONE(M)CAPARD'!AW384)","v":3.5},{"$f":"IF('[2]MONE(M)CAPARD'!AX384=\"\",\"\",'[2]MONE(M)CAPARD'!AX384)","v":3},{"$f":"IF('[2]MONE(M)CAPARD'!AY384=\"\",\"\",'[2]MONE(M)CAPARD'!AY384)","v":"n.a."},{"$f":"IF('[2]FISCAL(M)'!$K384=\"\",\"\",'[2]FISCAL(M)'!$K384)","v":-1024.7494260773908},{"$f":"IF('[2]FISCAL(M)'!$L384=\"\",\"\",'[2]FISCAL(M)'!$L384)","v":-2210.8494260773909},{"$f":"IF('[2]FISCAL(M)'!$AY384=\"\",\"\",'[2]FISCAL(M)'!$AY384)","v":179377.98967201103},{"$f":"IF('[2]FISCAL(M)'!$BI384=\"\",\"\",'[2]FISCAL(M)'!$BI384)","v":94846.925499069213},{"$f":"IF('[2]FISCAL(M)'!$BS384=\"\",\"\",'[2]FISCAL(M)'!$BS384)","v":84531.064172941813},{"$f":"IF('[2]FISCAL(M)'!$AZ384=\"\",\"\",'[2]FISCAL(M)'!$AZ384)","v":217783.10967201102},{"$f":"IF('[2]FISCAL(M)'!$BJ384=\"\",\"\",'[2]FISCAL(M)'!$BJ384)","v":101503.54549906924},{"$f":"IF('[2]FISCAL(M)'!$BT384=\"\",\"\",'[2]FISCAL(M)'!$BT384)","v":116279.5641729418},{"$f":"IF('[3]MONE(M)'!$AO384=\"\",\"\",'[3]MONE(M)'!$AO384)","v":22723013.729293309},{"$f":"IF('[4]MONE(M)'!$AO384=\"\",\"\",'[4]MONE(M)'!$AO384)","v":14458.11228682},{"$f":"IF('[5]MONE(M)'!$AO384=\"\",\"\",'[5]MONE(M)'!$AO384)","v":232654.23092473234},{"$f":"+'[1]MONE(M)'!$AO384","v":407735.5790568142},{"$f":"IF('[6]MONE(M)'!$AO384=\"\",\"\",'[6]MONE(M)'!$AO384)","v":121341.48842988742},{"$f":"IF('[7]MONE(M)'!$AO384=\"\",\"\",'[7]MONE(M)'!$AO384)","v":1349606.7310360002},{"$f":"IF('[8]MONE(M)'!$AO384=\"\",\"\",'[8]MONE(M)'!$AO384)","v":52730.253232490002},2.7957914923438132,1.2878825412196315,4.7633679965661146,3.107370518901087,-3.5056394304158744,5.4199126963489608,-1.7740946210972441,{"$f":"'[2]FISCAL(M)'!$K384","v":-1024.7494260773908},{"$f":"+'[2]REAL(A)'!$AO$41","v":317624.39829411363},-0.32262931675938006,{"$f":"IF('[2]FISCAL(M)'!$L384=\"\",\"\",'[2]FISCAL(M)'!$L384)","v":-2210.8494260773909},{"$f":"+'[2]REAL(A)'!$AP$41","v":381229.46407471638},-0.57992616899204075,179396.56924490535,{"$f":"'[2]Gráfico REM'!BG378","v":44217.661616796635},{"$f":"'[2]Gráfico REM'!BH378","v":125703.18295379664},{"$f":"'[2]Gráfico REM'!BI378","v":9475.7246743120704},8.1241654607363323,35.021146471848262,1.1732545701957253,6.1941220780757922,258022.68090763537,{"$f":"'[2]Gráfico REM'!BK378","v":47297.566460346636},{"$f":"'[2]Gráfico REM'!BL378","v":178433.43618628665},{"$f":"'[2]Gráfico REM'!BM378","v":32291.678261002075},6.2337665533666486,35.243043556004871,0.28401073165202906,7.7049483705704747]
[2021,"abril","2021-abril",{"$f":"IF('[2]REAL IPC(M)'!$AL385=\"\",\"\",+'[2]REAL IPC(M)'!$AL385)","v":5.5482083254613013},{"$f":"IF('[2]REAL IPC(M)'!$BE385=\"\",\"\",+'[2]REAL IPC(M)'!$BE385)","v":4.8810989466989918},{"$f":"IF('[2]REAL IPC(M)'!$AM385=\"\",\"\",+'[2]REAL IPC(M)'!$AM385)","v":4.9909724013412315},{"$f":"IF('[2]REAL IPC(M)'!$BI385=\"\",\"\",+'[2]REAL IPC(M)'!$BI385)","v":4.2804280150414042},{"$f":"IF('[2]REAL IMAE(M)'!BJ385=\"\",\"\",'[2]REAL IMAE(M)'!BJ385)","v":19.522998377601631},{"$f":"IF('[2]REAL IMAE(M)'!BK385=\"\",\"\",'[2]REAL IMAE(M)'!BK385)","v":3.4855003764107328},{"$f":"IF('[2]REAL IMAE(M)'!BN385=\"\",\"\",'[2]REAL IMAE(M)'!BN385)","v":22.970582876217605},{"$f":"IF('[2]REAL IMAE(M)'!BO385=\"\",\"\",'[2]REAL IMAE(M)'!BO385)","v":3.5291045737000815},{"$f":"IF('[2]EXT RIN(M)'!$K385=\"\",\"\",'[2]EXT RIN(M)'!$K385)","v":52490.600404501572},null,{"$f":"IF('[2]EXT RIN(M)'!$L385=\"\",\"\",'[2]EXT RIN(M)'!$L385)","v":60935.77998565157},null,{"$f":"IF('[2]MONE(M)CARD'!EG385=\"\",\"\",'[2]MONE(M)CARD'!EG385)","v":53289.393421808149},{"$f":"IF('[2]MONE(M)CARD'!EK385=\"\",\"\",'[2]MONE(M)CARD'!EK385)","v":66414.011543670698},{"$f":"IF('[2]MONE(M)CARD'!EP385=\"\",\"\",'[2]MONE(M)CARD'!EP385)","v":39137.680444382713},{"$f":"IF('[2]MONE(M)CARD'!ES385=\"\",\"\",'[2]MONE(M)CARD'!ES385)","v":17.408677077011614},{"$f":"IF('[2]MONE(M)CARD'!EV385=\"\",\"\",'[2]MONE(M)CARD'!EV385)","v":12.307089340170684},{"$f":"IF('[2]MONE(M)CARD'!EZ385=\"\",\"\",'[2]MONE(M)CARD'!EZ385)","v":12.737494025238782},{"$f":"IF('[2]MONE(M)CAPARD'!FC385=\"\",\"\",'[2]MONE(M)CAPARD'!FC385)","v":62507.488258668149},{"$f":"IF('[2]MONE(M)CAPARD'!FG385=\"\",\"\",'[2]MONE(M)CAPARD'!FG385)","v":93385.973340710698},{"$f":"IF('[2]MONE(M)CAPARD'!FL385=\"\",\"\",'[2]MONE(M)CAPARD'!FL385)","v":39137.680444382713},{"$f":"IF('[2]MONE(M)CAPARD'!FO385=\"\",\"\",'[2]MONE(M)CAPARD'!FO385)","v":16.919582411901366},{"$f":"IF('[2]MONE(M)CAPARD'!FR385=\"\",\"\",'[2]MONE(M)CAPARD'!FR385)","v":4.3708726379138474},{"$f":"IF('[2]MONE(M)CAPARD'!FV385=\"\",\"\",'[2]MONE(M)CAPARD'!FV385)","v":6.1834567406924723},{"$f":"IF('[2]MONE(M)CARD'!FV385=\"\",\"\",'[2]MONE(M)CARD'!FV385)","v":1906.659299859808},{"$f":"IF('[2]MONE(M)CARD'!GD385=\"\",\"\",'[2]MONE(M)CARD'!GD385)","v":213.97724101039975},{"$f":"IF('[2]MONE(M)CARD'!GE385=\"\",\"\",'[2]MONE(M)CARD'!GE385)","v":16414.696163642529},17.288956416660639,{"$f":"IF('[9]II.2.Balance OSD-Activos'!J243=\"\",\"\",'[9]II.2.Balance OSD-Activos'!J243)","v":325.24530426863089},{"$f":"IF('[9]II.2.Balance OSD-Activos'!N243=\"\",\"\",'[9]II.2.Balance OSD-Activos'!N243)","v":1206.5841521697002},{"$f":"IF('[9]II.2.Balance OSD-Activos'!R243=\"\",\"\",'[9]II.2.Balance OSD-Activos'!R243)","v":57566.806270833666},{"$f":"IF('[9]II.2.Balance OSD-Activos'!S243=\"\",\"\",'[9]II.2.Balance OSD-Activos'!S243)","v":62447.737825554505},57892.051575102298,121546.3735528265,-8.0189611453883369,-0.15941180526664045,-1.1401772316929404,-0.11118871048101386,1.3877295623025976,0.61954198773244151,-0.44652753668428247,{"$f":"IF('[2]MONE(M)CAPARD'!GS385=\"\",\"\",'[2]MONE(M)CAPARD'!GS385)","v":36067.613651585612},{"$f":"IF('[2]MONE(M)CARD'!HA385=\"\",\"\",'[2]MONE(M)CAPARD'!HA385)","v":18509.728802172529},{"$f":"IF('[2]MONE(M)CAPARD'!HB385=\"\",\"\",'[2]MONE(M)CAPARD'!HB385)","v":17557.884849413083},"n.d.",{"$f":"IF('[10]II.2.Balance OSD-Activos'!J243=\"\",\"\",'[10]II.2.Balance OSD-Activos'!J243)","v":2845.1744488586314},{"$f":"IF('[10]II.2.Balance OSD-Activos'!N243=\"\",\"\",'[10]II.2.Balance OSD-Activos'!N243)","v":2016.5887971897005},{"$f":"IF('[10]II.2.Balance OSD-Activos'!R243=\"\",\"\",'[10]II.2.Balance OSD-Activos'!R243)","v":79064.546300231654},{"$f":"IF('[10]II.2.Balance OSD-Activos'!S243=\"\",\"\",'[10]II.2.Balance OSD-Activos'!S243)","v":89095.886514430502},81909.72074909028,173022.19606071047,5.0287974400571755,-2.3434756495461562,9.3087005710702275,-2.5895270210680277,1.4153495242299918,-0.31712717138525637,-0.26971000254856214,{"$f":"IF('[2]MONE(M)CAPARD'!AS385=\"\",\"\",'[2]MONE(M)CAPARD'!AS385)","v":0.75},{"$f":"IF('[2]MONE(M)CAPARD'!AT385=\"\",\"\",'[2]MONE(M)CAPARD'!AT385)","v":"n.a."},{"$f":"IF('[2]MONE(M)CAPARD'!AU385=\"\",\"\",'[2]MONE(M)CAPARD'!AU385)","v":1.75},{"$f":"IF('[2]MONE(M)CAPARD'!AV385=\"\",\"\",'[2]MONE(M)CAPARD'!AV385)","v":3},{"$f":"IF('[2]MONE(M)CAPARD'!AW385=\"\",\"\",'[2]MONE(M)CAPARD'!AW385)","v":3.5},{"$f":"IF('[2]MONE(M)CAPARD'!AX385=\"\",\"\",'[2]MONE(M)CAPARD'!AX385)","v":3},{"$f":"IF('[2]MONE(M)CAPARD'!AY385=\"\",\"\",'[2]MONE(M)CAPARD'!AY385)","v":"n.a."},{"$f":"IF('[2]FISCAL(M)'!$K385=\"\",\"\",'[2]FISCAL(M)'!$K385)","v":-356.95216758049702},{"$f":"IF('[2]FISCAL(M)'!$L385=\"\",\"\",'[2]FISCAL(M)'!$L385)","v":"n.d."},{"$f":"IF('[2]FISCAL(M)'!$AY385=\"\",\"\",'[2]FISCAL(M)'!$AY385)","v":181270.94236162372},{"$f":"IF('[2]FISCAL(M)'!$BI385=\"\",\"\",'[2]FISCAL(M)'!$BI385)","v":96972.536230458078},{"$f":"IF('[2]FISCAL(M)'!$BS385=\"\",\"\",'[2]FISCAL(M)'!$BS385)","v":84298.406131165626},{"$f":"IF('[2]FISCAL(M)'!$AZ385=\"\",\"\",'[2]FISCAL(M)'!$AZ385)","v":219664.95236162373},{"$f":"IF('[2]FISCAL(M)'!$BJ385=\"\",\"\",'[2]FISCAL(M)'!$BJ385)","v":103614.90623045809},{"$f":"IF('[2]FISCAL(M)'!$BT385=\"\",\"\",'[2]FISCAL(M)'!$BT385)","v":116050.04613116563},{"$f":"IF('[3]MONE(M)'!$AO385=\"\",\"\",'[3]MONE(M)'!$AO385)","v":22820328.703954734},{"$f":"IF('[4]MONE(M)'!$AO385=\"\",\"\",'[4]MONE(M)'!$AO385)","v":14581.997619930002},{"$f":"IF('[5]MONE(M)'!$AO385=\"\",\"\",'[5]MONE(M)'!$AO385)","v":233338.49621783255},{"$f":"+'[1]MONE(M)'!$AO385","v":407467.59844874236},{"$f":"IF('[6]MONE(M)'!$AO385=\"\",\"\",'[6]MONE(M)'!$AO385)","v":120295.1539209726},{"$f":"IF('[7]MONE(M)'!$AO385=\"\",\"\",'[7]MONE(M)'!$AO385)","v":1361257.9239449999},{"$f":"IF('[8]MONE(M)'!$AO385=\"\",\"\",'[8]MONE(M)'!$AO385)","v":52662.238904173995},{"$f":"IF(BY378=\"\",\"\",((BY378/BY366)-1)*100)","v":4.6455501276852385},{"$f":"IF(BZ378=\"\",\"\",((BZ378/BZ366)-1)*100)","v":1.8846033625514513},{"$f":"IF(CA378=\"\",\"\",((CA378/CA366)-1)*100)","v":4.185759472521533},{"$f":"IF(CB378=\"\",\"\",((CB378/CB366)-1)*100)","v":2.3118727650339732},{"$f":"IF(CC378=\"\",\"\",((CC378/CC366)-1)*100)","v":-1.5201908734486014},4.9930397953873662,-1.9603617977768661,{"$f":"'[2]FISCAL(M)'!$K385","v":-356.95216758049702},{"$f":"+'[2]REAL(A)'!$AO$41","v":317624.39829411363},-0.1123818477099378,{"$f":"IF('[2]FISCAL(M)'!$L385=\"\",\"\",'[2]FISCAL(M)'!$L385)","v":"n.d."},{"$f":"+'[2]REAL(A)'!$AP$41","v":381229.46407471638},"n.d.",180672.99003991933,{"$f":"'[2]Gráfico REM'!BG379","v":45453.753616340124},{"$f":"'[2]Gráfico REM'!BH379","v":126032.81465771233},{"$f":"'[2]Gráfico REM'!BI379","v":9186.4217658668676},8.4718651671842338,39.125054919311644,0.88066766913788008,2.5458786087263263,260280.1177571243,{"$f":"'[2]Gráfico REM'!BK379","v":48954.847042684123},{"$f":"'[2]Gráfico REM'!BL379","v":178695.05356188631},{"$f":"'[2]Gráfico REM'!BM379","v":32630.217152553862},6.9439539729023281,40.510792716192135,2.6436091545622986E-2,9.1623019575645124]
[2021,"mayo ","2021-mayo ",{"$f":"IF('[2]REAL IPC(M)'!$AL386=\"\",\"\",+'[2]REAL IPC(M)'!$AL386)","v":5.8590058590058725},{"$f":"IF('[2]REAL IPC(M)'!$BE386=\"\",\"\",+'[2]REAL IPC(M)'!$BE386)","v":4.9971296581263314},{"$f":"IF('[2]REAL IPC(M)'!$AM386=\"\",\"\",+'[2]REAL IPC(M)'!$AM386)","v":5.2957492098303582},{"$f":"IF('[2]REAL IPC(M)'!$BI386=\"\",\"\",+'[2]REAL IPC(M)'!$BI386)","v":4.4005703626346593},{"$f":"IF('[2]REAL IMAE(M)'!BJ386=\"\",\"\",'[2]REAL IMAE(M)'!BJ386)","v":19.627614878604426},{"$f":"IF('[2]REAL IMAE(M)'!BK386=\"\",\"\",'[2]REAL IMAE(M)'!BK386)","v":3.6658376784798774},{"$f":"IF('[2]REAL IMAE(M)'!BN386=\"\",\"\",'[2]REAL IMAE(M)'!BN386)","v":24.662903734386575},{"$f":"IF('[2]REAL IMAE(M)'!BO386=\"\",\"\",'[2]REAL IMAE(M)'!BO386)","v":3.8228086562299257},{"$f":"IF('[2]EXT RIN(M)'!$K386=\"\",\"\",'[2]EXT RIN(M)'!$K386)","v":53212.810244589753},null,{"$f":"IF('[2]EXT RIN(M)'!$L386=\"\",\"\",'[2]EXT RIN(M)'!$L386)","v":61499.473028939756},null,{"$f":"IF('[2]MONE(M)CARD'!EG386=\"\",\"\",'[2]MONE(M)CARD'!EG386)","v":54082.30872687904},{"$f":"IF('[2]MONE(M)CARD'!EK386=\"\",\"\",'[2]MONE(M)CARD'!EK386)","v":66638.793786063994},{"$f":"IF('[2]MONE(M)CARD'!EP386=\"\",\"\",'[2]MONE(M)CARD'!EP386)","v":39755.845252876024},{"$f":"IF('[2]MONE(M)CARD'!ES386=\"\",\"\",'[2]MONE(M)CARD'!ES386)","v":17.330385899721247},{"$f":"IF('[2]MONE(M)CARD'!EV386=\"\",\"\",'[2]MONE(M)CARD'!EV386)","v":12.272617195398027},{"$f":"IF('[2]MONE(M)CARD'!EZ386=\"\",\"\",'[2]MONE(M)CARD'!EZ386)","v":12.194998077168307},{"$f":"IF('[2]MONE(M)CAPARD'!FC386=\"\",\"\",'[2]MONE(M)CAPARD'!FC386)","v":63242.414245439038},{"$f":"IF('[2]MONE(M)CAPARD'!FG386=\"\",\"\",'[2]MONE(M)CAPARD'!FG386)","v":93797.007981643997},{"$f":"IF('[2]MONE(M)CAPARD'!FL386=\"\",\"\",'[2]MONE(M)CAPARD'!FL386)","v":39755.845252876054},{"$f":"IF('[2]MONE(M)CAPARD'!FO386=\"\",\"\",'[2]MONE(M)CAPARD'!FO386)","v":16.745524607714323},{"$f":"IF('[2]MONE(M)CAPARD'!FR386=\"\",\"\",'[2]MONE(M)CAPARD'!FR386)","v":4.4247691320169036},{"$f":"IF('[2]MONE(M)CAPARD'!FV386=\"\",\"\",'[2]MONE(M)CAPARD'!FV386)","v":5.8641197858425587},{"$f":"IF('[2]MONE(M)CARD'!FV386=\"\",\"\",'[2]MONE(M)CARD'!FV386)","v":1908.2004364064635},{"$f":"IF('[2]MONE(M)CARD'!GD386=\"\",\"\",'[2]MONE(M)CARD'!GD386)","v":125.27149684946571},{"$f":"IF('[2]MONE(M)CARD'!GE386=\"\",\"\",'[2]MONE(M)CARD'!GE386)","v":16233.508831923624},12.414920111779249,{"$f":"IF('[9]II.2.Balance OSD-Activos'!J244=\"\",\"\",'[9]II.2.Balance OSD-Activos'!J244)","v":320.16218759938687},{"$f":"IF('[9]II.2.Balance OSD-Activos'!N244=\"\",\"\",'[9]II.2.Balance OSD-Activos'!N244)","v":1164.5066512058438},{"$f":"IF('[9]II.2.Balance OSD-Activos'!R244=\"\",\"\",'[9]II.2.Balance OSD-Activos'!R244)","v":57909.450423107817},{"$f":"IF('[9]II.2.Balance OSD-Activos'!S244=\"\",\"\",'[9]II.2.Balance OSD-Activos'!S244)","v":62780.472629726355},58229.612610707205,122174.5918916394,-11.984427219979843,0.56938294434156766,0.82989003059770194,0.64875086859894626,2.7878530275831093,1.6998002937868462,1.0802583060544046,{"$f":"IF('[2]MONE(M)CAPARD'!GS386=\"\",\"\",'[2]MONE(M)CAPARD'!GS386)","v":36281.619309499176},{"$f":"IF('[2]MONE(M)CARD'!HA386=\"\",\"\",'[2]MONE(M)CAPARD'!HA386)","v":18334.167116363624},{"$f":"IF('[2]MONE(M)CAPARD'!HB386=\"\",\"\",'[2]MONE(M)CAPARD'!HB386)","v":17947.452193135552},"n.d.",{"$f":"IF('[10]II.2.Balance OSD-Activos'!J244=\"\",\"\",'[10]II.2.Balance OSD-Activos'!J244)","v":2856.4688119293869},{"$f":"IF('[10]II.2.Balance OSD-Activos'!N244=\"\",\"\",'[10]II.2.Balance OSD-Activos'!N244)","v":1972.7220194858437},{"$f":"IF('[10]II.2.Balance OSD-Activos'!R244=\"\",\"\",'[10]II.2.Balance OSD-Activos'!R244)","v":79420.32789450782},{"$f":"IF('[10]II.2.Balance OSD-Activos'!S244=\"\",\"\",'[10]II.2.Balance OSD-Activos'!S244)","v":89523.480593326356},82276.796706437206,173772.99931924941,4.9395928630616481,-1.6788157834056405,11.255668055631052,-1.9013388798943209,2.5778317994408217,0.60469905957518666,0.92182623096044303,{"$f":"IF('[2]MONE(M)CAPARD'!AS386=\"\",\"\",'[2]MONE(M)CAPARD'!AS386)","v":0.75},{"$f":"IF('[2]MONE(M)CAPARD'!AT386=\"\",\"\",'[2]MONE(M)CAPARD'!AT386)","v":"n.a."},{"$f":"IF('[2]MONE(M)CAPARD'!AU386=\"\",\"\",'[2]MONE(M)CAPARD'!AU386)","v":1.75},{"$f":"IF('[2]MONE(M)CAPARD'!AV386=\"\",\"\",'[2]MONE(M)CAPARD'!AV386)","v":3},{"$f":"IF('[2]MONE(M)CAPARD'!AW386=\"\",\"\",'[2]MONE(M)CAPARD'!AW386)","v":3.5},{"$f":"IF('[2]MONE(M)CAPARD'!AX386=\"\",\"\",'[2]MONE(M)CAPARD'!AX386)","v":3},{"$f":"IF('[2]MONE(M)CAPARD'!AY386=\"\",\"\",'[2]MONE(M)CAPARD'!AY386)","v":"n.a."},{"$f":"IF('[2]FISCAL(M)'!$K386=\"\",\"\",'[2]FISCAL(M)'!$K386)","v":-1096.5196408525587},{"$f":"IF('[2]FISCAL(M)'!$L386=\"\",\"\",'[2]FISCAL(M)'!$L386)","v":"n.d."},{"$f":"IF('[2]FISCAL(M)'!$AY386=\"\",\"\",'[2]FISCAL(M)'!$AY386)","v":181691.25917756918},{"$f":"IF('[2]FISCAL(M)'!$BI386=\"\",\"\",'[2]FISCAL(M)'!$BI386)","v":97236.547097465664},{"$f":"IF('[2]FISCAL(M)'!$BS386=\"\",\"\",'[2]FISCAL(M)'!$BS386)","v":84454.712080103491},{"$f":"IF('[2]FISCAL(M)'!$AZ386=\"\",\"\",'[2]FISCAL(M)'!$AZ386)","v":220037.73917756919},{"$f":"IF('[2]FISCAL(M)'!$BJ386=\"\",\"\",'[2]FISCAL(M)'!$BJ386)","v":103848.25709746568},{"$f":"IF('[2]FISCAL(M)'!$BT386=\"\",\"\",'[2]FISCAL(M)'!$BT386)","v":116189.48208010349},{"$f":"IF('[3]MONE(M)'!$AO386=\"\",\"\",'[3]MONE(M)'!$AO386)","v":22804713.129415907},{"$f":"IF('[4]MONE(M)'!$AO386=\"\",\"\",'[4]MONE(M)'!$AO386)","v":14685.20682021},{"$f":"IF('[5]MONE(M)'!$AO386=\"\",\"\",'[5]MONE(M)'!$AO386)","v":234601.12358823887},{"$f":"+'[1]MONE(M)'!$AO386","v":410702.1113589583},{"$f":"IF('[6]MONE(M)'!$AO386=\"\",\"\",'[6]MONE(M)'!$AO386)","v":120582.37704555658},{"$f":"IF('[7]MONE(M)'!$AO386=\"\",\"\",'[7]MONE(M)'!$AO386)","v":1378373.2278419998},{"$f":"IF('[8]MONE(M)'!$AO386=\"\",\"\",'[8]MONE(M)'!$AO386)","v":52861.396346400012},{"$f":"IF(BY379=\"\",\"\",((BY379/BY367)-1)*100)","v":3.8331539022443462},{"$f":"IF(BZ379=\"\",\"\",((BZ379/BZ367)-1)*100)","v":2.4372015796903623},4.5918980371282059,2.6684913090346152,-0.34291859300399352,4.26385517408856,-1.2078558840359688,{"$f":"'[2]FISCAL(M)'!$K386","v":-1096.5196408525587},{"$f":"+'[2]REAL(A)'!$AO$41","v":317624.39829411363},-0.34522525559803002,{"$f":"IF('[2]FISCAL(M)'!$L386=\"\",\"\",'[2]FISCAL(M)'!$L386)","v":"n.d."},{"$f":"+'[2]REAL(A)'!$AP$41","v":381229.46407471638},"n.d.",182313.900519827,{"$f":"'[2]Gráfico REM'!BG380","v":46713.446221287151},{"$f":"'[2]Gráfico REM'!BH380","v":126648.89882892603},{"$f":"'[2]Gráfico REM'!BI380","v":8951.5554696138024},9.1754034557619555,39.459230126139744,1.7935674954301817,-1.3952056860746631,262282.30857096001,{"$f":"'[2]Gráfico REM'!BK380","v":50198.886835478152},{"$f":"'[2]Gráfico REM'!BL380","v":179510.29517532606},{"$f":"'[2]Gráfico REM'!BM380","v":32573.126560155804},7.5526953229481997,40.717059033827276,0.89094467694714741,7.6253592000938619]
[2021,"junio ","2021-junio ",{"$f":"IF('[2]REAL IPC(M)'!$AL387=\"\",\"\",+'[2]REAL IPC(M)'!$AL387)","v":5.2273719668142871},{"$f":"IF('[2]REAL IPC(M)'!$BE387=\"\",\"\",+'[2]REAL IPC(M)'!$BE387)","v":5.1109431139879424},{"$f":"IF('[2]REAL IPC(M)'!$AM387=\"\",\"\",+'[2]REAL IPC(M)'!$AM387)","v":4.6970858895705625},{"$f":"IF('[2]REAL IPC(M)'!$BI387=\"\",\"\",+'[2]REAL IPC(M)'!$BI387)","v":4.5187894942831486},{"$f":"IF('[2]REAL IMAE(M)'!BJ387=\"\",\"\",'[2]REAL IMAE(M)'!BJ387)","v":15.610982841697997},{"$f":"IF('[2]REAL IMAE(M)'!BK387=\"\",\"\",'[2]REAL IMAE(M)'!BK387)","v":3.8338164623174631},{"$f":"IF('[2]REAL IMAE(M)'!BN387=\"\",\"\",'[2]REAL IMAE(M)'!BN387)","v":20.240462053587361},{"$f":"IF('[2]REAL IMAE(M)'!BO387=\"\",\"\",'[2]REAL IMAE(M)'!BO387)","v":4.100814707357725},{"$f":"IF('[2]EXT RIN(M)'!$K387=\"\",\"\",'[2]EXT RIN(M)'!$K387)","v":53244.159786042132},null,{"$f":"IF('[2]EXT RIN(M)'!$L387=\"\",\"\",'[2]EXT RIN(M)'!$L387)","v":62145.361858332129},null,{"$f":"IF('[2]MONE(M)CARD'!EG387=\"\",\"\",'[2]MONE(M)CARD'!EG387)","v":53982.994288106289},{"$f":"IF('[2]MONE(M)CARD'!EK387=\"\",\"\",'[2]MONE(M)CARD'!EK387)","v":67412.644719566248},{"$f":"IF('[2]MONE(M)CARD'!EP387=\"\",\"\",'[2]MONE(M)CARD'!EP387)","v":39914.111938175061},{"$f":"IF('[2]MONE(M)CARD'!ES387=\"\",\"\",'[2]MONE(M)CARD'!ES387)","v":14.389679420697243},{"$f":"IF('[2]MONE(M)CARD'!EV387=\"\",\"\",'[2]MONE(M)CARD'!EV387)","v":11.108416147953815},{"$f":"IF('[2]MONE(M)CARD'!EZ387=\"\",\"\",'[2]MONE(M)CARD'!EZ387)","v":11.239010213159805},{"$f":"IF('[2]MONE(M)CAPARD'!FC387=\"\",\"\",'[2]MONE(M)CAPARD'!FC387)","v":63417.184284096278},{"$f":"IF('[2]MONE(M)CAPARD'!FG387=\"\",\"\",'[2]MONE(M)CAPARD'!FG387)","v":94673.561191726229},{"$f":"IF('[2]MONE(M)CAPARD'!FL387=\"\",\"\",'[2]MONE(M)CAPARD'!FL387)","v":39914.111938175076},{"$f":"IF('[2]MONE(M)CAPARD'!FO387=\"\",\"\",'[2]MONE(M)CAPARD'!FO387)","v":14.396442167935874},{"$f":"IF('[2]MONE(M)CAPARD'!FR387=\"\",\"\",'[2]MONE(M)CAPARD'!FR387)","v":3.6244554596154277},{"$f":"IF('[2]MONE(M)CAPARD'!FV387=\"\",\"\",'[2]MONE(M)CAPARD'!FV387)","v":5.1459150921135732},{"$f":"IF('[2]MONE(M)CARD'!FV387=\"\",\"\",'[2]MONE(M)CARD'!FV387)","v":1955.3269758121535},{"$f":"IF('[2]MONE(M)CARD'!GD387=\"\",\"\",'[2]MONE(M)CARD'!GD387)","v":143.73557530095613},{"$f":"IF('[2]MONE(M)CARD'!GE387=\"\",\"\",'[2]MONE(M)CARD'!GE387)","v":16553.721667504818},19.291433152197278,{"$f":"IF('[9]II.2.Balance OSD-Activos'!J245=\"\",\"\",'[9]II.2.Balance OSD-Activos'!J245)","v":327.81786352459704},{"$f":"IF('[9]II.2.Balance OSD-Activos'!N245=\"\",\"\",'[9]II.2.Balance OSD-Activos'!N245)","v":1629.8340653787845},{"$f":"IF('[9]II.2.Balance OSD-Activos'!R245=\"\",\"\",'[9]II.2.Balance OSD-Activos'!R245)","v":58086.782930575027},{"$f":"IF('[9]II.2.Balance OSD-Activos'!S245=\"\",\"\",'[9]II.2.Balance OSD-Activos'!S245)","v":63231.16346443395},58414.600794099628,{"$f":"IF(OR(AF380=\"\",AG380=\"\",AH380=\"\",AI380=\"\"),\"\",SUM(AF380:AI380))","v":123275.59832391236},-12.118291771248701,1.3330358591533864,46.453421763316548,1.4206447776783149,3.8663892102180242,3.0418551240593006,1.3420548302724544,{"$f":"IF('[2]MONE(M)CAPARD'!GS387=\"\",\"\",'[2]MONE(M)CAPARD'!GS387)","v":37095.127073658026},{"$f":"IF('[2]MONE(M)CARD'!HA387=\"\",\"\",'[2]MONE(M)CAPARD'!HA387)","v":18632.577017974818},{"$f":"IF('[2]MONE(M)CAPARD'!HB387=\"\",\"\",'[2]MONE(M)CAPARD'!HB387)","v":18462.550055683208},"n.d.",{"$f":"IF('[10]II.2.Balance OSD-Activos'!J245=\"\",\"\",'[10]II.2.Balance OSD-Activos'!J245)","v":2843.0261636745968},{"$f":"IF('[10]II.2.Balance OSD-Activos'!N245=\"\",\"\",'[10]II.2.Balance OSD-Activos'!N245)","v":2434.7158292387849},{"$f":"IF('[10]II.2.Balance OSD-Activos'!R245=\"\",\"\",'[10]II.2.Balance OSD-Activos'!R245)","v":79475.433895765018},{"$f":"IF('[10]II.2.Balance OSD-Activos'!S245=\"\",\"\",'[10]II.2.Balance OSD-Activos'!S245)","v":90088.427862633951},82318.460059439618,{"$f":"IF(OR(AW380=\"\",AX380=\"\",AY380=\"\",AZ380=\"\"),\"\",SUM(AW380:AZ380))","v":174841.60375131236},3.3871264865152684,-1.1418270020388088,42.175437248844673,-1.2964990733703496,3.4912507316959385,1.6337528756406261,1.0290538160654394,{"$f":"IF('[2]MONE(M)CAPARD'!AS387=\"\",\"\",'[2]MONE(M)CAPARD'!AS387)","v":0.75},{"$f":"IF('[2]MONE(M)CAPARD'!AT387=\"\",\"\",'[2]MONE(M)CAPARD'!AT387)","v":"n.a."},{"$f":"IF('[2]MONE(M)CAPARD'!AU387=\"\",\"\",'[2]MONE(M)CAPARD'!AU387)","v":1.75},{"$f":"IF('[2]MONE(M)CAPARD'!AV387=\"\",\"\",'[2]MONE(M)CAPARD'!AV387)","v":3},{"$f":"IF('[2]MONE(M)CAPARD'!AW387=\"\",\"\",'[2]MONE(M)CAPARD'!AW387)","v":3.5},{"$f":"IF('[2]MONE(M)CAPARD'!AX387=\"\",\"\",'[2]MONE(M)CAPARD'!AX387)","v":3},{"$f":"IF('[2]MONE(M)CAPARD'!AY387=\"\",\"\",'[2]MONE(M)CAPARD'!AY387)","v":"n.a."},{"$f":"IF('[2]FISCAL(M)'!$K387=\"\",\"\",'[2]FISCAL(M)'!$K387)","v":-1807.9386588661198},{"$f":"IF('[2]FISCAL(M)'!$L387=\"\",\"\",'[2]FISCAL(M)'!$L387)","v":-4501.1386588661207},{"$f":"IF('[2]FISCAL(M)'!$AY387=\"\",\"\",'[2]FISCAL(M)'!$AY387)","v":182399.4684568285},{"$f":"IF('[2]FISCAL(M)'!$BI387=\"\",\"\",'[2]FISCAL(M)'!$BI387)","v":97916.691461498092},{"$f":"IF('[2]FISCAL(M)'!$BS387=\"\",\"\",'[2]FISCAL(M)'!$BS387)","v":84482.776995330409},{"$f":"IF('[2]FISCAL(M)'!$AZ387=\"\",\"\",'[2]FISCAL(M)'!$AZ387)","v":222083.88845682851},{"$f":"IF('[2]FISCAL(M)'!$BJ387=\"\",\"\",'[2]FISCAL(M)'!$BJ387)","v":105475.8914614981},{"$f":"IF('[2]FISCAL(M)'!$BT387=\"\",\"\",'[2]FISCAL(M)'!$BT387)","v":116607.99699533042},{"$f":"IF('[3]MONE(M)'!$AO387=\"\",\"\",'[3]MONE(M)'!$AO387)","v":22763999.346320644},{"$f":"IF('[4]MONE(M)'!$AO387=\"\",\"\",'[4]MONE(M)'!$AO387)","v":14780.283926519998},{"$f":"IF('[5]MONE(M)'!$AO387=\"\",\"\",'[5]MONE(M)'!$AO387)","v":236337.47685391438},{"$f":"+'[1]MONE(M)'!$AO387","v":412001.91448944015},{"$f":"IF('[6]MONE(M)'!$AO387=\"\",\"\",'[6]MONE(M)'!$AO387)","v":122062.72916457108},{"$f":"IF('[7]MONE(M)'!$AO387=\"\",\"\",'[7]MONE(M)'!$AO387)","v":1380091.67129895},{"$f":"IF('[8]MONE(M)'!$AO387=\"\",\"\",'[8]MONE(M)'!$AO387)","v":52856.597586660006},3.0248727057298641,{"$f":"IF(BZ380=\"\",\"\",((BZ380/BZ368)-1)*100)","v":3.156997192837685},5.6017401168971803,2.9868325685531882,1.3544150313482106,2.9145246616444354,-0.82322930129179461,{"$f":"'[2]FISCAL(M)'!$K387","v":-1807.9386588661198},{"$f":"+'[2]REAL(A)'!$AO$41","v":317624.39829411363},-0.56920648053995082,{"$f":"IF('[2]FISCAL(M)'!$L387=\"\",\"\",'[2]FISCAL(M)'!$L387)","v":-4501.1386588661207},{"$f":"+'[2]REAL(A)'!$AP$41","v":381229.46407471638},-1.1806901310188218,183612.57534154254,{"$f":"'[2]Gráfico REM'!BG381","v":46958.978656979358},{"$f":"'[2]Gráfico REM'!BH381","v":126900.07897042483},{"$f":"'[2]Gráfico REM'!BI381","v":9753.5177141383501},9.7568494374221437,37.129476781191805,2.3356819773073578,7.865419080867242,263288.26018695155,{"$f":"'[2]Gráfico REM'!BK381","v":50536.380538892357},{"$f":"'[2]Gráfico REM'!BL381","v":179756.67655708484},{"$f":"'[2]Gráfico REM'!BM381","v":32995.203090974348},7.7608831954272706,38.835554324320618,1.3861268748615707,7.7319904220340296]
[2021,"julio","2021-julio",{"$f":"IF('[2]REAL IPC(M)'!$AL388=\"\",\"\",+'[2]REAL IPC(M)'!$AL388)","v":4.7339108910891214},{"$f":"IF('[2]REAL IPC(M)'!$BE388=\"\",\"\",+'[2]REAL IPC(M)'!$BE388)","v":5.2219138131129439},{"$f":"IF('[2]REAL IPC(M)'!$AM388=\"\",\"\",+'[2]REAL IPC(M)'!$AM388)","v":4.393650793650794},{"$f":"IF('[2]REAL IPC(M)'!$BI388=\"\",\"\",+'[2]REAL IPC(M)'!$BI388)","v":4.6343512434261935},{"$f":"IF('[2]REAL IMAE(M)'!BJ388=\"\",\"\",'[2]REAL IMAE(M)'!BJ388)","v":13.119749328219733},{"$f":"IF('[2]REAL IMAE(M)'!BK388=\"\",\"\",'[2]REAL IMAE(M)'!BK388)","v":3.9877068849969},{"$f":"IF('[2]REAL IMAE(M)'!BN388=\"\",\"\",'[2]REAL IMAE(M)'!BN388)","v":17.678416830507615},{"$f":"IF('[2]REAL IMAE(M)'!BO388=\"\",\"\",'[2]REAL IMAE(M)'!BO388)","v":4.3599537668454147},{"$f":"IF('[2]EXT RIN(M)'!$K388=\"\",\"\",'[2]EXT RIN(M)'!$K388)","v":53727.740481428176},null,{"$f":"IF('[2]EXT RIN(M)'!$L388=\"\",\"\",'[2]EXT RIN(M)'!$L388)","v":61937.95749934818},null,{"$f":"IF('[2]MONE(M)CARD'!EG388=\"\",\"\",'[2]MONE(M)CARD'!EG388)","v":54743.801832389043},{"$f":"IF('[2]MONE(M)CARD'!EK388=\"\",\"\",'[2]MONE(M)CARD'!EK388)","v":67344.856728581784},{"$f":"IF('[2]MONE(M)CARD'!EP388=\"\",\"\",'[2]MONE(M)CARD'!EP388)","v":40257.896634427161},{"$f":"IF('[2]MONE(M)CARD'!ES388=\"\",\"\",'[2]MONE(M)CARD'!ES388)","v":14.157926784480646},{"$f":"IF('[2]MONE(M)CARD'!EV388=\"\",\"\",'[2]MONE(M)CARD'!EV388)","v":10.781799921417768},{"$f":"IF('[2]MONE(M)CARD'!EZ388=\"\",\"\",'[2]MONE(M)CARD'!EZ388)","v":10.617124601782901},{"$f":"IF('[2]MONE(M)CAPARD'!FC388=\"\",\"\",'[2]MONE(M)CAPARD'!FC388)","v":63951.45230246905},{"$f":"IF('[2]MONE(M)CAPARD'!FG388=\"\",\"\",'[2]MONE(M)CAPARD'!FG388)","v":94737.944315941801},{"$f":"IF('[2]MONE(M)CAPARD'!FL388=\"\",\"\",'[2]MONE(M)CAPARD'!FL388)","v":40257.896634427161},{"$f":"IF('[2]MONE(M)CAPARD'!FO388=\"\",\"\",'[2]MONE(M)CAPARD'!FO388)","v":13.859994389558405},{"$f":"IF('[2]MONE(M)CAPARD'!FR388=\"\",\"\",'[2]MONE(M)CAPARD'!FR388)","v":3.3598582451502601},{"$f":"IF('[2]MONE(M)CAPARD'!FV388=\"\",\"\",'[2]MONE(M)CAPARD'!FV388)","v":4.6601057283489178},{"$f":"IF('[2]MONE(M)CARD'!FV388=\"\",\"\",'[2]MONE(M)CARD'!FV388)","v":1950.4344648665015},{"$f":"IF('[2]MONE(M)CARD'!GD388=\"\",\"\",'[2]MONE(M)CARD'!GD388)","v":129.64668776792806},{"$f":"IF('[2]MONE(M)CARD'!GE388=\"\",\"\",'[2]MONE(M)CARD'!GE388)","v":17132.607269875847},20.101843847898969,{"$f":"IF('[9]II.2.Balance OSD-Activos'!J246=\"\",\"\",'[9]II.2.Balance OSD-Activos'!J246)","v":314.95459032277006},{"$f":"IF('[9]II.2.Balance OSD-Activos'!N246=\"\",\"\",'[9]II.2.Balance OSD-Activos'!N246)","v":1521.4876755611269},{"$f":"IF('[9]II.2.Balance OSD-Activos'!R246=\"\",\"\",'[9]II.2.Balance OSD-Activos'!R246)","v":58348.193808577511},{"$f":"IF('[9]II.2.Balance OSD-Activos'!S246=\"\",\"\",'[9]II.2.Balance OSD-Activos'!S246)","v":63619.894986775238},58663.148398900281,123804.53106123664,-14.446087564815679,3.6887607987668103,44.862748067827752,3.8075353666799261,4.5929779506193702,4.5181634090023071,1.4763082849430065,{"$f":"IF('[2]MONE(M)CAPARD'!GS388=\"\",\"\",'[2]MONE(M)CAPARD'!GS388)","v":37507.528116860507},{"$f":"IF('[2]MONE(M)CARD'!HA388=\"\",\"\",'[2]MONE(M)CAPARD'!HA388)","v":19099.136667345851},{"$f":"IF('[2]MONE(M)CAPARD'!HB388=\"\",\"\",'[2]MONE(M)CAPARD'!HB388)","v":18408.391449514656},"n.d.",{"$f":"IF('[10]II.2.Balance OSD-Activos'!J246=\"\",\"\",'[10]II.2.Balance OSD-Activos'!J246)","v":2807.3747987227703},{"$f":"IF('[10]II.2.Balance OSD-Activos'!N246=\"\",\"\",'[10]II.2.Balance OSD-Activos'!N246)","v":2262.8139823111269},{"$f":"IF('[10]II.2.Balance OSD-Activos'!R246=\"\",\"\",'[10]II.2.Balance OSD-Activos'!R246)","v":79881.848722507508},{"$f":"IF('[10]II.2.Balance OSD-Activos'!S246=\"\",\"\",'[10]II.2.Balance OSD-Activos'!S246)","v":90569.930832835234},82689.223521230277,175521.96833637665,0.80923148517084709,0.46397401838780272,37.583746610397341,0.45188327096434833,4.08627200313747,2.6646524962568696,1.0308996206162435,{"$f":"IF('[2]MONE(M)CAPARD'!AS388=\"\",\"\",'[2]MONE(M)CAPARD'!AS388)","v":0.75},{"$f":"IF('[2]MONE(M)CAPARD'!AT388=\"\",\"\",'[2]MONE(M)CAPARD'!AT388)","v":"n.a."},{"$f":"IF('[2]MONE(M)CAPARD'!AU388=\"\",\"\",'[2]MONE(M)CAPARD'!AU388)","v":1.75},{"$f":"IF('[2]MONE(M)CAPARD'!AV388=\"\",\"\",'[2]MONE(M)CAPARD'!AV388)","v":3},{"$f":"IF('[2]MONE(M)CAPARD'!AW388=\"\",\"\",'[2]MONE(M)CAPARD'!AW388)","v":3.5},{"$f":"IF('[2]MONE(M)CAPARD'!AX388=\"\",\"\",'[2]MONE(M)CAPARD'!AX388)","v":3},{"$f":"IF('[2]MONE(M)CAPARD'!AY388=\"\",\"\",'[2]MONE(M)CAPARD'!AY388)","v":"n.a."},{"$f":"IF('[2]FISCAL(M)'!$K388=\"\",\"\",'[2]FISCAL(M)'!$K388)","v":-2523.3186614306742},{"$f":"IF('[2]FISCAL(M)'!$L388=\"\",\"\",'[2]FISCAL(M)'!$L388)","v":"n.d."},{"$f":"IF('[2]FISCAL(M)'!$AY388=\"\",\"\",'[2]FISCAL(M)'!$AY388)","v":183954.23375379428},{"$f":"IF('[2]FISCAL(M)'!$BI388=\"\",\"\",'[2]FISCAL(M)'!$BI388)","v":98651.041000147685},{"$f":"IF('[2]FISCAL(M)'!$BS388=\"\",\"\",'[2]FISCAL(M)'!$BS388)","v":85303.192753646581},{"$f":"IF('[2]FISCAL(M)'!$AZ388=\"\",\"\",'[2]FISCAL(M)'!$AZ388)","v":223597.4737537943},{"$f":"IF('[2]FISCAL(M)'!$BJ388=\"\",\"\",'[2]FISCAL(M)'!$BJ388)","v":106210.24100014771},{"$f":"IF('[2]FISCAL(M)'!$BT388=\"\",\"\",'[2]FISCAL(M)'!$BT388)","v":117387.23275364659},{"$f":"IF('[3]MONE(M)'!$AO388=\"\",\"\",'[3]MONE(M)'!$AO388)","v":22761139.859661773},{"$f":"IF('[4]MONE(M)'!$AO388=\"\",\"\",'[4]MONE(M)'!$AO388)","v":14856.548853231998},{"$f":"IF('[5]MONE(M)'!$AO388=\"\",\"\",'[5]MONE(M)'!$AO388)","v":238686.80146188417},{"$f":"+'[1]MONE(M)'!$AO388","v":413325.15985807695},{"$f":"IF('[6]MONE(M)'!$AO388=\"\",\"\",'[6]MONE(M)'!$AO388)","v":122446.99282004393},{"$f":"IF('[7]MONE(M)'!$AO388=\"\",\"\",'[7]MONE(M)'!$AO388)","v":1395707.5653553801},{"$f":"IF('[8]MONE(M)'!$AO388=\"\",\"\",'[8]MONE(M)'!$AO388)","v":53056.197528129996},2.6630696477096594,3.5738390128527309,7.2892172302613467,3.9788277202465139,2.1766163955549089,6.3884330421661639,-1.1325675683203751,{"$f":"'[2]FISCAL(M)'!$K388","v":-2523.3186614306742},{"$f":"+'[2]REAL(A)'!$AO$41","v":317624.39829411363},-0.79443477106381899,{"$f":"IF('[2]FISCAL(M)'!$L388=\"\",\"\",'[2]FISCAL(M)'!$L388)","v":"n.d."},{"$f":"+'[2]REAL(A)'!$AP$41","v":381229.46407471638},"n.d.",184006.27181874227,{"$f":"'[2]Gráfico REM'!BG382","v":47129.62817641224},{"$f":"'[2]Gráfico REM'!BH382","v":127590.01836319151},{"$f":"'[2]Gráfico REM'!BI382","v":9286.6252791384904},10.273582466179242,34.927212043835667,3.7547771692030718,3.6328418415821684,264072.36554507475,{"$f":"'[2]Gráfico REM'!BK382","v":50794.165661956242},{"$f":"'[2]Gráfico REM'!BL382","v":180646.21589132151},{"$f":"'[2]Gráfico REM'!BM382","v":32631.983991796991},8.3976529239421005,36.711676834954396,2.2699530028967851,9.4166688729790273]
[2021,"agosto","2021-agosto",{"$f":"IF('[2]REAL IPC(M)'!$AL389=\"\",\"\",+'[2]REAL IPC(M)'!$AL389)","v":4.8962706841195303},{"$f":"IF('[2]REAL IPC(M)'!$BE389=\"\",\"\",+'[2]REAL IPC(M)'!$BE389)","v":5.3294348333579933},{"$f":"IF('[2]REAL IPC(M)'!$AM389=\"\",\"\",+'[2]REAL IPC(M)'!$AM389)","v":4.5373891001267319},{"$f":"IF('[2]REAL IPC(M)'!$BI389=\"\",\"\",+'[2]REAL IPC(M)'!$BI389)","v":4.7465471526448422},{"$f":"IF('[2]REAL IMAE(M)'!BJ389=\"\",\"\",'[2]REAL IMAE(M)'!BJ389)","v":11.050458929398467},{"$f":"IF('[2]REAL IMAE(M)'!BK389=\"\",\"\",'[2]REAL IMAE(M)'!BK389)","v":4.1264565549057552},{"$f":"IF('[2]REAL IMAE(M)'!BN389=\"\",\"\",'[2]REAL IMAE(M)'!BN389)","v":15.112433217609755},{"$f":"IF('[2]REAL IMAE(M)'!BO389=\"\",\"\",'[2]REAL IMAE(M)'!BO389)","v":4.5980859401203444},{"$f":"IF('[2]EXT RIN(M)'!$K389=\"\",\"\",'[2]EXT RIN(M)'!$K389)","v":56547.099734611824},null,{"$f":"IF('[2]EXT RIN(M)'!$L389=\"\",\"\",'[2]EXT RIN(M)'!$L389)","v":64466.045801291824},null,{"$f":"IF('[2]MONE(M)CARD'!EG389=\"\",\"\",'[2]MONE(M)CARD'!EG389)","v":54635.965189702409},{"$f":"IF('[2]MONE(M)CARD'!EK389=\"\",\"\",'[2]MONE(M)CARD'!EK389)","v":67774.497251421388},{"$f":"IF('[2]MONE(M)CARD'!EP389=\"\",\"\",'[2]MONE(M)CARD'!EP389)","v":40779.124359979556},{"$f":"IF('[2]MONE(M)CARD'!ES389=\"\",\"\",'[2]MONE(M)CARD'!ES389)","v":12.149498779986235},{"$f":"IF('[2]MONE(M)CARD'!EV389=\"\",\"\",'[2]MONE(M)CARD'!EV389)","v":9.5941640378423685},{"$f":"IF('[2]MONE(M)CARD'!EZ389=\"\",\"\",'[2]MONE(M)CARD'!EZ389)","v":9.93425072765457},{"$f":"IF('[2]MONE(M)CAPARD'!FC389=\"\",\"\",'[2]MONE(M)CAPARD'!FC389)","v":63885.009165432413},{"$f":"IF('[2]MONE(M)CAPARD'!FG389=\"\",\"\",'[2]MONE(M)CAPARD'!FG389)","v":95676.706144421361},{"$f":"IF('[2]MONE(M)CAPARD'!FL389=\"\",\"\",'[2]MONE(M)CAPARD'!FL389)","v":40779.124359979556},{"$f":"IF('[2]MONE(M)CAPARD'!FO389=\"\",\"\",'[2]MONE(M)CAPARD'!FO389)","v":12.237585599401445},{"$f":"IF('[2]MONE(M)CAPARD'!FR389=\"\",\"\",'[2]MONE(M)CAPARD'!FR389)","v":2.5860132117043078},{"$f":"IF('[2]MONE(M)CAPARD'!FV389=\"\",\"\",'[2]MONE(M)CAPARD'!FV389)","v":4.1878966351718505},{"$f":"IF('[2]MONE(M)CARD'!FV389=\"\",\"\",'[2]MONE(M)CARD'!FV389)","v":1946.2776755931759},{"$f":"IF('[2]MONE(M)CARD'!GD389=\"\",\"\",'[2]MONE(M)CARD'!GD389)","v":157.33401445389327},{"$f":"IF('[2]MONE(M)CARD'!GE389=\"\",\"\",'[2]MONE(M)CARD'!GE389)","v":16932.408976529507},22.437079885651421,{"$f":"IF('[9]II.2.Balance OSD-Activos'!J247=\"\",\"\",'[9]II.2.Balance OSD-Activos'!J247)","v":333.48122181641338},{"$f":"IF('[9]II.2.Balance OSD-Activos'!N247=\"\",\"\",'[9]II.2.Balance OSD-Activos'!N247)","v":1346.9885725809143},{"$f":"IF('[9]II.2.Balance OSD-Activos'!R247=\"\",\"\",'[9]II.2.Balance OSD-Activos'!R247)","v":58570.295875557917},{"$f":"IF('[9]II.2.Balance OSD-Activos'!S247=\"\",\"\",'[9]II.2.Balance OSD-Activos'!S247)","v":63931.085904269596},58903.777097374332,124181.85157422484,-6.6937805030328867,4.670032557122572,32.694737588340985,4.7426650705952422,5.6478923546459336,5.4138225823857633,0.89565917338345624,{"$f":"IF('[2]MONE(M)CAPARD'!GS389=\"\",\"\",'[2]MONE(M)CAPARD'!GS389)","v":37761.823868106389},{"$f":"IF('[2]MONE(M)CARD'!HA389=\"\",\"\",'[2]MONE(M)CAPARD'!HA389)","v":18867.989783939502},{"$f":"IF('[2]MONE(M)CAPARD'!HB389=\"\",\"\",'[2]MONE(M)CAPARD'!HB389)","v":18893.834084166887},"n.d.",{"$f":"IF('[10]II.2.Balance OSD-Activos'!J247=\"\",\"\",'[10]II.2.Balance OSD-Activos'!J247)","v":2817.2044800764138},{"$f":"IF('[10]II.2.Balance OSD-Activos'!N247=\"\",\"\",'[10]II.2.Balance OSD-Activos'!N247)","v":2130.9355598109141},{"$f":"IF('[10]II.2.Balance OSD-Activos'!R247=\"\",\"\",'[10]II.2.Balance OSD-Activos'!R247)","v":80036.106649057925},{"$f":"IF('[10]II.2.Balance OSD-Activos'!S247=\"\",\"\",'[10]II.2.Balance OSD-Activos'!S247)","v":91033.350107929597},82853.311129134338,176017.59679687483,-0.92285506324688571,1.863225044774186,31.731351735638903,1.9641503419931317,4.9781989844059016,3.7399958818905343,1.0753433856336647,{"$f":"IF('[2]MONE(M)CAPARD'!AS389=\"\",\"\",'[2]MONE(M)CAPARD'!AS389)","v":0.75},{"$f":"IF('[2]MONE(M)CAPARD'!AT389=\"\",\"\",'[2]MONE(M)CAPARD'!AT389)","v":"n.a."},{"$f":"IF('[2]MONE(M)CAPARD'!AU389=\"\",\"\",'[2]MONE(M)CAPARD'!AU389)","v":1.75},{"$f":"IF('[2]MONE(M)CAPARD'!AV389=\"\",\"\",'[2]MONE(M)CAPARD'!AV389)","v":3},{"$f":"IF('[2]MONE(M)CAPARD'!AW389=\"\",\"\",'[2]MONE(M)CAPARD'!AW389)","v":3.5},{"$f":"IF('[2]MONE(M)CAPARD'!AX389=\"\",\"\",'[2]MONE(M)CAPARD'!AX389)","v":3},{"$f":"IF('[2]MONE(M)CAPARD'!AY389=\"\",\"\",'[2]MONE(M)CAPARD'!AY389)","v":"n.a."},{"$f":"IF('[2]FISCAL(M)'!$K389=\"\",\"\",'[2]FISCAL(M)'!$K389)","v":-3509.846309282098},{"$f":"IF('[2]FISCAL(M)'!$L389=\"\",\"\",'[2]FISCAL(M)'!$L389)","v":"n.d."},{"$f":"IF('[2]FISCAL(M)'!$AY389=\"\",\"\",'[2]FISCAL(M)'!$AY389)","v":185513.07690188411},{"$f":"IF('[2]FISCAL(M)'!$BI389=\"\",\"\",'[2]FISCAL(M)'!$BI389)","v":98801.43415939901},{"$f":"IF('[2]FISCAL(M)'!$BS389=\"\",\"\",'[2]FISCAL(M)'!$BS389)","v":86711.642742485114},{"$f":"IF('[2]FISCAL(M)'!$AZ389=\"\",\"\",'[2]FISCAL(M)'!$AZ389)","v":225183.86690188412},{"$f":"IF('[2]FISCAL(M)'!$BJ389=\"\",\"\",'[2]FISCAL(M)'!$BJ389)","v":106402.63415939901},{"$f":"IF('[2]FISCAL(M)'!$BT389=\"\",\"\",'[2]FISCAL(M)'!$BT389)","v":118781.23274248512},{"$f":"IF('[3]MONE(M)'!$AO389=\"\",\"\",'[3]MONE(M)'!$AO389)","v":22830083.871424899},{"$f":"IF('[4]MONE(M)'!$AO389=\"\",\"\",'[4]MONE(M)'!$AO389)","v":14934.422738530002},{"$f":"IF('[5]MONE(M)'!$AO389=\"\",\"\",'[5]MONE(M)'!$AO389)","v":239665.91932258199},{"$f":"+'[1]MONE(M)'!$AO389","v":417313.2565213184},{"$f":"IF('[6]MONE(M)'!$AO389=\"\",\"\",'[6]MONE(M)'!$AO389)","v":122206.8924904126},{"$f":"IF('[7]MONE(M)'!$AO389=\"\",\"\",'[7]MONE(M)'!$AO389)","v":1406230.0459310298},{"$f":"IF('[8]MONE(M)'!$AO389=\"\",\"\",'[8]MONE(M)'!$AO389)","v":53169.440596170003},2.3602009564714255,4.7042370264082312,7.6088716210261698,5.4312788572117299,2.5931773188287099,7.5575139747398046,2.2824369501600161,{"$f":"'[2]FISCAL(M)'!$K389","v":-3509.846309282098},{"$f":"+'[2]REAL(A)'!$AO$41","v":317624.39829411363},-1.1050304473247843,{"$f":"IF('[2]FISCAL(M)'!$L389=\"\",\"\",'[2]FISCAL(M)'!$L389)","v":"n.d."},{"$f":"+'[2]REAL(A)'!$AP$41","v":381229.46407471638},"n.d.",185050.09629775904,{"$f":"'[2]Gráfico REM'!BG383","v":47908.292691777737},{"$f":"'[2]Gráfico REM'!BH383","v":128080.28963790229},{"$f":"'[2]Gráfico REM'!BI383","v":9061.5139680789962},9.6939994862706325,27.785558229068783,4.6493039154804183,2.7909943775324075,265513.70062496001,{"$f":"'[2]Gráfico REM'!BK383","v":51539.513251528733},{"$f":"'[2]Gráfico REM'!BL383","v":181249.73023407228},{"$f":"'[2]Gráfico REM'!BM383","v":32724.457139358994},8.3026223023146439,26.322293552829159,3.9437085634216551,9.1321367407275247]
[2021,"septiembre","2021-septiembre",{"$f":"IF('[2]REAL IPC(M)'!$AL390=\"\",\"\",+'[2]REAL IPC(M)'!$AL390)","v":5.050816137973535},{"$f":"IF('[2]REAL IPC(M)'!$BE390=\"\",\"\",+'[2]REAL IPC(M)'!$BE390)","v":5.4328850461992539},{"$f":"IF('[2]REAL IPC(M)'!$AM390=\"\",\"\",+'[2]REAL IPC(M)'!$AM390)","v":4.686017833428191},{"$f":"IF('[2]REAL IPC(M)'!$BI390=\"\",\"\",+'[2]REAL IPC(M)'!$BI390)","v":4.8546655218555168},{"$f":"IF('[2]REAL IMAE(M)'!BJ390=\"\",\"\",'[2]REAL IMAE(M)'!BJ390)","v":9.3275429511455741},{"$f":"IF('[2]REAL IMAE(M)'!BK390=\"\",\"\",'[2]REAL IMAE(M)'!BK390)","v":4.2495556644414512},{"$f":"IF('[2]REAL IMAE(M)'!BN390=\"\",\"\",'[2]REAL IMAE(M)'!BN390)","v":12.2990883595953},{"$f":"IF('[2]REAL IMAE(M)'!BO390=\"\",\"\",'[2]REAL IMAE(M)'!BO390)","v":4.8139571776985468},{"$f":"IF('[2]EXT RIN(M)'!$K390=\"\",\"\",'[2]EXT RIN(M)'!$K390)","v":56548.521876394261},null,{"$f":"IF('[2]EXT RIN(M)'!$L390=\"\",\"\",'[2]EXT RIN(M)'!$L390)","v":64363.467815044263},null,{"$f":"IF('[2]MONE(M)CARD'!EG390=\"\",\"\",'[2]MONE(M)CARD'!EG390)","v":55072.376403393646},{"$f":"IF('[2]MONE(M)CARD'!EK390=\"\",\"\",'[2]MONE(M)CARD'!EK390)","v":67809.710503125287},{"$f":"IF('[2]MONE(M)CARD'!EP390=\"\",\"\",'[2]MONE(M)CARD'!EP390)","v":40912.821377732413},{"$f":"IF('[2]MONE(M)CARD'!ES390=\"\",\"\",'[2]MONE(M)CARD'!ES390)","v":11.788588857534021},{"$f":"IF('[2]MONE(M)CARD'!EV390=\"\",\"\",'[2]MONE(M)CARD'!EV390)","v":9.3492698105080763},{"$f":"IF('[2]MONE(M)CARD'!EZ390=\"\",\"\",'[2]MONE(M)CARD'!EZ390)","v":10.126424910335597},{"$f":"IF('[2]MONE(M)CAPARD'!FC390=\"\",\"\",'[2]MONE(M)CAPARD'!FC390)","v":64336.638396043643},{"$f":"IF('[2]MONE(M)CAPARD'!FG390=\"\",\"\",'[2]MONE(M)CAPARD'!FG390)","v":95819.971372755273},{"$f":"IF('[2]MONE(M)CAPARD'!FL390=\"\",\"\",'[2]MONE(M)CAPARD'!FL390)","v":40912.821377732442},{"$f":"IF('[2]MONE(M)CAPARD'!FO390=\"\",\"\",'[2]MONE(M)CAPARD'!FO390)","v":11.88213199690875},{"$f":"IF('[2]MONE(M)CAPARD'!FR390=\"\",\"\",'[2]MONE(M)CAPARD'!FR390)","v":2.3270690999195542},{"$f":"IF('[2]MONE(M)CAPARD'!FV390=\"\",\"\",'[2]MONE(M)CAPARD'!FV390)","v":4.25010669922814},{"$f":"IF('[2]MONE(M)CARD'!FV390=\"\",\"\",'[2]MONE(M)CARD'!FV390)","v":1932.3956616389009},{"$f":"IF('[2]MONE(M)CARD'!GD390=\"\",\"\",'[2]MONE(M)CARD'!GD390)","v":160.40426563338025},{"$f":"IF('[2]MONE(M)CARD'!GE390=\"\",\"\",'[2]MONE(M)CARD'!GE390)","v":17151.589642433784},24.248441270528275,{"$f":"IF('[9]II.2.Balance OSD-Activos'!J248=\"\",\"\",'[9]II.2.Balance OSD-Activos'!J248)","v":329.72193125531817},{"$f":"IF('[9]II.2.Balance OSD-Activos'!N248=\"\",\"\",'[9]II.2.Balance OSD-Activos'!N248)","v":1420.8375018253159},{"$f":"IF('[9]II.2.Balance OSD-Activos'!R248=\"\",\"\",'[9]II.2.Balance OSD-Activos'!R248)","v":58689.210275001475},{"$f":"IF('[9]II.2.Balance OSD-Activos'!S248=\"\",\"\",'[9]II.2.Balance OSD-Activos'!S248)","v":64571.867023748971},59018.932206256795,125011.63673183108,-2.7337313445733424,5.3458000393901139,28.58373133932681,5.3949851251192893,6.7072656184428814,6.264384387863009,0.85056180547724569,{"$f":"IF('[2]MONE(M)CAPARD'!GS390=\"\",\"\",'[2]MONE(M)CAPARD'!GS390)","v":38302.974850824583},{"$f":"IF('[2]MONE(M)CARD'!HA390=\"\",\"\",'[2]MONE(M)CAPARD'!HA390)","v":19032.366557953785},{"$f":"IF('[2]MONE(M)CAPARD'!HB390=\"\",\"\",'[2]MONE(M)CAPARD'!HB390)","v":19270.608292870798},"n.d.",{"$f":"IF('[10]II.2.Balance OSD-Activos'!J248=\"\",\"\",'[10]II.2.Balance OSD-Activos'!J248)","v":2765.7467575453179},{"$f":"IF('[10]II.2.Balance OSD-Activos'!N248=\"\",\"\",'[10]II.2.Balance OSD-Activos'!N248)","v":2188.4867476053159},{"$f":"IF('[10]II.2.Balance OSD-Activos'!R248=\"\",\"\",'[10]II.2.Balance OSD-Activos'!R248)","v":80235.475981171476},{"$f":"IF('[10]II.2.Balance OSD-Activos'!S248=\"\",\"\",'[10]II.2.Balance OSD-Activos'!S248)","v":91795.518331238971},83001.222738716795,176985.22781756107,-1.5254308441404185,2.4416501566143056,31.869489714428624,2.5841036242051807,5.8358650811476398,4.4676134915299981,0.72761760963946376,{"$f":"IF('[2]MONE(M)CAPARD'!AS390=\"\",\"\",'[2]MONE(M)CAPARD'!AS390)","v":0.75},{"$f":"IF('[2]MONE(M)CAPARD'!AT390=\"\",\"\",'[2]MONE(M)CAPARD'!AT390)","v":"n.a."},{"$f":"IF('[2]MONE(M)CAPARD'!AU390=\"\",\"\",'[2]MONE(M)CAPARD'!AU390)","v":1.75},{"$f":"IF('[2]MONE(M)CAPARD'!AV390=\"\",\"\",'[2]MONE(M)CAPARD'!AV390)","v":3},{"$f":"IF('[2]MONE(M)CAPARD'!AW390=\"\",\"\",'[2]MONE(M)CAPARD'!AW390)","v":3.5},{"$f":"IF('[2]MONE(M)CAPARD'!AX390=\"\",\"\",'[2]MONE(M)CAPARD'!AX390)","v":3},{"$f":"IF('[2]MONE(M)CAPARD'!AY390=\"\",\"\",'[2]MONE(M)CAPARD'!AY390)","v":"n.a."},{"$f":"IF('[2]FISCAL(M)'!$K390=\"\",\"\",'[2]FISCAL(M)'!$K390)","v":-4316.1712185397637},{"$f":"IF('[2]FISCAL(M)'!$L390=\"\",\"\",'[2]FISCAL(M)'!$L390)","v":-9087.9712185397657},{"$f":"IF('[2]FISCAL(M)'!$AY390=\"\",\"\",'[2]FISCAL(M)'!$AY390)","v":186012.97585984814},{"$f":"IF('[2]FISCAL(M)'!$BI390=\"\",\"\",'[2]FISCAL(M)'!$BI390)","v":99217.31724915831},{"$f":"IF('[2]FISCAL(M)'!$BS390=\"\",\"\",'[2]FISCAL(M)'!$BS390)","v":86795.658610689803},{"$f":"IF('[2]FISCAL(M)'!$AZ390=\"\",\"\",'[2]FISCAL(M)'!$AZ390)","v":226012.47585984811},{"$f":"IF('[2]FISCAL(M)'!$BJ390=\"\",\"\",'[2]FISCAL(M)'!$BJ390)","v":106836.83724915831},{"$f":"IF('[2]FISCAL(M)'!$BT390=\"\",\"\",'[2]FISCAL(M)'!$BT390)","v":119175.6386106898},{"$f":"IF('[3]MONE(M)'!$AO390=\"\",\"\",'[3]MONE(M)'!$AO390)","v":22892809.471379966},{"$f":"IF('[4]MONE(M)'!$AO390=\"\",\"\",'[4]MONE(M)'!$AO390)","v":15027.757311689998},{"$f":"IF('[5]MONE(M)'!$AO390=\"\",\"\",'[5]MONE(M)'!$AO390)","v":241057.99080781188},{"$f":"+'[1]MONE(M)'!$AO390","v":423980.3275385676},{"$f":"IF('[6]MONE(M)'!$AO390=\"\",\"\",'[6]MONE(M)'!$AO390)","v":122444.48764996402},{"$f":"IF('[7]MONE(M)'!$AO390=\"\",\"\",'[7]MONE(M)'!$AO390)","v":1416801.1351469697},{"$f":"IF('[8]MONE(M)'!$AO390=\"\",\"\",'[8]MONE(M)'!$AO390)","v":53241.109577019997},1.638946169069122,4.888693854727566,8.2039761762431098,7.0699736052265205,2.2271248088619799,7.875555053803196,2.755604756630059,{"$f":"'[2]FISCAL(M)'!$K390","v":-4316.1712185397637},{"$f":"+'[2]REAL(A)'!$AO$41","v":317624.39829411363},-1.3588915844377543,{"$f":"IF('[2]FISCAL(M)'!$L390=\"\",\"\",'[2]FISCAL(M)'!$L390)","v":-9087.9712185397657},{"$f":"+'[2]REAL(A)'!$AP$41","v":381229.46407471638},-2.3838585615613992,186636.80619075877,{"$f":"'[2]Gráfico REM'!BG384","v":49011.421628593154},{"$f":"'[2]Gráfico REM'!BH384","v":128799.02318412377},{"$f":"'[2]Gráfico REM'!BI384","v":8826.3613780418436},10.26655415252613,28.185752761684448,5.3508294758403352,0.6686393723242201,267440.54444029974,{"$f":"'[2]Gráfico REM'!BK384","v":52642.560253462158},{"$f":"'[2]Gráfico REM'!BL384","v":182040.13276114376},{"$f":"'[2]Gráfico REM'!BM384","v":32757.851425693843},8.7486679093802913,25.88870710526394,4.578342513799849,9.0546243168476259]
[2021,"octubre","2021-octubre",{"$f":"IF('[2]REAL IPC(M)'!$AL391=\"\",\"\",+'[2]REAL IPC(M)'!$AL391)","v":5.010105959453659},{"$f":"IF('[2]REAL IPC(M)'!$BE391=\"\",\"\",+'[2]REAL IPC(M)'!$BE391)","v":5.5316278851047951},{"$f":"IF('[2]REAL IPC(M)'!$AM391=\"\",\"\",+'[2]REAL IPC(M)'!$AM391)","v":4.7082520299615904},{"$f":"IF('[2]REAL IPC(M)'!$BI391=\"\",\"\",+'[2]REAL IPC(M)'!$BI391)","v":4.9579907271066315},{"$f":"IF('[2]REAL IMAE(M)'!BJ391=\"\",\"\",'[2]REAL IMAE(M)'!BJ391)","v":8.9495792604809221},{"$f":"IF('[2]REAL IMAE(M)'!BK391=\"\",\"\",'[2]REAL IMAE(M)'!BK391)","v":4.3569135101348522},{"$f":"IF('[2]REAL IMAE(M)'!BN391=\"\",\"\",'[2]REAL IMAE(M)'!BN391)","v":11.402240294498878},{"$f":"IF('[2]REAL IMAE(M)'!BO391=\"\",\"\",'[2]REAL IMAE(M)'!BO391)","v":5.0070399996558379},{"$f":"IF('[2]EXT RIN(M)'!$K391=\"\",\"\",'[2]EXT RIN(M)'!$K391)","v":56606.557759491079},null,{"$f":"IF('[2]EXT RIN(M)'!$L391=\"\",\"\",'[2]EXT RIN(M)'!$L391)","v":64021.547654771079},null,{"$f":"IF('[2]MONE(M)CARD'!EG391=\"\",\"\",'[2]MONE(M)CARD'!EG391)","v":55540.880792054944},{"$f":"IF('[2]MONE(M)CARD'!EK391=\"\",\"\",'[2]MONE(M)CARD'!EK391)","v":67323.0081518847},{"$f":"IF('[2]MONE(M)CARD'!EP391=\"\",\"\",'[2]MONE(M)CARD'!EP391)","v":40407.882286140957},{"$f":"IF('[2]MONE(M)CARD'!ES391=\"\",\"\",'[2]MONE(M)CARD'!ES391)","v":11.928090462120867},{"$f":"IF('[2]MONE(M)CARD'!EV391=\"\",\"\",'[2]MONE(M)CARD'!EV391)","v":8.6517189685089377},{"$f":"IF('[2]MONE(M)CARD'!EZ391=\"\",\"\",'[2]MONE(M)CARD'!EZ391)","v":8.834603358582882},{"$f":"IF('[2]MONE(M)CAPARD'!FC391=\"\",\"\",'[2]MONE(M)CAPARD'!FC391)","v":64860.230963824943},{"$f":"IF('[2]MONE(M)CAPARD'!FG391=\"\",\"\",'[2]MONE(M)CAPARD'!FG391)","v":95560.820909064685},{"$f":"IF('[2]MONE(M)CAPARD'!FL391=\"\",\"\",'[2]MONE(M)CAPARD'!FL391)","v":40407.882286140957},{"$f":"IF('[2]MONE(M)CAPARD'!FO391=\"\",\"\",'[2]MONE(M)CAPARD'!FO391)","v":11.645572526897375},{"$f":"IF('[2]MONE(M)CAPARD'!FR391=\"\",\"\",'[2]MONE(M)CAPARD'!FR391)","v":1.7282414975695604},{"$f":"IF('[2]MONE(M)CAPARD'!FV391=\"\",\"\",'[2]MONE(M)CAPARD'!FV391)","v":3.1831496990902375},{"$f":"IF('[2]MONE(M)CARD'!FV391=\"\",\"\",'[2]MONE(M)CARD'!FV391)","v":2084.532085004596},{"$f":"IF('[2]MONE(M)CARD'!GD391=\"\",\"\",'[2]MONE(M)CARD'!GD391)","v":152.95085946060206},{"$f":"IF('[2]MONE(M)CARD'!GE391=\"\",\"\",'[2]MONE(M)CARD'!GE391)","v":17804.140435400528},27.100367010605208,{"$f":"IF('[9]II.2.Balance OSD-Activos'!J249=\"\",\"\",'[9]II.2.Balance OSD-Activos'!J249)","v":338.74510414745134},{"$f":"IF('[9]II.2.Balance OSD-Activos'!N249=\"\",\"\",'[9]II.2.Balance OSD-Activos'!N249)","v":1306.3415098920273},{"$f":"IF('[9]II.2.Balance OSD-Activos'!R249=\"\",\"\",'[9]II.2.Balance OSD-Activos'!R249)","v":59438.114813932203},{"$f":"IF('[9]II.2.Balance OSD-Activos'!S249=\"\",\"\",'[9]II.2.Balance OSD-Activos'!S249)","v":64846.105900375034},59776.859918079652,125929.30732834671,-0.78871773124545852,5.9924001804361193,34.567551968602885,6.0337041856813878,6.9790149571924864,6.7344026422298198,0.47001825436681077,{"$f":"IF('[2]MONE(M)CAPARD'!GS391=\"\",\"\",'[2]MONE(M)CAPARD'!GS391)","v":38942.88306443685},{"$f":"IF('[2]MONE(M)CARD'!HA391=\"\",\"\",'[2]MONE(M)CAPARD'!HA391)","v":19646.932645090528},{"$f":"IF('[2]MONE(M)CAPARD'!HB391=\"\",\"\",'[2]MONE(M)CAPARD'!HB391)","v":19295.950419346322},"n.d.",{"$f":"IF('[10]II.2.Balance OSD-Activos'!J249=\"\",\"\",'[10]II.2.Balance OSD-Activos'!J249)","v":2769.9350324274515},{"$f":"IF('[10]II.2.Balance OSD-Activos'!N249=\"\",\"\",'[10]II.2.Balance OSD-Activos'!N249)","v":2060.9149413020268},{"$f":"IF('[10]II.2.Balance OSD-Activos'!R249=\"\",\"\",'[10]II.2.Balance OSD-Activos'!R249)","v":81184.068773339197},{"$f":"IF('[10]II.2.Balance OSD-Activos'!S249=\"\",\"\",'[10]II.2.Balance OSD-Activos'!S249)","v":92075.257770699041},83954.003805766653,178090.17651776772,-5.0924113781626428,3.0509028724135634,34.73665135469659,3.3534716384654883,5.944368139002032,4.8161877022464772,0.34857421071647909,{"$f":"IF('[2]MONE(M)CAPARD'!AS391=\"\",\"\",'[2]MONE(M)CAPARD'!AS391)","v":0.75},{"$f":"IF('[2]MONE(M)CAPARD'!AT391=\"\",\"\",'[2]MONE(M)CAPARD'!AT391)","v":"n.a."},{"$f":"IF('[2]MONE(M)CAPARD'!AU391=\"\",\"\",'[2]MONE(M)CAPARD'!AU391)","v":1.75},{"$f":"IF('[2]MONE(M)CAPARD'!AV391=\"\",\"\",'[2]MONE(M)CAPARD'!AV391)","v":3},{"$f":"IF('[2]MONE(M)CAPARD'!AW391=\"\",\"\",'[2]MONE(M)CAPARD'!AW391)","v":3.5},{"$f":"IF('[2]MONE(M)CAPARD'!AX391=\"\",\"\",'[2]MONE(M)CAPARD'!AX391)","v":3},{"$f":"IF('[2]MONE(M)CAPARD'!AY391=\"\",\"\",'[2]MONE(M)CAPARD'!AY391)","v":"n.a."},{"$f":"IF('[2]FISCAL(M)'!$K391=\"\",\"\",'[2]FISCAL(M)'!$K391)","v":-4280.1666423167417},{"$f":"IF('[2]FISCAL(M)'!$L391=\"\",\"\",'[2]FISCAL(M)'!$L391)","v":"n.d."},{"$f":"IF('[2]FISCAL(M)'!$AY391=\"\",\"\",'[2]FISCAL(M)'!$AY391)","v":187756.82345815509},{"$f":"IF('[2]FISCAL(M)'!$BI391=\"\",\"\",'[2]FISCAL(M)'!$BI391)","v":99584.687425944285},{"$f":"IF('[2]FISCAL(M)'!$BS391=\"\",\"\",'[2]FISCAL(M)'!$BS391)","v":88172.136032210808},{"$f":"IF('[2]FISCAL(M)'!$AZ391=\"\",\"\",'[2]FISCAL(M)'!$AZ391)","v":227883.43345815508},{"$f":"IF('[2]FISCAL(M)'!$BJ391=\"\",\"\",'[2]FISCAL(M)'!$BJ391)","v":107186.61742594431},{"$f":"IF('[2]FISCAL(M)'!$BT391=\"\",\"\",'[2]FISCAL(M)'!$BT391)","v":120696.8160322108},{"$f":"IF('[3]MONE(M)'!$AO391=\"\",\"\",'[3]MONE(M)'!$AO391)","v":23172043.731955346},{"$f":"IF('[4]MONE(M)'!$AO391=\"\",\"\",'[4]MONE(M)'!$AO391)","v":15126.02891288},{"$f":"IF('[5]MONE(M)'!$AO391=\"\",\"\",'[5]MONE(M)'!$AO391)","v":245701.03267337993},{"$f":"+'[1]MONE(M)'!$AO391","v":431747.68652323453},{"$f":"IF('[6]MONE(M)'!$AO391=\"\",\"\",'[6]MONE(M)'!$AO391)","v":124250.57860261521},{"$f":"IF('[7]MONE(M)'!$AO391=\"\",\"\",'[7]MONE(M)'!$AO391)","v":1423575.3557557999},{"$f":"IF('[8]MONE(M)'!$AO391=\"\",\"\",'[8]MONE(M)'!$AO391)","v":53396.613588890999},2.5302202943356278,5.9131467190817188,8.5821435147567904,9.3167303612013086,3.3609641265409218,7.676879108269663,2.6573105539406061,{"$f":"'[2]FISCAL(M)'!$K391","v":-4280.1666423167417},{"$f":"+'[2]REAL(A)'!$AO$41","v":317624.39829411363},-1.3475560017758448,{"$f":"IF('[2]FISCAL(M)'!$L391=\"\",\"\",'[2]FISCAL(M)'!$L391)","v":"n.d."},{"$f":"+'[2]REAL(A)'!$AP$41","v":381229.46407471638},"n.d.",187766.81952339754,{"$f":"'[2]Gráfico REM'!BG385","v":49497.609495324752},{"$f":"'[2]Gráfico REM'!BH385","v":129686.54096656709},{"$f":"'[2]Gráfico REM'!BI385","v":8582.6690615056905},9.7936084655409807,24.412177929020284,5.8343592344295869,-1.297929148830379,268982.27189090953,{"$f":"'[2]Gráfico REM'!BK385","v":53112.415192572749},{"$f":"'[2]Gráfico REM'!BL385","v":183083.15455545808},{"$f":"'[2]Gráfico REM'!BM385","v":32786.702142878697},8.4584427038274068,22.351646534726942,4.887634753904524,9.1305190388606619]
[2021,"noviembre","2021-noviembre",{"$f":"IF('[2]REAL IPC(M)'!$AL392=\"\",\"\",+'[2]REAL IPC(M)'!$AL392)","v":5.4177585471387513},{"$f":"IF('[2]REAL IPC(M)'!$BE392=\"\",\"\",+'[2]REAL IPC(M)'!$BE392)","v":5.6250139789421283},{"$f":"IF('[2]REAL IPC(M)'!$AM392=\"\",\"\",+'[2]REAL IPC(M)'!$AM392)","v":5.1272408173498762},{"$f":"IF('[2]REAL IPC(M)'!$BI392=\"\",\"\",+'[2]REAL IPC(M)'!$BI392)","v":5.055805754361864},{"$f":"IF('[2]REAL IMAE(M)'!BJ392=\"\",\"\",'[2]REAL IMAE(M)'!BJ392)","v":8.9972118961756387},{"$f":"IF('[2]REAL IMAE(M)'!BK392=\"\",\"\",'[2]REAL IMAE(M)'!BK392)","v":4.4487553400953228},{"$f":"IF('[2]REAL IMAE(M)'!BN392=\"\",\"\",'[2]REAL IMAE(M)'!BN392)","v":10.858243289550717},{"$f":"IF('[2]REAL IMAE(M)'!BO392=\"\",\"\",'[2]REAL IMAE(M)'!BO392)","v":5.1773471113506719},{"$f":"IF('[2]EXT RIN(M)'!$K392=\"\",\"\",'[2]EXT RIN(M)'!$K392)","v":55896.125495637076},null,{"$f":"IF('[2]EXT RIN(M)'!$L392=\"\",\"\",'[2]EXT RIN(M)'!$L392)","v":64201.742371477078},null,{"$f":"IF('[2]MONE(M)CARD'!EG392=\"\",\"\",'[2]MONE(M)CARD'!EG392)","v":57288.098662776487},{"$f":"IF('[2]MONE(M)CARD'!EK392=\"\",\"\",'[2]MONE(M)CARD'!EK392)","v":67354.229412660032},{"$f":"IF('[2]MONE(M)CARD'!EP392=\"\",\"\",'[2]MONE(M)CARD'!EP392)","v":40926.945737968708},{"$f":"IF('[2]MONE(M)CARD'!ES392=\"\",\"\",'[2]MONE(M)CARD'!ES392)","v":13.336162442236631},{"$f":"IF('[2]MONE(M)CARD'!EV392=\"\",\"\",'[2]MONE(M)CARD'!EV392)","v":9.2316085980217686},{"$f":"IF('[2]MONE(M)CARD'!EZ392=\"\",\"\",'[2]MONE(M)CARD'!EZ392)","v":9.1533786259852867},{"$f":"IF('[2]MONE(M)CAPARD'!FC392=\"\",\"\",'[2]MONE(M)CAPARD'!FC392)","v":66658.529911276491},{"$f":"IF('[2]MONE(M)CAPARD'!FG392=\"\",\"\",'[2]MONE(M)CAPARD'!FG392)","v":95304.448266410021},{"$f":"IF('[2]MONE(M)CAPARD'!FL392=\"\",\"\",'[2]MONE(M)CAPARD'!FL392)","v":40926.945737968694},{"$f":"IF('[2]MONE(M)CAPARD'!FO392=\"\",\"\",'[2]MONE(M)CAPARD'!FO392)","v":12.574337477481601},{"$f":"IF('[2]MONE(M)CAPARD'!FR392=\"\",\"\",'[2]MONE(M)CAPARD'!FR392)","v":1.9104873284601975},{"$f":"IF('[2]MONE(M)CAPARD'!FV392=\"\",\"\",'[2]MONE(M)CAPARD'!FV392)","v":3.2500932817028483},{"$f":"IF('[2]MONE(M)CARD'!FV392=\"\",\"\",'[2]MONE(M)CARD'!FV392)","v":2117.3463126952101},{"$f":"IF('[2]MONE(M)CARD'!GD392=\"\",\"\",'[2]MONE(M)CARD'!GD392)","v":163.10365752125992},{"$f":"IF('[2]MONE(M)CARD'!GE392=\"\",\"\",'[2]MONE(M)CARD'!GE392)","v":17704.862931922198},22.099634038287942,{"$f":"IF('[9]II.2.Balance OSD-Activos'!J250=\"\",\"\",'[9]II.2.Balance OSD-Activos'!J250)","v":332.06101478000608},{"$f":"IF('[9]II.2.Balance OSD-Activos'!N250=\"\",\"\",'[9]II.2.Balance OSD-Activos'!N250)","v":1413.1142509071983},{"$f":"IF('[9]II.2.Balance OSD-Activos'!R250=\"\",\"\",'[9]II.2.Balance OSD-Activos'!R250)","v":60458.47793955489},{"$f":"IF('[9]II.2.Balance OSD-Activos'!S250=\"\",\"\",'[9]II.2.Balance OSD-Activos'!S250)","v":65995.846545470675},60790.538954334894,128199.49975071277,-1.960324890227394,7.3072848057325723,50.119987949771613,7.3630266455872562,7.8730902894044386,7.9380436185536807,1.2036409763238609,{"$f":"IF('[2]MONE(M)CAPARD'!GS392=\"\",\"\",'[2]MONE(M)CAPARD'!GS392)","v":38841.501448789873},{"$f":"IF('[2]MONE(M)CARD'!HA392=\"\",\"\",'[2]MONE(M)CAPARD'!HA392)","v":19517.986468332198},{"$f":"IF('[2]MONE(M)CAPARD'!HB392=\"\",\"\",'[2]MONE(M)CAPARD'!HB392)","v":19323.514980457676},"n.d.",{"$f":"IF('[10]II.2.Balance OSD-Activos'!J250=\"\",\"\",'[10]II.2.Balance OSD-Activos'!J250)","v":2744.3935238000058},{"$f":"IF('[10]II.2.Balance OSD-Activos'!N250=\"\",\"\",'[10]II.2.Balance OSD-Activos'!N250)","v":2141.5374945571984},{"$f":"IF('[10]II.2.Balance OSD-Activos'!R250=\"\",\"\",'[10]II.2.Balance OSD-Activos'!R250)","v":81752.849319624889},{"$f":"IF('[10]II.2.Balance OSD-Activos'!S250=\"\",\"\",'[10]II.2.Balance OSD-Activos'!S250)","v":93426.00555043068},84497.242843424901,180064.78588841279,-5.6610615250158647,3.5660190917173873,44.158290000641863,3.9071824543853051,6.7134860271628183,5.5344517904662105,0.71826408821973331,{"$f":"IF('[2]MONE(M)CAPARD'!AS392=\"\",\"\",'[2]MONE(M)CAPARD'!AS392)","v":0.75},{"$f":"IF('[2]MONE(M)CAPARD'!AT392=\"\",\"\",'[2]MONE(M)CAPARD'!AT392)","v":"n.a."},{"$f":"IF('[2]MONE(M)CAPARD'!AU392=\"\",\"\",'[2]MONE(M)CAPARD'!AU392)","v":1.75},{"$f":"IF('[2]MONE(M)CAPARD'!AV392=\"\",\"\",'[2]MONE(M)CAPARD'!AV392)","v":3},{"$f":"IF('[2]MONE(M)CAPARD'!AW392=\"\",\"\",'[2]MONE(M)CAPARD'!AW392)","v":3.5},{"$f":"IF('[2]MONE(M)CAPARD'!AX392=\"\",\"\",'[2]MONE(M)CAPARD'!AX392)","v":3.5},{"$f":"IF('[2]MONE(M)CAPARD'!AY392=\"\",\"\",'[2]MONE(M)CAPARD'!AY392)","v":"n.a."},{"$f":"IF('[2]FISCAL(M)'!$K392=\"\",\"\",'[2]FISCAL(M)'!$K392)","v":-5914.8323648581045},{"$f":"IF('[2]FISCAL(M)'!$L392=\"\",\"\",'[2]FISCAL(M)'!$L392)","v":"n.d."},{"$f":"IF('[2]FISCAL(M)'!$AY392=\"\",\"\",'[2]FISCAL(M)'!$AY392)","v":185757.90548260466},{"$f":"IF('[2]FISCAL(M)'!$BI392=\"\",\"\",'[2]FISCAL(M)'!$BI392)","v":98029.611273228307},{"$f":"IF('[2]FISCAL(M)'!$BS392=\"\",\"\",'[2]FISCAL(M)'!$BS392)","v":87728.294209376356},{"$f":"IF('[2]FISCAL(M)'!$AZ392=\"\",\"\",'[2]FISCAL(M)'!$AZ392)","v":226143.43548260466},{"$f":"IF('[2]FISCAL(M)'!$BJ392=\"\",\"\",'[2]FISCAL(M)'!$BJ392)","v":105873.64127322831},{"$f":"IF('[2]FISCAL(M)'!$BT392=\"\",\"\",'[2]FISCAL(M)'!$BT392)","v":120269.79420937636},{"$f":"IF('[3]MONE(M)'!$AO392=\"\",\"\",'[3]MONE(M)'!$AO392)","v":23132262.549177878},{"$f":"IF('[4]MONE(M)'!$AO392=\"\",\"\",'[4]MONE(M)'!$AO392)","v":15265.960351550002},{"$f":"IF('[5]MONE(M)'!$AO392=\"\",\"\",'[5]MONE(M)'!$AO392)","v":250186.30303865304},{"$f":"+'[1]MONE(M)'!$AO392","v":442606.69661570172},{"$f":"IF('[6]MONE(M)'!$AO392=\"\",\"\",'[6]MONE(M)'!$AO392)","v":126969.34970320959},{"$f":"IF('[7]MONE(M)'!$AO392=\"\",\"\",'[7]MONE(M)'!$AO392)","v":1449386.9206497599},{"$f":"IF('[8]MONE(M)'!$AO392=\"\",\"\",'[8]MONE(M)'!$AO392)","v":52991.22136951},2.3747382246203541,6.0817503517516025,10.060535853077157,11.672069100603633,4.7495613830505823,8.8675527053852186,1.9194261750339336,{"$f":"'[2]FISCAL(M)'!$K392","v":-5914.8323648581045},{"$f":"+'[2]REAL(A)'!$AO$41","v":317624.39829411363},-1.8622097032297538,{"$f":"IF('[2]FISCAL(M)'!$L392=\"\",\"\",'[2]FISCAL(M)'!$L392)","v":"n.d."},{"$f":"+'[2]REAL(A)'!$AP$41","v":381229.46407471638},"n.d.",189893.11805954803,{"$f":"'[2]Gráfico REM'!BG386","v":49239.600369086736},{"$f":"'[2]Gráfico REM'!BH386","v":131773.94855224434},{"$f":"'[2]Gráfico REM'!BI386","v":8879.5691382169498},10.087610971867122,21.750810949883714,6.8313869720334708,2.0383030172466121,271226.54453928804,{"$f":"'[2]Gráfico REM'!BK386","v":52820.176434426736},{"$f":"'[2]Gráfico REM'!BL386","v":184765.16992175434},{"$f":"'[2]Gráfico REM'!BM386","v":33641.198183106957},8.4907275258048642,19.845188453815531,5.3748592551045027,9.991654102665958]
[2021,"diciembre","2021-diciembre",{"$f":"IF('[2]REAL IPC(M)'!$AL393=\"\",\"\",+'[2]REAL IPC(M)'!$AL393)","v":5.5784873133422286},{"$f":"IF('[2]REAL IPC(M)'!$BE393=\"\",\"\",+'[2]REAL IPC(M)'!$BE393)","v":5.7123817275899436},{"$f":"IF('[2]REAL IPC(M)'!$AM393=\"\",\"\",+'[2]REAL IPC(M)'!$AM393)","v":5.1573426573426451},{"$f":"IF('[2]REAL IPC(M)'!$BI393=\"\",\"\",+'[2]REAL IPC(M)'!$BI393)","v":5.1473959645174761},{"$f":"IF('[2]REAL IMAE(M)'!BJ393=\"\",\"\",'[2]REAL IMAE(M)'!BJ393)","v":7.9264895345419362},{"$f":"IF('[2]REAL IMAE(M)'!BK393=\"\",\"\",'[2]REAL IMAE(M)'!BK393)","v":4.5255933503615786},{"$f":"IF('[2]REAL IMAE(M)'!BN393=\"\",\"\",'[2]REAL IMAE(M)'!BN393)","v":9.9199453382574188},{"$f":"IF('[2]REAL IMAE(M)'!BO393=\"\",\"\",'[2]REAL IMAE(M)'!BO393)","v":5.3253604890310724},{"$f":"IF('[2]EXT RIN(M)'!$K393=\"\",\"\",'[2]EXT RIN(M)'!$K393)","v":56866.1566551133},{"$f":"IF(B386<>\"diciembre\",\"\",L386)","v":56866.1566551133},{"$f":"IF('[2]EXT RIN(M)'!$L393=\"\",\"\",'[2]EXT RIN(M)'!$L393)","v":64965.622039543297},{"$f":"IF(B386<>\"diciembre\",\"\",N386)","v":64965.622039543297},{"$f":"IF('[2]MONE(M)CARD'!EG393=\"\",\"\",'[2]MONE(M)CARD'!EG393)","v":59619.163067903602},{"$f":"IF('[2]MONE(M)CARD'!EK393=\"\",\"\",'[2]MONE(M)CARD'!EK393)","v":67811.340347262434},{"$f":"IF('[2]MONE(M)CARD'!EP393=\"\",\"\",'[2]MONE(M)CARD'!EP393)","v":40969.494328354529},{"$f":"IF('[2]MONE(M)CARD'!ES393=\"\",\"\",'[2]MONE(M)CARD'!ES393)","v":12.622685066966532},{"$f":"IF('[2]MONE(M)CARD'!EV393=\"\",\"\",'[2]MONE(M)CARD'!EV393)","v":8.5830618402421344},{"$f":"IF('[2]MONE(M)CARD'!EZ393=\"\",\"\",'[2]MONE(M)CARD'!EZ393)","v":8.7377706005119968},{"$f":"IF('[2]MONE(M)CAPARD'!FC393=\"\",\"\",'[2]MONE(M)CAPARD'!FC393)","v":69148.53490795361},{"$f":"IF('[2]MONE(M)CAPARD'!FG393=\"\",\"\",'[2]MONE(M)CAPARD'!FG393)","v":96230.618206912448},{"$f":"IF('[2]MONE(M)CAPARD'!FL393=\"\",\"\",'[2]MONE(M)CAPARD'!FL393)","v":40969.494328354544},{"$f":"IF('[2]MONE(M)CAPARD'!FO393=\"\",\"\",'[2]MONE(M)CAPARD'!FO393)","v":11.443159480553122},{"$f":"IF('[2]MONE(M)CAPARD'!FR393=\"\",\"\",'[2]MONE(M)CAPARD'!FR393)","v":1.4693553066044363},{"$f":"IF('[2]MONE(M)CAPARD'!FV393=\"\",\"\",'[2]MONE(M)CAPARD'!FV393)","v":2.9197534939553016},{"$f":"IF('[2]MONE(M)CARD'!FV393=\"\",\"\",'[2]MONE(M)CARD'!FV393)","v":2271.2836292808583},{"$f":"IF('[2]MONE(M)CARD'!GD393=\"\",\"\",'[2]MONE(M)CARD'!GD393)","v":168.59580359572817},{"$f":"IF('[2]MONE(M)CARD'!GE393=\"\",\"\",'[2]MONE(M)CARD'!GE393)","v":16981.449714416027},16.087026714318831,{"$f":"IF('[9]II.2.Balance OSD-Activos'!J251=\"\",\"\",'[9]II.2.Balance OSD-Activos'!J251)","v":301.74352554543236},{"$f":"IF('[9]II.2.Balance OSD-Activos'!N251=\"\",\"\",'[9]II.2.Balance OSD-Activos'!N251)","v":1538.1035886363927},{"$f":"IF('[9]II.2.Balance OSD-Activos'!R251=\"\",\"\",'[9]II.2.Balance OSD-Activos'!R251)","v":60807.952319190772},{"$f":"IF('[9]II.2.Balance OSD-Activos'!S251=\"\",\"\",'[9]II.2.Balance OSD-Activos'!S251)","v":65778.435684555414},61109.695844736205,128426.23511792801,-12.393976927670957,7.9159979097005673,48.531997455225721,8.0402886391061745,7.2136430432886423,7.907326894269695,-3.0716724283985641E-2,{"$f":"IF('[2]MONE(M)CAPARD'!GS393=\"\",\"\",'[2]MONE(M)CAPARD'!GS393)","v":38437.858333450306},{"$f":"IF('[2]MONE(M)CARD'!HA393=\"\",\"\",'[2]MONE(M)CAPARD'!HA393)","v":18766.517054126027},{"$f":"IF('[2]MONE(M)CAPARD'!HB393=\"\",\"\",'[2]MONE(M)CAPARD'!HB393)","v":19671.341279324279},"n.d.",{"$f":"IF('[10]II.2.Balance OSD-Activos'!J251=\"\",\"\",'[10]II.2.Balance OSD-Activos'!J251)","v":2741.8482746654327},{"$f":"IF('[10]II.2.Balance OSD-Activos'!N251=\"\",\"\",'[10]II.2.Balance OSD-Activos'!N251)","v":2298.4297216963923},{"$f":"IF('[10]II.2.Balance OSD-Activos'!R251=\"\",\"\",'[10]II.2.Balance OSD-Activos'!R251)","v":82257.035835810777},{"$f":"IF('[10]II.2.Balance OSD-Activos'!S251=\"\",\"\",'[10]II.2.Balance OSD-Activos'!S251)","v":93404.307505015429},84998.88411047621,180701.62133718803,-7.036072030180085,4.8875462131441783,46.811024084641836,5.3378945821210833,6.4501687993122392,6.0777305571214191,0.54327876665520858,{"$f":"IF('[2]MONE(M)CAPARD'!AS393=\"\",\"\",'[2]MONE(M)CAPARD'!AS393)","v":1.25},{"$f":"IF('[2]MONE(M)CAPARD'!AT393=\"\",\"\",'[2]MONE(M)CAPARD'!AT393)","v":"n.a."},{"$f":"IF('[2]MONE(M)CAPARD'!AU393=\"\",\"\",'[2]MONE(M)CAPARD'!AU393)","v":1.75},{"$f":"IF('[2]MONE(M)CAPARD'!AV393=\"\",\"\",'[2]MONE(M)CAPARD'!AV393)","v":3},{"$f":"IF('[2]MONE(M)CAPARD'!AW393=\"\",\"\",'[2]MONE(M)CAPARD'!AW393)","v":3.5},{"$f":"IF('[2]MONE(M)CAPARD'!AX393=\"\",\"\",'[2]MONE(M)CAPARD'!AX393)","v":3.5},{"$f":"IF('[2]MONE(M)CAPARD'!AY393=\"\",\"\",'[2]MONE(M)CAPARD'!AY393)","v":"n.a."},{"$f":"IF('[2]FISCAL(M)'!$K393=\"\",\"\",'[2]FISCAL(M)'!$K393)","v":-9761.4894817841141},{"$f":"IF('[2]FISCAL(M)'!$L393=\"\",\"\",'[2]FISCAL(M)'!$L393)","v":-13742.789481784115},{"$f":"IF('[2]FISCAL(M)'!$AY393=\"\",\"\",'[2]FISCAL(M)'!$AY393)","v":184013.14208508539},{"$f":"IF('[2]FISCAL(M)'!$BI393=\"\",\"\",'[2]FISCAL(M)'!$BI393)","v":95428.15957539517},{"$f":"IF('[2]FISCAL(M)'!$BS393=\"\",\"\",'[2]FISCAL(M)'!$BS393)","v":88584.982509690206},{"$f":"IF('[2]FISCAL(M)'!$AZ393=\"\",\"\",'[2]FISCAL(M)'!$AZ393)","v":224501.00208508541},{"$f":"IF('[2]FISCAL(M)'!$BJ393=\"\",\"\",'[2]FISCAL(M)'!$BJ393)","v":103072.18957539517},{"$f":"IF('[2]FISCAL(M)'!$BT393=\"\",\"\",'[2]FISCAL(M)'!$BT393)","v":121428.81250969021},{"$f":"IF('[3]MONE(M)'!$AO393=\"\",\"\",'[3]MONE(M)'!$AO393)","v":23371909.188991945},{"$f":"IF('[4]MONE(M)'!$AO393=\"\",\"\",'[4]MONE(M)'!$AO393)","v":15175.85402819},{"$f":"IF('[5]MONE(M)'!$AO393=\"\",\"\",'[5]MONE(M)'!$AO393)","v":253094.17188786698},{"$f":"+'[1]MONE(M)'!$AO393","v":449017.06170701003},{"$f":"IF('[6]MONE(M)'!$AO393=\"\",\"\",'[6]MONE(M)'!$AO393)","v":127160.52296949446},{"$f":"IF('[7]MONE(M)'!$AO393=\"\",\"\",'[7]MONE(M)'!$AO393)","v":1467679.4145225598},{"$f":"IF('[8]MONE(M)'!$AO393=\"\",\"\",'[8]MONE(M)'!$AO393)","v":53435.287724610011},2.7916346650896706,5.718056270976235,10.793579442265111,12.019965756841655,5.1387202220816608,9.930841011511248,3.5549853475845161,{"$f":"'[2]FISCAL(M)'!$K393","v":-9761.4894817841141},{"$f":"+'[2]REAL(A)'!$AO$41","v":317624.39829411363},-3.0732807473893038,{"$f":"IF('[2]FISCAL(M)'!$L393=\"\",\"\",'[2]FISCAL(M)'!$L393)","v":-13742.789481784115},{"$f":"+'[2]REAL(A)'!$AP$41","v":381229.46407471638},-3.6048602683791238,{"$f":"+IF(OR(CT386=\"\",+CU386=\"\",+CV386=\"\"),\"\",(CT386+CU386+CV386))","v":188699.58047818963},{"$f":"'[2]Gráfico REM'!BG387","v":47176.405326773791},{"$f":"'[2]Gráfico REM'!BH387","v":131893.85797921935},{"$f":"'[2]Gráfico REM'!BI387","v":9629.3171721964918},{"$f":"IFERROR(+((CS386/CS374)-1)*100,\"\")","v":9.7552139280672847},{"$f":"IFERROR(+((CT386/CT374)-1)*100,\"\")","v":19.975940610170049},{"$f":"IFERROR(+((CU386/CU374)-1)*100,\"\")","v":6.7379373854979052},{"$f":"IFERROR(+((CV386/CV374)-1)*100,\"\")","v":6.5403812730798094},{"$f":"+IF(OR(DB386=\"\",+DC386=\"\",+DD386=\"\"),\"\",(DB386+DC386+DD386))","v":271411.39727660961},{"$f":"'[2]Gráfico REM'!BK387","v":50837.108044133791},{"$f":"'[2]Gráfico REM'!BL387","v":185329.14570382936},{"$f":"'[2]Gráfico REM'!BM387","v":35245.143528646491},{"$f":"IFERROR(+((DA386/DA374)-1)*100,\"\")","v":8.4698896382473734},{"$f":"IFERROR(+((DB386/DB374)-1)*100,\"\")","v":17.353510862665409},{"$f":"IFERROR(+((DC386/DC374)-1)*100,\"\")","v":5.8003096400828236},{"$f":"IFERROR(+((DD386/DD374)-1)*100,\"\")","v":11.079174767939048}]
[2022,"enero",{"$f":"A387&\"-\"&B387","v":"2022-enero"},{"$f":"IF('[2]REAL IPC(M)'!$AL394=\"\",\"\",+'[2]REAL IPC(M)'!$AL394)","v":5.7922046578979147},{"$f":"IF('[2]REAL IPC(M)'!$BE394=\"\",\"\",+'[2]REAL IPC(M)'!$BE394)","v":5.7930686960861566},{"$f":"IF('[2]REAL IPC(M)'!$AM394=\"\",\"\",+'[2]REAL IPC(M)'!$AM394)","v":5.3520427169998719},{"$f":"IF('[2]REAL IPC(M)'!$BI394=\"\",\"\",+'[2]REAL IPC(M)'!$BI394)","v":5.232060805174843},{"$f":"IF('[2]REAL IMAE(M)'!BJ394=\"\",\"\",'[2]REAL IMAE(M)'!BJ394)","v":6.5011890222873348},{"$f":"IF('[2]REAL IMAE(M)'!BK394=\"\",\"\",'[2]REAL IMAE(M)'!BK394)","v":4.5882205931248476},{"$f":"IF('[2]REAL IMAE(M)'!BN394=\"\",\"\",'[2]REAL IMAE(M)'!BN394)","v":9.2709094148645264},{"$f":"IF('[2]REAL IMAE(M)'!BO394=\"\",\"\",'[2]REAL IMAE(M)'!BO394)","v":5.4519795601523535},{"$f":"IF('[2]EXT RIN(M)'!$K394=\"\",\"\",'[2]EXT RIN(M)'!$K394)","v":55951.975870057708},null,{"$f":"IF('[2]EXT RIN(M)'!$L394=\"\",\"\",'[2]EXT RIN(M)'!$L394)","v":65995.155431527703},null,{"$f":"IF('[2]MONE(M)CARD'!EG394=\"\",\"\",'[2]MONE(M)CARD'!EG394)","v":58615.87072761661},{"$f":"IF('[2]MONE(M)CARD'!EK394=\"\",\"\",'[2]MONE(M)CARD'!EK394)","v":68170.309619805645},{"$f":"IF('[2]MONE(M)CARD'!EP394=\"\",\"\",'[2]MONE(M)CARD'!EP394)","v":41147.149022302183},{"$f":"IF('[2]MONE(M)CARD'!ES394=\"\",\"\",'[2]MONE(M)CARD'!ES394)","v":11.072688846685331},{"$f":"IF('[2]MONE(M)CARD'!EV394=\"\",\"\",'[2]MONE(M)CARD'!EV394)","v":8.0569936115571394},{"$f":"IF('[2]MONE(M)CARD'!EZ394=\"\",\"\",'[2]MONE(M)CARD'!EZ394)","v":8.022624017972845},{"$f":"IF('[2]MONE(M)CAPARD'!FC394=\"\",\"\",'[2]MONE(M)CAPARD'!FC394)","v":68107.367239996616},{"$f":"IF('[2]MONE(M)CAPARD'!FG394=\"\",\"\",'[2]MONE(M)CAPARD'!FG394)","v":96413.675159815641},{"$f":"IF('[2]MONE(M)CAPARD'!FL394=\"\",\"\",'[2]MONE(M)CAPARD'!FL394)","v":41147.149022302183},{"$f":"IF('[2]MONE(M)CAPARD'!FO394=\"\",\"\",'[2]MONE(M)CAPARD'!FO394)","v":10.169652491735759},{"$f":"IF('[2]MONE(M)CAPARD'!FR394=\"\",\"\",'[2]MONE(M)CAPARD'!FR394)","v":0.92661875531829807},{"$f":"IF('[2]MONE(M)CAPARD'!FV394=\"\",\"\",'[2]MONE(M)CAPARD'!FV394)","v":2.251710643300342},{"$f":"IF('[2]MONE(M)CARD'!FV394=\"\",\"\",'[2]MONE(M)CARD'!FV394)","v":2234.889489574211},{"$f":"IF('[2]MONE(M)CARD'!GD394=\"\",\"\",'[2]MONE(M)CARD'!GD394)","v":184.46251962772385},{"$f":"IF('[2]MONE(M)CARD'!GE394=\"\",\"\",'[2]MONE(M)CARD'!GE394)","v":17031.203336631657},20.254137854592646,{"$f":"IF('[9]II.2.Balance OSD-Activos'!J252=\"\",\"\",'[9]II.2.Balance OSD-Activos'!J252)","v":255.77775249084658},{"$f":"IF('[9]II.2.Balance OSD-Activos'!N252=\"\",\"\",'[9]II.2.Balance OSD-Activos'!N252)","v":1695.6560232274103},{"$f":"IF('[9]II.2.Balance OSD-Activos'!R252=\"\",\"\",'[9]II.2.Balance OSD-Activos'!R252)","v":61397.862013028367},{"$f":"IF('[9]II.2.Balance OSD-Activos'!S252=\"\",\"\",'[9]II.2.Balance OSD-Activos'!S252)","v":65897.408983720248},61653.639765519212,129246.70477246688,-29.003754872758915,8.6399763045017721,41.962910607949851,8.8804772662751219,7.4707061190548929,8.3725505526131005,0.46522365834340551,{"$f":"IF('[2]MONE(M)CAPARD'!GS394=\"\",\"\",'[2]MONE(M)CAPARD'!GS394)","v":38451.920753454338},{"$f":"IF('[2]MONE(M)CARD'!HA394=\"\",\"\",'[2]MONE(M)CAPARD'!HA394)","v":18818.316285091656},{"$f":"IF('[2]MONE(M)CAPARD'!HB394=\"\",\"\",'[2]MONE(M)CAPARD'!HB394)","v":19633.604468362682},"n.d.",{"$f":"IF('[10]II.2.Balance OSD-Activos'!J252=\"\",\"\",'[10]II.2.Balance OSD-Activos'!J252)","v":2715.1463974408457},{"$f":"IF('[10]II.2.Balance OSD-Activos'!N252=\"\",\"\",'[10]II.2.Balance OSD-Activos'!N252)","v":2452.77561316741},{"$f":"IF('[10]II.2.Balance OSD-Activos'!R252=\"\",\"\",'[10]II.2.Balance OSD-Activos'!R252)","v":82928.786639788363},{"$f":"IF('[10]II.2.Balance OSD-Activos'!S252=\"\",\"\",'[10]II.2.Balance OSD-Activos'!S252)","v":93571.050328770245},85643.933037229202,181667.75897916686,-8.0837328024686688,5.618844909949261,41.66647686537965,6.1368859615247295,6.6482595899870933,6.5143261497795812,0.43659559265816217,{"$f":"IF('[2]MONE(M)CAPARD'!AS394=\"\",\"\",'[2]MONE(M)CAPARD'!AS394)","v":1.75},{"$f":"IF('[2]MONE(M)CAPARD'!AT394=\"\",\"\",'[2]MONE(M)CAPARD'!AT394)","v":"n.a."},{"$f":"IF('[2]MONE(M)CAPARD'!AU394=\"\",\"\",'[2]MONE(M)CAPARD'!AU394)","v":1.75},{"$f":"IF('[2]MONE(M)CAPARD'!AV394=\"\",\"\",'[2]MONE(M)CAPARD'!AV394)","v":3},{"$f":"IF('[2]MONE(M)CAPARD'!AW394=\"\",\"\",'[2]MONE(M)CAPARD'!AW394)","v":3.5},{"$f":"IF('[2]MONE(M)CAPARD'!AX394=\"\",\"\",'[2]MONE(M)CAPARD'!AX394)","v":4.5},{"$f":"IF('[2]MONE(M)CAPARD'!AY394=\"\",\"\",'[2]MONE(M)CAPARD'!AY394)","v":"n.a."},{"$f":"IF('[2]FISCAL(M)'!$K394=\"\",\"\",'[2]FISCAL(M)'!$K394)","v":177.23540647614928},{"$f":"IF('[2]FISCAL(M)'!$L394=\"\",\"\",'[2]FISCAL(M)'!$L394)","v":"n.d."},{"$f":"IF('[2]FISCAL(M)'!$AY394=\"\",\"\",'[2]FISCAL(M)'!$AY394)","v":188045.92315477048},{"$f":"IF('[2]FISCAL(M)'!$BI394=\"\",\"\",'[2]FISCAL(M)'!$BI394)","v":99151.473889223533},{"$f":"IF('[2]FISCAL(M)'!$BS394=\"\",\"\",'[2]FISCAL(M)'!$BS394)","v":88894.449265546951},{"$f":"IF('[2]FISCAL(M)'!$AZ394=\"\",\"\",'[2]FISCAL(M)'!$AZ394)","v":230954.31315477047},{"$f":"IF('[2]FISCAL(M)'!$BJ394=\"\",\"\",'[2]FISCAL(M)'!$BJ394)","v":106767.00388922353},{"$f":"IF('[2]FISCAL(M)'!$BT394=\"\",\"\",'[2]FISCAL(M)'!$BT394)","v":124187.30926554694},{"$f":"IF('[3]MONE(M)'!$AO394=\"\",\"\",'[3]MONE(M)'!$AO394)","v":23381688.461033866},{"$f":"IF('[4]MONE(M)'!$AO394=\"\",\"\",'[4]MONE(M)'!$AO394)","v":15255.180763940001},{"$f":"IF('[5]MONE(M)'!$AO394=\"\",\"\",'[5]MONE(M)'!$AO394)","v":254005.30803181257},{"$f":"+'[1]MONE(M)'!$AO394","v":458685.69085135031},{"$f":"IF('[6]MONE(M)'!$AO394=\"\",\"\",'[6]MONE(M)'!$AO394)","v":127259.62246254951},{"$f":"IF('[7]MONE(M)'!$AO394=\"\",\"\",'[7]MONE(M)'!$AO394)","v":1492831.1055824494},{"$f":"IF('[8]MONE(M)'!$AO394=\"\",\"\",'[8]MONE(M)'!$AO394)","v":53603.710900849983},3.0203663283297599,6.2016180971857571,10.690336908759912,14.250380748058911,5.7809462439708303,12.495250401158064,3.9395513753040845,{"$f":"'[2]FISCAL(M)'!$K394","v":177.23540647614928},{"$f":"+'[2]REAL(A)'!$AO$42","v":358127.2862337245},4.9489500881114146E-2,{"$f":"IF('[2]FISCAL(M)'!$L394=\"\",\"\",'[2]FISCAL(M)'!$L394)","v":"n.d."},{"$f":"+'[2]REAL(A)'!$AP$42","v":429212.35975017986},"n.d.",191608.91137737755,{"$f":"'[2]Gráfico REM'!BG388","v":49501.569361933318},{"$f":"'[2]Gráfico REM'!BH388","v":132720.75368922405},{"$f":"'[2]Gráfico REM'!BI388","v":9386.5883262201914},9.7988947085918543,18.504199926532451,7.3118782588156739,3.6119563084274553,274201.86905914755,{"$f":"'[2]Gráfico REM'!BK388","v":53165.144395843316},{"$f":"'[2]Gráfico REM'!BL388","v":186324.46459007403},{"$f":"'[2]Gráfico REM'!BM388","v":34712.260073230194},8.5976204254213364,16.071702432416913,6.3194785257053132,10.407498169252927]
[2022,"febrero","2022-febrero",{"$f":"IF('[2]REAL IPC(M)'!$AL395=\"\",\"\",+'[2]REAL IPC(M)'!$AL395)","v":6.1429344232734273},{"$f":"IF('[2]REAL IPC(M)'!$BE395=\"\",\"\",+'[2]REAL IPC(M)'!$BE395)","v":5.8664214075323518},{"$f":"IF('[2]REAL IPC(M)'!$AM395=\"\",\"\",+'[2]REAL IPC(M)'!$AM395)","v":5.6702943358891922},{"$f":"IF('[2]REAL IPC(M)'!$BI395=\"\",\"\",+'[2]REAL IPC(M)'!$BI395)","v":5.3091187923851146},{"$f":"IF('[2]REAL IMAE(M)'!BJ395=\"\",\"\",'[2]REAL IMAE(M)'!BJ395)","v":5.8154987994325724},{"$f":"IF('[2]REAL IMAE(M)'!BK395=\"\",\"\",'[2]REAL IMAE(M)'!BK395)","v":4.6376372577995983},{"$f":"IF('[2]REAL IMAE(M)'!BN395=\"\",\"\",'[2]REAL IMAE(M)'!BN395)","v":7.9191541980526026},{"$f":"IF('[2]REAL IMAE(M)'!BO395=\"\",\"\",'[2]REAL IMAE(M)'!BO395)","v":5.5584409990821149},{"$f":"IF('[2]EXT RIN(M)'!$K395=\"\",\"\",'[2]EXT RIN(M)'!$K395)","v":58085.828682112784},null,{"$f":"IF('[2]EXT RIN(M)'!$L395=\"\",\"\",'[2]EXT RIN(M)'!$L395)","v":67841.963871422777},null,{"$f":"IF('[2]MONE(M)CARD'!EG395=\"\",\"\",'[2]MONE(M)CARD'!EG395)","v":58536.472587279335},{"$f":"IF('[2]MONE(M)CARD'!EK395=\"\",\"\",'[2]MONE(M)CARD'!EK395)","v":69693.199977976328},{"$f":"IF('[2]MONE(M)CARD'!EP395=\"\",\"\",'[2]MONE(M)CARD'!EP395)","v":41772.212413897127},{"$f":"IF('[2]MONE(M)CARD'!ES395=\"\",\"\",'[2]MONE(M)CARD'!ES395)","v":10.556782350793803},{"$f":"IF('[2]MONE(M)CARD'!EV395=\"\",\"\",'[2]MONE(M)CARD'!EV395)","v":8.4715032462622908},{"$f":"IF('[2]MONE(M)CARD'!EZ395=\"\",\"\",'[2]MONE(M)CARD'!EZ395)","v":8.4579318932510361},{"$f":"IF('[2]MONE(M)CAPARD'!FC395=\"\",\"\",'[2]MONE(M)CAPARD'!FC395)","v":67898.204138339337},{"$f":"IF('[2]MONE(M)CAPARD'!FG395=\"\",\"\",'[2]MONE(M)CAPARD'!FG395)","v":98570.177558966345},{"$f":"IF('[2]MONE(M)CAPARD'!FL395=\"\",\"\",'[2]MONE(M)CAPARD'!FL395)","v":41772.212413897098},{"$f":"IF('[2]MONE(M)CAPARD'!FO395=\"\",\"\",'[2]MONE(M)CAPARD'!FO395)","v":9.4403579963147735},{"$f":"IF('[2]MONE(M)CAPARD'!FR395=\"\",\"\",'[2]MONE(M)CAPARD'!FR395)","v":1.4872025514835574},{"$f":"IF('[2]MONE(M)CAPARD'!FV395=\"\",\"\",'[2]MONE(M)CAPARD'!FV395)","v":2.8052130687860721},{"$f":"IF('[2]MONE(M)CARD'!FV395=\"\",\"\",'[2]MONE(M)CARD'!FV395)","v":2225.8010800139241},{"$f":"IF('[2]MONE(M)CARD'!GD395=\"\",\"\",'[2]MONE(M)CARD'!GD395)","v":187.31753677714534},{"$f":"IF('[2]MONE(M)CARD'!GE395=\"\",\"\",'[2]MONE(M)CARD'!GE395)","v":17220.533865727535},17.242364021130598,{"$f":"IF('[9]II.2.Balance OSD-Activos'!J253=\"\",\"\",'[9]II.2.Balance OSD-Activos'!J253)","v":272.5406607934803},{"$f":"IF('[9]II.2.Balance OSD-Activos'!N253=\"\",\"\",'[9]II.2.Balance OSD-Activos'!N253)","v":1796.3226938186258},{"$f":"IF('[9]II.2.Balance OSD-Activos'!R253=\"\",\"\",'[9]II.2.Balance OSD-Activos'!R253)","v":62249.23863181597},{"$f":"IF('[9]II.2.Balance OSD-Activos'!S253=\"\",\"\",'[9]II.2.Balance OSD-Activos'!S253)","v":67062.077909080428},62521.779292609448,131380.17989550851,-22.763030716326995,9.2957625811487468,46.531567028781538,9.4947439803124709,8.7048802804345016,9.3723059270056197,0.99975537439251916,{"$f":"IF('[2]MONE(M)CAPARD'!GS395=\"\",\"\",'[2]MONE(M)CAPARD'!GS395)","v":38815.348049954366},{"$f":"IF('[2]MONE(M)CARD'!HA395=\"\",\"\",'[2]MONE(M)CAPARD'!HA395)","v":19041.282924847535},{"$f":"IF('[2]MONE(M)CAPARD'!HB395=\"\",\"\",'[2]MONE(M)CAPARD'!HB395)","v":19774.06512510683},"n.d.",{"$f":"IF('[10]II.2.Balance OSD-Activos'!J253=\"\",\"\",'[10]II.2.Balance OSD-Activos'!J253)","v":2728.64385104348},{"$f":"IF('[10]II.2.Balance OSD-Activos'!N253=\"\",\"\",'[10]II.2.Balance OSD-Activos'!N253)","v":2547.1829595886256},{"$f":"IF('[10]II.2.Balance OSD-Activos'!R253=\"\",\"\",'[10]II.2.Balance OSD-Activos'!R253)","v":83792.753761345972},{"$f":"IF('[10]II.2.Balance OSD-Activos'!S253=\"\",\"\",'[10]II.2.Balance OSD-Activos'!S253)","v":94799.223609950423},86521.397612389454,183867.80418192851,-8.3978443981962965,6.0931974328312544,45.614932797437312,6.6425673817431585,7.521564744851017,7.2308337658734567,0.71650761609387548,{"$f":"IF('[2]MONE(M)CAPARD'!AS395=\"\",\"\",'[2]MONE(M)CAPARD'!AS395)","v":1.75},{"$f":"IF('[2]MONE(M)CAPARD'!AT395=\"\",\"\",'[2]MONE(M)CAPARD'!AT395)","v":"n.a."},{"$f":"IF('[2]MONE(M)CAPARD'!AU395=\"\",\"\",'[2]MONE(M)CAPARD'!AU395)","v":1.75},{"$f":"IF('[2]MONE(M)CAPARD'!AV395=\"\",\"\",'[2]MONE(M)CAPARD'!AV395)","v":3},{"$f":"IF('[2]MONE(M)CAPARD'!AW395=\"\",\"\",'[2]MONE(M)CAPARD'!AW395)","v":3.5},{"$f":"IF('[2]MONE(M)CAPARD'!AX395=\"\",\"\",'[2]MONE(M)CAPARD'!AX395)","v":5},{"$f":"IF('[2]MONE(M)CAPARD'!AY395=\"\",\"\",'[2]MONE(M)CAPARD'!AY395)","v":"n.a."},{"$f":"IF('[2]FISCAL(M)'!$K395=\"\",\"\",'[2]FISCAL(M)'!$K395)","v":-563.94386855585583},{"$f":"IF('[2]FISCAL(M)'!$L395=\"\",\"\",'[2]FISCAL(M)'!$L395)","v":"n.d."},{"$f":"IF('[2]FISCAL(M)'!$AY395=\"\",\"\",'[2]FISCAL(M)'!$AY395)","v":192962.24120492721},{"$f":"IF('[2]FISCAL(M)'!$BI395=\"\",\"\",'[2]FISCAL(M)'!$BI395)","v":101246.27296033074},{"$f":"IF('[2]FISCAL(M)'!$BS395=\"\",\"\",'[2]FISCAL(M)'!$BS395)","v":91715.968244596501},{"$f":"IF('[2]FISCAL(M)'!$AZ395=\"\",\"\",'[2]FISCAL(M)'!$AZ395)","v":235841.53120492725},{"$f":"IF('[2]FISCAL(M)'!$BJ395=\"\",\"\",'[2]FISCAL(M)'!$BJ395)","v":108876.95296033073},{"$f":"IF('[2]FISCAL(M)'!$BT395=\"\",\"\",'[2]FISCAL(M)'!$BT395)","v":126964.5782445965},{"$f":"IF('[3]MONE(M)'!$AO395=\"\",\"\",'[3]MONE(M)'!$AO395)","v":23448090.183741249},{"$f":"IF('[4]MONE(M)'!$AO395=\"\",\"\",'[4]MONE(M)'!$AO395)","v":15355.145972509999},{"$f":"IF('[5]MONE(M)'!$AO395=\"\",\"\",'[5]MONE(M)'!$AO395)","v":256438.73704893491},{"$f":"+'[1]MONE(M)'!$AO395","v":465146.60718682251},{"$f":"IF('[6]MONE(M)'!$AO395=\"\",\"\",'[6]MONE(M)'!$AO395)","v":128367.27828883519},{"$f":"IF('[7]MONE(M)'!$AO395=\"\",\"\",'[7]MONE(M)'!$AO395)","v":1494170.0564485437},{"$f":"IF('[8]MONE(M)'!$AO395=\"\",\"\",'[8]MONE(M)'!$AO395)","v":53694.822842930007},3.4311640681044864,6.8391420391505475,11.170047697489128,14.863872513260556,6.2283996330927849,11.86016425838412,3.8950028847666518,{"$f":"'[2]FISCAL(M)'!$K395","v":-563.94386855585583},{"$f":"+'[2]REAL(A)'!$AO$42","v":358127.2862337245},-0.15747023201907306,{"$f":"IF('[2]FISCAL(M)'!$L395=\"\",\"\",'[2]FISCAL(M)'!$L395)","v":"n.d."},{"$f":"+'[2]REAL(A)'!$AP$42","v":429212.35975017986},{"$f":"IF(OR(CP388=\"n.d.\",CP388=\"\",CQ388=\"\",CQ388=\"n.d.\"),\"n.d.\",(CP388/CQ388)*100)","v":"n.d."},194869.14557503356,{"$f":"'[2]Gráfico REM'!BG389","v":50345.046909228855},{"$f":"'[2]Gráfico REM'!BH389","v":134900.46845772036},{"$f":"'[2]Gráfico REM'!BI389","v":9623.6302080843689},10.382287494786112,17.194757522876603,8.3607471126661892,5.8731006716634004,277963.73840765358,{"$f":"'[2]Gráfico REM'!BK389","v":54077.341781168856},{"$f":"'[2]Gráfico REM'!BL389","v":188595.29130065037},{"$f":"'[2]Gráfico REM'!BM389","v":35291.105325834367},8.9887519593244249,14.937204355827284,7.0506900118126659,10.923783815576815]
[2022,"marzo","2022-marzo",{"$f":"IF('[2]REAL IPC(M)'!$AL396=\"\",\"\",+'[2]REAL IPC(M)'!$AL396)","v":6.7516609804273653},{"$f":"IF('[2]REAL IPC(M)'!$BE396=\"\",\"\",+'[2]REAL IPC(M)'!$BE396)","v":5.9318026208346142},{"$f":"IF('[2]REAL IPC(M)'!$AM396=\"\",\"\",+'[2]REAL IPC(M)'!$AM396)","v":6.2569281931272203},{"$f":"IF('[2]REAL IPC(M)'!$BI396=\"\",\"\",+'[2]REAL IPC(M)'!$BI396)","v":5.3779121906088134},{"$f":"IF('[2]REAL IMAE(M)'!BJ396=\"\",\"\",'[2]REAL IMAE(M)'!BJ396)","v":5.4847479158499191},{"$f":"IF('[2]REAL IMAE(M)'!BK396=\"\",\"\",'[2]REAL IMAE(M)'!BK396)","v":4.6749559661594553},{"$f":"IF('[2]REAL IMAE(M)'!BN396=\"\",\"\",'[2]REAL IMAE(M)'!BN396)","v":6.6637458848118891},{"$f":"IF('[2]REAL IMAE(M)'!BO396=\"\",\"\",'[2]REAL IMAE(M)'!BO396)","v":5.6462564484480282},{"$f":"IF('[2]EXT RIN(M)'!$K396=\"\",\"\",'[2]EXT RIN(M)'!$K396)","v":58420.011667193532},null,{"$f":"IF('[2]EXT RIN(M)'!$L396=\"\",\"\",'[2]EXT RIN(M)'!$L396)","v":67385.719122483526},null,{"$f":"IF('[2]MONE(M)CARD'!EG396=\"\",\"\",'[2]MONE(M)CARD'!EG396)","v":58372.354056434422},{"$f":"IF('[2]MONE(M)CARD'!EK396=\"\",\"\",'[2]MONE(M)CARD'!EK396)","v":69884.999919768219},{"$f":"IF('[2]MONE(M)CARD'!EP396=\"\",\"\",'[2]MONE(M)CARD'!EP396)","v":42313.422023315041},{"$f":"IF('[2]MONE(M)CARD'!ES396=\"\",\"\",'[2]MONE(M)CARD'!ES396)","v":9.0732573193995627},{"$f":"IF('[2]MONE(M)CARD'!EV396=\"\",\"\",'[2]MONE(M)CARD'!EV396)","v":7.0242999069397349},{"$f":"IF('[2]MONE(M)CARD'!EZ396=\"\",\"\",'[2]MONE(M)CARD'!EZ396)","v":7.5965672884420243},{"$f":"IF('[2]MONE(M)CAPARD'!FC396=\"\",\"\",'[2]MONE(M)CAPARD'!FC396)","v":67810.581355114424},{"$f":"IF('[2]MONE(M)CAPARD'!FG396=\"\",\"\",'[2]MONE(M)CAPARD'!FG396)","v":98440.880840928192},{"$f":"IF('[2]MONE(M)CAPARD'!FL396=\"\",\"\",'[2]MONE(M)CAPARD'!FL396)","v":42313.422023315041},{"$f":"IF('[2]MONE(M)CAPARD'!FO396=\"\",\"\",'[2]MONE(M)CAPARD'!FO396)","v":8.0789075485680595},{"$f":"IF('[2]MONE(M)CAPARD'!FR396=\"\",\"\",'[2]MONE(M)CAPARD'!FR396)","v":0.10583515168833824},{"$f":"IF('[2]MONE(M)CAPARD'!FV396=\"\",\"\",'[2]MONE(M)CAPARD'!FV396)","v":1.8560730734219488},{"$f":"IF('[2]MONE(M)CARD'!FV396=\"\",\"\",'[2]MONE(M)CARD'!FV396)","v":2123.4691397174684},{"$f":"IF('[2]MONE(M)CARD'!GD396=\"\",\"\",'[2]MONE(M)CARD'!GD396)","v":169.91811511740332},{"$f":"IF('[2]MONE(M)CARD'!GE396=\"\",\"\",'[2]MONE(M)CARD'!GE396)","v":17483.800534271744},17.712004472617071,{"$f":"IF('[9]II.2.Balance OSD-Activos'!J254=\"\",\"\",'[9]II.2.Balance OSD-Activos'!J254)","v":268.83959851425914},{"$f":"IF('[9]II.2.Balance OSD-Activos'!N254=\"\",\"\",'[9]II.2.Balance OSD-Activos'!N254)","v":1780.979124378855},{"$f":"IF('[9]II.2.Balance OSD-Activos'!R254=\"\",\"\",'[9]II.2.Balance OSD-Activos'!R254)","v":62527.03191177496},{"$f":"IF('[9]II.2.Balance OSD-Activos'!S254=\"\",\"\",'[9]II.2.Balance OSD-Activos'!S254)","v":67525.057080972198},62795.871510289217,{"$f":"IF(OR(AF389=\"\",AG389=\"\",AH389=\"\",AI389=\"\"),\"\",SUM(AF389:AI389))","v":132101.90771564026},-16.905459273507873,8.5571278402098336,41.076108130458522,8.7003421359096667,8.5454874566101235,8.8895503536595033,-0.48275557334611641,{"$f":"IF('[2]MONE(M)CAPARD'!GS396=\"\",\"\",'[2]MONE(M)CAPARD'!GS396)","v":38281.905970111286},{"$f":"IF('[2]MONE(M)CARD'!HA396=\"\",\"\",'[2]MONE(M)CAPARD'!HA396)","v":19153.850325471743},{"$f":"IF('[2]MONE(M)CAPARD'!HB396=\"\",\"\",'[2]MONE(M)CAPARD'!HB396)","v":19128.055644639542},"n.d.",{"$f":"IF('[10]II.2.Balance OSD-Activos'!J254=\"\",\"\",'[10]II.2.Balance OSD-Activos'!J254)","v":2802.9325795842583},{"$f":"IF('[10]II.2.Balance OSD-Activos'!N254=\"\",\"\",'[10]II.2.Balance OSD-Activos'!N254)","v":2528.261805908855},{"$f":"IF('[10]II.2.Balance OSD-Activos'!R254=\"\",\"\",'[10]II.2.Balance OSD-Activos'!R254)","v":84160.705423724954},{"$f":"IF('[10]II.2.Balance OSD-Activos'!S254=\"\",\"\",'[10]II.2.Balance OSD-Activos'!S254)","v":95287.762028312209},86963.638003309214,{"$f":"IF(OR(AW389=\"\",AX389=\"\",AY389=\"\",AZ389=\"\"),\"\",SUM(AW389:AZ389))","v":184779.66183753026},-4.0896719343941568,5.8430214400944536,42.228821037092956,6.2093473838712665,7.3905225584791401,7.012817932906934,-0.21801583296652272,{"$f":"IF('[2]MONE(M)CAPARD'!AS396=\"\",\"\",'[2]MONE(M)CAPARD'!AS396)","v":2.5},{"$f":"IF('[2]MONE(M)CAPARD'!AT396=\"\",\"\",'[2]MONE(M)CAPARD'!AT396)","v":"n.a."},{"$f":"IF('[2]MONE(M)CAPARD'!AU396=\"\",\"\",'[2]MONE(M)CAPARD'!AU396)","v":1.75},{"$f":"IF('[2]MONE(M)CAPARD'!AV396=\"\",\"\",'[2]MONE(M)CAPARD'!AV396)","v":3},{"$f":"IF('[2]MONE(M)CAPARD'!AW396=\"\",\"\",'[2]MONE(M)CAPARD'!AW396)","v":3.5},{"$f":"IF('[2]MONE(M)CAPARD'!AX396=\"\",\"\",'[2]MONE(M)CAPARD'!AX396)","v":5},{"$f":"IF('[2]MONE(M)CAPARD'!AY396=\"\",\"\",'[2]MONE(M)CAPARD'!AY396)","v":"n.a."},{"$f":"IF('[2]FISCAL(M)'!$K396=\"\",\"\",'[2]FISCAL(M)'!$K396)","v":-573.86712665039033},{"$f":"IF('[2]FISCAL(M)'!$L396=\"\",\"\",'[2]FISCAL(M)'!$L396)","v":-2029.8671266503907},{"$f":"IF('[2]FISCAL(M)'!$AY396=\"\",\"\",'[2]FISCAL(M)'!$AY396)","v":191943.16363115772},{"$f":"IF('[2]FISCAL(M)'!$BI396=\"\",\"\",'[2]FISCAL(M)'!$BI396)","v":99805.466898630228},{"$f":"IF('[2]FISCAL(M)'!$BS396=\"\",\"\",'[2]FISCAL(M)'!$BS396)","v":92137.696732527475},{"$f":"IF('[2]FISCAL(M)'!$AZ396=\"\",\"\",'[2]FISCAL(M)'!$AZ396)","v":234755.91363115769},{"$f":"IF('[2]FISCAL(M)'!$BJ396=\"\",\"\",'[2]FISCAL(M)'!$BJ396)","v":107422.64689863022},{"$f":"IF('[2]FISCAL(M)'!$BT396=\"\",\"\",'[2]FISCAL(M)'!$BT396)","v":127333.26673252747},{"$f":"IF('[3]MONE(M)'!$AO396=\"\",\"\",'[3]MONE(M)'!$AO396)","v":23749150.99229525},{"$f":"IF('[4]MONE(M)'!$AO396=\"\",\"\",'[4]MONE(M)'!$AO396)","v":15508.70687021},{"$f":"IF('[5]MONE(M)'!$AO396=\"\",\"\",'[5]MONE(M)'!$AO396)","v":260565.69901925928},{"$f":"+'[1]MONE(M)'!$AO396","v":469088.88527946401},{"$f":"IF('[6]MONE(M)'!$AO396=\"\",\"\",'[6]MONE(M)'!$AO396)","v":129976.05742125931},{"$f":"IF('[7]MONE(M)'!$AO396=\"\",\"\",'[7]MONE(M)'!$AO396)","v":1521264.6158752134},{"$f":"IF('[8]MONE(M)'!$AO396=\"\",\"\",'[8]MONE(M)'!$AO396)","v":53961.613775769991},4.5158502090728359,7.2664713245291557,11.996974215163437,15.047327085012817,7.1159247369551037,{"$f":"IF(CD389=\"\",\"\",((CD389/CD377)-1)*100)","v":12.719104083560939},{"$f":"IF(CE389=\"\",\"\",((CE389/CE377)-1)*100)","v":2.3352069595624192},{"$f":"'[2]FISCAL(M)'!$K396","v":-573.86712665039033},{"$f":"+'[2]REAL(A)'!$AO$42","v":358127.2862337245},-0.16024110664270011,{"$f":"IF('[2]FISCAL(M)'!$L396=\"\",\"\",'[2]FISCAL(M)'!$L396)","v":-2029.8671266503907},{"$f":"+'[2]REAL(A)'!$AP$42","v":429212.35975017986},-0.47292839559230332,194814.96142523063,{"$f":"'[2]Gráfico REM'!BG390","v":49539.157284681489},{"$f":"'[2]Gráfico REM'!BH390","v":135647.88934688683},{"$f":"'[2]Gráfico REM'!BI390","v":9627.9147936623303},8.5945858637222159,12.034774054771402,7.9112606056645829,1.6061053331660746,276895.23000391066,{"$f":"'[2]Gráfico REM'!BK390","v":53096.72994377149},{"$f":"'[2]Gráfico REM'!BL390","v":189609.50312265684},{"$f":"'[2]Gráfico REM'!BM390","v":34188.996937482334},7.3142985065840493,12.261018731876527,6.2634376018529725,5.8755654046374062]
[2022,"abril","2022-abril",{"$f":"IF('[2]REAL IPC(M)'!$AL397=\"\",\"\",+'[2]REAL IPC(M)'!$AL397)","v":7.4522673031026221},{"$f":"IF('[2]REAL IPC(M)'!$BE397=\"\",\"\",+'[2]REAL IPC(M)'!$BE397)","v":5.9886097137152206},{"$f":"IF('[2]REAL IPC(M)'!$AM397=\"\",\"\",+'[2]REAL IPC(M)'!$AM397)","v":6.9278958358923948},{"$f":"IF('[2]REAL IPC(M)'!$BI397=\"\",\"\",+'[2]REAL IPC(M)'!$BI397)","v":5.4378258215269426},{"$f":"IF('[2]REAL IMAE(M)'!BJ397=\"\",\"\",'[2]REAL IMAE(M)'!BJ397)","v":4.838212391610841},{"$f":"IF('[2]REAL IMAE(M)'!BK397=\"\",\"\",'[2]REAL IMAE(M)'!BK397)","v":4.7013569101616248},{"$f":"IF('[2]REAL IMAE(M)'!BN397=\"\",\"\",'[2]REAL IMAE(M)'!BN397)","v":5.7027776245000439},{"$f":"IF('[2]REAL IMAE(M)'!BO397=\"\",\"\",'[2]REAL IMAE(M)'!BO397)","v":5.717104870570977},{"$f":"IF('[2]EXT RIN(M)'!$K397=\"\",\"\",'[2]EXT RIN(M)'!$K397)","v":58408.357734809368},null,{"$f":"IF('[2]EXT RIN(M)'!$L397=\"\",\"\",'[2]EXT RIN(M)'!$L397)","v":67130.287193149372},null,{"$f":"IF('[2]MONE(M)CARD'!EG397=\"\",\"\",'[2]MONE(M)CARD'!EG397)","v":57956.959912791513},{"$f":"IF('[2]MONE(M)CARD'!EK397=\"\",\"\",'[2]MONE(M)CARD'!EK397)","v":70503.855510609064},{"$f":"IF('[2]MONE(M)CARD'!EP397=\"\",\"\",'[2]MONE(M)CARD'!EP397)","v":42625.461076235777},{"$f":"IF('[2]MONE(M)CARD'!ES397=\"\",\"\",'[2]MONE(M)CARD'!ES397)","v":8.7589033976003492},{"$f":"IF('[2]MONE(M)CARD'!EV397=\"\",\"\",'[2]MONE(M)CARD'!EV397)","v":7.31592427170078},{"$f":"IF('[2]MONE(M)CARD'!EZ397=\"\",\"\",'[2]MONE(M)CARD'!EZ397)","v":7.7090829857893617},{"$f":"IF('[2]MONE(M)CAPARD'!FC397=\"\",\"\",'[2]MONE(M)CAPARD'!FC397)","v":67288.211996511513},{"$f":"IF('[2]MONE(M)CAPARD'!FG397=\"\",\"\",'[2]MONE(M)CAPARD'!FG397)","v":99436.61548605909},{"$f":"IF('[2]MONE(M)CAPARD'!FL397=\"\",\"\",'[2]MONE(M)CAPARD'!FL397)","v":42625.461076235777},{"$f":"IF('[2]MONE(M)CAPARD'!FO397=\"\",\"\",'[2]MONE(M)CAPARD'!FO397)","v":7.648241628362662},{"$f":"IF('[2]MONE(M)CAPARD'!FR397=\"\",\"\",'[2]MONE(M)CAPARD'!FR397)","v":6.9479282659247188},{"$f":"IF('[2]MONE(M)CAPARD'!FV397=\"\",\"\",'[2]MONE(M)CAPARD'!FV397)","v":7.3419795243940378},{"$f":"IF('[2]MONE(M)CARD'!FV397=\"\",\"\",'[2]MONE(M)CARD'!FV397)","v":2160.5416761331962},{"$f":"IF('[2]MONE(M)CARD'!GD397=\"\",\"\",'[2]MONE(M)CARD'!GD397)","v":402.26641754176057},{"$f":"IF('[2]MONE(M)CARD'!GE397=\"\",\"\",'[2]MONE(M)CARD'!GE397)","v":18369.2757754739},23.665012085377857,{"$f":"IF('[9]II.2.Balance OSD-Activos'!J255=\"\",\"\",'[9]II.2.Balance OSD-Activos'!J255)","v":268.89163891045001},{"$f":"IF('[9]II.2.Balance OSD-Activos'!N255=\"\",\"\",'[9]II.2.Balance OSD-Activos'!N255)","v":1696.6213458019288},{"$f":"IF('[9]II.2.Balance OSD-Activos'!R255=\"\",\"\",'[9]II.2.Balance OSD-Activos'!R255)","v":63153.681374308777},{"$f":"IF('[9]II.2.Balance OSD-Activos'!S255=\"\",\"\",'[9]II.2.Balance OSD-Activos'!S255)","v":68036.691871225936},63422.573013219226,133155.8862302471,-17.32651159557911,9.5531619413112168,40.613594397956845,9.7050287577021841,8.9498102577934446,9.5515088916864102,0.66195853802690685,{"$f":"IF('[2]MONE(M)CAPARD'!GS397=\"\",\"\",'[2]MONE(M)CAPARD'!GS397)","v":38562.863554422176},{"$f":"IF('[2]MONE(M)CARD'!HA397=\"\",\"\",'[2]MONE(M)CAPARD'!HA397)","v":20080.6651762039},{"$f":"IF('[2]MONE(M)CAPARD'!HB397=\"\",\"\",'[2]MONE(M)CAPARD'!HB397)","v":18482.198378218276},"n.d.",{"$f":"IF('[10]II.2.Balance OSD-Activos'!J255=\"\",\"\",'[10]II.2.Balance OSD-Activos'!J255)","v":2811.4311608204493},{"$f":"IF('[10]II.2.Balance OSD-Activos'!N255=\"\",\"\",'[10]II.2.Balance OSD-Activos'!N255)","v":2472.0763131419285},{"$f":"IF('[10]II.2.Balance OSD-Activos'!R255=\"\",\"\",'[10]II.2.Balance OSD-Activos'!R255)","v":84832.312623568781},{"$f":"IF('[10]II.2.Balance OSD-Activos'!S255=\"\",\"\",'[10]II.2.Balance OSD-Activos'!S255)","v":95896.575569295936},87643.743784389226,186012.3956668271,-1.1859830968086515,7.0004182444519225,22.587029967983121,7.2950097018646076,7.6330000417740518,7.5078226388703317,0.49500470596339774,{"$f":"IF('[2]MONE(M)CAPARD'!AS397=\"\",\"\",'[2]MONE(M)CAPARD'!AS397)","v":4},{"$f":"IF('[2]MONE(M)CAPARD'!AT397=\"\",\"\",'[2]MONE(M)CAPARD'!AT397)","v":"n.a."},{"$f":"IF('[2]MONE(M)CAPARD'!AU397=\"\",\"\",'[2]MONE(M)CAPARD'!AU397)","v":1.75},{"$f":"IF('[2]MONE(M)CAPARD'!AV397=\"\",\"\",'[2]MONE(M)CAPARD'!AV397)","v":3},{"$f":"IF('[2]MONE(M)CAPARD'!AW397=\"\",\"\",'[2]MONE(M)CAPARD'!AW397)","v":4},{"$f":"IF('[2]MONE(M)CAPARD'!AX397=\"\",\"\",'[2]MONE(M)CAPARD'!AX397)","v":5.5},{"$f":"IF('[2]MONE(M)CAPARD'!AY397=\"\",\"\",'[2]MONE(M)CAPARD'!AY397)","v":"n.a."},{"$f":"IF('[2]FISCAL(M)'!$K397=\"\",\"\",'[2]FISCAL(M)'!$K397)","v":592.37295886769516},{"$f":"IF('[2]FISCAL(M)'!$L397=\"\",\"\",'[2]FISCAL(M)'!$L397)","v":"n.d."},{"$f":"IF('[2]FISCAL(M)'!$AY397=\"\",\"\",'[2]FISCAL(M)'!$AY397)","v":191890.03744076542},{"$f":"IF('[2]FISCAL(M)'!$BI397=\"\",\"\",'[2]FISCAL(M)'!$BI397)","v":99873.700856916519},{"$f":"IF('[2]FISCAL(M)'!$BS397=\"\",\"\",'[2]FISCAL(M)'!$BS397)","v":92016.336583848897},{"$f":"IF('[2]FISCAL(M)'!$AZ397=\"\",\"\",'[2]FISCAL(M)'!$AZ397)","v":234829.92744076543},{"$f":"IF('[2]FISCAL(M)'!$BJ397=\"\",\"\",'[2]FISCAL(M)'!$BJ397)","v":107527.4308569165},{"$f":"IF('[2]FISCAL(M)'!$BT397=\"\",\"\",'[2]FISCAL(M)'!$BT397)","v":127302.4965838489},{"$f":"IF('[3]MONE(M)'!$AO397=\"\",\"\",'[3]MONE(M)'!$AO397)","v":23947367.415741112},{"$f":"IF('[4]MONE(M)'!$AO397=\"\",\"\",'[4]MONE(M)'!$AO397)","v":15697.714560100005},{"$f":"IF('[5]MONE(M)'!$AO397=\"\",\"\",'[5]MONE(M)'!$AO397)","v":263210.71781858883},{"$f":"+'[1]MONE(M)'!$AO397","v":473933.19509528932},{"$f":"IF('[6]MONE(M)'!$AO397=\"\",\"\",'[6]MONE(M)'!$AO397)","v":131332.66804697816},{"$f":"IF('[7]MONE(M)'!$AO397=\"\",\"\",'[7]MONE(M)'!$AO397)","v":1535267.7246082402},{"$f":"IF('[8]MONE(M)'!$AO397=\"\",\"\",'[8]MONE(M)'!$AO397)","v":54156.260220459997},4.9387488077288877,7.6513312458993399,12.80209741853704,16.311872870281263,9.1753605745885647,12.783014710316642,2.8369878443728513,{"$f":"'[2]FISCAL(M)'!$K397","v":592.37295886769516},{"$f":"+'[2]REAL(A)'!$AO$42","v":358127.2862337245},{"$f":"IF(OR(CM390=\"n.d.\",CM390=\"\",CN390=\"\",CN390=\"n.d.\"),\"\",(CM390/CN390)*100)","v":0.16540849626327969},{"$f":"IF('[2]FISCAL(M)'!$L397=\"\",\"\",'[2]FISCAL(M)'!$L397)","v":"n.d."},{"$f":"+'[2]REAL(A)'!$AP$42","v":429212.35975017986},"n.d.",195706.59975195327,{"$f":"'[2]Gráfico REM'!BG391","v":49323.731184973469},{"$f":"'[2]Gráfico REM'!BH391","v":136829.09284315325},{"$f":"'[2]Gráfico REM'!BI391","v":9553.7757238265622},8.3208949543107202,8.5140989703480265,8.5662438109964647,3.9988797305675394,281711.48766683327,{"$f":"'[2]Gráfico REM'!BK391","v":53151.053096543474},{"$f":"'[2]Gráfico REM'!BL391","v":190985.35306361323},{"$f":"'[2]Gráfico REM'!BM391","v":37575.081506676564},8.2339635060820306,8.5715844443363221,6.8778062160911979,15.154248992595765]
[2022,"mayo ","2022-mayo ",{"$f":"IF('[2]REAL IPC(M)'!$AL398=\"\",\"\",+'[2]REAL IPC(M)'!$AL398)","v":8.1830625483544583},{"$f":"IF('[2]REAL IPC(M)'!$BE398=\"\",\"\",+'[2]REAL IPC(M)'!$BE398)","v":6.0363051378974131},{"$f":"IF('[2]REAL IPC(M)'!$AM398=\"\",\"\",+'[2]REAL IPC(M)'!$AM398)","v":7.632933104631201},{"$f":"IF('[2]REAL IPC(M)'!$BI398=\"\",\"\",+'[2]REAL IPC(M)'!$BI398)","v":5.4883203272229064},{"$f":"IF('[2]REAL IMAE(M)'!BJ398=\"\",\"\",'[2]REAL IMAE(M)'!BJ398)","v":4.26170317618908},{"$f":"IF('[2]REAL IMAE(M)'!BK398=\"\",\"\",'[2]REAL IMAE(M)'!BK398)","v":4.7180614626233242},{"$f":"IF('[2]REAL IMAE(M)'!BN398=\"\",\"\",'[2]REAL IMAE(M)'!BN398)","v":4.974999479883202},{"$f":"IF('[2]REAL IMAE(M)'!BO398=\"\",\"\",'[2]REAL IMAE(M)'!BO398)","v":5.7727328841244541},{"$f":"IF('[2]EXT RIN(M)'!$K398=\"\",\"\",'[2]EXT RIN(M)'!$K398)","v":58247.956312091206},null,{"$f":"IF('[2]EXT RIN(M)'!$L398=\"\",\"\",'[2]EXT RIN(M)'!$L398)","v":66498.729403261212},null,{"$f":"IF('[2]MONE(M)CARD'!EG398=\"\",\"\",'[2]MONE(M)CARD'!EG398)","v":56753.127050419629},{"$f":"IF('[2]MONE(M)CARD'!EK398=\"\",\"\",'[2]MONE(M)CARD'!EK398)","v":70588.835343708997},{"$f":"IF('[2]MONE(M)CARD'!EP398=\"\",\"\",'[2]MONE(M)CARD'!EP398)","v":43253.490287359935},{"$f":"IF('[2]MONE(M)CARD'!ES398=\"\",\"\",'[2]MONE(M)CARD'!ES398)","v":4.9384325233386095},{"$f":"IF('[2]MONE(M)CARD'!EV398=\"\",\"\",'[2]MONE(M)CARD'!EV398)","v":5.4844262878362526},{"$f":"IF('[2]MONE(M)CARD'!EZ398=\"\",\"\",'[2]MONE(M)CARD'!EZ398)","v":6.305270044414879},{"$f":"IF('[2]MONE(M)CAPARD'!FC398=\"\",\"\",'[2]MONE(M)CAPARD'!FC398)","v":65940.284950009634},{"$f":"IF('[2]MONE(M)CAPARD'!FG398=\"\",\"\",'[2]MONE(M)CAPARD'!FG398)","v":99704.414847898996},{"$f":"IF('[2]MONE(M)CAPARD'!FL398=\"\",\"\",'[2]MONE(M)CAPARD'!FL398)","v":43253.49028735992},{"$f":"IF('[2]MONE(M)CAPARD'!FO398=\"\",\"\",'[2]MONE(M)CAPARD'!FO398)","v":4.2659198526172171},{"$f":"IF('[2]MONE(M)CAPARD'!FR398=\"\",\"\",'[2]MONE(M)CAPARD'!FR398)","v":5.4796925821480214},{"$f":"IF('[2]MONE(M)CAPARD'!FV398=\"\",\"\",'[2]MONE(M)CAPARD'!FV398)","v":6.150006938831476},{"$f":"IF('[2]MONE(M)CARD'!FV398=\"\",\"\",'[2]MONE(M)CARD'!FV398)","v":2125.0251010775155},{"$f":"IF('[2]MONE(M)CARD'!GD398=\"\",\"\",'[2]MONE(M)CARD'!GD398)","v":175.53982650354052},{"$f":"IF('[2]MONE(M)CARD'!GE398=\"\",\"\",'[2]MONE(M)CARD'!GE398)","v":18160.694722643209},10.636800959301041,{"$f":"IF('[9]II.2.Balance OSD-Activos'!J256=\"\",\"\",'[9]II.2.Balance OSD-Activos'!J256)","v":265.80488722584613},{"$f":"IF('[9]II.2.Balance OSD-Activos'!N256=\"\",\"\",'[9]II.2.Balance OSD-Activos'!N256)","v":1665.2240279225416},{"$f":"IF('[9]II.2.Balance OSD-Activos'!R256=\"\",\"\",'[9]II.2.Balance OSD-Activos'!R256)","v":63428.366230685453},{"$f":"IF('[9]II.2.Balance OSD-Activos'!S256=\"\",\"\",'[9]II.2.Balance OSD-Activos'!S256)","v":68493.147090645085},63694.171117911297,133852.54223647894,-16.978051274923523,{"$f":"IF(OR(AJ391=\"\",AJ379=\"\"),\"\",((AJ391/AJ379)-1)*100)","v":9.3845008788522755},{"$f":"IF(OR(AG391=\"\",AG379=\"\"),\"\",((AG391/AG379)-1)*100)","v":42.998241031788531},{"$f":"IF(OR(AH391=\"\",AH379=\"\"),\"\",((AH391/AH379)-1)*100)","v":9.5302507056350905},{"$f":"IF(OR(AI391=\"\",AI379=\"\"),\"\",((AI391/AI379)-1)*100)","v":9.0994448140133919},{"$f":"IF(OR(AK391=\"\",AK379=\"\"),\"\",((AK391/AK379)-1)*100)","v":9.5584115846256257},{"$f":"IF(OR(AQ391=\"\",AQ390=\"\"),\"\",AQ391-AQ390)","v":6.9026929392155267E-3},{"$f":"IF('[2]MONE(M)CAPARD'!GS398=\"\",\"\",'[2]MONE(M)CAPARD'!GS398)","v":37717.240986749341},{"$f":"IF('[2]MONE(M)CARD'!HA398=\"\",\"\",'[2]MONE(M)CAPARD'!HA398)","v":19947.870392353212},{"$f":"IF('[2]MONE(M)CAPARD'!HB398=\"\",\"\",'[2]MONE(M)CAPARD'!HB398)","v":17769.370594396129},"n.d.",{"$f":"IF('[10]II.2.Balance OSD-Activos'!J256=\"\",\"\",'[10]II.2.Balance OSD-Activos'!J256)","v":2820.3516584358458},{"$f":"IF('[10]II.2.Balance OSD-Activos'!N256=\"\",\"\",'[10]II.2.Balance OSD-Activos'!N256)","v":2435.8510294225416},{"$f":"IF('[10]II.2.Balance OSD-Activos'!R256=\"\",\"\",'[10]II.2.Balance OSD-Activos'!R256)","v":85066.904766805455},{"$f":"IF('[10]II.2.Balance OSD-Activos'!S256=\"\",\"\",'[10]II.2.Balance OSD-Activos'!S256)","v":96404.223806445079},87887.256425241299,186727.33126110892,{"$f":"IF(OR(AW391=\"\",AW379=\"\"),\"\",((AW391/AW379)-1)*100)","v":-1.2643986639275018},{"$f":"IF(OR(BA391=\"\",BA379=\"\"),\"\",((BA391/BA379)-1)*100)","v":6.8190060179690315},23.476648273911628,7.1097375470394075,7.6859648077977516,{"$f":"IF(OR(BB391=\"\",BB379=\"\"),\"\",((BB391/BB379)-1)*100)","v":7.4547438282171141},{"$f":"IF(OR(BH391=\"\",BH390=\"\"),\"\",BH391-BH390)","v":-5.3078810653217623E-2},{"$f":"IF('[2]MONE(M)CAPARD'!AS398=\"\",\"\",'[2]MONE(M)CAPARD'!AS398)","v":4},{"$f":"IF('[2]MONE(M)CAPARD'!AT398=\"\",\"\",'[2]MONE(M)CAPARD'!AT398)","v":"n.a."},{"$f":"IF('[2]MONE(M)CAPARD'!AU398=\"\",\"\",'[2]MONE(M)CAPARD'!AU398)","v":2},{"$f":"IF('[2]MONE(M)CAPARD'!AV398=\"\",\"\",'[2]MONE(M)CAPARD'!AV398)","v":3},{"$f":"IF('[2]MONE(M)CAPARD'!AW398=\"\",\"\",'[2]MONE(M)CAPARD'!AW398)","v":4},{"$f":"IF('[2]MONE(M)CAPARD'!AX398=\"\",\"\",'[2]MONE(M)CAPARD'!AX398)","v":5.5},{"$f":"IF('[2]MONE(M)CAPARD'!AY398=\"\",\"\",'[2]MONE(M)CAPARD'!AY398)","v":"n.a."},{"$f":"IF('[2]FISCAL(M)'!$K398=\"\",\"\",'[2]FISCAL(M)'!$K398)","v":323.82535439631613},{"$f":"IF('[2]FISCAL(M)'!$L398=\"\",\"\",'[2]FISCAL(M)'!$L398)","v":"n.d."},{"$f":"IF('[2]FISCAL(M)'!$AY398=\"\",\"\",'[2]FISCAL(M)'!$AY398)","v":191235.87621411696},{"$f":"IF('[2]FISCAL(M)'!$BI398=\"\",\"\",'[2]FISCAL(M)'!$BI398)","v":99307.699956635654},{"$f":"IF('[2]FISCAL(M)'!$BS398=\"\",\"\",'[2]FISCAL(M)'!$BS398)","v":91928.176257481333},{"$f":"IF('[2]FISCAL(M)'!$AZ398=\"\",\"\",'[2]FISCAL(M)'!$AZ398)","v":234127.09621411696},{"$f":"IF('[2]FISCAL(M)'!$BJ398=\"\",\"\",'[2]FISCAL(M)'!$BJ398)","v":106961.42995663565},{"$f":"IF('[2]FISCAL(M)'!$BT398=\"\",\"\",'[2]FISCAL(M)'!$BT398)","v":127165.66625748132},{"$f":"IF('[3]MONE(M)'!$AO398=\"\",\"\",'[3]MONE(M)'!$AO398)","v":24267588.599598631},{"$f":"IF('[4]MONE(M)'!$AO398=\"\",\"\",'[4]MONE(M)'!$AO398)","v":15820.163677170003},{"$f":"IF('[5]MONE(M)'!$AO398=\"\",\"\",'[5]MONE(M)'!$AO398)","v":266303.88312582904},{"$f":"+'[1]MONE(M)'!$AO398","v":480367.53220450116},{"$f":"IF('[6]MONE(M)'!$AO398=\"\",\"\",'[6]MONE(M)'!$AO398)","v":133749.54740857761},{"$f":"IF('[7]MONE(M)'!$AO398=\"\",\"\",'[7]MONE(M)'!$AO398)","v":1561208.4590444677},{"$f":"IF('[8]MONE(M)'!$AO398=\"\",\"\",'[8]MONE(M)'!$AO398)","v":54188.803599119987},6.4147944413111446,7.7285725073892753,13.513473018668654,16.962518311636956,10.919647369404917,13.264566338735207,2.5111089461608005,{"$f":"'[2]FISCAL(M)'!$K398","v":323.82535439631613},{"$f":"+'[2]REAL(A)'!$AO$42","v":358127.2862337245},9.0421860283770195E-2,{"$f":"IF('[2]FISCAL(M)'!$L398=\"\",\"\",'[2]FISCAL(M)'!$L398)","v":"n.d."},{"$f":"+'[2]REAL(A)'!$AP$42","v":429212.35975017986},"n.d.",196038.76652253012,{"$f":"'[2]Gráfico REM'!BG392","v":49141.805745979043},{"$f":"'[2]Gráfico REM'!BH392","v":137447.80924371589},{"$f":"'[2]Gráfico REM'!BI392","v":9449.1515328351852},7.5281511522542921,5.1984165612369182,8.5266516445411398,5.5587664614320964,282353.28138374013,{"$f":"'[2]Gráfico REM'!BK392","v":53050.177526179046},{"$f":"'[2]Gráfico REM'!BL392","v":191636.61284283589},{"$f":"'[2]Gráfico REM'!BM392","v":37666.491014725179},7.6524310473460533,5.6799878850814167,6.7552212844762982,15.636707287410644]
[2022,"junio ","2022-junio ",{"$f":"IF('[2]REAL IPC(M)'!$AL399=\"\",\"\",+'[2]REAL IPC(M)'!$AL399)","v":8.9868990455865827},{"$f":"IF('[2]REAL IPC(M)'!$BE399=\"\",\"\",+'[2]REAL IPC(M)'!$BE399)","v":6.0744536557849838},{"$f":"IF('[2]REAL IPC(M)'!$AM399=\"\",\"\",+'[2]REAL IPC(M)'!$AM399)","v":8.466092901178035},{"$f":"IF('[2]REAL IPC(M)'!$BI399=\"\",\"\",+'[2]REAL IPC(M)'!$BI399)","v":5.5289723470236085},{"$f":"IF('[2]REAL IMAE(M)'!BJ399=\"\",\"\",'[2]REAL IMAE(M)'!BJ399)","v":4.0943607100315527},{"$f":"IF('[2]REAL IMAE(M)'!BK399=\"\",\"\",'[2]REAL IMAE(M)'!BK399)","v":4.7262888769147748},{"$f":"IF('[2]REAL IMAE(M)'!BN399=\"\",\"\",'[2]REAL IMAE(M)'!BN399)","v":4.7996072897511066},{"$f":"IF('[2]REAL IMAE(M)'!BO399=\"\",\"\",'[2]REAL IMAE(M)'!BO399)","v":5.8148761114604763},{"$f":"IF('[2]EXT RIN(M)'!$K399=\"\",\"\",'[2]EXT RIN(M)'!$K399)","v":56642.642334664604},null,{"$f":"IF('[2]EXT RIN(M)'!$L399=\"\",\"\",'[2]EXT RIN(M)'!$L399)","v":64830.460393224603},null,{"$f":"IF('[2]MONE(M)CARD'!EG399=\"\",\"\",'[2]MONE(M)CARD'!EG399)","v":56926.49425769021},{"$f":"IF('[2]MONE(M)CARD'!EK399=\"\",\"\",'[2]MONE(M)CARD'!EK399)","v":70675.228989490453},{"$f":"IF('[2]MONE(M)CARD'!EP399=\"\",\"\",'[2]MONE(M)CARD'!EP399)","v":43116.436742914899},{"$f":"IF('[2]MONE(M)CARD'!ES399=\"\",\"\",'[2]MONE(M)CARD'!ES399)","v":5.4526430191599085},{"$f":"IF('[2]MONE(M)CARD'!EV399=\"\",\"\",'[2]MONE(M)CARD'!EV399)","v":5.1122793950743928},{"$f":"IF('[2]MONE(M)CARD'!EZ399=\"\",\"\",'[2]MONE(M)CARD'!EZ399)","v":5.8325110472747577},{"$f":"IF('[2]MONE(M)CAPARD'!FC399=\"\",\"\",'[2]MONE(M)CAPARD'!FC399)","v":66448.6618458702},{"$f":"IF('[2]MONE(M)CAPARD'!FG399=\"\",\"\",'[2]MONE(M)CAPARD'!FG399)","v":99794.04045704045},{"$f":"IF('[2]MONE(M)CAPARD'!FL399=\"\",\"\",'[2]MONE(M)CAPARD'!FL399)","v":43116.436742914899},{"$f":"IF('[2]MONE(M)CAPARD'!FO399=\"\",\"\",'[2]MONE(M)CAPARD'!FO399)","v":4.7802146941647639},{"$f":"IF('[2]MONE(M)CAPARD'!FR399=\"\",\"\",'[2]MONE(M)CAPARD'!FR399)","v":5.1565047672792907},{"$f":"IF('[2]MONE(M)CAPARD'!FV399=\"\",\"\",'[2]MONE(M)CAPARD'!FV399)","v":5.7343449954300407},{"$f":"IF('[2]MONE(M)CARD'!FV399=\"\",\"\",'[2]MONE(M)CARD'!FV399)","v":2100.4348071795566},{"$f":"IF('[2]MONE(M)CARD'!GD399=\"\",\"\",'[2]MONE(M)CARD'!GD399)","v":205.76693598780034},{"$f":"IF('[2]MONE(M)CARD'!GE399=\"\",\"\",'[2]MONE(M)CARD'!GE399)","v":19671.83498725374},21.180424952666787,{"$f":"IF('[9]II.2.Balance OSD-Activos'!J257=\"\",\"\",'[9]II.2.Balance OSD-Activos'!J257)","v":274.60348022760769},{"$f":"IF('[9]II.2.Balance OSD-Activos'!N257=\"\",\"\",'[9]II.2.Balance OSD-Activos'!N257)","v":1879.2645330807636},{"$f":"IF('[9]II.2.Balance OSD-Activos'!R257=\"\",\"\",'[9]II.2.Balance OSD-Activos'!R257)","v":64017.198109396064},{"$f":"IF('[9]II.2.Balance OSD-Activos'!S257=\"\",\"\",'[9]II.2.Balance OSD-Activos'!S257)","v":69389.538683209976},64291.801589623668,135560.60480591439,-16.232911387086912,10.061184559387915,15.304040638272575,10.209577600310604,9.739462128100751,9.9654811244335626,0.40706953980793692,{"$f":"IF('[2]MONE(M)CAPARD'!GS399=\"\",\"\",'[2]MONE(M)CAPARD'!GS399)","v":37763.370297282461},{"$f":"IF('[2]MONE(M)CARD'!HA399=\"\",\"\",'[2]MONE(M)CAPARD'!HA399)","v":21417.466464563742},{"$f":"IF('[2]MONE(M)CAPARD'!HB399=\"\",\"\",'[2]MONE(M)CAPARD'!HB399)","v":16345.903832718719},"n.d.",{"$f":"IF('[10]II.2.Balance OSD-Activos'!J257=\"\",\"\",'[10]II.2.Balance OSD-Activos'!J257)","v":2916.6741664876076},{"$f":"IF('[10]II.2.Balance OSD-Activos'!N257=\"\",\"\",'[10]II.2.Balance OSD-Activos'!N257)","v":2708.0084904907635},{"$f":"IF('[10]II.2.Balance OSD-Activos'!R257=\"\",\"\",'[10]II.2.Balance OSD-Activos'!R257)","v":85867.163447256054},{"$f":"IF('[10]II.2.Balance OSD-Activos'!S257=\"\",\"\",'[10]II.2.Balance OSD-Activos'!S257)","v":97379.715870179978},88783.837613743657,188871.56197441439,2.5904792489781725,7.8541041093766584,11.224827882169052,8.0423965471821504,8.09347901892985,8.0243820246911568,0.56963819647404268,{"$f":"IF('[2]MONE(M)CAPARD'!AS399=\"\",\"\",'[2]MONE(M)CAPARD'!AS399)","v":5.5},{"$f":"IF('[2]MONE(M)CAPARD'!AT399=\"\",\"\",'[2]MONE(M)CAPARD'!AT399)","v":"n.a."},{"$f":"IF('[2]MONE(M)CAPARD'!AU399=\"\",\"\",'[2]MONE(M)CAPARD'!AU399)","v":2.25},{"$f":"IF('[2]MONE(M)CAPARD'!AV399=\"\",\"\",'[2]MONE(M)CAPARD'!AV399)","v":3},{"$f":"IF('[2]MONE(M)CAPARD'!AW399=\"\",\"\",'[2]MONE(M)CAPARD'!AW399)","v":5},{"$f":"IF('[2]MONE(M)CAPARD'!AX399=\"\",\"\",'[2]MONE(M)CAPARD'!AX399)","v":6.5},{"$f":"IF('[2]MONE(M)CAPARD'!AY399=\"\",\"\",'[2]MONE(M)CAPARD'!AY399)","v":"n.a."},{"$f":"IF('[2]FISCAL(M)'!$K399=\"\",\"\",'[2]FISCAL(M)'!$K399)","v":-451.20945975000791},{"$f":"IF('[2]FISCAL(M)'!$L399=\"\",\"\",'[2]FISCAL(M)'!$L399)","v":-3058.0094597500083},{"$f":"IF('[2]FISCAL(M)'!$AY399=\"\",\"\",'[2]FISCAL(M)'!$AY399)","v":191594.30356138595},{"$f":"IF('[2]FISCAL(M)'!$BI399=\"\",\"\",'[2]FISCAL(M)'!$BI399)","v":100430.6035615911},{"$f":"IF('[2]FISCAL(M)'!$BS399=\"\",\"\",'[2]FISCAL(M)'!$BS399)","v":91163.699999794888},{"$f":"IF('[2]FISCAL(M)'!$AZ399=\"\",\"\",'[2]FISCAL(M)'!$AZ399)","v":234769.61356138598},{"$f":"IF('[2]FISCAL(M)'!$BJ399=\"\",\"\",'[2]FISCAL(M)'!$BJ399)","v":108086.33356159109},{"$f":"IF('[2]FISCAL(M)'!$BT399=\"\",\"\",'[2]FISCAL(M)'!$BT399)","v":126683.27999979489},{"$f":"IF('[3]MONE(M)'!$AO399=\"\",\"\",'[3]MONE(M)'!$AO399)","v":24451795.503411978},{"$f":"IF('[4]MONE(M)'!$AO399=\"\",\"\",'[4]MONE(M)'!$AO399)","v":16094.873128840001},{"$f":"IF('[5]MONE(M)'!$AO399=\"\",\"\",'[5]MONE(M)'!$AO399)","v":269982.91591540654},{"$f":"+'[1]MONE(M)'!$AO399","v":483547.88294242846},{"$f":"IF('[6]MONE(M)'!$AO399=\"\",\"\",'[6]MONE(M)'!$AO399)","v":135113.23569006156},{"$f":"IF('[7]MONE(M)'!$AO399=\"\",\"\",'[7]MONE(M)'!$AO399)","v":1588906.7809797477},{"$f":"IF('[8]MONE(M)'!$AO399=\"\",\"\",'[8]MONE(M)'!$AO399)","v":54531.657472409999},7.4143217604868417,8.8942080467159244,14.236184421266863,17.365445629457653,10.691639138999687,15.130524589302086,3.1690649081293598,{"$f":"'[2]FISCAL(M)'!$K399","v":-451.20945975000791},{"$f":"+'[2]REAL(A)'!$AO$42","v":358127.2862337245},-0.12599136594566412,{"$f":"IF('[2]FISCAL(M)'!$L399=\"\",\"\",'[2]FISCAL(M)'!$L399)","v":-3058.0094597500083},{"$f":"+'[2]REAL(A)'!$AP$42","v":429212.35975017986},-0.71247003733301195,198545.06306190399,{"$f":"'[2]Gráfico REM'!BG393","v":49640.390182075927},{"$f":"'[2]Gráfico REM'!BH393","v":138861.80333999367},{"$f":"'[2]Gráfico REM'!BI393","v":10042.869539834395},8.1326062186019232,5.7101146613163012,9.4260968681955113,2.9666406949424129,285780.07696574397,{"$f":"'[2]Gráfico REM'!BK393","v":53517.343887455922},{"$f":"'[2]Gráfico REM'!BL393","v":193393.46081240367},{"$f":"'[2]Gráfico REM'!BM393","v":38869.2722658844},8.5426584393933034,5.8986482941124851,7.5862463172477801,17.802797451235786]
[2022,"julio","2022-julio",{"$f":"IF('[2]REAL IPC(M)'!$AL400=\"\",\"\",+'[2]REAL IPC(M)'!$AL400)","v":9.5007385524372268},{"$f":"IF('[2]REAL IPC(M)'!$BE400=\"\",\"\",+'[2]REAL IPC(M)'!$BE400)","v":6.1027628484699115},{"$f":"IF('[2]REAL IPC(M)'!$AM400=\"\",\"\",+'[2]REAL IPC(M)'!$AM400)","v":8.6729108380975575},{"$f":"IF('[2]REAL IPC(M)'!$BI400=\"\",\"\",+'[2]REAL IPC(M)'!$BI400)","v":5.5595213146333977},{"$f":"IF('[2]REAL IMAE(M)'!BJ400=\"\",\"\",'[2]REAL IMAE(M)'!BJ400)","v":4.0162774352562325},{"$f":"IF('[2]REAL IMAE(M)'!BK400=\"\",\"\",'[2]REAL IMAE(M)'!BK400)","v":4.7272170172946826},{"$f":"IF('[2]REAL IMAE(M)'!BN400=\"\",\"\",'[2]REAL IMAE(M)'!BN400)","v":4.5743926222355791},{"$f":"IF('[2]REAL IMAE(M)'!BO400=\"\",\"\",'[2]REAL IMAE(M)'!BO400)","v":5.8451990574128088},{"$f":"IF('[2]EXT RIN(M)'!$K400=\"\",\"\",'[2]EXT RIN(M)'!$K400)","v":57409.260073607104},null,{"$f":"IF('[2]EXT RIN(M)'!$L400=\"\",\"\",'[2]EXT RIN(M)'!$L400)","v":64696.554106887103},null,{"$f":"IF('[2]MONE(M)CARD'!EG400=\"\",\"\",'[2]MONE(M)CARD'!EG400)","v":57773.359541831451},{"$f":"IF('[2]MONE(M)CARD'!EK400=\"\",\"\",'[2]MONE(M)CARD'!EK400)","v":71664.833539635787},{"$f":"IF('[2]MONE(M)CARD'!EP400=\"\",\"\",'[2]MONE(M)CARD'!EP400)","v":42897.02565251838},{"$f":"IF('[2]MONE(M)CARD'!ES400=\"\",\"\",'[2]MONE(M)CARD'!ES400)","v":5.534065242158559},{"$f":"IF('[2]MONE(M)CARD'!EV400=\"\",\"\",'[2]MONE(M)CARD'!EV400)","v":6.0198339527385958},{"$f":"IF('[2]MONE(M)CARD'!EZ400=\"\",\"\",'[2]MONE(M)CARD'!EZ400)","v":6.1526796959537666},{"$f":"IF('[2]MONE(M)CAPARD'!FC400=\"\",\"\",'[2]MONE(M)CAPARD'!FC400)","v":66794.591592661454},{"$f":"IF('[2]MONE(M)CAPARD'!FG400=\"\",\"\",'[2]MONE(M)CAPARD'!FG400)","v":100836.01047469577},{"$f":"IF('[2]MONE(M)CAPARD'!FL400=\"\",\"\",'[2]MONE(M)CAPARD'!FL400)","v":42897.02565251838},{"$f":"IF('[2]MONE(M)CAPARD'!FO400=\"\",\"\",'[2]MONE(M)CAPARD'!FO400)","v":4.4457775200245742},{"$f":"IF('[2]MONE(M)CAPARD'!FR400=\"\",\"\",'[2]MONE(M)CAPARD'!FR400)","v":5.6344063557356883},{"$f":"IF('[2]MONE(M)CAPARD'!FV400=\"\",\"\",'[2]MONE(M)CAPARD'!FV400)","v":5.8208052382599407},{"$f":"IF('[2]MONE(M)CARD'!FV400=\"\",\"\",'[2]MONE(M)CARD'!FV400)","v":2252.4082792261429},{"$f":"IF('[2]MONE(M)CARD'!GD400=\"\",\"\",'[2]MONE(M)CARD'!GD400)","v":178.21838344314861},{"$f":"IF('[2]MONE(M)CARD'!GE400=\"\",\"\",'[2]MONE(M)CARD'!GE400)","v":19732.764346454442},19.204398520183695,{"$f":"IF('[9]II.2.Balance OSD-Activos'!J258=\"\",\"\",'[9]II.2.Balance OSD-Activos'!J258)","v":266.0775519009398},{"$f":"IF('[9]II.2.Balance OSD-Activos'!N258=\"\",\"\",'[9]II.2.Balance OSD-Activos'!N258)","v":1774.0704792463166},{"$f":"IF('[9]II.2.Balance OSD-Activos'!R258=\"\",\"\",'[9]II.2.Balance OSD-Activos'!R258)","v":65052.972648073286},{"$f":"IF('[9]II.2.Balance OSD-Activos'!S258=\"\",\"\",'[9]II.2.Balance OSD-Activos'!S258)","v":70458.075495519472},65319.050199974226,137551.19617474003,-15.518757282356276,11.345967583967443,16.60104171346881,11.490979243491406,10.748493863697339,11.1035234297717,1.1380423053381374,{"$f":"IF('[2]MONE(M)CAPARD'!GS400=\"\",\"\",'[2]MONE(M)CAPARD'!GS400)","v":38168.73168809402},{"$f":"IF('[2]MONE(M)CARD'!HA400=\"\",\"\",'[2]MONE(M)CAPARD'!HA400)","v":21493.832413214441},{"$f":"IF('[2]MONE(M)CAPARD'!HB400=\"\",\"\",'[2]MONE(M)CAPARD'!HB400)","v":16674.899274879579},"n.d.",{"$f":"IF('[10]II.2.Balance OSD-Activos'!J258=\"\",\"\",'[10]II.2.Balance OSD-Activos'!J258)","v":3015.3306256509395},{"$f":"IF('[10]II.2.Balance OSD-Activos'!N258=\"\",\"\",'[10]II.2.Balance OSD-Activos'!N258)","v":2568.3259083663165},{"$f":"IF('[10]II.2.Balance OSD-Activos'!R258=\"\",\"\",'[10]II.2.Balance OSD-Activos'!R258)","v":87110.23760146329},{"$f":"IF('[10]II.2.Balance OSD-Activos'!S258=\"\",\"\",'[10]II.2.Balance OSD-Activos'!S258)","v":98501.68899102947},{"$f":"IFERROR(+AW393+AY393,\"\")","v":90125.568227114229},191195.58312651003,7.407483568734019,8.9931243627831225,13.501415867297894,9.0488502639262336,8.7576065094207465,8.9297168546423222,0.90533482995116543,{"$f":"IF('[2]MONE(M)CAPARD'!AS400=\"\",\"\",'[2]MONE(M)CAPARD'!AS400)","v":7.5},{"$f":"IF('[2]MONE(M)CAPARD'!AT400=\"\",\"\",'[2]MONE(M)CAPARD'!AT400)","v":"n.a."},{"$f":"IF('[2]MONE(M)CAPARD'!AU400=\"\",\"\",'[2]MONE(M)CAPARD'!AU400)","v":2.25},{"$f":"IF('[2]MONE(M)CAPARD'!AV400=\"\",\"\",'[2]MONE(M)CAPARD'!AV400)","v":3},{"$f":"IF('[2]MONE(M)CAPARD'!AW400=\"\",\"\",'[2]MONE(M)CAPARD'!AW400)","v":5},{"$f":"IF('[2]MONE(M)CAPARD'!AX400=\"\",\"\",'[2]MONE(M)CAPARD'!AX400)","v":7.25},{"$f":"IF('[2]MONE(M)CAPARD'!AY400=\"\",\"\",'[2]MONE(M)CAPARD'!AY400)","v":"n.a."},{"$f":"IF('[2]FISCAL(M)'!$K400=\"\",\"\",'[2]FISCAL(M)'!$K400)","v":-1186.0480494189544},{"$f":"IF('[2]FISCAL(M)'!$L400=\"\",\"\",'[2]FISCAL(M)'!$L400)","v":"n.d."},{"$f":"IF('[2]FISCAL(M)'!$AY400=\"\",\"\",'[2]FISCAL(M)'!$AY400)","v":193782.89934572362},{"$f":"IF('[2]FISCAL(M)'!$BI400=\"\",\"\",'[2]FISCAL(M)'!$BI400)","v":101822.02216706652},{"$f":"IF('[2]FISCAL(M)'!$BS400=\"\",\"\",'[2]FISCAL(M)'!$BS400)","v":91960.877178657145},{"$f":"IF('[2]FISCAL(M)'!$AZ400=\"\",\"\",'[2]FISCAL(M)'!$AZ400)","v":236722.13934572361},{"$f":"IF('[2]FISCAL(M)'!$BJ400=\"\",\"\",'[2]FISCAL(M)'!$BJ400)","v":109285.13216706651},{"$f":"IF('[2]FISCAL(M)'!$BT400=\"\",\"\",'[2]FISCAL(M)'!$BT400)","v":127437.00717865715},{"$f":"IF('[3]MONE(M)'!$AO400=\"\",\"\",'[3]MONE(M)'!$AO400)","v":24263456.358035006},{"$f":"IF('[4]MONE(M)'!$AO400=\"\",\"\",'[4]MONE(M)'!$AO400)","v":16263.68907529},{"$f":"IF('[5]MONE(M)'!$AO400=\"\",\"\",'[5]MONE(M)'!$AO400)","v":272801.82291810599},{"$f":"+'[1]MONE(M)'!$AO400","v":489260.72053610726},{"$f":"IF('[6]MONE(M)'!$AO400=\"\",\"\",'[6]MONE(M)'!$AO400)","v":136142.01549293799},{"$f":"IF('[7]MONE(M)'!$AO400=\"\",\"\",'[7]MONE(M)'!$AO400)","v":1609022.8891447596},{"$f":"IF('[8]MONE(M)'!$AO400=\"\",\"\",'[8]MONE(M)'!$AO400)","v":54930.853097040002},6.60035704554367,9.4715147909461006,14.292797610625163,18.371869910872164,11.18444998728647,15.283668949309192,3.5333394706925203,{"$f":"'[2]FISCAL(M)'!$K400","v":-1186.0480494189544},{"$f":"+'[2]REAL(A)'!$AO$42","v":358127.2862337245},-0.33118058718511167,{"$f":"IF('[2]FISCAL(M)'!$L400=\"\",\"\",'[2]FISCAL(M)'!$L400)","v":"n.d."},{"$f":"+'[2]REAL(A)'!$AP$42","v":429212.35975017986},"n.d.",{"$f":"+IF(OR(CT393=\"\",+CU393=\"\",+CV393=\"\"),\"\",(CT393+CU393+CV393))","v":201232.87501787246},{"$f":"'[2]Gráfico REM'!BG394","v":50398.090023366931},{"$f":"'[2]Gráfico REM'!BH394","v":140873.49973844748},{"$f":"'[2]Gráfico REM'!BI394","v":9961.2852560580377},{"$f":"IFERROR(+((CS393/CS381)-1)*100,\"\")","v":9.3619652356738534},6.9350469617974086,10.411066277491908,7.2648562490736701,{"$f":"+IF(OR(DB393=\"\",+DC393=\"\",+DD393=\"\"),\"\",(DB393+DC393+DD393))","v":289069.05515488243},{"$f":"'[2]Gráfico REM'!BK394","v":54204.722305816933},{"$f":"'[2]Gráfico REM'!BL394","v":195804.35283548749},{"$f":"'[2]Gráfico REM'!BM394","v":39059.980013578046},{"$f":"IFERROR(+((DA393/DA381)-1)*100,\"\")","v":9.4658483322220164},6.7144653316259184,8.3910625358935,19.698452976064583]
[2022,"agosto","2022-agosto",{"$f":"IF('[2]REAL IPC(M)'!$AL401=\"\",\"\",+'[2]REAL IPC(M)'!$AL401)","v":9.5650126552475179},{"$f":"IF('[2]REAL IPC(M)'!$BE401=\"\",\"\",+'[2]REAL IPC(M)'!$BE401)","v":6.1211234419958016},{"$f":"IF('[2]REAL IPC(M)'!$AM401=\"\",\"\",+'[2]REAL IPC(M)'!$AM401)","v":8.5232783705140758},{"$f":"IF('[2]REAL IPC(M)'!$BI401=\"\",\"\",+'[2]REAL IPC(M)'!$BI401)","v":5.5799123185575228},{"$f":"IF('[2]REAL IMAE(M)'!BJ401=\"\",\"\",'[2]REAL IMAE(M)'!BJ401)","v":3.9887150305322638},{"$f":"IF('[2]REAL IMAE(M)'!BK401=\"\",\"\",'[2]REAL IMAE(M)'!BK401)","v":4.7219689039808665},{"$f":"IF('[2]REAL IMAE(M)'!BN401=\"\",\"\",'[2]REAL IMAE(M)'!BN401)","v":5.2038751115967896},{"$f":"IF('[2]REAL IMAE(M)'!BO401=\"\",\"\",'[2]REAL IMAE(M)'!BO401)","v":5.8652767913739412},{"$f":"IF('[2]EXT RIN(M)'!$K401=\"\",\"\",'[2]EXT RIN(M)'!$K401)","v":58632.546636571613},null,{"$f":"IF('[2]EXT RIN(M)'!$L401=\"\",\"\",'[2]EXT RIN(M)'!$L401)","v":65124.523052541612},null,{"$f":"IF('[2]MONE(M)CARD'!EG401=\"\",\"\",'[2]MONE(M)CARD'!EG401)","v":58438.649250496746},{"$f":"IF('[2]MONE(M)CARD'!EK401=\"\",\"\",'[2]MONE(M)CARD'!EK401)","v":72596.921542008626},{"$f":"IF('[2]MONE(M)CARD'!EP401=\"\",\"\",'[2]MONE(M)CARD'!EP401)","v":43240.70352495875},{"$f":"IF('[2]MONE(M)CARD'!ES401=\"\",\"\",'[2]MONE(M)CARD'!ES401)","v":6.9600382231575386},{"$f":"IF('[2]MONE(M)CARD'!EV401=\"\",\"\",'[2]MONE(M)CARD'!EV401)","v":7.0460548709470272},{"$f":"IF('[2]MONE(M)CARD'!EZ401=\"\",\"\",'[2]MONE(M)CARD'!EZ401)","v":6.7937469134432549},{"$f":"IF('[2]MONE(M)CAPARD'!FC401=\"\",\"\",'[2]MONE(M)CAPARD'!FC401)","v":67386.216419866745},{"$f":"IF('[2]MONE(M)CAPARD'!FG401=\"\",\"\",'[2]MONE(M)CAPARD'!FG401)","v":101817.76940750863},{"$f":"IF('[2]MONE(M)CAPARD'!FL401=\"\",\"\",'[2]MONE(M)CAPARD'!FL401)","v":43240.70352495875},{"$f":"IF('[2]MONE(M)CAPARD'!FO401=\"\",\"\",'[2]MONE(M)CAPARD'!FO401)","v":5.4804832936124814},{"$f":"IF('[2]MONE(M)CAPARD'!FR401=\"\",\"\",'[2]MONE(M)CAPARD'!FR401)","v":6.0429724629101678},{"$f":"IF('[2]MONE(M)CAPARD'!FV401=\"\",\"\",'[2]MONE(M)CAPARD'!FV401)","v":6.0416287075806485},{"$f":"IF('[2]MONE(M)CARD'!FV401=\"\",\"\",'[2]MONE(M)CARD'!FV401)","v":2301.3378022421302},{"$f":"IF('[2]MONE(M)CARD'!GD401=\"\",\"\",'[2]MONE(M)CARD'!GD401)","v":172.82175010590697},{"$f":"IF('[2]MONE(M)CARD'!GE401=\"\",\"\",'[2]MONE(M)CARD'!GE401)","v":19637.093349481649},14.618242513557323,{"$f":"IF('[9]II.2.Balance OSD-Activos'!J259=\"\",\"\",'[9]II.2.Balance OSD-Activos'!J259)","v":277.14172064346792},{"$f":"IF('[9]II.2.Balance OSD-Activos'!N259=\"\",\"\",'[9]II.2.Balance OSD-Activos'!N259)","v":1751.8031485008946},{"$f":"IF('[9]II.2.Balance OSD-Activos'!R259=\"\",\"\",'[9]II.2.Balance OSD-Activos'!R259)","v":65987.068475696578},{"$f":"IF('[9]II.2.Balance OSD-Activos'!S259=\"\",\"\",'[9]II.2.Balance OSD-Activos'!S259)","v":72206.534719561707},66264.210196340049,140222.54806440265,-16.894354910322729,12.495689515458608,30.053304397700288,12.663027374655567,12.944327001865364,12.917102045776897,1.8135786160051968,{"$f":"IF('[2]MONE(M)CAPARD'!GS401=\"\",\"\",'[2]MONE(M)CAPARD'!GS401)","v":38836.540168401014},{"$f":"IF('[2]MONE(M)CARD'!HA401=\"\",\"\",'[2]MONE(M)CAPARD'!HA401)","v":21879.604677451651},{"$f":"IF('[2]MONE(M)CAPARD'!HB401=\"\",\"\",'[2]MONE(M)CAPARD'!HB401)","v":16956.935490949363},"n.d.",{"$f":"IF('[10]II.2.Balance OSD-Activos'!J259=\"\",\"\",'[10]II.2.Balance OSD-Activos'!J259)","v":3027.9638293534681},{"$f":"IF('[10]II.2.Balance OSD-Activos'!N259=\"\",\"\",'[10]II.2.Balance OSD-Activos'!N259)","v":2557.8124591508949},{"$f":"IF('[10]II.2.Balance OSD-Activos'!R259=\"\",\"\",'[10]II.2.Balance OSD-Activos'!R259)","v":88170.167402246589},{"$f":"IF('[10]II.2.Balance OSD-Activos'!S259=\"\",\"\",'[10]II.2.Balance OSD-Activos'!S259)","v":100317.4276322917},91198.131231600055,194073.37132304267,7.4811519989964603,10.07180037676414,20.032370165987533,10.162989047999126,10.198545382933677,10.257937191929889,1.3282203372875667,{"$f":"IF('[2]MONE(M)CAPARD'!AS401=\"\",\"\",'[2]MONE(M)CAPARD'!AS401)","v":7.5},{"$f":"IF('[2]MONE(M)CAPARD'!AT401=\"\",\"\",'[2]MONE(M)CAPARD'!AT401)","v":"n.a."},{"$f":"IF('[2]MONE(M)CAPARD'!AU401=\"\",\"\",'[2]MONE(M)CAPARD'!AU401)","v":2.75},{"$f":"IF('[2]MONE(M)CAPARD'!AV401=\"\",\"\",'[2]MONE(M)CAPARD'!AV401)","v":3},{"$f":"IF('[2]MONE(M)CAPARD'!AW401=\"\",\"\",'[2]MONE(M)CAPARD'!AW401)","v":5.5},{"$f":"IF('[2]MONE(M)CAPARD'!AX401=\"\",\"\",'[2]MONE(M)CAPARD'!AX401)","v":7.75},{"$f":"IF('[2]MONE(M)CAPARD'!AY401=\"\",\"\",'[2]MONE(M)CAPARD'!AY401)","v":"n.a."},{"$f":"IF('[2]FISCAL(M)'!$K401=\"\",\"\",'[2]FISCAL(M)'!$K401)","v":-1968.0348091301839},{"$f":"IF('[2]FISCAL(M)'!$L401=\"\",\"\",'[2]FISCAL(M)'!$L401)","v":"n.d."},{"$f":"IF('[2]FISCAL(M)'!$AY401=\"\",\"\",'[2]FISCAL(M)'!$AY401)","v":196611.08183989851},{"$f":"IF('[2]FISCAL(M)'!$BI401=\"\",\"\",'[2]FISCAL(M)'!$BI401)","v":104229.38480147772},{"$f":"IF('[2]FISCAL(M)'!$BS401=\"\",\"\",'[2]FISCAL(M)'!$BS401)","v":92381.697038420796},{"$f":"IF('[2]FISCAL(M)'!$AZ401=\"\",\"\",'[2]FISCAL(M)'!$AZ401)","v":239694.90183989852},{"$f":"IF('[2]FISCAL(M)'!$BJ401=\"\",\"\",'[2]FISCAL(M)'!$BJ401)","v":111638.3948014777},{"$f":"IF('[2]FISCAL(M)'!$BT401=\"\",\"\",'[2]FISCAL(M)'!$BT401)","v":128056.50703842079},{"$f":"IF('[3]MONE(M)'!$AO401=\"\",\"\",'[3]MONE(M)'!$AO401)","v":24110266.345898896},{"$f":"IF('[4]MONE(M)'!$AO401=\"\",\"\",'[4]MONE(M)'!$AO401)","v":16337.672073079999},{"$f":"IF('[5]MONE(M)'!$AO401=\"\",\"\",'[5]MONE(M)'!$AO401)","v":274946.67252528417},{"$f":"+'[1]MONE(M)'!$AO401","v":496312.81985643297},{"$f":"IF('[6]MONE(M)'!$AO401=\"\",\"\",'[6]MONE(M)'!$AO401)","v":138044.80979330995},{"$f":"IF('[7]MONE(M)'!$AO401=\"\",\"\",'[7]MONE(M)'!$AO401)","v":1629753.5312364795},{"$f":"IF('[8]MONE(M)'!$AO401=\"\",\"\",'[8]MONE(M)'!$AO401)","v":55112.590303370001},5.6074365809769544,9.3960734814991564,14.720805236899581,18.930518525494989,12.959921474265347,15.895228945805972,3.6546363576749119,{"$f":"'[2]FISCAL(M)'!$K401","v":-1968.0348091301839},{"$f":"+'[2]REAL(A)'!$AO$42","v":358127.2862337245},-0.54953500746262207,{"$f":"IF('[2]FISCAL(M)'!$L401=\"\",\"\",'[2]FISCAL(M)'!$L401)","v":"n.d."},{"$f":"+'[2]REAL(A)'!$AP$42","v":429212.35975017986},"n.d.",205350.19015358377,{"$f":"'[2]Gráfico REM'!BG395","v":51392.409415447},{"$f":"'[2]Gráfico REM'!BH395","v":143668.15759055177},{"$f":"'[2]Gráfico REM'!BI395","v":10289.623147585007},10.970053116406064,7.2724710648418123,12.170387806522132,13.55302418373212,293959.4832455538,{"$f":"'[2]Gráfico REM'!BK395","v":55214.141560967},{"$f":"'[2]Gráfico REM'!BL395","v":198780.74789392177},{"$f":"'[2]Gráfico REM'!BM395","v":39964.593790665007},10.713489568952106,7.1297303323470507,9.6723000013347882,22.124543183324551]
[2022,"septiembre","2022-septiembre",{"$f":"IF('[2]REAL IPC(M)'!$AL402=\"\",\"\",+'[2]REAL IPC(M)'!$AL402)","v":9.2055115801817458},{"$f":"IF('[2]REAL IPC(M)'!$BE402=\"\",\"\",+'[2]REAL IPC(M)'!$BE402)","v":6.1296336869042234},{"$f":"IF('[2]REAL IPC(M)'!$AM402=\"\",\"\",+'[2]REAL IPC(M)'!$AM402)","v":8.197414522169888},{"$f":"IF('[2]REAL IPC(M)'!$BI402=\"\",\"\",+'[2]REAL IPC(M)'!$BI402)","v":5.5903085817927023},{"$f":"IF('[2]REAL IMAE(M)'!BJ402=\"\",\"\",'[2]REAL IMAE(M)'!BJ402)","v":3.7998431986458359},{"$f":"IF('[2]REAL IMAE(M)'!BK402=\"\",\"\",'[2]REAL IMAE(M)'!BK402)","v":4.7116078250016624},{"$f":"IF('[2]REAL IMAE(M)'!BN402=\"\",\"\",'[2]REAL IMAE(M)'!BN402)","v":5.6055354083302422},{"$f":"IF('[2]REAL IMAE(M)'!BO402=\"\",\"\",'[2]REAL IMAE(M)'!BO402)","v":5.8765747494322396},{"$f":"IF('[2]EXT RIN(M)'!$K402=\"\",\"\",'[2]EXT RIN(M)'!$K402)","v":57136.035197073579},null,{"$f":"IF('[2]EXT RIN(M)'!$L402=\"\",\"\",'[2]EXT RIN(M)'!$L402)","v":62919.409671723581},null,{"$f":"IF('[2]MONE(M)CARD'!EG402=\"\",\"\",'[2]MONE(M)CARD'!EG402)","v":58272.996864703899},{"$f":"IF('[2]MONE(M)CARD'!EK402=\"\",\"\",'[2]MONE(M)CARD'!EK402)","v":72761.528549087641},{"$f":"IF('[2]MONE(M)CARD'!EP402=\"\",\"\",'[2]MONE(M)CARD'!EP402)","v":42340.906502141181},{"$f":"IF('[2]MONE(M)CARD'!ES402=\"\",\"\",'[2]MONE(M)CARD'!ES402)","v":5.8116621622905429},{"$f":"IF('[2]MONE(M)CARD'!EV402=\"\",\"\",'[2]MONE(M)CARD'!EV402)","v":6.6343587682348382},{"$f":"IF('[2]MONE(M)CARD'!EZ402=\"\",\"\",'[2]MONE(M)CARD'!EZ402)","v":5.8490973449890404},{"$f":"IF('[2]MONE(M)CAPARD'!FC402=\"\",\"\",'[2]MONE(M)CAPARD'!FC402)","v":67016.69411752389},{"$f":"IF('[2]MONE(M)CAPARD'!FG402=\"\",\"\",'[2]MONE(M)CAPARD'!FG402)","v":101558.58719297765},{"$f":"IF('[2]MONE(M)CAPARD'!FL402=\"\",\"\",'[2]MONE(M)CAPARD'!FL402)","v":42340.906502141181},{"$f":"IF('[2]MONE(M)CAPARD'!FO402=\"\",\"\",'[2]MONE(M)CAPARD'!FO402)","v":4.1656757149516555},{"$f":"IF('[2]MONE(M)CAPARD'!FR402=\"\",\"\",'[2]MONE(M)CAPARD'!FR402)","v":5.2565245692049567},{"$f":"IF('[2]MONE(M)CAPARD'!FV402=\"\",\"\",'[2]MONE(M)CAPARD'!FV402)","v":4.8971922832643067},{"$f":"IF('[2]MONE(M)CARD'!FV402=\"\",\"\",'[2]MONE(M)CARD'!FV402)","v":2274.7496845215001},{"$f":"IF('[2]MONE(M)CARD'!GD402=\"\",\"\",'[2]MONE(M)CARD'!GD402)","v":195.91076472943692},{"$f":"IF('[2]MONE(M)CARD'!GE402=\"\",\"\",'[2]MONE(M)CARD'!GE402)","v":20749.492381254924},{"$f":"IF(AD395=\"\",\"\",((AD395/AD382)-1)*100)","v":22.543061710925993},{"$f":"IF('[9]II.2.Balance OSD-Activos'!J260=\"\",\"\",'[9]II.2.Balance OSD-Activos'!J260)","v":279.6738175767403},{"$f":"IF('[9]II.2.Balance OSD-Activos'!N260=\"\",\"\",'[9]II.2.Balance OSD-Activos'!N260)","v":1811.801405294982},{"$f":"IF('[9]II.2.Balance OSD-Activos'!R260=\"\",\"\",'[9]II.2.Balance OSD-Activos'!R260)","v":66415.694899990223},{"$f":"IF('[9]II.2.Balance OSD-Activos'!S260=\"\",\"\",'[9]II.2.Balance OSD-Activos'!S260)","v":73094.141569804575},66695.368717566962,141601.31169266652,-15.178885277068034,13.0067356767535,27.516440336590509,13.165085351778583,13.198123174789389,13.270504566245144,0.35340252046824716,{"$f":"IF('[2]MONE(M)CAPARD'!GS402=\"\",\"\",'[2]MONE(M)CAPARD'!GS402)","v":38905.95753323628},{"$f":"IF('[2]MONE(M)CARD'!HA402=\"\",\"\",'[2]MONE(M)CAPARD'!HA402)","v":23011.865334054924},{"$f":"IF('[2]MONE(M)CAPARD'!HB402=\"\",\"\",'[2]MONE(M)CAPARD'!HB402)","v":15894.092199181356},"n.d.",{"$f":"IF('[10]II.2.Balance OSD-Activos'!J260=\"\",\"\",'[10]II.2.Balance OSD-Activos'!J260)","v":2967.4327096667412},{"$f":"IF('[10]II.2.Balance OSD-Activos'!N260=\"\",\"\",'[10]II.2.Balance OSD-Activos'!N260)","v":2644.0857073949819},{"$f":"IF('[10]II.2.Balance OSD-Activos'!R260=\"\",\"\",'[10]II.2.Balance OSD-Activos'!R260)","v":88820.726700090236},{"$f":"IF('[10]II.2.Balance OSD-Activos'!S260=\"\",\"\",'[10]II.2.Balance OSD-Activos'!S260)","v":101319.53238803458},91788.159409756976,195751.77750518656,7.2922783538007518,10.586514729669672,20.817990343701688,10.700068285172781,10.375249500121274,10.603455395141982,0.3455182032120927,{"$f":"IF('[2]MONE(M)CAPARD'!AS402=\"\",\"\",'[2]MONE(M)CAPARD'!AS402)","v":8.5},{"$f":"IF('[2]MONE(M)CAPARD'!AT402=\"\",\"\",'[2]MONE(M)CAPARD'!AT402)","v":"n.a."},{"$f":"IF('[2]MONE(M)CAPARD'!AU402=\"\",\"\",'[2]MONE(M)CAPARD'!AU402)","v":3},{"$f":"IF('[2]MONE(M)CAPARD'!AV402=\"\",\"\",'[2]MONE(M)CAPARD'!AV402)","v":3},{"$f":"IF('[2]MONE(M)CAPARD'!AW402=\"\",\"\",'[2]MONE(M)CAPARD'!AW402)","v":6},{"$f":"IF('[2]MONE(M)CAPARD'!AX402=\"\",\"\",'[2]MONE(M)CAPARD'!AX402)","v":8},{"$f":"IF('[2]MONE(M)CAPARD'!AY402=\"\",\"\",'[2]MONE(M)CAPARD'!AY402)","v":"n.a."},{"$f":"IF('[2]FISCAL(M)'!$K402=\"\",\"\",'[2]FISCAL(M)'!$K402)","v":-2449.3646181770391},{"$f":"IF('[2]FISCAL(M)'!$L402=\"\",\"\",'[2]FISCAL(M)'!$L402)","v":-6453.5646181770389},{"$f":"IF('[2]FISCAL(M)'!$AY402=\"\",\"\",'[2]FISCAL(M)'!$AY402)","v":196150.99270906812},{"$f":"IF('[2]FISCAL(M)'!$BI402=\"\",\"\",'[2]FISCAL(M)'!$BI402)","v":104441.69742752613},{"$f":"IF('[2]FISCAL(M)'!$BS402=\"\",\"\",'[2]FISCAL(M)'!$BS402)","v":91709.29528154197},{"$f":"IF('[2]FISCAL(M)'!$AZ402=\"\",\"\",'[2]FISCAL(M)'!$AZ402)","v":239670.28270906809},{"$f":"IF('[2]FISCAL(M)'!$BJ402=\"\",\"\",'[2]FISCAL(M)'!$BJ402)","v":112354.39742752614},{"$f":"IF('[2]FISCAL(M)'!$BT402=\"\",\"\",'[2]FISCAL(M)'!$BT402)","v":127315.88528154197},{"$f":"IF('[3]MONE(M)'!$AO402=\"\",\"\",'[3]MONE(M)'!$AO402)","v":23961102.553102724},{"$f":"IF('[4]MONE(M)'!$AO402=\"\",\"\",'[4]MONE(M)'!$AO402)","v":16443.35223511},{"$f":"IF('[5]MONE(M)'!$AO402=\"\",\"\",'[5]MONE(M)'!$AO402)","v":279041.26314734604},{"$f":"+'[1]MONE(M)'!$AO402","v":503012.69781527662},{"$f":"IF('[6]MONE(M)'!$AO402=\"\",\"\",'[6]MONE(M)'!$AO402)","v":140324.54548874815},{"$f":"IF('[7]MONE(M)'!$AO402=\"\",\"\",'[7]MONE(M)'!$AO402)","v":1651720.3821801995},{"$f":"IF('[8]MONE(M)'!$AO402=\"\",\"\",'[8]MONE(M)'!$AO402)","v":55284.395335060006},{"$f":"IF(BY395=\"\",\"\",((BY395/BY383)-1)*100)","v":4.6665005579953567},9.4198681417274379,15.756902400226625,18.640574843539138,14.602582918961948,16.580961237644743,3.837797097530693,{"$f":"'[2]FISCAL(M)'!$K402","v":-2449.3646181770391},{"$f":"+'[2]REAL(A)'!$AO$42","v":358127.2862337245},-0.68393688845549483,{"$f":"IF('[2]FISCAL(M)'!$L402=\"\",\"\",'[2]FISCAL(M)'!$L402)","v":-6453.5646181770389},{"$f":"+'[2]REAL(A)'!$AP$42","v":429212.35975017986},{"$f":"IF(OR(CP395=\"n.d.\",CP395=\"\",CQ395=\"\",CQ395=\"n.d.\"),\"n.d.\",(CP395/CQ395)*100)","v":-1.5035831265281578},205828.46818209984,{"$f":"'[2]Gráfico REM'!BG396","v":50365.362031768927},{"$f":"'[2]Gráfico REM'!BH396","v":144981.27599252586},{"$f":"'[2]Gráfico REM'!BI396","v":10481.83015780505},10.282892417118173,2.7624997565585563,12.563956160807876,18.755959662853485,295072.62428941985,{"$f":"'[2]Gráfico REM'!BK396","v":54088.89584137893},{"$f":"'[2]Gráfico REM'!BL396","v":200265.67132758588},{"$f":"'[2]Gráfico REM'!BM396","v":40718.057120455043},10.332045915830967,2.7474643728439219,10.01182447518647,24.300145914080183]
[2022,"octubre","2022-octubre",{"$f":"IF('[2]REAL IPC(M)'!$AL403=\"\",\"\",+'[2]REAL IPC(M)'!$AL403)","v":9.1221930592009457},{"$f":"IF('[2]REAL IPC(M)'!$BE403=\"\",\"\",+'[2]REAL IPC(M)'!$BE403)","v":6.1285957934725577},{"$f":"IF('[2]REAL IPC(M)'!$AM403=\"\",\"\",+'[2]REAL IPC(M)'!$AM403)","v":8.0913736098587421},{"$f":"IF('[2]REAL IPC(M)'!$BI403=\"\",\"\",+'[2]REAL IPC(M)'!$BI403)","v":5.5910744899290821},{"$f":"IF('[2]REAL IMAE(M)'!BJ403=\"\",\"\",'[2]REAL IMAE(M)'!BJ403)","v":3.4179490185496819},{"$f":"IF('[2]REAL IMAE(M)'!BK403=\"\",\"\",'[2]REAL IMAE(M)'!BK403)","v":4.697138362312403},{"$f":"IF('[2]REAL IMAE(M)'!BN403=\"\",\"\",'[2]REAL IMAE(M)'!BN403)","v":4.5048873870484396},{"$f":"IF('[2]REAL IMAE(M)'!BO403=\"\",\"\",'[2]REAL IMAE(M)'!BO403)","v":5.8804909646113179},{"$f":"IF('[2]EXT RIN(M)'!$K403=\"\",\"\",'[2]EXT RIN(M)'!$K403)","v":56273.629978256562},null,{"$f":"IF('[2]EXT RIN(M)'!$L403=\"\",\"\",'[2]EXT RIN(M)'!$L403)","v":61726.851069486562},null,{"$f":"IF('[2]MONE(M)CARD'!EG403=\"\",\"\",'[2]MONE(M)CARD'!EG403)","v":59025.04759300936},{"$f":"IF('[2]MONE(M)CARD'!EK403=\"\",\"\",'[2]MONE(M)CARD'!EK403)","v":73207.173846847116},{"$f":"IF('[2]MONE(M)CARD'!EP403=\"\",\"\",'[2]MONE(M)CARD'!EP403)","v":42357.897134166124},{"$f":"IF('[2]MONE(M)CARD'!ES403=\"\",\"\",'[2]MONE(M)CARD'!ES403)","v":6.2731572695059246},{"$f":"IF('[2]MONE(M)CARD'!EV403=\"\",\"\",'[2]MONE(M)CARD'!EV403)","v":7.6249682282085507},{"$f":"IF('[2]MONE(M)CARD'!EZ403=\"\",\"\",'[2]MONE(M)CARD'!EZ403)","v":6.9322132409480153},{"$f":"IF('[2]MONE(M)CAPARD'!FC403=\"\",\"\",'[2]MONE(M)CAPARD'!FC403)","v":67890.08979618935},{"$f":"IF('[2]MONE(M)CAPARD'!FG403=\"\",\"\",'[2]MONE(M)CAPARD'!FG403)","v":102632.29317088715},{"$f":"IF('[2]MONE(M)CAPARD'!FL403=\"\",\"\",'[2]MONE(M)CAPARD'!FL403)","v":42357.897134166124},{"$f":"IF('[2]MONE(M)CAPARD'!FO403=\"\",\"\",'[2]MONE(M)CAPARD'!FO403)","v":4.6713660857209627},{"$f":"IF('[2]MONE(M)CAPARD'!FR403=\"\",\"\",'[2]MONE(M)CAPARD'!FR403)","v":6.2967615386231968},{"$f":"IF('[2]MONE(M)CAPARD'!FV403=\"\",\"\",'[2]MONE(M)CAPARD'!FV403)","v":6.0008016238680684},{"$f":"IF('[2]MONE(M)CARD'!FV403=\"\",\"\",'[2]MONE(M)CARD'!FV403)","v":2249.7990085586857},{"$f":"IF('[2]MONE(M)CARD'!GD403=\"\",\"\",'[2]MONE(M)CARD'!GD403)","v":180.42255567843705},{"$f":"IF('[2]MONE(M)CARD'!GE403=\"\",\"\",'[2]MONE(M)CARD'!GE403)","v":21008.906725145014},22.489560228097204,{"$f":"IF('[9]II.2.Balance OSD-Activos'!J261=\"\",\"\",'[9]II.2.Balance OSD-Activos'!J261)","v":283.106831913321},{"$f":"IF('[9]II.2.Balance OSD-Activos'!N261=\"\",\"\",'[9]II.2.Balance OSD-Activos'!N261)","v":1837.4953159254264},{"$f":"IF('[9]II.2.Balance OSD-Activos'!R261=\"\",\"\",'[9]II.2.Balance OSD-Activos'!R261)","v":67398.964535845851},{"$f":"IF('[9]II.2.Balance OSD-Activos'!S261=\"\",\"\",'[9]II.2.Balance OSD-Activos'!S261)","v":74333.495062374466},67682.07136775917,143853.06174605904,-16.42481959234804,13.224534477911853,40.659643899496125,13.393509782123235,14.630622811144868,14.233187490643573,0.96268292439842895,{"$f":"IF('[2]MONE(M)CAPARD'!GS403=\"\",\"\",'[2]MONE(M)CAPARD'!GS403)","v":38930.921921642905},{"$f":"IF('[2]MONE(M)CARD'!HA403=\"\",\"\",'[2]MONE(M)CAPARD'!HA403)","v":23262.492933885016},{"$f":"IF('[2]MONE(M)CAPARD'!HB403=\"\",\"\",'[2]MONE(M)CAPARD'!HB403)","v":15668.428987757889},"n.d.",{"$f":"IF('[10]II.2.Balance OSD-Activos'!J261=\"\",\"\",'[10]II.2.Balance OSD-Activos'!J261)","v":2965.0153348033209},{"$f":"IF('[10]II.2.Balance OSD-Activos'!N261=\"\",\"\",'[10]II.2.Balance OSD-Activos'!N261)","v":2670.0671610254267},{"$f":"IF('[10]II.2.Balance OSD-Activos'!R261=\"\",\"\",'[10]II.2.Balance OSD-Activos'!R261)","v":89962.371037525852},{"$f":"IF('[10]II.2.Balance OSD-Activos'!S261=\"\",\"\",'[10]II.2.Balance OSD-Activos'!S261)","v":102682.33536041445},92927.386372329172,198279.78889376903,7.042775375309418,10.688451008629741,29.557368308395837,10.812838524631129,11.52000857399813,11.33673556328192,0.73328016813993813,{"$f":"IF('[2]MONE(M)CAPARD'!AS403=\"\",\"\",'[2]MONE(M)CAPARD'!AS403)","v":9},{"$f":"IF('[2]MONE(M)CAPARD'!AT403=\"\",\"\",'[2]MONE(M)CAPARD'!AT403)","v":"n.a."},{"$f":"IF('[2]MONE(M)CAPARD'!AU403=\"\",\"\",'[2]MONE(M)CAPARD'!AU403)","v":3},{"$f":"IF('[2]MONE(M)CAPARD'!AV403=\"\",\"\",'[2]MONE(M)CAPARD'!AV403)","v":3},{"$f":"IF('[2]MONE(M)CAPARD'!AW403=\"\",\"\",'[2]MONE(M)CAPARD'!AW403)","v":6},{"$f":"IF('[2]MONE(M)CAPARD'!AX403=\"\",\"\",'[2]MONE(M)CAPARD'!AX403)","v":8.25},{"$f":"IF('[2]MONE(M)CAPARD'!AY403=\"\",\"\",'[2]MONE(M)CAPARD'!AY403)","v":"n.a."},{"$f":"IF('[2]FISCAL(M)'!$K403=\"\",\"\",'[2]FISCAL(M)'!$K403)","v":-3050.8578577087728},{"$f":"IF('[2]FISCAL(M)'!$L403=\"\",\"\",'[2]FISCAL(M)'!$L403)","v":"n.d."},{"$f":"IF('[2]FISCAL(M)'!$AY403=\"\",\"\",'[2]FISCAL(M)'!$AY403)","v":197735.4975575775},{"$f":"IF('[2]FISCAL(M)'!$BI403=\"\",\"\",'[2]FISCAL(M)'!$BI403)","v":105949.99586272002},{"$f":"IF('[2]FISCAL(M)'!$BS403=\"\",\"\",'[2]FISCAL(M)'!$BS403)","v":91785.501694857463},{"$f":"IF('[2]FISCAL(M)'!$AZ403=\"\",\"\",'[2]FISCAL(M)'!$AZ403)","v":241352.08755757747},{"$f":"IF('[2]FISCAL(M)'!$BJ403=\"\",\"\",'[2]FISCAL(M)'!$BJ403)","v":113871.40586272003},{"$f":"IF('[2]FISCAL(M)'!$BT403=\"\",\"\",'[2]FISCAL(M)'!$BT403)","v":127480.68169485746},{"$f":"IF('[3]MONE(M)'!$AO403=\"\",\"\",'[3]MONE(M)'!$AO403)","v":24053591.093338363},{"$f":"IF('[4]MONE(M)'!$AO403=\"\",\"\",'[4]MONE(M)'!$AO403)","v":16567.128353870001},{"$f":"IF('[5]MONE(M)'!$AO403=\"\",\"\",'[5]MONE(M)'!$AO403)","v":283877.59233488666},{"$f":"+'[1]MONE(M)'!$AO403","v":510930.88515727245},{"$f":"IF('[6]MONE(M)'!$AO403=\"\",\"\",'[6]MONE(M)'!$AO403)","v":143145.14327140924},{"$f":"IF('[7]MONE(M)'!$AO403=\"\",\"\",'[7]MONE(M)'!$AO403)","v":1674750.4857964264},{"$f":"IF('[8]MONE(M)'!$AO403=\"\",\"\",'[8]MONE(M)'!$AO403)","v":55496.033310409985},3.8043574040356187,9.5272820731083563,15.537810014928311,18.340155860864506,15.206822279052412,17.643964474734354,3.9317469412625039,{"$f":"'[2]FISCAL(M)'!$K403","v":-3050.8578577087728},{"$f":"+'[2]REAL(A)'!$AO$42","v":358127.2862337245},-0.85189204369021243,{"$f":"IF('[2]FISCAL(M)'!$L403=\"\",\"\",'[2]FISCAL(M)'!$L403)","v":"n.d."},{"$f":"+'[2]REAL(A)'!$AP$42","v":429212.35975017986},{"$f":"IF(OR(CP396=\"n.d.\",CP396=\"\",CQ396=\"\",CQ396=\"n.d.\"),\"n.d.\",(CP396/CQ396)*100)","v":"n.d."},208741.744014444,{"$f":"'[2]Gráfico REM'!BG397","v":50799.492016248565},{"$f":"'[2]Gráfico REM'!BH397","v":147255.39670271234},{"$f":"'[2]Gráfico REM'!BI397","v":10686.855295483083},11.170730027960452,2.6301927187954099,13.547169664024317,24.516688443865586,298120.67291653401,{"$f":"'[2]Gráfico REM'!BK397","v":54619.126696228566},{"$f":"'[2]Gráfico REM'!BL397","v":202751.43001312233},{"$f":"'[2]Gráfico REM'!BM397","v":40750.116207183084},10.832833264729835,2.8368348496163209,10.742810011888061,24.288548538981523]
[2022,"noviembre","2022-noviembre",{"$f":"IF('[2]REAL IPC(M)'!$AL404=\"\",\"\",+'[2]REAL IPC(M)'!$AL404)","v":8.6368366285119578},{"$f":"IF('[2]REAL IPC(M)'!$BE404=\"\",\"\",+'[2]REAL IPC(M)'!$BE404)","v":6.1184972280191818},{"$f":"IF('[2]REAL IPC(M)'!$AM404=\"\",\"\",+'[2]REAL IPC(M)'!$AM404)","v":7.6436918673980392},{"$f":"IF('[2]REAL IPC(M)'!$BI404=\"\",\"\",+'[2]REAL IPC(M)'!$BI404)","v":5.5827534724460337},{"$f":"IF('[2]REAL IMAE(M)'!BJ404=\"\",\"\",'[2]REAL IMAE(M)'!BJ404)","v":3.2463785138194368},{"$f":"IF('[2]REAL IMAE(M)'!BK404=\"\",\"\",'[2]REAL IMAE(M)'!BK404)","v":4.6794954228174923},{"$f":"IF('[2]REAL IMAE(M)'!BN404=\"\",\"\",'[2]REAL IMAE(M)'!BN404)","v":3.9232749037446002},{"$f":"IF('[2]REAL IMAE(M)'!BO404=\"\",\"\",'[2]REAL IMAE(M)'!BO404)","v":5.878382661873216},{"$f":"IF('[2]EXT RIN(M)'!$K404=\"\",\"\",'[2]EXT RIN(M)'!$K404)","v":56621.19067939285},null,{"$f":"IF('[2]EXT RIN(M)'!$L404=\"\",\"\",'[2]EXT RIN(M)'!$L404)","v":63838.90740744285},null,{"$f":"IF('[2]MONE(M)CARD'!EG404=\"\",\"\",'[2]MONE(M)CARD'!EG404)","v":60542.608083226274},{"$f":"IF('[2]MONE(M)CARD'!EK404=\"\",\"\",'[2]MONE(M)CARD'!EK404)","v":73063.183737939369},{"$f":"IF('[2]MONE(M)CARD'!EP404=\"\",\"\",'[2]MONE(M)CARD'!EP404)","v":42649.882121964212},{"$f":"IF('[2]MONE(M)CARD'!ES404=\"\",\"\",'[2]MONE(M)CARD'!ES404)","v":5.6809520588338769},{"$f":"IF('[2]MONE(M)CARD'!EV404=\"\",\"\",'[2]MONE(M)CARD'!EV404)","v":7.1913481432280602},{"$f":"IF('[2]MONE(M)CARD'!EZ404=\"\",\"\",'[2]MONE(M)CARD'!EZ404)","v":6.4543377425017256},{"$f":"IF('[2]MONE(M)CAPARD'!FC404=\"\",\"\",'[2]MONE(M)CAPARD'!FC404)","v":69516.053738676273},{"$f":"IF('[2]MONE(M)CAPARD'!FG404=\"\",\"\",'[2]MONE(M)CAPARD'!FG404)","v":101893.42521259937},{"$f":"IF('[2]MONE(M)CAPARD'!FL404=\"\",\"\",'[2]MONE(M)CAPARD'!FL404)","v":42649.882121964212},{"$f":"IF('[2]MONE(M)CAPARD'!FO404=\"\",\"\",'[2]MONE(M)CAPARD'!FO404)","v":4.2868089518373509},{"$f":"IF('[2]MONE(M)CAPARD'!FR404=\"\",\"\",'[2]MONE(M)CAPARD'!FR404)","v":5.8325062183195664},{"$f":"IF('[2]MONE(M)CAPARD'!FV404=\"\",\"\",'[2]MONE(M)CAPARD'!FV404)","v":5.5051709528108228},{"$f":"IF('[2]MONE(M)CARD'!FV404=\"\",\"\",'[2]MONE(M)CARD'!FV404)","v":2367.9043694767083},{"$f":"IF('[2]MONE(M)CARD'!GD404=\"\",\"\",'[2]MONE(M)CARD'!GD404)","v":177.61139504590682},{"$f":"IF('[2]MONE(M)CARD'!GE404=\"\",\"\",'[2]MONE(M)CARD'!GE404)","v":20133.664225470551},13.084168811868935,{"$f":"IF('[9]II.2.Balance OSD-Activos'!J262=\"\",\"\",'[9]II.2.Balance OSD-Activos'!J262)","v":263.79660645622869},{"$f":"IF('[9]II.2.Balance OSD-Activos'!N262=\"\",\"\",'[9]II.2.Balance OSD-Activos'!N262)","v":1868.0937625341915},{"$f":"IF('[9]II.2.Balance OSD-Activos'!R262=\"\",\"\",'[9]II.2.Balance OSD-Activos'!R262)","v":68226.29583500314},{"$f":"IF('[9]II.2.Balance OSD-Activos'!S262=\"\",\"\",'[9]II.2.Balance OSD-Activos'!S262)","v":75744.656174044736},68490.092441459376,146102.8423780383,-20.557790672597708,12.6657101903773,32.196937461702269,12.848186325852184,14.771853289066005,13.965220349641804,-0.26796714100176899,{"$f":"IF('[2]MONE(M)CAPARD'!GS404=\"\",\"\",'[2]MONE(M)CAPARD'!GS404)","v":39200.188265923578},{"$f":"IF('[2]MONE(M)CARD'!HA404=\"\",\"\",'[2]MONE(M)CAPARD'!HA404)","v":22615.303561610552},{"$f":"IF('[2]MONE(M)CAPARD'!HB404=\"\",\"\",'[2]MONE(M)CAPARD'!HB404)","v":16584.884704313026},"n.d.",{"$f":"IF('[10]II.2.Balance OSD-Activos'!J262=\"\",\"\",'[10]II.2.Balance OSD-Activos'!J262)","v":2972.4960411862289},{"$f":"IF('[10]II.2.Balance OSD-Activos'!N262=\"\",\"\",'[10]II.2.Balance OSD-Activos'!N262)","v":2716.5074232441912},{"$f":"IF('[10]II.2.Balance OSD-Activos'!R262=\"\",\"\",'[10]II.2.Balance OSD-Activos'!R262)","v":90738.527234733134},{"$f":"IF('[10]II.2.Balance OSD-Activos'!S262=\"\",\"\",'[10]II.2.Balance OSD-Activos'!S262)","v":104161.50262085474},93711.02327591936,200589.03332001829,8.3115819727770823,10.90423796379698,26.848464252823099,10.991271851550287,11.490908775532649,11.398257205228624,6.1521641946704619E-2,{"$f":"IF('[2]MONE(M)CAPARD'!AS404=\"\",\"\",'[2]MONE(M)CAPARD'!AS404)","v":9},{"$f":"IF('[2]MONE(M)CAPARD'!AT404=\"\",\"\",'[2]MONE(M)CAPARD'!AT404)","v":"n.a."},{"$f":"IF('[2]MONE(M)CAPARD'!AU404=\"\",\"\",'[2]MONE(M)CAPARD'!AU404)","v":3},{"$f":"IF('[2]MONE(M)CAPARD'!AV404=\"\",\"\",'[2]MONE(M)CAPARD'!AV404)","v":3},{"$f":"IF('[2]MONE(M)CAPARD'!AW404=\"\",\"\",'[2]MONE(M)CAPARD'!AW404)","v":6.5},{"$f":"IF('[2]MONE(M)CAPARD'!AX404=\"\",\"\",'[2]MONE(M)CAPARD'!AX404)","v":8.5},{"$f":"IF('[2]MONE(M)CAPARD'!AY404=\"\",\"\",'[2]MONE(M)CAPARD'!AY404)","v":"n.a."},{"$f":"IF('[2]FISCAL(M)'!$K404=\"\",\"\",'[2]FISCAL(M)'!$K404)","v":-4889.8930237619161},{"$f":"IF('[2]FISCAL(M)'!$L404=\"\",\"\",'[2]FISCAL(M)'!$L404)","v":"n.d."},{"$f":"IF('[2]FISCAL(M)'!$AY404=\"\",\"\",'[2]FISCAL(M)'!$AY404)","v":200184.08579725548},{"$f":"IF('[2]FISCAL(M)'!$BI404=\"\",\"\",'[2]FISCAL(M)'!$BI404)","v":106633.93234713178},{"$f":"IF('[2]FISCAL(M)'!$BS404=\"\",\"\",'[2]FISCAL(M)'!$BS404)","v":93550.153450123733},{"$f":"IF('[2]FISCAL(M)'!$AZ404=\"\",\"\",'[2]FISCAL(M)'!$AZ404)","v":245320.46579725551},{"$f":"IF('[2]FISCAL(M)'!$BJ404=\"\",\"\",'[2]FISCAL(M)'!$BJ404)","v":114555.34234713178},{"$f":"IF('[2]FISCAL(M)'!$BT404=\"\",\"\",'[2]FISCAL(M)'!$BT404)","v":130765.12345012373},{"$f":"IF('[3]MONE(M)'!$AO404=\"\",\"\",'[3]MONE(M)'!$AO404)","v":23905511.4103592},{"$f":"IF('[4]MONE(M)'!$AO404=\"\",\"\",'[4]MONE(M)'!$AO404)","v":16729.769310560001},{"$f":"IF('[5]MONE(M)'!$AO404=\"\",\"\",'[5]MONE(M)'!$AO404)","v":286211.82146538014},{"$f":"+'[1]MONE(M)'!$AO404","v":523260.83532036585},{"$f":"IF('[6]MONE(M)'!$AO404=\"\",\"\",'[6]MONE(M)'!$AO404)","v":145792.82714659884},{"$f":"IF('[7]MONE(M)'!$AO404=\"\",\"\",'[7]MONE(M)'!$AO404)","v":1702445.6331109304},{"$f":"IF('[8]MONE(M)'!$AO404=\"\",\"\",'[8]MONE(M)'!$AO404)","v":55415.085087149993},3.3427290544426391,9.5887119139633761,14.399476705629755,18.222530142758544,14.825213712907125,17.45970719452361,4.5740853956512728,{"$f":"'[2]FISCAL(M)'!$K404","v":-4889.8930237619161},{"$f":"+'[2]REAL(A)'!$AO$42","v":358127.2862337245},-1.3654064383607527,{"$f":"IF('[2]FISCAL(M)'!$L404=\"\",\"\",'[2]FISCAL(M)'!$L404)","v":"n.d."},{"$f":"+'[2]REAL(A)'!$AP$42","v":429212.35975017986},{"$f":"IF(OR(CP397=\"n.d.\",CP397=\"\",CQ397=\"\",CQ397=\"n.d.\"),\"n.d.\",(CP397/CQ397)*100)","v":"n.d."},211201.74500368617,{"$f":"'[2]Gráfico REM'!BG398","v":50958.871663650432},{"$f":"'[2]Gráfico REM'!BH398","v":149401.10553358882},{"$f":"'[2]Gráfico REM'!BI398","v":10841.767806446902},11.221379248433871,3.4916434773566429,13.37681474601624,22.09790405015044,300523.40563177614,{"$f":"'[2]Gráfico REM'!BK398","v":54866.75493414043},{"$f":"'[2]Gráfico REM'!BL398","v":204816.19062073881},{"$f":"'[2]Gráfico REM'!BM398","v":40840.460076896903},10.801620151984936,3.874615038922502,10.852164781639217,21.400135199123426]
[2022,"diciembre","2022-diciembre",{"$f":"IF('[2]REAL IPC(M)'!$AL405=\"\",\"\",+'[2]REAL IPC(M)'!$AL405)","v":8.6184097050537432},{"$f":"IF('[2]REAL IPC(M)'!$BE405=\"\",\"\",+'[2]REAL IPC(M)'!$BE405)","v":6.0999908269075087},{"$f":"IF('[2]REAL IPC(M)'!$AM405=\"\",\"\",+'[2]REAL IPC(M)'!$AM405)","v":7.7069231682698192},{"$f":"IF('[2]REAL IPC(M)'!$BI405=\"\",\"\",+'[2]REAL IPC(M)'!$BI405)","v":5.5660469626401365},{"$f":"IF('[2]REAL IMAE(M)'!BJ405=\"\",\"\",'[2]REAL IMAE(M)'!BJ405)","v":3.0839318166716367},{"$f":"IF('[2]REAL IMAE(M)'!BK405=\"\",\"\",'[2]REAL IMAE(M)'!BK405)","v":4.6595204553036229},{"$f":"IF('[2]REAL IMAE(M)'!BN405=\"\",\"\",'[2]REAL IMAE(M)'!BN405)","v":3.8496618911651126},{"$f":"IF('[2]REAL IMAE(M)'!BO405=\"\",\"\",'[2]REAL IMAE(M)'!BO405)","v":5.8714877228986717},{"$f":"IF('[2]EXT RIN(M)'!$K405=\"\",\"\",'[2]EXT RIN(M)'!$K405)","v":58224.249096934684},{"$f":"IF(B398<>\"diciembre\",\"\",L398)","v":58224.249096934684},{"$f":"IF('[2]EXT RIN(M)'!$L405=\"\",\"\",'[2]EXT RIN(M)'!$L405)","v":64515.496255794686},{"$f":"IF(B398<>\"diciembre\",\"\",N398)","v":64515.496255794686},{"$f":"IF('[2]MONE(M)CARD'!EG405=\"\",\"\",'[2]MONE(M)CARD'!EG405)","v":63359.13466622038},{"$f":"IF('[2]MONE(M)CARD'!EK405=\"\",\"\",'[2]MONE(M)CARD'!EK405)","v":73756.075709834928},{"$f":"IF('[2]MONE(M)CARD'!EP405=\"\",\"\",'[2]MONE(M)CARD'!EP405)","v":42307.299914291245},{"$f":"IF('[2]MONE(M)CARD'!ES405=\"\",\"\",'[2]MONE(M)CARD'!ES405)","v":6.273103153187698},{"$f":"IF('[2]MONE(M)CARD'!EV405=\"\",\"\",'[2]MONE(M)CARD'!EV405)","v":7.5999911334703629},{"$f":"IF('[2]MONE(M)CARD'!EZ405=\"\",\"\",'[2]MONE(M)CARD'!EZ405)","v":6.5454350917591331},{"$f":"IF('[2]MONE(M)CAPARD'!FC405=\"\",\"\",'[2]MONE(M)CAPARD'!FC405)","v":72572.841309570373},{"$f":"IF('[2]MONE(M)CAPARD'!FG405=\"\",\"\",'[2]MONE(M)CAPARD'!FG405)","v":102570.28711525492},{"$f":"IF('[2]MONE(M)CAPARD'!FL405=\"\",\"\",'[2]MONE(M)CAPARD'!FL405)","v":42307.299914291245},{"$f":"IF('[2]MONE(M)CAPARD'!FO405=\"\",\"\",'[2]MONE(M)CAPARD'!FO405)","v":4.9521026095129761},{"$f":"IF('[2]MONE(M)CAPARD'!FR405=\"\",\"\",'[2]MONE(M)CAPARD'!FR405)","v":5.9039940198372776},{"$f":"IF('[2]MONE(M)CAPARD'!FV405=\"\",\"\",'[2]MONE(M)CAPARD'!FV405)","v":5.3801083910427483},{"$f":"IF('[2]MONE(M)CARD'!FV405=\"\",\"\",'[2]MONE(M)CARD'!FV405)","v":2353.8664676730496},{"$f":"IF('[2]MONE(M)CARD'!GD405=\"\",\"\",'[2]MONE(M)CARD'!GD405)","v":202.08719031077644},{"$f":"IF('[2]MONE(M)CARD'!GE405=\"\",\"\",'[2]MONE(M)CARD'!GE405)","v":18134.064454852938},2.42420133147081,{"$f":"IF('[9]II.2.Balance OSD-Activos'!J263=\"\",\"\",'[9]II.2.Balance OSD-Activos'!J263)","v":269.04112414074024},{"$f":"IF('[9]II.2.Balance OSD-Activos'!N263=\"\",\"\",'[9]II.2.Balance OSD-Activos'!N263)","v":1966.9203946632292},{"$f":"IF('[9]II.2.Balance OSD-Activos'!R263=\"\",\"\",'[9]II.2.Balance OSD-Activos'!R263)","v":68319.610985353211},{"$f":"IF('[9]II.2.Balance OSD-Activos'!S263=\"\",\"\",'[9]II.2.Balance OSD-Activos'!S263)","v":75857.875446050966},68588.652109493953,146413.44795020815,-10.837813784265693,12.238575501602611,27.879579060536773,12.353086035083916,15.323319347136998,14.005871008959581,4.0650659317776672E-2,{"$f":"IF('[2]MONE(M)CAPARD'!GS405=\"\",\"\",'[2]MONE(M)CAPARD'!GS405)","v":38287.452369174214},{"$f":"IF('[2]MONE(M)CARD'!HA405=\"\",\"\",'[2]MONE(M)CAPARD'!HA405)","v":21277.418075992944},{"$f":"IF('[2]MONE(M)CAPARD'!HB405=\"\",\"\",'[2]MONE(M)CAPARD'!HB405)","v":17010.03429318127},"n.d.",{"$f":"IF('[10]II.2.Balance OSD-Activos'!J263=\"\",\"\",'[10]II.2.Balance OSD-Activos'!J263)","v":3149.7825838807398},{"$f":"IF('[10]II.2.Balance OSD-Activos'!N263=\"\",\"\",'[10]II.2.Balance OSD-Activos'!N263)","v":2802.365443933229},{"$f":"IF('[10]II.2.Balance OSD-Activos'!R263=\"\",\"\",'[10]II.2.Balance OSD-Activos'!R263)","v":90705.316503033217},{"$f":"IF('[10]II.2.Balance OSD-Activos'!S263=\"\",\"\",'[10]II.2.Balance OSD-Activos'!S263)","v":104345.73159931098},93855.09908691395,201003.19613015815,14.878077426260372,10.419213227466596,21.925217790209352,10.270587289439458,11.714046585815163,11.234860342004072,-0.16339686322455194,{"$f":"IF('[2]MONE(M)CAPARD'!AS405=\"\",\"\",'[2]MONE(M)CAPARD'!AS405)","v":9},{"$f":"IF('[2]MONE(M)CAPARD'!AT405=\"\",\"\",'[2]MONE(M)CAPARD'!AT405)","v":"n.a."},{"$f":"IF('[2]MONE(M)CAPARD'!AU405=\"\",\"\",'[2]MONE(M)CAPARD'!AU405)","v":3.75},{"$f":"IF('[2]MONE(M)CAPARD'!AV405=\"\",\"\",'[2]MONE(M)CAPARD'!AV405)","v":3},{"$f":"IF('[2]MONE(M)CAPARD'!AW405=\"\",\"\",'[2]MONE(M)CAPARD'!AW405)","v":7},{"$f":"IF('[2]MONE(M)CAPARD'!AX405=\"\",\"\",'[2]MONE(M)CAPARD'!AX405)","v":8.5},{"$f":"IF('[2]MONE(M)CAPARD'!AY405=\"\",\"\",'[2]MONE(M)CAPARD'!AY405)","v":"n.a."},{"$f":"IF('[2]FISCAL(M)'!$K405=\"\",\"\",'[2]FISCAL(M)'!$K405)","v":-8079.9543001426282},{"$f":"IF('[2]FISCAL(M)'!$L405=\"\",\"\",'[2]FISCAL(M)'!$L405)","v":-11174.254300142627},{"$f":"IF('[2]FISCAL(M)'!$AY405=\"\",\"\",'[2]FISCAL(M)'!$AY405)","v":199201.90945215127},{"$f":"IF('[2]FISCAL(M)'!$BI405=\"\",\"\",'[2]FISCAL(M)'!$BI405)","v":104863.55176252325},{"$f":"IF('[2]FISCAL(M)'!$BS405=\"\",\"\",'[2]FISCAL(M)'!$BS405)","v":94338.357689627999},{"$f":"IF('[2]FISCAL(M)'!$AZ405=\"\",\"\",'[2]FISCAL(M)'!$AZ405)","v":243475.92945215126},{"$f":"IF('[2]FISCAL(M)'!$BJ405=\"\",\"\",'[2]FISCAL(M)'!$BJ405)","v":112284.96176252325},{"$f":"IF('[2]FISCAL(M)'!$BT405=\"\",\"\",'[2]FISCAL(M)'!$BT405)","v":131190.96768962799},{"$f":"IF('[3]MONE(M)'!$AO405=\"\",\"\",'[3]MONE(M)'!$AO405)","v":24014052.202696338},{"$f":"IF('[4]MONE(M)'!$AO405=\"\",\"\",'[4]MONE(M)'!$AO405)","v":16782.859898129998},{"$f":"IF('[5]MONE(M)'!$AO405=\"\",\"\",'[5]MONE(M)'!$AO405)","v":287747.26029387722},{"$f":"+'[1]MONE(M)'!$AO405","v":539301.37271674746},{"$f":"IF('[6]MONE(M)'!$AO405=\"\",\"\",'[6]MONE(M)'!$AO405)","v":147035.24704045284},{"$f":"IF('[7]MONE(M)'!$AO405=\"\",\"\",'[7]MONE(M)'!$AO405)","v":1714604.9651903834},{"$f":"IF('[8]MONE(M)'!$AO405=\"\",\"\",'[8]MONE(M)'!$AO405)","v":55522.187530039999},2.7474991816536676,10.589228566345543,13.691776522362286,20.107100310733685,15.629633794228969,16.824215712540269,3.90547126121088,{"$f":"'[2]FISCAL(M)'!$K405","v":-8079.9543001426282},{"$f":"+'[2]REAL(A)'!$AO$42","v":358127.2862337245},-2.2561682984606235,{"$f":"IF('[2]FISCAL(M)'!$L405=\"\",\"\",'[2]FISCAL(M)'!$L405)","v":-11174.254300142627},{"$f":"+'[2]REAL(A)'!$AP$42","v":429212.35975017986},{"$f":"IF(OR(CP398=\"n.d.\",CP398=\"\",CQ398=\"\",CQ398=\"n.d.\"),\"n.d.\",(CP398/CQ398)*100)","v":-2.603432554143251},208737.68889590751,{"$f":"'[2]Gráfico REM'!BG399","v":47917.177050094848},{"$f":"'[2]Gráfico REM'!BH399","v":149930.16624052581},{"$f":"'[2]Gráfico REM'!BI399","v":10890.345605286861},10.61905297666199,1.5702165482723851,13.674865939662029,13.095720190123528,298137.09004010755,{"$f":"'[2]Gráfico REM'!BK399","v":51538.678313634846},{"$f":"'[2]Gráfico REM'!BL399","v":205452.35377056582},{"$f":"'[2]Gráfico REM'!BM399","v":41146.057955906879},9.8469309069804325,1.3800357583126033,10.858091419087934,16.742489422590246]
[2023,"enero",{"$f":"A399&\"-\"&B399","v":"2023-enero"},{"$f":"IF('[2]REAL IPC(M)'!$AL406=\"\",\"\",+'[2]REAL IPC(M)'!$AL406)","v":8.3723052355423775},{"$f":"IF('[2]REAL IPC(M)'!$BE406=\"\",\"\",+'[2]REAL IPC(M)'!$BE406)","v":6.07387429583095},{"$f":"IF('[2]REAL IPC(M)'!$AM406=\"\",\"\",+'[2]REAL IPC(M)'!$AM406)","v":7.5730787364450602},{"$f":"IF('[2]REAL IPC(M)'!$BI406=\"\",\"\",+'[2]REAL IPC(M)'!$BI406)","v":5.5417940434907775},{"$f":"IF('[2]REAL IMAE(M)'!BJ406=\"\",\"\",'[2]REAL IMAE(M)'!BJ406)","v":2.8574708643104296},{"$f":"IF('[2]REAL IMAE(M)'!BK406=\"\",\"\",'[2]REAL IMAE(M)'!BK406)","v":4.6379524304398068},{"$f":"IF('[2]REAL IMAE(M)'!BN406=\"\",\"\",'[2]REAL IMAE(M)'!BN406)","v":3.5527455875659975},{"$f":"IF('[2]REAL IMAE(M)'!BO406=\"\",\"\",'[2]REAL IMAE(M)'!BO406)","v":5.8608846297598882},{"$f":"IF('[2]EXT RIN(M)'!$K406=\"\",\"\",'[2]EXT RIN(M)'!$K406)","v":58576.123685524573},{"$f":"IF(B399<>\"diciembre\",\"\",L399)","v":""},{"$f":"IF('[2]EXT RIN(M)'!$L406=\"\",\"\",'[2]EXT RIN(M)'!$L406)","v":64750.704387524573},{"$f":"IF(B399<>\"diciembre\",\"\",N399)","v":""},{"$f":"IF('[2]MONE(M)CARD'!EG406=\"\",\"\",'[2]MONE(M)CARD'!EG406)","v":63315.956774435559},{"$f":"IF('[2]MONE(M)CARD'!EK406=\"\",\"\",'[2]MONE(M)CARD'!EK406)","v":75805.580119063554},{"$f":"IF('[2]MONE(M)CARD'!EP406=\"\",\"\",'[2]MONE(M)CARD'!EP406)","v":43488.588632787112},{"$f":"IF('[2]MONE(M)CARD'!ES406=\"\",\"\",'[2]MONE(M)CARD'!ES406)","v":8.0184530033851722},{"$f":"IF('[2]MONE(M)CARD'!EV406=\"\",\"\",'[2]MONE(M)CARD'!EV406)","v":9.7292595393876802},{"$f":"IF('[2]MONE(M)CARD'!EZ406=\"\",\"\",'[2]MONE(M)CARD'!EZ406)","v":8.7396565122871639},{"$f":"IF('[2]MONE(M)CAPARD'!FC406=\"\",\"\",'[2]MONE(M)CAPARD'!FC406)","v":72357.582408735558},{"$f":"IF('[2]MONE(M)CAPARD'!FG406=\"\",\"\",'[2]MONE(M)CAPARD'!FG406)","v":104629.46768773359},{"$f":"IF('[2]MONE(M)CAPARD'!FL406=\"\",\"\",'[2]MONE(M)CAPARD'!FL406)","v":43488.588632787112},{"$f":"IF('[2]MONE(M)CAPARD'!FO406=\"\",\"\",'[2]MONE(M)CAPARD'!FO406)","v":6.2404631701032276},{"$f":"IF('[2]MONE(M)CAPARD'!FR406=\"\",\"\",'[2]MONE(M)CAPARD'!FR406)","v":7.5771509314671803},{"$f":"IF('[2]MONE(M)CAPARD'!FV406=\"\",\"\",'[2]MONE(M)CAPARD'!FV406)","v":7.1996778912452042},{"$f":"IF('[2]MONE(M)CARD'!FV406=\"\",\"\",'[2]MONE(M)CARD'!FV406)","v":2619.7027107963768},{"$f":"IF('[2]MONE(M)CARD'!GD406=\"\",\"\",'[2]MONE(M)CARD'!GD406)","v":197.96942726449959},{"$f":"IF('[2]MONE(M)CARD'!GE406=\"\",\"\",'[2]MONE(M)CARD'!GE406)","v":19137.07500474896},{"$f":"IF(AD399=\"\",\"\",((AD399/AD386)-1)*100)","v":12.694000374437774},{"$f":"IF('[9]II.2.Balance OSD-Activos'!J264=\"\",\"\",'[9]II.2.Balance OSD-Activos'!J264)","v":220.18134764476667},{"$f":"IF('[9]II.2.Balance OSD-Activos'!N264=\"\",\"\",'[9]II.2.Balance OSD-Activos'!N264)","v":1967.8499939808391},{"$f":"IF('[9]II.2.Balance OSD-Activos'!R264=\"\",\"\",'[9]II.2.Balance OSD-Activos'!R264)","v":69030.721913559042},{"$f":"IF('[9]II.2.Balance OSD-Activos'!S264=\"\",\"\",'[9]II.2.Balance OSD-Activos'!S264)","v":77758.932614722289},{"$f":"IFERROR(+AF399+AH399,\"\")","v":69250.903261203814},{"$f":"IF(OR(AF399=\"\",AG399=\"\",AH399=\"\",AI399=\"\"),\"\",SUM(AF399:AI399))","v":148977.68586990694},{"$f":"IF(OR(AF399=\"\",AF387=\"\"),\"\",((AF399/AF387)-1)*100)","v":-13.916927684065794},{"$f":"IF(OR(AJ399=\"\",AJ387=\"\"),\"\",((AJ399/AJ387)-1)*100)","v":12.32248983933224},{"$f":"IF(OR(AG399=\"\",AG387=\"\"),\"\",((AG399/AG387)-1)*100)","v":16.052428501114925},{"$f":"IF(OR(AH399=\"\",AH387=\"\"),\"\",((AH399/AH387)-1)*100)","v":12.431800799368254},{"$f":"IF(OR(AI399=\"\",AI387=\"\"),\"\",((AI399/AI387)-1)*100)","v":17.999984846039084},{"$f":"IF(OR(AK399=\"\",AK387=\"\"),\"\",((AK399/AK387)-1)*100)","v":15.266138608466328},{"$f":"IF(OR(AQ399=\"\",AQ398=\"\"),\"\",AQ399-AQ398)","v":1.2602675995067472},{"$f":"IF('[2]MONE(M)CAPARD'!GS406=\"\",\"\",'[2]MONE(M)CAPARD'!GS406)","v":39440.26891392278},{"$f":"IF('[2]MONE(M)CARD'!HA406=\"\",\"\",'[2]MONE(M)CAPARD'!HA406)","v":21979.167626158964},{"$f":"IF('[2]MONE(M)CAPARD'!HB406=\"\",\"\",'[2]MONE(M)CAPARD'!HB406)","v":17461.101287763817},"n.d.",{"$f":"IF('[10]II.2.Balance OSD-Activos'!J264=\"\",\"\",'[10]II.2.Balance OSD-Activos'!J264)","v":3116.5970683947667},{"$f":"IF('[10]II.2.Balance OSD-Activos'!N264=\"\",\"\",'[10]II.2.Balance OSD-Activos'!N264)","v":2787.099491470839},{"$f":"IF('[10]II.2.Balance OSD-Activos'!R264=\"\",\"\",'[10]II.2.Balance OSD-Activos'!R264)","v":91354.26379686904},{"$f":"IF('[10]II.2.Balance OSD-Activos'!S264=\"\",\"\",'[10]II.2.Balance OSD-Activos'!S264)","v":106348.4707523523},{"$f":"IFERROR(+AW399+AY399,\"\")","v":94470.860865263807},{"$f":"IF(OR(AW399=\"\",AX399=\"\",AY399=\"\",AZ399=\"\"),\"\",SUM(AW399:AZ399))","v":203606.43110908696},{"$f":"IF(OR(AW399=\"\",AW387=\"\"),\"\",((AW399/AW387)-1)*100)","v":14.785599455421906},{"$f":"IF(OR(BA399=\"\",BA387=\"\"),\"\",((BA399/BA387)-1)*100)","v":10.306541882187448},{"$f":"IF(OR(AX399=\"\",AX387=\"\"),\"\",((AX399/AX387)-1)*100)","v":13.630430623521139},{"$f":"IF(OR(AY399=\"\",AY387=\"\"),\"\",((AY399/AY387)-1)*100)","v":10.15989440877485},{"$f":"IF(OR(AZ399=\"\",AZ387=\"\"),\"\",((AZ399/AZ387)-1)*100)","v":13.655313666660195},{"$f":"IF(OR(BB399=\"\",BB387=\"\"),\"\",((BB399/BB387)-1)*100)","v":12.076260671237748},{"$f":"IF(OR(BH399=\"\",BH398=\"\"),\"\",BH399-BH398)","v":0.84140032923367514},{"$f":"IF('[2]MONE(M)CAPARD'!AS406=\"\",\"\",'[2]MONE(M)CAPARD'!AS406)","v":9},{"$f":"IF('[2]MONE(M)CAPARD'!AT406=\"\",\"\",'[2]MONE(M)CAPARD'!AT406)","v":"n.a."},{"$f":"IF('[2]MONE(M)CAPARD'!AU406=\"\",\"\",'[2]MONE(M)CAPARD'!AU406)","v":4.25},{"$f":"IF('[2]MONE(M)CAPARD'!AV406=\"\",\"\",'[2]MONE(M)CAPARD'!AV406)","v":3},{"$f":"IF('[2]MONE(M)CAPARD'!AW406=\"\",\"\",'[2]MONE(M)CAPARD'!AW406)","v":7},{"$f":"IF('[2]MONE(M)CAPARD'!AX406=\"\",\"\",'[2]MONE(M)CAPARD'!AX406)","v":8.5},{"$f":"IF('[2]MONE(M)CAPARD'!AY406=\"\",\"\",'[2]MONE(M)CAPARD'!AY406)","v":"n.a."},{"$f":"IF('[2]FISCAL(M)'!$K406=\"\",\"\",'[2]FISCAL(M)'!$K406)","v":-1612.4174943579501},{"$f":"IF('[2]FISCAL(M)'!$L406=\"\",\"\",'[2]FISCAL(M)'!$L406)","v":"n.d."},{"$f":"IF('[2]FISCAL(M)'!$AY406=\"\",\"\",'[2]FISCAL(M)'!$AY406)","v":203622.74742048522},{"$f":"IF('[2]FISCAL(M)'!$BI406=\"\",\"\",'[2]FISCAL(M)'!$BI406)","v":108904.15004089675},{"$f":"IF('[2]FISCAL(M)'!$BS406=\"\",\"\",'[2]FISCAL(M)'!$BS406)","v":94718.597379588464},{"$f":"IF('[2]FISCAL(M)'!$AZ406=\"\",\"\",'[2]FISCAL(M)'!$AZ406)","v":247841.37742048522},{"$f":"IF('[2]FISCAL(M)'!$BJ406=\"\",\"\",'[2]FISCAL(M)'!$BJ406)","v":116325.56004089676},{"$f":"IF('[2]FISCAL(M)'!$BT406=\"\",\"\",'[2]FISCAL(M)'!$BT406)","v":131515.81737958846},{"$f":"IF('[3]MONE(M)'!$AO406=\"\",\"\",'[3]MONE(M)'!$AO406)","v":23324497.686410144},{"$f":"IF('[4]MONE(M)'!$AO406=\"\",\"\",'[4]MONE(M)'!$AO406)","v":16882.836660299999},{"$f":"IF('[5]MONE(M)'!$AO406=\"\",\"\",'[5]MONE(M)'!$AO406)","v":288961.99465507839},{"$f":"+'[1]MONE(M)'!$AO406","v":546957.71735431766},{"$f":"IF('[6]MONE(M)'!$AO406=\"\",\"\",'[6]MONE(M)'!$AO406)","v":150656.98946666741},{"$f":"IF('[7]MONE(M)'!$AO406=\"\",\"\",'[7]MONE(M)'!$AO406)","v":1723547.5318635588},{"$f":"IF('[8]MONE(M)'!$AO406=\"\",\"\",'[8]MONE(M)'!$AO406)","v":55546.389617020002},{"$f":"IF(BY399=\"\",\"\",((BY399/BY387)-1)*100)","v":-0.24459642732401754},{"$f":"IF(BZ399=\"\",\"\",((BZ399/BZ387)-1)*100)","v":10.669528742703793},{"$f":"IF(CA399=\"\",\"\",((CA399/CA387)-1)*100)","v":13.762187449597585},{"$f":"IF(CB399=\"\",\"\",((CB399/CB387)-1)*100)","v":19.244556406180614},{"$f":"IF(CC399=\"\",\"\",((CC399/CC387)-1)*100)","v":18.38553859532577},{"$f":"IF(CD399=\"\",\"\",((CD399/CD387)-1)*100)","v":15.4549583953834},{"$f":"IF(CE399=\"\",\"\",((CE399/CE387)-1)*100)","v":3.6241496783000038},{"$f":"'[2]FISCAL(M)'!$K406","v":-1612.4174943579501},{"$f":"+'[2]REAL(A)'!$AO$43","v":399483.89883321861},-0.40362515211936534,{"$f":"IF('[2]FISCAL(M)'!$L406=\"\",\"\",'[2]FISCAL(M)'!$L406)","v":"n.d."},{"$f":"+'[2]REAL(A)'!$AP$43","v":476740.89883321861},{"$f":"IF(OR(CP399=\"n.d.\",CP399=\"\",CQ399=\"\",CQ399=\"n.d.\"),\"n.d.\",(CP399/CQ399)*100)","v":"n.d."},{"$f":"+IF(OR(CT399=\"\",+CU399=\"\",+CV399=\"\"),\"\",(CT399+CU399+CV399))","v":212302.3740499827},{"$f":"'[2]Gráfico REM'!BG400","v":48996.316870489456},{"$f":"'[2]Gráfico REM'!BH400","v":152582.66969909798},{"$f":"'[2]Gráfico REM'!BI400","v":10723.387480395279},{"$f":"IFERROR(+((CS399/CS387)-1)*100,\"\")","v":10.799843558345245},{"$f":"IFERROR(+((CT399/CT387)-1)*100,\"\")","v":-1.0206797440090898},{"$f":"IFERROR(+((CU399/CU387)-1)*100,\"\")","v":14.96519229869817},{"$f":"IFERROR(+((CV399/CV387)-1)*100,\"\")","v":14.241587121072685},{"$f":"+IF(OR(DB399=\"\",+DC399=\"\",+DD399=\"\"),\"\",(DB399+DC399+DD399))","v":301937.11322641268},{"$f":"'[2]Gráfico REM'!BK400","v":52638.830096659454},{"$f":"'[2]Gráfico REM'!BL400","v":208129.05931611799},{"$f":"'[2]Gráfico REM'!BM400","v":41169.223813635268},{"$f":"IFERROR(+((DA399/DA387)-1)*100,\"\")","v":10.114899749746931},{"$f":"IFERROR(+((DB399/DB387)-1)*100,\"\")","v":-0.98996119575104347},{"$f":"IFERROR(+((DC399/DC387)-1)*100,\"\")","v":11.702486183988503},{"$f":"IFERROR(+((DD399/DD387)-1)*100,\"\")","v":18.601392495859503}]
[2023,"febrero",{"$f":"A400&\"-\"&B400","v":"2023-febrero"},{"$f":"IF('[2]REAL IPC(M)'!$AL407=\"\",\"\",+'[2]REAL IPC(M)'!$AL407)","v":7.9676085848575662},{"$f":"IF('[2]REAL IPC(M)'!$BE407=\"\",\"\",+'[2]REAL IPC(M)'!$BE407)","v":6.0410778937283638},{"$f":"IF('[2]REAL IPC(M)'!$AM407=\"\",\"\",+'[2]REAL IPC(M)'!$AM407)","v":7.1273918895195854},{"$f":"IF('[2]REAL IPC(M)'!$BI407=\"\",\"\",+'[2]REAL IPC(M)'!$BI407)","v":5.5109643369258832},{"$f":"IF('[2]REAL IMAE(M)'!BJ407=\"\",\"\",'[2]REAL IMAE(M)'!BJ407)","v":2.9458207159318794},{"$f":"IF('[2]REAL IMAE(M)'!BK407=\"\",\"\",'[2]REAL IMAE(M)'!BK407)","v":4.6154222084244134},{"$f":"IF('[2]REAL IMAE(M)'!BN407=\"\",\"\",'[2]REAL IMAE(M)'!BN407)","v":3.7180557984497487},{"$f":"IF('[2]REAL IMAE(M)'!BO407=\"\",\"\",'[2]REAL IMAE(M)'!BO407)","v":5.8474900776964267},{"$f":"IF('[2]EXT RIN(M)'!$K407=\"\",\"\",'[2]EXT RIN(M)'!$K407)","v":59678.306108608733},"",{"$f":"IF('[2]EXT RIN(M)'!$L407=\"\",\"\",'[2]EXT RIN(M)'!$L407)","v":65321.439443758733},"",{"$f":"IF('[2]MONE(M)CARD'!EG407=\"\",\"\",'[2]MONE(M)CARD'!EG407)","v":63674.277564724107},{"$f":"IF('[2]MONE(M)CARD'!EK407=\"\",\"\",'[2]MONE(M)CARD'!EK407)","v":76120.747933949067},{"$f":"IF('[2]MONE(M)CARD'!EP407=\"\",\"\",'[2]MONE(M)CARD'!EP407)","v":43501.257998330722},{"$f":"IF('[2]MONE(M)CARD'!ES407=\"\",\"\",'[2]MONE(M)CARD'!ES407)","v":8.7771004133947006},{"$f":"IF('[2]MONE(M)CARD'!EV407=\"\",\"\",'[2]MONE(M)CARD'!EV407)","v":9.0192485889191829},{"$f":"IF('[2]MONE(M)CARD'!EZ407=\"\",\"\",'[2]MONE(M)CARD'!EZ407)","v":7.8201477115864781},{"$f":"IF('[2]MONE(M)CAPARD'!FC407=\"\",\"\",'[2]MONE(M)CAPARD'!FC407)","v":72810.466842734109},{"$f":"IF('[2]MONE(M)CAPARD'!FG407=\"\",\"\",'[2]MONE(M)CAPARD'!FG407)","v":105184.29468809906},{"$f":"IF('[2]MONE(M)CAPARD'!FL407=\"\",\"\",'[2]MONE(M)CAPARD'!FL407)","v":43501.257998330722},{"$f":"IF('[2]MONE(M)CAPARD'!FO407=\"\",\"\",'[2]MONE(M)CAPARD'!FO407)","v":7.2347461420132264},{"$f":"IF('[2]MONE(M)CAPARD'!FR407=\"\",\"\",'[2]MONE(M)CAPARD'!FR407)","v":6.9240655288439257},{"$f":"IF('[2]MONE(M)CAPARD'!FV407=\"\",\"\",'[2]MONE(M)CAPARD'!FV407)","v":6.3654377642058391},{"$f":"IF('[2]MONE(M)CARD'!FV407=\"\",\"\",'[2]MONE(M)CARD'!FV407)","v":2622.4701907895587},{"$f":"IF('[2]MONE(M)CARD'!GD407=\"\",\"\",'[2]MONE(M)CARD'!GD407)","v":227.89576423673466},{"$f":"IF('[2]MONE(M)CARD'!GE407=\"\",\"\",'[2]MONE(M)CARD'!GE407)","v":19872.479267179777},16.682766768669509,{"$f":"IF('[9]II.2.Balance OSD-Activos'!J265=\"\",\"\",'[9]II.2.Balance OSD-Activos'!J265)","v":270.08213821988284},{"$f":"IF('[9]II.2.Balance OSD-Activos'!N265=\"\",\"\",'[9]II.2.Balance OSD-Activos'!N265)","v":2166.2153847305408},{"$f":"IF('[9]II.2.Balance OSD-Activos'!R265=\"\",\"\",'[9]II.2.Balance OSD-Activos'!R265)","v":69780.240851652983},{"$f":"IF('[9]II.2.Balance OSD-Activos'!S265=\"\",\"\",'[9]II.2.Balance OSD-Activos'!S265)","v":78512.901494530903},70050.32298987286,150729.43986913431,-0.90207551652647933,12.041473839106409,20.591661630995507,12.098143504020097,17.074960905588043,14.727685704963234,-0.53845290350309405,{"$f":"IF('[2]MONE(M)CAPARD'!GS407=\"\",\"\",'[2]MONE(M)CAPARD'!GS407)","v":39651.216442121549},{"$f":"IF('[2]MONE(M)CARD'!HA407=\"\",\"\",'[2]MONE(M)CAPARD'!HA407)","v":22834.865091909778},{"$f":"IF('[2]MONE(M)CAPARD'!HB407=\"\",\"\",'[2]MONE(M)CAPARD'!HB407)","v":16816.351350211771},"n.d.",{"$f":"IF('[10]II.2.Balance OSD-Activos'!J265=\"\",\"\",'[10]II.2.Balance OSD-Activos'!J265)","v":3184.6736711398835},{"$f":"IF('[10]II.2.Balance OSD-Activos'!N265=\"\",\"\",'[10]II.2.Balance OSD-Activos'!N265)","v":2999.1127329605406},{"$f":"IF('[10]II.2.Balance OSD-Activos'!R265=\"\",\"\",'[10]II.2.Balance OSD-Activos'!R265)","v":91979.271610872966},{"$f":"IF('[10]II.2.Balance OSD-Activos'!S265=\"\",\"\",'[10]II.2.Balance OSD-Activos'!S265)","v":107182.66956646091},95163.94528201285,205345.7275814343,16.712691175215475,9.9889136191968042,17.742336555396186,9.7699591934206964,13.062813686599316,11.681176862401866,-0.39508380883588146,{"$f":"IF('[2]MONE(M)CAPARD'!AS407=\"\",\"\",'[2]MONE(M)CAPARD'!AS407)","v":9},{"$f":"IF('[2]MONE(M)CAPARD'!AT407=\"\",\"\",'[2]MONE(M)CAPARD'!AT407)","v":"n.a."},{"$f":"IF('[2]MONE(M)CAPARD'!AU407=\"\",\"\",'[2]MONE(M)CAPARD'!AU407)","v":4.5},{"$f":"IF('[2]MONE(M)CAPARD'!AV407=\"\",\"\",'[2]MONE(M)CAPARD'!AV407)","v":3},{"$f":"IF('[2]MONE(M)CAPARD'!AW407=\"\",\"\",'[2]MONE(M)CAPARD'!AW407)","v":7},{"$f":"IF('[2]MONE(M)CAPARD'!AX407=\"\",\"\",'[2]MONE(M)CAPARD'!AX407)","v":8.5},{"$f":"IF('[2]MONE(M)CAPARD'!AY407=\"\",\"\",'[2]MONE(M)CAPARD'!AY407)","v":"n.a."},{"$f":"IF('[2]FISCAL(M)'!$K407=\"\",\"\",'[2]FISCAL(M)'!$K407)","v":-3199.8144532982224},{"$f":"IF('[2]FISCAL(M)'!$L407=\"\",\"\",'[2]FISCAL(M)'!$L407)","v":"n.d."},{"$f":"IF('[2]FISCAL(M)'!$AY407=\"\",\"\",'[2]FISCAL(M)'!$AY407)","v":208111.09277499327},{"$f":"IF('[2]FISCAL(M)'!$BI407=\"\",\"\",'[2]FISCAL(M)'!$BI407)","v":112314.61295513994},{"$f":"IF('[2]FISCAL(M)'!$BS407=\"\",\"\",'[2]FISCAL(M)'!$BS407)","v":95796.479819853324},{"$f":"IF('[2]FISCAL(M)'!$AZ407=\"\",\"\",'[2]FISCAL(M)'!$AZ407)","v":252274.50277499328},{"$f":"IF('[2]FISCAL(M)'!$BJ407=\"\",\"\",'[2]FISCAL(M)'!$BJ407)","v":119743.12295513993},{"$f":"IF('[2]FISCAL(M)'!$BT407=\"\",\"\",'[2]FISCAL(M)'!$BT407)","v":132531.37981985332},{"$f":"IF('[3]MONE(M)'!$AO407=\"\",\"\",'[3]MONE(M)'!$AO407)","v":23431163.644483566},{"$f":"IF('[4]MONE(M)'!$AO407=\"\",\"\",'[4]MONE(M)'!$AO407)","v":16956.450039370004},{"$f":"IF('[5]MONE(M)'!$AO407=\"\",\"\",'[5]MONE(M)'!$AO407)","v":292042.13491127721},{"$f":"+'[1]MONE(M)'!$AO407","v":557705.08958071703},{"$f":"IF('[6]MONE(M)'!$AO407=\"\",\"\",'[6]MONE(M)'!$AO407)","v":153009.63326827926},{"$f":"IF('[7]MONE(M)'!$AO407=\"\",\"\",'[7]MONE(M)'!$AO407)","v":1734807.6437010434},{"$f":"IF('[8]MONE(M)'!$AO407=\"\",\"\",'[8]MONE(M)'!$AO407)","v":55469.378378929992},{"$f":"IF(BY400=\"\",\"\",((BY400/BY388)-1)*100)","v":-7.2187283164837357E-2},{"$f":"IF(BZ400=\"\",\"\",((BZ400/BZ388)-1)*100)","v":10.428452257808463},{"$f":"IF(CA400=\"\",\"\",((CA400/CA388)-1)*100)","v":13.883783032182183},{"$f":"IF(CB400=\"\",\"\",((CB400/CB388)-1)*100)","v":19.898776205997159},{"$f":"IF(CC400=\"\",\"\",((CC400/CC388)-1)*100)","v":19.196757388590168},{"$f":"IF(CD400=\"\",\"\",((CD400/CD388)-1)*100)","v":16.105100367522105},{"$f":"IF(CE400=\"\",\"\",((CE400/CE388)-1)*100)","v":3.3048913136206393},{"$f":"'[2]FISCAL(M)'!$K407","v":-3199.8144532982224},{"$f":"+'[2]REAL(A)'!$AO$43","v":399483.89883321861},-0.80098708925290618,{"$f":"IF('[2]FISCAL(M)'!$L407=\"\",\"\",'[2]FISCAL(M)'!$L407)","v":"n.d."},{"$f":"+'[2]REAL(A)'!$AP$43","v":476740.89883321861},"n.d.",215983.7473276323,{"$f":"'[2]Gráfico REM'!BG401","v":50733.985523960822},{"$f":"'[2]Gráfico REM'!BH401","v":154154.91592950444},{"$f":"'[2]Gráfico REM'!BI401","v":11094.845874167051},10.835271889909649,0.77254593770310631,14.273076803894625,15.287533230929661,305683.87168002228,{"$f":"'[2]Gráfico REM'!BK401","v":54460.321208970825},{"$f":"'[2]Gráfico REM'!BL401","v":209624.29430843442},{"$f":"'[2]Gráfico REM'!BM401","v":41599.25616261705},9.9725717574409511,0.70820682967691617,11.150333002885283,17.874619620272682]
[2023,"marzo",{"$f":"A401&\"-\"&B401","v":"2023-marzo"},{"$f":"IF('[2]REAL IPC(M)'!$AL408=\"\",\"\",+'[2]REAL IPC(M)'!$AL408)","v":7.1096159237454382},{"$f":"IF('[2]REAL IPC(M)'!$BE408=\"\",\"\",+'[2]REAL IPC(M)'!$BE408)","v":6.002652355789051},{"$f":"IF('[2]REAL IPC(M)'!$AM408=\"\",\"\",+'[2]REAL IPC(M)'!$AM408)","v":6.2941926509795021},{"$f":"IF('[2]REAL IPC(M)'!$BI408=\"\",\"\",+'[2]REAL IPC(M)'!$BI408)","v":5.4746491308659939},{"$f":"IF('[2]REAL IMAE(M)'!BJ408=\"\",\"\",'[2]REAL IMAE(M)'!BJ408)","v":2.9259041899134308},{"$f":"IF('[2]REAL IMAE(M)'!BK408=\"\",\"\",'[2]REAL IMAE(M)'!BK408)","v":4.5924425065265506},{"$f":"IF('[2]REAL IMAE(M)'!BN408=\"\",\"\",'[2]REAL IMAE(M)'!BN408)","v":3.8257940258029421},{"$f":"IF('[2]REAL IMAE(M)'!BO408=\"\",\"\",'[2]REAL IMAE(M)'!BO408)","v":5.8320422593364896},{"$f":"IF('[2]EXT RIN(M)'!$K408=\"\",\"\",'[2]EXT RIN(M)'!$K408)","v":61004.510755131007},"",{"$f":"IF('[2]EXT RIN(M)'!$L408=\"\",\"\",'[2]EXT RIN(M)'!$L408)","v":67295.739860021014},"",{"$f":"IF('[2]MONE(M)CARD'!EG408=\"\",\"\",'[2]MONE(M)CARD'!EG408)","v":64612.803829532189},{"$f":"IF('[2]MONE(M)CARD'!EK408=\"\",\"\",'[2]MONE(M)CARD'!EK408)","v":77478.058727490381},{"$f":"IF('[2]MONE(M)CARD'!EP408=\"\",\"\",'[2]MONE(M)CARD'!EP408)","v":43553.181818161625},{"$f":"IF('[2]MONE(M)CARD'!ES408=\"\",\"\",'[2]MONE(M)CARD'!ES408)","v":10.690762560414303},{"$f":"IF('[2]MONE(M)CARD'!EV408=\"\",\"\",'[2]MONE(M)CARD'!EV408)","v":10.785743001829484},{"$f":"IF('[2]MONE(M)CARD'!EZ408=\"\",\"\",'[2]MONE(M)CARD'!EZ408)","v":8.836958316768829},{"$f":"IF('[2]MONE(M)CAPARD'!FC408=\"\",\"\",'[2]MONE(M)CAPARD'!FC408)","v":73629.320790872196},{"$f":"IF('[2]MONE(M)CAPARD'!FG408=\"\",\"\",'[2]MONE(M)CAPARD'!FG408)","v":106631.39068823041},{"$f":"IF('[2]MONE(M)CAPARD'!FL408=\"\",\"\",'[2]MONE(M)CAPARD'!FL408)","v":43553.181818161596},{"$f":"IF('[2]MONE(M)CAPARD'!FO408=\"\",\"\",'[2]MONE(M)CAPARD'!FO408)","v":8.5808723645737004},{"$f":"IF('[2]MONE(M)CAPARD'!FR408=\"\",\"\",'[2]MONE(M)CAPARD'!FR408)","v":8.4265419972910482},{"$f":"IF('[2]MONE(M)CAPARD'!FV408=\"\",\"\",'[2]MONE(M)CAPARD'!FV408)","v":7.3113981459450583},{"$f":"IF('[2]MONE(M)CARD'!FV408=\"\",\"\",'[2]MONE(M)CARD'!FV408)","v":2563.7421744256303},{"$f":"IF('[2]MONE(M)CARD'!GD408=\"\",\"\",'[2]MONE(M)CARD'!GD408)","v":228.28471177750592},{"$f":"IF('[2]MONE(M)CARD'!GE408=\"\",\"\",'[2]MONE(M)CARD'!GE408)","v":20933.105760645813},21.558982572004194,{"$f":"IF('[9]II.2.Balance OSD-Activos'!J266=\"\",\"\",'[9]II.2.Balance OSD-Activos'!J266)","v":265.18908867573987},{"$f":"IF('[9]II.2.Balance OSD-Activos'!N266=\"\",\"\",'[9]II.2.Balance OSD-Activos'!N266)","v":2280.4980689601903},{"$f":"IF('[9]II.2.Balance OSD-Activos'!R266=\"\",\"\",'[9]II.2.Balance OSD-Activos'!R266)","v":70809.947494841559},{"$f":"IF('[9]II.2.Balance OSD-Activos'!S266=\"\",\"\",'[9]II.2.Balance OSD-Activos'!S266)","v":80209.999898158509},71075.136583517306,153565.63455063599,-1.3578765400237947,13.184409857058066,28.047434006591775,13.246935493041967,18.785534386109816,16.247855315759786,1.5201696107965521,{"$f":"IF('[2]MONE(M)CAPARD'!GS408=\"\",\"\",'[2]MONE(M)CAPARD'!GS408)","v":40052.468511514722},{"$f":"IF('[2]MONE(M)CARD'!HA408=\"\",\"\",'[2]MONE(M)CAPARD'!HA408)","v":24581.75825788582},{"$f":"IF('[2]MONE(M)CAPARD'!HB408=\"\",\"\",'[2]MONE(M)CAPARD'!HB408)","v":15470.710253628902},"n.d.",{"$f":"IF('[10]II.2.Balance OSD-Activos'!J266=\"\",\"\",'[10]II.2.Balance OSD-Activos'!J266)","v":3175.345096425739},{"$f":"IF('[10]II.2.Balance OSD-Activos'!N266=\"\",\"\",'[10]II.2.Balance OSD-Activos'!N266)","v":3115.1249713801903},{"$f":"IF('[10]II.2.Balance OSD-Activos'!R266=\"\",\"\",'[10]II.2.Balance OSD-Activos'!R266)","v":92968.605172051553},{"$f":"IF('[10]II.2.Balance OSD-Activos'!S266=\"\",\"\",'[10]II.2.Balance OSD-Activos'!S266)","v":108959.50313987851},96143.950268477289,208218.57837973599,13.286531383381273,10.556495192644476,23.21212004626123,10.465572625587383,14.347845746974407,12.684792422022429,1.0036155596205631,{"$f":"IF('[2]MONE(M)CAPARD'!AS408=\"\",\"\",'[2]MONE(M)CAPARD'!AS408)","v":8.5},{"$f":"IF('[2]MONE(M)CAPARD'!AT408=\"\",\"\",'[2]MONE(M)CAPARD'!AT408)","v":"n.a."},{"$f":"IF('[2]MONE(M)CAPARD'!AU408=\"\",\"\",'[2]MONE(M)CAPARD'!AU408)","v":4.75},{"$f":"IF('[2]MONE(M)CAPARD'!AV408=\"\",\"\",'[2]MONE(M)CAPARD'!AV408)","v":3},{"$f":"IF('[2]MONE(M)CAPARD'!AW408=\"\",\"\",'[2]MONE(M)CAPARD'!AW408)","v":7},{"$f":"IF('[2]MONE(M)CAPARD'!AX408=\"\",\"\",'[2]MONE(M)CAPARD'!AX408)","v":8.5},{"$f":"IF('[2]MONE(M)CAPARD'!AY408=\"\",\"\",'[2]MONE(M)CAPARD'!AY408)","v":"n.a."},{"$f":"IF('[2]FISCAL(M)'!$K408=\"\",\"\",'[2]FISCAL(M)'!$K408)","v":-3472.3147373236657},{"$f":"IF('[2]FISCAL(M)'!$L408=\"\",\"\",'[2]FISCAL(M)'!$L408)","v":-5901.6147373236654},{"$f":"IF('[2]FISCAL(M)'!$AY408=\"\",\"\",'[2]FISCAL(M)'!$AY408)","v":210379.21048229584},{"$f":"IF('[2]FISCAL(M)'!$BI408=\"\",\"\",'[2]FISCAL(M)'!$BI408)","v":114664.05010502029},{"$f":"IF('[2]FISCAL(M)'!$BS408=\"\",\"\",'[2]FISCAL(M)'!$BS408)","v":95715.160377275562},{"$f":"IF('[2]FISCAL(M)'!$AZ408=\"\",\"\",'[2]FISCAL(M)'!$AZ408)","v":256277.9204822958},{"$f":"IF('[2]FISCAL(M)'!$BJ408=\"\",\"\",'[2]FISCAL(M)'!$BJ408)","v":122071.5301050203},{"$f":"IF('[2]FISCAL(M)'!$BT408=\"\",\"\",'[2]FISCAL(M)'!$BT408)","v":134206.39037727556},{"$f":"IF('[3]MONE(M)'!$AO408=\"\",\"\",'[3]MONE(M)'!$AO408)","v":23247324.597025208},{"$f":"IF('[4]MONE(M)'!$AO408=\"\",\"\",'[4]MONE(M)'!$AO408)","v":17058.033231599999},{"$f":"IF('[5]MONE(M)'!$AO408=\"\",\"\",'[5]MONE(M)'!$AO408)","v":294810.1701377047},{"$f":"+'[1]MONE(M)'!$AO408","v":566332.34752701828},{"$f":"IF('[6]MONE(M)'!$AO408=\"\",\"\",'[6]MONE(M)'!$AO408)","v":156207.93530834588},{"$f":"IF('[7]MONE(M)'!$AO408=\"\",\"\",'[7]MONE(M)'!$AO408)","v":1757917.6307911673},{"$f":"IF('[8]MONE(M)'!$AO408=\"\",\"\",'[8]MONE(M)'!$AO408)","v":55551.326766259997},{"$f":"IF(BY401=\"\",\"\",((BY401/BY389)-1)*100)","v":-2.1130287791460201},{"$f":"IF(BZ401=\"\",\"\",((BZ401/BZ389)-1)*100)","v":9.9900422024613356},{"$f":"IF(CA401=\"\",\"\",((CA401/CA389)-1)*100)","v":13.142355746492296},{"$f":"IF(CB401=\"\",\"\",((CB401/CB389)-1)*100)","v":20.73028487759214},{"$f":"IF(CC401=\"\",\"\",((CC401/CC389)-1)*100)","v":20.182084614297601},{"$f":"IF(CD401=\"\",\"\",((CD401/CD389)-1)*100)","v":15.556334673557281},{"$f":"IF(CE401=\"\",\"\",((CE401/CE389)-1)*100)","v":2.946007132210382},{"$f":"'[2]FISCAL(M)'!$K408","v":-3472.3147373236657},{"$f":"+'[2]REAL(A)'!$AO$43","v":399483.89883321861},-0.86920017238875746,{"$f":"IF('[2]FISCAL(M)'!$L408=\"\",\"\",'[2]FISCAL(M)'!$L408)","v":-5901.6147373236654},{"$f":"+'[2]REAL(A)'!$AP$43","v":476740.89883321861},-1.2379082121478036,218944.76318316348,{"$f":"'[2]Gráfico REM'!BG402","v":50889.950892786001},{"$f":"'[2]Gráfico REM'!BH402","v":156901.02412890267},{"$f":"'[2]Gráfico REM'!BI402","v":11153.788161474793},12.386010592514873,2.7267189878544817,15.667869868336881,15.84843032488077,309628.68403093348,{"$f":"'[2]Gráfico REM'!BK402","v":54654.122856046},{"$f":"'[2]Gráfico REM'!BL402","v":212452.35089516267},{"$f":"'[2]Gráfico REM'!BM402","v":42522.210279724794},11.821602714702051,2.933123968130924,12.047311657015936,24.373962645000937]
[2023,"abril",{"$f":"A402&\"-\"&B402","v":"2023-abril"},{"$f":"IF('[2]REAL IPC(M)'!$AL409=\"\",\"\",+'[2]REAL IPC(M)'!$AL409)","v":6.1969015492253865},{"$f":"IF('[2]REAL IPC(M)'!$BE409=\"\",\"\",+'[2]REAL IPC(M)'!$BE409)","v":5.9597396536388958},{"$f":"IF('[2]REAL IPC(M)'!$AM409=\"\",\"\",+'[2]REAL IPC(M)'!$AM409)","v":5.4566341183228007},{"$f":"IF('[2]REAL IPC(M)'!$BI409=\"\",\"\",+'[2]REAL IPC(M)'!$BI409)","v":5.4340283838246517},{"$f":"IF('[2]REAL IMAE(M)'!BJ409=\"\",\"\",'[2]REAL IMAE(M)'!BJ409)","v":2.9763761742981343},{"$f":"IF('[2]REAL IMAE(M)'!BK409=\"\",\"\",'[2]REAL IMAE(M)'!BK409)","v":4.5694167269460628},{"$f":"IF('[2]REAL IMAE(M)'!BN409=\"\",\"\",'[2]REAL IMAE(M)'!BN409)","v":3.8692231346913797},{"$f":"IF('[2]REAL IMAE(M)'!BO409=\"\",\"\",'[2]REAL IMAE(M)'!BO409)","v":5.8151170388257123},{"$f":"IF('[2]EXT RIN(M)'!$K409=\"\",\"\",'[2]EXT RIN(M)'!$K409)","v":63097.901653006156},"",{"$f":"IF('[2]EXT RIN(M)'!$L409=\"\",\"\",'[2]EXT RIN(M)'!$L409)","v":68983.392088106164},"",{"$f":"IF('[2]MONE(M)CARD'!EG409=\"\",\"\",'[2]MONE(M)CARD'!EG409)","v":65120.351228597916},{"$f":"IF('[2]MONE(M)CARD'!EK409=\"\",\"\",'[2]MONE(M)CARD'!EK409)","v":77869.761328430439},{"$f":"IF('[2]MONE(M)CARD'!EP409=\"\",\"\",'[2]MONE(M)CARD'!EP409)","v":43512.044557839952},{"$f":"IF('[2]MONE(M)CARD'!ES409=\"\",\"\",'[2]MONE(M)CARD'!ES409)","v":12.35984655955944},{"$f":"IF('[2]MONE(M)CARD'!EV409=\"\",\"\",'[2]MONE(M)CARD'!EV409)","v":11.310294960949708},{"$f":"IF('[2]MONE(M)CARD'!EZ409=\"\",\"\",'[2]MONE(M)CARD'!EZ409)","v":9.0105886518985212},{"$f":"IF('[2]MONE(M)CAPARD'!FC409=\"\",\"\",'[2]MONE(M)CAPARD'!FC409)","v":74116.717134017919},{"$f":"IF('[2]MONE(M)CAPARD'!FG409=\"\",\"\",'[2]MONE(M)CAPARD'!FG409)","v":106894.84326723042},{"$f":"IF('[2]MONE(M)CAPARD'!FL409=\"\",\"\",'[2]MONE(M)CAPARD'!FL409)","v":43512.044557839952},{"$f":"IF('[2]MONE(M)CAPARD'!FO409=\"\",\"\",'[2]MONE(M)CAPARD'!FO409)","v":10.148144726836295},{"$f":"IF('[2]MONE(M)CAPARD'!FR409=\"\",\"\",'[2]MONE(M)CAPARD'!FR409)","v":8.5690494537601367},{"$f":"IF('[2]MONE(M)CAPARD'!FV409=\"\",\"\",'[2]MONE(M)CAPARD'!FV409)","v":7.2478125082783063},{"$f":"IF('[2]MONE(M)CARD'!FV409=\"\",\"\",'[2]MONE(M)CARD'!FV409)","v":2562.2856844307275},{"$f":"IF('[2]MONE(M)CARD'!GD409=\"\",\"\",'[2]MONE(M)CARD'!GD409)","v":333.95921768171195},{"$f":"IF('[2]MONE(M)CARD'!GE409=\"\",\"\",'[2]MONE(M)CARD'!GE409)","v":21252.622621582315},21.556080326602476,{"$f":"IF('[9]II.2.Balance OSD-Activos'!J267=\"\",\"\",'[9]II.2.Balance OSD-Activos'!J267)","v":267.85538636733764},{"$f":"IF('[9]II.2.Balance OSD-Activos'!N267=\"\",\"\",'[9]II.2.Balance OSD-Activos'!N267)","v":2252.6669575042147},{"$f":"IF('[9]II.2.Balance OSD-Activos'!R267=\"\",\"\",'[9]II.2.Balance OSD-Activos'!R267)","v":71174.950598457013},{"$f":"IF('[9]II.2.Balance OSD-Activos'!S267=\"\",\"\",'[9]II.2.Balance OSD-Activos'!S267)","v":80916.516264741571},71442.805984824357,154611.98920707015,{"$f":"IF(OR(AF402=\"\",AF390=\"\"),\"\",((AF402/AF390)-1)*100)","v":-0.38537923578110256},{"$f":"IF(OR(AJ402=\"\",AJ390=\"\"),\"\",((AJ402/AJ390)-1)*100)","v":12.645707341349066},{"$f":"IF(OR(AG402=\"\",AG390=\"\"),\"\",((AG402/AG390)-1)*100)","v":32.773701278611696},{"$f":"IF(OR(AH402=\"\",AH390=\"\"),\"\",((AH402/AH390)-1)*100)","v":12.701190254621221},{"$f":"IF(OR(AI402=\"\",AI390=\"\"),\"\",((AI402/AI390)-1)*100)","v":18.930703476726162},{"$f":"IF(OR(AK402=\"\",AK390=\"\"),\"\",((AK402/AK390)-1)*100)","v":16.113521966067744},{"$f":"IF(OR(AQ402=\"\",AQ401=\"\"),\"\",AQ402-AQ401)","v":-0.13433334969204225},{"$f":"IF('[2]MONE(M)CAPARD'!GS409=\"\",\"\",'[2]MONE(M)CAPARD'!GS409)","v":40246.026187249641},{"$f":"IF('[2]MONE(M)CARD'!HA409=\"\",\"\",'[2]MONE(M)CAPARD'!HA409)","v":24712.246986262315},{"$f":"IF('[2]MONE(M)CAPARD'!HB409=\"\",\"\",'[2]MONE(M)CAPARD'!HB409)","v":15533.779200987326},"n.d.",{"$f":"IF('[10]II.2.Balance OSD-Activos'!J267=\"\",\"\",'[10]II.2.Balance OSD-Activos'!J267)","v":3175.2672775373376},{"$f":"IF('[10]II.2.Balance OSD-Activos'!N267=\"\",\"\",'[10]II.2.Balance OSD-Activos'!N267)","v":3104.1490001042148},{"$f":"IF('[10]II.2.Balance OSD-Activos'!R267=\"\",\"\",'[10]II.2.Balance OSD-Activos'!R267)","v":93384.92709233702},{"$f":"IF('[10]II.2.Balance OSD-Activos'!S267=\"\",\"\",'[10]II.2.Balance OSD-Activos'!S267)","v":109767.21887015158},{"$f":"IFERROR(+AW402+AY402,\"\")","v":96560.194369874356},{"$f":"IF(OR(AW402=\"\",AX402=\"\",AY402=\"\",AZ402=\"\"),\"\",SUM(AW402:AZ402))","v":209431.56224013015},{"$f":"IF(OR(AW402=\"\",AW390=\"\"),\"\",((AW402/AW390)-1)*100)","v":12.941313370472551},{"$f":"IF(OR(BA402=\"\",BA390=\"\"),\"\",((BA402/BA390)-1)*100)","v":10.173516329266263},{"$f":"IF(OR(AX402=\"\",AX390=\"\"),\"\",((AX402/AX390)-1)*100)","v":25.568494127875141},{"$f":"IF(OR(AY402=\"\",AY390=\"\"),\"\",((AY402/AY390)-1)*100)","v":10.081788653716472},{"$f":"IF(OR(AZ402=\"\",AZ390=\"\"),\"\",((AZ402/AZ390)-1)*100)","v":14.464169568633412},{"$f":"IF(OR(BB402=\"\",BB390=\"\"),\"\",((BB402/BB390)-1)*100)","v":12.590110723185299},{"$f":"IF(OR(BH402=\"\",BH401=\"\"),\"\",BH402-BH401)","v":-9.4681698837129957E-2},{"$f":"IF('[2]MONE(M)CAPARD'!AS409=\"\",\"\",'[2]MONE(M)CAPARD'!AS409)","v":7.5},{"$f":"IF('[2]MONE(M)CAPARD'!AT409=\"\",\"\",'[2]MONE(M)CAPARD'!AT409)","v":"n.a."},{"$f":"IF('[2]MONE(M)CAPARD'!AU409=\"\",\"\",'[2]MONE(M)CAPARD'!AU409)","v":5},{"$f":"IF('[2]MONE(M)CAPARD'!AV409=\"\",\"\",'[2]MONE(M)CAPARD'!AV409)","v":3},{"$f":"IF('[2]MONE(M)CAPARD'!AW409=\"\",\"\",'[2]MONE(M)CAPARD'!AW409)","v":7},{"$f":"IF('[2]MONE(M)CAPARD'!AX409=\"\",\"\",'[2]MONE(M)CAPARD'!AX409)","v":8.5},{"$f":"IF('[2]MONE(M)CAPARD'!AY409=\"\",\"\",'[2]MONE(M)CAPARD'!AY409)","v":"n.a."},{"$f":"IF('[2]FISCAL(M)'!$K409=\"\",\"\",'[2]FISCAL(M)'!$K409)","v":-2452.4229659235539},{"$f":"IF('[2]FISCAL(M)'!$L409=\"\",\"\",'[2]FISCAL(M)'!$L409)","v":"n.d."},{"$f":"IF('[2]FISCAL(M)'!$AY409=\"\",\"\",'[2]FISCAL(M)'!$AY409)","v":205713.81605672173},{"$f":"IF('[2]FISCAL(M)'!$BI409=\"\",\"\",'[2]FISCAL(M)'!$BI409)","v":108398.48944395817},{"$f":"IF('[2]FISCAL(M)'!$BS409=\"\",\"\",'[2]FISCAL(M)'!$BS409)","v":97315.326612763558},{"$f":"IF('[2]FISCAL(M)'!$AZ409=\"\",\"\",'[2]FISCAL(M)'!$AZ409)","v":251174.13605672173},{"$f":"IF('[2]FISCAL(M)'!$BJ409=\"\",\"\",'[2]FISCAL(M)'!$BJ409)","v":115391.63944395816},{"$f":"IF('[2]FISCAL(M)'!$BT409=\"\",\"\",'[2]FISCAL(M)'!$BT409)","v":135782.49661276356},{"$f":"IF('[3]MONE(M)'!$AO409=\"\",\"\",'[3]MONE(M)'!$AO409)","v":23434302.762179948},{"$f":"IF('[4]MONE(M)'!$AO409=\"\",\"\",'[4]MONE(M)'!$AO409)","v":17168.722167619999},{"$f":"IF('[5]MONE(M)'!$AO409=\"\",\"\",'[5]MONE(M)'!$AO409)","v":297498.43168199057},{"$f":"+'[1]MONE(M)'!$AO409","v":570844.19966296526},{"$f":"IF('[6]MONE(M)'!$AO409=\"\",\"\",'[6]MONE(M)'!$AO409)","v":157657.51531033614},{"$f":"IF('[7]MONE(M)'!$AO409=\"\",\"\",'[7]MONE(M)'!$AO409)","v":1771684.3615093236},{"$f":"IF('[8]MONE(M)'!$AO409=\"\",\"\",'[8]MONE(M)'!$AO409)","v":55704.456527370014},-2.142467874042453,9.3708393147812643,13.026716445123498,20.448241560330228,20.044401484283792,15.399049502028106,2.858757788310351,{"$f":"'[2]FISCAL(M)'!$K409","v":-2452.4229659235539},{"$f":"+'[2]REAL(A)'!$AO$43","v":399483.89883321861},{"$f":"IF(OR(CM402=\"n.d.\",CM402=\"\",CN402=\"\",CN402=\"n.d.\"),\"\",(CM402/CN402)*100)","v":-0.61389782494022904},{"$f":"IF('[2]FISCAL(M)'!$L409=\"\",\"\",'[2]FISCAL(M)'!$L409)","v":"n.d."},{"$f":"+'[2]REAL(A)'!$AP$43","v":476740.89883321861},"n.d.",220590.90505793219,{"$f":"'[2]Gráfico REM'!BG403","v":51285.595741577592},{"$f":"'[2]Gráfico REM'!BH403","v":158009.74797977888},{"$f":"'[2]Gráfico REM'!BI403","v":11295.561336575716},12.715107889830147,3.9775266580031277,15.479643032425084,18.231384774976899,311555.09429276217,{"$f":"'[2]Gráfico REM'!BK403","v":55166.017981217592},{"$f":"'[2]Gráfico REM'!BL403","v":213714.20450714888},{"$f":"'[2]Gráfico REM'!BM403","v":42674.871804395705},10.593677550424751,3.7910159202568128,11.900834843583596,13.572266760919671]
[2023,"mayo ","2023-mayo ",{"$f":"IF('[2]REAL IPC(M)'!$AL410=\"\",\"\",+'[2]REAL IPC(M)'!$AL410)","v":5.0610628231928745},{"$f":"IF('[2]REAL IPC(M)'!$BE410=\"\",\"\",+'[2]REAL IPC(M)'!$BE410)","v":5.9135267261197333},{"$f":"IF('[2]REAL IPC(M)'!$AM410=\"\",\"\",+'[2]REAL IPC(M)'!$AM410)","v":4.399544678429157},{"$f":"IF('[2]REAL IPC(M)'!$BI410=\"\",\"\",+'[2]REAL IPC(M)'!$BI410)","v":5.3903186529496327},{"$f":"IF('[2]REAL IMAE(M)'!BJ410=\"\",\"\",'[2]REAL IMAE(M)'!BJ410)","v":3.4599846065564988},{"$f":"IF('[2]REAL IMAE(M)'!BK410=\"\",\"\",'[2]REAL IMAE(M)'!BK410)","v":4.546640185572004},{"$f":"IF('[2]REAL IMAE(M)'!BN410=\"\",\"\",'[2]REAL IMAE(M)'!BN410)","v":4.2371273745049232},{"$f":"IF('[2]REAL IMAE(M)'!BO410=\"\",\"\",'[2]REAL IMAE(M)'!BO410)","v":5.7971396376879758},{"$f":"IF('[2]EXT RIN(M)'!$K410=\"\",\"\",'[2]EXT RIN(M)'!$K410)","v":62897.197005862618},"",{"$f":"IF('[2]EXT RIN(M)'!$L410=\"\",\"\",'[2]EXT RIN(M)'!$L410)","v":68785.669963922614},"",{"$f":"IF('[2]MONE(M)CARD'!EG410=\"\",\"\",'[2]MONE(M)CARD'!EG410)","v":65052.853812268702},{"$f":"IF('[2]MONE(M)CARD'!EK410=\"\",\"\",'[2]MONE(M)CARD'!EK410)","v":79023.501708965545},{"$f":"IF('[2]MONE(M)CARD'!EP410=\"\",\"\",'[2]MONE(M)CARD'!EP410)","v":43644.70988778153},{"$f":"IF('[2]MONE(M)CARD'!ES410=\"\",\"\",'[2]MONE(M)CARD'!ES410)","v":14.624263354644018},{"$f":"IF('[2]MONE(M)CARD'!EV410=\"\",\"\",'[2]MONE(M)CARD'!EV410)","v":13.141303002157279},{"$f":"IF('[2]MONE(M)CARD'!EZ410=\"\",\"\",'[2]MONE(M)CARD'!EZ410)","v":10.038727561807704},{"$f":"IF('[2]MONE(M)CAPARD'!FC410=\"\",\"\",'[2]MONE(M)CAPARD'!FC410)","v":73863.506037458705},{"$f":"IF('[2]MONE(M)CAPARD'!FG410=\"\",\"\",'[2]MONE(M)CAPARD'!FG410)","v":108006.4751162755},{"$f":"IF('[2]MONE(M)CAPARD'!FL410=\"\",\"\",'[2]MONE(M)CAPARD'!FL410)","v":43644.70988778153},{"$f":"IF('[2]MONE(M)CAPARD'!FO410=\"\",\"\",'[2]MONE(M)CAPARD'!FO410)","v":12.015751969309484},{"$f":"IF('[2]MONE(M)CAPARD'!FR410=\"\",\"\",'[2]MONE(M)CAPARD'!FR410)","v":9.795231224193035},{"$f":"IF('[2]MONE(M)CAPARD'!FV410=\"\",\"\",'[2]MONE(M)CAPARD'!FV410)","v":7.9543537210468918},{"$f":"IF('[2]MONE(M)CARD'!FV410=\"\",\"\",'[2]MONE(M)CARD'!FV410)","v":2578.016705960631},{"$f":"IF('[2]MONE(M)CARD'!GD410=\"\",\"\",'[2]MONE(M)CARD'!GD410)","v":203.90791736271339},{"$f":"IF('[2]MONE(M)CARD'!GE410=\"\",\"\",'[2]MONE(M)CARD'!GE410)","v":21423.704758022337},{"$f":"IF(AD403=\"\",\"\",((AD403/AD390)-1)*100)","v":16.627922732950729},{"$f":"IF('[9]II.2.Balance OSD-Activos'!J268=\"\",\"\",'[9]II.2.Balance OSD-Activos'!J268)","v":253.33231906373726},{"$f":"IF('[9]II.2.Balance OSD-Activos'!N268=\"\",\"\",'[9]II.2.Balance OSD-Activos'!N268)","v":2310.1071319140892},{"$f":"IF('[9]II.2.Balance OSD-Activos'!R268=\"\",\"\",'[9]II.2.Balance OSD-Activos'!R268)","v":71807.791368282982},{"$f":"IF('[9]II.2.Balance OSD-Activos'!S268=\"\",\"\",'[9]II.2.Balance OSD-Activos'!S268)","v":81996.294943613291},{"$f":"IFERROR(+AF403+AH403,\"\")","v":72061.123687346713},{"$f":"IF(OR(AF403=\"\",AG403=\"\",AH403=\"\",AI403=\"\"),\"\",SUM(AF403:AI403))","v":156367.52576287411},{"$f":"IF(OR(AF403=\"\",AF391=\"\"),\"\",((AF403/AF391)-1)*100)","v":-4.6923772893277649},{"$f":"IF(OR(AJ403=\"\",AJ391=\"\"),\"\",((AJ403/AJ391)-1)*100)","v":13.136135414881878},{"$f":"IF(OR(AG403=\"\",AG391=\"\"),\"\",((AG403/AG391)-1)*100)","v":38.726507255367594},{"$f":"IF(OR(AH403=\"\",AH391=\"\"),\"\",((AH403/AH391)-1)*100)","v":13.210848135551888},{"$f":"IF(OR(AI403=\"\",AI391=\"\"),\"\",((AI403/AI391)-1)*100)","v":19.714596899888235},{"$f":"IF(OR(AK403=\"\",AK391=\"\"),\"\",((AK403/AK391)-1)*100)","v":16.820736573398555},{"$f":"IF(OR(AQ403=\"\",AQ402=\"\"),\"\",AQ403-AQ402)","v":0.70721460733081187},{"$f":"IF('[2]MONE(M)CAPARD'!GS410=\"\",\"\",'[2]MONE(M)CAPARD'!GS410)","v":40411.655484479801},{"$f":"IF('[2]MONE(M)CARD'!HA410=\"\",\"\",'[2]MONE(M)CAPARD'!HA410)","v":24532.853785132338},{"$f":"IF('[2]MONE(M)CAPARD'!HB410=\"\",\"\",'[2]MONE(M)CAPARD'!HB410)","v":15878.801699347463},"n.d.",{"$f":"IF('[10]II.2.Balance OSD-Activos'!J268=\"\",\"\",'[10]II.2.Balance OSD-Activos'!J268)","v":3172.4089309237365},{"$f":"IF('[10]II.2.Balance OSD-Activos'!N268=\"\",\"\",'[10]II.2.Balance OSD-Activos'!N268)","v":3164.517168814089},{"$f":"IF('[10]II.2.Balance OSD-Activos'!R268=\"\",\"\",'[10]II.2.Balance OSD-Activos'!R268)","v":94239.939316132979},{"$f":"IF('[10]II.2.Balance OSD-Activos'!S268=\"\",\"\",'[10]II.2.Balance OSD-Activos'!S268)","v":110946.15116531329},{"$f":"IFERROR(+AW403+AY403,\"\")","v":97412.348247056711},{"$f":"IF(OR(AW403=\"\",AX403=\"\",AY403=\"\",AZ403=\"\"),\"\",SUM(AW403:AZ403))","v":211523.01658118411},{"$f":"IF(OR(AW403=\"\",AW391=\"\"),\"\",((AW403/AW391)-1)*100)","v":12.48274382504273},{"$f":"IF(OR(BA403=\"\",BA391=\"\"),\"\",((BA403/BA391)-1)*100)","v":10.837853187415902},{"$f":"IF(OR(AX403=\"\",AX391=\"\"),\"\",((AX403/AX391)-1)*100)","v":29.914232462905986},{"$f":"IF(OR(AY403=\"\",AY391=\"\"),\"\",((AY403/AY391)-1)*100)","v":10.783317642123723},{"$f":"IF(OR(AZ403=\"\",AZ391=\"\"),\"\",((AZ403/AZ391)-1)*100)","v":15.08432596072209},{"$f":"IF(OR(BB403=\"\",BB391=\"\"),\"\",((BB403/BB391)-1)*100)","v":13.279087294083535},{"$f":"IF(OR(BH403=\"\",BH402=\"\"),\"\",BH403-BH402)","v":0.68897657089823561},{"$f":"IF('[2]MONE(M)CAPARD'!AS410=\"\",\"\",'[2]MONE(M)CAPARD'!AS410)","v":7.5},{"$f":"IF('[2]MONE(M)CAPARD'!AT410=\"\",\"\",'[2]MONE(M)CAPARD'!AT410)","v":"n.a."},{"$f":"IF('[2]MONE(M)CAPARD'!AU410=\"\",\"\",'[2]MONE(M)CAPARD'!AU410)","v":5},{"$f":"IF('[2]MONE(M)CAPARD'!AV410=\"\",\"\",'[2]MONE(M)CAPARD'!AV410)","v":3},{"$f":"IF('[2]MONE(M)CAPARD'!AW410=\"\",\"\",'[2]MONE(M)CAPARD'!AW410)","v":7},{"$f":"IF('[2]MONE(M)CAPARD'!AX410=\"\",\"\",'[2]MONE(M)CAPARD'!AX410)","v":8.5},{"$f":"IF('[2]MONE(M)CAPARD'!AY410=\"\",\"\",'[2]MONE(M)CAPARD'!AY410)","v":"n.a."},{"$f":"IF('[2]FISCAL(M)'!$K410=\"\",\"\",'[2]FISCAL(M)'!$K410)","v":-3082.9364675818683},{"$f":"IF('[2]FISCAL(M)'!$L410=\"\",\"\",'[2]FISCAL(M)'!$L410)","v":"n.d."},{"$f":"IF('[2]FISCAL(M)'!$AY410=\"\",\"\",'[2]FISCAL(M)'!$AY410)","v":206099.85214131034},{"$f":"IF('[2]FISCAL(M)'!$BI410=\"\",\"\",'[2]FISCAL(M)'!$BI410)","v":109003.91888267844},{"$f":"IF('[2]FISCAL(M)'!$BS410=\"\",\"\",'[2]FISCAL(M)'!$BS410)","v":97095.933258631936},{"$f":"IF('[2]FISCAL(M)'!$AZ410=\"\",\"\",'[2]FISCAL(M)'!$AZ410)","v":251482.11214131038},{"$f":"IF('[2]FISCAL(M)'!$BJ410=\"\",\"\",'[2]FISCAL(M)'!$BJ410)","v":115992.06888267843},{"$f":"IF('[2]FISCAL(M)'!$BT410=\"\",\"\",'[2]FISCAL(M)'!$BT410)","v":135490.04325863192},{"$f":"IF('[3]MONE(M)'!$AO410=\"\",\"\",'[3]MONE(M)'!$AO410)","v":23608417.518974811},{"$f":"IF('[4]MONE(M)'!$AO410=\"\",\"\",'[4]MONE(M)'!$AO410)","v":17223.377795250002},{"$f":"IF('[5]MONE(M)'!$AO410=\"\",\"\",'[5]MONE(M)'!$AO410)","v":299975.68009304604},{"$f":"+'[1]MONE(M)'!$AO410","v":578624.21881661273},{"$f":"IF('[6]MONE(M)'!$AO410=\"\",\"\",'[6]MONE(M)'!$AO410)","v":159208.59435130982},{"$f":"IF('[7]MONE(M)'!$AO410=\"\",\"\",'[7]MONE(M)'!$AO410)","v":1804669.4340222101},{"$f":"IF('[8]MONE(M)'!$AO410=\"\",\"\",'[8]MONE(M)'!$AO410)","v":56039.246143830002},{"$f":"IF(BY403=\"\",\"\",((BY403/BY391)-1)*100)","v":-2.7162611477381082},{"$f":"IF(BZ403=\"\",\"\",((BZ403/BZ391)-1)*100)","v":8.8697825554420184},{"$f":"IF(CA403=\"\",\"\",((CA403/CA391)-1)*100)","v":12.644125414914441},{"$f":"IF(CB403=\"\",\"\",((CB403/CB391)-1)*100)","v":20.454481209667176},{"$f":"IF(CC403=\"\",\"\",((CC403/CC391)-1)*100)","v":19.034865863852236},{"$f":"IF(CD403=\"\",\"\",((CD403/CD391)-1)*100)","v":15.594392508400311},{"$f":"IF(CE403=\"\",\"\",((CE403/CE391)-1)*100)","v":3.4148060518170764},{"$f":"'[2]FISCAL(M)'!$K410","v":-3082.9364675818683},{"$f":"+'[2]REAL(A)'!$AO$43","v":399483.89883321861},-0.77172984357724272,{"$f":"IF('[2]FISCAL(M)'!$L410=\"\",\"\",'[2]FISCAL(M)'!$L410)","v":"n.d."},{"$f":"+'[2]REAL(A)'!$AP$43","v":476740.89883321861},"n.d.",{"$f":"+IF(OR(CT403=\"\",+CU403=\"\",+CV403=\"\"),\"\",(CT403+CU403+CV403))","v":223110.87848208647},{"$f":"'[2]Gráfico REM'!BG404","v":51933.801176881003},{"$f":"'[2]Gráfico REM'!BH404","v":159795.29006425611},{"$f":"'[2]Gráfico REM'!BI404","v":11381.787240949343},{"$f":"IFERROR(+((CS403/CS391)-1)*100,\"\")","v":13.809570647571402},{"$f":"IFERROR(+((CT403/CT391)-1)*100,\"\")","v":5.6815076054270053},{"$f":"IFERROR(+((CU403/CU391)-1)*100,\"\")","v":16.258884694855148},{"$f":"IFERROR(+((CV403/CV391)-1)*100,\"\")","v":20.45300788539981},{"$f":"+IF(OR(DB403=\"\",+DC403=\"\",+DD403=\"\"),\"\",(DB403+DC403+DD403))","v":314579.40646541648},{"$f":"'[2]Gráfico REM'!BK404","v":55922.268077001005},{"$f":"'[2]Gráfico REM'!BL404","v":215834.53620808612},{"$f":"'[2]Gráfico REM'!BM404","v":42822.602180329341},{"$f":"IFERROR(+((DA403/DA391)-1)*100,\"\")","v":11.413405547739508},{"$f":"IFERROR(+((DB403/DB391)-1)*100,\"\")","v":5.413913175699836},{"$f":"IFERROR(+((DC403/DC391)-1)*100,\"\")","v":12.62698343823021},{"$f":"IFERROR(+((DD403/DD391)-1)*100,\"\")","v":13.688854540733431}]
[2023,"junio ","2023-junio ",{"$f":"IF('[2]REAL IPC(M)'!$AL411=\"\",\"\",+'[2]REAL IPC(M)'!$AL411)","v":4.0685341310851442},{"$f":"IF('[2]REAL IPC(M)'!$BE411=\"\",\"\",+'[2]REAL IPC(M)'!$BE411)","v":5.8651881630592539},{"$f":"IF('[2]REAL IPC(M)'!$AM411=\"\",\"\",+'[2]REAL IPC(M)'!$AM411)","v":3.3989870568373881},{"$f":"IF('[2]REAL IPC(M)'!$BI411=\"\",\"\",+'[2]REAL IPC(M)'!$BI411)","v":5.3447128854730908},{"$f":"IF('[2]REAL IMAE(M)'!BJ411=\"\",\"\",'[2]REAL IMAE(M)'!BJ411)","v":3.8655020108833815},{"$f":"IF('[2]REAL IMAE(M)'!BK411=\"\",\"\",'[2]REAL IMAE(M)'!BK411)","v":4.5243062353592212},{"$f":"IF('[2]REAL IMAE(M)'!BN411=\"\",\"\",'[2]REAL IMAE(M)'!BN411)","v":4.7664144692641353},{"$f":"IF('[2]REAL IMAE(M)'!BO411=\"\",\"\",'[2]REAL IMAE(M)'!BO411)","v":5.7783910058257115},{"$f":"IF('[2]EXT RIN(M)'!$K411=\"\",\"\",'[2]EXT RIN(M)'!$K411)","v":63958.160444881643},"",{"$f":"IF('[2]EXT RIN(M)'!$L411=\"\",\"\",'[2]EXT RIN(M)'!$L411)","v":69374.824790071638},"",{"$f":"IF('[2]MONE(M)CARD'!EG411=\"\",\"\",'[2]MONE(M)CARD'!EG411)","v":65113.548086455296},{"$f":"IF('[2]MONE(M)CARD'!EK411=\"\",\"\",'[2]MONE(M)CARD'!EK411)","v":80141.720063587156},{"$f":"IF('[2]MONE(M)CARD'!EP411=\"\",\"\",'[2]MONE(M)CARD'!EP411)","v":43173.80454517281},{"$f":"IF('[2]MONE(M)CARD'!ES411=\"\",\"\",'[2]MONE(M)CARD'!ES411)","v":14.381798731017238},{"$f":"IF('[2]MONE(M)CARD'!EV411=\"\",\"\",'[2]MONE(M)CARD'!EV411)","v":13.834879697247215},{"$f":"IF('[2]MONE(M)CARD'!EZ411=\"\",\"\",'[2]MONE(M)CARD'!EZ411)","v":10.374357775498066},{"$f":"IF('[2]MONE(M)CAPARD'!FC411=\"\",\"\",'[2]MONE(M)CAPARD'!FC411)","v":74034.305146835293},{"$f":"IF('[2]MONE(M)CAPARD'!FG411=\"\",\"\",'[2]MONE(M)CAPARD'!FG411)","v":109162.85427700715},{"$f":"IF('[2]MONE(M)CAPARD'!FL411=\"\",\"\",'[2]MONE(M)CAPARD'!FL411)","v":43173.80454517281},{"$f":"IF('[2]MONE(M)CAPARD'!FO411=\"\",\"\",'[2]MONE(M)CAPARD'!FO411)","v":11.41579542799558},{"$f":"IF('[2]MONE(M)CAPARD'!FR411=\"\",\"\",'[2]MONE(M)CAPARD'!FR411)","v":10.198617374517349},{"$f":"IF('[2]MONE(M)CAPARD'!FV411=\"\",\"\",'[2]MONE(M)CAPARD'!FV411)","v":8.1256662597690941},{"$f":"IF('[2]MONE(M)CARD'!FV411=\"\",\"\",'[2]MONE(M)CARD'!FV411)","v":2572.4469039395467},{"$f":"IF('[2]MONE(M)CARD'!GD411=\"\",\"\",'[2]MONE(M)CARD'!GD411)","v":230.77511555007146},{"$f":"IF('[2]MONE(M)CARD'!GE411=\"\",\"\",'[2]MONE(M)CARD'!GE411)","v":22217.165399860594},22.336539098141863,{"$f":"IF('[9]II.2.Balance OSD-Activos'!J269=\"\",\"\",'[9]II.2.Balance OSD-Activos'!J269)","v":271.57312733077083},{"$f":"IF('[9]II.2.Balance OSD-Activos'!N269=\"\",\"\",'[9]II.2.Balance OSD-Activos'!N269)","v":2356.3282466823835},{"$f":"IF('[9]II.2.Balance OSD-Activos'!R269=\"\",\"\",'[9]II.2.Balance OSD-Activos'!R269)","v":72580.858664849875},{"$f":"IF('[9]II.2.Balance OSD-Activos'!S269=\"\",\"\",'[9]II.2.Balance OSD-Activos'!S269)","v":82612.661585985392},72852.431792180651,157821.42162484842,-1.1035376879874659,13.315275028688301,25.385660464711023,13.377124910746275,19.056363759880401,16.421302376752745,-0.39943419664581015,{"$f":"IF('[2]MONE(M)CAPARD'!GS411=\"\",\"\",'[2]MONE(M)CAPARD'!GS411)","v":40076.815111485084},{"$f":"IF('[2]MONE(M)CARD'!HA411=\"\",\"\",'[2]MONE(M)CAPARD'!HA411)","v":25505.961587730595},{"$f":"IF('[2]MONE(M)CAPARD'!HB411=\"\",\"\",'[2]MONE(M)CAPARD'!HB411)","v":14570.853523754489},"n.d.",{"$f":"IF('[10]II.2.Balance OSD-Activos'!J269=\"\",\"\",'[10]II.2.Balance OSD-Activos'!J269)","v":3241.6448209707705},{"$f":"IF('[10]II.2.Balance OSD-Activos'!N269=\"\",\"\",'[10]II.2.Balance OSD-Activos'!N269)","v":3222.5035482823837},{"$f":"IF('[10]II.2.Balance OSD-Activos'!R269=\"\",\"\",'[10]II.2.Balance OSD-Activos'!R269)","v":95018.061569069876},{"$f":"IF('[10]II.2.Balance OSD-Activos'!S269=\"\",\"\",'[10]II.2.Balance OSD-Activos'!S269)","v":111691.41265396538},98259.70639004065,213173.62259228842,11.141822361134967,10.67296597103855,18.99901937524502,10.657040193757839,14.696794559212712,12.86697709481861,-0.41211019926492476,{"$f":"IF('[2]MONE(M)CAPARD'!AS411=\"\",\"\",'[2]MONE(M)CAPARD'!AS411)","v":7},{"$f":"IF('[2]MONE(M)CAPARD'!AT411=\"\",\"\",'[2]MONE(M)CAPARD'!AT411)","v":"n.a."},{"$f":"IF('[2]MONE(M)CAPARD'!AU411=\"\",\"\",'[2]MONE(M)CAPARD'!AU411)","v":5},{"$f":"IF('[2]MONE(M)CAPARD'!AV411=\"\",\"\",'[2]MONE(M)CAPARD'!AV411)","v":3},{"$f":"IF('[2]MONE(M)CAPARD'!AW411=\"\",\"\",'[2]MONE(M)CAPARD'!AW411)","v":7},{"$f":"IF('[2]MONE(M)CAPARD'!AX411=\"\",\"\",'[2]MONE(M)CAPARD'!AX411)","v":8},{"$f":"IF('[2]MONE(M)CAPARD'!AY411=\"\",\"\",'[2]MONE(M)CAPARD'!AY411)","v":"n.a."},{"$f":"IF('[2]FISCAL(M)'!$K411=\"\",\"\",'[2]FISCAL(M)'!$K411)","v":-3349.1558540255619},{"$f":"IF('[2]FISCAL(M)'!$L411=\"\",\"\",'[2]FISCAL(M)'!$L411)","v":-6997.2558540255613},{"$f":"IF('[2]FISCAL(M)'!$AY411=\"\",\"\",'[2]FISCAL(M)'!$AY411)","v":206173.62643099562},{"$f":"IF('[2]FISCAL(M)'!$BI411=\"\",\"\",'[2]FISCAL(M)'!$BI411)","v":108161.50696890449},{"$f":"IF('[2]FISCAL(M)'!$BS411=\"\",\"\",'[2]FISCAL(M)'!$BS411)","v":98012.119462091156},{"$f":"IF('[2]FISCAL(M)'!$AZ411=\"\",\"\",'[2]FISCAL(M)'!$AZ411)","v":251910.59643099562},{"$f":"IF('[2]FISCAL(M)'!$BJ411=\"\",\"\",'[2]FISCAL(M)'!$BJ411)","v":115544.49696890448},{"$f":"IF('[2]FISCAL(M)'!$BT411=\"\",\"\",'[2]FISCAL(M)'!$BT411)","v":136366.09946209114},{"$f":"IF('[3]MONE(M)'!$AO411=\"\",\"\",'[3]MONE(M)'!$AO411)","v":23734259.336434342},{"$f":"IF('[4]MONE(M)'!$AO411=\"\",\"\",'[4]MONE(M)'!$AO411)","v":17241.692546679998},{"$f":"IF('[5]MONE(M)'!$AO411=\"\",\"\",'[5]MONE(M)'!$AO411)","v":303239.95684015541},{"$f":"+'[1]MONE(M)'!$AO411","v":584313.60813189065},{"$f":"IF('[6]MONE(M)'!$AO411=\"\",\"\",'[6]MONE(M)'!$AO411)","v":160286.43664646923},{"$f":"IF('[7]MONE(M)'!$AO411=\"\",\"\",'[7]MONE(M)'!$AO411)","v":1879020.2172281011},{"$f":"IF('[8]MONE(M)'!$AO411=\"\",\"\",'[8]MONE(M)'!$AO411)","v":56252.413744769998},-2.9344927528021869,7.125370971611078,12.318201991406475,20.838830805399144,{"$f":"IF(CC404=\"\",\"\",((CC404/CC392)-1)*100)","v":18.631188001561071},{"$f":"IF(CD404=\"\",\"\",((CD404/CD392)-1)*100)","v":18.258681989478596},{"$f":"IF(CE404=\"\",\"\",((CE404/CE392)-1)*100)","v":3.1555180093886026},{"$f":"'[2]FISCAL(M)'!$K411","v":-3349.1558540255619},{"$f":"+'[2]REAL(A)'!$AO$43","v":399483.89883321861},-0.83837067371363772,{"$f":"IF('[2]FISCAL(M)'!$L411=\"\",\"\",'[2]FISCAL(M)'!$L411)","v":-6997.2558540255613},{"$f":"+'[2]REAL(A)'!$AP$43","v":476740.89883321861},-1.4677272017464265,223814.85643919173,{"$f":"'[2]Gráfico REM'!BG405","v":51167.723370990418},{"$f":"'[2]Gráfico REM'!BH405","v":161252.23662066105},{"$f":"'[2]Gráfico REM'!BI405","v":11394.89644754025},12.727485129866434,3.0767952937363896,16.124256449302997,13.46255572018662,315979.08972556167,{"$f":"'[2]Gráfico REM'!BK405","v":54998.333543810419},{"$f":"'[2]Gráfico REM'!BL405","v":217504.65036543104},{"$f":"'[2]Gráfico REM'!BM405","v":43476.105816320247},10.56722115847062,2.7673078459740763,12.467427518873443,11.852121951043749]
[2023,"julio","2023-julio",{"$f":"IF('[2]REAL IPC(M)'!$AL412=\"\",\"\",+'[2]REAL IPC(M)'!$AL412)","v":3.5558193492688517},{"$f":"IF('[2]REAL IPC(M)'!$BE412=\"\",\"\",+'[2]REAL IPC(M)'!$BE412)","v":5.8158226404094293},{"$f":"IF('[2]REAL IPC(M)'!$AM412=\"\",\"\",+'[2]REAL IPC(M)'!$AM412)","v":3.1284978732930346},{"$f":"IF('[2]REAL IPC(M)'!$BI412=\"\",\"\",+'[2]REAL IPC(M)'!$BI412)","v":5.2983106522410894},{"$f":"IF('[2]REAL IMAE(M)'!BJ412=\"\",\"\",'[2]REAL IMAE(M)'!BJ412)","v":4.011362491595194},{"$f":"IF('[2]REAL IMAE(M)'!BK412=\"\",\"\",'[2]REAL IMAE(M)'!BK412)","v":4.5025390015040356},{"$f":"IF('[2]REAL IMAE(M)'!BN412=\"\",\"\",'[2]REAL IMAE(M)'!BN412)","v":5.2293599899104093},{"$f":"IF('[2]REAL IMAE(M)'!BO412=\"\",\"\",'[2]REAL IMAE(M)'!BO412)","v":5.7590380205603031},{"$f":"IF('[2]EXT RIN(M)'!$K412=\"\",\"\",'[2]EXT RIN(M)'!$K412)","v":63260.409625231565},"",{"$f":"IF('[2]EXT RIN(M)'!$L412=\"\",\"\",'[2]EXT RIN(M)'!$L412)","v":68556.512477631564},"",{"$f":"IF('[2]MONE(M)CARD'!EG412=\"\",\"\",'[2]MONE(M)CARD'!EG412)","v":65918.474597667009},{"$f":"IF('[2]MONE(M)CARD'!EK412=\"\",\"\",'[2]MONE(M)CARD'!EK412)","v":80416.297524549984},{"$f":"IF('[2]MONE(M)CARD'!EP412=\"\",\"\",'[2]MONE(M)CARD'!EP412)","v":43551.12050838297},{"$f":"IF('[2]MONE(M)CARD'!ES412=\"\",\"\",'[2]MONE(M)CARD'!ES412)","v":14.098392616302679},{"$f":"IF('[2]MONE(M)CARD'!EV412=\"\",\"\",'[2]MONE(M)CARD'!EV412)","v":13.053781606882598},{"$f":"IF('[2]MONE(M)CARD'!EZ412=\"\",\"\",'[2]MONE(M)CARD'!EZ412)","v":10.184032042635071},{"$f":"IF('[2]MONE(M)CAPARD'!FC412=\"\",\"\",'[2]MONE(M)CAPARD'!FC412)","v":74652.631922037021},{"$f":"IF('[2]MONE(M)CAPARD'!FG412=\"\",\"\",'[2]MONE(M)CAPARD'!FG412)","v":109651.48920095997},{"$f":"IF('[2]MONE(M)CAPARD'!FL412=\"\",\"\",'[2]MONE(M)CAPARD'!FL412)","v":43551.120508382999},{"$f":"IF('[2]MONE(M)CAPARD'!FO412=\"\",\"\",'[2]MONE(M)CAPARD'!FO412)","v":11.764485929185486},{"$f":"IF('[2]MONE(M)CAPARD'!FR412=\"\",\"\",'[2]MONE(M)CAPARD'!FR412)","v":9.9465842453635211},{"$f":"IF('[2]MONE(M)CAPARD'!FV412=\"\",\"\",'[2]MONE(M)CAPARD'!FV412)","v":8.2305653178024851},{"$f":"IF('[2]MONE(M)CARD'!FV412=\"\",\"\",'[2]MONE(M)CARD'!FV412)","v":2584.8587611063522},{"$f":"IF('[2]MONE(M)CARD'!GD412=\"\",\"\",'[2]MONE(M)CARD'!GD412)","v":210.64549180679836},{"$f":"IF('[2]MONE(M)CARD'!GE412=\"\",\"\",'[2]MONE(M)CARD'!GE412)","v":22847.504021419481},{"$f":"IF(AD405=\"\",\"\",((AD405/AD392)-1)*100)","v":16.143227290303109},{"$f":"IF('[9]II.2.Balance OSD-Activos'!J270=\"\",\"\",'[9]II.2.Balance OSD-Activos'!J270)","v":245.65133746696284},{"$f":"IF('[9]II.2.Balance OSD-Activos'!N270=\"\",\"\",'[9]II.2.Balance OSD-Activos'!N270)","v":2207.6638620283393},{"$f":"IF('[9]II.2.Balance OSD-Activos'!R270=\"\",\"\",'[9]II.2.Balance OSD-Activos'!R270)","v":72850.968062247208},{"$f":"IF('[9]II.2.Balance OSD-Activos'!S270=\"\",\"\",'[9]II.2.Balance OSD-Activos'!S270)","v":83341.209908523335},{"$f":"IFERROR(+AF405+AH405,\"\")","v":73096.619399714167},{"$f":"IF(OR(AF405=\"\",AG405=\"\",AH405=\"\",AI405=\"\"),\"\",SUM(AF405:AI405))","v":158645.49317026587},{"$f":"IF(OR(AF405=\"\",AF393=\"\"),\"\",((AF405/AF393)-1)*100)","v":-7.6767898261412171},{"$f":"IF(OR(AJ405=\"\",AJ393=\"\"),\"\",((AJ405/AJ393)-1)*100)","v":11.907045763722701},{"$f":"IF(OR(AG405=\"\",AG393=\"\"),\"\",((AG405/AG393)-1)*100)","v":24.440595109063956},{"$f":"IF(OR(AH405=\"\",AH393=\"\"),\"\",((AH405/AH393)-1)*100)","v":11.987146930794212},{"$f":"IF(OR(AI405=\"\",AI393=\"\"),\"\",((AI405/AI393)-1)*100)","v":18.284823027593355},{"$f":"IF(OR(AK405=\"\",AK393=\"\"),\"\",((AK405/AK393)-1)*100)","v":15.335596913841743},{"$f":"IF(OR(AQ405=\"\",AQ404=\"\"),\"\",AQ405-AQ404)","v":-1.0857054629110028},{"$f":"IF('[2]MONE(M)CAPARD'!GS412=\"\",\"\",'[2]MONE(M)CAPARD'!GS412)","v":40327.753465788977},{"$f":"IF('[2]MONE(M)CARD'!HA412=\"\",\"\",'[2]MONE(M)CAPARD'!HA412)","v":26842.682705969484},{"$f":"IF('[2]MONE(M)CAPARD'!HB412=\"\",\"\",'[2]MONE(M)CAPARD'!HB412)","v":13485.070759819493},"n.d.",{"$f":"IF('[10]II.2.Balance OSD-Activos'!J270=\"\",\"\",'[10]II.2.Balance OSD-Activos'!J270)","v":3237.8605893469635},{"$f":"IF('[10]II.2.Balance OSD-Activos'!N270=\"\",\"\",'[10]II.2.Balance OSD-Activos'!N270)","v":3069.9661127083391},{"$f":"IF('[10]II.2.Balance OSD-Activos'!R270=\"\",\"\",'[10]II.2.Balance OSD-Activos'!R270)","v":95265.795496447216},{"$f":"IF('[10]II.2.Balance OSD-Activos'!S270=\"\",\"\",'[10]II.2.Balance OSD-Activos'!S270)","v":112520.49126649334},{"$f":"IFERROR(+AW405+AY405,\"\")","v":98503.65608579418},{"$f":"IF(OR(AW405=\"\",AX405=\"\",AY405=\"\",AZ405=\"\"),\"\",SUM(AW405:AZ405))","v":214094.11346499587},{"$f":"IF(OR(AW405=\"\",AW393=\"\"),\"\",((AW405/AW393)-1)*100)","v":7.3799523608786721},{"$f":"IF(OR(BA405=\"\",BA393=\"\"),\"\",((BA405/BA393)-1)*100)","v":9.2960166837088529},{"$f":"IF(OR(AX405=\"\",AX393=\"\"),\"\",((AX405/AX393)-1)*100)","v":19.531797063134814},{"$f":"IF(OR(AY405=\"\",AY393=\"\"),\"\",((AY405/AY393)-1)*100)","v":9.3623414647268977},{"$f":"IF(OR(AZ405=\"\",AZ393=\"\"),\"\",((AZ405/AZ393)-1)*100)","v":14.232042535575772},{"$f":"IF(OR(BB405=\"\",BB393=\"\"),\"\",((BB405/BB393)-1)*100)","v":11.976495462938797},{"$f":"IF(OR(BH405=\"\",BH404=\"\"),\"\",BH405-BH404)","v":-0.89048163187981366},{"$f":"IF('[2]MONE(M)CAPARD'!AS412=\"\",\"\",'[2]MONE(M)CAPARD'!AS412)","v":6.5},{"$f":"IF('[2]MONE(M)CAPARD'!AT412=\"\",\"\",'[2]MONE(M)CAPARD'!AT412)","v":"n.a."},{"$f":"IF('[2]MONE(M)CAPARD'!AU412=\"\",\"\",'[2]MONE(M)CAPARD'!AU412)","v":5},{"$f":"IF('[2]MONE(M)CAPARD'!AV412=\"\",\"\",'[2]MONE(M)CAPARD'!AV412)","v":3},{"$f":"IF('[2]MONE(M)CAPARD'!AW412=\"\",\"\",'[2]MONE(M)CAPARD'!AW412)","v":7},{"$f":"IF('[2]MONE(M)CAPARD'!AX412=\"\",\"\",'[2]MONE(M)CAPARD'!AX412)","v":7.75},{"$f":"IF('[2]MONE(M)CAPARD'!AY412=\"\",\"\",'[2]MONE(M)CAPARD'!AY412)","v":"n.a."},{"$f":"IF('[2]FISCAL(M)'!$K412=\"\",\"\",'[2]FISCAL(M)'!$K412)","v":-3927.9312608534028},{"$f":"IF('[2]FISCAL(M)'!$L412=\"\",\"\",'[2]FISCAL(M)'!$L412)","v":"n.d."},{"$f":"IF('[2]FISCAL(M)'!$AY412=\"\",\"\",'[2]FISCAL(M)'!$AY412)","v":207500.75149191133},{"$f":"IF('[2]FISCAL(M)'!$BI412=\"\",\"\",'[2]FISCAL(M)'!$BI412)","v":109110.64842086662},{"$f":"IF('[2]FISCAL(M)'!$BS412=\"\",\"\",'[2]FISCAL(M)'!$BS412)","v":98390.103071044723},{"$f":"IF('[2]FISCAL(M)'!$AZ412=\"\",\"\",'[2]FISCAL(M)'!$AZ412)","v":254221.1914919113},{"$f":"IF('[2]FISCAL(M)'!$BJ412=\"\",\"\",'[2]FISCAL(M)'!$BJ412)","v":117185.12842086662},{"$f":"IF('[2]FISCAL(M)'!$BT412=\"\",\"\",'[2]FISCAL(M)'!$BT412)","v":137036.06307104469},{"$f":"IF('[3]MONE(M)'!$AO412=\"\",\"\",'[3]MONE(M)'!$AO412)","v":23898430.368267845},{"$f":"IF('[4]MONE(M)'!$AO412=\"\",\"\",'[4]MONE(M)'!$AO412)","v":17331.10416649},{"$f":"IF('[5]MONE(M)'!$AO412=\"\",\"\",'[5]MONE(M)'!$AO412)","v":305426.21501932619},{"$f":"+'[1]MONE(M)'!$AO412","v":590596.18983007048},{"$f":"IF('[6]MONE(M)'!$AO412=\"\",\"\",'[6]MONE(M)'!$AO412)","v":160142.99978046137},{"$f":"IF('[7]MONE(M)'!$AO412=\"\",\"\",'[7]MONE(M)'!$AO412)","v":1913799.6889577569},{"$f":"IF('[8]MONE(M)'!$AO412=\"\",\"\",'[8]MONE(M)'!$AO412)","v":56346.063855910004},{"$f":"IF(BY405=\"\",\"\",((BY405/BY393)-1)*100)","v":-1.5044270048783837},{"$f":"IF(BZ405=\"\",\"\",((BZ405/BZ393)-1)*100)","v":6.5631794008025102},{"$f":"IF(CA405=\"\",\"\",((CA405/CA393)-1)*100)","v":11.959008100548484},{"$f":"IF(CB405=\"\",\"\",((CB405/CB393)-1)*100)","v":20.711956844384517},17.629373416150408,18.941731772069105,2.5763494995606706,{"$f":"'[2]FISCAL(M)'!$K412","v":-3927.9312608534028},{"$f":"+'[2]REAL(A)'!$AO$43","v":399483.89883321861},{"$f":"IF(OR(CM405=\"n.d.\",CM405=\"\",CN405=\"\",CN405=\"n.d.\"),\"\",(CM405/CN405)*100)","v":-0.98325145827548932},{"$f":"IF('[2]FISCAL(M)'!$L412=\"\",\"\",'[2]FISCAL(M)'!$L412)","v":"n.d."},{"$f":"+'[2]REAL(A)'!$AP$43","v":476740.89883321861},"n.d.",{"$f":"+IF(OR(CT405=\"\",+CU405=\"\",+CV405=\"\"),\"\",(CT405+CU405+CV405))","v":225680.12802818534},{"$f":"'[2]Gráfico REM'!BG406","v":51853.089373212984},{"$f":"'[2]Gráfico REM'!BH406","v":162249.17755630694},{"$f":"'[2]Gráfico REM'!BI406","v":11577.861098665426},{"$f":"IFERROR(+((CS405/CS393)-1)*100,\"\")","v":12.148737132608979},{"$f":"IFERROR(+((CT405/CT393)-1)*100,\"\")","v":2.8870128792012784},{"$f":"IFERROR(+((CU405/CU393)-1)*100,\"\")","v":15.173668473876599},{"$f":"IFERROR(+((CV405/CV393)-1)*100,\"\")","v":16.228586985040462},{"$f":"+IF(OR(DB405=\"\",+DC405=\"\",+DD405=\"\"),\"\",(DB405+DC405+DD405))","v":318486.78944703541},{"$f":"'[2]Gráfico REM'!BK406","v":55919.771801312985},{"$f":"'[2]Gráfico REM'!BL406","v":218595.24141221694},{"$f":"'[2]Gráfico REM'!BM406","v":43971.776233505429},{"$f":"IFERROR(+((DA405/DA393)-1)*100,\"\")","v":10.17671513693883},{"$f":"IFERROR(+((DB405/DB393)-1)*100,\"\")","v":3.1640222890912284},{"$f":"IFERROR(+((DC405/DC393)-1)*100,\"\")","v":11.639623045498947},{"$f":"IFERROR(+((DD405/DD393)-1)*100,\"\")","v":12.575009557659644}]
[2023,"agosto","2023-agosto",{"$f":"IF('[2]REAL IPC(M)'!$AL413=\"\",\"\",+'[2]REAL IPC(M)'!$AL413)","v":3.4758783711185348},{"$f":"IF('[2]REAL IPC(M)'!$BE413=\"\",\"\",+'[2]REAL IPC(M)'!$BE413)","v":5.7663982296813243},{"$f":"IF('[2]REAL IPC(M)'!$AM413=\"\",\"\",+'[2]REAL IPC(M)'!$AM413)","v":3.2957211484750282},{"$f":"IF('[2]REAL IPC(M)'!$BI413=\"\",\"\",+'[2]REAL IPC(M)'!$BI413)","v":5.2520593679467265},{"$f":"IF('[2]REAL IMAE(M)'!BJ413=\"\",\"\",'[2]REAL IMAE(M)'!BJ413)","v":4.0303502612956343},{"$f":"IF('[2]REAL IMAE(M)'!BK413=\"\",\"\",'[2]REAL IMAE(M)'!BK413)","v":4.4814210964442047},{"$f":"IF('[2]REAL IMAE(M)'!BN413=\"\",\"\",'[2]REAL IMAE(M)'!BN413)","v":5.1872173770690422},{"$f":"IF('[2]REAL IMAE(M)'!BO413=\"\",\"\",'[2]REAL IMAE(M)'!BO413)","v":5.7391742935994694},{"$f":"IF('[2]EXT RIN(M)'!$K413=\"\",\"\",'[2]EXT RIN(M)'!$K413)","v":63262.382888549808},"",{"$f":"IF('[2]EXT RIN(M)'!$L413=\"\",\"\",'[2]EXT RIN(M)'!$L413)","v":68049.919084999812},"",{"$f":"IF('[2]MONE(M)CARD'!EG413=\"\",\"\",'[2]MONE(M)CARD'!EG413)","v":66271.92615532424},{"$f":"IF('[2]MONE(M)CARD'!EK413=\"\",\"\",'[2]MONE(M)CARD'!EK413)","v":81075.49902764507},{"$f":"IF('[2]MONE(M)CARD'!EP413=\"\",\"\",'[2]MONE(M)CARD'!EP413)","v":43505.657581861014},{"$f":"IF('[2]MONE(M)CARD'!ES413=\"\",\"\",'[2]MONE(M)CARD'!ES413)","v":13.404274406224248},{"$f":"IF('[2]MONE(M)CARD'!EV413=\"\",\"\",'[2]MONE(M)CARD'!EV413)","v":12.44841709148865},{"$f":"IF('[2]MONE(M)CARD'!EZ413=\"\",\"\",'[2]MONE(M)CARD'!EZ413)","v":9.5117987300839637},{"$f":"IF('[2]MONE(M)CAPARD'!FC413=\"\",\"\",'[2]MONE(M)CAPARD'!FC413)","v":75087.040206334234},{"$f":"IF('[2]MONE(M)CAPARD'!FG413=\"\",\"\",'[2]MONE(M)CAPARD'!FG413)","v":110435.89732762505},{"$f":"IF('[2]MONE(M)CAPARD'!FL413=\"\",\"\",'[2]MONE(M)CAPARD'!FL413)","v":43505.657581861014},{"$f":"IF('[2]MONE(M)CAPARD'!FO413=\"\",\"\",'[2]MONE(M)CAPARD'!FO413)","v":11.4278916306646},{"$f":"IF('[2]MONE(M)CAPARD'!FR413=\"\",\"\",'[2]MONE(M)CAPARD'!FR413)","v":9.6445433166289405},{"$f":"IF('[2]MONE(M)CAPARD'!FV413=\"\",\"\",'[2]MONE(M)CAPARD'!FV413)","v":7.8062227933512585},{"$f":"IF('[2]MONE(M)CARD'!FV413=\"\",\"\",'[2]MONE(M)CARD'!FV413)","v":2612.8132601482966},{"$f":"IF('[2]MONE(M)CARD'!GD413=\"\",\"\",'[2]MONE(M)CARD'!GD413)","v":214.9367032813966},{"$f":"IF('[2]MONE(M)CARD'!GE413=\"\",\"\",'[2]MONE(M)CARD'!GE413)","v":22618.112250941238},14.622117073045725,{"$f":"IF('[9]II.2.Balance OSD-Activos'!J271=\"\",\"\",'[9]II.2.Balance OSD-Activos'!J271)","v":241.54775465633145},{"$f":"IF('[9]II.2.Balance OSD-Activos'!N271=\"\",\"\",'[9]II.2.Balance OSD-Activos'!N271)","v":2321.6749478400716},{"$f":"IF('[9]II.2.Balance OSD-Activos'!R271=\"\",\"\",'[9]II.2.Balance OSD-Activos'!R271)","v":73148.159177905734},{"$f":"IF('[9]II.2.Balance OSD-Activos'!S271=\"\",\"\",'[9]II.2.Balance OSD-Activos'!S271)","v":84396.657667792388},73389.706932562069,160108.03954819453,-12.843236270776682,10.753160288350628,32.530584262669279,10.852263735350864,16.882298805191411,14.181379356092361,-1.1542175577493818,{"$f":"IF('[2]MONE(M)CAPARD'!GS413=\"\",\"\",'[2]MONE(M)CAPARD'!GS413)","v":40243.232282160898},{"$f":"IF('[2]MONE(M)CARD'!HA413=\"\",\"\",'[2]MONE(M)CAPARD'!HA413)","v":26572.44329856124},{"$f":"IF('[2]MONE(M)CAPARD'!HB413=\"\",\"\",'[2]MONE(M)CAPARD'!HB413)","v":13670.788983599658},"n.d.",{"$f":"IF('[10]II.2.Balance OSD-Activos'!J271=\"\",\"\",'[10]II.2.Balance OSD-Activos'!J271)","v":3341.2966257663315},{"$f":"IF('[10]II.2.Balance OSD-Activos'!N271=\"\",\"\",'[10]II.2.Balance OSD-Activos'!N271)","v":3183.8378488800718},{"$f":"IF('[10]II.2.Balance OSD-Activos'!R271=\"\",\"\",'[10]II.2.Balance OSD-Activos'!R271)","v":95574.18646394572},{"$f":"IF('[10]II.2.Balance OSD-Activos'!S271=\"\",\"\",'[10]II.2.Balance OSD-Activos'!S271)","v":113678.47872367239},98915.483089712056,215777.79966226453,10.347970255634342,8.4621820139204154,24.475030899528715,8.3974197620843682,13.318773623616952,11.183619984162597,-0.79287547877619957,{"$f":"IF('[2]MONE(M)CAPARD'!AS413=\"\",\"\",'[2]MONE(M)CAPARD'!AS413)","v":6.5},{"$f":"IF('[2]MONE(M)CAPARD'!AT413=\"\",\"\",'[2]MONE(M)CAPARD'!AT413)","v":"n.a."},{"$f":"IF('[2]MONE(M)CAPARD'!AU413=\"\",\"\",'[2]MONE(M)CAPARD'!AU413)","v":5},{"$f":"IF('[2]MONE(M)CAPARD'!AV413=\"\",\"\",'[2]MONE(M)CAPARD'!AV413)","v":3},{"$f":"IF('[2]MONE(M)CAPARD'!AW413=\"\",\"\",'[2]MONE(M)CAPARD'!AW413)","v":7},{"$f":"IF('[2]MONE(M)CAPARD'!AX413=\"\",\"\",'[2]MONE(M)CAPARD'!AX413)","v":7.75},{"$f":"IF('[2]MONE(M)CAPARD'!AY413=\"\",\"\",'[2]MONE(M)CAPARD'!AY413)","v":"n.a."},{"$f":"IF('[2]FISCAL(M)'!$K413=\"\",\"\",'[2]FISCAL(M)'!$K413)","v":-5189.2480247407484},{"$f":"IF('[2]FISCAL(M)'!$L413=\"\",\"\",'[2]FISCAL(M)'!$L413)","v":"n.d."},{"$f":"IF('[2]FISCAL(M)'!$AY413=\"\",\"\",'[2]FISCAL(M)'!$AY413)","v":207053.68540340709},{"$f":"IF('[2]FISCAL(M)'!$BI413=\"\",\"\",'[2]FISCAL(M)'!$BI413)","v":108908.11909535094},{"$f":"IF('[2]FISCAL(M)'!$BS413=\"\",\"\",'[2]FISCAL(M)'!$BS413)","v":98145.56630805615},{"$f":"IF('[2]FISCAL(M)'!$AZ413=\"\",\"\",'[2]FISCAL(M)'!$AZ413)","v":253616.37540340709},{"$f":"IF('[2]FISCAL(M)'!$BJ413=\"\",\"\",'[2]FISCAL(M)'!$BJ413)","v":116982.59909535093},{"$f":"IF('[2]FISCAL(M)'!$BT413=\"\",\"\",'[2]FISCAL(M)'!$BT413)","v":136633.77630805614},{"$f":"IF('[3]MONE(M)'!$AO413=\"\",\"\",'[3]MONE(M)'!$AO413)","v":23869837.776616681},{"$f":"IF('[4]MONE(M)'!$AO413=\"\",\"\",'[4]MONE(M)'!$AO413)","v":17335.171904900002},{"$f":"IF('[5]MONE(M)'!$AO413=\"\",\"\",'[5]MONE(M)'!$AO413)","v":308204.39787015016},{"$f":"+'[1]MONE(M)'!$AO413","v":599345.55065143434},{"$f":"IF('[6]MONE(M)'!$AO413=\"\",\"\",'[6]MONE(M)'!$AO413)","v":162188.08921940724},{"$f":"IF('[7]MONE(M)'!$AO413=\"\",\"\",'[7]MONE(M)'!$AO413)","v":1938992.0045350958},{"$f":"IF('[8]MONE(M)'!$AO413=\"\",\"\",'[8]MONE(M)'!$AO413)","v":56549.573375759996},{"$f":"IF(BY406=\"\",\"\",((BY406/BY394)-1)*100)","v":-0.9972041197425896},{"$f":"IF(BZ406=\"\",\"\",((BZ406/BZ394)-1)*100)","v":6.1055199746823829},{"$f":"IF(CA406=\"\",\"\",((CA406/CA394)-1)*100)","v":12.096063952840751},{"$f":"IF(CB406=\"\",\"\",((CB406/CB394)-1)*100)","v":20.759635188308323},{"$f":"IF(CC406=\"\",\"\",((CC406/CC394)-1)*100)","v":17.489451042923122},{"$f":"IF(CD406=\"\",\"\",((CD406/CD394)-1)*100)","v":18.974554579673143},{"$f":"IF(CE406=\"\",\"\",((CE406/CE394)-1)*100)","v":2.607358980008101},{"$f":"'[2]FISCAL(M)'!$K413","v":-5189.2480247407484},{"$f":"+'[2]REAL(A)'!$AO$43","v":399483.89883321861},-1.2989880292790519,{"$f":"IF('[2]FISCAL(M)'!$L413=\"\",\"\",'[2]FISCAL(M)'!$L413)","v":"n.d."},{"$f":"+'[2]REAL(A)'!$AP$43","v":476740.89883321861},"n.d.",226905.3582881343,{"$f":"'[2]Gráfico REM'!BG407","v":51565.229540495144},{"$f":"'[2]Gráfico REM'!BH407","v":163697.61026692612},{"$f":"'[2]Gráfico REM'!BI407","v":11642.518480713039},10.496785086212569,0.33627558430098237,13.941469712068999,13.148152402894929,320065.5734275243,{"$f":"'[2]Gráfico REM'!BK407","v":55689.786872155142},{"$f":"'[2]Gráfico REM'!BL407","v":220247.18364268611},{"$f":"'[2]Gráfico REM'!BM407","v":44128.602912683025},8.8808463988770967,0.86145559405816918,10.79905170706963,10.419245454687086]
[2023,"septiembre","2023-septiembre",{"$f":"IF('[2]REAL IPC(M)'!$AL414=\"\",\"\",+'[2]REAL IPC(M)'!$AL414)","v":3.7476510067113944},{"$f":"IF('[2]REAL IPC(M)'!$BE414=\"\",\"\",+'[2]REAL IPC(M)'!$BE414)","v":5.7177258354906169},{"$f":"IF('[2]REAL IPC(M)'!$AM414=\"\",\"\",+'[2]REAL IPC(M)'!$AM414)","v":3.5397241918374123},{"$f":"IF('[2]REAL IPC(M)'!$BI414=\"\",\"\",+'[2]REAL IPC(M)'!$BI414)","v":5.2067375641342339},{"$f":"IF('[2]REAL IMAE(M)'!BJ414=\"\",\"\",'[2]REAL IMAE(M)'!BJ414)","v":3.8727307609483619},{"$f":"IF('[2]REAL IMAE(M)'!BK414=\"\",\"\",'[2]REAL IMAE(M)'!BK414)","v":4.4610042975279818},{"$f":"IF('[2]REAL IMAE(M)'!BN414=\"\",\"\",'[2]REAL IMAE(M)'!BN414)","v":5.2510767067834863},{"$f":"IF('[2]REAL IMAE(M)'!BO414=\"\",\"\",'[2]REAL IMAE(M)'!BO414)","v":5.7188549436682168},{"$f":"IF('[2]EXT RIN(M)'!$K414=\"\",\"\",'[2]EXT RIN(M)'!$K414)","v":62837.915574247039},"",{"$f":"IF('[2]EXT RIN(M)'!$L414=\"\",\"\",'[2]EXT RIN(M)'!$L414)","v":67046.026655007037},"",{"$f":"IF('[2]MONE(M)CARD'!EG414=\"\",\"\",'[2]MONE(M)CARD'!EG414)","v":""},{"$f":"IF('[2]MONE(M)CARD'!EK414=\"\",\"\",'[2]MONE(M)CARD'!EK414)","v":""},{"$f":"IF('[2]MONE(M)CARD'!EP414=\"\",\"\",'[2]MONE(M)CARD'!EP414)","v":""},{"$f":"IF('[2]MONE(M)CARD'!ES414=\"\",\"\",'[2]MONE(M)CARD'!ES414)","v":""},{"$f":"IF('[2]MONE(M)CARD'!EV414=\"\",\"\",'[2]MONE(M)CARD'!EV414)","v":""},{"$f":"IF('[2]MONE(M)CARD'!EZ414=\"\",\"\",'[2]MONE(M)CARD'!EZ414)","v":""},{"$f":"IF('[2]MONE(M)CAPARD'!FC414=\"\",\"\",'[2]MONE(M)CAPARD'!FC414)","v":" "},{"$f":"IF('[2]MONE(M)CAPARD'!FG414=\"\",\"\",'[2]MONE(M)CAPARD'!FG414)","v":" "},{"$f":"IF('[2]MONE(M)CAPARD'!FL414=\"\",\"\",'[2]MONE(M)CAPARD'!FL414)","v":" "},{"$f":"IF('[2]MONE(M)CAPARD'!FO414=\"\",\"\",'[2]MONE(M)CAPARD'!FO414)","v":" "},{"$f":"IF('[2]MONE(M)CAPARD'!FR414=\"\",\"\",'[2]MONE(M)CAPARD'!FR414)","v":" "},{"$f":"IF('[2]MONE(M)CAPARD'!FV414=\"\",\"\",'[2]MONE(M)CAPARD'!FV414)","v":""},{"$f":"IF('[2]MONE(M)CARD'!FV414=\"\",\"\",'[2]MONE(M)CARD'!FV414)","v":""},{"$f":"IF('[2]MONE(M)CARD'!GD414=\"\",\"\",'[2]MONE(M)CARD'!GD414)","v":""},{"$f":"IF('[2]MONE(M)CARD'!GE414=\"\",\"\",'[2]MONE(M)CARD'!GE414)","v":""},"",{"$f":"IF('[9]II.2.Balance OSD-Activos'!J272=\"\",\"\",'[9]II.2.Balance OSD-Activos'!J272)","v":" "},{"$f":"IF('[9]II.2.Balance OSD-Activos'!N272=\"\",\"\",'[9]II.2.Balance OSD-Activos'!N272)","v":" "},{"$f":"IF('[9]II.2.Balance OSD-Activos'!R272=\"\",\"\",'[9]II.2.Balance OSD-Activos'!R272)","v":" "},{"$f":"IF('[9]II.2.Balance OSD-Activos'!S272=\"\",\"\",'[9]II.2.Balance OSD-Activos'!S272)","v":" "},"",null,null,null,null,null,null,null,null,null,null,null,null,null,null,null,null,null,null,"","","","","","","",{"$f":"IF('[2]MONE(M)CAPARD'!AS414=\"\",\"\",'[2]MONE(M)CAPARD'!AS414)","v":6.5},{"$f":"IF('[2]MONE(M)CAPARD'!AT414=\"\",\"\",'[2]MONE(M)CAPARD'!AT414)","v":"n.a."},{"$f":"IF('[2]MONE(M)CAPARD'!AU414=\"\",\"\",'[2]MONE(M)CAPARD'!AU414)","v":5},{"$f":"IF('[2]MONE(M)CAPARD'!AV414=\"\",\"\",'[2]MONE(M)CAPARD'!AV414)","v":3},{"$f":"IF('[2]MONE(M)CAPARD'!AW414=\"\",\"\",'[2]MONE(M)CAPARD'!AW414)","v":7},{"$f":"IF('[2]MONE(M)CAPARD'!AX414=\"\",\"\",'[2]MONE(M)CAPARD'!AX414)","v":7.5},{"$f":"IF('[2]MONE(M)CAPARD'!AY414=\"\",\"\",'[2]MONE(M)CAPARD'!AY414)","v":"n.a."},{"$f":"IF('[2]FISCAL(M)'!$K414=\"\",\"\",'[2]FISCAL(M)'!$K414)","v":-5611.9396064366756},{"$f":"IF('[2]FISCAL(M)'!$L414=\"\",\"\",'[2]FISCAL(M)'!$L414)","v":-10667.239606436675},{"$f":"IF('[2]FISCAL(M)'!$AY414=\"\",\"\",'[2]FISCAL(M)'!$AY414)","v":208709.1696478292},{"$f":"IF('[2]FISCAL(M)'!$BI414=\"\",\"\",'[2]FISCAL(M)'!$BI414)","v":110082.49810978741},{"$f":"IF('[2]FISCAL(M)'!$BS414=\"\",\"\",'[2]FISCAL(M)'!$BS414)","v":98626.671538041759},{"$f":"IF('[2]FISCAL(M)'!$AZ414=\"\",\"\",'[2]FISCAL(M)'!$AZ414)","v":254505.34964782919},{"$f":"IF('[2]FISCAL(M)'!$BJ414=\"\",\"\",'[2]FISCAL(M)'!$BJ414)","v":117443.47810978742},{"$f":"IF('[2]FISCAL(M)'!$BT414=\"\",\"\",'[2]FISCAL(M)'!$BT414)","v":137061.87153804177},{"$f":"IF('[3]MONE(M)'!$AO414=\"\",\"\",'[3]MONE(M)'!$AO414)","v":24089794.086128563},{"$f":"IF('[4]MONE(M)'!$AO414=\"\",\"\",'[4]MONE(M)'!$AO414)","v":17386.304195870001},{"$f":"IF('[5]MONE(M)'!$AO414=\"\",\"\",'[5]MONE(M)'!$AO414)","v":310587.00089669437},{"$f":"+'[1]MONE(M)'!$AO414","v":608341.26599187905},{"$f":"IF('[6]MONE(M)'!$AO414=\"\",\"\",'[6]MONE(M)'!$AO414)","v":""},{"$f":"IF('[7]MONE(M)'!$AO414=\"\",\"\",'[7]MONE(M)'!$AO414)","v":1951856.980118843},{"$f":"IF('[8]MONE(M)'!$AO414=\"\",\"\",'[8]MONE(M)'!$AO414)","v":57102.13832595999},0.53708518938404559,5.734548206944079,11.305044061777636,20.939544594813132,"",18.171150587999406,3.2879856601184754,{"$f":"'[2]FISCAL(M)'!$K414","v":-5611.9396064366756},{"$f":"+'[2]REAL(A)'!$AO$43","v":399483.89883321861},-1.4047974456110972,{"$f":"IF('[2]FISCAL(M)'!$L414=\"\",\"\",'[2]FISCAL(M)'!$L414)","v":-10667.239606436675},{"$f":"+'[2]REAL(A)'!$AP$43","v":476740.89883321861},-2.2375339796824241,"",{"$f":"'[2]Gráfico REM'!BG408","v":""},{"$f":"'[2]Gráfico REM'!BH408","v":""},{"$f":"'[2]Gráfico REM'!BI408","v":""},"","","","","",{"$f":"'[2]Gráfico REM'!BK408","v":""},{"$f":"'[2]Gráfico REM'!BL408","v":""},{"$f":"'[2]Gráfico REM'!BM408","v":""},"","","",""]
[2023,"octubre","2023-octubre",{"$f":"IF('[2]REAL IPC(M)'!$AL415=\"\",\"\",+'[2]REAL IPC(M)'!$AL415)","v":3.7949649901117155},{"$f":"IF('[2]REAL IPC(M)'!$BE415=\"\",\"\",+'[2]REAL IPC(M)'!$BE415)","v":5.6704616788791462},{"$f":"IF('[2]REAL IPC(M)'!$AM415=\"\",\"\",+'[2]REAL IPC(M)'!$AM415)","v":3.553751181803011},{"$f":"IF('[2]REAL IPC(M)'!$BI415=\"\",\"\",+'[2]REAL IPC(M)'!$BI415)","v":5.1629724819150402},{"$f":"IF('[2]REAL IMAE(M)'!BJ415=\"\",\"\",'[2]REAL IMAE(M)'!BJ415)","v":3.6273612748349615},{"$f":"IF('[2]REAL IMAE(M)'!BK415=\"\",\"\",'[2]REAL IMAE(M)'!BK415)","v":4.4413123534693622},{"$f":"IF('[2]REAL IMAE(M)'!BN415=\"\",\"\",'[2]REAL IMAE(M)'!BN415)","v":""},{"$f":"IF('[2]REAL IMAE(M)'!BO415=\"\",\"\",'[2]REAL IMAE(M)'!BO415)","v":""},{"$f":"IF('[2]EXT RIN(M)'!$K415=\"\",\"\",'[2]EXT RIN(M)'!$K415)","v":63403.949387193912},"",{"$f":"IF('[2]EXT RIN(M)'!$L415=\"\",\"\",'[2]EXT RIN(M)'!$L415)","v":68245.485287433912},"",null,null,null,null,null,null,null,null,null,null,null,null,null,null,null,null,null,null,null,null,null,null,"","","","","","","",null,null,null,null,null,null,null,null,null,null,null,null,null,null,null,null,null,{"$f":"IF('[2]MONE(M)CAPARD'!AS415=\"\",\"\",'[2]MONE(M)CAPARD'!AS415)","v":6.25},{"$f":"IF('[2]MONE(M)CAPARD'!AT415=\"\",\"\",'[2]MONE(M)CAPARD'!AT415)","v":"n.a."},{"$f":"IF('[2]MONE(M)CAPARD'!AU415=\"\",\"\",'[2]MONE(M)CAPARD'!AU415)","v":5},{"$f":"IF('[2]MONE(M)CAPARD'!AV415=\"\",\"\",'[2]MONE(M)CAPARD'!AV415)","v":3},{"$f":"IF('[2]MONE(M)CAPARD'!AW415=\"\",\"\",'[2]MONE(M)CAPARD'!AW415)","v":7},{"$f":"IF('[2]MONE(M)CAPARD'!AX415=\"\",\"\",'[2]MONE(M)CAPARD'!AX415)","v":7.5},{"$f":"IF('[2]MONE(M)CAPARD'!AY415=\"\",\"\",'[2]MONE(M)CAPARD'!AY415)","v":"n.a."},{"$f":"IF('[2]FISCAL(M)'!$K415=\"\",\"\",'[2]FISCAL(M)'!$K415)","v":-5696.8104908610003},{"$f":"IF('[2]FISCAL(M)'!$L415=\"\",\"\",'[2]FISCAL(M)'!$L415)","v":""},{"$f":"IF('[2]FISCAL(M)'!$AY415=\"\",\"\",'[2]FISCAL(M)'!$AY415)","v":""},{"$f":"IF('[2]FISCAL(M)'!$BI415=\"\",\"\",'[2]FISCAL(M)'!$BI415)","v":""},{"$f":"IF('[2]FISCAL(M)'!$BS415=\"\",\"\",'[2]FISCAL(M)'!$BS415)","v":""},{"$f":"IF('[2]FISCAL(M)'!$AZ415=\"\",\"\",'[2]FISCAL(M)'!$AZ415)","v":""},{"$f":"IF('[2]FISCAL(M)'!$BJ415=\"\",\"\",'[2]FISCAL(M)'!$BJ415)","v":""},{"$f":"IF('[2]FISCAL(M)'!$BT415=\"\",\"\",'[2]FISCAL(M)'!$BT415)","v":""},{"$f":"IF('[3]MONE(M)'!$AO415=\"\",\"\",'[3]MONE(M)'!$AO415)","v":""},{"$f":"IF('[4]MONE(M)'!$AO415=\"\",\"\",'[4]MONE(M)'!$AO415)","v":17419.639690670003},{"$f":"IF('[5]MONE(M)'!$AO415=\"\",\"\",'[5]MONE(M)'!$AO415)","v":314812.97267541219},{"$f":"+'[1]MONE(M)'!$AO415","v":616335.6104111321},{"$f":"IF('[6]MONE(M)'!$AO415=\"\",\"\",'[6]MONE(M)'!$AO415)","v":""},{"$f":"IF('[7]MONE(M)'!$AO415=\"\",\"\",'[7]MONE(M)'!$AO415)","v":1998649.1562613412},{"$f":"IF('[8]MONE(M)'!$AO415=\"\",\"\",'[8]MONE(M)'!$AO415)","v":57032.850804349997},{"$f":"IF(BY408=\"\",\"\",((BY408/BY396)-1)*100)","v":""},{"$f":"IF(BZ408=\"\",\"\",((BZ408/BZ396)-1)*100)","v":5.1458002774564138},{"$f":"IF(CA408=\"\",\"\",((CA408/CA396)-1)*100)","v":10.89743649228625},{"$f":"IF(CB408=\"\",\"\",((CB408/CB396)-1)*100)","v":20.629938082802425},{"$f":"IF(CC408=\"\",\"\",((CC408/CC396)-1)*100)","v":""},{"$f":"IF(CD408=\"\",\"\",((CD408/CD396)-1)*100)","v":19.34011503277069},{"$f":"IF(CE408=\"\",\"\",((CE408/CE396)-1)*100)","v":2.7692384523124725},{"$f":"'[2]FISCAL(M)'!$K415","v":-5696.8104908610003},{"$f":"+'[2]REAL(A)'!$AO$43","v":399483.89883321861},-1.4260425783116164,{"$f":"IF('[2]FISCAL(M)'!$L415=\"\",\"\",'[2]FISCAL(M)'!$L415)","v":""},{"$f":"+'[2]REAL(A)'!$AP$43","v":476740.89883321861},null,"",{"$f":"'[2]Gráfico REM'!BG409","v":""},{"$f":"'[2]Gráfico REM'!BH409","v":""},{"$f":"'[2]Gráfico REM'!BI409","v":""},"","","","","",{"$f":"'[2]Gráfico REM'!BK409","v":""},{"$f":"'[2]Gráfico REM'!BL409","v":""},{"$f":"'[2]Gráfico REM'!BM409","v":""},"","","",""]
[2023,"noviembre","2023-noviembre",{"$f":"IF('[2]REAL IPC(M)'!$AL416=\"\",\"\",+'[2]REAL IPC(M)'!$AL416)","v":3.283312047679865},{"$f":"IF('[2]REAL IPC(M)'!$BE416=\"\",\"\",+'[2]REAL IPC(M)'!$BE416)","v":5.6251276461442901},{"$f":"IF('[2]REAL IPC(M)'!$AM416=\"\",\"\",+'[2]REAL IPC(M)'!$AM416)","v":3.1018056940290251},{"$f":"IF('[2]REAL IPC(M)'!$BI416=\"\",\"\",+'[2]REAL IPC(M)'!$BI416)","v":5.1212627200304617},{"$f":"IF('[2]REAL IMAE(M)'!BJ416=\"\",\"\",'[2]REAL IMAE(M)'!BJ416)","v":3.6779383365733942},{"$f":"IF('[2]REAL IMAE(M)'!BK416=\"\",\"\",'[2]REAL IMAE(M)'!BK416)","v":4.4223332932276982},null,null,{"$f":"IF('[2]EXT RIN(M)'!$K416=\"\",\"\",'[2]EXT RIN(M)'!$K416)","v":64650.138005657856},"",{"$f":"IF('[2]EXT RIN(M)'!$L416=\"\",\"\",'[2]EXT RIN(M)'!$L416)","v":71091.539978117857},"",null,null,null,null,null,null,null,null,null,null,null,null,null,null,null,null,null,null,null,null,null,null,"","","","","","","",null,null,null,null,null,null,null,null,null,null,null,null,null,null,null,null,null,{"$f":"IF('[2]MONE(M)CAPARD'!AS416=\"\",\"\",'[2]MONE(M)CAPARD'!AS416)","v":6.25},{"$f":"IF('[2]MONE(M)CAPARD'!AT416=\"\",\"\",'[2]MONE(M)CAPARD'!AT416)","v":"n.a."},{"$f":"IF('[2]MONE(M)CAPARD'!AU416=\"\",\"\",'[2]MONE(M)CAPARD'!AU416)","v":5},{"$f":"IF('[2]MONE(M)CAPARD'!AV416=\"\",\"\",'[2]MONE(M)CAPARD'!AV416)","v":3},{"$f":"IF('[2]MONE(M)CAPARD'!AW416=\"\",\"\",'[2]MONE(M)CAPARD'!AW416)","v":7},{"$f":"IF('[2]MONE(M)CAPARD'!AX416=\"\",\"\",'[2]MONE(M)CAPARD'!AX416)","v":7.25},{"$f":"IF('[2]MONE(M)CAPARD'!AY416=\"\",\"\",'[2]MONE(M)CAPARD'!AY416)","v":"n.a."},{"$f":"IF('[2]FISCAL(M)'!$K416=\"\",\"\",'[2]FISCAL(M)'!$K416)","v":""},{"$f":"IF('[2]FISCAL(M)'!$L416=\"\",\"\",'[2]FISCAL(M)'!$L416)","v":""},{"$f":"IF('[2]FISCAL(M)'!$AY416=\"\",\"\",'[2]FISCAL(M)'!$AY416)","v":""},{"$f":"IF('[2]FISCAL(M)'!$BI416=\"\",\"\",'[2]FISCAL(M)'!$BI416)","v":""},{"$f":"IF('[2]FISCAL(M)'!$BS416=\"\",\"\",'[2]FISCAL(M)'!$BS416)","v":""},{"$f":"IF('[2]FISCAL(M)'!$AZ416=\"\",\"\",'[2]FISCAL(M)'!$AZ416)","v":""},{"$f":"IF('[2]FISCAL(M)'!$BJ416=\"\",\"\",'[2]FISCAL(M)'!$BJ416)","v":""},{"$f":"IF('[2]FISCAL(M)'!$BT416=\"\",\"\",'[2]FISCAL(M)'!$BT416)","v":""},{"$f":"IF('[3]MONE(M)'!$AO416=\"\",\"\",'[3]MONE(M)'!$AO416)","v":""},{"$f":"IF('[4]MONE(M)'!$AO416=\"\",\"\",'[4]MONE(M)'!$AO416)","v":17536.87666021},{"$f":"IF('[5]MONE(M)'!$AO416=\"\",\"\",'[5]MONE(M)'!$AO416)","v":317687.21784471144},null,{"$f":"IF('[6]MONE(M)'!$AO416=\"\",\"\",'[6]MONE(M)'!$AO416)","v":""},{"$f":"IF('[7]MONE(M)'!$AO416=\"\",\"\",'[7]MONE(M)'!$AO416)","v":2023207.0272810191},{"$f":"IF('[8]MONE(M)'!$AO416=\"\",\"\",'[8]MONE(M)'!$AO416)","v":57230.765661730009},"",4.8243782365877896,10.997238415303734,"","",18.841212190955648,3.2765095852953063,null,{"$f":"+'[2]REAL(A)'!$AO$43","v":399483.89883321861},"",{"$f":"IF('[2]FISCAL(M)'!$L416=\"\",\"\",'[2]FISCAL(M)'!$L416)","v":""},{"$f":"+'[2]REAL(A)'!$AP$43","v":476740.89883321861},null,"",{"$f":"'[2]Gráfico REM'!BG410","v":""},{"$f":"'[2]Gráfico REM'!BH410","v":""},{"$f":"'[2]Gráfico REM'!BI410","v":""},"","","","","",{"$f":"'[2]Gráfico REM'!BK410","v":""},{"$f":"'[2]Gráfico REM'!BL410","v":""},{"$f":"'[2]Gráfico REM'!BM410","v":""},"","","",""]
[2023,"diciembre","2023-diciembre",{"$f":"IF('[2]REAL IPC(M)'!$AL417=\"\",\"\",+'[2]REAL IPC(M)'!$AL417)","v":3.0224433622697555},{"$f":"IF('[2]REAL IPC(M)'!$BE417=\"\",\"\",+'[2]REAL IPC(M)'!$BE417)","v":5.5821168182488501},{"$f":"IF('[2]REAL IPC(M)'!$AM417=\"\",\"\",+'[2]REAL IPC(M)'!$AM417)","v":2.8665931642778419},{"$f":"IF('[2]REAL IPC(M)'!$BI417=\"\",\"\",+'[2]REAL IPC(M)'!$BI417)","v":5.0819812660239716},{"$f":"IF('[2]REAL IMAE(M)'!BJ417=\"\",\"\",'[2]REAL IMAE(M)'!BJ417)","v":""},{"$f":"IF('[2]REAL IMAE(M)'!BK417=\"\",\"\",'[2]REAL IMAE(M)'!BK417)","v":""},null,null,{"$f":"IF('[2]EXT RIN(M)'!$K417=\"\",\"\",'[2]EXT RIN(M)'!$K417)","v":65640.441758008412},65640.441758008412,{"$f":"IF('[2]EXT RIN(M)'!$L417=\"\",\"\",'[2]EXT RIN(M)'!$L417)","v":""},"",null,null,null,null,null,null,null,null,null,null,null,null,null,null,null,null,null,null,null,null,null,null,null,null,null,null,null,null,null,null,null,null,null,null,null,null,null,null,null,null,null,null,null,null,null,null,{"$f":"IF('[2]MONE(M)CAPARD'!AS417=\"\",\"\",'[2]MONE(M)CAPARD'!AS417)","v":6},{"$f":"IF('[2]MONE(M)CAPARD'!AT417=\"\",\"\",'[2]MONE(M)CAPARD'!AT417)","v":"n.a."},{"$f":"IF('[2]MONE(M)CAPARD'!AU417=\"\",\"\",'[2]MONE(M)CAPARD'!AU417)","v":5},{"$f":"IF('[2]MONE(M)CAPARD'!AV417=\"\",\"\",'[2]MONE(M)CAPARD'!AV417)","v":3},{"$f":"IF('[2]MONE(M)CAPARD'!AW417=\"\",\"\",'[2]MONE(M)CAPARD'!AW417)","v":7},{"$f":"IF('[2]MONE(M)CAPARD'!AX417=\"\",\"\",'[2]MONE(M)CAPARD'!AX417)","v":7},{"$f":"IF('[2]MONE(M)CAPARD'!AY417=\"\",\"\",'[2]MONE(M)CAPARD'!AY417)","v":"n.a."},{"$f":"IF('[2]FISCAL(M)'!$K417=\"\",\"\",'[2]FISCAL(M)'!$K417)","v":""},{"$f":"IF('[2]FISCAL(M)'!$L417=\"\",\"\",'[2]FISCAL(M)'!$L417)","v":""},{"$f":"IF('[2]FISCAL(M)'!$AY417=\"\",\"\",'[2]FISCAL(M)'!$AY417)","v":""},{"$f":"IF('[2]FISCAL(M)'!$BI417=\"\",\"\",'[2]FISCAL(M)'!$BI417)","v":""},{"$f":"IF('[2]FISCAL(M)'!$BS417=\"\",\"\",'[2]FISCAL(M)'!$BS417)","v":""},{"$f":"IF('[2]FISCAL(M)'!$AZ417=\"\",\"\",'[2]FISCAL(M)'!$AZ417)","v":""},{"$f":"IF('[2]FISCAL(M)'!$BJ417=\"\",\"\",'[2]FISCAL(M)'!$BJ417)","v":""},{"$f":"IF('[2]FISCAL(M)'!$BT417=\"\",\"\",'[2]FISCAL(M)'!$BT417)","v":""},{"$f":"IF('[3]MONE(M)'!$AO417=\"\",\"\",'[3]MONE(M)'!$AO417)","v":""},{"$f":"IF('[4]MONE(M)'!$AO417=\"\",\"\",'[4]MONE(M)'!$AO417)","v":""},{"$f":"IF('[5]MONE(M)'!$AO417=\"\",\"\",'[5]MONE(M)'!$AO417)","v":319506.77780608856},null,{"$f":"IF('[6]MONE(M)'!$AO417=\"\",\"\",'[6]MONE(M)'!$AO417)","v":""},{"$f":"IF('[7]MONE(M)'!$AO417=\"\",\"\",'[7]MONE(M)'!$AO417)","v":2053926.5494179302},{"$f":"IF('[8]MONE(M)'!$AO417=\"\",\"\",'[8]MONE(M)'!$AO417)","v":""},"","",11.037296229953753,"","",19.790073580585354,"",null,{"$f":"+'[2]REAL(A)'!$AO$43","v":399483.89883321861},"",{"$f":"IF('[2]FISCAL(M)'!$L417=\"\",\"\",'[2]FISCAL(M)'!$L417)","v":""},{"$f":"+'[2]REAL(A)'!$AP$43","v":476740.89883321861},null,"",{"$f":"'[2]Gráfico REM'!BG411","v":""},{"$f":"'[2]Gráfico REM'!BH411","v":""},{"$f":"'[2]Gráfico REM'!BI411","v":""},"","","","","",{"$f":"'[2]Gráfico REM'!BK411","v":""},{"$f":"'[2]Gráfico REM'!BL411","v":""},{"$f":"'[2]Gráfico REM'!BM411","v":""},"","","",""]
[2024,"enero","2024-enero",{"$f":"IF('[2]REAL IPC(M)'!$AL418=\"\",\"\",+'[2]REAL IPC(M)'!$AL418)","v":2.82075570992526},{"$f":"IF('[2]REAL IPC(M)'!$BE418=\"\",\"\",+'[2]REAL IPC(M)'!$BE418)","v":5.5416756562936209},{"$f":"IF('[2]REAL IPC(M)'!$AM418=\"\",\"\",+'[2]REAL IPC(M)'!$AM418)","v":2.5913548457787705},{"$f":"IF('[2]REAL IPC(M)'!$BI418=\"\",\"\",+'[2]REAL IPC(M)'!$BI418)","v":5.0453575380240645},{"$f":"IF('[2]REAL IMAE(M)'!BJ418=\"\",\"\",'[2]REAL IMAE(M)'!BJ418)","v":""},{"$f":"IF('[2]REAL IMAE(M)'!BK418=\"\",\"\",'[2]REAL IMAE(M)'!BK418)","v":""},null,null,{"$f":"IF('[2]EXT RIN(M)'!$K418=\"\",\"\",'[2]EXT RIN(M)'!$K418)","v":65554.091917057827},null,{"$f":"IF('[2]EXT RIN(M)'!$L418=\"\",\"\",'[2]EXT RIN(M)'!$L418)","v":""},null,null,null,null,null,null,null,null,null,null,null,null,null,null,null,null,null,null,null,null,null,null,null,null,null,null,null,null,null,null,null,null,null,null,null,null,null,null,null,null,null,null,null,null,null,null,null,{"$f":"IF('[2]MONE(M)CAPARD'!AS418=\"\",\"\",'[2]MONE(M)CAPARD'!AS418)","v":5.75},{"$f":"IF('[2]MONE(M)CAPARD'!AT418=\"\",\"\",'[2]MONE(M)CAPARD'!AT418)","v":"n.a."},{"$f":"IF('[2]MONE(M)CAPARD'!AU418=\"\",\"\",'[2]MONE(M)CAPARD'!AU418)","v":5},{"$f":"IF('[2]MONE(M)CAPARD'!AV418=\"\",\"\",'[2]MONE(M)CAPARD'!AV418)","v":3},{"$f":"IF('[2]MONE(M)CAPARD'!AW418=\"\",\"\",'[2]MONE(M)CAPARD'!AW418)","v":7},{"$f":"IF('[2]MONE(M)CAPARD'!AX418=\"\",\"\",'[2]MONE(M)CAPARD'!AX418)","v":7},{"$f":"IF('[2]MONE(M)CAPARD'!AY418=\"\",\"\",'[2]MONE(M)CAPARD'!AY418)","v":"n.a."},null,null,null,null,null,null,null,null,null,{"$f":"IF('[4]MONE(M)'!$AO418=\"\",\"\",'[4]MONE(M)'!$AO418)","v":""},{"$f":"IF('[5]MONE(M)'!$AO418=\"\",\"\",'[5]MONE(M)'!$AO418)","v":""},null,{"$f":"IF('[6]MONE(M)'!$AO418=\"\",\"\",'[6]MONE(M)'!$AO418)","v":""},{"$f":"IF('[7]MONE(M)'!$AO418=\"\",\"\",'[7]MONE(M)'!$AO418)","v":""},{"$f":"IF('[8]MONE(M)'!$AO418=\"\",\"\",'[8]MONE(M)'!$AO418)","v":""},"","","","","","",""]
[2024,"febrero","2024-febrero",null,null,null,null,null,null,null,null,null,null,null,null,null,null,null,null,null,null,null,null,null,null,null,null,null,null,null,null,null,null,null,null,null,null,null,null,null,null,null,null,null,null,null,null,null,null,null,null,null,null,null,null,null,null,null,null,null,null,{"$f":"IF('[2]MONE(M)CAPARD'!AS419=\"\",\"\",'[2]MONE(M)CAPARD'!AS419)","v":5.75},{"$f":"IF('[2]MONE(M)CAPARD'!AT419=\"\",\"\",'[2]MONE(M)CAPARD'!AT419)","v":"n.a."},{"$f":"IF('[2]MONE(M)CAPARD'!AU419=\"\",\"\",'[2]MONE(M)CAPARD'!AU419)","v":5},{"$f":"IF('[2]MONE(M)CAPARD'!AV419=\"\",\"\",'[2]MONE(M)CAPARD'!AV419)","v":3},{"$f":"IF('[2]MONE(M)CAPARD'!AW419=\"\",\"\",'[2]MONE(M)CAPARD'!AW419)","v":7},{"$f":"IF('[2]MONE(M)CAPARD'!AX419=\"\",\"\",'[2]MONE(M)CAPARD'!AX419)","v":7},{"$f":"IF('[2]MONE(M)CAPARD'!AY419=\"\",\"\",'[2]MONE(M)CAPARD'!AY419)","v":"n.a."}]
[2024,"marzo","2024-marzo"]
[2024,"abril","2024-abril"]
[2024,"mayo ","2024-mayo "]
[2024,"junio ","2024-junio "]
[2024,"julio","2024-julio"]
[2024,"agosto","2024-agosto"]
[2024,"septiembre","2024-septiembre"]
[2024,"octubre","2024-octubre"]
[2024,"noviembre","2024-noviembre"]
[2024,"diciembre","2024-diciembre"]

{"sheet":"Datos Regional (T)","index":12,"n_rows":138,"n_cols":31,"rows_kept":138,"cut":false,"hidden":true,"merged":[[0,22,0,30],[0,11,0,19],[0,20,0,21],[0,0,1,1],[0,2,0,10]]}
["Variables Trimestrales",null,"Ingresos por IED no acumulados",null,null,null,null,null,null,null,null,"Ingresos por IED acumulados",null,null,null,null,null,null,null,null,"Ingresos Remesas Acumuladas",null,"Ingresos de Remesas, flujos trimestrales"]
[null,null,"CR","SV","GT","HO","NI","RD","PA","CARD","CAPARD","CR","SV","GT","HO","NI","RD","PA","CARD","CAPARD","CARD","CAPARD","CR","SV","GT","HN","NI","DO","PA","CARD","CAPARD"]
[1990,"I",{"$f":"IF(+'[2]EXT(T)'!M10=\"\",\"\",+'[2]EXT(T)'!M10)","v":"n.d."},{"$f":"IF(+'[2]EXT(T)'!N10=\"\",\"\",+'[2]EXT(T)'!N10)","v":"n.d."},{"$f":"IF(+'[2]EXT(T)'!O10=\"\",\"\",+'[2]EXT(T)'!O10)","v":"n.d."},{"$f":"IF(+'[2]EXT(T)'!P10=\"\",\"\",+'[2]EXT(T)'!P10)","v":"n.d."},{"$f":"IF(+'[2]EXT(T)'!Q10=\"\",\"\",+'[2]EXT(T)'!Q10)","v":"n.d."},{"$f":"IF(+'[2]EXT(T)'!R10=\"\",\"\",+'[2]EXT(T)'!R10)","v":"n.d."},{"$f":"IF(+'[2]EXT(T)'!S10=\"\",\"\",+'[2]EXT(T)'!S10)","v":"n.d."},{"$f":"IF(+'[2]EXT(T)'!U10=\"\",\"\",+'[2]EXT(T)'!U10)","v":"n.d."},{"$f":"IF(+'[2]EXT(T)'!V10=\"\",\"\",+'[2]EXT(T)'!V10)","v":"n.d."},{"$f":"IF(+'[2]EXT(T)'!W10=\"\",\"\",+'[2]EXT(T)'!W10)","v":"n.d."},{"$f":"IF(+'[2]EXT(T)'!X10=\"\",\"\",+'[2]EXT(T)'!X10)","v":"n.d."},{"$f":"IF(+'[2]EXT(T)'!Y10=\"\",\"\",+'[2]EXT(T)'!Y10)","v":"n.d."},{"$f":"IF(+'[2]EXT(T)'!Z10=\"\",\"\",+'[2]EXT(T)'!Z10)","v":"n.d."},{"$f":"IF(+'[2]EXT(T)'!AA10=\"\",\"\",+'[2]EXT(T)'!AA10)","v":"n.d."},{"$f":"IF(+'[2]EXT(T)'!AB10=\"\",\"\",+'[2]EXT(T)'!AB10)","v":"n.d."},{"$f":"IF(+'[2]EXT(T)'!AC10=\"\",\"\",+'[2]EXT(T)'!AC10)","v":"n.d."},{"$f":"IF(+'[2]EXT(T)'!AE10=\"\",\"\",+'[2]EXT(T)'!AE10)","v":"n.d."},{"$f":"IF(+'[2]EXT(T)'!AF10=\"\",\"\",+'[2]EXT(T)'!AF10)","v":"n.d."},{"$f":"IF(+'[2]EXT(T)'!AY10=\"\",\"\",+'[2]EXT(T)'!AY10)","v":"n.d."},{"$f":"IF(+'[2]EXT(T)'!AZ10=\"\",\"\",+'[2]EXT(T)'!AZ10)","v":"n.d."},"n.d.","n.d.","n.d.","n.d.","n.d.","n.d.","n.d.","n.d.","n.d."]
[null,"II",{"$f":"IF(+'[2]EXT(T)'!M11=\"\",\"\",+'[2]EXT(T)'!M11)","v":"n.d."},{"$f":"IF(+'[2]EXT(T)'!N11=\"\",\"\",+'[2]EXT(T)'!N11)","v":"n.d."},{"$f":"IF(+'[2]EXT(T)'!O11=\"\",\"\",+'[2]EXT(T)'!O11)","v":"n.d."},{"$f":"IF(+'[2]EXT(T)'!P11=\"\",\"\",+'[2]EXT(T)'!P11)","v":"n.d."},{"$f":"IF(+'[2]EXT(T)'!Q11=\"\",\"\",+'[2]EXT(T)'!Q11)","v":"n.d."},{"$f":"IF(+'[2]EXT(T)'!R11=\"\",\"\",+'[2]EXT(T)'!R11)","v":"n.d."},{"$f":"IF(+'[2]EXT(T)'!S11=\"\",\"\",+'[2]EXT(T)'!S11)","v":"n.d."},{"$f":"IF(+'[2]EXT(T)'!U11=\"\",\"\",+'[2]EXT(T)'!U11)","v":"n.d."},{"$f":"IF(+'[2]EXT(T)'!V11=\"\",\"\",+'[2]EXT(T)'!V11)","v":"n.d."},{"$f":"IF(+'[2]EXT(T)'!W11=\"\",\"\",+'[2]EXT(T)'!W11)","v":"n.d."},{"$f":"IF(+'[2]EXT(T)'!X11=\"\",\"\",+'[2]EXT(T)'!X11)","v":"n.d."},{"$f":"IF(+'[2]EXT(T)'!Y11=\"\",\"\",+'[2]EXT(T)'!Y11)","v":"n.d."},{"$f":"IF(+'[2]EXT(T)'!Z11=\"\",\"\",+'[2]EXT(T)'!Z11)","v":"n.d."},{"$f":"IF(+'[2]EXT(T)'!AA11=\"\",\"\",+'[2]EXT(T)'!AA11)","v":"n.d."},{"$f":"IF(+'[2]EXT(T)'!AB11=\"\",\"\",+'[2]EXT(T)'!AB11)","v":"n.d."},{"$f":"IF(+'[2]EXT(T)'!AC11=\"\",\"\",+'[2]EXT(T)'!AC11)","v":"n.d."},{"$f":"IF(+'[2]EXT(T)'!AE11=\"\",\"\",+'[2]EXT(T)'!AE11)","v":"n.d."},{"$f":"IF(+'[2]EXT(T)'!AF11=\"\",\"\",+'[2]EXT(T)'!AF11)","v":"n.d."},{"$f":"IF(+'[2]EXT(T)'!AY11=\"\",\"\",+'[2]EXT(T)'!AY11)","v":"n.d."},{"$f":"IF(+'[2]EXT(T)'!AZ11=\"\",\"\",+'[2]EXT(T)'!AZ11)","v":"n.d."},"n.d.","n.d.","n.d.","n.d.","n.d.","n.d.","n.d.","n.d.","n.d."]
[null,"III",{"$f":"IF(+'[2]EXT(T)'!M12=\"\",\"\",+'[2]EXT(T)'!M12)","v":"n.d."},{"$f":"IF(+'[2]EXT(T)'!N12=\"\",\"\",+'[2]EXT(T)'!N12)","v":"n.d."},{"$f":"IF(+'[2]EXT(T)'!O12=\"\",\"\",+'[2]EXT(T)'!O12)","v":"n.d."},{"$f":"IF(+'[2]EXT(T)'!P12=\"\",\"\",+'[2]EXT(T)'!P12)","v":"n.d."},{"$f":"IF(+'[2]EXT(T)'!Q12=\"\",\"\",+'[2]EXT(T)'!Q12)","v":"n.d."},{"$f":"IF(+'[2]EXT(T)'!R12=\"\",\"\",+'[2]EXT(T)'!R12)","v":"n.d."},{"$f":"IF(+'[2]EXT(T)'!S12=\"\",\"\",+'[2]EXT(T)'!S12)","v":"n.d."},{"$f":"IF(+'[2]EXT(T)'!U12=\"\",\"\",+'[2]EXT(T)'!U12)","v":"n.d."},{"$f":"IF(+'[2]EXT(T)'!V12=\"\",\"\",+'[2]EXT(T)'!V12)","v":"n.d."},{"$f":"IF(+'[2]EXT(T)'!W12=\"\",\"\",+'[2]EXT(T)'!W12)","v":"n.d."},{"$f":"IF(+'[2]EXT(T)'!X12=\"\",\"\",+'[2]EXT(T)'!X12)","v":"n.d."},{"$f":"IF(+'[2]EXT(T)'!Y12=\"\",\"\",+'[2]EXT(T)'!Y12)","v":"n.d."},{"$f":"IF(+'[2]EXT(T)'!Z12=\"\",\"\",+'[2]EXT(T)'!Z12)","v":"n.d."},{"$f":"IF(+'[2]EXT(T)'!AA12=\"\",\"\",+'[2]EXT(T)'!AA12)","v":"n.d."},{"$f":"IF(+'[2]EXT(T)'!AB12=\"\",\"\",+'[2]EXT(T)'!AB12)","v":"n.d."},{"$f":"IF(+'[2]EXT(T)'!AC12=\"\",\"\",+'[2]EXT(T)'!AC12)","v":"n.d."},{"$f":"IF(+'[2]EXT(T)'!AE12=\"\",\"\",+'[2]EXT(T)'!AE12)","v":"n.d."},{"$f":"IF(+'[2]EXT(T)'!AF12=\"\",\"\",+'[2]EXT(T)'!AF12)","v":"n.d."},{"$f":"IF(+'[2]EXT(T)'!AY12=\"\",\"\",+'[2]EXT(T)'!AY12)","v":"n.d."},{"$f":"IF(+'[2]EXT(T)'!AZ12=\"\",\"\",+'[2]EXT(T)'!AZ12)","v":"n.d."},"n.d.","n.d.","n.d.","n.d.","n.d.","n.d.","n.d.","n.d.","n.d."]
[null,"IV",{"$f":"IF(+'[2]EXT(T)'!M13=\"\",\"\",+'[2]EXT(T)'!M13)","v":"n.d."},{"$f":"IF(+'[2]EXT(T)'!N13=\"\",\"\",+'[2]EXT(T)'!N13)","v":"n.d."},{"$f":"IF(+'[2]EXT(T)'!O13=\"\",\"\",+'[2]EXT(T)'!O13)","v":"n.d."},{"$f":"IF(+'[2]EXT(T)'!P13=\"\",\"\",+'[2]EXT(T)'!P13)","v":"n.d."},{"$f":"IF(+'[2]EXT(T)'!Q13=\"\",\"\",+'[2]EXT(T)'!Q13)","v":"n.d."},{"$f":"IF(+'[2]EXT(T)'!R13=\"\",\"\",+'[2]EXT(T)'!R13)","v":"n.d."},{"$f":"IF(+'[2]EXT(T)'!S13=\"\",\"\",+'[2]EXT(T)'!S13)","v":"n.d."},{"$f":"IF(+'[2]EXT(T)'!U13=\"\",\"\",+'[2]EXT(T)'!U13)","v":"n.d."},{"$f":"IF(+'[2]EXT(T)'!V13=\"\",\"\",+'[2]EXT(T)'!V13)","v":"n.d."},{"$f":"IF(+'[2]EXT(T)'!W13=\"\",\"\",+'[2]EXT(T)'!W13)","v":"n.d."},{"$f":"IF(+'[2]EXT(T)'!X13=\"\",\"\",+'[2]EXT(T)'!X13)","v":"n.d."},{"$f":"IF(+'[2]EXT(T)'!Y13=\"\",\"\",+'[2]EXT(T)'!Y13)","v":"n.d."},{"$f":"IF(+'[2]EXT(T)'!Z13=\"\",\"\",+'[2]EXT(T)'!Z13)","v":"n.d."},{"$f":"IF(+'[2]EXT(T)'!AA13=\"\",\"\",+'[2]EXT(T)'!AA13)","v":"n.d."},{"$f":"IF(+'[2]EXT(T)'!AB13=\"\",\"\",+'[2]EXT(T)'!AB13)","v":"n.d."},{"$f":"IF(+'[2]EXT(T)'!AC13=\"\",\"\",+'[2]EXT(T)'!AC13)","v":"n.d."},{"$f":"IF(+'[2]EXT(T)'!AE13=\"\",\"\",+'[2]EXT(T)'!AE13)","v":"n.d."},{"$f":"IF(+'[2]EXT(T)'!AF13=\"\",\"\",+'[2]EXT(T)'!AF13)","v":"n.d."},{"$f":"IF(+'[2]EXT(T)'!AY13=\"\",\"\",+'[2]EXT(T)'!AY13)","v":"n.d."},{"$f":"IF(+'[2]EXT(T)'!AZ13=\"\",\"\",+'[2]EXT(T)'!AZ13)","v":"n.d."},"n.d.","n.d.","n.d.","n.d.","n.d.","n.d.","n.d.","n.d.","n.d."]
[1991,"I",{"$f":"IF(+'[2]EXT(T)'!M14=\"\",\"\",+'[2]EXT(T)'!M14)","v":"n.d."},{"$f":"IF(+'[2]EXT(T)'!N14=\"\",\"\",+'[2]EXT(T)'!N14)","v":"n.d."},{"$f":"IF(+'[2]EXT(T)'!O14=\"\",\"\",+'[2]EXT(T)'!O14)","v":"n.d."},{"$f":"IF(+'[2]EXT(T)'!P14=\"\",\"\",+'[2]EXT(T)'!P14)","v":"n.d."},{"$f":"IF(+'[2]EXT(T)'!Q14=\"\",\"\",+'[2]EXT(T)'!Q14)","v":"n.d."},{"$f":"IF(+'[2]EXT(T)'!R14=\"\",\"\",+'[2]EXT(T)'!R14)","v":"n.d."},{"$f":"IF(+'[2]EXT(T)'!S14=\"\",\"\",+'[2]EXT(T)'!S14)","v":"n.d."},{"$f":"IF(+'[2]EXT(T)'!U14=\"\",\"\",+'[2]EXT(T)'!U14)","v":"n.d."},{"$f":"IF(+'[2]EXT(T)'!V14=\"\",\"\",+'[2]EXT(T)'!V14)","v":"n.d."},{"$f":"IF(+'[2]EXT(T)'!W14=\"\",\"\",+'[2]EXT(T)'!W14)","v":"n.d."},{"$f":"IF(+'[2]EXT(T)'!X14=\"\",\"\",+'[2]EXT(T)'!X14)","v":"n.d."},{"$f":"IF(+'[2]EXT(T)'!Y14=\"\",\"\",+'[2]EXT(T)'!Y14)","v":"n.d."},{"$f":"IF(+'[2]EXT(T)'!Z14=\"\",\"\",+'[2]EXT(T)'!Z14)","v":"n.d."},{"$f":"IF(+'[2]EXT(T)'!AA14=\"\",\"\",+'[2]EXT(T)'!AA14)","v":"n.d."},{"$f":"IF(+'[2]EXT(T)'!AB14=\"\",\"\",+'[2]EXT(T)'!AB14)","v":"n.d."},{"$f":"IF(+'[2]EXT(T)'!AC14=\"\",\"\",+'[2]EXT(T)'!AC14)","v":"n.d."},{"$f":"IF(+'[2]EXT(T)'!AE14=\"\",\"\",+'[2]EXT(T)'!AE14)","v":"n.d."},{"$f":"IF(+'[2]EXT(T)'!AF14=\"\",\"\",+'[2]EXT(T)'!AF14)","v":"n.d."},{"$f":"IF(+'[2]EXT(T)'!AY14=\"\",\"\",+'[2]EXT(T)'!AY14)","v":"n.d."},{"$f":"IF(+'[2]EXT(T)'!AZ14=\"\",\"\",+'[2]EXT(T)'!AZ14)","v":"n.d."},"n.d.",{"$f":"IF(+'[2]EXT(T)'!AR14=\"\",\"\",+'[2]EXT(T)'!AR14)","v":189.1},"n.d.","n.d.","n.d.","n.d.","n.d.","n.d.","n.d."]
[null,"II",{"$f":"IF(+'[2]EXT(T)'!M15=\"\",\"\",+'[2]EXT(T)'!M15)","v":"n.d."},{"$f":"IF(+'[2]EXT(T)'!N15=\"\",\"\",+'[2]EXT(T)'!N15)","v":"n.d."},{"$f":"IF(+'[2]EXT(T)'!O15=\"\",\"\",+'[2]EXT(T)'!O15)","v":"n.d."},{"$f":"IF(+'[2]EXT(T)'!P15=\"\",\"\",+'[2]EXT(T)'!P15)","v":"n.d."},{"$f":"IF(+'[2]EXT(T)'!Q15=\"\",\"\",+'[2]EXT(T)'!Q15)","v":"n.d."},{"$f":"IF(+'[2]EXT(T)'!R15=\"\",\"\",+'[2]EXT(T)'!R15)","v":"n.d."},{"$f":"IF(+'[2]EXT(T)'!S15=\"\",\"\",+'[2]EXT(T)'!S15)","v":"n.d."},{"$f":"IF(+'[2]EXT(T)'!U15=\"\",\"\",+'[2]EXT(T)'!U15)","v":"n.d."},{"$f":"IF(+'[2]EXT(T)'!V15=\"\",\"\",+'[2]EXT(T)'!V15)","v":"n.d."},{"$f":"IF(+'[2]EXT(T)'!W15=\"\",\"\",+'[2]EXT(T)'!W15)","v":"n.d."},{"$f":"IF(+'[2]EXT(T)'!X15=\"\",\"\",+'[2]EXT(T)'!X15)","v":"n.d."},{"$f":"IF(+'[2]EXT(T)'!Y15=\"\",\"\",+'[2]EXT(T)'!Y15)","v":"n.d."},{"$f":"IF(+'[2]EXT(T)'!Z15=\"\",\"\",+'[2]EXT(T)'!Z15)","v":"n.d."},{"$f":"IF(+'[2]EXT(T)'!AA15=\"\",\"\",+'[2]EXT(T)'!AA15)","v":"n.d."},{"$f":"IF(+'[2]EXT(T)'!AB15=\"\",\"\",+'[2]EXT(T)'!AB15)","v":"n.d."},{"$f":"IF(+'[2]EXT(T)'!AC15=\"\",\"\",+'[2]EXT(T)'!AC15)","v":"n.d."},{"$f":"IF(+'[2]EXT(T)'!AE15=\"\",\"\",+'[2]EXT(T)'!AE15)","v":"n.d."},{"$f":"IF(+'[2]EXT(T)'!AF15=\"\",\"\",+'[2]EXT(T)'!AF15)","v":"n.d."},{"$f":"IF(+'[2]EXT(T)'!AY15=\"\",\"\",+'[2]EXT(T)'!AY15)","v":"n.d."},{"$f":"IF(+'[2]EXT(T)'!AZ15=\"\",\"\",+'[2]EXT(T)'!AZ15)","v":"n.d."},"n.d.",{"$f":"IF(+'[2]EXT(T)'!AR15=\"\",\"\",+'[2]EXT(T)'!AR15-'[2]EXT(T)'!AR14)","v":222.99999999999997},"n.d.","n.d.","n.d.","n.d.","n.d.","n.d.","n.d."]
[null,"III",{"$f":"IF(+'[2]EXT(T)'!M16=\"\",\"\",+'[2]EXT(T)'!M16)","v":"n.d."},{"$f":"IF(+'[2]EXT(T)'!N16=\"\",\"\",+'[2]EXT(T)'!N16)","v":"n.d."},{"$f":"IF(+'[2]EXT(T)'!O16=\"\",\"\",+'[2]EXT(T)'!O16)","v":"n.d."},{"$f":"IF(+'[2]EXT(T)'!P16=\"\",\"\",+'[2]EXT(T)'!P16)","v":"n.d."},{"$f":"IF(+'[2]EXT(T)'!Q16=\"\",\"\",+'[2]EXT(T)'!Q16)","v":"n.d."},{"$f":"IF(+'[2]EXT(T)'!R16=\"\",\"\",+'[2]EXT(T)'!R16)","v":"n.d."},{"$f":"IF(+'[2]EXT(T)'!S16=\"\",\"\",+'[2]EXT(T)'!S16)","v":"n.d."},{"$f":"IF(+'[2]EXT(T)'!U16=\"\",\"\",+'[2]EXT(T)'!U16)","v":"n.d."},{"$f":"IF(+'[2]EXT(T)'!V16=\"\",\"\",+'[2]EXT(T)'!V16)","v":"n.d."},{"$f":"IF(+'[2]EXT(T)'!W16=\"\",\"\",+'[2]EXT(T)'!W16)","v":"n.d."},{"$f":"IF(+'[2]EXT(T)'!X16=\"\",\"\",+'[2]EXT(T)'!X16)","v":"n.d."},{"$f":"IF(+'[2]EXT(T)'!Y16=\"\",\"\",+'[2]EXT(T)'!Y16)","v":"n.d."},{"$f":"IF(+'[2]EXT(T)'!Z16=\"\",\"\",+'[2]EXT(T)'!Z16)","v":"n.d."},{"$f":"IF(+'[2]EXT(T)'!AA16=\"\",\"\",+'[2]EXT(T)'!AA16)","v":"n.d."},{"$f":"IF(+'[2]EXT(T)'!AB16=\"\",\"\",+'[2]EXT(T)'!AB16)","v":"n.d."},{"$f":"IF(+'[2]EXT(T)'!AC16=\"\",\"\",+'[2]EXT(T)'!AC16)","v":"n.d."},{"$f":"IF(+'[2]EXT(T)'!AE16=\"\",\"\",+'[2]EXT(T)'!AE16)","v":"n.d."},{"$f":"IF(+'[2]EXT(T)'!AF16=\"\",\"\",+'[2]EXT(T)'!AF16)","v":"n.d."},{"$f":"IF(+'[2]EXT(T)'!AY16=\"\",\"\",+'[2]EXT(T)'!AY16)","v":"n.d."},{"$f":"IF(+'[2]EXT(T)'!AZ16=\"\",\"\",+'[2]EXT(T)'!AZ16)","v":"n.d."},"n.d.",{"$f":"IF(+'[2]EXT(T)'!AR16=\"\",\"\",+'[2]EXT(T)'!AR16-'[2]EXT(T)'!AR15)","v":176.59999999999997},"n.d.","n.d.","n.d.","n.d.","n.d.","n.d.","n.d."]
[null,"IV",{"$f":"IF(+'[2]EXT(T)'!M17=\"\",\"\",+'[2]EXT(T)'!M17)","v":"n.d."},{"$f":"IF(+'[2]EXT(T)'!N17=\"\",\"\",+'[2]EXT(T)'!N17)","v":"n.d."},{"$f":"IF(+'[2]EXT(T)'!O17=\"\",\"\",+'[2]EXT(T)'!O17)","v":"n.d."},{"$f":"IF(+'[2]EXT(T)'!P17=\"\",\"\",+'[2]EXT(T)'!P17)","v":"n.d."},{"$f":"IF(+'[2]EXT(T)'!Q17=\"\",\"\",+'[2]EXT(T)'!Q17)","v":"n.d."},{"$f":"IF(+'[2]EXT(T)'!R17=\"\",\"\",+'[2]EXT(T)'!R17)","v":"n.d."},{"$f":"IF(+'[2]EXT(T)'!S17=\"\",\"\",+'[2]EXT(T)'!S17)","v":"n.d."},{"$f":"IF(+'[2]EXT(T)'!U17=\"\",\"\",+'[2]EXT(T)'!U17)","v":"n.d."},{"$f":"IF(+'[2]EXT(T)'!V17=\"\",\"\",+'[2]EXT(T)'!V17)","v":"n.d."},{"$f":"IF(+'[2]EXT(T)'!W17=\"\",\"\",+'[2]EXT(T)'!W17)","v":"n.d."},{"$f":"IF(+'[2]EXT(T)'!X17=\"\",\"\",+'[2]EXT(T)'!X17)","v":"n.d."},{"$f":"IF(+'[2]EXT(T)'!Y17=\"\",\"\",+'[2]EXT(T)'!Y17)","v":"n.d."},{"$f":"IF(+'[2]EXT(T)'!Z17=\"\",\"\",+'[2]EXT(T)'!Z17)","v":"n.d."},{"$f":"IF(+'[2]EXT(T)'!AA17=\"\",\"\",+'[2]EXT(T)'!AA17)","v":"n.d."},{"$f":"IF(+'[2]EXT(T)'!AB17=\"\",\"\",+'[2]EXT(T)'!AB17)","v":"n.d."},{"$f":"IF(+'[2]EXT(T)'!AC17=\"\",\"\",+'[2]EXT(T)'!AC17)","v":"n.d."},{"$f":"IF(+'[2]EXT(T)'!AE17=\"\",\"\",+'[2]EXT(T)'!AE17)","v":"n.d."},{"$f":"IF(+'[2]EXT(T)'!AF17=\"\",\"\",+'[2]EXT(T)'!AF17)","v":"n.d."},{"$f":"IF(+'[2]EXT(T)'!AY17=\"\",\"\",+'[2]EXT(T)'!AY17)","v":"n.d."},{"$f":"IF(+'[2]EXT(T)'!AZ17=\"\",\"\",+'[2]EXT(T)'!AZ17)","v":"n.d."},"n.d.",{"$f":"IF(+'[2]EXT(T)'!AR17=\"\",\"\",+'[2]EXT(T)'!AR17-'[2]EXT(T)'!AR16)","v":201.39999999999998},"n.d.","n.d.","n.d.","n.d.","n.d.","n.d.","n.d."]
[1992,"I",{"$f":"IF(+'[2]EXT(T)'!M18=\"\",\"\",+'[2]EXT(T)'!M18)","v":"n.d."},{"$f":"IF(+'[2]EXT(T)'!N18=\"\",\"\",+'[2]EXT(T)'!N18)","v":"n.d."},{"$f":"IF(+'[2]EXT(T)'!O18=\"\",\"\",+'[2]EXT(T)'!O18)","v":"n.d."},{"$f":"IF(+'[2]EXT(T)'!P18=\"\",\"\",+'[2]EXT(T)'!P18)","v":"n.d."},{"$f":"IF(+'[2]EXT(T)'!Q18=\"\",\"\",+'[2]EXT(T)'!Q18)","v":"n.d."},{"$f":"IF(+'[2]EXT(T)'!R18=\"\",\"\",+'[2]EXT(T)'!R18)","v":"n.d."},{"$f":"IF(+'[2]EXT(T)'!S18=\"\",\"\",+'[2]EXT(T)'!S18)","v":"n.d."},{"$f":"IF(+'[2]EXT(T)'!U18=\"\",\"\",+'[2]EXT(T)'!U18)","v":"n.d."},{"$f":"IF(+'[2]EXT(T)'!V18=\"\",\"\",+'[2]EXT(T)'!V18)","v":"n.d."},{"$f":"IF(+'[2]EXT(T)'!W18=\"\",\"\",+'[2]EXT(T)'!W18)","v":"n.d."},{"$f":"IF(+'[2]EXT(T)'!X18=\"\",\"\",+'[2]EXT(T)'!X18)","v":"n.d."},{"$f":"IF(+'[2]EXT(T)'!Y18=\"\",\"\",+'[2]EXT(T)'!Y18)","v":"n.d."},{"$f":"IF(+'[2]EXT(T)'!Z18=\"\",\"\",+'[2]EXT(T)'!Z18)","v":"n.d."},{"$f":"IF(+'[2]EXT(T)'!AA18=\"\",\"\",+'[2]EXT(T)'!AA18)","v":"n.d."},{"$f":"IF(+'[2]EXT(T)'!AB18=\"\",\"\",+'[2]EXT(T)'!AB18)","v":"n.d."},{"$f":"IF(+'[2]EXT(T)'!AC18=\"\",\"\",+'[2]EXT(T)'!AC18)","v":"n.d."},{"$f":"IF(+'[2]EXT(T)'!AE18=\"\",\"\",+'[2]EXT(T)'!AE18)","v":"n.d."},{"$f":"IF(+'[2]EXT(T)'!AF18=\"\",\"\",+'[2]EXT(T)'!AF18)","v":"n.d."},{"$f":"IF(+'[2]EXT(T)'!AY18=\"\",\"\",+'[2]EXT(T)'!AY18)","v":"n.d."},{"$f":"IF(+'[2]EXT(T)'!AZ18=\"\",\"\",+'[2]EXT(T)'!AZ18)","v":"n.d."},"n.d.",{"$f":"IF(+'[2]EXT(T)'!AR18=\"\",\"\",+'[2]EXT(T)'!AR18)","v":206.6},"n.d.","n.d.","n.d.","n.d.","n.d.","n.d.","n.d."]
[null,"II",{"$f":"IF(+'[2]EXT(T)'!M19=\"\",\"\",+'[2]EXT(T)'!M19)","v":"n.d."},{"$f":"IF(+'[2]EXT(T)'!N19=\"\",\"\",+'[2]EXT(T)'!N19)","v":"n.d."},{"$f":"IF(+'[2]EXT(T)'!O19=\"\",\"\",+'[2]EXT(T)'!O19)","v":"n.d."},{"$f":"IF(+'[2]EXT(T)'!P19=\"\",\"\",+'[2]EXT(T)'!P19)","v":"n.d."},{"$f":"IF(+'[2]EXT(T)'!Q19=\"\",\"\",+'[2]EXT(T)'!Q19)","v":"n.d."},{"$f":"IF(+'[2]EXT(T)'!R19=\"\",\"\",+'[2]EXT(T)'!R19)","v":"n.d."},{"$f":"IF(+'[2]EXT(T)'!S19=\"\",\"\",+'[2]EXT(T)'!S19)","v":"n.d."},{"$f":"IF(+'[2]EXT(T)'!U19=\"\",\"\",+'[2]EXT(T)'!U19)","v":"n.d."},{"$f":"IF(+'[2]EXT(T)'!V19=\"\",\"\",+'[2]EXT(T)'!V19)","v":"n.d."},{"$f":"IF(+'[2]EXT(T)'!W19=\"\",\"\",+'[2]EXT(T)'!W19)","v":"n.d."},{"$f":"IF(+'[2]EXT(T)'!X19=\"\",\"\",+'[2]EXT(T)'!X19)","v":"n.d."},{"$f":"IF(+'[2]EXT(T)'!Y19=\"\",\"\",+'[2]EXT(T)'!Y19)","v":"n.d."},{"$f":"IF(+'[2]EXT(T)'!Z19=\"\",\"\",+'[2]EXT(T)'!Z19)","v":"n.d."},{"$f":"IF(+'[2]EXT(T)'!AA19=\"\",\"\",+'[2]EXT(T)'!AA19)","v":"n.d."},{"$f":"IF(+'[2]EXT(T)'!AB19=\"\",\"\",+'[2]EXT(T)'!AB19)","v":"n.d."},{"$f":"IF(+'[2]EXT(T)'!AC19=\"\",\"\",+'[2]EXT(T)'!AC19)","v":"n.d."},{"$f":"IF(+'[2]EXT(T)'!AE19=\"\",\"\",+'[2]EXT(T)'!AE19)","v":"n.d."},{"$f":"IF(+'[2]EXT(T)'!AF19=\"\",\"\",+'[2]EXT(T)'!AF19)","v":"n.d."},{"$f":"IF(+'[2]EXT(T)'!AY19=\"\",\"\",+'[2]EXT(T)'!AY19)","v":"n.d."},{"$f":"IF(+'[2]EXT(T)'!AZ19=\"\",\"\",+'[2]EXT(T)'!AZ19)","v":"n.d."},"n.d.",{"$f":"IF(+'[2]EXT(T)'!AR19=\"\",\"\",+'[2]EXT(T)'!AR19-'[2]EXT(T)'!AR18)","v":226.4},"n.d.","n.d.","n.d.","n.d.","n.d.","n.d.","n.d."]
[null,"III",{"$f":"IF(+'[2]EXT(T)'!M20=\"\",\"\",+'[2]EXT(T)'!M20)","v":"n.d."},{"$f":"IF(+'[2]EXT(T)'!N20=\"\",\"\",+'[2]EXT(T)'!N20)","v":"n.d."},{"$f":"IF(+'[2]EXT(T)'!O20=\"\",\"\",+'[2]EXT(T)'!O20)","v":"n.d."},{"$f":"IF(+'[2]EXT(T)'!P20=\"\",\"\",+'[2]EXT(T)'!P20)","v":"n.d."},{"$f":"IF(+'[2]EXT(T)'!Q20=\"\",\"\",+'[2]EXT(T)'!Q20)","v":"n.d."},{"$f":"IF(+'[2]EXT(T)'!R20=\"\",\"\",+'[2]EXT(T)'!R20)","v":"n.d."},{"$f":"IF(+'[2]EXT(T)'!S20=\"\",\"\",+'[2]EXT(T)'!S20)","v":"n.d."},{"$f":"IF(+'[2]EXT(T)'!U20=\"\",\"\",+'[2]EXT(T)'!U20)","v":"n.d."},{"$f":"IF(+'[2]EXT(T)'!V20=\"\",\"\",+'[2]EXT(T)'!V20)","v":"n.d."},{"$f":"IF(+'[2]EXT(T)'!W20=\"\",\"\",+'[2]EXT(T)'!W20)","v":"n.d."},{"$f":"IF(+'[2]EXT(T)'!X20=\"\",\"\",+'[2]EXT(T)'!X20)","v":"n.d."},{"$f":"IF(+'[2]EXT(T)'!Y20=\"\",\"\",+'[2]EXT(T)'!Y20)","v":"n.d."},{"$f":"IF(+'[2]EXT(T)'!Z20=\"\",\"\",+'[2]EXT(T)'!Z20)","v":"n.d."},{"$f":"IF(+'[2]EXT(T)'!AA20=\"\",\"\",+'[2]EXT(T)'!AA20)","v":"n.d."},{"$f":"IF(+'[2]EXT(T)'!AB20=\"\",\"\",+'[2]EXT(T)'!AB20)","v":"n.d."},{"$f":"IF(+'[2]EXT(T)'!AC20=\"\",\"\",+'[2]EXT(T)'!AC20)","v":"n.d."},{"$f":"IF(+'[2]EXT(T)'!AE20=\"\",\"\",+'[2]EXT(T)'!AE20)","v":"n.d."},{"$f":"IF(+'[2]EXT(T)'!AF20=\"\",\"\",+'[2]EXT(T)'!AF20)","v":"n.d."},{"$f":"IF(+'[2]EXT(T)'!AY20=\"\",\"\",+'[2]EXT(T)'!AY20)","v":"n.d."},{"$f":"IF(+'[2]EXT(T)'!AZ20=\"\",\"\",+'[2]EXT(T)'!AZ20)","v":"n.d."},"n.d.",{"$f":"IF(+'[2]EXT(T)'!AR20=\"\",\"\",+'[2]EXT(T)'!AR20-'[2]EXT(T)'!AR19)","v":200},"n.d.","n.d.","n.d.","n.d.","n.d.","n.d.","n.d."]
[null,"IV",{"$f":"IF(+'[2]EXT(T)'!M21=\"\",\"\",+'[2]EXT(T)'!M21)","v":"n.d."},{"$f":"IF(+'[2]EXT(T)'!N21=\"\",\"\",+'[2]EXT(T)'!N21)","v":"n.d."},{"$f":"IF(+'[2]EXT(T)'!O21=\"\",\"\",+'[2]EXT(T)'!O21)","v":"n.d."},{"$f":"IF(+'[2]EXT(T)'!P21=\"\",\"\",+'[2]EXT(T)'!P21)","v":"n.d."},{"$f":"IF(+'[2]EXT(T)'!Q21=\"\",\"\",+'[2]EXT(T)'!Q21)","v":"n.d."},{"$f":"IF(+'[2]EXT(T)'!R21=\"\",\"\",+'[2]EXT(T)'!R21)","v":"n.d."},{"$f":"IF(+'[2]EXT(T)'!S21=\"\",\"\",+'[2]EXT(T)'!S21)","v":"n.d."},{"$f":"IF(+'[2]EXT(T)'!U21=\"\",\"\",+'[2]EXT(T)'!U21)","v":"n.d."},{"$f":"IF(+'[2]EXT(T)'!V21=\"\",\"\",+'[2]EXT(T)'!V21)","v":"n.d."},{"$f":"IF(+'[2]EXT(T)'!W21=\"\",\"\",+'[2]EXT(T)'!W21)","v":"n.d."},{"$f":"IF(+'[2]EXT(T)'!X21=\"\",\"\",+'[2]EXT(T)'!X21)","v":"n.d."},{"$f":"IF(+'[2]EXT(T)'!Y21=\"\",\"\",+'[2]EXT(T)'!Y21)","v":"n.d."},{"$f":"IF(+'[2]EXT(T)'!Z21=\"\",\"\",+'[2]EXT(T)'!Z21)","v":"n.d."},{"$f":"IF(+'[2]EXT(T)'!AA21=\"\",\"\",+'[2]EXT(T)'!AA21)","v":"n.d."},{"$f":"IF(+'[2]EXT(T)'!AB21=\"\",\"\",+'[2]EXT(T)'!AB21)","v":"n.d."},{"$f":"IF(+'[2]EXT(T)'!AC21=\"\",\"\",+'[2]EXT(T)'!AC21)","v":"n.d."},{"$f":"IF(+'[2]EXT(T)'!AE21=\"\",\"\",+'[2]EXT(T)'!AE21)","v":"n.d."},{"$f":"IF(+'[2]EXT(T)'!AF21=\"\",\"\",+'[2]EXT(T)'!AF21)","v":"n.d."},{"$f":"IF(+'[2]EXT(T)'!AY21=\"\",\"\",+'[2]EXT(T)'!AY21)","v":"n.d."},{"$f":"IF(+'[2]EXT(T)'!AZ21=\"\",\"\",+'[2]EXT(T)'!AZ21)","v":"n.d."},"n.d.",{"$f":"IF(+'[2]EXT(T)'!AR21=\"\",\"\",+'[2]EXT(T)'!AR21-'[2]EXT(T)'!AR20)","v":225.29999999999995},"n.d.","n.d.","n.d.","n.d.","n.d.","n.d.","n.d."]
[1993,"I",{"$f":"IF(+'[2]EXT(T)'!M22=\"\",\"\",+'[2]EXT(T)'!M22)","v":"n.d."},{"$f":"IF(+'[2]EXT(T)'!N22=\"\",\"\",+'[2]EXT(T)'!N22)","v":"n.d."},{"$f":"IF(+'[2]EXT(T)'!O22=\"\",\"\",+'[2]EXT(T)'!O22)","v":"n.d."},{"$f":"IF(+'[2]EXT(T)'!P22=\"\",\"\",+'[2]EXT(T)'!P22)","v":"n.d."},{"$f":"IF(+'[2]EXT(T)'!Q22=\"\",\"\",+'[2]EXT(T)'!Q22)","v":"n.d."},{"$f":"IF(+'[2]EXT(T)'!R22=\"\",\"\",+'[2]EXT(T)'!R22)","v":"n.d."},{"$f":"IF(+'[2]EXT(T)'!S22=\"\",\"\",+'[2]EXT(T)'!S22)","v":"n.d."},{"$f":"IF(+'[2]EXT(T)'!U22=\"\",\"\",+'[2]EXT(T)'!U22)","v":"n.d."},{"$f":"IF(+'[2]EXT(T)'!V22=\"\",\"\",+'[2]EXT(T)'!V22)","v":"n.d."},{"$f":"IF(+'[2]EXT(T)'!W22=\"\",\"\",+'[2]EXT(T)'!W22)","v":"n.d."},{"$f":"IF(+'[2]EXT(T)'!X22=\"\",\"\",+'[2]EXT(T)'!X22)","v":"n.d."},{"$f":"IF(+'[2]EXT(T)'!Y22=\"\",\"\",+'[2]EXT(T)'!Y22)","v":"n.d."},{"$f":"IF(+'[2]EXT(T)'!Z22=\"\",\"\",+'[2]EXT(T)'!Z22)","v":"n.d."},{"$f":"IF(+'[2]EXT(T)'!AA22=\"\",\"\",+'[2]EXT(T)'!AA22)","v":"n.d."},{"$f":"IF(+'[2]EXT(T)'!AB22=\"\",\"\",+'[2]EXT(T)'!AB22)","v":"n.d."},{"$f":"IF(+'[2]EXT(T)'!AC22=\"\",\"\",+'[2]EXT(T)'!AC22)","v":"n.d."},{"$f":"IF(+'[2]EXT(T)'!AE22=\"\",\"\",+'[2]EXT(T)'!AE22)","v":"n.d."},{"$f":"IF(+'[2]EXT(T)'!AF22=\"\",\"\",+'[2]EXT(T)'!AF22)","v":"n.d."},{"$f":"IF(+'[2]EXT(T)'!AY22=\"\",\"\",+'[2]EXT(T)'!AY22)","v":"n.d."},{"$f":"IF(+'[2]EXT(T)'!AZ22=\"\",\"\",+'[2]EXT(T)'!AZ22)","v":"n.d."},"n.d.",{"$f":"IF(+'[2]EXT(T)'!AR22=\"\",\"\",+'[2]EXT(T)'!AR22)","v":204},"n.d.","n.d.","n.d.","n.d.","n.d.","n.d.","n.d."]
[null,"II",{"$f":"IF(+'[2]EXT(T)'!M23=\"\",\"\",+'[2]EXT(T)'!M23)","v":"n.d."},{"$f":"IF(+'[2]EXT(T)'!N23=\"\",\"\",+'[2]EXT(T)'!N23)","v":"n.d."},{"$f":"IF(+'[2]EXT(T)'!O23=\"\",\"\",+'[2]EXT(T)'!O23)","v":"n.d."},{"$f":"IF(+'[2]EXT(T)'!P23=\"\",\"\",+'[2]EXT(T)'!P23)","v":"n.d."},{"$f":"IF(+'[2]EXT(T)'!Q23=\"\",\"\",+'[2]EXT(T)'!Q23)","v":"n.d."},{"$f":"IF(+'[2]EXT(T)'!R23=\"\",\"\",+'[2]EXT(T)'!R23)","v":"n.d."},{"$f":"IF(+'[2]EXT(T)'!S23=\"\",\"\",+'[2]EXT(T)'!S23)","v":"n.d."},{"$f":"IF(+'[2]EXT(T)'!U23=\"\",\"\",+'[2]EXT(T)'!U23)","v":"n.d."},{"$f":"IF(+'[2]EXT(T)'!V23=\"\",\"\",+'[2]EXT(T)'!V23)","v":"n.d."},{"$f":"IF(+'[2]EXT(T)'!W23=\"\",\"\",+'[2]EXT(T)'!W23)","v":"n.d."},{"$f":"IF(+'[2]EXT(T)'!X23=\"\",\"\",+'[2]EXT(T)'!X23)","v":"n.d."},{"$f":"IF(+'[2]EXT(T)'!Y23=\"\",\"\",+'[2]EXT(T)'!Y23)","v":"n.d."},{"$f":"IF(+'[2]EXT(T)'!Z23=\"\",\"\",+'[2]EXT(T)'!Z23)","v":"n.d."},{"$f":"IF(+'[2]EXT(T)'!AA23=\"\",\"\",+'[2]EXT(T)'!AA23)","v":"n.d."},{"$f":"IF(+'[2]EXT(T)'!AB23=\"\",\"\",+'[2]EXT(T)'!AB23)","v":"n.d."},{"$f":"IF(+'[2]EXT(T)'!AC23=\"\",\"\",+'[2]EXT(T)'!AC23)","v":"n.d."},{"$f":"IF(+'[2]EXT(T)'!AE23=\"\",\"\",+'[2]EXT(T)'!AE23)","v":"n.d."},{"$f":"IF(+'[2]EXT(T)'!AF23=\"\",\"\",+'[2]EXT(T)'!AF23)","v":"n.d."},{"$f":"IF(+'[2]EXT(T)'!AY23=\"\",\"\",+'[2]EXT(T)'!AY23)","v":"n.d."},{"$f":"IF(+'[2]EXT(T)'!AZ23=\"\",\"\",+'[2]EXT(T)'!AZ23)","v":"n.d."},"n.d.",{"$f":"IF(+'[2]EXT(T)'!AR23=\"\",\"\",+'[2]EXT(T)'!AR23-'[2]EXT(T)'!AR22)","v":223.60000000000002},"n.d.","n.d.","n.d.","n.d.","n.d.","n.d.","n.d."]
[null,"III",{"$f":"IF(+'[2]EXT(T)'!M24=\"\",\"\",+'[2]EXT(T)'!M24)","v":"n.d."},{"$f":"IF(+'[2]EXT(T)'!N24=\"\",\"\",+'[2]EXT(T)'!N24)","v":"n.d."},{"$f":"IF(+'[2]EXT(T)'!O24=\"\",\"\",+'[2]EXT(T)'!O24)","v":"n.d."},{"$f":"IF(+'[2]EXT(T)'!P24=\"\",\"\",+'[2]EXT(T)'!P24)","v":"n.d."},{"$f":"IF(+'[2]EXT(T)'!Q24=\"\",\"\",+'[2]EXT(T)'!Q24)","v":"n.d."},{"$f":"IF(+'[2]EXT(T)'!R24=\"\",\"\",+'[2]EXT(T)'!R24)","v":"n.d."},{"$f":"IF(+'[2]EXT(T)'!S24=\"\",\"\",+'[2]EXT(T)'!S24)","v":"n.d."},{"$f":"IF(+'[2]EXT(T)'!U24=\"\",\"\",+'[2]EXT(T)'!U24)","v":"n.d."},{"$f":"IF(+'[2]EXT(T)'!V24=\"\",\"\",+'[2]EXT(T)'!V24)","v":"n.d."},{"$f":"IF(+'[2]EXT(T)'!W24=\"\",\"\",+'[2]EXT(T)'!W24)","v":"n.d."},{"$f":"IF(+'[2]EXT(T)'!X24=\"\",\"\",+'[2]EXT(T)'!X24)","v":"n.d."},{"$f":"IF(+'[2]EXT(T)'!Y24=\"\",\"\",+'[2]EXT(T)'!Y24)","v":"n.d."},{"$f":"IF(+'[2]EXT(T)'!Z24=\"\",\"\",+'[2]EXT(T)'!Z24)","v":"n.d."},{"$f":"IF(+'[2]EXT(T)'!AA24=\"\",\"\",+'[2]EXT(T)'!AA24)","v":"n.d."},{"$f":"IF(+'[2]EXT(T)'!AB24=\"\",\"\",+'[2]EXT(T)'!AB24)","v":"n.d."},{"$f":"IF(+'[2]EXT(T)'!AC24=\"\",\"\",+'[2]EXT(T)'!AC24)","v":"n.d."},{"$f":"IF(+'[2]EXT(T)'!AE24=\"\",\"\",+'[2]EXT(T)'!AE24)","v":"n.d."},{"$f":"IF(+'[2]EXT(T)'!AF24=\"\",\"\",+'[2]EXT(T)'!AF24)","v":"n.d."},{"$f":"IF(+'[2]EXT(T)'!AY24=\"\",\"\",+'[2]EXT(T)'!AY24)","v":"n.d."},{"$f":"IF(+'[2]EXT(T)'!AZ24=\"\",\"\",+'[2]EXT(T)'!AZ24)","v":"n.d."},"n.d.",{"$f":"IF(+'[2]EXT(T)'!AR24=\"\",\"\",+'[2]EXT(T)'!AR24-'[2]EXT(T)'!AR23)","v":207.60000000000002},"n.d.","n.d.","n.d.","n.d.","n.d.","n.d.","n.d."]
[null,"IV",{"$f":"IF(+'[2]EXT(T)'!M25=\"\",\"\",+'[2]EXT(T)'!M25)","v":"n.d."},{"$f":"IF(+'[2]EXT(T)'!N25=\"\",\"\",+'[2]EXT(T)'!N25)","v":"n.d."},{"$f":"IF(+'[2]EXT(T)'!O25=\"\",\"\",+'[2]EXT(T)'!O25)","v":"n.d."},{"$f":"IF(+'[2]EXT(T)'!P25=\"\",\"\",+'[2]EXT(T)'!P25)","v":"n.d."},{"$f":"IF(+'[2]EXT(T)'!Q25=\"\",\"\",+'[2]EXT(T)'!Q25)","v":"n.d."},{"$f":"IF(+'[2]EXT(T)'!R25=\"\",\"\",+'[2]EXT(T)'!R25)","v":"n.d."},{"$f":"IF(+'[2]EXT(T)'!S25=\"\",\"\",+'[2]EXT(T)'!S25)","v":"n.d."},{"$f":"IF(+'[2]EXT(T)'!U25=\"\",\"\",+'[2]EXT(T)'!U25)","v":"n.d."},{"$f":"IF(+'[2]EXT(T)'!V25=\"\",\"\",+'[2]EXT(T)'!V25)","v":"n.d."},{"$f":"IF(+'[2]EXT(T)'!W25=\"\",\"\",+'[2]EXT(T)'!W25)","v":"n.d."},{"$f":"IF(+'[2]EXT(T)'!X25=\"\",\"\",+'[2]EXT(T)'!X25)","v":"n.d."},{"$f":"IF(+'[2]EXT(T)'!Y25=\"\",\"\",+'[2]EXT(T)'!Y25)","v":"n.d."},{"$f":"IF(+'[2]EXT(T)'!Z25=\"\",\"\",+'[2]EXT(T)'!Z25)","v":"n.d."},{"$f":"IF(+'[2]EXT(T)'!AA25=\"\",\"\",+'[2]EXT(T)'!AA25)","v":"n.d."},{"$f":"IF(+'[2]EXT(T)'!AB25=\"\",\"\",+'[2]EXT(T)'!AB25)","v":"n.d."},{"$f":"IF(+'[2]EXT(T)'!AC25=\"\",\"\",+'[2]EXT(T)'!AC25)","v":"n.d."},{"$f":"IF(+'[2]EXT(T)'!AE25=\"\",\"\",+'[2]EXT(T)'!AE25)","v":"n.d."},{"$f":"IF(+'[2]EXT(T)'!AF25=\"\",\"\",+'[2]EXT(T)'!AF25)","v":"n.d."},{"$f":"IF(+'[2]EXT(T)'!AY25=\"\",\"\",+'[2]EXT(T)'!AY25)","v":"n.d."},{"$f":"IF(+'[2]EXT(T)'!AZ25=\"\",\"\",+'[2]EXT(T)'!AZ25)","v":"n.d."},"n.d.",{"$f":"IF(+'[2]EXT(T)'!AR25=\"\",\"\",+'[2]EXT(T)'!AR25-'[2]EXT(T)'!AR24)","v":228.90000000000009},"n.d.","n.d.","n.d.","n.d.","n.d.","n.d.","n.d."]
[1994,"I",{"$f":"IF(+'[2]EXT(T)'!M26=\"\",\"\",+'[2]EXT(T)'!M26)","v":"n.d."},{"$f":"IF(+'[2]EXT(T)'!N26=\"\",\"\",+'[2]EXT(T)'!N26)","v":"n.d."},{"$f":"IF(+'[2]EXT(T)'!O26=\"\",\"\",+'[2]EXT(T)'!O26)","v":"n.d."},{"$f":"IF(+'[2]EXT(T)'!P26=\"\",\"\",+'[2]EXT(T)'!P26)","v":"n.d."},{"$f":"IF(+'[2]EXT(T)'!Q26=\"\",\"\",+'[2]EXT(T)'!Q26)","v":"n.d."},{"$f":"IF(+'[2]EXT(T)'!R26=\"\",\"\",+'[2]EXT(T)'!R26)","v":"n.d."},{"$f":"IF(+'[2]EXT(T)'!S26=\"\",\"\",+'[2]EXT(T)'!S26)","v":"n.d."},{"$f":"IF(+'[2]EXT(T)'!U26=\"\",\"\",+'[2]EXT(T)'!U26)","v":"n.d."},{"$f":"IF(+'[2]EXT(T)'!V26=\"\",\"\",+'[2]EXT(T)'!V26)","v":"n.d."},{"$f":"IF(+'[2]EXT(T)'!W26=\"\",\"\",+'[2]EXT(T)'!W26)","v":"n.d."},{"$f":"IF(+'[2]EXT(T)'!X26=\"\",\"\",+'[2]EXT(T)'!X26)","v":"n.d."},{"$f":"IF(+'[2]EXT(T)'!Y26=\"\",\"\",+'[2]EXT(T)'!Y26)","v":"n.d."},{"$f":"IF(+'[2]EXT(T)'!Z26=\"\",\"\",+'[2]EXT(T)'!Z26)","v":"n.d."},{"$f":"IF(+'[2]EXT(T)'!AA26=\"\",\"\",+'[2]EXT(T)'!AA26)","v":"n.d."},{"$f":"IF(+'[2]EXT(T)'!AB26=\"\",\"\",+'[2]EXT(T)'!AB26)","v":"n.d."},{"$f":"IF(+'[2]EXT(T)'!AC26=\"\",\"\",+'[2]EXT(T)'!AC26)","v":"n.d."},{"$f":"IF(+'[2]EXT(T)'!AE26=\"\",\"\",+'[2]EXT(T)'!AE26)","v":"n.d."},{"$f":"IF(+'[2]EXT(T)'!AF26=\"\",\"\",+'[2]EXT(T)'!AF26)","v":"n.d."},{"$f":"IF(+'[2]EXT(T)'!AY26=\"\",\"\",+'[2]EXT(T)'!AY26)","v":"n.d."},{"$f":"IF(+'[2]EXT(T)'!AZ26=\"\",\"\",+'[2]EXT(T)'!AZ26)","v":"n.d."},"n.d.",{"$f":"IF(+'[2]EXT(T)'!AR26=\"\",\"\",+'[2]EXT(T)'!AR26)","v":223.4},{"$f":"IF(+'[2]EXT(T)'!AS26=\"\",\"\",+'[2]EXT(T)'!AS26)","v":58.029300000000006},"n.d.","n.d.","n.d.","n.d.","n.d.","n.d."]
[null,"II",{"$f":"IF(+'[2]EXT(T)'!M27=\"\",\"\",+'[2]EXT(T)'!M27)","v":"n.d."},{"$f":"IF(+'[2]EXT(T)'!N27=\"\",\"\",+'[2]EXT(T)'!N27)","v":"n.d."},{"$f":"IF(+'[2]EXT(T)'!O27=\"\",\"\",+'[2]EXT(T)'!O27)","v":"n.d."},{"$f":"IF(+'[2]EXT(T)'!P27=\"\",\"\",+'[2]EXT(T)'!P27)","v":"n.d."},{"$f":"IF(+'[2]EXT(T)'!Q27=\"\",\"\",+'[2]EXT(T)'!Q27)","v":"n.d."},{"$f":"IF(+'[2]EXT(T)'!R27=\"\",\"\",+'[2]EXT(T)'!R27)","v":"n.d."},{"$f":"IF(+'[2]EXT(T)'!S27=\"\",\"\",+'[2]EXT(T)'!S27)","v":"n.d."},{"$f":"IF(+'[2]EXT(T)'!U27=\"\",\"\",+'[2]EXT(T)'!U27)","v":"n.d."},{"$f":"IF(+'[2]EXT(T)'!V27=\"\",\"\",+'[2]EXT(T)'!V27)","v":"n.d."},{"$f":"IF(+'[2]EXT(T)'!W27=\"\",\"\",+'[2]EXT(T)'!W27)","v":"n.d."},{"$f":"IF(+'[2]EXT(T)'!X27=\"\",\"\",+'[2]EXT(T)'!X27)","v":"n.d."},{"$f":"IF(+'[2]EXT(T)'!Y27=\"\",\"\",+'[2]EXT(T)'!Y27)","v":"n.d."},{"$f":"IF(+'[2]EXT(T)'!Z27=\"\",\"\",+'[2]EXT(T)'!Z27)","v":"n.d."},{"$f":"IF(+'[2]EXT(T)'!AA27=\"\",\"\",+'[2]EXT(T)'!AA27)","v":"n.d."},{"$f":"IF(+'[2]EXT(T)'!AB27=\"\",\"\",+'[2]EXT(T)'!AB27)","v":"n.d."},{"$f":"IF(+'[2]EXT(T)'!AC27=\"\",\"\",+'[2]EXT(T)'!AC27)","v":"n.d."},{"$f":"IF(+'[2]EXT(T)'!AE27=\"\",\"\",+'[2]EXT(T)'!AE27)","v":"n.d."},{"$f":"IF(+'[2]EXT(T)'!AF27=\"\",\"\",+'[2]EXT(T)'!AF27)","v":"n.d."},{"$f":"IF(+'[2]EXT(T)'!AY27=\"\",\"\",+'[2]EXT(T)'!AY27)","v":"n.d."},{"$f":"IF(+'[2]EXT(T)'!AZ27=\"\",\"\",+'[2]EXT(T)'!AZ27)","v":"n.d."},"n.d.",{"$f":"IF(+'[2]EXT(T)'!AR27=\"\",\"\",+'[2]EXT(T)'!AR27-'[2]EXT(T)'!AR26)","v":244.29999999999993},{"$f":"IF(+'[2]EXT(T)'!AS27=\"\",\"\",+'[2]EXT(T)'!AS27-'[2]EXT(T)'!AS26)","v":84.6464},"n.d.","n.d.","n.d.","n.d.","n.d.","n.d."]
[null,"III",{"$f":"IF(+'[2]EXT(T)'!M28=\"\",\"\",+'[2]EXT(T)'!M28)","v":"n.d."},{"$f":"IF(+'[2]EXT(T)'!N28=\"\",\"\",+'[2]EXT(T)'!N28)","v":"n.d."},{"$f":"IF(+'[2]EXT(T)'!O28=\"\",\"\",+'[2]EXT(T)'!O28)","v":"n.d."},{"$f":"IF(+'[2]EXT(T)'!P28=\"\",\"\",+'[2]EXT(T)'!P28)","v":"n.d."},{"$f":"IF(+'[2]EXT(T)'!Q28=\"\",\"\",+'[2]EXT(T)'!Q28)","v":"n.d."},{"$f":"IF(+'[2]EXT(T)'!R28=\"\",\"\",+'[2]EXT(T)'!R28)","v":"n.d."},{"$f":"IF(+'[2]EXT(T)'!S28=\"\",\"\",+'[2]EXT(T)'!S28)","v":"n.d."},{"$f":"IF(+'[2]EXT(T)'!U28=\"\",\"\",+'[2]EXT(T)'!U28)","v":"n.d."},{"$f":"IF(+'[2]EXT(T)'!V28=\"\",\"\",+'[2]EXT(T)'!V28)","v":"n.d."},{"$f":"IF(+'[2]EXT(T)'!W28=\"\",\"\",+'[2]EXT(T)'!W28)","v":"n.d."},{"$f":"IF(+'[2]EXT(T)'!X28=\"\",\"\",+'[2]EXT(T)'!X28)","v":"n.d."},{"$f":"IF(+'[2]EXT(T)'!Y28=\"\",\"\",+'[2]EXT(T)'!Y28)","v":"n.d."},{"$f":"IF(+'[2]EXT(T)'!Z28=\"\",\"\",+'[2]EXT(T)'!Z28)","v":"n.d."},{"$f":"IF(+'[2]EXT(T)'!AA28=\"\",\"\",+'[2]EXT(T)'!AA28)","v":"n.d."},{"$f":"IF(+'[2]EXT(T)'!AB28=\"\",\"\",+'[2]EXT(T)'!AB28)","v":"n.d."},{"$f":"IF(+'[2]EXT(T)'!AC28=\"\",\"\",+'[2]EXT(T)'!AC28)","v":"n.d."},{"$f":"IF(+'[2]EXT(T)'!AE28=\"\",\"\",+'[2]EXT(T)'!AE28)","v":"n.d."},{"$f":"IF(+'[2]EXT(T)'!AF28=\"\",\"\",+'[2]EXT(T)'!AF28)","v":"n.d."},{"$f":"IF(+'[2]EXT(T)'!AY28=\"\",\"\",+'[2]EXT(T)'!AY28)","v":"n.d."},{"$f":"IF(+'[2]EXT(T)'!AZ28=\"\",\"\",+'[2]EXT(T)'!AZ28)","v":"n.d."},"n.d.",{"$f":"IF(+'[2]EXT(T)'!AR28=\"\",\"\",+'[2]EXT(T)'!AR28-'[2]EXT(T)'!AR27)","v":241.89999999999998},{"$f":"IF(+'[2]EXT(T)'!AS28=\"\",\"\",+'[2]EXT(T)'!AS28-'[2]EXT(T)'!AS27)","v":82.085599999999999},"n.d.","n.d.","n.d.","n.d.","n.d.","n.d."]
[null,"IV",{"$f":"IF(+'[2]EXT(T)'!M29=\"\",\"\",+'[2]EXT(T)'!M29)","v":"n.d."},{"$f":"IF(+'[2]EXT(T)'!N29=\"\",\"\",+'[2]EXT(T)'!N29)","v":"n.d."},{"$f":"IF(+'[2]EXT(T)'!O29=\"\",\"\",+'[2]EXT(T)'!O29)","v":"n.d."},{"$f":"IF(+'[2]EXT(T)'!P29=\"\",\"\",+'[2]EXT(T)'!P29)","v":"n.d."},{"$f":"IF(+'[2]EXT(T)'!Q29=\"\",\"\",+'[2]EXT(T)'!Q29)","v":"n.d."},{"$f":"IF(+'[2]EXT(T)'!R29=\"\",\"\",+'[2]EXT(T)'!R29)","v":"n.d."},{"$f":"IF(+'[2]EXT(T)'!S29=\"\",\"\",+'[2]EXT(T)'!S29)","v":"n.d."},{"$f":"IF(+'[2]EXT(T)'!U29=\"\",\"\",+'[2]EXT(T)'!U29)","v":"n.d."},{"$f":"IF(+'[2]EXT(T)'!V29=\"\",\"\",+'[2]EXT(T)'!V29)","v":"n.d."},{"$f":"IF(+'[2]EXT(T)'!W29=\"\",\"\",+'[2]EXT(T)'!W29)","v":"n.d."},{"$f":"IF(+'[2]EXT(T)'!X29=\"\",\"\",+'[2]EXT(T)'!X29)","v":"n.d."},{"$f":"IF(+'[2]EXT(T)'!Y29=\"\",\"\",+'[2]EXT(T)'!Y29)","v":"n.d."},{"$f":"IF(+'[2]EXT(T)'!Z29=\"\",\"\",+'[2]EXT(T)'!Z29)","v":"n.d."},{"$f":"IF(+'[2]EXT(T)'!AA29=\"\",\"\",+'[2]EXT(T)'!AA29)","v":"n.d."},{"$f":"IF(+'[2]EXT(T)'!AB29=\"\",\"\",+'[2]EXT(T)'!AB29)","v":"n.d."},{"$f":"IF(+'[2]EXT(T)'!AC29=\"\",\"\",+'[2]EXT(T)'!AC29)","v":"n.d."},{"$f":"IF(+'[2]EXT(T)'!AE29=\"\",\"\",+'[2]EXT(T)'!AE29)","v":"n.d."},{"$f":"IF(+'[2]EXT(T)'!AF29=\"\",\"\",+'[2]EXT(T)'!AF29)","v":"n.d."},{"$f":"IF(+'[2]EXT(T)'!AY29=\"\",\"\",+'[2]EXT(T)'!AY29)","v":"n.d."},{"$f":"IF(+'[2]EXT(T)'!AZ29=\"\",\"\",+'[2]EXT(T)'!AZ29)","v":"n.d."},"n.d.",{"$f":"IF(+'[2]EXT(T)'!AR29=\"\",\"\",+'[2]EXT(T)'!AR29-'[2]EXT(T)'!AR28)","v":252.89999999999998},{"$f":"IF(+'[2]EXT(T)'!AS29=\"\",\"\",+'[2]EXT(T)'!AS29-'[2]EXT(T)'!AS28)","v":77.286099999999976},"n.d.","n.d.","n.d.","n.d.","n.d.","n.d."]
[1995,"I",{"$f":"IF(+'[2]EXT(T)'!M30=\"\",\"\",+'[2]EXT(T)'!M30)","v":"n.d."},{"$f":"IF(+'[2]EXT(T)'!N30=\"\",\"\",+'[2]EXT(T)'!N30)","v":"n.d."},{"$f":"IF(+'[2]EXT(T)'!O30=\"\",\"\",+'[2]EXT(T)'!O30)","v":"n.d."},{"$f":"IF(+'[2]EXT(T)'!P30=\"\",\"\",+'[2]EXT(T)'!P30)","v":"n.d."},{"$f":"IF(+'[2]EXT(T)'!Q30=\"\",\"\",+'[2]EXT(T)'!Q30)","v":"n.d."},{"$f":"IF(+'[2]EXT(T)'!R30=\"\",\"\",+'[2]EXT(T)'!R30)","v":"n.d."},{"$f":"IF(+'[2]EXT(T)'!S30=\"\",\"\",+'[2]EXT(T)'!S30)","v":"n.d."},{"$f":"IF(+'[2]EXT(T)'!U30=\"\",\"\",+'[2]EXT(T)'!U30)","v":"n.d."},{"$f":"IF(+'[2]EXT(T)'!V30=\"\",\"\",+'[2]EXT(T)'!V30)","v":"n.d."},{"$f":"IF(+'[2]EXT(T)'!W30=\"\",\"\",+'[2]EXT(T)'!W30)","v":"n.d."},{"$f":"IF(+'[2]EXT(T)'!X30=\"\",\"\",+'[2]EXT(T)'!X30)","v":"n.d."},{"$f":"IF(+'[2]EXT(T)'!Y30=\"\",\"\",+'[2]EXT(T)'!Y30)","v":"n.d."},{"$f":"IF(+'[2]EXT(T)'!Z30=\"\",\"\",+'[2]EXT(T)'!Z30)","v":"n.d."},{"$f":"IF(+'[2]EXT(T)'!AA30=\"\",\"\",+'[2]EXT(T)'!AA30)","v":"n.d."},{"$f":"IF(+'[2]EXT(T)'!AB30=\"\",\"\",+'[2]EXT(T)'!AB30)","v":"n.d."},{"$f":"IF(+'[2]EXT(T)'!AC30=\"\",\"\",+'[2]EXT(T)'!AC30)","v":"n.d."},{"$f":"IF(+'[2]EXT(T)'!AE30=\"\",\"\",+'[2]EXT(T)'!AE30)","v":"n.d."},{"$f":"IF(+'[2]EXT(T)'!AF30=\"\",\"\",+'[2]EXT(T)'!AF30)","v":"n.d."},{"$f":"IF(+'[2]EXT(T)'!AY30=\"\",\"\",+'[2]EXT(T)'!AY30)","v":"n.d."},{"$f":"IF(+'[2]EXT(T)'!AZ30=\"\",\"\",+'[2]EXT(T)'!AZ30)","v":"n.d."},"n.d.",{"$f":"IF(+'[2]EXT(T)'!AR30=\"\",\"\",+'[2]EXT(T)'!AR30)","v":242.7},{"$f":"IF(+'[2]EXT(T)'!AS30=\"\",\"\",+'[2]EXT(T)'!AS30)","v":90.727499999999992},"n.d.","n.d.","n.d.","n.d.","n.d.","n.d."]
[null,"II",{"$f":"IF(+'[2]EXT(T)'!M31=\"\",\"\",+'[2]EXT(T)'!M31)","v":"n.d."},{"$f":"IF(+'[2]EXT(T)'!N31=\"\",\"\",+'[2]EXT(T)'!N31)","v":"n.d."},{"$f":"IF(+'[2]EXT(T)'!O31=\"\",\"\",+'[2]EXT(T)'!O31)","v":"n.d."},{"$f":"IF(+'[2]EXT(T)'!P31=\"\",\"\",+'[2]EXT(T)'!P31)","v":"n.d."},{"$f":"IF(+'[2]EXT(T)'!Q31=\"\",\"\",+'[2]EXT(T)'!Q31)","v":"n.d."},{"$f":"IF(+'[2]EXT(T)'!R31=\"\",\"\",+'[2]EXT(T)'!R31)","v":"n.d."},{"$f":"IF(+'[2]EXT(T)'!S31=\"\",\"\",+'[2]EXT(T)'!S31)","v":"n.d."},{"$f":"IF(+'[2]EXT(T)'!U31=\"\",\"\",+'[2]EXT(T)'!U31)","v":"n.d."},{"$f":"IF(+'[2]EXT(T)'!V31=\"\",\"\",+'[2]EXT(T)'!V31)","v":"n.d."},{"$f":"IF(+'[2]EXT(T)'!W31=\"\",\"\",+'[2]EXT(T)'!W31)","v":"n.d."},{"$f":"IF(+'[2]EXT(T)'!X31=\"\",\"\",+'[2]EXT(T)'!X31)","v":"n.d."},{"$f":"IF(+'[2]EXT(T)'!Y31=\"\",\"\",+'[2]EXT(T)'!Y31)","v":"n.d."},{"$f":"IF(+'[2]EXT(T)'!Z31=\"\",\"\",+'[2]EXT(T)'!Z31)","v":"n.d."},{"$f":"IF(+'[2]EXT(T)'!AA31=\"\",\"\",+'[2]EXT(T)'!AA31)","v":"n.d."},{"$f":"IF(+'[2]EXT(T)'!AB31=\"\",\"\",+'[2]EXT(T)'!AB31)","v":"n.d."},{"$f":"IF(+'[2]EXT(T)'!AC31=\"\",\"\",+'[2]EXT(T)'!AC31)","v":"n.d."},{"$f":"IF(+'[2]EXT(T)'!AE31=\"\",\"\",+'[2]EXT(T)'!AE31)","v":"n.d."},{"$f":"IF(+'[2]EXT(T)'!AF31=\"\",\"\",+'[2]EXT(T)'!AF31)","v":"n.d."},{"$f":"IF(+'[2]EXT(T)'!AY31=\"\",\"\",+'[2]EXT(T)'!AY31)","v":"n.d."},{"$f":"IF(+'[2]EXT(T)'!AZ31=\"\",\"\",+'[2]EXT(T)'!AZ31)","v":"n.d."},"n.d.",{"$f":"IF(+'[2]EXT(T)'!AR31=\"\",\"\",+'[2]EXT(T)'!AR31-'[2]EXT(T)'!AR30)","v":265.90000000000003},{"$f":"IF(+'[2]EXT(T)'!AS31=\"\",\"\",+'[2]EXT(T)'!AS31-'[2]EXT(T)'!AS30)","v":114.87860000000001},"n.d.","n.d.","n.d.","n.d.","n.d.","n.d."]
[null,"III",{"$f":"IF(+'[2]EXT(T)'!M32=\"\",\"\",+'[2]EXT(T)'!M32)","v":"n.d."},{"$f":"IF(+'[2]EXT(T)'!N32=\"\",\"\",+'[2]EXT(T)'!N32)","v":"n.d."},{"$f":"IF(+'[2]EXT(T)'!O32=\"\",\"\",+'[2]EXT(T)'!O32)","v":"n.d."},{"$f":"IF(+'[2]EXT(T)'!P32=\"\",\"\",+'[2]EXT(T)'!P32)","v":"n.d."},{"$f":"IF(+'[2]EXT(T)'!Q32=\"\",\"\",+'[2]EXT(T)'!Q32)","v":"n.d."},{"$f":"IF(+'[2]EXT(T)'!R32=\"\",\"\",+'[2]EXT(T)'!R32)","v":"n.d."},{"$f":"IF(+'[2]EXT(T)'!S32=\"\",\"\",+'[2]EXT(T)'!S32)","v":"n.d."},{"$f":"IF(+'[2]EXT(T)'!U32=\"\",\"\",+'[2]EXT(T)'!U32)","v":"n.d."},{"$f":"IF(+'[2]EXT(T)'!V32=\"\",\"\",+'[2]EXT(T)'!V32)","v":"n.d."},{"$f":"IF(+'[2]EXT(T)'!W32=\"\",\"\",+'[2]EXT(T)'!W32)","v":"n.d."},{"$f":"IF(+'[2]EXT(T)'!X32=\"\",\"\",+'[2]EXT(T)'!X32)","v":"n.d."},{"$f":"IF(+'[2]EXT(T)'!Y32=\"\",\"\",+'[2]EXT(T)'!Y32)","v":"n.d."},{"$f":"IF(+'[2]EXT(T)'!Z32=\"\",\"\",+'[2]EXT(T)'!Z32)","v":"n.d."},{"$f":"IF(+'[2]EXT(T)'!AA32=\"\",\"\",+'[2]EXT(T)'!AA32)","v":"n.d."},{"$f":"IF(+'[2]EXT(T)'!AB32=\"\",\"\",+'[2]EXT(T)'!AB32)","v":"n.d."},{"$f":"IF(+'[2]EXT(T)'!AC32=\"\",\"\",+'[2]EXT(T)'!AC32)","v":"n.d."},{"$f":"IF(+'[2]EXT(T)'!AE32=\"\",\"\",+'[2]EXT(T)'!AE32)","v":"n.d."},{"$f":"IF(+'[2]EXT(T)'!AF32=\"\",\"\",+'[2]EXT(T)'!AF32)","v":"n.d."},{"$f":"IF(+'[2]EXT(T)'!AY32=\"\",\"\",+'[2]EXT(T)'!AY32)","v":"n.d."},{"$f":"IF(+'[2]EXT(T)'!AZ32=\"\",\"\",+'[2]EXT(T)'!AZ32)","v":"n.d."},"n.d.",{"$f":"IF(+'[2]EXT(T)'!AR32=\"\",\"\",+'[2]EXT(T)'!AR32-'[2]EXT(T)'!AR31)","v":268.70000000000005},{"$f":"IF(+'[2]EXT(T)'!AS32=\"\",\"\",+'[2]EXT(T)'!AS32-'[2]EXT(T)'!AS31)","v":108.24109999999999},"n.d.","n.d.","n.d.","n.d.","n.d.","n.d."]
[null,"IV",{"$f":"IF(+'[2]EXT(T)'!M33=\"\",\"\",+'[2]EXT(T)'!M33)","v":"n.d."},{"$f":"IF(+'[2]EXT(T)'!N33=\"\",\"\",+'[2]EXT(T)'!N33)","v":"n.d."},{"$f":"IF(+'[2]EXT(T)'!O33=\"\",\"\",+'[2]EXT(T)'!O33)","v":"n.d."},{"$f":"IF(+'[2]EXT(T)'!P33=\"\",\"\",+'[2]EXT(T)'!P33)","v":"n.d."},{"$f":"IF(+'[2]EXT(T)'!Q33=\"\",\"\",+'[2]EXT(T)'!Q33)","v":"n.d."},{"$f":"IF(+'[2]EXT(T)'!R33=\"\",\"\",+'[2]EXT(T)'!R33)","v":"n.d."},{"$f":"IF(+'[2]EXT(T)'!S33=\"\",\"\",+'[2]EXT(T)'!S33)","v":"n.d."},{"$f":"IF(+'[2]EXT(T)'!U33=\"\",\"\",+'[2]EXT(T)'!U33)","v":"n.d."},{"$f":"IF(+'[2]EXT(T)'!V33=\"\",\"\",+'[2]EXT(T)'!V33)","v":"n.d."},{"$f":"IF(+'[2]EXT(T)'!W33=\"\",\"\",+'[2]EXT(T)'!W33)","v":"n.d."},{"$f":"IF(+'[2]EXT(T)'!X33=\"\",\"\",+'[2]EXT(T)'!X33)","v":"n.d."},{"$f":"IF(+'[2]EXT(T)'!Y33=\"\",\"\",+'[2]EXT(T)'!Y33)","v":"n.d."},{"$f":"IF(+'[2]EXT(T)'!Z33=\"\",\"\",+'[2]EXT(T)'!Z33)","v":"n.d."},{"$f":"IF(+'[2]EXT(T)'!AA33=\"\",\"\",+'[2]EXT(T)'!AA33)","v":"n.d."},{"$f":"IF(+'[2]EXT(T)'!AB33=\"\",\"\",+'[2]EXT(T)'!AB33)","v":"n.d."},{"$f":"IF(+'[2]EXT(T)'!AC33=\"\",\"\",+'[2]EXT(T)'!AC33)","v":"n.d."},{"$f":"IF(+'[2]EXT(T)'!AE33=\"\",\"\",+'[2]EXT(T)'!AE33)","v":"n.d."},{"$f":"IF(+'[2]EXT(T)'!AF33=\"\",\"\",+'[2]EXT(T)'!AF33)","v":"n.d."},{"$f":"IF(+'[2]EXT(T)'!AY33=\"\",\"\",+'[2]EXT(T)'!AY33)","v":"n.d."},{"$f":"IF(+'[2]EXT(T)'!AZ33=\"\",\"\",+'[2]EXT(T)'!AZ33)","v":"n.d."},"n.d.",{"$f":"IF(+'[2]EXT(T)'!AR33=\"\",\"\",+'[2]EXT(T)'!AR33-'[2]EXT(T)'!AR32)","v":284.10000000000002},{"$f":"IF(+'[2]EXT(T)'!AS33=\"\",\"\",+'[2]EXT(T)'!AS33-'[2]EXT(T)'!AS32)","v":102.60829999999999},"n.d.","n.d.","n.d.","n.d.","n.d.","n.d."]
[1996,"I",{"$f":"IF(+'[2]EXT(T)'!M34=\"\",\"\",+'[2]EXT(T)'!M34)","v":"n.d."},{"$f":"IF(+'[2]EXT(T)'!N34=\"\",\"\",+'[2]EXT(T)'!N34)","v":"n.d."},{"$f":"IF(+'[2]EXT(T)'!O34=\"\",\"\",+'[2]EXT(T)'!O34)","v":"n.d."},{"$f":"IF(+'[2]EXT(T)'!P34=\"\",\"\",+'[2]EXT(T)'!P34)","v":"n.d."},{"$f":"IF(+'[2]EXT(T)'!Q34=\"\",\"\",+'[2]EXT(T)'!Q34)","v":"n.d."},{"$f":"IF(+'[2]EXT(T)'!R34=\"\",\"\",+'[2]EXT(T)'!R34)","v":"n.d."},{"$f":"IF(+'[2]EXT(T)'!S34=\"\",\"\",+'[2]EXT(T)'!S34)","v":"n.d."},{"$f":"IF(+'[2]EXT(T)'!U34=\"\",\"\",+'[2]EXT(T)'!U34)","v":"n.d."},{"$f":"IF(+'[2]EXT(T)'!V34=\"\",\"\",+'[2]EXT(T)'!V34)","v":"n.d."},{"$f":"IF(+'[2]EXT(T)'!W34=\"\",\"\",+'[2]EXT(T)'!W34)","v":"n.d."},{"$f":"IF(+'[2]EXT(T)'!X34=\"\",\"\",+'[2]EXT(T)'!X34)","v":"n.d."},{"$f":"IF(+'[2]EXT(T)'!Y34=\"\",\"\",+'[2]EXT(T)'!Y34)","v":"n.d."},{"$f":"IF(+'[2]EXT(T)'!Z34=\"\",\"\",+'[2]EXT(T)'!Z34)","v":"n.d."},{"$f":"IF(+'[2]EXT(T)'!AA34=\"\",\"\",+'[2]EXT(T)'!AA34)","v":"n.d."},{"$f":"IF(+'[2]EXT(T)'!AB34=\"\",\"\",+'[2]EXT(T)'!AB34)","v":"n.d."},{"$f":"IF(+'[2]EXT(T)'!AC34=\"\",\"\",+'[2]EXT(T)'!AC34)","v":"n.d."},{"$f":"IF(+'[2]EXT(T)'!AE34=\"\",\"\",+'[2]EXT(T)'!AE34)","v":"n.d."},{"$f":"IF(+'[2]EXT(T)'!AF34=\"\",\"\",+'[2]EXT(T)'!AF34)","v":"n.d."},{"$f":"IF(+'[2]EXT(T)'!AY34=\"\",\"\",+'[2]EXT(T)'!AY34)","v":"n.d."},{"$f":"IF(+'[2]EXT(T)'!AZ34=\"\",\"\",+'[2]EXT(T)'!AZ34)","v":"n.d."},"n.d.",{"$f":"IF(+'[2]EXT(T)'!AR34=\"\",\"\",+'[2]EXT(T)'!AR34)","v":254.2},{"$f":"IF(+'[2]EXT(T)'!AS34=\"\",\"\",+'[2]EXT(T)'!AS34)","v":90.762900000000002},"n.d.","n.d.","n.d.","n.d.","n.d.","n.d."]
[null,"II",{"$f":"IF(+'[2]EXT(T)'!M35=\"\",\"\",+'[2]EXT(T)'!M35)","v":"n.d."},{"$f":"IF(+'[2]EXT(T)'!N35=\"\",\"\",+'[2]EXT(T)'!N35)","v":"n.d."},{"$f":"IF(+'[2]EXT(T)'!O35=\"\",\"\",+'[2]EXT(T)'!O35)","v":"n.d."},{"$f":"IF(+'[2]EXT(T)'!P35=\"\",\"\",+'[2]EXT(T)'!P35)","v":"n.d."},{"$f":"IF(+'[2]EXT(T)'!Q35=\"\",\"\",+'[2]EXT(T)'!Q35)","v":"n.d."},{"$f":"IF(+'[2]EXT(T)'!R35=\"\",\"\",+'[2]EXT(T)'!R35)","v":"n.d."},{"$f":"IF(+'[2]EXT(T)'!S35=\"\",\"\",+'[2]EXT(T)'!S35)","v":"n.d."},{"$f":"IF(+'[2]EXT(T)'!U35=\"\",\"\",+'[2]EXT(T)'!U35)","v":"n.d."},{"$f":"IF(+'[2]EXT(T)'!V35=\"\",\"\",+'[2]EXT(T)'!V35)","v":"n.d."},{"$f":"IF(+'[2]EXT(T)'!W35=\"\",\"\",+'[2]EXT(T)'!W35)","v":"n.d."},{"$f":"IF(+'[2]EXT(T)'!X35=\"\",\"\",+'[2]EXT(T)'!X35)","v":"n.d."},{"$f":"IF(+'[2]EXT(T)'!Y35=\"\",\"\",+'[2]EXT(T)'!Y35)","v":"n.d."},{"$f":"IF(+'[2]EXT(T)'!Z35=\"\",\"\",+'[2]EXT(T)'!Z35)","v":"n.d."},{"$f":"IF(+'[2]EXT(T)'!AA35=\"\",\"\",+'[2]EXT(T)'!AA35)","v":"n.d."},{"$f":"IF(+'[2]EXT(T)'!AB35=\"\",\"\",+'[2]EXT(T)'!AB35)","v":"n.d."},{"$f":"IF(+'[2]EXT(T)'!AC35=\"\",\"\",+'[2]EXT(T)'!AC35)","v":"n.d."},{"$f":"IF(+'[2]EXT(T)'!AE35=\"\",\"\",+'[2]EXT(T)'!AE35)","v":"n.d."},{"$f":"IF(+'[2]EXT(T)'!AF35=\"\",\"\",+'[2]EXT(T)'!AF35)","v":"n.d."},{"$f":"IF(+'[2]EXT(T)'!AY35=\"\",\"\",+'[2]EXT(T)'!AY35)","v":"n.d."},{"$f":"IF(+'[2]EXT(T)'!AZ35=\"\",\"\",+'[2]EXT(T)'!AZ35)","v":"n.d."},"n.d.",{"$f":"IF(+'[2]EXT(T)'!AR35=\"\",\"\",+'[2]EXT(T)'!AR35-'[2]EXT(T)'!AR34)","v":271.59999999999997},{"$f":"IF(+'[2]EXT(T)'!AS35=\"\",\"\",+'[2]EXT(T)'!AS35-'[2]EXT(T)'!AS34)","v":80.180299999999988},"n.d.","n.d.","n.d.","n.d.","n.d.","n.d."]
[null,"III",{"$f":"IF(+'[2]EXT(T)'!M36=\"\",\"\",+'[2]EXT(T)'!M36)","v":"n.d."},{"$f":"IF(+'[2]EXT(T)'!N36=\"\",\"\",+'[2]EXT(T)'!N36)","v":"n.d."},{"$f":"IF(+'[2]EXT(T)'!O36=\"\",\"\",+'[2]EXT(T)'!O36)","v":"n.d."},{"$f":"IF(+'[2]EXT(T)'!P36=\"\",\"\",+'[2]EXT(T)'!P36)","v":"n.d."},{"$f":"IF(+'[2]EXT(T)'!Q36=\"\",\"\",+'[2]EXT(T)'!Q36)","v":"n.d."},{"$f":"IF(+'[2]EXT(T)'!R36=\"\",\"\",+'[2]EXT(T)'!R36)","v":"n.d."},{"$f":"IF(+'[2]EXT(T)'!S36=\"\",\"\",+'[2]EXT(T)'!S36)","v":"n.d."},{"$f":"IF(+'[2]EXT(T)'!U36=\"\",\"\",+'[2]EXT(T)'!U36)","v":"n.d."},{"$f":"IF(+'[2]EXT(T)'!V36=\"\",\"\",+'[2]EXT(T)'!V36)","v":"n.d."},{"$f":"IF(+'[2]EXT(T)'!W36=\"\",\"\",+'[2]EXT(T)'!W36)","v":"n.d."},{"$f":"IF(+'[2]EXT(T)'!X36=\"\",\"\",+'[2]EXT(T)'!X36)","v":"n.d."},{"$f":"IF(+'[2]EXT(T)'!Y36=\"\",\"\",+'[2]EXT(T)'!Y36)","v":"n.d."},{"$f":"IF(+'[2]EXT(T)'!Z36=\"\",\"\",+'[2]EXT(T)'!Z36)","v":"n.d."},{"$f":"IF(+'[2]EXT(T)'!AA36=\"\",\"\",+'[2]EXT(T)'!AA36)","v":"n.d."},{"$f":"IF(+'[2]EXT(T)'!AB36=\"\",\"\",+'[2]EXT(T)'!AB36)","v":"n.d."},{"$f":"IF(+'[2]EXT(T)'!AC36=\"\",\"\",+'[2]EXT(T)'!AC36)","v":"n.d."},{"$f":"IF(+'[2]EXT(T)'!AE36=\"\",\"\",+'[2]EXT(T)'!AE36)","v":"n.d."},{"$f":"IF(+'[2]EXT(T)'!AF36=\"\",\"\",+'[2]EXT(T)'!AF36)","v":"n.d."},{"$f":"IF(+'[2]EXT(T)'!AY36=\"\",\"\",+'[2]EXT(T)'!AY36)","v":"n.d."},{"$f":"IF(+'[2]EXT(T)'!AZ36=\"\",\"\",+'[2]EXT(T)'!AZ36)","v":"n.d."},"n.d.",{"$f":"IF(+'[2]EXT(T)'!AR36=\"\",\"\",+'[2]EXT(T)'!AR36-'[2]EXT(T)'!AR35)","v":289.79999999999995},{"$f":"IF(+'[2]EXT(T)'!AS36=\"\",\"\",+'[2]EXT(T)'!AS36-'[2]EXT(T)'!AS35)","v":97.725300000000004},"n.d.","n.d.","n.d.","n.d.","n.d.","n.d."]
[null,"IV",{"$f":"IF(+'[2]EXT(T)'!M37=\"\",\"\",+'[2]EXT(T)'!M37)","v":"n.d."},{"$f":"IF(+'[2]EXT(T)'!N37=\"\",\"\",+'[2]EXT(T)'!N37)","v":"n.d."},{"$f":"IF(+'[2]EXT(T)'!O37=\"\",\"\",+'[2]EXT(T)'!O37)","v":"n.d."},{"$f":"IF(+'[2]EXT(T)'!P37=\"\",\"\",+'[2]EXT(T)'!P37)","v":"n.d."},{"$f":"IF(+'[2]EXT(T)'!Q37=\"\",\"\",+'[2]EXT(T)'!Q37)","v":"n.d."},{"$f":"IF(+'[2]EXT(T)'!R37=\"\",\"\",+'[2]EXT(T)'!R37)","v":"n.d."},{"$f":"IF(+'[2]EXT(T)'!S37=\"\",\"\",+'[2]EXT(T)'!S37)","v":"n.d."},{"$f":"IF(+'[2]EXT(T)'!U37=\"\",\"\",+'[2]EXT(T)'!U37)","v":"n.d."},{"$f":"IF(+'[2]EXT(T)'!V37=\"\",\"\",+'[2]EXT(T)'!V37)","v":"n.d."},{"$f":"IF(+'[2]EXT(T)'!W37=\"\",\"\",+'[2]EXT(T)'!W37)","v":"n.d."},{"$f":"IF(+'[2]EXT(T)'!X37=\"\",\"\",+'[2]EXT(T)'!X37)","v":"n.d."},{"$f":"IF(+'[2]EXT(T)'!Y37=\"\",\"\",+'[2]EXT(T)'!Y37)","v":"n.d."},{"$f":"IF(+'[2]EXT(T)'!Z37=\"\",\"\",+'[2]EXT(T)'!Z37)","v":"n.d."},{"$f":"IF(+'[2]EXT(T)'!AA37=\"\",\"\",+'[2]EXT(T)'!AA37)","v":"n.d."},{"$f":"IF(+'[2]EXT(T)'!AB37=\"\",\"\",+'[2]EXT(T)'!AB37)","v":"n.d."},{"$f":"IF(+'[2]EXT(T)'!AC37=\"\",\"\",+'[2]EXT(T)'!AC37)","v":"n.d."},{"$f":"IF(+'[2]EXT(T)'!AE37=\"\",\"\",+'[2]EXT(T)'!AE37)","v":"n.d."},{"$f":"IF(+'[2]EXT(T)'!AF37=\"\",\"\",+'[2]EXT(T)'!AF37)","v":"n.d."},{"$f":"IF(+'[2]EXT(T)'!AY37=\"\",\"\",+'[2]EXT(T)'!AY37)","v":"n.d."},{"$f":"IF(+'[2]EXT(T)'!AZ37=\"\",\"\",+'[2]EXT(T)'!AZ37)","v":"n.d."},"n.d.",{"$f":"IF(+'[2]EXT(T)'!AR37=\"\",\"\",+'[2]EXT(T)'!AR37-'[2]EXT(T)'!AR36)","v":270.90000000000009},{"$f":"IF(+'[2]EXT(T)'!AS37=\"\",\"\",+'[2]EXT(T)'!AS37-'[2]EXT(T)'!AS36)","v":106.74930000000001},"n.d.","n.d.","n.d.","n.d.","n.d.","n.d."]
[1997,"I",{"$f":"IF(+'[2]EXT(T)'!M38=\"\",\"\",+'[2]EXT(T)'!M38)","v":"n.d."},{"$f":"IF(+'[2]EXT(T)'!N38=\"\",\"\",+'[2]EXT(T)'!N38)","v":"n.d."},{"$f":"IF(+'[2]EXT(T)'!O38=\"\",\"\",+'[2]EXT(T)'!O38)","v":"n.d."},{"$f":"IF(+'[2]EXT(T)'!P38=\"\",\"\",+'[2]EXT(T)'!P38)","v":"n.d."},{"$f":"IF(+'[2]EXT(T)'!Q38=\"\",\"\",+'[2]EXT(T)'!Q38)","v":"n.d."},{"$f":"IF(+'[2]EXT(T)'!R38=\"\",\"\",+'[2]EXT(T)'!R38)","v":"n.d."},{"$f":"IF(+'[2]EXT(T)'!S38=\"\",\"\",+'[2]EXT(T)'!S38)","v":"n.d."},{"$f":"IF(+'[2]EXT(T)'!U38=\"\",\"\",+'[2]EXT(T)'!U38)","v":"n.d."},{"$f":"IF(+'[2]EXT(T)'!V38=\"\",\"\",+'[2]EXT(T)'!V38)","v":"n.d."},{"$f":"IF(+'[2]EXT(T)'!W38=\"\",\"\",+'[2]EXT(T)'!W38)","v":"n.d."},{"$f":"IF(+'[2]EXT(T)'!X38=\"\",\"\",+'[2]EXT(T)'!X38)","v":"n.d."},{"$f":"IF(+'[2]EXT(T)'!Y38=\"\",\"\",+'[2]EXT(T)'!Y38)","v":"n.d."},{"$f":"IF(+'[2]EXT(T)'!Z38=\"\",\"\",+'[2]EXT(T)'!Z38)","v":"n.d."},{"$f":"IF(+'[2]EXT(T)'!AA38=\"\",\"\",+'[2]EXT(T)'!AA38)","v":"n.d."},{"$f":"IF(+'[2]EXT(T)'!AB38=\"\",\"\",+'[2]EXT(T)'!AB38)","v":"n.d."},{"$f":"IF(+'[2]EXT(T)'!AC38=\"\",\"\",+'[2]EXT(T)'!AC38)","v":"n.d."},{"$f":"IF(+'[2]EXT(T)'!AE38=\"\",\"\",+'[2]EXT(T)'!AE38)","v":"n.d."},{"$f":"IF(+'[2]EXT(T)'!AF38=\"\",\"\",+'[2]EXT(T)'!AF38)","v":"n.d."},{"$f":"IF(+'[2]EXT(T)'!AY38=\"\",\"\",+'[2]EXT(T)'!AY38)","v":"n.d."},{"$f":"IF(+'[2]EXT(T)'!AZ38=\"\",\"\",+'[2]EXT(T)'!AZ38)","v":"n.d."},"n.d.",{"$f":"IF(+'[2]EXT(T)'!AR38=\"\",\"\",+'[2]EXT(T)'!AR38)","v":251.2},{"$f":"IF(+'[2]EXT(T)'!AS38=\"\",\"\",+'[2]EXT(T)'!AS38)","v":85.095500000000001},"n.d.","n.d.","n.d.","n.d.","n.d.","n.d."]
[null,"II",{"$f":"IF(+'[2]EXT(T)'!M39=\"\",\"\",+'[2]EXT(T)'!M39)","v":"n.d."},{"$f":"IF(+'[2]EXT(T)'!N39=\"\",\"\",+'[2]EXT(T)'!N39)","v":"n.d."},{"$f":"IF(+'[2]EXT(T)'!O39=\"\",\"\",+'[2]EXT(T)'!O39)","v":"n.d."},{"$f":"IF(+'[2]EXT(T)'!P39=\"\",\"\",+'[2]EXT(T)'!P39)","v":"n.d."},{"$f":"IF(+'[2]EXT(T)'!Q39=\"\",\"\",+'[2]EXT(T)'!Q39)","v":"n.d."},{"$f":"IF(+'[2]EXT(T)'!R39=\"\",\"\",+'[2]EXT(T)'!R39)","v":"n.d."},{"$f":"IF(+'[2]EXT(T)'!S39=\"\",\"\",+'[2]EXT(T)'!S39)","v":"n.d."},{"$f":"IF(+'[2]EXT(T)'!U39=\"\",\"\",+'[2]EXT(T)'!U39)","v":"n.d."},{"$f":"IF(+'[2]EXT(T)'!V39=\"\",\"\",+'[2]EXT(T)'!V39)","v":"n.d."},{"$f":"IF(+'[2]EXT(T)'!W39=\"\",\"\",+'[2]EXT(T)'!W39)","v":"n.d."},{"$f":"IF(+'[2]EXT(T)'!X39=\"\",\"\",+'[2]EXT(T)'!X39)","v":"n.d."},{"$f":"IF(+'[2]EXT(T)'!Y39=\"\",\"\",+'[2]EXT(T)'!Y39)","v":"n.d."},{"$f":"IF(+'[2]EXT(T)'!Z39=\"\",\"\",+'[2]EXT(T)'!Z39)","v":"n.d."},{"$f":"IF(+'[2]EXT(T)'!AA39=\"\",\"\",+'[2]EXT(T)'!AA39)","v":"n.d."},{"$f":"IF(+'[2]EXT(T)'!AB39=\"\",\"\",+'[2]EXT(T)'!AB39)","v":"n.d."},{"$f":"IF(+'[2]EXT(T)'!AC39=\"\",\"\",+'[2]EXT(T)'!AC39)","v":"n.d."},{"$f":"IF(+'[2]EXT(T)'!AE39=\"\",\"\",+'[2]EXT(T)'!AE39)","v":"n.d."},{"$f":"IF(+'[2]EXT(T)'!AF39=\"\",\"\",+'[2]EXT(T)'!AF39)","v":"n.d."},{"$f":"IF(+'[2]EXT(T)'!AY39=\"\",\"\",+'[2]EXT(T)'!AY39)","v":"n.d."},{"$f":"IF(+'[2]EXT(T)'!AZ39=\"\",\"\",+'[2]EXT(T)'!AZ39)","v":"n.d."},"n.d.",{"$f":"IF(+'[2]EXT(T)'!AR39=\"\",\"\",+'[2]EXT(T)'!AR39-'[2]EXT(T)'!AR38)","v":310.99999999999994},{"$f":"IF(+'[2]EXT(T)'!AS39=\"\",\"\",+'[2]EXT(T)'!AS39-'[2]EXT(T)'!AS38)","v":100.3942},"n.d.","n.d.","n.d.","n.d.","n.d.","n.d."]
[null,"III",{"$f":"IF(+'[2]EXT(T)'!M40=\"\",\"\",+'[2]EXT(T)'!M40)","v":"n.d."},{"$f":"IF(+'[2]EXT(T)'!N40=\"\",\"\",+'[2]EXT(T)'!N40)","v":"n.d."},{"$f":"IF(+'[2]EXT(T)'!O40=\"\",\"\",+'[2]EXT(T)'!O40)","v":"n.d."},{"$f":"IF(+'[2]EXT(T)'!P40=\"\",\"\",+'[2]EXT(T)'!P40)","v":"n.d."},{"$f":"IF(+'[2]EXT(T)'!Q40=\"\",\"\",+'[2]EXT(T)'!Q40)","v":"n.d."},{"$f":"IF(+'[2]EXT(T)'!R40=\"\",\"\",+'[2]EXT(T)'!R40)","v":"n.d."},{"$f":"IF(+'[2]EXT(T)'!S40=\"\",\"\",+'[2]EXT(T)'!S40)","v":"n.d."},{"$f":"IF(+'[2]EXT(T)'!U40=\"\",\"\",+'[2]EXT(T)'!U40)","v":"n.d."},{"$f":"IF(+'[2]EXT(T)'!V40=\"\",\"\",+'[2]EXT(T)'!V40)","v":"n.d."},{"$f":"IF(+'[2]EXT(T)'!W40=\"\",\"\",+'[2]EXT(T)'!W40)","v":"n.d."},{"$f":"IF(+'[2]EXT(T)'!X40=\"\",\"\",+'[2]EXT(T)'!X40)","v":"n.d."},{"$f":"IF(+'[2]EXT(T)'!Y40=\"\",\"\",+'[2]EXT(T)'!Y40)","v":"n.d."},{"$f":"IF(+'[2]EXT(T)'!Z40=\"\",\"\",+'[2]EXT(T)'!Z40)","v":"n.d."},{"$f":"IF(+'[2]EXT(T)'!AA40=\"\",\"\",+'[2]EXT(T)'!AA40)","v":"n.d."},{"$f":"IF(+'[2]EXT(T)'!AB40=\"\",\"\",+'[2]EXT(T)'!AB40)","v":"n.d."},{"$f":"IF(+'[2]EXT(T)'!AC40=\"\",\"\",+'[2]EXT(T)'!AC40)","v":"n.d."},{"$f":"IF(+'[2]EXT(T)'!AE40=\"\",\"\",+'[2]EXT(T)'!AE40)","v":"n.d."},{"$f":"IF(+'[2]EXT(T)'!AF40=\"\",\"\",+'[2]EXT(T)'!AF40)","v":"n.d."},{"$f":"IF(+'[2]EXT(T)'!AY40=\"\",\"\",+'[2]EXT(T)'!AY40)","v":"n.d."},{"$f":"IF(+'[2]EXT(T)'!AZ40=\"\",\"\",+'[2]EXT(T)'!AZ40)","v":"n.d."},"n.d.",{"$f":"IF(+'[2]EXT(T)'!AR40=\"\",\"\",+'[2]EXT(T)'!AR40-'[2]EXT(T)'!AR39)","v":321.10000000000002},{"$f":"IF(+'[2]EXT(T)'!AS40=\"\",\"\",+'[2]EXT(T)'!AS40-'[2]EXT(T)'!AS39)","v":105.59490000000002},"n.d.","n.d.","n.d.","n.d.","n.d.","n.d."]
[null,"IV",{"$f":"IF(+'[2]EXT(T)'!M41=\"\",\"\",+'[2]EXT(T)'!M41)","v":"n.d."},{"$f":"IF(+'[2]EXT(T)'!N41=\"\",\"\",+'[2]EXT(T)'!N41)","v":"n.d."},{"$f":"IF(+'[2]EXT(T)'!O41=\"\",\"\",+'[2]EXT(T)'!O41)","v":"n.d."},{"$f":"IF(+'[2]EXT(T)'!P41=\"\",\"\",+'[2]EXT(T)'!P41)","v":"n.d."},{"$f":"IF(+'[2]EXT(T)'!Q41=\"\",\"\",+'[2]EXT(T)'!Q41)","v":"n.d."},{"$f":"IF(+'[2]EXT(T)'!R41=\"\",\"\",+'[2]EXT(T)'!R41)","v":"n.d."},{"$f":"IF(+'[2]EXT(T)'!S41=\"\",\"\",+'[2]EXT(T)'!S41)","v":"n.d."},{"$f":"IF(+'[2]EXT(T)'!U41=\"\",\"\",+'[2]EXT(T)'!U41)","v":"n.d."},{"$f":"IF(+'[2]EXT(T)'!V41=\"\",\"\",+'[2]EXT(T)'!V41)","v":"n.d."},{"$f":"IF(+'[2]EXT(T)'!W41=\"\",\"\",+'[2]EXT(T)'!W41)","v":"n.d."},{"$f":"IF(+'[2]EXT(T)'!X41=\"\",\"\",+'[2]EXT(T)'!X41)","v":"n.d."},{"$f":"IF(+'[2]EXT(T)'!Y41=\"\",\"\",+'[2]EXT(T)'!Y41)","v":"n.d."},{"$f":"IF(+'[2]EXT(T)'!Z41=\"\",\"\",+'[2]EXT(T)'!Z41)","v":"n.d."},{"$f":"IF(+'[2]EXT(T)'!AA41=\"\",\"\",+'[2]EXT(T)'!AA41)","v":"n.d."},{"$f":"IF(+'[2]EXT(T)'!AB41=\"\",\"\",+'[2]EXT(T)'!AB41)","v":"n.d."},{"$f":"IF(+'[2]EXT(T)'!AC41=\"\",\"\",+'[2]EXT(T)'!AC41)","v":"n.d."},{"$f":"IF(+'[2]EXT(T)'!AE41=\"\",\"\",+'[2]EXT(T)'!AE41)","v":"n.d."},{"$f":"IF(+'[2]EXT(T)'!AF41=\"\",\"\",+'[2]EXT(T)'!AF41)","v":"n.d."},{"$f":"IF(+'[2]EXT(T)'!AY41=\"\",\"\",+'[2]EXT(T)'!AY41)","v":"n.d."},{"$f":"IF(+'[2]EXT(T)'!AZ41=\"\",\"\",+'[2]EXT(T)'!AZ41)","v":"n.d."},"n.d.",{"$f":"IF(+'[2]EXT(T)'!AR41=\"\",\"\",+'[2]EXT(T)'!AR41-'[2]EXT(T)'!AR40)","v":316.19999999999982},{"$f":"IF(+'[2]EXT(T)'!AS41=\"\",\"\",+'[2]EXT(T)'!AS41-'[2]EXT(T)'!AS40)","v":116.91210000000001},"n.d.","n.d.","n.d.","n.d.","n.d.","n.d."]
[1998,"I",{"$f":"IF(+'[2]EXT(T)'!M42=\"\",\"\",+'[2]EXT(T)'!M42)","v":"n.d."},{"$f":"IF(+'[2]EXT(T)'!N42=\"\",\"\",+'[2]EXT(T)'!N42)","v":"n.d."},{"$f":"IF(+'[2]EXT(T)'!O42=\"\",\"\",+'[2]EXT(T)'!O42)","v":"n.d."},{"$f":"IF(+'[2]EXT(T)'!P42=\"\",\"\",+'[2]EXT(T)'!P42)","v":"n.d."},{"$f":"IF(+'[2]EXT(T)'!Q42=\"\",\"\",+'[2]EXT(T)'!Q42)","v":"n.d."},{"$f":"IF(+'[2]EXT(T)'!R42=\"\",\"\",+'[2]EXT(T)'!R42)","v":"n.d."},{"$f":"IF(+'[2]EXT(T)'!S42=\"\",\"\",+'[2]EXT(T)'!S42)","v":116.2},{"$f":"IF(+'[2]EXT(T)'!U42=\"\",\"\",+'[2]EXT(T)'!U42)","v":"n.d."},{"$f":"IF(+'[2]EXT(T)'!V42=\"\",\"\",+'[2]EXT(T)'!V42)","v":"n.d."},{"$f":"IF(+'[2]EXT(T)'!W42=\"\",\"\",+'[2]EXT(T)'!W42)","v":"n.d."},{"$f":"IF(+'[2]EXT(T)'!X42=\"\",\"\",+'[2]EXT(T)'!X42)","v":"n.d."},{"$f":"IF(+'[2]EXT(T)'!Y42=\"\",\"\",+'[2]EXT(T)'!Y42)","v":"n.d."},{"$f":"IF(+'[2]EXT(T)'!Z42=\"\",\"\",+'[2]EXT(T)'!Z42)","v":"n.d."},{"$f":"IF(+'[2]EXT(T)'!AA42=\"\",\"\",+'[2]EXT(T)'!AA42)","v":"n.d."},{"$f":"IF(+'[2]EXT(T)'!AB42=\"\",\"\",+'[2]EXT(T)'!AB42)","v":"n.d."},{"$f":"IF(+'[2]EXT(T)'!AC42=\"\",\"\",+'[2]EXT(T)'!AC42)","v":116.2},{"$f":"IF(+'[2]EXT(T)'!AE42=\"\",\"\",+'[2]EXT(T)'!AE42)","v":"n.d."},{"$f":"IF(+'[2]EXT(T)'!AF42=\"\",\"\",+'[2]EXT(T)'!AF42)","v":"n.d."},{"$f":"IF(+'[2]EXT(T)'!AY42=\"\",\"\",+'[2]EXT(T)'!AY42)","v":"n.d."},{"$f":"IF(+'[2]EXT(T)'!AZ42=\"\",\"\",+'[2]EXT(T)'!AZ42)","v":"n.d."},"n.d.",{"$f":"IF(+'[2]EXT(T)'!AR42=\"\",\"\",+'[2]EXT(T)'!AR42)","v":295.7},{"$f":"IF(+'[2]EXT(T)'!AS42=\"\",\"\",+'[2]EXT(T)'!AS42)","v":108.2561},{"$f":"IF(+'[2]EXT(T)'!AT42=\"\",\"\",+'[2]EXT(T)'!AT42)","v":41.665372813721987},"n.d.",{"$f":"IF(+'[2]EXT(T)'!AV42=\"\",\"\",+'[2]EXT(T)'!AV42)","v":269.39999999999998},"n.d.","n.d.","n.d."]
[null,"II",{"$f":"IF(+'[2]EXT(T)'!M43=\"\",\"\",+'[2]EXT(T)'!M43)","v":"n.d."},{"$f":"IF(+'[2]EXT(T)'!N43=\"\",\"\",+'[2]EXT(T)'!N43)","v":"n.d."},{"$f":"IF(+'[2]EXT(T)'!O43=\"\",\"\",+'[2]EXT(T)'!O43)","v":"n.d."},{"$f":"IF(+'[2]EXT(T)'!P43=\"\",\"\",+'[2]EXT(T)'!P43)","v":"n.d."},{"$f":"IF(+'[2]EXT(T)'!Q43=\"\",\"\",+'[2]EXT(T)'!Q43)","v":"n.d."},{"$f":"IF(+'[2]EXT(T)'!R43=\"\",\"\",+'[2]EXT(T)'!R43)","v":"n.d."},{"$f":"IF(+'[2]EXT(T)'!S43=\"\",\"\",+'[2]EXT(T)'!S43)","v":110.4},{"$f":"IF(+'[2]EXT(T)'!U43=\"\",\"\",+'[2]EXT(T)'!U43)","v":"n.d."},{"$f":"IF(+'[2]EXT(T)'!V43=\"\",\"\",+'[2]EXT(T)'!V43)","v":"n.d."},{"$f":"IF(+'[2]EXT(T)'!W43=\"\",\"\",+'[2]EXT(T)'!W43)","v":"n.d."},{"$f":"IF(+'[2]EXT(T)'!X43=\"\",\"\",+'[2]EXT(T)'!X43)","v":"n.d."},{"$f":"IF(+'[2]EXT(T)'!Y43=\"\",\"\",+'[2]EXT(T)'!Y43)","v":"n.d."},{"$f":"IF(+'[2]EXT(T)'!Z43=\"\",\"\",+'[2]EXT(T)'!Z43)","v":"n.d."},{"$f":"IF(+'[2]EXT(T)'!AA43=\"\",\"\",+'[2]EXT(T)'!AA43)","v":"n.d."},{"$f":"IF(+'[2]EXT(T)'!AB43=\"\",\"\",+'[2]EXT(T)'!AB43)","v":"n.d."},{"$f":"IF(+'[2]EXT(T)'!AC43=\"\",\"\",+'[2]EXT(T)'!AC43)","v":226.60000000000002},{"$f":"IF(+'[2]EXT(T)'!AE43=\"\",\"\",+'[2]EXT(T)'!AE43)","v":"n.d."},{"$f":"IF(+'[2]EXT(T)'!AF43=\"\",\"\",+'[2]EXT(T)'!AF43)","v":"n.d."},{"$f":"IF(+'[2]EXT(T)'!AY43=\"\",\"\",+'[2]EXT(T)'!AY43)","v":"n.d."},{"$f":"IF(+'[2]EXT(T)'!AZ43=\"\",\"\",+'[2]EXT(T)'!AZ43)","v":"n.d."},"n.d.",{"$f":"IF(+'[2]EXT(T)'!AR43=\"\",\"\",+'[2]EXT(T)'!AR43-'[2]EXT(T)'!AR42)","v":336.89999999999992},{"$f":"IF(+'[2]EXT(T)'!AS43=\"\",\"\",+'[2]EXT(T)'!AS43-'[2]EXT(T)'!AS42)","v":116.66070000000002},{"$f":"IF(+'[2]EXT(T)'!AT43=\"\",\"\",+'[2]EXT(T)'!AT43-'[2]EXT(T)'!AT42)","v":49.888227112008181},"n.d.",{"$f":"IF(+'[2]EXT(T)'!AV43=\"\",\"\",+'[2]EXT(T)'!AV43-'[2]EXT(T)'!AV42)","v":273.39999999999998},"n.d.","n.d.","n.d."]
[null,"III",{"$f":"IF(+'[2]EXT(T)'!M44=\"\",\"\",+'[2]EXT(T)'!M44)","v":"n.d."},{"$f":"IF(+'[2]EXT(T)'!N44=\"\",\"\",+'[2]EXT(T)'!N44)","v":"n.d."},{"$f":"IF(+'[2]EXT(T)'!O44=\"\",\"\",+'[2]EXT(T)'!O44)","v":"n.d."},{"$f":"IF(+'[2]EXT(T)'!P44=\"\",\"\",+'[2]EXT(T)'!P44)","v":"n.d."},{"$f":"IF(+'[2]EXT(T)'!Q44=\"\",\"\",+'[2]EXT(T)'!Q44)","v":"n.d."},{"$f":"IF(+'[2]EXT(T)'!R44=\"\",\"\",+'[2]EXT(T)'!R44)","v":"n.d."},{"$f":"IF(+'[2]EXT(T)'!S44=\"\",\"\",+'[2]EXT(T)'!S44)","v":226.4},{"$f":"IF(+'[2]EXT(T)'!U44=\"\",\"\",+'[2]EXT(T)'!U44)","v":"n.d."},{"$f":"IF(+'[2]EXT(T)'!V44=\"\",\"\",+'[2]EXT(T)'!V44)","v":"n.d."},{"$f":"IF(+'[2]EXT(T)'!W44=\"\",\"\",+'[2]EXT(T)'!W44)","v":"n.d."},{"$f":"IF(+'[2]EXT(T)'!X44=\"\",\"\",+'[2]EXT(T)'!X44)","v":"n.d."},{"$f":"IF(+'[2]EXT(T)'!Y44=\"\",\"\",+'[2]EXT(T)'!Y44)","v":"n.d."},{"$f":"IF(+'[2]EXT(T)'!Z44=\"\",\"\",+'[2]EXT(T)'!Z44)","v":"n.d."},{"$f":"IF(+'[2]EXT(T)'!AA44=\"\",\"\",+'[2]EXT(T)'!AA44)","v":"n.d."},{"$f":"IF(+'[2]EXT(T)'!AB44=\"\",\"\",+'[2]EXT(T)'!AB44)","v":"n.d."},{"$f":"IF(+'[2]EXT(T)'!AC44=\"\",\"\",+'[2]EXT(T)'!AC44)","v":453},{"$f":"IF(+'[2]EXT(T)'!AE44=\"\",\"\",+'[2]EXT(T)'!AE44)","v":"n.d."},{"$f":"IF(+'[2]EXT(T)'!AF44=\"\",\"\",+'[2]EXT(T)'!AF44)","v":"n.d."},{"$f":"IF(+'[2]EXT(T)'!AY44=\"\",\"\",+'[2]EXT(T)'!AY44)","v":"n.d."},{"$f":"IF(+'[2]EXT(T)'!AZ44=\"\",\"\",+'[2]EXT(T)'!AZ44)","v":"n.d."},"n.d.",{"$f":"IF(+'[2]EXT(T)'!AR44=\"\",\"\",+'[2]EXT(T)'!AR44-'[2]EXT(T)'!AR43)","v":345.10000000000014},{"$f":"IF(+'[2]EXT(T)'!AS44=\"\",\"\",+'[2]EXT(T)'!AS44-'[2]EXT(T)'!AS43)","v":113.88240000000002},{"$f":"IF(+'[2]EXT(T)'!AT44=\"\",\"\",+'[2]EXT(T)'!AT44-'[2]EXT(T)'!AT43)","v":55.108254141529898},"n.d.",{"$f":"IF(+'[2]EXT(T)'!AV44=\"\",\"\",+'[2]EXT(T)'!AV44-'[2]EXT(T)'!AV43)","v":306.29999999999995},"n.d.","n.d.","n.d."]
[null,"IV",{"$f":"IF(+'[2]EXT(T)'!M45=\"\",\"\",+'[2]EXT(T)'!M45)","v":"n.d."},{"$f":"IF(+'[2]EXT(T)'!N45=\"\",\"\",+'[2]EXT(T)'!N45)","v":"n.d."},{"$f":"IF(+'[2]EXT(T)'!O45=\"\",\"\",+'[2]EXT(T)'!O45)","v":"n.d."},{"$f":"IF(+'[2]EXT(T)'!P45=\"\",\"\",+'[2]EXT(T)'!P45)","v":"n.d."},{"$f":"IF(+'[2]EXT(T)'!Q45=\"\",\"\",+'[2]EXT(T)'!Q45)","v":"n.d."},{"$f":"IF(+'[2]EXT(T)'!R45=\"\",\"\",+'[2]EXT(T)'!R45)","v":"n.d."},{"$f":"IF(+'[2]EXT(T)'!S45=\"\",\"\",+'[2]EXT(T)'!S45)","v":750.1},{"$f":"IF(+'[2]EXT(T)'!U45=\"\",\"\",+'[2]EXT(T)'!U45)","v":"n.d."},{"$f":"IF(+'[2]EXT(T)'!V45=\"\",\"\",+'[2]EXT(T)'!V45)","v":"n.d."},{"$f":"IF(+'[2]EXT(T)'!W45=\"\",\"\",+'[2]EXT(T)'!W45)","v":"n.d."},{"$f":"IF(+'[2]EXT(T)'!X45=\"\",\"\",+'[2]EXT(T)'!X45)","v":"n.d."},{"$f":"IF(+'[2]EXT(T)'!Y45=\"\",\"\",+'[2]EXT(T)'!Y45)","v":"n.d."},{"$f":"IF(+'[2]EXT(T)'!Z45=\"\",\"\",+'[2]EXT(T)'!Z45)","v":"n.d."},{"$f":"IF(+'[2]EXT(T)'!AA45=\"\",\"\",+'[2]EXT(T)'!AA45)","v":"n.d."},{"$f":"IF(+'[2]EXT(T)'!AB45=\"\",\"\",+'[2]EXT(T)'!AB45)","v":"n.d."},{"$f":"IF(+'[2]EXT(T)'!AC45=\"\",\"\",+'[2]EXT(T)'!AC45)","v":1203.0999999999999},{"$f":"IF(+'[2]EXT(T)'!AE45=\"\",\"\",+'[2]EXT(T)'!AE45)","v":"n.d."},{"$f":"IF(+'[2]EXT(T)'!AF45=\"\",\"\",+'[2]EXT(T)'!AF45)","v":"n.d."},{"$f":"IF(+'[2]EXT(T)'!AY45=\"\",\"\",+'[2]EXT(T)'!AY45)","v":"n.d."},{"$f":"IF(+'[2]EXT(T)'!AZ45=\"\",\"\",+'[2]EXT(T)'!AZ45)","v":"n.d."},"n.d.",{"$f":"IF(+'[2]EXT(T)'!AR45=\"\",\"\",+'[2]EXT(T)'!AR45-'[2]EXT(T)'!AR44)","v":360.59999999999991},{"$f":"IF(+'[2]EXT(T)'!AS45=\"\",\"\",+'[2]EXT(T)'!AS45-'[2]EXT(T)'!AS44)","v":117.6447},{"$f":"IF(+'[2]EXT(T)'!AT45=\"\",\"\",+'[2]EXT(T)'!AT45-'[2]EXT(T)'!AT44)","v":73.338145932739906},"n.d.",{"$f":"IF(+'[2]EXT(T)'!AV45=\"\",\"\",+'[2]EXT(T)'!AV45-'[2]EXT(T)'!AV44)","v":476.89999999999986},"n.d.","n.d.","n.d."]
[1999,"I",{"$f":"IF(+'[2]EXT(T)'!M46=\"\",\"\",+'[2]EXT(T)'!M46)","v":"n.d."},{"$f":"IF(+'[2]EXT(T)'!N46=\"\",\"\",+'[2]EXT(T)'!N46)","v":17.899999999999999},{"$f":"IF(+'[2]EXT(T)'!O46=\"\",\"\",+'[2]EXT(T)'!O46)","v":"n.d."},{"$f":"IF(+'[2]EXT(T)'!P46=\"\",\"\",+'[2]EXT(T)'!P46)","v":"n.d."},{"$f":"IF(+'[2]EXT(T)'!Q46=\"\",\"\",+'[2]EXT(T)'!Q46)","v":"n.d."},{"$f":"IF(+'[2]EXT(T)'!R46=\"\",\"\",+'[2]EXT(T)'!R46)","v":"n.d."},{"$f":"IF(+'[2]EXT(T)'!S46=\"\",\"\",+'[2]EXT(T)'!S46)","v":177.09999999999997},{"$f":"IF(+'[2]EXT(T)'!U46=\"\",\"\",+'[2]EXT(T)'!U46)","v":"n.d."},{"$f":"IF(+'[2]EXT(T)'!V46=\"\",\"\",+'[2]EXT(T)'!V46)","v":"n.d."},{"$f":"IF(+'[2]EXT(T)'!W46=\"\",\"\",+'[2]EXT(T)'!W46)","v":"n.d."},{"$f":"IF(+'[2]EXT(T)'!X46=\"\",\"\",+'[2]EXT(T)'!X46)","v":17.899999999999999},{"$f":"IF(+'[2]EXT(T)'!Y46=\"\",\"\",+'[2]EXT(T)'!Y46)","v":"n.d."},{"$f":"IF(+'[2]EXT(T)'!Z46=\"\",\"\",+'[2]EXT(T)'!Z46)","v":"n.d."},{"$f":"IF(+'[2]EXT(T)'!AA46=\"\",\"\",+'[2]EXT(T)'!AA46)","v":"n.d."},{"$f":"IF(+'[2]EXT(T)'!AB46=\"\",\"\",+'[2]EXT(T)'!AB46)","v":"n.d."},{"$f":"IF(+'[2]EXT(T)'!AC46=\"\",\"\",+'[2]EXT(T)'!AC46)","v":177.09999999999997},{"$f":"IF(+'[2]EXT(T)'!AE46=\"\",\"\",+'[2]EXT(T)'!AE46)","v":"n.d."},{"$f":"IF(+'[2]EXT(T)'!AF46=\"\",\"\",+'[2]EXT(T)'!AF46)","v":"n.d."},{"$f":"IF(+'[2]EXT(T)'!AY46=\"\",\"\",+'[2]EXT(T)'!AY46)","v":"n.d."},{"$f":"IF(+'[2]EXT(T)'!AZ46=\"\",\"\",+'[2]EXT(T)'!AZ46)","v":"n.d."},{"$f":"IF(+'[2]EXT(T)'!AQ46=\"\",\"\",+'[2]EXT(T)'!AQ46)","v":29.45348152},{"$f":"IF(+'[2]EXT(T)'!AR46=\"\",\"\",+'[2]EXT(T)'!AR46)","v":319.39999999999998},{"$f":"IF(+'[2]EXT(T)'!AS46=\"\",\"\",+'[2]EXT(T)'!AS46)","v":118.553},{"$f":"IF(+'[2]EXT(T)'!AT46=\"\",\"\",+'[2]EXT(T)'!AT46)","v":68.928244800699375},"n.d.",{"$f":"IF(+'[2]EXT(T)'!AV46=\"\",\"\",+'[2]EXT(T)'!AV46)","v":344.9},"n.d.","n.d.","n.d."]
[null,"II",{"$f":"IF(+'[2]EXT(T)'!M47=\"\",\"\",+'[2]EXT(T)'!M47)","v":"n.d."},{"$f":"IF(+'[2]EXT(T)'!N47=\"\",\"\",+'[2]EXT(T)'!N47)","v":12.799999999999999},{"$f":"IF(+'[2]EXT(T)'!O47=\"\",\"\",+'[2]EXT(T)'!O47)","v":"n.d."},{"$f":"IF(+'[2]EXT(T)'!P47=\"\",\"\",+'[2]EXT(T)'!P47)","v":"n.d."},{"$f":"IF(+'[2]EXT(T)'!Q47=\"\",\"\",+'[2]EXT(T)'!Q47)","v":"n.d."},{"$f":"IF(+'[2]EXT(T)'!R47=\"\",\"\",+'[2]EXT(T)'!R47)","v":"n.d."},{"$f":"IF(+'[2]EXT(T)'!S47=\"\",\"\",+'[2]EXT(T)'!S47)","v":255.2},{"$f":"IF(+'[2]EXT(T)'!U47=\"\",\"\",+'[2]EXT(T)'!U47)","v":"n.d."},{"$f":"IF(+'[2]EXT(T)'!V47=\"\",\"\",+'[2]EXT(T)'!V47)","v":"n.d."},{"$f":"IF(+'[2]EXT(T)'!W47=\"\",\"\",+'[2]EXT(T)'!W47)","v":"n.d."},{"$f":"IF(+'[2]EXT(T)'!X47=\"\",\"\",+'[2]EXT(T)'!X47)","v":30.699999999999996},{"$f":"IF(+'[2]EXT(T)'!Y47=\"\",\"\",+'[2]EXT(T)'!Y47)","v":"n.d."},{"$f":"IF(+'[2]EXT(T)'!Z47=\"\",\"\",+'[2]EXT(T)'!Z47)","v":"n.d."},{"$f":"IF(+'[2]EXT(T)'!AA47=\"\",\"\",+'[2]EXT(T)'!AA47)","v":"n.d."},{"$f":"IF(+'[2]EXT(T)'!AB47=\"\",\"\",+'[2]EXT(T)'!AB47)","v":"n.d."},{"$f":"IF(+'[2]EXT(T)'!AC47=\"\",\"\",+'[2]EXT(T)'!AC47)","v":432.29999999999995},{"$f":"IF(+'[2]EXT(T)'!AE47=\"\",\"\",+'[2]EXT(T)'!AE47)","v":"n.d."},{"$f":"IF(+'[2]EXT(T)'!AF47=\"\",\"\",+'[2]EXT(T)'!AF47)","v":"n.d."},{"$f":"IF(+'[2]EXT(T)'!AY47=\"\",\"\",+'[2]EXT(T)'!AY47)","v":"n.d."},{"$f":"IF(+'[2]EXT(T)'!AZ47=\"\",\"\",+'[2]EXT(T)'!AZ47)","v":"n.d."},{"$f":"IF(+'[2]EXT(T)'!AQ47=\"\",\"\",+'[2]EXT(T)'!AQ47-'[2]EXT(T)'!AQ46)","v":29.45348152},{"$f":"IF(+'[2]EXT(T)'!AR47=\"\",\"\",+'[2]EXT(T)'!AR47-'[2]EXT(T)'!AR46)","v":345.9},{"$f":"IF(+'[2]EXT(T)'!AS47=\"\",\"\",+'[2]EXT(T)'!AS47-'[2]EXT(T)'!AS46)","v":92.999099999999999},{"$f":"IF(+'[2]EXT(T)'!AT47=\"\",\"\",+'[2]EXT(T)'!AT47-'[2]EXT(T)'!AT46)","v":78.538422156649219},"n.d.",{"$f":"IF(+'[2]EXT(T)'!AV47=\"\",\"\",+'[2]EXT(T)'!AV47-'[2]EXT(T)'!AV46)","v":325.00000000000011},"n.d.","n.d.","n.d."]
[null,"III",{"$f":"IF(+'[2]EXT(T)'!M48=\"\",\"\",+'[2]EXT(T)'!M48)","v":"n.d."},{"$f":"IF(+'[2]EXT(T)'!N48=\"\",\"\",+'[2]EXT(T)'!N48)","v":150.6},{"$f":"IF(+'[2]EXT(T)'!O48=\"\",\"\",+'[2]EXT(T)'!O48)","v":"n.d."},{"$f":"IF(+'[2]EXT(T)'!P48=\"\",\"\",+'[2]EXT(T)'!P48)","v":"n.d."},{"$f":"IF(+'[2]EXT(T)'!Q48=\"\",\"\",+'[2]EXT(T)'!Q48)","v":"n.d."},{"$f":"IF(+'[2]EXT(T)'!R48=\"\",\"\",+'[2]EXT(T)'!R48)","v":"n.d."},{"$f":"IF(+'[2]EXT(T)'!S48=\"\",\"\",+'[2]EXT(T)'!S48)","v":198.29999999999998},{"$f":"IF(+'[2]EXT(T)'!U48=\"\",\"\",+'[2]EXT(T)'!U48)","v":"n.d."},{"$f":"IF(+'[2]EXT(T)'!V48=\"\",\"\",+'[2]EXT(T)'!V48)","v":"n.d."},{"$f":"IF(+'[2]EXT(T)'!W48=\"\",\"\",+'[2]EXT(T)'!W48)","v":"n.d."},{"$f":"IF(+'[2]EXT(T)'!X48=\"\",\"\",+'[2]EXT(T)'!X48)","v":181.29999999999998},{"$f":"IF(+'[2]EXT(T)'!Y48=\"\",\"\",+'[2]EXT(T)'!Y48)","v":"n.d."},{"$f":"IF(+'[2]EXT(T)'!Z48=\"\",\"\",+'[2]EXT(T)'!Z48)","v":"n.d."},{"$f":"IF(+'[2]EXT(T)'!AA48=\"\",\"\",+'[2]EXT(T)'!AA48)","v":"n.d."},{"$f":"IF(+'[2]EXT(T)'!AB48=\"\",\"\",+'[2]EXT(T)'!AB48)","v":"n.d."},{"$f":"IF(+'[2]EXT(T)'!AC48=\"\",\"\",+'[2]EXT(T)'!AC48)","v":630.59999999999991},{"$f":"IF(+'[2]EXT(T)'!AE48=\"\",\"\",+'[2]EXT(T)'!AE48)","v":"n.d."},{"$f":"IF(+'[2]EXT(T)'!AF48=\"\",\"\",+'[2]EXT(T)'!AF48)","v":"n.d."},{"$f":"IF(+'[2]EXT(T)'!AY48=\"\",\"\",+'[2]EXT(T)'!AY48)","v":"n.d."},{"$f":"IF(+'[2]EXT(T)'!AZ48=\"\",\"\",+'[2]EXT(T)'!AZ48)","v":"n.d."},{"$f":"IF(+'[2]EXT(T)'!AQ48=\"\",\"\",+'[2]EXT(T)'!AQ48-'[2]EXT(T)'!AQ47)","v":29.453481520000004},{"$f":"IF(+'[2]EXT(T)'!AR48=\"\",\"\",+'[2]EXT(T)'!AR48-'[2]EXT(T)'!AR47)","v":332},{"$f":"IF(+'[2]EXT(T)'!AS48=\"\",\"\",+'[2]EXT(T)'!AS48-'[2]EXT(T)'!AS47)","v":99.711999999999989},{"$f":"IF(+'[2]EXT(T)'!AT48=\"\",\"\",+'[2]EXT(T)'!AT48-'[2]EXT(T)'!AT47)","v":83.300489908068187},"n.d.",{"$f":"IF(+'[2]EXT(T)'!AV48=\"\",\"\",+'[2]EXT(T)'!AV48-'[2]EXT(T)'!AV47)","v":344.59999999999991},"n.d.","n.d.","n.d."]
[null,"IV",{"$f":"IF(+'[2]EXT(T)'!M49=\"\",\"\",+'[2]EXT(T)'!M49)","v":"n.d."},{"$f":"IF(+'[2]EXT(T)'!N49=\"\",\"\",+'[2]EXT(T)'!N49)","v":34.5},{"$f":"IF(+'[2]EXT(T)'!O49=\"\",\"\",+'[2]EXT(T)'!O49)","v":"n.d."},{"$f":"IF(+'[2]EXT(T)'!P49=\"\",\"\",+'[2]EXT(T)'!P49)","v":"n.d."},{"$f":"IF(+'[2]EXT(T)'!Q49=\"\",\"\",+'[2]EXT(T)'!Q49)","v":"n.d."},{"$f":"IF(+'[2]EXT(T)'!R49=\"\",\"\",+'[2]EXT(T)'!R49)","v":"n.d."},{"$f":"IF(+'[2]EXT(T)'!S49=\"\",\"\",+'[2]EXT(T)'!S49)","v":125},{"$f":"IF(+'[2]EXT(T)'!U49=\"\",\"\",+'[2]EXT(T)'!U49)","v":"n.d."},{"$f":"IF(+'[2]EXT(T)'!V49=\"\",\"\",+'[2]EXT(T)'!V49)","v":"n.d."},{"$f":"IF(+'[2]EXT(T)'!W49=\"\",\"\",+'[2]EXT(T)'!W49)","v":"n.d."},{"$f":"IF(+'[2]EXT(T)'!X49=\"\",\"\",+'[2]EXT(T)'!X49)","v":215.79999999999998},{"$f":"IF(+'[2]EXT(T)'!Y49=\"\",\"\",+'[2]EXT(T)'!Y49)","v":"n.d."},{"$f":"IF(+'[2]EXT(T)'!Z49=\"\",\"\",+'[2]EXT(T)'!Z49)","v":"n.d."},{"$f":"IF(+'[2]EXT(T)'!AA49=\"\",\"\",+'[2]EXT(T)'!AA49)","v":"n.d."},{"$f":"IF(+'[2]EXT(T)'!AB49=\"\",\"\",+'[2]EXT(T)'!AB49)","v":"n.d."},{"$f":"IF(+'[2]EXT(T)'!AC49=\"\",\"\",+'[2]EXT(T)'!AC49)","v":755.59999999999991},{"$f":"IF(+'[2]EXT(T)'!AE49=\"\",\"\",+'[2]EXT(T)'!AE49)","v":"n.d."},{"$f":"IF(+'[2]EXT(T)'!AF49=\"\",\"\",+'[2]EXT(T)'!AF49)","v":"n.d."},{"$f":"IF(+'[2]EXT(T)'!AY49=\"\",\"\",+'[2]EXT(T)'!AY49)","v":"n.d."},{"$f":"IF(+'[2]EXT(T)'!AZ49=\"\",\"\",+'[2]EXT(T)'!AZ49)","v":"n.d."},{"$f":"IF(+'[2]EXT(T)'!AQ49=\"\",\"\",+'[2]EXT(T)'!AQ49-'[2]EXT(T)'!AQ48)","v":29.453273670000002},{"$f":"IF(+'[2]EXT(T)'!AR49=\"\",\"\",+'[2]EXT(T)'!AR49-'[2]EXT(T)'!AR48)","v":376.5},{"$f":"IF(+'[2]EXT(T)'!AS49=\"\",\"\",+'[2]EXT(T)'!AS49-'[2]EXT(T)'!AS48)","v":154.25619999999992},{"$f":"IF(+'[2]EXT(T)'!AT49=\"\",\"\",+'[2]EXT(T)'!AT49-'[2]EXT(T)'!AT48)","v":89.23284313458322},"n.d.",{"$f":"IF(+'[2]EXT(T)'!AV49=\"\",\"\",+'[2]EXT(T)'!AV49-'[2]EXT(T)'!AV48)","v":504.20000000000005},"n.d.","n.d.","n.d."]
[2000,"I",{"$f":"IF(+'[2]EXT(T)'!M50=\"\",\"\",+'[2]EXT(T)'!M50)","v":213.54971564431659},{"$f":"IF(+'[2]EXT(T)'!N50=\"\",\"\",+'[2]EXT(T)'!N50)","v":4.0999999999999996},{"$f":"IF(+'[2]EXT(T)'!O50=\"\",\"\",+'[2]EXT(T)'!O50)","v":"n.d."},{"$f":"IF(+'[2]EXT(T)'!P50=\"\",\"\",+'[2]EXT(T)'!P50)","v":"n.d."},{"$f":"IF(+'[2]EXT(T)'!Q50=\"\",\"\",+'[2]EXT(T)'!Q50)","v":"n.d."},{"$f":"IF(+'[2]EXT(T)'!R50=\"\",\"\",+'[2]EXT(T)'!R50)","v":"n.d."},{"$f":"IF(+'[2]EXT(T)'!S50=\"\",\"\",+'[2]EXT(T)'!S50)","v":115.89999999999999},{"$f":"IF(+'[2]EXT(T)'!U50=\"\",\"\",+'[2]EXT(T)'!U50)","v":"n.d."},{"$f":"IF(+'[2]EXT(T)'!V50=\"\",\"\",+'[2]EXT(T)'!V50)","v":"n.d."},{"$f":"IF(+'[2]EXT(T)'!W50=\"\",\"\",+'[2]EXT(T)'!W50)","v":213.54971564431659},{"$f":"IF(+'[2]EXT(T)'!X50=\"\",\"\",+'[2]EXT(T)'!X50)","v":4.0999999999999996},{"$f":"IF(+'[2]EXT(T)'!Y50=\"\",\"\",+'[2]EXT(T)'!Y50)","v":"n.d."},{"$f":"IF(+'[2]EXT(T)'!Z50=\"\",\"\",+'[2]EXT(T)'!Z50)","v":"n.d."},{"$f":"IF(+'[2]EXT(T)'!AA50=\"\",\"\",+'[2]EXT(T)'!AA50)","v":"n.d."},{"$f":"IF(+'[2]EXT(T)'!AB50=\"\",\"\",+'[2]EXT(T)'!AB50)","v":"n.d."},{"$f":"IF(+'[2]EXT(T)'!AC50=\"\",\"\",+'[2]EXT(T)'!AC50)","v":115.89999999999999},{"$f":"IF(+'[2]EXT(T)'!AE50=\"\",\"\",+'[2]EXT(T)'!AE50)","v":"n.d."},{"$f":"IF(+'[2]EXT(T)'!AF50=\"\",\"\",+'[2]EXT(T)'!AF50)","v":"n.d."},{"$f":"IF(+'[2]EXT(T)'!AY50=\"\",\"\",+'[2]EXT(T)'!AY50)","v":1108.11624244},{"$f":"IF(+'[2]EXT(T)'!AZ50=\"\",\"\",+'[2]EXT(T)'!AZ50)","v":"n.d."},{"$f":"IF(+'[2]EXT(T)'!AQ50=\"\",\"\",+'[2]EXT(T)'!AQ50)","v":30.095942440000002},{"$f":"IF(+'[2]EXT(T)'!AR50=\"\",\"\",+'[2]EXT(T)'!AR50)","v":398.7},{"$f":"IF(+'[2]EXT(T)'!AS50=\"\",\"\",+'[2]EXT(T)'!AS50)","v":134.72809999999998},{"$f":"IF(+'[2]EXT(T)'!AT50=\"\",\"\",+'[2]EXT(T)'!AT50)","v":77.092200000000005},{"$f":"IF(+'[2]EXT(T)'!AU50=\"\",\"\",+'[2]EXT(T)'!AU50)","v":64},{"$f":"IF(+'[2]EXT(T)'!AV50=\"\",\"\",+'[2]EXT(T)'!AV50)","v":403.5},"n.d.",{"$f":"IF(OR(W43=\"\",X43=\"\",Y43=\"\",Z43=\"\",AA43=\"\",AB43=\"\"),\"\",W43+X43+Y43+Z43+AA43+AB43)","v":1108.11624244},"n.d."]
[null,"II",{"$f":"IF(+'[2]EXT(T)'!M51=\"\",\"\",+'[2]EXT(T)'!M51)","v":182.2847619857871},{"$f":"IF(+'[2]EXT(T)'!N51=\"\",\"\",+'[2]EXT(T)'!N51)","v":34.299999999999997},{"$f":"IF(+'[2]EXT(T)'!O51=\"\",\"\",+'[2]EXT(T)'!O51)","v":"n.d."},{"$f":"IF(+'[2]EXT(T)'!P51=\"\",\"\",+'[2]EXT(T)'!P51)","v":"n.d."},{"$f":"IF(+'[2]EXT(T)'!Q51=\"\",\"\",+'[2]EXT(T)'!Q51)","v":"n.d."},{"$f":"IF(+'[2]EXT(T)'!R51=\"\",\"\",+'[2]EXT(T)'!R51)","v":"n.d."},{"$f":"IF(+'[2]EXT(T)'!S51=\"\",\"\",+'[2]EXT(T)'!S51)","v":124.69999999999999},{"$f":"IF(+'[2]EXT(T)'!U51=\"\",\"\",+'[2]EXT(T)'!U51)","v":"n.d."},{"$f":"IF(+'[2]EXT(T)'!V51=\"\",\"\",+'[2]EXT(T)'!V51)","v":"n.d."},{"$f":"IF(+'[2]EXT(T)'!W51=\"\",\"\",+'[2]EXT(T)'!W51)","v":395.83447763010372},{"$f":"IF(+'[2]EXT(T)'!X51=\"\",\"\",+'[2]EXT(T)'!X51)","v":38.4},{"$f":"IF(+'[2]EXT(T)'!Y51=\"\",\"\",+'[2]EXT(T)'!Y51)","v":"n.d."},{"$f":"IF(+'[2]EXT(T)'!Z51=\"\",\"\",+'[2]EXT(T)'!Z51)","v":"n.d."},{"$f":"IF(+'[2]EXT(T)'!AA51=\"\",\"\",+'[2]EXT(T)'!AA51)","v":"n.d."},{"$f":"IF(+'[2]EXT(T)'!AB51=\"\",\"\",+'[2]EXT(T)'!AB51)","v":"n.d."},{"$f":"IF(+'[2]EXT(T)'!AC51=\"\",\"\",+'[2]EXT(T)'!AC51)","v":240.59999999999997},{"$f":"IF(+'[2]EXT(T)'!AE51=\"\",\"\",+'[2]EXT(T)'!AE51)","v":"n.d."},{"$f":"IF(+'[2]EXT(T)'!AF51=\"\",\"\",+'[2]EXT(T)'!AF51)","v":"n.d."},{"$f":"IF(+'[2]EXT(T)'!AY51=\"\",\"\",+'[2]EXT(T)'!AY51)","v":2208.93688488},{"$f":"IF(+'[2]EXT(T)'!AZ51=\"\",\"\",+'[2]EXT(T)'!AZ51)","v":"n.d."},{"$f":"IF(+'[2]EXT(T)'!AQ51=\"\",\"\",+'[2]EXT(T)'!AQ51-'[2]EXT(T)'!AQ50)","v":30.095942440000002},{"$f":"IF(+'[2]EXT(T)'!AR51=\"\",\"\",+'[2]EXT(T)'!AR51-'[2]EXT(T)'!AR50)","v":418.7},{"$f":"IF(+'[2]EXT(T)'!AS51=\"\",\"\",+'[2]EXT(T)'!AS51-'[2]EXT(T)'!AS50)","v":125.60769999999997},{"$f":"IF(+'[2]EXT(T)'!AT51=\"\",\"\",+'[2]EXT(T)'!AT51-'[2]EXT(T)'!AT50)","v":86.916999999999987},{"$f":"IF(+'[2]EXT(T)'!AU51=\"\",\"\",+'[2]EXT(T)'!AU51-'[2]EXT(T)'!AU50)","v":73.599999999999994},{"$f":"IF(+'[2]EXT(T)'!AV51=\"\",\"\",+'[2]EXT(T)'!AV51-'[2]EXT(T)'!AV50)","v":365.9},"n.d.",1100.82064244,"n.d."]
[null,"III",{"$f":"IF(+'[2]EXT(T)'!M52=\"\",\"\",+'[2]EXT(T)'!M52)","v":120.05479975209747},{"$f":"IF(+'[2]EXT(T)'!N52=\"\",\"\",+'[2]EXT(T)'!N52)","v":87.3},{"$f":"IF(+'[2]EXT(T)'!O52=\"\",\"\",+'[2]EXT(T)'!O52)","v":"n.d."},{"$f":"IF(+'[2]EXT(T)'!P52=\"\",\"\",+'[2]EXT(T)'!P52)","v":"n.d."},{"$f":"IF(+'[2]EXT(T)'!Q52=\"\",\"\",+'[2]EXT(T)'!Q52)","v":"n.d."},{"$f":"IF(+'[2]EXT(T)'!R52=\"\",\"\",+'[2]EXT(T)'!R52)","v":"n.d."},{"$f":"IF(+'[2]EXT(T)'!S52=\"\",\"\",+'[2]EXT(T)'!S52)","v":164.7},{"$f":"IF(+'[2]EXT(T)'!U52=\"\",\"\",+'[2]EXT(T)'!U52)","v":"n.d."},{"$f":"IF(+'[2]EXT(T)'!V52=\"\",\"\",+'[2]EXT(T)'!V52)","v":"n.d."},{"$f":"IF(+'[2]EXT(T)'!W52=\"\",\"\",+'[2]EXT(T)'!W52)","v":515.88927738220116},{"$f":"IF(+'[2]EXT(T)'!X52=\"\",\"\",+'[2]EXT(T)'!X52)","v":125.69999999999999},{"$f":"IF(+'[2]EXT(T)'!Y52=\"\",\"\",+'[2]EXT(T)'!Y52)","v":"n.d."},{"$f":"IF(+'[2]EXT(T)'!Z52=\"\",\"\",+'[2]EXT(T)'!Z52)","v":"n.d."},{"$f":"IF(+'[2]EXT(T)'!AA52=\"\",\"\",+'[2]EXT(T)'!AA52)","v":"n.d."},{"$f":"IF(+'[2]EXT(T)'!AB52=\"\",\"\",+'[2]EXT(T)'!AB52)","v":"n.d."},{"$f":"IF(+'[2]EXT(T)'!AC52=\"\",\"\",+'[2]EXT(T)'!AC52)","v":405.29999999999995},{"$f":"IF(+'[2]EXT(T)'!AE52=\"\",\"\",+'[2]EXT(T)'!AE52)","v":"n.d."},{"$f":"IF(+'[2]EXT(T)'!AF52=\"\",\"\",+'[2]EXT(T)'!AF52)","v":"n.d."},{"$f":"IF(+'[2]EXT(T)'!AY52=\"\",\"\",+'[2]EXT(T)'!AY52)","v":3353.5504273199999},{"$f":"IF(+'[2]EXT(T)'!AZ52=\"\",\"\",+'[2]EXT(T)'!AZ52)","v":"n.d."},{"$f":"IF(+'[2]EXT(T)'!AQ52=\"\",\"\",+'[2]EXT(T)'!AQ52-'[2]EXT(T)'!AQ51)","v":30.095942440000002},{"$f":"IF(+'[2]EXT(T)'!AR52=\"\",\"\",+'[2]EXT(T)'!AR52-'[2]EXT(T)'!AR51)","v":450.9},{"$f":"IF(+'[2]EXT(T)'!AS52=\"\",\"\",+'[2]EXT(T)'!AS52-'[2]EXT(T)'!AS51)","v":128.59849999999994},{"$f":"IF(+'[2]EXT(T)'!AT52=\"\",\"\",+'[2]EXT(T)'!AT52-'[2]EXT(T)'!AT51)","v":90.819099999999992},{"$f":"IF(+'[2]EXT(T)'!AU52=\"\",\"\",+'[2]EXT(T)'!AU52-'[2]EXT(T)'!AU51)","v":83.200000000000017},{"$f":"IF(+'[2]EXT(T)'!AV52=\"\",\"\",+'[2]EXT(T)'!AV52-'[2]EXT(T)'!AV51)","v":361.00000000000011},"n.d.",1144.6135424399999,"n.d."]
[null,"IV",{"$f":"IF(+'[2]EXT(T)'!M53=\"\",\"\",+'[2]EXT(T)'!M53)","v":151.0545043093195},{"$f":"IF(+'[2]EXT(T)'!N53=\"\",\"\",+'[2]EXT(T)'!N53)","v":47.699999999999996},{"$f":"IF(+'[2]EXT(T)'!O53=\"\",\"\",+'[2]EXT(T)'!O53)","v":"n.d."},{"$f":"IF(+'[2]EXT(T)'!P53=\"\",\"\",+'[2]EXT(T)'!P53)","v":"n.d."},{"$f":"IF(+'[2]EXT(T)'!Q53=\"\",\"\",+'[2]EXT(T)'!Q53)","v":"n.d."},{"$f":"IF(+'[2]EXT(T)'!R53=\"\",\"\",+'[2]EXT(T)'!R53)","v":"n.d."},{"$f":"IF(+'[2]EXT(T)'!S53=\"\",\"\",+'[2]EXT(T)'!S53)","v":218.6},{"$f":"IF(+'[2]EXT(T)'!U53=\"\",\"\",+'[2]EXT(T)'!U53)","v":"n.d."},{"$f":"IF(+'[2]EXT(T)'!V53=\"\",\"\",+'[2]EXT(T)'!V53)","v":"n.d."},{"$f":"IF(+'[2]EXT(T)'!W53=\"\",\"\",+'[2]EXT(T)'!W53)","v":666.9437816915206},{"$f":"IF(+'[2]EXT(T)'!X53=\"\",\"\",+'[2]EXT(T)'!X53)","v":173.39999999999998},{"$f":"IF(+'[2]EXT(T)'!Y53=\"\",\"\",+'[2]EXT(T)'!Y53)","v":"n.d."},{"$f":"IF(+'[2]EXT(T)'!Z53=\"\",\"\",+'[2]EXT(T)'!Z53)","v":"n.d."},{"$f":"IF(+'[2]EXT(T)'!AA53=\"\",\"\",+'[2]EXT(T)'!AA53)","v":"n.d."},{"$f":"IF(+'[2]EXT(T)'!AB53=\"\",\"\",+'[2]EXT(T)'!AB53)","v":"n.d."},{"$f":"IF(+'[2]EXT(T)'!AC53=\"\",\"\",+'[2]EXT(T)'!AC53)","v":623.9},{"$f":"IF(+'[2]EXT(T)'!AE53=\"\",\"\",+'[2]EXT(T)'!AE53)","v":"n.d."},{"$f":"IF(+'[2]EXT(T)'!AF53=\"\",\"\",+'[2]EXT(T)'!AF53)","v":"n.d."},{"$f":"IF(+'[2]EXT(T)'!AY53=\"\",\"\",+'[2]EXT(T)'!AY53)","v":4799.478969759999},{"$f":"IF(+'[2]EXT(T)'!AZ53=\"\",\"\",+'[2]EXT(T)'!AZ53)","v":"n.d."},{"$f":"IF(+'[2]EXT(T)'!AQ53=\"\",\"\",+'[2]EXT(T)'!AQ53-'[2]EXT(T)'!AQ52)","v":30.095942440000002},{"$f":"IF(+'[2]EXT(T)'!AR53=\"\",\"\",+'[2]EXT(T)'!AR53-'[2]EXT(T)'!AR52)","v":482.39999999999986},{"$f":"IF(+'[2]EXT(T)'!AS53=\"\",\"\",+'[2]EXT(T)'!AS53-'[2]EXT(T)'!AS52)","v":174.50440000000003},{"$f":"IF(+'[2]EXT(T)'!AT53=\"\",\"\",+'[2]EXT(T)'!AT53-'[2]EXT(T)'!AT52)","v":101.12819999999996},{"$f":"IF(+'[2]EXT(T)'!AU53=\"\",\"\",+'[2]EXT(T)'!AU53-'[2]EXT(T)'!AU52)","v":99.200000000000045},{"$f":"IF(+'[2]EXT(T)'!AV53=\"\",\"\",+'[2]EXT(T)'!AV53-'[2]EXT(T)'!AV52)","v":558.59999999999991},"n.d.",1445.92854244,"n.d."]
[2001,"I",{"$f":"IF(+'[2]EXT(T)'!M54=\"\",\"\",+'[2]EXT(T)'!M54)","v":257.57066087413909},{"$f":"IF(+'[2]EXT(T)'!N54=\"\",\"\",+'[2]EXT(T)'!N54)","v":109},{"$f":"IF(+'[2]EXT(T)'!O54=\"\",\"\",+'[2]EXT(T)'!O54)","v":"n.d."},{"$f":"IF(+'[2]EXT(T)'!P54=\"\",\"\",+'[2]EXT(T)'!P54)","v":"n.d."},{"$f":"IF(+'[2]EXT(T)'!Q54=\"\",\"\",+'[2]EXT(T)'!Q54)","v":"n.d."},{"$f":"IF(+'[2]EXT(T)'!R54=\"\",\"\",+'[2]EXT(T)'!R54)","v":"n.d."},{"$f":"IF(+'[2]EXT(T)'!S54=\"\",\"\",+'[2]EXT(T)'!S54)","v":29.599999999999994},{"$f":"IF(+'[2]EXT(T)'!U54=\"\",\"\",+'[2]EXT(T)'!U54)","v":"n.d."},{"$f":"IF(+'[2]EXT(T)'!V54=\"\",\"\",+'[2]EXT(T)'!V54)","v":"n.d."},{"$f":"IF(+'[2]EXT(T)'!W54=\"\",\"\",+'[2]EXT(T)'!W54)","v":257.57066087413909},{"$f":"IF(+'[2]EXT(T)'!X54=\"\",\"\",+'[2]EXT(T)'!X54)","v":109},{"$f":"IF(+'[2]EXT(T)'!Y54=\"\",\"\",+'[2]EXT(T)'!Y54)","v":"n.d."},{"$f":"IF(+'[2]EXT(T)'!Z54=\"\",\"\",+'[2]EXT(T)'!Z54)","v":"n.d."},{"$f":"IF(+'[2]EXT(T)'!AA54=\"\",\"\",+'[2]EXT(T)'!AA54)","v":"n.d."},{"$f":"IF(+'[2]EXT(T)'!AB54=\"\",\"\",+'[2]EXT(T)'!AB54)","v":"n.d."},{"$f":"IF(+'[2]EXT(T)'!AC54=\"\",\"\",+'[2]EXT(T)'!AC54)","v":29.599999999999994},{"$f":"IF(+'[2]EXT(T)'!AE54=\"\",\"\",+'[2]EXT(T)'!AE54)","v":"n.d."},{"$f":"IF(+'[2]EXT(T)'!AF54=\"\",\"\",+'[2]EXT(T)'!AF54)","v":"n.d."},{"$f":"IF(+'[2]EXT(T)'!AY54=\"\",\"\",+'[2]EXT(T)'!AY54)","v":1287.1616882799999},{"$f":"IF(+'[2]EXT(T)'!AZ54=\"\",\"\",+'[2]EXT(T)'!AZ54)","v":"n.d."},{"$f":"IF(+'[2]EXT(T)'!AQ54=\"\",\"\",+'[2]EXT(T)'!AQ54)","v":45.993488280000001},{"$f":"IF(+'[2]EXT(T)'!AR54=\"\",\"\",+'[2]EXT(T)'!AR54)","v":444.4},{"$f":"IF(+'[2]EXT(T)'!AS54=\"\",\"\",+'[2]EXT(T)'!AS54)","v":183.85640000000001},{"$f":"IF(+'[2]EXT(T)'!AT54=\"\",\"\",+'[2]EXT(T)'!AT54)","v":104.11180000000002},{"$f":"IF(+'[2]EXT(T)'!AU54=\"\",\"\",+'[2]EXT(T)'!AU54)","v":77.099999999999994},{"$f":"IF(+'[2]EXT(T)'!AV54=\"\",\"\",+'[2]EXT(T)'!AV54)","v":431.69999999999993},"n.d.",1287.1616882799999,"n.d."]
[null,"II",{"$f":"IF(+'[2]EXT(T)'!M55=\"\",\"\",+'[2]EXT(T)'!M55)","v":136.96063302419088},{"$f":"IF(+'[2]EXT(T)'!N55=\"\",\"\",+'[2]EXT(T)'!N55)","v":90.1},{"$f":"IF(+'[2]EXT(T)'!O55=\"\",\"\",+'[2]EXT(T)'!O55)","v":"n.d."},{"$f":"IF(+'[2]EXT(T)'!P55=\"\",\"\",+'[2]EXT(T)'!P55)","v":"n.d."},{"$f":"IF(+'[2]EXT(T)'!Q55=\"\",\"\",+'[2]EXT(T)'!Q55)","v":"n.d."},{"$f":"IF(+'[2]EXT(T)'!R55=\"\",\"\",+'[2]EXT(T)'!R55)","v":"n.d."},{"$f":"IF(+'[2]EXT(T)'!S55=\"\",\"\",+'[2]EXT(T)'!S55)","v":63.3},{"$f":"IF(+'[2]EXT(T)'!U55=\"\",\"\",+'[2]EXT(T)'!U55)","v":"n.d."},{"$f":"IF(+'[2]EXT(T)'!V55=\"\",\"\",+'[2]EXT(T)'!V55)","v":"n.d."},{"$f":"IF(+'[2]EXT(T)'!W55=\"\",\"\",+'[2]EXT(T)'!W55)","v":394.53129389832998},{"$f":"IF(+'[2]EXT(T)'!X55=\"\",\"\",+'[2]EXT(T)'!X55)","v":199.1},{"$f":"IF(+'[2]EXT(T)'!Y55=\"\",\"\",+'[2]EXT(T)'!Y55)","v":"n.d."},{"$f":"IF(+'[2]EXT(T)'!Z55=\"\",\"\",+'[2]EXT(T)'!Z55)","v":"n.d."},{"$f":"IF(+'[2]EXT(T)'!AA55=\"\",\"\",+'[2]EXT(T)'!AA55)","v":"n.d."},{"$f":"IF(+'[2]EXT(T)'!AB55=\"\",\"\",+'[2]EXT(T)'!AB55)","v":"n.d."},{"$f":"IF(+'[2]EXT(T)'!AC55=\"\",\"\",+'[2]EXT(T)'!AC55)","v":92.899999999999991},{"$f":"IF(+'[2]EXT(T)'!AE55=\"\",\"\",+'[2]EXT(T)'!AE55)","v":"n.d."},{"$f":"IF(+'[2]EXT(T)'!AF55=\"\",\"\",+'[2]EXT(T)'!AF55)","v":"n.d."},{"$f":"IF(+'[2]EXT(T)'!AY55=\"\",\"\",+'[2]EXT(T)'!AY55)","v":2539.8696765599998},{"$f":"IF(+'[2]EXT(T)'!AZ55=\"\",\"\",+'[2]EXT(T)'!AZ55)","v":"n.d."},{"$f":"IF(+'[2]EXT(T)'!AQ55=\"\",\"\",+'[2]EXT(T)'!AQ55-'[2]EXT(T)'!AQ54)","v":45.993488280000001},{"$f":"IF(+'[2]EXT(T)'!AR55=\"\",\"\",+'[2]EXT(T)'!AR55-'[2]EXT(T)'!AR54)","v":476.6},{"$f":"IF(+'[2]EXT(T)'!AS55=\"\",\"\",+'[2]EXT(T)'!AS55-'[2]EXT(T)'!AS54)","v":144.10489999999999},{"$f":"IF(+'[2]EXT(T)'!AT55=\"\",\"\",+'[2]EXT(T)'!AT55-'[2]EXT(T)'!AT54)","v":115.4496},{"$f":"IF(+'[2]EXT(T)'!AU55=\"\",\"\",+'[2]EXT(T)'!AU55-'[2]EXT(T)'!AU54)","v":79},{"$f":"IF(+'[2]EXT(T)'!AV55=\"\",\"\",+'[2]EXT(T)'!AV55-'[2]EXT(T)'!AV54)","v":391.56000000000006},"n.d.",1252.7079882800001,"n.d."]
[null,"III",{"$f":"IF(+'[2]EXT(T)'!M56=\"\",\"\",+'[2]EXT(T)'!M56)","v":89.344573370997381},{"$f":"IF(+'[2]EXT(T)'!N56=\"\",\"\",+'[2]EXT(T)'!N56)","v":33.4},{"$f":"IF(+'[2]EXT(T)'!O56=\"\",\"\",+'[2]EXT(T)'!O56)","v":"n.d."},{"$f":"IF(+'[2]EXT(T)'!P56=\"\",\"\",+'[2]EXT(T)'!P56)","v":"n.d."},{"$f":"IF(+'[2]EXT(T)'!Q56=\"\",\"\",+'[2]EXT(T)'!Q56)","v":"n.d."},{"$f":"IF(+'[2]EXT(T)'!R56=\"\",\"\",+'[2]EXT(T)'!R56)","v":"n.d."},{"$f":"IF(+'[2]EXT(T)'!S56=\"\",\"\",+'[2]EXT(T)'!S56)","v":85.3},{"$f":"IF(+'[2]EXT(T)'!U56=\"\",\"\",+'[2]EXT(T)'!U56)","v":"n.d."},{"$f":"IF(+'[2]EXT(T)'!V56=\"\",\"\",+'[2]EXT(T)'!V56)","v":"n.d."},{"$f":"IF(+'[2]EXT(T)'!W56=\"\",\"\",+'[2]EXT(T)'!W56)","v":483.87586726932739},{"$f":"IF(+'[2]EXT(T)'!X56=\"\",\"\",+'[2]EXT(T)'!X56)","v":232.5},{"$f":"IF(+'[2]EXT(T)'!Y56=\"\",\"\",+'[2]EXT(T)'!Y56)","v":"n.d."},{"$f":"IF(+'[2]EXT(T)'!Z56=\"\",\"\",+'[2]EXT(T)'!Z56)","v":"n.d."},{"$f":"IF(+'[2]EXT(T)'!AA56=\"\",\"\",+'[2]EXT(T)'!AA56)","v":"n.d."},{"$f":"IF(+'[2]EXT(T)'!AB56=\"\",\"\",+'[2]EXT(T)'!AB56)","v":"n.d."},{"$f":"IF(+'[2]EXT(T)'!AC56=\"\",\"\",+'[2]EXT(T)'!AC56)","v":178.2},{"$f":"IF(+'[2]EXT(T)'!AE56=\"\",\"\",+'[2]EXT(T)'!AE56)","v":"n.d."},{"$f":"IF(+'[2]EXT(T)'!AF56=\"\",\"\",+'[2]EXT(T)'!AF56)","v":"n.d."},{"$f":"IF(+'[2]EXT(T)'!AY56=\"\",\"\",+'[2]EXT(T)'!AY56)","v":3807.5348648400004},{"$f":"IF(+'[2]EXT(T)'!AZ56=\"\",\"\",+'[2]EXT(T)'!AZ56)","v":"n.d."},{"$f":"IF(+'[2]EXT(T)'!AQ56=\"\",\"\",+'[2]EXT(T)'!AQ56-'[2]EXT(T)'!AQ55)","v":45.993488279999994},{"$f":"IF(+'[2]EXT(T)'!AR56=\"\",\"\",+'[2]EXT(T)'!AR56-'[2]EXT(T)'!AR55)","v":476.40000000000009},{"$f":"IF(+'[2]EXT(T)'!AS56=\"\",\"\",+'[2]EXT(T)'!AS56-'[2]EXT(T)'!AS55)","v":131.49929999999995},{"$f":"IF(+'[2]EXT(T)'!AT56=\"\",\"\",+'[2]EXT(T)'!AT56-'[2]EXT(T)'!AT55)","v":124.72240000000002},{"$f":"IF(+'[2]EXT(T)'!AU56=\"\",\"\",+'[2]EXT(T)'!AU56-'[2]EXT(T)'!AU55)","v":87.300000000000011},{"$f":"IF(+'[2]EXT(T)'!AV56=\"\",\"\",+'[2]EXT(T)'!AV56-'[2]EXT(T)'!AV55)","v":401.75000000000023},"n.d.",1267.6651882800002,"n.d."]
[null,"IV",{"$f":"IF(+'[2]EXT(T)'!M57=\"\",\"\",+'[2]EXT(T)'!M57)","v":124.77261957733673},{"$f":"IF(+'[2]EXT(T)'!N57=\"\",\"\",+'[2]EXT(T)'!N57)","v":46.4},{"$f":"IF(+'[2]EXT(T)'!O57=\"\",\"\",+'[2]EXT(T)'!O57)","v":"n.d."},{"$f":"IF(+'[2]EXT(T)'!P57=\"\",\"\",+'[2]EXT(T)'!P57)","v":"n.d."},{"$f":"IF(+'[2]EXT(T)'!Q57=\"\",\"\",+'[2]EXT(T)'!Q57)","v":"n.d."},{"$f":"IF(+'[2]EXT(T)'!R57=\"\",\"\",+'[2]EXT(T)'!R57)","v":"n.d."},{"$f":"IF(+'[2]EXT(T)'!S57=\"\",\"\",+'[2]EXT(T)'!S57)","v":288.89999999999998},{"$f":"IF(+'[2]EXT(T)'!U57=\"\",\"\",+'[2]EXT(T)'!U57)","v":"n.d."},{"$f":"IF(+'[2]EXT(T)'!V57=\"\",\"\",+'[2]EXT(T)'!V57)","v":"n.d."},{"$f":"IF(+'[2]EXT(T)'!W57=\"\",\"\",+'[2]EXT(T)'!W57)","v":608.64848684666413},{"$f":"IF(+'[2]EXT(T)'!X57=\"\",\"\",+'[2]EXT(T)'!X57)","v":278.89999999999998},{"$f":"IF(+'[2]EXT(T)'!Y57=\"\",\"\",+'[2]EXT(T)'!Y57)","v":"n.d."},{"$f":"IF(+'[2]EXT(T)'!Z57=\"\",\"\",+'[2]EXT(T)'!Z57)","v":"n.d."},{"$f":"IF(+'[2]EXT(T)'!AA57=\"\",\"\",+'[2]EXT(T)'!AA57)","v":"n.d."},{"$f":"IF(+'[2]EXT(T)'!AB57=\"\",\"\",+'[2]EXT(T)'!AB57)","v":"n.d."},{"$f":"IF(+'[2]EXT(T)'!AC57=\"\",\"\",+'[2]EXT(T)'!AC57)","v":467.09999999999997},{"$f":"IF(+'[2]EXT(T)'!AE57=\"\",\"\",+'[2]EXT(T)'!AE57)","v":"n.d."},{"$f":"IF(+'[2]EXT(T)'!AF57=\"\",\"\",+'[2]EXT(T)'!AF57)","v":"n.d."},{"$f":"IF(+'[2]EXT(T)'!AY57=\"\",\"\",+'[2]EXT(T)'!AY57)","v":5312.6147531199995},{"$f":"IF(+'[2]EXT(T)'!AZ57=\"\",\"\",+'[2]EXT(T)'!AZ57)","v":"n.d."},{"$f":"IF(+'[2]EXT(T)'!AQ57=\"\",\"\",+'[2]EXT(T)'!AQ57-'[2]EXT(T)'!AQ56)","v":45.993488280000008},{"$f":"IF(+'[2]EXT(T)'!AR57=\"\",\"\",+'[2]EXT(T)'!AR57-'[2]EXT(T)'!AR56)","v":513.09999999999991},{"$f":"IF(+'[2]EXT(T)'!AS57=\"\",\"\",+'[2]EXT(T)'!AS57-'[2]EXT(T)'!AS56)","v":132.87849999999997},{"$f":"IF(+'[2]EXT(T)'!AT57=\"\",\"\",+'[2]EXT(T)'!AT57-'[2]EXT(T)'!AT56)","v":138.00790000000001},{"$f":"IF(+'[2]EXT(T)'!AU57=\"\",\"\",+'[2]EXT(T)'!AU57-'[2]EXT(T)'!AU56)","v":92.299999999999983},{"$f":"IF(+'[2]EXT(T)'!AV57=\"\",\"\",+'[2]EXT(T)'!AV57-'[2]EXT(T)'!AV56)","v":582.79999999999995},"n.d.",1505.07988828,"n.d."]
[2002,"I",{"$f":"IF(+'[2]EXT(T)'!M58=\"\",\"\",+'[2]EXT(T)'!M58)","v":219.84530603489802},{"$f":"IF(+'[2]EXT(T)'!N58=\"\",\"\",+'[2]EXT(T)'!N58)","v":343.8},{"$f":"IF(+'[2]EXT(T)'!O58=\"\",\"\",+'[2]EXT(T)'!O58)","v":"n.d."},{"$f":"IF(+'[2]EXT(T)'!P58=\"\",\"\",+'[2]EXT(T)'!P58)","v":"n.d."},{"$f":"IF(+'[2]EXT(T)'!Q58=\"\",\"\",+'[2]EXT(T)'!Q58)","v":"n.d."},{"$f":"IF(+'[2]EXT(T)'!R58=\"\",\"\",+'[2]EXT(T)'!R58)","v":"n.d."},{"$f":"IF(+'[2]EXT(T)'!S58=\"\",\"\",+'[2]EXT(T)'!S58)","v":97.1},{"$f":"IF(+'[2]EXT(T)'!U58=\"\",\"\",+'[2]EXT(T)'!U58)","v":"n.d."},{"$f":"IF(+'[2]EXT(T)'!V58=\"\",\"\",+'[2]EXT(T)'!V58)","v":"n.d."},{"$f":"IF(+'[2]EXT(T)'!W58=\"\",\"\",+'[2]EXT(T)'!W58)","v":219.84530603489802},{"$f":"IF(+'[2]EXT(T)'!X58=\"\",\"\",+'[2]EXT(T)'!X58)","v":343.8},{"$f":"IF(+'[2]EXT(T)'!Y58=\"\",\"\",+'[2]EXT(T)'!Y58)","v":"n.d."},{"$f":"IF(+'[2]EXT(T)'!Z58=\"\",\"\",+'[2]EXT(T)'!Z58)","v":"n.d."},{"$f":"IF(+'[2]EXT(T)'!AA58=\"\",\"\",+'[2]EXT(T)'!AA58)","v":"n.d."},{"$f":"IF(+'[2]EXT(T)'!AB58=\"\",\"\",+'[2]EXT(T)'!AB58)","v":"n.d."},{"$f":"IF(+'[2]EXT(T)'!AC58=\"\",\"\",+'[2]EXT(T)'!AC58)","v":97.1},{"$f":"IF(+'[2]EXT(T)'!AE58=\"\",\"\",+'[2]EXT(T)'!AE58)","v":"n.d."},{"$f":"IF(+'[2]EXT(T)'!AF58=\"\",\"\",+'[2]EXT(T)'!AF58)","v":"n.d."},{"$f":"IF(+'[2]EXT(T)'!AY58=\"\",\"\",+'[2]EXT(T)'!AY58)","v":1492.8324069600001},{"$f":"IF(+'[2]EXT(T)'!AZ58=\"\",\"\",+'[2]EXT(T)'!AZ58)","v":"n.d."},{"$f":"IF(+'[2]EXT(T)'!AQ58=\"\",\"\",+'[2]EXT(T)'!AQ58)","v":50.298906959999997},{"$f":"IF(+'[2]EXT(T)'!AR58=\"\",\"\",+'[2]EXT(T)'!AR58)","v":447.40000000000003},{"$f":"IF(+'[2]EXT(T)'!AS58=\"\",\"\",+'[2]EXT(T)'!AS58)","v":288.84879999999998},{"$f":"IF(+'[2]EXT(T)'!AT58=\"\",\"\",+'[2]EXT(T)'!AT58)","v":138.78469999999999},{"$f":"IF(+'[2]EXT(T)'!AU58=\"\",\"\",+'[2]EXT(T)'!AU58)","v":91.4},{"$f":"IF(+'[2]EXT(T)'!AV58=\"\",\"\",+'[2]EXT(T)'!AV58)","v":476.09999999999997},"n.d.",1492.8324069600001,"n.d."]
[null,"II",{"$f":"IF(+'[2]EXT(T)'!M59=\"\",\"\",+'[2]EXT(T)'!M59)","v":120.98063654560428},{"$f":"IF(+'[2]EXT(T)'!N59=\"\",\"\",+'[2]EXT(T)'!N59)","v":54.099999999999994},{"$f":"IF(+'[2]EXT(T)'!O59=\"\",\"\",+'[2]EXT(T)'!O59)","v":"n.d."},{"$f":"IF(+'[2]EXT(T)'!P59=\"\",\"\",+'[2]EXT(T)'!P59)","v":"n.d."},{"$f":"IF(+'[2]EXT(T)'!Q59=\"\",\"\",+'[2]EXT(T)'!Q59)","v":"n.d."},{"$f":"IF(+'[2]EXT(T)'!R59=\"\",\"\",+'[2]EXT(T)'!R59)","v":"n.d."},{"$f":"IF(+'[2]EXT(T)'!S59=\"\",\"\",+'[2]EXT(T)'!S59)","v":-306.7},{"$f":"IF(+'[2]EXT(T)'!U59=\"\",\"\",+'[2]EXT(T)'!U59)","v":"n.d."},{"$f":"IF(+'[2]EXT(T)'!V59=\"\",\"\",+'[2]EXT(T)'!V59)","v":"n.d."},{"$f":"IF(+'[2]EXT(T)'!W59=\"\",\"\",+'[2]EXT(T)'!W59)","v":340.82594258050233},{"$f":"IF(+'[2]EXT(T)'!X59=\"\",\"\",+'[2]EXT(T)'!X59)","v":397.9},{"$f":"IF(+'[2]EXT(T)'!Y59=\"\",\"\",+'[2]EXT(T)'!Y59)","v":"n.d."},{"$f":"IF(+'[2]EXT(T)'!Z59=\"\",\"\",+'[2]EXT(T)'!Z59)","v":"n.d."},{"$f":"IF(+'[2]EXT(T)'!AA59=\"\",\"\",+'[2]EXT(T)'!AA59)","v":"n.d."},{"$f":"IF(+'[2]EXT(T)'!AB59=\"\",\"\",+'[2]EXT(T)'!AB59)","v":"n.d."},{"$f":"IF(+'[2]EXT(T)'!AC59=\"\",\"\",+'[2]EXT(T)'!AC59)","v":-209.6},{"$f":"IF(+'[2]EXT(T)'!AE59=\"\",\"\",+'[2]EXT(T)'!AE59)","v":"n.d."},{"$f":"IF(+'[2]EXT(T)'!AF59=\"\",\"\",+'[2]EXT(T)'!AF59)","v":"n.d."},{"$f":"IF(+'[2]EXT(T)'!AY59=\"\",\"\",+'[2]EXT(T)'!AY59)","v":3110.6247054199998},{"$f":"IF(+'[2]EXT(T)'!AZ59=\"\",\"\",+'[2]EXT(T)'!AZ59)","v":"n.d."},{"$f":"IF(+'[2]EXT(T)'!AQ59=\"\",\"\",+'[2]EXT(T)'!AQ59-'[2]EXT(T)'!AQ58)","v":50.77779846},{"$f":"IF(+'[2]EXT(T)'!AR59=\"\",\"\",+'[2]EXT(T)'!AR59-'[2]EXT(T)'!AR58)","v":522.40000000000009},{"$f":"IF(+'[2]EXT(T)'!AS59=\"\",\"\",+'[2]EXT(T)'!AS59-'[2]EXT(T)'!AS58)","v":356.94010000000003},{"$f":"IF(+'[2]EXT(T)'!AT59=\"\",\"\",+'[2]EXT(T)'!AT59-'[2]EXT(T)'!AT58)","v":169.77440000000001},{"$f":"IF(+'[2]EXT(T)'!AU59=\"\",\"\",+'[2]EXT(T)'!AU59-'[2]EXT(T)'!AU58)","v":94.799999999999983},{"$f":"IF(+'[2]EXT(T)'!AV59=\"\",\"\",+'[2]EXT(T)'!AV59-'[2]EXT(T)'!AV58)","v":423.09999999999997},"n.d.",1617.79229846,"n.d."]
[null,"III",{"$f":"IF(+'[2]EXT(T)'!M60=\"\",\"\",+'[2]EXT(T)'!M60)","v":120.48359873325528},{"$f":"IF(+'[2]EXT(T)'!N60=\"\",\"\",+'[2]EXT(T)'!N60)","v":-51.099999999999994},{"$f":"IF(+'[2]EXT(T)'!O60=\"\",\"\",+'[2]EXT(T)'!O60)","v":"n.d."},{"$f":"IF(+'[2]EXT(T)'!P60=\"\",\"\",+'[2]EXT(T)'!P60)","v":"n.d."},{"$f":"IF(+'[2]EXT(T)'!Q60=\"\",\"\",+'[2]EXT(T)'!Q60)","v":"n.d."},{"$f":"IF(+'[2]EXT(T)'!R60=\"\",\"\",+'[2]EXT(T)'!R60)","v":"n.d."},{"$f":"IF(+'[2]EXT(T)'!S60=\"\",\"\",+'[2]EXT(T)'!S60)","v":141.6},{"$f":"IF(+'[2]EXT(T)'!U60=\"\",\"\",+'[2]EXT(T)'!U60)","v":"n.d."},{"$f":"IF(+'[2]EXT(T)'!V60=\"\",\"\",+'[2]EXT(T)'!V60)","v":"n.d."},{"$f":"IF(+'[2]EXT(T)'!W60=\"\",\"\",+'[2]EXT(T)'!W60)","v":461.30954131375762},{"$f":"IF(+'[2]EXT(T)'!X60=\"\",\"\",+'[2]EXT(T)'!X60)","v":346.79999999999995},{"$f":"IF(+'[2]EXT(T)'!Y60=\"\",\"\",+'[2]EXT(T)'!Y60)","v":"n.d."},{"$f":"IF(+'[2]EXT(T)'!Z60=\"\",\"\",+'[2]EXT(T)'!Z60)","v":"n.d."},{"$f":"IF(+'[2]EXT(T)'!AA60=\"\",\"\",+'[2]EXT(T)'!AA60)","v":"n.d."},{"$f":"IF(+'[2]EXT(T)'!AB60=\"\",\"\",+'[2]EXT(T)'!AB60)","v":"n.d."},{"$f":"IF(+'[2]EXT(T)'!AC60=\"\",\"\",+'[2]EXT(T)'!AC60)","v":-68},{"$f":"IF(+'[2]EXT(T)'!AE60=\"\",\"\",+'[2]EXT(T)'!AE60)","v":"n.d."},{"$f":"IF(+'[2]EXT(T)'!AF60=\"\",\"\",+'[2]EXT(T)'!AF60)","v":"n.d."},{"$f":"IF(+'[2]EXT(T)'!AY60=\"\",\"\",+'[2]EXT(T)'!AY60)","v":4787.5819602499996},{"$f":"IF(+'[2]EXT(T)'!AZ60=\"\",\"\",+'[2]EXT(T)'!AZ60)","v":"n.d."},{"$f":"IF(+'[2]EXT(T)'!AQ60=\"\",\"\",+'[2]EXT(T)'!AQ60-'[2]EXT(T)'!AQ59)","v":59.126854830000013},{"$f":"IF(+'[2]EXT(T)'!AR60=\"\",\"\",+'[2]EXT(T)'!AR60-'[2]EXT(T)'!AR59)","v":472.79999999999984},{"$f":"IF(+'[2]EXT(T)'!AS60=\"\",\"\",+'[2]EXT(T)'!AS60-'[2]EXT(T)'!AS59)","v":456.1721},{"$f":"IF(+'[2]EXT(T)'!AT60=\"\",\"\",+'[2]EXT(T)'!AT60-'[2]EXT(T)'!AT59)","v":167.6583},{"$f":"IF(+'[2]EXT(T)'!AU60=\"\",\"\",+'[2]EXT(T)'!AU60-'[2]EXT(T)'!AU59)","v":91.900000000000034},{"$f":"IF(+'[2]EXT(T)'!AV60=\"\",\"\",+'[2]EXT(T)'!AV60-'[2]EXT(T)'!AV59)","v":429.29999999999984},"n.d.",1676.9572548299998,"n.d."]
[null,"IV",{"$f":"IF(+'[2]EXT(T)'!M61=\"\",\"\",+'[2]EXT(T)'!M61)","v":363.3166271812097},{"$f":"IF(+'[2]EXT(T)'!N61=\"\",\"\",+'[2]EXT(T)'!N61)","v":123.19999999999999},{"$f":"IF(+'[2]EXT(T)'!O61=\"\",\"\",+'[2]EXT(T)'!O61)","v":"n.d."},{"$f":"IF(+'[2]EXT(T)'!P61=\"\",\"\",+'[2]EXT(T)'!P61)","v":"n.d."},{"$f":"IF(+'[2]EXT(T)'!Q61=\"\",\"\",+'[2]EXT(T)'!Q61)","v":"n.d."},{"$f":"IF(+'[2]EXT(T)'!R61=\"\",\"\",+'[2]EXT(T)'!R61)","v":"n.d."},{"$f":"IF(+'[2]EXT(T)'!S61=\"\",\"\",+'[2]EXT(T)'!S61)","v":166.6},{"$f":"IF(+'[2]EXT(T)'!U61=\"\",\"\",+'[2]EXT(T)'!U61)","v":"n.d."},{"$f":"IF(+'[2]EXT(T)'!V61=\"\",\"\",+'[2]EXT(T)'!V61)","v":"n.d."},{"$f":"IF(+'[2]EXT(T)'!W61=\"\",\"\",+'[2]EXT(T)'!W61)","v":824.62616849496726},{"$f":"IF(+'[2]EXT(T)'!X61=\"\",\"\",+'[2]EXT(T)'!X61)","v":469.99999999999994},{"$f":"IF(+'[2]EXT(T)'!Y61=\"\",\"\",+'[2]EXT(T)'!Y61)","v":"n.d."},{"$f":"IF(+'[2]EXT(T)'!Z61=\"\",\"\",+'[2]EXT(T)'!Z61)","v":"n.d."},{"$f":"IF(+'[2]EXT(T)'!AA61=\"\",\"\",+'[2]EXT(T)'!AA61)","v":"n.d."},{"$f":"IF(+'[2]EXT(T)'!AB61=\"\",\"\",+'[2]EXT(T)'!AB61)","v":"n.d."},{"$f":"IF(+'[2]EXT(T)'!AC61=\"\",\"\",+'[2]EXT(T)'!AC61)","v":98.6},{"$f":"IF(+'[2]EXT(T)'!AE61=\"\",\"\",+'[2]EXT(T)'!AE61)","v":"n.d."},{"$f":"IF(+'[2]EXT(T)'!AF61=\"\",\"\",+'[2]EXT(T)'!AF61)","v":"n.d."},{"$f":"IF(+'[2]EXT(T)'!AY61=\"\",\"\",+'[2]EXT(T)'!AY61)","v":6731.8335683799996},{"$f":"IF(+'[2]EXT(T)'!AZ61=\"\",\"\",+'[2]EXT(T)'!AZ61)","v":"n.d."},{"$f":"IF(+'[2]EXT(T)'!AQ61=\"\",\"\",+'[2]EXT(T)'!AQ61-'[2]EXT(T)'!AQ60)","v":74.051708130000009},{"$f":"IF(+'[2]EXT(T)'!AR61=\"\",\"\",+'[2]EXT(T)'!AR61-'[2]EXT(T)'!AR60)","v":492.60000000000014},{"$f":"IF(+'[2]EXT(T)'!AS61=\"\",\"\",+'[2]EXT(T)'!AS61-'[2]EXT(T)'!AS60)","v":477.43090000000007},{"$f":"IF(+'[2]EXT(T)'!AT61=\"\",\"\",+'[2]EXT(T)'!AT61-'[2]EXT(T)'!AT60)","v":170.66899999999998},{"$f":"IF(+'[2]EXT(T)'!AU61=\"\",\"\",+'[2]EXT(T)'!AU61-'[2]EXT(T)'!AU60)","v":98.399999999999977},{"$f":"IF(+'[2]EXT(T)'!AV61=\"\",\"\",+'[2]EXT(T)'!AV61-'[2]EXT(T)'!AV60)","v":631.09999999999991},"n.d.",1944.25160813,"n.d."]
[2003,"I",{"$f":"IF(+'[2]EXT(T)'!M62=\"\",\"\",+'[2]EXT(T)'!M62)","v":187.5502592122144},{"$f":"IF(+'[2]EXT(T)'!N62=\"\",\"\",+'[2]EXT(T)'!N62)","v":4.2000000000000028},{"$f":"IF(+'[2]EXT(T)'!O62=\"\",\"\",+'[2]EXT(T)'!O62)","v":"n.d."},{"$f":"IF(+'[2]EXT(T)'!P62=\"\",\"\",+'[2]EXT(T)'!P62)","v":"n.d."},{"$f":"IF(+'[2]EXT(T)'!Q62=\"\",\"\",+'[2]EXT(T)'!Q62)","v":"n.d."},{"$f":"IF(+'[2]EXT(T)'!R62=\"\",\"\",+'[2]EXT(T)'!R62)","v":"n.d."},{"$f":"IF(+'[2]EXT(T)'!S62=\"\",\"\",+'[2]EXT(T)'!S62)","v":222.8},{"$f":"IF(+'[2]EXT(T)'!U62=\"\",\"\",+'[2]EXT(T)'!U62)","v":"n.d."},{"$f":"IF(+'[2]EXT(T)'!V62=\"\",\"\",+'[2]EXT(T)'!V62)","v":"n.d."},{"$f":"IF(+'[2]EXT(T)'!W62=\"\",\"\",+'[2]EXT(T)'!W62)","v":187.5502592122144},{"$f":"IF(+'[2]EXT(T)'!X62=\"\",\"\",+'[2]EXT(T)'!X62)","v":4.2000000000000028},{"$f":"IF(+'[2]EXT(T)'!Y62=\"\",\"\",+'[2]EXT(T)'!Y62)","v":"n.d."},{"$f":"IF(+'[2]EXT(T)'!Z62=\"\",\"\",+'[2]EXT(T)'!Z62)","v":"n.d."},{"$f":"IF(+'[2]EXT(T)'!AA62=\"\",\"\",+'[2]EXT(T)'!AA62)","v":"n.d."},{"$f":"IF(+'[2]EXT(T)'!AB62=\"\",\"\",+'[2]EXT(T)'!AB62)","v":"n.d."},{"$f":"IF(+'[2]EXT(T)'!AC62=\"\",\"\",+'[2]EXT(T)'!AC62)","v":222.8},{"$f":"IF(+'[2]EXT(T)'!AE62=\"\",\"\",+'[2]EXT(T)'!AE62)","v":"n.d."},{"$f":"IF(+'[2]EXT(T)'!AF62=\"\",\"\",+'[2]EXT(T)'!AF62)","v":"n.d."},{"$f":"IF(+'[2]EXT(T)'!AY62=\"\",\"\",+'[2]EXT(T)'!AY62)","v":1757.6644434},{"$f":"IF(+'[2]EXT(T)'!AZ62=\"\",\"\",+'[2]EXT(T)'!AZ62)","v":"n.d."},{"$f":"IF(+'[2]EXT(T)'!AQ62=\"\",\"\",+'[2]EXT(T)'!AQ62)","v":64.134743400000005},{"$f":"IF(+'[2]EXT(T)'!AR62=\"\",\"\",+'[2]EXT(T)'!AR62)","v":465.20000000000005},{"$f":"IF(+'[2]EXT(T)'!AS62=\"\",\"\",+'[2]EXT(T)'!AS62)","v":470.27819999999997},{"$f":"IF(+'[2]EXT(T)'!AT62=\"\",\"\",+'[2]EXT(T)'!AT62)","v":165.95150000000001},{"$f":"IF(+'[2]EXT(T)'!AU62=\"\",\"\",+'[2]EXT(T)'!AU62)","v":100.9},{"$f":"IF(+'[2]EXT(T)'!AV62=\"\",\"\",+'[2]EXT(T)'!AV62)","v":491.19999999999993},"n.d.",1757.6644434,"n.d."]
[null,"II",{"$f":"IF(+'[2]EXT(T)'!M63=\"\",\"\",+'[2]EXT(T)'!M63)","v":238.24094368146069},{"$f":"IF(+'[2]EXT(T)'!N63=\"\",\"\",+'[2]EXT(T)'!N63)","v":69.399999999999991},{"$f":"IF(+'[2]EXT(T)'!O63=\"\",\"\",+'[2]EXT(T)'!O63)","v":"n.d."},{"$f":"IF(+'[2]EXT(T)'!P63=\"\",\"\",+'[2]EXT(T)'!P63)","v":"n.d."},{"$f":"IF(+'[2]EXT(T)'!Q63=\"\",\"\",+'[2]EXT(T)'!Q63)","v":"n.d."},{"$f":"IF(+'[2]EXT(T)'!R63=\"\",\"\",+'[2]EXT(T)'!R63)","v":"n.d."},{"$f":"IF(+'[2]EXT(T)'!S63=\"\",\"\",+'[2]EXT(T)'!S63)","v":287},{"$f":"IF(+'[2]EXT(T)'!U63=\"\",\"\",+'[2]EXT(T)'!U63)","v":"n.d."},{"$f":"IF(+'[2]EXT(T)'!V63=\"\",\"\",+'[2]EXT(T)'!V63)","v":"n.d."},{"$f":"IF(+'[2]EXT(T)'!W63=\"\",\"\",+'[2]EXT(T)'!W63)","v":425.79120289367506},{"$f":"IF(+'[2]EXT(T)'!X63=\"\",\"\",+'[2]EXT(T)'!X63)","v":73.599999999999994},{"$f":"IF(+'[2]EXT(T)'!Y63=\"\",\"\",+'[2]EXT(T)'!Y63)","v":"n.d."},{"$f":"IF(+'[2]EXT(T)'!Z63=\"\",\"\",+'[2]EXT(T)'!Z63)","v":"n.d."},{"$f":"IF(+'[2]EXT(T)'!AA63=\"\",\"\",+'[2]EXT(T)'!AA63)","v":"n.d."},{"$f":"IF(+'[2]EXT(T)'!AB63=\"\",\"\",+'[2]EXT(T)'!AB63)","v":"n.d."},{"$f":"IF(+'[2]EXT(T)'!AC63=\"\",\"\",+'[2]EXT(T)'!AC63)","v":509.8},{"$f":"IF(+'[2]EXT(T)'!AE63=\"\",\"\",+'[2]EXT(T)'!AE63)","v":"n.d."},{"$f":"IF(+'[2]EXT(T)'!AF63=\"\",\"\",+'[2]EXT(T)'!AF63)","v":"n.d."},{"$f":"IF(+'[2]EXT(T)'!AY63=\"\",\"\",+'[2]EXT(T)'!AY63)","v":3663.2375101999996},{"$f":"IF(+'[2]EXT(T)'!AZ63=\"\",\"\",+'[2]EXT(T)'!AZ63)","v":"n.d."},{"$f":"IF(+'[2]EXT(T)'!AQ63=\"\",\"\",+'[2]EXT(T)'!AQ63-'[2]EXT(T)'!AQ62)","v":73.303966799999998},{"$f":"IF(+'[2]EXT(T)'!AR63=\"\",\"\",+'[2]EXT(T)'!AR63-'[2]EXT(T)'!AR62)","v":541.6},{"$f":"IF(+'[2]EXT(T)'!AS63=\"\",\"\",+'[2]EXT(T)'!AS63-'[2]EXT(T)'!AS62)","v":529.95820000000003},{"$f":"IF(+'[2]EXT(T)'!AT63=\"\",\"\",+'[2]EXT(T)'!AT63-'[2]EXT(T)'!AT62)","v":191.61090000000002},{"$f":"IF(+'[2]EXT(T)'!AU63=\"\",\"\",+'[2]EXT(T)'!AU63-'[2]EXT(T)'!AU62)","v":102.4},{"$f":"IF(+'[2]EXT(T)'!AV63=\"\",\"\",+'[2]EXT(T)'!AV63-'[2]EXT(T)'!AV62)","v":466.69999999999993},"n.d.",1905.5730668000001,"n.d."]
[null,"III",{"$f":"IF(+'[2]EXT(T)'!M64=\"\",\"\",+'[2]EXT(T)'!M64)","v":82.59396719905935},{"$f":"IF(+'[2]EXT(T)'!N64=\"\",\"\",+'[2]EXT(T)'!N64)","v":27.2},{"$f":"IF(+'[2]EXT(T)'!O64=\"\",\"\",+'[2]EXT(T)'!O64)","v":"n.d."},{"$f":"IF(+'[2]EXT(T)'!P64=\"\",\"\",+'[2]EXT(T)'!P64)","v":"n.d."},{"$f":"IF(+'[2]EXT(T)'!Q64=\"\",\"\",+'[2]EXT(T)'!Q64)","v":"n.d."},{"$f":"IF(+'[2]EXT(T)'!R64=\"\",\"\",+'[2]EXT(T)'!R64)","v":"n.d."},{"$f":"IF(+'[2]EXT(T)'!S64=\"\",\"\",+'[2]EXT(T)'!S64)","v":1.5999999999999801},{"$f":"IF(+'[2]EXT(T)'!U64=\"\",\"\",+'[2]EXT(T)'!U64)","v":"n.d."},{"$f":"IF(+'[2]EXT(T)'!V64=\"\",\"\",+'[2]EXT(T)'!V64)","v":"n.d."},{"$f":"IF(+'[2]EXT(T)'!W64=\"\",\"\",+'[2]EXT(T)'!W64)","v":508.38517009273443},{"$f":"IF(+'[2]EXT(T)'!X64=\"\",\"\",+'[2]EXT(T)'!X64)","v":100.8},{"$f":"IF(+'[2]EXT(T)'!Y64=\"\",\"\",+'[2]EXT(T)'!Y64)","v":"n.d."},{"$f":"IF(+'[2]EXT(T)'!Z64=\"\",\"\",+'[2]EXT(T)'!Z64)","v":"n.d."},{"$f":"IF(+'[2]EXT(T)'!AA64=\"\",\"\",+'[2]EXT(T)'!AA64)","v":"n.d."},{"$f":"IF(+'[2]EXT(T)'!AB64=\"\",\"\",+'[2]EXT(T)'!AB64)","v":"n.d."},{"$f":"IF(+'[2]EXT(T)'!AC64=\"\",\"\",+'[2]EXT(T)'!AC64)","v":511.4},{"$f":"IF(+'[2]EXT(T)'!AE64=\"\",\"\",+'[2]EXT(T)'!AE64)","v":"n.d."},{"$f":"IF(+'[2]EXT(T)'!AF64=\"\",\"\",+'[2]EXT(T)'!AF64)","v":"n.d."},{"$f":"IF(+'[2]EXT(T)'!AY64=\"\",\"\",+'[2]EXT(T)'!AY64)","v":5682.9231279400001},{"$f":"IF(+'[2]EXT(T)'!AZ64=\"\",\"\",+'[2]EXT(T)'!AZ64)","v":"n.d."},{"$f":"IF(+'[2]EXT(T)'!AQ64=\"\",\"\",+'[2]EXT(T)'!AQ64-'[2]EXT(T)'!AQ63)","v":77.792117739999981},{"$f":"IF(+'[2]EXT(T)'!AR64=\"\",\"\",+'[2]EXT(T)'!AR64-'[2]EXT(T)'!AR63)","v":529.00000000000011},{"$f":"IF(+'[2]EXT(T)'!AS64=\"\",\"\",+'[2]EXT(T)'!AS64-'[2]EXT(T)'!AS63)","v":547.41849999999999},{"$f":"IF(+'[2]EXT(T)'!AT64=\"\",\"\",+'[2]EXT(T)'!AT64-'[2]EXT(T)'!AT63)","v":217.27499999999998},{"$f":"IF(+'[2]EXT(T)'!AU64=\"\",\"\",+'[2]EXT(T)'!AU64-'[2]EXT(T)'!AU63)","v":114.09999999999997},{"$f":"IF(+'[2]EXT(T)'!AV64=\"\",\"\",+'[2]EXT(T)'!AV64-'[2]EXT(T)'!AV63)","v":534.09999999999991},"n.d.",2019.68561774,"n.d."]
[null,"IV",{"$f":"IF(+'[2]EXT(T)'!M65=\"\",\"\",+'[2]EXT(T)'!M65)","v":183.72583801659462},{"$f":"IF(+'[2]EXT(T)'!N65=\"\",\"\",+'[2]EXT(T)'!N65)","v":40.4},{"$f":"IF(+'[2]EXT(T)'!O65=\"\",\"\",+'[2]EXT(T)'!O65)","v":"n.d."},{"$f":"IF(+'[2]EXT(T)'!P65=\"\",\"\",+'[2]EXT(T)'!P65)","v":"n.d."},{"$f":"IF(+'[2]EXT(T)'!Q65=\"\",\"\",+'[2]EXT(T)'!Q65)","v":"n.d."},{"$f":"IF(+'[2]EXT(T)'!R65=\"\",\"\",+'[2]EXT(T)'!R65)","v":"n.d."},{"$f":"IF(+'[2]EXT(T)'!S65=\"\",\"\",+'[2]EXT(T)'!S65)","v":306.09999999999997},{"$f":"IF(+'[2]EXT(T)'!U65=\"\",\"\",+'[2]EXT(T)'!U65)","v":"n.d."},{"$f":"IF(+'[2]EXT(T)'!V65=\"\",\"\",+'[2]EXT(T)'!V65)","v":"n.d."},{"$f":"IF(+'[2]EXT(T)'!W65=\"\",\"\",+'[2]EXT(T)'!W65)","v":692.11100810932908},{"$f":"IF(+'[2]EXT(T)'!X65=\"\",\"\",+'[2]EXT(T)'!X65)","v":141.19999999999999},{"$f":"IF(+'[2]EXT(T)'!Y65=\"\",\"\",+'[2]EXT(T)'!Y65)","v":"n.d."},{"$f":"IF(+'[2]EXT(T)'!Z65=\"\",\"\",+'[2]EXT(T)'!Z65)","v":"n.d."},{"$f":"IF(+'[2]EXT(T)'!AA65=\"\",\"\",+'[2]EXT(T)'!AA65)","v":"n.d."},{"$f":"IF(+'[2]EXT(T)'!AB65=\"\",\"\",+'[2]EXT(T)'!AB65)","v":"n.d."},{"$f":"IF(+'[2]EXT(T)'!AC65=\"\",\"\",+'[2]EXT(T)'!AC65)","v":817.5},{"$f":"IF(+'[2]EXT(T)'!AE65=\"\",\"\",+'[2]EXT(T)'!AE65)","v":"n.d."},{"$f":"IF(+'[2]EXT(T)'!AF65=\"\",\"\",+'[2]EXT(T)'!AF65)","v":"n.d."},{"$f":"IF(+'[2]EXT(T)'!AY65=\"\",\"\",+'[2]EXT(T)'!AY65)","v":7819.4178320100009},{"$f":"IF(+'[2]EXT(T)'!AZ65=\"\",\"\",+'[2]EXT(T)'!AZ65)","v":"n.d."},{"$f":"IF(+'[2]EXT(T)'!AQ65=\"\",\"\",+'[2]EXT(T)'!AQ65-'[2]EXT(T)'!AQ64)","v":90.740204070000004},{"$f":"IF(+'[2]EXT(T)'!AR65=\"\",\"\",+'[2]EXT(T)'!AR65-'[2]EXT(T)'!AR64)","v":569.5},{"$f":"IF(+'[2]EXT(T)'!AS65=\"\",\"\",+'[2]EXT(T)'!AS65-'[2]EXT(T)'!AS64)","v":558.84990000000016},{"$f":"IF(+'[2]EXT(T)'!AT65=\"\",\"\",+'[2]EXT(T)'!AT65-'[2]EXT(T)'!AT64)","v":227.5046000000001},{"$f":"IF(+'[2]EXT(T)'!AU65=\"\",\"\",+'[2]EXT(T)'!AU65-'[2]EXT(T)'!AU64)","v":121.40000000000003},{"$f":"IF(+'[2]EXT(T)'!AV65=\"\",\"\",+'[2]EXT(T)'!AV65-'[2]EXT(T)'!AV64)","v":568.50000000000023},"n.d.",2136.4947040700008,"n.d."]
[2004,"I",{"$f":"IF(+'[2]EXT(T)'!M66=\"\",\"\",+'[2]EXT(T)'!M66)","v":266.33139931866253},{"$f":"IF(+'[2]EXT(T)'!N66=\"\",\"\",+'[2]EXT(T)'!N66)","v":-69.900000000000006},{"$f":"IF(+'[2]EXT(T)'!O66=\"\",\"\",+'[2]EXT(T)'!O66)","v":"n.d."},{"$f":"IF(+'[2]EXT(T)'!P66=\"\",\"\",+'[2]EXT(T)'!P66)","v":"n.d."},{"$f":"IF(+'[2]EXT(T)'!Q66=\"\",\"\",+'[2]EXT(T)'!Q66)","v":"n.d."},{"$f":"IF(+'[2]EXT(T)'!R66=\"\",\"\",+'[2]EXT(T)'!R66)","v":"n.d."},{"$f":"IF(+'[2]EXT(T)'!S66=\"\",\"\",+'[2]EXT(T)'!S66)","v":186.4},{"$f":"IF(+'[2]EXT(T)'!U66=\"\",\"\",+'[2]EXT(T)'!U66)","v":"n.d."},{"$f":"IF(+'[2]EXT(T)'!V66=\"\",\"\",+'[2]EXT(T)'!V66)","v":"n.d."},{"$f":"IF(+'[2]EXT(T)'!W66=\"\",\"\",+'[2]EXT(T)'!W66)","v":266.33139931866253},{"$f":"IF(+'[2]EXT(T)'!X66=\"\",\"\",+'[2]EXT(T)'!X66)","v":-69.900000000000006},{"$f":"IF(+'[2]EXT(T)'!Y66=\"\",\"\",+'[2]EXT(T)'!Y66)","v":"n.d."},{"$f":"IF(+'[2]EXT(T)'!Z66=\"\",\"\",+'[2]EXT(T)'!Z66)","v":"n.d."},{"$f":"IF(+'[2]EXT(T)'!AA66=\"\",\"\",+'[2]EXT(T)'!AA66)","v":"n.d."},{"$f":"IF(+'[2]EXT(T)'!AB66=\"\",\"\",+'[2]EXT(T)'!AB66)","v":"n.d."},{"$f":"IF(+'[2]EXT(T)'!AC66=\"\",\"\",+'[2]EXT(T)'!AC66)","v":186.4},{"$f":"IF(+'[2]EXT(T)'!AE66=\"\",\"\",+'[2]EXT(T)'!AE66)","v":"n.d."},{"$f":"IF(+'[2]EXT(T)'!AF66=\"\",\"\",+'[2]EXT(T)'!AF66)","v":"n.d."},{"$f":"IF(+'[2]EXT(T)'!AY66=\"\",\"\",+'[2]EXT(T)'!AY66)","v":2116.1441984900002},{"$f":"IF(+'[2]EXT(T)'!AZ66=\"\",\"\",+'[2]EXT(T)'!AZ66)","v":"n.d."},{"$f":"IF(+'[2]EXT(T)'!AQ66=\"\",\"\",+'[2]EXT(T)'!AQ66)","v":68.557598490000004},{"$f":"IF(+'[2]EXT(T)'!AR66=\"\",\"\",+'[2]EXT(T)'!AR66)","v":560},{"$f":"IF(+'[2]EXT(T)'!AS66=\"\",\"\",+'[2]EXT(T)'!AS66)","v":606.37839999999994},{"$f":"IF(+'[2]EXT(T)'!AT66=\"\",\"\",+'[2]EXT(T)'!AT66)","v":215.90819999999999},{"$f":"IF(+'[2]EXT(T)'!AU66=\"\",\"\",+'[2]EXT(T)'!AU66)","v":117.5},{"$f":"IF(+'[2]EXT(T)'!AV66=\"\",\"\",+'[2]EXT(T)'!AV66)","v":547.79999999999995},"n.d.",2116.1441984900002,"n.d."]
[null,"II",{"$f":"IF(+'[2]EXT(T)'!M67=\"\",\"\",+'[2]EXT(T)'!M67)","v":277.00493115008675},{"$f":"IF(+'[2]EXT(T)'!N67=\"\",\"\",+'[2]EXT(T)'!N67)","v":104.8},{"$f":"IF(+'[2]EXT(T)'!O67=\"\",\"\",+'[2]EXT(T)'!O67)","v":"n.d."},{"$f":"IF(+'[2]EXT(T)'!P67=\"\",\"\",+'[2]EXT(T)'!P67)","v":"n.d."},{"$f":"IF(+'[2]EXT(T)'!Q67=\"\",\"\",+'[2]EXT(T)'!Q67)","v":"n.d."},{"$f":"IF(+'[2]EXT(T)'!R67=\"\",\"\",+'[2]EXT(T)'!R67)","v":"n.d."},{"$f":"IF(+'[2]EXT(T)'!S67=\"\",\"\",+'[2]EXT(T)'!S67)","v":139.19999999999999},{"$f":"IF(+'[2]EXT(T)'!U67=\"\",\"\",+'[2]EXT(T)'!U67)","v":"n.d."},{"$f":"IF(+'[2]EXT(T)'!V67=\"\",\"\",+'[2]EXT(T)'!V67)","v":"n.d."},{"$f":"IF(+'[2]EXT(T)'!W67=\"\",\"\",+'[2]EXT(T)'!W67)","v":543.33633046874934},{"$f":"IF(+'[2]EXT(T)'!X67=\"\",\"\",+'[2]EXT(T)'!X67)","v":34.899999999999991},{"$f":"IF(+'[2]EXT(T)'!Y67=\"\",\"\",+'[2]EXT(T)'!Y67)","v":"n.d."},{"$f":"IF(+'[2]EXT(T)'!Z67=\"\",\"\",+'[2]EXT(T)'!Z67)","v":"n.d."},{"$f":"IF(+'[2]EXT(T)'!AA67=\"\",\"\",+'[2]EXT(T)'!AA67)","v":"n.d."},{"$f":"IF(+'[2]EXT(T)'!AB67=\"\",\"\",+'[2]EXT(T)'!AB67)","v":"n.d."},{"$f":"IF(+'[2]EXT(T)'!AC67=\"\",\"\",+'[2]EXT(T)'!AC67)","v":325.60000000000002},{"$f":"IF(+'[2]EXT(T)'!AE67=\"\",\"\",+'[2]EXT(T)'!AE67)","v":"n.d."},{"$f":"IF(+'[2]EXT(T)'!AF67=\"\",\"\",+'[2]EXT(T)'!AF67)","v":"n.d."},{"$f":"IF(+'[2]EXT(T)'!AY67=\"\",\"\",+'[2]EXT(T)'!AY67)","v":4354.5140707499995},{"$f":"IF(+'[2]EXT(T)'!AZ67=\"\",\"\",+'[2]EXT(T)'!AZ67)","v":"n.d."},{"$f":"IF(+'[2]EXT(T)'!AQ67=\"\",\"\",+'[2]EXT(T)'!AQ67-'[2]EXT(T)'!AQ66)","v":68.395772260000001},{"$f":"IF(+'[2]EXT(T)'!AR67=\"\",\"\",+'[2]EXT(T)'!AR67-'[2]EXT(T)'!AR66)","v":646.89999999999986},{"$f":"IF(+'[2]EXT(T)'!AS67=\"\",\"\",+'[2]EXT(T)'!AS67-'[2]EXT(T)'!AS66)","v":626.92340000000002},{"$f":"IF(+'[2]EXT(T)'!AT67=\"\",\"\",+'[2]EXT(T)'!AT67-'[2]EXT(T)'!AT66)","v":259.45069999999998},{"$f":"IF(+'[2]EXT(T)'!AU67=\"\",\"\",+'[2]EXT(T)'!AU67-'[2]EXT(T)'!AU66)","v":124.9},{"$f":"IF(+'[2]EXT(T)'!AV67=\"\",\"\",+'[2]EXT(T)'!AV67-'[2]EXT(T)'!AV66)","v":511.79999999999995},"n.d.",2238.3698722600002,"n.d."]
[null,"III",{"$f":"IF(+'[2]EXT(T)'!M68=\"\",\"\",+'[2]EXT(T)'!M68)","v":211.51138279374806},{"$f":"IF(+'[2]EXT(T)'!N68=\"\",\"\",+'[2]EXT(T)'!N68)","v":22.689999999999998},{"$f":"IF(+'[2]EXT(T)'!O68=\"\",\"\",+'[2]EXT(T)'!O68)","v":"n.d."},{"$f":"IF(+'[2]EXT(T)'!P68=\"\",\"\",+'[2]EXT(T)'!P68)","v":"n.d."},{"$f":"IF(+'[2]EXT(T)'!Q68=\"\",\"\",+'[2]EXT(T)'!Q68)","v":"n.d."},{"$f":"IF(+'[2]EXT(T)'!R68=\"\",\"\",+'[2]EXT(T)'!R68)","v":"n.d."},{"$f":"IF(+'[2]EXT(T)'!S68=\"\",\"\",+'[2]EXT(T)'!S68)","v":221.79999999999998},{"$f":"IF(+'[2]EXT(T)'!U68=\"\",\"\",+'[2]EXT(T)'!U68)","v":"n.d."},{"$f":"IF(+'[2]EXT(T)'!V68=\"\",\"\",+'[2]EXT(T)'!V68)","v":"n.d."},{"$f":"IF(+'[2]EXT(T)'!W68=\"\",\"\",+'[2]EXT(T)'!W68)","v":754.84771326249734},{"$f":"IF(+'[2]EXT(T)'!X68=\"\",\"\",+'[2]EXT(T)'!X68)","v":57.589999999999989},{"$f":"IF(+'[2]EXT(T)'!Y68=\"\",\"\",+'[2]EXT(T)'!Y68)","v":"n.d."},{"$f":"IF(+'[2]EXT(T)'!Z68=\"\",\"\",+'[2]EXT(T)'!Z68)","v":"n.d."},{"$f":"IF(+'[2]EXT(T)'!AA68=\"\",\"\",+'[2]EXT(T)'!AA68)","v":"n.d."},{"$f":"IF(+'[2]EXT(T)'!AB68=\"\",\"\",+'[2]EXT(T)'!AB68)","v":"n.d."},{"$f":"IF(+'[2]EXT(T)'!AC68=\"\",\"\",+'[2]EXT(T)'!AC68)","v":547.4},{"$f":"IF(+'[2]EXT(T)'!AE68=\"\",\"\",+'[2]EXT(T)'!AE68)","v":"n.d."},{"$f":"IF(+'[2]EXT(T)'!AF68=\"\",\"\",+'[2]EXT(T)'!AF68)","v":"n.d."},{"$f":"IF(+'[2]EXT(T)'!AY68=\"\",\"\",+'[2]EXT(T)'!AY68)","v":6697.2038857099997},{"$f":"IF(+'[2]EXT(T)'!AZ68=\"\",\"\",+'[2]EXT(T)'!AZ68)","v":"n.d."},{"$f":"IF(+'[2]EXT(T)'!AQ68=\"\",\"\",+'[2]EXT(T)'!AQ68-'[2]EXT(T)'!AQ67)","v":80.398614960000003},{"$f":"IF(+'[2]EXT(T)'!AR68=\"\",\"\",+'[2]EXT(T)'!AR68-'[2]EXT(T)'!AR67)","v":648},{"$f":"IF(+'[2]EXT(T)'!AS68=\"\",\"\",+'[2]EXT(T)'!AS68-'[2]EXT(T)'!AS67)","v":631.17180000000008},{"$f":"IF(+'[2]EXT(T)'!AT68=\"\",\"\",+'[2]EXT(T)'!AT68-'[2]EXT(T)'!AT67)","v":289.21939999999995},{"$f":"IF(+'[2]EXT(T)'!AU68=\"\",\"\",+'[2]EXT(T)'!AU68-'[2]EXT(T)'!AU67)","v":135.1},{"$f":"IF(+'[2]EXT(T)'!AV68=\"\",\"\",+'[2]EXT(T)'!AV68-'[2]EXT(T)'!AV67)","v":558.79999999999995},"n.d.",2342.6898149600001,"n.d."]
[null,"IV",{"$f":"IF(+'[2]EXT(T)'!M69=\"\",\"\",+'[2]EXT(T)'!M69)","v":221.05993947437921},{"$f":"IF(+'[2]EXT(T)'!N69=\"\",\"\",+'[2]EXT(T)'!N69)","v":305.68},{"$f":"IF(+'[2]EXT(T)'!O69=\"\",\"\",+'[2]EXT(T)'!O69)","v":"n.d."},{"$f":"IF(+'[2]EXT(T)'!P69=\"\",\"\",+'[2]EXT(T)'!P69)","v":"n.d."},{"$f":"IF(+'[2]EXT(T)'!Q69=\"\",\"\",+'[2]EXT(T)'!Q69)","v":"n.d."},{"$f":"IF(+'[2]EXT(T)'!R69=\"\",\"\",+'[2]EXT(T)'!R69)","v":"n.d."},{"$f":"IF(+'[2]EXT(T)'!S69=\"\",\"\",+'[2]EXT(T)'!S69)","v":471.70000000000005},{"$f":"IF(+'[2]EXT(T)'!U69=\"\",\"\",+'[2]EXT(T)'!U69)","v":"n.d."},{"$f":"IF(+'[2]EXT(T)'!V69=\"\",\"\",+'[2]EXT(T)'!V69)","v":"n.d."},{"$f":"IF(+'[2]EXT(T)'!W69=\"\",\"\",+'[2]EXT(T)'!W69)","v":975.90765273687657},{"$f":"IF(+'[2]EXT(T)'!X69=\"\",\"\",+'[2]EXT(T)'!X69)","v":363.27},{"$f":"IF(+'[2]EXT(T)'!Y69=\"\",\"\",+'[2]EXT(T)'!Y69)","v":"n.d."},{"$f":"IF(+'[2]EXT(T)'!Z69=\"\",\"\",+'[2]EXT(T)'!Z69)","v":"n.d."},{"$f":"IF(+'[2]EXT(T)'!AA69=\"\",\"\",+'[2]EXT(T)'!AA69)","v":"n.d."},{"$f":"IF(+'[2]EXT(T)'!AB69=\"\",\"\",+'[2]EXT(T)'!AB69)","v":"n.d."},{"$f":"IF(+'[2]EXT(T)'!AC69=\"\",\"\",+'[2]EXT(T)'!AC69)","v":1019.1},{"$f":"IF(+'[2]EXT(T)'!AE69=\"\",\"\",+'[2]EXT(T)'!AE69)","v":"n.d."},{"$f":"IF(+'[2]EXT(T)'!AF69=\"\",\"\",+'[2]EXT(T)'!AF69)","v":"n.d."},{"$f":"IF(+'[2]EXT(T)'!AY69=\"\",\"\",+'[2]EXT(T)'!AY69)","v":9223.245952119998},{"$f":"IF(+'[2]EXT(T)'!AZ69=\"\",\"\",+'[2]EXT(T)'!AZ69)","v":"n.d."},{"$f":"IF(+'[2]EXT(T)'!AQ69=\"\",\"\",+'[2]EXT(T)'!AQ69-'[2]EXT(T)'!AQ68)","v":84.870366409999974},{"$f":"IF(+'[2]EXT(T)'!AR69=\"\",\"\",+'[2]EXT(T)'!AR69-'[2]EXT(T)'!AR68)","v":692.69999999999959},{"$f":"IF(+'[2]EXT(T)'!AS69=\"\",\"\",+'[2]EXT(T)'!AS69-'[2]EXT(T)'!AS68)","v":686.14949999999976},{"$f":"IF(+'[2]EXT(T)'!AT69=\"\",\"\",+'[2]EXT(T)'!AT69-'[2]EXT(T)'!AT68)","v":309.22219999999993},{"$f":"IF(+'[2]EXT(T)'!AU69=\"\",\"\",+'[2]EXT(T)'!AU69-'[2]EXT(T)'!AU68)","v":141.29999999999995},{"$f":"IF(+'[2]EXT(T)'!AV69=\"\",\"\",+'[2]EXT(T)'!AV69-'[2]EXT(T)'!AV68)","v":611.79999999999995},"n.d.",2526.0420664099993,"n.d."]
[2005,"I",{"$f":"IF(+'[2]EXT(T)'!M70=\"\",\"\",+'[2]EXT(T)'!M70)","v":393.98976909045177},{"$f":"IF(+'[2]EXT(T)'!N70=\"\",\"\",+'[2]EXT(T)'!N70)","v":-8.1000000000000085},{"$f":"IF(+'[2]EXT(T)'!O70=\"\",\"\",+'[2]EXT(T)'!O70)","v":"n.d."},{"$f":"IF(+'[2]EXT(T)'!P70=\"\",\"\",+'[2]EXT(T)'!P70)","v":"n.d."},{"$f":"IF(+'[2]EXT(T)'!Q70=\"\",\"\",+'[2]EXT(T)'!Q70)","v":"n.d."},{"$f":"IF(+'[2]EXT(T)'!R70=\"\",\"\",+'[2]EXT(T)'!R70)","v":"n.d."},{"$f":"IF(+'[2]EXT(T)'!S70=\"\",\"\",+'[2]EXT(T)'!S70)","v":186.6},{"$f":"IF(+'[2]EXT(T)'!U70=\"\",\"\",+'[2]EXT(T)'!U70)","v":"n.d."},{"$f":"IF(+'[2]EXT(T)'!V70=\"\",\"\",+'[2]EXT(T)'!V70)","v":"n.d."},{"$f":"IF(+'[2]EXT(T)'!W70=\"\",\"\",+'[2]EXT(T)'!W70)","v":393.98976909045177},{"$f":"IF(+'[2]EXT(T)'!X70=\"\",\"\",+'[2]EXT(T)'!X70)","v":-8.1000000000000085},{"$f":"IF(+'[2]EXT(T)'!Y70=\"\",\"\",+'[2]EXT(T)'!Y70)","v":"n.d."},{"$f":"IF(+'[2]EXT(T)'!Z70=\"\",\"\",+'[2]EXT(T)'!Z70)","v":"n.d."},{"$f":"IF(+'[2]EXT(T)'!AA70=\"\",\"\",+'[2]EXT(T)'!AA70)","v":"n.d."},{"$f":"IF(+'[2]EXT(T)'!AB70=\"\",\"\",+'[2]EXT(T)'!AB70)","v":"n.d."},{"$f":"IF(+'[2]EXT(T)'!AC70=\"\",\"\",+'[2]EXT(T)'!AC70)","v":186.6},{"$f":"IF(+'[2]EXT(T)'!AE70=\"\",\"\",+'[2]EXT(T)'!AE70)","v":"n.d."},{"$f":"IF(+'[2]EXT(T)'!AF70=\"\",\"\",+'[2]EXT(T)'!AF70)","v":"n.d."},{"$f":"IF(+'[2]EXT(T)'!AY70=\"\",\"\",+'[2]EXT(T)'!AY70)","v":2469.8099899999997},{"$f":"IF(+'[2]EXT(T)'!AZ70=\"\",\"\",+'[2]EXT(T)'!AZ70)","v":"n.d."},{"$f":"IF(+'[2]EXT(T)'!AQ70=\"\",\"\",+'[2]EXT(T)'!AQ70)","v":91.509789999999995},{"$f":"IF(+'[2]EXT(T)'!AR70=\"\",\"\",+'[2]EXT(T)'!AR70)","v":639.44999999999993},{"$f":"IF(+'[2]EXT(T)'!AS70=\"\",\"\",+'[2]EXT(T)'!AS70)","v":659.70349999999996},{"$f":"IF(+'[2]EXT(T)'!AT70=\"\",\"\",+'[2]EXT(T)'!AT70)","v":357.54670000000004},{"$f":"IF(+'[2]EXT(T)'!AU70=\"\",\"\",+'[2]EXT(T)'!AU70)","v":153.6},{"$f":"IF(+'[2]EXT(T)'!AV70=\"\",\"\",+'[2]EXT(T)'!AV70)","v":568},"n.d.",2469.8099899999997,"n.d."]
[null,"II",{"$f":"IF(+'[2]EXT(T)'!M71=\"\",\"\",+'[2]EXT(T)'!M71)","v":359.80004566263608},{"$f":"IF(+'[2]EXT(T)'!N71=\"\",\"\",+'[2]EXT(T)'!N71)","v":100.83999999999999},{"$f":"IF(+'[2]EXT(T)'!O71=\"\",\"\",+'[2]EXT(T)'!O71)","v":"n.d."},{"$f":"IF(+'[2]EXT(T)'!P71=\"\",\"\",+'[2]EXT(T)'!P71)","v":"n.d."},{"$f":"IF(+'[2]EXT(T)'!Q71=\"\",\"\",+'[2]EXT(T)'!Q71)","v":"n.d."},{"$f":"IF(+'[2]EXT(T)'!R71=\"\",\"\",+'[2]EXT(T)'!R71)","v":"n.d."},{"$f":"IF(+'[2]EXT(T)'!S71=\"\",\"\",+'[2]EXT(T)'!S71)","v":111.7},{"$f":"IF(+'[2]EXT(T)'!U71=\"\",\"\",+'[2]EXT(T)'!U71)","v":"n.d."},{"$f":"IF(+'[2]EXT(T)'!V71=\"\",\"\",+'[2]EXT(T)'!V71)","v":"n.d."},{"$f":"IF(+'[2]EXT(T)'!W71=\"\",\"\",+'[2]EXT(T)'!W71)","v":753.78981475308785},{"$f":"IF(+'[2]EXT(T)'!X71=\"\",\"\",+'[2]EXT(T)'!X71)","v":92.739999999999981},{"$f":"IF(+'[2]EXT(T)'!Y71=\"\",\"\",+'[2]EXT(T)'!Y71)","v":"n.d."},{"$f":"IF(+'[2]EXT(T)'!Z71=\"\",\"\",+'[2]EXT(T)'!Z71)","v":"n.d."},{"$f":"IF(+'[2]EXT(T)'!AA71=\"\",\"\",+'[2]EXT(T)'!AA71)","v":"n.d."},{"$f":"IF(+'[2]EXT(T)'!AB71=\"\",\"\",+'[2]EXT(T)'!AB71)","v":"n.d."},{"$f":"IF(+'[2]EXT(T)'!AC71=\"\",\"\",+'[2]EXT(T)'!AC71)","v":298.3},{"$f":"IF(+'[2]EXT(T)'!AE71=\"\",\"\",+'[2]EXT(T)'!AE71)","v":"n.d."},{"$f":"IF(+'[2]EXT(T)'!AF71=\"\",\"\",+'[2]EXT(T)'!AF71)","v":"n.d."},{"$f":"IF(+'[2]EXT(T)'!AY71=\"\",\"\",+'[2]EXT(T)'!AY71)","v":5235.7278699999997},{"$f":"IF(+'[2]EXT(T)'!AZ71=\"\",\"\",+'[2]EXT(T)'!AZ71)","v":"n.d."},{"$f":"IF(+'[2]EXT(T)'!AQ71=\"\",\"\",+'[2]EXT(T)'!AQ71-'[2]EXT(T)'!AQ70)","v":105.83968},{"$f":"IF(+'[2]EXT(T)'!AR71=\"\",\"\",+'[2]EXT(T)'!AR71-'[2]EXT(T)'!AR70)","v":768.44999999999993},{"$f":"IF(+'[2]EXT(T)'!AS71=\"\",\"\",+'[2]EXT(T)'!AS71-'[2]EXT(T)'!AS70)","v":788.47249999999997},{"$f":"IF(+'[2]EXT(T)'!AT71=\"\",\"\",+'[2]EXT(T)'!AT71-'[2]EXT(T)'!AT70)","v":401.05569999999994},{"$f":"IF(+'[2]EXT(T)'!AU71=\"\",\"\",+'[2]EXT(T)'!AU71-'[2]EXT(T)'!AU70)","v":148.9},{"$f":"IF(+'[2]EXT(T)'!AV71=\"\",\"\",+'[2]EXT(T)'!AV71-'[2]EXT(T)'!AV70)","v":553.20000000000005},"n.d.",2765.91788,"n.d."]
[null,"III",{"$f":"IF(+'[2]EXT(T)'!M72=\"\",\"\",+'[2]EXT(T)'!M72)","v":258.24938815868887},{"$f":"IF(+'[2]EXT(T)'!N72=\"\",\"\",+'[2]EXT(T)'!N72)","v":53.3},{"$f":"IF(+'[2]EXT(T)'!O72=\"\",\"\",+'[2]EXT(T)'!O72)","v":"n.d."},{"$f":"IF(+'[2]EXT(T)'!P72=\"\",\"\",+'[2]EXT(T)'!P72)","v":"n.d."},{"$f":"IF(+'[2]EXT(T)'!Q72=\"\",\"\",+'[2]EXT(T)'!Q72)","v":"n.d."},{"$f":"IF(+'[2]EXT(T)'!R72=\"\",\"\",+'[2]EXT(T)'!R72)","v":"n.d."},{"$f":"IF(+'[2]EXT(T)'!S72=\"\",\"\",+'[2]EXT(T)'!S72)","v":173.20000000000002},{"$f":"IF(+'[2]EXT(T)'!U72=\"\",\"\",+'[2]EXT(T)'!U72)","v":"n.d."},{"$f":"IF(+'[2]EXT(T)'!V72=\"\",\"\",+'[2]EXT(T)'!V72)","v":"n.d."},{"$f":"IF(+'[2]EXT(T)'!W72=\"\",\"\",+'[2]EXT(T)'!W72)","v":1012.0392029117768},{"$f":"IF(+'[2]EXT(T)'!X72=\"\",\"\",+'[2]EXT(T)'!X72)","v":146.03999999999996},{"$f":"IF(+'[2]EXT(T)'!Y72=\"\",\"\",+'[2]EXT(T)'!Y72)","v":"n.d."},{"$f":"IF(+'[2]EXT(T)'!Z72=\"\",\"\",+'[2]EXT(T)'!Z72)","v":"n.d."},{"$f":"IF(+'[2]EXT(T)'!AA72=\"\",\"\",+'[2]EXT(T)'!AA72)","v":"n.d."},{"$f":"IF(+'[2]EXT(T)'!AB72=\"\",\"\",+'[2]EXT(T)'!AB72)","v":"n.d."},{"$f":"IF(+'[2]EXT(T)'!AC72=\"\",\"\",+'[2]EXT(T)'!AC72)","v":471.5},{"$f":"IF(+'[2]EXT(T)'!AE72=\"\",\"\",+'[2]EXT(T)'!AE72)","v":"n.d."},{"$f":"IF(+'[2]EXT(T)'!AF72=\"\",\"\",+'[2]EXT(T)'!AF72)","v":"n.d."},{"$f":"IF(+'[2]EXT(T)'!AY72=\"\",\"\",+'[2]EXT(T)'!AY72)","v":8031.4402899999995},{"$f":"IF(+'[2]EXT(T)'!AZ72=\"\",\"\",+'[2]EXT(T)'!AZ72)","v":"n.d."},{"$f":"IF(+'[2]EXT(T)'!AQ72=\"\",\"\",+'[2]EXT(T)'!AQ72-'[2]EXT(T)'!AQ71)","v":102.14672000000002},{"$f":"IF(+'[2]EXT(T)'!AR72=\"\",\"\",+'[2]EXT(T)'!AR72-'[2]EXT(T)'!AR71)","v":758.31000000000017},{"$f":"IF(+'[2]EXT(T)'!AS72=\"\",\"\",+'[2]EXT(T)'!AS72-'[2]EXT(T)'!AS71)","v":729.31460000000015},{"$f":"IF(+'[2]EXT(T)'!AT72=\"\",\"\",+'[2]EXT(T)'!AT72-'[2]EXT(T)'!AT71)","v":456.94110000000001},{"$f":"IF(+'[2]EXT(T)'!AU72=\"\",\"\",+'[2]EXT(T)'!AU72-'[2]EXT(T)'!AU71)","v":150.5},{"$f":"IF(+'[2]EXT(T)'!AV72=\"\",\"\",+'[2]EXT(T)'!AV72-'[2]EXT(T)'!AV71)","v":598.5},"n.d.",2795.7124200000003,"n.d."]
[null,"IV",{"$f":"IF(+'[2]EXT(T)'!M73=\"\",\"\",+'[2]EXT(T)'!M73)","v":352.09471119356863},{"$f":"IF(+'[2]EXT(T)'!N73=\"\",\"\",+'[2]EXT(T)'!N73)","v":365.1},{"$f":"IF(+'[2]EXT(T)'!O73=\"\",\"\",+'[2]EXT(T)'!O73)","v":"n.d."},{"$f":"IF(+'[2]EXT(T)'!P73=\"\",\"\",+'[2]EXT(T)'!P73)","v":"n.d."},{"$f":"IF(+'[2]EXT(T)'!Q73=\"\",\"\",+'[2]EXT(T)'!Q73)","v":"n.d."},{"$f":"IF(+'[2]EXT(T)'!R73=\"\",\"\",+'[2]EXT(T)'!R73)","v":"n.d."},{"$f":"IF(+'[2]EXT(T)'!S73=\"\",\"\",+'[2]EXT(T)'!S73)","v":446.1},{"$f":"IF(+'[2]EXT(T)'!U73=\"\",\"\",+'[2]EXT(T)'!U73)","v":"n.d."},{"$f":"IF(+'[2]EXT(T)'!V73=\"\",\"\",+'[2]EXT(T)'!V73)","v":"n.d."},{"$f":"IF(+'[2]EXT(T)'!W73=\"\",\"\",+'[2]EXT(T)'!W73)","v":1364.1339141053454},{"$f":"IF(+'[2]EXT(T)'!X73=\"\",\"\",+'[2]EXT(T)'!X73)","v":511.14},{"$f":"IF(+'[2]EXT(T)'!Y73=\"\",\"\",+'[2]EXT(T)'!Y73)","v":"n.d."},{"$f":"IF(+'[2]EXT(T)'!Z73=\"\",\"\",+'[2]EXT(T)'!Z73)","v":"n.d."},{"$f":"IF(+'[2]EXT(T)'!AA73=\"\",\"\",+'[2]EXT(T)'!AA73)","v":"n.d."},{"$f":"IF(+'[2]EXT(T)'!AB73=\"\",\"\",+'[2]EXT(T)'!AB73)","v":"n.d."},{"$f":"IF(+'[2]EXT(T)'!AC73=\"\",\"\",+'[2]EXT(T)'!AC73)","v":917.6},{"$f":"IF(+'[2]EXT(T)'!AE73=\"\",\"\",+'[2]EXT(T)'!AE73)","v":"n.d."},{"$f":"IF(+'[2]EXT(T)'!AF73=\"\",\"\",+'[2]EXT(T)'!AF73)","v":"n.d."},{"$f":"IF(+'[2]EXT(T)'!AY73=\"\",\"\",+'[2]EXT(T)'!AY73)","v":11174.272410000001},{"$f":"IF(+'[2]EXT(T)'!AZ73=\"\",\"\",+'[2]EXT(T)'!AZ73)","v":"n.d."},{"$f":"IF(+'[2]EXT(T)'!AQ73=\"\",\"\",+'[2]EXT(T)'!AQ73-'[2]EXT(T)'!AQ72)","v":100.25722000000002},{"$f":"IF(+'[2]EXT(T)'!AR73=\"\",\"\",+'[2]EXT(T)'!AR73-'[2]EXT(T)'!AR72)","v":850.97000000000025},{"$f":"IF(+'[2]EXT(T)'!AS73=\"\",\"\",+'[2]EXT(T)'!AS73-'[2]EXT(T)'!AS72)","v":815.33190000000013},{"$f":"IF(+'[2]EXT(T)'!AT73=\"\",\"\",+'[2]EXT(T)'!AT73-'[2]EXT(T)'!AT72)","v":503.37300000000005},{"$f":"IF(+'[2]EXT(T)'!AU73=\"\",\"\",+'[2]EXT(T)'!AU73-'[2]EXT(T)'!AU72)","v":162.70000000000005},{"$f":"IF(+'[2]EXT(T)'!AV73=\"\",\"\",+'[2]EXT(T)'!AV73-'[2]EXT(T)'!AV72)","v":710.2},"n.d.",3142.83212,"n.d."]
[2006,"I",{"$f":"IF(+'[2]EXT(T)'!M74=\"\",\"\",+'[2]EXT(T)'!M74)","v":374.58803460043055},{"$f":"IF(+'[2]EXT(T)'!N74=\"\",\"\",+'[2]EXT(T)'!N74)","v":175.7},{"$f":"IF(+'[2]EXT(T)'!O74=\"\",\"\",+'[2]EXT(T)'!O74)","v":"n.d."},{"$f":"IF(+'[2]EXT(T)'!P74=\"\",\"\",+'[2]EXT(T)'!P74)","v":"n.d."},{"$f":"IF(+'[2]EXT(T)'!Q74=\"\",\"\",+'[2]EXT(T)'!Q74)","v":64.5},{"$f":"IF(+'[2]EXT(T)'!R74=\"\",\"\",+'[2]EXT(T)'!R74)","v":"n.d."},{"$f":"IF(+'[2]EXT(T)'!S74=\"\",\"\",+'[2]EXT(T)'!S74)","v":76.599999999999994},{"$f":"IF(+'[2]EXT(T)'!U74=\"\",\"\",+'[2]EXT(T)'!U74)","v":"n.d."},{"$f":"IF(+'[2]EXT(T)'!V74=\"\",\"\",+'[2]EXT(T)'!V74)","v":"n.d."},{"$f":"IF(+'[2]EXT(T)'!W74=\"\",\"\",+'[2]EXT(T)'!W74)","v":374.58803460043055},{"$f":"IF(+'[2]EXT(T)'!X74=\"\",\"\",+'[2]EXT(T)'!X74)","v":175.7},{"$f":"IF(+'[2]EXT(T)'!Y74=\"\",\"\",+'[2]EXT(T)'!Y74)","v":"n.d."},{"$f":"IF(+'[2]EXT(T)'!Z74=\"\",\"\",+'[2]EXT(T)'!Z74)","v":"n.d."},{"$f":"IF(+'[2]EXT(T)'!AA74=\"\",\"\",+'[2]EXT(T)'!AA74)","v":64.5},{"$f":"IF(+'[2]EXT(T)'!AB74=\"\",\"\",+'[2]EXT(T)'!AB74)","v":"n.d."},{"$f":"IF(+'[2]EXT(T)'!AC74=\"\",\"\",+'[2]EXT(T)'!AC74)","v":76.599999999999994},{"$f":"IF(+'[2]EXT(T)'!AE74=\"\",\"\",+'[2]EXT(T)'!AE74)","v":"n.d."},{"$f":"IF(+'[2]EXT(T)'!AF74=\"\",\"\",+'[2]EXT(T)'!AF74)","v":"n.d."},{"$f":"IF(+'[2]EXT(T)'!AY74=\"\",\"\",+'[2]EXT(T)'!AY74)","v":3007.7737926},{"$f":"IF(+'[2]EXT(T)'!AZ74=\"\",\"\",+'[2]EXT(T)'!AZ74)","v":"n.d."},{"$f":"IF(+'[2]EXT(T)'!AQ74=\"\",\"\",+'[2]EXT(T)'!AQ74)","v":108.9113926},{"$f":"IF(+'[2]EXT(T)'!AR74=\"\",\"\",+'[2]EXT(T)'!AR74)","v":796.77},{"$f":"IF(+'[2]EXT(T)'!AS74=\"\",\"\",+'[2]EXT(T)'!AS74)","v":792.66460000000006},{"$f":"IF(+'[2]EXT(T)'!AT74=\"\",\"\",+'[2]EXT(T)'!AT74)","v":507.42780000000005},{"$f":"IF(+'[2]EXT(T)'!AU74=\"\",\"\",+'[2]EXT(T)'!AU74)","v":173.6},{"$f":"IF(+'[2]EXT(T)'!AV74=\"\",\"\",+'[2]EXT(T)'!AV74)","v":628.40000000000009},"n.d.",{"$f":"IF(OR(W67=\"\",X67=\"\",Y67=\"\",Z67=\"\",AA67=\"\",AB67=\"\"),\"\",W67+X67+Y67+Z67+AA67+AB67)","v":3007.7737926},"n.d."]
[null,"II",{"$f":"IF(+'[2]EXT(T)'!M75=\"\",\"\",+'[2]EXT(T)'!M75)","v":354.40034469424143},{"$f":"IF(+'[2]EXT(T)'!N75=\"\",\"\",+'[2]EXT(T)'!N75)","v":2.9000000000000021},{"$f":"IF(+'[2]EXT(T)'!O75=\"\",\"\",+'[2]EXT(T)'!O75)","v":"n.d."},{"$f":"IF(+'[2]EXT(T)'!P75=\"\",\"\",+'[2]EXT(T)'!P75)","v":"n.d."},{"$f":"IF(+'[2]EXT(T)'!Q75=\"\",\"\",+'[2]EXT(T)'!Q75)","v":67.2},{"$f":"IF(+'[2]EXT(T)'!R75=\"\",\"\",+'[2]EXT(T)'!R75)","v":"n.d."},{"$f":"IF(+'[2]EXT(T)'!S75=\"\",\"\",+'[2]EXT(T)'!S75)","v":297.2},{"$f":"IF(+'[2]EXT(T)'!U75=\"\",\"\",+'[2]EXT(T)'!U75)","v":"n.d."},{"$f":"IF(+'[2]EXT(T)'!V75=\"\",\"\",+'[2]EXT(T)'!V75)","v":"n.d."},{"$f":"IF(+'[2]EXT(T)'!W75=\"\",\"\",+'[2]EXT(T)'!W75)","v":728.98837929467197},{"$f":"IF(+'[2]EXT(T)'!X75=\"\",\"\",+'[2]EXT(T)'!X75)","v":178.6},{"$f":"IF(+'[2]EXT(T)'!Y75=\"\",\"\",+'[2]EXT(T)'!Y75)","v":"n.d."},{"$f":"IF(+'[2]EXT(T)'!Z75=\"\",\"\",+'[2]EXT(T)'!Z75)","v":"n.d."},{"$f":"IF(+'[2]EXT(T)'!AA75=\"\",\"\",+'[2]EXT(T)'!AA75)","v":131.69999999999999},{"$f":"IF(+'[2]EXT(T)'!AB75=\"\",\"\",+'[2]EXT(T)'!AB75)","v":"n.d."},{"$f":"IF(+'[2]EXT(T)'!AC75=\"\",\"\",+'[2]EXT(T)'!AC75)","v":373.79999999999995},{"$f":"IF(+'[2]EXT(T)'!AE75=\"\",\"\",+'[2]EXT(T)'!AE75)","v":"n.d."},{"$f":"IF(+'[2]EXT(T)'!AF75=\"\",\"\",+'[2]EXT(T)'!AF75)","v":"n.d."},{"$f":"IF(+'[2]EXT(T)'!AY75=\"\",\"\",+'[2]EXT(T)'!AY75)","v":6375.4970493000001},{"$f":"IF(+'[2]EXT(T)'!AZ75=\"\",\"\",+'[2]EXT(T)'!AZ75)","v":"n.d."},{"$f":"IF(+'[2]EXT(T)'!AQ75=\"\",\"\",+'[2]EXT(T)'!AQ75-'[2]EXT(T)'!AQ74)","v":124.93905669999998},{"$f":"IF(+'[2]EXT(T)'!AR75=\"\",\"\",+'[2]EXT(T)'!AR75-'[2]EXT(T)'!AR74)","v":894.64999999999986},{"$f":"IF(+'[2]EXT(T)'!AS75=\"\",\"\",+'[2]EXT(T)'!AS75-'[2]EXT(T)'!AS74)","v":955.92790000000014},{"$f":"IF(+'[2]EXT(T)'!AT75=\"\",\"\",+'[2]EXT(T)'!AT75-'[2]EXT(T)'!AT74)","v":567.70629999999994},{"$f":"IF(+'[2]EXT(T)'!AU75=\"\",\"\",+'[2]EXT(T)'!AU75-'[2]EXT(T)'!AU74)","v":168.50000000000003},{"$f":"IF(+'[2]EXT(T)'!AV75=\"\",\"\",+'[2]EXT(T)'!AV75-'[2]EXT(T)'!AV74)","v":656},"n.d.",{"$f":"IF(OR(W68=\"\",X68=\"\",Y68=\"\",Z68=\"\",AA68=\"\",AB68=\"\"),\"\",W68+X68+Y68+Z68+AA68+AB68)","v":3367.7232567000001},"n.d."]
[null,"III",{"$f":"IF(+'[2]EXT(T)'!M76=\"\",\"\",+'[2]EXT(T)'!M76)","v":651.08589405223756},{"$f":"IF(+'[2]EXT(T)'!N76=\"\",\"\",+'[2]EXT(T)'!N76)","v":-22.599999999999994},{"$f":"IF(+'[2]EXT(T)'!O76=\"\",\"\",+'[2]EXT(T)'!O76)","v":"n.d."},{"$f":"IF(+'[2]EXT(T)'!P76=\"\",\"\",+'[2]EXT(T)'!P76)","v":"n.d."},{"$f":"IF(+'[2]EXT(T)'!Q76=\"\",\"\",+'[2]EXT(T)'!Q76)","v":73.2},{"$f":"IF(+'[2]EXT(T)'!R76=\"\",\"\",+'[2]EXT(T)'!R76)","v":"n.d."},{"$f":"IF(+'[2]EXT(T)'!S76=\"\",\"\",+'[2]EXT(T)'!S76)","v":488.4},{"$f":"IF(+'[2]EXT(T)'!U76=\"\",\"\",+'[2]EXT(T)'!U76)","v":"n.d."},{"$f":"IF(+'[2]EXT(T)'!V76=\"\",\"\",+'[2]EXT(T)'!V76)","v":"n.d."},{"$f":"IF(+'[2]EXT(T)'!W76=\"\",\"\",+'[2]EXT(T)'!W76)","v":1380.0742733469096},{"$f":"IF(+'[2]EXT(T)'!X76=\"\",\"\",+'[2]EXT(T)'!X76)","v":156},{"$f":"IF(+'[2]EXT(T)'!Y76=\"\",\"\",+'[2]EXT(T)'!Y76)","v":"n.d."},{"$f":"IF(+'[2]EXT(T)'!Z76=\"\",\"\",+'[2]EXT(T)'!Z76)","v":"n.d."},{"$f":"IF(+'[2]EXT(T)'!AA76=\"\",\"\",+'[2]EXT(T)'!AA76)","v":204.89999999999998},{"$f":"IF(+'[2]EXT(T)'!AB76=\"\",\"\",+'[2]EXT(T)'!AB76)","v":"n.d."},{"$f":"IF(+'[2]EXT(T)'!AC76=\"\",\"\",+'[2]EXT(T)'!AC76)","v":862.19999999999993},{"$f":"IF(+'[2]EXT(T)'!AE76=\"\",\"\",+'[2]EXT(T)'!AE76)","v":"n.d."},{"$f":"IF(+'[2]EXT(T)'!AF76=\"\",\"\",+'[2]EXT(T)'!AF76)","v":"n.d."},{"$f":"IF(+'[2]EXT(T)'!AY76=\"\",\"\",+'[2]EXT(T)'!AY76)","v":9750.1230493000003},{"$f":"IF(+'[2]EXT(T)'!AZ76=\"\",\"\",+'[2]EXT(T)'!AZ76)","v":"n.d."},{"$f":"IF(+'[2]EXT(T)'!AQ76=\"\",\"\",+'[2]EXT(T)'!AQ76-'[2]EXT(T)'!AQ75)","v":131.91399999999999},{"$f":"IF(+'[2]EXT(T)'!AR76=\"\",\"\",+'[2]EXT(T)'!AR76-'[2]EXT(T)'!AR75)","v":850.04000000000019},{"$f":"IF(+'[2]EXT(T)'!AS76=\"\",\"\",+'[2]EXT(T)'!AS76-'[2]EXT(T)'!AS75)","v":928.83199999999988},{"$f":"IF(+'[2]EXT(T)'!AT76=\"\",\"\",+'[2]EXT(T)'!AT76-'[2]EXT(T)'!AT75)","v":581.63999999999987},{"$f":"IF(+'[2]EXT(T)'!AU76=\"\",\"\",+'[2]EXT(T)'!AU76-'[2]EXT(T)'!AU75)","v":178.60000000000002},{"$f":"IF(+'[2]EXT(T)'!AV76=\"\",\"\",+'[2]EXT(T)'!AV76-'[2]EXT(T)'!AV75)","v":703.59999999999991},"n.d.",3374.6259999999997,"n.d."]
[null,"IV",{"$f":"IF(+'[2]EXT(T)'!M77=\"\",\"\",+'[2]EXT(T)'!M77)","v":322.42246308831182},{"$f":"IF(+'[2]EXT(T)'!N77=\"\",\"\",+'[2]EXT(T)'!N77)","v":85.13},{"$f":"IF(+'[2]EXT(T)'!O77=\"\",\"\",+'[2]EXT(T)'!O77)","v":"n.d."},{"$f":"IF(+'[2]EXT(T)'!P77=\"\",\"\",+'[2]EXT(T)'!P77)","v":"n.d."},{"$f":"IF(+'[2]EXT(T)'!Q77=\"\",\"\",+'[2]EXT(T)'!Q77)","v":81.900000000000006},{"$f":"IF(+'[2]EXT(T)'!R77=\"\",\"\",+'[2]EXT(T)'!R77)","v":"n.d."},{"$f":"IF(+'[2]EXT(T)'!S77=\"\",\"\",+'[2]EXT(T)'!S77)","v":1685.1},{"$f":"IF(+'[2]EXT(T)'!U77=\"\",\"\",+'[2]EXT(T)'!U77)","v":"n.d."},{"$f":"IF(+'[2]EXT(T)'!V77=\"\",\"\",+'[2]EXT(T)'!V77)","v":"n.d."},{"$f":"IF(+'[2]EXT(T)'!W77=\"\",\"\",+'[2]EXT(T)'!W77)","v":1702.4967364352215},{"$f":"IF(+'[2]EXT(T)'!X77=\"\",\"\",+'[2]EXT(T)'!X77)","v":241.13},{"$f":"IF(+'[2]EXT(T)'!Y77=\"\",\"\",+'[2]EXT(T)'!Y77)","v":"n.d."},{"$f":"IF(+'[2]EXT(T)'!Z77=\"\",\"\",+'[2]EXT(T)'!Z77)","v":"n.d."},{"$f":"IF(+'[2]EXT(T)'!AA77=\"\",\"\",+'[2]EXT(T)'!AA77)","v":286.79999999999995},{"$f":"IF(+'[2]EXT(T)'!AB77=\"\",\"\",+'[2]EXT(T)'!AB77)","v":"n.d."},{"$f":"IF(+'[2]EXT(T)'!AC77=\"\",\"\",+'[2]EXT(T)'!AC77)","v":2547.2999999999997},{"$f":"IF(+'[2]EXT(T)'!AE77=\"\",\"\",+'[2]EXT(T)'!AE77)","v":"n.d."},{"$f":"IF(+'[2]EXT(T)'!AF77=\"\",\"\",+'[2]EXT(T)'!AF77)","v":"n.d."},{"$f":"IF(+'[2]EXT(T)'!AY77=\"\",\"\",+'[2]EXT(T)'!AY77)","v":13257.584690899999},{"$f":"IF(+'[2]EXT(T)'!AZ77=\"\",\"\",+'[2]EXT(T)'!AZ77)","v":"n.d."},{"$f":"IF(+'[2]EXT(T)'!AQ77=\"\",\"\",+'[2]EXT(T)'!AQ77-'[2]EXT(T)'!AQ76)","v":124.06484159999997},{"$f":"IF(+'[2]EXT(T)'!AR77=\"\",\"\",+'[2]EXT(T)'!AR77-'[2]EXT(T)'!AR76)","v":929.43000000000029},{"$f":"IF(+'[2]EXT(T)'!AS77=\"\",\"\",+'[2]EXT(T)'!AS77-'[2]EXT(T)'!AS76)","v":932.38860000000022},{"$f":"IF(+'[2]EXT(T)'!AT77=\"\",\"\",+'[2]EXT(T)'!AT77-'[2]EXT(T)'!AT76)","v":594.97819999999979},{"$f":"IF(+'[2]EXT(T)'!AU77=\"\",\"\",+'[2]EXT(T)'!AU77-'[2]EXT(T)'!AU76)","v":176.79999999999995},{"$f":"IF(+'[2]EXT(T)'!AV77=\"\",\"\",+'[2]EXT(T)'!AV77-'[2]EXT(T)'!AV76)","v":749.80000000000018},"n.d.",3507.4616416000008,"n.d."]
[2007,"I",{"$f":"IF(+'[2]EXT(T)'!M78=\"\",\"\",+'[2]EXT(T)'!M78)","v":682.98028723471657},{"$f":"IF(+'[2]EXT(T)'!N78=\"\",\"\",+'[2]EXT(T)'!N78)","v":448.29999999999995},{"$f":"IF(+'[2]EXT(T)'!O78=\"\",\"\",+'[2]EXT(T)'!O78)","v":"n.d."},{"$f":"IF(+'[2]EXT(T)'!P78=\"\",\"\",+'[2]EXT(T)'!P78)","v":"n.d."},{"$f":"IF(+'[2]EXT(T)'!Q78=\"\",\"\",+'[2]EXT(T)'!Q78)","v":58.8},{"$f":"IF(+'[2]EXT(T)'!R78=\"\",\"\",+'[2]EXT(T)'!R78)","v":"n.d."},{"$f":"IF(+'[2]EXT(T)'!S78=\"\",\"\",+'[2]EXT(T)'!S78)","v":424.2},{"$f":"IF(+'[2]EXT(T)'!U78=\"\",\"\",+'[2]EXT(T)'!U78)","v":1190.0802872347165},{"$f":"IF(+'[2]EXT(T)'!V78=\"\",\"\",+'[2]EXT(T)'!V78)","v":1614.2802872347165},{"$f":"IF(+'[2]EXT(T)'!W78=\"\",\"\",+'[2]EXT(T)'!W78)","v":682.98028723471657},{"$f":"IF(+'[2]EXT(T)'!X78=\"\",\"\",+'[2]EXT(T)'!X78)","v":448.29999999999995},{"$f":"IF(+'[2]EXT(T)'!Y78=\"\",\"\",+'[2]EXT(T)'!Y78)","v":"n.d."},{"$f":"IF(+'[2]EXT(T)'!Z78=\"\",\"\",+'[2]EXT(T)'!Z78)","v":"n.d."},{"$f":"IF(+'[2]EXT(T)'!AA78=\"\",\"\",+'[2]EXT(T)'!AA78)","v":58.8},{"$f":"IF(+'[2]EXT(T)'!AB78=\"\",\"\",+'[2]EXT(T)'!AB78)","v":"n.d."},{"$f":"IF(+'[2]EXT(T)'!AC78=\"\",\"\",+'[2]EXT(T)'!AC78)","v":424.2},{"$f":"IF(+'[2]EXT(T)'!AE78=\"\",\"\",+'[2]EXT(T)'!AE78)","v":1190.0802872347165},{"$f":"IF(+'[2]EXT(T)'!AF78=\"\",\"\",+'[2]EXT(T)'!AF78)","v":1614.2802872347165},{"$f":"IF(+'[2]EXT(T)'!AY78=\"\",\"\",+'[2]EXT(T)'!AY78)","v":3348.0183873000001},{"$f":"IF(+'[2]EXT(T)'!AZ78=\"\",\"\",+'[2]EXT(T)'!AZ78)","v":"n.d."},{"$f":"IF(+'[2]EXT(T)'!AQ78=\"\",\"\",+'[2]EXT(T)'!AQ78)","v":123.4692873},{"$f":"IF(+'[2]EXT(T)'!AR78=\"\",\"\",+'[2]EXT(T)'!AR78)","v":860.12000000000012},{"$f":"IF(+'[2]EXT(T)'!AS78=\"\",\"\",+'[2]EXT(T)'!AS78)","v":886.68420000000015},{"$f":"IF(+'[2]EXT(T)'!AT78=\"\",\"\",+'[2]EXT(T)'!AT78)","v":568.64490000000001},{"$f":"IF(+'[2]EXT(T)'!AU78=\"\",\"\",+'[2]EXT(T)'!AU78)","v":165.1},{"$f":"IF(+'[2]EXT(T)'!AV78=\"\",\"\",+'[2]EXT(T)'!AV78)","v":744},"n.d.",{"$f":"IF(OR(W71=\"\",X71=\"\",Y71=\"\",Z71=\"\",AA71=\"\",AB71=\"\"),\"\",W71+X71+Y71+Z71+AA71+AB71)","v":3348.0183873000001},"n.d."]
[null,"II",{"$f":"IF(+'[2]EXT(T)'!M79=\"\",\"\",+'[2]EXT(T)'!M79)","v":538.23089726507942},{"$f":"IF(+'[2]EXT(T)'!N79=\"\",\"\",+'[2]EXT(T)'!N79)","v":714.8},{"$f":"IF(+'[2]EXT(T)'!O79=\"\",\"\",+'[2]EXT(T)'!O79)","v":"n.d."},{"$f":"IF(+'[2]EXT(T)'!P79=\"\",\"\",+'[2]EXT(T)'!P79)","v":"n.d."},{"$f":"IF(+'[2]EXT(T)'!Q79=\"\",\"\",+'[2]EXT(T)'!Q79)","v":107.6},{"$f":"IF(+'[2]EXT(T)'!R79=\"\",\"\",+'[2]EXT(T)'!R79)","v":"n.d."},{"$f":"IF(+'[2]EXT(T)'!S79=\"\",\"\",+'[2]EXT(T)'!S79)","v":341.40000000000003},{"$f":"IF(+'[2]EXT(T)'!U79=\"\",\"\",+'[2]EXT(T)'!U79)","v":1360.6308972650793},{"$f":"IF(+'[2]EXT(T)'!V79=\"\",\"\",+'[2]EXT(T)'!V79)","v":1702.0308972650794},{"$f":"IF(+'[2]EXT(T)'!W79=\"\",\"\",+'[2]EXT(T)'!W79)","v":1221.211184499796},{"$f":"IF(+'[2]EXT(T)'!X79=\"\",\"\",+'[2]EXT(T)'!X79)","v":1163.0999999999999},{"$f":"IF(+'[2]EXT(T)'!Y79=\"\",\"\",+'[2]EXT(T)'!Y79)","v":"n.d."},{"$f":"IF(+'[2]EXT(T)'!Z79=\"\",\"\",+'[2]EXT(T)'!Z79)","v":"n.d."},{"$f":"IF(+'[2]EXT(T)'!AA79=\"\",\"\",+'[2]EXT(T)'!AA79)","v":166.39999999999998},{"$f":"IF(+'[2]EXT(T)'!AB79=\"\",\"\",+'[2]EXT(T)'!AB79)","v":"n.d."},{"$f":"IF(+'[2]EXT(T)'!AC79=\"\",\"\",+'[2]EXT(T)'!AC79)","v":765.6},{"$f":"IF(+'[2]EXT(T)'!AE79=\"\",\"\",+'[2]EXT(T)'!AE79)","v":2550.7111844997958},{"$f":"IF(+'[2]EXT(T)'!AF79=\"\",\"\",+'[2]EXT(T)'!AF79)","v":3316.3111844997957},{"$f":"IF(+'[2]EXT(T)'!AY79=\"\",\"\",+'[2]EXT(T)'!AY79)","v":7058.9489211},{"$f":"IF(+'[2]EXT(T)'!AZ79=\"\",\"\",+'[2]EXT(T)'!AZ79)","v":"n.d."},{"$f":"IF(+'[2]EXT(T)'!AQ79=\"\",\"\",+'[2]EXT(T)'!AQ79-'[2]EXT(T)'!AQ78)","v":136.21073380000001},{"$f":"IF(+'[2]EXT(T)'!AR79=\"\",\"\",+'[2]EXT(T)'!AR79-'[2]EXT(T)'!AR78)","v":958.28},{"$f":"IF(+'[2]EXT(T)'!AS79=\"\",\"\",+'[2]EXT(T)'!AS79-'[2]EXT(T)'!AS78)","v":1083.0346},{"$f":"IF(+'[2]EXT(T)'!AT79=\"\",\"\",+'[2]EXT(T)'!AT79-'[2]EXT(T)'!AT78)","v":623.50519999999983},{"$f":"IF(+'[2]EXT(T)'!AU79=\"\",\"\",+'[2]EXT(T)'!AU79-'[2]EXT(T)'!AU78)","v":181.09999999999994},{"$f":"IF(+'[2]EXT(T)'!AV79=\"\",\"\",+'[2]EXT(T)'!AV79-'[2]EXT(T)'!AV78)","v":728.80000000000018},"n.d.",3710.9305337999999,"n.d."]
[null,"III",{"$f":"IF(+'[2]EXT(T)'!M80=\"\",\"\",+'[2]EXT(T)'!M80)","v":431.92687358303192},{"$f":"IF(+'[2]EXT(T)'!N80=\"\",\"\",+'[2]EXT(T)'!N80)","v":190.14999999999998},{"$f":"IF(+'[2]EXT(T)'!O80=\"\",\"\",+'[2]EXT(T)'!O80)","v":"n.d."},{"$f":"IF(+'[2]EXT(T)'!P80=\"\",\"\",+'[2]EXT(T)'!P80)","v":"n.d."},{"$f":"IF(+'[2]EXT(T)'!Q80=\"\",\"\",+'[2]EXT(T)'!Q80)","v":120.1},{"$f":"IF(+'[2]EXT(T)'!R80=\"\",\"\",+'[2]EXT(T)'!R80)","v":"n.d."},{"$f":"IF(+'[2]EXT(T)'!S80=\"\",\"\",+'[2]EXT(T)'!S80)","v":594.90000000000009},{"$f":"IF(+'[2]EXT(T)'!U80=\"\",\"\",+'[2]EXT(T)'!U80)","v":742.17687358303192},{"$f":"IF(+'[2]EXT(T)'!V80=\"\",\"\",+'[2]EXT(T)'!V80)","v":1337.076873583032},{"$f":"IF(+'[2]EXT(T)'!W80=\"\",\"\",+'[2]EXT(T)'!W80)","v":1653.1380580828279},{"$f":"IF(+'[2]EXT(T)'!X80=\"\",\"\",+'[2]EXT(T)'!X80)","v":1353.25},{"$f":"IF(+'[2]EXT(T)'!Y80=\"\",\"\",+'[2]EXT(T)'!Y80)","v":"n.d."},{"$f":"IF(+'[2]EXT(T)'!Z80=\"\",\"\",+'[2]EXT(T)'!Z80)","v":"n.d."},{"$f":"IF(+'[2]EXT(T)'!AA80=\"\",\"\",+'[2]EXT(T)'!AA80)","v":286.5},{"$f":"IF(+'[2]EXT(T)'!AB80=\"\",\"\",+'[2]EXT(T)'!AB80)","v":"n.d."},{"$f":"IF(+'[2]EXT(T)'!AC80=\"\",\"\",+'[2]EXT(T)'!AC80)","v":1360.5},{"$f":"IF(+'[2]EXT(T)'!AE80=\"\",\"\",+'[2]EXT(T)'!AE80)","v":3292.8880580828277},{"$f":"IF(+'[2]EXT(T)'!AF80=\"\",\"\",+'[2]EXT(T)'!AF80)","v":4653.3880580828281},{"$f":"IF(+'[2]EXT(T)'!AY80=\"\",\"\",+'[2]EXT(T)'!AY80)","v":10849.548957000001},{"$f":"IF(+'[2]EXT(T)'!AZ80=\"\",\"\",+'[2]EXT(T)'!AZ80)","v":"n.d."},{"$f":"IF(+'[2]EXT(T)'!AQ80=\"\",\"\",+'[2]EXT(T)'!AQ80-'[2]EXT(T)'!AQ79)","v":172.96873590000001},{"$f":"IF(+'[2]EXT(T)'!AR80=\"\",\"\",+'[2]EXT(T)'!AR80-'[2]EXT(T)'!AR79)","v":918.46},{"$f":"IF(+'[2]EXT(T)'!AS80=\"\",\"\",+'[2]EXT(T)'!AS80-'[2]EXT(T)'!AS79)","v":1089.3137000000002},{"$f":"IF(+'[2]EXT(T)'!AT80=\"\",\"\",+'[2]EXT(T)'!AT80-'[2]EXT(T)'!AT79)","v":664.95760000000018},{"$f":"IF(+'[2]EXT(T)'!AU80=\"\",\"\",+'[2]EXT(T)'!AU80-'[2]EXT(T)'!AU79)","v":189.70000000000005},{"$f":"IF(+'[2]EXT(T)'!AV80=\"\",\"\",+'[2]EXT(T)'!AV80-'[2]EXT(T)'!AV79)","v":755.19999999999982},"n.d.",3790.6000359,"n.d."]
[null,"IV",{"$f":"IF(+'[2]EXT(T)'!M81=\"\",\"\",+'[2]EXT(T)'!M81)","v":435.33136908501365},{"$f":"IF(+'[2]EXT(T)'!N81=\"\",\"\",+'[2]EXT(T)'!N81)","v":197.26},{"$f":"IF(+'[2]EXT(T)'!O81=\"\",\"\",+'[2]EXT(T)'!O81)","v":"n.d."},{"$f":"IF(+'[2]EXT(T)'!P81=\"\",\"\",+'[2]EXT(T)'!P81)","v":"n.d."},{"$f":"IF(+'[2]EXT(T)'!Q81=\"\",\"\",+'[2]EXT(T)'!Q81)","v":95.2},{"$f":"IF(+'[2]EXT(T)'!R81=\"\",\"\",+'[2]EXT(T)'!R81)","v":"n.d."},{"$f":"IF(+'[2]EXT(T)'!S81=\"\",\"\",+'[2]EXT(T)'!S81)","v":538.1},{"$f":"IF(+'[2]EXT(T)'!U81=\"\",\"\",+'[2]EXT(T)'!U81)","v":727.79136908501368},{"$f":"IF(+'[2]EXT(T)'!V81=\"\",\"\",+'[2]EXT(T)'!V81)","v":1265.8913690850136},{"$f":"IF(+'[2]EXT(T)'!W81=\"\",\"\",+'[2]EXT(T)'!W81)","v":2088.4694271678418},{"$f":"IF(+'[2]EXT(T)'!X81=\"\",\"\",+'[2]EXT(T)'!X81)","v":1550.51},{"$f":"IF(+'[2]EXT(T)'!Y81=\"\",\"\",+'[2]EXT(T)'!Y81)","v":"n.d."},{"$f":"IF(+'[2]EXT(T)'!Z81=\"\",\"\",+'[2]EXT(T)'!Z81)","v":"n.d."},{"$f":"IF(+'[2]EXT(T)'!AA81=\"\",\"\",+'[2]EXT(T)'!AA81)","v":381.7},{"$f":"IF(+'[2]EXT(T)'!AB81=\"\",\"\",+'[2]EXT(T)'!AB81)","v":"n.d."},{"$f":"IF(+'[2]EXT(T)'!AC81=\"\",\"\",+'[2]EXT(T)'!AC81)","v":1898.6},{"$f":"IF(+'[2]EXT(T)'!AE81=\"\",\"\",+'[2]EXT(T)'!AE81)","v":4020.6794271678414},{"$f":"IF(+'[2]EXT(T)'!AF81=\"\",\"\",+'[2]EXT(T)'!AF81)","v":5919.2794271678413},{"$f":"IF(+'[2]EXT(T)'!AY81=\"\",\"\",+'[2]EXT(T)'!AY81)","v":14714.647687500003},{"$f":"IF(+'[2]EXT(T)'!AZ81=\"\",\"\",+'[2]EXT(T)'!AZ81)","v":"n.d."},{"$f":"IF(+'[2]EXT(T)'!AQ81=\"\",\"\",+'[2]EXT(T)'!AQ81-'[2]EXT(T)'!AQ80)","v":162.98333049999997},{"$f":"IF(+'[2]EXT(T)'!AR81=\"\",\"\",+'[2]EXT(T)'!AR81-'[2]EXT(T)'!AR80)","v":958.40000000000009},{"$f":"IF(+'[2]EXT(T)'!AS81=\"\",\"\",+'[2]EXT(T)'!AS81-'[2]EXT(T)'!AS80)","v":1069.3751000000002},{"$f":"IF(+'[2]EXT(T)'!AT81=\"\",\"\",+'[2]EXT(T)'!AT81-'[2]EXT(T)'!AT80)","v":653.04030000000057},{"$f":"IF(+'[2]EXT(T)'!AU81=\"\",\"\",+'[2]EXT(T)'!AU81-'[2]EXT(T)'!AU80)","v":203.70000000000005},{"$f":"IF(+'[2]EXT(T)'!AV81=\"\",\"\",+'[2]EXT(T)'!AV81-'[2]EXT(T)'!AV80)","v":817.60000000000036},"n.d.",3865.0987305000008,"n.d."]
[2008,"I",{"$f":"IF(+'[2]EXT(T)'!M82=\"\",\"\",+'[2]EXT(T)'!M82)","v":616.44828151763886},{"$f":"IF(+'[2]EXT(T)'!N82=\"\",\"\",+'[2]EXT(T)'!N82)","v":486.55},{"$f":"IF(+'[2]EXT(T)'!O82=\"\",\"\",+'[2]EXT(T)'!O82)","v":179.74802},{"$f":"IF(+'[2]EXT(T)'!P82=\"\",\"\",+'[2]EXT(T)'!P82)","v":"n.d."},{"$f":"IF(+'[2]EXT(T)'!Q82=\"\",\"\",+'[2]EXT(T)'!Q82)","v":125},{"$f":"IF(+'[2]EXT(T)'!R82=\"\",\"\",+'[2]EXT(T)'!R82)","v":"n.d."},{"$f":"IF(+'[2]EXT(T)'!S82=\"\",\"\",+'[2]EXT(T)'!S82)","v":470.5},{"$f":"IF(+'[2]EXT(T)'!U82=\"\",\"\",+'[2]EXT(T)'!U82)","v":1407.7463015176388},{"$f":"IF(+'[2]EXT(T)'!V82=\"\",\"\",+'[2]EXT(T)'!V82)","v":1878.2463015176388},{"$f":"IF(+'[2]EXT(T)'!W82=\"\",\"\",+'[2]EXT(T)'!W82)","v":616.44828151763886},{"$f":"IF(+'[2]EXT(T)'!X82=\"\",\"\",+'[2]EXT(T)'!X82)","v":486.55},{"$f":"IF(+'[2]EXT(T)'!Y82=\"\",\"\",+'[2]EXT(T)'!Y82)","v":179.74802},{"$f":"IF(+'[2]EXT(T)'!Z82=\"\",\"\",+'[2]EXT(T)'!Z82)","v":"n.d."},{"$f":"IF(+'[2]EXT(T)'!AA82=\"\",\"\",+'[2]EXT(T)'!AA82)","v":125},{"$f":"IF(+'[2]EXT(T)'!AB82=\"\",\"\",+'[2]EXT(T)'!AB82)","v":"n.d."},{"$f":"IF(+'[2]EXT(T)'!AC82=\"\",\"\",+'[2]EXT(T)'!AC82)","v":470.5},{"$f":"IF(+'[2]EXT(T)'!AE82=\"\",\"\",+'[2]EXT(T)'!AE82)","v":1407.7463015176388},{"$f":"IF(+'[2]EXT(T)'!AF82=\"\",\"\",+'[2]EXT(T)'!AF82)","v":1878.2463015176388},{"$f":"IF(+'[2]EXT(T)'!AY82=\"\",\"\",+'[2]EXT(T)'!AY82)","v":3636.5639941500003},{"$f":"IF(+'[2]EXT(T)'!AZ82=\"\",\"\",+'[2]EXT(T)'!AZ82)","v":"n.d."},{"$f":"IF(+'[2]EXT(T)'!AQ82=\"\",\"\",+'[2]EXT(T)'!AQ82)","v":132.6662365},{"$f":"IF(+'[2]EXT(T)'!AR82=\"\",\"\",+'[2]EXT(T)'!AR82)","v":904.74},{"$f":"IF(+'[2]EXT(T)'!AS82=\"\",\"\",+'[2]EXT(T)'!AS82)","v":973.3732},{"$f":"IF(+'[2]EXT(T)'!AT82=\"\",\"\",+'[2]EXT(T)'!AT82)","v":621.28455765000012},{"$f":"IF(+'[2]EXT(T)'!AU82=\"\",\"\",+'[2]EXT(T)'!AU82)","v":195.7},{"$f":"IF(+'[2]EXT(T)'!AV82=\"\",\"\",+'[2]EXT(T)'!AV82)","v":808.8},"n.d.",{"$f":"IF(OR(W75=\"\",X75=\"\",Y75=\"\",Z75=\"\",AA75=\"\",AB75=\"\"),\"\",W75+X75+Y75+Z75+AA75+AB75)","v":3636.5639941500003},"n.d."]
[null,"II",{"$f":"IF(+'[2]EXT(T)'!M83=\"\",\"\",+'[2]EXT(T)'!M83)","v":834.94382114654343},{"$f":"IF(+'[2]EXT(T)'!N83=\"\",\"\",+'[2]EXT(T)'!N83)","v":53.849999999999994},{"$f":"IF(+'[2]EXT(T)'!O83=\"\",\"\",+'[2]EXT(T)'!O83)","v":186.93606000000003},{"$f":"IF(+'[2]EXT(T)'!P83=\"\",\"\",+'[2]EXT(T)'!P83)","v":"n.d."},{"$f":"IF(+'[2]EXT(T)'!Q83=\"\",\"\",+'[2]EXT(T)'!Q83)","v":129.5},{"$f":"IF(+'[2]EXT(T)'!R83=\"\",\"\",+'[2]EXT(T)'!R83)","v":"n.d."},{"$f":"IF(+'[2]EXT(T)'!S83=\"\",\"\",+'[2]EXT(T)'!S83)","v":653.79999999999995},{"$f":"IF(+'[2]EXT(T)'!U83=\"\",\"\",+'[2]EXT(T)'!U83)","v":1205.2298811465434},{"$f":"IF(+'[2]EXT(T)'!V83=\"\",\"\",+'[2]EXT(T)'!V83)","v":1859.0298811465434},{"$f":"IF(+'[2]EXT(T)'!W83=\"\",\"\",+'[2]EXT(T)'!W83)","v":1451.3921026641824},{"$f":"IF(+'[2]EXT(T)'!X83=\"\",\"\",+'[2]EXT(T)'!X83)","v":540.4},{"$f":"IF(+'[2]EXT(T)'!Y83=\"\",\"\",+'[2]EXT(T)'!Y83)","v":366.68407999999999},{"$f":"IF(+'[2]EXT(T)'!Z83=\"\",\"\",+'[2]EXT(T)'!Z83)","v":"n.d."},{"$f":"IF(+'[2]EXT(T)'!AA83=\"\",\"\",+'[2]EXT(T)'!AA83)","v":254.5},{"$f":"IF(+'[2]EXT(T)'!AB83=\"\",\"\",+'[2]EXT(T)'!AB83)","v":"n.d."},{"$f":"IF(+'[2]EXT(T)'!AC83=\"\",\"\",+'[2]EXT(T)'!AC83)","v":1124.3},{"$f":"IF(+'[2]EXT(T)'!AE83=\"\",\"\",+'[2]EXT(T)'!AE83)","v":2612.9761826641825},{"$f":"IF(+'[2]EXT(T)'!AF83=\"\",\"\",+'[2]EXT(T)'!AF83)","v":3737.2761826641822},{"$f":"IF(+'[2]EXT(T)'!AY83=\"\",\"\",+'[2]EXT(T)'!AY83)","v":7667.1390958300008},{"$f":"IF(+'[2]EXT(T)'!AZ83=\"\",\"\",+'[2]EXT(T)'!AZ83)","v":"n.d."},{"$f":"IF(+'[2]EXT(T)'!AQ83=\"\",\"\",+'[2]EXT(T)'!AQ83-'[2]EXT(T)'!AQ82)","v":145.30890439999999},{"$f":"IF(+'[2]EXT(T)'!AR83=\"\",\"\",+'[2]EXT(T)'!AR83-'[2]EXT(T)'!AR82)","v":1010.8799999999999},{"$f":"IF(+'[2]EXT(T)'!AS83=\"\",\"\",+'[2]EXT(T)'!AS83-'[2]EXT(T)'!AS82)","v":1167.5671000000002},{"$f":"IF(+'[2]EXT(T)'!AT83=\"\",\"\",+'[2]EXT(T)'!AT83-'[2]EXT(T)'!AT82)","v":704.5190972800001},{"$f":"IF(+'[2]EXT(T)'!AU83=\"\",\"\",+'[2]EXT(T)'!AU83-'[2]EXT(T)'!AU82)","v":208.10000000000002},{"$f":"IF(+'[2]EXT(T)'!AV83=\"\",\"\",+'[2]EXT(T)'!AV83-'[2]EXT(T)'!AV82)","v":794.2},"n.d.",4030.5751016800004,"n.d."]
[null,"III",{"$f":"IF(+'[2]EXT(T)'!M84=\"\",\"\",+'[2]EXT(T)'!M84)","v":390.69467712640392},{"$f":"IF(+'[2]EXT(T)'!N84=\"\",\"\",+'[2]EXT(T)'!N84)","v":31.800000000000011},{"$f":"IF(+'[2]EXT(T)'!O84=\"\",\"\",+'[2]EXT(T)'!O84)","v":182.06613999999999},{"$f":"IF(+'[2]EXT(T)'!P84=\"\",\"\",+'[2]EXT(T)'!P84)","v":"n.d."},{"$f":"IF(+'[2]EXT(T)'!Q84=\"\",\"\",+'[2]EXT(T)'!Q84)","v":202.3},{"$f":"IF(+'[2]EXT(T)'!R84=\"\",\"\",+'[2]EXT(T)'!R84)","v":"n.d."},{"$f":"IF(+'[2]EXT(T)'!S84=\"\",\"\",+'[2]EXT(T)'!S84)","v":413.40000000000003},{"$f":"IF(+'[2]EXT(T)'!U84=\"\",\"\",+'[2]EXT(T)'!U84)","v":806.86081712640384},{"$f":"IF(+'[2]EXT(T)'!V84=\"\",\"\",+'[2]EXT(T)'!V84)","v":1220.2608171264039},{"$f":"IF(+'[2]EXT(T)'!W84=\"\",\"\",+'[2]EXT(T)'!W84)","v":1842.0867797905862},{"$f":"IF(+'[2]EXT(T)'!X84=\"\",\"\",+'[2]EXT(T)'!X84)","v":572.20000000000005},{"$f":"IF(+'[2]EXT(T)'!Y84=\"\",\"\",+'[2]EXT(T)'!Y84)","v":548.75022000000001},{"$f":"IF(+'[2]EXT(T)'!Z84=\"\",\"\",+'[2]EXT(T)'!Z84)","v":"n.d."},{"$f":"IF(+'[2]EXT(T)'!AA84=\"\",\"\",+'[2]EXT(T)'!AA84)","v":456.8},{"$f":"IF(+'[2]EXT(T)'!AB84=\"\",\"\",+'[2]EXT(T)'!AB84)","v":"n.d."},{"$f":"IF(+'[2]EXT(T)'!AC84=\"\",\"\",+'[2]EXT(T)'!AC84)","v":1537.7},{"$f":"IF(+'[2]EXT(T)'!AE84=\"\",\"\",+'[2]EXT(T)'!AE84)","v":3419.8369997905866},{"$f":"IF(+'[2]EXT(T)'!AF84=\"\",\"\",+'[2]EXT(T)'!AF84)","v":4957.5369997905864},{"$f":"IF(+'[2]EXT(T)'!AY84=\"\",\"\",+'[2]EXT(T)'!AY84)","v":11645.350822230001},{"$f":"IF(+'[2]EXT(T)'!AZ84=\"\",\"\",+'[2]EXT(T)'!AZ84)","v":"n.d."},{"$f":"IF(+'[2]EXT(T)'!AQ84=\"\",\"\",+'[2]EXT(T)'!AQ84-'[2]EXT(T)'!AQ83)","v":152.13846619999998},{"$f":"IF(+'[2]EXT(T)'!AR84=\"\",\"\",+'[2]EXT(T)'!AR84-'[2]EXT(T)'!AR83)","v":931.44},{"$f":"IF(+'[2]EXT(T)'!AS84=\"\",\"\",+'[2]EXT(T)'!AS84-'[2]EXT(T)'!AS83)","v":1155.0393000000004},{"$f":"IF(+'[2]EXT(T)'!AT84=\"\",\"\",+'[2]EXT(T)'!AT84-'[2]EXT(T)'!AT83)","v":706.39396020000027},{"$f":"IF(+'[2]EXT(T)'!AU84=\"\",\"\",+'[2]EXT(T)'!AU84-'[2]EXT(T)'!AU83)","v":207.2},{"$f":"IF(+'[2]EXT(T)'!AV84=\"\",\"\",+'[2]EXT(T)'!AV84-'[2]EXT(T)'!AV83)","v":826},"n.d.",3978.2117264000008,"n.d."]
[null,"IV",{"$f":"IF(+'[2]EXT(T)'!M85=\"\",\"\",+'[2]EXT(T)'!M85)","v":477.85439710530824},{"$f":"IF(+'[2]EXT(T)'!N85=\"\",\"\",+'[2]EXT(T)'!N85)","v":330.85},{"$f":"IF(+'[2]EXT(T)'!O85=\"\",\"\",+'[2]EXT(T)'!O85)","v":188.86088999999998},{"$f":"IF(+'[2]EXT(T)'!P85=\"\",\"\",+'[2]EXT(T)'!P85)","v":"n.d."},{"$f":"IF(+'[2]EXT(T)'!Q85=\"\",\"\",+'[2]EXT(T)'!Q85)","v":170.5},{"$f":"IF(+'[2]EXT(T)'!R85=\"\",\"\",+'[2]EXT(T)'!R85)","v":"n.d."},{"$f":"IF(+'[2]EXT(T)'!S85=\"\",\"\",+'[2]EXT(T)'!S85)","v":609},{"$f":"IF(+'[2]EXT(T)'!U85=\"\",\"\",+'[2]EXT(T)'!U85)","v":1168.0652871053082},{"$f":"IF(+'[2]EXT(T)'!V85=\"\",\"\",+'[2]EXT(T)'!V85)","v":1777.0652871053082},{"$f":"IF(+'[2]EXT(T)'!W85=\"\",\"\",+'[2]EXT(T)'!W85)","v":2319.9411768958944},{"$f":"IF(+'[2]EXT(T)'!X85=\"\",\"\",+'[2]EXT(T)'!X85)","v":903.05000000000007},{"$f":"IF(+'[2]EXT(T)'!Y85=\"\",\"\",+'[2]EXT(T)'!Y85)","v":737.61111000000005},{"$f":"IF(+'[2]EXT(T)'!Z85=\"\",\"\",+'[2]EXT(T)'!Z85)","v":"n.d."},{"$f":"IF(+'[2]EXT(T)'!AA85=\"\",\"\",+'[2]EXT(T)'!AA85)","v":627.29999999999995},{"$f":"IF(+'[2]EXT(T)'!AB85=\"\",\"\",+'[2]EXT(T)'!AB85)","v":"n.d."},{"$f":"IF(+'[2]EXT(T)'!AC85=\"\",\"\",+'[2]EXT(T)'!AC85)","v":2146.6999999999998},{"$f":"IF(+'[2]EXT(T)'!AE85=\"\",\"\",+'[2]EXT(T)'!AE85)","v":4587.9022868958946},{"$f":"IF(+'[2]EXT(T)'!AF85=\"\",\"\",+'[2]EXT(T)'!AF85)","v":6734.6022868958944},{"$f":"IF(+'[2]EXT(T)'!AY85=\"\",\"\",+'[2]EXT(T)'!AY85)","v":15387.371437070002},{"$f":"IF(+'[2]EXT(T)'!AZ85=\"\",\"\",+'[2]EXT(T)'!AZ85)","v":"n.d."},{"$f":"IF(+'[2]EXT(T)'!AQ85=\"\",\"\",+'[2]EXT(T)'!AQ85-'[2]EXT(T)'!AQ84)","v":153.76619790000007},{"$f":"IF(+'[2]EXT(T)'!AR85=\"\",\"\",+'[2]EXT(T)'!AR85-'[2]EXT(T)'!AR84)","v":895.02000000000044},{"$f":"IF(+'[2]EXT(T)'!AS85=\"\",\"\",+'[2]EXT(T)'!AS85-'[2]EXT(T)'!AS84)","v":1018.7510000000002},{"$f":"IF(+'[2]EXT(T)'!AT85=\"\",\"\",+'[2]EXT(T)'!AT85-'[2]EXT(T)'!AT84)","v":674.88341693999973},{"$f":"IF(+'[2]EXT(T)'!AU85=\"\",\"\",+'[2]EXT(T)'!AU85-'[2]EXT(T)'!AU84)","v":207.10000000000002},{"$f":"IF(+'[2]EXT(T)'!AV85=\"\",\"\",+'[2]EXT(T)'!AV85-'[2]EXT(T)'!AV84)","v":792.5},"n.d.",3742.0206148400002,"n.d."]
[2009,"I",{"$f":"IF(+'[2]EXT(T)'!M86=\"\",\"\",+'[2]EXT(T)'!M86)","v":561.6165942573067},{"$f":"IF(+'[2]EXT(T)'!N86=\"\",\"\",+'[2]EXT(T)'!N86)","v":-192.7},{"$f":"IF(+'[2]EXT(T)'!O86=\"\",\"\",+'[2]EXT(T)'!O86)","v":130.73408999999998},{"$f":"IF(+'[2]EXT(T)'!P86=\"\",\"\",+'[2]EXT(T)'!P86)","v":131.73761397840568},{"$f":"IF(+'[2]EXT(T)'!Q86=\"\",\"\",+'[2]EXT(T)'!Q86)","v":127.1},{"$f":"IF(+'[2]EXT(T)'!R86=\"\",\"\",+'[2]EXT(T)'!R86)","v":"n.d."},{"$f":"IF(+'[2]EXT(T)'!S86=\"\",\"\",+'[2]EXT(T)'!S86)","v":483.79999999999995},{"$f":"IF(+'[2]EXT(T)'!U86=\"\",\"\",+'[2]EXT(T)'!U86)","v":758.48829823571236},{"$f":"IF(+'[2]EXT(T)'!V86=\"\",\"\",+'[2]EXT(T)'!V86)","v":1242.2882982357123},{"$f":"IF(+'[2]EXT(T)'!W86=\"\",\"\",+'[2]EXT(T)'!W86)","v":561.6165942573067},{"$f":"IF(+'[2]EXT(T)'!X86=\"\",\"\",+'[2]EXT(T)'!X86)","v":-192.7},{"$f":"IF(+'[2]EXT(T)'!Y86=\"\",\"\",+'[2]EXT(T)'!Y86)","v":130.73408999999998},{"$f":"IF(+'[2]EXT(T)'!Z86=\"\",\"\",+'[2]EXT(T)'!Z86)","v":131.73761397840568},{"$f":"IF(+'[2]EXT(T)'!AA86=\"\",\"\",+'[2]EXT(T)'!AA86)","v":127.1},{"$f":"IF(+'[2]EXT(T)'!AB86=\"\",\"\",+'[2]EXT(T)'!AB86)","v":"n.d."},{"$f":"IF(+'[2]EXT(T)'!AC86=\"\",\"\",+'[2]EXT(T)'!AC86)","v":483.79999999999995},{"$f":"IF(+'[2]EXT(T)'!AE86=\"\",\"\",+'[2]EXT(T)'!AE86)","v":758.48829823571236},{"$f":"IF(+'[2]EXT(T)'!AF86=\"\",\"\",+'[2]EXT(T)'!AF86)","v":1242.2882982357123},{"$f":"IF(+'[2]EXT(T)'!AY86=\"\",\"\",+'[2]EXT(T)'!AY86)","v":3416.3621594600008},{"$f":"IF(+'[2]EXT(T)'!AZ86=\"\",\"\",+'[2]EXT(T)'!AZ86)","v":3491.7621594600009},{"$f":"IF(+'[2]EXT(T)'!AQ86=\"\",\"\",+'[2]EXT(T)'!AQ86)","v":123.3475945},{"$f":"IF(+'[2]EXT(T)'!AR86=\"\",\"\",+'[2]EXT(T)'!AR86)","v":828.87000000000012},{"$f":"IF(+'[2]EXT(T)'!AS86=\"\",\"\",+'[2]EXT(T)'!AS86)","v":916.33730000000014},{"$f":"IF(+'[2]EXT(T)'!AT86=\"\",\"\",+'[2]EXT(T)'!AT86)","v":609.60726496000018},{"$f":"IF(+'[2]EXT(T)'!AU86=\"\",\"\",+'[2]EXT(T)'!AU86)","v":195.9},{"$f":"IF(+'[2]EXT(T)'!AV86=\"\",\"\",+'[2]EXT(T)'!AV86)","v":742.3},{"$f":"IF(+'[2]EXT(T)'!AW86=\"\",\"\",+'[2]EXT(T)'!AW86)","v":75.400000000000006},{"$f":"IF(OR(W79=\"\",X79=\"\",Y79=\"\",Z79=\"\",AA79=\"\",AB79=\"\"),\"\",W79+X79+Y79+Z79+AA79+AB79)","v":3416.3621594600008},{"$f":"IF(OR(X79=\"\",Y79=\"\",Z79=\"\",AA79=\"\",AB79=\"\",AC79=\"\",W79=\"\"),\"\",X79+W79+Y79+Z79+AA79+AB79+AC79)","v":3491.7621594600009}]
[null,"II",{"$f":"IF(+'[2]EXT(T)'!M87=\"\",\"\",+'[2]EXT(T)'!M87)","v":243.78942968760867},{"$f":"IF(+'[2]EXT(T)'!N87=\"\",\"\",+'[2]EXT(T)'!N87)","v":65.099999999999994},{"$f":"IF(+'[2]EXT(T)'!O87=\"\",\"\",+'[2]EXT(T)'!O87)","v":125.36618000000001},{"$f":"IF(+'[2]EXT(T)'!P87=\"\",\"\",+'[2]EXT(T)'!P87)","v":134.17853984758472},{"$f":"IF(+'[2]EXT(T)'!Q87=\"\",\"\",+'[2]EXT(T)'!Q87)","v":105.8},{"$f":"IF(+'[2]EXT(T)'!R87=\"\",\"\",+'[2]EXT(T)'!R87)","v":"n.d."},{"$f":"IF(+'[2]EXT(T)'!S87=\"\",\"\",+'[2]EXT(T)'!S87)","v":415},{"$f":"IF(+'[2]EXT(T)'!U87=\"\",\"\",+'[2]EXT(T)'!U87)","v":674.2341495351933},{"$f":"IF(+'[2]EXT(T)'!V87=\"\",\"\",+'[2]EXT(T)'!V87)","v":1089.2341495351934},{"$f":"IF(+'[2]EXT(T)'!W87=\"\",\"\",+'[2]EXT(T)'!W87)","v":805.40602394491543},{"$f":"IF(+'[2]EXT(T)'!X87=\"\",\"\",+'[2]EXT(T)'!X87)","v":-127.6},{"$f":"IF(+'[2]EXT(T)'!Y87=\"\",\"\",+'[2]EXT(T)'!Y87)","v":256.10027000000002},{"$f":"IF(+'[2]EXT(T)'!Z87=\"\",\"\",+'[2]EXT(T)'!Z87)","v":265.91615382599036},{"$f":"IF(+'[2]EXT(T)'!AA87=\"\",\"\",+'[2]EXT(T)'!AA87)","v":232.89999999999998},{"$f":"IF(+'[2]EXT(T)'!AB87=\"\",\"\",+'[2]EXT(T)'!AB87)","v":"n.d."},{"$f":"IF(+'[2]EXT(T)'!AC87=\"\",\"\",+'[2]EXT(T)'!AC87)","v":898.8},{"$f":"IF(+'[2]EXT(T)'!AE87=\"\",\"\",+'[2]EXT(T)'!AE87)","v":1432.7224477709055},{"$f":"IF(+'[2]EXT(T)'!AF87=\"\",\"\",+'[2]EXT(T)'!AF87)","v":2331.5224477709057},{"$f":"IF(+'[2]EXT(T)'!AY87=\"\",\"\",+'[2]EXT(T)'!AY87)","v":6985.7703709900006},{"$f":"IF(+'[2]EXT(T)'!AZ87=\"\",\"\",+'[2]EXT(T)'!AZ87)","v":7139.7683709900002},{"$f":"IF(+'[2]EXT(T)'!AQ87=\"\",\"\",+'[2]EXT(T)'!AQ87-'[2]EXT(T)'!AQ86)","v":130.67727739999998},{"$f":"IF(+'[2]EXT(T)'!AR87=\"\",\"\",+'[2]EXT(T)'!AR87-'[2]EXT(T)'!AR86)","v":865.03},{"$f":"IF(+'[2]EXT(T)'!AS87=\"\",\"\",+'[2]EXT(T)'!AS87-'[2]EXT(T)'!AS86)","v":1020.8684000000001},{"$f":"IF(+'[2]EXT(T)'!AT87=\"\",\"\",+'[2]EXT(T)'!AT87-'[2]EXT(T)'!AT86)","v":607.53253413000027},{"$f":"IF(+'[2]EXT(T)'!AU87=\"\",\"\",+'[2]EXT(T)'!AU87-'[2]EXT(T)'!AU86)","v":190.79999999999998},{"$f":"IF(+'[2]EXT(T)'!AV87=\"\",\"\",+'[2]EXT(T)'!AV87-'[2]EXT(T)'!AV86)","v":754.5},{"$f":"IF(+'[2]EXT(T)'!AW87=\"\",\"\",+'[2]EXT(T)'!AW87-'[2]EXT(T)'!AW86)","v":78.597999999999985},3569.4082115300007,3648.0062115300007]
[null,"III",{"$f":"IF(+'[2]EXT(T)'!M88=\"\",\"\",+'[2]EXT(T)'!M88)","v":244.25435564250077},{"$f":"IF(+'[2]EXT(T)'!N88=\"\",\"\",+'[2]EXT(T)'!N88)","v":143.96},{"$f":"IF(+'[2]EXT(T)'!O88=\"\",\"\",+'[2]EXT(T)'!O88)","v":127.84493999999999},{"$f":"IF(+'[2]EXT(T)'!P88=\"\",\"\",+'[2]EXT(T)'!P88)","v":127.97435825662515},{"$f":"IF(+'[2]EXT(T)'!Q88=\"\",\"\",+'[2]EXT(T)'!Q88)","v":58.9},{"$f":"IF(+'[2]EXT(T)'!R88=\"\",\"\",+'[2]EXT(T)'!R88)","v":"n.d."},{"$f":"IF(+'[2]EXT(T)'!S88=\"\",\"\",+'[2]EXT(T)'!S88)","v":135.39999999999995},{"$f":"IF(+'[2]EXT(T)'!U88=\"\",\"\",+'[2]EXT(T)'!U88)","v":702.93365389912583},{"$f":"IF(+'[2]EXT(T)'!V88=\"\",\"\",+'[2]EXT(T)'!V88)","v":838.33365389912581},{"$f":"IF(+'[2]EXT(T)'!W88=\"\",\"\",+'[2]EXT(T)'!W88)","v":1049.6603795874162},{"$f":"IF(+'[2]EXT(T)'!X88=\"\",\"\",+'[2]EXT(T)'!X88)","v":16.360000000000014},{"$f":"IF(+'[2]EXT(T)'!Y88=\"\",\"\",+'[2]EXT(T)'!Y88)","v":383.94521000000003},{"$f":"IF(+'[2]EXT(T)'!Z88=\"\",\"\",+'[2]EXT(T)'!Z88)","v":393.89051208261549},{"$f":"IF(+'[2]EXT(T)'!AA88=\"\",\"\",+'[2]EXT(T)'!AA88)","v":291.79999999999995},{"$f":"IF(+'[2]EXT(T)'!AB88=\"\",\"\",+'[2]EXT(T)'!AB88)","v":"n.d."},{"$f":"IF(+'[2]EXT(T)'!AC88=\"\",\"\",+'[2]EXT(T)'!AC88)","v":1034.1999999999998},{"$f":"IF(+'[2]EXT(T)'!AE88=\"\",\"\",+'[2]EXT(T)'!AE88)","v":2135.6561016700316},{"$f":"IF(+'[2]EXT(T)'!AF88=\"\",\"\",+'[2]EXT(T)'!AF88)","v":3169.8561016700314},{"$f":"IF(+'[2]EXT(T)'!AY88=\"\",\"\",+'[2]EXT(T)'!AY88)","v":10543.450799509999},{"$f":"IF(+'[2]EXT(T)'!AZ88=\"\",\"\",+'[2]EXT(T)'!AZ88)","v":10779.34479951},{"$f":"IF(+'[2]EXT(T)'!AQ88=\"\",\"\",+'[2]EXT(T)'!AQ88-'[2]EXT(T)'!AQ87)","v":121.57506319999999},{"$f":"IF(+'[2]EXT(T)'!AR88=\"\",\"\",+'[2]EXT(T)'!AR88-'[2]EXT(T)'!AR87)","v":829.98},{"$f":"IF(+'[2]EXT(T)'!AS88=\"\",\"\",+'[2]EXT(T)'!AS88-'[2]EXT(T)'!AS87)","v":1035.1042},{"$f":"IF(+'[2]EXT(T)'!AT88=\"\",\"\",+'[2]EXT(T)'!AT88-'[2]EXT(T)'!AT87)","v":595.82116532000009},{"$f":"IF(+'[2]EXT(T)'!AU88=\"\",\"\",+'[2]EXT(T)'!AU88-'[2]EXT(T)'!AU87)","v":184.2},{"$f":"IF(+'[2]EXT(T)'!AV88=\"\",\"\",+'[2]EXT(T)'!AV88-'[2]EXT(T)'!AV87)","v":790.99999999999977},{"$f":"IF(+'[2]EXT(T)'!AW88=\"\",\"\",+'[2]EXT(T)'!AW88-'[2]EXT(T)'!AW87)","v":81.896000000000015},3557.6804285199996,3639.5764285199998]
[null,"IV",{"$f":"IF(+'[2]EXT(T)'!M89=\"\",\"\",+'[2]EXT(T)'!M89)","v":393.90932196121139},{"$f":"IF(+'[2]EXT(T)'!N89=\"\",\"\",+'[2]EXT(T)'!N89)","v":349.47},{"$f":"IF(+'[2]EXT(T)'!O89=\"\",\"\",+'[2]EXT(T)'!O89)","v":138.37890999999999},{"$f":"IF(+'[2]EXT(T)'!P89=\"\",\"\",+'[2]EXT(T)'!P89)","v":114.95758641209315},{"$f":"IF(+'[2]EXT(T)'!Q89=\"\",\"\",+'[2]EXT(T)'!Q89)","v":142.1},{"$f":"IF(+'[2]EXT(T)'!R89=\"\",\"\",+'[2]EXT(T)'!R89)","v":"n.d."},{"$f":"IF(+'[2]EXT(T)'!S89=\"\",\"\",+'[2]EXT(T)'!S89)","v":225.09999999999997},{"$f":"IF(+'[2]EXT(T)'!U89=\"\",\"\",+'[2]EXT(T)'!U89)","v":1138.8158183733046},{"$f":"IF(+'[2]EXT(T)'!V89=\"\",\"\",+'[2]EXT(T)'!V89)","v":1363.9158183733045},{"$f":"IF(+'[2]EXT(T)'!W89=\"\",\"\",+'[2]EXT(T)'!W89)","v":1443.5697015486276},{"$f":"IF(+'[2]EXT(T)'!X89=\"\",\"\",+'[2]EXT(T)'!X89)","v":365.83000000000004},{"$f":"IF(+'[2]EXT(T)'!Y89=\"\",\"\",+'[2]EXT(T)'!Y89)","v":522.32411999999999},{"$f":"IF(+'[2]EXT(T)'!Z89=\"\",\"\",+'[2]EXT(T)'!Z89)","v":508.84809849470867},{"$f":"IF(+'[2]EXT(T)'!AA89=\"\",\"\",+'[2]EXT(T)'!AA89)","v":433.9},{"$f":"IF(+'[2]EXT(T)'!AB89=\"\",\"\",+'[2]EXT(T)'!AB89)","v":"n.d."},{"$f":"IF(+'[2]EXT(T)'!AC89=\"\",\"\",+'[2]EXT(T)'!AC89)","v":1259.2999999999997},{"$f":"IF(+'[2]EXT(T)'!AE89=\"\",\"\",+'[2]EXT(T)'!AE89)","v":3274.4719200433365},{"$f":"IF(+'[2]EXT(T)'!AF89=\"\",\"\",+'[2]EXT(T)'!AF89)","v":4533.7719200433357},{"$f":"IF(+'[2]EXT(T)'!AY89=\"\",\"\",+'[2]EXT(T)'!AY89)","v":14000.728877810001},{"$f":"IF(+'[2]EXT(T)'!AZ89=\"\",\"\",+'[2]EXT(T)'!AZ89)","v":14328.124877810002},{"$f":"IF(+'[2]EXT(T)'!AQ89=\"\",\"\",+'[2]EXT(T)'!AQ89-'[2]EXT(T)'!AQ88)","v":112.9579382},{"$f":"IF(+'[2]EXT(T)'!AR89=\"\",\"\",+'[2]EXT(T)'!AR89-'[2]EXT(T)'!AR88)","v":863.27000000000044},{"$f":"IF(+'[2]EXT(T)'!AS89=\"\",\"\",+'[2]EXT(T)'!AS89-'[2]EXT(T)'!AS88)","v":939.97690000000011},{"$f":"IF(+'[2]EXT(T)'!AT89=\"\",\"\",+'[2]EXT(T)'!AT89-'[2]EXT(T)'!AT88)","v":589.87324009999975},{"$f":"IF(+'[2]EXT(T)'!AU89=\"\",\"\",+'[2]EXT(T)'!AU89-'[2]EXT(T)'!AU88)","v":197.5},{"$f":"IF(+'[2]EXT(T)'!AV89=\"\",\"\",+'[2]EXT(T)'!AV89-'[2]EXT(T)'!AV88)","v":753.70000000000027},{"$f":"IF(+'[2]EXT(T)'!AW89=\"\",\"\",+'[2]EXT(T)'!AW89-'[2]EXT(T)'!AW88)","v":91.50200000000001},3457.2780783000003,3548.7800783000002]
[2010,"I",{"$f":"IF(+'[2]EXT(T)'!M90=\"\",\"\",+'[2]EXT(T)'!M90)","v":492.70524339345383},{"$f":"IF(+'[2]EXT(T)'!N90=\"\",\"\",+'[2]EXT(T)'!N90)","v":-275.54000000000002},{"$f":"IF(+'[2]EXT(T)'!O90=\"\",\"\",+'[2]EXT(T)'!O90)","v":171.79656},{"$f":"IF(+'[2]EXT(T)'!P90=\"\",\"\",+'[2]EXT(T)'!P90)","v":476.21133493471467},{"$f":"IF(+'[2]EXT(T)'!Q90=\"\",\"\",+'[2]EXT(T)'!Q90)","v":105.8},{"$f":"IF(+'[2]EXT(T)'!R90=\"\",\"\",+'[2]EXT(T)'!R90)","v":683.4},{"$f":"IF(+'[2]EXT(T)'!S90=\"\",\"\",+'[2]EXT(T)'!S90)","v":925.9},{"$f":"IF(+'[2]EXT(T)'!U90=\"\",\"\",+'[2]EXT(T)'!U90)","v":1654.3731383281684},{"$f":"IF(+'[2]EXT(T)'!V90=\"\",\"\",+'[2]EXT(T)'!V90)","v":2580.2731383281684},{"$f":"IF(+'[2]EXT(T)'!W90=\"\",\"\",+'[2]EXT(T)'!W90)","v":492.70524339345383},{"$f":"IF(+'[2]EXT(T)'!X90=\"\",\"\",+'[2]EXT(T)'!X90)","v":-275.54000000000002},{"$f":"IF(+'[2]EXT(T)'!Y90=\"\",\"\",+'[2]EXT(T)'!Y90)","v":171.79656},{"$f":"IF(+'[2]EXT(T)'!Z90=\"\",\"\",+'[2]EXT(T)'!Z90)","v":476.21133493471467},{"$f":"IF(+'[2]EXT(T)'!AA90=\"\",\"\",+'[2]EXT(T)'!AA90)","v":105.8},{"$f":"IF(+'[2]EXT(T)'!AB90=\"\",\"\",+'[2]EXT(T)'!AB90)","v":683.4},{"$f":"IF(+'[2]EXT(T)'!AC90=\"\",\"\",+'[2]EXT(T)'!AC90)","v":925.9},{"$f":"IF(+'[2]EXT(T)'!AE90=\"\",\"\",+'[2]EXT(T)'!AE90)","v":1654.3731383281684},{"$f":"IF(+'[2]EXT(T)'!AF90=\"\",\"\",+'[2]EXT(T)'!AF90)","v":2580.2731383281684},{"$f":"IF(+'[2]EXT(T)'!AY90=\"\",\"\",+'[2]EXT(T)'!AY90)","v":3538.7320745123257},{"$f":"IF(+'[2]EXT(T)'!AZ90=\"\",\"\",+'[2]EXT(T)'!AZ90)","v":3634.7320745123257},{"$f":"IF(+'[2]EXT(T)'!AQ90=\"\",\"\",+'[2]EXT(T)'!AQ90)","v":116.6630777},{"$f":"IF(+'[2]EXT(T)'!AR90=\"\",\"\",+'[2]EXT(T)'!AR90)","v":833.1400000000001},{"$f":"IF(+'[2]EXT(T)'!AS90=\"\",\"\",+'[2]EXT(T)'!AS90)","v":890.59530000000007},{"$f":"IF(+'[2]EXT(T)'!AT90=\"\",\"\",+'[2]EXT(T)'!AT90)","v":572.34156342000017},{"$f":"IF(+'[2]EXT(T)'!AU90=\"\",\"\",+'[2]EXT(T)'!AU90)","v":201.8},{"$f":"IF(+'[2]EXT(T)'!AV90=\"\",\"\",+'[2]EXT(T)'!AV90)","v":924.19213339232522},{"$f":"IF(+'[2]EXT(T)'!AW90=\"\",\"\",+'[2]EXT(T)'!AW90)","v":96},{"$f":"IF(OR(W83=\"\",X83=\"\",Y83=\"\",Z83=\"\",AA83=\"\",AB83=\"\"),\"\",W83+X83+Y83+Z83+AA83+AB83)","v":3538.7320745123257},3634.7320745123257]
[null,"II",{"$f":"IF(+'[2]EXT(T)'!M91=\"\",\"\",+'[2]EXT(T)'!M91)","v":443.00536426466795},{"$f":"IF(+'[2]EXT(T)'!N91=\"\",\"\",+'[2]EXT(T)'!N91)","v":13.32},{"$f":"IF(+'[2]EXT(T)'!O91=\"\",\"\",+'[2]EXT(T)'!O91)","v":148.92963999999998},{"$f":"IF(+'[2]EXT(T)'!P91=\"\",\"\",+'[2]EXT(T)'!P91)","v":59.900779574713582},{"$f":"IF(+'[2]EXT(T)'!Q91=\"\",\"\",+'[2]EXT(T)'!Q91)","v":101.1},{"$f":"IF(+'[2]EXT(T)'!R91=\"\",\"\",+'[2]EXT(T)'!R91)","v":212.3},{"$f":"IF(+'[2]EXT(T)'!S91=\"\",\"\",+'[2]EXT(T)'!S91)","v":771.1},{"$f":"IF(+'[2]EXT(T)'!U91=\"\",\"\",+'[2]EXT(T)'!U91)","v":978.55578383938155},{"$f":"IF(+'[2]EXT(T)'!V91=\"\",\"\",+'[2]EXT(T)'!V91)","v":1749.6557838393815},{"$f":"IF(+'[2]EXT(T)'!W91=\"\",\"\",+'[2]EXT(T)'!W91)","v":935.71060765812172},{"$f":"IF(+'[2]EXT(T)'!X91=\"\",\"\",+'[2]EXT(T)'!X91)","v":-262.22000000000003},{"$f":"IF(+'[2]EXT(T)'!Y91=\"\",\"\",+'[2]EXT(T)'!Y91)","v":320.72619999999995},{"$f":"IF(+'[2]EXT(T)'!Z91=\"\",\"\",+'[2]EXT(T)'!Z91)","v":536.11211450942824},{"$f":"IF(+'[2]EXT(T)'!AA91=\"\",\"\",+'[2]EXT(T)'!AA91)","v":206.89999999999998},{"$f":"IF(+'[2]EXT(T)'!AB91=\"\",\"\",+'[2]EXT(T)'!AB91)","v":895.7},{"$f":"IF(+'[2]EXT(T)'!AC91=\"\",\"\",+'[2]EXT(T)'!AC91)","v":1697},{"$f":"IF(+'[2]EXT(T)'!AE91=\"\",\"\",+'[2]EXT(T)'!AE91)","v":2632.9289221675499},{"$f":"IF(+'[2]EXT(T)'!AF91=\"\",\"\",+'[2]EXT(T)'!AF91)","v":4329.9289221675499},{"$f":"IF(+'[2]EXT(T)'!AY91=\"\",\"\",+'[2]EXT(T)'!AY91)","v":7420.5132580146983},{"$f":"IF(+'[2]EXT(T)'!AZ91=\"\",\"\",+'[2]EXT(T)'!AZ91)","v":7612.5132580146983},{"$f":"IF(+'[2]EXT(T)'!AQ91=\"\",\"\",+'[2]EXT(T)'!AQ91-'[2]EXT(T)'!AQ90)","v":131.40271490000001},{"$f":"IF(+'[2]EXT(T)'!AR91=\"\",\"\",+'[2]EXT(T)'!AR91-'[2]EXT(T)'!AR90)","v":915.61999999999989},{"$f":"IF(+'[2]EXT(T)'!AS91=\"\",\"\",+'[2]EXT(T)'!AS91-'[2]EXT(T)'!AS90)","v":1095.7157999999999},{"$f":"IF(+'[2]EXT(T)'!AT91=\"\",\"\",+'[2]EXT(T)'!AT91-'[2]EXT(T)'!AT90)","v":666.49505022000028},{"$f":"IF(+'[2]EXT(T)'!AU91=\"\",\"\",+'[2]EXT(T)'!AU91-'[2]EXT(T)'!AU90)","v":197.5},{"$f":"IF(+'[2]EXT(T)'!AV91=\"\",\"\",+'[2]EXT(T)'!AV91-'[2]EXT(T)'!AV90)","v":875.04761838237152},{"$f":"IF(+'[2]EXT(T)'!AW91=\"\",\"\",+'[2]EXT(T)'!AW91-'[2]EXT(T)'!AW90)","v":96},3881.7811835023722,3977.7811835023722]
[null,"III",{"$f":"IF(+'[2]EXT(T)'!M92=\"\",\"\",+'[2]EXT(T)'!M92)","v":317.35703802014143},{"$f":"IF(+'[2]EXT(T)'!N92=\"\",\"\",+'[2]EXT(T)'!N92)","v":-149.94},{"$f":"IF(+'[2]EXT(T)'!O92=\"\",\"\",+'[2]EXT(T)'!O92)","v":176.6019},{"$f":"IF(+'[2]EXT(T)'!P92=\"\",\"\",+'[2]EXT(T)'!P92)","v":167.35125183728988},{"$f":"IF(+'[2]EXT(T)'!Q92=\"\",\"\",+'[2]EXT(T)'!Q92)","v":116},{"$f":"IF(+'[2]EXT(T)'!R92=\"\",\"\",+'[2]EXT(T)'!R92)","v":639.1},{"$f":"IF(+'[2]EXT(T)'!S92=\"\",\"\",+'[2]EXT(T)'!S92)","v":403.6},{"$f":"IF(+'[2]EXT(T)'!U92=\"\",\"\",+'[2]EXT(T)'!U92)","v":1266.4701898574313},{"$f":"IF(+'[2]EXT(T)'!V92=\"\",\"\",+'[2]EXT(T)'!V92)","v":1670.0701898574312},{"$f":"IF(+'[2]EXT(T)'!W92=\"\",\"\",+'[2]EXT(T)'!W92)","v":1253.067645678263},{"$f":"IF(+'[2]EXT(T)'!X92=\"\",\"\",+'[2]EXT(T)'!X92)","v":-412.16},{"$f":"IF(+'[2]EXT(T)'!Y92=\"\",\"\",+'[2]EXT(T)'!Y92)","v":497.32809999999995},{"$f":"IF(+'[2]EXT(T)'!Z92=\"\",\"\",+'[2]EXT(T)'!Z92)","v":703.46336634671809},{"$f":"IF(+'[2]EXT(T)'!AA92=\"\",\"\",+'[2]EXT(T)'!AA92)","v":322.89999999999998},{"$f":"IF(+'[2]EXT(T)'!AB92=\"\",\"\",+'[2]EXT(T)'!AB92)","v":1534.8000000000002},{"$f":"IF(+'[2]EXT(T)'!AC92=\"\",\"\",+'[2]EXT(T)'!AC92)","v":2100.6},{"$f":"IF(+'[2]EXT(T)'!AE92=\"\",\"\",+'[2]EXT(T)'!AE92)","v":3899.3991120249812},{"$f":"IF(+'[2]EXT(T)'!AF92=\"\",\"\",+'[2]EXT(T)'!AF92)","v":5999.9991120249815},{"$f":"IF(+'[2]EXT(T)'!AY92=\"\",\"\",+'[2]EXT(T)'!AY92)","v":11303.228551891181},{"$f":"IF(+'[2]EXT(T)'!AZ92=\"\",\"\",+'[2]EXT(T)'!AZ92)","v":11587.228551891181},{"$f":"IF(+'[2]EXT(T)'!AQ92=\"\",\"\",+'[2]EXT(T)'!AQ92-'[2]EXT(T)'!AQ91)","v":129.270194},{"$f":"IF(+'[2]EXT(T)'!AR92=\"\",\"\",+'[2]EXT(T)'!AR92-'[2]EXT(T)'!AR91)","v":841.08000000000015},{"$f":"IF(+'[2]EXT(T)'!AS92=\"\",\"\",+'[2]EXT(T)'!AS92-'[2]EXT(T)'!AS91)","v":1121.2812000000001},{"$f":"IF(+'[2]EXT(T)'!AT92=\"\",\"\",+'[2]EXT(T)'!AT92-'[2]EXT(T)'!AT91)","v":644.90607769000007},{"$f":"IF(+'[2]EXT(T)'!AU92=\"\",\"\",+'[2]EXT(T)'!AU92-'[2]EXT(T)'!AU91)","v":200.89999999999992},{"$f":"IF(+'[2]EXT(T)'!AV92=\"\",\"\",+'[2]EXT(T)'!AV92-'[2]EXT(T)'!AV91)","v":945.27782218648463},{"$f":"IF(+'[2]EXT(T)'!AW92=\"\",\"\",+'[2]EXT(T)'!AW92-'[2]EXT(T)'!AW91)","v":92},3882.7152938764848,3974.7152938764848]
[null,"IV",{"$f":"IF(+'[2]EXT(T)'!M93=\"\",\"\",+'[2]EXT(T)'!M93)","v":430.4775988431357},{"$f":"IF(+'[2]EXT(T)'!N93=\"\",\"\",+'[2]EXT(T)'!N93)","v":181.83},{"$f":"IF(+'[2]EXT(T)'!O93=\"\",\"\",+'[2]EXT(T)'!O93)","v":160.97438},{"$f":"IF(+'[2]EXT(T)'!P93=\"\",\"\",+'[2]EXT(T)'!P93)","v":265.72694859350378},{"$f":"IF(+'[2]EXT(T)'!Q93=\"\",\"\",+'[2]EXT(T)'!Q93)","v":167},{"$f":"IF(+'[2]EXT(T)'!R93=\"\",\"\",+'[2]EXT(T)'!R93)","v":488.89999999999992},{"$f":"IF(+'[2]EXT(T)'!S93=\"\",\"\",+'[2]EXT(T)'!S93)","v":622.70000000000005},{"$f":"IF(+'[2]EXT(T)'!U93=\"\",\"\",+'[2]EXT(T)'!U93)","v":1694.9089274366393},{"$f":"IF(+'[2]EXT(T)'!V93=\"\",\"\",+'[2]EXT(T)'!V93)","v":2317.6089274366395},{"$f":"IF(+'[2]EXT(T)'!W93=\"\",\"\",+'[2]EXT(T)'!W93)","v":1683.5452445213987},{"$f":"IF(+'[2]EXT(T)'!X93=\"\",\"\",+'[2]EXT(T)'!X93)","v":-230.33},{"$f":"IF(+'[2]EXT(T)'!Y93=\"\",\"\",+'[2]EXT(T)'!Y93)","v":658.30247999999995},{"$f":"IF(+'[2]EXT(T)'!Z93=\"\",\"\",+'[2]EXT(T)'!Z93)","v":969.19031494022192},{"$f":"IF(+'[2]EXT(T)'!AA93=\"\",\"\",+'[2]EXT(T)'!AA93)","v":489.9},{"$f":"IF(+'[2]EXT(T)'!AB93=\"\",\"\",+'[2]EXT(T)'!AB93)","v":2023.7},{"$f":"IF(+'[2]EXT(T)'!AC93=\"\",\"\",+'[2]EXT(T)'!AC93)","v":2723.3},{"$f":"IF(+'[2]EXT(T)'!AE93=\"\",\"\",+'[2]EXT(T)'!AE93)","v":5594.3080394616209},{"$f":"IF(+'[2]EXT(T)'!AF93=\"\",\"\",+'[2]EXT(T)'!AF93)","v":8317.608039461622},{"$f":"IF(+'[2]EXT(T)'!AY93=\"\",\"\",+'[2]EXT(T)'!AY93)","v":15119.006126444629},{"$f":"IF(+'[2]EXT(T)'!AZ93=\"\",\"\",+'[2]EXT(T)'!AZ93)","v":15519.006126444629},{"$f":"IF(+'[2]EXT(T)'!AQ93=\"\",\"\",+'[2]EXT(T)'!AQ93-'[2]EXT(T)'!AQ92)","v":128.12979949999999},{"$f":"IF(+'[2]EXT(T)'!AR93=\"\",\"\",+'[2]EXT(T)'!AR93-'[2]EXT(T)'!AR92)","v":865.44999999999982},{"$f":"IF(+'[2]EXT(T)'!AS93=\"\",\"\",+'[2]EXT(T)'!AS93-'[2]EXT(T)'!AS92)","v":1019.1917999999996},{"$f":"IF(+'[2]EXT(T)'!AT93=\"\",\"\",+'[2]EXT(T)'!AT93-'[2]EXT(T)'!AT92)","v":641.99106592999988},{"$f":"IF(+'[2]EXT(T)'!AU93=\"\",\"\",+'[2]EXT(T)'!AU93-'[2]EXT(T)'!AU92)","v":222.60000000000002},{"$f":"IF(+'[2]EXT(T)'!AV93=\"\",\"\",+'[2]EXT(T)'!AV93-'[2]EXT(T)'!AV92)","v":938.41490912344807},{"$f":"IF(+'[2]EXT(T)'!AW93=\"\",\"\",+'[2]EXT(T)'!AW93-'[2]EXT(T)'!AW92)","v":116},3815.7775745534473,3931.7775745534473]
[2011,"I",{"$f":"IF(+'[2]EXT(T)'!M94=\"\",\"\",+'[2]EXT(T)'!M94)","v":676.81294711621854},{"$f":"IF(+'[2]EXT(T)'!N94=\"\",\"\",+'[2]EXT(T)'!N94)","v":180.14},{"$f":"IF(+'[2]EXT(T)'!O94=\"\",\"\",+'[2]EXT(T)'!O94)","v":380.09551999999996},{"$f":"IF(+'[2]EXT(T)'!P94=\"\",\"\",+'[2]EXT(T)'!P94)","v":275.99299845906535},{"$f":"IF(+'[2]EXT(T)'!Q94=\"\",\"\",+'[2]EXT(T)'!Q94)","v":163.80000000000001},{"$f":"IF(+'[2]EXT(T)'!R94=\"\",\"\",+'[2]EXT(T)'!R94)","v":546},{"$f":"IF(+'[2]EXT(T)'!S94=\"\",\"\",+'[2]EXT(T)'!S94)","v":727.59999999999991},{"$f":"IF(+'[2]EXT(T)'!U94=\"\",\"\",+'[2]EXT(T)'!U94)","v":2222.841465575284},{"$f":"IF(+'[2]EXT(T)'!V94=\"\",\"\",+'[2]EXT(T)'!V94)","v":2950.4414655752839},{"$f":"IF(+'[2]EXT(T)'!W94=\"\",\"\",+'[2]EXT(T)'!W94)","v":676.81294711621854},{"$f":"IF(+'[2]EXT(T)'!X94=\"\",\"\",+'[2]EXT(T)'!X94)","v":180.14},{"$f":"IF(+'[2]EXT(T)'!Y94=\"\",\"\",+'[2]EXT(T)'!Y94)","v":380.09551999999996},{"$f":"IF(+'[2]EXT(T)'!Z94=\"\",\"\",+'[2]EXT(T)'!Z94)","v":275.99299845906535},{"$f":"IF(+'[2]EXT(T)'!AA94=\"\",\"\",+'[2]EXT(T)'!AA94)","v":163.80000000000001},{"$f":"IF(+'[2]EXT(T)'!AB94=\"\",\"\",+'[2]EXT(T)'!AB94)","v":546},{"$f":"IF(+'[2]EXT(T)'!AC94=\"\",\"\",+'[2]EXT(T)'!AC94)","v":727.59999999999991},{"$f":"IF(+'[2]EXT(T)'!AE94=\"\",\"\",+'[2]EXT(T)'!AE94)","v":2222.841465575284},{"$f":"IF(+'[2]EXT(T)'!AF94=\"\",\"\",+'[2]EXT(T)'!AF94)","v":2950.4414655752839},{"$f":"IF(+'[2]EXT(T)'!AY94=\"\",\"\",+'[2]EXT(T)'!AY94)","v":3809.1281974800004},{"$f":"IF(+'[2]EXT(T)'!AZ94=\"\",\"\",+'[2]EXT(T)'!AZ94)","v":3858.4801974800002},{"$f":"IF(+'[2]EXT(T)'!AQ94=\"\",\"\",+'[2]EXT(T)'!AQ94)","v":131.5018001},{"$f":"IF(+'[2]EXT(T)'!AR94=\"\",\"\",+'[2]EXT(T)'!AR94)","v":860.02},{"$f":"IF(+'[2]EXT(T)'!AS94=\"\",\"\",+'[2]EXT(T)'!AS94)","v":972.08969999999999},{"$f":"IF(+'[2]EXT(T)'!AT94=\"\",\"\",+'[2]EXT(T)'!AT94)","v":643.27389717000017},{"$f":"IF(+'[2]EXT(T)'!AU94=\"\",\"\",+'[2]EXT(T)'!AU94)","v":214.2},{"$f":"IF(+'[2]EXT(T)'!AV94=\"\",\"\",+'[2]EXT(T)'!AV94)","v":988.04280021000045},{"$f":"IF(+'[2]EXT(T)'!AW94=\"\",\"\",+'[2]EXT(T)'!AW94)","v":49.351999999999997},{"$f":"IF(OR(W87=\"\",X87=\"\",Y87=\"\",Z87=\"\",AA87=\"\",AB87=\"\"),\"\",W87+X87+Y87+Z87+AA87+AB87)","v":3809.1281974800004},3858.4801974800002]
[null,"II",{"$f":"IF(+'[2]EXT(T)'!M95=\"\",\"\",+'[2]EXT(T)'!M95)","v":624.37833529911677},{"$f":"IF(+'[2]EXT(T)'!N95=\"\",\"\",+'[2]EXT(T)'!N95)","v":-30.67},{"$f":"IF(+'[2]EXT(T)'!O95=\"\",\"\",+'[2]EXT(T)'!O95)","v":323.36191999999994},{"$f":"IF(+'[2]EXT(T)'!P95=\"\",\"\",+'[2]EXT(T)'!P95)","v":209.73304848961919},{"$f":"IF(+'[2]EXT(T)'!Q95=\"\",\"\",+'[2]EXT(T)'!Q95)","v":349.4},{"$f":"IF(+'[2]EXT(T)'!R95=\"\",\"\",+'[2]EXT(T)'!R95)","v":545.79999999999995},{"$f":"IF(+'[2]EXT(T)'!S95=\"\",\"\",+'[2]EXT(T)'!S95)","v":1144.4000000000001},{"$f":"IF(+'[2]EXT(T)'!U95=\"\",\"\",+'[2]EXT(T)'!U95)","v":2022.0033037887358},{"$f":"IF(+'[2]EXT(T)'!V95=\"\",\"\",+'[2]EXT(T)'!V95)","v":3166.4033037887357},{"$f":"IF(+'[2]EXT(T)'!W95=\"\",\"\",+'[2]EXT(T)'!W95)","v":1301.1912824153353},{"$f":"IF(+'[2]EXT(T)'!X95=\"\",\"\",+'[2]EXT(T)'!X95)","v":149.46999999999997},{"$f":"IF(+'[2]EXT(T)'!Y95=\"\",\"\",+'[2]EXT(T)'!Y95)","v":703.45743999999991},{"$f":"IF(+'[2]EXT(T)'!Z95=\"\",\"\",+'[2]EXT(T)'!Z95)","v":485.72604694868454},{"$f":"IF(+'[2]EXT(T)'!AA95=\"\",\"\",+'[2]EXT(T)'!AA95)","v":513.20000000000005},{"$f":"IF(+'[2]EXT(T)'!AB95=\"\",\"\",+'[2]EXT(T)'!AB95)","v":1091.8},{"$f":"IF(+'[2]EXT(T)'!AC95=\"\",\"\",+'[2]EXT(T)'!AC95)","v":1872},{"$f":"IF(+'[2]EXT(T)'!AE95=\"\",\"\",+'[2]EXT(T)'!AE95)","v":4244.8447693640201},{"$f":"IF(+'[2]EXT(T)'!AF95=\"\",\"\",+'[2]EXT(T)'!AF95)","v":6116.8447693640192},{"$f":"IF(+'[2]EXT(T)'!AY95=\"\",\"\",+'[2]EXT(T)'!AY95)","v":8076.5868124600001},{"$f":"IF(+'[2]EXT(T)'!AZ95=\"\",\"\",+'[2]EXT(T)'!AZ95)","v":8223.8778124599994},{"$f":"IF(+'[2]EXT(T)'!AQ95=\"\",\"\",+'[2]EXT(T)'!AQ95-'[2]EXT(T)'!AQ94)","v":125.66937820000001},{"$f":"IF(+'[2]EXT(T)'!AR95=\"\",\"\",+'[2]EXT(T)'!AR95-'[2]EXT(T)'!AR94)","v":942.71},{"$f":"IF(+'[2]EXT(T)'!AS95=\"\",\"\",+'[2]EXT(T)'!AS95-'[2]EXT(T)'!AS94)","v":1202.9996999999998},{"$f":"IF(+'[2]EXT(T)'!AT95=\"\",\"\",+'[2]EXT(T)'!AT95-'[2]EXT(T)'!AT94)","v":736.58730960000014},{"$f":"IF(+'[2]EXT(T)'!AU95=\"\",\"\",+'[2]EXT(T)'!AU95-'[2]EXT(T)'!AU94)","v":221.20000000000005},{"$f":"IF(+'[2]EXT(T)'!AV95=\"\",\"\",+'[2]EXT(T)'!AV95-'[2]EXT(T)'!AV94)","v":1038.2922271799996},{"$f":"IF(+'[2]EXT(T)'!AW95=\"\",\"\",+'[2]EXT(T)'!AW95-'[2]EXT(T)'!AW94)","v":97.938999999999993},4267.4586149799998,4365.3976149800001]
[null,"III",{"$f":"IF(+'[2]EXT(T)'!M96=\"\",\"\",+'[2]EXT(T)'!M96)","v":525.2533982067049},{"$f":"IF(+'[2]EXT(T)'!N96=\"\",\"\",+'[2]EXT(T)'!N96)","v":77.92},{"$f":"IF(+'[2]EXT(T)'!O96=\"\",\"\",+'[2]EXT(T)'!O96)","v":233.92459000000002},{"$f":"IF(+'[2]EXT(T)'!P96=\"\",\"\",+'[2]EXT(T)'!P96)","v":233.12648910565784},{"$f":"IF(+'[2]EXT(T)'!Q96=\"\",\"\",+'[2]EXT(T)'!Q96)","v":217.3},{"$f":"IF(+'[2]EXT(T)'!R96=\"\",\"\",+'[2]EXT(T)'!R96)","v":807.9},{"$f":"IF(+'[2]EXT(T)'!S96=\"\",\"\",+'[2]EXT(T)'!S96)","v":797.7},{"$f":"IF(+'[2]EXT(T)'!U96=\"\",\"\",+'[2]EXT(T)'!U96)","v":2095.4244773123628},{"$f":"IF(+'[2]EXT(T)'!V96=\"\",\"\",+'[2]EXT(T)'!V96)","v":2893.1244773123626},{"$f":"IF(+'[2]EXT(T)'!W96=\"\",\"\",+'[2]EXT(T)'!W96)","v":1826.4446806220403},{"$f":"IF(+'[2]EXT(T)'!X96=\"\",\"\",+'[2]EXT(T)'!X96)","v":227.39},{"$f":"IF(+'[2]EXT(T)'!Y96=\"\",\"\",+'[2]EXT(T)'!Y96)","v":937.38202999999999},{"$f":"IF(+'[2]EXT(T)'!Z96=\"\",\"\",+'[2]EXT(T)'!Z96)","v":718.85253605434241},{"$f":"IF(+'[2]EXT(T)'!AA96=\"\",\"\",+'[2]EXT(T)'!AA96)","v":730.5},{"$f":"IF(+'[2]EXT(T)'!AB96=\"\",\"\",+'[2]EXT(T)'!AB96)","v":1899.6999999999998},{"$f":"IF(+'[2]EXT(T)'!AC96=\"\",\"\",+'[2]EXT(T)'!AC96)","v":2669.7},{"$f":"IF(+'[2]EXT(T)'!AE96=\"\",\"\",+'[2]EXT(T)'!AE96)","v":6340.2692466763829},{"$f":"IF(+'[2]EXT(T)'!AF96=\"\",\"\",+'[2]EXT(T)'!AF96)","v":9009.9692466763809},{"$f":"IF(+'[2]EXT(T)'!AY96=\"\",\"\",+'[2]EXT(T)'!AY96)","v":12162.892326809999},{"$f":"IF(+'[2]EXT(T)'!AZ96=\"\",\"\",+'[2]EXT(T)'!AZ96)","v":12420.207326809999},{"$f":"IF(+'[2]EXT(T)'!AQ96=\"\",\"\",+'[2]EXT(T)'!AQ96-'[2]EXT(T)'!AQ95)","v":109.9332814},{"$f":"IF(+'[2]EXT(T)'!AR96=\"\",\"\",+'[2]EXT(T)'!AR96-'[2]EXT(T)'!AR95)","v":889.17999999999984},{"$f":"IF(+'[2]EXT(T)'!AS96=\"\",\"\",+'[2]EXT(T)'!AS96-'[2]EXT(T)'!AS95)","v":1124.1705999999999},{"$f":"IF(+'[2]EXT(T)'!AT96=\"\",\"\",+'[2]EXT(T)'!AT96-'[2]EXT(T)'!AT95)","v":704.86990748000039},{"$f":"IF(+'[2]EXT(T)'!AU96=\"\",\"\",+'[2]EXT(T)'!AU96-'[2]EXT(T)'!AU95)","v":226.59999999999997},{"$f":"IF(+'[2]EXT(T)'!AV96=\"\",\"\",+'[2]EXT(T)'!AV96-'[2]EXT(T)'!AV95)","v":1031.5517254699989},{"$f":"IF(+'[2]EXT(T)'!AW96=\"\",\"\",+'[2]EXT(T)'!AW96-'[2]EXT(T)'!AW95)","v":110.024},4086.3055143499992,4196.329514349999]
[null,"IV",{"$f":"IF(+'[2]EXT(T)'!M97=\"\",\"\",+'[2]EXT(T)'!M97)","v":635.03851976873079},{"$f":"IF(+'[2]EXT(T)'!N97=\"\",\"\",+'[2]EXT(T)'!N97)","v":-8.9},{"$f":"IF(+'[2]EXT(T)'!O97=\"\",\"\",+'[2]EXT(T)'!O97)","v":281.84701999999999},{"$f":"IF(+'[2]EXT(T)'!P97=\"\",\"\",+'[2]EXT(T)'!P97)","v":295.56117170449352},{"$f":"IF(+'[2]EXT(T)'!Q97=\"\",\"\",+'[2]EXT(T)'!Q97)","v":205.8},{"$f":"IF(+'[2]EXT(T)'!R97=\"\",\"\",+'[2]EXT(T)'!R97)","v":377.00000000000006},{"$f":"IF(+'[2]EXT(T)'!S97=\"\",\"\",+'[2]EXT(T)'!S97)","v":482.99999999999994},{"$f":"IF(+'[2]EXT(T)'!U97=\"\",\"\",+'[2]EXT(T)'!U97)","v":1786.3467114732243},{"$f":"IF(+'[2]EXT(T)'!V97=\"\",\"\",+'[2]EXT(T)'!V97)","v":2269.3467114732243},{"$f":"IF(+'[2]EXT(T)'!W97=\"\",\"\",+'[2]EXT(T)'!W97)","v":2461.4832003907713},{"$f":"IF(+'[2]EXT(T)'!X97=\"\",\"\",+'[2]EXT(T)'!X97)","v":218.48999999999998},{"$f":"IF(+'[2]EXT(T)'!Y97=\"\",\"\",+'[2]EXT(T)'!Y97)","v":1219.2290499999999},{"$f":"IF(+'[2]EXT(T)'!Z97=\"\",\"\",+'[2]EXT(T)'!Z97)","v":1014.4137077588359},{"$f":"IF(+'[2]EXT(T)'!AA97=\"\",\"\",+'[2]EXT(T)'!AA97)","v":936.3},{"$f":"IF(+'[2]EXT(T)'!AB97=\"\",\"\",+'[2]EXT(T)'!AB97)","v":2276.6999999999998},{"$f":"IF(+'[2]EXT(T)'!AC97=\"\",\"\",+'[2]EXT(T)'!AC97)","v":3152.7},{"$f":"IF(+'[2]EXT(T)'!AE97=\"\",\"\",+'[2]EXT(T)'!AE97)","v":8126.6159581496067},{"$f":"IF(+'[2]EXT(T)'!AF97=\"\",\"\",+'[2]EXT(T)'!AF97)","v":11279.315958149606},{"$f":"IF(+'[2]EXT(T)'!AY97=\"\",\"\",+'[2]EXT(T)'!AY97)","v":16161.972032559999},{"$f":"IF(+'[2]EXT(T)'!AZ97=\"\",\"\",+'[2]EXT(T)'!AZ97)","v":16530.608032559998},{"$f":"IF(+'[2]EXT(T)'!AQ97=\"\",\"\",+'[2]EXT(T)'!AQ97-'[2]EXT(T)'!AQ96)","v":119.94421360000001},{"$f":"IF(+'[2]EXT(T)'!AR97=\"\",\"\",+'[2]EXT(T)'!AR97-'[2]EXT(T)'!AR96)","v":935.56999999999971},{"$f":"IF(+'[2]EXT(T)'!AS97=\"\",\"\",+'[2]EXT(T)'!AS97-'[2]EXT(T)'!AS96)","v":1078.7719000000002},{"$f":"IF(+'[2]EXT(T)'!AT97=\"\",\"\",+'[2]EXT(T)'!AT97-'[2]EXT(T)'!AT96)","v":664.68982799000059},{"$f":"IF(+'[2]EXT(T)'!AU97=\"\",\"\",+'[2]EXT(T)'!AU97-'[2]EXT(T)'!AU96)","v":249.60000000000002},{"$f":"IF(+'[2]EXT(T)'!AV97=\"\",\"\",+'[2]EXT(T)'!AV97-'[2]EXT(T)'!AV96)","v":950.50376415999972},{"$f":"IF(+'[2]EXT(T)'!AW97=\"\",\"\",+'[2]EXT(T)'!AW97-'[2]EXT(T)'!AW96)","v":111.32099999999997},3999.0797057500004,4110.4007057500003]
[2012,"I",{"$f":"IF(+'[2]EXT(T)'!M98=\"\",\"\",+'[2]EXT(T)'!M98)","v":617.25197709007693},{"$f":"IF(+'[2]EXT(T)'!N98=\"\",\"\",+'[2]EXT(T)'!N98)","v":134.09621670182227},{"$f":"IF(+'[2]EXT(T)'!O98=\"\",\"\",+'[2]EXT(T)'!O98)","v":397.76984000000004},{"$f":"IF(+'[2]EXT(T)'!P98=\"\",\"\",+'[2]EXT(T)'!P98)","v":340.09310324752158},{"$f":"IF(+'[2]EXT(T)'!Q98=\"\",\"\",+'[2]EXT(T)'!Q98)","v":255},{"$f":"IF(+'[2]EXT(T)'!R98=\"\",\"\",+'[2]EXT(T)'!R98)","v":676.3},{"$f":"IF(+'[2]EXT(T)'!S98=\"\",\"\",+'[2]EXT(T)'!S98)","v":941.89999999999986},{"$f":"IF(+'[2]EXT(T)'!U98=\"\",\"\",+'[2]EXT(T)'!U98)","v":2420.5111370394206},{"$f":"IF(+'[2]EXT(T)'!V98=\"\",\"\",+'[2]EXT(T)'!V98)","v":3362.4111370394203},{"$f":"IF(+'[2]EXT(T)'!W98=\"\",\"\",+'[2]EXT(T)'!W98)","v":617.25197709007693},{"$f":"IF(+'[2]EXT(T)'!X98=\"\",\"\",+'[2]EXT(T)'!X98)","v":134.09621670182227},{"$f":"IF(+'[2]EXT(T)'!Y98=\"\",\"\",+'[2]EXT(T)'!Y98)","v":397.76984000000004},{"$f":"IF(+'[2]EXT(T)'!Z98=\"\",\"\",+'[2]EXT(T)'!Z98)","v":340.09310324752158},{"$f":"IF(+'[2]EXT(T)'!AA98=\"\",\"\",+'[2]EXT(T)'!AA98)","v":255},{"$f":"IF(+'[2]EXT(T)'!AB98=\"\",\"\",+'[2]EXT(T)'!AB98)","v":676.3},{"$f":"IF(+'[2]EXT(T)'!AC98=\"\",\"\",+'[2]EXT(T)'!AC98)","v":941.89999999999986},{"$f":"IF(+'[2]EXT(T)'!AE98=\"\",\"\",+'[2]EXT(T)'!AE98)","v":2420.5111370394206},{"$f":"IF(+'[2]EXT(T)'!AF98=\"\",\"\",+'[2]EXT(T)'!AF98)","v":3362.4111370394203},{"$f":"IF(+'[2]EXT(T)'!AY98=\"\",\"\",+'[2]EXT(T)'!AY98)","v":4126.2643761699983},{"$f":"IF(+'[2]EXT(T)'!AZ98=\"\",\"\",+'[2]EXT(T)'!AZ98)","v":4227.4643761699981},{"$f":"IF(+'[2]EXT(T)'!AQ98=\"\",\"\",+'[2]EXT(T)'!AQ98)","v":122.25946260000001},{"$f":"IF(+'[2]EXT(T)'!AR98=\"\",\"\",+'[2]EXT(T)'!AR98)","v":947.59999999999991},{"$f":"IF(+'[2]EXT(T)'!AS98=\"\",\"\",+'[2]EXT(T)'!AS98)","v":1057.6105},{"$f":"IF(+'[2]EXT(T)'!AT98=\"\",\"\",+'[2]EXT(T)'!AT98)","v":672.56440024000017},{"$f":"IF(+'[2]EXT(T)'!AU98=\"\",\"\",+'[2]EXT(T)'!AU98)","v":250.10000000000002},{"$f":"IF(+'[2]EXT(T)'!AV98=\"\",\"\",+'[2]EXT(T)'!AV98)","v":1076.1300133299983},{"$f":"IF(+'[2]EXT(T)'!AW98=\"\",\"\",+'[2]EXT(T)'!AW98)","v":101.2},{"$f":"IF(OR(W91=\"\",X91=\"\",Y91=\"\",Z91=\"\",AA91=\"\",AB91=\"\"),\"\",W91+X91+Y91+Z91+AA91+AB91)","v":4126.2643761699983},4227.4643761699981]
[null,"II",{"$f":"IF(+'[2]EXT(T)'!M99=\"\",\"\",+'[2]EXT(T)'!M99)","v":556.10253236459585},{"$f":"IF(+'[2]EXT(T)'!N99=\"\",\"\",+'[2]EXT(T)'!N99)","v":128.82268434919649},{"$f":"IF(+'[2]EXT(T)'!O99=\"\",\"\",+'[2]EXT(T)'!O99)","v":338.10209999999995},{"$f":"IF(+'[2]EXT(T)'!P99=\"\",\"\",+'[2]EXT(T)'!P99)","v":127.85782283441692},{"$f":"IF(+'[2]EXT(T)'!Q99=\"\",\"\",+'[2]EXT(T)'!Q99)","v":196.39999999999998},{"$f":"IF(+'[2]EXT(T)'!R99=\"\",\"\",+'[2]EXT(T)'!R99)","v":1612},{"$f":"IF(+'[2]EXT(T)'!S99=\"\",\"\",+'[2]EXT(T)'!S99)","v":787.59999999999991},{"$f":"IF(+'[2]EXT(T)'!U99=\"\",\"\",+'[2]EXT(T)'!U99)","v":2959.2851395482094},{"$f":"IF(+'[2]EXT(T)'!V99=\"\",\"\",+'[2]EXT(T)'!V99)","v":3746.8851395482093},{"$f":"IF(+'[2]EXT(T)'!W99=\"\",\"\",+'[2]EXT(T)'!W99)","v":1173.3545094546728},{"$f":"IF(+'[2]EXT(T)'!X99=\"\",\"\",+'[2]EXT(T)'!X99)","v":262.91890105101879},{"$f":"IF(+'[2]EXT(T)'!Y99=\"\",\"\",+'[2]EXT(T)'!Y99)","v":735.87194},{"$f":"IF(+'[2]EXT(T)'!Z99=\"\",\"\",+'[2]EXT(T)'!Z99)","v":467.95092608193852},{"$f":"IF(+'[2]EXT(T)'!AA99=\"\",\"\",+'[2]EXT(T)'!AA99)","v":451.4},{"$f":"IF(+'[2]EXT(T)'!AB99=\"\",\"\",+'[2]EXT(T)'!AB99)","v":2288.3000000000002},{"$f":"IF(+'[2]EXT(T)'!AC99=\"\",\"\",+'[2]EXT(T)'!AC99)","v":1729.4999999999998},{"$f":"IF(+'[2]EXT(T)'!AE99=\"\",\"\",+'[2]EXT(T)'!AE99)","v":5379.79627658763},{"$f":"IF(+'[2]EXT(T)'!AF99=\"\",\"\",+'[2]EXT(T)'!AF99)","v":7109.2962765876291},{"$f":"IF(+'[2]EXT(T)'!AY99=\"\",\"\",+'[2]EXT(T)'!AY99)","v":8542.2227890429913},{"$f":"IF(+'[2]EXT(T)'!AZ99=\"\",\"\",+'[2]EXT(T)'!AZ99)","v":8728.3227890429916},{"$f":"IF(+'[2]EXT(T)'!AQ99=\"\",\"\",+'[2]EXT(T)'!AQ99-'[2]EXT(T)'!AQ98)","v":123.6096144},{"$f":"IF(+'[2]EXT(T)'!AR99=\"\",\"\",+'[2]EXT(T)'!AR99-'[2]EXT(T)'!AR98)","v":1001.6700000000001},{"$f":"IF(+'[2]EXT(T)'!AS99=\"\",\"\",+'[2]EXT(T)'!AS99-'[2]EXT(T)'!AS98)","v":1303.2027999999998},{"$f":"IF(+'[2]EXT(T)'!AT99=\"\",\"\",+'[2]EXT(T)'!AT99-'[2]EXT(T)'!AT98)","v":728.93665197000018},{"$f":"IF(+'[2]EXT(T)'!AU99=\"\",\"\",+'[2]EXT(T)'!AU99-'[2]EXT(T)'!AU98)","v":244.20000000000005},{"$f":"IF(+'[2]EXT(T)'!AV99=\"\",\"\",+'[2]EXT(T)'!AV99-'[2]EXT(T)'!AV98)","v":1014.3393465029935},{"$f":"IF(+'[2]EXT(T)'!AW99=\"\",\"\",+'[2]EXT(T)'!AW99-'[2]EXT(T)'!AW98)","v":84.90000000000002},4415.958412872993,4500.8584128729926]
[null,"III",{"$f":"IF(+'[2]EXT(T)'!M100=\"\",\"\",+'[2]EXT(T)'!M100)","v":584.51341459367154},{"$f":"IF(+'[2]EXT(T)'!N100=\"\",\"\",+'[2]EXT(T)'!N100)","v":216.27237344554084},{"$f":"IF(+'[2]EXT(T)'!O100=\"\",\"\",+'[2]EXT(T)'!O100)","v":240.63722000000001},{"$f":"IF(+'[2]EXT(T)'!P100=\"\",\"\",+'[2]EXT(T)'!P100)","v":247.08133537749271},{"$f":"IF(+'[2]EXT(T)'!Q100=\"\",\"\",+'[2]EXT(T)'!Q100)","v":182.6},{"$f":"IF(+'[2]EXT(T)'!R100=\"\",\"\",+'[2]EXT(T)'!R100)","v":730.59999999999991},{"$f":"IF(+'[2]EXT(T)'!S100=\"\",\"\",+'[2]EXT(T)'!S100)","v":1032.2},{"$f":"IF(+'[2]EXT(T)'!U100=\"\",\"\",+'[2]EXT(T)'!U100)","v":2201.7043434167049},{"$f":"IF(+'[2]EXT(T)'!V100=\"\",\"\",+'[2]EXT(T)'!V100)","v":3233.9043434167052},{"$f":"IF(+'[2]EXT(T)'!W100=\"\",\"\",+'[2]EXT(T)'!W100)","v":1757.8679240483443},{"$f":"IF(+'[2]EXT(T)'!X100=\"\",\"\",+'[2]EXT(T)'!X100)","v":479.19127449655963},{"$f":"IF(+'[2]EXT(T)'!Y100=\"\",\"\",+'[2]EXT(T)'!Y100)","v":976.50916000000007},{"$f":"IF(+'[2]EXT(T)'!Z100=\"\",\"\",+'[2]EXT(T)'!Z100)","v":715.0322614594312},{"$f":"IF(+'[2]EXT(T)'!AA100=\"\",\"\",+'[2]EXT(T)'!AA100)","v":634},{"$f":"IF(+'[2]EXT(T)'!AB100=\"\",\"\",+'[2]EXT(T)'!AB100)","v":3018.9},{"$f":"IF(+'[2]EXT(T)'!AC100=\"\",\"\",+'[2]EXT(T)'!AC100)","v":2761.7},{"$f":"IF(+'[2]EXT(T)'!AE100=\"\",\"\",+'[2]EXT(T)'!AE100)","v":7581.5006200043354},{"$f":"IF(+'[2]EXT(T)'!AF100=\"\",\"\",+'[2]EXT(T)'!AF100)","v":10343.200620004334},{"$f":"IF(+'[2]EXT(T)'!AY100=\"\",\"\",+'[2]EXT(T)'!AY100)","v":12878.580724327234},{"$f":"IF(+'[2]EXT(T)'!AZ100=\"\",\"\",+'[2]EXT(T)'!AZ100)","v":13163.880724327233},{"$f":"IF(+'[2]EXT(T)'!AQ100=\"\",\"\",+'[2]EXT(T)'!AQ100-'[2]EXT(T)'!AQ99)","v":140.59726110000003},{"$f":"IF(+'[2]EXT(T)'!AR100=\"\",\"\",+'[2]EXT(T)'!AR100-'[2]EXT(T)'!AR99)","v":949.46},{"$f":"IF(+'[2]EXT(T)'!AS100=\"\",\"\",+'[2]EXT(T)'!AS100-'[2]EXT(T)'!AS99)","v":1229.2888000000003},{"$f":"IF(+'[2]EXT(T)'!AT100=\"\",\"\",+'[2]EXT(T)'!AT100-'[2]EXT(T)'!AT99)","v":717.46550911000008},{"$f":"IF(+'[2]EXT(T)'!AU100=\"\",\"\",+'[2]EXT(T)'!AU100-'[2]EXT(T)'!AU99)","v":246.19999999999993},{"$f":"IF(+'[2]EXT(T)'!AV100=\"\",\"\",+'[2]EXT(T)'!AV100-'[2]EXT(T)'!AV99)","v":1053.3463650742424},{"$f":"IF(+'[2]EXT(T)'!AW100=\"\",\"\",+'[2]EXT(T)'!AW100-'[2]EXT(T)'!AW99)","v":99.199999999999989},4336.3579352842426,4435.5579352842424]
[null,"IV",{"$f":"IF(+'[2]EXT(T)'!M101=\"\",\"\",+'[2]EXT(T)'!M101)","v":500.22210837227851},{"$f":"IF(+'[2]EXT(T)'!N101=\"\",\"\",+'[2]EXT(T)'!N101)","v":-12.363196364135661},{"$f":"IF(+'[2]EXT(T)'!O101=\"\",\"\",+'[2]EXT(T)'!O101)","v":293.63596000000001},{"$f":"IF(+'[2]EXT(T)'!P101=\"\",\"\",+'[2]EXT(T)'!P101)","v":343.48860156963912},{"$f":"IF(+'[2]EXT(T)'!Q101=\"\",\"\",+'[2]EXT(T)'!Q101)","v":141.70000000000002},{"$f":"IF(+'[2]EXT(T)'!R101=\"\",\"\",+'[2]EXT(T)'!R101)","v":123.5},{"$f":"IF(+'[2]EXT(T)'!S101=\"\",\"\",+'[2]EXT(T)'!S101)","v":448.8},{"$f":"IF(+'[2]EXT(T)'!U101=\"\",\"\",+'[2]EXT(T)'!U101)","v":1390.183473577782},{"$f":"IF(+'[2]EXT(T)'!V101=\"\",\"\",+'[2]EXT(T)'!V101)","v":1838.983473577782},{"$f":"IF(+'[2]EXT(T)'!W101=\"\",\"\",+'[2]EXT(T)'!W101)","v":2258.0900324206227},{"$f":"IF(+'[2]EXT(T)'!X101=\"\",\"\",+'[2]EXT(T)'!X101)","v":466.82807813242397},{"$f":"IF(+'[2]EXT(T)'!Y101=\"\",\"\",+'[2]EXT(T)'!Y101)","v":1270.1451200000001},{"$f":"IF(+'[2]EXT(T)'!Z101=\"\",\"\",+'[2]EXT(T)'!Z101)","v":1058.5208630290704},{"$f":"IF(+'[2]EXT(T)'!AA101=\"\",\"\",+'[2]EXT(T)'!AA101)","v":775.7},{"$f":"IF(+'[2]EXT(T)'!AB101=\"\",\"\",+'[2]EXT(T)'!AB101)","v":3142.4},{"$f":"IF(+'[2]EXT(T)'!AC101=\"\",\"\",+'[2]EXT(T)'!AC101)","v":3210.5},{"$f":"IF(+'[2]EXT(T)'!AE101=\"\",\"\",+'[2]EXT(T)'!AE101)","v":8971.6840935821165},{"$f":"IF(+'[2]EXT(T)'!AF101=\"\",\"\",+'[2]EXT(T)'!AF101)","v":12182.184093582116},{"$f":"IF(+'[2]EXT(T)'!AY101=\"\",\"\",+'[2]EXT(T)'!AY101)","v":17097.558362629487},{"$f":"IF(+'[2]EXT(T)'!AZ101=\"\",\"\",+'[2]EXT(T)'!AZ101)","v":17478.658362629485},{"$f":"IF(+'[2]EXT(T)'!AQ101=\"\",\"\",+'[2]EXT(T)'!AQ101-'[2]EXT(T)'!AQ100)","v":140.32140700000002},{"$f":"IF(+'[2]EXT(T)'!AR101=\"\",\"\",+'[2]EXT(T)'!AR101-'[2]EXT(T)'!AR100)","v":987.89000000000033},{"$f":"IF(+'[2]EXT(T)'!AS101=\"\",\"\",+'[2]EXT(T)'!AS101-'[2]EXT(T)'!AS100)","v":1192.5900000000001},{"$f":"IF(+'[2]EXT(T)'!AT101=\"\",\"\",+'[2]EXT(T)'!AT101-'[2]EXT(T)'!AT100)","v":722.92037178000055},{"$f":"IF(+'[2]EXT(T)'!AU101=\"\",\"\",+'[2]EXT(T)'!AU101-'[2]EXT(T)'!AU100)","v":273.69999999999993},{"$f":"IF(+'[2]EXT(T)'!AV101=\"\",\"\",+'[2]EXT(T)'!AV101-'[2]EXT(T)'!AV100)","v":901.55585952224919},{"$f":"IF(+'[2]EXT(T)'!AW101=\"\",\"\",+'[2]EXT(T)'!AW101-'[2]EXT(T)'!AW100)","v":95.800000000000011},4218.9776383022499,4314.7776383022501]
[2013,"I",{"$f":"IF(+'[2]EXT(T)'!M102=\"\",\"\",+'[2]EXT(T)'!M102)","v":958.69478643540629},{"$f":"IF(+'[2]EXT(T)'!N102=\"\",\"\",+'[2]EXT(T)'!N102)","v":-22.449906272598618},{"$f":"IF(+'[2]EXT(T)'!O102=\"\",\"\",+'[2]EXT(T)'!O102)","v":408.26391000000001},{"$f":"IF(+'[2]EXT(T)'!P102=\"\",\"\",+'[2]EXT(T)'!P102)","v":300.59062243688567},{"$f":"IF(+'[2]EXT(T)'!Q102=\"\",\"\",+'[2]EXT(T)'!Q102)","v":241},{"$f":"IF(+'[2]EXT(T)'!R102=\"\",\"\",+'[2]EXT(T)'!R102)","v":543},{"$f":"IF(+'[2]EXT(T)'!S102=\"\",\"\",+'[2]EXT(T)'!S102)","v":1335.6999999999998},{"$f":"IF(+'[2]EXT(T)'!U102=\"\",\"\",+'[2]EXT(T)'!U102)","v":2429.0994125996931},{"$f":"IF(+'[2]EXT(T)'!V102=\"\",\"\",+'[2]EXT(T)'!V102)","v":3764.7994125996929},{"$f":"IF(+'[2]EXT(T)'!W102=\"\",\"\",+'[2]EXT(T)'!W102)","v":958.69478643540629},{"$f":"IF(+'[2]EXT(T)'!X102=\"\",\"\",+'[2]EXT(T)'!X102)","v":-22.449906272598618},{"$f":"IF(+'[2]EXT(T)'!Y102=\"\",\"\",+'[2]EXT(T)'!Y102)","v":408.26391000000001},{"$f":"IF(+'[2]EXT(T)'!Z102=\"\",\"\",+'[2]EXT(T)'!Z102)","v":300.59062243688567},{"$f":"IF(+'[2]EXT(T)'!AA102=\"\",\"\",+'[2]EXT(T)'!AA102)","v":241},{"$f":"IF(+'[2]EXT(T)'!AB102=\"\",\"\",+'[2]EXT(T)'!AB102)","v":543},{"$f":"IF(+'[2]EXT(T)'!AC102=\"\",\"\",+'[2]EXT(T)'!AC102)","v":1335.6999999999998},{"$f":"IF(+'[2]EXT(T)'!AE102=\"\",\"\",+'[2]EXT(T)'!AE102)","v":2429.0994125996931},{"$f":"IF(+'[2]EXT(T)'!AF102=\"\",\"\",+'[2]EXT(T)'!AF102)","v":3764.7994125996929},{"$f":"IF(+'[2]EXT(T)'!AY102=\"\",\"\",+'[2]EXT(T)'!AY102)","v":4247.2318979815363},{"$f":"IF(+'[2]EXT(T)'!AZ102=\"\",\"\",+'[2]EXT(T)'!AZ102)","v":4361.631897981536},{"$f":"IF(+'[2]EXT(T)'!AQ102=\"\",\"\",+'[2]EXT(T)'!AQ102)","v":134.27661689999999},{"$f":"IF(+'[2]EXT(T)'!AR102=\"\",\"\",+'[2]EXT(T)'!AR102)","v":916.44},{"$f":"IF(+'[2]EXT(T)'!AS102=\"\",\"\",+'[2]EXT(T)'!AS102)","v":1133.0899999999999},{"$f":"IF(+'[2]EXT(T)'!AT102=\"\",\"\",+'[2]EXT(T)'!AT102)","v":689.43898598999999},{"$f":"IF(+'[2]EXT(T)'!AU102=\"\",\"\",+'[2]EXT(T)'!AU102)","v":257.3},{"$f":"IF(+'[2]EXT(T)'!AV102=\"\",\"\",+'[2]EXT(T)'!AV102)","v":1116.6862950915365},{"$f":"IF(+'[2]EXT(T)'!AW102=\"\",\"\",+'[2]EXT(T)'!AW102)","v":114.4},{"$f":"IF(OR(W95=\"\",X95=\"\",Y95=\"\",Z95=\"\",AA95=\"\",AB95=\"\"),\"\",W95+X95+Y95+Z95+AA95+AB95)","v":4247.2318979815363},4361.631897981536]
[null,"II",{"$f":"IF(+'[2]EXT(T)'!M103=\"\",\"\",+'[2]EXT(T)'!M103)","v":411.20588742426503},{"$f":"IF(+'[2]EXT(T)'!N103=\"\",\"\",+'[2]EXT(T)'!N103)","v":132.02430364469677},{"$f":"IF(+'[2]EXT(T)'!O103=\"\",\"\",+'[2]EXT(T)'!O103)","v":393.01911000000001},{"$f":"IF(+'[2]EXT(T)'!P103=\"\",\"\",+'[2]EXT(T)'!P103)","v":236.41268404201429},{"$f":"IF(+'[2]EXT(T)'!Q103=\"\",\"\",+'[2]EXT(T)'!Q103)","v":182.2},{"$f":"IF(+'[2]EXT(T)'!R103=\"\",\"\",+'[2]EXT(T)'!R103)","v":438.80000000000007},{"$f":"IF(+'[2]EXT(T)'!S103=\"\",\"\",+'[2]EXT(T)'!S103)","v":687.7},{"$f":"IF(+'[2]EXT(T)'!U103=\"\",\"\",+'[2]EXT(T)'!U103)","v":1793.6619851109763},{"$f":"IF(+'[2]EXT(T)'!V103=\"\",\"\",+'[2]EXT(T)'!V103)","v":2481.3619851109761},{"$f":"IF(+'[2]EXT(T)'!W103=\"\",\"\",+'[2]EXT(T)'!W103)","v":1369.9006738596713},{"$f":"IF(+'[2]EXT(T)'!X103=\"\",\"\",+'[2]EXT(T)'!X103)","v":109.57439737209816},{"$f":"IF(+'[2]EXT(T)'!Y103=\"\",\"\",+'[2]EXT(T)'!Y103)","v":801.28302000000008},{"$f":"IF(+'[2]EXT(T)'!Z103=\"\",\"\",+'[2]EXT(T)'!Z103)","v":537.00330647889996},{"$f":"IF(+'[2]EXT(T)'!AA103=\"\",\"\",+'[2]EXT(T)'!AA103)","v":423.2},{"$f":"IF(+'[2]EXT(T)'!AB103=\"\",\"\",+'[2]EXT(T)'!AB103)","v":981.80000000000007},{"$f":"IF(+'[2]EXT(T)'!AC103=\"\",\"\",+'[2]EXT(T)'!AC103)","v":2023.3999999999999},{"$f":"IF(+'[2]EXT(T)'!AE103=\"\",\"\",+'[2]EXT(T)'!AE103)","v":4222.7613977106694},{"$f":"IF(+'[2]EXT(T)'!AF103=\"\",\"\",+'[2]EXT(T)'!AF103)","v":6246.161397710669},{"$f":"IF(+'[2]EXT(T)'!AY103=\"\",\"\",+'[2]EXT(T)'!AY103)","v":8783.4343644015207},{"$f":"IF(+'[2]EXT(T)'!AZ103=\"\",\"\",+'[2]EXT(T)'!AZ103)","v":8993.1343644015215},{"$f":"IF(+'[2]EXT(T)'!AQ103=\"\",\"\",+'[2]EXT(T)'!AQ103-'[2]EXT(T)'!AQ102)","v":137.3873169},{"$f":"IF(+'[2]EXT(T)'!AR103=\"\",\"\",+'[2]EXT(T)'!AR103-'[2]EXT(T)'!AR102)","v":1032.55},{"$f":"IF(+'[2]EXT(T)'!AS103=\"\",\"\",+'[2]EXT(T)'!AS103-'[2]EXT(T)'!AS102)","v":1345.4299999999996},{"$f":"IF(+'[2]EXT(T)'!AT103=\"\",\"\",+'[2]EXT(T)'!AT103-'[2]EXT(T)'!AT102)","v":822.18495387000007},{"$f":"IF(+'[2]EXT(T)'!AU103=\"\",\"\",+'[2]EXT(T)'!AU103-'[2]EXT(T)'!AU102)","v":264.3},{"$f":"IF(+'[2]EXT(T)'!AV103=\"\",\"\",+'[2]EXT(T)'!AV103-'[2]EXT(T)'!AV102)","v":934.35019564998493},{"$f":"IF(+'[2]EXT(T)'!AW103=\"\",\"\",+'[2]EXT(T)'!AW103-'[2]EXT(T)'!AW102)","v":95.299999999999983},4536.2024664199844,4631.5024664199846]
[null,"III",{"$f":"IF(+'[2]EXT(T)'!M104=\"\",\"\",+'[2]EXT(T)'!M104)","v":458.3588425775157},{"$f":"IF(+'[2]EXT(T)'!N104=\"\",\"\",+'[2]EXT(T)'!N104)","v":151.52552539054261},{"$f":"IF(+'[2]EXT(T)'!O104=\"\",\"\",+'[2]EXT(T)'!O104)","v":360.92783000000003},{"$f":"IF(+'[2]EXT(T)'!P104=\"\",\"\",+'[2]EXT(T)'!P104)","v":199.48749304794686},{"$f":"IF(+'[2]EXT(T)'!Q104=\"\",\"\",+'[2]EXT(T)'!Q104)","v":253.90000000000003},{"$f":"IF(+'[2]EXT(T)'!R104=\"\",\"\",+'[2]EXT(T)'!R104)","v":527},{"$f":"IF(+'[2]EXT(T)'!S104=\"\",\"\",+'[2]EXT(T)'!S104)","v":877.40000000000009},{"$f":"IF(+'[2]EXT(T)'!U104=\"\",\"\",+'[2]EXT(T)'!U104)","v":1951.1996910160053},{"$f":"IF(+'[2]EXT(T)'!V104=\"\",\"\",+'[2]EXT(T)'!V104)","v":2828.5996910160056},{"$f":"IF(+'[2]EXT(T)'!W104=\"\",\"\",+'[2]EXT(T)'!W104)","v":1828.2595164371869},{"$f":"IF(+'[2]EXT(T)'!X104=\"\",\"\",+'[2]EXT(T)'!X104)","v":261.09992276264074},{"$f":"IF(+'[2]EXT(T)'!Y104=\"\",\"\",+'[2]EXT(T)'!Y104)","v":1162.2108500000002},{"$f":"IF(+'[2]EXT(T)'!Z104=\"\",\"\",+'[2]EXT(T)'!Z104)","v":736.49079952684679},{"$f":"IF(+'[2]EXT(T)'!AA104=\"\",\"\",+'[2]EXT(T)'!AA104)","v":677.1},{"$f":"IF(+'[2]EXT(T)'!AB104=\"\",\"\",+'[2]EXT(T)'!AB104)","v":1508.8000000000002},{"$f":"IF(+'[2]EXT(T)'!AC104=\"\",\"\",+'[2]EXT(T)'!AC104)","v":2900.8},{"$f":"IF(+'[2]EXT(T)'!AE104=\"\",\"\",+'[2]EXT(T)'!AE104)","v":6173.9610887266745},{"$f":"IF(+'[2]EXT(T)'!AF104=\"\",\"\",+'[2]EXT(T)'!AF104)","v":9074.7610887266746},{"$f":"IF(+'[2]EXT(T)'!AY104=\"\",\"\",+'[2]EXT(T)'!AY104)","v":13359.672734172225},{"$f":"IF(+'[2]EXT(T)'!AZ104=\"\",\"\",+'[2]EXT(T)'!AZ104)","v":13679.572734172225},{"$f":"IF(+'[2]EXT(T)'!AQ104=\"\",\"\",+'[2]EXT(T)'!AQ104-'[2]EXT(T)'!AQ103)","v":139.78967369999998},{"$f":"IF(+'[2]EXT(T)'!AR104=\"\",\"\",+'[2]EXT(T)'!AR104-'[2]EXT(T)'!AR103)","v":970.02000000000021},{"$f":"IF(+'[2]EXT(T)'!AS104=\"\",\"\",+'[2]EXT(T)'!AS104-'[2]EXT(T)'!AS103)","v":1322.8000000000002},{"$f":"IF(+'[2]EXT(T)'!AT104=\"\",\"\",+'[2]EXT(T)'!AT104-'[2]EXT(T)'!AT103)","v":802.93862912000031},{"$f":"IF(+'[2]EXT(T)'!AU104=\"\",\"\",+'[2]EXT(T)'!AU104-'[2]EXT(T)'!AU103)","v":265.70000000000005},{"$f":"IF(+'[2]EXT(T)'!AV104=\"\",\"\",+'[2]EXT(T)'!AV104-'[2]EXT(T)'!AV103)","v":1074.990066950706},{"$f":"IF(+'[2]EXT(T)'!AW104=\"\",\"\",+'[2]EXT(T)'!AW104-'[2]EXT(T)'!AW103)","v":110.19999999999999},4576.2383697707064,4686.4383697707062]
[null,"IV",{"$f":"IF(+'[2]EXT(T)'!M105=\"\",\"\",+'[2]EXT(T)'!M105)","v":912.83226069790817},{"$f":"IF(+'[2]EXT(T)'!N105=\"\",\"\",+'[2]EXT(T)'!N105)","v":-81.219539322513171},{"$f":"IF(+'[2]EXT(T)'!O105=\"\",\"\",+'[2]EXT(T)'!O105)","v":317.10185999999999},{"$f":"IF(+'[2]EXT(T)'!P105=\"\",\"\",+'[2]EXT(T)'!P105)","v":323.20153669259241},{"$f":"IF(+'[2]EXT(T)'!Q105=\"\",\"\",+'[2]EXT(T)'!Q105)","v":288},{"$f":"IF(+'[2]EXT(T)'!R105=\"\",\"\",+'[2]EXT(T)'!R105)","v":481.7000000000001},{"$f":"IF(+'[2]EXT(T)'!S105=\"\",\"\",+'[2]EXT(T)'!S105)","v":666.40000000000009},{"$f":"IF(+'[2]EXT(T)'!U105=\"\",\"\",+'[2]EXT(T)'!U105)","v":2241.6161180679878},{"$f":"IF(+'[2]EXT(T)'!V105=\"\",\"\",+'[2]EXT(T)'!V105)","v":2908.0161180679879},{"$f":"IF(+'[2]EXT(T)'!W105=\"\",\"\",+'[2]EXT(T)'!W105)","v":2741.0917771350951},{"$f":"IF(+'[2]EXT(T)'!X105=\"\",\"\",+'[2]EXT(T)'!X105)","v":179.88038344012756},{"$f":"IF(+'[2]EXT(T)'!Y105=\"\",\"\",+'[2]EXT(T)'!Y105)","v":1479.3127100000002},{"$f":"IF(+'[2]EXT(T)'!Z105=\"\",\"\",+'[2]EXT(T)'!Z105)","v":1059.6923362194393},{"$f":"IF(+'[2]EXT(T)'!AA105=\"\",\"\",+'[2]EXT(T)'!AA105)","v":965.1},{"$f":"IF(+'[2]EXT(T)'!AB105=\"\",\"\",+'[2]EXT(T)'!AB105)","v":1990.5000000000002},{"$f":"IF(+'[2]EXT(T)'!AC105=\"\",\"\",+'[2]EXT(T)'!AC105)","v":3567.2000000000003},{"$f":"IF(+'[2]EXT(T)'!AE105=\"\",\"\",+'[2]EXT(T)'!AE105)","v":8415.5772067946618},{"$f":"IF(+'[2]EXT(T)'!AF105=\"\",\"\",+'[2]EXT(T)'!AF105)","v":11982.777206794663},{"$f":"IF(+'[2]EXT(T)'!AY105=\"\",\"\",+'[2]EXT(T)'!AY105)","v":18043.743945403796},{"$f":"IF(+'[2]EXT(T)'!AZ105=\"\",\"\",+'[2]EXT(T)'!AZ105)","v":18467.743945403796},{"$f":"IF(+'[2]EXT(T)'!AQ105=\"\",\"\",+'[2]EXT(T)'!AQ105-'[2]EXT(T)'!AQ104)","v":149.61328620000006},{"$f":"IF(+'[2]EXT(T)'!AR105=\"\",\"\",+'[2]EXT(T)'!AR105-'[2]EXT(T)'!AR104)","v":1025.1900000000005},{"$f":"IF(+'[2]EXT(T)'!AS105=\"\",\"\",+'[2]EXT(T)'!AS105-'[2]EXT(T)'!AS104)","v":1303.8864000000003},{"$f":"IF(+'[2]EXT(T)'!AT105=\"\",\"\",+'[2]EXT(T)'!AT105-'[2]EXT(T)'!AT104)","v":778.71499021},{"$f":"IF(+'[2]EXT(T)'!AU105=\"\",\"\",+'[2]EXT(T)'!AU105-'[2]EXT(T)'!AU104)","v":290.39999999999998},{"$f":"IF(+'[2]EXT(T)'!AV105=\"\",\"\",+'[2]EXT(T)'!AV105-'[2]EXT(T)'!AV104)","v":1136.2665348215642},{"$f":"IF(+'[2]EXT(T)'!AW105=\"\",\"\",+'[2]EXT(T)'!AW105-'[2]EXT(T)'!AW104)","v":104.10000000000002},4684.071211231565,4788.1712112315654]
[2014,"I",{"$f":"IF(+'[2]EXT(T)'!M106=\"\",\"\",+'[2]EXT(T)'!M106)","v":883.36135368174837},{"$f":"IF(+'[2]EXT(T)'!N106=\"\",\"\",+'[2]EXT(T)'!N106)","v":24.747843127200035},{"$f":"IF(+'[2]EXT(T)'!O106=\"\",\"\",+'[2]EXT(T)'!O106)","v":386.49795},{"$f":"IF(+'[2]EXT(T)'!P106=\"\",\"\",+'[2]EXT(T)'!P106)","v":922.20544063388911},{"$f":"IF(+'[2]EXT(T)'!Q106=\"\",\"\",+'[2]EXT(T)'!Q106)","v":185.5},{"$f":"IF(+'[2]EXT(T)'!R106=\"\",\"\",+'[2]EXT(T)'!R106)","v":504.50000000000011},{"$f":"IF(+'[2]EXT(T)'!S106=\"\",\"\",+'[2]EXT(T)'!S106)","v":1170.8},{"$f":"IF(+'[2]EXT(T)'!U106=\"\",\"\",+'[2]EXT(T)'!U106)","v":2906.8125874428374},{"$f":"IF(+'[2]EXT(T)'!V106=\"\",\"\",+'[2]EXT(T)'!V106)","v":4077.6125874428371},{"$f":"IF(+'[2]EXT(T)'!W106=\"\",\"\",+'[2]EXT(T)'!W106)","v":883.36135368174837},{"$f":"IF(+'[2]EXT(T)'!X106=\"\",\"\",+'[2]EXT(T)'!X106)","v":24.747843127200035},{"$f":"IF(+'[2]EXT(T)'!Y106=\"\",\"\",+'[2]EXT(T)'!Y106)","v":386.49795},{"$f":"IF(+'[2]EXT(T)'!Z106=\"\",\"\",+'[2]EXT(T)'!Z106)","v":922.20544063388911},{"$f":"IF(+'[2]EXT(T)'!AA106=\"\",\"\",+'[2]EXT(T)'!AA106)","v":185.5},{"$f":"IF(+'[2]EXT(T)'!AB106=\"\",\"\",+'[2]EXT(T)'!AB106)","v":504.50000000000011},{"$f":"IF(+'[2]EXT(T)'!AC106=\"\",\"\",+'[2]EXT(T)'!AC106)","v":1170.8},{"$f":"IF(+'[2]EXT(T)'!AE106=\"\",\"\",+'[2]EXT(T)'!AE106)","v":2906.8125874428374},{"$f":"IF(+'[2]EXT(T)'!AF106=\"\",\"\",+'[2]EXT(T)'!AF106)","v":4077.6125874428371},{"$f":"IF(+'[2]EXT(T)'!AY106=\"\",\"\",+'[2]EXT(T)'!AY106)","v":4532.8600254343291},{"$f":"IF(+'[2]EXT(T)'!AZ106=\"\",\"\",+'[2]EXT(T)'!AZ106)","v":4646.6600254343293},{"$f":"IF(+'[2]EXT(T)'!AQ106=\"\",\"\",+'[2]EXT(T)'!AQ106)","v":142.3071721},{"$f":"IF(+'[2]EXT(T)'!AR106=\"\",\"\",+'[2]EXT(T)'!AR106)","v":967.93000000000006},{"$f":"IF(+'[2]EXT(T)'!AS106=\"\",\"\",+'[2]EXT(T)'!AS106)","v":1237.3618999999999},{"$f":"IF(+'[2]EXT(T)'!AT106=\"\",\"\",+'[2]EXT(T)'!AT106)","v":736.05155693000029},{"$f":"IF(+'[2]EXT(T)'!AU106=\"\",\"\",+'[2]EXT(T)'!AU106)","v":277.2},{"$f":"IF(+'[2]EXT(T)'!AV106=\"\",\"\",+'[2]EXT(T)'!AV106)","v":1172.009396404329},{"$f":"IF(+'[2]EXT(T)'!AW106=\"\",\"\",+'[2]EXT(T)'!AW106)","v":113.8},{"$f":"IF(OR(W99=\"\",X99=\"\",Y99=\"\",Z99=\"\",AA99=\"\",AB99=\"\"),\"\",W99+X99+Y99+Z99+AA99+AB99)","v":4532.8600254343291},4646.6600254343293]
[null,"II",{"$f":"IF(+'[2]EXT(T)'!M107=\"\",\"\",+'[2]EXT(T)'!M107)","v":540.25365326792121},{"$f":"IF(+'[2]EXT(T)'!N107=\"\",\"\",+'[2]EXT(T)'!N107)","v":-10.816041675270032},{"$f":"IF(+'[2]EXT(T)'!O107=\"\",\"\",+'[2]EXT(T)'!O107)","v":358.33228000000003},{"$f":"IF(+'[2]EXT(T)'!P107=\"\",\"\",+'[2]EXT(T)'!P107)","v":314.18288119827071},{"$f":"IF(+'[2]EXT(T)'!Q107=\"\",\"\",+'[2]EXT(T)'!Q107)","v":203.5},{"$f":"IF(+'[2]EXT(T)'!R107=\"\",\"\",+'[2]EXT(T)'!R107)","v":677.69999999999982},{"$f":"IF(+'[2]EXT(T)'!S107=\"\",\"\",+'[2]EXT(T)'!S107)","v":991.7},{"$f":"IF(+'[2]EXT(T)'!U107=\"\",\"\",+'[2]EXT(T)'!U107)","v":2083.1527727909215},{"$f":"IF(+'[2]EXT(T)'!V107=\"\",\"\",+'[2]EXT(T)'!V107)","v":3074.8527727909213},{"$f":"IF(+'[2]EXT(T)'!W107=\"\",\"\",+'[2]EXT(T)'!W107)","v":1423.6150069496696},{"$f":"IF(+'[2]EXT(T)'!X107=\"\",\"\",+'[2]EXT(T)'!X107)","v":13.931801451930003},{"$f":"IF(+'[2]EXT(T)'!Y107=\"\",\"\",+'[2]EXT(T)'!Y107)","v":744.83023000000003},{"$f":"IF(+'[2]EXT(T)'!Z107=\"\",\"\",+'[2]EXT(T)'!Z107)","v":1236.3883218321598},{"$f":"IF(+'[2]EXT(T)'!AA107=\"\",\"\",+'[2]EXT(T)'!AA107)","v":389},{"$f":"IF(+'[2]EXT(T)'!AB107=\"\",\"\",+'[2]EXT(T)'!AB107)","v":1182.1999999999998},{"$f":"IF(+'[2]EXT(T)'!AC107=\"\",\"\",+'[2]EXT(T)'!AC107)","v":2162.5},{"$f":"IF(+'[2]EXT(T)'!AE107=\"\",\"\",+'[2]EXT(T)'!AE107)","v":4989.9653602337585},{"$f":"IF(+'[2]EXT(T)'!AF107=\"\",\"\",+'[2]EXT(T)'!AF107)","v":7152.4653602337585},{"$f":"IF(+'[2]EXT(T)'!AY107=\"\",\"\",+'[2]EXT(T)'!AY107)","v":9596.3820320896484},{"$f":"IF(+'[2]EXT(T)'!AZ107=\"\",\"\",+'[2]EXT(T)'!AZ107)","v":9858.3820320896484},{"$f":"IF(+'[2]EXT(T)'!AQ107=\"\",\"\",+'[2]EXT(T)'!AQ107-'[2]EXT(T)'!AQ106)","v":137.67937979999999},{"$f":"IF(+'[2]EXT(T)'!AR107=\"\",\"\",+'[2]EXT(T)'!AR107-'[2]EXT(T)'!AR106)","v":1090.9799999999998},{"$f":"IF(+'[2]EXT(T)'!AS107=\"\",\"\",+'[2]EXT(T)'!AS107-'[2]EXT(T)'!AS106)","v":1466.5990000000002},{"$f":"IF(+'[2]EXT(T)'!AT107=\"\",\"\",+'[2]EXT(T)'!AT107-'[2]EXT(T)'!AT106)","v":911.51896292000038},{"$f":"IF(+'[2]EXT(T)'!AU107=\"\",\"\",+'[2]EXT(T)'!AU107-'[2]EXT(T)'!AU106)","v":277.99999999999994},{"$f":"IF(+'[2]EXT(T)'!AV107=\"\",\"\",+'[2]EXT(T)'!AV107-'[2]EXT(T)'!AV106)","v":1178.7446639353193},{"$f":"IF(+'[2]EXT(T)'!AW107=\"\",\"\",+'[2]EXT(T)'!AW107-'[2]EXT(T)'!AW106)","v":148.19999999999999},5063.5220066553193,5211.7220066553191]
[null,"III",{"$f":"IF(+'[2]EXT(T)'!M108=\"\",\"\",+'[2]EXT(T)'!M108)","v":687.69151992790819},{"$f":"IF(+'[2]EXT(T)'!N108=\"\",\"\",+'[2]EXT(T)'!N108)","v":126.85010329655992},{"$f":"IF(+'[2]EXT(T)'!O108=\"\",\"\",+'[2]EXT(T)'!O108)","v":352.96994999999998},{"$f":"IF(+'[2]EXT(T)'!P108=\"\",\"\",+'[2]EXT(T)'!P108)","v":-194.6829663148518},{"$f":"IF(+'[2]EXT(T)'!Q108=\"\",\"\",+'[2]EXT(T)'!Q108)","v":279.3},{"$f":"IF(+'[2]EXT(T)'!R108=\"\",\"\",+'[2]EXT(T)'!R108)","v":457.1},{"$f":"IF(+'[2]EXT(T)'!S108=\"\",\"\",+'[2]EXT(T)'!S108)","v":1074.7},{"$f":"IF(+'[2]EXT(T)'!U108=\"\",\"\",+'[2]EXT(T)'!U108)","v":1709.2286069096162},{"$f":"IF(+'[2]EXT(T)'!V108=\"\",\"\",+'[2]EXT(T)'!V108)","v":2783.9286069096161},{"$f":"IF(+'[2]EXT(T)'!W108=\"\",\"\",+'[2]EXT(T)'!W108)","v":2111.3065268775777},{"$f":"IF(+'[2]EXT(T)'!X108=\"\",\"\",+'[2]EXT(T)'!X108)","v":140.78190474848992},{"$f":"IF(+'[2]EXT(T)'!Y108=\"\",\"\",+'[2]EXT(T)'!Y108)","v":1097.80018},{"$f":"IF(+'[2]EXT(T)'!Z108=\"\",\"\",+'[2]EXT(T)'!Z108)","v":1041.7053555173079},{"$f":"IF(+'[2]EXT(T)'!AA108=\"\",\"\",+'[2]EXT(T)'!AA108)","v":668.3},{"$f":"IF(+'[2]EXT(T)'!AB108=\"\",\"\",+'[2]EXT(T)'!AB108)","v":1639.2999999999997},{"$f":"IF(+'[2]EXT(T)'!AC108=\"\",\"\",+'[2]EXT(T)'!AC108)","v":3237.2},{"$f":"IF(+'[2]EXT(T)'!AE108=\"\",\"\",+'[2]EXT(T)'!AE108)","v":6699.1939671433747},{"$f":"IF(+'[2]EXT(T)'!AF108=\"\",\"\",+'[2]EXT(T)'!AF108)","v":9936.3939671433745},{"$f":"IF(+'[2]EXT(T)'!AY108=\"\",\"\",+'[2]EXT(T)'!AY108)","v":14486.447433329651},{"$f":"IF(+'[2]EXT(T)'!AZ108=\"\",\"\",+'[2]EXT(T)'!AZ108)","v":14938.347433329651},{"$f":"IF(+'[2]EXT(T)'!AQ108=\"\",\"\",+'[2]EXT(T)'!AQ108-'[2]EXT(T)'!AQ107)","v":138.52207650000003},{"$f":"IF(+'[2]EXT(T)'!AR108=\"\",\"\",+'[2]EXT(T)'!AR108-'[2]EXT(T)'!AR107)","v":1020.8699999999999},{"$f":"IF(+'[2]EXT(T)'!AS108=\"\",\"\",+'[2]EXT(T)'!AS108-'[2]EXT(T)'!AS107)","v":1445.2991999999995},{"$f":"IF(+'[2]EXT(T)'!AT108=\"\",\"\",+'[2]EXT(T)'!AT108-'[2]EXT(T)'!AT107)","v":868.19563705000041},{"$f":"IF(+'[2]EXT(T)'!AU108=\"\",\"\",+'[2]EXT(T)'!AU108-'[2]EXT(T)'!AU107)","v":279.50000000000011},{"$f":"IF(+'[2]EXT(T)'!AV108=\"\",\"\",+'[2]EXT(T)'!AV108-'[2]EXT(T)'!AV107)","v":1137.6784876900015},{"$f":"IF(+'[2]EXT(T)'!AW108=\"\",\"\",+'[2]EXT(T)'!AW108-'[2]EXT(T)'!AW107)","v":189.89999999999998},4890.0654012400009,5079.9654012400006]
[null,"IV",{"$f":"IF(+'[2]EXT(T)'!M109=\"\",\"\",+'[2]EXT(T)'!M109)","v":815.33924265482528},{"$f":"IF(+'[2]EXT(T)'!N109=\"\",\"\",+'[2]EXT(T)'!N109)","v":165.55751455143985},{"$f":"IF(+'[2]EXT(T)'!O109=\"\",\"\",+'[2]EXT(T)'!O109)","v":344.55346999999995},{"$f":"IF(+'[2]EXT(T)'!P109=\"\",\"\",+'[2]EXT(T)'!P109)","v":375.69917842670992},{"$f":"IF(+'[2]EXT(T)'!Q109=\"\",\"\",+'[2]EXT(T)'!Q109)","v":408.5},{"$f":"IF(+'[2]EXT(T)'!R109=\"\",\"\",+'[2]EXT(T)'!R109)","v":569.19999999999982},{"$f":"IF(+'[2]EXT(T)'!S109=\"\",\"\",+'[2]EXT(T)'!S109)","v":1221.5},{"$f":"IF(+'[2]EXT(T)'!U109=\"\",\"\",+'[2]EXT(T)'!U109)","v":2678.8494056329746},{"$f":"IF(+'[2]EXT(T)'!V109=\"\",\"\",+'[2]EXT(T)'!V109)","v":3900.3494056329746},{"$f":"IF(+'[2]EXT(T)'!W109=\"\",\"\",+'[2]EXT(T)'!W109)","v":2926.6457695324029},{"$f":"IF(+'[2]EXT(T)'!X109=\"\",\"\",+'[2]EXT(T)'!X109)","v":306.33941929992977},{"$f":"IF(+'[2]EXT(T)'!Y109=\"\",\"\",+'[2]EXT(T)'!Y109)","v":1442.35365},{"$f":"IF(+'[2]EXT(T)'!Z109=\"\",\"\",+'[2]EXT(T)'!Z109)","v":1417.4045339440179},{"$f":"IF(+'[2]EXT(T)'!AA109=\"\",\"\",+'[2]EXT(T)'!AA109)","v":1076.8},{"$f":"IF(+'[2]EXT(T)'!AB109=\"\",\"\",+'[2]EXT(T)'!AB109)","v":2208.4999999999995},{"$f":"IF(+'[2]EXT(T)'!AC109=\"\",\"\",+'[2]EXT(T)'!AC109)","v":4458.7},{"$f":"IF(+'[2]EXT(T)'!AE109=\"\",\"\",+'[2]EXT(T)'!AE109)","v":9378.0433727763484},{"$f":"IF(+'[2]EXT(T)'!AF109=\"\",\"\",+'[2]EXT(T)'!AF109)","v":13836.743372776349},{"$f":"IF(+'[2]EXT(T)'!AY109=\"\",\"\",+'[2]EXT(T)'!AY109)","v":19385.990982789648},{"$f":"IF(+'[2]EXT(T)'!AZ109=\"\",\"\",+'[2]EXT(T)'!AZ109)","v":20037.89098278965},{"$f":"IF(+'[2]EXT(T)'!AQ109=\"\",\"\",+'[2]EXT(T)'!AQ109-'[2]EXT(T)'!AQ108)","v":139.996756},{"$f":"IF(+'[2]EXT(T)'!AR109=\"\",\"\",+'[2]EXT(T)'!AR109-'[2]EXT(T)'!AR108)","v":1059.3900000000003},{"$f":"IF(+'[2]EXT(T)'!AS109=\"\",\"\",+'[2]EXT(T)'!AS109-'[2]EXT(T)'!AS108)","v":1394.8374999999996},{"$f":"IF(+'[2]EXT(T)'!AT109=\"\",\"\",+'[2]EXT(T)'!AT109-'[2]EXT(T)'!AT108)","v":921.33069462000003},{"$f":"IF(+'[2]EXT(T)'!AU109=\"\",\"\",+'[2]EXT(T)'!AU109-'[2]EXT(T)'!AU108)","v":301.09999999999991},{"$f":"IF(+'[2]EXT(T)'!AV109=\"\",\"\",+'[2]EXT(T)'!AV109-'[2]EXT(T)'!AV108)","v":1082.8885988400002},{"$f":"IF(+'[2]EXT(T)'!AW109=\"\",\"\",+'[2]EXT(T)'!AW109-'[2]EXT(T)'!AW108)","v":200},4899.5435494600006,5099.5435494600006]
[2015,"I",{"$f":"IF(+'[2]EXT(T)'!M110=\"\",\"\",+'[2]EXT(T)'!M110)","v":731.43639103016108},{"$f":"IF(+'[2]EXT(T)'!N110=\"\",\"\",+'[2]EXT(T)'!N110)","v":17.825847949000057},{"$f":"IF(+'[2]EXT(T)'!O110=\"\",\"\",+'[2]EXT(T)'!O110)","v":307.89872000000003},{"$f":"IF(+'[2]EXT(T)'!P110=\"\",\"\",+'[2]EXT(T)'!P110)","v":317.12993525301005},{"$f":"IF(+'[2]EXT(T)'!Q110=\"\",\"\",+'[2]EXT(T)'!Q110)","v":227.09999999999997},{"$f":"IF(+'[2]EXT(T)'!R110=\"\",\"\",+'[2]EXT(T)'!R110)","v":442.9},{"$f":"IF(+'[2]EXT(T)'!S110=\"\",\"\",+'[2]EXT(T)'!S110)","v":1231.8000000000002},{"$f":"IF(+'[2]EXT(T)'!U110=\"\",\"\",+'[2]EXT(T)'!U110)","v":2044.290894232171},{"$f":"IF(+'[2]EXT(T)'!V110=\"\",\"\",+'[2]EXT(T)'!V110)","v":3276.0908942321712},{"$f":"IF(+'[2]EXT(T)'!W110=\"\",\"\",+'[2]EXT(T)'!W110)","v":731.43639103016108},{"$f":"IF(+'[2]EXT(T)'!X110=\"\",\"\",+'[2]EXT(T)'!X110)","v":17.825847949000057},{"$f":"IF(+'[2]EXT(T)'!Y110=\"\",\"\",+'[2]EXT(T)'!Y110)","v":307.89872000000003},{"$f":"IF(+'[2]EXT(T)'!Z110=\"\",\"\",+'[2]EXT(T)'!Z110)","v":317.12993525301005},{"$f":"IF(+'[2]EXT(T)'!AA110=\"\",\"\",+'[2]EXT(T)'!AA110)","v":227.09999999999997},{"$f":"IF(+'[2]EXT(T)'!AB110=\"\",\"\",+'[2]EXT(T)'!AB110)","v":442.9},{"$f":"IF(+'[2]EXT(T)'!AC110=\"\",\"\",+'[2]EXT(T)'!AC110)","v":1231.8000000000002},{"$f":"IF(+'[2]EXT(T)'!AE110=\"\",\"\",+'[2]EXT(T)'!AE110)","v":2044.290894232171},{"$f":"IF(+'[2]EXT(T)'!AF110=\"\",\"\",+'[2]EXT(T)'!AF110)","v":3276.0908942321712},{"$f":"IF(+'[2]EXT(T)'!AY110=\"\",\"\",+'[2]EXT(T)'!AY110)","v":4841.908686699916},{"$f":"IF(+'[2]EXT(T)'!AZ110=\"\",\"\",+'[2]EXT(T)'!AZ110)","v":4949.7086866999161},{"$f":"IF(+'[2]EXT(T)'!AQ110=\"\",\"\",+'[2]EXT(T)'!AQ110)","v":120.38707943},{"$f":"IF(+'[2]EXT(T)'!AR110=\"\",\"\",+'[2]EXT(T)'!AR110)","v":980.83},{"$f":"IF(+'[2]EXT(T)'!AS110=\"\",\"\",+'[2]EXT(T)'!AS110)","v":1395.8903422000001},{"$f":"IF(+'[2]EXT(T)'!AT110=\"\",\"\",+'[2]EXT(T)'!AT110)","v":855.52044485000033},{"$f":"IF(+'[2]EXT(T)'!AU110=\"\",\"\",+'[2]EXT(T)'!AU110)","v":289.2},{"$f":"IF(+'[2]EXT(T)'!AV110=\"\",\"\",+'[2]EXT(T)'!AV110)","v":1200.0808202199153},{"$f":"IF(+'[2]EXT(T)'!AW110=\"\",\"\",+'[2]EXT(T)'!AW110)","v":107.8},{"$f":"IF(OR(W103=\"\",X103=\"\",Y103=\"\",Z103=\"\",AA103=\"\",AB103=\"\"),\"\",W103+X103+Y103+Z103+AA103+AB103)","v":4841.908686699916},4949.7086866999161]
[null,"II",{"$f":"IF(+'[2]EXT(T)'!M111=\"\",\"\",+'[2]EXT(T)'!M111)","v":639.16308711595218},{"$f":"IF(+'[2]EXT(T)'!N111=\"\",\"\",+'[2]EXT(T)'!N111)","v":113.77780540599994},{"$f":"IF(+'[2]EXT(T)'!O111=\"\",\"\",+'[2]EXT(T)'!O111)","v":213.69257000000002},{"$f":"IF(+'[2]EXT(T)'!P111=\"\",\"\",+'[2]EXT(T)'!P111)","v":229.66320250988326},{"$f":"IF(+'[2]EXT(T)'!Q111=\"\",\"\",+'[2]EXT(T)'!Q111)","v":222.7},{"$f":"IF(+'[2]EXT(T)'!R111=\"\",\"\",+'[2]EXT(T)'!R111)","v":695.50000000000011},{"$f":"IF(+'[2]EXT(T)'!S111=\"\",\"\",+'[2]EXT(T)'!S111)","v":1333.6},{"$f":"IF(+'[2]EXT(T)'!U111=\"\",\"\",+'[2]EXT(T)'!U111)","v":2114.4966650318356},{"$f":"IF(+'[2]EXT(T)'!V111=\"\",\"\",+'[2]EXT(T)'!V111)","v":3448.0966650318355},{"$f":"IF(+'[2]EXT(T)'!W111=\"\",\"\",+'[2]EXT(T)'!W111)","v":1370.5994781461131},{"$f":"IF(+'[2]EXT(T)'!X111=\"\",\"\",+'[2]EXT(T)'!X111)","v":131.60365335500001},{"$f":"IF(+'[2]EXT(T)'!Y111=\"\",\"\",+'[2]EXT(T)'!Y111)","v":521.59129000000007},{"$f":"IF(+'[2]EXT(T)'!Z111=\"\",\"\",+'[2]EXT(T)'!Z111)","v":546.79313776289337},{"$f":"IF(+'[2]EXT(T)'!AA111=\"\",\"\",+'[2]EXT(T)'!AA111)","v":449.79999999999995},{"$f":"IF(+'[2]EXT(T)'!AB111=\"\",\"\",+'[2]EXT(T)'!AB111)","v":1138.4000000000001},{"$f":"IF(+'[2]EXT(T)'!AC111=\"\",\"\",+'[2]EXT(T)'!AC111)","v":2565.4},{"$f":"IF(+'[2]EXT(T)'!AE111=\"\",\"\",+'[2]EXT(T)'!AE111)","v":4158.7875592640066},{"$f":"IF(+'[2]EXT(T)'!AF111=\"\",\"\",+'[2]EXT(T)'!AF111)","v":6724.1875592640063},{"$f":"IF(+'[2]EXT(T)'!AY111=\"\",\"\",+'[2]EXT(T)'!AY111)","v":10150.543213001125},{"$f":"IF(+'[2]EXT(T)'!AZ111=\"\",\"\",+'[2]EXT(T)'!AZ111)","v":10373.743213001126},{"$f":"IF(+'[2]EXT(T)'!AQ111=\"\",\"\",+'[2]EXT(T)'!AQ111-'[2]EXT(T)'!AQ110)","v":129.16809891},{"$f":"IF(+'[2]EXT(T)'!AR111=\"\",\"\",+'[2]EXT(T)'!AR111-'[2]EXT(T)'!AR110)","v":1099.94},{"$f":"IF(+'[2]EXT(T)'!AS111=\"\",\"\",+'[2]EXT(T)'!AS111-'[2]EXT(T)'!AS110)","v":1559.1044000000004},{"$f":"IF(+'[2]EXT(T)'!AT111=\"\",\"\",+'[2]EXT(T)'!AT111-'[2]EXT(T)'!AT110)","v":955.74376939000012},{"$f":"IF(+'[2]EXT(T)'!AU111=\"\",\"\",+'[2]EXT(T)'!AU111-'[2]EXT(T)'!AU110)","v":292.40000000000003},{"$f":"IF(+'[2]EXT(T)'!AV111=\"\",\"\",+'[2]EXT(T)'!AV111-'[2]EXT(T)'!AV110)","v":1272.2782580012079},{"$f":"IF(+'[2]EXT(T)'!AW111=\"\",\"\",+'[2]EXT(T)'!AW111-'[2]EXT(T)'!AW110)","v":115.39999999999999},5308.6345263012081,5424.0345263012077]
[null,"III",{"$f":"IF(+'[2]EXT(T)'!M112=\"\",\"\",+'[2]EXT(T)'!M112)","v":647.33808828210783},{"$f":"IF(+'[2]EXT(T)'!N112=\"\",\"\",+'[2]EXT(T)'!N112)","v":126.09946136900001},{"$f":"IF(+'[2]EXT(T)'!O112=\"\",\"\",+'[2]EXT(T)'!O112)","v":264.93295000000001},{"$f":"IF(+'[2]EXT(T)'!P112=\"\",\"\",+'[2]EXT(T)'!P112)","v":293.64401185537554},{"$f":"IF(+'[2]EXT(T)'!Q112=\"\",\"\",+'[2]EXT(T)'!Q112)","v":230.60000000000002},{"$f":"IF(+'[2]EXT(T)'!R112=\"\",\"\",+'[2]EXT(T)'!R112)","v":648.99999999999977},{"$f":"IF(+'[2]EXT(T)'!S112=\"\",\"\",+'[2]EXT(T)'!S112)","v":1089.3},{"$f":"IF(+'[2]EXT(T)'!U112=\"\",\"\",+'[2]EXT(T)'!U112)","v":2211.6145115064828},{"$f":"IF(+'[2]EXT(T)'!V112=\"\",\"\",+'[2]EXT(T)'!V112)","v":3300.914511506483},{"$f":"IF(+'[2]EXT(T)'!W112=\"\",\"\",+'[2]EXT(T)'!W112)","v":2017.9375664282211},{"$f":"IF(+'[2]EXT(T)'!X112=\"\",\"\",+'[2]EXT(T)'!X112)","v":257.70311472399999},{"$f":"IF(+'[2]EXT(T)'!Y112=\"\",\"\",+'[2]EXT(T)'!Y112)","v":786.52424000000008},{"$f":"IF(+'[2]EXT(T)'!Z112=\"\",\"\",+'[2]EXT(T)'!Z112)","v":840.4371496182689},{"$f":"IF(+'[2]EXT(T)'!AA112=\"\",\"\",+'[2]EXT(T)'!AA112)","v":680.4},{"$f":"IF(+'[2]EXT(T)'!AB112=\"\",\"\",+'[2]EXT(T)'!AB112)","v":1787.3999999999999},{"$f":"IF(+'[2]EXT(T)'!AC112=\"\",\"\",+'[2]EXT(T)'!AC112)","v":3654.7},{"$f":"IF(+'[2]EXT(T)'!AE112=\"\",\"\",+'[2]EXT(T)'!AE112)","v":6370.4020707704894},{"$f":"IF(+'[2]EXT(T)'!AF112=\"\",\"\",+'[2]EXT(T)'!AF112)","v":10025.102070770488},{"$f":"IF(+'[2]EXT(T)'!AY112=\"\",\"\",+'[2]EXT(T)'!AY112)","v":15495.075798931057},{"$f":"IF(+'[2]EXT(T)'!AZ112=\"\",\"\",+'[2]EXT(T)'!AZ112)","v":15839.075798931057},{"$f":"IF(+'[2]EXT(T)'!AQ112=\"\",\"\",+'[2]EXT(T)'!AQ112-'[2]EXT(T)'!AQ111)","v":131.50105795000002},{"$f":"IF(+'[2]EXT(T)'!AR112=\"\",\"\",+'[2]EXT(T)'!AR112-'[2]EXT(T)'!AR111)","v":1055.7900000000004},{"$f":"IF(+'[2]EXT(T)'!AS112=\"\",\"\",+'[2]EXT(T)'!AS112-'[2]EXT(T)'!AS111)","v":1639.4076999999997},{"$f":"IF(+'[2]EXT(T)'!AT112=\"\",\"\",+'[2]EXT(T)'!AT112-'[2]EXT(T)'!AT111)","v":963.23550287000035},{"$f":"IF(+'[2]EXT(T)'!AU112=\"\",\"\",+'[2]EXT(T)'!AU112-'[2]EXT(T)'!AU111)","v":292.90000000000009},{"$f":"IF(+'[2]EXT(T)'!AV112=\"\",\"\",+'[2]EXT(T)'!AV112-'[2]EXT(T)'!AV111)","v":1261.6983251099318},{"$f":"IF(+'[2]EXT(T)'!AW112=\"\",\"\",+'[2]EXT(T)'!AW112-'[2]EXT(T)'!AW111)","v":120.80000000000001},5344.5325859299319,5465.3325859299321]
[null,"IV",{"$f":"IF(+'[2]EXT(T)'!M113=\"\",\"\",+'[2]EXT(T)'!M113)","v":733.94091497156751},{"$f":"IF(+'[2]EXT(T)'!N113=\"\",\"\",+'[2]EXT(T)'!N113)","v":140.61117111829813},{"$f":"IF(+'[2]EXT(T)'!O113=\"\",\"\",+'[2]EXT(T)'!O113)","v":444.37046999999995},{"$f":"IF(+'[2]EXT(T)'!P113=\"\",\"\",+'[2]EXT(T)'!P113)","v":363.07470494648589},{"$f":"IF(+'[2]EXT(T)'!Q113=\"\",\"\",+'[2]EXT(T)'!Q113)","v":286.60000000000002},{"$f":"IF(+'[2]EXT(T)'!R113=\"\",\"\",+'[2]EXT(T)'!R113)","v":417.50000000000006},{"$f":"IF(+'[2]EXT(T)'!S113=\"\",\"\",+'[2]EXT(T)'!S113)","v":901.10000000000014},{"$f":"IF(+'[2]EXT(T)'!U113=\"\",\"\",+'[2]EXT(T)'!U113)","v":2386.0972610363515},{"$f":"IF(+'[2]EXT(T)'!V113=\"\",\"\",+'[2]EXT(T)'!V113)","v":3287.1972610363518},{"$f":"IF(+'[2]EXT(T)'!W113=\"\",\"\",+'[2]EXT(T)'!W113)","v":2751.8784813997886},{"$f":"IF(+'[2]EXT(T)'!X113=\"\",\"\",+'[2]EXT(T)'!X113)","v":398.31428584229809},{"$f":"IF(+'[2]EXT(T)'!Y113=\"\",\"\",+'[2]EXT(T)'!Y113)","v":1230.89471},{"$f":"IF(+'[2]EXT(T)'!Z113=\"\",\"\",+'[2]EXT(T)'!Z113)","v":1203.5118545647547},{"$f":"IF(+'[2]EXT(T)'!AA113=\"\",\"\",+'[2]EXT(T)'!AA113)","v":967},{"$f":"IF(+'[2]EXT(T)'!AB113=\"\",\"\",+'[2]EXT(T)'!AB113)","v":2204.9},{"$f":"IF(+'[2]EXT(T)'!AC113=\"\",\"\",+'[2]EXT(T)'!AC113)","v":4555.8},{"$f":"IF(+'[2]EXT(T)'!AE113=\"\",\"\",+'[2]EXT(T)'!AE113)","v":8756.4993318068409},{"$f":"IF(+'[2]EXT(T)'!AF113=\"\",\"\",+'[2]EXT(T)'!AF113)","v":13312.29933180684},{"$f":"IF(+'[2]EXT(T)'!AY113=\"\",\"\",+'[2]EXT(T)'!AY113)","v":20939.883254297314},{"$f":"IF(+'[2]EXT(T)'!AZ113=\"\",\"\",+'[2]EXT(T)'!AZ113)","v":21412.583254297315},{"$f":"IF(+'[2]EXT(T)'!AQ113=\"\",\"\",+'[2]EXT(T)'!AQ113-'[2]EXT(T)'!AQ112)","v":136.44827134000002},{"$f":"IF(+'[2]EXT(T)'!AR113=\"\",\"\",+'[2]EXT(T)'!AR113-'[2]EXT(T)'!AR112)","v":1120.0100000000002},{"$f":"IF(+'[2]EXT(T)'!AS113=\"\",\"\",+'[2]EXT(T)'!AS113-'[2]EXT(T)'!AS112)","v":1690.5753999999997},{"$f":"IF(+'[2]EXT(T)'!AT113=\"\",\"\",+'[2]EXT(T)'!AT113-'[2]EXT(T)'!AT112)","v":952.17695929000047},{"$f":"IF(+'[2]EXT(T)'!AU113=\"\",\"\",+'[2]EXT(T)'!AU113-'[2]EXT(T)'!AU112)","v":318.89999999999998},{"$f":"IF(+'[2]EXT(T)'!AV113=\"\",\"\",+'[2]EXT(T)'!AV113-'[2]EXT(T)'!AV112)","v":1226.6968247362593},{"$f":"IF(+'[2]EXT(T)'!AW113=\"\",\"\",+'[2]EXT(T)'!AW113-'[2]EXT(T)'!AW112)","v":128.69999999999999},5444.80745536626,{"$f":"IF(OR(X106=\"\",Y106=\"\",Z106=\"\",AA106=\"\",AB106=\"\",AC106=\"\",W106=\"\"),\"\",X106+W106+Y106+Z106+AA106+AB106+AC106)","v":5573.5074553662598}]
[2016,"I",{"$f":"IF(+'[2]EXT(T)'!M114=\"\",\"\",+'[2]EXT(T)'!M114)","v":516.13585379775668},{"$f":"IF(+'[2]EXT(T)'!N114=\"\",\"\",+'[2]EXT(T)'!N114)","v":128.04810531099983},{"$f":"IF(+'[2]EXT(T)'!O114=\"\",\"\",+'[2]EXT(T)'!O114)","v":270.44161000000003},{"$f":"IF(+'[2]EXT(T)'!P114=\"\",\"\",+'[2]EXT(T)'!P114)","v":314.47139430549578},{"$f":"IF(+'[2]EXT(T)'!Q114=\"\",\"\",+'[2]EXT(T)'!Q114)","v":283.10000000000002},{"$f":"IF(+'[2]EXT(T)'!R114=\"\",\"\",+'[2]EXT(T)'!R114)","v":157.60000000000008},{"$f":"IF(+'[2]EXT(T)'!S114=\"\",\"\",+'[2]EXT(T)'!S114)","v":1275.1678370899999},{"$f":"IF(+'[2]EXT(T)'!U114=\"\",\"\",+'[2]EXT(T)'!U114)","v":1669.7969634142526},{"$f":"IF(+'[2]EXT(T)'!V114=\"\",\"\",+'[2]EXT(T)'!V114)","v":2944.9648005042527},{"$f":"IF(+'[2]EXT(T)'!W114=\"\",\"\",+'[2]EXT(T)'!W114)","v":516.13585379775668},{"$f":"IF(+'[2]EXT(T)'!X114=\"\",\"\",+'[2]EXT(T)'!X114)","v":128.04810531099983},{"$f":"IF(+'[2]EXT(T)'!Y114=\"\",\"\",+'[2]EXT(T)'!Y114)","v":270.44161000000003},{"$f":"IF(+'[2]EXT(T)'!Z114=\"\",\"\",+'[2]EXT(T)'!Z114)","v":314.47139430549578},{"$f":"IF(+'[2]EXT(T)'!AA114=\"\",\"\",+'[2]EXT(T)'!AA114)","v":283.10000000000002},{"$f":"IF(+'[2]EXT(T)'!AB114=\"\",\"\",+'[2]EXT(T)'!AB114)","v":157.60000000000008},{"$f":"IF(+'[2]EXT(T)'!AC114=\"\",\"\",+'[2]EXT(T)'!AC114)","v":1275.1678370899999},{"$f":"IF(+'[2]EXT(T)'!AE114=\"\",\"\",+'[2]EXT(T)'!AE114)","v":1669.7969634142526},{"$f":"IF(+'[2]EXT(T)'!AF114=\"\",\"\",+'[2]EXT(T)'!AF114)","v":2944.9648005042527},{"$f":"IF(+'[2]EXT(T)'!AY114=\"\",\"\",+'[2]EXT(T)'!AY114)","v":5325.2413836345213},{"$f":"IF(+'[2]EXT(T)'!AZ114=\"\",\"\",+'[2]EXT(T)'!AZ114)","v":5426.6413836345209},{"$f":"IF(+'[2]EXT(T)'!AQ114=\"\",\"\",+'[2]EXT(T)'!AQ114)","v":118.83448905},{"$f":"IF(+'[2]EXT(T)'!AR114=\"\",\"\",+'[2]EXT(T)'!AR114)","v":1038.48},{"$f":"IF(+'[2]EXT(T)'!AS114=\"\",\"\",+'[2]EXT(T)'!AS114)","v":1662.9848},{"$f":"IF(+'[2]EXT(T)'!AT114=\"\",\"\",+'[2]EXT(T)'!AT114)","v":913.30912053000031},{"$f":"IF(+'[2]EXT(T)'!AU114=\"\",\"\",+'[2]EXT(T)'!AU114)","v":302.3},{"$f":"IF(+'[2]EXT(T)'!AV114=\"\",\"\",+'[2]EXT(T)'!AV114)","v":1289.3329740545207},{"$f":"IF(+'[2]EXT(T)'!AW114=\"\",\"\",+'[2]EXT(T)'!AW114)","v":101.4},{"$f":"IF(OR(W107=\"\",X107=\"\",Y107=\"\",Z107=\"\",AA107=\"\",AB107=\"\"),\"\",W107+X107+Y107+Z107+AA107+AB107)","v":5325.2413836345213},5426.6413836345209]
[null,"II",{"$f":"IF(+'[2]EXT(T)'!M115=\"\",\"\",+'[2]EXT(T)'!M115)","v":571.6751935094187},{"$f":"IF(+'[2]EXT(T)'!N115=\"\",\"\",+'[2]EXT(T)'!N115)","v":20.604632342999849},{"$f":"IF(+'[2]EXT(T)'!O115=\"\",\"\",+'[2]EXT(T)'!O115)","v":341.21114999999998},{"$f":"IF(+'[2]EXT(T)'!P115=\"\",\"\",+'[2]EXT(T)'!P115)","v":246.27218045748299},{"$f":"IF(+'[2]EXT(T)'!Q115=\"\",\"\",+'[2]EXT(T)'!Q115)","v":345},{"$f":"IF(+'[2]EXT(T)'!R115=\"\",\"\",+'[2]EXT(T)'!R115)","v":869.2},{"$f":"IF(+'[2]EXT(T)'!S115=\"\",\"\",+'[2]EXT(T)'!S115)","v":1351.5417986699999},{"$f":"IF(+'[2]EXT(T)'!U115=\"\",\"\",+'[2]EXT(T)'!U115)","v":2393.9631563099015},{"$f":"IF(+'[2]EXT(T)'!V115=\"\",\"\",+'[2]EXT(T)'!V115)","v":3745.5049549799014},{"$f":"IF(+'[2]EXT(T)'!W115=\"\",\"\",+'[2]EXT(T)'!W115)","v":1087.8110473071754},{"$f":"IF(+'[2]EXT(T)'!X115=\"\",\"\",+'[2]EXT(T)'!X115)","v":148.65273765399968},{"$f":"IF(+'[2]EXT(T)'!Y115=\"\",\"\",+'[2]EXT(T)'!Y115)","v":611.65275999999994},{"$f":"IF(+'[2]EXT(T)'!Z115=\"\",\"\",+'[2]EXT(T)'!Z115)","v":560.74357476297882},{"$f":"IF(+'[2]EXT(T)'!AA115=\"\",\"\",+'[2]EXT(T)'!AA115)","v":628.1},{"$f":"IF(+'[2]EXT(T)'!AB115=\"\",\"\",+'[2]EXT(T)'!AB115)","v":1026.8000000000002},{"$f":"IF(+'[2]EXT(T)'!AC115=\"\",\"\",+'[2]EXT(T)'!AC115)","v":2626.7096357599999},{"$f":"IF(+'[2]EXT(T)'!AE115=\"\",\"\",+'[2]EXT(T)'!AE115)","v":4063.7601197241538},{"$f":"IF(+'[2]EXT(T)'!AF115=\"\",\"\",+'[2]EXT(T)'!AF115)","v":6690.4697554841541},{"$f":"IF(+'[2]EXT(T)'!AY115=\"\",\"\",+'[2]EXT(T)'!AY115)","v":11090.190816688204},{"$f":"IF(+'[2]EXT(T)'!AZ115=\"\",\"\",+'[2]EXT(T)'!AZ115)","v":11295.790816688204},{"$f":"IF(+'[2]EXT(T)'!AQ115=\"\",\"\",+'[2]EXT(T)'!AQ115-'[2]EXT(T)'!AQ114)","v":129.78073734},{"$f":"IF(+'[2]EXT(T)'!AR115=\"\",\"\",+'[2]EXT(T)'!AR115-'[2]EXT(T)'!AR114)","v":1167.1300000000001},{"$f":"IF(+'[2]EXT(T)'!AS115=\"\",\"\",+'[2]EXT(T)'!AS115-'[2]EXT(T)'!AS114)","v":1849.2740999999999},{"$f":"IF(+'[2]EXT(T)'!AT115=\"\",\"\",+'[2]EXT(T)'!AT115-'[2]EXT(T)'!AT114)","v":1011.5852947400002},{"$f":"IF(+'[2]EXT(T)'!AU115=\"\",\"\",+'[2]EXT(T)'!AU115-'[2]EXT(T)'!AU114)","v":306.40000000000003},{"$f":"IF(+'[2]EXT(T)'!AV115=\"\",\"\",+'[2]EXT(T)'!AV115-'[2]EXT(T)'!AV114)","v":1300.7793009736818},{"$f":"IF(+'[2]EXT(T)'!AW115=\"\",\"\",+'[2]EXT(T)'!AW115-'[2]EXT(T)'!AW114)","v":104.20000000000002},5764.9494330536809,5869.1494330536807]
[null,"III",{"$f":"IF(+'[2]EXT(T)'!M116=\"\",\"\",+'[2]EXT(T)'!M116)","v":429.8027601007588},{"$f":"IF(+'[2]EXT(T)'!N116=\"\",\"\",+'[2]EXT(T)'!N116)","v":265.07310696915579},{"$f":"IF(+'[2]EXT(T)'!O116=\"\",\"\",+'[2]EXT(T)'!O116)","v":299.88634999999999},{"$f":"IF(+'[2]EXT(T)'!P116=\"\",\"\",+'[2]EXT(T)'!P116)","v":169.41579960119591},{"$f":"IF(+'[2]EXT(T)'!Q116=\"\",\"\",+'[2]EXT(T)'!Q116)","v":280},{"$f":"IF(+'[2]EXT(T)'!R116=\"\",\"\",+'[2]EXT(T)'!R116)","v":667.60000000000014},{"$f":"IF(+'[2]EXT(T)'!S116=\"\",\"\",+'[2]EXT(T)'!S116)","v":1392.01408064},{"$f":"IF(+'[2]EXT(T)'!U116=\"\",\"\",+'[2]EXT(T)'!U116)","v":2111.7780166711109},{"$f":"IF(+'[2]EXT(T)'!V116=\"\",\"\",+'[2]EXT(T)'!V116)","v":3503.7920973111109},{"$f":"IF(+'[2]EXT(T)'!W116=\"\",\"\",+'[2]EXT(T)'!W116)","v":1517.6138074079342},{"$f":"IF(+'[2]EXT(T)'!X116=\"\",\"\",+'[2]EXT(T)'!X116)","v":413.72584462315547},{"$f":"IF(+'[2]EXT(T)'!Y116=\"\",\"\",+'[2]EXT(T)'!Y116)","v":911.53910999999994},{"$f":"IF(+'[2]EXT(T)'!Z116=\"\",\"\",+'[2]EXT(T)'!Z116)","v":730.15937436417471},{"$f":"IF(+'[2]EXT(T)'!AA116=\"\",\"\",+'[2]EXT(T)'!AA116)","v":908.1},{"$f":"IF(+'[2]EXT(T)'!AB116=\"\",\"\",+'[2]EXT(T)'!AB116)","v":1694.4000000000003},{"$f":"IF(+'[2]EXT(T)'!AC116=\"\",\"\",+'[2]EXT(T)'!AC116)","v":4018.7237163999998},{"$f":"IF(+'[2]EXT(T)'!AE116=\"\",\"\",+'[2]EXT(T)'!AE116)","v":6175.5381363952647},{"$f":"IF(+'[2]EXT(T)'!AF116=\"\",\"\",+'[2]EXT(T)'!AF116)","v":10194.261852795265},{"$f":"IF(+'[2]EXT(T)'!AY116=\"\",\"\",+'[2]EXT(T)'!AY116)","v":16728.773070796502},{"$f":"IF(+'[2]EXT(T)'!AZ116=\"\",\"\",+'[2]EXT(T)'!AZ116)","v":17040.373070796501},{"$f":"IF(+'[2]EXT(T)'!AQ116=\"\",\"\",+'[2]EXT(T)'!AQ116-'[2]EXT(T)'!AQ115)","v":133.19531875000004},{"$f":"IF(+'[2]EXT(T)'!AR116=\"\",\"\",+'[2]EXT(T)'!AR116-'[2]EXT(T)'!AR115)","v":1109.4299999999998},{"$f":"IF(+'[2]EXT(T)'!AS116=\"\",\"\",+'[2]EXT(T)'!AS116-'[2]EXT(T)'!AS115)","v":1763.0153},{"$f":"IF(+'[2]EXT(T)'!AT116=\"\",\"\",+'[2]EXT(T)'!AT116-'[2]EXT(T)'!AT115)","v":1002.1497073500004},{"$f":"IF(+'[2]EXT(T)'!AU116=\"\",\"\",+'[2]EXT(T)'!AU116-'[2]EXT(T)'!AU115)","v":312.89999999999998},{"$f":"IF(+'[2]EXT(T)'!AV116=\"\",\"\",+'[2]EXT(T)'!AV116-'[2]EXT(T)'!AV115)","v":1317.8919280082996},{"$f":"IF(+'[2]EXT(T)'!AW116=\"\",\"\",+'[2]EXT(T)'!AW116-'[2]EXT(T)'!AW115)","v":106},5638.5822541082998,5744.5822541082998]
[null,"IV",{"$f":"IF(+'[2]EXT(T)'!M117=\"\",\"\",+'[2]EXT(T)'!M117)","v":686.3345732151713},{"$f":"IF(+'[2]EXT(T)'!N117=\"\",\"\",+'[2]EXT(T)'!N117)","v":-68.671623869334397},{"$f":"IF(+'[2]EXT(T)'!O117=\"\",\"\",+'[2]EXT(T)'!O117)","v":262.83296000000001},{"$f":"IF(+'[2]EXT(T)'!P117=\"\",\"\",+'[2]EXT(T)'!P117)","v":409.197273918029},{"$f":"IF(+'[2]EXT(T)'!Q117=\"\",\"\",+'[2]EXT(T)'!Q117)","v":81.000000000000014},{"$f":"IF(+'[2]EXT(T)'!R117=\"\",\"\",+'[2]EXT(T)'!R117)","v":712.3},{"$f":"IF(+'[2]EXT(T)'!S117=\"\",\"\",+'[2]EXT(T)'!S117)","v":726.69883381},{"$f":"IF(+'[2]EXT(T)'!U117=\"\",\"\",+'[2]EXT(T)'!U117)","v":2082.9931832638658},{"$f":"IF(+'[2]EXT(T)'!V117=\"\",\"\",+'[2]EXT(T)'!V117)","v":2809.6920170738658},{"$f":"IF(+'[2]EXT(T)'!W117=\"\",\"\",+'[2]EXT(T)'!W117)","v":2203.9483806231055},{"$f":"IF(+'[2]EXT(T)'!X117=\"\",\"\",+'[2]EXT(T)'!X117)","v":345.05422075382108},{"$f":"IF(+'[2]EXT(T)'!Y117=\"\",\"\",+'[2]EXT(T)'!Y117)","v":1174.3720699999999},{"$f":"IF(+'[2]EXT(T)'!Z117=\"\",\"\",+'[2]EXT(T)'!Z117)","v":1139.3566482822037},{"$f":"IF(+'[2]EXT(T)'!AA117=\"\",\"\",+'[2]EXT(T)'!AA117)","v":989.1},{"$f":"IF(+'[2]EXT(T)'!AB117=\"\",\"\",+'[2]EXT(T)'!AB117)","v":2406.7000000000003},{"$f":"IF(+'[2]EXT(T)'!AC117=\"\",\"\",+'[2]EXT(T)'!AC117)","v":4745.4225502099998},{"$f":"IF(+'[2]EXT(T)'!AE117=\"\",\"\",+'[2]EXT(T)'!AE117)","v":8258.5313196591305},{"$f":"IF(+'[2]EXT(T)'!AF117=\"\",\"\",+'[2]EXT(T)'!AF117)","v":13003.953869869132},{"$f":"IF(+'[2]EXT(T)'!AY117=\"\",\"\",+'[2]EXT(T)'!AY117)","v":22692.590534253191},{"$f":"IF(+'[2]EXT(T)'!AZ117=\"\",\"\",+'[2]EXT(T)'!AZ117)","v":23118.69053425319},{"$f":"IF(+'[2]EXT(T)'!AQ117=\"\",\"\",+'[2]EXT(T)'!AQ117-'[2]EXT(T)'!AQ116)","v":132.98522796999998},{"$f":"IF(+'[2]EXT(T)'!AR117=\"\",\"\",+'[2]EXT(T)'!AR117-'[2]EXT(T)'!AR116)","v":1228.8099999999995},{"$f":"IF(+'[2]EXT(T)'!AS117=\"\",\"\",+'[2]EXT(T)'!AS117-'[2]EXT(T)'!AS116)","v":1884.6934999999994},{"$f":"IF(+'[2]EXT(T)'!AT117=\"\",\"\",+'[2]EXT(T)'!AT117-'[2]EXT(T)'!AT116)","v":1021.9863861700005},{"$f":"IF(+'[2]EXT(T)'!AU117=\"\",\"\",+'[2]EXT(T)'!AU117-'[2]EXT(T)'!AU116)","v":342.49999999999989},{"$f":"IF(+'[2]EXT(T)'!AV117=\"\",\"\",+'[2]EXT(T)'!AV117-'[2]EXT(T)'!AV116)","v":1352.8423493166893},{"$f":"IF(+'[2]EXT(T)'!AW117=\"\",\"\",+'[2]EXT(T)'!AW117-'[2]EXT(T)'!AW116)","v":114.5},5963.8174634566885,6078.3174634566885]
[2017,"I",{"$f":"IF(+'[2]EXT(T)'!M118=\"\",\"\",+'[2]EXT(T)'!M118)","v":878.0174938692353},{"$f":"IF(+'[2]EXT(T)'!N118=\"\",\"\",+'[2]EXT(T)'!N118)","v":137.73629427626753},{"$f":"IF(+'[2]EXT(T)'!O118=\"\",\"\",+'[2]EXT(T)'!O118)","v":292.60000000000002},{"$f":"IF(+'[2]EXT(T)'!P118=\"\",\"\",+'[2]EXT(T)'!P118)","v":321.09681676777484},{"$f":"IF(+'[2]EXT(T)'!Q118=\"\",\"\",+'[2]EXT(T)'!Q118)","v":223.20000000000002},{"$f":"IF(+'[2]EXT(T)'!R118=\"\",\"\",+'[2]EXT(T)'!R118)","v":712.29999999999984},{"$f":"IF(+'[2]EXT(T)'!S118=\"\",\"\",+'[2]EXT(T)'!S118)","v":1291.27483463},{"$f":"IF(+'[2]EXT(T)'!U118=\"\",\"\",+'[2]EXT(T)'!U118)","v":2564.9506049132774},{"$f":"IF(+'[2]EXT(T)'!V118=\"\",\"\",+'[2]EXT(T)'!V118)","v":3856.2254395432774},{"$f":"IF(+'[2]EXT(T)'!W118=\"\",\"\",+'[2]EXT(T)'!W118)","v":878.0174938692353},{"$f":"IF(+'[2]EXT(T)'!X118=\"\",\"\",+'[2]EXT(T)'!X118)","v":137.73629427626753},{"$f":"IF(+'[2]EXT(T)'!Y118=\"\",\"\",+'[2]EXT(T)'!Y118)","v":292.60000000000002},{"$f":"IF(+'[2]EXT(T)'!Z118=\"\",\"\",+'[2]EXT(T)'!Z118)","v":321.09681676777484},{"$f":"IF(+'[2]EXT(T)'!AA118=\"\",\"\",+'[2]EXT(T)'!AA118)","v":223.20000000000002},{"$f":"IF(+'[2]EXT(T)'!AB118=\"\",\"\",+'[2]EXT(T)'!AB118)","v":712.29999999999984},{"$f":"IF(+'[2]EXT(T)'!AC118=\"\",\"\",+'[2]EXT(T)'!AC118)","v":1291.27483463},{"$f":"IF(+'[2]EXT(T)'!AE118=\"\",\"\",+'[2]EXT(T)'!AE118)","v":2564.9506049132774},{"$f":"IF(+'[2]EXT(T)'!AF118=\"\",\"\",+'[2]EXT(T)'!AF118)","v":3856.2254395432774},{"$f":"IF(+'[2]EXT(T)'!AY118=\"\",\"\",+'[2]EXT(T)'!AY118)","v":6047.5686435413481},{"$f":"IF(+'[2]EXT(T)'!AZ118=\"\",\"\",+'[2]EXT(T)'!AZ118)","v":6151.268643541348},{"$f":"IF(+'[2]EXT(T)'!AQ118=\"\",\"\",+'[2]EXT(T)'!AQ118)","v":126.76014153},{"$f":"IF(+'[2]EXT(T)'!AR118=\"\",\"\",+'[2]EXT(T)'!AR118)","v":1163.56},{"$f":"IF(+'[2]EXT(T)'!AS118=\"\",\"\",+'[2]EXT(T)'!AS118)","v":1941.35},{"$f":"IF(+'[2]EXT(T)'!AT118=\"\",\"\",+'[2]EXT(T)'!AT118)","v":1037.6895514800001},{"$f":"IF(+'[2]EXT(T)'!AU118=\"\",\"\",+'[2]EXT(T)'!AU118)","v":323.29999999999995},{"$f":"IF(+'[2]EXT(T)'!AV118=\"\",\"\",+'[2]EXT(T)'!AV118)","v":1454.9089505313482},{"$f":"IF(+'[2]EXT(T)'!AW118=\"\",\"\",+'[2]EXT(T)'!AW118)","v":103.7},6047.5686435413481,6151.268643541348]
[null,"II",{"$f":"IF(+'[2]EXT(T)'!M119=\"\",\"\",+'[2]EXT(T)'!M119)","v":776.06582432054734},{"$f":"IF(+'[2]EXT(T)'!N119=\"\",\"\",+'[2]EXT(T)'!N119)","v":196.9727085065},{"$f":"IF(+'[2]EXT(T)'!O119=\"\",\"\",+'[2]EXT(T)'!O119)","v":219},{"$f":"IF(+'[2]EXT(T)'!P119=\"\",\"\",+'[2]EXT(T)'!P119)","v":287.65855807154389},{"$f":"IF(+'[2]EXT(T)'!Q119=\"\",\"\",+'[2]EXT(T)'!Q119)","v":326.5},{"$f":"IF(+'[2]EXT(T)'!R119=\"\",\"\",+'[2]EXT(T)'!R119)","v":614.39999999999986},{"$f":"IF(+'[2]EXT(T)'!S119=\"\",\"\",+'[2]EXT(T)'!S119)","v":1317.76530981},{"$f":"IF(+'[2]EXT(T)'!U119=\"\",\"\",+'[2]EXT(T)'!U119)","v":2420.597090898591},{"$f":"IF(+'[2]EXT(T)'!V119=\"\",\"\",+'[2]EXT(T)'!V119)","v":3738.3624007085909},{"$f":"IF(+'[2]EXT(T)'!W119=\"\",\"\",+'[2]EXT(T)'!W119)","v":1654.0833181897826},{"$f":"IF(+'[2]EXT(T)'!X119=\"\",\"\",+'[2]EXT(T)'!X119)","v":334.70900278276753},{"$f":"IF(+'[2]EXT(T)'!Y119=\"\",\"\",+'[2]EXT(T)'!Y119)","v":511.6},{"$f":"IF(+'[2]EXT(T)'!Z119=\"\",\"\",+'[2]EXT(T)'!Z119)","v":608.75537483931873},{"$f":"IF(+'[2]EXT(T)'!AA119=\"\",\"\",+'[2]EXT(T)'!AA119)","v":549.70000000000005},{"$f":"IF(+'[2]EXT(T)'!AB119=\"\",\"\",+'[2]EXT(T)'!AB119)","v":1326.6999999999998},{"$f":"IF(+'[2]EXT(T)'!AC119=\"\",\"\",+'[2]EXT(T)'!AC119)","v":2609.0401444399999},{"$f":"IF(+'[2]EXT(T)'!AE119=\"\",\"\",+'[2]EXT(T)'!AE119)","v":4985.5476958118688},{"$f":"IF(+'[2]EXT(T)'!AF119=\"\",\"\",+'[2]EXT(T)'!AF119)","v":7594.5878402518683},{"$f":"IF(+'[2]EXT(T)'!AY119=\"\",\"\",+'[2]EXT(T)'!AY119)","v":12496.05519875736},{"$f":"IF(+'[2]EXT(T)'!AZ119=\"\",\"\",+'[2]EXT(T)'!AZ119)","v":12708.15519875736},{"$f":"IF(+'[2]EXT(T)'!AQ119=\"\",\"\",+'[2]EXT(T)'!AQ119-'[2]EXT(T)'!AQ118)","v":132.32606936999997},{"$f":"IF(+'[2]EXT(T)'!AR119=\"\",\"\",+'[2]EXT(T)'!AR119-'[2]EXT(T)'!AR118)","v":1268.27},{"$f":"IF(+'[2]EXT(T)'!AS119=\"\",\"\",+'[2]EXT(T)'!AS119-'[2]EXT(T)'!AS118)","v":2111.02},{"$f":"IF(+'[2]EXT(T)'!AT119=\"\",\"\",+'[2]EXT(T)'!AT119-'[2]EXT(T)'!AT118)","v":1142.5560377100003},{"$f":"IF(+'[2]EXT(T)'!AU119=\"\",\"\",+'[2]EXT(T)'!AU119-'[2]EXT(T)'!AU118)","v":340.70000000000005},{"$f":"IF(+'[2]EXT(T)'!AV119=\"\",\"\",+'[2]EXT(T)'!AV119-'[2]EXT(T)'!AV118)","v":1453.6144481360111},{"$f":"IF(+'[2]EXT(T)'!AW119=\"\",\"\",+'[2]EXT(T)'!AW119-'[2]EXT(T)'!AW118)","v":108.40000000000002},6448.4865552160118,6556.8865552160114]
[null,"III",{"$f":"IF(+'[2]EXT(T)'!M120=\"\",\"\",+'[2]EXT(T)'!M120)","v":544.5533290761698},{"$f":"IF(+'[2]EXT(T)'!N120=\"\",\"\",+'[2]EXT(T)'!N120)","v":53.971530844307239},{"$f":"IF(+'[2]EXT(T)'!O120=\"\",\"\",+'[2]EXT(T)'!O120)","v":287.29999999999995},{"$f":"IF(+'[2]EXT(T)'!P120=\"\",\"\",+'[2]EXT(T)'!P120)","v":205.77410472209843},{"$f":"IF(+'[2]EXT(T)'!Q120=\"\",\"\",+'[2]EXT(T)'!Q120)","v":275},{"$f":"IF(+'[2]EXT(T)'!R120=\"\",\"\",+'[2]EXT(T)'!R120)","v":585.20000000000005},{"$f":"IF(+'[2]EXT(T)'!S120=\"\",\"\",+'[2]EXT(T)'!S120)","v":1214.07473218},{"$f":"IF(+'[2]EXT(T)'!U120=\"\",\"\",+'[2]EXT(T)'!U120)","v":1951.7989646425756},{"$f":"IF(+'[2]EXT(T)'!V120=\"\",\"\",+'[2]EXT(T)'!V120)","v":3165.8736968225758},{"$f":"IF(+'[2]EXT(T)'!W120=\"\",\"\",+'[2]EXT(T)'!W120)","v":2198.6366472659524},{"$f":"IF(+'[2]EXT(T)'!X120=\"\",\"\",+'[2]EXT(T)'!X120)","v":388.68053362707474},{"$f":"IF(+'[2]EXT(T)'!Y120=\"\",\"\",+'[2]EXT(T)'!Y120)","v":798.9},{"$f":"IF(+'[2]EXT(T)'!Z120=\"\",\"\",+'[2]EXT(T)'!Z120)","v":814.52947956141713},{"$f":"IF(+'[2]EXT(T)'!AA120=\"\",\"\",+'[2]EXT(T)'!AA120)","v":824.7},{"$f":"IF(+'[2]EXT(T)'!AB120=\"\",\"\",+'[2]EXT(T)'!AB120)","v":1911.8999999999999},{"$f":"IF(+'[2]EXT(T)'!AC120=\"\",\"\",+'[2]EXT(T)'!AC120)","v":3823.1148766199999},{"$f":"IF(+'[2]EXT(T)'!AE120=\"\",\"\",+'[2]EXT(T)'!AE120)","v":6937.3466604544446},{"$f":"IF(+'[2]EXT(T)'!AF120=\"\",\"\",+'[2]EXT(T)'!AF120)","v":10760.461537074443},{"$f":"IF(+'[2]EXT(T)'!AY120=\"\",\"\",+'[2]EXT(T)'!AY120)","v":18890.731494041458},{"$f":"IF(+'[2]EXT(T)'!AZ120=\"\",\"\",+'[2]EXT(T)'!AZ120)","v":19216.431494041459},{"$f":"IF(+'[2]EXT(T)'!AQ120=\"\",\"\",+'[2]EXT(T)'!AQ120-'[2]EXT(T)'!AQ119)","v":135.60000000000002},{"$f":"IF(+'[2]EXT(T)'!AR120=\"\",\"\",+'[2]EXT(T)'!AR120-'[2]EXT(T)'!AR119)","v":1225.5},{"$f":"IF(+'[2]EXT(T)'!AS120=\"\",\"\",+'[2]EXT(T)'!AS120-'[2]EXT(T)'!AS119)","v":2044.9700000000003},{"$f":"IF(+'[2]EXT(T)'!AT120=\"\",\"\",+'[2]EXT(T)'!AT120-'[2]EXT(T)'!AT119)","v":1126.2230793100002},{"$f":"IF(+'[2]EXT(T)'!AU120=\"\",\"\",+'[2]EXT(T)'!AU120-'[2]EXT(T)'!AU119)","v":355.59999999999991},{"$f":"IF(+'[2]EXT(T)'!AV120=\"\",\"\",+'[2]EXT(T)'!AV120-'[2]EXT(T)'!AV119)","v":1506.7832159741001},{"$f":"IF(+'[2]EXT(T)'!AW120=\"\",\"\",+'[2]EXT(T)'!AW120-'[2]EXT(T)'!AW119)","v":113.60000000000002},6394.6762952841009,6508.2762952841013]
[null,"IV",{"$f":"IF(+'[2]EXT(T)'!M121=\"\",\"\",+'[2]EXT(T)'!M121)","v":579.67737576905643},{"$f":"IF(+'[2]EXT(T)'!N121=\"\",\"\",+'[2]EXT(T)'!N121)","v":500.39238852623618},{"$f":"IF(+'[2]EXT(T)'!O121=\"\",\"\",+'[2]EXT(T)'!O121)","v":331.1},{"$f":"IF(+'[2]EXT(T)'!P121=\"\",\"\",+'[2]EXT(T)'!P121)","v":361.24766627304172},{"$f":"IF(+'[2]EXT(T)'!Q121=\"\",\"\",+'[2]EXT(T)'!Q121)","v":210.7},{"$f":"IF(+'[2]EXT(T)'!R121=\"\",\"\",+'[2]EXT(T)'!R121)","v":1658.8000000000002},{"$f":"IF(+'[2]EXT(T)'!S121=\"\",\"\",+'[2]EXT(T)'!S121)","v":458.72449601000005},{"$f":"IF(+'[2]EXT(T)'!U121=\"\",\"\",+'[2]EXT(T)'!U121)","v":3641.9174305683346},{"$f":"IF(+'[2]EXT(T)'!V121=\"\",\"\",+'[2]EXT(T)'!V121)","v":4100.6419265783343},{"$f":"IF(+'[2]EXT(T)'!W121=\"\",\"\",+'[2]EXT(T)'!W121)","v":2778.3140230350091},{"$f":"IF(+'[2]EXT(T)'!X121=\"\",\"\",+'[2]EXT(T)'!X121)","v":889.07292215331086},{"$f":"IF(+'[2]EXT(T)'!Y121=\"\",\"\",+'[2]EXT(T)'!Y121)","v":1130},{"$f":"IF(+'[2]EXT(T)'!Z121=\"\",\"\",+'[2]EXT(T)'!Z121)","v":1175.7771458344589},{"$f":"IF(+'[2]EXT(T)'!AA121=\"\",\"\",+'[2]EXT(T)'!AA121)","v":1035.4000000000001},{"$f":"IF(+'[2]EXT(T)'!AB121=\"\",\"\",+'[2]EXT(T)'!AB121)","v":3570.7},{"$f":"IF(+'[2]EXT(T)'!AC121=\"\",\"\",+'[2]EXT(T)'!AC121)","v":4281.8393726300001},{"$f":"IF(+'[2]EXT(T)'!AE121=\"\",\"\",+'[2]EXT(T)'!AE121)","v":10579.264091022778},{"$f":"IF(+'[2]EXT(T)'!AF121=\"\",\"\",+'[2]EXT(T)'!AF121)","v":14861.103463652777},{"$f":"IF(+'[2]EXT(T)'!AY121=\"\",\"\",+'[2]EXT(T)'!AY121)","v":25449.340853748789},{"$f":"IF(+'[2]EXT(T)'!AZ121=\"\",\"\",+'[2]EXT(T)'!AZ121)","v":25893.040853748789},{"$f":"IF(+'[2]EXT(T)'!AQ121=\"\",\"\",+'[2]EXT(T)'!AQ121-'[2]EXT(T)'!AQ120)","v":136.19999999999993},{"$f":"IF(+'[2]EXT(T)'!AR121=\"\",\"\",+'[2]EXT(T)'!AR121-'[2]EXT(T)'!AR120)","v":1328.0300000000007},{"$f":"IF(+'[2]EXT(T)'!AS121=\"\",\"\",+'[2]EXT(T)'!AS121-'[2]EXT(T)'!AS120)","v":2094.8760999999995},{"$f":"IF(+'[2]EXT(T)'!AT121=\"\",\"\",+'[2]EXT(T)'!AT121-'[2]EXT(T)'!AT120)","v":1131.8521937900005},{"$f":"IF(+'[2]EXT(T)'!AU121=\"\",\"\",+'[2]EXT(T)'!AU121-'[2]EXT(T)'!AU120)","v":371.20000000000005},{"$f":"IF(+'[2]EXT(T)'!AV121=\"\",\"\",+'[2]EXT(T)'!AV121-'[2]EXT(T)'!AV120)","v":1496.4510659173284},{"$f":"IF(+'[2]EXT(T)'!AW121=\"\",\"\",+'[2]EXT(T)'!AW121-'[2]EXT(T)'!AW120)","v":118},6558.6093597073286,6676.6093597073286]
[2018,"I",{"$f":"IF(+'[2]EXT(T)'!M122=\"\",\"\",+'[2]EXT(T)'!M122)","v":354.80552249835949},{"$f":"IF(+'[2]EXT(T)'!N122=\"\",\"\",+'[2]EXT(T)'!N122)","v":388.18143594121597},{"$f":"IF(+'[2]EXT(T)'!O122=\"\",\"\",+'[2]EXT(T)'!O122)","v":258.67644999999999},{"$f":"IF(+'[2]EXT(T)'!P122=\"\",\"\",+'[2]EXT(T)'!P122)","v":304.68619878250672},{"$f":"IF(+'[2]EXT(T)'!Q122=\"\",\"\",+'[2]EXT(T)'!Q122)","v":286.3},{"$f":"IF(+'[2]EXT(T)'!R122=\"\",\"\",+'[2]EXT(T)'!R122)","v":627.39999999999986},{"$f":"IF(+'[2]EXT(T)'!S122=\"\",\"\",+'[2]EXT(T)'!S122)","v":601.14822928000001},{"$f":"IF(+'[2]EXT(T)'!U122=\"\",\"\",+'[2]EXT(T)'!U122)","v":2220.0496072220822},{"$f":"IF(+'[2]EXT(T)'!V122=\"\",\"\",+'[2]EXT(T)'!V122)","v":2821.1978365020823},{"$f":"IF(+'[2]EXT(T)'!W122=\"\",\"\",+'[2]EXT(T)'!W122)","v":354.80552249835949},{"$f":"IF(+'[2]EXT(T)'!X122=\"\",\"\",+'[2]EXT(T)'!X122)","v":388.18143594121597},{"$f":"IF(+'[2]EXT(T)'!Y122=\"\",\"\",+'[2]EXT(T)'!Y122)","v":258.67644999999999},{"$f":"IF(+'[2]EXT(T)'!Z122=\"\",\"\",+'[2]EXT(T)'!Z122)","v":304.68619878250672},{"$f":"IF(+'[2]EXT(T)'!AA122=\"\",\"\",+'[2]EXT(T)'!AA122)","v":286.3},{"$f":"IF(+'[2]EXT(T)'!AB122=\"\",\"\",+'[2]EXT(T)'!AB122)","v":627.39999999999986},{"$f":"IF(+'[2]EXT(T)'!AC122=\"\",\"\",+'[2]EXT(T)'!AC122)","v":601.14822928000001},{"$f":"IF(+'[2]EXT(T)'!AE122=\"\",\"\",+'[2]EXT(T)'!AE122)","v":2220.0496072220822},{"$f":"IF(+'[2]EXT(T)'!AF122=\"\",\"\",+'[2]EXT(T)'!AF122)","v":2821.1978365020823},{"$f":"IF(+'[2]EXT(T)'!AY122=\"\",\"\",+'[2]EXT(T)'!AY122)","v":6338.4712984919361},{"$f":"IF(+'[2]EXT(T)'!AZ122=\"\",\"\",+'[2]EXT(T)'!AZ122)","v":6443.9712984919361},{"$f":"IF(+'[2]EXT(T)'!AQ122=\"\",\"\",+'[2]EXT(T)'!AQ122)","v":111.48286081000001},{"$f":"IF(+'[2]EXT(T)'!AR122=\"\",\"\",+'[2]EXT(T)'!AR122)","v":1225.8999999999999},{"$f":"IF(+'[2]EXT(T)'!AS122=\"\",\"\",+'[2]EXT(T)'!AS122)","v":2019.17},{"$f":"IF(+'[2]EXT(T)'!AT122=\"\",\"\",+'[2]EXT(T)'!AT122)","v":1077.6079530900001},{"$f":"IF(+'[2]EXT(T)'!AU122=\"\",\"\",+'[2]EXT(T)'!AU122)","v":353.4},{"$f":"IF(+'[2]EXT(T)'!AV122=\"\",\"\",+'[2]EXT(T)'!AV122)","v":1550.9104845919367},{"$f":"IF(+'[2]EXT(T)'!AW122=\"\",\"\",+'[2]EXT(T)'!AW122)","v":105.5},6338.4712984919361,6443.9712984919361]
[null,"II",{"$f":"IF(+'[2]EXT(T)'!M123=\"\",\"\",+'[2]EXT(T)'!M123)","v":280.49784956060887},{"$f":"IF(+'[2]EXT(T)'!N123=\"\",\"\",+'[2]EXT(T)'!N123)","v":102.27745065783225},{"$f":"IF(+'[2]EXT(T)'!O123=\"\",\"\",+'[2]EXT(T)'!O123)","v":187.25161999999997},{"$f":"IF(+'[2]EXT(T)'!P123=\"\",\"\",+'[2]EXT(T)'!P123)","v":106.3131267137462},{"$f":"IF(+'[2]EXT(T)'!Q123=\"\",\"\",+'[2]EXT(T)'!Q123)","v":267.8},{"$f":"IF(+'[2]EXT(T)'!R123=\"\",\"\",+'[2]EXT(T)'!R123)","v":618.20000000000005},{"$f":"IF(+'[2]EXT(T)'!S123=\"\",\"\",+'[2]EXT(T)'!S123)","v":2085.1460789000002},{"$f":"IF(+'[2]EXT(T)'!U123=\"\",\"\",+'[2]EXT(T)'!U123)","v":1562.3400469321873},{"$f":"IF(+'[2]EXT(T)'!V123=\"\",\"\",+'[2]EXT(T)'!V123)","v":3647.4861258321876},{"$f":"IF(+'[2]EXT(T)'!W123=\"\",\"\",+'[2]EXT(T)'!W123)","v":635.30337205896831},{"$f":"IF(+'[2]EXT(T)'!X123=\"\",\"\",+'[2]EXT(T)'!X123)","v":490.45888659904824},{"$f":"IF(+'[2]EXT(T)'!Y123=\"\",\"\",+'[2]EXT(T)'!Y123)","v":445.92806999999993},{"$f":"IF(+'[2]EXT(T)'!Z123=\"\",\"\",+'[2]EXT(T)'!Z123)","v":410.99932549625294},{"$f":"IF(+'[2]EXT(T)'!AA123=\"\",\"\",+'[2]EXT(T)'!AA123)","v":554.1},{"$f":"IF(+'[2]EXT(T)'!AB123=\"\",\"\",+'[2]EXT(T)'!AB123)","v":1245.5999999999999},{"$f":"IF(+'[2]EXT(T)'!AC123=\"\",\"\",+'[2]EXT(T)'!AC123)","v":2686.2943081800004},{"$f":"IF(+'[2]EXT(T)'!AE123=\"\",\"\",+'[2]EXT(T)'!AE123)","v":3782.3896541542695},{"$f":"IF(+'[2]EXT(T)'!AF123=\"\",\"\",+'[2]EXT(T)'!AF123)","v":6468.6839623342694},{"$f":"IF(+'[2]EXT(T)'!AY123=\"\",\"\",+'[2]EXT(T)'!AY123)","v":13585.839797484767},{"$f":"IF(+'[2]EXT(T)'!AZ123=\"\",\"\",+'[2]EXT(T)'!AZ123)","v":13817.039797484767},{"$f":"IF(+'[2]EXT(T)'!AQ123=\"\",\"\",+'[2]EXT(T)'!AQ123-'[2]EXT(T)'!AQ122)","v":125.45979474999999},{"$f":"IF(+'[2]EXT(T)'!AR123=\"\",\"\",+'[2]EXT(T)'!AR123-'[2]EXT(T)'!AR122)","v":1425.6299999999999},{"$f":"IF(+'[2]EXT(T)'!AS123=\"\",\"\",+'[2]EXT(T)'!AS123-'[2]EXT(T)'!AS122)","v":2379.92},{"$f":"IF(+'[2]EXT(T)'!AT123=\"\",\"\",+'[2]EXT(T)'!AT123-'[2]EXT(T)'!AT122)","v":1280.2613466700004},{"$f":"IF(+'[2]EXT(T)'!AU123=\"\",\"\",+'[2]EXT(T)'!AU123-'[2]EXT(T)'!AU122)","v":371.20000000000005},{"$f":"IF(+'[2]EXT(T)'!AV123=\"\",\"\",+'[2]EXT(T)'!AV123-'[2]EXT(T)'!AV122)","v":1664.8973575728289},{"$f":"IF(+'[2]EXT(T)'!AW123=\"\",\"\",+'[2]EXT(T)'!AW123-'[2]EXT(T)'!AW122)","v":125.69999999999999},7247.3684989928288,7373.0684989928286]
[null,"III",{"$f":"IF(+'[2]EXT(T)'!M124=\"\",\"\",+'[2]EXT(T)'!M124)","v":601.89835724444299},{"$f":"IF(+'[2]EXT(T)'!N124=\"\",\"\",+'[2]EXT(T)'!N124)","v":49.088739786097122},{"$f":"IF(+'[2]EXT(T)'!O124=\"\",\"\",+'[2]EXT(T)'!O124)","v":163.89299},{"$f":"IF(+'[2]EXT(T)'!P124=\"\",\"\",+'[2]EXT(T)'!P124)","v":163.25273007190134},{"$f":"IF(+'[2]EXT(T)'!Q124=\"\",\"\",+'[2]EXT(T)'!Q124)","v":78.300000000000011},{"$f":"IF(+'[2]EXT(T)'!R124=\"\",\"\",+'[2]EXT(T)'!R124)","v":460.59999999999991},{"$f":"IF(+'[2]EXT(T)'!S124=\"\",\"\",+'[2]EXT(T)'!S124)","v":1155.2408622299999},{"$f":"IF(+'[2]EXT(T)'!U124=\"\",\"\",+'[2]EXT(T)'!U124)","v":1517.0328171024414},{"$f":"IF(+'[2]EXT(T)'!V124=\"\",\"\",+'[2]EXT(T)'!V124)","v":2672.2736793324411},{"$f":"IF(+'[2]EXT(T)'!W124=\"\",\"\",+'[2]EXT(T)'!W124)","v":1237.2017293034114},{"$f":"IF(+'[2]EXT(T)'!X124=\"\",\"\",+'[2]EXT(T)'!X124)","v":539.54762638514535},{"$f":"IF(+'[2]EXT(T)'!Y124=\"\",\"\",+'[2]EXT(T)'!Y124)","v":609.82105999999999},{"$f":"IF(+'[2]EXT(T)'!Z124=\"\",\"\",+'[2]EXT(T)'!Z124)","v":574.25205556815422},{"$f":"IF(+'[2]EXT(T)'!AA124=\"\",\"\",+'[2]EXT(T)'!AA124)","v":632.40000000000009},{"$f":"IF(+'[2]EXT(T)'!AB124=\"\",\"\",+'[2]EXT(T)'!AB124)","v":1706.1999999999998},{"$f":"IF(+'[2]EXT(T)'!AC124=\"\",\"\",+'[2]EXT(T)'!AC124)","v":3841.5351704100003},{"$f":"IF(+'[2]EXT(T)'!AE124=\"\",\"\",+'[2]EXT(T)'!AE124)","v":5299.4224712567111},{"$f":"IF(+'[2]EXT(T)'!AF124=\"\",\"\",+'[2]EXT(T)'!AF124)","v":9140.9576416667114},{"$f":"IF(+'[2]EXT(T)'!AY124=\"\",\"\",+'[2]EXT(T)'!AY124)","v":20754.497882390075},{"$f":"IF(+'[2]EXT(T)'!AZ124=\"\",\"\",+'[2]EXT(T)'!AZ124)","v":21089.197882390075},{"$f":"IF(+'[2]EXT(T)'!AQ124=\"\",\"\",+'[2]EXT(T)'!AQ124-'[2]EXT(T)'!AQ123)","v":131.05921014},{"$f":"IF(+'[2]EXT(T)'!AR124=\"\",\"\",+'[2]EXT(T)'!AR124-'[2]EXT(T)'!AR123)","v":1332.13},{"$f":"IF(+'[2]EXT(T)'!AS124=\"\",\"\",+'[2]EXT(T)'!AS124-'[2]EXT(T)'!AS123)","v":2424.7600000000002},{"$f":"IF(+'[2]EXT(T)'!AT124=\"\",\"\",+'[2]EXT(T)'!AT124-'[2]EXT(T)'!AT123)","v":1257.2822278100007},{"$f":"IF(+'[2]EXT(T)'!AU124=\"\",\"\",+'[2]EXT(T)'!AU124-'[2]EXT(T)'!AU123)","v":372.80000000000007},{"$f":"IF(+'[2]EXT(T)'!AV124=\"\",\"\",+'[2]EXT(T)'!AV124-'[2]EXT(T)'!AV123)","v":1650.6266469553079},{"$f":"IF(+'[2]EXT(T)'!AW124=\"\",\"\",+'[2]EXT(T)'!AW124-'[2]EXT(T)'!AW123)","v":103.5},7168.658084905308,7272.158084905308]
[null,"IV",{"$f":"IF(+'[2]EXT(T)'!M125=\"\",\"\",+'[2]EXT(T)'!M125)","v":1249.9786712088821},{"$f":"IF(+'[2]EXT(T)'!N125=\"\",\"\",+'[2]EXT(T)'!N125)","v":286.46193299552749},{"$f":"IF(+'[2]EXT(T)'!O125=\"\",\"\",+'[2]EXT(T)'!O125)","v":370.83088000000004},{"$f":"IF(+'[2]EXT(T)'!P125=\"\",\"\",+'[2]EXT(T)'!P125)","v":387.08172012767812},{"$f":"IF(+'[2]EXT(T)'!Q125=\"\",\"\",+'[2]EXT(T)'!Q125)","v":205.2},{"$f":"IF(+'[2]EXT(T)'!R125=\"\",\"\",+'[2]EXT(T)'!R125)","v":829.09999999999991},{"$f":"IF(+'[2]EXT(T)'!S125=\"\",\"\",+'[2]EXT(T)'!S125)","v":908.96830624999984},{"$f":"IF(+'[2]EXT(T)'!U125=\"\",\"\",+'[2]EXT(T)'!U125)","v":3328.6532043320876},{"$f":"IF(+'[2]EXT(T)'!V125=\"\",\"\",+'[2]EXT(T)'!V125)","v":4237.6215105820875},{"$f":"IF(+'[2]EXT(T)'!W125=\"\",\"\",+'[2]EXT(T)'!W125)","v":2487.1804005122935},{"$f":"IF(+'[2]EXT(T)'!X125=\"\",\"\",+'[2]EXT(T)'!X125)","v":826.00955938067284},{"$f":"IF(+'[2]EXT(T)'!Y125=\"\",\"\",+'[2]EXT(T)'!Y125)","v":980.65193999999997},{"$f":"IF(+'[2]EXT(T)'!Z125=\"\",\"\",+'[2]EXT(T)'!Z125)","v":961.3337756958324},{"$f":"IF(+'[2]EXT(T)'!AA125=\"\",\"\",+'[2]EXT(T)'!AA125)","v":837.60000000000014},{"$f":"IF(+'[2]EXT(T)'!AB125=\"\",\"\",+'[2]EXT(T)'!AB125)","v":2535.2999999999997},{"$f":"IF(+'[2]EXT(T)'!AC125=\"\",\"\",+'[2]EXT(T)'!AC125)","v":4750.5034766600002},{"$f":"IF(+'[2]EXT(T)'!AE125=\"\",\"\",+'[2]EXT(T)'!AE125)","v":8628.0756755887996},{"$f":"IF(+'[2]EXT(T)'!AF125=\"\",\"\",+'[2]EXT(T)'!AF125)","v":13378.5791522488},{"$f":"IF(+'[2]EXT(T)'!AY125=\"\",\"\",+'[2]EXT(T)'!AY125)","v":28061.260931186036},{"$f":"IF(+'[2]EXT(T)'!AZ125=\"\",\"\",+'[2]EXT(T)'!AZ125)","v":28518.060931186035},{"$f":"IF(+'[2]EXT(T)'!AQ125=\"\",\"\",+'[2]EXT(T)'!AQ125-'[2]EXT(T)'!AQ124)","v":131.03645555999998},{"$f":"IF(+'[2]EXT(T)'!AR125=\"\",\"\",+'[2]EXT(T)'!AR125-'[2]EXT(T)'!AR124)","v":1411.04},{"$f":"IF(+'[2]EXT(T)'!AS125=\"\",\"\",+'[2]EXT(T)'!AS125-'[2]EXT(T)'!AS124)","v":2463.9400000000005},{"$f":"IF(+'[2]EXT(T)'!AT125=\"\",\"\",+'[2]EXT(T)'!AT125-'[2]EXT(T)'!AT124)","v":1269.31742811},{"$f":"IF(+'[2]EXT(T)'!AU125=\"\",\"\",+'[2]EXT(T)'!AU125-'[2]EXT(T)'!AU124)","v":403.80000000000018},{"$f":"IF(+'[2]EXT(T)'!AV125=\"\",\"\",+'[2]EXT(T)'!AV125-'[2]EXT(T)'!AV124)","v":1627.6291651259608},{"$f":"IF(+'[2]EXT(T)'!AW125=\"\",\"\",+'[2]EXT(T)'!AW125-'[2]EXT(T)'!AW124)","v":122.09999999999997},7306.7630487959614,7428.8630487959617]
[2019,"I",{"$f":"IF(+'[2]EXT(T)'!M126=\"\",\"\",+'[2]EXT(T)'!M126)","v":705.18742760547354},{"$f":"IF(+'[2]EXT(T)'!N126=\"\",\"\",+'[2]EXT(T)'!N126)","v":242.89354726699293},{"$f":"IF(+'[2]EXT(T)'!O126=\"\",\"\",+'[2]EXT(T)'!O126)","v":287.62654000000003},{"$f":"IF(+'[2]EXT(T)'!P126=\"\",\"\",+'[2]EXT(T)'!P126)","v":301.97434331644104},{"$f":"IF(+'[2]EXT(T)'!Q126=\"\",\"\",+'[2]EXT(T)'!Q126)","v":254.89999999999998},{"$f":"IF(+'[2]EXT(T)'!R126=\"\",\"\",+'[2]EXT(T)'!R126)","v":967.80000000000018},{"$f":"IF(+'[2]EXT(T)'!S126=\"\",\"\",+'[2]EXT(T)'!S126)","v":1148.91783252},{"$f":"IF(+'[2]EXT(T)'!U126=\"\",\"\",+'[2]EXT(T)'!U126)","v":2760.3818581889077},{"$f":"IF(+'[2]EXT(T)'!V126=\"\",\"\",+'[2]EXT(T)'!V126)","v":3909.2996907089077},{"$f":"IF(+'[2]EXT(T)'!W126=\"\",\"\",+'[2]EXT(T)'!W126)","v":705.18742760547354},{"$f":"IF(+'[2]EXT(T)'!X126=\"\",\"\",+'[2]EXT(T)'!X126)","v":242.89354726699293},{"$f":"IF(+'[2]EXT(T)'!Y126=\"\",\"\",+'[2]EXT(T)'!Y126)","v":287.62654000000003},{"$f":"IF(+'[2]EXT(T)'!Z126=\"\",\"\",+'[2]EXT(T)'!Z126)","v":301.97434331644104},{"$f":"IF(+'[2]EXT(T)'!AA126=\"\",\"\",+'[2]EXT(T)'!AA126)","v":254.89999999999998},{"$f":"IF(+'[2]EXT(T)'!AB126=\"\",\"\",+'[2]EXT(T)'!AB126)","v":967.80000000000018},{"$f":"IF(+'[2]EXT(T)'!AC126=\"\",\"\",+'[2]EXT(T)'!AC126)","v":1148.91783252},{"$f":"IF(+'[2]EXT(T)'!AE126=\"\",\"\",+'[2]EXT(T)'!AE126)","v":2760.3818581889077},{"$f":"IF(+'[2]EXT(T)'!AF126=\"\",\"\",+'[2]EXT(T)'!AF126)","v":3909.2996907089077},{"$f":"IF(+'[2]EXT(T)'!AY126=\"\",\"\",+'[2]EXT(T)'!AY126)","v":6940.3919120368073},{"$f":"IF(+'[2]EXT(T)'!AZ126=\"\",\"\",+'[2]EXT(T)'!AZ126)","v":7057.7481100368077},{"$f":"IF(+'[2]EXT(T)'!AQ126=\"\",\"\",+'[2]EXT(T)'!AQ126)","v":118.72199291},{"$f":"IF(+'[2]EXT(T)'!AR126=\"\",\"\",+'[2]EXT(T)'!AR126)","v":1296.29},{"$f":"IF(+'[2]EXT(T)'!AS126=\"\",\"\",+'[2]EXT(T)'!AS126)","v":2205.3000000000002},{"$f":"IF(+'[2]EXT(T)'!AT126=\"\",\"\",+'[2]EXT(T)'!AT126)","v":1193.0782991000001},{"$f":"IF(+'[2]EXT(T)'!AU126=\"\",\"\",+'[2]EXT(T)'!AU126)","v":383.8},{"$f":"IF(+'[2]EXT(T)'!AV126=\"\",\"\",+'[2]EXT(T)'!AV126)","v":1743.2016200268065},{"$f":"IF(+'[2]EXT(T)'!AW126=\"\",\"\",+'[2]EXT(T)'!AW126)","v":117.35619800000001},6940.3919120368073,7057.7481100368077]
[null,"II",{"$f":"IF(+'[2]EXT(T)'!M127=\"\",\"\",+'[2]EXT(T)'!M127)","v":406.61092406597987},{"$f":"IF(+'[2]EXT(T)'!N127=\"\",\"\",+'[2]EXT(T)'!N127)","v":141.56419542134984},{"$f":"IF(+'[2]EXT(T)'!O127=\"\",\"\",+'[2]EXT(T)'!O127)","v":164.67914999999999},{"$f":"IF(+'[2]EXT(T)'!P127=\"\",\"\",+'[2]EXT(T)'!P127)","v":-54.080213318592172},{"$f":"IF(+'[2]EXT(T)'!Q127=\"\",\"\",+'[2]EXT(T)'!Q127)","v":20.699999999999978},{"$f":"IF(+'[2]EXT(T)'!R127=\"\",\"\",+'[2]EXT(T)'!R127)","v":587.20000000000005},{"$f":"IF(+'[2]EXT(T)'!S127=\"\",\"\",+'[2]EXT(T)'!S127)","v":773.85723672999995},{"$f":"IF(+'[2]EXT(T)'!U127=\"\",\"\",+'[2]EXT(T)'!U127)","v":1266.6740561687375},{"$f":"IF(+'[2]EXT(T)'!V127=\"\",\"\",+'[2]EXT(T)'!V127)","v":2040.5312928987373},{"$f":"IF(+'[2]EXT(T)'!W127=\"\",\"\",+'[2]EXT(T)'!W127)","v":1111.7983516714535},{"$f":"IF(+'[2]EXT(T)'!X127=\"\",\"\",+'[2]EXT(T)'!X127)","v":384.45774268834276},{"$f":"IF(+'[2]EXT(T)'!Y127=\"\",\"\",+'[2]EXT(T)'!Y127)","v":452.30569000000003},{"$f":"IF(+'[2]EXT(T)'!Z127=\"\",\"\",+'[2]EXT(T)'!Z127)","v":247.89412999784886},{"$f":"IF(+'[2]EXT(T)'!AA127=\"\",\"\",+'[2]EXT(T)'!AA127)","v":275.59999999999997},{"$f":"IF(+'[2]EXT(T)'!AB127=\"\",\"\",+'[2]EXT(T)'!AB127)","v":1555.0000000000002},{"$f":"IF(+'[2]EXT(T)'!AC127=\"\",\"\",+'[2]EXT(T)'!AC127)","v":1922.7750692499999},{"$f":"IF(+'[2]EXT(T)'!AE127=\"\",\"\",+'[2]EXT(T)'!AE127)","v":4027.0559143576452},{"$f":"IF(+'[2]EXT(T)'!AF127=\"\",\"\",+'[2]EXT(T)'!AF127)","v":5949.8309836076451},{"$f":"IF(+'[2]EXT(T)'!AY127=\"\",\"\",+'[2]EXT(T)'!AY127)","v":14746.752288852727},{"$f":"IF(+'[2]EXT(T)'!AZ127=\"\",\"\",+'[2]EXT(T)'!AZ127)","v":14989.771086852727},{"$f":"IF(+'[2]EXT(T)'!AQ127=\"\",\"\",+'[2]EXT(T)'!AQ127-'[2]EXT(T)'!AQ126)","v":129.60714523000001},{"$f":"IF(+'[2]EXT(T)'!AR127=\"\",\"\",+'[2]EXT(T)'!AR127-'[2]EXT(T)'!AR126)","v":1448.42},{"$f":"IF(+'[2]EXT(T)'!AS127=\"\",\"\",+'[2]EXT(T)'!AS127-'[2]EXT(T)'!AS126)","v":2721.7},{"$f":"IF(+'[2]EXT(T)'!AT127=\"\",\"\",+'[2]EXT(T)'!AT127-'[2]EXT(T)'!AT126)","v":1379.6807416899996},{"$f":"IF(+'[2]EXT(T)'!AU127=\"\",\"\",+'[2]EXT(T)'!AU127-'[2]EXT(T)'!AU126)","v":412.7999999999999},{"$f":"IF(+'[2]EXT(T)'!AV127=\"\",\"\",+'[2]EXT(T)'!AV127-'[2]EXT(T)'!AV126)","v":1714.1524898959212},{"$f":"IF(+'[2]EXT(T)'!AW127=\"\",\"\",+'[2]EXT(T)'!AW127-'[2]EXT(T)'!AW126)","v":125.6626},7806.3603768159219,7932.0229768159215]
[null,"III",{"$f":"IF(+'[2]EXT(T)'!M128=\"\",\"\",+'[2]EXT(T)'!M128)","v":541.51965347338182},{"$f":"IF(+'[2]EXT(T)'!N128=\"\",\"\",+'[2]EXT(T)'!N128)","v":8.000920449207257},{"$f":"IF(+'[2]EXT(T)'!O128=\"\",\"\",+'[2]EXT(T)'!O128)","v":245.66655},{"$f":"IF(+'[2]EXT(T)'!P128=\"\",\"\",+'[2]EXT(T)'!P128)","v":-64.034757883800097},{"$f":"IF(+'[2]EXT(T)'!Q128=\"\",\"\",+'[2]EXT(T)'!Q128)","v":84.8},{"$f":"IF(+'[2]EXT(T)'!R128=\"\",\"\",+'[2]EXT(T)'!R128)","v":963.7},{"$f":"IF(+'[2]EXT(T)'!S128=\"\",\"\",+'[2]EXT(T)'!S128)","v":1475.93055301},{"$f":"IF(+'[2]EXT(T)'!U128=\"\",\"\",+'[2]EXT(T)'!U128)","v":1779.6523660387888},{"$f":"IF(+'[2]EXT(T)'!V128=\"\",\"\",+'[2]EXT(T)'!V128)","v":3255.5829190487889},{"$f":"IF(+'[2]EXT(T)'!W128=\"\",\"\",+'[2]EXT(T)'!W128)","v":1653.3180051448353},{"$f":"IF(+'[2]EXT(T)'!X128=\"\",\"\",+'[2]EXT(T)'!X128)","v":392.45866313755005},{"$f":"IF(+'[2]EXT(T)'!Y128=\"\",\"\",+'[2]EXT(T)'!Y128)","v":697.97224000000006},{"$f":"IF(+'[2]EXT(T)'!Z128=\"\",\"\",+'[2]EXT(T)'!Z128)","v":183.85937211404877},{"$f":"IF(+'[2]EXT(T)'!AA128=\"\",\"\",+'[2]EXT(T)'!AA128)","v":360.4},{"$f":"IF(+'[2]EXT(T)'!AB128=\"\",\"\",+'[2]EXT(T)'!AB128)","v":2518.7000000000003},{"$f":"IF(+'[2]EXT(T)'!AC128=\"\",\"\",+'[2]EXT(T)'!AC128)","v":3398.7056222599999},{"$f":"IF(+'[2]EXT(T)'!AE128=\"\",\"\",+'[2]EXT(T)'!AE128)","v":5806.708280396434},{"$f":"IF(+'[2]EXT(T)'!AF128=\"\",\"\",+'[2]EXT(T)'!AF128)","v":9205.4139026564335},{"$f":"IF(+'[2]EXT(T)'!AY128=\"\",\"\",+'[2]EXT(T)'!AY128)","v":22875.428753805736},{"$f":"IF(+'[2]EXT(T)'!AZ128=\"\",\"\",+'[2]EXT(T)'!AZ128)","v":23240.732528805736},{"$f":"IF(+'[2]EXT(T)'!AQ128=\"\",\"\",+'[2]EXT(T)'!AQ128-'[2]EXT(T)'!AQ127)","v":135.01263093},{"$f":"IF(+'[2]EXT(T)'!AR128=\"\",\"\",+'[2]EXT(T)'!AR128-'[2]EXT(T)'!AR127)","v":1417.2399999999998},{"$f":"IF(+'[2]EXT(T)'!AS128=\"\",\"\",+'[2]EXT(T)'!AS128-'[2]EXT(T)'!AS127)","v":2820.7000000000007},{"$f":"IF(+'[2]EXT(T)'!AT128=\"\",\"\",+'[2]EXT(T)'!AT128-'[2]EXT(T)'!AT127)","v":1489.3590840800002},{"$f":"IF(+'[2]EXT(T)'!AU128=\"\",\"\",+'[2]EXT(T)'!AU128-'[2]EXT(T)'!AU127)","v":430.79999999999995},{"$f":"IF(+'[2]EXT(T)'!AV128=\"\",\"\",+'[2]EXT(T)'!AV128-'[2]EXT(T)'!AV127)","v":1835.5647499430061},{"$f":"IF(+'[2]EXT(T)'!AW128=\"\",\"\",+'[2]EXT(T)'!AW128-'[2]EXT(T)'!AW127)","v":122.28497699999997},8128.6764649530069,8250.9614419530062]
[null,"IV",{"$f":"IF(+'[2]EXT(T)'!M129=\"\",\"\",+'[2]EXT(T)'!M129)","v":1158.9432824253245},{"$f":"IF(+'[2]EXT(T)'!N129=\"\",\"\",+'[2]EXT(T)'!N129)","v":243.70951134021703},{"$f":"IF(+'[2]EXT(T)'!O129=\"\",\"\",+'[2]EXT(T)'!O129)","v":278.16876999999999},{"$f":"IF(+'[2]EXT(T)'!P129=\"\",\"\",+'[2]EXT(T)'!P129)","v":314.20058053724847},{"$f":"IF(+'[2]EXT(T)'!Q129=\"\",\"\",+'[2]EXT(T)'!Q129)","v":142.6},{"$f":"IF(+'[2]EXT(T)'!R129=\"\",\"\",+'[2]EXT(T)'!R129)","v":502.30000000000007},{"$f":"IF(+'[2]EXT(T)'!S129=\"\",\"\",+'[2]EXT(T)'!S129)","v":496.53163207},{"$f":"IF(+'[2]EXT(T)'!U129=\"\",\"\",+'[2]EXT(T)'!U129)","v":2639.92214430279},{"$f":"IF(+'[2]EXT(T)'!V129=\"\",\"\",+'[2]EXT(T)'!V129)","v":3136.4537763727899},{"$f":"IF(+'[2]EXT(T)'!W129=\"\",\"\",+'[2]EXT(T)'!W129)","v":2812.2612875701598},{"$f":"IF(+'[2]EXT(T)'!X129=\"\",\"\",+'[2]EXT(T)'!X129)","v":636.16817447776702},{"$f":"IF(+'[2]EXT(T)'!Y129=\"\",\"\",+'[2]EXT(T)'!Y129)","v":976.14101000000005},{"$f":"IF(+'[2]EXT(T)'!Z129=\"\",\"\",+'[2]EXT(T)'!Z129)","v":498.05995265129724},{"$f":"IF(+'[2]EXT(T)'!AA129=\"\",\"\",+'[2]EXT(T)'!AA129)","v":503},{"$f":"IF(+'[2]EXT(T)'!AB129=\"\",\"\",+'[2]EXT(T)'!AB129)","v":3021.0000000000005},{"$f":"IF(+'[2]EXT(T)'!AC129=\"\",\"\",+'[2]EXT(T)'!AC129)","v":3895.2372543299998},{"$f":"IF(+'[2]EXT(T)'!AE129=\"\",\"\",+'[2]EXT(T)'!AE129)","v":8446.630424699224},{"$f":"IF(+'[2]EXT(T)'!AF129=\"\",\"\",+'[2]EXT(T)'!AF129)","v":12341.867679029223},{"$f":"IF(+'[2]EXT(T)'!AY129=\"\",\"\",+'[2]EXT(T)'!AY129)","v":30974.804513568775},{"$f":"IF(+'[2]EXT(T)'!AZ129=\"\",\"\",+'[2]EXT(T)'!AZ129)","v":31467.953372568776},{"$f":"IF(+'[2]EXT(T)'!AQ129=\"\",\"\",+'[2]EXT(T)'!AQ129-'[2]EXT(T)'!AQ128)","v":135.44347077000003},{"$f":"IF(+'[2]EXT(T)'!AR129=\"\",\"\",+'[2]EXT(T)'!AR129-'[2]EXT(T)'!AR128)","v":1494.2300000000005},{"$f":"IF(+'[2]EXT(T)'!AS129=\"\",\"\",+'[2]EXT(T)'!AS129-'[2]EXT(T)'!AS128)","v":2760.6999999999989},{"$f":"IF(+'[2]EXT(T)'!AT129=\"\",\"\",+'[2]EXT(T)'!AT129-'[2]EXT(T)'!AT128)","v":1459.8756143999994},{"$f":"IF(+'[2]EXT(T)'!AU129=\"\",\"\",+'[2]EXT(T)'!AU129-'[2]EXT(T)'!AU128)","v":455},{"$f":"IF(+'[2]EXT(T)'!AV129=\"\",\"\",+'[2]EXT(T)'!AV129-'[2]EXT(T)'!AV128)","v":1794.1266745930379},{"$f":"IF(+'[2]EXT(T)'!AW129=\"\",\"\",+'[2]EXT(T)'!AW129-'[2]EXT(T)'!AW128)","v":127.84508399999999},8099.3757597630365,8227.2208437630361]
[2020,"I",{"$f":"IF(+'[2]EXT(T)'!M130=\"\",\"\",+'[2]EXT(T)'!M130)","v":575.27903812155375},{"$f":"IF(+'[2]EXT(T)'!N130=\"\",\"\",+'[2]EXT(T)'!N130)","v":92.220317442671757},{"$f":"IF(+'[2]EXT(T)'!O130=\"\",\"\",+'[2]EXT(T)'!O130)","v":300.90000000000003},{"$f":"IF(+'[2]EXT(T)'!P130=\"\",\"\",+'[2]EXT(T)'!P130)","v":334.95275981215917},{"$f":"IF(+'[2]EXT(T)'!Q130=\"\",\"\",+'[2]EXT(T)'!Q130)","v":168},{"$f":"IF(+'[2]EXT(T)'!R130=\"\",\"\",+'[2]EXT(T)'!R130)","v":847.90000000000009},{"$f":"IF(+'[2]EXT(T)'!S130=\"\",\"\",+'[2]EXT(T)'!S130)","v":1022.1188778400001},{"$f":"IF(+'[2]EXT(T)'!U130=\"\",\"\",+'[2]EXT(T)'!U130)","v":2319.2521153763846},{"$f":"IF(+'[2]EXT(T)'!V130=\"\",\"\",+'[2]EXT(T)'!V130)","v":3341.3709932163847},{"$f":"IF(+'[2]EXT(T)'!W130=\"\",\"\",+'[2]EXT(T)'!W130)","v":575.27903812155375},{"$f":"IF(+'[2]EXT(T)'!X130=\"\",\"\",+'[2]EXT(T)'!X130)","v":92.220317442671757},{"$f":"IF(+'[2]EXT(T)'!Y130=\"\",\"\",+'[2]EXT(T)'!Y130)","v":300.90000000000003},{"$f":"IF(+'[2]EXT(T)'!Z130=\"\",\"\",+'[2]EXT(T)'!Z130)","v":334.95275981215917},{"$f":"IF(+'[2]EXT(T)'!AA130=\"\",\"\",+'[2]EXT(T)'!AA130)","v":168},{"$f":"IF(+'[2]EXT(T)'!AB130=\"\",\"\",+'[2]EXT(T)'!AB130)","v":847.90000000000009},{"$f":"IF(+'[2]EXT(T)'!AC130=\"\",\"\",+'[2]EXT(T)'!AC130)","v":1022.1188778400001},{"$f":"IF(+'[2]EXT(T)'!AE130=\"\",\"\",+'[2]EXT(T)'!AE130)","v":2319.2521153763846},{"$f":"IF(+'[2]EXT(T)'!AF130=\"\",\"\",+'[2]EXT(T)'!AF130)","v":3341.3709932163847},{"$f":"IF(+'[2]EXT(T)'!AY130=\"\",\"\",+'[2]EXT(T)'!AY130)","v":7149.7812315640922},{"$f":"IF(+'[2]EXT(T)'!AZ130=\"\",\"\",+'[2]EXT(T)'!AZ130)","v":7262.3466966440919},{"$f":"IF(+'[2]EXT(T)'!AQ130=\"\",\"\",+'[2]EXT(T)'!AQ130)","v":103.79581777},{"$f":"IF(+'[2]EXT(T)'!AR130=\"\",\"\",+'[2]EXT(T)'!AR130)","v":1307.75},{"$f":"IF(+'[2]EXT(T)'!AS130=\"\",\"\",+'[2]EXT(T)'!AS130)","v":2389.3999999999996},{"$f":"IF(+'[2]EXT(T)'!AT130=\"\",\"\",+'[2]EXT(T)'!AT130)","v":1221.1274000000001},{"$f":"IF(+'[2]EXT(T)'!AU130=\"\",\"\",+'[2]EXT(T)'!AU130)","v":424.5},{"$f":"IF(+'[2]EXT(T)'!AV130=\"\",\"\",+'[2]EXT(T)'!AV130)","v":1703.208013794092},{"$f":"IF(+'[2]EXT(T)'!AW130=\"\",\"\",+'[2]EXT(T)'!AW130)","v":112.56546508},7149.7812315640922,7262.3466966440919]
[null,"II",{"$f":"IF(+'[2]EXT(T)'!M131=\"\",\"\",+'[2]EXT(T)'!M131)","v":260.98276073555968},{"$f":"IF(+'[2]EXT(T)'!N131=\"\",\"\",+'[2]EXT(T)'!N131)","v":285.29306778639767},{"$f":"IF(+'[2]EXT(T)'!O131=\"\",\"\",+'[2]EXT(T)'!O131)","v":164.5},{"$f":"IF(+'[2]EXT(T)'!P131=\"\",\"\",+'[2]EXT(T)'!P131)","v":-36.387275911375369},{"$f":"IF(+'[2]EXT(T)'!Q131=\"\",\"\",+'[2]EXT(T)'!Q131)","v":169.79999999999998},{"$f":"IF(+'[2]EXT(T)'!R131=\"\",\"\",+'[2]EXT(T)'!R131)","v":265.49999999999994},{"$f":"IF(+'[2]EXT(T)'!S131=\"\",\"\",+'[2]EXT(T)'!S131)","v":420.49272470000005},{"$f":"IF(+'[2]EXT(T)'!U131=\"\",\"\",+'[2]EXT(T)'!U131)","v":1109.6885526105818},{"$f":"IF(+'[2]EXT(T)'!V131=\"\",\"\",+'[2]EXT(T)'!V131)","v":1530.1812773105819},{"$f":"IF(+'[2]EXT(T)'!W131=\"\",\"\",+'[2]EXT(T)'!W131)","v":836.26179885711349},{"$f":"IF(+'[2]EXT(T)'!X131=\"\",\"\",+'[2]EXT(T)'!X131)","v":377.5133852290694},{"$f":"IF(+'[2]EXT(T)'!Y131=\"\",\"\",+'[2]EXT(T)'!Y131)","v":465.40000000000003},{"$f":"IF(+'[2]EXT(T)'!Z131=\"\",\"\",+'[2]EXT(T)'!Z131)","v":298.56548390078382},{"$f":"IF(+'[2]EXT(T)'!AA131=\"\",\"\",+'[2]EXT(T)'!AA131)","v":337.79999999999995},{"$f":"IF(+'[2]EXT(T)'!AB131=\"\",\"\",+'[2]EXT(T)'!AB131)","v":1113.4000000000001},{"$f":"IF(+'[2]EXT(T)'!AC131=\"\",\"\",+'[2]EXT(T)'!AC131)","v":1442.6116025400001},{"$f":"IF(+'[2]EXT(T)'!AE131=\"\",\"\",+'[2]EXT(T)'!AE131)","v":3428.9406679869662},{"$f":"IF(+'[2]EXT(T)'!AF131=\"\",\"\",+'[2]EXT(T)'!AF131)","v":4871.5522705269668},{"$f":"IF(+'[2]EXT(T)'!AY131=\"\",\"\",+'[2]EXT(T)'!AY131)","v":14424.154656304094},{"$f":"IF(+'[2]EXT(T)'!AZ131=\"\",\"\",+'[2]EXT(T)'!AZ131)","v":14621.902246304095},{"$f":"IF(+'[2]EXT(T)'!AQ131=\"\",\"\",+'[2]EXT(T)'!AQ131-'[2]EXT(T)'!AQ130)","v":118.62024963},{"$f":"IF(+'[2]EXT(T)'!AR131=\"\",\"\",+'[2]EXT(T)'!AR131-'[2]EXT(T)'!AR130)","v":1209.8499999999999},{"$f":"IF(+'[2]EXT(T)'!AS131=\"\",\"\",+'[2]EXT(T)'!AS131-'[2]EXT(T)'!AS130)","v":2490.9000000000005},{"$f":"IF(+'[2]EXT(T)'!AT131=\"\",\"\",+'[2]EXT(T)'!AT131-'[2]EXT(T)'!AT130)","v":1247.2605000000001},{"$f":"IF(+'[2]EXT(T)'!AU131=\"\",\"\",+'[2]EXT(T)'!AU131-'[2]EXT(T)'!AU130)","v":436.10000000000014},{"$f":"IF(+'[2]EXT(T)'!AV131=\"\",\"\",+'[2]EXT(T)'!AV131-'[2]EXT(T)'!AV130)","v":1771.6426751099998},{"$f":"IF(+'[2]EXT(T)'!AW131=\"\",\"\",+'[2]EXT(T)'!AW131-'[2]EXT(T)'!AW130)","v":85.182124920000007},7274.3734247400007,7359.5555496600009]
[null,"III",{"$f":"IF(+'[2]EXT(T)'!M132=\"\",\"\",+'[2]EXT(T)'!M132)","v":301.51372484479504},{"$f":"IF(+'[2]EXT(T)'!N132=\"\",\"\",+'[2]EXT(T)'!N132)","v":-73.893204959560819},{"$f":"IF(+'[2]EXT(T)'!O132=\"\",\"\",+'[2]EXT(T)'!O132)","v":242.8},{"$f":"IF(+'[2]EXT(T)'!P132=\"\",\"\",+'[2]EXT(T)'!P132)","v":24.940288695787878},{"$f":"IF(+'[2]EXT(T)'!Q132=\"\",\"\",+'[2]EXT(T)'!Q132)","v":175.4},{"$f":"IF(+'[2]EXT(T)'!R132=\"\",\"\",+'[2]EXT(T)'!R132)","v":716.30000000000007},{"$f":"IF(+'[2]EXT(T)'!S132=\"\",\"\",+'[2]EXT(T)'!S132)","v":-595.14336133999996},{"$f":"IF(+'[2]EXT(T)'!U132=\"\",\"\",+'[2]EXT(T)'!U132)","v":1387.0608085810222},{"$f":"IF(+'[2]EXT(T)'!V132=\"\",\"\",+'[2]EXT(T)'!V132)","v":791.91744724102227},{"$f":"IF(+'[2]EXT(T)'!W132=\"\",\"\",+'[2]EXT(T)'!W132)","v":1137.7755237019085},{"$f":"IF(+'[2]EXT(T)'!X132=\"\",\"\",+'[2]EXT(T)'!X132)","v":303.62018026950858},{"$f":"IF(+'[2]EXT(T)'!Y132=\"\",\"\",+'[2]EXT(T)'!Y132)","v":708.2},{"$f":"IF(+'[2]EXT(T)'!Z132=\"\",\"\",+'[2]EXT(T)'!Z132)","v":323.50577259657172},{"$f":"IF(+'[2]EXT(T)'!AA132=\"\",\"\",+'[2]EXT(T)'!AA132)","v":513.19999999999993},{"$f":"IF(+'[2]EXT(T)'!AB132=\"\",\"\",+'[2]EXT(T)'!AB132)","v":1829.7000000000003},{"$f":"IF(+'[2]EXT(T)'!AC132=\"\",\"\",+'[2]EXT(T)'!AC132)","v":847.46824120000019},{"$f":"IF(+'[2]EXT(T)'!AE132=\"\",\"\",+'[2]EXT(T)'!AE132)","v":4816.001476567988},{"$f":"IF(+'[2]EXT(T)'!AF132=\"\",\"\",+'[2]EXT(T)'!AF132)","v":5663.4697177679891},{"$f":"IF(+'[2]EXT(T)'!AY132=\"\",\"\",+'[2]EXT(T)'!AY132)","v":23858.375226654141},{"$f":"IF(+'[2]EXT(T)'!AZ132=\"\",\"\",+'[2]EXT(T)'!AZ132)","v":24149.33887865414},{"$f":"IF(+'[2]EXT(T)'!AQ132=\"\",\"\",+'[2]EXT(T)'!AQ132-'[2]EXT(T)'!AQ131)","v":138.43899707},{"$f":"IF(+'[2]EXT(T)'!AR132=\"\",\"\",+'[2]EXT(T)'!AR132-'[2]EXT(T)'!AR131)","v":1665.8799999999997},{"$f":"IF(+'[2]EXT(T)'!AS132=\"\",\"\",+'[2]EXT(T)'!AS132-'[2]EXT(T)'!AS131)","v":3180.2},{"$f":"IF(+'[2]EXT(T)'!AT132=\"\",\"\",+'[2]EXT(T)'!AT132-'[2]EXT(T)'!AT131)","v":1592.6037000000001},{"$f":"IF(+'[2]EXT(T)'!AU132=\"\",\"\",+'[2]EXT(T)'!AU132-'[2]EXT(T)'!AU131)","v":482.09999999999991},{"$f":"IF(+'[2]EXT(T)'!AV132=\"\",\"\",+'[2]EXT(T)'!AV132-'[2]EXT(T)'!AV131)","v":2374.9978732800455},{"$f":"IF(+'[2]EXT(T)'!AW132=\"\",\"\",+'[2]EXT(T)'!AW132-'[2]EXT(T)'!AW131)","v":93.216062000000022},9434.220570350044,9527.4366323500435]
[null,"IV",{"$f":"IF(+'[2]EXT(T)'!M133=\"\",\"\",+'[2]EXT(T)'!M133)","v":624.87986841047234},{"$f":"IF(+'[2]EXT(T)'!N133=\"\",\"\",+'[2]EXT(T)'!N133)","v":-10.177849342350157},{"$f":"IF(+'[2]EXT(T)'!O133=\"\",\"\",+'[2]EXT(T)'!O133)","v":226.8},{"$f":"IF(+'[2]EXT(T)'!P133=\"\",\"\",+'[2]EXT(T)'!P133)","v":95.088352249462773},{"$f":"IF(+'[2]EXT(T)'!Q133=\"\",\"\",+'[2]EXT(T)'!Q133)","v":233.3},{"$f":"IF(+'[2]EXT(T)'!R133=\"\",\"\",+'[2]EXT(T)'!R133)","v":729.90000000000009},{"$f":"IF(+'[2]EXT(T)'!S133=\"\",\"\",+'[2]EXT(T)'!S133)","v":-675.35376198000006},{"$f":"IF(+'[2]EXT(T)'!U133=\"\",\"\",+'[2]EXT(T)'!U133)","v":1899.7903713175849},{"$f":"IF(+'[2]EXT(T)'!V133=\"\",\"\",+'[2]EXT(T)'!V133)","v":1224.4366093375847},{"$f":"IF(+'[2]EXT(T)'!W133=\"\",\"\",+'[2]EXT(T)'!W133)","v":1762.6553921123809},{"$f":"IF(+'[2]EXT(T)'!X133=\"\",\"\",+'[2]EXT(T)'!X133)","v":293.44233092715842},{"$f":"IF(+'[2]EXT(T)'!Y133=\"\",\"\",+'[2]EXT(T)'!Y133)","v":935},{"$f":"IF(+'[2]EXT(T)'!Z133=\"\",\"\",+'[2]EXT(T)'!Z133)","v":418.5941248460345},{"$f":"IF(+'[2]EXT(T)'!AA133=\"\",\"\",+'[2]EXT(T)'!AA133)","v":746.5},{"$f":"IF(+'[2]EXT(T)'!AB133=\"\",\"\",+'[2]EXT(T)'!AB133)","v":2559.6000000000004},{"$f":"IF(+'[2]EXT(T)'!AC133=\"\",\"\",+'[2]EXT(T)'!AC133)","v":172.11447922000013},{"$f":"IF(+'[2]EXT(T)'!AE133=\"\",\"\",+'[2]EXT(T)'!AE133)","v":6715.7918478855727},{"$f":"IF(+'[2]EXT(T)'!AF133=\"\",\"\",+'[2]EXT(T)'!AF133)","v":6887.9063271055738},{"$f":"IF(+'[2]EXT(T)'!AY133=\"\",\"\",+'[2]EXT(T)'!AY133)","v":33577.410257263764},{"$f":"IF(+'[2]EXT(T)'!AZ133=\"\",\"\",+'[2]EXT(T)'!AZ133)","v":33975.655257363767},{"$f":"IF(+'[2]EXT(T)'!AQ133=\"\",\"\",+'[2]EXT(T)'!AQ133-'[2]EXT(T)'!AQ132)","v":134.40566708},{"$f":"IF(+'[2]EXT(T)'!AR133=\"\",\"\",+'[2]EXT(T)'!AR133-'[2]EXT(T)'!AR132)","v":1746.46},{"$f":"IF(+'[2]EXT(T)'!AS133=\"\",\"\",+'[2]EXT(T)'!AS133-'[2]EXT(T)'!AS132)","v":3280},{"$f":"IF(+'[2]EXT(T)'!AT133=\"\",\"\",+'[2]EXT(T)'!AT133-'[2]EXT(T)'!AT132)","v":1680.0549999999994},{"$f":"IF(+'[2]EXT(T)'!AU133=\"\",\"\",+'[2]EXT(T)'!AU133-'[2]EXT(T)'!AU132)","v":508.70000000000005},{"$f":"IF(+'[2]EXT(T)'!AV133=\"\",\"\",+'[2]EXT(T)'!AV133-'[2]EXT(T)'!AV132)","v":2369.4143635296186},{"$f":"IF(+'[2]EXT(T)'!AW133=\"\",\"\",+'[2]EXT(T)'!AW133-'[2]EXT(T)'!AW132)","v":107.2813481},9719.0350306096188,9826.3163787096182]
[2021,"I",{"$f":"IF(+'[2]EXT(T)'!M134=\"\",\"\",+'[2]EXT(T)'!M134)","v":747.32595061571396},{"$f":"IF(+'[2]EXT(T)'!N134=\"\",\"\",+'[2]EXT(T)'!N134)","v":175.92259141},{"$f":"IF(+'[2]EXT(T)'!O134=\"\",\"\",+'[2]EXT(T)'!O134)","v":259.70000000000005},{"$f":"IF(+'[2]EXT(T)'!P134=\"\",\"\",+'[2]EXT(T)'!P134)","v":278.70982350322271},{"$f":"IF(+'[2]EXT(T)'!Q134=\"\",\"\",+'[2]EXT(T)'!Q134)","v":549.09999999999991},{"$f":"IF(+'[2]EXT(T)'!R134=\"\",\"\",+'[2]EXT(T)'!R134)","v":892.39999999999986},{"$f":"IF(+'[2]EXT(T)'!S134=\"\",\"\",+'[2]EXT(T)'!S134)","v":117.00999084999995},{"$f":"IF(+'[2]EXT(T)'!U134=\"\",\"\",+'[2]EXT(T)'!U134)","v":2903.1583655289364},{"$f":"IF(+'[2]EXT(T)'!V134=\"\",\"\",+'[2]EXT(T)'!V134)","v":3020.1683563789366},{"$f":"IF(+'[2]EXT(T)'!W134=\"\",\"\",+'[2]EXT(T)'!W134)","v":747.32595061571396},{"$f":"IF(+'[2]EXT(T)'!X134=\"\",\"\",+'[2]EXT(T)'!X134)","v":175.92259141},{"$f":"IF(+'[2]EXT(T)'!Y134=\"\",\"\",+'[2]EXT(T)'!Y134)","v":259.70000000000005},{"$f":"IF(+'[2]EXT(T)'!Z134=\"\",\"\",+'[2]EXT(T)'!Z134)","v":278.70982350322271},{"$f":"IF(+'[2]EXT(T)'!AA134=\"\",\"\",+'[2]EXT(T)'!AA134)","v":549.09999999999991},{"$f":"IF(+'[2]EXT(T)'!AB134=\"\",\"\",+'[2]EXT(T)'!AB134)","v":892.39999999999986},{"$f":"IF(+'[2]EXT(T)'!AC134=\"\",\"\",+'[2]EXT(T)'!AC134)","v":117.00999084999995},{"$f":"IF(+'[2]EXT(T)'!AE134=\"\",\"\",+'[2]EXT(T)'!AE134)","v":2903.1583655289364},{"$f":"IF(+'[2]EXT(T)'!AF134=\"\",\"\",+'[2]EXT(T)'!AF134)","v":3020.1683563789366},{"$f":"IF(+'[2]EXT(T)'!AY134=\"\",\"\",+'[2]EXT(T)'!AY134)","v":9618.1830286516742},{"$f":"IF(+'[2]EXT(T)'!AZ134=\"\",\"\",+'[2]EXT(T)'!AZ134)","v":9724.7112969216741},{"$f":"IF(+'[2]EXT(T)'!AQ134=\"\",\"\",+'[2]EXT(T)'!AQ134)","v":126.55532961},{"$f":"IF(+'[2]EXT(T)'!AR134=\"\",\"\",+'[2]EXT(T)'!AR134)","v":1720.68},{"$f":"IF(+'[2]EXT(T)'!AS134=\"\",\"\",+'[2]EXT(T)'!AS134)","v":3135.2999999999997},{"$f":"IF(+'[2]EXT(T)'!AT134=\"\",\"\",+'[2]EXT(T)'!AT134)","v":1586.56},{"$f":"IF(+'[2]EXT(T)'!AU134=\"\",\"\",+'[2]EXT(T)'!AU134)","v":500.4},{"$f":"IF(+'[2]EXT(T)'!AV134=\"\",\"\",+'[2]EXT(T)'!AV134)","v":2548.6876990416754},{"$f":"IF(+'[2]EXT(T)'!AW134=\"\",\"\",+'[2]EXT(T)'!AW134)","v":106.52826827},9618.1830286516742,9724.7112969216741]
[null,"II",{"$f":"IF(+'[2]EXT(T)'!M135=\"\",\"\",+'[2]EXT(T)'!M135)","v":694.09866642153384},{"$f":"IF(+'[2]EXT(T)'!N135=\"\",\"\",+'[2]EXT(T)'!N135)","v":237.96631214000013},{"$f":"IF(+'[2]EXT(T)'!O135=\"\",\"\",+'[2]EXT(T)'!O135)","v":233.89999999999998},{"$f":"IF(+'[2]EXT(T)'!P135=\"\",\"\",+'[2]EXT(T)'!P135)","v":88.128865642923074},{"$f":"IF(+'[2]EXT(T)'!Q135=\"\",\"\",+'[2]EXT(T)'!Q135)","v":170.7},{"$f":"IF(+'[2]EXT(T)'!R135=\"\",\"\",+'[2]EXT(T)'!R135)","v":835.09999999999991},{"$f":"IF(+'[2]EXT(T)'!S135=\"\",\"\",+'[2]EXT(T)'!S135)","v":430.28546374999996},{"$f":"IF(+'[2]EXT(T)'!U135=\"\",\"\",+'[2]EXT(T)'!U135)","v":2259.8938442044569},{"$f":"IF(+'[2]EXT(T)'!V135=\"\",\"\",+'[2]EXT(T)'!V135)","v":2690.1793079544568},{"$f":"IF(+'[2]EXT(T)'!W135=\"\",\"\",+'[2]EXT(T)'!W135)","v":1441.4246170372478},{"$f":"IF(+'[2]EXT(T)'!X135=\"\",\"\",+'[2]EXT(T)'!X135)","v":413.88890355000012},{"$f":"IF(+'[2]EXT(T)'!Y135=\"\",\"\",+'[2]EXT(T)'!Y135)","v":493.6},{"$f":"IF(+'[2]EXT(T)'!Z135=\"\",\"\",+'[2]EXT(T)'!Z135)","v":366.83868914614578},{"$f":"IF(+'[2]EXT(T)'!AA135=\"\",\"\",+'[2]EXT(T)'!AA135)","v":719.8},{"$f":"IF(+'[2]EXT(T)'!AB135=\"\",\"\",+'[2]EXT(T)'!AB135)","v":1727.4999999999998},{"$f":"IF(+'[2]EXT(T)'!AC135=\"\",\"\",+'[2]EXT(T)'!AC135)","v":547.29545459999986},{"$f":"IF(+'[2]EXT(T)'!AE135=\"\",\"\",+'[2]EXT(T)'!AE135)","v":5163.0522097333933},{"$f":"IF(+'[2]EXT(T)'!AF135=\"\",\"\",+'[2]EXT(T)'!AF135)","v":5710.3476643333934},{"$f":"IF(+'[2]EXT(T)'!AY135=\"\",\"\",+'[2]EXT(T)'!AY135)","v":20693.338019312567},{"$f":"IF(+'[2]EXT(T)'!AZ135=\"\",\"\",+'[2]EXT(T)'!AZ135)","v":20930.993273582568},{"$f":"IF(+'[2]EXT(T)'!AQ135=\"\",\"\",+'[2]EXT(T)'!AQ135-'[2]EXT(T)'!AQ134)","v":139.81280549000002},{"$f":"IF(+'[2]EXT(T)'!AR135=\"\",\"\",+'[2]EXT(T)'!AR135-'[2]EXT(T)'!AR134)","v":1963.74},{"$f":"IF(+'[2]EXT(T)'!AS135=\"\",\"\",+'[2]EXT(T)'!AS135-'[2]EXT(T)'!AS134)","v":3830.9},{"$f":"IF(+'[2]EXT(T)'!AT135=\"\",\"\",+'[2]EXT(T)'!AT135-'[2]EXT(T)'!AT134)","v":1896.5180999999998},{"$f":"IF(+'[2]EXT(T)'!AU135=\"\",\"\",+'[2]EXT(T)'!AU135-'[2]EXT(T)'!AU134)","v":529.80000000000007},{"$f":"IF(+'[2]EXT(T)'!AV135=\"\",\"\",+'[2]EXT(T)'!AV135-'[2]EXT(T)'!AV134)","v":2714.3840851708906},{"$f":"IF(+'[2]EXT(T)'!AW135=\"\",\"\",+'[2]EXT(T)'!AW135-'[2]EXT(T)'!AW134)","v":131.12698599999999},11075.154990660889,11206.281976660888]
[null,"III",{"$f":"IF(+'[2]EXT(T)'!M136=\"\",\"\",+'[2]EXT(T)'!M136)","v":1159.8575244862468},{"$f":"IF(+'[2]EXT(T)'!N136=\"\",\"\",+'[2]EXT(T)'!N136)","v":-19.235937419999885},{"$f":"IF(+'[2]EXT(T)'!O136=\"\",\"\",+'[2]EXT(T)'!O136)","v":342.5},{"$f":"IF(+'[2]EXT(T)'!P136=\"\",\"\",+'[2]EXT(T)'!P136)","v":105.63824505009241},{"$f":"IF(+'[2]EXT(T)'!Q136=\"\",\"\",+'[2]EXT(T)'!Q136)","v":233.1},{"$f":"IF(+'[2]EXT(T)'!R136=\"\",\"\",+'[2]EXT(T)'!R136)","v":676.9},{"$f":"IF(+'[2]EXT(T)'!S136=\"\",\"\",+'[2]EXT(T)'!S136)","v":823.25223168000002},{"$f":"IF(+'[2]EXT(T)'!U136=\"\",\"\",+'[2]EXT(T)'!U136)","v":2498.7598321163391},{"$f":"IF(+'[2]EXT(T)'!V136=\"\",\"\",+'[2]EXT(T)'!V136)","v":3322.0120637963391},{"$f":"IF(+'[2]EXT(T)'!W136=\"\",\"\",+'[2]EXT(T)'!W136)","v":2601.2821415234948},{"$f":"IF(+'[2]EXT(T)'!X136=\"\",\"\",+'[2]EXT(T)'!X136)","v":394.65296613000021},{"$f":"IF(+'[2]EXT(T)'!Y136=\"\",\"\",+'[2]EXT(T)'!Y136)","v":836.1},{"$f":"IF(+'[2]EXT(T)'!Z136=\"\",\"\",+'[2]EXT(T)'!Z136)","v":472.47693419623818},{"$f":"IF(+'[2]EXT(T)'!AA136=\"\",\"\",+'[2]EXT(T)'!AA136)","v":952.9},{"$f":"IF(+'[2]EXT(T)'!AB136=\"\",\"\",+'[2]EXT(T)'!AB136)","v":2404.3999999999996},{"$f":"IF(+'[2]EXT(T)'!AC136=\"\",\"\",+'[2]EXT(T)'!AC136)","v":1370.5476862799999},{"$f":"IF(+'[2]EXT(T)'!AE136=\"\",\"\",+'[2]EXT(T)'!AE136)","v":7661.8120418497329},{"$f":"IF(+'[2]EXT(T)'!AF136=\"\",\"\",+'[2]EXT(T)'!AF136)","v":9032.3597281297334},{"$f":"IF(+'[2]EXT(T)'!AY136=\"\",\"\",+'[2]EXT(T)'!AY136)","v":31766.523590510038},{"$f":"IF(+'[2]EXT(T)'!AZ136=\"\",\"\",+'[2]EXT(T)'!AZ136)","v":32144.005248090038},{"$f":"IF(+'[2]EXT(T)'!AQ136=\"\",\"\",+'[2]EXT(T)'!AQ136-'[2]EXT(T)'!AQ135)","v":149.30488045000004},{"$f":"IF(+'[2]EXT(T)'!AR136=\"\",\"\",+'[2]EXT(T)'!AR136-'[2]EXT(T)'!AR135)","v":1855.119999999999},{"$f":"IF(+'[2]EXT(T)'!AS136=\"\",\"\",+'[2]EXT(T)'!AS136-'[2]EXT(T)'!AS135)","v":4042.2},{"$f":"IF(+'[2]EXT(T)'!AT136=\"\",\"\",+'[2]EXT(T)'!AT136-'[2]EXT(T)'!AT135)","v":1901.2223000000004},{"$f":"IF(+'[2]EXT(T)'!AU136=\"\",\"\",+'[2]EXT(T)'!AU136-'[2]EXT(T)'!AU135)","v":527.09999999999991},{"$f":"IF(+'[2]EXT(T)'!AV136=\"\",\"\",+'[2]EXT(T)'!AV136-'[2]EXT(T)'!AV135)","v":2598.2383907474741},{"$f":"IF(+'[2]EXT(T)'!AW136=\"\",\"\",+'[2]EXT(T)'!AW136-'[2]EXT(T)'!AW135)","v":139.82640330999999},11073.185571197473,11213.011974507473]
[null,"IV",{"$f":"IF(+'[2]EXT(T)'!M137=\"\",\"\",+'[2]EXT(T)'!M137)","v":629.76961885951948},{"$f":"IF(+'[2]EXT(T)'!N137=\"\",\"\",+'[2]EXT(T)'!N137)","v":-80.176827071020753},{"$f":"IF(+'[2]EXT(T)'!O137=\"\",\"\",+'[2]EXT(T)'!O137)","v":2625.8},{"$f":"IF(+'[2]EXT(T)'!P137=\"\",\"\",+'[2]EXT(T)'!P137)","v":266.20071800728152},{"$f":"IF(+'[2]EXT(T)'!Q137=\"\",\"\",+'[2]EXT(T)'!Q137)","v":267.20000000000005},{"$f":"IF(+'[2]EXT(T)'!R137=\"\",\"\",+'[2]EXT(T)'!R137)","v":792.39999999999986},{"$f":"IF(+'[2]EXT(T)'!S137=\"\",\"\",+'[2]EXT(T)'!S137)","v":275.73867781000001},{"$f":"IF(+'[2]EXT(T)'!U137=\"\",\"\",+'[2]EXT(T)'!U137)","v":4501.1935097957803},{"$f":"IF(+'[2]EXT(T)'!V137=\"\",\"\",+'[2]EXT(T)'!V137)","v":4776.9321876057802},{"$f":"IF(+'[2]EXT(T)'!W137=\"\",\"\",+'[2]EXT(T)'!W137)","v":3231.0517603830144},{"$f":"IF(+'[2]EXT(T)'!X137=\"\",\"\",+'[2]EXT(T)'!X137)","v":314.47613905897947},{"$f":"IF(+'[2]EXT(T)'!Y137=\"\",\"\",+'[2]EXT(T)'!Y137)","v":3461.9},{"$f":"IF(+'[2]EXT(T)'!Z137=\"\",\"\",+'[2]EXT(T)'!Z137)","v":738.67765220351976},{"$f":"IF(+'[2]EXT(T)'!AA137=\"\",\"\",+'[2]EXT(T)'!AA137)","v":1220.0999999999999},{"$f":"IF(+'[2]EXT(T)'!AB137=\"\",\"\",+'[2]EXT(T)'!AB137)","v":3196.7999999999993},{"$f":"IF(+'[2]EXT(T)'!AC137=\"\",\"\",+'[2]EXT(T)'!AC137)","v":1646.28636409},{"$f":"IF(+'[2]EXT(T)'!AE137=\"\",\"\",+'[2]EXT(T)'!AE137)","v":12163.005551645514},{"$f":"IF(+'[2]EXT(T)'!AF137=\"\",\"\",+'[2]EXT(T)'!AF137)","v":13809.291915735514},{"$f":"IF(+'[2]EXT(T)'!AY137=\"\",\"\",+'[2]EXT(T)'!AY137)","v":43359.156744179832},{"$f":"IF(+'[2]EXT(T)'!AZ137=\"\",\"\",+'[2]EXT(T)'!AZ137)","v":43871.866612999831},{"$f":"IF(+'[2]EXT(T)'!AQ137=\"\",\"\",+'[2]EXT(T)'!AQ137-'[2]EXT(T)'!AQ136)","v":143.14142834999996},{"$f":"IF(+'[2]EXT(T)'!AR137=\"\",\"\",+'[2]EXT(T)'!AR137-'[2]EXT(T)'!AR136)","v":2045.6999999999998},{"$f":"IF(+'[2]EXT(T)'!AS137=\"\",\"\",+'[2]EXT(T)'!AS137-'[2]EXT(T)'!AS136)","v":4287.3000000000011},{"$f":"IF(+'[2]EXT(T)'!AT137=\"\",\"\",+'[2]EXT(T)'!AT137-'[2]EXT(T)'!AT136)","v":1985.7327000000005},{"$f":"IF(+'[2]EXT(T)'!AU137=\"\",\"\",+'[2]EXT(T)'!AU137-'[2]EXT(T)'!AU136)","v":589.59999999999968},{"$f":"IF(+'[2]EXT(T)'!AV137=\"\",\"\",+'[2]EXT(T)'!AV137-'[2]EXT(T)'!AV136)","v":2541.1590253197946},{"$f":"IF(+'[2]EXT(T)'!AW137=\"\",\"\",+'[2]EXT(T)'!AW137-'[2]EXT(T)'!AW136)","v":135.22821124000001},11592.633153669798,11727.861364909799]
[2022,"I",{"$f":"IF(+'[2]EXT(T)'!M138=\"\",\"\",+'[2]EXT(T)'!M138)","v":1059.518250760309},{"$f":"IF(+'[2]EXT(T)'!N138=\"\",\"\",+'[2]EXT(T)'!N138)","v":-226.32222247000007},{"$f":"IF(+'[2]EXT(T)'!O138=\"\",\"\",+'[2]EXT(T)'!O138)","v":301.89999999999998},{"$f":"IF(+'[2]EXT(T)'!P138=\"\",\"\",+'[2]EXT(T)'!P138)","v":326.75789682499828},{"$f":"IF(+'[2]EXT(T)'!Q138=\"\",\"\",+'[2]EXT(T)'!Q138)","v":581.29999999999995},{"$f":"IF(+'[2]EXT(T)'!R138=\"\",\"\",+'[2]EXT(T)'!R138)","v":1001.4},{"$f":"IF(+'[2]EXT(T)'!S138=\"\",\"\",+'[2]EXT(T)'!S138)","v":689.54608465000001},{"$f":"IF(+'[2]EXT(T)'!U138=\"\",\"\",+'[2]EXT(T)'!U138)","v":3044.5539251153068},{"$f":"IF(+'[2]EXT(T)'!V138=\"\",\"\",+'[2]EXT(T)'!V138)","v":3734.1000097653068},{"$f":"IF(+'[2]EXT(T)'!W138=\"\",\"\",+'[2]EXT(T)'!W138)","v":1059.518250760309},{"$f":"IF(+'[2]EXT(T)'!X138=\"\",\"\",+'[2]EXT(T)'!X138)","v":-226.32222247000007},{"$f":"IF(+'[2]EXT(T)'!Y138=\"\",\"\",+'[2]EXT(T)'!Y138)","v":301.89999999999998},{"$f":"IF(+'[2]EXT(T)'!Z138=\"\",\"\",+'[2]EXT(T)'!Z138)","v":326.75789682499828},{"$f":"IF(+'[2]EXT(T)'!AA138=\"\",\"\",+'[2]EXT(T)'!AA138)","v":581.29999999999995},{"$f":"IF(+'[2]EXT(T)'!AB138=\"\",\"\",+'[2]EXT(T)'!AB138)","v":1001.4},{"$f":"IF(+'[2]EXT(T)'!AC138=\"\",\"\",+'[2]EXT(T)'!AC138)","v":689.54608465000001},{"$f":"IF(+'[2]EXT(T)'!AE138=\"\",\"\",+'[2]EXT(T)'!AE138)","v":3044.5539251153068},{"$f":"IF(+'[2]EXT(T)'!AF138=\"\",\"\",+'[2]EXT(T)'!AF138)","v":3734.1000097653068},{"$f":"IF(+'[2]EXT(T)'!AY138=\"\",\"\",+'[2]EXT(T)'!AY138)","v":10872.598798637136},{"$f":"IF(+'[2]EXT(T)'!AZ138=\"\",\"\",+'[2]EXT(T)'!AZ138)","v":10986.658605267137},{"$f":"IF(+'[2]EXT(T)'!AQ138=\"\",\"\",+'[2]EXT(T)'!AQ138)","v":141.17356319999999},{"$f":"IF(+'[2]EXT(T)'!AR138=\"\",\"\",+'[2]EXT(T)'!AR138)","v":1825.2199999999998},{"$f":"IF(+'[2]EXT(T)'!AS138=\"\",\"\",+'[2]EXT(T)'!AS138)","v":3936.5555296000002},{"$f":"IF(+'[2]EXT(T)'!AT138=\"\",\"\",+'[2]EXT(T)'!AT138)","v":1940.8462999999999},{"$f":"IF(+'[2]EXT(T)'!AU138=\"\",\"\",+'[2]EXT(T)'!AU138)","v":632.59999999999991},{"$f":"IF(+'[2]EXT(T)'!AV138=\"\",\"\",+'[2]EXT(T)'!AV138)","v":2396.2034058371382},{"$f":"IF(+'[2]EXT(T)'!AW138=\"\",\"\",+'[2]EXT(T)'!AW138)","v":114.05980663},10872.598798637136,10986.658605267137]
[null,"II",{"$f":"IF(+'[2]EXT(T)'!M139=\"\",\"\",+'[2]EXT(T)'!M139)","v":635.28569637246619},{"$f":"IF(+'[2]EXT(T)'!N139=\"\",\"\",+'[2]EXT(T)'!N139)","v":-57.490181979999988},{"$f":"IF(+'[2]EXT(T)'!O139=\"\",\"\",+'[2]EXT(T)'!O139)","v":396.5},{"$f":"IF(+'[2]EXT(T)'!P139=\"\",\"\",+'[2]EXT(T)'!P139)","v":167.38146179037378},{"$f":"IF(+'[2]EXT(T)'!Q139=\"\",\"\",+'[2]EXT(T)'!Q139)","v":317.3},{"$f":"IF(+'[2]EXT(T)'!R139=\"\",\"\",+'[2]EXT(T)'!R139)","v":1042.3999999999999},{"$f":"IF(+'[2]EXT(T)'!S139=\"\",\"\",+'[2]EXT(T)'!S139)","v":871.08035510000013},{"$f":"IF(+'[2]EXT(T)'!U139=\"\",\"\",+'[2]EXT(T)'!U139)","v":2501.3769761828398},{"$f":"IF(+'[2]EXT(T)'!V139=\"\",\"\",+'[2]EXT(T)'!V139)","v":3372.4573312828397},{"$f":"IF(+'[2]EXT(T)'!W139=\"\",\"\",+'[2]EXT(T)'!W139)","v":1694.8039471327752},{"$f":"IF(+'[2]EXT(T)'!X139=\"\",\"\",+'[2]EXT(T)'!X139)","v":-283.81240445000003},{"$f":"IF(+'[2]EXT(T)'!Y139=\"\",\"\",+'[2]EXT(T)'!Y139)","v":698.4},{"$f":"IF(+'[2]EXT(T)'!Z139=\"\",\"\",+'[2]EXT(T)'!Z139)","v":494.13935861537209},{"$f":"IF(+'[2]EXT(T)'!AA139=\"\",\"\",+'[2]EXT(T)'!AA139)","v":898.59999999999991},{"$f":"IF(+'[2]EXT(T)'!AB139=\"\",\"\",+'[2]EXT(T)'!AB139)","v":2043.7999999999997},{"$f":"IF(+'[2]EXT(T)'!AC139=\"\",\"\",+'[2]EXT(T)'!AC139)","v":1560.6264397500001},{"$f":"IF(+'[2]EXT(T)'!AE139=\"\",\"\",+'[2]EXT(T)'!AE139)","v":5545.9309012981466},{"$f":"IF(+'[2]EXT(T)'!AF139=\"\",\"\",+'[2]EXT(T)'!AF139)","v":7106.5573410481466},{"$f":"IF(+'[2]EXT(T)'!AY139=\"\",\"\",+'[2]EXT(T)'!AY139)","v":23272.373222338523},{"$f":"IF(+'[2]EXT(T)'!AZ139=\"\",\"\",+'[2]EXT(T)'!AZ139)","v":23390.501356848523},{"$f":"IF(+'[2]EXT(T)'!AQ139=\"\",\"\",+'[2]EXT(T)'!AQ139-'[2]EXT(T)'!AQ138)","v":143.2219164},{"$f":"IF(+'[2]EXT(T)'!AR139=\"\",\"\",+'[2]EXT(T)'!AR139-'[2]EXT(T)'!AR138)","v":1993.4},{"$f":"IF(+'[2]EXT(T)'!AS139=\"\",\"\",+'[2]EXT(T)'!AS139-'[2]EXT(T)'!AS138)","v":4774.8346399900001},{"$f":"IF(+'[2]EXT(T)'!AT139=\"\",\"\",+'[2]EXT(T)'!AT139-'[2]EXT(T)'!AT138)","v":2259.8649999999998},{"$f":"IF(+'[2]EXT(T)'!AU139=\"\",\"\",+'[2]EXT(T)'!AU139-'[2]EXT(T)'!AU138)","v":763.60000000000014},{"$f":"IF(+'[2]EXT(T)'!AV139=\"\",\"\",+'[2]EXT(T)'!AV139-'[2]EXT(T)'!AV138)","v":2464.8528673113851},{"$f":"IF(+'[2]EXT(T)'!AW139=\"\",\"\",+'[2]EXT(T)'!AW139-'[2]EXT(T)'!AW138)","v":4.0683278799999982},12399.774423701385,12403.842751581386]
[null,"III",{"$f":"IF(+'[2]EXT(T)'!M140=\"\",\"\",+'[2]EXT(T)'!M140)","v":618.81692498979419},{"$f":"IF(+'[2]EXT(T)'!N140=\"\",\"\",+'[2]EXT(T)'!N140)","v":236.05744374999998},{"$f":"IF(+'[2]EXT(T)'!O140=\"\",\"\",+'[2]EXT(T)'!O140)","v":344},{"$f":"IF(+'[2]EXT(T)'!P140=\"\",\"\",+'[2]EXT(T)'!P140)","v":153.72818230773834},{"$f":"IF(+'[2]EXT(T)'!Q140=\"\",\"\",+'[2]EXT(T)'!Q140)","v":181.1},{"$f":"IF(+'[2]EXT(T)'!R140=\"\",\"\",+'[2]EXT(T)'!R140)","v":1198.0999999999999},{"$f":"IF(+'[2]EXT(T)'!S140=\"\",\"\",+'[2]EXT(T)'!S140)","v":711.97368405999998},{"$f":"IF(+'[2]EXT(T)'!U140=\"\",\"\",+'[2]EXT(T)'!U140)","v":2731.8025510475322},{"$f":"IF(+'[2]EXT(T)'!V140=\"\",\"\",+'[2]EXT(T)'!V140)","v":3443.7762351075321},{"$f":"IF(+'[2]EXT(T)'!W140=\"\",\"\",+'[2]EXT(T)'!W140)","v":2313.6208721225694},{"$f":"IF(+'[2]EXT(T)'!X140=\"\",\"\",+'[2]EXT(T)'!X140)","v":-47.754960700000055},{"$f":"IF(+'[2]EXT(T)'!Y140=\"\",\"\",+'[2]EXT(T)'!Y140)","v":1042.4000000000001},{"$f":"IF(+'[2]EXT(T)'!Z140=\"\",\"\",+'[2]EXT(T)'!Z140)","v":647.86754092311048},{"$f":"IF(+'[2]EXT(T)'!AA140=\"\",\"\",+'[2]EXT(T)'!AA140)","v":1079.6999999999998},{"$f":"IF(+'[2]EXT(T)'!AB140=\"\",\"\",+'[2]EXT(T)'!AB140)","v":3241.8999999999996},{"$f":"IF(+'[2]EXT(T)'!AC140=\"\",\"\",+'[2]EXT(T)'!AC140)","v":2272.6001238100002},{"$f":"IF(+'[2]EXT(T)'!AE140=\"\",\"\",+'[2]EXT(T)'!AE140)","v":8277.7334523456793},{"$f":"IF(+'[2]EXT(T)'!AF140=\"\",\"\",+'[2]EXT(T)'!AF140)","v":10550.333576155679},{"$f":"IF(+'[2]EXT(T)'!AY140=\"\",\"\",+'[2]EXT(T)'!AY140)","v":35551.17286502869},{"$f":"IF(+'[2]EXT(T)'!AZ140=\"\",\"\",+'[2]EXT(T)'!AZ140)","v":35665.56435636869},{"$f":"IF(+'[2]EXT(T)'!AQ140=\"\",\"\",+'[2]EXT(T)'!AQ140-'[2]EXT(T)'!AQ139)","v":149.66468366999999},{"$f":"IF(+'[2]EXT(T)'!AR140=\"\",\"\",+'[2]EXT(T)'!AR140-'[2]EXT(T)'!AR139)","v":1925.4700000000003},{"$f":"IF(+'[2]EXT(T)'!AS140=\"\",\"\",+'[2]EXT(T)'!AS140-'[2]EXT(T)'!AS139)","v":4609.8855197699995},{"$f":"IF(+'[2]EXT(T)'!AT140=\"\",\"\",+'[2]EXT(T)'!AT140-'[2]EXT(T)'!AT139)","v":2283.2028000000009},{"$f":"IF(+'[2]EXT(T)'!AU140=\"\",\"\",+'[2]EXT(T)'!AU140-'[2]EXT(T)'!AU139)","v":862.2},{"$f":"IF(+'[2]EXT(T)'!AV140=\"\",\"\",+'[2]EXT(T)'!AV140-'[2]EXT(T)'!AV139)","v":2448.3766392501648},{"$f":"IF(+'[2]EXT(T)'!AW140=\"\",\"\",+'[2]EXT(T)'!AW140-'[2]EXT(T)'!AW139)","v":-3.7366431699999936},12278.799642690166,12275.062999520167]
[null,"IV",{"$f":"IF(+'[2]EXT(T)'!M141=\"\",\"\",+'[2]EXT(T)'!M141)","v":850.24835780796161},{"$f":"IF(+'[2]EXT(T)'!N141=\"\",\"\",+'[2]EXT(T)'!N141)","v":-51.34682985000002},{"$f":"IF(+'[2]EXT(T)'!O141=\"\",\"\",+'[2]EXT(T)'!O141)","v":335.79999999999995},{"$f":"IF(+'[2]EXT(T)'!P141=\"\",\"\",+'[2]EXT(T)'!P141)","v":272.4098798971699},{"$f":"IF(+'[2]EXT(T)'!Q141=\"\",\"\",+'[2]EXT(T)'!Q141)","v":240},{"$f":"IF(+'[2]EXT(T)'!R141=\"\",\"\",+'[2]EXT(T)'!R141)","v":768.49999999999989},{"$f":"IF(+'[2]EXT(T)'!S141=\"\",\"\",+'[2]EXT(T)'!S141)","v":633.58663491999994},{"$f":"IF(+'[2]EXT(T)'!U141=\"\",\"\",+'[2]EXT(T)'!U141)","v":2415.6114078551313},{"$f":"IF(+'[2]EXT(T)'!V141=\"\",\"\",+'[2]EXT(T)'!V141)","v":3049.1980427751314},{"$f":"IF(+'[2]EXT(T)'!W141=\"\",\"\",+'[2]EXT(T)'!W141)","v":3163.8692299305312},{"$f":"IF(+'[2]EXT(T)'!X141=\"\",\"\",+'[2]EXT(T)'!X141)","v":-99.101790550000075},{"$f":"IF(+'[2]EXT(T)'!Y141=\"\",\"\",+'[2]EXT(T)'!Y141)","v":1378.2},{"$f":"IF(+'[2]EXT(T)'!Z141=\"\",\"\",+'[2]EXT(T)'!Z141)","v":920.27742082028044},{"$f":"IF(+'[2]EXT(T)'!AA141=\"\",\"\",+'[2]EXT(T)'!AA141)","v":1319.6999999999998},{"$f":"IF(+'[2]EXT(T)'!AB141=\"\",\"\",+'[2]EXT(T)'!AB141)","v":4010.3999999999996},{"$f":"IF(+'[2]EXT(T)'!AC141=\"\",\"\",+'[2]EXT(T)'!AC141)","v":2906.1867587300003},{"$f":"IF(+'[2]EXT(T)'!AE141=\"\",\"\",+'[2]EXT(T)'!AE141)","v":10693.34486020081},{"$f":"IF(+'[2]EXT(T)'!AF141=\"\",\"\",+'[2]EXT(T)'!AF141)","v":13599.531618930811},{"$f":"IF(+'[2]EXT(T)'!AY141=\"\",\"\",+'[2]EXT(T)'!AY141)","v":48202.772607059866},{"$f":"IF(+'[2]EXT(T)'!AZ141=\"\",\"\",+'[2]EXT(T)'!AZ141)","v":48325.733013079865},{"$f":"IF(+'[2]EXT(T)'!AQ141=\"\",\"\",+'[2]EXT(T)'!AQ141-'[2]EXT(T)'!AQ140)","v":141.22659807000002},{"$f":"IF(+'[2]EXT(T)'!AR141=\"\",\"\",+'[2]EXT(T)'!AR141-'[2]EXT(T)'!AR140)","v":2075.4799999999996},{"$f":"IF(+'[2]EXT(T)'!AS141=\"\",\"\",+'[2]EXT(T)'!AS141-'[2]EXT(T)'!AS140)","v":4719.0453953199994},{"$f":"IF(+'[2]EXT(T)'!AT141=\"\",\"\",+'[2]EXT(T)'!AT141-'[2]EXT(T)'!AT140)","v":2202.2832000000008},{"$f":"IF(+'[2]EXT(T)'!AU141=\"\",\"\",+'[2]EXT(T)'!AU141-'[2]EXT(T)'!AU140)","v":966.5},{"$f":"IF(+'[2]EXT(T)'!AV141=\"\",\"\",+'[2]EXT(T)'!AV141-'[2]EXT(T)'!AV140)","v":2547.0645486411777},{"$f":"IF(+'[2]EXT(T)'!AW141=\"\",\"\",+'[2]EXT(T)'!AW141-'[2]EXT(T)'!AW140)","v":8.5689146799999918},12651.599742031176,12660.168656711176]
[2023,"I",{"$f":"IF(+'[2]EXT(T)'!M142=\"\",\"\",+'[2]EXT(T)'!M142)","v":871.61248552446409},{"$f":"IF(+'[2]EXT(T)'!N142=\"\",\"\",+'[2]EXT(T)'!N142)","v":191.6623031},{"$f":"IF(+'[2]EXT(T)'!O142=\"\",\"\",+'[2]EXT(T)'!O142)","v":394.70000000000005},{"$f":"IF(+'[2]EXT(T)'!P142=\"\",\"\",+'[2]EXT(T)'!P142)","v":195.46684574972508},{"$f":"IF(+'[2]EXT(T)'!Q142=\"\",\"\",+'[2]EXT(T)'!Q142)","v":567.5},{"$f":"IF(+'[2]EXT(T)'!R142=\"\",\"\",+'[2]EXT(T)'!R142)","v":1126.2},{"$f":"IF(+'[2]EXT(T)'!S142=\"\",\"\",+'[2]EXT(T)'!S142)","v":828.12375589999988},{"$f":"IF(+'[2]EXT(T)'!U142=\"\",\"\",+'[2]EXT(T)'!U142)","v":3347.1416343741894},{"$f":"IF(+'[2]EXT(T)'!V142=\"\",\"\",+'[2]EXT(T)'!V142)","v":4175.2653902741895},{"$f":"IF(+'[2]EXT(T)'!W142=\"\",\"\",+'[2]EXT(T)'!W142)","v":871.61248552446409},{"$f":"IF(+'[2]EXT(T)'!X142=\"\",\"\",+'[2]EXT(T)'!X142)","v":191.6623031},{"$f":"IF(+'[2]EXT(T)'!Y142=\"\",\"\",+'[2]EXT(T)'!Y142)","v":394.70000000000005},{"$f":"IF(+'[2]EXT(T)'!Z142=\"\",\"\",+'[2]EXT(T)'!Z142)","v":195.46684574972508},{"$f":"IF(+'[2]EXT(T)'!AA142=\"\",\"\",+'[2]EXT(T)'!AA142)","v":567.5},{"$f":"IF(+'[2]EXT(T)'!AB142=\"\",\"\",+'[2]EXT(T)'!AB142)","v":1126.2},{"$f":"IF(+'[2]EXT(T)'!AC142=\"\",\"\",+'[2]EXT(T)'!AC142)","v":828.12375589999988},{"$f":"IF(+'[2]EXT(T)'!AE142=\"\",\"\",+'[2]EXT(T)'!AE142)","v":3347.1416343741894},{"$f":"IF(+'[2]EXT(T)'!AF142=\"\",\"\",+'[2]EXT(T)'!AF142)","v":4175.2653902741895},{"$f":"IF(+'[2]EXT(T)'!AY142=\"\",\"\",+'[2]EXT(T)'!AY142)","v":12131.820539052724},{"$f":"IF(+'[2]EXT(T)'!AZ142=\"\",\"\",+'[2]EXT(T)'!AZ142)","v":12245.037994392724},{"$f":"IF(+'[2]EXT(T)'!AQ142=\"\",\"\",+'[2]EXT(T)'!AQ142)","v":163.04387657000001},{"$f":"IF(+'[2]EXT(T)'!AR142=\"\",\"\",+'[2]EXT(T)'!AR142)","v":1914.1200000000001},{"$f":"IF(+'[2]EXT(T)'!AS142=\"\",\"\",+'[2]EXT(T)'!AS142)","v":4433.4187062800002},{"$f":"IF(+'[2]EXT(T)'!AT142=\"\",\"\",+'[2]EXT(T)'!AT142)","v":2119.5905999999995},{"$f":"IF(+'[2]EXT(T)'!AU142=\"\",\"\",+'[2]EXT(T)'!AU142)","v":1020.3},{"$f":"IF(+'[2]EXT(T)'!AV142=\"\",\"\",+'[2]EXT(T)'!AV142)","v":2481.3473562027248},{"$f":"IF(+'[2]EXT(T)'!AW142=\"\",\"\",+'[2]EXT(T)'!AW142)","v":113.21745534},{"$f":"IF(OR(W135=\"\",X135=\"\",Y135=\"\",Z135=\"\",AA135=\"\",AB135=\"\"),\"\",W135+X135+Y135+Z135+AA135+AB135)","v":12131.820539052724},{"$f":"IF(OR(X135=\"\",Y135=\"\",Z135=\"\",AA135=\"\",AB135=\"\",AC135=\"\",W135=\"\"),\"\",X135+W135+Y135+Z135+AA135+AB135+AC135)","v":12245.037994392724}]
[null,"II",{"$f":"IF(+'[2]EXT(T)'!M143=\"\",\"\",+'[2]EXT(T)'!M143)","v":1072.2737521678791},{"$f":"IF(+'[2]EXT(T)'!N143=\"\",\"\",+'[2]EXT(T)'!N143)","v":152.56770664000044},{"$f":"IF(+'[2]EXT(T)'!O143=\"\",\"\",+'[2]EXT(T)'!O143)","v":348.5},{"$f":"IF(+'[2]EXT(T)'!P143=\"\",\"\",+'[2]EXT(T)'!P143)","v":237.8691492214864},{"$f":"IF(+'[2]EXT(T)'!Q143=\"\",\"\",+'[2]EXT(T)'!Q143)","v":329.1},{"$f":"IF(+'[2]EXT(T)'!R143=\"\",\"\",+'[2]EXT(T)'!R143)","v":1043.7},{"$f":"IF(+'[2]EXT(T)'!S143=\"\",\"\",+'[2]EXT(T)'!S143)","v":1867.73753326},{"$f":"IF(+'[2]EXT(T)'!U143=\"\",\"\",+'[2]EXT(T)'!U143)","v":3184.0106080293663},{"$f":"IF(+'[2]EXT(T)'!V143=\"\",\"\",+'[2]EXT(T)'!V143)","v":5051.7481412893667},{"$f":"IF(+'[2]EXT(T)'!W143=\"\",\"\",+'[2]EXT(T)'!W143)","v":1943.8862376923432},{"$f":"IF(+'[2]EXT(T)'!X143=\"\",\"\",+'[2]EXT(T)'!X143)","v":344.23000974000047},{"$f":"IF(+'[2]EXT(T)'!Y143=\"\",\"\",+'[2]EXT(T)'!Y143)","v":743.2},{"$f":"IF(+'[2]EXT(T)'!Z143=\"\",\"\",+'[2]EXT(T)'!Z143)","v":433.33599497121145},{"$f":"IF(+'[2]EXT(T)'!AA143=\"\",\"\",+'[2]EXT(T)'!AA143)","v":896.6},{"$f":"IF(+'[2]EXT(T)'!AB143=\"\",\"\",+'[2]EXT(T)'!AB143)","v":2169.9},{"$f":"IF(+'[2]EXT(T)'!AC143=\"\",\"\",+'[2]EXT(T)'!AC143)","v":2695.8612891599996},{"$f":"IF(+'[2]EXT(T)'!AE143=\"\",\"\",+'[2]EXT(T)'!AE143)","v":6531.1522424035556},{"$f":"IF(+'[2]EXT(T)'!AF143=\"\",\"\",+'[2]EXT(T)'!AF143)","v":9227.0135315635562},{"$f":"IF(+'[2]EXT(T)'!AY143=\"\",\"\",+'[2]EXT(T)'!AY143)","v":25738.973257111735},{"$f":"IF(+'[2]EXT(T)'!AZ143=\"\",\"\",+'[2]EXT(T)'!AZ143)","v":25857.007757111736},{"$f":"IF(+'[2]EXT(T)'!AQ143=\"\",\"\",+'[2]EXT(T)'!AQ143-'[2]EXT(T)'!AQ142)","v":154.64715283000004},{"$f":"IF(+'[2]EXT(T)'!AR143=\"\",\"\",+'[2]EXT(T)'!AR143-'[2]EXT(T)'!AR142)","v":2104.5200000000004},{"$f":"IF(+'[2]EXT(T)'!AS143=\"\",\"\",+'[2]EXT(T)'!AS143-'[2]EXT(T)'!AS142)","v":5224.5602222499974},{"$f":"IF(+'[2]EXT(T)'!AT143=\"\",\"\",+'[2]EXT(T)'!AT143-'[2]EXT(T)'!AT142)","v":2390.2029999999995},{"$f":"IF(+'[2]EXT(T)'!AU143=\"\",\"\",+'[2]EXT(T)'!AU143-'[2]EXT(T)'!AU142)","v":1194.7},{"$f":"IF(+'[2]EXT(T)'!AV143=\"\",\"\",+'[2]EXT(T)'!AV143-'[2]EXT(T)'!AV142)","v":2538.5223429790112},{"$f":"IF(+'[2]EXT(T)'!AW143=\"\",\"\",+'[2]EXT(T)'!AW143-'[2]EXT(T)'!AW142)","v":4.8170446599999934},13607.152718059009,13611.969762719009]
[null,"III",{"$f":"IF(+'[2]EXT(T)'!M144=\"\",\"\",+'[2]EXT(T)'!M144)","v":747.09996240693272},{"$f":"IF(+'[2]EXT(T)'!N144=\"\",\"\",+'[2]EXT(T)'!N144)","v":142.5314831899999},{"$f":"IF(+'[2]EXT(T)'!O144=\"\",\"\",+'[2]EXT(T)'!O144)","v":393.1},{"$f":"IF(+'[2]EXT(T)'!P144=\"\",\"\",+'[2]EXT(T)'!P144)","v":327.72251062671751},{"$f":"IF(+'[2]EXT(T)'!Q144=\"\",\"\",+'[2]EXT(T)'!Q144)","v":281.10000000000002},{"$f":"IF(+'[2]EXT(T)'!R144=\"\",\"\",+'[2]EXT(T)'!R144)","v":1210.8000000000002},{"$f":"IF(+'[2]EXT(T)'!S144=\"\",\"\",+'[2]EXT(T)'!S144)","v":""},{"$f":"IF(+'[2]EXT(T)'!U144=\"\",\"\",+'[2]EXT(T)'!U144)","v":3102.3539562236501},{"$f":"IF(+'[2]EXT(T)'!V144=\"\",\"\",+'[2]EXT(T)'!V144)","v":""},{"$f":"IF(+'[2]EXT(T)'!W144=\"\",\"\",+'[2]EXT(T)'!W144)","v":2690.9862000992762},{"$f":"IF(+'[2]EXT(T)'!X144=\"\",\"\",+'[2]EXT(T)'!X144)","v":486.76149293000037},{"$f":"IF(+'[2]EXT(T)'!Y144=\"\",\"\",+'[2]EXT(T)'!Y144)","v":1136.3000000000002},{"$f":"IF(+'[2]EXT(T)'!Z144=\"\",\"\",+'[2]EXT(T)'!Z144)","v":761.05850559792896},{"$f":"IF(+'[2]EXT(T)'!AA144=\"\",\"\",+'[2]EXT(T)'!AA144)","v":1177.7},{"$f":"IF(+'[2]EXT(T)'!AB144=\"\",\"\",+'[2]EXT(T)'!AB144)","v":3380.7000000000003},{"$f":"IF(+'[2]EXT(T)'!AC144=\"\",\"\",+'[2]EXT(T)'!AC144)","v":""},{"$f":"IF(+'[2]EXT(T)'!AE144=\"\",\"\",+'[2]EXT(T)'!AE144)","v":9633.5061986272049},{"$f":"IF(+'[2]EXT(T)'!AF144=\"\",\"\",+'[2]EXT(T)'!AF144)","v":""},{"$f":"IF(+'[2]EXT(T)'!AY144=\"\",\"\",+'[2]EXT(T)'!AY144)","v":39186.177329015271},{"$f":"IF(+'[2]EXT(T)'!AZ144=\"\",\"\",+'[2]EXT(T)'!AZ144)","v":39303.816901415274},{"$f":"IF(+'[2]EXT(T)'!AQ144=\"\",\"\",+'[2]EXT(T)'!AQ144-'[2]EXT(T)'!AQ143)","v":156.13662427999998},{"$f":"IF(+'[2]EXT(T)'!AR144=\"\",\"\",+'[2]EXT(T)'!AR144-'[2]EXT(T)'!AR143)","v":2035.7600000000002},{"$f":"IF(+'[2]EXT(T)'!AS144=\"\",\"\",+'[2]EXT(T)'!AS144-'[2]EXT(T)'!AS143)","v":5115.6613719299985},{"$f":"IF(+'[2]EXT(T)'!AT144=\"\",\"\",+'[2]EXT(T)'!AT144-'[2]EXT(T)'!AT143)","v":2343.9129000000003},{"$f":"IF(+'[2]EXT(T)'!AU144=\"\",\"\",+'[2]EXT(T)'!AU144-'[2]EXT(T)'!AU143)","v":1218.5000000000005},{"$f":"IF(+'[2]EXT(T)'!AV144=\"\",\"\",+'[2]EXT(T)'!AV144-'[2]EXT(T)'!AV143)","v":2577.2331756935355},{"$f":"IF(+'[2]EXT(T)'!AW144=\"\",\"\",+'[2]EXT(T)'!AW144-'[2]EXT(T)'!AW143)","v":-0.39492759999998839},13447.204071903532,13446.809144303532]
[null,"IV",{"$f":"IF(+'[2]EXT(T)'!M145=\"\",\"\",+'[2]EXT(T)'!M145)","v":""},{"$f":"IF(+'[2]EXT(T)'!N145=\"\",\"\",+'[2]EXT(T)'!N145)","v":""},{"$f":"IF(+'[2]EXT(T)'!O145=\"\",\"\",+'[2]EXT(T)'!O145)","v":""},{"$f":"IF(+'[2]EXT(T)'!P145=\"\",\"\",+'[2]EXT(T)'!P145)","v":""},{"$f":"IF(+'[2]EXT(T)'!Q145=\"\",\"\",+'[2]EXT(T)'!Q145)","v":""},{"$f":"IF(+'[2]EXT(T)'!R145=\"\",\"\",+'[2]EXT(T)'!R145)","v":""},{"$f":"IF(+'[2]EXT(T)'!S145=\"\",\"\",+'[2]EXT(T)'!S145)","v":""},{"$f":"IF(+'[2]EXT(T)'!U145=\"\",\"\",+'[2]EXT(T)'!U145)","v":""},{"$f":"IF(+'[2]EXT(T)'!V145=\"\",\"\",+'[2]EXT(T)'!V145)","v":""},{"$f":"IF(+'[2]EXT(T)'!W145=\"\",\"\",+'[2]EXT(T)'!W145)","v":""},{"$f":"IF(+'[2]EXT(T)'!X145=\"\",\"\",+'[2]EXT(T)'!X145)","v":""},{"$f":"IF(+'[2]EXT(T)'!Y145=\"\",\"\",+'[2]EXT(T)'!Y145)","v":""},{"$f":"IF(+'[2]EXT(T)'!Z145=\"\",\"\",+'[2]EXT(T)'!Z145)","v":""},{"$f":"IF(+'[2]EXT(T)'!AA145=\"\",\"\",+'[2]EXT(T)'!AA145)","v":""},{"$f":"IF(+'[2]EXT(T)'!AB145=\"\",\"\",+'[2]EXT(T)'!AB145)","v":""},{"$f":"IF(+'[2]EXT(T)'!AC145=\"\",\"\",+'[2]EXT(T)'!AC145)","v":""},{"$f":"IF(+'[2]EXT(T)'!AE145=\"\",\"\",+'[2]EXT(T)'!AE145)","v":""},{"$f":"IF(+'[2]EXT(T)'!AF145=\"\",\"\",+'[2]EXT(T)'!AF145)","v":""},{"$f":"IF(+'[2]EXT(T)'!AY145=\"\",\"\",+'[2]EXT(T)'!AY145)","v":""},{"$f":"IF(+'[2]EXT(T)'!AZ145=\"\",\"\",+'[2]EXT(T)'!AZ145)","v":""},{"$f":"IF(+'[2]EXT(T)'!AQ145=\"\",\"\",+'[2]EXT(T)'!AQ145-'[2]EXT(T)'!AQ144)","v":""},{"$f":"IF(+'[2]EXT(T)'!AR145=\"\",\"\",+'[2]EXT(T)'!AR145-'[2]EXT(T)'!AR144)","v":""},{"$f":"IF(+'[2]EXT(T)'!AS145=\"\",\"\",+'[2]EXT(T)'!AS145-'[2]EXT(T)'!AS144)","v":""},{"$f":"IF(+'[2]EXT(T)'!AT145=\"\",\"\",+'[2]EXT(T)'!AT145-'[2]EXT(T)'!AT144)","v":""},{"$f":"IF(+'[2]EXT(T)'!AU145=\"\",\"\",+'[2]EXT(T)'!AU145-'[2]EXT(T)'!AU144)","v":""},{"$f":"IF(+'[2]EXT(T)'!AV145=\"\",\"\",+'[2]EXT(T)'!AV145-'[2]EXT(T)'!AV144)","v":""},{"$f":"IF(+'[2]EXT(T)'!AW145=\"\",\"\",+'[2]EXT(T)'!AW145-'[2]EXT(T)'!AW144)","v":""},"",""]

{"sheet":"Saldo Operacional","index":13,"n_rows":15,"n_cols":8,"rows_kept":15,"cut":false,"hidden":true,"merged":[[3,1,4,1],[3,2,4,2],[1,0,1,2],[0,0,0,2],[3,6,4,6],[0,4,0,6],[1,4,1,6],[3,5,4,5],[14,5,15,5]]}
["CARD",null,null,null,"CAPARD"]
["Saldo operacional del GC / PIB Regional",null,null,null,"Saldo operacional del GC / PIB Regional"]
[]
[null,{"$f":"+COUNTIF('Datos_Regional (M)'!CO:CO,\"n.d.\")+COUNT('Datos_Regional (M)'!CO:CO)+2","v":408},{"$f":"INDEX('Datos_Regional (M)'!B:B,$B$4)","v":"octubre"},"oct",null,{"$f":"+COUNTIF('Datos_Regional (M)'!CR:CR,\"n.d.\")+COUNT('Datos_Regional (M)'!CR:CR)+2","v":407},{"$f":"INDEX('Datos_Regional (M)'!B:B,$F$4)","v":"septiembre"},"set"]
[]
[{"$f":"B6&\"-\"&$C$4","v":"2017-octubre"},{"$f":"B7-1","v":2017},{"$f":"VLOOKUP(A6,'Datos_Regional (M)'!C:CR,91,0)/100","v":-1.4685145916989495E-2},null,{"$f":"F6&\"-\"&$G$4","v":"2017-septiembre"},{"$f":"F7-1","v":2017},{"$f":"VLOOKUP(E6,'Datos_Regional (M)'!C:CR,94,0)/100","v":-1.6395659711688111E-2}]
["2018-octubre",2018,{"$f":"VLOOKUP(A7,'Datos_Regional (M)'!C:CR,91,0)/100","v":-1.5198518319097914E-2},null,"2018-septiembre",2018,{"$f":"VLOOKUP(E7,'Datos_Regional (M)'!C:CR,94,0)/100","v":-2.1047789591864624E-2}]
["2019-octubre",2019,{"$f":"VLOOKUP(A8,'Datos_Regional (M)'!C:CR,91,0)/100","v":-1.922600255817981E-2},null,"2019-septiembre",2019,{"$f":"VLOOKUP(E8,'Datos_Regional (M)'!C:CR,94,0)/100","v":-2.3444354519512017E-2}]
["2020-octubre",2020,{"$f":"VLOOKUP(A9,'Datos_Regional (M)'!C:CR,91,0)/100","v":-5.0552243565111059E-2},null,"2020-septiembre",2020,{"$f":"VLOOKUP(E9,'Datos_Regional (M)'!C:CR,94,0)/100","v":-5.2744765513988746E-2}]
["2021-octubre",2021,{"$f":"VLOOKUP(A10,'Datos_Regional (M)'!C:CR,91,0)/100","v":-1.3475560017758448E-2},null,"2021-septiembre",2021,{"$f":"VLOOKUP(E10,'Datos_Regional (M)'!C:CR,94,0)/100","v":-2.3838585615613993E-2}]
["2022-octubre",2022,{"$f":"VLOOKUP(A11,'Datos_Regional (M)'!C:CR,91,0)/100","v":-8.5189204369021249E-3},null,"2022-septiembre",2022,{"$f":"VLOOKUP(E11,'Datos_Regional (M)'!C:CR,94,0)/100","v":-1.5035831265281579E-2}]
["2023-octubre",{"$f":"INDEX('Datos_Regional (M)'!A:A,$B$4)","v":2023},{"$f":"VLOOKUP(A12,'Datos_Regional (M)'!C:CR,91,0)/100","v":-1.4260425783116164E-2},null,"2023-septiembre",{"$f":"INDEX('Datos_Regional (M)'!A:A,$F$4)","v":2023},{"$f":"VLOOKUP(E12,'Datos_Regional (M)'!C:CR,94,0)/100","v":-2.237533979682424E-2}]
[]
[]
[null,null,null,null,null,"=+CONTAR.SI('Datos_Regional (M)'!CR:CR;\"n.d.\")+CONTAR('Datos_Regional (M)'!CR:CR)+2"]

{"sheet":"Datos Gráfico-País","index":14,"n_rows":479,"n_cols":161,"rows_kept":479,"cut":false,"hidden":true,"merged":[[467,1,478,1],[455,1,466,1],[383,1,394,1],[371,1,382,1],[174,1,185,1],[431,1,442,1],[186,1,197,1],[395,1,406,1],[407,1,418,1],[198,1,209,1],[210,1,221,1],[443,1,454,1],[222,1,233,1],[114,1,125,1],[359,1,370,1],[275,1,286,1],[287,1,298,1],[299,1,310,1],[311,1,322,1],[323,1,334,1],[251,1,262,1],[263,1,274,1],[246,1,250,1],[126,1,137,1],[335,1,346,1],[138,1,149,1],[150,1,161,1],[162,1,173,1],[347,1,358,1],[1,159,3,159],[246,159,248,159],[246,133,248,133],[246,2,250,2],[1,84,3,90],[1,93,3,99],[1,102,3,108],[1,134,3,134],[1,111,3,119],[1,122,3,130],[1,137,3,145],[1,133,3,133],[1,2,5,2],[1,57,3,63],[1,48,3,54],[1,66,3,72],[1,160,3,160],[246,3,248,9],[246,12,248,18],[246,21,248,27],[246,30,248,36],[246,39,248,45],[246,48,248,54],[246,57,248,63],[246,66,248,72],[246,75,248,81],[246,84,248,90],[246,93,248,99],[246,102,248,108],[246,134,248,134],[246,160,248,160],[1,39,3,45],[1,148,3,156],[246,111,248,119],[246,122,248,130],[246,137,248,145],[246,148,248,156],[1,1,5,1],[6,1,17,1],[1,75,3,81],[30,1,41,1],[18,1,29,1],[1,3,3,9],[1,12,3,18],[1,21,3,27],[1,30,3,36],[102,1,113,1],[42,1,53,1],[54,1,65,1],[66,1,77,1],[78,1,89,1],[90,1,101,1]]}
[]
[null,"Año","Mes","Inflación",null,null,null,null,null,null,null,null,"T1,12 de la Tendencia Ciclo",null,null,null,null,null,null,null,null,"ITCER con USA",null,null,null,null,null,null,null,null,"Variación Interanual del Tipo de Cambio",null,null,null,null,null,null,null,null,"Reservas Internacionales Netas por país",null,null,null,null,null,null,null,null,"RIN a Base Monetaria Amplia por país",null,null,null,null,null,null,null,null,"Tasa de Interés pasiva Real en MN",null,null,null,null,null,null,null,null,"Tasa de Interés pasiva en ME (180 días)",null,null,null,null,null,null,null,null,"Tasa de Interés Activa Real en MN",null,null,null,null,null,null,null,null,"Tasa de Interés Activa en ME (180 días)",null,null,null,null,null,null,null,null,"Tasa de Interés de Política Monetaria",null,null,null,null,null,null,null,null,"Créditos de las OSD con el sector Privado, Variación Interanual ",null,null,null,null,null,null,null,null,"Promedio Móvil de Exportaciones Totales al mes por país y Región",null,null,null,null,null,null,null,null,null,null,"Promedio Móvil de Importaciones Totales al mes por país y Región",null,null,null,null,null,null,null,null,null,null,"CARD","CAPARD",null,null,"Exportaciones Totales al mes por país y Región",null,null,null,null,null,null,null,null,null,null,"Importaciones Totales al mes por país y Región",null,null,null,null,null,null,null,null,null,null,"CARD","CAPARD"]
[]
[]
[null,null,null,"Variación Interanual Costa Rica","Variación Interanual\nEl Salvador","Variación Interanual Guatemala","Variación Interanual Honduras","Variación Interanual Nicaragua","Variación Interanual Dominicana","Variación Interanual Panamá",null,null,"Variación Interanual Costa Rica","Variación Interanual\nEl Salvador","Variación Interanual Guatemala","Variación Interanual Honduras","Variación Interanual Nicaragua","Variación Interanual Dominicana","Variación Interanual Panamá",null,null,"Indice Original\nCosta Rica","Indice Original\nEl Salvador","Indice Original\nGuatemala","Indice Original\nHonduras","Indice Original\nNicaragua","Indice Original\nDominicana","Indice Original\nPanamá",null,null,"Variación Interanual Costa Rica","Variación Interanual\nEl Salvador","Variación Interanual Guatemala","Variación Interanual Honduras","Variación Interanual Nicaragua","Variación Interanual Dominicana","Variación Interanual Panamá",null,null,"RIN del BC Costa Rica","RIN del BC\nEl Salvador","RIN del BC\nGuatemala","RIN del BC\nHonduras","RIN del BC\nNicaragua","RIN del BC\nDominicana","RIN del BC\nPanmaná",null,null,"RIN del BC Costa Rica","RIN del BC\nEl Salvador","RIN del BC\nGuatemala","RIN del BC\nHonduras","RIN del BC\nNicaragua","RIN del BC\nDominicana","RIN del BC\nPanmaná",null,null,"Ti pasiva real MN\nCosta Rica","Ti pasiva real MN\nEl Salvador","Ti pasiva real MN\nGuatemala","Ti pasiva real MN\nHonduras","Ti pasiva real MN\nNicaragua","Ti pasiva real MN\nDominicana","Ti pasiva real MN\nPanamá",null,null,"Ti pasiva ME (prom nominal)\nCosta Rica","Ti pasiva ME (prom nominal)\nEl Salvador","Ti pasiva ME (prom nominal)\nGuatemala","Ti pasiva ME (prom nominal)\nHonduras","Ti pasiva ME (prom nominal)\nNicaragua","Ti pasiva ME (prom nominal)\nDominicana","Ti pasiva ME (prom nominal)\nPanamá",null,null,"Ti activa real MN\nCosta Rica","Ti activa real MN\nEl Salvador","Ti activa real MN\nGuatemala","Ti activa real MN\nHonduras","Ti activa real MN\nNicaragua","Ti activa real MN\nDominicana","Ti activa real MN\nPanamá",null,null,"Ti activa ME (prom nominal)\nCosta Rica","Ti activa ME (prom nominal)\nEl Salvador","Ti activa ME (prom nominal)\nGuatemala","Ti activa ME (prom nominal)\nHonduras","Ti activa ME (prom nominal)\nNicaragua","Ti activa ME (prom nominal)\nDominicana","Ti activa ME (prom nominal)\nPanamá",null,null,"Tasa de Política Monetaria\nCosta Rica","Tasa de Política Monetaria\nEl Salvador","Tasa de Política Monetaria\nGuatemala","Tasa de Política Monetaria\nHonduras","Tasa de Política Monetaria\nNicaragua","Tasa de Política Monetaria\nDominicana","Tasa de Política Monetaria\nPanamá",null,null,"Créditos de las OSD con el sector Privado Costa Rica","Créditos de las OSD con el sector Privado El Salvador","Créditos de las OSD con el sector Privado Guatemala","Créditos de las OSD con el sector Privado Honduras","Créditos de las OSD con el sector Privado Nicaragua","Créditos de las OSD con el sector Privado Dominicana","Créditos de las OSD con el sector Privado Panamá",null,null,"Exp Total FOB\nCosta Rica","Exp Total FOB\nEl Salvador","Exp Total FOB\nGuatemala","Exp Total FOB\nHonduras","Exp Total FOB\nNicaragua","Exp Total FOB\nDominicana","Exp Total FOB\nPanamá","Exp Total FOB\nRegional","Exp Total FOB\nCAPARD",null,null,"Imp Total CIF Costa Rica","Imp Total CIF El Salvador","Imp Total CIF Guatemala","Imp Total CIF Honduras","Imp Total CIF Nicaragua","Imp Total CIF Dominicana","Imp Total CIF  Panamá","Imp Total CIF Regional","Imp Total CIF CAPARD",null,null,"Saldo de Comercio Exterior Promedio Movil Regional al mes","Saldo de Comercio Exterior Promedio Movil Regional al mes",null,null,{"$f":"'[2]EXT Comercio(M)'!C8","v":"Exp Total FOB\nCosta Rica"},{"$f":"'[2]EXT Comercio(M)'!D8","v":"Exp Total FOB\nEl Salvador"},{"$f":"'[2]EXT Comercio(M)'!E8","v":"Exp Total FOB\nGuatemala"},{"$f":"'[2]EXT Comercio(M)'!F8","v":"Exp Total FOB\nHonduras"},{"$f":"'[2]EXT Comercio(M)'!G8","v":"Exp Total FOB\nNicaragua"},{"$f":"'[2]EXT Comercio(M)'!H8","v":"Exp Total FOB\nDominicana"},{"$f":"'[2]EXT Comercio(M)'!I8","v":"Exp Total FOB\nPanamá"},{"$f":"'[2]EXT Comercio(M)'!K8","v":"Exp Total FOB\nRegional"},{"$f":"'[2]EXT Comercio(M)'!L8","v":"Exp Total FOB\nCAPARD"},null,null,"Imp Total CIF\nCosta Rica","Imp Total CIF\nEl Salvador","Imp Total CIF\nGuatemala","Imp Total CIF\nHonduras","Imp Total CIF\nNicaragua","Imp Total CIF\nDominicana","Imp Total CIF\nPanamá","Imp Total CIF\nRegional","Imp Total CIF\nCAPARD",null,null,"Saldo de Comercio Regional al mes","Saldo de Comercio Regional al mes"]
[null,null,null,"%","%","%","%","%","%","%",null,null,"%","%","%","%","%","%","%",null,null,"Nivel","Nivel","Nivel","Nivel","Nivel","Nivel","Nivel",null,null,"%","%","%","%","%","%","%",null,null,"Millones US$","Millones US$","Millones US$","Millones US$","Millones US$","Millones US$","Millones US$",null,null,"Millones US$","Millones US$","Millones US$","Millones US$","Millones US$","Millones US$","Millones US$",null,null,"%","%","%","%","%","%","%",null,null,"%","%","%","%","%","%","%",null,null,"%","%","%","%","%","%","%",null,null,"%","%","%","%","%","%","%",null,null,"%","%","%","%","%","%","%",null,null,"%","%","%","%","%","%","%",null,null,"Millones US$","Millones US$","Millones US$","Millones US$","Millones US$","Millones US$","Millones US$","Millones US$","Millones US$",null,null,"Millones US$","Millones US$","Millones US$","Millones US$","Millones US$","Millones US$","Millones US$","Millones US$","Millones US$",null,null,"Millones US$","Millones US$",null,null,"Millones US$","Millones US$","Millones US$","Millones US$","Millones US$","Millones US$","Millones US$","Millones US$","Millones US$",null,null,"Millones US$","Millones US$","Millones US$","Millones US$","Millones US$","Millones US$","Millones US$","Millones US$","Millones US$",null,null,"Millones US$","Millones US$"]
[null,2006,"Enero",{"$f":"'[2]REAL IPC(M)'!AD202","v":13.195387319236479},{"$f":"'[2]REAL IPC(M)'!AE202","v":3.3321432821611303},{"$f":"'[2]REAL IPC(M)'!AF202","v":8.0834131604156099},{"$f":"'[2]REAL IPC(M)'!AG202","v":7.2930354796320787},{"$f":"'[2]REAL IPC(M)'!AH202","v":10.268771845245265},{"$f":"'[2]REAL IPC(M)'!AI202","v":8.2493088307041571},{"$f":"'[2]REAL IPC(M)'!AJ202","v":3.0481809242871103},null,null,{"$f":"'[2]REAL IMAE(M)'!AG202","v":5.2116119849892932},{"$f":"'[2]REAL IMAE(M)'!AH202","v":6.991058249114376},{"$f":"'[2]REAL IMAE(M)'!AI202","v":3.4128069935503462},{"$f":"'[2]REAL IMAE(M)'!AJ202","v":6.7628616103141175},{"$f":"'[2]REAL IMAE(M)'!AK202","v":"n.d."},{"$f":"'[2]REAL IMAE(M)'!AL202","v":"n.d."},{"$f":"'[2]REAL IMAE(M)'!AM202","v":"n.d."},null,null,{"$f":"'[2]EXT ITCER(M)'!C202","v":102.5426321690212},{"$f":"'[2]EXT ITCER(M)'!D202","v":97.145989647865065},{"$f":"'[2]EXT ITCER(M)'!E202","v":76.699496481890307},{"$f":"'[2]EXT ITCER(M)'!F202","v":96.135590735152789},{"$f":"'[2]EXT ITCER(M)'!G202","v":107.5572245831296},{"$f":"'[2]EXT ITCER(M)'!H202","v":103.2644110232113},{"$f":"'[2]EXT ITCER(M)'!I202","v":107.13452091600639},null,null,{"$f":"'[2]EXT TC(M)'!J202","v":8.2188905526177418},{"$f":"'[2]EXT TC(M)'!K202","v":0},{"$f":"'[2]EXT TC(M)'!L202","v":-1.8077581502633662},{"$f":"'[2]EXT TC(M)'!M202","v":1.2861736334405061},{"$f":"'[2]EXT TC(M)'!N202","v":5.7161451937718022},{"$f":"'[2]EXT TC(M)'!O202","v":15.851197897813357},{"$f":"'[2]EXT TC(M)'!P202","v":0},null,null,{"$f":"'[2]EXT RIN(M)'!C202","v":2350.1},{"$f":"'[2]EXT RIN(M)'!D202","v":1726.4},{"$f":"'[2]EXT RIN(M)'!E202","v":4087.8},{"$f":"'[2]EXT RIN(M)'!F202","v":2206.3262658537619},{"$f":"'[2]EXT RIN(M)'!G202","v":727.7},{"$f":"'[2]EXT RIN(M)'!H202","v":1476.5},{"$f":"'[2]EXT RIN(M)'!I202","v":1207.5531742798},null,null,{"$f":"'[2]EXT RIN(M)'!P202","v":55.332612936163692},{"$f":"'[2]EXT RIN(M)'!Q202","v":88.770053475935825},{"$f":"'[2]EXT RIN(M)'!R202","v":109.18065979452966},{"$f":"'[2]EXT RIN(M)'!S202","v":106.57212687030275},{"$f":"'[2]EXT RIN(M)'!T202","v":75.781538882375614},{"$f":"'[2]EXT RIN(M)'!U202","v":32.655446523979343},{"$f":"'[2]EXT RIN(M)'!V202","v":153.29313559107652},null,null,{"$f":"+'[2]MONE(M)CAPARD'!AE202","v":1.8151028318574947},{"$f":"'[2]MONE(M)CAPARD'!AF202","v":0.72176056513970366},{"$f":"'[2]MONE(M)CAPARD'!AG202","v":-3.2043891464412484},{"$f":"'[2]MONE(M)CAPARD'!AH202","v":3.1940232700550992},{"$f":"'[2]MONE(M)CAPARD'!AI202","v":1.6236165781056027},{"$f":"'[2]MONE(M)CAPARD'!AJ202","v":2.6704015023474397},{"$f":"'[2]MONE(M)CAPARD'!AK202","v":-0.24083969465648031},null,null,{"$f":"'[2]MONE(M)CAPARD'!AL202","v":3.33},{"$f":"'[2]MONE(M)CAPARD'!AM202","v":4.08},{"$f":"'[2]MONE(M)CAPARD'!AN202","v":3.33},{"$f":"'[2]MONE(M)CAPARD'!AO202","v":2.88},{"$f":"'[2]MONE(M)CAPARD'!AP202","v":4.7},{"$f":"'[2]MONE(M)CAPARD'!AQ202","v":3.23},{"$f":"'[2]MONE(M)CAPARD'!AR202","v":2.8},null,null,{"$f":"'[2]MONE(M)CAPARD'!J202","v":9.4214198416821624},{"$f":"'[2]MONE(M)CAPARD'!K202","v":4.314104572152484},{"$f":"'[2]MONE(M)CAPARD'!L202","v":4.2898227433869485},{"$f":"'[2]MONE(M)CAPARD'!M202","v":10.3426699326393},{"$f":"'[2]MONE(M)CAPARD'!N202","v":8.0469961165330179},{"$f":"'[2]MONE(M)CAPARD'!O202","v":11.862146103286408},{"$f":"'[2]MONE(M)CAPARD'!P202","v":4.6403721374045892},null,null,{"$f":"'[2]MONE(M)CAPARD'!Q202","v":10.48},{"$f":"'[2]MONE(M)CAPARD'!R202","v":7.79},{"$f":"'[2]MONE(M)CAPARD'!S202","v":7.31},{"$f":"'[2]MONE(M)CAPARD'!T202","v":8.84},{"$f":"'[2]MONE(M)CAPARD'!U202","v":10.199999999999999},{"$f":"'[2]MONE(M)CAPARD'!V202","v":9.1300000000000008},{"$f":"'[2]MONE(M)CAPARD'!W202","v":7.83},null,null,{"$f":"'[2]MONE(M)CAPARD'!AS202","v":"n.d."},{"$f":"'[2]MONE(M)CAPARD'!AT202","v":"n.a."},{"$f":"'[2]MONE(M)CAPARD'!AU202","v":4.25},{"$f":"'[2]MONE(M)CAPARD'!AV202","v":7},{"$f":"'[2]MONE(M)CAPARD'!AW202","v":"n.a."},{"$f":"'[2]MONE(M)CAPARD'!AX202","v":10},{"$f":"'[2]MONE(M)CAPARD'!AY202","v":"n.a."},null,null,{"$f":"+'Datos_Regional (M)'!CF195","v":28.663359416032286},{"$f":"+'Datos_Regional (M)'!CG195","v":10.056744831538357},{"$f":"+'Datos_Regional (M)'!CH195","v":5.5704972052809554},{"$f":"+'Datos_Regional (M)'!CI195","v":18.897940444016182},{"$f":"+'Datos_Regional (M)'!CJ195","v":33.219639618913476},{"$f":"+'Datos_Regional (M)'!CK195","v":15.191353953505837},{"$f":"+'Datos_Regional (M)'!CL195","v":18.007091781691955},null,null,null,null,null,null,null,null,null,null,null,null,null,null,null,null,null,null,null,null,null,null,null,null,null,null,null,null,{"$f":"'[2]EXT Comercio(M)'!C202","v":435.33210236999975},{"$f":"'[2]EXT Comercio(M)'!D202","v":303.18},{"$f":"'[2]EXT Comercio(M)'!E202","v":460.6},{"$f":"'[2]EXT Comercio(M)'!F202","v":174.29626059859416},{"$f":"'[2]EXT Comercio(M)'!G202","v":129.0736},{"$f":"'[2]EXT Comercio(M)'!H202","v":423.68849999999998},{"$f":"'[2]EXT Comercio(M)'!I202","v":617.28600000000006},{"$f":"'[2]EXT Comercio(M)'!K202","v":1926.1704629685939},{"$f":"'[2]EXT Comercio(M)'!L202","v":2543.4564629685938},null,null,{"$f":"'[2]EXT Comercio(M)'!AG202","v":726.41892474999975},{"$f":"'[2]EXT Comercio(M)'!AH202","v":545.83000000000004},{"$f":"'[2]EXT Comercio(M)'!AI202","v":927.1},{"$f":"'[2]EXT Comercio(M)'!AJ202","v":418.00248488743978},{"$f":"'[2]EXT Comercio(M)'!AK202","v":265.32782515999997},{"$f":"'[2]EXT Comercio(M)'!AL202","v":824.5},{"$f":"'[2]EXT Comercio(M)'!AM202","v":825.89502800000002},{"$f":"'[2]EXT Comercio(M)'!AO202","v":3707.1792347974392},{"$f":"'[2]EXT Comercio(M)'!AP202","v":4533.0742627974396},null,null,{"$f":"'[2]EXT Comercio(M)'!$BS202","v":-1781.0087718288457},{"$f":"'[2]EXT Comercio(M)'!$BT202","v":-1989.6177998288458}]
[null,null,"Febrero",{"$f":"'[2]REAL IPC(M)'!AD203","v":12.962452589513699},{"$f":"'[2]REAL IPC(M)'!AE203","v":3.7450957080014327},{"$f":"'[2]REAL IPC(M)'!AF203","v":7.263550581522928},{"$f":"'[2]REAL IPC(M)'!AG203","v":6.7812337662337576},{"$f":"'[2]REAL IPC(M)'!AH203","v":10.489343969520185},{"$f":"'[2]REAL IPC(M)'!AI203","v":8.0752661952369262},{"$f":"'[2]REAL IPC(M)'!AJ203","v":2.3483365949119261},null,null,{"$f":"'[2]REAL IMAE(M)'!AG203","v":5.6605422351203423},{"$f":"'[2]REAL IMAE(M)'!AH203","v":5.4579370169956309},{"$f":"'[2]REAL IMAE(M)'!AI203","v":3.627482719279457},{"$f":"'[2]REAL IMAE(M)'!AJ203","v":6.7968484037406256},{"$f":"'[2]REAL IMAE(M)'!AK203","v":"n.d."},{"$f":"'[2]REAL IMAE(M)'!AL203","v":"n.d."},{"$f":"'[2]REAL IMAE(M)'!AM203","v":"n.d."},null,null,{"$f":"'[2]EXT ITCER(M)'!C203","v":102.29585017318929},{"$f":"'[2]EXT ITCER(M)'!D203","v":96.715776847211231},{"$f":"'[2]EXT ITCER(M)'!E203","v":76.629626908701027},{"$f":"'[2]EXT ITCER(M)'!F203","v":95.515220813011737},{"$f":"'[2]EXT ITCER(M)'!G203","v":106.6515873322063},{"$f":"'[2]EXT ITCER(M)'!H203","v":102.2698239451051},{"$f":"'[2]EXT ITCER(M)'!I203","v":107.3932252234779},null,null,{"$f":"'[2]EXT TC(M)'!J203","v":8.0871055590410599},{"$f":"'[2]EXT TC(M)'!K203","v":0},{"$f":"'[2]EXT TC(M)'!L203","v":-1.3945515557158745},{"$f":"'[2]EXT TC(M)'!M203","v":0.90763481046448546},{"$f":"'[2]EXT TC(M)'!N203","v":5.1752110005894103},{"$f":"'[2]EXT TC(M)'!O203","v":18.46329837940895},{"$f":"'[2]EXT TC(M)'!P203","v":0},null,null,{"$f":"'[2]EXT RIN(M)'!C203","v":2405.1999999999998},{"$f":"'[2]EXT RIN(M)'!D203","v":1855.6},{"$f":"'[2]EXT RIN(M)'!E203","v":4067.1},{"$f":"'[2]EXT RIN(M)'!F203","v":2270.2131867352559},{"$f":"'[2]EXT RIN(M)'!G203","v":703.4},{"$f":"'[2]EXT RIN(M)'!H203","v":1501.8},{"$f":"'[2]EXT RIN(M)'!I203","v":1113.42992807276},null,null,{"$f":"'[2]EXT RIN(M)'!P203","v":55.689856024431819},{"$f":"'[2]EXT RIN(M)'!Q203","v":88.42312725096329},{"$f":"'[2]EXT RIN(M)'!R203","v":110.26084499290828},{"$f":"'[2]EXT RIN(M)'!S203","v":108.74372710957549},{"$f":"'[2]EXT RIN(M)'!T203","v":72.204193537757462},{"$f":"'[2]EXT RIN(M)'!U203","v":32.693547603786485},{"$f":"'[2]EXT RIN(M)'!V203","v":142.26851713515128},null,null,{"$f":"+'[2]MONE(M)CAPARD'!AE203","v":2.025051119241239},{"$f":"'[2]MONE(M)CAPARD'!AF203","v":0.21955796396696795},{"$f":"'[2]MONE(M)CAPARD'!AG203","v":-2.4365691489361665},{"$f":"'[2]MONE(M)CAPARD'!AH203","v":3.6230769183991387},{"$f":"'[2]MONE(M)CAPARD'!AI203","v":0.61621694331956445},{"$f":"'[2]MONE(M)CAPARD'!AJ203","v":2.7339593126010673},{"$f":"'[2]MONE(M)CAPARD'!AK203","v":0.90051625239006861},null,null,{"$f":"'[2]MONE(M)CAPARD'!AL203","v":3.3600000000000003},{"$f":"'[2]MONE(M)CAPARD'!AM203","v":3.97},{"$f":"'[2]MONE(M)CAPARD'!AN203","v":3.34},{"$f":"'[2]MONE(M)CAPARD'!AO203","v":2.96},{"$f":"'[2]MONE(M)CAPARD'!AP203","v":4.8},{"$f":"'[2]MONE(M)CAPARD'!AQ203","v":2.98},{"$f":"'[2]MONE(M)CAPARD'!AR203","v":3.27},null,null,{"$f":"'[2]MONE(M)CAPARD'!J203","v":9.4788552877792984},{"$f":"'[2]MONE(M)CAPARD'!K203","v":3.6517352452853413},{"$f":"'[2]MONE(M)CAPARD'!L203","v":5.1056014729950938},{"$f":"'[2]MONE(M)CAPARD'!M203","v":10.899636409189572},{"$f":"'[2]MONE(M)CAPARD'!N203","v":6.9939714704741958},{"$f":"'[2]MONE(M)CAPARD'!O203","v":12.523433234309788},{"$f":"'[2]MONE(M)CAPARD'!P203","v":4.9064435946462837},null,null,{"$f":"'[2]MONE(M)CAPARD'!Q203","v":10.54},{"$f":"'[2]MONE(M)CAPARD'!R203","v":7.53},{"$f":"'[2]MONE(M)CAPARD'!S203","v":7.39},{"$f":"'[2]MONE(M)CAPARD'!T203","v":8.84},{"$f":"'[2]MONE(M)CAPARD'!U203","v":9.9},{"$f":"'[2]MONE(M)CAPARD'!V203","v":7.96},{"$f":"'[2]MONE(M)CAPARD'!W203","v":7.37},null,null,{"$f":"'[2]MONE(M)CAPARD'!AS203","v":"n.d."},{"$f":"'[2]MONE(M)CAPARD'!AT203","v":"n.a."},{"$f":"'[2]MONE(M)CAPARD'!AU203","v":4.25},{"$f":"'[2]MONE(M)CAPARD'!AV203","v":7},{"$f":"'[2]MONE(M)CAPARD'!AW203","v":"n.a."},{"$f":"'[2]MONE(M)CAPARD'!AX203","v":10},{"$f":"'[2]MONE(M)CAPARD'!AY203","v":"n.a."},null,null,{"$f":"+'Datos_Regional (M)'!CF196","v":28.314985229658095},{"$f":"+'Datos_Regional (M)'!CG196","v":11.127324148385686},{"$f":"+'Datos_Regional (M)'!CH196","v":7.0601135588099773},{"$f":"+'Datos_Regional (M)'!CI196","v":19.072651696269148},{"$f":"+'Datos_Regional (M)'!CJ196","v":35.861908009926658},{"$f":"+'Datos_Regional (M)'!CK196","v":15.161705146044335},{"$f":"+'Datos_Regional (M)'!CL196","v":17.320750903486658},null,null,null,null,null,null,null,null,null,null,null,null,null,null,null,null,null,null,null,null,null,null,null,null,null,null,null,null,{"$f":"'[2]EXT Comercio(M)'!C203","v":491.03646926999994},{"$f":"'[2]EXT Comercio(M)'!D203","v":293.33999999999997},{"$f":"'[2]EXT Comercio(M)'!E203","v":428.30000000000007},{"$f":"'[2]EXT Comercio(M)'!F203","v":179.35100965771059},{"$f":"'[2]EXT Comercio(M)'!G203","v":151.81209999999999},{"$f":"'[2]EXT Comercio(M)'!H203","v":497.19280000000003},{"$f":"'[2]EXT Comercio(M)'!I203","v":682.21600000000001},{"$f":"'[2]EXT Comercio(M)'!K203","v":2041.0323789277102},{"$f":"'[2]EXT Comercio(M)'!L203","v":2723.2483789277103},null,null,{"$f":"'[2]EXT Comercio(M)'!AG203","v":650.2997691999999},{"$f":"'[2]EXT Comercio(M)'!AH203","v":580.4799999999999},{"$f":"'[2]EXT Comercio(M)'!AI203","v":824.9},{"$f":"'[2]EXT Comercio(M)'!AJ203","v":365.87825691667001},{"$f":"'[2]EXT Comercio(M)'!AK203","v":242.69666267999997},{"$f":"'[2]EXT Comercio(M)'!AL203","v":868.8},{"$f":"'[2]EXT Comercio(M)'!AM203","v":768.52662899999996},{"$f":"'[2]EXT Comercio(M)'!AO203","v":3533.0546887966698},{"$f":"'[2]EXT Comercio(M)'!AP203","v":4301.5813177966702},null,null,{"$f":"'[2]EXT Comercio(M)'!$BS203","v":-1492.0223098689592},{"$f":"'[2]EXT Comercio(M)'!$BT203","v":-1578.332938868959}]
[null,null,"Marzo",{"$f":"'[2]REAL IPC(M)'!AD204","v":12.21660233979196},{"$f":"'[2]REAL IPC(M)'!AE204","v":4.0394439824165271},{"$f":"'[2]REAL IPC(M)'!AF204","v":7.2806698216235883},{"$f":"'[2]REAL IPC(M)'!AG204","v":6.1855670103092928},{"$f":"'[2]REAL IPC(M)'!AH204","v":10.14031364225916},{"$f":"'[2]REAL IPC(M)'!AI204","v":8.2560598666015981},{"$f":"'[2]REAL IPC(M)'!AJ204","v":2.0408163265305994},null,null,{"$f":"'[2]REAL IMAE(M)'!AG204","v":6.1850396696759207},{"$f":"'[2]REAL IMAE(M)'!AH204","v":4.0817980529797451},{"$f":"'[2]REAL IMAE(M)'!AI204","v":3.6959022335294196},{"$f":"'[2]REAL IMAE(M)'!AJ204","v":7.2870312592634452},{"$f":"'[2]REAL IMAE(M)'!AK204","v":"n.d."},{"$f":"'[2]REAL IMAE(M)'!AL204","v":"n.d."},{"$f":"'[2]REAL IMAE(M)'!AM204","v":"n.d."},null,null,{"$f":"'[2]EXT ITCER(M)'!C204","v":102.8408861214003},{"$f":"'[2]EXT ITCER(M)'!D204","v":96.518395653514403},{"$f":"'[2]EXT ITCER(M)'!E204","v":76.483183016479344},{"$f":"'[2]EXT ITCER(M)'!F204","v":95.451760494862327},{"$f":"'[2]EXT ITCER(M)'!G204","v":106.4400531829221},{"$f":"'[2]EXT ITCER(M)'!H204","v":97.498828524559443},{"$f":"'[2]EXT ITCER(M)'!I204","v":107.14506721438821},null,null,{"$f":"'[2]EXT TC(M)'!J204","v":7.9570237908960726},{"$f":"'[2]EXT TC(M)'!K204","v":0},{"$f":"'[2]EXT TC(M)'!L204","v":7.0228598032013922E-2},{"$f":"'[2]EXT TC(M)'!M204","v":0.69259456579647849},{"$f":"'[2]EXT TC(M)'!N204","v":5.0675579975700797},{"$f":"'[2]EXT TC(M)'!O204","v":15.064615645573381},{"$f":"'[2]EXT TC(M)'!P204","v":0},null,null,{"$f":"'[2]EXT RIN(M)'!C204","v":2765.7},{"$f":"'[2]EXT RIN(M)'!D204","v":1763.7},{"$f":"'[2]EXT RIN(M)'!E204","v":4115.5},{"$f":"'[2]EXT RIN(M)'!F204","v":2386.1356907394475},{"$f":"'[2]EXT RIN(M)'!G204","v":766.5},{"$f":"'[2]EXT RIN(M)'!H204","v":1524.2},{"$f":"'[2]EXT RIN(M)'!I204","v":1137.2237359982},null,null,{"$f":"'[2]EXT RIN(M)'!P204","v":59.589120646112079},{"$f":"'[2]EXT RIN(M)'!Q204","v":86.286017330588408},{"$f":"'[2]EXT RIN(M)'!R204","v":111.36425811817583},{"$f":"'[2]EXT RIN(M)'!S204","v":109.04177308514507},{"$f":"'[2]EXT RIN(M)'!T204","v":79.856837221370455},{"$f":"'[2]EXT RIN(M)'!U204","v":33.358120831968563},{"$f":"'[2]EXT RIN(M)'!V204","v":146.83767313913012},null,null,{"$f":"+'[2]MONE(M)CAPARD'!AE204","v":2.7031629874364844},{"$f":"'[2]MONE(M)CAPARD'!AF204","v":7.6459913605915295E-2},{"$f":"'[2]MONE(M)CAPARD'!AG204","v":-2.4521377672209015},{"$f":"'[2]MONE(M)CAPARD'!AH204","v":4.1007766990291108},{"$f":"'[2]MONE(M)CAPARD'!AI204","v":0.92714709573714138},{"$f":"'[2]MONE(M)CAPARD'!AJ204","v":2.7194229468780482},{"$f":"'[2]MONE(M)CAPARD'!AK204","v":1.136000000000013},null,null,{"$f":"'[2]MONE(M)CAPARD'!AL204","v":3.3849999999999998},{"$f":"'[2]MONE(M)CAPARD'!AM204","v":4.12},{"$f":"'[2]MONE(M)CAPARD'!AN204","v":3.43},{"$f":"'[2]MONE(M)CAPARD'!AO204","v":3},{"$f":"'[2]MONE(M)CAPARD'!AP204","v":4.9000000000000004},{"$f":"'[2]MONE(M)CAPARD'!AQ204","v":3},{"$f":"'[2]MONE(M)CAPARD'!AR204","v":3.2},null,null,{"$f":"'[2]MONE(M)CAPARD'!J204","v":10.108484327354898},{"$f":"'[2]MONE(M)CAPARD'!K204","v":3.2611153514555422},{"$f":"'[2]MONE(M)CAPARD'!L204","v":5.1074720054292513},{"$f":"'[2]MONE(M)CAPARD'!M204","v":11.333398058252412},{"$f":"'[2]MONE(M)CAPARD'!N204","v":7.3185637832743771},{"$f":"'[2]MONE(M)CAPARD'!O204","v":12.196952438199711},{"$f":"'[2]MONE(M)CAPARD'!P204","v":5.2422000000000128},null,null,{"$f":"'[2]MONE(M)CAPARD'!Q204","v":10.88},{"$f":"'[2]MONE(M)CAPARD'!R204","v":7.43},{"$f":"'[2]MONE(M)CAPARD'!S204","v":7.4700000000000006},{"$f":"'[2]MONE(M)CAPARD'!T204","v":8.91},{"$f":"'[2]MONE(M)CAPARD'!U204","v":9.8000000000000007},{"$f":"'[2]MONE(M)CAPARD'!V204","v":8.6300000000000008},{"$f":"'[2]MONE(M)CAPARD'!W204","v":7.39},null,null,{"$f":"'[2]MONE(M)CAPARD'!AS204","v":8.51},{"$f":"'[2]MONE(M)CAPARD'!AT204","v":"n.a."},{"$f":"'[2]MONE(M)CAPARD'!AU204","v":4.25},{"$f":"'[2]MONE(M)CAPARD'!AV204","v":6.75},{"$f":"'[2]MONE(M)CAPARD'!AW204","v":"n.a."},{"$f":"'[2]MONE(M)CAPARD'!AX204","v":10},{"$f":"'[2]MONE(M)CAPARD'!AY204","v":"n.a."},null,null,{"$f":"+'Datos_Regional (M)'!CF197","v":28.531391372747095},{"$f":"+'Datos_Regional (M)'!CG197","v":10.922799190821063},{"$f":"+'Datos_Regional (M)'!CH197","v":8.2393467364412878},{"$f":"+'Datos_Regional (M)'!CI197","v":21.229670591680438},{"$f":"+'Datos_Regional (M)'!CJ197","v":34.888310903525891},{"$f":"+'Datos_Regional (M)'!CK197","v":18.195251345727016},{"$f":"+'Datos_Regional (M)'!CL197","v":17.031070937013769},null,null,null,null,null,null,null,null,null,null,null,null,null,null,null,null,null,null,null,null,null,null,null,null,null,null,null,null,{"$f":"'[2]EXT Comercio(M)'!C204","v":614.71310329000028},{"$f":"'[2]EXT Comercio(M)'!D204","v":338.25},{"$f":"'[2]EXT Comercio(M)'!E204","v":495.90000000000009},{"$f":"'[2]EXT Comercio(M)'!F204","v":206.75582121440425},{"$f":"'[2]EXT Comercio(M)'!G204","v":172.55569999999997},{"$f":"'[2]EXT Comercio(M)'!H204","v":596.0009},{"$f":"'[2]EXT Comercio(M)'!I204","v":810.74200000000008},{"$f":"'[2]EXT Comercio(M)'!K204","v":2424.1755245044046},{"$f":"'[2]EXT Comercio(M)'!L204","v":3234.9175245044044},null,null,{"$f":"'[2]EXT Comercio(M)'!AG204","v":780.89326326999992},{"$f":"'[2]EXT Comercio(M)'!AH204","v":672.33000000000015},{"$f":"'[2]EXT Comercio(M)'!AI204","v":983.1999999999997},{"$f":"'[2]EXT Comercio(M)'!AJ204","v":430.41950835667751},{"$f":"'[2]EXT Comercio(M)'!AK204","v":289.54546708999999},{"$f":"'[2]EXT Comercio(M)'!AL204","v":1027.9000000000001},{"$f":"'[2]EXT Comercio(M)'!AM204","v":841.15919899999994},{"$f":"'[2]EXT Comercio(M)'!AO204","v":4184.2882387166792},{"$f":"'[2]EXT Comercio(M)'!AP204","v":5025.4474377166771},null,null,{"$f":"'[2]EXT Comercio(M)'!$BS204","v":-1760.1127142122737},{"$f":"'[2]EXT Comercio(M)'!$BT204","v":-1790.5299132122736}]
[null,null,"Abril",{"$f":"'[2]REAL IPC(M)'!AD205","v":11.629027958973545},{"$f":"'[2]REAL IPC(M)'!AE205","v":4.2203570161957593},{"$f":"'[2]REAL IPC(M)'!AF205","v":7.4808276660396373},{"$f":"'[2]REAL IPC(M)'!AG205","v":5.8109833971902907},{"$f":"'[2]REAL IPC(M)'!AH205","v":9.8446196660482492},{"$f":"'[2]REAL IPC(M)'!AI205","v":8.5586863977295753},{"$f":"'[2]REAL IPC(M)'!AJ205","v":2.9069767441860583},null,null,{"$f":"'[2]REAL IMAE(M)'!AG205","v":6.5477970709065509},{"$f":"'[2]REAL IMAE(M)'!AH205","v":2.9176517185604438},{"$f":"'[2]REAL IMAE(M)'!AI205","v":3.7815760562554397},{"$f":"'[2]REAL IMAE(M)'!AJ205","v":8.1272808690511233},{"$f":"'[2]REAL IMAE(M)'!AK205","v":"n.d."},{"$f":"'[2]REAL IMAE(M)'!AL205","v":"n.d."},{"$f":"'[2]REAL IMAE(M)'!AM205","v":"n.d."},null,null,{"$f":"'[2]EXT ITCER(M)'!C205","v":103.4405318063976},{"$f":"'[2]EXT ITCER(M)'!D205","v":96.352540528738643},{"$f":"'[2]EXT ITCER(M)'!E205","v":75.983240624503836},{"$f":"'[2]EXT ITCER(M)'!F205","v":95.408693637962969},{"$f":"'[2]EXT ITCER(M)'!G205","v":105.82936948216209},{"$f":"'[2]EXT ITCER(M)'!H205","v":96.048285708572237},{"$f":"'[2]EXT ITCER(M)'!I205","v":106.4648561327118},null,null,{"$f":"'[2]EXT TC(M)'!J205","v":7.8381253172890961},{"$f":"'[2]EXT TC(M)'!K205","v":0},{"$f":"'[2]EXT TC(M)'!L205","v":-0.14062271636213511},{"$f":"'[2]EXT TC(M)'!M205","v":0.47846889952153038},{"$f":"'[2]EXT TC(M)'!N205","v":5.1287312757251211},{"$f":"'[2]EXT TC(M)'!O205","v":13.662287456057429},{"$f":"'[2]EXT TC(M)'!P205","v":0},null,null,{"$f":"'[2]EXT RIN(M)'!C205","v":2740.9},{"$f":"'[2]EXT RIN(M)'!D205","v":2149.6},{"$f":"'[2]EXT RIN(M)'!E205","v":4141.6000000000004},{"$f":"'[2]EXT RIN(M)'!F205","v":2489.5851170323681},{"$f":"'[2]EXT RIN(M)'!G205","v":801.4},{"$f":"'[2]EXT RIN(M)'!H205","v":1571.7},{"$f":"'[2]EXT RIN(M)'!I205","v":1106.9278590550798},null,null,{"$f":"'[2]EXT RIN(M)'!P205","v":59.687169372967766},{"$f":"'[2]EXT RIN(M)'!Q205","v":106.56947044452201},{"$f":"'[2]EXT RIN(M)'!R205","v":115.17775149034952},{"$f":"'[2]EXT RIN(M)'!S205","v":110.18220226831099},{"$f":"'[2]EXT RIN(M)'!T205","v":79.946625788184761},{"$f":"'[2]EXT RIN(M)'!U205","v":34.152831126417745},{"$f":"'[2]EXT RIN(M)'!V205","v":143.50734827652013},null,null,{"$f":"+'[2]MONE(M)CAPARD'!AE205","v":3.2437548792033315},{"$f":"'[2]MONE(M)CAPARD'!AF205","v":-0.19144861451938872},{"$f":"'[2]MONE(M)CAPARD'!AG205","v":-2.5965818524501794},{"$f":"'[2]MONE(M)CAPARD'!AH205","v":4.1857815328907702},{"$f":"'[2]MONE(M)CAPARD'!AI205","v":0.39639578480145093},{"$f":"'[2]MONE(M)CAPARD'!AJ205","v":2.3962279653420988},{"$f":"'[2]MONE(M)CAPARD'!AK205","v":0.43050847457625974},null,null,{"$f":"'[2]MONE(M)CAPARD'!AL205","v":3.4450000000000003},{"$f":"'[2]MONE(M)CAPARD'!AM205","v":4.0199999999999996},{"$f":"'[2]MONE(M)CAPARD'!AN205","v":3.47},{"$f":"'[2]MONE(M)CAPARD'!AO205","v":3.6},{"$f":"'[2]MONE(M)CAPARD'!AP205","v":5.0999999999999996},{"$f":"'[2]MONE(M)CAPARD'!AQ205","v":2.96},{"$f":"'[2]MONE(M)CAPARD'!AR205","v":3.35},null,null,{"$f":"'[2]MONE(M)CAPARD'!J205","v":10.607430932192932},{"$f":"'[2]MONE(M)CAPARD'!K205","v":3.0047054649063427},{"$f":"'[2]MONE(M)CAPARD'!L205","v":4.8931260096930629},{"$f":"'[2]MONE(M)CAPARD'!M205","v":11.529064574532292},{"$f":"'[2]MONE(M)CAPARD'!N205","v":3.5547190077742474},{"$f":"'[2]MONE(M)CAPARD'!O205","v":10.714309456229463},{"$f":"'[2]MONE(M)CAPARD'!P205","v":4.3175141242937727},null,null,{"$f":"'[2]MONE(M)CAPARD'!Q205","v":11.12},{"$f":"'[2]MONE(M)CAPARD'!R205","v":7.35},{"$f":"'[2]MONE(M)CAPARD'!S205","v":7.5},{"$f":"'[2]MONE(M)CAPARD'!T205","v":8.94},{"$f":"'[2]MONE(M)CAPARD'!U205","v":10.7},{"$f":"'[2]MONE(M)CAPARD'!V205","v":8.34},{"$f":"'[2]MONE(M)CAPARD'!W205","v":7.35},null,null,{"$f":"'[2]MONE(M)CAPARD'!AS205","v":8.51},{"$f":"'[2]MONE(M)CAPARD'!AT205","v":"n.a."},{"$f":"'[2]MONE(M)CAPARD'!AU205","v":4.5},{"$f":"'[2]MONE(M)CAPARD'!AV205","v":6.5},{"$f":"'[2]MONE(M)CAPARD'!AW205","v":"n.a."},{"$f":"'[2]MONE(M)CAPARD'!AX205","v":10},{"$f":"'[2]MONE(M)CAPARD'!AY205","v":"n.a."},null,null,{"$f":"+'Datos_Regional (M)'!CF198","v":28.427447143515483},{"$f":"+'Datos_Regional (M)'!CG198","v":11.40928258867806},{"$f":"+'Datos_Regional (M)'!CH198","v":7.9690601288370688},{"$f":"+'Datos_Regional (M)'!CI198","v":23.180124138490179},{"$f":"+'Datos_Regional (M)'!CJ198","v":35.565596882865776},{"$f":"+'Datos_Regional (M)'!CK198","v":18.35592399818189},{"$f":"+'Datos_Regional (M)'!CL198","v":16.873481818690415},null,null,null,null,null,null,null,null,null,null,null,null,null,null,null,null,null,null,null,null,null,null,null,null,null,null,null,null,{"$f":"'[2]EXT Comercio(M)'!C205","v":450.20108416000016},{"$f":"'[2]EXT Comercio(M)'!D205","v":281.52},{"$f":"'[2]EXT Comercio(M)'!E205","v":394.29999999999995},{"$f":"'[2]EXT Comercio(M)'!F205","v":152.97518801633385},{"$f":"'[2]EXT Comercio(M)'!G205","v":145.28609999999998},{"$f":"'[2]EXT Comercio(M)'!H205","v":514.74340000000018},{"$f":"'[2]EXT Comercio(M)'!I205","v":603.60799999999995},{"$f":"'[2]EXT Comercio(M)'!K205","v":1939.0257721763346},{"$f":"'[2]EXT Comercio(M)'!L205","v":2542.6337721763357},null,null,{"$f":"'[2]EXT Comercio(M)'!AG205","v":631.72801112999991},{"$f":"'[2]EXT Comercio(M)'!AH205","v":502.64999999999986},{"$f":"'[2]EXT Comercio(M)'!AI205","v":882.10000000000036},{"$f":"'[2]EXT Comercio(M)'!AJ205","v":420.65743794337754},{"$f":"'[2]EXT Comercio(M)'!AK205","v":253.15529880999998},{"$f":"'[2]EXT Comercio(M)'!AL205","v":936.0999999999998},{"$f":"'[2]EXT Comercio(M)'!AM205","v":783.96233899999993},{"$f":"'[2]EXT Comercio(M)'!AO205","v":3626.3907478833771},{"$f":"'[2]EXT Comercio(M)'!AP205","v":4410.3530868833768},null,null,{"$f":"'[2]EXT Comercio(M)'!$BS205","v":-1687.3649757070425},{"$f":"'[2]EXT Comercio(M)'!$BT205","v":-1867.719314707042}]
[null,null,"Mayo ",{"$f":"'[2]REAL IPC(M)'!AD206","v":11.864015532006505},{"$f":"'[2]REAL IPC(M)'!AE206","v":3.603286384976518},{"$f":"'[2]REAL IPC(M)'!AF206","v":7.6164423007702986},{"$f":"'[2]REAL IPC(M)'!AG206","v":6.1068702290076482},{"$f":"'[2]REAL IPC(M)'!AH206","v":9.9126034958601714},{"$f":"'[2]REAL IPC(M)'!AI206","v":9.507543410190733},{"$f":"'[2]REAL IPC(M)'!AJ206","v":3.1098153547132847},null,null,{"$f":"'[2]REAL IMAE(M)'!AG206","v":6.8074705461690534},{"$f":"'[2]REAL IMAE(M)'!AH206","v":2.0458477315368424},{"$f":"'[2]REAL IMAE(M)'!AI206","v":4.0912689965256765},{"$f":"'[2]REAL IMAE(M)'!AJ206","v":8.6560111402937867},{"$f":"'[2]REAL IMAE(M)'!AK206","v":"n.d."},{"$f":"'[2]REAL IMAE(M)'!AL206","v":"n.d."},{"$f":"'[2]REAL IMAE(M)'!AM206","v":"n.d."},null,null,{"$f":"'[2]EXT ITCER(M)'!C206","v":102.5489310669862},{"$f":"'[2]EXT ITCER(M)'!D206","v":96.520158744701604},{"$f":"'[2]EXT ITCER(M)'!E206","v":75.64522285242667},{"$f":"'[2]EXT ITCER(M)'!F206","v":95.062846400268313},{"$f":"'[2]EXT ITCER(M)'!G206","v":105.6438734825047},{"$f":"'[2]EXT ITCER(M)'!H206","v":96.940300472847127},{"$f":"'[2]EXT ITCER(M)'!I206","v":106.88378058024441},null,null,{"$f":"'[2]EXT TC(M)'!J206","v":7.5524724054266441},{"$f":"'[2]EXT TC(M)'!K206","v":0},{"$f":"'[2]EXT TC(M)'!L206","v":-9.6936925055224304E-2},{"$f":"'[2]EXT TC(M)'!M206","v":0.2652519893899053},{"$f":"'[2]EXT TC(M)'!N206","v":5.0127871096329617},{"$f":"'[2]EXT TC(M)'!O206","v":13.218230600369344},{"$f":"'[2]EXT TC(M)'!P206","v":0},null,null,{"$f":"'[2]EXT RIN(M)'!C206","v":2503.8000000000002},{"$f":"'[2]EXT RIN(M)'!D206","v":2109.6999999999998},{"$f":"'[2]EXT RIN(M)'!E206","v":4211.6000000000004},{"$f":"'[2]EXT RIN(M)'!F206","v":2497.1465653790383},{"$f":"'[2]EXT RIN(M)'!G206","v":795.9},{"$f":"'[2]EXT RIN(M)'!H206","v":1617.4},{"$f":"'[2]EXT RIN(M)'!I206","v":1168.69120848646},null,null,{"$f":"'[2]EXT RIN(M)'!P206","v":56.116102384432466},{"$f":"'[2]EXT RIN(M)'!Q206","v":105.8140817943805},{"$f":"'[2]EXT RIN(M)'!R206","v":116.04615472941164},{"$f":"'[2]EXT RIN(M)'!S206","v":115.41564344056023},{"$f":"'[2]EXT RIN(M)'!T206","v":83.043793597156039},{"$f":"'[2]EXT RIN(M)'!U206","v":34.657508173285848},{"$f":"'[2]EXT RIN(M)'!V206","v":149.17051518786872},null,null,{"$f":"+'[2]MONE(M)CAPARD'!AE206","v":1.6859617089768046},{"$f":"'[2]MONE(M)CAPARD'!AF206","v":0.50470246755937143},{"$f":"'[2]MONE(M)CAPARD'!AG206","v":-2.7100341159943948},{"$f":"'[2]MONE(M)CAPARD'!AH206","v":3.4805755395683318},{"$f":"'[2]MONE(M)CAPARD'!AI206","v":1.4656885228186862},{"$f":"'[2]MONE(M)CAPARD'!AJ206","v":1.3080894203275155},{"$f":"'[2]MONE(M)CAPARD'!AK206","v":0.17475023562679556},null,null,{"$f":"'[2]MONE(M)CAPARD'!AL206","v":3.59},{"$f":"'[2]MONE(M)CAPARD'!AM206","v":4.13},{"$f":"'[2]MONE(M)CAPARD'!AN206","v":3.48},{"$f":"'[2]MONE(M)CAPARD'!AO206","v":3.2},{"$f":"'[2]MONE(M)CAPARD'!AP206","v":4.8},{"$f":"'[2]MONE(M)CAPARD'!AQ206","v":2.9},{"$f":"'[2]MONE(M)CAPARD'!AR206","v":3.29},null,null,{"$f":"'[2]MONE(M)CAPARD'!J206","v":9.4811404878979264},{"$f":"'[2]MONE(M)CAPARD'!K206","v":3.8830510644138108},{"$f":"'[2]MONE(M)CAPARD'!L206","v":4.7237741654960042},{"$f":"'[2]MONE(M)CAPARD'!M206","v":10.878776978417251},{"$f":"'[2]MONE(M)CAPARD'!N206","v":3.6631563533505322},{"$f":"'[2]MONE(M)CAPARD'!O206","v":9.8828411749414986},{"$f":"'[2]MONE(M)CAPARD'!P206","v":4.1510933081998402},null,null,{"$f":"'[2]MONE(M)CAPARD'!Q206","v":11.15},{"$f":"'[2]MONE(M)CAPARD'!R206","v":7.63},{"$f":"'[2]MONE(M)CAPARD'!S206","v":7.48},{"$f":"'[2]MONE(M)CAPARD'!T206","v":8.9},{"$f":"'[2]MONE(M)CAPARD'!U206","v":10.3},{"$f":"'[2]MONE(M)CAPARD'!V206","v":8.85},{"$f":"'[2]MONE(M)CAPARD'!W206","v":7.39},null,null,{"$f":"'[2]MONE(M)CAPARD'!AS206","v":8.51},{"$f":"'[2]MONE(M)CAPARD'!AT206","v":"n.a."},{"$f":"'[2]MONE(M)CAPARD'!AU206","v":4.5},{"$f":"'[2]MONE(M)CAPARD'!AV206","v":6.5},{"$f":"'[2]MONE(M)CAPARD'!AW206","v":"n.a."},{"$f":"'[2]MONE(M)CAPARD'!AX206","v":10},{"$f":"'[2]MONE(M)CAPARD'!AY206","v":"n.a."},null,null,{"$f":"+'Datos_Regional (M)'!CF199","v":27.945206113279951},{"$f":"+'Datos_Regional (M)'!CG199","v":11.980956643146467},{"$f":"+'Datos_Regional (M)'!CH199","v":8.2071235896640218},{"$f":"+'Datos_Regional (M)'!CI199","v":24.987245255851832},{"$f":"+'Datos_Regional (M)'!CJ199","v":33.524058722373653},{"$f":"+'Datos_Regional (M)'!CK199","v":18.751213604780361},{"$f":"+'Datos_Regional (M)'!CL199","v":16.843773745597513},null,null,null,null,null,null,null,null,null,null,null,null,null,null,null,null,null,null,null,null,null,null,null,null,null,null,null,null,{"$f":"'[2]EXT Comercio(M)'!C206","v":612.33548922999989},{"$f":"'[2]EXT Comercio(M)'!D206","v":338.72},{"$f":"'[2]EXT Comercio(M)'!E206","v":483.79999999999995},{"$f":"'[2]EXT Comercio(M)'!F206","v":226.90800636623408},{"$f":"'[2]EXT Comercio(M)'!G206","v":179.68440000000004},{"$f":"'[2]EXT Comercio(M)'!H206","v":548.99959999999976},{"$f":"'[2]EXT Comercio(M)'!I206","v":730.09500000000003},{"$f":"'[2]EXT Comercio(M)'!K206","v":2390.4474955962341},{"$f":"'[2]EXT Comercio(M)'!L206","v":3120.5424955962317},null,null,{"$f":"'[2]EXT Comercio(M)'!AG206","v":817.22474771999987},{"$f":"'[2]EXT Comercio(M)'!AH206","v":765.95000000000027},{"$f":"'[2]EXT Comercio(M)'!AI206","v":1100.8999999999996},{"$f":"'[2]EXT Comercio(M)'!AJ206","v":480.31871327763292},{"$f":"'[2]EXT Comercio(M)'!AK206","v":316.25016790999996},{"$f":"'[2]EXT Comercio(M)'!AL206","v":1053.7},{"$f":"'[2]EXT Comercio(M)'!AM206","v":994.184978},{"$f":"'[2]EXT Comercio(M)'!AO206","v":4534.3436289076308},{"$f":"'[2]EXT Comercio(M)'!AP206","v":5528.5286069076319},null,null,{"$f":"'[2]EXT Comercio(M)'!$BS206","v":-2143.8961333113975},{"$f":"'[2]EXT Comercio(M)'!$BT206","v":-2407.9861113113975}]
[null,null,"Junio",{"$f":"'[2]REAL IPC(M)'!AD207","v":12.419859591990127},{"$f":"'[2]REAL IPC(M)'!AE207","v":4.423325120262831},{"$f":"'[2]REAL IPC(M)'!AF207","v":7.5525675868974265},{"$f":"'[2]REAL IPC(M)'!AG207","v":5.6854074542008837},{"$f":"'[2]REAL IPC(M)'!AH207","v":9.4988012330174598},{"$f":"'[2]REAL IPC(M)'!AI207","v":10.274334484860798},{"$f":"'[2]REAL IPC(M)'!AJ207","v":3.2038834951456234},null,null,{"$f":"'[2]REAL IMAE(M)'!AG207","v":6.8809922170921825},{"$f":"'[2]REAL IMAE(M)'!AH207","v":1.6418637385428616},{"$f":"'[2]REAL IMAE(M)'!AI207","v":4.8029999087411497},{"$f":"'[2]REAL IMAE(M)'!AJ207","v":9.0370656476729359},{"$f":"'[2]REAL IMAE(M)'!AK207","v":"n.d."},{"$f":"'[2]REAL IMAE(M)'!AL207","v":"n.d."},{"$f":"'[2]REAL IMAE(M)'!AM207","v":"n.d."},null,null,{"$f":"'[2]EXT ITCER(M)'!C207","v":102.3846980795975},{"$f":"'[2]EXT ITCER(M)'!D207","v":95.96625219339866},{"$f":"'[2]EXT ITCER(M)'!E207","v":75.645581656867449},{"$f":"'[2]EXT ITCER(M)'!F207","v":95.014154110539934},{"$f":"'[2]EXT ITCER(M)'!G207","v":106.1361914324081},{"$f":"'[2]EXT ITCER(M)'!H207","v":97.259908277303722},{"$f":"'[2]EXT ITCER(M)'!I207","v":106.9476665235705},null,null,{"$f":"'[2]EXT TC(M)'!J207","v":7.38813611625425},{"$f":"'[2]EXT TC(M)'!K207","v":0},{"$f":"'[2]EXT TC(M)'!L207","v":-4.4972424802689412E-2},{"$f":"'[2]EXT TC(M)'!M207","v":0.21208907741250871},{"$f":"'[2]EXT TC(M)'!N207","v":5.4509161920953115},{"$f":"'[2]EXT TC(M)'!O207","v":13.379886914937064},{"$f":"'[2]EXT TC(M)'!P207","v":0},null,null,{"$f":"'[2]EXT RIN(M)'!C207","v":2613.6},{"$f":"'[2]EXT RIN(M)'!D207","v":2011},{"$f":"'[2]EXT RIN(M)'!E207","v":4062.4},{"$f":"'[2]EXT RIN(M)'!F207","v":2526.1261082221936},{"$f":"'[2]EXT RIN(M)'!G207","v":813.4},{"$f":"'[2]EXT RIN(M)'!H207","v":1579.8},{"$f":"'[2]EXT RIN(M)'!I207","v":1206.5475861353896},null,null,{"$f":"'[2]EXT RIN(M)'!P207","v":57.5850766914904},{"$f":"'[2]EXT RIN(M)'!Q207","v":104.62928662701401},{"$f":"'[2]EXT RIN(M)'!R207","v":112.563116570863},{"$f":"'[2]EXT RIN(M)'!S207","v":109.94387281875375},{"$f":"'[2]EXT RIN(M)'!T207","v":83.700001166394387},{"$f":"'[2]EXT RIN(M)'!U207","v":35.680205791948282},{"$f":"'[2]EXT RIN(M)'!V207","v":155.48732370098767},null,null,{"$f":"+'[2]MONE(M)CAPARD'!AE207","v":0.9608092484104408},{"$f":"'[2]MONE(M)CAPARD'!AF207","v":-3.6498511277098425E-2},{"$f":"'[2]MONE(M)CAPARD'!AG207","v":-2.6522542891341816},{"$f":"'[2]MONE(M)CAPARD'!AH207","v":3.5147638971906767},{"$f":"'[2]MONE(M)CAPARD'!AI207","v":2.0814565136228373},{"$f":"'[2]MONE(M)CAPARD'!AJ207","v":0.80314745881399274},{"$f":"'[2]MONE(M)CAPARD'!AK207","v":0.51947318908749596},null,null,{"$f":"'[2]MONE(M)CAPARD'!AL207","v":3.6},{"$f":"'[2]MONE(M)CAPARD'!AM207","v":4.3899999999999997},{"$f":"'[2]MONE(M)CAPARD'!AN207","v":3.88},{"$f":"'[2]MONE(M)CAPARD'!AO207","v":3.33},{"$f":"'[2]MONE(M)CAPARD'!AP207","v":5},{"$f":"'[2]MONE(M)CAPARD'!AQ207","v":2.83},{"$f":"'[2]MONE(M)CAPARD'!AR207","v":3.74},null,null,{"$f":"'[2]MONE(M)CAPARD'!J207","v":8.8864551550477717},{"$f":"'[2]MONE(M)CAPARD'!K207","v":2.6122768086460417},{"$f":"'[2]MONE(M)CAPARD'!L207","v":4.8045644367602209},{"$f":"'[2]MONE(M)CAPARD'!M207","v":11.273640167364018},{"$f":"'[2]MONE(M)CAPARD'!N207","v":7.3781358610277801},{"$f":"'[2]MONE(M)CAPARD'!O207","v":8.6109479231931623},{"$f":"'[2]MONE(M)CAPARD'!P207","v":4.0755409219191048},null,null,{"$f":"'[2]MONE(M)CAPARD'!Q207","v":11.14},{"$f":"'[2]MONE(M)CAPARD'!R207","v":7.15},{"$f":"'[2]MONE(M)CAPARD'!S207","v":7.57},{"$f":"'[2]MONE(M)CAPARD'!T207","v":8.91},{"$f":"'[2]MONE(M)CAPARD'!U207","v":10.4},{"$f":"'[2]MONE(M)CAPARD'!V207","v":8.35},{"$f":"'[2]MONE(M)CAPARD'!W207","v":7.41},null,null,{"$f":"'[2]MONE(M)CAPARD'!AS207","v":8.51},{"$f":"'[2]MONE(M)CAPARD'!AT207","v":"n.a."},{"$f":"'[2]MONE(M)CAPARD'!AU207","v":4.75},{"$f":"'[2]MONE(M)CAPARD'!AV207","v":6.5},{"$f":"'[2]MONE(M)CAPARD'!AW207","v":"n.a."},{"$f":"'[2]MONE(M)CAPARD'!AX207","v":10},{"$f":"'[2]MONE(M)CAPARD'!AY207","v":"n.a."},null,null,{"$f":"+'Datos_Regional (M)'!CF200","v":28.676773912451424},{"$f":"+'Datos_Regional (M)'!CG200","v":12.648099658012345},{"$f":"+'Datos_Regional (M)'!CH200","v":10.432409150206446},{"$f":"+'Datos_Regional (M)'!CI200","v":24.025631739942121},{"$f":"+'Datos_Regional (M)'!CJ200","v":32.383280222459},{"$f":"+'Datos_Regional (M)'!CK200","v":20.430382278475445},{"$f":"+'Datos_Regional (M)'!CL200","v":14.897359968446832},null,null,null,null,null,null,null,null,null,null,null,null,null,null,null,null,null,null,null,null,null,null,null,null,null,null,null,null,{"$f":"'[2]EXT Comercio(M)'!C207","v":535.34699277999971},{"$f":"'[2]EXT Comercio(M)'!D207","v":330.50000000000023},{"$f":"'[2]EXT Comercio(M)'!E207","v":543.70000000000027},{"$f":"'[2]EXT Comercio(M)'!F207","v":195.32250643696693},{"$f":"'[2]EXT Comercio(M)'!G207","v":174.15870000000001},{"$f":"'[2]EXT Comercio(M)'!H207","v":595.95899999999983},{"$f":"'[2]EXT Comercio(M)'!I207","v":696.54599999999994},{"$f":"'[2]EXT Comercio(M)'!K207","v":2374.9871992169647},{"$f":"'[2]EXT Comercio(M)'!L207","v":3071.5331992169704},null,null,{"$f":"'[2]EXT Comercio(M)'!AG207","v":742.68123209999999},{"$f":"'[2]EXT Comercio(M)'!AH207","v":745.0300000000002},{"$f":"'[2]EXT Comercio(M)'!AI207","v":971.8},{"$f":"'[2]EXT Comercio(M)'!AJ207","v":510.63011593044484},{"$f":"'[2]EXT Comercio(M)'!AK207","v":286.90178764000001},{"$f":"'[2]EXT Comercio(M)'!AL207","v":995.59999999999991},{"$f":"'[2]EXT Comercio(M)'!AM207","v":1006.4809100000002},{"$f":"'[2]EXT Comercio(M)'!AO207","v":4252.6431356704452},{"$f":"'[2]EXT Comercio(M)'!AP207","v":5259.1240456704472},null,null,{"$f":"'[2]EXT Comercio(M)'!$BS207","v":-1877.6559364534805},{"$f":"'[2]EXT Comercio(M)'!$BT207","v":-2187.5908464534805}]
[null,null,"Julio",{"$f":"'[2]REAL IPC(M)'!AD208","v":12.02600946663302},{"$f":"'[2]REAL IPC(M)'!AE208","v":5.552301745343807},{"$f":"'[2]REAL IPC(M)'!AF208","v":7.035567521609762},{"$f":"'[2]REAL IPC(M)'!AG208","v":5.322479649342517},{"$f":"'[2]REAL IPC(M)'!AH208","v":9.1711956521739229},{"$f":"'[2]REAL IPC(M)'!AI208","v":10.601163542340007},{"$f":"'[2]REAL IPC(M)'!AJ208","v":2.8046421663442853},null,null,{"$f":"'[2]REAL IMAE(M)'!AG208","v":7.062657868204993},{"$f":"'[2]REAL IMAE(M)'!AH208","v":1.485143930947465},{"$f":"'[2]REAL IMAE(M)'!AI208","v":5.7772979341018491},{"$f":"'[2]REAL IMAE(M)'!AJ208","v":9.4149409548718204},{"$f":"'[2]REAL IMAE(M)'!AK208","v":"n.d."},{"$f":"'[2]REAL IMAE(M)'!AL208","v":"n.d."},{"$f":"'[2]REAL IMAE(M)'!AM208","v":"n.d."},null,null,{"$f":"'[2]EXT ITCER(M)'!C208","v":102.5711823072189},{"$f":"'[2]EXT ITCER(M)'!D208","v":95.300775911789557},{"$f":"'[2]EXT ITCER(M)'!E208","v":75.447304526632209},{"$f":"'[2]EXT ITCER(M)'!F208","v":95.020900294745559},{"$f":"'[2]EXT ITCER(M)'!G208","v":106.3806053840037},{"$f":"'[2]EXT ITCER(M)'!H208","v":96.890096520028735},{"$f":"'[2]EXT ITCER(M)'!I208","v":107.53063200016079},null,null,{"$f":"'[2]EXT TC(M)'!J208","v":7.2663951639162061},{"$f":"'[2]EXT TC(M)'!K208","v":0},{"$f":"'[2]EXT TC(M)'!L208","v":-7.9681695373191197E-2},{"$f":"'[2]EXT TC(M)'!M208","v":0.1589825119236756},{"$f":"'[2]EXT TC(M)'!N208","v":4.8793715099395145},{"$f":"'[2]EXT TC(M)'!O208","v":13.231237252393949},{"$f":"'[2]EXT TC(M)'!P208","v":0},null,null,{"$f":"'[2]EXT RIN(M)'!C208","v":2588.1},{"$f":"'[2]EXT RIN(M)'!D208","v":2257},{"$f":"'[2]EXT RIN(M)'!E208","v":4038.2},{"$f":"'[2]EXT RIN(M)'!F208","v":2495.5068193657653},{"$f":"'[2]EXT RIN(M)'!G208","v":853.3},{"$f":"'[2]EXT RIN(M)'!H208","v":1603.2},{"$f":"'[2]EXT RIN(M)'!I208","v":1170.0952668014199},null,null,{"$f":"'[2]EXT RIN(M)'!P208","v":56.717919357660548},{"$f":"'[2]EXT RIN(M)'!Q208","v":109.0473551547221},{"$f":"'[2]EXT RIN(M)'!R208","v":110.13940226151702},{"$f":"'[2]EXT RIN(M)'!S208","v":113.87922713777145},{"$f":"'[2]EXT RIN(M)'!T208","v":84.723603846593292},{"$f":"'[2]EXT RIN(M)'!U208","v":35.671129885585025},{"$f":"'[2]EXT RIN(M)'!V208","v":151.56518659495978},null,null,{"$f":"+'[2]MONE(M)CAPARD'!AE208","v":1.5389198826014336},{"$f":"'[2]MONE(M)CAPARD'!AF208","v":-0.96838580778900196},{"$f":"'[2]MONE(M)CAPARD'!AG208","v":-2.1913907460117938},{"$f":"'[2]MONE(M)CAPARD'!AH208","v":3.5771284185493459},{"$f":"'[2]MONE(M)CAPARD'!AI208","v":2.3131880079041438},{"$f":"'[2]MONE(M)CAPARD'!AJ208","v":-0.32654587960256631},{"$f":"'[2]MONE(M)CAPARD'!AK208","v":1.1432925682032071},null,null,{"$f":"'[2]MONE(M)CAPARD'!AL208","v":4},{"$f":"'[2]MONE(M)CAPARD'!AM208","v":4.53},{"$f":"'[2]MONE(M)CAPARD'!AN208","v":3.86},{"$f":"'[2]MONE(M)CAPARD'!AO208","v":3.37},{"$f":"'[2]MONE(M)CAPARD'!AP208","v":4.9000000000000004},{"$f":"'[2]MONE(M)CAPARD'!AQ208","v":2.7},{"$f":"'[2]MONE(M)CAPARD'!AR208","v":3.98},null,null,{"$f":"'[2]MONE(M)CAPARD'!J208","v":9.2246350490998807},{"$f":"'[2]MONE(M)CAPARD'!K208","v":1.7327765869511118},{"$f":"'[2]MONE(M)CAPARD'!L208","v":5.2921029986099022},{"$f":"'[2]MONE(M)CAPARD'!M208","v":11.324762187871581},{"$f":"'[2]MONE(M)CAPARD'!N208","v":7.8851738336867188},{"$f":"'[2]MONE(M)CAPARD'!O208","v":9.1037346580946892},{"$f":"'[2]MONE(M)CAPARD'!P208","v":4.4602634054562644},null,null,{"$f":"'[2]MONE(M)CAPARD'!Q208","v":11.06},{"$f":"'[2]MONE(M)CAPARD'!R208","v":7.38},{"$f":"'[2]MONE(M)CAPARD'!S208","v":7.55},{"$f":"'[2]MONE(M)CAPARD'!T208","v":9.0399999999999991},{"$f":"'[2]MONE(M)CAPARD'!U208","v":10.7},{"$f":"'[2]MONE(M)CAPARD'!V208","v":7.47},{"$f":"'[2]MONE(M)CAPARD'!W208","v":7.39},null,null,{"$f":"'[2]MONE(M)CAPARD'!AS208","v":9.1999999999999993},{"$f":"'[2]MONE(M)CAPARD'!AT208","v":"n.a."},{"$f":"'[2]MONE(M)CAPARD'!AU208","v":5},{"$f":"'[2]MONE(M)CAPARD'!AV208","v":6.5},{"$f":"'[2]MONE(M)CAPARD'!AW208","v":"n.a."},{"$f":"'[2]MONE(M)CAPARD'!AX208","v":10},{"$f":"'[2]MONE(M)CAPARD'!AY208","v":"n.a."},null,null,{"$f":"+'Datos_Regional (M)'!CF201","v":29.88101983577096},{"$f":"+'Datos_Regional (M)'!CG201","v":12.933105287067281},{"$f":"+'Datos_Regional (M)'!CH201","v":9.491381901729401},{"$f":"+'Datos_Regional (M)'!CI201","v":23.684151770169848},{"$f":"+'Datos_Regional (M)'!CJ201","v":34.20576039234917},{"$f":"+'Datos_Regional (M)'!CK201","v":20.631768338058865},{"$f":"+'Datos_Regional (M)'!CL201","v":14.851197703255782},null,null,null,null,null,null,null,null,null,null,null,null,null,null,null,null,null,null,null,null,null,null,null,null,null,null,null,null,{"$f":"'[2]EXT Comercio(M)'!C208","v":476.00541081000028},{"$f":"'[2]EXT Comercio(M)'!D208","v":328.89999999999964},{"$f":"'[2]EXT Comercio(M)'!E208","v":568.19999999999982},{"$f":"'[2]EXT Comercio(M)'!F208","v":179.08528911488315},{"$f":"'[2]EXT Comercio(M)'!G208","v":155.76930000000004},{"$f":"'[2]EXT Comercio(M)'!H208","v":534.09709999999995},{"$f":"'[2]EXT Comercio(M)'!I208","v":633.16300000000001},{"$f":"'[2]EXT Comercio(M)'!K208","v":2242.057099924883},{"$f":"'[2]EXT Comercio(M)'!L208","v":2875.2200999248817},null,null,{"$f":"'[2]EXT Comercio(M)'!AG208","v":770.20290317000024},{"$f":"'[2]EXT Comercio(M)'!AH208","v":710.60000000000036},{"$f":"'[2]EXT Comercio(M)'!AI208","v":1028.8999999999999},{"$f":"'[2]EXT Comercio(M)'!AJ208","v":478.96918852355384},{"$f":"'[2]EXT Comercio(M)'!AK208","v":289.67091902999999},{"$f":"'[2]EXT Comercio(M)'!AL208","v":1071.9999999999998},{"$f":"'[2]EXT Comercio(M)'!AM208","v":1033.4480789999998},{"$f":"'[2]EXT Comercio(M)'!AO208","v":4350.3430107235508},{"$f":"'[2]EXT Comercio(M)'!AP208","v":5383.7910897235488},null,null,{"$f":"'[2]EXT Comercio(M)'!$BS208","v":-2108.2859107986696},{"$f":"'[2]EXT Comercio(M)'!$BT208","v":-2508.570989798669}]
[null,null,"Agosto",{"$f":"'[2]REAL IPC(M)'!AD209","v":11.614065597123826},{"$f":"'[2]REAL IPC(M)'!AE209","v":4.7079439252336419},{"$f":"'[2]REAL IPC(M)'!AF209","v":6.9961171902576798},{"$f":"'[2]REAL IPC(M)'!AG209","v":4.8447204968944169},{"$f":"'[2]REAL IPC(M)'!AH209","v":8.6501687289088824},{"$f":"'[2]REAL IPC(M)'!AI209","v":9.3489614479926448},{"$f":"'[2]REAL IPC(M)'!AJ209","v":2.9013539651837639},null,null,{"$f":"'[2]REAL IMAE(M)'!AG209","v":7.5654889115931514},{"$f":"'[2]REAL IMAE(M)'!AH209","v":2.9907842007454093},{"$f":"'[2]REAL IMAE(M)'!AI209","v":6.6939002046125795},{"$f":"'[2]REAL IMAE(M)'!AJ209","v":9.7668101278803618},{"$f":"'[2]REAL IMAE(M)'!AK209","v":"n.d."},{"$f":"'[2]REAL IMAE(M)'!AL209","v":"n.d."},{"$f":"'[2]REAL IMAE(M)'!AM209","v":"n.d."},null,null,{"$f":"'[2]EXT ITCER(M)'!C209","v":102.65021310829481},{"$f":"'[2]EXT ITCER(M)'!D209","v":96.243731574325736},{"$f":"'[2]EXT ITCER(M)'!E209","v":75.527838668642602},{"$f":"'[2]EXT ITCER(M)'!F209","v":95.103132673031027},{"$f":"'[2]EXT ITCER(M)'!G209","v":107.2121722552494},{"$f":"'[2]EXT ITCER(M)'!H209","v":96.77949611084486},{"$f":"'[2]EXT ITCER(M)'!I209","v":107.9060928479511},null,null,{"$f":"'[2]EXT TC(M)'!J209","v":7.1502751059285634},{"$f":"'[2]EXT TC(M)'!K209","v":0},{"$f":"'[2]EXT TC(M)'!L209","v":-7.2170253189606737E-2},{"$f":"'[2]EXT TC(M)'!M209","v":0.1589825119236756},{"$f":"'[2]EXT TC(M)'!N209","v":4.9273131014063685},{"$f":"'[2]EXT TC(M)'!O209","v":12.52853349884486},{"$f":"'[2]EXT TC(M)'!P209","v":0},null,null,{"$f":"'[2]EXT RIN(M)'!C209","v":2675.6},{"$f":"'[2]EXT RIN(M)'!D209","v":2070.3000000000002},{"$f":"'[2]EXT RIN(M)'!E209","v":4031.8},{"$f":"'[2]EXT RIN(M)'!F209","v":2597.6150644142435},{"$f":"'[2]EXT RIN(M)'!G209","v":830.4},{"$f":"'[2]EXT RIN(M)'!H209","v":1645},{"$f":"'[2]EXT RIN(M)'!I209","v":991.54574445036008},null,null,{"$f":"'[2]EXT RIN(M)'!P209","v":58.607651805603957},{"$f":"'[2]EXT RIN(M)'!Q209","v":100.75894069516518},{"$f":"'[2]EXT RIN(M)'!R209","v":113.43398387823622},{"$f":"'[2]EXT RIN(M)'!S209","v":116.38403829621112},{"$f":"'[2]EXT RIN(M)'!T209","v":84.816116199415731},{"$f":"'[2]EXT RIN(M)'!U209","v":35.4173370629034},{"$f":"'[2]EXT RIN(M)'!V209","v":124.83811126517543},null,null,{"$f":"+'[2]MONE(M)CAPARD'!AE209","v":1.9136785238035576},{"$f":"'[2]MONE(M)CAPARD'!AF209","v":-0.11698427048048278},{"$f":"'[2]MONE(M)CAPARD'!AG209","v":-2.1459817893903423},{"$f":"'[2]MONE(M)CAPARD'!AH209","v":3.7057464454976241},{"$f":"'[2]MONE(M)CAPARD'!AI209","v":1.9816572135735517},{"$f":"'[2]MONE(M)CAPARD'!AJ209","v":-0.86782849642699089},{"$f":"'[2]MONE(M)CAPARD'!AK209","v":1.0482330827067556},null,null,{"$f":"'[2]MONE(M)CAPARD'!AL209","v":4},{"$f":"'[2]MONE(M)CAPARD'!AM209","v":4.59},{"$f":"'[2]MONE(M)CAPARD'!AN209","v":3.94},{"$f":"'[2]MONE(M)CAPARD'!AO209","v":3.42},{"$f":"'[2]MONE(M)CAPARD'!AP209","v":5.2},{"$f":"'[2]MONE(M)CAPARD'!AQ209","v":2.5},{"$f":"'[2]MONE(M)CAPARD'!AR209","v":3.98},null,null,{"$f":"'[2]MONE(M)CAPARD'!J209","v":9.75319225640383},{"$f":"'[2]MONE(M)CAPARD'!K209","v":2.6621329742477826},{"$f":"'[2]MONE(M)CAPARD'!L209","v":5.3215789126418551},{"$f":"'[2]MONE(M)CAPARD'!M209","v":11.660367298578191},{"$f":"'[2]MONE(M)CAPARD'!N209","v":8.1623637113658898},{"$f":"'[2]MONE(M)CAPARD'!O209","v":9.5666556074085065},{"$f":"'[2]MONE(M)CAPARD'!P209","v":4.4106766917293125},null,null,{"$f":"'[2]MONE(M)CAPARD'!Q209","v":11.01},{"$f":"'[2]MONE(M)CAPARD'!R209","v":7.5},{"$f":"'[2]MONE(M)CAPARD'!S209","v":7.7399999999999993},{"$f":"'[2]MONE(M)CAPARD'!T209","v":9.0399999999999991},{"$f":"'[2]MONE(M)CAPARD'!U209","v":10.4},{"$f":"'[2]MONE(M)CAPARD'!V209","v":8.1999999999999993},{"$f":"'[2]MONE(M)CAPARD'!W209","v":7.44},null,null,{"$f":"'[2]MONE(M)CAPARD'!AS209","v":9.1999999999999993},{"$f":"'[2]MONE(M)CAPARD'!AT209","v":"n.a."},{"$f":"'[2]MONE(M)CAPARD'!AU209","v":5},{"$f":"'[2]MONE(M)CAPARD'!AV209","v":6.5},{"$f":"'[2]MONE(M)CAPARD'!AW209","v":"n.a."},{"$f":"'[2]MONE(M)CAPARD'!AX209","v":8},{"$f":"'[2]MONE(M)CAPARD'!AY209","v":"n.a."},null,null,{"$f":"+'Datos_Regional (M)'!CF202","v":29.442459616577409},{"$f":"+'Datos_Regional (M)'!CG202","v":13.180534372214336},{"$f":"+'Datos_Regional (M)'!CH202","v":9.7963922850724536},{"$f":"+'Datos_Regional (M)'!CI202","v":26.41370031961592},{"$f":"+'Datos_Regional (M)'!CJ202","v":34.231942963984707},{"$f":"+'Datos_Regional (M)'!CK202","v":20.392618218128099},{"$f":"+'Datos_Regional (M)'!CL202","v":15.144955284079176},null,null,null,null,null,null,null,null,null,null,null,null,null,null,null,null,null,null,null,null,null,null,null,null,null,null,null,null,{"$f":"'[2]EXT Comercio(M)'!C209","v":500.12767347000045},{"$f":"'[2]EXT Comercio(M)'!D209","v":308.55000000000018},{"$f":"'[2]EXT Comercio(M)'!E209","v":530.90000000000032},{"$f":"'[2]EXT Comercio(M)'!F209","v":162.20858367926917},{"$f":"'[2]EXT Comercio(M)'!G209","v":186.43639999999999},{"$f":"'[2]EXT Comercio(M)'!H209","v":596.3438000000001},{"$f":"'[2]EXT Comercio(M)'!I209","v":757.88799999999992},{"$f":"'[2]EXT Comercio(M)'!K209","v":2284.5664571492707},{"$f":"'[2]EXT Comercio(M)'!L209","v":3042.4544571492697},null,null,{"$f":"'[2]EXT Comercio(M)'!AG209","v":824.27537943999982},{"$f":"'[2]EXT Comercio(M)'!AH209","v":605.3799999999992},{"$f":"'[2]EXT Comercio(M)'!AI209","v":1060.1000000000008},{"$f":"'[2]EXT Comercio(M)'!AJ209","v":496.83527569275293},{"$f":"'[2]EXT Comercio(M)'!AK209","v":311.08171914000002},{"$f":"'[2]EXT Comercio(M)'!AL209","v":1169.0000000000002},{"$f":"'[2]EXT Comercio(M)'!AM209","v":1157.9029500000001},{"$f":"'[2]EXT Comercio(M)'!AO209","v":4466.672374272759},{"$f":"'[2]EXT Comercio(M)'!AP209","v":5624.5753242727587},null,null,{"$f":"'[2]EXT Comercio(M)'!$BS209","v":-2182.1059171234792},{"$f":"'[2]EXT Comercio(M)'!$BT209","v":-2582.1208671234781}]
[null,null,"Setiembre",{"$f":"'[2]REAL IPC(M)'!AD210","v":11.239649756896396},{"$f":"'[2]REAL IPC(M)'!AE210","v":4.235020360674806},{"$f":"'[2]REAL IPC(M)'!AF210","v":5.6982849142457166},{"$f":"'[2]REAL IPC(M)'!AG210","v":4.4554455445544665},{"$f":"'[2]REAL IPC(M)'!AH210","v":7.4860335195530761},{"$f":"'[2]REAL IPC(M)'!AI210","v":4.7295471217327361},{"$f":"'[2]REAL IPC(M)'!AJ210","v":1.6299137104506298},null,null,{"$f":"'[2]REAL IMAE(M)'!AG210","v":8.2024161296219056},{"$f":"'[2]REAL IMAE(M)'!AH210","v":6.0248813909438113},{"$f":"'[2]REAL IMAE(M)'!AI210","v":7.3005378560715606},{"$f":"'[2]REAL IMAE(M)'!AJ210","v":10.160397816037458},{"$f":"'[2]REAL IMAE(M)'!AK210","v":"n.d."},{"$f":"'[2]REAL IMAE(M)'!AL210","v":"n.d."},{"$f":"'[2]REAL IMAE(M)'!AM210","v":"n.d."},null,null,{"$f":"'[2]EXT ITCER(M)'!C210","v":102.8336945657792},{"$f":"'[2]EXT ITCER(M)'!D210","v":95.803149986550167},{"$f":"'[2]EXT ITCER(M)'!E210","v":75.681330341729577},{"$f":"'[2]EXT ITCER(M)'!F210","v":94.636483346863074},{"$f":"'[2]EXT ITCER(M)'!G210","v":107.29390133134559},{"$f":"'[2]EXT ITCER(M)'!H210","v":98.317020156629411},{"$f":"'[2]EXT ITCER(M)'!I210","v":107.7818171248941},null,null,{"$f":"'[2]EXT TC(M)'!J210","v":7.0035757378140691},{"$f":"'[2]EXT TC(M)'!K210","v":0},{"$f":"'[2]EXT TC(M)'!L210","v":-0.19428750083744134},{"$f":"'[2]EXT TC(M)'!M210","v":0.10593220338982826},{"$f":"'[2]EXT TC(M)'!N210","v":4.6985060874582079},{"$f":"'[2]EXT TC(M)'!O210","v":8.3052841947486815},{"$f":"'[2]EXT TC(M)'!P210","v":0},null,null,{"$f":"'[2]EXT RIN(M)'!C210","v":2764.6},{"$f":"'[2]EXT RIN(M)'!D210","v":2017.3},{"$f":"'[2]EXT RIN(M)'!E210","v":4031.3},{"$f":"'[2]EXT RIN(M)'!F210","v":2552.4508792756892},{"$f":"'[2]EXT RIN(M)'!G210","v":824.7},{"$f":"'[2]EXT RIN(M)'!H210","v":1582.9},{"$f":"'[2]EXT RIN(M)'!I210","v":906.06812264791006},null,null,{"$f":"'[2]EXT RIN(M)'!P210","v":58.559557009563832},{"$f":"'[2]EXT RIN(M)'!Q210","v":94.516337603193506},{"$f":"'[2]EXT RIN(M)'!R210","v":109.52317551649166},{"$f":"'[2]EXT RIN(M)'!S210","v":117.7459844380077},{"$f":"'[2]EXT RIN(M)'!T210","v":85.182868558149082},{"$f":"'[2]EXT RIN(M)'!U210","v":35.370695825987589},{"$f":"'[2]EXT RIN(M)'!V210","v":113.60851123721952},null,null,{"$f":"+'[2]MONE(M)CAPARD'!AE210","v":2.0319645450550974},{"$f":"'[2]MONE(M)CAPARD'!AF210","v":0.33027052031187254},{"$f":"'[2]MONE(M)CAPARD'!AG210","v":-0.92554473806212767},{"$f":"'[2]MONE(M)CAPARD'!AH210","v":3.8337440758293742},{"$f":"'[2]MONE(M)CAPARD'!AI210","v":2.5107208802128045},{"$f":"'[2]MONE(M)CAPARD'!AJ210","v":2.6166950527169655},{"$f":"'[2]MONE(M)CAPARD'!AK210","v":2.469830188679238},null,null,{"$f":"'[2]MONE(M)CAPARD'!AL210","v":4.01},{"$f":"'[2]MONE(M)CAPARD'!AM210","v":4.58},{"$f":"'[2]MONE(M)CAPARD'!AN210","v":3.95},{"$f":"'[2]MONE(M)CAPARD'!AO210","v":3.5},{"$f":"'[2]MONE(M)CAPARD'!AP210","v":4.95},{"$f":"'[2]MONE(M)CAPARD'!AQ210","v":2.91},{"$f":"'[2]MONE(M)CAPARD'!AR210","v":4.1399999999999997},null,null,{"$f":"'[2]MONE(M)CAPARD'!J210","v":10.05068810225238},{"$f":"'[2]MONE(M)CAPARD'!K210","v":3.2331768286285931},{"$f":"'[2]MONE(M)CAPARD'!L210","v":6.6242466388502503},{"$f":"'[2]MONE(M)CAPARD'!M210","v":11.932890995260655},{"$f":"'[2]MONE(M)CAPARD'!N210","v":9.6798476920558656},{"$f":"'[2]MONE(M)CAPARD'!O210","v":12.251034431910359},{"$f":"'[2]MONE(M)CAPARD'!P210","v":5.726745283018861},null,null,{"$f":"'[2]MONE(M)CAPARD'!Q210","v":11},{"$f":"'[2]MONE(M)CAPARD'!R210","v":7.61},{"$f":"'[2]MONE(M)CAPARD'!S210","v":7.7299999999999995},{"$f":"'[2]MONE(M)CAPARD'!T210","v":9.06},{"$f":"'[2]MONE(M)CAPARD'!U210","v":10.6},{"$f":"'[2]MONE(M)CAPARD'!V210","v":8.15},{"$f":"'[2]MONE(M)CAPARD'!W210","v":7.45},null,null,{"$f":"'[2]MONE(M)CAPARD'!AS210","v":9.1999999999999993},{"$f":"'[2]MONE(M)CAPARD'!AT210","v":"n.a."},{"$f":"'[2]MONE(M)CAPARD'!AU210","v":5},{"$f":"'[2]MONE(M)CAPARD'!AV210","v":6},{"$f":"'[2]MONE(M)CAPARD'!AW210","v":"n.a."},{"$f":"'[2]MONE(M)CAPARD'!AX210","v":8},{"$f":"'[2]MONE(M)CAPARD'!AY210","v":"n.a."},null,null,{"$f":"+'Datos_Regional (M)'!CF203","v":28.76606106737345},{"$f":"+'Datos_Regional (M)'!CG203","v":10.478764499582226},{"$f":"+'Datos_Regional (M)'!CH203","v":10.555102234319214},{"$f":"+'Datos_Regional (M)'!CI203","v":25.766264714812625},{"$f":"+'Datos_Regional (M)'!CJ203","v":34.210318719132204},{"$f":"+'Datos_Regional (M)'!CK203","v":18.301422585889938},{"$f":"+'Datos_Regional (M)'!CL203","v":15.321998372030542},null,null,null,null,null,null,null,null,null,null,null,null,null,null,null,null,null,null,null,null,null,null,null,null,null,null,null,null,{"$f":"'[2]EXT Comercio(M)'!C210","v":495.28445647999979},{"$f":"'[2]EXT Comercio(M)'!D210","v":328.69000000000051},{"$f":"'[2]EXT Comercio(M)'!E210","v":593.89999999999986},{"$f":"'[2]EXT Comercio(M)'!F210","v":141.04834327899357},{"$f":"'[2]EXT Comercio(M)'!G210","v":164.37910000000002},{"$f":"'[2]EXT Comercio(M)'!H210","v":624.10519999999997},{"$f":"'[2]EXT Comercio(M)'!I210","v":805.48099999999988},{"$f":"'[2]EXT Comercio(M)'!K210","v":2347.4070997589952},{"$f":"'[2]EXT Comercio(M)'!L210","v":3152.8880997589949},null,null,{"$f":"'[2]EXT Comercio(M)'!AG210","v":790.50056141999994},{"$f":"'[2]EXT Comercio(M)'!AH210","v":639.75},{"$f":"'[2]EXT Comercio(M)'!AI210","v":1008.7},{"$f":"'[2]EXT Comercio(M)'!AJ210","v":465.54228456237934},{"$f":"'[2]EXT Comercio(M)'!AK210","v":292.63614648999999},{"$f":"'[2]EXT Comercio(M)'!AL210","v":1016.3999999999996},{"$f":"'[2]EXT Comercio(M)'!AM210","v":1109.3948429999998},{"$f":"'[2]EXT Comercio(M)'!AO210","v":4213.5289924723766},{"$f":"'[2]EXT Comercio(M)'!AP210","v":5322.9238354723784},null,null,{"$f":"'[2]EXT Comercio(M)'!$BS210","v":-1866.1218927133887},{"$f":"'[2]EXT Comercio(M)'!$BT210","v":-2170.0357357133907}]
[null,null,"Octubre",{"$f":"'[2]REAL IPC(M)'!AD211","v":10.085398343659078},{"$f":"'[2]REAL IPC(M)'!AE211","v":1.8837766868363959},{"$f":"'[2]REAL IPC(M)'!AF211","v":3.8525041276829861},{"$f":"'[2]REAL IPC(M)'!AG211","v":4.5145330859616646},{"$f":"'[2]REAL IPC(M)'!AH211","v":6.9744271006310168},{"$f":"'[2]REAL IPC(M)'!AI211","v":3.6847531406316039},{"$f":"'[2]REAL IPC(M)'!AJ211","v":1.3346043851286793},null,null,{"$f":"'[2]REAL IMAE(M)'!AG211","v":8.5566865439866167},{"$f":"'[2]REAL IMAE(M)'!AH211","v":7.7029498431266221},{"$f":"'[2]REAL IMAE(M)'!AI211","v":7.5494600205035889},{"$f":"'[2]REAL IMAE(M)'!AJ211","v":10.538082522619547},{"$f":"'[2]REAL IMAE(M)'!AK211","v":"n.d."},{"$f":"'[2]REAL IMAE(M)'!AL211","v":"n.d."},{"$f":"'[2]REAL IMAE(M)'!AM211","v":"n.d."},null,null,{"$f":"'[2]EXT ITCER(M)'!C211","v":102.0872367962845},{"$f":"'[2]EXT ITCER(M)'!D211","v":95.75844441796832},{"$f":"'[2]EXT ITCER(M)'!E211","v":75.434455146559998},{"$f":"'[2]EXT ITCER(M)'!F211","v":94.105000137982543},{"$f":"'[2]EXT ITCER(M)'!G211","v":106.8253597485363},{"$f":"'[2]EXT ITCER(M)'!H211","v":99.335369177861097},{"$f":"'[2]EXT ITCER(M)'!I211","v":107.0006633850787},null,null,{"$f":"'[2]EXT TC(M)'!J211","v":6.2123866763761075},{"$f":"'[2]EXT TC(M)'!K211","v":0},{"$f":"'[2]EXT TC(M)'!L211","v":-0.79417258904438459},{"$f":"'[2]EXT TC(M)'!M211","v":5.2938062466903177E-2},{"$f":"'[2]EXT TC(M)'!N211","v":4.8196879372582258},{"$f":"'[2]EXT TC(M)'!O211","v":3.293166494376127},{"$f":"'[2]EXT TC(M)'!P211","v":0},null,null,{"$f":"'[2]EXT RIN(M)'!C211","v":2882.3},{"$f":"'[2]EXT RIN(M)'!D211","v":2020.5},{"$f":"'[2]EXT RIN(M)'!E211","v":4036.3},{"$f":"'[2]EXT RIN(M)'!F211","v":2538.5154229952577},{"$f":"'[2]EXT RIN(M)'!G211","v":804.4},{"$f":"'[2]EXT RIN(M)'!H211","v":1717.2},{"$f":"'[2]EXT RIN(M)'!I211","v":921.9005963797199},null,null,{"$f":"'[2]EXT RIN(M)'!P211","v":59.319298653483735},{"$f":"'[2]EXT RIN(M)'!Q211","v":92.242457278799577},{"$f":"'[2]EXT RIN(M)'!R211","v":104.28778506152831},{"$f":"'[2]EXT RIN(M)'!S211","v":121.41518841790402},{"$f":"'[2]EXT RIN(M)'!T211","v":85.826123378218},{"$f":"'[2]EXT RIN(M)'!U211","v":37.882658799880637},{"$f":"'[2]EXT RIN(M)'!V211","v":114.0051858009642},null,null,{"$f":"+'[2]MONE(M)CAPARD'!AE211","v":2.8746788438388782},{"$f":"'[2]MONE(M)CAPARD'!AF211","v":2.6925386804357494},{"$f":"'[2]MONE(M)CAPARD'!AG211","v":0.92197668256492504},{"$f":"'[2]MONE(M)CAPARD'!AH211","v":3.5262721893491049},{"$f":"'[2]MONE(M)CAPARD'!AI211","v":3.7375068293501239},{"$f":"'[2]MONE(M)CAPARD'!AJ211","v":3.5639250202548012},{"$f":"'[2]MONE(M)CAPARD'!AK211","v":2.8177892756350102},null,null,{"$f":"'[2]MONE(M)CAPARD'!AL211","v":3.835},{"$f":"'[2]MONE(M)CAPARD'!AM211","v":4.63},{"$f":"'[2]MONE(M)CAPARD'!AN211","v":3.95},{"$f":"'[2]MONE(M)CAPARD'!AO211","v":3.57},{"$f":"'[2]MONE(M)CAPARD'!AP211","v":5.0599999999999996},{"$f":"'[2]MONE(M)CAPARD'!AQ211","v":2.73},{"$f":"'[2]MONE(M)CAPARD'!AR211","v":4.1900000000000004},null,null,{"$f":"'[2]MONE(M)CAPARD'!J211","v":10.87755673005716},{"$f":"'[2]MONE(M)CAPARD'!K211","v":5.6380587388865138},{"$f":"'[2]MONE(M)CAPARD'!L211","v":8.7214997350291554},{"$f":"'[2]MONE(M)CAPARD'!M211","v":11.678248520710051},{"$f":"'[2]MONE(M)CAPARD'!N211","v":10.135975891366355},{"$f":"'[2]MONE(M)CAPARD'!O211","v":12.967429108050334},{"$f":"'[2]MONE(M)CAPARD'!P211","v":6.064459078080918},null,null,{"$f":"'[2]MONE(M)CAPARD'!Q211","v":10.99},{"$f":"'[2]MONE(M)CAPARD'!R211","v":7.63},{"$f":"'[2]MONE(M)CAPARD'!S211","v":7.7200000000000006},{"$f":"'[2]MONE(M)CAPARD'!T211","v":9.06},{"$f":"'[2]MONE(M)CAPARD'!U211","v":10.8},{"$f":"'[2]MONE(M)CAPARD'!V211","v":8.06},{"$f":"'[2]MONE(M)CAPARD'!W211","v":7.48},null,null,{"$f":"'[2]MONE(M)CAPARD'!AS211","v":9.1999999999999993},{"$f":"'[2]MONE(M)CAPARD'!AT211","v":"n.a."},{"$f":"'[2]MONE(M)CAPARD'!AU211","v":5},{"$f":"'[2]MONE(M)CAPARD'!AV211","v":6},{"$f":"'[2]MONE(M)CAPARD'!AW211","v":"n.a."},{"$f":"'[2]MONE(M)CAPARD'!AX211","v":8},{"$f":"'[2]MONE(M)CAPARD'!AY211","v":"n.a."},null,null,{"$f":"+'Datos_Regional (M)'!CF204","v":27.87577257438436},{"$f":"+'Datos_Regional (M)'!CG204","v":10.148382736914208},{"$f":"+'Datos_Regional (M)'!CH204","v":11.203495106865979},{"$f":"+'Datos_Regional (M)'!CI204","v":28.150625084411594},{"$f":"+'Datos_Regional (M)'!CJ204","v":33.737539178871415},{"$f":"+'Datos_Regional (M)'!CK204","v":16.1962027309017},{"$f":"+'Datos_Regional (M)'!CL204","v":15.195246216398939},null,null,null,null,null,null,null,null,null,null,null,null,null,null,null,null,null,null,null,null,null,null,null,null,null,null,null,null,{"$f":"'[2]EXT Comercio(M)'!C211","v":519.84183321},{"$f":"'[2]EXT Comercio(M)'!D211","v":287},{"$f":"'[2]EXT Comercio(M)'!E211","v":533.19999999999982},{"$f":"'[2]EXT Comercio(M)'!F211","v":153.88775569585482},{"$f":"'[2]EXT Comercio(M)'!G211","v":183.32629999999995},{"$f":"'[2]EXT Comercio(M)'!H211","v":574.88709999999992},{"$f":"'[2]EXT Comercio(M)'!I211","v":957.74},{"$f":"'[2]EXT Comercio(M)'!K211","v":2252.1429889058563},{"$f":"'[2]EXT Comercio(M)'!L211","v":3209.8829889058543},null,null,{"$f":"'[2]EXT Comercio(M)'!AG211","v":771.88330222000002},{"$f":"'[2]EXT Comercio(M)'!AH211","v":628.09000000000015},{"$f":"'[2]EXT Comercio(M)'!AI211","v":1078.7999999999995},{"$f":"'[2]EXT Comercio(M)'!AJ211","v":523.69304758456519},{"$f":"'[2]EXT Comercio(M)'!AK211","v":299.81404903999999},{"$f":"'[2]EXT Comercio(M)'!AL211","v":1116.2000000000003},{"$f":"'[2]EXT Comercio(M)'!AM211","v":1181.327949},{"$f":"'[2]EXT Comercio(M)'!AO211","v":4418.4803988445638},{"$f":"'[2]EXT Comercio(M)'!AP211","v":5599.8083478445624},null,null,{"$f":"'[2]EXT Comercio(M)'!$BS211","v":-2166.3374099387111},{"$f":"'[2]EXT Comercio(M)'!$BT211","v":-2389.9253589387117}]
[null,null,"Noviembre",{"$f":"'[2]REAL IPC(M)'!AD212","v":9.4247765712161744},{"$f":"'[2]REAL IPC(M)'!AE212","v":3.8510466057592092},{"$f":"'[2]REAL IPC(M)'!AF212","v":4.4010452482464473},{"$f":"'[2]REAL IPC(M)'!AG212","v":4.8765432098765462},{"$f":"'[2]REAL IPC(M)'!AH212","v":8.0937048961918592},{"$f":"'[2]REAL IPC(M)'!AI212","v":5.2331626169663901},{"$f":"'[2]REAL IPC(M)'!AJ212","v":2.0134228187919545},null,null,{"$f":"'[2]REAL IMAE(M)'!AG212","v":8.3857991225555004},{"$f":"'[2]REAL IMAE(M)'!AH212","v":5.7046900273333119},{"$f":"'[2]REAL IMAE(M)'!AI212","v":7.475077381725022},{"$f":"'[2]REAL IMAE(M)'!AJ212","v":10.865523010728952},{"$f":"'[2]REAL IMAE(M)'!AK212","v":"n.d."},{"$f":"'[2]REAL IMAE(M)'!AL212","v":"n.d."},{"$f":"'[2]REAL IMAE(M)'!AM212","v":"n.d."},null,null,{"$f":"'[2]EXT ITCER(M)'!C212","v":100.4765276744464},{"$f":"'[2]EXT ITCER(M)'!D212","v":95.203218563417948},{"$f":"'[2]EXT ITCER(M)'!E212","v":74.985667868720441},{"$f":"'[2]EXT ITCER(M)'!F212","v":93.65286676836233},{"$f":"'[2]EXT ITCER(M)'!G212","v":106.59012724727189},{"$f":"'[2]EXT ITCER(M)'!H212","v":99.003424482265174},{"$f":"'[2]EXT ITCER(M)'!I212","v":106.9530459042499},null,null,{"$f":"'[2]EXT TC(M)'!J212","v":4.8579419491384375},{"$f":"'[2]EXT TC(M)'!K212","v":0},{"$f":"'[2]EXT TC(M)'!L212","v":-2.2102907453289161E-2},{"$f":"'[2]EXT TC(M)'!M212","v":0},{"$f":"'[2]EXT TC(M)'!N212","v":4.888392328238286},{"$f":"'[2]EXT TC(M)'!O212","v":0.92446679257537701},{"$f":"'[2]EXT TC(M)'!P212","v":0},null,null,{"$f":"'[2]EXT RIN(M)'!C212","v":3122.5},{"$f":"'[2]EXT RIN(M)'!D212","v":2020.8},{"$f":"'[2]EXT RIN(M)'!E212","v":4053},{"$f":"'[2]EXT RIN(M)'!F212","v":2506.7516600872182},{"$f":"'[2]EXT RIN(M)'!G212","v":832.9},{"$f":"'[2]EXT RIN(M)'!H212","v":1760.9},{"$f":"'[2]EXT RIN(M)'!I212","v":1833.7288151269699},null,null,{"$f":"'[2]EXT RIN(M)'!P212","v":62.053801856516579},{"$f":"'[2]EXT RIN(M)'!Q212","v":93.518840751408703},{"$f":"'[2]EXT RIN(M)'!R212","v":104.21618642679569},{"$f":"'[2]EXT RIN(M)'!S212","v":118.73420027187332},{"$f":"'[2]EXT RIN(M)'!T212","v":87.126842281197199},{"$f":"'[2]EXT RIN(M)'!U212","v":38.124975778018012},{"$f":"'[2]EXT RIN(M)'!V212","v":218.85746297013347},null,null,{"$f":"+'[2]MONE(M)CAPARD'!AE212","v":1.6680165918327721},{"$f":"'[2]MONE(M)CAPARD'!AF212","v":0.85475036244738567},{"$f":"'[2]MONE(M)CAPARD'!AG212","v":0.42045053352655526},{"$f":"'[2]MONE(M)CAPARD'!AH212","v":3.0831077104178894},{"$f":"'[2]MONE(M)CAPARD'!AI212","v":3.6912705967432697},{"$f":"'[2]MONE(M)CAPARD'!AJ212","v":2.3726716188524528},{"$f":"'[2]MONE(M)CAPARD'!AK212","v":2.829605263157887},null,null,{"$f":"'[2]MONE(M)CAPARD'!AL212","v":3.8849999999999998},{"$f":"'[2]MONE(M)CAPARD'!AM212","v":4.74},{"$f":"'[2]MONE(M)CAPARD'!AN212","v":3.97},{"$f":"'[2]MONE(M)CAPARD'!AO212","v":3.68},{"$f":"'[2]MONE(M)CAPARD'!AP212","v":5.63},{"$f":"'[2]MONE(M)CAPARD'!AQ212","v":2.62},{"$f":"'[2]MONE(M)CAPARD'!AR212","v":4.9000000000000004},null,null,{"$f":"'[2]MONE(M)CAPARD'!J212","v":10.422889391381158},{"$f":"'[2]MONE(M)CAPARD'!K212","v":3.6939633771001317},{"$f":"'[2]MONE(M)CAPARD'!L212","v":8.121522856013712},{"$f":"'[2]MONE(M)CAPARD'!M212","v":10.978104767510299},{"$f":"'[2]MONE(M)CAPARD'!N212","v":8.8729230858562076},{"$f":"'[2]MONE(M)CAPARD'!O212","v":11.78985509367681},{"$f":"'[2]MONE(M)CAPARD'!P212","v":5.3782894736842017},null,null,{"$f":"'[2]MONE(M)CAPARD'!Q212","v":10.97},{"$f":"'[2]MONE(M)CAPARD'!R212","v":7.69},{"$f":"'[2]MONE(M)CAPARD'!S212","v":7.7},{"$f":"'[2]MONE(M)CAPARD'!T212","v":9.0299999999999994},{"$f":"'[2]MONE(M)CAPARD'!U212","v":10.8},{"$f":"'[2]MONE(M)CAPARD'!V212","v":8.08},{"$f":"'[2]MONE(M)CAPARD'!W212","v":7.5},null,null,{"$f":"'[2]MONE(M)CAPARD'!AS212","v":9.1999999999999993},{"$f":"'[2]MONE(M)CAPARD'!AT212","v":"n.a."},{"$f":"'[2]MONE(M)CAPARD'!AU212","v":5},{"$f":"'[2]MONE(M)CAPARD'!AV212","v":6},{"$f":"'[2]MONE(M)CAPARD'!AW212","v":"n.a."},{"$f":"'[2]MONE(M)CAPARD'!AX212","v":8},{"$f":"'[2]MONE(M)CAPARD'!AY212","v":"n.a."},null,null,{"$f":"+'Datos_Regional (M)'!CF205","v":29.131079154238691},{"$f":"+'Datos_Regional (M)'!CG205","v":9.7526554424262724},{"$f":"+'Datos_Regional (M)'!CH205","v":26.868164288951913},{"$f":"+'Datos_Regional (M)'!CI205","v":28.173131882731226},{"$f":"+'Datos_Regional (M)'!CJ205","v":32.451389352511463},{"$f":"+'Datos_Regional (M)'!CK205","v":10.630842132732067},{"$f":"+'Datos_Regional (M)'!CL205","v":14.487487270522292},null,null,null,null,null,null,null,null,null,null,null,null,null,null,null,null,null,null,null,null,null,null,null,null,null,null,null,null,{"$f":"'[2]EXT Comercio(M)'!C212","v":541.90482837000036},{"$f":"'[2]EXT Comercio(M)'!D212","v":308.94999999999982},{"$f":"'[2]EXT Comercio(M)'!E212","v":495.89999999999964},{"$f":"'[2]EXT Comercio(M)'!F212","v":183.09850630385154},{"$f":"'[2]EXT Comercio(M)'!G212","v":169.35520000000002},{"$f":"'[2]EXT Comercio(M)'!H212","v":587.01040000000012},{"$f":"'[2]EXT Comercio(M)'!I212","v":846.86699999999996},{"$f":"'[2]EXT Comercio(M)'!K212","v":2286.2189346738451},{"$f":"'[2]EXT Comercio(M)'!L212","v":3133.0859346738507},null,null,{"$f":"'[2]EXT Comercio(M)'!AG212","v":916.02043826000022},{"$f":"'[2]EXT Comercio(M)'!AH212","v":695.88000000000011},{"$f":"'[2]EXT Comercio(M)'!AI212","v":1082.2000000000007},{"$f":"'[2]EXT Comercio(M)'!AJ212","v":529.21041873303966},{"$f":"'[2]EXT Comercio(M)'!AK212","v":297.99820545},{"$f":"'[2]EXT Comercio(M)'!AL212","v":1083.2999999999997},{"$f":"'[2]EXT Comercio(M)'!AM212","v":958.30848700000024},{"$f":"'[2]EXT Comercio(M)'!AO212","v":4604.6090624430435},{"$f":"'[2]EXT Comercio(M)'!AP212","v":5562.9175494430456},null,null,{"$f":"'[2]EXT Comercio(M)'!$BS212","v":-2318.3901277691875},{"$f":"'[2]EXT Comercio(M)'!$BT212","v":-2429.8316147691876}]
[null,null,"Diciembre",{"$f":"'[2]REAL IPC(M)'!AD213","v":9.4337156343225015},{"$f":"'[2]REAL IPC(M)'!AE213","v":4.8859557716799795},{"$f":"'[2]REAL IPC(M)'!AF213","v":5.7925151348376422},{"$f":"'[2]REAL IPC(M)'!AG213","v":5.2858020897357241},{"$f":"'[2]REAL IPC(M)'!AH213","v":9.4479477818342801},{"$f":"'[2]REAL IPC(M)'!AI213","v":5.000190701399756},{"$f":"'[2]REAL IPC(M)'!AJ213","v":2.1967526265520423},null,null,{"$f":"'[2]REAL IMAE(M)'!AG213","v":8.269145464337246},{"$f":"'[2]REAL IMAE(M)'!AH213","v":2.2104388745749595},{"$f":"'[2]REAL IMAE(M)'!AI213","v":7.2141420802281395},{"$f":"'[2]REAL IMAE(M)'!AJ213","v":11.054509751092134},{"$f":"'[2]REAL IMAE(M)'!AK213","v":"n.d."},{"$f":"'[2]REAL IMAE(M)'!AL213","v":"n.d."},{"$f":"'[2]REAL IMAE(M)'!AM213","v":"n.d."},null,null,{"$f":"'[2]EXT ITCER(M)'!C213","v":100.0893163090753},{"$f":"'[2]EXT ITCER(M)'!D213","v":94.889256325625638},{"$f":"'[2]EXT ITCER(M)'!E213","v":74.39006336466349},{"$f":"'[2]EXT ITCER(M)'!F213","v":93.39328377599314},{"$f":"'[2]EXT ITCER(M)'!G213","v":105.8768142487619},{"$f":"'[2]EXT ITCER(M)'!H213","v":97.418269851125416},{"$f":"'[2]EXT ITCER(M)'!I213","v":106.9324608819975},null,null,{"$f":"'[2]EXT TC(M)'!J213","v":4.2586928919512541},{"$f":"'[2]EXT TC(M)'!K213","v":0},{"$f":"'[2]EXT TC(M)'!L213","v":-9.5891528134761678E-2},{"$f":"'[2]EXT TC(M)'!M213","v":0},{"$f":"'[2]EXT TC(M)'!N213","v":5.1374387634603575},{"$f":"'[2]EXT TC(M)'!O213","v":-0.1120077771437786},{"$f":"'[2]EXT TC(M)'!P213","v":0},null,null,{"$f":"'[2]EXT RIN(M)'!C213","v":3114.5},{"$f":"'[2]EXT RIN(M)'!D213","v":1905.8},{"$f":"'[2]EXT RIN(M)'!E213","v":4061.1},{"$f":"'[2]EXT RIN(M)'!F213","v":2613.6789902959476},{"$f":"'[2]EXT RIN(M)'!G213","v":859},{"$f":"'[2]EXT RIN(M)'!H213","v":1817},{"$f":"'[2]EXT RIN(M)'!I213","v":1312.0485185115999},null,null,{"$f":"'[2]EXT RIN(M)'!P213","v":59.27734185079909},{"$f":"'[2]EXT RIN(M)'!Q213","v":89.48846294713708},{"$f":"'[2]EXT RIN(M)'!R213","v":98.45756816100058},{"$f":"'[2]EXT RIN(M)'!S213","v":113.45385516613189},{"$f":"'[2]EXT RIN(M)'!T213","v":85.437807647985395},{"$f":"'[2]EXT RIN(M)'!U213","v":39.38010735930709},{"$f":"'[2]EXT RIN(M)'!V213","v":156.18387412042162},null,null,{"$f":"+'[2]MONE(M)CAPARD'!AE213","v":1.6597118677270279},{"$f":"'[2]MONE(M)CAPARD'!AF213","v":-2.5045661601972025E-2},{"$f":"'[2]MONE(M)CAPARD'!AG213","v":-0.90036155546884955},{"$f":"'[2]MONE(M)CAPARD'!AH213","v":2.6159252772912871},{"$f":"'[2]MONE(M)CAPARD'!AI213","v":2.8819627939659651},{"$f":"'[2]MONE(M)CAPARD'!AJ213","v":2.7426705412277439},{"$f":"'[2]MONE(M)CAPARD'!AK213","v":2.8701962616822545},null,null,{"$f":"'[2]MONE(M)CAPARD'!AL213","v":3.8899999999999997},{"$f":"'[2]MONE(M)CAPARD'!AM213","v":4.8600000000000003},{"$f":"'[2]MONE(M)CAPARD'!AN213","v":3.81},{"$f":"'[2]MONE(M)CAPARD'!AO213","v":3.71},{"$f":"'[2]MONE(M)CAPARD'!AP213","v":5.9},{"$f":"'[2]MONE(M)CAPARD'!AQ213","v":2.73},{"$f":"'[2]MONE(M)CAPARD'!AR213","v":5.13},null,null,{"$f":"'[2]MONE(M)CAPARD'!J213","v":10.295076156715975},{"$f":"'[2]MONE(M)CAPARD'!K213","v":2.5928873978686933},{"$f":"'[2]MONE(M)CAPARD'!L213","v":6.7183248796982724},{"$f":"'[2]MONE(M)CAPARD'!M213","v":10.74617629889082},{"$f":"'[2]MONE(M)CAPARD'!N213","v":7.2047343399309272},{"$f":"'[2]MONE(M)CAPARD'!O213","v":10.895036687250265},{"$f":"'[2]MONE(M)CAPARD'!P213","v":5.1696822429906666},null,null,{"$f":"'[2]MONE(M)CAPARD'!Q213","v":10.81},{"$f":"'[2]MONE(M)CAPARD'!R213","v":7.61},{"$f":"'[2]MONE(M)CAPARD'!S213","v":7.66},{"$f":"'[2]MONE(M)CAPARD'!T213","v":9.19},{"$f":"'[2]MONE(M)CAPARD'!U213","v":10.7},{"$f":"'[2]MONE(M)CAPARD'!V213","v":8.99},{"$f":"'[2]MONE(M)CAPARD'!W213","v":7.48},null,null,{"$f":"'[2]MONE(M)CAPARD'!AS213","v":8.9700000000000006},{"$f":"'[2]MONE(M)CAPARD'!AT213","v":"n.a."},{"$f":"'[2]MONE(M)CAPARD'!AU213","v":5},{"$f":"'[2]MONE(M)CAPARD'!AV213","v":6},{"$f":"'[2]MONE(M)CAPARD'!AW213","v":"n.a."},{"$f":"'[2]MONE(M)CAPARD'!AX213","v":8},{"$f":"'[2]MONE(M)CAPARD'!AY213","v":"n.a."},null,null,{"$f":"+'Datos_Regional (M)'!CF206","v":27.626521905358679},{"$f":"+'Datos_Regional (M)'!CG206","v":8.8660099510984089},{"$f":"+'Datos_Regional (M)'!CH206","v":21.384571284804444},{"$f":"+'Datos_Regional (M)'!CI206","v":29.982922047409843},{"$f":"+'Datos_Regional (M)'!CJ206","v":30.737097637432441},{"$f":"+'Datos_Regional (M)'!CK206","v":11.950283584187593},{"$f":"+'Datos_Regional (M)'!CL206","v":12.439940561628671},null,null,null,null,null,null,null,null,null,null,null,null,null,null,null,null,null,null,null,null,null,null,null,null,null,null,null,null,{"$f":"'[2]EXT Comercio(M)'!C213","v":455.22195405999992},{"$f":"'[2]EXT Comercio(M)'!D213","v":282.39999999999964},{"$f":"'[2]EXT Comercio(M)'!E213","v":484.19999999999982},{"$f":"'[2]EXT Comercio(M)'!F213","v":141.0390037610382},{"$f":"'[2]EXT Comercio(M)'!G213","v":173.95400000000006},{"$f":"'[2]EXT Comercio(M)'!H213","v":517.17219999999907},{"$f":"'[2]EXT Comercio(M)'!I213","v":605.58899999999994},{"$f":"'[2]EXT Comercio(M)'!K213","v":2053.9871578210441},{"$f":"'[2]EXT Comercio(M)'!L213","v":2659.5761578210368},null,null,{"$f":"'[2]EXT Comercio(M)'!AG213","v":746.02448145000028},{"$f":"'[2]EXT Comercio(M)'!AH213","v":670.6899999999996},{"$f":"'[2]EXT Comercio(M)'!AI213","v":965.79999999999927},{"$f":"'[2]EXT Comercio(M)'!AJ213","v":522.94093123000675},{"$f":"'[2]EXT Comercio(M)'!AK213","v":298.05023851000004},{"$f":"'[2]EXT Comercio(M)'!AL213","v":1010.3999999999996},{"$f":"'[2]EXT Comercio(M)'!AM213","v":974.75948100000005},{"$f":"'[2]EXT Comercio(M)'!AO213","v":4213.9056511900053},{"$f":"'[2]EXT Comercio(M)'!AP213","v":5188.665132189999},null,null,{"$f":"'[2]EXT Comercio(M)'!$BS213","v":-2159.9184933689721},{"$f":"'[2]EXT Comercio(M)'!$BT213","v":-2529.0889743689695}]
[null,2007,"Enero",{"$f":"'[2]REAL IPC(M)'!AD214","v":9.1933576822021337},{"$f":"'[2]REAL IPC(M)'!AE214","v":5.5395600598871404},{"$f":"'[2]REAL IPC(M)'!AF214","v":6.2244341423506944},{"$f":"'[2]REAL IPC(M)'!AG214","v":5.5725658297611718},{"$f":"'[2]REAL IPC(M)'!AH214","v":9.0829598863263783},{"$f":"'[2]REAL IPC(M)'!AI214","v":4.3643192488262876},{"$f":"'[2]REAL IPC(M)'!AJ214","v":2.2900763358778722},null,null,{"$f":"'[2]REAL IMAE(M)'!AG214","v":8.4591151137251384},{"$f":"'[2]REAL IMAE(M)'!AH214","v":5.7239478626134918E-2},{"$f":"'[2]REAL IMAE(M)'!AI214","v":6.9510034672611436},{"$f":"'[2]REAL IMAE(M)'!AJ214","v":11.374989627536293},{"$f":"'[2]REAL IMAE(M)'!AK214","v":2.6645670445100431},{"$f":"'[2]REAL IMAE(M)'!AL214","v":"n.d."},{"$f":"'[2]REAL IMAE(M)'!AM214","v":"n.d."},null,null,{"$f":"'[2]EXT ITCER(M)'!C214","v":99.494999505432062},{"$f":"'[2]EXT ITCER(M)'!D214","v":93.957670675005915},{"$f":"'[2]EXT ITCER(M)'!E214","v":74.262379546209218},{"$f":"'[2]EXT ITCER(M)'!F214","v":92.951363907983136},{"$f":"'[2]EXT ITCER(M)'!G214","v":105.56873448764679},{"$f":"'[2]EXT ITCER(M)'!H214","v":98.476211455406698},{"$f":"'[2]EXT ITCER(M)'!I214","v":106.9100600099691},null,null,{"$f":"'[2]EXT TC(M)'!J214","v":3.7935508144188694},{"$f":"'[2]EXT TC(M)'!K214","v":0},{"$f":"'[2]EXT TC(M)'!L214","v":0.75767329789554017},{"$f":"'[2]EXT TC(M)'!M214","v":0},{"$f":"'[2]EXT TC(M)'!N214","v":4.8890127887932486},{"$f":"'[2]EXT TC(M)'!O214","v":-2.4987776617319923},{"$f":"'[2]EXT TC(M)'!P214","v":0},null,null,{"$f":"'[2]EXT RIN(M)'!C214","v":3164.1},{"$f":"'[2]EXT RIN(M)'!D214","v":1920.4},{"$f":"'[2]EXT RIN(M)'!E214","v":4037.2},{"$f":"'[2]EXT RIN(M)'!F214","v":2578.6904217183292},{"$f":"'[2]EXT RIN(M)'!G214","v":845.1},{"$f":"'[2]EXT RIN(M)'!H214","v":1882.4},{"$f":"'[2]EXT RIN(M)'!I214","v":1346.5704241083499},null,null,{"$f":"'[2]EXT RIN(M)'!P214","v":58.589941852934004},{"$f":"'[2]EXT RIN(M)'!Q214","v":86.387608839210372},{"$f":"'[2]EXT RIN(M)'!R214","v":99.99958288541221},{"$f":"'[2]EXT RIN(M)'!S214","v":116.4249349317178},{"$f":"'[2]EXT RIN(M)'!T214","v":87.117223411094315},{"$f":"'[2]EXT RIN(M)'!U214","v":40.886762841375123},{"$f":"'[2]EXT RIN(M)'!V214","v":164.5758907225802},null,null,{"$f":"+'[2]MONE(M)CAPARD'!AE214","v":1.4255833421006614},{"$f":"'[2]MONE(M)CAPARD'!AF214","v":-0.71969227411611059},{"$f":"'[2]MONE(M)CAPARD'!AG214","v":-1.2938964122970278},{"$f":"'[2]MONE(M)CAPARD'!AH214","v":2.2614153132250618},{"$f":"'[2]MONE(M)CAPARD'!AI214","v":3.0784476574154129},{"$f":"'[2]MONE(M)CAPARD'!AJ214","v":3.4548979738726771},{"$f":"'[2]MONE(M)CAPARD'!AK214","v":2.7958955223880504},null,null,{"$f":"'[2]MONE(M)CAPARD'!AL214","v":4.1050000000000004},{"$f":"'[2]MONE(M)CAPARD'!AM214","v":4.78},{"$f":"'[2]MONE(M)CAPARD'!AN214","v":3.88},{"$f":"'[2]MONE(M)CAPARD'!AO214","v":3.72},{"$f":"'[2]MONE(M)CAPARD'!AP214","v":6.3},{"$f":"'[2]MONE(M)CAPARD'!AQ214","v":3},{"$f":"'[2]MONE(M)CAPARD'!AR214","v":5.15},null,null,{"$f":"'[2]MONE(M)CAPARD'!J214","v":10.244801108100022},{"$f":"'[2]MONE(M)CAPARD'!K214","v":2.2270700567437753},{"$f":"'[2]MONE(M)CAPARD'!L214","v":6.340881843270652},{"$f":"'[2]MONE(M)CAPARD'!M214","v":10.975800464037128},{"$f":"'[2]MONE(M)CAPARD'!N214","v":8.0785216109467424},{"$f":"'[2]MONE(M)CAPARD'!O214","v":12.126444020585168},{"$f":"'[2]MONE(M)CAPARD'!P214","v":5.0346268656716324},null,null,{"$f":"'[2]MONE(M)CAPARD'!Q214","v":10.72},{"$f":"'[2]MONE(M)CAPARD'!R214","v":7.89},{"$f":"'[2]MONE(M)CAPARD'!S214","v":7.62},{"$f":"'[2]MONE(M)CAPARD'!T214","v":9.61},{"$f":"'[2]MONE(M)CAPARD'!U214","v":10.8},{"$f":"'[2]MONE(M)CAPARD'!V214","v":7.99},{"$f":"'[2]MONE(M)CAPARD'!W214","v":7.44},null,null,{"$f":"'[2]MONE(M)CAPARD'!AS214","v":5.98},{"$f":"'[2]MONE(M)CAPARD'!AT214","v":"n.a."},{"$f":"'[2]MONE(M)CAPARD'!AU214","v":5},{"$f":"'[2]MONE(M)CAPARD'!AV214","v":6},{"$f":"'[2]MONE(M)CAPARD'!AW214","v":"n.a."},{"$f":"'[2]MONE(M)CAPARD'!AX214","v":8},{"$f":"'[2]MONE(M)CAPARD'!AY214","v":"n.a."},null,null,{"$f":"+'Datos_Regional (M)'!CF207","v":29.358918626217289},{"$f":"+'Datos_Regional (M)'!CG207","v":8.7510340740641457},{"$f":"+'Datos_Regional (M)'!CH207","v":21.412638655662452},{"$f":"+'Datos_Regional (M)'!CI207","v":29.18861974420366},{"$f":"+'Datos_Regional (M)'!CJ207","v":30.725134704000201},{"$f":"+'Datos_Regional (M)'!CK207","v":15.122931317549604},{"$f":"+'Datos_Regional (M)'!CL207","v":12.545041612789687},null,null,{"$f":"+AVERAGE(EH8:EH19)","v":515.63425034916679},{"$f":"+AVERAGE(EI8:EI19)","v":311.51},{"$f":"+AVERAGE(EJ8:EJ19)","v":508.0333333333333},{"$f":"+AVERAGE(EK8:EK19)","v":176.49736159452075},{"$f":"+AVERAGE(EL8:EL19)","v":169.50637449124142},{"$f":"+AVERAGE(EM8:EM19)","v":555.01356666666652},{"$f":"+AVERAGE(EN8:EN19)","v":733.35858333333329},{"$f":"+AVERAGE(EO8:EO19)","v":2236.1948864349292},{"$f":"+AVERAGE(EP8:EP19)","v":2969.5534697682619},null,null,{"$f":"+AVERAGE(ES8:ES19)","v":771.49413122833323},{"$f":"+AVERAGE(ET8:ET19)","v":655.63749999999993},{"$f":"+AVERAGE(EU8:EU19)","v":1006.7166666666667},{"$f":"+AVERAGE(EV8:EV19)","v":474.58373929043495},{"$f":"+AVERAGE(EW8:EW19)","v":288.1104484415045},{"$f":"+AVERAGE(EX8:EX19)","v":1020.7249999999999},{"$f":"+AVERAGE(EY8:EY19)","v":991.42098350000003},{"$f":"+AVERAGE(EZ8:EZ19)","v":4217.2674856269396},{"$f":"+AVERAGE(FA8:FA19)","v":5208.6884691269397},null,null,{"$f":"+AVERAGE(FD8:FD19)","v":-1981.0725991920108},{"$f":"+AVERAGE(FE8:FE19)","v":-2239.1349993586769},null,null,{"$f":"'[2]EXT Comercio(M)'!C214","v":495.59170906000008},{"$f":"'[2]EXT Comercio(M)'!D214","v":311.3},{"$f":"'[2]EXT Comercio(M)'!E214","v":544.09999999999991},{"$f":"'[2]EXT Comercio(M)'!F214","v":196.28832560870899},{"$f":"'[2]EXT Comercio(M)'!G214","v":177.35919389489658},{"$f":"'[2]EXT Comercio(M)'!H214","v":473.65129999999999},{"$f":"'[2]EXT Comercio(M)'!I214","v":670.36800000000005},{"$f":"'[2]EXT Comercio(M)'!K214","v":2198.2905285636057},{"$f":"'[2]EXT Comercio(M)'!L214","v":2868.6585285636056},null,null,{"$f":"'[2]EXT Comercio(M)'!AG214","v":816.19548536000036},{"$f":"'[2]EXT Comercio(M)'!AH214","v":650.82000000000005},{"$f":"'[2]EXT Comercio(M)'!AI214","v":1093.2},{"$f":"'[2]EXT Comercio(M)'!AJ214","v":469.90969273411918},{"$f":"'[2]EXT Comercio(M)'!AK214","v":279.52471950805352},{"$f":"'[2]EXT Comercio(M)'!AL214","v":899.30000000000007},{"$f":"'[2]EXT Comercio(M)'!AM214","v":1087.5959580000001},{"$f":"'[2]EXT Comercio(M)'!AO214","v":4208.9498976021732},{"$f":"'[2]EXT Comercio(M)'!AP214","v":5296.5458556021731},null,null,{"$f":"'[2]EXT Comercio(M)'!$BS214","v":-2010.6593690385675},{"$f":"'[2]EXT Comercio(M)'!$BT214","v":-2427.8873270385675}]
[null,null,"Febrero",{"$f":"'[2]REAL IPC(M)'!AD215","v":8.6173790521659583},{"$f":"'[2]REAL IPC(M)'!AE215","v":4.7902819161127406},{"$f":"'[2]REAL IPC(M)'!AF215","v":6.6216584833606262},{"$f":"'[2]REAL IPC(M)'!AG215","v":5.8000000000000078},{"$f":"'[2]REAL IPC(M)'!AH215","v":8.8146551724138007},{"$f":"'[2]REAL IPC(M)'!AI215","v":4.8095363441507111},{"$f":"'[2]REAL IPC(M)'!AJ215","v":2.7724665391969316},null,null,{"$f":"'[2]REAL IMAE(M)'!AG215","v":8.4462572147852928},{"$f":"'[2]REAL IMAE(M)'!AH215","v":-1.0280783097566315},{"$f":"'[2]REAL IMAE(M)'!AI215","v":6.7878198369391685},{"$f":"'[2]REAL IMAE(M)'!AJ215","v":10.53560769868192},{"$f":"'[2]REAL IMAE(M)'!AK215","v":3.0548570751914066},{"$f":"'[2]REAL IMAE(M)'!AL215","v":"n.d."},{"$f":"'[2]REAL IMAE(M)'!AM215","v":"n.d."},null,null,{"$f":"'[2]EXT ITCER(M)'!C215","v":99.728893352735042},{"$f":"'[2]EXT ITCER(M)'!D215","v":94.528375201704122},{"$f":"'[2]EXT ITCER(M)'!E215","v":74.45620540655888},{"$f":"'[2]EXT ITCER(M)'!F215","v":92.464024804840463},{"$f":"'[2]EXT ITCER(M)'!G215","v":105.24954095439649},{"$f":"'[2]EXT ITCER(M)'!H215","v":97.564103393725887},{"$f":"'[2]EXT ITCER(M)'!I215","v":107.0251839236619},null,null,{"$f":"'[2]EXT TC(M)'!J215","v":3.3894977331953062},{"$f":"'[2]EXT TC(M)'!K215","v":0},{"$f":"'[2]EXT TC(M)'!L215","v":1.1495009178899693},{"$f":"'[2]EXT TC(M)'!M215","v":0},{"$f":"'[2]EXT TC(M)'!N215","v":4.8466115893465753},{"$f":"'[2]EXT TC(M)'!O215","v":-2.375803615060688},{"$f":"'[2]EXT TC(M)'!P215","v":0},null,null,{"$f":"'[2]EXT RIN(M)'!C215","v":3239.3},{"$f":"'[2]EXT RIN(M)'!D215","v":1912.7},{"$f":"'[2]EXT RIN(M)'!E215","v":4054.6},{"$f":"'[2]EXT RIN(M)'!F215","v":2648.2001819699285},{"$f":"'[2]EXT RIN(M)'!G215","v":819.7},{"$f":"'[2]EXT RIN(M)'!H215","v":1927.4},{"$f":"'[2]EXT RIN(M)'!I215","v":1270.3506655722399},null,null,{"$f":"'[2]EXT RIN(M)'!P215","v":58.581444258236395},{"$f":"'[2]EXT RIN(M)'!Q215","v":85.658024433159923},{"$f":"'[2]EXT RIN(M)'!R215","v":102.20812650892637},{"$f":"'[2]EXT RIN(M)'!S215","v":114.86508389258768},{"$f":"'[2]EXT RIN(M)'!T215","v":82.259905433024528},{"$f":"'[2]EXT RIN(M)'!U215","v":41.809736099415645},{"$f":"'[2]EXT RIN(M)'!V215","v":151.61416203992763},null,null,{"$f":"+'[2]MONE(M)CAPARD'!AE215","v":1.0427621783159349},{"$f":"'[2]MONE(M)CAPARD'!AF215","v":8.5616797900287075E-2},{"$f":"'[2]MONE(M)CAPARD'!AG215","v":-1.5959782539175069},{"$f":"'[2]MONE(M)CAPARD'!AH215","v":1.918714555765588},{"$f":"'[2]MONE(M)CAPARD'!AI215","v":3.3871899489228618},{"$f":"'[2]MONE(M)CAPARD'!AJ215","v":3.1871753013777324},{"$f":"'[2]MONE(M)CAPARD'!AK215","v":2.0604093023255898},null,null,{"$f":"'[2]MONE(M)CAPARD'!AL215","v":4.1400000000000006},{"$f":"'[2]MONE(M)CAPARD'!AM215","v":4.88},{"$f":"'[2]MONE(M)CAPARD'!AN215","v":3.7},{"$f":"'[2]MONE(M)CAPARD'!AO215","v":3.74},{"$f":"'[2]MONE(M)CAPARD'!AP215","v":6.5},{"$f":"'[2]MONE(M)CAPARD'!AQ215","v":2.64},{"$f":"'[2]MONE(M)CAPARD'!AR215","v":4.8899999999999997},null,null,{"$f":"'[2]MONE(M)CAPARD'!J215","v":9.8627135374800954},{"$f":"'[2]MONE(M)CAPARD'!K215","v":2.8816776027996749},{"$f":"'[2]MONE(M)CAPARD'!L215","v":5.9634614646626014},{"$f":"'[2]MONE(M)CAPARD'!M215","v":10.586011342155002},{"$f":"'[2]MONE(M)CAPARD'!N215","v":8.6866265259878901},{"$f":"'[2]MONE(M)CAPARD'!O215","v":12.193989308266366},{"$f":"'[2]MONE(M)CAPARD'!P215","v":4.6752302393357201},null,null,{"$f":"'[2]MONE(M)CAPARD'!Q215","v":10.48},{"$f":"'[2]MONE(M)CAPARD'!R215","v":7.81},{"$f":"'[2]MONE(M)CAPARD'!S215","v":7.68},{"$f":"'[2]MONE(M)CAPARD'!T215","v":9.56},{"$f":"'[2]MONE(M)CAPARD'!U215","v":10.7},{"$f":"'[2]MONE(M)CAPARD'!V215","v":7.97},{"$f":"'[2]MONE(M)CAPARD'!W215","v":7.5773159725486519},null,null,{"$f":"'[2]MONE(M)CAPARD'!AS215","v":5.98},{"$f":"'[2]MONE(M)CAPARD'!AT215","v":"n.a."},{"$f":"'[2]MONE(M)CAPARD'!AU215","v":5},{"$f":"'[2]MONE(M)CAPARD'!AV215","v":6},{"$f":"'[2]MONE(M)CAPARD'!AW215","v":"n.a."},{"$f":"'[2]MONE(M)CAPARD'!AX215","v":8},{"$f":"'[2]MONE(M)CAPARD'!AY215","v":"n.a."},null,null,{"$f":"+'Datos_Regional (M)'!CF208","v":30.88127372572178},{"$f":"+'Datos_Regional (M)'!CG208","v":7.7820471013881898},{"$f":"+'Datos_Regional (M)'!CH208","v":20.819311494565707},{"$f":"+'Datos_Regional (M)'!CI208","v":30.183824428992324},{"$f":"+'Datos_Regional (M)'!CJ208","v":29.263086504986614},{"$f":"+'Datos_Regional (M)'!CK208","v":16.18320684115535},{"$f":"+'Datos_Regional (M)'!CL208","v":13.170981854696183},null,null,519.43195452500004,312.3725,519.22499999999991,177.42515361593192,171.74367400339688,561.09114999999997,735.1246666666666,2261.2894321443291,2996.4140988109957,null,null,778.87372237500006,659.0625,1017.3166666666667,486.8961380093096,290.76909341034184,1027.7749999999999,1003.9579524166667,4260.6931204613184,5264.651072877984,null,null,-1999.4036883169895,-2268.2369740669892,null,null,{"$f":"'[2]EXT Comercio(M)'!C215","v":536.60891937999986},{"$f":"'[2]EXT Comercio(M)'!D215","v":303.69},{"$f":"'[2]EXT Comercio(M)'!E215","v":562.60000000000014},{"$f":"'[2]EXT Comercio(M)'!F215","v":190.48451391464437},{"$f":"'[2]EXT Comercio(M)'!G215","v":178.65969414586553},{"$f":"'[2]EXT Comercio(M)'!H215","v":570.12380000000007},{"$f":"'[2]EXT Comercio(M)'!I215","v":703.40899999999999},{"$f":"'[2]EXT Comercio(M)'!K215","v":2342.1669274405099},{"$f":"'[2]EXT Comercio(M)'!L215","v":3045.5759274405109},null,null,{"$f":"'[2]EXT Comercio(M)'!AG215","v":738.8548629600001},{"$f":"'[2]EXT Comercio(M)'!AH215","v":621.58000000000004},{"$f":"'[2]EXT Comercio(M)'!AI215","v":952.09999999999991},{"$f":"'[2]EXT Comercio(M)'!AJ215","v":513.62704154316509},{"$f":"'[2]EXT Comercio(M)'!AK215","v":274.60040230604847},{"$f":"'[2]EXT Comercio(M)'!AL215","v":953.4},{"$f":"'[2]EXT Comercio(M)'!AM215","v":918.97025600000006},{"$f":"'[2]EXT Comercio(M)'!AO215","v":4054.162306809214},{"$f":"'[2]EXT Comercio(M)'!AP215","v":4973.1325628092145},null,null,{"$f":"'[2]EXT Comercio(M)'!$BS215","v":-1711.9953793687037},{"$f":"'[2]EXT Comercio(M)'!$BT215","v":-1927.5566353687036}]
[null,null,"Marzo",{"$f":"'[2]REAL IPC(M)'!AD216","v":9.2185163291480752},{"$f":"'[2]REAL IPC(M)'!AE216","v":5.0588100947813253},{"$f":"'[2]REAL IPC(M)'!AF216","v":7.024092297251439},{"$f":"'[2]REAL IPC(M)'!AG216","v":6.3106796116504711},{"$f":"'[2]REAL IPC(M)'!AH216","v":9.3137779680976376},{"$f":"'[2]REAL IPC(M)'!AI216","v":5.537606131189416},{"$f":"'[2]REAL IPC(M)'!AJ216","v":3.238095238095231},null,null,{"$f":"'[2]REAL IMAE(M)'!AG216","v":8.3343421334414352},{"$f":"'[2]REAL IMAE(M)'!AH216","v":-1.3019687455767401},{"$f":"'[2]REAL IMAE(M)'!AI216","v":6.7899034985537208},{"$f":"'[2]REAL IMAE(M)'!AJ216","v":10.351831632030652},{"$f":"'[2]REAL IMAE(M)'!AK216","v":3.6579036757741967},{"$f":"'[2]REAL IMAE(M)'!AL216","v":"n.d."},{"$f":"'[2]REAL IMAE(M)'!AM216","v":"n.d."},null,null,{"$f":"'[2]EXT ITCER(M)'!C216","v":99.475929182454678},{"$f":"'[2]EXT ITCER(M)'!D216","v":94.441552023353907},{"$f":"'[2]EXT ITCER(M)'!E216","v":74.179490207373661},{"$f":"'[2]EXT ITCER(M)'!F216","v":92.298054564602083},{"$f":"'[2]EXT ITCER(M)'!G216","v":104.8932874290051},{"$f":"'[2]EXT ITCER(M)'!H216","v":95.639483868724056},{"$f":"'[2]EXT ITCER(M)'!I216","v":106.6885216488141},null,null,{"$f":"'[2]EXT TC(M)'!J216","v":2.7691982094070386},{"$f":"'[2]EXT TC(M)'!K216","v":0},{"$f":"'[2]EXT TC(M)'!L216","v":0.97501931902412176},{"$f":"'[2]EXT TC(M)'!M216","v":0},{"$f":"'[2]EXT TC(M)'!N216","v":4.7929386398813616},{"$f":"'[2]EXT TC(M)'!O216","v":0.70697857259120978},{"$f":"'[2]EXT TC(M)'!P216","v":0},null,null,{"$f":"'[2]EXT RIN(M)'!C216","v":3491.6},{"$f":"'[2]EXT RIN(M)'!D216","v":1907.5},{"$f":"'[2]EXT RIN(M)'!E216","v":4249.5},{"$f":"'[2]EXT RIN(M)'!F216","v":2618.5479259358244},{"$f":"'[2]EXT RIN(M)'!G216","v":830.8},{"$f":"'[2]EXT RIN(M)'!H216","v":2046.5},{"$f":"'[2]EXT RIN(M)'!I216","v":1119.8790553072299},null,null,{"$f":"'[2]EXT RIN(M)'!P216","v":60.593250330847503},{"$f":"'[2]EXT RIN(M)'!Q216","v":83.448279784255021},{"$f":"'[2]EXT RIN(M)'!R216","v":103.83388690429918},{"$f":"'[2]EXT RIN(M)'!S216","v":112.26221755497947},{"$f":"'[2]EXT RIN(M)'!T216","v":84.262000809076341},{"$f":"'[2]EXT RIN(M)'!U216","v":43.857517838258417},{"$f":"'[2]EXT RIN(M)'!V216","v":131.64863007194953},null,null,{"$f":"+'[2]MONE(M)CAPARD'!AE216","v":-1.1156682677100964},{"$f":"'[2]MONE(M)CAPARD'!AF216","v":1.065108695651491E-2},{"$f":"'[2]MONE(M)CAPARD'!AG216","v":-1.9659987317691789},{"$f":"'[2]MONE(M)CAPARD'!AH216","v":1.3256621004566347},{"$f":"'[2]MONE(M)CAPARD'!AI216","v":2.7665792090159038},{"$f":"'[2]MONE(M)CAPARD'!AJ216","v":2.3805674213299213},{"$f":"'[2]MONE(M)CAPARD'!AK216","v":1.4547970479704868},null,null,{"$f":"'[2]MONE(M)CAPARD'!AL216","v":4.0650000000000004},{"$f":"'[2]MONE(M)CAPARD'!AM216","v":5.07},{"$f":"'[2]MONE(M)CAPARD'!AN216","v":3.7},{"$f":"'[2]MONE(M)CAPARD'!AO216","v":3.82},{"$f":"'[2]MONE(M)CAPARD'!AP216","v":6.4},{"$f":"'[2]MONE(M)CAPARD'!AQ216","v":2.92},{"$f":"'[2]MONE(M)CAPARD'!AR216","v":4.74},null,null,{"$f":"'[2]MONE(M)CAPARD'!J216","v":8.1776277237967783},{"$f":"'[2]MONE(M)CAPARD'!K216","v":2.5901586956521667},{"$f":"'[2]MONE(M)CAPARD'!L216","v":5.4809226379201048},{"$f":"'[2]MONE(M)CAPARD'!M216","v":9.9983561643835781},{"$f":"'[2]MONE(M)CAPARD'!N216","v":8.2308469468087146},{"$f":"'[2]MONE(M)CAPARD'!O216","v":10.586173287768766},{"$f":"'[2]MONE(M)CAPARD'!P216","v":4.0308739446710122},null,null,{"$f":"'[2]MONE(M)CAPARD'!Q216","v":10.46},{"$f":"'[2]MONE(M)CAPARD'!R216","v":7.78},{"$f":"'[2]MONE(M)CAPARD'!S216","v":7.66},{"$f":"'[2]MONE(M)CAPARD'!T216","v":9.56},{"$f":"'[2]MONE(M)CAPARD'!U216","v":10.5},{"$f":"'[2]MONE(M)CAPARD'!V216","v":7.38},{"$f":"'[2]MONE(M)CAPARD'!W216","v":7.3994927200222573},null,null,{"$f":"'[2]MONE(M)CAPARD'!AS216","v":5.98},{"$f":"'[2]MONE(M)CAPARD'!AT216","v":"n.a."},{"$f":"'[2]MONE(M)CAPARD'!AU216","v":5.25},{"$f":"'[2]MONE(M)CAPARD'!AV216","v":6},{"$f":"'[2]MONE(M)CAPARD'!AW216","v":"n.a."},{"$f":"'[2]MONE(M)CAPARD'!AX216","v":8},{"$f":"'[2]MONE(M)CAPARD'!AY216","v":"n.a."},null,null,{"$f":"+'Datos_Regional (M)'!CF209","v":30.308267238780708},{"$f":"+'Datos_Regional (M)'!CG209","v":8.5716971889342908},{"$f":"+'Datos_Regional (M)'!CH209","v":18.887427908567211},{"$f":"+'Datos_Regional (M)'!CI209","v":30.625405505892921},{"$f":"+'Datos_Regional (M)'!CJ209","v":28.142359592739673},{"$f":"+'Datos_Regional (M)'!CK209","v":15.998120714222019},{"$f":"+'Datos_Regional (M)'!CL209","v":13.407400263614221},null,null,522.22661038666672,314.68416666666667,528.29999999999995,179.29026528764416,175.58669301027189,567.84875833333319,743.15583333333325,2287.9364936845827,3031.092327017916,null,null,787.79554793750003,664.70666666666659,1028.6083333333333,500.20413863408641,291.74766543111508,1040.0749999999998,1036.6783065833336,4313.1373520027018,5349.8156585860343,null,null,-2025.2008583181193,-2318.7233315681187,null,null,{"$f":"'[2]EXT Comercio(M)'!C216","v":648.24897363000014},{"$f":"'[2]EXT Comercio(M)'!D216","v":365.99},{"$f":"'[2]EXT Comercio(M)'!E216","v":604.79999999999995},{"$f":"'[2]EXT Comercio(M)'!F216","v":229.13716127495093},{"$f":"'[2]EXT Comercio(M)'!G216","v":218.6719280824999},{"$f":"'[2]EXT Comercio(M)'!H216","v":677.09220000000005},{"$f":"'[2]EXT Comercio(M)'!I216","v":907.11599999999999},{"$f":"'[2]EXT Comercio(M)'!K216","v":2743.9402629874512},{"$f":"'[2]EXT Comercio(M)'!L216","v":3651.0562629874494},null,null,{"$f":"'[2]EXT Comercio(M)'!AG216","v":887.95517001999985},{"$f":"'[2]EXT Comercio(M)'!AH216","v":740.06},{"$f":"'[2]EXT Comercio(M)'!AI216","v":1118.6999999999998},{"$f":"'[2]EXT Comercio(M)'!AJ216","v":590.11551585399957},{"$f":"'[2]EXT Comercio(M)'!AK216","v":301.28833133927878},{"$f":"'[2]EXT Comercio(M)'!AL216","v":1175.5},{"$f":"'[2]EXT Comercio(M)'!AM216","v":1233.803449},{"$f":"'[2]EXT Comercio(M)'!AO216","v":4813.6190172132774},{"$f":"'[2]EXT Comercio(M)'!AP216","v":6047.4224662132783},null,null,{"$f":"'[2]EXT Comercio(M)'!$BS216","v":-2069.6787542258276},{"$f":"'[2]EXT Comercio(M)'!$BT216","v":-2396.366203225828}]
[null,null,"Abril",{"$f":"'[2]REAL IPC(M)'!AD217","v":9.7567789886713001},{"$f":"'[2]REAL IPC(M)'!AE217","v":4.4351179673321184},{"$f":"'[2]REAL IPC(M)'!AF217","v":6.4014539579967638},{"$f":"'[2]REAL IPC(M)'!AG217","v":6.3367531683765836},{"$f":"'[2]REAL IPC(M)'!AH217","v":8.8778634012456425},{"$f":"'[2]REAL IPC(M)'!AI217","v":5.7663579324768506},{"$f":"'[2]REAL IPC(M)'!AJ217","v":2.7306967984933999},null,null,{"$f":"'[2]REAL IMAE(M)'!AG217","v":8.3641331307165991},{"$f":"'[2]REAL IMAE(M)'!AH217","v":-0.29512110187593527},{"$f":"'[2]REAL IMAE(M)'!AI217","v":6.8950627507963684},{"$f":"'[2]REAL IMAE(M)'!AJ217","v":9.9643162569081962},{"$f":"'[2]REAL IMAE(M)'!AK217","v":4.3343805446929924},{"$f":"'[2]REAL IMAE(M)'!AL217","v":"n.d."},{"$f":"'[2]REAL IMAE(M)'!AM217","v":"n.d."},null,null,{"$f":"'[2]EXT ITCER(M)'!C217","v":98.825655478722581},{"$f":"'[2]EXT ITCER(M)'!D217","v":94.652920718800175},{"$f":"'[2]EXT ITCER(M)'!E217","v":73.924928887986724},{"$f":"'[2]EXT ITCER(M)'!F217","v":92.049612542410259},{"$f":"'[2]EXT ITCER(M)'!G217","v":104.29908944235891},{"$f":"'[2]EXT ITCER(M)'!H217","v":93.519876016693502},{"$f":"'[2]EXT ITCER(M)'!I217","v":106.3220762201825},null,null,{"$f":"'[2]EXT TC(M)'!J217","v":2.2098853750119463},{"$f":"'[2]EXT TC(M)'!K217","v":0},{"$f":"'[2]EXT TC(M)'!L217","v":0.90280863542327938},{"$f":"'[2]EXT TC(M)'!M217","v":0},{"$f":"'[2]EXT TC(M)'!N217","v":4.5915230032669916},{"$f":"'[2]EXT TC(M)'!O217","v":0.37936479756309621},{"$f":"'[2]EXT TC(M)'!P217","v":0},null,null,{"$f":"'[2]EXT RIN(M)'!C217","v":3559.2},{"$f":"'[2]EXT RIN(M)'!D217","v":2042.6},{"$f":"'[2]EXT RIN(M)'!E217","v":4263.2},{"$f":"'[2]EXT RIN(M)'!F217","v":2659.9587131822532},{"$f":"'[2]EXT RIN(M)'!G217","v":883.8},{"$f":"'[2]EXT RIN(M)'!H217","v":2173},{"$f":"'[2]EXT RIN(M)'!I217","v":1648.3656573262797},null,null,{"$f":"'[2]EXT RIN(M)'!P217","v":60.858854254874473},{"$f":"'[2]EXT RIN(M)'!Q217","v":86.493160917252652},{"$f":"'[2]EXT RIN(M)'!R217","v":106.96201453905118},{"$f":"'[2]EXT RIN(M)'!S217","v":114.49762876302418},{"$f":"'[2]EXT RIN(M)'!T217","v":90.835450237115239},{"$f":"'[2]EXT RIN(M)'!U217","v":45.102996971494179},{"$f":"'[2]EXT RIN(M)'!V217","v":191.8748698809533},null,null,{"$f":"+'[2]MONE(M)CAPARD'!AE217","v":-2.0561636460780583},{"$f":"'[2]MONE(M)CAPARD'!AF217","v":0.53131747583360989},{"$f":"'[2]MONE(M)CAPARD'!AG217","v":-1.401723287151257},{"$f":"'[2]MONE(M)CAPARD'!AH217","v":1.2255845629965949},{"$f":"'[2]MONE(M)CAPARD'!AI217","v":2.8836511272110248},{"$f":"'[2]MONE(M)CAPARD'!AJ217","v":1.9889519774011248},{"$f":"'[2]MONE(M)CAPARD'!AK217","v":2.0240329972502376},null,null,{"$f":"'[2]MONE(M)CAPARD'!AL217","v":4.125},{"$f":"'[2]MONE(M)CAPARD'!AM217","v":4.99},{"$f":"'[2]MONE(M)CAPARD'!AN217","v":3.72},{"$f":"'[2]MONE(M)CAPARD'!AO217","v":3.87},{"$f":"'[2]MONE(M)CAPARD'!AP217","v":6.3},{"$f":"'[2]MONE(M)CAPARD'!AQ217","v":2.52},{"$f":"'[2]MONE(M)CAPARD'!AR217","v":4.8099999999999996},null,null,{"$f":"'[2]MONE(M)CAPARD'!J217","v":7.3008893711756926},{"$f":"'[2]MONE(M)CAPARD'!K217","v":3.221983273596182},{"$f":"'[2]MONE(M)CAPARD'!L217","v":6.022987284114639},{"$f":"'[2]MONE(M)CAPARD'!M217","v":9.7833030646992043},{"$f":"'[2]MONE(M)CAPARD'!N217","v":8.2439758077884218},{"$f":"'[2]MONE(M)CAPARD'!O217","v":10.384816384180786},{"$f":"'[2]MONE(M)CAPARD'!P217","v":4.5988542638000727},null,null,{"$f":"'[2]MONE(M)CAPARD'!Q217","v":10.47},{"$f":"'[2]MONE(M)CAPARD'!R217","v":7.8},{"$f":"'[2]MONE(M)CAPARD'!S217","v":7.6700000000000008},{"$f":"'[2]MONE(M)CAPARD'!T217","v":9.56},{"$f":"'[2]MONE(M)CAPARD'!U217","v":11.3},{"$f":"'[2]MONE(M)CAPARD'!V217","v":8.77},{"$f":"'[2]MONE(M)CAPARD'!W217","v":7.4551318284424379},null,null,{"$f":"'[2]MONE(M)CAPARD'!AS217","v":5.98},{"$f":"'[2]MONE(M)CAPARD'!AT217","v":"n.a."},{"$f":"'[2]MONE(M)CAPARD'!AU217","v":5.5},{"$f":"'[2]MONE(M)CAPARD'!AV217","v":6},{"$f":"'[2]MONE(M)CAPARD'!AW217","v":"n.a."},{"$f":"'[2]MONE(M)CAPARD'!AX217","v":7},{"$f":"'[2]MONE(M)CAPARD'!AY217","v":"n.a."},null,null,{"$f":"+'Datos_Regional (M)'!CF210","v":30.64422951138188},{"$f":"+'Datos_Regional (M)'!CG210","v":8.0040097431943291},{"$f":"+'Datos_Regional (M)'!CH210","v":16.884218131623019},{"$f":"+'Datos_Regional (M)'!CI210","v":30.364243355315246},{"$f":"+'Datos_Regional (M)'!CJ210","v":27.41491833764147},{"$f":"+'Datos_Regional (M)'!CK210","v":17.072849164885163},{"$f":"+'Datos_Regional (M)'!CL210","v":8.2444632926105257},null,null,528.4153108116667,315.01750000000004,539.75,182.62679142722948,177.89325270658864,573.99677499999996,750.35158333333322,2317.6996299454845,3068.0512132788176,null,null,801.00440193833322,680.00166666666667,1033.7666666666667,510.78432791330488,296.61982885986055,1042.958333333333,1054.7682180000002,4365.1352253781652,5419.9034433781644,null,null,-2047.4355954326809,-2351.8522300993473,null,null,{"$f":"'[2]EXT Comercio(M)'!C217","v":524.46548925999991},{"$f":"'[2]EXT Comercio(M)'!D217","v":285.52},{"$f":"'[2]EXT Comercio(M)'!E217","v":531.70000000000005},{"$f":"'[2]EXT Comercio(M)'!F217","v":193.01350169135787},{"$f":"'[2]EXT Comercio(M)'!G217","v":172.9648163558013},{"$f":"'[2]EXT Comercio(M)'!H217","v":588.51959999999985},{"$f":"'[2]EXT Comercio(M)'!I217","v":689.95699999999999},{"$f":"'[2]EXT Comercio(M)'!K217","v":2296.1834073071595},{"$f":"'[2]EXT Comercio(M)'!L217","v":2986.1404073071608},null,null,{"$f":"'[2]EXT Comercio(M)'!AG217","v":790.23425914000006},{"$f":"'[2]EXT Comercio(M)'!AH217","v":686.19},{"$f":"'[2]EXT Comercio(M)'!AI217","v":944.00000000000011},{"$f":"'[2]EXT Comercio(M)'!AJ217","v":547.61970929399968},{"$f":"'[2]EXT Comercio(M)'!AK217","v":311.62125995494569},{"$f":"'[2]EXT Comercio(M)'!AL217","v":970.69999999999982},{"$f":"'[2]EXT Comercio(M)'!AM217","v":1001.0412759999999},{"$f":"'[2]EXT Comercio(M)'!AO217","v":4250.365228388946},{"$f":"'[2]EXT Comercio(M)'!AP217","v":5251.4065043889459},null,null,{"$f":"'[2]EXT Comercio(M)'!$BS217","v":-1954.1818210817855},{"$f":"'[2]EXT Comercio(M)'!$BT217","v":-2265.266097081786}]
[null,null,"Mayo ",{"$f":"'[2]REAL IPC(M)'!AD218","v":9.1692343858474015},{"$f":"'[2]REAL IPC(M)'!AE218","v":3.8744760394244961},{"$f":"'[2]REAL IPC(M)'!AF218","v":5.4652485116061138},{"$f":"'[2]REAL IPC(M)'!AG218","v":6.0551558752997563},{"$f":"'[2]REAL IPC(M)'!AH218","v":8.7361372672107223},{"$f":"'[2]REAL IPC(M)'!AI218","v":6.2831891269635012},{"$f":"'[2]REAL IPC(M)'!AJ218","v":3.3930254476908721},null,null,{"$f":"'[2]REAL IMAE(M)'!AG218","v":8.3349055912883401},{"$f":"'[2]REAL IMAE(M)'!AH218","v":1.9077521728896363},{"$f":"'[2]REAL IMAE(M)'!AI218","v":6.8652126659902795},{"$f":"'[2]REAL IMAE(M)'!AJ218","v":9.6690102675419514},{"$f":"'[2]REAL IMAE(M)'!AK218","v":4.903475492609906},{"$f":"'[2]REAL IMAE(M)'!AL218","v":"n.d."},{"$f":"'[2]REAL IMAE(M)'!AM218","v":"n.d."},null,null,{"$f":"'[2]EXT ITCER(M)'!C218","v":98.217971218425916},{"$f":"'[2]EXT ITCER(M)'!D218","v":95.438021490191005},{"$f":"'[2]EXT ITCER(M)'!E218","v":74.247884821265487},{"$f":"'[2]EXT ITCER(M)'!F218","v":92.064303819658122},{"$f":"'[2]EXT ITCER(M)'!G218","v":104.1615473318767},{"$f":"'[2]EXT ITCER(M)'!H218","v":92.664219601707416},{"$f":"'[2]EXT ITCER(M)'!I218","v":106.1775767137779},null,null,{"$f":"'[2]EXT TC(M)'!J218","v":1.8000144885724763},{"$f":"'[2]EXT TC(M)'!K218","v":0},{"$f":"'[2]EXT TC(M)'!L218","v":0.78588496217771375},{"$f":"'[2]EXT TC(M)'!M218","v":0},{"$f":"'[2]EXT TC(M)'!N218","v":4.3817950982119616},{"$f":"'[2]EXT TC(M)'!O218","v":-1.0854812649072823},{"$f":"'[2]EXT TC(M)'!P218","v":0},null,null,{"$f":"'[2]EXT RIN(M)'!C218","v":3588.1},{"$f":"'[2]EXT RIN(M)'!D218","v":2163.8000000000002},{"$f":"'[2]EXT RIN(M)'!E218","v":4253.2},{"$f":"'[2]EXT RIN(M)'!F218","v":2639.7673840725906},{"$f":"'[2]EXT RIN(M)'!G218","v":929.3},{"$f":"'[2]EXT RIN(M)'!H218","v":2217.8000000000002},{"$f":"'[2]EXT RIN(M)'!I218","v":1682.1831294799003},null,null,{"$f":"'[2]EXT RIN(M)'!P218","v":60.459505609416041},{"$f":"'[2]EXT RIN(M)'!Q218","v":94.704587600868166},{"$f":"'[2]EXT RIN(M)'!R218","v":106.56985564801336},{"$f":"'[2]EXT RIN(M)'!S218","v":118.18629043538711},{"$f":"'[2]EXT RIN(M)'!T218","v":93.430251384744082},{"$f":"'[2]EXT RIN(M)'!U218","v":45.261862491371105},{"$f":"'[2]EXT RIN(M)'!V218","v":195.90091428819244},null,null,{"$f":"+'[2]MONE(M)CAPARD'!AE218","v":-1.7580359490880604},{"$f":"'[2]MONE(M)CAPARD'!AF218","v":0.94876431453811483},{"$f":"'[2]MONE(M)CAPARD'!AG218","v":-0.52647532665227659},{"$f":"'[2]MONE(M)CAPARD'!AH218","v":1.4566421707179229},{"$f":"'[2]MONE(M)CAPARD'!AI218","v":3.2911544849814232},{"$f":"'[2]MONE(M)CAPARD'!AJ218","v":1.4930026903322691},{"$f":"'[2]MONE(M)CAPARD'!AK218","v":1.3608021877848535},null,null,{"$f":"'[2]MONE(M)CAPARD'!AL218","v":4.1150000000000002},{"$f":"'[2]MONE(M)CAPARD'!AM218","v":4.8600000000000003},{"$f":"'[2]MONE(M)CAPARD'!AN218","v":3.8},{"$f":"'[2]MONE(M)CAPARD'!AO218","v":3.92},{"$f":"'[2]MONE(M)CAPARD'!AP218","v":6.4},{"$f":"'[2]MONE(M)CAPARD'!AQ218","v":2.4900000000000002},{"$f":"'[2]MONE(M)CAPARD'!AR218","v":4.8},null,null,{"$f":"'[2]MONE(M)CAPARD'!J218","v":6.7058871076058901},{"$f":"'[2]MONE(M)CAPARD'!K218","v":3.7117144726796787},{"$f":"'[2]MONE(M)CAPARD'!L218","v":6.9167347456552202},{"$f":"'[2]MONE(M)CAPARD'!M218","v":10.037083097795366},{"$f":"'[2]MONE(M)CAPARD'!N218","v":8.8588932955101569},{"$f":"'[2]MONE(M)CAPARD'!O218","v":9.0482897173404098},{"$f":"'[2]MONE(M)CAPARD'!P218","v":3.8947834586216818},null,null,{"$f":"'[2]MONE(M)CAPARD'!Q218","v":10.06},{"$f":"'[2]MONE(M)CAPARD'!R218","v":7.73},{"$f":"'[2]MONE(M)CAPARD'!S218","v":7.68},{"$f":"'[2]MONE(M)CAPARD'!T218","v":9.59},{"$f":"'[2]MONE(M)CAPARD'!U218","v":11},{"$f":"'[2]MONE(M)CAPARD'!V218","v":8.07},{"$f":"'[2]MONE(M)CAPARD'!W218","v":7.4199599001960426},null,null,{"$f":"'[2]MONE(M)CAPARD'!AS218","v":5.98},{"$f":"'[2]MONE(M)CAPARD'!AT218","v":"n.a."},{"$f":"'[2]MONE(M)CAPARD'!AU218","v":5.5},{"$f":"'[2]MONE(M)CAPARD'!AV218","v":6},{"$f":"'[2]MONE(M)CAPARD'!AW218","v":"n.a."},{"$f":"'[2]MONE(M)CAPARD'!AX218","v":7},{"$f":"'[2]MONE(M)CAPARD'!AY218","v":"n.a."},null,null,{"$f":"+'Datos_Regional (M)'!CF211","v":30.547584691232956},{"$f":"+'Datos_Regional (M)'!CG211","v":8.3651038955635073},{"$f":"+'Datos_Regional (M)'!CH211","v":16.586310051452834},{"$f":"+'Datos_Regional (M)'!CI211","v":29.807444212715239},{"$f":"+'Datos_Regional (M)'!CJ211","v":27.127831939484981},{"$f":"+'Datos_Regional (M)'!CK211","v":18.199274136549469},{"$f":"+'Datos_Regional (M)'!CL211","v":14.547809901707609},null,null,529.95812006250014,315.11333333333334,556.01666666666665,184.70758088836442,179.32975600355948,581.47249999999985,755.72741666666661,2346.5979569544243,3102.3253736210904,null,null,808.28236884583328,688.43916666666667,1039.7916666666667,521.3602789855272,298.50198619892603,1053.383333333333,1071.5232660833333,4409.7588006969536,5481.2820667802871,null,null,-2063.1608437425298,-2378.9566931591962,null,null,{"$f":"'[2]EXT Comercio(M)'!C218","v":630.84920024000076},{"$f":"'[2]EXT Comercio(M)'!D218","v":339.86999999999989},{"$f":"'[2]EXT Comercio(M)'!E218","v":679},{"$f":"'[2]EXT Comercio(M)'!F218","v":251.87747989985348},{"$f":"'[2]EXT Comercio(M)'!G218","v":196.92243956365019},{"$f":"'[2]EXT Comercio(M)'!H218","v":638.70829999999978},{"$f":"'[2]EXT Comercio(M)'!I218","v":794.60500000000002},{"$f":"'[2]EXT Comercio(M)'!K218","v":2737.227419703504},{"$f":"'[2]EXT Comercio(M)'!L218","v":3531.8324197035017},null,null,{"$f":"'[2]EXT Comercio(M)'!AG218","v":904.56035060999989},{"$f":"'[2]EXT Comercio(M)'!AH218","v":867.20000000000027},{"$f":"'[2]EXT Comercio(M)'!AI218","v":1173.2000000000005},{"$f":"'[2]EXT Comercio(M)'!AJ218","v":607.23012614430081},{"$f":"'[2]EXT Comercio(M)'!AK218","v":338.83605597878579},{"$f":"'[2]EXT Comercio(M)'!AL218","v":1178.8},{"$f":"'[2]EXT Comercio(M)'!AM218","v":1195.2455549999997},{"$f":"'[2]EXT Comercio(M)'!AO218","v":5069.8265327330882},{"$f":"'[2]EXT Comercio(M)'!AP218","v":6265.0720877330859},null,null,{"$f":"'[2]EXT Comercio(M)'!$BS218","v":-2332.5991130295843},{"$f":"'[2]EXT Comercio(M)'!$BT218","v":-2733.2396680295842}]
[null,null,"Junio",{"$f":"'[2]REAL IPC(M)'!AD219","v":8.7507581935482559},{"$f":"'[2]REAL IPC(M)'!AE219","v":3.7078651685393225},{"$f":"'[2]REAL IPC(M)'!AF219","v":5.3132065434233535},{"$f":"'[2]REAL IPC(M)'!AG219","v":6.1566049013747657},{"$f":"'[2]REAL IPC(M)'!AH219","v":9.4567824001668317},{"$f":"'[2]REAL IPC(M)'!AI219","v":5.9079349869163158},{"$f":"'[2]REAL IPC(M)'!AJ219","v":3.668861712135481},null,null,{"$f":"'[2]REAL IMAE(M)'!AG219","v":8.1709784955443201},{"$f":"'[2]REAL IMAE(M)'!AH219","v":3.4159398152319769},{"$f":"'[2]REAL IMAE(M)'!AI219","v":6.6078382604703378},{"$f":"'[2]REAL IMAE(M)'!AJ219","v":8.9911296318367171},{"$f":"'[2]REAL IMAE(M)'!AK219","v":5.2052935954853261},{"$f":"'[2]REAL IMAE(M)'!AL219","v":"n.d."},{"$f":"'[2]REAL IMAE(M)'!AM219","v":"n.d."},null,null,{"$f":"'[2]EXT ITCER(M)'!C219","v":97.871294650942261},{"$f":"'[2]EXT ITCER(M)'!D219","v":95.026927604278882},{"$f":"'[2]EXT ITCER(M)'!E219","v":74.426908525117284},{"$f":"'[2]EXT ITCER(M)'!F219","v":91.913887220127805},{"$f":"'[2]EXT ITCER(M)'!G219","v":103.550641900079},{"$f":"'[2]EXT ITCER(M)'!H219","v":93.300455755333985},{"$f":"'[2]EXT ITCER(M)'!I219","v":105.9406982618294},null,null,{"$f":"'[2]EXT TC(M)'!J219","v":1.2308130380235491},{"$f":"'[2]EXT TC(M)'!K219","v":0},{"$f":"'[2]EXT TC(M)'!L219","v":0.89959006688382859},{"$f":"'[2]EXT TC(M)'!M219","v":0},{"$f":"'[2]EXT TC(M)'!N219","v":3.9901310511850419},{"$f":"'[2]EXT TC(M)'!O219","v":-1.0675961080658805},{"$f":"'[2]EXT TC(M)'!P219","v":0},null,null,{"$f":"'[2]EXT RIN(M)'!C219","v":3734.1},{"$f":"'[2]EXT RIN(M)'!D219","v":2142},{"$f":"'[2]EXT RIN(M)'!E219","v":4392.3999999999996},{"$f":"'[2]EXT RIN(M)'!F219","v":2684.0973766622042},{"$f":"'[2]EXT RIN(M)'!G219","v":945.8},{"$f":"'[2]EXT RIN(M)'!H219","v":2240.9},{"$f":"'[2]EXT RIN(M)'!I219","v":1743.0560142500499},null,null,{"$f":"'[2]EXT RIN(M)'!P219","v":61.50905703381747},{"$f":"'[2]EXT RIN(M)'!Q219","v":92.210772646203793},{"$f":"'[2]EXT RIN(M)'!R219","v":110.16852994960024},{"$f":"'[2]EXT RIN(M)'!S219","v":111.8507006936556},{"$f":"'[2]EXT RIN(M)'!T219","v":95.040007782596462},{"$f":"'[2]EXT RIN(M)'!U219","v":46.381768112941764},{"$f":"'[2]EXT RIN(M)'!V219","v":201.15482970564739},null,null,{"$f":"+'[2]MONE(M)CAPARD'!AE219","v":-1.3799979130971152},{"$f":"'[2]MONE(M)CAPARD'!AF219","v":1.2459371614301227},{"$f":"'[2]MONE(M)CAPARD'!AG219","v":-0.37336869356572516},{"$f":"'[2]MONE(M)CAPARD'!AH219","v":1.3220045045045137},{"$f":"'[2]MONE(M)CAPARD'!AI219","v":2.1310771509153388},{"$f":"'[2]MONE(M)CAPARD'!AJ219","v":1.4560429426503203},{"$f":"'[2]MONE(M)CAPARD'!AK219","v":1.0911070780399124},null,null,{"$f":"'[2]MONE(M)CAPARD'!AL219","v":4.1099999999999994},{"$f":"'[2]MONE(M)CAPARD'!AM219","v":5},{"$f":"'[2]MONE(M)CAPARD'!AN219","v":3.84},{"$f":"'[2]MONE(M)CAPARD'!AO219","v":3.93},{"$f":"'[2]MONE(M)CAPARD'!AP219","v":6.4},{"$f":"'[2]MONE(M)CAPARD'!AQ219","v":2.83},{"$f":"'[2]MONE(M)CAPARD'!AR219","v":4.8},null,null,{"$f":"'[2]MONE(M)CAPARD'!J219","v":7.0797132216302181},{"$f":"'[2]MONE(M)CAPARD'!K219","v":3.9169014084507072},{"$f":"'[2]MONE(M)CAPARD'!L219","v":7.080587232430358},{"$f":"'[2]MONE(M)CAPARD'!M219","v":9.8377252252252347},{"$f":"'[2]MONE(M)CAPARD'!N219","v":7.9264219938975353},{"$f":"'[2]MONE(M)CAPARD'!O219","v":8.7359507238307206},{"$f":"'[2]MONE(M)CAPARD'!P219","v":3.6378059929667423},null,null,{"$f":"'[2]MONE(M)CAPARD'!Q219","v":10.11},{"$f":"'[2]MONE(M)CAPARD'!R219","v":7.77},{"$f":"'[2]MONE(M)CAPARD'!S219","v":7.6700000000000008},{"$f":"'[2]MONE(M)CAPARD'!T219","v":9.52},{"$f":"'[2]MONE(M)CAPARD'!U219","v":11.2},{"$f":"'[2]MONE(M)CAPARD'!V219","v":8.17},{"$f":"'[2]MONE(M)CAPARD'!W219","v":7.44013377633995},null,null,{"$f":"'[2]MONE(M)CAPARD'!AS219","v":5.98},{"$f":"'[2]MONE(M)CAPARD'!AT219","v":"n.a."},{"$f":"'[2]MONE(M)CAPARD'!AU219","v":5.5},{"$f":"'[2]MONE(M)CAPARD'!AV219","v":6},{"$f":"'[2]MONE(M)CAPARD'!AW219","v":"n.a."},{"$f":"'[2]MONE(M)CAPARD'!AX219","v":7},{"$f":"'[2]MONE(M)CAPARD'!AY219","v":"n.a."},null,null,{"$f":"+'Datos_Regional (M)'!CF212","v":31.167661346131158},{"$f":"+'Datos_Regional (M)'!CG212","v":8.6634963409532482},{"$f":"+'Datos_Regional (M)'!CH212","v":12.992649198938079},{"$f":"+'Datos_Regional (M)'!CI212","v":31.75618058342744},{"$f":"+'Datos_Regional (M)'!CJ212","v":29.530484303184188},{"$f":"+'Datos_Regional (M)'!CK212","v":19.55947240448188},{"$f":"+'Datos_Regional (M)'!CL212","v":14.312721944849716},null,null,534.52838344250006,315.95750000000004,562.22499999999991,186.74370797768609,181.94890324244975,586.11114999999995,761.7890000000001,2367.5146446626363,3129.3036446626356,null,null,817.77460632583336,686.72916666666663,1051.9916666666668,526.26208314109851,301.10686521164399,1059.9083333333333,1081.8010054166664,4443.7727213452426,5525.5737267619088,null,null,-2076.2580766826068,-2396.2700820992727,null,null,{"$f":"'[2]EXT Comercio(M)'!C219","v":590.19015334000005},{"$f":"'[2]EXT Comercio(M)'!D219","v":340.63000000000011},{"$f":"'[2]EXT Comercio(M)'!E219","v":618.20000000000027},{"$f":"'[2]EXT Comercio(M)'!F219","v":219.75603150882716},{"$f":"'[2]EXT Comercio(M)'!G219","v":205.58846686668289},{"$f":"'[2]EXT Comercio(M)'!H219","v":651.6228000000001},{"$f":"'[2]EXT Comercio(M)'!I219","v":769.28499999999997},{"$f":"'[2]EXT Comercio(M)'!K219","v":2625.9874517155076},{"$f":"'[2]EXT Comercio(M)'!L219","v":3395.2724517155111},null,null,{"$f":"'[2]EXT Comercio(M)'!AG219","v":856.5880818600001},{"$f":"'[2]EXT Comercio(M)'!AH219","v":724.51000000000022},{"$f":"'[2]EXT Comercio(M)'!AI219","v":1118.1999999999998},{"$f":"'[2]EXT Comercio(M)'!AJ219","v":569.45176579729969},{"$f":"'[2]EXT Comercio(M)'!AK219","v":318.1603357926154},{"$f":"'[2]EXT Comercio(M)'!AL219","v":1073.9000000000001},{"$f":"'[2]EXT Comercio(M)'!AM219","v":1129.8137820000002},{"$f":"'[2]EXT Comercio(M)'!AO219","v":4660.8101834499175},{"$f":"'[2]EXT Comercio(M)'!AP219","v":5790.6239654499186},null,null,{"$f":"'[2]EXT Comercio(M)'!$BS219","v":-2034.8227317344026},{"$f":"'[2]EXT Comercio(M)'!$BT219","v":-2395.351513734402}]
[null,null,"Julio",{"$f":"'[2]REAL IPC(M)'!AD220","v":8.752412111860421},{"$f":"'[2]REAL IPC(M)'!AE220","v":3.1628010209743413},{"$f":"'[2]REAL IPC(M)'!AF220","v":5.5868140597074127},{"$f":"'[2]REAL IPC(M)'!AG220","v":6.3020214030915715},{"$f":"'[2]REAL IPC(M)'!AH220","v":9.7593860194980255},{"$f":"'[2]REAL IPC(M)'!AI220","v":5.238164815897151},{"$f":"'[2]REAL IPC(M)'!AJ220","v":4.1392285983066959},null,null,{"$f":"'[2]REAL IMAE(M)'!AG220","v":7.798524195420657},{"$f":"'[2]REAL IMAE(M)'!AH220","v":4.4439367283118596},{"$f":"'[2]REAL IMAE(M)'!AI220","v":6.1676703810207654},{"$f":"'[2]REAL IMAE(M)'!AJ220","v":8.2492995584841218},{"$f":"'[2]REAL IMAE(M)'!AK220","v":5.2840665419849353},{"$f":"'[2]REAL IMAE(M)'!AL220","v":"n.d."},{"$f":"'[2]REAL IMAE(M)'!AM220","v":"n.d."},null,null,{"$f":"'[2]EXT ITCER(M)'!C220","v":97.127746209944959},{"$f":"'[2]EXT ITCER(M)'!D220","v":94.520256003597069},{"$f":"'[2]EXT ITCER(M)'!E220","v":74.038446290138893},{"$f":"'[2]EXT ITCER(M)'!F220","v":91.459578580556979},{"$f":"'[2]EXT ITCER(M)'!G220","v":103.3074316828976},{"$f":"'[2]EXT ITCER(M)'!H220","v":94.886823946366931},{"$f":"'[2]EXT ITCER(M)'!I220","v":105.64998020225489},null,null,{"$f":"'[2]EXT TC(M)'!J220","v":0.64802798002691142},{"$f":"'[2]EXT TC(M)'!K220","v":0},{"$f":"'[2]EXT TC(M)'!L220","v":1.2678700627927713},{"$f":"'[2]EXT TC(M)'!M220","v":0},{"$f":"'[2]EXT TC(M)'!N220","v":4.1739659406690048},{"$f":"'[2]EXT TC(M)'!O220","v":0.72753584251276904},{"$f":"'[2]EXT TC(M)'!P220","v":0},null,null,{"$f":"'[2]EXT RIN(M)'!C220","v":3839.3},{"$f":"'[2]EXT RIN(M)'!D220","v":2445},{"$f":"'[2]EXT RIN(M)'!E220","v":4441.3},{"$f":"'[2]EXT RIN(M)'!F220","v":2635.3969294642525},{"$f":"'[2]EXT RIN(M)'!G220","v":963.7},{"$f":"'[2]EXT RIN(M)'!H220","v":2366.1999999999998},{"$f":"'[2]EXT RIN(M)'!I220","v":1882.8632412773002},null,null,{"$f":"'[2]EXT RIN(M)'!P220","v":62.978328120279038},{"$f":"'[2]EXT RIN(M)'!Q220","v":93.384375819977834},{"$f":"'[2]EXT RIN(M)'!R220","v":107.67828979781112},{"$f":"'[2]EXT RIN(M)'!S220","v":115.64135934709093},{"$f":"'[2]EXT RIN(M)'!T220","v":95.742344629020323},{"$f":"'[2]EXT RIN(M)'!U220","v":46.102089988931674},{"$f":"'[2]EXT RIN(M)'!V220","v":199.38214756868945},null,null,{"$f":"+'[2]MONE(M)CAPARD'!AE220","v":-1.3814977366341741},{"$f":"'[2]MONE(M)CAPARD'!AF220","v":1.5870051635112103},{"$f":"'[2]MONE(M)CAPARD'!AG220","v":-0.65047332455644657},{"$f":"'[2]MONE(M)CAPARD'!AH220","v":1.2586577181207919},{"$f":"'[2]MONE(M)CAPARD'!AI220","v":2.0295552366933287},{"$f":"'[2]MONE(M)CAPARD'!AJ220","v":1.9116973273168893},{"$f":"'[2]MONE(M)CAPARD'!AK220","v":0.64411020776872796},null,null,{"$f":"'[2]MONE(M)CAPARD'!AL220","v":4.1099999999999994},{"$f":"'[2]MONE(M)CAPARD'!AM220","v":4.8},{"$f":"'[2]MONE(M)CAPARD'!AN220","v":3.92},{"$f":"'[2]MONE(M)CAPARD'!AO220","v":3.92},{"$f":"'[2]MONE(M)CAPARD'!AP220","v":6.4},{"$f":"'[2]MONE(M)CAPARD'!AQ220","v":2.7},{"$f":"'[2]MONE(M)CAPARD'!AR220","v":4.8099999999999996},null,null,{"$f":"'[2]MONE(M)CAPARD'!J220","v":7.0045231551317606},{"$f":"'[2]MONE(M)CAPARD'!K220","v":4.4756432874354797},{"$f":"'[2]MONE(M)CAPARD'!L220","v":6.8031088959939883},{"$f":"'[2]MONE(M)CAPARD'!M220","v":9.5181431767337674},{"$f":"'[2]MONE(M)CAPARD'!N220","v":7.6293168729397296},{"$f":"'[2]MONE(M)CAPARD'!O220","v":9.5705157931273703},{"$f":"'[2]MONE(M)CAPARD'!P220","v":3.1904644858693381},null,null,{"$f":"'[2]MONE(M)CAPARD'!Q220","v":10.220000000000001},{"$f":"'[2]MONE(M)CAPARD'!R220","v":7.78},{"$f":"'[2]MONE(M)CAPARD'!S220","v":7.68},{"$f":"'[2]MONE(M)CAPARD'!T220","v":9.66},{"$f":"'[2]MONE(M)CAPARD'!U220","v":10.7},{"$f":"'[2]MONE(M)CAPARD'!V220","v":7.84},{"$f":"'[2]MONE(M)CAPARD'!W220","v":7.4617537025939562},null,null,{"$f":"'[2]MONE(M)CAPARD'!AS220","v":5.98},{"$f":"'[2]MONE(M)CAPARD'!AT220","v":"n.a."},{"$f":"'[2]MONE(M)CAPARD'!AU220","v":5.5},{"$f":"'[2]MONE(M)CAPARD'!AV220","v":6},{"$f":"'[2]MONE(M)CAPARD'!AW220","v":"n.a."},{"$f":"'[2]MONE(M)CAPARD'!AX220","v":7},{"$f":"'[2]MONE(M)CAPARD'!AY220","v":"n.a."},null,null,{"$f":"+'Datos_Regional (M)'!CF213","v":31.989280715423106},{"$f":"+'Datos_Regional (M)'!CG213","v":8.4338463788141471},{"$f":"+'Datos_Regional (M)'!CH213","v":14.328907494976928},{"$f":"+'Datos_Regional (M)'!CI213","v":33.483131070674773},{"$f":"+'Datos_Regional (M)'!CJ213","v":28.604722123904658},{"$f":"+'Datos_Regional (M)'!CK213","v":19.252458062975641},{"$f":"+'Datos_Regional (M)'!CL213","v":14.586299845149986},null,null,538.90527694166678,320.70416666666659,563.125,191.12359321196553,186.07047390772513,590.51859166666657,773.26150000000007,2390.4471023946912,3163.7086023946918,null,null,830.84374280000009,694.75416666666672,1066.1666666666667,541.73380737729838,306.45286574530911,1070.8916666666667,1108.6010100000001,4510.842915922608,5619.4439259226083,null,null,-2120.3958135279167,-2455.7353235279165,null,null,{"$f":"'[2]EXT Comercio(M)'!C220","v":528.52813279999964},{"$f":"'[2]EXT Comercio(M)'!D220","v":385.85999999999967},{"$f":"'[2]EXT Comercio(M)'!E220","v":579},{"$f":"'[2]EXT Comercio(M)'!F220","v":231.6439119262368},{"$f":"'[2]EXT Comercio(M)'!G220","v":205.22814798330501},{"$f":"'[2]EXT Comercio(M)'!H220","v":586.98639999999978},{"$f":"'[2]EXT Comercio(M)'!I220","v":770.83299999999997},{"$f":"'[2]EXT Comercio(M)'!K220","v":2517.2465927095436},{"$f":"'[2]EXT Comercio(M)'!L220","v":3288.0795927095423},null,null,{"$f":"'[2]EXT Comercio(M)'!AG220","v":927.03254086000027},{"$f":"'[2]EXT Comercio(M)'!AH220","v":806.89999999999964},{"$f":"'[2]EXT Comercio(M)'!AI220","v":1198.9999999999998},{"$f":"'[2]EXT Comercio(M)'!AJ220","v":664.62987935795172},{"$f":"'[2]EXT Comercio(M)'!AK220","v":353.82292543398108},{"$f":"'[2]EXT Comercio(M)'!AL220","v":1203.7999999999997},{"$f":"'[2]EXT Comercio(M)'!AM220","v":1355.0481339999999},{"$f":"'[2]EXT Comercio(M)'!AO220","v":5155.1853456519311},{"$f":"'[2]EXT Comercio(M)'!AP220","v":6510.2334796519281},null,null,{"$f":"'[2]EXT Comercio(M)'!$BS220","v":-2637.9387529423911},{"$f":"'[2]EXT Comercio(M)'!$BT220","v":-3222.1538869423912}]
[null,null,"Agosto",{"$f":"'[2]REAL IPC(M)'!AD221","v":8.5627158951680666},{"$f":"'[2]REAL IPC(M)'!AE221","v":3.5590762021644515},{"$f":"'[2]REAL IPC(M)'!AF221","v":6.2087622063869192},{"$f":"'[2]REAL IPC(M)'!AG221","v":6.6943127962085205},{"$f":"'[2]REAL IPC(M)'!AH221","v":9.8664458018428416},{"$f":"'[2]REAL IPC(M)'!AI221","v":4.3641534198629532},{"$f":"'[2]REAL IPC(M)'!AJ221","v":4.2293233082706738},null,null,{"$f":"'[2]REAL IMAE(M)'!AG221","v":7.1851771998429816},{"$f":"'[2]REAL IMAE(M)'!AH221","v":3.2853143287981759},{"$f":"'[2]REAL IMAE(M)'!AI221","v":5.699588091208919},{"$f":"'[2]REAL IMAE(M)'!AJ221","v":7.4278963434658003},{"$f":"'[2]REAL IMAE(M)'!AK221","v":5.2521421568888584},{"$f":"'[2]REAL IMAE(M)'!AL221","v":"n.d."},{"$f":"'[2]REAL IMAE(M)'!AM221","v":"n.d."},null,null,{"$f":"'[2]EXT ITCER(M)'!C221","v":96.477416278520025},{"$f":"'[2]EXT ITCER(M)'!D221","v":94.699480134094216},{"$f":"'[2]EXT ITCER(M)'!E221","v":73.230978868089011},{"$f":"'[2]EXT ITCER(M)'!F221","v":90.8273956479958},{"$f":"'[2]EXT ITCER(M)'!G221","v":103.8716859269183},{"$f":"'[2]EXT ITCER(M)'!H221","v":95.271230843686382},{"$f":"'[2]EXT ITCER(M)'!I221","v":105.4919593405928},null,null,{"$f":"'[2]EXT TC(M)'!J221","v":0.13437674888306969},{"$f":"'[2]EXT TC(M)'!K221","v":0},{"$f":"'[2]EXT TC(M)'!L221","v":1.0612860336183925},{"$f":"'[2]EXT TC(M)'!M221","v":0},{"$f":"'[2]EXT TC(M)'!N221","v":4.4611616515045576},{"$f":"'[2]EXT TC(M)'!O221","v":0.8245900031868264},{"$f":"'[2]EXT TC(M)'!P221","v":0},null,null,{"$f":"'[2]EXT RIN(M)'!C221","v":3902.8},{"$f":"'[2]EXT RIN(M)'!D221","v":2389},{"$f":"'[2]EXT RIN(M)'!E221","v":4263.1000000000004},{"$f":"'[2]EXT RIN(M)'!F221","v":2566.9299530724898},{"$f":"'[2]EXT RIN(M)'!G221","v":955.7},{"$f":"'[2]EXT RIN(M)'!H221","v":2360.6},{"$f":"'[2]EXT RIN(M)'!I221","v":1839.1799722968501},null,null,{"$f":"'[2]EXT RIN(M)'!P221","v":63.932936191032688},{"$f":"'[2]EXT RIN(M)'!Q221","v":93.351344528982096},{"$f":"'[2]EXT RIN(M)'!R221","v":105.57612904774093},{"$f":"'[2]EXT RIN(M)'!S221","v":116.32406800214838},{"$f":"'[2]EXT RIN(M)'!T221","v":96.077566684615235},{"$f":"'[2]EXT RIN(M)'!U221","v":48.772786526124492},{"$f":"'[2]EXT RIN(M)'!V221","v":194.7584285542319},null,null,{"$f":"+'[2]MONE(M)CAPARD'!AE221","v":-1.2091774642370505},{"$f":"'[2]MONE(M)CAPARD'!AF221","v":0.91824283559577891},{"$f":"'[2]MONE(M)CAPARD'!AG221","v":-1.2228390383301326},{"$f":"'[2]MONE(M)CAPARD'!AH221","v":0.94258745141589007},{"$f":"'[2]MONE(M)CAPARD'!AI221","v":2.2111418602783468},{"$f":"'[2]MONE(M)CAPARD'!AJ221","v":2.4010606113536732},{"$f":"'[2]MONE(M)CAPARD'!AK221","v":0.5571145175834108},null,null,{"$f":"'[2]MONE(M)CAPARD'!AL221","v":4.1150000000000002},{"$f":"'[2]MONE(M)CAPARD'!AM221","v":4.51},{"$f":"'[2]MONE(M)CAPARD'!AN221","v":4.03},{"$f":"'[2]MONE(M)CAPARD'!AO221","v":4.04},{"$f":"'[2]MONE(M)CAPARD'!AP221","v":6.52},{"$f":"'[2]MONE(M)CAPARD'!AQ221","v":2.57},{"$f":"'[2]MONE(M)CAPARD'!AR221","v":4.8099999999999996},null,null,{"$f":"'[2]MONE(M)CAPARD'!J221","v":6.795412259173486},{"$f":"'[2]MONE(M)CAPARD'!K221","v":3.8730780004309446},{"$f":"'[2]MONE(M)CAPARD'!L221","v":6.017618189724784},{"$f":"'[2]MONE(M)CAPARD'!M221","v":8.9467629094947334},{"$f":"'[2]MONE(M)CAPARD'!N221","v":7.6307093821721743},{"$f":"'[2]MONE(M)CAPARD'!O221","v":10.880983755458473},{"$f":"'[2]MONE(M)CAPARD'!P221","v":3.1012892374299064},null,null,{"$f":"'[2]MONE(M)CAPARD'!Q221","v":10.32},{"$f":"'[2]MONE(M)CAPARD'!R221","v":7.57},{"$f":"'[2]MONE(M)CAPARD'!S221","v":7.59},{"$f":"'[2]MONE(M)CAPARD'!T221","v":9.67},{"$f":"'[2]MONE(M)CAPARD'!U221","v":11},{"$f":"'[2]MONE(M)CAPARD'!V221","v":7.85},{"$f":"'[2]MONE(M)CAPARD'!W221","v":7.4617760942760931},null,null,{"$f":"'[2]MONE(M)CAPARD'!AS221","v":5.52},{"$f":"'[2]MONE(M)CAPARD'!AT221","v":"n.a."},{"$f":"'[2]MONE(M)CAPARD'!AU221","v":5.5},{"$f":"'[2]MONE(M)CAPARD'!AV221","v":6.25},{"$f":"'[2]MONE(M)CAPARD'!AW221","v":"n.a."},{"$f":"'[2]MONE(M)CAPARD'!AX221","v":7},{"$f":"'[2]MONE(M)CAPARD'!AY221","v":"n.a."},null,null,{"$f":"+'Datos_Regional (M)'!CF214","v":31.689265485894545},{"$f":"+'Datos_Regional (M)'!CG214","v":8.4192556350793488},{"$f":"+'Datos_Regional (M)'!CH214","v":13.816194883087164},{"$f":"+'Datos_Regional (M)'!CI214","v":32.463644222153199},{"$f":"+'Datos_Regional (M)'!CJ214","v":29.438814747696206},{"$f":"+'Datos_Regional (M)'!CK214","v":19.491880465378351},{"$f":"+'Datos_Regional (M)'!CL214","v":14.677106039466414},null,null,544.67066070750013,324.09333333333331,567.94166666666661,195.40383427206052,187.85735933120131,593.2041499999998,778.37116666666668,2413.1710043107619,3191.5421709774287,null,null,840.00735393833338,703.07499999999993,1082.8000000000002,556.85965429701048,310.65336051576395,1071.1249999999998,1120.8687069166667,4564.5203687511084,5685.3890756677747,null,null,-2151.3493644403466,-2493.8469046903465,null,null,{"$f":"'[2]EXT Comercio(M)'!C221","v":569.31227866000063},{"$f":"'[2]EXT Comercio(M)'!D221","v":349.22000000000025},{"$f":"'[2]EXT Comercio(M)'!E221","v":588.70000000000027},{"$f":"'[2]EXT Comercio(M)'!F221","v":213.57147640040876},{"$f":"'[2]EXT Comercio(M)'!G221","v":207.87902508171402},{"$f":"'[2]EXT Comercio(M)'!H221","v":628.57049999999981},{"$f":"'[2]EXT Comercio(M)'!I221","v":819.20399999999995},{"$f":"'[2]EXT Comercio(M)'!K221","v":2557.2532801421221},{"$f":"'[2]EXT Comercio(M)'!L221","v":3376.45728014212},null,null,{"$f":"'[2]EXT Comercio(M)'!AG221","v":934.23871310000004},{"$f":"'[2]EXT Comercio(M)'!AH221","v":705.22999999999956},{"$f":"'[2]EXT Comercio(M)'!AI221","v":1259.7},{"$f":"'[2]EXT Comercio(M)'!AJ221","v":678.34543872930044},{"$f":"'[2]EXT Comercio(M)'!AK221","v":361.48765638545871},{"$f":"'[2]EXT Comercio(M)'!AL221","v":1171.8000000000002},{"$f":"'[2]EXT Comercio(M)'!AM221","v":1305.1153130000002},{"$f":"'[2]EXT Comercio(M)'!AO221","v":5110.801808214761},{"$f":"'[2]EXT Comercio(M)'!AP221","v":6415.917121214763},null,null,{"$f":"'[2]EXT Comercio(M)'!$BS221","v":-2553.5485280726389},{"$f":"'[2]EXT Comercio(M)'!$BT221","v":-3039.4598410726394}]
[null,null,"Setiembre",{"$f":"'[2]REAL IPC(M)'!AD222","v":9.4300842523360817},{"$f":"'[2]REAL IPC(M)'!AE222","v":4.3085165755106649},{"$f":"'[2]REAL IPC(M)'!AF222","v":7.3316113649910601},{"$f":"'[2]REAL IPC(M)'!AG222","v":7.109004739336493},{"$f":"'[2]REAL IPC(M)'!AH222","v":11.55925155925155},{"$f":"'[2]REAL IPC(M)'!AI222","v":6.8126520681265443},{"$f":"'[2]REAL IPC(M)'!AJ222","v":5.1886792452830202},null,null,{"$f":"'[2]REAL IMAE(M)'!AG222","v":6.4347364319054243},{"$f":"'[2]REAL IMAE(M)'!AH222","v":0.1128944585448249},{"$f":"'[2]REAL IMAE(M)'!AI222","v":5.275053545248074},{"$f":"'[2]REAL IMAE(M)'!AJ222","v":6.5844855323553855},{"$f":"'[2]REAL IMAE(M)'!AK222","v":5.3864995800600539},{"$f":"'[2]REAL IMAE(M)'!AL222","v":"n.d."},{"$f":"'[2]REAL IMAE(M)'!AM222","v":"n.d."},null,null,{"$f":"'[2]EXT ITCER(M)'!C222","v":96.237704849591907},{"$f":"'[2]EXT ITCER(M)'!D222","v":94.448706784458778},{"$f":"'[2]EXT ITCER(M)'!E222","v":73.393665346053524},{"$f":"'[2]EXT ITCER(M)'!F222","v":90.859136690875772},{"$f":"'[2]EXT ITCER(M)'!G222","v":103.61746481097251},{"$f":"'[2]EXT ITCER(M)'!H222","v":95.679360066960598},{"$f":"'[2]EXT ITCER(M)'!I222","v":105.3689118834169},null,null,{"$f":"'[2]EXT TC(M)'!J222","v":-0.41118717116599374},{"$f":"'[2]EXT TC(M)'!K222","v":0},{"$f":"'[2]EXT TC(M)'!L222","v":1.2188673144508635},{"$f":"'[2]EXT TC(M)'!M222","v":0},{"$f":"'[2]EXT TC(M)'!N222","v":4.7677268430074253},{"$f":"'[2]EXT TC(M)'!O222","v":1.0825657445484649},{"$f":"'[2]EXT TC(M)'!P222","v":0},null,null,{"$f":"'[2]EXT RIN(M)'!C222","v":3885.9},{"$f":"'[2]EXT RIN(M)'!D222","v":2416.6},{"$f":"'[2]EXT RIN(M)'!E222","v":4274.6000000000004},{"$f":"'[2]EXT RIN(M)'!F222","v":2523.4002776074221},{"$f":"'[2]EXT RIN(M)'!G222","v":971.1},{"$f":"'[2]EXT RIN(M)'!H222","v":2357.8000000000002},{"$f":"'[2]EXT RIN(M)'!I222","v":1719.7764627567501},null,null,{"$f":"'[2]EXT RIN(M)'!P222","v":63.592305120123505},{"$f":"'[2]EXT RIN(M)'!Q222","v":93.90944806923325},{"$f":"'[2]EXT RIN(M)'!R222","v":105.50155217724948},{"$f":"'[2]EXT RIN(M)'!S222","v":115.00448000806696},{"$f":"'[2]EXT RIN(M)'!T222","v":99.166704074689278},{"$f":"'[2]EXT RIN(M)'!U222","v":47.017569586709087},{"$f":"'[2]EXT RIN(M)'!V222","v":179.82101142795003},null,null,{"$f":"+'[2]MONE(M)CAPARD'!AE222","v":-1.9922165529078826},{"$f":"'[2]MONE(M)CAPARD'!AF222","v":0.20274799357944884},{"$f":"'[2]MONE(M)CAPARD'!AG222","v":-2.24687893372825},{"$f":"'[2]MONE(M)CAPARD'!AH222","v":0.6357964601769911},{"$f":"'[2]MONE(M)CAPARD'!AI222","v":0.67385860513159712},{"$f":"'[2]MONE(M)CAPARD'!AJ222","v":0.10986332574029647},{"$f":"'[2]MONE(M)CAPARD'!AK222","v":-0.62618834080717589},null,null,{"$f":"'[2]MONE(M)CAPARD'!AL222","v":4.085},{"$f":"'[2]MONE(M)CAPARD'!AM222","v":4.5199999999999996},{"$f":"'[2]MONE(M)CAPARD'!AN222","v":4.03},{"$f":"'[2]MONE(M)CAPARD'!AO222","v":4.03},{"$f":"'[2]MONE(M)CAPARD'!AP222","v":6.6},{"$f":"'[2]MONE(M)CAPARD'!AQ222","v":2.74},{"$f":"'[2]MONE(M)CAPARD'!AR222","v":4.53},null,null,{"$f":"'[2]MONE(M)CAPARD'!J222","v":5.7661618290577303},{"$f":"'[2]MONE(M)CAPARD'!K222","v":3.5581787051899356},{"$f":"'[2]MONE(M)CAPARD'!L222","v":5.0948537578674564},{"$f":"'[2]MONE(M)CAPARD'!M222","v":8.5529646017699115},{"$f":"'[2]MONE(M)CAPARD'!N222","v":6.2146773156752175},{"$f":"'[2]MONE(M)CAPARD'!O222","v":7.3561958997721861},{"$f":"'[2]MONE(M)CAPARD'!P222","v":2.1408382809235991},null,null,{"$f":"'[2]MONE(M)CAPARD'!Q222","v":10.16},{"$f":"'[2]MONE(M)CAPARD'!R222","v":8.02},{"$f":"'[2]MONE(M)CAPARD'!S222","v":7.7},{"$f":"'[2]MONE(M)CAPARD'!T222","v":9.69},{"$f":"'[2]MONE(M)CAPARD'!U222","v":10.9},{"$f":"'[2]MONE(M)CAPARD'!V222","v":7.99},{"$f":"'[2]MONE(M)CAPARD'!W222","v":7.4405987577639756},null,null,{"$f":"'[2]MONE(M)CAPARD'!AS222","v":5.52},{"$f":"'[2]MONE(M)CAPARD'!AT222","v":"n.a."},{"$f":"'[2]MONE(M)CAPARD'!AU222","v":5.75},{"$f":"'[2]MONE(M)CAPARD'!AV222","v":6.25},{"$f":"'[2]MONE(M)CAPARD'!AW222","v":"n.a."},{"$f":"'[2]MONE(M)CAPARD'!AX222","v":7},{"$f":"'[2]MONE(M)CAPARD'!AY222","v":"n.a."},null,null,{"$f":"+'Datos_Regional (M)'!CF215","v":33.981181623606169},{"$f":"+'Datos_Regional (M)'!CG215","v":8.8158710874133739},{"$f":"+'Datos_Regional (M)'!CH215","v":12.266744086755853},{"$f":"+'Datos_Regional (M)'!CI215","v":33.910260447110254},{"$f":"+'Datos_Regional (M)'!CJ215","v":28.645484802856135},{"$f":"+'Datos_Regional (M)'!CK215","v":20.652440909919068},{"$f":"+'Datos_Regional (M)'!CL215","v":13.8769944163476},null,null,545.64461154000014,325.05166666666656,562.5333333333333,200.46630550783888,189.79740158079701,585.63991666666641,782.52441666666664,2409.1332352953027,3191.6576519619689,null,null,848.34809988083327,710.82499999999993,1087.7166666666665,565.4558648346873,312.89567383192417,1084.1249999999998,1134.8115165000002,4609.3663052141119,5744.1778217141109,null,null,-2200.2330699188092,-2552.520169752142,null,null,{"$f":"'[2]EXT Comercio(M)'!C222","v":506.97186646999944},{"$f":"'[2]EXT Comercio(M)'!D222","v":340.1899999999996},{"$f":"'[2]EXT Comercio(M)'!E222","v":528.99999999999955},{"$f":"'[2]EXT Comercio(M)'!F222","v":201.79799810833379},{"$f":"'[2]EXT Comercio(M)'!G222","v":187.65960699514869},{"$f":"'[2]EXT Comercio(M)'!H222","v":533.33439999999973},{"$f":"'[2]EXT Comercio(M)'!I222","v":855.31999999999994},{"$f":"'[2]EXT Comercio(M)'!K222","v":2298.9538715734852},{"$f":"'[2]EXT Comercio(M)'!L222","v":3154.2738715734849},null,null,{"$f":"'[2]EXT Comercio(M)'!AG222","v":890.5895127299998},{"$f":"'[2]EXT Comercio(M)'!AH222","v":732.75},{"$f":"'[2]EXT Comercio(M)'!AI222","v":1067.7},{"$f":"'[2]EXT Comercio(M)'!AJ222","v":568.69681101449987},{"$f":"'[2]EXT Comercio(M)'!AK222","v":319.54390628392258},{"$f":"'[2]EXT Comercio(M)'!AL222","v":1172.4000000000001},{"$f":"'[2]EXT Comercio(M)'!AM222","v":1276.7085580000003},{"$f":"'[2]EXT Comercio(M)'!AO222","v":4751.680230028418},{"$f":"'[2]EXT Comercio(M)'!AP222","v":6028.3887880284165},null,null,{"$f":"'[2]EXT Comercio(M)'!$BS222","v":-2452.7263584549401},{"$f":"'[2]EXT Comercio(M)'!$BT222","v":-2874.1149164549388}]
[null,null,"Octubre",{"$f":"'[2]REAL IPC(M)'!AD223","v":9.8439825044703593},{"$f":"'[2]REAL IPC(M)'!AE223","v":5.4571940833706893},{"$f":"'[2]REAL IPC(M)'!AF223","v":7.7172760996290402},{"$f":"'[2]REAL IPC(M)'!AG223","v":8.2840236686390547},{"$f":"'[2]REAL IPC(M)'!AH223","v":13.349891338093766},{"$f":"'[2]REAL IPC(M)'!AI223","v":7.2107240185607866},{"$f":"'[2]REAL IPC(M)'!AJ223","v":5.45625587958608},null,null,{"$f":"'[2]REAL IMAE(M)'!AG223","v":5.9353122572893211},{"$f":"'[2]REAL IMAE(M)'!AH223","v":-0.19471757651858407},{"$f":"'[2]REAL IMAE(M)'!AI223","v":4.9019115340892965},{"$f":"'[2]REAL IMAE(M)'!AJ223","v":5.8401474941404521},{"$f":"'[2]REAL IMAE(M)'!AK223","v":5.8278244237598216},{"$f":"'[2]REAL IMAE(M)'!AL223","v":"n.d."},{"$f":"'[2]REAL IMAE(M)'!AM223","v":"n.d."},null,null,{"$f":"'[2]EXT ITCER(M)'!C223","v":96.027101473569545},{"$f":"'[2]EXT ITCER(M)'!D223","v":94.081768311591745},{"$f":"'[2]EXT ITCER(M)'!E223","v":73.569195432026859},{"$f":"'[2]EXT ITCER(M)'!F223","v":90.043613578872595},{"$f":"'[2]EXT ITCER(M)'!G223","v":102.4942701726626},{"$f":"'[2]EXT ITCER(M)'!H223","v":95.946446572098949},{"$f":"'[2]EXT ITCER(M)'!I223","v":105.1280776700589},null,null,{"$f":"'[2]EXT TC(M)'!J223","v":-0.27729724546007056},{"$f":"'[2]EXT TC(M)'!K223","v":0},{"$f":"'[2]EXT TC(M)'!L223","v":1.3927752414213912},{"$f":"'[2]EXT TC(M)'!M223","v":0},{"$f":"'[2]EXT TC(M)'!N223","v":4.9643281807372253},{"$f":"'[2]EXT TC(M)'!O223","v":-5.5566011525464129E-2},{"$f":"'[2]EXT TC(M)'!P223","v":0},null,null,{"$f":"'[2]EXT RIN(M)'!C223","v":3830.9},{"$f":"'[2]EXT RIN(M)'!D223","v":2400.5},{"$f":"'[2]EXT RIN(M)'!E223","v":4288},{"$f":"'[2]EXT RIN(M)'!F223","v":2432.7214627310786},{"$f":"'[2]EXT RIN(M)'!G223","v":937},{"$f":"'[2]EXT RIN(M)'!H223","v":2349.4},{"$f":"'[2]EXT RIN(M)'!I223","v":1778.0790366305998},null,null,{"$f":"'[2]EXT RIN(M)'!P223","v":63.03120920626025},{"$f":"'[2]EXT RIN(M)'!Q223","v":91.211372904997688},{"$f":"'[2]EXT RIN(M)'!R223","v":108.84084445848478},{"$f":"'[2]EXT RIN(M)'!S223","v":114.72045926651218},{"$f":"'[2]EXT RIN(M)'!T223","v":102.35668617667295},{"$f":"'[2]EXT RIN(M)'!U223","v":46.033940308528813},{"$f":"'[2]EXT RIN(M)'!V223","v":181.85096832776759},null,null,{"$f":"+'[2]MONE(M)CAPARD'!AE223","v":-2.5891108822047824},{"$f":"'[2]MONE(M)CAPARD'!AF223","v":-0.9455913292955086},{"$f":"'[2]MONE(M)CAPARD'!AG223","v":-2.6061521431646262},{"$f":"'[2]MONE(M)CAPARD'!AH223","v":-0.38234972677595752},{"$f":"'[2]MONE(M)CAPARD'!AI223","v":-0.82319960390700753},{"$f":"'[2]MONE(M)CAPARD'!AJ223","v":-0.14991412475953575},{"$f":"'[2]MONE(M)CAPARD'!AK223","v":-0.83091882247993143},null,null,{"$f":"'[2]MONE(M)CAPARD'!AL223","v":4.0750000000000002},{"$f":"'[2]MONE(M)CAPARD'!AM223","v":4.46},{"$f":"'[2]MONE(M)CAPARD'!AN223","v":3.92},{"$f":"'[2]MONE(M)CAPARD'!AO223","v":4.01},{"$f":"'[2]MONE(M)CAPARD'!AP223","v":6.2},{"$f":"'[2]MONE(M)CAPARD'!AQ223","v":2.56},{"$f":"'[2]MONE(M)CAPARD'!AR223","v":4.58},null,null,{"$f":"'[2]MONE(M)CAPARD'!J223","v":5.5679131037339582},{"$f":"'[2]MONE(M)CAPARD'!K223","v":2.6672489639783192},{"$f":"'[2]MONE(M)CAPARD'!L223","v":4.7557124408092983},{"$f":"'[2]MONE(M)CAPARD'!M223","v":7.3842622950819674},{"$f":"'[2]MONE(M)CAPARD'!N223","v":4.7329236675828037},{"$f":"'[2]MONE(M)CAPARD'!O223","v":6.9482563891179048},{"$f":"'[2]MONE(M)CAPARD'!P223","v":1.9382060910127283},null,null,{"$f":"'[2]MONE(M)CAPARD'!Q223","v":10.210000000000001},{"$f":"'[2]MONE(M)CAPARD'!R223","v":8.27},{"$f":"'[2]MONE(M)CAPARD'!S223","v":7.57},{"$f":"'[2]MONE(M)CAPARD'!T223","v":9.73},{"$f":"'[2]MONE(M)CAPARD'!U223","v":11.3},{"$f":"'[2]MONE(M)CAPARD'!V223","v":8.64},{"$f":"'[2]MONE(M)CAPARD'!W223","v":7.5002154543981856},null,null,{"$f":"'[2]MONE(M)CAPARD'!AS223","v":5.52},{"$f":"'[2]MONE(M)CAPARD'!AT223","v":"n.a."},{"$f":"'[2]MONE(M)CAPARD'!AU223","v":6},{"$f":"'[2]MONE(M)CAPARD'!AV223","v":6.75},{"$f":"'[2]MONE(M)CAPARD'!AW223","v":"n.a."},{"$f":"'[2]MONE(M)CAPARD'!AX223","v":7},{"$f":"'[2]MONE(M)CAPARD'!AY223","v":"n.a."},null,null,{"$f":"+'Datos_Regional (M)'!CF216","v":38.018408149057059},{"$f":"+'Datos_Regional (M)'!CG216","v":8.561781786937317},{"$f":"+'Datos_Regional (M)'!CH216","v":12.239782962650981},{"$f":"+'Datos_Regional (M)'!CI216","v":32.410606467544191},{"$f":"+'Datos_Regional (M)'!CJ216","v":30.522150238013456},{"$f":"+'Datos_Regional (M)'!CK216","v":21.35654644900271},{"$f":"+'Datos_Regional (M)'!CL216","v":14.977994436389652},null,null,549.77029927333342,330.22249999999991,564.58333333333337,203.64756627904345,191.50186369433834,586.69119999999987,793.65674999999999,2426.4167625800487,3220.0735125800479,null,null,866.98941852000007,727.74249999999995,1103.9750000000001,577.3165859261361,320.82279888106558,1092.9416666666664,1166.6644004166667,4689.7879699938685,5856.452370410535,null,null,-2263.3712074138198,-2636.3788578304857,null,null,{"$f":"'[2]EXT Comercio(M)'!C223","v":569.35008601000027},{"$f":"'[2]EXT Comercio(M)'!D223","v":349.05000000000018},{"$f":"'[2]EXT Comercio(M)'!E223","v":557.80000000000041},{"$f":"'[2]EXT Comercio(M)'!F223","v":192.06288495031004},{"$f":"'[2]EXT Comercio(M)'!G223","v":203.77984536249602},{"$f":"'[2]EXT Comercio(M)'!H223","v":587.5024999999996},{"$f":"'[2]EXT Comercio(M)'!I223","v":1091.328},{"$f":"'[2]EXT Comercio(M)'!K223","v":2459.5453163228049},{"$f":"'[2]EXT Comercio(M)'!L223","v":3550.8733163228026},null,null,{"$f":"'[2]EXT Comercio(M)'!AG223","v":995.57912589000011},{"$f":"'[2]EXT Comercio(M)'!AH223","v":831.09999999999945},{"$f":"'[2]EXT Comercio(M)'!AI223","v":1273.9000000000001},{"$f":"'[2]EXT Comercio(M)'!AJ223","v":666.02170068195028},{"$f":"'[2]EXT Comercio(M)'!AK223","v":394.93954962969707},{"$f":"'[2]EXT Comercio(M)'!AL223","v":1221.9999999999991},{"$f":"'[2]EXT Comercio(M)'!AM223","v":1563.5625559999999},{"$f":"'[2]EXT Comercio(M)'!AO223","v":5383.5403762016504},{"$f":"'[2]EXT Comercio(M)'!AP223","v":6947.1029322016475},null,null,{"$f":"'[2]EXT Comercio(M)'!$BS223","v":-2923.9950598788382},{"$f":"'[2]EXT Comercio(M)'!$BT223","v":-3396.2296158788376}]
[null,null,"Noviembre",{"$f":"'[2]REAL IPC(M)'!AD224","v":10.090655724292324},{"$f":"'[2]REAL IPC(M)'!AE224","v":6.2249443207127042},{"$f":"'[2]REAL IPC(M)'!AF224","v":9.1292319852457116},{"$f":"'[2]REAL IPC(M)'!AG224","v":9.5938787522071696},{"$f":"'[2]REAL IPC(M)'!AH224","v":17.337715694330317},{"$f":"'[2]REAL IPC(M)'!AI224","v":8.4455503512880767},{"$f":"'[2]REAL IPC(M)'!AJ224","v":6.4849624060150237},null,null,{"$f":"'[2]REAL IMAE(M)'!AG224","v":5.9079588806850865},{"$f":"'[2]REAL IMAE(M)'!AH224","v":2.5193602751112265},{"$f":"'[2]REAL IMAE(M)'!AI224","v":4.6614904714226526},{"$f":"'[2]REAL IMAE(M)'!AJ224","v":5.4019790366724836},{"$f":"'[2]REAL IMAE(M)'!AK224","v":6.5503528668177946},{"$f":"'[2]REAL IMAE(M)'!AL224","v":"n.d."},{"$f":"'[2]REAL IMAE(M)'!AM224","v":"n.d."},null,null,{"$f":"'[2]EXT ITCER(M)'!C224","v":94.616053146623202},{"$f":"'[2]EXT ITCER(M)'!D224","v":93.543668533111557},{"$f":"'[2]EXT ITCER(M)'!E224","v":72.007850415382435},{"$f":"'[2]EXT ITCER(M)'!F224","v":89.191621014073306},{"$f":"'[2]EXT ITCER(M)'!G224","v":99.457316145135209},{"$f":"'[2]EXT ITCER(M)'!H224","v":94.856680966878798},{"$f":"'[2]EXT ITCER(M)'!I224","v":104.8320682972041},null,null,{"$f":"'[2]EXT TC(M)'!J224","v":-0.6743560786589059},{"$f":"'[2]EXT TC(M)'!K224","v":0},{"$f":"'[2]EXT TC(M)'!L224","v":0.40455194543369533},{"$f":"'[2]EXT TC(M)'!M224","v":0},{"$f":"'[2]EXT TC(M)'!N224","v":4.8982167227560192},{"$f":"'[2]EXT TC(M)'!O224","v":-0.45025179534550963},{"$f":"'[2]EXT TC(M)'!P224","v":0},null,null,{"$f":"'[2]EXT RIN(M)'!C224","v":3798.9},{"$f":"'[2]EXT RIN(M)'!D224","v":2284.3000000000002},{"$f":"'[2]EXT RIN(M)'!E224","v":4301.8},{"$f":"'[2]EXT RIN(M)'!F224","v":2366.8284898989687},{"$f":"'[2]EXT RIN(M)'!G224","v":1042},{"$f":"'[2]EXT RIN(M)'!H224","v":2296.6999999999998},{"$f":"'[2]EXT RIN(M)'!I224","v":1784.0964512599999},null,null,{"$f":"'[2]EXT RIN(M)'!P224","v":60.098166460126166},{"$f":"'[2]EXT RIN(M)'!Q224","v":88.68843000940349},{"$f":"'[2]EXT RIN(M)'!R224","v":108.37753402131352},{"$f":"'[2]EXT RIN(M)'!S224","v":110.87934538333208},{"$f":"'[2]EXT RIN(M)'!T224","v":110.55186092174083},{"$f":"'[2]EXT RIN(M)'!U224","v":44.947834656126702},{"$f":"'[2]EXT RIN(M)'!V224","v":178.6015501537459},null,null,{"$f":"+'[2]MONE(M)CAPARD'!AE224","v":-2.8073733451388168},{"$f":"'[2]MONE(M)CAPARD'!AF224","v":-1.8027256525841373},{"$f":"'[2]MONE(M)CAPARD'!AG224","v":-3.8387807822308289},{"$f":"'[2]MONE(M)CAPARD'!AH224","v":-1.4817239527389807},{"$f":"'[2]MONE(M)CAPARD'!AI224","v":-3.771400514974895},{"$f":"'[2]MONE(M)CAPARD'!AJ224","v":-1.3606370630314673},{"$f":"'[2]MONE(M)CAPARD'!AK224","v":-1.7889496910856006},null,null,{"$f":"'[2]MONE(M)CAPARD'!AL224","v":3.9649999999999999},{"$f":"'[2]MONE(M)CAPARD'!AM224","v":4.3099999999999996},{"$f":"'[2]MONE(M)CAPARD'!AN224","v":3.67},{"$f":"'[2]MONE(M)CAPARD'!AO224","v":4.13},{"$f":"'[2]MONE(M)CAPARD'!AP224","v":6.94},{"$f":"'[2]MONE(M)CAPARD'!AQ224","v":2.52},{"$f":"'[2]MONE(M)CAPARD'!AR224","v":4.58},null,null,{"$f":"'[2]MONE(M)CAPARD'!J224","v":5.5402924395170183},{"$f":"'[2]MONE(M)CAPARD'!K224","v":1.3792011741272585},{"$f":"'[2]MONE(M)CAPARD'!L224","v":3.4461600676001694},{"$f":"'[2]MONE(M)CAPARD'!M224","v":6.1646885069817525},{"$f":"'[2]MONE(M)CAPARD'!N224","v":1.020361778222185},{"$f":"'[2]MONE(M)CAPARD'!O224","v":6.126991496828162},{"$f":"'[2]MONE(M)CAPARD'!P224","v":0.94075450148656758},null,null,{"$f":"'[2]MONE(M)CAPARD'!Q224","v":10.32},{"$f":"'[2]MONE(M)CAPARD'!R224","v":7.69},{"$f":"'[2]MONE(M)CAPARD'!S224","v":7.53},{"$f":"'[2]MONE(M)CAPARD'!T224","v":9.81},{"$f":"'[2]MONE(M)CAPARD'!U224","v":11.4},{"$f":"'[2]MONE(M)CAPARD'!V224","v":7.96},{"$f":"'[2]MONE(M)CAPARD'!W224","v":7.4867244832558892},null,null,{"$f":"'[2]MONE(M)CAPARD'!AS224","v":5.52},{"$f":"'[2]MONE(M)CAPARD'!AT224","v":"n.a."},{"$f":"'[2]MONE(M)CAPARD'!AU224","v":6.25},{"$f":"'[2]MONE(M)CAPARD'!AV224","v":7},{"$f":"'[2]MONE(M)CAPARD'!AW224","v":"n.a."},{"$f":"'[2]MONE(M)CAPARD'!AX224","v":7},{"$f":"'[2]MONE(M)CAPARD'!AY224","v":"n.a."},null,null,{"$f":"+'Datos_Regional (M)'!CF217","v":36.685443095222148},{"$f":"+'Datos_Regional (M)'!CG217","v":8.3508424968524508},{"$f":"+'Datos_Regional (M)'!CH217","v":13.30830496851927},{"$f":"+'Datos_Regional (M)'!CI217","v":31.961848319293829},{"$f":"+'Datos_Regional (M)'!CJ217","v":31.999821293135099},{"$f":"+'Datos_Regional (M)'!CK217","v":29.586241076177778},{"$f":"+'Datos_Regional (M)'!CL217","v":15.398822307000891},null,null,550.89420830916663,330.65916666666658,568.22500000000014,205.51983036221691,193.50245955425467,585.25128333333305,804.41741666666655,2434.0519482256386,3238.4693648923044,null,null,879.58084688916676,735.71833333333325,1114.675,591.83034734581599,333.5765667139753,1114.0499999999997,1190.8146709999999,4769.4310942822913,5960.2457652822923,null,null,-2335.3791460566531,-2721.7764003899865,null,null,{"$f":"'[2]EXT Comercio(M)'!C224","v":555.39173679999931},{"$f":"'[2]EXT Comercio(M)'!D224","v":314.1899999999996},{"$f":"'[2]EXT Comercio(M)'!E224","v":539.60000000000036},{"$f":"'[2]EXT Comercio(M)'!F224","v":205.56567530193252},{"$f":"'[2]EXT Comercio(M)'!G224","v":193.36235031899616},{"$f":"'[2]EXT Comercio(M)'!H224","v":569.73139999999967},{"$f":"'[2]EXT Comercio(M)'!I224","v":975.99499999999989},{"$f":"'[2]EXT Comercio(M)'!K224","v":2377.8411624209257},{"$f":"'[2]EXT Comercio(M)'!L224","v":3353.8361624209283},null,null,{"$f":"'[2]EXT Comercio(M)'!AG224","v":1067.1175786899998},{"$f":"'[2]EXT Comercio(M)'!AH224","v":791.58999999999924},{"$f":"'[2]EXT Comercio(M)'!AI224","v":1210.6000000000004},{"$f":"'[2]EXT Comercio(M)'!AJ224","v":703.37555576919931},{"$f":"'[2]EXT Comercio(M)'!AK224","v":451.04341944491586},{"$f":"'[2]EXT Comercio(M)'!AL224","v":1336.6000000000008},{"$f":"'[2]EXT Comercio(M)'!AM224","v":1248.1117340000001},{"$f":"'[2]EXT Comercio(M)'!AO224","v":5560.3265539041167},{"$f":"'[2]EXT Comercio(M)'!AP224","v":6808.4382879041223},null,null,{"$f":"'[2]EXT Comercio(M)'!$BS224","v":-3182.4853914831874},{"$f":"'[2]EXT Comercio(M)'!$BT224","v":-3454.6021254831903}]
[null,null,"Diciembre ",{"$f":"'[2]REAL IPC(M)'!AD225","v":10.805524297769391},{"$f":"'[2]REAL IPC(M)'!AE225","v":4.8570482393200036},{"$f":"'[2]REAL IPC(M)'!AF225","v":8.7462608921836207},{"$f":"'[2]REAL IPC(M)'!AG225","v":8.8733216579100915},{"$f":"'[2]REAL IPC(M)'!AH225","v":16.870514505205698},{"$f":"'[2]REAL IPC(M)'!AI225","v":8.8775880857246747},{"$f":"'[2]REAL IPC(M)'!AJ225","v":6.3551401869158948},null,null,{"$f":"'[2]REAL IMAE(M)'!AG225","v":5.9854545364582128},{"$f":"'[2]REAL IMAE(M)'!AH225","v":4.6490592209821271},{"$f":"'[2]REAL IMAE(M)'!AI225","v":4.6247661177534347},{"$f":"'[2]REAL IMAE(M)'!AJ225","v":5.2073776482805894},{"$f":"'[2]REAL IMAE(M)'!AK225","v":7.2440205259616999},{"$f":"'[2]REAL IMAE(M)'!AL225","v":"n.d."},{"$f":"'[2]REAL IMAE(M)'!AM225","v":"n.d."},null,null,{"$f":"'[2]EXT ITCER(M)'!C225","v":90.492487710475729},{"$f":"'[2]EXT ITCER(M)'!D225","v":94.212149260610346},{"$f":"'[2]EXT ITCER(M)'!E225","v":71.400285326149998},{"$f":"'[2]EXT ITCER(M)'!F225","v":89.306212069938667},{"$f":"'[2]EXT ITCER(M)'!G225","v":98.804642715676437},{"$f":"'[2]EXT ITCER(M)'!H225","v":94.371348337157087},{"$f":"'[2]EXT ITCER(M)'!I225","v":104.6739404977573},null,null,{"$f":"'[2]EXT TC(M)'!J225","v":-3.7726067127003224},{"$f":"'[2]EXT TC(M)'!K225","v":0},{"$f":"'[2]EXT TC(M)'!L225","v":0.25634214583453679},{"$f":"'[2]EXT TC(M)'!M225","v":0},{"$f":"'[2]EXT TC(M)'!N225","v":4.7596276814607945},{"$f":"'[2]EXT TC(M)'!O225","v":1.3096331938970509},{"$f":"'[2]EXT TC(M)'!P225","v":0},null,null,{"$f":"'[2]EXT RIN(M)'!C225","v":4113.6000000000004},{"$f":"'[2]EXT RIN(M)'!D225","v":2196.1},{"$f":"'[2]EXT RIN(M)'!E225","v":4320.3},{"$f":"'[2]EXT RIN(M)'!F225","v":2514.3013647104272},{"$f":"'[2]EXT RIN(M)'!G225","v":1018.6},{"$f":"'[2]EXT RIN(M)'!H225","v":2394.9},{"$f":"'[2]EXT RIN(M)'!I225","v":2071.6448292949999},null,null,{"$f":"'[2]EXT RIN(M)'!P225","v":62.761004890056249},{"$f":"'[2]EXT RIN(M)'!Q225","v":84.362689264798803},{"$f":"'[2]EXT RIN(M)'!R225","v":104.48929136878658},{"$f":"'[2]EXT RIN(M)'!S225","v":109.25736672958514},{"$f":"'[2]EXT RIN(M)'!T225","v":102.81078639129224},{"$f":"'[2]EXT RIN(M)'!U225","v":46.002647914769852},{"$f":"'[2]EXT RIN(M)'!V225","v":205.64232963566442},null,null,{"$f":"+'[2]MONE(M)CAPARD'!AE225","v":-3.4344174822391951},{"$f":"'[2]MONE(M)CAPARD'!AF225","v":-0.46448784082534078},{"$f":"'[2]MONE(M)CAPARD'!AG225","v":-3.5277175147999595},{"$f":"'[2]MONE(M)CAPARD'!AH225","v":-0.73784986595173541},{"$f":"'[2]MONE(M)CAPARD'!AI225","v":-3.7832725992908696},{"$f":"'[2]MONE(M)CAPARD'!AJ225","v":-1.549986655101097},{"$f":"'[2]MONE(M)CAPARD'!AK225","v":-1.6690685413005335},null,null,{"$f":"'[2]MONE(M)CAPARD'!AL225","v":3.9450000000000003},{"$f":"'[2]MONE(M)CAPARD'!AM225","v":4.37},{"$f":"'[2]MONE(M)CAPARD'!AN225","v":3.63},{"$f":"'[2]MONE(M)CAPARD'!AO225","v":4.21},{"$f":"'[2]MONE(M)CAPARD'!AP225","v":6.58},{"$f":"'[2]MONE(M)CAPARD'!AQ225","v":3.09},{"$f":"'[2]MONE(M)CAPARD'!AR225","v":4.58},null,null,{"$f":"'[2]MONE(M)CAPARD'!J225","v":4.9225665749053391},{"$f":"'[2]MONE(M)CAPARD'!K225","v":2.6635803768817867},{"$f":"'[2]MONE(M)CAPARD'!L225","v":3.810465825509795},{"$f":"'[2]MONE(M)CAPARD'!M225","v":6.9683538873994726},{"$f":"'[2]MONE(M)CAPARD'!N225","v":1.2005638488919501},{"$f":"'[2]MONE(M)CAPARD'!O225","v":5.935484086208036},{"$f":"'[2]MONE(M)CAPARD'!P225","v":1.0363330015964629},null,null,{"$f":"'[2]MONE(M)CAPARD'!Q225","v":10.1},{"$f":"'[2]MONE(M)CAPARD'!R225","v":7.65},{"$f":"'[2]MONE(M)CAPARD'!S225","v":7.5200000000000005},{"$f":"'[2]MONE(M)CAPARD'!T225","v":9.85},{"$f":"'[2]MONE(M)CAPARD'!U225","v":10.9},{"$f":"'[2]MONE(M)CAPARD'!V225","v":7.99},{"$f":"'[2]MONE(M)CAPARD'!W225","v":7.4573336035670863},null,null,{"$f":"'[2]MONE(M)CAPARD'!AS225","v":5.52},{"$f":"'[2]MONE(M)CAPARD'!AT225","v":"n.a."},{"$f":"'[2]MONE(M)CAPARD'!AU225","v":6.5},{"$f":"'[2]MONE(M)CAPARD'!AV225","v":7.5},{"$f":"'[2]MONE(M)CAPARD'!AW225","v":"n.a."},{"$f":"'[2]MONE(M)CAPARD'!AX225","v":7},{"$f":"'[2]MONE(M)CAPARD'!AY225","v":"n.a."},null,null,{"$f":"+'Datos_Regional (M)'!CF218","v":37.383995581672337},{"$f":"+'Datos_Regional (M)'!CG218","v":7.8059213377459358},{"$f":"+'Datos_Regional (M)'!CH218","v":13.004888400500914},{"$f":"+'Datos_Regional (M)'!CI218","v":33.183122707771616},{"$f":"+'Datos_Regional (M)'!CJ218","v":31.972200044493061},{"$f":"+'Datos_Regional (M)'!CK218","v":28.886715560482411},{"$f":"+'Datos_Regional (M)'!CL218","v":18.616500220957821},null,null,554.64384695666661,334.54583333333329,574.80833333333339,210.74938722034696,194.36391457778868,596.68333333333339,809.64208333333318,2465.7946487548024,3275.4367320881356,null,null,892.21866638333324,735.05083333333323,1131.3166666666666,602.02985110090015,338.68440474737503,1133.0833333333333,1208.6714899166666,4832.3837555649416,6041.0552454816088,null,null,-2366.5891068101396,-2765.6185133934728,null,null,{"$f":"'[2]EXT Comercio(M)'!C225","v":500.21761782999965},{"$f":"'[2]EXT Comercio(M)'!D225","v":329.04000000000042},{"$f":"'[2]EXT Comercio(M)'!E225","v":563.19999999999936},{"$f":"'[2]EXT Comercio(M)'!F225","v":203.79368605859872},{"$f":"'[2]EXT Comercio(M)'!G225","v":184.29146028240785},{"$f":"'[2]EXT Comercio(M)'!H225","v":654.35680000000229},{"$f":"'[2]EXT Comercio(M)'!I225","v":668.28499999999997},{"$f":"'[2]EXT Comercio(M)'!K225","v":2434.8995641710098},{"$f":"'[2]EXT Comercio(M)'!L225","v":3103.1845641710097},null,null,{"$f":"'[2]EXT Comercio(M)'!AG225","v":897.6783153799995},{"$f":"'[2]EXT Comercio(M)'!AH225","v":662.68000000000029},{"$f":"'[2]EXT Comercio(M)'!AI225","v":1165.4999999999991},{"$f":"'[2]EXT Comercio(M)'!AJ225","v":645.33497629101657},{"$f":"'[2]EXT Comercio(M)'!AK225","v":359.34429491079743},{"$f":"'[2]EXT Comercio(M)'!AL225","v":1238.7999999999997},{"$f":"'[2]EXT Comercio(M)'!AM225","v":1189.0413080000001},{"$f":"'[2]EXT Comercio(M)'!AO225","v":4969.3375865818089},{"$f":"'[2]EXT Comercio(M)'!AP225","v":6158.3788945818087},null,null,{"$f":"'[2]EXT Comercio(M)'!$BS225","v":-2534.4380224108063},{"$f":"'[2]EXT Comercio(M)'!$BT225","v":-3055.1943304108063}]
[null,2008,"Enero",{"$f":"'[2]REAL IPC(M)'!AD226","v":10.562682399481172},{"$f":"'[2]REAL IPC(M)'!AE226","v":4.7468354430379858},{"$f":"'[2]REAL IPC(M)'!AF226","v":8.3884217957769085},{"$f":"'[2]REAL IPC(M)'!AG226","v":8.8747099767981332},{"$f":"'[2]REAL IPC(M)'!AH226","v":17.284569138276552},{"$f":"'[2]REAL IPC(M)'!AI226","v":9.0473962644402128},{"$f":"'[2]REAL IPC(M)'!AJ226","v":7.6492537313432738},null,null,{"$f":"'[2]REAL IMAE(M)'!AG226","v":5.9364596934430383},{"$f":"'[2]REAL IMAE(M)'!AH226","v":4.6556340978122162},{"$f":"'[2]REAL IMAE(M)'!AI226","v":4.7586917180969879},{"$f":"'[2]REAL IMAE(M)'!AJ226","v":5.1619122046508172},{"$f":"'[2]REAL IMAE(M)'!AK226","v":7.7362141510289364},{"$f":"'[2]REAL IMAE(M)'!AL226","v":7.5468384750418647},{"$f":"'[2]REAL IMAE(M)'!AM226","v":11.745361778248629},null,null,{"$f":"'[2]EXT ITCER(M)'!C226","v":89.937029969598598},{"$f":"'[2]EXT ITCER(M)'!D226","v":93.552102324341519},{"$f":"'[2]EXT ITCER(M)'!E226","v":71.698609611864981},{"$f":"'[2]EXT ITCER(M)'!F226","v":89.018109583712274},{"$f":"'[2]EXT ITCER(M)'!G226","v":98.257804136591517},{"$f":"'[2]EXT ITCER(M)'!H226","v":94.340186750071695},{"$f":"'[2]EXT ITCER(M)'!I226","v":103.5785366338193},null,null,{"$f":"'[2]EXT TC(M)'!J226","v":-4.1739397814222139},{"$f":"'[2]EXT TC(M)'!K226","v":0},{"$f":"'[2]EXT TC(M)'!L226","v":0.33733100386910347},{"$f":"'[2]EXT TC(M)'!M226","v":-2.5925925925921897E-2},{"$f":"'[2]EXT TC(M)'!N226","v":4.6671489467424001},{"$f":"'[2]EXT TC(M)'!O226","v":0.16557273924963459},{"$f":"'[2]EXT TC(M)'!P226","v":0},null,null,{"$f":"'[2]EXT RIN(M)'!C226","v":4397.3},{"$f":"'[2]EXT RIN(M)'!D226","v":2221.1999999999998},{"$f":"'[2]EXT RIN(M)'!E226","v":4319.6000000000004},{"$f":"'[2]EXT RIN(M)'!F226","v":2426.456912816021},{"$f":"'[2]EXT RIN(M)'!G226","v":985.7},{"$f":"'[2]EXT RIN(M)'!H226","v":2328.4},{"$f":"'[2]EXT RIN(M)'!I226","v":2103.9093223349996},null,null,{"$f":"'[2]EXT RIN(M)'!P226","v":63.238524256471329},{"$f":"'[2]EXT RIN(M)'!Q226","v":87.258533457943471},{"$f":"'[2]EXT RIN(M)'!R226","v":106.68222235657143},{"$f":"'[2]EXT RIN(M)'!S226","v":112.49310045941637},{"$f":"'[2]EXT RIN(M)'!T226","v":101.03547654863246},{"$f":"'[2]EXT RIN(M)'!U226","v":45.830523410385403},{"$f":"'[2]EXT RIN(M)'!V226","v":197.01581925100388},null,null,{"$f":"+'[2]MONE(M)CAPARD'!AE226","v":-2.9962029932594305},{"$f":"'[2]MONE(M)CAPARD'!AF226","v":-0.59842900302115853},{"$f":"'[2]MONE(M)CAPARD'!AG226","v":-3.1815407389862629},{"$f":"'[2]MONE(M)CAPARD'!AH226","v":-0.63808204581778494},{"$f":"'[2]MONE(M)CAPARD'!AI226","v":-4.0558765237270702},{"$f":"'[2]MONE(M)CAPARD'!AJ226","v":-1.7949958747236128},{"$f":"'[2]MONE(M)CAPARD'!AK226","v":-3.3992374350086569},null,null,{"$f":"'[2]MONE(M)CAPARD'!AL226","v":3.855},{"$f":"'[2]MONE(M)CAPARD'!AM226","v":4.12},{"$f":"'[2]MONE(M)CAPARD'!AN226","v":3.57},{"$f":"'[2]MONE(M)CAPARD'!AO226","v":4.3},{"$f":"'[2]MONE(M)CAPARD'!AP226","v":6.88},{"$f":"'[2]MONE(M)CAPARD'!AQ226","v":2.67},{"$f":"'[2]MONE(M)CAPARD'!AR226","v":3.99},null,null,{"$f":"'[2]MONE(M)CAPARD'!J226","v":5.237100264436962},{"$f":"'[2]MONE(M)CAPARD'!K226","v":2.7334138972809563},{"$f":"'[2]MONE(M)CAPARD'!L226","v":4.0147998578872572},{"$f":"'[2]MONE(M)CAPARD'!M226","v":6.9118806606286718},{"$f":"'[2]MONE(M)CAPARD'!N226","v":2.6283527092492625},{"$f":"'[2]MONE(M)CAPARD'!O226","v":5.7796920893699806},{"$f":"'[2]MONE(M)CAPARD'!P226","v":-0.35422843010624872},null,null,{"$f":"'[2]MONE(M)CAPARD'!Q226","v":9.8310484430300811},{"$f":"'[2]MONE(M)CAPARD'!R226","v":7.61},{"$f":"'[2]MONE(M)CAPARD'!S226","v":7.4499999999999993},{"$f":"'[2]MONE(M)CAPARD'!T226","v":9.77},{"$f":"'[2]MONE(M)CAPARD'!U226","v":11.2},{"$f":"'[2]MONE(M)CAPARD'!V226","v":8.5500000000000007},{"$f":"'[2]MONE(M)CAPARD'!W226","v":7.2679294698296442},null,null,{"$f":"'[2]MONE(M)CAPARD'!AS226","v":5.99},{"$f":"'[2]MONE(M)CAPARD'!AT226","v":"n.a."},{"$f":"'[2]MONE(M)CAPARD'!AU226","v":6.5},{"$f":"'[2]MONE(M)CAPARD'!AV226","v":7.5},{"$f":"'[2]MONE(M)CAPARD'!AW226","v":"n.a."},{"$f":"'[2]MONE(M)CAPARD'!AX226","v":7},{"$f":"'[2]MONE(M)CAPARD'!AY226","v":"n.a."},null,null,{"$f":"+'Datos_Regional (M)'!CF219","v":39.171033006855495},{"$f":"+'Datos_Regional (M)'!CG219","v":8.1961879990541053},{"$f":"+'Datos_Regional (M)'!CH219","v":12.106578238569554},{"$f":"+'Datos_Regional (M)'!CI219","v":31.006310498154164},{"$f":"+'Datos_Regional (M)'!CJ219","v":30.773474301659554},{"$f":"+'Datos_Regional (M)'!CK219","v":29.125838582409958},{"$f":"+'Datos_Regional (M)'!CL219","v":18.228357774085158},null,null,556.87959248833329,336.33416666666659,578.93333333333339,212.3194966754545,197.84515160647152,600.14192500000001,817.44883358333334,2482.4536657702597,3299.9024993535927,null,null,914.74214322916669,746.9649999999998,1135.8083333333332,617.40508347639025,346.62560980935797,1160.8083333333332,1231.9023992499999,4922.354503181582,6154.2569024315826,null,null,-2439.9008374113223,-2854.354403077989,null,null,{"$f":"'[2]EXT Comercio(M)'!C226","v":522.42065543999979},{"$f":"'[2]EXT Comercio(M)'!D226","v":332.76},{"$f":"'[2]EXT Comercio(M)'!E226","v":593.6},{"$f":"'[2]EXT Comercio(M)'!F226","v":215.12963907},{"$f":"'[2]EXT Comercio(M)'!G226","v":219.13403823909101},{"$f":"'[2]EXT Comercio(M)'!H226","v":515.15440000000001},{"$f":"'[2]EXT Comercio(M)'!I226","v":764.04900300000008},{"$f":"'[2]EXT Comercio(M)'!K226","v":2398.1987327490911},{"$f":"'[2]EXT Comercio(M)'!L226","v":3162.2477357490911},null,null,{"$f":"'[2]EXT Comercio(M)'!AG226","v":1086.4772075100002},{"$f":"'[2]EXT Comercio(M)'!AH226","v":793.79},{"$f":"'[2]EXT Comercio(M)'!AI226","v":1147.0999999999999},{"$f":"'[2]EXT Comercio(M)'!AJ226","v":654.41248124000003},{"$f":"'[2]EXT Comercio(M)'!AK226","v":374.81918025184939},{"$f":"'[2]EXT Comercio(M)'!AL226","v":1232},{"$f":"'[2]EXT Comercio(M)'!AM226","v":1366.3668700000003},{"$f":"'[2]EXT Comercio(M)'!AO226","v":5288.5988690018494},{"$f":"'[2]EXT Comercio(M)'!AP226","v":6654.9657390018492},null,null,{"$f":"'[2]EXT Comercio(M)'!$BS226","v":-2890.4001362527588},{"$f":"'[2]EXT Comercio(M)'!$BT226","v":-3492.718003252759}]
[null,null,"Febrero",{"$f":"'[2]REAL IPC(M)'!AD227","v":11.399219030141698},{"$f":"'[2]REAL IPC(M)'!AE227","v":5.8180227471566131},{"$f":"'[2]REAL IPC(M)'!AF227","v":8.7623920690757853},{"$f":"'[2]REAL IPC(M)'!AG227","v":9.0350200815664881},{"$f":"'[2]REAL IPC(M)'!AH227","v":18.350168350168349},{"$f":"'[2]REAL IPC(M)'!AI227","v":8.6789609644087449},{"$f":"'[2]REAL IPC(M)'!AJ227","v":8.3720930232558288},null,null,{"$f":"'[2]REAL IMAE(M)'!AG227","v":5.810789930238009},{"$f":"'[2]REAL IMAE(M)'!AH227","v":4.7801320677882089},{"$f":"'[2]REAL IMAE(M)'!AI227","v":4.9094204692505823},{"$f":"'[2]REAL IMAE(M)'!AJ227","v":5.8645718321312623},{"$f":"'[2]REAL IMAE(M)'!AK227","v":7.8715665974958755},{"$f":"'[2]REAL IMAE(M)'!AL227","v":7.4943425115107569},{"$f":"'[2]REAL IMAE(M)'!AM227","v":11.891531542675454},null,null,{"$f":"'[2]EXT ITCER(M)'!C227","v":88.964181619599216},{"$f":"'[2]EXT ITCER(M)'!D227","v":93.032023023816379},{"$f":"'[2]EXT ITCER(M)'!E227","v":71.549309941294865},{"$f":"'[2]EXT ITCER(M)'!F227","v":88.292556198253521},{"$f":"'[2]EXT ITCER(M)'!G227","v":96.940663017552183},{"$f":"'[2]EXT ITCER(M)'!H227","v":94.816408128235707},{"$f":"'[2]EXT ITCER(M)'!I227","v":102.84861221513781},null,null,{"$f":"'[2]EXT TC(M)'!J227","v":-4.5784602562767178},{"$f":"'[2]EXT TC(M)'!K227","v":0},{"$f":"'[2]EXT TC(M)'!L227","v":0.35832102230599738},{"$f":"'[2]EXT TC(M)'!M227","v":-2.5925925925884302E-2},{"$f":"'[2]EXT TC(M)'!N227","v":4.6706066414789085},{"$f":"'[2]EXT TC(M)'!O227","v":1.4165902319419212},{"$f":"'[2]EXT TC(M)'!P227","v":0},null,null,{"$f":"'[2]EXT RIN(M)'!C227","v":4554.7},{"$f":"'[2]EXT RIN(M)'!D227","v":2277.1999999999998},{"$f":"'[2]EXT RIN(M)'!E227","v":4348.3999999999996},{"$f":"'[2]EXT RIN(M)'!F227","v":2497.9126125206399},{"$f":"'[2]EXT RIN(M)'!G227","v":950.5},{"$f":"'[2]EXT RIN(M)'!H227","v":2216.9},{"$f":"'[2]EXT RIN(M)'!I227","v":2109.3915369452502},null,null,{"$f":"'[2]EXT RIN(M)'!P227","v":64.162679642461356},{"$f":"'[2]EXT RIN(M)'!Q227","v":89.2565974312663},{"$f":"'[2]EXT RIN(M)'!R227","v":109.76070940953262},{"$f":"'[2]EXT RIN(M)'!S227","v":110.70596808519497},{"$f":"'[2]EXT RIN(M)'!T227","v":94.632141842086185},{"$f":"'[2]EXT RIN(M)'!U227","v":43.621750791868493},{"$f":"'[2]EXT RIN(M)'!V227","v":207.57218016126052},null,null,{"$f":"+'[2]MONE(M)CAPARD'!AE227","v":-5.2955658769434679},{"$f":"'[2]MONE(M)CAPARD'!AF227","v":-1.9826705250103418},{"$f":"'[2]MONE(M)CAPARD'!AG227","v":-3.5144428109379535},{"$f":"'[2]MONE(M)CAPARD'!AH227","v":-0.61908557549814935},{"$f":"'[2]MONE(M)CAPARD'!AI227","v":-4.5716739227645684},{"$f":"'[2]MONE(M)CAPARD'!AJ227","v":-1.4068601234690343},{"$f":"'[2]MONE(M)CAPARD'!AK227","v":-4.0158798283261934},null,null,{"$f":"'[2]MONE(M)CAPARD'!AL227","v":3.36},{"$f":"'[2]MONE(M)CAPARD'!AM227","v":3.72},{"$f":"'[2]MONE(M)CAPARD'!AN227","v":3.54},{"$f":"'[2]MONE(M)CAPARD'!AO227","v":4.34},{"$f":"'[2]MONE(M)CAPARD'!AP227","v":6.71},{"$f":"'[2]MONE(M)CAPARD'!AQ227","v":2.31},{"$f":"'[2]MONE(M)CAPARD'!AR227","v":4.0199999999999996},null,null,{"$f":"'[2]MONE(M)CAPARD'!J227","v":2.8642532939357941},{"$f":"'[2]MONE(M)CAPARD'!K227","v":1.7690533278214069},{"$f":"'[2]MONE(M)CAPARD'!L227","v":3.6939311967068562},{"$f":"'[2]MONE(M)CAPARD'!M227","v":7.0023189913864075},{"$f":"'[2]MONE(M)CAPARD'!N227","v":-6.1159900578281322E-2},{"$f":"'[2]MONE(M)CAPARD'!O227","v":6.3039239378032885},{"$f":"'[2]MONE(M)CAPARD'!P227","v":-1.1120939285162508},null,null,{"$f":"'[2]MONE(M)CAPARD'!Q227","v":9.3830141843115911},{"$f":"'[2]MONE(M)CAPARD'!R227","v":7.69},{"$f":"'[2]MONE(M)CAPARD'!S227","v":7.48},{"$f":"'[2]MONE(M)CAPARD'!T227","v":9.7799999999999994},{"$f":"'[2]MONE(M)CAPARD'!U227","v":10.58},{"$f":"'[2]MONE(M)CAPARD'!V227","v":7.75},{"$f":"'[2]MONE(M)CAPARD'!W227","v":7.1668935565382172},null,null,{"$f":"'[2]MONE(M)CAPARD'!AS227","v":5.99},{"$f":"'[2]MONE(M)CAPARD'!AT227","v":"n.a."},{"$f":"'[2]MONE(M)CAPARD'!AU227","v":6.5},{"$f":"'[2]MONE(M)CAPARD'!AV227","v":7.75},{"$f":"'[2]MONE(M)CAPARD'!AW227","v":"n.a."},{"$f":"'[2]MONE(M)CAPARD'!AX227","v":8},{"$f":"'[2]MONE(M)CAPARD'!AY227","v":"n.a."},null,null,{"$f":"+'Datos_Regional (M)'!CF220","v":39.95423744097446},{"$f":"+'Datos_Regional (M)'!CG220","v":9.157166994826337},{"$f":"+'Datos_Regional (M)'!CH220","v":11.606532767833833},{"$f":"+'Datos_Regional (M)'!CI220","v":30.478026780464894},{"$f":"+'Datos_Regional (M)'!CJ220","v":32.151438223893635},{"$f":"+'Datos_Regional (M)'!CK220","v":29.413301621695442},{"$f":"+'Datos_Regional (M)'!CL220","v":18.784687923443787},null,null,567.10811173999991,343.38583333333327,585.57500000000005,218.26491378173421,202.15107974043224,596.76431666666679,825.05607558333338,2513.2492552621666,3338.3053308455001,null,null,940.80612604083319,761.61,1154.4833333333333,630.06561745862655,354.24816574419629,1184.0333333333331,1261.1831490833333,5025.2465759103225,6286.4297249936562,null,null,-2511.9973206481563,-2948.1243941481557,null,null,{"$f":"'[2]EXT Comercio(M)'!C227","v":659.35115040000028},{"$f":"'[2]EXT Comercio(M)'!D227","v":388.30999999999995},{"$f":"'[2]EXT Comercio(M)'!E227","v":642.30000000000007},{"$f":"'[2]EXT Comercio(M)'!F227","v":261.82951918999998},{"$f":"'[2]EXT Comercio(M)'!G227","v":230.33083175339399},{"$f":"'[2]EXT Comercio(M)'!H227","v":529.59250000000009},{"$f":"'[2]EXT Comercio(M)'!I227","v":794.69590400000004},{"$f":"'[2]EXT Comercio(M)'!K227","v":2711.7140013433941},{"$f":"'[2]EXT Comercio(M)'!L227","v":3506.4099053433952},null,null,{"$f":"'[2]EXT Comercio(M)'!AG227","v":1051.6226566999999},{"$f":"'[2]EXT Comercio(M)'!AH227","v":797.31999999999994},{"$f":"'[2]EXT Comercio(M)'!AI227","v":1176.2000000000003},{"$f":"'[2]EXT Comercio(M)'!AJ227","v":665.55344933000015},{"$f":"'[2]EXT Comercio(M)'!AK227","v":366.0710735241077},{"$f":"'[2]EXT Comercio(M)'!AL227","v":1232.1000000000001},{"$f":"'[2]EXT Comercio(M)'!AM227","v":1270.3392539999998},{"$f":"'[2]EXT Comercio(M)'!AO227","v":5288.8671795541086},{"$f":"'[2]EXT Comercio(M)'!AP227","v":6559.206433554109},null,null,{"$f":"'[2]EXT Comercio(M)'!$BS227","v":-2577.1531782107131},{"$f":"'[2]EXT Comercio(M)'!$BT227","v":-3052.7965282107129}]
[null,null,"Marzo",{"$f":"'[2]REAL IPC(M)'!AD228","v":11.035531672346533},{"$f":"'[2]REAL IPC(M)'!AE228","v":5.9891304347826138},{"$f":"'[2]REAL IPC(M)'!AF228","v":9.0995561192137231},{"$f":"'[2]REAL IPC(M)'!AG228","v":9.2465753424657642},{"$f":"'[2]REAL IPC(M)'!AH228","v":18.910978356674178},{"$f":"'[2]REAL IPC(M)'!AI228","v":9.6717926811903645},{"$f":"'[2]REAL IPC(M)'!AJ228","v":8.7638376383763994},null,null,{"$f":"'[2]REAL IMAE(M)'!AG228","v":5.4987403910581341},{"$f":"'[2]REAL IMAE(M)'!AH228","v":6.1217027529083019},{"$f":"'[2]REAL IMAE(M)'!AI228","v":4.9496031722633331},{"$f":"'[2]REAL IMAE(M)'!AJ228","v":5.7641862883415946},{"$f":"'[2]REAL IMAE(M)'!AK228","v":7.4495918888331305},{"$f":"'[2]REAL IMAE(M)'!AL228","v":7.3113475647964306},{"$f":"'[2]REAL IMAE(M)'!AM228","v":12.143185231677748},null,null,{"$f":"'[2]EXT ITCER(M)'!C228","v":88.725189534370543},{"$f":"'[2]EXT ITCER(M)'!D228","v":92.646776348404956},{"$f":"'[2]EXT ITCER(M)'!E228","v":70.190409733054153},{"$f":"'[2]EXT ITCER(M)'!F228","v":87.830286747124859},{"$f":"'[2]EXT ITCER(M)'!G228","v":96.101296031855128},{"$f":"'[2]EXT ITCER(M)'!H228","v":93.783907562706801},{"$f":"'[2]EXT ITCER(M)'!I228","v":101.99096491265981},null,null,{"$f":"'[2]EXT TC(M)'!J228","v":-4.7505708485627549},{"$f":"'[2]EXT TC(M)'!K228","v":0},{"$f":"'[2]EXT TC(M)'!L228","v":-0.71391395974146266},{"$f":"'[2]EXT TC(M)'!M228","v":-1.5873015873016476E-2},{"$f":"'[2]EXT TC(M)'!N228","v":4.7791748746514084},{"$f":"'[2]EXT TC(M)'!O228","v":3.4326177980134931},{"$f":"'[2]EXT TC(M)'!P228","v":0},null,null,{"$f":"'[2]EXT RIN(M)'!C228","v":4890.5902181000001},{"$f":"'[2]EXT RIN(M)'!D228","v":2271.6999999999998},{"$f":"'[2]EXT RIN(M)'!E228","v":4338.3999999999996},{"$f":"'[2]EXT RIN(M)'!F228","v":2520.6142551523426},{"$f":"'[2]EXT RIN(M)'!G228","v":984.3},{"$f":"'[2]EXT RIN(M)'!H228","v":2245.1999999999998},{"$f":"'[2]EXT RIN(M)'!I228","v":2011.2491596709999},null,null,{"$f":"'[2]EXT RIN(M)'!P228","v":65.066332191708469},{"$f":"'[2]EXT RIN(M)'!Q228","v":89.116259510062605},{"$f":"'[2]EXT RIN(M)'!R228","v":106.82465662529704},{"$f":"'[2]EXT RIN(M)'!S228","v":108.77338660927651},{"$f":"'[2]EXT RIN(M)'!T228","v":97.840598294166227},{"$f":"'[2]EXT RIN(M)'!U228","v":43.823893178006188},{"$f":"'[2]EXT RIN(M)'!V228","v":194.73209627253433},null,null,{"$f":"+'[2]MONE(M)CAPARD'!AE228","v":-5.210522780598728},{"$f":"'[2]MONE(M)CAPARD'!AF228","v":-2.263562711516772},{"$f":"'[2]MONE(M)CAPARD'!AG228","v":-3.7851264167393435},{"$f":"'[2]MONE(M)CAPARD'!AH228","v":-0.69253918495298772},{"$f":"'[2]MONE(M)CAPARD'!AI228","v":-4.7734230666346384},{"$f":"'[2]MONE(M)CAPARD'!AJ228","v":-2.2264546074199005},{"$f":"'[2]MONE(M)CAPARD'!AK228","v":-4.453536895674314},null,null,{"$f":"'[2]MONE(M)CAPARD'!AL228","v":3.3149999999999999},{"$f":"'[2]MONE(M)CAPARD'!AM228","v":3.59},{"$f":"'[2]MONE(M)CAPARD'!AN228","v":3.52},{"$f":"'[2]MONE(M)CAPARD'!AO228","v":4.38},{"$f":"'[2]MONE(M)CAPARD'!AP228","v":6.7},{"$f":"'[2]MONE(M)CAPARD'!AQ228","v":1.97},{"$f":"'[2]MONE(M)CAPARD'!AR228","v":3.92},null,null,{"$f":"'[2]MONE(M)CAPARD'!J228","v":2.7959233237288466},{"$f":"'[2]MONE(M)CAPARD'!K228","v":1.4726694697979643},{"$f":"'[2]MONE(M)CAPARD'!L228","v":3.6576169718104956},{"$f":"'[2]MONE(M)CAPARD'!M228","v":6.8683385579937202},{"$f":"'[2]MONE(M)CAPARD'!N228","v":-0.65842247184592506},{"$f":"'[2]MONE(M)CAPARD'!O228","v":5.1136278360219505},{"$f":"'[2]MONE(M)CAPARD'!P228","v":-1.5602585340069717},null,null,{"$f":"'[2]MONE(M)CAPARD'!Q228","v":9.34},{"$f":"'[2]MONE(M)CAPARD'!R228","v":7.55},{"$f":"'[2]MONE(M)CAPARD'!S228","v":7.5399999999999991},{"$f":"'[2]MONE(M)CAPARD'!T228","v":9.74},{"$f":"'[2]MONE(M)CAPARD'!U228","v":10.119999999999999},{"$f":"'[2]MONE(M)CAPARD'!V228","v":7.62},{"$f":"'[2]MONE(M)CAPARD'!W228","v":7.0668405797101448},null,null,{"$f":"'[2]MONE(M)CAPARD'!AS228","v":5.99},{"$f":"'[2]MONE(M)CAPARD'!AT228","v":"n.a."},{"$f":"'[2]MONE(M)CAPARD'!AU228","v":6.75},{"$f":"'[2]MONE(M)CAPARD'!AV228","v":7.75},{"$f":"'[2]MONE(M)CAPARD'!AW228","v":"n.a."},{"$f":"'[2]MONE(M)CAPARD'!AX228","v":9},{"$f":"'[2]MONE(M)CAPARD'!AY228","v":"n.a."},null,null,{"$f":"+'Datos_Regional (M)'!CF221","v":40.711522786235534},{"$f":"+'Datos_Regional (M)'!CG221","v":8.6943036641364824},{"$f":"+'Datos_Regional (M)'!CH221","v":11.813534750254595},{"$f":"+'Datos_Regional (M)'!CI221","v":28.717908361377063},{"$f":"+'Datos_Regional (M)'!CJ221","v":31.318681356908495},{"$f":"+'Datos_Regional (M)'!CK221","v":30.917264622434693},{"$f":"+'Datos_Regional (M)'!CL221","v":18.305666513210173},null,null,563.35354940916659,342.565,588.72500000000002,222.65278168715494,204.96910281531348,592.56044166666675,825.06483724999987,2514.8258755783013,3339.8907128283013,null,null,942.69119443583338,762.41166666666652,1158.5249999999999,637.8106179007932,362.08001044721595,1196.95,1254.7671233333335,5060.468489450509,6315.235612783843,null,null,-2545.6426138722072,-2975.3448999555408,null,null,{"$f":"'[2]EXT Comercio(M)'!C228","v":603.19422566000003},{"$f":"'[2]EXT Comercio(M)'!D228","v":356.1400000000001},{"$f":"'[2]EXT Comercio(M)'!E228","v":642.5999999999998},{"$f":"'[2]EXT Comercio(M)'!F228","v":281.79157613999996},{"$f":"'[2]EXT Comercio(M)'!G228","v":252.48820498107497},{"$f":"'[2]EXT Comercio(M)'!H228","v":626.64570000000003},{"$f":"'[2]EXT Comercio(M)'!I228","v":907.22113999999999},{"$f":"'[2]EXT Comercio(M)'!K228","v":2762.8597067810751},{"$f":"'[2]EXT Comercio(M)'!L228","v":3670.0808467810748},null,null,{"$f":"'[2]EXT Comercio(M)'!AG228","v":910.57599076000054},{"$f":"'[2]EXT Comercio(M)'!AH228","v":749.68000000000006},{"$f":"'[2]EXT Comercio(M)'!AI228","v":1167.1999999999998},{"$f":"'[2]EXT Comercio(M)'!AJ228","v":683.0555211599999},{"$f":"'[2]EXT Comercio(M)'!AK228","v":395.27046777551453},{"$f":"'[2]EXT Comercio(M)'!AL228","v":1330.5000000000002},{"$f":"'[2]EXT Comercio(M)'!AM228","v":1156.8111400000009},{"$f":"'[2]EXT Comercio(M)'!AO228","v":5236.2819796955155},{"$f":"'[2]EXT Comercio(M)'!AP228","v":6393.0931196955171},null,null,{"$f":"'[2]EXT Comercio(M)'!$BS228","v":-2473.4222729144412},{"$f":"'[2]EXT Comercio(M)'!$BT228","v":-2723.0122729144423}]
[null,null,"Abril",{"$f":"'[2]REAL IPC(M)'!AD229","v":10.946228468348087},{"$f":"'[2]REAL IPC(M)'!AE229","v":6.7883132399261426},{"$f":"'[2]REAL IPC(M)'!AF229","v":10.368823938761308},{"$f":"'[2]REAL IPC(M)'!AG229","v":9.7048808172531356},{"$f":"'[2]REAL IPC(M)'!AH229","v":19.352336629823537},{"$f":"'[2]REAL IPC(M)'!AI229","v":10.833333333333304},{"$f":"'[2]REAL IPC(M)'!AJ229","v":8.5242896425298049},null,null,{"$f":"'[2]REAL IMAE(M)'!AG229","v":4.9289702397280806},{"$f":"'[2]REAL IMAE(M)'!AH229","v":6.0505174037188869},{"$f":"'[2]REAL IMAE(M)'!AI229","v":4.8271121810254538},{"$f":"'[2]REAL IMAE(M)'!AJ229","v":6.8550127255229185},{"$f":"'[2]REAL IMAE(M)'!AK229","v":6.7102672572103383},{"$f":"'[2]REAL IMAE(M)'!AL229","v":6.803165082518384},{"$f":"'[2]REAL IMAE(M)'!AM229","v":12.377100266464552},null,null,{"$f":"'[2]EXT ITCER(M)'!C229","v":87.992938752830568},{"$f":"'[2]EXT ITCER(M)'!D229","v":92.096168126086539},{"$f":"'[2]EXT ITCER(M)'!E229","v":68.483653737416063},{"$f":"'[2]EXT ITCER(M)'!F229","v":87.198697449767977},{"$f":"'[2]EXT ITCER(M)'!G229","v":95.313657764372607},{"$f":"'[2]EXT ITCER(M)'!H229","v":92.563216532332703},{"$f":"'[2]EXT ITCER(M)'!I229","v":101.7953089620904},null,null,{"$f":"'[2]EXT TC(M)'!J229","v":-4.9265192536198068},{"$f":"'[2]EXT TC(M)'!K229","v":0},{"$f":"'[2]EXT TC(M)'!L229","v":-1.5963620869363464},{"$f":"'[2]EXT TC(M)'!M229","v":1.904761904763105E-2},{"$f":"'[2]EXT TC(M)'!N229","v":4.9721947339884585},{"$f":"'[2]EXT TC(M)'!O229","v":5.5780514519937539},{"$f":"'[2]EXT TC(M)'!P229","v":0},null,null,{"$f":"'[2]EXT RIN(M)'!C229","v":4936.5400497700002},{"$f":"'[2]EXT RIN(M)'!D229","v":2312.3000000000002},{"$f":"'[2]EXT RIN(M)'!E229","v":4468.7},{"$f":"'[2]EXT RIN(M)'!F229","v":2593.063537103832},{"$f":"'[2]EXT RIN(M)'!G229","v":1030.5999999999999},{"$f":"'[2]EXT RIN(M)'!H229","v":2183.9},{"$f":"'[2]EXT RIN(M)'!I229","v":1957.96682021162},null,null,{"$f":"'[2]EXT RIN(M)'!P229","v":66.104659310164109},{"$f":"'[2]EXT RIN(M)'!Q229","v":90.068578791601652},{"$f":"'[2]EXT RIN(M)'!R229","v":110.87539005328935},{"$f":"'[2]EXT RIN(M)'!S229","v":109.3449405463862},{"$f":"'[2]EXT RIN(M)'!T229","v":100.9271208100288},{"$f":"'[2]EXT RIN(M)'!U229","v":44.730661731393361},{"$f":"'[2]EXT RIN(M)'!V229","v":190.52183488807387},null,null,{"$f":"+'[2]MONE(M)CAPARD'!AE229","v":-6.0355620563149266},{"$f":"'[2]MONE(M)CAPARD'!AF229","v":-2.8826312042310818},{"$f":"'[2]MONE(M)CAPARD'!AG229","v":-4.8734993694829756},{"$f":"'[2]MONE(M)CAPARD'!AH229","v":-0.93421624418004401},{"$f":"'[2]MONE(M)CAPARD'!AI229","v":-5.4785009944851462},{"$f":"'[2]MONE(M)CAPARD'!AJ229","v":-2.8451127819548616},{"$f":"'[2]MONE(M)CAPARD'!AK229","v":-4.5282854729729873},null,null,{"$f":"'[2]MONE(M)CAPARD'!AL229","v":3.2549999999999999},{"$f":"'[2]MONE(M)CAPARD'!AM229","v":3.71},{"$f":"'[2]MONE(M)CAPARD'!AN229","v":3.52},{"$f":"'[2]MONE(M)CAPARD'!AO229","v":4.38},{"$f":"'[2]MONE(M)CAPARD'!AP229","v":6.69},{"$f":"'[2]MONE(M)CAPARD'!AQ229","v":1.96},{"$f":"'[2]MONE(M)CAPARD'!AR229","v":3.61},null,null,{"$f":"'[2]MONE(M)CAPARD'!J229","v":3.0859737901128219},{"$f":"'[2]MONE(M)CAPARD'!K229","v":0.47915988608624938},{"$f":"'[2]MONE(M)CAPARD'!L229","v":2.5923770491803286},{"$f":"'[2]MONE(M)CAPARD'!M229","v":6.5950750129332514},{"$f":"'[2]MONE(M)CAPARD'!N229","v":-0.8610461719397603},{"$f":"'[2]MONE(M)CAPARD'!O229","v":4.7338345864661919},{"$f":"'[2]MONE(M)CAPARD'!P229","v":-1.2433600239723159},null,null,{"$f":"'[2]MONE(M)CAPARD'!Q229","v":9.36},{"$f":"'[2]MONE(M)CAPARD'!R229","v":7.3},{"$f":"'[2]MONE(M)CAPARD'!S229","v":7.4899999999999993},{"$f":"'[2]MONE(M)CAPARD'!T229","v":9.6999999999999993},{"$f":"'[2]MONE(M)CAPARD'!U229","v":11.11},{"$f":"'[2]MONE(M)CAPARD'!V229","v":9.19},{"$f":"'[2]MONE(M)CAPARD'!W229","v":7.1749420088146607},null,null,{"$f":"'[2]MONE(M)CAPARD'!AS229","v":5.99},{"$f":"'[2]MONE(M)CAPARD'!AT229","v":"n.a."},{"$f":"'[2]MONE(M)CAPARD'!AU229","v":6.75},{"$f":"'[2]MONE(M)CAPARD'!AV229","v":7.75},{"$f":"'[2]MONE(M)CAPARD'!AW229","v":"n.a."},{"$f":"'[2]MONE(M)CAPARD'!AX229","v":9},{"$f":"'[2]MONE(M)CAPARD'!AY229","v":"n.a."},null,null,{"$f":"+'Datos_Regional (M)'!CF222","v":41.541538378595064},{"$f":"+'Datos_Regional (M)'!CG222","v":8.6948252061132436},{"$f":"+'Datos_Regional (M)'!CH222","v":11.647547358662358},{"$f":"+'Datos_Regional (M)'!CI222","v":27.080951548609455},{"$f":"+'Datos_Regional (M)'!CJ222","v":30.12781965697371},{"$f":"+'Datos_Regional (M)'!CK222","v":30.30346700308144},{"$f":"+'Datos_Regional (M)'!CL222","v":23.934773177279279},null,null,576.62586650916671,354.40916666666664,604.7166666666667,227.44328976120846,212.34808099565225,594.61500000000001,844.6427427499998,2570.1580705993606,3414.8008133493604,null,null,988.16030291749996,782.05833333333328,1195.8416666666665,653.77107082629334,376.46163590788888,1232.1583333333333,1279.2157099166668,5228.4513429850158,6507.6670529016819,null,null,-2658.2932723856547,-3092.8662395523211,null,null,{"$f":"'[2]EXT Comercio(M)'!C229","v":683.7332944599998},{"$f":"'[2]EXT Comercio(M)'!D229","v":427.65000000000009},{"$f":"'[2]EXT Comercio(M)'!E229","v":723.59999999999991},{"$f":"'[2]EXT Comercio(M)'!F229","v":250.49959858},{"$f":"'[2]EXT Comercio(M)'!G229","v":261.51255451986594},{"$f":"'[2]EXT Comercio(M)'!H229","v":613.17429999999968},{"$f":"'[2]EXT Comercio(M)'!I229","v":924.89186600000005},{"$f":"'[2]EXT Comercio(M)'!K229","v":2960.1697475598658},{"$f":"'[2]EXT Comercio(M)'!L229","v":3885.0616135598648},null,null,{"$f":"'[2]EXT Comercio(M)'!AG229","v":1335.8635609200001},{"$f":"'[2]EXT Comercio(M)'!AH229","v":921.95000000000027},{"$f":"'[2]EXT Comercio(M)'!AI229","v":1391.8000000000002},{"$f":"'[2]EXT Comercio(M)'!AJ229","v":739.14514439999994},{"$f":"'[2]EXT Comercio(M)'!AK229","v":484.20076548302063},{"$f":"'[2]EXT Comercio(M)'!AL229","v":1393.2},{"$f":"'[2]EXT Comercio(M)'!AM229","v":1294.4243149999998},{"$f":"'[2]EXT Comercio(M)'!AO229","v":6266.1594708030207},{"$f":"'[2]EXT Comercio(M)'!AP229","v":7560.5837858030209},null,null,{"$f":"'[2]EXT Comercio(M)'!$BS229","v":-3305.9897232431549},{"$f":"'[2]EXT Comercio(M)'!$BT229","v":-3675.5221722431543}]
[null,null,"Mayo ",{"$f":"'[2]REAL IPC(M)'!AD230","v":11.895754249466041},{"$f":"'[2]REAL IPC(M)'!AE230","v":8.3978623623077819},{"$f":"'[2]REAL IPC(M)'!AF230","v":12.241532411518444},{"$f":"'[2]REAL IPC(M)'!AG230","v":11.249293386093841},{"$f":"'[2]REAL IPC(M)'!AH230","v":21.745405561435575},{"$f":"'[2]REAL IPC(M)'!AI230","v":10.034589986373625},{"$f":"'[2]REAL IPC(M)'!AJ230","v":8.8422971741112093},null,null,{"$f":"'[2]REAL IMAE(M)'!AG230","v":4.2813491003738919},{"$f":"'[2]REAL IMAE(M)'!AH230","v":2.7373003073370916},{"$f":"'[2]REAL IMAE(M)'!AI230","v":4.6044696061836321},{"$f":"'[2]REAL IMAE(M)'!AJ230","v":6.4037749604120178},{"$f":"'[2]REAL IMAE(M)'!AK230","v":5.8674191098454864},{"$f":"'[2]REAL IMAE(M)'!AL230","v":5.7613672327358136},{"$f":"'[2]REAL IMAE(M)'!AM230","v":12.597101306558619},null,null,{"$f":"'[2]EXT ITCER(M)'!C230","v":89.736126278334993},{"$f":"'[2]EXT ITCER(M)'!D230","v":91.643802366950183},{"$f":"'[2]EXT ITCER(M)'!E230","v":66.957514977148037},{"$f":"'[2]EXT ITCER(M)'!F230","v":86.192599731083376},{"$f":"'[2]EXT ITCER(M)'!G230","v":93.71271200882039},{"$f":"'[2]EXT ITCER(M)'!H230","v":92.761245797938315},{"$f":"'[2]EXT ITCER(M)'!I230","v":101.5400798279822},null,null,{"$f":"'[2]EXT TC(M)'!J230","v":-1.7827937926815738},{"$f":"'[2]EXT TC(M)'!K230","v":0},{"$f":"'[2]EXT TC(M)'!L230","v":-2.7551886641566181},{"$f":"'[2]EXT TC(M)'!M230","v":6.3013353489417695E-2},{"$f":"'[2]EXT TC(M)'!N230","v":5.2304127548441057},{"$f":"'[2]EXT TC(M)'!O230","v":5.823309416984551},{"$f":"'[2]EXT TC(M)'!P230","v":0},null,null,{"$f":"'[2]EXT RIN(M)'!C230","v":4572.5978635600004},{"$f":"'[2]EXT RIN(M)'!D230","v":2404.9},{"$f":"'[2]EXT RIN(M)'!E230","v":4573.2},{"$f":"'[2]EXT RIN(M)'!F230","v":2512.6440159337553},{"$f":"'[2]EXT RIN(M)'!G230","v":1042.0999999999999},{"$f":"'[2]EXT RIN(M)'!H230","v":2193.1999999999998},{"$f":"'[2]EXT RIN(M)'!I230","v":1954.1300465132897},null,null,{"$f":"'[2]EXT RIN(M)'!P230","v":67.142608765097805},{"$f":"'[2]EXT RIN(M)'!Q230","v":93.582757642488119},{"$f":"'[2]EXT RIN(M)'!R230","v":110.15779183343813},{"$f":"'[2]EXT RIN(M)'!S230","v":109.52443778200514},{"$f":"'[2]EXT RIN(M)'!T230","v":104.74773712305117},{"$f":"'[2]EXT RIN(M)'!U230","v":45.37248757111292},{"$f":"'[2]EXT RIN(M)'!V230","v":201.64764739912582},null,null,{"$f":"+'[2]MONE(M)CAPARD'!AE230","v":-6.1626594286073608},{"$f":"'[2]MONE(M)CAPARD'!AF230","v":-4.2970057349834043},{"$f":"'[2]MONE(M)CAPARD'!AG230","v":-6.4071937160940218},{"$f":"'[2]MONE(M)CAPARD'!AH230","v":-2.1746595528455308},{"$f":"'[2]MONE(M)CAPARD'!AI230","v":-7.0307159131404555},{"$f":"'[2]MONE(M)CAPARD'!AJ230","v":-1.1674419712316872},{"$f":"'[2]MONE(M)CAPARD'!AK230","v":-4.9909798994974848},null,null,{"$f":"'[2]MONE(M)CAPARD'!AL230","v":3.4050000000000002},{"$f":"'[2]MONE(M)CAPARD'!AM230","v":3.74},{"$f":"'[2]MONE(M)CAPARD'!AN230","v":3.54},{"$f":"'[2]MONE(M)CAPARD'!AO230","v":4.3899999999999997},{"$f":"'[2]MONE(M)CAPARD'!AP230","v":6.88},{"$f":"'[2]MONE(M)CAPARD'!AQ230","v":2.27},{"$f":"'[2]MONE(M)CAPARD'!AR230","v":3.41},null,null,{"$f":"'[2]MONE(M)CAPARD'!J230","v":2.6247179955905486},{"$f":"'[2]MONE(M)CAPARD'!K230","v":-0.89287956534863222},{"$f":"'[2]MONE(M)CAPARD'!L230","v":0.96975474683545559},{"$f":"'[2]MONE(M)CAPARD'!M230","v":5.2051626016260126},{"$f":"'[2]MONE(M)CAPARD'!N230","v":-2.7003318179827462},{"$f":"'[2]MONE(M)CAPARD'!O230","v":6.0212066173435526},{"$f":"'[2]MONE(M)CAPARD'!P230","v":-1.5481346741540718},null,null,{"$f":"'[2]MONE(M)CAPARD'!Q230","v":9.329979941885906},{"$f":"'[2]MONE(M)CAPARD'!R230","v":7.43},{"$f":"'[2]MONE(M)CAPARD'!S230","v":7.51},{"$f":"'[2]MONE(M)CAPARD'!T230","v":9.75},{"$f":"'[2]MONE(M)CAPARD'!U230","v":10.5},{"$f":"'[2]MONE(M)CAPARD'!V230","v":7.98},{"$f":"'[2]MONE(M)CAPARD'!W230","v":7.1572718314129764},null,null,{"$f":"'[2]MONE(M)CAPARD'!AS230","v":7.0012000000000008},{"$f":"'[2]MONE(M)CAPARD'!AT230","v":"n.a."},{"$f":"'[2]MONE(M)CAPARD'!AU230","v":6.75},{"$f":"'[2]MONE(M)CAPARD'!AV230","v":8},{"$f":"'[2]MONE(M)CAPARD'!AW230","v":"n.a."},{"$f":"'[2]MONE(M)CAPARD'!AX230","v":9},{"$f":"'[2]MONE(M)CAPARD'!AY230","v":"n.a."},null,null,{"$f":"+'Datos_Regional (M)'!CF223","v":44.099437713414822},{"$f":"+'Datos_Regional (M)'!CG223","v":8.1486344696407809},{"$f":"+'Datos_Regional (M)'!CH223","v":11.904972439564965},{"$f":"+'Datos_Regional (M)'!CI223","v":25.342986887555831},{"$f":"+'Datos_Regional (M)'!CJ223","v":28.99678639715335},{"$f":"+'Datos_Regional (M)'!CK223","v":29.801814651017811},{"$f":"+'Datos_Regional (M)'!CL223","v":17.34116912013026},null,null,580.48890439749994,362.4108333333333,602.39166666666677,229.29545216788733,213.64698850416679,592.25172500000008,845.29144924999991,2580.4855700695539,3425.7770193195543,null,null,1010.3399695591665,783.63666666666643,1208.6249999999998,674.56759208676829,383.03508520766644,1258.8166666666666,1299.1597400000003,5319.020980186935,6618.1807201869333,null,null,-2738.5354101173803,-3192.4037008673804,null,null,{"$f":"'[2]EXT Comercio(M)'!C230","v":677.20565490000035},{"$f":"'[2]EXT Comercio(M)'!D230","v":435.88999999999987},{"$f":"'[2]EXT Comercio(M)'!E230","v":651.1},{"$f":"'[2]EXT Comercio(M)'!F230","v":274.10342878000006},{"$f":"'[2]EXT Comercio(M)'!G230","v":212.50932966582462},{"$f":"'[2]EXT Comercio(M)'!H230","v":610.34900000000016},{"$f":"'[2]EXT Comercio(M)'!I230","v":802.38947799999994},{"$f":"'[2]EXT Comercio(M)'!K230","v":2861.1574133458234},{"$f":"'[2]EXT Comercio(M)'!L230","v":3663.5468913458244},null,null,{"$f":"'[2]EXT Comercio(M)'!AG230","v":1170.7163503099996},{"$f":"'[2]EXT Comercio(M)'!AH230","v":886.13999999999987},{"$f":"'[2]EXT Comercio(M)'!AI230","v":1326.5999999999995},{"$f":"'[2]EXT Comercio(M)'!AJ230","v":856.78838126999972},{"$f":"'[2]EXT Comercio(M)'!AK230","v":417.71744757611674},{"$f":"'[2]EXT Comercio(M)'!AL230","v":1498.6999999999996},{"$f":"'[2]EXT Comercio(M)'!AM230","v":1434.5739159999998},{"$f":"'[2]EXT Comercio(M)'!AO230","v":6156.6621791561156},{"$f":"'[2]EXT Comercio(M)'!AP230","v":7591.2360951561132},null,null,{"$f":"'[2]EXT Comercio(M)'!$BS230","v":-3295.5047658102903},{"$f":"'[2]EXT Comercio(M)'!$BT230","v":-3927.6892038102906}]
[null,null,"Junio",{"$f":"'[2]REAL IPC(M)'!AD231","v":12.817967448777587},{"$f":"'[2]REAL IPC(M)'!AE231","v":9.0249187432286},{"$f":"'[2]REAL IPC(M)'!AF231","v":13.556860516511909},{"$f":"'[2]REAL IPC(M)'!AG231","v":12.162162162162158},{"$f":"'[2]REAL IPC(M)'!AH231","v":23.090112402362347},{"$f":"'[2]REAL IPC(M)'!AI231","v":12.204203786191515},{"$f":"'[2]REAL IPC(M)'!AJ231","v":9.6188747731397459},null,null,{"$f":"'[2]REAL IMAE(M)'!AG231","v":3.7303181516065695},{"$f":"'[2]REAL IMAE(M)'!AH231","v":-0.43748782739614145},{"$f":"'[2]REAL IMAE(M)'!AI231","v":4.3089080952226881},{"$f":"'[2]REAL IMAE(M)'!AJ231","v":6.2263279416966393},{"$f":"'[2]REAL IMAE(M)'!AK231","v":4.9807826067722276},{"$f":"'[2]REAL IMAE(M)'!AL231","v":4.1522732256533166},{"$f":"'[2]REAL IMAE(M)'!AM231","v":12.771071954595126},null,null,{"$f":"'[2]EXT ITCER(M)'!C231","v":90.995716905158687},{"$f":"'[2]EXT ITCER(M)'!D231","v":91.462966165744589},{"$f":"'[2]EXT ITCER(M)'!E231","v":67.09492396849113},{"$f":"'[2]EXT ITCER(M)'!F231","v":85.987251626151362},{"$f":"'[2]EXT ITCER(M)'!G231","v":93.147210369817586},{"$f":"'[2]EXT ITCER(M)'!H231","v":91.945373163719665},{"$f":"'[2]EXT ITCER(M)'!I231","v":101.4149209709623},null,null,{"$f":"'[2]EXT TC(M)'!J231","v":-4.1547609754369157E-2},{"$f":"'[2]EXT TC(M)'!K231","v":0},{"$f":"'[2]EXT TC(M)'!L231","v":-2.4451878590017322},{"$f":"'[2]EXT TC(M)'!M231","v":-5.7697152935095811E-3},{"$f":"'[2]EXT TC(M)'!N231","v":5.5154026438938182},{"$f":"'[2]EXT TC(M)'!O231","v":5.3733719158178062},{"$f":"'[2]EXT TC(M)'!P231","v":0},null,null,{"$f":"'[2]EXT RIN(M)'!C231","v":4334.2038455100001},{"$f":"'[2]EXT RIN(M)'!D231","v":2300.4},{"$f":"'[2]EXT RIN(M)'!E231","v":4771.3},{"$f":"'[2]EXT RIN(M)'!F231","v":2547.3266866087911},{"$f":"'[2]EXT RIN(M)'!G231","v":1035.7},{"$f":"'[2]EXT RIN(M)'!H231","v":1975},{"$f":"'[2]EXT RIN(M)'!I231","v":2516.4444039084201},null,null,{"$f":"'[2]EXT RIN(M)'!P231","v":66.558689524327775},{"$f":"'[2]EXT RIN(M)'!Q231","v":91.068342824567566},{"$f":"'[2]EXT RIN(M)'!R231","v":116.54173182293516},{"$f":"'[2]EXT RIN(M)'!S231","v":107.47799049236173},{"$f":"'[2]EXT RIN(M)'!T231","v":105.59940044694187},{"$f":"'[2]EXT RIN(M)'!U231","v":43.044906072348724},{"$f":"'[2]EXT RIN(M)'!V231","v":261.34255074032848},null,null,{"$f":"+'[2]MONE(M)CAPARD'!AE231","v":-6.4865265828336627},{"$f":"'[2]MONE(M)CAPARD'!AF231","v":-4.7282023253502912},{"$f":"'[2]MONE(M)CAPARD'!AG231","v":-7.4208290702846513},{"$f":"'[2]MONE(M)CAPARD'!AH231","v":-2.8460240963855381},{"$f":"'[2]MONE(M)CAPARD'!AI231","v":-8.0030654718505492},{"$f":"'[2]MONE(M)CAPARD'!AJ231","v":-1.5010166547777626},{"$f":"'[2]MONE(M)CAPARD'!AK231","v":-5.7370364238410598},null,null,{"$f":"'[2]MONE(M)CAPARD'!AL231","v":3.4050000000000002},{"$f":"'[2]MONE(M)CAPARD'!AM231","v":3.87},{"$f":"'[2]MONE(M)CAPARD'!AN231","v":3.57},{"$f":"'[2]MONE(M)CAPARD'!AO231","v":4.46},{"$f":"'[2]MONE(M)CAPARD'!AP231","v":6.47},{"$f":"'[2]MONE(M)CAPARD'!AQ231","v":2.06},{"$f":"'[2]MONE(M)CAPARD'!AR231","v":3.33},null,null,{"$f":"'[2]MONE(M)CAPARD'!J231","v":2.2088968695113778},{"$f":"'[2]MONE(M)CAPARD'!K231","v":-1.6738547152936478},{"$f":"'[2]MONE(M)CAPARD'!L231","v":-0.13813389679710303},{"$f":"'[2]MONE(M)CAPARD'!M231","v":4.5807228915662703},{"$f":"'[2]MONE(M)CAPARD'!N231","v":-3.5455173955704762},{"$f":"'[2]MONE(M)CAPARD'!O231","v":6.0209831591353371},{"$f":"'[2]MONE(M)CAPARD'!P231","v":-2.219960176922136},null,null,{"$f":"'[2]MONE(M)CAPARD'!Q231","v":9.6},{"$f":"'[2]MONE(M)CAPARD'!R231","v":7.2},{"$f":"'[2]MONE(M)CAPARD'!S231","v":7.4899999999999993},{"$f":"'[2]MONE(M)CAPARD'!T231","v":9.75},{"$f":"'[2]MONE(M)CAPARD'!U231","v":10.89},{"$f":"'[2]MONE(M)CAPARD'!V231","v":7.51},{"$f":"'[2]MONE(M)CAPARD'!W231","v":7.1853794067858985},null,null,{"$f":"'[2]MONE(M)CAPARD'!AS231","v":8},{"$f":"'[2]MONE(M)CAPARD'!AT231","v":"n.a."},{"$f":"'[2]MONE(M)CAPARD'!AU231","v":6.75},{"$f":"'[2]MONE(M)CAPARD'!AV231","v":8.5},{"$f":"'[2]MONE(M)CAPARD'!AW231","v":"n.a."},{"$f":"'[2]MONE(M)CAPARD'!AX231","v":9},{"$f":"'[2]MONE(M)CAPARD'!AY231","v":"n.a."},null,null,{"$f":"+'Datos_Regional (M)'!CF224","v":42.836680601841024},{"$f":"+'Datos_Regional (M)'!CG224","v":8.0828550962577239},{"$f":"+'Datos_Regional (M)'!CH224","v":12.319732653439619},{"$f":"+'Datos_Regional (M)'!CI224","v":25.046697395257866},{"$f":"+'Datos_Regional (M)'!CJ224","v":26.547056436769356},{"$f":"+'Datos_Regional (M)'!CK224","v":25.976049235231713},{"$f":"+'Datos_Regional (M)'!CL224","v":18.429525070705566},null,null,582.49290369416656,366.76249999999999,612.27499999999998,233.00984341548505,218.7073834520852,589.52339166666673,849.71352583333328,2602.7710222284036,3452.4845480617369,null,null,1031.0453035608334,796.65499999999975,1221.9166666666663,692.70684204865984,390.82210176400213,1293.9416666666668,1329.1763065833334,5427.0875807068278,6756.2638872901616,null,null,-2824.3165584784242,-3303.7793392284243,null,null,{"$f":"'[2]EXT Comercio(M)'!C231","v":614.2381448999995},{"$f":"'[2]EXT Comercio(M)'!D231","v":392.85000000000036},{"$f":"'[2]EXT Comercio(M)'!E231","v":736.80000000000018},{"$f":"'[2]EXT Comercio(M)'!F231","v":264.32872648000011},{"$f":"'[2]EXT Comercio(M)'!G231","v":266.31320624170405},{"$f":"'[2]EXT Comercio(M)'!H231","v":618.88280000000032},{"$f":"'[2]EXT Comercio(M)'!I231","v":822.349919},{"$f":"'[2]EXT Comercio(M)'!K231","v":2893.412877621704},{"$f":"'[2]EXT Comercio(M)'!L231","v":3715.7627966217078},null,null,{"$f":"'[2]EXT Comercio(M)'!AG231","v":1105.05208988},{"$f":"'[2]EXT Comercio(M)'!AH231","v":880.72999999999956},{"$f":"'[2]EXT Comercio(M)'!AI231","v":1277.6999999999994},{"$f":"'[2]EXT Comercio(M)'!AJ231","v":787.12276534000011},{"$f":"'[2]EXT Comercio(M)'!AK231","v":411.60453446864335},{"$f":"'[2]EXT Comercio(M)'!AL231","v":1495.4000000000008},{"$f":"'[2]EXT Comercio(M)'!AM231","v":1490.012580999999},{"$f":"'[2]EXT Comercio(M)'!AO231","v":5957.6093896886377},{"$f":"'[2]EXT Comercio(M)'!AP231","v":7447.6219706886332},null,null,{"$f":"'[2]EXT Comercio(M)'!$BS231","v":-3064.1965120669356},{"$f":"'[2]EXT Comercio(M)'!$BT231","v":-3731.8591740669326}]
[null,null,"Julio",{"$f":"'[2]REAL IPC(M)'!AD232","v":14.169802634896744},{"$f":"'[2]REAL IPC(M)'!AE232","v":9.6385542168674778},{"$f":"'[2]REAL IPC(M)'!AF232","v":14.155852297661555},{"$f":"'[2]REAL IPC(M)'!AG232","v":13.758389261744963},{"$f":"'[2]REAL IPC(M)'!AH232","v":23.632240385523957},{"$f":"'[2]REAL IPC(M)'!AI232","v":13.727872266574062},{"$f":"'[2]REAL IPC(M)'!AJ232","v":9.5754290876242099},null,null,{"$f":"'[2]REAL IMAE(M)'!AG232","v":3.2462222618536831},{"$f":"'[2]REAL IMAE(M)'!AH232","v":-1.2491939741559484},{"$f":"'[2]REAL IMAE(M)'!AI232","v":3.9559277294869926},{"$f":"'[2]REAL IMAE(M)'!AJ232","v":4.9515885614762354},{"$f":"'[2]REAL IMAE(M)'!AK232","v":4.1192582833547382},{"$f":"'[2]REAL IMAE(M)'!AL232","v":2.2207087672103469},{"$f":"'[2]REAL IMAE(M)'!AM232","v":12.648178036595429},null,null,{"$f":"'[2]EXT ITCER(M)'!C232","v":92.471471058952943},{"$f":"'[2]EXT ITCER(M)'!D232","v":90.950231153753592},{"$f":"'[2]EXT ITCER(M)'!E232","v":66.296325668329658},{"$f":"'[2]EXT ITCER(M)'!F232","v":84.797405646569842},{"$f":"'[2]EXT ITCER(M)'!G232","v":93.005500775892031},{"$f":"'[2]EXT ITCER(M)'!H232","v":91.437233958149605},{"$f":"'[2]EXT ITCER(M)'!I232","v":101.7181511883562},null,null,{"$f":"'[2]EXT TC(M)'!J232","v":3.0323220389572176},{"$f":"'[2]EXT TC(M)'!K232","v":0},{"$f":"'[2]EXT TC(M)'!L232","v":-3.107954202284462},{"$f":"'[2]EXT TC(M)'!M232","v":-2.426961122616467E-2},{"$f":"'[2]EXT TC(M)'!N232","v":5.503433179598038},{"$f":"'[2]EXT TC(M)'!O232","v":3.8823739796985475},{"$f":"'[2]EXT TC(M)'!P232","v":0},null,null,{"$f":"'[2]EXT RIN(M)'!C232","v":4106.6158990900003},{"$f":"'[2]EXT RIN(M)'!D232","v":2262.6},{"$f":"'[2]EXT RIN(M)'!E232","v":4742.3},{"$f":"'[2]EXT RIN(M)'!F232","v":2441.1181316090333},{"$f":"'[2]EXT RIN(M)'!G232","v":1053.8},{"$f":"'[2]EXT RIN(M)'!H232","v":2078.5},{"$f":"'[2]EXT RIN(M)'!I232","v":2430.5744654860796},null,null,{"$f":"'[2]EXT RIN(M)'!P232","v":68.873563841179788},{"$f":"'[2]EXT RIN(M)'!Q232","v":88.358065338731308},{"$f":"'[2]EXT RIN(M)'!R232","v":109.17843992928955},{"$f":"'[2]EXT RIN(M)'!S232","v":109.47353812678482},{"$f":"'[2]EXT RIN(M)'!T232","v":101.46131585599383},{"$f":"'[2]EXT RIN(M)'!U232","v":45.951182117383773},{"$f":"'[2]EXT RIN(M)'!V232","v":247.26361674072871},null,null,{"$f":"+'[2]MONE(M)CAPARD'!AE232","v":-6.2799465965838914},{"$f":"'[2]MONE(M)CAPARD'!AF232","v":-5.079010989010996},{"$f":"'[2]MONE(M)CAPARD'!AG232","v":-7.8277653907408142},{"$f":"'[2]MONE(M)CAPARD'!AH232","v":-4.0070796460176972},{"$f":"'[2]MONE(M)CAPARD'!AI232","v":-8.7923432991855428},{"$f":"'[2]MONE(M)CAPARD'!AJ232","v":-0.85983518998927932},{"$f":"'[2]MONE(M)CAPARD'!AK232","v":-5.5627699917559772},null,null,{"$f":"'[2]MONE(M)CAPARD'!AL232","v":3.87},{"$f":"'[2]MONE(M)CAPARD'!AM232","v":4.07},{"$f":"'[2]MONE(M)CAPARD'!AN232","v":3.68},{"$f":"'[2]MONE(M)CAPARD'!AO232","v":4.42},{"$f":"'[2]MONE(M)CAPARD'!AP232","v":6.28},{"$f":"'[2]MONE(M)CAPARD'!AQ232","v":2.0099999999999998},{"$f":"'[2]MONE(M)CAPARD'!AR232","v":3.48},null,null,{"$f":"'[2]MONE(M)CAPARD'!J232","v":1.708155151445595},{"$f":"'[2]MONE(M)CAPARD'!K232","v":-2.0873626373626446},{"$f":"'[2]MONE(M)CAPARD'!L232","v":-0.59204349497498288},{"$f":"'[2]MONE(M)CAPARD'!M232","v":3.4561061946902703},{"$f":"'[2]MONE(M)CAPARD'!N232","v":-3.6721529903823424},{"$f":"'[2]MONE(M)CAPARD'!O232","v":6.9746558828018124},{"$f":"'[2]MONE(M)CAPARD'!P232","v":-2.3024625657058033},null,null,{"$f":"'[2]MONE(M)CAPARD'!Q232","v":9.86},{"$f":"'[2]MONE(M)CAPARD'!R232","v":7.35},{"$f":"'[2]MONE(M)CAPARD'!S232","v":7.51},{"$f":"'[2]MONE(M)CAPARD'!T232","v":9.8000000000000007},{"$f":"'[2]MONE(M)CAPARD'!U232","v":10.45},{"$f":"'[2]MONE(M)CAPARD'!V232","v":8.02},{"$f":"'[2]MONE(M)CAPARD'!W232","v":7.0524958516701544},null,null,{"$f":"'[2]MONE(M)CAPARD'!AS232","v":8.9976000000000003},{"$f":"'[2]MONE(M)CAPARD'!AT232","v":"n.a."},{"$f":"'[2]MONE(M)CAPARD'!AU232","v":7.25},{"$f":"'[2]MONE(M)CAPARD'!AV232","v":9},{"$f":"'[2]MONE(M)CAPARD'!AW232","v":"n.a."},{"$f":"'[2]MONE(M)CAPARD'!AX232","v":9},{"$f":"'[2]MONE(M)CAPARD'!AY232","v":"n.a."},null,null,{"$f":"+'Datos_Regional (M)'!CF225","v":44.483159397948711},{"$f":"+'Datos_Regional (M)'!CG225","v":7.4920309007296293},{"$f":"+'Datos_Regional (M)'!CH225","v":10.554711758621483},{"$f":"+'Datos_Regional (M)'!CI225","v":22.460381449836355},{"$f":"+'Datos_Regional (M)'!CJ225","v":26.140099248725267},{"$f":"+'Datos_Regional (M)'!CK225","v":23.636320650778742},{"$f":"+'Datos_Regional (M)'!CL225","v":18.393413784320135},null,null,589.5242867733333,371.95083333333338,626.13333333333333,234.36683907663198,221.70613312548929,595.55388333333337,863.32232133333321,2639.2353089754547,3502.5576303087887,null,null,1050.0131145033336,805.89583333333303,1238.55,707.03401275883061,402.62968666459386,1334.2583333333334,1365.4783853333336,5538.3809805934243,6903.8593659267572,null,null,-2899.1456716179691,-3401.3017356179685,null,null,{"$f":"'[2]EXT Comercio(M)'!C232","v":612.90472975000012},{"$f":"'[2]EXT Comercio(M)'!D232","v":448.11999999999989},{"$f":"'[2]EXT Comercio(M)'!E232","v":745.3},{"$f":"'[2]EXT Comercio(M)'!F232","v":247.9278598599999},{"$f":"'[2]EXT Comercio(M)'!G232","v":241.21314406415402},{"$f":"'[2]EXT Comercio(M)'!H232","v":659.35229999999956},{"$f":"'[2]EXT Comercio(M)'!I232","v":934.13854600000002},{"$f":"'[2]EXT Comercio(M)'!K232","v":2954.818033674157},{"$f":"'[2]EXT Comercio(M)'!L232","v":3888.9565796741517},null,null,{"$f":"'[2]EXT Comercio(M)'!AG232","v":1154.64627217},{"$f":"'[2]EXT Comercio(M)'!AH232","v":917.79},{"$f":"'[2]EXT Comercio(M)'!AI232","v":1398.6000000000001},{"$f":"'[2]EXT Comercio(M)'!AJ232","v":836.55592788000013},{"$f":"'[2]EXT Comercio(M)'!AK232","v":495.51394424108156},{"$f":"'[2]EXT Comercio(M)'!AL232","v":1687.5999999999992},{"$f":"'[2]EXT Comercio(M)'!AM232","v":1790.6730790000001},{"$f":"'[2]EXT Comercio(M)'!AO232","v":6490.7061442910854},{"$f":"'[2]EXT Comercio(M)'!AP232","v":8281.3792232910928},null,null,{"$f":"'[2]EXT Comercio(M)'!$BS232","v":-3535.8881106169283},{"$f":"'[2]EXT Comercio(M)'!$BT232","v":-4392.4226436169301}]
[null,null,"Agosto",{"$f":"'[2]REAL IPC(M)'!AD233","v":15.402643306505363},{"$f":"'[2]REAL IPC(M)'!AE233","v":9.8901098901099047},{"$f":"'[2]REAL IPC(M)'!AF233","v":13.685779958998564},{"$f":"'[2]REAL IPC(M)'!AG233","v":13.99222654081067},{"$f":"'[2]REAL IPC(M)'!AH233","v":23.91632114587259},{"$f":"'[2]REAL IPC(M)'!AI233","v":14.567685589519607},{"$f":"'[2]REAL IPC(M)'!AJ233","v":9.8286744815148612},null,null,{"$f":"'[2]REAL IMAE(M)'!AG233","v":2.6950992811552892},{"$f":"'[2]REAL IMAE(M)'!AH233","v":0.36920272302083929},{"$f":"'[2]REAL IMAE(M)'!AI233","v":3.5815267773769559},{"$f":"'[2]REAL IMAE(M)'!AJ233","v":4.4680603380695008},{"$f":"'[2]REAL IMAE(M)'!AK233","v":3.3026226090295463},{"$f":"'[2]REAL IMAE(M)'!AL233","v":0.38361453573296161},{"$f":"'[2]REAL IMAE(M)'!AM233","v":12.068571827660572},null,null,{"$f":"'[2]EXT ITCER(M)'!C233","v":93.249116103199199},{"$f":"'[2]EXT ITCER(M)'!D233","v":90.750791760741023},{"$f":"'[2]EXT ITCER(M)'!E233","v":65.556691924783919},{"$f":"'[2]EXT ITCER(M)'!F233","v":83.886630350738614},{"$f":"'[2]EXT ITCER(M)'!G233","v":92.877778605105561},{"$f":"'[2]EXT ITCER(M)'!H233","v":92.286718087607454},{"$f":"'[2]EXT ITCER(M)'!I233","v":101.1498055234341},null,null,{"$f":"'[2]EXT TC(M)'!J233","v":5.9188801686540771},{"$f":"'[2]EXT TC(M)'!K233","v":0},{"$f":"'[2]EXT TC(M)'!L233","v":-3.3577792241937314},{"$f":"'[2]EXT TC(M)'!M233","v":-2.5396825396822604E-2},{"$f":"'[2]EXT TC(M)'!N233","v":5.2159825068851386},{"$f":"'[2]EXT TC(M)'!O233","v":5.3848374792955127},{"$f":"'[2]EXT TC(M)'!P233","v":0},null,null,{"$f":"'[2]EXT RIN(M)'!C233","v":4004.20506015},{"$f":"'[2]EXT RIN(M)'!D233","v":2304.3000000000002},{"$f":"'[2]EXT RIN(M)'!E233","v":4714.8999999999996},{"$f":"'[2]EXT RIN(M)'!F233","v":2386.9813027731525},{"$f":"'[2]EXT RIN(M)'!G233","v":1020.8},{"$f":"'[2]EXT RIN(M)'!H233","v":2111.1999999999998},{"$f":"'[2]EXT RIN(M)'!I233","v":2405.1473954663206},null,null,{"$f":"'[2]EXT RIN(M)'!P233","v":68.091590818016968},{"$f":"'[2]EXT RIN(M)'!Q233","v":89.869892825384952},{"$f":"'[2]EXT RIN(M)'!R233","v":109.66500853127637},{"$f":"'[2]EXT RIN(M)'!S233","v":108.56704527028094},{"$f":"'[2]EXT RIN(M)'!T233","v":101.52474323814442},{"$f":"'[2]EXT RIN(M)'!U233","v":44.894407981798054},{"$f":"'[2]EXT RIN(M)'!V233","v":243.97711180817691},null,null,{"$f":"+'[2]MONE(M)CAPARD'!AE233","v":-5.9813563266243257},{"$f":"'[2]MONE(M)CAPARD'!AF233","v":-5.2508000000000123},{"$f":"'[2]MONE(M)CAPARD'!AG233","v":-7.3938710382513619},{"$f":"'[2]MONE(M)CAPARD'!AH233","v":-3.8530930345835439},{"$f":"'[2]MONE(M)CAPARD'!AI233","v":-9.0116250936379796},{"$f":"'[2]MONE(M)CAPARD'!AJ233","v":-0.81845555724954266},{"$f":"'[2]MONE(M)CAPARD'!AK233","v":-5.8442610837438282},null,null,{"$f":"'[2]MONE(M)CAPARD'!AL233","v":3.89},{"$f":"'[2]MONE(M)CAPARD'!AM233","v":4.12},{"$f":"'[2]MONE(M)CAPARD'!AN233","v":3.67},{"$f":"'[2]MONE(M)CAPARD'!AO233","v":4.37},{"$f":"'[2]MONE(M)CAPARD'!AP233","v":7.25},{"$f":"'[2]MONE(M)CAPARD'!AQ233","v":2.35},{"$f":"'[2]MONE(M)CAPARD'!AR233","v":3.41},null,null,{"$f":"'[2]MONE(M)CAPARD'!J233","v":1.9127436168268477},{"$f":"'[2]MONE(M)CAPARD'!K233","v":-2.1841000000000128},{"$f":"'[2]MONE(M)CAPARD'!L233","v":-0.10184207650272593},{"$f":"'[2]MONE(M)CAPARD'!M233","v":4.0246371164149926},{"$f":"'[2]MONE(M)CAPARD'!N233","v":-3.4585831760604573},{"$f":"'[2]MONE(M)CAPARD'!O233","v":8.0060222594908161},{"$f":"'[2]MONE(M)CAPARD'!P233","v":-2.584529519157921},null,null,{"$f":"'[2]MONE(M)CAPARD'!Q233","v":10.43},{"$f":"'[2]MONE(M)CAPARD'!R233","v":7.49},{"$f":"'[2]MONE(M)CAPARD'!S233","v":7.5600000000000005},{"$f":"'[2]MONE(M)CAPARD'!T233","v":10.09},{"$f":"'[2]MONE(M)CAPARD'!U233","v":10.83},{"$f":"'[2]MONE(M)CAPARD'!V233","v":8.26},{"$f":"'[2]MONE(M)CAPARD'!W233","v":6.9901199690402471},null,null,{"$f":"'[2]MONE(M)CAPARD'!AS233","v":10},{"$f":"'[2]MONE(M)CAPARD'!AT233","v":"n.a."},{"$f":"'[2]MONE(M)CAPARD'!AU233","v":7.25},{"$f":"'[2]MONE(M)CAPARD'!AV233","v":9},{"$f":"'[2]MONE(M)CAPARD'!AW233","v":"n.a."},{"$f":"'[2]MONE(M)CAPARD'!AX233","v":9.5},{"$f":"'[2]MONE(M)CAPARD'!AY233","v":"n.a."},null,null,{"$f":"+'Datos_Regional (M)'!CF226","v":41.990596270935598},{"$f":"+'Datos_Regional (M)'!CG226","v":7.5957732425602664},{"$f":"+'Datos_Regional (M)'!CH226","v":10.98095856627188},{"$f":"+'Datos_Regional (M)'!CI226","v":20.634849799284403},{"$f":"+'Datos_Regional (M)'!CJ226","v":25.761831771668021},{"$f":"+'Datos_Regional (M)'!CK226","v":22.412121148538368},{"$f":"+'Datos_Regional (M)'!CL226","v":19.126106651075169},null,null,591.13382285,378.05916666666673,634.1583333333333,236.07527319826457,225.32304712980161,593.14105833333349,872.84756991666654,2657.8907015113996,3530.7382714280661,null,null,1072.0026663141668,811.84583333333319,1236.333333333333,720.44756931555548,406.80657970246881,1351.3416666666665,1394.3817409999999,5598.7776486655239,6993.1593896655222,null,null,-2940.8869471541243,-3462.4211182374579,null,null,{"$f":"'[2]EXT Comercio(M)'!C233","v":588.62671158000012},{"$f":"'[2]EXT Comercio(M)'!D233","v":422.52},{"$f":"'[2]EXT Comercio(M)'!E233","v":685.00000000000045},{"$f":"'[2]EXT Comercio(M)'!F233","v":234.07268586000009},{"$f":"'[2]EXT Comercio(M)'!G233","v":251.2819931334619},{"$f":"'[2]EXT Comercio(M)'!H233","v":599.61660000000029},{"$f":"'[2]EXT Comercio(M)'!I233","v":933.50698299999999},{"$f":"'[2]EXT Comercio(M)'!K233","v":2781.1179905734571},{"$f":"'[2]EXT Comercio(M)'!L233","v":3714.62497357346},null,null,{"$f":"'[2]EXT Comercio(M)'!AG233","v":1198.1133348300007},{"$f":"'[2]EXT Comercio(M)'!AH233","v":776.63000000000011},{"$f":"'[2]EXT Comercio(M)'!AI233","v":1233.0999999999995},{"$f":"'[2]EXT Comercio(M)'!AJ233","v":839.3081174099998},{"$f":"'[2]EXT Comercio(M)'!AK233","v":411.6103728399583},{"$f":"'[2]EXT Comercio(M)'!AL233","v":1376.7999999999993},{"$f":"'[2]EXT Comercio(M)'!AM233","v":1651.9555809999995},{"$f":"'[2]EXT Comercio(M)'!AO233","v":5835.5618250799598},{"$f":"'[2]EXT Comercio(M)'!AP233","v":7487.5174060799545},null,null,{"$f":"'[2]EXT Comercio(M)'!$BS233","v":-3054.4438345064991},{"$f":"'[2]EXT Comercio(M)'!$BT233","v":-3772.8924325064982}]
[null,null,"Setiembre",{"$f":"'[2]REAL IPC(M)'!AD234","v":15.766820863465508},{"$f":"'[2]REAL IPC(M)'!AE234","v":8.6784376672017167},{"$f":"'[2]REAL IPC(M)'!AF234","v":12.748364803159298},{"$f":"'[2]REAL IPC(M)'!AG234","v":13.716814159292026},{"$f":"'[2]REAL IPC(M)'!AH234","v":22.791651136787188},{"$f":"'[2]REAL IPC(M)'!AI234","v":14.578587699316598},{"$f":"'[2]REAL IPC(M)'!AJ234","v":10.044843049327357},null,null,{"$f":"'[2]REAL IMAE(M)'!AG234","v":2.1653461848163844},{"$f":"'[2]REAL IMAE(M)'!AH234","v":2.3279443096374108},{"$f":"'[2]REAL IMAE(M)'!AI234","v":3.1487813643815485},{"$f":"'[2]REAL IMAE(M)'!AJ234","v":3.8028080782724154},{"$f":"'[2]REAL IMAE(M)'!AK234","v":2.4063309119328524},{"$f":"'[2]REAL IMAE(M)'!AL234","v":-1.1296675218270547},{"$f":"'[2]REAL IMAE(M)'!AM234","v":10.973184371229467},null,null,{"$f":"'[2]EXT ITCER(M)'!C234","v":92.757899988679625},{"$f":"'[2]EXT ITCER(M)'!D234","v":91.211334536269405},{"$f":"'[2]EXT ITCER(M)'!E234","v":66.188452460165863},{"$f":"'[2]EXT ITCER(M)'!F234","v":83.835515725876945},{"$f":"'[2]EXT ITCER(M)'!G234","v":92.556681232094064},{"$f":"'[2]EXT ITCER(M)'!H234","v":91.655928952312095},{"$f":"'[2]EXT ITCER(M)'!I234","v":100.49373334866939},null,null,{"$f":"'[2]EXT TC(M)'!J234","v":6.3147634110128772},{"$f":"'[2]EXT TC(M)'!K234","v":0},{"$f":"'[2]EXT TC(M)'!L234","v":-3.1191989579150219},{"$f":"'[2]EXT TC(M)'!M234","v":-2.5799949609446409E-2},{"$f":"'[2]EXT TC(M)'!N234","v":4.5075027282833737},{"$f":"'[2]EXT TC(M)'!O234","v":4.5802283058409579},{"$f":"'[2]EXT TC(M)'!P234","v":0},null,null,{"$f":"'[2]EXT RIN(M)'!C234","v":3814.0297339700001},{"$f":"'[2]EXT RIN(M)'!D234","v":2259},{"$f":"'[2]EXT RIN(M)'!E234","v":4745.0700062100004},{"$f":"'[2]EXT RIN(M)'!F234","v":2358.4707795904228},{"$f":"'[2]EXT RIN(M)'!G234","v":1053},{"$f":"'[2]EXT RIN(M)'!H234","v":2099.1999999999998},{"$f":"'[2]EXT RIN(M)'!I234","v":2224.2239325130799},null,null,{"$f":"'[2]EXT RIN(M)'!P234","v":65.896672714668398},{"$f":"'[2]EXT RIN(M)'!Q234","v":89.602073976646352},{"$f":"'[2]EXT RIN(M)'!R234","v":107.52010803754504},{"$f":"'[2]EXT RIN(M)'!S234","v":109.26377360670192},{"$f":"'[2]EXT RIN(M)'!T234","v":100.20920832464182},{"$f":"'[2]EXT RIN(M)'!U234","v":43.949378141292506},{"$f":"'[2]EXT RIN(M)'!V234","v":223.51695737436086},null,null,{"$f":"+'[2]MONE(M)CAPARD'!AE234","v":-5.629264771079268},{"$f":"'[2]MONE(M)CAPARD'!AF234","v":-3.8907788499409257},{"$f":"'[2]MONE(M)CAPARD'!AG234","v":-6.5707070928195925},{"$f":"'[2]MONE(M)CAPARD'!AH234","v":-3.2421011673151678},{"$f":"'[2]MONE(M)CAPARD'!AI234","v":-8.8986670634963794},{"$f":"'[2]MONE(M)CAPARD'!AJ234","v":-0.47878727634192236},{"$f":"'[2]MONE(M)CAPARD'!AK234","v":-6.0473920130399366},null,null,{"$f":"'[2]MONE(M)CAPARD'!AL234","v":3.9849999999999999},{"$f":"'[2]MONE(M)CAPARD'!AM234","v":4.45},{"$f":"'[2]MONE(M)CAPARD'!AN234","v":3.73},{"$f":"'[2]MONE(M)CAPARD'!AO234","v":4.43},{"$f":"'[2]MONE(M)CAPARD'!AP234","v":6.53},{"$f":"'[2]MONE(M)CAPARD'!AQ234","v":2.79},{"$f":"'[2]MONE(M)CAPARD'!AR234","v":3.39},null,null,{"$f":"'[2]MONE(M)CAPARD'!J234","v":2.1881737078381938},{"$f":"'[2]MONE(M)CAPARD'!K234","v":-1.038327097282399},{"$f":"'[2]MONE(M)CAPARD'!L234","v":0.8174266637478339},{"$f":"'[2]MONE(M)CAPARD'!M234","v":4.6019455252918364},{"$f":"'[2]MONE(M)CAPARD'!N234","v":-4.1155066458660539},{"$f":"'[2]MONE(M)CAPARD'!O234","v":7.7600994035785567},{"$f":"'[2]MONE(M)CAPARD'!P234","v":-3.0970795979353456},null,null,{"$f":"'[2]MONE(M)CAPARD'!Q234","v":10.59},{"$f":"'[2]MONE(M)CAPARD'!R234","v":7.55},{"$f":"'[2]MONE(M)CAPARD'!S234","v":7.66},{"$f":"'[2]MONE(M)CAPARD'!T234","v":10.14},{"$f":"'[2]MONE(M)CAPARD'!U234","v":10.52},{"$f":"'[2]MONE(M)CAPARD'!V234","v":7.91},{"$f":"'[2]MONE(M)CAPARD'!W234","v":6.6366666666666667},null,null,{"$f":"'[2]MONE(M)CAPARD'!AS234","v":10},{"$f":"'[2]MONE(M)CAPARD'!AT234","v":"n.a."},{"$f":"'[2]MONE(M)CAPARD'!AU234","v":7.25},{"$f":"'[2]MONE(M)CAPARD'!AV234","v":9},{"$f":"'[2]MONE(M)CAPARD'!AW234","v":"n.a."},{"$f":"'[2]MONE(M)CAPARD'!AX234","v":9.5},{"$f":"'[2]MONE(M)CAPARD'!AY234","v":"n.a."},null,null,{"$f":"+'Datos_Regional (M)'!CF227","v":39.166562363655764},{"$f":"+'Datos_Regional (M)'!CG227","v":7.2704308649084171},{"$f":"+'Datos_Regional (M)'!CH227","v":10.835783331133708},{"$f":"+'Datos_Regional (M)'!CI227","v":18.88194961469982},{"$f":"+'Datos_Regional (M)'!CJ227","v":23.757716516697556},{"$f":"+'Datos_Regional (M)'!CK227","v":20.983410613861441},{"$f":"+'Datos_Regional (M)'!CL227","v":20.028507696367058},null,null,597.38538613416654,381.02333333333337,643.25833333333344,239.20898882257009,228.84783312458703,592.01935833333346,887.24102391666656,2681.7432330813235,3568.9842569979905,null,null,1090.788615765,823.17583333333312,1246.5499999999995,738.16816918268057,412.81415397097521,1361.4416666666666,1441.9641643333334,5672.9384389186553,7114.9026032519878,null,null,-2991.1952058373304,-3545.9183462539972,null,null,{"$f":"'[2]EXT Comercio(M)'!C234","v":581.99062587999924},{"$f":"'[2]EXT Comercio(M)'!D234","v":375.76000000000022},{"$f":"'[2]EXT Comercio(M)'!E234","v":638.19999999999959},{"$f":"'[2]EXT Comercio(M)'!F234","v":239.40258559999984},{"$f":"'[2]EXT Comercio(M)'!G234","v":229.95703893257308},{"$f":"'[2]EXT Comercio(M)'!H234","v":519.8739999999998},{"$f":"'[2]EXT Comercio(M)'!I234","v":1028.0414479999999},{"$f":"'[2]EXT Comercio(M)'!K234","v":2585.1842504125743},{"$f":"'[2]EXT Comercio(M)'!L234","v":3613.2256984125779},null,null,{"$f":"'[2]EXT Comercio(M)'!AG234","v":1116.0209061400003},{"$f":"'[2]EXT Comercio(M)'!AH234","v":868.71},{"$f":"'[2]EXT Comercio(M)'!AI234","v":1190.3},{"$f":"'[2]EXT Comercio(M)'!AJ234","v":781.34400941999957},{"$f":"'[2]EXT Comercio(M)'!AK234","v":391.63479750599919},{"$f":"'[2]EXT Comercio(M)'!AL234","v":1293.6000000000008},{"$f":"'[2]EXT Comercio(M)'!AM234","v":1847.6976380000001},{"$f":"'[2]EXT Comercio(M)'!AO234","v":5641.6097130659982},{"$f":"'[2]EXT Comercio(M)'!AP234","v":7489.307351065996},null,null,{"$f":"'[2]EXT Comercio(M)'!$BS234","v":-3056.4254626534203},{"$f":"'[2]EXT Comercio(M)'!$BT234","v":-3876.0816526534181}]
[null,null,"Octubre",{"$f":"'[2]REAL IPC(M)'!AD235","v":16.303829003855022},{"$f":"'[2]REAL IPC(M)'!AE235","v":7.4062267559239237},{"$f":"'[2]REAL IPC(M)'!AF235","v":12.926634278334642},{"$f":"'[2]REAL IPC(M)'!AG235","v":13.060109289617488},{"$f":"'[2]REAL IPC(M)'!AH235","v":20.286679448552906},{"$f":"'[2]REAL IPC(M)'!AI235","v":12.843500961802661},{"$f":"'[2]REAL IPC(M)'!AJ235","v":9.4558429973238383},null,null,{"$f":"'[2]REAL IMAE(M)'!AG235","v":1.797748741250534},{"$f":"'[2]REAL IMAE(M)'!AH235","v":1.4067836752330078},{"$f":"'[2]REAL IMAE(M)'!AI235","v":2.5986862673909967},{"$f":"'[2]REAL IMAE(M)'!AJ235","v":2.9868236440119249},{"$f":"'[2]REAL IMAE(M)'!AK235","v":1.3599502774981826},{"$f":"'[2]REAL IMAE(M)'!AL235","v":-2.0741515457387742},{"$f":"'[2]REAL IMAE(M)'!AM235","v":9.5450327987402961},null,null,{"$f":"'[2]EXT ITCER(M)'!C235","v":91.228536238805461},{"$f":"'[2]EXT ITCER(M)'!D235","v":90.862528643675034},{"$f":"'[2]EXT ITCER(M)'!E235","v":65.843785299562072},{"$f":"'[2]EXT ITCER(M)'!F235","v":82.592412128859408},{"$f":"'[2]EXT ITCER(M)'!G235","v":92.792539077417231},{"$f":"'[2]EXT ITCER(M)'!H235","v":92.244984142776573},{"$f":"'[2]EXT ITCER(M)'!I235","v":99.629644357308067},null,null,{"$f":"'[2]EXT TC(M)'!J235","v":6.5177765774429259},{"$f":"'[2]EXT TC(M)'!K235","v":0},{"$f":"'[2]EXT TC(M)'!L235","v":-2.566935811082844},{"$f":"'[2]EXT TC(M)'!M235","v":-2.582514487271895E-2},{"$f":"'[2]EXT TC(M)'!N235","v":4.9837786946512184},{"$f":"'[2]EXT TC(M)'!O235","v":4.5879402542512215},{"$f":"'[2]EXT TC(M)'!P235","v":0},null,null,{"$f":"'[2]EXT RIN(M)'!C235","v":3625.18987436},{"$f":"'[2]EXT RIN(M)'!D235","v":2342.8000000000002},{"$f":"'[2]EXT RIN(M)'!E235","v":4787.33603958},{"$f":"'[2]EXT RIN(M)'!F235","v":2336.5118956681367},{"$f":"'[2]EXT RIN(M)'!G235","v":1017.2},{"$f":"'[2]EXT RIN(M)'!H235","v":2007.7},{"$f":"'[2]EXT RIN(M)'!I235","v":2373.8951024462003},null,null,{"$f":"'[2]EXT RIN(M)'!P235","v":65.366507693882184},{"$f":"'[2]EXT RIN(M)'!Q235","v":91.234011266785103},{"$f":"'[2]EXT RIN(M)'!R235","v":108.75473456555767},{"$f":"'[2]EXT RIN(M)'!S235","v":108.94739978786481},{"$f":"'[2]EXT RIN(M)'!T235","v":100.27315939094007},{"$f":"'[2]EXT RIN(M)'!U235","v":43.65050432148049},{"$f":"'[2]EXT RIN(M)'!V235","v":185.57028394158723},null,null,{"$f":"+'[2]MONE(M)CAPARD'!AE235","v":-4.9902303763899694},{"$f":"'[2]MONE(M)CAPARD'!AF235","v":-2.3706509695290898},{"$f":"'[2]MONE(M)CAPARD'!AG235","v":-6.6473550073517202},{"$f":"'[2]MONE(M)CAPARD'!AH235","v":-2.167085548574192},{"$f":"'[2]MONE(M)CAPARD'!AI235","v":-5.9754369259809499},{"$f":"'[2]MONE(M)CAPARD'!AJ235","v":1.4059285866488365},{"$f":"'[2]MONE(M)CAPARD'!AK235","v":-5.6879951100244668},null,null,{"$f":"'[2]MONE(M)CAPARD'!AL235","v":4.1150000000000002},{"$f":"'[2]MONE(M)CAPARD'!AM235","v":4.8600000000000003},{"$f":"'[2]MONE(M)CAPARD'!AN235","v":3.78},{"$f":"'[2]MONE(M)CAPARD'!AO235","v":4.4400000000000004},{"$f":"'[2]MONE(M)CAPARD'!AP235","v":6.52},{"$f":"'[2]MONE(M)CAPARD'!AQ235","v":2.85},{"$f":"'[2]MONE(M)CAPARD'!AR235","v":3.23},null,null,{"$f":"'[2]MONE(M)CAPARD'!J235","v":3.2726102216452544},{"$f":"'[2]MONE(M)CAPARD'!K235","v":1.1021458250890337},{"$f":"'[2]MONE(M)CAPARD'!L235","v":0.73797091978436957},{"$f":"'[2]MONE(M)CAPARD'!M235","v":5.4837119381343644},{"$f":"'[2]MONE(M)CAPARD'!N235","v":-1.3933432089234989},{"$f":"'[2]MONE(M)CAPARD'!O235","v":10.196864631213694},{"$f":"'[2]MONE(M)CAPARD'!P235","v":-2.3959521869057503},null,null,{"$f":"'[2]MONE(M)CAPARD'!Q235","v":11.92},{"$f":"'[2]MONE(M)CAPARD'!R235","v":8.59},{"$f":"'[2]MONE(M)CAPARD'!S235","v":7.84},{"$f":"'[2]MONE(M)CAPARD'!T235","v":10.48},{"$f":"'[2]MONE(M)CAPARD'!U235","v":11.26},{"$f":"'[2]MONE(M)CAPARD'!V235","v":7.69},{"$f":"'[2]MONE(M)CAPARD'!W235","v":6.833333333333333},null,null,{"$f":"'[2]MONE(M)CAPARD'!AS235","v":10},{"$f":"'[2]MONE(M)CAPARD'!AT235","v":"n.a."},{"$f":"'[2]MONE(M)CAPARD'!AU235","v":7.25},{"$f":"'[2]MONE(M)CAPARD'!AV235","v":9},{"$f":"'[2]MONE(M)CAPARD'!AW235","v":"n.a."},{"$f":"'[2]MONE(M)CAPARD'!AX235","v":9.5},{"$f":"'[2]MONE(M)CAPARD'!AY235","v":"n.a."},null,null,{"$f":"+'Datos_Regional (M)'!CF228","v":34.832020144123788},{"$f":"+'Datos_Regional (M)'!CG228","v":7.030582101039573},{"$f":"+'Datos_Regional (M)'!CH228","v":9.6039807750441639},{"$f":"+'Datos_Regional (M)'!CI228","v":15.315869356785949},{"$f":"+'Datos_Regional (M)'!CJ228","v":17.990331566078609},{"$f":"+'Datos_Regional (M)'!CK228","v":18.635269939082487},{"$f":"+'Datos_Regional (M)'!CL228","v":19.276794903484884},null,null,604.19389831749993,385.98250000000007,648.7166666666667,240.53107061837758,230.69724236553225,589.7270583333335,906.69614016666662,2699.8484363014099,3606.5445764680771,null,null,1105.4875823183336,823.23333333333323,1248.2916666666663,743.8136945208513,420.65413703539156,1368.0166666666667,1479.60706725,5709.4970805412422,7189.1041477912431,null,null,-3009.6486442398332,-3582.5595713231664,null,null,{"$f":"'[2]EXT Comercio(M)'!C235","v":651.05223221000051},{"$f":"'[2]EXT Comercio(M)'!D235","v":408.55999999999995},{"$f":"'[2]EXT Comercio(M)'!E235","v":623.30000000000018},{"$f":"'[2]EXT Comercio(M)'!F235","v":207.92786650000016},{"$f":"'[2]EXT Comercio(M)'!G235","v":225.97275625383895},{"$f":"'[2]EXT Comercio(M)'!H235","v":559.99489999999969},{"$f":"'[2]EXT Comercio(M)'!I235","v":1324.789395},{"$f":"'[2]EXT Comercio(M)'!K235","v":2676.8077549638438},{"$f":"'[2]EXT Comercio(M)'!L235","v":4001.5971499638399},null,null,{"$f":"'[2]EXT Comercio(M)'!AG235","v":1171.9667245299997},{"$f":"'[2]EXT Comercio(M)'!AH235","v":831.79000000000087},{"$f":"'[2]EXT Comercio(M)'!AI235","v":1294.7999999999997},{"$f":"'[2]EXT Comercio(M)'!AJ235","v":733.76800473999992},{"$f":"'[2]EXT Comercio(M)'!AK235","v":489.01934640269457},{"$f":"'[2]EXT Comercio(M)'!AL235","v":1300.9000000000001},{"$f":"'[2]EXT Comercio(M)'!AM235","v":2015.277391000001},{"$f":"'[2]EXT Comercio(M)'!AO235","v":5822.2440756726937},{"$f":"'[2]EXT Comercio(M)'!AP235","v":7837.521466672697},null,null,{"$f":"'[2]EXT Comercio(M)'!$BS235","v":-3145.4363207088572},{"$f":"'[2]EXT Comercio(M)'!$BT235","v":-3835.9243167088644}]
[null,null,"Noviembre",{"$f":"'[2]REAL IPC(M)'!AD236","v":16.297472991123708},{"$f":"'[2]REAL IPC(M)'!AE236","v":5.294055980710751},{"$f":"'[2]REAL IPC(M)'!AF236","v":10.846209560598728},{"$f":"'[2]REAL IPC(M)'!AG236","v":10.902255639097751},{"$f":"'[2]REAL IPC(M)'!AH236","v":15.423669467787132},{"$f":"'[2]REAL IPC(M)'!AI236","v":7.2141989472263441},{"$f":"'[2]REAL IPC(M)'!AJ236","v":7.6787290379523521},null,null,{"$f":"'[2]REAL IMAE(M)'!AG236","v":1.6061919035020227},{"$f":"'[2]REAL IMAE(M)'!AH236","v":-2.2909040891873285},{"$f":"'[2]REAL IMAE(M)'!AI236","v":1.8846549102090364},{"$f":"'[2]REAL IMAE(M)'!AJ236","v":2.0154982916173356},{"$f":"'[2]REAL IMAE(M)'!AK236","v":0.21180586905070728},{"$f":"'[2]REAL IMAE(M)'!AL236","v":-2.3908656981525165},{"$f":"'[2]REAL IMAE(M)'!AM236","v":8.0363078021688175},null,null,{"$f":"'[2]EXT ITCER(M)'!C236","v":88.262239260204225},{"$f":"'[2]EXT ITCER(M)'!D236","v":89.817578784587937},{"$f":"'[2]EXT ITCER(M)'!E236","v":65.598943005634567},{"$f":"'[2]EXT ITCER(M)'!F236","v":81.287209341438626},{"$f":"'[2]EXT ITCER(M)'!G236","v":91.465766573269946},{"$f":"'[2]EXT ITCER(M)'!H236","v":94.229547867076633},{"$f":"'[2]EXT ITCER(M)'!I236","v":98.427178216283053},null,null,{"$f":"'[2]EXT TC(M)'!J236","v":7.3073798760524058},{"$f":"'[2]EXT TC(M)'!K236","v":0},{"$f":"'[2]EXT TC(M)'!L236","v":-0.11804348014108808},{"$f":"'[2]EXT TC(M)'!M236","v":-2.5846560846531627E-2},{"$f":"'[2]EXT TC(M)'!N236","v":4.9943474777764143},{"$f":"'[2]EXT TC(M)'!O236","v":5.3466395672879798},{"$f":"'[2]EXT TC(M)'!P236","v":0},null,null,{"$f":"'[2]EXT RIN(M)'!C236","v":3753.9122622899999},{"$f":"'[2]EXT RIN(M)'!D236","v":2407.6},{"$f":"'[2]EXT RIN(M)'!E236","v":4727.00320663},{"$f":"'[2]EXT RIN(M)'!F236","v":2330.8160575153879},{"$f":"'[2]EXT RIN(M)'!G236","v":1012.8},{"$f":"'[2]EXT RIN(M)'!H236","v":1986.5},{"$f":"'[2]EXT RIN(M)'!I236","v":2352.9313784329697},null,null,{"$f":"'[2]EXT RIN(M)'!P236","v":63.576285808664053},{"$f":"'[2]EXT RIN(M)'!Q236","v":91.620262249491304},{"$f":"'[2]EXT RIN(M)'!R236","v":104.03167619691629},{"$f":"'[2]EXT RIN(M)'!S236","v":106.75175348852422},{"$f":"'[2]EXT RIN(M)'!T236","v":97.152063869333418},{"$f":"'[2]EXT RIN(M)'!U236","v":42.269402515413972},{"$f":"'[2]EXT RIN(M)'!V236","v":235.4018942976428},null,null,{"$f":"+'[2]MONE(M)CAPARD'!AE236","v":-4.555105846133074},{"$f":"'[2]MONE(M)CAPARD'!AF236","v":-0.39323775388290078},{"$f":"'[2]MONE(M)CAPARD'!AG236","v":-4.8681949360195889},{"$f":"'[2]MONE(M)CAPARD'!AH236","v":0.20535593220338458},{"$f":"'[2]MONE(M)CAPARD'!AI236","v":-2.231556846658644},{"$f":"'[2]MONE(M)CAPARD'!AJ236","v":6.8421917290866769},{"$f":"'[2]MONE(M)CAPARD'!AK236","v":-4.0664754098360776},null,null,{"$f":"'[2]MONE(M)CAPARD'!AL236","v":4.2850000000000001},{"$f":"'[2]MONE(M)CAPARD'!AM236","v":4.88},{"$f":"'[2]MONE(M)CAPARD'!AN236","v":3.77},{"$f":"'[2]MONE(M)CAPARD'!AO236","v":4.58},{"$f":"'[2]MONE(M)CAPARD'!AP236","v":6.96},{"$f":"'[2]MONE(M)CAPARD'!AQ236","v":3.1},{"$f":"'[2]MONE(M)CAPARD'!AR236","v":3.3},null,null,{"$f":"'[2]MONE(M)CAPARD'!J236","v":3.9489482365853408},{"$f":"'[2]MONE(M)CAPARD'!K236","v":3.6620718837116839},{"$f":"'[2]MONE(M)CAPARD'!L236","v":2.655742989381991},{"$f":"'[2]MONE(M)CAPARD'!M236","v":7.8968135593220277},{"$f":"'[2]MONE(M)CAPARD'!N236","v":3.4446162578896371},{"$f":"'[2]MONE(M)CAPARD'!O236","v":15.954790709385035},{"$f":"'[2]MONE(M)CAPARD'!P236","v":-0.99251639344263476},null,null,{"$f":"'[2]MONE(M)CAPARD'!Q236","v":11.88},{"$f":"'[2]MONE(M)CAPARD'!R236","v":9.15},{"$f":"'[2]MONE(M)CAPARD'!S236","v":8.0500000000000007},{"$f":"'[2]MONE(M)CAPARD'!T236","v":10.72},{"$f":"'[2]MONE(M)CAPARD'!U236","v":11.96},{"$f":"'[2]MONE(M)CAPARD'!V236","v":8.69},{"$f":"'[2]MONE(M)CAPARD'!W236","v":6.61},null,null,{"$f":"'[2]MONE(M)CAPARD'!AS236","v":10},{"$f":"'[2]MONE(M)CAPARD'!AT236","v":"n.a."},{"$f":"'[2]MONE(M)CAPARD'!AU236","v":7.25},{"$f":"'[2]MONE(M)CAPARD'!AV236","v":9},{"$f":"'[2]MONE(M)CAPARD'!AW236","v":"n.a."},{"$f":"'[2]MONE(M)CAPARD'!AX236","v":9.5},{"$f":"'[2]MONE(M)CAPARD'!AY236","v":"n.a."},null,null,{"$f":"+'Datos_Regional (M)'!CF229","v":30.502748713499095},{"$f":"+'Datos_Regional (M)'!CG229","v":6.1315329171933719},{"$f":"+'Datos_Regional (M)'!CH229","v":9.8041638801219975},{"$f":"+'Datos_Regional (M)'!CI229","v":13.224243706789673},{"$f":"+'Datos_Regional (M)'!CJ229","v":15.319832533958945},{"$f":"+'Datos_Regional (M)'!CK229","v":17.005980941688303},{"$f":"+'Datos_Regional (M)'!CL229","v":18.383480606932913},null,null,603.65094552916662,390.36916666666667,646.9083333333333,237.2448977890499,230.07400226042603,579.39918333333355,909.0975698333333,2687.6465289119765,3596.7440987453097,null,null,1089.975515471667,817.22583333333341,1229.3916666666664,740.13419594758454,411.06977619762228,1351.7499999999998,1495.8232435833331,5639.5469876168727,7135.370231200206,null,null,-2951.9004587048971,-3538.6261324548977,null,null,{"$f":"'[2]EXT Comercio(M)'!C236","v":548.87630334000005},{"$f":"'[2]EXT Comercio(M)'!D236","v":366.82999999999993},{"$f":"'[2]EXT Comercio(M)'!E236","v":517.89999999999964},{"$f":"'[2]EXT Comercio(M)'!F236","v":166.13160134999998},{"$f":"'[2]EXT Comercio(M)'!G236","v":185.88346905772192},{"$f":"'[2]EXT Comercio(M)'!H236","v":445.79690000000028},{"$f":"'[2]EXT Comercio(M)'!I236","v":1004.8121560000001},{"$f":"'[2]EXT Comercio(M)'!K236","v":2231.418273747724},{"$f":"'[2]EXT Comercio(M)'!L236","v":3236.2304297477167},null,null,{"$f":"'[2]EXT Comercio(M)'!AG236","v":880.97277653000026},{"$f":"'[2]EXT Comercio(M)'!AH236","v":719.5},{"$f":"'[2]EXT Comercio(M)'!AI236","v":983.79999999999882},{"$f":"'[2]EXT Comercio(M)'!AJ236","v":659.22157288999915},{"$f":"'[2]EXT Comercio(M)'!AK236","v":336.03108939168419},{"$f":"'[2]EXT Comercio(M)'!AL236","v":1141.4000000000001},{"$f":"'[2]EXT Comercio(M)'!AM236","v":1442.7058499999998},{"$f":"'[2]EXT Comercio(M)'!AO236","v":4720.9254388116824},{"$f":"'[2]EXT Comercio(M)'!AP236","v":6163.6312888116809},null,null,{"$f":"'[2]EXT Comercio(M)'!$BS236","v":-2489.5071650639657},{"$f":"'[2]EXT Comercio(M)'!$BT236","v":-2927.4008590639642}]
[null,null,"Diciembre ",{"$f":"'[2]REAL IPC(M)'!AD237","v":13.902332628419961},{"$f":"'[2]REAL IPC(M)'!AE237","v":5.4742604484682627},{"$f":"'[2]REAL IPC(M)'!AF237","v":9.4002272319559772},{"$f":"'[2]REAL IPC(M)'!AG237","v":10.831099195710451},{"$f":"'[2]REAL IPC(M)'!AH237","v":13.777893098079922},{"$f":"'[2]REAL IPC(M)'!AI237","v":4.5172482818442692},{"$f":"'[2]REAL IPC(M)'!AJ237","v":6.7662565905096752},null,null,{"$f":"'[2]REAL IMAE(M)'!AG237","v":-4.1218872575570824},{"$f":"'[2]REAL IMAE(M)'!AH237","v":-4.0941501247216268},{"$f":"'[2]REAL IMAE(M)'!AI237","v":1.0468092973594991},{"$f":"'[2]REAL IMAE(M)'!AJ237","v":1.0304414973141913},{"$f":"'[2]REAL IMAE(M)'!AK237","v":-0.9368667341004262},{"$f":"'[2]REAL IMAE(M)'!AL237","v":-2.4191841523313422},{"$f":"'[2]REAL IMAE(M)'!AM237","v":6.5274246718232938},null,null,{"$f":"'[2]EXT ITCER(M)'!C237","v":87.236933677317566},{"$f":"'[2]EXT ITCER(M)'!D237","v":89.302553420306566},{"$f":"'[2]EXT ITCER(M)'!E237","v":65.89123842132939},{"$f":"'[2]EXT ITCER(M)'!F237","v":80.539860575936189},{"$f":"'[2]EXT ITCER(M)'!G237","v":91.222727941369939},{"$f":"'[2]EXT ITCER(M)'!H237","v":94.953289174790896},{"$f":"'[2]EXT ITCER(M)'!I237","v":98.018490966641707},null,null,{"$f":"'[2]EXT TC(M)'!J237","v":9.8289997657531529},{"$f":"'[2]EXT TC(M)'!K237","v":0},{"$f":"'[2]EXT TC(M)'!L237","v":0.98165698380179278},{"$f":"'[2]EXT TC(M)'!M237","v":-2.5925925925921897E-2},{"$f":"'[2]EXT TC(M)'!N237","v":5.0703396991881178},{"$f":"'[2]EXT TC(M)'!O237","v":5.1851343570343875},{"$f":"'[2]EXT TC(M)'!P237","v":0},null,null,{"$f":"'[2]EXT RIN(M)'!C237","v":3799.0988521700001},{"$f":"'[2]EXT RIN(M)'!D237","v":2539.5},{"$f":"'[2]EXT RIN(M)'!E237","v":4658.8242851999994},{"$f":"'[2]EXT RIN(M)'!F237","v":2460.0103567114747},{"$f":"'[2]EXT RIN(M)'!G237","v":1029.8},{"$f":"'[2]EXT RIN(M)'!H237","v":2165.4},{"$f":"'[2]EXT RIN(M)'!I237","v":2611.5755368652699},null,null,{"$f":"'[2]EXT RIN(M)'!P237","v":65.628342679764373},{"$f":"'[2]EXT RIN(M)'!Q237","v":95.097400408924443},{"$f":"'[2]EXT RIN(M)'!R237","v":96.070211922545042},{"$f":"'[2]EXT RIN(M)'!S237","v":105.70758733369181},{"$f":"'[2]EXT RIN(M)'!T237","v":98.097638346079535},{"$f":"'[2]EXT RIN(M)'!U237","v":42.00070915185217},{"$f":"'[2]EXT RIN(M)'!V237","v":254.90494417062189},null,null,{"$f":"+'[2]MONE(M)CAPARD'!AE237","v":-2.1091162691610679},{"$f":"'[2]MONE(M)CAPARD'!AF237","v":-8.9368200419206303E-2},{"$f":"'[2]MONE(M)CAPARD'!AG237","v":-3.5925220005465879},{"$f":"'[2]MONE(M)CAPARD'!AH237","v":0.91932752781809823},{"$f":"'[2]MONE(M)CAPARD'!AI237","v":-1.2442415527485853},{"$f":"'[2]MONE(M)CAPARD'!AJ237","v":9.551295965270679},{"$f":"'[2]MONE(M)CAPARD'!AK237","v":-3.2653168724279924},null,null,{"$f":"'[2]MONE(M)CAPARD'!AL237","v":4.0999999999999996},{"$f":"'[2]MONE(M)CAPARD'!AM237","v":5.38},{"$f":"'[2]MONE(M)CAPARD'!AN237","v":3.82},{"$f":"'[2]MONE(M)CAPARD'!AO237","v":4.82},{"$f":"'[2]MONE(M)CAPARD'!AP237","v":6.63},{"$f":"'[2]MONE(M)CAPARD'!AQ237","v":2.76},{"$f":"'[2]MONE(M)CAPARD'!AR237","v":3.28},null,null,{"$f":"'[2]MONE(M)CAPARD'!J237","v":5.9943174244321469},{"$f":"'[2]MONE(M)CAPARD'!K237","v":3.8926459726519584},{"$f":"'[2]MONE(M)CAPARD'!L237","v":4.0582847772615578},{"$f":"'[2]MONE(M)CAPARD'!M237","v":8.3089501693275309},{"$f":"'[2]MONE(M)CAPARD'!N237","v":4.887591588169232},{"$f":"'[2]MONE(M)CAPARD'!O237","v":18.583298008171596},{"$f":"'[2]MONE(M)CAPARD'!P237","v":0.14399999999999138},null,null,{"$f":"'[2]MONE(M)CAPARD'!Q237","v":11.52},{"$f":"'[2]MONE(M)CAPARD'!R237","v":9.58},{"$f":"'[2]MONE(M)CAPARD'!S237","v":8.129999999999999},{"$f":"'[2]MONE(M)CAPARD'!T237","v":10.7},{"$f":"'[2]MONE(M)CAPARD'!U237","v":12.63},{"$f":"'[2]MONE(M)CAPARD'!V237","v":8.9700000000000006},{"$f":"'[2]MONE(M)CAPARD'!W237","v":6.92},null,null,{"$f":"'[2]MONE(M)CAPARD'!AS237","v":10},{"$f":"'[2]MONE(M)CAPARD'!AT237","v":"n.a."},{"$f":"'[2]MONE(M)CAPARD'!AU237","v":7.25},{"$f":"'[2]MONE(M)CAPARD'!AV237","v":7.75},{"$f":"'[2]MONE(M)CAPARD'!AW237","v":"n.a."},{"$f":"'[2]MONE(M)CAPARD'!AX237","v":9.5},{"$f":"'[2]MONE(M)CAPARD'!AY237","v":"n.a."},null,null,{"$f":"+'Datos_Regional (M)'!CF230","v":33.873684582043808},{"$f":"+'Datos_Regional (M)'!CG230","v":4.4147711261212752},{"$f":"+'Datos_Regional (M)'!CH230","v":11.221711450122829},{"$f":"+'Datos_Regional (M)'!CI230","v":10.99866162842611},{"$f":"+'Datos_Regional (M)'!CJ230","v":11.58457913730382},{"$f":"+'Datos_Regional (M)'!CK230","v":13.614271082474684},{"$f":"+'Datos_Regional (M)'!CL230","v":16.017035050488349},null,null,601.09852520583343,386.75666666666672,644.78333333333342,236.08202375333335,229.25394011892786,562.29166666666663,903.92448191666665,2660.2661557447614,3564.1906376614279,null,null,1085.6090181691668,818.13916666666671,1212.208333333333,734.45614720833328,407.41908137542669,1332.7416666666666,1505.5099901666665,5590.5734134195927,7096.0834035862599,null,null,-2930.3072576748314,-3531.8927659248316,null,null,{"$f":"'[2]EXT Comercio(M)'!C237","v":469.58857395000086},{"$f":"'[2]EXT Comercio(M)'!D237","v":285.69000000000051},{"$f":"'[2]EXT Comercio(M)'!E237","v":537.70000000000027},{"$f":"'[2]EXT Comercio(M)'!F237","v":189.83919762999994},{"$f":"'[2]EXT Comercio(M)'!G237","v":174.45071458442939},{"$f":"'[2]EXT Comercio(M)'!H237","v":449.06660000000011},{"$f":"'[2]EXT Comercio(M)'!I237","v":606.20794499999988},{"$f":"'[2]EXT Comercio(M)'!K237","v":2106.3350861644285},{"$f":"'[2]EXT Comercio(M)'!L237","v":2712.5430311644304},null,null,{"$f":"'[2]EXT Comercio(M)'!AG237","v":845.28034775000037},{"$f":"'[2]EXT Comercio(M)'!AH237","v":673.63999999999942},{"$f":"'[2]EXT Comercio(M)'!AI237","v":959.29999999999973},{"$f":"'[2]EXT Comercio(M)'!AJ237","v":577.19839142000092},{"$f":"'[2]EXT Comercio(M)'!AK237","v":315.53595704445047},{"$f":"'[2]EXT Comercio(M)'!AL237","v":1010.6999999999998},{"$f":"'[2]EXT Comercio(M)'!AM237","v":1305.2822669999994},{"$f":"'[2]EXT Comercio(M)'!AO237","v":4381.6546962144494},{"$f":"'[2]EXT Comercio(M)'!AP237","v":5686.9369632144517},null,null,{"$f":"'[2]EXT Comercio(M)'!$BS237","v":-2275.3196100500136},{"$f":"'[2]EXT Comercio(M)'!$BT237","v":-2974.393932050014}]
[null,2009,"Enero",{"$f":"'[2]REAL IPC(M)'!AD238","v":13.500969550722061},{"$f":"'[2]REAL IPC(M)'!AE238","v":3.812897176789261},{"$f":"'[2]REAL IPC(M)'!AF238","v":7.8813358597820429},{"$f":"'[2]REAL IPC(M)'!AG238","v":10.069259456579651},{"$f":"'[2]REAL IPC(M)'!AH238","v":12.456215292609993},{"$f":"'[2]REAL IPC(M)'!AI238","v":3.6797465430184007},{"$f":"'[2]REAL IPC(M)'!AJ238","v":4.9393414211438307},null,null,{"$f":"'[2]REAL IMAE(M)'!AG238","v":-4.4373666272928567},{"$f":"'[2]REAL IMAE(M)'!AH238","v":-2.1330285804557558},{"$f":"'[2]REAL IMAE(M)'!AI238","v":0.19227941279127006},{"$f":"'[2]REAL IMAE(M)'!AJ238","v":-1.3637939579253524},{"$f":"'[2]REAL IMAE(M)'!AK238","v":-2.0130430066982856},{"$f":"'[2]REAL IMAE(M)'!AL238","v":-2.4750416346403714},{"$f":"'[2]REAL IMAE(M)'!AM238","v":5.1947835439803765},null,null,{"$f":"'[2]EXT ITCER(M)'!C238","v":88.222385810848763},{"$f":"'[2]EXT ITCER(M)'!D238","v":90.013710007982183},{"$f":"'[2]EXT ITCER(M)'!E238","v":67.683600620414012},{"$f":"'[2]EXT ITCER(M)'!F238","v":80.782770680767158},{"$f":"'[2]EXT ITCER(M)'!G238","v":91.952790057600865},{"$f":"'[2]EXT ITCER(M)'!H238","v":95.229575316712598},{"$f":"'[2]EXT ITCER(M)'!I238","v":98.591133216936385},null,null,{"$f":"'[2]EXT TC(M)'!J238","v":11.463687442321563},{"$f":"'[2]EXT TC(M)'!K238","v":0},{"$f":"'[2]EXT TC(M)'!L238","v":1.9559590130220801},{"$f":"'[2]EXT TC(M)'!M238","v":0},{"$f":"'[2]EXT TC(M)'!N238","v":5.3597905029247777},{"$f":"'[2]EXT TC(M)'!O238","v":4.7761945670527739},{"$f":"'[2]EXT TC(M)'!P238","v":0},null,null,{"$f":"'[2]EXT RIN(M)'!C238","v":3844.11383252},{"$f":"'[2]EXT RIN(M)'!D238","v":2370.6999999999998},{"$f":"'[2]EXT RIN(M)'!E238","v":4758.5618823800005},{"$f":"'[2]EXT RIN(M)'!F238","v":2421.723321083191},{"$f":"'[2]EXT RIN(M)'!G238","v":973.1},{"$f":"'[2]EXT RIN(M)'!H238","v":2085.4},{"$f":"'[2]EXT RIN(M)'!I238","v":2569.2381637559597},null,null,{"$f":"'[2]EXT RIN(M)'!P238","v":66.651464268674445},{"$f":"'[2]EXT RIN(M)'!Q238","v":87.59279970707567},{"$f":"'[2]EXT RIN(M)'!R238","v":97.995100378001837},{"$f":"'[2]EXT RIN(M)'!S238","v":103.63297445819109},{"$f":"'[2]EXT RIN(M)'!T238","v":94.678187920274411},{"$f":"'[2]EXT RIN(M)'!U238","v":44.22873124460768},{"$f":"'[2]EXT RIN(M)'!V238","v":249.31663585089194},null,null,{"$f":"+'[2]MONE(M)CAPARD'!AE238","v":-1.9832161431150888},{"$f":"'[2]MONE(M)CAPARD'!AF238","v":1.4324836929252265},{"$f":"'[2]MONE(M)CAPARD'!AG238","v":-2.2073659366594853},{"$f":"'[2]MONE(M)CAPARD'!AH238","v":1.908562439496609},{"$f":"'[2]MONE(M)CAPARD'!AI238","v":1.4002658408947768},{"$f":"'[2]MONE(M)CAPARD'!AJ238","v":9.2113009294626771},{"$f":"'[2]MONE(M)CAPARD'!AK238","v":-1.3334764657307852},null,null,{"$f":"'[2]MONE(M)CAPARD'!AL238","v":4.07},{"$f":"'[2]MONE(M)CAPARD'!AM238","v":5.3},{"$f":"'[2]MONE(M)CAPARD'!AN238","v":3.85},{"$f":"'[2]MONE(M)CAPARD'!AO238","v":4.91},{"$f":"'[2]MONE(M)CAPARD'!AP238","v":6.69},{"$f":"'[2]MONE(M)CAPARD'!AQ238","v":2.92},{"$f":"'[2]MONE(M)CAPARD'!AR238","v":3.54},null,null,{"$f":"'[2]MONE(M)CAPARD'!J238","v":6.4924823800600384},{"$f":"'[2]MONE(M)CAPARD'!K238","v":5.5360200702458489},{"$f":"'[2]MONE(M)CAPARD'!L238","v":5.5882364564466176},{"$f":"'[2]MONE(M)CAPARD'!M238","v":8.6406873184898298},{"$f":"'[2]MONE(M)CAPARD'!N238","v":6.5438254774697704},{"$f":"'[2]MONE(M)CAPARD'!O238","v":20.727532785841593},{"$f":"'[2]MONE(M)CAPARD'!P238","v":2.2114285714285877},null,null,{"$f":"'[2]MONE(M)CAPARD'!Q238","v":11.62},{"$f":"'[2]MONE(M)CAPARD'!R238","v":9.56},{"$f":"'[2]MONE(M)CAPARD'!S238","v":8.17},{"$f":"'[2]MONE(M)CAPARD'!T238","v":10.7},{"$f":"'[2]MONE(M)CAPARD'!U238","v":12.79},{"$f":"'[2]MONE(M)CAPARD'!V238","v":9.01},{"$f":"'[2]MONE(M)CAPARD'!W238","v":7.26},null,null,{"$f":"'[2]MONE(M)CAPARD'!AS238","v":10},{"$f":"'[2]MONE(M)CAPARD'!AT238","v":"n.a."},{"$f":"'[2]MONE(M)CAPARD'!AU238","v":7},{"$f":"'[2]MONE(M)CAPARD'!AV238","v":6.75},{"$f":"'[2]MONE(M)CAPARD'!AW238","v":"n.a."},{"$f":"'[2]MONE(M)CAPARD'!AX238","v":8.5},{"$f":"'[2]MONE(M)CAPARD'!AY238","v":"n.a."},null,null,{"$f":"+'Datos_Regional (M)'!CF231","v":32.017584369039788},{"$f":"+'Datos_Regional (M)'!CG231","v":3.2480113609204775},{"$f":"+'Datos_Regional (M)'!CH231","v":7.8572985171677212},{"$f":"+'Datos_Regional (M)'!CI231","v":8.3530944796875737},{"$f":"+'Datos_Regional (M)'!CJ231","v":8.6436038048413053},{"$f":"+'Datos_Regional (M)'!CK231","v":9.5296777957637033},{"$f":"+'Datos_Regional (M)'!CL231","v":15.920851067399155},null,null,596.80583320833341,385.42750000000007,644.37500000000011,233.00087980916669,226.43865159723478,549.8288,891.69803058333343,2635.8766646147355,3527.5746951980677,null,null,1056.1674663216666,801.00500000000011,1186.7249999999995,721.17134566749985,401.75114098234917,1306.4416666666664,1494.9247555000002,5473.2616196381823,6968.1863751381825,null,null,-2837.3849550234468,-3440.6116799401134,null,null,{"$f":"'[2]EXT Comercio(M)'!C238","v":470.90835147000041},{"$f":"'[2]EXT Comercio(M)'!D238","v":316.81},{"$f":"'[2]EXT Comercio(M)'!E238","v":588.70000000000005},{"$f":"'[2]EXT Comercio(M)'!F238","v":178.15591174000002},{"$f":"'[2]EXT Comercio(M)'!G238","v":185.35057597877471},{"$f":"'[2]EXT Comercio(M)'!H238","v":365.6},{"$f":"'[2]EXT Comercio(M)'!I238","v":617.33158700000013},{"$f":"'[2]EXT Comercio(M)'!K238","v":2105.5248391887753},{"$f":"'[2]EXT Comercio(M)'!L238","v":2722.8564261887755},null,null,{"$f":"'[2]EXT Comercio(M)'!AG238","v":733.1785853399997},{"$f":"'[2]EXT Comercio(M)'!AH238","v":588.17999999999995},{"$f":"'[2]EXT Comercio(M)'!AI238","v":841.3},{"$f":"'[2]EXT Comercio(M)'!AJ238","v":494.99486274999998},{"$f":"'[2]EXT Comercio(M)'!AK238","v":306.80389553491858},{"$f":"'[2]EXT Comercio(M)'!AL238","v":916.39999999999986},{"$f":"'[2]EXT Comercio(M)'!AM238","v":1239.3440539999997},{"$f":"'[2]EXT Comercio(M)'!AO238","v":3880.8573436249171},{"$f":"'[2]EXT Comercio(M)'!AP238","v":5120.2013976249164},null,null,{"$f":"'[2]EXT Comercio(M)'!$BS238","v":-1775.3325044361427},{"$f":"'[2]EXT Comercio(M)'!$BT238","v":-2397.3449714361423}]
[null,null,"Febrero",{"$f":"'[2]REAL IPC(M)'!AD239","v":12.748404472680134},{"$f":"'[2]REAL IPC(M)'!AE239","v":2.8627532038032202},{"$f":"'[2]REAL IPC(M)'!AF239","v":6.498088797412505},{"$f":"'[2]REAL IPC(M)'!AG239","v":9.7522403795466541},{"$f":"'[2]REAL IPC(M)'!AH239","v":10.777340808300545},{"$f":"'[2]REAL IPC(M)'!AI239","v":4.0309002674061665},{"$f":"'[2]REAL IPC(M)'!AJ239","v":4.2918454935622314},null,null,{"$f":"'[2]REAL IMAE(M)'!AG239","v":-4.6658098798921621},{"$f":"'[2]REAL IMAE(M)'!AH239","v":-2.0807404126910178},{"$f":"'[2]REAL IMAE(M)'!AI239","v":-0.47814111231480405},{"$f":"'[2]REAL IMAE(M)'!AJ239","v":-2.0621524720003594},{"$f":"'[2]REAL IMAE(M)'!AK239","v":-2.97551705723478},{"$f":"'[2]REAL IMAE(M)'!AL239","v":-2.6389420939531134},{"$f":"'[2]REAL IMAE(M)'!AM239","v":4.0707716794034043},null,null,{"$f":"'[2]EXT ITCER(M)'!C239","v":89.189369431549494},{"$f":"'[2]EXT ITCER(M)'!D239","v":90.450521259579119},{"$f":"'[2]EXT ITCER(M)'!E239","v":69.093439101881359},{"$f":"'[2]EXT ITCER(M)'!F239","v":80.453964507810241},{"$f":"'[2]EXT ITCER(M)'!G239","v":92.135215001916393},{"$f":"'[2]EXT ITCER(M)'!H239","v":95.793654548461262},{"$f":"'[2]EXT ITCER(M)'!I239","v":98.624505061824266},null,null,{"$f":"'[2]EXT TC(M)'!J239","v":13.024229957862781},{"$f":"'[2]EXT TC(M)'!K239","v":0},{"$f":"'[2]EXT TC(M)'!L239","v":2.8339270724055421},{"$f":"'[2]EXT TC(M)'!M239","v":0},{"$f":"'[2]EXT TC(M)'!N239","v":5.2770847462501571},{"$f":"'[2]EXT TC(M)'!O239","v":5.094223630388},{"$f":"'[2]EXT TC(M)'!P239","v":0},null,null,{"$f":"'[2]EXT RIN(M)'!C239","v":4077.23960304},{"$f":"'[2]EXT RIN(M)'!D239","v":2411.1999999999998},{"$f":"'[2]EXT RIN(M)'!E239","v":4742.3425540299995},{"$f":"'[2]EXT RIN(M)'!F239","v":2437.42831220364},{"$f":"'[2]EXT RIN(M)'!G239","v":971.4},{"$f":"'[2]EXT RIN(M)'!H239","v":2095.6},{"$f":"'[2]EXT RIN(M)'!I239","v":2527.6139956297602},null,null,{"$f":"'[2]EXT RIN(M)'!P239","v":70.609184475371734},{"$f":"'[2]EXT RIN(M)'!Q239","v":87.957979198988497},{"$f":"'[2]EXT RIN(M)'!R239","v":101.78057197975461},{"$f":"'[2]EXT RIN(M)'!S239","v":102.71484167979953},{"$f":"'[2]EXT RIN(M)'!T239","v":91.297261711037422},{"$f":"'[2]EXT RIN(M)'!U239","v":44.813694700109977},{"$f":"'[2]EXT RIN(M)'!V239","v":240.08142219102305},null,null,{"$f":"+'[2]MONE(M)CAPARD'!AE239","v":-0.66378276143276027},{"$f":"'[2]MONE(M)CAPARD'!AF239","v":2.2527559529790051},{"$f":"'[2]MONE(M)CAPARD'!AG239","v":-0.89024019878518235},{"$f":"'[2]MONE(M)CAPARD'!AH239","v":2.2029250720461082},{"$f":"'[2]MONE(M)CAPARD'!AI239","v":1.9819024512420731},{"$f":"'[2]MONE(M)CAPARD'!AJ239","v":7.8333453922315242},{"$f":"'[2]MONE(M)CAPARD'!AK239","v":-0.70172839506172802},null,null,{"$f":"'[2]MONE(M)CAPARD'!AL239","v":4.7650000000000006},{"$f":"'[2]MONE(M)CAPARD'!AM239","v":5.18},{"$f":"'[2]MONE(M)CAPARD'!AN239","v":3.84},{"$f":"'[2]MONE(M)CAPARD'!AO239","v":4.91},{"$f":"'[2]MONE(M)CAPARD'!AP239","v":6.74},{"$f":"'[2]MONE(M)CAPARD'!AQ239","v":2.96},{"$f":"'[2]MONE(M)CAPARD'!AR239","v":3.56},null,null,{"$f":"'[2]MONE(M)CAPARD'!J239","v":7.8684887549513203},{"$f":"'[2]MONE(M)CAPARD'!K239","v":6.5205787199839289},{"$f":"'[2]MONE(M)CAPARD'!L239","v":6.9972252898951046},{"$f":"'[2]MONE(M)CAPARD'!M239","v":9.2825072046109511},{"$f":"'[2]MONE(M)CAPARD'!N239","v":9.1475304866755458},{"$f":"'[2]MONE(M)CAPARD'!O239","v":18.618602437166786},{"$f":"'[2]MONE(M)CAPARD'!P239","v":3.028189300411523},null,null,{"$f":"'[2]MONE(M)CAPARD'!Q239","v":11.7},{"$f":"'[2]MONE(M)CAPARD'!R239","v":9.57},{"$f":"'[2]MONE(M)CAPARD'!S239","v":8.2100000000000009},{"$f":"'[2]MONE(M)CAPARD'!T239","v":10.53},{"$f":"'[2]MONE(M)CAPARD'!U239","v":13.12},{"$f":"'[2]MONE(M)CAPARD'!V239","v":9.4499999999999993},{"$f":"'[2]MONE(M)CAPARD'!W239","v":7.45},null,null,{"$f":"'[2]MONE(M)CAPARD'!AS239","v":10},{"$f":"'[2]MONE(M)CAPARD'!AT239","v":"n.a."},{"$f":"'[2]MONE(M)CAPARD'!AU239","v":6.5},{"$f":"'[2]MONE(M)CAPARD'!AV239","v":6.75},{"$f":"'[2]MONE(M)CAPARD'!AW239","v":"n.a."},{"$f":"'[2]MONE(M)CAPARD'!AX239","v":6},{"$f":"'[2]MONE(M)CAPARD'!AY239","v":"n.a."},null,null,{"$f":"+'Datos_Regional (M)'!CF232","v":30.114857246898019},{"$f":"+'Datos_Regional (M)'!CG232","v":2.0790668190203254},{"$f":"+'Datos_Regional (M)'!CH232","v":7.2574770262722632},{"$f":"+'Datos_Regional (M)'!CI232","v":6.3113973406901946},{"$f":"+'Datos_Regional (M)'!CJ232","v":5.7227148663661298},{"$f":"+'Datos_Regional (M)'!CK232","v":8.1191016349958733},{"$f":"+'Datos_Regional (M)'!CL232","v":14.695887194110057},null,null,584.69968953750015,379.80166666666679,641.05833333333328,227.64976429666669,225.04825621489977,540.90442500000006,883.01920299999995,2599.1621350490668,3482.1813380490657,null,null,1029.3298663850001,783.21583333333353,1162.5666666666664,707.17295374749995,396.19138263937612,1270.4999999999998,1479.7207896666666,5348.9767027718754,6828.6974924385422,null,null,-2749.814567722809,-3346.5161543894756,null,null,{"$f":"'[2]EXT Comercio(M)'!C239","v":514.07742635},{"$f":"'[2]EXT Comercio(M)'!D239","v":320.80000000000013},{"$f":"'[2]EXT Comercio(M)'!E239","v":602.5},{"$f":"'[2]EXT Comercio(M)'!F239","v":197.61613303999997},{"$f":"'[2]EXT Comercio(M)'!G239","v":213.6460871653735},{"$f":"'[2]EXT Comercio(M)'!H239","v":422.50000000000006},{"$f":"'[2]EXT Comercio(M)'!I239","v":690.54997300000002},{"$f":"'[2]EXT Comercio(M)'!K239","v":2271.1396465553744},{"$f":"'[2]EXT Comercio(M)'!L239","v":2961.6896195553741},null,null,{"$f":"'[2]EXT Comercio(M)'!AG239","v":729.57145745999992},{"$f":"'[2]EXT Comercio(M)'!AH239","v":583.85},{"$f":"'[2]EXT Comercio(M)'!AI239","v":886.3},{"$f":"'[2]EXT Comercio(M)'!AJ239","v":497.57274629},{"$f":"'[2]EXT Comercio(M)'!AK239","v":299.35397340843082},{"$f":"'[2]EXT Comercio(M)'!AL239","v":800.8},{"$f":"'[2]EXT Comercio(M)'!AM239","v":1087.8916639999998},{"$f":"'[2]EXT Comercio(M)'!AO239","v":3797.4481771584315},{"$f":"'[2]EXT Comercio(M)'!AP239","v":4885.3398411584312},null,null,{"$f":"'[2]EXT Comercio(M)'!$BS239","v":-1526.3085306030571},{"$f":"'[2]EXT Comercio(M)'!$BT239","v":-1923.6502216030567}]
[null,null,"Marzo",{"$f":"'[2]REAL IPC(M)'!AD240","v":12.321919570610815},{"$f":"'[2]REAL IPC(M)'!AE240","v":2.5535842477694537},{"$f":"'[2]REAL IPC(M)'!AF240","v":4.9985469340307702},{"$f":"'[2]REAL IPC(M)'!AG240","v":8.7774294670846302},{"$f":"'[2]REAL IPC(M)'!AH240","v":8.4582441113490336},{"$f":"'[2]REAL IPC(M)'!AI240","v":2.4408452075692333},{"$f":"'[2]REAL IPC(M)'!AJ240","v":3.7319762510601997},null,null,{"$f":"'[2]REAL IMAE(M)'!AG240","v":-4.5927076025313474},{"$f":"'[2]REAL IMAE(M)'!AH240","v":-3.7811356491636596},{"$f":"'[2]REAL IMAE(M)'!AI240","v":-0.79906532804270314},{"$f":"'[2]REAL IMAE(M)'!AJ240","v":-2.6847743048202815},{"$f":"'[2]REAL IMAE(M)'!AK240","v":-3.6338966642311759},{"$f":"'[2]REAL IMAE(M)'!AL240","v":-2.719756390000089},{"$f":"'[2]REAL IMAE(M)'!AM240","v":3.13187754275787},null,null,{"$f":"'[2]EXT ITCER(M)'!C240","v":89.556353415886605},{"$f":"'[2]EXT ITCER(M)'!D240","v":89.936523271824868},{"$f":"'[2]EXT ITCER(M)'!E240","v":70.346867087590738},{"$f":"'[2]EXT ITCER(M)'!F240","v":80.374533687911139},{"$f":"'[2]EXT ITCER(M)'!G240","v":92.675907481206622},{"$f":"'[2]EXT ITCER(M)'!H240","v":95.84313475507453},{"$f":"'[2]EXT ITCER(M)'!I240","v":97.882640029576223},null,null,{"$f":"'[2]EXT TC(M)'!J240","v":13.882595586491403},{"$f":"'[2]EXT TC(M)'!K240","v":0},{"$f":"'[2]EXT TC(M)'!L240","v":5.7045414138887862},{"$f":"'[2]EXT TC(M)'!M240","v":-1.0054506006183345E-2},{"$f":"'[2]EXT TC(M)'!N240","v":5.0614876593412648},{"$f":"'[2]EXT TC(M)'!O240","v":5.1596696632062482},{"$f":"'[2]EXT TC(M)'!P240","v":0},null,null,{"$f":"'[2]EXT RIN(M)'!C240","v":4167.2698822599996},{"$f":"'[2]EXT RIN(M)'!D240","v":2516.1999999999998},{"$f":"'[2]EXT RIN(M)'!E240","v":5029.7989562299999},{"$f":"'[2]EXT RIN(M)'!F240","v":2552.9074220040643},{"$f":"'[2]EXT RIN(M)'!G240","v":970.2},{"$f":"'[2]EXT RIN(M)'!H240","v":2103.8000000000002},{"$f":"'[2]EXT RIN(M)'!I240","v":2855.6692107751196},null,null,{"$f":"'[2]EXT RIN(M)'!P240","v":71.139594237171565},{"$f":"'[2]EXT RIN(M)'!Q240","v":91.509229477886066},{"$f":"'[2]EXT RIN(M)'!R240","v":106.08711876102772},{"$f":"'[2]EXT RIN(M)'!S240","v":103.05592734085489},{"$f":"'[2]EXT RIN(M)'!T240","v":89.652756602972303},{"$f":"'[2]EXT RIN(M)'!U240","v":44.545407375055198},{"$f":"'[2]EXT RIN(M)'!V240","v":280.3169105965531},null,null,{"$f":"+'[2]MONE(M)CAPARD'!AE240","v":-0.50917894992996404},{"$f":"'[2]MONE(M)CAPARD'!AF240","v":2.4635080000000058},{"$f":"'[2]MONE(M)CAPARD'!AG240","v":0.57282037088295579},{"$f":"'[2]MONE(M)CAPARD'!AH240","v":2.8797982708933803},{"$f":"'[2]MONE(M)CAPARD'!AI240","v":3.8620235753552814},{"$f":"'[2]MONE(M)CAPARD'!AJ240","v":8.5309280441050479},{"$f":"'[2]MONE(M)CAPARD'!AK240","v":-0.15614881439082229},null,null,{"$f":"'[2]MONE(M)CAPARD'!AL240","v":4.3550000000000004},{"$f":"'[2]MONE(M)CAPARD'!AM240","v":5.08},{"$f":"'[2]MONE(M)CAPARD'!AN240","v":3.91},{"$f":"'[2]MONE(M)CAPARD'!AO240","v":4.93},{"$f":"'[2]MONE(M)CAPARD'!AP240","v":6.73},{"$f":"'[2]MONE(M)CAPARD'!AQ240","v":2.83},{"$f":"'[2]MONE(M)CAPARD'!AR240","v":3.57},null,null,{"$f":"'[2]MONE(M)CAPARD'!J240","v":8.6876011972487674},{"$f":"'[2]MONE(M)CAPARD'!K240","v":6.9392170000000055},{"$f":"'[2]MONE(M)CAPARD'!L240","v":8.4110240797121865},{"$f":"'[2]MONE(M)CAPARD'!M240","v":10.372161383285309},{"$f":"'[2]MONE(M)CAPARD'!N240","v":10.884963986858031},{"$f":"'[2]MONE(M)CAPARD'!O240","v":17.843619657171804},{"$f":"'[2]MONE(M)CAPARD'!P240","v":3.3625347506132663},null,null,{"$f":"'[2]MONE(M)CAPARD'!Q240","v":11.71},{"$f":"'[2]MONE(M)CAPARD'!R240","v":9.67},{"$f":"'[2]MONE(M)CAPARD'!S240","v":8.24},{"$f":"'[2]MONE(M)CAPARD'!T240","v":10.36},{"$f":"'[2]MONE(M)CAPARD'!U240","v":12.56},{"$f":"'[2]MONE(M)CAPARD'!V240","v":8.7799999999999994},{"$f":"'[2]MONE(M)CAPARD'!W240","v":7.22},null,null,{"$f":"'[2]MONE(M)CAPARD'!AS240","v":10},{"$f":"'[2]MONE(M)CAPARD'!AT240","v":"n.a."},{"$f":"'[2]MONE(M)CAPARD'!AU240","v":6.25},{"$f":"'[2]MONE(M)CAPARD'!AV240","v":5.75},{"$f":"'[2]MONE(M)CAPARD'!AW240","v":"n.a."},{"$f":"'[2]MONE(M)CAPARD'!AX240","v":6},{"$f":"'[2]MONE(M)CAPARD'!AY240","v":"n.a."},null,null,{"$f":"+'Datos_Regional (M)'!CF233","v":27.25950451576702},{"$f":"+'Datos_Regional (M)'!CG233","v":0.74743671383639132},{"$f":"+'Datos_Regional (M)'!CH233","v":7.5502774910768844},{"$f":"+'Datos_Regional (M)'!CI233","v":5.1002083854655433},{"$f":"+'Datos_Regional (M)'!CJ233","v":4.3063380781609206},{"$f":"+'Datos_Regional (M)'!CK233","v":5.6221184625666165},{"$f":"+'Datos_Regional (M)'!CL233","v":13.850052149296799},null,null,583.6034128125001,379.08750000000003,641.69999999999993,223.7423315325,224.02118599056396,529.05061666666666,892.42940558333339,2581.2050470022309,3473.6344525855638,null,null,1015.9069380058332,771.69333333333327,1140.6666666666663,694.05017595083336,389.93313294509238,1244.0916666666665,1497.9382996666664,5256.3419135684244,6754.2802132350917,null,null,-2675.1368665661939,-3280.6457606495273,null,null,{"$f":"'[2]EXT Comercio(M)'!C240","v":590.0389049600002},{"$f":"'[2]EXT Comercio(M)'!D240","v":347.56999999999994},{"$f":"'[2]EXT Comercio(M)'!E240","v":650.30000000000007},{"$f":"'[2]EXT Comercio(M)'!F240","v":234.90238296999996},{"$f":"'[2]EXT Comercio(M)'!G240","v":240.16336228904541},{"$f":"'[2]EXT Comercio(M)'!H240","v":484.39999999999992},{"$f":"'[2]EXT Comercio(M)'!I240","v":1020.143571},{"$f":"'[2]EXT Comercio(M)'!K240","v":2547.3746502190443},{"$f":"'[2]EXT Comercio(M)'!L240","v":3567.5182212190448},null,null,{"$f":"'[2]EXT Comercio(M)'!AG240","v":749.50085020999984},{"$f":"'[2]EXT Comercio(M)'!AH240","v":611.41000000000008},{"$f":"'[2]EXT Comercio(M)'!AI240","v":904.40000000000009},{"$f":"'[2]EXT Comercio(M)'!AJ240","v":525.5821876},{"$f":"'[2]EXT Comercio(M)'!AK240","v":320.17147144410933},{"$f":"'[2]EXT Comercio(M)'!AL240","v":1013.5999999999998},{"$f":"'[2]EXT Comercio(M)'!AM240","v":1375.4212599999996},{"$f":"'[2]EXT Comercio(M)'!AO240","v":4124.6645092541103},{"$f":"'[2]EXT Comercio(M)'!AP240","v":5500.0857692541103},null,null,{"$f":"'[2]EXT Comercio(M)'!$BS240","v":-1577.2898590350651},{"$f":"'[2]EXT Comercio(M)'!$BT240","v":-1932.5675480350646}]
[null,null,"Abril",{"$f":"'[2]REAL IPC(M)'!AD241","v":11.750730438363346},{"$f":"'[2]REAL IPC(M)'!AE241","v":1.7900732302685161},{"$f":"'[2]REAL IPC(M)'!AF241","v":3.6226069012953972},{"$f":"'[2]REAL IPC(M)'!AG241","v":8.0703569580962196},{"$f":"'[2]REAL IPC(M)'!AH241","v":6.8805848903330622},{"$f":"'[2]REAL IPC(M)'!AI241","v":0.69453294252585696},{"$f":"'[2]REAL IPC(M)'!AJ241","v":3.7162162162161949},null,null,{"$f":"'[2]REAL IMAE(M)'!AG241","v":-4.399623256579992},{"$f":"'[2]REAL IMAE(M)'!AH241","v":-3.6194245183487768},{"$f":"'[2]REAL IMAE(M)'!AI241","v":-0.79767925950456253},{"$f":"'[2]REAL IMAE(M)'!AJ241","v":-4.4319345275705224},{"$f":"'[2]REAL IMAE(M)'!AK241","v":-4.0073712848515584},{"$f":"'[2]REAL IMAE(M)'!AL241","v":-2.3633445034584621},{"$f":"'[2]REAL IMAE(M)'!AM241","v":2.5106474782663843},null,null,{"$f":"'[2]EXT ITCER(M)'!C241","v":90.049918334322939},{"$f":"'[2]EXT ITCER(M)'!D241","v":89.955132666151599},{"$f":"'[2]EXT ITCER(M)'!E241","v":70.500302130240229},{"$f":"'[2]EXT ITCER(M)'!F241","v":80.185880375602153},{"$f":"'[2]EXT ITCER(M)'!G241","v":92.751185926036797},{"$f":"'[2]EXT ITCER(M)'!H241","v":96.229335767194669},{"$f":"'[2]EXT ITCER(M)'!I241","v":97.582269606407024},null,null,{"$f":"'[2]EXT TC(M)'!J241","v":15.026010444888142},{"$f":"'[2]EXT TC(M)'!K241","v":0},{"$f":"'[2]EXT TC(M)'!L241","v":7.2923493173073091},{"$f":"'[2]EXT TC(M)'!M241","v":-4.4964980215379084E-2},{"$f":"'[2]EXT TC(M)'!N241","v":4.6100337417267552},{"$f":"'[2]EXT TC(M)'!O241","v":5.289515602866075},{"$f":"'[2]EXT TC(M)'!P241","v":0},null,null,{"$f":"'[2]EXT RIN(M)'!C241","v":4270.68760372},{"$f":"'[2]EXT RIN(M)'!D241","v":2673.8},{"$f":"'[2]EXT RIN(M)'!E241","v":5001.00000507},{"$f":"'[2]EXT RIN(M)'!F241","v":2589.0663725737131},{"$f":"'[2]EXT RIN(M)'!G241","v":1012.8},{"$f":"'[2]EXT RIN(M)'!H241","v":2038.9},{"$f":"'[2]EXT RIN(M)'!I241","v":2843.7327772075},null,null,{"$f":"'[2]EXT RIN(M)'!P241","v":74.44841969993783},{"$f":"'[2]EXT RIN(M)'!Q241","v":92.459780099396525},{"$f":"'[2]EXT RIN(M)'!R241","v":104.57828706650527},{"$f":"'[2]EXT RIN(M)'!S241","v":101.64577796076715},{"$f":"'[2]EXT RIN(M)'!T241","v":91.050189092455327},{"$f":"'[2]EXT RIN(M)'!U241","v":43.989528511517797},{"$f":"'[2]EXT RIN(M)'!V241","v":277.92363104019569},null,null,{"$f":"+'[2]MONE(M)CAPARD'!AE241","v":-0.22436581611575057},{"$f":"'[2]MONE(M)CAPARD'!AF241","v":3.1731254996003142},{"$f":"'[2]MONE(M)CAPARD'!AG241","v":1.9468658037393798},{"$f":"'[2]MONE(M)CAPARD'!AH241","v":2.9699569171852596},{"$f":"'[2]MONE(M)CAPARD'!AI241","v":5.8133313868211136},{"$f":"'[2]MONE(M)CAPARD'!AJ241","v":8.3574220084793467},{"$f":"'[2]MONE(M)CAPARD'!AK241","v":-6.3843648208448622E-2},null,null,{"$f":"'[2]MONE(M)CAPARD'!AL241","v":3.88},{"$f":"'[2]MONE(M)CAPARD'!AM241","v":5.0199999999999996},{"$f":"'[2]MONE(M)CAPARD'!AN241","v":3.94},{"$f":"'[2]MONE(M)CAPARD'!AO241","v":4.8899999999999997},{"$f":"'[2]MONE(M)CAPARD'!AP241","v":6.87},{"$f":"'[2]MONE(M)CAPARD'!AQ241","v":2.86},{"$f":"'[2]MONE(M)CAPARD'!AR241","v":3.65},null,null,{"$f":"'[2]MONE(M)CAPARD'!J241","v":9.2699792842520683},{"$f":"'[2]MONE(M)CAPARD'!K241","v":7.6431095123900832},{"$f":"'[2]MONE(M)CAPARD'!L241","v":9.8698473282443064},{"$f":"'[2]MONE(M)CAPARD'!M241","v":10.983255146002877},{"$f":"'[2]MONE(M)CAPARD'!N241","v":11.93055755616375},{"$f":"'[2]MONE(M)CAPARD'!O241","v":18.099758273745433},{"$f":"'[2]MONE(M)CAPARD'!P241","v":3.1082736156352011},null,null,{"$f":"'[2]MONE(M)CAPARD'!Q241","v":12.37},{"$f":"'[2]MONE(M)CAPARD'!R241","v":9.57},{"$f":"'[2]MONE(M)CAPARD'!S241","v":8.2199999999999989},{"$f":"'[2]MONE(M)CAPARD'!T241","v":10.42},{"$f":"'[2]MONE(M)CAPARD'!U241","v":13.39},{"$f":"'[2]MONE(M)CAPARD'!V241","v":8.86},{"$f":"'[2]MONE(M)CAPARD'!W241","v":6.94},null,null,{"$f":"'[2]MONE(M)CAPARD'!AS241","v":10},{"$f":"'[2]MONE(M)CAPARD'!AT241","v":"n.a."},{"$f":"'[2]MONE(M)CAPARD'!AU241","v":5.75},{"$f":"'[2]MONE(M)CAPARD'!AV241","v":4.5},{"$f":"'[2]MONE(M)CAPARD'!AW241","v":"n.a."},{"$f":"'[2]MONE(M)CAPARD'!AX241","v":5},{"$f":"'[2]MONE(M)CAPARD'!AY241","v":"n.a."},null,null,{"$f":"+'Datos_Regional (M)'!CF234","v":26.034349863958163},{"$f":"+'Datos_Regional (M)'!CG234","v":-0.52989003840799853},{"$f":"+'Datos_Regional (M)'!CH234","v":7.2769292530270757},{"$f":"+'Datos_Regional (M)'!CI234","v":3.6641517837421977},{"$f":"+'Datos_Regional (M)'!CJ234","v":1.2811321421830835},{"$f":"+'Datos_Regional (M)'!CK234","v":4.0878600728111669},{"$f":"+'Datos_Regional (M)'!CL234","v":12.753610935807981},null,null,573.82722096583336,369.19750000000005,634.09166666666658,218.71941284583332,219.27617480523352,516.60275833333333,889.50710041666662,2531.7147336169005,3421.2218340335662,null,null,963.65739919083342,741.26166666666677,1098.1083333333329,674.91882522083336,375.16129461122858,1210.0999999999997,1482.8013018333331,5063.2075190228943,6546.0088208562274,null,null,-2531.4927854059938,-3124.7869868226608,null,null,{"$f":"'[2]EXT Comercio(M)'!C241","v":566.4189922999999},{"$f":"'[2]EXT Comercio(M)'!D241","v":308.97000000000003},{"$f":"'[2]EXT Comercio(M)'!E241","v":632.30000000000007},{"$f":"'[2]EXT Comercio(M)'!F241","v":190.22457434},{"$f":"'[2]EXT Comercio(M)'!G241","v":204.57242029590071},{"$f":"'[2]EXT Comercio(M)'!H241","v":463.79999999999984},{"$f":"'[2]EXT Comercio(M)'!I241","v":889.8242039999999},{"$f":"'[2]EXT Comercio(M)'!K241","v":2366.2859869358999},{"$f":"'[2]EXT Comercio(M)'!L241","v":3256.1101909359004},null,null,{"$f":"'[2]EXT Comercio(M)'!AG241","v":708.86909514000013},{"$f":"'[2]EXT Comercio(M)'!AH241","v":556.77},{"$f":"'[2]EXT Comercio(M)'!AI241","v":881.09999999999957},{"$f":"'[2]EXT Comercio(M)'!AJ241","v":509.56893564000006},{"$f":"'[2]EXT Comercio(M)'!AK241","v":306.93870547665551},{"$f":"'[2]EXT Comercio(M)'!AL241","v":985.30000000000007},{"$f":"'[2]EXT Comercio(M)'!AM241","v":1112.7803410000004},{"$f":"'[2]EXT Comercio(M)'!AO241","v":3948.5467362566542},{"$f":"'[2]EXT Comercio(M)'!AP241","v":5061.3270772566557},null,null,{"$f":"'[2]EXT Comercio(M)'!$BS241","v":-1582.2607493207524},{"$f":"'[2]EXT Comercio(M)'!$BT241","v":-1805.2168863207535}]
[null,null,"Mayo ",{"$f":"'[2]REAL IPC(M)'!AD242","v":9.5237291520749743},{"$f":"'[2]REAL IPC(M)'!AE242","v":0.97595331522287265},{"$f":"'[2]REAL IPC(M)'!AF242","v":2.2943037974683387},{"$f":"'[2]REAL IPC(M)'!AG242","v":6.1483739837398339},{"$f":"'[2]REAL IPC(M)'!AH242","v":4.093890776890861},{"$f":"'[2]REAL IPC(M)'!AI242","v":0.47312101101834053},{"$f":"'[2]REAL IPC(M)'!AJ242","v":2.5125628140703617},null,null,{"$f":"'[2]REAL IMAE(M)'!AG242","v":-4.1895352170784941},{"$f":"'[2]REAL IMAE(M)'!AH242","v":-1.9149259997819537},{"$f":"'[2]REAL IMAE(M)'!AI242","v":-0.48871435570190092},{"$f":"'[2]REAL IMAE(M)'!AJ242","v":-4.7850909758545761},{"$f":"'[2]REAL IMAE(M)'!AK242","v":-4.1986059159419842},{"$f":"'[2]REAL IMAE(M)'!AL242","v":-1.4983799478118176},{"$f":"'[2]REAL IMAE(M)'!AM242","v":2.2387518970264737},null,null,{"$f":"'[2]EXT ITCER(M)'!C242","v":91.036733752761137},{"$f":"'[2]EXT ITCER(M)'!D242","v":89.836160918416823},{"$f":"'[2]EXT ITCER(M)'!E242","v":70.590412522625897},{"$f":"'[2]EXT ITCER(M)'!F242","v":80.30387341095819},{"$f":"'[2]EXT ITCER(M)'!G242","v":93.523237538416183},{"$f":"'[2]EXT ITCER(M)'!H242","v":96.590980430737048},{"$f":"'[2]EXT ITCER(M)'!I242","v":98.045226882605633},null,null,{"$f":"'[2]EXT TC(M)'!J242","v":12.251337850033662},{"$f":"'[2]EXT TC(M)'!K242","v":0},{"$f":"'[2]EXT TC(M)'!L242","v":8.9511446446919702},{"$f":"'[2]EXT TC(M)'!M242","v":-8.8883271085537507E-2},{"$f":"'[2]EXT TC(M)'!N242","v":4.949463199779637},{"$f":"'[2]EXT TC(M)'!O242","v":5.6948552544146995},{"$f":"'[2]EXT TC(M)'!P242","v":0},null,null,{"$f":"'[2]EXT RIN(M)'!C242","v":3900.5751640499998},{"$f":"'[2]EXT RIN(M)'!D242","v":2928.9},{"$f":"'[2]EXT RIN(M)'!E242","v":5007.5742491400006},{"$f":"'[2]EXT RIN(M)'!F242","v":2534.2079799180215},{"$f":"'[2]EXT RIN(M)'!G242","v":1020.3},{"$f":"'[2]EXT RIN(M)'!H242","v":2073},{"$f":"'[2]EXT RIN(M)'!I242","v":2750.9609279830502},null,null,{"$f":"'[2]EXT RIN(M)'!P242","v":68.946206400912146},{"$f":"'[2]EXT RIN(M)'!Q242","v":106.51126425077733},{"$f":"'[2]EXT RIN(M)'!R242","v":103.9715316319803},{"$f":"'[2]EXT RIN(M)'!S242","v":101.00720677011998},{"$f":"'[2]EXT RIN(M)'!T242","v":90.353162156206608},{"$f":"'[2]EXT RIN(M)'!U242","v":46.009365570511704},{"$f":"'[2]EXT RIN(M)'!V242","v":269.27841766847916},null,null,{"$f":"+'[2]MONE(M)CAPARD'!AE242","v":1.5761614960426324},{"$f":"'[2]MONE(M)CAPARD'!AF242","v":3.8465065763252162},{"$f":"'[2]MONE(M)CAPARD'!AG242","v":3.3195359628770467},{"$f":"'[2]MONE(M)CAPARD'!AH242","v":4.1749353757778875},{"$f":"'[2]MONE(M)CAPARD'!AI242","v":8.5045543524609251},{"$f":"'[2]MONE(M)CAPARD'!AJ242","v":7.2923772201504118},{"$f":"'[2]MONE(M)CAPARD'!AK242","v":1.0998039215686177},null,null,{"$f":"'[2]MONE(M)CAPARD'!AL242","v":3.0249999999999999},{"$f":"'[2]MONE(M)CAPARD'!AM242","v":4.8600000000000003},{"$f":"'[2]MONE(M)CAPARD'!AN242","v":3.98},{"$f":"'[2]MONE(M)CAPARD'!AO242","v":4.8499999999999996},{"$f":"'[2]MONE(M)CAPARD'!AP242","v":6.67},{"$f":"'[2]MONE(M)CAPARD'!AQ242","v":2.96},{"$f":"'[2]MONE(M)CAPARD'!AR242","v":3.64},null,null,{"$f":"'[2]MONE(M)CAPARD'!J242","v":11.500951387835743},{"$f":"'[2]MONE(M)CAPARD'!K242","v":8.3228198485452243},{"$f":"'[2]MONE(M)CAPARD'!L242","v":11.296519721577743},{"$f":"'[2]MONE(M)CAPARD'!M242","v":12.879731929152708},{"$f":"'[2]MONE(M)CAPARD'!N242","v":14.926910896088271},{"$f":"'[2]MONE(M)CAPARD'!O242","v":17.87232128184057},{"$f":"'[2]MONE(M)CAPARD'!P242","v":3.577549019607833},null,null,{"$f":"'[2]MONE(M)CAPARD'!Q242","v":11.88},{"$f":"'[2]MONE(M)CAPARD'!R242","v":9.3800000000000008},{"$f":"'[2]MONE(M)CAPARD'!S242","v":8.19},{"$f":"'[2]MONE(M)CAPARD'!T242","v":10.39},{"$f":"'[2]MONE(M)CAPARD'!U242","v":12.73},{"$f":"'[2]MONE(M)CAPARD'!V242","v":7.95},{"$f":"'[2]MONE(M)CAPARD'!W242","v":6.18},null,null,{"$f":"'[2]MONE(M)CAPARD'!AS242","v":10},{"$f":"'[2]MONE(M)CAPARD'!AT242","v":"n.a."},{"$f":"'[2]MONE(M)CAPARD'!AU242","v":5.75},{"$f":"'[2]MONE(M)CAPARD'!AV242","v":4.5},{"$f":"'[2]MONE(M)CAPARD'!AW242","v":"n.a."},{"$f":"'[2]MONE(M)CAPARD'!AX242","v":5},{"$f":"'[2]MONE(M)CAPARD'!AY242","v":"n.a."},null,null,{"$f":"+'Datos_Regional (M)'!CF235","v":21.553702912780825},{"$f":"+'Datos_Regional (M)'!CG235","v":-1.7276770595137658},{"$f":"+'Datos_Regional (M)'!CH235","v":6.6666450993285276},{"$f":"+'Datos_Regional (M)'!CI235","v":3.0734551801233634},{"$f":"+'Datos_Regional (M)'!CJ235","v":-0.22263314117164645},{"$f":"+'Datos_Regional (M)'!CK235","v":3.4379300023831494},{"$f":"+'Datos_Regional (M)'!CL235","v":11.16420211061644},null,null,565.33383421250016,360.93333333333345,630.17500000000007,215.18837963166663,218.80935391120715,505.0153416666667,894.82164533333344,2495.455242755374,3390.2768880887074,null,null,926.5347582633334,717.75999999999988,1061.5333333333331,644.06632935749997,367.23163306481746,1164.3499999999997,1476.5161136666666,4881.4760540189827,6357.9921676856502,null,null,-2386.0208112636092,-2967.7152795969428,null,null,{"$f":"'[2]EXT Comercio(M)'!C242","v":575.28501386000016},{"$f":"'[2]EXT Comercio(M)'!D242","v":336.72000000000025},{"$f":"'[2]EXT Comercio(M)'!E242","v":604.09999999999991},{"$f":"'[2]EXT Comercio(M)'!F242","v":231.73103021000009},{"$f":"'[2]EXT Comercio(M)'!G242","v":206.90747893750796},{"$f":"'[2]EXT Comercio(M)'!H242","v":471.29999999999984},{"$f":"'[2]EXT Comercio(M)'!I242","v":866.16401700000006},{"$f":"'[2]EXT Comercio(M)'!K242","v":2426.0435230075072},{"$f":"'[2]EXT Comercio(M)'!L242","v":3292.2075400075082},null,null,{"$f":"'[2]EXT Comercio(M)'!AG242","v":725.24465917999999},{"$f":"'[2]EXT Comercio(M)'!AH242","v":604.11999999999989},{"$f":"'[2]EXT Comercio(M)'!AI242","v":887.70000000000027},{"$f":"'[2]EXT Comercio(M)'!AJ242","v":486.55843090999997},{"$f":"'[2]EXT Comercio(M)'!AK242","v":322.56150901918318},{"$f":"'[2]EXT Comercio(M)'!AL242","v":949.69999999999993},{"$f":"'[2]EXT Comercio(M)'!AM242","v":1359.151658},{"$f":"'[2]EXT Comercio(M)'!AO242","v":3975.8845991091839},{"$f":"'[2]EXT Comercio(M)'!AP242","v":5335.0362571091828},null,null,{"$f":"'[2]EXT Comercio(M)'!$BS242","v":-1549.8410761016758},{"$f":"'[2]EXT Comercio(M)'!$BT242","v":-2042.8287171016746}]
[null,null,"Junio",{"$f":"'[2]REAL IPC(M)'!AD243","v":8.196070831866594},{"$f":"'[2]REAL IPC(M)'!AE243","v":-0.22856007154922967},{"$f":"'[2]REAL IPC(M)'!AF243","v":0.61721530249108225},{"$f":"'[2]REAL IPC(M)'!AG243","v":5.4216867469879579},{"$f":"'[2]REAL IPC(M)'!AH243","v":1.9579012536759026},{"$f":"'[2]REAL IPC(M)'!AI243","v":0.25742021524054126},{"$f":"'[2]REAL IPC(M)'!AJ243","v":1.8211920529801224},null,null,{"$f":"'[2]REAL IMAE(M)'!AG243","v":-3.8775182458992927},{"$f":"'[2]REAL IMAE(M)'!AH243","v":-9.2536095850688282E-2},{"$f":"'[2]REAL IMAE(M)'!AI243","v":-2.7984943692709936E-2},{"$f":"'[2]REAL IMAE(M)'!AJ243","v":-5.194332592143077},{"$f":"'[2]REAL IMAE(M)'!AK243","v":-4.1559283139751182},{"$f":"'[2]REAL IMAE(M)'!AL243","v":-0.2620895330602806},{"$f":"'[2]REAL IMAE(M)'!AM243","v":2.200350656056421},null,null,{"$f":"'[2]EXT ITCER(M)'!C243","v":91.984699120815421},{"$f":"'[2]EXT ITCER(M)'!D243","v":90.545677866689275},{"$f":"'[2]EXT ITCER(M)'!E243","v":71.471108909793756},{"$f":"'[2]EXT ITCER(M)'!F243","v":80.546233941864472},{"$f":"'[2]EXT ITCER(M)'!G243","v":94.778713666182853},{"$f":"'[2]EXT ITCER(M)'!H243","v":95.265311300351868},{"$f":"'[2]EXT ITCER(M)'!I243","v":98.376725398371391},null,null,{"$f":"'[2]EXT TC(M)'!J243","v":10.733097325713075},{"$f":"'[2]EXT TC(M)'!K243","v":0},{"$f":"'[2]EXT TC(M)'!L243","v":8.5136735215632129},{"$f":"'[2]EXT TC(M)'!M243","v":-2.0157373655426494E-2},{"$f":"'[2]EXT TC(M)'!N243","v":5.0347875789289471},{"$f":"'[2]EXT TC(M)'!O243","v":5.1702130151183292},{"$f":"'[2]EXT TC(M)'!P243","v":0},null,null,{"$f":"'[2]EXT RIN(M)'!C243","v":3935.8131411099998},{"$f":"'[2]EXT RIN(M)'!D243","v":2781.5},{"$f":"'[2]EXT RIN(M)'!E243","v":5137.2821378400004},{"$f":"'[2]EXT RIN(M)'!F243","v":2444.222793169075},{"$f":"'[2]EXT RIN(M)'!G243","v":1030.9000000000001},{"$f":"'[2]EXT RIN(M)'!H243","v":2047.1},{"$f":"'[2]EXT RIN(M)'!I243","v":2705.4254256132299},null,null,{"$f":"'[2]EXT RIN(M)'!P243","v":69.162905270247265},{"$f":"'[2]EXT RIN(M)'!Q243","v":99.033272901021547},{"$f":"'[2]EXT RIN(M)'!R243","v":105.71208246632288},{"$f":"'[2]EXT RIN(M)'!S243","v":95.133024266402927},{"$f":"'[2]EXT RIN(M)'!T243","v":89.2348601708687},{"$f":"'[2]EXT RIN(M)'!U243","v":46.865895920709086},{"$f":"'[2]EXT RIN(M)'!V243","v":262.94309314142248},null,null,{"$f":"+'[2]MONE(M)CAPARD'!AE243","v":2.5915258720352483},{"$f":"'[2]MONE(M)CAPARD'!AF243","v":4.9899651394422202},{"$f":"'[2]MONE(M)CAPARD'!AG243","v":5.0814213871235365},{"$f":"'[2]MONE(M)CAPARD'!AH243","v":4.4377142857142795},{"$f":"'[2]MONE(M)CAPARD'!AI243","v":11.197414147055508},{"$f":"'[2]MONE(M)CAPARD'!AJ243","v":6.874882447565402},{"$f":"'[2]MONE(M)CAPARD'!AK243","v":1.6684227642276523},null,null,{"$f":"'[2]MONE(M)CAPARD'!AL243","v":2.6799999999999997},{"$f":"'[2]MONE(M)CAPARD'!AM243","v":4.75},{"$f":"'[2]MONE(M)CAPARD'!AN243","v":3.98},{"$f":"'[2]MONE(M)CAPARD'!AO243","v":4.8},{"$f":"'[2]MONE(M)CAPARD'!AP243","v":6.64},{"$f":"'[2]MONE(M)CAPARD'!AQ243","v":2.92},{"$f":"'[2]MONE(M)CAPARD'!AR243","v":3.52},null,null,{"$f":"'[2]MONE(M)CAPARD'!J243","v":12.407039428440784},{"$f":"'[2]MONE(M)CAPARD'!K243","v":9.7608695219123405},{"$f":"'[2]MONE(M)CAPARD'!L243","v":13.121794970986484},{"$f":"'[2]MONE(M)CAPARD'!M243","v":13.449142857142851},{"$f":"'[2]MONE(M)CAPARD'!N243","v":17.58451779456103},{"$f":"'[2]MONE(M)CAPARD'!O243","v":17.407768669182676},{"$f":"'[2]MONE(M)CAPARD'!P243","v":4.7915447154471646},null,null,{"$f":"'[2]MONE(M)CAPARD'!Q243","v":11.89},{"$f":"'[2]MONE(M)CAPARD'!R243","v":9.51},{"$f":"'[2]MONE(M)CAPARD'!S243","v":8.19},{"$f":"'[2]MONE(M)CAPARD'!T243","v":10.38},{"$f":"'[2]MONE(M)CAPARD'!U243","v":13.1},{"$f":"'[2]MONE(M)CAPARD'!V243","v":8.3800000000000008},{"$f":"'[2]MONE(M)CAPARD'!W243","v":6.7},null,null,{"$f":"'[2]MONE(M)CAPARD'!AS243","v":10},{"$f":"'[2]MONE(M)CAPARD'!AT243","v":"n.a."},{"$f":"'[2]MONE(M)CAPARD'!AU243","v":5.25},{"$f":"'[2]MONE(M)CAPARD'!AV243","v":3.5},{"$f":"'[2]MONE(M)CAPARD'!AW243","v":"n.a."},{"$f":"'[2]MONE(M)CAPARD'!AX243","v":5},{"$f":"'[2]MONE(M)CAPARD'!AY243","v":"n.a."},null,null,{"$f":"+'Datos_Regional (M)'!CF236","v":19.343395537355423},{"$f":"+'Datos_Regional (M)'!CG236","v":-3.6012317784486214},{"$f":"+'Datos_Regional (M)'!CH236","v":3.6638144214194535},{"$f":"+'Datos_Regional (M)'!CI236","v":1.5846101913377098},{"$f":"+'Datos_Regional (M)'!CJ236","v":-2.5010110642093464},{"$f":"+'Datos_Regional (M)'!CK236","v":4.4587341232797062},{"$f":"+'Datos_Regional (M)'!CL236","v":8.6314873635808596},null,null,561.03914178166679,355.69583333333344,620.6,211.23475491333332,214.79058004085996,495.44177500000001,918.17510016666677,2458.8020850691937,3376.9771852358595,null,null,902.68979716249999,696.95000000000016,1038.0416666666667,623.23496731666671,364.33299166608862,1124.9416666666666,1485.34047775,4750.1910894785888,6235.5315672285897,null,null,-2291.3890044093951,-2858.5543819927284,null,null,{"$f":"'[2]EXT Comercio(M)'!C243","v":562.70183572999986},{"$f":"'[2]EXT Comercio(M)'!D243","v":330},{"$f":"'[2]EXT Comercio(M)'!E243","v":621.90000000000009},{"$f":"'[2]EXT Comercio(M)'!F243","v":216.88522985999998},{"$f":"'[2]EXT Comercio(M)'!G243","v":218.08791979753801},{"$f":"'[2]EXT Comercio(M)'!H243","v":503.99999999999989},{"$f":"'[2]EXT Comercio(M)'!I243","v":1102.591377},{"$f":"'[2]EXT Comercio(M)'!K243","v":2453.5749853875386},{"$f":"'[2]EXT Comercio(M)'!L243","v":3556.1663623875393},null,null,{"$f":"'[2]EXT Comercio(M)'!AG243","v":818.91255666999973},{"$f":"'[2]EXT Comercio(M)'!AH243","v":631.01000000000022},{"$f":"'[2]EXT Comercio(M)'!AI243","v":995.80000000000041},{"$f":"'[2]EXT Comercio(M)'!AJ243","v":537.14642085000014},{"$f":"'[2]EXT Comercio(M)'!AK243","v":376.82083768389765},{"$f":"'[2]EXT Comercio(M)'!AL243","v":1022.5000000000003},{"$f":"'[2]EXT Comercio(M)'!AM243","v":1595.9049500000001},{"$f":"'[2]EXT Comercio(M)'!AO243","v":4382.1898152038993},{"$f":"'[2]EXT Comercio(M)'!AP243","v":5978.0947652038994},null,null,{"$f":"'[2]EXT Comercio(M)'!$BS243","v":-1928.6148298163635},{"$f":"'[2]EXT Comercio(M)'!$BT243","v":-2421.9284028163638}]
[null,null,"Julio",{"$f":"'[2]REAL IPC(M)'!AD244","v":6.9027168627060487},{"$f":"'[2]REAL IPC(M)'!AE244","v":-1.8936420722135072},{"$f":"'[2]REAL IPC(M)'!AF244","v":-0.3020484375858099},{"$f":"'[2]REAL IPC(M)'!AG244","v":3.9823008849557495},{"$f":"'[2]REAL IPC(M)'!AH244","v":7.642922653622311E-2},{"$f":"'[2]REAL IPC(M)'!AI244","v":-1.2208148939416876},{"$f":"'[2]REAL IPC(M)'!AJ244","v":1.8961253091508559},null,null,{"$f":"'[2]REAL IMAE(M)'!AG244","v":-3.4435629768215041},{"$f":"'[2]REAL IMAE(M)'!AH244","v":-0.82797549477691912},{"$f":"'[2]REAL IMAE(M)'!AI244","v":0.47400156865933746},{"$f":"'[2]REAL IMAE(M)'!AJ244","v":-4.6351678544943713},{"$f":"'[2]REAL IMAE(M)'!AK244","v":-3.9439419806596057},{"$f":"'[2]REAL IMAE(M)'!AL244","v":1.2220084320484765},{"$f":"'[2]REAL IMAE(M)'!AM244","v":2.4506072785055495},null,null,{"$f":"'[2]EXT ITCER(M)'!C244","v":91.966376102095992},{"$f":"'[2]EXT ITCER(M)'!D244","v":90.889862162365645},{"$f":"'[2]EXT ITCER(M)'!E244","v":71.628065770939543},{"$f":"'[2]EXT ITCER(M)'!F244","v":79.951154273268671},{"$f":"'[2]EXT ITCER(M)'!G244","v":95.793576159814151},{"$f":"'[2]EXT ITCER(M)'!H244","v":95.272302221227179},{"$f":"'[2]EXT ITCER(M)'!I244","v":97.869997908718076},null,null,{"$f":"'[2]EXT TC(M)'!J244","v":8.4429338784623464},{"$f":"'[2]EXT TC(M)'!K244","v":0},{"$f":"'[2]EXT TC(M)'!L244","v":9.8679974297222461},{"$f":"'[2]EXT TC(M)'!M244","v":-1.6567167784784821E-3},{"$f":"'[2]EXT TC(M)'!N244","v":5.1358332986173059},{"$f":"'[2]EXT TC(M)'!O244","v":4.978467391811769},{"$f":"'[2]EXT TC(M)'!P244","v":0},null,null,{"$f":"'[2]EXT RIN(M)'!C244","v":3884.3575550800001},{"$f":"'[2]EXT RIN(M)'!D244","v":2676.3},{"$f":"'[2]EXT RIN(M)'!E244","v":5035.4762010599998},{"$f":"'[2]EXT RIN(M)'!F244","v":2204.9730131065198},{"$f":"'[2]EXT RIN(M)'!G244","v":1102.3},{"$f":"'[2]EXT RIN(M)'!H244","v":2059.3000000000002},{"$f":"'[2]EXT RIN(M)'!I244","v":2486.8558421243306},null,null,{"$f":"'[2]EXT RIN(M)'!P244","v":70.676061190090877},{"$f":"'[2]EXT RIN(M)'!Q244","v":93.777495433414771},{"$f":"'[2]EXT RIN(M)'!R244","v":102.69189442600724},{"$f":"'[2]EXT RIN(M)'!S244","v":94.431673088392102},{"$f":"'[2]EXT RIN(M)'!T244","v":89.095655740334507},{"$f":"'[2]EXT RIN(M)'!U244","v":45.554744272304319},{"$f":"'[2]EXT RIN(M)'!V244","v":246.30407128266279},null,null,{"$f":"+'[2]MONE(M)CAPARD'!AE244","v":4.7681511629309989},{"$f":"'[2]MONE(M)CAPARD'!AF244","v":6.4864726472647334},{"$f":"'[2]MONE(M)CAPARD'!AG244","v":6.0001718629503147},{"$f":"'[2]MONE(M)CAPARD'!AH244","v":5.6718297872340457},{"$f":"'[2]MONE(M)CAPARD'!AI244","v":13.796161103303087},{"$f":"'[2]MONE(M)CAPARD'!AJ244","v":8.5350115865904321},{"$f":"'[2]MONE(M)CAPARD'!AK244","v":1.5740291262136019},null,null,{"$f":"'[2]MONE(M)CAPARD'!AL244","v":2.4},{"$f":"'[2]MONE(M)CAPARD'!AM244","v":4.47},{"$f":"'[2]MONE(M)CAPARD'!AN244","v":3.97},{"$f":"'[2]MONE(M)CAPARD'!AO244","v":4.72},{"$f":"'[2]MONE(M)CAPARD'!AP244","v":6.85},{"$f":"'[2]MONE(M)CAPARD'!AQ244","v":2.77},{"$f":"'[2]MONE(M)CAPARD'!AR244","v":3.5},null,null,{"$f":"'[2]MONE(M)CAPARD'!J244","v":14.0756788778521},{"$f":"'[2]MONE(M)CAPARD'!K244","v":11.389314931493157},{"$f":"'[2]MONE(M)CAPARD'!L244","v":14.235045169108739},{"$f":"'[2]MONE(M)CAPARD'!M244","v":14.750297872340429},{"$f":"'[2]MONE(M)CAPARD'!N244","v":19.742304676463132},{"$f":"'[2]MONE(M)CAPARD'!O244","v":19.073669086976654},{"$f":"'[2]MONE(M)CAPARD'!P244","v":4.3022977346278415},null,null,{"$f":"'[2]MONE(M)CAPARD'!Q244","v":11.75},{"$f":"'[2]MONE(M)CAPARD'!R244","v":9.2799999999999994},{"$f":"'[2]MONE(M)CAPARD'!S244","v":8.18},{"$f":"'[2]MONE(M)CAPARD'!T244","v":10.27},{"$f":"'[2]MONE(M)CAPARD'!U244","v":13.01},{"$f":"'[2]MONE(M)CAPARD'!V244","v":8.5399999999999991},{"$f":"'[2]MONE(M)CAPARD'!W244","v":6.28},null,null,{"$f":"'[2]MONE(M)CAPARD'!AS244","v":9},{"$f":"'[2]MONE(M)CAPARD'!AT244","v":"n.a."},{"$f":"'[2]MONE(M)CAPARD'!AU244","v":4.75},{"$f":"'[2]MONE(M)CAPARD'!AV244","v":4},{"$f":"'[2]MONE(M)CAPARD'!AW244","v":"n.a."},{"$f":"'[2]MONE(M)CAPARD'!AX244","v":5},{"$f":"'[2]MONE(M)CAPARD'!AY244","v":"n.a."},null,null,{"$f":"+'Datos_Regional (M)'!CF237","v":16.159577350848188},{"$f":"+'Datos_Regional (M)'!CG237","v":-3.8519661001622407},{"$f":"+'Datos_Regional (M)'!CH237","v":3.6861062050727256},{"$f":"+'Datos_Regional (M)'!CI237","v":1.950281258738995},{"$f":"+'Datos_Regional (M)'!CJ237","v":-4.6859187722143698},{"$f":"+'Datos_Regional (M)'!CK237","v":5.350022954087752},{"$f":"+'Datos_Regional (M)'!CL237","v":6.8282020722149506},null,null,552.84980462583349,349.44250000000011,609.51666666666665,208.16840627666667,213.38226265167938,479.81241666666671,933.98922725,2413.172056887513,3347.1612841375122,null,null,874.8322975750001,675.81500000000017,1012.6749999999998,597.48407812833329,351.33909024767217,1076.7416666666668,1446.1744527499998,4588.8871326176713,6035.0615853676718,null,null,-2175.7150757301588,-2687.9003012301596,null,null,{"$f":"'[2]EXT Comercio(M)'!C244","v":514.63268388000051},{"$f":"'[2]EXT Comercio(M)'!D244","v":373.07999999999947},{"$f":"'[2]EXT Comercio(M)'!E244","v":612.30000000000041},{"$f":"'[2]EXT Comercio(M)'!F244","v":211.13167621999992},{"$f":"'[2]EXT Comercio(M)'!G244","v":224.31333539398696},{"$f":"'[2]EXT Comercio(M)'!H244","v":471.79999999999984},{"$f":"'[2]EXT Comercio(M)'!I244","v":1123.9080709999998},{"$f":"'[2]EXT Comercio(M)'!K244","v":2407.2576954939868},{"$f":"'[2]EXT Comercio(M)'!L244","v":3531.1657664939848},null,null,{"$f":"'[2]EXT Comercio(M)'!AG244","v":820.35627711999996},{"$f":"'[2]EXT Comercio(M)'!AH244","v":664.17000000000007},{"$f":"'[2]EXT Comercio(M)'!AI244","v":1094.1999999999996},{"$f":"'[2]EXT Comercio(M)'!AJ244","v":527.54525762000003},{"$f":"'[2]EXT Comercio(M)'!AK244","v":339.58712722008448},{"$f":"'[2]EXT Comercio(M)'!AL244","v":1109.2000000000003},{"$f":"'[2]EXT Comercio(M)'!AM244","v":1320.6807789999998},{"$f":"'[2]EXT Comercio(M)'!AO244","v":4555.0586619600836},{"$f":"'[2]EXT Comercio(M)'!AP244","v":5875.7394409600856},null,null,{"$f":"'[2]EXT Comercio(M)'!$BS244","v":-2147.8009664660949},{"$f":"'[2]EXT Comercio(M)'!$BT244","v":-2344.5736744660953}]
[null,null,"Agosto",{"$f":"'[2]REAL IPC(M)'!AD245","v":5.7116567660008748},{"$f":"'[2]REAL IPC(M)'!AE245","v":-2.1568627450980458},{"$f":"'[2]REAL IPC(M)'!AF245","v":-0.73224043715850273},{"$f":"'[2]REAL IPC(M)'!AG245","v":3.117389186556248},{"$f":"'[2]REAL IPC(M)'!AH245","v":-0.12167300380227877},{"$f":"'[2]REAL IPC(M)'!AI245","v":-0.46958377801490836},{"$f":"'[2]REAL IPC(M)'!AJ245","v":1.8062397372742276},null,null,{"$f":"'[2]REAL IMAE(M)'!AG245","v":-2.8995462893709893},{"$f":"'[2]REAL IMAE(M)'!AH245","v":-3.4343958134352537},{"$f":"'[2]REAL IMAE(M)'!AI245","v":0.94680609982207509},{"$f":"'[2]REAL IMAE(M)'!AJ245","v":-4.5461986711878319},{"$f":"'[2]REAL IMAE(M)'!AK245","v":-3.5953104472567978},{"$f":"'[2]REAL IMAE(M)'!AL245","v":2.678237823007851},{"$f":"'[2]REAL IMAE(M)'!AM245","v":2.9283734711839267},null,null,{"$f":"'[2]EXT ITCER(M)'!C245","v":92.469950515333949},{"$f":"'[2]EXT ITCER(M)'!D245","v":91.375033287163788},{"$f":"'[2]EXT ITCER(M)'!E245","v":72.555422206608796},{"$f":"'[2]EXT ITCER(M)'!F245","v":80.143081565933045},{"$f":"'[2]EXT ITCER(M)'!G245","v":96.407855219117252},{"$f":"'[2]EXT ITCER(M)'!H245","v":94.906846560278481},{"$f":"'[2]EXT ITCER(M)'!I245","v":97.880944224013675},null,null,{"$f":"'[2]EXT TC(M)'!J245","v":6.4072662613609142},{"$f":"'[2]EXT TC(M)'!K245","v":0},{"$f":"'[2]EXT TC(M)'!L245","v":11.520207399372996},{"$f":"'[2]EXT TC(M)'!M245","v":-5.2923493793482742E-4},{"$f":"'[2]EXT TC(M)'!N245","v":5.2360081125526508},{"$f":"'[2]EXT TC(M)'!O245","v":3.8978754329450584},{"$f":"'[2]EXT TC(M)'!P245","v":0},null,null,{"$f":"'[2]EXT RIN(M)'!C245","v":4052.1901452900001},{"$f":"'[2]EXT RIN(M)'!D245","v":2977.5},{"$f":"'[2]EXT RIN(M)'!E245","v":5169.9563626600002},{"$f":"'[2]EXT RIN(M)'!F245","v":2253.0741964783074},{"$f":"'[2]EXT RIN(M)'!G245","v":1252},{"$f":"'[2]EXT RIN(M)'!H245","v":2272.6999999999998},{"$f":"'[2]EXT RIN(M)'!I245","v":2736.8132973672004},null,null,{"$f":"'[2]EXT RIN(M)'!P245","v":74.771124243712023},{"$f":"'[2]EXT RIN(M)'!Q245","v":100.8485845295731},{"$f":"'[2]EXT RIN(M)'!R245","v":107.42127337101044},{"$f":"'[2]EXT RIN(M)'!S245","v":101.25664797093259},{"$f":"'[2]EXT RIN(M)'!T245","v":101.04319676813836},{"$f":"'[2]EXT RIN(M)'!U245","v":49.68427811180586},{"$f":"'[2]EXT RIN(M)'!V245","v":262.50022358290846},null,null,{"$f":"+'[2]MONE(M)CAPARD'!AE245","v":5.4755959854190648},{"$f":"'[2]MONE(M)CAPARD'!AF245","v":6.4867735470941961},{"$f":"'[2]MONE(M)CAPARD'!AG245","v":6.439392271276045},{"$f":"'[2]MONE(M)CAPARD'!AH245","v":6.6260510155881081},{"$f":"'[2]MONE(M)CAPARD'!AI245","v":13.666907492497083},{"$f":"'[2]MONE(M)CAPARD'!AJ245","v":7.6957216384301601},{"$f":"'[2]MONE(M)CAPARD'!AK245","v":1.6538870967741861},null,null,{"$f":"'[2]MONE(M)CAPARD'!AL245","v":2.0949999999999998},{"$f":"'[2]MONE(M)CAPARD'!AM245","v":4.1900000000000004},{"$f":"'[2]MONE(M)CAPARD'!AN245","v":3.98},{"$f":"'[2]MONE(M)CAPARD'!AO245","v":4.7},{"$f":"'[2]MONE(M)CAPARD'!AP245","v":6.66},{"$f":"'[2]MONE(M)CAPARD'!AQ245","v":2.73},{"$f":"'[2]MONE(M)CAPARD'!AR245","v":3.49},null,null,{"$f":"'[2]MONE(M)CAPARD'!J245","v":15.796122910987872},{"$f":"'[2]MONE(M)CAPARD'!K245","v":11.862725450901809},{"$f":"'[2]MONE(M)CAPARD'!L245","v":14.790542772211861},{"$f":"'[2]MONE(M)CAPARD'!M245","v":15.470340103920655},{"$f":"'[2]MONE(M)CAPARD'!N245","v":19.472475348296676},{"$f":"'[2]MONE(M)CAPARD'!O245","v":17.632382586317778},{"$f":"'[2]MONE(M)CAPARD'!P245","v":3.8934354838709595},null,null,{"$f":"'[2]MONE(M)CAPARD'!Q245","v":11.13},{"$f":"'[2]MONE(M)CAPARD'!R245","v":9.4499999999999993},{"$f":"'[2]MONE(M)CAPARD'!S245","v":8.14},{"$f":"'[2]MONE(M)CAPARD'!T245","v":10.38},{"$f":"'[2]MONE(M)CAPARD'!U245","v":12.66},{"$f":"'[2]MONE(M)CAPARD'!V245","v":8.3699999999999992},{"$f":"'[2]MONE(M)CAPARD'!W245","v":5.77},null,null,{"$f":"'[2]MONE(M)CAPARD'!AS245","v":9},{"$f":"'[2]MONE(M)CAPARD'!AT245","v":"n.a."},{"$f":"'[2]MONE(M)CAPARD'!AU245","v":4.75},{"$f":"'[2]MONE(M)CAPARD'!AV245","v":4.5},{"$f":"'[2]MONE(M)CAPARD'!AW245","v":"n.a."},{"$f":"'[2]MONE(M)CAPARD'!AX245","v":5},{"$f":"'[2]MONE(M)CAPARD'!AY245","v":"n.a."},null,null,{"$f":"+'Datos_Regional (M)'!CF238","v":15.457909905457591},{"$f":"+'Datos_Regional (M)'!CG238","v":-5.2337645942481359},{"$f":"+'Datos_Regional (M)'!CH238","v":2.6864241630131014},{"$f":"+'Datos_Regional (M)'!CI238","v":-0.25977894807817092},{"$f":"+'Datos_Regional (M)'!CJ238","v":-7.220567762662955},{"$f":"+'Datos_Regional (M)'!CK238","v":4.2568713411206272},{"$f":"+'Datos_Regional (M)'!CL238","v":4.860769023204381},null,null,548.44442852000009,339.36000000000007,598.76666666666665,204.07553325916669,212.52320605160685,469.3610333333333,939.66850633333343,2372.5308678307742,3312.1993741641068,null,null,844.66606906666664,657.80000000000007,987.94999999999982,570.47214933499993,345.64514706919721,1049.625,1417.286102916667,4456.1583654708638,5873.4444683875299,null,null,-2083.6274976400896,-2561.2450942234232,null,null,{"$f":"'[2]EXT Comercio(M)'!C245","v":535.7621983099998},{"$f":"'[2]EXT Comercio(M)'!D245","v":301.5300000000002},{"$f":"'[2]EXT Comercio(M)'!E245","v":555.99999999999977},{"$f":"'[2]EXT Comercio(M)'!F245","v":184.95820965000007},{"$f":"'[2]EXT Comercio(M)'!G245","v":240.97331393259105},{"$f":"'[2]EXT Comercio(M)'!H245","v":474.20000000000005},{"$f":"'[2]EXT Comercio(M)'!I245","v":1001.6583320000001},{"$f":"'[2]EXT Comercio(M)'!K245","v":2293.4237218925919},{"$f":"'[2]EXT Comercio(M)'!L245","v":3295.0820538925909},null,null,{"$f":"'[2]EXT Comercio(M)'!AG245","v":836.11859272999993},{"$f":"'[2]EXT Comercio(M)'!AH245","v":560.44999999999982},{"$f":"'[2]EXT Comercio(M)'!AI245","v":936.39999999999941},{"$f":"'[2]EXT Comercio(M)'!AJ245","v":515.16497188999983},{"$f":"'[2]EXT Comercio(M)'!AK245","v":343.28305469825807},{"$f":"'[2]EXT Comercio(M)'!AL245","v":1051.4000000000003},{"$f":"'[2]EXT Comercio(M)'!AM245","v":1305.2953830000006},{"$f":"'[2]EXT Comercio(M)'!AO245","v":4242.8166193182587},{"$f":"'[2]EXT Comercio(M)'!AP245","v":5548.1120023182593},null,null,{"$f":"'[2]EXT Comercio(M)'!$BS245","v":-1949.3928974256669},{"$f":"'[2]EXT Comercio(M)'!$BT245","v":-2253.0299484256684}]
[null,null,"Setiembre",{"$f":"'[2]REAL IPC(M)'!AD246","v":4.8338258929422064},{"$f":"'[2]REAL IPC(M)'!AE246","v":-1.8018905080740413},{"$f":"'[2]REAL IPC(M)'!AF246","v":3.2837127845869549E-2},{"$f":"'[2]REAL IPC(M)'!AG246","v":3.0642023346303562},{"$f":"'[2]REAL IPC(M)'!AH246","v":7.5884049172794841E-3},{"$f":"'[2]REAL IPC(M)'!AI246","v":-1.5693716488944636},{"$f":"'[2]REAL IPC(M)'!AJ246","v":0.48899755501220976},null,null,{"$f":"'[2]REAL IMAE(M)'!AG246","v":-2.4094921312359423},{"$f":"'[2]REAL IMAE(M)'!AH246","v":-5.4637974502927591},{"$f":"'[2]REAL IMAE(M)'!AI246","v":1.3921006602893649},{"$f":"'[2]REAL IMAE(M)'!AJ246","v":-3.7063474645831347},{"$f":"'[2]REAL IMAE(M)'!AK246","v":-3.0781524873357946},{"$f":"'[2]REAL IMAE(M)'!AL246","v":3.9997621880278618},{"$f":"'[2]REAL IMAE(M)'!AM246","v":3.5354895300404103},null,null,{"$f":"'[2]EXT ITCER(M)'!C246","v":92.536034025939003},{"$f":"'[2]EXT ITCER(M)'!D246","v":91.605118395155657},{"$f":"'[2]EXT ITCER(M)'!E246","v":72.723959712209648},{"$f":"'[2]EXT ITCER(M)'!F246","v":80.22208285755444},{"$f":"'[2]EXT ITCER(M)'!G246","v":96.652828888467283},{"$f":"'[2]EXT ITCER(M)'!H246","v":95.061799781886918},{"$f":"'[2]EXT ITCER(M)'!I246","v":98.62670494656544},null,null,{"$f":"'[2]EXT TC(M)'!J246","v":6.0443056805362074},{"$f":"'[2]EXT TC(M)'!K246","v":0},{"$f":"'[2]EXT TC(M)'!L246","v":11.445829172969933},{"$f":"'[2]EXT TC(M)'!M246","v":-7.3085119453832712E-5},{"$f":"'[2]EXT TC(M)'!N246","v":5.8926199209406267},{"$f":"'[2]EXT TC(M)'!O246","v":3.5146145608741559},{"$f":"'[2]EXT TC(M)'!P246","v":0},null,null,{"$f":"'[2]EXT RIN(M)'!C246","v":4059.3971229499998},{"$f":"'[2]EXT RIN(M)'!D246","v":2743.5},{"$f":"'[2]EXT RIN(M)'!E246","v":5087.2152935399999},{"$f":"'[2]EXT RIN(M)'!F246","v":2205.5372715607355},{"$f":"'[2]EXT RIN(M)'!G246","v":1280.0999999999999},{"$f":"'[2]EXT RIN(M)'!H246","v":2210.9},{"$f":"'[2]EXT RIN(M)'!I246","v":2717.1761630798001},null,null,{"$f":"'[2]EXT RIN(M)'!P246","v":73.329865259358243},{"$f":"'[2]EXT RIN(M)'!Q246","v":96.976805099421099},{"$f":"'[2]EXT RIN(M)'!R246","v":109.82146155057293},{"$f":"'[2]EXT RIN(M)'!S246","v":97.532801271093874},{"$f":"'[2]EXT RIN(M)'!T246","v":102.70387497543925},{"$f":"'[2]EXT RIN(M)'!U246","v":47.874038797009526},{"$f":"'[2]EXT RIN(M)'!V246","v":260.12001097223407},null,null,{"$f":"+'[2]MONE(M)CAPARD'!AE246","v":6.3588007499272088},{"$f":"'[2]MONE(M)CAPARD'!AF246","v":5.8778020655770549},{"$f":"'[2]MONE(M)CAPARD'!AG246","v":5.6253156800525375},{"$f":"'[2]MONE(M)CAPARD'!AH246","v":6.797508258612547},{"$f":"'[2]MONE(M)CAPARD'!AI246","v":15.234193822729273},{"$f":"'[2]MONE(M)CAPARD'!AJ246","v":8.035478165070181},{"$f":"'[2]MONE(M)CAPARD'!AK246","v":2.9565450121654653},null,null,{"$f":"'[2]MONE(M)CAPARD'!AL246","v":1.89},{"$f":"'[2]MONE(M)CAPARD'!AM246","v":3.97},{"$f":"'[2]MONE(M)CAPARD'!AN246","v":4},{"$f":"'[2]MONE(M)CAPARD'!AO246","v":4.67},{"$f":"'[2]MONE(M)CAPARD'!AP246","v":6.8},{"$f":"'[2]MONE(M)CAPARD'!AQ246","v":3.09},{"$f":"'[2]MONE(M)CAPARD'!AR246","v":3.46},null,null,{"$f":"'[2]MONE(M)CAPARD'!J246","v":16.317418506243264},{"$f":"'[2]MONE(M)CAPARD'!K246","v":11.224137170359969},{"$f":"'[2]MONE(M)CAPARD'!L246","v":13.942584527847702},{"$f":"'[2]MONE(M)CAPARD'!M246","v":15.520226521944306},{"$f":"'[2]MONE(M)CAPARD'!N246","v":20.920196035612253},{"$f":"'[2]MONE(M)CAPARD'!O246","v":17.443119013373263},{"$f":"'[2]MONE(M)CAPARD'!P246","v":4.7975425790754409},null,null,{"$f":"'[2]MONE(M)CAPARD'!Q246","v":11.11},{"$f":"'[2]MONE(M)CAPARD'!R246","v":9.2200000000000006},{"$f":"'[2]MONE(M)CAPARD'!S246","v":8.129999999999999},{"$f":"'[2]MONE(M)CAPARD'!T246","v":10.43},{"$f":"'[2]MONE(M)CAPARD'!U246","v":13.08},{"$f":"'[2]MONE(M)CAPARD'!V246","v":8.14},{"$f":"'[2]MONE(M)CAPARD'!W246","v":5.31},null,null,{"$f":"'[2]MONE(M)CAPARD'!AS246","v":9},{"$f":"'[2]MONE(M)CAPARD'!AT246","v":"n.a."},{"$f":"'[2]MONE(M)CAPARD'!AU246","v":4.5},{"$f":"'[2]MONE(M)CAPARD'!AV246","v":4.5},{"$f":"'[2]MONE(M)CAPARD'!AW246","v":"n.a."},{"$f":"'[2]MONE(M)CAPARD'!AX246","v":4},{"$f":"'[2]MONE(M)CAPARD'!AY246","v":"n.a."},null,null,{"$f":"+'Datos_Regional (M)'!CF239","v":14.29106524772228},{"$f":"+'Datos_Regional (M)'!CG239","v":-5.6510718937310305},{"$f":"+'Datos_Regional (M)'!CH239","v":2.1441244553151773},{"$f":"+'Datos_Regional (M)'!CI239","v":-0.66359127906057136},{"$f":"+'Datos_Regional (M)'!CJ239","v":-7.8327441879963438},{"$f":"+'Datos_Regional (M)'!CK239","v":4.7104014368545055},{"$f":"+'Datos_Regional (M)'!CL239","v":2.7135054903900224},null,null,{"$f":"+AVERAGE(EH40:EH51)","v":541.9443730075003},{"$f":"+AVERAGE(EI40:EI51)","v":333.45666666666671},{"$f":"+AVERAGE(EJ40:EJ51)","v":591.40833333333342},{"$f":"+AVERAGE(EK40:EK51)","v":198.45256931000003},{"$f":"+AVERAGE(EL40:EL51)","v":214.85622915827557},{"$f":"+AVERAGE(EM40:EM51)","v":464.32153333333326},{"$f":"+AVERAGE(EN40:EN51)","v":976.90275724999992},{"$f":"+AVERAGE(EO40:EO51)","v":2344.4397048091096},{"$f":"+AVERAGE(EP40:EP51)","v":3321.3424620591081},null,null,{"$f":"+AVERAGE(ES40:ES51)","v":816.53911900416654},{"$f":"+AVERAGE(ET40:ET51)","v":634.87083333333328},{"$f":"+AVERAGE(EU40:EU51)","v":965.30833333333305},{"$f":"+AVERAGE(EV40:EV51)","v":545.48998906000008},{"$f":"+AVERAGE(EW40:EW51)","v":340.1298616579611},{"$f":"+AVERAGE(EX40:EX51)","v":1023.9833333333332},{"$f":"+AVERAGE(EY40:EY51)","v":1389.860042},{"$f":"+AVERAGE(EZ40:EZ51)","v":4326.3214697221274},{"$f":"+AVERAGE(FA40:FA51)","v":5716.1815117221267},null,null,{"$f":"+AVERAGE(FD40:FD51)","v":-1981.8817649130187},{"$f":"+AVERAGE(FE40:FE51)","v":-2394.8390496630186},null,null,{"$f":"'[2]EXT Comercio(M)'!C246","v":503.98995973000001},{"$f":"'[2]EXT Comercio(M)'!D246","v":304.92000000000007},{"$f":"'[2]EXT Comercio(M)'!E246","v":549.89999999999964},{"$f":"'[2]EXT Comercio(M)'!F246","v":171.92701820999991},{"$f":"'[2]EXT Comercio(M)'!G246","v":257.95331621259805},{"$f":"'[2]EXT Comercio(M)'!H246","v":459.40000000000009},{"$f":"'[2]EXT Comercio(M)'!I246","v":1474.8524589999997},{"$f":"'[2]EXT Comercio(M)'!K246","v":2248.0902941526001},{"$f":"'[2]EXT Comercio(M)'!L246","v":3722.942753152598},null,null,{"$f":"'[2]EXT Comercio(M)'!AG246","v":778.49750538999967},{"$f":"'[2]EXT Comercio(M)'!AH246","v":593.5600000000004},{"$f":"'[2]EXT Comercio(M)'!AI246","v":918.60000000000036},{"$f":"'[2]EXT Comercio(M)'!AJ246","v":481.55808611999964},{"$f":"'[2]EXT Comercio(M)'!AK246","v":325.45137257116687},{"$f":"'[2]EXT Comercio(M)'!AL246","v":985.90000000000009},{"$f":"'[2]EXT Comercio(M)'!AM246","v":1518.5849069999995},{"$f":"'[2]EXT Comercio(M)'!AO246","v":4083.5669640811684},{"$f":"'[2]EXT Comercio(M)'!AP246","v":5602.1518710811652},null,null,{"$f":"'[2]EXT Comercio(M)'!$BS246","v":-1835.4766699285683},{"$f":"'[2]EXT Comercio(M)'!$BT246","v":-1879.2091179285635}]
[null,null,"Octubre",{"$f":"'[2]REAL IPC(M)'!AD247","v":4.0001465418616435},{"$f":"'[2]REAL IPC(M)'!AE247","v":-2.0280965571824279},{"$f":"'[2]REAL IPC(M)'!AF247","v":-0.65348799215815956},{"$f":"'[2]REAL IPC(M)'!AG247","v":2.6582890285161911},{"$f":"'[2]REAL IPC(M)'!AH247","v":0.4250474383301725},{"$f":"'[2]REAL IPC(M)'!AI247","v":-0.30136068917227432},{"$f":"'[2]REAL IPC(M)'!AJ247","v":0.73349633251832314},null,null,{"$f":"'[2]REAL IMAE(M)'!AG247","v":-2.1311362972300985},{"$f":"'[2]REAL IMAE(M)'!AH247","v":-5.967955969476062},{"$f":"'[2]REAL IMAE(M)'!AI247","v":1.8564185498345382},{"$f":"'[2]REAL IMAE(M)'!AJ247","v":-2.6460299833673693},{"$f":"'[2]REAL IMAE(M)'!AK247","v":-2.4170666632465041},{"$f":"'[2]REAL IMAE(M)'!AL247","v":5.199621361445776},{"$f":"'[2]REAL IMAE(M)'!AM247","v":4.2310701616695328},null,null,{"$f":"'[2]EXT ITCER(M)'!C247","v":91.855854665834244},{"$f":"'[2]EXT ITCER(M)'!D247","v":92.535739535895331},{"$f":"'[2]EXT ITCER(M)'!E247","v":73.369969534204344},{"$f":"'[2]EXT ITCER(M)'!F247","v":80.273490463037504},{"$f":"'[2]EXT ITCER(M)'!G247","v":96.936427139283353},{"$f":"'[2]EXT ITCER(M)'!H247","v":95.231726317176808},{"$f":"'[2]EXT ITCER(M)'!I247","v":98.682671764102366},null,null,{"$f":"'[2]EXT TC(M)'!J247","v":4.9503423944808889},{"$f":"'[2]EXT TC(M)'!K247","v":0},{"$f":"'[2]EXT TC(M)'!L247","v":10.950674138348019},{"$f":"'[2]EXT TC(M)'!M247","v":-4.7883366205993903E-5},{"$f":"'[2]EXT TC(M)'!N247","v":5.1452767567756945},{"$f":"'[2]EXT TC(M)'!O247","v":3.1577593598170925},{"$f":"'[2]EXT TC(M)'!P247","v":0},null,null,{"$f":"'[2]EXT RIN(M)'!C247","v":4066.7415792299998},{"$f":"'[2]EXT RIN(M)'!D247","v":2928.6},{"$f":"'[2]EXT RIN(M)'!E247","v":5091.3049877000003},{"$f":"'[2]EXT RIN(M)'!F247","v":2147.3992722455691},{"$f":"'[2]EXT RIN(M)'!G247","v":1287.2},{"$f":"'[2]EXT RIN(M)'!H247","v":2074.6},{"$f":"'[2]EXT RIN(M)'!I247","v":2679.3982361406001},null,null,{"$f":"'[2]EXT RIN(M)'!P247","v":70.697676389270285},{"$f":"'[2]EXT RIN(M)'!Q247","v":102.20312898058607},{"$f":"'[2]EXT RIN(M)'!R247","v":107.31574607692107},{"$f":"'[2]EXT RIN(M)'!S247","v":94.637831456738581},{"$f":"'[2]EXT RIN(M)'!T247","v":106.48783595663673},{"$f":"'[2]EXT RIN(M)'!U247","v":44.505917261988913},{"$f":"'[2]EXT RIN(M)'!V247","v":253.28258737339661},null,null,{"$f":"+'[2]MONE(M)CAPARD'!AE247","v":4.8075446279547682},{"$f":"'[2]MONE(M)CAPARD'!AF247","v":5.8568797334141145},{"$f":"'[2]MONE(M)CAPARD'!AG247","v":6.3550172668969083},{"$f":"'[2]MONE(M)CAPARD'!AH247","v":7.531501883239172},{"$f":"'[2]MONE(M)CAPARD'!AI247","v":11.181196560136426},{"$f":"'[2]MONE(M)CAPARD'!AJ247","v":5.678473375671663},{"$f":"'[2]MONE(M)CAPARD'!AK247","v":2.5775970873786553},null,null,{"$f":"'[2]MONE(M)CAPARD'!AL247","v":1.7999999999999998},{"$f":"'[2]MONE(M)CAPARD'!AM247","v":3.71},{"$f":"'[2]MONE(M)CAPARD'!AN247","v":3.97},{"$f":"'[2]MONE(M)CAPARD'!AO247","v":4.68},{"$f":"'[2]MONE(M)CAPARD'!AP247","v":6.51},{"$f":"'[2]MONE(M)CAPARD'!AQ247","v":2.66},{"$f":"'[2]MONE(M)CAPARD'!AR247","v":3.33},null,null,{"$f":"'[2]MONE(M)CAPARD'!J247","v":16.43252824769764},{"$f":"'[2]MONE(M)CAPARD'!K247","v":11.287007977380588},{"$f":"'[2]MONE(M)CAPARD'!L247","v":14.679416214438433},{"$f":"'[2]MONE(M)CAPARD'!M247","v":16.035442561205276},{"$f":"'[2]MONE(M)CAPARD'!N247","v":19.075595487186316},{"$f":"'[2]MONE(M)CAPARD'!O247","v":15.006584636052702},{"$f":"'[2]MONE(M)CAPARD'!P247","v":5.2049919093851287},null,null,{"$f":"'[2]MONE(M)CAPARD'!Q247","v":11.05},{"$f":"'[2]MONE(M)CAPARD'!R247","v":9.0299999999999994},{"$f":"'[2]MONE(M)CAPARD'!S247","v":8.09},{"$f":"'[2]MONE(M)CAPARD'!T247","v":10.63},{"$f":"'[2]MONE(M)CAPARD'!U247","v":12.39},{"$f":"'[2]MONE(M)CAPARD'!V247","v":8.3699999999999992},{"$f":"'[2]MONE(M)CAPARD'!W247","v":5.9766666666666666},null,null,{"$f":"'[2]MONE(M)CAPARD'!AS247","v":9},{"$f":"'[2]MONE(M)CAPARD'!AT247","v":"n.a."},{"$f":"'[2]MONE(M)CAPARD'!AU247","v":4.5},{"$f":"'[2]MONE(M)CAPARD'!AV247","v":4.5},{"$f":"'[2]MONE(M)CAPARD'!AW247","v":"n.a."},{"$f":"'[2]MONE(M)CAPARD'!AX247","v":4},{"$f":"'[2]MONE(M)CAPARD'!AY247","v":"n.a."},null,null,{"$f":"+'Datos_Regional (M)'!CF240","v":13.576656802550202},{"$f":"+'Datos_Regional (M)'!CG240","v":-6.2531006899954278},{"$f":"+'Datos_Regional (M)'!CH240","v":1.0204816305484199},{"$f":"+'Datos_Regional (M)'!CI240","v":0.79094154420145113},{"$f":"+'Datos_Regional (M)'!CJ240","v":-7.9257226098780169},{"$f":"+'Datos_Regional (M)'!CK240","v":6.0006077528596879},{"$f":"+'Datos_Regional (M)'!CL240","v":1.9027380954190987},null,null,533.93285389916684,328.03916666666674,590.98333333333323,196.28193630249999,214.69732676129729,457.58862499999992,981.7919886666665,2321.5232419629642,3303.3152306296306,null,null,794.1610833374998,618.37249999999995,951.12499999999989,527.91298009499997,330.94511956167338,1008.5083333333332,1359.5736138333334,4231.0250163275059,5590.59863016084,null,null,-1909.5017743645421,-2287.2833995312089,null,null,{"$f":"'[2]EXT Comercio(M)'!C247","v":554.91400290999991},{"$f":"'[2]EXT Comercio(M)'!D247","v":343.55000000000018},{"$f":"'[2]EXT Comercio(M)'!E247","v":618.19999999999982},{"$f":"'[2]EXT Comercio(M)'!F247","v":181.88027041000009},{"$f":"'[2]EXT Comercio(M)'!G247","v":224.06592749009991},{"$f":"'[2]EXT Comercio(M)'!H247","v":479.20000000000005},{"$f":"'[2]EXT Comercio(M)'!I247","v":1383.4601720000001},{"$f":"'[2]EXT Comercio(M)'!K247","v":2401.8102008101014},{"$f":"'[2]EXT Comercio(M)'!L247","v":3785.2703728101042},null,null,{"$f":"'[2]EXT Comercio(M)'!AG247","v":903.43029652999996},{"$f":"'[2]EXT Comercio(M)'!AH247","v":633.80999999999949},{"$f":"'[2]EXT Comercio(M)'!AI247","v":1124.6000000000004},{"$f":"'[2]EXT Comercio(M)'!AJ247","v":522.84389715999987},{"$f":"'[2]EXT Comercio(M)'!AK247","v":378.80244124724123},{"$f":"'[2]EXT Comercio(M)'!AL247","v":1115.1999999999998},{"$f":"'[2]EXT Comercio(M)'!AM247","v":1651.8402530000012},{"$f":"'[2]EXT Comercio(M)'!AO247","v":4678.6866349372358},{"$f":"'[2]EXT Comercio(M)'!AP247","v":6330.5268879372379},null,null,{"$f":"'[2]EXT Comercio(M)'!$BS247","v":-2276.8764341271399},{"$f":"'[2]EXT Comercio(M)'!$BT247","v":-2545.2565151271447}]
[null,null,"Noviembre",{"$f":"'[2]REAL IPC(M)'!AD248","v":2.56654859369926},{"$f":"'[2]REAL IPC(M)'!AE248","v":-2.9868578255772948E-2},{"$f":"'[2]REAL IPC(M)'!AF248","v":-0.60985570378439469},{"$f":"'[2]REAL IPC(M)'!AG248","v":3.0992736077481866},{"$f":"'[2]REAL IPC(M)'!AH248","v":0.46261186106475438},{"$f":"'[2]REAL IPC(M)'!AI248","v":4.1795178447787746},{"$f":"'[2]REAL IPC(M)'!AJ248","v":1.3934426229508079},null,null,{"$f":"'[2]REAL IMAE(M)'!AG248","v":-1.9865148271190056},{"$f":"'[2]REAL IMAE(M)'!AH248","v":-2.3936204782940549},{"$f":"'[2]REAL IMAE(M)'!AI248","v":2.3174176211343118},{"$f":"'[2]REAL IMAE(M)'!AJ248","v":-2.2073370613026833},{"$f":"'[2]REAL IMAE(M)'!AK248","v":-1.655553304225529},{"$f":"'[2]REAL IMAE(M)'!AL248","v":6.3162842348215289},{"$f":"'[2]REAL IMAE(M)'!AM248","v":4.9298226578917328},null,null,{"$f":"'[2]EXT ITCER(M)'!C248","v":89.895970729521849},{"$f":"'[2]EXT ITCER(M)'!D248","v":91.564563661769867},{"$f":"'[2]EXT ITCER(M)'!E248","v":73.194199538130277},{"$f":"'[2]EXT ITCER(M)'!F248","v":80.353138295832835},{"$f":"'[2]EXT ITCER(M)'!G248","v":97.459619560135963},{"$f":"'[2]EXT ITCER(M)'!H248","v":94.535610865781891},{"$f":"'[2]EXT ITCER(M)'!I248","v":98.933076687840682},null,null,{"$f":"'[2]EXT TC(M)'!J248","v":2.5025517023500123},{"$f":"'[2]EXT TC(M)'!K248","v":0},{"$f":"'[2]EXT TC(M)'!L248","v":8.814506179090781},{"$f":"'[2]EXT TC(M)'!M248","v":-2.6461865926904145E-5},{"$f":"'[2]EXT TC(M)'!N248","v":5.0350504789669301},{"$f":"'[2]EXT TC(M)'!O248","v":2.5544054259094588},{"$f":"'[2]EXT TC(M)'!P248","v":0},null,null,{"$f":"'[2]EXT RIN(M)'!C248","v":4059.79113474},{"$f":"'[2]EXT RIN(M)'!D248","v":2731.1},{"$f":"'[2]EXT RIN(M)'!E248","v":5111.03923614},{"$f":"'[2]EXT RIN(M)'!F248","v":2066.7989592252898},{"$f":"'[2]EXT RIN(M)'!G248","v":1307.7},{"$f":"'[2]EXT RIN(M)'!H248","v":2222.9},{"$f":"'[2]EXT RIN(M)'!I248","v":3026.8883949599999},null,null,{"$f":"'[2]EXT RIN(M)'!P248","v":68.968896821279259},{"$f":"'[2]EXT RIN(M)'!Q248","v":99.163189183438647},{"$f":"'[2]EXT RIN(M)'!R248","v":104.15564099024861},{"$f":"'[2]EXT RIN(M)'!S248","v":90.115674561314222},{"$f":"'[2]EXT RIN(M)'!T248","v":107.24464415491141},{"$f":"'[2]EXT RIN(M)'!U248","v":45.25132867871136},{"$f":"'[2]EXT RIN(M)'!V248","v":279.65670934222254},null,null,{"$f":"+'[2]MONE(M)CAPARD'!AE248","v":6.516209717435407},{"$f":"'[2]MONE(M)CAPARD'!AF248","v":3.6609620555722557},{"$f":"'[2]MONE(M)CAPARD'!AG248","v":6.2982660384594551},{"$f":"'[2]MONE(M)CAPARD'!AH248","v":7.2752465946453713},{"$f":"'[2]MONE(M)CAPARD'!AI248","v":12.099993258481819},{"$f":"'[2]MONE(M)CAPARD'!AJ248","v":0.70117636396589977},{"$f":"'[2]MONE(M)CAPARD'!AK248","v":1.9000808407437466},null,null,{"$f":"'[2]MONE(M)CAPARD'!AL248","v":1.7949999999999999},{"$f":"'[2]MONE(M)CAPARD'!AM248","v":3.63},{"$f":"'[2]MONE(M)CAPARD'!AN248","v":3.9},{"$f":"'[2]MONE(M)CAPARD'!AO248","v":4.62},{"$f":"'[2]MONE(M)CAPARD'!AP248","v":6.29},{"$f":"'[2]MONE(M)CAPARD'!AQ248","v":2.76},{"$f":"'[2]MONE(M)CAPARD'!AR248","v":3.32},null,null,{"$f":"'[2]MONE(M)CAPARD'!J248","v":17.075207898120304},{"$f":"'[2]MONE(M)CAPARD'!K248","v":9.1526023304452817},{"$f":"'[2]MONE(M)CAPARD'!L248","v":14.37753793896896},{"$f":"'[2]MONE(M)CAPARD'!M248","v":15.393635509628933},{"$f":"'[2]MONE(M)CAPARD'!N248","v":18.603089304627655},{"$f":"'[2]MONE(M)CAPARD'!O248","v":9.9064406984471969},{"$f":"'[2]MONE(M)CAPARD'!P248","v":4.553112368633804},null,null,{"$f":"'[2]MONE(M)CAPARD'!Q248","v":10.58},{"$f":"'[2]MONE(M)CAPARD'!R248","v":9.1199999999999992},{"$f":"'[2]MONE(M)CAPARD'!S248","v":8.09},{"$f":"'[2]MONE(M)CAPARD'!T248","v":10.41},{"$f":"'[2]MONE(M)CAPARD'!U248","v":12.68},{"$f":"'[2]MONE(M)CAPARD'!V248","v":7.92},{"$f":"'[2]MONE(M)CAPARD'!W248","v":6.01},null,null,{"$f":"'[2]MONE(M)CAPARD'!AS248","v":9},{"$f":"'[2]MONE(M)CAPARD'!AT248","v":"n.a."},{"$f":"'[2]MONE(M)CAPARD'!AU248","v":4.5},{"$f":"'[2]MONE(M)CAPARD'!AV248","v":4.5},{"$f":"'[2]MONE(M)CAPARD'!AW248","v":"n.a."},{"$f":"'[2]MONE(M)CAPARD'!AX248","v":4},{"$f":"'[2]MONE(M)CAPARD'!AY248","v":"n.a."},null,null,{"$f":"+'Datos_Regional (M)'!CF241","v":12.47795754911898},{"$f":"+'Datos_Regional (M)'!CG241","v":-6.280643711607981},{"$f":"+'Datos_Regional (M)'!CH241","v":-0.3778745585305221},{"$f":"+'Datos_Regional (M)'!CI241","v":1.0190217580155592},{"$f":"+'Datos_Regional (M)'!CJ241","v":-8.2262893153439265},{"$f":"+'Datos_Regional (M)'!CK241","v":6.3891772772979305},{"$f":"+'Datos_Regional (M)'!CL241","v":1.2092512216758777},null,null,532.15921953750012,321.0266666666667,592.64166666666677,196.02821800416666,216.65594608087773,457.72221666666672,980.36904358333322,2316.2339336225441,3296.6029772058778,null,null,795.9700462308333,615.58166666666659,950.20833333333337,518.80922558416671,333.25243244827078,1006.7833333333332,1341.8403479166666,4220.6050375966051,5562.4453855132715,null,null,-1904.371103974059,-2265.8424083073919,null,null,{"$f":"'[2]EXT Comercio(M)'!C248","v":527.59269099999983},{"$f":"'[2]EXT Comercio(M)'!D248","v":282.67999999999984},{"$f":"'[2]EXT Comercio(M)'!E248","v":537.80000000000064},{"$f":"'[2]EXT Comercio(M)'!F248","v":163.08698176999997},{"$f":"'[2]EXT Comercio(M)'!G248","v":209.38690089268704},{"$f":"'[2]EXT Comercio(M)'!H248","v":447.40000000000009},{"$f":"'[2]EXT Comercio(M)'!I248","v":987.73681499999998},{"$f":"'[2]EXT Comercio(M)'!K248","v":2167.9465736626807},{"$f":"'[2]EXT Comercio(M)'!L248","v":3155.6833886626846},null,null,{"$f":"'[2]EXT Comercio(M)'!AG248","v":902.68033124999999},{"$f":"'[2]EXT Comercio(M)'!AH248","v":686.00999999999931},{"$f":"'[2]EXT Comercio(M)'!AI248","v":972.79999999999927},{"$f":"'[2]EXT Comercio(M)'!AJ248","v":549.97651875999964},{"$f":"'[2]EXT Comercio(M)'!AK248","v":363.71884403085267},{"$f":"'[2]EXT Comercio(M)'!AL248","v":1120.6999999999998},{"$f":"'[2]EXT Comercio(M)'!AM248","v":1229.9066589999989},{"$f":"'[2]EXT Comercio(M)'!AO248","v":4595.8856940408587},{"$f":"'[2]EXT Comercio(M)'!AP248","v":5825.7923530408589},null,null,{"$f":"'[2]EXT Comercio(M)'!$BS248","v":-2427.939120378167},{"$f":"'[2]EXT Comercio(M)'!$BT248","v":-2670.1089643781634}]
[null,null,"Diciembre ",{"$f":"'[2]REAL IPC(M)'!AD249","v":4.0470413162490413},{"$f":"'[2]REAL IPC(M)'!AE249","v":-0.18963968459925915},{"$f":"'[2]REAL IPC(M)'!AF249","v":-0.27876468980596841},{"$f":"'[2]REAL IPC(M)'!AG249","v":2.9511369134010756},{"$f":"'[2]REAL IPC(M)'!AH249","v":0.93379779551500885},{"$f":"'[2]REAL IPC(M)'!AI249","v":5.7648110316649825},{"$f":"'[2]REAL IPC(M)'!AJ249","v":1.8930041152263277},null,null,{"$f":"'[2]REAL IMAE(M)'!AG249","v":3.8212060467251097},{"$f":"'[2]REAL IMAE(M)'!AH249","v":1.5534374079643654},{"$f":"'[2]REAL IMAE(M)'!AI249","v":2.7060790512382025},{"$f":"'[2]REAL IMAE(M)'!AJ249","v":-0.63401235746206264},{"$f":"'[2]REAL IMAE(M)'!AK249","v":-0.88419773369964416},{"$f":"'[2]REAL IMAE(M)'!AL249","v":7.4551544173659101},{"$f":"'[2]REAL IMAE(M)'!AM249","v":5.6889779962471332},null,null,{"$f":"'[2]EXT ITCER(M)'!C249","v":89.077302930222629},{"$f":"'[2]EXT ITCER(M)'!D249","v":91.990086936451775},{"$f":"'[2]EXT ITCER(M)'!E249","v":73.455570040251573},{"$f":"'[2]EXT ITCER(M)'!F249","v":80.432715677247458},{"$f":"'[2]EXT ITCER(M)'!G249","v":97.548473758761887},{"$f":"'[2]EXT ITCER(M)'!H249","v":94.484013436073141},{"$f":"'[2]EXT ITCER(M)'!I249","v":98.904584138072678},null,null,{"$f":"'[2]EXT TC(M)'!J249","v":3.3340916738945312},{"$f":"'[2]EXT TC(M)'!K249","v":0},{"$f":"'[2]EXT TC(M)'!L249","v":8.1264481505124646},{"$f":"'[2]EXT TC(M)'!M249","v":5.2923773924069472E-5},{"$f":"'[2]EXT TC(M)'!N249","v":4.9787173587837028},{"$f":"'[2]EXT TC(M)'!O249","v":2.3615235599272748},{"$f":"'[2]EXT TC(M)'!P249","v":0},null,null,{"$f":"'[2]EXT RIN(M)'!C249","v":4066.2656085899998},{"$f":"'[2]EXT RIN(M)'!D249","v":2983.4},{"$f":"'[2]EXT RIN(M)'!E249","v":5212.5943903699999},{"$f":"'[2]EXT RIN(M)'!F249","v":2116.3361415778572},{"$f":"'[2]EXT RIN(M)'!G249","v":1422.8},{"$f":"'[2]EXT RIN(M)'!H249","v":2851.9},{"$f":"'[2]EXT RIN(M)'!I249","v":3204.5331848385295},null,null,{"$f":"'[2]EXT RIN(M)'!P249","v":67.864031627670755},{"$f":"'[2]EXT RIN(M)'!Q249","v":109.47352970855617},{"$f":"'[2]EXT RIN(M)'!R249","v":101.40223427143657},{"$f":"'[2]EXT RIN(M)'!S249","v":84.393086823148195},{"$f":"'[2]EXT RIN(M)'!T249","v":107.9785240937761},{"$f":"'[2]EXT RIN(M)'!U249","v":54.90819686292938},{"$f":"'[2]EXT RIN(M)'!V249","v":254.12570304778791},null,null,{"$f":"+'[2]MONE(M)CAPARD'!AE249","v":4.0394792880041095},{"$f":"'[2]MONE(M)CAPARD'!AF249","v":3.8469349999999976},{"$f":"'[2]MONE(M)CAPARD'!AG249","v":5.9052263757947934},{"$f":"'[2]MONE(M)CAPARD'!AH249","v":7.5558787593984844},{"$f":"'[2]MONE(M)CAPARD'!AI249","v":11.267220973842255},{"$f":"'[2]MONE(M)CAPARD'!AJ249","v":-0.82712862920264929},{"$f":"'[2]MONE(M)CAPARD'!AK249","v":1.3710420032310275},null,null,{"$f":"'[2]MONE(M)CAPARD'!AL249","v":1.7850000000000001},{"$f":"'[2]MONE(M)CAPARD'!AM249","v":3.65},{"$f":"'[2]MONE(M)CAPARD'!AN249","v":3.88},{"$f":"'[2]MONE(M)CAPARD'!AO249","v":4.6399999999999997},{"$f":"'[2]MONE(M)CAPARD'!AP249","v":6.46},{"$f":"'[2]MONE(M)CAPARD'!AQ249","v":2.64},{"$f":"'[2]MONE(M)CAPARD'!AR249","v":3.29},null,null,{"$f":"'[2]MONE(M)CAPARD'!J249","v":15.515057881064335},{"$f":"'[2]MONE(M)CAPARD'!K249","v":8.6259979999999974},{"$f":"'[2]MONE(M)CAPARD'!L249","v":13.887478074983568},{"$f":"'[2]MONE(M)CAPARD'!M249","v":15.530535714285703},{"$f":"'[2]MONE(M)CAPARD'!N249","v":18.849367551700816},{"$f":"'[2]MONE(M)CAPARD'!O249","v":7.6161332769964201},{"$f":"'[2]MONE(M)CAPARD'!P249","v":4.1877221324717393},null,null,{"$f":"'[2]MONE(M)CAPARD'!Q249","v":10.56},{"$f":"'[2]MONE(M)CAPARD'!R249","v":8.42},{"$f":"'[2]MONE(M)CAPARD'!S249","v":8.1199999999999992},{"$f":"'[2]MONE(M)CAPARD'!T249","v":10.26},{"$f":"'[2]MONE(M)CAPARD'!U249","v":12.45},{"$f":"'[2]MONE(M)CAPARD'!V249","v":8.09},{"$f":"'[2]MONE(M)CAPARD'!W249","v":6.16},null,null,{"$f":"'[2]MONE(M)CAPARD'!AS249","v":9},{"$f":"'[2]MONE(M)CAPARD'!AT249","v":"n.a."},{"$f":"'[2]MONE(M)CAPARD'!AU249","v":4.5},{"$f":"'[2]MONE(M)CAPARD'!AV249","v":4.5},{"$f":"'[2]MONE(M)CAPARD'!AW249","v":"n.a."},{"$f":"'[2]MONE(M)CAPARD'!AX249","v":4},{"$f":"'[2]MONE(M)CAPARD'!AY249","v":"n.a."},null,null,{"$f":"+'Datos_Regional (M)'!CF242","v":7.3667687370214452},{"$f":"+'Datos_Regional (M)'!CG242","v":-4.4170215289603076},{"$f":"+'Datos_Regional (M)'!CH242","v":-2.6987739204442196},{"$f":"+'Datos_Regional (M)'!CI242","v":2.6218790564656258},{"$f":"+'Datos_Regional (M)'!CJ242","v":-7.3137881303383834},{"$f":"+'Datos_Regional (M)'!CK242","v":7.9854357463250425},{"$f":"+'Datos_Regional (M)'!CL242","v":2.0864406026152249},null,null,535.8991048966667,322.17416666666668,601.14166666666654,196.82933375499999,218.80900444027588,456.90833333333336,988.23281725000004,2331.7616097586092,3319.9944270086094,null,null,798.3133952799999,610.44749999999988,960.94166666666649,518.64481135583321,338.9214957358916,1024.6583333333335,1337.4061076666667,4251.9272023717249,5589.3333100383907,null,null,-1920.1655926131152,-2269.3388830297822,null,null,{"$f":"'[2]EXT Comercio(M)'!C249","v":514.46719826000026},{"$f":"'[2]EXT Comercio(M)'!D249","v":299.46000000000004},{"$f":"'[2]EXT Comercio(M)'!E249","v":639.69999999999936},{"$f":"'[2]EXT Comercio(M)'!F249","v":199.45258663999994},{"$f":"'[2]EXT Comercio(M)'!G249","v":200.28741489720724},{"$f":"'[2]EXT Comercio(M)'!H249","v":439.30000000000018},{"$f":"'[2]EXT Comercio(M)'!I249","v":700.5732290000002},{"$f":"'[2]EXT Comercio(M)'!K249","v":2292.6671997972117},{"$f":"'[2]EXT Comercio(M)'!L249","v":2993.2404287972095},null,null,{"$f":"'[2]EXT Comercio(M)'!AG249","v":873.40053633999969},{"$f":"'[2]EXT Comercio(M)'!AH249","v":612.02999999999975},{"$f":"'[2]EXT Comercio(M)'!AI249","v":1088.099999999999},{"$f":"'[2]EXT Comercio(M)'!AJ249","v":575.22542067999984},{"$f":"'[2]EXT Comercio(M)'!AK249","v":383.56471649590043},{"$f":"'[2]EXT Comercio(M)'!AL249","v":1225.1999999999998},{"$f":"'[2]EXT Comercio(M)'!AM249","v":1252.0713840000003},{"$f":"'[2]EXT Comercio(M)'!AO249","v":4757.5206735158936},{"$f":"'[2]EXT Comercio(M)'!AP249","v":6009.5920575158889},null,null,{"$f":"'[2]EXT Comercio(M)'!$BS249","v":-2464.8534737186892},{"$f":"'[2]EXT Comercio(M)'!$BT249","v":-3016.351628718694}]
[null,2010,"Enero",{"$f":"'[2]REAL IPC(M)'!AD250","v":5.3430509509209418},{"$f":"'[2]REAL IPC(M)'!AE250","v":0.79277471149022205},{"$f":"'[2]REAL IPC(M)'!AF250","v":1.4325703935452252},{"$f":"'[2]REAL IPC(M)'!AG250","v":3.5818005808325295},{"$f":"'[2]REAL IPC(M)'!AH250","v":1.8504656993086652},{"$f":"'[2]REAL IPC(M)'!AI250","v":6.8531958237840795},{"$f":"'[2]REAL IPC(M)'!AJ250","v":3.0553261767134727},null,null,{"$f":"'[2]REAL IMAE(M)'!AG250","v":4.0277267055670798},{"$f":"'[2]REAL IMAE(M)'!AH250","v":1.7129730451526752},{"$f":"'[2]REAL IMAE(M)'!AI250","v":3.0559556054955488},{"$f":"'[2]REAL IMAE(M)'!AJ250","v":2.4660086188192758},{"$f":"'[2]REAL IMAE(M)'!AK250","v":-0.15562975226268355},{"$f":"'[2]REAL IMAE(M)'!AL250","v":8.6404736409624405},{"$f":"'[2]REAL IMAE(M)'!AM250","v":6.4838657044535424},null,null,{"$f":"'[2]EXT ITCER(M)'!C250","v":87.149755555664257},{"$f":"'[2]EXT ITCER(M)'!D250","v":91.646519184585429},{"$f":"'[2]EXT ITCER(M)'!E250","v":72.935272059823092},{"$f":"'[2]EXT ITCER(M)'!F250","v":80.033577802715314},{"$f":"'[2]EXT ITCER(M)'!G250","v":97.310700396493345},{"$f":"'[2]EXT ITCER(M)'!H250","v":93.373162685361763},{"$f":"'[2]EXT ITCER(M)'!I250","v":98.175727923772698},null,null,{"$f":"'[2]EXT TC(M)'!J250","v":1.4043425142300792},{"$f":"'[2]EXT TC(M)'!K250","v":0},{"$f":"'[2]EXT TC(M)'!L250","v":6.511100117246432},{"$f":"'[2]EXT TC(M)'!M250","v":5.2923773924069472E-5},{"$f":"'[2]EXT TC(M)'!N250","v":5.0320863805486331},{"$f":"'[2]EXT TC(M)'!O250","v":2.0941890283381257},{"$f":"'[2]EXT TC(M)'!P250","v":0},null,null,{"$f":"'[2]EXT RIN(M)'!C250","v":4072.4222186000002},{"$f":"'[2]EXT RIN(M)'!D250","v":3013.5},{"$f":"'[2]EXT RIN(M)'!E250","v":5526.1660629600001},{"$f":"'[2]EXT RIN(M)'!F250","v":2077.2321656241356},{"$f":"'[2]EXT RIN(M)'!G250","v":1348.8},{"$f":"'[2]EXT RIN(M)'!H250","v":2615.7731839341236},{"$f":"'[2]EXT RIN(M)'!I250","v":3025.1108189890301},null,null,{"$f":"'[2]EXT RIN(M)'!P250","v":67.714424980642264},{"$f":"'[2]EXT RIN(M)'!Q250","v":106.01590572798996},{"$f":"'[2]EXT RIN(M)'!R250","v":107.14559616339592},{"$f":"'[2]EXT RIN(M)'!S250","v":83.231953567140934},{"$f":"'[2]EXT RIN(M)'!T250","v":105.11754664533153},{"$f":"'[2]EXT RIN(M)'!U250","v":51.888946277011719},{"$f":"'[2]EXT RIN(M)'!V250","v":268.62018595358586},null,null,{"$f":"+'[2]MONE(M)CAPARD'!AE250","v":2.5221872967367576},{"$f":"'[2]MONE(M)CAPARD'!AF250","v":2.8347520908004715},{"$f":"'[2]MONE(M)CAPARD'!AG250","v":4.1282889610389351},{"$f":"'[2]MONE(M)CAPARD'!AH250","v":6.9685981308411185},{"$f":"'[2]MONE(M)CAPARD'!AI250","v":7.4447034174301541},{"$f":"'[2]MONE(M)CAPARD'!AJ250","v":-1.9308695522655019},{"$f":"'[2]MONE(M)CAPARD'!AK250","v":0.24712339743588507},null,null,{"$f":"'[2]MONE(M)CAPARD'!AL250","v":1.7850000000000001},{"$f":"'[2]MONE(M)CAPARD'!AM250","v":3.65},{"$f":"'[2]MONE(M)CAPARD'!AN250","v":3.9},{"$f":"'[2]MONE(M)CAPARD'!AO250","v":4.57},{"$f":"'[2]MONE(M)CAPARD'!AP250","v":5.97},{"$f":"'[2]MONE(M)CAPARD'!AQ250","v":2.5},{"$f":"'[2]MONE(M)CAPARD'!AR250","v":3.31},null,null,{"$f":"'[2]MONE(M)CAPARD'!J250","v":13.647743177456709},{"$f":"'[2]MONE(M)CAPARD'!K250","v":6.9620320589406548},{"$f":"'[2]MONE(M)CAPARD'!L250","v":11.916714285714257},{"$f":"'[2]MONE(M)CAPARD'!M250","v":14.952626168224295},{"$f":"'[2]MONE(M)CAPARD'!N250","v":17.519900196279309},{"$f":"'[2]MONE(M)CAPARD'!O250","v":5.9023074860734406},{"$f":"'[2]MONE(M)CAPARD'!P250","v":3.2261057692307564},null,null,{"$f":"'[2]MONE(M)CAPARD'!Q250","v":10.57},{"$f":"'[2]MONE(M)CAPARD'!R250","v":7.81},{"$f":"'[2]MONE(M)CAPARD'!S250","v":8.1100000000000012},{"$f":"'[2]MONE(M)CAPARD'!T250","v":10.32},{"$f":"'[2]MONE(M)CAPARD'!U250","v":12.89},{"$f":"'[2]MONE(M)CAPARD'!V250","v":8.48},{"$f":"'[2]MONE(M)CAPARD'!W250","v":6.38},null,null,{"$f":"'[2]MONE(M)CAPARD'!AS250","v":9},{"$f":"'[2]MONE(M)CAPARD'!AT250","v":"n.a."},{"$f":"'[2]MONE(M)CAPARD'!AU250","v":4.5},{"$f":"'[2]MONE(M)CAPARD'!AV250","v":4.5},{"$f":"'[2]MONE(M)CAPARD'!AW250","v":"n.a."},{"$f":"'[2]MONE(M)CAPARD'!AX250","v":4},{"$f":"'[2]MONE(M)CAPARD'!AY250","v":"n.a."},null,null,{"$f":"+'Datos_Regional (M)'!CF243","v":6.3611273081439101},{"$f":"+'Datos_Regional (M)'!CG243","v":-4.6878230264896796},{"$f":"+'Datos_Regional (M)'!CH243","v":0.68490266692415869},{"$f":"+'Datos_Regional (M)'!CI243","v":2.0455044415068846},{"$f":"+'Datos_Regional (M)'!CJ243","v":-6.6741122536062019},{"$f":"+'Datos_Regional (M)'!CK243","v":10.827182775303257},{"$f":"+'Datos_Regional (M)'!CL243","v":1.5022583036576886},null,null,540.09854988916675,323.26916666666665,608.01666666666665,200.08065294583332,222.62945788069669,459.17500000000001,991.57369949999986,2353.2694940490301,3344.8431935490298,null,null,807.59375002749994,614.63166666666666,967.85833333333312,519.74026435916664,339.01526782974861,1032.241666666667,1338.2338819166666,4281.080948883081,5619.3148307997481,null,null,-1927.8114548340516,-2274.4716372507187,null,null,{"$f":"'[2]EXT Comercio(M)'!C250","v":521.30169137999997},{"$f":"'[2]EXT Comercio(M)'!D250","v":329.95},{"$f":"'[2]EXT Comercio(M)'!E250","v":671.2},{"$f":"'[2]EXT Comercio(M)'!F250","v":217.17174202999999},{"$f":"'[2]EXT Comercio(M)'!G250","v":231.19601726382402},{"$f":"'[2]EXT Comercio(M)'!H250","v":392.79999999999995},{"$f":"'[2]EXT Comercio(M)'!I250","v":657.42217399999993},{"$f":"'[2]EXT Comercio(M)'!K250","v":2363.6194506738238},{"$f":"'[2]EXT Comercio(M)'!L250","v":3021.0416246738241},null,null,{"$f":"'[2]EXT Comercio(M)'!AG250","v":844.54284230999986},{"$f":"'[2]EXT Comercio(M)'!AH250","v":638.39},{"$f":"'[2]EXT Comercio(M)'!AI250","v":924.3},{"$f":"'[2]EXT Comercio(M)'!AJ250","v":508.14029879000003},{"$f":"'[2]EXT Comercio(M)'!AK250","v":307.92916066120267},{"$f":"'[2]EXT Comercio(M)'!AL250","v":1007.4},{"$f":"'[2]EXT Comercio(M)'!AM250","v":1249.2773450000004},{"$f":"'[2]EXT Comercio(M)'!AO250","v":4230.7023017612028},{"$f":"'[2]EXT Comercio(M)'!AP250","v":5479.9796467612032},null,null,{"$f":"'[2]EXT Comercio(M)'!$BS250","v":-1867.0828510873785},{"$f":"'[2]EXT Comercio(M)'!$BT250","v":-2458.9380220873791}]
[null,null,"Febrero",{"$f":"'[2]REAL IPC(M)'!AD251","v":5.5994495137550935},{"$f":"'[2]REAL IPC(M)'!AE251","v":1.0449110820857952},{"$f":"'[2]REAL IPC(M)'!AF251","v":2.4848150193263194},{"$f":"'[2]REAL IPC(M)'!AG251","v":3.5062439961575467},{"$f":"'[2]REAL IPC(M)'!AH251","v":2.7426097137246073},{"$f":"'[2]REAL IPC(M)'!AI251","v":6.6768215283067107},{"$f":"'[2]REAL IPC(M)'!AJ251","v":2.9629629629629575},null,null,{"$f":"'[2]REAL IMAE(M)'!AG251","v":4.3294442940968052},{"$f":"'[2]REAL IMAE(M)'!AH251","v":2.8334175378978332},{"$f":"'[2]REAL IMAE(M)'!AI251","v":3.3260256663352332},{"$f":"'[2]REAL IMAE(M)'!AJ251","v":3.911911086132553},{"$f":"'[2]REAL IMAE(M)'!AK251","v":0.55895380960465491},{"$f":"'[2]REAL IMAE(M)'!AL251","v":9.5565083148651411},{"$f":"'[2]REAL IMAE(M)'!AM251","v":7.1588815431569115},null,null,{"$f":"'[2]EXT ITCER(M)'!C251","v":84.862501994960127},{"$f":"'[2]EXT ITCER(M)'!D251","v":91.440939696860355},{"$f":"'[2]EXT ITCER(M)'!E251","v":70.636940275316803},{"$f":"'[2]EXT ITCER(M)'!F251","v":79.400813637112464},{"$f":"'[2]EXT ITCER(M)'!G251","v":96.372800861033681},{"$f":"'[2]EXT ITCER(M)'!H251","v":93.365404884754156},{"$f":"'[2]EXT ITCER(M)'!I251","v":97.847077238079166},null,null,{"$f":"'[2]EXT TC(M)'!J251","v":-1.6395877820072453},{"$f":"'[2]EXT TC(M)'!K251","v":0},{"$f":"'[2]EXT TC(M)'!L251","v":2.5676813557500902},{"$f":"'[2]EXT TC(M)'!M251","v":6.7190024562947988E-10},{"$f":"'[2]EXT TC(M)'!N251","v":5.2047545986273116},{"$f":"'[2]EXT TC(M)'!O251","v":1.7830024185837234},{"$f":"'[2]EXT TC(M)'!P251","v":0},null,null,{"$f":"'[2]EXT RIN(M)'!C251","v":4113.3952816999999},{"$f":"'[2]EXT RIN(M)'!D251","v":2842.8},{"$f":"'[2]EXT RIN(M)'!E251","v":5565.4613587100002},{"$f":"'[2]EXT RIN(M)'!F251","v":2139.2136788249127},{"$f":"'[2]EXT RIN(M)'!G251","v":1365.3},{"$f":"'[2]EXT RIN(M)'!H251","v":2430.1143302571368},{"$f":"'[2]EXT RIN(M)'!I251","v":2698.6626112100003},null,null,{"$f":"'[2]EXT RIN(M)'!P251","v":67.53921132226634},{"$f":"'[2]EXT RIN(M)'!Q251","v":101.31107825307883},{"$f":"'[2]EXT RIN(M)'!R251","v":109.21978820344793},{"$f":"'[2]EXT RIN(M)'!S251","v":82.212047674641838},{"$f":"'[2]EXT RIN(M)'!T251","v":100.2529709008644},{"$f":"'[2]EXT RIN(M)'!U251","v":48.967696565438928},{"$f":"'[2]EXT RIN(M)'!V251","v":245.38156063317626},null,null,{"$f":"+'[2]MONE(M)CAPARD'!AE251","v":2.2732604168852393},{"$f":"'[2]MONE(M)CAPARD'!AF251","v":2.5583563686984272},{"$f":"'[2]MONE(M)CAPARD'!AG251","v":3.0591702586207097},{"$f":"'[2]MONE(M)CAPARD'!AH251","v":6.9983758700695988},{"$f":"'[2]MONE(M)CAPARD'!AI251","v":6.8301854299558782},{"$f":"'[2]MONE(M)CAPARD'!AJ251","v":-1.7218562589243531},{"$f":"'[2]MONE(M)CAPARD'!AK251","v":0.34676258992806269},null,null,{"$f":"'[2]MONE(M)CAPARD'!AL251","v":1.7749999999999999},{"$f":"'[2]MONE(M)CAPARD'!AM251","v":3.63},{"$f":"'[2]MONE(M)CAPARD'!AN251","v":3.92},{"$f":"'[2]MONE(M)CAPARD'!AO251","v":4.47},{"$f":"'[2]MONE(M)CAPARD'!AP251","v":4.84},{"$f":"'[2]MONE(M)CAPARD'!AQ251","v":2.52},{"$f":"'[2]MONE(M)CAPARD'!AR251","v":3.32},null,null,{"$f":"'[2]MONE(M)CAPARD'!J251","v":13.939987901478075},{"$f":"'[2]MONE(M)CAPARD'!K251","v":7.2592363527891113},{"$f":"'[2]MONE(M)CAPARD'!L251","v":10.748114224137952},{"$f":"'[2]MONE(M)CAPARD'!M251","v":15.026877030162403},{"$f":"'[2]MONE(M)CAPARD'!N251","v":16.67048143284935},{"$f":"'[2]MONE(M)CAPARD'!O251","v":5.9836601618276681},{"$f":"'[2]MONE(M)CAPARD'!P251","v":2.9496402877697894},null,null,{"$f":"'[2]MONE(M)CAPARD'!Q251","v":10.83},{"$f":"'[2]MONE(M)CAPARD'!R251","v":8.3800000000000008},{"$f":"'[2]MONE(M)CAPARD'!S251","v":8.09},{"$f":"'[2]MONE(M)CAPARD'!T251","v":10.29},{"$f":"'[2]MONE(M)CAPARD'!U251","v":12.17},{"$f":"'[2]MONE(M)CAPARD'!V251","v":8.0399999999999991},{"$f":"'[2]MONE(M)CAPARD'!W251","v":6},null,null,{"$f":"'[2]MONE(M)CAPARD'!AS251","v":9},{"$f":"'[2]MONE(M)CAPARD'!AT251","v":"n.a."},{"$f":"'[2]MONE(M)CAPARD'!AU251","v":4.5},{"$f":"'[2]MONE(M)CAPARD'!AV251","v":4.5},{"$f":"'[2]MONE(M)CAPARD'!AW251","v":"n.a."},{"$f":"'[2]MONE(M)CAPARD'!AX251","v":4},{"$f":"'[2]MONE(M)CAPARD'!AY251","v":"n.a."},null,null,{"$f":"+'Datos_Regional (M)'!CF244","v":4.8475397809677023},{"$f":"+'Datos_Regional (M)'!CG244","v":-5.6008322384257685},{"$f":"+'Datos_Regional (M)'!CH244","v":-0.4549456724735057},{"$f":"+'Datos_Regional (M)'!CI244","v":1.8421635942370118},{"$f":"+'Datos_Regional (M)'!CJ244","v":-6.9173471035634542},{"$f":"+'Datos_Regional (M)'!CK244","v":12.957411814775433},{"$f":"+'Datos_Regional (M)'!CL244","v":1.7389908128091935},null,null,545.20188615083339,327.1658333333333,609.6583333333333,204.95634860416666,224.87732325550863,468.82500000000005,999.02322791666654,2380.6847246771754,3379.7079525938425,null,null,813.96983547083312,616.54,976.49166666666633,522.41650837999998,342.33174537281883,1050.916666666667,1352.3180196666667,4322.6664225569848,5674.984442223652,null,null,-1941.9816978798099,-2295.2764896298099,null,null,{"$f":"'[2]EXT Comercio(M)'!C251","v":575.31746149000014},{"$f":"'[2]EXT Comercio(M)'!D251","v":367.56},{"$f":"'[2]EXT Comercio(M)'!E251","v":622.20000000000005},{"$f":"'[2]EXT Comercio(M)'!F251","v":256.12448094000001},{"$f":"'[2]EXT Comercio(M)'!G251","v":240.62047166311703},{"$f":"'[2]EXT Comercio(M)'!H251","v":538.29999999999995},{"$f":"'[2]EXT Comercio(M)'!I251","v":779.94431400000008},{"$f":"'[2]EXT Comercio(M)'!K251","v":2600.1224140931172},{"$f":"'[2]EXT Comercio(M)'!L251","v":3380.0667280931175},null,null,{"$f":"'[2]EXT Comercio(M)'!AG251","v":806.08448278000014},{"$f":"'[2]EXT Comercio(M)'!AH251","v":606.74999999999989},{"$f":"'[2]EXT Comercio(M)'!AI251","v":989.89999999999986},{"$f":"'[2]EXT Comercio(M)'!AJ251","v":529.68767453999999},{"$f":"'[2]EXT Comercio(M)'!AK251","v":339.1517039252733},{"$f":"'[2]EXT Comercio(M)'!AL251","v":1024.9000000000001},{"$f":"'[2]EXT Comercio(M)'!AM251","v":1256.9013170000003},{"$f":"'[2]EXT Comercio(M)'!AO251","v":4296.4738612452729},{"$f":"'[2]EXT Comercio(M)'!AP251","v":5553.3751782452728},null,null,{"$f":"'[2]EXT Comercio(M)'!$BS251","v":-1696.3514471521562},{"$f":"'[2]EXT Comercio(M)'!$BT251","v":-2173.3084501521562}]
[null,null,"Marzo",{"$f":"'[2]REAL IPC(M)'!AD252","v":5.8416234406492622},{"$f":"'[2]REAL IPC(M)'!AE252","v":0.88999999999998625},{"$f":"'[2]REAL IPC(M)'!AF252","v":3.9302518682535168},{"$f":"'[2]REAL IPC(M)'!AG252","v":3.9865513928914562},{"$f":"'[2]REAL IPC(M)'!AH252","v":4.4243070848204091},{"$f":"'[2]REAL IPC(M)'!AI252","v":7.4268876144609477},{"$f":"'[2]REAL IPC(M)'!AJ252","v":2.6982829108749091},null,null,{"$f":"'[2]REAL IMAE(M)'!AG252","v":4.4824576774814036},{"$f":"'[2]REAL IMAE(M)'!AH252","v":3.4997571232743718},{"$f":"'[2]REAL IMAE(M)'!AI252","v":3.3792559063849978},{"$f":"'[2]REAL IMAE(M)'!AJ252","v":3.6091417635374325},{"$f":"'[2]REAL IMAE(M)'!AK252","v":1.2267481905057058},{"$f":"'[2]REAL IMAE(M)'!AL252","v":9.9604346871507268},{"$f":"'[2]REAL IMAE(M)'!AM252","v":7.5626442407598331},null,null,{"$f":"'[2]EXT ITCER(M)'!C252","v":82.216045252714466},{"$f":"'[2]EXT ITCER(M)'!D252","v":91.181114461680949},{"$f":"'[2]EXT ITCER(M)'!E252","v":68.776949175571986},{"$f":"'[2]EXT ITCER(M)'!F252","v":79.06027069560416},{"$f":"'[2]EXT ITCER(M)'!G252","v":95.73268908303136},{"$f":"'[2]EXT ITCER(M)'!H252","v":92.869668739942981},{"$f":"'[2]EXT ITCER(M)'!I252","v":97.489852948058086},null,null,{"$f":"'[2]EXT TC(M)'!J252","v":-5.0052180236404942},{"$f":"'[2]EXT TC(M)'!K252","v":0},{"$f":"'[2]EXT TC(M)'!L252","v":-0.66045864780634},{"$f":"'[2]EXT TC(M)'!M252","v":1.9092906117310185E-5},{"$f":"'[2]EXT TC(M)'!N252","v":5.4576500843545697},{"$f":"'[2]EXT TC(M)'!O252","v":1.7674650726584078},{"$f":"'[2]EXT TC(M)'!P252","v":0},null,null,{"$f":"'[2]EXT RIN(M)'!C252","v":4155.1881406399998},{"$f":"'[2]EXT RIN(M)'!D252","v":2605.4},{"$f":"'[2]EXT RIN(M)'!E252","v":5547.3303416799999},{"$f":"'[2]EXT RIN(M)'!F252","v":2194.4289586800073},{"$f":"'[2]EXT RIN(M)'!G252","v":1339.6},{"$f":"'[2]EXT RIN(M)'!H252","v":2295.5093843614832},{"$f":"'[2]EXT RIN(M)'!I252","v":2863.5467707600001},null,null,{"$f":"'[2]EXT RIN(M)'!P252","v":64.968712507060246},{"$f":"'[2]EXT RIN(M)'!Q252","v":93.956580332443437},{"$f":"'[2]EXT RIN(M)'!R252","v":103.8636744728084},{"$f":"'[2]EXT RIN(M)'!S252","v":78.436689878235924},{"$f":"'[2]EXT RIN(M)'!T252","v":99.264380680039309},{"$f":"'[2]EXT RIN(M)'!U252","v":46.904040003770156},{"$f":"'[2]EXT RIN(M)'!V252","v":260.47024859669506},null,null,{"$f":"+'[2]MONE(M)CAPARD'!AE252","v":2.0392511841629566},{"$f":"'[2]MONE(M)CAPARD'!AF252","v":2.5473287739121955},{"$f":"'[2]MONE(M)CAPARD'!AG252","v":1.6258482023968164},{"$f":"'[2]MONE(M)CAPARD'!AH252","v":6.4176073903002244},{"$f":"'[2]MONE(M)CAPARD'!AI252","v":3.8172694779370362},{"$f":"'[2]MONE(M)CAPARD'!AJ252","v":-2.3987361746055722},{"$f":"'[2]MONE(M)CAPARD'!AK252","v":0.52748407643311013},null,null,{"$f":"'[2]MONE(M)CAPARD'!AL252","v":1.605},{"$f":"'[2]MONE(M)CAPARD'!AM252","v":3.46},{"$f":"'[2]MONE(M)CAPARD'!AN252","v":3.81},{"$f":"'[2]MONE(M)CAPARD'!AO252","v":4.37},{"$f":"'[2]MONE(M)CAPARD'!AP252","v":4.1500000000000004},{"$f":"'[2]MONE(M)CAPARD'!AQ252","v":2.2599999999999998},{"$f":"'[2]MONE(M)CAPARD'!AR252","v":3.24},null,null,{"$f":"'[2]MONE(M)CAPARD'!J252","v":13.632043888141471},{"$f":"'[2]MONE(M)CAPARD'!K252","v":6.630984240261685},{"$f":"'[2]MONE(M)CAPARD'!L252","v":9.1886125166444881},{"$f":"'[2]MONE(M)CAPARD'!M252","v":14.332092378752881},{"$f":"'[2]MONE(M)CAPARD'!N252","v":14.855428577099016},{"$f":"'[2]MONE(M)CAPARD'!O252","v":4.4989783217813875},{"$f":"'[2]MONE(M)CAPARD'!P252","v":3.2733917197452111},null,null,{"$f":"'[2]MONE(M)CAPARD'!Q252","v":10.24},{"$f":"'[2]MONE(M)CAPARD'!R252","v":7.58},{"$f":"'[2]MONE(M)CAPARD'!S252","v":8},{"$f":"'[2]MONE(M)CAPARD'!T252","v":10.220000000000001},{"$f":"'[2]MONE(M)CAPARD'!U252","v":10.7},{"$f":"'[2]MONE(M)CAPARD'!V252","v":8.1199999999999992},{"$f":"'[2]MONE(M)CAPARD'!W252","v":6.06},null,null,{"$f":"'[2]MONE(M)CAPARD'!AS252","v":9},{"$f":"'[2]MONE(M)CAPARD'!AT252","v":"n.a."},{"$f":"'[2]MONE(M)CAPARD'!AU252","v":4.5},{"$f":"'[2]MONE(M)CAPARD'!AV252","v":4.5},{"$f":"'[2]MONE(M)CAPARD'!AW252","v":"n.a."},{"$f":"'[2]MONE(M)CAPARD'!AX252","v":4},{"$f":"'[2]MONE(M)CAPARD'!AY252","v":"n.a."},null,null,{"$f":"+'Datos_Regional (M)'!CF245","v":1.8847691291064006},{"$f":"+'Datos_Regional (M)'!CG245","v":-4.9806637359641197},{"$f":"+'Datos_Regional (M)'!CH245","v":-1.785619035943975},{"$f":"+'Datos_Regional (M)'!CI245","v":2.0130763277740327},{"$f":"+'Datos_Regional (M)'!CJ245","v":-7.8151813763154498},{"$f":"+'Datos_Regional (M)'!CK245","v":15.459624810257754},{"$f":"+'Datos_Regional (M)'!CL245","v":2.5564165107037518},null,null,556.28495869000005,330.89916666666664,627.34166666666658,208.55448270499997,233.92925656717225,480.2,1013.698034,2437.2095312955057,3450.9075652955057,null,null,832.55225064916658,624.51666666666654,996.35833333333323,531.81034234166657,349.02065644049503,1072.2833333333335,1367.7006346666667,4406.5415827646611,5774.2422174313278,null,null,-1969.3320514691559,-2323.3346521358226,null,null,{"$f":"'[2]EXT Comercio(M)'!C252","v":723.03577543000029},{"$f":"'[2]EXT Comercio(M)'!D252","v":392.36999999999989},{"$f":"'[2]EXT Comercio(M)'!E252","v":862.49999999999989},{"$f":"'[2]EXT Comercio(M)'!F252","v":278.07999217999998},{"$f":"'[2]EXT Comercio(M)'!G252","v":348.78656202900902},{"$f":"'[2]EXT Comercio(M)'!H252","v":620.9},{"$f":"'[2]EXT Comercio(M)'!I252","v":1196.2412440000003},{"$f":"'[2]EXT Comercio(M)'!K252","v":3225.6723296390091},{"$f":"'[2]EXT Comercio(M)'!L252","v":4421.913573639009},null,null,{"$f":"'[2]EXT Comercio(M)'!AG252","v":972.4898323500006},{"$f":"'[2]EXT Comercio(M)'!AH252","v":707.13000000000011},{"$f":"'[2]EXT Comercio(M)'!AI252","v":1142.8000000000002},{"$f":"'[2]EXT Comercio(M)'!AJ252","v":638.30819513999995},{"$f":"'[2]EXT Comercio(M)'!AK252","v":400.43840425622386},{"$f":"'[2]EXT Comercio(M)'!AL252","v":1270},{"$f":"'[2]EXT Comercio(M)'!AM252","v":1560.0126400000001},{"$f":"'[2]EXT Comercio(M)'!AO252","v":5131.1664317462237},{"$f":"'[2]EXT Comercio(M)'!AP252","v":6691.1790717462227},null,null,{"$f":"'[2]EXT Comercio(M)'!$BS252","v":-1905.4941021072154},{"$f":"'[2]EXT Comercio(M)'!$BT252","v":-2269.2654981072155}]
[null,null,"Abril",{"$f":"'[2]REAL IPC(M)'!AD253","v":5.5560336650257307},{"$f":"'[2]REAL IPC(M)'!AE253","v":0.62949640287767905},{"$f":"'[2]REAL IPC(M)'!AF253","v":3.7504148689014429},{"$f":"'[2]REAL IPC(M)'!AG253","v":4.16467209191},{"$f":"'[2]REAL IPC(M)'!AH253","v":4.8483392870715258},{"$f":"'[2]REAL IPC(M)'!AI253","v":7.6567740302474556},{"$f":"'[2]REAL IPC(M)'!AJ253","v":2.6058631921824214},null,null,{"$f":"'[2]REAL IMAE(M)'!AG253","v":4.4213961546815677},{"$f":"'[2]REAL IMAE(M)'!AH253","v":2.2602903946907751},{"$f":"'[2]REAL IMAE(M)'!AI253","v":3.2264307013816431},{"$f":"'[2]REAL IMAE(M)'!AJ253","v":4.4353401638383474},{"$f":"'[2]REAL IMAE(M)'!AK253","v":1.8612524992264277},{"$f":"'[2]REAL IMAE(M)'!AL253","v":9.832302537890552},{"$f":"'[2]REAL IMAE(M)'!AM253","v":7.4408824330996808},null,null,{"$f":"'[2]EXT ITCER(M)'!C253","v":78.890247920047742},{"$f":"'[2]EXT ITCER(M)'!D253","v":91.365096229974739},{"$f":"'[2]EXT ITCER(M)'!E253","v":68.705958822725236},{"$f":"'[2]EXT ITCER(M)'!F253","v":78.678704529251291},{"$f":"'[2]EXT ITCER(M)'!G253","v":95.737740999608647},{"$f":"'[2]EXT ITCER(M)'!H253","v":92.877676201600153},{"$f":"'[2]EXT ITCER(M)'!I253","v":97.20271677353378},null,null,{"$f":"'[2]EXT TC(M)'!J253","v":-9.5219163222317746},{"$f":"'[2]EXT TC(M)'!K253","v":0},{"$f":"'[2]EXT TC(M)'!L253","v":-1.0732818611348862},{"$f":"'[2]EXT TC(M)'!M253","v":1.9092906136112487E-5},{"$f":"'[2]EXT TC(M)'!N253","v":5.8877191630336512},{"$f":"'[2]EXT TC(M)'!O253","v":1.6636148452503139},{"$f":"'[2]EXT TC(M)'!P253","v":0},null,null,{"$f":"'[2]EXT RIN(M)'!C253","v":4193.8890468099999},{"$f":"'[2]EXT RIN(M)'!D253","v":2734.9},{"$f":"'[2]EXT RIN(M)'!E253","v":5601.6},{"$f":"'[2]EXT RIN(M)'!F253","v":2144.4307483213433},{"$f":"'[2]EXT RIN(M)'!G253","v":1401.4},{"$f":"'[2]EXT RIN(M)'!H253","v":2294.334554135256},{"$f":"'[2]EXT RIN(M)'!I253","v":2722.5123906899998},null,null,{"$f":"'[2]EXT RIN(M)'!P253","v":64.39192553967797},{"$f":"'[2]EXT RIN(M)'!Q253","v":94.214858381450114},{"$f":"'[2]EXT RIN(M)'!R253","v":106.05832560456916},{"$f":"'[2]EXT RIN(M)'!S253","v":78.60838862677663},{"$f":"'[2]EXT RIN(M)'!T253","v":100.79181641529063},{"$f":"'[2]EXT RIN(M)'!U253","v":46.190016049097245},{"$f":"'[2]EXT RIN(M)'!V253","v":256.23249447958756},null,null,{"$f":"+'[2]MONE(M)CAPARD'!AE253","v":2.0784850081963664},{"$f":"'[2]MONE(M)CAPARD'!AF253","v":2.6239857015192327},{"$f":"'[2]MONE(M)CAPARD'!AG253","v":1.7634484964811106},{"$f":"'[2]MONE(M)CAPARD'!AH253","v":6.0532306985294166},{"$f":"'[2]MONE(M)CAPARD'!AI253","v":5.1218623263328755},{"$f":"'[2]MONE(M)CAPARD'!AJ253","v":-2.4306636101804813},{"$f":"'[2]MONE(M)CAPARD'!AK253","v":0.66676190476189412},null,null,{"$f":"'[2]MONE(M)CAPARD'!AL253","v":1.4899999999999998},{"$f":"'[2]MONE(M)CAPARD'!AM253","v":3.27},{"$f":"'[2]MONE(M)CAPARD'!AN253","v":3.69},{"$f":"'[2]MONE(M)CAPARD'!AO253","v":4.4000000000000004},{"$f":"'[2]MONE(M)CAPARD'!AP253","v":3.69},{"$f":"'[2]MONE(M)CAPARD'!AQ253","v":2.29},{"$f":"'[2]MONE(M)CAPARD'!AR253","v":3.29},null,null,{"$f":"'[2]MONE(M)CAPARD'!J253","v":13.996325763677667},{"$f":"'[2]MONE(M)CAPARD'!K253","v":6.6983378016085986},{"$f":"'[2]MONE(M)CAPARD'!L253","v":9.3200447856685695},{"$f":"'[2]MONE(M)CAPARD'!M253","v":14.213386948529417},{"$f":"'[2]MONE(M)CAPARD'!N253","v":15.03920969922739},{"$f":"'[2]MONE(M)CAPARD'!O253","v":3.3934009287015487},{"$f":"'[2]MONE(M)CAPARD'!P253","v":2.7816507936507828},null,null,{"$f":"'[2]MONE(M)CAPARD'!Q253","v":9.7799999999999994},{"$f":"'[2]MONE(M)CAPARD'!R253","v":7.37},{"$f":"'[2]MONE(M)CAPARD'!S253","v":7.9},{"$f":"'[2]MONE(M)CAPARD'!T253","v":10.17},{"$f":"'[2]MONE(M)CAPARD'!U253","v":10.55},{"$f":"'[2]MONE(M)CAPARD'!V253","v":7.51},{"$f":"'[2]MONE(M)CAPARD'!W253","v":5.46},null,null,{"$f":"'[2]MONE(M)CAPARD'!AS253","v":9},{"$f":"'[2]MONE(M)CAPARD'!AT253","v":"n.a."},{"$f":"'[2]MONE(M)CAPARD'!AU253","v":4.5},{"$f":"'[2]MONE(M)CAPARD'!AV253","v":4.5},{"$f":"'[2]MONE(M)CAPARD'!AW253","v":"n.a."},{"$f":"'[2]MONE(M)CAPARD'!AX253","v":4},{"$f":"'[2]MONE(M)CAPARD'!AY253","v":"n.a."},null,null,{"$f":"+'Datos_Regional (M)'!CF246","v":-0.70208311149574376},{"$f":"+'Datos_Regional (M)'!CG246","v":-4.2525353940711224},{"$f":"+'Datos_Regional (M)'!CH246","v":-1.5121892429780792},{"$f":"+'Datos_Regional (M)'!CI246","v":2.7620698446869429},{"$f":"+'Datos_Regional (M)'!CJ246","v":-6.6670096316224221},{"$f":"+'Datos_Regional (M)'!CK246","v":16.027784085319663},{"$f":"+'Datos_Regional (M)'!CL246","v":3.1975802509886186},null,null,560.71894727333336,334.53666666666663,633.50833333333333,212.49888553999997,238.62498522400813,490.1583333333333,1018.2844233333334,2470.0461513706746,3488.3305747040085,null,null,852.45140457416665,637.65333333333331,1020.2749999999997,540.61201921916665,356.41580086954588,1105.4083333333331,1395.08469625,4512.8158913295456,5907.9005875795456,null,null,-2042.7697399588708,-2419.5700128755379,null,null,{"$f":"'[2]EXT Comercio(M)'!C253","v":619.62685529999999},{"$f":"'[2]EXT Comercio(M)'!D253","v":352.62000000000012},{"$f":"'[2]EXT Comercio(M)'!E253","v":706.29999999999984},{"$f":"'[2]EXT Comercio(M)'!F253","v":237.55740835999995},{"$f":"'[2]EXT Comercio(M)'!G253","v":260.92116417793102},{"$f":"'[2]EXT Comercio(M)'!H253","v":583.30000000000007},{"$f":"'[2]EXT Comercio(M)'!I253","v":944.86087599999996},{"$f":"'[2]EXT Comercio(M)'!K253","v":2760.32542783793},{"$f":"'[2]EXT Comercio(M)'!L253","v":3705.1863038379288},null,null,{"$f":"'[2]EXT Comercio(M)'!AG253","v":947.65894223999999},{"$f":"'[2]EXT Comercio(M)'!AH253","v":714.40999999999985},{"$f":"'[2]EXT Comercio(M)'!AI253","v":1168.1000000000004},{"$f":"'[2]EXT Comercio(M)'!AJ253","v":615.18905816999995},{"$f":"'[2]EXT Comercio(M)'!AK253","v":395.68043862526565},{"$f":"'[2]EXT Comercio(M)'!AL253","v":1382.8},{"$f":"'[2]EXT Comercio(M)'!AM253","v":1441.3890799999997},{"$f":"'[2]EXT Comercio(M)'!AO253","v":5223.8384390352658},{"$f":"'[2]EXT Comercio(M)'!AP253","v":6665.2275190352666},null,null,{"$f":"'[2]EXT Comercio(M)'!$BS253","v":-2463.5130111973349},{"$f":"'[2]EXT Comercio(M)'!$BT253","v":-2960.0412151973351}]
[null,null,"Mayo ",{"$f":"'[2]REAL IPC(M)'!AD254","v":6.2329852044837493},{"$f":"'[2]REAL IPC(M)'!AE254","v":0.13949780789159083},{"$f":"'[2]REAL IPC(M)'!AF254","v":3.5078996795934132},{"$f":"'[2]REAL IPC(M)'!AG254","v":4.3561512685495423},{"$f":"'[2]REAL IPC(M)'!AH254","v":4.6758180851871396},{"$f":"'[2]REAL IPC(M)'!AI254","v":7.9008912205297195},{"$f":"'[2]REAL IPC(M)'!AJ254","v":3.1862745098039174},null,null,{"$f":"'[2]REAL IMAE(M)'!AG254","v":4.4263939563611219},{"$f":"'[2]REAL IMAE(M)'!AH254","v":1.3149808651316017},{"$f":"'[2]REAL IMAE(M)'!AI254","v":2.8982904437023977},{"$f":"'[2]REAL IMAE(M)'!AJ254","v":4.9845432292732816},{"$f":"'[2]REAL IMAE(M)'!AK254","v":2.6488082319389727},{"$f":"'[2]REAL IMAE(M)'!AL254","v":9.3240075937488971},{"$f":"'[2]REAL IMAE(M)'!AM254","v":6.7920855643712139},null,null,{"$f":"'[2]EXT ITCER(M)'!C254","v":80.148884019928076},{"$f":"'[2]EXT ITCER(M)'!D254","v":91.508420118447404},{"$f":"'[2]EXT ITCER(M)'!E254","v":68.698239710558582},{"$f":"'[2]EXT ITCER(M)'!F254","v":78.493504993309458},{"$f":"'[2]EXT ITCER(M)'!G254","v":96.095518054321644},{"$f":"'[2]EXT ITCER(M)'!H254","v":93.216594008732073},{"$f":"'[2]EXT ITCER(M)'!I254","v":96.92142821423397},null,null,{"$f":"'[2]EXT TC(M)'!J254","v":-8.3093786890954302},{"$f":"'[2]EXT TC(M)'!K254","v":0},{"$f":"'[2]EXT TC(M)'!L254","v":-1.2452251202102969},{"$f":"'[2]EXT TC(M)'!M254","v":0},{"$f":"'[2]EXT TC(M)'!N254","v":5.4422540973620146},{"$f":"'[2]EXT TC(M)'!O254","v":2.0860513570878085},{"$f":"'[2]EXT TC(M)'!P254","v":0},null,null,{"$f":"'[2]EXT RIN(M)'!C254","v":4042.17194599},{"$f":"'[2]EXT RIN(M)'!D254","v":2628.3},{"$f":"'[2]EXT RIN(M)'!E254","v":5675.55},{"$f":"'[2]EXT RIN(M)'!F254","v":2146.6131234051436},{"$f":"'[2]EXT RIN(M)'!G254","v":1383.8},{"$f":"'[2]EXT RIN(M)'!H254","v":2655.5062605782509},{"$f":"'[2]EXT RIN(M)'!I254","v":2751.2950950999998},null,null,{"$f":"'[2]EXT RIN(M)'!P254","v":65.533011765943556},{"$f":"'[2]EXT RIN(M)'!Q254","v":94.034836144754223},{"$f":"'[2]EXT RIN(M)'!R254","v":106.015568928267},{"$f":"'[2]EXT RIN(M)'!S254","v":78.056593525436483},{"$f":"'[2]EXT RIN(M)'!T254","v":99.45435832261596},{"$f":"'[2]EXT RIN(M)'!U254","v":52.949797564043102},{"$f":"'[2]EXT RIN(M)'!V254","v":253.77729633410294},null,null,{"$f":"+'[2]MONE(M)CAPARD'!AE254","v":2.1340027216147246},{"$f":"'[2]MONE(M)CAPARD'!AF254","v":3.0262805970149245},{"$f":"'[2]MONE(M)CAPARD'!AG254","v":1.9535710092330703},{"$f":"'[2]MONE(M)CAPARD'!AH254","v":5.6574036697247738},{"$f":"'[2]MONE(M)CAPARD'!AI254","v":4.9327324137393616},{"$f":"'[2]MONE(M)CAPARD'!AJ254","v":-2.6421387147794899},{"$f":"'[2]MONE(M)CAPARD'!AK254","v":-0.10299287410925952},null,null,{"$f":"'[2]MONE(M)CAPARD'!AL254","v":1.4899999999999998},{"$f":"'[2]MONE(M)CAPARD'!AM254","v":3.17},{"$f":"'[2]MONE(M)CAPARD'!AN254","v":3.58},{"$f":"'[2]MONE(M)CAPARD'!AO254","v":4.33},{"$f":"'[2]MONE(M)CAPARD'!AP254","v":3.78},{"$f":"'[2]MONE(M)CAPARD'!AQ254","v":2.2400000000000002},{"$f":"'[2]MONE(M)CAPARD'!AR254","v":3.08},null,null,{"$f":"'[2]MONE(M)CAPARD'!J254","v":13.100464764995474},{"$f":"'[2]MONE(M)CAPARD'!K254","v":7.510025870646766},{"$f":"'[2]MONE(M)CAPARD'!L254","v":9.5182110263115778},{"$f":"'[2]MONE(M)CAPARD'!M254","v":13.821752293577987},{"$f":"'[2]MONE(M)CAPARD'!N254","v":13.807239206146415},{"$f":"'[2]MONE(M)CAPARD'!O254","v":3.7248151836447354},{"$f":"'[2]MONE(M)CAPARD'!P254","v":2.1744418052256571},null,null,{"$f":"'[2]MONE(M)CAPARD'!Q254","v":9.57},{"$f":"'[2]MONE(M)CAPARD'!R254","v":7.66},{"$f":"'[2]MONE(M)CAPARD'!S254","v":7.89},{"$f":"'[2]MONE(M)CAPARD'!T254","v":9.83},{"$f":"'[2]MONE(M)CAPARD'!U254","v":9.99},{"$f":"'[2]MONE(M)CAPARD'!V254","v":7.58},{"$f":"'[2]MONE(M)CAPARD'!W254","v":5.43},null,null,{"$f":"'[2]MONE(M)CAPARD'!AS254","v":9},{"$f":"'[2]MONE(M)CAPARD'!AT254","v":"n.a."},{"$f":"'[2]MONE(M)CAPARD'!AU254","v":4.5},{"$f":"'[2]MONE(M)CAPARD'!AV254","v":4.5},{"$f":"'[2]MONE(M)CAPARD'!AW254","v":"n.a."},{"$f":"'[2]MONE(M)CAPARD'!AX254","v":4},{"$f":"'[2]MONE(M)CAPARD'!AY254","v":"n.a."},null,null,{"$f":"+'Datos_Regional (M)'!CF247","v":2.210087298394714},{"$f":"+'Datos_Regional (M)'!CG247","v":-3.7511532452851104},{"$f":"+'Datos_Regional (M)'!CH247","v":-1.9025357703262857},{"$f":"+'Datos_Regional (M)'!CI247","v":2.8279015195042723},{"$f":"+'Datos_Regional (M)'!CJ247","v":-6.4562158384815156},{"$f":"+'Datos_Regional (M)'!CK247","v":15.978112131633093},{"$f":"+'Datos_Regional (M)'!CL247","v":4.4699929453112075},null,null,568.54725981833337,337.34583333333325,645.49166666666656,215.89572839416664,244.07324890280915,499.42500000000001,1028.7927299166668,2510.778737115309,3539.5714670319758,null,null,872.63156441750004,644.10500000000002,1040.5416666666667,551.62420898333312,365.13195608083782,1129.5250000000001,1410.2732475833334,4603.5593961483382,6013.8326437316691,null,null,-2092.7806590330288,-2474.2611766996952,null,null,{"$f":"'[2]EXT Comercio(M)'!C254","v":669.22476439999991},{"$f":"'[2]EXT Comercio(M)'!D254","v":370.42999999999984},{"$f":"'[2]EXT Comercio(M)'!E254","v":747.89999999999986},{"$f":"'[2]EXT Comercio(M)'!F254","v":272.49314445999994},{"$f":"'[2]EXT Comercio(M)'!G254","v":272.28664308312},{"$f":"'[2]EXT Comercio(M)'!H254","v":582.5},{"$f":"'[2]EXT Comercio(M)'!I254","v":992.26369599999998},{"$f":"'[2]EXT Comercio(M)'!K254","v":2914.8345519431205},{"$f":"'[2]EXT Comercio(M)'!L254","v":3907.0982479431223},null,null,{"$f":"'[2]EXT Comercio(M)'!AG254","v":967.40657729999975},{"$f":"'[2]EXT Comercio(M)'!AH254","v":681.54000000000042},{"$f":"'[2]EXT Comercio(M)'!AI254","v":1130.8999999999996},{"$f":"'[2]EXT Comercio(M)'!AJ254","v":618.70470807999982},{"$f":"'[2]EXT Comercio(M)'!AK254","v":427.15537155468661},{"$f":"'[2]EXT Comercio(M)'!AL254","v":1239.0999999999999},{"$f":"'[2]EXT Comercio(M)'!AM254","v":1541.4142740000002},{"$f":"'[2]EXT Comercio(M)'!AO254","v":5064.8066569346884},{"$f":"'[2]EXT Comercio(M)'!AP254","v":6606.2209309346872},null,null,{"$f":"'[2]EXT Comercio(M)'!$BS254","v":-2149.9721049915661},{"$f":"'[2]EXT Comercio(M)'!$BT254","v":-2699.1226829915649}]
[null,null,"Junio",{"$f":"'[2]REAL IPC(M)'!AD255","v":6.311904234143169},{"$f":"'[2]REAL IPC(M)'!AE255","v":0.55776892430277691},{"$f":"'[2]REAL IPC(M)'!AF255","v":4.0674219397623821},{"$f":"'[2]REAL IPC(M)'!AG255","v":4.2380952380952408},{"$f":"'[2]REAL IPC(M)'!AH255","v":4.6325738140417316},{"$f":"'[2]REAL IPC(M)'!AI255","v":5.4383468415517209},{"$f":"'[2]REAL IPC(M)'!AJ255","v":2.7642276422764342},null,null,{"$f":"'[2]REAL IMAE(M)'!AG255","v":4.5170937736112933},{"$f":"'[2]REAL IMAE(M)'!AH255","v":0.30480181781956966},{"$f":"'[2]REAL IMAE(M)'!AI255","v":2.5015112667613191},{"$f":"'[2]REAL IMAE(M)'!AJ255","v":5.1484010589837208},{"$f":"'[2]REAL IMAE(M)'!AK255","v":3.6109818364876825},{"$f":"'[2]REAL IMAE(M)'!AL255","v":8.7433872531746974},{"$f":"'[2]REAL IMAE(M)'!AM255","v":6.1846685351350112},null,null,{"$f":"'[2]EXT ITCER(M)'!C255","v":81.071230578584789},{"$f":"'[2]EXT ITCER(M)'!D255","v":91.053335300427392},{"$f":"'[2]EXT ITCER(M)'!E255","v":68.414239721107165},{"$f":"'[2]EXT ITCER(M)'!F255","v":78.138044038237382},{"$f":"'[2]EXT ITCER(M)'!G255","v":96.412117065938602},{"$f":"'[2]EXT ITCER(M)'!H255","v":93.409107512590523},{"$f":"'[2]EXT ITCER(M)'!I255","v":96.804191756752203},null,null,{"$f":"'[2]EXT TC(M)'!J255","v":-7.3406377172459569},{"$f":"'[2]EXT TC(M)'!K255","v":0},{"$f":"'[2]EXT TC(M)'!L255","v":-1.4884806788092335},{"$f":"'[2]EXT TC(M)'!M255","v":-5.640690462819195E-14},{"$f":"'[2]EXT TC(M)'!N255","v":5.2552953769316444},{"$f":"'[2]EXT TC(M)'!O255","v":2.2372728487439848},{"$f":"'[2]EXT TC(M)'!P255","v":0},null,null,{"$f":"'[2]EXT RIN(M)'!C255","v":4064.9799089600001},{"$f":"'[2]EXT RIN(M)'!D255","v":2681.5},{"$f":"'[2]EXT RIN(M)'!E255","v":5847.6420291099994},{"$f":"'[2]EXT RIN(M)'!F255","v":2207.9432334304947},{"$f":"'[2]EXT RIN(M)'!G255","v":1411.5},{"$f":"'[2]EXT RIN(M)'!H255","v":2511.3163564168599},{"$f":"'[2]EXT RIN(M)'!I255","v":2529.4983001400001},null,null,{"$f":"'[2]EXT RIN(M)'!P255","v":65.890207088387427},{"$f":"'[2]EXT RIN(M)'!Q255","v":96.465127757386341},{"$f":"'[2]EXT RIN(M)'!R255","v":113.96696512368504},{"$f":"'[2]EXT RIN(M)'!S255","v":74.274145151234123},{"$f":"'[2]EXT RIN(M)'!T255","v":99.383636437644782},{"$f":"'[2]EXT RIN(M)'!U255","v":50.36689169943768},{"$f":"'[2]EXT RIN(M)'!V255","v":232.88693090531427},null,null,{"$f":"+'[2]MONE(M)CAPARD'!AE255","v":1.8230279852652584},{"$f":"'[2]MONE(M)CAPARD'!AF255","v":2.4883518225039745},{"$f":"'[2]MONE(M)CAPARD'!AG255","v":1.3765864797408367},{"$f":"'[2]MONE(M)CAPARD'!AH255","v":5.5947921425308333},{"$f":"'[2]MONE(M)CAPARD'!AI255","v":5.1621706091279851},{"$f":"'[2]MONE(M)CAPARD'!AJ255","v":-0.5105797441615102},{"$f":"'[2]MONE(M)CAPARD'!AK255","v":0.33647151898733041},null,null,{"$f":"'[2]MONE(M)CAPARD'!AL255","v":1.2749999999999999},{"$f":"'[2]MONE(M)CAPARD'!AM255","v":3.06},{"$f":"'[2]MONE(M)CAPARD'!AN255","v":3.48},{"$f":"'[2]MONE(M)CAPARD'!AO255","v":4.18},{"$f":"'[2]MONE(M)CAPARD'!AP255","v":3.8},{"$f":"'[2]MONE(M)CAPARD'!AQ255","v":2.2999999999999998},{"$f":"'[2]MONE(M)CAPARD'!AR255","v":3.11},null,null,{"$f":"'[2]MONE(M)CAPARD'!J255","v":13.11997547813395},{"$f":"'[2]MONE(M)CAPARD'!K255","v":6.794334389857382},{"$f":"'[2]MONE(M)CAPARD'!L255","v":8.9293824013594421},{"$f":"'[2]MONE(M)CAPARD'!M255","v":14.056190041114661},{"$f":"'[2]MONE(M)CAPARD'!N255","v":17.68626687929866},{"$f":"'[2]MONE(M)CAPARD'!O255","v":5.9576552047881428},{"$f":"'[2]MONE(M)CAPARD'!P255","v":2.0296677215189756},null,null,{"$f":"'[2]MONE(M)CAPARD'!Q255","v":9.75},{"$f":"'[2]MONE(M)CAPARD'!R255","v":7.39},{"$f":"'[2]MONE(M)CAPARD'!S255","v":7.84},{"$f":"'[2]MONE(M)CAPARD'!T255","v":10.16},{"$f":"'[2]MONE(M)CAPARD'!U255","v":10.75},{"$f":"'[2]MONE(M)CAPARD'!V255","v":8.1199999999999992},{"$f":"'[2]MONE(M)CAPARD'!W255","v":4.8499999999999996},null,null,{"$f":"'[2]MONE(M)CAPARD'!AS255","v":9},{"$f":"'[2]MONE(M)CAPARD'!AT255","v":"n.a."},{"$f":"'[2]MONE(M)CAPARD'!AU255","v":4.5},{"$f":"'[2]MONE(M)CAPARD'!AV255","v":4.5},{"$f":"'[2]MONE(M)CAPARD'!AW255","v":"n.a."},{"$f":"'[2]MONE(M)CAPARD'!AX255","v":4},{"$f":"'[2]MONE(M)CAPARD'!AY255","v":"n.a."},null,null,{"$f":"+'Datos_Regional (M)'!CF248","v":3.6693041549463734},{"$f":"+'Datos_Regional (M)'!CG248","v":-2.5213424631794989},{"$f":"+'Datos_Regional (M)'!CH248","v":-3.144465354728565E-2},{"$f":"+'Datos_Regional (M)'!CI248","v":2.3437492890659106},{"$f":"+'Datos_Regional (M)'!CJ248","v":-4.7213197540997172},{"$f":"+'Datos_Regional (M)'!CK248","v":15.583381978274446},{"$f":"+'Datos_Regional (M)'!CL248","v":8.3730793533143277},null,null,572.94346361999999,342.17833333333328,656.01666666666665,219.98337833333335,253.52739810678395,508.30833333333339,1017.5262684166669,2552.9575733934503,3570.4838418101172,null,null,882.01887285666669,655.83416666666665,1055.1166666666666,556.93771797833324,369.99980186161741,1154.0083333333332,1432.2438571666669,4673.9155593632831,6106.1594165299493,null,null,-2120.9579859698329,-2535.6755747198331,null,null,{"$f":"'[2]EXT Comercio(M)'!C255","v":615.45628135000015},{"$f":"'[2]EXT Comercio(M)'!D255","v":387.99000000000024},{"$f":"'[2]EXT Comercio(M)'!E255","v":748.2000000000005},{"$f":"'[2]EXT Comercio(M)'!F255","v":265.93702912999993},{"$f":"'[2]EXT Comercio(M)'!G255","v":331.53771024523598},{"$f":"'[2]EXT Comercio(M)'!H255","v":610.59999999999991},{"$f":"'[2]EXT Comercio(M)'!I255","v":967.39383899999996},{"$f":"'[2]EXT Comercio(M)'!K255","v":2959.7210207252356},{"$f":"'[2]EXT Comercio(M)'!L255","v":3927.1148597252359},null,null,{"$f":"'[2]EXT Comercio(M)'!AG255","v":931.56025793999993},{"$f":"'[2]EXT Comercio(M)'!AH255","v":771.75999999999931},{"$f":"'[2]EXT Comercio(M)'!AI255","v":1170.7000000000003},{"$f":"'[2]EXT Comercio(M)'!AJ255","v":600.90852878999976},{"$f":"'[2]EXT Comercio(M)'!AK255","v":435.23498705325289},{"$f":"'[2]EXT Comercio(M)'!AL255","v":1316.2999999999995},{"$f":"'[2]EXT Comercio(M)'!AM255","v":1859.5522649999994},{"$f":"'[2]EXT Comercio(M)'!AO255","v":5226.4637737832491},{"$f":"'[2]EXT Comercio(M)'!AP255","v":7086.0160387832511},null,null,{"$f":"'[2]EXT Comercio(M)'!$BS255","v":-2266.7427530580153},{"$f":"'[2]EXT Comercio(M)'!$BT255","v":-3158.9011790580153}]
[null,null,"Julio",{"$f":"'[2]REAL IPC(M)'!AD256","v":5.6820735037581009},{"$f":"'[2]REAL IPC(M)'!AE256","v":0.99009900990098487},{"$f":"'[2]REAL IPC(M)'!AF256","v":4.1203040652197975},{"$f":"'[2]REAL IPC(M)'!AG256","v":4.1607565011820382},{"$f":"'[2]REAL IPC(M)'!AH256","v":6.1978150297846364},{"$f":"'[2]REAL IPC(M)'!AI256","v":5.6727946856172213},{"$f":"'[2]REAL IPC(M)'!AJ256","v":3.3980582524271816},null,null,{"$f":"'[2]REAL IMAE(M)'!AG256","v":4.5538764803033569},{"$f":"'[2]REAL IMAE(M)'!AH256","v":1.0843718983477806},{"$f":"'[2]REAL IMAE(M)'!AI256","v":2.2130517634690481},{"$f":"'[2]REAL IMAE(M)'!AJ256","v":5.4562381830555307},{"$f":"'[2]REAL IMAE(M)'!AK256","v":4.5750795804393141},{"$f":"'[2]REAL IMAE(M)'!AL256","v":8.3182192941964281},{"$f":"'[2]REAL IMAE(M)'!AM256","v":5.9600658932023629},null,null,{"$f":"'[2]EXT ITCER(M)'!C256","v":79.25134870003788},{"$f":"'[2]EXT ITCER(M)'!D256","v":91.205469425421825},{"$f":"'[2]EXT ITCER(M)'!E256","v":68.245317433556593},{"$f":"'[2]EXT ITCER(M)'!F256","v":77.786610683594944},{"$f":"'[2]EXT ITCER(M)'!G256","v":96.135209277179996},{"$f":"'[2]EXT ITCER(M)'!H256","v":93.43954642834052},{"$f":"'[2]EXT ITCER(M)'!I256","v":95.922708275034978},null,null,{"$f":"'[2]EXT TC(M)'!J256","v":-10.134151821142829},{"$f":"'[2]EXT TC(M)'!K256","v":0},{"$f":"'[2]EXT TC(M)'!L256","v":-2.1097229287426105},{"$f":"'[2]EXT TC(M)'!M256","v":5.6406904628191988E-14},{"$f":"'[2]EXT TC(M)'!N256","v":5.166503424941248},{"$f":"'[2]EXT TC(M)'!O256","v":2.2687667280898451},{"$f":"'[2]EXT TC(M)'!P256","v":0},null,null,{"$f":"'[2]EXT RIN(M)'!C256","v":4097.8259955900003},{"$f":"'[2]EXT RIN(M)'!D256","v":2609.1999999999998},{"$f":"'[2]EXT RIN(M)'!E256","v":5732.0343297200006},{"$f":"'[2]EXT RIN(M)'!F256","v":2129.0175306460383},{"$f":"'[2]EXT RIN(M)'!G256","v":1446.6},{"$f":"'[2]EXT RIN(M)'!H256","v":2470},{"$f":"'[2]EXT RIN(M)'!I256","v":2375.3658111100003},null,null,{"$f":"'[2]EXT RIN(M)'!P256","v":64.334413433338696},{"$f":"'[2]EXT RIN(M)'!Q256","v":92.024723797095575},{"$f":"'[2]EXT RIN(M)'!R256","v":111.75178746240313},{"$f":"'[2]EXT RIN(M)'!S256","v":74.415013576593381},{"$f":"'[2]EXT RIN(M)'!T256","v":97.610695276453441},{"$f":"'[2]EXT RIN(M)'!U256","v":48.053191739798216},{"$f":"'[2]EXT RIN(M)'!V256","v":217.24243320568584},null,null,{"$f":"+'[2]MONE(M)CAPARD'!AE256","v":2.1933014932371404},{"$f":"'[2]MONE(M)CAPARD'!AF256","v":2.0100000000000051},{"$f":"'[2]MONE(M)CAPARD'!AG256","v":1.2674722251613482},{"$f":"'[2]MONE(M)CAPARD'!AH256","v":5.3467771221062144},{"$f":"'[2]MONE(M)CAPARD'!AI256","v":2.9405174480906093},{"$f":"'[2]MONE(M)CAPARD'!AJ256","v":-0.49472968626652297},{"$f":"'[2]MONE(M)CAPARD'!AK256","v":-0.39464788732394074},null,null,{"$f":"'[2]MONE(M)CAPARD'!AL256","v":1.4550000000000001},{"$f":"'[2]MONE(M)CAPARD'!AM256","v":3.02},{"$f":"'[2]MONE(M)CAPARD'!AN256","v":3.38},{"$f":"'[2]MONE(M)CAPARD'!AO256","v":4.13},{"$f":"'[2]MONE(M)CAPARD'!AP256","v":3.22},{"$f":"'[2]MONE(M)CAPARD'!AQ256","v":2.31},{"$f":"'[2]MONE(M)CAPARD'!AR256","v":2.99},null,null,{"$f":"'[2]MONE(M)CAPARD'!J256","v":13.548112770263488},{"$f":"'[2]MONE(M)CAPARD'!K256","v":6.198529411764711},{"$f":"'[2]MONE(M)CAPARD'!L256","v":8.8068278489048648},{"$f":"'[2]MONE(M)CAPARD'!M256","v":14.131275533363588},{"$f":"'[2]MONE(M)CAPARD'!N256","v":11.645155720035909},{"$f":"'[2]MONE(M)CAPARD'!O256","v":5.4292169819595504},{"$f":"'[2]MONE(M)CAPARD'!P256","v":2.0618779342723035},null,null,{"$f":"'[2]MONE(M)CAPARD'!Q256","v":9.5500000000000007},{"$f":"'[2]MONE(M)CAPARD'!R256","v":7.25},{"$f":"'[2]MONE(M)CAPARD'!S256","v":7.7399999999999993},{"$f":"'[2]MONE(M)CAPARD'!T256","v":10.220000000000001},{"$f":"'[2]MONE(M)CAPARD'!U256","v":10.84},{"$f":"'[2]MONE(M)CAPARD'!V256","v":6.84},{"$f":"'[2]MONE(M)CAPARD'!W256","v":5.53},null,null,{"$f":"'[2]MONE(M)CAPARD'!AS256","v":9},{"$f":"'[2]MONE(M)CAPARD'!AT256","v":"n.a."},{"$f":"'[2]MONE(M)CAPARD'!AU256","v":4.5},{"$f":"'[2]MONE(M)CAPARD'!AV256","v":4.5},{"$f":"'[2]MONE(M)CAPARD'!AW256","v":"n.a."},{"$f":"'[2]MONE(M)CAPARD'!AX256","v":4},{"$f":"'[2]MONE(M)CAPARD'!AY256","v":"n.a."},null,null,{"$f":"+'Datos_Regional (M)'!CF249","v":1.8357025025104168},{"$f":"+'Datos_Regional (M)'!CG249","v":-1.5340336661330389},{"$f":"+'Datos_Regional (M)'!CH249","v":-0.5508553785808723},{"$f":"+'Datos_Regional (M)'!CI249","v":1.1347741443787696},{"$f":"+'Datos_Regional (M)'!CJ249","v":-3.9996526908895658},{"$f":"+'Datos_Regional (M)'!CK249","v":15.699043023716651},{"$f":"+'Datos_Regional (M)'!CL249","v":8.4325793101126081},null,null,581.15921090500012,346.33666666666676,662.11666666666667,219.78872625416662,259.57359466281417,517.86666666666667,993.32786308333345,2586.8415318219813,3580.1693949053138,null,null,903.45261332749999,659.5374999999998,1067.3,559.44792197416655,379.45161105518793,1176.1166666666666,1448.7628929166667,4745.3063130235214,6194.0692059401872,null,null,-2158.4647812015401,-2613.8998110348734,null,null,{"$f":"'[2]EXT Comercio(M)'!C256","v":613.22165129999985},{"$f":"'[2]EXT Comercio(M)'!D256","v":422.98},{"$f":"'[2]EXT Comercio(M)'!E256","v":685.50000000000023},{"$f":"'[2]EXT Comercio(M)'!F256","v":208.79585126999996},{"$f":"'[2]EXT Comercio(M)'!G256","v":296.86769406634903},{"$f":"'[2]EXT Comercio(M)'!H256","v":586.50000000000023},{"$f":"'[2]EXT Comercio(M)'!I256","v":833.52720699999998},{"$f":"'[2]EXT Comercio(M)'!K256","v":2813.8651966363504},{"$f":"'[2]EXT Comercio(M)'!L256","v":3647.3924036363496},null,null,{"$f":"'[2]EXT Comercio(M)'!AG256","v":1077.56116277},{"$f":"'[2]EXT Comercio(M)'!AH256","v":708.61000000000058},{"$f":"'[2]EXT Comercio(M)'!AI256","v":1240.3999999999999},{"$f":"'[2]EXT Comercio(M)'!AJ256","v":557.66770557000018},{"$f":"'[2]EXT Comercio(M)'!AK256","v":453.00883754293102},{"$f":"'[2]EXT Comercio(M)'!AL256","v":1374.5000000000005},{"$f":"'[2]EXT Comercio(M)'!AM256","v":1518.909208},{"$f":"'[2]EXT Comercio(M)'!AO256","v":5411.7477058829318},{"$f":"'[2]EXT Comercio(M)'!AP256","v":6930.6569138829291},null,null,{"$f":"'[2]EXT Comercio(M)'!$BS256","v":-2597.8825092465813},{"$f":"'[2]EXT Comercio(M)'!$BT256","v":-3283.2645102465831}]
[null,null,"Agosto",{"$f":"'[2]REAL IPC(M)'!AD257","v":5.2062429651685243},{"$f":"'[2]REAL IPC(M)'!AE257","v":1.0199999999999991},{"$f":"'[2]REAL IPC(M)'!AF257","v":4.0955631399317234},{"$f":"'[2]REAL IPC(M)'!AG257","v":4.534718941898924},{"$f":"'[2]REAL IPC(M)'!AH257","v":5.34067077813308},{"$f":"'[2]REAL IPC(M)'!AI257","v":5.0090377133053732},{"$f":"'[2]REAL IPC(M)'!AJ257","v":3.6290322580645138},null,null,{"$f":"'[2]REAL IMAE(M)'!AG257","v":4.4983540484950977},{"$f":"'[2]REAL IMAE(M)'!AH257","v":2.5771618513963235},{"$f":"'[2]REAL IMAE(M)'!AI257","v":2.118714625803487},{"$f":"'[2]REAL IMAE(M)'!AJ257","v":5.6423518974936755},{"$f":"'[2]REAL IMAE(M)'!AK257","v":5.3658733250975237},{"$f":"'[2]REAL IMAE(M)'!AL257","v":8.1429486742845612},{"$f":"'[2]REAL IMAE(M)'!AM257","v":6.1958832842070777},null,null,{"$f":"'[2]EXT ITCER(M)'!C257","v":77.396828160844265},{"$f":"'[2]EXT ITCER(M)'!D257","v":91.492782020148169},{"$f":"'[2]EXT ITCER(M)'!E257","v":68.371238684063911},{"$f":"'[2]EXT ITCER(M)'!F257","v":77.548271853533947},{"$f":"'[2]EXT ITCER(M)'!G257","v":97.247862715807074},{"$f":"'[2]EXT ITCER(M)'!H257","v":93.617226182805013},{"$f":"'[2]EXT ITCER(M)'!I257","v":95.539586448502234},null,null,{"$f":"'[2]EXT TC(M)'!J257","v":-12.944262280549134},{"$f":"'[2]EXT TC(M)'!K257","v":0},{"$f":"'[2]EXT TC(M)'!L257","v":-3.0229108944355678},{"$f":"'[2]EXT TC(M)'!M257","v":-1.5582399130525351E-6},{"$f":"'[2]EXT TC(M)'!N257","v":5.0502461033333352},{"$f":"'[2]EXT TC(M)'!O257","v":2.4043145538472621},{"$f":"'[2]EXT TC(M)'!P257","v":0},null,null,{"$f":"'[2]EXT RIN(M)'!C257","v":4048.3305481699999},{"$f":"'[2]EXT RIN(M)'!D257","v":2567.6},{"$f":"'[2]EXT RIN(M)'!E257","v":5681.8764391300001},{"$f":"'[2]EXT RIN(M)'!F257","v":2113.5463745553056},{"$f":"'[2]EXT RIN(M)'!G257","v":1398.3},{"$f":"'[2]EXT RIN(M)'!H257","v":2407},{"$f":"'[2]EXT RIN(M)'!I257","v":2505.8207950399997},null,null,{"$f":"'[2]EXT RIN(M)'!P257","v":62.832929381481748},{"$f":"'[2]EXT RIN(M)'!Q257","v":96.141676795317366},{"$f":"'[2]EXT RIN(M)'!R257","v":113.09414412342311},{"$f":"'[2]EXT RIN(M)'!S257","v":74.802038080503522},{"$f":"'[2]EXT RIN(M)'!T257","v":100.04895865534836},{"$f":"'[2]EXT RIN(M)'!U257","v":46.111874928953505},{"$f":"'[2]EXT RIN(M)'!V257","v":222.75453230764649},null,null,{"$f":"+'[2]MONE(M)CAPARD'!AE257","v":2.8931334767264687},{"$f":"'[2]MONE(M)CAPARD'!AF257","v":1.851118590378144},{"$f":"'[2]MONE(M)CAPARD'!AG257","v":1.272327868852476},{"$f":"'[2]MONE(M)CAPARD'!AH257","v":4.7307546317216351},{"$f":"'[2]MONE(M)CAPARD'!AI257","v":2.905504733630317},{"$f":"'[2]MONE(M)CAPARD'!AJ257","v":3.9008344030788546E-2},{"$f":"'[2]MONE(M)CAPARD'!AK257","v":-0.59735408560311076},null,null,{"$f":"'[2]MONE(M)CAPARD'!AL257","v":1.21},{"$f":"'[2]MONE(M)CAPARD'!AM257","v":2.89},{"$f":"'[2]MONE(M)CAPARD'!AN257","v":3.31},{"$f":"'[2]MONE(M)CAPARD'!AO257","v":4},{"$f":"'[2]MONE(M)CAPARD'!AP257","v":3.2},{"$f":"'[2]MONE(M)CAPARD'!AQ257","v":2.33},{"$f":"'[2]MONE(M)CAPARD'!AR257","v":3.01},null,null,{"$f":"'[2]MONE(M)CAPARD'!J257","v":13.690971779688249},{"$f":"'[2]MONE(M)CAPARD'!K257","v":6.0582062957830143},{"$f":"'[2]MONE(M)CAPARD'!L257","v":8.8134754098360837},{"$f":"'[2]MONE(M)CAPARD'!M257","v":13.493393583370981},{"$f":"'[2]MONE(M)CAPARD'!N257","v":12.738320671934371},{"$f":"'[2]MONE(M)CAPARD'!O257","v":5.4575895670439758},{"$f":"'[2]MONE(M)CAPARD'!P257","v":1.6221011673151768},null,null,{"$f":"'[2]MONE(M)CAPARD'!Q257","v":9.39},{"$f":"'[2]MONE(M)CAPARD'!R257","v":7.14},{"$f":"'[2]MONE(M)CAPARD'!S257","v":7.6300000000000008},{"$f":"'[2]MONE(M)CAPARD'!T257","v":10.19},{"$f":"'[2]MONE(M)CAPARD'!U257","v":10.93},{"$f":"'[2]MONE(M)CAPARD'!V257","v":7.12},{"$f":"'[2]MONE(M)CAPARD'!W257","v":5.31},null,null,{"$f":"'[2]MONE(M)CAPARD'!AS257","v":7.5},{"$f":"'[2]MONE(M)CAPARD'!AT257","v":"n.a."},{"$f":"'[2]MONE(M)CAPARD'!AU257","v":4.5},{"$f":"'[2]MONE(M)CAPARD'!AV257","v":4.5},{"$f":"'[2]MONE(M)CAPARD'!AW257","v":"n.a."},{"$f":"'[2]MONE(M)CAPARD'!AX257","v":4},{"$f":"'[2]MONE(M)CAPARD'!AY257","v":"n.a."},null,null,{"$f":"+'Datos_Regional (M)'!CF250","v":1.7237543757345763},{"$f":"+'Datos_Regional (M)'!CG250","v":-1.4200035095007446},{"$f":"+'Datos_Regional (M)'!CH250","v":-0.24439180601587562},{"$f":"+'Datos_Regional (M)'!CI250","v":1.8115615022683329},{"$f":"+'Datos_Regional (M)'!CJ250","v":-3.2249351086832245},{"$f":"+'Datos_Regional (M)'!CK250","v":17.855962361618573},{"$f":"+'Datos_Regional (M)'!CL250","v":10.245898363318439},null,null,584.37527417916669,352.96499999999997,667.94166666666661,222.21519018249998,263.97402690883916,527.91666666666674,992.05397658333322,2619.3878246038398,3611.4418011871735,null,null,912.72954846166658,669.19083333333322,1088.4083333333333,564.76781490416658,388.45079659292259,1197.3333333333333,1490.2968657499998,4820.8806599587542,6311.1775257087547,null,null,-2201.4928353549162,-2699.7357245215831,null,null,{"$f":"'[2]EXT Comercio(M)'!C257","v":574.35495759999958},{"$f":"'[2]EXT Comercio(M)'!D257","v":381.07000000000016},{"$f":"'[2]EXT Comercio(M)'!E257","v":625.89999999999918},{"$f":"'[2]EXT Comercio(M)'!F257","v":214.07577678999996},{"$f":"'[2]EXT Comercio(M)'!G257","v":293.77850088489197},{"$f":"'[2]EXT Comercio(M)'!H257","v":594.79999999999995},{"$f":"'[2]EXT Comercio(M)'!I257","v":986.37169399999993},{"$f":"'[2]EXT Comercio(M)'!K257","v":2683.9792352748918},{"$f":"'[2]EXT Comercio(M)'!L257","v":3670.3509292748895},null,null,{"$f":"'[2]EXT Comercio(M)'!AG257","v":947.44181433999972},{"$f":"'[2]EXT Comercio(M)'!AH257","v":676.29},{"$f":"'[2]EXT Comercio(M)'!AI257","v":1189.700000000001},{"$f":"'[2]EXT Comercio(M)'!AJ257","v":579.00368704999983},{"$f":"'[2]EXT Comercio(M)'!AK257","v":451.27328115107343},{"$f":"'[2]EXT Comercio(M)'!AL257","v":1306.0000000000011},{"$f":"'[2]EXT Comercio(M)'!AM257","v":1803.7030569999993},{"$f":"'[2]EXT Comercio(M)'!AO257","v":5149.7087825410708},{"$f":"'[2]EXT Comercio(M)'!AP257","v":6953.4118395410769},null,null,{"$f":"'[2]EXT Comercio(M)'!$BS257","v":-2465.7295472661863},{"$f":"'[2]EXT Comercio(M)'!$BT257","v":-3283.0609102661838}]
[null,null,"Setiembre",{"$f":"'[2]REAL IPC(M)'!AD258","v":5.0007323677593041},{"$f":"'[2]REAL IPC(M)'!AE258","v":1.3800000000000103},{"$f":"'[2]REAL IPC(M)'!AF258","v":3.7586169165116403},{"$f":"'[2]REAL IPC(M)'!AG258","v":5.0495516753185408},{"$f":"'[2]REAL IPC(M)'!AH258","v":5.4260702632976869},{"$f":"'[2]REAL IPC(M)'!AI258","v":5.7012577654007481},{"$f":"'[2]REAL IPC(M)'!AJ258","v":4.2173560421735603},null,null,{"$f":"'[2]REAL IMAE(M)'!AG258","v":4.4119873510420931},{"$f":"'[2]REAL IMAE(M)'!AH258","v":3.278532838182973},{"$f":"'[2]REAL IMAE(M)'!AI258","v":2.2921176019407654},{"$f":"'[2]REAL IMAE(M)'!AJ258","v":5.686449139135882},{"$f":"'[2]REAL IMAE(M)'!AK258","v":5.792997931579805},{"$f":"'[2]REAL IMAE(M)'!AL258","v":8.1210753041324075},{"$f":"'[2]REAL IMAE(M)'!AM258","v":7.0775792973284792},null,null,{"$f":"'[2]EXT ITCER(M)'!C258","v":77.312739964825667},{"$f":"'[2]EXT ITCER(M)'!D258","v":91.368662116059539},{"$f":"'[2]EXT ITCER(M)'!E258","v":68.853023126015813},{"$f":"'[2]EXT ITCER(M)'!F258","v":77.219913850300699},{"$f":"'[2]EXT ITCER(M)'!G258","v":97.394051863778657},{"$f":"'[2]EXT ITCER(M)'!H258","v":93.282773319112849},{"$f":"'[2]EXT ITCER(M)'!I258","v":95.693906710383146},null,null,{"$f":"'[2]EXT TC(M)'!J258","v":-13.243365033521973},{"$f":"'[2]EXT TC(M)'!K258","v":0},{"$f":"'[2]EXT TC(M)'!L258","v":-2.852513625382052},{"$f":"'[2]EXT TC(M)'!M258","v":-5.2923745914825832E-5},{"$f":"'[2]EXT TC(M)'!N258","v":5.0596792793452536},{"$f":"'[2]EXT TC(M)'!O258","v":2.5760000443755264},{"$f":"'[2]EXT TC(M)'!P258","v":0},null,null,{"$f":"'[2]EXT RIN(M)'!C258","v":4571.2699859100003},{"$f":"'[2]EXT RIN(M)'!D258","v":2529.6999999999998},{"$f":"'[2]EXT RIN(M)'!E258","v":5659.2212569399999},{"$f":"'[2]EXT RIN(M)'!F258","v":2069.7490058293315},{"$f":"'[2]EXT RIN(M)'!G258","v":1417.8},{"$f":"'[2]EXT RIN(M)'!H258","v":2274.3000000000002},{"$f":"'[2]EXT RIN(M)'!I258","v":2309.5924205599999},null,null,{"$f":"'[2]EXT RIN(M)'!P258","v":70.60057223441639},{"$f":"'[2]EXT RIN(M)'!Q258","v":93.770943425321306},{"$f":"'[2]EXT RIN(M)'!R258","v":111.84151851842985},{"$f":"'[2]EXT RIN(M)'!S258","v":72.5615084756638},{"$f":"'[2]EXT RIN(M)'!T258","v":100.65945022285901},{"$f":"'[2]EXT RIN(M)'!U258","v":46.982905147778261},{"$f":"'[2]EXT RIN(M)'!V258","v":206.52619924660692},null,null,{"$f":"+'[2]MONE(M)CAPARD'!AE258","v":2.380238285850377},{"$f":"'[2]MONE(M)CAPARD'!AF258","v":1.3118958374432725},{"$f":"'[2]MONE(M)CAPARD'!AG258","v":1.6012001054574341},{"$f":"'[2]MONE(M)CAPARD'!AH258","v":3.9128661275831149},{"$f":"'[2]MONE(M)CAPARD'!AI258","v":3.2299899765509292},{"$f":"'[2]MONE(M)CAPARD'!AJ258","v":-0.45529994209612773},{"$f":"'[2]MONE(M)CAPARD'!AK258","v":-1.254451361867704},null,null,{"$f":"'[2]MONE(M)CAPARD'!AL258","v":1.0549999999999999},{"$f":"'[2]MONE(M)CAPARD'!AM258","v":2.71},{"$f":"'[2]MONE(M)CAPARD'!AN258","v":3.23},{"$f":"'[2]MONE(M)CAPARD'!AO258","v":3.91},{"$f":"'[2]MONE(M)CAPARD'!AP258","v":3.49},{"$f":"'[2]MONE(M)CAPARD'!AQ258","v":2.29},{"$f":"'[2]MONE(M)CAPARD'!AR258","v":2.91},null,null,{"$f":"'[2]MONE(M)CAPARD'!J258","v":13.589683910263947},{"$f":"'[2]MONE(M)CAPARD'!K258","v":5.513908068652583},{"$f":"'[2]MONE(M)CAPARD'!L258","v":9.1668368046401394},{"$f":"'[2]MONE(M)CAPARD'!M258","v":12.93717879604673},{"$f":"'[2]MONE(M)CAPARD'!N258","v":13.035792673425755},{"$f":"'[2]MONE(M)CAPARD'!O258","v":5.0318627678054346},{"$f":"'[2]MONE(M)CAPARD'!P258","v":0.71259143968871597},null,null,{"$f":"'[2]MONE(M)CAPARD'!Q258","v":9.3699999999999992},{"$f":"'[2]MONE(M)CAPARD'!R258","v":6.97},{"$f":"'[2]MONE(M)CAPARD'!S258","v":7.51},{"$f":"'[2]MONE(M)CAPARD'!T258","v":10.130000000000001},{"$f":"'[2]MONE(M)CAPARD'!U258","v":10.49},{"$f":"'[2]MONE(M)CAPARD'!V258","v":7.03},{"$f":"'[2]MONE(M)CAPARD'!W258","v":4.96},null,null,{"$f":"'[2]MONE(M)CAPARD'!AS258","v":7.5},{"$f":"'[2]MONE(M)CAPARD'!AT258","v":"n.a."},{"$f":"'[2]MONE(M)CAPARD'!AU258","v":4.5},{"$f":"'[2]MONE(M)CAPARD'!AV258","v":4.5},{"$f":"'[2]MONE(M)CAPARD'!AW258","v":"n.a."},{"$f":"'[2]MONE(M)CAPARD'!AX258","v":4},{"$f":"'[2]MONE(M)CAPARD'!AY258","v":"n.a."},null,null,{"$f":"+'Datos_Regional (M)'!CF251","v":1.008876677512327},{"$f":"+'Datos_Regional (M)'!CG251","v":-1.3380359155180321},{"$f":"+'Datos_Regional (M)'!CH251","v":-0.95469893754525081},{"$f":"+'Datos_Regional (M)'!CI251","v":1.7362466055631298},{"$f":"+'Datos_Regional (M)'!CJ251","v":-2.030285639580276},{"$f":"+'Datos_Regional (M)'!CK251","v":17.498784569528336},{"$f":"+'Datos_Regional (M)'!CL251","v":12.381713473520906},null,null,590.30673511750001,358.06083333333328,672.77499999999998,224.2646064208333,266.94228176471478,536.65833333333342,968.61446008333326,2649.0077899697148,3617.6222500530489,null,null,924.53868157749991,679.36500000000001,1106.2083333333333,572.90629091249991,396.14157210178365,1222.3166666666668,1515.5205973333334,4901.4765445917828,6416.9971419251169,null,null,-2252.4687546220684,-2799.3748918720689,null,null,{"$f":"'[2]EXT Comercio(M)'!C258","v":575.16749099000026},{"$f":"'[2]EXT Comercio(M)'!D258","v":366.06999999999971},{"$f":"'[2]EXT Comercio(M)'!E258","v":607.90000000000032},{"$f":"'[2]EXT Comercio(M)'!F258","v":196.52001306999978},{"$f":"'[2]EXT Comercio(M)'!G258","v":293.57237448310502},{"$f":"'[2]EXT Comercio(M)'!H258","v":564.29999999999995},{"$f":"'[2]EXT Comercio(M)'!I258","v":1193.5782609999999},{"$f":"'[2]EXT Comercio(M)'!K258","v":2603.5298785431041},{"$f":"'[2]EXT Comercio(M)'!L258","v":3797.1081395431029},null,null,{"$f":"'[2]EXT Comercio(M)'!AG258","v":920.20710278000013},{"$f":"'[2]EXT Comercio(M)'!AH258","v":715.65000000000055},{"$f":"'[2]EXT Comercio(M)'!AI258","v":1132.200000000001},{"$f":"'[2]EXT Comercio(M)'!AJ258","v":579.21979822000048},{"$f":"'[2]EXT Comercio(M)'!AK258","v":417.74067867749989},{"$f":"'[2]EXT Comercio(M)'!AL258","v":1285.7},{"$f":"'[2]EXT Comercio(M)'!AM258","v":1821.2696860000001},{"$f":"'[2]EXT Comercio(M)'!AO258","v":5050.7175796775118},{"$f":"'[2]EXT Comercio(M)'!AP258","v":6871.9872656775115},null,null,{"$f":"'[2]EXT Comercio(M)'!$BS258","v":-2447.1877011343931},{"$f":"'[2]EXT Comercio(M)'!$BT258","v":-3074.879126134394}]
[null,null,"Octubre",{"$f":"'[2]REAL IPC(M)'!AD259","v":5.2529068483650256},{"$f":"'[2]REAL IPC(M)'!AE259","v":2.7800000000000025},{"$f":"'[2]REAL IPC(M)'!AF259","v":4.5058378556158383},{"$f":"'[2]REAL IPC(M)'!AG259","v":5.7909604519773925},{"$f":"'[2]REAL IPC(M)'!AH259","v":7.2600680220693814},{"$f":"'[2]REAL IPC(M)'!AI259","v":6.1706155349291931},{"$f":"'[2]REAL IPC(M)'!AJ259","v":4.1262135922330092},null,null,{"$f":"'[2]REAL IMAE(M)'!AG259","v":4.3195321056138907},{"$f":"'[2]REAL IMAE(M)'!AH259","v":3.6411605187213696},{"$f":"'[2]REAL IMAE(M)'!AI259","v":2.6604533629194851},{"$f":"'[2]REAL IMAE(M)'!AJ259","v":6.0294567885395516},{"$f":"'[2]REAL IMAE(M)'!AK259","v":5.9054363023912089},{"$f":"'[2]REAL IMAE(M)'!AL259","v":8.0112606416640784},{"$f":"'[2]REAL IMAE(M)'!AM259","v":8.2793463035421961},null,null,{"$f":"'[2]EXT ITCER(M)'!C259","v":77.215800456986045},{"$f":"'[2]EXT ITCER(M)'!D259","v":91.083235571208874},{"$f":"'[2]EXT ITCER(M)'!E259","v":68.545582241001014},{"$f":"'[2]EXT ITCER(M)'!F259","v":76.764587499532411},{"$f":"'[2]EXT ITCER(M)'!G259","v":96.131011270532014},{"$f":"'[2]EXT ITCER(M)'!H259","v":93.492951667536758},{"$f":"'[2]EXT ITCER(M)'!I259","v":95.877871925093132},null,null,{"$f":"'[2]EXT TC(M)'!J259","v":-12.542739088929109},{"$f":"'[2]EXT TC(M)'!K259","v":0},{"$f":"'[2]EXT TC(M)'!L259","v":-3.4919225761222563},{"$f":"'[2]EXT TC(M)'!M259","v":-5.2923745877221248E-5},{"$f":"'[2]EXT TC(M)'!N259","v":5.1421873007909307},{"$f":"'[2]EXT TC(M)'!O259","v":3.0300679597394597},{"$f":"'[2]EXT TC(M)'!P259","v":0},null,null,{"$f":"'[2]EXT RIN(M)'!C259","v":4617.2830663300001},{"$f":"'[2]EXT RIN(M)'!D259","v":2781.7},{"$f":"'[2]EXT RIN(M)'!E259","v":5650.5295661},{"$f":"'[2]EXT RIN(M)'!F259","v":2113.1830398339143},{"$f":"'[2]EXT RIN(M)'!G259","v":1407.8},{"$f":"'[2]EXT RIN(M)'!H259","v":2418.1999999999998},{"$f":"'[2]EXT RIN(M)'!I259","v":2317.7089598300004},null,null,{"$f":"'[2]EXT RIN(M)'!P259","v":72.460140169250934},{"$f":"'[2]EXT RIN(M)'!Q259","v":99.754924989259578},{"$f":"'[2]EXT RIN(M)'!R259","v":110.55481808540134},{"$f":"'[2]EXT RIN(M)'!S259","v":73.696931023307926},{"$f":"'[2]EXT RIN(M)'!T259","v":102.55164301180709},{"$f":"'[2]EXT RIN(M)'!U259","v":51.822104767210561},{"$f":"'[2]EXT RIN(M)'!V259","v":197.36368823027291},null,null,{"$f":"+'[2]MONE(M)CAPARD'!AE259","v":1.8974232745059778},{"$f":"'[2]MONE(M)CAPARD'!AF259","v":-0.30161510021405163},{"$f":"'[2]MONE(M)CAPARD'!AG259","v":0.86517859952794474},{"$f":"'[2]MONE(M)CAPARD'!AH259","v":2.986114819759687},{"$f":"'[2]MONE(M)CAPARD'!AI259","v":0.42709544757761403},{"$f":"'[2]MONE(M)CAPARD'!AJ259","v":-0.65989589624136358},{"$f":"'[2]MONE(M)CAPARD'!AK259","v":-1.2256410256410251},null,null,{"$f":"'[2]MONE(M)CAPARD'!AL259","v":1},{"$f":"'[2]MONE(M)CAPARD'!AM259","v":2.4700000000000002},{"$f":"'[2]MONE(M)CAPARD'!AN259","v":3.18},{"$f":"'[2]MONE(M)CAPARD'!AO259","v":3.75},{"$f":"'[2]MONE(M)CAPARD'!AP259","v":2.96},{"$f":"'[2]MONE(M)CAPARD'!AQ259","v":2.48},{"$f":"'[2]MONE(M)CAPARD'!AR259","v":2.85},null,null,{"$f":"'[2]MONE(M)CAPARD'!J259","v":12.728478056131786},{"$f":"'[2]MONE(M)CAPARD'!K259","v":4.0182914964000753},{"$f":"'[2]MONE(M)CAPARD'!L259","v":8.3288764752163811},{"$f":"'[2]MONE(M)CAPARD'!M259","v":12.107877169559423},{"$f":"'[2]MONE(M)CAPARD'!N259","v":10.994241264316399},{"$f":"'[2]MONE(M)CAPARD'!O259","v":5.7825646334799714},{"$f":"'[2]MONE(M)CAPARD'!P259","v":0.45501165501165514},null,null,{"$f":"'[2]MONE(M)CAPARD'!Q259","v":9.49},{"$f":"'[2]MONE(M)CAPARD'!R259","v":6.91},{"$f":"'[2]MONE(M)CAPARD'!S259","v":7.41},{"$f":"'[2]MONE(M)CAPARD'!T259","v":10.039999999999999},{"$f":"'[2]MONE(M)CAPARD'!U259","v":10.24},{"$f":"'[2]MONE(M)CAPARD'!V259","v":6.92},{"$f":"'[2]MONE(M)CAPARD'!W259","v":4.5999999999999996},null,null,{"$f":"'[2]MONE(M)CAPARD'!AS259","v":6.5},{"$f":"'[2]MONE(M)CAPARD'!AT259","v":"n.a."},{"$f":"'[2]MONE(M)CAPARD'!AU259","v":4.5},{"$f":"'[2]MONE(M)CAPARD'!AV259","v":4.5},{"$f":"'[2]MONE(M)CAPARD'!AW259","v":"n.a."},{"$f":"'[2]MONE(M)CAPARD'!AX259","v":4.75},{"$f":"'[2]MONE(M)CAPARD'!AY259","v":"n.a."},null,null,{"$f":"+'Datos_Regional (M)'!CF252","v":2.0922076279112911},{"$f":"+'Datos_Regional (M)'!CG252","v":-0.85164261970959165},{"$f":"+'Datos_Regional (M)'!CH252","v":0.35824314205923358},{"$f":"+'Datos_Regional (M)'!CI252","v":1.9225341599114154},{"$f":"+'Datos_Regional (M)'!CJ252","v":-0.44640047530903892},{"$f":"+'Datos_Regional (M)'!CK252","v":19.511237668723513},{"$f":"+'Datos_Regional (M)'!CL252","v":12.884656380812597},null,null,595.64940579833331,361.86999999999995,675.59166666666658,223.83090798333333,271.07256397755299,546.9666666666667,976.71297933333335,2674.9812110925523,3651.6941904258861,null,null,936.28841185333329,685.38166666666666,1112.4083333333333,579.65933369083325,403.75850426258427,1238.7166666666669,1532.2275756666666,4956.212916473417,6488.4404921400846,null,null,-2281.2317053808642,-2836.7463017141977,null,null,{"$f":"'[2]EXT Comercio(M)'!C259","v":619.02605107999989},{"$f":"'[2]EXT Comercio(M)'!D259","v":389.25999999999976},{"$f":"'[2]EXT Comercio(M)'!E259","v":651.99999999999955},{"$f":"'[2]EXT Comercio(M)'!F259","v":176.67588916000022},{"$f":"'[2]EXT Comercio(M)'!G259","v":273.62931404415895},{"$f":"'[2]EXT Comercio(M)'!H259","v":602.90000000000009},{"$f":"'[2]EXT Comercio(M)'!I259","v":1480.6424029999998},{"$f":"'[2]EXT Comercio(M)'!K259","v":2713.4912542841557},{"$f":"'[2]EXT Comercio(M)'!L259","v":4194.133657284161},null,null,{"$f":"'[2]EXT Comercio(M)'!AG259","v":1044.4270598400001},{"$f":"'[2]EXT Comercio(M)'!AH259","v":706.01000000000022},{"$f":"'[2]EXT Comercio(M)'!AI259","v":1198.9999999999998},{"$f":"'[2]EXT Comercio(M)'!AJ259","v":603.88041049999993},{"$f":"'[2]EXT Comercio(M)'!AK259","v":470.20562717684896},{"$f":"'[2]EXT Comercio(M)'!AL259","v":1312.0000000000002},{"$f":"'[2]EXT Comercio(M)'!AM259","v":1852.3239929999991},{"$f":"'[2]EXT Comercio(M)'!AO259","v":5335.5230975168379},{"$f":"'[2]EXT Comercio(M)'!AP259","v":7187.847090516836},null,null,{"$f":"'[2]EXT Comercio(M)'!$BS259","v":-2622.0318432326894},{"$f":"'[2]EXT Comercio(M)'!$BT259","v":-2993.7134332326896}]
[null,null,"Noviembre",{"$f":"'[2]REAL IPC(M)'!AD260","v":6.1128648439259585},{"$f":"'[2]REAL IPC(M)'!AE260","v":1.8200000000001011},{"$f":"'[2]REAL IPC(M)'!AF260","v":5.2539308606804402},{"$f":"'[2]REAL IPC(M)'!AG260","v":6.4349459840300547},{"$f":"'[2]REAL IPC(M)'!AH260","v":8.7899199818826812},{"$f":"'[2]REAL IPC(M)'!AI260","v":5.3742976255211445},{"$f":"'[2]REAL IPC(M)'!AJ260","v":4.284559417946646},null,null,{"$f":"'[2]REAL IMAE(M)'!AG260","v":4.1518664245008727},{"$f":"'[2]REAL IMAE(M)'!AH260","v":2.5095021343312167},{"$f":"'[2]REAL IMAE(M)'!AI260","v":3.1259991468053618},{"$f":"'[2]REAL IMAE(M)'!AJ260","v":7.290167796385127},{"$f":"'[2]REAL IMAE(M)'!AK260","v":5.7929630783314909},{"$f":"'[2]REAL IMAE(M)'!AL260","v":7.5085926630098836},{"$f":"'[2]REAL IMAE(M)'!AM260","v":9.4475680770364772},null,null,{"$f":"'[2]EXT ITCER(M)'!C260","v":77.263102352018194},{"$f":"'[2]EXT ITCER(M)'!D260","v":90.903184398134343},{"$f":"'[2]EXT ITCER(M)'!E260","v":67.742146421199905},{"$f":"'[2]EXT ITCER(M)'!F260","v":76.31380870446344},{"$f":"'[2]EXT ITCER(M)'!G260","v":94.995966405038928},{"$f":"'[2]EXT ITCER(M)'!H260","v":93.507728894547355},{"$f":"'[2]EXT ITCER(M)'!I260","v":95.897274497357969},null,null,{"$f":"'[2]EXT TC(M)'!J260","v":-9.7774295246839316},{"$f":"'[2]EXT TC(M)'!K260","v":0},{"$f":"'[2]EXT TC(M)'!L260","v":-3.6275387640000405},{"$f":"'[2]EXT TC(M)'!M260","v":-5.292374585841896E-5},{"$f":"'[2]EXT TC(M)'!N260","v":4.9021407950735529},{"$f":"'[2]EXT TC(M)'!O260","v":3.1102897783786885},{"$f":"'[2]EXT TC(M)'!P260","v":0},null,null,{"$f":"'[2]EXT RIN(M)'!C260","v":4603.3299308200003},{"$f":"'[2]EXT RIN(M)'!D260","v":2908.8},{"$f":"'[2]EXT RIN(M)'!E260","v":5594.9317196000002},{"$f":"'[2]EXT RIN(M)'!F260","v":2270.1680266072053},{"$f":"'[2]EXT RIN(M)'!G260","v":1420.2},{"$f":"'[2]EXT RIN(M)'!H260","v":2656.1},{"$f":"'[2]EXT RIN(M)'!I260","v":2425.1758079899996},null,null,{"$f":"'[2]EXT RIN(M)'!P260","v":69.305309974725546},{"$f":"'[2]EXT RIN(M)'!Q260","v":107.12770470937633},{"$f":"'[2]EXT RIN(M)'!R260","v":108.18881507629557},{"$f":"'[2]EXT RIN(M)'!S260","v":75.951719553374488},{"$f":"'[2]EXT RIN(M)'!T260","v":101.3525460505694},{"$f":"'[2]EXT RIN(M)'!U260","v":53.542451708130592},{"$f":"'[2]EXT RIN(M)'!V260","v":204.47800854691752},null,null,{"$f":"+'[2]MONE(M)CAPARD'!AE260","v":0.83602978524693194},{"$f":"'[2]MONE(M)CAPARD'!AF260","v":0.36338636810046993},{"$f":"'[2]MONE(M)CAPARD'!AG260","v":0.13877784717884295},{"$f":"'[2]MONE(M)CAPARD'!AH260","v":2.1844836716681435},{"$f":"'[2]MONE(M)CAPARD'!AI260","v":8.0900831013412278E-2},{"$f":"'[2]MONE(M)CAPARD'!AJ260","v":0.74562999913990624},{"$f":"'[2]MONE(M)CAPARD'!AK260","v":-1.5290465116279077},null,null,{"$f":"'[2]MONE(M)CAPARD'!AL260","v":1},{"$f":"'[2]MONE(M)CAPARD'!AM260","v":2.19},{"$f":"'[2]MONE(M)CAPARD'!AN260","v":3.11},{"$f":"'[2]MONE(M)CAPARD'!AO260","v":3.69},{"$f":"'[2]MONE(M)CAPARD'!AP260","v":3.4},{"$f":"'[2]MONE(M)CAPARD'!AQ260","v":2.99},{"$f":"'[2]MONE(M)CAPARD'!AR260","v":2.69},null,null,{"$f":"'[2]MONE(M)CAPARD'!J260","v":12.125895549987662},{"$f":"'[2]MONE(M)CAPARD'!K260","v":4.792771557650652},{"$f":"'[2]MONE(M)CAPARD'!L260","v":7.5589282739954156},{"$f":"'[2]MONE(M)CAPARD'!M260","v":11.83357016769639},{"$f":"'[2]MONE(M)CAPARD'!N260","v":7.7178671532181182},{"$f":"'[2]MONE(M)CAPARD'!O260","v":7.3411662509675457},{"$f":"'[2]MONE(M)CAPARD'!P260","v":1.0120775193798439},null,null,{"$f":"'[2]MONE(M)CAPARD'!Q260","v":9.4499999999999993},{"$f":"'[2]MONE(M)CAPARD'!R260","v":6.7},{"$f":"'[2]MONE(M)CAPARD'!S260","v":7.2900000000000009},{"$f":"'[2]MONE(M)CAPARD'!T260","v":9.98},{"$f":"'[2]MONE(M)CAPARD'!U260","v":9.9499999999999993},{"$f":"'[2]MONE(M)CAPARD'!V260","v":7.03},{"$f":"'[2]MONE(M)CAPARD'!W260","v":5.34},null,null,{"$f":"'[2]MONE(M)CAPARD'!AS260","v":6.5},{"$f":"'[2]MONE(M)CAPARD'!AT260","v":"n.a."},{"$f":"'[2]MONE(M)CAPARD'!AU260","v":4.5},{"$f":"'[2]MONE(M)CAPARD'!AV260","v":4.5},{"$f":"'[2]MONE(M)CAPARD'!AW260","v":"n.a."},{"$f":"'[2]MONE(M)CAPARD'!AX260","v":5},{"$f":"'[2]MONE(M)CAPARD'!AY260","v":"n.a."},null,null,{"$f":"+'Datos_Regional (M)'!CF253","v":4.3916362669841558},{"$f":"+'Datos_Regional (M)'!CG253","v":9.4309375401269158E-2},{"$f":"+'Datos_Regional (M)'!CH253","v":1.5030495807406563},{"$f":"+'Datos_Regional (M)'!CI253","v":2.3754598430249851},{"$f":"+'Datos_Regional (M)'!CJ253","v":1.1142770907059285},{"$f":"+'Datos_Regional (M)'!CK253","v":19.991569162932365},{"$f":"+'Datos_Regional (M)'!CL253","v":14.017632302613414},null,null,602.69855729083326,368.31666666666666,684.33333333333337,227.43964567916666,278.03235934968149,559.04166666666663,998.8660157500002,2719.8622289863483,3718.7282447363486,null,null,941.10109541500003,689.24750000000006,1137.2,588.36439773500001,411.66105501510515,1259.2583333333334,1579.4352070833331,5026.8323814984387,6606.2675885817707,null,null,-2306.9701525120904,-2887.5393438454244,null,null,{"$f":"'[2]EXT Comercio(M)'!C260","v":612.18250890999934},{"$f":"'[2]EXT Comercio(M)'!D260","v":360.04000000000042},{"$f":"'[2]EXT Comercio(M)'!E260","v":642.70000000000027},{"$f":"'[2]EXT Comercio(M)'!F260","v":206.39183412000011},{"$f":"'[2]EXT Comercio(M)'!G260","v":292.90444535822883},{"$f":"'[2]EXT Comercio(M)'!H260","v":592.29999999999973},{"$f":"'[2]EXT Comercio(M)'!I260","v":1253.5732519999999},{"$f":"'[2]EXT Comercio(M)'!K260","v":2706.5187883882318},{"$f":"'[2]EXT Comercio(M)'!L260","v":3960.0920403882337},null,null,{"$f":"'[2]EXT Comercio(M)'!AG260","v":960.43253398999991},{"$f":"'[2]EXT Comercio(M)'!AH260","v":732.39999999999964},{"$f":"'[2]EXT Comercio(M)'!AI260","v":1270.3000000000002},{"$f":"'[2]EXT Comercio(M)'!AJ260","v":654.43728729000031},{"$f":"'[2]EXT Comercio(M)'!AK260","v":458.54945306110295},{"$f":"'[2]EXT Comercio(M)'!AL260","v":1367.2000000000003},{"$f":"'[2]EXT Comercio(M)'!AM260","v":1796.3982360000009},{"$f":"'[2]EXT Comercio(M)'!AO260","v":5443.3192743411128},{"$f":"'[2]EXT Comercio(M)'!AP260","v":7239.7175103411137},null,null,{"$f":"'[2]EXT Comercio(M)'!$BS260","v":-2736.800485952881},{"$f":"'[2]EXT Comercio(M)'!$BT260","v":-3279.6254699528799}]
[null,null,"Diciembre ",{"$f":"'[2]REAL IPC(M)'!AD261","v":5.8243157684466969},{"$f":"'[2]REAL IPC(M)'!AE261","v":2.1299999999999955},{"$f":"'[2]REAL IPC(M)'!AF261","v":5.3935540451655601},{"$f":"'[2]REAL IPC(M)'!AG261","v":6.4849624060150299},{"$f":"'[2]REAL IPC(M)'!AH261","v":9.2303838460606329},{"$f":"'[2]REAL IPC(M)'!AI261","v":6.2383050642844422},{"$f":"'[2]REAL IPC(M)'!AJ261","v":4.9273021001615538},null,null,{"$f":"'[2]REAL IMAE(M)'!AG261","v":4.0088012082742317},{"$f":"'[2]REAL IMAE(M)'!AH261","v":2.3142314669636059},{"$f":"'[2]REAL IMAE(M)'!AI261","v":3.5741464371526859},{"$f":"'[2]REAL IMAE(M)'!AJ261","v":7.217102455331144},{"$f":"'[2]REAL IMAE(M)'!AK261","v":5.6580654224751266},{"$f":"'[2]REAL IMAE(M)'!AL261","v":6.6812918335524341},{"$f":"'[2]REAL IMAE(M)'!AM261","v":10.377363187585253},null,null,{"$f":"'[2]EXT ITCER(M)'!C261","v":76.049544904873187},{"$f":"'[2]EXT ITCER(M)'!D261","v":91.366605294777528},{"$f":"'[2]EXT ITCER(M)'!E261","v":67.689493744144954},{"$f":"'[2]EXT ITCER(M)'!F261","v":76.620328943442175},{"$f":"'[2]EXT ITCER(M)'!G261","v":95.029130644405129},{"$f":"'[2]EXT ITCER(M)'!H261","v":93.264825693829252},{"$f":"'[2]EXT ITCER(M)'!I261","v":95.615369250315524},null,null,{"$f":"'[2]EXT TC(M)'!J261","v":-10.933325383047105},{"$f":"'[2]EXT TC(M)'!K261","v":0},{"$f":"'[2]EXT TC(M)'!L261","v":-4.2593998742885582},{"$f":"'[2]EXT TC(M)'!M261","v":-5.292374585841896E-5},{"$f":"'[2]EXT TC(M)'!N261","v":4.9010766278558293},{"$f":"'[2]EXT TC(M)'!O261","v":3.3810388063009968},{"$f":"'[2]EXT TC(M)'!P261","v":0},null,null,{"$f":"'[2]EXT RIN(M)'!C261","v":4627.2341165400003},{"$f":"'[2]EXT RIN(M)'!D261","v":2880.7},{"$f":"'[2]EXT RIN(M)'!E261","v":5953.8343435200004},{"$f":"'[2]EXT RIN(M)'!F261","v":2719.3488686918827},{"$f":"'[2]EXT RIN(M)'!G261","v":1631.6},{"$f":"'[2]EXT RIN(M)'!H261","v":3342.7},{"$f":"'[2]EXT RIN(M)'!I261","v":2546.6231461599996},null,null,{"$f":"'[2]EXT RIN(M)'!P261","v":68.896302701952195},{"$f":"'[2]EXT RIN(M)'!Q261","v":106.78015231749293},{"$f":"'[2]EXT RIN(M)'!R261","v":106.21055299615728},{"$f":"'[2]EXT RIN(M)'!S261","v":80.728690351560502},{"$f":"'[2]EXT RIN(M)'!T261","v":104.0477837213144},{"$f":"'[2]EXT RIN(M)'!U261","v":59.637861692518257},{"$f":"'[2]EXT RIN(M)'!V261","v":215.98626907143822},null,null,{"$f":"+'[2]MONE(M)CAPARD'!AE261","v":2.0559398052843543},{"$f":"'[2]MONE(M)CAPARD'!AF261","v":-3.9165769117786742E-2},{"$f":"'[2]MONE(M)CAPARD'!AG261","v":-5.0813397129211652E-2},{"$f":"'[2]MONE(M)CAPARD'!AH261","v":2.1177052074139526},{"$f":"'[2]MONE(M)CAPARD'!AI261","v":-0.56377088855290269},{"$f":"'[2]MONE(M)CAPARD'!AJ261","v":-0.12077100082386001},{"$f":"'[2]MONE(M)CAPARD'!AK261","v":-2.1036489607390325},null,null,{"$f":"'[2]MONE(M)CAPARD'!AL261","v":1},{"$f":"'[2]MONE(M)CAPARD'!AM261","v":2.09},{"$f":"'[2]MONE(M)CAPARD'!AN261","v":3.08},{"$f":"'[2]MONE(M)CAPARD'!AO261","v":3.72},{"$f":"'[2]MONE(M)CAPARD'!AP261","v":3.29},{"$f":"'[2]MONE(M)CAPARD'!AQ261","v":2.06},{"$f":"'[2]MONE(M)CAPARD'!AR261","v":2.72},null,null,{"$f":"'[2]MONE(M)CAPARD'!J261","v":12.422177394765551},{"$f":"'[2]MONE(M)CAPARD'!K261","v":4.2788602761186771},{"$f":"'[2]MONE(M)CAPARD'!L261","v":7.4543894320781936},{"$f":"'[2]MONE(M)CAPARD'!M261","v":11.715304501323928},{"$f":"'[2]MONE(M)CAPARD'!N261","v":5.7938477778347552},{"$f":"'[2]MONE(M)CAPARD'!O261","v":6.9482423794778336},{"$f":"'[2]MONE(M)CAPARD'!P261","v":0.70782140107774927},null,null,{"$f":"'[2]MONE(M)CAPARD'!Q261","v":9.5399999999999991},{"$f":"'[2]MONE(M)CAPARD'!R261","v":6.5},{"$f":"'[2]MONE(M)CAPARD'!S261","v":7.12},{"$f":"'[2]MONE(M)CAPARD'!T261","v":9.8000000000000007},{"$f":"'[2]MONE(M)CAPARD'!U261","v":9.77},{"$f":"'[2]MONE(M)CAPARD'!V261","v":7.36},{"$f":"'[2]MONE(M)CAPARD'!W261","v":5.67},null,null,{"$f":"'[2]MONE(M)CAPARD'!AS261","v":6.5},{"$f":"'[2]MONE(M)CAPARD'!AT261","v":"n.a."},{"$f":"'[2]MONE(M)CAPARD'!AU261","v":4.5},{"$f":"'[2]MONE(M)CAPARD'!AV261","v":4.5},{"$f":"'[2]MONE(M)CAPARD'!AW261","v":"n.a."},{"$f":"'[2]MONE(M)CAPARD'!AX261","v":5},{"$f":"'[2]MONE(M)CAPARD'!AY261","v":"n.a."},null,null,{"$f":"+'Datos_Regional (M)'!CF254","v":4.8732915685316902},{"$f":"+'Datos_Regional (M)'!CG254","v":-0.33722280891428369},{"$f":"+'Datos_Regional (M)'!CH254","v":2.3312663598876737},{"$f":"+'Datos_Regional (M)'!CI254","v":2.837727702385151},{"$f":"+'Datos_Regional (M)'!CJ254","v":5.6515140688908838},{"$f":"+'Datos_Regional (M)'!CK254","v":20.403388847884152},{"$f":"+'Datos_Regional (M)'!CL254","v":14.799033755551871},null,null,609.61882005249993,374.93666666666667,705.46666666666658,234.90092942249998,286.27940936643068,567.89166666666677,1017.9884786666667,2779.0941588414303,3797.0826375080974,null,null,962.07345269333348,701.34749999999997,1153.0250000000003,593.9732953058334,416.12673300130297,1267.491666666667,1613.8191036666667,5094.0376476671363,6707.856751333803,null,null,-2314.943488825706,-2910.7741138257061,null,null,{"$f":"'[2]EXT Comercio(M)'!C261","v":597.51035140000022},{"$f":"'[2]EXT Comercio(M)'!D261","v":378.89999999999964},{"$f":"'[2]EXT Comercio(M)'!E261","v":893.29999999999973},{"$f":"'[2]EXT Comercio(M)'!F261","v":288.98799155999995},{"$f":"'[2]EXT Comercio(M)'!G261","v":299.25201509819703},{"$f":"'[2]EXT Comercio(M)'!H261","v":545.49999999999955},{"$f":"'[2]EXT Comercio(M)'!I261","v":930.04278399999987},{"$f":"'[2]EXT Comercio(M)'!K261","v":3003.450358058195},{"$f":"'[2]EXT Comercio(M)'!L261","v":3933.4931420581925},null,null,{"$f":"'[2]EXT Comercio(M)'!AG261","v":1125.0688236800013},{"$f":"'[2]EXT Comercio(M)'!AH261","v":757.22999999999956},{"$f":"'[2]EXT Comercio(M)'!AI261","v":1277.9999999999995},{"$f":"'[2]EXT Comercio(M)'!AJ261","v":642.53219153000009},{"$f":"'[2]EXT Comercio(M)'!AK261","v":437.1528523302751},{"$f":"'[2]EXT Comercio(M)'!AL261","v":1324},{"$f":"'[2]EXT Comercio(M)'!AM261","v":1664.6781430000001},{"$f":"'[2]EXT Comercio(M)'!AO261","v":5563.9838675402716},{"$f":"'[2]EXT Comercio(M)'!AP261","v":7228.662010540269},null,null,{"$f":"'[2]EXT Comercio(M)'!$BS261","v":-2560.5335094820766},{"$f":"'[2]EXT Comercio(M)'!$BT261","v":-3295.1688684820765}]
[null,2011,"Enero",{"$f":"'[2]REAL IPC(M)'!AD262","v":4.8352713305312252},{"$f":"'[2]REAL IPC(M)'!AE262","v":2.3197929111907589},{"$f":"'[2]REAL IPC(M)'!AF262","v":4.8383809523809784},{"$f":"'[2]REAL IPC(M)'!AG262","v":6.355140186915885},{"$f":"'[2]REAL IPC(M)'!AH262","v":8.0194207368431236},{"$f":"'[2]REAL IPC(M)'!AI262","v":6.1657923590217392},{"$f":"'[2]REAL IPC(M)'!AJ262","v":4.8076923076923102},null,null,{"$f":"'[2]REAL IMAE(M)'!AG262","v":3.9417684157722612},{"$f":"'[2]REAL IMAE(M)'!AH262","v":3.3398604227928437},{"$f":"'[2]REAL IMAE(M)'!AI262","v":3.84231756836382},{"$f":"'[2]REAL IMAE(M)'!AJ262","v":7.1190991917540316},{"$f":"'[2]REAL IMAE(M)'!AK262","v":5.7283523307452651},{"$f":"'[2]REAL IMAE(M)'!AL262","v":5.7106882606567062},{"$f":"'[2]REAL IMAE(M)'!AM262","v":11.054526646500692},null,null,{"$f":"'[2]EXT ITCER(M)'!C262","v":75.89635136353553},{"$f":"'[2]EXT ITCER(M)'!D262","v":91.092080428966625},{"$f":"'[2]EXT ITCER(M)'!E262","v":67.187450869365989},{"$f":"'[2]EXT ITCER(M)'!F262","v":76.53107547169806},{"$f":"'[2]EXT ITCER(M)'!G262","v":96.179246707551656},{"$f":"'[2]EXT ITCER(M)'!H262","v":92.756746259281101},{"$f":"'[2]EXT ITCER(M)'!I262","v":95.265416400772125},null,null,{"$f":"'[2]EXT TC(M)'!J262","v":-10.228630679775661},{"$f":"'[2]EXT TC(M)'!K262","v":0},{"$f":"'[2]EXT TC(M)'!L262","v":-4.982330580214982},{"$f":"'[2]EXT TC(M)'!M262","v":-5.2923745877221248E-5},{"$f":"'[2]EXT TC(M)'!N262","v":4.9780057250899921},{"$f":"'[2]EXT TC(M)'!O262","v":3.7011908058709526},{"$f":"'[2]EXT TC(M)'!P262","v":0},null,null,{"$f":"'[2]EXT RIN(M)'!C262","v":4633.1754411700003},{"$f":"'[2]EXT RIN(M)'!D262","v":2768.1},{"$f":"'[2]EXT RIN(M)'!E262","v":5910.0665015100003},{"$f":"'[2]EXT RIN(M)'!F262","v":2802.6250040996561},{"$f":"'[2]EXT RIN(M)'!G262","v":1510.4},{"$f":"'[2]EXT RIN(M)'!H262","v":2705.3},{"$f":"'[2]EXT RIN(M)'!I262","v":2922.56265231},null,null,{"$f":"'[2]EXT RIN(M)'!P262","v":67.202666594712284},{"$f":"'[2]EXT RIN(M)'!Q262","v":103.97596018405484},{"$f":"'[2]EXT RIN(M)'!R262","v":102.67929698738673},{"$f":"'[2]EXT RIN(M)'!S262","v":80.71669010293742},{"$f":"'[2]EXT RIN(M)'!T262","v":102.67921119674396},{"$f":"'[2]EXT RIN(M)'!U262","v":53.838460701807634},{"$f":"'[2]EXT RIN(M)'!V262","v":247.13696553377241},null,null,{"$f":"+'[2]MONE(M)CAPARD'!AE262","v":2.7802939148972441},{"$f":"'[2]MONE(M)CAPARD'!AF262","v":-0.3907288119100889},{"$f":"'[2]MONE(M)CAPARD'!AG262","v":0.48800739096820422},{"$f":"'[2]MONE(M)CAPARD'!AH262","v":2.2235500878734658},{"$f":"'[2]MONE(M)CAPARD'!AI262","v":0.10963117536113445},{"$f":"'[2]MONE(M)CAPARD'!AJ262","v":-9.964825455640236E-2},{"$f":"'[2]MONE(M)CAPARD'!AK262","v":-2.0491743119266075},null,null,{"$f":"'[2]MONE(M)CAPARD'!AL262","v":1.0349999999999999},{"$f":"'[2]MONE(M)CAPARD'!AM262","v":1.92},{"$f":"'[2]MONE(M)CAPARD'!AN262","v":3.03},{"$f":"'[2]MONE(M)CAPARD'!AO262","v":3.69},{"$f":"'[2]MONE(M)CAPARD'!AP262","v":3.82},{"$f":"'[2]MONE(M)CAPARD'!AQ262","v":2.1},{"$f":"'[2]MONE(M)CAPARD'!AR262","v":2.66},null,null,{"$f":"'[2]MONE(M)CAPARD'!J262","v":13.301562053006911},{"$f":"'[2]MONE(M)CAPARD'!K262","v":4.1147533326846375},{"$f":"'[2]MONE(M)CAPARD'!L262","v":8.0520311082000777},{"$f":"'[2]MONE(M)CAPARD'!M262","v":11.861072056239019},{"$f":"'[2]MONE(M)CAPARD'!N262","v":8.0398766893009874},{"$f":"'[2]MONE(M)CAPARD'!O262","v":6.5974241658669799},{"$f":"'[2]MONE(M)CAPARD'!P262","v":0.12623853211008976},null,null,{"$f":"'[2]MONE(M)CAPARD'!Q262","v":9.59},{"$f":"'[2]MONE(M)CAPARD'!R262","v":6.53},{"$f":"'[2]MONE(M)CAPARD'!S262","v":7.04},{"$f":"'[2]MONE(M)CAPARD'!T262","v":9.74},{"$f":"'[2]MONE(M)CAPARD'!U262","v":9.2899999999999991},{"$f":"'[2]MONE(M)CAPARD'!V262","v":6.61},{"$f":"'[2]MONE(M)CAPARD'!W262","v":4.9400000000000004},null,null,{"$f":"'[2]MONE(M)CAPARD'!AS262","v":6.5},{"$f":"'[2]MONE(M)CAPARD'!AT262","v":"n.a."},{"$f":"'[2]MONE(M)CAPARD'!AU262","v":4.5},{"$f":"'[2]MONE(M)CAPARD'!AV262","v":4.5},{"$f":"'[2]MONE(M)CAPARD'!AW262","v":"n.a."},{"$f":"'[2]MONE(M)CAPARD'!AX262","v":5},{"$f":"'[2]MONE(M)CAPARD'!AY262","v":"n.a."},null,null,{"$f":"+'Datos_Regional (M)'!CF255","v":4.7256729771370409},{"$f":"+'Datos_Regional (M)'!CG255","v":-0.26516546969647115},{"$f":"+'Datos_Regional (M)'!CH255","v":2.2014088185220215},{"$f":"+'Datos_Regional (M)'!CI255","v":4.5957891430344233},{"$f":"+'Datos_Regional (M)'!CJ255","v":6.4565561600332888},{"$f":"+'Datos_Regional (M)'!CK255","v":19.788831083214141},{"$f":"+'Datos_Regional (M)'!CL255","v":15.243579209077751},null,null,613.15372215333332,381.49499999999989,713.30000000000007,245.53436185249998,293.06670103147309,576.44999999999993,1035.3383879166665,2822.9997850373061,3858.3381729539728,null,null,973.46188723916691,705.57,1175.325,605.0369592466667,428.66285524174373,1279.8916666666669,1659.4215199166665,5167.9483683942435,6827.36988831091,null,null,-2344.9485833569379,-2969.0317153569376,null,null,{"$f":"'[2]EXT Comercio(M)'!C262","v":563.7205165900001},{"$f":"'[2]EXT Comercio(M)'!D262","v":408.65},{"$f":"'[2]EXT Comercio(M)'!E262","v":765.2},{"$f":"'[2]EXT Comercio(M)'!F262","v":344.77293119000001},{"$f":"'[2]EXT Comercio(M)'!G262","v":312.643517244333},{"$f":"'[2]EXT Comercio(M)'!H262","v":495.5},{"$f":"'[2]EXT Comercio(M)'!I262","v":865.62108499999999},{"$f":"'[2]EXT Comercio(M)'!K262","v":2890.4869650243331},{"$f":"'[2]EXT Comercio(M)'!L262","v":3756.1080500243329},null,null,{"$f":"'[2]EXT Comercio(M)'!AG262","v":981.20405686000004},{"$f":"'[2]EXT Comercio(M)'!AH262","v":689.06},{"$f":"'[2]EXT Comercio(M)'!AI262","v":1191.9000000000001},{"$f":"'[2]EXT Comercio(M)'!AJ262","v":640.90426608000007},{"$f":"'[2]EXT Comercio(M)'!AK262","v":458.36262754649078},{"$f":"'[2]EXT Comercio(M)'!AL262","v":1156.2},{"$f":"'[2]EXT Comercio(M)'!AM262","v":1796.5063399999995},{"$f":"'[2]EXT Comercio(M)'!AO262","v":5117.6309504864912},{"$f":"'[2]EXT Comercio(M)'!AP262","v":6914.1372904864911},null,null,{"$f":"'[2]EXT Comercio(M)'!$BS262","v":-2227.1439854621576},{"$f":"'[2]EXT Comercio(M)'!$BT262","v":-3158.0292404621568}]
[null,null,"Febrero",{"$f":"'[2]REAL IPC(M)'!AD263","v":4.5743345812437415},{"$f":"'[2]REAL IPC(M)'!AE263","v":2.3764542109973159},{"$f":"'[2]REAL IPC(M)'!AF263","v":5.184204741379359},{"$f":"'[2]REAL IPC(M)'!AG263","v":6.3573085846867698},{"$f":"'[2]REAL IPC(M)'!AH263","v":7.2231863180537674},{"$f":"'[2]REAL IPC(M)'!AI263","v":7.2920532187053775},{"$f":"'[2]REAL IPC(M)'!AJ263","v":4.9560351718625135},null,null,{"$f":"'[2]REAL IMAE(M)'!AG263","v":3.7633395882571667},{"$f":"'[2]REAL IMAE(M)'!AH263","v":2.8170413040114068},{"$f":"'[2]REAL IMAE(M)'!AI263","v":3.9211766349292367},{"$f":"'[2]REAL IMAE(M)'!AJ263","v":6.4073610144627269},{"$f":"'[2]REAL IMAE(M)'!AK263","v":6.1053937302889052},{"$f":"'[2]REAL IMAE(M)'!AL263","v":4.8222767547960004},{"$f":"'[2]REAL IMAE(M)'!AM263","v":11.609498773196766},null,null,{"$f":"'[2]EXT ITCER(M)'!C263","v":75.104380796630636},{"$f":"'[2]EXT ITCER(M)'!D263","v":91.216254043819248},{"$f":"'[2]EXT ITCER(M)'!E263","v":65.666293886535541},{"$f":"'[2]EXT ITCER(M)'!F263","v":76.241116999108897},{"$f":"'[2]EXT ITCER(M)'!G263","v":96.264194405419502},{"$f":"'[2]EXT ITCER(M)'!H263","v":92.394049157979723},{"$f":"'[2]EXT ITCER(M)'!I263","v":95.207700854309721},null,null,{"$f":"'[2]EXT TC(M)'!J263","v":-9.3760659502612889},{"$f":"'[2]EXT TC(M)'!K263","v":0},{"$f":"'[2]EXT TC(M)'!L263","v":-4.2089590281074303},{"$f":"'[2]EXT TC(M)'!M263","v":-6.7190024562496533E-10},{"$f":"'[2]EXT TC(M)'!N263","v":4.8738887719424291},{"$f":"'[2]EXT TC(M)'!O263","v":3.9666224580017708},{"$f":"'[2]EXT TC(M)'!P263","v":0},null,null,{"$f":"'[2]EXT RIN(M)'!C263","v":4427.5760043199998},{"$f":"'[2]EXT RIN(M)'!D263","v":3376.2},{"$f":"'[2]EXT RIN(M)'!E263","v":6042.4738115600003},{"$f":"'[2]EXT RIN(M)'!F263","v":2912.4082053079055},{"$f":"'[2]EXT RIN(M)'!G263","v":1492.7},{"$f":"'[2]EXT RIN(M)'!H263","v":2635},{"$f":"'[2]EXT RIN(M)'!I263","v":2508.7846144300001},null,null,{"$f":"'[2]EXT RIN(M)'!P263","v":64.20024938705555},{"$f":"'[2]EXT RIN(M)'!Q263","v":128.11775206129857},{"$f":"'[2]EXT RIN(M)'!R263","v":105.35357857464851},{"$f":"'[2]EXT RIN(M)'!S263","v":80.072655322949359},{"$f":"'[2]EXT RIN(M)'!T263","v":99.43368460976005},{"$f":"'[2]EXT RIN(M)'!U263","v":52.814734426019925},{"$f":"'[2]EXT RIN(M)'!V263","v":216.14955556797489},null,null,{"$f":"+'[2]MONE(M)CAPARD'!AE263","v":2.7976897299626713},{"$f":"'[2]MONE(M)CAPARD'!AF263","v":-0.45562645687645748},{"$f":"'[2]MONE(M)CAPARD'!AG263","v":0.13860946040245653},{"$f":"'[2]MONE(M)CAPARD'!AH263","v":2.2120636998254857},{"$f":"'[2]MONE(M)CAPARD'!AI263","v":1.3398686309268018},{"$f":"'[2]MONE(M)CAPARD'!AJ263","v":-0.84074560197540626},{"$f":"'[2]MONE(M)CAPARD'!AK263","v":-2.263838537699927},null,null,{"$f":"'[2]MONE(M)CAPARD'!AL263","v":1.03},{"$f":"'[2]MONE(M)CAPARD'!AM263","v":1.91},{"$f":"'[2]MONE(M)CAPARD'!AN263","v":2.93},{"$f":"'[2]MONE(M)CAPARD'!AO263","v":3.68},{"$f":"'[2]MONE(M)CAPARD'!AP263","v":3.45},{"$f":"'[2]MONE(M)CAPARD'!AQ263","v":2.11},{"$f":"'[2]MONE(M)CAPARD'!AR263","v":2.58},null,null,{"$f":"'[2]MONE(M)CAPARD'!J263","v":13.555587492400624},{"$f":"'[2]MONE(M)CAPARD'!K263","v":3.930147630147629},{"$f":"'[2]MONE(M)CAPARD'!L263","v":7.7823426803933016},{"$f":"'[2]MONE(M)CAPARD'!M263","v":11.868193717277492},{"$f":"'[2]MONE(M)CAPARD'!N263","v":8.5875129370282135},{"$f":"'[2]MONE(M)CAPARD'!O263","v":5.9444726705842239},{"$f":"'[2]MONE(M)CAPARD'!P263","v":0.11811119573495481},null,null,{"$f":"'[2]MONE(M)CAPARD'!Q263","v":9.61},{"$f":"'[2]MONE(M)CAPARD'!R263","v":6.4},{"$f":"'[2]MONE(M)CAPARD'!S263","v":6.9099999999999993},{"$f":"'[2]MONE(M)CAPARD'!T263","v":9.7100000000000009},{"$f":"'[2]MONE(M)CAPARD'!U263","v":10.31},{"$f":"'[2]MONE(M)CAPARD'!V263","v":7.62},{"$f":"'[2]MONE(M)CAPARD'!W263","v":5.08},null,null,{"$f":"'[2]MONE(M)CAPARD'!AS263","v":6.5},{"$f":"'[2]MONE(M)CAPARD'!AT263","v":"n.a."},{"$f":"'[2]MONE(M)CAPARD'!AU263","v":4.5},{"$f":"'[2]MONE(M)CAPARD'!AV263","v":4.5},{"$f":"'[2]MONE(M)CAPARD'!AW263","v":"n.a."},{"$f":"'[2]MONE(M)CAPARD'!AX263","v":5},{"$f":"'[2]MONE(M)CAPARD'!AY263","v":"n.a."},null,null,{"$f":"+'Datos_Regional (M)'!CF256","v":5.9049630909127737},{"$f":"+'Datos_Regional (M)'!CG256","v":0.98042012787240562},{"$f":"+'Datos_Regional (M)'!CH256","v":4.3274836895145441},{"$f":"+'Datos_Regional (M)'!CI256","v":4.8650806652446699},{"$f":"+'Datos_Regional (M)'!CJ256","v":5.4502219293966148},{"$f":"+'Datos_Regional (M)'!CK256","v":18.271011012419436},{"$f":"+'Datos_Regional (M)'!CL256","v":15.544414564792653},null,null,619.48665560333336,388.69666666666654,736.54166666666652,257.86446320833329,300.97600771303536,582.08333333333337,1079.6081506666667,2885.6487931913689,3965.2569438580354,null,null,990.72321631166687,718.24416666666673,1191.2833333333335,613.14115989916661,439.73872025339568,1293.6333333333334,1709.5166319999998,5246.7639297975629,6956.2805617975619,null,null,-2361.115136606194,-2991.023617939527,null,null,{"$f":"'[2]EXT Comercio(M)'!C263","v":651.31266288999984},{"$f":"'[2]EXT Comercio(M)'!D263","v":453.98},{"$f":"'[2]EXT Comercio(M)'!E263","v":901.10000000000014},{"$f":"'[2]EXT Comercio(M)'!F263","v":404.08569721000003},{"$f":"'[2]EXT Comercio(M)'!G263","v":335.53215184186467},{"$f":"'[2]EXT Comercio(M)'!H263","v":605.90000000000009},{"$f":"'[2]EXT Comercio(M)'!I263","v":1311.1814670000001},{"$f":"'[2]EXT Comercio(M)'!K263","v":3351.910511941865},{"$f":"'[2]EXT Comercio(M)'!L263","v":4663.091978941864},null,null,{"$f":"'[2]EXT Comercio(M)'!AG263","v":1013.2204316499998},{"$f":"'[2]EXT Comercio(M)'!AH263","v":758.84000000000015},{"$f":"'[2]EXT Comercio(M)'!AI263","v":1181.4000000000001},{"$f":"'[2]EXT Comercio(M)'!AJ263","v":626.93808236999985},{"$f":"'[2]EXT Comercio(M)'!AK263","v":472.06208406509728},{"$f":"'[2]EXT Comercio(M)'!AL263","v":1189.8000000000002},{"$f":"'[2]EXT Comercio(M)'!AM263","v":1858.0426620000007},{"$f":"'[2]EXT Comercio(M)'!AO263","v":5242.2605980850967},{"$f":"'[2]EXT Comercio(M)'!AP263","v":7100.3032600850966},null,null,{"$f":"'[2]EXT Comercio(M)'!$BS263","v":-1890.3500861432321},{"$f":"'[2]EXT Comercio(M)'!$BT263","v":-2437.2112811432335}]
[null,null,"Marzo",{"$f":"'[2]REAL IPC(M)'!AD264","v":4.5830833926969508},{"$f":"'[2]REAL IPC(M)'!AE264","v":2.7158291208246554},{"$f":"'[2]REAL IPC(M)'!AF264","v":4.8809310252996321},{"$f":"'[2]REAL IPC(M)'!AG264","v":6.605080831408781},{"$f":"'[2]REAL IPC(M)'!AH264","v":6.7409312796723908},{"$f":"'[2]REAL IPC(M)'!AI264","v":7.6067731897950086},{"$f":"'[2]REAL IPC(M)'!AJ264","v":5.4936305732484128},null,null,{"$f":"'[2]REAL IMAE(M)'!AG264","v":3.7105744177355446},{"$f":"'[2]REAL IMAE(M)'!AH264","v":3.3040971277971591},{"$f":"'[2]REAL IMAE(M)'!AI264","v":3.9740657366101702},{"$f":"'[2]REAL IMAE(M)'!AJ264","v":7.1590119916471036},{"$f":"'[2]REAL IMAE(M)'!AK264","v":6.7350672449519218},{"$f":"'[2]REAL IMAE(M)'!AL264","v":4.1538818650609466},{"$f":"'[2]REAL IMAE(M)'!AM264","v":12.279194295227111},null,null,{"$f":"'[2]EXT ITCER(M)'!C264","v":74.988576500604253},{"$f":"'[2]EXT ITCER(M)'!D264","v":91.095373383199899},{"$f":"'[2]EXT ITCER(M)'!E264","v":64.540685467982925},{"$f":"'[2]EXT ITCER(M)'!F264","v":76.104285087400825},{"$f":"'[2]EXT ITCER(M)'!G264","v":96.42655631649798},{"$f":"'[2]EXT ITCER(M)'!H264","v":92.141495344823127},{"$f":"'[2]EXT ITCER(M)'!I264","v":94.833543125992563},null,null,{"$f":"'[2]EXT TC(M)'!J264","v":-7.045339615614048},{"$f":"'[2]EXT TC(M)'!K264","v":0},{"$f":"'[2]EXT TC(M)'!L264","v":-3.9842026796603918},{"$f":"'[2]EXT TC(M)'!M264","v":-1.9092902528327135E-5},{"$f":"'[2]EXT TC(M)'!N264","v":4.7703961665038932},{"$f":"'[2]EXT TC(M)'!O264","v":4.0380413970185058},{"$f":"'[2]EXT TC(M)'!P264","v":0},null,null,{"$f":"'[2]EXT RIN(M)'!C264","v":4641.6707590899996},{"$f":"'[2]EXT RIN(M)'!D264","v":3247.3},{"$f":"'[2]EXT RIN(M)'!E264","v":6191.0129805900006},{"$f":"'[2]EXT RIN(M)'!F264","v":2991.0261667820446},{"$f":"'[2]EXT RIN(M)'!G264","v":1542.2},{"$f":"'[2]EXT RIN(M)'!H264","v":2594.9},{"$f":"'[2]EXT RIN(M)'!I264","v":2176.8393456399999},null,null,{"$f":"'[2]EXT RIN(M)'!P264","v":65.12516901121181},{"$f":"'[2]EXT RIN(M)'!Q264","v":127.33196536984619},{"$f":"'[2]EXT RIN(M)'!R264","v":100.74020615299241},{"$f":"'[2]EXT RIN(M)'!S264","v":81.132322342518449},{"$f":"'[2]EXT RIN(M)'!T264","v":108.02221662533213},{"$f":"'[2]EXT RIN(M)'!U264","v":52.111726470288403},{"$f":"'[2]EXT RIN(M)'!V264","v":185.64508310610927},null,null,{"$f":"+'[2]MONE(M)CAPARD'!AE264","v":2.7890902741415422},{"$f":"'[2]MONE(M)CAPARD'!AF264","v":-0.89161439737527237},{"$f":"'[2]MONE(M)CAPARD'!AG264","v":0.3995664136498549},{"$f":"'[2]MONE(M)CAPARD'!AH264","v":1.8994584055459232},{"$f":"'[2]MONE(M)CAPARD'!AI264","v":1.3439106676747423},{"$f":"'[2]MONE(M)CAPARD'!AJ264","v":-0.74044891987391337},{"$f":"'[2]MONE(M)CAPARD'!AK264","v":-2.6291924528301931},null,null,{"$f":"'[2]MONE(M)CAPARD'!AL264","v":0.98499999999999999},{"$f":"'[2]MONE(M)CAPARD'!AM264","v":1.8},{"$f":"'[2]MONE(M)CAPARD'!AN264","v":2.9},{"$f":"'[2]MONE(M)CAPARD'!AO264","v":3.71},{"$f":"'[2]MONE(M)CAPARD'!AP264","v":3.29},{"$f":"'[2]MONE(M)CAPARD'!AQ264","v":2.69},{"$f":"'[2]MONE(M)CAPARD'!AR264","v":2.72},null,null,{"$f":"'[2]MONE(M)CAPARD'!J264","v":13.421785007615533},{"$f":"'[2]MONE(M)CAPARD'!K264","v":3.4212554279648804},{"$f":"'[2]MONE(M)CAPARD'!L264","v":8.0940061188554981},{"$f":"'[2]MONE(M)CAPARD'!M264","v":11.561286828422871},{"$f":"'[2]MONE(M)CAPARD'!N264","v":9.0980694499956041},{"$f":"'[2]MONE(M)CAPARD'!O264","v":6.4245275694788821},{"$f":"'[2]MONE(M)CAPARD'!P264","v":-0.19934591194969048},null,null,{"$f":"'[2]MONE(M)CAPARD'!Q264","v":9.66},{"$f":"'[2]MONE(M)CAPARD'!R264","v":6.23},{"$f":"'[2]MONE(M)CAPARD'!S264","v":6.8500000000000005},{"$f":"'[2]MONE(M)CAPARD'!T264","v":9.64},{"$f":"'[2]MONE(M)CAPARD'!U264","v":9.36},{"$f":"'[2]MONE(M)CAPARD'!V264","v":7.72},{"$f":"'[2]MONE(M)CAPARD'!W264","v":5.2833333333333332},null,null,{"$f":"'[2]MONE(M)CAPARD'!AS264","v":6.5},{"$f":"'[2]MONE(M)CAPARD'!AT264","v":"n.a."},{"$f":"'[2]MONE(M)CAPARD'!AU264","v":4.75},{"$f":"'[2]MONE(M)CAPARD'!AV264","v":4.5},{"$f":"'[2]MONE(M)CAPARD'!AW264","v":"n.a."},{"$f":"'[2]MONE(M)CAPARD'!AX264","v":6},{"$f":"'[2]MONE(M)CAPARD'!AY264","v":"n.a."},null,null,{"$f":"+'Datos_Regional (M)'!CF257","v":10.486937129435315},{"$f":"+'Datos_Regional (M)'!CG257","v":0.78434086831640215},{"$f":"+'Datos_Regional (M)'!CH257","v":5.1611650946535192},{"$f":"+'Datos_Regional (M)'!CI257","v":4.9804720798303448},{"$f":"+'Datos_Regional (M)'!CJ257","v":6.0429494176976739},{"$f":"+'Datos_Regional (M)'!CK257","v":18.222418199924185},{"$f":"+'Datos_Regional (M)'!CL257","v":16.820923346148664},null,null,625.89381602333333,400.33166666666665,752.31666666666661,268.5351828808333,308.40541333808937,595.81666666666672,1077.5260688333333,2951.2994122422556,4028.8254810755893,null,null,1014.1957799883334,738.24916666666661,1219.5000000000002,624.34861781749987,452.09363527657825,1315.325,1734.1434914999998,5363.7121997490785,7097.8556912490785,null,null,-2412.4127875068225,-3069.0302101734892,null,null,{"$f":"'[2]EXT Comercio(M)'!C264","v":799.92170047000013},{"$f":"'[2]EXT Comercio(M)'!D264","v":531.9899999999999},{"$f":"'[2]EXT Comercio(M)'!E264","v":1051.7999999999997},{"$f":"'[2]EXT Comercio(M)'!F264","v":406.12862825000002},{"$f":"'[2]EXT Comercio(M)'!G264","v":437.93942952965699},{"$f":"'[2]EXT Comercio(M)'!H264","v":785.69999999999993},{"$f":"'[2]EXT Comercio(M)'!I264","v":1171.2562620000001},{"$f":"'[2]EXT Comercio(M)'!K264","v":4013.4797582496558},{"$f":"'[2]EXT Comercio(M)'!L264","v":5184.7360202496566},null,null,{"$f":"'[2]EXT Comercio(M)'!AG264","v":1254.16059647},{"$f":"'[2]EXT Comercio(M)'!AH264","v":947.19},{"$f":"'[2]EXT Comercio(M)'!AI264","v":1481.3999999999999},{"$f":"'[2]EXT Comercio(M)'!AJ264","v":772.79769016},{"$f":"'[2]EXT Comercio(M)'!AK264","v":548.69738453441437},{"$f":"'[2]EXT Comercio(M)'!AL264","v":1530.3000000000002},{"$f":"'[2]EXT Comercio(M)'!AM264","v":1855.5349539999997},{"$f":"'[2]EXT Comercio(M)'!AO264","v":6534.545671164411},{"$f":"'[2]EXT Comercio(M)'!AP264","v":8390.0806251644135},null,null,{"$f":"'[2]EXT Comercio(M)'!$BS264","v":-2521.0659129147589},{"$f":"'[2]EXT Comercio(M)'!$BT264","v":-3205.3446049147587}]
[null,null,"Abril",{"$f":"'[2]REAL IPC(M)'!AD265","v":4.6819017627088382},{"$f":"'[2]REAL IPC(M)'!AE265","v":5.9577003276735185},{"$f":"'[2]REAL IPC(M)'!AF265","v":5.7663019833653424},{"$f":"'[2]REAL IPC(M)'!AG265","v":7.261029411764711},{"$f":"'[2]REAL IPC(M)'!AH265","v":7.11320404300257},{"$f":"'[2]REAL IPC(M)'!AI265","v":8.1603641333098214},{"$f":"'[2]REAL IPC(M)'!AJ265","v":6.2698412698412778},null,null,{"$f":"'[2]REAL IMAE(M)'!AG265","v":3.9636685821606843},{"$f":"'[2]REAL IMAE(M)'!AH265","v":4.9470845390442317},{"$f":"'[2]REAL IMAE(M)'!AI265","v":4.1429166382169731},{"$f":"'[2]REAL IMAE(M)'!AJ265","v":6.6552684120233145},{"$f":"'[2]REAL IMAE(M)'!AK265","v":7.4508863001020886},{"$f":"'[2]REAL IMAE(M)'!AL265","v":3.7069134735083371},{"$f":"'[2]REAL IMAE(M)'!AM265","v":13.181890947265645},null,null,{"$f":"'[2]EXT ITCER(M)'!C265","v":75.130056738848708},{"$f":"'[2]EXT ITCER(M)'!D265","v":88.881331088194273},{"$f":"'[2]EXT ITCER(M)'!E265","v":63.699207315919153},{"$f":"'[2]EXT ITCER(M)'!F265","v":75.609769630395036},{"$f":"'[2]EXT ITCER(M)'!G265","v":96.392073775055877},{"$f":"'[2]EXT ITCER(M)'!H265","v":91.948387947703466},{"$f":"'[2]EXT ITCER(M)'!I265","v":94.282508619679277},null,null,{"$f":"'[2]EXT TC(M)'!J265","v":-3.2837961619829779},{"$f":"'[2]EXT TC(M)'!K265","v":0},{"$f":"'[2]EXT TC(M)'!L265","v":-4.8731705600127846},{"$f":"'[2]EXT TC(M)'!M265","v":-1.9092902490722538E-5},{"$f":"'[2]EXT TC(M)'!N265","v":4.6257057323033335},{"$f":"'[2]EXT TC(M)'!O265","v":3.8814879082742073},{"$f":"'[2]EXT TC(M)'!P265","v":0},null,null,{"$f":"'[2]EXT RIN(M)'!C265","v":4810.6397858399996},{"$f":"'[2]EXT RIN(M)'!D265","v":3383.8},{"$f":"'[2]EXT RIN(M)'!E265","v":6393.1173355999999},{"$f":"'[2]EXT RIN(M)'!F265","v":3105.2064007493946},{"$f":"'[2]EXT RIN(M)'!G265","v":1575.8},{"$f":"'[2]EXT RIN(M)'!H265","v":2568.4},{"$f":"'[2]EXT RIN(M)'!I265","v":2392.6901641499999},null,null,{"$f":"'[2]EXT RIN(M)'!P265","v":66.000735033252809},{"$f":"'[2]EXT RIN(M)'!Q265","v":128.30045313514847},{"$f":"'[2]EXT RIN(M)'!R265","v":102.56136852308271},{"$f":"'[2]EXT RIN(M)'!S265","v":81.541562640754194},{"$f":"'[2]EXT RIN(M)'!T265","v":105.71255556016305},{"$f":"'[2]EXT RIN(M)'!U265","v":52.017905072282922},{"$f":"'[2]EXT RIN(M)'!V265","v":198.6044075068861},null,null,{"$f":"+'[2]MONE(M)CAPARD'!AE265","v":2.2144212115536339},{"$f":"'[2]MONE(M)CAPARD'!AF265","v":-3.9428001124543162},{"$f":"'[2]MONE(M)CAPARD'!AG265","v":-0.46924395961522786},{"$f":"'[2]MONE(M)CAPARD'!AH265","v":1.0991602399314429},{"$f":"'[2]MONE(M)CAPARD'!AI265","v":-0.232005204445344},{"$f":"'[2]MONE(M)CAPARD'!AJ265","v":-0.77696126491776174},{"$f":"'[2]MONE(M)CAPARD'!AK265","v":-3.7356235997012774},null,null,{"$f":"'[2]MONE(M)CAPARD'!AL265","v":0.96},{"$f":"'[2]MONE(M)CAPARD'!AM265","v":1.78},{"$f":"'[2]MONE(M)CAPARD'!AN265","v":2.85},{"$f":"'[2]MONE(M)CAPARD'!AO265","v":3.56},{"$f":"'[2]MONE(M)CAPARD'!AP265","v":3.1},{"$f":"'[2]MONE(M)CAPARD'!AQ265","v":2.89},{"$f":"'[2]MONE(M)CAPARD'!AR265","v":2.2999999999999998},null,null,{"$f":"'[2]MONE(M)CAPARD'!J265","v":12.416757833417117},{"$f":"'[2]MONE(M)CAPARD'!K265","v":8.7109924093336441E-2},{"$f":"'[2]MONE(M)CAPARD'!L265","v":7.2553335729196213},{"$f":"'[2]MONE(M)CAPARD'!M265","v":10.841748071979429},{"$f":"'[2]MONE(M)CAPARD'!N265","v":6.8593952480289664},{"$f":"'[2]MONE(M)CAPARD'!O265","v":5.6301917208641976},{"$f":"'[2]MONE(M)CAPARD'!P265","v":-1.1541448842419795},null,null,{"$f":"'[2]MONE(M)CAPARD'!Q265","v":9.49},{"$f":"'[2]MONE(M)CAPARD'!R265","v":6.05},{"$f":"'[2]MONE(M)CAPARD'!S265","v":6.78},{"$f":"'[2]MONE(M)CAPARD'!T265","v":9.3800000000000008},{"$f":"'[2]MONE(M)CAPARD'!U265","v":9.2100000000000009},{"$f":"'[2]MONE(M)CAPARD'!V265","v":7.44},{"$f":"'[2]MONE(M)CAPARD'!W265","v":5.043333333333333},null,null,{"$f":"'[2]MONE(M)CAPARD'!AS265","v":6.5},{"$f":"'[2]MONE(M)CAPARD'!AT265","v":"n.a."},{"$f":"'[2]MONE(M)CAPARD'!AU265","v":4.75},{"$f":"'[2]MONE(M)CAPARD'!AV265","v":4.5},{"$f":"'[2]MONE(M)CAPARD'!AW265","v":"n.a."},{"$f":"'[2]MONE(M)CAPARD'!AX265","v":6.25},{"$f":"'[2]MONE(M)CAPARD'!AY265","v":"n.a."},null,null,{"$f":"+'Datos_Regional (M)'!CF258","v":12.248126368470214},{"$f":"+'Datos_Regional (M)'!CG258","v":1.8541273725346308},{"$f":"+'Datos_Regional (M)'!CH258","v":4.5230361161579191},{"$f":"+'Datos_Regional (M)'!CI258","v":4.3287331865765832},{"$f":"+'Datos_Regional (M)'!CJ258","v":6.6318456087626876},{"$f":"+'Datos_Regional (M)'!CK258","v":17.41064347457959},{"$f":"+'Datos_Regional (M)'!CL258","v":17.205784273167257},null,null,638.11473090583331,406.73499999999996,771.4666666666667,281.9135747366667,316.11244180383159,611.62499999999989,1088.5678403333334,3025.9674141129981,4114.5352544463321,null,null,1023.7039636366666,744.79666666666662,1238.575,630.63674714083334,459.85715154399969,1330.1916666666668,1763.0665634999998,5427.7611956548326,7190.8277591548331,null,null,-2401.793781541835,-3076.2925047085023,null,null,{"$f":"'[2]EXT Comercio(M)'!C265","v":766.27783389000001},{"$f":"'[2]EXT Comercio(M)'!D265","v":429.46000000000004},{"$f":"'[2]EXT Comercio(M)'!E265","v":936.10000000000036},{"$f":"'[2]EXT Comercio(M)'!F265","v":398.09811063000006},{"$f":"'[2]EXT Comercio(M)'!G265","v":353.40550576683796},{"$f":"'[2]EXT Comercio(M)'!H265","v":773},{"$f":"'[2]EXT Comercio(M)'!I265","v":1077.362134},{"$f":"'[2]EXT Comercio(M)'!K265","v":3656.34145028684},{"$f":"'[2]EXT Comercio(M)'!L265","v":4733.7035842868409},null,null,{"$f":"'[2]EXT Comercio(M)'!AG265","v":1061.7571460199997},{"$f":"'[2]EXT Comercio(M)'!AH265","v":792.98},{"$f":"'[2]EXT Comercio(M)'!AI265","v":1397.0000000000005},{"$f":"'[2]EXT Comercio(M)'!AJ265","v":690.64661004999971},{"$f":"'[2]EXT Comercio(M)'!AK265","v":488.84263383432329},{"$f":"'[2]EXT Comercio(M)'!AL265","v":1561.2000000000003},{"$f":"'[2]EXT Comercio(M)'!AM265","v":1788.465944},{"$f":"'[2]EXT Comercio(M)'!AO265","v":5992.426389904329},{"$f":"'[2]EXT Comercio(M)'!AP265","v":7780.8923339043249},null,null,{"$f":"'[2]EXT Comercio(M)'!$BS265","v":-2336.0849396174854},{"$f":"'[2]EXT Comercio(M)'!$BT265","v":-3047.1887496174859}]
[null,null,"Mayo ",{"$f":"'[2]REAL IPC(M)'!AD266","v":4.8451392400321609},{"$f":"'[2]REAL IPC(M)'!AE266","v":6.6965174129353269},{"$f":"'[2]REAL IPC(M)'!AF266","v":6.396917329348387},{"$f":"'[2]REAL IPC(M)'!AG266","v":7.7064220183486283},{"$f":"'[2]REAL IPC(M)'!AH266","v":8.2891165974087677},{"$f":"'[2]REAL IPC(M)'!AI266","v":8.0300152305078765},{"$f":"'[2]REAL IPC(M)'!AJ266","v":6.4133016627078305},null,null,{"$f":"'[2]REAL IMAE(M)'!AG266","v":4.0577071093264232},{"$f":"'[2]REAL IMAE(M)'!AH266","v":5.1132816727051029},{"$f":"'[2]REAL IMAE(M)'!AI266","v":4.4369814403442804},{"$f":"'[2]REAL IMAE(M)'!AJ266","v":6.520602901561583},{"$f":"'[2]REAL IMAE(M)'!AK266","v":7.8815304450228441},{"$f":"'[2]REAL IMAE(M)'!AL266","v":3.4080792665729054},{"$f":"'[2]REAL IMAE(M)'!AM266","v":14.164961845308643},null,null,{"$f":"'[2]EXT ITCER(M)'!C266","v":75.36231677909916},{"$f":"'[2]EXT ITCER(M)'!D266","v":88.731734581919341},{"$f":"'[2]EXT ITCER(M)'!E266","v":63.977770442111201},{"$f":"'[2]EXT ITCER(M)'!F266","v":75.398079090886156},{"$f":"'[2]EXT ITCER(M)'!G266","v":96.081331436530533},{"$f":"'[2]EXT ITCER(M)'!H266","v":92.174205211679364},{"$f":"'[2]EXT ITCER(M)'!I266","v":94.230619289081091},null,null,{"$f":"'[2]EXT TC(M)'!J266","v":-4.7122869461154782},{"$f":"'[2]EXT TC(M)'!K266","v":0},{"$f":"'[2]EXT TC(M)'!L266","v":-4.2302223726484494},{"$f":"'[2]EXT TC(M)'!M266","v":0},{"$f":"'[2]EXT TC(M)'!N266","v":4.6532049039534495},{"$f":"'[2]EXT TC(M)'!O266","v":3.2505681477565704},{"$f":"'[2]EXT TC(M)'!P266","v":0},null,null,{"$f":"'[2]EXT RIN(M)'!C266","v":4650.3994588400001},{"$f":"'[2]EXT RIN(M)'!D266","v":3319.9},{"$f":"'[2]EXT RIN(M)'!E266","v":6421.0835425200003},{"$f":"'[2]EXT RIN(M)'!F266","v":3056.8442059287977},{"$f":"'[2]EXT RIN(M)'!G266","v":1556.6},{"$f":"'[2]EXT RIN(M)'!H266","v":2599.6999999999998},{"$f":"'[2]EXT RIN(M)'!I266","v":2274.29516298},null,null,{"$f":"'[2]EXT RIN(M)'!P266","v":65.043499402122407},{"$f":"'[2]EXT RIN(M)'!Q266","v":130.87955682531825},{"$f":"'[2]EXT RIN(M)'!R266","v":110.44715444818374},{"$f":"'[2]EXT RIN(M)'!S266","v":81.32993660420307},{"$f":"'[2]EXT RIN(M)'!T266","v":108.65418511495182},{"$f":"'[2]EXT RIN(M)'!U266","v":51.784665227875401},{"$f":"'[2]EXT RIN(M)'!V266","v":182.29563616560074},null,null,{"$f":"+'[2]MONE(M)CAPARD'!AE266","v":2.2937265164598215},{"$f":"'[2]MONE(M)CAPARD'!AF266","v":-4.579828406229602},{"$f":"'[2]MONE(M)CAPARD'!AG266","v":-1.0497647463704267},{"$f":"'[2]MONE(M)CAPARD'!AH266","v":0.55110732538330143},{"$f":"'[2]MONE(M)CAPARD'!AI266","v":-1.6566902967870984},{"$f":"'[2]MONE(M)CAPARD'!AJ266","v":-0.59244204413213419},{"$f":"'[2]MONE(M)CAPARD'!AK266","v":-3.9217857142857064},null,null,{"$f":"'[2]MONE(M)CAPARD'!AL266","v":0.96499999999999997},{"$f":"'[2]MONE(M)CAPARD'!AM266","v":1.81},{"$f":"'[2]MONE(M)CAPARD'!AN266","v":2.81},{"$f":"'[2]MONE(M)CAPARD'!AO266","v":3.55},{"$f":"'[2]MONE(M)CAPARD'!AP266","v":3.14},{"$f":"'[2]MONE(M)CAPARD'!AQ266","v":2.67},{"$f":"'[2]MONE(M)CAPARD'!AR266","v":2.2400000000000002},null,null,{"$f":"'[2]MONE(M)CAPARD'!J266","v":12.184504548867173},{"$f":"'[2]MONE(M)CAPARD'!K266","v":-0.47472722185955707},{"$f":"'[2]MONE(M)CAPARD'!L266","v":6.5538390074466619},{"$f":"'[2]MONE(M)CAPARD'!M266","v":10.309114139693349},{"$f":"'[2]MONE(M)CAPARD'!N266","v":6.2969795033057006},{"$f":"'[2]MONE(M)CAPARD'!O266","v":5.7854150590984226},{"$f":"'[2]MONE(M)CAPARD'!P266","v":-1.2122247023809443},null,null,{"$f":"'[2]MONE(M)CAPARD'!Q266","v":9.51},{"$f":"'[2]MONE(M)CAPARD'!R266","v":6.19},{"$f":"'[2]MONE(M)CAPARD'!S266","v":6.7299999999999995},{"$f":"'[2]MONE(M)CAPARD'!T266","v":9.35},{"$f":"'[2]MONE(M)CAPARD'!U266","v":9.5500000000000007},{"$f":"'[2]MONE(M)CAPARD'!V266","v":7.27},{"$f":"'[2]MONE(M)CAPARD'!W266","v":5.123333333333334},null,null,{"$f":"'[2]MONE(M)CAPARD'!AS266","v":6.5},{"$f":"'[2]MONE(M)CAPARD'!AT266","v":"n.a."},{"$f":"'[2]MONE(M)CAPARD'!AU266","v":4.75},{"$f":"'[2]MONE(M)CAPARD'!AV266","v":4.5},{"$f":"'[2]MONE(M)CAPARD'!AW266","v":"n.a."},{"$f":"'[2]MONE(M)CAPARD'!AX266","v":6.75},{"$f":"'[2]MONE(M)CAPARD'!AY266","v":"n.a."},null,null,{"$f":"+'Datos_Regional (M)'!CF259","v":9.9189117859887599},{"$f":"+'Datos_Regional (M)'!CG259","v":2.3722622544603222},{"$f":"+'Datos_Regional (M)'!CH259","v":6.9443552921351515},{"$f":"+'Datos_Regional (M)'!CI259","v":4.8790685010663415},{"$f":"+'Datos_Regional (M)'!CJ259","v":7.5702476260840923},{"$f":"+'Datos_Regional (M)'!CK259","v":16.658556288729322},{"$f":"+'Datos_Regional (M)'!CL259","v":10.374920475472749},null,null,646.49371293249999,416.16666666666669,783.30000000000007,293.34380198583335,324.93697222543091,624.18333333333328,1122.2147805,3088.4244871437641,4210.6392676437645,null,null,1042.2859923858334,765.42333333333329,1272.3583333333333,649.71770731666663,471.5943839901509,1349.5416666666667,1818.8746549166663,5550.9214170259838,7369.796071942651,null,null,-2462.4969298822207,-3159.156804298887,null,null,{"$f":"'[2]EXT Comercio(M)'!C266","v":769.77254872000003},{"$f":"'[2]EXT Comercio(M)'!D266","v":483.61000000000013},{"$f":"'[2]EXT Comercio(M)'!E266","v":889.89999999999986},{"$f":"'[2]EXT Comercio(M)'!F266","v":409.65587144999995},{"$f":"'[2]EXT Comercio(M)'!G266","v":378.18100814231201},{"$f":"'[2]EXT Comercio(M)'!H266","v":733.2},{"$f":"'[2]EXT Comercio(M)'!I266","v":1396.0269780000001},{"$f":"'[2]EXT Comercio(M)'!K266","v":3664.3194283123103},{"$f":"'[2]EXT Comercio(M)'!L266","v":5060.3464063123101},null,null,{"$f":"'[2]EXT Comercio(M)'!AG266","v":1190.3909222899997},{"$f":"'[2]EXT Comercio(M)'!AH266","v":929.06},{"$f":"'[2]EXT Comercio(M)'!AI266","v":1536.3000000000002},{"$f":"'[2]EXT Comercio(M)'!AJ266","v":847.67623018999984},{"$f":"'[2]EXT Comercio(M)'!AK266","v":568.00216090850165},{"$f":"'[2]EXT Comercio(M)'!AL266","v":1471.2999999999997},{"$f":"'[2]EXT Comercio(M)'!AM266","v":2211.1113709999981},{"$f":"'[2]EXT Comercio(M)'!AO266","v":6542.7293133884996},{"$f":"'[2]EXT Comercio(M)'!AP266","v":8753.840684388495},null,null,{"$f":"'[2]EXT Comercio(M)'!$BS266","v":-2878.4098850761875},{"$f":"'[2]EXT Comercio(M)'!$BT266","v":-3693.4942780761849}]
[null,null,"Junio",{"$f":"'[2]REAL IPC(M)'!AD267","v":5.1759635575723602},{"$f":"'[2]REAL IPC(M)'!AE267","v":6.2698098256735477},{"$f":"'[2]REAL IPC(M)'!AF267","v":6.4274037491371061},{"$f":"'[2]REAL IPC(M)'!AG267","v":7.7204202832343558},{"$f":"'[2]REAL IPC(M)'!AH267","v":9.014750131400449},{"$f":"'[2]REAL IPC(M)'!AI267","v":9.3189135664828093},{"$f":"'[2]REAL IPC(M)'!AJ267","v":6.4873417721518916},null,null,{"$f":"'[2]REAL IMAE(M)'!AG267","v":3.8823843583715845},{"$f":"'[2]REAL IMAE(M)'!AH267","v":5.3727977878285129},{"$f":"'[2]REAL IMAE(M)'!AI267","v":4.8384291731897138},{"$f":"'[2]REAL IMAE(M)'!AJ267","v":7.028043764616493},{"$f":"'[2]REAL IMAE(M)'!AK267","v":7.75312287638197},{"$f":"'[2]REAL IMAE(M)'!AL267","v":3.2259761087620085},{"$f":"'[2]REAL IMAE(M)'!AM267","v":14.728903384331421},null,null,{"$f":"'[2]EXT ITCER(M)'!C267","v":75.309873296940268},{"$f":"'[2]EXT ITCER(M)'!D267","v":88.682112957584224},{"$f":"'[2]EXT ITCER(M)'!E267","v":64.596189895546004},{"$f":"'[2]EXT ITCER(M)'!F267","v":75.078324726633028},{"$f":"'[2]EXT ITCER(M)'!G267","v":96.098663986765104},{"$f":"'[2]EXT ITCER(M)'!H267","v":91.57692265012092},{"$f":"'[2]EXT ITCER(M)'!I267","v":94.090603510048268},null,null,{"$f":"'[2]EXT TC(M)'!J267","v":-5.6044384616352243},{"$f":"'[2]EXT TC(M)'!K267","v":0},{"$f":"'[2]EXT TC(M)'!L267","v":-2.9170512827255362},{"$f":"'[2]EXT TC(M)'!M267","v":0},{"$f":"'[2]EXT TC(M)'!N267","v":4.9834685580174298},{"$f":"'[2]EXT TC(M)'!O267","v":3.5480805622037268},{"$f":"'[2]EXT TC(M)'!P267","v":0},null,null,{"$f":"'[2]EXT RIN(M)'!C267","v":4842.7701523799997},{"$f":"'[2]EXT RIN(M)'!D267","v":3056.3},{"$f":"'[2]EXT RIN(M)'!E267","v":6382.5368342399997},{"$f":"'[2]EXT RIN(M)'!F267","v":3049.1118222188197},{"$f":"'[2]EXT RIN(M)'!G267","v":1603.7},{"$f":"'[2]EXT RIN(M)'!H267","v":2606.5},{"$f":"'[2]EXT RIN(M)'!I267","v":2348.4792351200003},null,null,{"$f":"'[2]EXT RIN(M)'!P267","v":67.626049572486764},{"$f":"'[2]EXT RIN(M)'!Q267","v":128.35076635440234},{"$f":"'[2]EXT RIN(M)'!R267","v":108.80979077670692},{"$f":"'[2]EXT RIN(M)'!S267","v":78.820286530101384},{"$f":"'[2]EXT RIN(M)'!T267","v":109.65738952334358},{"$f":"'[2]EXT RIN(M)'!U267","v":52.163040887208268},{"$f":"'[2]EXT RIN(M)'!V267","v":193.28485455758843},null,null,{"$f":"+'[2]MONE(M)CAPARD'!AE267","v":1.9719680925883141},{"$f":"'[2]MONE(M)CAPARD'!AF267","v":-4.1308155466492806},{"$f":"'[2]MONE(M)CAPARD'!AG267","v":-1.0969014633569611},{"$f":"'[2]MONE(M)CAPARD'!AH267","v":0.3616581849024571},{"$f":"'[2]MONE(M)CAPARD'!AI267","v":-0.71255866490376374},{"$f":"'[2]MONE(M)CAPARD'!AJ267","v":-1.0692692859336996},{"$f":"'[2]MONE(M)CAPARD'!AK267","v":-3.9791976225854317},null,null,{"$f":"'[2]MONE(M)CAPARD'!AL267","v":0.94499999999999995},{"$f":"'[2]MONE(M)CAPARD'!AM267","v":1.88},{"$f":"'[2]MONE(M)CAPARD'!AN267","v":2.74},{"$f":"'[2]MONE(M)CAPARD'!AO267","v":3.52},{"$f":"'[2]MONE(M)CAPARD'!AP267","v":3.33},{"$f":"'[2]MONE(M)CAPARD'!AQ267","v":2.57},{"$f":"'[2]MONE(M)CAPARD'!AR267","v":2.25},null,null,{"$f":"'[2]MONE(M)CAPARD'!J267","v":12.002777075122644},{"$f":"'[2]MONE(M)CAPARD'!K267","v":-0.73380184546557314},{"$f":"'[2]MONE(M)CAPARD'!L267","v":6.5421085224202375},{"$f":"'[2]MONE(M)CAPARD'!M267","v":10.174096692111956},{"$f":"'[2]MONE(M)CAPARD'!N267","v":5.7300502830282962},{"$f":"'[2]MONE(M)CAPARD'!O267","v":5.2882765158486471},{"$f":"'[2]MONE(M)CAPARD'!P267","v":-1.4718573551262937},null,null,{"$f":"'[2]MONE(M)CAPARD'!Q267","v":9.5299999999999994},{"$f":"'[2]MONE(M)CAPARD'!R267","v":5.49},{"$f":"'[2]MONE(M)CAPARD'!S267","v":6.64},{"$f":"'[2]MONE(M)CAPARD'!T267","v":9.3000000000000007},{"$f":"'[2]MONE(M)CAPARD'!U267","v":9.4700000000000006},{"$f":"'[2]MONE(M)CAPARD'!V267","v":7.43},{"$f":"'[2]MONE(M)CAPARD'!W267","v":4.92},null,null,{"$f":"'[2]MONE(M)CAPARD'!AS267","v":5},{"$f":"'[2]MONE(M)CAPARD'!AT267","v":"n.a."},{"$f":"'[2]MONE(M)CAPARD'!AU267","v":4.75},{"$f":"'[2]MONE(M)CAPARD'!AV267","v":4.5},{"$f":"'[2]MONE(M)CAPARD'!AW267","v":"n.a."},{"$f":"'[2]MONE(M)CAPARD'!AX267","v":6.75},{"$f":"'[2]MONE(M)CAPARD'!AY267","v":"n.a."},null,null,{"$f":"+'Datos_Regional (M)'!CF260","v":9.0644657584439727},{"$f":"+'Datos_Regional (M)'!CG260","v":2.3851982295741259},{"$f":"+'Datos_Regional (M)'!CH260","v":7.9500860240427906},{"$f":"+'Datos_Regional (M)'!CI260","v":6.094122587076245},{"$f":"+'Datos_Regional (M)'!CJ260","v":6.5484375648153348},{"$f":"+'Datos_Regional (M)'!CK260","v":15.623846410260356},{"$f":"+'Datos_Regional (M)'!CL260","v":14.375454097222097},null,null,653.75873244416653,422.64583333333331,793.9,303.72113218166669,328.50771683792692,639.84166666666658,1154.7923344999999,3142.3750814637601,4297.1674159637596,null,null,1056.9289948991668,773.30583333333334,1296.5416666666667,670.21215831833331,479.22675476366879,1361.5250000000001,1852.3270678333331,5637.7404079811677,7490.0674758145033,null,null,-2495.3653265174089,-3192.9000598507423,null,null,{"$f":"'[2]EXT Comercio(M)'!C267","v":702.63651548999951},{"$f":"'[2]EXT Comercio(M)'!D267","v":465.74000000000024},{"$f":"'[2]EXT Comercio(M)'!E267","v":875.39999999999964},{"$f":"'[2]EXT Comercio(M)'!F267","v":390.46499148000021},{"$f":"'[2]EXT Comercio(M)'!G267","v":374.38664559518804},{"$f":"'[2]EXT Comercio(M)'!H267","v":798.5},{"$f":"'[2]EXT Comercio(M)'!I267","v":1358.3244870000001},{"$f":"'[2]EXT Comercio(M)'!K267","v":3607.1281525651866},{"$f":"'[2]EXT Comercio(M)'!L267","v":4965.4526395651847},null,null,{"$f":"'[2]EXT Comercio(M)'!AG267","v":1107.2762881000006},{"$f":"'[2]EXT Comercio(M)'!AH267","v":866.35000000000036},{"$f":"'[2]EXT Comercio(M)'!AI267","v":1460.8999999999999},{"$f":"'[2]EXT Comercio(M)'!AJ267","v":846.84194080999987},{"$f":"'[2]EXT Comercio(M)'!AK267","v":526.82343633546657},{"$f":"'[2]EXT Comercio(M)'!AL267","v":1460.1000000000004},{"$f":"'[2]EXT Comercio(M)'!AM267","v":2260.9812200000015},{"$f":"'[2]EXT Comercio(M)'!AO267","v":6268.2916652454624},{"$f":"'[2]EXT Comercio(M)'!AP267","v":8529.2728852454675},null,null,{"$f":"'[2]EXT Comercio(M)'!$BS267","v":-2661.1635126802776},{"$f":"'[2]EXT Comercio(M)'!$BT267","v":-3563.8202456802792}]
[null,null,"Julio",{"$f":"'[2]REAL IPC(M)'!AD268","v":5.1938669485476003},{"$f":"'[2]REAL IPC(M)'!AE268","v":6.526044761338869},{"$f":"'[2]REAL IPC(M)'!AF268","v":7.0347137869008787},{"$f":"'[2]REAL IPC(M)'!AG268","v":7.7621425329096656},{"$f":"'[2]REAL IPC(M)'!AH268","v":8.456406866099897},{"$f":"'[2]REAL IPC(M)'!AI268","v":9.8712537645098148},{"$f":"'[2]REAL IPC(M)'!AJ268","v":5.3990610328638553},null,null,{"$f":"'[2]REAL IMAE(M)'!AG268","v":3.6467828766276313},{"$f":"'[2]REAL IMAE(M)'!AH268","v":5.482653514782216},{"$f":"'[2]REAL IMAE(M)'!AI268","v":5.1748482530521489},{"$f":"'[2]REAL IMAE(M)'!AJ268","v":7.4959939482791311},{"$f":"'[2]REAL IMAE(M)'!AK268","v":7.1883407348611854},{"$f":"'[2]REAL IMAE(M)'!AL268","v":3.0656467101763054},{"$f":"'[2]REAL IMAE(M)'!AM268","v":14.88752635155792},null,null,{"$f":"'[2]EXT ITCER(M)'!C268","v":75.132529876097806},{"$f":"'[2]EXT ITCER(M)'!D268","v":88.683022904884552},{"$f":"'[2]EXT ITCER(M)'!E268","v":63.986936347484708},{"$f":"'[2]EXT ITCER(M)'!F268","v":74.677918999742445},{"$f":"'[2]EXT ITCER(M)'!G268","v":96.486628549046713},{"$f":"'[2]EXT ITCER(M)'!H268","v":91.077230788059182},{"$f":"'[2]EXT ITCER(M)'!I268","v":94.267089372092215},null,null,{"$f":"'[2]EXT TC(M)'!J268","v":-3.7199375118160414},{"$f":"'[2]EXT TC(M)'!K268","v":0},{"$f":"'[2]EXT TC(M)'!L268","v":-3.1080200228453645},{"$f":"'[2]EXT TC(M)'!M268","v":-0.12008404295293887},{"$f":"'[2]EXT TC(M)'!N268","v":5.0907423974236732},{"$f":"'[2]EXT TC(M)'!O268","v":3.3921981074132774},{"$f":"'[2]EXT TC(M)'!P268","v":0},null,null,{"$f":"'[2]EXT RIN(M)'!C268","v":4806.5703396600002},{"$f":"'[2]EXT RIN(M)'!D268","v":2877.2},{"$f":"'[2]EXT RIN(M)'!E268","v":6333.8110733200001},{"$f":"'[2]EXT RIN(M)'!F268","v":3105.83635293826},{"$f":"'[2]EXT RIN(M)'!G268","v":1771.4},{"$f":"'[2]EXT RIN(M)'!H268","v":3239.2},{"$f":"'[2]EXT RIN(M)'!I268","v":2115.7969825499999},null,null,{"$f":"'[2]EXT RIN(M)'!P268","v":65.153271663029017},{"$f":"'[2]EXT RIN(M)'!Q268","v":101.30329584280456},{"$f":"'[2]EXT RIN(M)'!R268","v":107.67193611978567},{"$f":"'[2]EXT RIN(M)'!S268","v":79.630913681096331},{"$f":"'[2]EXT RIN(M)'!T268","v":119.24490585722826},{"$f":"'[2]EXT RIN(M)'!U268","v":66.494955213824852},{"$f":"'[2]EXT RIN(M)'!V268","v":169.05792700871592},null,null,{"$f":"+'[2]MONE(M)CAPARD'!AE268","v":1.9546130502628019},{"$f":"'[2]MONE(M)CAPARD'!AF268","v":-4.3614167518824862},{"$f":"'[2]MONE(M)CAPARD'!AG268","v":-1.676758617278163},{"$f":"'[2]MONE(M)CAPARD'!AH268","v":0.21144481887110667},{"$f":"'[2]MONE(M)CAPARD'!AI268","v":-0.2471461881621532},{"$f":"'[2]MONE(M)CAPARD'!AJ268","v":-0.84758636367779883},{"$f":"'[2]MONE(M)CAPARD'!AK268","v":-2.8833853006681567},null,null,{"$f":"'[2]MONE(M)CAPARD'!AL268","v":0.92999999999999994},{"$f":"'[2]MONE(M)CAPARD'!AM268","v":1.88},{"$f":"'[2]MONE(M)CAPARD'!AN268","v":2.71},{"$f":"'[2]MONE(M)CAPARD'!AO268","v":3.56},{"$f":"'[2]MONE(M)CAPARD'!AP268","v":3.2063541321037601},{"$f":"'[2]MONE(M)CAPARD'!AQ268","v":2.62},{"$f":"'[2]MONE(M)CAPARD'!AR268","v":2.36},null,null,{"$f":"'[2]MONE(M)CAPARD'!J268","v":11.841120982409496},{"$f":"'[2]MONE(M)CAPARD'!K268","v":-0.9256372594589477},{"$f":"'[2]MONE(M)CAPARD'!L268","v":5.9189079775672226},{"$f":"'[2]MONE(M)CAPARD'!M268","v":9.7231339511373243},{"$f":"'[2]MONE(M)CAPARD'!N268","v":6.6667358360936015},{"$f":"'[2]MONE(M)CAPARD'!O268","v":6.3517489756218968},{"$f":"'[2]MONE(M)CAPARD'!P268","v":-0.12244988864143105},null,null,{"$f":"'[2]MONE(M)CAPARD'!Q268","v":9.51},{"$f":"'[2]MONE(M)CAPARD'!R268","v":5.54},{"$f":"'[2]MONE(M)CAPARD'!S268","v":6.5699999999999994},{"$f":"'[2]MONE(M)CAPARD'!T268","v":9.16},{"$f":"'[2]MONE(M)CAPARD'!U268","v":9.3012276764760706},{"$f":"'[2]MONE(M)CAPARD'!V268","v":7.51},{"$f":"'[2]MONE(M)CAPARD'!W268","v":5.27},null,null,{"$f":"'[2]MONE(M)CAPARD'!AS268","v":5},{"$f":"'[2]MONE(M)CAPARD'!AT268","v":"n.a."},{"$f":"'[2]MONE(M)CAPARD'!AU268","v":5},{"$f":"'[2]MONE(M)CAPARD'!AV268","v":4.5},{"$f":"'[2]MONE(M)CAPARD'!AW268","v":"n.a."},{"$f":"'[2]MONE(M)CAPARD'!AX268","v":6.75},{"$f":"'[2]MONE(M)CAPARD'!AY268","v":"n.a."},null,null,{"$f":"+'Datos_Regional (M)'!CF261","v":11.188723328922091},{"$f":"+'Datos_Regional (M)'!CG261","v":1.9031267247356265},{"$f":"+'Datos_Regional (M)'!CH261","v":8.5819012190139645},{"$f":"+'Datos_Regional (M)'!CI261","v":7.2561536595616483},{"$f":"+'Datos_Regional (M)'!CJ261","v":7.264639259770922},{"$f":"+'Datos_Regional (M)'!CK261","v":16.368136076046035},{"$f":"+'Datos_Regional (M)'!CL261","v":15.733142299677215},null,null,656.51666120416655,426.70833333333331,805.43333333333339,309.26457862833337,333.13709653171696,652.01666666666665,1205.3234183333334,3183.0766696975497,4388.400088030884,null,null,1069.1905433833335,790.30583333333334,1303.875,688.07998835500018,488.53152367446114,1370.1750000000002,1925.8646934999997,5710.1578887461283,7636.0225822461289,null,null,-2527.0812190485776,-3247.6224942152444,null,null,{"$f":"'[2]EXT Comercio(M)'!C268","v":646.31679642000017},{"$f":"'[2]EXT Comercio(M)'!D268","v":471.72999999999956},{"$f":"'[2]EXT Comercio(M)'!E268","v":823.90000000000077},{"$f":"'[2]EXT Comercio(M)'!F268","v":275.3172086300001},{"$f":"'[2]EXT Comercio(M)'!G268","v":352.42025039182903},{"$f":"'[2]EXT Comercio(M)'!H268","v":732.6},{"$f":"'[2]EXT Comercio(M)'!I268","v":1439.9002130000001},{"$f":"'[2]EXT Comercio(M)'!K268","v":3302.2842554418312},{"$f":"'[2]EXT Comercio(M)'!L268","v":4742.184468441832},null,null,{"$f":"'[2]EXT Comercio(M)'!AG268","v":1224.69974458},{"$f":"'[2]EXT Comercio(M)'!AH268","v":912.61000000000058},{"$f":"'[2]EXT Comercio(M)'!AI268","v":1328.3999999999994},{"$f":"'[2]EXT Comercio(M)'!AJ268","v":772.08166600999994},{"$f":"'[2]EXT Comercio(M)'!AK268","v":564.66606447243998},{"$f":"'[2]EXT Comercio(M)'!AL268","v":1478.3000000000004},{"$f":"'[2]EXT Comercio(M)'!AM268","v":2401.360716000001},{"$f":"'[2]EXT Comercio(M)'!AO268","v":6280.7574750624481},{"$f":"'[2]EXT Comercio(M)'!AP268","v":8682.1181910624509},null,null,{"$f":"'[2]EXT Comercio(M)'!$BS268","v":-2978.4732196206096},{"$f":"'[2]EXT Comercio(M)'!$BT268","v":-3939.9337226206117}]
[null,null,"Agosto",{"$f":"'[2]REAL IPC(M)'!AD269","v":5.2518141392544386},{"$f":"'[2]REAL IPC(M)'!AE269","v":6.824719769864096},{"$f":"'[2]REAL IPC(M)'!AF269","v":7.6300264410365397},{"$f":"'[2]REAL IPC(M)'!AG269","v":7.6818798011748752},{"$f":"'[2]REAL IPC(M)'!AH269","v":9.6949778343574202},{"$f":"'[2]REAL IPC(M)'!AI269","v":10.175145291165828},{"$f":"'[2]REAL IPC(M)'!AJ269","v":5.2918287937743402},null,null,{"$f":"'[2]REAL IMAE(M)'!AG269","v":3.5645452283943642},{"$f":"'[2]REAL IMAE(M)'!AH269","v":4.5487339923469277},{"$f":"'[2]REAL IMAE(M)'!AI269","v":5.2488664846808408},{"$f":"'[2]REAL IMAE(M)'!AJ269","v":7.8163378871845133},{"$f":"'[2]REAL IMAE(M)'!AK269","v":6.4476662516203724},{"$f":"'[2]REAL IMAE(M)'!AL269","v":2.8457983370938331},{"$f":"'[2]REAL IMAE(M)'!AM269","v":14.885860381784541},null,null,{"$f":"'[2]EXT ITCER(M)'!C269","v":75.294382952137454},{"$f":"'[2]EXT ITCER(M)'!D269","v":88.863638077306689},{"$f":"'[2]EXT ITCER(M)'!E269","v":64.38676831194978},{"$f":"'[2]EXT ITCER(M)'!F269","v":74.536057981910716},{"$f":"'[2]EXT ITCER(M)'!G269","v":96.571265365129378},{"$f":"'[2]EXT ITCER(M)'!H269","v":90.955216351305637},{"$f":"'[2]EXT ITCER(M)'!I269","v":94.145096787662183},null,null,{"$f":"'[2]EXT TC(M)'!J269","v":-1.3129907804244254},{"$f":"'[2]EXT TC(M)'!K269","v":0},{"$f":"'[2]EXT TC(M)'!L269","v":-2.3143750000000018},{"$f":"'[2]EXT TC(M)'!M269","v":-0.24655420091285735},{"$f":"'[2]EXT TC(M)'!N269","v":4.989431298042116},{"$f":"'[2]EXT TC(M)'!O269","v":3.1683431319135575},{"$f":"'[2]EXT TC(M)'!P269","v":0},null,null,{"$f":"'[2]EXT RIN(M)'!C269","v":4808.17325514},{"$f":"'[2]EXT RIN(M)'!D269","v":2760.9},{"$f":"'[2]EXT RIN(M)'!E269","v":6398.5615988},{"$f":"'[2]EXT RIN(M)'!F269","v":2709.512438380465},{"$f":"'[2]EXT RIN(M)'!G269","v":1584.1},{"$f":"'[2]EXT RIN(M)'!H269","v":3032.9759568159898},{"$f":"'[2]EXT RIN(M)'!I269","v":1914.01566071},null,null,{"$f":"'[2]EXT RIN(M)'!P269","v":65.038266127030411},{"$f":"'[2]EXT RIN(M)'!Q269","v":101.89319317006704},{"$f":"'[2]EXT RIN(M)'!R269","v":109.5841152908074},{"$f":"'[2]EXT RIN(M)'!S269","v":77.056359900959066},{"$f":"'[2]EXT RIN(M)'!T269","v":107.80874250008634},{"$f":"'[2]EXT RIN(M)'!U269","v":62.302786062016544},{"$f":"'[2]EXT RIN(M)'!V269","v":152.47030115650782},null,null,{"$f":"+'[2]MONE(M)CAPARD'!AE269","v":1.8984811588157922},{"$f":"'[2]MONE(M)CAPARD'!AF269","v":-4.6568994335592864},{"$f":"'[2]MONE(M)CAPARD'!AG269","v":-2.211303406434078},{"$f":"'[2]MONE(M)CAPARD'!AH269","v":0.18398657154846867},{"$f":"'[2]MONE(M)CAPARD'!AI269","v":-1.2556468776968459},{"$f":"'[2]MONE(M)CAPARD'!AJ269","v":-0.97585103094212722},{"$f":"'[2]MONE(M)CAPARD'!AK269","v":-3.0694013303769596},null,null,{"$f":"'[2]MONE(M)CAPARD'!AL269","v":0.91499999999999992},{"$f":"'[2]MONE(M)CAPARD'!AM269","v":1.85},{"$f":"'[2]MONE(M)CAPARD'!AN269","v":2.69},{"$f":"'[2]MONE(M)CAPARD'!AO269","v":3.53},{"$f":"'[2]MONE(M)CAPARD'!AP269","v":3.11},{"$f":"'[2]MONE(M)CAPARD'!AQ269","v":2.9},{"$f":"'[2]MONE(M)CAPARD'!AR269","v":2.06},null,null,{"$f":"'[2]MONE(M)CAPARD'!J269","v":11.9600654522597},{"$f":"'[2]MONE(M)CAPARD'!K269","v":-1.3992264834246404},{"$f":"'[2]MONE(M)CAPARD'!L269","v":5.4073883946798462},{"$f":"'[2]MONE(M)CAPARD'!M269","v":9.8792110784725136},{"$f":"'[2]MONE(M)CAPARD'!N269","v":5.0899483651147257},{"$f":"'[2]MONE(M)CAPARD'!O269","v":5.8042625602481781},{"$f":"'[2]MONE(M)CAPARD'!P269","v":0.30218033998519817},null,null,{"$f":"'[2]MONE(M)CAPARD'!Q269","v":9.5399999999999991},{"$f":"'[2]MONE(M)CAPARD'!R269","v":5.33},{"$f":"'[2]MONE(M)CAPARD'!S269","v":6.47},{"$f":"'[2]MONE(M)CAPARD'!T269","v":9.16},{"$f":"'[2]MONE(M)CAPARD'!U269","v":9.61},{"$f":"'[2]MONE(M)CAPARD'!V269","v":7.52},{"$f":"'[2]MONE(M)CAPARD'!W269","v":5.61},null,null,{"$f":"'[2]MONE(M)CAPARD'!AS269","v":5},{"$f":"'[2]MONE(M)CAPARD'!AT269","v":"n.a."},{"$f":"'[2]MONE(M)CAPARD'!AU269","v":5},{"$f":"'[2]MONE(M)CAPARD'!AV269","v":4.5},{"$f":"'[2]MONE(M)CAPARD'!AW269","v":"n.a."},{"$f":"'[2]MONE(M)CAPARD'!AX269","v":6.75},{"$f":"'[2]MONE(M)CAPARD'!AY269","v":"n.a."},null,null,{"$f":"+'Datos_Regional (M)'!CF262","v":12.781213977722183},{"$f":"+'Datos_Regional (M)'!CG262","v":1.9043279685367231},{"$f":"+'Datos_Regional (M)'!CH262","v":8.4466687554852093},{"$f":"+'Datos_Regional (M)'!CI262","v":8.3402707884963956},{"$f":"+'Datos_Regional (M)'!CJ262","v":9.2512799660430911},{"$f":"+'Datos_Regional (M)'!CK262","v":15.268418555126217},{"$f":"+'Datos_Regional (M)'!CL262","v":16.596655138466907},null,null,659.72244748249989,430.03166666666658,824.25,311.76668287000001,339.17054849848466,660.52499999999998,1248.7678185,3225.466345517651,4474.2341640176519,null,null,1094.5284735875002,805.39,1330.0166666666667,703.30198733583336,494.82104632745126,1385.9083333333335,1980.2181778333331,5813.9665072507851,7794.1846850841175,null,null,-2588.5001617331332,-3319.950521066467,null,null,{"$f":"'[2]EXT Comercio(M)'!C269","v":612.8243929399996},{"$f":"'[2]EXT Comercio(M)'!D269","v":420.95000000000027},{"$f":"'[2]EXT Comercio(M)'!E269","v":851.69999999999982},{"$f":"'[2]EXT Comercio(M)'!F269","v":244.10102769000014},{"$f":"'[2]EXT Comercio(M)'!G269","v":366.17992448610505},{"$f":"'[2]EXT Comercio(M)'!H269","v":696.9},{"$f":"'[2]EXT Comercio(M)'!I269","v":1507.7044960000001},{"$f":"'[2]EXT Comercio(M)'!K269","v":3192.6553451161053},{"$f":"'[2]EXT Comercio(M)'!L269","v":4700.3598411161074},null,null,{"$f":"'[2]EXT Comercio(M)'!AG269","v":1251.4969767900004},{"$f":"'[2]EXT Comercio(M)'!AH269","v":857.29999999999927},{"$f":"'[2]EXT Comercio(M)'!AI269","v":1503.4},{"$f":"'[2]EXT Comercio(M)'!AJ269","v":761.66767481999977},{"$f":"'[2]EXT Comercio(M)'!AK269","v":526.74755298695402},{"$f":"'[2]EXT Comercio(M)'!AL269","v":1494.8000000000004},{"$f":"'[2]EXT Comercio(M)'!AM269","v":2455.9448689999995},{"$f":"'[2]EXT Comercio(M)'!AO269","v":6395.4122045969489},{"$f":"'[2]EXT Comercio(M)'!AP269","v":8851.3570735969479},null,null,{"$f":"'[2]EXT Comercio(M)'!$BS269","v":-3202.7568594808545},{"$f":"'[2]EXT Comercio(M)'!$BT269","v":-4150.997232480855}]
[null,null,"Setiembre",{"$f":"'[2]REAL IPC(M)'!AD270","v":5.1747094413399868},{"$f":"'[2]REAL IPC(M)'!AE270","v":6.2209474829393789},{"$f":"'[2]REAL IPC(M)'!AF270","v":7.2469201160032162},{"$f":"'[2]REAL IPC(M)'!AG270","v":6.8283917340521194},{"$f":"'[2]REAL IPC(M)'!AH270","v":9.4958588830837414},{"$f":"'[2]REAL IPC(M)'!AI270","v":9.5674438332368226},{"$f":"'[2]REAL IPC(M)'!AJ270","v":6.0700389105058452},null,null,{"$f":"'[2]REAL IMAE(M)'!AG270","v":3.8228813049938277},{"$f":"'[2]REAL IMAE(M)'!AH270","v":3.2613678388485701},{"$f":"'[2]REAL IMAE(M)'!AI270","v":4.984176716586278},{"$f":"'[2]REAL IMAE(M)'!AJ270","v":7.476801444984793},{"$f":"'[2]REAL IMAE(M)'!AK270","v":5.8453129433950188},{"$f":"'[2]REAL IMAE(M)'!AL270","v":2.595681017627363},{"$f":"'[2]REAL IMAE(M)'!AM270","v":14.662328654013701},null,null,{"$f":"'[2]EXT ITCER(M)'!C270","v":76.377865420144374},{"$f":"'[2]EXT ITCER(M)'!D270","v":89.297079150578341},{"$f":"'[2]EXT ITCER(M)'!E270","v":64.77634311252524},{"$f":"'[2]EXT ITCER(M)'!F270","v":75.155144785028369},{"$f":"'[2]EXT ITCER(M)'!G270","v":96.853000200923745},{"$f":"'[2]EXT ITCER(M)'!H270","v":91.157504684692185},{"$f":"'[2]EXT ITCER(M)'!I270","v":93.657317727720184},null,null,{"$f":"'[2]EXT TC(M)'!J270","v":8.6986594296586284E-2},{"$f":"'[2]EXT TC(M)'!K270","v":0},{"$f":"'[2]EXT TC(M)'!L270","v":-2.8063741898372121},{"$f":"'[2]EXT TC(M)'!M270","v":0.15345468809814744},{"$f":"'[2]EXT TC(M)'!N270","v":4.8885737246379186},{"$f":"'[2]EXT TC(M)'!O270","v":3.1388655308817031},{"$f":"'[2]EXT TC(M)'!P270","v":0},null,null,{"$f":"'[2]EXT RIN(M)'!C270","v":4762.9319688599999},{"$f":"'[2]EXT RIN(M)'!D270","v":2662},{"$f":"'[2]EXT RIN(M)'!E270","v":6303},{"$f":"'[2]EXT RIN(M)'!F270","v":2534.7089758304983},{"$f":"'[2]EXT RIN(M)'!G270","v":1534.4},{"$f":"'[2]EXT RIN(M)'!H270","v":2912.3201727212545},{"$f":"'[2]EXT RIN(M)'!I270","v":1798.1285319399999},null,null,{"$f":"'[2]EXT RIN(M)'!P270","v":65.49881517605229},{"$f":"'[2]EXT RIN(M)'!Q270","v":101.5097574443031},{"$f":"'[2]EXT RIN(M)'!R270","v":108.9735787298425},{"$f":"'[2]EXT RIN(M)'!S270","v":74.856741592929424},{"$f":"'[2]EXT RIN(M)'!T270","v":108.33218624357261},{"$f":"'[2]EXT RIN(M)'!U270","v":57.733585596091885},{"$f":"'[2]EXT RIN(M)'!V270","v":153.46975087639581},null,null,{"$f":"+'[2]MONE(M)CAPARD'!AE270","v":2.4485834782328086},{"$f":"'[2]MONE(M)CAPARD'!AF270","v":-3.8419422718808254},{"$f":"'[2]MONE(M)CAPARD'!AG270","v":-1.8713079255165916},{"$f":"'[2]MONE(M)CAPARD'!AH270","v":0.93758620689654426},{"$f":"'[2]MONE(M)CAPARD'!AI270","v":-3.0390597351799333},{"$f":"'[2]MONE(M)CAPARD'!AJ270","v":-0.46313376992636485},{"$f":"'[2]MONE(M)CAPARD'!AK270","v":-3.7145634629493847},null,null,{"$f":"'[2]MONE(M)CAPARD'!AL270","v":0.93499999999999994},{"$f":"'[2]MONE(M)CAPARD'!AM270","v":2.14},{"$f":"'[2]MONE(M)CAPARD'!AN270","v":2.66},{"$f":"'[2]MONE(M)CAPARD'!AO270","v":3.63},{"$f":"'[2]MONE(M)CAPARD'!AP270","v":3.83},{"$f":"'[2]MONE(M)CAPARD'!AQ270","v":2.81},{"$f":"'[2]MONE(M)CAPARD'!AR270","v":2.13},null,null,{"$f":"'[2]MONE(M)CAPARD'!J270","v":12.108700491122324},{"$f":"'[2]MONE(M)CAPARD'!K270","v":-0.55633798882682139},{"$f":"'[2]MONE(M)CAPARD'!L270","v":5.8398692262885943},{"$f":"'[2]MONE(M)CAPARD'!M270","v":10.700908326324637},{"$f":"'[2]MONE(M)CAPARD'!N270","v":7.3735605046797152},{"$f":"'[2]MONE(M)CAPARD'!O270","v":6.5736280000522491},{"$f":"'[2]MONE(M)CAPARD'!P270","v":-0.54684519442407253},null,null,{"$f":"'[2]MONE(M)CAPARD'!Q270","v":9.5399999999999991},{"$f":"'[2]MONE(M)CAPARD'!R270","v":5.63},{"$f":"'[2]MONE(M)CAPARD'!S270","v":6.419999999999999},{"$f":"'[2]MONE(M)CAPARD'!T270","v":9.17},{"$f":"'[2]MONE(M)CAPARD'!U270","v":9.81},{"$f":"'[2]MONE(M)CAPARD'!V270","v":7.04},{"$f":"'[2]MONE(M)CAPARD'!W270","v":5.49},null,null,{"$f":"'[2]MONE(M)CAPARD'!AS270","v":5},{"$f":"'[2]MONE(M)CAPARD'!AT270","v":"n.a."},{"$f":"'[2]MONE(M)CAPARD'!AU270","v":5.5},{"$f":"'[2]MONE(M)CAPARD'!AV270","v":5},{"$f":"'[2]MONE(M)CAPARD'!AW270","v":"n.a."},{"$f":"'[2]MONE(M)CAPARD'!AX270","v":6.75},{"$f":"'[2]MONE(M)CAPARD'!AY270","v":"n.a."},null,null,{"$f":"+'Datos_Regional (M)'!CF263","v":13.894679281044041},{"$f":"+'Datos_Regional (M)'!CG263","v":2.9328333948684948},{"$f":"+'Datos_Regional (M)'!CH263","v":10.624365865542229},{"$f":"+'Datos_Regional (M)'!CI263","v":9.7869655099460218},{"$f":"+'Datos_Regional (M)'!CJ263","v":11.766833792486974},{"$f":"+'Datos_Regional (M)'!CK263","v":15.697645493323131},{"$f":"+'Datos_Regional (M)'!CL263","v":16.385830525640532},null,null,666.95797121499982,436.09,841.80000000000018,315.9670704483334,344.23252377836656,673.38333333333321,1287.8131789166666,3278.4308987750323,4566.2440776917001,null,null,1113.3824328108335,815.34666666666669,1353.875,716.89055940333321,501.61826337667429,1398.9583333333337,2027.1554517499999,5900.0712555908394,7927.2267073408393,null,null,-2621.6403568158089,-3360.9826296491424,null,null,{"$f":"'[2]EXT Comercio(M)'!C270","v":661.99377577999985},{"$f":"'[2]EXT Comercio(M)'!D270","v":438.77},{"$f":"'[2]EXT Comercio(M)'!E270","v":818.49999999999909},{"$f":"'[2]EXT Comercio(M)'!F270","v":246.92466401000001},{"$f":"'[2]EXT Comercio(M)'!G270","v":354.31607784168705},{"$f":"'[2]EXT Comercio(M)'!H270","v":718.59999999999991},{"$f":"'[2]EXT Comercio(M)'!I270","v":1662.122586},{"$f":"'[2]EXT Comercio(M)'!K270","v":3239.1045176316875},{"$f":"'[2]EXT Comercio(M)'!L270","v":4901.2271036316888},null,null,{"$f":"'[2]EXT Comercio(M)'!AG270","v":1146.45461346},{"$f":"'[2]EXT Comercio(M)'!AH270","v":835.13000000000011},{"$f":"'[2]EXT Comercio(M)'!AI270","v":1418.5000000000009},{"$f":"'[2]EXT Comercio(M)'!AJ270","v":742.28266302999964},{"$f":"'[2]EXT Comercio(M)'!AK270","v":499.30728326817609},{"$f":"'[2]EXT Comercio(M)'!AL270","v":1442.3000000000011},{"$f":"'[2]EXT Comercio(M)'!AM270","v":2384.5169730000007},{"$f":"'[2]EXT Comercio(M)'!AO270","v":6083.9745597581787},{"$f":"'[2]EXT Comercio(M)'!AP270","v":8468.4915327581766},null,null,{"$f":"'[2]EXT Comercio(M)'!$BS270","v":-2844.8700421264948},{"$f":"'[2]EXT Comercio(M)'!$BT270","v":-3567.2644291264951}]
[null,null,"Octubre",{"$f":"'[2]REAL IPC(M)'!AD271","v":4.9263243475468812},{"$f":"'[2]REAL IPC(M)'!AE271","v":5.4431125957948439},{"$f":"'[2]REAL IPC(M)'!AF271","v":6.6440451088382364},{"$f":"'[2]REAL IPC(M)'!AG271","v":5.919003115264803},{"$f":"'[2]REAL IPC(M)'!AH271","v":7.6586118715072331},{"$f":"'[2]REAL IPC(M)'!AI271","v":8.8636453570298581},{"$f":"'[2]REAL IPC(M)'!AJ271","v":6.138306138306131},null,null,{"$f":"'[2]REAL IMAE(M)'!AG271","v":4.2187831147123527},{"$f":"'[2]REAL IMAE(M)'!AH271","v":2.5804627568974414},{"$f":"'[2]REAL IMAE(M)'!AI271","v":4.4914452994570189},{"$f":"'[2]REAL IMAE(M)'!AJ271","v":6.5576366469607201},{"$f":"'[2]REAL IMAE(M)'!AK271","v":5.5019755294699957},{"$f":"'[2]REAL IMAE(M)'!AL271","v":2.3387348321605423},{"$f":"'[2]REAL IMAE(M)'!AM271","v":14.50093481048139},null,null,{"$f":"'[2]EXT ITCER(M)'!C271","v":76.855729251018644},{"$f":"'[2]EXT ITCER(M)'!D271","v":89.423983253953793},{"$f":"'[2]EXT ITCER(M)'!E271","v":64.761951872200669},{"$f":"'[2]EXT ITCER(M)'!F271","v":75.42200762467867},{"$f":"'[2]EXT ITCER(M)'!G271","v":96.710563131505822},{"$f":"'[2]EXT ITCER(M)'!H271","v":91.562966689965393},{"$f":"'[2]EXT ITCER(M)'!I271","v":93.514727400051939},null,null,{"$f":"'[2]EXT TC(M)'!J271","v":0.88364161259004059},{"$f":"'[2]EXT TC(M)'!K271","v":0},{"$f":"'[2]EXT TC(M)'!L271","v":-2.668533118862499},{"$f":"'[2]EXT TC(M)'!M271","v":0.52573888938869717},{"$f":"'[2]EXT TC(M)'!N271","v":4.6225734360283779},{"$f":"'[2]EXT TC(M)'!O271","v":2.9888191542569484},{"$f":"'[2]EXT TC(M)'!P271","v":0},null,null,{"$f":"'[2]EXT RIN(M)'!C271","v":4732.9333521400004},{"$f":"'[2]EXT RIN(M)'!D271","v":2727.9},{"$f":"'[2]EXT RIN(M)'!E271","v":6574},{"$f":"'[2]EXT RIN(M)'!F271","v":2489.0699817320224},{"$f":"'[2]EXT RIN(M)'!G271","v":1572.6},{"$f":"'[2]EXT RIN(M)'!H271","v":2668.8},{"$f":"'[2]EXT RIN(M)'!I271","v":1707.8027485099999},null,null,{"$f":"'[2]EXT RIN(M)'!P271","v":64.075867816760365},{"$f":"'[2]EXT RIN(M)'!Q271","v":103.64082123924467},{"$f":"'[2]EXT RIN(M)'!R271","v":114.55608718729411},{"$f":"'[2]EXT RIN(M)'!S271","v":75.765494034988706},{"$f":"'[2]EXT RIN(M)'!T271","v":110.17350788143985},{"$f":"'[2]EXT RIN(M)'!U271","v":54.682753955892863},{"$f":"'[2]EXT RIN(M)'!V271","v":141.46422205234262},null,null,{"$f":"+'[2]MONE(M)CAPARD'!AE271","v":2.9293656015931715},{"$f":"'[2]MONE(M)CAPARD'!AF271","v":-3.3981475959746481},{"$f":"'[2]MONE(M)CAPARD'!AG271","v":-1.3165715042085127},{"$f":"'[2]MONE(M)CAPARD'!AH271","v":1.8042058823529359},{"$f":"'[2]MONE(M)CAPARD'!AI271","v":-0.46830638957958159},{"$f":"'[2]MONE(M)CAPARD'!AJ271","v":0.64884345977353342},{"$f":"'[2]MONE(M)CAPARD'!AK271","v":-3.5974816983894518},null,null,{"$f":"'[2]MONE(M)CAPARD'!AL271","v":0.99499999999999988},{"$f":"'[2]MONE(M)CAPARD'!AM271","v":1.86},{"$f":"'[2]MONE(M)CAPARD'!AN271","v":2.63},{"$f":"'[2]MONE(M)CAPARD'!AO271","v":3.52},{"$f":"'[2]MONE(M)CAPARD'!AP271","v":2.21},{"$f":"'[2]MONE(M)CAPARD'!AQ271","v":2.63},{"$f":"'[2]MONE(M)CAPARD'!AR271","v":2.3199999999999998},null,null,{"$f":"'[2]MONE(M)CAPARD'!J271","v":12.32643546114603},{"$f":"'[2]MONE(M)CAPARD'!K271","v":-5.0370853522169592E-2},{"$f":"'[2]MONE(M)CAPARD'!L271","v":6.4569520821665485},{"$f":"'[2]MONE(M)CAPARD'!M271","v":11.689117647058817},{"$f":"'[2]MONE(M)CAPARD'!N271","v":6.59667518186893},{"$f":"'[2]MONE(M)CAPARD'!O271","v":7.7862123899774245},{"$f":"'[2]MONE(M)CAPARD'!P271","v":-0.65792093704245258},null,null,{"$f":"'[2]MONE(M)CAPARD'!Q271","v":9.44},{"$f":"'[2]MONE(M)CAPARD'!R271","v":5.39},{"$f":"'[2]MONE(M)CAPARD'!S271","v":6.4},{"$f":"'[2]MONE(M)CAPARD'!T271","v":9.27},{"$f":"'[2]MONE(M)CAPARD'!U271","v":9.11},{"$f":"'[2]MONE(M)CAPARD'!V271","v":7.57},{"$f":"'[2]MONE(M)CAPARD'!W271","v":5.44},null,null,{"$f":"'[2]MONE(M)CAPARD'!AS271","v":5},{"$f":"'[2]MONE(M)CAPARD'!AT271","v":"n.a."},{"$f":"'[2]MONE(M)CAPARD'!AU271","v":5.5},{"$f":"'[2]MONE(M)CAPARD'!AV271","v":5},{"$f":"'[2]MONE(M)CAPARD'!AW271","v":"n.a."},{"$f":"'[2]MONE(M)CAPARD'!AX271","v":6.75},{"$f":"'[2]MONE(M)CAPARD'!AY271","v":"n.a."},null,null,{"$f":"+'Datos_Regional (M)'!CF264","v":13.893718866212602},{"$f":"+'Datos_Regional (M)'!CG264","v":3.6555618207015916},{"$f":"+'Datos_Regional (M)'!CH264","v":10.802643260211987},{"$f":"+'Datos_Regional (M)'!CI264","v":9.2607619857917545},{"$f":"+'Datos_Regional (M)'!CJ264","v":14.450218883538479},{"$f":"+'Datos_Regional (M)'!CK264","v":13.013982805232583},{"$f":"+'Datos_Regional (M)'!CL264","v":17.156721049757806},null,null,671.02896117666648,436.05833333333334,848.5,321.05195295000004,351.39525437307822,679.61666666666656,1304.3803661666668,3307.6511684997454,4612.0315346664111,null,null,1125.3327213758337,818.13583333333315,1370.6833333333334,728.23312786416648,508.46595634261649,1411.7500000000002,2064.8027996666665,5962.6009722492827,8027.4037719159496,null,null,-2654.9498037495391,-3415.372237249539,null,null,{"$f":"'[2]EXT Comercio(M)'!C271","v":667.87793062000037},{"$f":"'[2]EXT Comercio(M)'!D271","v":388.88000000000011},{"$f":"'[2]EXT Comercio(M)'!E271","v":732.40000000000055},{"$f":"'[2]EXT Comercio(M)'!F271","v":237.69447918000014},{"$f":"'[2]EXT Comercio(M)'!G271","v":359.58208118070002},{"$f":"'[2]EXT Comercio(M)'!H271","v":677.7},{"$f":"'[2]EXT Comercio(M)'!I271","v":1679.44865},{"$f":"'[2]EXT Comercio(M)'!K271","v":3064.1344909807012},{"$f":"'[2]EXT Comercio(M)'!L271","v":4743.5831409806924},null,null,{"$f":"'[2]EXT Comercio(M)'!AG271","v":1187.83052262},{"$f":"'[2]EXT Comercio(M)'!AH271","v":739.47999999999956},{"$f":"'[2]EXT Comercio(M)'!AI271","v":1400.6999999999994},{"$f":"'[2]EXT Comercio(M)'!AJ271","v":739.99123202999999},{"$f":"'[2]EXT Comercio(M)'!AK271","v":552.37794276815589},{"$f":"'[2]EXT Comercio(M)'!AL271","v":1465.4999999999995},{"$f":"'[2]EXT Comercio(M)'!AM271","v":2304.0921679999988},{"$f":"'[2]EXT Comercio(M)'!AO271","v":6085.8796974181532},{"$f":"'[2]EXT Comercio(M)'!AP271","v":8389.9718654181488},null,null,{"$f":"'[2]EXT Comercio(M)'!$BS271","v":-3021.745206437452},{"$f":"'[2]EXT Comercio(M)'!$BT271","v":-3646.3887244374491}]
[null,null,"Noviembre",{"$f":"'[2]REAL IPC(M)'!AD272","v":4.5554336715375801},{"$f":"'[2]REAL IPC(M)'!AE272","v":5.1251956181533744},{"$f":"'[2]REAL IPC(M)'!AF272","v":6.0582531750989288},{"$f":"'[2]REAL IPC(M)'!AG272","v":5.4280670785525205},{"$f":"'[2]REAL IPC(M)'!AH272","v":7.3423765116738595},{"$f":"'[2]REAL IPC(M)'!AI272","v":8.6274946245806969},{"$f":"'[2]REAL IPC(M)'!AJ272","v":6.8217054263566004},null,null,{"$f":"'[2]REAL IMAE(M)'!AG272","v":4.5092042001969324},{"$f":"'[2]REAL IMAE(M)'!AH272","v":3.3736835873122435},{"$f":"'[2]REAL IMAE(M)'!AI272","v":3.9364438082950128},{"$f":"'[2]REAL IMAE(M)'!AJ272","v":5.4007186380767926},{"$f":"'[2]REAL IMAE(M)'!AK272","v":5.4665728905484601},{"$f":"'[2]REAL IMAE(M)'!AL272","v":2.2109329548577565},{"$f":"'[2]REAL IMAE(M)'!AM272","v":14.524711368629696},null,null,{"$f":"'[2]EXT ITCER(M)'!C272","v":75.66668223806748},{"$f":"'[2]EXT ITCER(M)'!D272","v":89.455858451019068},{"$f":"'[2]EXT ITCER(M)'!E272","v":64.500791260581622},{"$f":"'[2]EXT ITCER(M)'!F272","v":75.235111870028064},{"$f":"'[2]EXT ITCER(M)'!G272","v":95.843324981548989},{"$f":"'[2]EXT ITCER(M)'!H272","v":91.985530357134238},{"$f":"'[2]EXT ITCER(M)'!I272","v":92.871672031729076},null,null,{"$f":"'[2]EXT TC(M)'!J272","v":-1.0210939363062814},{"$f":"'[2]EXT TC(M)'!K272","v":0},{"$f":"'[2]EXT TC(M)'!L272","v":-2.3887014048166941},{"$f":"'[2]EXT TC(M)'!M272","v":0.47017961847726591},{"$f":"'[2]EXT TC(M)'!N272","v":4.6866747423808697},{"$f":"'[2]EXT TC(M)'!O272","v":3.2940398810179654},{"$f":"'[2]EXT TC(M)'!P272","v":0},null,null,{"$f":"'[2]EXT RIN(M)'!C272","v":4722.8858149099997},{"$f":"'[2]EXT RIN(M)'!D272","v":2681.7},{"$f":"'[2]EXT RIN(M)'!E272","v":6037.6159582700002},{"$f":"'[2]EXT RIN(M)'!F272","v":2471.2306353119156},{"$f":"'[2]EXT RIN(M)'!G272","v":1668},{"$f":"'[2]EXT RIN(M)'!H272","v":3039},{"$f":"'[2]EXT RIN(M)'!I272","v":2212.23838329},null,null,{"$f":"'[2]EXT RIN(M)'!P272","v":62.496292622784253},{"$f":"'[2]EXT RIN(M)'!Q272","v":103.52567121633494},{"$f":"'[2]EXT RIN(M)'!R272","v":111.24747098830916},{"$f":"'[2]EXT RIN(M)'!S272","v":75.076594046062482},{"$f":"'[2]EXT RIN(M)'!T272","v":110.12105579351905},{"$f":"'[2]EXT RIN(M)'!U272","v":58.210991233043096},{"$f":"'[2]EXT RIN(M)'!V272","v":176.93706333432303},null,null,{"$f":"+'[2]MONE(M)CAPARD'!AE272","v":3.2944881078907624},{"$f":"'[2]MONE(M)CAPARD'!AF272","v":-3.0299069594343226},{"$f":"'[2]MONE(M)CAPARD'!AG272","v":-0.76208418572058456},{"$f":"'[2]MONE(M)CAPARD'!AH272","v":2.2592967768940926},{"$f":"'[2]MONE(M)CAPARD'!AI272","v":0.42556883894799524},{"$f":"'[2]MONE(M)CAPARD'!AJ272","v":0.73876818957555923},{"$f":"'[2]MONE(M)CAPARD'!AK272","v":-4.3920899854862219},null,null,{"$f":"'[2]MONE(M)CAPARD'!AL272","v":1},{"$f":"'[2]MONE(M)CAPARD'!AM272","v":1.94},{"$f":"'[2]MONE(M)CAPARD'!AN272","v":2.65},{"$f":"'[2]MONE(M)CAPARD'!AO272","v":3.55},{"$f":"'[2]MONE(M)CAPARD'!AP272","v":2.8258079129184899},{"$f":"'[2]MONE(M)CAPARD'!AQ272","v":2.62},{"$f":"'[2]MONE(M)CAPARD'!AR272","v":2.13},null,null,{"$f":"'[2]MONE(M)CAPARD'!J272","v":12.65794216878197},{"$f":"'[2]MONE(M)CAPARD'!K272","v":0.21384443617416227},{"$f":"'[2]MONE(M)CAPARD'!L272","v":7.0638037122225903},{"$f":"'[2]MONE(M)CAPARD'!M272","v":12.133327752197566},{"$f":"'[2]MONE(M)CAPARD'!N272","v":6.3868409789572977},{"$f":"'[2]MONE(M)CAPARD'!O272","v":7.5786571382052434},{"$f":"'[2]MONE(M)CAPARD'!P272","v":-1.4151669085631455},null,null,{"$f":"'[2]MONE(M)CAPARD'!Q272","v":10.27},{"$f":"'[2]MONE(M)CAPARD'!R272","v":5.35},{"$f":"'[2]MONE(M)CAPARD'!S272","v":6.36},{"$f":"'[2]MONE(M)CAPARD'!T272","v":9.18},{"$f":"'[2]MONE(M)CAPARD'!U272","v":9.4621816751736798},{"$f":"'[2]MONE(M)CAPARD'!V272","v":6.72},{"$f":"'[2]MONE(M)CAPARD'!W272","v":5.31},null,null,{"$f":"'[2]MONE(M)CAPARD'!AS272","v":5},{"$f":"'[2]MONE(M)CAPARD'!AT272","v":"n.a."},{"$f":"'[2]MONE(M)CAPARD'!AU272","v":5.5},{"$f":"'[2]MONE(M)CAPARD'!AV272","v":5.5},{"$f":"'[2]MONE(M)CAPARD'!AW272","v":"n.a."},{"$f":"'[2]MONE(M)CAPARD'!AX272","v":6.75},{"$f":"'[2]MONE(M)CAPARD'!AY272","v":"n.a."},null,null,{"$f":"+'Datos_Regional (M)'!CF265","v":13.839861215734949},{"$f":"+'Datos_Regional (M)'!CG265","v":3.6768016409141291},{"$f":"+'Datos_Regional (M)'!CH265","v":11.960756174166033},{"$f":"+'Datos_Regional (M)'!CI265","v":10.427360474510095},{"$f":"+'Datos_Regional (M)'!CJ265","v":17.048666835840699},{"$f":"+'Datos_Regional (M)'!CK265","v":12.902369114453194},{"$f":"+'Datos_Regional (M)'!CL265","v":17.212504679816565},null,null,675.64980361583332,438.45333333333332,860.77499999999998,325.97087066833336,355.44205368260447,686.98333333333323,1323.5688861666667,3343.2743946334376,4666.8432808001035,null,null,1150.6226882600001,822.05916666666656,1382.5083333333332,740.19850260833334,515.93238221270406,1424.5916666666669,2094.8864274166667,6035.9127397477032,8130.7991671643695,null,null,-2692.638345114266,-3463.9558863642665,null,null,{"$f":"'[2]EXT Comercio(M)'!C272","v":667.63261818000046},{"$f":"'[2]EXT Comercio(M)'!D272","v":388.77999999999975},{"$f":"'[2]EXT Comercio(M)'!E272","v":790},{"$f":"'[2]EXT Comercio(M)'!F272","v":265.41884673999994},{"$f":"'[2]EXT Comercio(M)'!G272","v":341.46603707254303},{"$f":"'[2]EXT Comercio(M)'!H272","v":680.7},{"$f":"'[2]EXT Comercio(M)'!I272","v":1483.8354919999999},{"$f":"'[2]EXT Comercio(M)'!K272","v":3133.9975019925405},{"$f":"'[2]EXT Comercio(M)'!L272","v":4617.8329939925388},null,null,{"$f":"'[2]EXT Comercio(M)'!AG272","v":1263.9121365999999},{"$f":"'[2]EXT Comercio(M)'!AH272","v":779.47999999999956},{"$f":"'[2]EXT Comercio(M)'!AI272","v":1412.2000000000003},{"$f":"'[2]EXT Comercio(M)'!AJ272","v":798.02178421999997},{"$f":"'[2]EXT Comercio(M)'!AK272","v":548.14656350215375},{"$f":"'[2]EXT Comercio(M)'!AL272","v":1521.2999999999993},{"$f":"'[2]EXT Comercio(M)'!AM272","v":2157.4017689999996},{"$f":"'[2]EXT Comercio(M)'!AO272","v":6323.0604843221518},{"$f":"'[2]EXT Comercio(M)'!AP272","v":8480.4622533221554},null,null,{"$f":"'[2]EXT Comercio(M)'!$BS272","v":-3189.062982329604},{"$f":"'[2]EXT Comercio(M)'!$BT272","v":-3862.6292593296093}]
[null,null,"Diciembre ",{"$f":"'[2]REAL IPC(M)'!AD273","v":4.735748650300641},{"$f":"'[2]REAL IPC(M)'!AE273","v":5.0523842161950565},{"$f":"'[2]REAL IPC(M)'!AF273","v":6.2000000000000073},{"$f":"'[2]REAL IPC(M)'!AG273","v":5.6045895851721168},{"$f":"'[2]REAL IPC(M)'!AH273","v":7.9504211029485123},{"$f":"'[2]REAL IPC(M)'!AI273","v":7.7599999999999936},{"$f":"'[2]REAL IPC(M)'!AJ273","v":6.3125481139337882},null,null,{"$f":"'[2]REAL IMAE(M)'!AG273","v":4.7348394956622073},{"$f":"'[2]REAL IMAE(M)'!AH273","v":3.4878865127307237},{"$f":"'[2]REAL IMAE(M)'!AI273","v":3.4896333429051345},{"$f":"'[2]REAL IMAE(M)'!AJ273","v":4.3974280263907106},{"$f":"'[2]REAL IMAE(M)'!AK273","v":5.7345937071783171},{"$f":"'[2]REAL IMAE(M)'!AL273","v":2.2195568837665776},{"$f":"'[2]REAL IMAE(M)'!AM273","v":14.536737543885241},null,null,{"$f":"'[2]EXT ITCER(M)'!C273","v":74.637823870599391},{"$f":"'[2]EXT ITCER(M)'!D273","v":89.635578020876494},{"$f":"'[2]EXT ITCER(M)'!E273","v":64.250282775125996},{"$f":"'[2]EXT ITCER(M)'!F273","v":75.230438569278476},{"$f":"'[2]EXT ITCER(M)'!G273","v":95.02597989268628},{"$f":"'[2]EXT ITCER(M)'!H273","v":92.157642126212352},{"$f":"'[2]EXT ITCER(M)'!I273","v":92.691951714819439},null,null,{"$f":"'[2]EXT TC(M)'!J273","v":-0.26250807865708492},{"$f":"'[2]EXT TC(M)'!K273","v":0},{"$f":"'[2]EXT TC(M)'!L273","v":-2.1908586153016985},{"$f":"'[2]EXT TC(M)'!M273","v":0.60823425045015989},{"$f":"'[2]EXT TC(M)'!N273","v":4.7396440310127197},{"$f":"'[2]EXT TC(M)'!O273","v":3.3170998426682621},{"$f":"'[2]EXT TC(M)'!P273","v":0},null,null,{"$f":"'[2]EXT RIN(M)'!C273","v":4755.8138503999999},{"$f":"'[2]EXT RIN(M)'!D273","v":2502},{"$f":"'[2]EXT RIN(M)'!E273","v":6187.94},{"$f":"'[2]EXT RIN(M)'!F273","v":2820.6863589035297},{"$f":"'[2]EXT RIN(M)'!G273","v":1710.5},{"$f":"'[2]EXT RIN(M)'!H273","v":3637.9},{"$f":"'[2]EXT RIN(M)'!I273","v":2216.8830439200001},null,null,{"$f":"'[2]EXT RIN(M)'!P273","v":61.384967788271346},{"$f":"'[2]EXT RIN(M)'!Q273","v":99.094799503337811},{"$f":"'[2]EXT RIN(M)'!R273","v":101.20645566057867},{"$f":"'[2]EXT RIN(M)'!S273","v":77.83158027029944},{"$f":"'[2]EXT RIN(M)'!T273","v":107.69346015674539},{"$f":"'[2]EXT RIN(M)'!U273","v":62.353859680592464},{"$f":"'[2]EXT RIN(M)'!V273","v":181.20210990236697},null,null,{"$f":"+'[2]MONE(M)CAPARD'!AE273","v":3.1166544296143619},{"$f":"'[2]MONE(M)CAPARD'!AF273","v":-2.6580874266008121},{"$f":"'[2]MONE(M)CAPARD'!AG273","v":-0.96045197740113697},{"$f":"'[2]MONE(M)CAPARD'!AH273","v":2.1925282072712005},{"$f":"'[2]MONE(M)CAPARD'!AI273","v":-1.1546142526802705},{"$f":"'[2]MONE(M)CAPARD'!AJ273","v":1.6982182628062421},{"$f":"'[2]MONE(M)CAPARD'!AK273","v":-3.9812309920347513},null,null,{"$f":"'[2]MONE(M)CAPARD'!AL273","v":1.335},{"$f":"'[2]MONE(M)CAPARD'!AM273","v":2.2599999999999998},{"$f":"'[2]MONE(M)CAPARD'!AN273","v":2.67},{"$f":"'[2]MONE(M)CAPARD'!AO273","v":3.63},{"$f":"'[2]MONE(M)CAPARD'!AP273","v":3.0499790356984802},{"$f":"'[2]MONE(M)CAPARD'!AQ273","v":3.51},{"$f":"'[2]MONE(M)CAPARD'!AR273","v":2.08},null,null,{"$f":"'[2]MONE(M)CAPARD'!J273","v":12.549918742249453},{"$f":"'[2]MONE(M)CAPARD'!K273","v":4.5325752633039819E-2},{"$f":"'[2]MONE(M)CAPARD'!L273","v":6.9397363465160007},{"$f":"'[2]MONE(M)CAPARD'!M273","v":11.832260760551602},{"$f":"'[2]MONE(M)CAPARD'!N273","v":9.8229053396360655},{"$f":"'[2]MONE(M)CAPARD'!O273","v":8.7787676317743184},{"$f":"'[2]MONE(M)CAPARD'!P273","v":-0.35983345401882066},null,null,{"$f":"'[2]MONE(M)CAPARD'!Q273","v":10.33},{"$f":"'[2]MONE(M)CAPARD'!R273","v":5.0999999999999996},{"$f":"'[2]MONE(M)CAPARD'!S273","v":6.29},{"$f":"'[2]MONE(M)CAPARD'!T273","v":8.93},{"$f":"'[2]MONE(M)CAPARD'!U273","v":8.4326140388319502},{"$f":"'[2]MONE(M)CAPARD'!V273","v":7.19},{"$f":"'[2]MONE(M)CAPARD'!W273","v":5.93},null,null,{"$f":"'[2]MONE(M)CAPARD'!AS273","v":5},{"$f":"'[2]MONE(M)CAPARD'!AT273","v":"n.a."},{"$f":"'[2]MONE(M)CAPARD'!AU273","v":5.5},{"$f":"'[2]MONE(M)CAPARD'!AV273","v":5.5},{"$f":"'[2]MONE(M)CAPARD'!AW273","v":"n.a."},{"$f":"'[2]MONE(M)CAPARD'!AX273","v":6.75},{"$f":"'[2]MONE(M)CAPARD'!AY273","v":"n.a."},null,null,{"$f":"+'Datos_Regional (M)'!CF266","v":13.035915987640134},{"$f":"+'Datos_Regional (M)'!CG266","v":4.7577572478238794},{"$f":"+'Datos_Regional (M)'!CH266","v":10.767210602795153},{"$f":"+'Datos_Regional (M)'!CI266","v":11.941694741642216},{"$f":"+'Datos_Regional (M)'!CJ266","v":15.700619726814047},{"$f":"+'Datos_Regional (M)'!CK266","v":12.568603972673609},{"$f":"+'Datos_Regional (M)'!CL266","v":16.510572406124837},null,null,678.38689210983341,442.34750000000003,866.75833333333333,329.98389427250004,358.62961212938234,696.82499999999993,1335.9675567500001,3372.9312318450488,4708.8987885950492,null,null,1152.2917960558332,830.37583333333339,1384.3916666666667,751.34773024833328,521.7755601960265,1441.8000000000002,2115.211804,6081.982586500194,8197.1943905001935,null,null,-2709.0513546551447,-3488.2956019051448,null,null,{"$f":"'[2]EXT Comercio(M)'!C273","v":630.3554133280004},{"$f":"'[2]EXT Comercio(M)'!D273","v":425.63000000000011},{"$f":"'[2]EXT Comercio(M)'!E273","v":965.10000000000036},{"$f":"'[2]EXT Comercio(M)'!F273","v":337.14427480999984},{"$f":"'[2]EXT Comercio(M)'!G273","v":337.50271645953097},{"$f":"'[2]EXT Comercio(M)'!H273","v":663.6},{"$f":"'[2]EXT Comercio(M)'!I273","v":1078.8268310000001},{"$f":"'[2]EXT Comercio(M)'!K273","v":3359.3324045975314},{"$f":"'[2]EXT Comercio(M)'!L273","v":4438.1592355975372},null,null,{"$f":"'[2]EXT Comercio(M)'!AG273","v":1145.0981172299996},{"$f":"'[2]EXT Comercio(M)'!AH273","v":857.03000000000065},{"$f":"'[2]EXT Comercio(M)'!AI273","v":1300.6000000000004},{"$f":"'[2]EXT Comercio(M)'!AJ273","v":776.32292321000023},{"$f":"'[2]EXT Comercio(M)'!AK273","v":507.2709881301447},{"$f":"'[2]EXT Comercio(M)'!AL273","v":1530.5000000000005},{"$f":"'[2]EXT Comercio(M)'!AM273","v":1908.5826620000007},{"$f":"'[2]EXT Comercio(M)'!AO273","v":6116.8220285701536},{"$f":"'[2]EXT Comercio(M)'!AP273","v":8025.4046905701543},null,null,{"$f":"'[2]EXT Comercio(M)'!$BS273","v":-2757.4896239726222},{"$f":"'[2]EXT Comercio(M)'!$BT273","v":-3587.2454549726172}]
[null,2012,"Enero",{"$f":"'[2]REAL IPC(M)'!AD274","v":4.2138538820197748},{"$f":"'[2]REAL IPC(M)'!AE274","v":4.7484674515909413},{"$f":"'[2]REAL IPC(M)'!AF274","v":5.4982135768161848},{"$f":"'[2]REAL IPC(M)'!AG274","v":5.3602811950790938},{"$f":"'[2]REAL IPC(M)'!AH274","v":8.2541404339734434},{"$f":"'[2]REAL IPC(M)'!AI274","v":6.9004787458379759},{"$f":"'[2]REAL IPC(M)'!AJ274","v":6.1162079510703444},null,null,{"$f":"'[2]REAL IMAE(M)'!AG274","v":4.9580093896975539},{"$f":"'[2]REAL IMAE(M)'!AH274","v":2.4078529191632745},{"$f":"'[2]REAL IMAE(M)'!AI274","v":3.2606215174871416},{"$f":"'[2]REAL IMAE(M)'!AJ274","v":3.6521679823632169},{"$f":"'[2]REAL IMAE(M)'!AK274","v":5.9886887446294415},{"$f":"'[2]REAL IMAE(M)'!AL274","v":2.2720596009843241},{"$f":"'[2]REAL IMAE(M)'!AM274","v":14.350947339354139},null,null,{"$f":"'[2]EXT ITCER(M)'!C274","v":75.352054660770236},{"$f":"'[2]EXT ITCER(M)'!D274","v":89.579189619025684},{"$f":"'[2]EXT ITCER(M)'!E274","v":64.451613105120529},{"$f":"'[2]EXT ITCER(M)'!F274","v":75.585718965743112},{"$f":"'[2]EXT ITCER(M)'!G274","v":95.912615843665748},{"$f":"'[2]EXT ITCER(M)'!H274","v":92.749958589877295},{"$f":"'[2]EXT ITCER(M)'!I274","v":92.475722677942215},null,null,{"$f":"'[2]EXT TC(M)'!J274","v":0.4443404600495347},{"$f":"'[2]EXT TC(M)'!K274","v":0},{"$f":"'[2]EXT TC(M)'!L274","v":-1.8120906801007586},{"$f":"'[2]EXT TC(M)'!M274","v":1.019372637232101},{"$f":"'[2]EXT TC(M)'!N274","v":4.8008233099919071},{"$f":"'[2]EXT TC(M)'!O274","v":3.7704458360594524},{"$f":"'[2]EXT TC(M)'!P274","v":0},null,null,{"$f":"'[2]EXT RIN(M)'!C274","v":4646.3623359599997},{"$f":"'[2]EXT RIN(M)'!D274","v":2578.6999999999998},{"$f":"'[2]EXT RIN(M)'!E274","v":6185.7},{"$f":"'[2]EXT RIN(M)'!F274","v":2880.4390615127977},{"$f":"'[2]EXT RIN(M)'!G274","v":1624.8},{"$f":"'[2]EXT RIN(M)'!H274","v":3046.8},{"$f":"'[2]EXT RIN(M)'!I274","v":2082.7013444499999},null,null,{"$f":"'[2]EXT RIN(M)'!P274","v":59.756291335107846},{"$f":"'[2]EXT RIN(M)'!Q274","v":98.958417279328529},{"$f":"'[2]EXT RIN(M)'!R274","v":99.820789789363687},{"$f":"'[2]EXT RIN(M)'!S274","v":77.886682281179944},{"$f":"'[2]EXT RIN(M)'!T274","v":106.0529268895631},{"$f":"'[2]EXT RIN(M)'!U274","v":57.466687929524255},{"$f":"'[2]EXT RIN(M)'!V274","v":181.80623674379575},null,null,{"$f":"+'[2]MONE(M)CAPARD'!AE274","v":4.3527284991452131},{"$f":"'[2]MONE(M)CAPARD'!AF274","v":-2.3279266140269486},{"$f":"'[2]MONE(M)CAPARD'!AG274","v":-0.28267168391344089},{"$f":"'[2]MONE(M)CAPARD'!AH274","v":2.4864386989157561},{"$f":"'[2]MONE(M)CAPARD'!AI274","v":-0.23517230035137776},{"$f":"'[2]MONE(M)CAPARD'!AJ274","v":3.1800804767624866},{"$f":"'[2]MONE(M)CAPARD'!AK274","v":-4.0580115273775288},null,null,{"$f":"'[2]MONE(M)CAPARD'!AL274","v":1.3484834265379795},{"$f":"'[2]MONE(M)CAPARD'!AM274","v":2.31},{"$f":"'[2]MONE(M)CAPARD'!AN274","v":2.64},{"$f":"'[2]MONE(M)CAPARD'!AO274","v":3.57},{"$f":"'[2]MONE(M)CAPARD'!AP274","v":2.7315146174798404},{"$f":"'[2]MONE(M)CAPARD'!AQ274","v":2.74},{"$f":"'[2]MONE(M)CAPARD'!AR274","v":1.81},null,null,{"$f":"'[2]MONE(M)CAPARD'!J274","v":13.468599034702725},{"$f":"'[2]MONE(M)CAPARD'!K274","v":0.57426381792846182},{"$f":"'[2]MONE(M)CAPARD'!L274","v":7.6416331138287976},{"$f":"'[2]MONE(M)CAPARD'!M274","v":12.120050041701409},{"$f":"'[2]MONE(M)CAPARD'!N274","v":6.6778725039674738},{"$f":"'[2]MONE(M)CAPARD'!O274","v":9.6159730758570099},{"$f":"'[2]MONE(M)CAPARD'!P274","v":0.33340057636886822},null,null,{"$f":"'[2]MONE(M)CAPARD'!Q274","v":10.89},{"$f":"'[2]MONE(M)CAPARD'!R274","v":5.35},{"$f":"'[2]MONE(M)CAPARD'!S274","v":6.2},{"$f":"'[2]MONE(M)CAPARD'!T274","v":8.91},{"$f":"'[2]MONE(M)CAPARD'!U274","v":9.8081726268401095},{"$f":"'[2]MONE(M)CAPARD'!V274","v":7.59},{"$f":"'[2]MONE(M)CAPARD'!W274","v":6.47},null,null,{"$f":"'[2]MONE(M)CAPARD'!AS274","v":5},{"$f":"'[2]MONE(M)CAPARD'!AT274","v":"n.a."},{"$f":"'[2]MONE(M)CAPARD'!AU274","v":5.5},{"$f":"'[2]MONE(M)CAPARD'!AV274","v":6},{"$f":"'[2]MONE(M)CAPARD'!AW274","v":"n.a."},{"$f":"'[2]MONE(M)CAPARD'!AX274","v":6.75},{"$f":"'[2]MONE(M)CAPARD'!AY274","v":"n.a."},null,null,{"$f":"+'Datos_Regional (M)'!CF267","v":14.173766041645086},{"$f":"+'Datos_Regional (M)'!CG267","v":5.0481650781197152},{"$f":"+'Datos_Regional (M)'!CH267","v":10.637370396312651},{"$f":"+'Datos_Regional (M)'!CI267","v":12.05414787503749},{"$f":"+'Datos_Regional (M)'!CJ267","v":17.660522635394017},{"$f":"+'Datos_Regional (M)'!CK267","v":13.253731988072248},{"$f":"+'Datos_Regional (M)'!CL267","v":12.955649532005697},null,null,686.04653118900012,445.68416666666661,865.00833333333333,329.80009541333334,365.23252968280667,704.30000000000007,1350.240045,3396.0716562851399,4746.3117012851399,null,null,1176.85259847,841.34416666666664,1396.7833333333331,759.62250331833332,523.2018974631286,1456.0833333333337,2121.8704113333333,6153.8878325847954,8275.7582439181278,null,null,-2757.8161762996556,-3529.4465426329893,null,null,{"$f":"'[2]EXT Comercio(M)'!C274","v":655.63618554000004},{"$f":"'[2]EXT Comercio(M)'!D274","v":448.69},{"$f":"'[2]EXT Comercio(M)'!E274","v":744.19999999999993},{"$f":"'[2]EXT Comercio(M)'!F274","v":342.56734488000001},{"$f":"'[2]EXT Comercio(M)'!G274","v":391.878527885425},{"$f":"'[2]EXT Comercio(M)'!H274","v":585.20000000000005},{"$f":"'[2]EXT Comercio(M)'!I274","v":1036.890944},{"$f":"'[2]EXT Comercio(M)'!K274","v":3168.1720583054248},{"$f":"'[2]EXT Comercio(M)'!L274","v":4205.0630023054246},null,null,{"$f":"'[2]EXT Comercio(M)'!AG274","v":1275.9336858300001},{"$f":"'[2]EXT Comercio(M)'!AH274","v":820.68},{"$f":"'[2]EXT Comercio(M)'!AI274","v":1340.6000000000001},{"$f":"'[2]EXT Comercio(M)'!AJ274","v":740.20154291999995},{"$f":"'[2]EXT Comercio(M)'!AK274","v":475.4786747517158},{"$f":"'[2]EXT Comercio(M)'!AL274","v":1327.5999999999997},{"$f":"'[2]EXT Comercio(M)'!AM274","v":1876.4096279999999},{"$f":"'[2]EXT Comercio(M)'!AO274","v":5980.4939035017151},{"$f":"'[2]EXT Comercio(M)'!AP274","v":7856.9035315017154},null,null,{"$f":"'[2]EXT Comercio(M)'!$BS274","v":-2812.3218451962907},{"$f":"'[2]EXT Comercio(M)'!$BT274","v":-3651.8405291962908}]
[null,null,"Febrero",{"$f":"'[2]REAL IPC(M)'!AD275","v":4.0533296379370327},{"$f":"'[2]REAL IPC(M)'!AE275","v":4.8951048951049012},{"$f":"'[2]REAL IPC(M)'!AF275","v":5.2201319806953572},{"$f":"'[2]REAL IPC(M)'!AG275","v":5.6282722513089034},{"$f":"'[2]REAL IPC(M)'!AH275","v":8.8085488426911773},{"$f":"'[2]REAL IPC(M)'!AI275","v":6.001307814680688},{"$f":"'[2]REAL IPC(M)'!AJ275","v":6.3975628332063907},null,null,{"$f":"'[2]REAL IMAE(M)'!AG275","v":5.0448186910199775},{"$f":"'[2]REAL IMAE(M)'!AH275","v":2.5809147484761961},{"$f":"'[2]REAL IMAE(M)'!AI275","v":3.2124863693675074},{"$f":"'[2]REAL IMAE(M)'!AJ275","v":3.801939746441009},{"$f":"'[2]REAL IMAE(M)'!AK275","v":6.0121930429947446},{"$f":"'[2]REAL IMAE(M)'!AL275","v":2.4749908910845333},{"$f":"'[2]REAL IMAE(M)'!AM275","v":14.019788826471711},null,null,{"$f":"'[2]EXT ITCER(M)'!C275","v":75.443444544162688},{"$f":"'[2]EXT ITCER(M)'!D275","v":89.479736874560444},{"$f":"'[2]EXT ITCER(M)'!E275","v":64.067790693032066},{"$f":"'[2]EXT ITCER(M)'!F275","v":75.323261723603181},{"$f":"'[2]EXT ITCER(M)'!G275","v":95.42541159201032},{"$f":"'[2]EXT ITCER(M)'!H275","v":92.823464461270532},{"$f":"'[2]EXT ITCER(M)'!I275","v":92.076347716254929},null,null,{"$f":"'[2]EXT TC(M)'!J275","v":1.5791405954741329},{"$f":"'[2]EXT TC(M)'!K275","v":0},{"$f":"'[2]EXT TC(M)'!L275","v":-0.28176676486589108},{"$f":"'[2]EXT TC(M)'!M275","v":1.4173730171731007},{"$f":"'[2]EXT TC(M)'!N275","v":4.8225191312483089},{"$f":"'[2]EXT TC(M)'!O275","v":3.4945093495200372},{"$f":"'[2]EXT TC(M)'!P275","v":0},null,null,{"$f":"'[2]EXT RIN(M)'!C275","v":4708.1602812800002},{"$f":"'[2]EXT RIN(M)'!D275","v":2616.6999999999998},{"$f":"'[2]EXT RIN(M)'!E275","v":6126.9},{"$f":"'[2]EXT RIN(M)'!F275","v":3016.4715980587525},{"$f":"'[2]EXT RIN(M)'!G275","v":1595.7},{"$f":"'[2]EXT RIN(M)'!H275","v":2980.1},{"$f":"'[2]EXT RIN(M)'!I275","v":2008.5231295799999},null,null,{"$f":"'[2]EXT RIN(M)'!P275","v":61.974589235185007},{"$f":"'[2]EXT RIN(M)'!Q275","v":99.720544673028115},{"$f":"'[2]EXT RIN(M)'!R275","v":102.00323386867431},{"$f":"'[2]EXT RIN(M)'!S275","v":79.428699703726892},{"$f":"'[2]EXT RIN(M)'!T275","v":105.91510693618056},{"$f":"'[2]EXT RIN(M)'!U275","v":56.099179484576652},{"$f":"'[2]EXT RIN(M)'!V275","v":169.85415332145735},null,null,{"$f":"+'[2]MONE(M)CAPARD'!AE275","v":4.7539760421654496},{"$f":"'[2]MONE(M)CAPARD'!AF275","v":-2.3691333333333389},{"$f":"'[2]MONE(M)CAPARD'!AG275","v":-1.9133202283998885E-2},{"$f":"'[2]MONE(M)CAPARD'!AH275","v":2.3305576208178409},{"$f":"'[2]MONE(M)CAPARD'!AI275","v":-0.86017822107624065},{"$f":"'[2]MONE(M)CAPARD'!AJ275","v":4.1496584108277519},{"$f":"'[2]MONE(M)CAPARD'!AK275","v":-3.8981746599856777},null,null,{"$f":"'[2]MONE(M)CAPARD'!AL275","v":1.7514468120655697},{"$f":"'[2]MONE(M)CAPARD'!AM275","v":2.41},{"$f":"'[2]MONE(M)CAPARD'!AN275","v":2.62},{"$f":"'[2]MONE(M)CAPARD'!AO275","v":3.58},{"$f":"'[2]MONE(M)CAPARD'!AP275","v":3.0049386295903551},{"$f":"'[2]MONE(M)CAPARD'!AQ275","v":3.1},{"$f":"'[2]MONE(M)CAPARD'!AR275","v":2.25},null,null,{"$f":"'[2]MONE(M)CAPARD'!J275","v":14.056897951231152},{"$f":"'[2]MONE(M)CAPARD'!K275","v":0.40506666666666113},{"$f":"'[2]MONE(M)CAPARD'!L275","v":7.8595871946082596},{"$f":"'[2]MONE(M)CAPARD'!M275","v":11.892391573729862},{"$f":"'[2]MONE(M)CAPARD'!N275","v":6.2691301232623333},{"$f":"'[2]MONE(M)CAPARD'!O275","v":11.423153577018711},{"$f":"'[2]MONE(M)CAPARD'!P275","v":-3.5304223335712689E-2},null,null,{"$f":"'[2]MONE(M)CAPARD'!Q275","v":10.97},{"$f":"'[2]MONE(M)CAPARD'!R275","v":5.32},{"$f":"'[2]MONE(M)CAPARD'!S275","v":6.2},{"$f":"'[2]MONE(M)CAPARD'!T275","v":8.85},{"$f":"'[2]MONE(M)CAPARD'!U275","v":9.1959083486448154},{"$f":"'[2]MONE(M)CAPARD'!V275","v":6.98},{"$f":"'[2]MONE(M)CAPARD'!W275","v":6.36},null,null,{"$f":"'[2]MONE(M)CAPARD'!AS275","v":5},{"$f":"'[2]MONE(M)CAPARD'!AT275","v":"n.a."},{"$f":"'[2]MONE(M)CAPARD'!AU275","v":5.5},{"$f":"'[2]MONE(M)CAPARD'!AV275","v":6},{"$f":"'[2]MONE(M)CAPARD'!AW275","v":"n.a."},{"$f":"'[2]MONE(M)CAPARD'!AX275","v":6.75},{"$f":"'[2]MONE(M)CAPARD'!AY275","v":"n.a."},null,null,{"$f":"+'Datos_Regional (M)'!CF268","v":15.566298696552462},{"$f":"+'Datos_Regional (M)'!CG268","v":3.5877731539462721},{"$f":"+'Datos_Regional (M)'!CH268","v":12.715636419225396},{"$f":"+'Datos_Regional (M)'!CI268","v":12.933332751030591},{"$f":"+'Datos_Regional (M)'!CJ268","v":21.597833032270831},{"$f":"+'Datos_Regional (M)'!CK268","v":13.059626560899829},{"$f":"+'Datos_Regional (M)'!CL268","v":12.700918936018812},null,null,692.01746174400012,445.36833333333328,861.57499999999993,332.16625053083334,369.03539225023479,710.6,1358.3092338333333,3410.762437858401,4769.071671691735,null,null,1184.1058494824999,846.39833333333343,1407.625,771.17335797833323,527.98525734804537,1470.5500000000002,2144.7053688333331,6207.8377981422118,8352.5431669755435,null,null,-2797.0753602838108,-3583.4714952838112,null,null,{"$f":"'[2]EXT Comercio(M)'!C275","v":722.9638295499999},{"$f":"'[2]EXT Comercio(M)'!D275","v":450.18999999999988},{"$f":"'[2]EXT Comercio(M)'!E275","v":859.9},{"$f":"'[2]EXT Comercio(M)'!F275","v":432.47955861999998},{"$f":"'[2]EXT Comercio(M)'!G275","v":381.16650265100299},{"$f":"'[2]EXT Comercio(M)'!H275","v":681.5},{"$f":"'[2]EXT Comercio(M)'!I275","v":1408.011733},{"$f":"'[2]EXT Comercio(M)'!K275","v":3528.1998908210035},{"$f":"'[2]EXT Comercio(M)'!L275","v":4936.2116238210028},null,null,{"$f":"'[2]EXT Comercio(M)'!AG275","v":1100.2594438000001},{"$f":"'[2]EXT Comercio(M)'!AH275","v":819.4899999999999},{"$f":"'[2]EXT Comercio(M)'!AI275","v":1311.4999999999998},{"$f":"'[2]EXT Comercio(M)'!AJ275","v":765.54833828999983},{"$f":"'[2]EXT Comercio(M)'!AK275","v":529.46240268409974},{"$f":"'[2]EXT Comercio(M)'!AL275","v":1363.4},{"$f":"'[2]EXT Comercio(M)'!AM275","v":2132.062152},{"$f":"'[2]EXT Comercio(M)'!AO275","v":5889.6601847740994},{"$f":"'[2]EXT Comercio(M)'!AP275","v":8021.7223367740989},null,null,{"$f":"'[2]EXT Comercio(M)'!$BS275","v":-2361.4602939530964},{"$f":"'[2]EXT Comercio(M)'!$BT275","v":-3085.5107129530961}]
[null,null,"Marzo",{"$f":"'[2]REAL IPC(M)'!AD276","v":4.2080604447938468},{"$f":"'[2]REAL IPC(M)'!AE276","v":4.3713210460291432},{"$f":"'[2]REAL IPC(M)'!AF276","v":4.657748266770831},{"$f":"'[2]REAL IPC(M)'!AG276","v":5.6759098786828392},{"$f":"'[2]REAL IPC(M)'!AH276","v":8.5485341154628731},{"$f":"'[2]REAL IPC(M)'!AI276","v":4.9447633749818829},{"$f":"'[2]REAL IPC(M)'!AJ276","v":6.3396226415094281},null,null,{"$f":"'[2]REAL IMAE(M)'!AG276","v":4.7651235588920944},{"$f":"'[2]REAL IMAE(M)'!AH276","v":2.9324561268703349},{"$f":"'[2]REAL IMAE(M)'!AI276","v":3.2216156569300276},{"$f":"'[2]REAL IMAE(M)'!AJ276","v":4.3765133098874154},{"$f":"'[2]REAL IMAE(M)'!AK276","v":5.7576529675108157},{"$f":"'[2]REAL IMAE(M)'!AL276","v":2.8726185766784655},{"$f":"'[2]REAL IMAE(M)'!AM276","v":13.682941790142337},null,null,{"$f":"'[2]EXT ITCER(M)'!C276","v":75.032224846180057},{"$f":"'[2]EXT ITCER(M)'!D276","v":89.534416473985047},{"$f":"'[2]EXT ITCER(M)'!E276","v":63.495669231986163},{"$f":"'[2]EXT ITCER(M)'!F276","v":75.226673582209983},{"$f":"'[2]EXT ITCER(M)'!G276","v":95.378964070621763},{"$f":"'[2]EXT ITCER(M)'!H276","v":93.004744669568026},{"$f":"'[2]EXT ITCER(M)'!I276","v":91.483280505672084},null,null,{"$f":"'[2]EXT TC(M)'!J276","v":1.643394367738829},{"$f":"'[2]EXT TC(M)'!K276","v":0},{"$f":"'[2]EXT TC(M)'!L276","v":0.26302855998689079},{"$f":"'[2]EXT TC(M)'!M276","v":1.8272173497602258},{"$f":"'[2]EXT TC(M)'!N276","v":4.665858342337045},{"$f":"'[2]EXT TC(M)'!O276","v":3.2608638084897938},{"$f":"'[2]EXT TC(M)'!P276","v":0},null,null,{"$f":"'[2]EXT RIN(M)'!C276","v":4745.4197414500004},{"$f":"'[2]EXT RIN(M)'!D276","v":2648.9},{"$f":"'[2]EXT RIN(M)'!E276","v":6140.8},{"$f":"'[2]EXT RIN(M)'!F276","v":3068.3124150705976},{"$f":"'[2]EXT RIN(M)'!G276","v":1753.1},{"$f":"'[2]EXT RIN(M)'!H276","v":3031},{"$f":"'[2]EXT RIN(M)'!I276","v":1712.1733605899999},null,null,{"$f":"'[2]EXT RIN(M)'!P276","v":61.054566378998906},{"$f":"'[2]EXT RIN(M)'!Q276","v":101.60756212813931},{"$f":"'[2]EXT RIN(M)'!R276","v":99.696896744376204},{"$f":"'[2]EXT RIN(M)'!S276","v":78.151439955030199},{"$f":"'[2]EXT RIN(M)'!T276","v":107.31794538751274},{"$f":"'[2]EXT RIN(M)'!U276","v":57.607903083224741},{"$f":"'[2]EXT RIN(M)'!V276","v":149.17989274003111},null,null,{"$f":"+'[2]MONE(M)CAPARD'!AE276","v":4.8383393124154868},{"$f":"'[2]MONE(M)CAPARD'!AF276","v":-1.8504326923076932},{"$f":"'[2]MONE(M)CAPARD'!AG276","v":0.52767400634445971},{"$f":"'[2]MONE(M)CAPARD'!AH276","v":2.3601312013120159},{"$f":"'[2]MONE(M)CAPARD'!AI276","v":-2.0541730664836448},{"$f":"'[2]MONE(M)CAPARD'!AJ276","v":4.6931704514112607},{"$f":"'[2]MONE(M)CAPARD'!AK276","v":-3.6765436479772835},null,null,{"$f":"'[2]MONE(M)CAPARD'!AL276","v":1.9718244942589092},{"$f":"'[2]MONE(M)CAPARD'!AM276","v":2.44},{"$f":"'[2]MONE(M)CAPARD'!AN276","v":2.61},{"$f":"'[2]MONE(M)CAPARD'!AO276","v":3.67},{"$f":"'[2]MONE(M)CAPARD'!AP276","v":2.9713866785694685},{"$f":"'[2]MONE(M)CAPARD'!AQ276","v":2.89},{"$f":"'[2]MONE(M)CAPARD'!AR276","v":2.4300000000000002},null,null,{"$f":"'[2]MONE(M)CAPARD'!J276","v":13.973909017259379},{"$f":"'[2]MONE(M)CAPARD'!K276","v":0.82271542159763245},{"$f":"'[2]MONE(M)CAPARD'!L276","v":8.3436266094420528},{"$f":"'[2]MONE(M)CAPARD'!M276","v":11.794637146371466},{"$f":"'[2]MONE(M)CAPARD'!N276","v":6.6033612757000046},{"$f":"'[2]MONE(M)CAPARD'!O276","v":11.658739542153196},{"$f":"'[2]MONE(M)CAPARD'!P276","v":1.9162526614626099E-2},null,null,{"$f":"'[2]MONE(M)CAPARD'!Q276","v":10.86},{"$f":"'[2]MONE(M)CAPARD'!R276","v":5.23},{"$f":"'[2]MONE(M)CAPARD'!S276","v":6.29},{"$f":"'[2]MONE(M)CAPARD'!T276","v":8.7899999999999991},{"$f":"'[2]MONE(M)CAPARD'!U276","v":8.3274279489590253},{"$f":"'[2]MONE(M)CAPARD'!V276","v":7.53},{"$f":"'[2]MONE(M)CAPARD'!W276","v":6.36},null,null,{"$f":"'[2]MONE(M)CAPARD'!AS276","v":5},{"$f":"'[2]MONE(M)CAPARD'!AT276","v":"n.a."},{"$f":"'[2]MONE(M)CAPARD'!AU276","v":5.5},{"$f":"'[2]MONE(M)CAPARD'!AV276","v":6},{"$f":"'[2]MONE(M)CAPARD'!AW276","v":"n.a."},{"$f":"'[2]MONE(M)CAPARD'!AX276","v":6.75},{"$f":"'[2]MONE(M)CAPARD'!AY276","v":"n.a."},null,null,{"$f":"+'Datos_Regional (M)'!CF269","v":14.179958530408964},{"$f":"+'Datos_Regional (M)'!CG269","v":3.5172612133246295},{"$f":"+'Datos_Regional (M)'!CH269","v":14.809406924471169},{"$f":"+'Datos_Regional (M)'!CI269","v":13.924731603305961},{"$f":"+'Datos_Regional (M)'!CJ269","v":21.900516367140121},{"$f":"+'Datos_Regional (M)'!CK269","v":11.495022723145087},{"$f":"+'Datos_Regional (M)'!CL269","v":11.176262533197523},null,null,695.24408116816676,443.00333333333327,860.05000000000007,340.31394517749999,370.75994571461894,711.47499999999991,1406.4982486666668,3420.8463053936189,4827.3445540602852,null,null,1194.4582808174998,842.20166666666671,1407.125,780.27792660499983,533.70989645864358,1465.9333333333334,2179.3231988333332,6223.7061038811444,8403.0293027144762,null,null,-2802.859798487525,-3575.6847486541919,null,null,{"$f":"'[2]EXT Comercio(M)'!C276","v":838.64113356000007},{"$f":"'[2]EXT Comercio(M)'!D276","v":503.61000000000013},{"$f":"'[2]EXT Comercio(M)'!E276","v":1033.5},{"$f":"'[2]EXT Comercio(M)'!F276","v":503.90096400999994},{"$f":"'[2]EXT Comercio(M)'!G276","v":458.63407110226598},{"$f":"'[2]EXT Comercio(M)'!H276","v":796.2},{"$f":"'[2]EXT Comercio(M)'!I276","v":1749.5244400000001},{"$f":"'[2]EXT Comercio(M)'!K276","v":4134.4861686722661},{"$f":"'[2]EXT Comercio(M)'!L276","v":5884.0106086722662},null,null,{"$f":"'[2]EXT Comercio(M)'!AG276","v":1378.38977249},{"$f":"'[2]EXT Comercio(M)'!AH276","v":896.83000000000015},{"$f":"'[2]EXT Comercio(M)'!AI276","v":1475.4},{"$f":"'[2]EXT Comercio(M)'!AJ276","v":882.05251368000017},{"$f":"'[2]EXT Comercio(M)'!AK276","v":617.39305386159288},{"$f":"'[2]EXT Comercio(M)'!AL276","v":1474.9000000000003},{"$f":"'[2]EXT Comercio(M)'!AM276","v":2270.9489140000001},{"$f":"'[2]EXT Comercio(M)'!AO276","v":6724.9653400315929},{"$f":"'[2]EXT Comercio(M)'!AP276","v":8995.9142540315934},null,null,{"$f":"'[2]EXT Comercio(M)'!$BS276","v":-2590.4791713593277},{"$f":"'[2]EXT Comercio(M)'!$BT276","v":-3111.9036453593289}]
[null,null,"Abril",{"$f":"'[2]REAL IPC(M)'!AD277","v":4.7073967209458161},{"$f":"'[2]REAL IPC(M)'!AE277","v":1.9866929060069389},{"$f":"'[2]REAL IPC(M)'!AF277","v":4.2744984006978788},{"$f":"'[2]REAL IPC(M)'!AG277","v":5.6555269922879123},{"$f":"'[2]REAL IPC(M)'!AH277","v":8.9766105663035489},{"$f":"'[2]REAL IPC(M)'!AI277","v":4.0459110473457569},{"$f":"'[2]REAL IPC(M)'!AJ277","v":5.9746079163554811},null,null,{"$f":"'[2]REAL IMAE(M)'!AG277","v":4.2308907537109235},{"$f":"'[2]REAL IMAE(M)'!AH277","v":2.4561105698776386},{"$f":"'[2]REAL IMAE(M)'!AI277","v":3.1488674553825473},{"$f":"'[2]REAL IMAE(M)'!AJ277","v":5.0191514913183708},{"$f":"'[2]REAL IMAE(M)'!AK277","v":5.2594145435745636},{"$f":"'[2]REAL IMAE(M)'!AL277","v":3.3132277670950354},{"$f":"'[2]REAL IMAE(M)'!AM277","v":13.392017568944295},null,null,{"$f":"'[2]EXT ITCER(M)'!C277","v":74.145666345254767},{"$f":"'[2]EXT ITCER(M)'!D277","v":89.130989899546606},{"$f":"'[2]EXT ITCER(M)'!E277","v":63.568095623853189},{"$f":"'[2]EXT ITCER(M)'!F277","v":74.775789808985863},{"$f":"'[2]EXT ITCER(M)'!G277","v":94.754032570576953},{"$f":"'[2]EXT ITCER(M)'!H277","v":93.206062512092018},{"$f":"'[2]EXT ITCER(M)'!I277","v":90.98944168771547},null,null,{"$f":"'[2]EXT TC(M)'!J277","v":1.0386950824269232},{"$f":"'[2]EXT TC(M)'!K277","v":0},{"$f":"'[2]EXT TC(M)'!L277","v":1.7469953993902709},{"$f":"'[2]EXT TC(M)'!M277","v":2.1677020692359568},{"$f":"'[2]EXT TC(M)'!N277","v":4.743717878119674},{"$f":"'[2]EXT TC(M)'!O277","v":3.1248595887967192},{"$f":"'[2]EXT TC(M)'!P277","v":0},null,null,{"$f":"'[2]EXT RIN(M)'!C277","v":4765.5887301000002},{"$f":"'[2]EXT RIN(M)'!D277","v":2709.9},{"$f":"'[2]EXT RIN(M)'!E277","v":6183.3},{"$f":"'[2]EXT RIN(M)'!F277","v":2978.3443822345153},{"$f":"'[2]EXT RIN(M)'!G277","v":1707.9},{"$f":"'[2]EXT RIN(M)'!H277","v":3125.5},{"$f":"'[2]EXT RIN(M)'!I277","v":2019.5000679399998},null,null,{"$f":"'[2]EXT RIN(M)'!P277","v":60.687214854315584},{"$f":"'[2]EXT RIN(M)'!Q277","v":100.68823505588405},{"$f":"'[2]EXT RIN(M)'!R277","v":105.68021433962545},{"$f":"'[2]EXT RIN(M)'!S277","v":77.87613214642316},{"$f":"'[2]EXT RIN(M)'!T277","v":114.28850341724331},{"$f":"'[2]EXT RIN(M)'!U277","v":59.61942828969368},{"$f":"'[2]EXT RIN(M)'!V277","v":168.51779670928505},null,null,{"$f":"+'[2]MONE(M)CAPARD'!AE277","v":4.5771391794095333},{"$f":"'[2]MONE(M)CAPARD'!AF277","v":0.47389230910594099},{"$f":"'[2]MONE(M)CAPARD'!AG277","v":0.9163329615170096},{"$f":"'[2]MONE(M)CAPARD'!AH277","v":2.4272019464720254},{"$f":"'[2]MONE(M)CAPARD'!AI277","v":-2.3727289960094979},{"$f":"'[2]MONE(M)CAPARD'!AJ277","v":5.8955598455598563},{"$f":"'[2]MONE(M)CAPARD'!AK277","v":-3.5334954193093653},null,null,{"$f":"'[2]MONE(M)CAPARD'!AL277","v":1.9749292888336507},{"$f":"'[2]MONE(M)CAPARD'!AM277","v":2.4700000000000002},{"$f":"'[2]MONE(M)CAPARD'!AN277","v":2.63},{"$f":"'[2]MONE(M)CAPARD'!AO277","v":3.67},{"$f":"'[2]MONE(M)CAPARD'!AP277","v":1.936089779043209},{"$f":"'[2]MONE(M)CAPARD'!AQ277","v":3.19},{"$f":"'[2]MONE(M)CAPARD'!AR277","v":2.23},null,null,{"$f":"'[2]MONE(M)CAPARD'!J277","v":13.821949291342722},{"$f":"'[2]MONE(M)CAPARD'!K277","v":2.9742185059266695},{"$f":"'[2]MONE(M)CAPARD'!L277","v":8.7610122699386483},{"$f":"'[2]MONE(M)CAPARD'!M277","v":11.806739659367402},{"$f":"'[2]MONE(M)CAPARD'!N277","v":8.0056000665259415},{"$f":"'[2]MONE(M)CAPARD'!O277","v":12.565692222835093},{"$f":"'[2]MONE(M)CAPARD'!P277","v":0.25986610288936635},null,null,{"$f":"'[2]MONE(M)CAPARD'!Q277","v":10.84},{"$f":"'[2]MONE(M)CAPARD'!R277","v":5.0199999999999996},{"$f":"'[2]MONE(M)CAPARD'!S277","v":6.2},{"$f":"'[2]MONE(M)CAPARD'!T277","v":8.74},{"$f":"'[2]MONE(M)CAPARD'!U277","v":8.5998449167314739},{"$f":"'[2]MONE(M)CAPARD'!V277","v":6.59},{"$f":"'[2]MONE(M)CAPARD'!W277","v":6.25},null,null,{"$f":"'[2]MONE(M)CAPARD'!AS277","v":5},{"$f":"'[2]MONE(M)CAPARD'!AT277","v":"n.a."},{"$f":"'[2]MONE(M)CAPARD'!AU277","v":5.5},{"$f":"'[2]MONE(M)CAPARD'!AV277","v":6},{"$f":"'[2]MONE(M)CAPARD'!AW277","v":"n.a."},{"$f":"'[2]MONE(M)CAPARD'!AX277","v":6.75},{"$f":"'[2]MONE(M)CAPARD'!AY277","v":"n.a."},null,null,{"$f":"+'Datos_Regional (M)'!CF270","v":14.403474022616102},{"$f":"+'Datos_Regional (M)'!CG270","v":3.511745200431915},{"$f":"+'Datos_Regional (M)'!CH270","v":18.548804053184842},{"$f":"+'Datos_Regional (M)'!CI270","v":15.775191673416922},{"$f":"+'Datos_Regional (M)'!CJ270","v":22.739708313613495},{"$f":"+'Datos_Regional (M)'!CK270","v":10.327808254772064},{"$f":"+'Datos_Regional (M)'!CL270","v":12.236350982984856},null,null,694.04669432233334,441.85083333333336,854.97500000000002,339.92202612416662,376.46745608357293,710.91666666666663,1418.617505416667,3418.1786765300726,4836.7961819467391,null,null,1197.9017157433334,844.16333333333341,1400.9750000000001,785.22175332916675,536.88592349219061,1451.3916666666667,2196.4460036666665,6216.5393925646904,8412.9853962313573,null,null,-2798.3607160346182,-3576.1892142846177,null,null,{"$f":"'[2]EXT Comercio(M)'!C277","v":751.90919173999964},{"$f":"'[2]EXT Comercio(M)'!D277","v":415.62999999999988},{"$f":"'[2]EXT Comercio(M)'!E277","v":875.2},{"$f":"'[2]EXT Comercio(M)'!F277","v":393.39508199000011},{"$f":"'[2]EXT Comercio(M)'!G277","v":421.89563019428601},{"$f":"'[2]EXT Comercio(M)'!H277","v":766.3},{"$f":"'[2]EXT Comercio(M)'!I277","v":1222.7932149999999},{"$f":"'[2]EXT Comercio(M)'!K277","v":3624.3299039242866},{"$f":"'[2]EXT Comercio(M)'!L277","v":4847.1231189242844},null,null,{"$f":"'[2]EXT Comercio(M)'!AG277","v":1103.0783651300003},{"$f":"'[2]EXT Comercio(M)'!AH277","v":816.52000000000044},{"$f":"'[2]EXT Comercio(M)'!AI277","v":1323.2000000000003},{"$f":"'[2]EXT Comercio(M)'!AJ277","v":749.97253073999991},{"$f":"'[2]EXT Comercio(M)'!AK277","v":526.95495823688509},{"$f":"'[2]EXT Comercio(M)'!AL277","v":1386.7000000000007},{"$f":"'[2]EXT Comercio(M)'!AM277","v":1993.9396020000001},{"$f":"'[2]EXT Comercio(M)'!AO277","v":5906.4258541068921},{"$f":"'[2]EXT Comercio(M)'!AP277","v":7900.3654561068906},null,null,{"$f":"'[2]EXT Comercio(M)'!$BS277","v":-2282.0959501826001},{"$f":"'[2]EXT Comercio(M)'!$BT277","v":-3053.2423371826007}]
[null,null,"Mayo ",{"$f":"'[2]REAL IPC(M)'!AD278","v":5.0352968067359258},{"$f":"'[2]REAL IPC(M)'!AE278","v":1.2123472908700896},{"$f":"'[2]REAL IPC(M)'!AF278","v":3.8966049382715959},{"$f":"'[2]REAL IPC(M)'!AG278","v":5.1533219761499121},{"$f":"'[2]REAL IPC(M)'!AH278","v":7.5269721128235769},{"$f":"'[2]REAL IPC(M)'!AI278","v":3.540752051918298},{"$f":"'[2]REAL IPC(M)'!AJ278","v":6.0267857142857233},null,null,{"$f":"'[2]REAL IMAE(M)'!AG278","v":3.8261590109993242},{"$f":"'[2]REAL IMAE(M)'!AH278","v":3.5991041151253191},{"$f":"'[2]REAL IMAE(M)'!AI278","v":2.9972143492979799},{"$f":"'[2]REAL IMAE(M)'!AJ278","v":5.4849377258160175},{"$f":"'[2]REAL IMAE(M)'!AK278","v":4.7695738392124003},{"$f":"'[2]REAL IMAE(M)'!AL278","v":3.5629308173943151},{"$f":"'[2]REAL IMAE(M)'!AM278","v":13.056083875124092},null,null,{"$f":"'[2]EXT ITCER(M)'!C278","v":73.223354490664022},{"$f":"'[2]EXT ITCER(M)'!D278","v":89.192518415705351},{"$f":"'[2]EXT ITCER(M)'!E278","v":63.642525839376461},{"$f":"'[2]EXT ITCER(M)'!F278","v":74.812678737248874},{"$f":"'[2]EXT ITCER(M)'!G278","v":95.158502187370559},{"$f":"'[2]EXT ITCER(M)'!H278","v":93.272920628365043},{"$f":"'[2]EXT ITCER(M)'!I278","v":90.418938041077709},null,null,{"$f":"'[2]EXT TC(M)'!J278","v":0.31080010938923325},{"$f":"'[2]EXT TC(M)'!K278","v":0},{"$f":"'[2]EXT TC(M)'!L278","v":1.5866666666666585},{"$f":"'[2]EXT TC(M)'!M278","v":2.554558396813821},{"$f":"'[2]EXT TC(M)'!N278","v":4.6750191864769679},{"$f":"'[2]EXT TC(M)'!O278","v":2.9851337121381971},{"$f":"'[2]EXT TC(M)'!P278","v":0},null,null,{"$f":"'[2]EXT RIN(M)'!C278","v":4858.1739648499997},{"$f":"'[2]EXT RIN(M)'!D278","v":2651.4},{"$f":"'[2]EXT RIN(M)'!E278","v":6112.7},{"$f":"'[2]EXT RIN(M)'!F278","v":2860.6851934678953},{"$f":"'[2]EXT RIN(M)'!G278","v":1690.3},{"$f":"'[2]EXT RIN(M)'!H278","v":3012.3},{"$f":"'[2]EXT RIN(M)'!I278","v":2041.8728008699998},null,null,{"$f":"'[2]EXT RIN(M)'!P278","v":61.558086662579861},{"$f":"'[2]EXT RIN(M)'!Q278","v":100.09264062008059},{"$f":"'[2]EXT RIN(M)'!R278","v":107.02095929874027},{"$f":"'[2]EXT RIN(M)'!S278","v":77.898803330209176},{"$f":"'[2]EXT RIN(M)'!T278","v":116.46177781206566},{"$f":"'[2]EXT RIN(M)'!U278","v":56.868564999604018},{"$f":"'[2]EXT RIN(M)'!V278","v":175.77998498341466},null,null,{"$f":"+'[2]MONE(M)CAPARD'!AE278","v":4.7266998277722641},{"$f":"'[2]MONE(M)CAPARD'!AF278","v":1.2327080070026746},{"$f":"'[2]MONE(M)CAPARD'!AG278","v":1.3026364649090321},{"$f":"'[2]MONE(M)CAPARD'!AH278","v":3.0590360469825861},{"$f":"'[2]MONE(M)CAPARD'!AI278","v":-0.97652652578999422},{"$f":"'[2]MONE(M)CAPARD'!AJ278","v":6.0258862567978673},{"$f":"'[2]MONE(M)CAPARD'!AK278","v":-3.7696000000000085},null,null,{"$f":"'[2]MONE(M)CAPARD'!AL278","v":1.9867261475528928},{"$f":"'[2]MONE(M)CAPARD'!AM278","v":2.46},{"$f":"'[2]MONE(M)CAPARD'!AN278","v":2.67},{"$f":"'[2]MONE(M)CAPARD'!AO278","v":3.65},{"$f":"'[2]MONE(M)CAPARD'!AP278","v":2.3004809037473035},{"$f":"'[2]MONE(M)CAPARD'!AQ278","v":2.6},{"$f":"'[2]MONE(M)CAPARD'!AR278","v":2.0299999999999998},null,null,{"$f":"'[2]MONE(M)CAPARD'!J278","v":13.961690630766727},{"$f":"'[2]MONE(M)CAPARD'!K278","v":4.2955754169354119},{"$f":"'[2]MONE(M)CAPARD'!L278","v":9.1758484961010129},{"$f":"'[2]MONE(M)CAPARD'!M278","v":12.255131632239777},{"$f":"'[2]MONE(M)CAPARD'!N278","v":10.985431745393202},{"$f":"'[2]MONE(M)CAPARD'!O278","v":12.361555903769938},{"$f":"'[2]MONE(M)CAPARD'!P278","v":0.37086315789472823},null,null,{"$f":"'[2]MONE(M)CAPARD'!Q278","v":10.97},{"$f":"'[2]MONE(M)CAPARD'!R278","v":5.56},{"$f":"'[2]MONE(M)CAPARD'!S278","v":6.3},{"$f":"'[2]MONE(M)CAPARD'!T278","v":8.69},{"$f":"'[2]MONE(M)CAPARD'!U278","v":8.3744368675031939},{"$f":"'[2]MONE(M)CAPARD'!V278","v":7.3},{"$f":"'[2]MONE(M)CAPARD'!W278","v":6.42},null,null,{"$f":"'[2]MONE(M)CAPARD'!AS278","v":5},{"$f":"'[2]MONE(M)CAPARD'!AT278","v":"n.a."},{"$f":"'[2]MONE(M)CAPARD'!AU278","v":5.5},{"$f":"'[2]MONE(M)CAPARD'!AV278","v":7},{"$f":"'[2]MONE(M)CAPARD'!AW278","v":"n.a."},{"$f":"'[2]MONE(M)CAPARD'!AX278","v":6.75},{"$f":"'[2]MONE(M)CAPARD'!AY278","v":"n.a."},null,null,{"$f":"+'Datos_Regional (M)'!CF271","v":13.662202182965434},{"$f":"+'Datos_Regional (M)'!CG271","v":3.477026089669133},{"$f":"+'Datos_Regional (M)'!CH271","v":18.574452561475873},{"$f":"+'Datos_Regional (M)'!CI271","v":16.496792681592254},{"$f":"+'Datos_Regional (M)'!CJ271","v":25.502765266920413},{"$f":"+'Datos_Regional (M)'!CK271","v":9.0826943553058204},{"$f":"+'Datos_Regional (M)'!CL271","v":21.792552773050232},null,null,{"$f":"+AVERAGE(EH72:EH83)","v":699.69762464066662},{"$f":"+AVERAGE(EI72:EI83)","v":439.98166666666674},{"$f":"+AVERAGE(EJ72:EJ83)","v":853.43333333333328},{"$f":"+AVERAGE(EK72:EK83)","v":340.41978561916665},{"$f":"+AVERAGE(EL72:EL83)","v":377.63267447844413},{"$f":"+AVERAGE(EM72:EM83)","v":716.5333333333333},{"$f":"+AVERAGE(EN72:EN83)","v":1429.1767017499999},{"$f":"+AVERAGE(EO72:EO83)","v":3427.6984180716113},{"$f":"+AVERAGE(EP72:EP83)","v":4856.8751198216096},null,null,{"$f":"+AVERAGE(ES72:ES83)","v":1205.7230759024999},{"$f":"+AVERAGE(ET72:ET83)","v":849.22000000000014},{"$f":"+AVERAGE(EU72:EU83)","v":1404.1333333333334},{"$f":"+AVERAGE(EV72:EV83)","v":782.69490482916672},{"$f":"+AVERAGE(EW72:EW83)","v":543.89477949929278},{"$f":"+AVERAGE(EX72:EX83)","v":1454.8416666666669},{"$f":"+AVERAGE(EY72:EY83)","v":2219.9356451666667},{"$f":"+AVERAGE(EZ72:EZ83)","v":6240.5077602309602},{"$f":"+AVERAGE(FA72:FA83)","v":8460.4434053976274},null,null,{"$f":"+AVERAGE(FD72:FD83)","v":-2812.8093421593499},{"$f":"+AVERAGE(FE72:FE83)","v":-3603.5682855760169},null,null,{"$f":"'[2]EXT Comercio(M)'!C278","v":837.58371254000031},{"$f":"'[2]EXT Comercio(M)'!D278","v":461.18000000000029},{"$f":"'[2]EXT Comercio(M)'!E278","v":871.40000000000032},{"$f":"'[2]EXT Comercio(M)'!F278","v":415.6289853899998},{"$f":"'[2]EXT Comercio(M)'!G278","v":392.16362888076696},{"$f":"'[2]EXT Comercio(M)'!H278","v":800.59999999999991},{"$f":"'[2]EXT Comercio(M)'!I278","v":1522.7373339999999},{"$f":"'[2]EXT Comercio(M)'!K278","v":3778.556326810769},{"$f":"'[2]EXT Comercio(M)'!L278","v":5301.2936608107666},null,null,{"$f":"'[2]EXT Comercio(M)'!AG278","v":1284.2472441999996},{"$f":"'[2]EXT Comercio(M)'!AH278","v":989.73999999999978},{"$f":"'[2]EXT Comercio(M)'!AI278","v":1574.1999999999998},{"$f":"'[2]EXT Comercio(M)'!AJ278","v":817.35404818999996},{"$f":"'[2]EXT Comercio(M)'!AK278","v":652.10843299372971},{"$f":"'[2]EXT Comercio(M)'!AL278","v":1512.6999999999998},{"$f":"'[2]EXT Comercio(M)'!AM278","v":2492.9870689999998},{"$f":"'[2]EXT Comercio(M)'!AO278","v":6830.3497253837268},{"$f":"'[2]EXT Comercio(M)'!AP278","v":9323.3367943837293},null,null,{"$f":"'[2]EXT Comercio(M)'!$BS278","v":-3051.7933985729651},{"$f":"'[2]EXT Comercio(M)'!$BT278","v":-4022.0431335729663}]
[null,null,"Junio",{"$f":"'[2]REAL IPC(M)'!AD279","v":4.6149100459102517},{"$f":"'[2]REAL IPC(M)'!AE279","v":0.60583465374218604},{"$f":"'[2]REAL IPC(M)'!AF279","v":3.473088362275726},{"$f":"'[2]REAL IPC(M)'!AG279","v":4.7073791348600489},{"$f":"'[2]REAL IPC(M)'!AH279","v":6.4643678423417246},{"$f":"'[2]REAL IPC(M)'!AI279","v":2.7113840340104058},{"$f":"'[2]REAL IPC(M)'!AJ279","v":5.7949479940564714},null,null,{"$f":"'[2]REAL IMAE(M)'!AG279","v":3.6420299596183168},{"$f":"'[2]REAL IMAE(M)'!AH279","v":4.1163041122988728},{"$f":"'[2]REAL IMAE(M)'!AI279","v":2.8209935199883871},{"$f":"'[2]REAL IMAE(M)'!AJ279","v":5.6093457230825745},{"$f":"'[2]REAL IMAE(M)'!AK279","v":4.5856590634876513},{"$f":"'[2]REAL IMAE(M)'!AL279","v":3.4579848784476868},{"$f":"'[2]REAL IMAE(M)'!AM279","v":12.602176873971125},null,null,{"$f":"'[2]EXT ITCER(M)'!C279","v":72.382938376473348},{"$f":"'[2]EXT ITCER(M)'!D279","v":89.60593640218103},{"$f":"'[2]EXT ITCER(M)'!E279","v":64.047044205048763},{"$f":"'[2]EXT ITCER(M)'!F279","v":75.053010479860788},{"$f":"'[2]EXT ITCER(M)'!G279","v":95.943264583162716},{"$f":"'[2]EXT ITCER(M)'!H279","v":93.101640403606041},{"$f":"'[2]EXT ITCER(M)'!I279","v":90.40766313482122},null,null,{"$f":"'[2]EXT TC(M)'!J279","v":-1.0868667052279113},{"$f":"'[2]EXT TC(M)'!K279","v":0},{"$f":"'[2]EXT TC(M)'!L279","v":0.92428511819825432},{"$f":"'[2]EXT TC(M)'!M279","v":2.969099320534351},{"$f":"'[2]EXT TC(M)'!N279","v":4.562871810592962},{"$f":"'[2]EXT TC(M)'!O279","v":2.7225874309755338},{"$f":"'[2]EXT TC(M)'!P279","v":0},null,null,{"$f":"'[2]EXT RIN(M)'!C279","v":4869.4577913100002},{"$f":"'[2]EXT RIN(M)'!D279","v":2601.4},{"$f":"'[2]EXT RIN(M)'!E279","v":6811.6},{"$f":"'[2]EXT RIN(M)'!F279","v":2784.4624407518713},{"$f":"'[2]EXT RIN(M)'!G279","v":1689.1},{"$f":"'[2]EXT RIN(M)'!H279","v":3219.2},{"$f":"'[2]EXT RIN(M)'!I279","v":2209.4662591199999},null,null,{"$f":"'[2]EXT RIN(M)'!P279","v":60.556086704608894},{"$f":"'[2]EXT RIN(M)'!Q279","v":98.510415278164885},{"$f":"'[2]EXT RIN(M)'!R279","v":116.64650235092971},{"$f":"'[2]EXT RIN(M)'!S279","v":75.001706335630075},{"$f":"'[2]EXT RIN(M)'!T279","v":116.77518976257666},{"$f":"'[2]EXT RIN(M)'!U279","v":58.371261440626988},{"$f":"'[2]EXT RIN(M)'!V279","v":192.18532799622844},null,null,{"$f":"+'[2]MONE(M)CAPARD'!AE279","v":4.9085641347263156},{"$f":"'[2]MONE(M)CAPARD'!AF279","v":2.0914943487122559},{"$f":"'[2]MONE(M)CAPARD'!AG279","v":1.668947612424674},{"$f":"'[2]MONE(M)CAPARD'!AH279","v":3.6412150668286767},{"$f":"'[2]MONE(M)CAPARD'!AI279","v":0.53748070481872801},{"$f":"'[2]MONE(M)CAPARD'!AJ279","v":6.2394407652685642},{"$f":"'[2]MONE(M)CAPARD'!AK279","v":-3.5492696629213558},null,null,{"$f":"'[2]MONE(M)CAPARD'!AL279","v":2.0056829169914554},{"$f":"'[2]MONE(M)CAPARD'!AM279","v":2.71},{"$f":"'[2]MONE(M)CAPARD'!AN279","v":2.66},{"$f":"'[2]MONE(M)CAPARD'!AO279","v":3.75},{"$f":"'[2]MONE(M)CAPARD'!AP279","v":1.9469250399295202},{"$f":"'[2]MONE(M)CAPARD'!AQ279","v":3.26},{"$f":"'[2]MONE(M)CAPARD'!AR279","v":2.04},null,null,{"$f":"'[2]MONE(M)CAPARD'!J279","v":14.314489156008383},{"$f":"'[2]MONE(M)CAPARD'!K279","v":4.6161988141560206},{"$f":"'[2]MONE(M)CAPARD'!L279","v":9.6516995827538334},{"$f":"'[2]MONE(M)CAPARD'!M279","v":12.857375455650065},{"$f":"'[2]MONE(M)CAPARD'!N279","v":10.578465748162245},{"$f":"'[2]MONE(M)CAPARD'!O279","v":13.132542310522426},{"$f":"'[2]MONE(M)CAPARD'!P279","v":0.67588483146066658},null,null,{"$f":"'[2]MONE(M)CAPARD'!Q279","v":10.74},{"$f":"'[2]MONE(M)CAPARD'!R279","v":5.25},{"$f":"'[2]MONE(M)CAPARD'!S279","v":6.3},{"$f":"'[2]MONE(M)CAPARD'!T279","v":8.66},{"$f":"'[2]MONE(M)CAPARD'!U279","v":8.3744368675031939},{"$f":"'[2]MONE(M)CAPARD'!V279","v":7.38},{"$f":"'[2]MONE(M)CAPARD'!W279","v":6.51},null,null,{"$f":"'[2]MONE(M)CAPARD'!AS279","v":5},{"$f":"'[2]MONE(M)CAPARD'!AT279","v":"n.a."},{"$f":"'[2]MONE(M)CAPARD'!AU279","v":5},{"$f":"'[2]MONE(M)CAPARD'!AV279","v":7},{"$f":"'[2]MONE(M)CAPARD'!AW279","v":"n.a."},{"$f":"'[2]MONE(M)CAPARD'!AX279","v":6},{"$f":"'[2]MONE(M)CAPARD'!AY279","v":"n.a."},null,null,{"$f":"+'Datos_Regional (M)'!CF272","v":14.267983672314299},{"$f":"+'Datos_Regional (M)'!CG272","v":3.8699488964188067},{"$f":"+'Datos_Regional (M)'!CH272","v":18.305870092304776},{"$f":"+'Datos_Regional (M)'!CI272","v":16.365305037684298},{"$f":"+'Datos_Regional (M)'!CJ272","v":28.228214455755428},{"$f":"+'Datos_Regional (M)'!CK272","v":8.9512391513454581},{"$f":"+'Datos_Regional (M)'!CL272","v":15.880989384963694},null,null,703.88081490233344,433.86333333333329,849.76666666666654,339.94844490916665,378.87340226912102,710.7833333333333,1421.3003142500002,3417.1159954139544,4838.4163096639541,null,null,1211.3830916249999,834.2258333333333,1403.2250000000001,773.92988520666677,545.61798866014669,1462.45,2208.5943003333332,6230.8317988251474,8439.4260991584815,null,null,-2813.7158034111931,-3601.0097894945266,null,null,{"$f":"'[2]EXT Comercio(M)'!C279","v":752.83479862999957},{"$f":"'[2]EXT Comercio(M)'!D279","v":392.31999999999971},{"$f":"'[2]EXT Comercio(M)'!E279","v":831.40000000000009},{"$f":"'[2]EXT Comercio(M)'!F279","v":384.80890296000007},{"$f":"'[2]EXT Comercio(M)'!G279","v":389.27537908330999},{"$f":"'[2]EXT Comercio(M)'!H279","v":729.5},{"$f":"'[2]EXT Comercio(M)'!I279","v":1263.8078369999998},{"$f":"'[2]EXT Comercio(M)'!K279","v":3480.1390806733034},{"$f":"'[2]EXT Comercio(M)'!L279","v":4743.946917673311},null,null,{"$f":"'[2]EXT Comercio(M)'!AG279","v":1175.1964767699997},{"$f":"'[2]EXT Comercio(M)'!AH279","v":686.42000000000007},{"$f":"'[2]EXT Comercio(M)'!AI279","v":1450.0000000000002},{"$f":"'[2]EXT Comercio(M)'!AJ279","v":741.66170534000003},{"$f":"'[2]EXT Comercio(M)'!AK279","v":547.50194626571147},{"$f":"'[2]EXT Comercio(M)'!AL279","v":1551.4},{"$f":"'[2]EXT Comercio(M)'!AM279","v":2124.8850820000011},{"$f":"'[2]EXT Comercio(M)'!AO279","v":6152.1801283757086},{"$f":"'[2]EXT Comercio(M)'!AP279","v":8277.0652103757093},null,null,{"$f":"'[2]EXT Comercio(M)'!$BS279","v":-2672.0410477024016},{"$f":"'[2]EXT Comercio(M)'!$BT279","v":-3533.1182927023983}]
[null,null,"Julio",{"$f":"'[2]REAL IPC(M)'!AD280","v":3.9486456636426319},{"$f":"'[2]REAL IPC(M)'!AE280","v":3.7185088779405275E-2},{"$f":"'[2]REAL IPC(M)'!AF280","v":2.8606728758791093},{"$f":"'[2]REAL IPC(M)'!AG280","v":4.0859309182813766},{"$f":"'[2]REAL IPC(M)'!AH280","v":6.369628450408217},{"$f":"'[2]REAL IPC(M)'!AI280","v":1.6393442622950924},{"$f":"'[2]REAL IPC(M)'!AJ280","v":6.013363028953238},null,null,{"$f":"'[2]REAL IMAE(M)'!AG280","v":3.6374455196216293},{"$f":"'[2]REAL IMAE(M)'!AH280","v":2.9035996652229064},{"$f":"'[2]REAL IMAE(M)'!AI280","v":2.6940035425491806},{"$f":"'[2]REAL IMAE(M)'!AJ280","v":5.4628048840254309},{"$f":"'[2]REAL IMAE(M)'!AK280","v":4.7996714695263236},{"$f":"'[2]REAL IMAE(M)'!AL280","v":2.9738603442508866},{"$f":"'[2]REAL IMAE(M)'!AM280","v":11.604570670094896},null,null,{"$f":"'[2]EXT ITCER(M)'!C280","v":72.692318630104751},{"$f":"'[2]EXT ITCER(M)'!D280","v":89.906683055323441},{"$f":"'[2]EXT ITCER(M)'!E280","v":63.636375277427099},{"$f":"'[2]EXT ITCER(M)'!F280","v":75.316719887113976},{"$f":"'[2]EXT ITCER(M)'!G280","v":96.452398908770689},{"$f":"'[2]EXT ITCER(M)'!H280","v":93.353908952900952},{"$f":"'[2]EXT ITCER(M)'!I280","v":90.180457872606695},null,null,{"$f":"'[2]EXT TC(M)'!J280","v":-0.8331783113977117},{"$f":"'[2]EXT TC(M)'!K280","v":0},{"$f":"'[2]EXT TC(M)'!L280","v":0.86733079818450587},{"$f":"'[2]EXT TC(M)'!M280","v":3.5090377964445958},{"$f":"'[2]EXT TC(M)'!N280","v":4.8456929784925364},{"$f":"'[2]EXT TC(M)'!O280","v":2.7239225746758975},{"$f":"'[2]EXT TC(M)'!P280","v":0},null,null,{"$f":"'[2]EXT RIN(M)'!C280","v":4911.8982414900001},{"$f":"'[2]EXT RIN(M)'!D280","v":2526},{"$f":"'[2]EXT RIN(M)'!E280","v":6778.1},{"$f":"'[2]EXT RIN(M)'!F280","v":2690.4639516236912},{"$f":"'[2]EXT RIN(M)'!G280","v":1618.7},{"$f":"'[2]EXT RIN(M)'!H280","v":3127.7},{"$f":"'[2]EXT RIN(M)'!I280","v":2134.6191387399999},null,null,{"$f":"'[2]EXT RIN(M)'!P280","v":61.184830226206479},{"$f":"'[2]EXT RIN(M)'!Q280","v":97.340065186244757},{"$f":"'[2]EXT RIN(M)'!R280","v":113.90566873835175},{"$f":"'[2]EXT RIN(M)'!S280","v":74.620126488487699},{"$f":"'[2]EXT RIN(M)'!T280","v":112.60141166161904},{"$f":"'[2]EXT RIN(M)'!U280","v":54.960668911353054},{"$f":"'[2]EXT RIN(M)'!V280","v":179.70200221824973},null,null,{"$f":"+'[2]MONE(M)CAPARD'!AE280","v":6.0619879134811541},{"$f":"'[2]MONE(M)CAPARD'!AF280","v":2.4918883003438279},{"$f":"'[2]MONE(M)CAPARD'!AG280","v":2.4103742030860218},{"$f":"'[2]MONE(M)CAPARD'!AH280","v":4.5578389316066419},{"$f":"'[2]MONE(M)CAPARD'!AI280","v":1.0609812312789346},{"$f":"'[2]MONE(M)CAPARD'!AJ280","v":6.7303225806451508},{"$f":"'[2]MONE(M)CAPARD'!AK280","v":-3.7479831932773191},null,null,{"$f":"'[2]MONE(M)CAPARD'!AL280","v":2.1150000000000002},{"$f":"'[2]MONE(M)CAPARD'!AM280","v":2.5299999999999998},{"$f":"'[2]MONE(M)CAPARD'!AN280","v":2.68},{"$f":"'[2]MONE(M)CAPARD'!AO280","v":3.8},{"$f":"'[2]MONE(M)CAPARD'!AP280","v":2.7407337275071901},{"$f":"'[2]MONE(M)CAPARD'!AQ280","v":2.42},{"$f":"'[2]MONE(M)CAPARD'!AR280","v":2.04},null,null,{"$f":"'[2]MONE(M)CAPARD'!J280","v":15.38389868791773},{"$f":"'[2]MONE(M)CAPARD'!K280","v":5.3308326363720777},{"$f":"'[2]MONE(M)CAPARD'!L280","v":10.353157165296132},{"$f":"'[2]MONE(M)CAPARD'!M280","v":13.608053419668154},{"$f":"'[2]MONE(M)CAPARD'!N280","v":11.029255101179551},{"$f":"'[2]MONE(M)CAPARD'!O280","v":14.08967741935483},{"$f":"'[2]MONE(M)CAPARD'!P280","v":0.3709943977590951},null,null,{"$f":"'[2]MONE(M)CAPARD'!Q280","v":10.79},{"$f":"'[2]MONE(M)CAPARD'!R280","v":5.37},{"$f":"'[2]MONE(M)CAPARD'!S280","v":6.22},{"$f":"'[2]MONE(M)CAPARD'!T280","v":8.75},{"$f":"'[2]MONE(M)CAPARD'!U280","v":8.3394512614496801},{"$f":"'[2]MONE(M)CAPARD'!V280","v":6.78},{"$f":"'[2]MONE(M)CAPARD'!W280","v":6.4066666666666663},null,null,{"$f":"'[2]MONE(M)CAPARD'!AS280","v":5},{"$f":"'[2]MONE(M)CAPARD'!AT280","v":"n.a."},{"$f":"'[2]MONE(M)CAPARD'!AU280","v":5},{"$f":"'[2]MONE(M)CAPARD'!AV280","v":7},{"$f":"'[2]MONE(M)CAPARD'!AW280","v":"n.a."},{"$f":"'[2]MONE(M)CAPARD'!AX280","v":6},{"$f":"'[2]MONE(M)CAPARD'!AY280","v":"n.a."},null,null,{"$f":"+'Datos_Regional (M)'!CF273","v":14.259429526557454},{"$f":"+'Datos_Regional (M)'!CG273","v":3.9126728095621122},{"$f":"+'Datos_Regional (M)'!CH273","v":20.251560921546897},{"$f":"+'Datos_Regional (M)'!CI273","v":15.996521222250637},{"$f":"+'Datos_Regional (M)'!CJ273","v":29.593259490418909},{"$f":"+'Datos_Regional (M)'!CK273","v":7.1548996286515232},{"$f":"+'Datos_Regional (M)'!CL273","v":15.934564067532264},null,null,707.87645667983327,438.28500000000003,846.4,348.95651216750002,384.0878721620191,715.19999999999993,1410.8370857500001,3440.8058410093527,4851.642926759353,null,null,1208.0209360533333,843.76333333333332,1411.3416666666669,772.12470664416662,544.56137101368211,1469.2833333333335,2219.6929264999999,6249.0953470445156,8468.7882735445164,null,null,-2808.2895060351639,-3617.1453467851638,null,null,{"$f":"'[2]EXT Comercio(M)'!C280","v":694.26449775000037},{"$f":"'[2]EXT Comercio(M)'!D280","v":524.79},{"$f":"'[2]EXT Comercio(M)'!E280","v":783.50000000000023},{"$f":"'[2]EXT Comercio(M)'!F280","v":383.41401572999985},{"$f":"'[2]EXT Comercio(M)'!G280","v":414.99388910660707},{"$f":"'[2]EXT Comercio(M)'!H280","v":785.6},{"$f":"'[2]EXT Comercio(M)'!I280","v":1314.341471},{"$f":"'[2]EXT Comercio(M)'!K280","v":3586.5624025866127},{"$f":"'[2]EXT Comercio(M)'!L280","v":4900.9038735866125},null,null,{"$f":"'[2]EXT Comercio(M)'!AG280","v":1184.3538777200001},{"$f":"'[2]EXT Comercio(M)'!AH280","v":1027.0599999999995},{"$f":"'[2]EXT Comercio(M)'!AI280","v":1425.7999999999997},{"$f":"'[2]EXT Comercio(M)'!AJ280","v":750.41952325999955},{"$f":"'[2]EXT Comercio(M)'!AK280","v":551.98665271486709},{"$f":"'[2]EXT Comercio(M)'!AL280","v":1560.2999999999997},{"$f":"'[2]EXT Comercio(M)'!AM280","v":2534.5442300000004},{"$f":"'[2]EXT Comercio(M)'!AO280","v":6499.9200536948629},{"$f":"'[2]EXT Comercio(M)'!AP280","v":9034.4642836948624},null,null,{"$f":"'[2]EXT Comercio(M)'!$BS280","v":-2913.3576511082574},{"$f":"'[2]EXT Comercio(M)'!$BT280","v":-4133.5604101082572}]
[null,null,"Agosto",{"$f":"'[2]REAL IPC(M)'!AD281","v":4.230869108776063},{"$f":"'[2]REAL IPC(M)'!AE281","v":0.10214504596527017},{"$f":"'[2]REAL IPC(M)'!AF281","v":2.7113840340103943},{"$f":"'[2]REAL IPC(M)'!AG281","v":4.3222828367603787},{"$f":"'[2]REAL IPC(M)'!AH281","v":5.9664513046565943},{"$f":"'[2]REAL IPC(M)'!AI281","v":2.1625652498135697},{"$f":"'[2]REAL IPC(M)'!AJ281","v":6.0606060606060375},null,null,{"$f":"'[2]REAL IMAE(M)'!AG281","v":3.7085878276893034},{"$f":"'[2]REAL IMAE(M)'!AH281","v":2.9134975096287241},{"$f":"'[2]REAL IMAE(M)'!AI281","v":2.7484109304843276},{"$f":"'[2]REAL IMAE(M)'!AJ281","v":5.2848780532450439},{"$f":"'[2]REAL IMAE(M)'!AK281","v":5.4138225750334916},{"$f":"'[2]REAL IMAE(M)'!AL281","v":2.3834577668856229},{"$f":"'[2]REAL IMAE(M)'!AM281","v":10.073040174063035},null,null,{"$f":"'[2]EXT ITCER(M)'!C281","v":72.547312500221793},{"$f":"'[2]EXT ITCER(M)'!D281","v":90.269615238841297},{"$f":"'[2]EXT ITCER(M)'!E281","v":64.218423580862734},{"$f":"'[2]EXT ITCER(M)'!F281","v":75.615532680488911},{"$f":"'[2]EXT ITCER(M)'!G281","v":97.2991602759069},{"$f":"'[2]EXT ITCER(M)'!H281","v":93.025692739214733},{"$f":"'[2]EXT ITCER(M)'!I281","v":90.261903454441565},null,null,{"$f":"'[2]EXT TC(M)'!J281","v":-1.2370114124154099},{"$f":"'[2]EXT TC(M)'!K281","v":0},{"$f":"'[2]EXT TC(M)'!L281","v":0.74435209888866072},{"$f":"'[2]EXT TC(M)'!M281","v":4.0784441997269445},{"$f":"'[2]EXT TC(M)'!N281","v":4.9950137625653879},{"$f":"'[2]EXT TC(M)'!O281","v":2.75576690662604},{"$f":"'[2]EXT TC(M)'!P281","v":0},null,null,{"$f":"'[2]EXT RIN(M)'!C281","v":4898.2062223599996},{"$f":"'[2]EXT RIN(M)'!D281","v":2499.4},{"$f":"'[2]EXT RIN(M)'!E281","v":6765.7},{"$f":"'[2]EXT RIN(M)'!F281","v":2505.9990309376426},{"$f":"'[2]EXT RIN(M)'!G281","v":1615.4},{"$f":"'[2]EXT RIN(M)'!H281","v":3245.1544858921702},{"$f":"'[2]EXT RIN(M)'!I281","v":2187.0237964900002},null,null,{"$f":"'[2]EXT RIN(M)'!P281","v":59.813244739086443},{"$f":"'[2]EXT RIN(M)'!Q281","v":96.754837935452912},{"$f":"'[2]EXT RIN(M)'!R281","v":111.5901711639949},{"$f":"'[2]EXT RIN(M)'!S281","v":72.855633576028382},{"$f":"'[2]EXT RIN(M)'!T281","v":113.35455967272412},{"$f":"'[2]EXT RIN(M)'!U281","v":55.305006944136935},{"$f":"'[2]EXT RIN(M)'!V281","v":188.81015051763254},null,null,{"$f":"+'[2]MONE(M)CAPARD'!AE281","v":6.0146585602019957},{"$f":"'[2]MONE(M)CAPARD'!AF281","v":2.6451530612244909},{"$f":"'[2]MONE(M)CAPARD'!AG281","v":2.5592255334804981},{"$f":"'[2]MONE(M)CAPARD'!AH281","v":4.6276950925181097},{"$f":"'[2]MONE(M)CAPARD'!AI281","v":1.6488672342539528},{"$f":"'[2]MONE(M)CAPARD'!AJ281","v":4.2926828512594861},{"$f":"'[2]MONE(M)CAPARD'!AK281","v":-3.6399999999999788},null,null,{"$f":"'[2]MONE(M)CAPARD'!AL281","v":2.1150000000000002},{"$f":"'[2]MONE(M)CAPARD'!AM281","v":2.75},{"$f":"'[2]MONE(M)CAPARD'!AN281","v":2.69},{"$f":"'[2]MONE(M)CAPARD'!AO281","v":3.84},{"$f":"'[2]MONE(M)CAPARD'!AP281","v":2.53039119923453},{"$f":"'[2]MONE(M)CAPARD'!AQ281","v":2.4025630982605106},{"$f":"'[2]MONE(M)CAPARD'!AR281","v":2.2000000000000002},null,null,{"$f":"'[2]MONE(M)CAPARD'!J281","v":15.292140445063115},{"$f":"'[2]MONE(M)CAPARD'!K281","v":5.3923469387755114},{"$f":"'[2]MONE(M)CAPARD'!L281","v":10.494081125827812},{"$f":"'[2]MONE(M)CAPARD'!M281","v":13.532791633145624},{"$f":"'[2]MONE(M)CAPARD'!N281","v":12.955103011143606},{"$f":"'[2]MONE(M)CAPARD'!O281","v":12.344084317190621},{"$f":"'[2]MONE(M)CAPARD'!P281","v":0.13142857142859346},null,null,{"$f":"'[2]MONE(M)CAPARD'!Q281","v":10.88},{"$f":"'[2]MONE(M)CAPARD'!R281","v":5.5},{"$f":"'[2]MONE(M)CAPARD'!S281","v":6.2},{"$f":"'[2]MONE(M)CAPARD'!T281","v":8.76},{"$f":"'[2]MONE(M)CAPARD'!U281","v":8.7967658973220306},{"$f":"'[2]MONE(M)CAPARD'!V281","v":7.011313887152685},{"$f":"'[2]MONE(M)CAPARD'!W281","v":6.2},null,null,{"$f":"'[2]MONE(M)CAPARD'!AS281","v":5},{"$f":"'[2]MONE(M)CAPARD'!AT281","v":"n.a."},{"$f":"'[2]MONE(M)CAPARD'!AU281","v":5},{"$f":"'[2]MONE(M)CAPARD'!AV281","v":7},{"$f":"'[2]MONE(M)CAPARD'!AW281","v":"n.a."},{"$f":"'[2]MONE(M)CAPARD'!AX281","v":5.5},{"$f":"'[2]MONE(M)CAPARD'!AY281","v":"n.a."},null,null,{"$f":"+'Datos_Regional (M)'!CF274","v":13.290052753979031},{"$f":"+'Datos_Regional (M)'!CG274","v":4.4125206000325878},{"$f":"+'Datos_Regional (M)'!CH274","v":39.60211478227167},{"$f":"+'Datos_Regional (M)'!CI274","v":16.58473714257056},{"$f":"+'Datos_Regional (M)'!CJ274","v":29.494513297546888},{"$f":"+'Datos_Regional (M)'!CK274","v":6.81634788108052},{"$f":"+'Datos_Regional (M)'!CL274","v":14.898321025679785},null,null,715.41018796483331,440.93833333333333,844.58333333333337,362.49490264333326,387.33956670779907,718.25,1416.8282256666664,3469.016323982632,4885.8445496492986,null,null,1216.5319834133331,843.22833333333335,1406.0333333333335,778.82234853833336,547.30598998776054,1475.6833333333334,2228.7361237499999,6267.6053219394271,8496.3414456894261,null,null,-2798.5889979567946,-3610.4968960401279,null,null,{"$f":"'[2]EXT Comercio(M)'!C281","v":703.22916835999968},{"$f":"'[2]EXT Comercio(M)'!D281","v":452.78999999999996},{"$f":"'[2]EXT Comercio(M)'!E281","v":829.90000000000032},{"$f":"'[2]EXT Comercio(M)'!F281","v":406.56171339999992},{"$f":"'[2]EXT Comercio(M)'!G281","v":405.200259035464},{"$f":"'[2]EXT Comercio(M)'!H281","v":733.5},{"$f":"'[2]EXT Comercio(M)'!I281","v":1579.5981750000001},{"$f":"'[2]EXT Comercio(M)'!K281","v":3531.1811407954592},{"$f":"'[2]EXT Comercio(M)'!L281","v":5110.7793157954584},null,null,{"$f":"'[2]EXT Comercio(M)'!AG281","v":1353.6295451099993},{"$f":"'[2]EXT Comercio(M)'!AH281","v":850.88000000000102},{"$f":"'[2]EXT Comercio(M)'!AI281","v":1439.6999999999996},{"$f":"'[2]EXT Comercio(M)'!AJ281","v":842.0393775499997},{"$f":"'[2]EXT Comercio(M)'!AK281","v":559.6829806758941},{"$f":"'[2]EXT Comercio(M)'!AL281","v":1571.5999999999992},{"$f":"'[2]EXT Comercio(M)'!AM281","v":2564.4632359999987},{"$f":"'[2]EXT Comercio(M)'!AO281","v":6617.5319033358974},{"$f":"'[2]EXT Comercio(M)'!AP281","v":9181.9951393358933},null,null,{"$f":"'[2]EXT Comercio(M)'!$BS281","v":-3086.3507625404272},{"$f":"'[2]EXT Comercio(M)'!$BT281","v":-4071.2158235404277}]
[null,null,"Setiembre",{"$f":"'[2]REAL IPC(M)'!AD282","v":4.466305312334117},{"$f":"'[2]REAL IPC(M)'!AE282","v":0.78212290502792292},{"$f":"'[2]REAL IPC(M)'!AF282","v":3.2803932690489708},{"$f":"'[2]REAL IPC(M)'!AG282","v":5.2985702270815782},{"$f":"'[2]REAL IPC(M)'!AH282","v":6.4054942745756058},{"$f":"'[2]REAL IPC(M)'!AI282","v":2.6044088921960737},{"$f":"'[2]REAL IPC(M)'!AJ282","v":5.3558327219368946},null,null,{"$f":"'[2]REAL IMAE(M)'!AG282","v":3.5096716424587671},{"$f":"'[2]REAL IMAE(M)'!AH282","v":3.381065096153721},{"$f":"'[2]REAL IMAE(M)'!AI282","v":2.9880715891369261},{"$f":"'[2]REAL IMAE(M)'!AJ282","v":5.145959719448979},{"$f":"'[2]REAL IMAE(M)'!AK282","v":6.2313350450519609},{"$f":"'[2]REAL IMAE(M)'!AL282","v":1.9365565735341803},{"$f":"'[2]REAL IMAE(M)'!AM282","v":8.4613341886258837},null,null,{"$f":"'[2]EXT ITCER(M)'!C282","v":72.638663828747312},{"$f":"'[2]EXT ITCER(M)'!D282","v":90.331615139958089},{"$f":"'[2]EXT ITCER(M)'!E282","v":64.92185542754828},{"$f":"'[2]EXT ITCER(M)'!F282","v":75.734910915175007},{"$f":"'[2]EXT ITCER(M)'!G282","v":97.452724696594416},{"$f":"'[2]EXT ITCER(M)'!H282","v":93.090423617259518},{"$f":"'[2]EXT ITCER(M)'!I282","v":90.629410646814506},null,null,{"$f":"'[2]EXT TC(M)'!J282","v":-2.5480483272600942},{"$f":"'[2]EXT TC(M)'!K282","v":0},{"$f":"'[2]EXT TC(M)'!L282","v":1.5327982081426943},{"$f":"'[2]EXT TC(M)'!M282","v":4.081574454208762},{"$f":"'[2]EXT TC(M)'!N282","v":5.0168378373397919},{"$f":"'[2]EXT TC(M)'!O282","v":2.7762048571788029},{"$f":"'[2]EXT TC(M)'!P282","v":0},null,null,{"$f":"'[2]EXT RIN(M)'!C282","v":5139.7594487200004},{"$f":"'[2]EXT RIN(M)'!D282","v":2485.6},{"$f":"'[2]EXT RIN(M)'!E282","v":6753.7},{"$f":"'[2]EXT RIN(M)'!F282","v":2466.3195746445567},{"$f":"'[2]EXT RIN(M)'!G282","v":1643.1},{"$f":"'[2]EXT RIN(M)'!H282","v":3002.4},{"$f":"'[2]EXT RIN(M)'!I282","v":1942.56059026},null,null,{"$f":"'[2]EXT RIN(M)'!P282","v":61.101273502184185},{"$f":"'[2]EXT RIN(M)'!Q282","v":99.197353885841622},{"$f":"'[2]EXT RIN(M)'!R282","v":110.4928029358711},{"$f":"'[2]EXT RIN(M)'!S282","v":72.588809234040625},{"$f":"'[2]EXT RIN(M)'!T282","v":115.17870493531042},{"$f":"'[2]EXT RIN(M)'!U282","v":52.922873145032625},{"$f":"'[2]EXT RIN(M)'!V282","v":165.20887193305981},null,null,{"$f":"+'[2]MONE(M)CAPARD'!AE282","v":5.7757328256477516},{"$f":"'[2]MONE(M)CAPARD'!AF282","v":2.1411308203991228},{"$f":"'[2]MONE(M)CAPARD'!AG282","v":2.0329189931350102},{"$f":"'[2]MONE(M)CAPARD'!AH282","v":3.9140415335463286},{"$f":"'[2]MONE(M)CAPARD'!AI282","v":1.5945715899414072},{"$f":"'[2]MONE(M)CAPARD'!AJ282","v":2.6944158760965746},{"$f":"'[2]MONE(M)CAPARD'!AK282","v":-3.0048955431754791},null,null,{"$f":"'[2]MONE(M)CAPARD'!AL282","v":2.12},{"$f":"'[2]MONE(M)CAPARD'!AM282","v":2.94},{"$f":"'[2]MONE(M)CAPARD'!AN282","v":2.72},{"$f":"'[2]MONE(M)CAPARD'!AO282","v":3.95},{"$f":"'[2]MONE(M)CAPARD'!AP282","v":3.0989768766090302},{"$f":"'[2]MONE(M)CAPARD'!AQ282","v":2.4109215332598599},{"$f":"'[2]MONE(M)CAPARD'!AR282","v":2.19},null,null,{"$f":"'[2]MONE(M)CAPARD'!J282","v":15.27161761868328},{"$f":"'[2]MONE(M)CAPARD'!K282","v":4.6018847006651988},{"$f":"'[2]MONE(M)CAPARD'!L282","v":9.9143762013729955},{"$f":"'[2]MONE(M)CAPARD'!M282","v":12.831541533546329},{"$f":"'[2]MONE(M)CAPARD'!N282","v":11.315480548550408},{"$f":"'[2]MONE(M)CAPARD'!O282","v":10.589491483077534},{"$f":"'[2]MONE(M)CAPARD'!P282","v":0.469045961002794},null,null,{"$f":"'[2]MONE(M)CAPARD'!Q282","v":10.88},{"$f":"'[2]MONE(M)CAPARD'!R282","v":5.42},{"$f":"'[2]MONE(M)CAPARD'!S282","v":6.18},{"$f":"'[2]MONE(M)CAPARD'!T282","v":8.81},{"$f":"'[2]MONE(M)CAPARD'!U282","v":8.1959132044136194},{"$f":"'[2]MONE(M)CAPARD'!V282","v":6.1213131312324967},{"$f":"'[2]MONE(M)CAPARD'!W282","v":5.85},null,null,{"$f":"'[2]MONE(M)CAPARD'!AS282","v":5},{"$f":"'[2]MONE(M)CAPARD'!AT282","v":"n.a."},{"$f":"'[2]MONE(M)CAPARD'!AU282","v":5},{"$f":"'[2]MONE(M)CAPARD'!AV282","v":7},{"$f":"'[2]MONE(M)CAPARD'!AW282","v":"n.a."},{"$f":"'[2]MONE(M)CAPARD'!AX282","v":5},{"$f":"'[2]MONE(M)CAPARD'!AY282","v":"n.a."},null,null,{"$f":"+'Datos_Regional (M)'!CF275","v":13.495197438190299},{"$f":"+'Datos_Regional (M)'!CG275","v":3.9096005408334245},{"$f":"+'Datos_Regional (M)'!CH275","v":39.396273288941309},{"$f":"+'Datos_Regional (M)'!CI275","v":16.474007504995946},{"$f":"+'Datos_Regional (M)'!CJ275","v":28.037376534173418},{"$f":"+'Datos_Regional (M)'!CK275","v":5.7105424077370515},{"$f":"+'Datos_Regional (M)'!CL275","v":15.210448060397642},null,null,719.02003226483339,438.53583333333336,841.80833333333339,367.70980691416662,389.99394296631414,719.94999999999993,1384.8525230000002,3477.0179488119807,4861.8704718119816,null,null,1212.4698076625,839.47166666666669,1394.6000000000001,781.6071125366667,551.64973873007136,1476.4083333333331,2235.4235635833334,6256.2066589292399,8491.630222512571,null,null,-2779.1887101172565,-3629.7597507005903,null,null,{"$f":"'[2]EXT Comercio(M)'!C282","v":705.31190738000078},{"$f":"'[2]EXT Comercio(M)'!D282","v":409.94000000000005},{"$f":"'[2]EXT Comercio(M)'!E282","v":785.19999999999982},{"$f":"'[2]EXT Comercio(M)'!F282","v":309.50351525999986},{"$f":"'[2]EXT Comercio(M)'!G282","v":386.16859294386802},{"$f":"'[2]EXT Comercio(M)'!H282","v":739},{"$f":"'[2]EXT Comercio(M)'!I282","v":1278.4141540000001},{"$f":"'[2]EXT Comercio(M)'!K282","v":3335.1240155838677},{"$f":"'[2]EXT Comercio(M)'!L282","v":4613.5381695838732},null,null,{"$f":"'[2]EXT Comercio(M)'!AG282","v":1097.7085044500002},{"$f":"'[2]EXT Comercio(M)'!AH282","v":790.05000000000018},{"$f":"'[2]EXT Comercio(M)'!AI282","v":1281.3},{"$f":"'[2]EXT Comercio(M)'!AJ282","v":775.6998310099998},{"$f":"'[2]EXT Comercio(M)'!AK282","v":551.43226817590596},{"$f":"'[2]EXT Comercio(M)'!AL282","v":1451.0000000000007},{"$f":"'[2]EXT Comercio(M)'!AM282","v":2464.766251},{"$f":"'[2]EXT Comercio(M)'!AO282","v":5947.1906036359069},{"$f":"'[2]EXT Comercio(M)'!AP282","v":8411.9568546359078},null,null,{"$f":"'[2]EXT Comercio(M)'!$BS282","v":-2612.0665880520392},{"$f":"'[2]EXT Comercio(M)'!$BT282","v":-3798.4186850520418}]
[null,null,"Octubre",{"$f":"'[2]REAL IPC(M)'!AD283","v":4.6840231310456026},{"$f":"'[2]REAL IPC(M)'!AE283","v":0.94111069698099625},{"$f":"'[2]REAL IPC(M)'!AF283","v":3.3478343105731034},{"$f":"'[2]REAL IPC(M)'!AG283","v":5.6722689075630255},{"$f":"'[2]REAL IPC(M)'!AH283","v":6.4684304258566057},{"$f":"'[2]REAL IPC(M)'!AI283","v":2.8175562581364852},{"$f":"'[2]REAL IPC(M)'!AJ283","v":5.2708638360175915},null,null,{"$f":"'[2]REAL IMAE(M)'!AG283","v":3.1809896441474446},{"$f":"'[2]REAL IMAE(M)'!AH283","v":3.5177577424675484},{"$f":"'[2]REAL IMAE(M)'!AI283","v":3.3033011556875174},{"$f":"'[2]REAL IMAE(M)'!AJ283","v":5.0364126435003458},{"$f":"'[2]REAL IMAE(M)'!AK283","v":6.9934263294240058},{"$f":"'[2]REAL IMAE(M)'!AL283","v":1.7267599100771456},{"$f":"'[2]REAL IMAE(M)'!AM283","v":7.1018352730480743},null,null,{"$f":"'[2]EXT ITCER(M)'!C283","v":72.480022668259409},{"$f":"'[2]EXT ITCER(M)'!D283","v":90.499971528107494},{"$f":"'[2]EXT ITCER(M)'!E283","v":64.25373077299966},{"$f":"'[2]EXT ITCER(M)'!F283","v":75.890348778569802},{"$f":"'[2]EXT ITCER(M)'!G283","v":97.437185539024966},{"$f":"'[2]EXT ITCER(M)'!H283","v":93.653332010090736},{"$f":"'[2]EXT ITCER(M)'!I283","v":90.747430371484796},null,null,{"$f":"'[2]EXT TC(M)'!J283","v":-3.3593223236246583},{"$f":"'[2]EXT TC(M)'!K283","v":0},{"$f":"'[2]EXT TC(M)'!L283","v":0.373088842984313},{"$f":"'[2]EXT TC(M)'!M283","v":4.0847208559403327},{"$f":"'[2]EXT TC(M)'!N283","v":5.0048018425171215},{"$f":"'[2]EXT TC(M)'!O283","v":2.9456842149237201},{"$f":"'[2]EXT TC(M)'!P283","v":0},null,null,{"$f":"'[2]EXT RIN(M)'!C283","v":5365.96608913},{"$f":"'[2]EXT RIN(M)'!D283","v":2548.6999999999998},{"$f":"'[2]EXT RIN(M)'!E283","v":6804.2},{"$f":"'[2]EXT RIN(M)'!F283","v":2398.500381807964},{"$f":"'[2]EXT RIN(M)'!G283","v":1684.1},{"$f":"'[2]EXT RIN(M)'!H283","v":2994.8},{"$f":"'[2]EXT RIN(M)'!I283","v":1908.7486163199999},null,null,{"$f":"'[2]EXT RIN(M)'!P283","v":63.146759894356663},{"$f":"'[2]EXT RIN(M)'!Q283","v":98.830107760375668},{"$f":"'[2]EXT RIN(M)'!R283","v":108.03640676924063},{"$f":"'[2]EXT RIN(M)'!S283","v":75.208677183355505},{"$f":"'[2]EXT RIN(M)'!T283","v":111.13950072473887},{"$f":"'[2]EXT RIN(M)'!U283","v":55.33834199794849},{"$f":"'[2]EXT RIN(M)'!V283","v":159.43826343268881},null,null,{"$f":"+'[2]MONE(M)CAPARD'!AE283","v":5.3169306093507629},{"$f":"'[2]MONE(M)CAPARD'!AF283","v":2.0793205944798254},{"$f":"'[2]MONE(M)CAPARD'!AG283","v":1.9856881405563696},{"$f":"'[2]MONE(M)CAPARD'!AH283","v":3.9156262425447319},{"$f":"'[2]MONE(M)CAPARD'!AI283","v":1.4249399453782414},{"$f":"'[2]MONE(M)CAPARD'!AJ283","v":2.0499697059670061},{"$f":"'[2]MONE(M)CAPARD'!AK283","v":-2.9931015299026629},null,null,{"$f":"'[2]MONE(M)CAPARD'!AL283","v":2.15},{"$f":"'[2]MONE(M)CAPARD'!AM283","v":3.04},{"$f":"'[2]MONE(M)CAPARD'!AN283","v":2.73},{"$f":"'[2]MONE(M)CAPARD'!AO283","v":3.92},{"$f":"'[2]MONE(M)CAPARD'!AP283","v":3.4381887188681901},{"$f":"'[2]MONE(M)CAPARD'!AQ283","v":2.5531292063992899},{"$f":"'[2]MONE(M)CAPARD'!AR283","v":2.12},null,null,{"$f":"'[2]MONE(M)CAPARD'!J283","v":15.280246584457597},{"$f":"'[2]MONE(M)CAPARD'!K283","v":4.6649866149727632},{"$f":"'[2]MONE(M)CAPARD'!L283","v":9.9103825036603226},{"$f":"'[2]MONE(M)CAPARD'!M283","v":12.508230616302185},{"$f":"'[2]MONE(M)CAPARD'!N283","v":9.5723076974709684},{"$f":"'[2]MONE(M)CAPARD'!O283","v":9.9323505788186885},{"$f":"'[2]MONE(M)CAPARD'!P283","v":0.89528048215111544},null,null,{"$f":"'[2]MONE(M)CAPARD'!Q283","v":10.8},{"$f":"'[2]MONE(M)CAPARD'!R283","v":5.65},{"$f":"'[2]MONE(M)CAPARD'!S283","v":6.17},{"$f":"'[2]MONE(M)CAPARD'!T283","v":8.85},{"$f":"'[2]MONE(M)CAPARD'!U283","v":8.9289823895589606},{"$f":"'[2]MONE(M)CAPARD'!V283","v":6.3022872373723722},{"$f":"'[2]MONE(M)CAPARD'!W283","v":6.2133333333333338},null,null,{"$f":"'[2]MONE(M)CAPARD'!AS283","v":5},{"$f":"'[2]MONE(M)CAPARD'!AT283","v":"n.a."},{"$f":"'[2]MONE(M)CAPARD'!AU283","v":5},{"$f":"'[2]MONE(M)CAPARD'!AV283","v":7},{"$f":"'[2]MONE(M)CAPARD'!AW283","v":"n.a."},{"$f":"'[2]MONE(M)CAPARD'!AX283","v":5},{"$f":"'[2]MONE(M)CAPARD'!AY283","v":"n.a."},null,null,{"$f":"+'Datos_Regional (M)'!CF276","v":13.513257349732054},{"$f":"+'Datos_Regional (M)'!CG276","v":4.403518472460255},{"$f":"+'Datos_Regional (M)'!CH276","v":38.730837846143771},{"$f":"+'Datos_Regional (M)'!CI276","v":17.746506928645299},{"$f":"+'Datos_Regional (M)'!CJ276","v":27.270744586671157},{"$f":"+'Datos_Regional (M)'!CK276","v":5.8773749637774486},{"$f":"+'Datos_Regional (M)'!CL276","v":14.256218205175596},null,null,721.94171804900009,443.21166666666659,841.81666666666661,370.89283751083332,396.36832769378401,726.55833333333339,1381.2353620833335,3500.7895499202837,4882.0249120036169,null,null,1227.1917771216667,849.81083333333333,1405.5166666666664,787.5454540574998,556.84329938979295,1480.8916666666667,2267.1862459166673,6307.7996972356268,8574.9859431522946,null,null,-2807.0101473153427,-3692.9610311486763,null,null,{"$f":"'[2]EXT Comercio(M)'!C283","v":702.93816003000029},{"$f":"'[2]EXT Comercio(M)'!D283","v":444.99000000000024},{"$f":"'[2]EXT Comercio(M)'!E283","v":732.5},{"$f":"'[2]EXT Comercio(M)'!F283","v":275.89084633999983},{"$f":"'[2]EXT Comercio(M)'!G283","v":436.07469791033805},{"$f":"'[2]EXT Comercio(M)'!H283","v":757},{"$f":"'[2]EXT Comercio(M)'!I283","v":1636.042719},{"$f":"'[2]EXT Comercio(M)'!K283","v":3349.3937042803373},{"$f":"'[2]EXT Comercio(M)'!L283","v":4985.4364232803273},null,null,{"$f":"'[2]EXT Comercio(M)'!AG283","v":1364.4941561300006},{"$f":"'[2]EXT Comercio(M)'!AH283","v":863.55000000000018},{"$f":"'[2]EXT Comercio(M)'!AI283","v":1531.7000000000003},{"$f":"'[2]EXT Comercio(M)'!AJ283","v":811.25133027999982},{"$f":"'[2]EXT Comercio(M)'!AK283","v":614.70067068481535},{"$f":"'[2]EXT Comercio(M)'!AL283","v":1519.3000000000002},{"$f":"'[2]EXT Comercio(M)'!AM283","v":2685.244356000002},{"$f":"'[2]EXT Comercio(M)'!AO283","v":6704.9961570948144},{"$f":"'[2]EXT Comercio(M)'!AP283","v":9390.2405130948173},null,null,{"$f":"'[2]EXT Comercio(M)'!$BS283","v":-3355.6024528144808},{"$f":"'[2]EXT Comercio(M)'!$BT283","v":-4404.8040898144827}]
[null,null,"Noviembre",{"$f":"'[2]REAL IPC(M)'!AD284","v":5.2163663222012522},{"$f":"'[2]REAL IPC(M)'!AE284","v":0.65128395980647824},{"$f":"'[2]REAL IPC(M)'!AF284","v":3.1140888930829433},{"$f":"'[2]REAL IPC(M)'!AG284","v":5.4416073670992047},{"$f":"'[2]REAL IPC(M)'!AH284","v":6.1635032457332173},{"$f":"'[2]REAL IPC(M)'!AI284","v":3.3723522853957482},{"$f":"'[2]REAL IPC(M)'!AJ284","v":4.4992743105950526},null,null,{"$f":"'[2]REAL IMAE(M)'!AG284","v":3.110233166912856},{"$f":"'[2]REAL IMAE(M)'!AH284","v":2.938891485068007},{"$f":"'[2]REAL IMAE(M)'!AI284","v":3.6071391489685904},{"$f":"'[2]REAL IMAE(M)'!AJ284","v":4.8799289183439463},{"$f":"'[2]REAL IMAE(M)'!AK284","v":7.4920948881026472},{"$f":"'[2]REAL IMAE(M)'!AL284","v":1.7787804434699115},{"$f":"'[2]REAL IMAE(M)'!AM284","v":6.2835961894587653},null,null,{"$f":"'[2]EXT ITCER(M)'!C284","v":72.072466843941285},{"$f":"'[2]EXT ITCER(M)'!D284","v":90.473265428986252},{"$f":"'[2]EXT ITCER(M)'!E284","v":64.140514125936321},{"$f":"'[2]EXT ITCER(M)'!F284","v":75.941831436747762},{"$f":"'[2]EXT ITCER(M)'!G284","v":96.803626269832492},{"$f":"'[2]EXT ITCER(M)'!H284","v":94.103025300126063},{"$f":"'[2]EXT ITCER(M)'!I284","v":90.469207737554441},null,null,{"$f":"'[2]EXT TC(M)'!J284","v":-1.5496652170911633},{"$f":"'[2]EXT TC(M)'!K284","v":0},{"$f":"'[2]EXT TC(M)'!L284","v":0.72901938112189735},{"$f":"'[2]EXT TC(M)'!M284","v":4.5542560254875797},{"$f":"'[2]EXT TC(M)'!N284","v":5.3353635780372368},{"$f":"'[2]EXT TC(M)'!O284","v":3.8861545825355774},{"$f":"'[2]EXT TC(M)'!P284","v":0},null,null,{"$f":"'[2]EXT RIN(M)'!C284","v":6530.7613680000004},{"$f":"'[2]EXT RIN(M)'!D284","v":2514.6},{"$f":"'[2]EXT RIN(M)'!E284","v":6711.2},{"$f":"'[2]EXT RIN(M)'!F284","v":2376.1123724889212},{"$f":"'[2]EXT RIN(M)'!G284","v":1702.5},{"$f":"'[2]EXT RIN(M)'!H284","v":3119.3},{"$f":"'[2]EXT RIN(M)'!I284","v":2106.1048792199999},null,null,{"$f":"'[2]EXT RIN(M)'!P284","v":75.365066629609785},{"$f":"'[2]EXT RIN(M)'!Q284","v":99.663191837970615},{"$f":"'[2]EXT RIN(M)'!R284","v":105.71411976243461},{"$f":"'[2]EXT RIN(M)'!S284","v":73.883324366367262},{"$f":"'[2]EXT RIN(M)'!T284","v":111.49331023499469},{"$f":"'[2]EXT RIN(M)'!U284","v":56.11320788733051},{"$f":"'[2]EXT RIN(M)'!V284","v":136.91898306608931},null,null,{"$f":"+'[2]MONE(M)CAPARD'!AE284","v":4.0712617509343474},{"$f":"'[2]MONE(M)CAPARD'!AF284","v":2.6315770012941369},{"$f":"'[2]MONE(M)CAPARD'!AG284","v":2.2265736249656864},{"$f":"'[2]MONE(M)CAPARD'!AH284","v":4.5033386264390627},{"$f":"'[2]MONE(M)CAPARD'!AI284","v":2.1724784172249403},{"$f":"'[2]MONE(M)CAPARD'!AJ284","v":1.4998954035247489},{"$f":"'[2]MONE(M)CAPARD'!AK284","v":-2.2768333333333213},null,null,{"$f":"'[2]MONE(M)CAPARD'!AL284","v":2.15},{"$f":"'[2]MONE(M)CAPARD'!AM284","v":3.3},{"$f":"'[2]MONE(M)CAPARD'!AN284","v":2.76},{"$f":"'[2]MONE(M)CAPARD'!AO284","v":3.98},{"$f":"'[2]MONE(M)CAPARD'!AP284","v":1.92275526041191},{"$f":"'[2]MONE(M)CAPARD'!AQ284","v":2.4133867878690398},{"$f":"'[2]MONE(M)CAPARD'!AR284","v":2.12},null,null,{"$f":"'[2]MONE(M)CAPARD'!J284","v":14.706489321646268},{"$f":"'[2]MONE(M)CAPARD'!K284","v":4.8670179330745027},{"$f":"'[2]MONE(M)CAPARD'!L284","v":10.120742198224589},{"$f":"'[2]MONE(M)CAPARD'!M284","v":12.820738388249305},{"$f":"'[2]MONE(M)CAPARD'!N284","v":10.431999812145555},{"$f":"'[2]MONE(M)CAPARD'!O284","v":9.8645490666499178},{"$f":"'[2]MONE(M)CAPARD'!P284","v":1.6530185185185309},null,null,{"$f":"'[2]MONE(M)CAPARD'!Q284","v":11.1},{"$f":"'[2]MONE(M)CAPARD'!R284","v":5.55},{"$f":"'[2]MONE(M)CAPARD'!S284","v":6.2},{"$f":"'[2]MONE(M)CAPARD'!T284","v":8.74},{"$f":"'[2]MONE(M)CAPARD'!U284","v":8.4761685189420692},{"$f":"'[2]MONE(M)CAPARD'!V284","v":5.8745883164269106},{"$f":"'[2]MONE(M)CAPARD'!W284","v":6.2266666666666666},null,null,{"$f":"'[2]MONE(M)CAPARD'!AS284","v":5},{"$f":"'[2]MONE(M)CAPARD'!AT284","v":"n.a."},{"$f":"'[2]MONE(M)CAPARD'!AU284","v":5},{"$f":"'[2]MONE(M)CAPARD'!AV284","v":7},{"$f":"'[2]MONE(M)CAPARD'!AW284","v":"n.a."},{"$f":"'[2]MONE(M)CAPARD'!AX284","v":5},{"$f":"'[2]MONE(M)CAPARD'!AY284","v":"n.a."},null,null,{"$f":"+'Datos_Regional (M)'!CF277","v":13.685649982366144},{"$f":"+'Datos_Regional (M)'!CG277","v":4.5378708740040352},{"$f":"+'Datos_Regional (M)'!CH277","v":37.898275065483247},{"$f":"+'Datos_Regional (M)'!CI277","v":17.321768647115764},{"$f":"+'Datos_Regional (M)'!CJ277","v":25.636888853021354},{"$f":"+'Datos_Regional (M)'!CK277","v":5.9303229719078088},{"$f":"+'Datos_Regional (M)'!CL277","v":14.616660632069657},null,null,727.06273082150017,445.54333333333335,843.3416666666667,369.58294994333323,401.10602193832887,742.85833333333323,1400.0135364166665,3529.4950360364951,4929.5085724531627,null,null,1231.7344587666664,856.59333333333336,1407.0916666666665,784.54099858583322,557.32706032879184,1477.1083333333329,2275.3033097500006,6314.3958510146258,8589.699160764625,null,null,-2784.9008149781307,-3660.1905883114637,null,null,{"$f":"'[2]EXT Comercio(M)'!C284","v":729.08477144999961},{"$f":"'[2]EXT Comercio(M)'!D284","v":416.76000000000022},{"$f":"'[2]EXT Comercio(M)'!E284","v":808.29999999999973},{"$f":"'[2]EXT Comercio(M)'!F284","v":249.70019592999961},{"$f":"'[2]EXT Comercio(M)'!G284","v":398.31836800708095},{"$f":"'[2]EXT Comercio(M)'!H284","v":876.3},{"$f":"'[2]EXT Comercio(M)'!I284","v":1709.1735840000001},{"$f":"'[2]EXT Comercio(M)'!K284","v":3478.4633353870813},{"$f":"'[2]EXT Comercio(M)'!L284","v":5187.6369193870778},null,null,{"$f":"'[2]EXT Comercio(M)'!AG284","v":1318.4243163399992},{"$f":"'[2]EXT Comercio(M)'!AH284","v":860.8700000000008},{"$f":"'[2]EXT Comercio(M)'!AI284","v":1431.0999999999997},{"$f":"'[2]EXT Comercio(M)'!AJ284","v":761.96831855999972},{"$f":"'[2]EXT Comercio(M)'!AK284","v":553.95169477013951},{"$f":"'[2]EXT Comercio(M)'!AL284","v":1475.8999999999996},{"$f":"'[2]EXT Comercio(M)'!AM284","v":2254.8065350000006},{"$f":"'[2]EXT Comercio(M)'!AO284","v":6402.2143296701397},{"$f":"'[2]EXT Comercio(M)'!AP284","v":8657.0208646701358},null,null,{"$f":"'[2]EXT Comercio(M)'!$BS284","v":-2923.7509942830548},{"$f":"'[2]EXT Comercio(M)'!$BT284","v":-3469.383945283058}]
[null,null,"Diciembre ",{"$f":"'[2]REAL IPC(M)'!AD285","v":4.5505304856303015},{"$f":"'[2]REAL IPC(M)'!AE285","v":0.78292478329759441},{"$f":"'[2]REAL IPC(M)'!AF285","v":3.4463276836158214},{"$f":"'[2]REAL IPC(M)'!AG285","v":5.3907229419139053},{"$f":"'[2]REAL IPC(M)'!AH285","v":6.6186108228091536},{"$f":"'[2]REAL IPC(M)'!AI285","v":3.9068299925760788},{"$f":"'[2]REAL IPC(M)'!AJ285","v":4.6343229543808873},null,null,{"$f":"'[2]REAL IMAE(M)'!AG285","v":2.8817303451884224},{"$f":"'[2]REAL IMAE(M)'!AH285","v":2.1651711544802668},{"$f":"'[2]REAL IMAE(M)'!AI285","v":3.8455461724763489},{"$f":"'[2]REAL IMAE(M)'!AJ285","v":4.6416192893643737},{"$f":"'[2]REAL IMAE(M)'!AK285","v":7.5260435405058699},{"$f":"'[2]REAL IMAE(M)'!AL285","v":2.0199671515635309},{"$f":"'[2]REAL IMAE(M)'!AM285","v":6.2074434805567096},null,null,{"$f":"'[2]EXT ITCER(M)'!C285","v":71.849626987776276},{"$f":"'[2]EXT ITCER(M)'!D285","v":90.504141128918391},{"$f":"'[2]EXT ITCER(M)'!E285","v":63.937206648167987},{"$f":"'[2]EXT ITCER(M)'!F285","v":76.141314783066917},{"$f":"'[2]EXT ITCER(M)'!G285","v":95.609406247864584},{"$f":"'[2]EXT ITCER(M)'!H285","v":94.053386471937614},{"$f":"'[2]EXT ITCER(M)'!I285","v":90.145249243058203},null,null,{"$f":"'[2]EXT TC(M)'!J285","v":-1.0953286373159281},{"$f":"'[2]EXT TC(M)'!K285","v":0},{"$f":"'[2]EXT TC(M)'!L285","v":1.1623029286473625},{"$f":"'[2]EXT TC(M)'!M285","v":4.8224186163205651},{"$f":"'[2]EXT TC(M)'!N285","v":5.4183704095367222},{"$f":"'[2]EXT TC(M)'!O285","v":4.2106710457022949},{"$f":"'[2]EXT TC(M)'!P285","v":0},null,null,{"$f":"'[2]EXT RIN(M)'!C285","v":6856.6761120399997},{"$f":"'[2]EXT RIN(M)'!D285","v":3172.9},{"$f":"'[2]EXT RIN(M)'!E285","v":6693.8},{"$f":"'[2]EXT RIN(M)'!F285","v":2570.9308349226294},{"$f":"'[2]EXT RIN(M)'!G285","v":1718.1},{"$f":"'[2]EXT RIN(M)'!H285","v":3209.8098136290778},{"$f":"'[2]EXT RIN(M)'!I285","v":2418.5563101600001},null,null,{"$f":"'[2]EXT RIN(M)'!P285","v":75.528614572263805},{"$f":"'[2]EXT RIN(M)'!Q285","v":131.27881511859943},{"$f":"'[2]EXT RIN(M)'!R285","v":101.67566131039575},{"$f":"'[2]EXT RIN(M)'!S285","v":74.670903759849566},{"$f":"'[2]EXT RIN(M)'!T285","v":115.30061075949349},{"$f":"'[2]EXT RIN(M)'!U285","v":56.259014451288678},{"$f":"'[2]EXT RIN(M)'!V285","v":193.37093950180434},null,null,{"$f":"+'[2]MONE(M)CAPARD'!AE285","v":4.4471027480905354},{"$f":"'[2]MONE(M)CAPARD'!AF285","v":2.7455793951724878},{"$f":"'[2]MONE(M)CAPARD'!AG285","v":1.8692517749863442},{"$f":"'[2]MONE(M)CAPARD'!AH285","v":4.8479381443299072},{"$f":"'[2]MONE(M)CAPARD'!AI285","v":1.5425221116799057},{"$f":"'[2]MONE(M)CAPARD'!AJ285","v":1.2926676788425631},{"$f":"'[2]MONE(M)CAPARD'!AK285","v":-2.3934048442906612},null,null,{"$f":"'[2]MONE(M)CAPARD'!AL285","v":2.15},{"$f":"'[2]MONE(M)CAPARD'!AM285","v":3.55},{"$f":"'[2]MONE(M)CAPARD'!AN285","v":2.77},{"$f":"'[2]MONE(M)CAPARD'!AO285","v":4.1100000000000003},{"$f":"'[2]MONE(M)CAPARD'!AP285","v":2.9963724161366301},{"$f":"'[2]MONE(M)CAPARD'!AQ285","v":2.46},{"$f":"'[2]MONE(M)CAPARD'!AR285","v":2.13},null,null,{"$f":"'[2]MONE(M)CAPARD'!J285","v":15.236144130860328},{"$f":"'[2]MONE(M)CAPARD'!K285","v":4.3926838065291882},{"$f":"'[2]MONE(M)CAPARD'!L285","v":9.6897323866739473},{"$f":"'[2]MONE(M)CAPARD'!M285","v":13.140888183980978},{"$f":"'[2]MONE(M)CAPARD'!N285","v":10.809478337601952},{"$f":"'[2]MONE(M)CAPARD'!O285","v":8.6165365722961678},{"$f":"'[2]MONE(M)CAPARD'!P285","v":1.5536747404844251},null,null,{"$f":"'[2]MONE(M)CAPARD'!Q285","v":11.1},{"$f":"'[2]MONE(M)CAPARD'!R285","v":5.21},{"$f":"'[2]MONE(M)CAPARD'!S285","v":6.1899999999999995},{"$f":"'[2]MONE(M)CAPARD'!T285","v":8.75},{"$f":"'[2]MONE(M)CAPARD'!U285","v":8.3290553009836703},{"$f":"'[2]MONE(M)CAPARD'!V285","v":6.82},{"$f":"'[2]MONE(M)CAPARD'!W285","v":6.26},null,null,{"$f":"'[2]MONE(M)CAPARD'!AS285","v":5},{"$f":"'[2]MONE(M)CAPARD'!AT285","v":"n.a."},{"$f":"'[2]MONE(M)CAPARD'!AU285","v":5},{"$f":"'[2]MONE(M)CAPARD'!AV285","v":7},{"$f":"'[2]MONE(M)CAPARD'!AW285","v":"n.a."},{"$f":"'[2]MONE(M)CAPARD'!AX285","v":5},{"$f":"'[2]MONE(M)CAPARD'!AY285","v":"n.a."},null,null,{"$f":"+'Datos_Regional (M)'!CF278","v":14.049232257194166},{"$f":"+'Datos_Regional (M)'!CG278","v":3.5380271026113297},{"$f":"+'Datos_Regional (M)'!CH278","v":41.109297639245867},{"$f":"+'Datos_Regional (M)'!CI278","v":17.022973811473708},{"$f":"+'Datos_Regional (M)'!CJ278","v":26.286194155104383},{"$f":"+'Datos_Regional (M)'!CK278","v":5.8899808902095563},{"$f":"+'Datos_Regional (M)'!CL278","v":15.211570560887466},null,null,728.94378617916664,444.92333333333335,831.55833333333339,365.92236845999992,402.35795059053493,744.62499999999989,1409.7487818333332,3518.3307718963679,4928.0795537297017,null,null,1242.931460585,854.78416666666681,1416.1666666666667,782.10712010499992,565.26119913873947,1472.7749999999999,2268.2019118333337,6334.0256131620736,8602.2275249954073,null,null,-2815.6948412657043,-3674.1479712657051,null,null,{"$f":"'[2]EXT Comercio(M)'!C285","v":652.92807761999939},{"$f":"'[2]EXT Comercio(M)'!D285","v":418.1899999999996},{"$f":"'[2]EXT Comercio(M)'!E285","v":823.69999999999982},{"$f":"'[2]EXT Comercio(M)'!F285","v":293.21729701000004},{"$f":"'[2]EXT Comercio(M)'!G285","v":352.52586028600399},{"$f":"'[2]EXT Comercio(M)'!H285","v":684.8},{"$f":"'[2]EXT Comercio(M)'!I285","v":1195.649776},{"$f":"'[2]EXT Comercio(M)'!K285","v":3225.361234916003},{"$f":"'[2]EXT Comercio(M)'!L285","v":4421.0110109160159},null,null,{"$f":"'[2]EXT Comercio(M)'!AG285","v":1279.462139050001},{"$f":"'[2]EXT Comercio(M)'!AH285","v":835.31999999999971},{"$f":"'[2]EXT Comercio(M)'!AI285","v":1409.4999999999993},{"$f":"'[2]EXT Comercio(M)'!AJ285","v":747.11638144000062},{"$f":"'[2]EXT Comercio(M)'!AK285","v":602.48065384951815},{"$f":"'[2]EXT Comercio(M)'!AL285","v":1478.5000000000005},{"$f":"'[2]EXT Comercio(M)'!AM285","v":1823.3658869999999},{"$f":"'[2]EXT Comercio(M)'!AO285","v":6352.3791743395268},{"$f":"'[2]EXT Comercio(M)'!AP285","v":8175.745061339534},null,null,{"$f":"'[2]EXT Comercio(M)'!$BS285","v":-3127.0179394235129},{"$f":"'[2]EXT Comercio(M)'!$BT285","v":-3754.7340504235108}]
[null,2013,"Enero",{"$f":"'[2]REAL IPC(M)'!AD286","v":5.7367026519222346},{"$f":"'[2]REAL IPC(M)'!AE286","v":0.87320018578727132},{"$f":"'[2]REAL IPC(M)'!AF286","v":3.8570084666039608},{"$f":"'[2]REAL IPC(M)'!AG286","v":5.6713928273561276},{"$f":"'[2]REAL IPC(M)'!AH286","v":7.7431221581462317},{"$f":"'[2]REAL IPC(M)'!AI286","v":4.758384921001551},{"$f":"'[2]REAL IPC(M)'!AJ286","v":4.6829971181556225},null,null,{"$f":"'[2]REAL IMAE(M)'!AG286","v":2.2970704254229526},{"$f":"'[2]REAL IMAE(M)'!AH286","v":2.318408845284607},{"$f":"'[2]REAL IMAE(M)'!AI286","v":4.005732811205494},{"$f":"'[2]REAL IMAE(M)'!AJ286","v":4.2036275812827526},{"$f":"'[2]REAL IMAE(M)'!AK286","v":7.2059606366063083},{"$f":"'[2]REAL IMAE(M)'!AL286","v":2.3298763661160073},{"$f":"'[2]REAL IMAE(M)'!AM286","v":6.5032474903153323},null,null,{"$f":"'[2]EXT ITCER(M)'!C286","v":71.205571356458677},{"$f":"'[2]EXT ITCER(M)'!D286","v":90.299265147167631},{"$f":"'[2]EXT ITCER(M)'!E286","v":63.681858391970778},{"$f":"'[2]EXT ITCER(M)'!F286","v":76.216118929873275},{"$f":"'[2]EXT ITCER(M)'!G286","v":95.286887136546284},{"$f":"'[2]EXT ITCER(M)'!H286","v":94.006493164856536},{"$f":"'[2]EXT ITCER(M)'!I286","v":89.826498621022907},null,null,{"$f":"'[2]EXT TC(M)'!J286","v":-1.7366074913835243},{"$f":"'[2]EXT TC(M)'!K286","v":0},{"$f":"'[2]EXT TC(M)'!L286","v":0.91712287650779423},{"$f":"'[2]EXT TC(M)'!M286","v":4.7880183605774009},{"$f":"'[2]EXT TC(M)'!N286","v":5.2674431116844094},{"$f":"'[2]EXT TC(M)'!O286","v":4.4191217342968265},{"$f":"'[2]EXT TC(M)'!P286","v":0},null,null,{"$f":"'[2]EXT RIN(M)'!C286","v":6748.7871541100003},{"$f":"'[2]EXT RIN(M)'!D286","v":3116},{"$f":"'[2]EXT RIN(M)'!E286","v":6649.7},{"$f":"'[2]EXT RIN(M)'!F286","v":2535.3638062192508},{"$f":"'[2]EXT RIN(M)'!G286","v":1717.9},{"$f":"'[2]EXT RIN(M)'!H286","v":3017.8},{"$f":"'[2]EXT RIN(M)'!I286","v":2590.8353731500001},null,null,{"$f":"'[2]EXT RIN(M)'!P286","v":71.343228895754351},{"$f":"'[2]EXT RIN(M)'!Q286","v":115.52537164801244},{"$f":"'[2]EXT RIN(M)'!R286","v":103.08884859816045},{"$f":"'[2]EXT RIN(M)'!S286","v":73.937711462219013},{"$f":"'[2]EXT RIN(M)'!T286","v":114.21335335326681},{"$f":"'[2]EXT RIN(M)'!U286","v":56.588836462159783},{"$f":"'[2]EXT RIN(M)'!V286","v":217.3229183104186},null,null,{"$f":"+'[2]MONE(M)CAPARD'!AE286","v":2.4242266722804477},{"$f":"'[2]MONE(M)CAPARD'!AF286","v":2.4950133529790985},{"$f":"'[2]MONE(M)CAPARD'!AG286","v":1.5049456521739035},{"$f":"'[2]MONE(M)CAPARD'!AH286","v":5.1183267561168133},{"$f":"'[2]MONE(M)CAPARD'!AI286","v":0.6527348585987377},{"$f":"'[2]MONE(M)CAPARD'!AJ286","v":1.0897600987828735},{"$f":"'[2]MONE(M)CAPARD'!AK286","v":-2.4292360633172772},null,null,{"$f":"'[2]MONE(M)CAPARD'!AL286","v":2.1550000000000002},{"$f":"'[2]MONE(M)CAPARD'!AM286","v":3.39},{"$f":"'[2]MONE(M)CAPARD'!AN286","v":2.78},{"$f":"'[2]MONE(M)CAPARD'!AO286","v":4.17},{"$f":"'[2]MONE(M)CAPARD'!AP286","v":3.2650459696615299},{"$f":"'[2]MONE(M)CAPARD'!AQ286","v":2.11},{"$f":"'[2]MONE(M)CAPARD'!AR286","v":2.14},null,null,{"$f":"'[2]MONE(M)CAPARD'!J286","v":13.621852192130868},{"$f":"'[2]MONE(M)CAPARD'!K286","v":4.4677870890505593},{"$f":"'[2]MONE(M)CAPARD'!L286","v":9.3041304347825982},{"$f":"'[2]MONE(M)CAPARD'!M286","v":13.08642462509866},{"$f":"'[2]MONE(M)CAPARD'!N286","v":12.606536286991251},{"$f":"'[2]MONE(M)CAPARD'!O286","v":7.9149894161227943},{"$f":"'[2]MONE(M)CAPARD'!P286","v":1.5160082587749451},null,null,{"$f":"'[2]MONE(M)CAPARD'!Q286","v":11.21},{"$f":"'[2]MONE(M)CAPARD'!R286","v":5.38},{"$f":"'[2]MONE(M)CAPARD'!S286","v":6.18},{"$f":"'[2]MONE(M)CAPARD'!T286","v":8.75},{"$f":"'[2]MONE(M)CAPARD'!U286","v":8.7767559505213004},{"$f":"'[2]MONE(M)CAPARD'!V286","v":7.02},{"$f":"'[2]MONE(M)CAPARD'!W286","v":6.27},null,null,{"$f":"'[2]MONE(M)CAPARD'!AS286","v":5},{"$f":"'[2]MONE(M)CAPARD'!AT286","v":"n.a."},{"$f":"'[2]MONE(M)CAPARD'!AU286","v":5},{"$f":"'[2]MONE(M)CAPARD'!AV286","v":7},{"$f":"'[2]MONE(M)CAPARD'!AW286","v":"n.a."},{"$f":"'[2]MONE(M)CAPARD'!AX286","v":5},{"$f":"'[2]MONE(M)CAPARD'!AY286","v":"n.a."},null,null,{"$f":"+'Datos_Regional (M)'!CF279","v":14.398525332226786},{"$f":"+'Datos_Regional (M)'!CG279","v":3.9942376645738076},{"$f":"+'Datos_Regional (M)'!CH279","v":40.64299583443762},{"$f":"+'Datos_Regional (M)'!CI279","v":15.591887525424664},{"$f":"+'Datos_Regional (M)'!CJ279","v":25.747361922451905},{"$f":"+'Datos_Regional (M)'!CK279","v":6.6944211394347031},{"$f":"+'Datos_Regional (M)'!CL279","v":19.130349014659508},null,null,730.86469698999997,447.435,838.55833333333339,369.00561891104627,402.61895697153568,752.26666666666654,1414.722404833333,3540.7492728725815,4955.4716777059157,null,null,1247.0833366016666,860.16333333333341,1426.5833333333333,787.70891689485882,569.09982463049698,1466.5916666666665,2294.8526542500003,6357.2304114603567,8652.0830657103579,null,null,-2816.4811385877733,-3696.6113880044409,null,null,{"$f":"'[2]EXT Comercio(M)'!C286","v":678.68711527000005},{"$f":"'[2]EXT Comercio(M)'!D286","v":478.83},{"$f":"'[2]EXT Comercio(M)'!E286","v":828.19999999999993},{"$f":"'[2]EXT Comercio(M)'!F286","v":379.56635029255699},{"$f":"'[2]EXT Comercio(M)'!G286","v":395.01060445743303},{"$f":"'[2]EXT Comercio(M)'!H286","v":676.9},{"$f":"'[2]EXT Comercio(M)'!I286","v":1096.5744199999999},{"$f":"'[2]EXT Comercio(M)'!K286","v":3437.1940700199898},{"$f":"'[2]EXT Comercio(M)'!L286","v":4533.7684900199902},null,null,{"$f":"'[2]EXT Comercio(M)'!AG286","v":1325.7561980300002},{"$f":"'[2]EXT Comercio(M)'!AH286","v":885.23},{"$f":"'[2]EXT Comercio(M)'!AI286","v":1465.6},{"$f":"'[2]EXT Comercio(M)'!AJ286","v":807.42310439830715},{"$f":"'[2]EXT Comercio(M)'!AK286","v":521.54218065280543},{"$f":"'[2]EXT Comercio(M)'!AL286","v":1253.4000000000001},{"$f":"'[2]EXT Comercio(M)'!AM286","v":2196.2185369999997},{"$f":"'[2]EXT Comercio(M)'!AO286","v":6258.9514830811131},{"$f":"'[2]EXT Comercio(M)'!AP286","v":8455.1700200811138},null,null,{"$f":"'[2]EXT Comercio(M)'!$BS286","v":-2821.7574130611229},{"$f":"'[2]EXT Comercio(M)'!$BT286","v":-3921.4015300611227}]
[null,null,"Febrero",{"$f":"'[2]REAL IPC(M)'!AD287","v":6.515785305324914},{"$f":"'[2]REAL IPC(M)'!AE287","v":0.97222222222221966},{"$f":"'[2]REAL IPC(M)'!AF287","v":4.1842179163156379},{"$f":"'[2]REAL IPC(M)'!AG287","v":5.7827344072697349},{"$f":"'[2]REAL IPC(M)'!AH287","v":7.0810337818385873},{"$f":"'[2]REAL IPC(M)'!AI287","v":4.7325292330356179},{"$f":"'[2]REAL IPC(M)'!AJ287","v":4.581245526127419},null,null,{"$f":"'[2]REAL IMAE(M)'!AG287","v":1.9668882349526784},{"$f":"'[2]REAL IMAE(M)'!AH287","v":2.221711612446942},{"$f":"'[2]REAL IMAE(M)'!AI287","v":4.0020251891157672},{"$f":"'[2]REAL IMAE(M)'!AJ287","v":3.6216369615946578},{"$f":"'[2]REAL IMAE(M)'!AK287","v":6.7021587876623059},{"$f":"'[2]REAL IMAE(M)'!AL287","v":2.5118376206015163},{"$f":"'[2]REAL IMAE(M)'!AM287","v":6.8041715804718388},null,null,{"$f":"'[2]EXT ITCER(M)'!C287","v":70.994412601822845},{"$f":"'[2]EXT ITCER(M)'!D287","v":90.40661051719573},{"$f":"'[2]EXT ITCER(M)'!E287","v":63.080293874600507},{"$f":"'[2]EXT ITCER(M)'!F287","v":76.120981358381584},{"$f":"'[2]EXT ITCER(M)'!G287","v":95.743572727351918},{"$f":"'[2]EXT ITCER(M)'!H287","v":94.632831879865762},{"$f":"'[2]EXT ITCER(M)'!I287","v":89.819716048418428},null,null,{"$f":"'[2]EXT TC(M)'!J287","v":-1.7484904415029727},{"$f":"'[2]EXT TC(M)'!K287","v":0},{"$f":"'[2]EXT TC(M)'!L287","v":0.54917058257373952},{"$f":"'[2]EXT TC(M)'!M287","v":4.7882641892950648},{"$f":"'[2]EXT TC(M)'!N287","v":5.3126981243704279},{"$f":"'[2]EXT TC(M)'!O287","v":4.6618124562867456},{"$f":"'[2]EXT TC(M)'!P287","v":0},null,null,{"$f":"'[2]EXT RIN(M)'!C287","v":6816.2660269300004},{"$f":"'[2]EXT RIN(M)'!D287","v":3070.5},{"$f":"'[2]EXT RIN(M)'!E287","v":7276.7},{"$f":"'[2]EXT RIN(M)'!F287","v":2465.0716619624882},{"$f":"'[2]EXT RIN(M)'!G287","v":1700.5},{"$f":"'[2]EXT RIN(M)'!H287","v":3035.2},{"$f":"'[2]EXT RIN(M)'!I287","v":2557.8234821000001},null,null,{"$f":"'[2]EXT RIN(M)'!P287","v":71.131019357072205},{"$f":"'[2]EXT RIN(M)'!Q287","v":115.57018955317753},{"$f":"'[2]EXT RIN(M)'!R287","v":116.62432027240175},{"$f":"'[2]EXT RIN(M)'!S287","v":73.209400009069768},{"$f":"'[2]EXT RIN(M)'!T287","v":109.10278853943447},{"$f":"'[2]EXT RIN(M)'!U287","v":55.760209931013073},{"$f":"'[2]EXT RIN(M)'!V287","v":214.10694252294218},null,null,{"$f":"+'[2]MONE(M)CAPARD'!AE287","v":0.78318410016302242},{"$f":"'[2]MONE(M)CAPARD'!AF287","v":2.3845942228335653},{"$f":"'[2]MONE(M)CAPARD'!AG287","v":1.2149460916442085},{"$f":"'[2]MONE(M)CAPARD'!AH287","v":5.3858180398281812},{"$f":"'[2]MONE(M)CAPARD'!AI287","v":1.7390651926532481},{"$f":"'[2]MONE(M)CAPARD'!AJ287","v":1.6685081318681461},{"$f":"'[2]MONE(M)CAPARD'!AK287","v":-2.3343052703627678},null,null,{"$f":"'[2]MONE(M)CAPARD'!AL287","v":2.17},{"$f":"'[2]MONE(M)CAPARD'!AM287","v":3.38},{"$f":"'[2]MONE(M)CAPARD'!AN287","v":2.8},{"$f":"'[2]MONE(M)CAPARD'!AO287","v":4.2300000000000004},{"$f":"'[2]MONE(M)CAPARD'!AP287","v":3.0114232713399698},{"$f":"'[2]MONE(M)CAPARD'!AQ287","v":1.79},{"$f":"'[2]MONE(M)CAPARD'!AR287","v":2.14},null,null,{"$f":"'[2]MONE(M)CAPARD'!J287","v":11.861354313315548},{"$f":"'[2]MONE(M)CAPARD'!K287","v":4.4445667125171964},{"$f":"'[2]MONE(M)CAPARD'!L287","v":8.9416442048517535},{"$f":"'[2]MONE(M)CAPARD'!M287","v":13.128102303787571},{"$f":"'[2]MONE(M)CAPARD'!N287","v":13.099070437694637},{"$f":"'[2]MONE(M)CAPARD'!O287","v":8.2758153846153988},{"$f":"'[2]MONE(M)CAPARD'!P287","v":1.6721492128678959},null,null,{"$f":"'[2]MONE(M)CAPARD'!Q287","v":11.13},{"$f":"'[2]MONE(M)CAPARD'!R287","v":5.46},{"$f":"'[2]MONE(M)CAPARD'!S287","v":6.16},{"$f":"'[2]MONE(M)CAPARD'!T287","v":8.7799999999999994},{"$f":"'[2]MONE(M)CAPARD'!U287","v":8.9046228229723798},{"$f":"'[2]MONE(M)CAPARD'!V287","v":6.12},{"$f":"'[2]MONE(M)CAPARD'!W287","v":6.33},null,null,{"$f":"'[2]MONE(M)CAPARD'!AS287","v":5},{"$f":"'[2]MONE(M)CAPARD'!AT287","v":"n.a."},{"$f":"'[2]MONE(M)CAPARD'!AU287","v":5},{"$f":"'[2]MONE(M)CAPARD'!AV287","v":7},{"$f":"'[2]MONE(M)CAPARD'!AW287","v":"n.a."},{"$f":"'[2]MONE(M)CAPARD'!AX287","v":5},{"$f":"'[2]MONE(M)CAPARD'!AY287","v":"n.a."},null,null,{"$f":"+'Datos_Regional (M)'!CF280","v":12.952589264620773},{"$f":"+'Datos_Regional (M)'!CG280","v":5.7957128571072491},{"$f":"+'Datos_Regional (M)'!CH280","v":37.611295613252253},{"$f":"+'Datos_Regional (M)'!CI280","v":14.99890056919515},{"$f":"+'Datos_Regional (M)'!CJ280","v":23.811493728583777},{"$f":"+'Datos_Regional (M)'!CK280","v":7.0563942613386388},{"$f":"+'Datos_Regional (M)'!CL280","v":19.166181768040214},null,null,730.5327127216666,446.11999999999995,833.23333333333358,362.83588986221451,400.4786283180818,755.42500000000007,1402.3911987499998,3528.6255642352958,4931.0167629852967,null,null,1254.7845509991666,861.47916666666686,1428.75,784.4048618713349,570.0535744094185,1469.1999999999998,2288.7330466666672,6368.6721539465871,8657.4052006132551,null,null,-2840.0465897112899,-3726.388437627957,null,null,{"$f":"'[2]EXT Comercio(M)'!C287","v":718.98001832999989},{"$f":"'[2]EXT Comercio(M)'!D287","v":434.41},{"$f":"'[2]EXT Comercio(M)'!E287","v":796.00000000000011},{"$f":"'[2]EXT Comercio(M)'!F287","v":358.44281003401807},{"$f":"'[2]EXT Comercio(M)'!G287","v":355.48255880955696},{"$f":"'[2]EXT Comercio(M)'!H287","v":719.40000000000009},{"$f":"'[2]EXT Comercio(M)'!I287","v":1260.0372600000001},{"$f":"'[2]EXT Comercio(M)'!K287","v":3382.715387173575},{"$f":"'[2]EXT Comercio(M)'!L287","v":4642.7526471735755},null,null,{"$f":"'[2]EXT Comercio(M)'!AG287","v":1192.6740165699998},{"$f":"'[2]EXT Comercio(M)'!AH287","v":835.28},{"$f":"'[2]EXT Comercio(M)'!AI287","v":1337.5000000000002},{"$f":"'[2]EXT Comercio(M)'!AJ287","v":725.89967800771285},{"$f":"'[2]EXT Comercio(M)'!AK287","v":540.90740003115786},{"$f":"'[2]EXT Comercio(M)'!AL287","v":1394.6999999999998},{"$f":"'[2]EXT Comercio(M)'!AM287","v":2058.6268610000002},{"$f":"'[2]EXT Comercio(M)'!AO287","v":6026.9610946088706},{"$f":"'[2]EXT Comercio(M)'!AP287","v":8085.5879556088694},null,null,{"$f":"'[2]EXT Comercio(M)'!$BS287","v":-2644.2457074352951},{"$f":"'[2]EXT Comercio(M)'!$BT287","v":-3442.8353084352948}]
[null,null,"Marzo",{"$f":"'[2]REAL IPC(M)'!AD288","v":6.2058775162663231},{"$f":"'[2]REAL IPC(M)'!AE288","v":1.2758875739645059},{"$f":"'[2]REAL IPC(M)'!AF288","v":4.3384959880574776},{"$f":"'[2]REAL IPC(M)'!AG288","v":5.5760557605576029},{"$f":"'[2]REAL IPC(M)'!AH288","v":6.7943130672651559},{"$f":"'[2]REAL IPC(M)'!AI288","v":4.9737979222211788},{"$f":"'[2]REAL IPC(M)'!AJ288","v":4.1163946061036061},null,null,{"$f":"'[2]REAL IMAE(M)'!AG288","v":1.9176018139539091},{"$f":"'[2]REAL IMAE(M)'!AH288","v":1.6374586979630184},{"$f":"'[2]REAL IMAE(M)'!AI288","v":3.908562763474007},{"$f":"'[2]REAL IMAE(M)'!AJ288","v":2.9848676921700799},{"$f":"'[2]REAL IMAE(M)'!AK288","v":6.1442359753671933},{"$f":"'[2]REAL IMAE(M)'!AL288","v":2.5293121882939742},{"$f":"'[2]REAL IMAE(M)'!AM288","v":6.60368633250825},null,null,{"$f":"'[2]EXT ITCER(M)'!C288","v":70.330669772650609},{"$f":"'[2]EXT ITCER(M)'!D288","v":89.749120083157251},{"$f":"'[2]EXT ITCER(M)'!E288","v":62.460993287464511},{"$f":"'[2]EXT ITCER(M)'!F288","v":75.76297862992196},{"$f":"'[2]EXT ITCER(M)'!G288","v":95.54929173682946},{"$f":"'[2]EXT ITCER(M)'!H288","v":94.549412471488253},{"$f":"'[2]EXT ITCER(M)'!I288","v":89.200822460094884},null,null,{"$f":"'[2]EXT TC(M)'!J288","v":-1.9383422558612331},{"$f":"'[2]EXT TC(M)'!K288","v":0},{"$f":"'[2]EXT TC(M)'!L288","v":1.1027814627934478},{"$f":"'[2]EXT TC(M)'!M288","v":4.7380214281315514},{"$f":"'[2]EXT TC(M)'!N288","v":5.3845020359552853},{"$f":"'[2]EXT TC(M)'!O288","v":5.1207352850665746},{"$f":"'[2]EXT TC(M)'!P288","v":0},null,null,{"$f":"'[2]EXT RIN(M)'!C288","v":6936.8452548100004},{"$f":"'[2]EXT RIN(M)'!D288","v":3027.5},{"$f":"'[2]EXT RIN(M)'!E288","v":7279.8},{"$f":"'[2]EXT RIN(M)'!F288","v":3051.1054984985508},{"$f":"'[2]EXT RIN(M)'!G288","v":1698.7},{"$f":"'[2]EXT RIN(M)'!H288","v":3500.5},{"$f":"'[2]EXT RIN(M)'!I288","v":2097.7660981199997},null,null,{"$f":"'[2]EXT RIN(M)'!P288","v":69.99884117194199},{"$f":"'[2]EXT RIN(M)'!Q288","v":116.83185204823315},{"$f":"'[2]EXT RIN(M)'!R288","v":112.65838593079258},{"$f":"'[2]EXT RIN(M)'!S288","v":85.098560824183551},{"$f":"'[2]EXT RIN(M)'!T288","v":112.25490608233638},{"$f":"'[2]EXT RIN(M)'!U288","v":63.152142661460388},{"$f":"'[2]EXT RIN(M)'!V288","v":170.63246904014437},null,null,{"$f":"+'[2]MONE(M)CAPARD'!AE288","v":0.70064152863828877},{"$f":"'[2]MONE(M)CAPARD'!AF288","v":2.1171006025196184},{"$f":"'[2]MONE(M)CAPARD'!AG288","v":1.0748707860144824},{"$f":"'[2]MONE(M)CAPARD'!AH288","v":5.8194485436893242},{"$f":"'[2]MONE(M)CAPARD'!AI288","v":1.9954996092299531},{"$f":"'[2]MONE(M)CAPARD'!AJ288","v":1.3395743562795799},{"$f":"'[2]MONE(M)CAPARD'!AK288","v":-1.9750920245398647},null,null,{"$f":"'[2]MONE(M)CAPARD'!AL288","v":2.3250000000000002},{"$f":"'[2]MONE(M)CAPARD'!AM288","v":3.42},{"$f":"'[2]MONE(M)CAPARD'!AN288","v":2.79},{"$f":"'[2]MONE(M)CAPARD'!AO288","v":4.25},{"$f":"'[2]MONE(M)CAPARD'!AP288","v":3.6305639918334198},{"$f":"'[2]MONE(M)CAPARD'!AQ288","v":2.0299999999999998},{"$f":"'[2]MONE(M)CAPARD'!AR288","v":2.06},null,null,{"$f":"'[2]MONE(M)CAPARD'!J288","v":11.839384766448395},{"$f":"'[2]MONE(M)CAPARD'!K288","v":3.9339200292130632},{"$f":"'[2]MONE(M)CAPARD'!L288","v":8.7805597782348173},{"$f":"'[2]MONE(M)CAPARD'!M288","v":13.444283495145635},{"$f":"'[2]MONE(M)CAPARD'!N288","v":15.184176702172985},{"$f":"'[2]MONE(M)CAPARD'!O288","v":8.2841644771413794},{"$f":"'[2]MONE(M)CAPARD'!P288","v":2.1549011588275531},null,null,{"$f":"'[2]MONE(M)CAPARD'!Q288","v":11.16},{"$f":"'[2]MONE(M)CAPARD'!R288","v":5.26},{"$f":"'[2]MONE(M)CAPARD'!S288","v":6.15},{"$f":"'[2]MONE(M)CAPARD'!T288","v":8.65},{"$f":"'[2]MONE(M)CAPARD'!U288","v":8.3938901801492793},{"$f":"'[2]MONE(M)CAPARD'!V288","v":7.7},{"$f":"'[2]MONE(M)CAPARD'!W288","v":6.36},null,null,{"$f":"'[2]MONE(M)CAPARD'!AS288","v":5},{"$f":"'[2]MONE(M)CAPARD'!AT288","v":"n.a."},{"$f":"'[2]MONE(M)CAPARD'!AU288","v":5},{"$f":"'[2]MONE(M)CAPARD'!AV288","v":7},{"$f":"'[2]MONE(M)CAPARD'!AW288","v":"n.a."},{"$f":"'[2]MONE(M)CAPARD'!AX288","v":5},{"$f":"'[2]MONE(M)CAPARD'!AY288","v":"n.a."},null,null,{"$f":"+'Datos_Regional (M)'!CF281","v":12.605333775988248},{"$f":"+'Datos_Regional (M)'!CG281","v":6.2132957534292155},{"$f":"+'Datos_Regional (M)'!CH281","v":35.670934207936014},{"$f":"+'Datos_Regional (M)'!CI281","v":14.880727351455247},{"$f":"+'Datos_Regional (M)'!CJ281","v":27.521735274220195},{"$f":"+'Datos_Regional (M)'!CK281","v":7.1208658884623466},{"$f":"+'Datos_Regional (M)'!CL281","v":19.592131336681362},null,null,726.65724371916656,441.565,828.95000000000016,352.62224571764091,395.05406198469626,756.94166666666661,1367.6868590833335,3501.7902180881701,4869.4770771715039,null,null,1246.0454656491665,855.48250000000019,1417.9666666666669,767.52394132586824,557.56841425442633,1456.9083333333335,2260.1270238333341,6301.4953212294613,8561.6223450627967,null,null,-2799.7051031412907,-3692.1452678912906,null,null,{"$f":"'[2]EXT Comercio(M)'!C288","v":792.13550553000005},{"$f":"'[2]EXT Comercio(M)'!D288","v":448.95000000000005},{"$f":"'[2]EXT Comercio(M)'!E288","v":982.1},{"$f":"'[2]EXT Comercio(M)'!F288","v":381.33723427511586},{"$f":"'[2]EXT Comercio(M)'!G288","v":393.53927510163999},{"$f":"'[2]EXT Comercio(M)'!H288","v":814.40000000000009},{"$f":"'[2]EXT Comercio(M)'!I288","v":1333.0723640000001},{"$f":"'[2]EXT Comercio(M)'!K288","v":3812.4620149067568},{"$f":"'[2]EXT Comercio(M)'!L288","v":5145.5343789067556},null,null,{"$f":"'[2]EXT Comercio(M)'!AG288","v":1273.5207482899998},{"$f":"'[2]EXT Comercio(M)'!AH288","v":824.87000000000012},{"$f":"'[2]EXT Comercio(M)'!AI288","v":1346},{"$f":"'[2]EXT Comercio(M)'!AJ288","v":679.48146713439883},{"$f":"'[2]EXT Comercio(M)'!AK288","v":467.57113200168732},{"$f":"'[2]EXT Comercio(M)'!AL288","v":1327.4},{"$f":"'[2]EXT Comercio(M)'!AM288","v":1927.6766400000001},{"$f":"'[2]EXT Comercio(M)'!AO288","v":5918.8433474260873},{"$f":"'[2]EXT Comercio(M)'!AP288","v":7846.519987426087},null,null,{"$f":"'[2]EXT Comercio(M)'!$BS288","v":-2106.3813325193296},{"$f":"'[2]EXT Comercio(M)'!$BT288","v":-2700.9856085193296}]
[null,null,"Abril",{"$f":"'[2]REAL IPC(M)'!AD289","v":6.307269239954584},{"$f":"'[2]REAL IPC(M)'!AE289","v":1.8377285674902159E-2},{"$f":"'[2]REAL IPC(M)'!AF289","v":4.1271611823759047},{"$f":"'[2]REAL IPC(M)'!AG289","v":4.6634225466342372},{"$f":"'[2]REAL IPC(M)'!AH289","v":6.343806475904783},{"$f":"'[2]REAL IPC(M)'!AI289","v":4.8997977569405649},{"$f":"'[2]REAL IPC(M)'!AJ289","v":3.735024665257209},null,null,{"$f":"'[2]REAL IMAE(M)'!AG289","v":1.9305797239993876},{"$f":"'[2]REAL IMAE(M)'!AH289","v":1.2334854514932769},{"$f":"'[2]REAL IMAE(M)'!AI289","v":3.8073333778051008},{"$f":"'[2]REAL IMAE(M)'!AJ289","v":2.4683680405074475},{"$f":"'[2]REAL IMAE(M)'!AK289","v":5.7887817590263486},{"$f":"'[2]REAL IMAE(M)'!AL289","v":2.5679085115913276},{"$f":"'[2]REAL IMAE(M)'!AM289","v":6.0947165292067691},null,null,{"$f":"'[2]EXT ITCER(M)'!C289","v":69.673732641999052},{"$f":"'[2]EXT ITCER(M)'!D289","v":90.129457437537013},{"$f":"'[2]EXT ITCER(M)'!E289","v":62.12006266944379},{"$f":"'[2]EXT ITCER(M)'!F289","v":75.677316525165296},{"$f":"'[2]EXT ITCER(M)'!G289","v":94.757329703626624},{"$f":"'[2]EXT ITCER(M)'!H289","v":94.551520059709162},{"$f":"'[2]EXT ITCER(M)'!I289","v":88.712213708974531},null,null,{"$f":"'[2]EXT TC(M)'!J289","v":-1.2292306717236545},{"$f":"'[2]EXT TC(M)'!K289","v":0},{"$f":"'[2]EXT TC(M)'!L289","v":0.60947471423196953},{"$f":"'[2]EXT TC(M)'!M289","v":4.7325833837483176},{"$f":"'[2]EXT TC(M)'!N289","v":5.150049667852568},{"$f":"'[2]EXT TC(M)'!O289","v":5.2158513081276139},{"$f":"'[2]EXT TC(M)'!P289","v":0},null,null,{"$f":"'[2]EXT RIN(M)'!C289","v":7960.4042082599999},{"$f":"'[2]EXT RIN(M)'!D289","v":3093.3},{"$f":"'[2]EXT RIN(M)'!E289","v":7220.8},{"$f":"'[2]EXT RIN(M)'!F289","v":2954.9363294765917},{"$f":"'[2]EXT RIN(M)'!G289","v":1730.5},{"$f":"'[2]EXT RIN(M)'!H289","v":4099.6000000000004},{"$f":"'[2]EXT RIN(M)'!I289","v":2863.0006039399996},null,null,{"$f":"'[2]EXT RIN(M)'!P289","v":80.78236878194889},{"$f":"'[2]EXT RIN(M)'!Q289","v":114.55745964120663},{"$f":"'[2]EXT RIN(M)'!R289","v":113.11595109632979},{"$f":"'[2]EXT RIN(M)'!S289","v":80.928500852674077},{"$f":"'[2]EXT RIN(M)'!T289","v":114.68911016069991},{"$f":"'[2]EXT RIN(M)'!U289","v":66.448025951827788},{"$f":"'[2]EXT RIN(M)'!V289","v":233.95434328169796},null,null,{"$f":"+'[2]MONE(M)CAPARD'!AE289","v":0.4164632985220354},{"$f":"'[2]MONE(M)CAPARD'!AF289","v":3.4609866789159431},{"$f":"'[2]MONE(M)CAPARD'!AG289","v":1.2704070701660435},{"$f":"'[2]MONE(M)CAPARD'!AH289","v":7.0192406044168809},{"$f":"'[2]MONE(M)CAPARD'!AI289","v":2.5033450150208014},{"$f":"'[2]MONE(M)CAPARD'!AJ289","v":2.2499588116729949},{"$f":"'[2]MONE(M)CAPARD'!AK289","v":-1.5183152173912904},null,null,{"$f":"'[2]MONE(M)CAPARD'!AL289","v":2.2850000000000001},{"$f":"'[2]MONE(M)CAPARD'!AM289","v":3.48},{"$f":"'[2]MONE(M)CAPARD'!AN289","v":2.79},{"$f":"'[2]MONE(M)CAPARD'!AO289","v":4.28},{"$f":"'[2]MONE(M)CAPARD'!AP289","v":3.8423504726768072},{"$f":"'[2]MONE(M)CAPARD'!AQ289","v":2.4},{"$f":"'[2]MONE(M)CAPARD'!AR289","v":2.16},null,null,{"$f":"'[2]MONE(M)CAPARD'!J289","v":10.425186197784559},{"$f":"'[2]MONE(M)CAPARD'!K289","v":5.4406228755167696},{"$f":"'[2]MONE(M)CAPARD'!L289","v":9.0301499732190678},{"$f":"'[2]MONE(M)CAPARD'!M289","v":14.82521503293296},{"$f":"'[2]MONE(M)CAPARD'!N289","v":12.955078709454712},{"$f":"'[2]MONE(M)CAPARD'!O289","v":8.9706581368855129},{"$f":"'[2]MONE(M)CAPARD'!P289","v":2.5111820652174051},null,null,{"$f":"'[2]MONE(M)CAPARD'!Q289","v":11.02},{"$f":"'[2]MONE(M)CAPARD'!R289","v":5.46},{"$f":"'[2]MONE(M)CAPARD'!S289","v":6.1400000000000006},{"$f":"'[2]MONE(M)CAPARD'!T289","v":8.6},{"$f":"'[2]MONE(M)CAPARD'!U289","v":9.3830128967005439},{"$f":"'[2]MONE(M)CAPARD'!V289","v":6.12},{"$f":"'[2]MONE(M)CAPARD'!W289","v":6.34},null,null,{"$f":"'[2]MONE(M)CAPARD'!AS289","v":5},{"$f":"'[2]MONE(M)CAPARD'!AT289","v":"n.a."},{"$f":"'[2]MONE(M)CAPARD'!AU289","v":5.25},{"$f":"'[2]MONE(M)CAPARD'!AV289","v":7},{"$f":"'[2]MONE(M)CAPARD'!AW289","v":"n.a."},{"$f":"'[2]MONE(M)CAPARD'!AX289","v":5},{"$f":"'[2]MONE(M)CAPARD'!AY289","v":"n.a."},null,null,{"$f":"+'Datos_Regional (M)'!CF282","v":12.822594625943996},{"$f":"+'Datos_Regional (M)'!CG282","v":5.3527616169467995},{"$f":"+'Datos_Regional (M)'!CH282","v":34.108020768899962},{"$f":"+'Datos_Regional (M)'!CI282","v":13.571329087833451},{"$f":"+'Datos_Regional (M)'!CJ282","v":28.070876081166098},{"$f":"+'Datos_Regional (M)'!CK282","v":8.5420112477957666},{"$f":"+'Datos_Regional (M)'!CL282","v":18.851597996525136},null,null,727.72773632666667,448.30666666666662,830.08333333333337,349.39458764483078,395.49393553479467,762.44999999999993,1371.09383,3513.4562595062912,4884.5500895062933,null,null,1260.6170734183333,867.38166666666677,1441.875,771.29572128585949,562.36129361536962,1455.3999999999999,2276.343409666667,6358.9307549862287,8635.2741646528975,null,null,-2845.4744954799366,-3750.7240751466034,null,null,{"$f":"'[2]EXT Comercio(M)'!C289","v":764.7551030300001},{"$f":"'[2]EXT Comercio(M)'!D289","v":496.52999999999975},{"$f":"'[2]EXT Comercio(M)'!E289","v":888.79999999999984},{"$f":"'[2]EXT Comercio(M)'!F289","v":354.66318511627901},{"$f":"'[2]EXT Comercio(M)'!G289","v":427.17411279546701},{"$f":"'[2]EXT Comercio(M)'!H289","v":832.40000000000009},{"$f":"'[2]EXT Comercio(M)'!I289","v":1263.676866},{"$f":"'[2]EXT Comercio(M)'!K289","v":3764.3224009417463},{"$f":"'[2]EXT Comercio(M)'!L289","v":5027.9992669417443},null,null,{"$f":"'[2]EXT Comercio(M)'!AG289","v":1277.9376583600001},{"$f":"'[2]EXT Comercio(M)'!AH289","v":959.30999999999949},{"$f":"'[2]EXT Comercio(M)'!AI289","v":1610.1},{"$f":"'[2]EXT Comercio(M)'!AJ289","v":795.23389025989491},{"$f":"'[2]EXT Comercio(M)'!AK289","v":584.46951056820456},{"$f":"'[2]EXT Comercio(M)'!AL289","v":1368.6},{"$f":"'[2]EXT Comercio(M)'!AM289","v":2188.5362319999995},{"$f":"'[2]EXT Comercio(M)'!AO289","v":6595.6510591880979},{"$f":"'[2]EXT Comercio(M)'!AP289","v":8784.1872911880964},null,null,{"$f":"'[2]EXT Comercio(M)'!$BS289","v":-2831.3286582463516},{"$f":"'[2]EXT Comercio(M)'!$BT289","v":-3756.1880242463503}]
[null,null,"Mayo ",{"$f":"'[2]REAL IPC(M)'!AD290","v":5.2840368710750312},{"$f":"'[2]REAL IPC(M)'!AE290","v":0.14742467520500929},{"$f":"'[2]REAL IPC(M)'!AF290","v":4.2703304864463432},{"$f":"'[2]REAL IPC(M)'!AG290","v":4.8197650870797917},{"$f":"'[2]REAL IPC(M)'!AH290","v":7.7284868220783665},{"$f":"'[2]REAL IPC(M)'!AI290","v":4.9866347128767048},{"$f":"'[2]REAL IPC(M)'!AJ290","v":3.7192982456140355},null,null,{"$f":"'[2]REAL IMAE(M)'!AG290","v":2.2327146401698155},{"$f":"'[2]REAL IMAE(M)'!AH290","v":0.4549922154002099},{"$f":"'[2]REAL IMAE(M)'!AI290","v":3.6811796185456593},{"$f":"'[2]REAL IMAE(M)'!AJ290","v":2.1493692710813956},{"$f":"'[2]REAL IMAE(M)'!AK290","v":5.6635894748858888},{"$f":"'[2]REAL IMAE(M)'!AL290","v":2.9792630917064846},{"$f":"'[2]REAL IMAE(M)'!AM290","v":5.8509785130538212},null,null,{"$f":"'[2]EXT ITCER(M)'!C290","v":69.706050805474007},{"$f":"'[2]EXT ITCER(M)'!D290","v":90.299517456775206},{"$f":"'[2]EXT ITCER(M)'!E290","v":61.920795350926468},{"$f":"'[2]EXT ITCER(M)'!F290","v":75.810106065642572},{"$f":"'[2]EXT ITCER(M)'!G290","v":94.347375342217219},{"$f":"'[2]EXT ITCER(M)'!H290","v":94.862491538275918},{"$f":"'[2]EXT ITCER(M)'!I290","v":88.388674436293911},null,null,{"$f":"'[2]EXT TC(M)'!J290","v":-1.1477411477411512},{"$f":"'[2]EXT TC(M)'!K290","v":0},{"$f":"'[2]EXT TC(M)'!L290","v":5.8290805494003929E-2},{"$f":"'[2]EXT TC(M)'!M290","v":4.7606760599589801},{"$f":"'[2]EXT TC(M)'!N290","v":5.3455018972351782},{"$f":"'[2]EXT TC(M)'!O290","v":5.3115918630933283},{"$f":"'[2]EXT TC(M)'!P290","v":0},null,null,{"$f":"'[2]EXT RIN(M)'!C290","v":7885.1966123700004},{"$f":"'[2]EXT RIN(M)'!D290","v":3058.7},{"$f":"'[2]EXT RIN(M)'!E290","v":7252.9},{"$f":"'[2]EXT RIN(M)'!F290","v":2839.7668864127813},{"$f":"'[2]EXT RIN(M)'!G290","v":1727},{"$f":"'[2]EXT RIN(M)'!H290","v":4067.4},{"$f":"'[2]EXT RIN(M)'!I290","v":2770.37502614},null,null,{"$f":"'[2]EXT RIN(M)'!P290","v":77.691798084357998},{"$f":"'[2]EXT RIN(M)'!Q290","v":116.41023962538031},{"$f":"'[2]EXT RIN(M)'!R290","v":110.8384576929452},{"$f":"'[2]EXT RIN(M)'!S290","v":80.424071827956197},{"$f":"'[2]EXT RIN(M)'!T290","v":116.54574083664251},{"$f":"'[2]EXT RIN(M)'!U290","v":66.75890985335559},{"$f":"'[2]EXT RIN(M)'!V290","v":231.38414623298104},null,null,{"$f":"+'[2]MONE(M)CAPARD'!AE290","v":1.2974076313179856},{"$f":"'[2]MONE(M)CAPARD'!AF290","v":3.3176842395804615},{"$f":"'[2]MONE(M)CAPARD'!AG290","v":1.1217663817663814},{"$f":"'[2]MONE(M)CAPARD'!AH290","v":6.9740996908809869},{"$f":"'[2]MONE(M)CAPARD'!AI290","v":1.1432051024636158},{"$f":"'[2]MONE(M)CAPARD'!AJ290","v":0.72710711150137264},{"$f":"'[2]MONE(M)CAPARD'!AK290","v":-1.5130243572395135},null,null,{"$f":"'[2]MONE(M)CAPARD'!AL290","v":2.0499999999999998},{"$f":"'[2]MONE(M)CAPARD'!AM290","v":3.47},{"$f":"'[2]MONE(M)CAPARD'!AN290","v":2.89},{"$f":"'[2]MONE(M)CAPARD'!AO290","v":4.32},{"$f":"'[2]MONE(M)CAPARD'!AP290","v":3.4490119720693002},{"$f":"'[2]MONE(M)CAPARD'!AQ290","v":1.9221571562034878},{"$f":"'[2]MONE(M)CAPARD'!AR290","v":2.15},null,null,{"$f":"'[2]MONE(M)CAPARD'!J290","v":10.928497302031198},{"$f":"'[2]MONE(M)CAPARD'!K290","v":5.4245781580642225},{"$f":"'[2]MONE(M)CAPARD'!L290","v":8.9379878917378903},{"$f":"'[2]MONE(M)CAPARD'!M290","v":14.692109737248837},{"$f":"'[2]MONE(M)CAPARD'!N290","v":12.086720439459887},{"$f":"'[2]MONE(M)CAPARD'!O290","v":7.744006415384602},{"$f":"'[2]MONE(M)CAPARD'!P290","v":2.50744248985115},null,null,{"$f":"'[2]MONE(M)CAPARD'!Q290","v":10.84},{"$f":"'[2]MONE(M)CAPARD'!R290","v":5.58},{"$f":"'[2]MONE(M)CAPARD'!S290","v":6.09},{"$f":"'[2]MONE(M)CAPARD'!T290","v":8.59},{"$f":"'[2]MONE(M)CAPARD'!U290","v":8.41823119777027},{"$f":"'[2]MONE(M)CAPARD'!V290","v":6.7064413023315241},{"$f":"'[2]MONE(M)CAPARD'!W290","v":6.32},null,null,{"$f":"'[2]MONE(M)CAPARD'!AS290","v":5},{"$f":"'[2]MONE(M)CAPARD'!AT290","v":"n.a."},{"$f":"'[2]MONE(M)CAPARD'!AU290","v":5.25},{"$f":"'[2]MONE(M)CAPARD'!AV290","v":7},{"$f":"'[2]MONE(M)CAPARD'!AW290","v":"n.a."},{"$f":"'[2]MONE(M)CAPARD'!AX290","v":4.25},{"$f":"'[2]MONE(M)CAPARD'!AY290","v":"n.a."},null,null,{"$f":"+'Datos_Regional (M)'!CF283","v":13.616453016724407},{"$f":"+'Datos_Regional (M)'!CG283","v":5.7972161174515868},{"$f":"+'Datos_Regional (M)'!CH283","v":32.168513704561086},{"$f":"+'Datos_Regional (M)'!CI283","v":12.923602147676672},{"$f":"+'Datos_Regional (M)'!CJ283","v":26.018404833293161},{"$f":"+'Datos_Regional (M)'!CK283","v":11.010717208040631},{"$f":"+'Datos_Regional (M)'!CL283","v":15.66496267460391},null,null,722.93500840750005,453.46083333333326,837.90833333333319,344.18697943114171,395.61617894761366,771.76666666666654,1362.1340636666669,3525.8740001195879,4888.0080637862557,null,null,1255.5501960341667,862.80333333333328,1443.7083333333333,768.55949454657332,554.99272065576724,1446.8666666666666,2250.3972938333336,6332.4807445698398,8582.8780384031743,null,null,-2806.606744450251,-3694.8699746169182,null,null,{"$f":"'[2]EXT Comercio(M)'!C290","v":780.07097751000038},{"$f":"'[2]EXT Comercio(M)'!D290","v":523.0300000000002},{"$f":"'[2]EXT Comercio(M)'!E290","v":965.29999999999973},{"$f":"'[2]EXT Comercio(M)'!F290","v":353.13768682573095},{"$f":"'[2]EXT Comercio(M)'!G290","v":393.630549834595},{"$f":"'[2]EXT Comercio(M)'!H290","v":912.4},{"$f":"'[2]EXT Comercio(M)'!I290","v":1415.2201380000001},{"$f":"'[2]EXT Comercio(M)'!K290","v":3927.5692141703275},{"$f":"'[2]EXT Comercio(M)'!L290","v":5342.7893521703263},null,null,{"$f":"'[2]EXT Comercio(M)'!AG290","v":1223.4447155899998},{"$f":"'[2]EXT Comercio(M)'!AH290","v":934.80000000000018},{"$f":"'[2]EXT Comercio(M)'!AI290","v":1596.1999999999998},{"$f":"'[2]EXT Comercio(M)'!AJ290","v":784.51932731856641},{"$f":"'[2]EXT Comercio(M)'!AK290","v":563.68555747850041},{"$f":"'[2]EXT Comercio(M)'!AL290","v":1410.3},{"$f":"'[2]EXT Comercio(M)'!AM290","v":2181.6336790000005},{"$f":"'[2]EXT Comercio(M)'!AO290","v":6512.9496003870627},{"$f":"'[2]EXT Comercio(M)'!AP290","v":8694.583279387065},null,null,{"$f":"'[2]EXT Comercio(M)'!$BS290","v":-2585.3803862167424},{"$f":"'[2]EXT Comercio(M)'!$BT290","v":-3351.7939272167423}]
[null,null,"Junio",{"$f":"'[2]REAL IPC(M)'!AD291","v":5.1379035832886322},{"$f":"'[2]REAL IPC(M)'!AE291","v":0.89864739670187033},{"$f":"'[2]REAL IPC(M)'!AF291","v":4.7936949466852257},{"$f":"'[2]REAL IPC(M)'!AG291","v":5.2652895909274893},{"$f":"'[2]REAL IPC(M)'!AH291","v":8.2852699778671468},{"$f":"'[2]REAL IPC(M)'!AI291","v":4.8013245033111804},{"$f":"'[2]REAL IPC(M)'!AJ291","v":4.1432584269662938},null,null,{"$f":"'[2]REAL IMAE(M)'!AG291","v":2.6650860678324482},{"$f":"'[2]REAL IMAE(M)'!AH291","v":0.31907239923393549},{"$f":"'[2]REAL IMAE(M)'!AI291","v":3.5390170278828839},{"$f":"'[2]REAL IMAE(M)'!AJ291","v":1.9892914978618355},{"$f":"'[2]REAL IMAE(M)'!AK291","v":5.5452607703333845},{"$f":"'[2]REAL IMAE(M)'!AL291","v":3.8235745119569788},{"$f":"'[2]REAL IMAE(M)'!AM291","v":6.3474601980853862},null,null,{"$f":"'[2]EXT ITCER(M)'!C291","v":69.822023880323314},{"$f":"'[2]EXT ITCER(M)'!D291","v":90.331626449431681},{"$f":"'[2]EXT ITCER(M)'!E291","v":61.915163064636182},{"$f":"'[2]EXT ITCER(M)'!F291","v":75.966153360318032},{"$f":"'[2]EXT ITCER(M)'!G291","v":94.962948610103723},{"$f":"'[2]EXT ITCER(M)'!H291","v":95.905432835208316},{"$f":"'[2]EXT ITCER(M)'!I291","v":88.300359865762516},null,null,{"$f":"'[2]EXT TC(M)'!J291","v":-0.29265650453334202},{"$f":"'[2]EXT TC(M)'!K291","v":0},{"$f":"'[2]EXT TC(M)'!L291","v":-0.40335907124053261},{"$f":"'[2]EXT TC(M)'!M291","v":4.7487422242585495},{"$f":"'[2]EXT TC(M)'!N291","v":5.3709004596895884},{"$f":"'[2]EXT TC(M)'!O291","v":6.1363764354134487},{"$f":"'[2]EXT TC(M)'!P291","v":0},null,null,{"$f":"'[2]EXT RIN(M)'!C291","v":7877.81888385},{"$f":"'[2]EXT RIN(M)'!D291","v":2887.6},{"$f":"'[2]EXT RIN(M)'!E291","v":7070.9},{"$f":"'[2]EXT RIN(M)'!F291","v":2915.737988576333},{"$f":"'[2]EXT RIN(M)'!G291","v":1705},{"$f":"'[2]EXT RIN(M)'!H291","v":3841.4},{"$f":"'[2]EXT RIN(M)'!I291","v":2790.4651858599996},null,null,{"$f":"'[2]EXT RIN(M)'!P291","v":77.427497617368275},{"$f":"'[2]EXT RIN(M)'!Q291","v":111.86251710807733},{"$f":"'[2]EXT RIN(M)'!R291","v":108.52804007925457},{"$f":"'[2]EXT RIN(M)'!S291","v":78.795258896750354},{"$f":"'[2]EXT RIN(M)'!T291","v":115.82504135130822},{"$f":"'[2]EXT RIN(M)'!U291","v":65.408033753520229},{"$f":"'[2]EXT RIN(M)'!V291","v":228.66128058846354},null,null,{"$f":"+'[2]MONE(M)CAPARD'!AE291","v":1.3906463481584614},{"$f":"'[2]MONE(M)CAPARD'!AF291","v":2.8358681480121208},{"$f":"'[2]MONE(M)CAPARD'!AG291","v":0.63582551760748895},{"$f":"'[2]MONE(M)CAPARD'!AH291","v":6.3408464794151707},{"$f":"'[2]MONE(M)CAPARD'!AI291","v":-7.4077558146578171E-3},{"$f":"'[2]MONE(M)CAPARD'!AJ291","v":-0.12530805687196378},{"$f":"'[2]MONE(M)CAPARD'!AK291","v":-1.9043560350640607},null,null,{"$f":"'[2]MONE(M)CAPARD'!AL291","v":1.97},{"$f":"'[2]MONE(M)CAPARD'!AM291","v":3.76},{"$f":"'[2]MONE(M)CAPARD'!AN291","v":2.89},{"$f":"'[2]MONE(M)CAPARD'!AO291","v":4.28},{"$f":"'[2]MONE(M)CAPARD'!AP291","v":3.3319376986991398},{"$f":"'[2]MONE(M)CAPARD'!AQ291","v":1.98},{"$f":"'[2]MONE(M)CAPARD'!AR291","v":2.16},null,null,{"$f":"'[2]MONE(M)CAPARD'!J291","v":11.149258276226997},{"$f":"'[2]MONE(M)CAPARD'!K291","v":4.1738444587273911},{"$f":"'[2]MONE(M)CAPARD'!L291","v":8.4225535303485941},{"$f":"'[2]MONE(M)CAPARD'!M291","v":14.159188149288202},{"$f":"'[2]MONE(M)CAPARD'!N291","v":10.025850105218534},{"$f":"'[2]MONE(M)CAPARD'!O291","v":7.1742180094787527},{"$f":"'[2]MONE(M)CAPARD'!P291","v":2.0613351314902206},null,null,{"$f":"'[2]MONE(M)CAPARD'!Q291","v":10.72},{"$f":"'[2]MONE(M)CAPARD'!R291","v":5.1100000000000003},{"$f":"'[2]MONE(M)CAPARD'!S291","v":6.09},{"$f":"'[2]MONE(M)CAPARD'!T291","v":8.5299999999999994},{"$f":"'[2]MONE(M)CAPARD'!U291","v":8.2373225753929091},{"$f":"'[2]MONE(M)CAPARD'!V291","v":6.73},{"$f":"'[2]MONE(M)CAPARD'!W291","v":6.29},null,null,{"$f":"'[2]MONE(M)CAPARD'!AS291","v":4},{"$f":"'[2]MONE(M)CAPARD'!AT291","v":"n.a."},{"$f":"'[2]MONE(M)CAPARD'!AU291","v":5.25},{"$f":"'[2]MONE(M)CAPARD'!AV291","v":7},{"$f":"'[2]MONE(M)CAPARD'!AW291","v":"n.a."},{"$f":"'[2]MONE(M)CAPARD'!AX291","v":4.25},{"$f":"'[2]MONE(M)CAPARD'!AY291","v":"n.a."},null,null,{"$f":"+'Datos_Regional (M)'!CF284","v":13.053926246137259},{"$f":"+'Datos_Regional (M)'!CG284","v":6.8273361372162},{"$f":"+'Datos_Regional (M)'!CH284","v":31.548010640737758},{"$f":"+'Datos_Regional (M)'!CI284","v":12.888113530213774},{"$f":"+'Datos_Regional (M)'!CJ284","v":24.664378549513199},{"$f":"+'Datos_Regional (M)'!CK284","v":12.819155045584573},{"$f":"+'Datos_Regional (M)'!CL284","v":14.387020860572042},null,null,718.58210831999997,458.75333333333327,835.95833333333337,338.78549366637873,395.74529793483134,775.54999999999984,1351.2846897500001,3523.3745665878764,4874.6592563378772,null,null,1255.1498055525001,885.3183333333335,1438.0833333333333,764.05027446213535,557.09396591592065,1434.4833333333333,2246.613388416667,6334.1790459305557,8580.7924343472241,null,null,-2810.8044793426784,-3706.133178009346,null,null,{"$f":"'[2]EXT Comercio(M)'!C291","v":700.59999757999958},{"$f":"'[2]EXT Comercio(M)'!D291","v":455.82999999999993},{"$f":"'[2]EXT Comercio(M)'!E291","v":807.99999999999977},{"$f":"'[2]EXT Comercio(M)'!F291","v":319.99107378284498},{"$f":"'[2]EXT Comercio(M)'!G291","v":390.82480692992203},{"$f":"'[2]EXT Comercio(M)'!H291","v":774.90000000000009},{"$f":"'[2]EXT Comercio(M)'!I291","v":1133.61535},{"$f":"'[2]EXT Comercio(M)'!K291","v":3450.1458782927657},{"$f":"'[2]EXT Comercio(M)'!L291","v":4583.7612282927694},null,null,{"$f":"'[2]EXT Comercio(M)'!AG291","v":1170.3917909900006},{"$f":"'[2]EXT Comercio(M)'!AH291","v":956.60000000000036},{"$f":"'[2]EXT Comercio(M)'!AI291","v":1382.5000000000002},{"$f":"'[2]EXT Comercio(M)'!AJ291","v":687.55106432674484},{"$f":"'[2]EXT Comercio(M)'!AK291","v":572.7168893875521},{"$f":"'[2]EXT Comercio(M)'!AL291","v":1402.7999999999997},{"$f":"'[2]EXT Comercio(M)'!AM291","v":2079.4782169999999},{"$f":"'[2]EXT Comercio(M)'!AO291","v":6172.5597447043037},{"$f":"'[2]EXT Comercio(M)'!AP291","v":8252.0379617043},null,null,{"$f":"'[2]EXT Comercio(M)'!$BS291","v":-2722.4138664115326},{"$f":"'[2]EXT Comercio(M)'!$BT291","v":-3668.2767334115342}]
[null,null,"Julio",{"$f":"'[2]REAL IPC(M)'!AD292","v":5.8141562841761356},{"$f":"'[2]REAL IPC(M)'!AE292","v":1.0872595483691123},{"$f":"'[2]REAL IPC(M)'!AF292","v":4.739905756259807},{"$f":"'[2]REAL IPC(M)'!AG292","v":5.6252529340348065},{"$f":"'[2]REAL IPC(M)'!AH292","v":7.6558827286991598},{"$f":"'[2]REAL IPC(M)'!AI292","v":5.6682027649768818},{"$f":"'[2]REAL IPC(M)'!AJ292","v":4.1316526610644129},null,null,{"$f":"'[2]REAL IMAE(M)'!AG292","v":2.9212951578234829},{"$f":"'[2]REAL IMAE(M)'!AH292","v":1.2704126194020959},{"$f":"'[2]REAL IMAE(M)'!AI292","v":3.4210631549578632},{"$f":"'[2]REAL IMAE(M)'!AJ292","v":1.8948702112549363},{"$f":"'[2]REAL IMAE(M)'!AK292","v":5.3091032101952003},{"$f":"'[2]REAL IMAE(M)'!AL292","v":4.8804491851078255},{"$f":"'[2]REAL IMAE(M)'!AM292","v":7.6421877279819732},null,null,{"$f":"'[2]EXT ITCER(M)'!C292","v":69.685105235509681},{"$f":"'[2]EXT ITCER(M)'!D292","v":90.616610465818056},{"$f":"'[2]EXT ITCER(M)'!E292","v":61.890470270641927},{"$f":"'[2]EXT ITCER(M)'!F292","v":76.077856811118949},{"$f":"'[2]EXT ITCER(M)'!G292","v":96.004904793546686},{"$f":"'[2]EXT ITCER(M)'!H292","v":96.523250766066184},{"$f":"'[2]EXT ITCER(M)'!I292","v":88.235212475547783},null,null,{"$f":"'[2]EXT TC(M)'!J292","v":-0.44044398734029599},{"$f":"'[2]EXT TC(M)'!K292","v":0},{"$f":"'[2]EXT TC(M)'!L292","v":-1.8818119672992493E-2},{"$f":"'[2]EXT TC(M)'!M292","v":4.7182492558651949},{"$f":"'[2]EXT TC(M)'!N292","v":5.173394968447969},{"$f":"'[2]EXT TC(M)'!O292","v":7.2337496513624329},{"$f":"'[2]EXT TC(M)'!P292","v":0},null,null,{"$f":"'[2]EXT RIN(M)'!C292","v":7723.7136800400003},{"$f":"'[2]EXT RIN(M)'!D292","v":2864.6},{"$f":"'[2]EXT RIN(M)'!E292","v":6727.1},{"$f":"'[2]EXT RIN(M)'!F292","v":2779.6456492389716},{"$f":"'[2]EXT RIN(M)'!G292","v":1711.1},{"$f":"'[2]EXT RIN(M)'!H292","v":3453.8},{"$f":"'[2]EXT RIN(M)'!I292","v":2734.8101442900002},null,null,{"$f":"'[2]EXT RIN(M)'!P292","v":75.732017445787662},{"$f":"'[2]EXT RIN(M)'!Q292","v":107.52248246838528},{"$f":"'[2]EXT RIN(M)'!R292","v":100.81528564746709},{"$f":"'[2]EXT RIN(M)'!S292","v":78.072214170492956},{"$f":"'[2]EXT RIN(M)'!T292","v":110.75783759433936},{"$f":"'[2]EXT RIN(M)'!U292","v":62.665455584936048},{"$f":"'[2]EXT RIN(M)'!V292","v":231.42975789090184},null,null,{"$f":"+'[2]MONE(M)CAPARD'!AE292","v":0.69541140964888559},{"$f":"'[2]MONE(M)CAPARD'!AF292","v":2.31754274682846},{"$f":"'[2]MONE(M)CAPARD'!AG292","v":0.67795959774171766},{"$f":"'[2]MONE(M)CAPARD'!AH292","v":5.9405747126436763},{"$f":"'[2]MONE(M)CAPARD'!AI292","v":1.6018149633610581},{"$f":"'[2]MONE(M)CAPARD'!AJ292","v":-0.98251199302216985},{"$f":"'[2]MONE(M)CAPARD'!AK292","v":-1.9798520511096047},null,null,{"$f":"'[2]MONE(M)CAPARD'!AL292","v":1.95},{"$f":"'[2]MONE(M)CAPARD'!AM292","v":3.43},{"$f":"'[2]MONE(M)CAPARD'!AN292","v":2.9},{"$f":"'[2]MONE(M)CAPARD'!AO292","v":4.26},{"$f":"'[2]MONE(M)CAPARD'!AP292","v":3.53},{"$f":"'[2]MONE(M)CAPARD'!AQ292","v":1.8},{"$f":"'[2]MONE(M)CAPARD'!AR292","v":2.0699999999999998},null,null,{"$f":"'[2]MONE(M)CAPARD'!J292","v":10.287700718029328},{"$f":"'[2]MONE(M)CAPARD'!K292","v":4.5829123000551562},{"$f":"'[2]MONE(M)CAPARD'!L292","v":8.4782339449541393},{"$f":"'[2]MONE(M)CAPARD'!M292","v":13.760674329501914},{"$f":"'[2]MONE(M)CAPARD'!N292","v":12.651012340626561},{"$f":"'[2]MONE(M)CAPARD'!O292","v":6.7965547317924893},{"$f":"'[2]MONE(M)CAPARD'!P292","v":2.0727101546738527},null,null,{"$f":"'[2]MONE(M)CAPARD'!Q292","v":10.65},{"$f":"'[2]MONE(M)CAPARD'!R292","v":5.72},{"$f":"'[2]MONE(M)CAPARD'!S292","v":6.08},{"$f":"'[2]MONE(M)CAPARD'!T292","v":8.5},{"$f":"'[2]MONE(M)CAPARD'!U292","v":8.57},{"$f":"'[2]MONE(M)CAPARD'!V292","v":6.3},{"$f":"'[2]MONE(M)CAPARD'!W292","v":6.29},null,null,{"$f":"'[2]MONE(M)CAPARD'!AS292","v":4},{"$f":"'[2]MONE(M)CAPARD'!AT292","v":"n.a."},{"$f":"'[2]MONE(M)CAPARD'!AU292","v":5.25},{"$f":"'[2]MONE(M)CAPARD'!AV292","v":7},{"$f":"'[2]MONE(M)CAPARD'!AW292","v":"n.a."},{"$f":"'[2]MONE(M)CAPARD'!AX292","v":4.25},{"$f":"'[2]MONE(M)CAPARD'!AY292","v":"n.a."},null,null,{"$f":"+'Datos_Regional (M)'!CF285","v":12.393023105225831},{"$f":"+'Datos_Regional (M)'!CG285","v":6.6889579238182728},{"$f":"+'Datos_Regional (M)'!CH285","v":30.741721841220084},{"$f":"+'Datos_Regional (M)'!CI285","v":13.516374960978084},{"$f":"+'Datos_Regional (M)'!CJ285","v":23.05294918698193},{"$f":"+'Datos_Regional (M)'!CK285","v":13.846244309921673},{"$f":"+'Datos_Regional (M)'!CL285","v":14.568723072189972},null,null,717.609575425,455.96083333333337,839.65,332.53107450996066,395.39473898813708,781.14999999999975,1369.0313333333336,3522.2962222564306,4891.3275555897635,null,null,1263.3336155116667,880.15083333333348,1446.958333333333,768.55643913010954,559.9608464086939,1425.2833333333331,2240.1511520833337,6344.2434010504703,8584.3945531338049,null,null,-2821.9471787940383,-3693.0669975440396,null,null,{"$f":"'[2]EXT Comercio(M)'!C292","v":682.59410301000025},{"$f":"'[2]EXT Comercio(M)'!D292","v":491.2800000000002},{"$f":"'[2]EXT Comercio(M)'!E292","v":827.79999999999973},{"$f":"'[2]EXT Comercio(M)'!F292","v":308.36098585298305},{"$f":"'[2]EXT Comercio(M)'!G292","v":410.78718174627591},{"$f":"'[2]EXT Comercio(M)'!H292","v":852.80000000000007},{"$f":"'[2]EXT Comercio(M)'!I292","v":1527.3011940000001},{"$f":"'[2]EXT Comercio(M)'!K292","v":3573.6222706092594},{"$f":"'[2]EXT Comercio(M)'!L292","v":5100.9234646092555},null,null,{"$f":"'[2]EXT Comercio(M)'!AG292","v":1282.55959723},{"$f":"'[2]EXT Comercio(M)'!AH292","v":965.05000000000018},{"$f":"'[2]EXT Comercio(M)'!AI292","v":1532.2999999999997},{"$f":"'[2]EXT Comercio(M)'!AJ292","v":804.49349927568892},{"$f":"'[2]EXT Comercio(M)'!AK292","v":586.3892186281455},{"$f":"'[2]EXT Comercio(M)'!AL292","v":1449.9},{"$f":"'[2]EXT Comercio(M)'!AM292","v":2456.997394},{"$f":"'[2]EXT Comercio(M)'!AO292","v":6620.6923151338342},{"$f":"'[2]EXT Comercio(M)'!AP292","v":9077.6897091338324},null,null,{"$f":"'[2]EXT Comercio(M)'!$BS292","v":-3047.0700445245784},{"$f":"'[2]EXT Comercio(M)'!$BT292","v":-3976.7662445245769}]
[null,null,"Agosto",{"$f":"'[2]REAL IPC(M)'!AD293","v":5.3070005331345174},{"$f":"'[2]REAL IPC(M)'!AE293","v":0.99257884972171373},{"$f":"'[2]REAL IPC(M)'!AF293","v":4.4150110375275871},{"$f":"'[2]REAL IPC(M)'!AG293","v":5.3901850362027375},{"$f":"'[2]REAL IPC(M)'!AH293","v":7.9357436536217438},{"$f":"'[2]REAL IPC(M)'!AI293","v":5.3010948905108846},{"$f":"'[2]REAL IPC(M)'!AJ293","v":3.9024390243902451},null,null,{"$f":"'[2]REAL IMAE(M)'!AG293","v":3.0155612086479588},{"$f":"'[2]REAL IMAE(M)'!AH293","v":2.0588356592571562},{"$f":"'[2]REAL IMAE(M)'!AI293","v":3.2796415330634772},{"$f":"'[2]REAL IMAE(M)'!AJ293","v":1.8252517492161529},{"$f":"'[2]REAL IMAE(M)'!AK293","v":4.8165918242127974},{"$f":"'[2]REAL IMAE(M)'!AL293","v":5.8564048166469451},{"$f":"'[2]REAL IMAE(M)'!AM293","v":9.3496283392971744},null,null,{"$f":"'[2]EXT ITCER(M)'!C293","v":69.829535990601158},{"$f":"'[2]EXT ITCER(M)'!D293","v":90.757849425598764},{"$f":"'[2]EXT ITCER(M)'!E293","v":62.562470686647757},{"$f":"'[2]EXT ITCER(M)'!F293","v":75.979119568041327},{"$f":"'[2]EXT ITCER(M)'!G293","v":96.137438417396567},{"$f":"'[2]EXT ITCER(M)'!H293","v":97.176834329560762},{"$f":"'[2]EXT ITCER(M)'!I293","v":88.208576285562913},null,null,{"$f":"'[2]EXT TC(M)'!J293","v":-0.17415311761504193},{"$f":"'[2]EXT TC(M)'!K293","v":0},{"$f":"'[2]EXT TC(M)'!L293","v":0.18094465168568796},{"$f":"'[2]EXT TC(M)'!M293","v":4.292082778285609},{"$f":"'[2]EXT TC(M)'!N293","v":5.0308003598337763},{"$f":"'[2]EXT TC(M)'!O293","v":8.3329711154690802},{"$f":"'[2]EXT TC(M)'!P293","v":0},null,null,{"$f":"'[2]EXT RIN(M)'!C293","v":7719.44312145},{"$f":"'[2]EXT RIN(M)'!D293","v":2855.7},{"$f":"'[2]EXT RIN(M)'!E293","v":6745.8},{"$f":"'[2]EXT RIN(M)'!F293","v":2655.8394964333825},{"$f":"'[2]EXT RIN(M)'!G293","v":1746.8},{"$f":"'[2]EXT RIN(M)'!H293","v":3392.6},{"$f":"'[2]EXT RIN(M)'!I293","v":2892.9286542099999},null,null,{"$f":"'[2]EXT RIN(M)'!P293","v":74.734311830849038},{"$f":"'[2]EXT RIN(M)'!Q293","v":106.5124113422272},{"$f":"'[2]EXT RIN(M)'!R293","v":101.98904422521086},{"$f":"'[2]EXT RIN(M)'!S293","v":74.773042463771461},{"$f":"'[2]EXT RIN(M)'!T293","v":112.64170145244994},{"$f":"'[2]EXT RIN(M)'!U293","v":67.590781539782824},{"$f":"'[2]EXT RIN(M)'!V293","v":235.00448915984103},null,null,{"$f":"+'[2]MONE(M)CAPARD'!AE293","v":1.1803578684917311},{"$f":"'[2]MONE(M)CAPARD'!AF293","v":2.3837604482410146},{"$f":"'[2]MONE(M)CAPARD'!AG293","v":1.0103805496828815},{"$f":"'[2]MONE(M)CAPARD'!AH293","v":6.0345419847328223},{"$f":"'[2]MONE(M)CAPARD'!AI293","v":0.79705031659961978},{"$f":"'[2]MONE(M)CAPARD'!AJ293","v":-5.8019235768069735E-2},{"$f":"'[2]MONE(M)CAPARD'!AK293","v":-1.7636150234741796},null,null,{"$f":"'[2]MONE(M)CAPARD'!AL293","v":1.95},{"$f":"'[2]MONE(M)CAPARD'!AM293","v":3.4},{"$f":"'[2]MONE(M)CAPARD'!AN293","v":2.89},{"$f":"'[2]MONE(M)CAPARD'!AO293","v":4.26},{"$f":"'[2]MONE(M)CAPARD'!AP293","v":3.3927653005273783},{"$f":"'[2]MONE(M)CAPARD'!AQ293","v":2.06},{"$f":"'[2]MONE(M)CAPARD'!AR293","v":2.0699999999999998},null,null,{"$f":"'[2]MONE(M)CAPARD'!J293","v":9.9072230849294503},{"$f":"'[2]MONE(M)CAPARD'!K293","v":4.779976118306231},{"$f":"'[2]MONE(M)CAPARD'!L293","v":8.8157716701902817},{"$f":"'[2]MONE(M)CAPARD'!M293","v":14.128274809160303},{"$f":"'[2]MONE(M)CAPARD'!N293","v":12.002240520174732},{"$f":"'[2]MONE(M)CAPARD'!O293","v":7.2163590676718439},{"$f":"'[2]MONE(M)CAPARD'!P293","v":2.3363849765258204},null,null,{"$f":"'[2]MONE(M)CAPARD'!Q293","v":10.28},{"$f":"'[2]MONE(M)CAPARD'!R293","v":5.82},{"$f":"'[2]MONE(M)CAPARD'!S293","v":6.0699999999999994},{"$f":"'[2]MONE(M)CAPARD'!T293","v":8.5299999999999994},{"$f":"'[2]MONE(M)CAPARD'!U293","v":9},{"$f":"'[2]MONE(M)CAPARD'!V293","v":6.54},{"$f":"'[2]MONE(M)CAPARD'!W293","v":6.33},null,null,{"$f":"'[2]MONE(M)CAPARD'!AS293","v":4},{"$f":"'[2]MONE(M)CAPARD'!AT293","v":"n.a."},{"$f":"'[2]MONE(M)CAPARD'!AU293","v":5.25},{"$f":"'[2]MONE(M)CAPARD'!AV293","v":7},{"$f":"'[2]MONE(M)CAPARD'!AW293","v":"n.a."},{"$f":"'[2]MONE(M)CAPARD'!AX293","v":6.25},{"$f":"'[2]MONE(M)CAPARD'!AY293","v":"n.a."},null,null,{"$f":"+'Datos_Regional (M)'!CF286","v":12.790948493496735},{"$f":"+'Datos_Regional (M)'!CG286","v":7.4115240131139348},{"$f":"+'Datos_Regional (M)'!CH286","v":13.803025521758228},{"$f":"+'Datos_Regional (M)'!CI286","v":13.449850174188072},{"$f":"+'Datos_Regional (M)'!CJ286","v":22.13501016312518},{"$f":"+'Datos_Regional (M)'!CK286","v":14.967281049158165},{"$f":"+'Datos_Regional (M)'!CL286","v":13.765231685726764},null,null,{"$f":"IF(EH98=\"\",\"\",+AVERAGE(EH87:EH98))","v":716.50121020916674},{"$f":"IF(EI98=\"\",\"\",+AVERAGE(EI87:EI98))","v":458.34416666666658},{"$f":"IF(EJ98=\"\",\"\",+AVERAGE(EJ87:EJ98))","v":837.52499999999998},{"$f":"IF(EK98=\"\",\"\",+AVERAGE(EK87:EK98))","v":322.58531189050899},{"$f":"IF(EL98=\"\",\"\",+AVERAGE(EL87:EL98))","v":398.03430950425917},{"$f":"IF(EM98=\"\",\"\",+AVERAGE(EM87:EM98))","v":786.21666666666658},{"$f":"IF(EN98=\"\",\"\",+AVERAGE(EN87:EN98))","v":1343.8384170833335},{"$f":"IF(EO98=\"\",\"\",+AVERAGE(EO87:EO98))","v":3519.2066649372678},{"$f":"IF(EP98=\"\",\"\",+AVERAGE(EP87:EP98))","v":4863.0450820206015},null,null,{"$f":"IF(ES98=\"\",\"\",+AVERAGE(ES87:ES98))","v":1256.9806254625003},{"$f":"IF(ET98=\"\",\"\",+AVERAGE(ET87:ET98))","v":884.71500000000003},{"$f":"IF(EU98=\"\",\"\",+AVERAGE(EU87:EU98))","v":1442.5833333333333},{"$f":"IF(EV98=\"\",\"\",+AVERAGE(EV87:EV98))","v":762.30741861478145},{"$f":"IF(EW98=\"\",\"\",+AVERAGE(EW87:EW98))","v":564.00151186747269},{"$f":"IF(EX98=\"\",\"\",+AVERAGE(EX87:EX98))","v":1412.9999999999998},{"$f":"IF(EY98=\"\",\"\",+AVERAGE(EY87:EY98))","v":2211.2395205000007},{"$f":"IF(EZ98=\"\",\"\",+AVERAGE(EZ87:EZ98))","v":6323.5878892780865},{"$f":"IF(FA98=\"\",\"\",+AVERAGE(FA87:FA98))","v":8534.8274097780886},null,null,{"$f":"IF(FD98=\"\",\"\",+AVERAGE(FD87:FD98))","v":-2804.3812243408192},{"$f":"IF(FE98=\"\",\"\",+AVERAGE(FE87:FE98))","v":-3671.7823277574862},null,null,{"$f":"'[2]EXT Comercio(M)'!C293","v":689.9287857700001},{"$f":"'[2]EXT Comercio(M)'!D293","v":481.38999999999987},{"$f":"'[2]EXT Comercio(M)'!E293","v":804.39999999999964},{"$f":"'[2]EXT Comercio(M)'!F293","v":287.21256196657896},{"$f":"'[2]EXT Comercio(M)'!G293","v":436.87510522892899},{"$f":"'[2]EXT Comercio(M)'!H293","v":794.30000000000007},{"$f":"'[2]EXT Comercio(M)'!I293","v":1277.2831799999999},{"$f":"'[2]EXT Comercio(M)'!K293","v":3494.106452965505},{"$f":"'[2]EXT Comercio(M)'!L293","v":4771.3896329655108},null,null,{"$f":"'[2]EXT Comercio(M)'!AG293","v":1277.393664519999},{"$f":"'[2]EXT Comercio(M)'!AH293","v":905.64999999999964},{"$f":"'[2]EXT Comercio(M)'!AI293","v":1387.1999999999994},{"$f":"'[2]EXT Comercio(M)'!AJ293","v":767.05113136606542},{"$f":"'[2]EXT Comercio(M)'!AK293","v":608.17096618123924},{"$f":"'[2]EXT Comercio(M)'!AL293","v":1424.2000000000003},{"$f":"'[2]EXT Comercio(M)'!AM293","v":2217.5236569999988},{"$f":"'[2]EXT Comercio(M)'!AO293","v":6369.6657620672995},{"$f":"'[2]EXT Comercio(M)'!AP293","v":8587.1894190673047},null,null,{"$f":"'[2]EXT Comercio(M)'!$BS293","v":-2875.5593091017909},{"$f":"'[2]EXT Comercio(M)'!$BT293","v":-3815.7997861017902}]
[null,null,"Setiembre",{"$f":"'[2]REAL IPC(M)'!AD294","v":5.3718385431013242},{"$f":"'[2]REAL IPC(M)'!AE294","v":0.75757575757576445},{"$f":"'[2]REAL IPC(M)'!AF294","v":4.2105263157894752},{"$f":"'[2]REAL IPC(M)'!AG294","v":4.9520766773162954},{"$f":"'[2]REAL IPC(M)'!AH294","v":7.3518468085529021},{"$f":"'[2]REAL IPC(M)'!AI294","v":5.1309944701295827},{"$f":"'[2]REAL IPC(M)'!AJ294","v":3.8997214484679681},null,null,{"$f":"'[2]REAL IMAE(M)'!AG294","v":3.0225983633111566},{"$f":"'[2]REAL IMAE(M)'!AH294","v":2.8594054117128831},{"$f":"'[2]REAL IMAE(M)'!AI294","v":3.1111699388268805},{"$f":"'[2]REAL IMAE(M)'!AJ294","v":1.8602515388296277},{"$f":"'[2]REAL IMAE(M)'!AK294","v":4.165602161818267},{"$f":"'[2]REAL IMAE(M)'!AL294","v":6.4569330229333168},{"$f":"'[2]REAL IMAE(M)'!AM294","v":10.620377338140857},null,null,{"$f":"'[2]EXT ITCER(M)'!C294","v":70.044362580257996},{"$f":"'[2]EXT ITCER(M)'!D294","v":90.633885794432871},{"$f":"'[2]EXT ITCER(M)'!E294","v":62.73302873339739},{"$f":"'[2]EXT ITCER(M)'!F294","v":76.022105078223831},{"$f":"'[2]EXT ITCER(M)'!G294","v":96.49634419666458},{"$f":"'[2]EXT ITCER(M)'!H294","v":97.300480588886913},{"$f":"'[2]EXT ITCER(M)'!I294","v":88.182682725136445},null,null,{"$f":"'[2]EXT TC(M)'!J294","v":0.50816962174181002},{"$f":"'[2]EXT TC(M)'!K294","v":0},{"$f":"'[2]EXT TC(M)'!L294","v":-0.39333775539943705},{"$f":"'[2]EXT TC(M)'!M294","v":4.2092509661377484},{"$f":"'[2]EXT TC(M)'!N294","v":5.1472357570324849},{"$f":"'[2]EXT TC(M)'!O294","v":8.6956632640047395},{"$f":"'[2]EXT TC(M)'!P294","v":0},null,null,{"$f":"'[2]EXT RIN(M)'!C294","v":7617.35809264},{"$f":"'[2]EXT RIN(M)'!D294","v":2889},{"$f":"'[2]EXT RIN(M)'!E294","v":6583.6},{"$f":"'[2]EXT RIN(M)'!F294","v":2561.1840444518798},{"$f":"'[2]EXT RIN(M)'!G294","v":1731.7},{"$f":"'[2]EXT RIN(M)'!H294","v":3343.8},{"$f":"'[2]EXT RIN(M)'!I294","v":2425.49320433},null,null,{"$f":"'[2]EXT RIN(M)'!P294","v":72.076200277111312},{"$f":"'[2]EXT RIN(M)'!Q294","v":106.20507468359968},{"$f":"'[2]EXT RIN(M)'!R294","v":101.48287811173591},{"$f":"'[2]EXT RIN(M)'!S294","v":73.398923906610648},{"$f":"'[2]EXT RIN(M)'!T294","v":111.98363388794186},{"$f":"'[2]EXT RIN(M)'!U294","v":65.34049423502222},{"$f":"'[2]EXT RIN(M)'!V294","v":192.60210367374592},null,null,{"$f":"+'[2]MONE(M)CAPARD'!AE294","v":1.1180989846891207},{"$f":"'[2]MONE(M)CAPARD'!AF294","v":2.7615037593984897},{"$f":"'[2]MONE(M)CAPARD'!AG294","v":1.2373737373737359},{"$f":"'[2]MONE(M)CAPARD'!AH294","v":6.3151902587519011},{"$f":"'[2]MONE(M)CAPARD'!AI294","v":1.9995593821264486},{"$f":"'[2]MONE(M)CAPARD'!AJ294","v":1.7302276450806746},{"$f":"'[2]MONE(M)CAPARD'!AK294","v":-1.7802949061662214},null,null,{"$f":"'[2]MONE(M)CAPARD'!AL294","v":1.9650000000000001},{"$f":"'[2]MONE(M)CAPARD'!AM294","v":3.54},{"$f":"'[2]MONE(M)CAPARD'!AN294","v":2.92},{"$f":"'[2]MONE(M)CAPARD'!AO294","v":4.22},{"$f":"'[2]MONE(M)CAPARD'!AP294","v":3.7918328285247744},{"$f":"'[2]MONE(M)CAPARD'!AQ294","v":1.61},{"$f":"'[2]MONE(M)CAPARD'!AR294","v":2.0499999999999998},null,null,{"$f":"'[2]MONE(M)CAPARD'!J294","v":9.9724571595098581},{"$f":"'[2]MONE(M)CAPARD'!K294","v":5.0640601503759335},{"$f":"'[2]MONE(M)CAPARD'!L294","v":9.0388888888888896},{"$f":"'[2]MONE(M)CAPARD'!M294","v":14.461765601217653},{"$f":"'[2]MONE(M)CAPARD'!N294","v":13.472204834616125},{"$f":"'[2]MONE(M)CAPARD'!O294","v":8.4837069931879476},{"$f":"'[2]MONE(M)CAPARD'!P294","v":2.3101876675603199},null,null,{"$f":"'[2]MONE(M)CAPARD'!Q294","v":10.31},{"$f":"'[2]MONE(M)CAPARD'!R294","v":5.86},{"$f":"'[2]MONE(M)CAPARD'!S294","v":6.09},{"$f":"'[2]MONE(M)CAPARD'!T294","v":8.5500000000000007},{"$f":"'[2]MONE(M)CAPARD'!U294","v":8.4371588097991239},{"$f":"'[2]MONE(M)CAPARD'!V294","v":6.33},{"$f":"'[2]MONE(M)CAPARD'!W294","v":6.3},null,null,{"$f":"'[2]MONE(M)CAPARD'!AS294","v":4},{"$f":"'[2]MONE(M)CAPARD'!AT294","v":"n.a."},{"$f":"'[2]MONE(M)CAPARD'!AU294","v":5.25},{"$f":"'[2]MONE(M)CAPARD'!AV294","v":7},{"$f":"'[2]MONE(M)CAPARD'!AW294","v":"n.a."},{"$f":"'[2]MONE(M)CAPARD'!AX294","v":6.25},{"$f":"'[2]MONE(M)CAPARD'!AY294","v":"n.a."},null,null,{"$f":"+'Datos_Regional (M)'!CF287","v":12.396638561788809},{"$f":"+'Datos_Regional (M)'!CG287","v":7.1093022634140635},{"$f":"+'Datos_Regional (M)'!CH287","v":12.948007650078486},{"$f":"+'Datos_Regional (M)'!CI287","v":12.972565808798752},{"$f":"+'Datos_Regional (M)'!CJ287","v":21.916701226877432},{"$f":"+'Datos_Regional (M)'!CK287","v":16.022003524533758},{"$f":"+'Datos_Regional (M)'!CL287","v":12.231295282375655},null,null,715.98176397333327,459.73166666666674,833.07499999999982,320.95641491749387,399.18790651647487,785.50833333333333,1373.5021268333333,3514.4410854073017,4887.9432122406342,null,null,1266.3695326466668,889.60083333333341,1458.625,758.77058631297348,562.1271201354316,1406.7,2192.1532306666672,6342.1930724284066,8534.3463030950716,null,null,-2827.7519870211036,-3646.4030908544373,null,null,{"$f":"'[2]EXT Comercio(M)'!C294","v":699.07855254999959},{"$f":"'[2]EXT Comercio(M)'!D294","v":426.59000000000015},{"$f":"'[2]EXT Comercio(M)'!E294","v":731.7999999999995},{"$f":"'[2]EXT Comercio(M)'!F294","v":289.95675158381891},{"$f":"'[2]EXT Comercio(M)'!G294","v":400.01175709045697},{"$f":"'[2]EXT Comercio(M)'!H294","v":730.5},{"$f":"'[2]EXT Comercio(M)'!I294","v":1634.3786709999999},{"$f":"'[2]EXT Comercio(M)'!K294","v":3277.9370612242747},{"$f":"'[2]EXT Comercio(M)'!L294","v":4912.3157322242696},null,null,{"$f":"'[2]EXT Comercio(M)'!AG294","v":1210.3753906600004},{"$f":"'[2]EXT Comercio(M)'!AH294","v":848.68000000000029},{"$f":"'[2]EXT Comercio(M)'!AI294","v":1473.8000000000006},{"$f":"'[2]EXT Comercio(M)'!AJ294","v":733.25784338830363},{"$f":"'[2]EXT Comercio(M)'!AK294","v":528.93956739141436},{"$f":"'[2]EXT Comercio(M)'!AL294","v":1375.4},{"$f":"'[2]EXT Comercio(M)'!AM294","v":2235.7307730000002},{"$f":"'[2]EXT Comercio(M)'!AO294","v":6170.452801439722},{"$f":"'[2]EXT Comercio(M)'!AP294","v":8406.1835744397104},null,null,{"$f":"'[2]EXT Comercio(M)'!$BS294","v":-2892.5157402154473},{"$f":"'[2]EXT Comercio(M)'!$BT294","v":-3493.8678422154444}]
[null,null,"Octubre",{"$f":"'[2]REAL IPC(M)'!AD295","v":4.1061599231433501},{"$f":"'[2]REAL IPC(M)'!AE295","v":0.53540108926428354},{"$f":"'[2]REAL IPC(M)'!AF295","v":4.1544655929721763},{"$f":"'[2]REAL IPC(M)'!AG295","v":4.6123260437375837},{"$f":"'[2]REAL IPC(M)'!AH295","v":6.8305985700632972},{"$f":"'[2]REAL IPC(M)'!AI295","v":4.7390793162702032},{"$f":"'[2]REAL IPC(M)'!AJ295","v":3.8942976356050076},null,null,{"$f":"'[2]REAL IMAE(M)'!AG295","v":2.9501970506589568},{"$f":"'[2]REAL IMAE(M)'!AH295","v":3.0656051324256519},{"$f":"'[2]REAL IMAE(M)'!AI295","v":2.9875673486664556},{"$f":"'[2]REAL IMAE(M)'!AJ295","v":2.0177202521153026},{"$f":"'[2]REAL IMAE(M)'!AK295","v":3.5817242202601998},{"$f":"'[2]REAL IMAE(M)'!AL295","v":6.6968987683046741},{"$f":"'[2]REAL IMAE(M)'!AM295","v":10.992064735002042},null,null,{"$f":"'[2]EXT ITCER(M)'!C295","v":70.454019832400959},{"$f":"'[2]EXT ITCER(M)'!D295","v":90.807291276698834},{"$f":"'[2]EXT ITCER(M)'!E295","v":62.913723414930907},{"$f":"'[2]EXT ITCER(M)'!F295","v":75.996915767587026},{"$f":"'[2]EXT ITCER(M)'!G295","v":97.058239379242451},{"$f":"'[2]EXT ITCER(M)'!H295","v":97.087398571905041},{"$f":"'[2]EXT ITCER(M)'!I295","v":88.111768544600068},null,null,{"$f":"'[2]EXT TC(M)'!J295","v":0.31655064613806655},{"$f":"'[2]EXT TC(M)'!K295","v":0},{"$f":"'[2]EXT TC(M)'!L295","v":1.0959228311530642},{"$f":"'[2]EXT TC(M)'!M295","v":3.8486807564108596},{"$f":"'[2]EXT TC(M)'!N295","v":5.4901831566368777},{"$f":"'[2]EXT TC(M)'!O295","v":7.6358858992145233},{"$f":"'[2]EXT TC(M)'!P295","v":0},null,null,{"$f":"'[2]EXT RIN(M)'!C295","v":7441.1258433399998},{"$f":"'[2]EXT RIN(M)'!D295","v":2847.7},{"$f":"'[2]EXT RIN(M)'!E295","v":6657.8},{"$f":"'[2]EXT RIN(M)'!F295","v":2499.9386394088324},{"$f":"'[2]EXT RIN(M)'!G295","v":1749.2},{"$f":"'[2]EXT RIN(M)'!H295","v":3648.2},{"$f":"'[2]EXT RIN(M)'!I295","v":2677.7236857100006},null,null,{"$f":"'[2]EXT RIN(M)'!P295","v":70.565282784660454},{"$f":"'[2]EXT RIN(M)'!Q295","v":105.58393175474659},{"$f":"'[2]EXT RIN(M)'!R295","v":103.06835281079569},{"$f":"'[2]EXT RIN(M)'!S295","v":73.8593629860585},{"$f":"'[2]EXT RIN(M)'!T295","v":110.85737377179802},{"$f":"'[2]EXT RIN(M)'!U295","v":65.732115796516183},{"$f":"'[2]EXT RIN(M)'!V295","v":215.9522940385815},null,null,{"$f":"+'[2]MONE(M)CAPARD'!AE295","v":2.3474500247255503},{"$f":"'[2]MONE(M)CAPARD'!AF295","v":3.1079588651179892},{"$f":"'[2]MONE(M)CAPARD'!AG295","v":1.2630609734668825},{"$f":"'[2]MONE(M)CAPARD'!AH295","v":6.5457620676548762},{"$f":"'[2]MONE(M)CAPARD'!AI295","v":2.6160016062897684},{"$f":"'[2]MONE(M)CAPARD'!AJ295","v":2.7505690354891956},{"$f":"'[2]MONE(M)CAPARD'!AK295","v":-1.7077911646586352},null,null,{"$f":"'[2]MONE(M)CAPARD'!AL295","v":1.9550000000000001},{"$f":"'[2]MONE(M)CAPARD'!AM295","v":3.66},{"$f":"'[2]MONE(M)CAPARD'!AN295","v":2.92},{"$f":"'[2]MONE(M)CAPARD'!AO295","v":4.18},{"$f":"'[2]MONE(M)CAPARD'!AP295","v":3.79075888533814},{"$f":"'[2]MONE(M)CAPARD'!AQ295","v":1.57},{"$f":"'[2]MONE(M)CAPARD'!AR295","v":2.12},null,null,{"$f":"'[2]MONE(M)CAPARD'!J295","v":11.520778487758202},{"$f":"'[2]MONE(M)CAPARD'!K295","v":5.0873611238637428},{"$f":"'[2]MONE(M)CAPARD'!L295","v":9.1263820066772166},{"$f":"'[2]MONE(M)CAPARD'!M295","v":14.948213606993528},{"$f":"'[2]MONE(M)CAPARD'!N295","v":15.235752108097826},{"$f":"'[2]MONE(M)CAPARD'!O295","v":9.5388662464381664},{"$f":"'[2]MONE(M)CAPARD'!P295","v":2.286653279785809},null,null,{"$f":"'[2]MONE(M)CAPARD'!Q295","v":10.56},{"$f":"'[2]MONE(M)CAPARD'!R295","v":5.65},{"$f":"'[2]MONE(M)CAPARD'!S295","v":6.07},{"$f":"'[2]MONE(M)CAPARD'!T295","v":8.6},{"$f":"'[2]MONE(M)CAPARD'!U295","v":8.8000000000000007},{"$f":"'[2]MONE(M)CAPARD'!V295","v":7.06},{"$f":"'[2]MONE(M)CAPARD'!W295","v":6.27},null,null,{"$f":"'[2]MONE(M)CAPARD'!AS295","v":4},{"$f":"'[2]MONE(M)CAPARD'!AT295","v":"n.a."},{"$f":"'[2]MONE(M)CAPARD'!AU295","v":5},{"$f":"'[2]MONE(M)CAPARD'!AV295","v":7},{"$f":"'[2]MONE(M)CAPARD'!AW295","v":"n.a."},{"$f":"'[2]MONE(M)CAPARD'!AX295","v":6.25},{"$f":"'[2]MONE(M)CAPARD'!AY295","v":"n.a."},null,null,{"$f":"+'Datos_Regional (M)'!CF288","v":12.248832748387661},{"$f":"+'Datos_Regional (M)'!CG288","v":7.5100229844768274},{"$f":"+'Datos_Regional (M)'!CH288","v":12.901375372748024},{"$f":"+'Datos_Regional (M)'!CI288","v":14.249349370059017},{"$f":"+'Datos_Regional (M)'!CJ288","v":22.480960046968335},{"$f":"+'Datos_Regional (M)'!CK288","v":15.121675909007969},{"$f":"+'Datos_Regional (M)'!CL288","v":11.883545944689832},null,null,718.93726654333329,460.36166666666662,835.95833333333303,320.4087637134383,399.71873799240262,791.58333333333337,1370.0661808333334,3526.9681015825081,4897.0342824158424,null,null,1264.6792135750002,893.8950000000001,1464.7250000000001,757.63866712968229,560.61545593677738,1412.6666666666667,2169.5671064166663,6354.2200033081272,8523.7871097247935,null,null,-2827.2519017256186,-3626.752827308952,null,null,{"$f":"'[2]EXT Comercio(M)'!C295","v":738.40419087000009},{"$f":"'[2]EXT Comercio(M)'!D295","v":452.55000000000018},{"$f":"'[2]EXT Comercio(M)'!E295","v":767.09999999999945},{"$f":"'[2]EXT Comercio(M)'!F295","v":269.319031891333},{"$f":"'[2]EXT Comercio(M)'!G295","v":442.44467562146997},{"$f":"'[2]EXT Comercio(M)'!H295","v":829.9},{"$f":"'[2]EXT Comercio(M)'!I295","v":1594.8113669999998},{"$f":"'[2]EXT Comercio(M)'!K295","v":3499.7178983828053},{"$f":"'[2]EXT Comercio(M)'!L295","v":5094.5292653828146},null,null,{"$f":"'[2]EXT Comercio(M)'!AG295","v":1344.2103272699997},{"$f":"'[2]EXT Comercio(M)'!AH295","v":915.08000000000084},{"$f":"'[2]EXT Comercio(M)'!AI295","v":1604.9000000000003},{"$f":"'[2]EXT Comercio(M)'!AJ295","v":797.66830008050692},{"$f":"'[2]EXT Comercio(M)'!AK295","v":596.5607003009643},{"$f":"'[2]EXT Comercio(M)'!AL295","v":1590.9},{"$f":"'[2]EXT Comercio(M)'!AM295","v":2414.210865},{"$f":"'[2]EXT Comercio(M)'!AO295","v":6849.3193276514648},{"$f":"'[2]EXT Comercio(M)'!AP295","v":9263.5301926514658},null,null,{"$f":"'[2]EXT Comercio(M)'!$BS295","v":-3349.6014292686668},{"$f":"'[2]EXT Comercio(M)'!$BT295","v":-4169.0009272686693}]
[null,null,"Noviembre",{"$f":"'[2]REAL IPC(M)'!AD296","v":3.4431410651304986},{"$f":"'[2]REAL IPC(M)'!AE296","v":0.75799593270474497},{"$f":"'[2]REAL IPC(M)'!AF296","v":4.6307312162533103},{"$f":"'[2]REAL IPC(M)'!AG296","v":4.7240968638348573},{"$f":"'[2]REAL IPC(M)'!AH296","v":6.2944611064371863},{"$f":"'[2]REAL IPC(M)'!AI296","v":4.1430754021748495},{"$f":"'[2]REAL IPC(M)'!AJ296","v":3.8194444444444455},null,null,{"$f":"'[2]REAL IMAE(M)'!AG296","v":2.8379730621270829},{"$f":"'[2]REAL IMAE(M)'!AH296","v":2.7113330763264618},{"$f":"'[2]REAL IMAE(M)'!AI296","v":2.9716210504239196},{"$f":"'[2]REAL IMAE(M)'!AJ296","v":2.2567792659167445},{"$f":"'[2]REAL IMAE(M)'!AK296","v":3.2661654071052371},{"$f":"'[2]REAL IMAE(M)'!AL296","v":6.6629488562398906},{"$f":"'[2]REAL IMAE(M)'!AM296","v":10.396038422442642},null,null,{"$f":"'[2]EXT ITCER(M)'!C296","v":70.411951609590616},{"$f":"'[2]EXT ITCER(M)'!D296","v":90.899667570955046},{"$f":"'[2]EXT ITCER(M)'!E296","v":62.239367502190639},{"$f":"'[2]EXT ITCER(M)'!F296","v":76.005842186739841},{"$f":"'[2]EXT ITCER(M)'!G296","v":97.048409486772258},{"$f":"'[2]EXT ITCER(M)'!H296","v":97.258110799890886},{"$f":"'[2]EXT ITCER(M)'!I296","v":88.215243422433588},null,null,{"$f":"'[2]EXT TC(M)'!J296","v":-0.17090271691501532},{"$f":"'[2]EXT TC(M)'!K296","v":0},{"$f":"'[2]EXT TC(M)'!L296","v":0.29295880759910992},{"$f":"'[2]EXT TC(M)'!M296","v":3.5359046398111702},{"$f":"'[2]EXT TC(M)'!N296","v":5.2654569485915896},{"$f":"'[2]EXT TC(M)'!O296","v":6.3239473651262683},{"$f":"'[2]EXT TC(M)'!P296","v":0},null,null,{"$f":"'[2]EXT RIN(M)'!C296","v":7398.0345456100004},{"$f":"'[2]EXT RIN(M)'!D296","v":2747.7},{"$f":"'[2]EXT RIN(M)'!E296","v":6957.6},{"$f":"'[2]EXT RIN(M)'!F296","v":2383.4106976996054},{"$f":"'[2]EXT RIN(M)'!G296","v":1754.9},{"$f":"'[2]EXT RIN(M)'!H296","v":3542},{"$f":"'[2]EXT RIN(M)'!I296","v":3148.2979409499999},null,null,{"$f":"'[2]EXT RIN(M)'!P296","v":68.239359648146078},{"$f":"'[2]EXT RIN(M)'!Q296","v":104.22988917347446},{"$f":"'[2]EXT RIN(M)'!R296","v":107.94972485796843},{"$f":"'[2]EXT RIN(M)'!S296","v":69.536208082678669},{"$f":"'[2]EXT RIN(M)'!T296","v":110.44094342326775},{"$f":"'[2]EXT RIN(M)'!U296","v":64.374015176560718},{"$f":"'[2]EXT RIN(M)'!V296","v":266.77768268683968},null,null,{"$f":"+'[2]MONE(M)CAPARD'!AE296","v":3.0034460505345075},{"$f":"'[2]MONE(M)CAPARD'!AF296","v":3.1779155963302821},{"$f":"'[2]MONE(M)CAPARD'!AG296","v":0.83079681623371637},{"$f":"'[2]MONE(M)CAPARD'!AH296","v":6.3747536012130386},{"$f":"'[2]MONE(M)CAPARD'!AI296","v":2.8671441521711718},{"$f":"'[2]MONE(M)CAPARD'!AJ296","v":2.9065058681394946},{"$f":"'[2]MONE(M)CAPARD'!AK296","v":-1.608026755852844},null,null,{"$f":"'[2]MONE(M)CAPARD'!AL296","v":1.855},{"$f":"'[2]MONE(M)CAPARD'!AM296","v":3.96},{"$f":"'[2]MONE(M)CAPARD'!AN296","v":2.93},{"$f":"'[2]MONE(M)CAPARD'!AO296","v":4.16},{"$f":"'[2]MONE(M)CAPARD'!AP296","v":3.4646361978997793},{"$f":"'[2]MONE(M)CAPARD'!AQ296","v":1.69},{"$f":"'[2]MONE(M)CAPARD'!AR296","v":2.15},null,null,{"$f":"'[2]MONE(M)CAPARD'!J296","v":12.245238112881854},{"$f":"'[2]MONE(M)CAPARD'!K296","v":4.3887376146789059},{"$f":"'[2]MONE(M)CAPARD'!L296","v":8.6487676025540186},{"$f":"'[2]MONE(M)CAPARD'!M296","v":14.815981804397266},{"$f":"'[2]MONE(M)CAPARD'!N296","v":13.391560530559151},{"$f":"'[2]MONE(M)CAPARD'!O296","v":10.07933034173287},{"$f":"'[2]MONE(M)CAPARD'!P296","v":2.4374581939799316},null,null,{"$f":"'[2]MONE(M)CAPARD'!Q296","v":10.47},{"$f":"'[2]MONE(M)CAPARD'!R296","v":5.18},{"$f":"'[2]MONE(M)CAPARD'!S296","v":6.07},{"$f":"'[2]MONE(M)CAPARD'!T296","v":8.5299999999999994},{"$f":"'[2]MONE(M)CAPARD'!U296","v":8.5},{"$f":"'[2]MONE(M)CAPARD'!V296","v":5.68},{"$f":"'[2]MONE(M)CAPARD'!W296","v":6.35},null,null,{"$f":"'[2]MONE(M)CAPARD'!AS296","v":4},{"$f":"'[2]MONE(M)CAPARD'!AT296","v":"n.a."},{"$f":"'[2]MONE(M)CAPARD'!AU296","v":5},{"$f":"'[2]MONE(M)CAPARD'!AV296","v":7},{"$f":"'[2]MONE(M)CAPARD'!AW296","v":"n.a."},{"$f":"'[2]MONE(M)CAPARD'!AX296","v":6.25},{"$f":"'[2]MONE(M)CAPARD'!AY296","v":"n.a."},null,null,{"$f":"+'Datos_Regional (M)'!CF289","v":13.208663820386501},{"$f":"+'Datos_Regional (M)'!CG289","v":8.1171019584728619},{"$f":"+'Datos_Regional (M)'!CH289","v":11.953187365533546},{"$f":"+'Datos_Regional (M)'!CI289","v":13.723508226053728},{"$f":"+'Datos_Regional (M)'!CJ289","v":21.874068722022024},{"$f":"+'Datos_Regional (M)'!CK289","v":15.238444749241165},{"$f":"+'Datos_Regional (M)'!CL289","v":-4.3446684991081614},null,null,718.59496717999991,459.26499999999993,835.51666666666642,323.67159110031918,400.17871728921256,781.54166666666663,1341.7389346666666,3518.7686089028648,4860.5075435695326,null,null,1264.6811940450002,899.43916666666689,1465.7583333333332,761.39202402219507,561.28997671185152,1407.6333333333332,2149.2692059999995,6360.1940281123816,8509.4632341123815,null,null,-2841.4254192095154,-3648.9556905428476,null,null,{"$f":"'[2]EXT Comercio(M)'!C296","v":724.97717908999948},{"$f":"'[2]EXT Comercio(M)'!D296","v":403.59999999999945},{"$f":"'[2]EXT Comercio(M)'!E296","v":803},{"$f":"'[2]EXT Comercio(M)'!F296","v":288.85412457257007},{"$f":"'[2]EXT Comercio(M)'!G296","v":403.83811956880101},{"$f":"'[2]EXT Comercio(M)'!H296","v":755.8},{"$f":"'[2]EXT Comercio(M)'!I296","v":1369.2466300000001},{"$f":"'[2]EXT Comercio(M)'!K296","v":3380.069423231369},{"$f":"'[2]EXT Comercio(M)'!L296","v":4749.3160532313632},null,null,{"$f":"'[2]EXT Comercio(M)'!AG296","v":1318.4480819799999},{"$f":"'[2]EXT Comercio(M)'!AH296","v":927.39999999999964},{"$f":"'[2]EXT Comercio(M)'!AI296","v":1443.5000000000009},{"$f":"'[2]EXT Comercio(M)'!AJ296","v":807.00860127015039},{"$f":"'[2]EXT Comercio(M)'!AK296","v":562.04594407102945},{"$f":"'[2]EXT Comercio(M)'!AL296","v":1415.5},{"$f":"'[2]EXT Comercio(M)'!AM296","v":2011.2317300000004},{"$f":"'[2]EXT Comercio(M)'!AO296","v":6473.902627321193},{"$f":"'[2]EXT Comercio(M)'!AP296","v":8485.1343573211925},null,null,{"$f":"'[2]EXT Comercio(M)'!$BS296","v":-3093.8332040898094},{"$f":"'[2]EXT Comercio(M)'!$BT296","v":-3735.8183040898075}]
[null,null,"Diciembre ",{"$f":"'[2]REAL IPC(M)'!AD297","v":3.6795406730651412},{"$f":"'[2]REAL IPC(M)'!AE297","v":0.78609081660964453},{"$f":"'[2]REAL IPC(M)'!AF297","v":4.3874021481886034},{"$f":"'[2]REAL IPC(M)'!AG297","v":4.9167327517843118},{"$f":"'[2]REAL IPC(M)'!AH297","v":5.6748063186391358},{"$f":"'[2]REAL IPC(M)'!AI297","v":3.8760382245243932},{"$f":"'[2]REAL IPC(M)'!AJ297","v":3.7370242214532876},null,null,{"$f":"'[2]REAL IMAE(M)'!AG297","v":2.9570043152822101},{"$f":"'[2]REAL IMAE(M)'!AH297","v":2.8269608543960723},{"$f":"'[2]REAL IMAE(M)'!AI297","v":3.1059705293542557},{"$f":"'[2]REAL IMAE(M)'!AJ297","v":2.5211320956005032},{"$f":"'[2]REAL IMAE(M)'!AK297","v":3.3527510561127558},{"$f":"'[2]REAL IMAE(M)'!AL297","v":6.4629170922995529},{"$f":"'[2]REAL IMAE(M)'!AM297","v":9.1641303098467901},null,null,{"$f":"'[2]EXT ITCER(M)'!C297","v":70.230680041166508},{"$f":"'[2]EXT ITCER(M)'!D297","v":91.156747677210291},{"$f":"'[2]EXT ITCER(M)'!E297","v":61.932366806798193},{"$f":"'[2]EXT ITCER(M)'!F297","v":76.137407742410645},{"$f":"'[2]EXT ITCER(M)'!G297","v":96.356493360117994},{"$f":"'[2]EXT ITCER(M)'!H297","v":97.483713753861863},{"$f":"'[2]EXT ITCER(M)'!I297","v":88.212479436528639},null,null,{"$f":"'[2]EXT TC(M)'!J297","v":-0.16692475400134169},{"$f":"'[2]EXT TC(M)'!K297","v":0},{"$f":"'[2]EXT TC(M)'!L297","v":-0.39270705044374349},{"$f":"'[2]EXT TC(M)'!M297","v":3.3478630343798441},{"$f":"'[2]EXT TC(M)'!N297","v":4.9133741864135017},{"$f":"'[2]EXT TC(M)'!O297","v":6.0601006379489926},{"$f":"'[2]EXT TC(M)'!P297","v":0},null,null,{"$f":"'[2]EXT RIN(M)'!C297","v":7330.8633171600004},{"$f":"'[2]EXT RIN(M)'!D297","v":2720.7},{"$f":"'[2]EXT RIN(M)'!E297","v":7272.6},{"$f":"'[2]EXT RIN(M)'!F297","v":3055.9363093790512},{"$f":"'[2]EXT RIN(M)'!G297","v":1840},{"$f":"'[2]EXT RIN(M)'!H297","v":4386.5041908662597},{"$f":"'[2]EXT RIN(M)'!I297","v":2748.6520483199997},null,null,{"$f":"'[2]EXT RIN(M)'!P297","v":67.018715700381037},{"$f":"'[2]EXT RIN(M)'!Q297","v":102.02968074801515},{"$f":"'[2]EXT RIN(M)'!R297","v":99.520485668955246},{"$f":"'[2]EXT RIN(M)'!S297","v":82.706719369155394},{"$f":"'[2]EXT RIN(M)'!T297","v":112.84486146522967},{"$f":"'[2]EXT RIN(M)'!U297","v":73.433376910943338},{"$f":"'[2]EXT RIN(M)'!V297","v":232.01845812774121},null,null,{"$f":"+'[2]MONE(M)CAPARD'!AE297","v":2.7203624829209763},{"$f":"'[2]MONE(M)CAPARD'!AF297","v":3.1888419893558368},{"$f":"'[2]MONE(M)CAPARD'!AG297","v":1.027516567840949},{"$f":"'[2]MONE(M)CAPARD'!AH297","v":6.1222524565381571},{"$f":"'[2]MONE(M)CAPARD'!AI297","v":2.8634456795500021},{"$f":"'[2]MONE(M)CAPARD'!AJ297","v":3.3250803886166604},{"$f":"'[2]MONE(M)CAPARD'!AK297","v":-1.5684122748499005},null,null,{"$f":"'[2]MONE(M)CAPARD'!AL297","v":1.8599999999999999},{"$f":"'[2]MONE(M)CAPARD'!AM297","v":4},{"$f":"'[2]MONE(M)CAPARD'!AN297","v":2.94},{"$f":"'[2]MONE(M)CAPARD'!AO297","v":4.18},{"$f":"'[2]MONE(M)CAPARD'!AP297","v":3.08},{"$f":"'[2]MONE(M)CAPARD'!AQ297","v":1.79},{"$f":"'[2]MONE(M)CAPARD'!AR297","v":2.11},null,null,{"$f":"'[2]MONE(M)CAPARD'!J297","v":12.018243180905561},{"$f":"'[2]MONE(M)CAPARD'!K297","v":4.7664406313084884},{"$f":"'[2]MONE(M)CAPARD'!L297","v":8.9211893965817932},{"$f":"'[2]MONE(M)CAPARD'!M297","v":14.643295540438384},{"$f":"'[2]MONE(M)CAPARD'!N297","v":12.652400166572139},{"$f":"'[2]MONE(M)CAPARD'!O297","v":9.8039566675264727},{"$f":"'[2]MONE(M)CAPARD'!P297","v":2.4802868579052695},null,null,{"$f":"'[2]MONE(M)CAPARD'!Q297","v":10.53},{"$f":"'[2]MONE(M)CAPARD'!R297","v":5.59},{"$f":"'[2]MONE(M)CAPARD'!S297","v":6.06},{"$f":"'[2]MONE(M)CAPARD'!T297","v":8.48},{"$f":"'[2]MONE(M)CAPARD'!U297","v":8.0299999999999994},{"$f":"'[2]MONE(M)CAPARD'!V297","v":7.17},{"$f":"'[2]MONE(M)CAPARD'!W297","v":6.31},null,null,{"$f":"'[2]MONE(M)CAPARD'!AS297","v":3.75},{"$f":"'[2]MONE(M)CAPARD'!AT297","v":"n.a."},{"$f":"'[2]MONE(M)CAPARD'!AU297","v":5},{"$f":"'[2]MONE(M)CAPARD'!AV297","v":7},{"$f":"'[2]MONE(M)CAPARD'!AW297","v":"n.a."},{"$f":"'[2]MONE(M)CAPARD'!AX297","v":6.25},{"$f":"'[2]MONE(M)CAPARD'!AY297","v":"n.a."},null,null,{"$f":"+'Datos_Regional (M)'!CF290","v":13.086229132800042},{"$f":"+'Datos_Regional (M)'!CG290","v":7.9849470537860512},{"$f":"+'Datos_Regional (M)'!CH290","v":10.166199221924632},{"$f":"+'Datos_Regional (M)'!CI290","v":13.576858844290228},{"$f":"+'Datos_Regional (M)'!CJ290","v":20.247758493291013},{"$f":"+'Datos_Regional (M)'!CK290","v":15.238610543426368},{"$f":"+'Datos_Regional (M)'!CL290","v":-8.6862357311441318},null,null,720.63498231666665,459.94166666666666,835.68333333333305,327.44879043828752,399.53038132293705,785.36666666666679,1313.669114,3528.6058207445581,4842.2749347445579,null,null,1257.3717810158334,895.62833333333344,1459.6250000000002,762.68996295340912,557.30220547234785,1400.1000000000001,2143.3555729999994,6332.7172827749237,8476.0728557749226,null,null,-2804.1114620303665,-3633.7979210303661,null,null,{"$f":"'[2]EXT Comercio(M)'!C297","v":677.4082592600007},{"$f":"'[2]EXT Comercio(M)'!D297","v":426.3100000000004},{"$f":"'[2]EXT Comercio(M)'!E297","v":825.70000000000027},{"$f":"'[2]EXT Comercio(M)'!F297","v":338.54368906562013},{"$f":"'[2]EXT Comercio(M)'!G297","v":344.74582869069798},{"$f":"'[2]EXT Comercio(M)'!H297","v":730.7},{"$f":"'[2]EXT Comercio(M)'!I297","v":858.81192800000008},{"$f":"'[2]EXT Comercio(M)'!K297","v":3343.4077770163203},{"$f":"'[2]EXT Comercio(M)'!L297","v":4202.2197050163159},null,null,{"$f":"'[2]EXT Comercio(M)'!AG297","v":1191.7491827000017},{"$f":"'[2]EXT Comercio(M)'!AH297","v":789.59000000000015},{"$f":"'[2]EXT Comercio(M)'!AI297","v":1335.9000000000005},{"$f":"'[2]EXT Comercio(M)'!AJ297","v":762.6916486145692},{"$f":"'[2]EXT Comercio(M)'!AK297","v":554.62739897547397},{"$f":"'[2]EXT Comercio(M)'!AL297","v":1388.1},{"$f":"'[2]EXT Comercio(M)'!AM297","v":1752.4022910000003},{"$f":"'[2]EXT Comercio(M)'!AO297","v":6022.6582302900351},{"$f":"'[2]EXT Comercio(M)'!AP297","v":7775.0605212900409},null,null,{"$f":"'[2]EXT Comercio(M)'!$BS297","v":-2679.2504532737294},{"$f":"'[2]EXT Comercio(M)'!$BT297","v":-3572.8408162737323}]
[null,2014,"Enero",{"$f":"'[2]REAL IPC(M)'!AD298","v":3.1040330797733393},{"$f":"'[2]REAL IPC(M)'!AE298","v":0.84722350124320989},{"$f":"'[2]REAL IPC(M)'!AF298","v":4.1394927536231805},{"$f":"'[2]REAL IPC(M)'!AG298","v":5.9984214680347341},{"$f":"'[2]REAL IPC(M)'!AH298","v":5.1922326714335245},{"$f":"'[2]REAL IPC(M)'!AI298","v":2.8223672605397527},{"$f":"'[2]REAL IPC(M)'!AJ298","v":3.3723331039228013},null,null,{"$f":"'[2]REAL IMAE(M)'!AG298","v":3.3392128869301354},{"$f":"'[2]REAL IMAE(M)'!AH298","v":3.3006587830423033},{"$f":"'[2]REAL IMAE(M)'!AI298","v":3.4874966114645383},{"$f":"'[2]REAL IMAE(M)'!AJ298","v":2.7374366430844272},{"$f":"'[2]REAL IMAE(M)'!AK298","v":3.8595031787089251},{"$f":"'[2]REAL IMAE(M)'!AL298","v":6.3467610869636735},{"$f":"'[2]REAL IMAE(M)'!AM298","v":8.0561428309747054},null,null,{"$f":"'[2]EXT ITCER(M)'!C298","v":70.289556556184621},{"$f":"'[2]EXT ITCER(M)'!D298","v":90.935483108473122},{"$f":"'[2]EXT ITCER(M)'!E298","v":61.822578987097373},{"$f":"'[2]EXT ITCER(M)'!F298","v":75.304292183204154},{"$f":"'[2]EXT ITCER(M)'!G298","v":96.533732731463829},{"$f":"'[2]EXT ITCER(M)'!H298","v":98.08646458388327},{"$f":"'[2]EXT ITCER(M)'!I298","v":88.249704795128608},null,null,{"$f":"'[2]EXT TC(M)'!J298","v":0.21653281790923695},{"$f":"'[2]EXT TC(M)'!K298","v":0},{"$f":"'[2]EXT TC(M)'!L298","v":-0.45172491808195159},{"$f":"'[2]EXT TC(M)'!M298","v":3.1238670923439034},{"$f":"'[2]EXT TC(M)'!N298","v":4.9340717145808313},{"$f":"'[2]EXT TC(M)'!O298","v":5.6393497569968067},{"$f":"'[2]EXT TC(M)'!P298","v":0},null,null,{"$f":"'[2]EXT RIN(M)'!C298","v":7258.3436738500004},{"$f":"'[2]EXT RIN(M)'!D298","v":2751.3},{"$f":"'[2]EXT RIN(M)'!E298","v":7164.6},{"$f":"'[2]EXT RIN(M)'!F298","v":2925.7112050424298},{"$f":"'[2]EXT RIN(M)'!G298","v":1874.4},{"$f":"'[2]EXT RIN(M)'!H298","v":3753.8264529553708},{"$f":"'[2]EXT RIN(M)'!I298","v":2346.1767065199997},null,null,{"$f":"'[2]EXT RIN(M)'!P298","v":68.699381693964042},{"$f":"'[2]EXT RIN(M)'!Q298","v":102.76889195016234},{"$f":"'[2]EXT RIN(M)'!R298","v":99.602853777760842},{"$f":"'[2]EXT RIN(M)'!S298","v":79.974841100943195},{"$f":"'[2]EXT RIN(M)'!T298","v":112.12883509730503},{"$f":"'[2]EXT RIN(M)'!U298","v":69.099456168666521},{"$f":"'[2]EXT RIN(M)'!V298","v":194.38421274223074},null,null,{"$f":"+'[2]MONE(M)CAPARD'!AE298","v":3.3422232063031498},{"$f":"'[2]MONE(M)CAPARD'!AF298","v":2.650322344991324},{"$f":"'[2]MONE(M)CAPARD'!AG298","v":1.8441680438375303},{"$f":"'[2]MONE(M)CAPARD'!AH298","v":4.8506180193596373},{"$f":"'[2]MONE(M)CAPARD'!AI298","v":3.8243172150106512},{"$f":"'[2]MONE(M)CAPARD'!AJ298","v":4.0435100360267882},{"$f":"'[2]MONE(M)CAPARD'!AK298","v":-1.1534354194406338},null,null,{"$f":"'[2]MONE(M)CAPARD'!AL298","v":1.875},{"$f":"'[2]MONE(M)CAPARD'!AM298","v":3.52},{"$f":"'[2]MONE(M)CAPARD'!AN298","v":2.94},{"$f":"'[2]MONE(M)CAPARD'!AO298","v":4.17},{"$f":"'[2]MONE(M)CAPARD'!AP298","v":3.6302273824629938},{"$f":"'[2]MONE(M)CAPARD'!AQ298","v":1.46},{"$f":"'[2]MONE(M)CAPARD'!AR298","v":2.1800000000000002},null,null,{"$f":"'[2]MONE(M)CAPARD'!J298","v":12.944175432885986},{"$f":"'[2]MONE(M)CAPARD'!K298","v":4.8417560040178973},{"$f":"'[2]MONE(M)CAPARD'!L298","v":9.2573019048447502},{"$f":"'[2]MONE(M)CAPARD'!M298","v":13.728108711839159},{"$f":"'[2]MONE(M)CAPARD'!N298","v":14.917278153774664},{"$f":"'[2]MONE(M)CAPARD'!O298","v":11.561329559101074},{"$f":"'[2]MONE(M)CAPARD'!P298","v":2.8224833555260815},null,null,{"$f":"'[2]MONE(M)CAPARD'!Q298","v":10.07},{"$f":"'[2]MONE(M)CAPARD'!R298","v":5.73},{"$f":"'[2]MONE(M)CAPARD'!S298","v":6.06},{"$f":"'[2]MONE(M)CAPARD'!T298","v":8.51},{"$f":"'[2]MONE(M)CAPARD'!U298","v":8.8520728691260526},{"$f":"'[2]MONE(M)CAPARD'!V298","v":8.09},{"$f":"'[2]MONE(M)CAPARD'!W298","v":6.29},null,null,{"$f":"'[2]MONE(M)CAPARD'!AS298","v":3.75},{"$f":"'[2]MONE(M)CAPARD'!AT298","v":"n.a."},{"$f":"'[2]MONE(M)CAPARD'!AU298","v":5},{"$f":"'[2]MONE(M)CAPARD'!AV298","v":7},{"$f":"'[2]MONE(M)CAPARD'!AW298","v":"n.a."},{"$f":"'[2]MONE(M)CAPARD'!AX298","v":6.25},{"$f":"'[2]MONE(M)CAPARD'!AY298","v":"n.a."},null,null,{"$f":"+'Datos_Regional (M)'!CF291","v":13.560347534824114},{"$f":"+'Datos_Regional (M)'!CG291","v":7.6440983298808884},{"$f":"+'Datos_Regional (M)'!CH291","v":10.817445566034278},{"$f":"+'Datos_Regional (M)'!CI291","v":13.514237457405166},{"$f":"+'Datos_Regional (M)'!CJ291","v":19.762868220964357},{"$f":"+'Datos_Regional (M)'!CK291","v":12.104848584044836},{"$f":"+'Datos_Regional (M)'!CL291","v":10.917251818061136},null,null,720.23949201249991,453.76416666666665,836.2833333333333,324.24326124724104,402.76878047981768,790.0916666666667,1299.0811794166668,3527.3907004062257,4826.4718798228923,null,null,1255.9223003508334,896.51250000000016,1466.4833333333336,752.09333278555414,561.59174893794739,1404.7916666666667,2124.3110816666663,6337.3948820743344,8461.7059637410021,null,null,-2810.00418166811,-3635.2340839181102,null,null,{"$f":"'[2]EXT Comercio(M)'!C298","v":673.94123162000005},{"$f":"'[2]EXT Comercio(M)'!D298","v":404.7},{"$f":"'[2]EXT Comercio(M)'!E298","v":835.4},{"$f":"'[2]EXT Comercio(M)'!F298","v":341.1},{"$f":"'[2]EXT Comercio(M)'!G298","v":433.87139433999994},{"$f":"'[2]EXT Comercio(M)'!H298","v":733.60000000000014},{"$f":"'[2]EXT Comercio(M)'!I298","v":921.51920499999994},{"$f":"'[2]EXT Comercio(M)'!K298","v":3422.6126259599996},{"$f":"'[2]EXT Comercio(M)'!L298","v":4344.1318309600001},null,null,{"$f":"'[2]EXT Comercio(M)'!AG298","v":1308.3624300500001},{"$f":"'[2]EXT Comercio(M)'!AH298","v":895.84},{"$f":"'[2]EXT Comercio(M)'!AI298","v":1547.8999999999999},{"$f":"'[2]EXT Comercio(M)'!AJ298","v":680.2635423840469},{"$f":"'[2]EXT Comercio(M)'!AK298","v":573.01670223999997},{"$f":"'[2]EXT Comercio(M)'!AL298","v":1309.7},{"$f":"'[2]EXT Comercio(M)'!AM298","v":1967.6846409999971},{"$f":"'[2]EXT Comercio(M)'!AO298","v":6315.0826746740468},{"$f":"'[2]EXT Comercio(M)'!AP298","v":8282.7673156740439},null,null,{"$f":"'[2]EXT Comercio(M)'!$BS298","v":-2892.4700487140467},{"$f":"'[2]EXT Comercio(M)'!$BT298","v":-3938.6354847140437}]
[null,null,"Febrero",{"$f":"'[2]REAL IPC(M)'!AD299","v":2.7396626608914247},{"$f":"'[2]REAL IPC(M)'!AE299","v":0.61439706556625562},{"$f":"'[2]REAL IPC(M)'!AF299","v":3.5040431266846426},{"$f":"'[2]REAL IPC(M)'!AG299","v":5.7399453338539583},{"$f":"'[2]REAL IPC(M)'!AH299","v":5.2528405814158781},{"$f":"'[2]REAL IPC(M)'!AI299","v":2.8395604395603988},{"$f":"'[2]REAL IPC(M)'!AJ299","v":3.3538672142368378},null,null,{"$f":"'[2]REAL IMAE(M)'!AG299","v":3.4828749493339353},{"$f":"'[2]REAL IMAE(M)'!AH299","v":3.2913407573227018},{"$f":"'[2]REAL IMAE(M)'!AI299","v":3.8450671672763019},{"$f":"'[2]REAL IMAE(M)'!AJ299","v":2.9149783729012477},{"$f":"'[2]REAL IMAE(M)'!AK299","v":4.593626978230291},{"$f":"'[2]REAL IMAE(M)'!AL299","v":6.485644132695394},{"$f":"'[2]REAL IMAE(M)'!AM299","v":7.4621921985683723},null,null,{"$f":"'[2]EXT ITCER(M)'!C299","v":73.050280960779418},{"$f":"'[2]EXT ITCER(M)'!D299","v":90.861344223554909},{"$f":"'[2]EXT ITCER(M)'!E299","v":61.082445549120038},{"$f":"'[2]EXT ITCER(M)'!F299","v":74.945646904232163},{"$f":"'[2]EXT ITCER(M)'!G299","v":96.595239132818094},{"$f":"'[2]EXT ITCER(M)'!H299","v":98.367098496987538},{"$f":"'[2]EXT ITCER(M)'!I299","v":87.878785411577155},null,null,{"$f":"'[2]EXT TC(M)'!J299","v":4.543432761484679},{"$f":"'[2]EXT TC(M)'!K299","v":0},{"$f":"'[2]EXT TC(M)'!L299","v":-0.88464885339885801},{"$f":"'[2]EXT TC(M)'!M299","v":2.953713518373644},{"$f":"'[2]EXT TC(M)'!N299","v":5.012456697821956},{"$f":"'[2]EXT TC(M)'!O299","v":5.713179974292391},{"$f":"'[2]EXT TC(M)'!P299","v":0},null,null,{"$f":"'[2]EXT RIN(M)'!C299","v":7275.1072810599999},{"$f":"'[2]EXT RIN(M)'!D299","v":2824.6},{"$f":"'[2]EXT RIN(M)'!E299","v":7163.9},{"$f":"'[2]EXT RIN(M)'!F299","v":3006.1140247603885},{"$f":"'[2]EXT RIN(M)'!G299","v":1816.2},{"$f":"'[2]EXT RIN(M)'!H299","v":3449.5470622487833},{"$f":"'[2]EXT RIN(M)'!I299","v":2140.5441688699998},null,null,{"$f":"'[2]EXT RIN(M)'!P299","v":72.235924194068375},{"$f":"'[2]EXT RIN(M)'!Q299","v":102.44079352990244},{"$f":"'[2]EXT RIN(M)'!R299","v":101.45375757065314},{"$f":"'[2]EXT RIN(M)'!S299","v":79.247365042204592},{"$f":"'[2]EXT RIN(M)'!T299","v":106.56142995792506},{"$f":"'[2]EXT RIN(M)'!U299","v":67.032893930253607},{"$f":"'[2]EXT RIN(M)'!V299","v":173.62127295780755},null,null,{"$f":"+'[2]MONE(M)CAPARD'!AE299","v":3.6600639341401826},{"$f":"'[2]MONE(M)CAPARD'!AF299","v":2.8481042654028421},{"$f":"'[2]MONE(M)CAPARD'!AG299","v":2.4790885416666604},{"$f":"'[2]MONE(M)CAPARD'!AH299","v":5.2014918759231961},{"$f":"'[2]MONE(M)CAPARD'!AI299","v":4.0954227280460387},{"$f":"'[2]MONE(M)CAPARD'!AJ299","v":4.0358394597367484},{"$f":"'[2]MONE(M)CAPARD'!AK299","v":-1.1164238410596157},null,null,{"$f":"'[2]MONE(M)CAPARD'!AL299","v":1.9650000000000001},{"$f":"'[2]MONE(M)CAPARD'!AM299","v":3.48},{"$f":"'[2]MONE(M)CAPARD'!AN299","v":2.95},{"$f":"'[2]MONE(M)CAPARD'!AO299","v":4.1100000000000003},{"$f":"'[2]MONE(M)CAPARD'!AP299","v":3.3233665434587873},{"$f":"'[2]MONE(M)CAPARD'!AQ299","v":1.66},{"$f":"'[2]MONE(M)CAPARD'!AR299","v":2.2000000000000002},null,null,{"$f":"'[2]MONE(M)CAPARD'!J299","v":13.237669841294544},{"$f":"'[2]MONE(M)CAPARD'!K299","v":5.332838133430549},{"$f":"'[2]MONE(M)CAPARD'!L299","v":9.9570572916666595},{"$f":"'[2]MONE(M)CAPARD'!M299","v":13.826425406203846},{"$f":"'[2]MONE(M)CAPARD'!N299","v":13.540095509043965},{"$f":"'[2]MONE(M)CAPARD'!O299","v":12.0233256246413},{"$f":"'[2]MONE(M)CAPARD'!P299","v":2.6376688741721721},null,null,{"$f":"'[2]MONE(M)CAPARD'!Q299","v":10.15},{"$f":"'[2]MONE(M)CAPARD'!R299","v":5.98},{"$f":"'[2]MONE(M)CAPARD'!S299","v":6.07},{"$f":"'[2]MONE(M)CAPARD'!T299","v":8.4700000000000006},{"$f":"'[2]MONE(M)CAPARD'!U299","v":8.6497021245682202},{"$f":"'[2]MONE(M)CAPARD'!V299","v":7.34},{"$f":"'[2]MONE(M)CAPARD'!W299","v":6.08},null,null,{"$f":"'[2]MONE(M)CAPARD'!AS299","v":3.75},{"$f":"'[2]MONE(M)CAPARD'!AT299","v":"n.a."},{"$f":"'[2]MONE(M)CAPARD'!AU299","v":5},{"$f":"'[2]MONE(M)CAPARD'!AV299","v":7},{"$f":"'[2]MONE(M)CAPARD'!AW299","v":"n.a."},{"$f":"'[2]MONE(M)CAPARD'!AX299","v":6.25},{"$f":"'[2]MONE(M)CAPARD'!AY299","v":"n.a."},null,null,{"$f":"+'Datos_Regional (M)'!CF292","v":16.916526704494128},{"$f":"+'Datos_Regional (M)'!CG292","v":7.5143346940759193},{"$f":"+'Datos_Regional (M)'!CH292","v":10.418699503741834},{"$f":"+'Datos_Regional (M)'!CI292","v":13.771693257651773},{"$f":"+'Datos_Regional (M)'!CJ292","v":21.50804531009738},{"$f":"+'Datos_Regional (M)'!CK292","v":12.232219145772749},{"$f":"+'Datos_Regional (M)'!CL292","v":11.149579926724385},null,null,723.14375437000001,452.17750000000001,837.09166666666658,321.7313604110729,406.56363059402128,795.7166666666667,1272.0191094166669,3536.4245787084274,4808.443688125094,null,null,1255.16191549,896.47583333333341,1468.0500000000002,749.84001069507678,559.41616108618427,1387.4916666666668,2100.9521643333323,6316.4355872712613,8417.3877516045941,null,null,-2780.0110085628344,-3608.9440634795005,null,null,{"$f":"'[2]EXT Comercio(M)'!C299","v":753.83116661999998},{"$f":"'[2]EXT Comercio(M)'!D299","v":415.36999999999995},{"$f":"'[2]EXT Comercio(M)'!E299","v":805.69999999999993},{"$f":"'[2]EXT Comercio(M)'!F299","v":328.3},{"$f":"'[2]EXT Comercio(M)'!G299","v":401.02076018000002},{"$f":"'[2]EXT Comercio(M)'!H299","v":786.90000000000009},{"$f":"'[2]EXT Comercio(M)'!I299","v":935.29241999999988},{"$f":"'[2]EXT Comercio(M)'!K299","v":3491.1219268000004},{"$f":"'[2]EXT Comercio(M)'!L299","v":4426.4143468000011},null,null,{"$f":"'[2]EXT Comercio(M)'!AG299","v":1183.5493982400001},{"$f":"'[2]EXT Comercio(M)'!AH299","v":834.84},{"$f":"'[2]EXT Comercio(M)'!AI299","v":1356.3000000000002},{"$f":"'[2]EXT Comercio(M)'!AJ299","v":698.8598129219846},{"$f":"'[2]EXT Comercio(M)'!AK299","v":514.80034580999995},{"$f":"'[2]EXT Comercio(M)'!AL299","v":1187.0999999999999},{"$f":"'[2]EXT Comercio(M)'!AM299","v":1778.3198529999988},{"$f":"'[2]EXT Comercio(M)'!AO299","v":5775.4495569719829},{"$f":"'[2]EXT Comercio(M)'!AP299","v":7553.7694099719829},null,null,{"$f":"'[2]EXT Comercio(M)'!$BS299","v":-2284.3276301719848},{"$f":"'[2]EXT Comercio(M)'!$BT299","v":-3127.3550631719836}]
[null,null,"Marzo",{"$f":"'[2]REAL IPC(M)'!AD300","v":3.2591887870732568},{"$f":"'[2]REAL IPC(M)'!AE300","v":0.4108088369545268},{"$f":"'[2]REAL IPC(M)'!AF300","v":3.2459983904140031},{"$f":"'[2]REAL IPC(M)'!AG300","v":5.7864077669902825},{"$f":"'[2]REAL IPC(M)'!AH300","v":5.1012817348377988},{"$f":"'[2]REAL IPC(M)'!AI300","v":2.9865125240847448},{"$f":"'[2]REAL IPC(M)'!AJ300","v":3.3772324471711217},null,null,{"$f":"'[2]REAL IMAE(M)'!AG300","v":3.3839668744473972},{"$f":"'[2]REAL IMAE(M)'!AH300","v":2.9204331412695357},{"$f":"'[2]REAL IMAE(M)'!AI300","v":4.2140400069032555},{"$f":"'[2]REAL IMAE(M)'!AJ300","v":2.9921822348635607},{"$f":"'[2]REAL IMAE(M)'!AK300","v":5.241139011966867},{"$f":"'[2]REAL IMAE(M)'!AL300","v":6.7192968634376422},{"$f":"'[2]REAL IMAE(M)'!AM300","v":7.480807304545908},null,null,{"$f":"'[2]EXT ITCER(M)'!C300","v":76.010513219781174},{"$f":"'[2]EXT ITCER(M)'!D300","v":90.823389069724939},{"$f":"'[2]EXT ITCER(M)'!E300","v":60.839982407843728},{"$f":"'[2]EXT ITCER(M)'!F300","v":74.861736958561067},{"$f":"'[2]EXT ITCER(M)'!G300","v":97.106474341064839},{"$f":"'[2]EXT ITCER(M)'!H300","v":98.121962357922371},{"$f":"'[2]EXT ITCER(M)'!I300","v":87.678260910516855},null,null,{"$f":"'[2]EXT TC(M)'!J300","v":9.8271340570615955},{"$f":"'[2]EXT TC(M)'!K300","v":0},{"$f":"'[2]EXT TC(M)'!L300","v":-1.0295711509725645},{"$f":"'[2]EXT TC(M)'!M300","v":2.8690570907294251},{"$f":"'[2]EXT TC(M)'!N300","v":5.1188877430416317},{"$f":"'[2]EXT TC(M)'!O300","v":5.181599953160684},{"$f":"'[2]EXT TC(M)'!P300","v":0},null,null,{"$f":"'[2]EXT RIN(M)'!C300","v":6785.6091915899997},{"$f":"'[2]EXT RIN(M)'!D300","v":2801.1},{"$f":"'[2]EXT RIN(M)'!E300","v":7110.7},{"$f":"'[2]EXT RIN(M)'!F300","v":3069.0782040609893},{"$f":"'[2]EXT RIN(M)'!G300","v":1858.9},{"$f":"'[2]EXT RIN(M)'!H300","v":3584.8739572163063},{"$f":"'[2]EXT RIN(M)'!I300","v":2070.0241558499997},null,null,{"$f":"'[2]EXT RIN(M)'!P300","v":68.381360111903277},{"$f":"'[2]EXT RIN(M)'!Q300","v":102.6564382822647},{"$f":"'[2]EXT RIN(M)'!R300","v":100.60894711659618},{"$f":"'[2]EXT RIN(M)'!S300","v":77.295660290568208},{"$f":"'[2]EXT RIN(M)'!T300","v":108.53483621494691},{"$f":"'[2]EXT RIN(M)'!U300","v":68.206550413915195},{"$f":"'[2]EXT RIN(M)'!V300","v":170.8864051814931},null,null,{"$f":"+'[2]MONE(M)CAPARD'!AE300","v":3.2353645735254606},{"$f":"'[2]MONE(M)CAPARD'!AF300","v":3.3354886807891733},{"$f":"'[2]MONE(M)CAPARD'!AG300","v":2.1831370171488143},{"$f":"'[2]MONE(M)CAPARD'!AH300","v":5.0796622613803315},{"$f":"'[2]MONE(M)CAPARD'!AI300","v":3.7135799714422419},{"$f":"'[2]MONE(M)CAPARD'!AJ300","v":4.3146304957904915},{"$f":"'[2]MONE(M)CAPARD'!AK300","v":-1.1387734216745673},null,null,{"$f":"'[2]MONE(M)CAPARD'!AL300","v":1.9750000000000001},{"$f":"'[2]MONE(M)CAPARD'!AM300","v":3.76},{"$f":"'[2]MONE(M)CAPARD'!AN300","v":2.92},{"$f":"'[2]MONE(M)CAPARD'!AO300","v":4.1100000000000003},{"$f":"'[2]MONE(M)CAPARD'!AP300","v":3.2777717216382856},{"$f":"'[2]MONE(M)CAPARD'!AQ300","v":1.41},{"$f":"'[2]MONE(M)CAPARD'!AR300","v":2.2000000000000002},null,null,{"$f":"'[2]MONE(M)CAPARD'!J300","v":12.968154573187102},{"$f":"'[2]MONE(M)CAPARD'!K300","v":5.2675515955996115},{"$f":"'[2]MONE(M)CAPARD'!L300","v":10.222189502858154},{"$f":"'[2]MONE(M)CAPARD'!M300","v":14.022209985315721},{"$f":"'[2]MONE(M)CAPARD'!N300","v":14.919247437416834},{"$f":"'[2]MONE(M)CAPARD'!O300","v":10.735708414176459},{"$f":"'[2]MONE(M)CAPARD'!P300","v":2.5854508672349521},null,null,{"$f":"'[2]MONE(M)CAPARD'!Q300","v":10.35},{"$f":"'[2]MONE(M)CAPARD'!R300","v":5.7},{"$f":"'[2]MONE(M)CAPARD'!S300","v":6.08},{"$f":"'[2]MONE(M)CAPARD'!T300","v":8.42},{"$f":"'[2]MONE(M)CAPARD'!U300","v":7.8324688408574854},{"$f":"'[2]MONE(M)CAPARD'!V300","v":5.94},{"$f":"'[2]MONE(M)CAPARD'!W300","v":6.05},null,null,{"$f":"'[2]MONE(M)CAPARD'!AS300","v":4.75},{"$f":"'[2]MONE(M)CAPARD'!AT300","v":"n.a."},{"$f":"'[2]MONE(M)CAPARD'!AU300","v":4.75},{"$f":"'[2]MONE(M)CAPARD'!AV300","v":7},{"$f":"'[2]MONE(M)CAPARD'!AW300","v":"n.a."},{"$f":"'[2]MONE(M)CAPARD'!AX300","v":6.25},{"$f":"'[2]MONE(M)CAPARD'!AY300","v":"n.a."},null,null,{"$f":"+'Datos_Regional (M)'!CF293","v":18.457443102095073},{"$f":"+'Datos_Regional (M)'!CG293","v":8.2316310707808213},{"$f":"+'Datos_Regional (M)'!CH293","v":10.536280308526313},{"$f":"+'Datos_Regional (M)'!CI293","v":13.443483449635018},{"$f":"+'Datos_Regional (M)'!CJ293","v":19.868610788388153},{"$f":"+'Datos_Regional (M)'!CK293","v":13.535265897415361},{"$f":"+'Datos_Regional (M)'!CL293","v":11.335766930985635},null,null,725.27637776333347,454.4883333333334,841.60833333333312,319.8532575548133,413.17566146638461,799.44166666666672,1241.7298379166668,3553.8436301178644,4795.5734680345313,null,null,1268.8048979208331,902.32333333333338,1478.8416666666669,759.12323612288571,565.20529722354365,1400.1333333333332,2085.7839469166661,6374.4317646005975,8460.2157115172631,null,null,-2820.5881344827321,-3664.6422434827327,null,null,{"$f":"'[2]EXT Comercio(M)'!C300","v":817.72698624999998},{"$f":"'[2]EXT Comercio(M)'!D300","v":476.68000000000006},{"$f":"'[2]EXT Comercio(M)'!E300","v":1036.3},{"$f":"'[2]EXT Comercio(M)'!F300","v":358.8},{"$f":"'[2]EXT Comercio(M)'!G300","v":472.88364557000011},{"$f":"'[2]EXT Comercio(M)'!H300","v":859.09999999999991},{"$f":"'[2]EXT Comercio(M)'!I300","v":969.60110599999985},{"$f":"'[2]EXT Comercio(M)'!K300","v":4021.4906318200001},{"$f":"'[2]EXT Comercio(M)'!L300","v":4991.0917378199993},null,null,{"$f":"'[2]EXT Comercio(M)'!AG300","v":1437.2365374599997},{"$f":"'[2]EXT Comercio(M)'!AH300","v":895.04000000000019},{"$f":"'[2]EXT Comercio(M)'!AI300","v":1475.4999999999998},{"$f":"'[2]EXT Comercio(M)'!AJ300","v":790.88017226810598},{"$f":"'[2]EXT Comercio(M)'!AK300","v":537.04076565000003},{"$f":"'[2]EXT Comercio(M)'!AL300","v":1479.1000000000001},{"$f":"'[2]EXT Comercio(M)'!AM300","v":1745.6580310000031},{"$f":"'[2]EXT Comercio(M)'!AO300","v":6614.7974753781091},{"$f":"'[2]EXT Comercio(M)'!AP300","v":8360.4555063781117},null,null,{"$f":"'[2]EXT Comercio(M)'!$BS300","v":-2593.3068435581063},{"$f":"'[2]EXT Comercio(M)'!$BT300","v":-3369.3637685581107}]
[null,null,"Abril",{"$f":"'[2]REAL IPC(M)'!AD301","v":3.6792927951940326},{"$f":"'[2]REAL IPC(M)'!AE301","v":0.56959118052366065},{"$f":"'[2]REAL IPC(M)'!AF301","v":3.2672737011248119},{"$f":"'[2]REAL IPC(M)'!AG301","v":5.9666795815575258},{"$f":"'[2]REAL IPC(M)'!AH301","v":4.9007181576330803},{"$f":"'[2]REAL IPC(M)'!AI301","v":3.4878625887301609},{"$f":"'[2]REAL IPC(M)'!AJ301","v":3.5291440217391536},null,null,{"$f":"'[2]REAL IMAE(M)'!AG301","v":3.3207335423493523},{"$f":"'[2]REAL IMAE(M)'!AH301","v":2.7479642898980119},{"$f":"'[2]REAL IMAE(M)'!AI301","v":4.5272991446732975},{"$f":"'[2]REAL IMAE(M)'!AJ301","v":2.9395187800245455},{"$f":"'[2]REAL IMAE(M)'!AK301","v":5.4758534348412082},{"$f":"'[2]REAL IMAE(M)'!AL301","v":6.8570379181801604},{"$f":"'[2]REAL IMAE(M)'!AM301","v":7.8404385586308685},null,null,{"$f":"'[2]EXT ITCER(M)'!C301","v":75.032748588341363},{"$f":"'[2]EXT ITCER(M)'!D301","v":91.424930598872706},{"$f":"'[2]EXT ITCER(M)'!E301","v":60.992879967771202},{"$f":"'[2]EXT ITCER(M)'!F301","v":74.859217431315386},{"$f":"'[2]EXT ITCER(M)'!G301","v":96.856055217893527},{"$f":"'[2]EXT ITCER(M)'!H301","v":97.876845200828598},{"$f":"'[2]EXT ITCER(M)'!I301","v":87.414878998526248},null,null,{"$f":"'[2]EXT TC(M)'!J301","v":9.4483545877012833},{"$f":"'[2]EXT TC(M)'!K301","v":0},{"$f":"'[2]EXT TC(M)'!L301","v":-0.60938005889516833},{"$f":"'[2]EXT TC(M)'!M301","v":2.7505884383069859},{"$f":"'[2]EXT TC(M)'!N301","v":5.1060844369380973},{"$f":"'[2]EXT TC(M)'!O301","v":5.0113634425993858},{"$f":"'[2]EXT TC(M)'!P301","v":0},null,null,{"$f":"'[2]EXT RIN(M)'!C301","v":7775.8436125999997},{"$f":"'[2]EXT RIN(M)'!D301","v":2841.1},{"$f":"'[2]EXT RIN(M)'!E301","v":7214.9},{"$f":"'[2]EXT RIN(M)'!F301","v":3161.2609550678944},{"$f":"'[2]EXT RIN(M)'!G301","v":1916},{"$f":"'[2]EXT RIN(M)'!H301","v":5161.981456020425},{"$f":"'[2]EXT RIN(M)'!I301","v":2258.3106731999997},null,null,{"$f":"'[2]EXT RIN(M)'!P301","v":78.503087337660361},{"$f":"'[2]EXT RIN(M)'!Q301","v":101.69179700726671},{"$f":"'[2]EXT RIN(M)'!R301","v":103.56388966180276},{"$f":"'[2]EXT RIN(M)'!S301","v":78.73674893022816},{"$f":"'[2]EXT RIN(M)'!T301","v":112.58873414912513},{"$f":"'[2]EXT RIN(M)'!U301","v":96.154288753213351},{"$f":"'[2]EXT RIN(M)'!V301","v":178.74878048472891},null,null,{"$f":"+'[2]MONE(M)CAPARD'!AE301","v":2.9135106185311384},{"$f":"'[2]MONE(M)CAPARD'!AF301","v":3.2817164519959761},{"$f":"'[2]MONE(M)CAPARD'!AG301","v":2.1620850622406516},{"$f":"'[2]MONE(M)CAPARD'!AH301","v":4.7876563071298079},{"$f":"'[2]MONE(M)CAPARD'!AI301","v":4.4220102821174825},{"$f":"'[2]MONE(M)CAPARD'!AJ301","v":3.7802862223727791},{"$f":"'[2]MONE(M)CAPARD'!AK301","v":-1.3224720774776804},null,null,{"$f":"'[2]MONE(M)CAPARD'!AL301","v":1.97},{"$f":"'[2]MONE(M)CAPARD'!AM301","v":3.87},{"$f":"'[2]MONE(M)CAPARD'!AN301","v":2.88},{"$f":"'[2]MONE(M)CAPARD'!AO301","v":4.0599999999999996},{"$f":"'[2]MONE(M)CAPARD'!AP301","v":3.987221648857421},{"$f":"'[2]MONE(M)CAPARD'!AQ301","v":1.53},{"$f":"'[2]MONE(M)CAPARD'!AR301","v":2.16},null,null,{"$f":"'[2]MONE(M)CAPARD'!J301","v":12.770830942068049},{"$f":"'[2]MONE(M)CAPARD'!K301","v":4.9820316068329173},{"$f":"'[2]MONE(M)CAPARD'!L301","v":10.209164937759322},{"$f":"'[2]MONE(M)CAPARD'!M301","v":13.799923217550287},{"$f":"'[2]MONE(M)CAPARD'!N301","v":15.76619501875331},{"$f":"'[2]MONE(M)CAPARD'!O301","v":11.15313150986537},{"$f":"'[2]MONE(M)CAPARD'!P301","v":2.4252648874732454},null,null,{"$f":"'[2]MONE(M)CAPARD'!Q301","v":10.29},{"$f":"'[2]MONE(M)CAPARD'!R301","v":5.58},{"$f":"'[2]MONE(M)CAPARD'!S301","v":6.06},{"$f":"'[2]MONE(M)CAPARD'!T301","v":8.4499999999999993},{"$f":"'[2]MONE(M)CAPARD'!U301","v":8.6483290360719263},{"$f":"'[2]MONE(M)CAPARD'!V301","v":5.94},{"$f":"'[2]MONE(M)CAPARD'!W301","v":6.04},null,null,{"$f":"'[2]MONE(M)CAPARD'!AS301","v":4.75},{"$f":"'[2]MONE(M)CAPARD'!AT301","v":"n.a."},{"$f":"'[2]MONE(M)CAPARD'!AU301","v":4.75},{"$f":"'[2]MONE(M)CAPARD'!AV301","v":7},{"$f":"'[2]MONE(M)CAPARD'!AW301","v":"n.a."},{"$f":"'[2]MONE(M)CAPARD'!AX301","v":6.25},{"$f":"'[2]MONE(M)CAPARD'!AY301","v":"n.a."},null,null,{"$f":"+'Datos_Regional (M)'!CF294","v":18.532813296251561},{"$f":"+'Datos_Regional (M)'!CG294","v":8.7484713668120726},{"$f":"+'Datos_Regional (M)'!CH294","v":10.753875706339301},{"$f":"+'Datos_Regional (M)'!CI294","v":13.920855026008883},{"$f":"+'Datos_Regional (M)'!CJ294","v":21.170150134620492},{"$f":"+'Datos_Regional (M)'!CK294","v":14.077410651755006},{"$f":"+'Datos_Regional (M)'!CL294","v":11.085122456640949},null,null,726.26817506999998,448.44666666666672,845.84166666666658,320.4979921284567,412.42918411676237,795.97500000000002,1247.68283675,3549.4586846485522,4797.141521398552,null,null,1271.2768686074999,899.27916666666681,1471.4416666666668,757.13215062150221,561.43086931369328,1414.4250000000002,2091.4320843333326,6374.9857218760299,8466.4178062093633,null,null,-2825.5270372274772,-3669.2762848108105,null,null,{"$f":"'[2]EXT Comercio(M)'!C301","v":776.65667071000007},{"$f":"'[2]EXT Comercio(M)'!D301","v":424.03},{"$f":"'[2]EXT Comercio(M)'!E301","v":939.6},{"$f":"'[2]EXT Comercio(M)'!F301","v":362.4},{"$f":"'[2]EXT Comercio(M)'!G301","v":418.21638459999997},{"$f":"'[2]EXT Comercio(M)'!H301","v":790.8},{"$f":"'[2]EXT Comercio(M)'!I301","v":1335.112852},{"$f":"'[2]EXT Comercio(M)'!K301","v":3711.7030553099994},{"$f":"'[2]EXT Comercio(M)'!L301","v":5046.8159073099978},null,null,{"$f":"'[2]EXT Comercio(M)'!AG301","v":1307.6013065999998},{"$f":"'[2]EXT Comercio(M)'!AH301","v":922.77999999999975},{"$f":"'[2]EXT Comercio(M)'!AI301","v":1521.2999999999997},{"$f":"'[2]EXT Comercio(M)'!AJ301","v":771.34086424329325},{"$f":"'[2]EXT Comercio(M)'!AK301","v":539.17637565000007},{"$f":"'[2]EXT Comercio(M)'!AL301","v":1540.1},{"$f":"'[2]EXT Comercio(M)'!AM301","v":2256.3138809999946},{"$f":"'[2]EXT Comercio(M)'!AO301","v":6602.2985464932935},{"$f":"'[2]EXT Comercio(M)'!AP301","v":8858.6124274932881},null,null,{"$f":"'[2]EXT Comercio(M)'!$BS301","v":-2890.5954911832914},{"$f":"'[2]EXT Comercio(M)'!$BT301","v":-3811.7965201832867}]
[null,null,"Mayo ",{"$f":"'[2]REAL IPC(M)'!AD302","v":4.2102988382663771},{"$f":"'[2]REAL IPC(M)'!AE302","v":0.94764927776244468},{"$f":"'[2]REAL IPC(M)'!AF302","v":3.2229344729344742},{"$f":"'[2]REAL IPC(M)'!AG302","v":6.2210200927356896},{"$f":"'[2]REAL IPC(M)'!AH302","v":4.8473220695518888},{"$f":"'[2]REAL IPC(M)'!AI302","v":3.696224758560144},{"$f":"'[2]REAL IPC(M)'!AJ302","v":3.2476319350473597},null,null,{"$f":"'[2]REAL IMAE(M)'!AG302","v":3.0522268075257797},{"$f":"'[2]REAL IMAE(M)'!AH302","v":2.3522491686590024},{"$f":"'[2]REAL IMAE(M)'!AI302","v":4.7614268887868603},{"$f":"'[2]REAL IMAE(M)'!AJ302","v":2.7295849305683482},{"$f":"'[2]REAL IMAE(M)'!AK302","v":5.2438011865264862},{"$f":"'[2]REAL IMAE(M)'!AL302","v":6.8098868677891877},{"$f":"'[2]REAL IMAE(M)'!AM302","v":7.9013259326565439},null,null,{"$f":"'[2]EXT ITCER(M)'!C302","v":75.557169067472259},{"$f":"'[2]EXT ITCER(M)'!D302","v":91.390202170930564},{"$f":"'[2]EXT ITCER(M)'!E302","v":60.876936158933162},{"$f":"'[2]EXT ITCER(M)'!F302","v":74.787302991038828},{"$f":"'[2]EXT ITCER(M)'!G302","v":96.661730542709932},{"$f":"'[2]EXT ITCER(M)'!H302","v":98.190844370215331},{"$f":"'[2]EXT ITCER(M)'!I302","v":87.463517642168867},null,null,{"$f":"'[2]EXT TC(M)'!J302","v":10.561881757533905},{"$f":"'[2]EXT TC(M)'!K302","v":0},{"$f":"'[2]EXT TC(M)'!L302","v":-0.66963223596980437},{"$f":"'[2]EXT TC(M)'!M302","v":2.5653854986426459},{"$f":"'[2]EXT TC(M)'!N302","v":5.1408943522645183},{"$f":"'[2]EXT TC(M)'!O302","v":5.0579674525711456},{"$f":"'[2]EXT TC(M)'!P302","v":0},null,null,{"$f":"'[2]EXT RIN(M)'!C302","v":7704.4670957600001},{"$f":"'[2]EXT RIN(M)'!D302","v":2816.4},{"$f":"'[2]EXT RIN(M)'!E302","v":7174.4},{"$f":"'[2]EXT RIN(M)'!F302","v":3211.5809867864473},{"$f":"'[2]EXT RIN(M)'!G302","v":1931.6},{"$f":"'[2]EXT RIN(M)'!H302","v":4598.0900066988679},{"$f":"'[2]EXT RIN(M)'!I302","v":2247.5061663799997},null,null,{"$f":"'[2]EXT RIN(M)'!P302","v":77.674198193046337},{"$f":"'[2]EXT RIN(M)'!Q302","v":104.27291632805613},{"$f":"'[2]EXT RIN(M)'!R302","v":106.8620823697711},{"$f":"'[2]EXT RIN(M)'!S302","v":82.447734470870998},{"$f":"'[2]EXT RIN(M)'!T302","v":114.09286313854292},{"$f":"'[2]EXT RIN(M)'!U302","v":84.341376832753795},{"$f":"'[2]EXT RIN(M)'!V302","v":179.37036534540061},null,null,{"$f":"+'[2]MONE(M)CAPARD'!AE302","v":2.5330520986514196},{"$f":"'[2]MONE(M)CAPARD'!AF302","v":2.9543538096974102},{"$f":"'[2]MONE(M)CAPARD'!AG302","v":2.2156563739865436},{"$f":"'[2]MONE(M)CAPARD'!AH302","v":4.4426045834849166},{"$f":"'[2]MONE(M)CAPARD'!AI302","v":3.886932626571888},{"$f":"'[2]MONE(M)CAPARD'!AJ302","v":3.4174583015832662},{"$f":"'[2]MONE(M)CAPARD'!AK302","v":-1.082477064220182},null,null,{"$f":"'[2]MONE(M)CAPARD'!AL302","v":2.0750000000000002},{"$f":"'[2]MONE(M)CAPARD'!AM302","v":3.93},{"$f":"'[2]MONE(M)CAPARD'!AN302","v":2.88},{"$f":"'[2]MONE(M)CAPARD'!AO302","v":4.0599999999999996},{"$f":"'[2]MONE(M)CAPARD'!AP302","v":3.582997096907107},{"$f":"'[2]MONE(M)CAPARD'!AQ302","v":1.41},{"$f":"'[2]MONE(M)CAPARD'!AR302","v":2.13},null,null,{"$f":"'[2]MONE(M)CAPARD'!J302","v":11.956304991573807},{"$f":"'[2]MONE(M)CAPARD'!K302","v":4.7473623769595328},{"$f":"'[2]MONE(M)CAPARD'!L302","v":10.275880627910988},{"$f":"'[2]MONE(M)CAPARD'!M302","v":13.621578755911258},{"$f":"'[2]MONE(M)CAPARD'!N302","v":13.869573363027602},{"$f":"'[2]MONE(M)CAPARD'!O302","v":9.5218271103208831},{"$f":"'[2]MONE(M)CAPARD'!P302","v":2.7142201834862401},null,null,{"$f":"'[2]MONE(M)CAPARD'!Q302","v":9.93},{"$f":"'[2]MONE(M)CAPARD'!R302","v":5.74},{"$f":"'[2]MONE(M)CAPARD'!S302","v":6.06},{"$f":"'[2]MONE(M)CAPARD'!T302","v":8.48},{"$f":"'[2]MONE(M)CAPARD'!U302","v":8.7371739596041031},{"$f":"'[2]MONE(M)CAPARD'!V302","v":6.2},{"$f":"'[2]MONE(M)CAPARD'!W302","v":6.05},null,null,{"$f":"'[2]MONE(M)CAPARD'!AS302","v":5.25},{"$f":"'[2]MONE(M)CAPARD'!AT302","v":"n.a."},{"$f":"'[2]MONE(M)CAPARD'!AU302","v":4.75},{"$f":"'[2]MONE(M)CAPARD'!AV302","v":7},{"$f":"'[2]MONE(M)CAPARD'!AW302","v":"n.a."},{"$f":"'[2]MONE(M)CAPARD'!AX302","v":6.25},{"$f":"'[2]MONE(M)CAPARD'!AY302","v":"n.a."},null,null,{"$f":"+'Datos_Regional (M)'!CF295","v":18.440227565709844},{"$f":"+'Datos_Regional (M)'!CG295","v":8.5696183310365548},{"$f":"+'Datos_Regional (M)'!CH295","v":11.171519390356387},{"$f":"+'Datos_Regional (M)'!CI295","v":13.820702568645626},{"$f":"+'Datos_Regional (M)'!CJ295","v":22.453124904006149},{"$f":"+'Datos_Regional (M)'!CK295","v":13.485198834043665},{"$f":"+'Datos_Regional (M)'!CL295","v":11.262447187065284},null,null,731.5474544266666,445.71499999999997,844.27499999999975,325.43651822631244,416.50764355054616,794.23333333333346,1221.998947,3557.7149495368581,4779.7138965368576,null,null,1283.6753525208335,902.4725000000002,1477.4416666666668,764.43722849958738,564.62534683298497,1428.1083333333336,2075.2130077499992,6420.7604278534054,8495.9734356034041,null,null,-2863.0454783165483,-3716.2595390665469,null,null,{"$f":"'[2]EXT Comercio(M)'!C302","v":843.42232978999982},{"$f":"'[2]EXT Comercio(M)'!D302","v":490.24999999999977},{"$f":"'[2]EXT Comercio(M)'!E302","v":946.5},{"$f":"'[2]EXT Comercio(M)'!F302","v":412.4},{"$f":"'[2]EXT Comercio(M)'!G302","v":442.57206303999999},{"$f":"'[2]EXT Comercio(M)'!H302","v":891.50000000000011},{"$f":"'[2]EXT Comercio(M)'!I302","v":1107.013461},{"$f":"'[2]EXT Comercio(M)'!K302","v":4026.6443928299996},{"$f":"'[2]EXT Comercio(M)'!L302","v":5133.6578538299982},null,null,{"$f":"'[2]EXT Comercio(M)'!AG302","v":1372.2265225500005},{"$f":"'[2]EXT Comercio(M)'!AH302","v":973.11999999999989},{"$f":"'[2]EXT Comercio(M)'!AI302","v":1668.1999999999998},{"$f":"'[2]EXT Comercio(M)'!AJ302","v":872.18026185558938},{"$f":"'[2]EXT Comercio(M)'!AK302","v":602.01928771000007},{"$f":"'[2]EXT Comercio(M)'!AL302","v":1574.5},{"$f":"'[2]EXT Comercio(M)'!AM302","v":1987.00476},{"$f":"'[2]EXT Comercio(M)'!AO302","v":7062.2460721155876},{"$f":"'[2]EXT Comercio(M)'!AP302","v":9049.250832115591},null,null,{"$f":"'[2]EXT Comercio(M)'!$BS302","v":-3035.6016792855899},{"$f":"'[2]EXT Comercio(M)'!$BT302","v":-3915.5929782855892}]
[null,null,"Junio",{"$f":"'[2]REAL IPC(M)'!AD303","v":4.5891347708327457},{"$f":"'[2]REAL IPC(M)'!AE303","v":1.138554769993581},{"$f":"'[2]REAL IPC(M)'!AF303","v":3.1321889930985662},{"$f":"'[2]REAL IPC(M)'!AG303","v":6.2331666025394563},{"$f":"'[2]REAL IPC(M)'!AH303","v":6.0528388698858784},{"$f":"'[2]REAL IPC(M)'!AI303","v":3.6773740565209732},{"$f":"'[2]REAL IPC(M)'!AJ303","v":3.3604180714767362},null,null,{"$f":"'[2]REAL IMAE(M)'!AG303","v":2.7754083120086133},{"$f":"'[2]REAL IMAE(M)'!AH303","v":2.160856366484901},{"$f":"'[2]REAL IMAE(M)'!AI303","v":4.8054146832789861},{"$f":"'[2]REAL IMAE(M)'!AJ303","v":2.368882634386694},{"$f":"'[2]REAL IMAE(M)'!AK303","v":4.8282292110595018},{"$f":"'[2]REAL IMAE(M)'!AL303","v":6.5773877999536197},{"$f":"'[2]REAL IMAE(M)'!AM303","v":7.3363123832471757},null,null,{"$f":"'[2]EXT ITCER(M)'!C303","v":75.236209079630044},{"$f":"'[2]EXT ITCER(M)'!D303","v":91.15370326589526},{"$f":"'[2]EXT ITCER(M)'!E303","v":61.184357234669797},{"$f":"'[2]EXT ITCER(M)'!F303","v":74.914608010037085},{"$f":"'[2]EXT ITCER(M)'!G303","v":96.180687421103116},{"$f":"'[2]EXT ITCER(M)'!H303","v":98.733885772913879},{"$f":"'[2]EXT ITCER(M)'!I303","v":87.188548375781565},null,null,{"$f":"'[2]EXT TC(M)'!J303","v":10.425610983858007},{"$f":"'[2]EXT TC(M)'!K303","v":0},{"$f":"'[2]EXT TC(M)'!L303","v":-0.14119009670625096},{"$f":"'[2]EXT TC(M)'!M303","v":2.6491297558054452},{"$f":"'[2]EXT TC(M)'!N303","v":5.2457950663664006},{"$f":"'[2]EXT TC(M)'!O303","v":4.5817194290758314},{"$f":"'[2]EXT TC(M)'!P303","v":0},null,null,{"$f":"'[2]EXT RIN(M)'!C303","v":7494.0057608999996},{"$f":"'[2]EXT RIN(M)'!D303","v":2660.2},{"$f":"'[2]EXT RIN(M)'!E303","v":7096.4},{"$f":"'[2]EXT RIN(M)'!F303","v":3172.9837429338422},{"$f":"'[2]EXT RIN(M)'!G303","v":1944.4},{"$f":"'[2]EXT RIN(M)'!H303","v":4666.5868257044622},{"$f":"'[2]EXT RIN(M)'!I303","v":2342.8661294499998},null,null,{"$f":"'[2]EXT RIN(M)'!P303","v":75.033481572145192},{"$f":"'[2]EXT RIN(M)'!Q303","v":103.96397332938349},{"$f":"'[2]EXT RIN(M)'!R303","v":101.6258509039103},{"$f":"'[2]EXT RIN(M)'!S303","v":79.877551713247001},{"$f":"'[2]EXT RIN(M)'!T303","v":113.44811748732486},{"$f":"'[2]EXT RIN(M)'!U303","v":80.146515619513281},{"$f":"'[2]EXT RIN(M)'!V303","v":189.30646638883479},null,null,{"$f":"+'[2]MONE(M)CAPARD'!AE303","v":2.2572758005314717},{"$f":"'[2]MONE(M)CAPARD'!AF303","v":2.8490077167498775},{"$f":"'[2]MONE(M)CAPARD'!AG303","v":2.2958991077556625},{"$f":"'[2]MONE(M)CAPARD'!AH303","v":4.3647700108656098},{"$f":"'[2]MONE(M)CAPARD'!AI303","v":2.8899220337058344},{"$f":"'[2]MONE(M)CAPARD'!AJ303","v":2.790026242275462},{"$f":"'[2]MONE(M)CAPARD'!AK303","v":-1.1807402623243857},null,null,{"$f":"'[2]MONE(M)CAPARD'!AL303","v":2.1550000000000002},{"$f":"'[2]MONE(M)CAPARD'!AM303","v":4.0199999999999996},{"$f":"'[2]MONE(M)CAPARD'!AN303","v":2.87},{"$f":"'[2]MONE(M)CAPARD'!AO303","v":4.08},{"$f":"'[2]MONE(M)CAPARD'!AP303","v":3.2976456399744682},{"$f":"'[2]MONE(M)CAPARD'!AQ303","v":1.67},{"$f":"'[2]MONE(M)CAPARD'!AR303","v":2.14},null,null,{"$f":"'[2]MONE(M)CAPARD'!J303","v":11.512539285796965},{"$f":"'[2]MONE(M)CAPARD'!K303","v":4.2233599636858745},{"$f":"'[2]MONE(M)CAPARD'!L303","v":10.382608098833218},{"$f":"'[2]MONE(M)CAPARD'!M303","v":13.505041651575496},{"$f":"'[2]MONE(M)CAPARD'!N303","v":13.651876945653461},{"$f":"'[2]MONE(M)CAPARD'!O303","v":8.8376331160585817},{"$f":"'[2]MONE(M)CAPARD'!P303","v":2.6214889404273785},null,null,{"$f":"'[2]MONE(M)CAPARD'!Q303","v":9.86},{"$f":"'[2]MONE(M)CAPARD'!R303","v":5.41},{"$f":"'[2]MONE(M)CAPARD'!S303","v":6.05},{"$f":"'[2]MONE(M)CAPARD'!T303","v":8.4700000000000006},{"$f":"'[2]MONE(M)CAPARD'!U303","v":8.7552409420964779},{"$f":"'[2]MONE(M)CAPARD'!V303","v":6.09},{"$f":"'[2]MONE(M)CAPARD'!W303","v":6.07},null,null,{"$f":"'[2]MONE(M)CAPARD'!AS303","v":5.25},{"$f":"'[2]MONE(M)CAPARD'!AT303","v":"n.a."},{"$f":"'[2]MONE(M)CAPARD'!AU303","v":4.5},{"$f":"'[2]MONE(M)CAPARD'!AV303","v":7},{"$f":"'[2]MONE(M)CAPARD'!AW303","v":"n.a."},{"$f":"'[2]MONE(M)CAPARD'!AX303","v":6.25},{"$f":"'[2]MONE(M)CAPARD'!AY303","v":"n.a."},null,null,{"$f":"+'Datos_Regional (M)'!CF296","v":18.019801212731366},{"$f":"+'Datos_Regional (M)'!CG296","v":7.7580447763694993},{"$f":"+'Datos_Regional (M)'!CH296","v":10.413653099562614},{"$f":"+'Datos_Regional (M)'!CI296","v":14.512960361601234},{"$f":"+'Datos_Regional (M)'!CJ296","v":22.307323844993654},{"$f":"+'Datos_Regional (M)'!CK296","v":12.775932108073151},{"$f":"+'Datos_Regional (M)'!CL296","v":10.304364312773039},null,null,739.2320785408333,447.03666666666669,851.21666666666658,331.22892874440873,422.39804893138597,800.96666666666681,1236.8452528333335,3592.079056216628,4828.9243090499594,null,null,1285.908527325,894.81,1482.4583333333337,772.76285969051276,567.04477875068892,1424.5500000000002,2080.9570379999991,6427.5344990995354,8508.491537099535,null,null,-2835.4554428829074,-3679.5672280495733,null,null,{"$f":"'[2]EXT Comercio(M)'!C303","v":792.81548695000038},{"$f":"'[2]EXT Comercio(M)'!D303","v":471.69000000000005},{"$f":"'[2]EXT Comercio(M)'!E303","v":891.3},{"$f":"'[2]EXT Comercio(M)'!F303","v":389.5},{"$f":"'[2]EXT Comercio(M)'!G303","v":461.50967149999997},{"$f":"'[2]EXT Comercio(M)'!H303","v":855.7},{"$f":"'[2]EXT Comercio(M)'!I303","v":1311.7710199999999},{"$f":"'[2]EXT Comercio(M)'!K303","v":3862.5151584500018},{"$f":"'[2]EXT Comercio(M)'!L303","v":5174.2861784499983},null,null,{"$f":"'[2]EXT Comercio(M)'!AG303","v":1197.1898886399999},{"$f":"'[2]EXT Comercio(M)'!AH303","v":864.64999999999964},{"$f":"'[2]EXT Comercio(M)'!AI303","v":1442.7},{"$f":"'[2]EXT Comercio(M)'!AJ303","v":787.45863861784983},{"$f":"'[2]EXT Comercio(M)'!AK303","v":601.75007239999991},{"$f":"'[2]EXT Comercio(M)'!AL303","v":1360.1},{"$f":"'[2]EXT Comercio(M)'!AM303","v":2148.4065799999989},{"$f":"'[2]EXT Comercio(M)'!AO303","v":6253.8485996578529},{"$f":"'[2]EXT Comercio(M)'!AP303","v":8402.2551796578482},null,null,{"$f":"'[2]EXT Comercio(M)'!$BS303","v":-2391.3334412078493},{"$f":"'[2]EXT Comercio(M)'!$BT303","v":-3227.9690012078463}]
[null,null,"Julio",{"$f":"'[2]REAL IPC(M)'!AD304","v":5.1860001486131093},{"$f":"'[2]REAL IPC(M)'!AE304","v":1.8293804008089676},{"$f":"'[2]REAL IPC(M)'!AF304","v":3.4139026111503261},{"$f":"'[2]REAL IPC(M)'!AG304","v":6.5900383141762413},{"$f":"'[2]REAL IPC(M)'!AH304","v":6.9365963772630739},{"$f":"'[2]REAL IPC(M)'!AI304","v":3.4103794156127263},{"$f":"'[2]REAL IPC(M)'!AJ304","v":2.1860121049092203},null,null,{"$f":"'[2]REAL IMAE(M)'!AG304","v":2.8292935991196861},{"$f":"'[2]REAL IMAE(M)'!AH304","v":1.594010099138959},{"$f":"'[2]REAL IMAE(M)'!AI304","v":4.6159593383636626},{"$f":"'[2]REAL IMAE(M)'!AJ304","v":1.9896252268191215},{"$f":"'[2]REAL IMAE(M)'!AK304","v":4.5076249221083762},{"$f":"'[2]REAL IMAE(M)'!AL304","v":6.4167536551043085},{"$f":"'[2]REAL IMAE(M)'!AM304","v":6.3320879072505649},null,null,{"$f":"'[2]EXT ITCER(M)'!C304","v":73.031903459386129},{"$f":"'[2]EXT ITCER(M)'!D304","v":90.74551720017152},{"$f":"'[2]EXT ITCER(M)'!E304","v":60.643714899476727},{"$f":"'[2]EXT ITCER(M)'!F304","v":74.59293885216357},{"$f":"'[2]EXT ITCER(M)'!G304","v":96.289923895477699},{"$f":"'[2]EXT ITCER(M)'!H304","v":98.730444707756106},{"$f":"'[2]EXT ITCER(M)'!I304","v":88.052350416446103},null,null,{"$f":"'[2]EXT TC(M)'!J304","v":8.1035938991446805},{"$f":"'[2]EXT TC(M)'!K304","v":0},{"$f":"'[2]EXT TC(M)'!L304","v":-0.63110183543209863},{"$f":"'[2]EXT TC(M)'!M304","v":2.486249083148226},{"$f":"'[2]EXT TC(M)'!N304","v":5.1776131850202454},{"$f":"'[2]EXT TC(M)'!O304","v":3.7272386697432802},{"$f":"'[2]EXT TC(M)'!P304","v":0},null,null,{"$f":"'[2]EXT RIN(M)'!C304","v":7338.8224336200001},{"$f":"'[2]EXT RIN(M)'!D304","v":2697.5},{"$f":"'[2]EXT RIN(M)'!E304","v":7132.7},{"$f":"'[2]EXT RIN(M)'!F304","v":3148.2774924910527},{"$f":"'[2]EXT RIN(M)'!G304","v":1893.3},{"$f":"'[2]EXT RIN(M)'!H304","v":4538.0680927097028},{"$f":"'[2]EXT RIN(M)'!I304","v":2241.9406929100001},null,null,{"$f":"'[2]EXT RIN(M)'!P304","v":73.146186100125064},{"$f":"'[2]EXT RIN(M)'!Q304","v":102.52552971206956},{"$f":"'[2]EXT RIN(M)'!R304","v":99.02878079806581},{"$f":"'[2]EXT RIN(M)'!S304","v":82.695540457170907},{"$f":"'[2]EXT RIN(M)'!T304","v":115.2226013469021},{"$f":"'[2]EXT RIN(M)'!U304","v":79.006215103559313},{"$f":"'[2]EXT RIN(M)'!V304","v":178.42977724168071},null,null,{"$f":"+'[2]MONE(M)CAPARD'!AE304","v":1.7245639617667397},{"$f":"'[2]MONE(M)CAPARD'!AF304","v":2.0432409497156314},{"$f":"'[2]MONE(M)CAPARD'!AG304","v":1.9785515652989762},{"$f":"'[2]MONE(M)CAPARD'!AH304","v":3.8840043134435702},{"$f":"'[2]MONE(M)CAPARD'!AI304","v":2.0332755574637527},{"$f":"'[2]MONE(M)CAPARD'!AJ304","v":2.1367493252361753},{"$f":"'[2]MONE(M)CAPARD'!AK304","v":-4.5027791927119962E-2},null,null,{"$f":"'[2]MONE(M)CAPARD'!AL304","v":2.0300000000000002},{"$f":"'[2]MONE(M)CAPARD'!AM304","v":3.91},{"$f":"'[2]MONE(M)CAPARD'!AN304","v":2.89},{"$f":"'[2]MONE(M)CAPARD'!AO304","v":4.07},{"$f":"'[2]MONE(M)CAPARD'!AP304","v":3.1511898271855556},{"$f":"'[2]MONE(M)CAPARD'!AQ304","v":1.59},{"$f":"'[2]MONE(M)CAPARD'!AR304","v":2.14},null,null,{"$f":"'[2]MONE(M)CAPARD'!J304","v":10.917802592703978},{"$f":"'[2]MONE(M)CAPARD'!K304","v":4.0564123860251016},{"$f":"'[2]MONE(M)CAPARD'!L304","v":10.110920412863592},{"$f":"'[2]MONE(M)CAPARD'!M304","v":13.031200575125814},{"$f":"'[2]MONE(M)CAPARD'!N304","v":11.239635954553693},{"$f":"'[2]MONE(M)CAPARD'!O304","v":9.5441295546558784},{"$f":"'[2]MONE(M)CAPARD'!P304","v":3.8008997661081882},null,null,{"$f":"'[2]MONE(M)CAPARD'!Q304","v":10.27},{"$f":"'[2]MONE(M)CAPARD'!R304","v":5.96},{"$f":"'[2]MONE(M)CAPARD'!S304","v":6.06},{"$f":"'[2]MONE(M)CAPARD'!T304","v":8.5500000000000007},{"$f":"'[2]MONE(M)CAPARD'!U304","v":8.8135420345241116},{"$f":"'[2]MONE(M)CAPARD'!V304","v":6.11},{"$f":"'[2]MONE(M)CAPARD'!W304","v":6.07},null,null,{"$f":"'[2]MONE(M)CAPARD'!AS304","v":5.25},{"$f":"'[2]MONE(M)CAPARD'!AT304","v":"n.a."},{"$f":"'[2]MONE(M)CAPARD'!AU304","v":4.5},{"$f":"'[2]MONE(M)CAPARD'!AV304","v":7},{"$f":"'[2]MONE(M)CAPARD'!AW304","v":"n.a."},{"$f":"'[2]MONE(M)CAPARD'!AX304","v":6.25},{"$f":"'[2]MONE(M)CAPARD'!AY304","v":"n.a."},null,null,{"$f":"+'Datos_Regional (M)'!CF297","v":18.675937949737719},{"$f":"+'Datos_Regional (M)'!CG297","v":7.0833959268074898},{"$f":"+'Datos_Regional (M)'!CH297","v":10.286092499283539},{"$f":"+'Datos_Regional (M)'!CI297","v":13.428671827665939},{"$f":"+'Datos_Regional (M)'!CJ297","v":22.748009145778546},{"$f":"+'Datos_Regional (M)'!CK297","v":14.300843755879233},{"$f":"+'Datos_Regional (M)'!CL297","v":10.228862725009581},null,null,744.67737724416656,446.88083333333333,861.2833333333333,335.68636640853407,426.69775509502955,801.94166666666672,1226.9944818333333,3617.1673320810637,4844.1618139143966,null,null,1283.7582652825001,892.2700000000001,1489.791666666667,771.80269728644146,566.89131128917677,1430.4583333333337,2058.8183471666657,6434.9722738581186,8493.7906210247838,null,null,-2817.8049417770549,-3649.6288071103877,null,null,{"$f":"'[2]EXT Comercio(M)'!C304","v":747.93768745000034},{"$f":"'[2]EXT Comercio(M)'!D304","v":489.41000000000031},{"$f":"'[2]EXT Comercio(M)'!E304","v":948.6},{"$f":"'[2]EXT Comercio(M)'!F304","v":361.85023782248754},{"$f":"'[2]EXT Comercio(M)'!G304","v":462.38365571000003},{"$f":"'[2]EXT Comercio(M)'!H304","v":864.5},{"$f":"'[2]EXT Comercio(M)'!I304","v":1409.091942},{"$f":"'[2]EXT Comercio(M)'!K304","v":3874.6815809824911},{"$f":"'[2]EXT Comercio(M)'!L304","v":5283.7735229824939},null,null,{"$f":"'[2]EXT Comercio(M)'!AG304","v":1256.7564527199997},{"$f":"'[2]EXT Comercio(M)'!AH304","v":934.57000000000062},{"$f":"'[2]EXT Comercio(M)'!AI304","v":1620.3},{"$f":"'[2]EXT Comercio(M)'!AJ304","v":792.97155042683426},{"$f":"'[2]EXT Comercio(M)'!AK304","v":584.54760909000004},{"$f":"'[2]EXT Comercio(M)'!AL304","v":1520.8000000000002},{"$f":"'[2]EXT Comercio(M)'!AM304","v":2191.3331039999994},{"$f":"'[2]EXT Comercio(M)'!AO304","v":6709.9456122368283},{"$f":"'[2]EXT Comercio(M)'!AP304","v":8901.2787162368259},null,null,{"$f":"'[2]EXT Comercio(M)'!$BS304","v":-2835.2640312543481},{"$f":"'[2]EXT Comercio(M)'!$BT304","v":-3617.5051932543502}]
[null,null,"Agosto",{"$f":"'[2]REAL IPC(M)'!AD305","v":5.4857470660008785},{"$f":"'[2]REAL IPC(M)'!AE305","v":1.9932029025443203},{"$f":"'[2]REAL IPC(M)'!AF305","v":3.6997885835095086},{"$f":"'[2]REAL IPC(M)'!AG305","v":6.335877862595428},{"$f":"'[2]REAL IPC(M)'!AH305","v":6.7292712327953934},{"$f":"'[2]REAL IPC(M)'!AI305","v":3.1279785113941574},{"$f":"'[2]REAL IPC(M)'!AJ305","v":2.0791415157612425},null,null,{"$f":"'[2]REAL IMAE(M)'!AG305","v":2.9635011605505817},{"$f":"'[2]REAL IMAE(M)'!AH305","v":0.48628632867395344},{"$f":"'[2]REAL IMAE(M)'!AI305","v":4.3745292545371512},{"$f":"'[2]REAL IMAE(M)'!AJ305","v":1.6973009159048251},{"$f":"'[2]REAL IMAE(M)'!AK305","v":4.4554930977663654},{"$f":"'[2]REAL IMAE(M)'!AL305","v":6.4987091587958288},{"$f":"'[2]REAL IMAE(M)'!AM305","v":5.3174404428552364},null,null,{"$f":"'[2]EXT ITCER(M)'!C305","v":72.935426988357989},{"$f":"'[2]EXT ITCER(M)'!D305","v":90.510380275295915},{"$f":"'[2]EXT ITCER(M)'!E305","v":60.623594205272887},{"$f":"'[2]EXT ITCER(M)'!F305","v":74.772356688597739},{"$f":"'[2]EXT ITCER(M)'!G305","v":96.243216711059375},{"$f":"'[2]EXT ITCER(M)'!H305","v":98.38560668117492},{"$f":"'[2]EXT ITCER(M)'!I305","v":87.893999487289591},null,null,{"$f":"'[2]EXT TC(M)'!J305","v":8.3197710015542121},{"$f":"'[2]EXT TC(M)'!K305","v":0},{"$f":"'[2]EXT TC(M)'!L305","v":-1.208350408477818},{"$f":"'[2]EXT TC(M)'!M305","v":2.8824291328873706},{"$f":"'[2]EXT TC(M)'!N305","v":5.0450771464176727},{"$f":"'[2]EXT TC(M)'!O305","v":2.6502242152466398},{"$f":"'[2]EXT TC(M)'!P305","v":0},null,null,{"$f":"'[2]EXT RIN(M)'!C305","v":7342.8691060199999},{"$f":"'[2]EXT RIN(M)'!D305","v":2567.3000000000002},{"$f":"'[2]EXT RIN(M)'!E305","v":7248.1},{"$f":"'[2]EXT RIN(M)'!F305","v":3153.0439987387831},{"$f":"'[2]EXT RIN(M)'!G305","v":2018.6},{"$f":"'[2]EXT RIN(M)'!H305","v":4249.4965935608752},{"$f":"'[2]EXT RIN(M)'!I305","v":2458.3312767800003},null,null,{"$f":"'[2]EXT RIN(M)'!P305","v":72.746918649949279},{"$f":"'[2]EXT RIN(M)'!Q305","v":101.77948584173733},{"$f":"'[2]EXT RIN(M)'!R305","v":98.096372322605291},{"$f":"'[2]EXT RIN(M)'!S305","v":83.498866388261007},{"$f":"'[2]EXT RIN(M)'!T305","v":118.94837465577169},{"$f":"'[2]EXT RIN(M)'!U305","v":76.484728394753589},{"$f":"'[2]EXT RIN(M)'!V305","v":191.58180734447603},null,null,{"$f":"+'[2]MONE(M)CAPARD'!AE305","v":1.5303043102013649},{"$f":"'[2]MONE(M)CAPARD'!AF305","v":1.6832465778097969},{"$f":"'[2]MONE(M)CAPARD'!AG305","v":1.6974108053007186},{"$f":"'[2]MONE(M)CAPARD'!AH305","v":4.0570710696338761},{"$f":"'[2]MONE(M)CAPARD'!AI305","v":2.4753059049991029},{"$f":"'[2]MONE(M)CAPARD'!AJ305","v":2.0867484456393912},{"$f":"'[2]MONE(M)CAPARD'!AK305","v":0.23968088116621777},null,null,{"$f":"'[2]MONE(M)CAPARD'!AL305","v":1.9950000000000001},{"$f":"'[2]MONE(M)CAPARD'!AM305","v":3.71},{"$f":"'[2]MONE(M)CAPARD'!AN305","v":2.9},{"$f":"'[2]MONE(M)CAPARD'!AO305","v":4.08},{"$f":"'[2]MONE(M)CAPARD'!AP305","v":3.259807114781601},{"$f":"'[2]MONE(M)CAPARD'!AQ305","v":1.25},{"$f":"'[2]MONE(M)CAPARD'!AR305","v":2.3238057016331295},null,null,{"$f":"'[2]MONE(M)CAPARD'!J305","v":10.223421868787234},{"$f":"'[2]MONE(M)CAPARD'!K305","v":3.634356988472621},{"$f":"'[2]MONE(M)CAPARD'!L305","v":9.6819979612640221},{"$f":"'[2]MONE(M)CAPARD'!M305","v":13.357788944723611},{"$f":"'[2]MONE(M)CAPARD'!N305","v":11.807719486553735},{"$f":"'[2]MONE(M)CAPARD'!O305","v":9.8828869097630694},{"$f":"'[2]MONE(M)CAPARD'!P305","v":3.9095729303547877},null,null,{"$f":"'[2]MONE(M)CAPARD'!Q305","v":9.7899999999999991},{"$f":"'[2]MONE(M)CAPARD'!R305","v":5.7},{"$f":"'[2]MONE(M)CAPARD'!S305","v":6.06},{"$f":"'[2]MONE(M)CAPARD'!T305","v":8.59},{"$f":"'[2]MONE(M)CAPARD'!U305","v":8.937041737786096},{"$f":"'[2]MONE(M)CAPARD'!V305","v":5.88},{"$f":"'[2]MONE(M)CAPARD'!W305","v":6.07},null,null,{"$f":"'[2]MONE(M)CAPARD'!AS305","v":5.25},{"$f":"'[2]MONE(M)CAPARD'!AT305","v":"n.a."},{"$f":"'[2]MONE(M)CAPARD'!AU305","v":4.5},{"$f":"'[2]MONE(M)CAPARD'!AV305","v":7},{"$f":"'[2]MONE(M)CAPARD'!AW305","v":"n.a."},{"$f":"'[2]MONE(M)CAPARD'!AX305","v":6.25},{"$f":"'[2]MONE(M)CAPARD'!AY305","v":"n.a."},null,null,{"$f":"+'Datos_Regional (M)'!CF298","v":18.912349557529275},{"$f":"+'Datos_Regional (M)'!CG298","v":6.9231872000107941},{"$f":"+'Datos_Regional (M)'!CH298","v":8.3244703010580743},{"$f":"+'Datos_Regional (M)'!CI298","v":13.577403830823576},{"$f":"+'Datos_Regional (M)'!CJ298","v":22.724680010827527},{"$f":"+'Datos_Regional (M)'!CK298","v":13.9890171952622},{"$f":"+'Datos_Regional (M)'!CL298","v":11.102064261542388},null,null,747.59410199416664,443.07499999999999,867.08333333333337,336.99825188762412,427.52490675678541,805.98333333333323,1217.3039364166668,3628.2589273052436,4845.5628637219088,null,null,1287.0926205149999,880.7791666666667,1496.0833333333337,775.58095279830195,565.3498252215735,1435.6499999999999,2045.4064366666653,6440.5358985348757,8485.9423352015383,null,null,-2812.2769712296335,-3640.3794714796318,null,null,{"$f":"'[2]EXT Comercio(M)'!C305","v":724.92948276999959},{"$f":"'[2]EXT Comercio(M)'!D305","v":435.7199999999998},{"$f":"'[2]EXT Comercio(M)'!E305","v":874},{"$f":"'[2]EXT Comercio(M)'!F305","v":302.95518771565958},{"$f":"'[2]EXT Comercio(M)'!G305","v":446.80092516999997},{"$f":"'[2]EXT Comercio(M)'!H305","v":842.8},{"$f":"'[2]EXT Comercio(M)'!I305","v":1160.9966349999997},{"$f":"'[2]EXT Comercio(M)'!K305","v":3627.2055956556578},{"$f":"'[2]EXT Comercio(M)'!L305","v":4788.202230655661},null,null,{"$f":"'[2]EXT Comercio(M)'!AG305","v":1317.4059273099992},{"$f":"'[2]EXT Comercio(M)'!AH305","v":767.76000000000022},{"$f":"'[2]EXT Comercio(M)'!AI305","v":1462.6999999999998},{"$f":"'[2]EXT Comercio(M)'!AJ305","v":812.39019750839088},{"$f":"'[2]EXT Comercio(M)'!AK305","v":589.67313337000007},{"$f":"'[2]EXT Comercio(M)'!AL305","v":1486.5},{"$f":"'[2]EXT Comercio(M)'!AM305","v":2056.5807309999905},{"$f":"'[2]EXT Comercio(M)'!AO305","v":6436.4292581883929},{"$f":"'[2]EXT Comercio(M)'!AP305","v":8493.0099891883801},null,null,{"$f":"'[2]EXT Comercio(M)'!$BS305","v":-2809.223662532735},{"$f":"'[2]EXT Comercio(M)'!$BT305","v":-3704.8077585327264}]
[null,null,"Setiembre",{"$f":"'[2]REAL IPC(M)'!AD306","v":5.2030039783020205},{"$f":"'[2]REAL IPC(M)'!AE306","v":1.696313955620754},{"$f":"'[2]REAL IPC(M)'!AF306","v":3.451910408432151},{"$f":"'[2]REAL IPC(M)'!AG306","v":6.1263318112633049},{"$f":"'[2]REAL IPC(M)'!AH306","v":6.4946284249925217},{"$f":"'[2]REAL IPC(M)'!AI306","v":2.8283176683625091},{"$f":"'[2]REAL IPC(M)'!AJ306","v":2.3458445040212177},null,null,{"$f":"'[2]REAL IMAE(M)'!AG306","v":3.1678381340464403},{"$f":"'[2]REAL IMAE(M)'!AH306","v":9.6474029860692229E-2},{"$f":"'[2]REAL IMAE(M)'!AI306","v":4.293285899318029},{"$f":"'[2]REAL IMAE(M)'!AJ306","v":1.5660185481489515},{"$f":"'[2]REAL IMAE(M)'!AK306","v":4.6762463352519479},{"$f":"'[2]REAL IMAE(M)'!AL306","v":6.8590070649112018},{"$f":"'[2]REAL IMAE(M)'!AM306","v":4.6623783592654924},null,null,{"$f":"'[2]EXT ITCER(M)'!C306","v":73.052645452344024},{"$f":"'[2]EXT ITCER(M)'!D306","v":90.622956765707855},{"$f":"'[2]EXT ITCER(M)'!E306","v":59.939514724121452},{"$f":"'[2]EXT ITCER(M)'!F306","v":75.109392300257241},{"$f":"'[2]EXT ITCER(M)'!G306","v":96.559344569658109},{"$f":"'[2]EXT ITCER(M)'!H306","v":98.559326305676279},{"$f":"'[2]EXT ITCER(M)'!I306","v":87.612471697772222},null,null,{"$f":"'[2]EXT TC(M)'!J306","v":7.904128485764085},{"$f":"'[2]EXT TC(M)'!K306","v":0},{"$f":"'[2]EXT TC(M)'!L306","v":-2.7918580057184124},{"$f":"'[2]EXT TC(M)'!M306","v":3.1156706459651695},{"$f":"'[2]EXT TC(M)'!N306","v":4.7992831161460252},{"$f":"'[2]EXT TC(M)'!O306","v":2.4336461435328394},{"$f":"'[2]EXT TC(M)'!P306","v":0},null,null,{"$f":"'[2]EXT RIN(M)'!C306","v":7195.0737996799999},{"$f":"'[2]EXT RIN(M)'!D306","v":3026.5},{"$f":"'[2]EXT RIN(M)'!E306","v":7149.2},{"$f":"'[2]EXT RIN(M)'!F306","v":3028.3087496503927},{"$f":"'[2]EXT RIN(M)'!G306","v":2001.9},{"$f":"'[2]EXT RIN(M)'!H306","v":4023.3482828687684},{"$f":"'[2]EXT RIN(M)'!I306","v":3393.0334561599998},null,null,{"$f":"'[2]EXT RIN(M)'!P306","v":71.098251798859152},{"$f":"'[2]EXT RIN(M)'!Q306","v":102.43189877907541},{"$f":"'[2]EXT RIN(M)'!R306","v":96.370820502866295},{"$f":"'[2]EXT RIN(M)'!S306","v":82.205914054414038},{"$f":"'[2]EXT RIN(M)'!T306","v":120.46892847759236},{"$f":"'[2]EXT RIN(M)'!U306","v":75.373227874928801},{"$f":"'[2]EXT RIN(M)'!V306","v":272.85669528352116},null,null,{"$f":"+'[2]MONE(M)CAPARD'!AE306","v":1.8507038279054704},{"$f":"'[2]MONE(M)CAPARD'!AF306","v":2.2652601208186871},{"$f":"'[2]MONE(M)CAPARD'!AG306","v":1.9604177279673938},{"$f":"'[2]MONE(M)CAPARD'!AH306","v":4.1965722481176178},{"$f":"'[2]MONE(M)CAPARD'!AI306","v":1.8973781389538968},{"$f":"'[2]MONE(M)CAPARD'!AJ306","v":2.8024209643605853},{"$f":"'[2]MONE(M)CAPARD'!AK306","v":-0.50165283063914934},null,null,{"$f":"'[2]MONE(M)CAPARD'!AL306","v":1.9950000000000001},{"$f":"'[2]MONE(M)CAPARD'!AM306","v":4},{"$f":"'[2]MONE(M)CAPARD'!AN306","v":2.91},{"$f":"'[2]MONE(M)CAPARD'!AO306","v":4.07},{"$f":"'[2]MONE(M)CAPARD'!AP306","v":3.1332034575731758},{"$f":"'[2]MONE(M)CAPARD'!AQ306","v":1.1200000000000001},{"$f":"'[2]MONE(M)CAPARD'!AR306","v":1.832423678025253},null,null,{"$f":"'[2]MONE(M)CAPARD'!J306","v":10.899875087277007},{"$f":"'[2]MONE(M)CAPARD'!K306","v":3.91723739969345},{"$f":"'[2]MONE(M)CAPARD'!L306","v":9.9351375445746264},{"$f":"'[2]MONE(M)CAPARD'!M306","v":13.741799928289725},{"$f":"'[2]MONE(M)CAPARD'!N306","v":11.072734102998506},{"$f":"'[2]MONE(M)CAPARD'!O306","v":9.6001593291404586},{"$f":"'[2]MONE(M)CAPARD'!P306","v":3.6485658153243978},null,null,{"$f":"'[2]MONE(M)CAPARD'!Q306","v":9.98},{"$f":"'[2]MONE(M)CAPARD'!R306","v":5.68},{"$f":"'[2]MONE(M)CAPARD'!S306","v":6.04},{"$f":"'[2]MONE(M)CAPARD'!T306","v":8.6999999999999993},{"$f":"'[2]MONE(M)CAPARD'!U306","v":8.6048569535009278},{"$f":"'[2]MONE(M)CAPARD'!V306","v":6.2},{"$f":"'[2]MONE(M)CAPARD'!W306","v":6.08},null,null,{"$f":"'[2]MONE(M)CAPARD'!AS306","v":5.25},{"$f":"'[2]MONE(M)CAPARD'!AT306","v":"n.a."},{"$f":"'[2]MONE(M)CAPARD'!AU306","v":4.5},{"$f":"'[2]MONE(M)CAPARD'!AV306","v":7},{"$f":"'[2]MONE(M)CAPARD'!AW306","v":"n.a."},{"$f":"'[2]MONE(M)CAPARD'!AX306","v":6.25},{"$f":"'[2]MONE(M)CAPARD'!AY306","v":"n.a."},null,null,{"$f":"+'Datos_Regional (M)'!CF299","v":18.363441277265569},{"$f":"+'Datos_Regional (M)'!CG299","v":7.513795285795144},{"$f":"+'Datos_Regional (M)'!CH299","v":7.9394048259235239},{"$f":"+'Datos_Regional (M)'!CI299","v":13.365470772604194},{"$f":"+'Datos_Regional (M)'!CJ299","v":21.880076677301563},{"$f":"+'Datos_Regional (M)'!CK299","v":13.584334016463263},{"$f":"+'Datos_Regional (M)'!CL299","v":11.852208644893135},null,null,750.60695810833329,443.7949999999999,879.72500000000002,336.5738594669661,430.45093894508068,815,1195.8912709166666,3656.1517565203808,4852.0430274370465,null,null,1294.9362022949999,880.31916666666666,1501.8000000000002,779.77788766146466,565.44149049062241,1439.4416666666668,2063.7909170833314,6461.7164137804211,8525.5073308637529,null,null,-2805.5646572600403,-3673.4643034267065,null,null,{"$f":"'[2]EXT Comercio(M)'!C306","v":735.23282591999941},{"$f":"'[2]EXT Comercio(M)'!D306","v":435.23},{"$f":"'[2]EXT Comercio(M)'!E306","v":883.49999999999989},{"$f":"'[2]EXT Comercio(M)'!F306","v":284.86404253592264},{"$f":"'[2]EXT Comercio(M)'!G306","v":435.12414335},{"$f":"'[2]EXT Comercio(M)'!H306","v":838.7},{"$f":"'[2]EXT Comercio(M)'!I306","v":1377.4266849999999},{"$f":"'[2]EXT Comercio(M)'!K306","v":3612.6510118059232},{"$f":"'[2]EXT Comercio(M)'!L306","v":4990.0776968059145},null,null,{"$f":"'[2]EXT Comercio(M)'!AG306","v":1304.4983720200005},{"$f":"'[2]EXT Comercio(M)'!AH306","v":843.15999999999985},{"$f":"'[2]EXT Comercio(M)'!AI306","v":1542.4},{"$f":"'[2]EXT Comercio(M)'!AJ306","v":783.62106174625478},{"$f":"'[2]EXT Comercio(M)'!AK306","v":530.03955062},{"$f":"'[2]EXT Comercio(M)'!AL306","v":1420.9},{"$f":"'[2]EXT Comercio(M)'!AM306","v":2456.3445379999989},{"$f":"'[2]EXT Comercio(M)'!AO306","v":6424.6189843862667},{"$f":"'[2]EXT Comercio(M)'!AP306","v":8880.9635223862715},null,null,{"$f":"'[2]EXT Comercio(M)'!$BS306","v":-2811.9679725803289},{"$f":"'[2]EXT Comercio(M)'!$BT306","v":-3890.8858255803279}]
[null,null,"Octubre",{"$f":"'[2]REAL IPC(M)'!AD307","v":5.7025699091009443},{"$f":"'[2]REAL IPC(M)'!AE307","v":1.8914700211183566},{"$f":"'[2]REAL IPC(M)'!AF307","v":3.6373220875065884},{"$f":"'[2]REAL IPC(M)'!AG307","v":6.3093880653743692},{"$f":"'[2]REAL IPC(M)'!AH307","v":6.6820460918601778},{"$f":"'[2]REAL IPC(M)'!AI307","v":2.8840341939383509},{"$f":"'[2]REAL IPC(M)'!AJ307","v":2.1037483266398893},null,null,{"$f":"'[2]REAL IMAE(M)'!AG307","v":3.562364105288744},{"$f":"'[2]REAL IMAE(M)'!AH307","v":0.16992674327681254},{"$f":"'[2]REAL IMAE(M)'!AI307","v":4.4570873948743239},{"$f":"'[2]REAL IMAE(M)'!AJ307","v":1.6335883595861682},{"$f":"'[2]REAL IMAE(M)'!AK307","v":5.0224253370778387},{"$f":"'[2]REAL IMAE(M)'!AL307","v":7.3190210306325953},{"$f":"'[2]REAL IMAE(M)'!AM307","v":4.5778320460895134},null,null,{"$f":"'[2]EXT ITCER(M)'!C307","v":73.192617879965098},{"$f":"'[2]EXT ITCER(M)'!D307","v":90.5560322952131},{"$f":"'[2]EXT ITCER(M)'!E307","v":59.206744078562373},{"$f":"'[2]EXT ITCER(M)'!F307","v":75.317552919836828},{"$f":"'[2]EXT ITCER(M)'!G307","v":96.821963839813634},{"$f":"'[2]EXT ITCER(M)'!H307","v":98.968278801618297},{"$f":"'[2]EXT ITCER(M)'!I307","v":87.685286457274202},null,null,{"$f":"'[2]EXT TC(M)'!J307","v":8.0718428823876742},{"$f":"'[2]EXT TC(M)'!K307","v":0},{"$f":"'[2]EXT TC(M)'!L307","v":-4.0140914205450784},{"$f":"'[2]EXT TC(M)'!M307","v":3.6901158352918073},{"$f":"'[2]EXT TC(M)'!N307","v":4.7365639839323164},{"$f":"'[2]EXT TC(M)'!O307","v":3.2159098942010944},{"$f":"'[2]EXT TC(M)'!P307","v":0},null,null,{"$f":"'[2]EXT RIN(M)'!C307","v":7081.9497149600002},{"$f":"'[2]EXT RIN(M)'!D307","v":2902.3},{"$f":"'[2]EXT RIN(M)'!E307","v":7097.5},{"$f":"'[2]EXT RIN(M)'!F307","v":3018.38467049055},{"$f":"'[2]EXT RIN(M)'!G307","v":2042.1},{"$f":"'[2]EXT RIN(M)'!H307","v":4214.4045314446339},{"$f":"'[2]EXT RIN(M)'!I307","v":3416.7129762899995},null,null,{"$f":"'[2]EXT RIN(M)'!P307","v":69.160187865646989},{"$f":"'[2]EXT RIN(M)'!Q307","v":100.56211251466955},{"$f":"'[2]EXT RIN(M)'!R307","v":95.225415763414716},{"$f":"'[2]EXT RIN(M)'!S307","v":83.246838429204644},{"$f":"'[2]EXT RIN(M)'!T307","v":122.59127385256951},{"$f":"'[2]EXT RIN(M)'!U307","v":74.256989443886923},{"$f":"'[2]EXT RIN(M)'!V307","v":264.21301258489774},null,null,{"$f":"+'[2]MONE(M)CAPARD'!AE307","v":1.4166449237580248},{"$f":"'[2]MONE(M)CAPARD'!AF307","v":2.089016851401277},{"$f":"'[2]MONE(M)CAPARD'!AG307","v":1.7876551373346912},{"$f":"'[2]MONE(M)CAPARD'!AH307","v":3.9701215588130259},{"$f":"'[2]MONE(M)CAPARD'!AI307","v":1.0499921270427357},{"$f":"'[2]MONE(M)CAPARD'!AJ307","v":3.9811481326059552},{"$f":"'[2]MONE(M)CAPARD'!AK307","v":9.4268501340609295E-2},null,null,{"$f":"'[2]MONE(M)CAPARD'!AL307","v":2.0049999999999999},{"$f":"'[2]MONE(M)CAPARD'!AM307","v":4.0199999999999996},{"$f":"'[2]MONE(M)CAPARD'!AN307","v":2.88},{"$f":"'[2]MONE(M)CAPARD'!AO307","v":4.07},{"$f":"'[2]MONE(M)CAPARD'!AP307","v":1.6764860763201166},{"$f":"'[2]MONE(M)CAPARD'!AQ307","v":1.47},{"$f":"'[2]MONE(M)CAPARD'!AR307","v":2.2000000000000002},null,null,{"$f":"'[2]MONE(M)CAPARD'!J307","v":10.385206433806776},{"$f":"'[2]MONE(M)CAPARD'!K307","v":3.806530593854192},{"$f":"'[2]MONE(M)CAPARD'!L307","v":9.7384587995930847},{"$f":"'[2]MONE(M)CAPARD'!M307","v":13.687043260636409},{"$f":"'[2]MONE(M)CAPARD'!N307","v":8.9532797952461962},{"$f":"'[2]MONE(M)CAPARD'!O307","v":10.308660511959712},{"$f":"'[2]MONE(M)CAPARD'!P307","v":3.8943248788866129},null,null,{"$f":"'[2]MONE(M)CAPARD'!Q307","v":9.77},{"$f":"'[2]MONE(M)CAPARD'!R307","v":5.77},{"$f":"'[2]MONE(M)CAPARD'!S307","v":6.01},{"$f":"'[2]MONE(M)CAPARD'!T307","v":8.73},{"$f":"'[2]MONE(M)CAPARD'!U307","v":9.1931244131397474},{"$f":"'[2]MONE(M)CAPARD'!V307","v":6.38},{"$f":"'[2]MONE(M)CAPARD'!W307","v":6.08},null,null,{"$f":"'[2]MONE(M)CAPARD'!AS307","v":5.25},{"$f":"'[2]MONE(M)CAPARD'!AT307","v":"n.a."},{"$f":"'[2]MONE(M)CAPARD'!AU307","v":4.5},{"$f":"'[2]MONE(M)CAPARD'!AV307","v":7},{"$f":"'[2]MONE(M)CAPARD'!AW307","v":"n.a."},{"$f":"'[2]MONE(M)CAPARD'!AX307","v":6.25},{"$f":"'[2]MONE(M)CAPARD'!AY307","v":"n.a."},null,null,{"$f":"+'Datos_Regional (M)'!CF300","v":18.657382714563163},{"$f":"+'Datos_Regional (M)'!CG300","v":6.2157862944486997},{"$f":"+'Datos_Regional (M)'!CH300","v":7.80548995407917},{"$f":"+'Datos_Regional (M)'!CI300","v":11.694485615274019},{"$f":"+'Datos_Regional (M)'!CJ300","v":19.675782213652294},{"$f":"+'Datos_Regional (M)'!CK300","v":15.714664485400176},{"$f":"+'Datos_Regional (M)'!CL300","v":12.409416808922646},null,null,753.54945869666665,441.67499999999995,889.40833333333342,339.15580486887416,430.09189261329158,818.36666666666667,1191.3496108333334,3672.247156178832,4863.5967670121645,null,null,1294.6182377274997,878.39583333333337,1499.3250000000005,779.03927281914582,570.94577502637537,1438.3666666666668,2066.731110499999,6460.6907855730215,8527.4218960730195,null,null,-2788.4436293941885,-3663.8251290608546,null,null,{"$f":"'[2]EXT Comercio(M)'!C307","v":773.71419793000041},{"$f":"'[2]EXT Comercio(M)'!D307","v":427.10999999999967},{"$f":"'[2]EXT Comercio(M)'!E307","v":883.30000000000007},{"$f":"'[2]EXT Comercio(M)'!F307","v":300.30237671422998},{"$f":"'[2]EXT Comercio(M)'!G307","v":438.13611964000006},{"$f":"'[2]EXT Comercio(M)'!H307","v":870.3},{"$f":"'[2]EXT Comercio(M)'!I307","v":1540.3114459999999},{"$f":"'[2]EXT Comercio(M)'!K307","v":3692.8626942842238},{"$f":"'[2]EXT Comercio(M)'!L307","v":5233.1741402842381},null,null,{"$f":"'[2]EXT Comercio(M)'!AG307","v":1340.3947524599996},{"$f":"'[2]EXT Comercio(M)'!AH307","v":892},{"$f":"'[2]EXT Comercio(M)'!AI307","v":1575.2},{"$f":"'[2]EXT Comercio(M)'!AJ307","v":788.80492197267995},{"$f":"'[2]EXT Comercio(M)'!AK307","v":662.61211473000003},{"$f":"'[2]EXT Comercio(M)'!AL307","v":1578},{"$f":"'[2]EXT Comercio(M)'!AM307","v":2449.4931860000079},{"$f":"'[2]EXT Comercio(M)'!AO307","v":6837.0117891626724},{"$f":"'[2]EXT Comercio(M)'!AP307","v":9286.5049751626793},null,null,{"$f":"'[2]EXT Comercio(M)'!$BS307","v":-3144.1490948784485},{"$f":"'[2]EXT Comercio(M)'!$BT307","v":-4053.3308348784558}]
[null,null,"Noviembre",{"$f":"'[2]REAL IPC(M)'!AD308","v":5.8861964728978622},{"$f":"'[2]REAL IPC(M)'!AE308","v":1.2844036697247758},{"$f":"'[2]REAL IPC(M)'!AF308","v":3.3761917257062941},{"$f":"'[2]REAL IPC(M)'!AG308","v":6.4063684609552602},{"$f":"'[2]REAL IPC(M)'!AH308","v":7.6707930200482384},{"$f":"'[2]REAL IPC(M)'!AI308","v":2.675181221953757},{"$f":"'[2]REAL IPC(M)'!AJ308","v":1.6391973244147207},null,null,{"$f":"'[2]REAL IMAE(M)'!AG308","v":3.8648368246395446},{"$f":"'[2]REAL IMAE(M)'!AH308","v":-0.24001014828511849},{"$f":"'[2]REAL IMAE(M)'!AI308","v":4.7386644835436975},{"$f":"'[2]REAL IMAE(M)'!AJ308","v":1.8902372387148469},{"$f":"'[2]REAL IMAE(M)'!AK308","v":5.2120444686585099},{"$f":"'[2]REAL IMAE(M)'!AL308","v":7.6613070654469091},{"$f":"'[2]REAL IMAE(M)'!AM308","v":5.0708104688586682},null,null,{"$f":"'[2]EXT ITCER(M)'!C308","v":72.472767457065899},{"$f":"'[2]EXT ITCER(M)'!D308","v":90.85221056576809},{"$f":"'[2]EXT ITCER(M)'!E308","v":58.798765792813072},{"$f":"'[2]EXT ITCER(M)'!F308","v":75.139291494249818},{"$f":"'[2]EXT ITCER(M)'!G308","v":95.58851402323981},{"$f":"'[2]EXT ITCER(M)'!H308","v":99.419249363995405},{"$f":"'[2]EXT ITCER(M)'!I308","v":87.861414238185787},null,null,{"$f":"'[2]EXT TC(M)'!J308","v":7.6594192866525042},{"$f":"'[2]EXT TC(M)'!K308","v":0},{"$f":"'[2]EXT TC(M)'!L308","v":-3.5265544781100342},{"$f":"'[2]EXT TC(M)'!M308","v":3.913497445993293},{"$f":"'[2]EXT TC(M)'!N308","v":4.7609481965252307},{"$f":"'[2]EXT TC(M)'!O308","v":3.6798473893690682},{"$f":"'[2]EXT TC(M)'!P308","v":0},null,null,{"$f":"'[2]EXT RIN(M)'!C308","v":7252.1965410499997},{"$f":"'[2]EXT RIN(M)'!D308","v":2766.3},{"$f":"'[2]EXT RIN(M)'!E308","v":7053.5},{"$f":"'[2]EXT RIN(M)'!F308","v":3066.9136443693001},{"$f":"'[2]EXT RIN(M)'!G308","v":1999.9},{"$f":"'[2]EXT RIN(M)'!H308","v":4208.1044533984232},{"$f":"'[2]EXT RIN(M)'!I308","v":3929.1359555600002},null,null,{"$f":"'[2]EXT RIN(M)'!P308","v":68.420754326800733},{"$f":"'[2]EXT RIN(M)'!Q308","v":99.526204465673132},{"$f":"'[2]EXT RIN(M)'!R308","v":95.275108695118305},{"$f":"'[2]EXT RIN(M)'!S308","v":83.941997023633391},{"$f":"'[2]EXT RIN(M)'!T308","v":120.52416540746822},{"$f":"'[2]EXT RIN(M)'!U308","v":72.018701868038917},{"$f":"'[2]EXT RIN(M)'!V308","v":298.53350137229751},null,null,{"$f":"+'[2]MONE(M)CAPARD'!AE308","v":1.2407694023067617},{"$f":"'[2]MONE(M)CAPARD'!AF308","v":2.8490036231884006},{"$f":"'[2]MONE(M)CAPARD'!AG308","v":2.0447728234199123},{"$f":"'[2]MONE(M)CAPARD'!AH308","v":3.8377698610616404},{"$f":"'[2]MONE(M)CAPARD'!AI308","v":0.89294637744071947},{"$f":"'[2]MONE(M)CAPARD'!AJ308","v":4.7478063540090645},{"$f":"'[2]MONE(M)CAPARD'!AK308","v":0.57143571660789294},null,null,{"$f":"'[2]MONE(M)CAPARD'!AL308","v":1.99},{"$f":"'[2]MONE(M)CAPARD'!AM308","v":4.17},{"$f":"'[2]MONE(M)CAPARD'!AN308","v":2.91},{"$f":"'[2]MONE(M)CAPARD'!AO308","v":4.03},{"$f":"'[2]MONE(M)CAPARD'!AP308","v":1.4779276643903798},{"$f":"'[2]MONE(M)CAPARD'!AQ308","v":1.51},{"$f":"'[2]MONE(M)CAPARD'!AR308","v":2.2200000000000002},null,null,{"$f":"'[2]MONE(M)CAPARD'!J308","v":10.023783912021809},{"$f":"'[2]MONE(M)CAPARD'!K308","v":4.0732789855072404},{"$f":"'[2]MONE(M)CAPARD'!L308","v":9.9866401556815241},{"$f":"'[2]MONE(M)CAPARD'!M308","v":13.451856074100471},{"$f":"'[2]MONE(M)CAPARD'!N308","v":9.2056576024198637},{"$f":"'[2]MONE(M)CAPARD'!O308","v":11.429070432005366},{"$f":"'[2]MONE(M)CAPARD'!P308","v":4.3691831424160181},null,null,{"$f":"'[2]MONE(M)CAPARD'!Q308","v":9.8699999999999992},{"$f":"'[2]MONE(M)CAPARD'!R308","v":5.41},{"$f":"'[2]MONE(M)CAPARD'!S308","v":6.02},{"$f":"'[2]MONE(M)CAPARD'!T308","v":8.7200000000000006},{"$f":"'[2]MONE(M)CAPARD'!U308","v":8.8734313551955513},{"$f":"'[2]MONE(M)CAPARD'!V308","v":7.02},{"$f":"'[2]MONE(M)CAPARD'!W308","v":6.08},null,null,{"$f":"'[2]MONE(M)CAPARD'!AS308","v":5.25},{"$f":"'[2]MONE(M)CAPARD'!AT308","v":"n.a."},{"$f":"'[2]MONE(M)CAPARD'!AU308","v":4},{"$f":"'[2]MONE(M)CAPARD'!AV308","v":7},{"$f":"'[2]MONE(M)CAPARD'!AW308","v":"n.a."},{"$f":"'[2]MONE(M)CAPARD'!AX308","v":6.25},{"$f":"'[2]MONE(M)CAPARD'!AY308","v":"n.a."},null,null,{"$f":"+'Datos_Regional (M)'!CF301","v":18.191490178279125},{"$f":"+'Datos_Regional (M)'!CG301","v":5.3824459775601019},{"$f":"+'Datos_Regional (M)'!CH301","v":8.2248070651267611},{"$f":"+'Datos_Regional (M)'!CI301","v":11.824087719207533},{"$f":"+'Datos_Regional (M)'!CJ301","v":20.967918216604264},{"$f":"+'Datos_Regional (M)'!CK301","v":16.456437494943433},{"$f":"+'Datos_Regional (M)'!CL301","v":31.137047482721659},null,null,755.74072974000001,443.56333333333333,892.42500000000007,337.36793866457577,428.87945696505818,816.52500000000009,1166.542095,3674.5014587029673,4841.0435537029662,null,null,1291.2067745749998,873.5383333333333,1508.708333333333,775.23611185568723,576.09907298962287,1438.5916666666665,2055.744708249998,6463.3802927536426,8519.125001003642,null,null,-2788.8788340506762,-3678.0814473006744,null,null,{"$f":"'[2]EXT Comercio(M)'!C308","v":751.27243160999933},{"$f":"'[2]EXT Comercio(M)'!D308","v":426.26000000000022},{"$f":"'[2]EXT Comercio(M)'!E308","v":839.19999999999993},{"$f":"'[2]EXT Comercio(M)'!F308","v":267.39973012098972},{"$f":"'[2]EXT Comercio(M)'!G308","v":389.28889178999998},{"$f":"'[2]EXT Comercio(M)'!H308","v":733.7},{"$f":"'[2]EXT Comercio(M)'!I308","v":1071.5564400000001},{"$f":"'[2]EXT Comercio(M)'!K308","v":3407.1210535209902},{"$f":"'[2]EXT Comercio(M)'!L308","v":4478.6774935209833},null,null,{"$f":"'[2]EXT Comercio(M)'!AG308","v":1277.5105241500009},{"$f":"'[2]EXT Comercio(M)'!AH308","v":869.10999999999876},{"$f":"'[2]EXT Comercio(M)'!AI308","v":1556.1},{"$f":"'[2]EXT Comercio(M)'!AJ308","v":761.37066970864726},{"$f":"'[2]EXT Comercio(M)'!AK308","v":623.88551962999998},{"$f":"'[2]EXT Comercio(M)'!AL308","v":1418.2000000000003},{"$f":"'[2]EXT Comercio(M)'!AM308","v":1879.3949029999876},{"$f":"'[2]EXT Comercio(M)'!AO308","v":6506.1767134886468},{"$f":"'[2]EXT Comercio(M)'!AP308","v":8385.5716164886398},null,null,{"$f":"'[2]EXT Comercio(M)'!$BS308","v":-3099.0556599676602},{"$f":"'[2]EXT Comercio(M)'!$BT308","v":-3906.894122967642}]
[null,null,"Diciembre ",{"$f":"'[2]REAL IPC(M)'!AD309","v":5.127185268704018},{"$f":"'[2]REAL IPC(M)'!AE309","v":0.47715177096714623},{"$f":"'[2]REAL IPC(M)'!AF309","v":2.947331705615623},{"$f":"'[2]REAL IPC(M)'!AG309","v":5.8201058201058107},{"$f":"'[2]REAL IPC(M)'!AH309","v":6.4796923391486985},{"$f":"'[2]REAL IPC(M)'!AI309","v":1.5819791935345335},{"$f":"'[2]REAL IPC(M)'!AJ309","v":1.007019726376557},null,null,{"$f":"'[2]REAL IMAE(M)'!AG309","v":3.9371529662429454},{"$f":"'[2]REAL IMAE(M)'!AH309","v":-0.5555387645572859},{"$f":"'[2]REAL IMAE(M)'!AI309","v":4.886802296088903},{"$f":"'[2]REAL IMAE(M)'!AJ309","v":2.2262325532770482},{"$f":"'[2]REAL IMAE(M)'!AK309","v":5.0775858532822822},{"$f":"'[2]REAL IMAE(M)'!AL309","v":7.8389662675168141},{"$f":"'[2]REAL IMAE(M)'!AM309","v":5.7861960194262512},null,null,{"$f":"'[2]EXT ITCER(M)'!C309","v":72.119800309036961},{"$f":"'[2]EXT ITCER(M)'!D309","v":91.31639410485262},{"$f":"'[2]EXT ITCER(M)'!E309","v":58.722924952111242},{"$f":"'[2]EXT ITCER(M)'!F309","v":75.519192844573752},{"$f":"'[2]EXT ITCER(M)'!G309","v":95.551694769427627},{"$f":"'[2]EXT ITCER(M)'!H309","v":100.0809031649051},{"$f":"'[2]EXT ITCER(M)'!I309","v":87.903409337918617},null,null,{"$f":"'[2]EXT TC(M)'!J309","v":7.2544773441386061},{"$f":"'[2]EXT TC(M)'!K309","v":0},{"$f":"'[2]EXT TC(M)'!L309","v":-3.0209670408671845},{"$f":"'[2]EXT TC(M)'!M309","v":4.279801850197841},{"$f":"'[2]EXT TC(M)'!N309","v":4.9051835323080777},{"$f":"'[2]EXT TC(M)'!O309","v":3.6116459582378662},{"$f":"'[2]EXT TC(M)'!P309","v":0},null,null,{"$f":"'[2]EXT RIN(M)'!C309","v":7211.4158651300004},{"$f":"'[2]EXT RIN(M)'!D309","v":2661.2},{"$f":"'[2]EXT RIN(M)'!E309","v":7333.4},{"$f":"'[2]EXT RIN(M)'!F309","v":3516.4834622255066},{"$f":"'[2]EXT RIN(M)'!G309","v":2153.1999999999998},{"$f":"'[2]EXT RIN(M)'!H309","v":4650.4486369269598},{"$f":"'[2]EXT RIN(M)'!I309","v":3969.8091757400002},null,null,{"$f":"'[2]EXT RIN(M)'!P309","v":67.562552295822115},{"$f":"'[2]EXT RIN(M)'!Q309","v":99.133863870117182},{"$f":"'[2]EXT RIN(M)'!R309","v":93.108592957703152},{"$f":"'[2]EXT RIN(M)'!S309","v":85.486224566856862},{"$f":"'[2]EXT RIN(M)'!T309","v":117.84863909039451},{"$f":"'[2]EXT RIN(M)'!U309","v":69.917130498146236},{"$f":"'[2]EXT RIN(M)'!V309","v":295.60101374910232},null,null,{"$f":"+'[2]MONE(M)CAPARD'!AE309","v":1.9717209454413611},{"$f":"'[2]MONE(M)CAPARD'!AF309","v":3.8843141552511455},{"$f":"'[2]MONE(M)CAPARD'!AG309","v":2.4407318312722373},{"$f":"'[2]MONE(M)CAPARD'!AH309","v":4.4319500000000094},{"$f":"'[2]MONE(M)CAPARD'!AI309","v":1.7307145351728779},{"$f":"'[2]MONE(M)CAPARD'!AJ309","v":6.8595048666948655},{"$f":"'[2]MONE(M)CAPARD'!AK309","v":1.1711861975812008},null,null,{"$f":"'[2]MONE(M)CAPARD'!AL309","v":1.9750000000000001},{"$f":"'[2]MONE(M)CAPARD'!AM309","v":4.38},{"$f":"'[2]MONE(M)CAPARD'!AN309","v":2.93},{"$f":"'[2]MONE(M)CAPARD'!AO309","v":4.07},{"$f":"'[2]MONE(M)CAPARD'!AP309","v":2.3846510474335099},{"$f":"'[2]MONE(M)CAPARD'!AQ309","v":1.53},{"$f":"'[2]MONE(M)CAPARD'!AR309","v":2.19},null,null,{"$f":"'[2]MONE(M)CAPARD'!J309","v":11.303274886437443},{"$f":"'[2]MONE(M)CAPARD'!K309","v":5.2079981735159855},{"$f":"'[2]MONE(M)CAPARD'!L309","v":10.386542436049469},{"$f":"'[2]MONE(M)CAPARD'!M309","v":14.014250000000008},{"$f":"'[2]MONE(M)CAPARD'!N309","v":10.574557395533191},{"$f":"'[2]MONE(M)CAPARD'!O309","v":12.46089208633092},{"$f":"'[2]MONE(M)CAPARD'!P309","v":5.0224036778492396},null,null,{"$f":"'[2]MONE(M)CAPARD'!Q309","v":9.85},{"$f":"'[2]MONE(M)CAPARD'!R309","v":5.71},{"$f":"'[2]MONE(M)CAPARD'!S309","v":5.98},{"$f":"'[2]MONE(M)CAPARD'!T309","v":8.65},{"$f":"'[2]MONE(M)CAPARD'!U309","v":8.7287822913177706},{"$f":"'[2]MONE(M)CAPARD'!V309","v":7.04},{"$f":"'[2]MONE(M)CAPARD'!W309","v":6.08},null,null,{"$f":"'[2]MONE(M)CAPARD'!AS309","v":5.25},{"$f":"'[2]MONE(M)CAPARD'!AT309","v":"n.a."},{"$f":"'[2]MONE(M)CAPARD'!AU309","v":4},{"$f":"'[2]MONE(M)CAPARD'!AV309","v":7},{"$f":"'[2]MONE(M)CAPARD'!AW309","v":"n.a."},{"$f":"'[2]MONE(M)CAPARD'!AX309","v":6.25},{"$f":"'[2]MONE(M)CAPARD'!AY309","v":"n.a."},null,null,{"$f":"+'Datos_Regional (M)'!CF302","v":17.699149245839529},{"$f":"+'Datos_Regional (M)'!CG302","v":4.607699517009789},{"$f":"+'Datos_Regional (M)'!CH302","v":8.5450118224117855},{"$f":"+'Datos_Regional (M)'!CI302","v":11.512774726954579},{"$f":"+'Datos_Regional (M)'!CJ302","v":20.597010544536044},{"$f":"+'Datos_Regional (M)'!CK302","v":19.50387132761271},{"$f":"+'Datos_Regional (M)'!CL302","v":38.904317287157419},null,null,761.32094459583334,441.79416666666657,900.29166666666686,339.38115969107946,432.97788835166665,824.9083333333333,1165.4758718333335,3700.6741593052461,4866.1500311385798,null,null,1296.8077447574999,876.18249999999989,1523.4833333333333,775.90356321831939,578.8135360716667,1439.4250000000002,2064.5656675833316,6490.6156773808179,8555.1813449641504,null,null,-2789.9415180755732,-3689.0313138255715,null,null,{"$f":"'[2]EXT Comercio(M)'!C309","v":744.37083753000115},{"$f":"'[2]EXT Comercio(M)'!D309","v":405.07999999999902},{"$f":"'[2]EXT Comercio(M)'!E309","v":920.1},{"$f":"'[2]EXT Comercio(M)'!F309","v":362.70234138366413},{"$f":"'[2]EXT Comercio(M)'!G309","v":393.92700533000004},{"$f":"'[2]EXT Comercio(M)'!H309","v":831.3},{"$f":"'[2]EXT Comercio(M)'!I309","v":846.0172500000001},{"$f":"'[2]EXT Comercio(M)'!K309","v":3657.4801842436646},{"$f":"'[2]EXT Comercio(M)'!L309","v":4503.497434243669},null,null,{"$f":"'[2]EXT Comercio(M)'!AG309","v":1258.9608248900001},{"$f":"'[2]EXT Comercio(M)'!AH309","v":821.31999999999971},{"$f":"'[2]EXT Comercio(M)'!AI309","v":1513.2},{"$f":"'[2]EXT Comercio(M)'!AJ309","v":770.70106496615517},{"$f":"'[2]EXT Comercio(M)'!AK309","v":587.20095595999999},{"$f":"'[2]EXT Comercio(M)'!AL309","v":1398.1},{"$f":"'[2]EXT Comercio(M)'!AM309","v":1858.2538030000048},{"$f":"'[2]EXT Comercio(M)'!AO309","v":6349.4828458161355},{"$f":"'[2]EXT Comercio(M)'!AP309","v":8207.7366488161351},null,null,{"$f":"'[2]EXT Comercio(M)'!$BS309","v":-2692.0026615724892},{"$f":"'[2]EXT Comercio(M)'!$BT309","v":-3704.2392145724953}]
[null,2015,"Enero",{"$f":"'[2]REAL IPC(M)'!AD310","v":4.3859265811975288},{"$f":"'[2]REAL IPC(M)'!AE310","v":-0.74879006483426835},{"$f":"'[2]REAL IPC(M)'!AF310","v":2.3223449595546759},{"$f":"'[2]REAL IPC(M)'!AG310","v":3.8346984363365428},{"$f":"'[2]REAL IPC(M)'!AH310","v":5.4492658379268457},{"$f":"'[2]REAL IPC(M)'!AI310","v":1.1580030880082688},{"$f":"'[2]REAL IPC(M)'!AJ310","v":0.86970705725709541},null,null,{"$f":"'[2]REAL IMAE(M)'!AG310","v":3.9976273479274322},{"$f":"'[2]REAL IMAE(M)'!AH310","v":-0.10724652806040524},{"$f":"'[2]REAL IMAE(M)'!AI310","v":4.6926532251580086},{"$f":"'[2]REAL IMAE(M)'!AJ310","v":2.5853049062812921},{"$f":"'[2]REAL IMAE(M)'!AK310","v":4.5884237934839822},{"$f":"'[2]REAL IMAE(M)'!AL310","v":7.7392605407780506},{"$f":"'[2]REAL IMAE(M)'!AM310","v":6.4165379106639744},null,null,{"$f":"'[2]EXT ITCER(M)'!C310","v":71.928804002710748},{"$f":"'[2]EXT ITCER(M)'!D310","v":91.410869773669788},{"$f":"'[2]EXT ITCER(M)'!E310","v":58.696006144170688},{"$f":"'[2]EXT ITCER(M)'!F310","v":75.792984409712517},{"$f":"'[2]EXT ITCER(M)'!G310","v":95.804128647328142},{"$f":"'[2]EXT ITCER(M)'!H310","v":100.348378918281},{"$f":"'[2]EXT ITCER(M)'!I310","v":87.28764458059878},null,null,{"$f":"'[2]EXT TC(M)'!J310","v":7.0665265655937812},{"$f":"'[2]EXT TC(M)'!K310","v":0},{"$f":"'[2]EXT TC(M)'!L310","v":-2.6285482272908345},{"$f":"'[2]EXT TC(M)'!M310","v":4.7493919385957337},{"$f":"'[2]EXT TC(M)'!N310","v":4.8934605174955434},{"$f":"'[2]EXT TC(M)'!O310","v":3.7292540558699918},{"$f":"'[2]EXT TC(M)'!P310","v":0},null,null,{"$f":"'[2]EXT RIN(M)'!C310","v":7323.6687877000004},{"$f":"'[2]EXT RIN(M)'!D310","v":2672.6},{"$f":"'[2]EXT RIN(M)'!E310","v":7656},{"$f":"'[2]EXT RIN(M)'!F310","v":3407.6230623486281},{"$f":"'[2]EXT RIN(M)'!G310","v":2157.6},{"$f":"'[2]EXT RIN(M)'!H310","v":4369.8},{"$f":"'[2]EXT RIN(M)'!I310","v":3957.7766050899995},null,null,{"$f":"'[2]EXT RIN(M)'!P310","v":68.803001206105165},{"$f":"'[2]EXT RIN(M)'!Q310","v":98.506806943465648},{"$f":"'[2]EXT RIN(M)'!R310","v":101.11261165666197},{"$f":"'[2]EXT RIN(M)'!S310","v":84.995025802949101},{"$f":"'[2]EXT RIN(M)'!T310","v":118.42733582466975},{"$f":"'[2]EXT RIN(M)'!U310","v":73.67405473804196},{"$f":"'[2]EXT RIN(M)'!V310","v":312.54423122365955},null,null,{"$f":"+'[2]MONE(M)CAPARD'!AE310","v":2.6958360297865629},{"$f":"'[2]MONE(M)CAPARD'!AF310","v":5.026427454227627},{"$f":"'[2]MONE(M)CAPARD'!AG310","v":3.0566686501189979},{"$f":"'[2]MONE(M)CAPARD'!AH310","v":6.3324704195052162},{"$f":"'[2]MONE(M)CAPARD'!AI310","v":2.9146797647675968},{"$f":"'[2]MONE(M)CAPARD'!AJ310","v":5.794891885016499},{"$f":"'[2]MONE(M)CAPARD'!AK310","v":1.289081708153285},null,null,{"$f":"'[2]MONE(M)CAPARD'!AL310","v":1.95},{"$f":"'[2]MONE(M)CAPARD'!AM310","v":4.24},{"$f":"'[2]MONE(M)CAPARD'!AN310","v":2.94},{"$f":"'[2]MONE(M)CAPARD'!AO310","v":4.0999999999999996},{"$f":"'[2]MONE(M)CAPARD'!AP310","v":3.28},{"$f":"'[2]MONE(M)CAPARD'!AQ310","v":1.79},{"$f":"'[2]MONE(M)CAPARD'!AR310","v":2.17},null,null,{"$f":"'[2]MONE(M)CAPARD'!J310","v":11.873318391403684},{"$f":"'[2]MONE(M)CAPARD'!K310","v":6.4168387156132187},{"$f":"'[2]MONE(M)CAPARD'!L310","v":11.021693301598086},{"$f":"'[2]MONE(M)CAPARD'!M310","v":16.319498027967033},{"$f":"'[2]MONE(M)CAPARD'!N310","v":11.37982498802463},{"$f":"'[2]MONE(M)CAPARD'!O310","v":12.823500381582258},{"$f":"'[2]MONE(M)CAPARD'!P310","v":5.3041622691596553},null,null,{"$f":"'[2]MONE(M)CAPARD'!Q310","v":9.5500000000000007},{"$f":"'[2]MONE(M)CAPARD'!R310","v":5.62},{"$f":"'[2]MONE(M)CAPARD'!S310","v":5.96},{"$f":"'[2]MONE(M)CAPARD'!T310","v":8.68},{"$f":"'[2]MONE(M)CAPARD'!U310","v":9.08},{"$f":"'[2]MONE(M)CAPARD'!V310","v":7.17},{"$f":"'[2]MONE(M)CAPARD'!W310","v":6.22},null,null,{"$f":"'[2]MONE(M)CAPARD'!AS310","v":5.25},{"$f":"'[2]MONE(M)CAPARD'!AT310","v":"n.a."},{"$f":"'[2]MONE(M)CAPARD'!AU310","v":4},{"$f":"'[2]MONE(M)CAPARD'!AV310","v":7},{"$f":"'[2]MONE(M)CAPARD'!AW310","v":"n.a."},{"$f":"'[2]MONE(M)CAPARD'!AX310","v":6.25},{"$f":"'[2]MONE(M)CAPARD'!AY310","v":"n.a."},null,null,{"$f":"+'Datos_Regional (M)'!CF303","v":16.680450072164057},{"$f":"+'Datos_Regional (M)'!CG303","v":5.169481504845308},{"$f":"+'Datos_Regional (M)'!CH303","v":8.7780408035045276},{"$f":"+'Datos_Regional (M)'!CI303","v":10.939927708118535},{"$f":"+'Datos_Regional (M)'!CJ303","v":20.518058031041299},{"$f":"+'Datos_Regional (M)'!CK303","v":18.393849061736823},{"$f":"+'Datos_Regional (M)'!CL303","v":14.077215555055588},null,null,763.69444888750013,443.54083333333324,903.94166666666672,338.51159638696373,429.51955958958337,821.41666666666663,1180.1143381666668,3700.624771530714,4880.7391096973797,null,null,1282.9471398566666,872.9649999999998,1507.7333333333336,780.25084998680552,573.67591407666669,1435.125,2076.4710520833319,6452.6972372534701,8529.1682893368034,null,null,-2752.0724657227584,-3648.4291796394232,null,null,{"$f":"'[2]EXT Comercio(M)'!C310","v":702.42328311999995},{"$f":"'[2]EXT Comercio(M)'!D310","v":425.66000000000008},{"$f":"'[2]EXT Comercio(M)'!E310","v":879.2},{"$f":"'[2]EXT Comercio(M)'!F310","v":330.6652403506111},{"$f":"'[2]EXT Comercio(M)'!G310","v":392.37144919500003},{"$f":"'[2]EXT Comercio(M)'!H310","v":691.7},{"$f":"'[2]EXT Comercio(M)'!I310","v":1097.180801},{"$f":"'[2]EXT Comercio(M)'!K310","v":3422.019972665611},{"$f":"'[2]EXT Comercio(M)'!L310","v":4519.2007736656115},null,null,{"$f":"'[2]EXT Comercio(M)'!AG310","v":1142.03517124},{"$f":"'[2]EXT Comercio(M)'!AH310","v":857.23},{"$f":"'[2]EXT Comercio(M)'!AI310","v":1358.9},{"$f":"'[2]EXT Comercio(M)'!AJ310","v":732.4309836058801},{"$f":"'[2]EXT Comercio(M)'!AK310","v":511.36523830000004},{"$f":"'[2]EXT Comercio(M)'!AL310","v":1258.0999999999999},{"$f":"'[2]EXT Comercio(M)'!AM310","v":2110.5492549999999},{"$f":"'[2]EXT Comercio(M)'!AO310","v":5860.0613931458793},{"$f":"'[2]EXT Comercio(M)'!AP310","v":7970.6106481458792},null,null,{"$f":"'[2]EXT Comercio(M)'!$BS310","v":-2438.0414204802692},{"$f":"'[2]EXT Comercio(M)'!$BT310","v":-3451.4098744802691}]
[null,null,"Febrero",{"$f":"'[2]REAL IPC(M)'!AD311","v":3.5270960116658623},{"$f":"'[2]REAL IPC(M)'!AE311","v":-1.0572366022602959},{"$f":"'[2]REAL IPC(M)'!AF311","v":2.4392361111111174},{"$f":"'[2]REAL IPC(M)'!AG311","v":3.6558345642540533},{"$f":"'[2]REAL IPC(M)'!AH311","v":5.5092102810453287},{"$f":"'[2]REAL IPC(M)'!AI311","v":1.0172679090443146},{"$f":"'[2]REAL IPC(M)'!AJ311","v":-0.44933774834437845},null,null,{"$f":"'[2]REAL IMAE(M)'!AG311","v":4.3083369388001804},{"$f":"'[2]REAL IMAE(M)'!AH311","v":0.5739821875240374},{"$f":"'[2]REAL IMAE(M)'!AI311","v":4.1841111076315611},{"$f":"'[2]REAL IMAE(M)'!AJ311","v":2.9077079975870479},{"$f":"'[2]REAL IMAE(M)'!AK311","v":3.900472479952164},{"$f":"'[2]REAL IMAE(M)'!AL311","v":7.4655825543147429},{"$f":"'[2]REAL IMAE(M)'!AM311","v":6.8241320584040306},null,null,{"$f":"'[2]EXT ITCER(M)'!C311","v":72.146043099886128},{"$f":"'[2]EXT ITCER(M)'!D311","v":91.752305220644772},{"$f":"'[2]EXT ITCER(M)'!E311","v":58.673588989430122},{"$f":"'[2]EXT ITCER(M)'!F311","v":76.089695475120578},{"$f":"'[2]EXT ITCER(M)'!G311","v":95.612038308991188},{"$f":"'[2]EXT ITCER(M)'!H311","v":101.04533826193121},{"$f":"'[2]EXT ITCER(M)'!I311","v":88.198612880210732},null,null,{"$f":"'[2]EXT TC(M)'!J311","v":2.3346705320820891},{"$f":"'[2]EXT TC(M)'!K311","v":0},{"$f":"'[2]EXT TC(M)'!L311","v":-1.5148600371581615},{"$f":"'[2]EXT TC(M)'!M311","v":5.3298154821087271},{"$f":"'[2]EXT TC(M)'!N311","v":4.5262487548145725},{"$f":"'[2]EXT TC(M)'!O311","v":3.8580529864342705},{"$f":"'[2]EXT TC(M)'!P311","v":0},null,null,{"$f":"'[2]EXT RIN(M)'!C311","v":7255.1285616499999},{"$f":"'[2]EXT RIN(M)'!D311","v":2666.7},{"$f":"'[2]EXT RIN(M)'!E311","v":7625.4},{"$f":"'[2]EXT RIN(M)'!F311","v":3477.8266616433898},{"$f":"'[2]EXT RIN(M)'!G311","v":2169.4},{"$f":"'[2]EXT RIN(M)'!H311","v":4575.7},{"$f":"'[2]EXT RIN(M)'!I311","v":4053.25072907},null,null,{"$f":"'[2]EXT RIN(M)'!P311","v":68.418103079881348},{"$f":"'[2]EXT RIN(M)'!Q311","v":99.5268304808056},{"$f":"'[2]EXT RIN(M)'!R311","v":97.485743074460871},{"$f":"'[2]EXT RIN(M)'!S311","v":82.879555371271636},{"$f":"'[2]EXT RIN(M)'!T311","v":114.07312522972923},{"$f":"'[2]EXT RIN(M)'!U311","v":77.510893599556766},{"$f":"'[2]EXT RIN(M)'!V311","v":310.08063107940063},null,null,{"$f":"+'[2]MONE(M)CAPARD'!AE311","v":3.4994741743030198},{"$f":"'[2]MONE(M)CAPARD'!AF311","v":5.3336256448047124},{"$f":"'[2]MONE(M)CAPARD'!AG311","v":2.9390729599186449},{"$f":"'[2]MONE(M)CAPARD'!AH311","v":6.4677164232276541},{"$f":"'[2]MONE(M)CAPARD'!AI311","v":3.4106070133024069},{"$f":"'[2]MONE(M)CAPARD'!AJ311","v":6.3184564610306841},{"$f":"'[2]MONE(M)CAPARD'!AK311","v":2.6612959556683586},null,null,{"$f":"'[2]MONE(M)CAPARD'!AL311","v":1.92},{"$f":"'[2]MONE(M)CAPARD'!AM311","v":4.22},{"$f":"'[2]MONE(M)CAPARD'!AN311","v":2.9},{"$f":"'[2]MONE(M)CAPARD'!AO311","v":4.08},{"$f":"'[2]MONE(M)CAPARD'!AP311","v":3.32043},{"$f":"'[2]MONE(M)CAPARD'!AQ311","v":1.57},{"$f":"'[2]MONE(M)CAPARD'!AR311","v":2.2000000000000002},null,null,{"$f":"'[2]MONE(M)CAPARD'!J311","v":12.762749557705408},{"$f":"'[2]MONE(M)CAPARD'!K311","v":6.9507221812822371},{"$f":"'[2]MONE(M)CAPARD'!L311","v":10.777866282518424},{"$f":"'[2]MONE(M)CAPARD'!M311","v":16.578097613110092},{"$f":"'[2]MONE(M)CAPARD'!N311","v":10.708897045445708},{"$f":"'[2]MONE(M)CAPARD'!O311","v":14.326988237285232},{"$f":"'[2]MONE(M)CAPARD'!P311","v":6.6994408650791879},null,null,{"$f":"'[2]MONE(M)CAPARD'!Q311","v":9.91},{"$f":"'[2]MONE(M)CAPARD'!R311","v":5.82},{"$f":"'[2]MONE(M)CAPARD'!S311","v":5.94},{"$f":"'[2]MONE(M)CAPARD'!T311","v":8.6},{"$f":"'[2]MONE(M)CAPARD'!U311","v":8.9786240588999995},{"$f":"'[2]MONE(M)CAPARD'!V311","v":5.14},{"$f":"'[2]MONE(M)CAPARD'!W311","v":6.22},null,null,{"$f":"'[2]MONE(M)CAPARD'!AS311","v":4.75},{"$f":"'[2]MONE(M)CAPARD'!AT311","v":"n.a."},{"$f":"'[2]MONE(M)CAPARD'!AU311","v":3.5},{"$f":"'[2]MONE(M)CAPARD'!AV311","v":6.75},{"$f":"'[2]MONE(M)CAPARD'!AW311","v":"n.a."},{"$f":"'[2]MONE(M)CAPARD'!AX311","v":6.25},{"$f":"'[2]MONE(M)CAPARD'!AY311","v":"n.a."},null,null,{"$f":"+'Datos_Regional (M)'!CF304","v":12.919730092329583},{"$f":"+'Datos_Regional (M)'!CG304","v":5.2538115211970382},{"$f":"+'Datos_Regional (M)'!CH304","v":9.1821265877380718},{"$f":"+'Datos_Regional (M)'!CI304","v":11.310195411205925},{"$f":"+'Datos_Regional (M)'!CJ304","v":20.051230403604549},{"$f":"+'Datos_Regional (M)'!CK304","v":17.670310205801918},{"$f":"+'Datos_Regional (M)'!CL304","v":14.027674707531013},null,null,762.96957322750006,448.96083333333326,910.55833333333351,342.87362405160678,428.48498027041632,818.33333333333337,1172.24486475,3712.1806775495238,4884.425542299522,null,null,1279.0848659574999,870.64333333333309,1502.5249999999999,788.70994940279843,577.37668328749999,1437.4833333333333,2061.6044126666657,6455.8231653144639,8517.4275779811305,null,null,-2743.642487764942,-3633.0020356816071,null,null,{"$f":"'[2]EXT Comercio(M)'!C311","v":745.13265869999987},{"$f":"'[2]EXT Comercio(M)'!D311","v":480.41000000000008},{"$f":"'[2]EXT Comercio(M)'!E311","v":885.1},{"$f":"'[2]EXT Comercio(M)'!F311","v":380.64433197571651},{"$f":"'[2]EXT Comercio(M)'!G311","v":388.60580834999604},{"$f":"'[2]EXT Comercio(M)'!H311","v":749.90000000000009},{"$f":"'[2]EXT Comercio(M)'!I311","v":840.85873900000013},{"$f":"'[2]EXT Comercio(M)'!K311","v":3629.7927990257131},{"$f":"'[2]EXT Comercio(M)'!L311","v":4470.6515380257124},null,null,{"$f":"'[2]EXT Comercio(M)'!AG311","v":1137.2021114500001},{"$f":"'[2]EXT Comercio(M)'!AH311","v":806.98},{"$f":"'[2]EXT Comercio(M)'!AI311","v":1293.8},{"$f":"'[2]EXT Comercio(M)'!AJ311","v":800.36900591390008},{"$f":"'[2]EXT Comercio(M)'!AK311","v":559.20957634000001},{"$f":"'[2]EXT Comercio(M)'!AL311","v":1215.4000000000001},{"$f":"'[2]EXT Comercio(M)'!AM311","v":1599.9201800000001},{"$f":"'[2]EXT Comercio(M)'!AO311","v":5812.9606937039007},{"$f":"'[2]EXT Comercio(M)'!AP311","v":7412.8808737039017},null,null,{"$f":"'[2]EXT Comercio(M)'!$BS311","v":-2183.1678946781867},{"$f":"'[2]EXT Comercio(M)'!$BT311","v":-2942.2293356781861}]
[null,null,"Marzo",{"$f":"'[2]REAL IPC(M)'!AD312","v":3.0463139339173573},{"$f":"'[2]REAL IPC(M)'!AE312","v":-0.80916446949722765},{"$f":"'[2]REAL IPC(M)'!AF312","v":2.4250822795773468},{"$f":"'[2]REAL IPC(M)'!AG312","v":3.7444933920705017},{"$f":"'[2]REAL IPC(M)'!AH312","v":5.9242221154388943},{"$f":"'[2]REAL IPC(M)'!AI312","v":0.63780933752872937},{"$f":"'[2]REAL IPC(M)'!AJ312","v":0},null,null,{"$f":"'[2]REAL IMAE(M)'!AG312","v":4.9163673459689141},{"$f":"'[2]REAL IMAE(M)'!AH312","v":1.2231763149638639},{"$f":"'[2]REAL IMAE(M)'!AI312","v":3.6133271113866896},{"$f":"'[2]REAL IMAE(M)'!AJ312","v":3.1367245633795635},{"$f":"'[2]REAL IMAE(M)'!AK312","v":3.3535748872621438},{"$f":"'[2]REAL IMAE(M)'!AL312","v":7.2801501059958769},{"$f":"'[2]REAL IMAE(M)'!AM312","v":7.105447771419378},null,null,{"$f":"'[2]EXT ITCER(M)'!C312","v":71.75976654770065},{"$f":"'[2]EXT ITCER(M)'!D312","v":91.544122019853404},{"$f":"'[2]EXT ITCER(M)'!E312","v":58.584603717937497},{"$f":"'[2]EXT ITCER(M)'!F312","v":75.991770644886728},{"$f":"'[2]EXT ITCER(M)'!G312","v":95.787794584561894},{"$f":"'[2]EXT ITCER(M)'!H312","v":100.964001290442},{"$f":"'[2]EXT ITCER(M)'!I312","v":87.658944263477736},null,null,{"$f":"'[2]EXT TC(M)'!J312","v":-2.6949220835413348},{"$f":"'[2]EXT TC(M)'!K312","v":0},{"$f":"'[2]EXT TC(M)'!L312","v":-1.3501499446617302},{"$f":"'[2]EXT TC(M)'!M312","v":5.3337170243737706},{"$f":"'[2]EXT TC(M)'!N312","v":4.5088243564176915},{"$f":"'[2]EXT TC(M)'!O312","v":3.5755371655471748},{"$f":"'[2]EXT TC(M)'!P312","v":0},null,null,{"$f":"'[2]EXT RIN(M)'!C312","v":8341.9202438100001},{"$f":"'[2]EXT RIN(M)'!D312","v":2617.5},{"$f":"'[2]EXT RIN(M)'!E312","v":7770.3},{"$f":"'[2]EXT RIN(M)'!F312","v":3583.9203274996353},{"$f":"'[2]EXT RIN(M)'!G312","v":2222.1999999999998},{"$f":"'[2]EXT RIN(M)'!H312","v":4797.8},{"$f":"'[2]EXT RIN(M)'!I312","v":4741.4129657599997},null,null,{"$f":"'[2]EXT RIN(M)'!P312","v":77.704080610033898},{"$f":"'[2]EXT RIN(M)'!Q312","v":97.369081829087961},{"$f":"'[2]EXT RIN(M)'!R312","v":99.138944402531536},{"$f":"'[2]EXT RIN(M)'!S312","v":82.341474316300094},{"$f":"'[2]EXT RIN(M)'!T312","v":115.13209560214779},{"$f":"'[2]EXT RIN(M)'!U312","v":79.411575902641701},{"$f":"'[2]EXT RIN(M)'!V312","v":368.67019090437026},null,null,{"$f":"+'[2]MONE(M)CAPARD'!AE312","v":3.9338486854388921},{"$f":"'[2]MONE(M)CAPARD'!AF312","v":5.3020669110907432},{"$f":"'[2]MONE(M)CAPARD'!AG312","v":2.9532978183663077},{"$f":"'[2]MONE(M)CAPARD'!AH312","v":6.0779193205944626},{"$f":"'[2]MONE(M)CAPARD'!AI312","v":2.4129868650223774},{"$f":"'[2]MONE(M)CAPARD'!AJ312","v":6.4609819165117166},{"$f":"'[2]MONE(M)CAPARD'!AK312","v":2.12},null,null,{"$f":"'[2]MONE(M)CAPARD'!AL312","v":1.74},{"$f":"'[2]MONE(M)CAPARD'!AM312","v":4.45},{"$f":"'[2]MONE(M)CAPARD'!AN312","v":2.92},{"$f":"'[2]MONE(M)CAPARD'!AO312","v":4.05},{"$f":"'[2]MONE(M)CAPARD'!AP312","v":3.96},{"$f":"'[2]MONE(M)CAPARD'!AQ312","v":1.56},{"$f":"'[2]MONE(M)CAPARD'!AR312","v":2.12},null,null,{"$f":"'[2]MONE(M)CAPARD'!J312","v":12.852168661341631},{"$f":"'[2]MONE(M)CAPARD'!K312","v":6.8848744271310727},{"$f":"'[2]MONE(M)CAPARD'!L312","v":10.685778792491115},{"$f":"'[2]MONE(M)CAPARD'!M312","v":16.314607218683634},{"$f":"'[2]MONE(M)CAPARD'!N312","v":9.3391830865296708},{"$f":"'[2]MONE(M)CAPARD'!O312","v":15.01641456819331},{"$f":"'[2]MONE(M)CAPARD'!P312","v":6.16},null,null,{"$f":"'[2]MONE(M)CAPARD'!Q312","v":9.64},{"$f":"'[2]MONE(M)CAPARD'!R312","v":6.02},{"$f":"'[2]MONE(M)CAPARD'!S312","v":5.94},{"$f":"'[2]MONE(M)CAPARD'!T312","v":8.5},{"$f":"'[2]MONE(M)CAPARD'!U312","v":8.0500000000000007},{"$f":"'[2]MONE(M)CAPARD'!V312","v":6.34},{"$f":"'[2]MONE(M)CAPARD'!W312","v":6.16},null,null,{"$f":"'[2]MONE(M)CAPARD'!AS312","v":4.5},{"$f":"'[2]MONE(M)CAPARD'!AT312","v":"n.a."},{"$f":"'[2]MONE(M)CAPARD'!AU312","v":3.5},{"$f":"'[2]MONE(M)CAPARD'!AV312","v":6.5},{"$f":"'[2]MONE(M)CAPARD'!AW312","v":"n.a."},{"$f":"'[2]MONE(M)CAPARD'!AX312","v":6.25},{"$f":"'[2]MONE(M)CAPARD'!AY312","v":"n.a."},null,null,{"$f":"+'Datos_Regional (M)'!CF305","v":12.049695105999024},{"$f":"+'Datos_Regional (M)'!CG305","v":4.3523576565786426},{"$f":"+'Datos_Regional (M)'!CH305","v":9.7802627751741866},{"$f":"+'Datos_Regional (M)'!CI305","v":11.216963632970312},{"$f":"+'Datos_Regional (M)'!CJ305","v":19.978461103056677},{"$f":"+'Datos_Regional (M)'!CK305","v":16.428780290331812},{"$f":"+'Datos_Regional (M)'!CL305","v":13.835193778527977},null,null,765.46973104333335,453.33999999999986,907.95000000000016,349.78940505727115,428.31822517124959,815.42500000000007,1185.2906303333334,3720.2923612718546,4905.5829916051871,null,null,1261.9204430008333,868.55583333333323,1507.2416666666668,795.9207733015146,581.23643629583341,1436,2082.9344223333319,6450.8751525981797,8533.8095749315125,null,null,-2730.582791326327,-3628.226583326325,null,null,{"$f":"'[2]EXT Comercio(M)'!C312","v":847.72888004000004},{"$f":"'[2]EXT Comercio(M)'!D312","v":529.22999999999979},{"$f":"'[2]EXT Comercio(M)'!E312","v":1005},{"$f":"'[2]EXT Comercio(M)'!F312","v":441.78937206797332},{"$f":"'[2]EXT Comercio(M)'!G312","v":470.88258437999991},{"$f":"'[2]EXT Comercio(M)'!H312","v":824.19999999999993},{"$f":"'[2]EXT Comercio(M)'!I312","v":1126.1502929999999},{"$f":"'[2]EXT Comercio(M)'!K312","v":4118.8308364879722},{"$f":"'[2]EXT Comercio(M)'!L312","v":5244.9811294879764},null,null,{"$f":"'[2]EXT Comercio(M)'!AG312","v":1231.2634619799999},{"$f":"'[2]EXT Comercio(M)'!AH312","v":869.99000000000024},{"$f":"'[2]EXT Comercio(M)'!AI312","v":1532.1},{"$f":"'[2]EXT Comercio(M)'!AJ312","v":877.41005905269992},{"$f":"'[2]EXT Comercio(M)'!AK312","v":583.35780175000002},{"$f":"'[2]EXT Comercio(M)'!AL312","v":1461.3},{"$f":"'[2]EXT Comercio(M)'!AM312","v":2001.6181469999999},{"$f":"'[2]EXT Comercio(M)'!AO312","v":6555.4213227827004},{"$f":"'[2]EXT Comercio(M)'!AP312","v":8557.0394697826996},null,null,{"$f":"'[2]EXT Comercio(M)'!$BS312","v":-2436.5904862947264},{"$f":"'[2]EXT Comercio(M)'!$BT312","v":-3312.0583402947268}]
[null,null,"Abril",{"$f":"'[2]REAL IPC(M)'!AD313","v":1.8050494903583385},{"$f":"'[2]REAL IPC(M)'!AE313","v":-0.32885722115648069},{"$f":"'[2]REAL IPC(M)'!AF313","v":2.5760719225449416},{"$f":"'[2]REAL IPC(M)'!AG313","v":3.5831809872029297},{"$f":"'[2]REAL IPC(M)'!AH313","v":5.6685386031132463},{"$f":"'[2]REAL IPC(M)'!AI313","v":-4.2340587687331697E-2},{"$f":"'[2]REAL IPC(M)'!AJ313","v":0},null,null,{"$f":"'[2]REAL IMAE(M)'!AG313","v":5.7032123498224747},{"$f":"'[2]REAL IMAE(M)'!AH313","v":1.71180763214661},{"$f":"'[2]REAL IMAE(M)'!AI313","v":3.29606306976387},{"$f":"'[2]REAL IMAE(M)'!AJ313","v":3.3001808077808685},{"$f":"'[2]REAL IMAE(M)'!AK313","v":3.2066116573735934},{"$f":"'[2]REAL IMAE(M)'!AL313","v":7.3216821262809653},{"$f":"'[2]REAL IMAE(M)'!AM313","v":7.0785072306695724},null,null,{"$f":"'[2]EXT ITCER(M)'!C313","v":71.723546286556797},{"$f":"'[2]EXT ITCER(M)'!D313","v":91.63115601239393},{"$f":"'[2]EXT ITCER(M)'!E313","v":59.055882726389449},{"$f":"'[2]EXT ITCER(M)'!F313","v":76.246115106288755},{"$f":"'[2]EXT ITCER(M)'!G313","v":96.002689204463351},{"$f":"'[2]EXT ITCER(M)'!H313","v":101.41597504907919},{"$f":"'[2]EXT ITCER(M)'!I313","v":87.323940435026586},null,null,{"$f":"'[2]EXT TC(M)'!J313","v":-2.5835600832160268},{"$f":"'[2]EXT TC(M)'!K313","v":0},{"$f":"'[2]EXT TC(M)'!L313","v":-0.57808474525879705},{"$f":"'[2]EXT TC(M)'!M313","v":5.6121095492427298},{"$f":"'[2]EXT TC(M)'!N313","v":4.846601729930569},{"$f":"'[2]EXT TC(M)'!O313","v":3.6798886569241422},{"$f":"'[2]EXT TC(M)'!P313","v":0},null,null,{"$f":"'[2]EXT RIN(M)'!C313","v":8444.1724583100004},{"$f":"'[2]EXT RIN(M)'!D313","v":2739.6},{"$f":"'[2]EXT RIN(M)'!E313","v":7721.3},{"$f":"'[2]EXT RIN(M)'!F313","v":3649.1838767120794},{"$f":"'[2]EXT RIN(M)'!G313","v":2264.4},{"$f":"'[2]EXT RIN(M)'!H313","v":4623.8},{"$f":"'[2]EXT RIN(M)'!I313","v":4231.2672330100004},null,null,{"$f":"'[2]EXT RIN(M)'!P313","v":78.118463224647769},{"$f":"'[2]EXT RIN(M)'!Q313","v":98.429390852275091},{"$f":"'[2]EXT RIN(M)'!R313","v":102.44089972858576},{"$f":"'[2]EXT RIN(M)'!S313","v":84.636655173603501},{"$f":"'[2]EXT RIN(M)'!T313","v":119.82029020613498},{"$f":"'[2]EXT RIN(M)'!U313","v":77.790152227284921},{"$f":"'[2]EXT RIN(M)'!V313","v":329.60079964358448},null,null,{"$f":"+'[2]MONE(M)CAPARD'!AE313","v":5.201068646544031},{"$f":"'[2]MONE(M)CAPARD'!AF313","v":4.814690679131151},{"$f":"'[2]MONE(M)CAPARD'!AG313","v":2.7822551828754523},{"$f":"'[2]MONE(M)CAPARD'!AH313","v":6.3203494528768047},{"$f":"'[2]MONE(M)CAPARD'!AI313","v":3.1017418219135195},{"$f":"'[2]MONE(M)CAPARD'!AJ313","v":6.9352770247373501},{"$f":"'[2]MONE(M)CAPARD'!AK313","v":2.19},null,null,{"$f":"'[2]MONE(M)CAPARD'!AL313","v":1.7349999999999999},{"$f":"'[2]MONE(M)CAPARD'!AM313","v":4.47},{"$f":"'[2]MONE(M)CAPARD'!AN313","v":2.93},{"$f":"'[2]MONE(M)CAPARD'!AO313","v":4.09},{"$f":"'[2]MONE(M)CAPARD'!AP313","v":3.19},{"$f":"'[2]MONE(M)CAPARD'!AQ313","v":1.33},{"$f":"'[2]MONE(M)CAPARD'!AR313","v":2.19},null,null,{"$f":"'[2]MONE(M)CAPARD'!J313","v":14.002203801287582},{"$f":"'[2]MONE(M)CAPARD'!K313","v":6.219309870772614},{"$f":"'[2]MONE(M)CAPARD'!L313","v":10.444860947244237},{"$f":"'[2]MONE(M)CAPARD'!M313","v":16.505400635368861},{"$f":"'[2]MONE(M)CAPARD'!N313","v":11.535625042838035},{"$f":"'[2]MONE(M)CAPARD'!O313","v":15.718996103015897},{"$f":"'[2]MONE(M)CAPARD'!P313","v":6.22},null,null,{"$f":"'[2]MONE(M)CAPARD'!Q313","v":9.48},{"$f":"'[2]MONE(M)CAPARD'!R313","v":5.87},{"$f":"'[2]MONE(M)CAPARD'!S313","v":5.93},{"$f":"'[2]MONE(M)CAPARD'!T313","v":8.52},{"$f":"'[2]MONE(M)CAPARD'!U313","v":8.8699999999999992},{"$f":"'[2]MONE(M)CAPARD'!V313","v":6.79},{"$f":"'[2]MONE(M)CAPARD'!W313","v":6.22},null,null,{"$f":"'[2]MONE(M)CAPARD'!AS313","v":4},{"$f":"'[2]MONE(M)CAPARD'!AT313","v":"n.a."},{"$f":"'[2]MONE(M)CAPARD'!AU313","v":3.5},{"$f":"'[2]MONE(M)CAPARD'!AV313","v":6.5},{"$f":"'[2]MONE(M)CAPARD'!AW313","v":"n.a."},{"$f":"'[2]MONE(M)CAPARD'!AX313","v":5.75},{"$f":"'[2]MONE(M)CAPARD'!AY313","v":"n.a."},null,null,{"$f":"+'Datos_Regional (M)'!CF306","v":12.045810898516752},{"$f":"+'Datos_Regional (M)'!CG306","v":3.5996093655328298},{"$f":"+'Datos_Regional (M)'!CH306","v":9.7132518642700774},{"$f":"+'Datos_Regional (M)'!CI306","v":10.998723963212221},{"$f":"+'Datos_Regional (M)'!CJ306","v":19.432255953703393},{"$f":"+'Datos_Regional (M)'!CK306","v":16.096374841323268},{"$f":"+'Datos_Regional (M)'!CL306","v":13.320524239285092},null,null,765.85987884833332,453.6749999999999,905.86666666666667,353.00349379529763,426.45549220254958,819.45833333333348,1160.2945385,3724.3188648461801,4884.6134033461803,null,null,1256.8247464958333,859.98166666666646,1499.675,797.75746751435815,579.65042447166672,1418.7083333333333,2040.5149770833323,6412.5976384818559,8453.1126155651891,null,null,-2688.2787736356777,-3568.4992122190101,null,null,{"$f":"'[2]EXT Comercio(M)'!C313","v":781.33844436999993},{"$f":"'[2]EXT Comercio(M)'!D313","v":428.04999999999995},{"$f":"'[2]EXT Comercio(M)'!E313","v":914.59999999999991},{"$f":"'[2]EXT Comercio(M)'!F313","v":400.96906485631712},{"$f":"'[2]EXT Comercio(M)'!G313","v":395.86358897560001},{"$f":"'[2]EXT Comercio(M)'!H313","v":839.19999999999993},{"$f":"'[2]EXT Comercio(M)'!I313","v":1035.15975},{"$f":"'[2]EXT Comercio(M)'!K313","v":3760.0210982019162},{"$f":"'[2]EXT Comercio(M)'!L313","v":4795.1808482019114},null,null,{"$f":"'[2]EXT Comercio(M)'!AG313","v":1246.4529485400003},{"$f":"'[2]EXT Comercio(M)'!AH313","v":819.88999999999987},{"$f":"'[2]EXT Comercio(M)'!AI313","v":1430.5},{"$f":"'[2]EXT Comercio(M)'!AJ313","v":793.38119479741533},{"$f":"'[2]EXT Comercio(M)'!AK313","v":520.14423376000002},{"$f":"'[2]EXT Comercio(M)'!AL313","v":1332.6},{"$f":"'[2]EXT Comercio(M)'!AM313","v":1747.280538},{"$f":"'[2]EXT Comercio(M)'!AO313","v":6142.9683770974116},{"$f":"'[2]EXT Comercio(M)'!AP313","v":7890.2489150974106},null,null,{"$f":"'[2]EXT Comercio(M)'!$BS313","v":-2382.947278895499},{"$f":"'[2]EXT Comercio(M)'!$BT313","v":-3095.0680668954992}]
[null,null,"Mayo ",{"$f":"'[2]REAL IPC(M)'!AD314","v":0.97250322824646762},{"$f":"'[2]REAL IPC(M)'!AE314","v":-0.35545023696682515},{"$f":"'[2]REAL IPC(M)'!AF314","v":2.5530446782818763},{"$f":"'[2]REAL IPC(M)'!AG314","v":3.4921789741724352},{"$f":"'[2]REAL IPC(M)'!AH314","v":5.2210601157111061},{"$f":"'[2]REAL IPC(M)'!AI314","v":0.22860045720094072},{"$f":"'[2]REAL IPC(M)'!AJ314","v":0.35085190039319236},null,null,{"$f":"'[2]REAL IMAE(M)'!AG314","v":6.4719125511518856},{"$f":"'[2]REAL IMAE(M)'!AH314","v":1.7167955882226753},{"$f":"'[2]REAL IMAE(M)'!AI314","v":3.435123196352369},{"$f":"'[2]REAL IMAE(M)'!AJ314","v":3.4865542050263878},{"$f":"'[2]REAL IMAE(M)'!AK314","v":3.5741922183612149},{"$f":"'[2]REAL IMAE(M)'!AL314","v":7.4624284593187262},{"$f":"'[2]REAL IMAE(M)'!AM314","v":6.9462648704777239},null,null,{"$f":"'[2]EXT ITCER(M)'!C314","v":72.275206084565681},{"$f":"'[2]EXT ITCER(M)'!D314","v":91.748338787544469},{"$f":"'[2]EXT ITCER(M)'!E314","v":58.923686415585543},{"$f":"'[2]EXT ITCER(M)'!F314","v":76.166160537982861},{"$f":"'[2]EXT ITCER(M)'!G314","v":96.286413305156827},{"$f":"'[2]EXT ITCER(M)'!H314","v":101.6036842442084},{"$f":"'[2]EXT ITCER(M)'!I314","v":87.188257269638299},null,null,{"$f":"'[2]EXT TC(M)'!J314","v":-3.4472465296413595},{"$f":"'[2]EXT TC(M)'!K314","v":0},{"$f":"'[2]EXT TC(M)'!L314","v":-0.77215478311306174},{"$f":"'[2]EXT TC(M)'!M314","v":5.3633576958517493},{"$f":"'[2]EXT TC(M)'!N314","v":4.7758024600819589},{"$f":"'[2]EXT TC(M)'!O314","v":3.6759460285792924},{"$f":"'[2]EXT TC(M)'!P314","v":0},null,null,{"$f":"'[2]EXT RIN(M)'!C314","v":8309.7627848400007},{"$f":"'[2]EXT RIN(M)'!D314","v":2798.2},{"$f":"'[2]EXT RIN(M)'!E314","v":7649.8},{"$f":"'[2]EXT RIN(M)'!F314","v":3754.532509567844},{"$f":"'[2]EXT RIN(M)'!G314","v":2340.5},{"$f":"'[2]EXT RIN(M)'!H314","v":4925.9654378229834},{"$f":"'[2]EXT RIN(M)'!I314","v":4143.3153343599997},null,null,{"$f":"'[2]EXT RIN(M)'!P314","v":76.304912098592609},{"$f":"'[2]EXT RIN(M)'!Q314","v":101.25635023363648},{"$f":"'[2]EXT RIN(M)'!R314","v":97.987587610573243},{"$f":"'[2]EXT RIN(M)'!S314","v":88.713528243128394},{"$f":"'[2]EXT RIN(M)'!T314","v":121.24863455208626},{"$f":"'[2]EXT RIN(M)'!U314","v":78.385439146867171},{"$f":"'[2]EXT RIN(M)'!V314","v":315.28332358909262},null,null,{"$f":"+'[2]MONE(M)CAPARD'!AE314","v":5.8704068753792669},{"$f":"'[2]MONE(M)CAPARD'!AF314","v":4.7924851367419743},{"$f":"'[2]MONE(M)CAPARD'!AG314","v":2.8638402018502882},{"$f":"'[2]MONE(M)CAPARD'!AH314","v":6.2495746924428737},{"$f":"'[2]MONE(M)CAPARD'!AI314","v":3.1616020873344888},{"$f":"'[2]MONE(M)CAPARD'!AJ314","v":5.8979168778509603},{"$f":"'[2]MONE(M)CAPARD'!AK314","v":1.8327179737669983},null,null,{"$f":"'[2]MONE(M)CAPARD'!AL314","v":1.635},{"$f":"'[2]MONE(M)CAPARD'!AM314","v":4.42},{"$f":"'[2]MONE(M)CAPARD'!AN314","v":3},{"$f":"'[2]MONE(M)CAPARD'!AO314","v":4.0599999999999996},{"$f":"'[2]MONE(M)CAPARD'!AP314","v":3.63},{"$f":"'[2]MONE(M)CAPARD'!AQ314","v":1.7},{"$f":"'[2]MONE(M)CAPARD'!AR314","v":2.19},null,null,{"$f":"'[2]MONE(M)CAPARD'!J314","v":14.744109827702918},{"$f":"'[2]MONE(M)CAPARD'!K314","v":6.2175505350772893},{"$f":"'[2]MONE(M)CAPARD'!L314","v":10.391651808242214},{"$f":"'[2]MONE(M)CAPARD'!M314","v":17.158611599297},{"$f":"'[2]MONE(M)CAPARD'!N314","v":11.75508303341266},{"$f":"'[2]MONE(M)CAPARD'!O314","v":14.248826659908739},{"$f":"'[2]MONE(M)CAPARD'!P314","v":5.8286980018989656},null,null,{"$f":"'[2]MONE(M)CAPARD'!Q314","v":9.39},{"$f":"'[2]MONE(M)CAPARD'!R314","v":5.84},{"$f":"'[2]MONE(M)CAPARD'!S314","v":5.92},{"$f":"'[2]MONE(M)CAPARD'!T314","v":8.57},{"$f":"'[2]MONE(M)CAPARD'!U314","v":8.49},{"$f":"'[2]MONE(M)CAPARD'!V314","v":7.18},{"$f":"'[2]MONE(M)CAPARD'!W314","v":6.2},null,null,{"$f":"'[2]MONE(M)CAPARD'!AS314","v":3.75},{"$f":"'[2]MONE(M)CAPARD'!AT314","v":"n.a."},{"$f":"'[2]MONE(M)CAPARD'!AU314","v":3.5},{"$f":"'[2]MONE(M)CAPARD'!AV314","v":6.5},{"$f":"'[2]MONE(M)CAPARD'!AW314","v":"n.a."},{"$f":"'[2]MONE(M)CAPARD'!AX314","v":5.25},{"$f":"'[2]MONE(M)CAPARD'!AY314","v":"n.a."},null,null,{"$f":"+'Datos_Regional (M)'!CF307","v":11.961383860509777},{"$f":"+'Datos_Regional (M)'!CG307","v":3.537782680040169},{"$f":"+'Datos_Regional (M)'!CH307","v":9.9093286823153548},{"$f":"+'Datos_Regional (M)'!CI307","v":10.550726719638703},{"$f":"+'Datos_Regional (M)'!CJ307","v":18.83540023820278},{"$f":"+'Datos_Regional (M)'!CK307","v":17.192363549562661},{"$f":"+'Datos_Regional (M)'!CL307","v":12.864878066929819},null,null,766.1365298441666,454.42083333333329,910.14166666666654,349.95090461803733,423.73664556171633,813.4,1146.7640900833333,3717.7865800239197,4864.5506701072545,null,null,1242.0720865283336,852.44833333333315,1489.3416666666665,795.17777963534593,581.67615908999994,1409.2583333333332,2013.7485544999993,6369.9743585870119,8383.722913087011,null,null,-2652.1877785630918,-3519.1722429797578,null,null,{"$f":"'[2]EXT Comercio(M)'!C314","v":846.74214173999985},{"$f":"'[2]EXT Comercio(M)'!D314","v":499.20000000000027},{"$f":"'[2]EXT Comercio(M)'!E314","v":997.8},{"$f":"'[2]EXT Comercio(M)'!F314","v":375.76892987287624},{"$f":"'[2]EXT Comercio(M)'!G314","v":409.94590334999998},{"$f":"'[2]EXT Comercio(M)'!H314","v":818.80000000000007},{"$f":"'[2]EXT Comercio(M)'!I314","v":944.64807999999994},{"$f":"'[2]EXT Comercio(M)'!K314","v":3948.2569749628747},{"$f":"'[2]EXT Comercio(M)'!L314","v":4892.9050549628773},null,null,{"$f":"'[2]EXT Comercio(M)'!AG314","v":1195.1946029400001},{"$f":"'[2]EXT Comercio(M)'!AH314","v":882.72000000000025},{"$f":"'[2]EXT Comercio(M)'!AI314","v":1544.2000000000003},{"$f":"'[2]EXT Comercio(M)'!AJ314","v":841.22400730744403},{"$f":"'[2]EXT Comercio(M)'!AK314","v":626.32810312999845},{"$f":"'[2]EXT Comercio(M)'!AL314","v":1461.1},{"$f":"'[2]EXT Comercio(M)'!AM314","v":1665.8076890000002},{"$f":"'[2]EXT Comercio(M)'!AO314","v":6550.7667133774485},{"$f":"'[2]EXT Comercio(M)'!AP314","v":8216.5744023774459},null,null,{"$f":"'[2]EXT Comercio(M)'!$BS314","v":-2602.5097384145683},{"$f":"'[2]EXT Comercio(M)'!$BT314","v":-3323.6693474145686}]
[null,null,"Junio",{"$f":"'[2]REAL IPC(M)'!AD315","v":1.0205076673946956},{"$f":"'[2]REAL IPC(M)'!AE315","v":-0.82614616432138965},{"$f":"'[2]REAL IPC(M)'!AF315","v":2.3850377487988994},{"$f":"'[2]REAL IPC(M)'!AG315","v":3.6218761318362906},{"$f":"'[2]REAL IPC(M)'!AH315","v":3.8222189581524764},{"$f":"'[2]REAL IPC(M)'!AI315","v":0.61796326081439501},{"$f":"'[2]REAL IPC(M)'!AJ315","v":0},null,null,{"$f":"'[2]REAL IMAE(M)'!AG315","v":6.9654223396033625},{"$f":"'[2]REAL IMAE(M)'!AH315","v":1.6345551331088872},{"$f":"'[2]REAL IMAE(M)'!AI315","v":4.0094049971858992},{"$f":"'[2]REAL IMAE(M)'!AJ315","v":3.7682092652668753},{"$f":"'[2]REAL IMAE(M)'!AK315","v":4.3516994807482314},{"$f":"'[2]REAL IMAE(M)'!AL315","v":7.713181363510861},{"$f":"'[2]REAL IMAE(M)'!AM315","v":6.7415399670874567},null,null,{"$f":"'[2]EXT ITCER(M)'!C315","v":72.54293358794466},{"$f":"'[2]EXT ITCER(M)'!D315","v":92.078089222803186},{"$f":"'[2]EXT ITCER(M)'!E315","v":58.623523967870732},{"$f":"'[2]EXT ITCER(M)'!F315","v":75.904545397927436},{"$f":"'[2]EXT ITCER(M)'!G315","v":97.050639858150703},{"$f":"'[2]EXT ITCER(M)'!H315","v":101.5915791204791},{"$f":"'[2]EXT ITCER(M)'!I315","v":87.345114429999114},null,null,{"$f":"'[2]EXT TC(M)'!J315","v":-2.7703807407262753},{"$f":"'[2]EXT TC(M)'!K315","v":0},{"$f":"'[2]EXT TC(M)'!L315","v":-2.0760681852590306},{"$f":"'[2]EXT TC(M)'!M315","v":4.8029608255845266},{"$f":"'[2]EXT TC(M)'!N315","v":4.573504364222317},{"$f":"'[2]EXT TC(M)'!O315","v":3.3446104104256595},{"$f":"'[2]EXT TC(M)'!P315","v":0},null,null,{"$f":"'[2]EXT RIN(M)'!C315","v":8270.9554906800004},{"$f":"'[2]EXT RIN(M)'!D315","v":2773.4},{"$f":"'[2]EXT RIN(M)'!E315","v":7717.7},{"$f":"'[2]EXT RIN(M)'!F315","v":3872.492136512335},{"$f":"'[2]EXT RIN(M)'!G315","v":2240.3000000000002},{"$f":"'[2]EXT RIN(M)'!H315","v":4923.9753367940812},{"$f":"'[2]EXT RIN(M)'!I315","v":4344.7100744299996},null,null,{"$f":"'[2]EXT RIN(M)'!P315","v":74.862004719832569},{"$f":"'[2]EXT RIN(M)'!Q315","v":100.3662677565313},{"$f":"'[2]EXT RIN(M)'!R315","v":97.955110481408255},{"$f":"'[2]EXT RIN(M)'!S315","v":86.947330530246376},{"$f":"'[2]EXT RIN(M)'!T315","v":120.9037243308001},{"$f":"'[2]EXT RIN(M)'!U315","v":78.658493115873895},{"$f":"'[2]EXT RIN(M)'!V315","v":331.66118811947547},null,null,{"$f":"+'[2]MONE(M)CAPARD'!AE315","v":5.721107986938665},{"$f":"'[2]MONE(M)CAPARD'!AF315","v":5.3402645551080292},{"$f":"'[2]MONE(M)CAPARD'!AG315","v":3.0326328138092871},{"$f":"'[2]MONE(M)CAPARD'!AH315","v":5.9718315274379599},{"$f":"'[2]MONE(M)CAPARD'!AI315","v":4.1885195672343354},{"$f":"'[2]MONE(M)CAPARD'!AJ315","v":5.4781835773178127},{"$f":"'[2]MONE(M)CAPARD'!AK315","v":2.13},null,null,{"$f":"'[2]MONE(M)CAPARD'!AL315","v":1.55},{"$f":"'[2]MONE(M)CAPARD'!AM315","v":4.47},{"$f":"'[2]MONE(M)CAPARD'!AN315","v":2.99},{"$f":"'[2]MONE(M)CAPARD'!AO315","v":4},{"$f":"'[2]MONE(M)CAPARD'!AP315","v":3.21},{"$f":"'[2]MONE(M)CAPARD'!AQ315","v":1.32},{"$f":"'[2]MONE(M)CAPARD'!AR315","v":2.13},null,null,{"$f":"'[2]MONE(M)CAPARD'!J315","v":14.798472783195477},{"$f":"'[2]MONE(M)CAPARD'!K315","v":6.9535930062248372},{"$f":"'[2]MONE(M)CAPARD'!L315","v":10.514194737724152},{"$f":"'[2]MONE(M)CAPARD'!M315","v":16.654903879762319},{"$f":"'[2]MONE(M)CAPARD'!N315","v":12.296771525047921},{"$f":"'[2]MONE(M)CAPARD'!O315","v":12.802919400975894},{"$f":"'[2]MONE(M)CAPARD'!P315","v":6.18},null,null,{"$f":"'[2]MONE(M)CAPARD'!Q315","v":9.4700000000000006},{"$f":"'[2]MONE(M)CAPARD'!R315","v":6.07},{"$f":"'[2]MONE(M)CAPARD'!S315","v":5.93},{"$f":"'[2]MONE(M)CAPARD'!T315","v":8.5500000000000007},{"$f":"'[2]MONE(M)CAPARD'!U315","v":8.39},{"$f":"'[2]MONE(M)CAPARD'!V315","v":5.74},{"$f":"'[2]MONE(M)CAPARD'!W315","v":6.18},null,null,{"$f":"'[2]MONE(M)CAPARD'!AS315","v":3.5},{"$f":"'[2]MONE(M)CAPARD'!AT315","v":"n.a."},{"$f":"'[2]MONE(M)CAPARD'!AU315","v":3.25},{"$f":"'[2]MONE(M)CAPARD'!AV315","v":6.5},{"$f":"'[2]MONE(M)CAPARD'!AW315","v":"n.a."},{"$f":"'[2]MONE(M)CAPARD'!AX315","v":5},{"$f":"'[2]MONE(M)CAPARD'!AY315","v":"n.a."},null,null,{"$f":"+'Datos_Regional (M)'!CF308","v":13.262513426890688},{"$f":"+'Datos_Regional (M)'!CG308","v":3.0683725042289334},{"$f":"+'Datos_Regional (M)'!CH308","v":10.232592662504004},{"$f":"+'Datos_Regional (M)'!CI308","v":10.11978091350807},{"$f":"+'Datos_Regional (M)'!CJ308","v":19.511477965660461},{"$f":"+'Datos_Regional (M)'!CK308","v":16.079326713944852},{"$f":"+'Datos_Regional (M)'!CL308","v":13.147884218789629},null,null,767.91612410583332,454.96749999999992,911.73333333333323,348.73110304593973,421.60140773754966,812.73333333333323,1120.1775725833334,3717.682801555989,4837.8603741393235,null,null,1240.3401097916667,855.06916666666655,1489.9499999999998,795.45895443951815,583.10150988833323,1419.9000000000003,1990.0453114166658,6383.8197407861835,8373.8650522028493,null,null,-2666.1369392301954,-3536.004678063528,null,null,{"$f":"'[2]EXT Comercio(M)'!C315","v":814.17061809000029},{"$f":"'[2]EXT Comercio(M)'!D315","v":478.24999999999955},{"$f":"'[2]EXT Comercio(M)'!E315","v":910.4},{"$f":"'[2]EXT Comercio(M)'!F315","v":374.86238113482904},{"$f":"'[2]EXT Comercio(M)'!G315","v":435.88681760999998},{"$f":"'[2]EXT Comercio(M)'!H315","v":847.70000000000016},{"$f":"'[2]EXT Comercio(M)'!I315","v":992.73280999999997},{"$f":"'[2]EXT Comercio(M)'!K315","v":3861.2698168348325},{"$f":"'[2]EXT Comercio(M)'!L315","v":4854.0026268348265},null,null,{"$f":"'[2]EXT Comercio(M)'!AG315","v":1176.4061677999991},{"$f":"'[2]EXT Comercio(M)'!AH315","v":896.09999999999945},{"$f":"'[2]EXT Comercio(M)'!AI315","v":1449.9999999999998},{"$f":"'[2]EXT Comercio(M)'!AJ315","v":790.83273626791777},{"$f":"'[2]EXT Comercio(M)'!AK315","v":618.85428198},{"$f":"'[2]EXT Comercio(M)'!AL315","v":1487.8000000000002},{"$f":"'[2]EXT Comercio(M)'!AM315","v":1863.9676629999999},{"$f":"'[2]EXT Comercio(M)'!AO315","v":6419.9931860479155},{"$f":"'[2]EXT Comercio(M)'!AP315","v":8283.960849047915},null,null,{"$f":"'[2]EXT Comercio(M)'!$BS315","v":-2558.7233692130885},{"$f":"'[2]EXT Comercio(M)'!$BT315","v":-3429.9582222130903}]
[null,null,"Julio",{"$f":"'[2]REAL IPC(M)'!AD316","v":-0.32170012984744362},{"$f":"'[2]REAL IPC(M)'!AE316","v":-1.4534621287352167},{"$f":"'[2]REAL IPC(M)'!AF316","v":2.3202251983280751},{"$f":"'[2]REAL IPC(M)'!AG316","v":3.1991373112868566},{"$f":"'[2]REAL IPC(M)'!AH316","v":3.0784704090957198},{"$f":"'[2]REAL IPC(M)'!AI316","v":0.4976383265857548},{"$f":"'[2]REAL IPC(M)'!AJ316","v":0.97465886939571167},null,null,{"$f":"'[2]REAL IMAE(M)'!AG316","v":7.0853105272537933},{"$f":"'[2]REAL IMAE(M)'!AH316","v":2.2228940674446811},{"$f":"'[2]REAL IMAE(M)'!AI316","v":4.7049337307072063},{"$f":"'[2]REAL IMAE(M)'!AJ316","v":4.0652196543576924},{"$f":"'[2]REAL IMAE(M)'!AK316","v":5.2080583850357911},{"$f":"'[2]REAL IMAE(M)'!AL316","v":7.9334763908107035},{"$f":"'[2]REAL IMAE(M)'!AM316","v":6.5183526317898295},null,null,{"$f":"'[2]EXT ITCER(M)'!C316","v":72.787766334149907},{"$f":"'[2]EXT ITCER(M)'!D316","v":92.291742757819222},{"$f":"'[2]EXT ITCER(M)'!E316","v":58.415852961427433},{"$f":"'[2]EXT ITCER(M)'!F316","v":75.740875040431433},{"$f":"'[2]EXT ITCER(M)'!G316","v":98.137533078956892},{"$f":"'[2]EXT ITCER(M)'!H316","v":101.7891228770027},{"$f":"'[2]EXT ITCER(M)'!I316","v":87.399228014157757},null,null,{"$f":"'[2]EXT TC(M)'!J316","v":-0.87861624296239704},{"$f":"'[2]EXT TC(M)'!K316","v":0},{"$f":"'[2]EXT TC(M)'!L316","v":-1.6606407021902168},{"$f":"'[2]EXT TC(M)'!M316","v":4.551346181284857},{"$f":"'[2]EXT TC(M)'!N316","v":4.8197744183154629},{"$f":"'[2]EXT TC(M)'!O316","v":3.3777550799752456},{"$f":"'[2]EXT TC(M)'!P316","v":0},null,null,{"$f":"'[2]EXT RIN(M)'!C316","v":8349.2951866599997},{"$f":"'[2]EXT RIN(M)'!D316","v":2783.6},{"$f":"'[2]EXT RIN(M)'!E316","v":7584.5},{"$f":"'[2]EXT RIN(M)'!F316","v":3795.8601752106215},{"$f":"'[2]EXT RIN(M)'!G316","v":2266.4},{"$f":"'[2]EXT RIN(M)'!H316","v":4736.3999999999996},{"$f":"'[2]EXT RIN(M)'!I316","v":4015.1678141299999},null,null,{"$f":"'[2]EXT RIN(M)'!P316","v":74.489506736513349},{"$f":"'[2]EXT RIN(M)'!Q316","v":98.923202672447488},{"$f":"'[2]EXT RIN(M)'!R316","v":95.286277206793159},{"$f":"'[2]EXT RIN(M)'!S316","v":87.499333982752759},{"$f":"'[2]EXT RIN(M)'!T316","v":118.1033003320489},{"$f":"'[2]EXT RIN(M)'!U316","v":78.505651779746913},{"$f":"'[2]EXT RIN(M)'!V316","v":305.43682196253422},null,null,{"$f":"+'[2]MONE(M)CAPARD'!AE316","v":7.0945232202590747},{"$f":"'[2]MONE(M)CAPARD'!AF316","v":5.8180249175522176},{"$f":"'[2]MONE(M)CAPARD'!AG316","v":3.0881233847436413},{"$f":"'[2]MONE(M)CAPARD'!AH316","v":6.2702681992337039},{"$f":"'[2]MONE(M)CAPARD'!AI316","v":5.7975471230822153},{"$f":"'[2]MONE(M)CAPARD'!AJ316","v":5.6144221569449639},{"$f":"'[2]MONE(M)CAPARD'!AK316","v":1.1937065637065636},null,null,{"$f":"'[2]MONE(M)CAPARD'!AL316","v":1.5699999999999998},{"$f":"'[2]MONE(M)CAPARD'!AM316","v":4.28},{"$f":"'[2]MONE(M)CAPARD'!AN316","v":2.97},{"$f":"'[2]MONE(M)CAPARD'!AO316","v":4.01},{"$f":"'[2]MONE(M)CAPARD'!AP316","v":3.1},{"$f":"'[2]MONE(M)CAPARD'!AQ316","v":1.47},{"$f":"'[2]MONE(M)CAPARD'!AR316","v":2.1800000000000002},null,null,{"$f":"'[2]MONE(M)CAPARD'!J316","v":16.34427969886131},{"$f":"'[2]MONE(M)CAPARD'!K316","v":7.7257530230853781},{"$f":"'[2]MONE(M)CAPARD'!L316","v":10.554877865777403},{"$f":"'[2]MONE(M)CAPARD'!M316","v":17.045552072448608},{"$f":"'[2]MONE(M)CAPARD'!N316","v":14.380123994658691},{"$f":"'[2]MONE(M)CAPARD'!O316","v":13.186739404112396},{"$f":"'[2]MONE(M)CAPARD'!P316","v":5.2046138996139},null,null,{"$f":"'[2]MONE(M)CAPARD'!Q316","v":9.4700000000000006},{"$f":"'[2]MONE(M)CAPARD'!R316","v":6.16},{"$f":"'[2]MONE(M)CAPARD'!S316","v":5.93},{"$f":"'[2]MONE(M)CAPARD'!T316","v":8.6},{"$f":"'[2]MONE(M)CAPARD'!U316","v":8.6999999999999993},{"$f":"'[2]MONE(M)CAPARD'!V316","v":7.09},{"$f":"'[2]MONE(M)CAPARD'!W316","v":6.23},null,null,{"$f":"'[2]MONE(M)CAPARD'!AS316","v":3},{"$f":"'[2]MONE(M)CAPARD'!AT316","v":"n.a."},{"$f":"'[2]MONE(M)CAPARD'!AU316","v":3.25},{"$f":"'[2]MONE(M)CAPARD'!AV316","v":6.25},{"$f":"'[2]MONE(M)CAPARD'!AW316","v":"n.a."},{"$f":"'[2]MONE(M)CAPARD'!AX316","v":5},{"$f":"'[2]MONE(M)CAPARD'!AY316","v":"n.a."},null,null,{"$f":"+'Datos_Regional (M)'!CF309","v":13.257187856353037},{"$f":"+'Datos_Regional (M)'!CG309","v":3.6685634032872283},{"$f":"+'Datos_Regional (M)'!CH309","v":9.5409063367297264},{"$f":"+'Datos_Regional (M)'!CI309","v":10.442034770253251},{"$f":"+'Datos_Regional (M)'!CJ309","v":20.734270259444809},{"$f":"+'Datos_Regional (M)'!CK309","v":15.501000713633983},{"$f":"+'Datos_Regional (M)'!CL309","v":13.002543342728345},null,null,768.92966716916669,459.27916666666653,913.11666666666667,344.34872026264389,420.45340902671632,814.2833333333333,1091.1438900833334,3720.4109631251922,4811.5548532085277,null,null,1249.3621558983332,855.79833333333283,1491.6499999999999,798.9031783554201,583.85204657666668,1419.7916666666667,1978.1309818333327,6399.3573808304182,8377.4883626637529,null,null,-2678.9464177052268,-3565.9335094552257,null,null,{"$f":"'[2]EXT Comercio(M)'!C316","v":760.1002042099999},{"$f":"'[2]EXT Comercio(M)'!D316","v":541.15000000000009},{"$f":"'[2]EXT Comercio(M)'!E316","v":965.19999999999993},{"$f":"'[2]EXT Comercio(M)'!F316","v":309.26164442293742},{"$f":"'[2]EXT Comercio(M)'!G316","v":448.60767118000001},{"$f":"'[2]EXT Comercio(M)'!H316","v":883.10000000000014},{"$f":"'[2]EXT Comercio(M)'!I316","v":1060.687752},{"$f":"'[2]EXT Comercio(M)'!K316","v":3907.4195198129346},{"$f":"'[2]EXT Comercio(M)'!L316","v":4968.1072718129399},null,null,{"$f":"'[2]EXT Comercio(M)'!AG316","v":1365.0210059999999},{"$f":"'[2]EXT Comercio(M)'!AH316","v":943.32000000000062},{"$f":"'[2]EXT Comercio(M)'!AI316","v":1640.7},{"$f":"'[2]EXT Comercio(M)'!AJ316","v":834.30223741765587},{"$f":"'[2]EXT Comercio(M)'!AK316","v":593.5540493499999},{"$f":"'[2]EXT Comercio(M)'!AL316","v":1519.5},{"$f":"'[2]EXT Comercio(M)'!AM316","v":2048.3611490000003},{"$f":"'[2]EXT Comercio(M)'!AO316","v":6896.3972927676587},{"$f":"'[2]EXT Comercio(M)'!AP316","v":8944.7584417676626},null,null,{"$f":"'[2]EXT Comercio(M)'!$BS316","v":-2988.9777729547186},{"$f":"'[2]EXT Comercio(M)'!$BT316","v":-3976.6511699547191}]
[null,null,"Agosto",{"$f":"'[2]REAL IPC(M)'!AD317","v":-0.73828535940538575},{"$f":"'[2]REAL IPC(M)'!AE317","v":-1.9992795389049109},{"$f":"'[2]REAL IPC(M)'!AF317","v":1.9622833843017471},{"$f":"'[2]REAL IPC(M)'!AG317","v":3.086862885857848},{"$f":"'[2]REAL IPC(M)'!AH317","v":2.7469084290107375},{"$f":"'[2]REAL IPC(M)'!AI317","v":0.42849941186361984},{"$f":"'[2]REAL IPC(M)'!AJ317","v":0.41997371879107026},null,null,{"$f":"'[2]REAL IMAE(M)'!AG317","v":6.8052972987486013},{"$f":"'[2]REAL IMAE(M)'!AH317","v":2.5486388055401417},{"$f":"'[2]REAL IMAE(M)'!AI317","v":5.1538330077800953},{"$f":"'[2]REAL IMAE(M)'!AJ317","v":4.3000702066818031},{"$f":"'[2]REAL IMAE(M)'!AK317","v":5.8318326694171159},{"$f":"'[2]REAL IMAE(M)'!AL317","v":7.79812511971297},{"$f":"'[2]REAL IMAE(M)'!AM317","v":6.1520012267728399},null,null,{"$f":"'[2]EXT ITCER(M)'!C317","v":72.806848975206435},{"$f":"'[2]EXT ITCER(M)'!D317","v":92.579712510364914},{"$f":"'[2]EXT ITCER(M)'!E317","v":58.380498024487792},{"$f":"'[2]EXT ITCER(M)'!F317","v":75.927024637434684},{"$f":"'[2]EXT ITCER(M)'!G317","v":98.544346806467857},{"$f":"'[2]EXT ITCER(M)'!H317","v":101.64347033127549},{"$f":"'[2]EXT ITCER(M)'!I317","v":87.737616117548782},null,null,{"$f":"'[2]EXT TC(M)'!J317","v":-1.1517985038032916},{"$f":"'[2]EXT TC(M)'!K317","v":0},{"$f":"'[2]EXT TC(M)'!L317","v":-2.0467250858577337},{"$f":"'[2]EXT TC(M)'!M317","v":4.4267902063658857},{"$f":"'[2]EXT TC(M)'!N317","v":4.9502897022629186},{"$f":"'[2]EXT TC(M)'!O317","v":3.5042501189849471},{"$f":"'[2]EXT TC(M)'!P317","v":0},null,null,{"$f":"'[2]EXT RIN(M)'!C317","v":8190.3024225500003},{"$f":"'[2]EXT RIN(M)'!D317","v":2827.3},{"$f":"'[2]EXT RIN(M)'!E317","v":7572.6},{"$f":"'[2]EXT RIN(M)'!F317","v":3743.6341744258889},{"$f":"'[2]EXT RIN(M)'!G317","v":2281.1999999999998},{"$f":"'[2]EXT RIN(M)'!H317","v":4884},{"$f":"'[2]EXT RIN(M)'!I317","v":4454.2348364999998},null,null,{"$f":"'[2]EXT RIN(M)'!P317","v":73.031993275050823},{"$f":"'[2]EXT RIN(M)'!Q317","v":98.527197346773718},{"$f":"'[2]EXT RIN(M)'!R317","v":97.548251547874685},{"$f":"'[2]EXT RIN(M)'!S317","v":87.006340542526161},{"$f":"'[2]EXT RIN(M)'!T317","v":122.24291556191167},{"$f":"'[2]EXT RIN(M)'!U317","v":78.203554780631094},{"$f":"'[2]EXT RIN(M)'!V317","v":337.44335898795111},null,null,{"$f":"+'[2]MONE(M)CAPARD'!AE317","v":7.3424939170099011},{"$f":"'[2]MONE(M)CAPARD'!AF317","v":6.2135048704282427},{"$f":"'[2]MONE(M)CAPARD'!AG317","v":3.4500174956260792},{"$f":"'[2]MONE(M)CAPARD'!AH317","v":6.1143941504178416},{"$f":"'[2]MONE(M)CAPARD'!AI317","v":5.893176736805426},{"$f":"'[2]MONE(M)CAPARD'!AJ317","v":6.6231205555090051},{"$f":"'[2]MONE(M)CAPARD'!AK317","v":1.6630419421195546},null,null,{"$f":"'[2]MONE(M)CAPARD'!AL317","v":1.63},{"$f":"'[2]MONE(M)CAPARD'!AM317","v":4.09},{"$f":"'[2]MONE(M)CAPARD'!AN317","v":2.99},{"$f":"'[2]MONE(M)CAPARD'!AO317","v":3.95},{"$f":"'[2]MONE(M)CAPARD'!AP317","v":3.41},{"$f":"'[2]MONE(M)CAPARD'!AQ317","v":1.41},{"$f":"'[2]MONE(M)CAPARD'!AR317","v":2.09},null,null,{"$f":"'[2]MONE(M)CAPARD'!J317","v":16.792260157662671},{"$f":"'[2]MONE(M)CAPARD'!K317","v":7.8563499356736015},{"$f":"'[2]MONE(M)CAPARD'!L317","v":10.913561609597584},{"$f":"'[2]MONE(M)CAPARD'!M317","v":17.231232590529263},{"$f":"'[2]MONE(M)CAPARD'!N317","v":15.831834107781754},{"$f":"'[2]MONE(M)CAPARD'!O317","v":14.041333556429271},{"$f":"'[2]MONE(M)CAPARD'!P317","v":5.775769566969724},null,null,{"$f":"'[2]MONE(M)CAPARD'!Q317","v":9.49},{"$f":"'[2]MONE(M)CAPARD'!R317","v":5.7},{"$f":"'[2]MONE(M)CAPARD'!S317","v":5.92},{"$f":"'[2]MONE(M)CAPARD'!T317","v":8.57},{"$f":"'[2]MONE(M)CAPARD'!U317","v":8.32},{"$f":"'[2]MONE(M)CAPARD'!V317","v":6.92},{"$f":"'[2]MONE(M)CAPARD'!W317","v":6.22},null,null,{"$f":"'[2]MONE(M)CAPARD'!AS317","v":3},{"$f":"'[2]MONE(M)CAPARD'!AT317","v":"n.a."},{"$f":"'[2]MONE(M)CAPARD'!AU317","v":3.25},{"$f":"'[2]MONE(M)CAPARD'!AV317","v":6.25},{"$f":"'[2]MONE(M)CAPARD'!AW317","v":"n.a."},{"$f":"'[2]MONE(M)CAPARD'!AX317","v":5},{"$f":"'[2]MONE(M)CAPARD'!AY317","v":"n.a."},null,null,{"$f":"+'Datos_Regional (M)'!CF310","v":12.592742443100956},{"$f":"+'Datos_Regional (M)'!CG310","v":3.4403773653620018},{"$f":"+'Datos_Regional (M)'!CH310","v":11.152523179917594},{"$f":"+'Datos_Regional (M)'!CI310","v":10.487696897842724},{"$f":"+'Datos_Regional (M)'!CJ310","v":20.187694790074783},{"$f":"+'Datos_Regional (M)'!CK310","v":17.568226435785238},{"$f":"+'Datos_Regional (M)'!CL310","v":12.684926235070337},null,null,768.27268037916667,457.85416666666657,913.47499999999991,340.97385064046188,417.54973016188296,808.14166666666677,1067.1306165833334,3706.2670945148443,4773.3977110981787,null,null,1242.3792429025002,858.99249999999972,1490.9666666666669,790.68555090288316,583.69530289583315,1412.2416666666668,1961.0816888333336,6378.9609300345501,8340.0426188678812,null,null,-2672.6938355197049,-3566.6449077697048,null,null,{"$f":"'[2]EXT Comercio(M)'!C317","v":717.04564129000028},{"$f":"'[2]EXT Comercio(M)'!D317","v":418.61999999999989},{"$f":"'[2]EXT Comercio(M)'!E317","v":878.30000000000007},{"$f":"'[2]EXT Comercio(M)'!F317","v":262.45675224947496},{"$f":"'[2]EXT Comercio(M)'!G317","v":411.95677879200002},{"$f":"'[2]EXT Comercio(M)'!H317","v":769.09999999999991},{"$f":"'[2]EXT Comercio(M)'!I317","v":872.83735300000001},{"$f":"'[2]EXT Comercio(M)'!K317","v":3457.4791723314811},{"$f":"'[2]EXT Comercio(M)'!L317","v":4330.3165253314801},null,null,{"$f":"'[2]EXT Comercio(M)'!AG317","v":1233.6109713600003},{"$f":"'[2]EXT Comercio(M)'!AH317","v":806.09000000000015},{"$f":"'[2]EXT Comercio(M)'!AI317","v":1454.5},{"$f":"'[2]EXT Comercio(M)'!AJ317","v":713.77866807794851},{"$f":"'[2]EXT Comercio(M)'!AK317","v":587.7922092},{"$f":"'[2]EXT Comercio(M)'!AL317","v":1395.9},{"$f":"'[2]EXT Comercio(M)'!AM317","v":1851.9892150000001},{"$f":"'[2]EXT Comercio(M)'!AO317","v":6191.6718486379468},{"$f":"'[2]EXT Comercio(M)'!AP317","v":8043.6610636379482},null,null,{"$f":"'[2]EXT Comercio(M)'!$BS317","v":-2734.192676306473},{"$f":"'[2]EXT Comercio(M)'!$BT317","v":-3713.3445383064718}]
[null,null,"Setiembre",{"$f":"'[2]REAL IPC(M)'!AD318","v":-0.86419232992965966},{"$f":"'[2]REAL IPC(M)'!AE318","v":-2.2540798845911101},{"$f":"'[2]REAL IPC(M)'!AF318","v":1.8763796909492134},{"$f":"'[2]REAL IPC(M)'!AG318","v":2.7608461814270511},{"$f":"'[2]REAL IPC(M)'!AH318","v":2.7703850726177008},{"$f":"'[2]REAL IPC(M)'!AI318","v":0.39412997903569447},{"$f":"'[2]REAL IPC(M)'!AJ318","v":-0.3937786509493364},null,null,{"$f":"'[2]REAL IMAE(M)'!AG318","v":6.184962845649002},{"$f":"'[2]REAL IMAE(M)'!AH318","v":2.9052484127311988},{"$f":"'[2]REAL IMAE(M)'!AI318","v":5.1083004126663871},{"$f":"'[2]REAL IMAE(M)'!AJ318","v":4.4151654597978078},{"$f":"'[2]REAL IMAE(M)'!AK318","v":6.0559019125691123},{"$f":"'[2]REAL IMAE(M)'!AL318","v":7.2985483681075793},{"$f":"'[2]REAL IMAE(M)'!AM318","v":5.7952414607715967},null,null,{"$f":"'[2]EXT ITCER(M)'!C318","v":72.941211531073421},{"$f":"'[2]EXT ITCER(M)'!D318","v":92.720975373701705},{"$f":"'[2]EXT ITCER(M)'!E318","v":58.578882713129588},{"$f":"'[2]EXT ITCER(M)'!F318","v":75.801917507624211},{"$f":"'[2]EXT ITCER(M)'!G318","v":98.700812833830867},{"$f":"'[2]EXT ITCER(M)'!H318","v":101.451776666596},{"$f":"'[2]EXT ITCER(M)'!I318","v":87.966612976897466},null,null,{"$f":"'[2]EXT TC(M)'!J318","v":-1.0241656933505086},{"$f":"'[2]EXT TC(M)'!K318","v":0},{"$f":"'[2]EXT TC(M)'!L318","v":-0.44502627990466309},{"$f":"'[2]EXT TC(M)'!M318","v":3.6991538322783248},{"$f":"'[2]EXT TC(M)'!N318","v":5.0403115182667264},{"$f":"'[2]EXT TC(M)'!O318","v":3.3312893320697978},{"$f":"'[2]EXT TC(M)'!P318","v":0},null,null,{"$f":"'[2]EXT RIN(M)'!C318","v":8051.9971898699996},{"$f":"'[2]EXT RIN(M)'!D318","v":2791.8},{"$f":"'[2]EXT RIN(M)'!E318","v":7536.1},{"$f":"'[2]EXT RIN(M)'!F318","v":3672.5778311813669},{"$f":"'[2]EXT RIN(M)'!G318","v":2320.5},{"$f":"'[2]EXT RIN(M)'!H318","v":4720.2},{"$f":"'[2]EXT RIN(M)'!I318","v":4062.3142484099999},null,null,{"$f":"'[2]EXT RIN(M)'!P318","v":70.359329536643799},{"$f":"'[2]EXT RIN(M)'!Q318","v":98.470042611096247},{"$f":"'[2]EXT RIN(M)'!R318","v":97.847257024983961},{"$f":"'[2]EXT RIN(M)'!S318","v":85.242838078869525},{"$f":"'[2]EXT RIN(M)'!T318","v":125.56366276835651},{"$f":"'[2]EXT RIN(M)'!U318","v":78.929606058065616},{"$f":"'[2]EXT RIN(M)'!V318","v":305.30526109029284},null,null,{"$f":"+'[2]MONE(M)CAPARD'!AE318","v":7.4788237511561082},{"$f":"'[2]MONE(M)CAPARD'!AF318","v":6.7563739507425513},{"$f":"'[2]MONE(M)CAPARD'!AG318","v":3.5470639219935141},{"$f":"'[2]MONE(M)CAPARD'!AH318","v":6.2661549197487618},{"$f":"'[2]MONE(M)CAPARD'!AI318","v":6.3175271398425696},{"$f":"'[2]MONE(M)CAPARD'!AJ318","v":6.6695831941195536},{"$f":"'[2]MONE(M)CAPARD'!AK318","v":2.5939932425455492},null,null,{"$f":"'[2]MONE(M)CAPARD'!AL318","v":1.6949999999999998},{"$f":"'[2]MONE(M)CAPARD'!AM318","v":4.3499999999999996},{"$f":"'[2]MONE(M)CAPARD'!AN318","v":3.01},{"$f":"'[2]MONE(M)CAPARD'!AO318","v":3.9},{"$f":"'[2]MONE(M)CAPARD'!AP318","v":3.42},{"$f":"'[2]MONE(M)CAPARD'!AQ318","v":1.6},{"$f":"'[2]MONE(M)CAPARD'!AR318","v":2.19},null,null,{"$f":"'[2]MONE(M)CAPARD'!J318","v":16.789284034808578},{"$f":"'[2]MONE(M)CAPARD'!K318","v":8.6081136426528921},{"$f":"'[2]MONE(M)CAPARD'!L318","v":11.046348862405218},{"$f":"'[2]MONE(M)CAPARD'!M318","v":17.46691905094206},{"$f":"'[2]MONE(M)CAPARD'!N318","v":15.271012409454363},{"$f":"'[2]MONE(M)CAPARD'!O318","v":14.020610591379825},{"$f":"'[2]MONE(M)CAPARD'!P318","v":6.6399252590585007},null,null,{"$f":"'[2]MONE(M)CAPARD'!Q318","v":9.4600000000000009},{"$f":"'[2]MONE(M)CAPARD'!R318","v":6.16},{"$f":"'[2]MONE(M)CAPARD'!S318","v":5.93},{"$f":"'[2]MONE(M)CAPARD'!T318","v":8.5500000000000007},{"$f":"'[2]MONE(M)CAPARD'!U318","v":8.11},{"$f":"'[2]MONE(M)CAPARD'!V318","v":6},{"$f":"'[2]MONE(M)CAPARD'!W318","v":6.22},null,null,{"$f":"'[2]MONE(M)CAPARD'!AS318","v":3},{"$f":"'[2]MONE(M)CAPARD'!AT318","v":"n.a."},{"$f":"'[2]MONE(M)CAPARD'!AU318","v":3.25},{"$f":"'[2]MONE(M)CAPARD'!AV318","v":6.25},{"$f":"'[2]MONE(M)CAPARD'!AW318","v":"n.a."},{"$f":"'[2]MONE(M)CAPARD'!AX318","v":5},{"$f":"'[2]MONE(M)CAPARD'!AY318","v":"n.a."},null,null,{"$f":"+'Datos_Regional (M)'!CF311","v":12.983189970395049},{"$f":"+'Datos_Regional (M)'!CG311","v":3.4614558839034526},{"$f":"+'Datos_Regional (M)'!CH311","v":11.753423583547162},{"$f":"+'Datos_Regional (M)'!CI311","v":10.270737415153297},{"$f":"+'Datos_Regional (M)'!CJ311","v":23.893225825321053},{"$f":"+'Datos_Regional (M)'!CK311","v":20.036367592556314},{"$f":"+'Datos_Regional (M)'!CL311","v":12.407627974956515},null,null,765.83527848999995,458.45749999999998,907.73333333333346,337.68495576615959,414.01900073154962,806.60833333333323,1048.3221635833333,3690.338401654375,4738.6605652377102,null,null,1232.1456126925002,861.04583333333323,1490.4666666666669,788.09699850864524,587.66105299833328,1416.1166666666666,1936.5842287500006,6375.5328308661437,8312.1170596161446,null,null,-2685.1944292117696,-3573.4564943784353,null,null,{"$f":"'[2]EXT Comercio(M)'!C318","v":705.98400324999966},{"$f":"'[2]EXT Comercio(M)'!D318","v":442.47000000000025},{"$f":"'[2]EXT Comercio(M)'!E318","v":814.6},{"$f":"'[2]EXT Comercio(M)'!F318","v":245.39730404429517},{"$f":"'[2]EXT Comercio(M)'!G318","v":392.755390186},{"$f":"'[2]EXT Comercio(M)'!H318","v":820.3},{"$f":"'[2]EXT Comercio(M)'!I318","v":1151.7252490000001},{"$f":"'[2]EXT Comercio(M)'!K318","v":3421.5066974802867},{"$f":"'[2]EXT Comercio(M)'!L318","v":4573.2319464802931},null,null,{"$f":"'[2]EXT Comercio(M)'!AG318","v":1181.6948094999993},{"$f":"'[2]EXT Comercio(M)'!AH318","v":867.80000000000018},{"$f":"'[2]EXT Comercio(M)'!AI318","v":1536.3999999999999},{"$f":"'[2]EXT Comercio(M)'!AJ318","v":752.55843301540017},{"$f":"'[2]EXT Comercio(M)'!AK318","v":577.62855184999989},{"$f":"'[2]EXT Comercio(M)'!AL318","v":1467.4},{"$f":"'[2]EXT Comercio(M)'!AM318","v":2162.3750170000003},{"$f":"'[2]EXT Comercio(M)'!AO318","v":6383.4817943654052},{"$f":"'[2]EXT Comercio(M)'!AP318","v":8545.856811365411},null,null,{"$f":"'[2]EXT Comercio(M)'!$BS318","v":-2961.975096885104},{"$f":"'[2]EXT Comercio(M)'!$BT318","v":-3972.6248648851033}]
[null,null,"Octubre",{"$f":"'[2]REAL IPC(M)'!AD319","v":-0.85644268394147927},{"$f":"'[2]REAL IPC(M)'!AE319","v":-0.18924033522573105},{"$f":"'[2]REAL IPC(M)'!AF319","v":2.2295693455408596},{"$f":"'[2]REAL IPC(M)'!AG319","v":2.5384340364676521},{"$f":"'[2]REAL IPC(M)'!AH319","v":3.0303933883283189},{"$f":"'[2]REAL IPC(M)'!AI319","v":1.2253462022661101},{"$f":"'[2]REAL IPC(M)'!AJ319","v":-0.38834951456311234},null,null,{"$f":"'[2]REAL IMAE(M)'!AG319","v":5.4679095089943424},{"$f":"'[2]REAL IMAE(M)'!AH319","v":3.7928727994221703},{"$f":"'[2]REAL IMAE(M)'!AI319","v":4.5836187794992096},{"$f":"'[2]REAL IMAE(M)'!AJ319","v":4.4100149089349907},{"$f":"'[2]REAL IMAE(M)'!AK319","v":5.8170870552257519},{"$f":"'[2]REAL IMAE(M)'!AL319","v":6.6700691770031382},{"$f":"'[2]REAL IMAE(M)'!AM319","v":5.3735352685889293},null,null,{"$f":"'[2]EXT ITCER(M)'!C319","v":73.160517071351947},{"$f":"'[2]EXT ITCER(M)'!D319","v":90.843509350734081},{"$f":"'[2]EXT ITCER(M)'!E319","v":58.269057279889417},{"$f":"'[2]EXT ITCER(M)'!F319","v":76.295659543483794},{"$f":"'[2]EXT ITCER(M)'!G319","v":98.938883035141075},{"$f":"'[2]EXT ITCER(M)'!H319","v":101.07544412630889},{"$f":"'[2]EXT ITCER(M)'!I319","v":88.139476633710515},null,null,{"$f":"'[2]EXT TC(M)'!J319","v":-1.026231970845136},{"$f":"'[2]EXT TC(M)'!K319","v":0},{"$f":"'[2]EXT TC(M)'!L319","v":0.48227653406028015},{"$f":"'[2]EXT TC(M)'!M319","v":3.7376564768159608},{"$f":"'[2]EXT TC(M)'!N319","v":5.1488665624626},{"$f":"'[2]EXT TC(M)'!O319","v":3.2488048982051736},{"$f":"'[2]EXT TC(M)'!P319","v":0},null,null,{"$f":"'[2]EXT RIN(M)'!C319","v":7909.9839506099997},{"$f":"'[2]EXT RIN(M)'!D319","v":2689.1},{"$f":"'[2]EXT RIN(M)'!E319","v":7564.4},{"$f":"'[2]EXT RIN(M)'!F319","v":3581.5278330797746},{"$f":"'[2]EXT RIN(M)'!G319","v":2349.6999999999998},{"$f":"'[2]EXT RIN(M)'!H319","v":4621.3132722143491},{"$f":"'[2]EXT RIN(M)'!I319","v":3904.0534608100002},null,null,{"$f":"'[2]EXT RIN(M)'!P319","v":69.023524972719898},{"$f":"'[2]EXT RIN(M)'!Q319","v":94.619886045159006},{"$f":"'[2]EXT RIN(M)'!R319","v":97.775116178283554},{"$f":"'[2]EXT RIN(M)'!S319","v":87.420115230058727},{"$f":"'[2]EXT RIN(M)'!T319","v":126.93019465507354},{"$f":"'[2]EXT RIN(M)'!U319","v":78.541471735727399},{"$f":"'[2]EXT RIN(M)'!V319","v":285.30970433785706},null,null,{"$f":"+'[2]MONE(M)CAPARD'!AE319","v":7.167831048554107},{"$f":"'[2]MONE(M)CAPARD'!AF319","v":4.5278087757313052},{"$f":"'[2]MONE(M)CAPARD'!AG319","v":3.1893224977195476},{"$f":"'[2]MONE(M)CAPARD'!AH319","v":6.3796234309623339},{"$f":"'[2]MONE(M)CAPARD'!AI319","v":6.3833446617973877},{"$f":"'[2]MONE(M)CAPARD'!AJ319","v":6.3172456678550075},{"$f":"'[2]MONE(M)CAPARD'!AK319","v":2.417738791423008},null,null,{"$f":"'[2]MONE(M)CAPARD'!AL319","v":1.7949999999999999},{"$f":"'[2]MONE(M)CAPARD'!AM319","v":4.33},{"$f":"'[2]MONE(M)CAPARD'!AN319","v":2.98},{"$f":"'[2]MONE(M)CAPARD'!AO319","v":3.86},{"$f":"'[2]MONE(M)CAPARD'!AP319","v":3.19},{"$f":"'[2]MONE(M)CAPARD'!AQ319","v":2.21},{"$f":"'[2]MONE(M)CAPARD'!AR319","v":2.02},null,null,{"$f":"'[2]MONE(M)CAPARD'!J319","v":16.739809558208492},{"$f":"'[2]MONE(M)CAPARD'!K319","v":6.2009750812567654},{"$f":"'[2]MONE(M)CAPARD'!L319","v":10.652916493904968},{"$f":"'[2]MONE(M)CAPARD'!M319","v":17.302357043235695},{"$f":"'[2]MONE(M)CAPARD'!N319","v":14.404959100033444},{"$f":"'[2]MONE(M)CAPARD'!O319","v":12.906504435784695},{"$f":"'[2]MONE(M)CAPARD'!P319","v":6.5738791423002008},null,null,{"$f":"'[2]MONE(M)CAPARD'!Q319","v":9.5399999999999991},{"$f":"'[2]MONE(M)CAPARD'!R319","v":6},{"$f":"'[2]MONE(M)CAPARD'!S319","v":5.91},{"$f":"'[2]MONE(M)CAPARD'!T319","v":8.6999999999999993},{"$f":"'[2]MONE(M)CAPARD'!U319","v":8.5500000000000007},{"$f":"'[2]MONE(M)CAPARD'!V319","v":5.87},{"$f":"'[2]MONE(M)CAPARD'!W319","v":6.16},null,null,{"$f":"'[2]MONE(M)CAPARD'!AS319","v":2.25},{"$f":"'[2]MONE(M)CAPARD'!AT319","v":"n.a."},{"$f":"'[2]MONE(M)CAPARD'!AU319","v":3},{"$f":"'[2]MONE(M)CAPARD'!AV319","v":6.25},{"$f":"'[2]MONE(M)CAPARD'!AW319","v":"n.a."},{"$f":"'[2]MONE(M)CAPARD'!AX319","v":5},{"$f":"'[2]MONE(M)CAPARD'!AY319","v":"n.a."},null,null,{"$f":"+'Datos_Regional (M)'!CF312","v":12.248054139066177},{"$f":"+'Datos_Regional (M)'!CG312","v":3.9318787648594533},{"$f":"+'Datos_Regional (M)'!CH312","v":12.087738621359833},{"$f":"+'Datos_Regional (M)'!CI312","v":10.1318644657312},{"$f":"+'Datos_Regional (M)'!CJ312","v":24.631302521017929},{"$f":"+'Datos_Regional (M)'!CK312","v":19.389373922632135},{"$f":"+'Datos_Regional (M)'!CL312","v":11.992599280711879},null,null,766.21352093583334,462.37499999999994,902.875,334.80157746786125,413.86819199154974,799.51666666666677,1023.0752578333335,3679.6499570619108,4702.7252148952439,null,null,1229.0615114916668,860.57499999999982,1488.2250000000001,786.36320152870758,585.02635138083326,1406.0166666666667,1907.1251086666662,6355.2677310678728,8262.3928397345389,null,null,-2675.6177740059638,-3559.6676248392964,null,null,{"$f":"'[2]EXT Comercio(M)'!C319","v":778.25310727999977},{"$f":"'[2]EXT Comercio(M)'!D319","v":474.11999999999989},{"$f":"'[2]EXT Comercio(M)'!E319","v":825},{"$f":"'[2]EXT Comercio(M)'!F319","v":265.70183713465093},{"$f":"'[2]EXT Comercio(M)'!G319","v":436.32641476000003},{"$f":"'[2]EXT Comercio(M)'!H319","v":785.2},{"$f":"'[2]EXT Comercio(M)'!I319","v":1237.348577},{"$f":"'[2]EXT Comercio(M)'!K319","v":3564.6013591746523},{"$f":"'[2]EXT Comercio(M)'!L319","v":4801.9499361746493},null,null,{"$f":"'[2]EXT Comercio(M)'!AG319","v":1303.3855380500013},{"$f":"'[2]EXT Comercio(M)'!AH319","v":886.34999999999854},{"$f":"'[2]EXT Comercio(M)'!AI319","v":1548.3},{"$f":"'[2]EXT Comercio(M)'!AJ319","v":767.99935821342888},{"$f":"'[2]EXT Comercio(M)'!AK319","v":630.99569531999998},{"$f":"'[2]EXT Comercio(M)'!AL319","v":1456.8},{"$f":"'[2]EXT Comercio(M)'!AM319","v":2095.983745},{"$f":"'[2]EXT Comercio(M)'!AO319","v":6593.830591583428},{"$f":"'[2]EXT Comercio(M)'!AP319","v":8689.8143365834258},null,null,{"$f":"'[2]EXT Comercio(M)'!$BS319","v":-3029.2292324087794},{"$f":"'[2]EXT Comercio(M)'!$BT319","v":-3887.8644004087801}]
[null,null,"Noviembre",{"$f":"'[2]REAL IPC(M)'!AD320","v":-1.2037736769680414},{"$f":"'[2]REAL IPC(M)'!AE320","v":0.26268115942028264},{"$f":"'[2]REAL IPC(M)'!AF320","v":2.5129029528725022},{"$f":"'[2]REAL IPC(M)'!AG320","v":2.1018881368008673},{"$f":"'[2]REAL IPC(M)'!AH320","v":1.9860749754835074},{"$f":"'[2]REAL IPC(M)'!AI320","v":1.5380736258195324},{"$f":"'[2]REAL IPC(M)'!AJ320","v":0},null,null,{"$f":"'[2]REAL IMAE(M)'!AG320","v":4.9278903653271051},{"$f":"'[2]REAL IMAE(M)'!AH320","v":3.6207848120738886},{"$f":"'[2]REAL IMAE(M)'!AI320","v":3.7375687753122193},{"$f":"'[2]REAL IMAE(M)'!AJ320","v":4.2880710719046462},{"$f":"'[2]REAL IMAE(M)'!AK320","v":5.3005239015871117},{"$f":"'[2]REAL IMAE(M)'!AL320","v":6.1637524400269461},{"$f":"'[2]REAL IMAE(M)'!AM320","v":4.6070398961102459},null,null,{"$f":"'[2]EXT ITCER(M)'!C320","v":73.100765128596407},{"$f":"'[2]EXT ITCER(M)'!D320","v":91.009550368847613},{"$f":"'[2]EXT ITCER(M)'!E320","v":57.778023556298571},{"$f":"'[2]EXT ITCER(M)'!F320","v":76.649679684633},{"$f":"'[2]EXT ITCER(M)'!G320","v":99.0125405326596},{"$f":"'[2]EXT ITCER(M)'!H320","v":101.2578508480192},{"$f":"'[2]EXT ITCER(M)'!I320","v":88.244769594149219},null,null,{"$f":"'[2]EXT TC(M)'!J320","v":-0.78058792497471963},{"$f":"'[2]EXT TC(M)'!K320","v":0},{"$f":"'[2]EXT TC(M)'!L320","v":0.29567820530694811},{"$f":"'[2]EXT TC(M)'!M320","v":3.7017864663268569},{"$f":"'[2]EXT TC(M)'!N320","v":5.1803441903773892},{"$f":"'[2]EXT TC(M)'!O320","v":2.9665973854873071},{"$f":"'[2]EXT TC(M)'!P320","v":0},null,null,{"$f":"'[2]EXT RIN(M)'!C320","v":7895.1279943199997},{"$f":"'[2]EXT RIN(M)'!D320","v":2714.4},{"$f":"'[2]EXT RIN(M)'!E320","v":7421.7},{"$f":"'[2]EXT RIN(M)'!F320","v":3543.4519604293264},{"$f":"'[2]EXT RIN(M)'!G320","v":2328.6999999999998},{"$f":"'[2]EXT RIN(M)'!H320","v":4875.8326268282563},{"$f":"'[2]EXT RIN(M)'!I320","v":3603.1309214500002},null,null,{"$f":"'[2]EXT RIN(M)'!P320","v":67.900323711987767},{"$f":"'[2]EXT RIN(M)'!Q320","v":95.527212093356539},{"$f":"'[2]EXT RIN(M)'!R320","v":97.57769355080282},{"$f":"'[2]EXT RIN(M)'!S320","v":85.947248947707749},{"$f":"'[2]EXT RIN(M)'!T320","v":125.58313735891318},{"$f":"'[2]EXT RIN(M)'!U320","v":78.783908521375324},{"$f":"'[2]EXT RIN(M)'!V320","v":254.64428777005352},null,null,{"$f":"+'[2]MONE(M)CAPARD'!AE320","v":7.2915474052764058},{"$f":"'[2]MONE(M)CAPARD'!AF320","v":4.1364531574668071},{"$f":"'[2]MONE(M)CAPARD'!AG320","v":2.9138742159128337},{"$f":"'[2]MONE(M)CAPARD'!AH320","v":7.1478715980460441},{"$f":"'[2]MONE(M)CAPARD'!AI320","v":6.8963844128067571},{"$f":"'[2]MONE(M)CAPARD'!AJ320","v":6.9844996275142099},{"$f":"'[2]MONE(M)CAPARD'!AK320","v":2.04},null,null,{"$f":"'[2]MONE(M)CAPARD'!AL320","v":1.855},{"$f":"'[2]MONE(M)CAPARD'!AM320","v":4.41},{"$f":"'[2]MONE(M)CAPARD'!AN320","v":2.98},{"$f":"'[2]MONE(M)CAPARD'!AO320","v":3.9},{"$f":"'[2]MONE(M)CAPARD'!AP320","v":3.43},{"$f":"'[2]MONE(M)CAPARD'!AQ320","v":1.64},{"$f":"'[2]MONE(M)CAPARD'!AR320","v":2.04},null,null,{"$f":"'[2]MONE(M)CAPARD'!J320","v":16.664375037095837},{"$f":"'[2]MONE(M)CAPARD'!K320","v":5.5826542596440589},{"$f":"'[2]MONE(M)CAPARD'!L320","v":10.347084846483977},{"$f":"'[2]MONE(M)CAPARD'!M320","v":17.656981856245622},{"$f":"'[2]MONE(M)CAPARD'!N320","v":14.837553346512596},{"$f":"'[2]MONE(M)CAPARD'!O320","v":13.9966476285075},{"$f":"'[2]MONE(M)CAPARD'!P320","v":6.1},null,null,{"$f":"'[2]MONE(M)CAPARD'!Q320","v":9.74},{"$f":"'[2]MONE(M)CAPARD'!R320","v":5.86},{"$f":"'[2]MONE(M)CAPARD'!S320","v":5.91},{"$f":"'[2]MONE(M)CAPARD'!T320","v":8.51},{"$f":"'[2]MONE(M)CAPARD'!U320","v":8.6},{"$f":"'[2]MONE(M)CAPARD'!V320","v":5.94},{"$f":"'[2]MONE(M)CAPARD'!W320","v":6.1},null,null,{"$f":"'[2]MONE(M)CAPARD'!AS320","v":2.25},{"$f":"'[2]MONE(M)CAPARD'!AT320","v":"n.a."},{"$f":"'[2]MONE(M)CAPARD'!AU320","v":3},{"$f":"'[2]MONE(M)CAPARD'!AV320","v":6.25},{"$f":"'[2]MONE(M)CAPARD'!AW320","v":"n.a."},{"$f":"'[2]MONE(M)CAPARD'!AX320","v":5},{"$f":"'[2]MONE(M)CAPARD'!AY320","v":"n.a."},null,null,{"$f":"+'Datos_Regional (M)'!CF313","v":11.548009305617635},{"$f":"+'Datos_Regional (M)'!CG313","v":4.2788381362054873},{"$f":"+'Datos_Regional (M)'!CH313","v":11.858566848849094},{"$f":"+'Datos_Regional (M)'!CI313","v":10.118669378458932},{"$f":"+'Datos_Regional (M)'!CJ313","v":23.165517232638532},{"$f":"+'Datos_Regional (M)'!CK313","v":17.894825689489615},{"$f":"+'Datos_Regional (M)'!CL313","v":12.369504045443591},null,null,768.45209581666677,460.91583333333324,898.47499999999991,334.07336990891679,412.26507599071641,800.69166666666661,1017.5868812500001,3674.8730417163001,4692.4599229663008,null,null,1232.6527759691664,859.18083333333334,1480.3916666666667,784.80800315262616,589.82525821749994,1407.1666666666667,1891.1332082500005,6354.0252040059568,8245.1584122559561,null,null,-2679.1521622896594,-3552.6984892896603,null,null,{"$f":"'[2]EXT Comercio(M)'!C320","v":778.13533018000044},{"$f":"'[2]EXT Comercio(M)'!D320","v":408.75},{"$f":"'[2]EXT Comercio(M)'!E320","v":786.4},{"$f":"'[2]EXT Comercio(M)'!F320","v":258.66123941365538},{"$f":"'[2]EXT Comercio(M)'!G320","v":370.05149977999997},{"$f":"'[2]EXT Comercio(M)'!H320","v":747.8},{"$f":"'[2]EXT Comercio(M)'!I320","v":1005.695921},{"$f":"'[2]EXT Comercio(M)'!K320","v":3349.7980693736536},{"$f":"'[2]EXT Comercio(M)'!L320","v":4355.4939903736595},null,null,{"$f":"'[2]EXT Comercio(M)'!AG320","v":1320.6056978799988},{"$f":"'[2]EXT Comercio(M)'!AH320","v":852.38000000000102},{"$f":"'[2]EXT Comercio(M)'!AI320","v":1462.1000000000001},{"$f":"'[2]EXT Comercio(M)'!AJ320","v":742.70828919566816},{"$f":"'[2]EXT Comercio(M)'!AK320","v":681.47240166999995},{"$f":"'[2]EXT Comercio(M)'!AL320","v":1432},{"$f":"'[2]EXT Comercio(M)'!AM320","v":1687.4920979999999},{"$f":"'[2]EXT Comercio(M)'!AO320","v":6491.2663887456656},{"$f":"'[2]EXT Comercio(M)'!AP320","v":8178.7584867456608},null,null,{"$f":"'[2]EXT Comercio(M)'!$BS320","v":-3141.468319372012},{"$f":"'[2]EXT Comercio(M)'!$BT320","v":-3823.2644963720086}]
[null,null,"Diciembre ",{"$f":"'[2]REAL IPC(M)'!AD321","v":-0.80758133239945784},{"$f":"'[2]REAL IPC(M)'!AE321","v":1.0136986301369859},{"$f":"'[2]REAL IPC(M)'!AF321","v":3.066237506352703},{"$f":"'[2]REAL IPC(M)'!AG321","v":2.3571428571428652},{"$f":"'[2]REAL IPC(M)'!AH321","v":3.0522004919302783},{"$f":"'[2]REAL IPC(M)'!AI321","v":2.3444773592891033},{"$f":"'[2]REAL IPC(M)'!AJ321","v":0.25954604670277082},null,null,{"$f":"'[2]REAL IMAE(M)'!AG321","v":4.8981889022166456},{"$f":"'[2]REAL IMAE(M)'!AH321","v":2.3905025880231898},{"$f":"'[2]REAL IMAE(M)'!AI321","v":2.8145691082280853},{"$f":"'[2]REAL IMAE(M)'!AJ321","v":4.0548844022391419},{"$f":"'[2]REAL IMAE(M)'!AK321","v":4.7951204585485412},{"$f":"'[2]REAL IMAE(M)'!AL321","v":5.8420741576191526},{"$f":"'[2]REAL IMAE(M)'!AM321","v":3.6514280761753932},null,null,{"$f":"'[2]EXT ITCER(M)'!C321","v":72.998922579020558},{"$f":"'[2]EXT ITCER(M)'!D321","v":90.977417679460231},{"$f":"'[2]EXT ITCER(M)'!E321","v":57.269209454236069},{"$f":"'[2]EXT ITCER(M)'!F321","v":77.070029297075564},{"$f":"'[2]EXT ITCER(M)'!G321","v":98.204314673857667},{"$f":"'[2]EXT ITCER(M)'!H321","v":101.3010459072102},{"$f":"'[2]EXT ITCER(M)'!I321","v":88.235857490912352},null,null,{"$f":"'[2]EXT TC(M)'!J321","v":-0.2356701057315925},{"$f":"'[2]EXT TC(M)'!K321","v":0},{"$f":"'[2]EXT TC(M)'!L321","v":-0.12315707982340751},{"$f":"'[2]EXT TC(M)'!M321","v":3.7961426664371767},{"$f":"'[2]EXT TC(M)'!N321","v":5.2408433510006649},{"$f":"'[2]EXT TC(M)'!O321","v":2.9347469049803414},{"$f":"'[2]EXT TC(M)'!P321","v":0},null,null,{"$f":"'[2]EXT RIN(M)'!C321","v":7834.0881326400004},{"$f":"'[2]EXT RIN(M)'!D321","v":2670.2},{"$f":"'[2]EXT RIN(M)'!E321","v":7751.2},{"$f":"'[2]EXT RIN(M)'!F321","v":3822.2649997223657},{"$f":"'[2]EXT RIN(M)'!G321","v":2401.1999999999998},{"$f":"'[2]EXT RIN(M)'!H321","v":5195.054100524937},{"$f":"'[2]EXT RIN(M)'!I321","v":3896.1141070399995},null,null,{"$f":"'[2]EXT RIN(M)'!P321","v":67.059877439721845},{"$f":"'[2]EXT RIN(M)'!Q321","v":94.548065769365323},{"$f":"'[2]EXT RIN(M)'!R321","v":94.657959325991925},{"$f":"'[2]EXT RIN(M)'!S321","v":87.398820775023395},{"$f":"'[2]EXT RIN(M)'!T321","v":119.70372807580168},{"$f":"'[2]EXT RIN(M)'!U321","v":76.938277147091355},{"$f":"'[2]EXT RIN(M)'!V321","v":256.18303271039099},null,null,{"$f":"+'[2]MONE(M)CAPARD'!AE321","v":6.8125986070009024},{"$f":"'[2]MONE(M)CAPARD'!AF321","v":3.4711147274206673},{"$f":"'[2]MONE(M)CAPARD'!AG321","v":2.2934401709401695},{"$f":"'[2]MONE(M)CAPARD'!AH321","v":6.4312630844382337},{"$f":"'[2]MONE(M)CAPARD'!AI321","v":5.218171360665691},{"$f":"'[2]MONE(M)CAPARD'!AJ321","v":5.8874917300694003},{"$f":"'[2]MONE(M)CAPARD'!AK321","v":1.8356894937863686},null,null,{"$f":"'[2]MONE(M)CAPARD'!AL321","v":1.885},{"$f":"'[2]MONE(M)CAPARD'!AM321","v":4.5199999999999996},{"$f":"'[2]MONE(M)CAPARD'!AN321","v":2.98},{"$f":"'[2]MONE(M)CAPARD'!AO321","v":3.95},{"$f":"'[2]MONE(M)CAPARD'!AP321","v":3.38},{"$f":"'[2]MONE(M)CAPARD'!AQ321","v":1.38},{"$f":"'[2]MONE(M)CAPARD'!AR321","v":2.1},null,null,{"$f":"'[2]MONE(M)CAPARD'!J321","v":16.400024871772764},{"$f":"'[2]MONE(M)CAPARD'!K321","v":4.6194738269595881},{"$f":"'[2]MONE(M)CAPARD'!L321","v":9.6964464168310318},{"$f":"'[2]MONE(M)CAPARD'!M321","v":17.256106071179335},{"$f":"'[2]MONE(M)CAPARD'!N321","v":13.939545556725903},{"$f":"'[2]MONE(M)CAPARD'!O321","v":14.007128680119015},{"$f":"'[2]MONE(M)CAPARD'!P321","v":5.8452827529932359},null,null,{"$f":"'[2]MONE(M)CAPARD'!Q321","v":9.61},{"$f":"'[2]MONE(M)CAPARD'!R321","v":5.68},{"$f":"'[2]MONE(M)CAPARD'!S321","v":5.91},{"$f":"'[2]MONE(M)CAPARD'!T321","v":8.32},{"$f":"'[2]MONE(M)CAPARD'!U321","v":10.4},{"$f":"'[2]MONE(M)CAPARD'!V321","v":6.19},{"$f":"'[2]MONE(M)CAPARD'!W321","v":6.12},null,null,{"$f":"'[2]MONE(M)CAPARD'!AS321","v":2.25},{"$f":"'[2]MONE(M)CAPARD'!AT321","v":"n.a."},{"$f":"'[2]MONE(M)CAPARD'!AU321","v":3},{"$f":"'[2]MONE(M)CAPARD'!AV321","v":6.25},{"$f":"'[2]MONE(M)CAPARD'!AW321","v":"n.a."},{"$f":"'[2]MONE(M)CAPARD'!AX321","v":5},{"$f":"'[2]MONE(M)CAPARD'!AY321","v":"n.a."},null,null,{"$f":"+'Datos_Regional (M)'!CF314","v":11.97673529527985},{"$f":"+'Datos_Regional (M)'!CG314","v":4.7488799151071737},{"$f":"+'Datos_Regional (M)'!CH314","v":11.741019128034402},{"$f":"+'Datos_Regional (M)'!CI314","v":10.028387699980135},{"$f":"+'Datos_Regional (M)'!CJ314","v":23.59842699712118},{"$f":"+'Datos_Regional (M)'!CK314","v":14.817842982799112},{"$f":"+'Datos_Regional (M)'!CL314","v":11.347416905052254},null,null,772.8976045116666,459.08666666666659,889.56666666666661,329.92671436931442,409.64443767904964,786.81666666666661,1023.3885624999999,3641.8866742650303,4665.275236765031,null,null,1234.0477072283331,857.78249999999991,1470.075,785.35728008840499,588.31974109499981,1408.8749999999998,1875.7976124166669,6339.2541594009044,8215.0517718175706,null,null,-2697.3674851358742,-3549.7765350525406,null,null,{"$f":"'[2]EXT Comercio(M)'!C321","v":797.71694187000003},{"$f":"'[2]EXT Comercio(M)'!D321","v":383.1299999999992},{"$f":"'[2]EXT Comercio(M)'!E321","v":813.19999999999993},{"$f":"'[2]EXT Comercio(M)'!F321","v":312.94247490843611},{"$f":"'[2]EXT Comercio(M)'!G321","v":362.47934558999998},{"$f":"'[2]EXT Comercio(M)'!H321","v":664.8},{"$f":"'[2]EXT Comercio(M)'!I321","v":915.63742499999989},{"$f":"'[2]EXT Comercio(M)'!K321","v":3261.643774828437},{"$f":"'[2]EXT Comercio(M)'!L321","v":4177.2811998284305},null,null,{"$f":"'[2]EXT Comercio(M)'!AG321","v":1275.7},{"$f":"'[2]EXT Comercio(M)'!AH321","v":804.53999999999905},{"$f":"'[2]EXT Comercio(M)'!AI321","v":1389.4},{"$f":"'[2]EXT Comercio(M)'!AJ321","v":777.29238819550039},{"$f":"'[2]EXT Comercio(M)'!AK321","v":569.13475048999999},{"$f":"'[2]EXT Comercio(M)'!AL321","v":1418.6},{"$f":"'[2]EXT Comercio(M)'!AM321","v":1674.2266529999999},{"$f":"'[2]EXT Comercio(M)'!AO321","v":6172.2303105554893},{"$f":"'[2]EXT Comercio(M)'!AP321","v":7846.4569635554944},null,null,{"$f":"'[2]EXT Comercio(M)'!$BS321","v":-2910.5865357270632},{"$f":"'[2]EXT Comercio(M)'!$BT321","v":-3669.1757637270639}]
[null,2016,"Enero",{"$f":"'[2]REAL IPC(M)'!AD322","v":-0.17270016448184974},{"$f":"'[2]REAL IPC(M)'!AE322","v":1.8216947281258662},{"$f":"'[2]REAL IPC(M)'!AF322","v":4.3777626657599313},{"$f":"'[2]REAL IPC(M)'!AG322","v":3.0835424883470863},{"$f":"'[2]REAL IPC(M)'!AH322","v":3.191793097632492},{"$f":"'[2]REAL IPC(M)'!AI322","v":2.5269227507844021},{"$f":"'[2]REAL IPC(M)'!AJ322","v":0.29325513196480663},null,null,{"$f":"'[2]REAL IMAE(M)'!AG322","v":5.1629211086775051},{"$f":"'[2]REAL IMAE(M)'!AH322","v":0.95172011353114894},{"$f":"'[2]REAL IMAE(M)'!AI322","v":2.2031084143468367},{"$f":"'[2]REAL IMAE(M)'!AJ322","v":3.8381604547162911},{"$f":"'[2]REAL IMAE(M)'!AK322","v":4.504359414113682},{"$f":"'[2]REAL IMAE(M)'!AL322","v":5.8715035076392406},{"$f":"'[2]REAL IMAE(M)'!AM322","v":2.715586984528823},null,null,{"$f":"'[2]EXT ITCER(M)'!C322","v":72.748463686798473},{"$f":"'[2]EXT ITCER(M)'!D322","v":90.886408659716693},{"$f":"'[2]EXT ITCER(M)'!E322","v":56.980569570298883},{"$f":"'[2]EXT ITCER(M)'!F322","v":77.359647780920909},{"$f":"'[2]EXT ITCER(M)'!G322","v":98.956279229162831},{"$f":"'[2]EXT ITCER(M)'!H322","v":101.45552599513169},{"$f":"'[2]EXT ITCER(M)'!I322","v":88.109445894993854},null,null,{"$f":"'[2]EXT TC(M)'!J322","v":-0.26929508052452106},{"$f":"'[2]EXT TC(M)'!K322","v":0},{"$f":"'[2]EXT TC(M)'!L322","v":8.8641671288882382E-2},{"$f":"'[2]EXT TC(M)'!M322","v":3.9281957314064089},{"$f":"'[2]EXT TC(M)'!N322","v":5.2841192468076876},{"$f":"'[2]EXT TC(M)'!O322","v":2.3910144099607953},{"$f":"'[2]EXT TC(M)'!P322","v":0},null,null,{"$f":"'[2]EXT RIN(M)'!C322","v":7786.8334580000001},{"$f":"'[2]EXT RIN(M)'!D322","v":2788.3},{"$f":"'[2]EXT RIN(M)'!E322","v":7680.4},{"$f":"'[2]EXT RIN(M)'!F322","v":3737.2183544755526},{"$f":"'[2]EXT RIN(M)'!G322","v":2351.8000000000002},{"$f":"'[2]EXT RIN(M)'!H322","v":5637.939475887707},{"$f":"'[2]EXT RIN(M)'!I322","v":3806.0830365599995},null,null,{"$f":"'[2]EXT RIN(M)'!P322","v":67.663062410310687},{"$f":"'[2]EXT RIN(M)'!Q322","v":97.058348486915918},{"$f":"'[2]EXT RIN(M)'!R322","v":97.294785672873616},{"$f":"'[2]EXT RIN(M)'!S322","v":88.262895877801526},{"$f":"'[2]EXT RIN(M)'!T322","v":118.80350245759277},{"$f":"'[2]EXT RIN(M)'!U322","v":83.359723661614098},{"$f":"'[2]EXT RIN(M)'!V322","v":242.69706475062924},null,null,{"$f":"+'[2]MONE(M)CAPARD'!AE322","v":6.1332923704938453},{"$f":"'[2]MONE(M)CAPARD'!AF322","v":2.4830712930333387},{"$f":"'[2]MONE(M)CAPARD'!AG322","v":1.0751689877025954},{"$f":"'[2]MONE(M)CAPARD'!AH322","v":5.9043930434782519},{"$f":"'[2]MONE(M)CAPARD'!AI322","v":5.996483055606471},{"$f":"'[2]MONE(M)CAPARD'!AJ322","v":4.6164237862872808},{"$f":"'[2]MONE(M)CAPARD'!AK322","v":1.7017543859649149},null,null,{"$f":"'[2]MONE(M)CAPARD'!AL322","v":2.8491396400000002},{"$f":"'[2]MONE(M)CAPARD'!AM322","v":4.3499999999999996},{"$f":"'[2]MONE(M)CAPARD'!AN322","v":2.95},{"$f":"'[2]MONE(M)CAPARD'!AO322","v":3.94},{"$f":"'[2]MONE(M)CAPARD'!AP322","v":3.25},{"$f":"'[2]MONE(M)CAPARD'!AQ322","v":1.65},{"$f":"'[2]MONE(M)CAPARD'!AR322","v":2},null,null,{"$f":"'[2]MONE(M)CAPARD'!J322","v":15.830038667297815},{"$f":"'[2]MONE(M)CAPARD'!K322","v":3.9464136622390855},{"$f":"'[2]MONE(M)CAPARD'!L322","v":8.3372522192361096},{"$f":"'[2]MONE(M)CAPARD'!M322","v":16.420135652173908},{"$f":"'[2]MONE(M)CAPARD'!N322","v":15.995188743785734},{"$f":"'[2]MONE(M)CAPARD'!O322","v":12.448512943511659},{"$f":"'[2]MONE(M)CAPARD'!P322","v":5.7598538011695934},null,null,{"$f":"'[2]MONE(M)CAPARD'!Q322","v":9.68},{"$f":"'[2]MONE(M)CAPARD'!R322","v":5.84},{"$f":"'[2]MONE(M)CAPARD'!S322","v":5.94},{"$f":"'[2]MONE(M)CAPARD'!T322","v":8.3800000000000008},{"$f":"'[2]MONE(M)CAPARD'!U322","v":8.8699999999999992},{"$f":"'[2]MONE(M)CAPARD'!V322","v":6.81},{"$f":"'[2]MONE(M)CAPARD'!W322","v":6.07},null,null,{"$f":"'[2]MONE(M)CAPARD'!AS322","v":1.75},{"$f":"'[2]MONE(M)CAPARD'!AT322","v":"n.a."},{"$f":"'[2]MONE(M)CAPARD'!AU322","v":3},{"$f":"'[2]MONE(M)CAPARD'!AV322","v":6.25},{"$f":"'[2]MONE(M)CAPARD'!AW322","v":"n.a."},{"$f":"'[2]MONE(M)CAPARD'!AX322","v":5},{"$f":"'[2]MONE(M)CAPARD'!AY322","v":"n.a."},null,null,{"$f":"+'Datos_Regional (M)'!CF315","v":11.913374343706051},{"$f":"+'Datos_Regional (M)'!CG315","v":4.8618772043049541},{"$f":"+'Datos_Regional (M)'!CH315","v":11.348238137245549},{"$f":"+'Datos_Regional (M)'!CI315","v":10.438332848158582},{"$f":"+'Datos_Regional (M)'!CJ315","v":22.583773193591085},{"$f":"+'Datos_Regional (M)'!CK315","v":17.883311252565726},{"$f":"+'Datos_Regional (M)'!CL315","v":11.300782488327087},null,null,773.42369901000018,457.83333333333326,885.7833333333333,352.73288936856147,407.86626566129968,781.1,988.52802933333339,3652.6874384115276,4641.2154677448607,null,null,1235.7620442675,851.68833333333339,1463.05,794.38840685885589,588.77549156833322,1398.3083333333334,1816.6452306666667,6326.7695403505213,8143.4147710171892,null,null,-2674.0821019389946,-3502.1993032723276,null,null,{"$f":"'[2]EXT Comercio(M)'!C322","v":708.73641709999993},{"$f":"'[2]EXT Comercio(M)'!D322","v":410.62},{"$f":"'[2]EXT Comercio(M)'!E322","v":833.8},{"$f":"'[2]EXT Comercio(M)'!F322","v":604.33934034157608},{"$f":"'[2]EXT Comercio(M)'!G322","v":371.03338498200003},{"$f":"'[2]EXT Comercio(M)'!H322","v":623.09999999999991},{"$f":"'[2]EXT Comercio(M)'!I322","v":678.85440300000005},{"$f":"'[2]EXT Comercio(M)'!K322","v":3551.6291424235756},{"$f":"'[2]EXT Comercio(M)'!L322","v":4230.4835454235754},null,null,{"$f":"'[2]EXT Comercio(M)'!AG322","v":1162.60721571},{"$f":"'[2]EXT Comercio(M)'!AH322","v":784.10000000000014},{"$f":"'[2]EXT Comercio(M)'!AI322","v":1274.5999999999999},{"$f":"'[2]EXT Comercio(M)'!AJ322","v":840.80450485129177},{"$f":"'[2]EXT Comercio(M)'!AK322","v":516.83424398},{"$f":"'[2]EXT Comercio(M)'!AL322","v":1131.3},{"$f":"'[2]EXT Comercio(M)'!AM322","v":1400.7206740000001},{"$f":"'[2]EXT Comercio(M)'!AO322","v":5710.2459645412919},{"$f":"'[2]EXT Comercio(M)'!AP322","v":7110.966638541292},null,null,{"$f":"'[2]EXT Comercio(M)'!$BS322","v":-2158.6168221177159},{"$f":"'[2]EXT Comercio(M)'!$BT322","v":-2880.4830931177157}]
[null,null,"Febrero",{"$f":"'[2]REAL IPC(M)'!AD323","v":-3.233718437322243E-2},{"$f":"'[2]REAL IPC(M)'!AE323","v":1.6672807663964648},{"$f":"'[2]REAL IPC(M)'!AF323","v":4.2708245063977603},{"$f":"'[2]REAL IPC(M)'!AG323","v":2.921268257926608},{"$f":"'[2]REAL IPC(M)'!AH323","v":3.4037852986557207},{"$f":"'[2]REAL IPC(M)'!AI323","v":1.7432512482018083},{"$f":"'[2]REAL IPC(M)'!AJ323","v":1.1822660098522195},null,null,{"$f":"'[2]REAL IMAE(M)'!AG323","v":5.0506186795944794},{"$f":"'[2]REAL IMAE(M)'!AH323","v":0.42979520092641432},{"$f":"'[2]REAL IMAE(M)'!AI323","v":2.106675332082367},{"$f":"'[2]REAL IMAE(M)'!AJ323","v":3.5332796481990529},{"$f":"'[2]REAL IMAE(M)'!AK323","v":4.604528360330554},{"$f":"'[2]REAL IMAE(M)'!AL323","v":6.1737702551044347},{"$f":"'[2]REAL IMAE(M)'!AM323","v":1.8009221061863554},null,null,{"$f":"'[2]EXT ITCER(M)'!C323","v":72.713511467545359},{"$f":"'[2]EXT ITCER(M)'!D323","v":91.01227182776185},{"$f":"'[2]EXT ITCER(M)'!E323","v":56.895487372176277},{"$f":"'[2]EXT ITCER(M)'!F323","v":77.33667986895567},{"$f":"'[2]EXT ITCER(M)'!G323","v":98.368736379598317},{"$f":"'[2]EXT ITCER(M)'!H323","v":102.20052831317329},{"$f":"'[2]EXT ITCER(M)'!I323","v":87.906609981915381},null,null,{"$f":"'[2]EXT TC(M)'!J323","v":-9.2530045935107913E-2},{"$f":"'[2]EXT TC(M)'!K323","v":0},{"$f":"'[2]EXT TC(M)'!L323","v":0.26140740488257735},{"$f":"'[2]EXT TC(M)'!M323","v":3.7291043545787996},{"$f":"'[2]EXT TC(M)'!N323","v":5.4913315783649903},{"$f":"'[2]EXT TC(M)'!O323","v":2.0418424628146421},{"$f":"'[2]EXT TC(M)'!P323","v":0},null,null,{"$f":"'[2]EXT RIN(M)'!C323","v":7784.1073550000001},{"$f":"'[2]EXT RIN(M)'!D323","v":2740.1},{"$f":"'[2]EXT RIN(M)'!E323","v":7636},{"$f":"'[2]EXT RIN(M)'!F323","v":3775.0887417362956},{"$f":"'[2]EXT RIN(M)'!G323","v":2315.13},{"$f":"'[2]EXT RIN(M)'!H323","v":5065.1244855519062},{"$f":"'[2]EXT RIN(M)'!I323","v":3578.4801332400002},null,null,{"$f":"'[2]EXT RIN(M)'!P323","v":66.481469159834887},{"$f":"'[2]EXT RIN(M)'!Q323","v":97.177452674711773},{"$f":"'[2]EXT RIN(M)'!R323","v":96.438745441925988},{"$f":"'[2]EXT RIN(M)'!S323","v":87.982659207650954},{"$f":"'[2]EXT RIN(M)'!T323","v":114.08762107074031},{"$f":"'[2]EXT RIN(M)'!U323","v":78.594292287887285},{"$f":"'[2]EXT RIN(M)'!V323","v":226.39144267049446},null,null,{"$f":"+'[2]MONE(M)CAPARD'!AE323","v":5.7341914604380984},{"$f":"'[2]MONE(M)CAPARD'!AF323","v":2.6092162725378256},{"$f":"'[2]MONE(M)CAPARD'!AG323","v":1.1788297440065041},{"$f":"'[2]MONE(M)CAPARD'!AH323","v":5.7993181031498846},{"$f":"'[2]MONE(M)CAPARD'!AI323","v":6.5178600404706755},{"$f":"'[2]MONE(M)CAPARD'!AJ323","v":5.3927397488147051},{"$f":"'[2]MONE(M)CAPARD'!AK323","v":0.87736124634858514},null,null,{"$f":"'[2]MONE(M)CAPARD'!AL323","v":2.9509443700000002},{"$f":"'[2]MONE(M)CAPARD'!AM323","v":4.32},{"$f":"'[2]MONE(M)CAPARD'!AN323","v":2.95},{"$f":"'[2]MONE(M)CAPARD'!AO323","v":3.91},{"$f":"'[2]MONE(M)CAPARD'!AP323","v":3.82},{"$f":"'[2]MONE(M)CAPARD'!AQ323","v":1.69},{"$f":"'[2]MONE(M)CAPARD'!AR323","v":2.0699999999999998},null,null,{"$f":"'[2]MONE(M)CAPARD'!J323","v":15.377309773386283},{"$f":"'[2]MONE(M)CAPARD'!K323","v":4.0452731720576223},{"$f":"'[2]MONE(M)CAPARD'!L323","v":8.4387704185290566},{"$f":"'[2]MONE(M)CAPARD'!M323","v":16.35107303565248},{"$f":"'[2]MONE(M)CAPARD'!N323","v":13.965234605123817},{"$f":"'[2]MONE(M)CAPARD'!O323","v":13.835560176328631},{"$f":"'[2]MONE(M)CAPARD'!P323","v":4.8800389483933753},null,null,{"$f":"'[2]MONE(M)CAPARD'!Q323","v":9.67},{"$f":"'[2]MONE(M)CAPARD'!R323","v":5.78},{"$f":"'[2]MONE(M)CAPARD'!S323","v":5.94},{"$f":"'[2]MONE(M)CAPARD'!T323","v":8.35},{"$f":"'[2]MONE(M)CAPARD'!U323","v":7.82},{"$f":"'[2]MONE(M)CAPARD'!V323","v":6.01},{"$f":"'[2]MONE(M)CAPARD'!W323","v":6.12},null,null,{"$f":"'[2]MONE(M)CAPARD'!AS323","v":1.75},{"$f":"'[2]MONE(M)CAPARD'!AT323","v":"n.a."},{"$f":"'[2]MONE(M)CAPARD'!AU323","v":3},{"$f":"'[2]MONE(M)CAPARD'!AV323","v":6.25},{"$f":"'[2]MONE(M)CAPARD'!AW323","v":"n.a."},{"$f":"'[2]MONE(M)CAPARD'!AX323","v":5},{"$f":"'[2]MONE(M)CAPARD'!AY323","v":"n.a."},null,null,{"$f":"+'Datos_Regional (M)'!CF316","v":11.990270053911578},{"$f":"+'Datos_Regional (M)'!CG316","v":4.446895710081078},{"$f":"+'Datos_Regional (M)'!CH316","v":11.160108428929227},{"$f":"+'Datos_Regional (M)'!CI316","v":10.848352549690032},{"$f":"+'Datos_Regional (M)'!CJ316","v":22.27745390254201},{"$f":"+'Datos_Regional (M)'!CK316","v":18.55973594840663},{"$f":"+'Datos_Regional (M)'!CL316","v":10.853095309305449},null,null,781.55206558000009,452.55666666666662,882.20833333333337,379.07758054466967,409.60368294879999,785.81666666666672,979.18988725000008,3684.7629134451363,4663.9528006951359,null,null,1236.2390954391667,847.51166666666677,1460.9833333333333,800.79242568031123,588.12587229333315,1402.6333333333332,1805.5514471666668,6331.08265773531,8136.6341049019766,null,null,-2646.3197442901751,-3472.6813042068411,null,null,{"$f":"'[2]EXT Comercio(M)'!C323","v":842.67305753999995},{"$f":"'[2]EXT Comercio(M)'!D323","v":417.09000000000003},{"$f":"'[2]EXT Comercio(M)'!E323","v":842.2},{"$f":"'[2]EXT Comercio(M)'!F323","v":696.78062608901416},{"$f":"'[2]EXT Comercio(M)'!G323","v":409.45481580000001},{"$f":"'[2]EXT Comercio(M)'!H323","v":806.5},{"$f":"'[2]EXT Comercio(M)'!I323","v":728.80103399999996},{"$f":"'[2]EXT Comercio(M)'!K323","v":4014.6984994290156},{"$f":"'[2]EXT Comercio(M)'!L323","v":4743.4995334290152},null,null,{"$f":"'[2]EXT Comercio(M)'!AG323","v":1142.9267255100001},{"$f":"'[2]EXT Comercio(M)'!AH323","v":756.8599999999999},{"$f":"'[2]EXT Comercio(M)'!AI323","v":1269},{"$f":"'[2]EXT Comercio(M)'!AJ323","v":877.21723177136482},{"$f":"'[2]EXT Comercio(M)'!AK323","v":551.41414503999999},{"$f":"'[2]EXT Comercio(M)'!AL323","v":1267.2999999999997},{"$f":"'[2]EXT Comercio(M)'!AM323","v":1466.794778},{"$f":"'[2]EXT Comercio(M)'!AO323","v":5864.7181023213661},{"$f":"'[2]EXT Comercio(M)'!AP323","v":7331.5128803213656},null,null,{"$f":"'[2]EXT Comercio(M)'!$BS323","v":-1850.0196028923501},{"$f":"'[2]EXT Comercio(M)'!$BT323","v":-2588.0133468923505}]
[null,null,"Marzo",{"$f":"'[2]REAL IPC(M)'!AD324","v":-1.0860925989431325},{"$f":"'[2]REAL IPC(M)'!AE324","v":1.1182401466544445},{"$f":"'[2]REAL IPC(M)'!AF324","v":4.2617960426179584},{"$f":"'[2]REAL IPC(M)'!AG324","v":2.4769992922859161},{"$f":"'[2]REAL IPC(M)'!AH324","v":3.6579044731442725},{"$f":"'[2]REAL IPC(M)'!AI324","v":1.5886428933581953},{"$f":"'[2]REAL IPC(M)'!AJ324","v":0.58593749999999445},null,null,{"$f":"'[2]REAL IMAE(M)'!AG324","v":4.5822709434233202},{"$f":"'[2]REAL IMAE(M)'!AH324","v":1.3988641495564784},{"$f":"'[2]REAL IMAE(M)'!AI324","v":2.4398489333728319},{"$f":"'[2]REAL IMAE(M)'!AJ324","v":3.2710046154564174},{"$f":"'[2]REAL IMAE(M)'!AK324","v":5.0238129024203948},{"$f":"'[2]REAL IMAE(M)'!AL324","v":6.5472390333639758},{"$f":"'[2]REAL IMAE(M)'!AM324","v":1.1260497993542868},null,null,{"$f":"'[2]EXT ITCER(M)'!C324","v":73.431021679788415},{"$f":"'[2]EXT ITCER(M)'!D324","v":91.338955279756817},{"$f":"'[2]EXT ITCER(M)'!E324","v":57.349789339492453},{"$f":"'[2]EXT ITCER(M)'!F324","v":77.523832245478047},{"$f":"'[2]EXT ITCER(M)'!G324","v":98.211276346958911},{"$f":"'[2]EXT ITCER(M)'!H324","v":102.64776517963899},{"$f":"'[2]EXT ITCER(M)'!I324","v":87.925337993294193},null,null,{"$f":"'[2]EXT TC(M)'!J324","v":0.32307450469961324},{"$f":"'[2]EXT TC(M)'!K324","v":0},{"$f":"'[2]EXT TC(M)'!L324","v":1.1622438255386238},{"$f":"'[2]EXT TC(M)'!M324","v":3.6191416831946612},{"$f":"'[2]EXT TC(M)'!N324","v":5.3412644991944234},{"$f":"'[2]EXT TC(M)'!O324","v":2.3700757779330495},{"$f":"'[2]EXT TC(M)'!P324","v":0},null,null,{"$f":"'[2]EXT RIN(M)'!C324","v":7811.9661759999999},{"$f":"'[2]EXT RIN(M)'!D324","v":2807.3},{"$f":"'[2]EXT RIN(M)'!E324","v":7586.1},{"$f":"'[2]EXT RIN(M)'!F324","v":3825.1130705644573},{"$f":"'[2]EXT RIN(M)'!G324","v":2394.5},{"$f":"'[2]EXT RIN(M)'!H324","v":5134.0711943492624},{"$f":"'[2]EXT RIN(M)'!I324","v":4699.0868548400003},null,null,{"$f":"'[2]EXT RIN(M)'!P324","v":67.362700721068052},{"$f":"'[2]EXT RIN(M)'!Q324","v":98.460642749167889},{"$f":"'[2]EXT RIN(M)'!R324","v":96.106674588550689},{"$f":"'[2]EXT RIN(M)'!S324","v":85.715528448975675},{"$f":"'[2]EXT RIN(M)'!T324","v":119.20628844150671},{"$f":"'[2]EXT RIN(M)'!U324","v":76.601861936329215},{"$f":"'[2]EXT RIN(M)'!V324","v":293.82672584836001},null,null,{"$f":"+'[2]MONE(M)CAPARD'!AE324","v":6.8606051234314345},{"$f":"'[2]MONE(M)CAPARD'!AF324","v":3.2949147933285001},{"$f":"'[2]MONE(M)CAPARD'!AG324","v":1.1780000000000022},{"$f":"'[2]MONE(M)CAPARD'!AH324","v":6.1994406077348083},{"$f":"'[2]MONE(M)CAPARD'!AI324","v":5.9531377998429313},{"$f":"'[2]MONE(M)CAPARD'!AJ324","v":5.6909482615204672},{"$f":"'[2]MONE(M)CAPARD'!AK324","v":1.5052427184466075},null,null,{"$f":"'[2]MONE(M)CAPARD'!AL324","v":3.3385818999999999},{"$f":"'[2]MONE(M)CAPARD'!AM324","v":4.45},{"$f":"'[2]MONE(M)CAPARD'!AN324","v":2.93},{"$f":"'[2]MONE(M)CAPARD'!AO324","v":3.85},{"$f":"'[2]MONE(M)CAPARD'!AP324","v":3.35},{"$f":"'[2]MONE(M)CAPARD'!AQ324","v":1.87},{"$f":"'[2]MONE(M)CAPARD'!AR324","v":2.1},null,null,{"$f":"'[2]MONE(M)CAPARD'!J324","v":16.717661887418725},{"$f":"'[2]MONE(M)CAPARD'!K324","v":4.6893219724438016},{"$f":"'[2]MONE(M)CAPARD'!L324","v":8.4865255474452557},{"$f":"'[2]MONE(M)CAPARD'!M324","v":16.757907458563533},{"$f":"'[2]MONE(M)CAPARD'!N324","v":11.816840131562628},{"$f":"'[2]MONE(M)CAPARD'!O324","v":13.664280485775993},{"$f":"'[2]MONE(M)CAPARD'!P324","v":5.2731650485436941},null,null,{"$f":"'[2]MONE(M)CAPARD'!Q324","v":9.82},{"$f":"'[2]MONE(M)CAPARD'!R324","v":5.86},{"$f":"'[2]MONE(M)CAPARD'!S324","v":5.97},{"$f":"'[2]MONE(M)CAPARD'!T324","v":8.33},{"$f":"'[2]MONE(M)CAPARD'!U324","v":7.95},{"$f":"'[2]MONE(M)CAPARD'!V324","v":5.67},{"$f":"'[2]MONE(M)CAPARD'!W324","v":5.89},null,null,{"$f":"'[2]MONE(M)CAPARD'!AS324","v":1.75},{"$f":"'[2]MONE(M)CAPARD'!AT324","v":"n.a."},{"$f":"'[2]MONE(M)CAPARD'!AU324","v":3},{"$f":"'[2]MONE(M)CAPARD'!AV324","v":5.75},{"$f":"'[2]MONE(M)CAPARD'!AW324","v":"n.a."},{"$f":"'[2]MONE(M)CAPARD'!AX324","v":5},{"$f":"'[2]MONE(M)CAPARD'!AY324","v":"n.a."},null,null,{"$f":"+'Datos_Regional (M)'!CF317","v":12.295403770223491},{"$f":"+'Datos_Regional (M)'!CG317","v":4.5906504035892581},{"$f":"+'Datos_Regional (M)'!CH317","v":10.444046086403347},{"$f":"+'Datos_Regional (M)'!CI317","v":10.053639402584791},{"$f":"+'Datos_Regional (M)'!CJ317","v":22.413415233720578},{"$f":"+'Datos_Regional (M)'!CK317","v":18.608193753472801},{"$f":"+'Datos_Regional (M)'!CL317","v":10.62798109255656},null,null,781.08499294500007,447.73916666666656,876.68333333333339,397.10685751109412,404.81808349171666,785.86666666666667,963.26785291666658,3687.2470183194778,4650.5148712361433,null,null,1233.6141821366666,840.38333333333321,1448.9916666666666,806.8646421787779,589.45734483583317,1403.5083333333332,1788.4069420833337,6317.6164334737769,8106.0233755571098,null,null,-2630.3694151543004,-3455.508504320966,null,null,{"$f":"'[2]EXT Comercio(M)'!C324","v":842.12400842},{"$f":"'[2]EXT Comercio(M)'!D324","v":471.41999999999985},{"$f":"'[2]EXT Comercio(M)'!E324","v":938.7},{"$f":"'[2]EXT Comercio(M)'!F324","v":658.140695665066},{"$f":"'[2]EXT Comercio(M)'!G324","v":413.45539089499999},{"$f":"'[2]EXT Comercio(M)'!H324","v":824.8},{"$f":"'[2]EXT Comercio(M)'!I324","v":935.08588100000009},{"$f":"'[2]EXT Comercio(M)'!K324","v":4148.6400949800645},{"$f":"'[2]EXT Comercio(M)'!L324","v":5083.7259759800654},null,null,{"$f":"'[2]EXT Comercio(M)'!AG324","v":1199.7645023499999},{"$f":"'[2]EXT Comercio(M)'!AH324","v":784.44999999999982},{"$f":"'[2]EXT Comercio(M)'!AI324","v":1388.2},{"$f":"'[2]EXT Comercio(M)'!AJ324","v":950.27665703429955},{"$f":"'[2]EXT Comercio(M)'!AK324","v":599.33547226000007},{"$f":"'[2]EXT Comercio(M)'!AL324","v":1471.8000000000002},{"$f":"'[2]EXT Comercio(M)'!AM324","v":1795.884086},{"$f":"'[2]EXT Comercio(M)'!AO324","v":6393.8266316442987},{"$f":"'[2]EXT Comercio(M)'!AP324","v":8189.7107176442969},null,null,{"$f":"'[2]EXT Comercio(M)'!$BS324","v":-2245.1865366642342},{"$f":"'[2]EXT Comercio(M)'!$BT324","v":-3105.9847416642324}]
[null,null,"Abril",{"$f":"'[2]REAL IPC(M)'!AD325","v":-0.91805692862924793},{"$f":"'[2]REAL IPC(M)'!AE325","v":0.86151590138392242},{"$f":"'[2]REAL IPC(M)'!AF325","v":4.0873082757458361},{"$f":"'[2]REAL IPC(M)'!AG325","v":2.4355806565478209},{"$f":"'[2]REAL IPC(M)'!AH325","v":3.5963791107405827},{"$f":"'[2]REAL IPC(M)'!AI325","v":1.7536428329380471},{"$f":"'[2]REAL IPC(M)'!AJ325","v":0.58309037900874083},null,null,{"$f":"'[2]REAL IMAE(M)'!AG325","v":4.0314881350424523},{"$f":"'[2]REAL IMAE(M)'!AH325","v":2.2136592842363036},{"$f":"'[2]REAL IMAE(M)'!AI325","v":2.8234917255469907},{"$f":"'[2]REAL IMAE(M)'!AJ325","v":3.0516734162163424},{"$f":"'[2]REAL IMAE(M)'!AK325","v":5.4863158545489084},{"$f":"'[2]REAL IMAE(M)'!AL325","v":6.8978128351127985},{"$f":"'[2]REAL IMAE(M)'!AM325","v":0.92166320419364223},null,null,{"$f":"'[2]EXT ITCER(M)'!C325","v":73.743324544318796},{"$f":"'[2]EXT ITCER(M)'!D325","v":91.913794587207676},{"$f":"'[2]EXT ITCER(M)'!E325","v":57.578542886314963},{"$f":"'[2]EXT ITCER(M)'!F325","v":77.536854339710501},{"$f":"'[2]EXT ITCER(M)'!G325","v":98.566311984163335},{"$f":"'[2]EXT ITCER(M)'!H325","v":103.2549102090323},{"$f":"'[2]EXT ITCER(M)'!I325","v":87.835761571737208},null,null,{"$f":"'[2]EXT TC(M)'!J325","v":0.69141677721473671},{"$f":"'[2]EXT TC(M)'!K325","v":0},{"$f":"'[2]EXT TC(M)'!L325","v":0.3072354401216032},{"$f":"'[2]EXT TC(M)'!M325","v":2.9623080808911944},{"$f":"'[2]EXT TC(M)'!N325","v":5.129999724725633},{"$f":"'[2]EXT TC(M)'!O325","v":2.397955987506831},{"$f":"'[2]EXT TC(M)'!P325","v":0},null,null,{"$f":"'[2]EXT RIN(M)'!C325","v":7898.7532970000002},{"$f":"'[2]EXT RIN(M)'!D325","v":2804.3},{"$f":"'[2]EXT RIN(M)'!E325","v":7675.3},{"$f":"'[2]EXT RIN(M)'!F325","v":3899.5999396380557},{"$f":"'[2]EXT RIN(M)'!G325","v":2435.5},{"$f":"'[2]EXT RIN(M)'!H325","v":5015.4147240342054},{"$f":"'[2]EXT RIN(M)'!I325","v":4491.66916855},null,null,{"$f":"'[2]EXT RIN(M)'!P325","v":67.96310848389308},{"$f":"'[2]EXT RIN(M)'!Q325","v":97.927641170606009},{"$f":"'[2]EXT RIN(M)'!R325","v":97.182208374588001},{"$f":"'[2]EXT RIN(M)'!S325","v":86.899856491430128},{"$f":"'[2]EXT RIN(M)'!T325","v":120.66240092444293},{"$f":"'[2]EXT RIN(M)'!U325","v":76.537075795545505},{"$f":"'[2]EXT RIN(M)'!V325","v":320.48777060381815},null,null,{"$f":"+'[2]MONE(M)CAPARD'!AE325","v":6.5279875708232469},{"$f":"'[2]MONE(M)CAPARD'!AF325","v":3.567747387551115},{"$f":"'[2]MONE(M)CAPARD'!AG325","v":1.3380034005343626},{"$f":"'[2]MONE(M)CAPARD'!AH325","v":6.515723638869753},{"$f":"'[2]MONE(M)CAPARD'!AI325","v":4.6770125045920459},{"$f":"'[2]MONE(M)CAPARD'!AJ325","v":5.2836999417200277},{"$f":"'[2]MONE(M)CAPARD'!AK325","v":1.5280000000000058},null,null,{"$f":"'[2]MONE(M)CAPARD'!AL325","v":3.4562638400000001},{"$f":"'[2]MONE(M)CAPARD'!AM325","v":4.46},{"$f":"'[2]MONE(M)CAPARD'!AN325","v":2.92},{"$f":"'[2]MONE(M)CAPARD'!AO325","v":3.8},{"$f":"'[2]MONE(M)CAPARD'!AP325","v":3.27},{"$f":"'[2]MONE(M)CAPARD'!AQ325","v":2.56},{"$f":"'[2]MONE(M)CAPARD'!AR325","v":2.12},null,null,{"$f":"'[2]MONE(M)CAPARD'!J325","v":15.954528583722245},{"$f":"'[2]MONE(M)CAPARD'!K325","v":5.0053621081326689},{"$f":"'[2]MONE(M)CAPARD'!L325","v":8.6876026232693651},{"$f":"'[2]MONE(M)CAPARD'!M325","v":16.795354927636122},{"$f":"'[2]MONE(M)CAPARD'!N325","v":13.576841876044025},{"$f":"'[2]MONE(M)CAPARD'!O325","v":14.000832570143968},{"$f":"'[2]MONE(M)CAPARD'!P325","v":5.2562608695652226},null,null,{"$f":"'[2]MONE(M)CAPARD'!Q325","v":9.81},{"$f":"'[2]MONE(M)CAPARD'!R325","v":5.91},{"$f":"'[2]MONE(M)CAPARD'!S325","v":5.97},{"$f":"'[2]MONE(M)CAPARD'!T325","v":8.33},{"$f":"'[2]MONE(M)CAPARD'!U325","v":8.01},{"$f":"'[2]MONE(M)CAPARD'!V325","v":5.43},{"$f":"'[2]MONE(M)CAPARD'!W325","v":5.87},null,null,{"$f":"'[2]MONE(M)CAPARD'!AS325","v":1.75},{"$f":"'[2]MONE(M)CAPARD'!AT325","v":"n.a."},{"$f":"'[2]MONE(M)CAPARD'!AU325","v":3},{"$f":"'[2]MONE(M)CAPARD'!AV325","v":5.75},{"$f":"'[2]MONE(M)CAPARD'!AW325","v":"n.a."},{"$f":"'[2]MONE(M)CAPARD'!AX325","v":5},{"$f":"'[2]MONE(M)CAPARD'!AY325","v":"n.a."},null,null,{"$f":"+'Datos_Regional (M)'!CF318","v":12.24495045076781},{"$f":"+'Datos_Regional (M)'!CG318","v":5.0340058541406885},{"$f":"+'Datos_Regional (M)'!CH318","v":9.6205024588773114},{"$f":"+'Datos_Regional (M)'!CI318","v":9.6785627772739691},{"$f":"+'Datos_Regional (M)'!CJ318","v":22.622316882683123},{"$f":"+'Datos_Regional (M)'!CK318","v":19.223334708062122},{"$f":"+'Datos_Regional (M)'!CL318","v":10.292258349446183},null,null,789.65196186583341,454.87916666666661,876.65000000000009,425.18743387835229,409.19246733974995,785.37499999999989,944.7212459166667,3734.8839474556021,4679.6051933722683,null,null,1234.7412793799999,844.36583333333328,1450,820.87633732284246,595.9079425108331,1411.8083333333332,1782.3828809166671,6352.496656869509,8134.8795377861743,null,null,-2617.6127094139069,-3455.2743444139069,null,null,{"$f":"'[2]EXT Comercio(M)'!C325","v":884.14207142000009},{"$f":"'[2]EXT Comercio(M)'!D325","v":513.73},{"$f":"'[2]EXT Comercio(M)'!E325","v":914.2},{"$f":"'[2]EXT Comercio(M)'!F325","v":737.93598126341544},{"$f":"'[2]EXT Comercio(M)'!G325","v":448.35619515200005},{"$f":"'[2]EXT Comercio(M)'!H325","v":833.3},{"$f":"'[2]EXT Comercio(M)'!I325","v":812.60046599999998},{"$f":"'[2]EXT Comercio(M)'!K325","v":4331.6642478354152},{"$f":"'[2]EXT Comercio(M)'!L325","v":5144.264713835415},null,null,{"$f":"'[2]EXT Comercio(M)'!AG325","v":1259.9781154600003},{"$f":"'[2]EXT Comercio(M)'!AH325","v":867.68000000000029},{"$f":"'[2]EXT Comercio(M)'!AI325","v":1442.6000000000001},{"$f":"'[2]EXT Comercio(M)'!AJ325","v":961.52153652618995},{"$f":"'[2]EXT Comercio(M)'!AK325","v":597.55140586000005},{"$f":"'[2]EXT Comercio(M)'!AL325","v":1432.2},{"$f":"'[2]EXT Comercio(M)'!AM325","v":1674.991804},{"$f":"'[2]EXT Comercio(M)'!AO325","v":6561.5310578461867},{"$f":"'[2]EXT Comercio(M)'!AP325","v":8236.5228618461879},null,null,{"$f":"'[2]EXT Comercio(M)'!$BS325","v":-2229.8668100107761},{"$f":"'[2]EXT Comercio(M)'!$BT325","v":-3092.2581480107765}]
[null,null,"Mayo ",{"$f":"'[2]REAL IPC(M)'!AD326","v":-0.43272306743848038},{"$f":"'[2]REAL IPC(M)'!AE326","v":0.73172962590322621},{"$f":"'[2]REAL IPC(M)'!AF326","v":4.356602186711517},{"$f":"'[2]REAL IPC(M)'!AG326","v":2.3550087873462173},{"$f":"'[2]REAL IPC(M)'!AH326","v":3.6513019423440927},{"$f":"'[2]REAL IPC(M)'!AI326","v":1.7148166920088324},{"$f":"'[2]REAL IPC(M)'!AJ326","v":0.2901353965183725},null,null,{"$f":"'[2]REAL IMAE(M)'!AG326","v":3.5428572006939358},{"$f":"'[2]REAL IMAE(M)'!AH326","v":2.8979072291933914},{"$f":"'[2]REAL IMAE(M)'!AI326","v":2.9030283279645044},{"$f":"'[2]REAL IMAE(M)'!AJ326","v":2.8635069361141605},{"$f":"'[2]REAL IMAE(M)'!AK326","v":5.7095073540061403},{"$f":"'[2]REAL IMAE(M)'!AL326","v":7.1203520500343505},{"$f":"'[2]REAL IMAE(M)'!AM326","v":1.2234217812255395},null,null,{"$f":"'[2]EXT ITCER(M)'!C326","v":73.976244719580819},{"$f":"'[2]EXT ITCER(M)'!D326","v":92.064162275548668},{"$f":"'[2]EXT ITCER(M)'!E326","v":56.81701410006233},{"$f":"'[2]EXT ITCER(M)'!F326","v":77.51413781381234},{"$f":"'[2]EXT ITCER(M)'!G326","v":98.763984369428854},{"$f":"'[2]EXT ITCER(M)'!H326","v":103.3388217541671},{"$f":"'[2]EXT ITCER(M)'!I326","v":87.873609656216942},null,null,{"$f":"'[2]EXT TC(M)'!J326","v":0.82329468476595391},{"$f":"'[2]EXT TC(M)'!K326","v":0},{"$f":"'[2]EXT TC(M)'!L326","v":-0.44805720101250307},{"$f":"'[2]EXT TC(M)'!M326","v":3.0550479332694902},{"$f":"'[2]EXT TC(M)'!N326","v":5.183996254650963},{"$f":"'[2]EXT TC(M)'!O326","v":2.3480524122831556},{"$f":"'[2]EXT TC(M)'!P326","v":0},null,null,{"$f":"'[2]EXT RIN(M)'!C326","v":7760.4476640000003},{"$f":"'[2]EXT RIN(M)'!D326","v":2840.4},{"$f":"'[2]EXT RIN(M)'!E326","v":8549.2000000000007},{"$f":"'[2]EXT RIN(M)'!F326","v":3892.589118566304},{"$f":"'[2]EXT RIN(M)'!G326","v":2441.4},{"$f":"'[2]EXT RIN(M)'!H326","v":5011.0678018557619},{"$f":"'[2]EXT RIN(M)'!I326","v":5021.5927543999996},null,null,{"$f":"'[2]EXT RIN(M)'!P326","v":67.034211186976918},{"$f":"'[2]EXT RIN(M)'!Q326","v":103.53013560173339},{"$f":"'[2]EXT RIN(M)'!R326","v":105.28060620819579},{"$f":"'[2]EXT RIN(M)'!S326","v":91.92504833199861},{"$f":"'[2]EXT RIN(M)'!T326","v":126.31202685787271},{"$f":"'[2]EXT RIN(M)'!U326","v":75.380001902674564},{"$f":"'[2]EXT RIN(M)'!V326","v":350.54168404890009},null,null,{"$f":"+'[2]MONE(M)CAPARD'!AE326","v":5.8580722975773218},{"$f":"'[2]MONE(M)CAPARD'!AF326","v":3.7607518387360415},{"$f":"'[2]MONE(M)CAPARD'!AG326","v":1.076499032882017},{"$f":"'[2]MONE(M)CAPARD'!AH326","v":6.1403846153846198},{"$f":"'[2]MONE(M)CAPARD'!AI326","v":5.1826750604538931},{"$f":"'[2]MONE(M)CAPARD'!AJ326","v":4.4193987210364103},{"$f":"'[2]MONE(M)CAPARD'!AK326","v":1.7647444551591156},null,null,{"$f":"'[2]MONE(M)CAPARD'!AL326","v":3.2240356700000001},{"$f":"'[2]MONE(M)CAPARD'!AM326","v":4.5199999999999996},{"$f":"'[2]MONE(M)CAPARD'!AN326","v":2.88},{"$f":"'[2]MONE(M)CAPARD'!AO326","v":3.79},{"$f":"'[2]MONE(M)CAPARD'!AP326","v":3.1},{"$f":"'[2]MONE(M)CAPARD'!AQ326","v":1.67},{"$f":"'[2]MONE(M)CAPARD'!AR326","v":2.06},null,null,{"$f":"'[2]MONE(M)CAPARD'!J326","v":14.776665105950059},{"$f":"'[2]MONE(M)CAPARD'!K326","v":5.4980395895759591},{"$f":"'[2]MONE(M)CAPARD'!L326","v":8.4262975499677673},{"$f":"'[2]MONE(M)CAPARD'!M326","v":16.799364697802201},{"$f":"'[2]MONE(M)CAPARD'!N326","v":13.767773285359235},{"$f":"'[2]MONE(M)CAPARD'!O326","v":12.717108213603469},{"$f":"'[2]MONE(M)CAPARD'!P326","v":5.6634329797492802},null,null,{"$f":"'[2]MONE(M)CAPARD'!Q326","v":9.5500000000000007},{"$f":"'[2]MONE(M)CAPARD'!R326","v":6.27},{"$f":"'[2]MONE(M)CAPARD'!S326","v":5.98},{"$f":"'[2]MONE(M)CAPARD'!T326","v":8.06},{"$f":"'[2]MONE(M)CAPARD'!U326","v":8.17},{"$f":"'[2]MONE(M)CAPARD'!V326","v":5.0199999999999996},{"$f":"'[2]MONE(M)CAPARD'!W326","v":5.97},null,null,{"$f":"'[2]MONE(M)CAPARD'!AS326","v":1.75},{"$f":"'[2]MONE(M)CAPARD'!AT326","v":"n.a."},{"$f":"'[2]MONE(M)CAPARD'!AU326","v":3},{"$f":"'[2]MONE(M)CAPARD'!AV326","v":5.75},{"$f":"'[2]MONE(M)CAPARD'!AW326","v":"n.a."},{"$f":"'[2]MONE(M)CAPARD'!AX326","v":5},{"$f":"'[2]MONE(M)CAPARD'!AY326","v":"n.a."},null,null,{"$f":"+'Datos_Regional (M)'!CF319","v":12.235217423747692},{"$f":"+'Datos_Regional (M)'!CG319","v":5.3795007927064376},{"$f":"+'Datos_Regional (M)'!CH319","v":8.7988874531036423},{"$f":"+'Datos_Regional (M)'!CI319","v":10.222836936540848},{"$f":"+'Datos_Regional (M)'!CJ319","v":23.334681245786214},{"$f":"+'Datos_Regional (M)'!CK319","v":16.232109884652601},{"$f":"+'Datos_Regional (M)'!CL319","v":10.423968063468436},null,null,798.1107984091667,454.21666666666653,869.9,454.69539618445174,410.45528151358332,782.36666666666679,965.28606016666674,3763.6927271455352,4728.9787873122013,null,null,1244.5205012758333,839.83749999999998,1439.9916666666668,831.94318432494845,591.96983817,1411.8916666666667,1792.6231995833339,6354.9512880932807,8147.5744876766139,null,null,-2591.2585609477464,-3418.595700364413,null,null,{"$f":"'[2]EXT Comercio(M)'!C326","v":948.24818026000003},{"$f":"'[2]EXT Comercio(M)'!D326","v":491.25000000000023},{"$f":"'[2]EXT Comercio(M)'!E326","v":916.8},{"$f":"'[2]EXT Comercio(M)'!F326","v":729.86447754606979},{"$f":"'[2]EXT Comercio(M)'!G326","v":425.09967343599999},{"$f":"'[2]EXT Comercio(M)'!H326","v":782.7},{"$f":"'[2]EXT Comercio(M)'!I326","v":1191.425851},{"$f":"'[2]EXT Comercio(M)'!K326","v":4293.9623312420736},{"$f":"'[2]EXT Comercio(M)'!L326","v":5485.3881822420735},null,null,{"$f":"'[2]EXT Comercio(M)'!AG326","v":1312.5452656899995},{"$f":"'[2]EXT Comercio(M)'!AH326","v":828.38000000000011},{"$f":"'[2]EXT Comercio(M)'!AI326","v":1424.1},{"$f":"'[2]EXT Comercio(M)'!AJ326","v":974.02617133271519},{"$f":"'[2]EXT Comercio(M)'!AK326","v":579.07085103999998},{"$f":"'[2]EXT Comercio(M)'!AL326","v":1462.1},{"$f":"'[2]EXT Comercio(M)'!AM326","v":1788.6915129999998},{"$f":"'[2]EXT Comercio(M)'!AO326","v":6580.2222880627196},{"$f":"'[2]EXT Comercio(M)'!AP326","v":8368.9138010627175},null,null,{"$f":"'[2]EXT Comercio(M)'!$BS326","v":-2286.2599568206424},{"$f":"'[2]EXT Comercio(M)'!$BT326","v":-2883.525618820644}]
[null,null,"Junio",{"$f":"'[2]REAL IPC(M)'!AD327","v":-0.87839426663984221},{"$f":"'[2]REAL IPC(M)'!AE327","v":0.91541559868180156},{"$f":"'[2]REAL IPC(M)'!AF327","v":4.4327132562426721},{"$f":"'[2]REAL IPC(M)'!AG327","v":2.4466969591052079},{"$f":"'[2]REAL IPC(M)'!AH327","v":3.5641154287860957},{"$f":"'[2]REAL IPC(M)'!AI327","v":1.9098098603399516},{"$f":"'[2]REAL IPC(M)'!AJ327","v":9.6618357487917222E-2},null,null,{"$f":"'[2]REAL IMAE(M)'!AG327","v":3.2393437285551863},{"$f":"'[2]REAL IMAE(M)'!AH327","v":3.8203350221851116},{"$f":"'[2]REAL IMAE(M)'!AI327","v":2.6463657487516801},{"$f":"'[2]REAL IMAE(M)'!AJ327","v":2.7753076337122975},{"$f":"'[2]REAL IMAE(M)'!AK327","v":5.5325349020173942},{"$f":"'[2]REAL IMAE(M)'!AL327","v":7.0476848743108338},{"$f":"'[2]REAL IMAE(M)'!AM327","v":1.9005392929061584},null,null,{"$f":"'[2]EXT ITCER(M)'!C327","v":75.017800560118644},{"$f":"'[2]EXT ITCER(M)'!D327","v":92.227609715653855},{"$f":"'[2]EXT ITCER(M)'!E327","v":56.682636549578874},{"$f":"'[2]EXT ITCER(M)'!F327","v":77.682168595675137},{"$f":"'[2]EXT ITCER(M)'!G327","v":99.535327958223178},{"$f":"'[2]EXT ITCER(M)'!H327","v":103.13047949402601},{"$f":"'[2]EXT ITCER(M)'!I327","v":88.202598586827961},null,null,{"$f":"'[2]EXT TC(M)'!J327","v":1.4087370013568035},{"$f":"'[2]EXT TC(M)'!K327","v":0},{"$f":"'[2]EXT TC(M)'!L327","v":-0.10298404795440373},{"$f":"'[2]EXT TC(M)'!M327","v":3.7264107425517579},{"$f":"'[2]EXT TC(M)'!N327","v":5.0814316284438066},{"$f":"'[2]EXT TC(M)'!O327","v":2.3488929452877052},{"$f":"'[2]EXT TC(M)'!P327","v":0},null,null,{"$f":"'[2]EXT RIN(M)'!C327","v":7787.4259480000001},{"$f":"'[2]EXT RIN(M)'!D327","v":2970.08},{"$f":"'[2]EXT RIN(M)'!E327","v":8696.4},{"$f":"'[2]EXT RIN(M)'!F327","v":3955.6458092543835},{"$f":"'[2]EXT RIN(M)'!G327","v":2382.1999999999998},{"$f":"'[2]EXT RIN(M)'!H327","v":5301.0212852378345},{"$f":"'[2]EXT RIN(M)'!I327","v":4770.54989002},null,null,{"$f":"'[2]EXT RIN(M)'!P327","v":68.72626109259491},{"$f":"'[2]EXT RIN(M)'!Q327","v":99.720153168715584},{"$f":"'[2]EXT RIN(M)'!R327","v":106.79361906071185},{"$f":"'[2]EXT RIN(M)'!S327","v":90.58843803446517},{"$f":"'[2]EXT RIN(M)'!T327","v":126.022275832064},{"$f":"'[2]EXT RIN(M)'!U327","v":78.787287560026158},{"$f":"'[2]EXT RIN(M)'!V327","v":324.22250605679881},null,null,{"$f":"+'[2]MONE(M)CAPARD'!AE327","v":6.1827027733241033},{"$f":"'[2]MONE(M)CAPARD'!AF327","v":3.7007075471698121},{"$f":"'[2]MONE(M)CAPARD'!AG327","v":0.98368290138810477},{"$f":"'[2]MONE(M)CAPARD'!AH327","v":5.9477789150460589},{"$f":"'[2]MONE(M)CAPARD'!AI327","v":4.9757908061748601},{"$f":"'[2]MONE(M)CAPARD'!AJ327","v":4.7396714273920013},{"$f":"'[2]MONE(M)CAPARD'!AK327","v":2.0547349016576852},null,null,{"$f":"'[2]MONE(M)CAPARD'!AL327","v":3.0431958899999998},{"$f":"'[2]MONE(M)CAPARD'!AM327","v":4.6500000000000004},{"$f":"'[2]MONE(M)CAPARD'!AN327","v":2.84},{"$f":"'[2]MONE(M)CAPARD'!AO327","v":3.73},{"$f":"'[2]MONE(M)CAPARD'!AP327","v":3.03},{"$f":"'[2]MONE(M)CAPARD'!AQ327","v":2.2400000000000002},{"$f":"'[2]MONE(M)CAPARD'!AR327","v":2.1533385102583149},null,null,{"$f":"'[2]MONE(M)CAPARD'!J327","v":15.262458829950393},{"$f":"'[2]MONE(M)CAPARD'!K327","v":5.4051052249637159},{"$f":"'[2]MONE(M)CAPARD'!L327","v":8.337700393163761},{"$f":"'[2]MONE(M)CAPARD'!M327","v":16.538652337086322},{"$f":"'[2]MONE(M)CAPARD'!N327","v":13.478566052219199},{"$f":"'[2]MONE(M)CAPARD'!O327","v":12.108932551803786},{"$f":"'[2]MONE(M)CAPARD'!P327","v":5.8876930501930573},null,null,{"$f":"'[2]MONE(M)CAPARD'!Q327","v":9.77},{"$f":"'[2]MONE(M)CAPARD'!R327","v":6.37},{"$f":"'[2]MONE(M)CAPARD'!S327","v":5.98},{"$f":"'[2]MONE(M)CAPARD'!T327","v":8.3800000000000008},{"$f":"'[2]MONE(M)CAPARD'!U327","v":8.17},{"$f":"'[2]MONE(M)CAPARD'!V327","v":5.18},{"$f":"'[2]MONE(M)CAPARD'!W327","v":5.99},null,null,{"$f":"'[2]MONE(M)CAPARD'!AS327","v":1.75},{"$f":"'[2]MONE(M)CAPARD'!AT327","v":"n.a."},{"$f":"'[2]MONE(M)CAPARD'!AU327","v":3},{"$f":"'[2]MONE(M)CAPARD'!AV327","v":5.5},{"$f":"'[2]MONE(M)CAPARD'!AW327","v":"n.a."},{"$f":"'[2]MONE(M)CAPARD'!AX327","v":5},{"$f":"'[2]MONE(M)CAPARD'!AY327","v":"n.a."},null,null,{"$f":"+'Datos_Regional (M)'!CF320","v":12.140712358865713},{"$f":"+'Datos_Regional (M)'!CG320","v":5.3225399345478763},{"$f":"+'Datos_Regional (M)'!CH320","v":8.7904226725698855},{"$f":"+'Datos_Regional (M)'!CI320","v":10.03088791677702},{"$f":"+'Datos_Regional (M)'!CJ320","v":23.515469848430648},{"$f":"+'Datos_Regional (M)'!CK320","v":16.956286155232149},{"$f":"+'Datos_Regional (M)'!CL320","v":10.516036606610403},null,null,800.00684383166663,452.90916666666652,868.83333333333337,485.09772454411228,407.72974152608339,784.52500000000009,965.88300041666673,3793.0497276068622,4758.9327280235293,null,null,1256.5804624933332,837.22833333333335,1442.1000000000001,847.88131920202977,589.94410908416671,1410.05,1789.0043524166667,6378.5811551020279,8167.5855075186964,null,null,-2585.531427495167,-3408.6527794951658,null,null,{"$f":"'[2]EXT Comercio(M)'!C327","v":836.92316315999983},{"$f":"'[2]EXT Comercio(M)'!D327","v":462.55999999999995},{"$f":"'[2]EXT Comercio(M)'!E327","v":897.59999999999991},{"$f":"'[2]EXT Comercio(M)'!F327","v":739.69032145075585},{"$f":"'[2]EXT Comercio(M)'!G327","v":403.18033775999993},{"$f":"'[2]EXT Comercio(M)'!H327","v":873.59999999999991},{"$f":"'[2]EXT Comercio(M)'!I327","v":999.89609299999995},{"$f":"'[2]EXT Comercio(M)'!K327","v":4213.5538223707554},{"$f":"'[2]EXT Comercio(M)'!L327","v":5213.4499153707548},null,null,{"$f":"'[2]EXT Comercio(M)'!AG327","v":1321.12570241},{"$f":"'[2]EXT Comercio(M)'!AH327","v":864.78999999999905},{"$f":"'[2]EXT Comercio(M)'!AI327","v":1475.3},{"$f":"'[2]EXT Comercio(M)'!AJ327","v":982.0903547928956},{"$f":"'[2]EXT Comercio(M)'!AK327","v":594.54553294999994},{"$f":"'[2]EXT Comercio(M)'!AL327","v":1465.7},{"$f":"'[2]EXT Comercio(M)'!AM327","v":1820.5414970000002},{"$f":"'[2]EXT Comercio(M)'!AO327","v":6703.5515901528888},{"$f":"'[2]EXT Comercio(M)'!AP327","v":8524.0930871528908},null,null,{"$f":"'[2]EXT Comercio(M)'!$BS327","v":-2489.9977677821353},{"$f":"'[2]EXT Comercio(M)'!$BT327","v":-3310.6431717821324}]
[null,null,"Julio",{"$f":"'[2]REAL IPC(M)'!AD328","v":0.47552710755759564},{"$f":"'[2]REAL IPC(M)'!AE328","v":0.87944301942104075},{"$f":"'[2]REAL IPC(M)'!AF328","v":4.6185910796164968},{"$f":"'[2]REAL IPC(M)'!AG328","v":2.4033437826541193},{"$f":"'[2]REAL IPC(M)'!AH328","v":4.114878333974656},{"$f":"'[2]REAL IPC(M)'!AI328","v":1.8548048678137172},{"$f":"'[2]REAL IPC(M)'!AJ328","v":9.6525096525104756E-2},null,null,{"$f":"'[2]REAL IMAE(M)'!AG328","v":3.0704772564895713},{"$f":"'[2]REAL IMAE(M)'!AH328","v":3.8543519612236565},{"$f":"'[2]REAL IMAE(M)'!AI328","v":2.3073027245113105},{"$f":"'[2]REAL IMAE(M)'!AJ328","v":2.8527111769412539},{"$f":"'[2]REAL IMAE(M)'!AK328","v":5.0129191084457636},{"$f":"'[2]REAL IMAE(M)'!AL328","v":6.6765696099517102},{"$f":"'[2]REAL IMAE(M)'!AM328","v":2.7804121422127466},null,null,{"$f":"'[2]EXT ITCER(M)'!C328","v":74.944026435030608},{"$f":"'[2]EXT ITCER(M)'!D328","v":92.281606275988025},{"$f":"'[2]EXT ITCER(M)'!E328","v":55.933297357128069},{"$f":"'[2]EXT ITCER(M)'!F328","v":77.73799489631044},{"$f":"'[2]EXT ITCER(M)'!G328","v":99.824195106204058},{"$f":"'[2]EXT ITCER(M)'!H328","v":103.0184422176135},{"$f":"'[2]EXT ITCER(M)'!I328","v":88.073158171405325},null,null,{"$f":"'[2]EXT TC(M)'!J328","v":2.5614020305851786},{"$f":"'[2]EXT TC(M)'!K328","v":0},{"$f":"'[2]EXT TC(M)'!L328","v":-0.68986029837605378},{"$f":"'[2]EXT TC(M)'!M328","v":4.198671081276486},{"$f":"'[2]EXT TC(M)'!N328","v":4.9925544479373727},{"$f":"'[2]EXT TC(M)'!O328","v":2.1974720726333996},{"$f":"'[2]EXT TC(M)'!P328","v":0},null,null,{"$f":"'[2]EXT RIN(M)'!C328","v":7960.5164569999997},{"$f":"'[2]EXT RIN(M)'!D328","v":3019.77},{"$f":"'[2]EXT RIN(M)'!E328","v":8861},{"$f":"'[2]EXT RIN(M)'!F328","v":3845.271290093568},{"$f":"'[2]EXT RIN(M)'!G328","v":2383.8000000000002},{"$f":"'[2]EXT RIN(M)'!H328","v":5333.600631131173},{"$f":"'[2]EXT RIN(M)'!I328","v":4216.3467571700003},null,null,{"$f":"'[2]EXT RIN(M)'!P328","v":69.735893469870035},{"$f":"'[2]EXT RIN(M)'!Q328","v":103.66572055909602},{"$f":"'[2]EXT RIN(M)'!R328","v":104.17503963750221},{"$f":"'[2]EXT RIN(M)'!S328","v":90.908139273731805},{"$f":"'[2]EXT RIN(M)'!T328","v":121.73599660270365},{"$f":"'[2]EXT RIN(M)'!U328","v":76.688338064451813},{"$f":"'[2]EXT RIN(M)'!V328","v":281.65423714249533},null,null,{"$f":"+'[2]MONE(M)CAPARD'!AE328","v":4.7021130701657574},{"$f":"'[2]MONE(M)CAPARD'!AF328","v":3.6782092262985753},{"$f":"'[2]MONE(M)CAPARD'!AG328","v":0.8042632879113969},{"$f":"'[2]MONE(M)CAPARD'!AH328","v":5.9340408163265401},{"$f":"'[2]MONE(M)CAPARD'!AI328","v":5.1086465759954915},{"$f":"'[2]MONE(M)CAPARD'!AJ328","v":5.4049439683585652},{"$f":"'[2]MONE(M)CAPARD'!AK328","v":1.971571841851486},null,null,{"$f":"'[2]MONE(M)CAPARD'!AL328","v":2.9494445200000001},{"$f":"'[2]MONE(M)CAPARD'!AM328","v":4.59},{"$f":"'[2]MONE(M)CAPARD'!AN328","v":2.87},{"$f":"'[2]MONE(M)CAPARD'!AO328","v":3.75},{"$f":"'[2]MONE(M)CAPARD'!AP328","v":3.57},{"$f":"'[2]MONE(M)CAPARD'!AQ328","v":1.85},{"$f":"'[2]MONE(M)CAPARD'!AR328","v":2.0699999999999998},null,null,{"$f":"'[2]MONE(M)CAPARD'!J328","v":13.729186887146776},{"$f":"'[2]MONE(M)CAPARD'!K328","v":5.2543479840174268},{"$f":"'[2]MONE(M)CAPARD'!L328","v":8.1165391664674562},{"$f":"'[2]MONE(M)CAPARD'!M328","v":16.431744897959195},{"$f":"'[2]MONE(M)CAPARD'!N328","v":12.046644162514236},{"$f":"'[2]MONE(M)CAPARD'!O328","v":12.522919413315714},{"$f":"'[2]MONE(M)CAPARD'!P328","v":5.8678109932497495},null,null,{"$f":"'[2]MONE(M)CAPARD'!Q328","v":9.89},{"$f":"'[2]MONE(M)CAPARD'!R328","v":6.18},{"$f":"'[2]MONE(M)CAPARD'!S328","v":5.99},{"$f":"'[2]MONE(M)CAPARD'!T328","v":8.43},{"$f":"'[2]MONE(M)CAPARD'!U328","v":8.35},{"$f":"'[2]MONE(M)CAPARD'!V328","v":6.03},{"$f":"'[2]MONE(M)CAPARD'!W328","v":5.97},null,null,{"$f":"'[2]MONE(M)CAPARD'!AS328","v":1.75},{"$f":"'[2]MONE(M)CAPARD'!AT328","v":"n.a."},{"$f":"'[2]MONE(M)CAPARD'!AU328","v":3},{"$f":"'[2]MONE(M)CAPARD'!AV328","v":5.5},{"$f":"'[2]MONE(M)CAPARD'!AW328","v":"n.a."},{"$f":"'[2]MONE(M)CAPARD'!AX328","v":5},{"$f":"'[2]MONE(M)CAPARD'!AY328","v":"n.a."},null,null,{"$f":"+'Datos_Regional (M)'!CF321","v":11.589794005684917},{"$f":"+'Datos_Regional (M)'!CG321","v":5.4724144106155004},{"$f":"+'Datos_Regional (M)'!CH321","v":8.1364561924818002},{"$f":"+'Datos_Regional (M)'!CI321","v":10.261997132882804},{"$f":"+'Datos_Regional (M)'!CJ321","v":21.838007749425081},{"$f":"+'Datos_Regional (M)'!CK321","v":16.360435014070383},{"$f":"+'Datos_Regional (M)'!CL321","v":7.9867247620767801},null,null,801.69951141750005,448.74166666666662,858.7833333333333,514.07981756004881,404.80397135191669,781.77499999999998,954.17664424999987,3803.8312180344642,4758.0078622844658,null,null,1243.6883621083334,827.14583333333337,1414.6666666666667,858.18969945598235,590.22358513083327,1400.9916666666668,1766.7739977499998,6329.7027443509796,8096.4767421009819,null,null,-2525.8715263165163,-3338.4688798165166,null,null,{"$f":"'[2]EXT Comercio(M)'!C328","v":780.41221524000002},{"$f":"'[2]EXT Comercio(M)'!D328","v":491.13999999999987},{"$f":"'[2]EXT Comercio(M)'!E328","v":844.59999999999991},{"$f":"'[2]EXT Comercio(M)'!F328","v":657.04676061417513},{"$f":"'[2]EXT Comercio(M)'!G328","v":413.49842909000006},{"$f":"'[2]EXT Comercio(M)'!H328","v":850.10000000000014},{"$f":"'[2]EXT Comercio(M)'!I328","v":920.21147799999994},{"$f":"'[2]EXT Comercio(M)'!K328","v":4036.7974049441691},{"$f":"'[2]EXT Comercio(M)'!L328","v":4957.0088829441665},null,null,{"$f":"'[2]EXT Comercio(M)'!AG328","v":1210.3158013799998},{"$f":"'[2]EXT Comercio(M)'!AH328","v":822.33000000000084},{"$f":"'[2]EXT Comercio(M)'!AI328","v":1311.5},{"$f":"'[2]EXT Comercio(M)'!AJ328","v":958.00280046508487},{"$f":"'[2]EXT Comercio(M)'!AK328","v":596.90776190999998},{"$f":"'[2]EXT Comercio(M)'!AL328","v":1410.7999999999997},{"$f":"'[2]EXT Comercio(M)'!AM328","v":1781.5968929999999},{"$f":"'[2]EXT Comercio(M)'!AO328","v":6309.8563637550833},{"$f":"'[2]EXT Comercio(M)'!AP328","v":8091.453256755085},null,null,{"$f":"'[2]EXT Comercio(M)'!$BS328","v":-2273.0589588109142},{"$f":"'[2]EXT Comercio(M)'!$BT328","v":-3134.4443738109185}]
[null,null,"Agosto",{"$f":"'[2]REAL IPC(M)'!AD329","v":0.59586675348913609},{"$f":"'[2]REAL IPC(M)'!AE329","v":0.94651718434111476},{"$f":"'[2]REAL IPC(M)'!AF329","v":4.740481546280086},{"$f":"'[2]REAL IPC(M)'!AG329","v":2.506963788300832},{"$f":"'[2]REAL IPC(M)'!AH329","v":3.7504713807529804},{"$f":"'[2]REAL IPC(M)'!AI329","v":1.4724336986530946},{"$f":"'[2]REAL IPC(M)'!AJ329","v":0.48449612403100772},null,null,{"$f":"'[2]REAL IMAE(M)'!AG329","v":3.2270695497122368},{"$f":"'[2]REAL IMAE(M)'!AH329","v":3.7830679490004826},{"$f":"'[2]REAL IMAE(M)'!AI329","v":2.1382067521640282},{"$f":"'[2]REAL IMAE(M)'!AJ329","v":3.0908657732762412},{"$f":"'[2]REAL IMAE(M)'!AK329","v":4.3958942868225233},{"$f":"'[2]REAL IMAE(M)'!AL329","v":6.2463251712870624},{"$f":"'[2]REAL IMAE(M)'!AM329","v":3.5320954295511595},null,null,{"$f":"'[2]EXT ITCER(M)'!C329","v":75.395321152623836},{"$f":"'[2]EXT ITCER(M)'!D329","v":92.67949356626211},{"$f":"'[2]EXT ITCER(M)'!E329","v":55.477991874278842},{"$f":"'[2]EXT ITCER(M)'!F329","v":77.944706971671735},{"$f":"'[2]EXT ITCER(M)'!G329","v":100.83685578678229},{"$f":"'[2]EXT ITCER(M)'!H329","v":103.3058379773319},{"$f":"'[2]EXT ITCER(M)'!I329","v":88.236024974242895},null,null,{"$f":"'[2]EXT TC(M)'!J329","v":3.0844440480212776},{"$f":"'[2]EXT TC(M)'!K329","v":0},{"$f":"'[2]EXT TC(M)'!L329","v":-1.5063255979707835},{"$f":"'[2]EXT TC(M)'!M329","v":4.1320584511637417},{"$f":"'[2]EXT TC(M)'!N329","v":5.0554276431424929},{"$f":"'[2]EXT TC(M)'!O329","v":2.0550014438989725},{"$f":"'[2]EXT TC(M)'!P329","v":0},null,null,{"$f":"'[2]EXT RIN(M)'!C329","v":8007.6259069999996},{"$f":"'[2]EXT RIN(M)'!D329","v":3050.86},{"$f":"'[2]EXT RIN(M)'!E329","v":8919.2999999999993},{"$f":"'[2]EXT RIN(M)'!F329","v":3776.6892372229431},{"$f":"'[2]EXT RIN(M)'!G329","v":2405.1},{"$f":"'[2]EXT RIN(M)'!H329","v":5131.3255729987877},{"$f":"'[2]EXT RIN(M)'!I329","v":4330.4001211100003},null,null,{"$f":"'[2]EXT RIN(M)'!P329","v":70.63051576081412},{"$f":"'[2]EXT RIN(M)'!Q329","v":104.74602643799788},{"$f":"'[2]EXT RIN(M)'!R329","v":106.09211314551894},{"$f":"'[2]EXT RIN(M)'!S329","v":88.89905841332299},{"$f":"'[2]EXT RIN(M)'!T329","v":123.47622793899752},{"$f":"'[2]EXT RIN(M)'!U329","v":74.481682733863437},{"$f":"'[2]EXT RIN(M)'!V329","v":288.39965592214151},null,null,{"$f":"+'[2]MONE(M)CAPARD'!AE329","v":4.378045926383062},{"$f":"'[2]MONE(M)CAPARD'!AF329","v":3.5796012744651784},{"$f":"'[2]MONE(M)CAPARD'!AG329","v":0.69650095450207805},{"$f":"'[2]MONE(M)CAPARD'!AH329","v":5.8269565217391346},{"$f":"'[2]MONE(M)CAPARD'!AI329","v":4.7511769830786319},{"$f":"'[2]MONE(M)CAPARD'!AJ329","v":6.0386511666254048},{"$f":"'[2]MONE(M)CAPARD'!AK329","v":1.6873288331726135},null,null,{"$f":"'[2]MONE(M)CAPARD'!AL329","v":3.2133761199999999},{"$f":"'[2]MONE(M)CAPARD'!AM329","v":4.5599999999999996},{"$f":"'[2]MONE(M)CAPARD'!AN329","v":2.84},{"$f":"'[2]MONE(M)CAPARD'!AO329","v":3.75},{"$f":"'[2]MONE(M)CAPARD'!AP329","v":4.33},{"$f":"'[2]MONE(M)CAPARD'!AQ329","v":2.02},{"$f":"'[2]MONE(M)CAPARD'!AR329","v":2.1800000000000002},null,null,{"$f":"'[2]MONE(M)CAPARD'!J329","v":13.503669370232553},{"$f":"'[2]MONE(M)CAPARD'!K329","v":4.9466618115612189},{"$f":"'[2]MONE(M)CAPARD'!L329","v":7.9811724467069798},{"$f":"'[2]MONE(M)CAPARD'!M329","v":16.22625},{"$f":"'[2]MONE(M)CAPARD'!N329","v":12.81129654601056},{"$f":"'[2]MONE(M)CAPARD'!O329","v":12.956786214856914},{"$f":"'[2]MONE(M)CAPARD'!P329","v":5.4889103182256509},null,null,{"$f":"'[2]MONE(M)CAPARD'!Q329","v":9.94},{"$f":"'[2]MONE(M)CAPARD'!R329","v":5.94},{"$f":"'[2]MONE(M)CAPARD'!S329","v":5.97},{"$f":"'[2]MONE(M)CAPARD'!T329","v":8.3800000000000008},{"$f":"'[2]MONE(M)CAPARD'!U329","v":8.18},{"$f":"'[2]MONE(M)CAPARD'!V329","v":7.03},{"$f":"'[2]MONE(M)CAPARD'!W329","v":6},null,null,{"$f":"'[2]MONE(M)CAPARD'!AS329","v":1.75},{"$f":"'[2]MONE(M)CAPARD'!AT329","v":"n.a."},{"$f":"'[2]MONE(M)CAPARD'!AU329","v":3},{"$f":"'[2]MONE(M)CAPARD'!AV329","v":5.5},{"$f":"'[2]MONE(M)CAPARD'!AW329","v":"n.a."},{"$f":"'[2]MONE(M)CAPARD'!AX329","v":5},{"$f":"'[2]MONE(M)CAPARD'!AY329","v":"n.a."},null,null,{"$f":"+'Datos_Regional (M)'!CF322","v":11.705262250433069},{"$f":"+'Datos_Regional (M)'!CG322","v":5.4928238105737881},{"$f":"+'Datos_Regional (M)'!CH322","v":7.4626387632189539},{"$f":"+'Datos_Regional (M)'!CI322","v":9.4651650294522494},{"$f":"+'Datos_Regional (M)'!CJ322","v":22.318886308054964},{"$f":"+'Datos_Regional (M)'!CK322","v":14.283533363334012},{"$f":"+'Datos_Regional (M)'!CL322","v":9.2935808171376699},null,null,805.62475104666657,450.46499999999986,859.63333333333333,547.50890082429748,407.8616331134167,791.8416666666667,962.50015733333328,3856.8832026893811,4819.3833600227126,null,null,1251.3543793224999,829.11916666666673,1419.825,885.14164764126144,591.79639862583326,1416.5333333333335,1780.6143695833332,6388.5668565787601,8169.1812261620944,null,null,-2531.6836538893808,-3349.7978661393809,null,null,{"$f":"'[2]EXT Comercio(M)'!C329","v":764.14851683999996},{"$f":"'[2]EXT Comercio(M)'!D329","v":439.29999999999973},{"$f":"'[2]EXT Comercio(M)'!E329","v":888.5},{"$f":"'[2]EXT Comercio(M)'!F329","v":663.60575142045809},{"$f":"'[2]EXT Comercio(M)'!G329","v":448.64871992999997},{"$f":"'[2]EXT Comercio(M)'!H329","v":889.9},{"$f":"'[2]EXT Comercio(M)'!I329","v":972.71951000000001},{"$f":"'[2]EXT Comercio(M)'!K329","v":4094.1029881904651},{"$f":"'[2]EXT Comercio(M)'!L329","v":5066.8224981904641},null,null,{"$f":"'[2]EXT Comercio(M)'!AG329","v":1325.6031779299997},{"$f":"'[2]EXT Comercio(M)'!AH329","v":829.76999999999953},{"$f":"'[2]EXT Comercio(M)'!AI329","v":1516.4},{"$f":"'[2]EXT Comercio(M)'!AJ329","v":1037.2020463013},{"$f":"'[2]EXT Comercio(M)'!AK329","v":606.66597114000001},{"$f":"'[2]EXT Comercio(M)'!AL329","v":1582.4},{"$f":"'[2]EXT Comercio(M)'!AM329","v":2018.0736769999999},{"$f":"'[2]EXT Comercio(M)'!AO329","v":6898.0411953713046},{"$f":"'[2]EXT Comercio(M)'!AP329","v":8916.114872371305},null,null,{"$f":"'[2]EXT Comercio(M)'!$BS329","v":-2803.9382071808413},{"$f":"'[2]EXT Comercio(M)'!$BT329","v":-3849.2923741808409}]
[null,null,"Setiembre",{"$f":"'[2]REAL IPC(M)'!AD330","v":0.38575471814753798},{"$f":"'[2]REAL IPC(M)'!AE330","v":1.0146665436767903},{"$f":"'[2]REAL IPC(M)'!AF330","v":4.5587132261021672},{"$f":"'[2]REAL IPC(M)'!AG330","v":2.8960223307745827},{"$f":"'[2]REAL IPC(M)'!AH330","v":3.5228490136803452},{"$f":"'[2]REAL IPC(M)'!AI330","v":1.3531573671901365},{"$f":"'[2]REAL IPC(M)'!AJ330","v":1.1684518013631966},null,null,{"$f":"'[2]REAL IMAE(M)'!AG330","v":3.800006712533909},{"$f":"'[2]REAL IMAE(M)'!AH330","v":3.4686717005042791},{"$f":"'[2]REAL IMAE(M)'!AI330","v":2.2787132152909502},{"$f":"'[2]REAL IMAE(M)'!AJ330","v":3.4669189909293041},{"$f":"'[2]REAL IMAE(M)'!AK330","v":3.9158895826952431},{"$f":"'[2]REAL IMAE(M)'!AL330","v":5.8235684638278515},{"$f":"'[2]REAL IMAE(M)'!AM330","v":4.0958651309719585},null,null,{"$f":"'[2]EXT ITCER(M)'!C330","v":76.172857630712969},{"$f":"'[2]EXT ITCER(M)'!D330","v":93.211111804125622},{"$f":"'[2]EXT ITCER(M)'!E330","v":55.658792242046907},{"$f":"'[2]EXT ITCER(M)'!F330","v":78.277825549703849},{"$f":"'[2]EXT ITCER(M)'!G330","v":101.90267433881959},{"$f":"'[2]EXT ITCER(M)'!H330","v":103.8455950622488},{"$f":"'[2]EXT ITCER(M)'!I330","v":88.297193053518782},null,null,{"$f":"'[2]EXT TC(M)'!J330","v":3.2345890227459129},{"$f":"'[2]EXT TC(M)'!K330","v":0},{"$f":"'[2]EXT TC(M)'!L330","v":-2.1684818802284953},{"$f":"'[2]EXT TC(M)'!M330","v":4.6364547213523144},{"$f":"'[2]EXT TC(M)'!N330","v":5.2511711217672623},{"$f":"'[2]EXT TC(M)'!O330","v":2.1625144939906762},{"$f":"'[2]EXT TC(M)'!P330","v":0},null,null,{"$f":"'[2]EXT RIN(M)'!C330","v":7699.1623669999999},{"$f":"'[2]EXT RIN(M)'!D330","v":2979.43},{"$f":"'[2]EXT RIN(M)'!E330","v":9014.7999999999993},{"$f":"'[2]EXT RIN(M)'!F330","v":3706.3937006078863},{"$f":"'[2]EXT RIN(M)'!G330","v":2417.1999999999998},{"$f":"'[2]EXT RIN(M)'!H330","v":4938.5580471256781},{"$f":"'[2]EXT RIN(M)'!I330","v":4100.1830274599997},null,null,{"$f":"'[2]EXT RIN(M)'!P330","v":68.158936024871679},{"$f":"'[2]EXT RIN(M)'!Q330","v":104.24410663203328},{"$f":"'[2]EXT RIN(M)'!R330","v":104.58897923210624},{"$f":"'[2]EXT RIN(M)'!S330","v":88.168551258689192},{"$f":"'[2]EXT RIN(M)'!T330","v":124.77100287125577},{"$f":"'[2]EXT RIN(M)'!U330","v":77.332252652090133},{"$f":"'[2]EXT RIN(M)'!V330","v":270.69471597254017},null,null,{"$f":"+'[2]MONE(M)CAPARD'!AE330","v":4.2976668292882207},{"$f":"'[2]MONE(M)CAPARD'!AF330","v":3.5592192493836103},{"$f":"'[2]MONE(M)CAPARD'!AG330","v":0.88111908177906106},{"$f":"'[2]MONE(M)CAPARD'!AH330","v":5.4559715157680735},{"$f":"'[2]MONE(M)CAPARD'!AI330","v":6.0412967049394428},{"$f":"'[2]MONE(M)CAPARD'!AJ330","v":5.6306510631283722},{"$f":"'[2]MONE(M)CAPARD'!AK330","v":0.98998075072184499},null,null,{"$f":"'[2]MONE(M)CAPARD'!AL330","v":3.4453385999999999},{"$f":"'[2]MONE(M)CAPARD'!AM330","v":4.6100000000000003},{"$f":"'[2]MONE(M)CAPARD'!AN330","v":2.85},{"$f":"'[2]MONE(M)CAPARD'!AO330","v":3.74},{"$f":"'[2]MONE(M)CAPARD'!AP330","v":3.04},{"$f":"'[2]MONE(M)CAPARD'!AQ330","v":2.0099999999999998},{"$f":"'[2]MONE(M)CAPARD'!AR330","v":2.17},null,null,{"$f":"'[2]MONE(M)CAPARD'!J330","v":13.691429944858305},{"$f":"'[2]MONE(M)CAPARD'!K330","v":4.9748552643594115},{"$f":"'[2]MONE(M)CAPARD'!L330","v":8.1880184919496326},{"$f":"'[2]MONE(M)CAPARD'!M330","v":15.650729060698563},{"$f":"'[2]MONE(M)CAPARD'!N330","v":13.259831763473224},{"$f":"'[2]MONE(M)CAPARD'!O330","v":13.141863881221651},{"$f":"'[2]MONE(M)CAPARD'!P330","v":4.7658614051973025},null,null,{"$f":"'[2]MONE(M)CAPARD'!Q330","v":9.89},{"$f":"'[2]MONE(M)CAPARD'!R330","v":6.04},{"$f":"'[2]MONE(M)CAPARD'!S330","v":5.99},{"$f":"'[2]MONE(M)CAPARD'!T330","v":8.36},{"$f":"'[2]MONE(M)CAPARD'!U330","v":8.49},{"$f":"'[2]MONE(M)CAPARD'!V330","v":5},{"$f":"'[2]MONE(M)CAPARD'!W330","v":5.99},null,null,{"$f":"'[2]MONE(M)CAPARD'!AS330","v":1.75},{"$f":"'[2]MONE(M)CAPARD'!AT330","v":"n.a."},{"$f":"'[2]MONE(M)CAPARD'!AU330","v":3},{"$f":"'[2]MONE(M)CAPARD'!AV330","v":5.5},{"$f":"'[2]MONE(M)CAPARD'!AW330","v":"n.a."},{"$f":"'[2]MONE(M)CAPARD'!AX330","v":5},{"$f":"'[2]MONE(M)CAPARD'!AY330","v":"n.a."},null,null,{"$f":"+'Datos_Regional (M)'!CF323","v":12.261449221573217},{"$f":"+'Datos_Regional (M)'!CG323","v":5.3974403026126216},{"$f":"+'Datos_Regional (M)'!CH323","v":6.4731928323540133},{"$f":"+'Datos_Regional (M)'!CI323","v":10.105948544988784},{"$f":"+'Datos_Regional (M)'!CJ323","v":19.239615368862715},{"$f":"+'Datos_Regional (M)'!CK323","v":12.062924875579117},{"$f":"+'Datos_Regional (M)'!CL323","v":8.9725716416110934},null,null,815.72233324749993,450.67083333333329,861.375,575.22628930546944,408.21501056541666,796.72499999999991,960.08295825000005,3901.8823841567196,4861.9653424067192,null,null,1258.4831257783335,822.92083333333312,1413.625,906.7595988639282,591.02639775833325,1421.7333333333333,1750.6745240833334,6409.345220056427,8160.0197441397613,null,null,-2507.4628358997084,-3298.0544017330417,null,null,{"$f":"'[2]EXT Comercio(M)'!C330","v":827.15498965999996},{"$f":"'[2]EXT Comercio(M)'!D330","v":444.94000000000051},{"$f":"'[2]EXT Comercio(M)'!E330","v":835.5},{"$f":"'[2]EXT Comercio(M)'!F330","v":578.00596581835998},{"$f":"'[2]EXT Comercio(M)'!G330","v":396.99591960999999},{"$f":"'[2]EXT Comercio(M)'!H330","v":878.9},{"$f":"'[2]EXT Comercio(M)'!I330","v":1122.7188599999999},{"$f":"'[2]EXT Comercio(M)'!K330","v":3961.49687508836},{"$f":"'[2]EXT Comercio(M)'!L330","v":5084.2157350883645},null,null,{"$f":"'[2]EXT Comercio(M)'!AG330","v":1267.2397669700013},{"$f":"'[2]EXT Comercio(M)'!AH330","v":793.42000000000007},{"$f":"'[2]EXT Comercio(M)'!AI330","v":1462},{"$f":"'[2]EXT Comercio(M)'!AJ330","v":1011.9738476873995},{"$f":"'[2]EXT Comercio(M)'!AK330","v":568.38854144000004},{"$f":"'[2]EXT Comercio(M)'!AL330","v":1529.8000000000002},{"$f":"'[2]EXT Comercio(M)'!AM330","v":1803.096871},{"$f":"'[2]EXT Comercio(M)'!AO330","v":6632.8221560974052},{"$f":"'[2]EXT Comercio(M)'!AP330","v":8435.9190270973995},null,null,{"$f":"'[2]EXT Comercio(M)'!$BS330","v":-2671.325281009038},{"$f":"'[2]EXT Comercio(M)'!$BT330","v":-3351.7032920090351}]
[null,null,"Octubre",{"$f":"'[2]REAL IPC(M)'!AD331","v":0.55180099133034877},{"$f":"'[2]REAL IPC(M)'!AE331","v":-0.8757674250631986},{"$f":"'[2]REAL IPC(M)'!AF331","v":4.7599303424827974},{"$f":"'[2]REAL IPC(M)'!AG331","v":2.8242677824267663},{"$f":"'[2]REAL IPC(M)'!AH331","v":3.3961025778788416},{"$f":"'[2]REAL IPC(M)'!AI331","v":0.91203051156621784},{"$f":"'[2]REAL IPC(M)'!AJ331","v":1.3645224171540018},null,null,{"$f":"'[2]REAL IMAE(M)'!AG331","v":4.3045673712976393},{"$f":"'[2]REAL IMAE(M)'!AH331","v":2.2459046643926599},{"$f":"'[2]REAL IMAE(M)'!AI331","v":2.7360983754239885},{"$f":"'[2]REAL IMAE(M)'!AJ331","v":3.9184290402289776},{"$f":"'[2]REAL IMAE(M)'!AK331","v":3.8462262545248058},{"$f":"'[2]REAL IMAE(M)'!AL331","v":5.4528784050243155},{"$f":"'[2]REAL IMAE(M)'!AM331","v":4.4638560687297355},null,null,{"$f":"'[2]EXT ITCER(M)'!C331","v":76.616538488442117},{"$f":"'[2]EXT ITCER(M)'!D331","v":93.19120093591188},{"$f":"'[2]EXT ITCER(M)'!E331","v":55.201123207675373},{"$f":"'[2]EXT ITCER(M)'!F331","v":78.857052170396841},{"$f":"'[2]EXT ITCER(M)'!G331","v":102.22477648935271},{"$f":"'[2]EXT ITCER(M)'!H331","v":104.36786783529971},{"$f":"'[2]EXT ITCER(M)'!I331","v":88.418945739764425},null,null,{"$f":"'[2]EXT TC(M)'!J331","v":3.5558817172658195},{"$f":"'[2]EXT TC(M)'!K331","v":0},{"$f":"'[2]EXT TC(M)'!L331","v":-2.4012444033819138},{"$f":"'[2]EXT TC(M)'!M331","v":4.5142452636535895},{"$f":"'[2]EXT TC(M)'!N331","v":5.058813525022984},{"$f":"'[2]EXT TC(M)'!O331","v":2.4715379563932141},{"$f":"'[2]EXT TC(M)'!P331","v":0},null,null,{"$f":"'[2]EXT RIN(M)'!C331","v":7715.316143},{"$f":"'[2]EXT RIN(M)'!D331","v":2954.13},{"$f":"'[2]EXT RIN(M)'!E331","v":9063.2000000000007},{"$f":"'[2]EXT RIN(M)'!F331","v":3732.618613722248},{"$f":"'[2]EXT RIN(M)'!G331","v":2332.6},{"$f":"'[2]EXT RIN(M)'!H331","v":5450.2544242431322},{"$f":"'[2]EXT RIN(M)'!I331","v":3941.5233068399998},null,null,{"$f":"'[2]EXT RIN(M)'!P331","v":67.855403608305309},{"$f":"'[2]EXT RIN(M)'!Q331","v":103.20050724625027},{"$f":"'[2]EXT RIN(M)'!R331","v":102.26249400013347},{"$f":"'[2]EXT RIN(M)'!S331","v":89.351963366313655},{"$f":"'[2]EXT RIN(M)'!T331","v":123.00939567947663},{"$f":"'[2]EXT RIN(M)'!U331","v":77.55257980344949},{"$f":"'[2]EXT RIN(M)'!V331","v":255.91515338072378},null,null,{"$f":"+'[2]MONE(M)CAPARD'!AE331","v":4.0757092048734185},{"$f":"'[2]MONE(M)CAPARD'!AF331","v":5.433350942708806},{"$f":"'[2]MONE(M)CAPARD'!AG331","v":0.69689780733000461},{"$f":"'[2]MONE(M)CAPARD'!AH331","v":5.519837232960338},{"$f":"'[2]MONE(M)CAPARD'!AI331","v":6.078854604322248},{"$f":"'[2]MONE(M)CAPARD'!AJ331","v":6.3599646701174803},{"$f":"'[2]MONE(M)CAPARD'!AK331","v":0.78476923076922511},null,null,{"$f":"'[2]MONE(M)CAPARD'!AL331","v":3.40221478},{"$f":"'[2]MONE(M)CAPARD'!AM331","v":4.51},{"$f":"'[2]MONE(M)CAPARD'!AN331","v":2.85},{"$f":"'[2]MONE(M)CAPARD'!AO331","v":3.74},{"$f":"'[2]MONE(M)CAPARD'!AP331","v":3.15},{"$f":"'[2]MONE(M)CAPARD'!AQ331","v":2.06},{"$f":"'[2]MONE(M)CAPARD'!AR331","v":2.16},null,null,{"$f":"'[2]MONE(M)CAPARD'!J331","v":13.851764833004385},{"$f":"'[2]MONE(M)CAPARD'!K331","v":7.0777520721377165},{"$f":"'[2]MONE(M)CAPARD'!L331","v":7.9611256233673657},{"$f":"'[2]MONE(M)CAPARD'!M331","v":15.643906408952201},{"$f":"'[2]MONE(M)CAPARD'!N331","v":11.281189236258351},{"$f":"'[2]MONE(M)CAPARD'!O331","v":14.287661654753087},{"$f":"'[2]MONE(M)CAPARD'!P331","v":4.651999999999993},null,null,{"$f":"'[2]MONE(M)CAPARD'!Q331","v":9.9700000000000006},{"$f":"'[2]MONE(M)CAPARD'!R331","v":6.14},{"$f":"'[2]MONE(M)CAPARD'!S331","v":6.01},{"$f":"'[2]MONE(M)CAPARD'!T331","v":8.42},{"$f":"'[2]MONE(M)CAPARD'!U331","v":7.95},{"$f":"'[2]MONE(M)CAPARD'!V331","v":6.29},{"$f":"'[2]MONE(M)CAPARD'!W331","v":6.08},null,null,{"$f":"'[2]MONE(M)CAPARD'!AS331","v":1.75},{"$f":"'[2]MONE(M)CAPARD'!AT331","v":"n.a."},{"$f":"'[2]MONE(M)CAPARD'!AU331","v":3},{"$f":"'[2]MONE(M)CAPARD'!AV331","v":5.5},{"$f":"'[2]MONE(M)CAPARD'!AW331","v":"n.a."},{"$f":"'[2]MONE(M)CAPARD'!AX331","v":5},{"$f":"'[2]MONE(M)CAPARD'!AY331","v":"n.a."},null,null,{"$f":"+'Datos_Regional (M)'!CF324","v":12.366203730359704},{"$f":"+'Datos_Regional (M)'!CG324","v":5.7139193652277598},{"$f":"+'Datos_Regional (M)'!CH324","v":5.9676497113355431},{"$f":"+'Datos_Regional (M)'!CI324","v":9.3756274526797476},{"$f":"+'Datos_Regional (M)'!CJ324","v":19.647657652296679},{"$f":"+'Datos_Regional (M)'!CK324","v":11.610170275434207},{"$f":"+'Datos_Regional (M)'!CL324","v":9.0785374290003329},null,null,819.10545706999983,447.98833333333329,851.70833333333337,601.66323263115476,405.3381525429167,803.43333333333339,946.25308499999994,3923.1847599490707,4869.4378449490714,null,null,1255.4753929591666,817.01249999999982,1401.375,922.0281925582168,587.88886063916664,1426.1916666666666,1746.0984532499999,6404.7685438123835,8150.8669970623841,null,null,-2481.5837838633124,-3281.4291521133114,null,null,{"$f":"'[2]EXT Comercio(M)'!C331","v":818.85059315000035},{"$f":"'[2]EXT Comercio(M)'!D331","v":441.92999999999938},{"$f":"'[2]EXT Comercio(M)'!E331","v":709},{"$f":"'[2]EXT Comercio(M)'!F331","v":582.94515704287596},{"$f":"'[2]EXT Comercio(M)'!G331","v":401.80411848999995},{"$f":"'[2]EXT Comercio(M)'!H331","v":865.69999999999993},{"$f":"'[2]EXT Comercio(M)'!I331","v":1071.3900980000001},{"$f":"'[2]EXT Comercio(M)'!K331","v":3820.2298686828726},{"$f":"'[2]EXT Comercio(M)'!L331","v":4891.6199666828688},null,null,{"$f":"'[2]EXT Comercio(M)'!AG331","v":1267.29274422},{"$f":"'[2]EXT Comercio(M)'!AH331","v":815.44999999999982},{"$f":"'[2]EXT Comercio(M)'!AI331","v":1401.3},{"$f":"'[2]EXT Comercio(M)'!AJ331","v":951.22248254489284},{"$f":"'[2]EXT Comercio(M)'!AK331","v":593.34524988999999},{"$f":"'[2]EXT Comercio(M)'!AL331","v":1510.3000000000002},{"$f":"'[2]EXT Comercio(M)'!AM331","v":2041.0708949999998},{"$f":"'[2]EXT Comercio(M)'!AO331","v":6538.9104766548917},{"$f":"'[2]EXT Comercio(M)'!AP331","v":8579.9813716548961},null,null,{"$f":"'[2]EXT Comercio(M)'!$BS331","v":-2718.6806079720227},{"$f":"'[2]EXT Comercio(M)'!$BT331","v":-3688.3614049720236}]
[null,null,"Noviembre",{"$f":"'[2]REAL IPC(M)'!AD332","v":0.56037233607343251},{"$f":"'[2]REAL IPC(M)'!AE332","v":-0.82211581895383201},{"$f":"'[2]REAL IPC(M)'!AF332","v":4.6715087487619495},{"$f":"'[2]REAL IPC(M)'!AG332","v":3.0355896720167439},{"$f":"'[2]REAL IPC(M)'!AH332","v":3.3063565881557109},{"$f":"'[2]REAL IPC(M)'!AI332","v":0.87741081036338087},{"$f":"'[2]REAL IPC(M)'!AJ332","v":1.2670565302144361},null,null,{"$f":"'[2]REAL IMAE(M)'!AG332","v":4.453585687398304},{"$f":"'[2]REAL IMAE(M)'!AH332","v":2.180665833639126},{"$f":"'[2]REAL IMAE(M)'!AI332","v":3.4206136795726207},{"$f":"'[2]REAL IMAE(M)'!AJ332","v":4.3448263668240266},{"$f":"'[2]REAL IMAE(M)'!AK332","v":4.2881950396363919},{"$f":"'[2]REAL IMAE(M)'!AL332","v":5.2570141282020142},{"$f":"'[2]REAL IMAE(M)'!AM332","v":4.9115853356125116},null,null,{"$f":"'[2]EXT ITCER(M)'!C332","v":76.834120644381386},{"$f":"'[2]EXT ITCER(M)'!D332","v":93.309567402621965},{"$f":"'[2]EXT ITCER(M)'!E332","v":55.112070198782959},{"$f":"'[2]EXT ITCER(M)'!F332","v":79.1811655628984},{"$f":"'[2]EXT ITCER(M)'!G332","v":102.4103602716598},{"$f":"'[2]EXT ITCER(M)'!H332","v":104.68022317554041},{"$f":"'[2]EXT ITCER(M)'!I332","v":88.608387426489116},null,null,{"$f":"'[2]EXT TC(M)'!J332","v":3.9453411719632756},{"$f":"'[2]EXT TC(M)'!K332","v":0},{"$f":"'[2]EXT TC(M)'!L332","v":-1.8119847770722313},{"$f":"'[2]EXT TC(M)'!M332","v":4.6754317166622306},{"$f":"'[2]EXT TC(M)'!N332","v":5.0816028794594548},{"$f":"'[2]EXT TC(M)'!O332","v":2.5594811325957623},{"$f":"'[2]EXT TC(M)'!P332","v":0},null,null,{"$f":"'[2]EXT RIN(M)'!C332","v":7583.0048699999998},{"$f":"'[2]EXT RIN(M)'!D332","v":3028.36},{"$f":"'[2]EXT RIN(M)'!E332","v":9003.6},{"$f":"'[2]EXT RIN(M)'!F332","v":3679.9548910651647},{"$f":"'[2]EXT RIN(M)'!G332","v":2296.1},{"$f":"'[2]EXT RIN(M)'!H332","v":5709.3339168861885},{"$f":"'[2]EXT RIN(M)'!I332","v":4146.9411949899995},null,null,{"$f":"'[2]EXT RIN(M)'!P332","v":64.424380479162167},{"$f":"'[2]EXT RIN(M)'!Q332","v":103.67264972977451},{"$f":"'[2]EXT RIN(M)'!R332","v":105.96905138072084},{"$f":"'[2]EXT RIN(M)'!S332","v":87.809876410777093},{"$f":"'[2]EXT RIN(M)'!T332","v":122.70843659922288},{"$f":"'[2]EXT RIN(M)'!U332","v":80.223642450946016},{"$f":"'[2]EXT RIN(M)'!V332","v":256.95672039036259},null,null,{"$f":"+'[2]MONE(M)CAPARD'!AE332","v":4.0171168523780967},{"$f":"'[2]MONE(M)CAPARD'!AF332","v":5.5477245399890656},{"$f":"'[2]MONE(M)CAPARD'!AG332","v":0.78196183567262456},{"$f":"'[2]MONE(M)CAPARD'!AH332","v":5.2160717913985817},{"$f":"'[2]MONE(M)CAPARD'!AI332","v":5.5430418308140634},{"$f":"'[2]MONE(M)CAPARD'!AJ332","v":7.9230713054894544},{"$f":"'[2]MONE(M)CAPARD'!AK332","v":0.9015206929740025},null,null,{"$f":"'[2]MONE(M)CAPARD'!AL332","v":3.41506775},{"$f":"'[2]MONE(M)CAPARD'!AM332","v":4.68},{"$f":"'[2]MONE(M)CAPARD'!AN332","v":2.86},{"$f":"'[2]MONE(M)CAPARD'!AO332","v":3.63},{"$f":"'[2]MONE(M)CAPARD'!AP332","v":3.49},{"$f":"'[2]MONE(M)CAPARD'!AQ332","v":2.39},{"$f":"'[2]MONE(M)CAPARD'!AR332","v":2.1800000000000002},null,null,{"$f":"'[2]MONE(M)CAPARD'!J332","v":13.613342259887167},{"$f":"'[2]MONE(M)CAPARD'!K332","v":7.1105729641100348},{"$f":"'[2]MONE(M)CAPARD'!L332","v":8.0332187352152857},{"$f":"'[2]MONE(M)CAPARD'!M332","v":15.43584151710126},{"$f":"'[2]MONE(M)CAPARD'!N332","v":13.283814270410184},{"$f":"'[2]MONE(M)CAPARD'!O332","v":14.832447690161645},{"$f":"'[2]MONE(M)CAPARD'!P332","v":4.7625986525505173},null,null,{"$f":"'[2]MONE(M)CAPARD'!Q332","v":9.7899999999999991},{"$f":"'[2]MONE(M)CAPARD'!R332","v":6.23},{"$f":"'[2]MONE(M)CAPARD'!S332","v":6},{"$f":"'[2]MONE(M)CAPARD'!T332","v":8.35},{"$f":"'[2]MONE(M)CAPARD'!U332","v":8.6199999999999992},{"$f":"'[2]MONE(M)CAPARD'!V332","v":6.74},{"$f":"'[2]MONE(M)CAPARD'!W332","v":6.09},null,null,{"$f":"'[2]MONE(M)CAPARD'!AS332","v":1.75},{"$f":"'[2]MONE(M)CAPARD'!AT332","v":"n.a."},{"$f":"'[2]MONE(M)CAPARD'!AU332","v":3},{"$f":"'[2]MONE(M)CAPARD'!AV332","v":5.5},{"$f":"'[2]MONE(M)CAPARD'!AW332","v":"n.a."},{"$f":"'[2]MONE(M)CAPARD'!AX332","v":5.5},{"$f":"'[2]MONE(M)CAPARD'!AY332","v":"n.a."},null,null,{"$f":"+'Datos_Regional (M)'!CF325","v":12.903849542799261},{"$f":"+'Datos_Regional (M)'!CG325","v":5.4434743445559874},{"$f":"+'Datos_Regional (M)'!CH325","v":6.0260948660573632},{"$f":"+'Datos_Regional (M)'!CI325","v":9.9205489935114919},{"$f":"+'Datos_Regional (M)'!CJ325","v":18.703604357627569},{"$f":"+'Datos_Regional (M)'!CK325","v":11.696356462873014},{"$f":"+'Datos_Regional (M)'!CL325","v":8.0382702238769976},null,null,825.20149972083345,450.10083333333318,857.32499999999993,635.60518349841698,405.34422214958335,812.44166666666661,943.26246524999988,3979.9663230738338,4923.2287883238332,null,null,1265.0422712425,818.13249999999982,1409.0916666666665,943.35804014053394,581.70506728166663,1440.5249999999999,1745.9876356666666,6452.6514763205314,8198.6391119872005,null,null,-2472.6851532467003,-3275.4103236633659,null,null,{"$f":"'[2]EXT Comercio(M)'!C332","v":851.28784198999983},{"$f":"'[2]EXT Comercio(M)'!D332","v":434.10000000000036},{"$f":"'[2]EXT Comercio(M)'!E332","v":853.80000000000007},{"$f":"'[2]EXT Comercio(M)'!F332","v":665.96464982080192},{"$f":"'[2]EXT Comercio(M)'!G332","v":370.12433506000002},{"$f":"'[2]EXT Comercio(M)'!H332","v":855.90000000000009},{"$f":"'[2]EXT Comercio(M)'!I332","v":969.80848400000002},{"$f":"'[2]EXT Comercio(M)'!K332","v":4031.1768268708038},{"$f":"'[2]EXT Comercio(M)'!L332","v":5000.9853108708048},null,null,{"$f":"'[2]EXT Comercio(M)'!AG332","v":1435.4082372799992},{"$f":"'[2]EXT Comercio(M)'!AH332","v":865.81999999999971},{"$f":"'[2]EXT Comercio(M)'!AI332","v":1554.7},{"$f":"'[2]EXT Comercio(M)'!AJ332","v":998.66646018347387},{"$f":"'[2]EXT Comercio(M)'!AK332","v":607.26688137999997},{"$f":"'[2]EXT Comercio(M)'!AL332","v":1603.9999999999998},{"$f":"'[2]EXT Comercio(M)'!AM332","v":1686.1622870000001},{"$f":"'[2]EXT Comercio(M)'!AO332","v":7065.861578843469},{"$f":"'[2]EXT Comercio(M)'!AP332","v":8752.0238658434682},null,null,{"$f":"'[2]EXT Comercio(M)'!$BS332","v":-3034.6847519726653},{"$f":"'[2]EXT Comercio(M)'!$BT332","v":-3751.038554972667}]
[null,null,"Diciembre ",{"$f":"'[2]REAL IPC(M)'!AD333","v":0.76519109124868812},{"$f":"'[2]REAL IPC(M)'!AE333","v":-0.93119971069523655},{"$f":"'[2]REAL IPC(M)'!AF333","v":4.2324128862590271},{"$f":"'[2]REAL IPC(M)'!AG333","v":3.3147243545010467},{"$f":"'[2]REAL IPC(M)'!AH333","v":3.1296532012614322},{"$f":"'[2]REAL IPC(M)'!AI333","v":1.6953357591796103},{"$f":"'[2]REAL IPC(M)'!AJ333","v":1.4634146341463417},null,null,{"$f":"'[2]REAL IMAE(M)'!AG333","v":4.191586762100842},{"$f":"'[2]REAL IMAE(M)'!AH333","v":3.0262871264006073},{"$f":"'[2]REAL IMAE(M)'!AI333","v":4.1102307784739613},{"$f":"'[2]REAL IMAE(M)'!AJ333","v":4.6978733711788365},{"$f":"'[2]REAL IMAE(M)'!AK333","v":4.980116309590719},{"$f":"'[2]REAL IMAE(M)'!AL333","v":5.3308203578620965},{"$f":"'[2]REAL IMAE(M)'!AM333","v":5.489548429801185},null,null,{"$f":"'[2]EXT ITCER(M)'!C333","v":76.466959521635459},{"$f":"'[2]EXT ITCER(M)'!D333","v":93.715863419994832},{"$f":"'[2]EXT ITCER(M)'!E333","v":55.245369747816959},{"$f":"'[2]EXT ITCER(M)'!F333","v":80.107722257573329},{"$f":"'[2]EXT ITCER(M)'!G333","v":102.2030045092886},{"$f":"'[2]EXT ITCER(M)'!H333","v":104.22072659287549},{"$f":"'[2]EXT ITCER(M)'!I333","v":88.746665801246863},null,null,{"$f":"'[2]EXT TC(M)'!J333","v":3.4311838952807183},{"$f":"'[2]EXT TC(M)'!K333","v":0},{"$f":"'[2]EXT TC(M)'!L333","v":-1.4716797389061356},{"$f":"'[2]EXT TC(M)'!M333","v":5.2288130433529458},{"$f":"'[2]EXT TC(M)'!N333","v":5.1720265242132593},{"$f":"'[2]EXT TC(M)'!O333","v":2.5238231475164485},{"$f":"'[2]EXT TC(M)'!P333","v":0},null,null,{"$f":"'[2]EXT RIN(M)'!C333","v":7573.8},{"$f":"'[2]EXT RIN(M)'!D333","v":2922.99},{"$f":"'[2]EXT RIN(M)'!E333","v":9160.4},{"$f":"'[2]EXT RIN(M)'!F333","v":3887.6050145088475},{"$f":"'[2]EXT RIN(M)'!G333","v":2387.5},{"$f":"'[2]EXT RIN(M)'!H333","v":6046.699976951857},{"$f":"'[2]EXT RIN(M)'!I333","v":4502.1774745299999},null,null,{"$f":"'[2]EXT RIN(M)'!P333","v":65.431752834127167},{"$f":"'[2]EXT RIN(M)'!Q333","v":101.17474561715942},{"$f":"'[2]EXT RIN(M)'!R333","v":100.23957162416191},{"$f":"'[2]EXT RIN(M)'!S333","v":81.977400691635239},{"$f":"'[2]EXT RIN(M)'!T333","v":122.32108072957088},{"$f":"'[2]EXT RIN(M)'!U333","v":80.01081823949751},{"$f":"'[2]EXT RIN(M)'!V333","v":275.42153380223914},null,null,{"$f":"+'[2]MONE(M)CAPARD'!AE333","v":3.6568271928492697},{"$f":"'[2]MONE(M)CAPARD'!AF333","v":5.6942243110056587},{"$f":"'[2]MONE(M)CAPARD'!AG333","v":1.1585523929669768},{"$f":"'[2]MONE(M)CAPARD'!AH333","v":4.6995001688618707},{"$f":"'[2]MONE(M)CAPARD'!AI333","v":6.5389174686972371},{"$f":"'[2]MONE(M)CAPARD'!AJ333","v":5.0490656257623945},{"$f":"'[2]MONE(M)CAPARD'!AK333","v":0.71610576923076896},null,null,{"$f":"'[2]MONE(M)CAPARD'!AL333","v":3.28515902},{"$f":"'[2]MONE(M)CAPARD'!AM333","v":4.71},{"$f":"'[2]MONE(M)CAPARD'!AN333","v":2.88},{"$f":"'[2]MONE(M)CAPARD'!AO333","v":3.55},{"$f":"'[2]MONE(M)CAPARD'!AP333","v":3.54},{"$f":"'[2]MONE(M)CAPARD'!AQ333","v":2.0699999999999998},{"$f":"'[2]MONE(M)CAPARD'!AR333","v":2.19},null,null,{"$f":"'[2]MONE(M)CAPARD'!J333","v":13.382407915586684},{"$f":"'[2]MONE(M)CAPARD'!K333","v":7.0468196751231984},{"$f":"'[2]MONE(M)CAPARD'!L333","v":8.4403563825593455},{"$f":"'[2]MONE(M)CAPARD'!M333","v":14.978770685579196},{"$f":"'[2]MONE(M)CAPARD'!N333","v":13.351207778746993},{"$f":"'[2]MONE(M)CAPARD'!O333","v":12.551867935268779},{"$f":"'[2]MONE(M)CAPARD'!P333","v":4.5697115384615374},null,null,{"$f":"'[2]MONE(M)CAPARD'!Q333","v":9.82},{"$f":"'[2]MONE(M)CAPARD'!R333","v":6.05},{"$f":"'[2]MONE(M)CAPARD'!S333","v":5.93},{"$f":"'[2]MONE(M)CAPARD'!T333","v":8.18},{"$f":"'[2]MONE(M)CAPARD'!U333","v":7.64},{"$f":"'[2]MONE(M)CAPARD'!V333","v":6.98},{"$f":"'[2]MONE(M)CAPARD'!W333","v":6.1},null,null,{"$f":"'[2]MONE(M)CAPARD'!AS333","v":1.75},{"$f":"'[2]MONE(M)CAPARD'!AT333","v":"n.a."},{"$f":"'[2]MONE(M)CAPARD'!AU333","v":3},{"$f":"'[2]MONE(M)CAPARD'!AV333","v":5.5},{"$f":"'[2]MONE(M)CAPARD'!AW333","v":"n.a."},{"$f":"'[2]MONE(M)CAPARD'!AX333","v":5.5},{"$f":"'[2]MONE(M)CAPARD'!AY333","v":"n.a."},null,null,{"$f":"+'Datos_Regional (M)'!CF326","v":12.158417364699691},{"$f":"+'Datos_Regional (M)'!CG326","v":4.9681376664200805},{"$f":"+'Datos_Regional (M)'!CH326","v":6.6840962486078404},{"$f":"+'Datos_Regional (M)'!CI326","v":11.915041732264854},{"$f":"+'Datos_Regional (M)'!CJ326","v":17.512010337992635},{"$f":"+'Datos_Regional (M)'!CK326","v":11.407213499098457},{"$f":"+'Datos_Regional (M)'!CL326","v":8.5815479642203698},null,null,827.01339834166663,451.67916666666662,870.75833333333321,660.50366210619268,403.26302208791668,819.9666666666667,{"$f":"IF(EN138=\"\",\"\",+AVERAGE(EN127:EN138))","v":932.91222266666671},4033.1842492024425,4966.0964718691093,null,null,1269.2411354433334,818.8158333333331,1416.8916666666664,956.68745202381763,580.8409775191667,1449.8833333333332,1744.5847155833333,6492.3603983196508,8236.9451139029843,null,null,-2459.1761491172083,-3270.8486420338754,null,null,{"$f":"'[2]EXT Comercio(M)'!C333","v":819.45972531999996},{"$f":"'[2]EXT Comercio(M)'!D333","v":402.06999999999971},{"$f":"'[2]EXT Comercio(M)'!E333","v":974.40000000000009},{"$f":"'[2]EXT Comercio(M)'!F333","v":611.72421820174304},{"$f":"'[2]EXT Comercio(M)'!G333","v":337.50494485000002},{"$f":"'[2]EXT Comercio(M)'!H333","v":755.09999999999991},{"$f":"'[2]EXT Comercio(M)'!I333","v":791.43451399999992},{"$f":"'[2]EXT Comercio(M)'!K333","v":3900.2588883717399},{"$f":"'[2]EXT Comercio(M)'!L333","v":4691.6934023717404},null,null,{"$f":"'[2]EXT Comercio(M)'!AG333","v":1326.0863704100002},{"$f":"'[2]EXT Comercio(M)'!AH333","v":812.73999999999796},{"$f":"'[2]EXT Comercio(M)'!AI333","v":1483},{"$f":"'[2]EXT Comercio(M)'!AJ333","v":937.24533079490334},{"$f":"'[2]EXT Comercio(M)'!AK333","v":558.76567333999992},{"$f":"'[2]EXT Comercio(M)'!AL333","v":1530.9},{"$f":"'[2]EXT Comercio(M)'!AM333","v":1657.3916119999999},{"$f":"'[2]EXT Comercio(M)'!AO333","v":6648.7373745449004},{"$f":"'[2]EXT Comercio(M)'!AP333","v":8306.1289865449071},null,null,{"$f":"'[2]EXT Comercio(M)'!$BS333","v":-2748.4784861731641},{"$f":"'[2]EXT Comercio(M)'!$BT333","v":-3614.4355841731667}]
[null,2017,"Enero",{"$f":"'[2]REAL IPC(M)'!AD334","v":0.65571453973752936},{"$f":"'[2]REAL IPC(M)'!AE334","v":-0.25300442757748359},{"$f":"'[2]REAL IPC(M)'!AF334","v":3.8276732632950643},{"$f":"'[2]REAL IPC(M)'!AG334","v":3.4434782608695569},{"$f":"'[2]REAL IPC(M)'!AH334","v":3.8815156361188228},{"$f":"'[2]REAL IPC(M)'!AI334","v":2.3323132908775168},{"$f":"'[2]REAL IPC(M)'!AJ334","v":1.6569200779727127},null,null,{"$f":"'[2]REAL IMAE(M)'!AG334","v":3.6231309226706538},{"$f":"'[2]REAL IMAE(M)'!AH334","v":3.0932858710803828},{"$f":"'[2]REAL IMAE(M)'!AI334","v":4.5709628788330559},{"$f":"'[2]REAL IMAE(M)'!AJ334","v":4.879374304706328},{"$f":"'[2]REAL IMAE(M)'!AK334","v":5.6300752027601044},{"$f":"'[2]REAL IMAE(M)'!AL334","v":5.5537258812885906},{"$f":"'[2]REAL IMAE(M)'!AM334","v":6.0256212673679022},null,null,{"$f":"'[2]EXT ITCER(M)'!C334","v":76.6587744038723},{"$f":"'[2]EXT ITCER(M)'!D334","v":93.40433211297497},{"$f":"'[2]EXT ITCER(M)'!E334","v":55.269651899721879},{"$f":"'[2]EXT ITCER(M)'!F334","v":80.528495828854091},{"$f":"'[2]EXT ITCER(M)'!G334","v":102.4475176016755},{"$f":"'[2]EXT ITCER(M)'!H334","v":104.22571261992741},{"$f":"'[2]EXT ITCER(M)'!I334","v":88.84917966691286},null,null,{"$f":"'[2]EXT TC(M)'!J334","v":3.4686020796032864},{"$f":"'[2]EXT TC(M)'!K334","v":0},{"$f":"'[2]EXT TC(M)'!L334","v":-1.7561971290336555},{"$f":"'[2]EXT TC(M)'!M334","v":5.0437744599621999},{"$f":"'[2]EXT TC(M)'!N334","v":4.9127955366307328},{"$f":"'[2]EXT TC(M)'!O334","v":2.5519819705043769},{"$f":"'[2]EXT TC(M)'!P334","v":0},null,null,{"$f":"'[2]EXT RIN(M)'!C334","v":7523.8},{"$f":"'[2]EXT RIN(M)'!D334","v":2903.89},{"$f":"'[2]EXT RIN(M)'!E334","v":9065.2000000000007},{"$f":"'[2]EXT RIN(M)'!F334","v":4445.9861856149864},{"$f":"'[2]EXT RIN(M)'!G334","v":2398.9},{"$f":"'[2]EXT RIN(M)'!H334","v":6707},{"$f":"'[2]EXT RIN(M)'!I334","v":4320.8750235799998},null,null,{"$f":"'[2]EXT RIN(M)'!P334","v":66.425655942158599},{"$f":"'[2]EXT RIN(M)'!Q334","v":101.29999609296512},{"$f":"'[2]EXT RIN(M)'!R334","v":100.19886947647763},{"$f":"'[2]EXT RIN(M)'!S334","v":100.60671451113909},{"$f":"'[2]EXT RIN(M)'!T334","v":123.58945069165821},{"$f":"'[2]EXT RIN(M)'!U334","v":94.445259274215715},{"$f":"'[2]EXT RIN(M)'!V334","v":282.00464541856991},null,null,{"$f":"+'[2]MONE(M)CAPARD'!AE334","v":3.8689164128133613},{"$f":"'[2]MONE(M)CAPARD'!AF334","v":4.8051616994292967},{"$f":"'[2]MONE(M)CAPARD'!AG334","v":1.5625186289120641},{"$f":"'[2]MONE(M)CAPARD'!AH334","v":4.8978648285137947},{"$f":"'[2]MONE(M)CAPARD'!AI334","v":5.0627539735370517},{"$f":"'[2]MONE(M)CAPARD'!AJ334","v":3.6427269053584372},{"$f":"'[2]MONE(M)CAPARD'!AK334","v":0.52439117929050505},null,null,{"$f":"'[2]MONE(M)CAPARD'!AL334","v":3.3116097899999999},{"$f":"'[2]MONE(M)CAPARD'!AM334","v":4.54},{"$f":"'[2]MONE(M)CAPARD'!AN334","v":2.91},{"$f":"'[2]MONE(M)CAPARD'!AO334","v":3.65},{"$f":"'[2]MONE(M)CAPARD'!AP334","v":3.79},{"$f":"'[2]MONE(M)CAPARD'!AQ334","v":1.77},{"$f":"'[2]MONE(M)CAPARD'!AR334","v":2.19},null,null,{"$f":"'[2]MONE(M)CAPARD'!J334","v":13.505726448244156},{"$f":"'[2]MONE(M)CAPARD'!K334","v":6.1385351934052013},{"$f":"'[2]MONE(M)CAPARD'!L334","v":8.882339791356177},{"$f":"'[2]MONE(M)CAPARD'!M334","v":15.792703429724288},{"$f":"'[2]MONE(M)CAPARD'!N334","v":12.516018650310142},{"$f":"'[2]MONE(M)CAPARD'!O334","v":14.030452598399739},{"$f":"'[2]MONE(M)CAPARD'!P334","v":4.2837679769894512},null,null,{"$f":"'[2]MONE(M)CAPARD'!Q334","v":9.84},{"$f":"'[2]MONE(M)CAPARD'!R334","v":5.87},{"$f":"'[2]MONE(M)CAPARD'!S334","v":6},{"$f":"'[2]MONE(M)CAPARD'!T334","v":8.43},{"$f":"'[2]MONE(M)CAPARD'!U334","v":7.87},{"$f":"'[2]MONE(M)CAPARD'!V334","v":6.94},{"$f":"'[2]MONE(M)CAPARD'!W334","v":6.0116666666666667},null,null,{"$f":"'[2]MONE(M)CAPARD'!AS334","v":1.75},{"$f":"'[2]MONE(M)CAPARD'!AT334","v":"n.a."},{"$f":"'[2]MONE(M)CAPARD'!AU334","v":3},{"$f":"'[2]MONE(M)CAPARD'!AV334","v":5.5},{"$f":"'[2]MONE(M)CAPARD'!AW334","v":"n.a."},{"$f":"'[2]MONE(M)CAPARD'!AX334","v":5.5},{"$f":"'[2]MONE(M)CAPARD'!AY334","v":"n.a."},null,null,{"$f":"+'Datos_Regional (M)'!CF327","v":12.556381352263069},{"$f":"+'Datos_Regional (M)'!CG327","v":5.3237769079120145},{"$f":"+'Datos_Regional (M)'!CH327","v":6.1780908224726483},{"$f":"+'Datos_Regional (M)'!CI327","v":12.145577932808971},{"$f":"+'Datos_Regional (M)'!CJ327","v":18.663532732878551},{"$f":"+'Datos_Regional (M)'!CK327","v":11.321829171175658},{"$f":"+'Datos_Regional (M)'!CL327","v":8.2779128203285488},null,null,{"$f":"IF(EH139=\"\",\"\",+AVERAGE(EH128:EH139))","v":831.0615955799999},{"$f":"IF(EI139=\"\",\"\",+AVERAGE(EI128:EI139))","v":452.97499999999997},{"$f":"IF(EJ139=\"\",\"\",+AVERAGE(EJ128:EJ139))","v":874.52499999999998},{"$f":"IF(EK139=\"\",\"\",+AVERAGE(EK128:EK139))","v":668.29247196131621},{"$f":"IF(EL139=\"\",\"\",+AVERAGE(EL128:EL139))","v":406.90297818775002},{"$f":"IF(EM139=\"\",\"\",+AVERAGE(EM128:EM139))","v":824},{"$f":"IF(EN139=\"\",\"\",+AVERAGE(EN128:EN139))","v":937.85479633333341},{"$f":"IF(EO139=\"\",\"\",+AVERAGE(EO128:EO139))","v":4057.7570457290662},{"$f":"IF(EP139=\"\",\"\",+AVERAGE(EP128:EP139))","v":4995.6118420623998},null,null,{"$f":"IF(ES139=\"\",\"\",+AVERAGE(ES128:ES139))","v":1278.7939611883335},{"$f":"IF(ET139=\"\",\"\",+AVERAGE(ET128:ET139))","v":824.04999999999973},{"$f":"IF(EU139=\"\",\"\",+AVERAGE(EU128:EU139))","v":1429.9916666666668},{"$f":"IF(EV139=\"\",\"\",+AVERAGE(EV128:EV139))","v":960.88311624037669},{"$f":"IF(EW139=\"\",\"\",+AVERAGE(EW128:EW139))","v":583.9068092133333},{"$f":"IF(EX139=\"\",\"\",+AVERAGE(EX128:EX139))","v":1466.2416666666666},{"$f":"IF(EY139=\"\",\"\",+AVERAGE(EY128:EY139))","v":1764.7853749166663},{"$f":"IF(EZ139=\"\",\"\",+AVERAGE(EZ128:EZ139))","v":6543.8672199753755},{"$f":"IF(FA139=\"\",\"\",+AVERAGE(FA128:FA139))","v":8308.6525948920425},null,null,{"$f":"IF(FD139=\"\",\"\",+AVERAGE(FD128:FD139))","v":-2486.1101742463102},{"$f":"IF(FE139=\"\",\"\",+AVERAGE(FE128:FE139))","v":-3313.0407528296441},null,null,{"$f":"'[2]EXT Comercio(M)'!C334","v":757.31478396},{"$f":"'[2]EXT Comercio(M)'!D334","v":426.17},{"$f":"'[2]EXT Comercio(M)'!E334","v":879},{"$f":"'[2]EXT Comercio(M)'!F334","v":697.8050586030588},{"$f":"'[2]EXT Comercio(M)'!G334","v":414.71285817999996},{"$f":"'[2]EXT Comercio(M)'!H334","v":671.5},{"$f":"'[2]EXT Comercio(M)'!I334","v":738.16528700000003},{"$f":"'[2]EXT Comercio(M)'!K334","v":3846.5027007430581},{"$f":"'[2]EXT Comercio(M)'!L334","v":4584.6679877430579},null,null,{"$f":"'[2]EXT Comercio(M)'!AG334","v":1277.2411246500001},{"$f":"'[2]EXT Comercio(M)'!AH334","v":846.91},{"$f":"'[2]EXT Comercio(M)'!AI334","v":1431.8000000000002},{"$f":"'[2]EXT Comercio(M)'!AJ334","v":891.15247544999966},{"$f":"'[2]EXT Comercio(M)'!AK334","v":553.62422431000005},{"$f":"'[2]EXT Comercio(M)'!AL334","v":1327.6},{"$f":"'[2]EXT Comercio(M)'!AM334","v":1643.1285859999998},{"$f":"'[2]EXT Comercio(M)'!AO334","v":6328.3278244100002},{"$f":"'[2]EXT Comercio(M)'!AP334","v":7971.45641041},null,null,{"$f":"'[2]EXT Comercio(M)'!$BS334","v":-2481.8251236669412},{"$f":"'[2]EXT Comercio(M)'!$BT334","v":-3386.7884226669412}]
[null,null,"Febrero",{"$f":"'[2]REAL IPC(M)'!AD335","v":1.0854653797116591},{"$f":"'[2]REAL IPC(M)'!AE335","v":0.28993385883844625},{"$f":"'[2]REAL IPC(M)'!AF335","v":3.9577407557903217},{"$f":"'[2]REAL IPC(M)'!AG335","v":3.8421599169262799},{"$f":"'[2]REAL IPC(M)'!AH335","v":3.6910327222805419},{"$f":"'[2]REAL IPC(M)'!AI335","v":3.3435914497213495},{"$f":"'[2]REAL IPC(M)'!AJ335","v":1.8500486854917151},null,null,{"$f":"'[2]REAL IMAE(M)'!AG335","v":3.2245175504456083},{"$f":"'[2]REAL IMAE(M)'!AH335","v":3.1435262726792255},{"$f":"'[2]REAL IMAE(M)'!AI335","v":4.5973667511307825},{"$f":"'[2]REAL IMAE(M)'!AJ335","v":5.0707833287006379},{"$f":"'[2]REAL IMAE(M)'!AK335","v":5.9579112083197403},{"$f":"'[2]REAL IMAE(M)'!AL335","v":5.676950631818654},{"$f":"'[2]REAL IMAE(M)'!AM335","v":6.6715217640370552},null,null,{"$f":"'[2]EXT ITCER(M)'!C335","v":77.246165121675304},{"$f":"'[2]EXT ITCER(M)'!D335","v":93.29953888714266},{"$f":"'[2]EXT ITCER(M)'!E335","v":54.341620164960688},{"$f":"'[2]EXT ITCER(M)'!F335","v":79.889621253706096},{"$f":"'[2]EXT ITCER(M)'!G335","v":102.29588508540721},{"$f":"'[2]EXT ITCER(M)'!H335","v":104.70051383251921},{"$f":"'[2]EXT ITCER(M)'!I335","v":88.735454553667623},null,null,{"$f":"'[2]EXT TC(M)'!J335","v":4.4512491086021555},{"$f":"'[2]EXT TC(M)'!K335","v":0},{"$f":"'[2]EXT TC(M)'!L335","v":-3.4227786000826295},{"$f":"'[2]EXT TC(M)'!M335","v":4.337797454344221},{"$f":"'[2]EXT TC(M)'!N335","v":4.8830684723851592},{"$f":"'[2]EXT TC(M)'!O335","v":2.9774979468929654},{"$f":"'[2]EXT TC(M)'!P335","v":0},null,null,{"$f":"'[2]EXT RIN(M)'!C335","v":7454.1},{"$f":"'[2]EXT RIN(M)'!D335","v":3510.89},{"$f":"'[2]EXT RIN(M)'!E335","v":9267.5},{"$f":"'[2]EXT RIN(M)'!F335","v":4508.2249684299941},{"$f":"'[2]EXT RIN(M)'!G335","v":2372.5},{"$f":"'[2]EXT RIN(M)'!H335","v":6299.1},{"$f":"'[2]EXT RIN(M)'!I335","v":4222.02254558},null,null,{"$f":"'[2]EXT RIN(M)'!P335","v":66.498184998381603},{"$f":"'[2]EXT RIN(M)'!Q335","v":121.61061699837859},{"$f":"'[2]EXT RIN(M)'!R335","v":102.56628821147807},{"$f":"'[2]EXT RIN(M)'!S335","v":89.503656251236862},{"$f":"'[2]EXT RIN(M)'!T335","v":120.10964311875291},{"$f":"'[2]EXT RIN(M)'!U335","v":86.510814808614697},{"$f":"'[2]EXT RIN(M)'!V335","v":255.90067428885615},null,null,{"$f":"+'[2]MONE(M)CAPARD'!AE335","v":3.4767952119392671},{"$f":"'[2]MONE(M)CAPARD'!AF335","v":4.2976059264612942},{"$f":"'[2]MONE(M)CAPARD'!AG335","v":1.4354479362101389},{"$f":"'[2]MONE(M)CAPARD'!AH335","v":4.504759999999993},{"$f":"'[2]MONE(M)CAPARD'!AI335","v":5.6406459042062744},{"$f":"'[2]MONE(M)CAPARD'!AJ335","v":3.6155203219316081},{"$f":"'[2]MONE(M)CAPARD'!AK335","v":0.20613766730402358},null,null,{"$f":"'[2]MONE(M)CAPARD'!AL335","v":3.5570540300000002},{"$f":"'[2]MONE(M)CAPARD'!AM335","v":4.5999999999999996},{"$f":"'[2]MONE(M)CAPARD'!AN335","v":2.95},{"$f":"'[2]MONE(M)CAPARD'!AO335","v":3.62},{"$f":"'[2]MONE(M)CAPARD'!AP335","v":3.94},{"$f":"'[2]MONE(M)CAPARD'!AQ335","v":2.2400000000000002},{"$f":"'[2]MONE(M)CAPARD'!AR335","v":2.06},null,null,{"$f":"'[2]MONE(M)CAPARD'!J335","v":13.112206161884664},{"$f":"'[2]MONE(M)CAPARD'!K335","v":5.7533851296413472},{"$f":"'[2]MONE(M)CAPARD'!L335","v":8.7461108505315899},{"$f":"'[2]MONE(M)CAPARD'!M335","v":15.319249999999993},{"$f":"'[2]MONE(M)CAPARD'!N335","v":13.317900810496269},{"$f":"'[2]MONE(M)CAPARD'!O335","v":11.937274849094587},{"$f":"'[2]MONE(M)CAPARD'!P335","v":4.3396653919694153},null,null,{"$f":"'[2]MONE(M)CAPARD'!Q335","v":9.9},{"$f":"'[2]MONE(M)CAPARD'!R335","v":6.06},{"$f":"'[2]MONE(M)CAPARD'!S335","v":5.98},{"$f":"'[2]MONE(M)CAPARD'!T335","v":8.42},{"$f":"'[2]MONE(M)CAPARD'!U335","v":8.1300000000000008},{"$f":"'[2]MONE(M)CAPARD'!V335","v":5.82},{"$f":"'[2]MONE(M)CAPARD'!W335","v":6.27},null,null,{"$f":"'[2]MONE(M)CAPARD'!AS335","v":1.75},{"$f":"'[2]MONE(M)CAPARD'!AT335","v":"n.a."},{"$f":"'[2]MONE(M)CAPARD'!AU335","v":3},{"$f":"'[2]MONE(M)CAPARD'!AV335","v":5.5},{"$f":"'[2]MONE(M)CAPARD'!AW335","v":"n.a."},{"$f":"'[2]MONE(M)CAPARD'!AX335","v":5.5},{"$f":"'[2]MONE(M)CAPARD'!AY335","v":"n.a."},null,null,{"$f":"+'Datos_Regional (M)'!CF328","v":13.299844016974793},{"$f":"+'Datos_Regional (M)'!CG328","v":5.909280869761413},{"$f":"+'Datos_Regional (M)'!CH328","v":6.1751688690227402},{"$f":"+'Datos_Regional (M)'!CI328","v":10.316625025285585},{"$f":"+'Datos_Regional (M)'!CJ328","v":17.390242563248549},{"$f":"+'Datos_Regional (M)'!CK328","v":11.829734286162896},{"$f":"+'Datos_Regional (M)'!CL328","v":8.6213152908029667},null,null,830.48284452083328,455.83083333333326,882.8416666666667,672.12971069315961,410.03311236608329,821.76666666666677,958.9518519999998,4073.084834246742,5032.0366862467426,null,null,1283.7562349566667,824.33916666666653,1436.9416666666668,967.04142680084624,582.68230238499984,1472.0083333333332,1773.6419804999998,6566.769130809178,8340.4111113091803,null,null,-2493.6842965624369,-3308.3744250624372,null,null,{"$f":"'[2]EXT Comercio(M)'!C335","v":835.72804483000004},{"$f":"'[2]EXT Comercio(M)'!D335","v":451.35999999999996},{"$f":"'[2]EXT Comercio(M)'!E335","v":942},{"$f":"'[2]EXT Comercio(M)'!F335","v":742.8274908711337},{"$f":"'[2]EXT Comercio(M)'!G335","v":447.01642594000003},{"$f":"'[2]EXT Comercio(M)'!H335","v":779.7},{"$f":"'[2]EXT Comercio(M)'!I335","v":981.96570200000008},{"$f":"'[2]EXT Comercio(M)'!K335","v":4198.6319616411338},{"$f":"'[2]EXT Comercio(M)'!L335","v":5180.5976636411342},null,null,{"$f":"'[2]EXT Comercio(M)'!AG335","v":1202.4740107299999},{"$f":"'[2]EXT Comercio(M)'!AH335","v":760.33},{"$f":"'[2]EXT Comercio(M)'!AI335","v":1352.4},{"$f":"'[2]EXT Comercio(M)'!AJ335","v":951.11695849700163},{"$f":"'[2]EXT Comercio(M)'!AK335","v":536.72006309999995},{"$f":"'[2]EXT Comercio(M)'!AL335","v":1336.5},{"$f":"'[2]EXT Comercio(M)'!AM335","v":1573.0740449999998},{"$f":"'[2]EXT Comercio(M)'!AO335","v":6139.5410323270007},{"$f":"'[2]EXT Comercio(M)'!AP335","v":7712.615077327001},null,null,{"$f":"'[2]EXT Comercio(M)'!$BS335","v":-1940.9090706858669},{"$f":"'[2]EXT Comercio(M)'!$BT335","v":-2532.0174136858668}]
[null,null,"Marzo",{"$f":"'[2]REAL IPC(M)'!AD336","v":1.5816604303683284},{"$f":"'[2]REAL IPC(M)'!AE336","v":0.5438723712835466},{"$f":"'[2]REAL IPC(M)'!AF336","v":3.9983779399837882},{"$f":"'[2]REAL IPC(M)'!AG336","v":3.9364640883977819},{"$f":"'[2]REAL IPC(M)'!AH336","v":3.1655557282095037},{"$f":"'[2]REAL IPC(M)'!AI336","v":3.1442355681250778},{"$f":"'[2]REAL IPC(M)'!AJ336","v":1.4563106796116505},null,null,{"$f":"'[2]REAL IMAE(M)'!AG336","v":3.2325305311446608},{"$f":"'[2]REAL IMAE(M)'!AH336","v":2.7229996776734717},{"$f":"'[2]REAL IMAE(M)'!AI336","v":4.2084870802430832},{"$f":"'[2]REAL IMAE(M)'!AJ336","v":5.294982677795109},{"$f":"'[2]REAL IMAE(M)'!AK336","v":5.856479893844571},{"$f":"'[2]REAL IMAE(M)'!AL336","v":5.6552467746592754},{"$f":"'[2]REAL IMAE(M)'!AM336","v":7.2463568769429543},null,null,{"$f":"'[2]EXT ITCER(M)'!C336","v":77.480162094469776},{"$f":"'[2]EXT ITCER(M)'!D336","v":93.062576775472337},{"$f":"'[2]EXT ITCER(M)'!E336","v":53.851276646844738},{"$f":"'[2]EXT ITCER(M)'!F336","v":79.339471840934706},{"$f":"'[2]EXT ITCER(M)'!G336","v":102.3552859070969},{"$f":"'[2]EXT ITCER(M)'!H336","v":105.2916542322871},{"$f":"'[2]EXT ITCER(M)'!I336","v":88.778871843473141},null,null,{"$f":"'[2]EXT TC(M)'!J336","v":4.6288895432810078},{"$f":"'[2]EXT TC(M)'!K336","v":0},{"$f":"'[2]EXT TC(M)'!L336","v":-4.672961520530567},{"$f":"'[2]EXT TC(M)'!M336","v":3.8358611013782928},{"$f":"'[2]EXT TC(M)'!N336","v":4.9564182065029012},{"$f":"'[2]EXT TC(M)'!O336","v":3.279653156936857},{"$f":"'[2]EXT TC(M)'!P336","v":0},null,null,{"$f":"'[2]EXT RIN(M)'!C336","v":7273.8},{"$f":"'[2]EXT RIN(M)'!D336","v":3136.38},{"$f":"'[2]EXT RIN(M)'!E336","v":9424.5},{"$f":"'[2]EXT RIN(M)'!F336","v":4480.3941721141564},{"$f":"'[2]EXT RIN(M)'!G336","v":2404.1},{"$f":"'[2]EXT RIN(M)'!H336","v":6456.4},{"$f":"'[2]EXT RIN(M)'!I336","v":3757.08828541},null,null,{"$f":"'[2]EXT RIN(M)'!P336","v":65.006597998694716},{"$f":"'[2]EXT RIN(M)'!Q336","v":100.28345187792864},{"$f":"'[2]EXT RIN(M)'!R336","v":102.76811868983131},{"$f":"'[2]EXT RIN(M)'!S336","v":86.445024245278319},{"$f":"'[2]EXT RIN(M)'!T336","v":123.921921718804},{"$f":"'[2]EXT RIN(M)'!U336","v":86.015874936279275},{"$f":"'[2]EXT RIN(M)'!V336","v":228.79233267044364},null,null,{"$f":"+'[2]MONE(M)CAPARD'!AE336","v":2.872900046393827},{"$f":"'[2]MONE(M)CAPARD'!AF336","v":4.1734294987378213},{"$f":"'[2]MONE(M)CAPARD'!AG336","v":1.3861966778444899},{"$f":"'[2]MONE(M)CAPARD'!AH336","v":3.9673621262458552},{"$f":"'[2]MONE(M)CAPARD'!AI336","v":6.3750687931510486},{"$f":"'[2]MONE(M)CAPARD'!AJ336","v":2.7784048387097031},{"$f":"'[2]MONE(M)CAPARD'!AK336","v":0.63444976076555026},null,null,{"$f":"'[2]MONE(M)CAPARD'!AL336","v":3.5658683799999999},{"$f":"'[2]MONE(M)CAPARD'!AM336","v":4.74},{"$f":"'[2]MONE(M)CAPARD'!AN336","v":2.97},{"$f":"'[2]MONE(M)CAPARD'!AO336","v":3.54},{"$f":"'[2]MONE(M)CAPARD'!AP336","v":4.1100000000000003},{"$f":"'[2]MONE(M)CAPARD'!AQ336","v":2.11},{"$f":"'[2]MONE(M)CAPARD'!AR336","v":2.1},null,null,{"$f":"'[2]MONE(M)CAPARD'!J336","v":12.323424835344838},{"$f":"'[2]MONE(M)CAPARD'!K336","v":5.3569924269743874},{"$f":"'[2]MONE(M)CAPARD'!L336","v":8.7324651017702468},{"$f":"'[2]MONE(M)CAPARD'!M336","v":15.166511627906985},{"$f":"'[2]MONE(M)CAPARD'!N336","v":11.787419271149922},{"$f":"'[2]MONE(M)CAPARD'!O336","v":12.289358064516156},{"$f":"'[2]MONE(M)CAPARD'!P336","v":4.764306220095694},null,null,{"$f":"'[2]MONE(M)CAPARD'!Q336","v":9.89},{"$f":"'[2]MONE(M)CAPARD'!R336","v":5.93},{"$f":"'[2]MONE(M)CAPARD'!S336","v":5.98},{"$f":"'[2]MONE(M)CAPARD'!T336","v":8.36},{"$f":"'[2]MONE(M)CAPARD'!U336","v":8.0500000000000007},{"$f":"'[2]MONE(M)CAPARD'!V336","v":5.82},{"$f":"'[2]MONE(M)CAPARD'!W336","v":6.29},null,null,{"$f":"'[2]MONE(M)CAPARD'!AS336","v":1.75},{"$f":"'[2]MONE(M)CAPARD'!AT336","v":"n.a."},{"$f":"'[2]MONE(M)CAPARD'!AU336","v":3},{"$f":"'[2]MONE(M)CAPARD'!AV336","v":5.5},{"$f":"'[2]MONE(M)CAPARD'!AW336","v":"n.a."},{"$f":"'[2]MONE(M)CAPARD'!AX336","v":5.5},{"$f":"'[2]MONE(M)CAPARD'!AY336","v":"n.a."},null,null,{"$f":"+'Datos_Regional (M)'!CF329","v":12.72926537813326},{"$f":"+'Datos_Regional (M)'!CG329","v":5.40409688488801},{"$f":"+'Datos_Regional (M)'!CH329","v":6.230662575921353},{"$f":"+'Datos_Regional (M)'!CI329","v":10.527493337473093},{"$f":"+'Datos_Regional (M)'!CJ329","v":18.23098364465876},{"$f":"+'Datos_Regional (M)'!CK329","v":11.093472922634962},{"$f":"+'Datos_Regional (M)'!CL329","v":8.423458768856861},null,null,839.54105157833328,463.21833333333325,895.19166666666661,684.698775940818,420.448080334,833.22499999999991,964.43337866666661,4136.3229078531513,5100.7562865198179,null,null,1300.9700253691665,832.60583333333307,1454.8916666666667,976.06009089048803,584.25291408999988,1476.1416666666667,1786.5760871666664,6624.9221970163226,8411.4982841829897,null,null,-2488.5992891631704,-3310.7419976631704,null,null,{"$f":"'[2]EXT Comercio(M)'!C336","v":950.82249310999998},{"$f":"'[2]EXT Comercio(M)'!D336","v":560.07000000000016},{"$f":"'[2]EXT Comercio(M)'!E336","v":1086.9000000000001},{"$f":"'[2]EXT Comercio(M)'!F336","v":808.96947863696732},{"$f":"'[2]EXT Comercio(M)'!G336","v":538.43500650999999},{"$f":"'[2]EXT Comercio(M)'!H336","v":962.30000000000007},{"$f":"'[2]EXT Comercio(M)'!I336","v":1000.864201},{"$f":"'[2]EXT Comercio(M)'!K336","v":4907.4969782569688},{"$f":"'[2]EXT Comercio(M)'!L336","v":5908.36117925697},null,null,{"$f":"'[2]EXT Comercio(M)'!AG336","v":1406.3299872999996},{"$f":"'[2]EXT Comercio(M)'!AH336","v":883.65000000000032},{"$f":"'[2]EXT Comercio(M)'!AI336","v":1603.6},{"$f":"'[2]EXT Comercio(M)'!AJ336","v":1058.5006261099995},{"$f":"'[2]EXT Comercio(M)'!AK336","v":618.18281272000002},{"$f":"'[2]EXT Comercio(M)'!AL336","v":1521.4},{"$f":"'[2]EXT Comercio(M)'!AM336","v":1951.0933660000001},{"$f":"'[2]EXT Comercio(M)'!AO336","v":7091.6634261300023},{"$f":"'[2]EXT Comercio(M)'!AP336","v":9042.7567921300033},null,null,{"$f":"'[2]EXT Comercio(M)'!$BS336","v":-2184.1664478730336},{"$f":"'[2]EXT Comercio(M)'!$BT336","v":-3134.3956128730342}]
[null,null,"Abril",{"$f":"'[2]REAL IPC(M)'!AD337","v":1.6438548141513163},{"$f":"'[2]REAL IPC(M)'!AE337","v":0.86324398000908931},{"$f":"'[2]REAL IPC(M)'!AF337","v":4.0887377540280143},{"$f":"'[2]REAL IPC(M)'!AG337","v":4.1006202618883654},{"$f":"'[2]REAL IPC(M)'!AH337","v":3.3548896941638962},{"$f":"'[2]REAL IPC(M)'!AI337","v":3.5134460078261385},{"$f":"'[2]REAL IPC(M)'!AJ337","v":0.96618357487922701},null,null,{"$f":"'[2]REAL IMAE(M)'!AG337","v":3.4058518677509024},{"$f":"'[2]REAL IMAE(M)'!AH337","v":2.2892933796691417},{"$f":"'[2]REAL IMAE(M)'!AI337","v":3.6930230186737014},{"$f":"'[2]REAL IMAE(M)'!AJ337","v":5.5812952173790373},{"$f":"'[2]REAL IMAE(M)'!AK337","v":5.406619210881872},{"$f":"'[2]REAL IMAE(M)'!AL337","v":5.3919989879491395},{"$f":"'[2]REAL IMAE(M)'!AM337","v":7.5800511902451131},null,null,{"$f":"'[2]EXT ITCER(M)'!C337","v":77.754905526730084},{"$f":"'[2]EXT ITCER(M)'!D337","v":93.110275312537212},{"$f":"'[2]EXT ITCER(M)'!E337","v":53.634935680263759},{"$f":"'[2]EXT ITCER(M)'!F337","v":79.041439945048012},{"$f":"'[2]EXT ITCER(M)'!G337","v":102.27202480877131},{"$f":"'[2]EXT ITCER(M)'!H337","v":105.2967793739048},{"$f":"'[2]EXT ITCER(M)'!I337","v":88.888438538669732},null,null,{"$f":"'[2]EXT TC(M)'!J337","v":4.8905507193855637},{"$f":"'[2]EXT TC(M)'!K337","v":0},{"$f":"'[2]EXT TC(M)'!L337","v":-5.1055114844195604},{"$f":"'[2]EXT TC(M)'!M337","v":3.8604347436987352},{"$f":"'[2]EXT TC(M)'!N337","v":4.9565455747047462},{"$f":"'[2]EXT TC(M)'!O337","v":3.3121250125633126},{"$f":"'[2]EXT TC(M)'!P337","v":0},null,null,{"$f":"'[2]EXT RIN(M)'!C337","v":7300.6},{"$f":"'[2]EXT RIN(M)'!D337","v":3256.02},{"$f":"'[2]EXT RIN(M)'!E337","v":9792.7000000000007},{"$f":"'[2]EXT RIN(M)'!F337","v":4440.4420675162419},{"$f":"'[2]EXT RIN(M)'!G337","v":2444.3000000000002},{"$f":"'[2]EXT RIN(M)'!H337","v":6316.5},{"$f":"'[2]EXT RIN(M)'!I337","v":3797.1627938300003},null,null,{"$f":"'[2]EXT RIN(M)'!P337","v":65.190337602843911},{"$f":"'[2]EXT RIN(M)'!Q337","v":101.30355972797548},{"$f":"'[2]EXT RIN(M)'!R337","v":103.57412897941394},{"$f":"'[2]EXT RIN(M)'!S337","v":86.228945105611388},{"$f":"'[2]EXT RIN(M)'!T337","v":124.49684043751294},{"$f":"'[2]EXT RIN(M)'!U337","v":85.668890292996394},{"$f":"'[2]EXT RIN(M)'!V337","v":226.73573962664238},null,null,{"$f":"+'[2]MONE(M)CAPARD'!AE337","v":2.9083363586060247},{"$f":"'[2]MONE(M)CAPARD'!AF337","v":3.556058558558556},{"$f":"'[2]MONE(M)CAPARD'!AG337","v":1.2789685749844428},{"$f":"'[2]MONE(M)CAPARD'!AH337","v":4.0723866269447084},{"$f":"'[2]MONE(M)CAPARD'!AI337","v":6.2818807349457355},{"$f":"'[2]MONE(M)CAPARD'!AJ337","v":3.1073779457894521},{"$f":"'[2]MONE(M)CAPARD'!AK337","v":1.1229665071770336},null,null,{"$f":"'[2]MONE(M)CAPARD'!AL337","v":3.43425403},{"$f":"'[2]MONE(M)CAPARD'!AM337","v":4.45},{"$f":"'[2]MONE(M)CAPARD'!AN337","v":2.97},{"$f":"'[2]MONE(M)CAPARD'!AO337","v":3.65},{"$f":"'[2]MONE(M)CAPARD'!AP337","v":3.88},{"$f":"'[2]MONE(M)CAPARD'!AQ337","v":1.6},{"$f":"'[2]MONE(M)CAPARD'!AR337","v":2.1},null,null,{"$f":"'[2]MONE(M)CAPARD'!J337","v":12.343240236990649},{"$f":"'[2]MONE(M)CAPARD'!K337","v":5.2514234234234198},{"$f":"'[2]MONE(M)CAPARD'!L337","v":8.6380740510267575},{"$f":"'[2]MONE(M)CAPARD'!M337","v":14.994511751075791},{"$f":"'[2]MONE(M)CAPARD'!N337","v":14.812052702971187},{"$f":"'[2]MONE(M)CAPARD'!O337","v":11.009732968712321},{"$f":"'[2]MONE(M)CAPARD'!P337","v":5.3223923444976071},null,null,{"$f":"'[2]MONE(M)CAPARD'!Q337","v":9.86},{"$f":"'[2]MONE(M)CAPARD'!R337","v":6.16},{"$f":"'[2]MONE(M)CAPARD'!S337","v":5.99},{"$f":"'[2]MONE(M)CAPARD'!T337","v":8.4700000000000006},{"$f":"'[2]MONE(M)CAPARD'!U337","v":8.2899999999999991},{"$f":"'[2]MONE(M)CAPARD'!V337","v":6.13},{"$f":"'[2]MONE(M)CAPARD'!W337","v":6.34},null,null,{"$f":"'[2]MONE(M)CAPARD'!AS337","v":2.5},{"$f":"'[2]MONE(M)CAPARD'!AT337","v":"n.a."},{"$f":"'[2]MONE(M)CAPARD'!AU337","v":3},{"$f":"'[2]MONE(M)CAPARD'!AV337","v":5.5},{"$f":"'[2]MONE(M)CAPARD'!AW337","v":"n.a."},{"$f":"'[2]MONE(M)CAPARD'!AX337","v":5.75},{"$f":"'[2]MONE(M)CAPARD'!AY337","v":"n.a."},null,null,{"$f":"+'Datos_Regional (M)'!CF330","v":12.973984173829557},{"$f":"+'Datos_Regional (M)'!CG330","v":5.7896145459940485},{"$f":"+'Datos_Regional (M)'!CH330","v":6.2906006484853672},{"$f":"+'Datos_Regional (M)'!CI330","v":10.019781804258621},{"$f":"+'Datos_Regional (M)'!CJ330","v":19.849578871134167},{"$f":"+'Datos_Regional (M)'!CK330","v":10.089263224518884},{"$f":"+'Datos_Regional (M)'!CL330","v":8.6913598363513866},null,null,840.6837887224998,457.60499999999996,897.93333333333339,682.87264430256653,418.37343684299998,830.3416666666667,973.56182999999999,4127.809869868066,5101.3716998680675,null,null,1291.6529135666667,829.07333333333293,1446.9083333333331,972.38357005080536,577.5791706266665,1473.8999999999999,1778.8343538333331,6591.4973209108066,8370.3316747441386,null,null,-2463.6874510427388,-3268.9599748760725,null,null,{"$f":"'[2]EXT Comercio(M)'!C337","v":897.85491715000012},{"$f":"'[2]EXT Comercio(M)'!D337","v":446.36999999999989},{"$f":"'[2]EXT Comercio(M)'!E337","v":947.09999999999991},{"$f":"'[2]EXT Comercio(M)'!F337","v":716.02240160439851},{"$f":"'[2]EXT Comercio(M)'!G337","v":423.46047325999996},{"$f":"'[2]EXT Comercio(M)'!H337","v":798.69999999999993},{"$f":"'[2]EXT Comercio(M)'!I337","v":922.14188200000001},{"$f":"'[2]EXT Comercio(M)'!K337","v":4229.5077920143958},{"$f":"'[2]EXT Comercio(M)'!L337","v":5151.6496740143957},null,null,{"$f":"'[2]EXT Comercio(M)'!AG337","v":1148.1727738300006},{"$f":"'[2]EXT Comercio(M)'!AH337","v":825.28999999999951},{"$f":"'[2]EXT Comercio(M)'!AI337","v":1346.8},{"$f":"'[2]EXT Comercio(M)'!AJ337","v":917.40328644999897},{"$f":"'[2]EXT Comercio(M)'!AK337","v":517.46648430000005},{"$f":"'[2]EXT Comercio(M)'!AL337","v":1405.3000000000002},{"$f":"'[2]EXT Comercio(M)'!AM337","v":1582.0910039999999},{"$f":"'[2]EXT Comercio(M)'!AO337","v":6160.4325445799986},{"$f":"'[2]EXT Comercio(M)'!AP337","v":7742.5235485799967},null,null,{"$f":"'[2]EXT Comercio(M)'!$BS337","v":-1930.9247525656001},{"$f":"'[2]EXT Comercio(M)'!$BT337","v":-2590.8738745655992}]
[null,null,"Mayo ",{"$f":"'[2]REAL IPC(M)'!AD338","v":1.6711599502232679},{"$f":"'[2]REAL IPC(M)'!AE338","v":0.96249886497775572},{"$f":"'[2]REAL IPC(M)'!AF338","v":3.9329464861379915},{"$f":"'[2]REAL IPC(M)'!AG338","v":4.0521978021978065},{"$f":"'[2]REAL IPC(M)'!AH338","v":2.9072008795424518},{"$f":"'[2]REAL IPC(M)'!AI338","v":3.1060543144257062},{"$f":"'[2]REAL IPC(M)'!AJ338","v":0.77145612343297698},null,null,{"$f":"'[2]REAL IMAE(M)'!AG338","v":3.3725420652838087},{"$f":"'[2]REAL IMAE(M)'!AH338","v":2.7230822559492038},{"$f":"'[2]REAL IMAE(M)'!AI338","v":3.3677173285857327},{"$f":"'[2]REAL IMAE(M)'!AJ338","v":5.8742535261024891},{"$f":"'[2]REAL IMAE(M)'!AK338","v":4.7547991985983185},{"$f":"'[2]REAL IMAE(M)'!AL338","v":4.9497069269438692},{"$f":"'[2]REAL IMAE(M)'!AM338","v":7.4748179327042505},null,null,{"$f":"'[2]EXT ITCER(M)'!C338","v":79.21203940480288},{"$f":"'[2]EXT ITCER(M)'!D338","v":92.879227550018427},{"$f":"'[2]EXT ITCER(M)'!E338","v":53.440837753576488},{"$f":"'[2]EXT ITCER(M)'!F338","v":78.772988726680083},{"$f":"'[2]EXT ITCER(M)'!G338","v":102.7209722819843},{"$f":"'[2]EXT ITCER(M)'!H338","v":105.4886085275236},{"$f":"'[2]EXT ITCER(M)'!I338","v":88.819640846336981},null,null,{"$f":"'[2]EXT TC(M)'!J338","v":6.8829942588583322},{"$f":"'[2]EXT TC(M)'!K338","v":0},{"$f":"'[2]EXT TC(M)'!L338","v":-4.0245823645518994},{"$f":"'[2]EXT TC(M)'!M338","v":3.8148737909884547},{"$f":"'[2]EXT TC(M)'!N338","v":5.0795500863547716},{"$f":"'[2]EXT TC(M)'!O338","v":3.3327876188293208},{"$f":"'[2]EXT TC(M)'!P338","v":0},null,null,{"$f":"'[2]EXT RIN(M)'!C338","v":6832.9},{"$f":"'[2]EXT RIN(M)'!D338","v":3367.89},{"$f":"'[2]EXT RIN(M)'!E338","v":9916},{"$f":"'[2]EXT RIN(M)'!F338","v":4412.9522977873821},{"$f":"'[2]EXT RIN(M)'!G338","v":2501.1},{"$f":"'[2]EXT RIN(M)'!H338","v":6087.2},{"$f":"'[2]EXT RIN(M)'!I338","v":4573.9156307900003},null,null,{"$f":"'[2]EXT RIN(M)'!P338","v":61.971745547247927},{"$f":"'[2]EXT RIN(M)'!Q338","v":107.82903417184244},{"$f":"'[2]EXT RIN(M)'!R338","v":107.39545028922142},{"$f":"'[2]EXT RIN(M)'!S338","v":87.754098600852416},{"$f":"'[2]EXT RIN(M)'!T338","v":130.63606781407998},{"$f":"'[2]EXT RIN(M)'!U338","v":86.21737619120762},{"$f":"'[2]EXT RIN(M)'!V338","v":274.77050770350326},null,null,{"$f":"+'[2]MONE(M)CAPARD'!AE338","v":2.8315208080503562},{"$f":"'[2]MONE(M)CAPARD'!AF338","v":3.4938726504182016},{"$f":"'[2]MONE(M)CAPARD'!AG338","v":1.4211600496277761},{"$f":"'[2]MONE(M)CAPARD'!AH338","v":4.1112079207920749},{"$f":"'[2]MONE(M)CAPARD'!AI338","v":5.7767629515751784},{"$f":"'[2]MONE(M)CAPARD'!AJ338","v":3.9027249295207471},{"$f":"'[2]MONE(M)CAPARD'!AK338","v":1.3580669856459362},null,null,{"$f":"'[2]MONE(M)CAPARD'!AL338","v":3.38393415},{"$f":"'[2]MONE(M)CAPARD'!AM338","v":4.49},{"$f":"'[2]MONE(M)CAPARD'!AN338","v":2.95},{"$f":"'[2]MONE(M)CAPARD'!AO338","v":3.54},{"$f":"'[2]MONE(M)CAPARD'!AP338","v":3.72},{"$f":"'[2]MONE(M)CAPARD'!AQ338","v":2.2799999999999998},{"$f":"'[2]MONE(M)CAPARD'!AR338","v":2.14},null,null,{"$f":"'[2]MONE(M)CAPARD'!J338","v":12.273726448961723},{"$f":"'[2]MONE(M)CAPARD'!K338","v":5.2668081662019945},{"$f":"'[2]MONE(M)CAPARD'!L338","v":8.7624317617865817},{"$f":"'[2]MONE(M)CAPARD'!M338","v":14.89425742574257},{"$f":"'[2]MONE(M)CAPARD'!N338","v":14.507251640019687},{"$f":"'[2]MONE(M)CAPARD'!O338","v":11.167089810712852},{"$f":"'[2]MONE(M)CAPARD'!P338","v":5.5358373205741653},null,null,{"$f":"'[2]MONE(M)CAPARD'!Q338","v":9.3800000000000008},{"$f":"'[2]MONE(M)CAPARD'!R338","v":6.28},{"$f":"'[2]MONE(M)CAPARD'!S338","v":5.99},{"$f":"'[2]MONE(M)CAPARD'!T338","v":8.44},{"$f":"'[2]MONE(M)CAPARD'!U338","v":8.19},{"$f":"'[2]MONE(M)CAPARD'!V338","v":5.97},{"$f":"'[2]MONE(M)CAPARD'!W338","v":6.35},null,null,{"$f":"'[2]MONE(M)CAPARD'!AS338","v":4},{"$f":"'[2]MONE(M)CAPARD'!AT338","v":"n.a."},{"$f":"'[2]MONE(M)CAPARD'!AU338","v":3},{"$f":"'[2]MONE(M)CAPARD'!AV338","v":5.5},{"$f":"'[2]MONE(M)CAPARD'!AW338","v":"n.a."},{"$f":"'[2]MONE(M)CAPARD'!AX338","v":5.75},{"$f":"'[2]MONE(M)CAPARD'!AY338","v":"n.a."},null,null,{"$f":"+'Datos_Regional (M)'!CF331","v":12.55513185252417},{"$f":"+'Datos_Regional (M)'!CG331","v":5.8366157353246573},{"$f":"+'Datos_Regional (M)'!CH331","v":5.7952308775477634},{"$f":"+'Datos_Regional (M)'!CI331","v":10.572711768296351},{"$f":"+'Datos_Regional (M)'!CJ331","v":19.460248583226083},{"$f":"+'Datos_Regional (M)'!CK331","v":11.976229907956881},{"$f":"+'Datos_Regional (M)'!CL331","v":8.4323679717247515},null,null,844.78812982583315,458.99916666666655,903.0333333333333,690.30375826349143,421.2764602433333,843.75833333333355,969.99499733333323,4162.1591816659902,5132.1541789993244,null,null,1301.6560553800002,836.48166666666646,1457.8916666666667,980.32113067307898,581.3228657691667,1477.5916666666669,1805.467686916666,6635.2650518222463,8440.7327387389141,null,null,-2473.1058701562542,-3308.5785597395879,null,null,{"$f":"'[2]EXT Comercio(M)'!C338","v":997.50027349999982},{"$f":"'[2]EXT Comercio(M)'!D338","v":507.97999999999979},{"$f":"'[2]EXT Comercio(M)'!E338","v":978},{"$f":"'[2]EXT Comercio(M)'!F338","v":819.0378450771691},{"$f":"'[2]EXT Comercio(M)'!G338","v":459.93595424},{"$f":"'[2]EXT Comercio(M)'!H338","v":943.69999999999993},{"$f":"'[2]EXT Comercio(M)'!I338","v":1148.6238589999998},{"$f":"'[2]EXT Comercio(M)'!K338","v":4706.1540728171713},{"$f":"'[2]EXT Comercio(M)'!L338","v":5854.7779318171706},null,null,{"$f":"'[2]EXT Comercio(M)'!AG338","v":1432.5829674500001},{"$f":"'[2]EXT Comercio(M)'!AH338","v":917.2800000000002},{"$f":"'[2]EXT Comercio(M)'!AI338","v":1555.9},{"$f":"'[2]EXT Comercio(M)'!AJ338","v":1069.2768987999987},{"$f":"'[2]EXT Comercio(M)'!AK338","v":623.99519275000011},{"$f":"'[2]EXT Comercio(M)'!AL338","v":1506.4},{"$f":"'[2]EXT Comercio(M)'!AM338","v":2108.29151},{"$f":"'[2]EXT Comercio(M)'!AO338","v":7105.4350590000031},{"$f":"'[2]EXT Comercio(M)'!AP338","v":9213.7265690000022},null,null,{"$f":"'[2]EXT Comercio(M)'!$BS338","v":-2399.28098618283},{"$f":"'[2]EXT Comercio(M)'!$BT338","v":-3358.9486371828298}]
[null,null,"Junio",{"$f":"'[2]REAL IPC(M)'!AD339","v":1.7743170392902428},{"$f":"'[2]REAL IPC(M)'!AE339","v":0.92525399129173636},{"$f":"'[2]REAL IPC(M)'!AF339","v":4.3649201636844905},{"$f":"'[2]REAL IPC(M)'!AG339","v":3.6506311838962766},{"$f":"'[2]REAL IPC(M)'!AH339","v":3.06106757003983},{"$f":"'[2]REAL IPC(M)'!AI339","v":2.5509782877899596},{"$f":"'[2]REAL IPC(M)'!AJ339","v":0.67567567567567854},null,null,{"$f":"'[2]REAL IMAE(M)'!AG339","v":3.0685201757219915},{"$f":"'[2]REAL IMAE(M)'!AH339","v":2.6285612829539873},{"$f":"'[2]REAL IMAE(M)'!AI339","v":3.2083553058358305},{"$f":"'[2]REAL IMAE(M)'!AJ339","v":6.0503943806799958},{"$f":"'[2]REAL IMAE(M)'!AK339","v":4.0961746633653568},{"$f":"'[2]REAL IMAE(M)'!AL339","v":4.5319678132251031},{"$f":"'[2]REAL IMAE(M)'!AM339","v":6.7901260464073427},null,null,{"$f":"'[2]EXT ITCER(M)'!C339","v":78.689821661329717},{"$f":"'[2]EXT ITCER(M)'!D339","v":92.881276628820515},{"$f":"'[2]EXT ITCER(M)'!E339","v":53.033643010716872},{"$f":"'[2]EXT ITCER(M)'!F339","v":78.527047096738073},{"$f":"'[2]EXT ITCER(M)'!G339","v":103.3413340480579},{"$f":"'[2]EXT ITCER(M)'!H339","v":105.6607748796818},{"$f":"'[2]EXT ITCER(M)'!I339","v":89.047944958962162},null,null,{"$f":"'[2]EXT TC(M)'!J339","v":5.0329000240165085},{"$f":"'[2]EXT TC(M)'!K339","v":0},{"$f":"'[2]EXT TC(M)'!L339","v":-3.9297570035111007},{"$f":"'[2]EXT TC(M)'!M339","v":3.0867393031945807},{"$f":"'[2]EXT TC(M)'!N339","v":5.2747878027508825},{"$f":"'[2]EXT TC(M)'!O339","v":3.3711833808639207},{"$f":"'[2]EXT TC(M)'!P339","v":0},null,null,{"$f":"'[2]EXT RIN(M)'!C339","v":6812.6},{"$f":"'[2]EXT RIN(M)'!D339","v":3282.88},{"$f":"'[2]EXT RIN(M)'!E339","v":10793.9},{"$f":"'[2]EXT RIN(M)'!F339","v":4522.4190168291079},{"$f":"'[2]EXT RIN(M)'!G339","v":2521.6},{"$f":"'[2]EXT RIN(M)'!H339","v":6512.7857449028688},{"$f":"'[2]EXT RIN(M)'!I339","v":4337.6371392700003},null,null,{"$f":"'[2]EXT RIN(M)'!P339","v":61.267789064762056},{"$f":"'[2]EXT RIN(M)'!Q339","v":105.92737433772803},{"$f":"'[2]EXT RIN(M)'!R339","v":112.25872668115838},{"$f":"'[2]EXT RIN(M)'!S339","v":88.11569946313719},{"$f":"'[2]EXT RIN(M)'!T339","v":132.6322195101616},{"$f":"'[2]EXT RIN(M)'!U339","v":93.608941854442449},{"$f":"'[2]EXT RIN(M)'!V339","v":250.72276883254472},null,null,{"$f":"+'[2]MONE(M)CAPARD'!AE339","v":3.857243236713872},{"$f":"'[2]MONE(M)CAPARD'!AF339","v":3.6905985978788336},{"$f":"'[2]MONE(M)CAPARD'!AG339","v":0.99178903667257645},{"$f":"'[2]MONE(M)CAPARD'!AH339","v":4.2444206714944093},{"$f":"'[2]MONE(M)CAPARD'!AI339","v":6.2849621990578468},{"$f":"'[2]MONE(M)CAPARD'!AJ339","v":4.4846200289808591},{"$f":"'[2]MONE(M)CAPARD'!AK339","v":1.4842953020134197},null,null,{"$f":"'[2]MONE(M)CAPARD'!AL339","v":3.2246542300000001},{"$f":"'[2]MONE(M)CAPARD'!AM339","v":4.6500000000000004},{"$f":"'[2]MONE(M)CAPARD'!AN339","v":2.97},{"$f":"'[2]MONE(M)CAPARD'!AO339","v":3.55},{"$f":"'[2]MONE(M)CAPARD'!AP339","v":3.46},{"$f":"'[2]MONE(M)CAPARD'!AQ339","v":1.82},{"$f":"'[2]MONE(M)CAPARD'!AR339","v":2.17},null,null,{"$f":"'[2]MONE(M)CAPARD'!J339","v":12.739641333780035},{"$f":"'[2]MONE(M)CAPARD'!K339","v":5.5137300017975823},{"$f":"'[2]MONE(M)CAPARD'!L339","v":8.3218382409471996},{"$f":"'[2]MONE(M)CAPARD'!M339","v":15.185019749835423},{"$f":"'[2]MONE(M)CAPARD'!N339","v":14.681525286768133},{"$f":"'[2]MONE(M)CAPARD'!O339","v":10.33536870069234},{"$f":"'[2]MONE(M)CAPARD'!P339","v":5.6362416107382511},null,null,{"$f":"'[2]MONE(M)CAPARD'!Q339","v":9.67},{"$f":"'[2]MONE(M)CAPARD'!R339","v":6.49},{"$f":"'[2]MONE(M)CAPARD'!S339","v":6},{"$f":"'[2]MONE(M)CAPARD'!T339","v":8.42},{"$f":"'[2]MONE(M)CAPARD'!U339","v":7.98},{"$f":"'[2]MONE(M)CAPARD'!V339","v":5.6},{"$f":"'[2]MONE(M)CAPARD'!W339","v":6.35},null,null,{"$f":"'[2]MONE(M)CAPARD'!AS339","v":4.5},{"$f":"'[2]MONE(M)CAPARD'!AT339","v":"n.a."},{"$f":"'[2]MONE(M)CAPARD'!AU339","v":3},{"$f":"'[2]MONE(M)CAPARD'!AV339","v":5.5},{"$f":"'[2]MONE(M)CAPARD'!AW339","v":"n.a."},{"$f":"'[2]MONE(M)CAPARD'!AX339","v":5.75},{"$f":"'[2]MONE(M)CAPARD'!AY339","v":"n.a."},null,null,{"$f":"+'Datos_Regional (M)'!CF332","v":11.803441740761356},{"$f":"+'Datos_Regional (M)'!CG332","v":6.0126735806858234},{"$f":"+'Datos_Regional (M)'!CH332","v":5.423674761916164},{"$f":"+'Datos_Regional (M)'!CI332","v":10.581635258681455},{"$f":"+'Datos_Regional (M)'!CJ332","v":17.842685530252389},{"$f":"+'Datos_Regional (M)'!CK332","v":12.204381557498213},{"$f":"+'Datos_Regional (M)'!CL332","v":8.1733224238083935},null,null,855.0524546216667,461.565,903.32499999999993,695.34404243482265,426.42646554999993,843.15000000000009,962.47588683333333,4184.8629626064894,5147.3388494398214,null,null,1303.3350289108332,837.16999999999973,1460.7833333333335,987.57829501926255,584.42362171666673,1475.8416666666665,1805.3282388333328,6649.1319456467645,8454.4601844800982,null,null,-2464.2689830402737,-3307.1213350402745,null,null,{"$f":"'[2]EXT Comercio(M)'!C339","v":960.09506071000033},{"$f":"'[2]EXT Comercio(M)'!D339","v":493.35000000000036},{"$f":"'[2]EXT Comercio(M)'!E339","v":901.09999999999991},{"$f":"'[2]EXT Comercio(M)'!F339","v":800.17373150672915},{"$f":"'[2]EXT Comercio(M)'!G339","v":464.98040143999998},{"$f":"'[2]EXT Comercio(M)'!H339","v":866.3},{"$f":"'[2]EXT Comercio(M)'!I339","v":909.66676700000005},{"$f":"'[2]EXT Comercio(M)'!K339","v":4485.9991936567312},{"$f":"'[2]EXT Comercio(M)'!L339","v":5395.66596065673},null,null,{"$f":"'[2]EXT Comercio(M)'!AG339","v":1341.2733847799996},{"$f":"'[2]EXT Comercio(M)'!AH339","v":873.05000000000018},{"$f":"'[2]EXT Comercio(M)'!AI339","v":1510},{"$f":"'[2]EXT Comercio(M)'!AJ339","v":1069.1763269470987},{"$f":"'[2]EXT Comercio(M)'!AK339","v":631.75460431999988},{"$f":"'[2]EXT Comercio(M)'!AL339","v":1444.7000000000003},{"$f":"'[2]EXT Comercio(M)'!AM339","v":1818.8681200000001},{"$f":"'[2]EXT Comercio(M)'!AO339","v":6869.954316047093},{"$f":"'[2]EXT Comercio(M)'!AP339","v":8688.8224360470995},null,null,{"$f":"'[2]EXT Comercio(M)'!$BS339","v":-2383.9551223903709},{"$f":"'[2]EXT Comercio(M)'!$BT339","v":-3293.1564753903731}]
[null,null,"Julio",{"$f":"'[2]REAL IPC(M)'!AD340","v":1.1631081312736706},{"$f":"'[2]REAL IPC(M)'!AE340","v":1.0170722847802309},{"$f":"'[2]REAL IPC(M)'!AF340","v":5.2195394055303206},{"$f":"'[2]REAL IPC(M)'!AG340","v":3.639455782312921},{"$f":"'[2]REAL IPC(M)'!AH340","v":3.1288235822280464},{"$f":"'[2]REAL IPC(M)'!AI340","v":2.5379037574159393},{"$f":"'[2]REAL IPC(M)'!AJ340","v":0.38572806171648166},null,null,{"$f":"'[2]REAL IMAE(M)'!AG340","v":2.6662280463705987},{"$f":"'[2]REAL IMAE(M)'!AH340","v":1.8587250889979816},{"$f":"'[2]REAL IMAE(M)'!AI340","v":3.0857903342502815},{"$f":"'[2]REAL IMAE(M)'!AJ340","v":6.0245521852948976},{"$f":"'[2]REAL IMAE(M)'!AK340","v":3.7010220092348627},{"$f":"'[2]REAL IMAE(M)'!AL340","v":4.3007669736235536},{"$f":"'[2]REAL IMAE(M)'!AM340","v":5.6395246370294316},null,null,{"$f":"'[2]EXT ITCER(M)'!C340","v":79.090691431278074},{"$f":"'[2]EXT ITCER(M)'!D340","v":92.928413906628919},{"$f":"'[2]EXT ITCER(M)'!E340","v":51.955649227841747},{"$f":"'[2]EXT ITCER(M)'!F340","v":78.291606479574455},{"$f":"'[2]EXT ITCER(M)'!G340","v":103.3426416040534},{"$f":"'[2]EXT ITCER(M)'!H340","v":105.5726246340859},{"$f":"'[2]EXT ITCER(M)'!I340","v":89.248259116968086},null,null,{"$f":"'[2]EXT TC(M)'!J340","v":4.9499793130750174},{"$f":"'[2]EXT TC(M)'!K340","v":0},{"$f":"'[2]EXT TC(M)'!L340","v":-3.9205312342911496},{"$f":"'[2]EXT TC(M)'!M340","v":2.6074363434010017},{"$f":"'[2]EXT TC(M)'!N340","v":4.9531912196147294},{"$f":"'[2]EXT TC(M)'!O340","v":3.298167684619651},{"$f":"'[2]EXT TC(M)'!P340","v":0},null,null,{"$f":"'[2]EXT RIN(M)'!C340","v":6865.4},{"$f":"'[2]EXT RIN(M)'!D340","v":3323.66},{"$f":"'[2]EXT RIN(M)'!E340","v":11024.9},{"$f":"'[2]EXT RIN(M)'!F340","v":4472.8121381178662},{"$f":"'[2]EXT RIN(M)'!G340","v":2572},{"$f":"'[2]EXT RIN(M)'!H340","v":6248.7458037199667},{"$f":"'[2]EXT RIN(M)'!I340","v":3909.6115338700001},null,null,{"$f":"'[2]EXT RIN(M)'!P340","v":63.026444678724978},{"$f":"'[2]EXT RIN(M)'!Q340","v":104.12788362549978},{"$f":"'[2]EXT RIN(M)'!R340","v":111.13590273592003},{"$f":"'[2]EXT RIN(M)'!S340","v":87.125828833093848},{"$f":"'[2]EXT RIN(M)'!T340","v":129.74927490291466},{"$f":"'[2]EXT RIN(M)'!U340","v":83.773793607274456},{"$f":"'[2]EXT RIN(M)'!V340","v":222.47815299021622},null,null,{"$f":"+'[2]MONE(M)CAPARD'!AE340","v":4.7318552752596821},{"$f":"'[2]MONE(M)CAPARD'!AF340","v":3.5567529665588009},{"$f":"'[2]MONE(M)CAPARD'!AG340","v":0.14299681914571405},{"$f":"'[2]MONE(M)CAPARD'!AH340","v":4.4486380045946872},{"$f":"'[2]MONE(M)CAPARD'!AI340","v":5.3716414229665483},{"$f":"'[2]MONE(M)CAPARD'!AJ340","v":3.2398714239794413},{"$f":"'[2]MONE(M)CAPARD'!AK340","v":1.7276080691642737},null,null,{"$f":"'[2]MONE(M)CAPARD'!AL340","v":3.2197600300000002},{"$f":"'[2]MONE(M)CAPARD'!AM340","v":4.6100000000000003},{"$f":"'[2]MONE(M)CAPARD'!AN340","v":2.95},{"$f":"'[2]MONE(M)CAPARD'!AO340","v":3.57},{"$f":"'[2]MONE(M)CAPARD'!AP340","v":3.69},{"$f":"'[2]MONE(M)CAPARD'!AQ340","v":1.62},{"$f":"'[2]MONE(M)CAPARD'!AR340","v":2.12},null,null,{"$f":"'[2]MONE(M)CAPARD'!J340","v":13.974355009319881},{"$f":"'[2]MONE(M)CAPARD'!K340","v":5.2495361380798364},{"$f":"'[2]MONE(M)CAPARD'!L340","v":7.4515252953650419},{"$f":"'[2]MONE(M)CAPARD'!M340","v":15.158844765342964},{"$f":"'[2]MONE(M)CAPARD'!N340","v":12.149458033715607},{"$f":"'[2]MONE(M)CAPARD'!O340","v":10.83706203792994},{"$f":"'[2]MONE(M)CAPARD'!P340","v":5.9513160422670595},null,null,{"$f":"'[2]MONE(M)CAPARD'!Q340","v":9.6300000000000008},{"$f":"'[2]MONE(M)CAPARD'!R340","v":6.32},{"$f":"'[2]MONE(M)CAPARD'!S340","v":6.04},{"$f":"'[2]MONE(M)CAPARD'!T340","v":8.41},{"$f":"'[2]MONE(M)CAPARD'!U340","v":8.25},{"$f":"'[2]MONE(M)CAPARD'!V340","v":5.34},{"$f":"'[2]MONE(M)CAPARD'!W340","v":6.36},null,null,{"$f":"'[2]MONE(M)CAPARD'!AS340","v":4.5},{"$f":"'[2]MONE(M)CAPARD'!AT340","v":"n.a."},{"$f":"'[2]MONE(M)CAPARD'!AU340","v":3},{"$f":"'[2]MONE(M)CAPARD'!AV340","v":5.5},{"$f":"'[2]MONE(M)CAPARD'!AW340","v":"n.a."},{"$f":"'[2]MONE(M)CAPARD'!AX340","v":5.75},{"$f":"'[2]MONE(M)CAPARD'!AY340","v":"n.a."},null,null,{"$f":"+'Datos_Regional (M)'!CF333","v":10.863085855147192},{"$f":"+'Datos_Regional (M)'!CG333","v":6.3106444127771777},{"$f":"+'Datos_Regional (M)'!CH333","v":5.2448250545585662},{"$f":"+'Datos_Regional (M)'!CI333","v":10.726505338060676},{"$f":"+'Datos_Regional (M)'!CJ333","v":18.20912093683782},{"$f":"+'Datos_Regional (M)'!CK333","v":10.360419246699237},{"$f":"+'Datos_Regional (M)'!CL333","v":10.396929639907704},null,null,862.17337668583332,466.45416666666671,908.45833333333348,704.70757788359595,428.57922429833326,840.62499999999989,963.07587041666682,4210.9976788677623,5174.0735492844287,null,null,1299.8134482925002,841.9991666666665,1477.9916666666668,991.5673726271724,584.93232928333339,1480.575,1809.9783749999999,6676.8789835363395,8486.8573585363392,null,null,-2465.8813046685759,-3312.7838092519105,null,null,{"$f":"'[2]EXT Comercio(M)'!C340","v":865.86328000999947},{"$f":"'[2]EXT Comercio(M)'!D340","v":549.80999999999995},{"$f":"'[2]EXT Comercio(M)'!E340","v":906.2},{"$f":"'[2]EXT Comercio(M)'!F340","v":769.40918599945485},{"$f":"'[2]EXT Comercio(M)'!G340","v":439.33153406999998},{"$f":"'[2]EXT Comercio(M)'!H340","v":819.8},{"$f":"'[2]EXT Comercio(M)'!I340","v":927.41128100000003},{"$f":"'[2]EXT Comercio(M)'!K340","v":4350.4140000794505},{"$f":"'[2]EXT Comercio(M)'!L340","v":5277.8252810794511},null,null,{"$f":"'[2]EXT Comercio(M)'!AG340","v":1168.0568339600006},{"$f":"'[2]EXT Comercio(M)'!AH340","v":880.27999999999975},{"$f":"'[2]EXT Comercio(M)'!AI340","v":1518},{"$f":"'[2]EXT Comercio(M)'!AJ340","v":1005.8717317599999},{"$f":"'[2]EXT Comercio(M)'!AK340","v":603.01225270999998},{"$f":"'[2]EXT Comercio(M)'!AL340","v":1467.6},{"$f":"'[2]EXT Comercio(M)'!AM340","v":1837.3985269999998},{"$f":"'[2]EXT Comercio(M)'!AO340","v":6642.820818430002},{"$f":"'[2]EXT Comercio(M)'!AP340","v":8480.2193454299995},null,null,{"$f":"'[2]EXT Comercio(M)'!$BS340","v":-2292.406818350546},{"$f":"'[2]EXT Comercio(M)'!$BT340","v":-3202.3940643505484}]
[null,null,"Agosto",{"$f":"'[2]REAL IPC(M)'!AD341","v":0.90944211777957451},{"$f":"'[2]REAL IPC(M)'!AE341","v":1.1379153390987711},{"$f":"'[2]REAL IPC(M)'!AF341","v":4.716831053133963},{"$f":"'[2]REAL IPC(M)'!AG341","v":3.8383152173913082},{"$f":"'[2]REAL IPC(M)'!AH341","v":3.4704581014840974},{"$f":"'[2]REAL IPC(M)'!AI341","v":3.1824552724874091},{"$f":"'[2]REAL IPC(M)'!AJ341","v":0.67502410800386003},null,null,{"$f":"'[2]REAL IMAE(M)'!AG341","v":2.4032953557024812},{"$f":"'[2]REAL IMAE(M)'!AH341","v":1.5255632442795719},{"$f":"'[2]REAL IMAE(M)'!AI341","v":2.8331487486439157},{"$f":"'[2]REAL IMAE(M)'!AJ341","v":5.7896248038166984},{"$f":"'[2]REAL IMAE(M)'!AK341","v":3.612861539747271},{"$f":"'[2]REAL IMAE(M)'!AL341","v":4.3554991490462349},{"$f":"'[2]REAL IMAE(M)'!AM341","v":4.6131534425304146},null,null,{"$f":"'[2]EXT ITCER(M)'!C341","v":80.000664889578943},{"$f":"'[2]EXT ITCER(M)'!D341","v":93.403612823317928},{"$f":"'[2]EXT ITCER(M)'!E341","v":52.127800629020882},{"$f":"'[2]EXT ITCER(M)'!F341","v":78.12645777329179},{"$f":"'[2]EXT ITCER(M)'!G341","v":104.1722699019288},{"$f":"'[2]EXT ITCER(M)'!H341","v":105.45899397782171},{"$f":"'[2]EXT ITCER(M)'!I341","v":89.334294766682874},null,null,{"$f":"'[2]EXT TC(M)'!J341","v":5.047805815875436},{"$f":"'[2]EXT TC(M)'!K341","v":0},{"$f":"'[2]EXT TC(M)'!L341","v":-3.4680366238288949},{"$f":"'[2]EXT TC(M)'!M341","v":2.1116085759820318},{"$f":"'[2]EXT TC(M)'!N341","v":4.8709454471570037},{"$f":"'[2]EXT TC(M)'!O341","v":3.3405090320207256},{"$f":"'[2]EXT TC(M)'!P341","v":0},null,null,{"$f":"'[2]EXT RIN(M)'!C341","v":6868.5},{"$f":"'[2]EXT RIN(M)'!D341","v":3262.97},{"$f":"'[2]EXT RIN(M)'!E341","v":11277.9},{"$f":"'[2]EXT RIN(M)'!F341","v":4470.4148977895729},{"$f":"'[2]EXT RIN(M)'!G341","v":2518.4},{"$f":"'[2]EXT RIN(M)'!H341","v":6279.1282342772065},{"$f":"'[2]EXT RIN(M)'!I341","v":3571.3758189099999},null,null,{"$f":"'[2]EXT RIN(M)'!P341","v":62.775593092606684},{"$f":"'[2]EXT RIN(M)'!Q341","v":102.96070764917053},{"$f":"'[2]EXT RIN(M)'!R341","v":112.83118126912206},{"$f":"'[2]EXT RIN(M)'!S341","v":86.938338320046597},{"$f":"'[2]EXT RIN(M)'!T341","v":129.57379318287451},{"$f":"'[2]EXT RIN(M)'!U341","v":82.653808032321834},{"$f":"'[2]EXT RIN(M)'!V341","v":198.50845450805906},null,null,{"$f":"+'[2]MONE(M)CAPARD'!AE341","v":4.9951300655662951},{"$f":"'[2]MONE(M)CAPARD'!AF341","v":3.3638073807380739},{"$f":"'[2]MONE(M)CAPARD'!AG341","v":0.6046486897075436},{"$f":"'[2]MONE(M)CAPARD'!AH341","v":4.2100883218841973},{"$f":"'[2]MONE(M)CAPARD'!AI341","v":6.3299717497185393},{"$f":"'[2]MONE(M)CAPARD'!AJ341","v":2.9244746304434854},{"$f":"'[2]MONE(M)CAPARD'!AK341","v":1.3955555555555528},null,null,{"$f":"'[2]MONE(M)CAPARD'!AL341","v":3.0750366200000001},{"$f":"'[2]MONE(M)CAPARD'!AM341","v":4.54},{"$f":"'[2]MONE(M)CAPARD'!AN341","v":2.95},{"$f":"'[2]MONE(M)CAPARD'!AO341","v":3.5},{"$f":"'[2]MONE(M)CAPARD'!AP341","v":3.42},{"$f":"'[2]MONE(M)CAPARD'!AQ341","v":1.84},{"$f":"'[2]MONE(M)CAPARD'!AR341","v":2.08},null,null,{"$f":"'[2]MONE(M)CAPARD'!J341","v":13.725730309810174},{"$f":"'[2]MONE(M)CAPARD'!K341","v":5.2918676867686774},{"$f":"'[2]MONE(M)CAPARD'!L341","v":7.9673619445499275},{"$f":"'[2]MONE(M)CAPARD'!M341","v":14.957566241413147},{"$f":"'[2]MONE(M)CAPARD'!N341","v":12.178069519195974},{"$f":"'[2]MONE(M)CAPARD'!O341","v":9.9702461046744091},{"$f":"'[2]MONE(M)CAPARD'!P341","v":5.6369252873563189},null,null,{"$f":"'[2]MONE(M)CAPARD'!Q341","v":9.39},{"$f":"'[2]MONE(M)CAPARD'!R341","v":6.49},{"$f":"'[2]MONE(M)CAPARD'!S341","v":6.03},{"$f":"'[2]MONE(M)CAPARD'!T341","v":8.36},{"$f":"'[2]MONE(M)CAPARD'!U341","v":7.92},{"$f":"'[2]MONE(M)CAPARD'!V341","v":5.78},{"$f":"'[2]MONE(M)CAPARD'!W341","v":6.35},null,null,{"$f":"'[2]MONE(M)CAPARD'!AS341","v":4.5},{"$f":"'[2]MONE(M)CAPARD'!AT341","v":"n.a."},{"$f":"'[2]MONE(M)CAPARD'!AU341","v":3},{"$f":"'[2]MONE(M)CAPARD'!AV341","v":5.5},{"$f":"'[2]MONE(M)CAPARD'!AW341","v":"n.a."},{"$f":"'[2]MONE(M)CAPARD'!AX341","v":5.25},{"$f":"'[2]MONE(M)CAPARD'!AY341","v":"n.a."},null,null,{"$f":"+'Datos_Regional (M)'!CF334","v":10.714018522709567},{"$f":"+'Datos_Regional (M)'!CG334","v":5.6571453951479889},{"$f":"+'Datos_Regional (M)'!CH334","v":4.7731888380598608},{"$f":"+'Datos_Regional (M)'!CI334","v":10.929448583069412},{"$f":"+'Datos_Regional (M)'!CJ334","v":17.967551796968607},{"$f":"+'Datos_Regional (M)'!CK334","v":10.374183581692753},{"$f":"+'Datos_Regional (M)'!CL334","v":8.122368683310599},null,null,870.32972761916665,469.74166666666662,908.61666666666679,709.23034573671214,427.29625412416658,839.30833333333328,954.17760550000014,4224.5229941467123,5178.7005996467115,null,null,1303.3420031625003,850.89666666666653,1484.9666666666665,1001.5132355390732,587.72740733333342,1480.9583333333333,1797.1376067499998,6709.404312701573,8506.5419194515744,null,null,-2484.8813185548611,-3327.841319804862,null,null,{"$f":"'[2]EXT Comercio(M)'!C341","v":862.0247280399999},{"$f":"'[2]EXT Comercio(M)'!D341","v":478.75},{"$f":"'[2]EXT Comercio(M)'!E341","v":890.4},{"$f":"'[2]EXT Comercio(M)'!F341","v":717.87896565785331},{"$f":"'[2]EXT Comercio(M)'!G341","v":433.25307783999995},{"$f":"'[2]EXT Comercio(M)'!H341","v":874.10000000000014},{"$f":"'[2]EXT Comercio(M)'!I341","v":865.94033100000001},{"$f":"'[2]EXT Comercio(M)'!K341","v":4256.4067715378551},{"$f":"'[2]EXT Comercio(M)'!L341","v":5122.3471025378531},null,null,{"$f":"'[2]EXT Comercio(M)'!AG341","v":1367.9458363699994},{"$f":"'[2]EXT Comercio(M)'!AH341","v":936.54000000000087},{"$f":"'[2]EXT Comercio(M)'!AI341","v":1600.1},{"$f":"'[2]EXT Comercio(M)'!AJ341","v":1156.552401244111},{"$f":"'[2]EXT Comercio(M)'!AK341","v":640.20690773999991},{"$f":"'[2]EXT Comercio(M)'!AL341","v":1587},{"$f":"'[2]EXT Comercio(M)'!AM341","v":1863.9844579999999},{"$f":"'[2]EXT Comercio(M)'!AO341","v":7288.3451453541056},{"$f":"'[2]EXT Comercio(M)'!AP341","v":9152.3296033541119},null,null,{"$f":"'[2]EXT Comercio(M)'!$BS341","v":-3031.938373816256},{"$f":"'[2]EXT Comercio(M)'!$BT341","v":-4029.9825008162552}]
[null,null,"Setiembre",{"$f":"'[2]REAL IPC(M)'!AD342","v":1.6412002719537446},{"$f":"'[2]REAL IPC(M)'!AE342","v":1.5615012327641253},{"$f":"'[2]REAL IPC(M)'!AF342","v":4.3599553642595374},{"$f":"'[2]REAL IPC(M)'!AG342","v":3.6622583926754873},{"$f":"'[2]REAL IPC(M)'!AH342","v":4.1228479442557164},{"$f":"'[2]REAL IPC(M)'!AI342","v":3.7992417999010977},{"$f":"'[2]REAL IPC(M)'!AJ342","v":0.76997112608276908},null,null,{"$f":"'[2]REAL IMAE(M)'!AG342","v":2.385732247689567},{"$f":"'[2]REAL IMAE(M)'!AH342","v":1.4119411551377197},{"$f":"'[2]REAL IMAE(M)'!AI342","v":2.4239596688844212},{"$f":"'[2]REAL IMAE(M)'!AJ342","v":5.367101727182833},{"$f":"'[2]REAL IMAE(M)'!AK342","v":3.686316749940731},{"$f":"'[2]REAL IMAE(M)'!AL342","v":4.7360195354921473},{"$f":"'[2]REAL IMAE(M)'!AM342","v":3.9378440111922099},null,null,{"$f":"'[2]EXT ITCER(M)'!C342","v":80.378139931933759},{"$f":"'[2]EXT ITCER(M)'!D342","v":93.77927634279871},{"$f":"'[2]EXT ITCER(M)'!E342","v":52.898590312267679},{"$f":"'[2]EXT ITCER(M)'!F342","v":78.560843743945853},{"$f":"'[2]EXT ITCER(M)'!G342","v":104.8779721599645},{"$f":"'[2]EXT ITCER(M)'!H342","v":105.64591471443219},{"$f":"'[2]EXT ITCER(M)'!I342","v":89.533191223952628},null,null,{"$f":"'[2]EXT TC(M)'!J342","v":4.9637135800056491},{"$f":"'[2]EXT TC(M)'!K342","v":0},{"$f":"'[2]EXT TC(M)'!L342","v":-2.9320395592215975},{"$f":"'[2]EXT TC(M)'!M342","v":1.8168722189277169},{"$f":"'[2]EXT TC(M)'!N342","v":4.8760778750159774},{"$f":"'[2]EXT TC(M)'!O342","v":3.3452473182683256},{"$f":"'[2]EXT TC(M)'!P342","v":0},null,null,{"$f":"'[2]EXT RIN(M)'!C342","v":6898.1},{"$f":"'[2]EXT RIN(M)'!D342","v":3320.04},{"$f":"'[2]EXT RIN(M)'!E342","v":11268.4},{"$f":"'[2]EXT RIN(M)'!F342","v":4516.842434066446},{"$f":"'[2]EXT RIN(M)'!G342","v":2492.9},{"$f":"'[2]EXT RIN(M)'!H342","v":6169.144841569394},{"$f":"'[2]EXT RIN(M)'!I342","v":3571.3758189099999},null,null,{"$f":"'[2]EXT RIN(M)'!P342","v":63.173052271464705},{"$f":"'[2]EXT RIN(M)'!Q342","v":103.41724461777353},{"$f":"'[2]EXT RIN(M)'!R342","v":111.23655207106931},{"$f":"'[2]EXT RIN(M)'!S342","v":87.341399988178551},{"$f":"'[2]EXT RIN(M)'!T342","v":132.42813668508035},{"$f":"'[2]EXT RIN(M)'!U342","v":81.028453650831338},{"$f":"'[2]EXT RIN(M)'!V342","v":198.50841451299249},null,null,{"$f":"+'[2]MONE(M)CAPARD'!AE342","v":4.1408402466569516},{"$f":"'[2]MONE(M)CAPARD'!AF342","v":3.0213208056105074},{"$f":"'[2]MONE(M)CAPARD'!AG342","v":0.94868250210034666},{"$f":"'[2]MONE(M)CAPARD'!AH342","v":4.3291952894995056},{"$f":"'[2]MONE(M)CAPARD'!AI342","v":5.497694439841565},{"$f":"'[2]MONE(M)CAPARD'!AJ342","v":2.370689956331884},{"$f":"'[2]MONE(M)CAPARD'!AK342","v":1.5282617000955139},null,null,{"$f":"'[2]MONE(M)CAPARD'!AL342","v":3.3017964200000001},{"$f":"'[2]MONE(M)CAPARD'!AM342","v":4.63},{"$f":"'[2]MONE(M)CAPARD'!AN342","v":2.96},{"$f":"'[2]MONE(M)CAPARD'!AO342","v":3.38},{"$f":"'[2]MONE(M)CAPARD'!AP342","v":4.24},{"$f":"'[2]MONE(M)CAPARD'!AQ342","v":1.65},{"$f":"'[2]MONE(M)CAPARD'!AR342","v":2.31},null,null,{"$f":"'[2]MONE(M)CAPARD'!J342","v":12.906970493210693},{"$f":"'[2]MONE(M)CAPARD'!K342","v":4.6951834202481626},{"$f":"'[2]MONE(M)CAPARD'!L342","v":8.3269915221874165},{"$f":"'[2]MONE(M)CAPARD'!M342","v":15.094926398429829},{"$f":"'[2]MONE(M)CAPARD'!N342","v":8.7208434011504252},{"$f":"'[2]MONE(M)CAPARD'!O342","v":8.7387518856689219},{"$f":"'[2]MONE(M)CAPARD'!P342","v":5.5473161413562595},null,null,{"$f":"'[2]MONE(M)CAPARD'!Q342","v":9.6300000000000008},{"$f":"'[2]MONE(M)CAPARD'!R342","v":6.33},{"$f":"'[2]MONE(M)CAPARD'!S342","v":6.04},{"$f":"'[2]MONE(M)CAPARD'!T342","v":8.32},{"$f":"'[2]MONE(M)CAPARD'!U342","v":7.42},{"$f":"'[2]MONE(M)CAPARD'!V342","v":5.86},{"$f":"'[2]MONE(M)CAPARD'!W342","v":6.36},null,null,{"$f":"'[2]MONE(M)CAPARD'!AS342","v":4.5},{"$f":"'[2]MONE(M)CAPARD'!AT342","v":"n.a."},{"$f":"'[2]MONE(M)CAPARD'!AU342","v":3},{"$f":"'[2]MONE(M)CAPARD'!AV342","v":5.5},{"$f":"'[2]MONE(M)CAPARD'!AW342","v":"n.a."},{"$f":"'[2]MONE(M)CAPARD'!AX342","v":5.25},{"$f":"'[2]MONE(M)CAPARD'!AY342","v":"n.a."},null,null,{"$f":"+'Datos_Regional (M)'!CF335","v":9.1841801700648151},{"$f":"+'Datos_Regional (M)'!CG335","v":5.6458744235802438},{"$f":"+'Datos_Regional (M)'!CH335","v":5.2859230382994227},{"$f":"+'Datos_Regional (M)'!CI335","v":10.412138685452721},{"$f":"+'Datos_Regional (M)'!CJ335","v":17.764304661113961},{"$f":"+'Datos_Regional (M)'!CK335","v":10.063119300118096},{"$f":"+'Datos_Regional (M)'!CL335","v":7.1067564670950656},null,null,875.35469879583331,472.11666666666662,908.75000000000011,717.0435082860655,427.43252159083323,831.14166666666654,928.50165941666683,4231.8390620060654,5160.3407214227309,null,null,1307.7469542416666,853.67666666666662,1485.1666666666667,1011.3263867328901,587.09749102833337,1463.6333333333334,1792.6907245833333,6708.6474986695548,8501.3382232528911,null,null,-2476.8084366634916,-3340.9975018301589,null,null,{"$f":"'[2]EXT Comercio(M)'!C342","v":887.45464378000042},{"$f":"'[2]EXT Comercio(M)'!D342","v":473.44000000000005},{"$f":"'[2]EXT Comercio(M)'!E342","v":837.09999999999991},{"$f":"'[2]EXT Comercio(M)'!F342","v":671.76391641060059},{"$f":"'[2]EXT Comercio(M)'!G342","v":398.63112921000004},{"$f":"'[2]EXT Comercio(M)'!H342","v":780.90000000000009},{"$f":"'[2]EXT Comercio(M)'!I342","v":814.60750700000006},{"$f":"'[2]EXT Comercio(M)'!K342","v":4049.2896894006044},{"$f":"'[2]EXT Comercio(M)'!L342","v":4863.897196400605},null,null,{"$f":"'[2]EXT Comercio(M)'!AG342","v":1320.0991799199994},{"$f":"'[2]EXT Comercio(M)'!AH342","v":826.77999999999975},{"$f":"'[2]EXT Comercio(M)'!AI342","v":1464.4},{"$f":"'[2]EXT Comercio(M)'!AJ342","v":1129.7316620132028},{"$f":"'[2]EXT Comercio(M)'!AK342","v":560.82954577999999},{"$f":"'[2]EXT Comercio(M)'!AL342","v":1321.9},{"$f":"'[2]EXT Comercio(M)'!AM342","v":1749.7342849999998},{"$f":"'[2]EXT Comercio(M)'!AO342","v":6623.7403877132019},{"$f":"'[2]EXT Comercio(M)'!AP342","v":8373.4746727132006},null,null,{"$f":"'[2]EXT Comercio(M)'!$BS342","v":-2574.4506983126048},{"$f":"'[2]EXT Comercio(M)'!$BT342","v":-3509.5774763126028}]
[null,null,"Octubre",{"$f":"'[2]REAL IPC(M)'!AD343","v":2.325431601228714},{"$f":"'[2]REAL IPC(M)'!AE343","v":1.4300027324892914},{"$f":"'[2]REAL IPC(M)'!AF343","v":4.2032771313227162},{"$f":"'[2]REAL IPC(M)'!AG343","v":3.967446592065123},{"$f":"'[2]REAL IPC(M)'!AH343","v":4.3733083811180258},{"$f":"'[2]REAL IPC(M)'!AI343","v":3.4836907402842843},{"$f":"'[2]REAL IPC(M)'!AJ343","v":0.48076923076923078},null,null,{"$f":"'[2]REAL IMAE(M)'!AG343","v":2.6192804907850444},{"$f":"'[2]REAL IMAE(M)'!AH343","v":1.6787593370882685},{"$f":"'[2]REAL IMAE(M)'!AI343","v":1.9240883442830068},{"$f":"'[2]REAL IMAE(M)'!AJ343","v":4.8299346797635065},{"$f":"'[2]REAL IMAE(M)'!AK343","v":3.7955040998387846},{"$f":"'[2]REAL IMAE(M)'!AL343","v":5.3046844337309089},{"$f":"'[2]REAL IMAE(M)'!AM343","v":3.680916304765689},null,null,{"$f":"'[2]EXT ITCER(M)'!C343","v":79.359284508289164},{"$f":"'[2]EXT ITCER(M)'!D343","v":93.733971007385293},{"$f":"'[2]EXT ITCER(M)'!E343","v":52.924823017730283},{"$f":"'[2]EXT ITCER(M)'!F343","v":78.670172864528283},{"$f":"'[2]EXT ITCER(M)'!G343","v":104.64992940336271},{"$f":"'[2]EXT ITCER(M)'!H343","v":105.9782293454835},{"$f":"'[2]EXT ITCER(M)'!I343","v":89.774072324095954},null,null,{"$f":"'[2]EXT TC(M)'!J343","v":3.8891653322705078},{"$f":"'[2]EXT TC(M)'!K343","v":0},{"$f":"'[2]EXT TC(M)'!L343","v":-2.0725755772753387},{"$f":"'[2]EXT TC(M)'!M343","v":1.6666232711026865},{"$f":"'[2]EXT TC(M)'!N343","v":4.7330316271886606},{"$f":"'[2]EXT TC(M)'!O343","v":2.9990484348803577},{"$f":"'[2]EXT TC(M)'!P343","v":0},null,null,{"$f":"'[2]EXT RIN(M)'!C343","v":6847.5},{"$f":"'[2]EXT RIN(M)'!D343","v":3332.08},{"$f":"'[2]EXT RIN(M)'!E343","v":11494.4},{"$f":"'[2]EXT RIN(M)'!F343","v":4521.7909723722523},{"$f":"'[2]EXT RIN(M)'!G343","v":2551.9},{"$f":"'[2]EXT RIN(M)'!H343","v":5821.8289709762084},{"$f":"'[2]EXT RIN(M)'!I343","v":3451.9862829700005},null,null,{"$f":"'[2]EXT RIN(M)'!P343","v":62.124047873877053},{"$f":"'[2]EXT RIN(M)'!Q343","v":102.7671519409171},{"$f":"'[2]EXT RIN(M)'!R343","v":110.5630881242804},{"$f":"'[2]EXT RIN(M)'!S343","v":91.203760973212468},{"$f":"'[2]EXT RIN(M)'!T343","v":126.85641139901469},{"$f":"'[2]EXT RIN(M)'!U343","v":80.550955006448902},{"$f":"'[2]EXT RIN(M)'!V343","v":203.41585082909353},null,null,{"$f":"+'[2]MONE(M)CAPARD'!AE343","v":3.4933333217705806},{"$f":"'[2]MONE(M)CAPARD'!AF343","v":2.9872790948275925},{"$f":"'[2]MONE(M)CAPARD'!AG343","v":1.0812739288970017},{"$f":"'[2]MONE(M)CAPARD'!AH343","v":4.1576027397260109},{"$f":"'[2]MONE(M)CAPARD'!AI343","v":4.9404356100000033},{"$f":"'[2]MONE(M)CAPARD'!AJ343","v":2.1803525208416019},{"$f":"'[2]MONE(M)CAPARD'!AK343","v":1.8503349282296648},null,null,{"$f":"'[2]MONE(M)CAPARD'!AL343","v":3.2704807300000001},{"$f":"'[2]MONE(M)CAPARD'!AM343","v":4.46},{"$f":"'[2]MONE(M)CAPARD'!AN343","v":2.95},{"$f":"'[2]MONE(M)CAPARD'!AO343","v":3.44},{"$f":"'[2]MONE(M)CAPARD'!AP343","v":4.05},{"$f":"'[2]MONE(M)CAPARD'!AQ343","v":1.74},{"$f":"'[2]MONE(M)CAPARD'!AR343","v":2.34},null,null,{"$f":"'[2]MONE(M)CAPARD'!J343","v":12.210618810252106},{"$f":"'[2]MONE(M)CAPARD'!K343","v":4.7816199712643739},{"$f":"'[2]MONE(M)CAPARD'!L343","v":8.5186599817684705},{"$f":"'[2]MONE(M)CAPARD'!M343","v":13.977984344422683},{"$f":"'[2]MONE(M)CAPARD'!N343","v":8.6331187525205646},{"$f":"'[2]MONE(M)CAPARD'!O343","v":8.9060500198491432},{"$f":"'[2]MONE(M)CAPARD'!P343","v":5.9307177033492824},null,null,{"$f":"'[2]MONE(M)CAPARD'!Q343","v":9.56},{"$f":"'[2]MONE(M)CAPARD'!R343","v":6.28},{"$f":"'[2]MONE(M)CAPARD'!S343","v":6.04},{"$f":"'[2]MONE(M)CAPARD'!T343","v":8.3699999999999992},{"$f":"'[2]MONE(M)CAPARD'!U343","v":7.98},{"$f":"'[2]MONE(M)CAPARD'!V343","v":5.55},{"$f":"'[2]MONE(M)CAPARD'!W343","v":6.44},null,null,{"$f":"'[2]MONE(M)CAPARD'!AS343","v":4.5},{"$f":"'[2]MONE(M)CAPARD'!AT343","v":"n.a."},{"$f":"'[2]MONE(M)CAPARD'!AU343","v":3},{"$f":"'[2]MONE(M)CAPARD'!AV343","v":5.5},{"$f":"'[2]MONE(M)CAPARD'!AW343","v":"n.a."},{"$f":"'[2]MONE(M)CAPARD'!AX343","v":5.25},{"$f":"'[2]MONE(M)CAPARD'!AY343","v":"n.a."},null,null,{"$f":"+'Datos_Regional (M)'!CF336","v":8.1031858800363352},{"$f":"+'Datos_Regional (M)'!CG336","v":5.1493703983421124},{"$f":"+'Datos_Regional (M)'!CH336","v":5.3522033390909662},{"$f":"+'Datos_Regional (M)'!CI336","v":10.527120294686231},{"$f":"+'Datos_Regional (M)'!CJ336","v":16.596870790368822},{"$f":"+'Datos_Regional (M)'!CK336","v":11.022547400676963},{"$f":"+'Datos_Regional (M)'!CL336","v":7.3732784910300886},null,null,881.55783176500006,474.41500000000013,920.64166666666688,719.24847960090756,428.20830648250006,835.47500000000002,926.34705616666668,4259.5462845150741,5185.8933406817405,null,null,1316.8233492158333,864.78833333333307,1509.5416666666667,1021.1151896658157,595.16011810250006,1477.075,1791.8475345833331,6784.5036569841495,8576.3511915674844,null,null,-2524.9573724690749,-3390.4578508857426,null,null,{"$f":"'[2]EXT Comercio(M)'!C343","v":893.28818878000038},{"$f":"'[2]EXT Comercio(M)'!D343","v":469.51000000000022},{"$f":"'[2]EXT Comercio(M)'!E343","v":851.7},{"$f":"'[2]EXT Comercio(M)'!F343","v":609.40481282097983},{"$f":"'[2]EXT Comercio(M)'!G343","v":411.11353718999999},{"$f":"'[2]EXT Comercio(M)'!H343","v":917.69999999999993},{"$f":"'[2]EXT Comercio(M)'!I343","v":1045.5348590000001},{"$f":"'[2]EXT Comercio(M)'!K343","v":4152.7165387909772},{"$f":"'[2]EXT Comercio(M)'!L343","v":5198.2513977909766},null,null,{"$f":"'[2]EXT Comercio(M)'!AG343","v":1376.2094839100007},{"$f":"'[2]EXT Comercio(M)'!AH343","v":948.78999999999905},{"$f":"'[2]EXT Comercio(M)'!AI343","v":1693.8},{"$f":"'[2]EXT Comercio(M)'!AJ343","v":1068.6881177400005},{"$f":"'[2]EXT Comercio(M)'!AK343","v":690.09677477999992},{"$f":"'[2]EXT Comercio(M)'!AL343","v":1671.6},{"$f":"'[2]EXT Comercio(M)'!AM343","v":2030.9526149999997},{"$f":"'[2]EXT Comercio(M)'!AO343","v":7449.1843764300138},{"$f":"'[2]EXT Comercio(M)'!AP343","v":9480.1369914300158},null,null,{"$f":"'[2]EXT Comercio(M)'!$BS343","v":-3296.4678376390184},{"$f":"'[2]EXT Comercio(M)'!$BT343","v":-4281.885593639021}]
[null,null,"Noviembre",{"$f":"'[2]REAL IPC(M)'!AD344","v":2.4913167908647074},{"$f":"'[2]REAL IPC(M)'!AE344","v":1.6760794315904568},{"$f":"'[2]REAL IPC(M)'!AF344","v":4.691689008042915},{"$f":"'[2]REAL IPC(M)'!AG344","v":4.3345750084659702},{"$f":"'[2]REAL IPC(M)'!AH344","v":5.3467286613125937},{"$f":"'[2]REAL IPC(M)'!AI344","v":4.1355542791499014},{"$f":"'[2]REAL IPC(M)'!AJ344","v":0.38498556304137771},null,null,{"$f":"'[2]REAL IMAE(M)'!AG344","v":3.0088952072559714},{"$f":"'[2]REAL IMAE(M)'!AH344","v":2.5355952891907965},{"$f":"'[2]REAL IMAE(M)'!AI344","v":1.5596292532180531},{"$f":"'[2]REAL IMAE(M)'!AJ344","v":4.30100433643491},{"$f":"'[2]REAL IMAE(M)'!AK344","v":3.777759903156737},{"$f":"'[2]REAL IMAE(M)'!AL344","v":5.8802714152271323},{"$f":"'[2]REAL IMAE(M)'!AM344","v":3.8762936260246024},null,null,{"$f":"'[2]EXT ITCER(M)'!C344","v":78.959055171320315},{"$f":"'[2]EXT ITCER(M)'!D344","v":93.765133905845531},{"$f":"'[2]EXT ITCER(M)'!E344","v":52.526814237029853},{"$f":"'[2]EXT ITCER(M)'!F344","v":78.837556576094428},{"$f":"'[2]EXT ITCER(M)'!G344","v":103.9109231819024},{"$f":"'[2]EXT ITCER(M)'!H344","v":105.77000617457141},{"$f":"'[2]EXT ITCER(M)'!I344","v":90.186195374532588},null,null,{"$f":"'[2]EXT TC(M)'!J344","v":3.0862868459210064},{"$f":"'[2]EXT TC(M)'!K344","v":0},{"$f":"'[2]EXT TC(M)'!L344","v":-2.3409378977637783},{"$f":"'[2]EXT TC(M)'!M344","v":1.6729729654271448},{"$f":"'[2]EXT TC(M)'!N344","v":4.6175076347281001},{"$f":"'[2]EXT TC(M)'!O344","v":2.9823810435429743},{"$f":"'[2]EXT TC(M)'!P344","v":0},null,null,{"$f":"'[2]EXT RIN(M)'!C344","v":6837.1},{"$f":"'[2]EXT RIN(M)'!D344","v":3416.98},{"$f":"'[2]EXT RIN(M)'!E344","v":11572.6},{"$f":"'[2]EXT RIN(M)'!F344","v":4481.3185652269458},{"$f":"'[2]EXT RIN(M)'!G344","v":2660.2},{"$f":"'[2]EXT RIN(M)'!H344","v":6344.5116152361661},{"$f":"'[2]EXT RIN(M)'!I344","v":3264.9391592700003},null,null,{"$f":"'[2]EXT RIN(M)'!P344","v":60.328603634311008},{"$f":"'[2]EXT RIN(M)'!Q344","v":102.73263802242272},{"$f":"'[2]EXT RIN(M)'!R344","v":112.65175616516969},{"$f":"'[2]EXT RIN(M)'!S344","v":88.669732404204765},{"$f":"'[2]EXT RIN(M)'!T344","v":129.05275410591128},{"$f":"'[2]EXT RIN(M)'!U344","v":83.28483304639181},{"$f":"'[2]EXT RIN(M)'!V344","v":189.69245143211131},null,null,{"$f":"+'[2]MONE(M)CAPARD'!AE344","v":3.325826339113946},{"$f":"'[2]MONE(M)CAPARD'!AF344","v":2.7675344920265159},{"$f":"'[2]MONE(M)CAPARD'!AG344","v":0.60015364916771519},{"$f":"'[2]MONE(M)CAPARD'!AH344","v":3.8486043492372568},{"$f":"'[2]MONE(M)CAPARD'!AI344","v":3.4092012959190336},{"$f":"'[2]MONE(M)CAPARD'!AJ344","v":1.0509817981246676},{"$f":"'[2]MONE(M)CAPARD'!AK344","v":1.818015340364342},null,null,{"$f":"'[2]MONE(M)CAPARD'!AL344","v":3.2447617700000002},{"$f":"'[2]MONE(M)CAPARD'!AM344","v":4.49},{"$f":"'[2]MONE(M)CAPARD'!AN344","v":2.95},{"$f":"'[2]MONE(M)CAPARD'!AO344","v":3.45},{"$f":"'[2]MONE(M)CAPARD'!AP344","v":4.03},{"$f":"'[2]MONE(M)CAPARD'!AQ344","v":1.63},{"$f":"'[2]MONE(M)CAPARD'!AR344","v":2.21},null,null,{"$f":"'[2]MONE(M)CAPARD'!J344","v":12.058273418765218},{"$f":"'[2]MONE(M)CAPARD'!K344","v":4.6460490951442361},{"$f":"'[2]MONE(M)CAPARD'!L344","v":7.9837387964148343},{"$f":"'[2]MONE(M)CAPARD'!M344","v":13.529000324569941},{"$f":"'[2]MONE(M)CAPARD'!N344","v":9.7450382715068873},{"$f":"'[2]MONE(M)CAPARD'!O344","v":7.7537837837837973},{"$f":"'[2]MONE(M)CAPARD'!P344","v":6.0517162032598364},null,null,{"$f":"'[2]MONE(M)CAPARD'!Q344","v":9.49},{"$f":"'[2]MONE(M)CAPARD'!R344","v":6.4},{"$f":"'[2]MONE(M)CAPARD'!S344","v":6.03},{"$f":"'[2]MONE(M)CAPARD'!T344","v":8.31},{"$f":"'[2]MONE(M)CAPARD'!U344","v":8.56},{"$f":"'[2]MONE(M)CAPARD'!V344","v":5.58},{"$f":"'[2]MONE(M)CAPARD'!W344","v":6.46},null,null,{"$f":"'[2]MONE(M)CAPARD'!AS344","v":4.75},{"$f":"'[2]MONE(M)CAPARD'!AT344","v":"n.a."},{"$f":"'[2]MONE(M)CAPARD'!AU344","v":2.75},{"$f":"'[2]MONE(M)CAPARD'!AV344","v":5.5},{"$f":"'[2]MONE(M)CAPARD'!AW344","v":"n.a."},{"$f":"'[2]MONE(M)CAPARD'!AX344","v":5.25},{"$f":"'[2]MONE(M)CAPARD'!AY344","v":"n.a."},null,null,{"$f":"+'Datos_Regional (M)'!CF337","v":7.2410722382020509},{"$f":"+'Datos_Regional (M)'!CG337","v":5.145902398038471},{"$f":"+'Datos_Regional (M)'!CH337","v":4.9051265662446664},{"$f":"+'Datos_Regional (M)'!CI337","v":10.325954149000438},{"$f":"+'Datos_Regional (M)'!CJ337","v":17.089521292033226},{"$f":"+'Datos_Regional (M)'!CK337","v":11.30639171952954},{"$f":"+'Datos_Regional (M)'!CL337","v":7.5171565150213171},null,null,886.83791320249986,478.42083333333335,922.44166666666672,720.89140356452879,430.65486741916669,839.50000000000011,924.27726574999986,4278.7466841861951,5203.0239499361942,null,null,1326.0861373316668,878.30999999999983,1510.7416666666668,1030.6463516863594,602.10460622166659,1477.9333333333334,1801.2156299999995,6825.8220952396923,8627.0377252396956,null,null,-2547.0754110534986,-3424.0137753034983,null,null,{"$f":"'[2]EXT Comercio(M)'!C344","v":914.64881923999928},{"$f":"'[2]EXT Comercio(M)'!D344","v":482.16999999999916},{"$f":"'[2]EXT Comercio(M)'!E344","v":875.4},{"$f":"'[2]EXT Comercio(M)'!F344","v":685.67973738425599},{"$f":"'[2]EXT Comercio(M)'!G344","v":399.48306629999996},{"$f":"'[2]EXT Comercio(M)'!H344","v":904.2},{"$f":"'[2]EXT Comercio(M)'!I344","v":944.97099900000001},{"$f":"'[2]EXT Comercio(M)'!K344","v":4261.5816229242555},{"$f":"'[2]EXT Comercio(M)'!L344","v":5206.5526219242456},null,null,{"$f":"'[2]EXT Comercio(M)'!AG344","v":1546.5616946699997},{"$f":"'[2]EXT Comercio(M)'!AH344","v":1028.08},{"$f":"'[2]EXT Comercio(M)'!AI344","v":1569.1},{"$f":"'[2]EXT Comercio(M)'!AJ344","v":1113.0404044299992},{"$f":"'[2]EXT Comercio(M)'!AK344","v":690.60073881000017},{"$f":"'[2]EXT Comercio(M)'!AL344","v":1614.2999999999997},{"$f":"'[2]EXT Comercio(M)'!AM344","v":1798.579432},{"$f":"'[2]EXT Comercio(M)'!AO344","v":7561.6828379099898},{"$f":"'[2]EXT Comercio(M)'!AP344","v":9360.2622699099884},null,null,{"$f":"'[2]EXT Comercio(M)'!$BS344","v":-3300.1012149857488},{"$f":"'[2]EXT Comercio(M)'!$BT344","v":-4153.7096479857428}]
[null,null,"Diciembre ",{"$f":"'[2]REAL IPC(M)'!AD345","v":2.5741099538031378},{"$f":"'[2]REAL IPC(M)'!AE345","v":2.0350428910385143},{"$f":"'[2]REAL IPC(M)'!AF345","v":5.6768903256327485},{"$f":"'[2]REAL IPC(M)'!AG345","v":4.7281323877068555},{"$f":"'[2]REAL IPC(M)'!AH345","v":5.6784984336508488},{"$f":"'[2]REAL IPC(M)'!AI345","v":4.2042774660486009},{"$f":"'[2]REAL IPC(M)'!AJ345","v":0.48076923076923078},null,null,{"$f":"'[2]REAL IMAE(M)'!AG345","v":3.2134559392320003},{"$f":"'[2]REAL IMAE(M)'!AH345","v":2.8507282622344423},{"$f":"'[2]REAL IMAE(M)'!AI345","v":1.5692960702930816},{"$f":"'[2]REAL IMAE(M)'!AJ345","v":3.9117695048258327},{"$f":"'[2]REAL IMAE(M)'!AK345","v":3.6475242432501687},{"$f":"'[2]REAL IMAE(M)'!AL345","v":6.3417800333704086},{"$f":"'[2]REAL IMAE(M)'!AM345","v":4.2399882826366992},null,null,{"$f":"'[2]EXT ITCER(M)'!C345","v":78.568225534679726},{"$f":"'[2]EXT ITCER(M)'!D345","v":93.80301479980767},{"$f":"'[2]EXT ITCER(M)'!E345","v":52.22094434998013},{"$f":"'[2]EXT ITCER(M)'!F345","v":78.459786874165047},{"$f":"'[2]EXT ITCER(M)'!G345","v":103.35442167158971},{"$f":"'[2]EXT ITCER(M)'!H345","v":105.4957539036165},{"$f":"'[2]EXT ITCER(M)'!I345","v":90.203238881028753},null,null,{"$f":"'[2]EXT TC(M)'!J345","v":3.1948068515917925},{"$f":"'[2]EXT TC(M)'!K345","v":0},{"$f":"'[2]EXT TC(M)'!L345","v":-2.1916743355456307},{"$f":"'[2]EXT TC(M)'!M345","v":0.43453246929667944},{"$f":"'[2]EXT TC(M)'!N345","v":4.6403044566958052},{"$f":"'[2]EXT TC(M)'!O345","v":3.2793254596894394},{"$f":"'[2]EXT TC(M)'!P345","v":0},null,null,{"$f":"'[2]EXT RIN(M)'!C345","v":7149.8},{"$f":"'[2]EXT RIN(M)'!D345","v":3273.16},{"$f":"'[2]EXT RIN(M)'!E345","v":11769.5},{"$f":"'[2]EXT RIN(M)'!F345","v":4785.6407855964271},{"$f":"'[2]EXT RIN(M)'!G345","v":2716.2},{"$f":"'[2]EXT RIN(M)'!H345","v":6780.4030804810109},{"$f":"'[2]EXT RIN(M)'!I345","v":3510.3838357999998},null,null,{"$f":"'[2]EXT RIN(M)'!P345","v":63.251838212023173},{"$f":"'[2]EXT RIN(M)'!Q345","v":99.497158101250491},{"$f":"'[2]EXT RIN(M)'!R345","v":105.92515915287497},{"$f":"'[2]EXT RIN(M)'!S345","v":85.606543162928986},{"$f":"'[2]EXT RIN(M)'!T345","v":130.52511384000408},{"$f":"'[2]EXT RIN(M)'!U345","v":82.61753779113198},{"$f":"'[2]EXT RIN(M)'!V345","v":196.45468000134809},null,null,{"$f":"+'[2]MONE(M)CAPARD'!AE345","v":3.2911716686767063},{"$f":"'[2]MONE(M)CAPARD'!AF345","v":2.44519631517753},{"$f":"'[2]MONE(M)CAPARD'!AG345","v":-0.37556964858614833},{"$f":"'[2]MONE(M)CAPARD'!AH345","v":3.1146049661399551},{"$f":"'[2]MONE(M)CAPARD'!AI345","v":3.8298470167812364},{"$f":"'[2]MONE(M)CAPARD'!AJ345","v":0.96514515373812682},{"$f":"'[2]MONE(M)CAPARD'!AK345","v":1.7010526315789474},null,null,{"$f":"'[2]MONE(M)CAPARD'!AL345","v":3.2129622900000001},{"$f":"'[2]MONE(M)CAPARD'!AM345","v":4.53},{"$f":"'[2]MONE(M)CAPARD'!AN345","v":2.96},{"$f":"'[2]MONE(M)CAPARD'!AO345","v":3.43},{"$f":"'[2]MONE(M)CAPARD'!AP345","v":4.05},{"$f":"'[2]MONE(M)CAPARD'!AQ345","v":2},{"$f":"'[2]MONE(M)CAPARD'!AR345","v":2.19},null,null,{"$f":"'[2]MONE(M)CAPARD'!J345","v":11.987323167351516},{"$f":"'[2]MONE(M)CAPARD'!K345","v":4.2779000089437407},{"$f":"'[2]MONE(M)CAPARD'!L345","v":6.9297172274863721},{"$f":"'[2]MONE(M)CAPARD'!M345","v":12.901851015801352},{"$f":"'[2]MONE(M)CAPARD'!N345","v":10.711569663802315},{"$f":"'[2]MONE(M)CAPARD'!O345","v":6.6654869673794579},{"$f":"'[2]MONE(M)CAPARD'!P345","v":5.9406698564593308},null,null,{"$f":"'[2]MONE(M)CAPARD'!Q345","v":9.7899999999999991},{"$f":"'[2]MONE(M)CAPARD'!R345","v":6.4},{"$f":"'[2]MONE(M)CAPARD'!S345","v":6.03},{"$f":"'[2]MONE(M)CAPARD'!T345","v":8.17},{"$f":"'[2]MONE(M)CAPARD'!U345","v":8.5},{"$f":"'[2]MONE(M)CAPARD'!V345","v":6.39},{"$f":"'[2]MONE(M)CAPARD'!W345","v":6.45},null,null,{"$f":"'[2]MONE(M)CAPARD'!AS345","v":4.75},{"$f":"'[2]MONE(M)CAPARD'!AT345","v":"n.a."},{"$f":"'[2]MONE(M)CAPARD'!AU345","v":2.75},{"$f":"'[2]MONE(M)CAPARD'!AV345","v":5.5},{"$f":"'[2]MONE(M)CAPARD'!AW345","v":"n.a."},{"$f":"'[2]MONE(M)CAPARD'!AX345","v":5.25},{"$f":"'[2]MONE(M)CAPARD'!AY345","v":"n.a."},null,null,{"$f":"+'Datos_Regional (M)'!CF338","v":6.9326697559124018},{"$f":"+'Datos_Regional (M)'!CG338","v":5.3650048536689976},{"$f":"+'Datos_Regional (M)'!CH338","v":3.727708387403772},{"$f":"+'Datos_Regional (M)'!CI338","v":8.211391497500987},{"$f":"+'Datos_Regional (M)'!CJ338","v":16.194870193215682},{"$f":"+'Datos_Regional (M)'!CK338","v":11.819029018974248},{"$f":"+'Datos_Regional (M)'!CL338","v":7.786854983765279},null,null,885.95876619499995,480.00083333333333,915.18333333333328,718.67812864921314,432.19693858833335,844.55000000000018,{"$f":"IF(EN150=\"\",\"\",+AVERAGE(EN139:EN150))","v":938.40921274999982},4276.5680000992124,5214.9772128492141,null,null,1326.4447366283334,880.95833333333337,1532.5416666666663,1033.8984564820259,603.4766783391666,1477.8583333333336,1828.2458631666666,6855.1782047828601,8683.4240679495269,null,null,-2578.6102046836463,-3468.4468551003133,null,null,{"$f":"'[2]EXT Comercio(M)'!C345","v":808.90996123000059},{"$f":"'[2]EXT Comercio(M)'!D345","v":421.03000000000065},{"$f":"'[2]EXT Comercio(M)'!E345","v":887.3},{"$f":"'[2]EXT Comercio(M)'!F345","v":585.16491921795637},{"$f":"'[2]EXT Comercio(M)'!G345","v":356.00979888000001},{"$f":"'[2]EXT Comercio(M)'!H345","v":815.7},{"$f":"'[2]EXT Comercio(M)'!I345","v":961.01787800000011},{"$f":"'[2]EXT Comercio(M)'!K345","v":3874.1146793279477},{"$f":"'[2]EXT Comercio(M)'!L345","v":4835.1325573279755},null,null,{"$f":"'[2]EXT Comercio(M)'!AG345","v":1330.3895619700002},{"$f":"'[2]EXT Comercio(M)'!AH345","v":844.52000000000044},{"$f":"'[2]EXT Comercio(M)'!AI345","v":1744.6000000000001},{"$f":"'[2]EXT Comercio(M)'!AJ345","v":976.2705883429004},{"$f":"'[2]EXT Comercio(M)'!AK345","v":575.23053875000005},{"$f":"'[2]EXT Comercio(M)'!AL345","v":1530},{"$f":"'[2]EXT Comercio(M)'!AM345","v":1981.75441},{"$f":"'[2]EXT Comercio(M)'!AO345","v":7001.0106890629104},{"$f":"'[2]EXT Comercio(M)'!AP345","v":8982.7650990629045},null,null,{"$f":"'[2]EXT Comercio(M)'!$BS345","v":-3126.8960097349409},{"$f":"'[2]EXT Comercio(M)'!$BT345","v":-4147.6325417349435}]
[null,2018,"Enero",{"$f":"'[2]REAL IPC(M)'!AD346","v":2.4078251769652224},{"$f":"'[2]REAL IPC(M)'!AE346","v":1.422230274481378},{"$f":"'[2]REAL IPC(M)'!AF346","v":4.7140952231547528},{"$f":"'[2]REAL IPC(M)'!AG346","v":4.5729657027572372},{"$f":"'[2]REAL IPC(M)'!AH346","v":5.3590959201744264},{"$f":"'[2]REAL IPC(M)'!AI346","v":3.8632506263638304},{"$f":"'[2]REAL IPC(M)'!AJ346","v":0.38350910834132856},null,null,{"$f":"'[2]REAL IMAE(M)'!AG346","v":3.190389894912335},{"$f":"'[2]REAL IMAE(M)'!AH346","v":2.8890190123080033},{"$f":"'[2]REAL IMAE(M)'!AI346","v":1.9689956108499991},{"$f":"'[2]REAL IMAE(M)'!AJ346","v":3.7175014331342724},{"$f":"'[2]REAL IMAE(M)'!AK346","v":3.4358298354998325},{"$f":"'[2]REAL IMAE(M)'!AL346","v":6.6600643476158172},{"$f":"'[2]REAL IMAE(M)'!AM346","v":4.4883841994413896},null,null,{"$f":"'[2]EXT ITCER(M)'!C346","v":78.935188373354862},{"$f":"'[2]EXT ITCER(M)'!D346","v":94.075782868400765},{"$f":"'[2]EXT ITCER(M)'!E346","v":52.667148738813466},{"$f":"'[2]EXT ITCER(M)'!F346","v":78.672361163061822},{"$f":"'[2]EXT ITCER(M)'!G346","v":104.0888219374136},{"$f":"'[2]EXT ITCER(M)'!H346","v":106.1248870577604},{"$f":"'[2]EXT ITCER(M)'!I346","v":90.413863431743167},null,null,{"$f":"'[2]EXT TC(M)'!J346","v":3.2281022048072447},{"$f":"'[2]EXT TC(M)'!K346","v":0},{"$f":"'[2]EXT TC(M)'!L346","v":-2.3180671350007698},{"$f":"'[2]EXT TC(M)'!M346","v":1.1063215374145426E-2},{"$f":"'[2]EXT TC(M)'!N346","v":4.7926229730830858},{"$f":"'[2]EXT TC(M)'!O346","v":3.5285902774208018},{"$f":"'[2]EXT TC(M)'!P346","v":0},null,null,{"$f":"'[2]EXT RIN(M)'!C346","v":7120.0502999999999},{"$f":"'[2]EXT RIN(M)'!D346","v":3441.87},{"$f":"'[2]EXT RIN(M)'!E346","v":11345.9},{"$f":"'[2]EXT RIN(M)'!F346","v":4674.0289756200364},{"$f":"'[2]EXT RIN(M)'!G346","v":2739.8},{"$f":"'[2]EXT RIN(M)'!H346","v":6803.9781630356683},{"$f":"'[2]EXT RIN(M)'!I346","v":3219.9777227200002},null,null,{"$f":"'[2]EXT RIN(M)'!P346","v":62.809300808576538},{"$f":"'[2]EXT RIN(M)'!Q346","v":103.02149944147187},{"$f":"'[2]EXT RIN(M)'!R346","v":105.48346903062252},{"$f":"'[2]EXT RIN(M)'!S346","v":87.959663681286344},{"$f":"'[2]EXT RIN(M)'!T346","v":135.84042485887485},{"$f":"'[2]EXT RIN(M)'!U346","v":87.794403967967739},{"$f":"'[2]EXT RIN(M)'!V346","v":197.2166538553343},null,null,{"$f":"+'[2]MONE(M)CAPARD'!AE346","v":3.6053639618403541},{"$f":"'[2]MONE(M)CAPARD'!AF346","v":2.9162933190425213},{"$f":"'[2]MONE(M)CAPARD'!AG346","v":0.53087865168539705},{"$f":"'[2]MONE(M)CAPARD'!AH346","v":3.5927395498392203},{"$f":"'[2]MONE(M)CAPARD'!AI346","v":3.0131462929911548},{"$f":"'[2]MONE(M)CAPARD'!AJ346","v":1.7588024278266543},{"$f":"'[2]MONE(M)CAPARD'!AK346","v":1.42602196752626},null,null,{"$f":"'[2]MONE(M)CAPARD'!AL346","v":3.6385876599999998},{"$f":"'[2]MONE(M)CAPARD'!AM346","v":4.38},{"$f":"'[2]MONE(M)CAPARD'!AN346","v":2.96},{"$f":"'[2]MONE(M)CAPARD'!AO346","v":3.5},{"$f":"'[2]MONE(M)CAPARD'!AP346","v":4.03},{"$f":"'[2]MONE(M)CAPARD'!AQ346","v":1.69},{"$f":"'[2]MONE(M)CAPARD'!AR346","v":1.8149999999999999},null,null,{"$f":"'[2]MONE(M)CAPARD'!J346","v":12.374225115255307},{"$f":"'[2]MONE(M)CAPARD'!K346","v":4.8093694176491661},{"$f":"'[2]MONE(M)CAPARD'!L346","v":7.9797325842696667},{"$f":"'[2]MONE(M)CAPARD'!M346","v":12.925935691318317},{"$f":"'[2]MONE(M)CAPARD'!N346","v":12.292982683003792},{"$f":"'[2]MONE(M)CAPARD'!O346","v":7.8629826472648308},{"$f":"'[2]MONE(M)CAPARD'!P346","v":5.9935052531041011},null,null,{"$f":"'[2]MONE(M)CAPARD'!Q346","v":10.130000000000001},{"$f":"'[2]MONE(M)CAPARD'!R346","v":6.3},{"$f":"'[2]MONE(M)CAPARD'!S346","v":6.08},{"$f":"'[2]MONE(M)CAPARD'!T346","v":8.18},{"$f":"'[2]MONE(M)CAPARD'!U346","v":8.76},{"$f":"'[2]MONE(M)CAPARD'!V346","v":6.62},{"$f":"'[2]MONE(M)CAPARD'!W346","v":6.4},null,null,{"$f":"'[2]MONE(M)CAPARD'!AS346","v":4.75},{"$f":"'[2]MONE(M)CAPARD'!AT346","v":"n.a."},{"$f":"'[2]MONE(M)CAPARD'!AU346","v":2.75},{"$f":"'[2]MONE(M)CAPARD'!AV346","v":5.5},{"$f":"'[2]MONE(M)CAPARD'!AW346","v":"n.a."},{"$f":"'[2]MONE(M)CAPARD'!AX346","v":5.25},{"$f":"'[2]MONE(M)CAPARD'!AY346","v":"n.a."},null,null,{"$f":"+'Datos_Regional (M)'!CF339","v":6.1547674726853296},{"$f":"+'Datos_Regional (M)'!CG339","v":4.6976374204637406},{"$f":"+'Datos_Regional (M)'!CH339","v":4.0845463747357869},{"$f":"+'Datos_Regional (M)'!CI339","v":8.5857373067208087},{"$f":"+'Datos_Regional (M)'!CJ339","v":16.158911427150024},{"$f":"+'Datos_Regional (M)'!CK339","v":11.781437367081281},{"$f":"+'Datos_Regional (M)'!CL339","v":7.3081624939931311},null,null,{"$f":"IF(EH151=\"\",\"\",+AVERAGE(EH140:EH151))","v":889.04847731833343},{"$f":"IF(EI151=\"\",\"\",+AVERAGE(EI140:EI151))","v":486.15500000000003},{"$f":"IF(EJ151=\"\",\"\",+AVERAGE(EJ140:EJ151))","v":915.21666666666658},{"$f":"IF(EK151=\"\",\"\",+AVERAGE(EK140:EK151))","v":721.45176372341666},{"$f":"IF(EL151=\"\",\"\",+AVERAGE(EL140:EL151))","v":436.43552980333334},{"$f":"IF(EM151=\"\",\"\",+AVERAGE(EM140:EM151))","v":852.7166666666667},{"$f":"IF(EN151=\"\",\"\",+AVERAGE(EN140:EN151))","v":955.9954388333332},{"$f":"IF(EO151=\"\",\"\",+AVERAGE(EO140:EO151))","v":4301.0241041784157},{"$f":"IF(EP151=\"\",\"\",+AVERAGE(EP140:EP151))","v":5257.0195430117501},null,null,{"$f":"IF(ES151=\"\",\"\",+AVERAGE(ES140:ES151))","v":1330.0559564649998},{"$f":"IF(ET151=\"\",\"\",+AVERAGE(ET140:ET151))","v":885.2791666666667},{"$f":"IF(EU151=\"\",\"\",+AVERAGE(EU140:EU151))","v":1543.7583333333334},{"$f":"IF(EV151=\"\",\"\",+AVERAGE(EV140:EV151))","v":1048.1354755154341},{"$f":"IF(EW151=\"\",\"\",+AVERAGE(EW140:EW151))","v":610.09014054666659},{"$f":"IF(EX151=\"\",\"\",+AVERAGE(EX140:EX151))","v":1498.3166666666666},{"$f":"IF(EY151=\"\",\"\",+AVERAGE(EY140:EY151))","v":1860.2551476666667},{"$f":"IF(EZ151=\"\",\"\",+AVERAGE(EZ140:EZ151))","v":6915.6357391937681},{"$f":"IF(FA151=\"\",\"\",+AVERAGE(FA140:FA151))","v":8775.8908868604358},null,null,{"$f":"IF(FD151=\"\",\"\",+AVERAGE(FD140:FD151))","v":-2614.6116350153511},{"$f":"IF(FE151=\"\",\"\",+AVERAGE(FE140:FE151))","v":-3518.8713438486848},null,null,{"$f":"'[2]EXT Comercio(M)'!C346","v":794.39131743999997},{"$f":"'[2]EXT Comercio(M)'!D346","v":500.02},{"$f":"'[2]EXT Comercio(M)'!E346","v":879.4},{"$f":"'[2]EXT Comercio(M)'!F346","v":731.08867949350042},{"$f":"'[2]EXT Comercio(M)'!G346","v":465.57595276000001},{"$f":"'[2]EXT Comercio(M)'!H346","v":769.50000000000011},{"$f":"'[2]EXT Comercio(M)'!I346","v":949.2},{"$f":"'[2]EXT Comercio(M)'!K346","v":4139.9759496935003},{"$f":"'[2]EXT Comercio(M)'!L346","v":5089.1759496935001},null,null,{"$f":"'[2]EXT Comercio(M)'!AG346","v":1320.5757626899999},{"$f":"'[2]EXT Comercio(M)'!AH346","v":898.76},{"$f":"'[2]EXT Comercio(M)'!AI346","v":1566.4},{"$f":"'[2]EXT Comercio(M)'!AJ346","v":1061.9967038508978},{"$f":"'[2]EXT Comercio(M)'!AK346","v":632.98577080000007},{"$f":"'[2]EXT Comercio(M)'!AL346","v":1573.1},{"$f":"'[2]EXT Comercio(M)'!AM346","v":2027.24},{"$f":"'[2]EXT Comercio(M)'!AO346","v":7053.8182373408981},{"$f":"'[2]EXT Comercio(M)'!AP346","v":9081.0582373408979},null,null,{"$f":"'[2]EXT Comercio(M)'!$BS346","v":-2913.8422876473974},{"$f":"'[2]EXT Comercio(M)'!$BT346","v":-3991.8822876473973}]
[null,null,"Febrero",{"$f":"'[2]REAL IPC(M)'!AD347","v":2.212488153872779},{"$f":"'[2]REAL IPC(M)'!AE347","v":1.2286566085463904},{"$f":"'[2]REAL IPC(M)'!AF347","v":4.1510318949343237},{"$f":"'[2]REAL IPC(M)'!AG347","v":4.3333333333333339},{"$f":"'[2]REAL IPC(M)'!AH347","v":4.8161039269698067},{"$f":"'[2]REAL IPC(M)'!AI347","v":3.3158953722333822},{"$f":"'[2]REAL IPC(M)'!AJ347","v":0.38240917782027312},null,null,{"$f":"'[2]REAL IMAE(M)'!AG347","v":3.3550681584556172},{"$f":"'[2]REAL IMAE(M)'!AH347","v":3.0450826817326235},{"$f":"'[2]REAL IMAE(M)'!AI347","v":2.6975532669323821},{"$f":"'[2]REAL IMAE(M)'!AJ347","v":3.7047358448574772},{"$f":"'[2]REAL IMAE(M)'!AK347","v":3.1419462803409322},{"$f":"'[2]REAL IMAE(M)'!AL347","v":6.9513887612543721},{"$f":"'[2]REAL IMAE(M)'!AM347","v":4.4134813485324154},null,null,{"$f":"'[2]EXT ITCER(M)'!C347","v":79.18071383707192},{"$f":"'[2]EXT ITCER(M)'!D347","v":94.253295617330011},{"$f":"'[2]EXT ITCER(M)'!E347","v":53.050402310099201},{"$f":"'[2]EXT ITCER(M)'!F347","v":78.293082093659862},{"$f":"'[2]EXT ITCER(M)'!G347","v":104.4465134639195},{"$f":"'[2]EXT ITCER(M)'!H347","v":107.4291711803252},{"$f":"'[2]EXT ITCER(M)'!I347","v":90.39826274502596},null,null,{"$f":"'[2]EXT TC(M)'!J347","v":2.4532936216300127},{"$f":"'[2]EXT TC(M)'!K347","v":0},{"$f":"'[2]EXT TC(M)'!L347","v":-0.57418587050558789},{"$f":"'[2]EXT TC(M)'!M347","v":-1.4829870201496826E-2},{"$f":"'[2]EXT TC(M)'!N347","v":4.6509741082928571},{"$f":"'[2]EXT TC(M)'!O347","v":3.6621078173879966},{"$f":"'[2]EXT TC(M)'!P347","v":0},null,null,{"$f":"'[2]EXT RIN(M)'!C347","v":7015.9},{"$f":"'[2]EXT RIN(M)'!D347","v":3370.66},{"$f":"'[2]EXT RIN(M)'!E347","v":11475.2},{"$f":"'[2]EXT RIN(M)'!F347","v":4764.165179075585},{"$f":"'[2]EXT RIN(M)'!G347","v":2770.9},{"$f":"'[2]EXT RIN(M)'!H347","v":8050.147613639987},{"$f":"'[2]EXT RIN(M)'!I347","v":2824.90965276},null,null,{"$f":"'[2]EXT RIN(M)'!P347","v":62.202851221090647},{"$f":"'[2]EXT RIN(M)'!Q347","v":101.56120531052058},{"$f":"'[2]EXT RIN(M)'!R347","v":106.915234733948},{"$f":"'[2]EXT RIN(M)'!S347","v":86.815176685527689},{"$f":"'[2]EXT RIN(M)'!T347","v":129.08715280548532},{"$f":"'[2]EXT RIN(M)'!U347","v":106.38407819138267},{"$f":"'[2]EXT RIN(M)'!V347","v":169.35715355580464},null,null,{"$f":"+'[2]MONE(M)CAPARD'!AE347","v":3.7055274893860553},{"$f":"'[2]MONE(M)CAPARD'!AF347","v":3.2118804105310144},{"$f":"'[2]MONE(M)CAPARD'!AG347","v":1.0743706372438735},{"$f":"'[2]MONE(M)CAPARD'!AH347","v":3.8498402555910531},{"$f":"'[2]MONE(M)CAPARD'!AI347","v":4.914454433083443},{"$f":"'[2]MONE(M)CAPARD'!AJ347","v":2.497807136983853},{"$f":"'[2]MONE(M)CAPARD'!AK347","v":1.4121904761904709},null,null,{"$f":"'[2]MONE(M)CAPARD'!AL347","v":3.28750594},{"$f":"'[2]MONE(M)CAPARD'!AM347","v":4.4800000000000004},{"$f":"'[2]MONE(M)CAPARD'!AN347","v":2.94},{"$f":"'[2]MONE(M)CAPARD'!AO347","v":3.46},{"$f":"'[2]MONE(M)CAPARD'!AP347","v":4.51},{"$f":"'[2]MONE(M)CAPARD'!AQ347","v":1.7456538739512792},{"$f":"'[2]MONE(M)CAPARD'!AR347","v":1.8},null,null,{"$f":"'[2]MONE(M)CAPARD'!J347","v":12.579198567958993},{"$f":"'[2]MONE(M)CAPARD'!K347","v":4.8517322623828658},{"$f":"'[2]MONE(M)CAPARD'!L347","v":8.5442918261652885},{"$f":"'[2]MONE(M)CAPARD'!M347","v":13.252396166134183},{"$f":"'[2]MONE(M)CAPARD'!N347","v":8.309097991062929},{"$f":"'[2]MONE(M)CAPARD'!O347","v":8.7819058191166359},{"$f":"'[2]MONE(M)CAPARD'!P347","v":5.6758857142857089},null,null,{"$f":"'[2]MONE(M)CAPARD'!Q347","v":9.81},{"$f":"'[2]MONE(M)CAPARD'!R347","v":6.14},{"$f":"'[2]MONE(M)CAPARD'!S347","v":6.08},{"$f":"'[2]MONE(M)CAPARD'!T347","v":8.1999999999999993},{"$f":"'[2]MONE(M)CAPARD'!U347","v":8.35},{"$f":"'[2]MONE(M)CAPARD'!V347","v":5.5015999999999998},{"$f":"'[2]MONE(M)CAPARD'!W347","v":6.08},null,null,{"$f":"'[2]MONE(M)CAPARD'!AS347","v":5},{"$f":"'[2]MONE(M)CAPARD'!AT347","v":"n.a."},{"$f":"'[2]MONE(M)CAPARD'!AU347","v":2.75},{"$f":"'[2]MONE(M)CAPARD'!AV347","v":5.5},{"$f":"'[2]MONE(M)CAPARD'!AW347","v":"n.a."},{"$f":"'[2]MONE(M)CAPARD'!AX347","v":5.25},{"$f":"'[2]MONE(M)CAPARD'!AY347","v":"n.a."},null,null,{"$f":"+'Datos_Regional (M)'!CF340","v":4.9092829247841641},{"$f":"+'Datos_Regional (M)'!CG340","v":4.9200491644593614},{"$f":"+'Datos_Regional (M)'!CH340","v":3.5488823410208203},{"$f":"+'Datos_Regional (M)'!CI340","v":9.4126040183161628},{"$f":"+'Datos_Regional (M)'!CJ340","v":16.674414537975824},{"$f":"+'Datos_Regional (M)'!CK340","v":11.593720364612704},{"$f":"+'Datos_Regional (M)'!CL340","v":7.1498270035061262},null,null,892.73850981750002,489.27333333333331,914.07499999999982,724.50008036707732,437.35154586499999,856.05833333333339,951.34236591666684,4313.9968027162431,5265.3391686329114,null,null,1331.1211165875,890.76666666666677,1549.8583333333333,1049.4981095300839,613.0310934091666,1502.4750000000001,1868.8690682500003,6936.7503195267518,8805.619387776751,null,null,-2622.7535168105064,-3540.2802191438404,null,null,{"$f":"'[2]EXT Comercio(M)'!C347","v":880.00843482000005},{"$f":"'[2]EXT Comercio(M)'!D347","v":488.78},{"$f":"'[2]EXT Comercio(M)'!E347","v":928.30000000000007},{"$f":"'[2]EXT Comercio(M)'!F347","v":779.40729059506157},{"$f":"'[2]EXT Comercio(M)'!G347","v":458.00861867999993},{"$f":"'[2]EXT Comercio(M)'!H347","v":819.8},{"$f":"'[2]EXT Comercio(M)'!I347","v":926.128827},{"$f":"'[2]EXT Comercio(M)'!K347","v":4354.3043440950623},{"$f":"'[2]EXT Comercio(M)'!L347","v":5280.4331710950619},null,null,{"$f":"'[2]EXT Comercio(M)'!AG347","v":1215.2559322},{"$f":"'[2]EXT Comercio(M)'!AH347","v":826.18000000000006},{"$f":"'[2]EXT Comercio(M)'!AI347","v":1425.6},{"$f":"'[2]EXT Comercio(M)'!AJ347","v":967.46856667279587},{"$f":"'[2]EXT Comercio(M)'!AK347","v":572.01149744999998},{"$f":"'[2]EXT Comercio(M)'!AL347","v":1386.4},{"$f":"'[2]EXT Comercio(M)'!AM347","v":1676.441092},{"$f":"'[2]EXT Comercio(M)'!AO347","v":6392.9159963227958},{"$f":"'[2]EXT Comercio(M)'!AP347","v":8069.3570883227949},null,null,{"$f":"'[2]EXT Comercio(M)'!$BS347","v":-2038.6116522277348},{"$f":"'[2]EXT Comercio(M)'!$BT347","v":-2788.9239172277344}]
[null,null,"Marzo",{"$f":"'[2]REAL IPC(M)'!AD348","v":2.6129676904971761},{"$f":"'[2]REAL IPC(M)'!AE348","v":0.9105661738189732},{"$f":"'[2]REAL IPC(M)'!AF348","v":4.1409966466505397},{"$f":"'[2]REAL IPC(M)'!AG348","v":4.3521594684385452},{"$f":"'[2]REAL IPC(M)'!AH348","v":4.8384299879093637},{"$f":"'[2]REAL IPC(M)'!AI348","v":3.9112903225806317},{"$f":"'[2]REAL IPC(M)'!AJ348","v":0.57416267942583188},null,null,{"$f":"'[2]REAL IMAE(M)'!AG348","v":3.6184966437933896},{"$f":"'[2]REAL IMAE(M)'!AH348","v":3.1609132818024679},{"$f":"'[2]REAL IMAE(M)'!AI348","v":3.5603692859903227},{"$f":"'[2]REAL IMAE(M)'!AJ348","v":3.7014084677160177},{"$f":"'[2]REAL IMAE(M)'!AK348","v":2.9113655801969918},{"$f":"'[2]REAL IMAE(M)'!AL348","v":7.2381604371095918},{"$f":"'[2]REAL IMAE(M)'!AM348","v":3.930449007167542},null,null,{"$f":"'[2]EXT ITCER(M)'!C348","v":78.757388069789783},{"$f":"'[2]EXT ITCER(M)'!D348","v":94.372494675889612},{"$f":"'[2]EXT ITCER(M)'!E348","v":53.170268403625244},{"$f":"'[2]EXT ITCER(M)'!F348","v":78.207779502171476},{"$f":"'[2]EXT ITCER(M)'!G348","v":104.59020938535291},{"$f":"'[2]EXT ITCER(M)'!H348","v":107.8461028409494},{"$f":"'[2]EXT ITCER(M)'!I348","v":90.329623759673638},null,null,{"$f":"'[2]EXT TC(M)'!J348","v":1.9285924893451545},{"$f":"'[2]EXT TC(M)'!K348","v":0},{"$f":"'[2]EXT TC(M)'!L348","v":0.48183875225968809},{"$f":"'[2]EXT TC(M)'!M348","v":0.5206032447254485},{"$f":"'[2]EXT TC(M)'!N348","v":4.6873629746557972},{"$f":"'[2]EXT TC(M)'!O348","v":4.0078789354965085},{"$f":"'[2]EXT TC(M)'!P348","v":0},null,null,{"$f":"'[2]EXT RIN(M)'!C348","v":8473.9},{"$f":"'[2]EXT RIN(M)'!D348","v":3400.37},{"$f":"'[2]EXT RIN(M)'!E348","v":11740.8},{"$f":"'[2]EXT RIN(M)'!F348","v":4832.1434372273143},{"$f":"'[2]EXT RIN(M)'!G348","v":2852.1},{"$f":"'[2]EXT RIN(M)'!H348","v":7576.7978562124863},{"$f":"'[2]EXT RIN(M)'!I348","v":2787.7063490299997},null,null,{"$f":"'[2]EXT RIN(M)'!P348","v":75.606783334985423},{"$f":"'[2]EXT RIN(M)'!Q348","v":100.99064007733851},{"$f":"'[2]EXT RIN(M)'!R348","v":108.05976691663111},{"$f":"'[2]EXT RIN(M)'!S348","v":87.586873199233423},{"$f":"'[2]EXT RIN(M)'!T348","v":127.26086931481539},{"$f":"'[2]EXT RIN(M)'!U348","v":104.28371667786256},{"$f":"'[2]EXT RIN(M)'!V348","v":165.12133991951404},null,null,{"$f":"+'[2]MONE(M)CAPARD'!AE348","v":3.3007838928495308},{"$f":"'[2]MONE(M)CAPARD'!AF348","v":3.4975859912445237},{"$f":"'[2]MONE(M)CAPARD'!AG348","v":1.0649056462483251},{"$f":"'[2]MONE(M)CAPARD'!AH348","v":3.6586119070359691},{"$f":"'[2]MONE(M)CAPARD'!AI348","v":4.8786569437957805},{"$f":"'[2]MONE(M)CAPARD'!AJ348","v":1.8162700814901183},{"$f":"'[2]MONE(M)CAPARD'!AK348","v":1.1740960989533831},null,null,{"$f":"'[2]MONE(M)CAPARD'!AL348","v":3.4417385500000002},{"$f":"'[2]MONE(M)CAPARD'!AM348","v":4.4400000000000004},{"$f":"'[2]MONE(M)CAPARD'!AN348","v":3.03},{"$f":"'[2]MONE(M)CAPARD'!AO348","v":3.36},{"$f":"'[2]MONE(M)CAPARD'!AP348","v":4.38},{"$f":"'[2]MONE(M)CAPARD'!AQ348","v":1.8187},{"$f":"'[2]MONE(M)CAPARD'!AR348","v":1.7549999999999999},null,null,{"$f":"'[2]MONE(M)CAPARD'!J348","v":12.061859809799694},{"$f":"'[2]MONE(M)CAPARD'!K348","v":5.3408022871437453},{"$f":"'[2]MONE(M)CAPARD'!L348","v":8.5163419200239723},{"$f":"'[2]MONE(M)CAPARD'!M348","v":13.260713148678759},{"$f":"'[2]MONE(M)CAPARD'!N348","v":7.8943052725614962},{"$f":"'[2]MONE(M)CAPARD'!O348","v":7.8218734963135557},{"$f":"'[2]MONE(M)CAPARD'!P348","v":5.5241198858230316},null,null,{"$f":"'[2]MONE(M)CAPARD'!Q348","v":10.33},{"$f":"'[2]MONE(M)CAPARD'!R348","v":6.3},{"$f":"'[2]MONE(M)CAPARD'!S348","v":6.11},{"$f":"'[2]MONE(M)CAPARD'!T348","v":8.23},{"$f":"'[2]MONE(M)CAPARD'!U348","v":7.61},{"$f":"'[2]MONE(M)CAPARD'!V348","v":5.6927000000000003},{"$f":"'[2]MONE(M)CAPARD'!W348","v":6.13},null,null,{"$f":"'[2]MONE(M)CAPARD'!AS348","v":5},{"$f":"'[2]MONE(M)CAPARD'!AT348","v":"n.a."},{"$f":"'[2]MONE(M)CAPARD'!AU348","v":2.75},{"$f":"'[2]MONE(M)CAPARD'!AV348","v":5.5},{"$f":"'[2]MONE(M)CAPARD'!AW348","v":"n.a."},{"$f":"'[2]MONE(M)CAPARD'!AX348","v":5.25},{"$f":"'[2]MONE(M)CAPARD'!AY348","v":"n.a."},null,null,{"$f":"+'Datos_Regional (M)'!CF341","v":3.8830331632307979},{"$f":"+'Datos_Regional (M)'!CG341","v":5.3508448302869605},{"$f":"+'Datos_Regional (M)'!CH341","v":3.7553130105482335},{"$f":"+'Datos_Regional (M)'!CI341","v":10.095217061631057},{"$f":"+'Datos_Regional (M)'!CJ341","v":15.894782285555277},{"$f":"+'Datos_Regional (M)'!CK341","v":12.788396678576275},{"$f":"+'Datos_Regional (M)'!CL341","v":6.8240801937131002},null,null,902.80396170083338,483.74,912.27499999999975,721.63865633889054,435.07595586999997,853.4083333333333,959.82118627500006,4308.9419072430564,5268.7630935180578,null,null,1327.6891445841666,889.6674999999999,1540.1249999999998,1050.3490620807652,610.82362152833343,1511.75,1871.5825422500002,6930.4043281932654,8801.9868704432647,null,null,-2621.4624209502085,-3533.2237769252083,null,null,{"$f":"'[2]EXT Comercio(M)'!C348","v":1071.60791571},{"$f":"'[2]EXT Comercio(M)'!D348","v":493.66999999999985},{"$f":"'[2]EXT Comercio(M)'!E348","v":1065.3},{"$f":"'[2]EXT Comercio(M)'!F348","v":774.63239029872511},{"$f":"'[2]EXT Comercio(M)'!G348","v":511.12792657},{"$f":"'[2]EXT Comercio(M)'!H348","v":930.5},{"$f":"'[2]EXT Comercio(M)'!I348","v":1102.6100452999999},{"$f":"'[2]EXT Comercio(M)'!K348","v":4846.8382325787261},{"$f":"'[2]EXT Comercio(M)'!L348","v":5949.448277878726},null,null,{"$f":"'[2]EXT Comercio(M)'!AG348","v":1365.1463232600001},{"$f":"'[2]EXT Comercio(M)'!AH348","v":870.46},{"$f":"'[2]EXT Comercio(M)'!AI348","v":1486.8},{"$f":"'[2]EXT Comercio(M)'!AJ348","v":1068.7120567181776},{"$f":"'[2]EXT Comercio(M)'!AK348","v":591.69315015000006},{"$f":"'[2]EXT Comercio(M)'!AL348","v":1632.7},{"$f":"'[2]EXT Comercio(M)'!AM348","v":1983.6550540000001},{"$f":"'[2]EXT Comercio(M)'!AO348","v":7015.5115301281767},{"$f":"'[2]EXT Comercio(M)'!AP348","v":8999.1665841281792},null,null,{"$f":"'[2]EXT Comercio(M)'!$BS348","v":-2168.6732975494524},{"$f":"'[2]EXT Comercio(M)'!$BT348","v":-3049.7183062494523}]
[null,null,"Abril",{"$f":"'[2]REAL IPC(M)'!AD349","v":2.3754301980577606},{"$f":"'[2]REAL IPC(M)'!AE349","v":0.87387387387387294},{"$f":"'[2]REAL IPC(M)'!AF349","v":3.920348475420016},{"$f":"'[2]REAL IPC(M)'!AG349","v":4.2039059913935741},{"$f":"'[2]REAL IPC(M)'!AH349","v":4.8240941781801796},{"$f":"'[2]REAL IPC(M)'!AI349","v":4.0456848709080599},{"$f":"'[2]REAL IPC(M)'!AJ349","v":0.76555023923444698},null,null,{"$f":"'[2]REAL IMAE(M)'!AG349","v":3.7664855288621104},{"$f":"'[2]REAL IMAE(M)'!AH349","v":2.9990870505427125},{"$f":"'[2]REAL IMAE(M)'!AI349","v":4.2249833416200024},{"$f":"'[2]REAL IMAE(M)'!AJ349","v":3.6875586179505935},{"$f":"'[2]REAL IMAE(M)'!AK349","v":2.9536224755886322},{"$f":"'[2]REAL IMAE(M)'!AL349","v":7.4792018982738293},{"$f":"'[2]REAL IMAE(M)'!AM349","v":3.3104752641503863},null,null,{"$f":"'[2]EXT ITCER(M)'!C349","v":78.731134455356738},{"$f":"'[2]EXT ITCER(M)'!D349","v":94.584477732743579},{"$f":"'[2]EXT ITCER(M)'!E349","v":53.412526062315351},{"$f":"'[2]EXT ITCER(M)'!F349","v":78.353414946100102},{"$f":"'[2]EXT ITCER(M)'!G349","v":104.8572612534535},{"$f":"'[2]EXT ITCER(M)'!H349","v":108.08054986648},{"$f":"'[2]EXT ITCER(M)'!I349","v":90.392865767822968},null,null,{"$f":"'[2]EXT TC(M)'!J349","v":1.161088161003597},{"$f":"'[2]EXT TC(M)'!K349","v":0},{"$f":"'[2]EXT TC(M)'!L349","v":0.99386415914939263},{"$f":"'[2]EXT TC(M)'!M349","v":0.80594044929493069},{"$f":"'[2]EXT TC(M)'!N349","v":4.88220649321336},{"$f":"'[2]EXT TC(M)'!O349","v":4.2210806592490897},{"$f":"'[2]EXT TC(M)'!P349","v":0},null,null,{"$f":"'[2]EXT RIN(M)'!C349","v":8128.2201999999997},{"$f":"'[2]EXT RIN(M)'!D349","v":3401.03},{"$f":"'[2]EXT RIN(M)'!E349","v":11845.9},{"$f":"'[2]EXT RIN(M)'!F349","v":4873.4576251489889},{"$f":"'[2]EXT RIN(M)'!G349","v":2932.5},{"$f":"'[2]EXT RIN(M)'!H349","v":7202.1803552235524},{"$f":"'[2]EXT RIN(M)'!I349","v":3344.6422300300001},null,null,{"$f":"'[2]EXT RIN(M)'!P349","v":71.758541917123722},{"$f":"'[2]EXT RIN(M)'!Q349","v":101.44636603888395},{"$f":"'[2]EXT RIN(M)'!R349","v":108.63128769400574},{"$f":"'[2]EXT RIN(M)'!S349","v":91.373148050940685},{"$f":"'[2]EXT RIN(M)'!T349","v":131.89225865730467},{"$f":"'[2]EXT RIN(M)'!U349","v":100.22814653691236},{"$f":"'[2]EXT RIN(M)'!V349","v":204.86484645578491},null,null,{"$f":"+'[2]MONE(M)CAPARD'!AE349","v":3.6869879761578277},{"$f":"'[2]MONE(M)CAPARD'!AF349","v":3.3567919978565692},{"$f":"'[2]MONE(M)CAPARD'!AG349","v":1.2794910179640926},{"$f":"'[2]MONE(M)CAPARD'!AH349","v":3.9404415501906018},{"$f":"'[2]MONE(M)CAPARD'!AI349","v":4.6880047132254345},{"$f":"'[2]MONE(M)CAPARD'!AJ349","v":2.0847718305504093},{"$f":"'[2]MONE(M)CAPARD'!AK349","v":1.0067426400759765},null,null,{"$f":"'[2]MONE(M)CAPARD'!AL349","v":3.4717663399999998},{"$f":"'[2]MONE(M)CAPARD'!AM349","v":4.26},{"$f":"'[2]MONE(M)CAPARD'!AN349","v":3.05},{"$f":"'[2]MONE(M)CAPARD'!AO349","v":3.52},{"$f":"'[2]MONE(M)CAPARD'!AP349","v":4.21},{"$f":"'[2]MONE(M)CAPARD'!AQ349","v":1.9897},{"$f":"'[2]MONE(M)CAPARD'!AR349","v":1.78},null,null,{"$f":"'[2]MONE(M)CAPARD'!J349","v":12.243728575980178},{"$f":"'[2]MONE(M)CAPARD'!K349","v":5.3890327766365989},{"$f":"'[2]MONE(M)CAPARD'!L349","v":8.7563712574850499},{"$f":"'[2]MONE(M)CAPARD'!M349","v":13.258710292249051},{"$f":"'[2]MONE(M)CAPARD'!N349","v":10.491220113557171},{"$f":"'[2]MONE(M)CAPARD'!O349","v":7.8291715213358142},{"$f":"'[2]MONE(M)CAPARD'!P349","v":5.3236942070275441},null,null,{"$f":"'[2]MONE(M)CAPARD'!Q349","v":10.48},{"$f":"'[2]MONE(M)CAPARD'!R349","v":6.31},{"$f":"'[2]MONE(M)CAPARD'!S349","v":6.2},{"$f":"'[2]MONE(M)CAPARD'!T349","v":8.27},{"$f":"'[2]MONE(M)CAPARD'!U349","v":7.21},{"$f":"'[2]MONE(M)CAPARD'!V349","v":5.7499000000000002},{"$f":"'[2]MONE(M)CAPARD'!W349","v":6.13},null,null,{"$f":"'[2]MONE(M)CAPARD'!AS349","v":5},{"$f":"'[2]MONE(M)CAPARD'!AT349","v":"n.a."},{"$f":"'[2]MONE(M)CAPARD'!AU349","v":2.75},{"$f":"'[2]MONE(M)CAPARD'!AV349","v":5.5},{"$f":"'[2]MONE(M)CAPARD'!AW349","v":"n.a."},{"$f":"'[2]MONE(M)CAPARD'!AX349","v":5.25},{"$f":"'[2]MONE(M)CAPARD'!AY349","v":"n.a."},null,null,{"$f":"+'Datos_Regional (M)'!CF342","v":2.9923700113904772},{"$f":"+'Datos_Regional (M)'!CG342","v":5.0620712594141581},{"$f":"+'Datos_Regional (M)'!CH342","v":3.4486803286323697},{"$f":"+'Datos_Regional (M)'!CI342","v":11.384709598595254},{"$f":"+'Datos_Regional (M)'!CJ342","v":13.812784202251937},{"$f":"+'Datos_Regional (M)'!CK342","v":13.532892362416082},{"$f":"+'Datos_Regional (M)'!CL342","v":6.4633307822110631},null,null,906.38518832916668,489.87249999999995,912.00833333333321,724.05931043972384,441.86641886166666,859.95833333333337,975.34309619166686,4334.1500842972237,5309.493180488892,null,null,1353.2542708008332,904.29750000000013,1566.0249999999999,1068.712782600167,622.84646118750004,1528.6000000000001,1899.7166955833334,7043.7360145885023,8943.452710171834,null,null,-2709.5859302912763,-3633.959529682943,null,null,{"$f":"'[2]EXT Comercio(M)'!C349","v":940.82963668999992},{"$f":"'[2]EXT Comercio(M)'!D349","v":519.96000000000026},{"$f":"'[2]EXT Comercio(M)'!E349","v":943.9},{"$f":"'[2]EXT Comercio(M)'!F349","v":745.07025081439986},{"$f":"'[2]EXT Comercio(M)'!G349","v":504.94602915999997},{"$f":"'[2]EXT Comercio(M)'!H349","v":877.30000000000018},{"$f":"'[2]EXT Comercio(M)'!I349","v":1108.4048010000001},{"$f":"'[2]EXT Comercio(M)'!K349","v":4532.0059166643987},{"$f":"'[2]EXT Comercio(M)'!L349","v":5640.4107176644011},null,null,{"$f":"'[2]EXT Comercio(M)'!AG349","v":1454.9542884299999},{"$f":"'[2]EXT Comercio(M)'!AH349","v":1000.8499999999999},{"$f":"'[2]EXT Comercio(M)'!AI349","v":1657.6000000000001},{"$f":"'[2]EXT Comercio(M)'!AJ349","v":1137.7679326828199},{"$f":"'[2]EXT Comercio(M)'!AK349","v":661.74056021000001},{"$f":"'[2]EXT Comercio(M)'!AL349","v":1607.5},{"$f":"'[2]EXT Comercio(M)'!AM349","v":1919.700844},{"$f":"'[2]EXT Comercio(M)'!AO349","v":7520.4127813228224},{"$f":"'[2]EXT Comercio(M)'!AP349","v":9440.1136253228178},null,null,{"$f":"'[2]EXT Comercio(M)'!$BS349","v":-2988.4068646584174},{"$f":"'[2]EXT Comercio(M)'!$BT349","v":-3799.7029076584167}]
[null,null,"Mayo ",{"$f":"'[2]REAL IPC(M)'!AD350","v":2.0359031201269446},{"$f":"'[2]REAL IPC(M)'!AE350","v":0.82741253709866147},{"$f":"'[2]REAL IPC(M)'!AF350","v":4.0865384615384404},{"$f":"'[2]REAL IPC(M)'!AG350","v":3.9933993399340006},{"$f":"'[2]REAL IPC(M)'!AH350","v":5.2647100235690694},{"$f":"'[2]REAL IPC(M)'!AI350","v":4.4703987112363661},{"$f":"'[2]REAL IPC(M)'!AJ350","v":0.76555023923444698},null,null,{"$f":"'[2]REAL IMAE(M)'!AG350","v":4.0048235235486587},{"$f":"'[2]REAL IMAE(M)'!AH350","v":2.1175172353755403},{"$f":"'[2]REAL IMAE(M)'!AI350","v":4.4937735386637314},{"$f":"'[2]REAL IMAE(M)'!AJ350","v":3.6334907584453657},{"$f":"'[2]REAL IMAE(M)'!AK350","v":-5.1388672891716602},{"$f":"'[2]REAL IMAE(M)'!AL350","v":7.6703972467310324},{"$f":"'[2]REAL IMAE(M)'!AM350","v":2.8145020774961989},null,null,{"$f":"'[2]EXT ITCER(M)'!C350","v":78.987670416121205},{"$f":"'[2]EXT ITCER(M)'!D350","v":94.679663445002831},{"$f":"'[2]EXT ITCER(M)'!E350","v":53.530351462456302},{"$f":"'[2]EXT ITCER(M)'!F350","v":78.95369513566807},{"$f":"'[2]EXT ITCER(M)'!G350","v":105.3862757138097},{"$f":"'[2]EXT ITCER(M)'!H350","v":108.1081499381674},{"$f":"'[2]EXT ITCER(M)'!I350","v":90.596968319341471},null,null,{"$f":"'[2]EXT TC(M)'!J350","v":-1.0070217697586545},{"$f":"'[2]EXT TC(M)'!K350","v":0},{"$f":"'[2]EXT TC(M)'!L350","v":1.4389324287600729},{"$f":"'[2]EXT TC(M)'!M350","v":1.410792983677474},{"$f":"'[2]EXT TC(M)'!N350","v":5.0729682688445541},{"$f":"'[2]EXT TC(M)'!O350","v":4.1668162988531563},{"$f":"'[2]EXT TC(M)'!P350","v":0},null,null,{"$f":"'[2]EXT RIN(M)'!C350","v":8010.7},{"$f":"'[2]EXT RIN(M)'!D350","v":3532.18},{"$f":"'[2]EXT RIN(M)'!E350","v":11849.5},{"$f":"'[2]EXT RIN(M)'!F350","v":4890.554671413397},{"$f":"'[2]EXT RIN(M)'!G350","v":2868.5},{"$f":"'[2]EXT RIN(M)'!H350","v":6911.1900791018998},{"$f":"'[2]EXT RIN(M)'!I350","v":3307.9993902700003},null,null,{"$f":"'[2]EXT RIN(M)'!P350","v":71.680043227924685},{"$f":"'[2]EXT RIN(M)'!Q350","v":105.58798630176298},{"$f":"'[2]EXT RIN(M)'!R350","v":111.62097914797744},{"$f":"'[2]EXT RIN(M)'!S350","v":93.903400898586213},{"$f":"'[2]EXT RIN(M)'!T350","v":131.38920877546411},{"$f":"'[2]EXT RIN(M)'!U350","v":97.528749036899157},{"$f":"'[2]EXT RIN(M)'!V350","v":203.31132245574528},null,null,{"$f":"+'[2]MONE(M)CAPARD'!AE350","v":3.8359996434441186},{"$f":"'[2]MONE(M)CAPARD'!AF350","v":3.424254749799303},{"$f":"'[2]MONE(M)CAPARD'!AG350","v":1.0889607390300435},{"$f":"'[2]MONE(M)CAPARD'!AH350","v":4.1412250079339818},{"$f":"'[2]MONE(M)CAPARD'!AI350","v":3.8405072940444644},{"$f":"'[2]MONE(M)CAPARD'!AJ350","v":1.5021492289900171},{"$f":"'[2]MONE(M)CAPARD'!AK350","v":0.94223646723647003},null,null,{"$f":"'[2]MONE(M)CAPARD'!AL350","v":3.2165026499999998},{"$f":"'[2]MONE(M)CAPARD'!AM350","v":4.28},{"$f":"'[2]MONE(M)CAPARD'!AN350","v":3.01},{"$f":"'[2]MONE(M)CAPARD'!AO350","v":3.47},{"$f":"'[2]MONE(M)CAPARD'!AP350","v":3.88},{"$f":"'[2]MONE(M)CAPARD'!AQ350","v":1.9204000000000001},{"$f":"'[2]MONE(M)CAPARD'!AR350","v":1.7149999999999999},null,null,{"$f":"'[2]MONE(M)CAPARD'!J350","v":13.779482433805684},{"$f":"'[2]MONE(M)CAPARD'!K350","v":5.6359548657568448},{"$f":"'[2]MONE(M)CAPARD'!L350","v":8.544295612009261},{"$f":"'[2]MONE(M)CAPARD'!M350","v":13.487972072357971},{"$f":"'[2]MONE(M)CAPARD'!N350","v":9.3704160742906009},{"$f":"'[2]MONE(M)CAPARD'!O350","v":7.6717437548188547},{"$f":"'[2]MONE(M)CAPARD'!P350","v":5.3137701804368511},null,null,{"$f":"'[2]MONE(M)CAPARD'!Q350","v":10.539722330577412},{"$f":"'[2]MONE(M)CAPARD'!R350","v":6.51},{"$f":"'[2]MONE(M)CAPARD'!S350","v":6.22},{"$f":"'[2]MONE(M)CAPARD'!T350","v":8.1999999999999993},{"$f":"'[2]MONE(M)CAPARD'!U350","v":8.34},{"$f":"'[2]MONE(M)CAPARD'!V350","v":5.3033000000000001},{"$f":"'[2]MONE(M)CAPARD'!W350","v":6.12},null,null,{"$f":"'[2]MONE(M)CAPARD'!AS350","v":5},{"$f":"'[2]MONE(M)CAPARD'!AT350","v":"n.a."},{"$f":"'[2]MONE(M)CAPARD'!AU350","v":2.75},{"$f":"'[2]MONE(M)CAPARD'!AV350","v":5.5},{"$f":"'[2]MONE(M)CAPARD'!AW350","v":"n.a."},{"$f":"'[2]MONE(M)CAPARD'!AX350","v":5.25},{"$f":"'[2]MONE(M)CAPARD'!AY350","v":"n.a."},null,null,{"$f":"+'Datos_Regional (M)'!CF343","v":2.0882319324248666},{"$f":"+'Datos_Regional (M)'!CG343","v":5.2141296026069428},{"$f":"+'Datos_Regional (M)'!CH343","v":3.8430112397368932},{"$f":"+'Datos_Regional (M)'!CI343","v":11.893551018736016},{"$f":"+'Datos_Regional (M)'!CJ343","v":10.911333039210724},{"$f":"+'Datos_Regional (M)'!CK343","v":12.869139797450369},{"$f":"+'Datos_Regional (M)'!CL343","v":6.1317849013327264},null,null,911.96573274499985,490.27416666666676,910.24166666666645,720.92839601184244,442.65992481416657,862.66666666666663,955.43864960833344,4338.7365535710087,5294.175203179344,null,null,1359.4307116983334,908.95500000000004,1593.1249999999998,1083.8047955247075,622.52101400250001,1545.4750000000004,1884.6697071666665,7113.3115212255407,8997.9812283922092,null,null,-2774.5749676545315,-3703.8060252128648,null,null,{"$f":"'[2]EXT Comercio(M)'!C350","v":1064.4668064899997},{"$f":"'[2]EXT Comercio(M)'!D350","v":512.79999999999995},{"$f":"'[2]EXT Comercio(M)'!E350","v":956.8},{"$f":"'[2]EXT Comercio(M)'!F350","v":781.46687194259312},{"$f":"'[2]EXT Comercio(M)'!G350","v":469.45802566999998},{"$f":"'[2]EXT Comercio(M)'!H350","v":976.2},{"$f":"'[2]EXT Comercio(M)'!I350","v":909.77050000000008},{"$f":"'[2]EXT Comercio(M)'!K350","v":4761.1917041025918},{"$f":"'[2]EXT Comercio(M)'!L350","v":5670.9622041025905},null,null,{"$f":"'[2]EXT Comercio(M)'!AG350","v":1506.7002582199998},{"$f":"'[2]EXT Comercio(M)'!AH350","v":973.17000000000007},{"$f":"'[2]EXT Comercio(M)'!AI350","v":1881.1},{"$f":"'[2]EXT Comercio(M)'!AJ350","v":1250.381053894484},{"$f":"'[2]EXT Comercio(M)'!AK350","v":620.08982652999998},{"$f":"'[2]EXT Comercio(M)'!AL350","v":1708.9},{"$f":"'[2]EXT Comercio(M)'!AM350","v":1927.7276489999999},{"$f":"'[2]EXT Comercio(M)'!AO350","v":7940.3411386444823},{"$f":"'[2]EXT Comercio(M)'!AP350","v":9868.0687876444863},null,null,{"$f":"'[2]EXT Comercio(M)'!$BS350","v":-3179.1494345418942},{"$f":"'[2]EXT Comercio(M)'!$BT350","v":-4197.1065835418958}]
[null,null,"Junio",{"$f":"'[2]REAL IPC(M)'!AD351","v":2.1341316063528097},{"$f":"'[2]REAL IPC(M)'!AE351","v":0.89879561387740425},{"$f":"'[2]REAL IPC(M)'!AF351","v":3.7902667794264708},{"$f":"'[2]REAL IPC(M)'!AG351","v":4.1474654377880071},{"$f":"'[2]REAL IPC(M)'!AH351","v":5.6707510633995986},{"$f":"'[2]REAL IPC(M)'!AI351","v":4.6288842376428629},{"$f":"'[2]REAL IPC(M)'!AJ351","v":1.1663470757430454},null,null,{"$f":"'[2]REAL IMAE(M)'!AG351","v":4.15536621468405},{"$f":"'[2]REAL IMAE(M)'!AH351","v":1.6480183488555529},{"$f":"'[2]REAL IMAE(M)'!AI351","v":4.3713920562030886},{"$f":"'[2]REAL IMAE(M)'!AJ351","v":3.5546701120976314},{"$f":"'[2]REAL IMAE(M)'!AK351","v":-4.6216999605957039},{"$f":"'[2]REAL IMAE(M)'!AL351","v":7.7384713889175467},{"$f":"'[2]REAL IMAE(M)'!AM351","v":2.8501631996834211},null,null,{"$f":"'[2]EXT ITCER(M)'!C351","v":79.213949607837421},{"$f":"'[2]EXT ITCER(M)'!D351","v":94.638360125181322},{"$f":"'[2]EXT ITCER(M)'!E351","v":53.572845035855849},{"$f":"'[2]EXT ITCER(M)'!F351","v":79.199480576838994},{"$f":"'[2]EXT ITCER(M)'!G351","v":105.7798055818926},{"$f":"'[2]EXT ITCER(M)'!H351","v":108.00224459306671},{"$f":"'[2]EXT ITCER(M)'!I351","v":90.492553899121148},null,null,{"$f":"'[2]EXT TC(M)'!J351","v":6.6765258668008845E-3},{"$f":"'[2]EXT TC(M)'!K351","v":0},{"$f":"'[2]EXT TC(M)'!L351","v":1.9823148030586626},{"$f":"'[2]EXT TC(M)'!M351","v":2.1707918646831055},{"$f":"'[2]EXT TC(M)'!N351","v":5.2103541563372433},{"$f":"'[2]EXT TC(M)'!O351","v":4.0268796112327383},{"$f":"'[2]EXT TC(M)'!P351","v":0},null,null,{"$f":"'[2]EXT RIN(M)'!C351","v":8070.9},{"$f":"'[2]EXT RIN(M)'!D351","v":3457.39},{"$f":"'[2]EXT RIN(M)'!E351","v":11979.2},{"$f":"'[2]EXT RIN(M)'!F351","v":4884.7412109127436},{"$f":"'[2]EXT RIN(M)'!G351","v":2572.4},{"$f":"'[2]EXT RIN(M)'!H351","v":6597.9586467956469},{"$f":"'[2]EXT RIN(M)'!I351","v":2895.9110779099997},null,null,{"$f":"'[2]EXT RIN(M)'!P351","v":71.560793235375812},{"$f":"'[2]EXT RIN(M)'!Q351","v":104.44513925706404},{"$f":"'[2]EXT RIN(M)'!R351","v":111.18345185041005},{"$f":"'[2]EXT RIN(M)'!S351","v":92.358597644868311},{"$f":"'[2]EXT RIN(M)'!T351","v":117.081529820464},{"$f":"'[2]EXT RIN(M)'!U351","v":96.050877547897571},{"$f":"'[2]EXT RIN(M)'!V351","v":174.56980874737422},null,null,{"$f":"+'[2]MONE(M)CAPARD'!AE351","v":3.736134369217901},{"$f":"'[2]MONE(M)CAPARD'!AF351","v":3.4204614288259396},{"$f":"'[2]MONE(M)CAPARD'!AG351","v":1.3678866666666587},{"$f":"'[2]MONE(M)CAPARD'!AH351","v":3.862345132743374},{"$f":"'[2]MONE(M)CAPARD'!AI351","v":4.2338761273548542},{"$f":"'[2]MONE(M)CAPARD'!AJ351","v":1.8193979379857166},{"$f":"'[2]MONE(M)CAPARD'!AK351","v":0.6115204731013667},null,null,{"$f":"'[2]MONE(M)CAPARD'!AL351","v":3.2757069099999998},{"$f":"'[2]MONE(M)CAPARD'!AM351","v":4.3499999999999996},{"$f":"'[2]MONE(M)CAPARD'!AN351","v":3.07},{"$f":"'[2]MONE(M)CAPARD'!AO351","v":3.4},{"$f":"'[2]MONE(M)CAPARD'!AP351","v":4.1100000000000003},{"$f":"'[2]MONE(M)CAPARD'!AQ351","v":1.8028},{"$f":"'[2]MONE(M)CAPARD'!AR351","v":1.7849999999999999},null,null,{"$f":"'[2]MONE(M)CAPARD'!J351","v":13.659904439202084},{"$f":"'[2]MONE(M)CAPARD'!K351","v":5.4224674861927671},{"$f":"'[2]MONE(M)CAPARD'!L351","v":8.8155985185185095},{"$f":"'[2]MONE(M)CAPARD'!M351","v":13.022433628318597},{"$f":"'[2]MONE(M)CAPARD'!N351","v":9.8692160727252656},{"$f":"'[2]MONE(M)CAPARD'!O351","v":7.1497615757482791},{"$f":"'[2]MONE(M)CAPARD'!P351","v":4.9163116668957025},null,null,{"$f":"'[2]MONE(M)CAPARD'!Q351","v":10.541406350781061},{"$f":"'[2]MONE(M)CAPARD'!R351","v":6.37},{"$f":"'[2]MONE(M)CAPARD'!S351","v":6.29},{"$f":"'[2]MONE(M)CAPARD'!T351","v":8.1999999999999993},{"$f":"'[2]MONE(M)CAPARD'!U351","v":9.08},{"$f":"'[2]MONE(M)CAPARD'!V351","v":5.3677000000000001},{"$f":"'[2]MONE(M)CAPARD'!W351","v":6.14},null,null,{"$f":"'[2]MONE(M)CAPARD'!AS351","v":5},{"$f":"'[2]MONE(M)CAPARD'!AT351","v":"n.a."},{"$f":"'[2]MONE(M)CAPARD'!AU351","v":2.75},{"$f":"'[2]MONE(M)CAPARD'!AV351","v":5.5},{"$f":"'[2]MONE(M)CAPARD'!AW351","v":"n.a."},{"$f":"'[2]MONE(M)CAPARD'!AX351","v":5.25},{"$f":"'[2]MONE(M)CAPARD'!AY351","v":"n.a."},null,null,{"$f":"+'Datos_Regional (M)'!CF344","v":1.5006209498118483},{"$f":"+'Datos_Regional (M)'!CG344","v":5.602774686067713},{"$f":"+'Datos_Regional (M)'!CH344","v":3.9884091510973274},{"$f":"+'Datos_Regional (M)'!CI344","v":12.097002897858289},{"$f":"+'Datos_Regional (M)'!CJ344","v":8.7437002681588716},{"$f":"+'Datos_Regional (M)'!CK344","v":11.932454382803037},{"$f":"+'Datos_Regional (M)'!CL344","v":6.021679486258269},null,null,913.13759133416659,493.52833333333336,910.72499999999991,716.04244160758799,435.93976429249989,866.81666666666672,971.08744077500012,4336.1897972342531,5307.2772380092547,null,null,1362.4255060858334,918.98583333333329,1601.0583333333334,1090.7674748247318,606.4160056500001,1570.75,1891.228930333333,7150.403153227232,9041.6320835605657,null,null,-2814.2133559929771,-3734.3548455513105,null,null,{"$f":"'[2]EXT Comercio(M)'!C351","v":974.1573637800002},{"$f":"'[2]EXT Comercio(M)'!D351","v":532.40000000000009},{"$f":"'[2]EXT Comercio(M)'!E351","v":906.9},{"$f":"'[2]EXT Comercio(M)'!F351","v":741.54227865567498},{"$f":"'[2]EXT Comercio(M)'!G351","v":384.33847517999993},{"$f":"'[2]EXT Comercio(M)'!H351","v":916.1},{"$f":"'[2]EXT Comercio(M)'!I351","v":1097.4522610000001},{"$f":"'[2]EXT Comercio(M)'!K351","v":4455.4381176156712},{"$f":"'[2]EXT Comercio(M)'!L351","v":5552.8903786156734},null,null,{"$f":"'[2]EXT Comercio(M)'!AG351","v":1377.2109174300001},{"$f":"'[2]EXT Comercio(M)'!AH351","v":993.42000000000007},{"$f":"'[2]EXT Comercio(M)'!AI351","v":1605.2},{"$f":"'[2]EXT Comercio(M)'!AJ351","v":1152.7284785473921},{"$f":"'[2]EXT Comercio(M)'!AK351","v":438.49450408999996},{"$f":"'[2]EXT Comercio(M)'!AL351","v":1747.9999999999998},{"$f":"'[2]EXT Comercio(M)'!AM351","v":1897.578798},{"$f":"'[2]EXT Comercio(M)'!AO351","v":7315.0539000673962},{"$f":"'[2]EXT Comercio(M)'!AP351","v":9212.6326980673912},null,null,{"$f":"'[2]EXT Comercio(M)'!$BS351","v":-2859.6157824517177},{"$f":"'[2]EXT Comercio(M)'!$BT351","v":-3659.7423194517178}]
[null,null,"Julio",{"$f":"'[2]REAL IPC(M)'!AD352","v":2.084340184925372},{"$f":"'[2]REAL IPC(M)'!AE352","v":1.0607695073714551},{"$f":"'[2]REAL IPC(M)'!AF352","v":2.6052711299606117},{"$f":"'[2]REAL IPC(M)'!AG352","v":4.2336724647194073},{"$f":"'[2]REAL IPC(M)'!AH352","v":5.171925852311821},{"$f":"'[2]REAL IPC(M)'!AI352","v":4.4278367084538361},{"$f":"'[2]REAL IPC(M)'!AJ352","v":1.3046109510086528},null,null,{"$f":"'[2]REAL IMAE(M)'!AG352","v":4.0641309665222387},{"$f":"'[2]REAL IMAE(M)'!AH352","v":2.4497084590473084},{"$f":"'[2]REAL IMAE(M)'!AI352","v":4.0586102292145574},{"$f":"'[2]REAL IMAE(M)'!AJ352","v":3.5298249347181723},{"$f":"'[2]REAL IMAE(M)'!AK352","v":-4.2274441351631209},{"$f":"'[2]REAL IMAE(M)'!AL352","v":7.5637257719494171},{"$f":"'[2]REAL IMAE(M)'!AM352","v":3.3066413190993176},null,null,{"$f":"'[2]EXT ITCER(M)'!C352","v":79.013053173998145},{"$f":"'[2]EXT ITCER(M)'!D352","v":94.577457965819093},{"$f":"'[2]EXT ITCER(M)'!E352","v":53.394110975894783},{"$f":"'[2]EXT ITCER(M)'!F352","v":79.07250558357687},{"$f":"'[2]EXT ITCER(M)'!G352","v":106.4687615635963},{"$f":"'[2]EXT ITCER(M)'!H352","v":108.4736322076609},{"$f":"'[2]EXT ITCER(M)'!I352","v":90.613363932171538},null,null,{"$f":"'[2]EXT TC(M)'!J352","v":-0.84585256004833831},{"$f":"'[2]EXT TC(M)'!K352","v":0},{"$f":"'[2]EXT TC(M)'!L352","v":2.5199871467060695},{"$f":"'[2]EXT TC(M)'!M352","v":2.3520681590878554},{"$f":"'[2]EXT TC(M)'!N352","v":5.3466567098565303},{"$f":"'[2]EXT TC(M)'!O352","v":4.3199649242625568},{"$f":"'[2]EXT TC(M)'!P352","v":0},null,null,{"$f":"'[2]EXT RIN(M)'!C352","v":7900.4038},{"$f":"'[2]EXT RIN(M)'!D352","v":3752.4},{"$f":"'[2]EXT RIN(M)'!E352","v":12127.1},{"$f":"'[2]EXT RIN(M)'!F352","v":4813.8329813645632},{"$f":"'[2]EXT RIN(M)'!G352","v":2414.6},{"$f":"'[2]EXT RIN(M)'!H352","v":7391},{"$f":"'[2]EXT RIN(M)'!I352","v":2526.4067045899997},null,null,{"$f":"'[2]EXT RIN(M)'!P352","v":69.752972077510279},{"$f":"'[2]EXT RIN(M)'!Q352","v":108.84367948721297},{"$f":"'[2]EXT RIN(M)'!R352","v":110.753957818901},{"$f":"'[2]EXT RIN(M)'!S352","v":93.040202913732131},{"$f":"'[2]EXT RIN(M)'!T352","v":113.01767173018879},{"$f":"'[2]EXT RIN(M)'!U352","v":113.48047206625857},{"$f":"'[2]EXT RIN(M)'!V352","v":154.00965066020674},null,null,{"$f":"+'[2]MONE(M)CAPARD'!AE352","v":3.835710558525848},{"$f":"'[2]MONE(M)CAPARD'!AF352","v":3.215125422522676},{"$f":"'[2]MONE(M)CAPARD'!AG352","v":2.4996073221139716},{"$f":"'[2]MONE(M)CAPARD'!AH352","v":3.9683217884130859},{"$f":"'[2]MONE(M)CAPARD'!AI352","v":3.6218700790777842},{"$f":"'[2]MONE(M)CAPARD'!AJ352","v":1.7213449480569809},{"$f":"'[2]MONE(M)CAPARD'!AK352","v":0.47913816008442456},null,null,{"$f":"'[2]MONE(M)CAPARD'!AL352","v":3.4577165299999999},{"$f":"'[2]MONE(M)CAPARD'!AM352","v":4.3099999999999996},{"$f":"'[2]MONE(M)CAPARD'!AN352","v":3.08},{"$f":"'[2]MONE(M)CAPARD'!AO352","v":3.57},{"$f":"'[2]MONE(M)CAPARD'!AP352","v":4.78},{"$f":"'[2]MONE(M)CAPARD'!AQ352","v":1.7159},{"$f":"'[2]MONE(M)CAPARD'!AR352","v":1.79},null,null,{"$f":"'[2]MONE(M)CAPARD'!J352","v":13.730393836973336},{"$f":"'[2]MONE(M)CAPARD'!K352","v":5.2436078989503585},{"$f":"'[2]MONE(M)CAPARD'!L352","v":10.09180986123414},{"$f":"'[2]MONE(M)CAPARD'!M352","v":12.775456549118374},{"$f":"'[2]MONE(M)CAPARD'!N352","v":11.354695956414464},{"$f":"'[2]MONE(M)CAPARD'!O352","v":8.4928152981916494},{"$f":"'[2]MONE(M)CAPARD'!P352","v":4.7632472043399154},null,null,{"$f":"'[2]MONE(M)CAPARD'!Q352","v":10.489836757804584},{"$f":"'[2]MONE(M)CAPARD'!R352","v":6.36},{"$f":"'[2]MONE(M)CAPARD'!S352","v":6.36},{"$f":"'[2]MONE(M)CAPARD'!T352","v":8.17},{"$f":"'[2]MONE(M)CAPARD'!U352","v":9.7899999999999991},{"$f":"'[2]MONE(M)CAPARD'!V352","v":5.7885999999999997},{"$f":"'[2]MONE(M)CAPARD'!W352","v":6.13},null,null,{"$f":"'[2]MONE(M)CAPARD'!AS352","v":5},{"$f":"'[2]MONE(M)CAPARD'!AT352","v":"n.a."},{"$f":"'[2]MONE(M)CAPARD'!AU352","v":2.75},{"$f":"'[2]MONE(M)CAPARD'!AV352","v":5.5},{"$f":"'[2]MONE(M)CAPARD'!AW352","v":"n.a."},{"$f":"'[2]MONE(M)CAPARD'!AX352","v":5.5},{"$f":"'[2]MONE(M)CAPARD'!AY352","v":"n.a."},null,null,{"$f":"+'Datos_Regional (M)'!CF345","v":2.0082522639847777},{"$f":"+'Datos_Regional (M)'!CG345","v":5.6019228059110082},{"$f":"+'Datos_Regional (M)'!CH345","v":3.9036428331589157},{"$f":"+'Datos_Regional (M)'!CI345","v":12.405640614125591},{"$f":"+'Datos_Regional (M)'!CJ345","v":5.806133328415819},{"$f":"+'Datos_Regional (M)'!CK345","v":13.696699996199158},{"$f":"+'Datos_Regional (M)'!CL345","v":5.1581917390429277},null,null,918.04979195499993,490.34833333333336,910.12499999999989,712.36171482084126,439.75694323166664,876.39166666666688,979.36236702500003,4347.0334500075087,5326.3958170325086,null,null,1384.3171369483334,924.42916666666679,1612.75,1104.2572869420887,596.66842111250003,1595.9583333333333,1914.6629169999999,7218.3803450029227,9133.0432620029223,null,null,-2871.3468949954145,-3806.6474449704142,null,null,{"$f":"'[2]EXT Comercio(M)'!C352","v":924.80968746000008},{"$f":"'[2]EXT Comercio(M)'!D352","v":511.65000000000009},{"$f":"'[2]EXT Comercio(M)'!E352","v":899},{"$f":"'[2]EXT Comercio(M)'!F352","v":725.24046455849532},{"$f":"'[2]EXT Comercio(M)'!G352","v":485.13768133999997},{"$f":"'[2]EXT Comercio(M)'!H352","v":934.69999999999993},{"$f":"'[2]EXT Comercio(M)'!I352","v":1026.7103959999999},{"$f":"'[2]EXT Comercio(M)'!K352","v":4480.5378333585031},{"$f":"'[2]EXT Comercio(M)'!L352","v":5507.2482293584981},null,null,{"$f":"'[2]EXT Comercio(M)'!AG352","v":1430.7564043100003},{"$f":"'[2]EXT Comercio(M)'!AH352","v":945.60000000000127},{"$f":"'[2]EXT Comercio(M)'!AI352","v":1658.3000000000002},{"$f":"'[2]EXT Comercio(M)'!AJ352","v":1167.7494771682852},{"$f":"'[2]EXT Comercio(M)'!AK352","v":486.04123826},{"$f":"'[2]EXT Comercio(M)'!AL352","v":1770.1000000000004},{"$f":"'[2]EXT Comercio(M)'!AM352","v":2118.6063669999999},{"$f":"'[2]EXT Comercio(M)'!AO352","v":7458.5471197382794},{"$f":"'[2]EXT Comercio(M)'!AP352","v":9577.1534867382798},null,null,{"$f":"'[2]EXT Comercio(M)'!$BS352","v":-2978.0092863797909},{"$f":"'[2]EXT Comercio(M)'!$BT352","v":-4069.905257379789}]
[null,null,"Agosto",{"$f":"'[2]REAL IPC(M)'!AD353","v":2.2403361755443707},{"$f":"'[2]REAL IPC(M)'!AE353","v":1.4491449144914488},{"$f":"'[2]REAL IPC(M)'!AF353","v":3.3649829092290124},{"$f":"'[2]REAL IPC(M)'!AG353","v":4.3506705920837465},{"$f":"'[2]REAL IPC(M)'!AH353","v":4.9511530243974669},{"$f":"'[2]REAL IPC(M)'!AI353","v":3.8673591689971794},{"$f":"'[2]REAL IPC(M)'!AJ353","v":1.0795019157088077},null,null,{"$f":"'[2]REAL IMAE(M)'!AG353","v":3.7086599795777309},{"$f":"'[2]REAL IMAE(M)'!AH353","v":2.8011657277370987},{"$f":"'[2]REAL IMAE(M)'!AI353","v":3.7621384323941367},{"$f":"'[2]REAL IMAE(M)'!AJ353","v":3.5700290387868532},{"$f":"'[2]REAL IMAE(M)'!AK353","v":-4.1165865139604998},{"$f":"'[2]REAL IMAE(M)'!AL353","v":7.1499625015347341},{"$f":"'[2]REAL IMAE(M)'!AM353","v":3.7639396691674909},null,null,{"$f":"'[2]EXT ITCER(M)'!C353","v":79.314929334135684},{"$f":"'[2]EXT ITCER(M)'!D353","v":94.502717859885138},{"$f":"'[2]EXT ITCER(M)'!E353","v":53.434166890532452},{"$f":"'[2]EXT ITCER(M)'!F353","v":78.903845733692449},{"$f":"'[2]EXT ITCER(M)'!G353","v":107.31583836870131},{"$f":"'[2]EXT ITCER(M)'!H353","v":108.97035827107111},{"$f":"'[2]EXT ITCER(M)'!I353","v":90.716050650811042},null,null,{"$f":"'[2]EXT TC(M)'!J353","v":-1.2460219089082725},{"$f":"'[2]EXT TC(M)'!K353","v":0},{"$f":"'[2]EXT TC(M)'!L353","v":3.227180024253113},{"$f":"'[2]EXT TC(M)'!M353","v":2.6753676542399076},{"$f":"'[2]EXT TC(M)'!N353","v":5.3343196973648572},{"$f":"'[2]EXT TC(M)'!O353","v":4.562228288342947},{"$f":"'[2]EXT TC(M)'!P353","v":0},null,null,{"$f":"'[2]EXT RIN(M)'!C353","v":7799.9912000000004},{"$f":"'[2]EXT RIN(M)'!D353","v":3655.86},{"$f":"'[2]EXT RIN(M)'!E353","v":12535.8},{"$f":"'[2]EXT RIN(M)'!F353","v":4726.7085381577817},{"$f":"'[2]EXT RIN(M)'!G353","v":2315},{"$f":"'[2]EXT RIN(M)'!H353","v":7430.6821161792477},{"$f":"'[2]EXT RIN(M)'!I353","v":2787.9804913400003},null,null,{"$f":"'[2]EXT RIN(M)'!P353","v":68.527826125852599},{"$f":"'[2]EXT RIN(M)'!Q353","v":109.7611942090947},{"$f":"'[2]EXT RIN(M)'!R353","v":116.00322403676908},{"$f":"'[2]EXT RIN(M)'!S353","v":92.320547936525514},{"$f":"'[2]EXT RIN(M)'!T353","v":111.52177924691181},{"$f":"'[2]EXT RIN(M)'!U353","v":108.89523874930094},{"$f":"'[2]EXT RIN(M)'!V353","v":170.04835559024571},null,null,{"$f":"+'[2]MONE(M)CAPARD'!AE353","v":3.6283760042476967},{"$f":"'[2]MONE(M)CAPARD'!AF353","v":2.8397036642711391},{"$f":"'[2]MONE(M)CAPARD'!AG353","v":1.7269069664903038},{"$f":"'[2]MONE(M)CAPARD'!AH353","v":3.7463385579937261},{"$f":"'[2]MONE(M)CAPARD'!AI353","v":5.493746608160075},{"$f":"'[2]MONE(M)CAPARD'!AJ353","v":2.4615440803138942},{"$f":"'[2]MONE(M)CAPARD'!AK353","v":0.71280335838221964},null,null,{"$f":"'[2]MONE(M)CAPARD'!AL353","v":3.5732170399999998},{"$f":"'[2]MONE(M)CAPARD'!AM353","v":4.33},{"$f":"'[2]MONE(M)CAPARD'!AN353","v":3.07},{"$f":"'[2]MONE(M)CAPARD'!AO353","v":3.57},{"$f":"'[2]MONE(M)CAPARD'!AP353","v":4.8499999999999996},{"$f":"'[2]MONE(M)CAPARD'!AQ353","v":2.0482999999999998},{"$f":"'[2]MONE(M)CAPARD'!AR353","v":1.8},null,null,{"$f":"'[2]MONE(M)CAPARD'!J353","v":13.571387311747221},{"$f":"'[2]MONE(M)CAPARD'!K353","v":5.0871351255434307},{"$f":"'[2]MONE(M)CAPARD'!L353","v":9.2439594356261061},{"$f":"'[2]MONE(M)CAPARD'!M353","v":12.639429467084636},{"$f":"'[2]MONE(M)CAPARD'!N353","v":10.572220186671069},{"$f":"'[2]MONE(M)CAPARD'!O353","v":8.2099332256327653},{"$f":"'[2]MONE(M)CAPARD'!P353","v":5.4417542429899504},null,null,{"$f":"'[2]MONE(M)CAPARD'!Q353","v":10.49066799339545},{"$f":"'[2]MONE(M)CAPARD'!R353","v":6.61},{"$f":"'[2]MONE(M)CAPARD'!S353","v":6.37},{"$f":"'[2]MONE(M)CAPARD'!T353","v":8.17},{"$f":"'[2]MONE(M)CAPARD'!U353","v":9.89},{"$f":"'[2]MONE(M)CAPARD'!V353","v":5.4657},{"$f":"'[2]MONE(M)CAPARD'!W353","v":6.58},null,null,{"$f":"'[2]MONE(M)CAPARD'!AS353","v":5},{"$f":"'[2]MONE(M)CAPARD'!AT353","v":"n.a."},{"$f":"'[2]MONE(M)CAPARD'!AU353","v":2.75},{"$f":"'[2]MONE(M)CAPARD'!AV353","v":5.5},{"$f":"'[2]MONE(M)CAPARD'!AW353","v":"n.a."},{"$f":"'[2]MONE(M)CAPARD'!AX353","v":5.5},{"$f":"'[2]MONE(M)CAPARD'!AY353","v":"n.a."},null,null,{"$f":"+'Datos_Regional (M)'!CF346","v":1.9863477023189136},{"$f":"+'Datos_Regional (M)'!CG346","v":6.4604132689425109},{"$f":"+'Datos_Regional (M)'!CH346","v":4.2231822997498947},{"$f":"+'Datos_Regional (M)'!CI346","v":13.391168640317863},{"$f":"+'Datos_Regional (M)'!CJ346","v":3.2725355370075482},{"$f":"+'Datos_Regional (M)'!CK346","v":13.364072240070124},{"$f":"+'Datos_Regional (M)'!CL346","v":5.1667387600109915},null,null,925.18570166000006,491.66833333333335,913.89166666666654,714.38433548569822,444.75968046083335,877.94999999999993,992.64215377500022,4367.8397176065309,5360.4818713815321,null,null,1387.9036162675002,930.7791666666667,1625.3916666666667,1111.2890175983114,589.1776189725,1613.4750000000001,1928.1255158333333,7258.0160861716458,9186.1416020049783,null,null,-2890.1763685651131,-3825.6597306234457,null,null,{"$f":"'[2]EXT Comercio(M)'!C353","v":947.65564449999965},{"$f":"'[2]EXT Comercio(M)'!D353","v":494.58999999999969},{"$f":"'[2]EXT Comercio(M)'!E353","v":935.6},{"$f":"'[2]EXT Comercio(M)'!F353","v":742.150413636135},{"$f":"'[2]EXT Comercio(M)'!G353","v":493.28592459000004},{"$f":"'[2]EXT Comercio(M)'!H353","v":892.8},{"$f":"'[2]EXT Comercio(M)'!I353","v":1025.2977719999999},{"$f":"'[2]EXT Comercio(M)'!K353","v":4506.0819827261294},{"$f":"'[2]EXT Comercio(M)'!L353","v":5531.3797547261347},null,null,{"$f":"'[2]EXT Comercio(M)'!AG353","v":1410.9835881999991},{"$f":"'[2]EXT Comercio(M)'!AH353","v":1012.7399999999998},{"$f":"'[2]EXT Comercio(M)'!AI353","v":1751.8},{"$f":"'[2]EXT Comercio(M)'!AJ353","v":1240.9331691187799},{"$f":"'[2]EXT Comercio(M)'!AK353","v":550.31728206000003},{"$f":"'[2]EXT Comercio(M)'!AL353","v":1797.2000000000003},{"$f":"'[2]EXT Comercio(M)'!AM353","v":2025.535644},{"$f":"'[2]EXT Comercio(M)'!AO353","v":7763.9740393787797},{"$f":"'[2]EXT Comercio(M)'!AP353","v":9789.5096833787757},null,null,{"$f":"'[2]EXT Comercio(M)'!$BS353","v":-3257.8920566526431},{"$f":"'[2]EXT Comercio(M)'!$BT353","v":-4258.129928652641}]
[null,null,"Setiembre",{"$f":"'[2]REAL IPC(M)'!AD354","v":2.211752846119865},{"$f":"'[2]REAL IPC(M)'!AE354","v":1.3846430498111908},{"$f":"'[2]REAL IPC(M)'!AF354","v":4.552050714122033},{"$f":"'[2]REAL IPC(M)'!AG354","v":4.3833824010467888},{"$f":"'[2]REAL IPC(M)'!AH354","v":5.1374086584802514},{"$f":"'[2]REAL IPC(M)'!AI354","v":3.2870186581976699},{"$f":"'[2]REAL IPC(M)'!AJ354","v":0.75377268385863794},null,null,{"$f":"'[2]REAL IMAE(M)'!AG354","v":3.0098266938134191},{"$f":"'[2]REAL IMAE(M)'!AH354","v":2.1297016916181368},{"$f":"'[2]REAL IMAE(M)'!AI354","v":3.5126314308512265},{"$f":"'[2]REAL IMAE(M)'!AJ354","v":3.6451517999191911},{"$f":"'[2]REAL IMAE(M)'!AK354","v":-4.3463327721874903},{"$f":"'[2]REAL IMAE(M)'!AL354","v":6.5730245808607064},{"$f":"'[2]REAL IMAE(M)'!AM354","v":3.8762143695178297},null,null,{"$f":"'[2]EXT ITCER(M)'!C354","v":80.878161697478561},{"$f":"'[2]EXT ITCER(M)'!D354","v":94.655618304827911},{"$f":"'[2]EXT ITCER(M)'!E354","v":54.342534055083938},{"$f":"'[2]EXT ITCER(M)'!F354","v":79.179066817621063},{"$f":"'[2]EXT ITCER(M)'!G354","v":107.4836301586824},{"$f":"'[2]EXT ITCER(M)'!H354","v":109.3461059131896},{"$f":"'[2]EXT ITCER(M)'!I354","v":90.935706069061808},null,null,{"$f":"'[2]EXT TC(M)'!J354","v":0.50379474959777826},{"$f":"'[2]EXT TC(M)'!K354","v":0},{"$f":"'[2]EXT TC(M)'!L354","v":4.9582659724261777},{"$f":"'[2]EXT TC(M)'!M354","v":2.8072895227810735},{"$f":"'[2]EXT TC(M)'!N354","v":5.2939982085484658},{"$f":"'[2]EXT TC(M)'!O354","v":4.4683317304259749},{"$f":"'[2]EXT TC(M)'!P354","v":0},null,null,{"$f":"'[2]EXT RIN(M)'!C354","v":7468.7727000000004},{"$f":"'[2]EXT RIN(M)'!D354","v":3558.55},{"$f":"'[2]EXT RIN(M)'!E354","v":12309.2},{"$f":"'[2]EXT RIN(M)'!F354","v":4629.7832003720378},{"$f":"'[2]EXT RIN(M)'!G354","v":2122.6},{"$f":"'[2]EXT RIN(M)'!H354","v":7328.6},{"$f":"'[2]EXT RIN(M)'!I354","v":2200.1805097499996},null,null,{"$f":"'[2]EXT RIN(M)'!P354","v":67.422867663872623},{"$f":"'[2]EXT RIN(M)'!Q354","v":108.30103521370017},{"$f":"'[2]EXT RIN(M)'!R354","v":118.99380288220995},{"$f":"'[2]EXT RIN(M)'!S354","v":91.972290959503624},{"$f":"'[2]EXT RIN(M)'!T354","v":111.29132510121791},{"$f":"'[2]EXT RIN(M)'!U354","v":106.60068076099671},{"$f":"'[2]EXT RIN(M)'!V354","v":133.04346936665473},null,null,{"$f":"+'[2]MONE(M)CAPARD'!AE354","v":3.6084374361848615},{"$f":"'[2]MONE(M)CAPARD'!AF354","v":3.0432192266761202},{"$f":"'[2]MONE(M)CAPARD'!AG354","v":0.55278617868363078},{"$f":"'[2]MONE(M)CAPARD'!AH354","v":3.7904669382638563},{"$f":"'[2]MONE(M)CAPARD'!AI354","v":5.5669955421510142},{"$f":"'[2]MONE(M)CAPARD'!AJ354","v":4.3811714197863303},{"$f":"'[2]MONE(M)CAPARD'!AK354","v":1.1277268194279662},null,null,{"$f":"'[2]MONE(M)CAPARD'!AL354","v":3.6225425200000001},{"$f":"'[2]MONE(M)CAPARD'!AM354","v":4.47},{"$f":"'[2]MONE(M)CAPARD'!AN354","v":3.13},{"$f":"'[2]MONE(M)CAPARD'!AO354","v":3.59},{"$f":"'[2]MONE(M)CAPARD'!AP354","v":5.27},{"$f":"'[2]MONE(M)CAPARD'!AQ354","v":2.1789875477662557},{"$f":"'[2]MONE(M)CAPARD'!AR354","v":1.89},null,null,{"$f":"'[2]MONE(M)CAPARD'!J354","v":13.266695232171843},{"$f":"'[2]MONE(M)CAPARD'!K354","v":4.9863142958495867},{"$f":"'[2]MONE(M)CAPARD'!L354","v":7.9557973555409607},{"$f":"'[2]MONE(M)CAPARD'!M354","v":12.699931056095258},{"$f":"'[2]MONE(M)CAPARD'!N354","v":12.226899918920809},{"$f":"'[2]MONE(M)CAPARD'!O354","v":9.7170107917938537},{"$f":"'[2]MONE(M)CAPARD'!P354","v":5.8024897335461887},null,null,{"$f":"'[2]MONE(M)CAPARD'!Q354","v":10.523450251057346},{"$f":"'[2]MONE(M)CAPARD'!R354","v":6.44},{"$f":"'[2]MONE(M)CAPARD'!S354","v":6.36},{"$f":"'[2]MONE(M)CAPARD'!T354","v":8.17},{"$f":"'[2]MONE(M)CAPARD'!U354","v":10.52},{"$f":"'[2]MONE(M)CAPARD'!V354","v":5.8731681699515201},{"$f":"'[2]MONE(M)CAPARD'!W354","v":6.6},null,null,{"$f":"'[2]MONE(M)CAPARD'!AS354","v":5},{"$f":"'[2]MONE(M)CAPARD'!AT354","v":"n.a."},{"$f":"'[2]MONE(M)CAPARD'!AU354","v":2.75},{"$f":"'[2]MONE(M)CAPARD'!AV354","v":5.5},{"$f":"'[2]MONE(M)CAPARD'!AW354","v":"n.a."},{"$f":"'[2]MONE(M)CAPARD'!AX354","v":5.5},{"$f":"'[2]MONE(M)CAPARD'!AY354","v":"n.a."},null,null,{"$f":"+'Datos_Regional (M)'!CF347","v":3.6776062933818965},{"$f":"+'Datos_Regional (M)'!CG347","v":6.7179967915566907},{"$f":"+'Datos_Regional (M)'!CH347","v":4.970978007023108},{"$f":"+'Datos_Regional (M)'!CI347","v":13.363940856201584},{"$f":"+'Datos_Regional (M)'!CJ347","v":4.9589351650070057E-2},{"$f":"+'Datos_Regional (M)'!CK347","v":13.201750113251954},{"$f":"+'Datos_Regional (M)'!CL347","v":5.0925835021585542},null,null,924.88908784916691,490.88499999999999,913.89166666666677,714.36666942087879,445.66717773000005,887.9666666666667,999.91716777500017,4377.6662683333789,5377.5834361083789,null,null,1371.6666375741668,946.64583333333337,1634.9499999999998,1111.4040989646167,582.76776970666674,1638.3500000000001,1929.6463110000002,7285.784339578785,9215.4306505787845,null,null,-2908.1180712454043,-3837.8472144704047,null,null,{"$f":"'[2]EXT Comercio(M)'!C354","v":883.89527804999989},{"$f":"'[2]EXT Comercio(M)'!D354","v":464.03999999999996},{"$f":"'[2]EXT Comercio(M)'!E354","v":837.1},{"$f":"'[2]EXT Comercio(M)'!F354","v":671.55192363276944},{"$f":"'[2]EXT Comercio(M)'!G354","v":409.52109643999995},{"$f":"'[2]EXT Comercio(M)'!H354","v":901.1},{"$f":"'[2]EXT Comercio(M)'!I354","v":901.90767500000004},{"$f":"'[2]EXT Comercio(M)'!K354","v":4167.2082981227722},{"$f":"'[2]EXT Comercio(M)'!L354","v":5069.1159731227672},null,null,{"$f":"'[2]EXT Comercio(M)'!AG354","v":1125.2554356000012},{"$f":"'[2]EXT Comercio(M)'!AH354","v":1017.1799999999994},{"$f":"'[2]EXT Comercio(M)'!AI354","v":1579.1},{"$f":"'[2]EXT Comercio(M)'!AJ354","v":1131.1126384088675},{"$f":"'[2]EXT Comercio(M)'!AK354","v":483.91135459000003},{"$f":"'[2]EXT Comercio(M)'!AL354","v":1620.3999999999999},{"$f":"'[2]EXT Comercio(M)'!AM354","v":1767.983827},{"$f":"'[2]EXT Comercio(M)'!AO354","v":6956.9594285988715},{"$f":"'[2]EXT Comercio(M)'!AP354","v":8724.9432555988751},null,null,{"$f":"'[2]EXT Comercio(M)'!$BS354","v":-2789.7511304760992},{"$f":"'[2]EXT Comercio(M)'!$BT354","v":-3655.8272824761007}]
[null,null,"Octubre",{"$f":"'[2]REAL IPC(M)'!AD355","v":2.0269004078892925},{"$f":"'[2]REAL IPC(M)'!AE355","v":1.4906609195402269},{"$f":"'[2]REAL IPC(M)'!AF355","v":4.337587359465223},{"$f":"'[2]REAL IPC(M)'!AG355","v":4.6640574037834153},{"$f":"'[2]REAL IPC(M)'!AH355","v":5.1042985286963898},{"$f":"'[2]REAL IPC(M)'!AI355","v":3.5172687574433867},{"$f":"'[2]REAL IPC(M)'!AJ355","v":1.0280382775119559},null,null,{"$f":"'[2]REAL IMAE(M)'!AG355","v":2.206542754053157},{"$f":"'[2]REAL IMAE(M)'!AH355","v":1.7625040173759072},{"$f":"'[2]REAL IMAE(M)'!AI355","v":3.3441654187521692},{"$f":"'[2]REAL IMAE(M)'!AJ355","v":3.7135973149825245},{"$f":"'[2]REAL IMAE(M)'!AK355","v":-5.0252222988904789},{"$f":"'[2]REAL IMAE(M)'!AL355","v":6.0512597302336397},{"$f":"'[2]REAL IMAE(M)'!AM355","v":3.53632526899717},null,null,{"$f":"'[2]EXT ITCER(M)'!C355","v":82.603381866331034},{"$f":"'[2]EXT ITCER(M)'!D355","v":94.658810111283387},{"$f":"'[2]EXT ITCER(M)'!E355","v":54.718825288219428},{"$f":"'[2]EXT ITCER(M)'!F355","v":79.033203670446014},{"$f":"'[2]EXT ITCER(M)'!G355","v":107.6688664190784},{"$f":"'[2]EXT ITCER(M)'!H355","v":109.686552019077},{"$f":"'[2]EXT ITCER(M)'!I355","v":91.074985642604986},null,null,{"$f":"'[2]EXT TC(M)'!J355","v":3.6154868527235227},{"$f":"'[2]EXT TC(M)'!K355","v":0},{"$f":"'[2]EXT TC(M)'!L355","v":5.2514373799338889},{"$f":"'[2]EXT TC(M)'!M355","v":2.5904520239291897},{"$f":"'[2]EXT TC(M)'!N355","v":5.5070726579191795},{"$f":"'[2]EXT TC(M)'!O355","v":4.5344467116096014},{"$f":"'[2]EXT TC(M)'!P355","v":0},null,null,{"$f":"'[2]EXT RIN(M)'!C355","v":6866.1754000000001},{"$f":"'[2]EXT RIN(M)'!D355","v":3499.76},{"$f":"'[2]EXT RIN(M)'!E355","v":12357.4},{"$f":"'[2]EXT RIN(M)'!F355","v":4612.6674062992843},{"$f":"'[2]EXT RIN(M)'!G355","v":2032.9},{"$f":"'[2]EXT RIN(M)'!H355","v":6984.5},{"$f":"'[2]EXT RIN(M)'!I355","v":2374.0483965200001},null,null,{"$f":"'[2]EXT RIN(M)'!P355","v":63.768238947704567},{"$f":"'[2]EXT RIN(M)'!Q355","v":103.87007870627178},{"$f":"'[2]EXT RIN(M)'!R355","v":120.78836757538858},{"$f":"'[2]EXT RIN(M)'!S355","v":93.8512414524278},{"$f":"'[2]EXT RIN(M)'!T355","v":109.61898653263074},{"$f":"'[2]EXT RIN(M)'!U355","v":102.19483109125488},{"$f":"'[2]EXT RIN(M)'!V355","v":143.82099059361624},null,null,{"$f":"+'[2]MONE(M)CAPARD'!AE355","v":3.6981419380833707},{"$f":"'[2]MONE(M)CAPARD'!AF355","v":2.708957706600605},{"$f":"'[2]MONE(M)CAPARD'!AG355","v":0.74030141973060115},{"$f":"'[2]MONE(M)CAPARD'!AH355","v":3.5216889996883918},{"$f":"'[2]MONE(M)CAPARD'!AI355","v":6.2355551170822006},{"$f":"'[2]MONE(M)CAPARD'!AJ355","v":4.565258820371267},{"$f":"'[2]MONE(M)CAPARD'!AK355","v":0.91258005025844924},null,null,{"$f":"'[2]MONE(M)CAPARD'!AL355","v":3.6663670599999998},{"$f":"'[2]MONE(M)CAPARD'!AM355","v":4.24},{"$f":"'[2]MONE(M)CAPARD'!AN355","v":3.14},{"$f":"'[2]MONE(M)CAPARD'!AO355","v":3.64},{"$f":"'[2]MONE(M)CAPARD'!AP355","v":5.0599999999999996},{"$f":"'[2]MONE(M)CAPARD'!AQ355","v":1.7476},{"$f":"'[2]MONE(M)CAPARD'!AR355","v":1.95},null,null,{"$f":"'[2]MONE(M)CAPARD'!J355","v":13.400819765336456},{"$f":"'[2]MONE(M)CAPARD'!K355","v":4.6894354981419246},{"$f":"'[2]MONE(M)CAPARD'!L355","v":8.1585293046960157},{"$f":"'[2]MONE(M)CAPARD'!M355","v":12.407260828918682},{"$f":"'[2]MONE(M)CAPARD'!N355","v":12.529582619530535},{"$f":"'[2]MONE(M)CAPARD'!O355","v":9.8943213683080682},{"$f":"'[2]MONE(M)CAPARD'!P355","v":5.4261785301915388},null,null,{"$f":"'[2]MONE(M)CAPARD'!Q355","v":10.660239715476584},{"$f":"'[2]MONE(M)CAPARD'!R355","v":6.25},{"$f":"'[2]MONE(M)CAPARD'!S355","v":6.39},{"$f":"'[2]MONE(M)CAPARD'!T355","v":8.24},{"$f":"'[2]MONE(M)CAPARD'!U355","v":10.87},{"$f":"'[2]MONE(M)CAPARD'!V355","v":5.9096000000000002},{"$f":"'[2]MONE(M)CAPARD'!W355","v":6.51},null,null,{"$f":"'[2]MONE(M)CAPARD'!AS355","v":5},{"$f":"'[2]MONE(M)CAPARD'!AT355","v":"n.a."},{"$f":"'[2]MONE(M)CAPARD'!AU355","v":2.75},{"$f":"'[2]MONE(M)CAPARD'!AV355","v":5.5},{"$f":"'[2]MONE(M)CAPARD'!AW355","v":"n.a."},{"$f":"'[2]MONE(M)CAPARD'!AX355","v":5.5},{"$f":"'[2]MONE(M)CAPARD'!AY355","v":"n.a."},null,null,{"$f":"+'Datos_Regional (M)'!CF348","v":5.1187927023158775},{"$f":"+'Datos_Regional (M)'!CG348","v":6.7592091028168877},{"$f":"+'Datos_Regional (M)'!CH348","v":5.1742681505719368},{"$f":"+'Datos_Regional (M)'!CI348","v":13.691653788247526},{"$f":"+'Datos_Regional (M)'!CJ348","v":-3.2672906060357221},{"$f":"+'Datos_Regional (M)'!CK348","v":11.398195575390812},{"$f":"+'Datos_Regional (M)'!CL348","v":4.4595692859063396},null,null,933.73983009499989,492.64416666666665,914.44166666666661,717.00997049806767,448.24492954333328,885.54166666666663,994.97627152500024,4391.6222301364005,5386.5985016614022,null,null,1387.6148297683333,955.25166666666667,1647.6416666666664,1117.1301314221125,572.08594228333334,1659.625,1941.3903399999999,7339.3492368071129,9280.7395768071128,null,null,-2947.7270066707115,-3894.1410751457111,null,null,{"$f":"'[2]EXT Comercio(M)'!C355","v":999.49709573000018},{"$f":"'[2]EXT Comercio(M)'!D355","v":490.61999999999989},{"$f":"'[2]EXT Comercio(M)'!E355","v":858.30000000000007},{"$f":"'[2]EXT Comercio(M)'!F355","v":641.12442574724696},{"$f":"'[2]EXT Comercio(M)'!G355","v":442.04655895000008},{"$f":"'[2]EXT Comercio(M)'!H355","v":888.59999999999991},{"$f":"'[2]EXT Comercio(M)'!I355","v":986.24410399999999},{"$f":"'[2]EXT Comercio(M)'!K355","v":4320.1880804272441},{"$f":"'[2]EXT Comercio(M)'!L355","v":5306.4321844272417},null,null,{"$f":"'[2]EXT Comercio(M)'!AG355","v":1567.5877902399998},{"$f":"'[2]EXT Comercio(M)'!AH355","v":1052.0600000000013},{"$f":"'[2]EXT Comercio(M)'!AI355","v":1846.1000000000001},{"$f":"'[2]EXT Comercio(M)'!AJ355","v":1137.4005072299494},{"$f":"'[2]EXT Comercio(M)'!AK355","v":561.9148457},{"$f":"'[2]EXT Comercio(M)'!AL355","v":1926.8999999999996},{"$f":"'[2]EXT Comercio(M)'!AM355","v":2171.8809630000001},{"$f":"'[2]EXT Comercio(M)'!AO355","v":8091.9631431699527},{"$f":"'[2]EXT Comercio(M)'!AP355","v":10263.844106169956},null,null,{"$f":"'[2]EXT Comercio(M)'!$BS355","v":-3771.7750627427013},{"$f":"'[2]EXT Comercio(M)'!$BT355","v":-4957.4119217426996}]
[null,null,"Noviembre",{"$f":"'[2]REAL IPC(M)'!AD356","v":2.2924130467923365},{"$f":"'[2]REAL IPC(M)'!AE356","v":1.0750761512273685},{"$f":"'[2]REAL IPC(M)'!AF356","v":3.1483015741507776},{"$f":"'[2]REAL IPC(M)'!AG356","v":4.7062641999350854},{"$f":"'[2]REAL IPC(M)'!AH356","v":4.3957333820349653},{"$f":"'[2]REAL IPC(M)'!AI356","v":2.3717595146166177},{"$f":"'[2]REAL IPC(M)'!AJ356","v":0.77996164908917043},null,null,{"$f":"'[2]REAL IMAE(M)'!AG356","v":1.6079283055044875},{"$f":"'[2]REAL IMAE(M)'!AH356","v":1.6979457818082502},{"$f":"'[2]REAL IMAE(M)'!AI356","v":3.2924269017328269},{"$f":"'[2]REAL IMAE(M)'!AJ356","v":3.7652878607470686},{"$f":"'[2]REAL IMAE(M)'!AK356","v":-6.0293494954625579},{"$f":"'[2]REAL IMAE(M)'!AL356","v":5.6636748533428003},{"$f":"'[2]REAL IMAE(M)'!AM356","v":2.7238766276824475},null,null,{"$f":"'[2]EXT ITCER(M)'!C356","v":84.815464822376939},{"$f":"'[2]EXT ITCER(M)'!D356","v":94.75983899214819},{"$f":"'[2]EXT ITCER(M)'!E356","v":54.631702685023043},{"$f":"'[2]EXT ITCER(M)'!F356","v":79.045524051020763},{"$f":"'[2]EXT ITCER(M)'!G356","v":107.7317857061325},{"$f":"'[2]EXT ITCER(M)'!H356","v":110.3665197283905},{"$f":"'[2]EXT ITCER(M)'!I356","v":91.409827721197402},null,null,{"$f":"'[2]EXT TC(M)'!J356","v":7.5695901850684155},{"$f":"'[2]EXT TC(M)'!K356","v":0},{"$f":"'[2]EXT TC(M)'!L356","v":5.0264637098428642},{"$f":"'[2]EXT TC(M)'!M356","v":2.7755427565705055},{"$f":"'[2]EXT TC(M)'!N356","v":5.9591319268513052},{"$f":"'[2]EXT TC(M)'!O356","v":4.5750239556347712},{"$f":"'[2]EXT TC(M)'!P356","v":0},null,null,{"$f":"'[2]EXT RIN(M)'!C356","v":6537.8323},{"$f":"'[2]EXT RIN(M)'!D356","v":3503.95},{"$f":"'[2]EXT RIN(M)'!E356","v":12472.4},{"$f":"'[2]EXT RIN(M)'!F356","v":4462.9558556984221},{"$f":"'[2]EXT RIN(M)'!G356","v":2026.7},{"$f":"'[2]EXT RIN(M)'!H356","v":6687.3247431731197},{"$f":"'[2]EXT RIN(M)'!I356","v":2579.2710548099999},null,null,{"$f":"'[2]EXT RIN(M)'!P356","v":58.564255756974227},{"$f":"'[2]EXT RIN(M)'!Q356","v":102.34984458900722},{"$f":"'[2]EXT RIN(M)'!R356","v":121.24234876853002},{"$f":"'[2]EXT RIN(M)'!S356","v":93.11723943275318},{"$f":"'[2]EXT RIN(M)'!T356","v":105.31579113571074},{"$f":"'[2]EXT RIN(M)'!U356","v":96.365383402432116},{"$f":"'[2]EXT RIN(M)'!V356","v":150.17160703671473},null,null,{"$f":"+'[2]MONE(M)CAPARD'!AE356","v":3.4778600359933747},{"$f":"'[2]MONE(M)CAPARD'!AF356","v":3.2697713171423608},{"$f":"'[2]MONE(M)CAPARD'!AG356","v":1.8824337349397682},{"$f":"'[2]MONE(M)CAPARD'!AH356","v":3.479959702417855},{"$f":"'[2]MONE(M)CAPARD'!AI356","v":6.8261917801732386},{"$f":"'[2]MONE(M)CAPARD'!AJ356","v":5.6173113685345237},{"$f":"'[2]MONE(M)CAPARD'!AK356","v":1.1709057352290571},null,null,{"$f":"'[2]MONE(M)CAPARD'!AL356","v":3.5975362099999999},{"$f":"'[2]MONE(M)CAPARD'!AM356","v":4.38},{"$f":"'[2]MONE(M)CAPARD'!AN356","v":3.15},{"$f":"'[2]MONE(M)CAPARD'!AO356","v":3.64},{"$f":"'[2]MONE(M)CAPARD'!AP356","v":5.58},{"$f":"'[2]MONE(M)CAPARD'!AQ356","v":1.9041999999999999},{"$f":"'[2]MONE(M)CAPARD'!AR356","v":1.96},null,null,{"$f":"'[2]MONE(M)CAPARD'!J356","v":13.241182043357032},{"$f":"'[2]MONE(M)CAPARD'!K356","v":5.4463712107782412},{"$f":"'[2]MONE(M)CAPARD'!L356","v":9.3668032128514174},{"$f":"'[2]MONE(M)CAPARD'!M356","v":12.352399256044638},{"$f":"'[2]MONE(M)CAPARD'!N356","v":13.778775283205887},{"$f":"'[2]MONE(M)CAPARD'!O356","v":9.7198099676724574},{"$f":"'[2]MONE(M)CAPARD'!P356","v":5.7253825626584547},null,null,{"$f":"'[2]MONE(M)CAPARD'!Q356","v":10.732079455605849},{"$f":"'[2]MONE(M)CAPARD'!R356","v":6.58},{"$f":"'[2]MONE(M)CAPARD'!S356","v":6.42},{"$f":"'[2]MONE(M)CAPARD'!T356","v":8.2799999999999994},{"$f":"'[2]MONE(M)CAPARD'!U356","v":11.02},{"$f":"'[2]MONE(M)CAPARD'!V356","v":5.9271000000000003},{"$f":"'[2]MONE(M)CAPARD'!W356","v":6.55},null,null,{"$f":"'[2]MONE(M)CAPARD'!AS356","v":5.25},{"$f":"'[2]MONE(M)CAPARD'!AT356","v":"n.a."},{"$f":"'[2]MONE(M)CAPARD'!AU356","v":2.75},{"$f":"'[2]MONE(M)CAPARD'!AV356","v":5.5},{"$f":"'[2]MONE(M)CAPARD'!AW356","v":"n.a."},{"$f":"'[2]MONE(M)CAPARD'!AX356","v":5.5},{"$f":"'[2]MONE(M)CAPARD'!AY356","v":"n.a."},null,null,{"$f":"+'Datos_Regional (M)'!CF349","v":4.6564307171231167},{"$f":"+'Datos_Regional (M)'!CG349","v":6.8424848593473531},{"$f":"+'Datos_Regional (M)'!CH349","v":4.9312294650942112},{"$f":"+'Datos_Regional (M)'!CI349","v":13.740365690853128},{"$f":"+'Datos_Regional (M)'!CJ349","v":-6.343971991981789},{"$f":"+'Datos_Regional (M)'!CK349","v":11.101611878450313},{"$f":"+'Datos_Regional (M)'!CL349","v":4.4649620890699238},null,null,936.42255721166657,492.36916666666679,913.14166666666654,716.44233106348349,450.58781918749997,885.80000000000007,988.03861360833343,4394.7635407959833,5382.8021544043195,null,null,1385.8693375433334,951.9675000000002,1658.0000000000002,1126.1672532222353,560.17896533416672,1675.7833333333335,1934.6553272499998,7357.9663894330697,9292.6217166830684,null,null,-2963.202848637085,-3909.8195622787512,null,null,{"$f":"'[2]EXT Comercio(M)'!C356","v":946.84154464000039},{"$f":"'[2]EXT Comercio(M)'!D356","v":478.86999999999989},{"$f":"'[2]EXT Comercio(M)'!E356","v":859.8},{"$f":"'[2]EXT Comercio(M)'!F356","v":678.86806416924276},{"$f":"'[2]EXT Comercio(M)'!G356","v":427.59774202999995},{"$f":"'[2]EXT Comercio(M)'!H356","v":907.3},{"$f":"'[2]EXT Comercio(M)'!I356","v":861.7191039999999},{"$f":"'[2]EXT Comercio(M)'!K356","v":4299.2773508392493},{"$f":"'[2]EXT Comercio(M)'!L356","v":5160.9964548392527},null,null,{"$f":"'[2]EXT Comercio(M)'!AG356","v":1525.6157879699995},{"$f":"'[2]EXT Comercio(M)'!AH356","v":988.67000000000007},{"$f":"'[2]EXT Comercio(M)'!AI356","v":1693.4},{"$f":"'[2]EXT Comercio(M)'!AJ356","v":1221.4858660314728},{"$f":"'[2]EXT Comercio(M)'!AK356","v":547.71701541999994},{"$f":"'[2]EXT Comercio(M)'!AL356","v":1808.2},{"$f":"'[2]EXT Comercio(M)'!AM356","v":1717.7592789999999},{"$f":"'[2]EXT Comercio(M)'!AO356","v":7785.0886694214714},{"$f":"'[2]EXT Comercio(M)'!AP356","v":9502.8479484214622},null,null,{"$f":"'[2]EXT Comercio(M)'!$BS356","v":-3485.8113185822294},{"$f":"'[2]EXT Comercio(M)'!$BT356","v":-4341.8514935822313}]
[null,null,"Diciembre ",{"$f":"'[2]REAL IPC(M)'!AD357","v":2.0272621475774466},{"$f":"'[2]REAL IPC(M)'!AE357","v":0.43824344870762438},{"$f":"'[2]REAL IPC(M)'!AF357","v":2.3129150190255943},{"$f":"'[2]REAL IPC(M)'!AG357","v":4.2244437278297209},{"$f":"'[2]REAL IPC(M)'!AH357","v":3.8850547509849016},{"$f":"'[2]REAL IPC(M)'!AI357","v":1.1705946620883314},{"$f":"'[2]REAL IPC(M)'!AJ357","v":0.15837320574162145},null,null,{"$f":"'[2]REAL IMAE(M)'!AG357","v":1.4483381360284666},{"$f":"'[2]REAL IMAE(M)'!AH357","v":1.8858207962775744},{"$f":"'[2]REAL IMAE(M)'!AI357","v":3.3380699528163715},{"$f":"'[2]REAL IMAE(M)'!AJ357","v":3.7872328263968305},{"$f":"'[2]REAL IMAE(M)'!AK357","v":-7.1071481603765276},{"$f":"'[2]REAL IMAE(M)'!AL357","v":5.4636636179586873},{"$f":"'[2]REAL IMAE(M)'!AM357","v":1.8305563389230388},null,null,{"$f":"'[2]EXT ITCER(M)'!C357","v":83.328462041600517},{"$f":"'[2]EXT ITCER(M)'!D357","v":95.263821001327457},{"$f":"'[2]EXT ITCER(M)'!E357","v":54.838373684111289},{"$f":"'[2]EXT ITCER(M)'!F357","v":79.299135820549722},{"$f":"'[2]EXT ITCER(M)'!G357","v":107.3028584946746},{"$f":"'[2]EXT ITCER(M)'!H357","v":110.8588854986702},{"$f":"'[2]EXT ITCER(M)'!I357","v":91.863963407708681},null,null,{"$f":"'[2]EXT TC(M)'!J357","v":6.0846005172708146},{"$f":"'[2]EXT TC(M)'!K357","v":0},{"$f":"'[2]EXT TC(M)'!L357","v":5.3319185894074517},{"$f":"'[2]EXT TC(M)'!M357","v":3.2715290467338232},{"$f":"'[2]EXT TC(M)'!N357","v":5.7365154921040622},{"$f":"'[2]EXT TC(M)'!O357","v":4.2268282290833037},{"$f":"'[2]EXT TC(M)'!P357","v":0},null,null,{"$f":"'[2]EXT RIN(M)'!C357","v":7494.9984000000004},{"$f":"'[2]EXT RIN(M)'!D357","v":3353.55},{"$f":"'[2]EXT RIN(M)'!E357","v":12755.6},{"$f":"'[2]EXT RIN(M)'!F357","v":4853.1386447195428},{"$f":"'[2]EXT RIN(M)'!G357","v":2038.9},{"$f":"'[2]EXT RIN(M)'!H357","v":7627.1078836426968},{"$f":"'[2]EXT RIN(M)'!I357","v":2907.0582651700001},null,null,{"$f":"'[2]EXT RIN(M)'!P357","v":68.517783645481785},{"$f":"'[2]EXT RIN(M)'!Q357","v":99.118893904611426},{"$f":"'[2]EXT RIN(M)'!R357","v":113.55932336120256},{"$f":"'[2]EXT RIN(M)'!S357","v":91.23046266398174},{"$f":"'[2]EXT RIN(M)'!T357","v":107.34241795445925},{"$f":"'[2]EXT RIN(M)'!U357","v":98.937327768798227},{"$f":"'[2]EXT RIN(M)'!V357","v":160.07850169838505},null,null,{"$f":"+'[2]MONE(M)CAPARD'!AE357","v":3.8938003125832998},{"$f":"'[2]MONE(M)CAPARD'!AF357","v":4.004208370436336},{"$f":"'[2]MONE(M)CAPARD'!AG357","v":2.6752096550718263},{"$f":"'[2]MONE(M)CAPARD'!AH357","v":3.8911757425742679},{"$f":"'[2]MONE(M)CAPARD'!AI357","v":8.6321639385310416},{"$f":"'[2]MONE(M)CAPARD'!AJ357","v":6.9632933970996715},{"$f":"'[2]MONE(M)CAPARD'!AK357","v":1.818746387300501},null,null,{"$f":"'[2]MONE(M)CAPARD'!AL357","v":3.6468646100000002},{"$f":"'[2]MONE(M)CAPARD'!AM357","v":4.46},{"$f":"'[2]MONE(M)CAPARD'!AN357","v":3.14},{"$f":"'[2]MONE(M)CAPARD'!AO357","v":3.65},{"$f":"'[2]MONE(M)CAPARD'!AP357","v":5.24},{"$f":"'[2]MONE(M)CAPARD'!AQ357","v":2.1215999999999999},{"$f":"'[2]MONE(M)CAPARD'!AR357","v":1.98},null,null,{"$f":"'[2]MONE(M)CAPARD'!J357","v":13.585275868991921},{"$f":"'[2]MONE(M)CAPARD'!K357","v":5.7167034728406101},{"$f":"'[2]MONE(M)CAPARD'!L357","v":10.171819441405964},{"$f":"'[2]MONE(M)CAPARD'!M357","v":12.670306311881198},{"$f":"'[2]MONE(M)CAPARD'!N357","v":15.380325157611544},{"$f":"'[2]MONE(M)CAPARD'!O357","v":10.766721714193455},{"$f":"'[2]MONE(M)CAPARD'!P357","v":6.3915043639021514},null,null,{"$f":"'[2]MONE(M)CAPARD'!Q357","v":10.812962593964714},{"$f":"'[2]MONE(M)CAPARD'!R357","v":6.18},{"$f":"'[2]MONE(M)CAPARD'!S357","v":6.45},{"$f":"'[2]MONE(M)CAPARD'!T357","v":8.1199999999999992},{"$f":"'[2]MONE(M)CAPARD'!U357","v":11.03},{"$f":"'[2]MONE(M)CAPARD'!V357","v":6.0841000000000003},{"$f":"'[2]MONE(M)CAPARD'!W357","v":6.56},null,null,{"$f":"'[2]MONE(M)CAPARD'!AS357","v":5.25},{"$f":"'[2]MONE(M)CAPARD'!AT357","v":"n.a."},{"$f":"'[2]MONE(M)CAPARD'!AU357","v":2.75},{"$f":"'[2]MONE(M)CAPARD'!AV357","v":5.5},{"$f":"'[2]MONE(M)CAPARD'!AW357","v":"n.a."},{"$f":"'[2]MONE(M)CAPARD'!AX357","v":5.5},{"$f":"'[2]MONE(M)CAPARD'!AY357","v":"n.a."},null,null,{"$f":"+'Datos_Regional (M)'!CF350","v":4.4432114496036901},{"$f":"+'Datos_Regional (M)'!CG350","v":6.8864085962981436},{"$f":"+'Datos_Regional (M)'!CH350","v":4.5397688442660122},{"$f":"+'Datos_Regional (M)'!CI350","v":14.292218895198383},{"$f":"+'Datos_Regional (M)'!CJ350","v":-8.828082165925677},{"$f":"+'Datos_Regional (M)'!CK350","v":10.372298125428436},{"$f":"+'Datos_Regional (M)'!CL350","v":3.3541087512918955},null,null,940.02041484666643,492.11583333333328,914.14166666666642,717.55127072029916,451.34094328791667,886.50833333333333,{"$f":"IF(EN162=\"\",\"\",+AVERAGE(EN151:EN162))","v":968.88348602500002},4401.6784621882152,5370.5619482132161,null,null,1380.7841265216668,955.35916666666697,1639.5250000000003,1137.3816978501859,552.3784138883334,1683.1083333333336,1917.1636025833332,7348.5367382601862,9265.7003408435194,null,null,-2946.8582760719705,-3895.1383926303038,null,null,{"$f":"'[2]EXT Comercio(M)'!C357","v":852.08425284999976},{"$f":"'[2]EXT Comercio(M)'!D357","v":417.98999999999978},{"$f":"'[2]EXT Comercio(M)'!E357","v":899.3},{"$f":"'[2]EXT Comercio(M)'!F357","v":598.47219509974548},{"$f":"'[2]EXT Comercio(M)'!G357","v":365.04728808499999},{"$f":"'[2]EXT Comercio(M)'!H357","v":824.2},{"$f":"'[2]EXT Comercio(M)'!I357","v":731.15634699999998},{"$f":"'[2]EXT Comercio(M)'!K357","v":3957.093736034738},{"$f":"'[2]EXT Comercio(M)'!L357","v":4688.2500830347417},null,null,{"$f":"'[2]EXT Comercio(M)'!AG357","v":1269.3670297100007},{"$f":"'[2]EXT Comercio(M)'!AH357","v":885.22000000000116},{"$f":"'[2]EXT Comercio(M)'!AI357","v":1522.8999999999999},{"$f":"'[2]EXT Comercio(M)'!AJ357","v":1110.8439238783092},{"$f":"'[2]EXT Comercio(M)'!AK357","v":481.62392139999997},{"$f":"'[2]EXT Comercio(M)'!AL357","v":1617.9},{"$f":"'[2]EXT Comercio(M)'!AM357","v":1771.8537139999999},{"$f":"'[2]EXT Comercio(M)'!AO357","v":6887.8548749883048},{"$f":"'[2]EXT Comercio(M)'!AP357","v":8659.7085889883165},null,null,{"$f":"'[2]EXT Comercio(M)'!$BS357","v":-2930.7611389535668},{"$f":"'[2]EXT Comercio(M)'!$BT357","v":-3971.4585059535675}]
[null,2019,"Enero",{"$f":"'[2]REAL IPC(M)'!AD358","v":1.6663756337366431},{"$f":"'[2]REAL IPC(M)'!AE358","v":0.24984360485888271},{"$f":"'[2]REAL IPC(M)'!AF358","v":4.1048689138576737},{"$f":"'[2]REAL IPC(M)'!AG358","v":3.9549839228295856},{"$f":"'[2]REAL IPC(M)'!AH358","v":3.3048488318587941},{"$f":"'[2]REAL IPC(M)'!AI358","v":0.70811609991439906},{"$f":"'[2]REAL IPC(M)'!AJ358","v":-0.30477554918817584},null,null,{"$f":"'[2]REAL IMAE(M)'!AG358","v":1.6570334148383281},{"$f":"'[2]REAL IMAE(M)'!AH358","v":2.4019370859975155},{"$f":"'[2]REAL IMAE(M)'!AI358","v":3.4758318671844721},{"$f":"'[2]REAL IMAE(M)'!AJ358","v":3.6918025889901331},{"$f":"'[2]REAL IMAE(M)'!AK358","v":-8.0760932408639956},{"$f":"'[2]REAL IMAE(M)'!AL358","v":5.3709633027106287},{"$f":"'[2]REAL IMAE(M)'!AM358","v":1.7882951096861621},null,null,{"$f":"'[2]EXT ITCER(M)'!C358","v":83.925514371830417},{"$f":"'[2]EXT ITCER(M)'!D358","v":95.296502452786584},{"$f":"'[2]EXT ITCER(M)'!E358","v":54.096653811205996},{"$f":"'[2]EXT ITCER(M)'!F358","v":79.287113418644452},{"$f":"'[2]EXT ITCER(M)'!G358","v":108.3876593753924},{"$f":"'[2]EXT ITCER(M)'!H358","v":111.3420104919789},{"$f":"'[2]EXT ITCER(M)'!I358","v":92.096578533044351},null,null,{"$f":"'[2]EXT TC(M)'!J358","v":6.4431894195015449},{"$f":"'[2]EXT TC(M)'!K358","v":0},{"$f":"'[2]EXT TC(M)'!L358","v":5.2976823492953589},{"$f":"'[2]EXT TC(M)'!M358","v":3.1675016378280603},{"$f":"'[2]EXT TC(M)'!N358","v":5.9286961769362607},{"$f":"'[2]EXT TC(M)'!O358","v":4.0455392991671291},{"$f":"'[2]EXT TC(M)'!P358","v":0},null,null,{"$f":"'[2]EXT RIN(M)'!C358","v":7571.5874999999996},{"$f":"'[2]EXT RIN(M)'!D358","v":3493.55},{"$f":"'[2]EXT RIN(M)'!E358","v":12452.4},{"$f":"'[2]EXT RIN(M)'!F358","v":4788.8999999999996},{"$f":"'[2]EXT RIN(M)'!G358","v":1961.6000000000001},{"$f":"'[2]EXT RIN(M)'!H358","v":7046.5049646461903},{"$f":"'[2]EXT RIN(M)'!I358","v":2844.6931911500001},null,null,{"$f":"'[2]EXT RIN(M)'!P358","v":71.081034112191006},{"$f":"'[2]EXT RIN(M)'!Q358","v":99.927461738641441},{"$f":"'[2]EXT RIN(M)'!R358","v":116.29543082487007},{"$f":"'[2]EXT RIN(M)'!S358","v":94.433264908578437},{"$f":"'[2]EXT RIN(M)'!T358","v":109.80240371966769},{"$f":"'[2]EXT RIN(M)'!U358","v":95.72633541805429},{"$f":"'[2]EXT RIN(M)'!V358","v":168.4498577955948},null,null,{"$f":"+'[2]MONE(M)CAPARD'!AE358","v":4.5084958893157809},{"$f":"'[2]MONE(M)CAPARD'!AF358","v":4.0699877909269491},{"$f":"'[2]MONE(M)CAPARD'!AG358","v":0.90786444092675589},{"$f":"'[2]MONE(M)CAPARD'!AH358","v":4.2181874420043268},{"$f":"'[2]MONE(M)CAPARD'!AI358","v":9.9212425899130565},{"$f":"'[2]MONE(M)CAPARD'!AJ358","v":7.1115260392520527},{"$f":"'[2]MONE(M)CAPARD'!AK358","v":2.3419131277848919},null,null,{"$f":"'[2]MONE(M)CAPARD'!AL358","v":3.6397709100000002},{"$f":"'[2]MONE(M)CAPARD'!AM358","v":4.33},{"$f":"'[2]MONE(M)CAPARD'!AN358","v":3.16},{"$f":"'[2]MONE(M)CAPARD'!AO358","v":3.69},{"$f":"'[2]MONE(M)CAPARD'!AP358","v":5.1583060550661974},{"$f":"'[2]MONE(M)CAPARD'!AQ358","v":2.2852999999999999},{"$f":"'[2]MONE(M)CAPARD'!AR358","v":2.0299999999999998},null,null,{"$f":"'[2]MONE(M)CAPARD'!J358","v":11.790722912606283},{"$f":"'[2]MONE(M)CAPARD'!K358","v":6.2844550860084958},{"$f":"'[2]MONE(M)CAPARD'!L358","v":8.2946467117570908},{"$f":"'[2]MONE(M)CAPARD'!M358","v":12.933498298793685},{"$f":"'[2]MONE(M)CAPARD'!N358","v":15.714175368554594},{"$f":"'[2]MONE(M)CAPARD'!O358","v":11.830311559264416},{"$f":"'[2]MONE(M)CAPARD'!P358","v":6.8682081683526599},null,null,{"$f":"'[2]MONE(M)CAPARD'!Q358","v":8.3605535300000007},{"$f":"'[2]MONE(M)CAPARD'!R358","v":6.55},{"$f":"'[2]MONE(M)CAPARD'!S358","v":6.55},{"$f":"'[2]MONE(M)CAPARD'!T358","v":8.18},{"$f":"'[2]MONE(M)CAPARD'!U358","v":11.072876283627158},{"$f":"'[2]MONE(M)CAPARD'!V358","v":6.1733000000000002},{"$f":"'[2]MONE(M)CAPARD'!W358","v":6.5424999999999995},null,null,{"$f":"'[2]MONE(M)CAPARD'!AS358","v":5.25},{"$f":"'[2]MONE(M)CAPARD'!AT358","v":"n.a."},{"$f":"'[2]MONE(M)CAPARD'!AU358","v":2.75},{"$f":"'[2]MONE(M)CAPARD'!AV358","v":5.75},{"$f":"'[2]MONE(M)CAPARD'!AW358","v":"n.a."},{"$f":"'[2]MONE(M)CAPARD'!AX358","v":5.5},{"$f":"'[2]MONE(M)CAPARD'!AY358","v":"n.a."},null,null,{"$f":"+'Datos_Regional (M)'!CF351","v":4.4761505862802808},{"$f":"+'Datos_Regional (M)'!CG351","v":7.3051971145787986},{"$f":"+'Datos_Regional (M)'!CH351","v":4.6742866691968699},{"$f":"+'Datos_Regional (M)'!CI351","v":13.808150180579325},{"$f":"+'Datos_Regional (M)'!CJ351","v":-11.911048796065293},{"$f":"+'Datos_Regional (M)'!CK351","v":9.9487446696527648},{"$f":"+'Datos_Regional (M)'!CL351","v":2.9884078096588329},null,null,942.47812150999971,490.77083333333331,912.17499999999984,712.80804424704547,448.92931076791666,892.43333333333339,{"$f":"IF(EN163=\"\",\"\",+AVERAGE(EN152:EN163))","v":957.65706935833339},4399.5946431916282,5357.2517125499626,null,null,1383.1126256183334,958.97583333333353,1649.4583333333333,1140.1380354755993,541.84142573666668,1687.9666666666669,1900.4697692500001,7361.4929201639316,9261.9626894139328,null,null,-2961.8982769723043,-3904.7109768639712,null,null,{"$f":"'[2]EXT Comercio(M)'!C358","v":823.88379740000005},{"$f":"'[2]EXT Comercio(M)'!D358","v":483.88},{"$f":"'[2]EXT Comercio(M)'!E358","v":855.80000000000007},{"$f":"'[2]EXT Comercio(M)'!F358","v":674.16996181445597},{"$f":"'[2]EXT Comercio(M)'!G358","v":436.63636252000003},{"$f":"'[2]EXT Comercio(M)'!H358","v":840.59999999999991},{"$f":"'[2]EXT Comercio(M)'!I358","v":814.48300000000006},{"$f":"'[2]EXT Comercio(M)'!K358","v":4114.9701217344555},{"$f":"'[2]EXT Comercio(M)'!L358","v":4929.4531217344556},null,null,{"$f":"'[2]EXT Comercio(M)'!AG358","v":1348.51775185},{"$f":"'[2]EXT Comercio(M)'!AH358","v":942.16},{"$f":"'[2]EXT Comercio(M)'!AI358","v":1685.6000000000001},{"$f":"'[2]EXT Comercio(M)'!AJ358","v":1095.0727553558581},{"$f":"'[2]EXT Comercio(M)'!AK358","v":506.54191297999995},{"$f":"'[2]EXT Comercio(M)'!AL358","v":1631.4},{"$f":"'[2]EXT Comercio(M)'!AM358","v":1826.914},{"$f":"'[2]EXT Comercio(M)'!AO358","v":7209.2924201858586},{"$f":"'[2]EXT Comercio(M)'!AP358","v":9036.2064201858593},null,null,{"$f":"'[2]EXT Comercio(M)'!$BS358","v":-3094.3222984514023},{"$f":"'[2]EXT Comercio(M)'!$BT358","v":-4106.7532984514019}]
[null,null,"Febrero",{"$f":"'[2]REAL IPC(M)'!AD359","v":1.5354770355484519},{"$f":"'[2]REAL IPC(M)'!AE359","v":0.34841535029005516},{"$f":"'[2]REAL IPC(M)'!AF359","v":4.458455302859714},{"$f":"'[2]REAL IPC(M)'!AG359","v":4.089456869009588},{"$f":"'[2]REAL IPC(M)'!AH359","v":3.3579926806237168},{"$f":"'[2]REAL IPC(M)'!AI359","v":1.1918672587053112},{"$f":"'[2]REAL IPC(M)'!AJ359","v":-0.50047619047618463},null,null,{"$f":"'[2]REAL IMAE(M)'!AG359","v":1.6662238988202831},{"$f":"'[2]REAL IMAE(M)'!AH359","v":2.5042656719128726},{"$f":"'[2]REAL IMAE(M)'!AI359","v":3.6557884847367479},{"$f":"'[2]REAL IMAE(M)'!AJ359","v":3.5220781497473741},{"$f":"'[2]REAL IMAE(M)'!AK359","v":-8.8125175073167394},{"$f":"'[2]REAL IMAE(M)'!AL359","v":5.2554067091814902},{"$f":"'[2]REAL IMAE(M)'!AM359","v":2.0317251036574184},null,null,{"$f":"'[2]EXT ITCER(M)'!C359","v":84.641136942569474},{"$f":"'[2]EXT ITCER(M)'!D359","v":95.353778642631639},{"$f":"'[2]EXT ITCER(M)'!E359","v":54.158724515788514},{"$f":"'[2]EXT ITCER(M)'!F359","v":79.016845517383416},{"$f":"'[2]EXT ITCER(M)'!G359","v":108.7268387758843},{"$f":"'[2]EXT ITCER(M)'!H359","v":111.4329248424341},{"$f":"'[2]EXT ITCER(M)'!I359","v":92.233983138156688},null,null,{"$f":"'[2]EXT TC(M)'!J359","v":6.9123823726509661},{"$f":"'[2]EXT TC(M)'!K359","v":0},{"$f":"'[2]EXT TC(M)'!L359","v":5.0440513637539688},{"$f":"'[2]EXT TC(M)'!M359","v":3.4787463230153115},{"$f":"'[2]EXT TC(M)'!N359","v":5.9827045671758574},{"$f":"'[2]EXT TC(M)'!O359","v":3.3915467664156624},{"$f":"'[2]EXT TC(M)'!P359","v":0},null,null,{"$f":"'[2]EXT RIN(M)'!C359","v":7525.2952999999998},{"$f":"'[2]EXT RIN(M)'!D359","v":3615.3},{"$f":"'[2]EXT RIN(M)'!E359","v":12557.2},{"$f":"'[2]EXT RIN(M)'!F359","v":4838.3999999999996},{"$f":"'[2]EXT RIN(M)'!G359","v":1937.4},{"$f":"'[2]EXT RIN(M)'!H359","v":7133.8695190563603},{"$f":"'[2]EXT RIN(M)'!I359","v":2480.4440872700002},null,null,{"$f":"'[2]EXT RIN(M)'!P359","v":70.603425737943297},{"$f":"'[2]EXT RIN(M)'!Q359","v":100.41713399117069},{"$f":"'[2]EXT RIN(M)'!R359","v":116.13530442341171},{"$f":"'[2]EXT RIN(M)'!S359","v":95.019913805810859},{"$f":"'[2]EXT RIN(M)'!T359","v":109.09972242715232},{"$f":"'[2]EXT RIN(M)'!U359","v":97.141760608923676},{"$f":"'[2]EXT RIN(M)'!V359","v":147.83037335399897},null,null,{"$f":"+'[2]MONE(M)CAPARD'!AE359","v":4.6432272759214523},{"$f":"'[2]MONE(M)CAPARD'!AF359","v":3.9777256429773873},{"$f":"'[2]MONE(M)CAPARD'!AG359","v":0.54715024789825639},{"$f":"'[2]MONE(M)CAPARD'!AH359","v":4.1027624309392223},{"$f":"'[2]MONE(M)CAPARD'!AI359","v":10.391810478580974},{"$f":"'[2]MONE(M)CAPARD'!AJ359","v":5.9860865357967601},{"$f":"'[2]MONE(M)CAPARD'!AK359","v":2.5934558193626134},null,null,{"$f":"'[2]MONE(M)CAPARD'!AL359","v":4.0652984300000004},{"$f":"'[2]MONE(M)CAPARD'!AM359","v":4.34},{"$f":"'[2]MONE(M)CAPARD'!AN359","v":3.15},{"$f":"'[2]MONE(M)CAPARD'!AO359","v":3.69},{"$f":"'[2]MONE(M)CAPARD'!AP359","v":5.3094594696521398},{"$f":"'[2]MONE(M)CAPARD'!AQ359","v":2.3952},{"$f":"'[2]MONE(M)CAPARD'!AR359","v":2.08},null,null,{"$f":"'[2]MONE(M)CAPARD'!J359","v":11.995065330896596},{"$f":"'[2]MONE(M)CAPARD'!K359","v":6.2298787956813255},{"$f":"'[2]MONE(M)CAPARD'!L359","v":7.9567945677947849},{"$f":"'[2]MONE(M)CAPARD'!M359","v":12.816421117249842},{"$f":"'[2]MONE(M)CAPARD'!N359","v":14.667742021612719},{"$f":"'[2]MONE(M)CAPARD'!O359","v":12.066911177829093},{"$f":"'[2]MONE(M)CAPARD'!P359","v":7.1311659783009187},null,null,{"$f":"'[2]MONE(M)CAPARD'!Q359","v":8.6145363600000007},{"$f":"'[2]MONE(M)CAPARD'!R359","v":6.6},{"$f":"'[2]MONE(M)CAPARD'!S359","v":6.56},{"$f":"'[2]MONE(M)CAPARD'!T359","v":8.1999999999999993},{"$f":"'[2]MONE(M)CAPARD'!U359","v":12.604218208320511},{"$f":"'[2]MONE(M)CAPARD'!V359","v":6.3169000000000004},{"$f":"'[2]MONE(M)CAPARD'!W359","v":6.5949999999999998},null,null,{"$f":"'[2]MONE(M)CAPARD'!AS359","v":5.25},{"$f":"'[2]MONE(M)CAPARD'!AT359","v":"n.a."},{"$f":"'[2]MONE(M)CAPARD'!AU359","v":2.75},{"$f":"'[2]MONE(M)CAPARD'!AV359","v":5.75},{"$f":"'[2]MONE(M)CAPARD'!AW359","v":"n.a."},{"$f":"'[2]MONE(M)CAPARD'!AX359","v":5.5},{"$f":"'[2]MONE(M)CAPARD'!AY359","v":"n.a."},null,null,{"$f":"+'Datos_Regional (M)'!CF352","v":4.218567346316604},{"$f":"+'Datos_Regional (M)'!CG352","v":7.0481885113485632},{"$f":"+'Datos_Regional (M)'!CH352","v":4.2161525947022271},{"$f":"+'Datos_Regional (M)'!CI352","v":14.17435284959323},{"$f":"+'Datos_Regional (M)'!CJ352","v":-14.099994703577302},{"$f":"+'Datos_Regional (M)'!CK352","v":9.634218830756879},{"$f":"+'Datos_Regional (M)'!CL352","v":3.2442669240535515},null,null,943.1759170783331,489.04333333333329,909.34166666666658,707.97992964212892,447.4112899120833,893.38333333333355,944.70416710833342,4390.3354699658785,5335.0396370742119,null,null,1381.5044247291669,962.60083333333353,1652.2833333333331,1147.9821434292651,534.74752227083343,1694.5666666666668,1902.8768449166666,7373.6849237625984,9276.5617686792666,null,null,-2983.3494537967199,-3941.5221316050533,null,null,{"$f":"'[2]EXT Comercio(M)'!C359","v":888.38198164000005},{"$f":"'[2]EXT Comercio(M)'!D359","v":468.05000000000007},{"$f":"'[2]EXT Comercio(M)'!E359","v":894.30000000000007},{"$f":"'[2]EXT Comercio(M)'!F359","v":721.46991533606376},{"$f":"'[2]EXT Comercio(M)'!G359","v":439.79236840999999},{"$f":"'[2]EXT Comercio(M)'!H359","v":831.2},{"$f":"'[2]EXT Comercio(M)'!I359","v":770.69400000000007},{"$f":"'[2]EXT Comercio(M)'!K359","v":4243.1942653860642},{"$f":"'[2]EXT Comercio(M)'!L359","v":5013.8882653860637},null,null,{"$f":"'[2]EXT Comercio(M)'!AG359","v":1195.9575215300001},{"$f":"'[2]EXT Comercio(M)'!AH359","v":869.67999999999972},{"$f":"'[2]EXT Comercio(M)'!AI359","v":1459.5},{"$f":"'[2]EXT Comercio(M)'!AJ359","v":1061.5978621167856},{"$f":"'[2]EXT Comercio(M)'!AK359","v":486.88465585999995},{"$f":"'[2]EXT Comercio(M)'!AL359","v":1465.6},{"$f":"'[2]EXT Comercio(M)'!AM359","v":1705.326},{"$f":"'[2]EXT Comercio(M)'!AO359","v":6539.2200395067848},{"$f":"'[2]EXT Comercio(M)'!AP359","v":8244.5460395067857},null,null,{"$f":"'[2]EXT Comercio(M)'!$BS359","v":-2296.0257741207215},{"$f":"'[2]EXT Comercio(M)'!$BT359","v":-3230.657774120722}]
[null,null,"Marzo",{"$f":"'[2]REAL IPC(M)'!AD360","v":1.4201372317598189},{"$f":"'[2]REAL IPC(M)'!AE360","v":0.68222728491020856},{"$f":"'[2]REAL IPC(M)'!AF360","v":4.1710348959113555},{"$f":"'[2]REAL IPC(M)'!AG360","v":4.1388092964024192},{"$f":"'[2]REAL IPC(M)'!AH360","v":5.0875154396655624},{"$f":"'[2]REAL IPC(M)'!AI360","v":1.4745828482731846},{"$f":"'[2]REAL IPC(M)'!AJ360","v":-0.18401522359658529},null,null,{"$f":"'[2]REAL IMAE(M)'!AG360","v":1.4155379926554996},{"$f":"'[2]REAL IMAE(M)'!AH360","v":2.6832361389649346},{"$f":"'[2]REAL IMAE(M)'!AI360","v":3.824821077350387},{"$f":"'[2]REAL IMAE(M)'!AJ360","v":3.3684389512365596},{"$f":"'[2]REAL IMAE(M)'!AK360","v":-9.3787119589420662},{"$f":"'[2]REAL IMAE(M)'!AL360","v":5.0733779762151627},{"$f":"'[2]REAL IMAE(M)'!AM360","v":2.8705426598116217},null,null,{"$f":"'[2]EXT ITCER(M)'!C360","v":84.185963052698355},{"$f":"'[2]EXT ITCER(M)'!D360","v":95.470022340624595},{"$f":"'[2]EXT ITCER(M)'!E360","v":54.056238035461632},{"$f":"'[2]EXT ITCER(M)'!F360","v":79.103801479916569},{"$f":"'[2]EXT ITCER(M)'!G360","v":107.21610192797451},{"$f":"'[2]EXT ITCER(M)'!H360","v":111.1828197242308},{"$f":"'[2]EXT ITCER(M)'!I360","v":92.1731667482332},null,null,{"$f":"'[2]EXT TC(M)'!J360","v":6.4383590619585362},{"$f":"'[2]EXT TC(M)'!K360","v":0},{"$f":"'[2]EXT TC(M)'!L360","v":3.9799349240780826},{"$f":"'[2]EXT TC(M)'!M360","v":3.4154923662152821},{"$f":"'[2]EXT TC(M)'!N360","v":5.7659079958260344},{"$f":"'[2]EXT TC(M)'!O360","v":2.7107971081107372},{"$f":"'[2]EXT TC(M)'!P360","v":0},null,null,{"$f":"'[2]EXT RIN(M)'!C360","v":8336.4212000000007},{"$f":"'[2]EXT RIN(M)'!D360","v":3594.41},{"$f":"'[2]EXT RIN(M)'!E360","v":12759.2},{"$f":"'[2]EXT RIN(M)'!F360","v":4830.8999999999996},{"$f":"'[2]EXT RIN(M)'!G360","v":1913.1000000000001},{"$f":"'[2]EXT RIN(M)'!H360","v":7353.5459141715801},{"$f":"'[2]EXT RIN(M)'!I360","v":2697.0524484800003},null,null,{"$f":"'[2]EXT RIN(M)'!P360","v":77.483024719104662},{"$f":"'[2]EXT RIN(M)'!Q360","v":103.75867227142066},{"$f":"'[2]EXT RIN(M)'!R360","v":114.000060682773},{"$f":"'[2]EXT RIN(M)'!S360","v":96.794360473132485},{"$f":"'[2]EXT RIN(M)'!T360","v":112.13094091830871},{"$f":"'[2]EXT RIN(M)'!U360","v":97.992932795370365},{"$f":"'[2]EXT RIN(M)'!V360","v":162.27434706308412},null,null,{"$f":"+'[2]MONE(M)CAPARD'!AE360","v":4.7129326568721721},{"$f":"'[2]MONE(M)CAPARD'!AF360","v":3.6031907645665533},{"$f":"'[2]MONE(M)CAPARD'!AG360","v":0.81497232406007847},{"$f":"'[2]MONE(M)CAPARD'!AH360","v":4.0726322225619089},{"$f":"'[2]MONE(M)CAPARD'!AI360","v":6.6573165560866041},{"$f":"'[2]MONE(M)CAPARD'!AJ360","v":5.5968864244741887},{"$f":"'[2]MONE(M)CAPARD'!AK360","v":2.2882259076168818},null,null,{"$f":"'[2]MONE(M)CAPARD'!AL360","v":3.9689317599999998},{"$f":"'[2]MONE(M)CAPARD'!AM360","v":4.3099999999999996},{"$f":"'[2]MONE(M)CAPARD'!AN360","v":3.12},{"$f":"'[2]MONE(M)CAPARD'!AO360","v":3.74},{"$f":"'[2]MONE(M)CAPARD'!AP360","v":5.8845742684087234},{"$f":"'[2]MONE(M)CAPARD'!AQ360","v":2.0144000000000002},{"$f":"'[2]MONE(M)CAPARD'!AR360","v":2.1},null,null,{"$f":"'[2]MONE(M)CAPARD'!J360","v":11.682388795397801},{"$f":"'[2]MONE(M)CAPARD'!K360","v":5.7485545077499856},{"$f":"'[2]MONE(M)CAPARD'!L360","v":8.273859535619275},{"$f":"'[2]MONE(M)CAPARD'!M360","v":12.734148578416384},{"$f":"'[2]MONE(M)CAPARD'!N360","v":13.605009069912398},{"$f":"'[2]MONE(M)CAPARD'!O360","v":11.109991128107076},{"$f":"'[2]MONE(M)CAPARD'!P360","v":6.8315863825536356},null,null,{"$f":"'[2]MONE(M)CAPARD'!Q360","v":9.02676634},{"$f":"'[2]MONE(M)CAPARD'!R360","v":6.47},{"$f":"'[2]MONE(M)CAPARD'!S360","v":6.59},{"$f":"'[2]MONE(M)CAPARD'!T360","v":8.19},{"$f":"'[2]MONE(M)CAPARD'!U360","v":11.419850272378261},{"$f":"'[2]MONE(M)CAPARD'!V360","v":5.8235000000000001},{"$f":"'[2]MONE(M)CAPARD'!W360","v":6.6349999999999998},null,null,{"$f":"'[2]MONE(M)CAPARD'!AS360","v":5},{"$f":"'[2]MONE(M)CAPARD'!AT360","v":"n.a."},{"$f":"'[2]MONE(M)CAPARD'!AU360","v":2.75},{"$f":"'[2]MONE(M)CAPARD'!AV360","v":5.75},{"$f":"'[2]MONE(M)CAPARD'!AW360","v":"n.a."},{"$f":"'[2]MONE(M)CAPARD'!AX360","v":5.5},{"$f":"'[2]MONE(M)CAPARD'!AY360","v":"n.a."},null,null,{"$f":"+'Datos_Regional (M)'!CF353","v":4.2706767075909147},{"$f":"+'Datos_Regional (M)'!CG353","v":6.9718587610636096},{"$f":"+'Datos_Regional (M)'!CH353","v":4.2748883929449644},{"$f":"+'Datos_Regional (M)'!CI353","v":13.989539648589133},{"$f":"+'Datos_Regional (M)'!CJ353","v":-16.815600545838837},{"$f":"+'Datos_Regional (M)'!CK353","v":11.87279628564788},{"$f":"+'Datos_Regional (M)'!CL353","v":3.4579045014985654},null,null,941.02587402499978,490.81083333333339,909.2833333333333,710.51082286208236,445.2254869645833,898.00000000000011,928.23582999999996,4394.8563505183329,5323.0921805183325,null,null,1387.1064448983334,973.39000000000033,1663.9416666666666,1151.879277228827,527.60716573333332,1700.0833333333333,1886.45267375,7404.0078878604936,9290.4605616104946,null,null,-3009.1515373421621,-3967.3683810921625,null,null,{"$f":"'[2]EXT Comercio(M)'!C360","v":1045.80739907},{"$f":"'[2]EXT Comercio(M)'!D360","v":514.87999999999988},{"$f":"'[2]EXT Comercio(M)'!E360","v":1064.5999999999999},{"$f":"'[2]EXT Comercio(M)'!F360","v":805.0031089381655},{"$f":"'[2]EXT Comercio(M)'!G360","v":484.89829120000002},{"$f":"'[2]EXT Comercio(M)'!H360","v":985.9},{"$f":"'[2]EXT Comercio(M)'!I360","v":904.99},{"$f":"'[2]EXT Comercio(M)'!K360","v":4901.0887992081662},{"$f":"'[2]EXT Comercio(M)'!L360","v":5806.0787992081659},null,null,{"$f":"'[2]EXT Comercio(M)'!AG360","v":1432.3705652899998},{"$f":"'[2]EXT Comercio(M)'!AH360","v":999.92999999999984},{"$f":"'[2]EXT Comercio(M)'!AI360","v":1626.7},{"$f":"'[2]EXT Comercio(M)'!AJ360","v":1115.4776623129226},{"$f":"'[2]EXT Comercio(M)'!AK360","v":506.00887169999999},{"$f":"'[2]EXT Comercio(M)'!AL360","v":1698.9},{"$f":"'[2]EXT Comercio(M)'!AM360","v":1786.5650000000001},{"$f":"'[2]EXT Comercio(M)'!AO360","v":7379.3870993029232},{"$f":"'[2]EXT Comercio(M)'!AP360","v":9165.9520993029219},null,null,{"$f":"'[2]EXT Comercio(M)'!$BS360","v":-2478.298300094757},{"$f":"'[2]EXT Comercio(M)'!$BT360","v":-3359.8733000947577}]
[null,null,"Abril",{"$f":"'[2]REAL IPC(M)'!AD361","v":2.070072322870216},{"$f":"'[2]REAL IPC(M)'!AE361","v":0.8047791372689137},{"$f":"'[2]REAL IPC(M)'!AF361","v":4.7529940119760541},{"$f":"'[2]REAL IPC(M)'!AG361","v":4.8602287166454925},{"$f":"'[2]REAL IPC(M)'!AH361","v":5.7699592597319818},{"$f":"'[2]REAL IPC(M)'!AI361","v":1.6079158936301692},{"$f":"'[2]REAL IPC(M)'!AJ361","v":-9.3922127255461008E-2},null,null,{"$f":"'[2]REAL IMAE(M)'!AG361","v":1.208329224731767},{"$f":"'[2]REAL IMAE(M)'!AH361","v":3.2796748778831404},{"$f":"'[2]REAL IMAE(M)'!AI361","v":3.9219209179067933},{"$f":"'[2]REAL IMAE(M)'!AJ361","v":3.2094278192768813},{"$f":"'[2]REAL IMAE(M)'!AK361","v":-9.8787131581012009},{"$f":"'[2]REAL IMAE(M)'!AL361","v":4.8810527307391478},{"$f":"'[2]REAL IMAE(M)'!AM361","v":3.8711909635143544},null,null,{"$f":"'[2]EXT ITCER(M)'!C361","v":83.503045088416471},{"$f":"'[2]EXT ITCER(M)'!D361","v":95.698243775789592},{"$f":"'[2]EXT ITCER(M)'!E361","v":53.628617189049891},{"$f":"'[2]EXT ITCER(M)'!F361","v":78.728777801696921},{"$f":"'[2]EXT ITCER(M)'!G361","v":106.39573420852859},{"$f":"'[2]EXT ITCER(M)'!H361","v":111.07679861954951},{"$f":"'[2]EXT ITCER(M)'!I361","v":92.279974457675394},null,null,{"$f":"'[2]EXT TC(M)'!J361","v":6.1424251408241499},{"$f":"'[2]EXT TC(M)'!K361","v":0},{"$f":"'[2]EXT TC(M)'!L361","v":3.1228021769944125},{"$f":"'[2]EXT TC(M)'!M361","v":3.3049568235262421},{"$f":"'[2]EXT TC(M)'!N361","v":5.225942062071522},{"$f":"'[2]EXT TC(M)'!O361","v":2.3854237867395689},{"$f":"'[2]EXT TC(M)'!P361","v":0},null,null,{"$f":"'[2]EXT RIN(M)'!C361","v":8138.8918999999996},{"$f":"'[2]EXT RIN(M)'!D361","v":3712.89},{"$f":"'[2]EXT RIN(M)'!E361","v":12845.9},{"$f":"'[2]EXT RIN(M)'!F361","v":4950.8},{"$f":"'[2]EXT RIN(M)'!G361","v":1968.8000000000002},{"$f":"'[2]EXT RIN(M)'!H361","v":7275.4016782442932},{"$f":"'[2]EXT RIN(M)'!I361","v":2979.7113331100004},null,null,{"$f":"'[2]EXT RIN(M)'!P361","v":75.55809632803637},{"$f":"'[2]EXT RIN(M)'!Q361","v":100.92463074299364},{"$f":"'[2]EXT RIN(M)'!R361","v":114.27460359814248},{"$f":"'[2]EXT RIN(M)'!S361","v":97.992487804463451},{"$f":"'[2]EXT RIN(M)'!T361","v":115.17211213908493},{"$f":"'[2]EXT RIN(M)'!U361","v":94.491658896647124},{"$f":"'[2]EXT RIN(M)'!V361","v":181.79646453501937},null,null,{"$f":"+'[2]MONE(M)CAPARD'!AE361","v":3.9971830961616948},{"$f":"'[2]MONE(M)CAPARD'!AF361","v":3.407795634424478},{"$f":"'[2]MONE(M)CAPARD'!AG361","v":0.24534476598784666},{"$f":"'[2]MONE(M)CAPARD'!AH361","v":3.356631323841258},{"$f":"'[2]MONE(M)CAPARD'!AI361","v":7.6158335572850691},{"$f":"'[2]MONE(M)CAPARD'!AJ361","v":5.2871708460134013},{"$f":"'[2]MONE(M)CAPARD'!AK361","v":2.2260128458732851},null,null,{"$f":"'[2]MONE(M)CAPARD'!AL361","v":4.2974513300000003},{"$f":"'[2]MONE(M)CAPARD'!AM361","v":4.24},{"$f":"'[2]MONE(M)CAPARD'!AN361","v":3.14},{"$f":"'[2]MONE(M)CAPARD'!AO361","v":3.74},{"$f":"'[2]MONE(M)CAPARD'!AP361","v":6.1803796302169323},{"$f":"'[2]MONE(M)CAPARD'!AQ361","v":1.9298999999999999},{"$f":"'[2]MONE(M)CAPARD'!AR361","v":2.13},null,null,{"$f":"'[2]MONE(M)CAPARD'!J361","v":11.257476002155407},{"$f":"'[2]MONE(M)CAPARD'!K361","v":5.719193982738072},{"$f":"'[2]MONE(M)CAPARD'!L361","v":7.6341550553769135},{"$f":"'[2]MONE(M)CAPARD'!M361","v":11.872729475916385},{"$f":"'[2]MONE(M)CAPARD'!N361","v":12.374495538853806},{"$f":"'[2]MONE(M)CAPARD'!O361","v":11.591699330493011},{"$f":"'[2]MONE(M)CAPARD'!P361","v":6.6501681066072509},null,null,{"$f":"'[2]MONE(M)CAPARD'!Q361","v":7.8117478399999998},{"$f":"'[2]MONE(M)CAPARD'!R361","v":6.57},{"$f":"'[2]MONE(M)CAPARD'!S361","v":6.6},{"$f":"'[2]MONE(M)CAPARD'!T361","v":8.17},{"$f":"'[2]MONE(M)CAPARD'!U361","v":11.494728606171783},{"$f":"'[2]MONE(M)CAPARD'!V361","v":5.4684999999999997},{"$f":"'[2]MONE(M)CAPARD'!W361","v":6.55},null,null,{"$f":"'[2]MONE(M)CAPARD'!AS361","v":5},{"$f":"'[2]MONE(M)CAPARD'!AT361","v":"n.a."},{"$f":"'[2]MONE(M)CAPARD'!AU361","v":2.75},{"$f":"'[2]MONE(M)CAPARD'!AV361","v":5.75},{"$f":"'[2]MONE(M)CAPARD'!AW361","v":"n.a."},{"$f":"'[2]MONE(M)CAPARD'!AX361","v":5.5},{"$f":"'[2]MONE(M)CAPARD'!AY361","v":"n.a."},null,null,{"$f":"+'Datos_Regional (M)'!CF354","v":4.1229420693254859},{"$f":"+'Datos_Regional (M)'!CG354","v":6.9514070717207943},{"$f":"+'Datos_Regional (M)'!CH354","v":4.6301586152399654},{"$f":"+'Datos_Regional (M)'!CI354","v":13.348052936119048},{"$f":"+'Datos_Regional (M)'!CJ354","v":-19.648706478528645},{"$f":"+'Datos_Regional (M)'!CK354","v":10.926092435861223},{"$f":"+'Datos_Regional (M)'!CL354","v":3.1895898407427126},null,null,942.0242235383331,486.32333333333327,907.04166666666663,708.89603704123658,441.46080580291664,896.28333333333342,905.96326325000007,4382.0293997158196,5287.9926629658203,null,null,1375.4182971574999,969.04083333333358,1661.0083333333334,1148.9349680441885,518.60386900333333,1699.7666666666667,1888.2019367499997,7372.7729675383553,9260.9749042883559,null,null,-2990.7435678225356,-3972.9822413225352,null,null,{"$f":"'[2]EXT Comercio(M)'!C361","v":952.8098308499998},{"$f":"'[2]EXT Comercio(M)'!D361","v":466.11000000000013},{"$f":"'[2]EXT Comercio(M)'!E361","v":917},{"$f":"'[2]EXT Comercio(M)'!F361","v":725.69282096425172},{"$f":"'[2]EXT Comercio(M)'!G361","v":459.76985521999995},{"$f":"'[2]EXT Comercio(M)'!H361","v":856.7},{"$f":"'[2]EXT Comercio(M)'!I361","v":841.13400000000001},{"$f":"'[2]EXT Comercio(M)'!K361","v":4378.0825070342544},{"$f":"'[2]EXT Comercio(M)'!L361","v":5219.2165070342544},null,null,{"$f":"'[2]EXT Comercio(M)'!AG361","v":1314.6965155399998},{"$f":"'[2]EXT Comercio(M)'!AH361","v":948.65999999999985},{"$f":"'[2]EXT Comercio(M)'!AI361","v":1622.4},{"$f":"'[2]EXT Comercio(M)'!AJ361","v":1102.4362224671572},{"$f":"'[2]EXT Comercio(M)'!AK361","v":553.70099944999993},{"$f":"'[2]EXT Comercio(M)'!AL361","v":1603.7000000000003},{"$f":"'[2]EXT Comercio(M)'!AM361","v":1940.692},{"$f":"'[2]EXT Comercio(M)'!AO361","v":7145.5937374571586},{"$f":"'[2]EXT Comercio(M)'!AP361","v":9086.2857374571613},null,null,{"$f":"'[2]EXT Comercio(M)'!$BS361","v":-2767.511230422906},{"$f":"'[2]EXT Comercio(M)'!$BT361","v":-3867.0692304229051}]
[null,null,"Mayo ",{"$f":"'[2]REAL IPC(M)'!AD362","v":2.3219000529435876},{"$f":"'[2]REAL IPC(M)'!AE362","v":0.8050263134421497},{"$f":"'[2]REAL IPC(M)'!AF362","v":4.5369887506518634},{"$f":"'[2]REAL IPC(M)'!AG362","v":5.1412250079339854},{"$f":"'[2]REAL IPC(M)'!AH362","v":5.9949961396103735},{"$f":"'[2]REAL IPC(M)'!AI362","v":1.3107170393215433},{"$f":"'[2]REAL IPC(M)'!AJ362","v":-4.5584045584074308E-3},null,null,{"$f":"'[2]REAL IMAE(M)'!AG362","v":1.005924785645397},{"$f":"'[2]REAL IMAE(M)'!AH362","v":2.9843893451183665},{"$f":"'[2]REAL IMAE(M)'!AI362","v":3.9060865524487309},{"$f":"'[2]REAL IMAE(M)'!AJ362","v":3.1114748103952996},{"$f":"'[2]REAL IMAE(M)'!AK362","v":-2.3237100433956175},{"$f":"'[2]REAL IMAE(M)'!AL362","v":4.7347512171271511},{"$f":"'[2]REAL IMAE(M)'!AM362","v":4.6174689405372362},null,null,{"$f":"'[2]EXT ITCER(M)'!C362","v":82.308066611270561},{"$f":"'[2]EXT ITCER(M)'!D362","v":95.608090095570802},{"$f":"'[2]EXT ITCER(M)'!E362","v":53.698915120313877},{"$f":"'[2]EXT ITCER(M)'!F362","v":78.546266973483668},{"$f":"'[2]EXT ITCER(M)'!G362","v":106.07391895714279},{"$f":"'[2]EXT ITCER(M)'!H362","v":111.1685430156779},{"$f":"'[2]EXT ITCER(M)'!I362","v":92.22604541175923},null,null,{"$f":"'[2]EXT TC(M)'!J362","v":4.7445816791141917},{"$f":"'[2]EXT TC(M)'!K362","v":0},{"$f":"'[2]EXT TC(M)'!L362","v":3.018513333046136},{"$f":"'[2]EXT TC(M)'!M362","v":2.7557177720583468},{"$f":"'[2]EXT TC(M)'!N362","v":4.8068808565630867},{"$f":"'[2]EXT TC(M)'!O362","v":2.343141338470339},{"$f":"'[2]EXT TC(M)'!P362","v":0},null,null,{"$f":"'[2]EXT RIN(M)'!C362","v":7739.3371999999999},{"$f":"'[2]EXT RIN(M)'!D362","v":3765.82},{"$f":"'[2]EXT RIN(M)'!E362","v":14070.1},{"$f":"'[2]EXT RIN(M)'!F362","v":5028.6000000000004},{"$f":"'[2]EXT RIN(M)'!G362","v":1947.8000000000002},{"$f":"'[2]EXT RIN(M)'!H362","v":6980.5},{"$f":"'[2]EXT RIN(M)'!I362","v":2797.80935404},null,null,{"$f":"'[2]EXT RIN(M)'!P362","v":72.003811441648466},{"$f":"'[2]EXT RIN(M)'!Q362","v":106.36945067975476},{"$f":"'[2]EXT RIN(M)'!R362","v":127.64470902345639},{"$f":"'[2]EXT RIN(M)'!S362","v":99.891590463079055},{"$f":"'[2]EXT RIN(M)'!T362","v":114.38543145820013},{"$f":"'[2]EXT RIN(M)'!U362","v":101.07868122683858},{"$f":"'[2]EXT RIN(M)'!V362","v":173.57469265135131},null,null,{"$f":"+'[2]MONE(M)CAPARD'!AE362","v":3.8878284560764178},{"$f":"'[2]MONE(M)CAPARD'!AF362","v":3.4075420762028048},{"$f":"'[2]MONE(M)CAPARD'!AG362","v":0.53857611174458619},{"$f":"'[2]MONE(M)CAPARD'!AH362","v":3.1089375188650807},{"$f":"'[2]MONE(M)CAPARD'!AI362","v":5.241411760583035},{"$f":"'[2]MONE(M)CAPARD'!AJ362","v":5.3019888888888547},{"$f":"'[2]MONE(M)CAPARD'!AK362","v":2.1946584459690501},null,null,{"$f":"'[2]MONE(M)CAPARD'!AL362","v":3.8924265299999998},{"$f":"'[2]MONE(M)CAPARD'!AM362","v":4.24},{"$f":"'[2]MONE(M)CAPARD'!AN362","v":3.17},{"$f":"'[2]MONE(M)CAPARD'!AO362","v":3.75},{"$f":"'[2]MONE(M)CAPARD'!AP362","v":6.1536541328112122},{"$f":"'[2]MONE(M)CAPARD'!AQ362","v":1.5387},{"$f":"'[2]MONE(M)CAPARD'!AR362","v":2.19},null,null,{"$f":"'[2]MONE(M)CAPARD'!J362","v":11.600586571315276},{"$f":"'[2]MONE(M)CAPARD'!K362","v":5.8776570010852405},{"$f":"'[2]MONE(M)CAPARD'!L362","v":7.8469940136830125},{"$f":"'[2]MONE(M)CAPARD'!M362","v":11.573742831270753},{"$f":"'[2]MONE(M)CAPARD'!N362","v":11.997769591071775},{"$f":"'[2]MONE(M)CAPARD'!O362","v":10.938411339421577},{"$f":"'[2]MONE(M)CAPARD'!P362","v":6.6248603924965277},null,null,{"$f":"'[2]MONE(M)CAPARD'!Q362","v":9.0250436100000009},{"$f":"'[2]MONE(M)CAPARD'!R362","v":6.73},{"$f":"'[2]MONE(M)CAPARD'!S362","v":6.59},{"$f":"'[2]MONE(M)CAPARD'!T362","v":8.2100000000000009},{"$f":"'[2]MONE(M)CAPARD'!U362","v":12.406844829981461},{"$f":"'[2]MONE(M)CAPARD'!V362","v":5.7721},{"$f":"'[2]MONE(M)CAPARD'!W362","v":6.62},null,null,{"$f":"'[2]MONE(M)CAPARD'!AS362","v":4.75},{"$f":"'[2]MONE(M)CAPARD'!AT362","v":"n.a."},{"$f":"'[2]MONE(M)CAPARD'!AU362","v":2.75},{"$f":"'[2]MONE(M)CAPARD'!AV362","v":5.75},{"$f":"'[2]MONE(M)CAPARD'!AW362","v":"n.a."},{"$f":"'[2]MONE(M)CAPARD'!AX362","v":5.5},{"$f":"'[2]MONE(M)CAPARD'!AY362","v":"n.a."},null,null,{"$f":"+'Datos_Regional (M)'!CF355","v":3.5634344941058771},{"$f":"+'Datos_Regional (M)'!CG355","v":6.5405300567834335},{"$f":"+'Datos_Regional (M)'!CH355","v":4.6913092802999712},{"$f":"+'Datos_Regional (M)'!CI355","v":12.601944104679674},{"$f":"+'Datos_Regional (M)'!CJ355","v":-21.287370857682063},{"$f":"+'Datos_Regional (M)'!CK355","v":10.507622752360945},{"$f":"+'Datos_Regional (M)'!CL355","v":2.1178469732963334},null,null,941.54867151499991,489.15916666666664,906.33333333333337,712.31782954593382,441.86871128708327,899.61666666666679,913.3683049166666,4390.8443790146839,5304.2126839313505,null,null,1366.0774777691668,977.57916666666699,1652.1833333333334,1140.0985693507971,509.0380467458333,1716.9333333333336,1882.0056326666665,7361.909927199129,9243.9155598657981,null,null,-2971.0655481844465,-3939.7028759344466,null,null,{"$f":"'[2]EXT Comercio(M)'!C362","v":1058.7601822100003},{"$f":"'[2]EXT Comercio(M)'!D362","v":546.82999999999993},{"$f":"'[2]EXT Comercio(M)'!E362","v":948.3},{"$f":"'[2]EXT Comercio(M)'!F362","v":822.52838199895837},{"$f":"'[2]EXT Comercio(M)'!G362","v":474.35289147999993},{"$f":"'[2]EXT Comercio(M)'!H362","v":1016.1999999999999},{"$f":"'[2]EXT Comercio(M)'!I362","v":998.63100000000009},{"$f":"'[2]EXT Comercio(M)'!K362","v":4866.9714556889521},{"$f":"'[2]EXT Comercio(M)'!L362","v":5865.6024556889533},null,null,{"$f":"'[2]EXT Comercio(M)'!AG362","v":1394.6104255600005},{"$f":"'[2]EXT Comercio(M)'!AH362","v":1075.6300000000001},{"$f":"'[2]EXT Comercio(M)'!AI362","v":1775.2},{"$f":"'[2]EXT Comercio(M)'!AJ362","v":1144.3442695737861},{"$f":"'[2]EXT Comercio(M)'!AK362","v":505.29995943999995},{"$f":"'[2]EXT Comercio(M)'!AL362","v":1914.9},{"$f":"'[2]EXT Comercio(M)'!AM362","v":1853.3720000000001},{"$f":"'[2]EXT Comercio(M)'!AO362","v":7809.9846545737819},{"$f":"'[2]EXT Comercio(M)'!AP362","v":9663.3566545737776},null,null,{"$f":"'[2]EXT Comercio(M)'!$BS362","v":-2943.0131988848261},{"$f":"'[2]EXT Comercio(M)'!$BT362","v":-3797.7541988848261}]
[null,null,"Junio",{"$f":"'[2]REAL IPC(M)'!AD363","v":2.4213709456570536},{"$f":"'[2]REAL IPC(M)'!AE363","v":0.52955460538036259},{"$f":"'[2]REAL IPC(M)'!AF363","v":4.8},{"$f":"'[2]REAL IPC(M)'!AG363","v":4.8040455120101289},{"$f":"'[2]REAL IPC(M)'!AH363","v":5.625585579852407},{"$f":"'[2]REAL IPC(M)'!AI363","v":0.91559590674772584},{"$f":"'[2]REAL IPC(M)'!AJ363","v":-0.54019987395336977},null,null,{"$f":"'[2]REAL IMAE(M)'!AG363","v":0.92939463365514818},{"$f":"'[2]REAL IMAE(M)'!AH363","v":2.2308262648563986},{"$f":"'[2]REAL IMAE(M)'!AI363","v":3.916298128481817},{"$f":"'[2]REAL IMAE(M)'!AJ363","v":3.0374011664109815},{"$f":"'[2]REAL IMAE(M)'!AK363","v":-2.6448767541505913},{"$f":"'[2]REAL IMAE(M)'!AL363","v":4.6565105947858196},{"$f":"'[2]REAL IMAE(M)'!AM363","v":4.7727432218548769},null,null,{"$f":"'[2]EXT ITCER(M)'!C363","v":81.240225914476255},{"$f":"'[2]EXT ITCER(M)'!D363","v":95.692846706967316},{"$f":"'[2]EXT ITCER(M)'!E363","v":53.450078149777013},{"$f":"'[2]EXT ITCER(M)'!F363","v":78.588324329780463},{"$f":"'[2]EXT ITCER(M)'!G363","v":106.46703670440679},{"$f":"'[2]EXT ITCER(M)'!H363","v":111.639494307771},{"$f":"'[2]EXT ITCER(M)'!I363","v":92.484997558399272},null,null,{"$f":"'[2]EXT TC(M)'!J363","v":3.3365630594170601},{"$f":"'[2]EXT TC(M)'!K363","v":0},{"$f":"'[2]EXT TC(M)'!L363","v":2.8629298377369707},{"$f":"'[2]EXT TC(M)'!M363","v":2.3075574259162024},{"$f":"'[2]EXT TC(M)'!N363","v":4.586470077768527},{"$f":"'[2]EXT TC(M)'!O363","v":2.621259783197246},{"$f":"'[2]EXT TC(M)'!P363","v":0},null,null,{"$f":"'[2]EXT RIN(M)'!C363","v":7793.1674999999996},{"$f":"'[2]EXT RIN(M)'!D363","v":3757},{"$f":"'[2]EXT RIN(M)'!E363","v":14279.8},{"$f":"'[2]EXT RIN(M)'!F363","v":5062.8999999999996},{"$f":"'[2]EXT RIN(M)'!G363","v":1978.8000000000002},{"$f":"'[2]EXT RIN(M)'!H363","v":8711.6},{"$f":"'[2]EXT RIN(M)'!I363","v":2923.7763551100002},null,null,{"$f":"'[2]EXT RIN(M)'!P363","v":71.455351000241151},{"$f":"'[2]EXT RIN(M)'!Q363","v":106.29698591317374},{"$f":"'[2]EXT RIN(M)'!R363","v":125.13672073527692},{"$f":"'[2]EXT RIN(M)'!S363","v":97.467565845873111},{"$f":"'[2]EXT RIN(M)'!T363","v":119.31034301606552},{"$f":"'[2]EXT RIN(M)'!U363","v":123.55040261874409},{"$f":"'[2]EXT RIN(M)'!V363","v":172.27840008683063},null,null,{"$f":"+'[2]MONE(M)CAPARD'!AE363","v":4.031023033790011},{"$f":"'[2]MONE(M)CAPARD'!AF363","v":3.7704786512769175},{"$f":"'[2]MONE(M)CAPARD'!AG363","v":0.26717557251908419},{"$f":"'[2]MONE(M)CAPARD'!AH363","v":3.4406634499396715},{"$f":"'[2]MONE(M)CAPARD'!AI363","v":5.8953142759041057},{"$f":"'[2]MONE(M)CAPARD'!AJ363","v":5.0052759911558251},{"$f":"'[2]MONE(M)CAPARD'!AK363","v":2.7751914546935899},null,null,{"$f":"'[2]MONE(M)CAPARD'!AL363","v":3.7180350999999998},{"$f":"'[2]MONE(M)CAPARD'!AM363","v":4.32},{"$f":"'[2]MONE(M)CAPARD'!AN363","v":3.19},{"$f":"'[2]MONE(M)CAPARD'!AO363","v":3.76},{"$f":"'[2]MONE(M)CAPARD'!AP363","v":5.9114598359687873},{"$f":"'[2]MONE(M)CAPARD'!AQ363","v":1.7053},{"$f":"'[2]MONE(M)CAPARD'!AR363","v":2.2200000000000002},null,null,{"$f":"'[2]MONE(M)CAPARD'!J363","v":10.616546062552013},{"$f":"'[2]MONE(M)CAPARD'!K363","v":5.9588898191527724},{"$f":"'[2]MONE(M)CAPARD'!L363","v":7.58587786259542},{"$f":"'[2]MONE(M)CAPARD'!M363","v":11.989951749095281},{"$f":"'[2]MONE(M)CAPARD'!N363","v":12.586404845838635},{"$f":"'[2]MONE(M)CAPARD'!O363","v":10.807055138761802},{"$f":"'[2]MONE(M)CAPARD'!P363","v":7.2795238526296808},null,null,{"$f":"'[2]MONE(M)CAPARD'!Q363","v":8.7755948799999999},{"$f":"'[2]MONE(M)CAPARD'!R363","v":6.52},{"$f":"'[2]MONE(M)CAPARD'!S363","v":6.57},{"$f":"'[2]MONE(M)CAPARD'!T363","v":8.2100000000000009},{"$f":"'[2]MONE(M)CAPARD'!U363","v":11.697538437867497},{"$f":"'[2]MONE(M)CAPARD'!V363","v":5.5815000000000001},{"$f":"'[2]MONE(M)CAPARD'!W363","v":6.7},null,null,{"$f":"'[2]MONE(M)CAPARD'!AS363","v":4.5},{"$f":"'[2]MONE(M)CAPARD'!AT363","v":"n.a."},{"$f":"'[2]MONE(M)CAPARD'!AU363","v":2.75},{"$f":"'[2]MONE(M)CAPARD'!AV363","v":5.75},{"$f":"'[2]MONE(M)CAPARD'!AW363","v":"n.a."},{"$f":"'[2]MONE(M)CAPARD'!AX363","v":5.5},{"$f":"'[2]MONE(M)CAPARD'!AY363","v":"n.a."},null,null,{"$f":"+'Datos_Regional (M)'!CF356","v":3.011213400324686},{"$f":"+'Datos_Regional (M)'!CG356","v":6.5347455390516007},{"$f":"+'Datos_Regional (M)'!CH356","v":4.8964310664277644},{"$f":"+'Datos_Regional (M)'!CI356","v":12.343982788432562},{"$f":"+'Datos_Regional (M)'!CJ356","v":-20.463949156029415},{"$f":"+'Datos_Regional (M)'!CK356","v":11.566818064480167},{"$f":"+'Datos_Regional (M)'!CL356","v":2.3063344060075819},null,null,940.97766971166664,488.97166666666664,910.16666666666663,713.43024021031113,450.27475919958334,901.91666666666663,897.90619983333318,4405.7376691215613,5303.643868954895,null,null,1353.9353832916665,972.17083333333358,1645.5250000000003,1129.5516316935348,514.91612579749994,1706.3166666666666,1879.8798161666664,7322.4156407827004,9202.2954569493686,null,null,-2916.6779716611404,-3898.6515879944732,null,null,{"$f":"'[2]EXT Comercio(M)'!C363","v":967.30534213999999},{"$f":"'[2]EXT Comercio(M)'!D363","v":530.14999999999964},{"$f":"'[2]EXT Comercio(M)'!E363","v":952.90000000000009},{"$f":"'[2]EXT Comercio(M)'!F363","v":754.89120662820415},{"$f":"'[2]EXT Comercio(M)'!G363","v":485.21105012999999},{"$f":"'[2]EXT Comercio(M)'!H363","v":943.7},{"$f":"'[2]EXT Comercio(M)'!I363","v":911.90700000000004},{"$f":"'[2]EXT Comercio(M)'!K363","v":4634.1575988982077},{"$f":"'[2]EXT Comercio(M)'!L363","v":5546.0645988982069},null,null,{"$f":"'[2]EXT Comercio(M)'!AG363","v":1231.5057836999997},{"$f":"'[2]EXT Comercio(M)'!AH363","v":928.51999999999953},{"$f":"'[2]EXT Comercio(M)'!AI363","v":1525.3000000000002},{"$f":"'[2]EXT Comercio(M)'!AJ363","v":1026.1652266602437},{"$f":"'[2]EXT Comercio(M)'!AK363","v":509.03145271000005},{"$f":"'[2]EXT Comercio(M)'!AL363","v":1620.6},{"$f":"'[2]EXT Comercio(M)'!AM363","v":1872.069},{"$f":"'[2]EXT Comercio(M)'!AO363","v":6841.1224630702418},{"$f":"'[2]EXT Comercio(M)'!AP363","v":8713.1914630702449},null,null,{"$f":"'[2]EXT Comercio(M)'!$BS363","v":-2206.9648641720396},{"$f":"'[2]EXT Comercio(M)'!$BT363","v":-3167.126864172038}]
[null,null,"Julio",{"$f":"'[2]REAL IPC(M)'!AD364","v":2.8892280164944131},{"$f":"'[2]REAL IPC(M)'!AE364","v":0.12787884718021925},{"$f":"'[2]REAL IPC(M)'!AF364","v":4.3696486566282955},{"$f":"'[2]REAL IPC(M)'!AG364","v":4.6914357682619574},{"$f":"'[2]REAL IPC(M)'!AH364","v":6.0848492114204475},{"$f":"'[2]REAL IPC(M)'!AI364","v":1.400538668718774},{"$f":"'[2]REAL IPC(M)'!AJ364","v":-0.26550829191878211},null,null,{"$f":"'[2]REAL IMAE(M)'!AG364","v":1.0278000841377908},{"$f":"'[2]REAL IMAE(M)'!AH364","v":1.8723735296804149},{"$f":"'[2]REAL IMAE(M)'!AI364","v":3.888268792021317},{"$f":"'[2]REAL IMAE(M)'!AJ364","v":2.9122189372703016},{"$f":"'[2]REAL IMAE(M)'!AK364","v":-2.6189625805580574},{"$f":"'[2]REAL IMAE(M)'!AL364","v":4.8132673867673104},{"$f":"'[2]REAL IMAE(M)'!AM364","v":4.3291514238590514},null,null,{"$f":"'[2]EXT ITCER(M)'!C364","v":79.515995001684146},{"$f":"'[2]EXT ITCER(M)'!D364","v":96.137767496218444},{"$f":"'[2]EXT ITCER(M)'!E364","v":53.390259673527503},{"$f":"'[2]EXT ITCER(M)'!F364","v":78.518463931397534},{"$f":"'[2]EXT ITCER(M)'!G364","v":106.559814172282},{"$f":"'[2]EXT ITCER(M)'!H364","v":111.7930797511973},{"$f":"'[2]EXT ITCER(M)'!I364","v":92.471581787889747},null,null,{"$f":"'[2]EXT TC(M)'!J364","v":1.733538591441989},{"$f":"'[2]EXT TC(M)'!K364","v":0},{"$f":"'[2]EXT TC(M)'!L364","v":2.5372068757207873},{"$f":"'[2]EXT TC(M)'!M364","v":2.1400434741659877},{"$f":"'[2]EXT TC(M)'!N364","v":4.3189491769875046},{"$f":"'[2]EXT TC(M)'!O364","v":2.6761529519420986},{"$f":"'[2]EXT TC(M)'!P364","v":0},null,null,{"$f":"'[2]EXT RIN(M)'!C364","v":7877.6172999999999},{"$f":"'[2]EXT RIN(M)'!D364","v":3693.67},{"$f":"'[2]EXT RIN(M)'!E364","v":14386.4},{"$f":"'[2]EXT RIN(M)'!F364","v":5068.3},{"$f":"'[2]EXT RIN(M)'!G364","v":1973.5},{"$f":"'[2]EXT RIN(M)'!H364","v":8214.9557832058163},{"$f":"'[2]EXT RIN(M)'!I364","v":3899.8993976000002},null,null,{"$f":"'[2]EXT RIN(M)'!P364","v":71.433442487750398},{"$f":"'[2]EXT RIN(M)'!Q364","v":100.99991742095243},{"$f":"'[2]EXT RIN(M)'!R364","v":124.69034724443659},{"$f":"'[2]EXT RIN(M)'!S364","v":97.307472153331545},{"$f":"'[2]EXT RIN(M)'!T364","v":122.95836414740091},{"$f":"'[2]EXT RIN(M)'!U364","v":111.36410420412291},{"$f":"'[2]EXT RIN(M)'!V364","v":235.12441442141369},null,null,{"$f":"+'[2]MONE(M)CAPARD'!AE364","v":3.1206104326012247},{"$f":"'[2]MONE(M)CAPARD'!AF364","v":4.1767799347899164},{"$f":"'[2]MONE(M)CAPARD'!AG364","v":0.63270438472417645},{"$f":"'[2]MONE(M)CAPARD'!AH364","v":3.5805834586466232},{"$f":"'[2]MONE(M)CAPARD'!AI364","v":6.3847760896161319},{"$f":"'[2]MONE(M)CAPARD'!AJ364","v":4.4158161189951821},{"$f":"'[2]MONE(M)CAPARD'!AK364","v":2.4520186046334755},null,null,{"$f":"'[2]MONE(M)CAPARD'!AL364","v":3.4831547999999999},{"$f":"'[2]MONE(M)CAPARD'!AM364","v":4.3099999999999996},{"$f":"'[2]MONE(M)CAPARD'!AN364","v":3.19},{"$f":"'[2]MONE(M)CAPARD'!AO364","v":3.75},{"$f":"'[2]MONE(M)CAPARD'!AP364","v":5.7018070665093505},{"$f":"'[2]MONE(M)CAPARD'!AQ364","v":1.7402},{"$f":"'[2]MONE(M)CAPARD'!AR364","v":2.1800000000000002},null,null,{"$f":"'[2]MONE(M)CAPARD'!J364","v":10.446947577235614},{"$f":"'[2]MONE(M)CAPARD'!K364","v":6.4938169345858388},{"$f":"'[2]MONE(M)CAPARD'!L364","v":8.048653465346522},{"$f":"'[2]MONE(M)CAPARD'!M364","v":12.033996992481208},{"$f":"'[2]MONE(M)CAPARD'!N364","v":9.4126896039681309},{"$f":"'[2]MONE(M)CAPARD'!O364","v":11.081855657585148},{"$f":"'[2]MONE(M)CAPARD'!P364","v":8.0869798941034308},null,null,{"$f":"'[2]MONE(M)CAPARD'!Q364","v":8.7188317699999995},{"$f":"'[2]MONE(M)CAPARD'!R364","v":6.63},{"$f":"'[2]MONE(M)CAPARD'!S364","v":6.53},{"$f":"'[2]MONE(M)CAPARD'!T364","v":8.24},{"$f":"'[2]MONE(M)CAPARD'!U364","v":11.577063060639652},{"$f":"'[2]MONE(M)CAPARD'!V364","v":5.4332000000000003},{"$f":"'[2]MONE(M)CAPARD'!W364","v":7.8},null,null,{"$f":"'[2]MONE(M)CAPARD'!AS364","v":4},{"$f":"'[2]MONE(M)CAPARD'!AT364","v":"n.a."},{"$f":"'[2]MONE(M)CAPARD'!AU364","v":2.75},{"$f":"'[2]MONE(M)CAPARD'!AV364","v":5.75},{"$f":"'[2]MONE(M)CAPARD'!AW364","v":"n.a."},{"$f":"'[2]MONE(M)CAPARD'!AX364","v":5},{"$f":"'[2]MONE(M)CAPARD'!AY364","v":"n.a."},null,null,{"$f":"+'Datos_Regional (M)'!CF357","v":1.4301269089084245},{"$f":"+'Datos_Regional (M)'!CG357","v":6.0544514801203375},{"$f":"+'Datos_Regional (M)'!CH357","v":4.996561155758239},{"$f":"+'Datos_Regional (M)'!CI357","v":11.714188181475516},{"$f":"+'Datos_Regional (M)'!CJ357","v":-21.173511787386467},{"$f":"+'Datos_Regional (M)'!CK357","v":11.429621385980848},{"$f":"+'Datos_Regional (M)'!CL357","v":1.9793777796590195},null,null,940.80852784333331,491.59499999999986,911.83333333333337,717.0317300346984,451.87782203375008,906.22500000000002,900.06116683333323,4419.3714132451141,5319.4325800784491,null,null,1346.9340452683334,979.79083333333347,1649.3333333333333,1130.2452465835606,517.76358610916657,1710.2916666666667,1865.4391189166665,7334.3587112943933,9199.7978302110641,null,null,-2914.9872980492787,-3880.3652501326123,null,null,{"$f":"'[2]EXT Comercio(M)'!C364","v":922.7799850399997},{"$f":"'[2]EXT Comercio(M)'!D364","v":543.13000000000011},{"$f":"'[2]EXT Comercio(M)'!E364","v":919},{"$f":"'[2]EXT Comercio(M)'!F364","v":768.45834245114111},{"$f":"'[2]EXT Comercio(M)'!G364","v":504.37443535000006},{"$f":"'[2]EXT Comercio(M)'!H364","v":986.4},{"$f":"'[2]EXT Comercio(M)'!I364","v":1052.57},{"$f":"'[2]EXT Comercio(M)'!K364","v":4644.1427628411438},{"$f":"'[2]EXT Comercio(M)'!L364","v":5696.7127628411472},null,null,{"$f":"'[2]EXT Comercio(M)'!AG364","v":1346.7403480299997},{"$f":"'[2]EXT Comercio(M)'!AH364","v":1037.0400000000009},{"$f":"'[2]EXT Comercio(M)'!AI364","v":1704},{"$f":"'[2]EXT Comercio(M)'!AJ364","v":1176.0728558485953},{"$f":"'[2]EXT Comercio(M)'!AK364","v":520.21076199999993},{"$f":"'[2]EXT Comercio(M)'!AL364","v":1817.8000000000002},{"$f":"'[2]EXT Comercio(M)'!AM364","v":1945.3180000000002},{"$f":"'[2]EXT Comercio(M)'!AO364","v":7601.8639658786051},{"$f":"'[2]EXT Comercio(M)'!AP364","v":9547.1819658786044},null,null,{"$f":"'[2]EXT Comercio(M)'!$BS364","v":-2957.7212030374576},{"$f":"'[2]EXT Comercio(M)'!$BT364","v":-3850.4692030374572}]
[null,null,"Agosto",{"$f":"'[2]REAL IPC(M)'!AD365","v":2.8558096363562626},{"$f":"'[2]REAL IPC(M)'!AE365","v":-0.48806414692572797},{"$f":"'[2]REAL IPC(M)'!AF365","v":3.0129335684891316},{"$f":"'[2]REAL IPC(M)'!AG365","v":4.2946708463949808},{"$f":"'[2]REAL IPC(M)'!AH365","v":6.3016169456871536},{"$f":"'[2]REAL IPC(M)'!AI365","v":1.7155165781983328},{"$f":"'[2]REAL IPC(M)'!AJ365","v":-0.60515318354545367},null,null,{"$f":"'[2]REAL IMAE(M)'!AG365","v":1.2405859148988732},{"$f":"'[2]REAL IMAE(M)'!AH365","v":2.0367984270989528},{"$f":"'[2]REAL IMAE(M)'!AI365","v":3.8938236376775377},{"$f":"'[2]REAL IMAE(M)'!AJ365","v":2.7930909159334982},{"$f":"'[2]REAL IMAE(M)'!AK365","v":-2.1976578508118716},{"$f":"'[2]REAL IMAE(M)'!AL365","v":5.181963315276338},{"$f":"'[2]REAL IMAE(M)'!AM365","v":3.6258957627330042},null,null,{"$f":"'[2]EXT ITCER(M)'!C365","v":78.527319621126196},{"$f":"'[2]EXT ITCER(M)'!D365","v":96.625065128516866},{"$f":"'[2]EXT ITCER(M)'!E365","v":53.918125388595953},{"$f":"'[2]EXT ITCER(M)'!F365","v":78.718038752494337},{"$f":"'[2]EXT ITCER(M)'!G365","v":107.00965717971989},{"$f":"'[2]EXT ITCER(M)'!H365","v":112.11327279588819},{"$f":"'[2]EXT ITCER(M)'!I365","v":92.862621971538871},null,null,{"$f":"'[2]EXT TC(M)'!J365","v":8.6150014139244002E-2},{"$f":"'[2]EXT TC(M)'!K365","v":0},{"$f":"'[2]EXT TC(M)'!L365","v":2.1613965577313516},{"$f":"'[2]EXT TC(M)'!M365","v":2.2627662230626711},{"$f":"'[2]EXT TC(M)'!N365","v":4.1785587537698152},{"$f":"'[2]EXT TC(M)'!O365","v":2.8525788231123146},{"$f":"'[2]EXT TC(M)'!P365","v":0},null,null,{"$f":"'[2]EXT RIN(M)'!C365","v":7707.7112999999999},{"$f":"'[2]EXT RIN(M)'!D365","v":4575.57},{"$f":"'[2]EXT RIN(M)'!E365","v":14700.1},{"$f":"'[2]EXT RIN(M)'!F365","v":5063.6000000000004},{"$f":"'[2]EXT RIN(M)'!G365","v":1995.8},{"$f":"'[2]EXT RIN(M)'!H365","v":7899.7222149838335},{"$f":"'[2]EXT RIN(M)'!I365","v":3932.1073723700001},null,null,{"$f":"'[2]EXT RIN(M)'!P365","v":69.7087590764895},{"$f":"'[2]EXT RIN(M)'!Q365","v":125.44947127235977},{"$f":"'[2]EXT RIN(M)'!R365","v":125.61745432092557},{"$f":"'[2]EXT RIN(M)'!S365","v":97.761454315972045},{"$f":"'[2]EXT RIN(M)'!T365","v":126.378574783812},{"$f":"'[2]EXT RIN(M)'!U365","v":107.68050490078073},{"$f":"'[2]EXT RIN(M)'!V365","v":231.74242641412906},null,null,{"$f":"+'[2]MONE(M)CAPARD'!AE365","v":2.9110561418257372},{"$f":"'[2]MONE(M)CAPARD'!AF365","v":4.9019889977097932},{"$f":"'[2]MONE(M)CAPARD'!AG365","v":1.9289484947924023},{"$f":"'[2]MONE(M)CAPARD'!AH365","v":3.936278929966941},{"$f":"'[2]MONE(M)CAPARD'!AI365","v":5.377538908549802},{"$f":"'[2]MONE(M)CAPARD'!AJ365","v":4.2615753895023349},{"$f":"'[2]MONE(M)CAPARD'!AK365","v":2.8423537779201618},null,null,{"$f":"'[2]MONE(M)CAPARD'!AL365","v":3.1644786300000001},{"$f":"'[2]MONE(M)CAPARD'!AM365","v":4.3899999999999997},{"$f":"'[2]MONE(M)CAPARD'!AN365","v":3.19},{"$f":"'[2]MONE(M)CAPARD'!AO365","v":3.74},{"$f":"'[2]MONE(M)CAPARD'!AP365","v":5.9390031513538801},{"$f":"'[2]MONE(M)CAPARD'!AQ365","v":1.7349000000000001},{"$f":"'[2]MONE(M)CAPARD'!AR365","v":2.2200000000000002},null,null,{"$f":"'[2]MONE(M)CAPARD'!J365","v":9.8585651598036055},{"$f":"'[2]MONE(M)CAPARD'!K365","v":7.1529752545818113},{"$f":"'[2]MONE(M)CAPARD'!L365","v":9.4911057212155718},{"$f":"'[2]MONE(M)CAPARD'!M365","v":12.412263300270515},{"$f":"'[2]MONE(M)CAPARD'!N365","v":10.714148561672269},{"$f":"'[2]MONE(M)CAPARD'!O365","v":10.144551951293289},{"$f":"'[2]MONE(M)CAPARD'!P365","v":9.2410758482348978},null,null,{"$f":"'[2]MONE(M)CAPARD'!Q365","v":8.9039776499999999},{"$f":"'[2]MONE(M)CAPARD'!R365","v":6.63},{"$f":"'[2]MONE(M)CAPARD'!S365","v":6.52},{"$f":"'[2]MONE(M)CAPARD'!T365","v":8.23},{"$f":"'[2]MONE(M)CAPARD'!U365","v":11.90008179653824},{"$f":"'[2]MONE(M)CAPARD'!V365","v":5.5617000000000001},{"$f":"'[2]MONE(M)CAPARD'!W365","v":8.58},null,null,{"$f":"'[2]MONE(M)CAPARD'!AS365","v":4},{"$f":"'[2]MONE(M)CAPARD'!AT365","v":"n.a."},{"$f":"'[2]MONE(M)CAPARD'!AU365","v":2.75},{"$f":"'[2]MONE(M)CAPARD'!AV365","v":5.75},{"$f":"'[2]MONE(M)CAPARD'!AW365","v":"n.a."},{"$f":"'[2]MONE(M)CAPARD'!AX365","v":4.75},{"$f":"'[2]MONE(M)CAPARD'!AY365","v":"n.a."},null,null,{"$f":"+'Datos_Regional (M)'!CF358","v":0.78631220841480776},{"$f":"+'Datos_Regional (M)'!CG358","v":5.6012676744183754},{"$f":"+'Datos_Regional (M)'!CH358","v":4.9134014922360469},{"$f":"+'Datos_Regional (M)'!CI358","v":10.491303227709858},{"$f":"+'Datos_Regional (M)'!CJ358","v":-20.784645675963354},{"$f":"+'Datos_Regional (M)'!CK358","v":11.234941765223304},{"$f":"+'Datos_Regional (M)'!CL358","v":1.9732684549969015},null,null,941.54726318833343,490.93250000000006,913.72500000000002,716.81316687609899,451.61233138291664,908.49999999999989,891.69426916666669,4423.1302614473489,5314.8245306140152,null,null,1337.442564665,977.30666666666696,1648.1499999999999,1121.4984088081858,516.69198329999995,1708.6666666666667,1843.0804819166667,7309.7562901065176,9152.836772023189,null,null,-2886.6260286591701,-3838.0122414091707,null,null,{"$f":"'[2]EXT Comercio(M)'!C365","v":956.52046864000022},{"$f":"'[2]EXT Comercio(M)'!D365","v":486.63999999999987},{"$f":"'[2]EXT Comercio(M)'!E365","v":958.3},{"$f":"'[2]EXT Comercio(M)'!F365","v":739.52765573294187},{"$f":"'[2]EXT Comercio(M)'!G365","v":490.10003677999998},{"$f":"'[2]EXT Comercio(M)'!H365","v":920.1},{"$f":"'[2]EXT Comercio(M)'!I365","v":924.89499999999998},{"$f":"'[2]EXT Comercio(M)'!K365","v":4551.1881611529352},{"$f":"'[2]EXT Comercio(M)'!L365","v":5476.0831611529284},null,null,{"$f":"'[2]EXT Comercio(M)'!AG365","v":1297.0858209599999},{"$f":"'[2]EXT Comercio(M)'!AH365","v":982.92999999999938},{"$f":"'[2]EXT Comercio(M)'!AI365","v":1737.6000000000001},{"$f":"'[2]EXT Comercio(M)'!AJ365","v":1135.9711158142823},{"$f":"'[2]EXT Comercio(M)'!AK365","v":537.45804835000001},{"$f":"'[2]EXT Comercio(M)'!AL365","v":1777.7000000000003},{"$f":"'[2]EXT Comercio(M)'!AM365","v":1757.232},{"$f":"'[2]EXT Comercio(M)'!AO365","v":7468.7449851242782},{"$f":"'[2]EXT Comercio(M)'!AP365","v":9225.9769851242818},null,null,{"$f":"'[2]EXT Comercio(M)'!$BS365","v":-2917.5568239713357},{"$f":"'[2]EXT Comercio(M)'!$BT365","v":-3749.8938239713389}]
[null,null,"Setiembre",{"$f":"'[2]REAL IPC(M)'!AD366","v":2.5290714175627027},{"$f":"'[2]REAL IPC(M)'!AE366","v":-0.67894466122739006},{"$f":"'[2]REAL IPC(M)'!AF366","v":1.8043684710351702},{"$f":"'[2]REAL IPC(M)'!AG366","v":4.4186775305546737},{"$f":"'[2]REAL IPC(M)'!AH366","v":5.6241457216649771},{"$f":"'[2]REAL IPC(M)'!AI366","v":2.0216773003305586},{"$f":"'[2]REAL IPC(M)'!AJ366","v":-0.61674560049748905},null,null,{"$f":"'[2]REAL IMAE(M)'!AG366","v":1.5857471313595446},{"$f":"'[2]REAL IMAE(M)'!AH366","v":2.5716531595015248},{"$f":"'[2]REAL IMAE(M)'!AI366","v":4.1199187834623467},{"$f":"'[2]REAL IMAE(M)'!AJ366","v":2.7631564149346453},{"$f":"'[2]REAL IMAE(M)'!AK366","v":-1.3726235022800393},{"$f":"'[2]REAL IMAE(M)'!AL366","v":5.5184414842524436},{"$f":"'[2]REAL IMAE(M)'!AM366","v":2.9292323645035476},null,null,{"$f":"'[2]EXT ITCER(M)'!C366","v":80.053168401555922},{"$f":"'[2]EXT ITCER(M)'!D366","v":96.938652892800349},{"$f":"'[2]EXT ITCER(M)'!E366","v":54.607215428896417},{"$f":"'[2]EXT ITCER(M)'!F366","v":78.947077194135687},{"$f":"'[2]EXT ITCER(M)'!G366","v":107.6487511967258},{"$f":"'[2]EXT ITCER(M)'!H366","v":112.9276307629719},{"$f":"'[2]EXT ITCER(M)'!I366","v":93.07073384554424},null,null,{"$f":"'[2]EXT TC(M)'!J366","v":-0.22944940247074655},{"$f":"'[2]EXT TC(M)'!K366","v":0},{"$f":"'[2]EXT TC(M)'!L366","v":0.57375152165754684},{"$f":"'[2]EXT TC(M)'!M366","v":2.3556820443365973},{"$f":"'[2]EXT TC(M)'!N366","v":4.0011090424467888},{"$f":"'[2]EXT TC(M)'!O366","v":3.5851371968072421},{"$f":"'[2]EXT TC(M)'!P366","v":0},null,null,{"$f":"'[2]EXT RIN(M)'!C366","v":7462.5070999999998},{"$f":"'[2]EXT RIN(M)'!D366","v":4466.62},{"$f":"'[2]EXT RIN(M)'!E366","v":14516},{"$f":"'[2]EXT RIN(M)'!F366","v":5055.5},{"$f":"'[2]EXT RIN(M)'!G366","v":2051.1999999999998},{"$f":"'[2]EXT RIN(M)'!H366","v":7587.8028349934102},{"$f":"'[2]EXT RIN(M)'!I366","v":3287.7810872},null,null,{"$f":"'[2]EXT RIN(M)'!P366","v":67.902159182623436},{"$f":"'[2]EXT RIN(M)'!Q366","v":123.11915154949827},{"$f":"'[2]EXT RIN(M)'!R366","v":125.24900268815647},{"$f":"'[2]EXT RIN(M)'!S366","v":96.420951541849604},{"$f":"'[2]EXT RIN(M)'!T366","v":128.64811123218135},{"$f":"'[2]EXT RIN(M)'!U366","v":106.7064983106772},{"$f":"'[2]EXT RIN(M)'!V366","v":188.71594664369411},null,null,{"$f":"+'[2]MONE(M)CAPARD'!AE366","v":3.0927116949331244},{"$f":"'[2]MONE(M)CAPARD'!AF366","v":5.0733901729498685},{"$f":"'[2]MONE(M)CAPARD'!AG366","v":3.1291697761193702},{"$f":"'[2]MONE(M)CAPARD'!AH366","v":3.8607292917166975},{"$f":"'[2]MONE(M)CAPARD'!AI366","v":4.1950019391965201},{"$f":"'[2]MONE(M)CAPARD'!AJ366","v":3.2028709840265033},{"$f":"'[2]MONE(M)CAPARD'!AK366","v":2.864411733846119},null,null,{"$f":"'[2]MONE(M)CAPARD'!AL366","v":3.3582352900000001},{"$f":"'[2]MONE(M)CAPARD'!AM366","v":4.3600000000000003},{"$f":"'[2]MONE(M)CAPARD'!AN366","v":3.16},{"$f":"'[2]MONE(M)CAPARD'!AO366","v":3.71},{"$f":"'[2]MONE(M)CAPARD'!AP366","v":5.8458874799401324},{"$f":"'[2]MONE(M)CAPARD'!AQ366","v":1.7259},{"$f":"'[2]MONE(M)CAPARD'!AR366","v":2.23},null,null,{"$f":"'[2]MONE(M)CAPARD'!J366","v":9.3134059641952547},{"$f":"'[2]MONE(M)CAPARD'!K366","v":7.5200013086366075},{"$f":"'[2]MONE(M)CAPARD'!L366","v":10.781100746268621},{"$f":"'[2]MONE(M)CAPARD'!M366","v":12.336224489795931},{"$f":"'[2]MONE(M)CAPARD'!N366","v":10.165412516564942},{"$f":"'[2]MONE(M)CAPARD'!O366","v":9.917228345388768},{"$f":"'[2]MONE(M)CAPARD'!P366","v":8.921770225851926},null,null,{"$f":"'[2]MONE(M)CAPARD'!Q366","v":7.5227256799999997},{"$f":"'[2]MONE(M)CAPARD'!R366","v":6.79},{"$f":"'[2]MONE(M)CAPARD'!S366","v":6.51},{"$f":"'[2]MONE(M)CAPARD'!T366","v":8.23},{"$f":"'[2]MONE(M)CAPARD'!U366","v":12.82178287773236},{"$f":"'[2]MONE(M)CAPARD'!V366","v":5.4379999999999997},{"$f":"'[2]MONE(M)CAPARD'!W366","v":8.25},null,null,{"$f":"'[2]MONE(M)CAPARD'!AS366","v":3.75},{"$f":"'[2]MONE(M)CAPARD'!AT366","v":"n.a."},{"$f":"'[2]MONE(M)CAPARD'!AU366","v":2.75},{"$f":"'[2]MONE(M)CAPARD'!AV366","v":5.75},{"$f":"'[2]MONE(M)CAPARD'!AW366","v":"n.a."},{"$f":"'[2]MONE(M)CAPARD'!AX366","v":4.5},{"$f":"'[2]MONE(M)CAPARD'!AY366","v":"n.a."},null,null,{"$f":"+'Datos_Regional (M)'!CF359","v":-0.17795862485061598},{"$f":"+'Datos_Regional (M)'!CG359","v":5.1494243495237235},{"$f":"+'Datos_Regional (M)'!CH359","v":4.4104310948471559},{"$f":"+'Datos_Regional (M)'!CI359","v":10.031964592835308},{"$f":"+'Datos_Regional (M)'!CJ359","v":-19.790415911164306},{"$f":"+'Datos_Regional (M)'!CK359","v":12.048719591495182},{"$f":"+'Datos_Regional (M)'!CL359","v":2.1931793457450333},null,null,945.2362063016667,490.77666666666664,917.04166666666663,720.55737076054845,454.89305008541663,908.50833333333333,904.45012958333336,4437.0132938142979,5341.4634233976312,null,null,1349.4959567875001,968.375,1648.1000000000001,1116.2449815331481,517.88307763166665,1713.0500000000002,1835.2776629999998,7313.1490159523164,9148.426678952319,null,null,-2876.1357221380167,-3806.9632555546837,null,null,{"$f":"'[2]EXT Comercio(M)'!C366","v":928.16259540999999},{"$f":"'[2]EXT Comercio(M)'!D366","v":462.17000000000053},{"$f":"'[2]EXT Comercio(M)'!E366","v":876.90000000000009},{"$f":"'[2]EXT Comercio(M)'!F366","v":716.48237024616196},{"$f":"'[2]EXT Comercio(M)'!G366","v":448.88972087000002},{"$f":"'[2]EXT Comercio(M)'!H366","v":901.2},{"$f":"'[2]EXT Comercio(M)'!I366","v":1054.9780000000001},{"$f":"'[2]EXT Comercio(M)'!K366","v":4333.804686526164},{"$f":"'[2]EXT Comercio(M)'!L366","v":5388.7826865261668},null,null,{"$f":"'[2]EXT Comercio(M)'!AG366","v":1269.8961410700008},{"$f":"'[2]EXT Comercio(M)'!AH366","v":910},{"$f":"'[2]EXT Comercio(M)'!AI366","v":1578.5},{"$f":"'[2]EXT Comercio(M)'!AJ366","v":1068.0715111084162},{"$f":"'[2]EXT Comercio(M)'!AK366","v":498.20448657000003},{"$f":"'[2]EXT Comercio(M)'!AL366","v":1673},{"$f":"'[2]EXT Comercio(M)'!AM366","v":1674.35},{"$f":"'[2]EXT Comercio(M)'!AO366","v":6997.6721387484213},{"$f":"'[2]EXT Comercio(M)'!AP366","v":8672.0221387484198},null,null,{"$f":"'[2]EXT Comercio(M)'!$BS366","v":-2663.8674522222573},{"$f":"'[2]EXT Comercio(M)'!$BT366","v":-3283.2394522222567}]
[null,null,"Octubre",{"$f":"'[2]REAL IPC(M)'!AD367","v":2.0724345977549929},{"$f":"'[2]REAL IPC(M)'!AE367","v":-0.86772907450008852},{"$f":"'[2]REAL IPC(M)'!AF367","v":2.1696396068438397},{"$f":"'[2]REAL IPC(M)'!AG367","v":4.0822686195076425},{"$f":"'[2]REAL IPC(M)'!AH367","v":5.4396854509802495},{"$f":"'[2]REAL IPC(M)'!AI367","v":2.4773738303421302},{"$f":"'[2]REAL IPC(M)'!AJ367","v":-0.74885649253653375},null,null,{"$f":"'[2]REAL IMAE(M)'!AG367","v":1.928289161967802},{"$f":"'[2]REAL IMAE(M)'!AH367","v":2.9963048346168031},{"$f":"'[2]REAL IMAE(M)'!AI367","v":4.4636028776842309},{"$f":"'[2]REAL IMAE(M)'!AJ367","v":2.8075012926067746},{"$f":"'[2]REAL IMAE(M)'!AK367","v":-0.21063500614172523},{"$f":"'[2]REAL IMAE(M)'!AL367","v":5.3922737303577453},{"$f":"'[2]REAL IMAE(M)'!AM367","v":2.5666180269164212},null,null,{"$f":"'[2]EXT ITCER(M)'!C367","v":80.793424796345619},{"$f":"'[2]EXT ITCER(M)'!D367","v":97.176728696147705},{"$f":"'[2]EXT ITCER(M)'!E367","v":54.719932789062852},{"$f":"'[2]EXT ITCER(M)'!F367","v":79.077361655507232},{"$f":"'[2]EXT ITCER(M)'!G367","v":108.0203061955187},{"$f":"'[2]EXT ITCER(M)'!H367","v":114.8625248460109},{"$f":"'[2]EXT ITCER(M)'!I367","v":93.385593152496838},null,null,{"$f":"'[2]EXT TC(M)'!J367","v":-1.8996912625155788},{"$f":"'[2]EXT TC(M)'!K367","v":0},{"$f":"'[2]EXT TC(M)'!L367","v":0.39552661859118254},{"$f":"'[2]EXT TC(M)'!M367","v":2.3300166328949672},{"$f":"'[2]EXT TC(M)'!N367","v":3.9448736612924273},{"$f":"'[2]EXT TC(M)'!O367","v":5.4475932431647198},{"$f":"'[2]EXT TC(M)'!P367","v":0},null,null,{"$f":"'[2]EXT RIN(M)'!C367","v":7692.7},{"$f":"'[2]EXT RIN(M)'!D367","v":4861.3500000000004},{"$f":"'[2]EXT RIN(M)'!E367","v":14631},{"$f":"'[2]EXT RIN(M)'!F367","v":5137.6000000000004},{"$f":"'[2]EXT RIN(M)'!G367","v":2118.4},{"$f":"'[2]EXT RIN(M)'!H367","v":7491.6},{"$f":"'[2]EXT RIN(M)'!I367","v":3388.5703558499995},null,null,{"$f":"'[2]EXT RIN(M)'!P367","v":70.412471695428664},{"$f":"'[2]EXT RIN(M)'!Q367","v":122.69697870662819},{"$f":"'[2]EXT RIN(M)'!R367","v":124.67590346082112},{"$f":"'[2]EXT RIN(M)'!S367","v":100.71408433876239},{"$f":"'[2]EXT RIN(M)'!T367","v":130.54661001598603},{"$f":"'[2]EXT RIN(M)'!U367","v":109.23754628842136},{"$f":"'[2]EXT RIN(M)'!V367","v":175.09032348958118},null,null,{"$f":"+'[2]MONE(M)CAPARD'!AE367","v":3.5049280604929289},{"$f":"'[2]MONE(M)CAPARD'!AF367","v":5.1726133444009266},{"$f":"'[2]MONE(M)CAPARD'!AG367","v":2.7311052519062109},{"$f":"'[2]MONE(M)CAPARD'!AH367","v":4.2156377245508914},{"$f":"'[2]MONE(M)CAPARD'!AI367","v":5.5967529262535196},{"$f":"'[2]MONE(M)CAPARD'!AJ367","v":4.0769254846193617},{"$f":"'[2]MONE(M)CAPARD'!AK367","v":3.0114076139704915},null,null,{"$f":"'[2]MONE(M)CAPARD'!AL367","v":3.4131705999999999},{"$f":"'[2]MONE(M)CAPARD'!AM367","v":4.26},{"$f":"'[2]MONE(M)CAPARD'!AN367","v":3.16},{"$f":"'[2]MONE(M)CAPARD'!AO367","v":3.71},{"$f":"'[2]MONE(M)CAPARD'!AP367","v":6.0909202590264462},{"$f":"'[2]MONE(M)CAPARD'!AQ367","v":1.4930000000000001},{"$f":"'[2]MONE(M)CAPARD'!AR367","v":2.2400000000000002},null,null,{"$f":"'[2]MONE(M)CAPARD'!J367","v":10.081098557897363},{"$f":"'[2]MONE(M)CAPARD'!K367","v":7.6238837302334064},{"$f":"'[2]MONE(M)CAPARD'!L367","v":10.306741252761336},{"$f":"'[2]MONE(M)CAPARD'!M367","v":12.670488023952087},{"$f":"'[2]MONE(M)CAPARD'!N367","v":10.436365719573363},{"$f":"'[2]MONE(M)CAPARD'!O367","v":9.5991200808322148},{"$f":"'[2]MONE(M)CAPARD'!P367","v":9.1372816191831348},null,null,{"$f":"'[2]MONE(M)CAPARD'!Q367","v":7.0445676099999996},{"$f":"'[2]MONE(M)CAPARD'!R367","v":6.69},{"$f":"'[2]MONE(M)CAPARD'!S367","v":6.47},{"$f":"'[2]MONE(M)CAPARD'!T367","v":8.31},{"$f":"'[2]MONE(M)CAPARD'!U367","v":10.341874284685677},{"$f":"'[2]MONE(M)CAPARD'!V367","v":4.9420000000000002},{"$f":"'[2]MONE(M)CAPARD'!W367","v":8.32},null,null,{"$f":"'[2]MONE(M)CAPARD'!AS367","v":3.25},{"$f":"'[2]MONE(M)CAPARD'!AT367","v":"n.a."},{"$f":"'[2]MONE(M)CAPARD'!AU367","v":2.75},{"$f":"'[2]MONE(M)CAPARD'!AV367","v":5.75},{"$f":"'[2]MONE(M)CAPARD'!AW367","v":"n.a."},{"$f":"'[2]MONE(M)CAPARD'!AX367","v":4.5},{"$f":"'[2]MONE(M)CAPARD'!AY367","v":"n.a."},null,null,{"$f":"+'Datos_Regional (M)'!CF360","v":-1.1582862918070314},{"$f":"+'Datos_Regional (M)'!CG360","v":5.2509948430059961},{"$f":"+'Datos_Regional (M)'!CH360","v":4.110745002232008},{"$f":"+'Datos_Regional (M)'!CI360","v":9.383115211885972},{"$f":"+'Datos_Regional (M)'!CJ360","v":-17.884464829592073},{"$f":"+'Datos_Regional (M)'!CK360","v":12.46003491736265},{"$f":"+'Datos_Regional (M)'!CL360","v":2.4077771400677461},null,null,943.4589726749997,490.96833333333319,918.49999999999989,719.4939384546492,458.27624324125003,914.41666666666663,925.52312091666647,4445.1141543709,5370.6372752875668,null,null,1340.56400205,968.20833333333348,1649.9833333333333,1121.0031976905441,518.6020761758333,1696.3833333333334,1817.9089994166661,7294.7442759163778,9112.6532753330448,null,null,-2849.6301215454782,-3742.0160000454794,null,null,{"$f":"'[2]EXT Comercio(M)'!C367","v":978.1702922100003},{"$f":"'[2]EXT Comercio(M)'!D367","v":492.91999999999916},{"$f":"'[2]EXT Comercio(M)'!E367","v":875.8},{"$f":"'[2]EXT Comercio(M)'!F367","v":628.36323807645817},{"$f":"'[2]EXT Comercio(M)'!G367","v":482.64487681999998},{"$f":"'[2]EXT Comercio(M)'!H367","v":959.5},{"$f":"'[2]EXT Comercio(M)'!I367","v":1239.1199999999999},{"$f":"'[2]EXT Comercio(M)'!K367","v":4417.3984071064624},{"$f":"'[2]EXT Comercio(M)'!L367","v":5656.518407106465},null,null,{"$f":"'[2]EXT Comercio(M)'!AG367","v":1460.404333389999},{"$f":"'[2]EXT Comercio(M)'!AH367","v":1050.0599999999995},{"$f":"'[2]EXT Comercio(M)'!AI367","v":1868.7},{"$f":"'[2]EXT Comercio(M)'!AJ367","v":1194.4991011187012},{"$f":"'[2]EXT Comercio(M)'!AK367","v":570.54282822999994},{"$f":"'[2]EXT Comercio(M)'!AL367","v":1726.9},{"$f":"'[2]EXT Comercio(M)'!AM367","v":1963.4570000000001},{"$f":"'[2]EXT Comercio(M)'!AO367","v":7871.1062627387},{"$f":"'[2]EXT Comercio(M)'!AP367","v":9834.5632627386949},null,null,{"$f":"'[2]EXT Comercio(M)'!$BS367","v":-3453.7078556322449},{"$f":"'[2]EXT Comercio(M)'!$BT367","v":-4178.0448556322481}]
[null,null,"Noviembre",{"$f":"'[2]REAL IPC(M)'!AD368","v":1.8558595617916422},{"$f":"'[2]REAL IPC(M)'!AE368","v":-0.5731572650942458},{"$f":"'[2]REAL IPC(M)'!AF368","v":2.9207740051113564},{"$f":"'[2]REAL IPC(M)'!AG368","v":3.8437693738375627},{"$f":"'[2]REAL IPC(M)'!AH368","v":5.7188934302477552},{"$f":"'[2]REAL IPC(M)'!AI368","v":3.2250615763547361},{"$f":"'[2]REAL IPC(M)'!AJ368","v":-0.32859718304499225},null,null,{"$f":"'[2]REAL IMAE(M)'!AG368","v":2.0213374189505173},{"$f":"'[2]REAL IMAE(M)'!AH368","v":2.9421113260995631},{"$f":"'[2]REAL IMAE(M)'!AI368","v":4.5405590335977353},{"$f":"'[2]REAL IMAE(M)'!AJ368","v":2.8250678980968345},{"$f":"'[2]REAL IMAE(M)'!AK368","v":1.0588178402086024},{"$f":"'[2]REAL IMAE(M)'!AL368","v":4.4031290868591713},{"$f":"'[2]REAL IMAE(M)'!AM368","v":2.6923537096658974},null,null,{"$f":"'[2]EXT ITCER(M)'!C368","v":80.151375629890552},{"$f":"'[2]EXT ITCER(M)'!D368","v":97.27149749707381},{"$f":"'[2]EXT ITCER(M)'!E368","v":54.214409699909908},{"$f":"'[2]EXT ITCER(M)'!F368","v":79.018660300760004},{"$f":"'[2]EXT ITCER(M)'!G368","v":107.78291553466831},{"$f":"'[2]EXT ITCER(M)'!H368","v":115.0029143798659},{"$f":"'[2]EXT ITCER(M)'!I368","v":93.602458594495204},null,null,{"$f":"'[2]EXT TC(M)'!J368","v":-5.690158365890853},{"$f":"'[2]EXT TC(M)'!K368","v":0},{"$f":"'[2]EXT TC(M)'!L368","v":7.0968808882947473E-2},{"$f":"'[2]EXT TC(M)'!M368","v":1.7109912085451606},{"$f":"'[2]EXT TC(M)'!N368","v":3.6319668341306954},{"$f":"'[2]EXT TC(M)'!O368","v":5.3881334129099816},{"$f":"'[2]EXT TC(M)'!P368","v":0},null,null,{"$f":"'[2]EXT RIN(M)'!C368","v":9150.2999999999993},{"$f":"'[2]EXT RIN(M)'!D368","v":4062.36},{"$f":"'[2]EXT RIN(M)'!E368","v":14604.1},{"$f":"'[2]EXT RIN(M)'!F368","v":5124.0364783089844},{"$f":"'[2]EXT RIN(M)'!G368","v":2161.6999999999998},{"$f":"'[2]EXT RIN(M)'!H368","v":7145.6},{"$f":"'[2]EXT RIN(M)'!I368","v":4569.8718668299989},null,null,{"$f":"'[2]EXT RIN(M)'!P368","v":79.409872052348121},{"$f":"'[2]EXT RIN(M)'!Q368","v":101.61804008128723},{"$f":"'[2]EXT RIN(M)'!R368","v":123.32886156918912},{"$f":"'[2]EXT RIN(M)'!S368","v":96.956944408187013},{"$f":"'[2]EXT RIN(M)'!T368","v":122.36246243331959},{"$f":"'[2]EXT RIN(M)'!U368","v":98.850700519679194},{"$f":"'[2]EXT RIN(M)'!V368","v":227.9671560010276},null,null,{"$f":"+'[2]MONE(M)CAPARD'!AE368","v":4.706789043687718},{"$f":"'[2]MONE(M)CAPARD'!AF368","v":4.8409032537895245},{"$f":"'[2]MONE(M)CAPARD'!AG368","v":1.9716388790351174},{"$f":"'[2]MONE(M)CAPARD'!AH368","v":4.4646208955223949},{"$f":"'[2]MONE(M)CAPARD'!AI368","v":3.7319782117548188},{"$f":"'[2]MONE(M)CAPARD'!AJ368","v":3.2791827604204942},{"$f":"'[2]MONE(M)CAPARD'!AK368","v":2.5569994110802794},null,null,{"$f":"'[2]MONE(M)CAPARD'!AL368","v":3.1670308399999998},{"$f":"'[2]MONE(M)CAPARD'!AM368","v":4.24},{"$f":"'[2]MONE(M)CAPARD'!AN368","v":3.21},{"$f":"'[2]MONE(M)CAPARD'!AO368","v":3.7},{"$f":"'[2]MONE(M)CAPARD'!AP368","v":5.826547800697413},{"$f":"'[2]MONE(M)CAPARD'!AQ368","v":1.8753},{"$f":"'[2]MONE(M)CAPARD'!AR368","v":2.2200000000000002},null,null,{"$f":"'[2]MONE(M)CAPARD'!J368","v":10.569819512128406},{"$f":"'[2]MONE(M)CAPARD'!K368","v":7.2748536171257738},{"$f":"'[2]MONE(M)CAPARD'!L368","v":9.4725540971975857},{"$f":"'[2]MONE(M)CAPARD'!M368","v":13.01592835820896},{"$f":"'[2]MONE(M)CAPARD'!N368","v":10.229876815470128},{"$f":"'[2]MONE(M)CAPARD'!O368","v":8.4153385728133028},{"$f":"'[2]MONE(M)CAPARD'!P368","v":8.9981648994302645},null,null,{"$f":"'[2]MONE(M)CAPARD'!Q368","v":7.2599393399999999},{"$f":"'[2]MONE(M)CAPARD'!R368","v":6.66},{"$f":"'[2]MONE(M)CAPARD'!S368","v":6.44},{"$f":"'[2]MONE(M)CAPARD'!T368","v":8.2899999999999991},{"$f":"'[2]MONE(M)CAPARD'!U368","v":9.6679047855137057},{"$f":"'[2]MONE(M)CAPARD'!V368","v":5.9779},{"$f":"'[2]MONE(M)CAPARD'!W368","v":8.64},null,null,{"$f":"'[2]MONE(M)CAPARD'!AS368","v":3.25},{"$f":"'[2]MONE(M)CAPARD'!AT368","v":"n.a."},{"$f":"'[2]MONE(M)CAPARD'!AU368","v":2.75},{"$f":"'[2]MONE(M)CAPARD'!AV368","v":5.75},{"$f":"'[2]MONE(M)CAPARD'!AW368","v":"n.a."},{"$f":"'[2]MONE(M)CAPARD'!AX368","v":4.5},{"$f":"'[2]MONE(M)CAPARD'!AY368","v":"n.a."},null,null,{"$f":"+'Datos_Regional (M)'!CF361","v":-2.3072623230150135},{"$f":"+'Datos_Regional (M)'!CG361","v":4.8375017073418514},{"$f":"+'Datos_Regional (M)'!CH361","v":4.7416324824318457},{"$f":"+'Datos_Regional (M)'!CI361","v":8.7380687462884854},{"$f":"+'Datos_Regional (M)'!CJ361","v":-16.662603036635005},{"$f":"+'Datos_Regional (M)'!CK361","v":12.619671531465171},{"$f":"+'Datos_Regional (M)'!CL361","v":1.951645104805011},null,null,944.36935474000018,489.53833333333324,923.24999999999989,721.93760906165562,459.65918213374994,921.70833333333337,936.96236224999984,4460.4628126020707,5397.4251748520719,null,null,1328.8406015666667,967.58166666666659,1655.0250000000003,1110.9159625065215,515.7258780825,1691.4000000000003,1803.650892833333,7269.489108822353,9073.140001655689,null,null,-2809.0262962202828,-3675.7148268036162,null,null,{"$f":"'[2]EXT Comercio(M)'!C368","v":957.76612941999974},{"$f":"'[2]EXT Comercio(M)'!D368","v":461.71000000000004},{"$f":"'[2]EXT Comercio(M)'!E368","v":916.8},{"$f":"'[2]EXT Comercio(M)'!F368","v":708.19211145331906},{"$f":"'[2]EXT Comercio(M)'!G368","v":444.19300874000004},{"$f":"'[2]EXT Comercio(M)'!H368","v":994.80000000000007},{"$f":"'[2]EXT Comercio(M)'!I368","v":998.99},{"$f":"'[2]EXT Comercio(M)'!K368","v":4483.461249613305},{"$f":"'[2]EXT Comercio(M)'!L368","v":5482.4512496133102},null,null,{"$f":"'[2]EXT Comercio(M)'!AG368","v":1384.9349821700002},{"$f":"'[2]EXT Comercio(M)'!AH368","v":981.14999999999964},{"$f":"'[2]EXT Comercio(M)'!AI368","v":1753.9},{"$f":"'[2]EXT Comercio(M)'!AJ368","v":1100.4390438231997},{"$f":"'[2]EXT Comercio(M)'!AK368","v":513.20263829999999},{"$f":"'[2]EXT Comercio(M)'!AL368","v":1748.3999999999996},{"$f":"'[2]EXT Comercio(M)'!AM368","v":1546.662},{"$f":"'[2]EXT Comercio(M)'!AO368","v":7482.026664293182},{"$f":"'[2]EXT Comercio(M)'!AP368","v":9028.6886642931786},null,null,{"$f":"'[2]EXT Comercio(M)'!$BS368","v":-2998.5654146798734},{"$f":"'[2]EXT Comercio(M)'!$BT368","v":-3546.2374146798757}]
[null,null,"Diciembre ",{"$f":"'[2]REAL IPC(M)'!AD369","v":1.5224291145129978},{"$f":"'[2]REAL IPC(M)'!AE369","v":-8.1930382300786069E-3},{"$f":"'[2]REAL IPC(M)'!AF369","v":3.4055276015459781},{"$f":"'[2]REAL IPC(M)'!AG369","v":4.0841584158415811},{"$f":"'[2]REAL IPC(M)'!AH369","v":6.1297243704681899},{"$f":"'[2]REAL IPC(M)'!AI369","v":3.6562789262573676},{"$f":"'[2]REAL IPC(M)'!AJ369","v":-6.2580315385681165E-2},null,null,{"$f":"'[2]REAL IMAE(M)'!AG369","v":1.8539806881631031},{"$f":"'[2]REAL IMAE(M)'!AH369","v":1.8750497563763266},{"$f":"'[2]REAL IMAE(M)'!AI369","v":3.8579890160438612},{"$f":"'[2]REAL IMAE(M)'!AJ369","v":2.6556517920792979},{"$f":"'[2]REAL IMAE(M)'!AK369","v":2.1378920820824043},{"$f":"'[2]REAL IMAE(M)'!AL369","v":2.3373517092658052},{"$f":"'[2]REAL IMAE(M)'!AM369","v":3.1484504145847936},null,null,{"$f":"'[2]EXT ITCER(M)'!C369","v":79.367059200201368},{"$f":"'[2]EXT ITCER(M)'!D369","v":97.476201385776946},{"$f":"'[2]EXT ITCER(M)'!E369","v":53.953574187043877},{"$f":"'[2]EXT ITCER(M)'!F369","v":78.965394108614191},{"$f":"'[2]EXT ITCER(M)'!G369","v":107.1593339000836},{"$f":"'[2]EXT ITCER(M)'!H369","v":115.3037696968287},{"$f":"'[2]EXT ITCER(M)'!I369","v":94.048541080347619},null,null,{"$f":"'[2]EXT TC(M)'!J369","v":-5.4908392498758856},{"$f":"'[2]EXT TC(M)'!K369","v":0},{"$f":"'[2]EXT TC(M)'!L369","v":-0.56382911142139969},{"$f":"'[2]EXT TC(M)'!M369","v":1.3019887588865635},{"$f":"'[2]EXT TC(M)'!N369","v":3.5906919389496008},{"$f":"'[2]EXT TC(M)'!O369","v":5.3740315381674142},{"$f":"'[2]EXT TC(M)'!P369","v":0},null,null,{"$f":"'[2]EXT RIN(M)'!C369","v":8912.2999999999993},{"$f":"'[2]EXT RIN(M)'!D369","v":3936.49},{"$f":"'[2]EXT RIN(M)'!E369","v":14789},{"$f":"'[2]EXT RIN(M)'!F369","v":5808.8569290984369},{"$f":"'[2]EXT RIN(M)'!G369","v":2208.5},{"$f":"'[2]EXT RIN(M)'!H369","v":8781.4},{"$f":"'[2]EXT RIN(M)'!I369","v":4142.34042013},null,null,{"$f":"'[2]EXT RIN(M)'!P369","v":74.25707316498314},{"$f":"'[2]EXT RIN(M)'!Q369","v":99.466947780793632},{"$f":"'[2]EXT RIN(M)'!R369","v":116.063651270137},{"$f":"'[2]EXT RIN(M)'!S369","v":100.07267971769384},{"$f":"'[2]EXT RIN(M)'!T369","v":122.21584848858622},{"$f":"'[2]EXT RIN(M)'!U369","v":98.925752495713681},{"$f":"'[2]EXT RIN(M)'!V369","v":198.85952730442332},null,null,{"$f":"+'[2]MONE(M)CAPARD'!AE369","v":4.1641742838111977},{"$f":"'[2]MONE(M)CAPARD'!AF369","v":4.2585419421994475},{"$f":"'[2]MONE(M)CAPARD'!AG369","v":1.4549245416078989},{"$f":"'[2]MONE(M)CAPARD'!AH369","v":4.2425683709869233},{"$f":"'[2]MONE(M)CAPARD'!AI369","v":3.4233928809168725},{"$f":"'[2]MONE(M)CAPARD'!AJ369","v":2.8338091084982491},{"$f":"'[2]MONE(M)CAPARD'!AK369","v":2.2339783460803062},null,null,{"$f":"'[2]MONE(M)CAPARD'!AL369","v":3.0921123700000002},{"$f":"'[2]MONE(M)CAPARD'!AM369","v":4.25},{"$f":"'[2]MONE(M)CAPARD'!AN369","v":3.2},{"$f":"'[2]MONE(M)CAPARD'!AO369","v":3.72},{"$f":"'[2]MONE(M)CAPARD'!AP369","v":5.2920828330410599},{"$f":"'[2]MONE(M)CAPARD'!AQ369","v":1.6742999999999999},{"$f":"'[2]MONE(M)CAPARD'!AR369","v":2.17},null,null,{"$f":"'[2]MONE(M)CAPARD'!J369","v":9.4525602659315737},{"$f":"'[2]MONE(M)CAPARD'!K369","v":6.4587222038094119},{"$f":"'[2]MONE(M)CAPARD'!L369","v":8.9303469675599434},{"$f":"'[2]MONE(M)CAPARD'!M369","v":12.783733650416174},{"$f":"'[2]MONE(M)CAPARD'!N369","v":8.7475349671168292},{"$f":"'[2]MONE(M)CAPARD'!O369","v":8.4649199880934241},{"$f":"'[2]MONE(M)CAPARD'!P369","v":8.5279171128107087},null,null,{"$f":"'[2]MONE(M)CAPARD'!Q369","v":6.9869658399999999},{"$f":"'[2]MONE(M)CAPARD'!R369","v":6.45},{"$f":"'[2]MONE(M)CAPARD'!S369","v":6.41},{"$f":"'[2]MONE(M)CAPARD'!T369","v":8.19},{"$f":"'[2]MONE(M)CAPARD'!U369","v":9.4358010174230582},{"$f":"'[2]MONE(M)CAPARD'!V369","v":6.0696000000000003},{"$f":"'[2]MONE(M)CAPARD'!W369","v":8.4600000000000009},null,null,{"$f":"'[2]MONE(M)CAPARD'!AS369","v":2.75},{"$f":"'[2]MONE(M)CAPARD'!AT369","v":"n.a."},{"$f":"'[2]MONE(M)CAPARD'!AU369","v":2.75},{"$f":"'[2]MONE(M)CAPARD'!AV369","v":5.5},{"$f":"'[2]MONE(M)CAPARD'!AW369","v":"n.a."},{"$f":"'[2]MONE(M)CAPARD'!AX369","v":4.5},{"$f":"'[2]MONE(M)CAPARD'!AY369","v":"n.a."},null,null,{"$f":"+'Datos_Regional (M)'!CF362","v":-2.1296594071194552},{"$f":"+'Datos_Regional (M)'!CG362","v":5.597627985415099},{"$f":"+'Datos_Regional (M)'!CH362","v":5.0489536489688014},{"$f":"+'Datos_Regional (M)'!CI362","v":9.1570498990674274},{"$f":"+'Datos_Regional (M)'!CJ362","v":-14.792507787741727},{"$f":"+'Datos_Regional (M)'!CK362","v":12.760180788599396},{"$f":"+'Datos_Regional (M)'!CL362","v":2.1849244506356946},null,null,947.86121123166686,492.08166666666665,930.84999999999991,729.60927015771119,465.89832368166662,932.72499999999991,956.24676124999985,4499.0254717377102,5455.2722329877115,null,null,1328.0517015833332,966.84250000000009,1656.8333333333333,1107.9884444359016,517.47421358000008,1688.9833333333336,1790.9813271666669,7266.1735262659022,9057.1548534325684,null,null,-2767.1480545281902,-3601.8826204448574,null,null,{"$f":"'[2]EXT Comercio(M)'!C369","v":893.98653074999947},{"$f":"'[2]EXT Comercio(M)'!D369","v":448.51000000000022},{"$f":"'[2]EXT Comercio(M)'!E369","v":990.5},{"$f":"'[2]EXT Comercio(M)'!F369","v":690.5321282524128},{"$f":"'[2]EXT Comercio(M)'!G369","v":439.91698666000002},{"$f":"'[2]EXT Comercio(M)'!H369","v":956.4},{"$f":"'[2]EXT Comercio(M)'!I369","v":962.56913499999996},{"$f":"'[2]EXT Comercio(M)'!K369","v":4419.8456456624117},{"$f":"'[2]EXT Comercio(M)'!L369","v":5382.4147806624169},null,null,{"$f":"'[2]EXT Comercio(M)'!AG369","v":1259.9002299099998},{"$f":"'[2]EXT Comercio(M)'!AH369","v":876.35000000000218},{"$f":"'[2]EXT Comercio(M)'!AI369","v":1544.6},{"$f":"'[2]EXT Comercio(M)'!AJ369","v":1075.7137070308706},{"$f":"'[2]EXT Comercio(M)'!AK369","v":502.60394737000001},{"$f":"'[2]EXT Comercio(M)'!AL369","v":1588.9},{"$f":"'[2]EXT Comercio(M)'!AM369","v":1619.8189259999999},{"$f":"'[2]EXT Comercio(M)'!AO369","v":6848.0678843108908},{"$f":"'[2]EXT Comercio(M)'!AP369","v":8467.886810310898},null,null,{"$f":"'[2]EXT Comercio(M)'!$BS369","v":-2428.2222386484609},{"$f":"'[2]EXT Comercio(M)'!$BT369","v":-3085.4720296484593}]
[null,2020,"Enero",{"$f":"'[2]REAL IPC(M)'!AD370","v":1.5827643368556139},{"$f":"'[2]REAL IPC(M)'!AE370","v":-7.8489390220480085E-2},{"$f":"'[2]REAL IPC(M)'!AF370","v":1.7844294143042327},{"$f":"'[2]REAL IPC(M)'!AG370","v":4.2994123105474724},{"$f":"'[2]REAL IPC(M)'!AH370","v":6.4152757000630558},{"$f":"'[2]REAL IPC(M)'!AI370","v":4.1724617524339518},{"$f":"'[2]REAL IPC(M)'!AJ370","v":0.3558122223510457},null,null,{"$f":"'[2]REAL IMAE(M)'!AG370","v":1.7320557946660722},{"$f":"'[2]REAL IMAE(M)'!AH370","v":0.67991142522920245},{"$f":"'[2]REAL IMAE(M)'!AI370","v":2.0544481206349028},{"$f":"'[2]REAL IMAE(M)'!AJ370","v":2.1345263651977593},{"$f":"'[2]REAL IMAE(M)'!AK370","v":2.8749129723796627},{"$f":"'[2]REAL IMAE(M)'!AL370","v":-0.68426852209101763},{"$f":"'[2]REAL IMAE(M)'!AM370","v":3.0750902018453163},null,null,{"$f":"'[2]EXT ITCER(M)'!C370","v":79.636122121354077},{"$f":"'[2]EXT ITCER(M)'!D370","v":97.756039073722548},{"$f":"'[2]EXT ITCER(M)'!E370","v":54.188244815639273},{"$f":"'[2]EXT ITCER(M)'!F370","v":78.919432127324512},{"$f":"'[2]EXT ITCER(M)'!G370","v":107.6887026322413},{"$f":"'[2]EXT ITCER(M)'!H370","v":115.5493742441725},{"$f":"'[2]EXT ITCER(M)'!I370","v":94.06468200638399},null,null,{"$f":"'[2]EXT TC(M)'!J370","v":-5.9604605812882241},{"$f":"'[2]EXT TC(M)'!K370","v":0},{"$f":"'[2]EXT TC(M)'!L370","v":-0.53039290043625931},{"$f":"'[2]EXT TC(M)'!M370","v":1.283238706455323},{"$f":"'[2]EXT TC(M)'!N370","v":3.1498630705926391},{"$f":"'[2]EXT TC(M)'!O370","v":5.4716743337854092},{"$f":"'[2]EXT TC(M)'!P370","v":0},null,null,{"$f":"'[2]EXT RIN(M)'!C370","v":8211.4246999999996},{"$f":"'[2]EXT RIN(M)'!D370","v":3948.04},{"$f":"'[2]EXT RIN(M)'!E370","v":14895.4},{"$f":"'[2]EXT RIN(M)'!F370","v":5764},{"$f":"'[2]EXT RIN(M)'!G370","v":2237.6},{"$f":"'[2]EXT RIN(M)'!H370","v":10408.336724746965},{"$f":"'[2]EXT RIN(M)'!I370","v":3344.3621086600001},null,null,{"$f":"'[2]EXT RIN(M)'!P370","v":68.625238380409868},{"$f":"'[2]EXT RIN(M)'!Q370","v":98.043325373395248},{"$f":"'[2]EXT RIN(M)'!R370","v":117.8539329124912},{"$f":"'[2]EXT RIN(M)'!S370","v":101.95948154232725},{"$f":"'[2]EXT RIN(M)'!T370","v":126.10420005877252},{"$f":"'[2]EXT RIN(M)'!U370","v":126.06642811943291},{"$f":"'[2]EXT RIN(M)'!V370","v":175.58676762204635},null,null,{"$f":"+'[2]MONE(M)CAPARD'!AE370","v":4.1023058294865242},{"$f":"'[2]MONE(M)CAPARD'!AF370","v":4.4219601597856881},{"$f":"'[2]MONE(M)CAPARD'!AG370","v":3.0314760356284296},{"$f":"'[2]MONE(M)CAPARD'!AH370","v":4.0178440094899237},{"$f":"'[2]MONE(M)CAPARD'!AI370","v":3.442330288033189},{"$f":"'[2]MONE(M)CAPARD'!AJ370","v":2.1733558077436426},{"$f":"'[2]MONE(M)CAPARD'!AK370","v":1.797791017476444},null,null,{"$f":"'[2]MONE(M)CAPARD'!AL370","v":3.1871662700000001},{"$f":"'[2]MONE(M)CAPARD'!AM370","v":4.34},{"$f":"'[2]MONE(M)CAPARD'!AN370","v":3.21},{"$f":"'[2]MONE(M)CAPARD'!AO370","v":3.73},{"$f":"'[2]MONE(M)CAPARD'!AP370","v":5.7631311041882727},{"$f":"'[2]MONE(M)CAPARD'!AQ370","v":1.6912},{"$f":"'[2]MONE(M)CAPARD'!AR370","v":2.16},null,null,{"$f":"'[2]MONE(M)CAPARD'!J370","v":12.332630072559581},{"$f":"'[2]MONE(M)CAPARD'!K370","v":6.1032798173325542},{"$f":"'[2]MONE(M)CAPARD'!L370","v":10.675081295065725},{"$f":"'[2]MONE(M)CAPARD'!M370","v":12.541381969157777},{"$f":"'[2]MONE(M)CAPARD'!N370","v":8.3532718198630604},{"$f":"'[2]MONE(M)CAPARD'!O370","v":8.0130949265687423},{"$f":"'[2]MONE(M)CAPARD'!P370","v":8.1352415937406395},null,null,{"$f":"'[2]MONE(M)CAPARD'!Q370","v":6.9145027700000004},{"$f":"'[2]MONE(M)CAPARD'!R370","v":6.02},{"$f":"'[2]MONE(M)CAPARD'!S370","v":6.37},{"$f":"'[2]MONE(M)CAPARD'!T370","v":8.17},{"$f":"'[2]MONE(M)CAPARD'!U370","v":10.043156409826043},{"$f":"'[2]MONE(M)CAPARD'!V370","v":5.1388999999999996},{"$f":"'[2]MONE(M)CAPARD'!W370","v":8.52},null,null,{"$f":"'[2]MONE(M)CAPARD'!AS370","v":2.25},{"$f":"'[2]MONE(M)CAPARD'!AT370","v":"n.a."},{"$f":"'[2]MONE(M)CAPARD'!AU370","v":2.75},{"$f":"'[2]MONE(M)CAPARD'!AV370","v":5.5},{"$f":"'[2]MONE(M)CAPARD'!AW370","v":"n.a."},{"$f":"'[2]MONE(M)CAPARD'!AX370","v":4.5},{"$f":"'[2]MONE(M)CAPARD'!AY370","v":"n.a."},null,null,{"$f":"+'Datos_Regional (M)'!CF363","v":-2.1597750987204178},{"$f":"+'Datos_Regional (M)'!CG363","v":5.4988652698424456},{"$f":"+'Datos_Regional (M)'!CH363","v":4.9679346881358111},{"$f":"+'Datos_Regional (M)'!CI363","v":8.9439655625742418},{"$f":"+'Datos_Regional (M)'!CJ363","v":-12.890358723326756},{"$f":"+'Datos_Regional (M)'!CK363","v":13.371915179536442},{"$f":"+'Datos_Regional (M)'!CL363","v":2.450979864269609},null,null,{"$f":"IF(EH175=\"\",\"\",+AVERAGE(EH164:EH175))","v":947.59988758166674},490.50166666666661,943.68333333333328,736.47139797674288,470.50207354166668,934.64166666666654,960.89443258333324,{"$f":"IF(EO175=\"\",\"\",+AVERAGE(EO164:EO175))","v":4523.4000257667421},{"$f":"IF(EP175=\"\",\"\",+AVERAGE(EP164:EP175))","v":5484.2944583500757},null,null,{"$f":"IF(ES175=\"\",\"\",+AVERAGE(ES164:ES175))","v":1320.3217412499998},{"$f":"IF(ET175=\"\",\"\",+AVERAGE(ET164:ET175))","v":965.22166666666669},{"$f":"IF(EU175=\"\",\"\",+AVERAGE(EU164:EU175))","v":1661.0583333333334},{"$f":"IF(EV175=\"\",\"\",+AVERAGE(EV164:EV175))","v":1108.7552993855963},{"$f":"IF(EW175=\"\",\"\",+AVERAGE(EW164:EW175))","v":516.38019255000006},{"$f":"IF(EX175=\"\",\"\",+AVERAGE(EX164:EX175))","v":1685.0916666666669},{"$f":"IF(EY175=\"\",\"\",+AVERAGE(EY164:EY175))","v":1767.9955643333335},{"$f":"IF(EZ175=\"\",\"\",+AVERAGE(EZ164:EZ175))","v":7256.8288998522648},{"$f":"IF(FA175=\"\",\"\",+AVERAGE(FA164:FA175))","v":9024.8244641855981},null,null,{"$f":"IF(FD175=\"\",\"\",+AVERAGE(FD164:FD175))","v":-2733.4288740855204},{"$f":"IF(FE175=\"\",\"\",+AVERAGE(FE164:FE175))","v":-3540.5300058355206},null,null,{"$f":"'[2]EXT Comercio(M)'!C370","v":820.74791359999995},{"$f":"'[2]EXT Comercio(M)'!D370","v":464.92},{"$f":"'[2]EXT Comercio(M)'!E370","v":1009.8},{"$f":"'[2]EXT Comercio(M)'!F370","v":756.51549564283641},{"$f":"'[2]EXT Comercio(M)'!G370","v":491.88136083999996},{"$f":"'[2]EXT Comercio(M)'!H370","v":863.6},{"$f":"'[2]EXT Comercio(M)'!I370","v":870.25505600000008},{"$f":"'[2]EXT Comercio(M)'!K370","v":4407.4647700828364},{"$f":"'[2]EXT Comercio(M)'!L370","v":5277.7198260828363},null,null,{"$f":"'[2]EXT Comercio(M)'!AG370","v":1255.7582278499999},{"$f":"'[2]EXT Comercio(M)'!AH370","v":922.71},{"$f":"'[2]EXT Comercio(M)'!AI370","v":1736.3},{"$f":"'[2]EXT Comercio(M)'!AJ370","v":1104.2750147521974},{"$f":"'[2]EXT Comercio(M)'!AK370","v":493.41366061999997},{"$f":"'[2]EXT Comercio(M)'!AL370","v":1584.6999999999998},{"$f":"'[2]EXT Comercio(M)'!AM370","v":1551.084846},{"$f":"'[2]EXT Comercio(M)'!AO370","v":7097.1569032221969},{"$f":"'[2]EXT Comercio(M)'!AP370","v":8648.2417492221975},null,null,{"$f":"'[2]EXT Comercio(M)'!$BS370","v":-2689.692133139361},{"$f":"'[2]EXT Comercio(M)'!$BT370","v":-3370.5219231393608}]
[null,null,"Febrero",{"$f":"'[2]REAL IPC(M)'!AD371","v":1.7900762599195572},{"$f":"'[2]REAL IPC(M)'!AE371","v":-0.38958257461608103},{"$f":"'[2]REAL IPC(M)'!AF371","v":1.2358985413523},{"$f":"'[2]REAL IPC(M)'!AG371","v":3.9901780233271942},{"$f":"'[2]REAL IPC(M)'!AH371","v":6.4136214583747391},{"$f":"'[2]REAL IPC(M)'!AI371","v":3.656658968437263},{"$f":"'[2]REAL IPC(M)'!AJ371","v":1.4453287644329923E-2},null,null,{"$f":"'[2]REAL IMAE(M)'!AG371","v":1.8531680022541142},{"$f":"'[2]REAL IMAE(M)'!AH371","v":-2.0230888661508608},{"$f":"'[2]REAL IMAE(M)'!AI371","v":-0.78807514415431323},{"$f":"'[2]REAL IMAE(M)'!AJ371","v":0.80716599856551674},{"$f":"'[2]REAL IMAE(M)'!AK371","v":3.2329012758177651},{"$f":"'[2]REAL IMAE(M)'!AL371","v":-4.097356364976358},{"$f":"'[2]REAL IMAE(M)'!AM371","v":2.8817084295804989},null,null,{"$f":"'[2]EXT ITCER(M)'!C371","v":79.628349687148472},{"$f":"'[2]EXT ITCER(M)'!D371","v":97.966062770608772},{"$f":"'[2]EXT ITCER(M)'!E371","v":54.138378126349018},{"$f":"'[2]EXT ITCER(M)'!F371","v":78.680559734763861},{"$f":"'[2]EXT ITCER(M)'!G371","v":107.8288573331515},{"$f":"'[2]EXT ITCER(M)'!H371","v":116.332845491776},{"$f":"'[2]EXT ITCER(M)'!I371","v":94.377985984937069},null,null,{"$f":"'[2]EXT TC(M)'!J371","v":-6.427300260559524},{"$f":"'[2]EXT TC(M)'!K371","v":0},{"$f":"'[2]EXT TC(M)'!L371","v":-1.1153572928603723},{"$f":"'[2]EXT TC(M)'!M371","v":1.1806740041331067},{"$f":"'[2]EXT TC(M)'!N371","v":3.1223873541202312},{"$f":"'[2]EXT TC(M)'!O371","v":5.7410263273403519},{"$f":"'[2]EXT TC(M)'!P371","v":0},null,null,{"$f":"'[2]EXT RIN(M)'!C371","v":8102.0591999999997},{"$f":"'[2]EXT RIN(M)'!D371","v":3867.49},{"$f":"'[2]EXT RIN(M)'!E371","v":15203.2},{"$f":"'[2]EXT RIN(M)'!F371","v":5855.5},{"$f":"'[2]EXT RIN(M)'!G371","v":2269.6},{"$f":"'[2]EXT RIN(M)'!H371","v":9863.6},{"$f":"'[2]EXT RIN(M)'!I371","v":3374.7569836500002},null,null,{"$f":"'[2]EXT RIN(M)'!P371","v":68.451107723882515},{"$f":"'[2]EXT RIN(M)'!Q371","v":97.447412906228251},{"$f":"'[2]EXT RIN(M)'!R371","v":120.87432594614089},{"$f":"'[2]EXT RIN(M)'!S371","v":103.07115717296288},{"$f":"'[2]EXT RIN(M)'!T371","v":129.93656653816805},{"$f":"'[2]EXT RIN(M)'!U371","v":129.60021268105325},{"$f":"'[2]EXT RIN(M)'!V371","v":167.55119415543166},null,null,{"$f":"+'[2]MONE(M)CAPARD'!AE371","v":2.956991340093551},{"$f":"'[2]MONE(M)CAPARD'!AF371","v":4.8183540423483793},{"$f":"'[2]MONE(M)CAPARD'!AG371","v":3.5601022073958433},{"$f":"'[2]MONE(M)CAPARD'!AH371","v":4.3175442739079104},{"$f":"'[2]MONE(M)CAPARD'!AI371","v":2.5831415859658504},{"$f":"'[2]MONE(M)CAPARD'!AJ371","v":4.022550092833268},{"$f":"'[2]MONE(M)CAPARD'!AK371","v":2.1552352100113552},null,null,{"$f":"'[2]MONE(M)CAPARD'!AL371","v":2.8954608199999998},{"$f":"'[2]MONE(M)CAPARD'!AM371","v":4.41},{"$f":"'[2]MONE(M)CAPARD'!AN371","v":3.21},{"$f":"'[2]MONE(M)CAPARD'!AO371","v":3.72},{"$f":"'[2]MONE(M)CAPARD'!AP371","v":5.5631029999044586},{"$f":"'[2]MONE(M)CAPARD'!AQ371","v":2.202},{"$f":"'[2]MONE(M)CAPARD'!AR371","v":2.17},null,null,{"$f":"'[2]MONE(M)CAPARD'!J371","v":11.671256851939637},{"$f":"'[2]MONE(M)CAPARD'!K371","v":6.5250028487078495},{"$f":"'[2]MONE(M)CAPARD'!L371","v":11.30439065937966},{"$f":"'[2]MONE(M)CAPARD'!M371","v":12.885661157024794},{"$f":"'[2]MONE(M)CAPARD'!N371","v":8.9098127942033667},{"$f":"'[2]MONE(M)CAPARD'!O371","v":8.6306476791682112},{"$f":"'[2]MONE(M)CAPARD'!P371","v":8.3932225046533322},null,null,{"$f":"'[2]MONE(M)CAPARD'!Q371","v":6.6049045099999999},{"$f":"'[2]MONE(M)CAPARD'!R371","v":6.11},{"$f":"'[2]MONE(M)CAPARD'!S371","v":6.37},{"$f":"'[2]MONE(M)CAPARD'!T371","v":8.14},{"$f":"'[2]MONE(M)CAPARD'!U371","v":10.182828917217801},{"$f":"'[2]MONE(M)CAPARD'!V371","v":5.4591000000000003},{"$f":"'[2]MONE(M)CAPARD'!W371","v":8.4088888888888889},null,null,{"$f":"'[2]MONE(M)CAPARD'!AS371","v":2.25},{"$f":"'[2]MONE(M)CAPARD'!AT371","v":"n.a."},{"$f":"'[2]MONE(M)CAPARD'!AU371","v":2.75},{"$f":"'[2]MONE(M)CAPARD'!AV371","v":5.25},{"$f":"'[2]MONE(M)CAPARD'!AW371","v":"n.a."},{"$f":"'[2]MONE(M)CAPARD'!AX371","v":4.5},{"$f":"'[2]MONE(M)CAPARD'!AY371","v":"n.a."},null,null,{"$f":"+'Datos_Regional (M)'!CF364","v":-1.9554972066749166},{"$f":"+'Datos_Regional (M)'!CG364","v":5.3676765180285191},{"$f":"+'Datos_Regional (M)'!CH364","v":5.9081431484056646},{"$f":"+'Datos_Regional (M)'!CI364","v":8.5796460322174148},{"$f":"+'Datos_Regional (M)'!CJ364","v":-11.275165861062931},{"$f":"+'Datos_Regional (M)'!CK364","v":13.272470977651007},{"$f":"+'Datos_Regional (M)'!CL364","v":1.8375340670037543},null,null,{"$f":"IF(EH176=\"\",\"\",+AVERAGE(EH165:EH176))","v":959.76494379333337},{"$f":"IF(EI176=\"\",\"\",+AVERAGE(EI165:EI176))","v":493.9199999999999},{"$f":"IF(EJ176=\"\",\"\",+AVERAGE(EJ165:EJ176))","v":955.15},{"$f":"IF(EK176=\"\",\"\",+AVERAGE(EK165:EK176))","v":741.07232859953001},{"$f":"IF(EL176=\"\",\"\",+AVERAGE(EL165:EL176))","v":473.44868025416662},{"$f":"IF(EM176=\"\",\"\",+AVERAGE(EM165:EM176))","v":944.80833333333339},969.6073255,4568.1642859803624,5537.7716114803634,null,null,1323.1718723641666,964.76499999999999,1667.2083333333333,1109.3545666578102,520.43383495666671,1690.866666666667,1732.1622538333334,7275.8002739786452,9007.9625278119765,null,null,-2707.6359879982801,-3470.1909163316141,null,null,{"$f":"'[2]EXT Comercio(M)'!C371","v":1034.3626561799999},{"$f":"'[2]EXT Comercio(M)'!D371","v":509.07},{"$f":"'[2]EXT Comercio(M)'!E371","v":1031.9000000000001},{"$f":"'[2]EXT Comercio(M)'!F371","v":776.68108280950889},{"$f":"'[2]EXT Comercio(M)'!G371","v":475.15164895999999},{"$f":"'[2]EXT Comercio(M)'!H371","v":953.2},{"$f":"'[2]EXT Comercio(M)'!I371","v":875.24871499999995},{"$f":"'[2]EXT Comercio(M)'!K371","v":4780.3653879495096},{"$f":"'[2]EXT Comercio(M)'!L371","v":5655.6141029495093},null,null,{"$f":"'[2]EXT Comercio(M)'!AG371","v":1230.1590949000001},{"$f":"'[2]EXT Comercio(M)'!AH371","v":864.19999999999982},{"$f":"'[2]EXT Comercio(M)'!AI371","v":1533.3},{"$f":"'[2]EXT Comercio(M)'!AJ371","v":1068.7890693833497},{"$f":"'[2]EXT Comercio(M)'!AK371","v":535.52836473999992},{"$f":"'[2]EXT Comercio(M)'!AL371","v":1534.9000000000003},{"$f":"'[2]EXT Comercio(M)'!AM371","v":1275.326274},{"$f":"'[2]EXT Comercio(M)'!AO371","v":6766.8765290233505},{"$f":"'[2]EXT Comercio(M)'!AP371","v":8042.2028030233487},null,null,{"$f":"'[2]EXT Comercio(M)'!$BS371","v":-1986.5111410738414},{"$f":"'[2]EXT Comercio(M)'!$BT371","v":-2386.5887000738417}]
[null,null,"Marzo",{"$f":"'[2]REAL IPC(M)'!AD372","v":1.9069285766384596},{"$f":"'[2]REAL IPC(M)'!AE372","v":-0.53324188465219202},{"$f":"'[2]REAL IPC(M)'!AF372","v":1.7683847315074337},{"$f":"'[2]REAL IPC(M)'!AG372","v":3.8826047080403505},{"$f":"'[2]REAL IPC(M)'!AH372","v":4.4185378473396941},{"$f":"'[2]REAL IPC(M)'!AI372","v":2.4474187380497057},{"$f":"'[2]REAL IPC(M)'!AJ372","v":-0.83969931348454996},null,null,{"$f":"'[2]REAL IMAE(M)'!AG372","v":-7.6914775006172524},{"$f":"'[2]REAL IMAE(M)'!AH372","v":-9.4298160501145158},{"$f":"'[2]REAL IMAE(M)'!AI372","v":-4.0414317454461708},{"$f":"'[2]REAL IMAE(M)'!AJ372","v":-8.4374236252012178},{"$f":"'[2]REAL IMAE(M)'!AK372","v":3.2585540497329748},{"$f":"'[2]REAL IMAE(M)'!AL372","v":-7.2425782343217699},{"$f":"'[2]REAL IMAE(M)'!AM372","v":2.4325951293145311},null,null,{"$f":"'[2]EXT ITCER(M)'!C372","v":79.286040043705995},{"$f":"'[2]EXT ITCER(M)'!D372","v":97.462710264704143},{"$f":"'[2]EXT ITCER(M)'!E372","v":53.946506729940289},{"$f":"'[2]EXT ITCER(M)'!F372","v":78.247563227242424},{"$f":"'[2]EXT ITCER(M)'!G372","v":107.6663803528383},{"$f":"'[2]EXT ITCER(M)'!H372","v":117.23540468616881},{"$f":"'[2]EXT ITCER(M)'!I372","v":94.387850700703112},null,null,{"$f":"'[2]EXT TC(M)'!J372","v":-5.4826945387359221},{"$f":"'[2]EXT TC(M)'!K372","v":0},{"$f":"'[2]EXT TC(M)'!L372","v":1.8645137400320779E-2},{"$f":"'[2]EXT TC(M)'!M372","v":1.1968219695093847},{"$f":"'[2]EXT TC(M)'!N372","v":3.2638430092212429},{"$f":"'[2]EXT TC(M)'!O372","v":6.3831143137867254},{"$f":"'[2]EXT TC(M)'!P372","v":0},null,null,{"$f":"'[2]EXT RIN(M)'!C372","v":8032.8577080200002},{"$f":"'[2]EXT RIN(M)'!D372","v":3864.18},{"$f":"'[2]EXT RIN(M)'!E372","v":15337.7},{"$f":"'[2]EXT RIN(M)'!F372","v":6086.2},{"$f":"'[2]EXT RIN(M)'!G372","v":2394.5},{"$f":"'[2]EXT RIN(M)'!H372","v":9324.4},{"$f":"'[2]EXT RIN(M)'!I372","v":3223.7272755699996},null,null,{"$f":"'[2]EXT RIN(M)'!P372","v":68.798368610386504},{"$f":"'[2]EXT RIN(M)'!Q372","v":105.28532793053671},{"$f":"'[2]EXT RIN(M)'!R372","v":122.19212355324709},{"$f":"'[2]EXT RIN(M)'!S372","v":106.56003581661604},{"$f":"'[2]EXT RIN(M)'!T372","v":135.71187063050547},{"$f":"'[2]EXT RIN(M)'!U372","v":111.88858718077945},{"$f":"'[2]EXT RIN(M)'!V372","v":158.92421513372054},null,null,{"$f":"+'[2]MONE(M)CAPARD'!AE372","v":2.2010980555406037},{"$f":"'[2]MONE(M)CAPARD'!AF372","v":4.7787240428003477},{"$f":"'[2]MONE(M)CAPARD'!AG372","v":2.9985886840432361},{"$f":"'[2]MONE(M)CAPARD'!AH372","v":4.37743672748676},{"$f":"'[2]MONE(M)CAPARD'!AI372","v":4.5443538279748967},{"$f":"'[2]MONE(M)CAPARD'!AJ372","v":4.1439611795446138},{"$f":"'[2]MONE(M)CAPARD'!AK372","v":3.0049317043768822},null,null,{"$f":"'[2]MONE(M)CAPARD'!AL372","v":3.3148440099999998},{"$f":"'[2]MONE(M)CAPARD'!AM372","v":4.22},{"$f":"'[2]MONE(M)CAPARD'!AN372","v":3.14},{"$f":"'[2]MONE(M)CAPARD'!AO372","v":3.7},{"$f":"'[2]MONE(M)CAPARD'!AP372","v":5.3477499691828321},{"$f":"'[2]MONE(M)CAPARD'!AQ372","v":1.8828},{"$f":"'[2]MONE(M)CAPARD'!AR372","v":2.14},null,null,{"$f":"'[2]MONE(M)CAPARD'!J372","v":9.3429794385385918},{"$f":"'[2]MONE(M)CAPARD'!K372","v":6.6788563440946547},{"$f":"'[2]MONE(M)CAPARD'!L372","v":10.68270396270397},{"$f":"'[2]MONE(M)CAPARD'!M372","v":12.896668628605067},{"$f":"'[2]MONE(M)CAPARD'!N372","v":9.2420441988261199},{"$f":"'[2]MONE(M)CAPARD'!O372","v":10.572917693169101},{"$f":"'[2]MONE(M)CAPARD'!P372","v":9.312339408007384},null,null,{"$f":"'[2]MONE(M)CAPARD'!Q372","v":6.7416474500000003},{"$f":"'[2]MONE(M)CAPARD'!R372","v":6.11},{"$f":"'[2]MONE(M)CAPARD'!S372","v":6.31},{"$f":"'[2]MONE(M)CAPARD'!T372","v":8.0399999999999991},{"$f":"'[2]MONE(M)CAPARD'!U372","v":9.3968483871347832},{"$f":"'[2]MONE(M)CAPARD'!V372","v":5.0694999999999997},{"$f":"'[2]MONE(M)CAPARD'!W372","v":8.3944444444444439},null,null,{"$f":"'[2]MONE(M)CAPARD'!AS372","v":1.25},{"$f":"'[2]MONE(M)CAPARD'!AT372","v":"n.a."},{"$f":"'[2]MONE(M)CAPARD'!AU372","v":2},{"$f":"'[2]MONE(M)CAPARD'!AV372","v":4.5},{"$f":"'[2]MONE(M)CAPARD'!AW372","v":"n.a."},{"$f":"'[2]MONE(M)CAPARD'!AX372","v":3.5},{"$f":"'[2]MONE(M)CAPARD'!AY372","v":"n.a."},null,null,{"$f":"+'Datos_Regional (M)'!CF365","v":-0.63281508084093163},{"$f":"+'Datos_Regional (M)'!CG365","v":6.3432273346886392},{"$f":"+'Datos_Regional (M)'!CH365","v":7.6019944479178703},{"$f":"+'Datos_Regional (M)'!CI365","v":8.4780895397383418},{"$f":"+'Datos_Regional (M)'!CJ365","v":-9.2207739229426604},{"$f":"+'Datos_Regional (M)'!CK365","v":10.526650515259718},{"$f":"+'Datos_Regional (M)'!CL365","v":1.8269167933354202},null,null,967.47625601166646,484.28999999999996,950.06666666666661,726.83364902071617,475.44904507916658,935.50833333333333,965.28322733333334,4539.6239501115488,5504.907177444883,null,null,1307.342762480833,954.04750000000001,1654.0666666666666,1091.4038709515946,521.05328643333326,1674.7250000000001,1683.0829135000004,7202.6390865324292,8885.7220000324287,null,null,-2663.0151364208782,-3380.8148225875461,null,null,{"$f":"'[2]EXT Comercio(M)'!C372","v":1138.3431456899998},{"$f":"'[2]EXT Comercio(M)'!D372","v":399.32000000000016},{"$f":"'[2]EXT Comercio(M)'!E372","v":1003.6},{"$f":"'[2]EXT Comercio(M)'!F372","v":634.13895399239982},{"$f":"'[2]EXT Comercio(M)'!G372","v":508.90266910000003},{"$f":"'[2]EXT Comercio(M)'!H372","v":874.3},{"$f":"'[2]EXT Comercio(M)'!I372","v":853.10082199999999},{"$f":"'[2]EXT Comercio(M)'!K372","v":4558.6047687823993},{"$f":"'[2]EXT Comercio(M)'!L372","v":5411.7055907823997},null,null,{"$f":"'[2]EXT Comercio(M)'!AG372","v":1242.4212466899999},{"$f":"'[2]EXT Comercio(M)'!AH372","v":871.32000000000016},{"$f":"'[2]EXT Comercio(M)'!AI372","v":1469},{"$f":"'[2]EXT Comercio(M)'!AJ372","v":900.06931383833626},{"$f":"'[2]EXT Comercio(M)'!AK372","v":513.44228941999995},{"$f":"'[2]EXT Comercio(M)'!AL372","v":1505.2000000000003},{"$f":"'[2]EXT Comercio(M)'!AM372","v":1197.612916},{"$f":"'[2]EXT Comercio(M)'!AO372","v":6501.4528499483367},{"$f":"'[2]EXT Comercio(M)'!AP372","v":7699.0657659483368},null,null,{"$f":"'[2]EXT Comercio(M)'!$BS372","v":-1942.8480811659365},{"$f":"'[2]EXT Comercio(M)'!$BT372","v":-2287.3601751659362}]
[null,null,"Abril",{"$f":"'[2]REAL IPC(M)'!AD373","v":0.8911626229277152},{"$f":"'[2]REAL IPC(M)'!AE373","v":-1.0492710830404626},{"$f":"'[2]REAL IPC(M)'!AF373","v":1.8792425866381013},{"$f":"'[2]REAL IPC(M)'!AG373","v":3.3323235383217207},{"$f":"'[2]REAL IPC(M)'!AH373","v":3.2463383911215602},{"$f":"'[2]REAL IPC(M)'!AI373","v":1.0727328058429724},{"$f":"'[2]REAL IPC(M)'!AJ373","v":-2.3736443820454518},null,null,{"$f":"'[2]REAL IMAE(M)'!AG373","v":-8.3443877718604256},{"$f":"'[2]REAL IMAE(M)'!AH373","v":-17.373240400520661},{"$f":"'[2]REAL IMAE(M)'!AI373","v":-6.5953942447888618},{"$f":"'[2]REAL IMAE(M)'!AJ373","v":-8.562843504145432},{"$f":"'[2]REAL IMAE(M)'!AK373","v":3.0320770248566622},{"$f":"'[2]REAL IMAE(M)'!AL373","v":-9.4672677476142724},{"$f":"'[2]REAL IMAE(M)'!AM373","v":-41.550116438753044},null,null,{"$f":"'[2]EXT ITCER(M)'!C373","v":78.726709563966892},{"$f":"'[2]EXT ITCER(M)'!D373","v":97.046883357598901},{"$f":"'[2]EXT ITCER(M)'!E373","v":53.280002954973938},{"$f":"'[2]EXT ITCER(M)'!F373","v":77.619194246189835},{"$f":"'[2]EXT ITCER(M)'!G373","v":107.211444991246},{"$f":"'[2]EXT ITCER(M)'!H373","v":118.2883243769931},{"$f":"'[2]EXT ITCER(M)'!I373","v":94.84992914860095},null,null,{"$f":"'[2]EXT TC(M)'!J373","v":-5.2069949477456738},{"$f":"'[2]EXT TC(M)'!K373","v":0},{"$f":"'[2]EXT TC(M)'!L373","v":0.86877030442372005},{"$f":"'[2]EXT TC(M)'!M373","v":1.5255131120407039},{"$f":"'[2]EXT TC(M)'!N373","v":3.6799954371974217},{"$f":"'[2]EXT TC(M)'!O373","v":7.2644749297418878},{"$f":"'[2]EXT TC(M)'!P373","v":0},null,null,{"$f":"'[2]EXT RIN(M)'!C373","v":8530.9281593100004},{"$f":"'[2]EXT RIN(M)'!D373","v":3663.53},{"$f":"'[2]EXT RIN(M)'!E373","v":16549.400000000001},{"$f":"'[2]EXT RIN(M)'!F373","v":6131},{"$f":"'[2]EXT RIN(M)'!G373","v":2494.5},{"$f":"'[2]EXT RIN(M)'!H373","v":8613.7032668002321},{"$f":"'[2]EXT RIN(M)'!I373","v":5633.3423553399989},null,null,{"$f":"'[2]EXT RIN(M)'!P373","v":71.48710870131076},{"$f":"'[2]EXT RIN(M)'!Q373","v":117.0856007463247},{"$f":"'[2]EXT RIN(M)'!R373","v":128.59034645586601},{"$f":"'[2]EXT RIN(M)'!S373","v":107.13517164208103},{"$f":"'[2]EXT RIN(M)'!T373","v":133.08309190197963},{"$f":"'[2]EXT RIN(M)'!U373","v":105.12361531985621},{"$f":"'[2]EXT RIN(M)'!V373","v":274.83710857233399},null,null,{"$f":"+'[2]MONE(M)CAPARD'!AE373","v":2.9822605854167454},{"$f":"'[2]MONE(M)CAPARD'!AF373","v":5.3453583828364444},{"$f":"'[2]MONE(M)CAPARD'!AG373","v":2.8079884976854936},{"$f":"'[2]MONE(M)CAPARD'!AH373","v":4.8655408970976257},{"$f":"'[2]MONE(M)CAPARD'!AI373","v":5.7526517457354265},{"$f":"'[2]MONE(M)CAPARD'!AJ373","v":4.987860775310498},{"$f":"'[2]MONE(M)CAPARD'!AK373","v":4.633630287038498},null,null,{"$f":"'[2]MONE(M)CAPARD'!AL373","v":3.1547401599999998},{"$f":"'[2]MONE(M)CAPARD'!AM373","v":4.24},{"$f":"'[2]MONE(M)CAPARD'!AN373","v":3.09},{"$f":"'[2]MONE(M)CAPARD'!AO373","v":3.67},{"$f":"'[2]MONE(M)CAPARD'!AP373","v":5.4317625865585297},{"$f":"'[2]MONE(M)CAPARD'!AQ373","v":1.0955999999999999},{"$f":"'[2]MONE(M)CAPARD'!AR373","v":2.15},null,null,{"$f":"'[2]MONE(M)CAPARD'!J373","v":9.3895149592809659},{"$f":"'[2]MONE(M)CAPARD'!K373","v":8.0638830763305922},{"$f":"'[2]MONE(M)CAPARD'!L373","v":10.542635713283753},{"$f":"'[2]MONE(M)CAPARD'!M373","v":13.246267956610966},{"$f":"'[2]MONE(M)CAPARD'!N373","v":12.563699708698509},{"$f":"'[2]MONE(M)CAPARD'!O373","v":9.1847394806172353},{"$f":"'[2]MONE(M)CAPARD'!P373","v":11.004860638339323},null,null,{"$f":"'[2]MONE(M)CAPARD'!Q373","v":7.7222214899999999},{"$f":"'[2]MONE(M)CAPARD'!R373","v":6.93},{"$f":"'[2]MONE(M)CAPARD'!S373","v":6.21},{"$f":"'[2]MONE(M)CAPARD'!T373","v":7.94},{"$f":"'[2]MONE(M)CAPARD'!U373","v":10.3068899661298},{"$f":"'[2]MONE(M)CAPARD'!V373","v":4.4138000000000002},{"$f":"'[2]MONE(M)CAPARD'!W373","v":8.3699999999999992},null,null,{"$f":"'[2]MONE(M)CAPARD'!AS373","v":1.25},{"$f":"'[2]MONE(M)CAPARD'!AT373","v":"n.a."},{"$f":"'[2]MONE(M)CAPARD'!AU373","v":2},{"$f":"'[2]MONE(M)CAPARD'!AV373","v":4.5},{"$f":"'[2]MONE(M)CAPARD'!AW373","v":6},{"$f":"'[2]MONE(M)CAPARD'!AX373","v":3.5},{"$f":"'[2]MONE(M)CAPARD'!AY373","v":"n.a."},null,null,{"$f":"+'Datos_Regional (M)'!CF366","v":-2.0086836719972911},{"$f":"+'Datos_Regional (M)'!CG366","v":6.0742415060164978},{"$f":"+'Datos_Regional (M)'!CH366","v":7.8943932078250789},{"$f":"+'Datos_Regional (M)'!CI366","v":8.846534904633053},{"$f":"+'Datos_Regional (M)'!CJ366","v":-9.6927837049300294},{"$f":"+'Datos_Regional (M)'!CK366","v":11.804081891661045},{"$f":"+'Datos_Regional (M)'!CL366","v":1.8089029924701183},null,null,958.28322208999987,463.12833333333327,942.56666666666661,699.31042532038828,467.65047657916654,910.38333333333333,928.50051166666663,4441.3224573228872,5369.8229689895552,null,null,1282.6634646183331,926.65749999999991,1632.4416666666668,1060.329672199912,509.57813840666671,1641.1083333333333,1604.7047293333335,7052.7787752249142,8657.4835045582458,null,null,-2611.4563179020238,-3287.6605355686911,null,null,{"$f":"'[2]EXT Comercio(M)'!C373","v":842.49342378999995},{"$f":"'[2]EXT Comercio(M)'!D373","v":212.17000000000007},{"$f":"'[2]EXT Comercio(M)'!E373","v":827},{"$f":"'[2]EXT Comercio(M)'!F373","v":395.41413656031671},{"$f":"'[2]EXT Comercio(M)'!G373","v":366.18703321999999},{"$f":"'[2]EXT Comercio(M)'!H373","v":555.19999999999993},{"$f":"'[2]EXT Comercio(M)'!I373","v":399.74141200000003},{"$f":"'[2]EXT Comercio(M)'!K373","v":3198.4645935703156},{"$f":"'[2]EXT Comercio(M)'!L373","v":3598.206005570315},null,null,{"$f":"'[2]EXT Comercio(M)'!AG373","v":1018.5449411900001},{"$f":"'[2]EXT Comercio(M)'!AH373","v":619.98},{"$f":"'[2]EXT Comercio(M)'!AI373","v":1362.8999999999999},{"$f":"'[2]EXT Comercio(M)'!AJ373","v":729.54583744696595},{"$f":"'[2]EXT Comercio(M)'!AK373","v":415.99922313000002},{"$f":"'[2]EXT Comercio(M)'!AL373","v":1200.3},{"$f":"'[2]EXT Comercio(M)'!AM373","v":1000.15379},{"$f":"'[2]EXT Comercio(M)'!AO373","v":5347.2700017669667},{"$f":"'[2]EXT Comercio(M)'!AP373","v":6347.423791766967},null,null,{"$f":"'[2]EXT Comercio(M)'!$BS373","v":-2148.8054081966493},{"$f":"'[2]EXT Comercio(M)'!$BT373","v":-2749.2177861966493}]
[null,null,"Mayo ",{"$f":"'[2]REAL IPC(M)'!AD374","v":0.60875081100752826},{"$f":"'[2]REAL IPC(M)'!AE374","v":-0.94696974525974364},{"$f":"'[2]REAL IPC(M)'!AF374","v":1.8030216647662589},{"$f":"'[2]REAL IPC(M)'!AG374","v":2.2939933594928963},{"$f":"'[2]REAL IPC(M)'!AH374","v":2.9330826341760647},{"$f":"'[2]REAL IPC(M)'!AI374","v":0.98934550989343406},{"$f":"'[2]REAL IPC(M)'!AJ374","v":-2.4690584186173612},null,null,{"$f":"'[2]REAL IMAE(M)'!AG374","v":-8.8045446224873274},{"$f":"'[2]REAL IMAE(M)'!AH374","v":-19.474951628406018},{"$f":"'[2]REAL IMAE(M)'!AI374","v":-7.5726611762579648},{"$f":"'[2]REAL IMAE(M)'!AJ374","v":-8.657271863484711},{"$f":"'[2]REAL IMAE(M)'!AK374","v":2.6984675808454566},{"$f":"'[2]REAL IMAE(M)'!AL374","v":-10.397843331182658},{"$f":"'[2]REAL IMAE(M)'!AM374","v":-41.577685674839479},null,null,{"$f":"'[2]EXT ITCER(M)'!C374","v":78.901114050833257},{"$f":"'[2]EXT ITCER(M)'!D374","v":96.740660375126339},{"$f":"'[2]EXT ITCER(M)'!E374","v":53.055545318305597},{"$f":"'[2]EXT ITCER(M)'!F374","v":78.13202303465475},{"$f":"'[2]EXT ITCER(M)'!G374","v":107.09877555579889},{"$f":"'[2]EXT ITCER(M)'!H374","v":120.91921529980969},{"$f":"'[2]EXT ITCER(M)'!I374","v":94.774901326440784},null,null,{"$f":"'[2]EXT TC(M)'!J374","v":-3.7735818044049187},{"$f":"'[2]EXT TC(M)'!K374","v":0},{"$f":"'[2]EXT TC(M)'!L374","v":0.35609836416906165},{"$f":"'[2]EXT TC(M)'!M374","v":1.5246455357014324},{"$f":"'[2]EXT TC(M)'!N374","v":3.692823276242243},{"$f":"'[2]EXT TC(M)'!O374","v":9.5990507985927049},{"$f":"'[2]EXT TC(M)'!P374","v":0},null,null,{"$f":"'[2]EXT RIN(M)'!C374","v":8552.7344102400002},{"$f":"'[2]EXT RIN(M)'!D374","v":3441.4},{"$f":"'[2]EXT RIN(M)'!E374","v":16708.099999999999},{"$f":"'[2]EXT RIN(M)'!F374","v":6353.3},{"$f":"'[2]EXT RIN(M)'!G374","v":2562.5},{"$f":"'[2]EXT RIN(M)'!H374","v":8008.8939985043398},{"$f":"'[2]EXT RIN(M)'!I374","v":6104.1939384200004},null,null,{"$f":"'[2]EXT RIN(M)'!P374","v":70.082257135543529},{"$f":"'[2]EXT RIN(M)'!Q374","v":115.87989624887072},{"$f":"'[2]EXT RIN(M)'!R374","v":125.27648575294803},{"$f":"'[2]EXT RIN(M)'!S374","v":106.25139824407775},{"$f":"'[2]EXT RIN(M)'!T374","v":132.78755110386163},{"$f":"'[2]EXT RIN(M)'!U374","v":102.32182980941525},{"$f":"'[2]EXT RIN(M)'!V374","v":285.61823583953856},null,null,{"$f":"+'[2]MONE(M)CAPARD'!AE374","v":3.2216374449188061},{"$f":"'[2]MONE(M)CAPARD'!AF374","v":5.3879924031948923},{"$f":"'[2]MONE(M)CAPARD'!AG374","v":2.8751389569478367},{"$f":"'[2]MONE(M)CAPARD'!AH374","v":5.8615432280908921},{"$f":"'[2]MONE(M)CAPARD'!AI374","v":5.9779292130649972},{"$f":"'[2]MONE(M)CAPARD'!AJ374","v":3.6363781461944451},{"$f":"'[2]MONE(M)CAPARD'!AK374","v":4.7359928487546545},null,null,{"$f":"'[2]MONE(M)CAPARD'!AL374","v":2.92022001},{"$f":"'[2]MONE(M)CAPARD'!AM374","v":4.3899999999999997},{"$f":"'[2]MONE(M)CAPARD'!AN374","v":3.07},{"$f":"'[2]MONE(M)CAPARD'!AO374","v":3.64},{"$f":"'[2]MONE(M)CAPARD'!AP374","v":5.5605955600218904},{"$f":"'[2]MONE(M)CAPARD'!AQ374","v":1.7024999999999999},{"$f":"'[2]MONE(M)CAPARD'!AR374","v":2.15},null,null,{"$f":"'[2]MONE(M)CAPARD'!J374","v":10.653359496657023},{"$f":"'[2]MONE(M)CAPARD'!K374","v":8.325812672313555},{"$f":"'[2]MONE(M)CAPARD'!L374","v":10.664691634581716},{"$f":"'[2]MONE(M)CAPARD'!M374","v":14.405544408380067},{"$f":"'[2]MONE(M)CAPARD'!N374","v":13.227734046005395},{"$f":"'[2]MONE(M)CAPARD'!O374","v":9.5950265259985166},{"$f":"'[2]MONE(M)CAPARD'!P374","v":11.082696673852954},null,null,{"$f":"'[2]MONE(M)CAPARD'!Q374","v":7.6261134999999998},{"$f":"'[2]MONE(M)CAPARD'!R374","v":7.3},{"$f":"'[2]MONE(M)CAPARD'!S374","v":6.22},{"$f":"'[2]MONE(M)CAPARD'!T374","v":7.96},{"$f":"'[2]MONE(M)CAPARD'!U374","v":10.6040722984696},{"$f":"'[2]MONE(M)CAPARD'!V374","v":4.8818999999999999},{"$f":"'[2]MONE(M)CAPARD'!W374","v":8.34},null,null,{"$f":"'[2]MONE(M)CAPARD'!AS374","v":1.25},{"$f":"'[2]MONE(M)CAPARD'!AT374","v":"n.a."},{"$f":"'[2]MONE(M)CAPARD'!AU374","v":2},{"$f":"'[2]MONE(M)CAPARD'!AV374","v":4.5},{"$f":"'[2]MONE(M)CAPARD'!AW374","v":5.5},{"$f":"'[2]MONE(M)CAPARD'!AX374","v":3.5},{"$f":"'[2]MONE(M)CAPARD'!AY374","v":"n.a."},null,null,{"$f":"+'Datos_Regional (M)'!CF367","v":-1.014614995874108},{"$f":"+'Datos_Regional (M)'!CG367","v":6.1864760551375575},{"$f":"+'Datos_Regional (M)'!CH367","v":7.7042497649167707},{"$f":"+'Datos_Regional (M)'!CI367","v":8.4497522487569476},{"$f":"+'Datos_Regional (M)'!CJ367","v":-7.9681401418362992},{"$f":"+'Datos_Regional (M)'!CK367","v":13.225688766196498},{"$f":"+'Datos_Regional (M)'!CL367","v":2.1061950124160678},null,null,940.5736296424999,437.07249999999993,937.05833333333339,668.90915386702409,457.12055953999999,882.7166666666667,883.48691658333325,4323.4508430495234,5206.9377596328586,null,null,1249.3667735166666,884.9375,1592.3583333333333,1019.5897876100875,498.94164071250003,1573.9083333333331,1524.0939991666664,6819.1023685059217,8343.1963676725882,null,null,-2495.6515254563969,-3136.25860803973,null,null,{"$f":"'[2]EXT Comercio(M)'!C374","v":846.24507284000038},{"$f":"'[2]EXT Comercio(M)'!D374","v":234.16000000000008},{"$f":"'[2]EXT Comercio(M)'!E374","v":882.2},{"$f":"'[2]EXT Comercio(M)'!F374","v":457.71312455858867},{"$f":"'[2]EXT Comercio(M)'!G374","v":347.99388700999998},{"$f":"'[2]EXT Comercio(M)'!H374","v":684.2},{"$f":"'[2]EXT Comercio(M)'!I374","v":458.46785899999998},{"$f":"'[2]EXT Comercio(M)'!K374","v":3452.5120844085905},{"$f":"'[2]EXT Comercio(M)'!L374","v":3910.9799434085908},null,null,{"$f":"'[2]EXT Comercio(M)'!AG374","v":995.05013234000023},{"$f":"'[2]EXT Comercio(M)'!AH374","v":574.99000000000024},{"$f":"'[2]EXT Comercio(M)'!AI374","v":1294.2},{"$f":"'[2]EXT Comercio(M)'!AJ374","v":655.46565449589048},{"$f":"'[2]EXT Comercio(M)'!AK374","v":377.66198711000004},{"$f":"'[2]EXT Comercio(M)'!AL374","v":1108.5},{"$f":"'[2]EXT Comercio(M)'!AM374","v":886.04323799999997},{"$f":"'[2]EXT Comercio(M)'!AO374","v":5005.8677739458872},{"$f":"'[2]EXT Comercio(M)'!AP374","v":5891.9110119458855},null,null,{"$f":"'[2]EXT Comercio(M)'!$BS374","v":-1553.3556895373003},{"$f":"'[2]EXT Comercio(M)'!$BT374","v":-1980.9310685373002}]
[null,null,"Junio",{"$f":"'[2]REAL IPC(M)'!AD375","v":0.31161483621358926},{"$f":"'[2]REAL IPC(M)'!AE375","v":-0.2306266023124347},{"$f":"'[2]REAL IPC(M)'!AF375","v":2.3890302516256865},{"$f":"'[2]REAL IPC(M)'!AG375","v":2.6537997587454627},{"$f":"'[2]REAL IPC(M)'!AH375","v":3.6214635934798296},{"$f":"'[2]REAL IPC(M)'!AI375","v":2.8972247636474506},{"$f":"'[2]REAL IPC(M)'!AJ375","v":-1.6363575726679735},null,null,{"$f":"'[2]REAL IMAE(M)'!AG375","v":-8.8056734513601498},{"$f":"'[2]REAL IMAE(M)'!AH375","v":-16.432427606165533},{"$f":"'[2]REAL IMAE(M)'!AI375","v":-6.7391898242482071},{"$f":"'[2]REAL IMAE(M)'!AJ375","v":-8.312544868904105},{"$f":"'[2]REAL IMAE(M)'!AK375","v":2.3637465777931856},{"$f":"'[2]REAL IMAE(M)'!AL375","v":-10.100342001179417},{"$f":"'[2]REAL IMAE(M)'!AM375","v":-34.55031799034488},null,null,{"$f":"'[2]EXT ITCER(M)'!C375","v":80.294252715487261},{"$f":"'[2]EXT ITCER(M)'!D375","v":96.600817760179098},{"$f":"'[2]EXT ITCER(M)'!E375","v":52.560229401482673},{"$f":"'[2]EXT ITCER(M)'!F375","v":77.954836404537815},{"$f":"'[2]EXT ITCER(M)'!G375","v":107.2840943733075},{"$f":"'[2]EXT ITCER(M)'!H375","v":124.91144701453091},{"$f":"'[2]EXT ITCER(M)'!I375","v":94.696790557329436},null,null,{"$f":"'[2]EXT TC(M)'!J375","v":-1.561273465840711},{"$f":"'[2]EXT TC(M)'!K375","v":0},{"$f":"'[2]EXT TC(M)'!L375","v":-3.1364566889171747E-2},{"$f":"'[2]EXT TC(M)'!M375","v":1.102406260429049},{"$f":"'[2]EXT TC(M)'!N375","v":3.6743501825004321},{"$f":"'[2]EXT TC(M)'!O375","v":14.311379860760882},{"$f":"'[2]EXT TC(M)'!P375","v":0},null,null,{"$f":"'[2]EXT RIN(M)'!C375","v":8565.13666715},{"$f":"'[2]EXT RIN(M)'!D375","v":3103.77},{"$f":"'[2]EXT RIN(M)'!E375","v":16991.8},{"$f":"'[2]EXT RIN(M)'!F375","v":7389},{"$f":"'[2]EXT RIN(M)'!G375","v":2574.6999999999998},{"$f":"'[2]EXT RIN(M)'!H375","v":7142.4894966384772},{"$f":"'[2]EXT RIN(M)'!I375","v":5909.7032492800008},null,null,{"$f":"'[2]EXT RIN(M)'!P375","v":67.931640810969469},{"$f":"'[2]EXT RIN(M)'!Q375","v":104.42767107690941},{"$f":"'[2]EXT RIN(M)'!R375","v":125.99771610897963},{"$f":"'[2]EXT RIN(M)'!S375","v":117.82251518300515},{"$f":"'[2]EXT RIN(M)'!T375","v":134.08598431692312},{"$f":"'[2]EXT RIN(M)'!U375","v":87.429804264629524},{"$f":"'[2]EXT RIN(M)'!V375","v":277.10863568251989},null,null,{"$f":"+'[2]MONE(M)CAPARD'!AE375","v":3.6270826361703774},{"$f":"'[2]MONE(M)CAPARD'!AF375","v":4.5711689339106742},{"$f":"'[2]MONE(M)CAPARD'!AG375","v":2.2375148419163176},{"$f":"'[2]MONE(M)CAPARD'!AH375","v":5.4417861339600613},{"$f":"'[2]MONE(M)CAPARD'!AI375","v":5.8480415299275483},{"$f":"'[2]MONE(M)CAPARD'!AJ375","v":2.3297763781861325},{"$f":"'[2]MONE(M)CAPARD'!AK375","v":3.7985148581990318},null,null,{"$f":"'[2]MONE(M)CAPARD'!AL375","v":2.9190898199999999},{"$f":"'[2]MONE(M)CAPARD'!AM375","v":4.33},{"$f":"'[2]MONE(M)CAPARD'!AN375","v":3.05},{"$f":"'[2]MONE(M)CAPARD'!AO375","v":3.65},{"$f":"'[2]MONE(M)CAPARD'!AP375","v":5.7943498338608004},{"$f":"'[2]MONE(M)CAPARD'!AQ375","v":1.5757000000000001},{"$f":"'[2]MONE(M)CAPARD'!AR375","v":2.1},null,null,{"$f":"'[2]MONE(M)CAPARD'!J375","v":11.830880435095962},{"$f":"'[2]MONE(M)CAPARD'!K375","v":7.2673871303280011},{"$f":"'[2]MONE(M)CAPARD'!L375","v":10.021551843158896},{"$f":"'[2]MONE(M)CAPARD'!M375","v":13.858425381903658},{"$f":"'[2]MONE(M)CAPARD'!N375","v":11.655116558068565},{"$f":"'[2]MONE(M)CAPARD'!O375","v":7.9088384113811534},{"$f":"'[2]MONE(M)CAPARD'!P375","v":10.111823156626222},null,null,{"$f":"'[2]MONE(M)CAPARD'!Q375","v":7.2081683200000004},{"$f":"'[2]MONE(M)CAPARD'!R375","v":7.02},{"$f":"'[2]MONE(M)CAPARD'!S375","v":6.21},{"$f":"'[2]MONE(M)CAPARD'!T375","v":7.97},{"$f":"'[2]MONE(M)CAPARD'!U375","v":10.058727307113299},{"$f":"'[2]MONE(M)CAPARD'!V375","v":4.1985000000000001},{"$f":"'[2]MONE(M)CAPARD'!W375","v":8.31},null,null,{"$f":"'[2]MONE(M)CAPARD'!AS375","v":0.75},{"$f":"'[2]MONE(M)CAPARD'!AT375","v":"n.a."},{"$f":"'[2]MONE(M)CAPARD'!AU375","v":1.75},{"$f":"'[2]MONE(M)CAPARD'!AV375","v":4.5},{"$f":"'[2]MONE(M)CAPARD'!AW375","v":4.5},{"$f":"'[2]MONE(M)CAPARD'!AX375","v":3.5},{"$f":"'[2]MONE(M)CAPARD'!AY375","v":"n.a."},null,null,{"$f":"+'Datos_Regional (M)'!CF368","v":-0.14256330020202546},{"$f":"+'Datos_Regional (M)'!CG368","v":5.580481628732481},{"$f":"+'Datos_Regional (M)'!CH368","v":7.0593657906853791},{"$f":"+'Datos_Regional (M)'!CI368","v":8.0070481285880568},{"$f":"+'Datos_Regional (M)'!CJ368","v":-7.6598862791007694},{"$f":"+'Datos_Regional (M)'!CK368","v":13.173957949804716},{"$f":"+'Datos_Regional (M)'!CL368","v":1.2474500594518823},null,null,937.23023642916667,415.78916666666669,921.25833333333333,655.33258394328811,449.43394735916672,871.90833333333342,873.30929800000001,4250.9526010649543,5124.2618990649544,null,null,1243.3000406666667,867.83833333333348,1573.2749999999999,1000.6318536060976,494.83216804750009,1540.9666666666662,1468.6120890000002,6720.8440623202659,8189.4561513202652,null,null,-2469.8914612553094,-3065.1942522553095,null,null,{"$f":"'[2]EXT Comercio(M)'!C375","v":927.18462357999988},{"$f":"'[2]EXT Comercio(M)'!D375","v":274.75},{"$f":"'[2]EXT Comercio(M)'!E375","v":763.3},{"$f":"'[2]EXT Comercio(M)'!F375","v":591.97236754337371},{"$f":"'[2]EXT Comercio(M)'!G375","v":392.97170396000001},{"$f":"'[2]EXT Comercio(M)'!H375","v":814},{"$f":"'[2]EXT Comercio(M)'!I375","v":789.775577},{"$f":"'[2]EXT Comercio(M)'!K375","v":3764.1786950833739},{"$f":"'[2]EXT Comercio(M)'!L375","v":4553.9542720833742},null,null,{"$f":"'[2]EXT Comercio(M)'!AG375","v":1158.7049894999996},{"$f":"'[2]EXT Comercio(M)'!AH375","v":723.32999999999947},{"$f":"'[2]EXT Comercio(M)'!AI375","v":1296.3},{"$f":"'[2]EXT Comercio(M)'!AJ375","v":798.6700186123669},{"$f":"'[2]EXT Comercio(M)'!AK375","v":459.71778073000007},{"$f":"'[2]EXT Comercio(M)'!AL375","v":1225.3},{"$f":"'[2]EXT Comercio(M)'!AM375","v":1206.2860780000001},{"$f":"'[2]EXT Comercio(M)'!AO375","v":5662.0227888423688},{"$f":"'[2]EXT Comercio(M)'!AP375","v":6868.3088668423734},null,null,{"$f":"'[2]EXT Comercio(M)'!$BS375","v":-1897.844093758993},{"$f":"'[2]EXT Comercio(M)'!$BT375","v":-2314.3545947589919}]
[null,null,"Julio",{"$f":"'[2]REAL IPC(M)'!AD376","v":-0.16512011017254632},{"$f":"'[2]REAL IPC(M)'!AE376","v":-6.1945569849340534E-2},{"$f":"'[2]REAL IPC(M)'!AF376","v":2.8783592644978788},{"$f":"'[2]REAL IPC(M)'!AG376","v":3.0977443609022588},{"$f":"'[2]REAL IPC(M)'!AH376","v":3.4448288508614771},{"$f":"'[2]REAL IPC(M)'!AI376","v":4.3484859983304061},{"$f":"'[2]REAL IPC(M)'!AJ376","v":-2.24999310693007},null,null,{"$f":"'[2]REAL IMAE(M)'!AG376","v":-8.5408873461089172},{"$f":"'[2]REAL IMAE(M)'!AH376","v":-12.113640822191257},{"$f":"'[2]REAL IMAE(M)'!AI376","v":-4.5256489923143981},{"$f":"'[2]REAL IMAE(M)'!AJ376","v":-7.7529336931355735},{"$f":"'[2]REAL IMAE(M)'!AK376","v":1.9251313449241925},{"$f":"'[2]REAL IMAE(M)'!AL376","v":-9.0592373296270718},{"$f":"'[2]REAL IMAE(M)'!AM376","v":-33.779995514220737},null,null,{"$f":"'[2]EXT ITCER(M)'!C376","v":81.172143734220626},{"$f":"'[2]EXT ITCER(M)'!D376","v":97.172931926938944},{"$f":"'[2]EXT ITCER(M)'!E376","v":52.589887601683742},{"$f":"'[2]EXT ITCER(M)'!F376","v":77.495545800713884},{"$f":"'[2]EXT ITCER(M)'!G376","v":108.1584299117652},{"$f":"'[2]EXT ITCER(M)'!H376","v":124.0986912864899},{"$f":"'[2]EXT ITCER(M)'!I376","v":95.559452792633621},null,null,{"$f":"'[2]EXT TC(M)'!J376","v":0.89105269728167324},{"$f":"'[2]EXT TC(M)'!K376","v":0},{"$f":"'[2]EXT TC(M)'!L376","v":0.31874133748567923},{"$f":"'[2]EXT TC(M)'!M376","v":0.73304121240534836},{"$f":"'[2]EXT TC(M)'!N376","v":3.942591592889523},{"$f":"'[2]EXT TC(M)'!O376","v":14.671704760685705},{"$f":"'[2]EXT TC(M)'!P376","v":0},null,null,{"$f":"'[2]EXT RIN(M)'!C376","v":8340.1769999999997},{"$f":"'[2]EXT RIN(M)'!D376","v":3578.9},{"$f":"'[2]EXT RIN(M)'!E376","v":17398.099999999999},{"$f":"'[2]EXT RIN(M)'!F376","v":7513.7},{"$f":"'[2]EXT RIN(M)'!G376","v":2610.9},{"$f":"'[2]EXT RIN(M)'!H376","v":6689.1783358598996},{"$f":"'[2]EXT RIN(M)'!I376","v":6572.3126470500001},null,null,{"$f":"'[2]EXT RIN(M)'!P376","v":67.325528084427617},{"$f":"'[2]EXT RIN(M)'!Q376","v":114.4577003177657},{"$f":"'[2]EXT RIN(M)'!R376","v":127.49987497643242},{"$f":"'[2]EXT RIN(M)'!S376","v":112.66959734409849},{"$f":"'[2]EXT RIN(M)'!T376","v":134.97307699907367},{"$f":"'[2]EXT RIN(M)'!U376","v":80.647935690621466},{"$f":"'[2]EXT RIN(M)'!V376","v":315.41021606214025},null,null,{"$f":"+'[2]MONE(M)CAPARD'!AE376","v":3.8715127563010947},{"$f":"'[2]MONE(M)CAPARD'!AF376","v":4.3246244831292593},{"$f":"'[2]MONE(M)CAPARD'!AG376","v":1.6734721935794312},{"$f":"'[2]MONE(M)CAPARD'!AH376","v":4.9392502917152816},{"$f":"'[2]MONE(M)CAPARD'!AI376","v":5.1846698887233318},{"$f":"'[2]MONE(M)CAPARD'!AJ376","v":1.5983116436363816},{"$f":"'[2]MONE(M)CAPARD'!AK376","v":4.3682790852394247},null,null,{"$f":"'[2]MONE(M)CAPARD'!AL376","v":2.79259426},{"$f":"'[2]MONE(M)CAPARD'!AM376","v":4.26},{"$f":"'[2]MONE(M)CAPARD'!AN376","v":2.99},{"$f":"'[2]MONE(M)CAPARD'!AO376","v":3.64},{"$f":"'[2]MONE(M)CAPARD'!AP376","v":4.9913844318855096},{"$f":"'[2]MONE(M)CAPARD'!AQ376","v":1.1791},{"$f":"'[2]MONE(M)CAPARD'!AR376","v":2.02},null,null,{"$f":"'[2]MONE(M)CAPARD'!J376","v":10.187883294292332},{"$f":"'[2]MONE(M)CAPARD'!K376","v":7.1363662325786477},{"$f":"'[2]MONE(M)CAPARD'!L376","v":9.3135629339382682},{"$f":"'[2]MONE(M)CAPARD'!M376","v":13.455440490081676},{"$f":"'[2]MONE(M)CAPARD'!N376","v":10.556829137891141},{"$f":"'[2]MONE(M)CAPARD'!O376","v":6.5942633818182008},{"$f":"'[2]MONE(M)CAPARD'!P376","v":10.792831061864632},null,null,{"$f":"'[2]MONE(M)CAPARD'!Q376","v":7.1565871799999998},{"$f":"'[2]MONE(M)CAPARD'!R376","v":7.07},{"$f":"'[2]MONE(M)CAPARD'!S376","v":6.18},{"$f":"'[2]MONE(M)CAPARD'!T376","v":7.99},{"$f":"'[2]MONE(M)CAPARD'!U376","v":9.6822137211558505},{"$f":"'[2]MONE(M)CAPARD'!V376","v":4},{"$f":"'[2]MONE(M)CAPARD'!W376","v":8.3000000000000007},null,null,{"$f":"'[2]MONE(M)CAPARD'!AS376","v":0.75},{"$f":"'[2]MONE(M)CAPARD'!AT376","v":"n.a."},{"$f":"'[2]MONE(M)CAPARD'!AU376","v":1.75},{"$f":"'[2]MONE(M)CAPARD'!AV376","v":4.5},{"$f":"'[2]MONE(M)CAPARD'!AW376","v":4.5},{"$f":"'[2]MONE(M)CAPARD'!AX376","v":3.5},{"$f":"'[2]MONE(M)CAPARD'!AY376","v":"n.a."},null,null,{"$f":"+'Datos_Regional (M)'!CF369","v":1.4508241928370413},{"$f":"+'Datos_Regional (M)'!CG369","v":5.290682378834588},{"$f":"+'Datos_Regional (M)'!CH369","v":6.4960332717034053},{"$f":"+'Datos_Regional (M)'!CI369","v":6.8773482715625445},{"$f":"+'Datos_Regional (M)'!CJ369","v":-5.5598061915138057},{"$f":"+'Datos_Regional (M)'!CK369","v":9.9251414146743997},{"$f":"+'Datos_Regional (M)'!CL369","v":1.8910484289788698},null,null,937.47960982999996,407.44083333333333,920.4666666666667,647.96831207416233,447.29165635000004,863.86666666666667,847.32050724999999,4224.5137449208278,5071.8342521708291,null,null,1223.3160133925001,852.9766666666668,1551.4083333333331,975.03150226876335,494.44495400000005,1497.1083333333333,1397.873921666667,6594.2858029945974,7992.1597246612628,null,null,-2369.7720580737678,-2920.3254724904345,null,null,{"$f":"'[2]EXT Comercio(M)'!C376","v":925.77246584999966},{"$f":"'[2]EXT Comercio(M)'!D376","v":442.94999999999982},{"$f":"'[2]EXT Comercio(M)'!E376","v":909.5},{"$f":"'[2]EXT Comercio(M)'!F376","v":680.08708002163235},{"$f":"'[2]EXT Comercio(M)'!G376","v":478.66694324000002},{"$f":"'[2]EXT Comercio(M)'!H376","v":889.9},{"$f":"'[2]EXT Comercio(M)'!I376","v":740.70451099999991},{"$f":"'[2]EXT Comercio(M)'!K376","v":4326.8764891116298},{"$f":"'[2]EXT Comercio(M)'!L376","v":5067.5810001116297},null,null,{"$f":"'[2]EXT Comercio(M)'!AG376","v":1106.9320207400006},{"$f":"'[2]EXT Comercio(M)'!AH376","v":858.69999999999982},{"$f":"'[2]EXT Comercio(M)'!AI376","v":1441.6000000000001},{"$f":"'[2]EXT Comercio(M)'!AJ376","v":868.8686398005849},{"$f":"'[2]EXT Comercio(M)'!AK376","v":515.56419342999993},{"$f":"'[2]EXT Comercio(M)'!AL376","v":1291.4999999999998},{"$f":"'[2]EXT Comercio(M)'!AM376","v":1096.4599920000001},{"$f":"'[2]EXT Comercio(M)'!AO376","v":6083.164853970593},{"$f":"'[2]EXT Comercio(M)'!AP376","v":7179.6248459705894},null,null,{"$f":"'[2]EXT Comercio(M)'!$BS376","v":-1756.2883648589559},{"$f":"'[2]EXT Comercio(M)'!$BT376","v":-2112.043845858956}]
[null,null,"Agosto",{"$f":"'[2]REAL IPC(M)'!AD377","v":-7.0774520073274394E-2},{"$f":"'[2]REAL IPC(M)'!AE377","v":-0.30234406357643451},{"$f":"'[2]REAL IPC(M)'!AF377","v":4.1874732486802664},{"$f":"'[2]REAL IPC(M)'!AG377","v":3.2161106101592991},{"$f":"'[2]REAL IPC(M)'!AH377","v":2.8702854223144829},{"$f":"'[2]REAL IPC(M)'!AI377","v":4.8026017243987225},{"$f":"'[2]REAL IPC(M)'!AJ377","v":-1.9637061867661447},null,null,{"$f":"'[2]REAL IMAE(M)'!AG377","v":-7.85946483679552},{"$f":"'[2]REAL IMAE(M)'!AH377","v":-8.0666480140044801},{"$f":"'[2]REAL IMAE(M)'!AI377","v":-1.9414771743012718},{"$f":"'[2]REAL IMAE(M)'!AJ377","v":-7.2030600800631408},{"$f":"'[2]REAL IMAE(M)'!AK377","v":1.3779637377725265},{"$f":"'[2]REAL IMAE(M)'!AL377","v":-7.7858431229096396},{"$f":"'[2]REAL IMAE(M)'!AM377","v":-32.647189374145448},null,null,{"$f":"'[2]EXT ITCER(M)'!C377","v":83.002611121267805},{"$f":"'[2]EXT ITCER(M)'!D377","v":98.186820078473019},{"$f":"'[2]EXT ITCER(M)'!E377","v":52.675631327785112},{"$f":"'[2]EXT ITCER(M)'!F377","v":77.261642508138252},{"$f":"'[2]EXT ITCER(M)'!G377","v":109.6160645645696},{"$f":"'[2]EXT ITCER(M)'!H377","v":123.868043488786},{"$f":"'[2]EXT ITCER(M)'!I377","v":95.962686982253487},null,null,{"$f":"'[2]EXT TC(M)'!J377","v":4.2593851512293082},{"$f":"'[2]EXT TC(M)'!K377","v":0},{"$f":"'[2]EXT TC(M)'!L377","v":0.47132459590482684},{"$f":"'[2]EXT TC(M)'!M377","v":-2.5745799313873184E-3},{"$f":"'[2]EXT TC(M)'!N377","v":4.014248413637544},{"$f":"'[2]EXT TC(M)'!O377","v":14.294667531027885},{"$f":"'[2]EXT TC(M)'!P377","v":0},null,null,{"$f":"'[2]EXT RIN(M)'!C377","v":7934.06931136},{"$f":"'[2]EXT RIN(M)'!D377","v":3801.75},{"$f":"'[2]EXT RIN(M)'!E377","v":17623},{"$f":"'[2]EXT RIN(M)'!F377","v":7510.3814209851453},{"$f":"'[2]EXT RIN(M)'!G377","v":2686.2},{"$f":"'[2]EXT RIN(M)'!H377","v":7018.555595239256},{"$f":"'[2]EXT RIN(M)'!I377","v":6781.2506160100002},null,null,{"$f":"'[2]EXT RIN(M)'!P377","v":65.734566994870178},{"$f":"'[2]EXT RIN(M)'!Q377","v":120.20549471987465},{"$f":"'[2]EXT RIN(M)'!R377","v":122.74499794825462},{"$f":"'[2]EXT RIN(M)'!S377","v":109.70975021424178},{"$f":"'[2]EXT RIN(M)'!T377","v":129.88282961968528},{"$f":"'[2]EXT RIN(M)'!U377","v":81.966550087864817},{"$f":"'[2]EXT RIN(M)'!V377","v":317.95522050201856},null,null,{"$f":"+'[2]MONE(M)CAPARD'!AE377","v":3.7234097454509785},{"$f":"'[2]MONE(M)CAPARD'!AF377","v":4.4959372629932153},{"$f":"'[2]MONE(M)CAPARD'!AG377","v":0.35755426223896064},{"$f":"'[2]MONE(M)CAPARD'!AH377","v":4.7123354688410055},{"$f":"'[2]MONE(M)CAPARD'!AI377","v":6.2532904128650966},{"$f":"'[2]MONE(M)CAPARD'!AJ377","v":0.30237634408602848},{"$f":"'[2]MONE(M)CAPARD'!AK377","v":3.9920992874557606},null,null,{"$f":"'[2]MONE(M)CAPARD'!AL377","v":2.8151272000000001},{"$f":"'[2]MONE(M)CAPARD'!AM377","v":4.18},{"$f":"'[2]MONE(M)CAPARD'!AN377","v":2.8},{"$f":"'[2]MONE(M)CAPARD'!AO377","v":3.61},{"$f":"'[2]MONE(M)CAPARD'!AP377","v":4.7185675631812698},{"$f":"'[2]MONE(M)CAPARD'!AQ377","v":1.3156000000000001},{"$f":"'[2]MONE(M)CAPARD'!AR377","v":1.95},null,null,{"$f":"'[2]MONE(M)CAPARD'!J377","v":10.223637290299518},{"$f":"'[2]MONE(M)CAPARD'!K377","v":7.1539736783026031},{"$f":"'[2]MONE(M)CAPARD'!L377","v":7.9592358781239323},{"$f":"'[2]MONE(M)CAPARD'!M377","v":13.267201514269079},{"$f":"'[2]MONE(M)CAPARD'!N377","v":12.706751743613344},{"$f":"'[2]MONE(M)CAPARD'!O377","v":5.178304914483661},{"$f":"'[2]MONE(M)CAPARD'!P377","v":10.448891719918683},null,null,{"$f":"'[2]MONE(M)CAPARD'!Q377","v":6.8480416100000001},{"$f":"'[2]MONE(M)CAPARD'!R377","v":6.83},{"$f":"'[2]MONE(M)CAPARD'!S377","v":6.16},{"$f":"'[2]MONE(M)CAPARD'!T377","v":7.98},{"$f":"'[2]MONE(M)CAPARD'!U377","v":11.597661468183},{"$f":"'[2]MONE(M)CAPARD'!V377","v":3.911},{"$f":"'[2]MONE(M)CAPARD'!W377","v":8.2799999999999994},null,null,{"$f":"'[2]MONE(M)CAPARD'!AS377","v":0.75},{"$f":"'[2]MONE(M)CAPARD'!AT377","v":"n.a."},{"$f":"'[2]MONE(M)CAPARD'!AU377","v":1.75},{"$f":"'[2]MONE(M)CAPARD'!AV377","v":3.75},{"$f":"'[2]MONE(M)CAPARD'!AW377","v":4.25},{"$f":"'[2]MONE(M)CAPARD'!AX377","v":3.5},{"$f":"'[2]MONE(M)CAPARD'!AY377","v":"n.a."},null,null,{"$f":"+'Datos_Regional (M)'!CF370","v":1.9689675511775473},{"$f":"+'Datos_Regional (M)'!CG370","v":4.2987084406272968},{"$f":"+'Datos_Regional (M)'!CH370","v":6.2586133975221392},{"$f":"+'Datos_Regional (M)'!CI370","v":5.7927827379538943},{"$f":"+'Datos_Regional (M)'!CJ370","v":-5.4176795058657357},{"$f":"+'Datos_Regional (M)'!CK370","v":8.6086600523355159},{"$f":"+'Datos_Regional (M)'!CL370","v":-1.9347165705324465},null,null,936.56883006083319,402.18416666666673,915.4666666666667,643.12510185466851,444.98974473916661,861.61666666666667,849.23184508333327,4203.9511766546684,5053.1830217380038,null,null,1209.6872885783334,833.87666666666667,1526.925,957.61218642710492,489.48531040916669,1460.7249999999997,1362.2247015833336,6478.3114520812715,7840.536153664606,null,null,-2274.3602754266035,-2787.3531319266026,null,null,{"$f":"'[2]EXT Comercio(M)'!C377","v":945.59111140999994},{"$f":"'[2]EXT Comercio(M)'!D377","v":423.55999999999995},{"$f":"'[2]EXT Comercio(M)'!E377","v":898.3},{"$f":"'[2]EXT Comercio(M)'!F377","v":681.40913309901271},{"$f":"'[2]EXT Comercio(M)'!G377","v":462.47709744999997},{"$f":"'[2]EXT Comercio(M)'!H377","v":893.09999999999991},{"$f":"'[2]EXT Comercio(M)'!I377","v":947.83105399999999},{"$f":"'[2]EXT Comercio(M)'!K377","v":4304.4373419590192},{"$f":"'[2]EXT Comercio(M)'!L377","v":5252.2683959590213},null,null,{"$f":"'[2]EXT Comercio(M)'!AG377","v":1133.5411231899998},{"$f":"'[2]EXT Comercio(M)'!AH377","v":753.73000000000047},{"$f":"'[2]EXT Comercio(M)'!AI377","v":1443.8},{"$f":"'[2]EXT Comercio(M)'!AJ377","v":926.93932571437961},{"$f":"'[2]EXT Comercio(M)'!AK377","v":477.94232525999996},{"$f":"'[2]EXT Comercio(M)'!AL377","v":1341.1000000000001},{"$f":"'[2]EXT Comercio(M)'!AM377","v":1329.4413590000001},{"$f":"'[2]EXT Comercio(M)'!AO377","v":6077.0527741643746},{"$f":"'[2]EXT Comercio(M)'!AP377","v":7406.4941331643713},null,null,{"$f":"'[2]EXT Comercio(M)'!$BS377","v":-1772.6154322053662},{"$f":"'[2]EXT Comercio(M)'!$BT377","v":-2154.2257372053646}]
[null,null,"Setiembre",{"$f":"'[2]REAL IPC(M)'!AD378","v":0.29896291812436576},{"$f":"'[2]REAL IPC(M)'!AE378","v":-0.38986000115775277},{"$f":"'[2]REAL IPC(M)'!AF378","v":4.9655568312284526},{"$f":"'[2]REAL IPC(M)'!AG378","v":3.39135654261705},{"$f":"'[2]REAL IPC(M)'!AH378","v":2.8060939220446968},{"$f":"'[2]REAL IPC(M)'!AI378","v":5.0331525015069349},{"$f":"'[2]REAL IPC(M)'!AJ378","v":-1.8585711751206504},null,null,{"$f":"'[2]REAL IMAE(M)'!AG378","v":-6.9196899668424514},{"$f":"'[2]REAL IMAE(M)'!AH378","v":-4.6622595973180667},{"$f":"'[2]REAL IMAE(M)'!AI378","v":0.10337134159162457},{"$f":"'[2]REAL IMAE(M)'!AJ378","v":-3.6635530952670767},{"$f":"'[2]REAL IMAE(M)'!AK378","v":0.8387722713727962},{"$f":"'[2]REAL IMAE(M)'!AL378","v":-6.3805208026773235},{"$f":"'[2]REAL IMAE(M)'!AM378","v":-18.380404818991174},null,null,{"$f":"'[2]EXT ITCER(M)'!C378","v":83.768957217690641},{"$f":"'[2]EXT ITCER(M)'!D378","v":98.652755874693625},{"$f":"'[2]EXT ITCER(M)'!E378","v":53.087656987137088},{"$f":"'[2]EXT ITCER(M)'!F378","v":77.01841707789616},{"$f":"'[2]EXT ITCER(M)'!G378","v":110.17824254813191},{"$f":"'[2]EXT ITCER(M)'!H378","v":123.3946720215874},{"$f":"'[2]EXT ITCER(M)'!I378","v":96.133898335791869},null,null,{"$f":"'[2]EXT TC(M)'!J378","v":3.5345342731993226},{"$f":"'[2]EXT TC(M)'!K378","v":0},{"$f":"'[2]EXT TC(M)'!L378","v":0.66408469289982952},{"$f":"'[2]EXT TC(M)'!M378","v":-0.49910803321966113},{"$f":"'[2]EXT TC(M)'!N378","v":3.7982212343090342},{"$f":"'[2]EXT TC(M)'!O378","v":13.215737514940566},{"$f":"'[2]EXT TC(M)'!P378","v":0},null,null,{"$f":"'[2]EXT RIN(M)'!C378","v":8238.1380160200006},{"$f":"'[2]EXT RIN(M)'!D378","v":3809.72},{"$f":"'[2]EXT RIN(M)'!E378","v":17611.2},{"$f":"'[2]EXT RIN(M)'!F378","v":7519.8230610380815},{"$f":"'[2]EXT RIN(M)'!G378","v":2755.9},{"$f":"'[2]EXT RIN(M)'!H378","v":10551.95133366878},{"$f":"'[2]EXT RIN(M)'!I378","v":9042.9972048700001},null,null,{"$f":"'[2]EXT RIN(M)'!P378","v":69.790738408972317},{"$f":"'[2]EXT RIN(M)'!Q378","v":115.44529097078747},{"$f":"'[2]EXT RIN(M)'!R378","v":118.40311414580762},{"$f":"'[2]EXT RIN(M)'!S378","v":107.67879583632694},{"$f":"'[2]EXT RIN(M)'!T378","v":129.0053457885916},{"$f":"'[2]EXT RIN(M)'!U378","v":114.33594366945346},{"$f":"'[2]EXT RIN(M)'!V378","v":419.0792944265433},null,null,{"$f":"+'[2]MONE(M)CAPARD'!AE378","v":3.1416447291163676},{"$f":"'[2]MONE(M)CAPARD'!AF378","v":4.4070412923912921},{"$f":"'[2]MONE(M)CAPARD'!AG378","v":-0.43400601585997534},{"$f":"'[2]MONE(M)CAPARD'!AH378","v":4.4478026124818548},{"$f":"'[2]MONE(M)CAPARD'!AI378","v":4.8577257339868423},{"$f":"'[2]MONE(M)CAPARD'!AJ378","v":-0.46257061692970169},{"$f":"'[2]MONE(M)CAPARD'!AK378","v":3.8806966851038527},null,null,{"$f":"'[2]MONE(M)CAPARD'!AL378","v":3.0105601200000001},{"$f":"'[2]MONE(M)CAPARD'!AM378","v":4},{"$f":"'[2]MONE(M)CAPARD'!AN378","v":2.8},{"$f":"'[2]MONE(M)CAPARD'!AO378","v":3.56},{"$f":"'[2]MONE(M)CAPARD'!AP378","v":4.0987836287339796},{"$f":"'[2]MONE(M)CAPARD'!AQ378","v":1.121},{"$f":"'[2]MONE(M)CAPARD'!AR378","v":1.95},null,null,{"$f":"'[2]MONE(M)CAPARD'!J378","v":8.8368279033062826},{"$f":"'[2]MONE(M)CAPARD'!K378","v":6.5052212568249246},{"$f":"'[2]MONE(M)CAPARD'!L378","v":7.1589608969100569},{"$f":"'[2]MONE(M)CAPARD'!M378","v":13.046200290275758},{"$f":"'[2]MONE(M)CAPARD'!N378","v":11.711612294478662},{"$f":"'[2]MONE(M)CAPARD'!O378","v":4.6814242754662816},{"$f":"'[2]MONE(M)CAPARD'!P378","v":10.310193458845935},null,null,{"$f":"'[2]MONE(M)CAPARD'!Q378","v":6.34995391},{"$f":"'[2]MONE(M)CAPARD'!R378","v":6.09},{"$f":"'[2]MONE(M)CAPARD'!S378","v":6.15},{"$f":"'[2]MONE(M)CAPARD'!T378","v":7.92},{"$f":"'[2]MONE(M)CAPARD'!U378","v":9.8166302978062205},{"$f":"'[2]MONE(M)CAPARD'!V378","v":4.0023},{"$f":"'[2]MONE(M)CAPARD'!W378","v":8.26},null,null,{"$f":"'[2]MONE(M)CAPARD'!AS378","v":0.75},{"$f":"'[2]MONE(M)CAPARD'!AT378","v":"n.a."},{"$f":"'[2]MONE(M)CAPARD'!AU378","v":1.75},{"$f":"'[2]MONE(M)CAPARD'!AV378","v":3.75},{"$f":"'[2]MONE(M)CAPARD'!AW378","v":4.25},{"$f":"'[2]MONE(M)CAPARD'!AX378","v":3},{"$f":"'[2]MONE(M)CAPARD'!AY378","v":"n.a."},null,null,{"$f":"+'Datos_Regional (M)'!CF371","v":2.4546348955117647},{"$f":"+'Datos_Regional (M)'!CG371","v":4.5422744402441095},{"$f":"+'Datos_Regional (M)'!CH371","v":5.5549487035778222},{"$f":"+'Datos_Regional (M)'!CI371","v":5.2660460444529544},{"$f":"+'Datos_Regional (M)'!CJ371","v":-4.3289853340326196},{"$f":"+'Datos_Regional (M)'!CK371","v":7.5010146080240592},{"$f":"+'Datos_Regional (M)'!CL371","v":-2.4168023266229688},null,null,940.88619714083325,402.77499999999992,916.9083333333333,645.20506982535073,{"$f":"IF(EL183=\"\",\"\",+AVERAGE(EL172:EL183))","v":445.95127236499997},{"$f":"IF(EM183=\"\",\"\",+AVERAGE(EM172:EM183))","v":863.65833333333342},{"$f":"IF(EN183=\"\",\"\",+AVERAGE(EN172:EN183))","v":839.9166709166667},4215.3842059978506,5055.3008769145172,null,null,1199.0868409724999,827.77,1519.9666666666669,948.37315110701854,490.70971133250004,1440.9749999999997,1317.9144805000001,6426.881370078685,7744.7958505786883,null,null,-2211.497164080834,-2689.4949736641674,null,null,{"$f":"'[2]EXT Comercio(M)'!C378","v":979.97100036999973},{"$f":"'[2]EXT Comercio(M)'!D378","v":469.25999999999976},{"$f":"'[2]EXT Comercio(M)'!E378","v":894.2},{"$f":"'[2]EXT Comercio(M)'!F378","v":741.44198589434859},{"$f":"'[2]EXT Comercio(M)'!G378","v":460.42805238},{"$f":"'[2]EXT Comercio(M)'!H378","v":925.7},{"$f":"'[2]EXT Comercio(M)'!I378","v":943.19591000000014},{"$f":"'[2]EXT Comercio(M)'!K378","v":4471.0010386443464},{"$f":"'[2]EXT Comercio(M)'!L378","v":5414.1969486443413},null,null,{"$f":"'[2]EXT Comercio(M)'!AG378","v":1142.6907698000005},{"$f":"'[2]EXT Comercio(M)'!AH378","v":836.71999999999935},{"$f":"'[2]EXT Comercio(M)'!AI378","v":1495},{"$f":"'[2]EXT Comercio(M)'!AJ378","v":957.20308726737767},{"$f":"'[2]EXT Comercio(M)'!AK378","v":512.89729765000004},{"$f":"'[2]EXT Comercio(M)'!AL378","v":1436},{"$f":"'[2]EXT Comercio(M)'!AM378","v":1142.6273470000001},{"$f":"'[2]EXT Comercio(M)'!AO378","v":6380.5111547173801},{"$f":"'[2]EXT Comercio(M)'!AP378","v":7523.1385017173889},null,null,{"$f":"'[2]EXT Comercio(M)'!$BS378","v":-1909.5101160730264},{"$f":"'[2]EXT Comercio(M)'!$BT378","v":-2108.9415530730257}]
[null,null,"Octubre",{"$f":"'[2]REAL IPC(M)'!AD379","v":0.45245635372738391},{"$f":"'[2]REAL IPC(M)'!AE379","v":-0.20823273737451958},{"$f":"'[2]REAL IPC(M)'!AF379","v":5.3445450010689006},{"$f":"'[2]REAL IPC(M)'!AG379","v":3.6526946107784397},{"$f":"'[2]REAL IPC(M)'!AH379","v":2.6898395334267886},{"$f":"'[2]REAL IPC(M)'!AI379","v":5.0250240673017377},{"$f":"'[2]REAL IPC(M)'!AJ379","v":-1.9488718188039107},null,null,{"$f":"'[2]REAL IMAE(M)'!AG379","v":-5.9945190833405819},{"$f":"'[2]REAL IMAE(M)'!AH379","v":-3.2066946093223194},{"$f":"'[2]REAL IMAE(M)'!AI379","v":1.2681773417026154},{"$f":"'[2]REAL IMAE(M)'!AJ379","v":-3.3555279311902808},{"$f":"'[2]REAL IMAE(M)'!AK379","v":0.50552135628477579},{"$f":"'[2]REAL IMAE(M)'!AL379","v":-4.7843175475631901},{"$f":"'[2]REAL IMAE(M)'!AM379","v":-17.065857054408866},null,null,{"$f":"'[2]EXT ITCER(M)'!C379","v":84.522827508265237},{"$f":"'[2]EXT ITCER(M)'!D379","v":98.531051303426693},{"$f":"'[2]EXT ITCER(M)'!E379","v":52.728824927302639},{"$f":"'[2]EXT ITCER(M)'!F379","v":76.450310557018611},{"$f":"'[2]EXT ITCER(M)'!G379","v":110.1137559018744},{"$f":"'[2]EXT ITCER(M)'!H379","v":122.6869547145472},{"$f":"'[2]EXT ITCER(M)'!I379","v":96.367999132156399},null,null,{"$f":"'[2]EXT TC(M)'!J379","v":3.8611206953345039},{"$f":"'[2]EXT TC(M)'!K379","v":0},{"$f":"'[2]EXT TC(M)'!L379","v":0.3249689890427952},{"$f":"'[2]EXT TC(M)'!M379","v":-0.96194007449827612},{"$f":"'[2]EXT TC(M)'!N379","v":3.4565739361123922},{"$f":"'[2]EXT TC(M)'!O379","v":10.868267911375314},{"$f":"'[2]EXT TC(M)'!P379","v":0},null,null,{"$f":"'[2]EXT RIN(M)'!C379","v":7809.1955475900004},{"$f":"'[2]EXT RIN(M)'!D379","v":3689.85},{"$f":"'[2]EXT RIN(M)'!E379","v":18314.8},{"$f":"'[2]EXT RIN(M)'!F379","v":7760.4},{"$f":"'[2]EXT RIN(M)'!G379","v":2781},{"$f":"'[2]EXT RIN(M)'!H379","v":9873.7272429092845},{"$f":"'[2]EXT RIN(M)'!I379","v":8192.7798642800008},null,null,{"$f":"'[2]EXT RIN(M)'!P379","v":69.502492397224714},{"$f":"'[2]EXT RIN(M)'!Q379","v":108.37919810231766},{"$f":"'[2]EXT RIN(M)'!R379","v":124.10487163940826},{"$f":"'[2]EXT RIN(M)'!S379","v":105.22324622943178},{"$f":"'[2]EXT RIN(M)'!T379","v":128.38012712053353},{"$f":"'[2]EXT RIN(M)'!U379","v":105.6166927526556},{"$f":"'[2]EXT RIN(M)'!V379","v":372.35248332376199},null,null,{"$f":"+'[2]MONE(M)CAPARD'!AE379","v":2.8844925763381788},{"$f":"'[2]MONE(M)CAPARD'!AF379","v":4.1268261404133897},{"$f":"'[2]MONE(M)CAPARD'!AG379","v":-0.83966853818574616},{"$f":"'[2]MONE(M)CAPARD'!AH379","v":4.0493934142114414},{"$f":"'[2]MONE(M)CAPARD'!AI379","v":5.684779750242881},{"$f":"'[2]MONE(M)CAPARD'!AJ379","v":-0.63396706948152315},{"$f":"'[2]MONE(M)CAPARD'!AK379","v":3.9355710539840092},null,null,{"$f":"'[2]MONE(M)CAPARD'!AL379","v":2.9459493800000001},{"$f":"'[2]MONE(M)CAPARD'!AM379","v":3.91},{"$f":"'[2]MONE(M)CAPARD'!AN379","v":2.81},{"$f":"'[2]MONE(M)CAPARD'!AO379","v":3.46},{"$f":"'[2]MONE(M)CAPARD'!AP379","v":3.8245428233254701},{"$f":"'[2]MONE(M)CAPARD'!AQ379","v":0.95550000000000002},{"$f":"'[2]MONE(M)CAPARD'!AR379","v":1.91},null,null,{"$f":"'[2]MONE(M)CAPARD'!J379","v":9.1703937670119497},{"$f":"'[2]MONE(M)CAPARD'!K379","v":6.9527105568888565},{"$f":"'[2]MONE(M)CAPARD'!L379","v":6.6310552661841395},{"$f":"'[2]MONE(M)CAPARD'!M379","v":12.732235701906417},{"$f":"'[2]MONE(M)CAPARD'!N379","v":11.293255744121831},{"$f":"'[2]MONE(M)CAPARD'!O379","v":4.9257555317322685},{"$f":"'[2]MONE(M)CAPARD'!P379","v":10.411784145857215},null,null,{"$f":"'[2]MONE(M)CAPARD'!Q379","v":6.5543736800000003},{"$f":"'[2]MONE(M)CAPARD'!R379","v":6.73},{"$f":"'[2]MONE(M)CAPARD'!S379","v":6.12},{"$f":"'[2]MONE(M)CAPARD'!T379","v":7.79},{"$f":"'[2]MONE(M)CAPARD'!U379","v":10.7827456663529},{"$f":"'[2]MONE(M)CAPARD'!V379","v":4.4279000000000002},{"$f":"'[2]MONE(M)CAPARD'!W379","v":8.26},null,null,{"$f":"'[2]MONE(M)CAPARD'!AS379","v":0.75},{"$f":"'[2]MONE(M)CAPARD'!AT379","v":"n.a."},{"$f":"'[2]MONE(M)CAPARD'!AU379","v":1.75},{"$f":"'[2]MONE(M)CAPARD'!AV379","v":3.75},{"$f":"'[2]MONE(M)CAPARD'!AW379","v":4.25},{"$f":"'[2]MONE(M)CAPARD'!AX379","v":3},{"$f":"'[2]MONE(M)CAPARD'!AY379","v":"n.a."},null,null,{"$f":"+'Datos_Regional (M)'!CF372","v":2.3329165810886954},{"$f":"+'Datos_Regional (M)'!CG372","v":3.5182016551443374},{"$f":"+'Datos_Regional (M)'!CH372","v":6.5324076947695042},{"$f":"+'Datos_Regional (M)'!CI372","v":4.4566558829883585},{"$f":"+'Datos_Regional (M)'!CJ372","v":-4.4689220225589299},{"$f":"+'Datos_Regional (M)'!CK372","v":6.6984731770888262},{"$f":"+'Datos_Regional (M)'!CL372","v":-2.8592727947715946},null,null,946.53538075750009,402.7766666666667,920,657.23002646651832,447.07177032833329,864.54166666666663,820.45009824916679,4238.1555108856837,5058.6056091348519,null,null,1177.2976169341669,813.75666666666677,1503.4833333333333,940.56791650486286,488.47436953916662,1429.6666666666667,1261.5024991666667,6353.2465696448608,7614.7490688115295,null,null,-2115.091058759177,-2556.1434596766767,null,null,{"$f":"'[2]EXT Comercio(M)'!C379","v":1045.9604956100011},{"$f":"'[2]EXT Comercio(M)'!D379","v":492.94000000000051},{"$f":"'[2]EXT Comercio(M)'!E379","v":912.90000000000009},{"$f":"'[2]EXT Comercio(M)'!F379","v":772.66271777047166},{"$f":"'[2]EXT Comercio(M)'!G379","v":496.09085238},{"$f":"'[2]EXT Comercio(M)'!H379","v":970.1},{"$f":"'[2]EXT Comercio(M)'!I379","v":1005.52112799},{"$f":"'[2]EXT Comercio(M)'!K379","v":4690.654065760471},{"$f":"'[2]EXT Comercio(M)'!L379","v":5696.1751937504741},null,null,{"$f":"'[2]EXT Comercio(M)'!AG379","v":1198.9336449300004},{"$f":"'[2]EXT Comercio(M)'!AH379","v":881.90000000000055},{"$f":"'[2]EXT Comercio(M)'!AI379","v":1670.8999999999999},{"$f":"'[2]EXT Comercio(M)'!AJ379","v":1100.8362858928331},{"$f":"'[2]EXT Comercio(M)'!AK379","v":543.71872671000006},{"$f":"'[2]EXT Comercio(M)'!AL379","v":1591.2},{"$f":"'[2]EXT Comercio(M)'!AM379","v":1286.513224},{"$f":"'[2]EXT Comercio(M)'!AO379","v":6987.4886575328201},{"$f":"'[2]EXT Comercio(M)'!AP379","v":8274.0018815328222},null,null,{"$f":"'[2]EXT Comercio(M)'!$BS379","v":-2296.83459177236},{"$f":"'[2]EXT Comercio(M)'!$BT379","v":-2577.8266877823626}]
[null,null,"Noviembre",{"$f":"'[2]REAL IPC(M)'!AD380","v":0.24451285840510067},{"$f":"'[2]REAL IPC(M)'!AE380","v":-0.17613054069237558},{"$f":"'[2]REAL IPC(M)'!AF380","v":5.4629301170627915},{"$f":"'[2]REAL IPC(M)'!AG380","v":3.8208955223880632},{"$f":"'[2]REAL IPC(M)'!AH380","v":2.6430348771900971},{"$f":"'[2]REAL IPC(M)'!AI380","v":5.2585709374322578},{"$f":"'[2]REAL IPC(M)'!AJ380","v":-2.0365931996476068},null,null,{"$f":"'[2]REAL IMAE(M)'!AG380","v":-4.9754821518998344},{"$f":"'[2]REAL IMAE(M)'!AH380","v":-3.1626661826197},{"$f":"'[2]REAL IMAE(M)'!AI380","v":1.7975897184463761},{"$f":"'[2]REAL IMAE(M)'!AJ380","v":-3.3992470117287321},{"$f":"'[2]REAL IMAE(M)'!AK380","v":0.53739781780883777},{"$f":"'[2]REAL IMAE(M)'!AL380","v":-2.7215306367729863},{"$f":"'[2]REAL IMAE(M)'!AM380","v":-16.33174357218633},null,null,{"$f":"'[2]EXT ITCER(M)'!C380","v":85.234201427312186},{"$f":"'[2]EXT ITCER(M)'!D380","v":98.580829765816262},{"$f":"'[2]EXT ITCER(M)'!E380","v":52.572820707686482},{"$f":"'[2]EXT ITCER(M)'!F380","v":75.900147971885275},{"$f":"'[2]EXT ITCER(M)'!G380","v":109.61430160610649},{"$f":"'[2]EXT ITCER(M)'!H380","v":122.10702113996081},{"$f":"'[2]EXT ITCER(M)'!I380","v":96.663973665304837},null,null,{"$f":"'[2]EXT TC(M)'!J380","v":5.371280549899633},{"$f":"'[2]EXT TC(M)'!K380","v":0},{"$f":"'[2]EXT TC(M)'!L380","v":1.0892818105162339},{"$f":"'[2]EXT TC(M)'!M380","v":-1.4273429718816626},{"$f":"'[2]EXT TC(M)'!N380","v":3.1823727884680171},{"$f":"'[2]EXT TC(M)'!O380","v":10.470925362272137},{"$f":"'[2]EXT TC(M)'!P380","v":0},null,null,{"$f":"'[2]EXT RIN(M)'!C380","v":7457.5999831099998},{"$f":"'[2]EXT RIN(M)'!D380","v":3473.22},{"$f":"'[2]EXT RIN(M)'!E380","v":18249.400000000001},{"$f":"'[2]EXT RIN(M)'!F380","v":8195},{"$f":"'[2]EXT RIN(M)'!G380","v":2793.1},{"$f":"'[2]EXT RIN(M)'!H380","v":9903.7999999999993},{"$f":"'[2]EXT RIN(M)'!I380","v":7748.7730907100004},null,null,{"$f":"'[2]EXT RIN(M)'!P380","v":65.595948682956703},{"$f":"'[2]EXT RIN(M)'!Q380","v":105.70683353065242},{"$f":"'[2]EXT RIN(M)'!R380","v":124.32583120038494},{"$f":"'[2]EXT RIN(M)'!S380","v":106.05372421919141},{"$f":"'[2]EXT RIN(M)'!T380","v":121.32006319428473},{"$f":"'[2]EXT RIN(M)'!U380","v":101.01588705513271},{"$f":"'[2]EXT RIN(M)'!V380","v":347.21022141760687},null,null,{"$f":"+'[2]MONE(M)CAPARD'!AE380","v":3.1477903893373296},{"$f":"'[2]MONE(M)CAPARD'!AF380","v":4.1233930952459037},{"$f":"'[2]MONE(M)CAPARD'!AG380","v":-0.98890682811974762},{"$f":"'[2]MONE(M)CAPARD'!AH380","v":3.7267107533064947},{"$f":"'[2]MONE(M)CAPARD'!AI380","v":3.8177046165265272},{"$f":"'[2]MONE(M)CAPARD'!AJ380","v":-1.5392294641690691},{"$f":"'[2]MONE(M)CAPARD'!AK380","v":4.0490559987684485},null,null,{"$f":"'[2]MONE(M)CAPARD'!AL380","v":2.4621751600000001},{"$f":"'[2]MONE(M)CAPARD'!AM380","v":3.94},{"$f":"'[2]MONE(M)CAPARD'!AN380","v":2.8},{"$f":"'[2]MONE(M)CAPARD'!AO380","v":3.34},{"$f":"'[2]MONE(M)CAPARD'!AP380","v":3.9115694840639899},{"$f":"'[2]MONE(M)CAPARD'!AQ380","v":0.8125},{"$f":"'[2]MONE(M)CAPARD'!AR380","v":1.93},null,null,{"$f":"'[2]MONE(M)CAPARD'!J380","v":9.261157231327191},{"$f":"'[2]MONE(M)CAPARD'!K380","v":6.4374688894542755},{"$f":"'[2]MONE(M)CAPARD'!L380","v":6.5018768920282515},{"$f":"'[2]MONE(M)CAPARD'!M380","v":12.5399654974123},{"$f":"'[2]MONE(M)CAPARD'!N380","v":11.086509498985784},{"$f":"'[2]MONE(M)CAPARD'!O380","v":4.3382016513240114},{"$f":"'[2]MONE(M)CAPARD'!P380","v":10.510652432322891},null,null,{"$f":"'[2]MONE(M)CAPARD'!Q380","v":6.3058676},{"$f":"'[2]MONE(M)CAPARD'!R380","v":6.25},{"$f":"'[2]MONE(M)CAPARD'!S380","v":6.11},{"$f":"'[2]MONE(M)CAPARD'!T380","v":7.77},{"$f":"'[2]MONE(M)CAPARD'!U380","v":10.321818284015899},{"$f":"'[2]MONE(M)CAPARD'!V380","v":3.8077999999999999},{"$f":"'[2]MONE(M)CAPARD'!W380","v":8.26},null,null,{"$f":"'[2]MONE(M)CAPARD'!AS380","v":0.75},{"$f":"'[2]MONE(M)CAPARD'!AT380","v":"n.a."},{"$f":"'[2]MONE(M)CAPARD'!AU380","v":1.75},{"$f":"'[2]MONE(M)CAPARD'!AV380","v":3},{"$f":"'[2]MONE(M)CAPARD'!AW380","v":4.25},{"$f":"'[2]MONE(M)CAPARD'!AX380","v":3},{"$f":"'[2]MONE(M)CAPARD'!AY380","v":"n.a."},null,null,{"$f":"+'Datos_Regional (M)'!CF373","v":3.7876748162178009},{"$f":"+'Datos_Regional (M)'!CG373","v":3.7184550200823008},{"$f":"+'Datos_Regional (M)'!CH373","v":5.921342613024061},{"$f":"+'Datos_Regional (M)'!CI373","v":3.5405477823505782},{"$f":"+'Datos_Regional (M)'!CJ373","v":-3.990477816327731},{"$f":"+'Datos_Regional (M)'!CK373","v":5.5998727605238496},{"$f":"+'Datos_Regional (M)'!CL373","v":-2.9356035679303671},null,null,955.65839957333321,399.9933333333334,917.29166666666652,641.15091252756167,443.53190245499997,857.80000000000007,812.20686866583344,4215.4262145558941,5027.6330832217291,null,null,1161.8423810941665,809.3000000000003,1497.5666666666666,926.07257071375261,488.07564925083329,1410.4583333333333,1242.7984380833334,6293.3156010587545,7536.1140391420886,null,null,-2077.8893865028576,-2508.4809559203572,null,null,{"$f":"'[2]EXT Comercio(M)'!C380","v":1067.242355209999},{"$f":"'[2]EXT Comercio(M)'!D380","v":428.3100000000004},{"$f":"'[2]EXT Comercio(M)'!E380","v":884.3},{"$f":"'[2]EXT Comercio(M)'!F380","v":515.24274418583741},{"$f":"'[2]EXT Comercio(M)'!G380","v":401.71459426000001},{"$f":"'[2]EXT Comercio(M)'!H380","v":913.90000000000009},{"$f":"'[2]EXT Comercio(M)'!I380","v":900.07124499999998},{"$f":"'[2]EXT Comercio(M)'!K380","v":4210.7096936558301},{"$f":"'[2]EXT Comercio(M)'!L380","v":5110.7809386558292},null,null,{"$f":"'[2]EXT Comercio(M)'!AG380","v":1199.4721520899989},{"$f":"'[2]EXT Comercio(M)'!AH380","v":927.67000000000007},{"$f":"'[2]EXT Comercio(M)'!AI380","v":1682.8999999999999},{"$f":"'[2]EXT Comercio(M)'!AJ380","v":926.49489432987673},{"$f":"'[2]EXT Comercio(M)'!AK380","v":508.41799484000001},{"$f":"'[2]EXT Comercio(M)'!AL380","v":1517.9},{"$f":"'[2]EXT Comercio(M)'!AM380","v":1322.2132670000001},{"$f":"'[2]EXT Comercio(M)'!AO380","v":6762.8550412598852},{"$f":"'[2]EXT Comercio(M)'!AP380","v":8085.0683082598844},null,null,{"$f":"'[2]EXT Comercio(M)'!$BS380","v":-2552.1453476040406},{"$f":"'[2]EXT Comercio(M)'!$BT380","v":-2974.2873696040406}]
[null,null,"Diciembre ",{"$f":"'[2]REAL IPC(M)'!AD381","v":0.89244852204476821},{"$f":"'[2]REAL IPC(M)'!AE381","v":-8.5308433546244525E-2},{"$f":"'[2]REAL IPC(M)'!AF381","v":4.8236953455571019},{"$f":"'[2]REAL IPC(M)'!AG381","v":4.0130796670630211},{"$f":"'[2]REAL IPC(M)'!AH381","v":2.9305695911470475},{"$f":"'[2]REAL IPC(M)'!AI381","v":5.5536478118097348},{"$f":"'[2]REAL IPC(M)'!AJ381","v":-1.5762906309751652},null,null,{"$f":"'[2]REAL IMAE(M)'!AG381","v":-3.9957329075159453},{"$f":"'[2]REAL IMAE(M)'!AH381","v":-2.1226733076279687},{"$f":"'[2]REAL IMAE(M)'!AI381","v":2.4049790359094003},{"$f":"'[2]REAL IMAE(M)'!AJ381","v":-2.7678750103531917},{"$f":"'[2]REAL IMAE(M)'!AK381","v":0.98246762703837343},{"$f":"'[2]REAL IMAE(M)'!AL381","v":9.4706018076646956E-2},{"$f":"'[2]REAL IMAE(M)'!AM381","v":-6.9338982153074404},null,null,{"$f":"'[2]EXT ITCER(M)'!C381","v":85.039564022721791},{"$f":"'[2]EXT ITCER(M)'!D381","v":98.849199836791911},{"$f":"'[2]EXT ITCER(M)'!E381","v":52.914081801068662},{"$f":"'[2]EXT ITCER(M)'!F381","v":75.371977252275627},{"$f":"'[2]EXT ITCER(M)'!G381","v":108.8860051576405},{"$f":"'[2]EXT ITCER(M)'!H381","v":121.6450777199271},{"$f":"'[2]EXT ITCER(M)'!I381","v":96.818031438091822},null,null,{"$f":"'[2]EXT TC(M)'!J381","v":6.6928913610353886},{"$f":"'[2]EXT TC(M)'!K381","v":0},{"$f":"'[2]EXT TC(M)'!L381","v":1.46274237793748},{"$f":"'[2]EXT TC(M)'!M381","v":-2.0155536956402598},{"$f":"'[2]EXT TC(M)'!N381","v":3.2244366975818917},{"$f":"'[2]EXT TC(M)'!O381","v":9.9057380384201235},{"$f":"'[2]EXT TC(M)'!P381","v":0},null,null,{"$f":"'[2]EXT RIN(M)'!C381","v":7224.6663515199998},{"$f":"'[2]EXT RIN(M)'!D381","v":2915.2},{"$f":"'[2]EXT RIN(M)'!E381","v":18468.2},{"$f":"'[2]EXT RIN(M)'!F381","v":8148.8},{"$f":"'[2]EXT RIN(M)'!G381","v":3073.5},{"$f":"'[2]EXT RIN(M)'!H381","v":10751.6724920383},{"$f":"'[2]EXT RIN(M)'!I381","v":8672.3315890199992},null,null,{"$f":"'[2]EXT RIN(M)'!P381","v":63.927514840187861},{"$f":"'[2]EXT RIN(M)'!Q381","v":101.53051540180165},{"$f":"'[2]EXT RIN(M)'!R381","v":114.63593455606562},{"$f":"'[2]EXT RIN(M)'!S381","v":97.308673779973972},{"$f":"'[2]EXT RIN(M)'!T381","v":130.77506414980675},{"$f":"'[2]EXT RIN(M)'!U381","v":98.781919430615929},{"$f":"'[2]EXT RIN(M)'!V381","v":374.0109298069558},null,null,{"$f":"+'[2]MONE(M)CAPARD'!AE381","v":2.5844862684499996},{"$f":"'[2]MONE(M)CAPARD'!AF381","v":4.1388392124453794},{"$f":"'[2]MONE(M)CAPARD'!AG381","v":-0.45189720129169203},{"$f":"'[2]MONE(M)CAPARD'!AH381","v":3.3235438696770498},{"$f":"'[2]MONE(M)CAPARD'!AI381","v":3.9512784325713119},{"$f":"'[2]MONE(M)CAPARD'!AJ381","v":-1.5144410874930307},{"$f":"'[2]MONE(M)CAPARD'!AK381","v":3.5421248125325624},null,null,{"$f":"'[2]MONE(M)CAPARD'!AL381","v":2.71850418},{"$f":"'[2]MONE(M)CAPARD'!AM381","v":4.05},{"$f":"'[2]MONE(M)CAPARD'!AN381","v":2.66},{"$f":"'[2]MONE(M)CAPARD'!AO381","v":3.32},{"$f":"'[2]MONE(M)CAPARD'!AP381","v":3.4236455304849698},{"$f":"'[2]MONE(M)CAPARD'!AQ381","v":0.8821},{"$f":"'[2]MONE(M)CAPARD'!AR381","v":1.91},null,null,{"$f":"'[2]MONE(M)CAPARD'!J381","v":8.3088589193308771},{"$f":"'[2]MONE(M)CAPARD'!K381","v":6.5809225154570736},{"$f":"'[2]MONE(M)CAPARD'!L381","v":7.1608853606028191},{"$f":"'[2]MONE(M)CAPARD'!M381","v":12.178199485567305},{"$f":"'[2]MONE(M)CAPARD'!N381","v":10.584955070117875},{"$f":"'[2]MONE(M)CAPARD'!O381","v":4.0710598612864644},{"$f":"'[2]MONE(M)CAPARD'!P381","v":10.071716826354001},null,null,{"$f":"'[2]MONE(M)CAPARD'!Q381","v":6.8315155699999996},{"$f":"'[2]MONE(M)CAPARD'!R381","v":6.49},{"$f":"'[2]MONE(M)CAPARD'!S381","v":6.07},{"$f":"'[2]MONE(M)CAPARD'!T381","v":7.66},{"$f":"'[2]MONE(M)CAPARD'!U381","v":10.4107123181848},{"$f":"'[2]MONE(M)CAPARD'!V381","v":4.8220999999999998},{"$f":"'[2]MONE(M)CAPARD'!W381","v":8.3366666666666678},null,null,{"$f":"'[2]MONE(M)CAPARD'!AS381","v":0.75},{"$f":"'[2]MONE(M)CAPARD'!AT381","v":"n.a."},{"$f":"'[2]MONE(M)CAPARD'!AU381","v":1.75},{"$f":"'[2]MONE(M)CAPARD'!AV381","v":3},{"$f":"'[2]MONE(M)CAPARD'!AW381","v":4},{"$f":"'[2]MONE(M)CAPARD'!AX381","v":3},{"$f":"'[2]MONE(M)CAPARD'!AY381","v":"n.a."},null,null,{"$f":"+'Datos_Regional (M)'!CF374","v":3.9446780197889275},{"$f":"+'Datos_Regional (M)'!CG374","v":2.6729038875000111},{"$f":"+'Datos_Regional (M)'!CH374","v":5.9116243999646656},{"$f":"+'Datos_Regional (M)'!CI374","v":2.9338379491384181},{"$f":"+'Datos_Regional (M)'!CJ374","v":-4.0777602816925551},{"$f":"+'Datos_Regional (M)'!CK374","v":5.1375665842864793},{"$f":"+'Datos_Regional (M)'!CL374","v":-3.2695156978307827},null,null,967.71880935333354,400.45250000000004,925.10833333333323,637.56088190501953,442.1899436624999,858.49166666666667,804.73052408249987,4231.5221349208532,5036.2526590033531,null,null,1163.2418499966668,823.99166666666667,1517.2333333333333,936.23878531549519,491.58025590749997,1425.416666666667,1228.2934444166669,6357.7025578863295,7585.9960023029962,null,null,-2126.1804229654758,-2549.7433432996427,null,null,{"$f":"'[2]EXT Comercio(M)'!C381","v":1038.7114481100007},{"$f":"'[2]EXT Comercio(M)'!D381","v":454.01999999999953},{"$f":"'[2]EXT Comercio(M)'!E381","v":1084.3},{"$f":"'[2]EXT Comercio(M)'!F381","v":647.45176078190684},{"$f":"'[2]EXT Comercio(M)'!G381","v":423.81348114999935},{"$f":"'[2]EXT Comercio(M)'!H381","v":964.7},{"$f":"'[2]EXT Comercio(M)'!I381","v":872.85300000000007},{"$f":"'[2]EXT Comercio(M)'!K381","v":4612.9966900419167},{"$f":"'[2]EXT Comercio(M)'!L381","v":5485.8496900419195},null,null,{"$f":"'[2]EXT Comercio(M)'!AG381","v":1276.6938567400002},{"$f":"'[2]EXT Comercio(M)'!AH381","v":1052.6499999999996},{"$f":"'[2]EXT Comercio(M)'!AI381","v":1780.6},{"$f":"'[2]EXT Comercio(M)'!AJ381","v":1197.7082822517839},{"$f":"'[2]EXT Comercio(M)'!AK381","v":544.65922724999996},{"$f":"'[2]EXT Comercio(M)'!AL381","v":1768.3999999999999},{"$f":"'[2]EXT Comercio(M)'!AM381","v":1445.759002},{"$f":"'[2]EXT Comercio(M)'!AO381","v":7620.7113662417978},{"$f":"'[2]EXT Comercio(M)'!AP381","v":9066.4703682417894},null,null,{"$f":"'[2]EXT Comercio(M)'!$BS381","v":-3007.7146761998811},{"$f":"'[2]EXT Comercio(M)'!$BT381","v":-3580.6206781998808}]
[null,2021,"Enero",{"$f":"'[2]REAL IPC(M)'!AD382","v":0.95912353093986868},{"$f":"'[2]REAL IPC(M)'!AE382","v":0.30562937587131012},{"$f":"'[2]REAL IPC(M)'!AF382","v":5.2382298883076368},{"$f":"'[2]REAL IPC(M)'!AG382","v":4.1814946619217146},{"$f":"'[2]REAL IPC(M)'!AH382","v":3.1825074223787233},{"$f":"'[2]REAL IPC(M)'!AI382","v":6.2270483901758453},{"$f":"'[2]REAL IPC(M)'!AJ382","v":-1.4108520767563284},null,null,{"$f":"'[2]REAL IMAE(M)'!AG382","v":-3.3517117112522783},{"$f":"'[2]REAL IMAE(M)'!AH382","v":-0.34332102579556184},{"$f":"'[2]REAL IMAE(M)'!AI382","v":3.7723936762712809},{"$f":"'[2]REAL IMAE(M)'!AJ382","v":-1.670057232745302},{"$f":"'[2]REAL IMAE(M)'!AK382","v":1.898826507639735},{"$f":"'[2]REAL IMAE(M)'!AL382","v":3.8309460868912097},{"$f":"'[2]REAL IMAE(M)'!AM382","v":-7.2923253947329734},null,null,{"$f":"'[2]EXT ITCER(M)'!C382","v":85.860213338067354},{"$f":"'[2]EXT ITCER(M)'!D382","v":98.817506834290981},{"$f":"'[2]EXT ITCER(M)'!E382","v":52.873921326833567},{"$f":"'[2]EXT ITCER(M)'!F382","v":75.084760395723919},{"$f":"'[2]EXT ITCER(M)'!G382","v":109.13672038452749},{"$f":"'[2]EXT ITCER(M)'!H382","v":120.7466246188263},{"$f":"'[2]EXT ITCER(M)'!I382","v":96.741559027692844},null,null,{"$f":"'[2]EXT TC(M)'!J382","v":7.3524171652028736},{"$f":"'[2]EXT TC(M)'!K382","v":0},{"$f":"'[2]EXT TC(M)'!L382","v":1.2731614235216773},{"$f":"'[2]EXT TC(M)'!M382","v":-2.2441338517772746},{"$f":"'[2]EXT TC(M)'!N382","v":3.131474721482451},{"$f":"'[2]EXT TC(M)'!O382","v":9.4780144678620868},{"$f":"'[2]EXT TC(M)'!P382","v":0},null,null,{"$f":"'[2]EXT RIN(M)'!C382","v":7265.9578536099998},{"$f":"'[2]EXT RIN(M)'!D382","v":2770.23},{"$f":"'[2]EXT RIN(M)'!E382","v":18253.3},{"$f":"'[2]EXT RIN(M)'!F382","v":8130.6443762306944},{"$f":"'[2]EXT RIN(M)'!G382","v":3201.4100342933903},{"$f":"'[2]EXT RIN(M)'!H382","v":12522.991938799278},{"$f":"'[2]EXT RIN(M)'!I382","v":9676.5894383899995},null,null,{"$f":"'[2]EXT RIN(M)'!P382","v":64.181469337665959},{"$f":"'[2]EXT RIN(M)'!Q382","v":100.55697404538699},{"$f":"'[2]EXT RIN(M)'!R382","v":115.86324151736906},{"$f":"'[2]EXT RIN(M)'!S382","v":97.300582963663587},{"$f":"'[2]EXT RIN(M)'!T382","v":134.88068270601175},{"$f":"'[2]EXT RIN(M)'!U382","v":117.26468396359171},{"$f":"'[2]EXT RIN(M)'!V382","v":425.64734578618851},null,null,{"$f":"+'[2]MONE(M)CAPARD'!AE382","v":2.566262838312114},{"$f":"'[2]MONE(M)CAPARD'!AF382","v":3.6532053554016786},{"$f":"'[2]MONE(M)CAPARD'!AG382","v":-0.87252502183111624},{"$f":"'[2]MONE(M)CAPARD'!AH382","v":2.9246675226878587},{"$f":"'[2]MONE(M)CAPARD'!AI382","v":2.9825570590530295},{"$f":"'[2]MONE(M)CAPARD'!AJ382","v":-2.194119506752104},{"$f":"'[2]MONE(M)CAPARD'!AK382","v":3.3582317592743407},null,null,{"$f":"'[2]MONE(M)CAPARD'!AL382","v":2.4548119800000001},{"$f":"'[2]MONE(M)CAPARD'!AM382","v":3.97},{"$f":"'[2]MONE(M)CAPARD'!AN382","v":2.61},{"$f":"'[2]MONE(M)CAPARD'!AO382","v":3.27},{"$f":"'[2]MONE(M)CAPARD'!AP382","v":3.5288733712812501},{"$f":"'[2]MONE(M)CAPARD'!AQ382","v":1.3150999999999999},{"$f":"'[2]MONE(M)CAPARD'!AR382","v":1.9},null,null,{"$f":"'[2]MONE(M)CAPARD'!J382","v":8.4638676725847581},{"$f":"'[2]MONE(M)CAPARD'!K382","v":5.8066238758178335},{"$f":"'[2]MONE(M)CAPARD'!L382","v":6.7482797071270353},{"$f":"'[2]MONE(M)CAPARD'!M382","v":11.958462852263015},{"$f":"'[2]MONE(M)CAPARD'!N382","v":9.7760995948492972},{"$f":"'[2]MONE(M)CAPARD'!O382","v":3.2813220951232949},{"$f":"'[2]MONE(M)CAPARD'!P382","v":9.8701046532345096},null,null,{"$f":"'[2]MONE(M)CAPARD'!Q382","v":5.87580934},{"$f":"'[2]MONE(M)CAPARD'!R382","v":6.13},{"$f":"'[2]MONE(M)CAPARD'!S382","v":6.06},{"$f":"'[2]MONE(M)CAPARD'!T382","v":7.68},{"$f":"'[2]MONE(M)CAPARD'!U382","v":9.7496510662057201},{"$f":"'[2]MONE(M)CAPARD'!V382","v":3.4941},{"$f":"'[2]MONE(M)CAPARD'!W382","v":8.32},null,null,{"$f":"'[2]MONE(M)CAPARD'!AS382","v":0.75},{"$f":"'[2]MONE(M)CAPARD'!AT382","v":"n.a."},{"$f":"'[2]MONE(M)CAPARD'!AU382","v":1.75},{"$f":"'[2]MONE(M)CAPARD'!AV382","v":3},{"$f":"'[2]MONE(M)CAPARD'!AW382","v":3.75},{"$f":"'[2]MONE(M)CAPARD'!AX382","v":3},{"$f":"'[2]MONE(M)CAPARD'!AY382","v":"n.a."},null,null,{"$f":"+'Datos_Regional (M)'!CF375","v":3.6684535170541155},{"$f":"+'Datos_Regional (M)'!CG375","v":2.0931913855708251},{"$f":"+'Datos_Regional (M)'!CH375","v":6.122606925053975},{"$f":"+'Datos_Regional (M)'!CI375","v":2.5627632505167197},{"$f":"+'Datos_Regional (M)'!CJ375","v":-4.3862924942772992},{"$f":"+'Datos_Regional (M)'!CK375","v":4.2222063751522709},{"$f":"+'Datos_Regional (M)'!CL375","v":-3.2929504077583882},null,null,978.45269075583349,404.67249999999996,924.62499999999989,632.16005232074338,441.52873206249996,852.29166666666663,800.09843608250003,{"$f":"IF(EO187=\"\",\"\",+AVERAGE(EO176:EO187))","v":4233.7306418057442},{"$f":"IF(EP187=\"\",\"\",+AVERAGE(EP176:EP187))","v":5033.8290778882438},null,null,1163.0719927583334,836.01166666666666,1514.4833333333329,932.03008990555736,496.12497553333333,1418.4250000000002,1207.0255405833334,6360.1470581972244,{"$f":"IF(FA187=\"\",\"\",+AVERAGE(FA176:FA187))","v":7567.1725987805585},null,null,{"$f":"IF(FD187=\"\",\"\",+AVERAGE(FD176:FD187))","v":-2126.4164163914811},{"$f":"IF(FE187=\"\",\"\",+AVERAGE(FE176:FE187))","v":-2533.3435208923142},null,null,{"$f":"'[2]EXT Comercio(M)'!C382","v":949.55449042999999},{"$f":"'[2]EXT Comercio(M)'!D382","v":515.55999999999995},{"$f":"'[2]EXT Comercio(M)'!E382","v":1004},{"$f":"'[2]EXT Comercio(M)'!F382","v":691.70554063152235},{"$f":"'[2]EXT Comercio(M)'!G382","v":483.94682164},{"$f":"'[2]EXT Comercio(M)'!H382","v":789.19999999999982},{"$f":"'[2]EXT Comercio(M)'!I382","v":814.67000000000007},{"$f":"'[2]EXT Comercio(M)'!K382","v":4433.9668527015219},{"$f":"'[2]EXT Comercio(M)'!L382","v":5248.636852701522},null,null,{"$f":"'[2]EXT Comercio(M)'!AG382","v":1253.7199409899999},{"$f":"'[2]EXT Comercio(M)'!AH382","v":1066.95},{"$f":"'[2]EXT Comercio(M)'!AI382","v":1703.3},{"$f":"'[2]EXT Comercio(M)'!AJ382","v":1053.7706698329434},{"$f":"'[2]EXT Comercio(M)'!AK382","v":547.95029612999997},{"$f":"'[2]EXT Comercio(M)'!AL382","v":1500.8},{"$f":"'[2]EXT Comercio(M)'!AM382","v":1295.8699999999999},{"$f":"'[2]EXT Comercio(M)'!AO382","v":7126.4909069529449},{"$f":"'[2]EXT Comercio(M)'!AP382","v":8422.3609069529448},null,null,{"$f":"'[2]EXT Comercio(M)'!$BS382","v":-2692.5240542514211},{"$f":"'[2]EXT Comercio(M)'!$BT382","v":-3173.724054251421}]
[null,null,"Febrero",{"$f":"'[2]REAL IPC(M)'!AD383","v":0.4142856917048387},{"$f":"'[2]REAL IPC(M)'!AE383","v":1.0584687337529035},{"$f":"'[2]REAL IPC(M)'!AF383","v":5.9975867698204492},{"$f":"'[2]REAL IPC(M)'!AG383","v":3.8665879574970385},{"$f":"'[2]REAL IPC(M)'!AH383","v":3.7730623705781703},{"$f":"'[2]REAL IPC(M)'!AI383","v":7.0877017403547349},{"$f":"'[2]REAL IPC(M)'!AJ383","v":-0.58560851989096674},null,null,{"$f":"'[2]REAL IMAE(M)'!AG383","v":-2.7534958575343391},{"$f":"'[2]REAL IMAE(M)'!AH383","v":2.8792244305749208},{"$f":"'[2]REAL IMAE(M)'!AI383","v":6.2330469776615143},{"$f":"'[2]REAL IMAE(M)'!AJ383","v":0.2322161467750424},{"$f":"'[2]REAL IMAE(M)'!AK383","v":3.1735035059874726},{"$f":"'[2]REAL IMAE(M)'!AL383","v":8.1130120133052266},{"$f":"'[2]REAL IMAE(M)'!AM383","v":-7.7556361669070624},null,null,{"$f":"'[2]EXT ITCER(M)'!C383","v":86.298224718937945},{"$f":"'[2]EXT ITCER(M)'!D383","v":98.581525535711904},{"$f":"'[2]EXT ITCER(M)'!E383","v":52.576431470380932},{"$f":"'[2]EXT ITCER(M)'!F383","v":75.175565260827284},{"$f":"'[2]EXT ITCER(M)'!G383","v":108.71186162722741},{"$f":"'[2]EXT ITCER(M)'!H383","v":119.9106613985855},{"$f":"'[2]EXT ITCER(M)'!I383","v":96.541499591624131},null,null,{"$f":"'[2]EXT TC(M)'!J383","v":7.0131273990590053},{"$f":"'[2]EXT TC(M)'!K383","v":0},{"$f":"'[2]EXT TC(M)'!L383","v":1.2253411081163275},{"$f":"'[2]EXT TC(M)'!M383","v":-2.4128728707143532},{"$f":"'[2]EXT TC(M)'!N383","v":2.8807139036670306},{"$f":"'[2]EXT TC(M)'!O383","v":8.5431577051112235},{"$f":"'[2]EXT TC(M)'!P383","v":0},null,null,{"$f":"'[2]EXT RIN(M)'!C383","v":7296.84548283},{"$f":"'[2]EXT RIN(M)'!D383","v":2522.9699999999998},{"$f":"'[2]EXT RIN(M)'!E383","v":18374.400000000001},{"$f":"'[2]EXT RIN(M)'!F383","v":8242.7006274638479},{"$f":"'[2]EXT RIN(M)'!G383","v":3150.3164686291989},{"$f":"'[2]EXT RIN(M)'!H383","v":11963.162508328376},{"$f":"'[2]EXT RIN(M)'!I383","v":9062.67691457},null,null,{"$f":"'[2]EXT RIN(M)'!P383","v":64.345849995515664},{"$f":"'[2]EXT RIN(M)'!Q383","v":98.30498832638736},{"$f":"'[2]EXT RIN(M)'!R383","v":115.52848228253114},{"$f":"'[2]EXT RIN(M)'!S383","v":99.93181579575905},{"$f":"'[2]EXT RIN(M)'!T383","v":136.94033397806629},{"$f":"'[2]EXT RIN(M)'!U383","v":116.10364164350115},{"$f":"'[2]EXT RIN(M)'!V383","v":398.88264285914238},null,null,{"$f":"+'[2]MONE(M)CAPARD'!AE383","v":3.0231896660755115},{"$f":"'[2]MONE(M)CAPARD'!AF383","v":3.0492558464997641},{"$f":"'[2]MONE(M)CAPARD'!AG383","v":-1.6109675907325769},{"$f":"'[2]MONE(M)CAPARD'!AH383","v":3.0167661267405612},{"$f":"'[2]MONE(M)CAPARD'!AI383","v":2.7239891877639422},{"$f":"'[2]MONE(M)CAPARD'!AJ383","v":-2.693588239804146},{"$f":"'[2]MONE(M)CAPARD'!AK383","v":2.490191292260024},null,null,{"$f":"'[2]MONE(M)CAPARD'!AL383","v":2.5480190399999998},{"$f":"'[2]MONE(M)CAPARD'!AM383","v":4.1399999999999997},{"$f":"'[2]MONE(M)CAPARD'!AN383","v":2.6},{"$f":"'[2]MONE(M)CAPARD'!AO383","v":3.21},{"$f":"'[2]MONE(M)CAPARD'!AP383","v":3.5857730635233498},{"$f":"'[2]MONE(M)CAPARD'!AQ383","v":0.94620000000000004},{"$f":"'[2]MONE(M)CAPARD'!AR383","v":1.89},null,null,{"$f":"'[2]MONE(M)CAPARD'!J383","v":10.074473565797478},{"$f":"'[2]MONE(M)CAPARD'!K383","v":5.1173655518885157},{"$f":"'[2]MONE(M)CAPARD'!L383","v":5.9646765769385075},{"$f":"'[2]MONE(M)CAPARD'!M383","v":12.220880932082988},{"$f":"'[2]MONE(M)CAPARD'!N383","v":10.542903596274284},{"$f":"'[2]MONE(M)CAPARD'!O383","v":2.5071957059598504},{"$f":"'[2]MONE(M)CAPARD'!P383","v":8.9278910102938251},null,null,{"$f":"'[2]MONE(M)CAPARD'!Q383","v":5.8058735600000002},{"$f":"'[2]MONE(M)CAPARD'!R383","v":6.23},{"$f":"'[2]MONE(M)CAPARD'!S383","v":6.04},{"$f":"'[2]MONE(M)CAPARD'!T383","v":7.64},{"$f":"'[2]MONE(M)CAPARD'!U383","v":8.8217755071920294},{"$f":"'[2]MONE(M)CAPARD'!V383","v":3.7345999999999999},{"$f":"'[2]MONE(M)CAPARD'!W383","v":8.2899999999999991},null,null,{"$f":"'[2]MONE(M)CAPARD'!AS383","v":0.75},{"$f":"'[2]MONE(M)CAPARD'!AT383","v":"n.a."},{"$f":"'[2]MONE(M)CAPARD'!AU383","v":1.75},{"$f":"'[2]MONE(M)CAPARD'!AV383","v":3},{"$f":"'[2]MONE(M)CAPARD'!AW383","v":3.75},{"$f":"'[2]MONE(M)CAPARD'!AX383","v":3},{"$f":"'[2]MONE(M)CAPARD'!AY383","v":"n.a."},null,null,{"$f":"+'Datos_Regional (M)'!CF376","v":3.5514323895042388},{"$f":"+'Datos_Regional (M)'!CG376","v":1.8119634277849572},{"$f":"+'Datos_Regional (M)'!CH376","v":6.3328255425260327},{"$f":"+'Datos_Regional (M)'!CI376","v":2.9360088153332464},{"$f":"+'Datos_Regional (M)'!CJ376","v":-3.703895100710064},{"$f":"+'Datos_Regional (M)'!CK376","v":4.5338991521331362},{"$f":"+'Datos_Regional (M)'!CL376","v":-3.2088581193290722},null,null,984.20637481583344,404.32666666666665,924.55833333333339,632.15952583051887,445.62779177499993,852.97499999999991,793.92520983250006,4243.8536924213522,5037.7789022538527,null,null,1157.9459696858335,842.79583333333346,1533.375,940.14814526390046,496.84509046333324,1428.2833333333335,1222.4600177500004,6399.3933720797349,7621.8533898297355,null,null,-2155.5396796583814,-2584.0744875758814,null,null,{"$f":"'[2]EXT Comercio(M)'!C383","v":1103.4068648999998},{"$f":"'[2]EXT Comercio(M)'!D383","v":504.92000000000007},{"$f":"'[2]EXT Comercio(M)'!E383","v":1031.0999999999999},{"$f":"'[2]EXT Comercio(M)'!F383","v":776.67476492681681},{"$f":"'[2]EXT Comercio(M)'!G383","v":524.34036551000008},{"$f":"'[2]EXT Comercio(M)'!H383","v":961.40000000000009},{"$f":"'[2]EXT Comercio(M)'!I383","v":801.17000000000007},{"$f":"'[2]EXT Comercio(M)'!K383","v":4901.8419953368175},{"$f":"'[2]EXT Comercio(M)'!L383","v":5703.0119953368176},null,null,{"$f":"'[2]EXT Comercio(M)'!AG383","v":1168.6468180300001},{"$f":"'[2]EXT Comercio(M)'!AH383","v":945.6099999999999},{"$f":"'[2]EXT Comercio(M)'!AI383","v":1760},{"$f":"'[2]EXT Comercio(M)'!AJ383","v":1166.2057336834657},{"$f":"'[2]EXT Comercio(M)'!AK383","v":544.16974390000007},{"$f":"'[2]EXT Comercio(M)'!AL383","v":1653.1999999999998},{"$f":"'[2]EXT Comercio(M)'!AM383","v":1460.54},{"$f":"'[2]EXT Comercio(M)'!AO383","v":7237.8322956134643},{"$f":"'[2]EXT Comercio(M)'!AP383","v":8698.3722956134625},null,null,{"$f":"'[2]EXT Comercio(M)'!$BS383","v":-2335.9903002766487},{"$f":"'[2]EXT Comercio(M)'!$BT383","v":-2995.3603002766486}]
[null,null,"Marzo",{"$f":"'[2]REAL IPC(M)'!AD384","v":0.47273206790342198},{"$f":"'[2]REAL IPC(M)'!AE384","v":1.7694173897368006},{"$f":"'[2]REAL IPC(M)'!AF384","v":5.8416331143603832},{"$f":"'[2]REAL IPC(M)'!AG384","v":3.9434961742201229},{"$f":"'[2]REAL IPC(M)'!AH384","v":4.1108997892738905},{"$f":"'[2]REAL IPC(M)'!AI384","v":8.2965106026717894},{"$f":"'[2]REAL IPC(M)'!AJ384","v":0.28839027278834267},null,null,{"$f":"'[2]REAL IMAE(M)'!AG384","v":8.3287831732859168},{"$f":"'[2]REAL IMAE(M)'!AH384","v":11.022778990653705},{"$f":"'[2]REAL IMAE(M)'!AI384","v":9.4554417930154475},{"$f":"'[2]REAL IMAE(M)'!AJ384","v":10.943580974907899},{"$f":"'[2]REAL IMAE(M)'!AK384","v":4.6137106988095384},{"$f":"'[2]REAL IMAE(M)'!AL384","v":12.182194660209376},{"$f":"'[2]REAL IMAE(M)'!AM384","v":-8.2772330620296586},null,null,{"$f":"'[2]EXT ITCER(M)'!C384","v":86.690050331265468},{"$f":"'[2]EXT ITCER(M)'!D384","v":98.287371211929326},{"$f":"'[2]EXT ITCER(M)'!E384","v":52.516725036469317},{"$f":"'[2]EXT ITCER(M)'!F384","v":75.114208890572229},{"$f":"'[2]EXT ITCER(M)'!G384","v":109.03329712492},{"$f":"'[2]EXT ITCER(M)'!H384","v":118.38538893671451},{"$f":"'[2]EXT ITCER(M)'!I384","v":96.592178284852039},null,null,{"$f":"'[2]EXT TC(M)'!J384","v":7.0395354823751717},{"$f":"'[2]EXT TC(M)'!K384","v":0},{"$f":"'[2]EXT TC(M)'!L384","v":0.39551609375060859},{"$f":"'[2]EXT TC(M)'!M384","v":-2.776316179079191},{"$f":"'[2]EXT TC(M)'!N384","v":2.7303360306820728},{"$f":"'[2]EXT TC(M)'!O384","v":6.5558402832781955},{"$f":"'[2]EXT TC(M)'!P384","v":0},null,null,{"$f":"'[2]EXT RIN(M)'!C384","v":7169.0402848000003},{"$f":"'[2]EXT RIN(M)'!D384","v":2447.37},{"$f":"'[2]EXT RIN(M)'!E384","v":18699.8},{"$f":"'[2]EXT RIN(M)'!F384","v":8252.9434180912322},{"$f":"'[2]EXT RIN(M)'!G384","v":3227.8067002013695},{"$f":"'[2]EXT RIN(M)'!H384","v":12174.180959732435},{"$f":"'[2]EXT RIN(M)'!I384","v":7891.2991930999997},null,null,{"$f":"'[2]EXT RIN(M)'!P384","v":65.042750181692668},{"$f":"'[2]EXT RIN(M)'!Q384","v":100.44196813511938},{"$f":"'[2]EXT RIN(M)'!R384","v":122.48858836590802},{"$f":"'[2]EXT RIN(M)'!S384","v":99.625670246197089},{"$f":"'[2]EXT RIN(M)'!T384","v":134.01606909466858},{"$f":"'[2]EXT RIN(M)'!U384","v":110.61318433100946},{"$f":"'[2]EXT RIN(M)'!V384","v":339.61466395777541},null,null,{"$f":"+'[2]MONE(M)CAPARD'!AE384","v":2.9134949073726943},{"$f":"'[2]MONE(M)CAPARD'!AF384","v":2.2212789148689516},{"$f":"'[2]MONE(M)CAPARD'!AG384","v":-1.5037873731980742},{"$f":"'[2]MONE(M)CAPARD'!AH384","v":2.6807870894677306},{"$f":"'[2]MONE(M)CAPARD'!AI384","v":2.576036143450648},{"$f":"'[2]MONE(M)CAPARD'!AJ384","v":-4.4974769506115795},{"$f":"'[2]MONE(M)CAPARD'!AK384","v":1.606975366568369},null,null,{"$f":"'[2]MONE(M)CAPARD'!AL384","v":2.55742899},{"$f":"'[2]MONE(M)CAPARD'!AM384","v":4.03},{"$f":"'[2]MONE(M)CAPARD'!AN384","v":2.61},{"$f":"'[2]MONE(M)CAPARD'!AO384","v":3.21},{"$f":"'[2]MONE(M)CAPARD'!AP384","v":3.4407022277322801},{"$f":"'[2]MONE(M)CAPARD'!AQ384","v":0.75700000000000001},{"$f":"'[2]MONE(M)CAPARD'!AR384","v":1.9},null,null,{"$f":"'[2]MONE(M)CAPARD'!J384","v":9.0697997601357887},{"$f":"'[2]MONE(M)CAPARD'!K384","v":4.2061581170994158},{"$f":"'[2]MONE(M)CAPARD'!L384","v":6.1208115323011247},{"$f":"'[2]MONE(M)CAPARD'!M384","v":11.772265005662522},{"$f":"'[2]MONE(M)CAPARD'!N384","v":8.0876489310919233},{"$f":"'[2]MONE(M)CAPARD'!O384","v":0.65144240881091342},{"$f":"'[2]MONE(M)CAPARD'!P384","v":7.9985427080767426},null,null,{"$f":"'[2]MONE(M)CAPARD'!Q384","v":6.0726114400000002},{"$f":"'[2]MONE(M)CAPARD'!R384","v":6.05},{"$f":"'[2]MONE(M)CAPARD'!S384","v":5.99},{"$f":"'[2]MONE(M)CAPARD'!T384","v":7.61},{"$f":"'[2]MONE(M)CAPARD'!U384","v":8.5509152280162102},{"$f":"'[2]MONE(M)CAPARD'!V384","v":3.5796000000000001},{"$f":"'[2]MONE(M)CAPARD'!W384","v":8.31},null,null,{"$f":"'[2]MONE(M)CAPARD'!AS384","v":0.75},{"$f":"'[2]MONE(M)CAPARD'!AT384","v":"n.a."},{"$f":"'[2]MONE(M)CAPARD'!AU384","v":1.75},{"$f":"'[2]MONE(M)CAPARD'!AV384","v":3},{"$f":"'[2]MONE(M)CAPARD'!AW384","v":3.5},{"$f":"'[2]MONE(M)CAPARD'!AX384","v":3},{"$f":"'[2]MONE(M)CAPARD'!AY384","v":"n.a."},null,null,{"$f":"+'Datos_Regional (M)'!CF377","v":2.7957914923438132},{"$f":"+'Datos_Regional (M)'!CG377","v":1.2878825412196315},{"$f":"+'Datos_Regional (M)'!CH377","v":4.7633679965661146},{"$f":"+'Datos_Regional (M)'!CI377","v":3.107370518901087},{"$f":"+'Datos_Regional (M)'!CJ377","v":-3.5056394304158744},{"$f":"+'Datos_Regional (M)'!CK377","v":5.4199126963489608},{"$f":"+'Datos_Regional (M)'!CL377","v":-1.7740946210972441},null,null,994.76541419833347,417.57083333333338,945.13333333333333,657.13612634316144,457.65568514749998,876.32499999999993,820.28764133250013,4348.5863923556626,5168.8740336881619,null,null,1174.4074664949999,871.19500000000005,1590.25,978.28078904123629,511.08201859999991,1462.4416666666666,1270.7256080833333,{"$f":"IF(EZ189=\"\",\"\",+AVERAGE(EZ178:EZ189))","v":6587.6569408029054},7858.3825488862376,null,null,-2239.0705484472414,-2689.5085151980747,null,null,{"$f":"'[2]EXT Comercio(M)'!C384","v":1265.0516182800002},{"$f":"'[2]EXT Comercio(M)'!D384","v":558.25},{"$f":"'[2]EXT Comercio(M)'!E384","v":1250.5},{"$f":"'[2]EXT Comercio(M)'!F384","v":933.85816014411012},{"$f":"'[2]EXT Comercio(M)'!G384","v":653.23738957},{"$f":"'[2]EXT Comercio(M)'!H384","v":1154.5},{"$f":"'[2]EXT Comercio(M)'!I384","v":1169.45},{"$f":"'[2]EXT Comercio(M)'!K384","v":5815.3971679941096},{"$f":"'[2]EXT Comercio(M)'!L384","v":6984.8471679941085},null,null,{"$f":"'[2]EXT Comercio(M)'!AG384","v":1439.9592083999999},{"$f":"'[2]EXT Comercio(M)'!AH384","v":1212.1100000000001},{"$f":"'[2]EXT Comercio(M)'!AI384","v":2151.5},{"$f":"'[2]EXT Comercio(M)'!AJ384","v":1357.6610391663669},{"$f":"'[2]EXT Comercio(M)'!AK384","v":684.28542706000007},{"$f":"'[2]EXT Comercio(M)'!AL384","v":1915.1},{"$f":"'[2]EXT Comercio(M)'!AM384","v":1776.8000000000002},{"$f":"'[2]EXT Comercio(M)'!AO384","v":8760.6156746263678},{"$f":"'[2]EXT Comercio(M)'!AP384","v":10537.415674626369},null,null,{"$f":"'[2]EXT Comercio(M)'!$BS384","v":-2945.2185066322563},{"$f":"'[2]EXT Comercio(M)'!$BT384","v":-3552.5685066322567}]
[null,null,"Abril",{"$f":"'[2]REAL IPC(M)'!AD385","v":1.2098355534775576},{"$f":"'[2]REAL IPC(M)'!AE385","v":2.7946132328563618},{"$f":"'[2]REAL IPC(M)'!AF385","v":5.2040959461354941},{"$f":"'[2]REAL IPC(M)'!AG385","v":3.9577836411609493},{"$f":"'[2]REAL IPC(M)'!AH385","v":4.4030833590771996},{"$f":"'[2]REAL IPC(M)'!AI385","v":9.6452641918615676},{"$f":"'[2]REAL IPC(M)'!AJ385","v":1.7052889858233271},null,null,{"$f":"'[2]REAL IMAE(M)'!AG385","v":10.001075609553009},{"$f":"'[2]REAL IMAE(M)'!AH385","v":21.662943003513799},{"$f":"'[2]REAL IMAE(M)'!AI385","v":12.429700528371127},{"$f":"'[2]REAL IMAE(M)'!AJ385","v":11.5404073012143},{"$f":"'[2]REAL IMAE(M)'!AK385","v":5.9753684267897009},{"$f":"'[2]REAL IMAE(M)'!AL385","v":15.138477809044431},{"$f":"'[2]REAL IMAE(M)'!AM385","v":59.483152674660211},null,null,{"$f":"'[2]EXT ITCER(M)'!C385","v":87.337172796364442},{"$f":"'[2]EXT ITCER(M)'!D385","v":98.308118634013312},{"$f":"'[2]EXT ITCER(M)'!E385","v":52.78369249969564},{"$f":"'[2]EXT ITCER(M)'!F385","v":75.265719802234571},{"$f":"'[2]EXT ITCER(M)'!G385","v":109.8272996100613},{"$f":"'[2]EXT ITCER(M)'!H385","v":117.89334107305331},{"$f":"'[2]EXT ITCER(M)'!I385","v":97.11171452308696},null,null,{"$f":"'[2]EXT TC(M)'!J385","v":7.8255294121806509},{"$f":"'[2]EXT TC(M)'!K385","v":0},{"$f":"'[2]EXT TC(M)'!L385","v":8.984749330695227E-2},{"$f":"'[2]EXT TC(M)'!M385","v":-3.1929575805388217},{"$f":"'[2]EXT TC(M)'!N385","v":2.7080140708263993},{"$f":"'[2]EXT TC(M)'!O385","v":4.9443652663852111},{"$f":"'[2]EXT TC(M)'!P385","v":0},null,null,{"$f":"'[2]EXT RIN(M)'!C385","v":7098.4088019800001},{"$f":"'[2]EXT RIN(M)'!D385","v":2496.64},{"$f":"'[2]EXT RIN(M)'!E385","v":18812.2},{"$f":"'[2]EXT RIN(M)'!F385","v":8482.9648848130546},{"$f":"'[2]EXT RIN(M)'!G385","v":3354.4646831551927},{"$f":"'[2]EXT RIN(M)'!H385","v":12245.922034553323},{"$f":"'[2]EXT RIN(M)'!I385","v":8445.1795811499996},null,null,{"$f":"'[2]EXT RIN(M)'!P385","v":64.073392595439628},{"$f":"'[2]EXT RIN(M)'!Q385","v":105.00125329937366},{"$f":"'[2]EXT RIN(M)'!R385","v":123.79530225687836},{"$f":"'[2]EXT RIN(M)'!S385","v":103.39700172594415},{"$f":"'[2]EXT RIN(M)'!T385","v":136.88639767633455},{"$f":"'[2]EXT RIN(M)'!U385","v":105.70167148004226},{"$f":"'[2]EXT RIN(M)'!V385","v":380.41484733647746},null,null,{"$f":"+'[2]MONE(M)CAPARD'!AE385","v":2.0651791746248169},{"$f":"'[2]MONE(M)CAPARD'!AF385","v":1.0753353044285028},{"$f":"'[2]MONE(M)CAPARD'!AG385","v":-0.93541599999999203},{"$f":"'[2]MONE(M)CAPARD'!AH385","v":2.4116304692828807},{"$f":"'[2]MONE(M)CAPARD'!AI385","v":2.0246923994181452},{"$f":"'[2]MONE(M)CAPARD'!AJ385","v":-5.8580406907700446},{"$f":"'[2]MONE(M)CAPARD'!AK385","v":0.14228464971653954},null,null,{"$f":"'[2]MONE(M)CAPARD'!AL385","v":2.4461444499999998},{"$f":"'[2]MONE(M)CAPARD'!AM385","v":3.9},{"$f":"'[2]MONE(M)CAPARD'!AN385","v":2.5499999999999998},{"$f":"'[2]MONE(M)CAPARD'!AO385","v":3.0716117347402827},{"$f":"'[2]MONE(M)CAPARD'!AP385","v":3.5528119037457899},{"$f":"'[2]MONE(M)CAPARD'!AQ385","v":0.7177},{"$f":"'[2]MONE(M)CAPARD'!AR385","v":1.85},null,null,{"$f":"'[2]MONE(M)CAPARD'!J385","v":9.0520091613839728},{"$f":"'[2]MONE(M)CAPARD'!K385","v":3.2836222259015799},{"$f":"'[2]MONE(M)CAPARD'!L385","v":6.7258826666666751},{"$f":"'[2]MONE(M)CAPARD'!M385","v":11.901192893401014},{"$f":"'[2]MONE(M)CAPARD'!N385","v":8.4606371587910196},{"$f":"'[2]MONE(M)CAPARD'!O385","v":0.34022062958020677},{"$f":"'[2]MONE(M)CAPARD'!P385","v":6.4644730669740484},null,null,{"$f":"'[2]MONE(M)CAPARD'!Q385","v":5.7733076900000002},{"$f":"'[2]MONE(M)CAPARD'!R385","v":6.17},{"$f":"'[2]MONE(M)CAPARD'!S385","v":5.95},{"$f":"'[2]MONE(M)CAPARD'!T385","v":7.62},{"$f":"'[2]MONE(M)CAPARD'!U385","v":9.0261059479174293},{"$f":"'[2]MONE(M)CAPARD'!V385","v":4.2447999999999997},{"$f":"'[2]MONE(M)CAPARD'!W385","v":8.2799999999999994},null,null,{"$f":"'[2]MONE(M)CAPARD'!AS385","v":0.75},{"$f":"'[2]MONE(M)CAPARD'!AT385","v":"n.a."},{"$f":"'[2]MONE(M)CAPARD'!AU385","v":1.75},{"$f":"'[2]MONE(M)CAPARD'!AV385","v":3},{"$f":"'[2]MONE(M)CAPARD'!AW385","v":3.5},{"$f":"'[2]MONE(M)CAPARD'!AX385","v":3},{"$f":"'[2]MONE(M)CAPARD'!AY385","v":"n.a."},null,null,{"$f":"+'Datos_Regional (M)'!CF378","v":4.6455501276852385},{"$f":"+'Datos_Regional (M)'!CG378","v":1.8846033625514513},{"$f":"+'Datos_Regional (M)'!CH378","v":4.185759472521533},{"$f":"+'Datos_Regional (M)'!CI378","v":2.3118727650339732},{"$f":"+'Datos_Regional (M)'!CJ378","v":-1.5201908734486014},{"$f":"+'Datos_Regional (M)'!CK378","v":4.9930397953873662},{"$f":"+'Datos_Regional (M)'!CL378","v":-1.9603617977768661},null,null,1017.3340120208333,442.59666666666664,963.69999999999993,693.63822035439546,473.83499835833328,{"$f":"IF(EM190=\"\",\"\",+AVERAGE(EM179:EM190))","v":914.39166666666654},871.18085699916685,4505.4955640668968,5376.6764210660631,null,null,1208.1007982866665,914.5200000000001,1649.9499999999998,1024.4562020606577,542.40511730500009,1527.5666666666666,1305.491958916667,6866.9987843189929,8172.4907432356586,null,null,-2361.5032202520961,-2795.814322169595,null,null,{"$f":"'[2]EXT Comercio(M)'!C385","v":1113.3165976600001},{"$f":"'[2]EXT Comercio(M)'!D385","v":512.48},{"$f":"'[2]EXT Comercio(M)'!E385","v":1049.8},{"$f":"'[2]EXT Comercio(M)'!F385","v":833.43926469512417},{"$f":"'[2]EXT Comercio(M)'!G385","v":560.33879174999993},{"$f":"'[2]EXT Comercio(M)'!H385","v":1012},{"$f":"'[2]EXT Comercio(M)'!I385","v":1010.46},{"$f":"'[2]EXT Comercio(M)'!K385","v":5081.3746541051241},{"$f":"'[2]EXT Comercio(M)'!L385","v":6091.8346541051251},null,null,{"$f":"'[2]EXT Comercio(M)'!AG385","v":1422.8649226899997},{"$f":"'[2]EXT Comercio(M)'!AH385","v":1139.880000000001},{"$f":"'[2]EXT Comercio(M)'!AI385","v":2079.3000000000002},{"$f":"'[2]EXT Comercio(M)'!AJ385","v":1283.6507936800226},{"$f":"'[2]EXT Comercio(M)'!AK385","v":791.87640758999987},{"$f":"'[2]EXT Comercio(M)'!AL385","v":1981.8000000000002},{"$f":"'[2]EXT Comercio(M)'!AM385","v":1417.35},{"$f":"'[2]EXT Comercio(M)'!AO385","v":8699.3721239600236},{"$f":"'[2]EXT Comercio(M)'!AP385","v":10116.722123960026},null,null,{"$f":"'[2]EXT Comercio(M)'!$BS385","v":-3617.9974698549013},{"$f":"'[2]EXT Comercio(M)'!$BT385","v":-4024.8874698549007}]
[null,null,"Mayo ",{"$f":"'[2]REAL IPC(M)'!AD386","v":1.3418059270051181},{"$f":"'[2]REAL IPC(M)'!AE386","v":2.590073848836751},{"$f":"'[2]REAL IPC(M)'!AF386","v":5.1732586629331481},{"$f":"'[2]REAL IPC(M)'!AG386","v":4.8391856004721259},{"$f":"'[2]REAL IPC(M)'!AH386","v":3.9732654377111127},{"$f":"'[2]REAL IPC(M)'!AI386","v":10.480820683305565},{"$f":"'[2]REAL IPC(M)'!AJ386","v":1.9240394409096875},null,null,{"$f":"'[2]REAL IMAE(M)'!AG386","v":11.315642464706142},{"$f":"'[2]REAL IMAE(M)'!AH386","v":25.768763739764694},{"$f":"'[2]REAL IMAE(M)'!AI386","v":13.951396992808595},{"$f":"'[2]REAL IMAE(M)'!AJ386","v":11.90970904377888},{"$f":"'[2]REAL IMAE(M)'!AK386","v":7.0083695483637438},{"$f":"'[2]REAL IMAE(M)'!AL386","v":16.301471728147281},{"$f":"'[2]REAL IMAE(M)'!AM386","v":59.457440872631842},null,null,{"$f":"'[2]EXT ITCER(M)'!C386","v":88.256579161907183},{"$f":"'[2]EXT ITCER(M)'!D386","v":98.933057771509525},{"$f":"'[2]EXT ITCER(M)'!E386","v":53.037753490862208},{"$f":"'[2]EXT ITCER(M)'!F386","v":75.568464538117155},{"$f":"'[2]EXT ITCER(M)'!G386","v":110.6562971348682},{"$f":"'[2]EXT ITCER(M)'!H386","v":117.9030309052504},{"$f":"'[2]EXT ITCER(M)'!I386","v":97.556102361778883},null,null,{"$f":"'[2]EXT TC(M)'!J386","v":8.04753591897577},{"$f":"'[2]EXT TC(M)'!K386","v":0},{"$f":"'[2]EXT TC(M)'!L386","v":0.21251023812344405},{"$f":"'[2]EXT TC(M)'!M386","v":-3.350983242494777},{"$f":"'[2]EXT TC(M)'!N386","v":2.3942536168295332},{"$f":"'[2]EXT TC(M)'!O386","v":2.6783341318556166},{"$f":"'[2]EXT TC(M)'!P386","v":0},null,null,{"$f":"'[2]EXT RIN(M)'!C386","v":6831.1434277199996},{"$f":"'[2]EXT RIN(M)'!D386","v":2985.16},{"$f":"'[2]EXT RIN(M)'!E386","v":18929.7},{"$f":"'[2]EXT RIN(M)'!F386","v":8540.1575189652613},{"$f":"'[2]EXT RIN(M)'!G386","v":3509.1089193086445},{"$f":"'[2]EXT RIN(M)'!H386","v":12417.540378595846},{"$f":"'[2]EXT RIN(M)'!I386","v":8286.6627843499991},null,null,{"$f":"'[2]EXT RIN(M)'!P386","v":61.321828324155661},{"$f":"'[2]EXT RIN(M)'!Q386","v":112.62438479633433},{"$f":"'[2]EXT RIN(M)'!R386","v":124.65009700390961},{"$f":"'[2]EXT RIN(M)'!S386","v":103.27167460387416},{"$f":"'[2]EXT RIN(M)'!T386","v":139.22573194552194},{"$f":"'[2]EXT RIN(M)'!U386","v":103.0453565707417},{"$f":"'[2]EXT RIN(M)'!V386","v":376.81940202434487},null,null,{"$f":"+'[2]MONE(M)CAPARD'!AE386","v":1.8335908423946079},{"$f":"'[2]MONE(M)CAPARD'!AF386","v":1.3158447991297118},{"$f":"'[2]MONE(M)CAPARD'!AG386","v":-0.93489416932907443},{"$f":"'[2]MONE(M)CAPARD'!AH386","v":1.2598480157613188},{"$f":"'[2]MONE(M)CAPARD'!AI386","v":1.377260865608344},{"$f":"'[2]MONE(M)CAPARD'!AJ386","v":-6.404750290178467},{"$f":"'[2]MONE(M)CAPARD'!AK386","v":-9.2264240531996028E-2},null,null,{"$f":"'[2]MONE(M)CAPARD'!AL386","v":2.2766643000000002},{"$f":"'[2]MONE(M)CAPARD'!AM386","v":3.94},{"$f":"'[2]MONE(M)CAPARD'!AN386","v":2.48},{"$f":"'[2]MONE(M)CAPARD'!AO386","v":3.02},{"$f":"'[2]MONE(M)CAPARD'!AP386","v":4.1936545423834497},{"$f":"'[2]MONE(M)CAPARD'!AQ386","v":0.74509999999999998},{"$f":"'[2]MONE(M)CAPARD'!AR386","v":1.83},null,null,{"$f":"'[2]MONE(M)CAPARD'!J386","v":7.6361886116070483},{"$f":"'[2]MONE(M)CAPARD'!K386","v":3.5285345017853249},{"$f":"'[2]MONE(M)CAPARD'!L386","v":6.7286508253461115},{"$f":"'[2]MONE(M)CAPARD'!M386","v":10.950880945679698},{"$f":"'[2]MONE(M)CAPARD'!N386","v":7.1089190895081913},{"$f":"'[2]MONE(M)CAPARD'!O386","v":-0.42217344188867334},{"$f":"'[2]MONE(M)CAPARD'!P386","v":6.2556003412588126},null,null,{"$f":"'[2]MONE(M)CAPARD'!Q386","v":6.2203406799999996},{"$f":"'[2]MONE(M)CAPARD'!R386","v":6.21},{"$f":"'[2]MONE(M)CAPARD'!S386","v":5.92},{"$f":"'[2]MONE(M)CAPARD'!T386","v":7.65},{"$f":"'[2]MONE(M)CAPARD'!U386","v":8.7956001158216495},{"$f":"'[2]MONE(M)CAPARD'!V386","v":3.9443000000000001},{"$f":"'[2]MONE(M)CAPARD'!W386","v":8.3000000000000007},null,null,{"$f":"'[2]MONE(M)CAPARD'!AS386","v":0.75},{"$f":"'[2]MONE(M)CAPARD'!AT386","v":"n.a."},{"$f":"'[2]MONE(M)CAPARD'!AU386","v":1.75},{"$f":"'[2]MONE(M)CAPARD'!AV386","v":3},{"$f":"'[2]MONE(M)CAPARD'!AW386","v":3.5},{"$f":"'[2]MONE(M)CAPARD'!AX386","v":3},{"$f":"'[2]MONE(M)CAPARD'!AY386","v":"n.a."},null,null,{"$f":"+'Datos_Regional (M)'!CF379","v":3.8331539022443462},{"$f":"+'Datos_Regional (M)'!CG379","v":2.4372015796903623},{"$f":"+'Datos_Regional (M)'!CH379","v":4.5918980371282059},{"$f":"+'Datos_Regional (M)'!CI379","v":2.6684913090346152},{"$f":"+'Datos_Regional (M)'!CJ379","v":-0.34291859300399352},{"$f":"+'Datos_Regional (M)'!CK379","v":4.26385517408856},{"$f":"+'Datos_Regional (M)'!CL379","v":-1.2078558840359688},null,null,1053.38142365,467.46000000000004,980.8416666666667,731.12679580347788,492.2831741375,{"$f":"IF(EM191=\"\",\"\",+AVERAGE(EM180:EM191))","v":945.86666666666667},906.12103541583349,4670.9597269243104,5577.0807623401442,null,null,1248.1465723983333,961.58416666666653,1722.0916666666669,1091.3316618694514,567.21252891666666,1598.125,1372.8791890833336,7188.4915965177861,8561.3707856011188,null,null,-2517.5318695934734,-2984.2900232609732,null,null,{"$f":"'[2]EXT Comercio(M)'!C386","v":1278.8140123899998},{"$f":"'[2]EXT Comercio(M)'!D386","v":532.52},{"$f":"'[2]EXT Comercio(M)'!E386","v":1087.9000000000001},{"$f":"'[2]EXT Comercio(M)'!F386","v":907.57602994757667},{"$f":"'[2]EXT Comercio(M)'!G386","v":569.37199636000003},{"$f":"'[2]EXT Comercio(M)'!H386","v":1061.9000000000001},{"$f":"'[2]EXT Comercio(M)'!I386","v":877.75},{"$f":"'[2]EXT Comercio(M)'!K386","v":5438.0820386975756},{"$f":"'[2]EXT Comercio(M)'!L386","v":6315.8320386975756},null,null,{"$f":"'[2]EXT Comercio(M)'!AG386","v":1475.5994216800002},{"$f":"'[2]EXT Comercio(M)'!AH386","v":1139.7599999999993},{"$f":"'[2]EXT Comercio(M)'!AI386","v":2159.9},{"$f":"'[2]EXT Comercio(M)'!AJ386","v":1457.9711722014144},{"$f":"'[2]EXT Comercio(M)'!AK386","v":675.35092644999997},{"$f":"'[2]EXT Comercio(M)'!AL386","v":1955.2},{"$f":"'[2]EXT Comercio(M)'!AM386","v":1694.69},{"$f":"'[2]EXT Comercio(M)'!AO386","v":8863.7815203314058},{"$f":"'[2]EXT Comercio(M)'!AP386","v":10558.471520331404},null,null,{"$f":"'[2]EXT Comercio(M)'!$BS386","v":-3425.6994816338338},{"$f":"'[2]EXT Comercio(M)'!$BT386","v":-4242.6394816338343}]
[null,null,"Junio",{"$f":"'[2]REAL IPC(M)'!AD387","v":1.9080336324936071},{"$f":"'[2]REAL IPC(M)'!AE387","v":2.5874516893015422},{"$f":"'[2]REAL IPC(M)'!AF387","v":3.907220764876417},{"$f":"'[2]REAL IPC(M)'!AG387","v":4.6709753231492463},{"$f":"'[2]REAL IPC(M)'!AH387","v":3.9422249165742156},{"$f":"'[2]REAL IPC(M)'!AI387","v":9.319367673985937},{"$f":"'[2]REAL IPC(M)'!AJ387","v":1.5800761799955862},null,null,{"$f":"'[2]REAL IMAE(M)'!AG387","v":12.148081144550201},{"$f":"'[2]REAL IMAE(M)'!AH387","v":21.719034282211535},{"$f":"'[2]REAL IMAE(M)'!AI387","v":13.310278916109414},{"$f":"'[2]REAL IMAE(M)'!AJ387","v":11.694506651678427},{"$f":"'[2]REAL IMAE(M)'!AK387","v":7.6181051164223064},{"$f":"'[2]REAL IMAE(M)'!AL387","v":15.806750658370245},{"$f":"'[2]REAL IMAE(M)'!AM387","v":43.367165939947895},null,null,{"$f":"'[2]EXT ITCER(M)'!C387","v":88.770916423252871},{"$f":"'[2]EXT ITCER(M)'!D387","v":99.137755334520207},{"$f":"'[2]EXT ITCER(M)'!E387","v":53.51661506843859},{"$f":"'[2]EXT ITCER(M)'!F387","v":75.843069003783881},{"$f":"'[2]EXT ITCER(M)'!G387","v":110.8988888635556},{"$f":"'[2]EXT ITCER(M)'!H387","v":118.2636794755488},{"$f":"'[2]EXT ITCER(M)'!I387","v":98.14750106725262},null,null,{"$f":"'[2]EXT TC(M)'!J387","v":7.0143810725779669},{"$f":"'[2]EXT TC(M)'!K387","v":0},{"$f":"'[2]EXT TC(M)'!L387","v":0.49040411798859357},{"$f":"'[2]EXT TC(M)'!M387","v":-3.2732525190331949},{"$f":"'[2]EXT TC(M)'!N387","v":2.0543083325439309},{"$f":"'[2]EXT TC(M)'!O387","v":-1.6908959864769879},{"$f":"'[2]EXT TC(M)'!P387","v":0},null,null,{"$f":"'[2]EXT RIN(M)'!C387","v":7137.0566722599997},{"$f":"'[2]EXT RIN(M)'!D387","v":2604.3200000000002},{"$f":"'[2]EXT RIN(M)'!E387","v":18748.8},{"$f":"'[2]EXT RIN(M)'!F387","v":8645.3844918320228},{"$f":"'[2]EXT RIN(M)'!G387","v":3497.0349520029649},{"$f":"'[2]EXT RIN(M)'!H387","v":12611.563669947142},{"$f":"'[2]EXT RIN(M)'!I387","v":8901.2020722899997},null,null,{"$f":"'[2]EXT RIN(M)'!P387","v":63.907391286651659},{"$f":"'[2]EXT RIN(M)'!Q387","v":104.6684679970468},{"$f":"'[2]EXT RIN(M)'!R387","v":127.12134755954769},{"$f":"'[2]EXT RIN(M)'!S387","v":100.94608775854907},{"$f":"'[2]EXT RIN(M)'!T387","v":142.49489779101418},{"$f":"'[2]EXT RIN(M)'!U387","v":101.64351524372567},{"$f":"'[2]EXT RIN(M)'!V387","v":406.68217130576403},null,null,{"$f":"+'[2]MONE(M)CAPARD'!AE387","v":1.2677767605305326},{"$f":"'[2]MONE(M)CAPARD'!AF387","v":1.2989388943340174},{"$f":"'[2]MONE(M)CAPARD'!AG387","v":0.23365001328728599},{"$f":"'[2]MONE(M)CAPARD'!AH387","v":1.1168565815324065},{"$f":"'[2]MONE(M)CAPARD'!AI387","v":0.72651917207399019},{"$f":"'[2]MONE(M)CAPARD'!AJ387","v":-5.6284332821384604},{"$f":"'[2]MONE(M)CAPARD'!AK387","v":0.20665845892105622},null,null,{"$f":"'[2]MONE(M)CAPARD'!AL387","v":2.31915878},{"$f":"'[2]MONE(M)CAPARD'!AM387","v":3.92},{"$f":"'[2]MONE(M)CAPARD'!AN387","v":2.4900000000000002},{"$f":"'[2]MONE(M)CAPARD'!AO387","v":2.95},{"$f":"'[2]MONE(M)CAPARD'!AP387","v":3.1856099506047801},{"$f":"'[2]MONE(M)CAPARD'!AQ387","v":0.45739999999999997},{"$f":"'[2]MONE(M)CAPARD'!AR387","v":1.79},null,null,{"$f":"'[2]MONE(M)CAPARD'!J387","v":6.8012894277810974},{"$f":"'[2]MONE(M)CAPARD'!K387","v":3.6579018670465686},{"$f":"'[2]MONE(M)CAPARD'!L387","v":8.0194419346266432},{"$f":"'[2]MONE(M)CAPARD'!M387","v":10.699264664608465},{"$f":"'[2]MONE(M)CAPARD'!N387","v":7.2902360119165079},{"$f":"'[2]MONE(M)CAPARD'!O387","v":4.8053997321614493E-2},{"$f":"'[2]MONE(M)CAPARD'!P387","v":6.5869560082424972},null,null,{"$f":"'[2]MONE(M)CAPARD'!Q387","v":6.1583083199999997},{"$f":"'[2]MONE(M)CAPARD'!R387","v":6.34},{"$f":"'[2]MONE(M)CAPARD'!S387","v":5.89},{"$f":"'[2]MONE(M)CAPARD'!T387","v":7.57},{"$f":"'[2]MONE(M)CAPARD'!U387","v":8.9144126803582697},{"$f":"'[2]MONE(M)CAPARD'!V387","v":3.9887000000000001},{"$f":"'[2]MONE(M)CAPARD'!W387","v":8.2711111111111109},null,null,{"$f":"'[2]MONE(M)CAPARD'!AS387","v":0.75},{"$f":"'[2]MONE(M)CAPARD'!AT387","v":"n.a."},{"$f":"'[2]MONE(M)CAPARD'!AU387","v":1.75},{"$f":"'[2]MONE(M)CAPARD'!AV387","v":3},{"$f":"'[2]MONE(M)CAPARD'!AW387","v":3.5},{"$f":"'[2]MONE(M)CAPARD'!AX387","v":3},{"$f":"'[2]MONE(M)CAPARD'!AY387","v":"n.a."},null,null,{"$f":"+'Datos_Regional (M)'!CF380","v":3.0248727057298641},{"$f":"+'Datos_Regional (M)'!CG380","v":3.156997192837685},{"$f":"+'Datos_Regional (M)'!CH380","v":5.6017401168971803},{"$f":"+'Datos_Regional (M)'!CI380","v":2.9868325685531882},{"$f":"+'Datos_Regional (M)'!CJ380","v":1.3544150313482106},{"$f":"+'Datos_Regional (M)'!CK380","v":2.9145246616444354},{"$f":"+'Datos_Regional (M)'!CL380","v":-0.82322930129179461},null,null,1085.4324786958332,489.48083333333335,1011.9083333333333,757.09736241525843,510.18277037999997,{"$f":"IF(EM192=\"\",\"\",+AVERAGE(EM181:EM192))","v":965.875},940.44973733250015,4819.9767781577584,5760.4265154902596,null,null,1290.1331052441667,1005.3975,1793.6333333333332,1145.1220687393454,589.11102649333327,1670.5083333333334,1408.7011825833335,7493.905367143514,8902.6065497268446,null,null,-2673.9285889857542,-3142.1800342365873,null,null,{"$f":"'[2]EXT Comercio(M)'!C387","v":1311.7972841300002},{"$f":"'[2]EXT Comercio(M)'!D387","v":539},{"$f":"'[2]EXT Comercio(M)'!E387","v":1136.0999999999999},{"$f":"'[2]EXT Comercio(M)'!F387","v":903.61916688474025},{"$f":"'[2]EXT Comercio(M)'!G387","v":607.76685887000008},{"$f":"'[2]EXT Comercio(M)'!H387","v":1054.0999999999999},{"$f":"'[2]EXT Comercio(M)'!I387","v":1201.72},{"$f":"'[2]EXT Comercio(M)'!K387","v":5552.3833098847426},{"$f":"'[2]EXT Comercio(M)'!L387","v":6754.1033098847438},null,null,{"$f":"'[2]EXT Comercio(M)'!AG387","v":1662.5433836500004},{"$f":"'[2]EXT Comercio(M)'!AH387","v":1249.0900000000001},{"$f":"'[2]EXT Comercio(M)'!AI387","v":2154.8000000000002},{"$f":"'[2]EXT Comercio(M)'!AJ387","v":1444.1549010510967},{"$f":"'[2]EXT Comercio(M)'!AK387","v":722.49975165000001},{"$f":"'[2]EXT Comercio(M)'!AL387","v":2093.9},{"$f":"'[2]EXT Comercio(M)'!AM387","v":1636.15},{"$f":"'[2]EXT Comercio(M)'!AO387","v":9326.9880363511038},{"$f":"'[2]EXT Comercio(M)'!AP387","v":10963.138036351105},null,null,{"$f":"'[2]EXT Comercio(M)'!$BS387","v":-3774.6047264663575},{"$f":"'[2]EXT Comercio(M)'!$BT387","v":-4209.0347264663578}]
[null,null,"Julio",{"$f":"'[2]REAL IPC(M)'!AD388","v":1.439779728861988},{"$f":"'[2]REAL IPC(M)'!AE388","v":3.4325980884013325},{"$f":"'[2]REAL IPC(M)'!AF388","v":3.8152196329140144},{"$f":"'[2]REAL IPC(M)'!AG388","v":4.2590431738622998},{"$f":"'[2]REAL IPC(M)'!AH388","v":4.1162086857337572},{"$f":"'[2]REAL IPC(M)'!AI388","v":7.8760412420828194},{"$f":"'[2]REAL IPC(M)'!AJ388","v":2.3723976671893023},null,null,{"$f":"'[2]REAL IMAE(M)'!AG388","v":12.747545556977791},{"$f":"'[2]REAL IMAE(M)'!AH388","v":15.710625135977384},{"$f":"'[2]REAL IMAE(M)'!AI388","v":11.064592677640396},{"$f":"'[2]REAL IMAE(M)'!AJ388","v":11.340140995836826},{"$f":"'[2]REAL IMAE(M)'!AK388","v":7.9939660492999938},{"$f":"'[2]REAL IMAE(M)'!AL388","v":14.442134661687877},{"$f":"'[2]REAL IMAE(M)'!AM388","v":43.770905430187767},null,null,{"$f":"'[2]EXT ITCER(M)'!C388","v":89.572739164534767},{"$f":"'[2]EXT ITCER(M)'!D388","v":98.853575962506696},{"$f":"'[2]EXT ITCER(M)'!E388","v":53.62953345142644},{"$f":"'[2]EXT ITCER(M)'!F388","v":75.312850394498525},{"$f":"'[2]EXT ITCER(M)'!G388","v":111.1708777946958},{"$f":"'[2]EXT ITCER(M)'!H388","v":118.329465650364},{"$f":"'[2]EXT ITCER(M)'!I388","v":98.218950787883685},null,null,{"$f":"'[2]EXT TC(M)'!J388","v":6.3830961234917671},{"$f":"'[2]EXT TC(M)'!K388","v":0},{"$f":"'[2]EXT TC(M)'!L388","v":0.61397146432520111},{"$f":"'[2]EXT TC(M)'!M388","v":-3.7054812580090406},{"$f":"'[2]EXT TC(M)'!N388","v":1.705512940323187},{"$f":"'[2]EXT TC(M)'!O388","v":-2.2433768725555336},{"$f":"'[2]EXT TC(M)'!P388","v":0},null,null,{"$f":"'[2]EXT RIN(M)'!C388","v":7375.9128943599999},{"$f":"'[2]EXT RIN(M)'!D388","v":2877.28},{"$f":"'[2]EXT RIN(M)'!E388","v":19167.099999999999},{"$f":"'[2]EXT RIN(M)'!F388","v":8632.7698387484488},{"$f":"'[2]EXT RIN(M)'!G388","v":3530.8946672313718},{"$f":"'[2]EXT RIN(M)'!H388","v":12143.783081088359},{"$f":"'[2]EXT RIN(M)'!I388","v":8210.2170179200002},null,null,{"$f":"'[2]EXT RIN(M)'!P388","v":64.112711672115665},{"$f":"'[2]EXT RIN(M)'!Q388","v":109.99424278034718},{"$f":"'[2]EXT RIN(M)'!R388","v":125.92439838530409},{"$f":"'[2]EXT RIN(M)'!S388","v":101.36798858458209},{"$f":"'[2]EXT RIN(M)'!T388","v":140.64441263530978},{"$f":"'[2]EXT RIN(M)'!U388","v":98.040795803997042},{"$f":"'[2]EXT RIN(M)'!V388","v":369.84180995235107},null,null,{"$f":"+'[2]MONE(M)CAPARD'!AE388","v":1.7352366850981917},{"$f":"'[2]MONE(M)CAPARD'!AF388","v":0.43255406889836012},{"$f":"'[2]MONE(M)CAPARD'!AG388","v":0.26468216130312733},{"$f":"'[2]MONE(M)CAPARD'!AH388","v":1.2478119753777379},{"$f":"'[2]MONE(M)CAPARD'!AI388","v":0.5055916917201444},{"$f":"'[2]MONE(M)CAPARD'!AJ388","v":-4.7059951251737306},{"$f":"'[2]MONE(M)CAPARD'!AK388","v":-0.60797410373517402},null,null,{"$f":"'[2]MONE(M)CAPARD'!AL388","v":2.2470648600000001},{"$f":"'[2]MONE(M)CAPARD'!AM388","v":3.88},{"$f":"'[2]MONE(M)CAPARD'!AN388","v":2.4500000000000002},{"$f":"'[2]MONE(M)CAPARD'!AO388","v":2.88},{"$f":"'[2]MONE(M)CAPARD'!AP388","v":3.40872484261121},{"$f":"'[2]MONE(M)CAPARD'!AQ388","v":0.46839999999999998},{"$f":"'[2]MONE(M)CAPARD'!AR388","v":1.75},null,null,{"$f":"'[2]MONE(M)CAPARD'!J388","v":8.3191151476218668},{"$f":"'[2]MONE(M)CAPARD'!K388","v":2.7529057223962048},{"$f":"'[2]MONE(M)CAPARD'!L388","v":8.0188438617401534},{"$f":"'[2]MONE(M)CAPARD'!M388","v":11.251740346950207},{"$f":"'[2]MONE(M)CAPARD'!N388","v":6.8815912485649111},{"$f":"'[2]MONE(M)CAPARD'!O388","v":1.3329732360963094},{"$f":"'[2]MONE(M)CAPARD'!P388","v":5.7609301600844489},null,null,{"$f":"'[2]MONE(M)CAPARD'!Q388","v":5.3915698399999998},{"$f":"'[2]MONE(M)CAPARD'!R388","v":6.28},{"$f":"'[2]MONE(M)CAPARD'!S388","v":5.8},{"$f":"'[2]MONE(M)CAPARD'!T388","v":7.56},{"$f":"'[2]MONE(M)CAPARD'!U388","v":9.0194777452240604},{"$f":"'[2]MONE(M)CAPARD'!V388","v":3.3791000000000002},{"$f":"'[2]MONE(M)CAPARD'!W388","v":8.27},null,null,{"$f":"'[2]MONE(M)CAPARD'!AS388","v":0.75},{"$f":"'[2]MONE(M)CAPARD'!AT388","v":"n.a."},{"$f":"'[2]MONE(M)CAPARD'!AU388","v":1.75},{"$f":"'[2]MONE(M)CAPARD'!AV388","v":3},{"$f":"'[2]MONE(M)CAPARD'!AW388","v":3.5},{"$f":"'[2]MONE(M)CAPARD'!AX388","v":3},{"$f":"'[2]MONE(M)CAPARD'!AY388","v":"n.a."},null,null,{"$f":"+'Datos_Regional (M)'!CF381","v":2.6630696477096594},{"$f":"+'Datos_Regional (M)'!CG381","v":3.5738390128527309},{"$f":"+'Datos_Regional (M)'!CH381","v":7.2892172302613467},{"$f":"+'Datos_Regional (M)'!CI381","v":3.9788277202465139},{"$f":"+'Datos_Regional (M)'!CJ381","v":2.1766163955549089},{"$f":"+'Datos_Regional (M)'!CK381","v":6.3884330421661639},{"$f":"+'Datos_Regional (M)'!CL381","v":-1.1325675683203751},null,null,1111.3048468383333,501.09083333333336,1035.825,777.36434378850379,522.09468886583318,{"$f":"IF(EM193=\"\",\"\",+AVERAGE(EM182:EM193))","v":979.74166666666667},969.14519474916654,4927.4213794926709,5896.5665742418378,null,null,1319.3102789608333,1043.3408333333334,1864.2833333333335,1190.0911700847871,607.80947622249994,1739.7583333333334,1458.3528499166669,7764.5934252681209,9222.9462751847841,null,null,-2837.1720457754495,-3326.3797009429495,null,null,{"$f":"'[2]EXT Comercio(M)'!C388","v":1236.2408835599999},{"$f":"'[2]EXT Comercio(M)'!D388","v":582.27},{"$f":"'[2]EXT Comercio(M)'!E388","v":1196.5},{"$f":"'[2]EXT Comercio(M)'!F388","v":923.29085650057652},{"$f":"'[2]EXT Comercio(M)'!G388","v":621.60996507000004},{"$f":"'[2]EXT Comercio(M)'!H388","v":1056.3},{"$f":"'[2]EXT Comercio(M)'!I388","v":1085.0500000000002},{"$f":"'[2]EXT Comercio(M)'!K388","v":5616.2117051305759},{"$f":"'[2]EXT Comercio(M)'!L388","v":6701.2617051305715},null,null,{"$f":"'[2]EXT Comercio(M)'!AG388","v":1457.0581053399997},{"$f":"'[2]EXT Comercio(M)'!AH388","v":1314.0199999999995},{"$f":"'[2]EXT Comercio(M)'!AI388","v":2289.4},{"$f":"'[2]EXT Comercio(M)'!AJ388","v":1408.4978559458827},{"$f":"'[2]EXT Comercio(M)'!AK388","v":739.94559017999995},{"$f":"'[2]EXT Comercio(M)'!AL388","v":2122.5},{"$f":"'[2]EXT Comercio(M)'!AM388","v":1692.28},{"$f":"'[2]EXT Comercio(M)'!AO388","v":9331.421551465879},{"$f":"'[2]EXT Comercio(M)'!AP388","v":11023.701551465871},null,null,{"$f":"'[2]EXT Comercio(M)'!$BS388","v":-3715.2098463353032},{"$f":"'[2]EXT Comercio(M)'!$BT388","v":-4322.4398463353027}]
[null,null,"Agosto",{"$f":"'[2]REAL IPC(M)'!AD389","v":1.7246570007465145},{"$f":"'[2]REAL IPC(M)'!AE389","v":4.2967857990473171},{"$f":"'[2]REAL IPC(M)'!AF389","v":3.6152002738788096},{"$f":"'[2]REAL IPC(M)'!AG389","v":4.4845661036692004},{"$f":"'[2]REAL IPC(M)'!AH389","v":4.9807367088258454},{"$f":"'[2]REAL IPC(M)'!AI389","v":7.8970977155353586},{"$f":"'[2]REAL IPC(M)'!AJ389","v":2.3927172083280328},null,null,{"$f":"'[2]REAL IMAE(M)'!AG389","v":12.495252209984011},{"$f":"'[2]REAL IMAE(M)'!AH389","v":10.806456309219296},{"$f":"'[2]REAL IMAE(M)'!AI389","v":8.4561056347051942},{"$f":"'[2]REAL IMAE(M)'!AJ389","v":11.12600717218152},{"$f":"'[2]REAL IMAE(M)'!AK389","v":8.2712978544860754},{"$f":"'[2]REAL IMAE(M)'!AL389","v":12.945575984770441},{"$f":"'[2]REAL IMAE(M)'!AM389","v":43.987736601618096},null,null,{"$f":"'[2]EXT ITCER(M)'!C389","v":89.919983128906949},{"$f":"'[2]EXT ITCER(M)'!D389","v":99.026099565569751},{"$f":"'[2]EXT ITCER(M)'!E389","v":53.692137207396001},{"$f":"'[2]EXT ITCER(M)'!F389","v":75.309410164978289},{"$f":"'[2]EXT ITCER(M)'!G389","v":111.579380819332},{"$f":"'[2]EXT ITCER(M)'!H389","v":117.803967190367},{"$f":"'[2]EXT ITCER(M)'!I389","v":98.582705964654622},null,null,{"$f":"'[2]EXT TC(M)'!J389","v":4.7667069061325753},{"$f":"'[2]EXT TC(M)'!K389","v":0},{"$f":"'[2]EXT TC(M)'!L389","v":0.40538589694067578},{"$f":"'[2]EXT TC(M)'!M389","v":-3.1788916055419758},{"$f":"'[2]EXT TC(M)'!N389","v":1.5902324863605193},{"$f":"'[2]EXT TC(M)'!O389","v":-2.4464679836045256},{"$f":"'[2]EXT TC(M)'!P389","v":0},null,null,{"$f":"'[2]EXT RIN(M)'!C389","v":7564.3115012799999},{"$f":"'[2]EXT RIN(M)'!D389","v":3228},{"$f":"'[2]EXT RIN(M)'!E389","v":19810.400000000001},{"$f":"'[2]EXT RIN(M)'!F389","v":8934.1514730713388},{"$f":"'[2]EXT RIN(M)'!G389","v":3949.9448551209839},{"$f":"'[2]EXT RIN(M)'!H389","v":13060.291905139489},{"$f":"'[2]EXT RIN(M)'!I389","v":7918.9460666800005},null,null,{"$f":"'[2]EXT RIN(M)'!P389","v":69.043835619868418},{"$f":"'[2]EXT RIN(M)'!Q389","v":113.22442322363399},{"$f":"'[2]EXT RIN(M)'!R389","v":131.34465842737481},{"$f":"'[2]EXT RIN(M)'!S389","v":106.28451092979756},{"$f":"'[2]EXT RIN(M)'!T389","v":154.21186668069916},{"$f":"'[2]EXT RIN(M)'!U389","v":102.43363304680986},{"$f":"'[2]EXT RIN(M)'!V389","v":357.25171023697141},null,null,{"$f":"+'[2]MONE(M)CAPARD'!AE389","v":1.2537206188310139},{"$f":"'[2]MONE(M)CAPARD'!AF389","v":-0.31332298166594302},{"$f":"'[2]MONE(M)CAPARD'!AG389","v":0.43893147426154694},{"$f":"'[2]MONE(M)CAPARD'!AH389","v":0.80914715719062591},{"$f":"'[2]MONE(M)CAPARD'!AI389","v":0.60606801849400604},{"$f":"'[2]MONE(M)CAPARD'!AJ389","v":-4.3043768682080676},{"$f":"'[2]MONE(M)CAPARD'!AK389","v":-0.69606240342068448},null,null,{"$f":"'[2]MONE(M)CAPARD'!AL389","v":2.24950758},{"$f":"'[2]MONE(M)CAPARD'!AM389","v":3.97},{"$f":"'[2]MONE(M)CAPARD'!AN389","v":2.4500000000000002},{"$f":"'[2]MONE(M)CAPARD'!AO389","v":2.81},{"$f":"'[2]MONE(M)CAPARD'!AP389","v":3.4856582043880899},{"$f":"'[2]MONE(M)CAPARD'!AQ389","v":0.62439999999999996},{"$f":"'[2]MONE(M)CAPARD'!AR389","v":1.68},null,null,{"$f":"'[2]MONE(M)CAPARD'!J389","v":8.0388237919479799},{"$f":"'[2]MONE(M)CAPARD'!K389","v":1.7481020023623173},{"$f":"'[2]MONE(M)CAPARD'!L389","v":8.2273640388554821},{"$f":"'[2]MONE(M)CAPARD'!M389","v":10.925473801560747},{"$f":"'[2]MONE(M)CAPARD'!N389","v":5.0661040629554908},{"$f":"'[2]MONE(M)CAPARD'!O389","v":1.87716104264871},{"$f":"'[2]MONE(M)CAPARD'!P389","v":5.735601620258457},null,null,{"$f":"'[2]MONE(M)CAPARD'!Q389","v":6.3469527799999996},{"$f":"'[2]MONE(M)CAPARD'!R389","v":6.12},{"$f":"'[2]MONE(M)CAPARD'!S389","v":5.76},{"$f":"'[2]MONE(M)CAPARD'!T389","v":7.49},{"$f":"'[2]MONE(M)CAPARD'!U389","v":9.7023939731559494},{"$f":"'[2]MONE(M)CAPARD'!V389","v":3.1495000000000002},{"$f":"'[2]MONE(M)CAPARD'!W389","v":8.2655555555555562},null,null,{"$f":"'[2]MONE(M)CAPARD'!AS389","v":0.75},{"$f":"'[2]MONE(M)CAPARD'!AT389","v":"n.a."},{"$f":"'[2]MONE(M)CAPARD'!AU389","v":1.75},{"$f":"'[2]MONE(M)CAPARD'!AV389","v":3},{"$f":"'[2]MONE(M)CAPARD'!AW389","v":3.5},{"$f":"'[2]MONE(M)CAPARD'!AX389","v":3},{"$f":"'[2]MONE(M)CAPARD'!AY389","v":"n.a."},null,null,{"$f":"+'Datos_Regional (M)'!CF382","v":2.3602009564714255},{"$f":"+'Datos_Regional (M)'!CG382","v":4.7042370264082312},{"$f":"+'Datos_Regional (M)'!CH382","v":7.6088716210261698},{"$f":"+'Datos_Regional (M)'!CI382","v":5.4312788572117299},{"$f":"+'Datos_Regional (M)'!CJ382","v":2.5931773188287099},{"$f":"+'Datos_Regional (M)'!CK382","v":7.5575139747398046},{"$f":"+'Datos_Regional (M)'!CL382","v":2.2824369501600161},null,null,1130.6532064916667,507.35583333333335,1055.425,794.14849305244752,531.75008348416657,{"$f":"IF(EM194=\"\",\"\",+AVERAGE(EM183:EM194))","v":995.80833333333328},987.25427358249999,5015.1409496949482,6002.3952232774473,null,null,{"$f":"IF(ES194=\"\",\"\",+AVERAGE(ES183:ES194))","v":1352.7384668541667},1077.7666666666667,1937.0833333333337,1238.1514572307208,630.81205004916671,{"$f":"IF(EX194=\"\",\"\",+AVERAGE(EX183:EX194))","v":1787.5583333333336},{"$f":"IF(EY194=\"\",\"\",+AVERAGE(EY183:EY194))","v":1498.5160700000004},8024.1103074673883,9522.626377467388,null,null,-3008.9693577724393,-3520.2311541899385,null,null,{"$f":"'[2]EXT Comercio(M)'!C389","v":1177.7714272499998},{"$f":"'[2]EXT Comercio(M)'!D389","v":498.73999999999978},{"$f":"'[2]EXT Comercio(M)'!E389","v":1133.5},{"$f":"'[2]EXT Comercio(M)'!F389","v":882.8189242663384},{"$f":"'[2]EXT Comercio(M)'!G389","v":578.34183286999996},{"$f":"'[2]EXT Comercio(M)'!H389","v":1085.9000000000001},{"$f":"'[2]EXT Comercio(M)'!I389","v":1165.1399999999999},{"$f":"'[2]EXT Comercio(M)'!K389","v":5357.072184386343},{"$f":"'[2]EXT Comercio(M)'!L389","v":6522.2121843863424},null,null,{"$f":"'[2]EXT Comercio(M)'!AG389","v":1534.6793779100003},{"$f":"'[2]EXT Comercio(M)'!AH389","v":1166.8400000000001},{"$f":"'[2]EXT Comercio(M)'!AI389","v":2317.4},{"$f":"'[2]EXT Comercio(M)'!AJ389","v":1503.6627714655824},{"$f":"'[2]EXT Comercio(M)'!AK389","v":753.97321117999991},{"$f":"'[2]EXT Comercio(M)'!AL389","v":1914.6999999999998},{"$f":"'[2]EXT Comercio(M)'!AM389","v":1811.4},{"$f":"'[2]EXT Comercio(M)'!AO389","v":9191.2553605555731},{"$f":"'[2]EXT Comercio(M)'!AP389","v":11002.655360555582},null,null,{"$f":"'[2]EXT Comercio(M)'!$BS389","v":-3834.1831761692411},{"$f":"'[2]EXT Comercio(M)'!$BT389","v":-4480.4431761692431}]
[null,null,"Setiembre",{"$f":"'[2]REAL IPC(M)'!AD390","v":2.0863576192586506},{"$f":"'[2]REAL IPC(M)'!AE390","v":4.9697981104596254},{"$f":"'[2]REAL IPC(M)'!AF390","v":3.6710418375717855},{"$f":"'[2]REAL IPC(M)'!AG390","v":4.6153846153846088},{"$f":"'[2]REAL IPC(M)'!AH390","v":5.8583449696002114},{"$f":"'[2]REAL IPC(M)'!AI390","v":7.738118445163547},{"$f":"'[2]REAL IPC(M)'!AJ390","v":2.4859534590791688},null,null,{"$f":"'[2]REAL IMAE(M)'!AG390","v":11.559314576907569},{"$f":"'[2]REAL IMAE(M)'!AH390","v":7.5388071305964619},{"$f":"'[2]REAL IMAE(M)'!AI390","v":6.4110923065028951},{"$f":"'[2]REAL IMAE(M)'!AJ390","v":7.4825388058465609},{"$f":"'[2]REAL IMAE(M)'!AK390","v":8.3316207373555962},{"$f":"'[2]REAL IMAE(M)'!AL390","v":11.625924812404161},{"$f":"'[2]REAL IMAE(M)'!AM390","v":21.059717932212216},null,null,{"$f":"'[2]EXT ITCER(M)'!C390","v":90.343918334075752},{"$f":"'[2]EXT ITCER(M)'!D390","v":99.04168378975875},{"$f":"'[2]EXT ITCER(M)'!E390","v":53.761123757041943},{"$f":"'[2]EXT ITCER(M)'!F390","v":76.207635475660965},{"$f":"'[2]EXT ITCER(M)'!G390","v":111.6162264833094},{"$f":"'[2]EXT ITCER(M)'!H390","v":116.95588861429231},{"$f":"'[2]EXT ITCER(M)'!I390","v":98.851977840551911},null,null,{"$f":"'[2]EXT TC(M)'!J390","v":4.474515752507755},{"$f":"'[2]EXT TC(M)'!K390","v":0},{"$f":"'[2]EXT TC(M)'!L390","v":-0.37712114500179311},{"$f":"'[2]EXT TC(M)'!M390","v":-1.77403613156684},{"$f":"'[2]EXT TC(M)'!N390","v":1.7614858769990274},{"$f":"'[2]EXT TC(M)'!O390","v":-3.1004151255146239},{"$f":"'[2]EXT TC(M)'!P390","v":0},null,null,{"$f":"'[2]EXT RIN(M)'!C390","v":7568.2822246100004},{"$f":"'[2]EXT RIN(M)'!D390","v":3292.46},{"$f":"'[2]EXT RIN(M)'!E390","v":19827.2},{"$f":"'[2]EXT RIN(M)'!F390","v":8972.910945499576},{"$f":"'[2]EXT RIN(M)'!G390","v":3955.3646186211736},{"$f":"'[2]EXT RIN(M)'!H390","v":12932.304087663511},{"$f":"'[2]EXT RIN(M)'!I390","v":7814.9459386500002},null,null,{"$f":"'[2]EXT RIN(M)'!P390","v":68.486626647419527},{"$f":"'[2]EXT RIN(M)'!Q390","v":111.42980818271934},{"$f":"'[2]EXT RIN(M)'!R390","v":129.76907734513662},{"$f":"'[2]EXT RIN(M)'!S390","v":110.15286783874679},{"$f":"'[2]EXT RIN(M)'!T390","v":153.18566838064916},{"$f":"'[2]EXT RIN(M)'!U390","v":97.948468855489551},{"$f":"'[2]EXT RIN(M)'!V390","v":354.76527424274082},null,null,{"$f":"+'[2]MONE(M)CAPARD'!AE390","v":0.7970138221366565},{"$f":"'[2]MONE(M)CAPARD'!AF390","v":-0.80003784476741269},{"$f":"'[2]MONE(M)CAPARD'!AG390","v":0.35589317507417884},{"$f":"'[2]MONE(M)CAPARD'!AH390","v":0.46323529411765313},{"$f":"'[2]MONE(M)CAPARD'!AI390","v":-3.6246428650714181E-2},{"$f":"'[2]MONE(M)CAPARD'!AJ390","v":-4.4197156158682711},{"$f":"'[2]MONE(M)CAPARD'!AK390","v":-0.82543356482207408},null,null,{"$f":"'[2]MONE(M)CAPARD'!AL390","v":2.15709091},{"$f":"'[2]MONE(M)CAPARD'!AM390","v":4.13},{"$f":"'[2]MONE(M)CAPARD'!AN390","v":2.5},{"$f":"'[2]MONE(M)CAPARD'!AO390","v":2.79},{"$f":"'[2]MONE(M)CAPARD'!AP390","v":3.3557399832027599},{"$f":"'[2]MONE(M)CAPARD'!AQ390","v":0.7288},{"$f":"'[2]MONE(M)CAPARD'!AR390","v":1.64},null,null,{"$f":"'[2]MONE(M)CAPARD'!J390","v":7.3406943155817226},{"$f":"'[2]MONE(M)CAPARD'!K390","v":1.3148561913856298},{"$f":"'[2]MONE(M)CAPARD'!L390","v":8.1883600395647829},{"$f":"'[2]MONE(M)CAPARD'!M390","v":10.662500000000007},{"$f":"'[2]MONE(M)CAPARD'!N390","v":5.3500167153566629},{"$f":"'[2]MONE(M)CAPARD'!O390","v":1.4788466494775481},{"$f":"'[2]MONE(M)CAPARD'!P390","v":5.6339882159815264},null,null,{"$f":"'[2]MONE(M)CAPARD'!Q390","v":6.5539841699999997},{"$f":"'[2]MONE(M)CAPARD'!R390","v":6.35},{"$f":"'[2]MONE(M)CAPARD'!S390","v":5.73},{"$f":"'[2]MONE(M)CAPARD'!T390","v":7.44},{"$f":"'[2]MONE(M)CAPARD'!U390","v":9.9463712344856106},{"$f":"'[2]MONE(M)CAPARD'!V390","v":2.9758},{"$f":"'[2]MONE(M)CAPARD'!W390","v":8.26},null,null,{"$f":"'[2]MONE(M)CAPARD'!AS390","v":0.75},{"$f":"'[2]MONE(M)CAPARD'!AT390","v":"n.a."},{"$f":"'[2]MONE(M)CAPARD'!AU390","v":1.75},{"$f":"'[2]MONE(M)CAPARD'!AV390","v":3},{"$f":"'[2]MONE(M)CAPARD'!AW390","v":3.5},{"$f":"'[2]MONE(M)CAPARD'!AX390","v":3},{"$f":"'[2]MONE(M)CAPARD'!AY390","v":"n.a."},null,null,{"$f":"+'Datos_Regional (M)'!CF383","v":1.638946169069122},{"$f":"+'Datos_Regional (M)'!CG383","v":4.888693854727566},{"$f":"+'Datos_Regional (M)'!CH383","v":8.2039761762431098},{"$f":"+'Datos_Regional (M)'!CI383","v":7.0699736052265205},{"$f":"+'Datos_Regional (M)'!CJ383","v":2.2271248088619799},{"$f":"+'Datos_Regional (M)'!CK383","v":7.875555053803196},{"$f":"+'Datos_Regional (M)'!CL383","v":2.755604756630059},null,null,1151.3148617033332,514.12083333333339,1079.9416666666668,804.87972861120772,537.84346998666661,1007.9166666666665,1009.9812810824998,5096.0172269678742,6105.9985080503748,null,null,1383.4547821791666,1112.9949999999999,2002.1750000000002,1283.6738649622623,647.55790777083325,1839.4166666666667,1564.6596244166667,8269.273221578931,9833.9328459955959,null,null,-3173.2559946110546,-3727.9343379452207,null,null,{"$f":"'[2]EXT Comercio(M)'!C390","v":1227.9108629100001},{"$f":"'[2]EXT Comercio(M)'!D390","v":550.44000000000051},{"$f":"'[2]EXT Comercio(M)'!E390","v":1188.4000000000001},{"$f":"'[2]EXT Comercio(M)'!F390","v":870.21681259947047},{"$f":"'[2]EXT Comercio(M)'!G390","v":533.54869041000006},{"$f":"'[2]EXT Comercio(M)'!H390","v":1071},{"$f":"'[2]EXT Comercio(M)'!I390","v":1215.92},{"$f":"'[2]EXT Comercio(M)'!K390","v":5441.5163659194586},{"$f":"'[2]EXT Comercio(M)'!L390","v":6657.4363659194642},null,null,{"$f":"'[2]EXT Comercio(M)'!AG390","v":1511.2865537000007},{"$f":"'[2]EXT Comercio(M)'!AH390","v":1259.4599999999991},{"$f":"'[2]EXT Comercio(M)'!AI390","v":2276.1},{"$f":"'[2]EXT Comercio(M)'!AJ390","v":1503.4719800458795},{"$f":"'[2]EXT Comercio(M)'!AK390","v":713.84759030999999},{"$f":"'[2]EXT Comercio(M)'!AL390","v":2058.2999999999997},{"$f":"'[2]EXT Comercio(M)'!AM390","v":1936.35},{"$f":"'[2]EXT Comercio(M)'!AO390","v":9322.4661240558926},{"$f":"'[2]EXT Comercio(M)'!AP390","v":11258.816124055898},null,null,{"$f":"'[2]EXT Comercio(M)'!$BS390","v":-3880.9497581364085},{"$f":"'[2]EXT Comercio(M)'!$BT390","v":-4601.3797581364051}]
[null,null,"Octubre",{"$f":"'[2]REAL IPC(M)'!AD391","v":2.5039199664197187},{"$f":"'[2]REAL IPC(M)'!AE391","v":5.4946149327683402},{"$f":"'[2]REAL IPC(M)'!AF391","v":2.9560982209294293},{"$f":"'[2]REAL IPC(M)'!AG391","v":4.6504910456383666},{"$f":"'[2]REAL IPC(M)'!AH391","v":6.4081125497371962},{"$f":"'[2]REAL IPC(M)'!AI391","v":7.7152484604361167},{"$f":"'[2]REAL IPC(M)'!AJ391","v":2.9430143194188476},null,null,{"$f":"'[2]REAL IMAE(M)'!AG391","v":10.603700415712918},{"$f":"'[2]REAL IMAE(M)'!AH391","v":6.1372899177053606},{"$f":"'[2]REAL IMAE(M)'!AI391","v":5.3200513785323249},{"$f":"'[2]REAL IMAE(M)'!AJ391","v":7.4791630024793694},{"$f":"'[2]REAL IMAE(M)'!AK391","v":8.0657232861509254},{"$f":"'[2]REAL IMAE(M)'!AL391","v":10.597925491790505},{"$f":"'[2]REAL IMAE(M)'!AM391","v":20.944637338950304},null,null,{"$f":"'[2]EXT ITCER(M)'!C391","v":91.447344362611489},{"$f":"'[2]EXT ITCER(M)'!D391","v":99.225136583092834},{"$f":"'[2]EXT ITCER(M)'!E391","v":54.058158913382663},{"$f":"'[2]EXT ITCER(M)'!F391","v":76.622597118275337},{"$f":"'[2]EXT ITCER(M)'!G391","v":112.0907063359757},{"$f":"'[2]EXT ITCER(M)'!H391","v":116.7161855046979},{"$f":"'[2]EXT ITCER(M)'!I391","v":99.452302218099391},null,null,{"$f":"'[2]EXT TC(M)'!J391","v":4.3899465461409903},{"$f":"'[2]EXT TC(M)'!K391","v":0},{"$f":"'[2]EXT TC(M)'!L391","v":-0.6457720221267812},{"$f":"'[2]EXT TC(M)'!M391","v":-1.2720760353763012},{"$f":"'[2]EXT TC(M)'!N391","v":1.9586060576953113},{"$f":"'[2]EXT TC(M)'!O391","v":-3.5436094349972564},{"$f":"'[2]EXT TC(M)'!P391","v":0},null,null,{"$f":"'[2]EXT RIN(M)'!C391","v":7313.0874763299998},{"$f":"'[2]EXT RIN(M)'!D391","v":3365},{"$f":"'[2]EXT RIN(M)'!E391","v":20663.2},{"$f":"'[2]EXT RIN(M)'!F391","v":8823.3398930864387},{"$f":"'[2]EXT RIN(M)'!G391","v":3937.097373981022},{"$f":"'[2]EXT RIN(M)'!H391","v":12504.833016093617},{"$f":"'[2]EXT RIN(M)'!I391","v":7414.9898952800004},null,null,{"$f":"'[2]EXT RIN(M)'!P391","v":68.712529034070997},{"$f":"'[2]EXT RIN(M)'!Q391","v":110.35931221059376},{"$f":"'[2]EXT RIN(M)'!R391","v":136.75832190865319},{"$f":"'[2]EXT RIN(M)'!S391","v":108.86783509209434},{"$f":"'[2]EXT RIN(M)'!T391","v":151.54798447357751},{"$f":"'[2]EXT RIN(M)'!U391","v":96.098052986928479},{"$f":"'[2]EXT RIN(M)'!V391","v":324.32043509593365},null,null,{"$f":"+'[2]MONE(M)CAPARD'!AE391","v":0.28884752278476467},{"$f":"'[2]MONE(M)CAPARD'!AF391","v":-0.9428110936299523},{"$f":"'[2]MONE(M)CAPARD'!AG391","v":1.0430676741130258},{"$f":"'[2]MONE(M)CAPARD'!AH391","v":0.2384211979022843},{"$f":"'[2]MONE(M)CAPARD'!AI391","v":-1.3845619975448726},{"$f":"'[2]MONE(M)CAPARD'!AJ391","v":-4.7534109920535066},{"$f":"'[2]MONE(M)CAPARD'!AK391","v":-1.2074780670031042},null,null,{"$f":"'[2]MONE(M)CAPARD'!AL391","v":2.3495268500000002},{"$f":"'[2]MONE(M)CAPARD'!AM391","v":4.5},{"$f":"'[2]MONE(M)CAPARD'!AN391","v":2.48},{"$f":"'[2]MONE(M)CAPARD'!AO391","v":2.73},{"$f":"'[2]MONE(M)CAPARD'!AP391","v":3.4321593373075401},{"$f":"'[2]MONE(M)CAPARD'!AQ391","v":0.45040000000000002},{"$f":"'[2]MONE(M)CAPARD'!AR391","v":1.7},null,null,{"$f":"'[2]MONE(M)CAPARD'!J391","v":6.3366808856755483},{"$f":"'[2]MONE(M)CAPARD'!K391","v":0.73499966583679344},{"$f":"'[2]MONE(M)CAPARD'!L391","v":8.9104986859395723},{"$f":"'[2]MONE(M)CAPARD'!M391","v":10.405597571073686},{"$f":"'[2]MONE(M)CAPARD'!N391","v":5.0145569259202221},{"$f":"'[2]MONE(M)CAPARD'!O391","v":1.8359067707022365},{"$f":"'[2]MONE(M)CAPARD'!P391","v":5.1498687502737654},null,null,{"$f":"'[2]MONE(M)CAPARD'!Q391","v":5.5061810900000001},{"$f":"'[2]MONE(M)CAPARD'!R391","v":6.27},{"$f":"'[2]MONE(M)CAPARD'!S391","v":5.69},{"$f":"'[2]MONE(M)CAPARD'!T391","v":7.45},{"$f":"'[2]MONE(M)CAPARD'!U391","v":11.1133956378064},{"$f":"'[2]MONE(M)CAPARD'!V391","v":3.0238999999999998},{"$f":"'[2]MONE(M)CAPARD'!W391","v":8.2444444444444471},null,null,{"$f":"'[2]MONE(M)CAPARD'!AS391","v":0.75},{"$f":"'[2]MONE(M)CAPARD'!AT391","v":"n.a."},{"$f":"'[2]MONE(M)CAPARD'!AU391","v":1.75},{"$f":"'[2]MONE(M)CAPARD'!AV391","v":3},{"$f":"'[2]MONE(M)CAPARD'!AW391","v":3.5},{"$f":"'[2]MONE(M)CAPARD'!AX391","v":3},{"$f":"'[2]MONE(M)CAPARD'!AY391","v":"n.a."},null,null,{"$f":"+'Datos_Regional (M)'!CF384","v":2.5302202943356278},{"$f":"+'Datos_Regional (M)'!CG384","v":5.9131467190817188},{"$f":"+'Datos_Regional (M)'!CH384","v":8.5821435147567904},{"$f":"+'Datos_Regional (M)'!CI384","v":9.3167303612013086},{"$f":"+'Datos_Regional (M)'!CJ384","v":3.3609641265409218},{"$f":"+'Datos_Regional (M)'!CK384","v":7.676879108269663},{"$f":"+'Datos_Regional (M)'!CL384","v":2.6573105539406061},null,null,1172.6200893499999,519.06166666666661,1097.1666666666667,808.21873905473785,544.93144172916664,1014.8916666666665,1030.4061870833334,5156.8902701339039,6187.2964572172377,null,null,1429.7858633333333,1163.0766666666666,2071.9500000000003,1319.6504943062369,664.87978586583324,1901.7583333333334,1616.0726890833332,8551.1011435054043,10167.173832588736,null,null,-3394.210873371499,-3979.8773753714981,null,null,{"$f":"'[2]EXT Comercio(M)'!C391","v":1301.6232273700007},{"$f":"'[2]EXT Comercio(M)'!D391","v":552.22999999999956},{"$f":"'[2]EXT Comercio(M)'!E391","v":1119.5999999999999},{"$f":"'[2]EXT Comercio(M)'!F391","v":812.73084309283399},{"$f":"'[2]EXT Comercio(M)'!G391","v":581.14651329000003},{"$f":"'[2]EXT Comercio(M)'!H391","v":1053.8},{"$f":"'[2]EXT Comercio(M)'!I391","v":1250.6200000000001},{"$f":"'[2]EXT Comercio(M)'!K391","v":5421.1305837528344},{"$f":"'[2]EXT Comercio(M)'!L391","v":6671.7505837528297},null,null,{"$f":"'[2]EXT Comercio(M)'!AG391","v":1754.9066187799999},{"$f":"'[2]EXT Comercio(M)'!AH391","v":1482.8799999999992},{"$f":"'[2]EXT Comercio(M)'!AI391","v":2508.1999999999998},{"$f":"'[2]EXT Comercio(M)'!AJ391","v":1532.555838020528},{"$f":"'[2]EXT Comercio(M)'!AK391","v":751.58126385000003},{"$f":"'[2]EXT Comercio(M)'!AL391","v":2339.3000000000002},{"$f":"'[2]EXT Comercio(M)'!AM391","v":1903.47},{"$f":"'[2]EXT Comercio(M)'!AO391","v":10369.423720650506},{"$f":"'[2]EXT Comercio(M)'!AP391","v":12272.893720650492},null,null,{"$f":"'[2]EXT Comercio(M)'!$BS391","v":-4948.2931368976933},{"$f":"'[2]EXT Comercio(M)'!$BT391","v":-5601.1431368976919}]
[null,null,"Noviembre",{"$f":"'[2]REAL IPC(M)'!AD392","v":3.3456433387984887},{"$f":"'[2]REAL IPC(M)'!AE392","v":6.2038288093420917},{"$f":"'[2]REAL IPC(M)'!AF392","v":2.8859737638748726},{"$f":"'[2]REAL IPC(M)'!AG392","v":4.9453709028177073},{"$f":"'[2]REAL IPC(M)'!AH392","v":7.0957104828745923},{"$f":"'[2]REAL IPC(M)'!AI392","v":8.2315459174342749},{"$f":"'[2]REAL IPC(M)'!AJ392","v":3.3604717326744367},null,null,{"$f":"'[2]REAL IMAE(M)'!AG392","v":9.7075779029796649},{"$f":"'[2]REAL IMAE(M)'!AH392","v":5.4450436614011828},{"$f":"'[2]REAL IMAE(M)'!AI392","v":5.0088900024315901},{"$f":"'[2]REAL IMAE(M)'!AJ392","v":7.8027680016332663},{"$f":"'[2]REAL IMAE(M)'!AK392","v":7.5307090454526939},{"$f":"'[2]REAL IMAE(M)'!AL392","v":9.7848037784905006},{"$f":"'[2]REAL IMAE(M)'!AM392","v":20.878149920251584},null,null,{"$f":"'[2]EXT ITCER(M)'!C392","v":92.558883648510289},{"$f":"'[2]EXT ITCER(M)'!D392","v":99.192119505998036},{"$f":"'[2]EXT ITCER(M)'!E392","v":54.212411203257261},{"$f":"'[2]EXT ITCER(M)'!F392","v":76.719183917469834},{"$f":"'[2]EXT ITCER(M)'!G392","v":111.5659477577894},{"$f":"'[2]EXT ITCER(M)'!H392","v":116.77725190720039},{"$f":"'[2]EXT ITCER(M)'!I392","v":99.939008459874856},null,null,{"$f":"'[2]EXT TC(M)'!J392","v":5.0198780547710253},{"$f":"'[2]EXT TC(M)'!K392","v":0},{"$f":"'[2]EXT TC(M)'!L392","v":-0.71840578534842547},{"$f":"'[2]EXT TC(M)'!M392","v":-0.73417330121003477},{"$f":"'[2]EXT TC(M)'!N392","v":2.0026933738785897},{"$f":"'[2]EXT TC(M)'!O392","v":-3.1395235129724051},{"$f":"'[2]EXT TC(M)'!P392","v":0},null,null,{"$f":"'[2]EXT RIN(M)'!C392","v":6780.7525001699996},{"$f":"'[2]EXT RIN(M)'!D392","v":3468.86},{"$f":"'[2]EXT RIN(M)'!E392","v":20701.8},{"$f":"'[2]EXT RIN(M)'!F392","v":8836.5575590047283},{"$f":"'[2]EXT RIN(M)'!G392","v":3908.5722108584887},{"$f":"'[2]EXT RIN(M)'!H392","v":12199.583225603856},{"$f":"'[2]EXT RIN(M)'!I392","v":8305.6168758399999},null,null,{"$f":"'[2]EXT RIN(M)'!P392","v":62.760635471517467},{"$f":"'[2]EXT RIN(M)'!Q392","v":112.50846928790521},{"$f":"'[2]EXT RIN(M)'!R392","v":142.13381171430996},{"$f":"'[2]EXT RIN(M)'!S392","v":105.66551135094096},{"$f":"'[2]EXT RIN(M)'!T392","v":144.47922236583381},{"$f":"'[2]EXT RIN(M)'!U392","v":93.216138536470638},{"$f":"'[2]EXT RIN(M)'!V392","v":354.49980854731388},null,null,{"$f":"+'[2]MONE(M)CAPARD'!AE392","v":-0.43121637681187414},{"$f":"'[2]MONE(M)CAPARD'!AF392","v":-1.8491130040778205},{"$f":"'[2]MONE(M)CAPARD'!AG392","v":1.1022165555119663},{"$f":"'[2]MONE(M)CAPARD'!AH392","v":-0.20522191780821494},{"$f":"'[2]MONE(M)CAPARD'!AI392","v":-1.6073344782167467},{"$f":"'[2]MONE(M)CAPARD'!AJ392","v":-5.4105721837342626},{"$f":"'[2]MONE(M)CAPARD'!AK392","v":-1.6838852450053559},null,null,{"$f":"'[2]MONE(M)CAPARD'!AL392","v":2.09516575},{"$f":"'[2]MONE(M)CAPARD'!AM392","v":4.24},{"$f":"'[2]MONE(M)CAPARD'!AN392","v":2.5},{"$f":"'[2]MONE(M)CAPARD'!AO392","v":2.7},{"$f":"'[2]MONE(M)CAPARD'!AP392","v":3.8735258716324599},{"$f":"'[2]MONE(M)CAPARD'!AQ392","v":0.52639999999999998},{"$f":"'[2]MONE(M)CAPARD'!AR392","v":1.62},null,null,{"$f":"'[2]MONE(M)CAPARD'!J392","v":5.8177313111217712},{"$f":"'[2]MONE(M)CAPARD'!K392","v":2.4642417275644039E-2},{"$f":"'[2]MONE(M)CAPARD'!L392","v":8.8778148293448425},{"$f":"'[2]MONE(M)CAPARD'!M392","v":9.9524438356164442},{"$f":"'[2]MONE(M)CAPARD'!N392","v":4.4743151697927841},{"$f":"'[2]MONE(M)CAPARD'!O392","v":1.5663216007826128},{"$f":"'[2]MONE(M)CAPARD'!P392","v":4.7015345284936076},null,null,{"$f":"'[2]MONE(M)CAPARD'!Q392","v":5.3117073799999996},{"$f":"'[2]MONE(M)CAPARD'!R392","v":6.23},{"$f":"'[2]MONE(M)CAPARD'!S392","v":5.66},{"$f":"'[2]MONE(M)CAPARD'!T392","v":7.42},{"$f":"'[2]MONE(M)CAPARD'!U392","v":10.726282930288299},{"$f":"'[2]MONE(M)CAPARD'!V392","v":3.1564999999999999},{"$f":"'[2]MONE(M)CAPARD'!W392","v":8.2200000000000006},null,null,{"$f":"'[2]MONE(M)CAPARD'!AS392","v":0.75},{"$f":"'[2]MONE(M)CAPARD'!AT392","v":"n.a."},{"$f":"'[2]MONE(M)CAPARD'!AU392","v":1.75},{"$f":"'[2]MONE(M)CAPARD'!AV392","v":3},{"$f":"'[2]MONE(M)CAPARD'!AW392","v":3.5},{"$f":"'[2]MONE(M)CAPARD'!AX392","v":3.5},{"$f":"'[2]MONE(M)CAPARD'!AY392","v":"n.a."},null,null,{"$f":"+'Datos_Regional (M)'!CF385","v":2.3747382246203541},{"$f":"+'Datos_Regional (M)'!CG385","v":6.0817503517516025},{"$f":"+'Datos_Regional (M)'!CH385","v":10.060535853077157},{"$f":"+'Datos_Regional (M)'!CI385","v":11.672069100603633},{"$f":"+'Datos_Regional (M)'!CJ385","v":4.7495613830505823},{"$f":"+'Datos_Regional (M)'!CK385","v":8.8675527053852186},{"$f":"+'Datos_Regional (M)'!CL385","v":1.9194261750339336},null,null,1183.0822391408335,528.21499999999992,1116.1333333333334,836.82659311894349,558.88021123750002,1032.8916666666667,1055.4610833333334,5256.0290434972767,6311.4901268306103,null,null,1483.7094009983332,1199.9933333333331,2153.2333333333331,1377.649260634432,685.10000575000004,1983.2916666666663,1664.4307501666665,8882.9770007160987,10547.407750882765,null,null,-3626.9479572188216,-4235.9176240521547,null,null,{"$f":"'[2]EXT Comercio(M)'!C392","v":1192.788152699999},{"$f":"'[2]EXT Comercio(M)'!D392","v":538.14999999999964},{"$f":"'[2]EXT Comercio(M)'!E392","v":1111.9000000000001},{"$f":"'[2]EXT Comercio(M)'!F392","v":858.53699295630508},{"$f":"'[2]EXT Comercio(M)'!G392","v":569.09982835999995},{"$f":"'[2]EXT Comercio(M)'!H392","v":1129.9000000000001},{"$f":"'[2]EXT Comercio(M)'!I392","v":1200.73},{"$f":"'[2]EXT Comercio(M)'!K392","v":5400.3749740163112},{"$f":"'[2]EXT Comercio(M)'!L392","v":6601.1049740163144},null,null,{"$f":"'[2]EXT Comercio(M)'!AG392","v":1846.5546040699983},{"$f":"'[2]EXT Comercio(M)'!AH392","v":1370.67},{"$f":"'[2]EXT Comercio(M)'!AI392","v":2658.3},{"$f":"'[2]EXT Comercio(M)'!AJ392","v":1622.48009026822},{"$f":"'[2]EXT Comercio(M)'!AK392","v":751.06063345000007},{"$f":"'[2]EXT Comercio(M)'!AL392","v":2496.2999999999997},{"$f":"'[2]EXT Comercio(M)'!AM392","v":1902.51},{"$f":"'[2]EXT Comercio(M)'!AO392","v":10745.365327788226},{"$f":"'[2]EXT Comercio(M)'!AP392","v":12647.875327788235},null,null,{"$f":"'[2]EXT Comercio(M)'!$BS392","v":-5344.9903537719147},{"$f":"'[2]EXT Comercio(M)'!$BT392","v":-6046.7703537719135}]
[null,null,"Diciembre ",{"$f":"'[2]REAL IPC(M)'!AD393","v":3.2989079099999969},{"$f":"'[2]REAL IPC(M)'!AE393","v":6.114806269433835},{"$f":"'[2]REAL IPC(M)'!AF393","v":3.0678148546824637},{"$f":"'[2]REAL IPC(M)'!AG393","v":5.315804515575886},{"$f":"'[2]REAL IPC(M)'!AH393","v":7.2100675352489079},{"$f":"'[2]REAL IPC(M)'!AI393","v":8.4956989865317922},{"$f":"'[2]REAL IPC(M)'!AJ393","v":2.6243501775598737},null,null,{"$f":"'[2]REAL IMAE(M)'!AG393","v":8.893768397091991},{"$f":"'[2]REAL IMAE(M)'!AH393","v":4.5814532101731862},{"$f":"'[2]REAL IMAE(M)'!AI393","v":5.0283239534194939},{"$f":"'[2]REAL IMAE(M)'!AJ393","v":7.4520281341422061},{"$f":"'[2]REAL IMAE(M)'!AK393","v":6.8428965870968916},{"$f":"'[2]REAL IMAE(M)'!AL393","v":8.8913876661597637},{"$f":"'[2]REAL IMAE(M)'!AM393","v":8.7683033028033339},null,null,{"$f":"'[2]EXT ITCER(M)'!C393","v":92.880461879040439},{"$f":"'[2]EXT ITCER(M)'!D393","v":99.854929273638163},{"$f":"'[2]EXT ITCER(M)'!E393","v":54.506453566255203},{"$f":"'[2]EXT ITCER(M)'!F393","v":77.0190342043756},{"$f":"'[2]EXT ITCER(M)'!G393","v":111.0406328295818},{"$f":"'[2]EXT ITCER(M)'!H393","v":117.5951854533696},{"$f":"'[2]EXT ITCER(M)'!I393","v":101.129570709326},null,null,{"$f":"'[2]EXT TC(M)'!J393","v":5.2511223742381885},{"$f":"'[2]EXT TC(M)'!K393","v":0},{"$f":"'[2]EXT TC(M)'!L393","v":-0.95617724424089112},{"$f":"'[2]EXT TC(M)'!M393","v":0.3943735105238419},{"$f":"'[2]EXT TC(M)'!N393","v":1.9936414206095272},{"$f":"'[2]EXT TC(M)'!O393","v":-2.1557772937418793},{"$f":"'[2]EXT TC(M)'!P393","v":0},null,null,{"$f":"'[2]EXT RIN(M)'!C393","v":6918.1401695499999},{"$f":"'[2]EXT RIN(M)'!D393","v":3342.39},{"$f":"'[2]EXT RIN(M)'!E393","v":20939.599999999999},{"$f":"'[2]EXT RIN(M)'!F393","v":8677.5568154226803},{"$f":"'[2]EXT RIN(M)'!G393","v":3954.5522422552585},{"$f":"'[2]EXT RIN(M)'!H393","v":13033.917427885361},{"$f":"'[2]EXT RIN(M)'!I393","v":8099.4653844300001},null,null,{"$f":"'[2]EXT RIN(M)'!P393","v":62.207809752554155},{"$f":"'[2]EXT RIN(M)'!Q393","v":112.72253526636781},{"$f":"'[2]EXT RIN(M)'!R393","v":128.41652748442729},{"$f":"'[2]EXT RIN(M)'!S393","v":101.50945639897819},{"$f":"'[2]EXT RIN(M)'!T393","v":141.51188012674208},{"$f":"'[2]EXT RIN(M)'!U393","v":89.108528890081004},{"$f":"'[2]EXT RIN(M)'!V393","v":367.37174699793366},null,null,{"$f":"+'[2]MONE(M)CAPARD'!AE393","v":-0.38616856467403193},{"$f":"'[2]MONE(M)CAPARD'!AF393","v":-1.5594489851229165},{"$f":"'[2]MONE(M)CAPARD'!AG393","v":0.89473629242818942},{"$f":"'[2]MONE(M)CAPARD'!AH393","v":-0.6701791044776183},{"$f":"'[2]MONE(M)CAPARD'!AI393","v":-2.0612254633373941},{"$f":"'[2]MONE(M)CAPARD'!AJ393","v":-4.6600916292169545},{"$f":"'[2]MONE(M)CAPARD'!AK393","v":-0.99815509261452151},null,null,{"$f":"'[2]MONE(M)CAPARD'!AL393","v":2.0823728199999998},{"$f":"'[2]MONE(M)CAPARD'!AM393","v":4.46},{"$f":"'[2]MONE(M)CAPARD'!AN393","v":2.5499999999999998},{"$f":"'[2]MONE(M)CAPARD'!AO393","v":2.71},{"$f":"'[2]MONE(M)CAPARD'!AP393","v":3.3592156358131802},{"$f":"'[2]MONE(M)CAPARD'!AQ393","v":1.0194000000000001},{"$f":"'[2]MONE(M)CAPARD'!AR393","v":1.6},null,null,{"$f":"'[2]MONE(M)CAPARD'!J393","v":4.8141644288560634},{"$f":"'[2]MONE(M)CAPARD'!K393","v":-0.14588564487482522},{"$f":"'[2]MONE(M)CAPARD'!L393","v":8.5886997389033848},{"$f":"'[2]MONE(M)CAPARD'!M393","v":9.2713487109904946},{"$f":"'[2]MONE(M)CAPARD'!N393","v":4.0891449365374566},{"$f":"'[2]MONE(M)CAPARD'!O393","v":0.66786150993704985},{"$f":"'[2]MONE(M)CAPARD'!P393","v":5.483737351518629},null,null,{"$f":"'[2]MONE(M)CAPARD'!Q393","v":5.2552985200000002},{"$f":"'[2]MONE(M)CAPARD'!R393","v":5.96},{"$f":"'[2]MONE(M)CAPARD'!S393","v":5.61},{"$f":"'[2]MONE(M)CAPARD'!T393","v":7.33},{"$f":"'[2]MONE(M)CAPARD'!U393","v":9.5314289567687105},{"$f":"'[2]MONE(M)CAPARD'!V393","v":3.2469000000000001},{"$f":"'[2]MONE(M)CAPARD'!W393","v":8.2519999999999989},null,null,{"$f":"'[2]MONE(M)CAPARD'!AS393","v":1.25},{"$f":"'[2]MONE(M)CAPARD'!AT393","v":"n.a."},{"$f":"'[2]MONE(M)CAPARD'!AU393","v":1.75},{"$f":"'[2]MONE(M)CAPARD'!AV393","v":3},{"$f":"'[2]MONE(M)CAPARD'!AW393","v":3.5},{"$f":"'[2]MONE(M)CAPARD'!AX393","v":3.5},{"$f":"'[2]MONE(M)CAPARD'!AY393","v":"n.a."},null,null,{"$f":"+'Datos_Regional (M)'!CF386","v":2.7916346650896706},{"$f":"+'Datos_Regional (M)'!CG386","v":5.718056270976235},{"$f":"+'Datos_Regional (M)'!CH386","v":10.793579442265111},{"$f":"+'Datos_Regional (M)'!CI386","v":12.019965756841655},{"$f":"+'Datos_Regional (M)'!CJ386","v":5.1387202220816608},{"$f":"+'Datos_Regional (M)'!CK386","v":9.930841011511248},{"$f":"+'Datos_Regional (M)'!CL386","v":3.5549853475845161},null,null,1196.7355893733331,532.90749999999991,1134.9833333333333,851.11205297623064,572.0977247300001,1040.5333333333333,1094.3641666666667,5328.3695337462295,6422.7337004128967,null,null,1531.7362822683335,1218.1183333333331,2217.3249999999998,1404.521364196049,697.17936014666657,2023.5,1735.5991666666666,9092.3803399443823,10827.979506611049,null,null,-3764.0108061981514,-4405.2458061981515,null,null,{"$f":"'[2]EXT Comercio(M)'!C393","v":1202.5516508999999},{"$f":"'[2]EXT Comercio(M)'!D393","v":510.32999999999993},{"$f":"'[2]EXT Comercio(M)'!E393","v":1310.5},{"$f":"'[2]EXT Comercio(M)'!F393","v":818.87727906935243},{"$f":"'[2]EXT Comercio(M)'!G393","v":582.4236430599999},{"$f":"'[2]EXT Comercio(M)'!H393","v":1056.3999999999999},{"$f":"'[2]EXT Comercio(M)'!I393","v":1339.69},{"$f":"'[2]EXT Comercio(M)'!K393","v":5481.0825730293436},{"$f":"'[2]EXT Comercio(M)'!L393","v":6820.7725730293459},null,null,{"$f":"'[2]EXT Comercio(M)'!AG393","v":1853.0164319800006},{"$f":"'[2]EXT Comercio(M)'!AH393","v":1270.1499999999996},{"$f":"'[2]EXT Comercio(M)'!AI393","v":2549.6999999999998},{"$f":"'[2]EXT Comercio(M)'!AJ393","v":1520.1735249911874},{"$f":"'[2]EXT Comercio(M)'!AK393","v":689.61148000999992},{"$f":"'[2]EXT Comercio(M)'!AL393","v":2250.8999999999996},{"$f":"'[2]EXT Comercio(M)'!AM393","v":2299.7800000000002},{"$f":"'[2]EXT Comercio(M)'!AO393","v":10133.551436981201},{"$f":"'[2]EXT Comercio(M)'!AP393","v":12433.3314369812},null,null,{"$f":"'[2]EXT Comercio(M)'!$BS393","v":-4652.4688639518354},{"$f":"'[2]EXT Comercio(M)'!$BT393","v":-5612.5588639518392}]
[null,2022,"Enero",{"$f":"'[2]REAL IPC(M)'!AD394","v":3.4980842505554182},{"$f":"'[2]REAL IPC(M)'!AE394","v":6.4834679779200473},{"$f":"'[2]REAL IPC(M)'!AF394","v":2.8682743333109371},{"$f":"'[2]REAL IPC(M)'!AG394","v":6.1770566467406738},{"$f":"'[2]REAL IPC(M)'!AH394","v":7.6802472614263015},{"$f":"'[2]REAL IPC(M)'!AI394","v":8.7264240446282955},{"$f":"'[2]REAL IPC(M)'!AJ394","v":2.6262074628368794},null,null,{"$f":"'[2]REAL IMAE(M)'!AG394","v":8.1398213557066548},{"$f":"'[2]REAL IMAE(M)'!AH394","v":3.8851431553282412},{"$f":"'[2]REAL IMAE(M)'!AI394","v":4.9961727851379925},{"$f":"'[2]REAL IMAE(M)'!AJ394","v":6.7484997800821382},{"$f":"'[2]REAL IMAE(M)'!AK394","v":6.0013327834863954},{"$f":"'[2]REAL IMAE(M)'!AL394","v":7.8167692646410307},{"$f":"'[2]REAL IMAE(M)'!AM394","v":8.7526573248957416},null,null,{"$f":"'[2]EXT ITCER(M)'!C394","v":93.197888378849711},{"$f":"'[2]EXT ITCER(M)'!D394","v":99.849276218935515},{"$f":"'[2]EXT ITCER(M)'!E394","v":54.669401818791343},{"$f":"'[2]EXT ITCER(M)'!F394","v":77.13740680244895},{"$f":"'[2]EXT ITCER(M)'!G394","v":111.2537917900616},{"$f":"'[2]EXT ITCER(M)'!H394","v":118.36896240661611},{"$f":"'[2]EXT ITCER(M)'!I394","v":101.42570091015421},null,null,{"$f":"'[2]EXT TC(M)'!J394","v":4.4126707734660968},{"$f":"'[2]EXT TC(M)'!K394","v":0},{"$f":"'[2]EXT TC(M)'!L394","v":-1.1467299534615565},{"$f":"'[2]EXT TC(M)'!M394","v":1.3796300111447473},{"$f":"'[2]EXT TC(M)'!N394","v":2.0203364289723411},{"$f":"'[2]EXT TC(M)'!O394","v":-0.93853863507207236},{"$f":"'[2]EXT TC(M)'!P394","v":0},null,null,{"$f":"'[2]EXT RIN(M)'!C394","v":6827.9},{"$f":"'[2]EXT RIN(M)'!D394","v":3404.24},{"$f":"'[2]EXT RIN(M)'!E394","v":20813.400000000001},{"$f":"'[2]EXT RIN(M)'!F394","v":8530.9},{"$f":"'[2]EXT RIN(M)'!G394","v":4001.5522422552585},{"$f":"'[2]EXT RIN(M)'!H394","v":12373.983627802445},{"$f":"'[2]EXT RIN(M)'!I394","v":10043.17956147},null,null,{"$f":"'[2]EXT RIN(M)'!P394","v":62.951673703965106},{"$f":"'[2]EXT RIN(M)'!Q394","v":109.03204688431825},{"$f":"'[2]EXT RIN(M)'!R394","v":131.52014510244643},{"$f":"'[2]EXT RIN(M)'!S394","v":101.64366647286103},{"$f":"'[2]EXT RIN(M)'!T394","v":146.42519652869447},{"$f":"'[2]EXT RIN(M)'!U394","v":94.889466897633525},{"$f":"'[2]EXT RIN(M)'!V394","v":458.955595324809},null,null,{"$f":"+'[2]MONE(M)CAPARD'!AE394","v":-0.43293965661302924},{"$f":"'[2]MONE(M)CAPARD'!AF394","v":-2.0786963647530925},{"$f":"'[2]MONE(M)CAPARD'!AG394","v":1.0515639284315059},{"$f":"'[2]MONE(M)CAPARD'!AH394","v":-1.588908847184983},{"$f":"'[2]MONE(M)CAPARD'!AI394","v":-1.5626916592988405},{"$f":"'[2]MONE(M)CAPARD'!AJ394","v":-4.3836850945009758},{"$f":"'[2]MONE(M)CAPARD'!AK394","v":-1.0681554838064529},null,null,{"$f":"'[2]MONE(M)CAPARD'!AL394","v":2.0526829100000001},{"$f":"'[2]MONE(M)CAPARD'!AM394","v":4.2699999999999996},{"$f":"'[2]MONE(M)CAPARD'!AN394","v":2.5099999999999998},{"$f":"'[2]MONE(M)CAPARD'!AO394","v":2.7},{"$f":"'[2]MONE(M)CAPARD'!AP394","v":3.4718775026209499},{"$f":"'[2]MONE(M)CAPARD'!AQ394","v":1.0726},{"$f":"'[2]MONE(M)CAPARD'!AR394","v":1.53},null,null,{"$f":"'[2]MONE(M)CAPARD'!J394","v":5.8249926296700787},{"$f":"'[2]MONE(M)CAPARD'!K394","v":-0.58550683008307591},{"$f":"'[2]MONE(M)CAPARD'!L394","v":8.7993365547864748},{"$f":"'[2]MONE(M)CAPARD'!M394","v":8.4980160857908889},{"$f":"'[2]MONE(M)CAPARD'!N394","v":3.9496541968744214},{"$f":"'[2]MONE(M)CAPARD'!O394","v":0.8107283607615855},{"$f":"'[2]MONE(M)CAPARD'!P394","v":5.4506472327633775},null,null,{"$f":"'[2]MONE(M)CAPARD'!Q394","v":5.2502232400000004},{"$f":"'[2]MONE(M)CAPARD'!R394","v":5.86},{"$f":"'[2]MONE(M)CAPARD'!S394","v":5.66},{"$f":"'[2]MONE(M)CAPARD'!T394","v":7.3},{"$f":"'[2]MONE(M)CAPARD'!U394","v":8.8433812456750207},{"$f":"'[2]MONE(M)CAPARD'!V394","v":3.4805000000000001},{"$f":"'[2]MONE(M)CAPARD'!W394","v":8.2200000000000006},null,null,{"$f":"'[2]MONE(M)CAPARD'!AS394","v":1.75},{"$f":"'[2]MONE(M)CAPARD'!AT394","v":"n.a."},{"$f":"'[2]MONE(M)CAPARD'!AU394","v":1.75},{"$f":"'[2]MONE(M)CAPARD'!AV394","v":3},{"$f":"'[2]MONE(M)CAPARD'!AW394","v":3.5},{"$f":"'[2]MONE(M)CAPARD'!AX394","v":4.5},{"$f":"'[2]MONE(M)CAPARD'!AY394","v":"n.a."},null,null,{"$f":"+'Datos_Regional (M)'!CF387","v":3.0203663283297599},{"$f":"+'Datos_Regional (M)'!CG387","v":6.2016180971857571},{"$f":"+'Datos_Regional (M)'!CH387","v":10.690336908759912},{"$f":"+'Datos_Regional (M)'!CI387","v":14.250380748058911},{"$f":"+'Datos_Regional (M)'!CJ387","v":5.7809462439708303},{"$f":"+'Datos_Regional (M)'!CK387","v":12.495250401158064},{"$f":"+'Datos_Regional (M)'!CL387","v":3.9395513753040845},null,null,1213.0837291908335,538.18500000000006,1152.3552433333332,868.69831296459836,585.19281265833342,1052.0583333333332,1109.1591666666666,5409.5734314804313,6518.7325981470967,null,null,1571.8789597191662,1241.0583333333332,2285.2688329166663,1443.2129750679558,717.75101192999989,2085.8749999999995,1791.9574999999998,9345.0451129671219,11137.002612967122,null,null,-3935.4716814866902,-4618.2700148200238,null,null,{"$f":"'[2]EXT Comercio(M)'!C394","v":1145.73216824},{"$f":"'[2]EXT Comercio(M)'!D394","v":578.89},{"$f":"'[2]EXT Comercio(M)'!E394","v":1212.4629199999999},{"$f":"'[2]EXT Comercio(M)'!F394","v":902.74066049193402},{"$f":"'[2]EXT Comercio(M)'!G394","v":641.0878767800001},{"$f":"'[2]EXT Comercio(M)'!H394","v":927.5},{"$f":"'[2]EXT Comercio(M)'!I394","v":992.21},{"$f":"'[2]EXT Comercio(M)'!K394","v":5408.4136255119347},{"$f":"'[2]EXT Comercio(M)'!L394","v":6400.6236255119347},null,null,{"$f":"'[2]EXT Comercio(M)'!AG394","v":1735.4320703999999},{"$f":"'[2]EXT Comercio(M)'!AH394","v":1342.23},{"$f":"'[2]EXT Comercio(M)'!AI394","v":2518.6259949999999},{"$f":"'[2]EXT Comercio(M)'!AJ394","v":1518.0700002958206},{"$f":"'[2]EXT Comercio(M)'!AK394","v":794.81011753000007},{"$f":"'[2]EXT Comercio(M)'!AL394","v":2249.3000000000002},{"$f":"'[2]EXT Comercio(M)'!AM394","v":1972.17},{"$f":"'[2]EXT Comercio(M)'!AO394","v":10158.468183225821},{"$f":"'[2]EXT Comercio(M)'!AP394","v":12130.638183225821},null,null,{"$f":"'[2]EXT Comercio(M)'!$BS394","v":-4750.0545577138873},{"$f":"'[2]EXT Comercio(M)'!$BT394","v":-5730.0145577138874}]
[null,null,"Febrero",{"$f":"'[2]REAL IPC(M)'!AD395","v":4.8973145631015589},{"$f":"'[2]REAL IPC(M)'!AE395","v":6.6675496992549013},{"$f":"'[2]REAL IPC(M)'!AF395","v":2.9797776884960334},{"$f":"'[2]REAL IPC(M)'!AG395","v":6.3654447286160947},{"$f":"'[2]REAL IPC(M)'!AH395","v":7.7533516680632744},{"$f":"'[2]REAL IPC(M)'!AI395","v":8.9838302363273215},{"$f":"'[2]REAL IPC(M)'!AJ395","v":2.7355245639824521},null,null,{"$f":"'[2]REAL IMAE(M)'!AG395","v":7.2491233428618367},{"$f":"'[2]REAL IMAE(M)'!AH395","v":3.7287939777910153},{"$f":"'[2]REAL IMAE(M)'!AI395","v":4.8599895865510074},{"$f":"'[2]REAL IMAE(M)'!AJ395","v":6.1133721894000148},{"$f":"'[2]REAL IMAE(M)'!AK395","v":5.1686709313733674},{"$f":"'[2]REAL IMAE(M)'!AL395","v":6.7156959845701749},{"$f":"'[2]REAL IMAE(M)'!AM395","v":8.5996560470633376},null,null,{"$f":"'[2]EXT ITCER(M)'!C395","v":93.412264509205571},{"$f":"'[2]EXT ITCER(M)'!D395","v":99.771238335092008},{"$f":"'[2]EXT ITCER(M)'!E395","v":54.817019030260248},{"$f":"'[2]EXT ITCER(M)'!F395","v":77.614382428897983},{"$f":"'[2]EXT ITCER(M)'!G395","v":111.1661960908947},{"$f":"'[2]EXT ITCER(M)'!H395","v":115.774309355822},{"$f":"'[2]EXT ITCER(M)'!I395","v":101.4461441537989},null,null,{"$f":"'[2]EXT TC(M)'!J395","v":5.177843449803178},{"$f":"'[2]EXT TC(M)'!K395","v":0},{"$f":"'[2]EXT TC(M)'!L395","v":-0.54328470320078137},{"$f":"'[2]EXT TC(M)'!M395","v":1.7241142991003759},{"$f":"'[2]EXT TC(M)'!N395","v":2.0667892209608789},{"$f":"'[2]EXT TC(M)'!O395","v":-2.5292471211013221},{"$f":"'[2]EXT TC(M)'!P395","v":0},null,null,{"$f":"'[2]EXT RIN(M)'!C395","v":6567.8},{"$f":"'[2]EXT RIN(M)'!D395","v":3293.63},{"$f":"'[2]EXT RIN(M)'!E395","v":20835.900000000001},{"$f":"'[2]EXT RIN(M)'!F395","v":8483.2999999999993},{"$f":"'[2]EXT RIN(M)'!G395","v":4055.4391589354545},{"$f":"'[2]EXT RIN(M)'!H395","v":14849.759523177323},{"$f":"'[2]EXT RIN(M)'!I395","v":9756.13518931},null,null,{"$f":"'[2]EXT RIN(M)'!P395","v":59.023053540695294},{"$f":"'[2]EXT RIN(M)'!Q395","v":110.89853731495052},{"$f":"'[2]EXT RIN(M)'!R395","v":130.38783554339534},{"$f":"'[2]EXT RIN(M)'!S395","v":101.12807570559323},{"$f":"'[2]EXT RIN(M)'!T395","v":152.01105351217436},{"$f":"'[2]EXT RIN(M)'!U395","v":110.63748807593656},{"$f":"'[2]EXT RIN(M)'!V395","v":409.15619409354196},null,null,{"$f":"+'[2]MONE(M)CAPARD'!AE395","v":-1.7610694523455095},{"$f":"'[2]MONE(M)CAPARD'!AF395","v":-2.1445600894597852},{"$f":"'[2]MONE(M)CAPARD'!AG395","v":0.94214838416023416},{"$f":"'[2]MONE(M)CAPARD'!AH395","v":-1.8478226021907656},{"$f":"'[2]MONE(M)CAPARD'!AI395","v":-1.7647245948585364},{"$f":"'[2]MONE(M)CAPARD'!AJ395","v":-4.1442205018243499},{"$f":"'[2]MONE(M)CAPARD'!AK395","v":-1.1052891089053243},null,null,{"$f":"'[2]MONE(M)CAPARD'!AL395","v":2.2550390299999998},{"$f":"'[2]MONE(M)CAPARD'!AM395","v":4.38},{"$f":"'[2]MONE(M)CAPARD'!AN395","v":2.57},{"$f":"'[2]MONE(M)CAPARD'!AO395","v":2.69},{"$f":"'[2]MONE(M)CAPARD'!AP395","v":3.1853769946177999},{"$f":"'[2]MONE(M)CAPARD'!AQ395","v":0.7198},{"$f":"'[2]MONE(M)CAPARD'!AR395","v":1.6},null,null,{"$f":"'[2]MONE(M)CAPARD'!J395","v":4.4263586596445617},{"$f":"'[2]MONE(M)CAPARD'!K395","v":-0.42894929202456167},{"$f":"'[2]MONE(M)CAPARD'!L395","v":8.6815319591651114},{"$f":"'[2]MONE(M)CAPARD'!M395","v":8.0614106331819286},{"$f":"'[2]MONE(M)CAPARD'!N395","v":3.3822494556996117},{"$f":"'[2]MONE(M)CAPARD'!O395","v":0.88826916944784928},{"$f":"'[2]MONE(M)CAPARD'!P395","v":5.3216774207352051},null,null,{"$f":"'[2]MONE(M)CAPARD'!Q395","v":5.5659750600000004},{"$f":"'[2]MONE(M)CAPARD'!R395","v":6.21},{"$f":"'[2]MONE(M)CAPARD'!S395","v":5.6},{"$f":"'[2]MONE(M)CAPARD'!T395","v":7.27},{"$f":"'[2]MONE(M)CAPARD'!U395","v":8.4118841752928404},{"$f":"'[2]MONE(M)CAPARD'!V395","v":3.1427},{"$f":"'[2]MONE(M)CAPARD'!W395","v":8.2027777777777757},null,null,{"$f":"'[2]MONE(M)CAPARD'!AS395","v":1.75},{"$f":"'[2]MONE(M)CAPARD'!AT395","v":"n.a."},{"$f":"'[2]MONE(M)CAPARD'!AU395","v":1.75},{"$f":"'[2]MONE(M)CAPARD'!AV395","v":3},{"$f":"'[2]MONE(M)CAPARD'!AW395","v":3.5},{"$f":"'[2]MONE(M)CAPARD'!AX395","v":5},{"$f":"'[2]MONE(M)CAPARD'!AY395","v":"n.a."},{"$f":"'[2]MONE(M)CAPARD'!AZ395","v":13.462063433318042},null,{"$f":"+'Datos_Regional (M)'!CF388","v":3.4311640681044864},{"$f":"+'Datos_Regional (M)'!CG388","v":6.8391420391505475},{"$f":"+'Datos_Regional (M)'!CH388","v":11.170047697489128},{"$f":"+'Datos_Regional (M)'!CI388","v":14.863872513260556},{"$f":"+'Datos_Regional (M)'!CJ388","v":6.2283996330927849},{"$f":"+'Datos_Regional (M)'!CK388","v":11.86016425838412},{"$f":"+'Datos_Regional (M)'!CL388","v":3.8950028847666518},null,null,1221.1173785708336,544.15750000000003,1173.2830154999999,883.75495788703029,592.53219975500008,{"$f":"IF(EM200=\"\",\"\",+AVERAGE(EM189:EM200))","v":1065.4833333333333},1140.6866666666667,5480.3283850461967,6621.0150517128632,null,null,1616.2409350583332,1266.2591666666665,2337.0470185833333,1472.0847851834278,733.11928078083326,2128.6583333333333,1836.4224999999997,9553.4095196059261,11389.832019605929,null,null,-4073.0811345597303,-4768.8169678930635,null,null,{"$f":"'[2]EXT Comercio(M)'!C395","v":1199.8106574600001},{"$f":"'[2]EXT Comercio(M)'!D395","v":576.59},{"$f":"'[2]EXT Comercio(M)'!E395","v":1282.233266},{"$f":"'[2]EXT Comercio(M)'!F395","v":957.35450399600018},{"$f":"'[2]EXT Comercio(M)'!G395","v":612.4130106700004},{"$f":"'[2]EXT Comercio(M)'!H395","v":1122.5},{"$f":"'[2]EXT Comercio(M)'!I395","v":1179.5},{"$f":"'[2]EXT Comercio(M)'!K395","v":5750.9014381259994},{"$f":"'[2]EXT Comercio(M)'!L395","v":6930.4014381260004},null,null,{"$f":"'[2]EXT Comercio(M)'!AG395","v":1700.9905220999999},{"$f":"'[2]EXT Comercio(M)'!AH395","v":1248.02},{"$f":"'[2]EXT Comercio(M)'!AI395","v":2381.3382280000001},{"$f":"'[2]EXT Comercio(M)'!AJ395","v":1512.6674550691346},{"$f":"'[2]EXT Comercio(M)'!AK395","v":728.58897010999988},{"$f":"'[2]EXT Comercio(M)'!AL395","v":2166.6000000000004},{"$f":"'[2]EXT Comercio(M)'!AM395","v":1994.12},{"$f":"'[2]EXT Comercio(M)'!AO395","v":9738.205175279134},{"$f":"'[2]EXT Comercio(M)'!AP395","v":11732.325175279135},null,null,{"$f":"'[2]EXT Comercio(M)'!$BS395","v":-3987.3037371531336},{"$f":"'[2]EXT Comercio(M)'!$BT395","v":-4801.9237371531335}]
[null,null,"Marzo",{"$f":"'[2]REAL IPC(M)'!AD396","v":5.7931750632076655},{"$f":"'[2]REAL IPC(M)'!AE396","v":6.6948663790853002},{"$f":"'[2]REAL IPC(M)'!AF396","v":4.1711158569140414},{"$f":"'[2]REAL IPC(M)'!AG396","v":6.9648924122310367},{"$f":"'[2]REAL IPC(M)'!AH396","v":8.7414217514084633},{"$f":"'[2]REAL IPC(M)'!AI396","v":9.054550222921586},{"$f":"'[2]REAL IPC(M)'!AJ396","v":3.1844502361354969},null,null,{"$f":"'[2]REAL IMAE(M)'!AG396","v":6.1916082246153401},{"$f":"'[2]REAL IMAE(M)'!AH396","v":3.6752548918238968},{"$f":"'[2]REAL IMAE(M)'!AI396","v":4.7026178651920869},{"$f":"'[2]REAL IMAE(M)'!AJ396","v":5.507306464304178},{"$f":"'[2]REAL IMAE(M)'!AK396","v":4.5523300021578867},{"$f":"'[2]REAL IMAE(M)'!AL396","v":5.8546101206929606},{"$f":"'[2]REAL IMAE(M)'!AM396","v":8.3448577042518242},null,null,{"$f":"'[2]EXT ITCER(M)'!C396","v":94.613141917494659},{"$f":"'[2]EXT ITCER(M)'!D396","v":99.964278550033512},{"$f":"'[2]EXT ITCER(M)'!E396","v":54.504943832845328},{"$f":"'[2]EXT ITCER(M)'!F396","v":77.30058061574131},{"$f":"'[2]EXT ITCER(M)'!G396","v":111.1073570230709},{"$f":"'[2]EXT ITCER(M)'!H396","v":112.9570979367915},{"$f":"'[2]EXT ITCER(M)'!I396","v":101.58237109862969},null,null,{"$f":"'[2]EXT TC(M)'!J396","v":6.401860228069074},{"$f":"'[2]EXT TC(M)'!K396","v":0},{"$f":"'[2]EXT TC(M)'!L396","v":-0.36889732033297051},{"$f":"'[2]EXT TC(M)'!M396","v":1.4404756271914667},{"$f":"'[2]EXT TC(M)'!N396","v":2.1146465353966084},{"$f":"'[2]EXT TC(M)'!O396","v":-4.1110481467489342},{"$f":"'[2]EXT TC(M)'!P396","v":0},null,null,{"$f":"'[2]EXT RIN(M)'!C396","v":7054.1},{"$f":"'[2]EXT RIN(M)'!D396","v":3334.89},{"$f":"'[2]EXT RIN(M)'!E396","v":20763.5},{"$f":"'[2]EXT RIN(M)'!F396","v":8542.7999999999993},{"$f":"'[2]EXT RIN(M)'!G396","v":4128.7631367492959},{"$f":"'[2]EXT RIN(M)'!H396","v":14595.958530444243},{"$f":"'[2]EXT RIN(M)'!I396","v":8965.7074552899994},null,null,{"$f":"'[2]EXT RIN(M)'!P396","v":65.576614390819316},{"$f":"'[2]EXT RIN(M)'!Q396","v":111.68452952470385},{"$f":"'[2]EXT RIN(M)'!R396","v":127.92763479456556},{"$f":"'[2]EXT RIN(M)'!S396","v":97.604159659506948},{"$f":"'[2]EXT RIN(M)'!T396","v":154.10021049009697},{"$f":"'[2]EXT RIN(M)'!U396","v":108.98723286508346},{"$f":"'[2]EXT RIN(M)'!V396","v":399.42440364568699},null,null,{"$f":"+'[2]MONE(M)CAPARD'!AE396","v":-2.6874843878246106},{"$f":"'[2]MONE(M)CAPARD'!AF396","v":-2.0571433786579498},{"$f":"'[2]MONE(M)CAPARD'!AG396","v":-0.2506605163687613},{"$f":"'[2]MONE(M)CAPARD'!AH396","v":-2.4726733721545844},{"$f":"'[2]MONE(M)CAPARD'!AI396","v":-2.160080866282343},{"$f":"'[2]MONE(M)CAPARD'!AJ396","v":-3.741384669031445},{"$f":"'[2]MONE(M)CAPARD'!AK396","v":-1.4870944533056476},null,null,{"$f":"'[2]MONE(M)CAPARD'!AL396","v":2.1119108899999999},{"$f":"'[2]MONE(M)CAPARD'!AM396","v":4.5},{"$f":"'[2]MONE(M)CAPARD'!AN396","v":2.59},{"$f":"'[2]MONE(M)CAPARD'!AO396","v":2.7},{"$f":"'[2]MONE(M)CAPARD'!AP396","v":3.72959967520636},{"$f":"'[2]MONE(M)CAPARD'!AQ396","v":0.78},{"$f":"'[2]MONE(M)CAPARD'!AR396","v":1.65},null,null,{"$f":"'[2]MONE(M)CAPARD'!J396","v":3.4471268440648326},{"$f":"'[2]MONE(M)CAPARD'!K396","v":-0.52942226580830831},{"$f":"'[2]MONE(M)CAPARD'!L396","v":7.4674098276635279},{"$f":"'[2]MONE(M)CAPARD'!M396","v":7.4651667548967637},{"$f":"'[2]MONE(M)CAPARD'!N396","v":2.1498918735005303},{"$f":"'[2]MONE(M)CAPARD'!O396","v":1.1809225515541373},{"$f":"'[2]MONE(M)CAPARD'!P396","v":4.8639917019591863},null,null,{"$f":"'[2]MONE(M)CAPARD'!Q396","v":5.97},{"$f":"'[2]MONE(M)CAPARD'!R396","v":6.13},{"$f":"'[2]MONE(M)CAPARD'!S396","v":5.53},{"$f":"'[2]MONE(M)CAPARD'!T396","v":7.28},{"$f":"'[2]MONE(M)CAPARD'!U396","v":7.6793541497266604},{"$f":"'[2]MONE(M)CAPARD'!V396","v":3.9809000000000001},{"$f":"'[2]MONE(M)CAPARD'!W396","v":8.2033333333333331},null,null,{"$f":"'[2]MONE(M)CAPARD'!AS396","v":2.5},{"$f":"'[2]MONE(M)CAPARD'!AT396","v":"n.a."},{"$f":"'[2]MONE(M)CAPARD'!AU396","v":1.75},{"$f":"'[2]MONE(M)CAPARD'!AV396","v":3},{"$f":"'[2]MONE(M)CAPARD'!AW396","v":3.5},{"$f":"'[2]MONE(M)CAPARD'!AX396","v":5},{"$f":"'[2]MONE(M)CAPARD'!AY396","v":"n.a."},{"$f":"'[2]MONE(M)CAPARD'!AZ396","v":13.305664219183083},null,{"$f":"+'Datos_Regional (M)'!CF389","v":4.5158502090728359},{"$f":"+'Datos_Regional (M)'!CG389","v":7.2664713245291557},{"$f":"+'Datos_Regional (M)'!CH389","v":11.996974215163437},{"$f":"+'Datos_Regional (M)'!CI389","v":15.047327085012817},{"$f":"+'Datos_Regional (M)'!CJ389","v":7.1159247369551037},{"$f":"+'Datos_Regional (M)'!CK389","v":12.719104083560939},{"$f":"+'Datos_Regional (M)'!CL389","v":2.3352069595624192},null,null,1240.8322018116667,557.65750000000003,1198.5901891666665,905.5529999302172,599.44152364250021,{"$f":"IF(EM201=\"\",\"\",+AVERAGE(EM190:EM201))","v":1076.95},1159.7733333333333,5579.0244145510505,6738.797747884385,null,null,1664.334174545,1299.6741666666665,2396.5786372500002,1517.8774472853881,752.19684723499995,2180.1416666666664,1876.4733333333334,9810.80293964872,11687.276272982053,null,null,-4231.7785250976704,-4948.4785250976702,null,null,{"$f":"'[2]EXT Comercio(M)'!C396","v":1501.6294971699999},{"$f":"'[2]EXT Comercio(M)'!D396","v":720.25},{"$f":"'[2]EXT Comercio(M)'!E396","v":1554.1860839999999},{"$f":"'[2]EXT Comercio(M)'!F396","v":1195.434664662354},{"$f":"'[2]EXT Comercio(M)'!G396","v":736.1492762200005},{"$f":"'[2]EXT Comercio(M)'!H396","v":1292.1000000000001},{"$f":"'[2]EXT Comercio(M)'!I396","v":1398.49},{"$f":"'[2]EXT Comercio(M)'!K396","v":6999.7495220523579},{"$f":"'[2]EXT Comercio(M)'!L396","v":8398.2395220523576},null,null,{"$f":"'[2]EXT Comercio(M)'!AG396","v":2017.0780822399997},{"$f":"'[2]EXT Comercio(M)'!AH396","v":1613.0900000000001},{"$f":"'[2]EXT Comercio(M)'!AI396","v":2865.8794240000002},{"$f":"'[2]EXT Comercio(M)'!AJ396","v":1907.17298438989},{"$f":"'[2]EXT Comercio(M)'!AK396","v":913.21622451000007},{"$f":"'[2]EXT Comercio(M)'!AL396","v":2532.9},{"$f":"'[2]EXT Comercio(M)'!AM396","v":2257.41},{"$f":"'[2]EXT Comercio(M)'!AO396","v":11849.336715139889},{"$f":"'[2]EXT Comercio(M)'!AP396","v":14106.746715139885},null,null,{"$f":"'[2]EXT Comercio(M)'!$BS396","v":-4849.5871930875364},{"$f":"'[2]EXT Comercio(M)'!$BT396","v":-5708.5071930875365}]
[null,null,"Abril",{"$f":"'[2]REAL IPC(M)'!AD397","v":7.1515617414220367},{"$f":"'[2]REAL IPC(M)'!AE397","v":6.5459119390914964},{"$f":"'[2]REAL IPC(M)'!AF397","v":4.62},{"$f":"'[2]REAL IPC(M)'!AG397","v":8.3474337281443773},{"$f":"'[2]REAL IPC(M)'!AH397","v":9.9460482801112988},{"$f":"'[2]REAL IPC(M)'!AI397","v":9.6431169897207187},{"$f":"'[2]REAL IPC(M)'!AJ397","v":3.6504575158393164},null,null,{"$f":"'[2]REAL IMAE(M)'!AG397","v":5.0253175275093547},{"$f":"'[2]REAL IMAE(M)'!AH397","v":3.4873741527256543},{"$f":"'[2]REAL IMAE(M)'!AI397","v":4.5040251843495689},{"$f":"'[2]REAL IMAE(M)'!AJ397","v":5.0178847174941685},{"$f":"'[2]REAL IMAE(M)'!AK397","v":4.209419806793651},{"$f":"'[2]REAL IMAE(M)'!AL397","v":5.3685709020031718},{"$f":"'[2]REAL IMAE(M)'!AM397","v":8.0494787094793416},null,null,{"$f":"'[2]EXT ITCER(M)'!C397","v":94.736655007265497},{"$f":"'[2]EXT ITCER(M)'!D397","v":99.859942729473076},{"$f":"'[2]EXT ITCER(M)'!E397","v":54.230085255453048},{"$f":"'[2]EXT ITCER(M)'!F397","v":76.195564605681298},{"$f":"'[2]EXT ITCER(M)'!G397","v":110.39089583794581},{"$f":"'[2]EXT ITCER(M)'!H397","v":112.5824488259783},{"$f":"'[2]EXT ITCER(M)'!I397","v":101.4002713029122},null,null,{"$f":"'[2]EXT TC(M)'!J397","v":7.3936749319004065},{"$f":"'[2]EXT TC(M)'!K397","v":0},{"$f":"'[2]EXT TC(M)'!L397","v":-0.68461830256232536},{"$f":"'[2]EXT TC(M)'!M397","v":1.3473465843026524},{"$f":"'[2]EXT TC(M)'!N397","v":2.1089612096801802},{"$f":"'[2]EXT TC(M)'!O397","v":-3.2559932953969231},{"$f":"'[2]EXT TC(M)'!P397","v":0},null,null,{"$f":"'[2]EXT RIN(M)'!C397","v":6965.1},{"$f":"'[2]EXT RIN(M)'!D397","v":3419.2},{"$f":"'[2]EXT RIN(M)'!E397","v":20843.7},{"$f":"'[2]EXT RIN(M)'!F397","v":8524.2999999999993},{"$f":"'[2]EXT RIN(M)'!G397","v":4245.7095765260819},{"$f":"'[2]EXT RIN(M)'!H397","v":14410.348158283283},{"$f":"'[2]EXT RIN(M)'!I397","v":8721.9294583400006},null,null,{"$f":"'[2]EXT RIN(M)'!P397","v":67.103114936721667},{"$f":"'[2]EXT RIN(M)'!Q397","v":107.75083061608504},{"$f":"'[2]EXT RIN(M)'!R397","v":125.89446008381005},{"$f":"'[2]EXT RIN(M)'!S397","v":99.605043729523771},{"$f":"'[2]EXT RIN(M)'!T397","v":157.9182225614671},{"$f":"'[2]EXT RIN(M)'!U397","v":105.55536626003492},{"$f":"'[2]EXT RIN(M)'!V397","v":375.79365555418104},null,null,{"$f":"+'[2]MONE(M)CAPARD'!AE397","v":-3.9678019361788666},{"$f":"'[2]MONE(M)CAPARD'!AF397","v":-2.0422294009134654},{"$f":"'[2]MONE(M)CAPARD'!AG397","v":-0.68820493213534717},{"$f":"'[2]MONE(M)CAPARD'!AH397","v":-3.7817542946381999},{"$f":"'[2]MONE(M)CAPARD'!AI397","v":-4.2644548712296269},{"$f":"'[2]MONE(M)CAPARD'!AJ397","v":-4.7352876607908483},{"$f":"'[2]MONE(M)CAPARD'!AK397","v":-1.9492991775077892},null,null,{"$f":"'[2]MONE(M)CAPARD'!AL397","v":2.2767950799999999},{"$f":"'[2]MONE(M)CAPARD'!AM397","v":4.37},{"$f":"'[2]MONE(M)CAPARD'!AN397","v":2.5499999999999998},{"$f":"'[2]MONE(M)CAPARD'!AO397","v":2.75},{"$f":"'[2]MONE(M)CAPARD'!AP397","v":3.1131942149985998},{"$f":"'[2]MONE(M)CAPARD'!AQ397","v":0.73650000000000004},{"$f":"'[2]MONE(M)CAPARD'!AR397","v":1.63},null,null,{"$f":"'[2]MONE(M)CAPARD'!J397","v":2.4623423267922466},{"$f":"'[2]MONE(M)CAPARD'!K397","v":-0.59684311440782867},{"$f":"'[2]MONE(M)CAPARD'!L397","v":6.9871917415408138},{"$f":"'[2]MONE(M)CAPARD'!M397","v":6.0200468505986571},{"$f":"'[2]MONE(M)CAPARD'!N397","v":1.3564897800775433},{"$f":"'[2]MONE(M)CAPARD'!O397","v":0.67152688695297658},{"$f":"'[2]MONE(M)CAPARD'!P397","v":4.3882405172736494},null,null,{"$f":"'[2]MONE(M)CAPARD'!Q397","v":5.39},{"$f":"'[2]MONE(M)CAPARD'!R397","v":5.91},{"$f":"'[2]MONE(M)CAPARD'!S397","v":5.52},{"$f":"'[2]MONE(M)CAPARD'!T397","v":7.39},{"$f":"'[2]MONE(M)CAPARD'!U397","v":8.2960772140241108},{"$f":"'[2]MONE(M)CAPARD'!V397","v":3.6259999999999999},{"$f":"'[2]MONE(M)CAPARD'!W397","v":8.198888888888888},null,null,{"$f":"'[2]MONE(M)CAPARD'!AS397","v":4},{"$f":"'[2]MONE(M)CAPARD'!AT397","v":"n.a."},{"$f":"'[2]MONE(M)CAPARD'!AU397","v":1.75},{"$f":"'[2]MONE(M)CAPARD'!AV397","v":3},{"$f":"'[2]MONE(M)CAPARD'!AW397","v":4},{"$f":"'[2]MONE(M)CAPARD'!AX397","v":5.5},{"$f":"'[2]MONE(M)CAPARD'!AY397","v":"n.a."},null,null,{"$f":"+'Datos_Regional (M)'!CF390","v":4.9387488077288877},{"$f":"+'Datos_Regional (M)'!CG390","v":7.6513312458993399},{"$f":"+'Datos_Regional (M)'!CH390","v":12.80209741853704},{"$f":"+'Datos_Regional (M)'!CI390","v":16.311872870281263},{"$f":"+'Datos_Regional (M)'!CJ390","v":9.1753605745885647},{"$f":"+'Datos_Regional (M)'!CK390","v":12.783014710316642},{"$f":"+'Datos_Regional (M)'!CL390","v":2.8369878443728513},null,null,{"$f":"IF(EH202=\"\",\"\",+AVERAGE(EH191:EH202))","v":1248.9466208008332},{"$f":"IF(EI202=\"\",\"\",+AVERAGE(EI191:EI202))","v":562.1875},{"$f":"IF(EJ202=\"\",\"\",+AVERAGE(EJ191:EJ202))","v":1220.22427825},{"$f":"IF(EK202=\"\",\"\",+AVERAGE(EK191:EK202))","v":923.18818904208399},{"$f":"IF(EL202=\"\",\"\",+AVERAGE(EL191:EL202))","v":607.02904711500025},{"$f":"IF(EM202=\"\",\"\",+AVERAGE(EM191:EM202))","v":1093.8583333333333},{"$f":"IF(EN202=\"\",\"\",+AVERAGE(EN191:EN202))","v":1170.2},{"$f":"IF(EO202=\"\",\"\",+AVERAGE(EO191:EO202))","v":5655.4339685412497},{"$f":"IF(EP202=\"\",\"\",+AVERAGE(EP191:EP202))","v":6825.6339685412504},null,null,{"$f":"IF(ES202=\"\",\"\",+AVERAGE(ES191:ES202))","v":1649.5598149383338},{"$f":"IF(ET202=\"\",\"\",+AVERAGE(ET191:ET202))","v":1323.528333333333},{"$f":"IF(EU202=\"\",\"\",+AVERAGE(EU191:EU202))","v":2448.456620583333},{"$f":"IF(EV202=\"\",\"\",+AVERAGE(EV191:EV202))","v":1546.3383631075139},{"$f":"IF(EW202=\"\",\"\",+AVERAGE(EW191:EW202))","v":752.81363792750005},{"$f":"IF(EX202=\"\",\"\",+AVERAGE(EX191:EX202))","v":2217.1916666666671},{"$f":"IF(EY202=\"\",\"\",+AVERAGE(EY191:EY202))","v":1916.2283333333335},{"$f":"IF(EZ202=\"\",\"\",+AVERAGE(EZ191:EZ202))","v":9937.8884365566792},{"$f":"IF(FA202=\"\",\"\",+AVERAGE(FA191:FA202))","v":11854.116769890015},null,null,{"$f":"IF(FD202=\"\",\"\",+AVERAGE(FD191:FD202))","v":-4282.4544680154286},{"$f":"IF(FE202=\"\",\"\",+AVERAGE(FE191:FE202))","v":-5028.4828013487631},null,null,{"$f":"'[2]EXT Comercio(M)'!C397","v":1210.6896255300001},{"$f":"'[2]EXT Comercio(M)'!D397","v":566.83999999999969},{"$f":"'[2]EXT Comercio(M)'!E397","v":1309.4090689999998},{"$f":"'[2]EXT Comercio(M)'!F397","v":1045.0615340375239},{"$f":"'[2]EXT Comercio(M)'!G397","v":651.38907342000061},{"$f":"'[2]EXT Comercio(M)'!H397","v":1214.8999999999999},{"$f":"'[2]EXT Comercio(M)'!I397","v":1135.58},{"$f":"'[2]EXT Comercio(M)'!K397","v":5998.2893019875191},{"$f":"'[2]EXT Comercio(M)'!L397","v":7133.8693019875172},null,null,{"$f":"'[2]EXT Comercio(M)'!AG397","v":1245.5726074100007},{"$f":"'[2]EXT Comercio(M)'!AH397","v":1426.1299999999992},{"$f":"'[2]EXT Comercio(M)'!AI397","v":2701.8357999999998},{"$f":"'[2]EXT Comercio(M)'!AJ397","v":1625.1817835455333},{"$f":"'[2]EXT Comercio(M)'!AK397","v":799.27789589999998},{"$f":"'[2]EXT Comercio(M)'!AL397","v":2426.4},{"$f":"'[2]EXT Comercio(M)'!AM397","v":1894.4099999999999},{"$f":"'[2]EXT Comercio(M)'!AO397","v":10224.39808685553},{"$f":"'[2]EXT Comercio(M)'!AP397","v":12118.808086855533},null,null,{"$f":"'[2]EXT Comercio(M)'!$BS397","v":-4226.1087848680054},{"$f":"'[2]EXT Comercio(M)'!$BT397","v":-4984.9387848680035}]
[null,null,"Mayo ",{"$f":"'[2]REAL IPC(M)'!AD398","v":8.714147294619103},{"$f":"'[2]REAL IPC(M)'!AE398","v":7.4826684698767787},{"$f":"'[2]REAL IPC(M)'!AF398","v":5.8173588924387483},{"$f":"'[2]REAL IPC(M)'!AG398","v":9.0909090909090935},{"$f":"'[2]REAL IPC(M)'!AH398","v":10.610153942576776},{"$f":"'[2]REAL IPC(M)'!AI398","v":9.4725720799621911},{"$f":"'[2]REAL IPC(M)'!AJ398","v":4.2200679651442137},null,null,{"$f":"'[2]REAL IMAE(M)'!AG398","v":3.9882033828694041},{"$f":"'[2]REAL IMAE(M)'!AH398","v":3.049767254022278},{"$f":"'[2]REAL IMAE(M)'!AI398","v":4.2837333785454321},{"$f":"'[2]REAL IMAE(M)'!AJ398","v":4.6686428627757373},{"$f":"'[2]REAL IMAE(M)'!AK398","v":4.0784379350249909},{"$f":"'[2]REAL IMAE(M)'!AL398","v":5.2599789043990421},{"$f":"'[2]REAL IMAE(M)'!AM398","v":7.7086726939417938},null,null,{"$f":"'[2]EXT ITCER(M)'!C398","v":96.330577456348621},{"$f":"'[2]EXT ITCER(M)'!D398","v":99.871613058282307},{"$f":"'[2]EXT ITCER(M)'!E398","v":54.083047057093417},{"$f":"'[2]EXT ITCER(M)'!F398","v":76.344287363489855},{"$f":"'[2]EXT ITCER(M)'!G398","v":110.8603526614444},{"$f":"'[2]EXT ITCER(M)'!H398","v":113.2927759431836},{"$f":"'[2]EXT ITCER(M)'!I398","v":101.5645528697794},null,null,{"$f":"'[2]EXT TC(M)'!J398","v":9.3614009719369022},{"$f":"'[2]EXT TC(M)'!K398","v":0},{"$f":"'[2]EXT TC(M)'!L398","v":-0.5524983920113784},{"$f":"'[2]EXT TC(M)'!M398","v":1.5746737817152829},{"$f":"'[2]EXT TC(M)'!N398","v":2.1306384661782971},{"$f":"'[2]EXT TC(M)'!O398","v":-3.0509632535625704},{"$f":"'[2]EXT TC(M)'!P398","v":0},null,null,{"$f":"'[2]EXT RIN(M)'!C398","v":6618.7},{"$f":"'[2]EXT RIN(M)'!D398","v":3649.33},{"$f":"'[2]EXT RIN(M)'!E398","v":20986.7},{"$f":"'[2]EXT RIN(M)'!F398","v":8460},{"$f":"'[2]EXT RIN(M)'!G398","v":4284.2910583158855},{"$f":"'[2]EXT RIN(M)'!H398","v":14248.935253775322},{"$f":"'[2]EXT RIN(M)'!I398","v":8250.77309117},null,null,{"$f":"'[2]EXT RIN(M)'!P398","v":66.345928998466277},{"$f":"'[2]EXT RIN(M)'!Q398","v":117.03314923151224},{"$f":"'[2]EXT RIN(M)'!R398","v":127.57905880984701},{"$f":"'[2]EXT RIN(M)'!S398","v":100.80726808189016},{"$f":"'[2]EXT RIN(M)'!T398","v":163.55470158951778},{"$f":"'[2]EXT RIN(M)'!U398","v":112.58117017936233},{"$f":"'[2]EXT RIN(M)'!V398","v":365.20863394837198},null,null,{"$f":"+'[2]MONE(M)CAPARD'!AE398","v":-5.145739937101995},{"$f":"'[2]MONE(M)CAPARD'!AF398","v":-2.7843265453681099},{"$f":"'[2]MONE(M)CAPARD'!AG398","v":-1.8214014341426441},{"$f":"'[2]MONE(M)CAPARD'!AH398","v":-4.4833333333333361},{"$f":"'[2]MONE(M)CAPARD'!AI398","v":-5.0646575865610348},{"$f":"'[2]MONE(M)CAPARD'!AJ398","v":-3.9813370574490814},{"$f":"'[2]MONE(M)CAPARD'!AK398","v":-2.5139764503132738},null,null,{"$f":"'[2]MONE(M)CAPARD'!AL398","v":2.1165931599999999},{"$f":"'[2]MONE(M)CAPARD'!AM398","v":4.49},{"$f":"'[2]MONE(M)CAPARD'!AN398","v":2.57},{"$f":"'[2]MONE(M)CAPARD'!AO398","v":2.78},{"$f":"'[2]MONE(M)CAPARD'!AP398","v":3.71827991886832},{"$f":"'[2]MONE(M)CAPARD'!AQ398","v":0.89849999999999997},{"$f":"'[2]MONE(M)CAPARD'!AR398","v":1.6},null,null,{"$f":"'[2]MONE(M)CAPARD'!J398","v":1.0907988839457992},{"$f":"'[2]MONE(M)CAPARD'!K398","v":-1.2678029763083913},{"$f":"'[2]MONE(M)CAPARD'!L398","v":5.7860460435275032},{"$f":"'[2]MONE(M)CAPARD'!M398","v":5.1966666666666645},{"$f":"'[2]MONE(M)CAPARD'!N398","v":0.69505538345770546},{"$f":"'[2]MONE(M)CAPARD'!O398","v":1.7134227180372803},{"$f":"'[2]MONE(M)CAPARD'!P398","v":3.8134464474053482},null,null,{"$f":"'[2]MONE(M)CAPARD'!Q398","v":5.87},{"$f":"'[2]MONE(M)CAPARD'!R398","v":6.12},{"$f":"'[2]MONE(M)CAPARD'!S398","v":5.56},{"$f":"'[2]MONE(M)CAPARD'!T398","v":7.39},{"$f":"'[2]MONE(M)CAPARD'!U398","v":8.0532802725535095},{"$f":"'[2]MONE(M)CAPARD'!V398","v":3.8024},{"$f":"'[2]MONE(M)CAPARD'!W398","v":8.1944444444444446},null,null,{"$f":"'[2]MONE(M)CAPARD'!AS398","v":4},{"$f":"'[2]MONE(M)CAPARD'!AT398","v":"n.a."},{"$f":"'[2]MONE(M)CAPARD'!AU398","v":2},{"$f":"'[2]MONE(M)CAPARD'!AV398","v":3},{"$f":"'[2]MONE(M)CAPARD'!AW398","v":4},{"$f":"'[2]MONE(M)CAPARD'!AX398","v":5.5},{"$f":"'[2]MONE(M)CAPARD'!AY398","v":"n.a."},null,null,{"$f":"+'Datos_Regional (M)'!CF391","v":6.4147944413111446},{"$f":"+'Datos_Regional (M)'!CG391","v":7.7285725073892753},{"$f":"+'Datos_Regional (M)'!CH391","v":13.513473018668654},{"$f":"+'Datos_Regional (M)'!CI391","v":16.962518311636956},{"$f":"+'Datos_Regional (M)'!CJ391","v":10.919647369404917},{"$f":"+'Datos_Regional (M)'!CK391","v":13.264566338735207},{"$f":"+'Datos_Regional (M)'!CL391","v":2.5111089461608005},null,null,1237.7538080341665,571.02,1245.8164029166664,942.20808361018817,618.10784078666677,1106.6666666666667,1199.5708333333334,5721.5728020143551,6921.1436353476893,null,null,1674.3134255625002,1354.0466666666664,2502.6638518333334,1579.5371052491828,766.83610591916658,2272.608333333334,1957.2466666666667,10150.005488564184,12107.252155230848,null,null,-4428.4326865498269,-5186.1085198831606,null,null,{"$f":"'[2]EXT Comercio(M)'!C398","v":1144.5002591899997},{"$f":"'[2]EXT Comercio(M)'!D398","v":638.51000000000022},{"$f":"'[2]EXT Comercio(M)'!E398","v":1395.005496},{"$f":"'[2]EXT Comercio(M)'!F398","v":1135.81476476483},{"$f":"'[2]EXT Comercio(M)'!G398","v":702.31752041999994},{"$f":"'[2]EXT Comercio(M)'!H398","v":1215.5999999999999},{"$f":"'[2]EXT Comercio(M)'!I398","v":1230.2},{"$f":"'[2]EXT Comercio(M)'!K398","v":6231.7480403748341},{"$f":"'[2]EXT Comercio(M)'!L398","v":7461.9480403748385},null,null,{"$f":"'[2]EXT Comercio(M)'!AG398","v":1772.6427491699997},{"$f":"'[2]EXT Comercio(M)'!AH398","v":1505.9800000000005},{"$f":"'[2]EXT Comercio(M)'!AI398","v":2810.3867749999999},{"$f":"'[2]EXT Comercio(M)'!AJ398","v":1856.3560779014369},{"$f":"'[2]EXT Comercio(M)'!AK398","v":843.62054235000005},{"$f":"'[2]EXT Comercio(M)'!AL398","v":2620.1999999999998},{"$f":"'[2]EXT Comercio(M)'!AM398","v":2186.91},{"$f":"'[2]EXT Comercio(M)'!AO398","v":11409.186144421445},{"$f":"'[2]EXT Comercio(M)'!AP398","v":13596.096144421441},null,null,{"$f":"'[2]EXT Comercio(M)'!$BS398","v":-5177.4381040466105},{"$f":"'[2]EXT Comercio(M)'!$BT398","v":-6134.1481040466097}]
[null,null,"Junio",{"$f":"'[2]REAL IPC(M)'!AD399","v":10.055605676445079},{"$f":"'[2]REAL IPC(M)'!AE399","v":7.759211946994812},{"$f":"'[2]REAL IPC(M)'!AF399","v":7.5538134467180429},{"$f":"'[2]REAL IPC(M)'!AG399","v":10.216110019646358},{"$f":"'[2]REAL IPC(M)'!AH399","v":10.37048519913351},{"$f":"'[2]REAL IPC(M)'!AI399","v":9.4782888980982669},{"$f":"'[2]REAL IPC(M)'!AJ399","v":5.1984402104513991},null,null,{"$f":"'[2]REAL IMAE(M)'!AG399","v":3.3089616119824985},{"$f":"'[2]REAL IMAE(M)'!AH399","v":2.3603175502072196},{"$f":"'[2]REAL IMAE(M)'!AI399","v":4.1103672211821243},{"$f":"'[2]REAL IMAE(M)'!AJ399","v":4.3976954804384558},{"$f":"'[2]REAL IMAE(M)'!AK399","v":3.9596066068325824},{"$f":"'[2]REAL IMAE(M)'!AL399","v":5.3049749605730012},{"$f":"'[2]REAL IMAE(M)'!AM399","v":7.4441719427870163},null,null,{"$f":"'[2]EXT ITCER(M)'!C399","v":98.058672609222711},{"$f":"'[2]EXT ITCER(M)'!D399","v":100.2176204432695},{"$f":"'[2]EXT ITCER(M)'!E399","v":54.199001985626673},{"$f":"'[2]EXT ITCER(M)'!F399","v":76.300090037241532},{"$f":"'[2]EXT ITCER(M)'!G399","v":111.7766979660867},{"$f":"'[2]EXT ITCER(M)'!H399","v":113.2356435855832},{"$f":"'[2]EXT ITCER(M)'!I399","v":101.6317392697751},null,null,{"$f":"'[2]EXT TC(M)'!J399","v":11.60099405768853},{"$f":"'[2]EXT TC(M)'!K399","v":0},{"$f":"'[2]EXT TC(M)'!L399","v":-7.1251922182486065E-3},{"$f":"'[2]EXT TC(M)'!M399","v":1.7875869823380821},{"$f":"'[2]EXT TC(M)'!N399","v":2.1216024190599079},{"$f":"'[2]EXT TC(M)'!O399","v":-3.7722447458270802},{"$f":"'[2]EXT TC(M)'!P399","v":0},null,null,{"$f":"'[2]EXT RIN(M)'!C399","v":6197.3},{"$f":"'[2]EXT RIN(M)'!D399","v":3483.47},{"$f":"'[2]EXT RIN(M)'!E399","v":19875.599999999999},{"$f":"'[2]EXT RIN(M)'!F399","v":8352.5},{"$f":"'[2]EXT RIN(M)'!G399","v":4278.3910583158859},{"$f":"'[2]EXT RIN(M)'!H399","v":14455.381276348726},{"$f":"'[2]EXT RIN(M)'!I399","v":8187.8180585600003},null,null,{"$f":"'[2]EXT RIN(M)'!P399","v":62.535109739141923},{"$f":"'[2]EXT RIN(M)'!Q399","v":111.99809407084989},{"$f":"'[2]EXT RIN(M)'!R399","v":119.79528102643344},{"$f":"'[2]EXT RIN(M)'!S399","v":100.4403963264715},{"$f":"'[2]EXT RIN(M)'!T399","v":162.12988008038516},{"$f":"'[2]EXT RIN(M)'!U399","v":112.13173050502519},{"$f":"'[2]EXT RIN(M)'!V399","v":358.14424963633655},null,null,{"$f":"+'[2]MONE(M)CAPARD'!AE399","v":-5.6295230382536614},{"$f":"'[2]MONE(M)CAPARD'!AF399","v":-3.0709318370132155},{"$f":"'[2]MONE(M)CAPARD'!AG399","v":-3.4157909691766006},{"$f":"'[2]MONE(M)CAPARD'!AH399","v":-5.4947593582887642},{"$f":"'[2]MONE(M)CAPARD'!AI399","v":-4.2187008339017256},{"$f":"'[2]MONE(M)CAPARD'!AJ399","v":-3.8834082454974492},{"$f":"'[2]MONE(M)CAPARD'!AK399","v":-3.4396329481812122},null,null,{"$f":"'[2]MONE(M)CAPARD'!AL399","v":2.1967797199999999},{"$f":"'[2]MONE(M)CAPARD'!AM399","v":4.45},{"$f":"'[2]MONE(M)CAPARD'!AN399","v":2.64},{"$f":"'[2]MONE(M)CAPARD'!AO399","v":2.79},{"$f":"'[2]MONE(M)CAPARD'!AP399","v":3.3494404851629},{"$f":"'[2]MONE(M)CAPARD'!AQ399","v":0.95409999999999995},{"$f":"'[2]MONE(M)CAPARD'!AR399","v":1.58},null,null,{"$f":"'[2]MONE(M)CAPARD'!J399","v":-0.53916169267157832},{"$f":"'[2]MONE(M)CAPARD'!K399","v":-1.4655006458024245},{"$f":"'[2]MONE(M)CAPARD'!L399","v":4.1153227500154443},{"$f":"'[2]MONE(M)CAPARD'!M399","v":4.0319786096256758},{"$f":"'[2]MONE(M)CAPARD'!N399","v":1.5295013601768694},{"$f":"'[2]MONE(M)CAPARD'!O399","v":2.0171224122412217},{"$f":"'[2]MONE(M)CAPARD'!P399","v":2.8511236110784073},null,null,{"$f":"'[2]MONE(M)CAPARD'!Q399","v":5.74664091},{"$f":"'[2]MONE(M)CAPARD'!R399","v":6.18},{"$f":"'[2]MONE(M)CAPARD'!S399","v":5.52},{"$f":"'[2]MONE(M)CAPARD'!T399","v":7.48},{"$f":"'[2]MONE(M)CAPARD'!U399","v":8.3077221405215003},{"$f":"'[2]MONE(M)CAPARD'!V399","v":4.3262},{"$f":"'[2]MONE(M)CAPARD'!W399","v":8.1977777777777803},null,null,{"$f":"'[2]MONE(M)CAPARD'!AS399","v":5.5},{"$f":"'[2]MONE(M)CAPARD'!AT399","v":"n.a."},{"$f":"'[2]MONE(M)CAPARD'!AU399","v":2.25},{"$f":"'[2]MONE(M)CAPARD'!AV399","v":3},{"$f":"'[2]MONE(M)CAPARD'!AW399","v":5},{"$f":"'[2]MONE(M)CAPARD'!AX399","v":6.5},{"$f":"'[2]MONE(M)CAPARD'!AY399","v":"n.a."},null,null,{"$f":"+'Datos_Regional (M)'!CF392","v":7.4143217604868417},{"$f":"+'Datos_Regional (M)'!CG392","v":8.8942080467159244},{"$f":"+'Datos_Regional (M)'!CH392","v":14.236184421266863},{"$f":"+'Datos_Regional (M)'!CI392","v":17.365445629457653},{"$f":"+'Datos_Regional (M)'!CJ392","v":10.691639138999687},{"$f":"+'Datos_Regional (M)'!CK392","v":15.130524589302086},{"$f":"+'Datos_Regional (M)'!CL392","v":3.1690649081293598},null,null,1235.0877705374999,578.26,1270.1302534999998,966.0483577883582,627.53982854500009,1121.3083333333332,1210.7483333333334,5798.3745437041907,7009.1228770375237,null,null,1665.9261951991664,1376.8483333333331,2560.2438804999997,1623.1664614698323,784.82507515333327,2345.358333333334,2009.6808333333336,10356.368278988997,12366.049112322333,null,null,-4557.9937352848065,-5356.9262352848064,null,null,{"$f":"'[2]EXT Comercio(M)'!C399","v":1279.80483417},{"$f":"'[2]EXT Comercio(M)'!D399","v":625.88000000000011},{"$f":"'[2]EXT Comercio(M)'!E399","v":1427.866207},{"$f":"'[2]EXT Comercio(M)'!F399","v":1189.7024570227804},{"$f":"'[2]EXT Comercio(M)'!G399","v":720.95071196999993},{"$f":"'[2]EXT Comercio(M)'!H399","v":1229.8},{"$f":"'[2]EXT Comercio(M)'!I399","v":1335.85},{"$f":"'[2]EXT Comercio(M)'!K399","v":6474.0042101627769},{"$f":"'[2]EXT Comercio(M)'!L399","v":7809.8542101627754},null,null,{"$f":"'[2]EXT Comercio(M)'!AG399","v":1561.89661929},{"$f":"'[2]EXT Comercio(M)'!AH399","v":1522.71},{"$f":"'[2]EXT Comercio(M)'!AI399","v":2845.7603439999998},{"$f":"'[2]EXT Comercio(M)'!AJ399","v":1967.7071756988951},{"$f":"'[2]EXT Comercio(M)'!AK399","v":938.36738245999993},{"$f":"'[2]EXT Comercio(M)'!AL399","v":2966.9000000000005},{"$f":"'[2]EXT Comercio(M)'!AM399","v":2265.3599999999997},{"$f":"'[2]EXT Comercio(M)'!AO399","v":11803.341521448892},{"$f":"'[2]EXT Comercio(M)'!AP399","v":14068.7015214489},null,null,{"$f":"'[2]EXT Comercio(M)'!$BS399","v":-5329.3373112861118},{"$f":"'[2]EXT Comercio(M)'!$BT399","v":-6258.8473112861138}]
[null,null,"Julio",{"$f":"'[2]REAL IPC(M)'!AD400","v":11.480082805652875},{"$f":"'[2]REAL IPC(M)'!AE400","v":7.4207912352998173},{"$f":"'[2]REAL IPC(M)'!AF400","v":8.3565090716461157},{"$f":"'[2]REAL IPC(M)'!AG400","v":10.856183547845555},{"$f":"'[2]REAL IPC(M)'!AH400","v":11.457068246468802},{"$f":"'[2]REAL IPC(M)'!AI400","v":9.4349992671845193},{"$f":"'[2]REAL IPC(M)'!AJ400","v":3.5061049475205444},null,null,{"$f":"'[2]REAL IMAE(M)'!AG400","v":2.9271775099896575},{"$f":"'[2]REAL IMAE(M)'!AH400","v":2.6130015319076083},{"$f":"'[2]REAL IMAE(M)'!AI400","v":3.9418076801853155},{"$f":"'[2]REAL IMAE(M)'!AJ400","v":4.1005139155175412},{"$f":"'[2]REAL IMAE(M)'!AK400","v":3.6920313572145402},{"$f":"'[2]REAL IMAE(M)'!AL400","v":5.2493165490307145},{"$f":"'[2]REAL IMAE(M)'!AM400","v":7.3464604109778247},null,null,{"$f":"'[2]EXT ITCER(M)'!C400","v":95.891316382433658},{"$f":"'[2]EXT ITCER(M)'!D400","v":99.766819825667824},{"$f":"'[2]EXT ITCER(M)'!E400","v":53.594804897302502},{"$f":"'[2]EXT ITCER(M)'!F400","v":75.719633752691252},{"$f":"'[2]EXT ITCER(M)'!G400","v":110.516784497755},{"$f":"'[2]EXT ITCER(M)'!H400","v":112.0958002167587},{"$f":"'[2]EXT ITCER(M)'!I400","v":102.87537141434569},null,null,{"$f":"'[2]EXT TC(M)'!J400","v":10.082584269957241},{"$f":"'[2]EXT TC(M)'!K400","v":0},{"$f":"'[2]EXT TC(M)'!L400","v":-0.11699751250863523},{"$f":"'[2]EXT TC(M)'!M400","v":2.8057134466764824},{"$f":"'[2]EXT TC(M)'!N400","v":2.2027847792735478},{"$f":"'[2]EXT TC(M)'!O400","v":-4.3751898191955654},{"$f":"'[2]EXT TC(M)'!P400","v":0},null,null,{"$f":"'[2]EXT RIN(M)'!C400","v":6510.8},{"$f":"'[2]EXT RIN(M)'!D400","v":3270.3},{"$f":"'[2]EXT RIN(M)'!E400","v":20808.2},{"$f":"'[2]EXT RIN(M)'!F400","v":8377.7000000000007},{"$f":"'[2]EXT RIN(M)'!G400","v":4271.2910583158855},{"$f":"'[2]EXT RIN(M)'!H400","v":14170.969015291217},{"$f":"'[2]EXT RIN(M)'!I400","v":7287.2940332799999},null,null,{"$f":"'[2]EXT RIN(M)'!P400","v":62.280883606953886},{"$f":"'[2]EXT RIN(M)'!Q400","v":107.78822052040124},{"$f":"'[2]EXT RIN(M)'!R400","v":121.16753447117303},{"$f":"'[2]EXT RIN(M)'!S400","v":99.633162734843765},{"$f":"'[2]EXT RIN(M)'!T400","v":160.98691078086429},{"$f":"'[2]EXT RIN(M)'!U400","v":107.20063984359966},{"$f":"'[2]EXT RIN(M)'!V400","v":306.1308596141331},null,null,{"$f":"+'[2]MONE(M)CAPARD'!AE400","v":-6.1895207036058908},{"$f":"'[2]MONE(M)CAPARD'!AF400","v":-2.7283277302250242},{"$f":"'[2]MONE(M)CAPARD'!AG400","v":-4.1405072109508465},{"$f":"'[2]MONE(M)CAPARD'!AH400","v":-6.0584654215042937},{"$f":"'[2]MONE(M)CAPARD'!AI400","v":-5.5853383322973373},{"$f":"'[2]MONE(M)CAPARD'!AJ400","v":-1.6882160913382627},{"$f":"'[2]MONE(M)CAPARD'!AK400","v":-1.9091675302847739},null,null,{"$f":"'[2]MONE(M)CAPARD'!AL400","v":2.2126511500000001},{"$f":"'[2]MONE(M)CAPARD'!AM400","v":4.49},{"$f":"'[2]MONE(M)CAPARD'!AN400","v":2.64},{"$f":"'[2]MONE(M)CAPARD'!AO400","v":2.85},{"$f":"'[2]MONE(M)CAPARD'!AP400","v":2.9539397824487001},{"$f":"'[2]MONE(M)CAPARD'!AQ400","v":1.6045},{"$f":"'[2]MONE(M)CAPARD'!AR400","v":1.53},null,null,{"$f":"'[2]MONE(M)CAPARD'!J400","v":-0.14503613702435955},{"$f":"'[2]MONE(M)CAPARD'!K400","v":-1.1550754942606287},{"$f":"'[2]MONE(M)CAPARD'!L400","v":3.3440454656563419},{"$f":"'[2]MONE(M)CAPARD'!M400","v":3.3140383644623879},{"$f":"'[2]MONE(M)CAPARD'!N400","v":0.22089856202839292},{"$f":"'[2]MONE(M)CAPARD'!O400","v":2.180655867680052},{"$f":"'[2]MONE(M)CAPARD'!P400","v":4.5424111289291256},null,null,{"$f":"'[2]MONE(M)CAPARD'!Q400","v":6.1425720999999998},{"$f":"'[2]MONE(M)CAPARD'!R400","v":6.18},{"$f":"'[2]MONE(M)CAPARD'!S400","v":5.65},{"$f":"'[2]MONE(M)CAPARD'!T400","v":7.63},{"$f":"'[2]MONE(M)CAPARD'!U400","v":8.0281687875791707},{"$f":"'[2]MONE(M)CAPARD'!V400","v":4.3823999999999996},{"$f":"'[2]MONE(M)CAPARD'!W400","v":8.2077777777777783},null,null,{"$f":"'[2]MONE(M)CAPARD'!AS400","v":7.5},{"$f":"'[2]MONE(M)CAPARD'!AT400","v":"n.a."},{"$f":"'[2]MONE(M)CAPARD'!AU400","v":2.25},{"$f":"'[2]MONE(M)CAPARD'!AV400","v":3},{"$f":"'[2]MONE(M)CAPARD'!AW400","v":5},{"$f":"'[2]MONE(M)CAPARD'!AX400","v":7.25},{"$f":"'[2]MONE(M)CAPARD'!AY400","v":"n.a."},null,null,{"$f":"+'Datos_Regional (M)'!CF393","v":6.60035704554367},{"$f":"+'Datos_Regional (M)'!CG393","v":9.4715147909461006},{"$f":"+'Datos_Regional (M)'!CH393","v":14.292797610625163},{"$f":"+'Datos_Regional (M)'!CI393","v":18.371869910872164},{"$f":"+'Datos_Regional (M)'!CJ393","v":11.18444998728647},{"$f":"+'Datos_Regional (M)'!CK393","v":15.283668949309192},{"$f":"+'Datos_Regional (M)'!CL393","v":3.5333394706925203},null,null,1244.1364779224998,586.27083333333326,1287.6570212499998,978.86122329071725,631.65954593833351,1134.2250000000001,1210.7691666666667,5862.8101017348827,7073.5792684015496,null,null,1694.8422209733335,1390.810833333333,2596.937214333333,1645.6548316171393,796.54642016833316,2387.4416666666671,2110.6749999999997,10512.233187092139,12622.908187092142,null,null,-4649.4230853572544,-5549.3289186905886,null,null,{"$f":"'[2]EXT Comercio(M)'!C400","v":1344.8253721800006},{"$f":"'[2]EXT Comercio(M)'!D400","v":678.39999999999964},{"$f":"'[2]EXT Comercio(M)'!E400","v":1406.8212129999999},{"$f":"'[2]EXT Comercio(M)'!F400","v":1077.0452425288854},{"$f":"'[2]EXT Comercio(M)'!G400","v":671.04657379000014},{"$f":"'[2]EXT Comercio(M)'!H400","v":1211.3000000000002},{"$f":"'[2]EXT Comercio(M)'!I400","v":1085.3},{"$f":"'[2]EXT Comercio(M)'!K400","v":6389.4384014988827},{"$f":"'[2]EXT Comercio(M)'!L400","v":7474.7384014988857},null,null,{"$f":"'[2]EXT Comercio(M)'!AG400","v":1804.0504146300009},{"$f":"'[2]EXT Comercio(M)'!AH400","v":1481.5700000000015},{"$f":"'[2]EXT Comercio(M)'!AI400","v":2729.720006},{"$f":"'[2]EXT Comercio(M)'!AJ400","v":1678.3582977135623},{"$f":"'[2]EXT Comercio(M)'!AK400","v":880.60173036000003},{"$f":"'[2]EXT Comercio(M)'!AL400","v":2627.4999999999995},{"$f":"'[2]EXT Comercio(M)'!AM400","v":2904.21},{"$f":"'[2]EXT Comercio(M)'!AO400","v":11201.800448703565},{"$f":"'[2]EXT Comercio(M)'!AP400","v":14106.010448703557},null,null,{"$f":"'[2]EXT Comercio(M)'!$BS400","v":-4812.3620472046787},{"$f":"'[2]EXT Comercio(M)'!$BT400","v":-6631.2720472046785}]
[null,null,"Agosto",{"$f":"'[2]REAL IPC(M)'!AD401","v":12.128481541421147},{"$f":"'[2]REAL IPC(M)'!AE401","v":7.656564267247906},{"$f":"'[2]REAL IPC(M)'!AF401","v":8.8746448159650964},{"$f":"'[2]REAL IPC(M)'!AG401","v":10.395763656633225},{"$f":"'[2]REAL IPC(M)'!AH401","v":12.15017802844431},{"$f":"'[2]REAL IPC(M)'!AI401","v":8.7959723370804923},{"$f":"'[2]REAL IPC(M)'!AJ401","v":2.0670705704578984},null,null,{"$f":"'[2]REAL IMAE(M)'!AG401","v":2.8286906123091695},{"$f":"'[2]REAL IMAE(M)'!AH401","v":3.3601735220706761},{"$f":"'[2]REAL IMAE(M)'!AI401","v":3.831600341347575},{"$f":"'[2]REAL IMAE(M)'!AJ401","v":3.7141017871029858},{"$f":"'[2]REAL IMAE(M)'!AK401","v":3.2789882212010228},{"$f":"'[2]REAL IMAE(M)'!AL401","v":4.9922094562184665},{"$f":"'[2]REAL IMAE(M)'!AM401","v":7.3357968997691492},null,null,{"$f":"'[2]EXT ITCER(M)'!C401","v":92.181123197839156},{"$f":"'[2]EXT ITCER(M)'!D401","v":99.551137457129371},{"$f":"'[2]EXT ITCER(M)'!E401","v":53.31983017808863},{"$f":"'[2]EXT ITCER(M)'!F401","v":75.996765223537679},{"$f":"'[2]EXT ITCER(M)'!G401","v":109.95120527678711},{"$f":"'[2]EXT ITCER(M)'!H401","v":110.26874225562101},{"$f":"'[2]EXT ITCER(M)'!I401","v":104.5326964767565},null,null,{"$f":"'[2]EXT TC(M)'!J401","v":6.2098146352067563},{"$f":"'[2]EXT TC(M)'!K401","v":0},{"$f":"'[2]EXT TC(M)'!L401","v":-9.9480061242408657E-2},{"$f":"'[2]EXT TC(M)'!M401","v":2.9345570734176407},{"$f":"'[2]EXT TC(M)'!N401","v":2.1125086392557062},{"$f":"'[2]EXT TC(M)'!O401","v":-5.9046300801512146},{"$f":"'[2]EXT TC(M)'!P401","v":0},null,null,{"$f":"'[2]EXT RIN(M)'!C401","v":7581.1},{"$f":"'[2]EXT RIN(M)'!D401","v":3325.02},{"$f":"'[2]EXT RIN(M)'!E401","v":21106.3},{"$f":"'[2]EXT RIN(M)'!F401","v":8330.5},{"$f":"'[2]EXT RIN(M)'!G401","v":4270.1586608836806},{"$f":"'[2]EXT RIN(M)'!H401","v":14019.467975687932},{"$f":"'[2]EXT RIN(M)'!I401","v":6491.9764159699998},null,null,{"$f":"'[2]EXT RIN(M)'!P401","v":72.027185113392449},{"$f":"'[2]EXT RIN(M)'!Q401","v":108.65485445728945},{"$f":"'[2]EXT RIN(M)'!R401","v":126.86829540336149},{"$f":"'[2]EXT RIN(M)'!S401","v":98.458098506455002},{"$f":"'[2]EXT RIN(M)'!T401","v":158.38277963009369},{"$f":"'[2]EXT RIN(M)'!U401","v":107.64235305373762},{"$f":"'[2]EXT RIN(M)'!V401","v":279.01977073696224},null,null,{"$f":"+'[2]MONE(M)CAPARD'!AE401","v":-6.0274440967297949},{"$f":"'[2]MONE(M)CAPARD'!AF401","v":-2.8577581759070512},{"$f":"'[2]MONE(M)CAPARD'!AG401","v":-4.5875188152464075},{"$f":"'[2]MONE(M)CAPARD'!AH401","v":-5.6847866700328229},{"$f":"'[2]MONE(M)CAPARD'!AI401","v":-6.329324351205603},{"$f":"'[2]MONE(M)CAPARD'!AJ401","v":-0.77656582218213022},{"$f":"'[2]MONE(M)CAPARD'!AK401","v":-0.584978648961748},null,null,{"$f":"'[2]MONE(M)CAPARD'!AL401","v":2.5960554500000002},{"$f":"'[2]MONE(M)CAPARD'!AM401","v":4.58},{"$f":"'[2]MONE(M)CAPARD'!AN401","v":2.7},{"$f":"'[2]MONE(M)CAPARD'!AO401","v":2.92},{"$f":"'[2]MONE(M)CAPARD'!AP401","v":3.2285575949976102},{"$f":"'[2]MONE(M)CAPARD'!AQ401","v":1.9713000000000001},{"$f":"'[2]MONE(M)CAPARD'!AR401","v":1.47},null,null,{"$f":"'[2]MONE(M)CAPARD'!J401","v":-0.40075819742118574},{"$f":"'[2]MONE(M)CAPARD'!K401","v":-1.1950634650146588},{"$f":"'[2]MONE(M)CAPARD'!L401","v":2.8889694100509953},{"$f":"'[2]MONE(M)CAPARD'!M401","v":3.5094067154758872},{"$f":"'[2]MONE(M)CAPARD'!N401","v":-0.97497805260247672},{"$f":"'[2]MONE(M)CAPARD'!O401","v":3.437193107970395},{"$f":"'[2]MONE(M)CAPARD'!P401","v":6.0130792817746785},null,null,{"$f":"'[2]MONE(M)CAPARD'!Q401","v":6.3972207399999999},{"$f":"'[2]MONE(M)CAPARD'!R401","v":6.37},{"$f":"'[2]MONE(M)CAPARD'!S401","v":5.71},{"$f":"'[2]MONE(M)CAPARD'!T401","v":7.73},{"$f":"'[2]MONE(M)CAPARD'!U401","v":8.8775887954350896},{"$f":"'[2]MONE(M)CAPARD'!V401","v":4.7065999999999999},{"$f":"'[2]MONE(M)CAPARD'!W401","v":8.2044444444444427},null,null,{"$f":"'[2]MONE(M)CAPARD'!AS401","v":7.5},{"$f":"'[2]MONE(M)CAPARD'!AT401","v":"n.a."},{"$f":"'[2]MONE(M)CAPARD'!AU401","v":2.75},{"$f":"'[2]MONE(M)CAPARD'!AV401","v":3},{"$f":"'[2]MONE(M)CAPARD'!AW401","v":5.5},{"$f":"'[2]MONE(M)CAPARD'!AX401","v":7.75},{"$f":"'[2]MONE(M)CAPARD'!AY401","v":"n.a."},null,null,{"$f":"+'Datos_Regional (M)'!CF394","v":5.6074365809769544},{"$f":"+'Datos_Regional (M)'!CG394","v":9.3960734814991564},{"$f":"+'Datos_Regional (M)'!CH394","v":14.720805236899581},{"$f":"+'Datos_Regional (M)'!CI394","v":18.930518525494989},{"$f":"+'Datos_Regional (M)'!CJ394","v":12.959921474265347},{"$f":"+'Datos_Regional (M)'!CK394","v":15.895228945805972},{"$f":"+'Datos_Regional (M)'!CL394","v":3.6546363576749119},null,null,1262.9298960166668,592.70916666666665,1300.3985837499997,995.18678793927995,641.18390972250006,1145.2583333333332,1228.7508333333333,5937.6666774284458,7166.4175107617802,null,null,1735.4980544974997,1416.22,2647.9482298333332,1681.5812197601988,807.01667144166652,2466.4916666666668,2309.0558333333333,10754.755842199365,13063.811675532701,null,null,-4817.0891647709186,-5897.3941647709189,null,null,{"$f":"'[2]EXT Comercio(M)'!C401","v":1403.2924443799998},{"$f":"'[2]EXT Comercio(M)'!D401","v":576},{"$f":"'[2]EXT Comercio(M)'!E401","v":1286.3987500000001},{"$f":"'[2]EXT Comercio(M)'!F401","v":1078.7257000490895},{"$f":"'[2]EXT Comercio(M)'!G401","v":692.63419828000019},{"$f":"'[2]EXT Comercio(M)'!H401","v":1218.3},{"$f":"'[2]EXT Comercio(M)'!I401","v":1380.92},{"$f":"'[2]EXT Comercio(M)'!K401","v":6255.3510927090974},{"$f":"'[2]EXT Comercio(M)'!L401","v":7636.2710927090957},null,null,{"$f":"'[2]EXT Comercio(M)'!AG401","v":2022.5493801999996},{"$f":"'[2]EXT Comercio(M)'!AH401","v":1471.75},{"$f":"'[2]EXT Comercio(M)'!AI401","v":2929.5321859999999},{"$f":"'[2]EXT Comercio(M)'!AJ401","v":1934.7794291822968},{"$f":"'[2]EXT Comercio(M)'!AK401","v":879.61622646000012},{"$f":"'[2]EXT Comercio(M)'!AL401","v":2863.2999999999997},{"$f":"'[2]EXT Comercio(M)'!AM401","v":4191.97},{"$f":"'[2]EXT Comercio(M)'!AO401","v":12101.527221842305},{"$f":"'[2]EXT Comercio(M)'!AP401","v":16293.497221842306},null,null,{"$f":"'[2]EXT Comercio(M)'!$BS401","v":-5846.176129133215},{"$f":"'[2]EXT Comercio(M)'!$BT401","v":-8657.2261291332179}]
[null,null,"Setiembre",{"$f":"'[2]REAL IPC(M)'!AD402","v":10.365152526270192},{"$f":"'[2]REAL IPC(M)'!AE402","v":7.4874913668829146},{"$f":"'[2]REAL IPC(M)'!AF402","v":9.033959775799536},{"$f":"'[2]REAL IPC(M)'!AG402","v":10.044395116537194},{"$f":"'[2]REAL IPC(M)'!AH402","v":11.520678170317302},{"$f":"'[2]REAL IPC(M)'!AI402","v":8.6262269869272146},{"$f":"'[2]REAL IPC(M)'!AJ402","v":1.9328976679478718},null,null,{"$f":"'[2]REAL IMAE(M)'!AG402","v":3.0199074802247243},{"$f":"'[2]REAL IMAE(M)'!AH402","v":3.2978731567940676},{"$f":"'[2]REAL IMAE(M)'!AI402","v":3.7759656327122202},{"$f":"'[2]REAL IMAE(M)'!AJ402","v":3.2831583097793833},{"$f":"'[2]REAL IMAE(M)'!AK402","v":2.9411339485317809},{"$f":"'[2]REAL IMAE(M)'!AL402","v":4.5135753004655799},{"$f":"'[2]REAL IMAE(M)'!AM402","v":7.4441097387231991},null,null,{"$f":"'[2]EXT ITCER(M)'!C402","v":91.038728859516539},{"$f":"'[2]EXT ITCER(M)'!D402","v":99.711894013183155},{"$f":"'[2]EXT ITCER(M)'!E402","v":53.88116032742208},{"$f":"'[2]EXT ITCER(M)'!F402","v":76.623993131015368},{"$f":"'[2]EXT ITCER(M)'!G402","v":110.4565336915217},{"$f":"'[2]EXT ITCER(M)'!H402","v":109.5833889561041},{"$f":"'[2]EXT ITCER(M)'!I402","v":104.9440621238529},null,null,{"$f":"'[2]EXT TC(M)'!J402","v":2.7714189476213527},{"$f":"'[2]EXT TC(M)'!K402","v":0},{"$f":"'[2]EXT TC(M)'!L402","v":0.98189318443750628},{"$f":"'[2]EXT TC(M)'!M402","v":2.2462394365025911},{"$f":"'[2]EXT TC(M)'!N402","v":1.9841307275654558},{"$f":"'[2]EXT TC(M)'!O402","v":-5.9474766913888599},{"$f":"'[2]EXT TC(M)'!P402","v":0},null,null,{"$f":"'[2]EXT RIN(M)'!C402","v":7566.2},{"$f":"'[2]EXT RIN(M)'!D402","v":2941.12},{"$f":"'[2]EXT RIN(M)'!E402","v":20427.5},{"$f":"'[2]EXT RIN(M)'!F402","v":8209.2999999999993},{"$f":"'[2]EXT RIN(M)'!G402","v":4185.7227974147372},{"$f":"'[2]EXT RIN(M)'!H402","v":13806.192399658843},{"$f":"'[2]EXT RIN(M)'!I402","v":5783.3744746499997},null,null,{"$f":"'[2]EXT RIN(M)'!P402","v":67.637259818916235},{"$f":"'[2]EXT RIN(M)'!Q402","v":100.94883225398117},{"$f":"'[2]EXT RIN(M)'!R402","v":125.36572030820174},{"$f":"'[2]EXT RIN(M)'!S402","v":99.887907289128435},{"$f":"'[2]EXT RIN(M)'!T402","v":155.38896345472978},{"$f":"'[2]EXT RIN(M)'!U402","v":103.25345593582395},{"$f":"'[2]EXT RIN(M)'!V402","v":246.11044564155034},null,null,{"$f":"+'[2]MONE(M)CAPARD'!AE402","v":-4.0911034170821736},{"$f":"'[2]MONE(M)CAPARD'!AF402","v":-2.5933169817578845},{"$f":"'[2]MONE(M)CAPARD'!AG402","v":-4.7269307529482898},{"$f":"'[2]MONE(M)CAPARD'!AH402","v":-5.3745537065053064},{"$f":"'[2]MONE(M)CAPARD'!AI402","v":-5.0989015098922073},{"$f":"'[2]MONE(M)CAPARD'!AJ402","v":-0.38897326975930469},{"$f":"'[2]MONE(M)CAPARD'!AK402","v":-0.63070675184977765},null,null,{"$f":"'[2]MONE(M)CAPARD'!AL402","v":3.1565608799999998},{"$f":"'[2]MONE(M)CAPARD'!AM402","v":4.7},{"$f":"'[2]MONE(M)CAPARD'!AN402","v":2.81},{"$f":"'[2]MONE(M)CAPARD'!AO402","v":2.96},{"$f":"'[2]MONE(M)CAPARD'!AP402","v":3.7427499037541501},{"$f":"'[2]MONE(M)CAPARD'!AQ402","v":2.3603000000000001},{"$f":"'[2]MONE(M)CAPARD'!AR402","v":1.29},null,null,{"$f":"'[2]MONE(M)CAPARD'!J402","v":0.95505243240516002},{"$f":"'[2]MONE(M)CAPARD'!K402","v":-0.71402854148234429},{"$f":"'[2]MONE(M)CAPARD'!L402","v":2.6652615663743595},{"$f":"'[2]MONE(M)CAPARD'!M402","v":3.8217347453353385},{"$f":"'[2]MONE(M)CAPARD'!N402","v":-0.23738248487726596},{"$f":"'[2]MONE(M)CAPARD'!O402","v":4.7078621387523976},{"$f":"'[2]MONE(M)CAPARD'!P402","v":6.1646133313981943},null,null,{"$f":"'[2]MONE(M)CAPARD'!Q402","v":7.2580660300000002},{"$f":"'[2]MONE(M)CAPARD'!R402","v":6.72},{"$f":"'[2]MONE(M)CAPARD'!S402","v":5.74},{"$f":"'[2]MONE(M)CAPARD'!T402","v":7.83},{"$f":"'[2]MONE(M)CAPARD'!U402","v":9.1572369410209298},{"$f":"'[2]MONE(M)CAPARD'!V402","v":5.2624000000000004},{"$f":"'[2]MONE(M)CAPARD'!W402","v":8.216666666666665},null,null,{"$f":"'[2]MONE(M)CAPARD'!AS402","v":8.5},{"$f":"'[2]MONE(M)CAPARD'!AT402","v":"n.a."},{"$f":"'[2]MONE(M)CAPARD'!AU402","v":3},{"$f":"'[2]MONE(M)CAPARD'!AV402","v":3},{"$f":"'[2]MONE(M)CAPARD'!AW402","v":6},{"$f":"'[2]MONE(M)CAPARD'!AX402","v":8},{"$f":"'[2]MONE(M)CAPARD'!AY402","v":"n.a."},null,null,{"$f":"+'Datos_Regional (M)'!CF395","v":4.6665005579953567},{"$f":"+'Datos_Regional (M)'!CG395","v":9.4198681417274379},{"$f":"+'Datos_Regional (M)'!CH395","v":15.756902400226625},{"$f":"+'Datos_Regional (M)'!CI395","v":18.640574843539138},{"$f":"+'Datos_Regional (M)'!CJ395","v":14.602582918961948},{"$f":"+'Datos_Regional (M)'!CK395","v":16.580961237644743},{"$f":"+'Datos_Regional (M)'!CL395","v":3.837797097530693},null,null,1278.2561315725,595.55749999999989,1300.9058273333333,1009.5163376196305,645.93365071500023,1145.7083333333333,1256.8566666666668,5975.8777805737964,7232.7344472404648,null,null,1760.5358480949997,1427.7933333333331,2681.46625275,1707.266092757621,816.80442079249997,2518.25,2363.1941666666667,10912.115947728455,13275.310114395121,null,null,-4936.2381671546564,-6042.5756671546578,null,null,{"$f":"'[2]EXT Comercio(M)'!C402","v":1411.8256895799996},{"$f":"'[2]EXT Comercio(M)'!D402","v":584.61999999999989},{"$f":"'[2]EXT Comercio(M)'!E402","v":1194.4869229999999},{"$f":"'[2]EXT Comercio(M)'!F402","v":1042.1714087636733},{"$f":"'[2]EXT Comercio(M)'!G402","v":590.54558231999999},{"$f":"'[2]EXT Comercio(M)'!H402","v":1076.4000000000001},{"$f":"'[2]EXT Comercio(M)'!I402","v":1553.19},{"$f":"'[2]EXT Comercio(M)'!K402","v":5900.0496036636687},{"$f":"'[2]EXT Comercio(M)'!L402","v":7453.2396036636637},null,null,{"$f":"'[2]EXT Comercio(M)'!AG402","v":1811.7400768700004},{"$f":"'[2]EXT Comercio(M)'!AH402","v":1398.3399999999983},{"$f":"'[2]EXT Comercio(M)'!AI402","v":2678.3162750000001},{"$f":"'[2]EXT Comercio(M)'!AJ402","v":1811.6904560149446},{"$f":"'[2]EXT Comercio(M)'!AK402","v":831.30058252000003},{"$f":"'[2]EXT Comercio(M)'!AL402","v":2679.3999999999996},{"$f":"'[2]EXT Comercio(M)'!AM402","v":2586.0100000000002},{"$f":"'[2]EXT Comercio(M)'!AO402","v":11210.787390404934},{"$f":"'[2]EXT Comercio(M)'!AP402","v":13796.797390404929},null,null,{"$f":"'[2]EXT Comercio(M)'!$BS402","v":-5310.7377867412579},{"$f":"'[2]EXT Comercio(M)'!$BT402","v":-6343.5577867412576}]
[null,null,"Octubre",{"$f":"'[2]REAL IPC(M)'!AD403","v":8.9913986093612799},{"$f":"'[2]REAL IPC(M)'!AE403","v":7.469905587657613},{"$f":"'[2]REAL IPC(M)'!AF403","v":9.7043363994743945},{"$f":"'[2]REAL IPC(M)'!AG403","v":10.184929616340042},{"$f":"'[2]REAL IPC(M)'!AH403","v":12.16251482760082},{"$f":"'[2]REAL IPC(M)'!AI403","v":8.2350508791485399},{"$f":"'[2]REAL IPC(M)'!AJ403","v":1.6681274482273407},null,null,{"$f":"'[2]REAL IMAE(M)'!AG403","v":3.4110146753003425},{"$f":"'[2]REAL IMAE(M)'!AH403","v":2.9790280950937413},{"$f":"'[2]REAL IMAE(M)'!AI403","v":3.689199338368998},{"$f":"'[2]REAL IMAE(M)'!AJ403","v":2.9130161243178074},{"$f":"'[2]REAL IMAE(M)'!AK403","v":2.8183118416179718},{"$f":"'[2]REAL IMAE(M)'!AL403","v":3.8700084213900539},{"$f":"'[2]REAL IMAE(M)'!AM403","v":7.6121490097585509},null,null,{"$f":"'[2]EXT ITCER(M)'!C403","v":89.774060698747405},{"$f":"'[2]EXT ITCER(M)'!D403","v":99.495277267902665},{"$f":"'[2]EXT ITCER(M)'!E403","v":53.941155744317733},{"$f":"'[2]EXT ITCER(M)'!F403","v":76.757171207480695},{"$f":"'[2]EXT ITCER(M)'!G403","v":109.7055959236453},{"$f":"'[2]EXT ITCER(M)'!H403","v":110.84739178594251},{"$f":"'[2]EXT ITCER(M)'!I403","v":105.4138426512843},null,null,{"$f":"'[2]EXT TC(M)'!J403","v":-0.7102610658704489},{"$f":"'[2]EXT TC(M)'!K403","v":0},{"$f":"'[2]EXT TC(M)'!L403","v":1.5816266344836398},{"$f":"'[2]EXT TC(M)'!M403","v":2.4275211961611798},{"$f":"'[2]EXT TC(M)'!N403","v":1.8683530037752498},{"$f":"'[2]EXT TC(M)'!O403","v":-4.6117919699727006},{"$f":"'[2]EXT TC(M)'!P403","v":0},null,null,{"$f":"'[2]EXT RIN(M)'!C403","v":7753.7},{"$f":"'[2]EXT RIN(M)'!D403","v":2494.77},{"$f":"'[2]EXT RIN(M)'!E403","v":20138},{"$f":"'[2]EXT RIN(M)'!F403","v":8191.7},{"$f":"'[2]EXT RIN(M)'!G403","v":4150.1700268170243},{"$f":"'[2]EXT RIN(M)'!H403","v":13545.289951439536},{"$f":"'[2]EXT RIN(M)'!I403","v":5453.2210912299997},null,null,{"$f":"'[2]EXT RIN(M)'!P403","v":68.398140298611978},{"$f":"'[2]EXT RIN(M)'!Q403","v":99.398692039642015},{"$f":"'[2]EXT RIN(M)'!R403","v":122.82561140122058},{"$f":"'[2]EXT RIN(M)'!S403","v":97.99182936245569},{"$f":"'[2]EXT RIN(M)'!T403","v":157.69112406041589},{"$f":"'[2]EXT RIN(M)'!U403","v":105.2541193083776},{"$f":"'[2]EXT RIN(M)'!V403","v":238.81393408944675},null,null,{"$f":"+'[2]MONE(M)CAPARD'!AE403","v":-2.7262689049538138},{"$f":"'[2]MONE(M)CAPARD'!AF403","v":-2.6145976143672325},{"$f":"'[2]MONE(M)CAPARD'!AG403","v":-5.2908905791459704},{"$f":"'[2]MONE(M)CAPARD'!AH403","v":-5.4498647294589126},{"$f":"'[2]MONE(M)CAPARD'!AI403","v":-6.4114056051510158},{"$f":"'[2]MONE(M)CAPARD'!AJ403","v":8.7632536854780591E-2},{"$f":"'[2]MONE(M)CAPARD'!AK403","v":-0.18504073297026274},null,null,{"$f":"'[2]MONE(M)CAPARD'!AL403","v":3.5520441200000001},{"$f":"'[2]MONE(M)CAPARD'!AM403","v":4.66},{"$f":"'[2]MONE(M)CAPARD'!AN403","v":2.82},{"$f":"'[2]MONE(M)CAPARD'!AO403","v":2.99},{"$f":"'[2]MONE(M)CAPARD'!AP403","v":3.5454259839456101},{"$f":"'[2]MONE(M)CAPARD'!AQ403","v":2.9544000000000001},{"$f":"'[2]MONE(M)CAPARD'!AR403","v":1.48},null,null,{"$f":"'[2]MONE(M)CAPARD'!J403","v":3.3434503613441389},{"$f":"'[2]MONE(M)CAPARD'!K403","v":-0.75361151871210597},{"$f":"'[2]MONE(M)CAPARD'!L403","v":1.9467449242378696},{"$f":"'[2]MONE(M)CAPARD'!M403","v":3.689316132264536},{"$f":"'[2]MONE(M)CAPARD'!N403","v":-0.61450034528060549},{"$f":"'[2]MONE(M)CAPARD'!O403","v":4.9237738399568105},{"$f":"'[2]MONE(M)CAPARD'!P403","v":6.4531152538463905},null,null,{"$f":"'[2]MONE(M)CAPARD'!Q403","v":7.0313500199999996},{"$f":"'[2]MONE(M)CAPARD'!R403","v":6.66},{"$f":"'[2]MONE(M)CAPARD'!S403","v":5.85},{"$f":"'[2]MONE(M)CAPARD'!T403","v":8},{"$f":"'[2]MONE(M)CAPARD'!U403","v":8.7265107147453609},{"$f":"'[2]MONE(M)CAPARD'!V403","v":5.9505999999999997},{"$f":"'[2]MONE(M)CAPARD'!W403","v":8.2288888888888874},null,null,{"$f":"'[2]MONE(M)CAPARD'!AS403","v":9},{"$f":"'[2]MONE(M)CAPARD'!AT403","v":"n.a."},{"$f":"'[2]MONE(M)CAPARD'!AU403","v":3},{"$f":"'[2]MONE(M)CAPARD'!AV403","v":3},{"$f":"'[2]MONE(M)CAPARD'!AW403","v":6},{"$f":"'[2]MONE(M)CAPARD'!AX403","v":8.25},{"$f":"'[2]MONE(M)CAPARD'!AY403","v":"n.a."},null,null,{"$f":"+'Datos_Regional (M)'!CF396","v":3.8043574040356187},{"$f":"+'Datos_Regional (M)'!CG396","v":9.5272820731083563},{"$f":"+'Datos_Regional (M)'!CH396","v":15.537810014928311},{"$f":"+'Datos_Regional (M)'!CI396","v":18.340155860864506},{"$f":"+'Datos_Regional (M)'!CJ396","v":15.206822279052412},{"$f":"+'Datos_Regional (M)'!CK396","v":17.643964474734354},{"$f":"+'Datos_Regional (M)'!CL396","v":3.9317469412625039},null,null,{"$f":"IF(EH208=\"\",\"\",+AVERAGE(EH197:EH208))","v":1283.0703567549999},596.25999999999988,1304.6560304166665,1015.4936792108032,645.55938338083354,1148.3583333333333,1265.6858333333332,5993.397783096636,7259.0836164299699,null,null,{"$f":"IF(ES208=\"\",\"\",+AVERAGE(ES197:ES208))","v":1776.9371881624995},{"$f":"IF(ET208=\"\",\"\",+AVERAGE(ET197:ET208))","v":1421.310833333333},{"$f":"IF(EU208=\"\",\"\",+AVERAGE(EU197:EU208))","v":2690.0502500833331},{"$f":"IF(EV208=\"\",\"\",+AVERAGE(EV197:EV208))","v":1718.8791269117876},{"$f":"IF(EW208=\"\",\"\",+AVERAGE(EW197:EW208))","v":823.74664914083326},{"$f":"IF(EX208=\"\",\"\",+AVERAGE(EX197:EX208))","v":2542.7499999999995},{"$f":"IF(EY208=\"\",\"\",+AVERAGE(EY197:EY208))","v":2430.959166666667},{"$f":"IF(EZ208=\"\",\"\",+AVERAGE(EZ197:EZ208))","v":10973.674047631788},{"$f":"IF(FA208=\"\",\"\",+AVERAGE(FA197:FA208))","v":13404.633214298456},null,null,{"$f":"IF(FD208=\"\",\"\",+AVERAGE(FD197:FD208))","v":-4980.2762645351513},-6145.5495978684858,null,null,{"$f":"'[2]EXT Comercio(M)'!C403","v":1359.3939295599994},{"$f":"'[2]EXT Comercio(M)'!D403","v":560.65999999999985},{"$f":"'[2]EXT Comercio(M)'!E403","v":1164.602437},{"$f":"'[2]EXT Comercio(M)'!F403","v":884.45894218690796},{"$f":"'[2]EXT Comercio(M)'!G403","v":576.65530528000022},{"$f":"'[2]EXT Comercio(M)'!H403","v":1085.5999999999999},{"$f":"'[2]EXT Comercio(M)'!I403","v":1356.57},{"$f":"'[2]EXT Comercio(M)'!K403","v":5631.370614026906},{"$f":"'[2]EXT Comercio(M)'!L403","v":6987.940614026913},null,null,{"$f":"'[2]EXT Comercio(M)'!AG403","v":1951.7226995899996},{"$f":"'[2]EXT Comercio(M)'!AH403","v":1405.0899999999983},{"$f":"'[2]EXT Comercio(M)'!AI403","v":2611.2079680000002},{"$f":"'[2]EXT Comercio(M)'!AJ403","v":1671.9122478705285},{"$f":"'[2]EXT Comercio(M)'!AK403","v":834.88800402999982},{"$f":"'[2]EXT Comercio(M)'!AL403","v":2633.2999999999997},{"$f":"'[2]EXT Comercio(M)'!AM403","v":2716.65},{"$f":"'[2]EXT Comercio(M)'!AO403","v":11108.120919490539},{"$f":"'[2]EXT Comercio(M)'!AP403","v":13824.770919490547},null,null,{"$f":"'[2]EXT Comercio(M)'!$BS403","v":-5476.7503054636327},{"$f":"'[2]EXT Comercio(M)'!$BT403","v":-6836.8303054636344}]
[null,null,"Noviembre",{"$f":"'[2]REAL IPC(M)'!AD404","v":8.2550374901029944},{"$f":"'[2]REAL IPC(M)'!AE404","v":7.3219242220205203},{"$f":"'[2]REAL IPC(M)'!AF404","v":9.1669935922584038},{"$f":"'[2]REAL IPC(M)'!AG404","v":10.438356164383569},{"$f":"'[2]REAL IPC(M)'!AH404","v":11.376040139543315},{"$f":"'[2]REAL IPC(M)'!AI404","v":7.577926986526748},{"$f":"'[2]REAL IPC(M)'!AJ404","v":1.4924106881943473},null,null,{"$f":"'[2]REAL IMAE(M)'!AG404","v":3.8107168493014334},{"$f":"'[2]REAL IMAE(M)'!AH404","v":2.8854174714725906},{"$f":"'[2]REAL IMAE(M)'!AI404","v":3.6038345815700707},{"$f":"'[2]REAL IMAE(M)'!AJ404","v":2.6074329836284869},{"$f":"'[2]REAL IMAE(M)'!AK404","v":2.8228151610544052},{"$f":"'[2]REAL IMAE(M)'!AL404","v":3.1142910966104944},{"$f":"'[2]REAL IMAE(M)'!AM404","v":7.7788473577952901},null,null,{"$f":"'[2]EXT ITCER(M)'!C404","v":87.871230227460813},{"$f":"'[2]EXT ITCER(M)'!D404","v":99.019676804689638},{"$f":"'[2]EXT ITCER(M)'!E404","v":53.747823245930583},{"$f":"'[2]EXT ITCER(M)'!F404","v":76.159015427487233},{"$f":"'[2]EXT ITCER(M)'!G404","v":109.3455044127202},{"$f":"'[2]EXT ITCER(M)'!H404","v":111.6557966398739},{"$f":"'[2]EXT ITCER(M)'!I404","v":105.4955773143481},null,null,{"$f":"'[2]EXT TC(M)'!J404","v":-4.0723228048710443},{"$f":"'[2]EXT TC(M)'!K404","v":0},{"$f":"'[2]EXT TC(M)'!L404","v":1.0231071027567178},{"$f":"'[2]EXT TC(M)'!M404","v":2.3303583903442533},{"$f":"'[2]EXT TC(M)'!N404","v":1.8892255319847191},{"$f":"'[2]EXT TC(M)'!O404","v":-3.990676436570892},{"$f":"'[2]EXT TC(M)'!P404","v":0},null,null,{"$f":"'[2]EXT RIN(M)'!C404","v":8278.5},{"$f":"'[2]EXT RIN(M)'!D404","v":2579.88},{"$f":"'[2]EXT RIN(M)'!E404","v":20398.8},{"$f":"'[2]EXT RIN(M)'!F404","v":8072.6},{"$f":"'[2]EXT RIN(M)'!G404","v":4206.9700268170245},{"$f":"'[2]EXT RIN(M)'!H404","v":13084.44065257582},{"$f":"'[2]EXT RIN(M)'!I404","v":7217.7167280499998},null,null,{"$f":"'[2]EXT RIN(M)'!P404","v":71.559085696807401},{"$f":"'[2]EXT RIN(M)'!Q404","v":103.57203649759286},{"$f":"'[2]EXT RIN(M)'!R404","v":123.10519582314505},{"$f":"'[2]EXT RIN(M)'!S404","v":98.828009912659681},{"$f":"'[2]EXT RIN(M)'!T404","v":155.72639963650673},{"$f":"'[2]EXT RIN(M)'!U404","v":104.95590881981296},{"$f":"'[2]EXT RIN(M)'!V404","v":304.77546479018912},null,null,{"$f":"+'[2]MONE(M)CAPARD'!AE404","v":-1.861379882933591},{"$f":"'[2]MONE(M)CAPARD'!AF404","v":-2.4150929465805309},{"$f":"'[2]MONE(M)CAPARD'!AG404","v":-4.7972316722568298},{"$f":"'[2]MONE(M)CAPARD'!AH404","v":-5.5129000248077462},{"$f":"'[2]MONE(M)CAPARD'!AI404","v":-3.460876288509577},{"$f":"'[2]MONE(M)CAPARD'!AJ404","v":0.61729485971264586},{"$f":"'[2]MONE(M)CAPARD'!AK404","v":0.12571315524037904},null,null,{"$f":"'[2]MONE(M)CAPARD'!AL404","v":3.0658938999999998},{"$f":"'[2]MONE(M)CAPARD'!AM404","v":4.7300000000000004},{"$f":"'[2]MONE(M)CAPARD'!AN404","v":2.87},{"$f":"'[2]MONE(M)CAPARD'!AO404","v":3.12},{"$f":"'[2]MONE(M)CAPARD'!AP404","v":3.2891093610554698},{"$f":"'[2]MONE(M)CAPARD'!AQ404","v":3.5152000000000001},{"$f":"'[2]MONE(M)CAPARD'!AR404","v":1.62},null,null,{"$f":"'[2]MONE(M)CAPARD'!J404","v":4.6605497230170556},{"$f":"'[2]MONE(M)CAPARD'!K404","v":-0.50495201791147815},{"$f":"'[2]MONE(M)CAPARD'!L404","v":2.439387877335887},{"$f":"'[2]MONE(M)CAPARD'!M404","v":3.4966509550979845},{"$f":"'[2]MONE(M)CAPARD'!N404","v":0.15097084826512966},{"$f":"'[2]MONE(M)CAPARD'!O404","v":5.713321668898697},{"$f":"'[2]MONE(M)CAPARD'!P404","v":6.669169031477252},null,null,{"$f":"'[2]MONE(M)CAPARD'!Q404","v":7.5680860900000004},{"$f":"'[2]MONE(M)CAPARD'!R404","v":6.78},{"$f":"'[2]MONE(M)CAPARD'!S404","v":6.03},{"$f":"'[2]MONE(M)CAPARD'!T404","v":8.1199999999999992},{"$f":"'[2]MONE(M)CAPARD'!U404","v":9.8181820968314906},{"$f":"'[2]MONE(M)CAPARD'!V404","v":6.2938000000000001},{"$f":"'[2]MONE(M)CAPARD'!W404","v":8.2611111111111128},null,null,{"$f":"'[2]MONE(M)CAPARD'!AS404","v":9},{"$f":"'[2]MONE(M)CAPARD'!AT404","v":"n.a."},{"$f":"'[2]MONE(M)CAPARD'!AU404","v":3},{"$f":"'[2]MONE(M)CAPARD'!AV404","v":3},{"$f":"'[2]MONE(M)CAPARD'!AW404","v":6.5},{"$f":"'[2]MONE(M)CAPARD'!AX404","v":8.5},{"$f":"'[2]MONE(M)CAPARD'!AY404","v":"n.a."},null,null,{"$f":"+'Datos_Regional (M)'!CF397","v":3.3427290544426391},{"$f":"+'Datos_Regional (M)'!CG397","v":9.5887119139633761},{"$f":"+'Datos_Regional (M)'!CH397","v":14.399476705629755},{"$f":"+'Datos_Regional (M)'!CI397","v":18.222530142758544},{"$f":"+'Datos_Regional (M)'!CJ397","v":14.825213712907125},{"$f":"+'Datos_Regional (M)'!CK397","v":17.45970719452361},{"$f":"+'Datos_Regional (M)'!CL397","v":4.5740853956512728},null,null,{"$f":"IF(EH209=\"\",\"\",+AVERAGE(EH198:EH209))","v":1299.3160388266667},{"$f":"IF(EI209=\"\",\"\",+AVERAGE(EI198:EI209))","v":595.62833333333333},{"$f":"IF(EJ209=\"\",\"\",+AVERAGE(EJ198:EJ209))","v":1307.856117},{"$f":"IF(EK209=\"\",\"\",+AVERAGE(EK198:EK209))","v":1023.6147462494031},{"$f":"IF(EL209=\"\",\"\",+AVERAGE(EL198:EL209))","v":645.69363639583355},{"$f":"IF(EM209=\"\",\"\",+AVERAGE(EM198:EM209))","v":1149.1499999999999},{"$f":"IF(EN209=\"\",\"\",+AVERAGE(EN198:EN209))","v":1300.5233333333333},{"$f":"IF(EO209=\"\",\"\",+AVERAGE(EO198:EO209))","v":6021.2588718052357},{"$f":"IF(EP209=\"\",\"\",+AVERAGE(EP198:EP209))","v":7321.7822051385692},null,null,1788.631193035,1425.9133333333332,2687.7978264999997,1721.2270588682547,834.06574043833325,2548.7249999999999,2441.2708333333335,11006.360152174922,13447.630985508253,null,null,-4985.1012803696849,-6125.8487803696853,null,null,{"$f":"'[2]EXT Comercio(M)'!C404","v":1387.7363375599998},{"$f":"'[2]EXT Comercio(M)'!D404","v":530.57000000000062},{"$f":"'[2]EXT Comercio(M)'!E404","v":1150.3010389999999},{"$f":"'[2]EXT Comercio(M)'!F404","v":955.98979741950518},{"$f":"'[2]EXT Comercio(M)'!G404","v":570.71086454000022},{"$f":"'[2]EXT Comercio(M)'!H404","v":1139.3999999999999},{"$f":"'[2]EXT Comercio(M)'!I404","v":1618.78},{"$f":"'[2]EXT Comercio(M)'!K404","v":5734.7080385195077},{"$f":"'[2]EXT Comercio(M)'!L404","v":7353.4880385194992},null,null,{"$f":"'[2]EXT Comercio(M)'!AG404","v":1986.8826625400002},{"$f":"'[2]EXT Comercio(M)'!AH404","v":1425.9000000000015},{"$f":"'[2]EXT Comercio(M)'!AI404","v":2631.2709170000003},{"$f":"'[2]EXT Comercio(M)'!AJ404","v":1650.6552737458255},{"$f":"'[2]EXT Comercio(M)'!AK404","v":874.88972902},{"$f":"'[2]EXT Comercio(M)'!AL404","v":2568},{"$f":"'[2]EXT Comercio(M)'!AM404","v":2026.25},{"$f":"'[2]EXT Comercio(M)'!AO404","v":11137.598582305814},{"$f":"'[2]EXT Comercio(M)'!AP404","v":13163.8485823058},null,null,{"$f":"'[2]EXT Comercio(M)'!$BS404","v":-5402.8905437863141},{"$f":"'[2]EXT Comercio(M)'!$BT404","v":-5810.3605437863152}]
[null,null,"Diciembre ",{"$f":"'[2]REAL IPC(M)'!AD405","v":7.8771537614796845},{"$f":"'[2]REAL IPC(M)'!AE405","v":7.3196837730270286},{"$f":"'[2]REAL IPC(M)'!AF405","v":9.2362924281984302},{"$f":"'[2]REAL IPC(M)'!AG405","v":9.7964721845318916},{"$f":"'[2]REAL IPC(M)'!AH405","v":11.59344790889287},{"$f":"'[2]REAL IPC(M)'!AI405","v":7.8269161155893761},{"$f":"'[2]REAL IPC(M)'!AJ405","v":2.0747162882265466},null,null,{"$f":"'[2]REAL IMAE(M)'!AG405","v":4.1438133557117673},{"$f":"'[2]REAL IMAE(M)'!AH405","v":2.7019430577507797},{"$f":"'[2]REAL IMAE(M)'!AI405","v":3.6118240820220233},{"$f":"'[2]REAL IMAE(M)'!AJ405","v":2.3673631150622216},{"$f":"'[2]REAL IMAE(M)'!AK405","v":2.9241120827109097},{"$f":"'[2]REAL IMAE(M)'!AL405","v":2.455069250640769},{"$f":"'[2]REAL IMAE(M)'!AM405","v":7.990039067627416},null,null,{"$f":"'[2]EXT ITCER(M)'!C405","v":85.10248148238729},{"$f":"'[2]EXT ITCER(M)'!D405","v":99.041029852951354},{"$f":"'[2]EXT ITCER(M)'!E405","v":54.06432163700255},{"$f":"'[2]EXT ITCER(M)'!F405","v":75.797524839031055},{"$f":"'[2]EXT ITCER(M)'!G405","v":107.9389787788196},{"$f":"'[2]EXT ITCER(M)'!H405","v":112.8434452113067},{"$f":"'[2]EXT ITCER(M)'!I405","v":105.4593294753623},null,null,{"$f":"'[2]EXT TC(M)'!J405","v":-7.1413611607311234},{"$f":"'[2]EXT TC(M)'!K405","v":0},{"$f":"'[2]EXT TC(M)'!L405","v":1.7899169912372381},{"$f":"'[2]EXT TC(M)'!M405","v":1.5126857888078291},{"$f":"'[2]EXT TC(M)'!N405","v":1.9084155543987655},{"$f":"'[2]EXT TC(M)'!O405","v":-2.7949212047620313},{"$f":"'[2]EXT TC(M)'!P405","v":0},null,null,{"$f":"'[2]EXT RIN(M)'!C405","v":8550},{"$f":"'[2]EXT RIN(M)'!D405","v":2440.44},{"$f":"'[2]EXT RIN(M)'!E405","v":20019.8},{"$f":"'[2]EXT RIN(M)'!F405","v":8421.5},{"$f":"'[2]EXT RIN(M)'!G405","v":4356.3700268170242},{"$f":"'[2]EXT RIN(M)'!H405","v":14436.139070117662},{"$f":"'[2]EXT RIN(M)'!I405","v":6291.2471588600001},null,null,{"$f":"'[2]EXT RIN(M)'!P405","v":71.514444890292239},{"$f":"'[2]EXT RIN(M)'!Q405","v":97.103997536231361},{"$f":"'[2]EXT RIN(M)'!R405","v":111.27264090630722},{"$f":"'[2]EXT RIN(M)'!S405","v":98.762835868881155},{"$f":"'[2]EXT RIN(M)'!T405","v":154.99727459459777},{"$f":"'[2]EXT RIN(M)'!U405","v":109.16431848139555},{"$f":"'[2]EXT RIN(M)'!V405","v":256.47389453804868},null,null,{"$f":"+'[2]MONE(M)CAPARD'!AE405","v":-1.4156415035349166},{"$f":"'[2]MONE(M)CAPARD'!AF405","v":-2.2453325320295634},{"$f":"'[2]MONE(M)CAPARD'!AG405","v":-4.8393187929489061},{"$f":"'[2]MONE(M)CAPARD'!AH405","v":-4.7692535837864609},{"$f":"'[2]MONE(M)CAPARD'!AI405","v":-5.471789503155474},{"$f":"'[2]MONE(M)CAPARD'!AJ405","v":1.2765679794969258},{"$f":"'[2]MONE(M)CAPARD'!AK405","v":-0.38669349529416608},null,null,{"$f":"'[2]MONE(M)CAPARD'!AL405","v":3.0330637299999998},{"$f":"'[2]MONE(M)CAPARD'!AM405","v":4.91},{"$f":"'[2]MONE(M)CAPARD'!AN405","v":2.93},{"$f":"'[2]MONE(M)CAPARD'!AO405","v":3.29},{"$f":"'[2]MONE(M)CAPARD'!AP405","v":3.43386962532339},{"$f":"'[2]MONE(M)CAPARD'!AQ405","v":3.7141999999999999},{"$f":"'[2]MONE(M)CAPARD'!AR405","v":1.68},null,null,{"$f":"'[2]MONE(M)CAPARD'!J405","v":4.2182554598925668},{"$f":"'[2]MONE(M)CAPARD'!K405","v":-0.26992604044537388},{"$f":"'[2]MONE(M)CAPARD'!L405","v":2.3744009560800747},{"$f":"'[2]MONE(M)CAPARD'!M405","v":4.1108131487889219},{"$f":"'[2]MONE(M)CAPARD'!N405","v":-0.3393509599223114},{"$f":"'[2]MONE(M)CAPARD'!O405","v":5.2598962195401597},{"$f":"'[2]MONE(M)CAPARD'!P405","v":6.0943978034318862},null,null,{"$f":"'[2]MONE(M)CAPARD'!Q405","v":7.9006532800000002},{"$f":"'[2]MONE(M)CAPARD'!R405","v":7.03},{"$f":"'[2]MONE(M)CAPARD'!S405","v":6.15},{"$f":"'[2]MONE(M)CAPARD'!T405","v":8.17},{"$f":"'[2]MONE(M)CAPARD'!U405","v":9.4992102025555898},{"$f":"'[2]MONE(M)CAPARD'!V405","v":7.1904000000000003},{"$f":"'[2]MONE(M)CAPARD'!W405","v":8.2955555555555556},null,null,{"$f":"'[2]MONE(M)CAPARD'!AS405","v":9},{"$f":"'[2]MONE(M)CAPARD'!AT405","v":"n.a."},{"$f":"'[2]MONE(M)CAPARD'!AU405","v":3.75},{"$f":"'[2]MONE(M)CAPARD'!AV405","v":3},{"$f":"'[2]MONE(M)CAPARD'!AW405","v":7},{"$f":"'[2]MONE(M)CAPARD'!AX405","v":8.5},{"$f":"'[2]MONE(M)CAPARD'!AY405","v":"n.a."},null,null,{"$f":"+'Datos_Regional (M)'!CF398","v":2.7474991816536676},{"$f":"+'Datos_Regional (M)'!CG398","v":10.589228566345543},{"$f":"+'Datos_Regional (M)'!CH398","v":13.691776522362286},{"$f":"+'Datos_Regional (M)'!CI398","v":20.107100310733685},{"$f":"+'Datos_Regional (M)'!CJ398","v":15.629633794228969},{"$f":"+'Datos_Regional (M)'!CK398","v":16.824215712540269},{"$f":"+'Datos_Regional (M)'!CL398","v":3.90547126121088},null,null,1310.2679087050001,592.92583333333334,1304.5254515833333,1020.5749452077574,644.23493673000019,1148.075,1288.8900000000001,6020.6040755594249,7309.4940755594243,null,null,1783.0843037466668,1425.6674999999998,2676.9763474166666,1724.9502064883318,843.72233420916655,2561.9083333333333,2437.4458333333337,11016.309025194167,13453.7548585275,null,null,-4995.7049496347399,-6144.2607829680737,null,null,{"$f":"'[2]EXT Comercio(M)'!C405","v":1333.9740894400011},{"$f":"'[2]EXT Comercio(M)'!D405","v":477.90000000000055},{"$f":"'[2]EXT Comercio(M)'!E405","v":1270.532015},{"$f":"'[2]EXT Comercio(M)'!F405","v":782.39966656960542},{"$f":"'[2]EXT Comercio(M)'!G405","v":564.91924706999998},{"$f":"'[2]EXT Comercio(M)'!H405","v":1043.4999999999998},{"$f":"'[2]EXT Comercio(M)'!I405","v":1200.0899999999999},{"$f":"'[2]EXT Comercio(M)'!K405","v":5473.2250180796109},{"$f":"'[2]EXT Comercio(M)'!L405","v":6673.3150180796074},null,null,{"$f":"'[2]EXT Comercio(M)'!AG405","v":1786.4537605200003},{"$f":"'[2]EXT Comercio(M)'!AH405","v":1267.1999999999989},{"$f":"'[2]EXT Comercio(M)'!AI405","v":2419.842251},{"$f":"'[2]EXT Comercio(M)'!AJ405","v":1564.851296432108},{"$f":"'[2]EXT Comercio(M)'!AK405","v":805.49060525999994},{"$f":"'[2]EXT Comercio(M)'!AL405","v":2409.1},{"$f":"'[2]EXT Comercio(M)'!AM405","v":2253.88},{"$f":"'[2]EXT Comercio(M)'!AO405","v":10252.937913212125},{"$f":"'[2]EXT Comercio(M)'!AP405","v":12506.817913212144},null,null,{"$f":"'[2]EXT Comercio(M)'!$BS405","v":-4779.7128951324994},{"$f":"'[2]EXT Comercio(M)'!$BT405","v":-5833.502895132493}]
[null,2023,"Enero",{"$f":"'[2]REAL IPC(M)'!AD406","v":7.6518468278071055},{"$f":"'[2]REAL IPC(M)'!AE406","v":7.0308122763064791},{"$f":"'[2]REAL IPC(M)'!AF406","v":9.69047929998694},{"$f":"'[2]REAL IPC(M)'!AG406","v":8.9276139410187696},{"$f":"'[2]REAL IPC(M)'!AH406","v":10.924831636038141},{"$f":"'[2]REAL IPC(M)'!AI406","v":7.2433290867524143},{"$f":"'[2]REAL IPC(M)'!AJ406","v":2.7126070654214645},null,null,{"$f":"'[2]REAL IMAE(M)'!AG406","v":4.4873578315151601},{"$f":"'[2]REAL IMAE(M)'!AH406","v":2.2561384329555416},{"$f":"'[2]REAL IMAE(M)'!AI406","v":3.7701504002317261},{"$f":"'[2]REAL IMAE(M)'!AJ406","v":2.4089167155980933},{"$f":"'[2]REAL IMAE(M)'!AK406","v":3.0946894275941066},{"$f":"'[2]REAL IMAE(M)'!AL406","v":1.9375142236007843},{"$f":"'[2]REAL IMAE(M)'!AM406","v":8.2570377199658243},null,null,{"$f":"'[2]EXT ITCER(M)'!C406","v":82.976551091166755},{"$f":"'[2]EXT ITCER(M)'!D406","v":99.211492003617764},{"$f":"'[2]EXT ITCER(M)'!E406","v":54.002736377458191},{"$f":"'[2]EXT ITCER(M)'!F406","v":75.793408080559033},{"$f":"'[2]EXT ITCER(M)'!G406","v":108.5868409379826},{"$f":"'[2]EXT ITCER(M)'!H406","v":115.0176938107379},{"$f":"'[2]EXT ITCER(M)'!I406","v":105.014712092002},null,null,{"$f":"'[2]EXT TC(M)'!J406","v":-9.8750761730652759},{"$f":"'[2]EXT TC(M)'!K406","v":0},{"$f":"'[2]EXT TC(M)'!L406","v":1.8859965472436593},{"$f":"'[2]EXT TC(M)'!M406","v":0.64182660350414067},{"$f":"'[2]EXT TC(M)'!N406","v":1.8041012032023092},{"$f":"'[2]EXT TC(M)'!O406","v":-2.0123774424588037},{"$f":"'[2]EXT TC(M)'!P406","v":0},null,null,{"$f":"'[2]EXT RIN(M)'!C406","v":8281.6},{"$f":"'[2]EXT RIN(M)'!D406","v":2734.72},{"$f":"'[2]EXT RIN(M)'!E406","v":20139.400000000001},{"$f":"'[2]EXT RIN(M)'!F406","v":8340.2999999999993},{"$f":"'[2]EXT RIN(M)'!G406","v":4482.9700268170245},{"$f":"'[2]EXT RIN(M)'!H406","v":14597.13365870754},{"$f":"'[2]EXT RIN(M)'!I406","v":6174.5807020000002},null,null,{"$f":"'[2]EXT RIN(M)'!P406","v":64.368911221390874},{"$f":"'[2]EXT RIN(M)'!Q406","v":105.19897721506911},{"$f":"'[2]EXT RIN(M)'!R406","v":114.31116428612616},{"$f":"'[2]EXT RIN(M)'!S406","v":101.30708120102673},{"$f":"'[2]EXT RIN(M)'!T406","v":160.20091829993262},{"$f":"'[2]EXT RIN(M)'!U406","v":109.18303982240883},{"$f":"'[2]EXT RIN(M)'!V406","v":264.37141599938911},null,null,{"$f":"+'[2]MONE(M)CAPARD'!AE406","v":-1.0513956436042704},{"$f":"'[2]MONE(M)CAPARD'!AF406","v":-1.9067521145574409},{"$f":"'[2]MONE(M)CAPARD'!AG406","v":-5.1968770091677579},{"$f":"'[2]MONE(M)CAPARD'!AH406","v":-3.8352202805808537},{"$f":"'[2]MONE(M)CAPARD'!AI406","v":-4.7036878585390811},{"$f":"'[2]MONE(M)CAPARD'!AJ406","v":2.7607040348893022},{"$f":"'[2]MONE(M)CAPARD'!AK406","v":-0.38223843853111295},null,null,{"$f":"'[2]MONE(M)CAPARD'!AL406","v":3.36509861},{"$f":"'[2]MONE(M)CAPARD'!AM406","v":4.99},{"$f":"'[2]MONE(M)CAPARD'!AN406","v":3},{"$f":"'[2]MONE(M)CAPARD'!AO406","v":3.44},{"$f":"'[2]MONE(M)CAPARD'!AP406","v":3.3231930970466199},{"$f":"'[2]MONE(M)CAPARD'!AQ406","v":4.1661000000000001},{"$f":"'[2]MONE(M)CAPARD'!AR406","v":2.3199999999999998},null,null,{"$f":"'[2]MONE(M)CAPARD'!J406","v":5.6230497948403855},{"$f":"'[2]MONE(M)CAPARD'!K406","v":7.3985913036979808E-2},{"$f":"'[2]MONE(M)CAPARD'!L406","v":2.005206572210978},{"$f":"'[2]MONE(M)CAPARD'!M406","v":4.8127245877430438},{"$f":"'[2]MONE(M)CAPARD'!N406","v":1.1092688753821991},{"$f":"'[2]MONE(M)CAPARD'!O406","v":6.2715984019918141},{"$f":"'[2]MONE(M)CAPARD'!P406","v":5.4690393857889426},null,null,{"$f":"'[2]MONE(M)CAPARD'!Q406","v":8.1399626400000002},{"$f":"'[2]MONE(M)CAPARD'!R406","v":7.11},{"$f":"'[2]MONE(M)CAPARD'!S406","v":6.25},{"$f":"'[2]MONE(M)CAPARD'!T406","v":8.26},{"$f":"'[2]MONE(M)CAPARD'!U406","v":8.6730656194197309},{"$f":"'[2]MONE(M)CAPARD'!V406","v":7.1843000000000004},{"$f":"'[2]MONE(M)CAPARD'!W406","v":8.33},null,null,{"$f":"'[2]MONE(M)CAPARD'!AS406","v":9},{"$f":"'[2]MONE(M)CAPARD'!AT406","v":"n.a."},{"$f":"'[2]MONE(M)CAPARD'!AU406","v":4.25},{"$f":"'[2]MONE(M)CAPARD'!AV406","v":3},{"$f":"'[2]MONE(M)CAPARD'!AW406","v":7},{"$f":"'[2]MONE(M)CAPARD'!AX406","v":8.5},{"$f":"'[2]MONE(M)CAPARD'!AY406","v":"n.a."},null,null,{"$f":"+'Datos_Regional (M)'!CF399","v":-0.24459642732401754},{"$f":"+'Datos_Regional (M)'!CG399","v":10.669528742703793},{"$f":"+'Datos_Regional (M)'!CH399","v":13.762187449597585},{"$f":"+'Datos_Regional (M)'!CI399","v":19.244556406180614},{"$f":"+'Datos_Regional (M)'!CJ399","v":18.38553859532577},{"$f":"+'Datos_Regional (M)'!CK399","v":15.4549583953834},{"$f":"+'Datos_Regional (M)'!CL399","v":3.6241496783000038},null,null,{"$f":"IF(EH211=\"\",\"\",+AVERAGE(EH200:EH211))","v":1323.0996127041665},{"$f":"IF(EI211=\"\",\"\",+AVERAGE(EI200:EI211))","v":588.23083333333341},{"$f":"IF(EJ211=\"\",\"\",+AVERAGE(EJ200:EJ211))","v":1299.8507848333334},{"$f":"IF(EK211=\"\",\"\",+AVERAGE(EK200:EK211))","v":1016.1947540514797},{"$f":"IF(EL211=\"\",\"\",+AVERAGE(EL200:EL211))","v":645.85130695833357},{"$f":"IF(EM211=\"\",\"\",+AVERAGE(EM200:EM211))","v":1151.7666666666667},{"$f":"IF(EN211=\"\",\"\",+AVERAGE(EN200:EN211))","v":1331.1925000000001},{"$f":"IF(EO211=\"\",\"\",+AVERAGE(EO200:EO211))","v":6024.9939585473139},{"$f":"IF(EP211=\"\",\"\",+AVERAGE(EP200:EP211))","v":7356.1864585473122},null,null,{"$f":"IF(ES211=\"\",\"\",+AVERAGE(ES200:ES211))","v":1796.9186962008334},{"$f":"IF(ET211=\"\",\"\",+AVERAGE(ET200:ET211))","v":1422.1666666666667},{"$f":"IF(EU211=\"\",\"\",+AVERAGE(EU200:EU211))","v":2681.1299416666666},{"$f":"IF(EV211=\"\",\"\",+AVERAGE(EV200:EV211))","v":1727.5537001110024},{"$f":"IF(EW211=\"\",\"\",+AVERAGE(EW200:EW211))","v":836.21320671249987},{"$f":"IF(EX211=\"\",\"\",+AVERAGE(EX200:EX211))","v":2568.833333333333},{"$f":"IF(EY211=\"\",\"\",+AVERAGE(EY200:EY211))","v":2448.6941666666671},{"$f":"IF(EZ211=\"\",\"\",+AVERAGE(EZ200:EZ211))","v":11032.815544691004},{"$f":"IF(FA211=\"\",\"\",+AVERAGE(FA200:FA211))","v":13481.50971135767},null,null,{"$f":"IF(FD211=\"\",\"\",+AVERAGE(FD200:FD211))","v":-5007.8215861436893},{"$f":"IF(FE211=\"\",\"\",+AVERAGE(FE200:FE211))","v":-6125.3232528103554},null,null,{"$f":"'[2]EXT Comercio(M)'!C406","v":1299.7126162299969},{"$f":"'[2]EXT Comercio(M)'!D406","v":522.54999999999995},{"$f":"'[2]EXT Comercio(M)'!E406","v":1156.3669190000001},{"$f":"'[2]EXT Comercio(M)'!F406","v":850.17836661660124},{"$f":"'[2]EXT Comercio(M)'!G406","v":660.4843195200001},{"$f":"'[2]EXT Comercio(M)'!H406","v":971.80000000000018},{"$f":"'[2]EXT Comercio(M)'!I406","v":1499.84},{"$f":"'[2]EXT Comercio(M)'!K406","v":5461.0922213665981},{"$f":"'[2]EXT Comercio(M)'!L406","v":6960.9322213665982},null,null,{"$f":"'[2]EXT Comercio(M)'!AG406","v":1901.4447798499982},{"$f":"'[2]EXT Comercio(M)'!AH406","v":1300.22},{"$f":"'[2]EXT Comercio(M)'!AI406","v":2568.469126},{"$f":"'[2]EXT Comercio(M)'!AJ406","v":1549.3119237678739},{"$f":"'[2]EXT Comercio(M)'!AK406","v":704.70058757000004},{"$f":"'[2]EXT Comercio(M)'!AL406","v":2332.4},{"$f":"'[2]EXT Comercio(M)'!AM406","v":2107.15},{"$f":"'[2]EXT Comercio(M)'!AO406","v":10356.546417187872},{"$f":"'[2]EXT Comercio(M)'!AP406","v":12463.696417187872},null,null,{"$f":"'[2]EXT Comercio(M)'!$BS406","v":-4895.454195821274},{"$f":"'[2]EXT Comercio(M)'!$BT406","v":-5502.7641958212744}]
[null,null,"Febrero",{"$f":"'[2]REAL IPC(M)'!AD407","v":5.5798108355050795},{"$f":"'[2]REAL IPC(M)'!AE407","v":6.8209726115009639},{"$f":"'[2]REAL IPC(M)'!AF407","v":9.9226217569413091},{"$f":"'[2]REAL IPC(M)'!AG407","v":9.8049692759818292},{"$f":"'[2]REAL IPC(M)'!AH407","v":11.102497691940039},{"$f":"'[2]REAL IPC(M)'!AI407","v":6.3782877103183475},{"$f":"'[2]REAL IPC(M)'!AJ407","v":2.0423672194251457},null,null,{"$f":"'[2]REAL IMAE(M)'!AG407","v":4.76035820288645},{"$f":"'[2]REAL IMAE(M)'!AH407","v":2.055843954757282},{"$f":"'[2]REAL IMAE(M)'!AI407","v":3.8928848020096085},{"$f":"'[2]REAL IMAE(M)'!AJ407","v":2.4651952665815129},{"$f":"'[2]REAL IMAE(M)'!AK407","v":3.2656477137847064},{"$f":"'[2]REAL IMAE(M)'!AL407","v":1.5794582716290684},{"$f":"'[2]REAL IMAE(M)'!AM407","v":8.6753423796621618},null,null,{"$f":"'[2]EXT ITCER(M)'!C407","v":82.701193213663913},{"$f":"'[2]EXT ITCER(M)'!D407","v":98.991779101886792},{"$f":"'[2]EXT ITCER(M)'!E407","v":53.741097803712407},{"$f":"'[2]EXT ITCER(M)'!F407","v":75.111064300665689},{"$f":"'[2]EXT ITCER(M)'!G407","v":107.92801079072009},{"$f":"'[2]EXT ITCER(M)'!H407","v":114.2461371273897},{"$f":"'[2]EXT ITCER(M)'!I407","v":105.3671697178001},null,null,{"$f":"'[2]EXT TC(M)'!J407","v":-11.806117870061595},{"$f":"'[2]EXT TC(M)'!K407","v":0},{"$f":"'[2]EXT TC(M)'!L407","v":1.6782124068961999},{"$f":"'[2]EXT TC(M)'!M407","v":0.26131803098498363},{"$f":"'[2]EXT TC(M)'!N407","v":1.7735573895110743},{"$f":"'[2]EXT TC(M)'!O407","v":-0.95512084894901061},{"$f":"'[2]EXT TC(M)'!P407","v":0},null,null,{"$f":"'[2]EXT RIN(M)'!C407","v":8564},{"$f":"'[2]EXT RIN(M)'!D407","v":2548.17},{"$f":"'[2]EXT RIN(M)'!E407","v":20047.099999999999},{"$f":"'[2]EXT RIN(M)'!F407","v":8286.5},{"$f":"'[2]EXT RIN(M)'!G407","v":4645.5700268170249},{"$f":"'[2]EXT RIN(M)'!H407","v":15586.966081791708},{"$f":"'[2]EXT RIN(M)'!I407","v":5643.1333351499998},null,null,{"$f":"'[2]EXT RIN(M)'!P407","v":64.177734726382369},{"$f":"'[2]EXT RIN(M)'!Q407","v":98.029990251514008},{"$f":"'[2]EXT RIN(M)'!R407","v":112.2155215805259},{"$f":"'[2]EXT RIN(M)'!S407","v":100.09385563261448},{"$f":"'[2]EXT RIN(M)'!T407","v":157.16071452580317},{"$f":"'[2]EXT RIN(M)'!U407","v":126.74872962805479},{"$f":"'[2]EXT RIN(M)'!V407","v":227.52823830390807},null,null,{"$f":"+'[2]MONE(M)CAPARD'!AE407","v":1.0515165311525441},{"$f":"'[2]MONE(M)CAPARD'!AF407","v":-1.6485270340174452},{"$f":"'[2]MONE(M)CAPARD'!AG407","v":-5.3697971014492971},{"$f":"'[2]MONE(M)CAPARD'!AH407","v":-4.3759124087591212},{"$f":"'[2]MONE(M)CAPARD'!AI407","v":-4.785900705517677},{"$f":"'[2]MONE(M)CAPARD'!AJ407","v":3.1071305628479751},{"$f":"'[2]MONE(M)CAPARD'!AK407","v":0.61507077665616516},null,null,{"$f":"'[2]MONE(M)CAPARD'!AL407","v":3.5754869600000001},{"$f":"'[2]MONE(M)CAPARD'!AM407","v":5.0599999999999996},{"$f":"'[2]MONE(M)CAPARD'!AN407","v":3.06},{"$f":"'[2]MONE(M)CAPARD'!AO407","v":3.58},{"$f":"'[2]MONE(M)CAPARD'!AP407","v":3.7047181761824102},{"$f":"'[2]MONE(M)CAPARD'!AQ407","v":3.8757999999999999},{"$f":"'[2]MONE(M)CAPARD'!AR407","v":2.67},null,null,{"$f":"'[2]MONE(M)CAPARD'!J407","v":7.2094615099795156},{"$f":"'[2]MONE(M)CAPARD'!K407","v":0.15823427213471922},{"$f":"'[2]MONE(M)CAPARD'!L407","v":1.8352712215320668},{"$f":"'[2]MONE(M)CAPARD'!M407","v":4.0116861313868659},{"$f":"'[2]MONE(M)CAPARD'!N407","v":-0.91378949268628229},{"$f":"'[2]MONE(M)CAPARD'!O407","v":8.7431490860324352},{"$f":"'[2]MONE(M)CAPARD'!P407","v":6.2837401755206201},null,null,{"$f":"'[2]MONE(M)CAPARD'!Q407","v":7.9359614499999998},{"$f":"'[2]MONE(M)CAPARD'!R407","v":6.99},{"$f":"'[2]MONE(M)CAPARD'!S407","v":6.36},{"$f":"'[2]MONE(M)CAPARD'!T407","v":8.33},{"$f":"'[2]MONE(M)CAPARD'!U407","v":9.1051565965608994},{"$f":"'[2]MONE(M)CAPARD'!V407","v":7.3284000000000002},{"$f":"'[2]MONE(M)CAPARD'!W407","v":8.4544444444444462},null,null,{"$f":"'[2]MONE(M)CAPARD'!AS407","v":9},{"$f":"'[2]MONE(M)CAPARD'!AT407","v":"n.a."},{"$f":"'[2]MONE(M)CAPARD'!AU407","v":4.5},{"$f":"'[2]MONE(M)CAPARD'!AV407","v":3},{"$f":"'[2]MONE(M)CAPARD'!AW407","v":7},{"$f":"'[2]MONE(M)CAPARD'!AX407","v":8.5},{"$f":"'[2]MONE(M)CAPARD'!AY407","v":"n.a."},null,null,{"$f":"+'Datos_Regional (M)'!CF400","v":-7.2187283164837357E-2},{"$f":"+'Datos_Regional (M)'!CG400","v":10.428452257808463},{"$f":"+'Datos_Regional (M)'!CH400","v":13.883783032182183},{"$f":"+'Datos_Regional (M)'!CI400","v":19.898776205997159},{"$f":"+'Datos_Regional (M)'!CJ400","v":19.196757388590168},{"$f":"+'Datos_Regional (M)'!CK400","v":16.105100367522105},{"$f":"+'Datos_Regional (M)'!CL400","v":3.3048913136206393},null,null,1344.9274464899997,588.75833333333344,1297.6049491666668,1015.9935974480114,645.99669487750009,1146.7416666666668,1334.7850000000001,6040.0226879821785,7374.8076879821774,null,null,1801.2548681649998,1420.3658333333333,2665.3137412499996,1727.8486537689153,838.42415028333335,2568.4666666666667,2445.0541666666668,11021.673913467248,13466.728080133915,null,null,-4981.6512254850704,-6091.9203921517365,null,null,{"$f":"'[2]EXT Comercio(M)'!C407","v":1461.7446628899961},{"$f":"'[2]EXT Comercio(M)'!D407","v":582.91999999999985},{"$f":"'[2]EXT Comercio(M)'!E407","v":1255.283238},{"$f":"'[2]EXT Comercio(M)'!F407","v":954.94062475438068},{"$f":"'[2]EXT Comercio(M)'!G407","v":614.15766570000005},{"$f":"'[2]EXT Comercio(M)'!H407","v":1062.1999999999998},{"$f":"'[2]EXT Comercio(M)'!I407","v":1222.6100000000001},{"$f":"'[2]EXT Comercio(M)'!K407","v":5931.2461913443767},{"$f":"'[2]EXT Comercio(M)'!L407","v":7153.8561913443773},null,null,{"$f":"'[2]EXT Comercio(M)'!AG407","v":1753.0245856699992},{"$f":"'[2]EXT Comercio(M)'!AH407","v":1226.4100000000001},{"$f":"'[2]EXT Comercio(M)'!AI407","v":2191.543823},{"$f":"'[2]EXT Comercio(M)'!AJ407","v":1516.2068989640863},{"$f":"'[2]EXT Comercio(M)'!AK407","v":755.12029295999992},{"$f":"'[2]EXT Comercio(M)'!AL407","v":2162.1999999999998},{"$f":"'[2]EXT Comercio(M)'!AM407","v":1950.44},{"$f":"'[2]EXT Comercio(M)'!AO407","v":9604.5056005940842},{"$f":"'[2]EXT Comercio(M)'!AP407","v":11554.945600594085},null,null,{"$f":"'[2]EXT Comercio(M)'!$BS407","v":-3673.2594092497093},{"$f":"'[2]EXT Comercio(M)'!$BT407","v":-4401.0894092497083}]
[null,null,"Marzo",{"$f":"'[2]REAL IPC(M)'!AD408","v":4.4173967983496309},{"$f":"'[2]REAL IPC(M)'!AE408","v":6.0524883672249352},{"$f":"'[2]REAL IPC(M)'!AF408","v":8.7129220321609413},{"$f":"'[2]REAL IPC(M)'!AG408","v":9.0524086818422411},{"$f":"'[2]REAL IPC(M)'!AH408","v":10.387210939778251},{"$f":"'[2]REAL IPC(M)'!AI408","v":5.8987726636376987},{"$f":"'[2]REAL IPC(M)'!AJ408","v":1.3472626962532466},null,null,{"$f":"'[2]REAL IMAE(M)'!AG408","v":4.9694434608329949},{"$f":"'[2]REAL IMAE(M)'!AH408","v":2.3575596345316203},{"$f":"'[2]REAL IMAE(M)'!AI408","v":3.8553251808304614},{"$f":"'[2]REAL IMAE(M)'!AJ408","v":2.7073855521692383},{"$f":"'[2]REAL IMAE(M)'!AK408","v":3.4173402791390877},{"$f":"'[2]REAL IMAE(M)'!AL408","v":1.3837458508786074},{"$f":"'[2]REAL IMAE(M)'!AM408","v":9.216350479709865},null,null,{"$f":"'[2]EXT ITCER(M)'!C408","v":80.146385978291093},{"$f":"'[2]EXT ITCER(M)'!D408","v":98.959882253424169},{"$f":"'[2]EXT ITCER(M)'!E408","v":53.388513077073},{"$f":"'[2]EXT ITCER(M)'!F408","v":75.031977920113818},{"$f":"'[2]EXT ITCER(M)'!G408","v":107.5306737342147},{"$f":"'[2]EXT ITCER(M)'!H408","v":111.8745778820217},{"$f":"'[2]EXT ITCER(M)'!I408","v":105.2304722543083},null,null,{"$f":"'[2]EXT TC(M)'!J408","v":-15.749954595984079},{"$f":"'[2]EXT TC(M)'!K408","v":0},{"$f":"'[2]EXT TC(M)'!L408","v":1.4280091542724245},{"$f":"'[2]EXT TC(M)'!M408","v":0.82394923418188237},{"$f":"'[2]EXT TC(M)'!N408","v":1.759066339743218},{"$f":"'[2]EXT TC(M)'!O408","v":-9.8130951924958118E-2},{"$f":"'[2]EXT TC(M)'!P408","v":0},null,null,{"$f":"'[2]EXT RIN(M)'!C408","v":9136.6},{"$f":"'[2]EXT RIN(M)'!D408","v":2556.1799999999998},{"$f":"'[2]EXT RIN(M)'!E408","v":20343.7},{"$f":"'[2]EXT RIN(M)'!F408","v":8133.7},{"$f":"'[2]EXT RIN(M)'!G408","v":4817.7700268170247},{"$f":"'[2]EXT RIN(M)'!H408","v":16016.560728313982},{"$f":"'[2]EXT RIN(M)'!I408","v":6291.2291048900006},null,null,{"$f":"'[2]EXT RIN(M)'!P408","v":66.458920099528001},{"$f":"'[2]EXT RIN(M)'!Q408","v":96.860662334768705},{"$f":"'[2]EXT RIN(M)'!R408","v":110.37870505798931},{"$f":"'[2]EXT RIN(M)'!S408","v":99.412665958662657},{"$f":"'[2]EXT RIN(M)'!T408","v":160.93979990870739},{"$f":"'[2]EXT RIN(M)'!U408","v":124.96635293533109},{"$f":"'[2]EXT RIN(M)'!V408","v":270.90672507597696},null,null,{"$f":"+'[2]MONE(M)CAPARD'!AE408","v":2.1764603134468192},{"$f":"'[2]MONE(M)CAPARD'!AF408","v":-1.0867150643691132},{"$f":"'[2]MONE(M)CAPARD'!AG408","v":-4.2708097118274573},{"$f":"'[2]MONE(M)CAPARD'!AH408","v":-3.4959417475728118},{"$f":"'[2]MONE(M)CAPARD'!AI408","v":-3.9215007681538809},{"$f":"'[2]MONE(M)CAPARD'!AJ408","v":4.0555968953519415},{"$f":"'[2]MONE(M)CAPARD'!AK408","v":1.5419630113054126},null,null,{"$f":"'[2]MONE(M)CAPARD'!AL408","v":3.5119978999999999},{"$f":"'[2]MONE(M)CAPARD'!AM408","v":4.9000000000000004},{"$f":"'[2]MONE(M)CAPARD'!AN408","v":3.11},{"$f":"'[2]MONE(M)CAPARD'!AO408","v":3.77},{"$f":"'[2]MONE(M)CAPARD'!AP408","v":3.8452243209268899},{"$f":"'[2]MONE(M)CAPARD'!AQ408","v":4.2339000000000002},{"$f":"'[2]MONE(M)CAPARD'!AR408","v":2.91},null,null,{"$f":"'[2]MONE(M)CAPARD'!J408","v":8.2386685221272788},{"$f":"'[2]MONE(M)CAPARD'!K408","v":1.157456700614695},{"$f":"'[2]MONE(M)CAPARD'!L408","v":2.9592415581354152},{"$f":"'[2]MONE(M)CAPARD'!M408","v":4.7019514563106819},{"$f":"'[2]MONE(M)CAPARD'!N408","v":-0.63567144894551786},{"$f":"'[2]MONE(M)CAPARD'!O408","v":9.0223211242589088},{"$f":"'[2]MONE(M)CAPARD'!P408","v":7.1497447926119175},null,null,{"$f":"'[2]MONE(M)CAPARD'!Q408","v":7.68},{"$f":"'[2]MONE(M)CAPARD'!R408","v":7.28},{"$f":"'[2]MONE(M)CAPARD'!S408","v":6.4},{"$f":"'[2]MONE(M)CAPARD'!T408","v":8.43},{"$f":"'[2]MONE(M)CAPARD'!U408","v":9.0750742445921198},{"$f":"'[2]MONE(M)CAPARD'!V408","v":7.4863999999999997},{"$f":"'[2]MONE(M)CAPARD'!W408","v":8.5933333333333337},null,null,{"$f":"'[2]MONE(M)CAPARD'!AS408","v":8.5},{"$f":"'[2]MONE(M)CAPARD'!AT408","v":"n.a."},{"$f":"'[2]MONE(M)CAPARD'!AU408","v":4.75},{"$f":"'[2]MONE(M)CAPARD'!AV408","v":3},{"$f":"'[2]MONE(M)CAPARD'!AW408","v":7},{"$f":"'[2]MONE(M)CAPARD'!AX408","v":8.5},{"$f":"'[2]MONE(M)CAPARD'!AY408","v":"n.a."},null,null,{"$f":"+'Datos_Regional (M)'!CF401","v":-2.1130287791460201},{"$f":"+'Datos_Regional (M)'!CG401","v":9.9900422024613356},{"$f":"+'Datos_Regional (M)'!CH401","v":13.142355746492296},{"$f":"+'Datos_Regional (M)'!CI401","v":20.73028487759214},{"$f":"+'Datos_Regional (M)'!CJ401","v":20.182084614297601},{"$f":"+'Datos_Regional (M)'!CK401","v":15.556334673557281},{"$f":"+'Datos_Regional (M)'!CL401","v":2.946007132210382},null,null,1357.3309618074989,585.71583333333342,1289.54559275,1006.7762318656288,646.31268274250021,1147.3583333333336,1373.6274999999998,6033.0396358322942,7406.6671358322938,null,null,1804.5960549916672,1403.6149999999998,2641.4492692499998,1706.949579100871,829.17919573250003,2572.6416666666669,2431.7050000000004,10958.430765741707,13390.135765741708,null,null,-4925.3911299094098,-5983.4686299094101,null,null,{"$f":"'[2]EXT Comercio(M)'!C408","v":1650.4716809799916},{"$f":"'[2]EXT Comercio(M)'!D408","v":683.74},{"$f":"'[2]EXT Comercio(M)'!E408","v":1457.4738070000001},{"$f":"'[2]EXT Comercio(M)'!F408","v":1084.8262776737627},{"$f":"'[2]EXT Comercio(M)'!G408","v":739.94113060000029},{"$f":"'[2]EXT Comercio(M)'!H408","v":1299.5},{"$f":"'[2]EXT Comercio(M)'!I408","v":1864.6},{"$f":"'[2]EXT Comercio(M)'!K408","v":6915.9528962537515},{"$f":"'[2]EXT Comercio(M)'!L408","v":8780.5528962537501},null,null,{"$f":"'[2]EXT Comercio(M)'!AG408","v":2057.1723241600084},{"$f":"'[2]EXT Comercio(M)'!AH408","v":1412.08},{"$f":"'[2]EXT Comercio(M)'!AI408","v":2579.50576},{"$f":"'[2]EXT Comercio(M)'!AJ408","v":1656.3840883733626},{"$f":"'[2]EXT Comercio(M)'!AK408","v":802.27676990000009},{"$f":"'[2]EXT Comercio(M)'!AL408","v":2583},{"$f":"'[2]EXT Comercio(M)'!AM408","v":2097.2200000000003},{"$f":"'[2]EXT Comercio(M)'!AO408","v":11090.418942433367},{"$f":"'[2]EXT Comercio(M)'!AP408","v":13187.638942433365},null,null,{"$f":"'[2]EXT Comercio(M)'!$BS408","v":-4174.4660461796157},{"$f":"'[2]EXT Comercio(M)'!$BT408","v":-4407.0860461796165}]
[null,null,"Abril",{"$f":"'[2]REAL IPC(M)'!AD409","v":2.4428180006812514},{"$f":"'[2]REAL IPC(M)'!AE409","v":5.4337743207348774},{"$f":"'[2]REAL IPC(M)'!AF409","v":8.3158095966354306},{"$f":"'[2]REAL IPC(M)'!AG409","v":7.4440395627277516},{"$f":"'[2]REAL IPC(M)'!AH409","v":9.5344942688551892},{"$f":"'[2]REAL IPC(M)'!AI409","v":5.1521132512080561},{"$f":"'[2]REAL IPC(M)'!AJ409","v":0.95106148140964875},null,null,{"$f":"'[2]REAL IMAE(M)'!AG409","v":5.4418021813542392},{"$f":"'[2]REAL IMAE(M)'!AH409","v":2.8067131056332713},{"$f":"'[2]REAL IMAE(M)'!AI409","v":3.6681237367860704},{"$f":"'[2]REAL IMAE(M)'!AJ409","v":3.0908317100035165},{"$f":"'[2]REAL IMAE(M)'!AK409","v":3.6445859966834733},{"$f":"'[2]REAL IMAE(M)'!AL409","v":1.3128646786056462},{"$f":"'[2]REAL IMAE(M)'!AM409","v":9.3492456366734764},null,null,{"$f":"'[2]EXT ITCER(M)'!C409","v":79.329852590916772},{"$f":"'[2]EXT ITCER(M)'!D409","v":99.408554812182871},{"$f":"'[2]EXT ITCER(M)'!E409","v":53.474132263592551},{"$f":"'[2]EXT ITCER(M)'!F409","v":75.131911031554026},{"$f":"'[2]EXT ITCER(M)'!G409","v":107.5179851852495},{"$f":"'[2]EXT ITCER(M)'!H409","v":111.5197149055377},{"$f":"'[2]EXT ITCER(M)'!I409","v":105.424227724982},null,null,{"$f":"'[2]EXT TC(M)'!J409","v":-18.268792316555341},{"$f":"'[2]EXT TC(M)'!K409","v":0},{"$f":"'[2]EXT TC(M)'!L409","v":1.7614080800311867},{"$f":"'[2]EXT TC(M)'!M409","v":0.9403650405332975},{"$f":"'[2]EXT TC(M)'!N409","v":1.6451277249000165},{"$f":"'[2]EXT TC(M)'!O409","v":-0.75999818008098674},{"$f":"'[2]EXT TC(M)'!P409","v":0},null,null,{"$f":"'[2]EXT RIN(M)'!C409","v":11137.8},{"$f":"'[2]EXT RIN(M)'!D409","v":2687.83},{"$f":"'[2]EXT RIN(M)'!E409","v":20173.599999999999},{"$f":"'[2]EXT RIN(M)'!F409","v":8059.4},{"$f":"'[2]EXT RIN(M)'!G409","v":4884.4303842876525},{"$f":"'[2]EXT RIN(M)'!H409","v":16154.841268718505},{"$f":"'[2]EXT RIN(M)'!I409","v":5885.4904351000005},null,null,{"$f":"'[2]EXT RIN(M)'!P409","v":82.06478460414516},{"$f":"'[2]EXT RIN(M)'!Q409","v":98.974875067616836},{"$f":"'[2]EXT RIN(M)'!R409","v":109.39737232762481},{"$f":"'[2]EXT RIN(M)'!S409","v":100.92731485826285},{"$f":"'[2]EXT RIN(M)'!T409","v":164.81367265553169},{"$f":"'[2]EXT RIN(M)'!U409","v":123.23766411155192},{"$f":"'[2]EXT RIN(M)'!V409","v":246.68948705297075},null,null,{"$f":"+'[2]MONE(M)CAPARD'!AE409","v":4.0873358240603102},{"$f":"'[2]MONE(M)CAPARD'!AF409","v":-0.34502636662542047},{"$f":"'[2]MONE(M)CAPARD'!AG409","v":-3.9013783974585143},{"$f":"'[2]MONE(M)CAPARD'!AH409","v":-1.9210368217054317},{"$f":"'[2]MONE(M)CAPARD'!AI409","v":-3.6053987801107308},{"$f":"'[2]MONE(M)CAPARD'!AJ409","v":4.4909099805825257},{"$f":"'[2]MONE(M)CAPARD'!AK409","v":1.9900122783357772},null,null,{"$f":"'[2]MONE(M)CAPARD'!AL409","v":3.4711800199999998},{"$f":"'[2]MONE(M)CAPARD'!AM409","v":5.07},{"$f":"'[2]MONE(M)CAPARD'!AN409","v":3.16},{"$f":"'[2]MONE(M)CAPARD'!AO409","v":3.9},{"$f":"'[2]MONE(M)CAPARD'!AP409","v":3.8256214720035699},{"$f":"'[2]MONE(M)CAPARD'!AQ409","v":4.0678999999999998},{"$f":"'[2]MONE(M)CAPARD'!AR409","v":2.96},null,null,{"$f":"'[2]MONE(M)CAPARD'!J409","v":11.310877839422275},{"$f":"'[2]MONE(M)CAPARD'!K409","v":1.5044758565123006},{"$f":"'[2]MONE(M)CAPARD'!L409","v":3.3367154959407102},{"$f":"'[2]MONE(M)CAPARD'!M409","v":6.3344234496123981},{"$f":"'[2]MONE(M)CAPARD'!N409","v":1.029807573371565},{"$f":"'[2]MONE(M)CAPARD'!O409","v":10.192935184466021},{"$f":"'[2]MONE(M)CAPARD'!P409","v":7.6131989822339179},null,null,{"$f":"'[2]MONE(M)CAPARD'!Q409","v":7.26},{"$f":"'[2]MONE(M)CAPARD'!R409","v":7.02},{"$f":"'[2]MONE(M)CAPARD'!S409","v":6.48},{"$f":"'[2]MONE(M)CAPARD'!T409","v":8.57},{"$f":"'[2]MONE(M)CAPARD'!U409","v":8.7326791569045703},{"$f":"'[2]MONE(M)CAPARD'!V409","v":7.6569000000000003},{"$f":"'[2]MONE(M)CAPARD'!W409","v":8.6366666666666649},null,null,{"$f":"'[2]MONE(M)CAPARD'!AS409","v":7.5},{"$f":"'[2]MONE(M)CAPARD'!AT409","v":"n.a."},{"$f":"'[2]MONE(M)CAPARD'!AU409","v":5},{"$f":"'[2]MONE(M)CAPARD'!AV409","v":3},{"$f":"'[2]MONE(M)CAPARD'!AW409","v":7},{"$f":"'[2]MONE(M)CAPARD'!AX409","v":8.5},{"$f":"'[2]MONE(M)CAPARD'!AY409","v":"n.a."},null,null,{"$f":"+'Datos_Regional (M)'!CF402","v":-2.142467874042453},{"$f":"+'Datos_Regional (M)'!CG402","v":9.3708393147812643},{"$f":"+'Datos_Regional (M)'!CH402","v":13.026716445123498},{"$f":"+'Datos_Regional (M)'!CI402","v":20.448241560330228},{"$f":"+'Datos_Regional (M)'!CJ402","v":20.044401484283792},{"$f":"+'Datos_Regional (M)'!CK402","v":15.399049502028106},{"$f":"+'Datos_Regional (M)'!CL402","v":2.858757788310351},null,null,{"$f":"IF(EH214=\"\",\"\",+AVERAGE(EH203:EH214))","v":1371.826484061665},{"$f":"IF(EI214=\"\",\"\",+AVERAGE(EI203:EI214))","v":577.77250000000015},{"$f":"IF(EJ214=\"\",\"\",+AVERAGE(EJ203:EJ214))","v":1282.3077540000002},{"$f":"IF(EK214=\"\",\"\",+AVERAGE(EK203:EK214))","v":1001.8487474376738},{"$f":"IF(EL214=\"\",\"\",+AVERAGE(EL203:EL214))","v":643.3589939200001},{"$f":"IF(EM214=\"\",\"\",+AVERAGE(EM203:EM214))","v":1130.6833333333334},{"$f":"IF(EN214=\"\",\"\",+AVERAGE(EN203:EN214))","v":1376.7983333333334},{"$f":"IF(EO214=\"\",\"\",+AVERAGE(EO203:EO214))","v":6007.7978127526721},{"$f":"IF(EP214=\"\",\"\",+AVERAGE(EP203:EP214))","v":7384.5961460860053},null,null,{"$f":"IF(ES214=\"\",\"\",+AVERAGE(ES203:ES214))","v":1848.9584058275002},{"$f":"IF(ET214=\"\",\"\",+AVERAGE(ET203:ET214))","v":1382.8974999999998},{"$f":"IF(EU214=\"\",\"\",+AVERAGE(EU203:EU214))","v":2605.3750654999999},{"$f":"IF(EV214=\"\",\"\",+AVERAGE(EV203:EV214))","v":1694.6387705704019},{"$f":"IF(EW214=\"\",\"\",+AVERAGE(EW203:EW214))","v":827.32616432833345},{"$f":"IF(EX214=\"\",\"\",+AVERAGE(EX203:EX214))","v":2567.4583333333335},{"$f":"IF(EY214=\"\",\"\",+AVERAGE(EY203:EY214))","v":2465.8616666666671},{"$f":"IF(EZ214=\"\",\"\",+AVERAGE(EZ203:EZ214))","v":10926.65423955957},{"$f":"IF(FA214=\"\",\"\",+AVERAGE(FA203:FA214))","v":13392.515906226239},null,null,-4918.8564268068976,-6007.9197601402311,null,null,{"$f":"'[2]EXT Comercio(M)'!C409","v":1384.635892579995},{"$f":"'[2]EXT Comercio(M)'!D409","v":471.52000000000021},{"$f":"'[2]EXT Comercio(M)'!E409","v":1222.5550040000001},{"$f":"'[2]EXT Comercio(M)'!F409","v":985.93172090206076},{"$f":"'[2]EXT Comercio(M)'!G409","v":615.94480754999995},{"$f":"'[2]EXT Comercio(M)'!H409","v":1014.8000000000002},{"$f":"'[2]EXT Comercio(M)'!I409","v":1173.6299999999999},{"$f":"'[2]EXT Comercio(M)'!K409","v":5695.387425032055},{"$f":"'[2]EXT Comercio(M)'!L409","v":6869.0174250320561},null,null,{"$f":"'[2]EXT Comercio(M)'!AG409","v":1777.9208174399976},{"$f":"'[2]EXT Comercio(M)'!AH409","v":1177.5200000000004},{"$f":"'[2]EXT Comercio(M)'!AI409","v":2268.9453550000003},{"$f":"'[2]EXT Comercio(M)'!AJ409","v":1477.4520811799057},{"$f":"'[2]EXT Comercio(M)'!AK409","v":777.04151904999992},{"$f":"'[2]EXT Comercio(M)'!AL409","v":2364.1999999999998},{"$f":"'[2]EXT Comercio(M)'!AM409","v":2304.29},{"$f":"'[2]EXT Comercio(M)'!AO409","v":9843.0797726699093},{"$f":"'[2]EXT Comercio(M)'!AP409","v":12147.36977266991},null,null,{"$f":"'[2]EXT Comercio(M)'!$BS409","v":-4147.6923476378488},{"$f":"'[2]EXT Comercio(M)'!$BT409","v":-5278.3523476378505}]
[null,null,"Mayo ",{"$f":"'[2]REAL IPC(M)'!AD410","v":0.87917926296232907},{"$f":"'[2]REAL IPC(M)'!AE410","v":4.4112845526610673},{"$f":"'[2]REAL IPC(M)'!AF410","v":6.5354132595295154},{"$f":"'[2]REAL IPC(M)'!AG410","v":6.5789473684210522},{"$f":"'[2]REAL IPC(M)'!AH410","v":9.4688335707550344},{"$f":"'[2]REAL IPC(M)'!AI410","v":4.4310120045376769},{"$f":"'[2]REAL IPC(M)'!AJ410","v":0.42066762307668931},null,null,{"$f":"'[2]REAL IMAE(M)'!AG410","v":6.0923050478154952},{"$f":"'[2]REAL IMAE(M)'!AH410","v":3.7609840043872551},{"$f":"'[2]REAL IMAE(M)'!AI410","v":3.4091960904130683},{"$f":"'[2]REAL IMAE(M)'!AJ410","v":3.5066850265240479},{"$f":"'[2]REAL IMAE(M)'!AK410","v":4.0333736320179172},{"$f":"'[2]REAL IMAE(M)'!AL410","v":1.3728181910756301},{"$f":"'[2]REAL IMAE(M)'!AM410","v":9.2761237075449952},null,null,{"$f":"'[2]EXT ITCER(M)'!C410","v":79.912749295399493},{"$f":"'[2]EXT ITCER(M)'!D410","v":99.601452225373322},{"$f":"'[2]EXT ITCER(M)'!E410","v":53.807794308586921},{"$f":"'[2]EXT ITCER(M)'!F410","v":75.147656190973677},{"$f":"'[2]EXT ITCER(M)'!G410","v":107.0998257656739},{"$f":"'[2]EXT ITCER(M)'!H410","v":111.566322231651},{"$f":"'[2]EXT ITCER(M)'!I410","v":105.3149683749386},null,null,{"$f":"'[2]EXT TC(M)'!J410","v":-19.632140108832385},{"$f":"'[2]EXT TC(M)'!K410","v":0},{"$f":"'[2]EXT TC(M)'!L410","v":1.790439058043259},{"$f":"'[2]EXT TC(M)'!M410","v":0.74865934084668251},{"$f":"'[2]EXT TC(M)'!N410","v":1.5621658822959612},{"$f":"'[2]EXT TC(M)'!O410","v":-1.238121876089735},{"$f":"'[2]EXT TC(M)'!P410","v":0},null,null,{"$f":"'[2]EXT RIN(M)'!C410","v":11021.1},{"$f":"'[2]EXT RIN(M)'!D410","v":2680.52},{"$f":"'[2]EXT RIN(M)'!E410","v":20044},{"$f":"'[2]EXT RIN(M)'!F410","v":8018.5},{"$f":"'[2]EXT RIN(M)'!G410","v":4948.3724896515741},{"$f":"'[2]EXT RIN(M)'!H410","v":16184.704516211048},{"$f":"'[2]EXT RIN(M)'!I410","v":5888.4729580599997},null,null,{"$f":"'[2]EXT RIN(M)'!P410","v":82.154699930825331},{"$f":"'[2]EXT RIN(M)'!Q410","v":105.06042153979291},{"$f":"'[2]EXT RIN(M)'!R410","v":110.50232001485716},{"$f":"'[2]EXT RIN(M)'!S410","v":101.08882257000825},{"$f":"'[2]EXT RIN(M)'!T410","v":162.91841759143642},{"$f":"'[2]EXT RIN(M)'!U410","v":121.38968597312601},{"$f":"'[2]EXT RIN(M)'!V410","v":260.6695605554595},null,null,{"$f":"+'[2]MONE(M)CAPARD'!AE410","v":5.6015728699652136},{"$f":"'[2]MONE(M)CAPARD'!AF410","v":0.77454793397455735},{"$f":"'[2]MONE(M)CAPARD'!AG410","v":-2.2578532207592983},{"$f":"'[2]MONE(M)CAPARD'!AH410","v":-0.87160493827160412},{"$f":"'[2]MONE(M)CAPARD'!AI410","v":-3.6237616850562335},{"$f":"'[2]MONE(M)CAPARD'!AJ410","v":5.5013236826745393},{"$f":"'[2]MONE(M)CAPARD'!AK410","v":2.5685274137040088},null,null,{"$f":"'[2]MONE(M)CAPARD'!AL410","v":3.60702166},{"$f":"'[2]MONE(M)CAPARD'!AM410","v":5.22},{"$f":"'[2]MONE(M)CAPARD'!AN410","v":3.21},{"$f":"'[2]MONE(M)CAPARD'!AO410","v":4.0199999999999996},{"$f":"'[2]MONE(M)CAPARD'!AP410","v":3.9120701713880299},{"$f":"'[2]MONE(M)CAPARD'!AQ410","v":4.5564},{"$f":"'[2]MONE(M)CAPARD'!AR410","v":3},null,null,{"$f":"'[2]MONE(M)CAPARD'!J410","v":11.495614974035954},{"$f":"'[2]MONE(M)CAPARD'!K410","v":2.7475147534384203},{"$f":"'[2]MONE(M)CAPARD'!L410","v":5.110588652063516},{"$f":"'[2]MONE(M)CAPARD'!M410","v":7.2632098765432103},{"$f":"'[2]MONE(M)CAPARD'!N410","v":2.0425596814582168},{"$f":"'[2]MONE(M)CAPARD'!O410","v":10.97259116378612},{"$f":"'[2]MONE(M)CAPARD'!P410","v":8.2136690195801449},null,null,{"$f":"'[2]MONE(M)CAPARD'!Q410","v":7.5715836400000001},{"$f":"'[2]MONE(M)CAPARD'!R410","v":7.28},{"$f":"'[2]MONE(M)CAPARD'!S410","v":6.52},{"$f":"'[2]MONE(M)CAPARD'!T410","v":8.66},{"$f":"'[2]MONE(M)CAPARD'!U410","v":8.6633049833861993},{"$f":"'[2]MONE(M)CAPARD'!V410","v":7.7206999999999999},{"$f":"'[2]MONE(M)CAPARD'!W410","v":8.6688888888888886},null,null,{"$f":"'[2]MONE(M)CAPARD'!AS410","v":7.5},{"$f":"'[2]MONE(M)CAPARD'!AT410","v":"n.a."},{"$f":"'[2]MONE(M)CAPARD'!AU410","v":5},{"$f":"'[2]MONE(M)CAPARD'!AV410","v":3},{"$f":"'[2]MONE(M)CAPARD'!AW410","v":7},{"$f":"'[2]MONE(M)CAPARD'!AX410","v":8.5},{"$f":"'[2]MONE(M)CAPARD'!AY410","v":"n.a."},null,null,{"$f":"+'Datos_Regional (M)'!CF403","v":-2.7162611477381082},{"$f":"+'Datos_Regional (M)'!CG403","v":8.8697825554420184},{"$f":"+'Datos_Regional (M)'!CH403","v":12.644125414914441},{"$f":"+'Datos_Regional (M)'!CI403","v":20.454481209667176},{"$f":"+'Datos_Regional (M)'!CJ403","v":19.034865863852236},{"$f":"+'Datos_Regional (M)'!CK403","v":15.594392508400311},{"$f":"+'Datos_Regional (M)'!CL403","v":3.4148060518170764},null,null,1414.2702589541641,573.70083333333343,1268.2045121666667,1001.2258338813094,641.81992226229681,1131.8416666666669,1379.7541666666668,6031.0630272644366,7410.8171939311032,null,null,1854.5085182508328,1370.7116666666668,2597.5905506666663,1682.1086650470895,827.88102785916669,2554.375,2489.3375000000001,10887.175428490424,13376.512928490425,null,null,{"$f":"IF(FD215=\"\",\"\",+AVERAGE(FD204:FD215))","v":-4856.1124012259852},{"$f":"IF(FE215=\"\",\"\",+AVERAGE(FE204:FE215))","v":-5965.6957345593182},null,null,{"$f":"'[2]EXT Comercio(M)'!C410","v":1653.8255578999901},{"$f":"'[2]EXT Comercio(M)'!D410","v":589.64999999999964},{"$f":"'[2]EXT Comercio(M)'!E410","v":1225.7665939999999},{"$f":"'[2]EXT Comercio(M)'!F410","v":1128.3398020884597},{"$f":"'[2]EXT Comercio(M)'!G410","v":683.84866052756001},{"$f":"'[2]EXT Comercio(M)'!H410","v":1229.5},{"$f":"'[2]EXT Comercio(M)'!I410","v":1265.67},{"$f":"'[2]EXT Comercio(M)'!K410","v":6510.9306145160117},{"$f":"'[2]EXT Comercio(M)'!L410","v":7776.60061451601},null,null,{"$f":"'[2]EXT Comercio(M)'!AG410","v":1839.2440982499888},{"$f":"'[2]EXT Comercio(M)'!AH410","v":1359.75},{"$f":"'[2]EXT Comercio(M)'!AI410","v":2716.972597},{"$f":"'[2]EXT Comercio(M)'!AJ410","v":1705.9948116216879},{"$f":"'[2]EXT Comercio(M)'!AK410","v":850.27890472000001},{"$f":"'[2]EXT Comercio(M)'!AL410","v":2463.1999999999998},{"$f":"'[2]EXT Comercio(M)'!AM410","v":2468.62},{"$f":"'[2]EXT Comercio(M)'!AO410","v":10935.440411591677},{"$f":"'[2]EXT Comercio(M)'!AP410","v":13404.060411591679},null,null,{"$f":"'[2]EXT Comercio(M)'!$BS410","v":-4424.5097970756651},{"$f":"'[2]EXT Comercio(M)'!$BT410","v":-5627.4597970756658}]
[null,null,"Junio",{"$f":"'[2]REAL IPC(M)'!AD411","v":-1.0384807522941626},{"$f":"'[2]REAL IPC(M)'!AE411","v":3.7840443480356778},{"$f":"'[2]REAL IPC(M)'!AF411","v":4.9292729631231076},{"$f":"'[2]REAL IPC(M)'!AG411","v":5.6022408963585439},{"$f":"'[2]REAL IPC(M)'!AH411","v":9.870909320326934},{"$f":"'[2]REAL IPC(M)'!AI411","v":3.9957266754712855},{"$f":"'[2]REAL IPC(M)'!AJ411","v":-0.63909985731299768},null,null,{"$f":"'[2]REAL IMAE(M)'!AG411","v":6.3739987869814483},{"$f":"'[2]REAL IMAE(M)'!AH411","v":4.6651879684658999},{"$f":"'[2]REAL IMAE(M)'!AI411","v":3.2619437593961012},{"$f":"'[2]REAL IMAE(M)'!AJ411","v":3.8087298939165235},{"$f":"'[2]REAL IMAE(M)'!AK411","v":4.5532076672997901},{"$f":"'[2]REAL IMAE(M)'!AL411","v":1.6139894356865823},{"$f":"'[2]REAL IMAE(M)'!AM411","v":8.7991774145036583},null,null,{"$f":"'[2]EXT ITCER(M)'!C411","v":80.460300755664946},{"$f":"'[2]EXT ITCER(M)'!D411","v":99.549360788888734},{"$f":"'[2]EXT ITCER(M)'!E411","v":53.935343176422663},{"$f":"'[2]EXT ITCER(M)'!F411","v":75.099161084790666},{"$f":"'[2]EXT ITCER(M)'!G411","v":106.4410678008163},{"$f":"'[2]EXT ITCER(M)'!H411","v":112.3353019848051},{"$f":"'[2]EXT ITCER(M)'!I411","v":105.44811493114371},null,null,{"$f":"'[2]EXT TC(M)'!J411","v":-21.234321984649149},{"$f":"'[2]EXT TC(M)'!K411","v":0},{"$f":"'[2]EXT TC(M)'!L411","v":1.287030966996346},{"$f":"'[2]EXT TC(M)'!M411","v":0.82266889980613223},{"$f":"'[2]EXT TC(M)'!N411","v":1.4882318024038144},{"$f":"'[2]EXT TC(M)'!O411","v":7.4543693932370578E-2},{"$f":"'[2]EXT TC(M)'!P411","v":0},null,null,{"$f":"'[2]EXT RIN(M)'!C411","v":11138.8},{"$f":"'[2]EXT RIN(M)'!D411","v":2580.06},{"$f":"'[2]EXT RIN(M)'!E411","v":21160.5},{"$f":"'[2]EXT RIN(M)'!F411","v":7913.8},{"$f":"'[2]EXT RIN(M)'!G411","v":4968.1145345391906},{"$f":"'[2]EXT RIN(M)'!H411","v":16196.885910342447},{"$f":"'[2]EXT RIN(M)'!I411","v":5416.6643451899999},null,null,{"$f":"'[2]EXT RIN(M)'!P411","v":81.828666037559103},{"$f":"'[2]EXT RIN(M)'!Q411","v":100.87824591667652},{"$f":"'[2]EXT RIN(M)'!R411","v":115.788683345176},{"$f":"'[2]EXT RIN(M)'!S411","v":98.214517643040466},{"$f":"'[2]EXT RIN(M)'!T411","v":165.8070868903321},{"$f":"'[2]EXT RIN(M)'!U411","v":108.35444534859968},{"$f":"'[2]EXT RIN(M)'!V411","v":244.98212674154269},null,null,{"$f":"+'[2]MONE(M)CAPARD'!AE411","v":7.3952793044492617},{"$f":"'[2]MONE(M)CAPARD'!AF411","v":1.5763074779377548},{"$f":"'[2]MONE(M)CAPARD'!AG411","v":-0.72360452110437334},{"$f":"'[2]MONE(M)CAPARD'!AH411","v":0.25355437665782454},{"$f":"'[2]MONE(M)CAPARD'!AI411","v":-4.0888109822512835},{"$f":"'[2]MONE(M)CAPARD'!AJ411","v":4.8010370080969373},{"$f":"'[2]MONE(M)CAPARD'!AK411","v":3.7430215023939928},null,null,{"$f":"'[2]MONE(M)CAPARD'!AL411","v":3.7535734600000001},{"$f":"'[2]MONE(M)CAPARD'!AM411","v":5.42},{"$f":"'[2]MONE(M)CAPARD'!AN411","v":3.29},{"$f":"'[2]MONE(M)CAPARD'!AO411","v":4.1900000000000004},{"$f":"'[2]MONE(M)CAPARD'!AP411","v":3.78427117523173},{"$f":"'[2]MONE(M)CAPARD'!AQ411","v":4.1664000000000003},{"$f":"'[2]MONE(M)CAPARD'!AR411","v":3.08},null,null,{"$f":"'[2]MONE(M)CAPARD'!J411","v":13.510132518104108},{"$f":"'[2]MONE(M)CAPARD'!K411","v":3.6960938225731472},{"$f":"'[2]MONE(M)CAPARD'!L411","v":6.7195043268381713},{"$f":"'[2]MONE(M)CAPARD'!M411","v":8.264748010610079},{"$f":"'[2]MONE(M)CAPARD'!N411","v":2.5390005745359336},{"$f":"'[2]MONE(M)CAPARD'!O411","v":8.0909798830352599},{"$f":"'[2]MONE(M)CAPARD'!P411","v":9.7849689130074839},null,null,{"$f":"'[2]MONE(M)CAPARD'!Q411","v":7.6681934800000002},{"$f":"'[2]MONE(M)CAPARD'!R411","v":7.62},{"$f":"'[2]MONE(M)CAPARD'!S411","v":6.56},{"$f":"'[2]MONE(M)CAPARD'!T411","v":8.83},{"$f":"'[2]MONE(M)CAPARD'!U411","v":8.3403578464036698},{"$f":"'[2]MONE(M)CAPARD'!V411","v":7.8376999999999999},{"$f":"'[2]MONE(M)CAPARD'!W411","v":9.0833333333333339},null,null,{"$f":"'[2]MONE(M)CAPARD'!AS411","v":7},{"$f":"'[2]MONE(M)CAPARD'!AT411","v":"n.a."},{"$f":"'[2]MONE(M)CAPARD'!AU411","v":5},{"$f":"'[2]MONE(M)CAPARD'!AV411","v":3},{"$f":"'[2]MONE(M)CAPARD'!AW411","v":7},{"$f":"'[2]MONE(M)CAPARD'!AX411","v":8},{"$f":"'[2]MONE(M)CAPARD'!AY411","v":"n.a."},null,null,{"$f":"+'Datos_Regional (M)'!CF404","v":-2.9344927528021869},{"$f":"+'Datos_Regional (M)'!CG404","v":7.125370971611078},{"$f":"+'Datos_Regional (M)'!CH404","v":12.318201991406475},{"$f":"+'Datos_Regional (M)'!CI404","v":20.838830805399144},{"$f":"+'Datos_Regional (M)'!CJ404","v":18.631188001561071},{"$f":"+'Datos_Regional (M)'!CK404","v":18.258681989478596},{"$f":"+'Datos_Regional (M)'!CL404","v":3.1555180093886026},null,null,{"$f":"IF(EH216=\"\",\"\",+AVERAGE(EH205:EH216))","v":1441.8816215041641},{"$f":"IF(EI216=\"\",\"\",+AVERAGE(EI205:EI216))","v":570.61916666666673},{"$f":"IF(EJ216=\"\",\"\",+AVERAGE(EJ205:EJ216))","v":1251.1422582500002},{"$f":"IF(EK216=\"\",\"\",+AVERAGE(EK205:EK216))","v":991.31285344466608},{"$f":"IF(EL216=\"\",\"\",+AVERAGE(EL205:EL216))","v":637.5398264587152},{"$f":"IF(EM216=\"\",\"\",+AVERAGE(EM205:EM216))","v":1119.6333333333332},{"$f":"IF(EN216=\"\",\"\",+AVERAGE(EN205:EN216))","v":1374.1883333333335},{"$f":"IF(EO216=\"\",\"\",+AVERAGE(EO205:EO216))","v":6012.1290596575445},{"$f":"IF(EP216=\"\",\"\",+AVERAGE(EP205:EP216))","v":7386.3173929908762},null,null,{"$f":"IF(ES216=\"\",\"\",+AVERAGE(ES205:ES216))","v":1874.110970864999},{"$f":"IF(ET216=\"\",\"\",+AVERAGE(ET205:ET216))","v":1353.010833333333},{"$f":"IF(EU216=\"\",\"\",+AVERAGE(EU205:EU216))","v":2578.6324025833333},{"$f":"IF(EV216=\"\",\"\",+AVERAGE(EV205:EV216))","v":1652.1575396944129},{"$f":"IF(EW216=\"\",\"\",+AVERAGE(EW205:EW216))","v":822.22103180249997},{"$f":"IF(EX216=\"\",\"\",+AVERAGE(EX205:EX216))","v":2496.9083333333333},{"$f":"IF(EY216=\"\",\"\",+AVERAGE(EY205:EY216))","v":2603.5191666666669},{"$f":"IF(EZ216=\"\",\"\",+AVERAGE(EZ205:EZ216))","v":10777.041111611912},{"$f":"IF(FA216=\"\",\"\",+AVERAGE(FA205:FA216))","v":13380.560278278579},null,null,-4764.9120519543676,-5994.242885287701,null,null,{"$f":"'[2]EXT Comercio(M)'!C411","v":1611.1411847699933},{"$f":"'[2]EXT Comercio(M)'!D411","v":588.90000000000009},{"$f":"'[2]EXT Comercio(M)'!E411","v":1223.11916},{"$f":"'[2]EXT Comercio(M)'!F411","v":1070.7466917830609},{"$f":"'[2]EXT Comercio(M)'!G411","v":669.58956232701985},{"$f":"'[2]EXT Comercio(M)'!H411","v":1083.3000000000002},{"$f":"'[2]EXT Comercio(M)'!I411","v":1269.06},{"$f":"'[2]EXT Comercio(M)'!K411","v":6246.7965988800715},{"$f":"'[2]EXT Comercio(M)'!L411","v":7515.8565988800765},null,null,{"$f":"'[2]EXT Comercio(M)'!AG411","v":1797.1260506599942},{"$f":"'[2]EXT Comercio(M)'!AH411","v":1310.3000000000002},{"$f":"'[2]EXT Comercio(M)'!AI411","v":2618.2625669999998},{"$f":"'[2]EXT Comercio(M)'!AJ411","v":1608.2936714667751},{"$f":"'[2]EXT Comercio(M)'!AK411","v":870.44742977999999},{"$f":"'[2]EXT Comercio(M)'!AL411","v":2277.3000000000002},{"$f":"'[2]EXT Comercio(M)'!AM411","v":3635.54},{"$f":"'[2]EXT Comercio(M)'!AO411","v":10481.729718906761},{"$f":"'[2]EXT Comercio(M)'!AP411","v":14117.269718906755},null,null,{"$f":"'[2]EXT Comercio(M)'!$BS411","v":-4234.9331200266934},{"$f":"'[2]EXT Comercio(M)'!$BT411","v":-6601.4131200266893}]
[null,null,"Julio",{"$f":"'[2]REAL IPC(M)'!AD412","v":-2.2851005852623585},{"$f":"'[2]REAL IPC(M)'!AE412","v":3.3442675414033065},{"$f":"'[2]REAL IPC(M)'!AF412","v":4.534343681251551},{"$f":"'[2]REAL IPC(M)'!AG412","v":5.1489146895507405},{"$f":"'[2]REAL IPC(M)'!AH412","v":8.172229040586334},{"$f":"'[2]REAL IPC(M)'!AI412","v":3.9511835805403939},{"$f":"'[2]REAL IPC(M)'!AJ412","v":0.58169154100985465},null,null,{"$f":"'[2]REAL IMAE(M)'!AG412","v":6.2819648604707847},{"$f":"'[2]REAL IMAE(M)'!AH412","v":4.1598047531735309},{"$f":"'[2]REAL IMAE(M)'!AI412","v":""},{"$f":"'[2]REAL IMAE(M)'!AJ412","v":3.8921085456306388},{"$f":"'[2]REAL IMAE(M)'!AK412","v":5.1032711746761814},{"$f":"'[2]REAL IMAE(M)'!AL412","v":1.9253650269392926},{"$f":"'[2]REAL IMAE(M)'!AM412","v":11.734044407628696},null,null,{"$f":"'[2]EXT ITCER(M)'!C412","v":80.855845034769388},{"$f":"'[2]EXT ITCER(M)'!D412","v":99.72319213428635},{"$f":"'[2]EXT ITCER(M)'!E412","v":53.746610789310651},{"$f":"'[2]EXT ITCER(M)'!F412","v":74.874097558408408},{"$f":"'[2]EXT ITCER(M)'!G412","v":106.93498845238},{"$f":"'[2]EXT ITCER(M)'!H412","v":113.98365261307831},{"$f":"'[2]EXT ITCER(M)'!I412","v":105.65472294484989},null,null,{"$f":"'[2]EXT TC(M)'!J412","v":-20.237915632518163},{"$f":"'[2]EXT TC(M)'!K412","v":0},{"$f":"'[2]EXT TC(M)'!L412","v":1.4824518439622507},{"$f":"'[2]EXT TC(M)'!M412","v":0.65409682246825041},{"$f":"'[2]EXT TC(M)'!N412","v":1.3236744514020906},{"$f":"'[2]EXT TC(M)'!O412","v":2.3260553076102508},{"$f":"'[2]EXT TC(M)'!P412","v":0},null,null,{"$f":"'[2]EXT RIN(M)'!C412","v":11353.9},{"$f":"'[2]EXT RIN(M)'!D412","v":2617.42},{"$f":"'[2]EXT RIN(M)'!E412","v":20969.8},{"$f":"'[2]EXT RIN(M)'!F412","v":7798.9},{"$f":"'[2]EXT RIN(M)'!G412","v":5096.4745756437505},{"$f":"'[2]EXT RIN(M)'!H412","v":15423.915049587817},{"$f":"'[2]EXT RIN(M)'!I412","v":5296.1028523999994},null,null,{"$f":"'[2]EXT RIN(M)'!P412","v":79.664214794675715},{"$f":"'[2]EXT RIN(M)'!Q412","v":103.17659603403453},{"$f":"'[2]EXT RIN(M)'!R412","v":115.20809782418566},{"$f":"'[2]EXT RIN(M)'!S412","v":99.342566831381276},{"$f":"'[2]EXT RIN(M)'!T412","v":164.03632885878153},{"$f":"'[2]EXT RIN(M)'!U412","v":109.70741173869168},{"$f":"'[2]EXT RIN(M)'!V412","v":244.10031780209428},null,null,{"$f":"+'[2]MONE(M)CAPARD'!AE412","v":8.5095524173545343},{"$f":"'[2]MONE(M)CAPARD'!AF412","v":2.0859719749167818},{"$f":"'[2]MONE(M)CAPARD'!AG412","v":-0.33897345960483949},{"$f":"'[2]MONE(M)CAPARD'!AH412","v":0.85696111377819617},{"$f":"'[2]MONE(M)CAPARD'!AI412","v":-2.3243196278184906},{"$f":"'[2]MONE(M)CAPARD'!AJ412","v":3.6338368543277819},{"$f":"'[2]MONE(M)CAPARD'!AK412","v":2.5534552259373933},null,null,{"$f":"'[2]MONE(M)CAPARD'!AL412","v":3.5909399099999999},{"$f":"'[2]MONE(M)CAPARD'!AM412","v":5.5},{"$f":"'[2]MONE(M)CAPARD'!AN412","v":3.33},{"$f":"'[2]MONE(M)CAPARD'!AO412","v":4.34},{"$f":"'[2]MONE(M)CAPARD'!AP412","v":3.51621924349101},{"$f":"'[2]MONE(M)CAPARD'!AQ412","v":4.3250999999999999},{"$f":"'[2]MONE(M)CAPARD'!AR412","v":3.15},null,null,{"$f":"'[2]MONE(M)CAPARD'!J412","v":15.725934864898122},{"$f":"'[2]MONE(M)CAPARD'!K412","v":4.1954261825501327},{"$f":"'[2]MONE(M)CAPARD'!L412","v":7.1226891149304112},{"$f":"'[2]MONE(M)CAPARD'!M412","v":8.7029764762361896},{"$f":"'[2]MONE(M)CAPARD'!N412","v":2.5998960236031246},{"$f":"'[2]MONE(M)CAPARD'!O412","v":9.8445405496809695},{"$f":"'[2]MONE(M)CAPARD'!P412","v":8.1608375572440988},null,null,{"$f":"'[2]MONE(M)CAPARD'!Q412","v":7.2090813799999998},{"$f":"'[2]MONE(M)CAPARD'!R412","v":7.68},{"$f":"'[2]MONE(M)CAPARD'!S412","v":6.59},{"$f":"'[2]MONE(M)CAPARD'!T412","v":9.0299999999999994},{"$f":"'[2]MONE(M)CAPARD'!U412","v":8.2467503358747507},{"$f":"'[2]MONE(M)CAPARD'!V412","v":7.9306000000000001},{"$f":"'[2]MONE(M)CAPARD'!W412","v":8.7899999999999991},null,null,{"$f":"'[2]MONE(M)CAPARD'!AS412","v":6.5},{"$f":"'[2]MONE(M)CAPARD'!AT412","v":"n.a."},{"$f":"'[2]MONE(M)CAPARD'!AU412","v":5},{"$f":"'[2]MONE(M)CAPARD'!AV412","v":3},{"$f":"'[2]MONE(M)CAPARD'!AW412","v":7},{"$f":"'[2]MONE(M)CAPARD'!AX412","v":7.75},{"$f":"'[2]MONE(M)CAPARD'!AY412","v":"n.a."},null,null,{"$f":"+'Datos_Regional (M)'!CF405","v":-1.5044270048783837},{"$f":"+'Datos_Regional (M)'!CG405","v":6.5631794008025102},{"$f":"+'Datos_Regional (M)'!CH405","v":11.959008100548484},{"$f":"+'Datos_Regional (M)'!CI405","v":20.711956844384517},{"$f":"+'Datos_Regional (M)'!CJ405","v":17.629373416150408},{"$f":"+'Datos_Regional (M)'!CK405","v":18.941731772069105},{"$f":"+'Datos_Regional (M)'!CL405","v":2.5763494995606706},null,null,1448.0665309616631,561.47833333333335,1232.2613084166669,981.08901245396817,636.80419765288173,1112.8999999999999,1398.0191666666667,5972.5993828185137,7370.6185494851807,null,null,1874.635236425833,1336.1233333333332,2563.53989675,1651.5384614542527,818.66165705083324,2487.8666666666663,2937.2000000000003,10732.365251680918,13669.56525168092,null,null,{"$f":"IF(FD217=\"\",\"\",+AVERAGE(FD206:FD217))","v":-4759.7658688624051},{"$f":"IF(FE217=\"\",\"\",+AVERAGE(FE206:FE217))","v":-6298.9467021957389},null,null,{"$f":"'[2]EXT Comercio(M)'!C412","v":1419.0442856699954},{"$f":"'[2]EXT Comercio(M)'!D412","v":568.71},{"$f":"'[2]EXT Comercio(M)'!E412","v":1180.2498150000001},{"$f":"'[2]EXT Comercio(M)'!F412","v":954.35915064051073},{"$f":"'[2]EXT Comercio(M)'!G412","v":662.2190281200003},{"$f":"'[2]EXT Comercio(M)'!H412","v":1130.5},{"$f":"'[2]EXT Comercio(M)'!I412","v":1371.27},{"$f":"'[2]EXT Comercio(M)'!K412","v":5915.0822794305059},{"$f":"'[2]EXT Comercio(M)'!L412","v":7286.3522794305027},null,null,{"$f":"'[2]EXT Comercio(M)'!AG412","v":1810.3416013600108},{"$f":"'[2]EXT Comercio(M)'!AH412","v":1278.92},{"$f":"'[2]EXT Comercio(M)'!AI412","v":2548.6099359999998},{"$f":"'[2]EXT Comercio(M)'!AJ412","v":1670.9293588316389},{"$f":"'[2]EXT Comercio(M)'!AK412","v":837.88923333999992},{"$f":"'[2]EXT Comercio(M)'!AL412","v":2519},{"$f":"'[2]EXT Comercio(M)'!AM412","v":6908.38},{"$f":"'[2]EXT Comercio(M)'!AO412","v":10665.690129531649},{"$f":"'[2]EXT Comercio(M)'!AP412","v":17574.070129531654},null,null,{"$f":"'[2]EXT Comercio(M)'!$BS412","v":-4750.6078501011434},{"$f":"'[2]EXT Comercio(M)'!$BT412","v":-10287.717850101144}]
[null,null,"Agosto",{"$f":"'[2]REAL IPC(M)'!AD413","v":-3.2781028570288147},{"$f":"'[2]REAL IPC(M)'!AE413","v":3.0942614790330856},{"$f":"'[2]REAL IPC(M)'!AF413","v":4.4731731002670525},{"$f":"'[2]REAL IPC(M)'!AG413","v":5.7056298914415464},{"$f":"'[2]REAL IPC(M)'!AH413","v":7.4582317818614019},{"$f":"'[2]REAL IPC(M)'!AI413","v":4.2685310479627061},{"$f":"'[2]REAL IPC(M)'!AJ413","v":2.1981007858336081},null,null,{"$f":"'[2]REAL IMAE(M)'!AG413","v":6.1653621949185249},{"$f":"'[2]REAL IMAE(M)'!AH413","v":2.8068787536615969},{"$f":"'[2]REAL IMAE(M)'!AI413","v":""},{"$f":"'[2]REAL IMAE(M)'!AJ413","v":3.7526696493451119},{"$f":"'[2]REAL IMAE(M)'!AK413","v":5.5306125324201982},{"$f":"'[2]REAL IMAE(M)'!AL413","v":2.3080060735632886},{"$f":"'[2]REAL IMAE(M)'!AM413","v":11.809363344594678},null,null,{"$f":"'[2]EXT ITCER(M)'!C413","v":80.888034303085263},{"$f":"'[2]EXT ITCER(M)'!D413","v":100.14330390969771},{"$f":"'[2]EXT ITCER(M)'!E413","v":53.788484765897969},{"$f":"'[2]EXT ITCER(M)'!F413","v":74.960553080486179},{"$f":"'[2]EXT ITCER(M)'!G413","v":107.4912534260217},{"$f":"'[2]EXT ITCER(M)'!H413","v":115.6753078846815},{"$f":"'[2]EXT ITCER(M)'!I413","v":106.0765799546691},null,null,{"$f":"'[2]EXT TC(M)'!J413","v":-18.161641159872381},{"$f":"'[2]EXT TC(M)'!K413","v":0},{"$f":"'[2]EXT TC(M)'!L413","v":1.6237361360707241},{"$f":"'[2]EXT TC(M)'!M413","v":0.53692847685322342},{"$f":"'[2]EXT TC(M)'!N413","v":1.2984130953397892},{"$f":"'[2]EXT TC(M)'!O413","v":5.4705759365596176},{"$f":"'[2]EXT TC(M)'!P413","v":0},null,null,{"$f":"'[2]EXT RIN(M)'!C413","v":11320.9},{"$f":"'[2]EXT RIN(M)'!D413","v":2601.94},{"$f":"'[2]EXT RIN(M)'!E413","v":20661.8},{"$f":"'[2]EXT RIN(M)'!F413","v":7707},{"$f":"'[2]EXT RIN(M)'!G413","v":5143.3745756437502},{"$f":"'[2]EXT RIN(M)'!H413","v":15827.368312906057},{"$f":"'[2]EXT RIN(M)'!I413","v":4787.5361964499998},null,null,{"$f":"'[2]EXT RIN(M)'!P413","v":76.017348742477935},{"$f":"'[2]EXT RIN(M)'!Q413","v":98.912432347772267},{"$f":"'[2]EXT RIN(M)'!R413","v":116.80339856951998},{"$f":"'[2]EXT RIN(M)'!S413","v":98.113933719387717},{"$f":"'[2]EXT RIN(M)'!T413","v":163.31568298882993},{"$f":"'[2]EXT RIN(M)'!U413","v":106.78269434291377},{"$f":"'[2]EXT RIN(M)'!V413","v":217.86007856847988},null,null,{"$f":"+'[2]MONE(M)CAPARD'!AE413","v":9.3134058813107536},{"$f":"'[2]MONE(M)CAPARD'!AF413","v":2.1201359703337528},{"$f":"'[2]MONE(M)CAPARD'!AG413","v":-0.22318944983442479},{"$f":"'[2]MONE(M)CAPARD'!AH413","v":0.50552663004538712},{"$f":"'[2]MONE(M)CAPARD'!AI413","v":-2.4016469645086462},{"$f":"'[2]MONE(M)CAPARD'!AJ413","v":3.7556575437281063},{"$f":"'[2]MONE(M)CAPARD'!AK413","v":0.99013504789773776},null,null,{"$f":"'[2]MONE(M)CAPARD'!AL413","v":3.66271776},{"$f":"'[2]MONE(M)CAPARD'!AM413","v":5.28},{"$f":"'[2]MONE(M)CAPARD'!AN413","v":3.42},{"$f":"'[2]MONE(M)CAPARD'!AO413","v":4.53},{"$f":"'[2]MONE(M)CAPARD'!AP413","v":3.69654914933282},{"$f":"'[2]MONE(M)CAPARD'!AQ413","v":4.2836999999999996},{"$f":"'[2]MONE(M)CAPARD'!AR413","v":3.21},null,null,{"$f":"'[2]MONE(M)CAPARD'!J413","v":16.980699957478407},{"$f":"'[2]MONE(M)CAPARD'!K413","v":4.5645009270704646},{"$f":"'[2]MONE(M)CAPARD'!L413","v":7.1662673560680918},{"$f":"'[2]MONE(M)CAPARD'!M413","v":8.2534583233819045},{"$f":"'[2]MONE(M)CAPARD'!N413","v":3.7645040178788149},{"$f":"'[2]MONE(M)CAPARD'!O413","v":9.6298172143794503},{"$f":"'[2]MONE(M)CAPARD'!P413","v":6.4827354877989025},null,null,{"$f":"'[2]MONE(M)CAPARD'!Q413","v":7.3299890899999998},{"$f":"'[2]MONE(M)CAPARD'!R413","v":7.8},{"$f":"'[2]MONE(M)CAPARD'!S413","v":6.61},{"$f":"'[2]MONE(M)CAPARD'!T413","v":9.11},{"$f":"'[2]MONE(M)CAPARD'!U413","v":8.6755169451763301},{"$f":"'[2]MONE(M)CAPARD'!V413","v":7.6123000000000003},{"$f":"'[2]MONE(M)CAPARD'!W413","v":8.8233333333333324},null,null,{"$f":"'[2]MONE(M)CAPARD'!AS413","v":6.5},{"$f":"'[2]MONE(M)CAPARD'!AT413","v":"n.a."},{"$f":"'[2]MONE(M)CAPARD'!AU413","v":5},{"$f":"'[2]MONE(M)CAPARD'!AV413","v":3},{"$f":"'[2]MONE(M)CAPARD'!AW413","v":7},{"$f":"'[2]MONE(M)CAPARD'!AX413","v":7.75},{"$f":"'[2]MONE(M)CAPARD'!AY413","v":"n.a."},null,null,{"$f":"+'Datos_Regional (M)'!CF406","v":-0.9972041197425896},{"$f":"+'Datos_Regional (M)'!CG406","v":6.1055199746823829},{"$f":"+'Datos_Regional (M)'!CH406","v":12.096063952840751},{"$f":"+'Datos_Regional (M)'!CI406","v":20.759635188308323},{"$f":"+'Datos_Regional (M)'!CJ406","v":17.489451042923122},{"$f":"+'Datos_Regional (M)'!CK406","v":18.974554579673143},{"$f":"+'Datos_Regional (M)'!CL406","v":2.607358980008101},null,null,1460.3361427566626,558.44500000000005,1217.9448826666664,979.26902931178483,634.04925707704842,1096.1916666666666,1394.6333333333332,5946.2359784788305,7340.8693118121637,null,null,1866.592320905,1326.86,2544.0084230833336,1638.1553776429955,821.37689365750009,2460.1999999999998,2779.3325000000004,10657.193015288829,13436.525515288829,null,null,-4710.9570368099985,-6095.6562034766639,null,null,{"$f":"'[2]EXT Comercio(M)'!C413","v":1550.5277859199946},{"$f":"'[2]EXT Comercio(M)'!D413","v":539.59999999999945},{"$f":"'[2]EXT Comercio(M)'!E413","v":1114.601641},{"$f":"'[2]EXT Comercio(M)'!F413","v":1056.8859023428895},{"$f":"'[2]EXT Comercio(M)'!G413","v":659.57491137000034},{"$f":"'[2]EXT Comercio(M)'!H413","v":1017.8000000000001},{"$f":"'[2]EXT Comercio(M)'!I413","v":1340.29},{"$f":"'[2]EXT Comercio(M)'!K413","v":5938.9902406328911},{"$f":"'[2]EXT Comercio(M)'!L413","v":7279.2802406328919},null,null,{"$f":"'[2]EXT Comercio(M)'!AG413","v":1926.034393950001},{"$f":"'[2]EXT Comercio(M)'!AH413","v":1360.5900000000001},{"$f":"'[2]EXT Comercio(M)'!AI413","v":2695.1545020000003},{"$f":"'[2]EXT Comercio(M)'!AJ413","v":1774.1824234472087},{"$f":"'[2]EXT Comercio(M)'!AK413","v":912.19906573999981},{"$f":"'[2]EXT Comercio(M)'!AL413","v":2531.3000000000002},{"$f":"'[2]EXT Comercio(M)'!AM413","v":2297.56},{"$f":"'[2]EXT Comercio(M)'!AO413","v":11199.460385137209},{"$f":"'[2]EXT Comercio(M)'!AP413","v":13497.020385137206},null,null,{"$f":"'[2]EXT Comercio(M)'!$BS413","v":-5260.4701445043247},{"$f":"'[2]EXT Comercio(M)'!$BT413","v":-6217.7401445043215}]
[null,null,"Setiembre",{"$f":"'[2]REAL IPC(M)'!AD414","v":-2.2351108688117942},{"$f":"'[2]REAL IPC(M)'!AE414","v":3.0189878446015594},{"$f":"'[2]REAL IPC(M)'!AF414","v":4.6870275173873583},{"$f":"'[2]REAL IPC(M)'!AG414","v":6.1270801815431053},{"$f":"'[2]REAL IPC(M)'!AH414","v":7.1705760814651702},{"$f":"'[2]REAL IPC(M)'!AI414","v":4.4102606812692606},{"$f":"'[2]REAL IPC(M)'!AJ414","v":2.313229338491213},null,null,{"$f":"'[2]REAL IMAE(M)'!AG414","v":5.8909040532085895},{"$f":"'[2]REAL IMAE(M)'!AH414","v":1.8472468937439639},{"$f":"'[2]REAL IMAE(M)'!AI414","v":""},{"$f":"'[2]REAL IMAE(M)'!AJ414","v":3.4539713690237019},{"$f":"'[2]REAL IMAE(M)'!AK414","v":5.7336094598724996},{"$f":"'[2]REAL IMAE(M)'!AL414","v":2.8270134070367661},{"$f":"'[2]REAL IMAE(M)'!AM414","v":7.8099999999999978},null,null,{"$f":"'[2]EXT ITCER(M)'!C414","v":80.588553054558574},{"$f":"'[2]EXT ITCER(M)'!D414","v":100.36127111607389},{"$f":"'[2]EXT ITCER(M)'!E414","v":53.750599755911402},{"$f":"'[2]EXT ITCER(M)'!F414","v":74.971401084416343},{"$f":"'[2]EXT ITCER(M)'!G414","v":108.22146848349981},{"$f":"'[2]EXT ITCER(M)'!H414","v":115.8867645073324},{"$f":"'[2]EXT ITCER(M)'!I414","v":106.3561344005569},null,null,{"$f":"'[2]EXT TC(M)'!J414","v":-16.537071491757988},{"$f":"'[2]EXT TC(M)'!K414","v":0},{"$f":"'[2]EXT TC(M)'!L414","v":0.71699910519538079},{"$f":"'[2]EXT TC(M)'!M414","v":0.14299967871333719},{"$f":"'[2]EXT TC(M)'!N414","v":1.2654067643113098},{"$f":"'[2]EXT TC(M)'!O414","v":6.4868117918096715},{"$f":"'[2]EXT TC(M)'!P414","v":0},null,null,{"$f":"'[2]EXT RIN(M)'!C414","v":11333.6},{"$f":"'[2]EXT RIN(M)'!D414","v":2522.89},{"$f":"'[2]EXT RIN(M)'!E414","v":20292.599999999999},{"$f":"'[2]EXT RIN(M)'!F414","v":7687.1},{"$f":"'[2]EXT RIN(M)'!G414","v":5150.6745756437504},{"$f":"'[2]EXT RIN(M)'!H414","v":15851.05099860329},{"$f":"'[2]EXT RIN(M)'!I414","v":4208.1110807599998},null,null,{"$f":"'[2]EXT RIN(M)'!P414","v":73.977270210957911},{"$f":"'[2]EXT RIN(M)'!Q414","v":98.873816147037203},{"$f":"'[2]EXT RIN(M)'!R414","v":113.6868960661281},{"$f":"'[2]EXT RIN(M)'!S414","v":96.958905345219023},{"$f":"'[2]EXT RIN(M)'!T414","v":164.95564606123554},{"$f":"'[2]EXT RIN(M)'!U414","v":116.97249974447104},{"$f":"'[2]EXT RIN(M)'!V414","v":192.33291528285426},null,null,{"$f":"+'[2]MONE(M)CAPARD'!AE414","v":7.9937807307538575},{"$f":"'[2]MONE(M)CAPARD'!AF414","v":2.3209431634148361},{"$f":"'[2]MONE(M)CAPARD'!AG414","v":-0.35059503177353929},{"$f":"'[2]MONE(M)CAPARD'!AH414","v":0.28543121881683142},{"$f":"'[2]MONE(M)CAPARD'!AI414","v":-1.7108649749319986},{"$f":"'[2]MONE(M)CAPARD'!AJ414","v":3.6763046981064935},{"$f":"'[2]MONE(M)CAPARD'!AK414","v":0.74943452226692664},null,null,{"$f":"'[2]MONE(M)CAPARD'!AL414","v":3.5488026100000001},{"$f":"'[2]MONE(M)CAPARD'!AM414","v":5.41},{"$f":"'[2]MONE(M)CAPARD'!AN414","v":3.46},{"$f":"'[2]MONE(M)CAPARD'!AO414","v":4.66},{"$f":"'[2]MONE(M)CAPARD'!AP414","v":4.2662182727119902},{"$f":"'[2]MONE(M)CAPARD'!AQ414","v":4.3925999999999998},{"$f":"'[2]MONE(M)CAPARD'!AR414","v":3.0799999999999996},null,null,{"$f":"'[2]MONE(M)CAPARD'!J414","v":15.068841083677038},{"$f":"'[2]MONE(M)CAPARD'!K414","v":4.699145523251345},{"$f":"'[2]MONE(M)CAPARD'!L414","v":6.9377960716348941},{"$f":"'[2]MONE(M)CAPARD'!M414","v":7.9083677833214647},{"$f":"'[2]MONE(M)CAPARD'!N414","v":2.3765809772830511},{"$f":"'[2]MONE(M)CAPARD'!O414","v":9.0910981897716585},{"$f":"'[2]MONE(M)CAPARD'!P414","v":6.4009248130214331},null,null,{"$f":"'[2]MONE(M)CAPARD'!Q414","v":7.1330687700000004},{"$f":"'[2]MONE(M)CAPARD'!R414","v":7.86},{"$f":"'[2]MONE(M)CAPARD'!S414","v":6.62},{"$f":"'[2]MONE(M)CAPARD'!T414","v":9.14},{"$f":"'[2]MONE(M)CAPARD'!U414","v":8.4176574073951809},{"$f":"'[2]MONE(M)CAPARD'!V414","v":8.0509000000000004},{"$f":"'[2]MONE(M)CAPARD'!W414","v":8.862222222222222},null,null,{"$f":"'[2]MONE(M)CAPARD'!AS414","v":6.5},{"$f":"'[2]MONE(M)CAPARD'!AT414","v":"n.a."},{"$f":"'[2]MONE(M)CAPARD'!AU414","v":5},{"$f":"'[2]MONE(M)CAPARD'!AV414","v":3},{"$f":"'[2]MONE(M)CAPARD'!AW414","v":7},{"$f":"'[2]MONE(M)CAPARD'!AX414","v":7.5},{"$f":"'[2]MONE(M)CAPARD'!AY414","v":"n.a."},null,null,{"$f":"+'Datos_Regional (M)'!CF407","v":0.53708518938404559},{"$f":"+'Datos_Regional (M)'!CG407","v":5.734548206944079},{"$f":"+'Datos_Regional (M)'!CH407","v":11.305044061777636},{"$f":"+'Datos_Regional (M)'!CI407","v":20.939544594813132},{"$f":"+'Datos_Regional (M)'!CJ407","v":""},{"$f":"+'Datos_Regional (M)'!CK407","v":18.171150587999406},{"$f":"+'Datos_Regional (M)'!CL407","v":3.2879856601184754},null,null,1469.7600358391621,551.59666666666681,1213.2862937500001,964.12059587947226,632.62369907454843,1091.4999999999998,1380.9108333333334,5922.8872912098495,7303.7981245431829,null,null,{"$f":"IF(ES219=\"\",\"\",+AVERAGE(ES208:ES219))","v":1872.8089633466661},{"$f":"IF(ET219=\"\",\"\",+AVERAGE(ET208:ET219))","v":1320.8883333333331},{"$f":"IF(EU219=\"\",\"\",+AVERAGE(EU208:EU219))","v":2528.8940586666672},{"$f":"IF(EV219=\"\",\"\",+AVERAGE(EV208:EV219))","v":1621.3455780562551},{"$f":"IF(EW219=\"\",\"\",+AVERAGE(EW208:EW219))","v":823.22503026666664},{"$f":"IF(EX219=\"\",\"\",+AVERAGE(EX208:EX219))","v":2432.1833333333334},{"$f":"IF(EY219=\"\",\"\",+AVERAGE(EY208:EY219))","v":2744.9158333333339},{"$f":"IF(EZ219=\"\",\"\",+AVERAGE(EZ208:EZ219))","v":10599.345297002923},{"$f":"IF(FA219=\"\",\"\",+AVERAGE(FA208:FA219))","v":13344.261130336257},null,null,{"$f":"IF(FD219=\"\",\"\",+AVERAGE(FD208:FD219))","v":-4676.4580057930716},{"$f":"IF(FE219=\"\",\"\",+AVERAGE(FE208:FE219))","v":-6040.4630057930726},null,null,{"$f":"'[2]EXT Comercio(M)'!C414","v":1524.9124065699953},{"$f":"'[2]EXT Comercio(M)'!D414","v":502.44000000000051},{"$f":"'[2]EXT Comercio(M)'!E414","v":1138.583856},{"$f":"'[2]EXT Comercio(M)'!F414","v":860.39020757592164},{"$f":"'[2]EXT Comercio(M)'!G414","v":573.43888629000003},{"$f":"'[2]EXT Comercio(M)'!H414","v":1020.1},{"$f":"'[2]EXT Comercio(M)'!I414","v":1388.52},{"$f":"'[2]EXT Comercio(M)'!K414","v":5619.865356435912},{"$f":"'[2]EXT Comercio(M)'!L414","v":7008.3853564359088},null,null,{"$f":"'[2]EXT Comercio(M)'!AG414","v":1886.3397861699968},{"$f":"'[2]EXT Comercio(M)'!AH414","v":1326.6800000000003},{"$f":"'[2]EXT Comercio(M)'!AI414","v":2496.943902},{"$f":"'[2]EXT Comercio(M)'!AJ414","v":1609.9728609740578},{"$f":"'[2]EXT Comercio(M)'!AK414","v":853.47822183000017},{"$f":"'[2]EXT Comercio(M)'!AL414","v":2343.2000000000003},{"$f":"'[2]EXT Comercio(M)'!AM414","v":2173.0100000000002},{"$f":"'[2]EXT Comercio(M)'!AO414","v":10516.614770974062},{"$f":"'[2]EXT Comercio(M)'!AP414","v":12689.624770974071},null,null,{"$f":"'[2]EXT Comercio(M)'!$BS414","v":-4896.7494145381352},{"$f":"'[2]EXT Comercio(M)'!$BT414","v":-5681.2394145381404}]
[null,null,"Octubre",{"$f":"'[2]REAL IPC(M)'!AD415","v":-1.2789415066900658},{"$f":"'[2]REAL IPC(M)'!AE415","v":2.6664562953612978},{"$f":"'[2]REAL IPC(M)'!AF415","v":4.9829310654608525},{"$f":"'[2]REAL IPC(M)'!AG415","v":5.8366733466933898},{"$f":"'[2]REAL IPC(M)'!AH415","v":6.0049534095138526},{"$f":"'[2]REAL IPC(M)'!AI415","v":4.3458328142519047},{"$f":"'[2]REAL IPC(M)'!AJ415","v":2.0844493051215918},null,null,{"$f":"'[2]REAL IMAE(M)'!AG415","v":5.3611243526507932},{"$f":"'[2]REAL IMAE(M)'!AH415","v":2.3432946331495477},{"$f":"'[2]REAL IMAE(M)'!AI415","v":""},{"$f":"'[2]REAL IMAE(M)'!AJ415","v":3.1459121344515673},{"$f":"'[2]REAL IMAE(M)'!AK415","v":5.7617502773351603},{"$f":"'[2]REAL IMAE(M)'!AL415","v":3.4959262720370496},{"$f":"'[2]REAL IMAE(M)'!AM415","v":""},null,null,{"$f":"'[2]EXT ITCER(M)'!C415","v":80.159952894609717},{"$f":"'[2]EXT ITCER(M)'!D415","v":100.0436971467572},{"$f":"'[2]EXT ITCER(M)'!E415","v":52.936507791102898},{"$f":"'[2]EXT ITCER(M)'!F415","v":74.832100069266573},{"$f":"'[2]EXT ITCER(M)'!G415","v":108.08026137613651},{"$f":"'[2]EXT ITCER(M)'!H415","v":115.799962601597},{"$f":"'[2]EXT ITCER(M)'!I415","v":106.5991870666471},null,null,{"$f":"'[2]EXT TC(M)'!J415","v":-14.611271107459991},{"$f":"'[2]EXT TC(M)'!K415","v":0},{"$f":"'[2]EXT TC(M)'!L415","v":-0.1983098994157855},{"$f":"'[2]EXT TC(M)'!M415","v":-4.8500264549678131E-2},{"$f":"'[2]EXT TC(M)'!N415","v":1.204550588541776},{"$f":"'[2]EXT TC(M)'!O415","v":5.5947221922055022},{"$f":"'[2]EXT TC(M)'!P415","v":0},null,null,{"$f":"'[2]EXT RIN(M)'!C415","v":11493.5},{"$f":"'[2]EXT RIN(M)'!D415","v":2585.87},{"$f":"'[2]EXT RIN(M)'!E415","v":21067.4},{"$f":"'[2]EXT RIN(M)'!F415","v":7643.4},{"$f":"'[2]EXT RIN(M)'!G415","v":5284.6},{"$f":"'[2]EXT RIN(M)'!H415","v":15329.17938719391},{"$f":"'[2]EXT RIN(M)'!I415","v":4841.53590024},null,null,{"$f":"'[2]EXT RIN(M)'!P415","v":73.691932659472741},{"$f":"'[2]EXT RIN(M)'!Q415","v":101.45222070302154},{"$f":"'[2]EXT RIN(M)'!R415","v":116.6280668143538},{"$f":"'[2]EXT RIN(M)'!S415","v":97.730205468665659},{"$f":"'[2]EXT RIN(M)'!T415","v":167.67236233846401},{"$f":"'[2]EXT RIN(M)'!U415","v":113.84593531502098},{"$f":"'[2]EXT RIN(M)'!V415","v":222.38881226916055},null,null,{"$f":"+'[2]MONE(M)CAPARD'!AE415","v":6.8262451897704741},{"$f":"'[2]MONE(M)CAPARD'!AF415","v":2.5261841094206385},{"$f":"'[2]MONE(M)CAPARD'!AG415","v":-0.57431342346967063},{"$f":"'[2]MONE(M)CAPARD'!AH415","v":0.75902485207100268},{"$f":"'[2]MONE(M)CAPARD'!AI415","v":-0.90959011922858335},{"$f":"'[2]MONE(M)CAPARD'!AJ415","v":3.9577691550936929},{"$f":"'[2]MONE(M)CAPARD'!AK415","v":1.4552174253673305},null,null,{"$f":"'[2]MONE(M)CAPARD'!AL415","v":3.7295029799999999},{"$f":"'[2]MONE(M)CAPARD'!AM415","v":5.26},{"$f":"'[2]MONE(M)CAPARD'!AN415","v":3.47},{"$f":"'[2]MONE(M)CAPARD'!AO415","v":4.79},{"$f":"'[2]MONE(M)CAPARD'!AP415","v":4.2324879521787704},{"$f":"'[2]MONE(M)CAPARD'!AQ415","v":4.5031999999999996},{"$f":"'[2]MONE(M)CAPARD'!AR415","v":3.57},null,null,{"$f":"'[2]MONE(M)CAPARD'!J415","v":14.725642723609189},{"$f":"'[2]MONE(M)CAPARD'!K415","v":5.0099554326110489},{"$f":"'[2]MONE(M)CAPARD'!L415","v":6.6840093559244762},{"$f":"'[2]MONE(M)CAPARD'!M415","v":8.0816284023668601},{"$f":"'[2]MONE(M)CAPARD'!N415","v":3.2106921917162974},{"$f":"'[2]MONE(M)CAPARD'!O415","v":8.708414069514216},{"$f":"'[2]MONE(M)CAPARD'!P415","v":6.5925762299089063},null,null,{"$f":"'[2]MONE(M)CAPARD'!Q415","v":7.8253168200000003},{"$f":"'[2]MONE(M)CAPARD'!R415","v":7.81},{"$f":"'[2]MONE(M)CAPARD'!S415","v":6.63},{"$f":"'[2]MONE(M)CAPARD'!T415","v":9.33},{"$f":"'[2]MONE(M)CAPARD'!U415","v":8.1513587265507503},{"$f":"'[2]MONE(M)CAPARD'!V415","v":8.2530999999999999},{"$f":"'[2]MONE(M)CAPARD'!W415","v":8.8144444444444456},null,null,{"$f":"'[2]MONE(M)CAPARD'!AS415","v":6.25},{"$f":"'[2]MONE(M)CAPARD'!AT415","v":"n.a."},{"$f":"'[2]MONE(M)CAPARD'!AU415","v":5},{"$f":"'[2]MONE(M)CAPARD'!AV415","v":3},{"$f":"'[2]MONE(M)CAPARD'!AW415","v":7},{"$f":"'[2]MONE(M)CAPARD'!AX415","v":7.5},{"$f":"'[2]MONE(M)CAPARD'!AY415","v":"n.a."},null,null,{"$f":"+'Datos_Regional (M)'!CF408","v":""},{"$f":"+'Datos_Regional (M)'!CG408","v":5.1458002774564138},{"$f":"+'Datos_Regional (M)'!CH408","v":10.89743649228625},{"$f":"+'Datos_Regional (M)'!CI408","v":20.629938082802425},{"$f":"+'Datos_Regional (M)'!CJ408","v":""},{"$f":"+'Datos_Regional (M)'!CK408","v":19.34011503277069},{"$f":"+'Datos_Regional (M)'!CL408","v":2.7692384523124725},null,null,{"$f":"IF(EH220=\"\",\"\",+AVERAGE(EH209:EH220))","v":1489.4389791183285},{"$f":"IF(EI220=\"\",\"\",+AVERAGE(EI209:EI220))","v":546.19166666666683},{"$f":"IF(EJ220=\"\",\"\",+AVERAGE(EJ209:EJ220))","v":1199.7246446666666},{"$f":"IF(EK220=\"\",\"\",+AVERAGE(EK209:EK220))","v":957.18972165068487},{"$f":"IF(EL220=\"\",\"\",+AVERAGE(EL209:EL220))","v":632.77262581288176},{"$f":"IF(EM220=\"\",\"\",+AVERAGE(EM209:EM220))","v":""},{"$f":"IF(EN220=\"\",\"\",+AVERAGE(EN209:EN220))","v":1377.6783333333333},{"$f":"IF(EO220=\"\",\"\",+AVERAGE(EO209:EO220))","v":""},{"$f":"IF(EP220=\"\",\"\",+AVERAGE(EP209:EP220))","v":""},null,null,1873.699299228334,1314.3600000000004,2519.7710645833336,1614.0326448157314,832.0212187858333,"",2703.2241666666669,"","",null,null,"","",null,null,{"$f":"'[2]EXT Comercio(M)'!C415","v":1595.5412489099949},{"$f":"'[2]EXT Comercio(M)'!D415","v":495.80000000000018},{"$f":"'[2]EXT Comercio(M)'!E415","v":1001.862648},{"$f":"'[2]EXT Comercio(M)'!F415","v":801.2884514414593},{"$f":"'[2]EXT Comercio(M)'!G415","v":578.44242613999995},{"$f":"'[2]EXT Comercio(M)'!H415","v":""},{"$f":"'[2]EXT Comercio(M)'!I415","v":1317.78},{"$f":"'[2]EXT Comercio(M)'!K415","v":""},{"$f":"'[2]EXT Comercio(M)'!L415","v":""},null,null,{"$f":"'[2]EXT Comercio(M)'!AG415","v":1962.4067301700152},{"$f":"'[2]EXT Comercio(M)'!AH415","v":1326.7500000000018},{"$f":"'[2]EXT Comercio(M)'!AI415","v":2501.732039},{"$f":"'[2]EXT Comercio(M)'!AJ415","v":1584.1570489842418},{"$f":"'[2]EXT Comercio(M)'!AK415","v":940.44226625999977},{"$f":"'[2]EXT Comercio(M)'!AL415","v":""},{"$f":"'[2]EXT Comercio(M)'!AM415","v":2216.3500000000004},{"$f":"'[2]EXT Comercio(M)'!AO415","v":""},{"$f":"'[2]EXT Comercio(M)'!AP415","v":""},null,null,{"$f":"'[2]EXT Comercio(M)'!$BS415","v":""},{"$f":"'[2]EXT Comercio(M)'!$BT415","v":""}]
[null,null,"Noviembre",{"$f":"'[2]REAL IPC(M)'!AD416","v":-1.6449220561934657},{"$f":"'[2]REAL IPC(M)'!AE416","v":2.1076549400611122},{"$f":"'[2]REAL IPC(M)'!AF416","v":4.3004312410158017},{"$f":"'[2]REAL IPC(M)'!AG416","v":5.035971223021571},{"$f":"'[2]REAL IPC(M)'!AH416","v":5.6466635263341791},{"$f":"'[2]REAL IPC(M)'!AI416","v":4.0039349899971919},{"$f":"'[2]REAL IPC(M)'!AJ416","v":2.0104656411551898},null,null,{"$f":"'[2]REAL IMAE(M)'!AG416","v":4.8030044974311563},{"$f":"'[2]REAL IMAE(M)'!AH416","v":4.2118691248488069},{"$f":"'[2]REAL IMAE(M)'!AI416","v":""},{"$f":"'[2]REAL IMAE(M)'!AJ416","v":3.0034025626020355},{"$f":"'[2]REAL IMAE(M)'!AK416","v":5.7627337374297181},{"$f":"'[2]REAL IMAE(M)'!AL416","v":4.2876963550567027},{"$f":"'[2]REAL IMAE(M)'!AM416","v":""},null,null,{"$f":"'[2]EXT ITCER(M)'!C416","v":80.235066402940518},{"$f":"'[2]EXT ITCER(M)'!D416","v":100.0022967943394},{"$f":"'[2]EXT ITCER(M)'!E416","v":53.246461361842158},{"$f":"'[2]EXT ITCER(M)'!F416","v":74.7878856280729},{"$f":"'[2]EXT ITCER(M)'!G416","v":107.8900380253848},{"$f":"'[2]EXT ITCER(M)'!H416","v":115.81778253454161},{"$f":"'[2]EXT ITCER(M)'!I416","v":106.65491002429169},null,null,{"$f":"'[2]EXT TC(M)'!J416","v":-12.9101536711736},{"$f":"'[2]EXT TC(M)'!K416","v":0},{"$f":"'[2]EXT TC(M)'!L416","v":0.20034164603570828},{"$f":"'[2]EXT TC(M)'!M416","v":2.3308906581966625E-2},{"$f":"'[2]EXT TC(M)'!N416","v":1.1165199596405284},{"$f":"'[2]EXT TC(M)'!O416","v":4.6157251964727068},{"$f":"'[2]EXT TC(M)'!P416","v":0},null,null,{"$f":"'[2]EXT RIN(M)'!C416","v":12876.9},{"$f":"'[2]EXT RIN(M)'!D416","v":2788.94},{"$f":"'[2]EXT RIN(M)'!E416","v":21038.5},{"$f":"'[2]EXT RIN(M)'!F416","v":7544.7},{"$f":"'[2]EXT RIN(M)'!G416","v":5356.6},{"$f":"'[2]EXT RIN(M)'!H416","v":15044.498005657862},{"$f":"'[2]EXT RIN(M)'!I416","v":6441.4019724600003},null,null,{"$f":"'[2]EXT RIN(M)'!P416","v":""},{"$f":"'[2]EXT RIN(M)'!Q416","v":105.29499088606755},{"$f":"'[2]EXT RIN(M)'!R416","v":117.7881676306606},{"$f":"'[2]EXT RIN(M)'!S416","v":93.654736779094847},{"$f":"'[2]EXT RIN(M)'!T416","v":""},{"$f":"'[2]EXT RIN(M)'!U416","v":113.9497436619308},{"$f":"'[2]EXT RIN(M)'!V416","v":291.89253266365381},null,null,{"$f":"+'[2]MONE(M)CAPARD'!AE416","v":7.132241875911399},{"$f":"'[2]MONE(M)CAPARD'!AF416","v":3.4006706568446923},{"$f":"'[2]MONE(M)CAPARD'!AG416","v":0.13381417250489161},{"$f":"'[2]MONE(M)CAPARD'!AH416","v":1.7460958904109705},{"$f":"'[2]MONE(M)CAPARD'!AI416","v":0.52486756449177885},{"$f":"'[2]MONE(M)CAPARD'!AJ416","v":4.4996999492883658},{"$f":"'[2]MONE(M)CAPARD'!AK416","v":1.4136141324141107},null,null,{"$f":"'[2]MONE(M)CAPARD'!AL416","v":""},{"$f":"'[2]MONE(M)CAPARD'!AM416","v":5.58},{"$f":"'[2]MONE(M)CAPARD'!AN416","v":3.53},{"$f":"'[2]MONE(M)CAPARD'!AO416","v":4.93},{"$f":"'[2]MONE(M)CAPARD'!AP416","v":4.9009007133332103},{"$f":"'[2]MONE(M)CAPARD'!AQ416","v":4.5178000000000003},{"$f":"'[2]MONE(M)CAPARD'!AR416","v":3.4525000000000001},null,null,{"$f":"'[2]MONE(M)CAPARD'!J416","v":""},{"$f":"'[2]MONE(M)CAPARD'!K416","v":5.5356721915285476},{"$f":"'[2]MONE(M)CAPARD'!L416","v":7.2958171586080276},{"$f":"'[2]MONE(M)CAPARD'!M416","v":9.2197260273972734},{"$f":"'[2]MONE(M)CAPARD'!N416","v":4.7586295172233442},{"$f":"'[2]MONE(M)CAPARD'!O416","v":10.108141591963715},{"$f":"'[2]MONE(M)CAPARD'!P416","v":6.7515740599109328},null,null,{"$f":"'[2]MONE(M)CAPARD'!Q416","v":""},{"$f":"'[2]MONE(M)CAPARD'!R416","v":7.76},{"$f":"'[2]MONE(M)CAPARD'!S416","v":6.72},{"$f":"'[2]MONE(M)CAPARD'!T416","v":9.4600000000000009},{"$f":"'[2]MONE(M)CAPARD'!U416","v":9.3056041673129002},{"$f":"'[2]MONE(M)CAPARD'!V416","v":8.0027000000000008},{"$f":"'[2]MONE(M)CAPARD'!W416","v":8.8977777777777778},null,null,{"$f":"'[2]MONE(M)CAPARD'!AS416","v":6.25},{"$f":"'[2]MONE(M)CAPARD'!AT416","v":"n.a."},{"$f":"'[2]MONE(M)CAPARD'!AU416","v":5},{"$f":"'[2]MONE(M)CAPARD'!AV416","v":3},{"$f":"'[2]MONE(M)CAPARD'!AW416","v":7},{"$f":"'[2]MONE(M)CAPARD'!AX416","v":7.25},{"$f":"'[2]MONE(M)CAPARD'!AY416","v":"n.a."},null,null,{"$f":"+'Datos_Regional (M)'!CF409","v":""},{"$f":"+'Datos_Regional (M)'!CG409","v":4.8243782365877896},{"$f":"+'Datos_Regional (M)'!CH409","v":10.997238415303734},{"$f":"+'Datos_Regional (M)'!CI409","v":""},{"$f":"+'Datos_Regional (M)'!CJ409","v":""},{"$f":"+'Datos_Regional (M)'!CK409","v":18.841212190955648},{"$f":"+'Datos_Regional (M)'!CL409","v":3.2765095852953063},null,null,1501.4206587916613,543.90666666666675,1192.5325941666665,948.44774000208406,633.43691664788173,"",1330.2833333333331,"","",null,null,1871.3004228833345,1305.5666666666668,2526.614251583333,1620.216476827329,830.67966683166662,"",2792.8825000000002,"","",null,null,"","",null,null,{"$f":"'[2]EXT Comercio(M)'!C416","v":1531.5164936399938},{"$f":"'[2]EXT Comercio(M)'!D416","v":503.14999999999964},{"$f":"'[2]EXT Comercio(M)'!E416","v":1063.996433},{"$f":"'[2]EXT Comercio(M)'!F416","v":851.08601763629497},{"$f":"'[2]EXT Comercio(M)'!G416","v":578.68235456000025},{"$f":"'[2]EXT Comercio(M)'!H416","v":""},{"$f":"'[2]EXT Comercio(M)'!I416","v":1050.04},{"$f":"'[2]EXT Comercio(M)'!K416","v":""},{"$f":"'[2]EXT Comercio(M)'!L416","v":""},null,null,{"$f":"'[2]EXT Comercio(M)'!AG416","v":1958.0961464000075},{"$f":"'[2]EXT Comercio(M)'!AH416","v":1320.3799999999992},{"$f":"'[2]EXT Comercio(M)'!AI416","v":2713.3891610000001},{"$f":"'[2]EXT Comercio(M)'!AJ416","v":1724.8612578849975},{"$f":"'[2]EXT Comercio(M)'!AK416","v":858.79110557000001},{"$f":"'[2]EXT Comercio(M)'!AL416","v":""},{"$f":"'[2]EXT Comercio(M)'!AM416","v":3102.1499999999996},{"$f":"'[2]EXT Comercio(M)'!AO416","v":""},{"$f":"'[2]EXT Comercio(M)'!AP416","v":""},null,null,{"$f":"'[2]EXT Comercio(M)'!$BS416","v":""},{"$f":"'[2]EXT Comercio(M)'!$BT416","v":""}]
[null,null,"Diciembre ",{"$f":"'[2]REAL IPC(M)'!AD417","v":-1.76529222322297},{"$f":"'[2]REAL IPC(M)'!AE417","v":1.2287704468967735},{"$f":"'[2]REAL IPC(M)'!AF417","v":4.1768748132656226},{"$f":"'[2]REAL IPC(M)'!AG417","v":5.1903114186851207},{"$f":"'[2]REAL IPC(M)'!AH417","v":5.6037563405793174},{"$f":"'[2]REAL IPC(M)'!AI417","v":3.5688785536486272},{"$f":"'[2]REAL IPC(M)'!AJ417","v":1.9209050025499335},null,null,{"$f":"'[2]REAL IMAE(M)'!AG417","v":4.4020520689937053},{"$f":"'[2]REAL IMAE(M)'!AH417","v":""},{"$f":"'[2]REAL IMAE(M)'!AI417","v":""},{"$f":"'[2]REAL IMAE(M)'!AJ417","v":3.0733919412744695},{"$f":"'[2]REAL IMAE(M)'!AK417","v":""},{"$f":"'[2]REAL IMAE(M)'!AL417","v":""},{"$f":"'[2]REAL IMAE(M)'!AM417","v":""},null,null,null,null,null,null,null,null,null,null,null,{"$f":"'[2]EXT TC(M)'!J417","v":-11.154212726728264},{"$f":"'[2]EXT TC(M)'!K417","v":0},{"$f":"'[2]EXT TC(M)'!L417","v":-0.51774374870946005},{"$f":"'[2]EXT TC(M)'!M417","v":0.14449904077503772},{"$f":"'[2]EXT TC(M)'!N417","v":0.99508681063265469},{"$f":"'[2]EXT TC(M)'!O417","v":3.6142898782141475},{"$f":"'[2]EXT TC(M)'!P417","v":0},null,null,{"$f":"'[2]EXT RIN(M)'!C417","v":13218.9},{"$f":"'[2]EXT RIN(M)'!D417","v":2645.52},{"$f":"'[2]EXT RIN(M)'!E417","v":21319.4},{"$f":"'[2]EXT RIN(M)'!F417","v":7555.9},{"$f":"'[2]EXT RIN(M)'!G417","v":5443.0475190132547},{"$f":"'[2]EXT RIN(M)'!H417","v":15457.674238995156},{"$f":"'[2]EXT RIN(M)'!I417","v":""},null,null,{"$f":"'[2]EXT RIN(M)'!P417","v":""},{"$f":"'[2]EXT RIN(M)'!Q417","v":100.02431114944098},{"$f":"'[2]EXT RIN(M)'!R417","v":110.03363582202279},{"$f":"'[2]EXT RIN(M)'!S417","v":""},{"$f":"'[2]EXT RIN(M)'!T417","v":""},{"$f":"'[2]EXT RIN(M)'!U417","v":112.44531660566138},{"$f":"'[2]EXT RIN(M)'!V417","v":""},null,null,{"$f":"+'[2]MONE(M)CAPARD'!AE417","v":7.2533347779830324},{"$f":"'[2]MONE(M)CAPARD'!AF417","v":4.1502327199628821},{"$f":"'[2]MONE(M)CAPARD'!AG417","v":0.31016978318227628},{"$f":"'[2]MONE(M)CAPARD'!AH417","v":1.7964473684210533},{"$f":"'[2]MONE(M)CAPARD'!AI417","v":-0.14687333289329438},{"$f":"'[2]MONE(M)CAPARD'!AJ417","v":4.6697632666227138},{"$f":"'[2]MONE(M)CAPARD'!AK417","v":""},null,null,{"$f":"'[2]MONE(M)CAPARD'!AL417","v":""},{"$f":"'[2]MONE(M)CAPARD'!AM417","v":5.43},{"$f":"'[2]MONE(M)CAPARD'!AN417","v":3.56},{"$f":"'[2]MONE(M)CAPARD'!AO417","v":5.12},{"$f":"'[2]MONE(M)CAPARD'!AP417","v":4.79702325382737},{"$f":"'[2]MONE(M)CAPARD'!AQ417","v":4.2973999999999997},{"$f":"'[2]MONE(M)CAPARD'!AR417","v":""},null,null,{"$f":"'[2]MONE(M)CAPARD'!J417","v":""},{"$f":"'[2]MONE(M)CAPARD'!K417","v":6.8866089376836168},{"$f":"'[2]MONE(M)CAPARD'!L417","v":7.5958557990134095},{"$f":"'[2]MONE(M)CAPARD'!M417","v":9.2876315789473711},{"$f":"'[2]MONE(M)CAPARD'!N417","v":7.3728066761589606},{"$f":"'[2]MONE(M)CAPARD'!O417","v":9.6825625481276312},{"$f":"'[2]MONE(M)CAPARD'!P417","v":""},null,null,{"$f":"'[2]MONE(M)CAPARD'!Q417","v":""},{"$f":"'[2]MONE(M)CAPARD'!R417","v":8.1999999999999993},{"$f":"'[2]MONE(M)CAPARD'!S417","v":6.77},{"$f":"'[2]MONE(M)CAPARD'!T417","v":9.43},{"$f":"'[2]MONE(M)CAPARD'!U417","v":8.8768098461120104},{"$f":"'[2]MONE(M)CAPARD'!V417","v":8.5478000000000005},{"$f":"'[2]MONE(M)CAPARD'!W417","v":""},null,null,{"$f":"'[2]MONE(M)CAPARD'!AS417","v":6},{"$f":"'[2]MONE(M)CAPARD'!AT417","v":"n.a."},{"$f":"'[2]MONE(M)CAPARD'!AU417","v":5},{"$f":"'[2]MONE(M)CAPARD'!AV417","v":3},{"$f":"'[2]MONE(M)CAPARD'!AW417","v":7},{"$f":"'[2]MONE(M)CAPARD'!AX417","v":7},{"$f":"'[2]MONE(M)CAPARD'!AY417","v":"n.a."},null,null,{"$f":"+'Datos_Regional (M)'!CF410","v":""},{"$f":"+'Datos_Regional (M)'!CG410","v":""},{"$f":"+'Datos_Regional (M)'!CH410","v":11.037296229953753},{"$f":"+'Datos_Regional (M)'!CI410","v":""},{"$f":"+'Datos_Regional (M)'!CJ410","v":""},{"$f":"+'Datos_Regional (M)'!CK410","v":19.790073580585354},{"$f":"+'Datos_Regional (M)'!CL410","v":""},null,null,1508.8478111716613,541.50750000000005,"",945.68344579241284,"","","","","",null,null,1876.3246918741688,1304.0283333333334,"",1610.6179211636006,"","","","","",null,null,"","",null,null,{"$f":"'[2]EXT Comercio(M)'!C417","v":1423.0999180000006},{"$f":"'[2]EXT Comercio(M)'!D417","v":449.11000000000058},{"$f":"'[2]EXT Comercio(M)'!E417","v":""},{"$f":"'[2]EXT Comercio(M)'!F417","v":749.228136053551},{"$f":"'[2]EXT Comercio(M)'!G417","v":""},{"$f":"'[2]EXT Comercio(M)'!H417","v":""},{"$f":"'[2]EXT Comercio(M)'!I417","v":""},{"$f":"'[2]EXT Comercio(M)'!K417","v":""},{"$f":"'[2]EXT Comercio(M)'!L417","v":""},null,null,{"$f":"'[2]EXT Comercio(M)'!AG417","v":1846.7449884100106},{"$f":"'[2]EXT Comercio(M)'!AH417","v":1248.7399999999998},{"$f":"'[2]EXT Comercio(M)'!AI417","v":""},{"$f":"'[2]EXT Comercio(M)'!AJ417","v":1449.6686284673665},{"$f":"'[2]EXT Comercio(M)'!AK417","v":""},{"$f":"'[2]EXT Comercio(M)'!AL417","v":""},{"$f":"'[2]EXT Comercio(M)'!AM417","v":""},{"$f":"'[2]EXT Comercio(M)'!AO417","v":""},{"$f":"'[2]EXT Comercio(M)'!AP417","v":""},null,null,{"$f":"'[2]EXT Comercio(M)'!$BS417","v":""},{"$f":"'[2]EXT Comercio(M)'!$BT417","v":""}]
[null,2024,"Enero",{"$f":"'[2]REAL IPC(M)'!AD418","v":-1.8686339825730685},{"$f":"'[2]REAL IPC(M)'!AE418","v":1.2089540597457162},{"$f":"'[2]REAL IPC(M)'!AF418","v":3.8173008691510968},{"$f":"'[2]REAL IPC(M)'!AG418","v":4.9963081466896409},{"$f":"'[2]REAL IPC(M)'!AH418","v":5.7896851978597477},{"$f":"'[2]REAL IPC(M)'!AI418","v":3.3172501891735742},{"$f":"'[2]REAL IPC(M)'!AJ418","v":1.222285911652939},null,null,null,null,null,null,null,null,null,null,null,null,null,null,null,null,null,null,null,null,{"$f":"'[2]EXT TC(M)'!J418","v":-10.030879523197749},{"$f":"'[2]EXT TC(M)'!K418","v":0},{"$f":"'[2]EXT TC(M)'!L418","v":-0.37031925660134052},{"$f":"'[2]EXT TC(M)'!M418","v":0.23162487173524218},null,{"$f":"'[2]EXT TC(M)'!O418","v":3.8629396236055498},{"$f":"'[2]EXT TC(M)'!P418","v":0},null,null,{"$f":"'[2]EXT RIN(M)'!C418","v":14337.1},{"$f":"'[2]EXT RIN(M)'!D418","v":2761.43},{"$f":"'[2]EXT RIN(M)'!E418","v":21227.3},{"$f":"'[2]EXT RIN(M)'!F418","v":7396.4},{"$f":"'[2]EXT RIN(M)'!G418","v":5471.6},{"$f":"'[2]EXT RIN(M)'!H418","v":14360.261917057831},{"$f":"'[2]EXT RIN(M)'!I418","v":""},null,null,{"$f":"'[2]EXT RIN(M)'!P418","v":""},{"$f":"'[2]EXT RIN(M)'!Q418","v":""},{"$f":"'[2]EXT RIN(M)'!R418","v":""},{"$f":"'[2]EXT RIN(M)'!S418","v":""},{"$f":"'[2]EXT RIN(M)'!T418","v":""},{"$f":"'[2]EXT RIN(M)'!U418","v":""},{"$f":"'[2]EXT RIN(M)'!V418","v":""},null,null,null,null,null,null,null,null,null,null,null,null,null,null,null,null,null,null,null,null,null,null,null,null,null,null,null,null,null,null,null,null,null,null,null,null,null,null,{"$f":"'[2]MONE(M)CAPARD'!AS418","v":5.75},{"$f":"'[2]MONE(M)CAPARD'!AT418","v":"n.a."},{"$f":"'[2]MONE(M)CAPARD'!AU418","v":5},{"$f":"'[2]MONE(M)CAPARD'!AV418","v":3},{"$f":"'[2]MONE(M)CAPARD'!AW418","v":7},{"$f":"'[2]MONE(M)CAPARD'!AX418","v":7},{"$f":"'[2]MONE(M)CAPARD'!AY418","v":"n.a."},null,null,{"$f":"+'Datos_Regional (M)'!CF411","v":""},{"$f":"+'Datos_Regional (M)'!CG411","v":""},{"$f":"+'Datos_Regional (M)'!CH411","v":""},{"$f":"+'Datos_Regional (M)'!CI411","v":""},{"$f":"+'Datos_Regional (M)'!CJ411","v":""},{"$f":"+'Datos_Regional (M)'!CK411","v":""},{"$f":"+'Datos_Regional (M)'!CL411","v":""},null,null,"","","","","","","","","",null,null,"","","","","","","","","",null,null,"",""]
[null,null,"Febrero",null,null,null,null,null,null,null,null,null,null,null,null,null,null,null,null,null,null,null,null,null,null,null,null,null,null,null,null,null,null,null,null,null,null,null,null,null,null,null,null,null,null,null,null,null,null,null,null,null,null,null,null,null,null,null,null,null,null,null,null,null,null,null,null,null,null,null,null,null,null,null,null,null,null,null,null,null,null,null,null,null,null,null,null,null,null,null,null,null,null,{"$f":"'[2]MONE(M)CAPARD'!AS419","v":5.75},{"$f":"'[2]MONE(M)CAPARD'!AT419","v":"n.a."},{"$f":"'[2]MONE(M)CAPARD'!AU419","v":5},{"$f":"'[2]MONE(M)CAPARD'!AV419","v":3},{"$f":"'[2]MONE(M)CAPARD'!AW419","v":7},{"$f":"'[2]MONE(M)CAPARD'!AX419","v":7},{"$f":"'[2]MONE(M)CAPARD'!AY419","v":"n.a."},null,null,null,null,null,null,null,null,null,null,null,"","","","","","","","","",null,null,"","","","","","","","","",null,null,"",""]
[null,null,"Marzo",null,null,null,null,null,null,null,null,null,null,null,null,null,null,null,null,null,null,null,null,null,null,null,null,null,null,null,null,null,null,null,null,null,null,null,null,null,null,null,null,null,null,null,null,null,null,null,null,null,null,null,null,null,null,null,null,null,null,null,null,null,null,null,null,null,null,null,null,null,null,null,null,null,null,null,null,null,null,null,null,null,null,null,null,null,null,null,null,null,null,null,null,null,null,null,null,null,null,null,null,null,null,null,null,null,null,null,null,"","","","","","","","","",null,null,"","","","","","","","","",null,null,"",""]
[null,null,"Abril",null,null,null,null,null,null,null,null,null,null,null,null,null,null,null,null,null,null,null,null,null,null,null,null,null,null,null,null,null,null,null,null,null,null,null,null,null,null,null,null,null,null,null,null,null,null,null,null,null,null,null,null,null,null,null,null,null,null,null,null,null,null,null,null,null,null,null,null,null,null,null,null,null,null,null,null,null,null,null,null,null,null,null,null,null,null,null,null,null,null,null,null,null,null,null,null,null,null,null,null,null,null,null,null,null,null,null,null,"","","","","","","","","",null,null,"","","","","","","","","",null,null,"",""]
[null,null,"Mayo ",null,null,null,null,null,null,null,null,null,null,null,null,null,null,null,null,null,null,null,null,null,null,null,null,null,null,null,null,null,null,null,null,null,null,null,null,null,null,null,null,null,null,null,null,null,null,null,null,null,null,null,null,null,null,null,null,null,null,null,null,null,null,null,null,null,null,null,null,null,null,null,null,null,null,null,null,null,null,null,null,null,null,null,null,null,null,null,null,null,null,null,null,null,null,null,null,null,null,null,null,null,null,null,null,null,null,null,null,"","","","","","","","","",null,null,"","","","","","","","","",null,null,"",""]
[null,null,"Junio",null,null,null,null,null,null,null,null,null,null,null,null,null,null,null,null,null,null,null,null,null,null,null,null,null,null,null,null,null,null,null,null,null,null,null,null,null,null,null,null,null,null,null,null,null,null,null,null,null,null,null,null,null,null,null,null,null,null,null,null,null,null,null,null,null,null,null,null,null,null,null,null,null,null,null,null,null,null,null,null,null,null,null,null,null,null,null,null,null,null,null,null,null,null,null,null,null,null,null,null,null,null,null,null,null,null,null,null,"","","","","","","","","",null,null,"","","","","","","","","",null,null,"",""]
[null,null,"Julio",null,null,null,null,null,null,null,null,null,null,null,null,null,null,null,null,null,null,null,null,null,null,null,null,null,null,null,null,null,null,null,null,null,null,null,null,null,null,null,null,null,null,null,null,null,null,null,null,null,null,null,null,null,null,null,null,null,null,null,null,null,null,null,null,null,null,null,null,null,null,null,null,null,null,null,null,null,null,null,null,null,null,null,null,null,null,null,null,null,null,null,null,null,null,null,null,null,null,null,null,null,null,null,null,null,null,null,null,"","","","","","","","","",null,null,"","","","","","","","","",null,null,"",""]
[null,null,"Agosto",null,null,null,null,null,null,null,null,null,null,null,null,null,null,null,null,null,null,null,null,null,null,null,null,null,null,null,null,null,null,null,null,null,null,null,null,null,null,null,null,null,null,null,null,null,null,null,null,null,null,null,null,null,null,null,null,null,null,null,null,null,null,null,null,null,null,null,null,null,null,null,null,null,null,null,null,null,null,null,null,null,null,null,null,null,null,null,null,null,null,null,null,null,null,null,null,null,null,null,null,null,null,null,null,null,null,null,null,"","","","","","","","","",null,null,"","","","","","","","","",null,null,"",""]
[null,null,"Setiembre",null,null,null,null,null,null,null,null,null,null,null,null,null,null,null,null,null,null,null,null,null,null,null,null,null,null,null,null,null,null,null,null,null,null,null,null,null,null,null,null,null,null,null,null,null,null,null,null,null,null,null,null,null,null,null,null,null,null,null,null,null,null,null,null,null,null,null,null,null,null,null,null,null,null,null,null,null,null,null,null,null,null,null,null,null,null,null,null,null,null,null,null,null,null,null,null,null,null,null,null,null,null,null,null,null,null,null,null,"","","","","","","","","",null,null,"","","","","","","","","",null,null,"",""]
[null,null,"Octubre",null,null,null,null,null,null,null,null,null,null,null,null,null,null,null,null,null,null,null,null,null,null,null,null,null,null,null,null,null,null,null,null,null,null,null,null,null,null,null,null,null,null,null,null,null,null,null,null,null,null,null,null,null,null,null,null,null,null,null,null,null,null,null,null,null,null,null,null,null,null,null,null,null,null,null,null,null,null,null,null,null,null,null,null,null,null,null,null,null,null,null,null,null,null,null,null,null,null,null,null,null,null,null,null,null,null,null,null,"","","","","","","","","",null,null,"","","","","","","","","",null,null,"",""]
[null,null,"Noviembre",null,null,null,null,null,null,null,null,null,null,null,null,null,null,null,null,null,null,null,null,null,null,null,null,null,null,null,null,null,null,null,null,null,null,null,null,null,null,null,null,null,null,null,null,null,null,null,null,null,null,null,null,null,null,null,null,null,null,null,null,null,null,null,null,null,null,null,null,null,null,null,null,null,null,null,null,null,null,null,null,null,null,null,null,null,null,null,null,null,null,null,null,null,null,null,null,null,null,null,null,null,null,null,null,null,null,null,null,"","","","","","","","","",null,null,"","","","","","","","","",null,null,"",""]
[null,null,"Diciembre ",null,null,null,null,null,null,null,null,null,null,null,null,null,null,null,null,null,null,null,null,null,null,null,null,null,null,null,null,null,null,null,null,null,null,null,null,null,null,null,null,null,null,null,null,null,null,null,null,null,null,null,null,null,null,null,null,null,null,null,null,null,null,null,null,null,null,null,null,null,null,null,null,null,null,null,null,null,null,null,null,null,null,null,null,null,null,null,null,null,null,null,null,null,null,null,null,null,null,null,null,null,null,null,null,null,null,null,null,"","","","","","","","","",null,null,"","","","","","","","","",null,null,"",""]
[]
[]
[]
[]
[]
[]
[]
[]
[]
[]
[]
[]
[null,"Año","Mes","Inflación",null,null,null,null,null,null,null,null,"T1,12 de la Tendencia Ciclo",null,null,null,null,null,null,null,null,"ITCER con USA",null,null,null,null,null,null,null,null,"Variación Interanual del Tipo de Cambio",null,null,null,null,null,null,null,null,"Reservas Internacionales Netas por país",null,null,null,null,null,null,null,null,"RIN a Base Monetaria Amplia por país",null,null,null,null,null,null,null,null,"Tasa de Interés pasiva Real en MN",null,null,null,null,null,null,null,null,"Tasa de Interés pasiva en ME (180 días)",null,null,null,null,null,null,null,null,"Tasa de Interés Activa Real en MN",null,null,null,null,null,null,null,null,"Tasa de Interés Activa en ME (180 días)",null,null,null,null,null,null,null,null,"Tasa de Interés de Política Monetaria",null,null,null,null,null,null,null,null,"Créditos de las OSD con el sector Privado, Variación Interanual ",null,null,null,null,null,null,null,null,"Promedio de Exportaciones Totales al mes por país y Región",null,null,null,null,null,null,null,null,null,null,"Promedio Móvil de Importaciones Totales al mes por país y Región",null,null,null,null,null,null,null,null,null,null,"CARD","CAPARD",null,null,"Exportaciones Totales al mes por país y Región",null,null,null,null,null,null,null,null,null,null,"Importaciones Totales al mes por país y Región",null,null,null,null,null,null,null,null,null,null,"CARD","CAPARD"]
[]
[]
[null,null,null,"Variación Interanual Costa Rica","Variación Interanual\nEl Salvador","Variación Interanual Guatemala","Variación Interanual Honduras","Variación Interanual Nicaragua","Variación Interanual Dominicana","Variación Interanual Panamá",null,null,"Variación Interanual Costa Rica","Variación Interanual\nEl Salvador","Variación Interanual Guatemala","Variación Interanual Honduras","Variación Interanual Nicaragua","Variación Interanual Dominicana","Variación Interanual Panamá",null,null,"Indice Original\nCosta Rica","Indice Original\nEl Salvador","Indice Original\nGuatemala","Indice Original\nHonduras","Indice Original\nNicaragua","Indice Original\nDominicana","Indice Original\nPanamá",null,null,"Variación Interanual Costa Rica","Variación Interanual\nEl Salvador","Variación Interanual Guatemala","Variación Interanual Honduras","Variación Interanual Nicaragua","Variación Interanual Dominicana","Variación Interanual Panamá",null,null,"RIN del BC Costa Rica","RIN del BC\nEl Salvador","RIN del BC\nGuatemala","RIN del BC\nHonduras","RIN del BC\nNicaragua","RIN del BC\nDominicana","RIN del BC\nPanmaná",null,null,"RIN del BC Costa Rica","RIN del BC\nEl Salvador","RIN del BC\nGuatemala","RIN del BC\nHonduras","RIN del BC\nNicaragua","RIN del BC\nDominicana","RIN del BC\nPanmaná",null,null,"Ti pasiva real MN\nCosta Rica","Ti pasiva real MN\nEl Salvador","Ti pasiva real MN\nGuatemala","Ti pasiva real MN\nHonduras","Ti pasiva real MN\nNicaragua","Ti pasiva real MN\nDominicana","Ti pasiva real MN\nPanamá",null,null,"Ti pasiva ME (prom nominal)\nCosta Rica","Ti pasiva ME (prom nominal)\nEl Salvador","Ti pasiva ME (prom nominal)\nGuatemala","Ti pasiva ME (prom nominal)\nHonduras","Ti pasiva ME (prom nominal)\nNicaragua","Ti pasiva ME (prom nominal)\nDominicana","Ti pasiva ME (prom nominal)\nPanamá",null,null,"Ti activa real MN\nCosta Rica","Ti activa real MN\nEl Salvador","Ti activa real MN\nGuatemala","Ti activa real MN\nHonduras","Ti activa real MN\nNicaragua","Ti activa real MN\nDominicana","Ti activa real MN\nPanamá",null,null,"Ti activa ME (prom nominal)\nCosta Rica","Ti activa ME (prom nominal)\nEl Salvador","Ti activa ME (prom nominal)\nGuatemala","Ti activa ME (prom nominal)\nHonduras","Ti activa ME (prom nominal)\nNicaragua","Ti activa ME (prom nominal)\nDominicana","Ti activa ME (prom nominal)\nPanamá",null,null,"Tasa de Política Monetaria\nCosta Rica","Tasa de Política Monetaria\nEl Salvador","Tasa de Política Monetaria\nGuatemala","Tasa de Política Monetaria\nHonduras","Tasa de Política Monetaria\nNicaragua","Tasa de Política Monetaria\nDominicana","Tasa de Política Monetaria\nPanamá",null,null,"Créditos de las OSD con el sector Privado Costa Rica","Créditos de las OSD con el sector Privado El Salvador","Créditos de las OSD con el sector Privado Guatemala","Créditos de las OSD con el sector Privado Honduras","Créditos de las OSD con el sector Privado Nicaragua","Créditos de las OSD con el sector Privado Dominicana","Créditos de las OSD con el sector Privado Panamá",null,null,"Exp Total FOB\nCosta Rica","Exp Total FOB\nEl Salvador","Exp Total FOB\nGuatemala","Exp Total FOB\nHonduras","Exp Total FOB\nNicaragua","Exp Total FOB\nDominicana","Exp Total FOB\nPanamá","Exp Total FOB\nRegional","Exp Total FOB\nCAPARD",null,null,"Imp Total CIF Costa Rica","Imp Total CIF El Salvador","Imp Total CIF Guatemala","Imp Total CIF Honduras","Imp Total CIF Nicaragua","Imp Total CIF Dominicana","Imp Total CIF  Panamá","Imp Total CIF Regional","Imp Total CIF CAPARD",null,null,"Saldo de Comercio Exterior Promedio Movil Regional al mes","Saldo de Comercio Exterior Promedio Movil Regional al mes",null,null,"Exp Total FOB\nCosta Rica","Exp Total FOB\nEl Salvador","Exp Total FOB\nGuatemala","Exp Total FOB\nHonduras","Exp Total FOB\nNicaragua","Exp Total FOB\nDominicana","Exp Total FOB\nPanamá","Exp Total FOB\nRegional","Exp Total FOB\nCAPARD",null,null,"Imp Total CIF\nCosta Rica","Imp Total CIF\nEl Salvador","Imp Total CIF\nGuatemala","Imp Total CIF\nHonduras","Imp Total CIF\nNicaragua","Imp Total CIF\nDominicana","Imp Total CIF\nPanamá","Imp Total CIF\nRegional","Imp Total CIF\nCAPARD",null,null,"Saldo de Comercio Regional al mes","Saldo de Comercio Regional al mes"]
[null,null,null,"%","%","%","%","%","%","%",null,null,"%","%","%","%","%","%","%",null,null,"Nivel","Nivel","Nivel","Nivel","Nivel","Nivel","Nivel",null,null,"%","%","%","%","%","%","%",null,null,"Millones US$","Millones US$","Millones US$","Millones US$","Millones US$","Millones US$","Millones US$",null,null,"Millones US$","Millones US$","Millones US$","Millones US$","Millones US$","Millones US$","Millones US$",null,null,"%","%","%","%","%","%","%",null,null,"%","%","%","%","%","%","%",null,null,"%","%","%","%","%","%","%",null,null,"%","%","%","%","%","%","%",null,null,"%","%","%","%","%","%","%",null,null,"%","%","%","%","%","%","%",null,null,"Millones US$","Millones US$","Millones US$","Millones US$","Millones US$","Millones US$","Millones US$","Millones US$","Millones US$",null,null,"Millones US$","Millones US$","Millones US$","Millones US$","Millones US$","Millones US$","Millones US$","Millones US$","Millones US$",null,null,"Millones US$","Millones US$",null,null,"Millones US$","Millones US$","Millones US$","Millones US$","Millones US$","Millones US$","Millones US$","Millones US$","Millones US$",null,null,"Millones US$","Millones US$","Millones US$","Millones US$","Millones US$","Millones US$","Millones US$","Millones US$","Millones US$",null,null,"Millones US$","Millones US$"]
[null,2006,"Enero",13.195387319236479,3.3321432821611303,8.0834131604156099,7.2930354796320787,10.268771845245265,8.2493088307041571,3.0481809242871103,null,null,5.2116119849892932,6.991058249114376,3.4128069935503462,6.7628616103141175,"n.d.","n.d.","n.d.",null,null,102.5426321690212,97.145989647865065,76.699496481890307,96.135590735152789,107.5572245831296,103.2644110232113,107.13452091600639,null,null,8.2188905526177418,0,-1.8077581502633662,1.2861736334405061,5.7161451937718022,15.851197897813357,0,null,null,2350.1,1726.4,4087.8,2206.3262658537619,727.7,1476.5,1207.5531742798,null,null,55.332612936163692,88.770053475935825,109.18065979452966,106.57212687030275,75.781538882375614,32.655446523979343,153.29313559107652,null,null,1.8151028318574947,0.72176056513970366,-3.2043891464412484,3.1940232700550992,1.6236165781056027,2.6704015023474397,-0.24083969465648031,null,null,3.33,4.08,3.33,2.88,4.7,3.23,2.8,null,null,9.4214198416821624,4.314104572152484,4.2898227433869485,10.3426699326393,8.0469961165330179,11.862146103286408,4.6403721374045892,null,null,10.48,7.79,7.31,8.84,10.199999999999999,9.1300000000000008,7.83,null,null,"n.d.","n.a.",4.25,7,"n.a.",10,"n.a.",null,null,28.663359416032286,10.056744831538357,5.5704972052809554,18.897940444016182,33.219639618913476,15.191353953505837,18.007091781691955,null,null,null,null,null,null,null,null,null,null,null,null,null,null,null,null,null,null,null,null,null,null,null,null,null,null,null,null,435.33210236999975,303.18,460.6,174.29626059859416,129.0736,423.68849999999998,617.28600000000006,1926.1704629685939,2543.4564629685938,null,null,726.41892474999975,545.83000000000004,927.1,418.00248488743978,265.32782515999997,824.5,825.89502800000002,3707.1792347974392,4533.0742627974396,null,null,-1781.0087718288457,-1989.6177998288458]
[null,null,"Febrero",12.962452589513699,3.7450957080014327,7.263550581522928,6.7812337662337576,10.489343969520185,8.0752661952369262,2.3483365949119261,null,null,5.6605422351203423,5.4579370169956309,3.627482719279457,6.7968484037406256,"n.d.","n.d.","n.d.",null,null,102.29585017318929,96.715776847211231,76.629626908701027,95.515220813011737,106.6515873322063,102.2698239451051,107.3932252234779,null,null,8.0871055590410599,0,-1.3945515557158745,0.90763481046448546,5.1752110005894103,18.46329837940895,0,null,null,2405.1999999999998,1855.6,4067.1,2270.2131867352559,703.4,1501.8,1113.42992807276,null,null,55.689856024431819,88.42312725096329,110.26084499290828,108.74372710957549,72.204193537757462,32.693547603786485,142.26851713515128,null,null,2.025051119241239,0.21955796396696795,-2.4365691489361665,3.6230769183991387,0.61621694331956445,2.7339593126010673,0.90051625239006861,null,null,3.3600000000000003,3.97,3.34,2.96,4.8,2.98,3.27,null,null,9.4788552877792984,3.6517352452853413,5.1056014729950938,10.899636409189572,6.9939714704741958,12.523433234309788,4.9064435946462837,null,null,10.54,7.53,7.39,8.84,9.9,7.96,7.37,null,null,"n.d.","n.a.",4.25,7,"n.a.",10,"n.a.",null,null,28.314985229658095,11.127324148385686,7.0601135588099773,19.072651696269148,35.861908009926658,15.161705146044335,17.320750903486658,null,null,null,null,null,null,null,null,null,null,null,null,null,null,null,null,null,null,null,null,null,null,null,null,null,null,null,null,491.03646926999994,293.33999999999997,428.30000000000007,179.35100965771059,151.81209999999999,497.19280000000003,682.21600000000001,2041.0323789277102,2723.2483789277103,null,null,650.2997691999999,580.4799999999999,824.9,365.87825691667001,242.69666267999997,868.8,768.52662899999996,3533.0546887966698,4301.5813177966702,null,null,-1492.0223098689592,-1578.332938868959]
[null,null,"Marzo",12.21660233979196,4.0394439824165271,7.2806698216235883,6.1855670103092928,10.14031364225916,8.2560598666015981,2.0408163265305994,null,null,6.1850396696759207,4.0817980529797451,3.6959022335294196,7.2870312592634452,"n.d.","n.d.","n.d.",null,null,102.8408861214003,96.518395653514403,76.483183016479344,95.451760494862327,106.4400531829221,97.498828524559443,107.14506721438821,null,null,7.9570237908960726,0,7.0228598032013922E-2,0.69259456579647849,5.0675579975700797,15.064615645573381,0,null,null,2765.7,1763.7,4115.5,2386.1356907394475,766.5,1524.2,1137.2237359982,null,null,59.589120646112079,86.286017330588408,111.36425811817583,109.04177308514507,79.856837221370455,33.358120831968563,146.83767313913012,null,null,2.7031629874364844,7.6459913605915295E-2,-2.4521377672209015,4.1007766990291108,0.92714709573714138,2.7194229468780482,1.136000000000013,null,null,3.3849999999999998,4.12,3.43,3,4.9000000000000004,3,3.2,null,null,10.108484327354898,3.2611153514555422,5.1074720054292513,11.333398058252412,7.3185637832743771,12.196952438199711,5.2422000000000128,null,null,10.88,7.43,7.4700000000000006,8.91,9.8000000000000007,8.6300000000000008,7.39,null,null,8.51,"n.a.",4.25,6.75,"n.a.",10,"n.a.",null,null,28.531391372747095,10.922799190821063,8.2393467364412878,21.229670591680438,34.888310903525891,18.195251345727016,17.031070937013769,null,null,null,null,null,null,null,null,null,null,null,null,null,null,null,null,null,null,null,null,null,null,null,null,null,null,null,null,614.71310329000028,338.25,495.90000000000009,206.75582121440425,172.55569999999997,596.0009,810.74200000000008,2424.1755245044046,3234.9175245044044,null,null,780.89326326999992,672.33000000000015,983.1999999999997,430.41950835667751,289.54546708999999,1027.9000000000001,841.15919899999994,4184.2882387166792,5025.4474377166771,null,null,-1760.1127142122737,-1790.5299132122736]
[null,null,"Abril",11.629027958973545,4.2203570161957593,7.4808276660396373,5.8109833971902907,9.8446196660482492,8.5586863977295753,2.9069767441860583,null,null,6.5477970709065509,2.9176517185604438,3.7815760562554397,8.1272808690511233,"n.d.","n.d.","n.d.",null,null,103.4405318063976,96.352540528738643,75.983240624503836,95.408693637962969,105.82936948216209,96.048285708572237,106.4648561327118,null,null,7.8381253172890961,0,-0.14062271636213511,0.47846889952153038,5.1287312757251211,13.662287456057429,0,null,null,2740.9,2149.6,4141.6000000000004,2489.5851170323681,801.4,1571.7,1106.9278590550798,null,null,59.687169372967766,106.56947044452201,115.17775149034952,110.18220226831099,79.946625788184761,34.152831126417745,143.50734827652013,null,null,3.2437548792033315,-0.19144861451938872,-2.5965818524501794,4.1857815328907702,0.39639578480145093,2.3962279653420988,0.43050847457625974,null,null,3.4450000000000003,4.0199999999999996,3.47,3.6,5.0999999999999996,2.96,3.35,null,null,10.607430932192932,3.0047054649063427,4.8931260096930629,11.529064574532292,3.5547190077742474,10.714309456229463,4.3175141242937727,null,null,11.12,7.35,7.5,8.94,10.7,8.34,7.35,null,null,8.51,"n.a.",4.5,6.5,"n.a.",10,"n.a.",null,null,28.427447143515483,11.40928258867806,7.9690601288370688,23.180124138490179,35.565596882865776,18.35592399818189,16.873481818690415,null,null,null,null,null,null,null,null,null,null,null,null,null,null,null,null,null,null,null,null,null,null,null,null,null,null,null,null,450.20108416000016,281.52,394.29999999999995,152.97518801633385,145.28609999999998,514.74340000000018,603.60799999999995,1939.0257721763346,2542.6337721763357,null,null,631.72801112999991,502.64999999999986,882.10000000000036,420.65743794337754,253.15529880999998,936.0999999999998,783.96233899999993,3626.3907478833771,4410.3530868833768,null,null,-1687.3649757070425,-1867.719314707042]
[null,null,"Mayo ",11.864015532006505,3.603286384976518,7.6164423007702986,6.1068702290076482,9.9126034958601714,9.507543410190733,3.1098153547132847,null,null,6.8074705461690534,2.0458477315368424,4.0912689965256765,8.6560111402937867,"n.d.","n.d.","n.d.",null,null,102.5489310669862,96.520158744701604,75.64522285242667,95.062846400268313,105.6438734825047,96.940300472847127,106.88378058024441,null,null,7.5524724054266441,0,-9.6936925055224304E-2,0.2652519893899053,5.0127871096329617,13.218230600369344,0,null,null,2503.8000000000002,2109.6999999999998,4211.6000000000004,2497.1465653790383,795.9,1617.4,1168.69120848646,null,null,56.116102384432466,105.8140817943805,116.04615472941164,115.41564344056023,83.043793597156039,34.657508173285848,149.17051518786872,null,null,1.6859617089768046,0.50470246755937143,-2.7100341159943948,3.4805755395683318,1.4656885228186862,1.3080894203275155,0.17475023562679556,null,null,3.59,4.13,3.48,3.2,4.8,2.9,3.29,null,null,9.4811404878979264,3.8830510644138108,4.7237741654960042,10.878776978417251,3.6631563533505322,9.8828411749414986,4.1510933081998402,null,null,11.15,7.63,7.48,8.9,10.3,8.85,7.39,null,null,8.51,"n.a.",4.5,6.5,"n.a.",10,"n.a.",null,null,27.945206113279951,11.980956643146467,8.2071235896640218,24.987245255851832,33.524058722373653,18.751213604780361,16.843773745597513,null,null,null,null,null,null,null,null,null,null,null,null,null,null,null,null,null,null,null,null,null,null,null,null,null,null,null,null,612.33548922999989,338.72,483.79999999999995,226.90800636623408,179.68440000000004,548.99959999999976,730.09500000000003,2390.4474955962341,3120.5424955962317,null,null,817.22474771999987,765.95000000000027,1100.8999999999996,480.31871327763292,316.25016790999996,1053.7,994.184978,4534.3436289076308,5528.5286069076319,null,null,-2143.8961333113975,-2407.9861113113975]
[null,null,"Junio",12.419859591990127,4.423325120262831,7.5525675868974265,5.6854074542008837,9.4988012330174598,10.274334484860798,3.2038834951456234,null,null,6.8809922170921825,1.6418637385428616,4.8029999087411497,9.0370656476729359,"n.d.","n.d.","n.d.",null,null,102.3846980795975,95.96625219339866,75.645581656867449,95.014154110539934,106.1361914324081,97.259908277303722,106.9476665235705,null,null,7.38813611625425,0,-4.4972424802689412E-2,0.21208907741250871,5.4509161920953115,13.379886914937064,0,null,null,2613.6,2011,4062.4,2526.1261082221936,813.4,1579.8,1206.5475861353896,null,null,57.5850766914904,104.62928662701401,112.563116570863,109.94387281875375,83.700001166394387,35.680205791948282,155.48732370098767,null,null,0.9608092484104408,-3.6498511277098425E-2,-2.6522542891341816,3.5147638971906767,2.0814565136228373,0.80314745881399274,0.51947318908749596,null,null,3.6,4.3899999999999997,3.88,3.33,5,2.83,3.74,null,null,8.8864551550477717,2.6122768086460417,4.8045644367602209,11.273640167364018,7.3781358610277801,8.6109479231931623,4.0755409219191048,null,null,11.14,7.15,7.57,8.91,10.4,8.35,7.41,null,null,8.51,"n.a.",4.75,6.5,"n.a.",10,"n.a.",null,null,28.676773912451424,12.648099658012345,10.432409150206446,24.025631739942121,32.383280222459,20.430382278475445,14.897359968446832,null,null,null,null,null,null,null,null,null,null,null,null,null,null,null,null,null,null,null,null,null,null,null,null,null,null,null,null,535.34699277999971,330.50000000000023,543.70000000000027,195.32250643696693,174.15870000000001,595.95899999999983,696.54599999999994,2374.9871992169647,3071.5331992169704,null,null,742.68123209999999,745.0300000000002,971.8,510.63011593044484,286.90178764000001,995.59999999999991,1006.4809100000002,4252.6431356704452,5259.1240456704472,null,null,-1877.6559364534805,-2187.5908464534805]
[null,null,"Julio",12.02600946663302,5.552301745343807,7.035567521609762,5.322479649342517,9.1711956521739229,10.601163542340007,2.8046421663442853,null,null,7.062657868204993,1.485143930947465,5.7772979341018491,9.4149409548718204,"n.d.","n.d.","n.d.",null,null,102.5711823072189,95.300775911789557,75.447304526632209,95.020900294745559,106.3806053840037,96.890096520028735,107.53063200016079,null,null,7.2663951639162061,0,-7.9681695373191197E-2,0.1589825119236756,4.8793715099395145,13.231237252393949,0,null,null,2588.1,2257,4038.2,2495.5068193657653,853.3,1603.2,1170.0952668014199,null,null,56.717919357660548,109.0473551547221,110.13940226151702,113.87922713777145,84.723603846593292,35.671129885585025,151.56518659495978,null,null,1.5389198826014336,-0.96838580778900196,-2.1913907460117938,3.5771284185493459,2.3131880079041438,-0.32654587960256631,1.1432925682032071,null,null,4,4.53,3.86,3.37,4.9000000000000004,2.7,3.98,null,null,9.2246350490998807,1.7327765869511118,5.2921029986099022,11.324762187871581,7.8851738336867188,9.1037346580946892,4.4602634054562644,null,null,11.06,7.38,7.55,9.0399999999999991,10.7,7.47,7.39,null,null,9.1999999999999993,"n.a.",5,6.5,"n.a.",10,"n.a.",null,null,29.88101983577096,12.933105287067281,9.491381901729401,23.684151770169848,34.20576039234917,20.631768338058865,14.851197703255782,null,null,null,null,null,null,null,null,null,null,null,null,null,null,null,null,null,null,null,null,null,null,null,null,null,null,null,null,476.00541081000028,328.89999999999964,568.19999999999982,179.08528911488315,155.76930000000004,534.09709999999995,633.16300000000001,2242.057099924883,2875.2200999248817,null,null,770.20290317000024,710.60000000000036,1028.8999999999999,478.96918852355384,289.67091902999999,1071.9999999999998,1033.4480789999998,4350.3430107235508,5383.7910897235488,null,null,-2108.2859107986696,-2508.570989798669]
[null,null,"Agosto",11.614065597123826,4.7079439252336419,6.9961171902576798,4.8447204968944169,8.6501687289088824,9.3489614479926448,2.9013539651837639,null,null,7.5654889115931514,2.9907842007454093,6.6939002046125795,9.7668101278803618,"n.d.","n.d.","n.d.",null,null,102.65021310829481,96.243731574325736,75.527838668642602,95.103132673031027,107.2121722552494,96.77949611084486,107.9060928479511,null,null,7.1502751059285634,0,-7.2170253189606737E-2,0.1589825119236756,4.9273131014063685,12.52853349884486,0,null,null,2675.6,2070.3000000000002,4031.8,2597.6150644142435,830.4,1645,991.54574445036008,null,null,58.607651805603957,100.75894069516518,113.43398387823622,116.38403829621112,84.816116199415731,35.4173370629034,124.83811126517543,null,null,1.9136785238035576,-0.11698427048048278,-2.1459817893903423,3.7057464454976241,1.9816572135735517,-0.86782849642699089,1.0482330827067556,null,null,4,4.59,3.94,3.42,5.2,2.5,3.98,null,null,9.75319225640383,2.6621329742477826,5.3215789126418551,11.660367298578191,8.1623637113658898,9.5666556074085065,4.4106766917293125,null,null,11.01,7.5,7.7399999999999993,9.0399999999999991,10.4,8.1999999999999993,7.44,null,null,9.1999999999999993,"n.a.",5,6.5,"n.a.",8,"n.a.",null,null,29.442459616577409,13.180534372214336,9.7963922850724536,26.41370031961592,34.231942963984707,20.392618218128099,15.144955284079176,null,null,null,null,null,null,null,null,null,null,null,null,null,null,null,null,null,null,null,null,null,null,null,null,null,null,null,null,500.12767347000045,308.55000000000018,530.90000000000032,162.20858367926917,186.43639999999999,596.3438000000001,757.88799999999992,2284.5664571492707,3042.4544571492697,null,null,824.27537943999982,605.3799999999992,1060.1000000000008,496.83527569275293,311.08171914000002,1169.0000000000002,1157.9029500000001,4466.672374272759,5624.5753242727587,null,null,-2182.1059171234792,-2582.1208671234781]
[null,null,"Setiembre",11.239649756896396,4.235020360674806,5.6982849142457166,4.4554455445544665,7.4860335195530761,4.7295471217327361,1.6299137104506298,null,null,8.2024161296219056,6.0248813909438113,7.3005378560715606,10.160397816037458,"n.d.","n.d.","n.d.",null,null,102.8336945657792,95.803149986550167,75.681330341729577,94.636483346863074,107.29390133134559,98.317020156629411,107.7818171248941,null,null,7.0035757378140691,0,-0.19428750083744134,0.10593220338982826,4.6985060874582079,8.3052841947486815,0,null,null,2764.6,2017.3,4031.3,2552.4508792756892,824.7,1582.9,906.06812264791006,null,null,58.559557009563832,94.516337603193506,109.52317551649166,117.7459844380077,85.182868558149082,35.370695825987589,113.60851123721952,null,null,2.0319645450550974,0.33027052031187254,-0.92554473806212767,3.8337440758293742,2.5107208802128045,2.6166950527169655,2.469830188679238,null,null,4.01,4.58,3.95,3.5,4.95,2.91,4.1399999999999997,null,null,10.05068810225238,3.2331768286285931,6.6242466388502503,11.932890995260655,9.6798476920558656,12.251034431910359,5.726745283018861,null,null,11,7.61,7.7299999999999995,9.06,10.6,8.15,7.45,null,null,9.1999999999999993,"n.a.",5,6,"n.a.",8,"n.a.",null,null,28.76606106737345,10.478764499582226,10.555102234319214,25.766264714812625,34.210318719132204,18.301422585889938,15.321998372030542,null,null,null,null,null,null,null,null,null,null,null,null,null,null,null,null,null,null,null,null,null,null,null,null,null,null,null,null,495.28445647999979,328.69000000000051,593.89999999999986,141.04834327899357,164.37910000000002,624.10519999999997,805.48099999999988,2347.4070997589952,3152.8880997589949,null,null,790.50056141999994,639.75,1008.7,465.54228456237934,292.63614648999999,1016.3999999999996,1109.3948429999998,4213.5289924723766,5322.9238354723784,null,null,-1866.1218927133887,-2170.0357357133907]
[null,null,"Octubre",10.085398343659078,1.8837766868363959,3.8525041276829861,4.5145330859616646,6.9744271006310168,3.6847531406316039,1.3346043851286793,null,null,8.5566865439866167,7.7029498431266221,7.5494600205035889,10.538082522619547,"n.d.","n.d.","n.d.",null,null,102.0872367962845,95.75844441796832,75.434455146559998,94.105000137982543,106.8253597485363,99.335369177861097,107.0006633850787,null,null,6.2123866763761075,0,-0.79417258904438459,5.2938062466903177E-2,4.8196879372582258,3.293166494376127,0,null,null,2882.3,2020.5,4036.3,2538.5154229952577,804.4,1717.2,921.9005963797199,null,null,59.319298653483735,92.242457278799577,104.28778506152831,121.41518841790402,85.826123378218,37.882658799880637,114.0051858009642,null,null,2.8746788438388782,2.6925386804357494,0.92197668256492504,3.5262721893491049,3.7375068293501239,3.5639250202548012,2.8177892756350102,null,null,3.835,4.63,3.95,3.57,5.0599999999999996,2.73,4.1900000000000004,null,null,10.87755673005716,5.6380587388865138,8.7214997350291554,11.678248520710051,10.135975891366355,12.967429108050334,6.064459078080918,null,null,10.99,7.63,7.7200000000000006,9.06,10.8,8.06,7.48,null,null,9.1999999999999993,"n.a.",5,6,"n.a.",8,"n.a.",null,null,27.87577257438436,10.148382736914208,11.203495106865979,28.150625084411594,33.737539178871415,16.1962027309017,15.195246216398939,null,null,null,null,null,null,null,null,null,null,null,null,null,null,null,null,null,null,null,null,null,null,null,null,null,null,null,null,519.84183321,287,533.19999999999982,153.88775569585482,183.32629999999995,574.88709999999992,957.74,2252.1429889058563,3209.8829889058543,null,null,771.88330222000002,628.09000000000015,1078.7999999999995,523.69304758456519,299.81404903999999,1116.2000000000003,1181.327949,4418.4803988445638,5599.8083478445624,null,null,-2166.3374099387111,-2389.9253589387117]
[null,null,"Noviembre",9.4247765712161744,3.8510466057592092,4.4010452482464473,4.8765432098765462,8.0937048961918592,5.2331626169663901,2.0134228187919545,null,null,8.3857991225555004,5.7046900273333119,7.475077381725022,10.865523010728952,"n.d.","n.d.","n.d.",null,null,100.4765276744464,95.203218563417948,74.985667868720441,93.65286676836233,106.59012724727189,99.003424482265174,106.9530459042499,null,null,4.8579419491384375,0,-2.2102907453289161E-2,0,4.888392328238286,0.92446679257537701,0,null,null,3122.5,2020.8,4053,2506.7516600872182,832.9,1760.9,1833.7288151269699,null,null,62.053801856516579,93.518840751408703,104.21618642679569,118.73420027187332,87.126842281197199,38.124975778018012,218.85746297013347,null,null,1.6680165918327721,0.85475036244738567,0.42045053352655526,3.0831077104178894,3.6912705967432697,2.3726716188524528,2.829605263157887,null,null,3.8849999999999998,4.74,3.97,3.68,5.63,2.62,4.9000000000000004,null,null,10.422889391381158,3.6939633771001317,8.121522856013712,10.978104767510299,8.8729230858562076,11.78985509367681,5.3782894736842017,null,null,10.97,7.69,7.7,9.0299999999999994,10.8,8.08,7.5,null,null,9.1999999999999993,"n.a.",5,6,"n.a.",8,"n.a.",null,null,29.131079154238691,9.7526554424262724,26.868164288951913,28.173131882731226,32.451389352511463,10.630842132732067,14.487487270522292,null,null,null,null,null,null,null,null,null,null,null,null,null,null,null,null,null,null,null,null,null,null,null,null,null,null,null,null,541.90482837000036,308.94999999999982,495.89999999999964,183.09850630385154,169.35520000000002,587.01040000000012,846.86699999999996,2286.2189346738451,3133.0859346738507,null,null,916.02043826000022,695.88000000000011,1082.2000000000007,529.21041873303966,297.99820545,1083.2999999999997,958.30848700000024,4604.6090624430435,5562.9175494430456,null,null,-2318.3901277691875,-2429.8316147691876]
[null,null,"Diciembre",9.4337156343225015,4.8859557716799795,5.7925151348376422,5.2858020897357241,9.4479477818342801,5.000190701399756,2.1967526265520423,null,null,8.269145464337246,2.2104388745749595,7.2141420802281395,11.054509751092134,"n.d.","n.d.","n.d.",null,null,100.0893163090753,94.889256325625638,74.39006336466349,93.39328377599314,105.8768142487619,97.418269851125416,106.9324608819975,null,null,4.2586928919512541,0,-9.5891528134761678E-2,0,5.1374387634603575,-0.1120077771437786,0,null,null,3114.5,1905.8,4061.1,2613.6789902959476,859,1817,1312.0485185115999,null,null,59.27734185079909,89.48846294713708,98.45756816100058,113.45385516613189,85.437807647985395,39.38010735930709,156.18387412042162,null,null,1.6597118677270279,-2.5045661601972025E-2,-0.90036155546884955,2.6159252772912871,2.8819627939659651,2.7426705412277439,2.8701962616822545,null,null,3.8899999999999997,4.8600000000000003,3.81,3.71,5.9,2.73,5.13,null,null,10.295076156715975,2.5928873978686933,6.7183248796982724,10.74617629889082,7.2047343399309272,10.895036687250265,5.1696822429906666,null,null,10.81,7.61,7.66,9.19,10.7,8.99,7.48,null,null,8.9700000000000006,"n.a.",5,6,"n.a.",8,"n.a.",null,null,27.626521905358679,8.8660099510984089,21.384571284804444,29.982922047409843,30.737097637432441,11.950283584187593,12.439940561628671,null,null,null,null,null,null,null,null,null,null,null,null,null,null,null,null,null,null,null,null,null,null,null,null,null,null,null,null,455.22195405999992,282.39999999999964,484.19999999999982,141.0390037610382,173.95400000000006,517.17219999999907,605.58899999999994,2053.9871578210441,2659.5761578210368,null,null,746.02448145000028,670.6899999999996,965.79999999999927,522.94093123000675,298.05023851000004,1010.3999999999996,974.75948100000005,4213.9056511900053,5188.665132189999,null,null,-2159.9184933689721,-2529.0889743689695]
[null,2007,"Enero",9.1933576822021337,5.5395600598871404,6.2244341423506944,5.5725658297611718,9.0829598863263783,4.3643192488262876,2.2900763358778722,null,null,8.4591151137251384,5.7239478626134918E-2,6.9510034672611436,11.374989627536293,2.6645670445100431,"n.d.","n.d.",null,null,99.494999505432062,93.957670675005915,74.262379546209218,92.951363907983136,105.56873448764679,98.476211455406698,106.9100600099691,null,null,3.7935508144188694,0,0.75767329789554017,0,4.8890127887932486,-2.4987776617319923,0,null,null,3164.1,1920.4,4037.2,2578.6904217183292,845.1,1882.4,1346.5704241083499,null,null,58.589941852934004,86.387608839210372,99.99958288541221,116.4249349317178,87.117223411094315,40.886762841375123,164.5758907225802,null,null,1.4255833421006614,-0.71969227411611059,-1.2938964122970278,2.2614153132250618,3.0784476574154129,3.4548979738726771,2.7958955223880504,null,null,4.1050000000000004,4.78,3.88,3.72,6.3,3,5.15,null,null,10.244801108100022,2.2270700567437753,6.340881843270652,10.975800464037128,8.0785216109467424,12.126444020585168,5.0346268656716324,null,null,10.72,7.89,7.62,9.61,10.8,7.99,7.44,null,null,5.98,"n.a.",5,6,"n.a.",8,"n.a.",null,null,29.358918626217289,8.7510340740641457,21.412638655662452,29.18861974420366,30.725134704000201,15.122931317549604,12.545041612789687,null,null,515.63425034916679,311.51,508.0333333333333,176.49736159452075,169.50637449124142,555.01356666666652,733.35858333333329,2236.1948864349292,2969.5534697682619,null,null,771.49413122833323,655.63749999999993,1006.7166666666667,474.58373929043495,288.1104484415045,1020.7249999999999,991.42098350000003,4217.2674856269396,5208.6884691269397,null,null,-1981.0725991920108,-2239.1349993586769,null,null,495.59170906000008,311.3,544.09999999999991,196.28832560870899,177.35919389489658,473.65129999999999,670.36800000000005,2198.2905285636057,2868.6585285636056,null,null,816.19548536000036,650.82000000000005,1093.2,469.90969273411918,279.52471950805352,899.30000000000007,1087.5959580000001,4208.9498976021732,5296.5458556021731,null,null,-2010.6593690385675,-2427.8873270385675]
[null,null,"Febrero",8.6173790521659583,4.7902819161127406,6.6216584833606262,5.8000000000000078,8.8146551724138007,4.8095363441507111,2.7724665391969316,null,null,8.4462572147852928,-1.0280783097566315,6.7878198369391685,10.53560769868192,3.0548570751914066,"n.d.","n.d.",null,null,99.728893352735042,94.528375201704122,74.45620540655888,92.464024804840463,105.24954095439649,97.564103393725887,107.0251839236619,null,null,3.3894977331953062,0,1.1495009178899693,0,4.8466115893465753,-2.375803615060688,0,null,null,3239.3,1912.7,4054.6,2648.2001819699285,819.7,1927.4,1270.3506655722399,null,null,58.581444258236395,85.658024433159923,102.20812650892637,114.86508389258768,82.259905433024528,41.809736099415645,151.61416203992763,null,null,1.0427621783159349,8.5616797900287075E-2,-1.5959782539175069,1.918714555765588,3.3871899489228618,3.1871753013777324,2.0604093023255898,null,null,4.1400000000000006,4.88,3.7,3.74,6.5,2.64,4.8899999999999997,null,null,9.8627135374800954,2.8816776027996749,5.9634614646626014,10.586011342155002,8.6866265259878901,12.193989308266366,4.6752302393357201,null,null,10.48,7.81,7.68,9.56,10.7,7.97,7.5773159725486519,null,null,5.98,"n.a.",5,6,"n.a.",8,"n.a.",null,null,30.88127372572178,7.7820471013881898,20.819311494565707,30.183824428992324,29.263086504986614,16.18320684115535,13.170981854696183,null,null,519.43195452500004,312.3725,519.22499999999991,177.42515361593192,171.74367400339688,561.09114999999997,735.1246666666666,2261.2894321443291,2996.4140988109957,null,null,778.87372237500006,659.0625,1017.3166666666667,486.8961380093096,290.76909341034184,1027.7749999999999,1003.9579524166667,4260.6931204613184,5264.651072877984,null,null,-1999.4036883169895,-2268.2369740669892,null,null,536.60891937999986,303.69,562.60000000000014,190.48451391464437,178.65969414586553,570.12380000000007,703.40899999999999,2342.1669274405099,3045.5759274405109,null,null,738.8548629600001,621.58000000000004,952.09999999999991,513.62704154316509,274.60040230604847,953.4,918.97025600000006,4054.162306809214,4973.1325628092145,null,null,-1711.9953793687037,-1927.5566353687036]
[null,null,"Marzo",9.2185163291480752,5.0588100947813253,7.024092297251439,6.3106796116504711,9.3137779680976376,5.537606131189416,3.238095238095231,null,null,8.3343421334414352,-1.3019687455767401,6.7899034985537208,10.351831632030652,3.6579036757741967,"n.d.","n.d.",null,null,99.475929182454678,94.441552023353907,74.179490207373661,92.298054564602083,104.8932874290051,95.639483868724056,106.6885216488141,null,null,2.7691982094070386,0,0.97501931902412176,0,4.7929386398813616,0.70697857259120978,0,null,null,3491.6,1907.5,4249.5,2618.5479259358244,830.8,2046.5,1119.8790553072299,null,null,60.593250330847503,83.448279784255021,103.83388690429918,112.26221755497947,84.262000809076341,43.857517838258417,131.64863007194953,null,null,-1.1156682677100964,1.065108695651491E-2,-1.9659987317691789,1.3256621004566347,2.7665792090159038,2.3805674213299213,1.4547970479704868,null,null,4.0650000000000004,5.07,3.7,3.82,6.4,2.92,4.74,null,null,8.1776277237967783,2.5901586956521667,5.4809226379201048,9.9983561643835781,8.2308469468087146,10.586173287768766,4.0308739446710122,null,null,10.46,7.78,7.66,9.56,10.5,7.38,7.3994927200222573,null,null,5.98,"n.a.",5.25,6,"n.a.",8,"n.a.",null,null,30.308267238780708,8.5716971889342908,18.887427908567211,30.625405505892921,28.142359592739673,15.998120714222019,13.407400263614221,null,null,522.22661038666672,314.68416666666667,528.29999999999995,179.29026528764416,175.58669301027189,567.84875833333319,743.15583333333325,2287.9364936845827,3031.092327017916,null,null,787.79554793750003,664.70666666666659,1028.6083333333333,500.20413863408641,291.74766543111508,1040.0749999999998,1036.6783065833336,4313.1373520027018,5349.8156585860343,null,null,-2025.2008583181193,-2318.7233315681187,null,null,648.24897363000014,365.99,604.79999999999995,229.13716127495093,218.6719280824999,677.09220000000005,907.11599999999999,2743.9402629874512,3651.0562629874494,null,null,887.95517001999985,740.06,1118.6999999999998,590.11551585399957,301.28833133927878,1175.5,1233.803449,4813.6190172132774,6047.4224662132783,null,null,-2069.6787542258276,-2396.366203225828]
[null,null,"Abril",9.7567789886713001,4.4351179673321184,6.4014539579967638,6.3367531683765836,8.8778634012456425,5.7663579324768506,2.7306967984933999,null,null,8.3641331307165991,-0.29512110187593527,6.8950627507963684,9.9643162569081962,4.3343805446929924,"n.d.","n.d.",null,null,98.825655478722581,94.652920718800175,73.924928887986724,92.049612542410259,104.29908944235891,93.519876016693502,106.3220762201825,null,null,2.2098853750119463,0,0.90280863542327938,0,4.5915230032669916,0.37936479756309621,0,null,null,3559.2,2042.6,4263.2,2659.9587131822532,883.8,2173,1648.3656573262797,null,null,60.858854254874473,86.493160917252652,106.96201453905118,114.49762876302418,90.835450237115239,45.102996971494179,191.8748698809533,null,null,-2.0561636460780583,0.53131747583360989,-1.401723287151257,1.2255845629965949,2.8836511272110248,1.9889519774011248,2.0240329972502376,null,null,4.125,4.99,3.72,3.87,6.3,2.52,4.8099999999999996,null,null,7.3008893711756926,3.221983273596182,6.022987284114639,9.7833030646992043,8.2439758077884218,10.384816384180786,4.5988542638000727,null,null,10.47,7.8,7.6700000000000008,9.56,11.3,8.77,7.4551318284424379,null,null,5.98,"n.a.",5.5,6,"n.a.",7,"n.a.",null,null,30.64422951138188,8.0040097431943291,16.884218131623019,30.364243355315246,27.41491833764147,17.072849164885163,8.2444632926105257,null,null,528.4153108116667,315.01750000000004,539.75,182.62679142722948,177.89325270658864,573.99677499999996,750.35158333333322,2317.6996299454845,3068.0512132788176,null,null,801.00440193833322,680.00166666666667,1033.7666666666667,510.78432791330488,296.61982885986055,1042.958333333333,1054.7682180000002,4365.1352253781652,5419.9034433781644,null,null,-2047.4355954326809,-2351.8522300993473,null,null,524.46548925999991,285.52,531.70000000000005,193.01350169135787,172.9648163558013,588.51959999999985,689.95699999999999,2296.1834073071595,2986.1404073071608,null,null,790.23425914000006,686.19,944.00000000000011,547.61970929399968,311.62125995494569,970.69999999999982,1001.0412759999999,4250.365228388946,5251.4065043889459,null,null,-1954.1818210817855,-2265.266097081786]
[null,null,"Mayo ",9.1692343858474015,3.8744760394244961,5.4652485116061138,6.0551558752997563,8.7361372672107223,6.2831891269635012,3.3930254476908721,null,null,8.3349055912883401,1.9077521728896363,6.8652126659902795,9.6690102675419514,4.903475492609906,"n.d.","n.d.",null,null,98.217971218425916,95.438021490191005,74.247884821265487,92.064303819658122,104.1615473318767,92.664219601707416,106.1775767137779,null,null,1.8000144885724763,0,0.78588496217771375,0,4.3817950982119616,-1.0854812649072823,0,null,null,3588.1,2163.8000000000002,4253.2,2639.7673840725906,929.3,2217.8000000000002,1682.1831294799003,null,null,60.459505609416041,94.704587600868166,106.56985564801336,118.18629043538711,93.430251384744082,45.261862491371105,195.90091428819244,null,null,-1.7580359490880604,0.94876431453811483,-0.52647532665227659,1.4566421707179229,3.2911544849814232,1.4930026903322691,1.3608021877848535,null,null,4.1150000000000002,4.8600000000000003,3.8,3.92,6.4,2.4900000000000002,4.8,null,null,6.7058871076058901,3.7117144726796787,6.9167347456552202,10.037083097795366,8.8588932955101569,9.0482897173404098,3.8947834586216818,null,null,10.06,7.73,7.68,9.59,11,8.07,7.4199599001960426,null,null,5.98,"n.a.",5.5,6,"n.a.",7,"n.a.",null,null,30.547584691232956,8.3651038955635073,16.586310051452834,29.807444212715239,27.127831939484981,18.199274136549469,14.547809901707609,null,null,529.95812006250014,315.11333333333334,556.01666666666665,184.70758088836442,179.32975600355948,581.47249999999985,755.72741666666661,2346.5979569544243,3102.3253736210904,null,null,808.28236884583328,688.43916666666667,1039.7916666666667,521.3602789855272,298.50198619892603,1053.383333333333,1071.5232660833333,4409.7588006969536,5481.2820667802871,null,null,-2063.1608437425298,-2378.9566931591962,null,null,630.84920024000076,339.86999999999989,679,251.87747989985348,196.92243956365019,638.70829999999978,794.60500000000002,2737.227419703504,3531.8324197035017,null,null,904.56035060999989,867.20000000000027,1173.2000000000005,607.23012614430081,338.83605597878579,1178.8,1195.2455549999997,5069.8265327330882,6265.0720877330859,null,null,-2332.5991130295843,-2733.2396680295842]
[null,null,"Junio",8.7507581935482559,3.7078651685393225,5.3132065434233535,6.1566049013747657,9.4567824001668317,5.9079349869163158,3.668861712135481,null,null,8.1709784955443201,3.4159398152319769,6.6078382604703378,8.9911296318367171,5.2052935954853261,"n.d.","n.d.",null,null,97.871294650942261,95.026927604278882,74.426908525117284,91.913887220127805,103.550641900079,93.300455755333985,105.9406982618294,null,null,1.2308130380235491,0,0.89959006688382859,0,3.9901310511850419,-1.0675961080658805,0,null,null,3734.1,2142,4392.3999999999996,2684.0973766622042,945.8,2240.9,1743.0560142500499,null,null,61.50905703381747,92.210772646203793,110.16852994960024,111.8507006936556,95.040007782596462,46.381768112941764,201.15482970564739,null,null,-1.3799979130971152,1.2459371614301227,-0.37336869356572516,1.3220045045045137,2.1310771509153388,1.4560429426503203,1.0911070780399124,null,null,4.1099999999999994,5,3.84,3.93,6.4,2.83,4.8,null,null,7.0797132216302181,3.9169014084507072,7.080587232430358,9.8377252252252347,7.9264219938975353,8.7359507238307206,3.6378059929667423,null,null,10.11,7.77,7.6700000000000008,9.52,11.2,8.17,7.44013377633995,null,null,5.98,"n.a.",5.5,6,"n.a.",7,"n.a.",null,null,31.167661346131158,8.6634963409532482,12.992649198938079,31.75618058342744,29.530484303184188,19.55947240448188,14.312721944849716,null,null,534.52838344250006,315.95750000000004,562.22499999999991,186.74370797768609,181.94890324244975,586.11114999999995,761.7890000000001,2367.5146446626363,3129.3036446626356,null,null,817.77460632583336,686.72916666666663,1051.9916666666668,526.26208314109851,301.10686521164399,1059.9083333333333,1081.8010054166664,4443.7727213452426,5525.5737267619088,null,null,-2076.2580766826068,-2396.2700820992727,null,null,590.19015334000005,340.63000000000011,618.20000000000027,219.75603150882716,205.58846686668289,651.6228000000001,769.28499999999997,2625.9874517155076,3395.2724517155111,null,null,856.5880818600001,724.51000000000022,1118.1999999999998,569.45176579729969,318.1603357926154,1073.9000000000001,1129.8137820000002,4660.8101834499175,5790.6239654499186,null,null,-2034.8227317344026,-2395.351513734402]
[null,null,"Julio",8.752412111860421,3.1628010209743413,5.5868140597074127,6.3020214030915715,9.7593860194980255,5.238164815897151,4.1392285983066959,null,null,7.798524195420657,4.4439367283118596,6.1676703810207654,8.2492995584841218,5.2840665419849353,"n.d.","n.d.",null,null,97.127746209944959,94.520256003597069,74.038446290138893,91.459578580556979,103.3074316828976,94.886823946366931,105.64998020225489,null,null,0.64802798002691142,0,1.2678700627927713,0,4.1739659406690048,0.72753584251276904,0,null,null,3839.3,2445,4441.3,2635.3969294642525,963.7,2366.1999999999998,1882.8632412773002,null,null,62.978328120279038,93.384375819977834,107.67828979781112,115.64135934709093,95.742344629020323,46.102089988931674,199.38214756868945,null,null,-1.3814977366341741,1.5870051635112103,-0.65047332455644657,1.2586577181207919,2.0295552366933287,1.9116973273168893,0.64411020776872796,null,null,4.1099999999999994,4.8,3.92,3.92,6.4,2.7,4.8099999999999996,null,null,7.0045231551317606,4.4756432874354797,6.8031088959939883,9.5181431767337674,7.6293168729397296,9.5705157931273703,3.1904644858693381,null,null,10.220000000000001,7.78,7.68,9.66,10.7,7.84,7.4617537025939562,null,null,5.98,"n.a.",5.5,6,"n.a.",7,"n.a.",null,null,31.989280715423106,8.4338463788141471,14.328907494976928,33.483131070674773,28.604722123904658,19.252458062975641,14.586299845149986,null,null,538.90527694166678,320.70416666666659,563.125,191.12359321196553,186.07047390772513,590.51859166666657,773.26150000000007,2390.4471023946912,3163.7086023946918,null,null,830.84374280000009,694.75416666666672,1066.1666666666667,541.73380737729838,306.45286574530911,1070.8916666666667,1108.6010100000001,4510.842915922608,5619.4439259226083,null,null,-2120.3958135279167,-2455.7353235279165,null,null,528.52813279999964,385.85999999999967,579,231.6439119262368,205.22814798330501,586.98639999999978,770.83299999999997,2517.2465927095436,3288.0795927095423,null,null,927.03254086000027,806.89999999999964,1198.9999999999998,664.62987935795172,353.82292543398108,1203.7999999999997,1355.0481339999999,5155.1853456519311,6510.2334796519281,null,null,-2637.9387529423911,-3222.1538869423912]
[null,null,"Agosto",8.5627158951680666,3.5590762021644515,6.2087622063869192,6.6943127962085205,9.8664458018428416,4.3641534198629532,4.2293233082706738,null,null,7.1851771998429816,3.2853143287981759,5.699588091208919,7.4278963434658003,5.2521421568888584,"n.d.","n.d.",null,null,96.477416278520025,94.699480134094216,73.230978868089011,90.8273956479958,103.8716859269183,95.271230843686382,105.4919593405928,null,null,0.13437674888306969,0,1.0612860336183925,0,4.4611616515045576,0.8245900031868264,0,null,null,3902.8,2389,4263.1000000000004,2566.9299530724898,955.7,2360.6,1839.1799722968501,null,null,63.932936191032688,93.351344528982096,105.57612904774093,116.32406800214838,96.077566684615235,48.772786526124492,194.7584285542319,null,null,-1.2091774642370505,0.91824283559577891,-1.2228390383301326,0.94258745141589007,2.2111418602783468,2.4010606113536732,0.5571145175834108,null,null,4.1150000000000002,4.51,4.03,4.04,6.52,2.57,4.8099999999999996,null,null,6.795412259173486,3.8730780004309446,6.017618189724784,8.9467629094947334,7.6307093821721743,10.880983755458473,3.1012892374299064,null,null,10.32,7.57,7.59,9.67,11,7.85,7.4617760942760931,null,null,5.52,"n.a.",5.5,6.25,"n.a.",7,"n.a.",null,null,31.689265485894545,8.4192556350793488,13.816194883087164,32.463644222153199,29.438814747696206,19.491880465378351,14.677106039466414,null,null,544.67066070750013,324.09333333333331,567.94166666666661,195.40383427206052,187.85735933120131,593.2041499999998,778.37116666666668,2413.1710043107619,3191.5421709774287,null,null,840.00735393833338,703.07499999999993,1082.8000000000002,556.85965429701048,310.65336051576395,1071.1249999999998,1120.8687069166667,4564.5203687511084,5685.3890756677747,null,null,-2151.3493644403466,-2493.8469046903465,null,null,569.31227866000063,349.22000000000025,588.70000000000027,213.57147640040876,207.87902508171402,628.57049999999981,819.20399999999995,2557.2532801421221,3376.45728014212,null,null,934.23871310000004,705.22999999999956,1259.7,678.34543872930044,361.48765638545871,1171.8000000000002,1305.1153130000002,5110.801808214761,6415.917121214763,null,null,-2553.5485280726389,-3039.4598410726394]
[null,null,"Setiembre",9.4300842523360817,4.3085165755106649,7.3316113649910601,7.109004739336493,11.55925155925155,6.8126520681265443,5.1886792452830202,null,null,6.4347364319054243,0.1128944585448249,5.275053545248074,6.5844855323553855,5.3864995800600539,"n.d.","n.d.",null,null,96.237704849591907,94.448706784458778,73.393665346053524,90.859136690875772,103.61746481097251,95.679360066960598,105.3689118834169,null,null,-0.41118717116599374,0,1.2188673144508635,0,4.7677268430074253,1.0825657445484649,0,null,null,3885.9,2416.6,4274.6000000000004,2523.4002776074221,971.1,2357.8000000000002,1719.7764627567501,null,null,63.592305120123505,93.90944806923325,105.50155217724948,115.00448000806696,99.166704074689278,47.017569586709087,179.82101142795003,null,null,-1.9922165529078826,0.20274799357944884,-2.24687893372825,0.6357964601769911,0.67385860513159712,0.10986332574029647,-0.62618834080717589,null,null,4.085,4.5199999999999996,4.03,4.03,6.6,2.74,4.53,null,null,5.7661618290577303,3.5581787051899356,5.0948537578674564,8.5529646017699115,6.2146773156752175,7.3561958997721861,2.1408382809235991,null,null,10.16,8.02,7.7,9.69,10.9,7.99,7.4405987577639756,null,null,5.52,"n.a.",5.75,6.25,"n.a.",7,"n.a.",null,null,33.981181623606169,8.8158710874133739,12.266744086755853,33.910260447110254,28.645484802856135,20.652440909919068,13.8769944163476,null,null,545.64461154000014,325.05166666666656,562.5333333333333,200.46630550783888,189.79740158079701,585.63991666666641,782.52441666666664,2409.1332352953027,3191.6576519619689,null,null,848.34809988083327,710.82499999999993,1087.7166666666665,565.4558648346873,312.89567383192417,1084.1249999999998,1134.8115165000002,4609.3663052141119,5744.1778217141109,null,null,-2200.2330699188092,-2552.520169752142,null,null,506.97186646999944,340.1899999999996,528.99999999999955,201.79799810833379,187.65960699514869,533.33439999999973,855.31999999999994,2298.9538715734852,3154.2738715734849,null,null,890.5895127299998,732.75,1067.7,568.69681101449987,319.54390628392258,1172.4000000000001,1276.7085580000003,4751.680230028418,6028.3887880284165,null,null,-2452.7263584549401,-2874.1149164549388]
[null,null,"Octubre",9.8439825044703593,5.4571940833706893,7.7172760996290402,8.2840236686390547,13.349891338093766,7.2107240185607866,5.45625587958608,null,null,5.9353122572893211,-0.19471757651858407,4.9019115340892965,5.8401474941404521,5.8278244237598216,"n.d.","n.d.",null,null,96.027101473569545,94.081768311591745,73.569195432026859,90.043613578872595,102.4942701726626,95.946446572098949,105.1280776700589,null,null,-0.27729724546007056,0,1.3927752414213912,0,4.9643281807372253,-5.5566011525464129E-2,0,null,null,3830.9,2400.5,4288,2432.7214627310786,937,2349.4,1778.0790366305998,null,null,63.03120920626025,91.211372904997688,108.84084445848478,114.72045926651218,102.35668617667295,46.033940308528813,181.85096832776759,null,null,-2.5891108822047824,-0.9455913292955086,-2.6061521431646262,-0.38234972677595752,-0.82319960390700753,-0.14991412475953575,-0.83091882247993143,null,null,4.0750000000000002,4.46,3.92,4.01,6.2,2.56,4.58,null,null,5.5679131037339582,2.6672489639783192,4.7557124408092983,7.3842622950819674,4.7329236675828037,6.9482563891179048,1.9382060910127283,null,null,10.210000000000001,8.27,7.57,9.73,11.3,8.64,7.5002154543981856,null,null,5.52,"n.a.",6,6.75,"n.a.",7,"n.a.",null,null,38.018408149057059,8.561781786937317,12.239782962650981,32.410606467544191,30.522150238013456,21.35654644900271,14.977994436389652,null,null,549.77029927333342,330.22249999999991,564.58333333333337,203.64756627904345,191.50186369433834,586.69119999999987,793.65674999999999,2426.4167625800487,3220.0735125800479,null,null,866.98941852000007,727.74249999999995,1103.9750000000001,577.3165859261361,320.82279888106558,1092.9416666666664,1166.6644004166667,4689.7879699938685,5856.452370410535,null,null,-2263.3712074138198,-2636.3788578304857,null,null,569.35008601000027,349.05000000000018,557.80000000000041,192.06288495031004,203.77984536249602,587.5024999999996,1091.328,2459.5453163228049,3550.8733163228026,null,null,995.57912589000011,831.09999999999945,1273.9000000000001,666.02170068195028,394.93954962969707,1221.9999999999991,1563.5625559999999,5383.5403762016504,6947.1029322016475,null,null,-2923.9950598788382,-3396.2296158788376]
[null,null,"Noviembre",10.090655724292324,6.2249443207127042,9.1292319852457116,9.5938787522071696,17.337715694330317,8.4455503512880767,6.4849624060150237,null,null,5.9079588806850865,2.5193602751112265,4.6614904714226526,5.4019790366724836,6.5503528668177946,"n.d.","n.d.",null,null,94.616053146623202,93.543668533111557,72.007850415382435,89.191621014073306,99.457316145135209,94.856680966878798,104.8320682972041,null,null,-0.6743560786589059,0,0.40455194543369533,0,4.8982167227560192,-0.45025179534550963,0,null,null,3798.9,2284.3000000000002,4301.8,2366.8284898989687,1042,2296.6999999999998,1784.0964512599999,null,null,60.098166460126166,88.68843000940349,108.37753402131352,110.87934538333208,110.55186092174083,44.947834656126702,178.6015501537459,null,null,-2.8073733451388168,-1.8027256525841373,-3.8387807822308289,-1.4817239527389807,-3.771400514974895,-1.3606370630314673,-1.7889496910856006,null,null,3.9649999999999999,4.3099999999999996,3.67,4.13,6.94,2.52,4.58,null,null,5.5402924395170183,1.3792011741272585,3.4461600676001694,6.1646885069817525,1.020361778222185,6.126991496828162,0.94075450148656758,null,null,10.32,7.69,7.53,9.81,11.4,7.96,7.4867244832558892,null,null,5.52,"n.a.",6.25,7,"n.a.",7,"n.a.",null,null,36.685443095222148,8.3508424968524508,13.30830496851927,31.961848319293829,31.999821293135099,29.586241076177778,15.398822307000891,null,null,550.89420830916663,330.65916666666658,568.22500000000014,205.51983036221691,193.50245955425467,585.25128333333305,804.41741666666655,2434.0519482256386,3238.4693648923044,null,null,879.58084688916676,735.71833333333325,1114.675,591.83034734581599,333.5765667139753,1114.0499999999997,1190.8146709999999,4769.4310942822913,5960.2457652822923,null,null,-2335.3791460566531,-2721.7764003899865,null,null,555.39173679999931,314.1899999999996,539.60000000000036,205.56567530193252,193.36235031899616,569.73139999999967,975.99499999999989,2377.8411624209257,3353.8361624209283,null,null,1067.1175786899998,791.58999999999924,1210.6000000000004,703.37555576919931,451.04341944491586,1336.6000000000008,1248.1117340000001,5560.3265539041167,6808.4382879041223,null,null,-3182.4853914831874,-3454.6021254831903]
[null,null,"Diciembre ",10.805524297769391,4.8570482393200036,8.7462608921836207,8.8733216579100915,16.870514505205698,8.8775880857246747,6.3551401869158948,null,null,5.9854545364582128,4.6490592209821271,4.6247661177534347,5.2073776482805894,7.2440205259616999,"n.d.","n.d.",null,null,90.492487710475729,94.212149260610346,71.400285326149998,89.306212069938667,98.804642715676437,94.371348337157087,104.6739404977573,null,null,-3.7726067127003224,0,0.25634214583453679,0,4.7596276814607945,1.3096331938970509,0,null,null,4113.6000000000004,2196.1,4320.3,2514.3013647104272,1018.6,2394.9,2071.6448292949999,null,null,62.761004890056249,84.362689264798803,104.48929136878658,109.25736672958514,102.81078639129224,46.002647914769852,205.64232963566442,null,null,-3.4344174822391951,-0.46448784082534078,-3.5277175147999595,-0.73784986595173541,-3.7832725992908696,-1.549986655101097,-1.6690685413005335,null,null,3.9450000000000003,4.37,3.63,4.21,6.58,3.09,4.58,null,null,4.9225665749053391,2.6635803768817867,3.810465825509795,6.9683538873994726,1.2005638488919501,5.935484086208036,1.0363330015964629,null,null,10.1,7.65,7.5200000000000005,9.85,10.9,7.99,7.4573336035670863,null,null,5.52,"n.a.",6.5,7.5,"n.a.",7,"n.a.",null,null,37.383995581672337,7.8059213377459358,13.004888400500914,33.183122707771616,31.972200044493061,28.886715560482411,18.616500220957821,null,null,554.64384695666661,334.54583333333329,574.80833333333339,210.74938722034696,194.36391457778868,596.68333333333339,809.64208333333318,2465.7946487548024,3275.4367320881356,null,null,892.21866638333324,735.05083333333323,1131.3166666666666,602.02985110090015,338.68440474737503,1133.0833333333333,1208.6714899166666,4832.3837555649416,6041.0552454816088,null,null,-2366.5891068101396,-2765.6185133934728,null,null,500.21761782999965,329.04000000000042,563.19999999999936,203.79368605859872,184.29146028240785,654.35680000000229,668.28499999999997,2434.8995641710098,3103.1845641710097,null,null,897.6783153799995,662.68000000000029,1165.4999999999991,645.33497629101657,359.34429491079743,1238.7999999999997,1189.0413080000001,4969.3375865818089,6158.3788945818087,null,null,-2534.4380224108063,-3055.1943304108063]
[null,2008,"Enero",10.562682399481172,4.7468354430379858,8.3884217957769085,8.8747099767981332,17.284569138276552,9.0473962644402128,7.6492537313432738,null,null,5.9364596934430383,4.6556340978122162,4.7586917180969879,5.1619122046508172,7.7362141510289364,7.5468384750418647,11.745361778248629,null,null,89.937029969598598,93.552102324341519,71.698609611864981,89.018109583712274,98.257804136591517,94.340186750071695,103.5785366338193,null,null,-4.1739397814222139,0,0.33733100386910347,-2.5925925925921897E-2,4.6671489467424001,0.16557273924963459,0,null,null,4397.3,2221.1999999999998,4319.6000000000004,2426.456912816021,985.7,2328.4,2103.9093223349996,null,null,63.238524256471329,87.258533457943471,106.68222235657143,112.49310045941637,101.03547654863246,45.830523410385403,197.01581925100388,null,null,-2.9962029932594305,-0.59842900302115853,-3.1815407389862629,-0.63808204581778494,-4.0558765237270702,-1.7949958747236128,-3.3992374350086569,null,null,3.855,4.12,3.57,4.3,6.88,2.67,3.99,null,null,5.237100264436962,2.7334138972809563,4.0147998578872572,6.9118806606286718,2.6283527092492625,5.7796920893699806,-0.35422843010624872,null,null,9.8310484430300811,7.61,7.4499999999999993,9.77,11.2,8.5500000000000007,7.2679294698296442,null,null,5.99,"n.a.",6.5,7.5,"n.a.",7,"n.a.",null,null,39.171033006855495,8.1961879990541053,12.106578238569554,31.006310498154164,30.773474301659554,29.125838582409958,18.228357774085158,null,null,556.87959248833329,336.33416666666659,578.93333333333339,212.3194966754545,197.84515160647152,600.14192500000001,817.44883358333334,2482.4536657702597,3299.9024993535927,null,null,914.74214322916669,746.9649999999998,1135.8083333333332,617.40508347639025,346.62560980935797,1160.8083333333332,1231.9023992499999,4922.354503181582,6154.2569024315826,null,null,-2439.9008374113223,-2854.354403077989,null,null,522.42065543999979,332.76,593.6,215.12963907,219.13403823909101,515.15440000000001,764.04900300000008,2398.1987327490911,3162.2477357490911,null,null,1086.4772075100002,793.79,1147.0999999999999,654.41248124000003,374.81918025184939,1232,1366.3668700000003,5288.5988690018494,6654.9657390018492,null,null,-2890.4001362527588,-3492.718003252759]
[null,null,"Febrero",11.399219030141698,5.8180227471566131,8.7623920690757853,9.0350200815664881,18.350168350168349,8.6789609644087449,8.3720930232558288,null,null,5.810789930238009,4.7801320677882089,4.9094204692505823,5.8645718321312623,7.8715665974958755,7.4943425115107569,11.891531542675454,null,null,88.964181619599216,93.032023023816379,71.549309941294865,88.292556198253521,96.940663017552183,94.816408128235707,102.84861221513781,null,null,-4.5784602562767178,0,0.35832102230599738,-2.5925925925884302E-2,4.6706066414789085,1.4165902319419212,0,null,null,4554.7,2277.1999999999998,4348.3999999999996,2497.9126125206399,950.5,2216.9,2109.3915369452502,null,null,64.162679642461356,89.2565974312663,109.76070940953262,110.70596808519497,94.632141842086185,43.621750791868493,207.57218016126052,null,null,-5.2955658769434679,-1.9826705250103418,-3.5144428109379535,-0.61908557549814935,-4.5716739227645684,-1.4068601234690343,-4.0158798283261934,null,null,3.36,3.72,3.54,4.34,6.71,2.31,4.0199999999999996,null,null,2.8642532939357941,1.7690533278214069,3.6939311967068562,7.0023189913864075,-6.1159900578281322E-2,6.3039239378032885,-1.1120939285162508,null,null,9.3830141843115911,7.69,7.48,9.7799999999999994,10.58,7.75,7.1668935565382172,null,null,5.99,"n.a.",6.5,7.75,"n.a.",8,"n.a.",null,null,39.95423744097446,9.157166994826337,11.606532767833833,30.478026780464894,32.151438223893635,29.413301621695442,18.784687923443787,null,null,567.10811173999991,343.38583333333327,585.57500000000005,218.26491378173421,202.15107974043224,596.76431666666679,825.05607558333338,2513.2492552621666,3338.3053308455001,null,null,940.80612604083319,761.61,1154.4833333333333,630.06561745862655,354.24816574419629,1184.0333333333331,1261.1831490833333,5025.2465759103225,6286.4297249936562,null,null,-2511.9973206481563,-2948.1243941481557,null,null,659.35115040000028,388.30999999999995,642.30000000000007,261.82951918999998,230.33083175339399,529.59250000000009,794.69590400000004,2711.7140013433941,3506.4099053433952,null,null,1051.6226566999999,797.31999999999994,1176.2000000000003,665.55344933000015,366.0710735241077,1232.1000000000001,1270.3392539999998,5288.8671795541086,6559.206433554109,null,null,-2577.1531782107131,-3052.7965282107129]
[null,null,"Marzo",11.035531672346533,5.9891304347826138,9.0995561192137231,9.2465753424657642,18.910978356674178,9.6717926811903645,8.7638376383763994,null,null,5.4987403910581341,6.1217027529083019,4.9496031722633331,5.7641862883415946,7.4495918888331305,7.3113475647964306,12.143185231677748,null,null,88.725189534370543,92.646776348404956,70.190409733054153,87.830286747124859,96.101296031855128,93.783907562706801,101.99096491265981,null,null,-4.7505708485627549,0,-0.71391395974146266,-1.5873015873016476E-2,4.7791748746514084,3.4326177980134931,0,null,null,4890.5902181000001,2271.6999999999998,4338.3999999999996,2520.6142551523426,984.3,2245.1999999999998,2011.2491596709999,null,null,65.066332191708469,89.116259510062605,106.82465662529704,108.77338660927651,97.840598294166227,43.823893178006188,194.73209627253433,null,null,-5.210522780598728,-2.263562711516772,-3.7851264167393435,-0.69253918495298772,-4.7734230666346384,-2.2264546074199005,-4.453536895674314,null,null,3.3149999999999999,3.59,3.52,4.38,6.7,1.97,3.92,null,null,2.7959233237288466,1.4726694697979643,3.6576169718104956,6.8683385579937202,-0.65842247184592506,5.1136278360219505,-1.5602585340069717,null,null,9.34,7.55,7.5399999999999991,9.74,10.119999999999999,7.62,7.0668405797101448,null,null,5.99,"n.a.",6.75,7.75,"n.a.",9,"n.a.",null,null,40.711522786235534,8.6943036641364824,11.813534750254595,28.717908361377063,31.318681356908495,30.917264622434693,18.305666513210173,null,null,563.35354940916659,342.565,588.72500000000002,222.65278168715494,204.96910281531348,592.56044166666675,825.06483724999987,2514.8258755783013,3339.8907128283013,null,null,942.69119443583338,762.41166666666652,1158.5249999999999,637.8106179007932,362.08001044721595,1196.95,1254.7671233333335,5060.468489450509,6315.235612783843,null,null,-2545.6426138722072,-2975.3448999555408,null,null,603.19422566000003,356.1400000000001,642.5999999999998,281.79157613999996,252.48820498107497,626.64570000000003,907.22113999999999,2762.8597067810751,3670.0808467810748,null,null,910.57599076000054,749.68000000000006,1167.1999999999998,683.0555211599999,395.27046777551453,1330.5000000000002,1156.8111400000009,5236.2819796955155,6393.0931196955171,null,null,-2473.4222729144412,-2723.0122729144423]
[null,null,"Abril",10.946228468348087,6.7883132399261426,10.368823938761308,9.7048808172531356,19.352336629823537,10.833333333333304,8.5242896425298049,null,null,4.9289702397280806,6.0505174037188869,4.8271121810254538,6.8550127255229185,6.7102672572103383,6.803165082518384,12.377100266464552,null,null,87.992938752830568,92.096168126086539,68.483653737416063,87.198697449767977,95.313657764372607,92.563216532332703,101.7953089620904,null,null,-4.9265192536198068,0,-1.5963620869363464,1.904761904763105E-2,4.9721947339884585,5.5780514519937539,0,null,null,4936.5400497700002,2312.3000000000002,4468.7,2593.063537103832,1030.5999999999999,2183.9,1957.96682021162,null,null,66.104659310164109,90.068578791601652,110.87539005328935,109.3449405463862,100.9271208100288,44.730661731393361,190.52183488807387,null,null,-6.0355620563149266,-2.8826312042310818,-4.8734993694829756,-0.93421624418004401,-5.4785009944851462,-2.8451127819548616,-4.5282854729729873,null,null,3.2549999999999999,3.71,3.52,4.38,6.69,1.96,3.61,null,null,3.0859737901128219,0.47915988608624938,2.5923770491803286,6.5950750129332514,-0.8610461719397603,4.7338345864661919,-1.2433600239723159,null,null,9.36,7.3,7.4899999999999993,9.6999999999999993,11.11,9.19,7.1749420088146607,null,null,5.99,"n.a.",6.75,7.75,"n.a.",9,"n.a.",null,null,41.541538378595064,8.6948252061132436,11.647547358662358,27.080951548609455,30.12781965697371,30.30346700308144,23.934773177279279,null,null,576.62586650916671,354.40916666666664,604.7166666666667,227.44328976120846,212.34808099565225,594.61500000000001,844.6427427499998,2570.1580705993606,3414.8008133493604,null,null,988.16030291749996,782.05833333333328,1195.8416666666665,653.77107082629334,376.46163590788888,1232.1583333333333,1279.2157099166668,5228.4513429850158,6507.6670529016819,null,null,-2658.2932723856547,-3092.8662395523211,null,null,683.7332944599998,427.65000000000009,723.59999999999991,250.49959858,261.51255451986594,613.17429999999968,924.89186600000005,2960.1697475598658,3885.0616135598648,null,null,1335.8635609200001,921.95000000000027,1391.8000000000002,739.14514439999994,484.20076548302063,1393.2,1294.4243149999998,6266.1594708030207,7560.5837858030209,null,null,-3305.9897232431549,-3675.5221722431543]
[null,null,"Mayo ",11.895754249466041,8.3978623623077819,12.241532411518444,11.249293386093841,21.745405561435575,10.034589986373625,8.8422971741112093,null,null,4.2813491003738919,2.7373003073370916,4.6044696061836321,6.4037749604120178,5.8674191098454864,5.7613672327358136,12.597101306558619,null,null,89.736126278334993,91.643802366950183,66.957514977148037,86.192599731083376,93.71271200882039,92.761245797938315,101.5400798279822,null,null,-1.7827937926815738,0,-2.7551886641566181,6.3013353489417695E-2,5.2304127548441057,5.823309416984551,0,null,null,4572.5978635600004,2404.9,4573.2,2512.6440159337553,1042.0999999999999,2193.1999999999998,1954.1300465132897,null,null,67.142608765097805,93.582757642488119,110.15779183343813,109.52443778200514,104.74773712305117,45.37248757111292,201.64764739912582,null,null,-6.1626594286073608,-4.2970057349834043,-6.4071937160940218,-2.1746595528455308,-7.0307159131404555,-1.1674419712316872,-4.9909798994974848,null,null,3.4050000000000002,3.74,3.54,4.3899999999999997,6.88,2.27,3.41,null,null,2.6247179955905486,-0.89287956534863222,0.96975474683545559,5.2051626016260126,-2.7003318179827462,6.0212066173435526,-1.5481346741540718,null,null,9.329979941885906,7.43,7.51,9.75,10.5,7.98,7.1572718314129764,null,null,7.0012000000000008,"n.a.",6.75,8,"n.a.",9,"n.a.",null,null,44.099437713414822,8.1486344696407809,11.904972439564965,25.342986887555831,28.99678639715335,29.801814651017811,17.34116912013026,null,null,580.48890439749994,362.4108333333333,602.39166666666677,229.29545216788733,213.64698850416679,592.25172500000008,845.29144924999991,2580.4855700695539,3425.7770193195543,null,null,1010.3399695591665,783.63666666666643,1208.6249999999998,674.56759208676829,383.03508520766644,1258.8166666666666,1299.1597400000003,5319.020980186935,6618.1807201869333,null,null,-2738.5354101173803,-3192.4037008673804,null,null,677.20565490000035,435.88999999999987,651.1,274.10342878000006,212.50932966582462,610.34900000000016,802.38947799999994,2861.1574133458234,3663.5468913458244,null,null,1170.7163503099996,886.13999999999987,1326.5999999999995,856.78838126999972,417.71744757611674,1498.6999999999996,1434.5739159999998,6156.6621791561156,7591.2360951561132,null,null,-3295.5047658102903,-3927.6892038102906]
[null,null,"Junio",12.817967448777587,9.0249187432286,13.556860516511909,12.162162162162158,23.090112402362347,12.204203786191515,9.6188747731397459,null,null,3.7303181516065695,-0.43748782739614145,4.3089080952226881,6.2263279416966393,4.9807826067722276,4.1522732256533166,12.771071954595126,null,null,90.995716905158687,91.462966165744589,67.09492396849113,85.987251626151362,93.147210369817586,91.945373163719665,101.4149209709623,null,null,-4.1547609754369157E-2,0,-2.4451878590017322,-5.7697152935095811E-3,5.5154026438938182,5.3733719158178062,0,null,null,4334.2038455100001,2300.4,4771.3,2547.3266866087911,1035.7,1975,2516.4444039084201,null,null,66.558689524327775,91.068342824567566,116.54173182293516,107.47799049236173,105.59940044694187,43.044906072348724,261.34255074032848,null,null,-6.4865265828336627,-4.7282023253502912,-7.4208290702846513,-2.8460240963855381,-8.0030654718505492,-1.5010166547777626,-5.7370364238410598,null,null,3.4050000000000002,3.87,3.57,4.46,6.47,2.06,3.33,null,null,2.2088968695113778,-1.6738547152936478,-0.13813389679710303,4.5807228915662703,-3.5455173955704762,6.0209831591353371,-2.219960176922136,null,null,9.6,7.2,7.4899999999999993,9.75,10.89,7.51,7.1853794067858985,null,null,8,"n.a.",6.75,8.5,"n.a.",9,"n.a.",null,null,42.836680601841024,8.0828550962577239,12.319732653439619,25.046697395257866,26.547056436769356,25.976049235231713,18.429525070705566,null,null,582.49290369416656,366.76249999999999,612.27499999999998,233.00984341548505,218.7073834520852,589.52339166666673,849.71352583333328,2602.7710222284036,3452.4845480617369,null,null,1031.0453035608334,796.65499999999975,1221.9166666666663,692.70684204865984,390.82210176400213,1293.9416666666668,1329.1763065833334,5427.0875807068278,6756.2638872901616,null,null,-2824.3165584784242,-3303.7793392284243,null,null,614.2381448999995,392.85000000000036,736.80000000000018,264.32872648000011,266.31320624170405,618.88280000000032,822.349919,2893.412877621704,3715.7627966217078,null,null,1105.05208988,880.72999999999956,1277.6999999999994,787.12276534000011,411.60453446864335,1495.4000000000008,1490.012580999999,5957.6093896886377,7447.6219706886332,null,null,-3064.1965120669356,-3731.8591740669326]
[null,null,"Julio",14.169802634896744,9.6385542168674778,14.155852297661555,13.758389261744963,23.632240385523957,13.727872266574062,9.5754290876242099,null,null,3.2462222618536831,-1.2491939741559484,3.9559277294869926,4.9515885614762354,4.1192582833547382,2.2207087672103469,12.648178036595429,null,null,92.471471058952943,90.950231153753592,66.296325668329658,84.797405646569842,93.005500775892031,91.437233958149605,101.7181511883562,null,null,3.0323220389572176,0,-3.107954202284462,-2.426961122616467E-2,5.503433179598038,3.8823739796985475,0,null,null,4106.6158990900003,2262.6,4742.3,2441.1181316090333,1053.8,2078.5,2430.5744654860796,null,null,68.873563841179788,88.358065338731308,109.17843992928955,109.47353812678482,101.46131585599383,45.951182117383773,247.26361674072871,null,null,-6.2799465965838914,-5.079010989010996,-7.8277653907408142,-4.0070796460176972,-8.7923432991855428,-0.85983518998927932,-5.5627699917559772,null,null,3.87,4.07,3.68,4.42,6.28,2.0099999999999998,3.48,null,null,1.708155151445595,-2.0873626373626446,-0.59204349497498288,3.4561061946902703,-3.6721529903823424,6.9746558828018124,-2.3024625657058033,null,null,9.86,7.35,7.51,9.8000000000000007,10.45,8.02,7.0524958516701544,null,null,8.9976000000000003,"n.a.",7.25,9,"n.a.",9,"n.a.",null,null,44.483159397948711,7.4920309007296293,10.554711758621483,22.460381449836355,26.140099248725267,23.636320650778742,18.393413784320135,null,null,589.5242867733333,371.95083333333338,626.13333333333333,234.36683907663198,221.70613312548929,595.55388333333337,863.32232133333321,2639.2353089754547,3502.5576303087887,null,null,1050.0131145033336,805.89583333333303,1238.55,707.03401275883061,402.62968666459386,1334.2583333333334,1365.4783853333336,5538.3809805934243,6903.8593659267572,null,null,-2899.1456716179691,-3401.3017356179685,null,null,612.90472975000012,448.11999999999989,745.3,247.9278598599999,241.21314406415402,659.35229999999956,934.13854600000002,2954.818033674157,3888.9565796741517,null,null,1154.64627217,917.79,1398.6000000000001,836.55592788000013,495.51394424108156,1687.5999999999992,1790.6730790000001,6490.7061442910854,8281.3792232910928,null,null,-3535.8881106169283,-4392.4226436169301]
[null,null,"Agosto",15.402643306505363,9.8901098901099047,13.685779958998564,13.99222654081067,23.91632114587259,14.567685589519607,9.8286744815148612,null,null,2.6950992811552892,0.36920272302083929,3.5815267773769559,4.4680603380695008,3.3026226090295463,0.38361453573296161,12.068571827660572,null,null,93.249116103199199,90.750791760741023,65.556691924783919,83.886630350738614,92.877778605105561,92.286718087607454,101.1498055234341,null,null,5.9188801686540771,0,-3.3577792241937314,-2.5396825396822604E-2,5.2159825068851386,5.3848374792955127,0,null,null,4004.20506015,2304.3000000000002,4714.8999999999996,2386.9813027731525,1020.8,2111.1999999999998,2405.1473954663206,null,null,68.091590818016968,89.869892825384952,109.66500853127637,108.56704527028094,101.52474323814442,44.894407981798054,243.97711180817691,null,null,-5.9813563266243257,-5.2508000000000123,-7.3938710382513619,-3.8530930345835439,-9.0116250936379796,-0.81845555724954266,-5.8442610837438282,null,null,3.89,4.12,3.67,4.37,7.25,2.35,3.41,null,null,1.9127436168268477,-2.1841000000000128,-0.10184207650272593,4.0246371164149926,-3.4585831760604573,8.0060222594908161,-2.584529519157921,null,null,10.43,7.49,7.5600000000000005,10.09,10.83,8.26,6.9901199690402471,null,null,10,"n.a.",7.25,9,"n.a.",9.5,"n.a.",null,null,41.990596270935598,7.5957732425602664,10.98095856627188,20.634849799284403,25.761831771668021,22.412121148538368,19.126106651075169,null,null,591.13382285,378.05916666666673,634.1583333333333,236.07527319826457,225.32304712980161,593.14105833333349,872.84756991666654,2657.8907015113996,3530.7382714280661,null,null,1072.0026663141668,811.84583333333319,1236.333333333333,720.44756931555548,406.80657970246881,1351.3416666666665,1394.3817409999999,5598.7776486655239,6993.1593896655222,null,null,-2940.8869471541243,-3462.4211182374579,null,null,588.62671158000012,422.52,685.00000000000045,234.07268586000009,251.2819931334619,599.61660000000029,933.50698299999999,2781.1179905734571,3714.62497357346,null,null,1198.1133348300007,776.63000000000011,1233.0999999999995,839.3081174099998,411.6103728399583,1376.7999999999993,1651.9555809999995,5835.5618250799598,7487.5174060799545,null,null,-3054.4438345064991,-3772.8924325064982]
[null,null,"Setiembre",15.766820863465508,8.6784376672017167,12.748364803159298,13.716814159292026,22.791651136787188,14.578587699316598,10.044843049327357,null,null,2.1653461848163844,2.3279443096374108,3.1487813643815485,3.8028080782724154,2.4063309119328524,-1.1296675218270547,10.973184371229467,null,null,92.757899988679625,91.211334536269405,66.188452460165863,83.835515725876945,92.556681232094064,91.655928952312095,100.49373334866939,null,null,6.3147634110128772,0,-3.1191989579150219,-2.5799949609446409E-2,4.5075027282833737,4.5802283058409579,0,null,null,3814.0297339700001,2259,4745.0700062100004,2358.4707795904228,1053,2099.1999999999998,2224.2239325130799,null,null,65.896672714668398,89.602073976646352,107.52010803754504,109.26377360670192,100.20920832464182,43.949378141292506,223.51695737436086,null,null,-5.629264771079268,-3.8907788499409257,-6.5707070928195925,-3.2421011673151678,-8.8986670634963794,-0.47878727634192236,-6.0473920130399366,null,null,3.9849999999999999,4.45,3.73,4.43,6.53,2.79,3.39,null,null,2.1881737078381938,-1.038327097282399,0.8174266637478339,4.6019455252918364,-4.1155066458660539,7.7600994035785567,-3.0970795979353456,null,null,10.59,7.55,7.66,10.14,10.52,7.91,6.6366666666666667,null,null,10,"n.a.",7.25,9,"n.a.",9.5,"n.a.",null,null,39.166562363655764,7.2704308649084171,10.835783331133708,18.88194961469982,23.757716516697556,20.983410613861441,20.028507696367058,null,null,597.38538613416654,381.02333333333337,643.25833333333344,239.20898882257009,228.84783312458703,592.01935833333346,887.24102391666656,2681.7432330813235,3568.9842569979905,null,null,1090.788615765,823.17583333333312,1246.5499999999995,738.16816918268057,412.81415397097521,1361.4416666666666,1441.9641643333334,5672.9384389186553,7114.9026032519878,null,null,-2991.1952058373304,-3545.9183462539972,null,null,581.99062587999924,375.76000000000022,638.19999999999959,239.40258559999984,229.95703893257308,519.8739999999998,1028.0414479999999,2585.1842504125743,3613.2256984125779,null,null,1116.0209061400003,868.71,1190.3,781.34400941999957,391.63479750599919,1293.6000000000008,1847.6976380000001,5641.6097130659982,7489.307351065996,null,null,-3056.4254626534203,-3876.0816526534181]
[null,null,"Octubre",16.303829003855022,7.4062267559239237,12.926634278334642,13.060109289617488,20.286679448552906,12.843500961802661,9.4558429973238383,null,null,1.797748741250534,1.4067836752330078,2.5986862673909967,2.9868236440119249,1.3599502774981826,-2.0741515457387742,9.5450327987402961,null,null,91.228536238805461,90.862528643675034,65.843785299562072,82.592412128859408,92.792539077417231,92.244984142776573,99.629644357308067,null,null,6.5177765774429259,0,-2.566935811082844,-2.582514487271895E-2,4.9837786946512184,4.5879402542512215,0,null,null,3625.18987436,2342.8000000000002,4787.33603958,2336.5118956681367,1017.2,2007.7,2373.8951024462003,null,null,65.366507693882184,91.234011266785103,108.75473456555767,108.94739978786481,100.27315939094007,43.65050432148049,185.57028394158723,null,null,-4.9902303763899694,-2.3706509695290898,-6.6473550073517202,-2.167085548574192,-5.9754369259809499,1.4059285866488365,-5.6879951100244668,null,null,4.1150000000000002,4.8600000000000003,3.78,4.4400000000000004,6.52,2.85,3.23,null,null,3.2726102216452544,1.1021458250890337,0.73797091978436957,5.4837119381343644,-1.3933432089234989,10.196864631213694,-2.3959521869057503,null,null,11.92,8.59,7.84,10.48,11.26,7.69,6.833333333333333,null,null,10,"n.a.",7.25,9,"n.a.",9.5,"n.a.",null,null,34.832020144123788,7.030582101039573,9.6039807750441639,15.315869356785949,17.990331566078609,18.635269939082487,19.276794903484884,null,null,604.19389831749993,385.98250000000007,648.7166666666667,240.53107061837758,230.69724236553225,589.7270583333335,906.69614016666662,2699.8484363014099,3606.5445764680771,null,null,1105.4875823183336,823.23333333333323,1248.2916666666663,743.8136945208513,420.65413703539156,1368.0166666666667,1479.60706725,5709.4970805412422,7189.1041477912431,null,null,-3009.6486442398332,-3582.5595713231664,null,null,651.05223221000051,408.55999999999995,623.30000000000018,207.92786650000016,225.97275625383895,559.99489999999969,1324.789395,2676.8077549638438,4001.5971499638399,null,null,1171.9667245299997,831.79000000000087,1294.7999999999997,733.76800473999992,489.01934640269457,1300.9000000000001,2015.277391000001,5822.2440756726937,7837.521466672697,null,null,-3145.4363207088572,-3835.9243167088644]
[null,null,"Noviembre",16.297472991123708,5.294055980710751,10.846209560598728,10.902255639097751,15.423669467787132,7.2141989472263441,7.6787290379523521,null,null,1.6061919035020227,-2.2909040891873285,1.8846549102090364,2.0154982916173356,0.21180586905070728,-2.3908656981525165,8.0363078021688175,null,null,88.262239260204225,89.817578784587937,65.598943005634567,81.287209341438626,91.465766573269946,94.229547867076633,98.427178216283053,null,null,7.3073798760524058,0,-0.11804348014108808,-2.5846560846531627E-2,4.9943474777764143,5.3466395672879798,0,null,null,3753.9122622899999,2407.6,4727.00320663,2330.8160575153879,1012.8,1986.5,2352.9313784329697,null,null,63.576285808664053,91.620262249491304,104.03167619691629,106.75175348852422,97.152063869333418,42.269402515413972,235.4018942976428,null,null,-4.555105846133074,-0.39323775388290078,-4.8681949360195889,0.20535593220338458,-2.231556846658644,6.8421917290866769,-4.0664754098360776,null,null,4.2850000000000001,4.88,3.77,4.58,6.96,3.1,3.3,null,null,3.9489482365853408,3.6620718837116839,2.655742989381991,7.8968135593220277,3.4446162578896371,15.954790709385035,-0.99251639344263476,null,null,11.88,9.15,8.0500000000000007,10.72,11.96,8.69,6.61,null,null,10,"n.a.",7.25,9,"n.a.",9.5,"n.a.",null,null,30.502748713499095,6.1315329171933719,9.8041638801219975,13.224243706789673,15.319832533958945,17.005980941688303,18.383480606932913,null,null,603.65094552916662,390.36916666666667,646.9083333333333,237.2448977890499,230.07400226042603,579.39918333333355,909.0975698333333,2687.6465289119765,3596.7440987453097,null,null,1089.975515471667,817.22583333333341,1229.3916666666664,740.13419594758454,411.06977619762228,1351.7499999999998,1495.8232435833331,5639.5469876168727,7135.370231200206,null,null,-2951.9004587048971,-3538.6261324548977,null,null,548.87630334000005,366.82999999999993,517.89999999999964,166.13160134999998,185.88346905772192,445.79690000000028,1004.8121560000001,2231.418273747724,3236.2304297477167,null,null,880.97277653000026,719.5,983.79999999999882,659.22157288999915,336.03108939168419,1141.4000000000001,1442.7058499999998,4720.9254388116824,6163.6312888116809,null,null,-2489.5071650639657,-2927.4008590639642]
[null,null,"Diciembre ",13.902332628419961,5.4742604484682627,9.4002272319559772,10.831099195710451,13.777893098079922,4.5172482818442692,6.7662565905096752,null,null,-4.1218872575570824,-4.0941501247216268,1.0468092973594991,1.0304414973141913,-0.9368667341004262,-2.4191841523313422,6.5274246718232938,null,null,87.236933677317566,89.302553420306566,65.89123842132939,80.539860575936189,91.222727941369939,94.953289174790896,98.018490966641707,null,null,9.8289997657531529,0,0.98165698380179278,-2.5925925925921897E-2,5.0703396991881178,5.1851343570343875,0,null,null,3799.0988521700001,2539.5,4658.8242851999994,2460.0103567114747,1029.8,2165.4,2611.5755368652699,null,null,65.628342679764373,95.097400408924443,96.070211922545042,105.70758733369181,98.097638346079535,42.00070915185217,254.90494417062189,null,null,-2.1091162691610679,-8.9368200419206303E-2,-3.5925220005465879,0.91932752781809823,-1.2442415527485853,9.551295965270679,-3.2653168724279924,null,null,4.0999999999999996,5.38,3.82,4.82,6.63,2.76,3.28,null,null,5.9943174244321469,3.8926459726519584,4.0582847772615578,8.3089501693275309,4.887591588169232,18.583298008171596,0.14399999999999138,null,null,11.52,9.58,8.129999999999999,10.7,12.63,8.9700000000000006,6.92,null,null,10,"n.a.",7.25,7.75,"n.a.",9.5,"n.a.",null,null,33.873684582043808,4.4147711261212752,11.221711450122829,10.99866162842611,11.58457913730382,13.614271082474684,16.017035050488349,null,null,601.09852520583343,386.75666666666672,644.78333333333342,236.08202375333335,229.25394011892786,562.29166666666663,903.92448191666665,2660.2661557447614,3564.1906376614279,null,null,1085.6090181691668,818.13916666666671,1212.208333333333,734.45614720833328,407.41908137542669,1332.7416666666666,1505.5099901666665,5590.5734134195927,7096.0834035862599,null,null,-2930.3072576748314,-3531.8927659248316,null,null,469.58857395000086,285.69000000000051,537.70000000000027,189.83919762999994,174.45071458442939,449.06660000000011,606.20794499999988,2106.3350861644285,2712.5430311644304,null,null,845.28034775000037,673.63999999999942,959.29999999999973,577.19839142000092,315.53595704445047,1010.6999999999998,1305.2822669999994,4381.6546962144494,5686.9369632144517,null,null,-2275.3196100500136,-2974.393932050014]
[null,2009,"Enero",13.500969550722061,3.812897176789261,7.8813358597820429,10.069259456579651,12.456215292609993,3.6797465430184007,4.9393414211438307,null,null,-4.4373666272928567,-2.1330285804557558,0.19227941279127006,-1.3637939579253524,-2.0130430066982856,-2.4750416346403714,5.1947835439803765,null,null,88.222385810848763,90.013710007982183,67.683600620414012,80.782770680767158,91.952790057600865,95.229575316712598,98.591133216936385,null,null,11.463687442321563,0,1.9559590130220801,0,5.3597905029247777,4.7761945670527739,0,null,null,3844.11383252,2370.6999999999998,4758.5618823800005,2421.723321083191,973.1,2085.4,2569.2381637559597,null,null,66.651464268674445,87.59279970707567,97.995100378001837,103.63297445819109,94.678187920274411,44.22873124460768,249.31663585089194,null,null,-1.9832161431150888,1.4324836929252265,-2.2073659366594853,1.908562439496609,1.4002658408947768,9.2113009294626771,-1.3334764657307852,null,null,4.07,5.3,3.85,4.91,6.69,2.92,3.54,null,null,6.4924823800600384,5.5360200702458489,5.5882364564466176,8.6406873184898298,6.5438254774697704,20.727532785841593,2.2114285714285877,null,null,11.62,9.56,8.17,10.7,12.79,9.01,7.26,null,null,10,"n.a.",7,6.75,"n.a.",8.5,"n.a.",null,null,32.017584369039788,3.2480113609204775,7.8572985171677212,8.3530944796875737,8.6436038048413053,9.5296777957637033,15.920851067399155,null,null,596.80583320833341,385.42750000000007,644.37500000000011,233.00087980916669,226.43865159723478,549.8288,891.69803058333343,2635.8766646147355,3527.5746951980677,null,null,1056.1674663216666,801.00500000000011,1186.7249999999995,721.17134566749985,401.75114098234917,1306.4416666666664,1494.9247555000002,5473.2616196381823,6968.1863751381825,null,null,-2837.3849550234468,-3440.6116799401134,null,null,470.90835147000041,316.81,588.70000000000005,178.15591174000002,185.35057597877471,365.6,617.33158700000013,2105.5248391887753,2722.8564261887755,null,null,733.1785853399997,588.17999999999995,841.3,494.99486274999998,306.80389553491858,916.39999999999986,1239.3440539999997,3880.8573436249171,5120.2013976249164,null,null,-1775.3325044361427,-2397.3449714361423]
[null,null,"Febrero",12.748404472680134,2.8627532038032202,6.498088797412505,9.7522403795466541,10.777340808300545,4.0309002674061665,4.2918454935622314,null,null,-4.6658098798921621,-2.0807404126910178,-0.47814111231480405,-2.0621524720003594,-2.97551705723478,-2.6389420939531134,4.0707716794034043,null,null,89.189369431549494,90.450521259579119,69.093439101881359,80.453964507810241,92.135215001916393,95.793654548461262,98.624505061824266,null,null,13.024229957862781,0,2.8339270724055421,0,5.2770847462501571,5.094223630388,0,null,null,4077.23960304,2411.1999999999998,4742.3425540299995,2437.42831220364,971.4,2095.6,2527.6139956297602,null,null,70.609184475371734,87.957979198988497,101.78057197975461,102.71484167979953,91.297261711037422,44.813694700109977,240.08142219102305,null,null,-0.66378276143276027,2.2527559529790051,-0.89024019878518235,2.2029250720461082,1.9819024512420731,7.8333453922315242,-0.70172839506172802,null,null,4.7650000000000006,5.18,3.84,4.91,6.74,2.96,3.56,null,null,7.8684887549513203,6.5205787199839289,6.9972252898951046,9.2825072046109511,9.1475304866755458,18.618602437166786,3.028189300411523,null,null,11.7,9.57,8.2100000000000009,10.53,13.12,9.4499999999999993,7.45,null,null,10,"n.a.",6.5,6.75,"n.a.",6,"n.a.",null,null,30.114857246898019,2.0790668190203254,7.2574770262722632,6.3113973406901946,5.7227148663661298,8.1191016349958733,14.695887194110057,null,null,584.69968953750015,379.80166666666679,641.05833333333328,227.64976429666669,225.04825621489977,540.90442500000006,883.01920299999995,2599.1621350490668,3482.1813380490657,null,null,1029.3298663850001,783.21583333333353,1162.5666666666664,707.17295374749995,396.19138263937612,1270.4999999999998,1479.7207896666666,5348.9767027718754,6828.6974924385422,null,null,-2749.814567722809,-3346.5161543894756,null,null,514.07742635,320.80000000000013,602.5,197.61613303999997,213.6460871653735,422.50000000000006,690.54997300000002,2271.1396465553744,2961.6896195553741,null,null,729.57145745999992,583.85,886.3,497.57274629,299.35397340843082,800.8,1087.8916639999998,3797.4481771584315,4885.3398411584312,null,null,-1526.3085306030571,-1923.6502216030567]
[null,null,"Marzo",12.321919570610815,2.5535842477694537,4.9985469340307702,8.7774294670846302,8.4582441113490336,2.4408452075692333,3.7319762510601997,null,null,-4.5927076025313474,-3.7811356491636596,-0.79906532804270314,-2.6847743048202815,-3.6338966642311759,-2.719756390000089,3.13187754275787,null,null,89.556353415886605,89.936523271824868,70.346867087590738,80.374533687911139,92.675907481206622,95.84313475507453,97.882640029576223,null,null,13.882595586491403,0,5.7045414138887862,-1.0054506006183345E-2,5.0614876593412648,5.1596696632062482,0,null,null,4167.2698822599996,2516.1999999999998,5029.7989562299999,2552.9074220040643,970.2,2103.8000000000002,2855.6692107751196,null,null,71.139594237171565,91.509229477886066,106.08711876102772,103.05592734085489,89.652756602972303,44.545407375055198,280.3169105965531,null,null,-0.50917894992996404,2.4635080000000058,0.57282037088295579,2.8797982708933803,3.8620235753552814,8.5309280441050479,-0.15614881439082229,null,null,4.3550000000000004,5.08,3.91,4.93,6.73,2.83,3.57,null,null,8.6876011972487674,6.9392170000000055,8.4110240797121865,10.372161383285309,10.884963986858031,17.843619657171804,3.3625347506132663,null,null,11.71,9.67,8.24,10.36,12.56,8.7799999999999994,7.22,null,null,10,"n.a.",6.25,5.75,"n.a.",6,"n.a.",null,null,27.25950451576702,0.74743671383639132,7.5502774910768844,5.1002083854655433,4.3063380781609206,5.6221184625666165,13.850052149296799,null,null,583.6034128125001,379.08750000000003,641.69999999999993,223.7423315325,224.02118599056396,529.05061666666666,892.42940558333339,2581.2050470022309,3473.6344525855638,null,null,1015.9069380058332,771.69333333333327,1140.6666666666663,694.05017595083336,389.93313294509238,1244.0916666666665,1497.9382996666664,5256.3419135684244,6754.2802132350917,null,null,-2675.1368665661939,-3280.6457606495273,null,null,590.0389049600002,347.56999999999994,650.30000000000007,234.90238296999996,240.16336228904541,484.39999999999992,1020.143571,2547.3746502190443,3567.5182212190448,null,null,749.50085020999984,611.41000000000008,904.40000000000009,525.5821876,320.17147144410933,1013.5999999999998,1375.4212599999996,4124.6645092541103,5500.0857692541103,null,null,-1577.2898590350651,-1932.5675480350646]
[null,null,"Abril",11.750730438363346,1.7900732302685161,3.6226069012953972,8.0703569580962196,6.8805848903330622,0.69453294252585696,3.7162162162161949,null,null,-4.399623256579992,-3.6194245183487768,-0.79767925950456253,-4.4319345275705224,-4.0073712848515584,-2.3633445034584621,2.5106474782663843,null,null,90.049918334322939,89.955132666151599,70.500302130240229,80.185880375602153,92.751185926036797,96.229335767194669,97.582269606407024,null,null,15.026010444888142,0,7.2923493173073091,-4.4964980215379084E-2,4.6100337417267552,5.289515602866075,0,null,null,4270.68760372,2673.8,5001.00000507,2589.0663725737131,1012.8,2038.9,2843.7327772075,null,null,74.44841969993783,92.459780099396525,104.57828706650527,101.64577796076715,91.050189092455327,43.989528511517797,277.92363104019569,null,null,-0.22436581611575057,3.1731254996003142,1.9468658037393798,2.9699569171852596,5.8133313868211136,8.3574220084793467,-6.3843648208448622E-2,null,null,3.88,5.0199999999999996,3.94,4.8899999999999997,6.87,2.86,3.65,null,null,9.2699792842520683,7.6431095123900832,9.8698473282443064,10.983255146002877,11.93055755616375,18.099758273745433,3.1082736156352011,null,null,12.37,9.57,8.2199999999999989,10.42,13.39,8.86,6.94,null,null,10,"n.a.",5.75,4.5,"n.a.",5,"n.a.",null,null,26.034349863958163,-0.52989003840799853,7.2769292530270757,3.6641517837421977,1.2811321421830835,4.0878600728111669,12.753610935807981,null,null,573.82722096583336,369.19750000000005,634.09166666666658,218.71941284583332,219.27617480523352,516.60275833333333,889.50710041666662,2531.7147336169005,3421.2218340335662,null,null,963.65739919083342,741.26166666666677,1098.1083333333329,674.91882522083336,375.16129461122858,1210.0999999999997,1482.8013018333331,5063.2075190228943,6546.0088208562274,null,null,-2531.4927854059938,-3124.7869868226608,null,null,566.4189922999999,308.97000000000003,632.30000000000007,190.22457434,204.57242029590071,463.79999999999984,889.8242039999999,2366.2859869358999,3256.1101909359004,null,null,708.86909514000013,556.77,881.09999999999957,509.56893564000006,306.93870547665551,985.30000000000007,1112.7803410000004,3948.5467362566542,5061.3270772566557,null,null,-1582.2607493207524,-1805.2168863207535]
[null,null,"Mayo ",9.5237291520749743,0.97595331522287265,2.2943037974683387,6.1483739837398339,4.093890776890861,0.47312101101834053,2.5125628140703617,null,null,-4.1895352170784941,-1.9149259997819537,-0.48871435570190092,-4.7850909758545761,-4.1986059159419842,-1.4983799478118176,2.2387518970264737,null,null,91.036733752761137,89.836160918416823,70.590412522625897,80.30387341095819,93.523237538416183,96.590980430737048,98.045226882605633,null,null,12.251337850033662,0,8.9511446446919702,-8.8883271085537507E-2,4.949463199779637,5.6948552544146995,0,null,null,3900.5751640499998,2928.9,5007.5742491400006,2534.2079799180215,1020.3,2073,2750.9609279830502,null,null,68.946206400912146,106.51126425077733,103.9715316319803,101.00720677011998,90.353162156206608,46.009365570511704,269.27841766847916,null,null,1.5761614960426324,3.8465065763252162,3.3195359628770467,4.1749353757778875,8.5045543524609251,7.2923772201504118,1.0998039215686177,null,null,3.0249999999999999,4.8600000000000003,3.98,4.8499999999999996,6.67,2.96,3.64,null,null,11.500951387835743,8.3228198485452243,11.296519721577743,12.879731929152708,14.926910896088271,17.87232128184057,3.577549019607833,null,null,11.88,9.3800000000000008,8.19,10.39,12.73,7.95,6.18,null,null,10,"n.a.",5.75,4.5,"n.a.",5,"n.a.",null,null,21.553702912780825,-1.7276770595137658,6.6666450993285276,3.0734551801233634,-0.22263314117164645,3.4379300023831494,11.16420211061644,null,null,565.33383421250016,360.93333333333345,630.17500000000007,215.18837963166663,218.80935391120715,505.0153416666667,894.82164533333344,2495.455242755374,3390.2768880887074,null,null,926.5347582633334,717.75999999999988,1061.5333333333331,644.06632935749997,367.23163306481746,1164.3499999999997,1476.5161136666666,4881.4760540189827,6357.9921676856502,null,null,-2386.0208112636092,-2967.7152795969428,null,null,575.28501386000016,336.72000000000025,604.09999999999991,231.73103021000009,206.90747893750796,471.29999999999984,866.16401700000006,2426.0435230075072,3292.2075400075082,null,null,725.24465917999999,604.11999999999989,887.70000000000027,486.55843090999997,322.56150901918318,949.69999999999993,1359.151658,3975.8845991091839,5335.0362571091828,null,null,-1549.8410761016758,-2042.8287171016746]
[null,null,"Junio",8.196070831866594,-0.22856007154922967,0.61721530249108225,5.4216867469879579,1.9579012536759026,0.25742021524054126,1.8211920529801224,null,null,-3.8775182458992927,-9.2536095850688282E-2,-2.7984943692709936E-2,-5.194332592143077,-4.1559283139751182,-0.2620895330602806,2.200350656056421,null,null,91.984699120815421,90.545677866689275,71.471108909793756,80.546233941864472,94.778713666182853,95.265311300351868,98.376725398371391,null,null,10.733097325713075,0,8.5136735215632129,-2.0157373655426494E-2,5.0347875789289471,5.1702130151183292,0,null,null,3935.8131411099998,2781.5,5137.2821378400004,2444.222793169075,1030.9000000000001,2047.1,2705.4254256132299,null,null,69.162905270247265,99.033272901021547,105.71208246632288,95.133024266402927,89.2348601708687,46.865895920709086,262.94309314142248,null,null,2.5915258720352483,4.9899651394422202,5.0814213871235365,4.4377142857142795,11.197414147055508,6.874882447565402,1.6684227642276523,null,null,2.6799999999999997,4.75,3.98,4.8,6.64,2.92,3.52,null,null,12.407039428440784,9.7608695219123405,13.121794970986484,13.449142857142851,17.58451779456103,17.407768669182676,4.7915447154471646,null,null,11.89,9.51,8.19,10.38,13.1,8.3800000000000008,6.7,null,null,10,"n.a.",5.25,3.5,"n.a.",5,"n.a.",null,null,19.343395537355423,-3.6012317784486214,3.6638144214194535,1.5846101913377098,-2.5010110642093464,4.4587341232797062,8.6314873635808596,null,null,561.03914178166679,355.69583333333344,620.6,211.23475491333332,214.79058004085996,495.44177500000001,918.17510016666677,2458.8020850691937,3376.9771852358595,null,null,902.68979716249999,696.95000000000016,1038.0416666666667,623.23496731666671,364.33299166608862,1124.9416666666666,1485.34047775,4750.1910894785888,6235.5315672285897,null,null,-2291.3890044093951,-2858.5543819927284,null,null,562.70183572999986,330,621.90000000000009,216.88522985999998,218.08791979753801,503.99999999999989,1102.591377,2453.5749853875386,3556.1663623875393,null,null,818.91255666999973,631.01000000000022,995.80000000000041,537.14642085000014,376.82083768389765,1022.5000000000003,1595.9049500000001,4382.1898152038993,5978.0947652038994,null,null,-1928.6148298163635,-2421.9284028163638]
[null,null,"Julio",6.9027168627060487,-1.8936420722135072,-0.3020484375858099,3.9823008849557495,7.642922653622311E-2,-1.2208148939416876,1.8961253091508559,null,null,-3.4435629768215041,-0.82797549477691912,0.47400156865933746,-4.6351678544943713,-3.9439419806596057,1.2220084320484765,2.4506072785055495,null,null,91.966376102095992,90.889862162365645,71.628065770939543,79.951154273268671,95.793576159814151,95.272302221227179,97.869997908718076,null,null,8.4429338784623464,0,9.8679974297222461,-1.6567167784784821E-3,5.1358332986173059,4.978467391811769,0,null,null,3884.3575550800001,2676.3,5035.4762010599998,2204.9730131065198,1102.3,2059.3000000000002,2486.8558421243306,null,null,70.676061190090877,93.777495433414771,102.69189442600724,94.431673088392102,89.095655740334507,45.554744272304319,246.30407128266279,null,null,4.7681511629309989,6.4864726472647334,6.0001718629503147,5.6718297872340457,13.796161103303087,8.5350115865904321,1.5740291262136019,null,null,2.4,4.47,3.97,4.72,6.85,2.77,3.5,null,null,14.0756788778521,11.389314931493157,14.235045169108739,14.750297872340429,19.742304676463132,19.073669086976654,4.3022977346278415,null,null,11.75,9.2799999999999994,8.18,10.27,13.01,8.5399999999999991,6.28,null,null,9,"n.a.",4.75,4,"n.a.",5,"n.a.",null,null,16.159577350848188,-3.8519661001622407,3.6861062050727256,1.950281258738995,-4.6859187722143698,5.350022954087752,6.8282020722149506,null,null,552.84980462583349,349.44250000000011,609.51666666666665,208.16840627666667,213.38226265167938,479.81241666666671,933.98922725,2413.172056887513,3347.1612841375122,null,null,874.8322975750001,675.81500000000017,1012.6749999999998,597.48407812833329,351.33909024767217,1076.7416666666668,1446.1744527499998,4588.8871326176713,6035.0615853676718,null,null,-2175.7150757301588,-2687.9003012301596,null,null,514.63268388000051,373.07999999999947,612.30000000000041,211.13167621999992,224.31333539398696,471.79999999999984,1123.9080709999998,2407.2576954939868,3531.1657664939848,null,null,820.35627711999996,664.17000000000007,1094.1999999999996,527.54525762000003,339.58712722008448,1109.2000000000003,1320.6807789999998,4555.0586619600836,5875.7394409600856,null,null,-2147.8009664660949,-2344.5736744660953]
[null,null,"Agosto",5.7116567660008748,-2.1568627450980458,-0.73224043715850273,3.117389186556248,-0.12167300380227877,-0.46958377801490836,1.8062397372742276,null,null,-2.8995462893709893,-3.4343958134352537,0.94680609982207509,-4.5461986711878319,-3.5953104472567978,2.678237823007851,2.9283734711839267,null,null,92.469950515333949,91.375033287163788,72.555422206608796,80.143081565933045,96.407855219117252,94.906846560278481,97.880944224013675,null,null,6.4072662613609142,0,11.520207399372996,-5.2923493793482742E-4,5.2360081125526508,3.8978754329450584,0,null,null,4052.1901452900001,2977.5,5169.9563626600002,2253.0741964783074,1252,2272.6999999999998,2736.8132973672004,null,null,74.771124243712023,100.8485845295731,107.42127337101044,101.25664797093259,101.04319676813836,49.68427811180586,262.50022358290846,null,null,5.4755959854190648,6.4867735470941961,6.439392271276045,6.6260510155881081,13.666907492497083,7.6957216384301601,1.6538870967741861,null,null,2.0949999999999998,4.1900000000000004,3.98,4.7,6.66,2.73,3.49,null,null,15.796122910987872,11.862725450901809,14.790542772211861,15.470340103920655,19.472475348296676,17.632382586317778,3.8934354838709595,null,null,11.13,9.4499999999999993,8.14,10.38,12.66,8.3699999999999992,5.77,null,null,9,"n.a.",4.75,4.5,"n.a.",5,"n.a.",null,null,15.457909905457591,-5.2337645942481359,2.6864241630131014,-0.25977894807817092,-7.220567762662955,4.2568713411206272,4.860769023204381,null,null,548.44442852000009,339.36000000000007,598.76666666666665,204.07553325916669,212.52320605160685,469.3610333333333,939.66850633333343,2372.5308678307742,3312.1993741641068,null,null,844.66606906666664,657.80000000000007,987.94999999999982,570.47214933499993,345.64514706919721,1049.625,1417.286102916667,4456.1583654708638,5873.4444683875299,null,null,-2083.6274976400896,-2561.2450942234232,null,null,535.7621983099998,301.5300000000002,555.99999999999977,184.95820965000007,240.97331393259105,474.20000000000005,1001.6583320000001,2293.4237218925919,3295.0820538925909,null,null,836.11859272999993,560.44999999999982,936.39999999999941,515.16497188999983,343.28305469825807,1051.4000000000003,1305.2953830000006,4242.8166193182587,5548.1120023182593,null,null,-1949.3928974256669,-2253.0299484256684]
[null,null,"Setiembre",4.8338258929422064,-1.8018905080740413,3.2837127845869549E-2,3.0642023346303562,7.5884049172794841E-3,-1.5693716488944636,0.48899755501220976,null,null,-2.4094921312359423,-5.4637974502927591,1.3921006602893649,-3.7063474645831347,-3.0781524873357946,3.9997621880278618,3.5354895300404103,null,null,92.536034025939003,91.605118395155657,72.723959712209648,80.22208285755444,96.652828888467283,95.061799781886918,98.62670494656544,null,null,6.0443056805362074,0,11.445829172969933,-7.3085119453832712E-5,5.8926199209406267,3.5146145608741559,0,null,null,4059.3971229499998,2743.5,5087.2152935399999,2205.5372715607355,1280.0999999999999,2210.9,2717.1761630798001,null,null,73.329865259358243,96.976805099421099,109.82146155057293,97.532801271093874,102.70387497543925,47.874038797009526,260.12001097223407,null,null,6.3588007499272088,5.8778020655770549,5.6253156800525375,6.797508258612547,15.234193822729273,8.035478165070181,2.9565450121654653,null,null,1.89,3.97,4,4.67,6.8,3.09,3.46,null,null,16.317418506243264,11.224137170359969,13.942584527847702,15.520226521944306,20.920196035612253,17.443119013373263,4.7975425790754409,null,null,11.11,9.2200000000000006,8.129999999999999,10.43,13.08,8.14,5.31,null,null,9,"n.a.",4.5,4.5,"n.a.",4,"n.a.",null,null,14.29106524772228,-5.6510718937310305,2.1441244553151773,-0.66359127906057136,-7.8327441879963438,4.7104014368545055,2.7135054903900224,null,null,541.9443730075003,333.45666666666671,591.40833333333342,198.45256931000003,214.85622915827557,464.32153333333326,976.90275724999992,2344.4397048091096,3321.3424620591081,null,null,816.53911900416654,634.87083333333328,965.30833333333305,545.48998906000008,340.1298616579611,1023.9833333333332,1389.860042,4326.3214697221274,5716.1815117221267,null,null,-1981.8817649130187,-2394.8390496630186,null,null,503.98995973000001,304.92000000000007,549.89999999999964,171.92701820999991,257.95331621259805,459.40000000000009,1474.8524589999997,2248.0902941526001,3722.942753152598,null,null,778.49750538999967,593.5600000000004,918.60000000000036,481.55808611999964,325.45137257116687,985.90000000000009,1518.5849069999995,4083.5669640811684,5602.1518710811652,null,null,-1835.4766699285683,-1879.2091179285635]
[null,null,"Octubre",4.0001465418616435,-2.0280965571824279,-0.65348799215815956,2.6582890285161911,0.4250474383301725,-0.30136068917227432,0.73349633251832314,null,null,-2.1311362972300985,-5.967955969476062,1.8564185498345382,-2.6460299833673693,-2.4170666632465041,5.199621361445776,4.2310701616695328,null,null,91.855854665834244,92.535739535895331,73.369969534204344,80.273490463037504,96.936427139283353,95.231726317176808,98.682671764102366,null,null,4.9503423944808889,0,10.950674138348019,-4.7883366205993903E-5,5.1452767567756945,3.1577593598170925,0,null,null,4066.7415792299998,2928.6,5091.3049877000003,2147.3992722455691,1287.2,2074.6,2679.3982361406001,null,null,70.697676389270285,102.20312898058607,107.31574607692107,94.637831456738581,106.48783595663673,44.505917261988913,253.28258737339661,null,null,4.8075446279547682,5.8568797334141145,6.3550172668969083,7.531501883239172,11.181196560136426,5.678473375671663,2.5775970873786553,null,null,1.7999999999999998,3.71,3.97,4.68,6.51,2.66,3.33,null,null,16.43252824769764,11.287007977380588,14.679416214438433,16.035442561205276,19.075595487186316,15.006584636052702,5.2049919093851287,null,null,11.05,9.0299999999999994,8.09,10.63,12.39,8.3699999999999992,5.9766666666666666,null,null,9,"n.a.",4.5,4.5,"n.a.",4,"n.a.",null,null,13.576656802550202,-6.2531006899954278,1.0204816305484199,0.79094154420145113,-7.9257226098780169,6.0006077528596879,1.9027380954190987,null,null,533.93285389916684,328.03916666666674,590.98333333333323,196.28193630249999,214.69732676129729,457.58862499999992,981.7919886666665,2321.5232419629642,3303.3152306296306,null,null,794.1610833374998,618.37249999999995,951.12499999999989,527.91298009499997,330.94511956167338,1008.5083333333332,1359.5736138333334,4231.0250163275059,5590.59863016084,null,null,-1909.5017743645421,-2287.2833995312089,null,null,554.91400290999991,343.55000000000018,618.19999999999982,181.88027041000009,224.06592749009991,479.20000000000005,1383.4601720000001,2401.8102008101014,3785.2703728101042,null,null,903.43029652999996,633.80999999999949,1124.6000000000004,522.84389715999987,378.80244124724123,1115.1999999999998,1651.8402530000012,4678.6866349372358,6330.5268879372379,null,null,-2276.8764341271399,-2545.2565151271447]
[null,null,"Noviembre",2.56654859369926,-2.9868578255772948E-2,-0.60985570378439469,3.0992736077481866,0.46261186106475438,4.1795178447787746,1.3934426229508079,null,null,-1.9865148271190056,-2.3936204782940549,2.3174176211343118,-2.2073370613026833,-1.655553304225529,6.3162842348215289,4.9298226578917328,null,null,89.895970729521849,91.564563661769867,73.194199538130277,80.353138295832835,97.459619560135963,94.535610865781891,98.933076687840682,null,null,2.5025517023500123,0,8.814506179090781,-2.6461865926904145E-5,5.0350504789669301,2.5544054259094588,0,null,null,4059.79113474,2731.1,5111.03923614,2066.7989592252898,1307.7,2222.9,3026.8883949599999,null,null,68.968896821279259,99.163189183438647,104.15564099024861,90.115674561314222,107.24464415491141,45.25132867871136,279.65670934222254,null,null,6.516209717435407,3.6609620555722557,6.2982660384594551,7.2752465946453713,12.099993258481819,0.70117636396589977,1.9000808407437466,null,null,1.7949999999999999,3.63,3.9,4.62,6.29,2.76,3.32,null,null,17.075207898120304,9.1526023304452817,14.37753793896896,15.393635509628933,18.603089304627655,9.9064406984471969,4.553112368633804,null,null,10.58,9.1199999999999992,8.09,10.41,12.68,7.92,6.01,null,null,9,"n.a.",4.5,4.5,"n.a.",4,"n.a.",null,null,12.47795754911898,-6.280643711607981,-0.3778745585305221,1.0190217580155592,-8.2262893153439265,6.3891772772979305,1.2092512216758777,null,null,532.15921953750012,321.0266666666667,592.64166666666677,196.02821800416666,216.65594608087773,457.72221666666672,980.36904358333322,2316.2339336225441,3296.6029772058778,null,null,795.9700462308333,615.58166666666659,950.20833333333337,518.80922558416671,333.25243244827078,1006.7833333333332,1341.8403479166666,4220.6050375966051,5562.4453855132715,null,null,-1904.371103974059,-2265.8424083073919,null,null,527.59269099999983,282.67999999999984,537.80000000000064,163.08698176999997,209.38690089268704,447.40000000000009,987.73681499999998,2167.9465736626807,3155.6833886626846,null,null,902.68033124999999,686.00999999999931,972.79999999999927,549.97651875999964,363.71884403085267,1120.6999999999998,1229.9066589999989,4595.8856940408587,5825.7923530408589,null,null,-2427.939120378167,-2670.1089643781634]
[null,null,"Diciembre ",4.0470413162490413,-0.18963968459925915,-0.27876468980596841,2.9511369134010756,0.93379779551500885,5.7648110316649825,1.8930041152263277,null,null,3.8212060467251097,1.5534374079643654,2.7060790512382025,-0.63401235746206264,-0.88419773369964416,7.4551544173659101,5.6889779962471332,null,null,89.077302930222629,91.990086936451775,73.455570040251573,80.432715677247458,97.548473758761887,94.484013436073141,98.904584138072678,null,null,3.3340916738945312,0,8.1264481505124646,5.2923773924069472E-5,4.9787173587837028,2.3615235599272748,0,null,null,4066.2656085899998,2983.4,5212.5943903699999,2116.3361415778572,1422.8,2851.9,3204.5331848385295,null,null,67.864031627670755,109.47352970855617,101.40223427143657,84.393086823148195,107.9785240937761,54.90819686292938,254.12570304778791,null,null,4.0394792880041095,3.8469349999999976,5.9052263757947934,7.5558787593984844,11.267220973842255,-0.82712862920264929,1.3710420032310275,null,null,1.7850000000000001,3.65,3.88,4.6399999999999997,6.46,2.64,3.29,null,null,15.515057881064335,8.6259979999999974,13.887478074983568,15.530535714285703,18.849367551700816,7.6161332769964201,4.1877221324717393,null,null,10.56,8.42,8.1199999999999992,10.26,12.45,8.09,6.16,null,null,9,"n.a.",4.5,4.5,"n.a.",4,"n.a.",null,null,7.3667687370214452,-4.4170215289603076,-2.6987739204442196,2.6218790564656258,-7.3137881303383834,7.9854357463250425,2.0864406026152249,null,null,535.8991048966667,322.17416666666668,601.14166666666654,196.82933375499999,218.80900444027588,456.90833333333336,988.23281725000004,2331.7616097586092,3319.9944270086094,null,null,798.3133952799999,610.44749999999988,960.94166666666649,518.64481135583321,338.9214957358916,1024.6583333333335,1337.4061076666667,4251.9272023717249,5589.3333100383907,null,null,-1920.1655926131152,-2269.3388830297822,null,null,514.46719826000026,299.46000000000004,639.69999999999936,199.45258663999994,200.28741489720724,439.30000000000018,700.5732290000002,2292.6671997972117,2993.2404287972095,null,null,873.40053633999969,612.02999999999975,1088.099999999999,575.22542067999984,383.56471649590043,1225.1999999999998,1252.0713840000003,4757.5206735158936,6009.5920575158889,null,null,-2464.8534737186892,-3016.351628718694]
[null,2010,"Enero",5.3430509509209418,0.79277471149022205,1.4325703935452252,3.5818005808325295,1.8504656993086652,6.8531958237840795,3.0553261767134727,null,null,4.0277267055670798,1.7129730451526752,3.0559556054955488,2.4660086188192758,-0.15562975226268355,8.6404736409624405,6.4838657044535424,null,null,87.149755555664257,91.646519184585429,72.935272059823092,80.033577802715314,97.310700396493345,93.373162685361763,98.175727923772698,null,null,1.4043425142300792,0,6.511100117246432,5.2923773924069472E-5,5.0320863805486331,2.0941890283381257,0,null,null,4072.4222186000002,3013.5,5526.1660629600001,2077.2321656241356,1348.8,2615.7731839341236,3025.1108189890301,null,null,67.714424980642264,106.01590572798996,107.14559616339592,83.231953567140934,105.11754664533153,51.888946277011719,268.62018595358586,null,null,2.5221872967367576,2.8347520908004715,4.1282889610389351,6.9685981308411185,7.4447034174301541,-1.9308695522655019,0.24712339743588507,null,null,1.7850000000000001,3.65,3.9,4.57,5.97,2.5,3.31,null,null,13.647743177456709,6.9620320589406548,11.916714285714257,14.952626168224295,17.519900196279309,5.9023074860734406,3.2261057692307564,null,null,10.57,7.81,8.1100000000000012,10.32,12.89,8.48,6.38,null,null,9,"n.a.",4.5,4.5,"n.a.",4,"n.a.",null,null,6.3611273081439101,-4.6878230264896796,0.68490266692415869,2.0455044415068846,-6.6741122536062019,10.827182775303257,1.5022583036576886,null,null,540.09854988916675,323.26916666666665,608.01666666666665,200.08065294583332,222.62945788069669,459.17500000000001,991.57369949999986,2353.2694940490301,3344.8431935490298,null,null,807.59375002749994,614.63166666666666,967.85833333333312,519.74026435916664,339.01526782974861,1032.241666666667,1338.2338819166666,4281.080948883081,5619.3148307997481,null,null,-1927.8114548340516,-2274.4716372507187,null,null,521.30169137999997,329.95,671.2,217.17174202999999,231.19601726382402,392.79999999999995,657.42217399999993,2363.6194506738238,3021.0416246738241,null,null,844.54284230999986,638.39,924.3,508.14029879000003,307.92916066120267,1007.4,1249.2773450000004,4230.7023017612028,5479.9796467612032,null,null,-1867.0828510873785,-2458.9380220873791]
[null,null,"Febrero",5.5994495137550935,1.0449110820857952,2.4848150193263194,3.5062439961575467,2.7426097137246073,6.6768215283067107,2.9629629629629575,null,null,4.3294442940968052,2.8334175378978332,3.3260256663352332,3.911911086132553,0.55895380960465491,9.5565083148651411,7.1588815431569115,null,null,84.862501994960127,91.440939696860355,70.636940275316803,79.400813637112464,96.372800861033681,93.365404884754156,97.847077238079166,null,null,-1.6395877820072453,0,2.5676813557500902,6.7190024562947988E-10,5.2047545986273116,1.7830024185837234,0,null,null,4113.3952816999999,2842.8,5565.4613587100002,2139.2136788249127,1365.3,2430.1143302571368,2698.6626112100003,null,null,67.53921132226634,101.31107825307883,109.21978820344793,82.212047674641838,100.2529709008644,48.967696565438928,245.38156063317626,null,null,2.2732604168852393,2.5583563686984272,3.0591702586207097,6.9983758700695988,6.8301854299558782,-1.7218562589243531,0.34676258992806269,null,null,1.7749999999999999,3.63,3.92,4.47,4.84,2.52,3.32,null,null,13.939987901478075,7.2592363527891113,10.748114224137952,15.026877030162403,16.67048143284935,5.9836601618276681,2.9496402877697894,null,null,10.83,8.3800000000000008,8.09,10.29,12.17,8.0399999999999991,6,null,null,9,"n.a.",4.5,4.5,"n.a.",4,"n.a.",null,null,4.8475397809677023,-5.6008322384257685,-0.4549456724735057,1.8421635942370118,-6.9173471035634542,12.957411814775433,1.7389908128091935,null,null,545.20188615083339,327.1658333333333,609.6583333333333,204.95634860416666,224.87732325550863,468.82500000000005,999.02322791666654,2380.6847246771754,3379.7079525938425,null,null,813.96983547083312,616.54,976.49166666666633,522.41650837999998,342.33174537281883,1050.916666666667,1352.3180196666667,4322.6664225569848,5674.984442223652,null,null,-1941.9816978798099,-2295.2764896298099,null,null,575.31746149000014,367.56,622.20000000000005,256.12448094000001,240.62047166311703,538.29999999999995,779.94431400000008,2600.1224140931172,3380.0667280931175,null,null,806.08448278000014,606.74999999999989,989.89999999999986,529.68767453999999,339.1517039252733,1024.9000000000001,1256.9013170000003,4296.4738612452729,5553.3751782452728,null,null,-1696.3514471521562,-2173.3084501521562]
[null,null,"Marzo",5.8416234406492622,0.88999999999998625,3.9302518682535168,3.9865513928914562,4.4243070848204091,7.4268876144609477,2.6982829108749091,null,null,4.4824576774814036,3.4997571232743718,3.3792559063849978,3.6091417635374325,1.2267481905057058,9.9604346871507268,7.5626442407598331,null,null,82.216045252714466,91.181114461680949,68.776949175571986,79.06027069560416,95.73268908303136,92.869668739942981,97.489852948058086,null,null,-5.0052180236404942,0,-0.66045864780634,1.9092906117310185E-5,5.4576500843545697,1.7674650726584078,0,null,null,4155.1881406399998,2605.4,5547.3303416799999,2194.4289586800073,1339.6,2295.5093843614832,2863.5467707600001,null,null,64.968712507060246,93.956580332443437,103.8636744728084,78.436689878235924,99.264380680039309,46.904040003770156,260.47024859669506,null,null,2.0392511841629566,2.5473287739121955,1.6258482023968164,6.4176073903002244,3.8172694779370362,-2.3987361746055722,0.52748407643311013,null,null,1.605,3.46,3.81,4.37,4.1500000000000004,2.2599999999999998,3.24,null,null,13.632043888141471,6.630984240261685,9.1886125166444881,14.332092378752881,14.855428577099016,4.4989783217813875,3.2733917197452111,null,null,10.24,7.58,8,10.220000000000001,10.7,8.1199999999999992,6.06,null,null,9,"n.a.",4.5,4.5,"n.a.",4,"n.a.",null,null,1.8847691291064006,-4.9806637359641197,-1.785619035943975,2.0130763277740327,-7.8151813763154498,15.459624810257754,2.5564165107037518,null,null,556.28495869000005,330.89916666666664,627.34166666666658,208.55448270499997,233.92925656717225,480.2,1013.698034,2437.2095312955057,3450.9075652955057,null,null,832.55225064916658,624.51666666666654,996.35833333333323,531.81034234166657,349.02065644049503,1072.2833333333335,1367.7006346666667,4406.5415827646611,5774.2422174313278,null,null,-1969.3320514691559,-2323.3346521358226,null,null,723.03577543000029,392.36999999999989,862.49999999999989,278.07999217999998,348.78656202900902,620.9,1196.2412440000003,3225.6723296390091,4421.913573639009,null,null,972.4898323500006,707.13000000000011,1142.8000000000002,638.30819513999995,400.43840425622386,1270,1560.0126400000001,5131.1664317462237,6691.1790717462227,null,null,-1905.4941021072154,-2269.2654981072155]
[null,null,"Abril",5.5560336650257307,0.62949640287767905,3.7504148689014429,4.16467209191,4.8483392870715258,7.6567740302474556,2.6058631921824214,null,null,4.4213961546815677,2.2602903946907751,3.2264307013816431,4.4353401638383474,1.8612524992264277,9.832302537890552,7.4408824330996808,null,null,78.890247920047742,91.365096229974739,68.705958822725236,78.678704529251291,95.737740999608647,92.877676201600153,97.20271677353378,null,null,-9.5219163222317746,0,-1.0732818611348862,1.9092906136112487E-5,5.8877191630336512,1.6636148452503139,0,null,null,4193.8890468099999,2734.9,5601.6,2144.4307483213433,1401.4,2294.334554135256,2722.5123906899998,null,null,64.39192553967797,94.214858381450114,106.05832560456916,78.60838862677663,100.79181641529063,46.190016049097245,256.23249447958756,null,null,2.0784850081963664,2.6239857015192327,1.7634484964811106,6.0532306985294166,5.1218623263328755,-2.4306636101804813,0.66676190476189412,null,null,1.4899999999999998,3.27,3.69,4.4000000000000004,3.69,2.29,3.29,null,null,13.996325763677667,6.6983378016085986,9.3200447856685695,14.213386948529417,15.03920969922739,3.3934009287015487,2.7816507936507828,null,null,9.7799999999999994,7.37,7.9,10.17,10.55,7.51,5.46,null,null,9,"n.a.",4.5,4.5,"n.a.",4,"n.a.",null,null,-0.70208311149574376,-4.2525353940711224,-1.5121892429780792,2.7620698446869429,-6.6670096316224221,16.027784085319663,3.1975802509886186,null,null,560.71894727333336,334.53666666666663,633.50833333333333,212.49888553999997,238.62498522400813,490.1583333333333,1018.2844233333334,2470.0461513706746,3488.3305747040085,null,null,852.45140457416665,637.65333333333331,1020.2749999999997,540.61201921916665,356.41580086954588,1105.4083333333331,1395.08469625,4512.8158913295456,5907.9005875795456,null,null,-2042.7697399588708,-2419.5700128755379,null,null,619.62685529999999,352.62000000000012,706.29999999999984,237.55740835999995,260.92116417793102,583.30000000000007,944.86087599999996,2760.32542783793,3705.1863038379288,null,null,947.65894223999999,714.40999999999985,1168.1000000000004,615.18905816999995,395.68043862526565,1382.8,1441.3890799999997,5223.8384390352658,6665.2275190352666,null,null,-2463.5130111973349,-2960.0412151973351]
[null,null,"Mayo ",6.2329852044837493,0.13949780789159083,3.5078996795934132,4.3561512685495423,4.6758180851871396,7.9008912205297195,3.1862745098039174,null,null,4.4263939563611219,1.3149808651316017,2.8982904437023977,4.9845432292732816,2.6488082319389727,9.3240075937488971,6.7920855643712139,null,null,80.148884019928076,91.508420118447404,68.698239710558582,78.493504993309458,96.095518054321644,93.216594008732073,96.92142821423397,null,null,-8.3093786890954302,0,-1.2452251202102969,0,5.4422540973620146,2.0860513570878085,0,null,null,4042.17194599,2628.3,5675.55,2146.6131234051436,1383.8,2655.5062605782509,2751.2950950999998,null,null,65.533011765943556,94.034836144754223,106.015568928267,78.056593525436483,99.45435832261596,52.949797564043102,253.77729633410294,null,null,2.1340027216147246,3.0262805970149245,1.9535710092330703,5.6574036697247738,4.9327324137393616,-2.6421387147794899,-0.10299287410925952,null,null,1.4899999999999998,3.17,3.58,4.33,3.78,2.2400000000000002,3.08,null,null,13.100464764995474,7.510025870646766,9.5182110263115778,13.821752293577987,13.807239206146415,3.7248151836447354,2.1744418052256571,null,null,9.57,7.66,7.89,9.83,9.99,7.58,5.43,null,null,9,"n.a.",4.5,4.5,"n.a.",4,"n.a.",null,null,2.210087298394714,-3.7511532452851104,-1.9025357703262857,2.8279015195042723,-6.4562158384815156,15.978112131633093,4.4699929453112075,null,null,568.54725981833337,337.34583333333325,645.49166666666656,215.89572839416664,244.07324890280915,499.42500000000001,1028.7927299166668,2510.778737115309,3539.5714670319758,null,null,872.63156441750004,644.10500000000002,1040.5416666666667,551.62420898333312,365.13195608083782,1129.5250000000001,1410.2732475833334,4603.5593961483382,6013.8326437316691,null,null,-2092.7806590330288,-2474.2611766996952,null,null,669.22476439999991,370.42999999999984,747.89999999999986,272.49314445999994,272.28664308312,582.5,992.26369599999998,2914.8345519431205,3907.0982479431223,null,null,967.40657729999975,681.54000000000042,1130.8999999999996,618.70470807999982,427.15537155468661,1239.0999999999999,1541.4142740000002,5064.8066569346884,6606.2209309346872,null,null,-2149.9721049915661,-2699.1226829915649]
[null,null,"Junio",6.311904234143169,0.55776892430277691,4.0674219397623821,4.2380952380952408,4.6325738140417316,5.4383468415517209,2.7642276422764342,null,null,4.5170937736112933,0.30480181781956966,2.5015112667613191,5.1484010589837208,3.6109818364876825,8.7433872531746974,6.1846685351350112,null,null,81.071230578584789,91.053335300427392,68.414239721107165,78.138044038237382,96.412117065938602,93.409107512590523,96.804191756752203,null,null,-7.3406377172459569,0,-1.4884806788092335,-5.640690462819195E-14,5.2552953769316444,2.2372728487439848,0,null,null,4064.9799089600001,2681.5,5847.6420291099994,2207.9432334304947,1411.5,2511.3163564168599,2529.4983001400001,null,null,65.890207088387427,96.465127757386341,113.96696512368504,74.274145151234123,99.383636437644782,50.36689169943768,232.88693090531427,null,null,1.8230279852652584,2.4883518225039745,1.3765864797408367,5.5947921425308333,5.1621706091279851,-0.5105797441615102,0.33647151898733041,null,null,1.2749999999999999,3.06,3.48,4.18,3.8,2.2999999999999998,3.11,null,null,13.11997547813395,6.794334389857382,8.9293824013594421,14.056190041114661,17.68626687929866,5.9576552047881428,2.0296677215189756,null,null,9.75,7.39,7.84,10.16,10.75,8.1199999999999992,4.8499999999999996,null,null,9,"n.a.",4.5,4.5,"n.a.",4,"n.a.",null,null,3.6693041549463734,-2.5213424631794989,-3.144465354728565E-2,2.3437492890659106,-4.7213197540997172,15.583381978274446,8.3730793533143277,null,null,572.94346361999999,342.17833333333328,656.01666666666665,219.98337833333335,253.52739810678395,508.30833333333339,1017.5262684166669,2552.9575733934503,3570.4838418101172,null,null,882.01887285666669,655.83416666666665,1055.1166666666666,556.93771797833324,369.99980186161741,1154.0083333333332,1432.2438571666669,4673.9155593632831,6106.1594165299493,null,null,-2120.9579859698329,-2535.6755747198331,null,null,615.45628135000015,387.99000000000024,748.2000000000005,265.93702912999993,331.53771024523598,610.59999999999991,967.39383899999996,2959.7210207252356,3927.1148597252359,null,null,931.56025793999993,771.75999999999931,1170.7000000000003,600.90852878999976,435.23498705325289,1316.2999999999995,1859.5522649999994,5226.4637737832491,7086.0160387832511,null,null,-2266.7427530580153,-3158.9011790580153]
[null,null,"Julio",5.6820735037581009,0.99009900990098487,4.1203040652197975,4.1607565011820382,6.1978150297846364,5.6727946856172213,3.3980582524271816,null,null,4.5538764803033569,1.0843718983477806,2.2130517634690481,5.4562381830555307,4.5750795804393141,8.3182192941964281,5.9600658932023629,null,null,79.25134870003788,91.205469425421825,68.245317433556593,77.786610683594944,96.135209277179996,93.43954642834052,95.922708275034978,null,null,-10.134151821142829,0,-2.1097229287426105,5.6406904628191988E-14,5.166503424941248,2.2687667280898451,0,null,null,4097.8259955900003,2609.1999999999998,5732.0343297200006,2129.0175306460383,1446.6,2470,2375.3658111100003,null,null,64.334413433338696,92.024723797095575,111.75178746240313,74.415013576593381,97.610695276453441,48.053191739798216,217.24243320568584,null,null,2.1933014932371404,2.0100000000000051,1.2674722251613482,5.3467771221062144,2.9405174480906093,-0.49472968626652297,-0.39464788732394074,null,null,1.4550000000000001,3.02,3.38,4.13,3.22,2.31,2.99,null,null,13.548112770263488,6.198529411764711,8.8068278489048648,14.131275533363588,11.645155720035909,5.4292169819595504,2.0618779342723035,null,null,9.5500000000000007,7.25,7.7399999999999993,10.220000000000001,10.84,6.84,5.53,null,null,9,"n.a.",4.5,4.5,"n.a.",4,"n.a.",null,null,1.8357025025104168,-1.5340336661330389,-0.5508553785808723,1.1347741443787696,-3.9996526908895658,15.699043023716651,8.4325793101126081,null,null,581.15921090500012,346.33666666666676,662.11666666666667,219.78872625416662,259.57359466281417,517.86666666666667,993.32786308333345,2586.8415318219813,3580.1693949053138,null,null,903.45261332749999,659.5374999999998,1067.3,559.44792197416655,379.45161105518793,1176.1166666666666,1448.7628929166667,4745.3063130235214,6194.0692059401872,null,null,-2158.4647812015401,-2613.8998110348734,null,null,613.22165129999985,422.98,685.50000000000023,208.79585126999996,296.86769406634903,586.50000000000023,833.52720699999998,2813.8651966363504,3647.3924036363496,null,null,1077.56116277,708.61000000000058,1240.3999999999999,557.66770557000018,453.00883754293102,1374.5000000000005,1518.909208,5411.7477058829318,6930.6569138829291,null,null,-2597.8825092465813,-3283.2645102465831]
[null,null,"Agosto",5.2062429651685243,1.0199999999999991,4.0955631399317234,4.534718941898924,5.34067077813308,5.0090377133053732,3.6290322580645138,null,null,4.4983540484950977,2.5771618513963235,2.118714625803487,5.6423518974936755,5.3658733250975237,8.1429486742845612,6.1958832842070777,null,null,77.396828160844265,91.492782020148169,68.371238684063911,77.548271853533947,97.247862715807074,93.617226182805013,95.539586448502234,null,null,-12.944262280549134,0,-3.0229108944355678,-1.5582399130525351E-6,5.0502461033333352,2.4043145538472621,0,null,null,4048.3305481699999,2567.6,5681.8764391300001,2113.5463745553056,1398.3,2407,2505.8207950399997,null,null,62.832929381481748,96.141676795317366,113.09414412342311,74.802038080503522,100.04895865534836,46.111874928953505,222.75453230764649,null,null,2.8931334767264687,1.851118590378144,1.272327868852476,4.7307546317216351,2.905504733630317,3.9008344030788546E-2,-0.59735408560311076,null,null,1.21,2.89,3.31,4,3.2,2.33,3.01,null,null,13.690971779688249,6.0582062957830143,8.8134754098360837,13.493393583370981,12.738320671934371,5.4575895670439758,1.6221011673151768,null,null,9.39,7.14,7.6300000000000008,10.19,10.93,7.12,5.31,null,null,7.5,"n.a.",4.5,4.5,"n.a.",4,"n.a.",null,null,1.7237543757345763,-1.4200035095007446,-0.24439180601587562,1.8115615022683329,-3.2249351086832245,17.855962361618573,10.245898363318439,null,null,584.37527417916669,352.96499999999997,667.94166666666661,222.21519018249998,263.97402690883916,527.91666666666674,992.05397658333322,2619.3878246038398,3611.4418011871735,null,null,912.72954846166658,669.19083333333322,1088.4083333333333,564.76781490416658,388.45079659292259,1197.3333333333333,1490.2968657499998,4820.8806599587542,6311.1775257087547,null,null,-2201.4928353549162,-2699.7357245215831,null,null,574.35495759999958,381.07000000000016,625.89999999999918,214.07577678999996,293.77850088489197,594.79999999999995,986.37169399999993,2683.9792352748918,3670.3509292748895,null,null,947.44181433999972,676.29,1189.700000000001,579.00368704999983,451.27328115107343,1306.0000000000011,1803.7030569999993,5149.7087825410708,6953.4118395410769,null,null,-2465.7295472661863,-3283.0609102661838]
[null,null,"Setiembre",5.0007323677593041,1.3800000000000103,3.7586169165116403,5.0495516753185408,5.4260702632976869,5.7012577654007481,4.2173560421735603,null,null,4.4119873510420931,3.278532838182973,2.2921176019407654,5.686449139135882,5.792997931579805,8.1210753041324075,7.0775792973284792,null,null,77.312739964825667,91.368662116059539,68.853023126015813,77.219913850300699,97.394051863778657,93.282773319112849,95.693906710383146,null,null,-13.243365033521973,0,-2.852513625382052,-5.2923745914825832E-5,5.0596792793452536,2.5760000443755264,0,null,null,4571.2699859100003,2529.6999999999998,5659.2212569399999,2069.7490058293315,1417.8,2274.3000000000002,2309.5924205599999,null,null,70.60057223441639,93.770943425321306,111.84151851842985,72.5615084756638,100.65945022285901,46.982905147778261,206.52619924660692,null,null,2.380238285850377,1.3118958374432725,1.6012001054574341,3.9128661275831149,3.2299899765509292,-0.45529994209612773,-1.254451361867704,null,null,1.0549999999999999,2.71,3.23,3.91,3.49,2.29,2.91,null,null,13.589683910263947,5.513908068652583,9.1668368046401394,12.93717879604673,13.035792673425755,5.0318627678054346,0.71259143968871597,null,null,9.3699999999999992,6.97,7.51,10.130000000000001,10.49,7.03,4.96,null,null,7.5,"n.a.",4.5,4.5,"n.a.",4,"n.a.",null,null,1.008876677512327,-1.3380359155180321,-0.95469893754525081,1.7362466055631298,-2.030285639580276,17.498784569528336,12.381713473520906,null,null,590.30673511750001,358.06083333333328,672.77499999999998,224.2646064208333,266.94228176471478,536.65833333333342,968.61446008333326,2649.0077899697148,3617.6222500530489,null,null,924.53868157749991,679.36500000000001,1106.2083333333333,572.90629091249991,396.14157210178365,1222.3166666666668,1515.5205973333334,4901.4765445917828,6416.9971419251169,null,null,-2252.4687546220684,-2799.3748918720689,null,null,575.16749099000026,366.06999999999971,607.90000000000032,196.52001306999978,293.57237448310502,564.29999999999995,1193.5782609999999,2603.5298785431041,3797.1081395431029,null,null,920.20710278000013,715.65000000000055,1132.200000000001,579.21979822000048,417.74067867749989,1285.7,1821.2696860000001,5050.7175796775118,6871.9872656775115,null,null,-2447.1877011343931,-3074.879126134394]
[null,null,"Octubre",5.2529068483650256,2.7800000000000025,4.5058378556158383,5.7909604519773925,7.2600680220693814,6.1706155349291931,4.1262135922330092,null,null,4.3195321056138907,3.6411605187213696,2.6604533629194851,6.0294567885395516,5.9054363023912089,8.0112606416640784,8.2793463035421961,null,null,77.215800456986045,91.083235571208874,68.545582241001014,76.764587499532411,96.131011270532014,93.492951667536758,95.877871925093132,null,null,-12.542739088929109,0,-3.4919225761222563,-5.2923745877221248E-5,5.1421873007909307,3.0300679597394597,0,null,null,4617.2830663300001,2781.7,5650.5295661,2113.1830398339143,1407.8,2418.1999999999998,2317.7089598300004,null,null,72.460140169250934,99.754924989259578,110.55481808540134,73.696931023307926,102.55164301180709,51.822104767210561,197.36368823027291,null,null,1.8974232745059778,-0.30161510021405163,0.86517859952794474,2.986114819759687,0.42709544757761403,-0.65989589624136358,-1.2256410256410251,null,null,1,2.4700000000000002,3.18,3.75,2.96,2.48,2.85,null,null,12.728478056131786,4.0182914964000753,8.3288764752163811,12.107877169559423,10.994241264316399,5.7825646334799714,0.45501165501165514,null,null,9.49,6.91,7.41,10.039999999999999,10.24,6.92,4.5999999999999996,null,null,6.5,"n.a.",4.5,4.5,"n.a.",4.75,"n.a.",null,null,2.0922076279112911,-0.85164261970959165,0.35824314205923358,1.9225341599114154,-0.44640047530903892,19.511237668723513,12.884656380812597,null,null,595.64940579833331,361.86999999999995,675.59166666666658,223.83090798333333,271.07256397755299,546.9666666666667,976.71297933333335,2674.9812110925523,3651.6941904258861,null,null,936.28841185333329,685.38166666666666,1112.4083333333333,579.65933369083325,403.75850426258427,1238.7166666666669,1532.2275756666666,4956.212916473417,6488.4404921400846,null,null,-2281.2317053808642,-2836.7463017141977,null,null,619.02605107999989,389.25999999999976,651.99999999999955,176.67588916000022,273.62931404415895,602.90000000000009,1480.6424029999998,2713.4912542841557,4194.133657284161,null,null,1044.4270598400001,706.01000000000022,1198.9999999999998,603.88041049999993,470.20562717684896,1312.0000000000002,1852.3239929999991,5335.5230975168379,7187.847090516836,null,null,-2622.0318432326894,-2993.7134332326896]
[null,null,"Noviembre",6.1128648439259585,1.8200000000001011,5.2539308606804402,6.4349459840300547,8.7899199818826812,5.3742976255211445,4.284559417946646,null,null,4.1518664245008727,2.5095021343312167,3.1259991468053618,7.290167796385127,5.7929630783314909,7.5085926630098836,9.4475680770364772,null,null,77.263102352018194,90.903184398134343,67.742146421199905,76.31380870446344,94.995966405038928,93.507728894547355,95.897274497357969,null,null,-9.7774295246839316,0,-3.6275387640000405,-5.292374585841896E-5,4.9021407950735529,3.1102897783786885,0,null,null,4603.3299308200003,2908.8,5594.9317196000002,2270.1680266072053,1420.2,2656.1,2425.1758079899996,null,null,69.305309974725546,107.12770470937633,108.18881507629557,75.951719553374488,101.3525460505694,53.542451708130592,204.47800854691752,null,null,0.83602978524693194,0.36338636810046993,0.13877784717884295,2.1844836716681435,8.0900831013412278E-2,0.74562999913990624,-1.5290465116279077,null,null,1,2.19,3.11,3.69,3.4,2.99,2.69,null,null,12.125895549987662,4.792771557650652,7.5589282739954156,11.83357016769639,7.7178671532181182,7.3411662509675457,1.0120775193798439,null,null,9.4499999999999993,6.7,7.2900000000000009,9.98,9.9499999999999993,7.03,5.34,null,null,6.5,"n.a.",4.5,4.5,"n.a.",5,"n.a.",null,null,4.3916362669841558,9.4309375401269158E-2,1.5030495807406563,2.3754598430249851,1.1142770907059285,19.991569162932365,14.017632302613414,null,null,602.69855729083326,368.31666666666666,684.33333333333337,227.43964567916666,278.03235934968149,559.04166666666663,998.8660157500002,2719.8622289863483,3718.7282447363486,null,null,941.10109541500003,689.24750000000006,1137.2,588.36439773500001,411.66105501510515,1259.2583333333334,1579.4352070833331,5026.8323814984387,6606.2675885817707,null,null,-2306.9701525120904,-2887.5393438454244,null,null,612.18250890999934,360.04000000000042,642.70000000000027,206.39183412000011,292.90444535822883,592.29999999999973,1253.5732519999999,2706.5187883882318,3960.0920403882337,null,null,960.43253398999991,732.39999999999964,1270.3000000000002,654.43728729000031,458.54945306110295,1367.2000000000003,1796.3982360000009,5443.3192743411128,7239.7175103411137,null,null,-2736.800485952881,-3279.6254699528799]
[null,null,"Diciembre ",5.8243157684466969,2.1299999999999955,5.3935540451655601,6.4849624060150299,9.2303838460606329,6.2383050642844422,4.9273021001615538,null,null,4.0088012082742317,2.3142314669636059,3.5741464371526859,7.217102455331144,5.6580654224751266,6.6812918335524341,10.377363187585253,null,null,76.049544904873187,91.366605294777528,67.689493744144954,76.620328943442175,95.029130644405129,93.264825693829252,95.615369250315524,null,null,-10.933325383047105,0,-4.2593998742885582,-5.292374585841896E-5,4.9010766278558293,3.3810388063009968,0,null,null,4627.2341165400003,2880.7,5953.8343435200004,2719.3488686918827,1631.6,3342.7,2546.6231461599996,null,null,68.896302701952195,106.78015231749293,106.21055299615728,80.728690351560502,104.0477837213144,59.637861692518257,215.98626907143822,null,null,2.0559398052843543,-3.9165769117786742E-2,-5.0813397129211652E-2,2.1177052074139526,-0.56377088855290269,-0.12077100082386001,-2.1036489607390325,null,null,1,2.09,3.08,3.72,3.29,2.06,2.72,null,null,12.422177394765551,4.2788602761186771,7.4543894320781936,11.715304501323928,5.7938477778347552,6.9482423794778336,0.70782140107774927,null,null,9.5399999999999991,6.5,7.12,9.8000000000000007,9.77,7.36,5.67,null,null,6.5,"n.a.",4.5,4.5,"n.a.",5,"n.a.",null,null,4.8732915685316902,-0.33722280891428369,2.3312663598876737,2.837727702385151,5.6515140688908838,20.403388847884152,14.799033755551871,null,null,609.61882005249993,374.93666666666667,705.46666666666658,234.90092942249998,286.27940936643068,567.89166666666677,1017.9884786666667,2779.0941588414303,3797.0826375080974,null,null,962.07345269333348,701.34749999999997,1153.0250000000003,593.9732953058334,416.12673300130297,1267.491666666667,1613.8191036666667,5094.0376476671363,6707.856751333803,null,null,-2314.943488825706,-2910.7741138257061,null,null,597.51035140000022,378.89999999999964,893.29999999999973,288.98799155999995,299.25201509819703,545.49999999999955,930.04278399999987,3003.450358058195,3933.4931420581925,null,null,1125.0688236800013,757.22999999999956,1277.9999999999995,642.53219153000009,437.1528523302751,1324,1664.6781430000001,5563.9838675402716,7228.662010540269,null,null,-2560.5335094820766,-3295.1688684820765]
[null,2011,"Enero",4.8352713305312252,2.3197929111907589,4.8383809523809784,6.355140186915885,8.0194207368431236,6.1657923590217392,4.8076923076923102,null,null,3.9417684157722612,3.3398604227928437,3.84231756836382,7.1190991917540316,5.7283523307452651,5.7106882606567062,11.054526646500692,null,null,75.89635136353553,91.092080428966625,67.187450869365989,76.53107547169806,96.179246707551656,92.756746259281101,95.265416400772125,null,null,-10.228630679775661,0,-4.982330580214982,-5.2923745877221248E-5,4.9780057250899921,3.7011908058709526,0,null,null,4633.1754411700003,2768.1,5910.0665015100003,2802.6250040996561,1510.4,2705.3,2922.56265231,null,null,67.202666594712284,103.97596018405484,102.67929698738673,80.71669010293742,102.67921119674396,53.838460701807634,247.13696553377241,null,null,2.7802939148972441,-0.3907288119100889,0.48800739096820422,2.2235500878734658,0.10963117536113445,-9.964825455640236E-2,-2.0491743119266075,null,null,1.0349999999999999,1.92,3.03,3.69,3.82,2.1,2.66,null,null,13.301562053006911,4.1147533326846375,8.0520311082000777,11.861072056239019,8.0398766893009874,6.5974241658669799,0.12623853211008976,null,null,9.59,6.53,7.04,9.74,9.2899999999999991,6.61,4.9400000000000004,null,null,6.5,"n.a.",4.5,4.5,"n.a.",5,"n.a.",null,null,4.7256729771370409,-0.26516546969647115,2.2014088185220215,4.5957891430344233,6.4565561600332888,19.788831083214141,15.243579209077751,null,null,613.15372215333332,381.49499999999989,713.30000000000007,245.53436185249998,293.06670103147309,576.44999999999993,1035.3383879166665,2822.9997850373061,3858.3381729539728,null,null,973.46188723916691,705.57,1175.325,605.0369592466667,428.66285524174373,1279.8916666666669,1659.4215199166665,5167.9483683942435,6827.36988831091,null,null,-2344.9485833569379,-2969.0317153569376,null,null,563.7205165900001,408.65,765.2,344.77293119000001,312.643517244333,495.5,865.62108499999999,2890.4869650243331,3756.1080500243329,null,null,981.20405686000004,689.06,1191.9000000000001,640.90426608000007,458.36262754649078,1156.2,1796.5063399999995,5117.6309504864912,6914.1372904864911,null,null,-2227.1439854621576,-3158.0292404621568]
[null,null,"Febrero",4.5743345812437415,2.3764542109973159,5.184204741379359,6.3573085846867698,7.2231863180537674,7.2920532187053775,4.9560351718625135,null,null,3.7633395882571667,2.8170413040114068,3.9211766349292367,6.4073610144627269,6.1053937302889052,4.8222767547960004,11.609498773196766,null,null,75.104380796630636,91.216254043819248,65.666293886535541,76.241116999108897,96.264194405419502,92.394049157979723,95.207700854309721,null,null,-9.3760659502612889,0,-4.2089590281074303,-6.7190024562496533E-10,4.8738887719424291,3.9666224580017708,0,null,null,4427.5760043199998,3376.2,6042.4738115600003,2912.4082053079055,1492.7,2635,2508.7846144300001,null,null,64.20024938705555,128.11775206129857,105.35357857464851,80.072655322949359,99.43368460976005,52.814734426019925,216.14955556797489,null,null,2.7976897299626713,-0.45562645687645748,0.13860946040245653,2.2120636998254857,1.3398686309268018,-0.84074560197540626,-2.263838537699927,null,null,1.03,1.91,2.93,3.68,3.45,2.11,2.58,null,null,13.555587492400624,3.930147630147629,7.7823426803933016,11.868193717277492,8.5875129370282135,5.9444726705842239,0.11811119573495481,null,null,9.61,6.4,6.9099999999999993,9.7100000000000009,10.31,7.62,5.08,null,null,6.5,"n.a.",4.5,4.5,"n.a.",5,"n.a.",null,null,5.9049630909127737,0.98042012787240562,4.3274836895145441,4.8650806652446699,5.4502219293966148,18.271011012419436,15.544414564792653,null,null,619.48665560333336,388.69666666666654,736.54166666666652,257.86446320833329,300.97600771303536,582.08333333333337,1079.6081506666667,2885.6487931913689,3965.2569438580354,null,null,990.72321631166687,718.24416666666673,1191.2833333333335,613.14115989916661,439.73872025339568,1293.6333333333334,1709.5166319999998,5246.7639297975629,6956.2805617975619,null,null,-2361.115136606194,-2991.023617939527,null,null,651.31266288999984,453.98,901.10000000000014,404.08569721000003,335.53215184186467,605.90000000000009,1311.1814670000001,3351.910511941865,4663.091978941864,null,null,1013.2204316499998,758.84000000000015,1181.4000000000001,626.93808236999985,472.06208406509728,1189.8000000000002,1858.0426620000007,5242.2605980850967,7100.3032600850966,null,null,-1890.3500861432321,-2437.2112811432335]
[null,null,"Marzo",4.5830833926969508,2.7158291208246554,4.8809310252996321,6.605080831408781,6.7409312796723908,7.6067731897950086,5.4936305732484128,null,null,3.7105744177355446,3.3040971277971591,3.9740657366101702,7.1590119916471036,6.7350672449519218,4.1538818650609466,12.279194295227111,null,null,74.988576500604253,91.095373383199899,64.540685467982925,76.104285087400825,96.42655631649798,92.141495344823127,94.833543125992563,null,null,-7.045339615614048,0,-3.9842026796603918,-1.9092902528327135E-5,4.7703961665038932,4.0380413970185058,0,null,null,4641.6707590899996,3247.3,6191.0129805900006,2991.0261667820446,1542.2,2594.9,2176.8393456399999,null,null,65.12516901121181,127.33196536984619,100.74020615299241,81.132322342518449,108.02221662533213,52.111726470288403,185.64508310610927,null,null,2.7890902741415422,-0.89161439737527237,0.3995664136498549,1.8994584055459232,1.3439106676747423,-0.74044891987391337,-2.6291924528301931,null,null,0.98499999999999999,1.8,2.9,3.71,3.29,2.69,2.72,null,null,13.421785007615533,3.4212554279648804,8.0940061188554981,11.561286828422871,9.0980694499956041,6.4245275694788821,-0.19934591194969048,null,null,9.66,6.23,6.8500000000000005,9.64,9.36,7.72,5.2833333333333332,null,null,6.5,"n.a.",4.75,4.5,"n.a.",6,"n.a.",null,null,10.486937129435315,0.78434086831640215,5.1611650946535192,4.9804720798303448,6.0429494176976739,18.222418199924185,16.820923346148664,null,null,625.89381602333333,400.33166666666665,752.31666666666661,268.5351828808333,308.40541333808937,595.81666666666672,1077.5260688333333,2951.2994122422556,4028.8254810755893,null,null,1014.1957799883334,738.24916666666661,1219.5000000000002,624.34861781749987,452.09363527657825,1315.325,1734.1434914999998,5363.7121997490785,7097.8556912490785,null,null,-2412.4127875068225,-3069.0302101734892,null,null,799.92170047000013,531.9899999999999,1051.7999999999997,406.12862825000002,437.93942952965699,785.69999999999993,1171.2562620000001,4013.4797582496558,5184.7360202496566,null,null,1254.16059647,947.19,1481.3999999999999,772.79769016,548.69738453441437,1530.3000000000002,1855.5349539999997,6534.545671164411,8390.0806251644135,null,null,-2521.0659129147589,-3205.3446049147587]
[null,null,"Abril",4.6819017627088382,5.9577003276735185,5.7663019833653424,7.261029411764711,7.11320404300257,8.1603641333098214,6.2698412698412778,null,null,3.9636685821606843,4.9470845390442317,4.1429166382169731,6.6552684120233145,7.4508863001020886,3.7069134735083371,13.181890947265645,null,null,75.130056738848708,88.881331088194273,63.699207315919153,75.609769630395036,96.392073775055877,91.948387947703466,94.282508619679277,null,null,-3.2837961619829779,0,-4.8731705600127846,-1.9092902490722538E-5,4.6257057323033335,3.8814879082742073,0,null,null,4810.6397858399996,3383.8,6393.1173355999999,3105.2064007493946,1575.8,2568.4,2392.6901641499999,null,null,66.000735033252809,128.30045313514847,102.56136852308271,81.541562640754194,105.71255556016305,52.017905072282922,198.6044075068861,null,null,2.2144212115536339,-3.9428001124543162,-0.46924395961522786,1.0991602399314429,-0.232005204445344,-0.77696126491776174,-3.7356235997012774,null,null,0.96,1.78,2.85,3.56,3.1,2.89,2.2999999999999998,null,null,12.416757833417117,8.7109924093336441E-2,7.2553335729196213,10.841748071979429,6.8593952480289664,5.6301917208641976,-1.1541448842419795,null,null,9.49,6.05,6.78,9.3800000000000008,9.2100000000000009,7.44,5.043333333333333,null,null,6.5,"n.a.",4.75,4.5,"n.a.",6.25,"n.a.",null,null,12.248126368470214,1.8541273725346308,4.5230361161579191,4.3287331865765832,6.6318456087626876,17.41064347457959,17.205784273167257,null,null,638.11473090583331,406.73499999999996,771.4666666666667,281.9135747366667,316.11244180383159,611.62499999999989,1088.5678403333334,3025.9674141129981,4114.5352544463321,null,null,1023.7039636366666,744.79666666666662,1238.575,630.63674714083334,459.85715154399969,1330.1916666666668,1763.0665634999998,5427.7611956548326,7190.8277591548331,null,null,-2401.793781541835,-3076.2925047085023,null,null,766.27783389000001,429.46000000000004,936.10000000000036,398.09811063000006,353.40550576683796,773,1077.362134,3656.34145028684,4733.7035842868409,null,null,1061.7571460199997,792.98,1397.0000000000005,690.64661004999971,488.84263383432329,1561.2000000000003,1788.465944,5992.426389904329,7780.8923339043249,null,null,-2336.0849396174854,-3047.1887496174859]
[null,null,"Mayo ",4.8451392400321609,6.6965174129353269,6.396917329348387,7.7064220183486283,8.2891165974087677,8.0300152305078765,6.4133016627078305,null,null,4.0577071093264232,5.1132816727051029,4.4369814403442804,6.520602901561583,7.8815304450228441,3.4080792665729054,14.164961845308643,null,null,75.36231677909916,88.731734581919341,63.977770442111201,75.398079090886156,96.081331436530533,92.174205211679364,94.230619289081091,null,null,-4.7122869461154782,0,-4.2302223726484494,0,4.6532049039534495,3.2505681477565704,0,null,null,4650.3994588400001,3319.9,6421.0835425200003,3056.8442059287977,1556.6,2599.6999999999998,2274.29516298,null,null,65.043499402122407,130.87955682531825,110.44715444818374,81.32993660420307,108.65418511495182,51.784665227875401,182.29563616560074,null,null,2.2937265164598215,-4.579828406229602,-1.0497647463704267,0.55110732538330143,-1.6566902967870984,-0.59244204413213419,-3.9217857142857064,null,null,0.96499999999999997,1.81,2.81,3.55,3.14,2.67,2.2400000000000002,null,null,12.184504548867173,-0.47472722185955707,6.5538390074466619,10.309114139693349,6.2969795033057006,5.7854150590984226,-1.2122247023809443,null,null,9.51,6.19,6.7299999999999995,9.35,9.5500000000000007,7.27,5.123333333333334,null,null,6.5,"n.a.",4.75,4.5,"n.a.",6.75,"n.a.",null,null,9.9189117859887599,2.3722622544603222,6.9443552921351515,4.8790685010663415,7.5702476260840923,16.658556288729322,10.374920475472749,null,null,646.49371293249999,416.16666666666669,783.30000000000007,293.34380198583335,324.93697222543091,624.18333333333328,1122.2147805,3088.4244871437641,4210.6392676437645,null,null,1042.2859923858334,765.42333333333329,1272.3583333333333,649.71770731666663,471.5943839901509,1349.5416666666667,1818.8746549166663,5550.9214170259838,7369.796071942651,null,null,-2462.4969298822207,-3159.156804298887,null,null,769.77254872000003,483.61000000000013,889.89999999999986,409.65587144999995,378.18100814231201,733.2,1396.0269780000001,3664.3194283123103,5060.3464063123101,null,null,1190.3909222899997,929.06,1536.3000000000002,847.67623018999984,568.00216090850165,1471.2999999999997,2211.1113709999981,6542.7293133884996,8753.840684388495,null,null,-2878.4098850761875,-3693.4942780761849]
[null,null,"Junio",5.1759635575723602,6.2698098256735477,6.4274037491371061,7.7204202832343558,9.014750131400449,9.3189135664828093,6.4873417721518916,null,null,3.8823843583715845,5.3727977878285129,4.8384291731897138,7.028043764616493,7.75312287638197,3.2259761087620085,14.728903384331421,null,null,75.309873296940268,88.682112957584224,64.596189895546004,75.078324726633028,96.098663986765104,91.57692265012092,94.090603510048268,null,null,-5.6044384616352243,0,-2.9170512827255362,0,4.9834685580174298,3.5480805622037268,0,null,null,4842.7701523799997,3056.3,6382.5368342399997,3049.1118222188197,1603.7,2606.5,2348.4792351200003,null,null,67.626049572486764,128.35076635440234,108.80979077670692,78.820286530101384,109.65738952334358,52.163040887208268,193.28485455758843,null,null,1.9719680925883141,-4.1308155466492806,-1.0969014633569611,0.3616581849024571,-0.71255866490376374,-1.0692692859336996,-3.9791976225854317,null,null,0.94499999999999995,1.88,2.74,3.52,3.33,2.57,2.25,null,null,12.002777075122644,-0.73380184546557314,6.5421085224202375,10.174096692111956,5.7300502830282962,5.2882765158486471,-1.4718573551262937,null,null,9.5299999999999994,5.49,6.64,9.3000000000000007,9.4700000000000006,7.43,4.92,null,null,5,"n.a.",4.75,4.5,"n.a.",6.75,"n.a.",null,null,9.0644657584439727,2.3851982295741259,7.9500860240427906,6.094122587076245,6.5484375648153348,15.623846410260356,14.375454097222097,null,null,653.75873244416653,422.64583333333331,793.9,303.72113218166669,328.50771683792692,639.84166666666658,1154.7923344999999,3142.3750814637601,4297.1674159637596,null,null,1056.9289948991668,773.30583333333334,1296.5416666666667,670.21215831833331,479.22675476366879,1361.5250000000001,1852.3270678333331,5637.7404079811677,7490.0674758145033,null,null,-2495.3653265174089,-3192.9000598507423,null,null,702.63651548999951,465.74000000000024,875.39999999999964,390.46499148000021,374.38664559518804,798.5,1358.3244870000001,3607.1281525651866,4965.4526395651847,null,null,1107.2762881000006,866.35000000000036,1460.8999999999999,846.84194080999987,526.82343633546657,1460.1000000000004,2260.9812200000015,6268.2916652454624,8529.2728852454675,null,null,-2661.1635126802776,-3563.8202456802792]
[null,null,"Julio",5.1938669485476003,6.526044761338869,7.0347137869008787,7.7621425329096656,8.456406866099897,9.8712537645098148,5.3990610328638553,null,null,3.6467828766276313,5.482653514782216,5.1748482530521489,7.4959939482791311,7.1883407348611854,3.0656467101763054,14.88752635155792,null,null,75.132529876097806,88.683022904884552,63.986936347484708,74.677918999742445,96.486628549046713,91.077230788059182,94.267089372092215,null,null,-3.7199375118160414,0,-3.1080200228453645,-0.12008404295293887,5.0907423974236732,3.3921981074132774,0,null,null,4806.5703396600002,2877.2,6333.8110733200001,3105.83635293826,1771.4,3239.2,2115.7969825499999,null,null,65.153271663029017,101.30329584280456,107.67193611978567,79.630913681096331,119.24490585722826,66.494955213824852,169.05792700871592,null,null,1.9546130502628019,-4.3614167518824862,-1.676758617278163,0.21144481887110667,-0.2471461881621532,-0.84758636367779883,-2.8833853006681567,null,null,0.92999999999999994,1.88,2.71,3.56,3.2063541321037601,2.62,2.36,null,null,11.841120982409496,-0.9256372594589477,5.9189079775672226,9.7231339511373243,6.6667358360936015,6.3517489756218968,-0.12244988864143105,null,null,9.51,5.54,6.5699999999999994,9.16,9.3012276764760706,7.51,5.27,null,null,5,"n.a.",5,4.5,"n.a.",6.75,"n.a.",null,null,11.188723328922091,1.9031267247356265,8.5819012190139645,7.2561536595616483,7.264639259770922,16.368136076046035,15.733142299677215,null,null,656.51666120416655,426.70833333333331,805.43333333333339,309.26457862833337,333.13709653171696,652.01666666666665,1205.3234183333334,3183.0766696975497,4388.400088030884,null,null,1069.1905433833335,790.30583333333334,1303.875,688.07998835500018,488.53152367446114,1370.1750000000002,1925.8646934999997,5710.1578887461283,7636.0225822461289,null,null,-2527.0812190485776,-3247.6224942152444,null,null,646.31679642000017,471.72999999999956,823.90000000000077,275.3172086300001,352.42025039182903,732.6,1439.9002130000001,3302.2842554418312,4742.184468441832,null,null,1224.69974458,912.61000000000058,1328.3999999999994,772.08166600999994,564.66606447243998,1478.3000000000004,2401.360716000001,6280.7574750624481,8682.1181910624509,null,null,-2978.4732196206096,-3939.9337226206117]
[null,null,"Agosto",5.2518141392544386,6.824719769864096,7.6300264410365397,7.6818798011748752,9.6949778343574202,10.175145291165828,5.2918287937743402,null,null,3.5645452283943642,4.5487339923469277,5.2488664846808408,7.8163378871845133,6.4476662516203724,2.8457983370938331,14.885860381784541,null,null,75.294382952137454,88.863638077306689,64.38676831194978,74.536057981910716,96.571265365129378,90.955216351305637,94.145096787662183,null,null,-1.3129907804244254,0,-2.3143750000000018,-0.24655420091285735,4.989431298042116,3.1683431319135575,0,null,null,4808.17325514,2760.9,6398.5615988,2709.512438380465,1584.1,3032.9759568159898,1914.01566071,null,null,65.038266127030411,101.89319317006704,109.5841152908074,77.056359900959066,107.80874250008634,62.302786062016544,152.47030115650782,null,null,1.8984811588157922,-4.6568994335592864,-2.211303406434078,0.18398657154846867,-1.2556468776968459,-0.97585103094212722,-3.0694013303769596,null,null,0.91499999999999992,1.85,2.69,3.53,3.11,2.9,2.06,null,null,11.9600654522597,-1.3992264834246404,5.4073883946798462,9.8792110784725136,5.0899483651147257,5.8042625602481781,0.30218033998519817,null,null,9.5399999999999991,5.33,6.47,9.16,9.61,7.52,5.61,null,null,5,"n.a.",5,4.5,"n.a.",6.75,"n.a.",null,null,12.781213977722183,1.9043279685367231,8.4466687554852093,8.3402707884963956,9.2512799660430911,15.268418555126217,16.596655138466907,null,null,659.72244748249989,430.03166666666658,824.25,311.76668287000001,339.17054849848466,660.52499999999998,1248.7678185,3225.466345517651,4474.2341640176519,null,null,1094.5284735875002,805.39,1330.0166666666667,703.30198733583336,494.82104632745126,1385.9083333333335,1980.2181778333331,5813.9665072507851,7794.1846850841175,null,null,-2588.5001617331332,-3319.950521066467,null,null,612.8243929399996,420.95000000000027,851.69999999999982,244.10102769000014,366.17992448610505,696.9,1507.7044960000001,3192.6553451161053,4700.3598411161074,null,null,1251.4969767900004,857.29999999999927,1503.4,761.66767481999977,526.74755298695402,1494.8000000000004,2455.9448689999995,6395.4122045969489,8851.3570735969479,null,null,-3202.7568594808545,-4150.997232480855]
[null,null,"Setiembre",5.1747094413399868,6.2209474829393789,7.2469201160032162,6.8283917340521194,9.4958588830837414,9.5674438332368226,6.0700389105058452,null,null,3.8228813049938277,3.2613678388485701,4.984176716586278,7.476801444984793,5.8453129433950188,2.595681017627363,14.662328654013701,null,null,76.377865420144374,89.297079150578341,64.77634311252524,75.155144785028369,96.853000200923745,91.157504684692185,93.657317727720184,null,null,8.6986594296586284E-2,0,-2.8063741898372121,0.15345468809814744,4.8885737246379186,3.1388655308817031,0,null,null,4762.9319688599999,2662,6303,2534.7089758304983,1534.4,2912.3201727212545,1798.1285319399999,null,null,65.49881517605229,101.5097574443031,108.9735787298425,74.856741592929424,108.33218624357261,57.733585596091885,153.46975087639581,null,null,2.4485834782328086,-3.8419422718808254,-1.8713079255165916,0.93758620689654426,-3.0390597351799333,-0.46313376992636485,-3.7145634629493847,null,null,0.93499999999999994,2.14,2.66,3.63,3.83,2.81,2.13,null,null,12.108700491122324,-0.55633798882682139,5.8398692262885943,10.700908326324637,7.3735605046797152,6.5736280000522491,-0.54684519442407253,null,null,9.5399999999999991,5.63,6.419999999999999,9.17,9.81,7.04,5.49,null,null,5,"n.a.",5.5,5,"n.a.",6.75,"n.a.",null,null,13.894679281044041,2.9328333948684948,10.624365865542229,9.7869655099460218,11.766833792486974,15.697645493323131,16.385830525640532,null,null,666.95797121499982,436.09,841.80000000000018,315.9670704483334,344.23252377836656,673.38333333333321,1287.8131789166666,3278.4308987750323,4566.2440776917001,null,null,1113.3824328108335,815.34666666666669,1353.875,716.89055940333321,501.61826337667429,1398.9583333333337,2027.1554517499999,5900.0712555908394,7927.2267073408393,null,null,-2621.6403568158089,-3360.9826296491424,null,null,661.99377577999985,438.77,818.49999999999909,246.92466401000001,354.31607784168705,718.59999999999991,1662.122586,3239.1045176316875,4901.2271036316888,null,null,1146.45461346,835.13000000000011,1418.5000000000009,742.28266302999964,499.30728326817609,1442.3000000000011,2384.5169730000007,6083.9745597581787,8468.4915327581766,null,null,-2844.8700421264948,-3567.2644291264951]
[null,null,"Octubre",4.9263243475468812,5.4431125957948439,6.6440451088382364,5.919003115264803,7.6586118715072331,8.8636453570298581,6.138306138306131,null,null,4.2187831147123527,2.5804627568974414,4.4914452994570189,6.5576366469607201,5.5019755294699957,2.3387348321605423,14.50093481048139,null,null,76.855729251018644,89.423983253953793,64.761951872200669,75.42200762467867,96.710563131505822,91.562966689965393,93.514727400051939,null,null,0.88364161259004059,0,-2.668533118862499,0.52573888938869717,4.6225734360283779,2.9888191542569484,0,null,null,4732.9333521400004,2727.9,6574,2489.0699817320224,1572.6,2668.8,1707.8027485099999,null,null,64.075867816760365,103.64082123924467,114.55608718729411,75.765494034988706,110.17350788143985,54.682753955892863,141.46422205234262,null,null,2.9293656015931715,-3.3981475959746481,-1.3165715042085127,1.8042058823529359,-0.46830638957958159,0.64884345977353342,-3.5974816983894518,null,null,0.99499999999999988,1.86,2.63,3.52,2.21,2.63,2.3199999999999998,null,null,12.32643546114603,-5.0370853522169592E-2,6.4569520821665485,11.689117647058817,6.59667518186893,7.7862123899774245,-0.65792093704245258,null,null,9.44,5.39,6.4,9.27,9.11,7.57,5.44,null,null,5,"n.a.",5.5,5,"n.a.",6.75,"n.a.",null,null,13.893718866212602,3.6555618207015916,10.802643260211987,9.2607619857917545,14.450218883538479,13.013982805232583,17.156721049757806,null,null,671.02896117666648,436.05833333333334,848.5,321.05195295000004,351.39525437307822,679.61666666666656,1304.3803661666668,3307.6511684997454,4612.0315346664111,null,null,1125.3327213758337,818.13583333333315,1370.6833333333334,728.23312786416648,508.46595634261649,1411.7500000000002,2064.8027996666665,5962.6009722492827,8027.4037719159496,null,null,-2654.9498037495391,-3415.372237249539,null,null,667.87793062000037,388.88000000000011,732.40000000000055,237.69447918000014,359.58208118070002,677.7,1679.44865,3064.1344909807012,4743.5831409806924,null,null,1187.83052262,739.47999999999956,1400.6999999999994,739.99123202999999,552.37794276815589,1465.4999999999995,2304.0921679999988,6085.8796974181532,8389.9718654181488,null,null,-3021.745206437452,-3646.3887244374491]
[null,null,"Noviembre",4.5554336715375801,5.1251956181533744,6.0582531750989288,5.4280670785525205,7.3423765116738595,8.6274946245806969,6.8217054263566004,null,null,4.5092042001969324,3.3736835873122435,3.9364438082950128,5.4007186380767926,5.4665728905484601,2.2109329548577565,14.524711368629696,null,null,75.66668223806748,89.455858451019068,64.500791260581622,75.235111870028064,95.843324981548989,91.985530357134238,92.871672031729076,null,null,-1.0210939363062814,0,-2.3887014048166941,0.47017961847726591,4.6866747423808697,3.2940398810179654,0,null,null,4722.8858149099997,2681.7,6037.6159582700002,2471.2306353119156,1668,3039,2212.23838329,null,null,62.496292622784253,103.52567121633494,111.24747098830916,75.076594046062482,110.12105579351905,58.210991233043096,176.93706333432303,null,null,3.2944881078907624,-3.0299069594343226,-0.76208418572058456,2.2592967768940926,0.42556883894799524,0.73876818957555923,-4.3920899854862219,null,null,1,1.94,2.65,3.55,2.8258079129184899,2.62,2.13,null,null,12.65794216878197,0.21384443617416227,7.0638037122225903,12.133327752197566,6.3868409789572977,7.5786571382052434,-1.4151669085631455,null,null,10.27,5.35,6.36,9.18,9.4621816751736798,6.72,5.31,null,null,5,"n.a.",5.5,5.5,"n.a.",6.75,"n.a.",null,null,13.839861215734949,3.6768016409141291,11.960756174166033,10.427360474510095,17.048666835840699,12.902369114453194,17.212504679816565,null,null,675.64980361583332,438.45333333333332,860.77499999999998,325.97087066833336,355.44205368260447,686.98333333333323,1323.5688861666667,3343.2743946334376,4666.8432808001035,null,null,1150.6226882600001,822.05916666666656,1382.5083333333332,740.19850260833334,515.93238221270406,1424.5916666666669,2094.8864274166667,6035.9127397477032,8130.7991671643695,null,null,-2692.638345114266,-3463.9558863642665,null,null,667.63261818000046,388.77999999999975,790,265.41884673999994,341.46603707254303,680.7,1483.8354919999999,3133.9975019925405,4617.8329939925388,null,null,1263.9121365999999,779.47999999999956,1412.2000000000003,798.02178421999997,548.14656350215375,1521.2999999999993,2157.4017689999996,6323.0604843221518,8480.4622533221554,null,null,-3189.062982329604,-3862.6292593296093]
[null,null,"Diciembre ",4.735748650300641,5.0523842161950565,6.2000000000000073,5.6045895851721168,7.9504211029485123,7.7599999999999936,6.3125481139337882,null,null,4.7348394956622073,3.4878865127307237,3.4896333429051345,4.3974280263907106,5.7345937071783171,2.2195568837665776,14.536737543885241,null,null,74.637823870599391,89.635578020876494,64.250282775125996,75.230438569278476,95.02597989268628,92.157642126212352,92.691951714819439,null,null,-0.26250807865708492,0,-2.1908586153016985,0.60823425045015989,4.7396440310127197,3.3170998426682621,0,null,null,4755.8138503999999,2502,6187.94,2820.6863589035297,1710.5,3637.9,2216.8830439200001,null,null,61.384967788271346,99.094799503337811,101.20645566057867,77.83158027029944,107.69346015674539,62.353859680592464,181.20210990236697,null,null,3.1166544296143619,-2.6580874266008121,-0.96045197740113697,2.1925282072712005,-1.1546142526802705,1.6982182628062421,-3.9812309920347513,null,null,1.335,2.2599999999999998,2.67,3.63,3.0499790356984802,3.51,2.08,null,null,12.549918742249453,4.5325752633039819E-2,6.9397363465160007,11.832260760551602,9.8229053396360655,8.7787676317743184,-0.35983345401882066,null,null,10.33,5.0999999999999996,6.29,8.93,8.4326140388319502,7.19,5.93,null,null,5,"n.a.",5.5,5.5,"n.a.",6.75,"n.a.",null,null,13.035915987640134,4.7577572478238794,10.767210602795153,11.941694741642216,15.700619726814047,12.568603972673609,16.510572406124837,null,null,678.38689210983341,442.34750000000003,866.75833333333333,329.98389427250004,358.62961212938234,696.82499999999993,1335.9675567500001,3372.9312318450488,4708.8987885950492,null,null,1152.2917960558332,830.37583333333339,1384.3916666666667,751.34773024833328,521.7755601960265,1441.8000000000002,2115.211804,6081.982586500194,8197.1943905001935,null,null,-2709.0513546551447,-3488.2956019051448,null,null,630.3554133280004,425.63000000000011,965.10000000000036,337.14427480999984,337.50271645953097,663.6,1078.8268310000001,3359.3324045975314,4438.1592355975372,null,null,1145.0981172299996,857.03000000000065,1300.6000000000004,776.32292321000023,507.2709881301447,1530.5000000000005,1908.5826620000007,6116.8220285701536,8025.4046905701543,null,null,-2757.4896239726222,-3587.2454549726172]
[null,2012,"E",4.2138538820197748,4.7484674515909413,5.4982135768161848,5.3602811950790938,8.2541404339734434,6.9004787458379759,6.1162079510703444,null,null,4.9580093896975539,2.4078529191632745,3.2606215174871416,3.6521679823632169,5.9886887446294415,2.2720596009843241,14.350947339354139,null,null,75.352054660770236,89.579189619025684,64.451613105120529,75.585718965743112,95.912615843665748,92.749958589877295,92.475722677942215,null,null,0.4443404600495347,0,-1.8120906801007586,1.019372637232101,4.8008233099919071,3.7704458360594524,0,null,null,4646.3623359599997,2578.6999999999998,6185.7,2880.4390615127977,1624.8,3046.8,2082.7013444499999,null,null,59.756291335107846,98.958417279328529,99.820789789363687,77.886682281179944,106.0529268895631,57.466687929524255,181.80623674379575,null,null,4.3527284991452131,-2.3279266140269486,-0.28267168391344089,2.4864386989157561,-0.23517230035137776,3.1800804767624866,-4.0580115273775288,null,null,1.3484834265379795,2.31,2.64,3.57,2.7315146174798404,2.74,1.81,null,null,13.468599034702725,0.57426381792846182,7.6416331138287976,12.120050041701409,6.6778725039674738,9.6159730758570099,0.33340057636886822,null,null,10.89,5.35,6.2,8.91,9.8081726268401095,7.59,6.47,null,null,5,"n.a.",5.5,6,"n.a.",6.75,"n.a.",null,null,14.173766041645086,5.0481650781197152,10.637370396312651,12.05414787503749,17.660522635394017,13.253731988072248,12.955649532005697,null,null,686.04653118900012,445.68416666666661,865.00833333333333,329.80009541333334,365.23252968280667,704.30000000000007,1350.240045,3396.0716562851399,4746.3117012851399,null,null,1176.85259847,841.34416666666664,1396.7833333333331,759.62250331833332,523.2018974631286,1456.0833333333337,2121.8704113333333,6153.8878325847954,8275.7582439181278,null,null,-2757.8161762996556,-3529.4465426329893,null,null,655.63618554000004,448.69,744.19999999999993,342.56734488000001,391.878527885425,585.20000000000005,1036.890944,3168.1720583054248,4205.0630023054246,null,null,1275.9336858300001,820.68,1340.6000000000001,740.20154291999995,475.4786747517158,1327.5999999999997,1876.4096279999999,5980.4939035017151,7856.9035315017154,null,null,-2812.3218451962907,-3651.8405291962908]
[null,null,"F",4.0533296379370327,4.8951048951049012,5.2201319806953572,5.6282722513089034,8.8085488426911773,6.001307814680688,6.3975628332063907,null,null,5.0448186910199775,2.5809147484761961,3.2124863693675074,3.801939746441009,6.0121930429947446,2.4749908910845333,14.019788826471711,null,null,75.443444544162688,89.479736874560444,64.067790693032066,75.323261723603181,95.42541159201032,92.823464461270532,92.076347716254929,null,null,1.5791405954741329,0,-0.28176676486589108,1.4173730171731007,4.8225191312483089,3.4945093495200372,0,null,null,4708.1602812800002,2616.6999999999998,6126.9,3016.4715980587525,1595.7,2980.1,2008.5231295799999,null,null,61.974589235185007,99.720544673028115,102.00323386867431,79.428699703726892,105.91510693618056,56.099179484576652,169.85415332145735,null,null,4.7539760421654496,-2.3691333333333389,-1.9133202283998885E-2,2.3305576208178409,-0.86017822107624065,4.1496584108277519,-3.8981746599856777,null,null,1.7514468120655697,2.41,2.62,3.58,3.0049386295903551,3.1,2.25,null,null,14.056897951231152,0.40506666666666113,7.8595871946082596,11.892391573729862,6.2691301232623333,11.423153577018711,-3.5304223335712689E-2,null,null,10.97,5.32,6.2,8.85,9.1959083486448154,6.98,6.36,null,null,5,"n.a.",5.5,6,"n.a.",6.75,"n.a.",null,null,15.566298696552462,3.5877731539462721,12.715636419225396,12.933332751030591,21.597833032270831,13.059626560899829,12.700918936018812,null,null,692.01746174400012,445.36833333333328,861.57499999999993,332.16625053083334,369.03539225023479,710.6,1358.3092338333333,3410.762437858401,4769.071671691735,null,null,1184.1058494824999,846.39833333333343,1407.625,771.17335797833323,527.98525734804537,1470.5500000000002,2144.7053688333331,6207.8377981422118,8352.5431669755435,null,null,-2797.0753602838108,-3583.4714952838112,null,null,722.9638295499999,450.18999999999988,859.9,432.47955861999998,381.16650265100299,681.5,1408.011733,3528.1998908210035,4936.2116238210028,null,null,1100.2594438000001,819.4899999999999,1311.4999999999998,765.54833828999983,529.46240268409974,1363.4,2132.062152,5889.6601847740994,8021.7223367740989,null,null,-2361.4602939530964,-3085.5107129530961]
[null,null,"M",4.2080604447938468,4.3713210460291432,4.657748266770831,5.6759098786828392,8.5485341154628731,4.9447633749818829,6.3396226415094281,null,null,4.7651235588920944,2.9324561268703349,3.2216156569300276,4.3765133098874154,5.7576529675108157,2.8726185766784655,13.682941790142337,null,null,75.032224846180057,89.534416473985047,63.495669231986163,75.226673582209983,95.378964070621763,93.004744669568026,91.483280505672084,null,null,1.643394367738829,0,0.26302855998689079,1.8272173497602258,4.665858342337045,3.2608638084897938,0,null,null,4745.4197414500004,2648.9,6140.8,3068.3124150705976,1753.1,3031,1712.1733605899999,null,null,61.054566378998906,101.60756212813931,99.696896744376204,78.151439955030199,107.31794538751274,57.607903083224741,149.17989274003111,null,null,4.8383393124154868,-1.8504326923076932,0.52767400634445971,2.3601312013120159,-2.0541730664836448,4.6931704514112607,-3.6765436479772835,null,null,1.9718244942589092,2.44,2.61,3.67,2.9713866785694685,2.89,2.4300000000000002,null,null,13.973909017259379,0.82271542159763245,8.3436266094420528,11.794637146371466,6.6033612757000046,11.658739542153196,1.9162526614626099E-2,null,null,10.86,5.23,6.29,8.7899999999999991,8.3274279489590253,7.53,6.36,null,null,5,"n.a.",5.5,6,"n.a.",6.75,"n.a.",null,null,14.179958530408964,3.5172612133246295,14.809406924471169,13.924731603305961,21.900516367140121,11.495022723145087,11.176262533197523,null,null,695.24408116816676,443.00333333333327,860.05000000000007,340.31394517749999,370.75994571461894,711.47499999999991,1406.4982486666668,3420.8463053936189,4827.3445540602852,null,null,1194.4582808174998,842.20166666666671,1407.125,780.27792660499983,533.70989645864358,1465.9333333333334,2179.3231988333332,6223.7061038811444,8403.0293027144762,null,null,-2802.859798487525,-3575.6847486541919,null,null,838.64113356000007,503.61000000000013,1033.5,503.90096400999994,458.63407110226598,796.2,1749.5244400000001,4134.4861686722661,5884.0106086722662,null,null,1378.38977249,896.83000000000015,1475.4,882.05251368000017,617.39305386159288,1474.9000000000003,2270.9489140000001,6724.9653400315929,8995.9142540315934,null,null,-2590.4791713593277,-3111.9036453593289]
[null,null,"A",4.7073967209458161,1.9866929060069389,4.2744984006978788,5.6555269922879123,8.9766105663035489,4.0459110473457569,5.9746079163554811,null,null,4.2308907537109235,2.4561105698776386,3.1488674553825473,5.0191514913183708,5.2594145435745636,3.3132277670950354,13.392017568944295,null,null,74.145666345254767,89.130989899546606,63.568095623853189,74.775789808985863,94.754032570576953,93.206062512092018,90.98944168771547,null,null,1.0386950824269232,0,1.7469953993902709,2.1677020692359568,4.743717878119674,3.1248595887967192,0,null,null,4765.5887301000002,2709.9,6183.3,2978.3443822345153,1707.9,3125.5,2019.5000679399998,null,null,60.687214854315584,100.68823505588405,105.68021433962545,77.87613214642316,114.28850341724331,59.61942828969368,168.51779670928505,null,null,4.5771391794095333,0.47389230910594099,0.9163329615170096,2.4272019464720254,-2.3727289960094979,5.8955598455598563,-3.5334954193093653,null,null,1.9749292888336507,2.4700000000000002,2.63,3.67,1.936089779043209,3.19,2.23,null,null,13.821949291342722,2.9742185059266695,8.7610122699386483,11.806739659367402,8.0056000665259415,12.565692222835093,0.25986610288936635,null,null,10.84,5.0199999999999996,6.2,8.74,8.5998449167314739,6.59,6.25,null,null,5,"n.a.",5.5,6,"n.a.",6.75,"n.a.",null,null,14.403474022616102,3.511745200431915,18.548804053184842,15.775191673416922,22.739708313613495,10.327808254772064,12.236350982984856,null,null,694.04669432233334,441.85083333333336,854.97500000000002,339.92202612416662,376.46745608357293,710.91666666666663,1418.617505416667,3418.1786765300726,4836.7961819467391,null,null,1197.9017157433334,844.16333333333341,1400.9750000000001,785.22175332916675,536.88592349219061,1451.3916666666667,2196.4460036666665,6216.5393925646904,8412.9853962313573,null,null,-2798.3607160346182,-3576.1892142846177,null,null,751.90919173999964,415.62999999999988,875.2,393.39508199000011,421.89563019428601,766.3,1222.7932149999999,3624.3299039242866,4847.1231189242844,null,null,1103.0783651300003,816.52000000000044,1323.2000000000003,749.97253073999991,526.95495823688509,1386.7000000000007,1993.9396020000001,5906.4258541068921,7900.3654561068906,null,null,-2282.0959501826001,-3053.2423371826007]
[null,null,"M",5.0352968067359258,1.2123472908700896,3.8966049382715959,5.1533219761499121,7.5269721128235769,3.540752051918298,6.0267857142857233,null,null,3.8261590109993242,3.5991041151253191,2.9972143492979799,5.4849377258160175,4.7695738392124003,3.5629308173943151,13.056083875124092,null,null,73.223354490664022,89.192518415705351,63.642525839376461,74.812678737248874,95.158502187370559,93.272920628365043,90.418938041077709,null,null,0.31080010938923325,0,1.5866666666666585,2.554558396813821,4.6750191864769679,2.9851337121381971,0,null,null,4858.1739648499997,2651.4,6112.7,2860.6851934678953,1690.3,3012.3,2041.8728008699998,null,null,61.558086662579861,100.09264062008059,107.02095929874027,77.898803330209176,116.46177781206566,56.868564999604018,175.77998498341466,null,null,4.7266998277722641,1.2327080070026746,1.3026364649090321,3.0590360469825861,-0.97652652578999422,6.0258862567978673,-3.7696000000000085,null,null,1.9867261475528928,2.46,2.67,3.65,2.3004809037473035,2.6,2.0299999999999998,null,null,13.961690630766727,4.2955754169354119,9.1758484961010129,12.255131632239777,10.985431745393202,12.361555903769938,0.37086315789472823,null,null,10.97,5.56,6.3,8.69,8.3744368675031939,7.3,6.42,null,null,5,"n.a.",5.5,7,"n.a.",6.75,"n.a.",null,null,13.662202182965434,3.477026089669133,18.574452561475873,16.496792681592254,25.502765266920413,9.0826943553058204,21.792552773050232,null,null,699.69762464066662,439.98166666666674,853.43333333333328,340.41978561916665,377.63267447844413,716.5333333333333,1429.1767017499999,3427.6984180716113,4856.8751198216096,null,null,1205.7230759024999,849.22000000000014,1404.1333333333334,782.69490482916672,543.89477949929278,1454.8416666666669,2219.9356451666667,6240.5077602309602,8460.4434053976274,null,null,-2812.8093421593499,-3603.5682855760169,null,null,837.58371254000031,461.18000000000029,871.40000000000032,415.6289853899998,392.16362888076696,800.59999999999991,1522.7373339999999,3778.556326810769,5301.2936608107666,null,null,1284.2472441999996,989.73999999999978,1574.1999999999998,817.35404818999996,652.10843299372971,1512.6999999999998,2492.9870689999998,6830.3497253837268,9323.3367943837293,null,null,-3051.7933985729651,-4022.0431335729663]
[null,null,"J",4.6149100459102517,0.60583465374218604,3.473088362275726,4.7073791348600489,6.4643678423417246,2.7113840340104058,5.7949479940564714,null,null,3.6420299596183168,4.1163041122988728,2.8209935199883871,5.6093457230825745,4.5856590634876513,3.4579848784476868,12.602176873971125,null,null,72.382938376473348,89.60593640218103,64.047044205048763,75.053010479860788,95.943264583162716,93.101640403606041,90.40766313482122,null,null,-1.0868667052279113,0,0.92428511819825432,2.969099320534351,4.562871810592962,2.7225874309755338,0,null,null,4869.4577913100002,2601.4,6811.6,2784.4624407518713,1689.1,3219.2,2209.4662591199999,null,null,60.556086704608894,98.510415278164885,116.64650235092971,75.001706335630075,116.77518976257666,58.371261440626988,192.18532799622844,null,null,4.9085641347263156,2.0914943487122559,1.668947612424674,3.6412150668286767,0.53748070481872801,6.2394407652685642,-3.5492696629213558,null,null,2.0056829169914554,2.71,2.66,3.75,1.9469250399295202,3.26,2.04,null,null,14.314489156008383,4.6161988141560206,9.6516995827538334,12.857375455650065,10.578465748162245,13.132542310522426,0.67588483146066658,null,null,10.74,5.25,6.3,8.66,8.3744368675031939,7.38,6.51,null,null,5,"n.a.",5,7,"n.a.",6,"n.a.",null,null,14.267983672314299,3.8699488964188067,18.305870092304776,16.365305037684298,28.228214455755428,8.9512391513454581,15.880989384963694,null,null,703.88081490233344,433.86333333333329,849.76666666666654,339.94844490916665,378.87340226912102,710.7833333333333,1421.3003142500002,3417.1159954139544,4838.4163096639541,null,null,1211.3830916249999,834.2258333333333,1403.2250000000001,773.92988520666677,545.61798866014669,1462.45,2208.5943003333332,6230.8317988251474,8439.4260991584815,null,null,-2813.7158034111931,-3601.0097894945266,null,null,752.83479862999957,392.31999999999971,831.40000000000009,384.80890296000007,389.27537908330999,729.5,1263.8078369999998,3480.1390806733034,4743.946917673311,null,null,1175.1964767699997,686.42000000000007,1450.0000000000002,741.66170534000003,547.50194626571147,1551.4,2124.8850820000011,6152.1801283757086,8277.0652103757093,null,null,-2672.0410477024016,-3533.1182927023983]
[null,null,"J",3.9486456636426319,3.7185088779405275E-2,2.8606728758791093,4.0859309182813766,6.369628450408217,1.6393442622950924,6.013363028953238,null,null,3.6374455196216293,2.9035996652229064,2.6940035425491806,5.4628048840254309,4.7996714695263236,2.9738603442508866,11.604570670094896,null,null,72.692318630104751,89.906683055323441,63.636375277427099,75.316719887113976,96.452398908770689,93.353908952900952,90.180457872606695,null,null,-0.8331783113977117,0,0.86733079818450587,3.5090377964445958,4.8456929784925364,2.7239225746758975,0,null,null,4911.8982414900001,2526,6778.1,2690.4639516236912,1618.7,3127.7,2134.6191387399999,null,null,61.184830226206479,97.340065186244757,113.90566873835175,74.620126488487699,112.60141166161904,54.960668911353054,179.70200221824973,null,null,6.0619879134811541,2.4918883003438279,2.4103742030860218,4.5578389316066419,1.0609812312789346,6.7303225806451508,-3.7479831932773191,null,null,2.1150000000000002,2.5299999999999998,2.68,3.8,2.7407337275071901,2.42,2.04,null,null,15.38389868791773,5.3308326363720777,10.353157165296132,13.608053419668154,11.029255101179551,14.08967741935483,0.3709943977590951,null,null,10.79,5.37,6.22,8.75,8.3394512614496801,6.78,6.4066666666666663,null,null,5,"n.a.",5,7,"n.a.",6,"n.a.",null,null,14.259429526557454,3.9126728095621122,20.251560921546897,15.996521222250637,29.593259490418909,7.1548996286515232,15.934564067532264,null,null,707.87645667983327,438.28500000000003,846.4,348.95651216750002,384.0878721620191,715.19999999999993,1410.8370857500001,3440.8058410093527,4851.642926759353,null,null,1208.0209360533333,843.76333333333332,1411.3416666666669,772.12470664416662,544.56137101368211,1469.2833333333335,2219.6929264999999,6249.0953470445156,8468.7882735445164,null,null,-2808.2895060351639,-3617.1453467851638,null,null,694.26449775000037,524.79,783.50000000000023,383.41401572999985,414.99388910660707,785.6,1314.341471,3586.5624025866127,4900.9038735866125,null,null,1184.3538777200001,1027.0599999999995,1425.7999999999997,750.41952325999955,551.98665271486709,1560.2999999999997,2534.5442300000004,6499.9200536948629,9034.4642836948624,null,null,-2913.3576511082574,-4133.5604101082572]
[null,null,"A",4.230869108776063,0.10214504596527017,2.7113840340103943,4.3222828367603787,5.9664513046565943,2.1625652498135697,6.0606060606060375,null,null,3.7085878276893034,2.9134975096287241,2.7484109304843276,5.2848780532450439,5.4138225750334916,2.3834577668856229,10.073040174063035,null,null,72.547312500221793,90.269615238841297,64.218423580862734,75.615532680488911,97.2991602759069,93.025692739214733,90.261903454441565,null,null,-1.2370114124154099,0,0.74435209888866072,4.0784441997269445,4.9950137625653879,2.75576690662604,0,null,null,4898.2062223599996,2499.4,6765.7,2505.9990309376426,1615.4,3245.1544858921702,2187.0237964900002,null,null,59.813244739086443,96.754837935452912,111.5901711639949,72.855633576028382,113.35455967272412,55.305006944136935,188.81015051763254,null,null,6.0146585602019957,2.6451530612244909,2.5592255334804981,4.6276950925181097,1.6488672342539528,4.2926828512594861,-3.6399999999999788,null,null,2.1150000000000002,2.75,2.69,3.84,2.53039119923453,2.4025630982605106,2.2000000000000002,null,null,15.292140445063115,5.3923469387755114,10.494081125827812,13.532791633145624,12.955103011143606,12.344084317190621,0.13142857142859346,null,null,10.88,5.5,6.2,8.76,8.7967658973220306,7.011313887152685,6.2,null,null,5,"n.a.",5,7,"n.a.",5.5,"n.a.",null,null,13.290052753979031,4.4125206000325878,39.60211478227167,16.58473714257056,29.494513297546888,6.81634788108052,14.898321025679785,null,null,715.41018796483331,440.93833333333333,844.58333333333337,362.49490264333326,387.33956670779907,718.25,1416.8282256666664,3469.016323982632,4885.8445496492986,null,null,1216.5319834133331,843.22833333333335,1406.0333333333335,778.82234853833336,547.30598998776054,1475.6833333333334,2228.7361237499999,6267.6053219394271,8496.3414456894261,null,null,-2798.5889979567946,-3610.4968960401279,null,null,703.22916835999968,452.78999999999996,829.90000000000032,406.56171339999992,405.200259035464,733.5,1579.5981750000001,3531.1811407954592,5110.7793157954584,null,null,1353.6295451099993,850.88000000000102,1439.6999999999996,842.0393775499997,559.6829806758941,1571.5999999999992,2564.4632359999987,6617.5319033358974,9181.9951393358933,null,null,-3086.3507625404272,-4071.2158235404277]
[null,null,"S",4.466305312334117,0.78212290502792292,3.2803932690489708,5.2985702270815782,6.4054942745756058,2.6044088921960737,5.3558327219368946,null,null,3.5096716424587671,3.381065096153721,2.9880715891369261,5.145959719448979,6.2313350450519609,1.9365565735341803,8.4613341886258837,null,null,72.638663828747312,90.331615139958089,64.92185542754828,75.734910915175007,97.452724696594416,93.090423617259518,90.629410646814506,null,null,-2.5480483272600942,0,1.5327982081426943,4.081574454208762,5.0168378373397919,2.7762048571788029,0,null,null,5139.7594487200004,2485.6,6753.7,2466.3195746445567,1643.1,3002.4,1942.56059026,null,null,61.101273502184185,99.197353885841622,110.4928029358711,72.588809234040625,115.17870493531042,52.922873145032625,165.20887193305981,null,null,5.7757328256477516,2.1411308203991228,2.0329189931350102,3.9140415335463286,1.5945715899414072,2.6944158760965746,-3.0048955431754791,null,null,2.12,2.94,2.72,3.95,3.0989768766090302,2.4109215332598599,2.19,null,null,15.27161761868328,4.6018847006651988,9.9143762013729955,12.831541533546329,11.315480548550408,10.589491483077534,0.469045961002794,null,null,10.88,5.42,6.18,8.81,8.1959132044136194,6.1213131312324967,5.85,null,null,5,"n.a.",5,7,"n.a.",5,"n.a.",null,null,13.495197438190299,3.9096005408334245,39.396273288941309,16.474007504995946,28.037376534173418,5.7105424077370515,15.210448060397642,null,null,719.02003226483339,438.53583333333336,841.80833333333339,367.70980691416662,389.99394296631414,719.94999999999993,1384.8525230000002,3477.0179488119807,4861.8704718119816,null,null,1212.4698076625,839.47166666666669,1394.6000000000001,781.6071125366667,551.64973873007136,1476.4083333333331,2235.4235635833334,6256.2066589292399,8491.630222512571,null,null,-2779.1887101172565,-3629.7597507005903,null,null,705.31190738000078,409.94000000000005,785.19999999999982,309.50351525999986,386.16859294386802,739,1278.4141540000001,3335.1240155838677,4613.5381695838732,null,null,1097.7085044500002,790.05000000000018,1281.3,775.6998310099998,551.43226817590596,1451.0000000000007,2464.766251,5947.1906036359069,8411.9568546359078,null,null,-2612.0665880520392,-3798.4186850520418]
[null,null,"O",4.6840231310456026,0.94111069698099625,3.3478343105731034,5.6722689075630255,6.4684304258566057,2.8175562581364852,5.2708638360175915,null,null,3.1809896441474446,3.5177577424675484,3.3033011556875174,5.0364126435003458,6.9934263294240058,1.7267599100771456,7.1018352730480743,null,null,72.480022668259409,90.499971528107494,64.25373077299966,75.890348778569802,97.437185539024966,93.653332010090736,90.747430371484796,null,null,-3.3593223236246583,0,0.373088842984313,4.0847208559403327,5.0048018425171215,2.9456842149237201,0,null,null,5365.96608913,2548.6999999999998,6804.2,2398.500381807964,1684.1,2994.8,1908.7486163199999,null,null,63.146759894356663,98.830107760375668,108.03640676924063,75.208677183355505,111.13950072473887,55.33834199794849,159.43826343268881,null,null,5.3169306093507629,2.0793205944798254,1.9856881405563696,3.9156262425447319,1.4249399453782414,2.0499697059670061,-2.9931015299026629,null,null,2.15,3.04,2.73,3.92,3.4381887188681901,2.5531292063992899,2.12,null,null,15.280246584457597,4.6649866149727632,9.9103825036603226,12.508230616302185,9.5723076974709684,9.9323505788186885,0.89528048215111544,null,null,10.8,5.65,6.17,8.85,8.9289823895589606,6.3022872373723722,6.2133333333333338,null,null,5,"n.a.",5,7,"n.a.",5,"n.a.",null,null,13.513257349732054,4.403518472460255,38.730837846143771,17.746506928645299,27.270744586671157,5.8773749637774486,14.256218205175596,null,null,721.94171804900009,443.21166666666659,841.81666666666661,370.89283751083332,396.36832769378401,726.55833333333339,1381.2353620833335,3500.7895499202837,4882.0249120036169,null,null,1227.1917771216667,849.81083333333333,1405.5166666666664,787.5454540574998,556.84329938979295,1480.8916666666667,2267.1862459166673,6307.7996972356268,8574.9859431522946,null,null,-2807.0101473153427,-3692.9610311486763,null,null,702.93816003000029,444.99000000000024,732.5,275.89084633999983,436.07469791033805,757,1636.042719,3349.3937042803373,4985.4364232803273,null,null,1364.4941561300006,863.55000000000018,1531.7000000000003,811.25133027999982,614.70067068481535,1519.3000000000002,2685.244356000002,6704.9961570948144,9390.2405130948173,null,null,-3355.6024528144808,-4404.8040898144827]
[null,null,"N",5.2163663222012522,0.65128395980647824,3.1140888930829433,5.4416073670992047,6.1635032457332173,3.3723522853957482,4.4992743105950526,null,null,3.110233166912856,2.938891485068007,3.6071391489685904,4.8799289183439463,7.4920948881026472,1.7787804434699115,6.2835961894587653,null,null,72.072466843941285,90.473265428986252,64.140514125936321,75.941831436747762,96.803626269832492,94.103025300126063,90.469207737554441,null,null,-1.5496652170911633,0,0.72901938112189735,4.5542560254875797,5.3353635780372368,3.8861545825355774,0,null,null,6530.7613680000004,2514.6,6711.2,2376.1123724889212,1702.5,3119.3,2106.1048792199999,null,null,75.365066629609785,99.663191837970615,105.71411976243461,73.883324366367262,111.49331023499469,56.11320788733051,136.91898306608931,null,null,4.0712617509343474,2.6315770012941369,2.2265736249656864,4.5033386264390627,2.1724784172249403,1.4998954035247489,-2.2768333333333213,null,null,2.15,3.3,2.76,3.98,1.92275526041191,2.4133867878690398,2.12,null,null,14.706489321646268,4.8670179330745027,10.120742198224589,12.820738388249305,10.431999812145555,9.8645490666499178,1.6530185185185309,null,null,11.1,5.55,6.2,8.74,8.4761685189420692,5.8745883164269106,6.2266666666666666,null,null,5,"n.a.",5,7,"n.a.",5,"n.a.",null,null,13.685649982366144,4.5378708740040352,37.898275065483247,17.321768647115764,25.636888853021354,5.9303229719078088,14.616660632069657,null,null,727.06273082150017,445.54333333333335,843.3416666666667,369.58294994333323,401.10602193832887,742.85833333333323,1400.0135364166665,3529.4950360364951,4929.5085724531627,null,null,1231.7344587666664,856.59333333333336,1407.0916666666665,784.54099858583322,557.32706032879184,1477.1083333333329,2275.3033097500006,6314.3958510146258,8589.699160764625,null,null,-2784.9008149781307,-3660.1905883114637,null,null,729.08477144999961,416.76000000000022,808.29999999999973,249.70019592999961,398.31836800708095,876.3,1709.1735840000001,3478.4633353870813,5187.6369193870778,null,null,1318.4243163399992,860.8700000000008,1431.0999999999997,761.96831855999972,553.95169477013951,1475.8999999999996,2254.8065350000006,6402.2143296701397,8657.0208646701358,null,null,-2923.7509942830548,-3469.383945283058]
[null,null,"D",4.5505304856303015,0.78292478329759441,3.4463276836158214,5.3907229419139053,6.6186108228091536,3.9068299925760788,4.6343229543808873,null,null,2.8817303451884224,2.1651711544802668,3.8455461724763489,4.6416192893643737,7.5260435405058699,2.0199671515635309,6.2074434805567096,null,null,71.849626987776276,90.504141128918391,63.937206648167987,76.141314783066917,95.609406247864584,94.053386471937614,90.145249243058203,null,null,-1.0953286373159281,0,1.1623029286473625,4.8224186163205651,5.4183704095367222,4.2106710457022949,0,null,null,6856.6761120399997,3172.9,6693.8,2570.9308349226294,1718.1,3209.8098136290778,2418.5563101600001,null,null,75.528614572263805,131.27881511859943,101.67566131039575,74.670903759849566,115.30061075949349,56.259014451288678,193.37093950180434,null,null,4.4471027480905354,2.7455793951724878,1.8692517749863442,4.8479381443299072,1.5425221116799057,1.2926676788425631,-2.3934048442906612,null,null,2.15,3.55,2.77,4.1100000000000003,2.9963724161366301,2.46,2.13,null,null,15.236144130860328,4.3926838065291882,9.6897323866739473,13.140888183980978,10.809478337601952,8.6165365722961678,1.5536747404844251,null,null,11.1,5.21,6.1899999999999995,8.75,8.3290553009836703,6.82,6.26,null,null,5,"n.a.",5,7,"n.a.",5,"n.a.",null,null,14.049232257194166,3.5380271026113297,41.109297639245867,17.022973811473708,26.286194155104383,5.8899808902095563,15.211570560887466,null,null,728.94378617916664,444.92333333333335,831.55833333333339,365.92236845999992,402.35795059053493,744.62499999999989,1409.7487818333332,3518.3307718963679,4928.0795537297017,null,null,1242.931460585,854.78416666666681,1416.1666666666667,782.10712010499992,565.26119913873947,1472.7749999999999,2268.2019118333337,6334.0256131620736,8602.2275249954073,null,null,-2815.6948412657043,-3674.1479712657051,null,null,652.92807761999939,418.1899999999996,823.69999999999982,293.21729701000004,352.52586028600399,684.8,1195.649776,3225.361234916003,4421.0110109160159,null,null,1279.462139050001,835.31999999999971,1409.4999999999993,747.11638144000062,602.48065384951815,1478.5000000000005,1823.3658869999999,6352.3791743395268,8175.745061339534,null,null,-3127.0179394235129,-3754.7340504235108]
[null,2013,"E",5.7367026519222346,0.87320018578727132,3.8570084666039608,5.6713928273561276,7.7431221581462317,4.758384921001551,4.6829971181556225,null,null,2.2970704254229526,2.318408845284607,4.005732811205494,4.2036275812827526,7.2059606366063083,2.3298763661160073,6.5032474903153323,null,null,71.205571356458677,90.299265147167631,63.681858391970778,76.216118929873275,95.286887136546284,94.006493164856536,89.826498621022907,null,null,-1.7366074913835243,0,0.91712287650779423,4.7880183605774009,5.2674431116844094,4.4191217342968265,0,null,null,6748.7871541100003,3116,6649.7,2535.3638062192508,1717.9,3017.8,2590.8353731500001,null,null,71.343228895754351,115.52537164801244,103.08884859816045,73.937711462219013,114.21335335326681,56.588836462159783,217.3229183104186,null,null,2.4242266722804477,2.4950133529790985,1.5049456521739035,5.1183267561168133,0.6527348585987377,1.0897600987828735,-2.4292360633172772,null,null,2.1550000000000002,3.39,2.78,4.17,3.2650459696615299,2.11,2.14,null,null,13.621852192130868,4.4677870890505593,9.3041304347825982,13.08642462509866,12.606536286991251,7.9149894161227943,1.5160082587749451,null,null,11.21,5.38,6.18,8.75,8.7767559505213004,7.02,6.27,null,null,5,"n.a.",5,7,"n.a.",5,"n.a.",null,null,14.398525332226786,3.9942376645738076,40.64299583443762,15.591887525424664,25.747361922451905,6.6944211394347031,19.130349014659508,null,null,730.86469698999997,447.435,838.55833333333339,369.00561891104627,402.61895697153568,752.26666666666654,1414.722404833333,3540.7492728725815,4955.4716777059157,null,null,1247.0833366016666,860.16333333333341,1426.5833333333333,787.70891689485882,569.09982463049698,1466.5916666666665,2294.8526542500003,6357.2304114603567,8652.0830657103579,null,null,-2816.4811385877733,-3696.6113880044409,null,null,678.68711527000005,478.83,828.19999999999993,379.56635029255699,395.01060445743303,676.9,1096.5744199999999,3437.1940700199898,4533.7684900199902,null,null,1325.7561980300002,885.23,1465.6,807.42310439830715,521.54218065280543,1253.4000000000001,2196.2185369999997,6258.9514830811131,8455.1700200811138,null,null,-2821.7574130611229,-3921.4015300611227]
[null,null,"F",6.515785305324914,0.97222222222221966,4.1842179163156379,5.7827344072697349,7.0810337818385873,4.7325292330356179,4.581245526127419,null,null,1.9668882349526784,2.221711612446942,4.0020251891157672,3.6216369615946578,6.7021587876623059,2.5118376206015163,6.8041715804718388,null,null,70.994412601822845,90.40661051719573,63.080293874600507,76.120981358381584,95.743572727351918,94.632831879865762,89.819716048418428,null,null,-1.7484904415029727,0,0.54917058257373952,4.7882641892950648,5.3126981243704279,4.6618124562867456,0,null,null,6816.2660269300004,3070.5,7276.7,2465.0716619624882,1700.5,3035.2,2557.8234821000001,null,null,71.131019357072205,115.57018955317753,116.62432027240175,73.209400009069768,109.10278853943447,55.760209931013073,214.10694252294218,null,null,0.78318410016302242,2.3845942228335653,1.2149460916442085,5.3858180398281812,1.7390651926532481,1.6685081318681461,-2.3343052703627678,null,null,2.17,3.38,2.8,4.2300000000000004,3.0114232713399698,1.79,2.14,null,null,11.861354313315548,4.4445667125171964,8.9416442048517535,13.128102303787571,13.099070437694637,8.2758153846153988,1.6721492128678959,null,null,11.13,5.46,6.16,8.7799999999999994,8.9046228229723798,6.12,6.33,null,null,5,"n.a.",5,7,"n.a.",5,"n.a.",null,null,12.952589264620773,5.7957128571072491,37.611295613252253,14.99890056919515,23.811493728583777,7.0563942613386388,19.166181768040214,null,null,730.5327127216666,446.11999999999995,833.23333333333358,362.83588986221451,400.4786283180818,755.42500000000007,1402.3911987499998,3528.6255642352958,4931.0167629852967,null,null,1254.7845509991666,861.47916666666686,1428.75,784.4048618713349,570.0535744094185,1469.1999999999998,2288.7330466666672,6368.6721539465871,8657.4052006132551,null,null,-2840.0465897112899,-3726.388437627957,null,null,718.98001832999989,434.41,796.00000000000011,358.44281003401807,355.48255880955696,719.40000000000009,1260.0372600000001,3382.715387173575,4642.7526471735755,null,null,1192.6740165699998,835.28,1337.5000000000002,725.89967800771285,540.90740003115786,1394.6999999999998,2058.6268610000002,6026.9610946088706,8085.5879556088694,null,null,-2644.2457074352951,-3442.8353084352948]
[null,null,"M",6.2058775162663231,1.2758875739645059,4.3384959880574776,5.5760557605576029,6.7943130672651559,4.9737979222211788,4.1163946061036061,null,null,1.9176018139539091,1.6374586979630184,3.908562763474007,2.9848676921700799,6.1442359753671933,2.5293121882939742,6.60368633250825,null,null,70.330669772650609,89.749120083157251,62.460993287464511,75.76297862992196,95.54929173682946,94.549412471488253,89.200822460094884,null,null,-1.9383422558612331,0,1.1027814627934478,4.7380214281315514,5.3845020359552853,5.1207352850665746,0,null,null,6936.8452548100004,3027.5,7279.8,3051.1054984985508,1698.7,3500.5,2097.7660981199997,null,null,69.99884117194199,116.83185204823315,112.65838593079258,85.098560824183551,112.25490608233638,63.152142661460388,170.63246904014437,null,null,0.70064152863828877,2.1171006025196184,1.0748707860144824,5.8194485436893242,1.9954996092299531,1.3395743562795799,-1.9750920245398647,null,null,2.3250000000000002,3.42,2.79,4.25,3.6305639918334198,2.0299999999999998,2.06,null,null,11.839384766448395,3.9339200292130632,8.7805597782348173,13.444283495145635,15.184176702172985,8.2841644771413794,2.1549011588275531,null,null,11.16,5.26,6.15,8.65,8.3938901801492793,7.7,6.36,null,null,5,"n.a.",5,7,"n.a.",5,"n.a.",null,null,12.605333775988248,6.2132957534292155,35.670934207936014,14.880727351455247,27.521735274220195,7.1208658884623466,19.592131336681362,null,null,726.65724371916656,441.565,828.95000000000016,352.62224571764091,395.05406198469626,756.94166666666661,1367.6868590833335,3501.7902180881701,4869.4770771715039,null,null,1246.0454656491665,855.48250000000019,1417.9666666666669,767.52394132586824,557.56841425442633,1456.9083333333335,2260.1270238333341,6301.4953212294613,8561.6223450627967,null,null,-2799.7051031412907,-3692.1452678912906,null,null,792.13550553000005,448.95000000000005,982.1,381.33723427511586,393.53927510163999,814.40000000000009,1333.0723640000001,3812.4620149067568,5145.5343789067556,null,null,1273.5207482899998,824.87000000000012,1346,679.48146713439883,467.57113200168732,1327.4,1927.6766400000001,5918.8433474260873,7846.519987426087,null,null,-2106.3813325193296,-2700.9856085193296]
[null,null,"A",6.307269239954584,1.8377285674902159E-2,4.1271611823759047,4.6634225466342372,6.343806475904783,4.8997977569405649,3.735024665257209,null,null,1.9305797239993876,1.2334854514932769,3.8073333778051008,2.4683680405074475,5.7887817590263486,2.5679085115913276,6.0947165292067691,null,null,69.673732641999052,90.129457437537013,62.12006266944379,75.677316525165296,94.757329703626624,94.551520059709162,88.712213708974531,null,null,-1.2292306717236545,0,0.60947471423196953,4.7325833837483176,5.150049667852568,5.2158513081276139,0,null,null,7960.4042082599999,3093.3,7220.8,2954.9363294765917,1730.5,4099.6000000000004,2863.0006039399996,null,null,80.78236878194889,114.55745964120663,113.11595109632979,80.928500852674077,114.68911016069991,66.448025951827788,233.95434328169796,null,null,0.4164632985220354,3.4609866789159431,1.2704070701660435,7.0192406044168809,2.5033450150208014,2.2499588116729949,-1.5183152173912904,null,null,2.2850000000000001,3.48,2.79,4.28,3.8423504726768072,2.4,2.16,null,null,10.425186197784559,5.4406228755167696,9.0301499732190678,14.82521503293296,12.955078709454712,8.9706581368855129,2.5111820652174051,null,null,11.02,5.46,6.1400000000000006,8.6,9.3830128967005439,6.12,6.34,null,null,5,"n.a.",5.25,7,"n.a.",5,"n.a.",null,null,12.822594625943996,5.3527616169467995,34.108020768899962,13.571329087833451,28.070876081166098,8.5420112477957666,18.851597996525136,null,null,727.72773632666667,448.30666666666662,830.08333333333337,349.39458764483078,395.49393553479467,762.44999999999993,1371.09383,3513.4562595062912,4884.5500895062933,null,null,1260.6170734183333,867.38166666666677,1441.875,771.29572128585949,562.36129361536962,1455.3999999999999,2276.343409666667,6358.9307549862287,8635.2741646528975,null,null,-2845.4744954799366,-3750.7240751466034,null,null,764.7551030300001,496.52999999999975,888.79999999999984,354.66318511627901,427.17411279546701,832.40000000000009,1263.676866,3764.3224009417463,5027.9992669417443,null,null,1277.9376583600001,959.30999999999949,1610.1,795.23389025989491,584.46951056820456,1368.6,2188.5362319999995,6595.6510591880979,8784.1872911880964,null,null,-2831.3286582463516,-3756.1880242463503]
[null,null,"M",5.2840368710750312,0.14742467520500929,4.2703304864463432,4.8197650870797917,7.7284868220783665,4.9866347128767048,3.7192982456140355,null,null,2.2327146401698155,0.4549922154002099,3.6811796185456593,2.1493692710813956,5.6635894748858888,2.9792630917064846,5.8509785130538212,null,null,69.706050805474007,90.299517456775206,61.920795350926468,75.810106065642572,94.347375342217219,94.862491538275918,88.388674436293911,null,null,-1.1477411477411512,0,5.8290805494003929E-2,4.7606760599589801,5.3455018972351782,5.3115918630933283,0,null,null,7885.1966123700004,3058.7,7252.9,2839.7668864127813,1727,4067.4,2770.37502614,null,null,77.691798084357998,116.41023962538031,110.8384576929452,80.424071827956197,116.54574083664251,66.75890985335559,231.38414623298104,null,null,1.2974076313179856,3.3176842395804615,1.1217663817663814,6.9740996908809869,1.1432051024636158,0.72710711150137264,-1.5130243572395135,null,null,2.0499999999999998,3.47,2.89,4.32,3.4490119720693002,1.9221571562034878,2.15,null,null,10.928497302031198,5.4245781580642225,8.9379878917378903,14.692109737248837,12.086720439459887,7.744006415384602,2.50744248985115,null,null,10.84,5.58,6.09,8.59,8.41823119777027,6.7064413023315241,6.32,null,null,5,"n.a.",5.25,7,"n.a.",4.25,"n.a.",null,null,13.616453016724407,5.7972161174515868,32.168513704561086,12.923602147676672,26.018404833293161,11.010717208040631,15.66496267460391,null,null,722.93500840750005,453.46083333333326,837.90833333333319,344.18697943114171,395.61617894761366,771.76666666666654,1362.1340636666669,3525.8740001195879,4888.0080637862557,null,null,1255.5501960341667,862.80333333333328,1443.7083333333333,768.55949454657332,554.99272065576724,1446.8666666666666,2250.3972938333336,6332.4807445698398,8582.8780384031743,null,null,-2806.606744450251,-3694.8699746169182,null,null,780.07097751000038,523.0300000000002,965.29999999999973,353.13768682573095,393.630549834595,912.4,1415.2201380000001,3927.5692141703275,5342.7893521703263,null,null,1223.4447155899998,934.80000000000018,1596.1999999999998,784.51932731856641,563.68555747850041,1410.3,2181.6336790000005,6512.9496003870627,8694.583279387065,null,null,-2585.3803862167424,-3351.7939272167423]
[null,null,"J",5.1379035832886322,0.89864739670187033,4.7936949466852257,5.2652895909274893,8.2852699778671468,4.8013245033111804,4.1432584269662938,null,null,2.6650860678324482,0.31907239923393549,3.5390170278828839,1.9892914978618355,5.5452607703333845,3.8235745119569788,6.3474601980853862,null,null,69.822023880323314,90.331626449431681,61.915163064636182,75.966153360318032,94.962948610103723,95.905432835208316,88.300359865762516,null,null,-0.29265650453334202,0,-0.40335907124053261,4.7487422242585495,5.3709004596895884,6.1363764354134487,0,null,null,7877.81888385,2887.6,7070.9,2915.737988576333,1705,3841.4,2790.4651858599996,null,null,77.427497617368275,111.86251710807733,108.52804007925457,78.795258896750354,115.82504135130822,65.408033753520229,228.66128058846354,null,null,1.3906463481584614,2.8358681480121208,0.63582551760748895,6.3408464794151707,-7.4077558146578171E-3,-0.12530805687196378,-1.9043560350640607,null,null,1.97,3.76,2.89,4.28,3.3319376986991398,1.98,2.16,null,null,11.149258276226997,4.1738444587273911,8.4225535303485941,14.159188149288202,10.025850105218534,7.1742180094787527,2.0613351314902206,null,null,10.72,5.1100000000000003,6.09,8.5299999999999994,8.2373225753929091,6.73,6.29,null,null,4,"n.a.",5.25,7,"n.a.",4.25,"n.a.",null,null,13.053926246137259,6.8273361372162,31.548010640737758,12.888113530213774,24.664378549513199,12.819155045584573,14.387020860572042,null,null,718.58210831999997,458.75333333333327,835.95833333333337,338.78549366637873,395.74529793483134,775.54999999999984,1351.2846897500001,3523.3745665878764,4874.6592563378772,null,null,1255.1498055525001,885.3183333333335,1438.0833333333333,764.05027446213535,557.09396591592065,1434.4833333333333,2246.613388416667,6334.1790459305557,8580.7924343472241,null,null,-2810.8044793426784,-3706.133178009346,null,null,700.59999757999958,455.82999999999993,807.99999999999977,319.99107378284498,390.82480692992203,774.90000000000009,1133.61535,3450.1458782927657,4583.7612282927694,null,null,1170.3917909900006,956.60000000000036,1382.5000000000002,687.55106432674484,572.7168893875521,1402.7999999999997,2079.4782169999999,6172.5597447043037,8252.0379617043,null,null,-2722.4138664115326,-3668.2767334115342]
[null,null,"J",5.8141562841761356,1.0872595483691123,4.739905756259807,5.6252529340348065,7.6558827286991598,5.6682027649768818,4.1316526610644129,null,null,2.9212951578234829,1.2704126194020959,3.4210631549578632,1.8948702112549363,5.3091032101952003,4.8804491851078255,7.6421877279819732,null,null,69.685105235509681,90.616610465818056,61.890470270641927,76.077856811118949,96.004904793546686,96.523250766066184,88.235212475547783,null,null,-0.44044398734029599,0,-1.8818119672992493E-2,4.7182492558651949,5.173394968447969,7.2337496513624329,0,null,null,7723.7136800400003,2864.6,6727.1,2779.6456492389716,1711.1,3453.8,2734.8101442900002,null,null,75.732017445787662,107.52248246838528,100.81528564746709,78.072214170492956,110.75783759433936,62.665455584936048,231.42975789090184,null,null,0.69541140964888559,2.31754274682846,0.67795959774171766,5.9405747126436763,1.6018149633610581,-0.98251199302216985,-1.9798520511096047,null,null,1.95,3.43,2.9,4.26,3.53,1.8,2.0699999999999998,null,null,10.287700718029328,4.5829123000551562,8.4782339449541393,13.760674329501914,12.651012340626561,6.7965547317924893,2.0727101546738527,null,null,10.65,5.72,6.08,8.5,8.57,6.3,6.29,null,null,4,"n.a.",5.25,7,"n.a.",4.25,"n.a.",null,null,12.393023105225831,6.6889579238182728,30.741721841220084,13.516374960978084,23.05294918698193,13.846244309921673,14.568723072189972,null,null,717.609575425,455.96083333333337,839.65,332.53107450996066,395.39473898813708,781.14999999999975,1369.0313333333336,3522.2962222564306,4891.3275555897635,null,null,1263.3336155116667,880.15083333333348,1446.958333333333,768.55643913010954,559.9608464086939,1425.2833333333331,2240.1511520833337,6344.2434010504703,8584.3945531338049,null,null,-2821.9471787940383,-3693.0669975440396,null,null,682.59410301000025,491.2800000000002,827.79999999999973,308.36098585298305,410.78718174627591,852.80000000000007,1527.3011940000001,3573.6222706092594,5100.9234646092555,null,null,1282.55959723,965.05000000000018,1532.2999999999997,804.49349927568892,586.3892186281455,1449.9,2456.997394,6620.6923151338342,9077.6897091338324,null,null,-3047.0700445245784,-3976.7662445245769]
[null,null,"A",5.3070005331345174,0.99257884972171373,4.4150110375275871,5.3901850362027375,7.9357436536217438,5.3010948905108846,3.9024390243902451,null,null,3.0155612086479588,2.0588356592571562,3.2796415330634772,1.8252517492161529,4.8165918242127974,5.8564048166469451,9.3496283392971744,null,null,69.829535990601158,90.757849425598764,62.562470686647757,75.979119568041327,96.137438417396567,97.176834329560762,88.208576285562913,null,null,-0.17415311761504193,0,0.18094465168568796,4.292082778285609,5.0308003598337763,8.3329711154690802,0,null,null,7719.44312145,2855.7,6745.8,2655.8394964333825,1746.8,3392.6,2892.9286542099999,null,null,74.734311830849038,106.5124113422272,101.98904422521086,74.773042463771461,112.64170145244994,67.590781539782824,235.00448915984103,null,null,1.1803578684917311,2.3837604482410146,1.0103805496828815,6.0345419847328223,0.79705031659961978,-5.8019235768069735E-2,-1.7636150234741796,null,null,1.95,3.4,2.89,4.26,3.3927653005273783,2.06,2.0699999999999998,null,null,9.9072230849294503,4.779976118306231,8.8157716701902817,14.128274809160303,12.002240520174732,7.2163590676718439,2.3363849765258204,null,null,10.28,5.82,6.0699999999999994,8.5299999999999994,9,6.54,6.33,null,null,4,"n.a.",5.25,7,"n.a.",6.25,"n.a.",null,null,12.790948493496735,7.4115240131139348,13.803025521758228,13.449850174188072,22.13501016312518,14.967281049158165,13.765231685726764,null,null,716.50121020916674,458.34416666666658,837.52499999999998,322.58531189050899,398.03430950425917,786.21666666666658,1343.8384170833335,3519.2066649372678,4863.0450820206015,null,null,1256.9806254625003,884.71500000000003,1442.5833333333333,762.30741861478145,564.00151186747269,1412.9999999999998,2211.2395205000007,6323.5878892780865,8534.8274097780886,null,null,-2804.3812243408192,-3671.7823277574862,null,null,689.9287857700001,481.38999999999987,804.39999999999964,287.21256196657896,436.87510522892899,794.30000000000007,1277.2831799999999,3494.106452965505,4771.3896329655108,null,null,1277.393664519999,905.64999999999964,1387.1999999999994,767.05113136606542,608.17096618123924,1424.2000000000003,2217.5236569999988,6369.6657620672995,8587.1894190673047,null,null,-2875.5593091017909,-3815.7997861017902]
[null,null,"S",5.3718385431013242,0.75757575757576445,4.2105263157894752,4.9520766773162954,7.3518468085529021,5.1309944701295827,3.8997214484679681,null,null,3.0225983633111566,2.8594054117128831,3.1111699388268805,1.8602515388296277,4.165602161818267,6.4569330229333168,10.620377338140857,null,null,70.044362580257996,90.633885794432871,62.73302873339739,76.022105078223831,96.49634419666458,97.300480588886913,88.182682725136445,null,null,0.50816962174181002,0,-0.39333775539943705,4.2092509661377484,5.1472357570324849,8.6956632640047395,0,null,null,7617.35809264,2889,6583.6,2561.1840444518798,1731.7,3343.8,2425.49320433,null,null,72.076200277111312,106.20507468359968,101.48287811173591,73.398923906610648,111.98363388794186,65.34049423502222,192.60210367374592,null,null,1.1180989846891207,2.7615037593984897,1.2373737373737359,6.3151902587519011,1.9995593821264486,1.7302276450806746,-1.7802949061662214,null,null,1.9650000000000001,3.54,2.92,4.22,3.7918328285247744,1.61,2.0499999999999998,null,null,9.9724571595098581,5.0640601503759335,9.0388888888888896,14.461765601217653,13.472204834616125,8.4837069931879476,2.3101876675603199,null,null,10.31,5.86,6.09,8.5500000000000007,8.4371588097991239,6.33,6.3,null,null,4,"n.a.",5.25,7,"n.a.",6.25,"n.a.",null,null,12.396638561788809,7.1093022634140635,12.948007650078486,12.972565808798752,21.916701226877432,16.022003524533758,12.231295282375655,null,null,715.98176397333327,459.73166666666674,833.07499999999982,320.95641491749387,399.18790651647487,785.50833333333333,1373.5021268333333,3514.4410854073017,4887.9432122406342,null,null,1266.3695326466668,889.60083333333341,1458.625,758.77058631297348,562.1271201354316,1406.7,2192.1532306666672,6342.1930724284066,8534.3463030950716,null,null,-2827.7519870211036,-3646.4030908544373,null,null,699.07855254999959,426.59000000000015,731.7999999999995,289.95675158381891,400.01175709045697,730.5,1634.3786709999999,3277.9370612242747,4912.3157322242696,null,null,1210.3753906600004,848.68000000000029,1473.8000000000006,733.25784338830363,528.93956739141436,1375.4,2235.7307730000002,6170.452801439722,8406.1835744397104,null,null,-2892.5157402154473,-3493.8678422154444]
[null,null,"O",4.1061599231433501,0.53540108926428354,4.1544655929721763,4.6123260437375837,6.8305985700632972,4.7390793162702032,3.8942976356050076,null,null,2.9501970506589568,3.0656051324256519,2.9875673486664556,2.0177202521153026,3.5817242202601998,6.6968987683046741,10.992064735002042,null,null,70.454019832400959,90.807291276698834,62.913723414930907,75.996915767587026,97.058239379242451,97.087398571905041,88.111768544600068,null,null,0.31655064613806655,0,1.0959228311530642,3.8486807564108596,5.4901831566368777,7.6358858992145233,0,null,null,7441.1258433399998,2847.7,6657.8,2499.9386394088324,1749.2,3648.2,2677.7236857100006,null,null,70.565282784660454,105.58393175474659,103.06835281079569,73.8593629860585,110.85737377179802,65.732115796516183,215.9522940385815,null,null,2.3474500247255503,3.1079588651179892,1.2630609734668825,6.5457620676548762,2.6160016062897684,2.7505690354891956,-1.7077911646586352,null,null,1.9550000000000001,3.66,2.92,4.18,3.79075888533814,1.57,2.12,null,null,11.520778487758202,5.0873611238637428,9.1263820066772166,14.948213606993528,15.235752108097826,9.5388662464381664,2.286653279785809,null,null,10.56,5.65,6.07,8.6,8.8000000000000007,7.06,6.27,null,null,4,"n.a.",5,7,"n.a.",6.25,"n.a.",null,null,12.248832748387661,7.5100229844768274,12.901375372748024,14.249349370059017,22.480960046968335,15.121675909007969,11.883545944689832,null,null,718.93726654333329,460.36166666666662,835.95833333333303,320.4087637134383,399.71873799240262,791.58333333333337,1370.0661808333334,3526.9681015825081,4897.0342824158424,null,null,1264.6792135750002,893.8950000000001,1464.7250000000001,757.63866712968229,560.61545593677738,1412.6666666666667,2169.5671064166663,6354.2200033081272,8523.7871097247935,null,null,-2827.2519017256186,-3626.752827308952,null,null,738.40419087000009,452.55000000000018,767.09999999999945,269.319031891333,442.44467562146997,829.9,1594.8113669999998,3499.7178983828053,5094.5292653828146,null,null,1344.2103272699997,915.08000000000084,1604.9000000000003,797.66830008050692,596.5607003009643,1590.9,2414.210865,6849.3193276514648,9263.5301926514658,null,null,-3349.6014292686668,-4169.0009272686693]
[null,null,"N",3.4431410651304986,0.75799593270474497,4.6307312162533103,4.7240968638348573,6.2944611064371863,4.1430754021748495,3.8194444444444455,null,null,2.8379730621270829,2.7113330763264618,2.9716210504239196,2.2567792659167445,3.2661654071052371,6.6629488562398906,10.396038422442642,null,null,70.411951609590616,90.899667570955046,62.239367502190639,76.005842186739841,97.048409486772258,97.258110799890886,88.215243422433588,null,null,-0.17090271691501532,0,0.29295880759910992,3.5359046398111702,5.2654569485915896,6.3239473651262683,0,null,null,7398.0345456100004,2747.7,6957.6,2383.4106976996054,1754.9,3542,3148.2979409499999,null,null,68.239359648146078,104.22988917347446,107.94972485796843,69.536208082678669,110.44094342326775,64.374015176560718,266.77768268683968,null,null,3.0034460505345075,3.1779155963302821,0.83079681623371637,6.3747536012130386,2.8671441521711718,2.9065058681394946,-1.608026755852844,null,null,1.855,3.96,2.93,4.16,3.4646361978997793,1.69,2.15,null,null,12.245238112881854,4.3887376146789059,8.6487676025540186,14.815981804397266,13.391560530559151,10.07933034173287,2.4374581939799316,null,null,10.47,5.18,6.07,8.5299999999999994,8.5,5.68,6.35,null,null,4,"n.a.",5,7,"n.a.",6.25,"n.a.",null,null,13.208663820386501,8.1171019584728619,11.953187365533546,13.723508226053728,21.874068722022024,15.238444749241165,-4.3446684991081614,null,null,718.59496717999991,459.26499999999993,835.51666666666642,323.67159110031918,400.17871728921256,781.54166666666663,1341.7389346666666,3518.7686089028648,4860.5075435695326,null,null,1264.6811940450002,899.43916666666689,1465.7583333333332,761.39202402219507,561.28997671185152,1407.6333333333332,2149.2692059999995,6360.1940281123816,8509.4632341123815,null,null,-2841.4254192095154,-3648.9556905428476,null,null,724.97717908999948,403.59999999999945,803,288.85412457257007,403.83811956880101,755.8,1369.2466300000001,3380.069423231369,4749.3160532313632,null,null,1318.4480819799999,927.39999999999964,1443.5000000000009,807.00860127015039,562.04594407102945,1415.5,2011.2317300000004,6473.902627321193,8485.1343573211925,null,null,-3093.8332040898094,-3735.8183040898075]
[null,null,"D",3.6795406730651412,0.78609081660964453,4.3874021481886034,4.9167327517843118,5.6748063186391358,3.8760382245243932,3.7370242214532876,null,null,2.9570043152822101,2.8269608543960723,3.1059705293542557,2.5211320956005032,3.3527510561127558,6.4629170922995529,9.1641303098467901,null,null,70.230680041166508,91.156747677210291,61.932366806798193,76.137407742410645,96.356493360117994,97.483713753861863,88.212479436528639,null,null,-0.16692475400134169,0,-0.39270705044374349,3.3478630343798441,4.9133741864135017,6.0601006379489926,0,null,null,7330.8633171600004,2720.7,7272.6,3055.9363093790512,1840,4386.5041908662597,2748.6520483199997,null,null,67.018715700381037,102.02968074801515,99.520485668955246,82.706719369155394,112.84486146522967,73.433376910943338,232.01845812774121,null,null,2.7203624829209763,3.1888419893558368,1.027516567840949,6.1222524565381571,2.8634456795500021,3.3250803886166604,-1.5684122748499005,null,null,1.8599999999999999,4,2.94,4.18,3.08,1.79,2.11,null,null,12.018243180905561,4.7664406313084884,8.9211893965817932,14.643295540438384,12.652400166572139,9.8039566675264727,2.4802868579052695,null,null,10.53,5.59,6.06,8.48,8.0299999999999994,7.17,6.31,null,null,3.75,"n.a.",5,7,"n.a.",6.25,"n.a.",null,null,13.086229132800042,7.9849470537860512,10.166199221924632,13.576858844290228,20.247758493291013,15.238610543426368,-8.6862357311441318,null,null,720.63498231666665,459.94166666666666,835.68333333333305,327.44879043828752,399.53038132293705,785.36666666666679,1313.669114,3528.6058207445581,4842.2749347445579,null,null,1257.3717810158334,895.62833333333344,1459.6250000000002,762.68996295340912,557.30220547234785,1400.1000000000001,2143.3555729999994,6332.7172827749237,8476.0728557749226,null,null,-2804.1114620303665,-3633.7979210303661,null,null,677.4082592600007,426.3100000000004,825.70000000000027,338.54368906562013,344.74582869069798,730.7,858.81192800000008,3343.4077770163203,4202.2197050163159,null,null,1191.7491827000017,789.59000000000015,1335.9000000000005,762.6916486145692,554.62739897547397,1388.1,1752.4022910000003,6022.6582302900351,7775.0605212900409,null,null,-2679.2504532737294,-3572.8408162737323]
[null,2014,"E",3.1040330797733393,0.84722350124320989,4.1394927536231805,5.9984214680347341,5.1922326714335245,2.8223672605397527,3.3723331039228013,null,null,3.3392128869301354,3.3006587830423033,3.4874966114645383,2.7374366430844272,3.8595031787089251,6.3467610869636735,8.0561428309747054,null,null,70.289556556184621,90.935483108473122,61.822578987097373,75.304292183204154,96.533732731463829,98.08646458388327,88.249704795128608,null,null,0.21653281790923695,0,-0.45172491808195159,3.1238670923439034,4.9340717145808313,5.6393497569968067,0,null,null,7258.3436738500004,2751.3,7164.6,2925.7112050424298,1874.4,3753.8264529553708,2346.1767065199997,null,null,68.699381693964042,102.76889195016234,99.602853777760842,79.974841100943195,112.12883509730503,69.099456168666521,194.38421274223074,null,null,3.3422232063031498,2.650322344991324,1.8441680438375303,4.8506180193596373,3.8243172150106512,4.0435100360267882,-1.1534354194406338,null,null,1.875,3.52,2.94,4.17,3.6302273824629938,1.46,2.1800000000000002,null,null,12.944175432885986,4.8417560040178973,9.2573019048447502,13.728108711839159,14.917278153774664,11.561329559101074,2.8224833555260815,null,null,10.07,5.73,6.06,8.51,8.8520728691260526,8.09,6.29,null,null,3.75,"n.a.",5,7,"n.a.",6.25,"n.a.",null,null,13.560347534824114,7.6440983298808884,10.817445566034278,13.514237457405166,19.762868220964357,12.104848584044836,10.917251818061136,null,null,720.23949201249991,453.76416666666665,836.2833333333333,324.24326124724104,402.76878047981768,790.0916666666667,1299.0811794166668,3527.3907004062257,4826.4718798228923,null,null,1255.9223003508334,896.51250000000016,1466.4833333333336,752.09333278555414,561.59174893794739,1404.7916666666667,2124.3110816666663,6337.3948820743344,8461.7059637410021,null,null,-2810.00418166811,-3635.2340839181102,null,null,673.94123162000005,404.7,835.4,341.1,433.87139433999994,733.60000000000014,921.51920499999994,3422.6126259599996,4344.1318309600001,null,null,1308.3624300500001,895.84,1547.8999999999999,680.2635423840469,573.01670223999997,1309.7,1967.6846409999971,6315.0826746740468,8282.7673156740439,null,null,-2892.4700487140467,-3938.6354847140437]
[null,null,"F",2.7396626608914247,0.61439706556625562,3.5040431266846426,5.7399453338539583,5.2528405814158781,2.8395604395603988,3.3538672142368378,null,null,3.4828749493339353,3.2913407573227018,3.8450671672763019,2.9149783729012477,4.593626978230291,6.485644132695394,7.4621921985683723,null,null,73.050280960779418,90.861344223554909,61.082445549120038,74.945646904232163,96.595239132818094,98.367098496987538,87.878785411577155,null,null,4.543432761484679,0,-0.88464885339885801,2.953713518373644,5.012456697821956,5.713179974292391,0,null,null,7275.1072810599999,2824.6,7163.9,3006.1140247603885,1816.2,3449.5470622487833,2140.5441688699998,null,null,72.235924194068375,102.44079352990244,101.45375757065314,79.247365042204592,106.56142995792506,67.032893930253607,173.62127295780755,null,null,3.6600639341401826,2.8481042654028421,2.4790885416666604,5.2014918759231961,4.0954227280460387,4.0358394597367484,-1.1164238410596157,null,null,1.9650000000000001,3.48,2.95,4.1100000000000003,3.3233665434587873,1.66,2.2000000000000002,null,null,13.237669841294544,5.332838133430549,9.9570572916666595,13.826425406203846,13.540095509043965,12.0233256246413,2.6376688741721721,null,null,10.15,5.98,6.07,8.4700000000000006,8.6497021245682202,7.34,6.08,null,null,3.75,"n.a.",5,7,"n.a.",6.25,"n.a.",null,null,16.916526704494128,7.5143346940759193,10.418699503741834,13.771693257651773,21.50804531009738,12.232219145772749,11.149579926724385,null,null,723.14375437000001,452.17750000000001,837.09166666666658,321.7313604110729,406.56363059402128,795.7166666666667,1272.0191094166669,3536.4245787084274,4808.443688125094,null,null,1255.16191549,896.47583333333341,1468.0500000000002,749.84001069507678,559.41616108618427,1387.4916666666668,2100.9521643333323,6316.4355872712613,8417.3877516045941,null,null,-2780.0110085628344,-3608.9440634795005,null,null,753.83116661999998,415.36999999999995,805.69999999999993,328.3,401.02076018000002,786.90000000000009,935.29241999999988,3491.1219268000004,4426.4143468000011,null,null,1183.5493982400001,834.84,1356.3000000000002,698.8598129219846,514.80034580999995,1187.0999999999999,1778.3198529999988,5775.4495569719829,7553.7694099719829,null,null,-2284.3276301719848,-3127.3550631719836]
[null,null,"M",3.2591887870732568,0.4108088369545268,3.2459983904140031,5.7864077669902825,5.1012817348377988,2.9865125240847448,3.3772324471711217,null,null,3.3839668744473972,2.9204331412695357,4.2140400069032555,2.9921822348635607,5.241139011966867,6.7192968634376422,7.480807304545908,null,null,76.010513219781174,90.823389069724939,60.839982407843728,74.861736958561067,97.106474341064839,98.121962357922371,87.678260910516855,null,null,9.8271340570615955,0,-1.0295711509725645,2.8690570907294251,5.1188877430416317,5.181599953160684,0,null,null,6785.6091915899997,2801.1,7110.7,3069.0782040609893,1858.9,3584.8739572163063,2070.0241558499997,null,null,68.381360111903277,102.6564382822647,100.60894711659618,77.295660290568208,108.53483621494691,68.206550413915195,170.8864051814931,null,null,3.2353645735254606,3.3354886807891733,2.1831370171488143,5.0796622613803315,3.7135799714422419,4.3146304957904915,-1.1387734216745673,null,null,1.9750000000000001,3.76,2.92,4.1100000000000003,3.2777717216382856,1.41,2.2000000000000002,null,null,12.968154573187102,5.2675515955996115,10.222189502858154,14.022209985315721,14.919247437416834,10.735708414176459,2.5854508672349521,null,null,10.35,5.7,6.08,8.42,7.8324688408574854,5.94,6.05,null,null,4.75,"n.a.",4.75,7,"n.a.",6.25,"n.a.",null,null,18.457443102095073,8.2316310707808213,10.536280308526313,13.443483449635018,19.868610788388153,13.535265897415361,11.335766930985635,null,null,725.27637776333347,454.4883333333334,841.60833333333312,319.8532575548133,413.17566146638461,799.44166666666672,1241.7298379166668,3553.8436301178644,4795.5734680345313,null,null,1268.8048979208331,902.32333333333338,1478.8416666666669,759.12323612288571,565.20529722354365,1400.1333333333332,2085.7839469166661,6374.4317646005975,8460.2157115172631,null,null,-2820.5881344827321,-3664.6422434827327,null,null,817.72698624999998,476.68000000000006,1036.3,358.8,472.88364557000011,859.09999999999991,969.60110599999985,4021.4906318200001,4991.0917378199993,null,null,1437.2365374599997,895.04000000000019,1475.4999999999998,790.88017226810598,537.04076565000003,1479.1000000000001,1745.6580310000031,6614.7974753781091,8360.4555063781117,null,null,-2593.3068435581063,-3369.3637685581107]
[null,null,"A",3.6792927951940326,0.56959118052366065,3.2672737011248119,5.9666795815575258,4.9007181576330803,3.4878625887301609,3.5291440217391536,null,null,3.3207335423493523,2.7479642898980119,4.5272991446732975,2.9395187800245455,5.4758534348412082,6.8570379181801604,7.8404385586308685,null,null,75.032748588341363,91.424930598872706,60.992879967771202,74.859217431315386,96.856055217893527,97.876845200828598,87.414878998526248,null,null,9.4483545877012833,0,-0.60938005889516833,2.7505884383069859,5.1060844369380973,5.0113634425993858,0,null,null,7775.8436125999997,2841.1,7214.9,3161.2609550678944,1916,5161.981456020425,2258.3106731999997,null,null,78.503087337660361,101.69179700726671,103.56388966180276,78.73674893022816,112.58873414912513,96.154288753213351,178.74878048472891,null,null,2.9135106185311384,3.2817164519959761,2.1620850622406516,4.7876563071298079,4.4220102821174825,3.7802862223727791,-1.3224720774776804,null,null,1.97,3.87,2.88,4.0599999999999996,3.987221648857421,1.53,2.16,null,null,12.770830942068049,4.9820316068329173,10.209164937759322,13.799923217550287,15.76619501875331,11.15313150986537,2.4252648874732454,null,null,10.29,5.58,6.06,8.4499999999999993,8.6483290360719263,5.94,6.04,null,null,4.75,"n.a.",4.75,7,"n.a.",6.25,"n.a.",null,null,18.532813296251561,8.7484713668120726,10.753875706339301,13.920855026008883,21.170150134620492,14.077410651755006,11.085122456640949,null,null,726.26817506999998,448.44666666666672,845.84166666666658,320.4979921284567,412.42918411676237,795.97500000000002,1247.68283675,3549.4586846485522,4797.141521398552,null,null,1271.2768686074999,899.27916666666681,1471.4416666666668,757.13215062150221,561.43086931369328,1414.4250000000002,2091.4320843333326,6374.9857218760299,8466.4178062093633,null,null,-2825.5270372274772,-3669.2762848108105,null,null,776.65667071000007,424.03,939.6,362.4,418.21638459999997,790.8,1335.112852,3711.7030553099994,5046.8159073099978,null,null,1307.6013065999998,922.77999999999975,1521.2999999999997,771.34086424329325,539.17637565000007,1540.1,2256.3138809999946,6602.2985464932935,8858.6124274932881,null,null,-2890.5954911832914,-3811.7965201832867]
[null,null,"M",4.2102988382663771,0.94764927776244468,3.2229344729344742,6.2210200927356896,4.8473220695518888,3.696224758560144,3.2476319350473597,null,null,3.0522268075257797,2.3522491686590024,4.7614268887868603,2.7295849305683482,5.2438011865264862,6.8098868677891877,7.9013259326565439,null,null,75.557169067472259,91.390202170930564,60.876936158933162,74.787302991038828,96.661730542709932,98.190844370215331,87.463517642168867,null,null,10.561881757533905,0,-0.66963223596980437,2.5653854986426459,5.1408943522645183,5.0579674525711456,0,null,null,7704.4670957600001,2816.4,7174.4,3211.5809867864473,1931.6,4598.0900066988679,2247.5061663799997,null,null,77.674198193046337,104.27291632805613,106.8620823697711,82.447734470870998,114.09286313854292,84.341376832753795,179.37036534540061,null,null,2.5330520986514196,2.9543538096974102,2.2156563739865436,4.4426045834849166,3.886932626571888,3.4174583015832662,-1.082477064220182,null,null,2.0750000000000002,3.93,2.88,4.0599999999999996,3.582997096907107,1.41,2.13,null,null,11.956304991573807,4.7473623769595328,10.275880627910988,13.621578755911258,13.869573363027602,9.5218271103208831,2.7142201834862401,null,null,9.93,5.74,6.06,8.48,8.7371739596041031,6.2,6.05,null,null,5.25,"n.a.",4.75,7,"n.a.",6.25,"n.a.",null,null,18.440227565709844,8.5696183310365548,11.171519390356387,13.820702568645626,22.453124904006149,13.485198834043665,11.262447187065284,null,null,731.5474544266666,445.71499999999997,844.27499999999975,325.43651822631244,416.50764355054616,794.23333333333346,1221.998947,3557.7149495368581,4779.7138965368576,null,null,1283.6753525208335,902.4725000000002,1477.4416666666668,764.43722849958738,564.62534683298497,1428.1083333333336,2075.2130077499992,6420.7604278534054,8495.9734356034041,null,null,-2863.0454783165483,-3716.2595390665469,null,null,843.42232978999982,490.24999999999977,946.5,412.4,442.57206303999999,891.50000000000011,1107.013461,4026.6443928299996,5133.6578538299982,null,null,1372.2265225500005,973.11999999999989,1668.1999999999998,872.18026185558938,602.01928771000007,1574.5,1987.00476,7062.2460721155876,9049.250832115591,null,null,-3035.6016792855899,-3915.5929782855892]
[null,null,"J",4.5891347708327457,1.138554769993581,3.1321889930985662,6.2331666025394563,6.0528388698858784,3.6773740565209732,3.3604180714767362,null,null,2.7754083120086133,2.160856366484901,4.8054146832789861,2.368882634386694,4.8282292110595018,6.5773877999536197,7.3363123832471757,null,null,75.236209079630044,91.15370326589526,61.184357234669797,74.914608010037085,96.180687421103116,98.733885772913879,87.188548375781565,null,null,10.425610983858007,0,-0.14119009670625096,2.6491297558054452,5.2457950663664006,4.5817194290758314,0,null,null,7494.0057608999996,2660.2,7096.4,3172.9837429338422,1944.4,4666.5868257044622,2342.8661294499998,null,null,75.033481572145192,103.96397332938349,101.6258509039103,79.877551713247001,113.44811748732486,80.146515619513281,189.30646638883479,null,null,2.2572758005314717,2.8490077167498775,2.2958991077556625,4.3647700108656098,2.8899220337058344,2.790026242275462,-1.1807402623243857,null,null,2.1550000000000002,4.0199999999999996,2.87,4.08,3.2976456399744682,1.67,2.14,null,null,11.512539285796965,4.2233599636858745,10.382608098833218,13.505041651575496,13.651876945653461,8.8376331160585817,2.6214889404273785,null,null,9.86,5.41,6.05,8.4700000000000006,8.7552409420964779,6.09,6.07,null,null,5.25,"n.a.",4.5,7,"n.a.",6.25,"n.a.",null,null,18.019801212731366,7.7580447763694993,10.413653099562614,14.512960361601234,22.307323844993654,12.775932108073151,10.304364312773039,null,null,739.2320785408333,447.03666666666669,851.21666666666658,331.22892874440873,422.39804893138597,800.96666666666681,1236.8452528333335,3592.079056216628,4828.9243090499594,null,null,1285.908527325,894.81,1482.4583333333337,772.76285969051276,567.04477875068892,1424.5500000000002,2080.9570379999991,6427.5344990995354,8508.491537099535,null,null,-2835.4554428829074,-3679.5672280495733,null,null,792.81548695000038,471.69000000000005,891.3,389.5,461.50967149999997,855.7,1311.7710199999999,3862.5151584500018,5174.2861784499983,null,null,1197.1898886399999,864.64999999999964,1442.7,787.45863861784983,601.75007239999991,1360.1,2148.4065799999989,6253.8485996578529,8402.2551796578482,null,null,-2391.3334412078493,-3227.9690012078463]
[null,null,"J",5.1860001486131093,1.8293804008089676,3.4139026111503261,6.5900383141762413,6.9365963772630739,3.4103794156127263,2.1860121049092203,null,null,2.8292935991196861,1.594010099138959,4.6159593383636626,1.9896252268191215,4.5076249221083762,6.4167536551043085,6.3320879072505649,null,null,73.031903459386129,90.74551720017152,60.643714899476727,74.59293885216357,96.289923895477699,98.730444707756106,88.052350416446103,null,null,8.1035938991446805,0,-0.63110183543209863,2.486249083148226,5.1776131850202454,3.7272386697432802,0,null,null,7338.8224336200001,2697.5,7132.7,3148.2774924910527,1893.3,4538.0680927097028,2241.9406929100001,null,null,73.146186100125064,102.52552971206956,99.02878079806581,82.695540457170907,115.2226013469021,79.006215103559313,178.42977724168071,null,null,1.7245639617667397,2.0432409497156314,1.9785515652989762,3.8840043134435702,2.0332755574637527,2.1367493252361753,-4.5027791927119962E-2,null,null,2.0300000000000002,3.91,2.89,4.07,3.1511898271855556,1.59,2.14,null,null,10.917802592703978,4.0564123860251016,10.110920412863592,13.031200575125814,11.239635954553693,9.5441295546558784,3.8008997661081882,null,null,10.27,5.96,6.06,8.5500000000000007,8.8135420345241116,6.11,6.07,null,null,5.25,"n.a.",4.5,7,"n.a.",6.25,"n.a.",null,null,18.675937949737719,7.0833959268074898,10.286092499283539,13.428671827665939,22.748009145778546,14.300843755879233,10.228862725009581,null,null,744.67737724416656,446.88083333333333,861.2833333333333,335.68636640853407,426.69775509502955,801.94166666666672,1226.9944818333333,3617.1673320810637,4844.1618139143966,null,null,1283.7582652825001,892.2700000000001,1489.791666666667,771.80269728644146,566.89131128917677,1430.4583333333337,2058.8183471666657,6434.9722738581186,8493.7906210247838,null,null,-2817.8049417770549,-3649.6288071103877,null,null,747.93768745000034,489.41000000000031,948.6,361.85023782248754,462.38365571000003,864.5,1409.091942,3874.6815809824911,5283.7735229824939,null,null,1256.7564527199997,934.57000000000062,1620.3,792.97155042683426,584.54760909000004,1520.8000000000002,2191.3331039999994,6709.9456122368283,8901.2787162368259,null,null,-2835.2640312543481,-3617.5051932543502]
[null,null,"A",5.4857470660008785,1.9932029025443203,3.6997885835095086,6.335877862595428,6.7292712327953934,3.1279785113941574,2.0791415157612425,null,null,2.9635011605505817,0.48628632867395344,4.3745292545371512,1.6973009159048251,4.4554930977663654,6.4987091587958288,5.3174404428552364,null,null,72.935426988357989,90.510380275295915,60.623594205272887,74.772356688597739,96.243216711059375,98.38560668117492,87.893999487289591,null,null,8.3197710015542121,0,-1.208350408477818,2.8824291328873706,5.0450771464176727,2.6502242152466398,0,null,null,7342.8691060199999,2567.3000000000002,7248.1,3153.0439987387831,2018.6,4249.4965935608752,2458.3312767800003,null,null,72.746918649949279,101.77948584173733,98.096372322605291,83.498866388261007,118.94837465577169,76.484728394753589,191.58180734447603,null,null,1.5303043102013649,1.6832465778097969,1.6974108053007186,4.0570710696338761,2.4753059049991029,2.0867484456393912,0.23968088116621777,null,null,1.9950000000000001,3.71,2.9,4.08,3.259807114781601,1.25,2.3238057016331295,null,null,10.223421868787234,3.634356988472621,9.6819979612640221,13.357788944723611,11.807719486553735,9.8828869097630694,3.9095729303547877,null,null,9.7899999999999991,5.7,6.06,8.59,8.937041737786096,5.88,6.07,null,null,5.25,"n.a.",4.5,7,"n.a.",6.25,"n.a.",null,null,18.912349557529275,6.9231872000107941,8.3244703010580743,13.577403830823576,22.724680010827527,13.9890171952622,11.102064261542388,null,null,747.59410199416664,443.07499999999999,867.08333333333337,336.99825188762412,427.52490675678541,805.98333333333323,1217.3039364166668,3628.2589273052436,4845.5628637219088,null,null,1287.0926205149999,880.7791666666667,1496.0833333333337,775.58095279830195,565.3498252215735,1435.6499999999999,2045.4064366666653,6440.5358985348757,8485.9423352015383,null,null,-2812.2769712296335,-3640.3794714796318,null,null,724.92948276999959,435.7199999999998,874,302.95518771565958,446.80092516999997,842.8,1160.9966349999997,3627.2055956556578,4788.202230655661,null,null,1317.4059273099992,767.76000000000022,1462.6999999999998,812.39019750839088,589.67313337000007,1486.5,2056.5807309999905,6436.4292581883929,8493.0099891883801,null,null,-2809.223662532735,-3704.8077585327264]
[null,null,"S",5.2030039783020205,1.696313955620754,3.451910408432151,6.1263318112633049,6.4946284249925217,2.8283176683625091,2.3458445040212177,null,null,3.1678381340464403,9.6474029860692229E-2,4.293285899318029,1.5660185481489515,4.6762463352519479,6.8590070649112018,4.6623783592654924,null,null,73.052645452344024,90.622956765707855,59.939514724121452,75.109392300257241,96.559344569658109,98.559326305676279,87.612471697772222,null,null,7.904128485764085,0,-2.7918580057184124,3.1156706459651695,4.7992831161460252,2.4336461435328394,0,null,null,7195.0737996799999,3026.5,7149.2,3028.3087496503927,2001.9,4023.3482828687684,3393.0334561599998,null,null,71.098251798859152,102.43189877907541,96.370820502866295,82.205914054414038,120.46892847759236,75.373227874928801,272.85669528352116,null,null,1.8507038279054704,2.2652601208186871,1.9604177279673938,4.1965722481176178,1.8973781389538968,2.8024209643605853,-0.50165283063914934,null,null,1.9950000000000001,4,2.91,4.07,3.1332034575731758,1.1200000000000001,1.832423678025253,null,null,10.899875087277007,3.91723739969345,9.9351375445746264,13.741799928289725,11.072734102998506,9.6001593291404586,3.6485658153243978,null,null,9.98,5.68,6.04,8.6999999999999993,8.6048569535009278,6.2,6.08,null,null,5.25,"n.a.",4.5,7,"n.a.",6.25,"n.a.",null,null,18.363441277265569,7.513795285795144,7.9394048259235239,13.365470772604194,21.880076677301563,13.584334016463263,11.852208644893135,null,null,750.60695810833329,443.7949999999999,879.72500000000002,336.5738594669661,430.45093894508068,815,1195.8912709166666,3656.1517565203808,4852.0430274370465,null,null,1294.9362022949999,880.31916666666666,1501.8000000000002,779.77788766146466,565.44149049062241,1439.4416666666668,2063.7909170833314,6461.7164137804211,8525.5073308637529,null,null,-2805.5646572600403,-3673.4643034267065,null,null,735.23282591999941,435.23,883.49999999999989,284.86404253592264,435.12414335,838.7,1377.4266849999999,3612.6510118059232,4990.0776968059145,null,null,1304.4983720200005,843.15999999999985,1542.4,783.62106174625478,530.03955062,1420.9,2456.3445379999989,6424.6189843862667,8880.9635223862715,null,null,-2811.9679725803289,-3890.8858255803279]
[null,null,"O",5.7025699091009443,1.8914700211183566,3.6373220875065884,6.3093880653743692,6.6820460918601778,2.8840341939383509,2.1037483266398893,null,null,3.562364105288744,0.16992674327681254,4.4570873948743239,1.6335883595861682,5.0224253370778387,7.3190210306325953,4.5778320460895134,null,null,73.192617879965098,90.5560322952131,59.206744078562373,75.317552919836828,96.821963839813634,98.968278801618297,87.685286457274202,null,null,8.0718428823876742,0,-4.0140914205450784,3.6901158352918073,4.7365639839323164,3.2159098942010944,0,null,null,7081.9497149600002,2902.3,7097.5,3018.38467049055,2042.1,4214.4045314446339,3416.7129762899995,null,null,69.160187865646989,100.56211251466955,95.225415763414716,83.246838429204644,122.59127385256951,74.256989443886923,264.21301258489774,null,null,1.4166449237580248,2.089016851401277,1.7876551373346912,3.9701215588130259,1.0499921270427357,3.9811481326059552,9.4268501340609295E-2,null,null,2.0049999999999999,4.0199999999999996,2.88,4.07,1.6764860763201166,1.47,2.2000000000000002,null,null,10.385206433806776,3.806530593854192,9.7384587995930847,13.687043260636409,8.9532797952461962,10.308660511959712,3.8943248788866129,null,null,9.77,5.77,6.01,8.73,9.1931244131397474,6.38,6.08,null,null,5.25,"n.a.",4.5,7,"n.a.",6.25,"n.a.",null,null,18.657382714563163,6.2157862944486997,7.80548995407917,11.694485615274019,19.675782213652294,15.714664485400176,12.409416808922646,null,null,753.54945869666665,441.67499999999995,889.40833333333342,339.15580486887416,430.09189261329158,818.36666666666667,1191.3496108333334,3672.247156178832,4863.5967670121645,null,null,1294.6182377274997,878.39583333333337,1499.3250000000005,779.03927281914582,570.94577502637537,1438.3666666666668,2066.731110499999,6460.6907855730215,8527.4218960730195,null,null,-2788.4436293941885,-3663.8251290608546,null,null,773.71419793000041,427.10999999999967,883.30000000000007,300.30237671422998,438.13611964000006,870.3,1540.3114459999999,3692.8626942842238,5233.1741402842381,null,null,1340.3947524599996,892,1575.2,788.80492197267995,662.61211473000003,1578,2449.4931860000079,6837.0117891626724,9286.5049751626793,null,null,-3144.1490948784485,-4053.3308348784558]
[null,null,"N",5.8861964728978622,1.2844036697247758,3.3761917257062941,6.4063684609552602,7.6707930200482384,2.675181221953757,1.6391973244147207,null,null,3.8648368246395446,-0.24001014828511849,4.7386644835436975,1.8902372387148469,5.2120444686585099,7.6613070654469091,5.0708104688586682,null,null,72.472767457065899,90.85221056576809,58.798765792813072,75.139291494249818,95.58851402323981,99.419249363995405,87.861414238185787,null,null,7.6594192866525042,0,-3.5265544781100342,3.913497445993293,4.7609481965252307,3.6798473893690682,0,null,null,7252.1965410499997,2766.3,7053.5,3066.9136443693001,1999.9,4208.1044533984232,3929.1359555600002,null,null,68.420754326800733,99.526204465673132,95.275108695118305,83.941997023633391,120.52416540746822,72.018701868038917,298.53350137229751,null,null,1.2407694023067617,2.8490036231884006,2.0447728234199123,3.8377698610616404,0.89294637744071947,4.7478063540090645,0.57143571660789294,null,null,1.99,4.17,2.91,4.03,1.4779276643903798,1.51,2.2200000000000002,null,null,10.023783912021809,4.0732789855072404,9.9866401556815241,13.451856074100471,9.2056576024198637,11.429070432005366,4.3691831424160181,null,null,9.8699999999999992,5.41,6.02,8.7200000000000006,8.8734313551955513,7.02,6.08,null,null,5.25,"n.a.",4,7,"n.a.",6.25,"n.a.",null,null,18.191490178279125,5.3824459775601019,8.2248070651267611,11.824087719207533,20.967918216604264,16.456437494943433,31.137047482721659,null,null,755.74072974000001,443.56333333333333,892.42500000000007,337.36793866457577,428.87945696505818,816.52500000000009,1166.542095,3674.5014587029673,4841.0435537029662,null,null,1291.2067745749998,873.5383333333333,1508.708333333333,775.23611185568723,576.09907298962287,1438.5916666666665,2055.744708249998,6463.3802927536426,8519.125001003642,null,null,-2788.8788340506762,-3678.0814473006744,null,null,751.27243160999933,426.26000000000022,839.19999999999993,267.39973012098972,389.28889178999998,733.7,1071.5564400000001,3407.1210535209902,4478.6774935209833,null,null,1277.5105241500009,869.10999999999876,1556.1,761.37066970864726,623.88551962999998,1418.2000000000003,1879.3949029999876,6506.1767134886468,8385.5716164886398,null,null,-3099.0556599676602,-3906.894122967642]
[null,null,"D",5.127185268704018,0.47715177096714623,2.947331705615623,5.8201058201058107,6.4796923391486985,1.5819791935345335,1.007019726376557,null,null,3.9371529662429454,-0.5555387645572859,4.886802296088903,2.2262325532770482,5.0775858532822822,7.8389662675168141,5.7861960194262512,null,null,72.119800309036961,91.31639410485262,58.722924952111242,75.519192844573752,95.551694769427627,100.0809031649051,87.903409337918617,null,null,7.2544773441386061,0,-3.0209670408671845,4.279801850197841,4.9051835323080777,3.6116459582378662,0,null,null,7211.4158651300004,2661.2,7333.4,3516.4834622255066,2153.1999999999998,4650.4486369269598,3969.8091757400002,null,null,67.562552295822115,99.133863870117182,93.108592957703152,85.486224566856862,117.84863909039451,69.917130498146236,295.60101374910232,null,null,1.9717209454413611,3.8843141552511455,2.4407318312722373,4.4319500000000094,1.7307145351728779,6.8595048666948655,1.1711861975812008,null,null,1.9750000000000001,4.38,2.93,4.07,2.3846510474335099,1.53,2.19,null,null,11.303274886437443,5.2079981735159855,10.386542436049469,14.014250000000008,10.574557395533191,12.46089208633092,5.0224036778492396,null,null,9.85,5.71,5.98,8.65,8.7287822913177706,7.04,6.08,null,null,5.25,"n.a.",4,7,"n.a.",6.25,"n.a.",null,null,17.699149245839529,4.607699517009789,8.5450118224117855,11.512774726954579,20.597010544536044,19.50387132761271,38.904317287157419,null,null,761.32094459583334,441.79416666666657,900.29166666666686,339.38115969107946,432.97788835166665,824.9083333333333,1165.4758718333335,3700.6741593052461,4866.1500311385798,null,null,1296.8077447574999,876.18249999999989,1523.4833333333333,775.90356321831939,578.8135360716667,1439.4250000000002,2064.5656675833316,6490.6156773808179,8555.1813449641504,null,null,-2789.9415180755732,-3689.0313138255715,null,null,744.37083753000115,405.07999999999902,920.1,362.70234138366413,393.92700533000004,831.3,846.0172500000001,3657.4801842436646,4503.497434243669,null,null,1258.9608248900001,821.31999999999971,1513.2,770.70106496615517,587.20095595999999,1398.1,1858.2538030000048,6349.4828458161355,8207.7366488161351,null,null,-2692.0026615724892,-3704.2392145724953]
[null,2015,"E",4.3859265811975288,-0.74879006483426835,2.3223449595546759,3.8346984363365428,5.4492658379268457,1.1580030880082688,0.86970705725709541,null,null,3.9976273479274322,-0.10724652806040524,4.6926532251580086,2.5853049062812921,4.5884237934839822,7.7392605407780506,6.4165379106639744,null,null,71.928804002710748,91.410869773669788,58.696006144170688,75.792984409712517,95.804128647328142,100.348378918281,87.28764458059878,null,null,7.0665265655937812,0,-2.6285482272908345,4.7493919385957337,4.8934605174955434,3.7292540558699918,0,null,null,7323.6687877000004,2672.6,7656,3407.6230623486281,2157.6,4369.8,3957.7766050899995,null,null,68.803001206105165,98.506806943465648,101.11261165666197,84.995025802949101,118.42733582466975,73.67405473804196,312.54423122365955,null,null,2.6958360297865629,5.026427454227627,3.0566686501189979,6.3324704195052162,2.9146797647675968,5.794891885016499,1.289081708153285,null,null,1.95,4.24,2.94,4.0999999999999996,3.28,1.79,2.17,null,null,11.873318391403684,6.4168387156132187,11.021693301598086,16.319498027967033,11.37982498802463,12.823500381582258,5.3041622691596553,null,null,9.5500000000000007,5.62,5.96,8.68,9.08,7.17,6.22,null,null,5.25,"n.a.",4,7,"n.a.",6.25,"n.a.",null,null,16.680450072164057,5.169481504845308,8.7780408035045276,10.939927708118535,20.518058031041299,18.393849061736823,14.077215555055588,null,null,763.69444888750013,443.54083333333324,903.94166666666672,338.51159638696373,429.51955958958337,821.41666666666663,1180.1143381666668,3700.624771530714,4880.7391096973797,null,null,1282.9471398566666,872.9649999999998,1507.7333333333336,780.25084998680552,573.67591407666669,1435.125,2076.4710520833319,6452.6972372534701,8529.1682893368034,null,null,-2752.0724657227584,-3648.4291796394232,null,null,702.42328311999995,425.66000000000008,879.2,330.6652403506111,392.37144919500003,691.7,1097.180801,3422.019972665611,4519.2007736656115,null,null,1142.03517124,857.23,1358.9,732.4309836058801,511.36523830000004,1258.0999999999999,2110.5492549999999,5860.0613931458793,7970.6106481458792,null,null,-2438.0414204802692,-3451.4098744802691]
[null,null,"F",3.5270960116658623,-1.0572366022602959,2.4392361111111174,3.6558345642540533,5.5092102810453287,1.0172679090443146,-0.44933774834437845,null,null,4.3083369388001804,0.5739821875240374,4.1841111076315611,2.9077079975870479,3.900472479952164,7.4655825543147429,6.8241320584040306,null,null,72.146043099886128,91.752305220644772,58.673588989430122,76.089695475120578,95.612038308991188,101.04533826193121,88.198612880210732,null,null,2.3346705320820891,0,-1.5148600371581615,5.3298154821087271,4.5262487548145725,3.8580529864342705,0,null,null,7255.1285616499999,2666.7,7625.4,3477.8266616433898,2169.4,4575.7,4053.25072907,null,null,68.418103079881348,99.5268304808056,97.485743074460871,82.879555371271636,114.07312522972923,77.510893599556766,310.08063107940063,null,null,3.4994741743030198,5.3336256448047124,2.9390729599186449,6.4677164232276541,3.4106070133024069,6.3184564610306841,2.6612959556683586,null,null,1.92,4.22,2.9,4.08,3.32043,1.57,2.2000000000000002,null,null,12.762749557705408,6.9507221812822371,10.777866282518424,16.578097613110092,10.708897045445708,14.326988237285232,6.6994408650791879,null,null,9.91,5.82,5.94,8.6,8.9786240588999995,5.14,6.22,null,null,4.75,"n.a.",3.5,6.75,"n.a.",6.25,"n.a.",null,null,12.919730092329583,5.2538115211970382,9.1821265877380718,11.310195411205925,20.051230403604549,17.670310205801918,14.027674707531013,null,null,762.96957322750006,448.96083333333326,910.55833333333351,342.87362405160678,428.48498027041632,818.33333333333337,1172.24486475,3712.1806775495238,4884.425542299522,null,null,1279.0848659574999,870.64333333333309,1502.5249999999999,788.70994940279843,577.37668328749999,1437.4833333333333,2061.6044126666657,6455.8231653144639,8517.4275779811305,null,null,-2743.642487764942,-3633.0020356816071,null,null,745.13265869999987,480.41000000000008,885.1,380.64433197571651,388.60580834999604,749.90000000000009,840.85873900000013,3629.7927990257131,4470.6515380257124,null,null,1137.2021114500001,806.98,1293.8,800.36900591390008,559.20957634000001,1215.4000000000001,1599.9201800000001,5812.9606937039007,7412.8808737039017,null,null,-2183.1678946781867,-2942.2293356781861]
[null,null,"M",3.0463139339173573,-0.80916446949722765,2.4250822795773468,3.7444933920705017,5.9242221154388943,0.63780933752872937,0,null,null,4.9163673459689141,1.2231763149638639,3.6133271113866896,3.1367245633795635,3.3535748872621438,7.2801501059958769,7.105447771419378,null,null,71.75976654770065,91.544122019853404,58.584603717937497,75.991770644886728,95.787794584561894,100.964001290442,87.658944263477736,null,null,-2.6949220835413348,0,-1.3501499446617302,5.3337170243737706,4.5088243564176915,3.5755371655471748,0,null,null,8341.9202438100001,2617.5,7770.3,3583.9203274996353,2222.1999999999998,4797.8,4741.4129657599997,null,null,77.704080610033898,97.369081829087961,99.138944402531536,82.341474316300094,115.13209560214779,79.411575902641701,368.67019090437026,null,null,3.9338486854388921,5.3020669110907432,2.9532978183663077,6.0779193205944626,2.4129868650223774,6.4609819165117166,2.12,null,null,1.74,4.45,2.92,4.05,3.96,1.56,2.12,null,null,12.852168661341631,6.8848744271310727,10.685778792491115,16.314607218683634,9.3391830865296708,15.01641456819331,6.16,null,null,9.64,6.02,5.94,8.5,8.0500000000000007,6.34,6.16,null,null,4.5,"n.a.",3.5,6.5,"n.a.",6.25,"n.a.",null,null,12.049695105999024,4.3523576565786426,9.7802627751741866,11.216963632970312,19.978461103056677,16.428780290331812,13.835193778527977,null,null,765.46973104333335,453.33999999999986,907.95000000000016,349.78940505727115,428.31822517124959,815.42500000000007,1185.2906303333334,3720.2923612718546,4905.5829916051871,null,null,1261.9204430008333,868.55583333333323,1507.2416666666668,795.9207733015146,581.23643629583341,1436,2082.9344223333319,6450.8751525981797,8533.8095749315125,null,null,-2730.582791326327,-3628.226583326325,null,null,847.72888004000004,529.22999999999979,1005,441.78937206797332,470.88258437999991,824.19999999999993,1126.1502929999999,4118.8308364879722,5244.9811294879764,null,null,1231.2634619799999,869.99000000000024,1532.1,877.41005905269992,583.35780175000002,1461.3,2001.6181469999999,6555.4213227827004,8557.0394697826996,null,null,-2436.5904862947264,-3312.0583402947268]
[null,null,"A",1.8050494903583385,-0.32885722115648069,2.5760719225449416,3.5831809872029297,5.6685386031132463,-4.2340587687331697E-2,0,null,null,5.7032123498224747,1.71180763214661,3.29606306976387,3.3001808077808685,3.2066116573735934,7.3216821262809653,7.0785072306695724,null,null,71.723546286556797,91.63115601239393,59.055882726389449,76.246115106288755,96.002689204463351,101.41597504907919,87.323940435026586,null,null,-2.5835600832160268,0,-0.57808474525879705,5.6121095492427298,4.846601729930569,3.6798886569241422,0,null,null,8444.1724583100004,2739.6,7721.3,3649.1838767120794,2264.4,4623.8,4231.2672330100004,null,null,78.118463224647769,98.429390852275091,102.44089972858576,84.636655173603501,119.82029020613498,77.790152227284921,329.60079964358448,null,null,5.201068646544031,4.814690679131151,2.7822551828754523,6.3203494528768047,3.1017418219135195,6.9352770247373501,2.19,null,null,1.7349999999999999,4.47,2.93,4.09,3.19,1.33,2.19,null,null,14.002203801287582,6.219309870772614,10.444860947244237,16.505400635368861,11.535625042838035,15.718996103015897,6.22,null,null,9.48,5.87,5.93,8.52,8.8699999999999992,6.79,6.22,null,null,4,"n.a.",3.5,6.5,"n.a.",5.75,"n.a.",null,null,12.045810898516752,3.5996093655328298,9.7132518642700774,10.998723963212221,19.432255953703393,16.096374841323268,13.320524239285092,null,null,765.85987884833332,453.6749999999999,905.86666666666667,353.00349379529763,426.45549220254958,819.45833333333348,1160.2945385,3724.3188648461801,4884.6134033461803,null,null,1256.8247464958333,859.98166666666646,1499.675,797.75746751435815,579.65042447166672,1418.7083333333333,2040.5149770833323,6412.5976384818559,8453.1126155651891,null,null,-2688.2787736356777,-3568.4992122190101,null,null,781.33844436999993,428.04999999999995,914.59999999999991,400.96906485631712,395.86358897560001,839.19999999999993,1035.15975,3760.0210982019162,4795.1808482019114,null,null,1246.4529485400003,819.88999999999987,1430.5,793.38119479741533,520.14423376000002,1332.6,1747.280538,6142.9683770974116,7890.2489150974106,null,null,-2382.947278895499,-3095.0680668954992]
[null,null,"M",0.97250322824646762,-0.35545023696682515,2.5530446782818763,3.4921789741724352,5.2210601157111061,0.22860045720094072,0.35085190039319236,null,null,6.4719125511518856,1.7167955882226753,3.435123196352369,3.4865542050263878,3.5741922183612149,7.4624284593187262,6.9462648704777239,null,null,72.275206084565681,91.748338787544469,58.923686415585543,76.166160537982861,96.286413305156827,101.6036842442084,87.188257269638299,null,null,-3.4472465296413595,0,-0.77215478311306174,5.3633576958517493,4.7758024600819589,3.6759460285792924,0,null,null,8309.7627848400007,2798.2,7649.8,3754.532509567844,2340.5,4925.9654378229834,4143.3153343599997,null,null,76.304912098592609,101.25635023363648,97.987587610573243,88.713528243128394,121.24863455208626,78.385439146867171,315.28332358909262,null,null,5.8704068753792669,4.7924851367419743,2.8638402018502882,6.2495746924428737,3.1616020873344888,5.8979168778509603,1.8327179737669983,null,null,1.635,4.42,3,4.0599999999999996,3.63,1.7,2.19,null,null,14.744109827702918,6.2175505350772893,10.391651808242214,17.158611599297,11.75508303341266,14.248826659908739,5.8286980018989656,null,null,9.39,5.84,5.92,8.57,8.49,7.18,6.2,null,null,3.75,"n.a.",3.5,6.5,"n.a.",5.25,"n.a.",null,null,11.961383860509777,3.537782680040169,9.9093286823153548,10.550726719638703,18.83540023820278,17.192363549562661,12.864878066929819,null,null,766.1365298441666,454.42083333333329,910.14166666666654,349.95090461803733,423.73664556171633,813.4,1146.7640900833333,3717.7865800239197,4864.5506701072545,null,null,1242.0720865283336,852.44833333333315,1489.3416666666665,795.17777963534593,581.67615908999994,1409.2583333333332,2013.7485544999993,6369.9743585870119,8383.722913087011,null,null,-2652.1877785630918,-3519.1722429797578,null,null,846.74214173999985,499.20000000000027,997.8,375.76892987287624,409.94590334999998,818.80000000000007,944.64807999999994,3948.2569749628747,4892.9050549628773,null,null,1195.1946029400001,882.72000000000025,1544.2000000000003,841.22400730744403,626.32810312999845,1461.1,1665.8076890000002,6550.7667133774485,8216.5744023774459,null,null,-2602.5097384145683,-3323.6693474145686]
[null,null,"J",1.0205076673946956,-0.82614616432138965,2.3850377487988994,3.6218761318362906,3.8222189581524764,0.61796326081439501,0,null,null,6.9654223396033625,1.6345551331088872,4.0094049971858992,3.7682092652668753,4.3516994807482314,7.713181363510861,6.7415399670874567,null,null,72.54293358794466,92.078089222803186,58.623523967870732,75.904545397927436,97.050639858150703,101.5915791204791,87.345114429999114,null,null,-2.7703807407262753,0,-2.0760681852590306,4.8029608255845266,4.573504364222317,3.3446104104256595,0,null,null,8270.9554906800004,2773.4,7717.7,3872.492136512335,2240.3000000000002,4923.9753367940812,4344.7100744299996,null,null,74.862004719832569,100.3662677565313,97.955110481408255,86.947330530246376,120.9037243308001,78.658493115873895,331.66118811947547,null,null,5.721107986938665,5.3402645551080292,3.0326328138092871,5.9718315274379599,4.1885195672343354,5.4781835773178127,2.13,null,null,1.55,4.47,2.99,4,3.21,1.32,2.13,null,null,14.798472783195477,6.9535930062248372,10.514194737724152,16.654903879762319,12.296771525047921,12.802919400975894,6.18,null,null,9.4700000000000006,6.07,5.93,8.5500000000000007,8.39,5.74,6.18,null,null,3.5,"n.a.",3.25,6.5,"n.a.",5,"n.a.",null,null,13.262513426890688,3.0683725042289334,10.232592662504004,10.11978091350807,19.511477965660461,16.079326713944852,13.147884218789629,null,null,767.91612410583332,454.96749999999992,911.73333333333323,348.73110304593973,421.60140773754966,812.73333333333323,1120.1775725833334,3717.682801555989,4837.8603741393235,null,null,1240.3401097916667,855.06916666666655,1489.9499999999998,795.45895443951815,583.10150988833323,1419.9000000000003,1990.0453114166658,6383.8197407861835,8373.8650522028493,null,null,-2666.1369392301954,-3536.004678063528,null,null,814.17061809000029,478.24999999999955,910.4,374.86238113482904,435.88681760999998,847.70000000000016,992.73280999999997,3861.2698168348325,4854.0026268348265,null,null,1176.4061677999991,896.09999999999945,1449.9999999999998,790.83273626791777,618.85428198,1487.8000000000002,1863.9676629999999,6419.9931860479155,8283.960849047915,null,null,-2558.7233692130885,-3429.9582222130903]
[null,null,"J",-0.32170012984744362,-1.4534621287352167,2.3202251983280751,3.1991373112868566,3.0784704090957198,0.4976383265857548,0.97465886939571167,null,null,7.0853105272537933,2.2228940674446811,4.7049337307072063,4.0652196543576924,5.2080583850357911,7.9334763908107035,6.5183526317898295,null,null,72.787766334149907,92.291742757819222,58.415852961427433,75.740875040431433,98.137533078956892,101.7891228770027,87.399228014157757,null,null,-0.87861624296239704,0,-1.6606407021902168,4.551346181284857,4.8197744183154629,3.3777550799752456,0,null,null,8349.2951866599997,2783.6,7584.5,3795.8601752106215,2266.4,4736.3999999999996,4015.1678141299999,null,null,74.489506736513349,98.923202672447488,95.286277206793159,87.499333982752759,118.1033003320489,78.505651779746913,305.43682196253422,null,null,7.0945232202590747,5.8180249175522176,3.0881233847436413,6.2702681992337039,5.7975471230822153,5.6144221569449639,1.1937065637065636,null,null,1.5699999999999998,4.28,2.97,4.01,3.1,1.47,2.1800000000000002,null,null,16.34427969886131,7.7257530230853781,10.554877865777403,17.045552072448608,14.380123994658691,13.186739404112396,5.2046138996139,null,null,9.4700000000000006,6.16,5.93,8.6,8.6999999999999993,7.09,6.23,null,null,3,"n.a.",3.25,6.25,"n.a.",5,"n.a.",null,null,13.257187856353037,3.6685634032872283,9.5409063367297264,10.442034770253251,20.734270259444809,15.501000713633983,13.002543342728345,null,null,768.92966716916669,459.27916666666653,913.11666666666667,344.34872026264389,420.45340902671632,814.2833333333333,1091.1438900833334,3720.4109631251922,4811.5548532085277,null,null,1249.3621558983332,855.79833333333283,1491.6499999999999,798.9031783554201,583.85204657666668,1419.7916666666667,1978.1309818333327,6399.3573808304182,8377.4883626637529,null,null,-2678.9464177052268,-3565.9335094552257,null,null,760.1002042099999,541.15000000000009,965.19999999999993,309.26164442293742,448.60767118000001,883.10000000000014,1060.687752,3907.4195198129346,4968.1072718129399,null,null,1365.0210059999999,943.32000000000062,1640.7,834.30223741765587,593.5540493499999,1519.5,2048.3611490000003,6896.3972927676587,8944.7584417676626,null,null,-2988.9777729547186,-3976.6511699547191]
[null,null,"A",-0.73828535940538575,-1.9992795389049109,1.9622833843017471,3.086862885857848,2.7469084290107375,0.42849941186361984,0.41997371879107026,null,null,6.8052972987486013,2.5486388055401417,5.1538330077800953,4.3000702066818031,5.8318326694171159,7.79812511971297,6.1520012267728399,null,null,72.806848975206435,92.579712510364914,58.380498024487792,75.927024637434684,98.544346806467857,101.64347033127549,87.737616117548782,null,null,-1.1517985038032916,0,-2.0467250858577337,4.4267902063658857,4.9502897022629186,3.5042501189849471,0,null,null,8190.3024225500003,2827.3,7572.6,3743.6341744258889,2281.1999999999998,4884,4454.2348364999998,null,null,73.031993275050823,98.527197346773718,97.548251547874685,87.006340542526161,122.24291556191167,78.203554780631094,337.44335898795111,null,null,7.3424939170099011,6.2135048704282427,3.4500174956260792,6.1143941504178416,5.893176736805426,6.6231205555090051,1.6630419421195546,null,null,1.63,4.09,2.99,3.95,3.41,1.41,2.09,null,null,16.792260157662671,7.8563499356736015,10.913561609597584,17.231232590529263,15.831834107781754,14.041333556429271,5.775769566969724,null,null,9.49,5.7,5.92,8.57,8.32,6.92,6.22,null,null,3,"n.a.",3.25,6.25,"n.a.",5,"n.a.",null,null,12.592742443100956,3.4403773653620018,11.152523179917594,10.487696897842724,20.187694790074783,17.568226435785238,12.684926235070337,null,null,768.27268037916667,457.85416666666657,913.47499999999991,340.97385064046188,417.54973016188296,808.14166666666677,1067.1306165833334,3706.2670945148443,4773.3977110981787,null,null,1242.3792429025002,858.99249999999972,1490.9666666666669,790.68555090288316,583.69530289583315,1412.2416666666668,1961.0816888333336,6378.9609300345501,8340.0426188678812,null,null,-2672.6938355197049,-3566.6449077697048,null,null,717.04564129000028,418.61999999999989,878.30000000000007,262.45675224947496,411.95677879200002,769.09999999999991,872.83735300000001,3457.4791723314811,4330.3165253314801,null,null,1233.6109713600003,806.09000000000015,1454.5,713.77866807794851,587.7922092,1395.9,1851.9892150000001,6191.6718486379468,8043.6610636379482,null,null,-2734.192676306473,-3713.3445383064718]
[null,null,"S",-0.86419232992965966,-2.2540798845911101,1.8763796909492134,2.7608461814270511,2.7703850726177008,0.39412997903569447,-0.3937786509493364,null,null,6.184962845649002,2.9052484127311988,5.1083004126663871,4.4151654597978078,6.0559019125691123,7.2985483681075793,5.7952414607715967,null,null,72.941211531073421,92.720975373701705,58.578882713129588,75.801917507624211,98.700812833830867,101.451776666596,87.966612976897466,null,null,-1.0241656933505086,0,-0.44502627990466309,3.6991538322783248,5.0403115182667264,3.3312893320697978,0,null,null,8051.9971898699996,2791.8,7536.1,3672.5778311813669,2320.5,4720.2,4062.3142484099999,null,null,70.359329536643799,98.470042611096247,97.847257024983961,85.242838078869525,125.56366276835651,78.929606058065616,305.30526109029284,null,null,7.4788237511561082,6.7563739507425513,3.5470639219935141,6.2661549197487618,6.3175271398425696,6.6695831941195536,2.5939932425455492,null,null,1.6949999999999998,4.3499999999999996,3.01,3.9,3.42,1.6,2.19,null,null,16.789284034808578,8.6081136426528921,11.046348862405218,17.46691905094206,15.271012409454363,14.020610591379825,6.6399252590585007,null,null,9.4600000000000009,6.16,5.93,8.5500000000000007,8.11,6,6.22,null,null,3,"n.a.",3.25,6.25,"n.a.",5,"n.a.",null,null,12.983189970395049,3.4614558839034526,11.753423583547162,10.270737415153297,23.893225825321053,20.036367592556314,12.407627974956515,null,null,765.83527848999995,458.45749999999998,907.73333333333346,337.68495576615959,414.01900073154962,806.60833333333323,1048.3221635833333,3690.338401654375,4738.6605652377102,null,null,1232.1456126925002,861.04583333333323,1490.4666666666669,788.09699850864524,587.66105299833328,1416.1166666666666,1936.5842287500006,6375.5328308661437,8312.1170596161446,null,null,-2685.1944292117696,-3573.4564943784353,null,null,705.98400324999966,442.47000000000025,814.6,245.39730404429517,392.755390186,820.3,1151.7252490000001,3421.5066974802867,4573.2319464802931,null,null,1181.6948094999993,867.80000000000018,1536.3999999999999,752.55843301540017,577.62855184999989,1467.4,2162.3750170000003,6383.4817943654052,8545.856811365411,null,null,-2961.975096885104,-3972.6248648851033]
[null,null,"O",-0.85644268394147927,-0.18924033522573105,2.2295693455408596,2.5384340364676521,3.0303933883283189,1.2253462022661101,-0.38834951456311234,null,null,5.4679095089943424,3.7928727994221703,4.5836187794992096,4.4100149089349907,5.8170870552257519,6.6700691770031382,5.3735352685889293,null,null,73.160517071351947,90.843509350734081,58.269057279889417,76.295659543483794,98.938883035141075,101.07544412630889,88.139476633710515,null,null,-1.026231970845136,0,0.48227653406028015,3.7376564768159608,5.1488665624626,3.2488048982051736,0,null,null,7909.9839506099997,2689.1,7564.4,3581.5278330797746,2349.6999999999998,4621.3132722143491,3904.0534608100002,null,null,69.023524972719898,94.619886045159006,97.775116178283554,87.420115230058727,126.93019465507354,78.541471735727399,285.30970433785706,null,null,7.167831048554107,4.5278087757313052,3.1893224977195476,6.3796234309623339,6.3833446617973877,6.3172456678550075,2.417738791423008,null,null,1.7949999999999999,4.33,2.98,3.86,3.19,2.21,2.02,null,null,16.739809558208492,6.2009750812567654,10.652916493904968,17.302357043235695,14.404959100033444,12.906504435784695,6.5738791423002008,null,null,9.5399999999999991,6,5.91,8.6999999999999993,8.5500000000000007,5.87,6.16,null,null,2.25,"n.a.",3,6.25,"n.a.",5,"n.a.",null,null,12.248054139066177,3.9318787648594533,12.087738621359833,10.1318644657312,24.631302521017929,19.389373922632135,11.992599280711879,null,null,766.21352093583334,462.37499999999994,902.875,334.80157746786125,413.86819199154974,799.51666666666677,1023.0752578333335,3679.6499570619108,4702.7252148952439,null,null,1229.0615114916668,860.57499999999982,1488.2250000000001,786.36320152870758,585.02635138083326,1406.0166666666667,1907.1251086666662,6355.2677310678728,8262.3928397345389,null,null,-2675.6177740059638,-3559.6676248392964,null,null,778.25310727999977,474.11999999999989,825,265.70183713465093,436.32641476000003,785.2,1237.348577,3564.6013591746523,4801.9499361746493,null,null,1303.3855380500013,886.34999999999854,1548.3,767.99935821342888,630.99569531999998,1456.8,2095.983745,6593.830591583428,8689.8143365834258,null,null,-3029.2292324087794,-3887.8644004087801]
[null,null,"N",-1.2037736769680414,0.26268115942028264,2.5129029528725022,2.1018881368008673,1.9860749754835074,1.5380736258195324,0,null,null,4.9278903653271051,3.6207848120738886,3.7375687753122193,4.2880710719046462,5.3005239015871117,6.1637524400269461,4.6070398961102459,null,null,73.100765128596407,91.009550368847613,57.778023556298571,76.649679684633,99.0125405326596,101.2578508480192,88.244769594149219,null,null,-0.78058792497471963,0,0.29567820530694811,3.7017864663268569,5.1803441903773892,2.9665973854873071,0,null,null,7895.1279943199997,2714.4,7421.7,3543.4519604293264,2328.6999999999998,4875.8326268282563,3603.1309214500002,null,null,67.900323711987767,95.527212093356539,97.57769355080282,85.947248947707749,125.58313735891318,78.783908521375324,254.64428777005352,null,null,7.2915474052764058,4.1364531574668071,2.9138742159128337,7.1478715980460441,6.8963844128067571,6.9844996275142099,2.04,null,null,1.855,4.41,2.98,3.9,3.43,1.64,2.04,null,null,16.664375037095837,5.5826542596440589,10.347084846483977,17.656981856245622,14.837553346512596,13.9966476285075,6.1,null,null,9.74,5.86,5.91,8.51,8.6,5.94,6.1,null,null,2.25,"n.a.",3,6.25,"n.a.",5,"n.a.",null,null,11.548009305617635,4.2788381362054873,11.858566848849094,10.118669378458932,23.165517232638532,17.894825689489615,12.369504045443591,null,null,768.45209581666677,460.91583333333324,898.47499999999991,334.07336990891679,412.26507599071641,800.69166666666661,1017.5868812500001,3674.8730417163001,4692.4599229663008,null,null,1232.6527759691664,859.18083333333334,1480.3916666666667,784.80800315262616,589.82525821749994,1407.1666666666667,1891.1332082500005,6354.0252040059568,8245.1584122559561,null,null,-2679.1521622896594,-3552.6984892896603,null,null,778.13533018000044,408.75,786.4,258.66123941365538,370.05149977999997,747.8,1005.695921,3349.7980693736536,4355.4939903736595,null,null,1320.6056978799988,852.38000000000102,1462.1000000000001,742.70828919566816,681.47240166999995,1432,1687.4920979999999,6491.2663887456656,8178.7584867456608,null,null,-3141.468319372012,-3823.2644963720086]
[null,null,"D",-0.80758133239945784,1.0136986301369859,3.066237506352703,2.3571428571428652,3.0522004919302783,2.3444773592891033,0.25954604670277082,null,null,4.8981889022166456,2.3905025880231898,2.8145691082280853,4.0548844022391419,4.7951204585485412,5.8420741576191526,3.6514280761753932,null,null,72.998922579020558,90.977417679460231,57.269209454236069,77.070029297075564,98.204314673857667,101.3010459072102,88.235857490912352,null,null,-0.2356701057315925,0,-0.12315707982340751,3.7961426664371767,5.2408433510006649,2.9347469049803414,0,null,null,7834.0881326400004,2670.2,7751.2,3822.2649997223657,2401.1999999999998,5195.054100524937,3896.1141070399995,null,null,67.059877439721845,94.548065769365323,94.657959325991925,87.398820775023395,119.70372807580168,76.938277147091355,256.18303271039099,null,null,6.8125986070009024,3.4711147274206673,2.2934401709401695,6.4312630844382337,5.218171360665691,5.8874917300694003,1.8356894937863686,null,null,1.885,4.5199999999999996,2.98,3.95,3.38,1.38,2.1,null,null,16.400024871772764,4.6194738269595881,9.6964464168310318,17.256106071179335,13.939545556725903,14.007128680119015,5.8452827529932359,null,null,9.61,5.68,5.91,8.32,10.4,6.19,6.12,null,null,2.25,"n.a.",3,6.25,"n.a.",5,"n.a.",null,null,11.97673529527985,4.7488799151071737,11.741019128034402,10.028387699980135,23.59842699712118,14.817842982799112,11.347416905052254,null,null,772.8976045116666,459.08666666666659,889.56666666666661,329.92671436931442,409.64443767904964,786.81666666666661,1023.3885624999999,3641.8866742650303,4665.275236765031,null,null,1234.0477072283331,857.78249999999991,1470.075,785.35728008840499,588.31974109499981,1408.8749999999998,1875.7976124166669,6339.2541594009044,8215.0517718175706,null,null,-2697.3674851358742,-3549.7765350525406,null,null,797.71694187000003,383.1299999999992,813.19999999999993,312.94247490843611,362.47934558999998,664.8,915.63742499999989,3261.643774828437,4177.2811998284305,null,null,1275.7,804.53999999999905,1389.4,777.29238819550039,569.13475048999999,1418.6,1674.2266529999999,6172.2303105554893,7846.4569635554944,null,null,-2910.5865357270632,-3669.1757637270639]
[null,2016,"E",-0.17270016448184974,1.8216947281258662,4.3777626657599313,3.0835424883470863,3.191793097632492,2.5269227507844021,0.29325513196480663,null,null,5.1629211086775051,0.95172011353114894,2.2031084143468367,3.8381604547162911,4.504359414113682,5.8715035076392406,2.715586984528823,null,null,72.748463686798473,90.886408659716693,56.980569570298883,77.359647780920909,98.956279229162831,101.45552599513169,88.109445894993854,null,null,-0.26929508052452106,0,8.8641671288882382E-2,3.9281957314064089,5.2841192468076876,2.3910144099607953,0,null,null,7786.8334580000001,2788.3,7680.4,3737.2183544755526,2351.8000000000002,5637.939475887707,3806.0830365599995,null,null,67.663062410310687,97.058348486915918,97.294785672873616,88.262895877801526,118.80350245759277,83.359723661614098,242.69706475062924,null,null,6.1332923704938453,2.4830712930333387,1.0751689877025954,5.9043930434782519,5.996483055606471,4.6164237862872808,1.7017543859649149,null,null,2.8491396400000002,4.3499999999999996,2.95,3.94,3.25,1.65,2,null,null,15.830038667297815,3.9464136622390855,8.3372522192361096,16.420135652173908,15.995188743785734,12.448512943511659,5.7598538011695934,null,null,9.68,5.84,5.94,8.3800000000000008,8.8699999999999992,6.81,6.07,null,null,1.75,"n.a.",3,6.25,"n.a.",5,"n.a.",null,null,11.913374343706051,4.8618772043049541,11.348238137245549,10.438332848158582,22.583773193591085,17.883311252565726,11.300782488327087,null,null,773.42369901000018,457.83333333333326,885.7833333333333,352.73288936856147,407.86626566129968,781.1,988.52802933333339,3652.6874384115276,4641.2154677448607,null,null,1235.7620442675,851.68833333333339,1463.05,794.38840685885589,588.77549156833322,1398.3083333333334,1816.6452306666667,6326.7695403505213,8143.4147710171892,null,null,-2674.0821019389946,-3502.1993032723276,null,null,708.73641709999993,410.62,833.8,604.33934034157608,371.03338498200003,623.09999999999991,678.85440300000005,3551.6291424235756,4230.4835454235754,null,null,1162.60721571,784.10000000000014,1274.5999999999999,840.80450485129177,516.83424398,1131.3,1400.7206740000001,5710.2459645412919,7110.966638541292,null,null,-2158.6168221177159,-2880.4830931177157]
[null,null,"F",-3.233718437322243E-2,1.6672807663964648,4.2708245063977603,2.921268257926608,3.4037852986557207,1.7432512482018083,1.1822660098522195,null,null,5.0506186795944794,0.42979520092641432,2.106675332082367,3.5332796481990529,4.604528360330554,6.1737702551044347,1.8009221061863554,null,null,72.713511467545359,91.01227182776185,56.895487372176277,77.33667986895567,98.368736379598317,102.20052831317329,87.906609981915381,null,null,-9.2530045935107913E-2,0,0.26140740488257735,3.7291043545787996,5.4913315783649903,2.0418424628146421,0,null,null,7784.1073550000001,2740.1,7636,3775.0887417362956,2315.13,5065.1244855519062,3578.4801332400002,null,null,66.481469159834887,97.177452674711773,96.438745441925988,87.982659207650954,114.08762107074031,78.594292287887285,226.39144267049446,null,null,5.7341914604380984,2.6092162725378256,1.1788297440065041,5.7993181031498846,6.5178600404706755,5.3927397488147051,0.87736124634858514,null,null,2.9509443700000002,4.32,2.95,3.91,3.82,1.69,2.0699999999999998,null,null,15.377309773386283,4.0452731720576223,8.4387704185290566,16.35107303565248,13.965234605123817,13.835560176328631,4.8800389483933753,null,null,9.67,5.78,5.94,8.35,7.82,6.01,6.12,null,null,1.75,"n.a.",3,6.25,"n.a.",5,"n.a.",null,null,11.990270053911578,4.446895710081078,11.160108428929227,10.848352549690032,22.27745390254201,18.55973594840663,10.853095309305449,null,null,781.55206558000009,452.55666666666662,882.20833333333337,379.07758054466967,409.60368294879999,785.81666666666672,979.18988725000008,3684.7629134451363,4663.9528006951359,null,null,1236.2390954391667,847.51166666666677,1460.9833333333333,800.79242568031123,588.12587229333315,1402.6333333333332,1805.5514471666668,6331.08265773531,8136.6341049019766,null,null,-2646.3197442901751,-3472.6813042068411,null,null,842.67305753999995,417.09000000000003,842.2,696.78062608901416,409.45481580000001,806.5,728.80103399999996,4014.6984994290156,4743.4995334290152,null,null,1142.9267255100001,756.8599999999999,1269,877.21723177136482,551.41414503999999,1267.2999999999997,1466.794778,5864.7181023213661,7331.5128803213656,null,null,-1850.0196028923501,-2588.0133468923505]
[null,null,"M",-1.0860925989431325,1.1182401466544445,4.2617960426179584,2.4769992922859161,3.6579044731442725,1.5886428933581953,0.58593749999999445,null,null,4.5822709434233202,1.3988641495564784,2.4398489333728319,3.2710046154564174,5.0238129024203948,6.5472390333639758,1.1260497993542868,null,null,73.431021679788415,91.338955279756817,57.349789339492453,77.523832245478047,98.211276346958911,102.64776517963899,87.925337993294193,null,null,0.32307450469961324,0,1.1622438255386238,3.6191416831946612,5.3412644991944234,2.3700757779330495,0,null,null,7811.9661759999999,2807.3,7586.1,3825.1130705644573,2394.5,5134.0711943492624,4699.0868548400003,null,null,67.362700721068052,98.460642749167889,96.106674588550689,85.715528448975675,119.20628844150671,76.601861936329215,293.82672584836001,null,null,6.8606051234314345,3.2949147933285001,1.1780000000000022,6.1994406077348083,5.9531377998429313,5.6909482615204672,1.5052427184466075,null,null,3.3385818999999999,4.45,2.93,3.85,3.35,1.87,2.1,null,null,16.717661887418725,4.6893219724438016,8.4865255474452557,16.757907458563533,11.816840131562628,13.664280485775993,5.2731650485436941,null,null,9.82,5.86,5.97,8.33,7.95,5.67,5.89,null,null,1.75,"n.a.",3,5.75,"n.a.",5,"n.a.",null,null,12.295403770223491,4.5906504035892581,10.444046086403347,10.053639402584791,22.413415233720578,18.608193753472801,10.62798109255656,null,null,781.08499294500007,447.73916666666656,876.68333333333339,397.10685751109412,404.81808349171666,785.86666666666667,963.26785291666658,3687.2470183194778,4650.5148712361433,null,null,1233.6141821366666,840.38333333333321,1448.9916666666666,806.8646421787779,589.45734483583317,1403.5083333333332,1788.4069420833337,6317.6164334737769,8106.0233755571098,null,null,-2630.3694151543004,-3455.508504320966,null,null,842.12400842,471.41999999999985,938.7,658.140695665066,413.45539089499999,824.8,935.08588100000009,4148.6400949800645,5083.7259759800654,null,null,1199.7645023499999,784.44999999999982,1388.2,950.27665703429955,599.33547226000007,1471.8000000000002,1795.884086,6393.8266316442987,8189.7107176442969,null,null,-2245.1865366642342,-3105.9847416642324]
[null,null,"A",-0.91805692862924793,0.86151590138392242,4.0873082757458361,2.4355806565478209,3.5963791107405827,1.7536428329380471,0.58309037900874083,null,null,4.0314881350424523,2.2136592842363036,2.8234917255469907,3.0516734162163424,5.4863158545489084,6.8978128351127985,0.92166320419364223,null,null,73.743324544318796,91.913794587207676,57.578542886314963,77.536854339710501,98.566311984163335,103.2549102090323,87.835761571737208,null,null,0.69141677721473671,0,0.3072354401216032,2.9623080808911944,5.129999724725633,2.397955987506831,0,null,null,7898.7532970000002,2804.3,7675.3,3899.5999396380557,2435.5,5015.4147240342054,4491.66916855,null,null,67.96310848389308,97.927641170606009,97.182208374588001,86.899856491430128,120.66240092444293,76.537075795545505,320.48777060381815,null,null,6.5279875708232469,3.567747387551115,1.3380034005343626,6.515723638869753,4.6770125045920459,5.2836999417200277,1.5280000000000058,null,null,3.4562638400000001,4.46,2.92,3.8,3.27,2.56,2.12,null,null,15.954528583722245,5.0053621081326689,8.6876026232693651,16.795354927636122,13.576841876044025,14.000832570143968,5.2562608695652226,null,null,9.81,5.91,5.97,8.33,8.01,5.43,5.87,null,null,1.75,"n.a.",3,5.75,"n.a.",5,"n.a.",null,null,12.24495045076781,5.0340058541406885,9.6205024588773114,9.6785627772739691,22.622316882683123,19.223334708062122,10.292258349446183,null,null,789.65196186583341,454.87916666666661,876.65000000000009,425.18743387835229,409.19246733974995,785.37499999999989,944.7212459166667,3734.8839474556021,4679.6051933722683,null,null,1234.7412793799999,844.36583333333328,1450,820.87633732284246,595.9079425108331,1411.8083333333332,1782.3828809166671,6352.496656869509,8134.8795377861743,null,null,-2617.6127094139069,-3455.2743444139069,null,null,884.14207142000009,513.73,914.2,737.93598126341544,448.35619515200005,833.3,812.60046599999998,4331.6642478354152,5144.264713835415,null,null,1259.9781154600003,867.68000000000029,1442.6000000000001,961.52153652618995,597.55140586000005,1432.2,1674.991804,6561.5310578461867,8236.5228618461879,null,null,-2229.8668100107761,-3092.2581480107765]
[null,null,"M",-0.43272306743848038,0.73172962590322621,4.356602186711517,2.3550087873462173,3.6513019423440927,1.7148166920088324,0.2901353965183725,null,null,3.5428572006939358,2.8979072291933914,2.9030283279645044,2.8635069361141605,5.7095073540061403,7.1203520500343505,1.2234217812255395,null,null,73.976244719580819,92.064162275548668,56.81701410006233,77.51413781381234,98.763984369428854,103.3388217541671,87.873609656216942,null,null,0.82329468476595391,0,-0.44805720101250307,3.0550479332694902,5.183996254650963,2.3480524122831556,0,null,null,7760.4476640000003,2840.4,8549.2000000000007,3892.589118566304,2441.4,5011.0678018557619,5021.5927543999996,null,null,67.034211186976918,103.53013560173339,105.28060620819579,91.92504833199861,126.31202685787271,75.380001902674564,350.54168404890009,null,null,5.8580722975773218,3.7607518387360415,1.076499032882017,6.1403846153846198,5.1826750604538931,4.4193987210364103,1.7647444551591156,null,null,3.2240356700000001,4.5199999999999996,2.88,3.79,3.1,1.67,2.06,null,null,14.776665105950059,5.4980395895759591,8.4262975499677673,16.799364697802201,13.767773285359235,12.717108213603469,5.6634329797492802,null,null,9.5500000000000007,6.27,5.98,8.06,8.17,5.0199999999999996,5.97,null,null,1.75,"n.a.",3,5.75,"n.a.",5,"n.a.",null,null,12.235217423747692,5.3795007927064376,8.7988874531036423,10.222836936540848,23.334681245786214,16.232109884652601,10.423968063468436,null,null,798.1107984091667,454.21666666666653,869.9,454.69539618445174,410.45528151358332,782.36666666666679,965.28606016666674,3763.6927271455352,4728.9787873122013,null,null,1244.5205012758333,839.83749999999998,1439.9916666666668,831.94318432494845,591.96983817,1411.8916666666667,1792.6231995833339,6354.9512880932807,8147.5744876766139,null,null,-2591.2585609477464,-3418.595700364413,null,null,948.24818026000003,491.25000000000023,916.8,729.86447754606979,425.09967343599999,782.7,1191.425851,4293.9623312420736,5485.3881822420735,null,null,1312.5452656899995,828.38000000000011,1424.1,974.02617133271519,579.07085103999998,1462.1,1788.6915129999998,6580.2222880627196,8368.9138010627175,null,null,-2286.2599568206424,-2883.525618820644]
[null,null,"J",-0.87839426663984221,0.91541559868180156,4.4327132562426721,2.4466969591052079,3.5641154287860957,1.9098098603399516,9.6618357487917222E-2,null,null,3.2393437285551863,3.8203350221851116,2.6463657487516801,2.7753076337122975,5.5325349020173942,7.0476848743108338,1.9005392929061584,null,null,75.017800560118644,92.227609715653855,56.682636549578874,77.682168595675137,99.535327958223178,103.13047949402601,88.202598586827961,null,null,1.4087370013568035,0,-0.10298404795440373,3.7264107425517579,5.0814316284438066,2.3488929452877052,0,null,null,7787.4259480000001,2970.08,8696.4,3955.6458092543835,2382.1999999999998,5301.0212852378345,4770.54989002,null,null,68.72626109259491,99.720153168715584,106.79361906071185,90.58843803446517,126.022275832064,78.787287560026158,324.22250605679881,null,null,6.1827027733241033,3.7007075471698121,0.98368290138810477,5.9477789150460589,4.9757908061748601,4.7396714273920013,2.0547349016576852,null,null,3.0431958899999998,4.6500000000000004,2.84,3.73,3.03,2.2400000000000002,2.1533385102583149,null,null,15.262458829950393,5.4051052249637159,8.337700393163761,16.538652337086322,13.478566052219199,12.108932551803786,5.8876930501930573,null,null,9.77,6.37,5.98,8.3800000000000008,8.17,5.18,5.99,null,null,1.75,"n.a.",3,5.5,"n.a.",5,"n.a.",null,null,12.140712358865713,5.3225399345478763,8.7904226725698855,10.03088791677702,23.515469848430648,16.956286155232149,10.516036606610403,null,null,800.00684383166663,452.90916666666652,868.83333333333337,485.09772454411228,407.72974152608339,784.52500000000009,965.88300041666673,3793.0497276068622,4758.9327280235293,null,null,1256.5804624933332,837.22833333333335,1442.1000000000001,847.88131920202977,589.94410908416671,1410.05,1789.0043524166667,6378.5811551020279,8167.5855075186964,null,null,-2585.531427495167,-3408.6527794951658,null,null,836.92316315999983,462.55999999999995,897.59999999999991,739.69032145075585,403.18033775999993,873.59999999999991,999.89609299999995,4213.5538223707554,5213.4499153707548,null,null,1321.12570241,864.78999999999905,1475.3,982.0903547928956,594.54553294999994,1465.7,1820.5414970000002,6703.5515901528888,8524.0930871528908,null,null,-2489.9977677821353,-3310.6431717821324]
[null,null,"J",0.47552710755759564,0.87944301942104075,4.6185910796164968,2.4033437826541193,4.114878333974656,1.8548048678137172,9.6525096525104756E-2,null,null,3.0704772564895713,3.8543519612236565,2.3073027245113105,2.8527111769412539,5.0129191084457636,6.6765696099517102,2.7804121422127466,null,null,74.944026435030608,92.281606275988025,55.933297357128069,77.73799489631044,99.824195106204058,103.0184422176135,88.073158171405325,null,null,2.5614020305851786,0,-0.68986029837605378,4.198671081276486,4.9925544479373727,2.1974720726333996,0,null,null,7960.5164569999997,3019.77,8861,3845.271290093568,2383.8000000000002,5333.600631131173,4216.3467571700003,null,null,69.735893469870035,103.66572055909602,104.17503963750221,90.908139273731805,121.73599660270365,76.688338064451813,281.65423714249533,null,null,4.7021130701657574,3.6782092262985753,0.8042632879113969,5.9340408163265401,5.1086465759954915,5.4049439683585652,1.971571841851486,null,null,2.9494445200000001,4.59,2.87,3.75,3.57,1.85,2.0699999999999998,null,null,13.729186887146776,5.2543479840174268,8.1165391664674562,16.431744897959195,12.046644162514236,12.522919413315714,5.8678109932497495,null,null,9.89,6.18,5.99,8.43,8.35,6.03,5.97,null,null,1.75,"n.a.",3,5.5,"n.a.",5,"n.a.",null,null,11.589794005684917,5.4724144106155004,8.1364561924818002,10.261997132882804,21.838007749425081,16.360435014070383,7.9867247620767801,null,null,801.69951141750005,448.74166666666662,858.7833333333333,514.07981756004881,404.80397135191669,781.77499999999998,954.17664424999987,3803.8312180344642,4758.0078622844658,null,null,1243.6883621083334,827.14583333333337,1414.6666666666667,858.18969945598235,590.22358513083327,1400.9916666666668,1766.7739977499998,6329.7027443509796,8096.4767421009819,null,null,-2525.8715263165163,-3338.4688798165166,null,null,780.41221524000002,491.13999999999987,844.59999999999991,657.04676061417513,413.49842909000006,850.10000000000014,920.21147799999994,4036.7974049441691,4957.0088829441665,null,null,1210.3158013799998,822.33000000000084,1311.5,958.00280046508487,596.90776190999998,1410.7999999999997,1781.5968929999999,6309.8563637550833,8091.453256755085,null,null,-2273.0589588109142,-3134.4443738109185]
[null,null,"A",0.59586675348913609,0.94651718434111476,4.740481546280086,2.506963788300832,3.7504713807529804,1.4724336986530946,0.48449612403100772,null,null,3.2270695497122368,3.7830679490004826,2.1382067521640282,3.0908657732762412,4.3958942868225233,6.2463251712870624,3.5320954295511595,null,null,75.395321152623836,92.67949356626211,55.477991874278842,77.944706971671735,100.83685578678229,103.3058379773319,88.236024974242895,null,null,3.0844440480212776,0,-1.5063255979707835,4.1320584511637417,5.0554276431424929,2.0550014438989725,0,null,null,8007.6259069999996,3050.86,8919.2999999999993,3776.6892372229431,2405.1,5131.3255729987877,4330.4001211100003,null,null,70.63051576081412,104.74602643799788,106.09211314551894,88.89905841332299,123.47622793899752,74.481682733863437,288.39965592214151,null,null,4.378045926383062,3.5796012744651784,0.69650095450207805,5.8269565217391346,4.7511769830786319,6.0386511666254048,1.6873288331726135,null,null,3.2133761199999999,4.5599999999999996,2.84,3.75,4.33,2.02,2.1800000000000002,null,null,13.503669370232553,4.9466618115612189,7.9811724467069798,16.22625,12.81129654601056,12.956786214856914,5.4889103182256509,null,null,9.94,5.94,5.97,8.3800000000000008,8.18,7.03,6,null,null,1.75,"n.a.",3,5.5,"n.a.",5,"n.a.",null,null,11.705262250433069,5.4928238105737881,7.4626387632189539,9.4651650294522494,22.318886308054964,14.283533363334012,9.2935808171376699,null,null,805.62475104666657,450.46499999999986,859.63333333333333,547.50890082429748,407.8616331134167,791.8416666666667,962.50015733333328,3856.8832026893811,4819.3833600227126,null,null,1251.3543793224999,829.11916666666673,1419.825,885.14164764126144,591.79639862583326,1416.5333333333335,1780.6143695833332,6388.5668565787601,8169.1812261620944,null,null,-2531.6836538893808,-3349.7978661393809,null,null,764.14851683999996,439.29999999999973,888.5,663.60575142045809,448.64871992999997,889.9,972.71951000000001,4094.1029881904651,5066.8224981904641,null,null,1325.6031779299997,829.76999999999953,1516.4,1037.2020463013,606.66597114000001,1582.4,2018.0736769999999,6898.0411953713046,8916.114872371305,null,null,-2803.9382071808413,-3849.2923741808409]
[null,null,"S",0.38575471814753798,1.0146665436767903,4.5587132261021672,2.8960223307745827,3.5228490136803452,1.3531573671901365,1.1684518013631966,null,null,3.800006712533909,3.4686717005042791,2.2787132152909502,3.4669189909293041,3.9158895826952431,5.8235684638278515,4.0958651309719585,null,null,76.172857630712969,93.211111804125622,55.658792242046907,78.277825549703849,101.90267433881959,103.8455950622488,88.297193053518782,null,null,3.2345890227459129,0,-2.1684818802284953,4.6364547213523144,5.2511711217672623,2.1625144939906762,0,null,null,7699.1623669999999,2979.43,9014.7999999999993,3706.3937006078863,2417.1999999999998,4938.5580471256781,4100.1830274599997,null,null,68.158936024871679,104.24410663203328,104.58897923210624,88.168551258689192,124.77100287125577,77.332252652090133,270.69471597254017,null,null,4.2976668292882207,3.5592192493836103,0.88111908177906106,5.4559715157680735,6.0412967049394428,5.6306510631283722,0.98998075072184499,null,null,3.4453385999999999,4.6100000000000003,2.85,3.74,3.04,2.0099999999999998,2.17,null,null,13.691429944858305,4.9748552643594115,8.1880184919496326,15.650729060698563,13.259831763473224,13.141863881221651,4.7658614051973025,null,null,9.89,6.04,5.99,8.36,8.49,5,5.99,null,null,1.75,"n.a.",3,5.5,"n.a.",5,"n.a.",null,null,12.261449221573217,5.3974403026126216,6.4731928323540133,10.105948544988784,19.239615368862715,12.062924875579117,8.9725716416110934,null,null,815.72233324749993,450.67083333333329,861.375,575.22628930546944,408.21501056541666,796.72499999999991,960.08295825000005,3901.8823841567196,4861.9653424067192,null,null,1258.4831257783335,822.92083333333312,1413.625,906.7595988639282,591.02639775833325,1421.7333333333333,1750.6745240833334,6409.345220056427,8160.0197441397613,null,null,-2507.4628358997084,-3298.0544017330417,null,null,827.15498965999996,444.94000000000051,835.5,578.00596581835998,396.99591960999999,878.9,1122.7188599999999,3961.49687508836,5084.2157350883645,null,null,1267.2397669700013,793.42000000000007,1462,1011.9738476873995,568.38854144000004,1529.8000000000002,1803.096871,6632.8221560974052,8435.9190270973995,null,null,-2671.325281009038,-3351.7032920090351]
[null,null,"O",0.55180099133034877,-0.8757674250631986,4.7599303424827974,2.8242677824267663,3.3961025778788416,0.91203051156621784,1.3645224171540018,null,null,4.3045673712976393,2.2459046643926599,2.7360983754239885,3.9184290402289776,3.8462262545248058,5.4528784050243155,4.4638560687297355,null,null,76.616538488442117,93.19120093591188,55.201123207675373,78.857052170396841,102.22477648935271,104.36786783529971,88.418945739764425,null,null,3.5558817172658195,0,-2.4012444033819138,4.5142452636535895,5.058813525022984,2.4715379563932141,0,null,null,7715.316143,2954.13,9063.2000000000007,3732.618613722248,2332.6,5450.2544242431322,3941.5233068399998,null,null,67.855403608305309,103.20050724625027,102.26249400013347,89.351963366313655,123.00939567947663,77.55257980344949,255.91515338072378,null,null,4.0757092048734185,5.433350942708806,0.69689780733000461,5.519837232960338,6.078854604322248,6.3599646701174803,0.78476923076922511,null,null,3.40221478,4.51,2.85,3.74,3.15,2.06,2.16,null,null,13.851764833004385,7.0777520721377165,7.9611256233673657,15.643906408952201,11.281189236258351,14.287661654753087,4.651999999999993,null,null,9.9700000000000006,6.14,6.01,8.42,7.95,6.29,6.08,null,null,1.75,"n.a.",3,5.5,"n.a.",5,"n.a.",null,null,12.366203730359704,5.7139193652277598,5.9676497113355431,9.3756274526797476,19.647657652296679,11.610170275434207,9.0785374290003329,null,null,819.10545706999983,447.98833333333329,851.70833333333337,601.66323263115476,405.3381525429167,803.43333333333339,946.25308499999994,3923.1847599490707,4869.4378449490714,null,null,1255.4753929591666,817.01249999999982,1401.375,922.0281925582168,587.88886063916664,1426.1916666666666,1746.0984532499999,6404.7685438123835,8150.8669970623841,null,null,-2481.5837838633124,-3281.4291521133114,null,null,818.85059315000035,441.92999999999938,709,582.94515704287596,401.80411848999995,865.69999999999993,1071.3900980000001,3820.2298686828726,4891.6199666828688,null,null,1267.29274422,815.44999999999982,1401.3,951.22248254489284,593.34524988999999,1510.3000000000002,2041.0708949999998,6538.9104766548917,8579.9813716548961,null,null,-2718.6806079720227,-3688.3614049720236]
[null,null,"N",0.56037233607343251,-0.82211581895383201,4.6715087487619495,3.0355896720167439,3.3063565881557109,0.87741081036338087,1.2670565302144361,null,null,4.453585687398304,2.180665833639126,3.4206136795726207,4.3448263668240266,4.2881950396363919,5.2570141282020142,4.9115853356125116,null,null,76.834120644381386,93.309567402621965,55.112070198782959,79.1811655628984,102.4103602716598,104.68022317554041,88.608387426489116,null,null,3.9453411719632756,0,-1.8119847770722313,4.6754317166622306,5.0816028794594548,2.5594811325957623,0,null,null,7583.0048699999998,3028.36,9003.6,3679.9548910651647,2296.1,5709.3339168861885,4146.9411949899995,null,null,64.424380479162167,103.67264972977451,105.96905138072084,87.809876410777093,122.70843659922288,80.223642450946016,256.95672039036259,null,null,4.0171168523780967,5.5477245399890656,0.78196183567262456,5.2160717913985817,5.5430418308140634,7.9230713054894544,0.9015206929740025,null,null,3.41506775,4.68,2.86,3.63,3.49,2.39,2.1800000000000002,null,null,13.613342259887167,7.1105729641100348,8.0332187352152857,15.43584151710126,13.283814270410184,14.832447690161645,4.7625986525505173,null,null,9.7899999999999991,6.23,6,8.35,8.6199999999999992,6.74,6.09,null,null,1.75,"n.a.",3,5.5,"n.a.",5.5,"n.a.",null,null,12.903849542799261,5.4434743445559874,6.0260948660573632,9.9205489935114919,18.703604357627569,11.696356462873014,8.0382702238769976,null,null,825.20149972083345,450.10083333333318,857.32499999999993,635.60518349841698,405.34422214958335,812.44166666666661,943.26246524999988,3979.9663230738338,4923.2287883238332,null,null,1265.0422712425,818.13249999999982,1409.0916666666665,943.35804014053394,581.70506728166663,1440.5249999999999,1745.9876356666666,6452.6514763205314,8198.6391119872005,null,null,-2472.6851532467003,-3275.4103236633659,null,null,851.28784198999983,434.10000000000036,853.80000000000007,665.96464982080192,370.12433506000002,855.90000000000009,969.80848400000002,4031.1768268708038,5000.9853108708048,null,null,1435.4082372799992,865.81999999999971,1554.7,998.66646018347387,607.26688137999997,1603.9999999999998,1686.1622870000001,7065.861578843469,8752.0238658434682,null,null,-3034.6847519726653,-3751.038554972667]
[null,null,"D",0.76519109124868812,-0.93119971069523655,4.2324128862590271,3.3147243545010467,3.1296532012614322,1.6953357591796103,1.4634146341463417,null,null,4.191586762100842,3.0262871264006073,4.1102307784739613,4.6978733711788365,4.980116309590719,5.3308203578620965,5.489548429801185,null,null,76.466959521635459,93.715863419994832,55.245369747816959,80.107722257573329,102.2030045092886,104.22072659287549,88.746665801246863,null,null,3.4311838952807183,0,-1.4716797389061356,5.2288130433529458,5.1720265242132593,2.5238231475164485,0,null,null,7573.8,2922.99,9160.4,3887.6050145088475,2387.5,6046.699976951857,4502.1774745299999,null,null,65.431752834127167,101.17474561715942,100.23957162416191,81.977400691635239,122.32108072957088,80.01081823949751,275.42153380223914,null,null,3.6568271928492697,5.6942243110056587,1.1585523929669768,4.6995001688618707,6.5389174686972371,5.0490656257623945,0.71610576923076896,null,null,3.28515902,4.71,2.88,3.55,3.54,2.0699999999999998,2.19,null,null,13.382407915586684,7.0468196751231984,8.4403563825593455,14.978770685579196,13.351207778746993,12.551867935268779,4.5697115384615374,null,null,9.82,6.05,5.93,8.18,7.64,6.98,6.1,null,null,1.75,"n.a.",3,5.5,"n.a.",5.5,"n.a.",null,null,12.158417364699691,4.9681376664200805,6.6840962486078404,11.915041732264854,17.512010337992635,11.407213499098457,8.5815479642203698,null,null,827.01339834166663,451.67916666666662,870.75833333333321,660.50366210619268,403.26302208791668,819.9666666666667,932.91222266666671,4033.1842492024425,4966.0964718691093,null,null,1269.2411354433334,818.8158333333331,1416.8916666666664,956.68745202381763,580.8409775191667,1449.8833333333332,1744.5847155833333,6492.3603983196508,8236.9451139029843,null,null,-2459.1761491172083,-3270.8486420338754,null,null,819.45972531999996,402.06999999999971,974.40000000000009,611.72421820174304,337.50494485000002,755.09999999999991,791.43451399999992,3900.2588883717399,4691.6934023717404,null,null,1326.0863704100002,812.73999999999796,1483,937.24533079490334,558.76567333999992,1530.9,1657.3916119999999,6648.7373745449004,8306.1289865449071,null,null,-2748.4784861731641,-3614.4355841731667]
[null,2017,"E",0.65571453973752936,-0.25300442757748359,3.8276732632950643,3.4434782608695569,3.8815156361188228,2.3323132908775168,1.6569200779727127,null,null,3.6231309226706538,3.0932858710803828,4.5709628788330559,4.879374304706328,5.6300752027601044,5.5537258812885906,6.0256212673679022,null,null,76.6587744038723,93.40433211297497,55.269651899721879,80.528495828854091,102.4475176016755,104.22571261992741,88.84917966691286,null,null,3.4686020796032864,0,-1.7561971290336555,5.0437744599621999,4.9127955366307328,2.5519819705043769,0,null,null,7523.8,2903.89,9065.2000000000007,4445.9861856149864,2398.9,6707,4320.8750235799998,null,null,66.425655942158599,101.29999609296512,100.19886947647763,100.60671451113909,123.58945069165821,94.445259274215715,282.00464541856991,null,null,3.8689164128133613,4.8051616994292967,1.5625186289120641,4.8978648285137947,5.0627539735370517,3.6427269053584372,0.52439117929050505,null,null,3.3116097899999999,4.54,2.91,3.65,3.79,1.77,2.19,null,null,13.505726448244156,6.1385351934052013,8.882339791356177,15.792703429724288,12.516018650310142,14.030452598399739,4.2837679769894512,null,null,9.84,5.87,6,8.43,7.87,6.94,6.0116666666666667,null,null,1.75,"n.a.",3,5.5,"n.a.",5.5,"n.a.",null,null,12.556381352263069,5.3237769079120145,6.1780908224726483,12.145577932808971,18.663532732878551,11.321829171175658,8.2779128203285488,null,null,831.0615955799999,452.97499999999997,874.52499999999998,668.29247196131621,406.90297818775002,824,937.85479633333341,4057.7570457290662,4995.6118420623998,null,null,1278.7939611883335,824.04999999999973,1429.9916666666668,960.88311624037669,583.9068092133333,1466.2416666666666,1764.7853749166663,6543.8672199753755,8308.6525948920425,null,null,-2486.1101742463102,-3313.0407528296441,null,null,757.31478396,426.17,879,697.8050586030588,414.71285817999996,671.5,738.16528700000003,3846.5027007430581,4584.6679877430579,null,null,1277.2411246500001,846.91,1431.8000000000002,891.15247544999966,553.62422431000005,1327.6,1643.1285859999998,6328.3278244100002,7971.45641041,null,null,-2481.8251236669412,-3386.7884226669412]
[null,null,"F",1.0854653797116591,0.28993385883844625,3.9577407557903217,3.8421599169262799,3.6910327222805419,3.3435914497213495,1.8500486854917151,null,null,3.2245175504456083,3.1435262726792255,4.5973667511307825,5.0707833287006379,5.9579112083197403,5.676950631818654,6.6715217640370552,null,null,77.246165121675304,93.29953888714266,54.341620164960688,79.889621253706096,102.29588508540721,104.70051383251921,88.735454553667623,null,null,4.4512491086021555,0,-3.4227786000826295,4.337797454344221,4.8830684723851592,2.9774979468929654,0,null,null,7454.1,3510.89,9267.5,4508.2249684299941,2372.5,6299.1,4222.02254558,null,null,66.498184998381603,121.61061699837859,102.56628821147807,89.503656251236862,120.10964311875291,86.510814808614697,255.90067428885615,null,null,3.4767952119392671,4.2976059264612942,1.4354479362101389,4.504759999999993,5.6406459042062744,3.6155203219316081,0.20613766730402358,null,null,3.5570540300000002,4.5999999999999996,2.95,3.62,3.94,2.2400000000000002,2.06,null,null,13.112206161884664,5.7533851296413472,8.7461108505315899,15.319249999999993,13.317900810496269,11.937274849094587,4.3396653919694153,null,null,9.9,6.06,5.98,8.42,8.1300000000000008,5.82,6.27,null,null,1.75,"n.a.",3,5.5,"n.a.",5.5,"n.a.",null,null,13.299844016974793,5.909280869761413,6.1751688690227402,10.316625025285585,17.390242563248549,11.829734286162896,8.6213152908029667,null,null,830.48284452083328,455.83083333333326,882.8416666666667,672.12971069315961,410.03311236608329,821.76666666666677,958.9518519999998,4073.084834246742,5032.0366862467426,null,null,1283.7562349566667,824.33916666666653,1436.9416666666668,967.04142680084624,582.68230238499984,1472.0083333333332,1773.6419804999998,6566.769130809178,8340.4111113091803,null,null,-2493.6842965624369,-3308.3744250624372,null,null,835.72804483000004,451.35999999999996,942,742.8274908711337,447.01642594000003,779.7,981.96570200000008,4198.6319616411338,5180.5976636411342,null,null,1202.4740107299999,760.33,1352.4,951.11695849700163,536.72006309999995,1336.5,1573.0740449999998,6139.5410323270007,7712.615077327001,null,null,-1940.9090706858669,-2532.0174136858668]
[null,null,"M",1.5816604303683284,0.5438723712835466,3.9983779399837882,3.9364640883977819,3.1655557282095037,3.1442355681250778,1.4563106796116505,null,null,3.2325305311446608,2.7229996776734717,4.2084870802430832,5.294982677795109,5.856479893844571,5.6552467746592754,7.2463568769429543,null,null,77.480162094469776,93.062576775472337,53.851276646844738,79.339471840934706,102.3552859070969,105.2916542322871,88.778871843473141,null,null,4.6288895432810078,0,-4.672961520530567,3.8358611013782928,4.9564182065029012,3.279653156936857,0,null,null,7273.8,3136.38,9424.5,4480.3941721141564,2404.1,6456.4,3757.08828541,null,null,65.006597998694716,100.28345187792864,102.76811868983131,86.445024245278319,123.921921718804,86.015874936279275,228.79233267044364,null,null,2.872900046393827,4.1734294987378213,1.3861966778444899,3.9673621262458552,6.3750687931510486,2.7784048387097031,0.63444976076555026,null,null,3.5658683799999999,4.74,2.97,3.54,4.1100000000000003,2.11,2.1,null,null,12.323424835344838,5.3569924269743874,8.7324651017702468,15.166511627906985,11.787419271149922,12.289358064516156,4.764306220095694,null,null,9.89,5.93,5.98,8.36,8.0500000000000007,5.82,6.29,null,null,1.75,"n.a.",3,5.5,"n.a.",5.5,"n.a.",null,null,12.72926537813326,5.40409688488801,6.230662575921353,10.527493337473093,18.23098364465876,11.093472922634962,8.423458768856861,null,null,839.54105157833328,463.21833333333325,895.19166666666661,684.698775940818,420.448080334,833.22499999999991,964.43337866666661,4136.3229078531513,5100.7562865198179,null,null,1300.9700253691665,832.60583333333307,1454.8916666666667,976.06009089048803,584.25291408999988,1476.1416666666667,1786.5760871666664,6624.9221970163226,8411.4982841829897,null,null,-2488.5992891631704,-3310.7419976631704,null,null,950.82249310999998,560.07000000000016,1086.9000000000001,808.96947863696732,538.43500650999999,962.30000000000007,1000.864201,4907.4969782569688,5908.36117925697,null,null,1406.3299872999996,883.65000000000032,1603.6,1058.5006261099995,618.18281272000002,1521.4,1951.0933660000001,7091.6634261300023,9042.7567921300033,null,null,-2184.1664478730336,-3134.3956128730342]
[null,null,"A",1.6438548141513163,0.86324398000908931,4.0887377540280143,4.1006202618883654,3.3548896941638962,3.5134460078261385,0.96618357487922701,null,null,3.4058518677509024,2.2892933796691417,3.6930230186737014,5.5812952173790373,5.406619210881872,5.3919989879491395,7.5800511902451131,null,null,77.754905526730084,93.110275312537212,53.634935680263759,79.041439945048012,102.27202480877131,105.2967793739048,88.888438538669732,null,null,4.8905507193855637,0,-5.1055114844195604,3.8604347436987352,4.9565455747047462,3.3121250125633126,0,null,null,7300.6,3256.02,9792.7000000000007,4440.4420675162419,2444.3000000000002,6316.5,3797.1627938300003,null,null,65.190337602843911,101.30355972797548,103.57412897941394,86.228945105611388,124.49684043751294,85.668890292996394,226.73573962664238,null,null,2.9083363586060247,3.556058558558556,1.2789685749844428,4.0723866269447084,6.2818807349457355,3.1073779457894521,1.1229665071770336,null,null,3.43425403,4.45,2.97,3.65,3.88,1.6,2.1,null,null,12.343240236990649,5.2514234234234198,8.6380740510267575,14.994511751075791,14.812052702971187,11.009732968712321,5.3223923444976071,null,null,9.86,6.16,5.99,8.4700000000000006,8.2899999999999991,6.13,6.34,null,null,2.5,"n.a.",3,5.5,"n.a.",5.75,"n.a.",null,null,12.973984173829557,5.7896145459940485,6.2906006484853672,10.019781804258621,19.849578871134167,10.089263224518884,8.6913598363513866,null,null,840.6837887224998,457.60499999999996,897.93333333333339,682.87264430256653,418.37343684299998,830.3416666666667,973.56182999999999,4127.809869868066,5101.3716998680675,null,null,1291.6529135666667,829.07333333333293,1446.9083333333331,972.38357005080536,577.5791706266665,1473.8999999999999,1778.8343538333331,6591.4973209108066,8370.3316747441386,null,null,-2463.6874510427388,-3268.9599748760725,null,null,897.85491715000012,446.36999999999989,947.09999999999991,716.02240160439851,423.46047325999996,798.69999999999993,922.14188200000001,4229.5077920143958,5151.6496740143957,null,null,1148.1727738300006,825.28999999999951,1346.8,917.40328644999897,517.46648430000005,1405.3000000000002,1582.0910039999999,6160.4325445799986,7742.5235485799967,null,null,-1930.9247525656001,-2590.8738745655992]
[null,null,"M",1.6711599502232679,0.96249886497775572,3.9329464861379915,4.0521978021978065,2.9072008795424518,3.1060543144257062,0.77145612343297698,null,null,3.3725420652838087,2.7230822559492038,3.3677173285857327,5.8742535261024891,4.7547991985983185,4.9497069269438692,7.4748179327042505,null,null,79.21203940480288,92.879227550018427,53.440837753576488,78.772988726680083,102.7209722819843,105.4886085275236,88.819640846336981,null,null,6.8829942588583322,0,-4.0245823645518994,3.8148737909884547,5.0795500863547716,3.3327876188293208,0,null,null,6832.9,3367.89,9916,4412.9522977873821,2501.1,6087.2,4573.9156307900003,null,null,61.971745547247927,107.82903417184244,107.39545028922142,87.754098600852416,130.63606781407998,86.21737619120762,274.77050770350326,null,null,2.8315208080503562,3.4938726504182016,1.4211600496277761,4.1112079207920749,5.7767629515751784,3.9027249295207471,1.3580669856459362,null,null,3.38393415,4.49,2.95,3.54,3.72,2.2799999999999998,2.14,null,null,12.273726448961723,5.2668081662019945,8.7624317617865817,14.89425742574257,14.507251640019687,11.167089810712852,5.5358373205741653,null,null,9.3800000000000008,6.28,5.99,8.44,8.19,5.97,6.35,null,null,4,"n.a.",3,5.5,"n.a.",5.75,"n.a.",null,null,12.55513185252417,5.8366157353246573,5.7952308775477634,10.572711768296351,19.460248583226083,11.976229907956881,8.4323679717247515,null,null,844.78812982583315,458.99916666666655,903.0333333333333,690.30375826349143,421.2764602433333,843.75833333333355,969.99499733333323,4162.1591816659902,5132.1541789993244,null,null,1301.6560553800002,836.48166666666646,1457.8916666666667,980.32113067307898,581.3228657691667,1477.5916666666669,1805.467686916666,6635.2650518222463,8440.7327387389141,null,null,-2473.1058701562542,-3308.5785597395879,null,null,997.50027349999982,507.97999999999979,978,819.0378450771691,459.93595424,943.69999999999993,1148.6238589999998,4706.1540728171713,5854.7779318171706,null,null,1432.5829674500001,917.2800000000002,1555.9,1069.2768987999987,623.99519275000011,1506.4,2108.29151,7105.4350590000031,9213.7265690000022,null,null,-2399.28098618283,-3358.9486371828298]
[null,null,"J",1.7743170392902428,0.92525399129173636,4.3649201636844905,3.6506311838962766,3.06106757003983,2.5509782877899596,0.67567567567567854,null,null,3.0685201757219915,2.6285612829539873,3.2083553058358305,6.0503943806799958,4.0961746633653568,4.5319678132251031,6.7901260464073427,null,null,78.689821661329717,92.881276628820515,53.033643010716872,78.527047096738073,103.3413340480579,105.6607748796818,89.047944958962162,null,null,5.0329000240165085,0,-3.9297570035111007,3.0867393031945807,5.2747878027508825,3.3711833808639207,0,null,null,6812.6,3282.88,10793.9,4522.4190168291079,2521.6,6512.7857449028688,4337.6371392700003,null,null,61.267789064762056,105.92737433772803,112.25872668115838,88.11569946313719,132.6322195101616,93.608941854442449,250.72276883254472,null,null,3.857243236713872,3.6905985978788336,0.99178903667257645,4.2444206714944093,6.2849621990578468,4.4846200289808591,1.4842953020134197,null,null,3.2246542300000001,4.6500000000000004,2.97,3.55,3.46,1.82,2.17,null,null,12.739641333780035,5.5137300017975823,8.3218382409471996,15.185019749835423,14.681525286768133,10.33536870069234,5.6362416107382511,null,null,9.67,6.49,6,8.42,7.98,5.6,6.35,null,null,4.5,"n.a.",3,5.5,"n.a.",5.75,"n.a.",null,null,11.803441740761356,6.0126735806858234,5.423674761916164,10.581635258681455,17.842685530252389,12.204381557498213,8.1733224238083935,null,null,855.0524546216667,461.565,903.32499999999993,695.34404243482265,426.42646554999993,843.15000000000009,962.47588683333333,4184.8629626064894,5147.3388494398214,null,null,1303.3350289108332,837.16999999999973,1460.7833333333335,987.57829501926255,584.42362171666673,1475.8416666666665,1805.3282388333328,6649.1319456467645,8454.4601844800982,null,null,-2464.2689830402737,-3307.1213350402745,null,null,960.09506071000033,493.35000000000036,901.09999999999991,800.17373150672915,464.98040143999998,866.3,909.66676700000005,4485.9991936567312,5395.66596065673,null,null,1341.2733847799996,873.05000000000018,1510,1069.1763269470987,631.75460431999988,1444.7000000000003,1818.8681200000001,6869.954316047093,8688.8224360470995,null,null,-2383.9551223903709,-3293.1564753903731]
[null,null,"J",1.1631081312736706,1.0170722847802309,5.2195394055303206,3.639455782312921,3.1288235822280464,2.5379037574159393,0.38572806171648166,null,null,2.6662280463705987,1.8587250889979816,3.0857903342502815,6.0245521852948976,3.7010220092348627,4.3007669736235536,5.6395246370294316,null,null,79.090691431278074,92.928413906628919,51.955649227841747,78.291606479574455,103.3426416040534,105.5726246340859,89.248259116968086,null,null,4.9499793130750174,0,-3.9205312342911496,2.6074363434010017,4.9531912196147294,3.298167684619651,0,null,null,6865.4,3323.66,11024.9,4472.8121381178662,2572,6248.7458037199667,3909.6115338700001,null,null,63.026444678724978,104.12788362549978,111.13590273592003,87.125828833093848,129.74927490291466,83.773793607274456,222.47815299021622,null,null,4.7318552752596821,3.5567529665588009,0.14299681914571405,4.4486380045946872,5.3716414229665483,3.2398714239794413,1.7276080691642737,null,null,3.2197600300000002,4.6100000000000003,2.95,3.57,3.69,1.62,2.12,null,null,13.974355009319881,5.2495361380798364,7.4515252953650419,15.158844765342964,12.149458033715607,10.83706203792994,5.9513160422670595,null,null,9.6300000000000008,6.32,6.04,8.41,8.25,5.34,6.36,null,null,4.5,"n.a.",3,5.5,"n.a.",5.75,"n.a.",null,null,10.863085855147192,6.3106444127771777,5.2448250545585662,10.726505338060676,18.20912093683782,10.360419246699237,10.396929639907704,null,null,862.17337668583332,466.45416666666671,908.45833333333348,704.70757788359595,428.57922429833326,840.62499999999989,963.07587041666682,4210.9976788677623,5174.0735492844287,null,null,1299.8134482925002,841.9991666666665,1477.9916666666668,991.5673726271724,584.93232928333339,1480.575,1809.9783749999999,6676.8789835363395,8486.8573585363392,null,null,-2465.8813046685759,-3312.7838092519105,null,null,865.86328000999947,549.80999999999995,906.2,769.40918599945485,439.33153406999998,819.8,927.41128100000003,4350.4140000794505,5277.8252810794511,null,null,1168.0568339600006,880.27999999999975,1518,1005.8717317599999,603.01225270999998,1467.6,1837.3985269999998,6642.820818430002,8480.2193454299995,null,null,-2292.406818350546,-3202.3940643505484]
[null,null,"A",0.90944211777957451,1.1379153390987711,4.716831053133963,3.8383152173913082,3.4704581014840974,3.1824552724874091,0.67502410800386003,null,null,2.4032953557024812,1.5255632442795719,2.8331487486439157,5.7896248038166984,3.612861539747271,4.3554991490462349,4.6131534425304146,null,null,80.000664889578943,93.403612823317928,52.127800629020882,78.12645777329179,104.1722699019288,105.45899397782171,89.334294766682874,null,null,5.047805815875436,0,-3.4680366238288949,2.1116085759820318,4.8709454471570037,3.3405090320207256,0,null,null,6868.5,3262.97,11277.9,4470.4148977895729,2518.4,6279.1282342772065,3571.3758189099999,null,null,62.775593092606684,102.96070764917053,112.83118126912206,86.938338320046597,129.57379318287451,82.653808032321834,198.50845450805906,null,null,4.9951300655662951,3.3638073807380739,0.6046486897075436,4.2100883218841973,6.3299717497185393,2.9244746304434854,1.3955555555555528,null,null,3.0750366200000001,4.54,2.95,3.5,3.42,1.84,2.08,null,null,13.725730309810174,5.2918676867686774,7.9673619445499275,14.957566241413147,12.178069519195974,9.9702461046744091,5.6369252873563189,null,null,9.39,6.49,6.03,8.36,7.92,5.78,6.35,null,null,4.5,"n.a.",3,5.5,"n.a.",5.25,"n.a.",null,null,10.714018522709567,5.6571453951479889,4.7731888380598608,10.929448583069412,17.967551796968607,10.374183581692753,8.122368683310599,null,null,870.32972761916665,469.74166666666662,908.61666666666679,709.23034573671214,427.29625412416658,839.30833333333328,954.17760550000014,4224.5229941467123,5178.7005996467115,null,null,1303.3420031625003,850.89666666666653,1484.9666666666665,1001.5132355390732,587.72740733333342,1480.9583333333333,1797.1376067499998,6709.404312701573,8506.5419194515744,null,null,-2484.8813185548611,-3327.841319804862,null,null,862.0247280399999,478.75,890.4,717.87896565785331,433.25307783999995,874.10000000000014,865.94033100000001,4256.4067715378551,5122.3471025378531,null,null,1367.9458363699994,936.54000000000087,1600.1,1156.552401244111,640.20690773999991,1587,1863.9844579999999,7288.3451453541056,9152.3296033541119,null,null,-3031.938373816256,-4029.9825008162552]
[null,null,"S",1.6412002719537446,1.5615012327641253,4.3599553642595374,3.6622583926754873,4.1228479442557164,3.7992417999010977,0.76997112608276908,null,null,2.385732247689567,1.4119411551377197,2.4239596688844212,5.367101727182833,3.686316749940731,4.7360195354921473,3.9378440111922099,null,null,80.378139931933759,93.77927634279871,52.898590312267679,78.560843743945853,104.8779721599645,105.64591471443219,89.533191223952628,null,null,4.9637135800056491,0,-2.9320395592215975,1.8168722189277169,4.8760778750159774,3.3452473182683256,0,null,null,6898.1,3320.04,11268.4,4516.842434066446,2492.9,6169.144841569394,3571.3758189099999,null,null,63.173052271464705,103.41724461777353,111.23655207106931,87.341399988178551,132.42813668508035,81.028453650831338,198.50841451299249,null,null,4.1408402466569516,3.0213208056105074,0.94868250210034666,4.3291952894995056,5.497694439841565,2.370689956331884,1.5282617000955139,null,null,3.3017964200000001,4.63,2.96,3.38,4.24,1.65,2.31,null,null,12.906970493210693,4.6951834202481626,8.3269915221874165,15.094926398429829,8.7208434011504252,8.7387518856689219,5.5473161413562595,null,null,9.6300000000000008,6.33,6.04,8.32,7.42,5.86,6.36,null,null,4.5,"n.a.",3,5.5,null,5.25,"n.a.",null,null,9.1841801700648151,5.6458744235802438,5.2859230382994227,10.412138685452721,17.764304661113961,10.063119300118096,7.1067564670950656,null,null,875.35469879583331,472.11666666666662,908.75000000000011,717.0435082860655,427.43252159083323,831.14166666666654,928.50165941666683,4231.8390620060654,5160.3407214227309,null,null,1307.7469542416666,853.67666666666662,1485.1666666666667,1011.3263867328901,587.09749102833337,1463.6333333333334,1792.6907245833333,6708.6474986695548,8501.3382232528911,null,null,-2476.8084366634916,-3340.9975018301589,null,null,887.45464378000042,473.44000000000005,837.09999999999991,671.76391641060059,398.63112921000004,780.90000000000009,814.60750700000006,4049.2896894006044,4863.897196400605,null,null,1320.0991799199994,826.77999999999975,1464.4,1129.7316620132028,560.82954577999999,1321.9,1749.7342849999998,6623.7403877132019,8373.4746727132006,null,null,-2574.4506983126048,-3509.5774763126028]
[null,null,"O",2.325431601228714,1.4300027324892914,4.2032771313227162,3.967446592065123,4.3733083811180258,3.4836907402842843,0.48076923076923078,null,null,2.6192804907850444,1.6787593370882685,1.9240883442830068,4.8299346797635065,3.7955040998387846,5.3046844337309089,3.680916304765689,null,null,79.359284508289164,93.733971007385293,52.924823017730283,78.670172864528283,104.64992940336271,105.9782293454835,89.774072324095954,null,null,3.8891653322705078,0,-2.0725755772753387,1.6666232711026865,4.7330316271886606,2.9990484348803577,0,null,null,6847.5,3332.08,11494.4,4521.7909723722523,2551.9,5821.8289709762084,3451.9862829700005,null,null,62.124047873877053,102.7671519409171,110.5630881242804,91.203760973212468,126.85641139901469,80.550955006448902,203.41585082909353,null,null,3.4933333217705806,2.9872790948275925,1.0812739288970017,4.1576027397260109,4.9404356100000033,2.1803525208416019,1.8503349282296648,null,null,3.2704807300000001,4.46,2.95,3.44,4.05,1.74,2.34,null,null,12.210618810252106,4.7816199712643739,8.5186599817684705,13.977984344422683,8.6331187525205646,8.9060500198491432,5.9307177033492824,null,null,9.56,6.28,6.04,8.3699999999999992,7.98,5.55,6.44,null,null,4.5,"n.a.",3,5.5,null,5.25,"n.a.",null,null,8.1031858800363352,5.1493703983421124,5.3522033390909662,10.527120294686231,16.596870790368822,11.022547400676963,7.3732784910300886,null,null,881.55783176500006,474.41500000000013,920.64166666666688,719.24847960090756,428.20830648250006,835.47500000000002,926.34705616666668,4259.5462845150741,5185.8933406817405,null,null,1316.8233492158333,864.78833333333307,1509.5416666666667,1021.1151896658157,595.16011810250006,1477.075,1791.8475345833331,6784.5036569841495,8576.3511915674844,null,null,-2524.9573724690749,-3390.4578508857426,null,null,893.28818878000038,469.51000000000022,851.7,609.40481282097983,411.11353718999999,917.69999999999993,1045.5348590000001,4152.7165387909772,5198.2513977909766,null,null,1376.2094839100007,948.78999999999905,1693.8,1068.6881177400005,690.09677477999992,1671.6,2030.9526149999997,7449.1843764300138,9480.1369914300158,null,null,-3296.4678376390184,-4281.885593639021]
[null,null,"N",2.4913167908647074,1.6760794315904568,4.691689008042915,4.3345750084659702,5.3467286613125937,4.1355542791499014,0.38498556304137771,null,null,3.0088952072559714,2.5355952891907965,1.5596292532180531,4.30100433643491,3.777759903156737,5.8802714152271323,3.8762936260246024,null,null,78.959055171320315,93.765133905845531,52.526814237029853,78.837556576094428,103.9109231819024,105.77000617457141,90.186195374532588,null,null,3.0862868459210064,0,-2.3409378977637783,1.6729729654271448,4.6175076347281001,2.9823810435429743,0,null,null,6837.1,3416.98,11572.6,4481.3185652269458,2660.2,6344.5116152361661,3264.9391592700003,null,null,60.328603634311008,102.73263802242272,112.65175616516969,88.669732404204765,129.05275410591128,83.28483304639181,189.69245143211131,null,null,3.325826339113946,2.7675344920265159,0.60015364916771519,3.8486043492372568,3.4092012959190336,1.0509817981246676,1.818015340364342,null,null,3.2447617700000002,4.49,2.95,3.45,4.03,1.63,2.21,null,null,12.058273418765218,4.6460490951442361,7.9837387964148343,13.529000324569941,9.7450382715068873,7.7537837837837973,6.0517162032598364,null,null,9.49,6.4,6.03,8.31,8.56,5.58,6.46,null,null,4.75,"n.a.",2.75,5.5,null,5.25,"n.a.",null,null,7.2410722382020509,5.145902398038471,4.9051265662446664,10.325954149000438,17.089521292033226,11.30639171952954,7.5171565150213171,null,null,886.83791320249986,478.42083333333335,922.44166666666672,720.89140356452879,430.65486741916669,839.50000000000011,924.27726574999986,4278.7466841861951,5203.0239499361942,null,null,1326.0861373316668,878.30999999999983,1510.7416666666668,1030.6463516863594,602.10460622166659,1477.9333333333334,1801.2156299999995,6825.8220952396923,8627.0377252396956,null,null,-2547.0754110534986,-3424.0137753034983,null,null,914.64881923999928,482.16999999999916,875.4,685.67973738425599,399.48306629999996,904.2,944.97099900000001,4261.5816229242555,5206.5526219242456,null,null,1546.5616946699997,1028.08,1569.1,1113.0404044299992,690.60073881000017,1614.2999999999997,1798.579432,7561.6828379099898,9360.2622699099884,null,null,-3300.1012149857488,-4153.7096479857428]
[null,null,"D",2.5741099538031378,2.0350428910385143,5.6768903256327485,4.7281323877068555,5.6784984336508488,4.2042774660486009,0.48076923076923078,null,null,3.2134559392320003,2.8507282622344423,1.5692960702930816,3.9117695048258327,3.6475242432501687,6.3417800333704086,4.2399882826366992,null,null,78.568225534679726,93.80301479980767,52.22094434998013,78.459786874165047,103.35442167158971,105.4957539036165,90.203238881028753,null,null,3.1948068515917925,0,-2.1916743355456307,0.43453246929667944,4.6403044566958052,3.2793254596894394,0,null,null,7149.8,3273.16,11769.5,4785.6407855964271,2716.2,6780.4030804810109,3510.3838357999998,null,null,63.251838212023173,99.497158101250491,105.92515915287497,85.606543162928986,130.52511384000408,82.61753779113198,196.45468000134809,null,null,3.2911716686767063,2.44519631517753,-0.37556964858614833,3.1146049661399551,3.8298470167812364,0.96514515373812682,1.7010526315789474,null,null,3.2129622900000001,4.53,2.96,3.43,4.05,2,2.19,null,null,11.987323167351516,4.2779000089437407,6.9297172274863721,12.901851015801352,10.711569663802315,6.6654869673794579,5.9406698564593308,null,null,9.7899999999999991,6.4,6.03,8.17,8.5,6.39,6.45,null,null,4.75,"n.a.",2.75,5.5,null,5.25,"n.a.",null,null,6.9326697559124018,5.3650048536689976,3.727708387403772,8.211391497500987,16.194870193215682,11.819029018974248,7.786854983765279,null,null,885.95876619499995,480.00083333333333,915.18333333333328,718.67812864921314,432.19693858833335,844.55000000000018,938.40921274999982,4276.5680000992124,5214.9772128492141,null,null,1326.4447366283334,880.95833333333337,1532.5416666666663,1033.8984564820259,603.4766783391666,1477.8583333333336,1828.2458631666666,6855.1782047828601,8683.4240679495269,null,null,-2578.6102046836463,-3468.4468551003133,null,null,808.90996123000059,421.03000000000065,887.3,585.16491921795637,356.00979888000001,815.7,961.01787800000011,3874.1146793279477,4835.1325573279755,null,null,1330.3895619700002,844.52000000000044,1744.6000000000001,976.2705883429004,575.23053875000005,1530,1981.75441,7001.0106890629104,8982.7650990629045,null,null,-3126.8960097349409,-4147.6325417349435]
[null,2018,"E",2.4078251769652224,1.422230274481378,4.7140952231547528,4.5729657027572372,5.3590959201744264,3.8632506263638304,0.38350910834132856,null,null,3.190389894912335,2.8890190123080033,1.9689956108499991,3.7175014331342724,3.4358298354998325,6.6600643476158172,4.4883841994413896,null,null,78.935188373354862,94.075782868400765,52.667148738813466,78.672361163061822,104.0888219374136,106.1248870577604,90.413863431743167,null,null,3.2281022048072447,0,-2.3180671350007698,1.1063215374145426E-2,4.7926229730830858,3.5285902774208018,0,null,null,7120.0502999999999,3441.87,11345.9,4674.0289756200364,2739.8,6803.9781630356683,3219.9777227200002,null,null,62.809300808576538,103.02149944147187,105.48346903062252,87.959663681286344,135.84042485887485,87.794403967967739,197.2166538553343,null,null,3.6053639618403541,2.9162933190425213,0.53087865168539705,3.5927395498392203,3.0131462929911548,1.7588024278266543,1.42602196752626,null,null,3.6385876599999998,4.38,2.96,3.5,4.03,1.69,1.8149999999999999,null,null,12.374225115255307,4.8093694176491661,7.9797325842696667,12.925935691318317,12.292982683003792,7.8629826472648308,5.9935052531041011,null,null,10.130000000000001,6.3,6.08,8.18,8.76,6.62,6.4,null,null,4.75,"n.a.",2.75,5.5,null,5.25,"n.a.",null,null,6.1547674726853296,4.6976374204637406,4.0845463747357869,8.5857373067208087,16.158911427150024,11.781437367081281,7.3081624939931311,null,null,889.04847731833343,486.15500000000003,915.21666666666658,721.45176372341666,436.43552980333334,852.7166666666667,955.9954388333332,4301.0241041784157,5257.0195430117501,null,null,1330.0559564649998,885.2791666666667,1543.7583333333334,1048.1354755154341,610.09014054666659,1498.3166666666666,1860.2551476666667,6915.6357391937681,8775.8908868604358,null,null,-2614.6116350153511,-3518.8713438486848,null,null,794.39131743999997,500.02,879.4,731.08867949350042,465.57595276000001,769.50000000000011,949.2,4139.9759496935003,5089.1759496935001,null,null,1320.5757626899999,898.76,1566.4,1061.9967038508978,632.98577080000007,1573.1,2027.24,7053.8182373408981,9081.0582373408979,null,null,-2913.8422876473974,-3991.8822876473973]
[null,null,"F",2.212488153872779,1.2286566085463904,4.1510318949343237,4.3333333333333339,4.8161039269698067,3.3158953722333822,0.38240917782027312,null,null,3.3550681584556172,3.0450826817326235,2.6975532669323821,3.7047358448574772,3.1419462803409322,6.9513887612543721,4.4134813485324154,null,null,79.18071383707192,94.253295617330011,53.050402310099201,78.293082093659862,104.4465134639195,107.4291711803252,90.39826274502596,null,null,2.4532936216300127,0,-0.57418587050558789,-1.4829870201496826E-2,4.6509741082928571,3.6621078173879966,0,null,null,7015.9,3370.66,11475.2,4764.165179075585,2770.9,8050.147613639987,2824.90965276,null,null,62.202851221090647,101.56120531052058,106.915234733948,86.815176685527689,129.08715280548532,106.38407819138267,169.35715355580464,null,null,3.7055274893860553,3.2118804105310144,1.0743706372438735,3.8498402555910531,4.914454433083443,2.497807136983853,1.4121904761904709,null,null,3.28750594,4.4800000000000004,2.94,3.46,4.51,1.7456538739512792,1.8,null,null,12.579198567958993,4.8517322623828658,8.5442918261652885,13.252396166134183,8.309097991062929,8.7819058191166359,5.6758857142857089,null,null,9.81,6.14,6.08,8.1999999999999993,8.35,5.5015999999999998,6.08,null,null,5,"n.a.",2.75,5.5,null,5.25,"n.a.",null,null,4.9092829247841641,4.9200491644593614,3.5488823410208203,9.4126040183161628,16.674414537975824,11.593720364612704,7.1498270035061262,null,null,892.73850981750002,489.27333333333331,914.07499999999982,724.50008036707732,437.35154586499999,856.05833333333339,951.34236591666684,4313.9968027162431,5265.3391686329114,null,null,1331.1211165875,890.76666666666677,1549.8583333333333,1049.4981095300839,613.0310934091666,1502.4750000000001,1868.8690682500003,6936.7503195267518,8805.619387776751,null,null,-2622.7535168105064,-3540.2802191438404,null,null,880.00843482000005,488.78,928.30000000000007,779.40729059506157,458.00861867999993,819.8,926.128827,4354.3043440950623,5280.4331710950619,null,null,1215.2559322,826.18000000000006,1425.6,967.46856667279587,572.01149744999998,1386.4,1676.441092,6392.9159963227958,8069.3570883227949,null,null,-2038.6116522277348,-2788.9239172277344]
[null,null,"M",2.6129676904971761,0.9105661738189732,4.1409966466505397,4.3521594684385452,4.8384299879093637,3.9112903225806317,0.57416267942583188,null,null,3.6184966437933896,3.1609132818024679,3.5603692859903227,3.7014084677160177,2.9113655801969918,7.2381604371095918,3.930449007167542,null,null,78.757388069789783,94.372494675889612,53.170268403625244,78.207779502171476,104.59020938535291,107.8461028409494,90.329623759673638,null,null,1.9285924893451545,0,0.48183875225968809,0.5206032447254485,4.6873629746557972,4.0078789354965085,0,null,null,8473.9,3400.37,11740.8,4832.1434372273143,2852.1,7576.7978562124863,2787.7063490299997,null,null,75.606783334985423,100.99064007733851,108.05976691663111,87.586873199233423,127.26086931481539,104.28371667786256,165.12133991951404,null,null,3.3007838928495308,3.4975859912445237,1.0649056462483251,3.6586119070359691,4.8786569437957805,1.8162700814901183,1.1740960989533831,null,null,3.4417385500000002,4.4400000000000004,3.03,3.36,4.38,1.8187,1.7549999999999999,null,null,12.061859809799694,5.3408022871437453,8.5163419200239723,13.260713148678759,7.8943052725614962,7.8218734963135557,5.5241198858230316,null,null,10.33,6.3,6.11,8.23,7.61,5.6927000000000003,6.13,null,null,5,"n.a.",2.75,5.5,null,5.25,"n.a.",null,null,3.8830331632307979,5.3508448302869605,3.7553130105482335,10.095217061631057,15.894782285555277,12.788396678576275,6.8240801937131002,null,null,902.80396170083338,483.74,912.27499999999975,721.63865633889054,435.07595586999997,853.4083333333333,959.82118627500006,4308.9419072430564,5268.7630935180578,null,null,1327.6891445841666,889.6674999999999,1540.1249999999998,1050.3490620807652,610.82362152833343,1511.75,1871.5825422500002,6930.4043281932654,8801.9868704432647,null,null,-2621.4624209502085,-3533.2237769252083,null,null,1071.60791571,493.66999999999985,1065.3,774.63239029872511,511.12792657,930.5,1102.6100452999999,4846.8382325787261,5949.448277878726,null,null,1365.1463232600001,870.46,1486.8,1068.7120567181776,591.69315015000006,1632.7,1983.6550540000001,7015.5115301281767,8999.1665841281792,null,null,-2168.6732975494524,-3049.7183062494523]
[null,null,"A",2.3754301980577606,0.87387387387387294,3.920348475420016,4.2039059913935741,4.8240941781801796,4.0456848709080599,0.76555023923444698,null,null,3.7664855288621104,2.9990870505427125,4.2249833416200024,3.6875586179505935,2.9536224755886322,7.4792018982738293,3.3104752641503863,null,null,78.731134455356738,94.584477732743579,53.412526062315351,78.353414946100102,104.8572612534535,108.08054986648,90.392865767822968,null,null,1.161088161003597,0,0.99386415914939263,0.80594044929493069,4.88220649321336,4.2210806592490897,0,null,null,8128.2201999999997,3401.03,11845.9,4873.4576251489889,2932.5,7202.1803552235524,3344.6422300300001,null,null,71.758541917123722,101.44636603888395,108.63128769400574,91.373148050940685,131.89225865730467,100.22814653691236,204.86484645578491,null,null,3.6869879761578277,3.3567919978565692,1.2794910179640926,3.9404415501906018,4.6880047132254345,2.0847718305504093,1.0067426400759765,null,null,3.4717663399999998,4.26,3.05,3.52,4.21,1.9897,1.78,null,null,12.243728575980178,5.3890327766365989,8.7563712574850499,13.258710292249051,10.491220113557171,7.8291715213358142,5.3236942070275441,null,null,10.48,6.31,6.2,8.27,7.21,5.7499000000000002,6.13,null,null,5,"n.a.",2.75,5.5,null,5.25,"n.a.",null,null,2.9923700113904772,5.0620712594141581,3.4486803286323697,11.384709598595254,13.812784202251937,13.532892362416082,6.4633307822110631,null,null,906.38518832916668,489.87249999999995,912.00833333333321,724.05931043972384,441.86641886166666,859.95833333333337,975.34309619166686,4334.1500842972237,5309.493180488892,null,null,1353.2542708008332,904.29750000000013,1566.0249999999999,1068.712782600167,622.84646118750004,1528.6000000000001,1899.7166955833334,7043.7360145885023,8943.452710171834,null,null,-2709.5859302912763,-3633.959529682943,null,null,940.82963668999992,519.96000000000026,943.9,745.07025081439986,504.94602915999997,877.30000000000018,1108.4048010000001,4532.0059166643987,5640.4107176644011,null,null,1454.9542884299999,1000.8499999999999,1657.6000000000001,1137.7679326828199,661.74056021000001,1607.5,1919.700844,7520.4127813228224,9440.1136253228178,null,null,-2988.4068646584174,-3799.7029076584167]
[null,null,"M",2.0359031201269446,0.82741253709866147,4.0865384615384404,3.9933993399340006,5.2647100235690694,4.4703987112363661,0.76555023923444698,null,null,4.0048235235486587,2.1175172353755403,4.4937735386637314,3.6334907584453657,-5.1388672891716602,7.6703972467310324,2.8145020774961989,null,null,78.987670416121205,94.679663445002831,53.530351462456302,78.95369513566807,105.3862757138097,108.1081499381674,90.596968319341471,null,null,-1.0070217697586545,0,1.4389324287600729,1.410792983677474,5.0729682688445541,4.1668162988531563,0,null,null,8010.7,3532.18,11849.5,4890.554671413397,2868.5,6911.1900791018998,3307.9993902700003,null,null,71.680043227924685,105.58798630176298,111.62097914797744,93.903400898586213,131.38920877546411,97.528749036899157,203.31132245574528,null,null,3.8359996434441186,3.424254749799303,1.0889607390300435,4.1412250079339818,3.8405072940444644,1.5021492289900171,0.94223646723647003,null,null,3.2165026499999998,4.28,3.01,3.47,3.88,1.9204000000000001,1.7149999999999999,null,null,13.779482433805684,5.6359548657568448,8.544295612009261,13.487972072357971,9.3704160742906009,7.6717437548188547,5.3137701804368511,null,null,10.539722330577412,6.51,6.22,8.1999999999999993,8.34,5.3033000000000001,6.12,null,null,5,"n.a.",2.75,5.5,null,5.25,"n.a.",null,null,2.0882319324248666,5.2141296026069428,3.8430112397368932,11.893551018736016,10.911333039210724,12.869139797450369,6.1317849013327264,null,null,911.96573274499985,490.27416666666676,910.24166666666645,720.92839601184244,442.65992481416657,862.66666666666663,955.43864960833344,4338.7365535710087,5294.175203179344,null,null,1359.4307116983334,908.95500000000004,1593.1249999999998,1083.8047955247075,622.52101400250001,1545.4750000000004,1884.6697071666665,7113.3115212255407,8997.9812283922092,null,null,-2774.5749676545315,-3703.8060252128648,null,null,1064.4668064899997,512.79999999999995,956.8,781.46687194259312,469.45802566999998,976.2,909.77050000000008,4761.1917041025918,5670.9622041025905,null,null,1506.7002582199998,973.17000000000007,1881.1,1250.381053894484,620.08982652999998,1708.9,1927.7276489999999,7940.3411386444823,9868.0687876444863,null,null,-3179.1494345418942,-4197.1065835418958]
[null,null,"J",2.1341316063528097,0.89879561387740425,3.7902667794264708,4.1474654377880071,5.6707510633995986,4.6288842376428629,1.1663470757430454,null,null,4.15536621468405,1.6480183488555529,4.3713920562030886,3.5546701120976314,-4.6216999605957039,7.7384713889175467,2.8501631996834211,null,null,79.213949607837421,94.638360125181322,53.572845035855849,79.199480576838994,105.7798055818926,108.00224459306671,90.492553899121148,null,null,6.6765258668008845E-3,0,1.9823148030586626,2.1707918646831055,5.2103541563372433,4.0268796112327383,0,null,null,8070.9,3457.39,11979.2,4884.7412109127436,2572.4,6597.9586467956469,2895.9110779099997,null,null,71.560793235375812,104.44513925706404,111.18345185041005,92.358597644868311,117.081529820464,96.050877547897571,174.56980874737422,null,null,3.736134369217901,3.4204614288259396,1.3678866666666587,3.862345132743374,4.2338761273548542,1.8193979379857166,0.6115204731013667,null,null,3.2757069099999998,4.3499999999999996,3.07,3.4,4.1100000000000003,1.8028,1.7849999999999999,null,null,13.659904439202084,5.4224674861927671,8.8155985185185095,13.022433628318597,9.8692160727252656,7.1497615757482791,4.9163116668957025,null,null,10.541406350781061,6.37,6.29,8.1999999999999993,9.08,5.3677000000000001,6.14,null,null,5,"n.a.",2.75,5.5,null,5.25,"n.a.",null,null,1.5006209498118483,5.602774686067713,3.9884091510973274,12.097002897858289,8.7437002681588716,11.932454382803037,6.021679486258269,null,null,913.13759133416659,493.52833333333336,910.72499999999991,716.04244160758799,435.93976429249989,866.81666666666672,971.08744077500012,4336.1897972342531,5307.2772380092547,null,null,1362.4255060858334,918.98583333333329,1601.0583333333334,1090.7674748247318,606.4160056500001,1570.75,1891.228930333333,7150.403153227232,9041.6320835605657,null,null,-2814.2133559929771,-3734.3548455513105,null,null,974.1573637800002,532.40000000000009,906.9,741.54227865567498,384.33847517999993,916.1,1097.4522610000001,4455.4381176156712,5552.8903786156734,null,null,1377.2109174300001,993.42000000000007,1605.2,1152.7284785473921,438.49450408999996,1747.9999999999998,1897.578798,7315.0539000673962,9212.6326980673912,null,null,-2859.6157824517177,-3659.7423194517178]
[null,null,"J",2.084340184925372,1.0607695073714551,2.6052711299606117,4.2336724647194073,5.171925852311821,4.4278367084538361,1.3046109510086528,null,null,4.0641309665222387,2.4497084590473084,4.0586102292145574,3.5298249347181723,-4.2274441351631209,7.5637257719494171,3.3066413190993176,null,null,79.013053173998145,94.577457965819093,53.394110975894783,79.07250558357687,106.4687615635963,108.4736322076609,90.613363932171538,null,null,-0.84585256004833831,0,2.5199871467060695,2.3520681590878554,5.3466567098565303,4.3199649242625568,0,null,null,7900.4038,3752.4,12127.1,4813.8329813645632,2414.6,7391,2526.4067045899997,null,null,69.752972077510279,108.84367948721297,110.753957818901,93.040202913732131,113.01767173018879,113.48047206625857,154.00965066020674,null,null,3.835710558525848,3.215125422522676,2.4996073221139716,3.9683217884130859,3.6218700790777842,1.7213449480569809,0.47913816008442456,null,null,3.4577165299999999,4.3099999999999996,3.08,3.57,4.78,1.7159,1.79,null,null,13.730393836973336,5.2436078989503585,10.09180986123414,12.775456549118374,11.354695956414464,8.4928152981916494,4.7632472043399154,null,null,10.489836757804584,6.36,6.36,8.17,9.7899999999999991,5.7885999999999997,6.13,null,null,5,"n.a.",2.75,5.5,null,5.5,"n.a.",null,null,2.0082522639847777,5.6019228059110082,3.9036428331589157,12.405640614125591,5.806133328415819,13.696699996199158,5.1581917390429277,null,null,918.04979195499993,490.34833333333336,910.12499999999989,712.36171482084126,439.75694323166664,876.39166666666688,979.36236702500003,4347.0334500075087,5326.3958170325086,null,null,1384.3171369483334,924.42916666666679,1612.75,1104.2572869420887,596.66842111250003,1595.9583333333333,1914.6629169999999,7218.3803450029227,9133.0432620029223,null,null,-2871.3468949954145,-3806.6474449704142,null,null,924.80968746000008,511.65000000000009,899,725.24046455849532,485.13768133999997,934.69999999999993,1026.7103959999999,4480.5378333585031,5507.2482293584981,null,null,1430.7564043100003,945.60000000000127,1658.3000000000002,1167.7494771682852,486.04123826,1770.1000000000004,2118.6063669999999,7458.5471197382794,9577.1534867382798,null,null,-2978.0092863797909,-4069.905257379789]
[null,null,"A",2.2403361755443707,1.4491449144914488,3.3649829092290124,4.3506705920837465,4.9511530243974669,3.8673591689971794,1.0795019157088077,null,null,3.7086599795777309,2.8011657277370987,3.7621384323941367,3.5700290387868532,-4.1165865139604998,7.1499625015347341,3.7639396691674909,null,null,79.314929334135684,94.502717859885138,53.434166890532452,78.903845733692449,107.31583836870131,108.97035827107111,90.716050650811042,null,null,-1.2460219089082725,0,3.227180024253113,2.6753676542399076,5.3343196973648572,4.562228288342947,0,null,null,7799.9912000000004,3655.86,12535.8,4726.7085381577817,2315,7430.6821161792477,2787.9804913400003,null,null,68.527826125852599,109.7611942090947,116.00322403676908,92.320547936525514,111.52177924691181,108.89523874930094,170.04835559024571,null,null,3.6283760042476967,2.8397036642711391,1.7269069664903038,3.7463385579937261,5.493746608160075,2.4615440803138942,0.71280335838221964,null,null,3.5732170399999998,4.33,3.07,3.57,4.8499999999999996,2.0482999999999998,1.8,null,null,13.571387311747221,5.0871351255434307,9.2439594356261061,12.639429467084636,10.572220186671069,8.2099332256327653,5.4417542429899504,null,null,10.49066799339545,6.61,6.37,8.17,9.89,5.4657,6.58,null,null,5,"n.a.",2.75,5.5,null,5.5,"n.a.",null,null,1.9863477023189136,6.4604132689425109,4.2231822997498947,13.391168640317863,3.2725355370075482,13.364072240070124,5.1667387600109915,null,null,925.18570166000006,491.66833333333335,913.89166666666654,714.38433548569822,444.75968046083335,877.94999999999993,992.64215377500022,4367.8397176065309,5360.4818713815321,null,null,1387.9036162675002,930.7791666666667,1625.3916666666667,1111.2890175983114,589.1776189725,1613.4750000000001,1928.1255158333333,7258.0160861716458,9186.1416020049783,null,null,-2890.1763685651131,-3825.6597306234457,null,null,947.65564449999965,494.58999999999969,935.6,742.150413636135,493.28592459000004,892.8,1025.2977719999999,4506.0819827261294,5531.3797547261347,null,null,1410.9835881999991,1012.7399999999998,1751.8,1240.9331691187799,550.31728206000003,1797.2000000000003,2025.535644,7763.9740393787797,9789.5096833787757,null,null,-3257.8920566526431,-4258.129928652641]
[null,null,"S",2.211752846119865,1.3846430498111908,4.552050714122033,4.3833824010467888,5.1374086584802514,3.2870186581976699,0.75377268385863794,null,null,3.0098266938134191,2.1297016916181368,3.5126314308512265,3.6451517999191911,-4.3463327721874903,6.5730245808607064,3.8762143695178297,null,null,80.878161697478561,94.655618304827911,54.342534055083938,79.179066817621063,107.4836301586824,109.3461059131896,90.935706069061808,null,null,0.50379474959777826,0,4.9582659724261777,2.8072895227810735,5.2939982085484658,4.4683317304259749,0,null,null,7468.7727000000004,3558.55,12309.2,4629.7832003720378,2122.6,7328.6,2200.1805097499996,null,null,67.422867663872623,108.30103521370017,118.99380288220995,91.972290959503624,111.29132510121791,106.60068076099671,133.04346936665473,null,null,3.6084374361848615,3.0432192266761202,0.55278617868363078,3.7904669382638563,5.5669955421510142,4.3811714197863303,1.1277268194279662,null,null,3.6225425200000001,4.47,3.13,3.59,5.27,2.1789875477662557,1.89,null,null,13.266695232171843,4.9863142958495867,7.9557973555409607,12.699931056095258,12.226899918920809,9.7170107917938537,5.8024897335461887,null,null,10.523450251057346,6.44,6.36,8.17,10.52,5.8731681699515201,6.6,null,null,5,"n.a.",2.75,5.5,null,5.5,"n.a.",null,null,3.6776062933818965,6.7179967915566907,4.970978007023108,13.363940856201584,4.9589351650070057E-2,13.201750113251954,5.0925835021585542,null,null,924.88908784916691,490.88499999999999,913.89166666666677,714.36666942087879,445.66717773000005,887.9666666666667,999.91716777500017,4377.6662683333789,5377.5834361083789,null,null,1371.6666375741668,946.64583333333337,1634.9499999999998,1111.4040989646167,582.76776970666674,1638.3500000000001,1929.6463110000002,7285.784339578785,9215.4306505787845,null,null,-2908.1180712454043,-3837.8472144704047,null,null,883.89527804999989,464.03999999999996,837.1,671.55192363276944,409.52109643999995,901.1,901.90767500000004,4167.2082981227722,5069.1159731227672,null,null,1125.2554356000012,1017.1799999999994,1579.1,1131.1126384088675,483.91135459000003,1620.3999999999999,1767.983827,6956.9594285988715,8724.9432555988751,null,null,-2789.7511304760992,-3655.8272824761007]
[null,null,"O",2.0269004078892925,1.4906609195402269,4.337587359465223,4.6640574037834153,5.1042985286963898,3.5172687574433867,1.0280382775119559,null,null,2.206542754053157,1.7625040173759072,3.3441654187521692,3.7135973149825245,-5.0252222988904789,6.0512597302336397,3.53632526899717,null,null,82.603381866331034,94.658810111283387,54.718825288219428,79.033203670446014,107.6688664190784,109.686552019077,91.074985642604986,null,null,3.6154868527235227,0,5.2514373799338889,2.5904520239291897,5.5070726579191795,4.5344467116096014,0,null,null,6866.1754000000001,3499.76,12357.4,4612.6674062992843,2032.9,6984.5,2374.0483965200001,null,null,63.768238947704567,103.87007870627178,120.78836757538858,93.8512414524278,109.61898653263074,102.19483109125488,143.82099059361624,null,null,3.6981419380833707,2.708957706600605,0.74030141973060115,3.5216889996883918,6.2355551170822006,4.565258820371267,0.91258005025844924,null,null,3.6663670599999998,4.24,3.14,3.64,5.0599999999999996,1.7476,1.95,null,null,13.400819765336456,4.6894354981419246,8.1585293046960157,12.407260828918682,12.529582619530535,9.8943213683080682,5.4261785301915388,null,null,10.660239715476584,6.25,6.39,8.24,10.87,5.9096000000000002,6.51,null,null,5,"n.a.",2.75,5.5,null,5.5,"n.a.",null,null,5.1187927023158775,6.7592091028168877,5.1742681505719368,13.691653788247526,-3.2672906060357221,11.398195575390812,4.4595692859063396,null,null,933.73983009499989,492.64416666666665,914.44166666666661,717.00997049806767,448.24492954333328,885.54166666666663,994.97627152500024,4391.6222301364005,5386.5985016614022,null,null,1387.6148297683333,955.25166666666667,1647.6416666666664,1117.1301314221125,572.08594228333334,1659.625,1941.3903399999999,7339.3492368071129,9280.7395768071128,null,null,-2947.7270066707115,-3894.1410751457111,null,null,999.49709573000018,490.61999999999989,858.30000000000007,641.12442574724696,442.04655895000008,888.59999999999991,986.24410399999999,4320.1880804272441,5306.4321844272417,null,null,1567.5877902399998,1052.0600000000013,1846.1000000000001,1137.4005072299494,561.9148457,1926.8999999999996,2171.8809630000001,8091.9631431699527,10263.844106169956,null,null,-3771.7750627427013,-4957.4119217426996]
[null,null,"N",2.2924130467923365,1.0750761512273685,3.1483015741507776,4.7062641999350854,4.3957333820349653,2.3717595146166177,0.77996164908917043,null,null,1.6079283055044875,1.6979457818082502,3.2924269017328269,3.7652878607470686,-6.0293494954625579,5.6636748533428003,2.7238766276824475,null,null,84.815464822376939,94.75983899214819,54.631702685023043,79.045524051020763,107.7317857061325,110.3665197283905,91.409827721197402,null,null,7.5695901850684155,0,5.0264637098428642,2.7755427565705055,5.9591319268513052,4.5750239556347712,0,null,null,6537.8323,3503.95,12472.4,4462.9558556984221,2026.7,6687.3247431731197,2579.2710548099999,null,null,58.564255756974227,102.34984458900722,121.24234876853002,93.11723943275318,105.31579113571074,96.365383402432116,150.17160703671473,null,null,3.4778600359933747,3.2697713171423608,1.8824337349397682,3.479959702417855,6.8261917801732386,5.6173113685345237,1.1709057352290571,null,null,3.5975362099999999,4.38,3.15,3.64,5.58,1.9041999999999999,1.96,null,null,13.241182043357032,5.4463712107782412,9.3668032128514174,12.352399256044638,13.778775283205887,9.7198099676724574,5.7253825626584547,null,null,10.732079455605849,6.58,6.42,8.2799999999999994,11.02,5.9271000000000003,6.55,null,null,5.25,"n.a.",2.75,5.5,null,5.5,"n.a.",null,null,4.6564307171231167,6.8424848593473531,4.9312294650942112,13.740365690853128,-6.343971991981789,11.101611878450313,4.4649620890699238,null,null,936.42255721166657,492.36916666666679,913.14166666666654,716.44233106348349,450.58781918749997,885.80000000000007,988.03861360833343,4394.7635407959833,5382.8021544043195,null,null,1385.8693375433334,951.9675000000002,1658.0000000000002,1126.1672532222353,560.17896533416672,1675.7833333333335,1934.6553272499998,7357.9663894330697,9292.6217166830684,null,null,-2963.202848637085,-3909.8195622787512,null,null,946.84154464000039,478.86999999999989,859.8,678.86806416924276,427.59774202999995,907.3,861.7191039999999,4299.2773508392493,5160.9964548392527,null,null,1525.6157879699995,988.67000000000007,1693.4,1221.4858660314728,547.71701541999994,1808.2,1717.7592789999999,7785.0886694214714,9502.8479484214622,null,null,-3485.8113185822294,-4341.8514935822313]
[null,null,"D",2.0272621475774466,0.43824344870762438,2.3129150190255943,4.2244437278297209,3.8850547509849016,1.1705946620883314,0.15837320574162145,null,null,1.4483381360284666,1.8858207962775744,3.3380699528163715,3.7872328263968305,-7.1071481603765276,5.4636636179586873,1.8305563389230388,null,null,83.328462041600517,95.263821001327457,54.838373684111289,79.299135820549722,107.3028584946746,110.8588854986702,91.863963407708681,null,null,6.0846005172708146,0,5.3319185894074517,3.2715290467338232,5.7365154921040622,4.2268282290833037,0,null,null,7494.9984000000004,3353.55,12755.6,4853.1386447195428,2038.9,7627.1078836426968,2907.0582651700001,null,null,68.517783645481785,99.118893904611426,113.55932336120256,91.23046266398174,107.34241795445925,98.937327768798227,160.07850169838505,null,null,3.8938003125832998,4.004208370436336,2.6752096550718263,3.8911757425742679,8.6321639385310416,6.9632933970996715,1.818746387300501,null,null,3.6468646100000002,4.46,3.14,3.65,5.24,2.1215999999999999,1.98,null,null,13.585275868991921,5.7167034728406101,10.171819441405964,12.670306311881198,15.380325157611544,10.766721714193455,6.3915043639021514,null,null,10.812962593964714,6.18,6.45,8.1199999999999992,11.03,6.0841000000000003,6.56,null,null,5.25,"n.a.",2.75,5.5,null,5.5,"n.a.",null,null,4.4432114496036901,6.8864085962981436,4.5397688442660122,14.292218895198383,-8.828082165925677,10.372298125428436,3.3541087512918955,null,null,940.02041484666643,492.11583333333328,914.14166666666642,717.55127072029916,451.34094328791667,886.50833333333333,968.88348602500002,4401.6784621882152,5370.5619482132161,null,null,1380.7841265216668,955.35916666666697,1639.5250000000003,1137.3816978501859,552.3784138883334,1683.1083333333336,1917.1636025833332,7348.5367382601862,9265.7003408435194,null,null,-2946.8582760719705,-3895.1383926303038,null,null,852.08425284999976,417.98999999999978,899.3,598.47219509974548,365.04728808499999,824.2,731.15634699999998,3957.093736034738,4688.2500830347417,null,null,1269.3670297100007,885.22000000000116,1522.8999999999999,1110.8439238783092,481.62392139999997,1617.9,1771.8537139999999,6887.8548749883048,8659.7085889883165,null,null,-2930.7611389535668,-3971.4585059535675]
[null,2019,"E",1.6663756337366431,0.24984360485888271,4.1048689138576737,3.9549839228295856,3.3048488318587941,0.70811609991439906,-0.30477554918817584,null,null,1.6570334148383281,2.4019370859975155,3.4758318671844721,3.6918025889901331,-8.0760932408639956,5.3709633027106287,1.7882951096861621,null,null,83.925514371830417,95.296502452786584,54.096653811205996,79.287113418644452,108.3876593753924,111.3420104919789,92.096578533044351,null,null,6.4431894195015449,0,5.2976823492953589,3.1675016378280603,5.9286961769362607,4.0455392991671291,0,null,null,7571.5874999999996,3493.55,12452.4,4788.8999999999996,1961.6000000000001,7046.5049646461903,2844.6931911500001,null,null,71.081034112191006,99.927461738641441,116.29543082487007,94.433264908578437,109.80240371966769,95.72633541805429,168.4498577955948,null,null,4.5084958893157809,4.0699877909269491,0.90786444092675589,4.2181874420043268,9.9212425899130565,7.1115260392520527,2.3419131277848919,null,null,3.6397709100000002,4.33,3.16,3.69,5.1583060550661974,2.2852999999999999,2.0299999999999998,null,null,11.790722912606283,6.2844550860084958,8.2946467117570908,12.933498298793685,15.714175368554594,11.830311559264416,6.8682081683526599,null,null,8.3605535300000007,6.55,6.55,8.18,11.072876283627158,6.1733000000000002,6.5424999999999995,null,null,5.25,"n.a.",2.75,5.75,null,5.5,"n.a.",null,null,4.4761505862802808,7.3051971145787986,4.6742866691968699,13.808150180579325,-11.911048796065293,9.9487446696527648,2.9884078096588329,null,null,942.47812150999971,490.77083333333331,912.17499999999984,712.80804424704547,448.92931076791666,892.43333333333339,957.65706935833339,4399.5946431916282,5357.2517125499626,null,null,1383.1126256183334,958.97583333333353,1649.4583333333333,1140.1380354755993,541.84142573666668,1687.9666666666669,1900.4697692500001,7361.4929201639316,9261.9626894139328,null,null,-2961.8982769723043,-3904.7109768639712,null,null,823.88379740000005,483.88,855.80000000000007,674.16996181445597,436.63636252000003,840.59999999999991,814.48300000000006,4114.9701217344555,4929.4531217344556,null,null,1348.51775185,942.16,1685.6000000000001,1095.0727553558581,506.54191297999995,1631.4,1826.914,7209.2924201858586,9036.2064201858593,null,null,-3094.3222984514023,-4106.7532984514019]
[null,null,"F",1.5354770355484519,0.34841535029005516,4.458455302859714,4.089456869009588,3.3579926806237168,1.1918672587053112,-0.50047619047618463,null,null,1.6662238988202831,2.5042656719128726,3.6557884847367479,3.5220781497473741,-8.8125175073167394,5.2554067091814902,2.0317251036574184,null,null,84.641136942569474,95.353778642631639,54.158724515788514,79.016845517383416,108.7268387758843,111.4329248424341,92.233983138156688,null,null,6.9123823726509661,0,5.0440513637539688,3.4787463230153115,5.9827045671758574,3.3915467664156624,0,null,null,7525.2952999999998,3615.3,12557.2,4838.3999999999996,1937.4,7133.8695190563603,2480.4440872700002,null,null,70.603425737943297,100.41713399117069,116.13530442341171,95.019913805810859,109.09972242715232,97.141760608923676,147.83037335399897,null,null,4.6432272759214523,3.9777256429773873,0.54715024789825639,4.1027624309392223,10.391810478580974,5.9860865357967601,2.5934558193626134,null,null,4.0652984300000004,4.34,3.15,3.69,5.3094594696521398,2.3952,2.08,null,null,11.995065330896596,6.2298787956813255,7.9567945677947849,12.816421117249842,14.667742021612719,12.066911177829093,7.1311659783009187,null,null,8.6145363600000007,6.6,6.56,8.1999999999999993,12.604218208320511,6.3169000000000004,6.5949999999999998,null,null,5.25,"n.a.",2.75,5.75,null,5.5,"n.a.",null,null,4.218567346316604,7.0481885113485632,4.2161525947022271,14.17435284959323,-14.099994703577302,9.634218830756879,3.2442669240535515,null,null,943.1759170783331,489.04333333333329,909.34166666666658,707.97992964212892,447.4112899120833,893.38333333333355,944.70416710833342,4390.3354699658785,5335.0396370742119,null,null,1381.5044247291669,962.60083333333353,1652.2833333333331,1147.9821434292651,534.74752227083343,1694.5666666666668,1902.8768449166666,7373.6849237625984,9276.5617686792666,null,null,-2983.3494537967199,-3941.5221316050533,null,null,888.38198164000005,468.05000000000007,894.30000000000007,721.46991533606376,439.79236840999999,831.2,770.69400000000007,4243.1942653860642,5013.8882653860637,null,null,1195.9575215300001,869.67999999999972,1459.5,1061.5978621167856,486.88465585999995,1465.6,1705.326,6539.2200395067848,8244.5460395067857,null,null,-2296.0257741207215,-3230.657774120722]
[null,null,"M",1.4201372317598189,0.68222728491020856,4.1710348959113555,4.1388092964024192,5.0875154396655624,1.4745828482731846,-0.18401522359658529,null,null,1.4155379926554996,2.6832361389649346,3.824821077350387,3.3684389512365596,-9.3787119589420662,5.0733779762151627,2.8705426598116217,null,null,84.185963052698355,95.470022340624595,54.056238035461632,79.103801479916569,107.21610192797451,111.1828197242308,92.1731667482332,null,null,6.4383590619585362,0,3.9799349240780826,3.4154923662152821,5.7659079958260344,2.7107971081107372,0,null,null,8336.4212000000007,3594.41,12759.2,4830.8999999999996,1913.1000000000001,7353.5459141715801,2697.0524484800003,null,null,77.483024719104662,103.75867227142066,114.000060682773,96.794360473132485,112.13094091830871,97.992932795370365,162.27434706308412,null,null,4.7129326568721721,3.6031907645665533,0.81497232406007847,4.0726322225619089,6.6573165560866041,5.5968864244741887,2.2882259076168818,null,null,3.9689317599999998,4.3099999999999996,3.12,3.74,5.8845742684087234,2.0144000000000002,2.1,null,null,11.682388795397801,5.7485545077499856,8.273859535619275,12.734148578416384,13.605009069912398,11.109991128107076,6.8315863825536356,null,null,9.02676634,6.47,6.59,8.19,11.419850272378261,5.8235000000000001,6.6349999999999998,null,null,5,"n.a.",2.75,5.75,null,5.5,"n.a.",null,null,4.2706767075909147,6.9718587610636096,4.2748883929449644,13.989539648589133,-16.815600545838837,11.87279628564788,3.4579045014985654,null,null,941.02587402499978,490.81083333333339,909.2833333333333,710.51082286208236,445.2254869645833,898.00000000000011,928.23582999999996,4394.8563505183329,5323.0921805183325,null,null,1387.1064448983334,973.39000000000033,1663.9416666666666,1151.879277228827,527.60716573333332,1700.0833333333333,1886.45267375,7404.0078878604936,9290.4605616104946,null,null,-3009.1515373421621,-3967.3683810921625,null,null,1045.80739907,514.87999999999988,1064.5999999999999,805.0031089381655,484.89829120000002,985.9,904.99,4901.0887992081662,5806.0787992081659,null,null,1432.3705652899998,999.92999999999984,1626.7,1115.4776623129226,506.00887169999999,1698.9,1786.5650000000001,7379.3870993029232,9165.9520993029219,null,null,-2478.298300094757,-3359.8733000947577]
[null,null,"A",2.070072322870216,0.8047791372689137,4.7529940119760541,4.8602287166454925,5.7699592597319818,1.6079158936301692,-9.3922127255461008E-2,null,null,1.208329224731767,3.2796748778831404,3.9219209179067933,3.2094278192768813,-9.8787131581012009,4.8810527307391478,3.8711909635143544,null,null,83.503045088416471,95.698243775789592,53.628617189049891,78.728777801696921,106.39573420852859,111.07679861954951,92.279974457675394,null,null,6.1424251408241499,0,3.1228021769944125,3.3049568235262421,5.225942062071522,2.3854237867395689,0,null,null,8138.8918999999996,3712.89,12845.9,4950.8,1968.8000000000002,7275.4016782442932,2979.7113331100004,null,null,75.55809632803637,100.92463074299364,114.27460359814248,97.992487804463451,115.17211213908493,94.491658896647124,181.79646453501937,null,null,3.9971830961616948,3.407795634424478,0.24534476598784666,3.356631323841258,7.6158335572850691,5.2871708460134013,2.2260128458732851,null,null,4.2974513300000003,4.24,3.14,3.74,6.1803796302169323,1.9298999999999999,2.13,null,null,11.257476002155407,5.719193982738072,7.6341550553769135,11.872729475916385,12.374495538853806,11.591699330493011,6.6501681066072509,null,null,7.8117478399999998,6.57,6.6,8.17,11.494728606171783,5.4684999999999997,6.55,null,null,5,"n.a.",2.75,5.75,null,5.5,"n.a.",null,null,4.1229420693254859,6.9514070717207943,4.6301586152399654,13.348052936119048,-19.648706478528645,10.926092435861223,3.1895898407427126,null,null,942.0242235383331,486.32333333333327,907.04166666666663,708.89603704123658,441.46080580291664,896.28333333333342,905.96326325000007,4382.0293997158196,5287.9926629658203,null,null,1375.4182971574999,969.04083333333358,1661.0083333333334,1148.9349680441885,518.60386900333333,1699.7666666666667,1888.2019367499997,7372.7729675383553,9260.9749042883559,null,null,-2990.7435678225356,-3972.9822413225352,null,null,952.8098308499998,466.11000000000013,917,725.69282096425172,459.76985521999995,856.7,841.13400000000001,4378.0825070342544,5219.2165070342544,null,null,1314.6965155399998,948.65999999999985,1622.4,1102.4362224671572,553.70099944999993,1603.7000000000003,1940.692,7145.5937374571586,9086.2857374571613,null,null,-2767.511230422906,-3867.0692304229051]
[null,null,"M",2.3219000529435876,0.8050263134421497,4.5369887506518634,5.1412250079339854,5.9949961396103735,1.3107170393215433,-4.5584045584074308E-3,null,null,1.005924785645397,2.9843893451183665,3.9060865524487309,3.1114748103952996,-2.3237100433956175,4.7347512171271511,4.6174689405372362,null,null,82.308066611270561,95.608090095570802,53.698915120313877,78.546266973483668,106.07391895714279,111.1685430156779,92.22604541175923,null,null,4.7445816791141917,0,3.018513333046136,2.7557177720583468,4.8068808565630867,2.343141338470339,0,null,null,7739.3371999999999,3765.82,14070.1,5028.6000000000004,1947.8000000000002,6980.5,2797.80935404,null,null,72.003811441648466,106.36945067975476,127.64470902345639,99.891590463079055,114.38543145820013,101.07868122683858,173.57469265135131,null,null,3.8878284560764178,3.4075420762028048,0.53857611174458619,3.1089375188650807,5.241411760583035,5.3019888888888547,2.1946584459690501,null,null,3.8924265299999998,4.24,3.17,3.75,6.1536541328112122,1.5387,2.19,null,null,11.600586571315276,5.8776570010852405,7.8469940136830125,11.573742831270753,11.997769591071775,10.938411339421577,6.6248603924965277,null,null,9.0250436100000009,6.73,6.59,8.2100000000000009,12.406844829981461,5.7721,6.62,null,null,4.75,"n.a.",2.75,5.75,null,5.5,"n.a.",null,null,3.5634344941058771,6.5405300567834335,4.6913092802999712,12.601944104679674,-21.287370857682063,10.507622752360945,2.1178469732963334,null,null,941.54867151499991,489.15916666666664,906.33333333333337,712.31782954593382,441.86871128708327,899.61666666666679,913.3683049166666,4390.8443790146839,5304.2126839313505,null,null,1366.0774777691668,977.57916666666699,1652.1833333333334,1140.0985693507971,509.0380467458333,1716.9333333333336,1882.0056326666665,7361.909927199129,9243.9155598657981,null,null,-2971.0655481844465,-3939.7028759344466,null,null,1058.7601822100003,546.82999999999993,948.3,822.52838199895837,474.35289147999993,1016.1999999999999,998.63100000000009,4866.9714556889521,5865.6024556889533,null,null,1394.6104255600005,1075.6300000000001,1775.2,1144.3442695737861,505.29995943999995,1914.9,1853.3720000000001,7809.9846545737819,9663.3566545737776,null,null,-2943.0131988848261,-3797.7541988848261]
[null,null,"J",2.4213709456570536,0.52955460538036259,4.8,4.8040455120101289,5.625585579852407,0.91559590674772584,-0.54019987395336977,null,null,0.92939463365514818,2.2308262648563986,3.916298128481817,3.0374011664109815,-2.6448767541505913,4.6565105947858196,4.7727432218548769,null,null,81.240225914476255,95.692846706967316,53.450078149777013,78.588324329780463,106.46703670440679,111.639494307771,92.484997558399272,null,null,3.3365630594170601,0,2.8629298377369707,2.3075574259162024,4.586470077768527,2.621259783197246,0,null,null,7793.1674999999996,3757,14279.8,5062.8999999999996,1978.8000000000002,8711.6,2923.7763551100002,null,null,71.455351000241151,106.29698591317374,125.13672073527692,97.467565845873111,119.31034301606552,123.55040261874409,172.27840008683063,null,null,4.031023033790011,3.7704786512769175,0.26717557251908419,3.4406634499396715,5.8953142759041057,5.0052759911558251,2.7751914546935899,null,null,3.7180350999999998,4.32,3.19,3.76,5.9114598359687873,1.7053,2.2200000000000002,null,null,10.616546062552013,5.9588898191527724,7.58587786259542,11.989951749095281,12.586404845838635,10.807055138761802,7.2795238526296808,null,null,8.7755948799999999,6.52,6.57,8.2100000000000009,11.697538437867497,5.5815000000000001,6.7,null,null,4.5,"n.a.",2.75,5.75,null,5.5,"n.a.",null,null,3.011213400324686,6.5347455390516007,4.8964310664277644,12.343982788432562,-20.463949156029415,11.566818064480167,2.3063344060075819,null,null,940.97766971166664,488.97166666666664,910.16666666666663,713.43024021031113,450.27475919958334,901.91666666666663,897.90619983333318,4405.7376691215613,5303.643868954895,null,null,1353.9353832916665,972.17083333333358,1645.5250000000003,1129.5516316935348,514.91612579749994,1706.3166666666666,1879.8798161666664,7322.4156407827004,9202.2954569493686,null,null,-2916.6779716611404,-3898.6515879944732,null,null,967.30534213999999,530.14999999999964,952.90000000000009,754.89120662820415,485.21105012999999,943.7,911.90700000000004,4634.1575988982077,5546.0645988982069,null,null,1231.5057836999997,928.51999999999953,1525.3000000000002,1026.1652266602437,509.03145271000005,1620.6,1872.069,6841.1224630702418,8713.1914630702449,null,null,-2206.9648641720396,-3167.126864172038]
[null,null,"J",2.8892280164944131,0.12787884718021925,4.3696486566282955,4.6914357682619574,6.0848492114204475,1.400538668718774,-0.26550829191878211,null,null,1.0278000841377908,1.8723735296804149,3.888268792021317,2.9122189372703016,-2.6189625805580574,4.8132673867673104,4.3291514238590514,null,null,79.515995001684146,96.137767496218444,53.390259673527503,78.518463931397534,106.559814172282,111.7930797511973,92.471581787889747,null,null,1.733538591441989,0,2.5372068757207873,2.1400434741659877,4.3189491769875046,2.6761529519420986,0,null,null,7877.6172999999999,3693.67,14386.4,5068.3,1973.5,8214.9557832058163,3899.8993976000002,null,null,71.433442487750398,100.99991742095243,124.69034724443659,97.307472153331545,122.95836414740091,111.36410420412291,235.12441442141369,null,null,3.1206104326012247,4.1767799347899164,0.63270438472417645,3.5805834586466232,6.3847760896161319,4.4158161189951821,2.4520186046334755,null,null,3.4831547999999999,4.3099999999999996,3.19,3.75,5.7018070665093505,1.7402,2.1800000000000002,null,null,10.446947577235614,6.4938169345858388,8.048653465346522,12.033996992481208,9.4126896039681309,11.081855657585148,8.0869798941034308,null,null,8.7188317699999995,6.63,6.53,8.24,11.577063060639652,5.4332000000000003,7.8,null,null,4,"n.a.",2.75,5.75,null,5,"n.a.",null,null,1.4301269089084245,6.0544514801203375,4.996561155758239,11.714188181475516,-21.173511787386467,11.429621385980848,1.9793777796590195,null,null,940.80852784333331,491.59499999999986,911.83333333333337,717.0317300346984,451.87782203375008,906.22500000000002,900.06116683333323,4419.3714132451141,5319.4325800784491,null,null,1346.9340452683334,979.79083333333347,1649.3333333333333,1130.2452465835606,517.76358610916657,1710.2916666666667,1865.4391189166665,7334.3587112943933,9199.7978302110641,null,null,-2914.9872980492787,-3880.3652501326123,null,null,922.7799850399997,543.13000000000011,919,768.45834245114111,504.37443535000006,986.4,1052.57,4644.1427628411438,5696.7127628411472,null,null,1346.7403480299997,1037.0400000000009,1704,1176.0728558485953,520.21076199999993,1817.8000000000002,1945.3180000000002,7601.8639658786051,9547.1819658786044,null,null,-2957.7212030374576,-3850.4692030374572]
[null,null,"A",2.8558096363562626,-0.48806414692572797,3.0129335684891316,4.2946708463949808,6.3016169456871536,1.7155165781983328,-0.60515318354545367,null,null,1.2405859148988732,2.0367984270989528,3.8938236376775377,2.7930909159334982,-2.1976578508118716,5.181963315276338,3.6258957627330042,null,null,78.527319621126196,96.625065128516866,53.918125388595953,78.718038752494337,107.00965717971989,112.11327279588819,92.862621971538871,null,null,8.6150014139244002E-2,0,2.1613965577313516,2.2627662230626711,4.1785587537698152,2.8525788231123146,0,null,null,7707.7112999999999,4575.57,14700.1,5063.6000000000004,1995.8,7899.7222149838335,3932.1073723700001,null,null,69.7087590764895,125.44947127235977,125.61745432092557,97.761454315972045,126.378574783812,107.68050490078073,231.74242641412906,null,null,2.9110561418257372,4.9019889977097932,1.9289484947924023,3.936278929966941,5.377538908549802,4.2615753895023349,2.8423537779201618,null,null,3.1644786300000001,4.3899999999999997,3.19,3.74,5.9390031513538801,1.7349000000000001,2.2200000000000002,null,null,9.8585651598036055,7.1529752545818113,9.4911057212155718,12.412263300270515,10.714148561672269,10.144551951293289,9.2410758482348978,null,null,8.9039776499999999,6.63,6.52,8.23,11.90008179653824,5.5617000000000001,8.58,null,null,4,"n.a.",2.75,5.75,null,4.75,"n.a.",null,null,0.78631220841480776,5.6012676744183754,4.9134014922360469,10.491303227709858,-20.784645675963354,11.234941765223304,1.9732684549969015,null,null,941.54726318833343,490.93250000000006,913.72500000000002,716.81316687609899,451.61233138291664,908.49999999999989,891.69426916666669,4423.1302614473489,5314.8245306140152,null,null,1337.442564665,977.30666666666696,1648.1499999999999,1121.4984088081858,516.69198329999995,1708.6666666666667,1843.0804819166667,7309.7562901065176,9152.836772023189,null,null,-2886.6260286591701,-3838.0122414091707,null,null,956.52046864000022,486.63999999999987,958.3,739.52765573294187,490.10003677999998,920.1,924.89499999999998,4551.1881611529352,5476.0831611529284,null,null,1297.0858209599999,982.92999999999938,1737.6000000000001,1135.9711158142823,537.45804835000001,1777.7000000000003,1757.232,7468.7449851242782,9225.9769851242818,null,null,-2917.5568239713357,-3749.8938239713389]
[null,null,"S",2.5290714175627027,-0.67894466122739006,1.8043684710351702,4.4186775305546737,5.6241457216649771,2.0216773003305586,-0.61674560049748905,null,null,1.5857471313595446,2.5716531595015248,4.1199187834623467,2.7631564149346453,-1.3726235022800393,5.5184414842524436,2.9292323645035476,null,null,80.053168401555922,96.938652892800349,54.607215428896417,78.947077194135687,107.6487511967258,112.9276307629719,93.07073384554424,null,null,-0.22944940247074655,0,0.57375152165754684,2.3556820443365973,4.0011090424467888,3.5851371968072421,0,null,null,7462.5070999999998,4466.62,14516,5055.5,2051.1999999999998,7587.8028349934102,3287.7810872,null,null,67.902159182623436,123.11915154949827,125.24900268815647,96.420951541849604,128.64811123218135,106.7064983106772,188.71594664369411,null,null,3.0927116949331244,5.0733901729498685,3.1291697761193702,3.8607292917166975,4.1950019391965201,3.2028709840265033,2.864411733846119,null,null,3.3582352900000001,4.3600000000000003,3.16,3.71,5.8458874799401324,1.7259,2.23,null,null,9.3134059641952547,7.5200013086366075,10.781100746268621,12.336224489795931,10.165412516564942,9.917228345388768,8.921770225851926,null,null,7.5227256799999997,6.79,6.51,8.23,12.82178287773236,5.4379999999999997,8.25,null,null,3.75,"n.a.",2.75,5.75,null,4.5,"n.a.",null,null,-0.17795862485061598,5.1494243495237235,4.4104310948471559,10.031964592835308,-19.790415911164306,12.048719591495182,2.1931793457450333,null,null,945.2362063016667,490.77666666666664,917.04166666666663,720.55737076054845,454.89305008541663,908.50833333333333,904.45012958333336,4437.0132938142979,5341.4634233976312,null,null,1349.4959567875001,968.375,1648.1000000000001,1116.2449815331481,517.88307763166665,1713.0500000000002,1835.2776629999998,7313.1490159523164,9148.426678952319,null,null,-2876.1357221380167,-3806.9632555546837,null,null,928.16259540999999,462.17000000000053,876.90000000000009,716.48237024616196,448.88972087000002,901.2,1054.9780000000001,4333.804686526164,5388.7826865261668,null,null,1269.8961410700008,910,1578.5,1068.0715111084162,498.20448657000003,1673,1674.35,6997.6721387484213,8672.0221387484198,null,null,-2663.8674522222573,-3283.2394522222567]
[null,null,"O",2.0724345977549929,-0.86772907450008852,2.1696396068438397,4.0822686195076425,5.4396854509802495,2.4773738303421302,-0.74885649253653375,null,null,1.928289161967802,2.9963048346168031,4.4636028776842309,2.8075012926067746,-0.21063500614172523,5.3922737303577453,2.5666180269164212,null,null,80.793424796345619,97.176728696147705,54.719932789062852,79.077361655507232,108.0203061955187,114.8625248460109,93.385593152496838,null,null,-1.8996912625155788,0,0.39552661859118254,2.3300166328949672,3.9448736612924273,5.4475932431647198,0,null,null,7692.7,4861.3500000000004,14631,5137.6000000000004,2118.4,7491.6,3388.5703558499995,null,null,70.412471695428664,122.69697870662819,124.67590346082112,100.71408433876239,130.54661001598603,109.23754628842136,175.09032348958118,null,null,3.5049280604929289,5.1726133444009266,2.7311052519062109,4.2156377245508914,5.5967529262535196,4.0769254846193617,3.0114076139704915,null,null,3.4131705999999999,4.26,3.16,3.71,6.0909202590264462,1.4930000000000001,2.2400000000000002,null,null,10.081098557897363,7.6238837302334064,10.306741252761336,12.670488023952087,10.436365719573363,9.5991200808322148,9.1372816191831348,null,null,7.0445676099999996,6.69,6.47,8.31,10.341874284685677,4.9420000000000002,8.32,null,null,3.25,"n.a.",2.75,5.75,null,4.5,"n.a.",null,null,-1.1582862918070314,5.2509948430059961,4.110745002232008,9.383115211885972,-17.884464829592073,12.46003491736265,2.4077771400677461,null,null,943.4589726749997,490.96833333333319,918.49999999999989,719.4939384546492,458.27624324125003,914.41666666666663,925.52312091666647,4445.1141543709,5370.6372752875668,null,null,1340.56400205,968.20833333333348,1649.9833333333333,1121.0031976905441,518.6020761758333,1696.3833333333334,1817.9089994166661,7294.7442759163778,9112.6532753330448,null,null,-2849.6301215454782,-3742.0160000454794,null,null,978.1702922100003,492.91999999999916,875.8,628.36323807645817,482.64487681999998,959.5,1239.1199999999999,4417.3984071064624,5656.518407106465,null,null,1460.404333389999,1050.0599999999995,1868.7,1194.4991011187012,570.54282822999994,1726.9,1963.4570000000001,7871.1062627387,9834.5632627386949,null,null,-3453.7078556322449,-4178.0448556322481]
[null,null,"N",1.8558595617916422,-0.5731572650942458,2.9207740051113564,3.8437693738375627,5.7188934302477552,3.2250615763547361,-0.32859718304499225,null,null,2.0213374189505173,2.9421113260995631,4.5405590335977353,2.8250678980968345,1.0588178402086024,4.4031290868591713,2.6923537096658974,null,null,80.151375629890552,97.27149749707381,54.214409699909908,79.018660300760004,107.78291553466831,115.0029143798659,93.602458594495204,null,null,-5.690158365890853,0,7.0968808882947473E-2,1.7109912085451606,3.6319668341306954,5.3881334129099816,0,null,null,9150.2999999999993,4062.36,14604.1,5124.0364783089844,2161.6999999999998,7145.6,4569.8718668299989,null,null,79.409872052348121,101.61804008128723,123.32886156918912,96.956944408187013,122.36246243331959,98.850700519679194,227.9671560010276,null,null,4.706789043687718,4.8409032537895245,1.9716388790351174,4.4646208955223949,3.7319782117548188,3.2791827604204942,2.5569994110802794,null,null,3.1670308399999998,4.24,3.21,3.7,5.826547800697413,1.8753,2.2200000000000002,null,null,10.569819512128406,7.2748536171257738,9.4725540971975857,13.01592835820896,10.229876815470128,8.4153385728133028,8.9981648994302645,null,null,7.2599393399999999,6.66,6.44,8.2899999999999991,9.6679047855137057,5.9779,8.64,null,null,3.25,"n.a.",2.75,5.75,null,4.5,"n.a.",null,null,-2.3072623230150135,4.8375017073418514,4.7416324824318457,8.7380687462884854,-16.662603036635005,12.619671531465171,1.951645104805011,null,null,944.36935474000018,489.53833333333324,923.24999999999989,721.93760906165562,459.65918213374994,921.70833333333337,936.96236224999984,4460.4628126020707,5397.4251748520719,null,null,1328.8406015666667,967.58166666666659,1655.0250000000003,1110.9159625065215,515.7258780825,1691.4000000000003,1803.650892833333,7269.489108822353,9073.140001655689,null,null,-2809.0262962202828,-3675.7148268036162,null,null,957.76612941999974,461.71000000000004,916.8,708.19211145331906,444.19300874000004,994.80000000000007,998.99,4483.461249613305,5482.4512496133102,null,null,1384.9349821700002,981.14999999999964,1753.9,1100.4390438231997,513.20263829999999,1748.3999999999996,1546.662,7482.026664293182,9028.6886642931786,null,null,-2998.5654146798734,-3546.2374146798757]
[null,null,"D",1.5224291145129978,-8.1930382300786069E-3,3.4055276015459781,4.0841584158415811,6.1297243704681899,3.6562789262573676,-6.2580315385681165E-2,null,null,1.8539806881631031,1.8750497563763266,3.8579890160438612,2.6556517920792979,2.1378920820824043,2.3373517092658052,3.1484504145847936,null,null,79.367059200201368,97.476201385776946,53.953574187043877,78.965394108614191,107.1593339000836,115.3037696968287,94.048541080347619,null,null,-5.4908392498758856,0,-0.56382911142139969,1.3019887588865635,3.5906919389496008,5.3740315381674142,0,null,null,8912.2999999999993,3936.49,14789,5808.8569290984369,2208.5,8781.4,4142.34042013,null,null,74.25707316498314,99.466947780793632,116.063651270137,100.07267971769384,122.21584848858622,98.925752495713681,198.85952730442332,null,null,4.1641742838111977,4.2585419421994475,1.4549245416078989,4.2425683709869233,3.4233928809168725,2.8338091084982491,2.2339783460803062,null,null,3.0921123700000002,4.25,3.2,3.72,5.2920828330410599,1.6742999999999999,2.17,null,null,9.4525602659315737,6.4587222038094119,8.9303469675599434,12.783733650416174,8.7475349671168292,8.4649199880934241,8.5279171128107087,null,null,6.9869658399999999,6.45,6.41,8.19,9.4358010174230582,6.0696000000000003,8.4600000000000009,null,null,2.75,"n.a.",2.75,5.5,null,4.5,"n.a.",null,null,-2.1296594071194552,5.597627985415099,5.0489536489688014,9.1570498990674274,-14.792507787741727,12.760180788599396,2.1849244506356946,null,null,947.86121123166686,492.08166666666665,930.84999999999991,729.60927015771119,465.89832368166662,932.72499999999991,956.24676124999985,4499.0254717377102,5455.2722329877115,null,null,1328.0517015833332,966.84250000000009,1656.8333333333333,1107.9884444359016,517.47421358000008,1688.9833333333336,1790.9813271666669,7266.1735262659022,9057.1548534325684,null,null,-2767.1480545281902,-3601.8826204448574,null,null,893.98653074999947,448.51000000000022,990.5,690.5321282524128,439.91698666000002,956.4,962.56913499999996,4419.8456456624117,5382.4147806624169,null,null,1259.9002299099998,876.35000000000218,1544.6,1075.7137070308706,502.60394737000001,1588.9,1619.8189259999999,6848.0678843108908,8467.886810310898,null,null,-2428.2222386484609,-3085.4720296484593]
[null,2020,"E",1.5827643368556139,-7.8489390220480085E-2,1.7844294143042327,4.2994123105474724,6.4152757000630558,4.1724617524339518,0.3558122223510457,null,null,1.7320557946660722,0.67991142522920245,2.0544481206349028,2.1345263651977593,2.8749129723796627,-0.68426852209101763,3.0750902018453163,null,null,79.636122121354077,97.756039073722548,54.188244815639273,78.919432127324512,107.6887026322413,115.5493742441725,94.06468200638399,null,null,-5.9604605812882241,0,-0.53039290043625931,1.283238706455323,3.1498630705926391,5.4716743337854092,0,null,null,8211.4246999999996,3948.04,14895.4,5764,2237.6,10408.336724746965,3344.3621086600001,null,null,68.625238380409868,98.043325373395248,117.8539329124912,101.95948154232725,126.10420005877252,126.06642811943291,175.58676762204635,null,null,4.1023058294865242,4.4219601597856881,3.0314760356284296,4.0178440094899237,3.442330288033189,2.1733558077436426,1.797791017476444,null,null,3.1871662700000001,4.34,3.21,3.73,5.7631311041882727,1.6912,2.16,null,null,12.332630072559581,6.1032798173325542,10.675081295065725,12.541381969157777,8.3532718198630604,8.0130949265687423,8.1352415937406395,null,null,6.9145027700000004,6.02,6.37,8.17,10.043156409826043,5.1388999999999996,8.52,null,null,2.25,"n.a.",2.75,5.5,null,4.5,"n.a.",null,null,-2.1597750987204178,5.4988652698424456,4.9679346881358111,8.9439655625742418,-12.890358723326756,13.371915179536442,2.450979864269609,null,null,947.59988758166674,490.50166666666661,943.68333333333328,736.47139797674288,470.50207354166668,934.64166666666654,960.89443258333324,4523.4000257667421,5484.2944583500757,null,null,1320.3217412499998,965.22166666666669,1661.0583333333334,1108.7552993855963,516.38019255000006,1685.0916666666669,1767.9955643333335,7256.8288998522648,9024.8244641855981,null,null,-2733.4288740855204,-3540.5300058355206,null,null,820.74791359999995,464.92,1009.8,756.51549564283641,491.88136083999996,863.6,870.25505600000008,4407.4647700828364,5277.7198260828363,null,null,1255.7582278499999,922.71,1736.3,1104.2750147521974,493.41366061999997,1584.6999999999998,1551.084846,7097.1569032221969,8648.2417492221975,null,null,-2689.692133139361,-3370.5219231393608]
[null,null,"F",1.7900762599195572,-0.38958257461608103,1.2358985413523,3.9901780233271942,6.4136214583747391,3.656658968437263,1.4453287644329923E-2,null,null,1.8531680022541142,-2.0230888661508608,-0.78807514415431323,0.80716599856551674,3.2329012758177651,-4.097356364976358,2.8817084295804989,null,null,79.628349687148472,97.966062770608772,54.138378126349018,78.680559734763861,107.8288573331515,116.332845491776,94.377985984937069,null,null,-6.427300260559524,0,-1.1153572928603723,1.1806740041331067,3.1223873541202312,5.7410263273403519,0,null,null,8102.0591999999997,3867.49,15203.2,5855.5,2269.6,9863.6,3374.7569836500002,null,null,68.451107723882515,97.447412906228251,120.87432594614089,103.07115717296288,129.93656653816805,129.60021268105325,167.55119415543166,null,null,2.956991340093551,4.8183540423483793,3.5601022073958433,4.3175442739079104,2.5831415859658504,4.022550092833268,2.1552352100113552,null,null,2.8954608199999998,4.41,3.21,3.72,5.5631029999044586,2.202,2.17,null,null,11.671256851939637,6.5250028487078495,11.30439065937966,12.885661157024794,8.9098127942033667,8.6306476791682112,8.3932225046533322,null,null,6.6049045099999999,6.11,6.37,8.14,10.182828917217801,5.4591000000000003,8.4088888888888889,null,null,2.25,"n.a.",2.75,5.25,null,4.5,"n.a.",null,null,-1.9554972066749166,5.3676765180285191,5.9081431484056646,8.5796460322174148,-11.275165861062931,13.272470977651007,1.8375340670037543,null,null,959.76494379333337,493.9199999999999,955.15,741.07232859953001,473.44868025416662,944.80833333333339,969.6073255,4568.1642859803624,5537.7716114803634,null,null,1323.1718723641666,964.76499999999999,1667.2083333333333,1109.3545666578102,520.43383495666671,1690.866666666667,1732.1622538333334,7275.8002739786452,9007.9625278119765,null,null,-2707.6359879982801,-3470.1909163316141,null,null,1034.3626561799999,509.07,1031.9000000000001,776.68108280950889,475.15164895999999,953.2,875.24871499999995,4780.3653879495096,5655.6141029495093,null,null,1230.1590949000001,864.19999999999982,1533.3,1068.7890693833497,535.52836473999992,1534.9000000000003,1275.326274,6766.8765290233505,8042.2028030233487,null,null,-1986.5111410738414,-2386.5887000738417]
[null,null,"M",1.9069285766384596,-0.53324188465219202,1.7683847315074337,3.8826047080403505,4.4185378473396941,2.4474187380497057,-0.83969931348454996,null,null,-7.6914775006172524,-9.4298160501145158,-4.0414317454461708,-8.4374236252012178,3.2585540497329748,-7.2425782343217699,2.4325951293145311,null,null,79.286040043705995,97.462710264704143,53.946506729940289,78.247563227242424,107.6663803528383,117.23540468616881,94.387850700703112,null,null,-5.4826945387359221,0,1.8645137400320779E-2,1.1968219695093847,3.2638430092212429,6.3831143137867254,0,null,null,8032.8577080200002,3864.18,15337.7,6086.2,2394.5,9324.4,3223.7272755699996,null,null,68.798368610386504,105.28532793053671,122.19212355324709,106.56003581661604,135.71187063050547,111.88858718077945,158.92421513372054,null,null,2.2010980555406037,4.7787240428003477,2.9985886840432361,4.37743672748676,4.5443538279748967,4.1439611795446138,3.0049317043768822,null,null,3.3148440099999998,4.22,3.14,3.7,5.3477499691828321,1.8828,2.14,null,null,9.3429794385385918,6.6788563440946547,10.68270396270397,12.896668628605067,9.2420441988261199,10.572917693169101,9.312339408007384,null,null,6.7416474500000003,6.11,6.31,8.0399999999999991,9.3968483871347832,5.0694999999999997,8.3944444444444439,null,null,1.25,"n.a.",2,4.5,null,3.5,"n.a.",null,null,-0.63281508084093163,6.3432273346886392,7.6019944479178703,8.4780895397383418,-9.2207739229426604,10.526650515259718,1.8269167933354202,null,null,967.47625601166646,484.28999999999996,950.06666666666661,726.83364902071617,475.44904507916658,935.50833333333333,965.28322733333334,4539.6239501115488,5504.907177444883,null,null,1307.342762480833,954.04750000000001,1654.0666666666666,1091.4038709515946,521.05328643333326,1674.7250000000001,1683.0829135000004,7202.6390865324292,8885.7220000324287,null,null,-2663.0151364208782,-3380.8148225875461,null,null,1138.3431456899998,399.32000000000016,1003.6,634.13895399239982,508.90266910000003,874.3,853.10082199999999,4558.6047687823993,5411.7055907823997,null,null,1242.4212466899999,871.32000000000016,1469,900.06931383833626,513.44228941999995,1505.2000000000003,1197.612916,6501.4528499483367,7699.0657659483368,null,null,-1942.8480811659365,-2287.3601751659362]
[null,null,"A",0.8911626229277152,-1.0492710830404626,1.8792425866381013,3.3323235383217207,3.2463383911215602,1.0727328058429724,-2.3736443820454518,null,null,-8.3443877718604256,-17.373240400520661,-6.5953942447888618,-8.562843504145432,3.0320770248566622,-9.4672677476142724,-41.550116438753044,null,null,78.726709563966892,97.046883357598901,53.280002954973938,77.619194246189835,107.211444991246,118.2883243769931,94.84992914860095,null,null,-5.2069949477456738,0,0.86877030442372005,1.5255131120407039,3.6799954371974217,7.2644749297418878,0,null,null,8530.9281593100004,3663.53,16549.400000000001,6131,2494.5,8613.7032668002321,5633.3423553399989,null,null,71.48710870131076,117.0856007463247,128.59034645586601,107.13517164208103,133.08309190197963,105.12361531985621,274.83710857233399,null,null,2.9822605854167454,5.3453583828364444,2.8079884976854936,4.8655408970976257,5.7526517457354265,4.987860775310498,4.633630287038498,null,null,3.1547401599999998,4.24,3.09,3.67,5.4317625865585297,1.0955999999999999,2.15,null,null,9.3895149592809659,8.0638830763305922,10.542635713283753,13.246267956610966,12.563699708698509,9.1847394806172353,11.004860638339323,null,null,7.7222214899999999,6.93,6.21,7.94,10.3068899661298,4.4138000000000002,8.3699999999999992,null,null,1.25,"n.a.",2,4.5,6,3.5,"n.a.",null,null,-2.0086836719972911,6.0742415060164978,7.8943932078250789,8.846534904633053,-9.6927837049300294,11.804081891661045,1.8089029924701183,null,null,958.28322208999987,463.12833333333327,942.56666666666661,699.31042532038828,467.65047657916654,910.38333333333333,928.50051166666663,4441.3224573228872,5369.8229689895552,null,null,1282.6634646183331,926.65749999999991,1632.4416666666668,1060.329672199912,509.57813840666671,1641.1083333333333,1604.7047293333335,7052.7787752249142,8657.4835045582458,null,null,-2611.4563179020238,-3287.6605355686911,null,null,842.49342378999995,212.17000000000007,827,395.41413656031671,366.18703321999999,555.19999999999993,399.74141200000003,3198.4645935703156,3598.206005570315,null,null,1018.5449411900001,619.98,1362.8999999999999,729.54583744696595,415.99922313000002,1200.3,1000.15379,5347.2700017669667,6347.423791766967,null,null,-2148.8054081966493,-2749.2177861966493]
[null,null,"M",0.60875081100752826,-0.94696974525974364,1.8030216647662589,2.2939933594928963,2.9330826341760647,0.98934550989343406,-2.4690584186173612,null,null,-8.8045446224873274,-19.474951628406018,-7.5726611762579648,-8.657271863484711,2.6984675808454566,-10.397843331182658,-41.577685674839479,null,null,78.901114050833257,96.740660375126339,53.055545318305597,78.13202303465475,107.09877555579889,120.91921529980969,94.774901326440784,null,null,-3.7735818044049187,0,0.35609836416906165,1.5246455357014324,3.692823276242243,9.5990507985927049,0,null,null,8552.7344102400002,3441.4,16708.099999999999,6353.3,2562.5,8008.8939985043398,6104.1939384200004,null,null,70.082257135543529,115.87989624887072,125.27648575294803,106.25139824407775,132.78755110386163,102.32182980941525,285.61823583953856,null,null,3.2216374449188061,5.3879924031948923,2.8751389569478367,5.8615432280908921,5.9779292130649972,3.6363781461944451,4.7359928487546545,null,null,2.92022001,4.3899999999999997,3.07,3.64,5.5605955600218904,1.7024999999999999,2.15,null,null,10.653359496657023,8.325812672313555,10.664691634581716,14.405544408380067,13.227734046005395,9.5950265259985166,11.082696673852954,null,null,7.6261134999999998,7.3,6.22,7.96,10.6040722984696,4.8818999999999999,8.34,null,null,1.25,"n.a.",2,4.5,5.5,3.5,"n.a.",null,null,-1.014614995874108,6.1864760551375575,7.7042497649167707,8.4497522487569476,-7.9681401418362992,13.225688766196498,2.1061950124160678,null,null,940.5736296424999,437.07249999999993,937.05833333333339,668.90915386702409,457.12055953999999,882.7166666666667,883.48691658333325,4323.4508430495234,5206.9377596328586,null,null,1249.3667735166666,884.9375,1592.3583333333333,1019.5897876100875,498.94164071250003,1573.9083333333331,1524.0939991666664,6819.1023685059217,8343.1963676725882,null,null,-2495.6515254563969,-3136.25860803973,null,null,846.24507284000038,234.16000000000008,882.2,457.71312455858867,347.99388700999998,684.2,458.46785899999998,3452.5120844085905,3910.9799434085908,null,null,995.05013234000023,574.99000000000024,1294.2,655.46565449589048,377.66198711000004,1108.5,886.04323799999997,5005.8677739458872,5891.9110119458855,null,null,-1553.3556895373003,-1980.9310685373002]
[null,null,"J",0.31161483621358926,-0.2306266023124347,2.3890302516256865,2.6537997587454627,3.6214635934798296,2.8972247636474506,-1.6363575726679735,null,null,-8.8056734513601498,-16.432427606165533,-6.7391898242482071,-8.312544868904105,2.3637465777931856,-10.100342001179417,-34.55031799034488,null,null,80.294252715487261,96.600817760179098,52.560229401482673,77.954836404537815,107.2840943733075,124.91144701453091,94.696790557329436,null,null,-1.561273465840711,0,-3.1364566889171747E-2,1.102406260429049,3.6743501825004321,14.311379860760882,0,null,null,8565.13666715,3103.77,16991.8,7389,2574.6999999999998,7142.4894966384772,5909.7032492800008,null,null,67.931640810969469,104.42767107690941,125.99771610897963,117.82251518300515,134.08598431692312,87.429804264629524,277.10863568251989,null,null,3.6270826361703774,4.5711689339106742,2.2375148419163176,5.4417861339600613,5.8480415299275483,2.3297763781861325,3.7985148581990318,null,null,2.9190898199999999,4.33,3.05,3.65,5.7943498338608004,1.5757000000000001,2.1,null,null,11.830880435095962,7.2673871303280011,10.021551843158896,13.858425381903658,11.655116558068565,7.9088384113811534,10.111823156626222,null,null,7.2081683200000004,7.02,6.21,7.97,10.058727307113299,4.1985000000000001,8.31,null,null,0.75,"n.a.",1.75,4.5,4.5,3.5,"n.a.",null,null,-0.14256330020202546,5.580481628732481,7.0593657906853791,8.0070481285880568,-7.6598862791007694,13.173957949804716,1.2474500594518823,null,null,937.23023642916667,415.78916666666669,921.25833333333333,655.33258394328811,449.43394735916672,871.90833333333342,873.30929800000001,4250.9526010649543,5124.2618990649544,null,null,1243.3000406666667,867.83833333333348,1573.2749999999999,1000.6318536060976,494.83216804750009,1540.9666666666662,1468.6120890000002,6720.8440623202659,8189.4561513202652,null,null,-2469.8914612553094,-3065.1942522553095,null,null,927.18462357999988,274.75,763.3,591.97236754337371,392.97170396000001,814,789.775577,3764.1786950833739,4553.9542720833742,null,null,1158.7049894999996,723.32999999999947,1296.3,798.6700186123669,459.71778073000007,1225.3,1206.2860780000001,5662.0227888423688,6868.3088668423734,null,null,-1897.844093758993,-2314.3545947589919]
[null,null,"J",-0.16512011017254632,-6.1945569849340534E-2,2.8783592644978788,3.0977443609022588,3.4448288508614771,4.3484859983304061,-2.24999310693007,null,null,-8.5408873461089172,-12.113640822191257,-4.5256489923143981,-7.7529336931355735,1.9251313449241925,-9.0592373296270718,-33.779995514220737,null,null,81.172143734220626,97.172931926938944,52.589887601683742,77.495545800713884,108.1584299117652,124.0986912864899,95.559452792633621,null,null,0.89105269728167324,0,0.31874133748567923,0.73304121240534836,3.942591592889523,14.671704760685705,0,null,null,8340.1769999999997,3578.9,17398.099999999999,7513.7,2610.9,6689.1783358598996,6572.3126470500001,null,null,67.325528084427617,114.4577003177657,127.49987497643242,112.66959734409849,134.97307699907367,80.647935690621466,315.41021606214025,null,null,3.8715127563010947,4.3246244831292593,1.6734721935794312,4.9392502917152816,5.1846698887233318,1.5983116436363816,4.3682790852394247,null,null,2.79259426,4.26,2.99,3.64,4.9913844318855096,1.1791,2.02,null,null,10.187883294292332,7.1363662325786477,9.3135629339382682,13.455440490081676,10.556829137891141,6.5942633818182008,10.792831061864632,null,null,7.1565871799999998,7.07,6.18,7.99,9.6822137211558505,4,8.3000000000000007,null,null,0.75,"n.a.",1.75,4.5,4.5,3.5,"n.a.",null,null,1.4508241928370413,5.290682378834588,6.4960332717034053,6.8773482715625445,-5.5598061915138057,9.9251414146743997,1.8910484289788698,null,null,937.47960982999996,407.44083333333333,920.4666666666667,647.96831207416233,447.29165635000004,863.86666666666667,847.32050724999999,4224.5137449208278,5071.8342521708291,null,null,1223.3160133925001,852.9766666666668,1551.4083333333331,975.03150226876335,494.44495400000005,1497.1083333333333,1397.873921666667,6594.2858029945974,7992.1597246612628,null,null,-2369.7720580737678,-2920.3254724904345,null,null,925.77246584999966,442.94999999999982,909.5,680.08708002163235,478.66694324000002,889.9,740.70451099999991,4326.8764891116298,5067.5810001116297,null,null,1106.9320207400006,858.69999999999982,1441.6000000000001,868.8686398005849,515.56419342999993,1291.4999999999998,1096.4599920000001,6083.164853970593,7179.6248459705894,null,null,-1756.2883648589559,-2112.043845858956]
[null,null,"A",-7.0774520073274394E-2,-0.30234406357643451,4.1874732486802664,3.2161106101592991,2.8702854223144829,4.8026017243987225,-1.9637061867661447,null,null,-7.85946483679552,-8.0666480140044801,-1.9414771743012718,-7.2030600800631408,1.3779637377725265,-7.7858431229096396,-32.647189374145448,null,null,83.002611121267805,98.186820078473019,52.675631327785112,77.261642508138252,109.6160645645696,123.868043488786,95.962686982253487,null,null,4.2593851512293082,0,0.47132459590482684,-2.5745799313873184E-3,4.014248413637544,14.294667531027885,0,null,null,7934.06931136,3801.75,17623,7510.3814209851453,2686.2,7018.555595239256,6781.2506160100002,null,null,65.734566994870178,120.20549471987465,122.74499794825462,109.70975021424178,129.88282961968528,81.966550087864817,317.95522050201856,null,null,3.7234097454509785,4.4959372629932153,0.35755426223896064,4.7123354688410055,6.2532904128650966,0.30237634408602848,3.9920992874557606,null,null,2.8151272000000001,4.18,2.8,3.61,4.7185675631812698,1.3156000000000001,1.95,null,null,10.223637290299518,7.1539736783026031,7.9592358781239323,13.267201514269079,12.706751743613344,5.178304914483661,10.448891719918683,null,null,6.8480416100000001,6.83,6.16,7.98,11.597661468183,3.911,8.2799999999999994,null,null,0.75,"n.a.",1.75,3.75,4.25,3.5,"n.a.",null,null,1.9689675511775473,4.2987084406272968,6.2586133975221392,5.7927827379538943,-5.4176795058657357,8.6086600523355159,-1.9347165705324465,null,null,936.56883006083319,402.18416666666673,915.4666666666667,643.12510185466851,444.98974473916661,861.61666666666667,849.23184508333327,4203.9511766546684,5053.1830217380038,null,null,1209.6872885783334,833.87666666666667,1526.925,957.61218642710492,489.48531040916669,1460.7249999999997,1362.2247015833336,6478.3114520812715,7840.536153664606,null,null,-2274.3602754266035,-2787.3531319266026,null,null,945.59111140999994,423.55999999999995,898.3,681.40913309901271,462.47709744999997,893.09999999999991,947.83105399999999,4304.4373419590192,5252.2683959590213,null,null,1133.5411231899998,753.73000000000047,1443.8,926.93932571437961,477.94232525999996,1341.1000000000001,1329.4413590000001,6077.0527741643746,7406.4941331643713,null,null,-1772.6154322053662,-2154.2257372053646]
[null,null,"S",0.29896291812436576,-0.38986000115775277,4.9655568312284526,3.39135654261705,2.8060939220446968,5.0331525015069349,-1.8585711751206504,null,null,-6.9196899668424514,-4.6622595973180667,0.10337134159162457,-3.6635530952670767,0.8387722713727962,-6.3805208026773235,-18.380404818991174,null,null,83.768957217690641,98.652755874693625,53.087656987137088,77.01841707789616,110.17824254813191,123.3946720215874,96.133898335791869,null,null,3.5345342731993226,0,0.66408469289982952,-0.49910803321966113,3.7982212343090342,13.215737514940566,0,null,null,8238.1380160200006,3809.72,17611.2,7519.8230610380815,2755.9,10551.95133366878,9042.9972048700001,null,null,69.790738408972317,115.44529097078747,118.40311414580762,107.67879583632694,129.0053457885916,114.33594366945346,419.0792944265433,null,null,3.1416447291163676,4.4070412923912921,-0.43400601585997534,4.4478026124818548,4.8577257339868423,-0.46257061692970169,3.8806966851038527,null,null,3.0105601200000001,4,2.8,3.56,4.0987836287339796,1.121,1.95,null,null,8.8368279033062826,6.5052212568249246,7.1589608969100569,13.046200290275758,11.711612294478662,4.6814242754662816,10.310193458845935,null,null,6.34995391,6.09,6.15,7.92,9.8166302978062205,4.0023,8.26,null,null,0.75,"n.a.",1.75,3.75,4.25,3,"n.a.",null,null,2.4546348955117647,4.5422744402441095,5.5549487035778222,5.2660460444529544,-4.3289853340326196,7.5010146080240592,-2.4168023266229688,null,null,940.88619714083325,402.77499999999992,916.9083333333333,645.20506982535073,445.95127236499997,863.65833333333342,839.9166709166667,4215.3842059978506,5055.3008769145172,null,null,1199.0868409724999,827.77,1519.9666666666669,948.37315110701854,490.70971133250004,1440.9749999999997,1317.9144805000001,6426.881370078685,7744.7958505786883,null,null,-2211.497164080834,-2689.4949736641674,null,null,979.97100036999973,469.25999999999976,894.2,741.44198589434859,460.42805238,925.7,943.19591000000014,4471.0010386443464,5414.1969486443413,null,null,1142.6907698000005,836.71999999999935,1495,957.20308726737767,512.89729765000004,1436,1142.6273470000001,6380.5111547173801,7523.1385017173889,null,null,-1909.5101160730264,-2108.9415530730257]
[null,null,"O",0.45245635372738391,-0.20823273737451958,5.3445450010689006,3.6526946107784397,2.6898395334267886,5.0250240673017377,-1.9488718188039107,null,null,-5.9945190833405819,-3.2066946093223194,1.2681773417026154,-3.3555279311902808,0.50552135628477579,-4.7843175475631901,-17.065857054408866,null,null,84.522827508265237,98.531051303426693,52.728824927302639,76.450310557018611,110.1137559018744,122.6869547145472,96.367999132156399,null,null,3.8611206953345039,0,0.3249689890427952,-0.96194007449827612,3.4565739361123922,10.868267911375314,0,null,null,7809.1955475900004,3689.85,18314.8,7760.4,2781,9873.7272429092845,8192.7798642800008,null,null,69.502492397224714,108.37919810231766,124.10487163940826,105.22324622943178,128.38012712053353,105.6166927526556,372.35248332376199,null,null,2.8844925763381788,4.1268261404133897,-0.83966853818574616,4.0493934142114414,5.684779750242881,-0.63396706948152315,3.9355710539840092,null,null,2.9459493800000001,3.91,2.81,3.46,3.8245428233254701,0.95550000000000002,1.91,null,null,9.1703937670119497,6.9527105568888565,6.6310552661841395,12.732235701906417,11.293255744121831,4.9257555317322685,10.411784145857215,null,null,6.5543736800000003,6.73,6.12,7.79,10.7827456663529,4.4279000000000002,8.26,null,null,0.75,"n.a.",1.75,3.75,4.25,3,"n.a.",null,null,2.3329165810886954,3.5182016551443374,6.5324076947695042,4.4566558829883585,-4.4689220225589299,6.6984731770888262,-2.8592727947715946,null,null,946.53538075750009,402.7766666666667,920,657.23002646651832,447.07177032833329,864.54166666666663,820.45009824916679,4238.1555108856837,5058.6056091348519,null,null,1177.2976169341669,813.75666666666677,1503.4833333333333,940.56791650486286,488.47436953916662,1429.6666666666667,1261.5024991666667,6353.2465696448608,7614.7490688115295,null,null,-2115.091058759177,-2556.1434596766767,null,null,1045.9604956100011,492.94000000000051,912.90000000000009,772.66271777047166,496.09085238,970.1,1005.52112799,4690.654065760471,5696.1751937504741,null,null,1198.9336449300004,881.90000000000055,1670.8999999999999,1100.8362858928331,543.71872671000006,1591.2,1286.513224,6987.4886575328201,8274.0018815328222,null,null,-2296.83459177236,-2577.8266877823626]
[null,null,"N",0.24451285840510067,-0.17613054069237558,5.4629301170627915,3.8208955223880632,2.6430348771900971,5.2585709374322578,-2.0365931996476068,null,null,-4.9754821518998344,-3.1626661826197,1.7975897184463761,-3.3992470117287321,0.53739781780883777,-2.7215306367729863,-16.33174357218633,null,null,85.234201427312186,98.580829765816262,52.572820707686482,75.900147971885275,109.61430160610649,122.10702113996081,96.663973665304837,null,null,5.371280549899633,0,1.0892818105162339,-1.4273429718816626,3.1823727884680171,10.470925362272137,0,null,null,7457.5999831099998,3473.22,18249.400000000001,8195,2793.1,9903.7999999999993,7748.7730907100004,null,null,65.595948682956703,105.70683353065242,124.32583120038494,106.05372421919141,121.32006319428473,101.01588705513271,347.21022141760687,null,null,3.1477903893373296,4.1233930952459037,-0.98890682811974762,3.7267107533064947,3.8177046165265272,-1.5392294641690691,4.0490559987684485,null,null,2.4621751600000001,3.94,2.8,3.34,3.9115694840639899,0.8125,1.93,null,null,9.261157231327191,6.4374688894542755,6.5018768920282515,12.5399654974123,11.086509498985784,4.3382016513240114,10.510652432322891,null,null,6.3058676,6.25,6.11,7.77,10.321818284015899,3.8077999999999999,8.26,null,null,0.75,"n.a.",1.75,3,4.25,3,"n.a.",null,null,3.7876748162178009,3.7184550200823008,5.921342613024061,3.5405477823505782,-3.990477816327731,5.5998727605238496,-2.9356035679303671,null,null,955.65839957333321,399.9933333333334,917.29166666666652,641.15091252756167,443.53190245499997,857.80000000000007,812.20686866583344,4215.4262145558941,5027.6330832217291,null,null,1161.8423810941665,809.3000000000003,1497.5666666666666,926.07257071375261,488.07564925083329,1410.4583333333333,1242.7984380833334,6293.3156010587545,7536.1140391420886,null,null,-2077.8893865028576,-2508.4809559203572,null,null,1067.242355209999,428.3100000000004,884.3,515.24274418583741,401.71459426000001,913.90000000000009,900.07124499999998,4210.7096936558301,5110.7809386558292,null,null,1199.4721520899989,927.67000000000007,1682.8999999999999,926.49489432987673,508.41799484000001,1517.9,1322.2132670000001,6762.8550412598852,8085.0683082598844,null,null,-2552.1453476040406,-2974.2873696040406]
[null,null,"D",0.89244852204476821,-8.5308433546244525E-2,4.8236953455571019,4.0130796670630211,2.9305695911470475,5.5536478118097348,-1.5762906309751652,null,null,-3.9957329075159453,-2.1226733076279687,2.4049790359094003,-2.7678750103531917,0.98246762703837343,9.4706018076646956E-2,-6.9338982153074404,null,null,85.039564022721791,98.849199836791911,52.914081801068662,75.371977252275627,108.8860051576405,121.6450777199271,96.818031438091822,null,null,6.6928913610353886,0,1.46274237793748,-2.0155536956402598,3.2244366975818917,9.9057380384201235,0,null,null,7224.6663515199998,2915.2,18468.2,8148.8,3073.5,10751.6724920383,8672.3315890199992,null,null,63.927514840187861,101.53051540180165,114.63593455606562,97.308673779973972,130.77506414980675,98.781919430615929,374.0109298069558,null,null,2.5844862684499996,4.1388392124453794,-0.45189720129169203,3.3235438696770498,3.9512784325713119,-1.5144410874930307,3.5421248125325624,null,null,2.71850418,4.05,2.66,3.32,3.4236455304849698,0.8821,1.91,null,null,8.3088589193308771,6.5809225154570736,7.1608853606028191,12.178199485567305,10.584955070117875,4.0710598612864644,10.071716826354001,null,null,6.8315155699999996,6.49,6.07,7.66,10.4107123181848,4.8220999999999998,8.3366666666666678,null,null,0.75,"n.a.",1.75,3,4,3,"n.a.",null,null,3.9446780197889275,2.6729038875000111,5.9116243999646656,2.9338379491384181,-4.0777602816925551,5.1375665842864793,-3.2695156978307827,null,null,967.71880935333354,400.45250000000004,925.10833333333323,637.56088190501953,442.1899436624999,858.49166666666667,804.73052408249987,4231.5221349208532,5036.2526590033531,null,null,1163.2418499966668,823.99166666666667,1517.2333333333333,936.23878531549519,491.58025590749997,1425.416666666667,1228.2934444166669,6357.7025578863295,7585.9960023029962,null,null,-2126.1804229654758,-2549.7433432996427,null,null,1038.7114481100007,454.01999999999953,1084.3,647.45176078190684,423.81348114999935,964.7,872.85300000000007,4612.9966900419167,5485.8496900419195,null,null,1276.6938567400002,1052.6499999999996,1780.6,1197.7082822517839,544.65922724999996,1768.3999999999999,1445.759002,7620.7113662417978,9066.4703682417894,null,null,-3007.7146761998811,-3580.6206781998808]
[null,2021,"E",0.95912353093986868,0.30562937587131012,5.2382298883076368,4.1814946619217146,3.1825074223787233,6.2270483901758453,-1.4108520767563284,null,null,-3.3517117112522783,-0.34332102579556184,3.7723936762712809,-1.670057232745302,1.898826507639735,3.8309460868912097,-7.2923253947329734,null,null,85.860213338067354,98.817506834290981,52.873921326833567,75.084760395723919,109.13672038452749,120.7466246188263,96.741559027692844,null,null,7.3524171652028736,0,1.2731614235216773,-2.2441338517772746,3.131474721482451,9.4780144678620868,0,null,null,7265.9578536099998,2770.23,18253.3,8130.6443762306944,3201.4100342933903,12522.991938799278,9676.5894383899995,null,null,64.181469337665959,100.55697404538699,115.86324151736906,97.300582963663587,134.88068270601175,117.26468396359171,425.64734578618851,null,null,2.566262838312114,3.6532053554016786,-0.87252502183111624,2.9246675226878587,2.9825570590530295,-2.194119506752104,3.3582317592743407,null,null,2.4548119800000001,3.97,2.61,3.27,3.5288733712812501,1.3150999999999999,1.9,null,null,8.4638676725847581,5.8066238758178335,6.7482797071270353,11.958462852263015,9.7760995948492972,3.2813220951232949,9.8701046532345096,null,null,5.87580934,6.13,6.06,7.68,9.7496510662057201,3.4941,8.32,null,null,0.75,"n.a.",1.75,3,3.75,3,"n.a.",null,null,3.6684535170541155,2.0931913855708251,6.122606925053975,2.5627632505167197,-4.3862924942772992,4.2222063751522709,-3.2929504077583882,null,null,978.45269075583349,404.67249999999996,924.62499999999989,632.16005232074338,441.52873206249996,852.29166666666663,800.09843608250003,4233.7306418057442,5033.8290778882438,null,null,1163.0719927583334,836.01166666666666,1514.4833333333329,932.03008990555736,496.12497553333333,1418.4250000000002,1207.0255405833334,6360.1470581972244,7567.1725987805585,null,null,-2126.4164163914811,-2533.3435208923142,null,null,949.55449042999999,515.55999999999995,1004,691.70554063152235,483.94682164,789.19999999999982,814.67000000000007,4433.9668527015219,5248.636852701522,null,null,1253.7199409899999,1066.95,1703.3,1053.7706698329434,547.95029612999997,1500.8,1295.8699999999999,7126.4909069529449,8422.3609069529448,null,null,-2692.5240542514211,-3173.724054251421]
[null,null,"F",0.4142856917048387,1.0584687337529035,5.9975867698204492,3.8665879574970385,3.7730623705781703,7.0877017403547349,-0.58560851989096674,null,null,-2.7534958575343391,2.8792244305749208,6.2330469776615143,0.2322161467750424,3.1735035059874726,8.1130120133052266,-7.7556361669070624,null,null,86.298224718937945,98.581525535711904,52.576431470380932,75.175565260827284,108.71186162722741,119.9106613985855,96.541499591624131,null,null,7.0131273990590053,0,1.2253411081163275,-2.4128728707143532,2.8807139036670306,8.5431577051112235,0,null,null,7296.84548283,2522.9699999999998,18374.400000000001,8242.7006274638479,3150.3164686291989,11963.162508328376,9062.67691457,null,null,64.345849995515664,98.30498832638736,115.52848228253114,99.93181579575905,136.94033397806629,116.10364164350115,398.88264285914238,null,null,3.0231896660755115,3.0492558464997641,-1.6109675907325769,3.0167661267405612,2.7239891877639422,-2.693588239804146,2.490191292260024,null,null,2.5480190399999998,4.1399999999999997,2.6,3.21,3.5857730635233498,0.94620000000000004,1.89,null,null,10.074473565797478,5.1173655518885157,5.9646765769385075,12.220880932082988,10.542903596274284,2.5071957059598504,8.9278910102938251,null,null,5.8058735600000002,6.23,6.04,7.64,8.8217755071920294,3.7345999999999999,8.2899999999999991,null,null,0.75,"n.a.",1.75,3,3.75,3,"n.a.",null,null,3.5514323895042388,1.8119634277849572,6.3328255425260327,2.9360088153332464,-3.703895100710064,4.5338991521331362,-3.2088581193290722,null,null,984.20637481583344,404.32666666666665,924.55833333333339,632.15952583051887,445.62779177499993,852.97499999999991,793.92520983250006,4243.8536924213522,5037.7789022538527,null,null,1157.9459696858335,842.79583333333346,1533.375,940.14814526390046,496.84509046333324,1428.2833333333335,1222.4600177500004,6399.3933720797349,7621.8533898297355,null,null,-2155.5396796583814,-2584.0744875758814,null,null,1103.4068648999998,504.92000000000007,1031.0999999999999,776.67476492681681,524.34036551000008,961.40000000000009,801.17000000000007,4901.8419953368175,5703.0119953368176,null,null,1168.6468180300001,945.6099999999999,1760,1166.2057336834657,544.16974390000007,1653.1999999999998,1460.54,7237.8322956134643,8698.3722956134625,null,null,-2335.9903002766487,-2995.3603002766486]
[null,null,"M",0.47273206790342198,1.7694173897368006,5.8416331143603832,3.9434961742201229,4.1108997892738905,8.2965106026717894,0.28839027278834267,null,null,8.3287831732859168,11.022778990653705,9.4554417930154475,10.943580974907899,4.6137106988095384,12.182194660209376,-8.2772330620296586,null,null,86.690050331265468,98.287371211929326,52.516725036469317,75.114208890572229,109.03329712492,118.38538893671451,96.592178284852039,null,null,7.0395354823751717,0,0.39551609375060859,-2.776316179079191,2.7303360306820728,6.5558402832781955,0,null,null,7169.0402848000003,2447.37,18699.8,8252.9434180912322,3227.8067002013695,12174.180959732435,7891.2991930999997,null,null,65.042750181692668,100.44196813511938,122.48858836590802,99.625670246197089,134.01606909466858,110.61318433100946,339.61466395777541,null,null,2.9134949073726943,2.2212789148689516,-1.5037873731980742,2.6807870894677306,2.576036143450648,-4.4974769506115795,1.606975366568369,null,null,2.55742899,4.03,2.61,3.21,3.4407022277322801,0.75700000000000001,1.9,null,null,9.0697997601357887,4.2061581170994158,6.1208115323011247,11.772265005662522,8.0876489310919233,0.65144240881091342,7.9985427080767426,null,null,6.0726114400000002,6.05,5.99,7.61,8.5509152280162102,3.5796000000000001,8.31,null,null,0.75,"n.a.",1.75,3,3.5,3,"n.a.",null,null,2.7957914923438132,1.2878825412196315,4.7633679965661146,3.107370518901087,-3.5056394304158744,5.4199126963489608,-1.7740946210972441,null,null,994.76541419833347,417.57083333333338,945.13333333333333,657.13612634316144,457.65568514749998,876.32499999999993,820.28764133250013,4348.5863923556626,5168.8740336881619,null,null,1174.4074664949999,871.19500000000005,1590.25,978.28078904123629,511.08201859999991,1462.4416666666666,1270.7256080833333,6587.6569408029054,7858.3825488862376,null,null,-2239.0705484472414,-2689.5085151980747,null,null,1265.0516182800002,558.25,1250.5,933.85816014411012,653.23738957,1154.5,1169.45,5815.3971679941096,6984.8471679941085,null,null,1439.9592083999999,1212.1100000000001,2151.5,1357.6610391663669,684.28542706000007,1915.1,1776.8000000000002,8760.6156746263678,10537.415674626369,null,null,-2945.2185066322563,-3552.5685066322567]
[null,null,"A",1.2098355534775576,2.7946132328563618,5.2040959461354941,3.9577836411609493,4.4030833590771996,9.6452641918615676,1.7052889858233271,null,null,10.001075609553009,21.662943003513799,12.429700528371127,11.5404073012143,5.9753684267897009,15.138477809044431,59.483152674660211,null,null,87.337172796364442,98.308118634013312,52.78369249969564,75.265719802234571,109.8272996100613,117.89334107305331,97.11171452308696,null,null,7.8255294121806509,0,8.984749330695227E-2,-3.1929575805388217,2.7080140708263993,4.9443652663852111,0,null,null,7098.4088019800001,2496.64,18812.2,8482.9648848130546,3354.4646831551927,12245.922034553323,8445.1795811499996,null,null,64.073392595439628,105.00125329937366,123.79530225687836,103.39700172594415,136.88639767633455,105.70167148004226,380.41484733647746,null,null,2.0651791746248169,1.0753353044285028,-0.93541599999999203,2.4116304692828807,2.0246923994181452,-5.8580406907700446,0.14228464971653954,null,null,2.4461444499999998,3.9,2.5499999999999998,3.0716117347402827,3.5528119037457899,0.7177,1.85,null,null,9.0520091613839728,3.2836222259015799,6.7258826666666751,11.901192893401014,8.4606371587910196,0.34022062958020677,6.4644730669740484,null,null,5.7733076900000002,6.17,5.95,7.62,9.0261059479174293,4.2447999999999997,8.2799999999999994,null,null,0.75,"n.a.",1.75,3,3.5,3,"n.a.",null,null,4.6455501276852385,1.8846033625514513,4.185759472521533,2.3118727650339732,-1.5201908734486014,4.9930397953873662,-1.9603617977768661,null,null,1017.3340120208333,442.59666666666664,963.69999999999993,693.63822035439546,473.83499835833328,914.39166666666654,871.18085699916685,4505.4955640668968,5376.6764210660631,null,null,1208.1007982866665,914.5200000000001,1649.9499999999998,1024.4562020606577,542.40511730500009,1527.5666666666666,1305.491958916667,6866.9987843189929,8172.4907432356586,null,null,-2361.5032202520961,-2795.814322169595,null,null,1113.3165976600001,512.48,1049.8,833.43926469512417,560.33879174999993,1012,1010.46,5081.3746541051241,6091.8346541051251,null,null,1422.8649226899997,1139.880000000001,2079.3000000000002,1283.6507936800226,791.87640758999987,1981.8000000000002,1417.35,8699.3721239600236,10116.722123960026,null,null,-3617.9974698549013,-4024.8874698549007]
[null,null,"M",1.3418059270051181,2.590073848836751,5.1732586629331481,4.8391856004721259,3.9732654377111127,10.480820683305565,1.9240394409096875,null,null,11.315642464706142,25.768763739764694,13.951396992808595,11.90970904377888,7.0083695483637438,16.301471728147281,59.457440872631842,null,null,88.256579161907183,98.933057771509525,53.037753490862208,75.568464538117155,110.6562971348682,117.9030309052504,97.556102361778883,null,null,8.04753591897577,0,0.21251023812344405,-3.350983242494777,2.3942536168295332,2.6783341318556166,0,null,null,6831.1434277199996,2985.16,18929.7,8540.1575189652613,3509.1089193086445,12417.540378595846,8286.6627843499991,null,null,61.321828324155661,112.62438479633433,124.65009700390961,103.27167460387416,139.22573194552194,103.0453565707417,376.81940202434487,null,null,1.8335908423946079,1.3158447991297118,-0.93489416932907443,1.2598480157613188,1.377260865608344,-6.404750290178467,-9.2264240531996028E-2,null,null,2.2766643000000002,3.94,2.48,3.02,4.1936545423834497,0.74509999999999998,1.83,null,null,7.6361886116070483,3.5285345017853249,6.7286508253461115,10.950880945679698,7.1089190895081913,-0.42217344188867334,6.2556003412588126,null,null,6.2203406799999996,6.21,5.92,7.65,8.7956001158216495,3.9443000000000001,8.3000000000000007,null,null,0.75,"n.a.",1.75,3,3.5,3,"n.a.",null,null,3.8331539022443462,2.4372015796903623,4.5918980371282059,2.6684913090346152,-0.34291859300399352,4.26385517408856,-1.2078558840359688,null,null,1053.38142365,467.46000000000004,980.8416666666667,731.12679580347788,492.2831741375,945.86666666666667,906.12103541583349,4670.9597269243104,5577.0807623401442,null,null,1248.1465723983333,961.58416666666653,1722.0916666666669,1091.3316618694514,567.21252891666666,1598.125,1372.8791890833336,7188.4915965177861,8561.3707856011188,null,null,-2517.5318695934734,-2984.2900232609732,null,null,1278.8140123899998,532.52,1087.9000000000001,907.57602994757667,569.37199636000003,1061.9000000000001,877.75,5438.0820386975756,6315.8320386975756,null,null,1475.5994216800002,1139.7599999999993,2159.9,1457.9711722014144,675.35092644999997,1955.2,1694.69,8863.7815203314058,10558.471520331404,null,null,-3425.6994816338338,-4242.6394816338343]
[null,null,"J",1.9080336324936071,2.5874516893015422,3.907220764876417,4.6709753231492463,3.9422249165742156,9.319367673985937,1.5800761799955862,null,null,12.148081144550201,21.719034282211535,13.310278916109414,11.694506651678427,7.6181051164223064,15.806750658370245,43.367165939947895,null,null,88.770916423252871,99.137755334520207,53.51661506843859,75.843069003783881,110.8988888635556,118.2636794755488,98.14750106725262,null,null,7.0143810725779669,0,0.49040411798859357,-3.2732525190331949,2.0543083325439309,-1.6908959864769879,0,null,null,7137.0566722599997,2604.3200000000002,18748.8,8645.3844918320228,3497.0349520029649,12611.563669947142,8901.2020722899997,null,null,63.907391286651659,104.6684679970468,127.12134755954769,100.94608775854907,142.49489779101418,101.64351524372567,406.68217130576403,null,null,1.2677767605305326,1.2989388943340174,0.23365001328728599,1.1168565815324065,0.72651917207399019,-5.6284332821384604,0.20665845892105622,null,null,2.31915878,3.92,2.4900000000000002,2.95,3.1856099506047801,0.45739999999999997,1.79,null,null,6.8012894277810974,3.6579018670465686,8.0194419346266432,10.699264664608465,7.2902360119165079,4.8053997321614493E-2,6.5869560082424972,null,null,6.1583083199999997,6.34,5.89,7.57,8.9144126803582697,3.9887000000000001,8.2711111111111109,null,null,0.75,"n.a.",1.75,3,3.5,3,"n.a.",null,null,3.0248727057298641,3.156997192837685,5.6017401168971803,2.9868325685531882,1.3544150313482106,2.9145246616444354,-0.82322930129179461,null,null,1085.4324786958332,489.48083333333335,1011.9083333333333,757.09736241525843,510.18277037999997,965.875,940.44973733250015,4819.9767781577584,5760.4265154902596,null,null,1290.1331052441667,1005.3975,1793.6333333333332,1145.1220687393454,589.11102649333327,1670.5083333333334,1408.7011825833335,7493.905367143514,8902.6065497268446,null,null,-2673.9285889857542,-3142.1800342365873,null,null,1311.7972841300002,539,1136.0999999999999,903.61916688474025,607.76685887000008,1054.0999999999999,1201.72,5552.3833098847426,6754.1033098847438,null,null,1662.5433836500004,1249.0900000000001,2154.8000000000002,1444.1549010510967,722.49975165000001,2093.9,1636.15,9326.9880363511038,10963.138036351105,null,null,-3774.6047264663575,-4209.0347264663578]
[null,null,"J",1.439779728861988,3.4325980884013325,3.8152196329140144,4.2590431738622998,4.1162086857337572,7.8760412420828194,2.3723976671893023,null,null,12.747545556977791,15.710625135977384,11.064592677640396,11.340140995836826,7.9939660492999938,14.442134661687877,43.770905430187767,null,null,89.572739164534767,98.853575962506696,53.62953345142644,75.312850394498525,111.1708777946958,118.329465650364,98.218950787883685,null,null,6.3830961234917671,0,0.61397146432520111,-3.7054812580090406,1.705512940323187,-2.2433768725555336,0,null,null,7375.9128943599999,2877.28,19167.099999999999,8632.7698387484488,3530.8946672313718,12143.783081088359,8210.2170179200002,null,null,64.112711672115665,109.99424278034718,125.92439838530409,101.36798858458209,140.64441263530978,98.040795803997042,369.84180995235107,null,null,1.7352366850981917,0.43255406889836012,0.26468216130312733,1.2478119753777379,0.5055916917201444,-4.7059951251737306,-0.60797410373517402,null,null,2.2470648600000001,3.88,2.4500000000000002,2.88,3.40872484261121,0.46839999999999998,1.75,null,null,8.3191151476218668,2.7529057223962048,8.0188438617401534,11.251740346950207,6.8815912485649111,1.3329732360963094,5.7609301600844489,null,null,5.3915698399999998,6.28,5.8,7.56,9.0194777452240604,3.3791000000000002,8.27,null,null,0.75,"n.a.",1.75,3,3.5,3,"n.a.",null,null,2.6630696477096594,3.5738390128527309,7.2892172302613467,3.9788277202465139,2.1766163955549089,6.3884330421661639,-1.1325675683203751,null,null,1111.3048468383333,501.09083333333336,1035.825,777.36434378850379,522.09468886583318,979.74166666666667,969.14519474916654,4927.4213794926709,5896.5665742418378,null,null,1319.3102789608333,1043.3408333333334,1864.2833333333335,1190.0911700847871,607.80947622249994,1739.7583333333334,1458.3528499166669,7764.5934252681209,9222.9462751847841,null,null,-2837.1720457754495,-3326.3797009429495,null,null,1236.2408835599999,582.27,1196.5,923.29085650057652,621.60996507000004,1056.3,1085.0500000000002,5616.2117051305759,6701.2617051305715,null,null,1457.0581053399997,1314.0199999999995,2289.4,1408.4978559458827,739.94559017999995,2122.5,1692.28,9331.421551465879,11023.701551465871,null,null,-3715.2098463353032,-4322.4398463353027]
[null,null,"A",1.7246570007465145,4.2967857990473171,3.6152002738788096,4.4845661036692004,4.9807367088258454,7.8970977155353586,2.3927172083280328,null,null,12.495252209984011,10.806456309219296,8.4561056347051942,11.12600717218152,8.2712978544860754,12.945575984770441,43.987736601618096,null,null,89.919983128906949,99.026099565569751,53.692137207396001,75.309410164978289,111.579380819332,117.803967190367,98.582705964654622,null,null,4.7667069061325753,0,0.40538589694067578,-3.1788916055419758,1.5902324863605193,-2.4464679836045256,0,null,null,7564.3115012799999,3228,19810.400000000001,8934.1514730713388,3949.9448551209839,13060.291905139489,7918.9460666800005,null,null,69.043835619868418,113.22442322363399,131.34465842737481,106.28451092979756,154.21186668069916,102.43363304680986,357.25171023697141,null,null,1.2537206188310139,-0.31332298166594302,0.43893147426154694,0.80914715719062591,0.60606801849400604,-4.3043768682080676,-0.69606240342068448,null,null,2.24950758,3.97,2.4500000000000002,2.81,3.4856582043880899,0.62439999999999996,1.68,null,null,8.0388237919479799,1.7481020023623173,8.2273640388554821,10.925473801560747,5.0661040629554908,1.87716104264871,5.735601620258457,null,null,6.3469527799999996,6.12,5.76,7.49,9.7023939731559494,3.1495000000000002,8.2655555555555562,null,null,0.75,"n.a.",1.75,3,3.5,3,"n.a.",null,null,2.3602009564714255,4.7042370264082312,7.6088716210261698,5.4312788572117299,2.5931773188287099,7.5575139747398046,2.2824369501600161,null,null,1130.6532064916667,507.35583333333335,1055.425,794.14849305244752,531.75008348416657,995.80833333333328,987.25427358249999,5015.1409496949482,6002.3952232774473,null,null,1352.7384668541667,1077.7666666666667,1937.0833333333337,1238.1514572307208,630.81205004916671,1787.5583333333336,1498.5160700000004,8024.1103074673883,9522.626377467388,null,null,-3008.9693577724393,-3520.2311541899385,null,null,1177.7714272499998,498.73999999999978,1133.5,882.8189242663384,578.34183286999996,1085.9000000000001,1165.1399999999999,5357.072184386343,6522.2121843863424,null,null,1534.6793779100003,1166.8400000000001,2317.4,1503.6627714655824,753.97321117999991,1914.6999999999998,1811.4,9191.2553605555731,11002.655360555582,null,null,-3834.1831761692411,-4480.4431761692431]
[null,null,"S",2.0863576192586506,4.9697981104596254,3.6710418375717855,4.6153846153846088,5.8583449696002114,7.738118445163547,2.4859534590791688,null,null,11.559314576907569,7.5388071305964619,6.4110923065028951,7.4825388058465609,8.3316207373555962,11.625924812404161,21.059717932212216,null,null,90.343918334075752,99.04168378975875,53.761123757041943,76.207635475660965,111.6162264833094,116.95588861429231,98.851977840551911,null,null,4.474515752507755,0,-0.37712114500179311,-1.77403613156684,1.7614858769990274,-3.1004151255146239,0,null,null,7568.2822246100004,3292.46,19827.2,8972.910945499576,3955.3646186211736,12932.304087663511,7814.9459386500002,null,null,68.486626647419527,111.42980818271934,129.76907734513662,110.15286783874679,153.18566838064916,97.948468855489551,354.76527424274082,null,null,0.7970138221366565,-0.80003784476741269,0.35589317507417884,0.46323529411765313,-3.6246428650714181E-2,-4.4197156158682711,-0.82543356482207408,null,null,2.15709091,4.13,2.5,2.79,3.3557399832027599,0.7288,1.64,null,null,7.3406943155817226,1.3148561913856298,8.1883600395647829,10.662500000000007,5.3500167153566629,1.4788466494775481,5.6339882159815264,null,null,6.5539841699999997,6.35,5.73,7.44,9.9463712344856106,2.9758,8.26,null,null,0.75,"n.a.",1.75,3,3.5,3,"n.a.",null,null,1.638946169069122,4.888693854727566,8.2039761762431098,7.0699736052265205,2.2271248088619799,7.875555053803196,2.755604756630059,null,null,1151.3148617033332,514.12083333333339,1079.9416666666668,804.87972861120772,537.84346998666661,1007.9166666666665,1009.9812810824998,5096.0172269678742,6105.9985080503748,null,null,1383.4547821791666,1112.9949999999999,2002.1750000000002,1283.6738649622623,647.55790777083325,1839.4166666666667,1564.6596244166667,8269.273221578931,9833.9328459955959,null,null,-3173.2559946110546,-3727.9343379452207,null,null,1227.9108629100001,550.44000000000051,1188.4000000000001,870.21681259947047,533.54869041000006,1071,1215.92,5441.5163659194586,6657.4363659194642,null,null,1511.2865537000007,1259.4599999999991,2276.1,1503.4719800458795,713.84759030999999,2058.2999999999997,1936.35,9322.4661240558926,11258.816124055898,null,null,-3880.9497581364085,-4601.3797581364051]
[null,null,"O",2.5039199664197187,5.4946149327683402,2.9560982209294293,4.6504910456383666,6.4081125497371962,7.7152484604361167,2.9430143194188476,null,null,10.603700415712918,6.1372899177053606,5.3200513785323249,7.4791630024793694,8.0657232861509254,10.597925491790505,20.944637338950304,null,null,91.447344362611489,99.225136583092834,54.058158913382663,76.622597118275337,112.0907063359757,116.7161855046979,99.452302218099391,null,null,4.3899465461409903,0,-0.6457720221267812,-1.2720760353763012,1.9586060576953113,-3.5436094349972564,0,null,null,7313.0874763299998,3365,20663.2,8823.3398930864387,3937.097373981022,12504.833016093617,7414.9898952800004,null,null,68.712529034070997,110.35931221059376,136.75832190865319,108.86783509209434,151.54798447357751,96.098052986928479,324.32043509593365,null,null,0.28884752278476467,-0.9428110936299523,1.0430676741130258,0.2384211979022843,-1.3845619975448726,-4.7534109920535066,-1.2074780670031042,null,null,2.3495268500000002,4.5,2.48,2.73,3.4321593373075401,0.45040000000000002,1.7,null,null,6.3366808856755483,0.73499966583679344,8.9104986859395723,10.405597571073686,5.0145569259202221,1.8359067707022365,5.1498687502737654,null,null,5.5061810900000001,6.27,5.69,7.45,11.1133956378064,3.0238999999999998,8.2444444444444471,null,null,0.75,"n.a.",1.75,3,3.5,3,"n.a.",null,null,2.5302202943356278,5.9131467190817188,8.5821435147567904,9.3167303612013086,3.3609641265409218,7.676879108269663,2.6573105539406061,null,null,1172.6200893499999,519.06166666666661,1097.1666666666667,808.21873905473785,544.93144172916664,1014.8916666666665,1030.4061870833334,5156.8902701339039,6187.2964572172377,null,null,1429.7858633333333,1163.0766666666666,2071.9500000000003,1319.6504943062369,664.87978586583324,1901.7583333333334,1616.0726890833332,8551.1011435054043,10167.173832588736,null,null,-3394.210873371499,-3979.8773753714981,null,null,1301.6232273700007,552.22999999999956,1119.5999999999999,812.73084309283399,581.14651329000003,1053.8,1250.6200000000001,5421.1305837528344,6671.7505837528297,null,null,1754.9066187799999,1482.8799999999992,2508.1999999999998,1532.555838020528,751.58126385000003,2339.3000000000002,1903.47,10369.423720650506,12272.893720650492,null,null,-4948.2931368976933,-5601.1431368976919]
[null,null,"N",3.3456433387984887,6.2038288093420917,2.8859737638748726,4.9453709028177073,7.0957104828745923,8.2315459174342749,3.3604717326744367,null,null,9.7075779029796649,5.4450436614011828,5.0088900024315901,7.8027680016332663,7.5307090454526939,9.7848037784905006,20.878149920251584,null,null,92.558883648510289,99.192119505998036,54.212411203257261,76.719183917469834,111.5659477577894,116.77725190720039,99.939008459874856,null,null,5.0198780547710253,0,-0.71840578534842547,-0.73417330121003477,2.0026933738785897,-3.1395235129724051,0,null,null,6780.7525001699996,3468.86,20701.8,8836.5575590047283,3908.5722108584887,12199.583225603856,8305.6168758399999,null,null,62.760635471517467,112.50846928790521,142.13381171430996,105.66551135094096,144.47922236583381,93.216138536470638,354.49980854731388,null,null,-0.43121637681187414,-1.8491130040778205,1.1022165555119663,-0.20522191780821494,-1.6073344782167467,-5.4105721837342626,-1.6838852450053559,null,null,2.09516575,4.24,2.5,2.7,3.8735258716324599,0.52639999999999998,1.62,null,null,5.8177313111217712,2.4642417275644039E-2,8.8778148293448425,9.9524438356164442,4.4743151697927841,1.5663216007826128,4.7015345284936076,null,null,5.3117073799999996,6.23,5.66,7.42,10.726282930288299,3.1564999999999999,8.2200000000000006,null,null,0.75,"n.a.",1.75,3,3.5,3.5,"n.a.",null,null,2.3747382246203541,6.0817503517516025,10.060535853077157,11.672069100603633,4.7495613830505823,8.8675527053852186,1.9194261750339336,null,null,1183.0822391408335,528.21499999999992,1116.1333333333334,836.82659311894349,558.88021123750002,1032.8916666666667,1055.4610833333334,5256.0290434972767,6311.4901268306103,null,null,1483.7094009983332,1199.9933333333331,2153.2333333333331,1377.649260634432,685.10000575000004,1983.2916666666663,1664.4307501666665,8882.9770007160987,10547.407750882765,null,null,-3626.9479572188216,-4235.9176240521547,null,null,1192.788152699999,538.14999999999964,1111.9000000000001,858.53699295630508,569.09982835999995,1129.9000000000001,1200.73,5400.3749740163112,6601.1049740163144,null,null,1846.5546040699983,1370.67,2658.3,1622.48009026822,751.06063345000007,2496.2999999999997,1902.51,10745.365327788226,12647.875327788235,null,null,-5344.9903537719147,-6046.7703537719135]
[null,null,"D",3.2989079099999969,6.114806269433835,3.0678148546824637,5.315804515575886,7.2100675352489079,8.4956989865317922,2.6243501775598737,null,null,8.893768397091991,4.5814532101731862,5.0283239534194939,7.4520281341422061,6.8428965870968916,8.8913876661597637,8.7683033028033339,null,null,92.880461879040439,99.854929273638163,54.506453566255203,77.0190342043756,111.0406328295818,117.5951854533696,101.129570709326,null,null,5.2511223742381885,0,-0.95617724424089112,0.3943735105238419,1.9936414206095272,-2.1557772937418793,0,null,null,6918.1401695499999,3342.39,20939.599999999999,8677.5568154226803,3954.5522422552585,13033.917427885361,8099.4653844300001,null,null,62.207809752554155,112.72253526636781,128.41652748442729,101.50945639897819,141.51188012674208,89.108528890081004,367.37174699793366,null,null,-0.38616856467403193,-1.5594489851229165,0.89473629242818942,-0.6701791044776183,-2.0612254633373941,-4.6600916292169545,-0.99815509261452151,null,null,2.0823728199999998,4.46,2.5499999999999998,2.71,3.3592156358131802,1.0194000000000001,1.6,null,null,4.8141644288560634,-0.14588564487482522,8.5886997389033848,9.2713487109904946,4.0891449365374566,0.66786150993704985,5.483737351518629,null,null,5.2552985200000002,5.96,5.61,7.33,9.5314289567687105,3.2469000000000001,8.2519999999999989,null,null,1.25,"n.a.",1.75,3,3.5,3.5,"n.a.",null,null,2.7916346650896706,5.718056270976235,10.793579442265111,12.019965756841655,5.1387202220816608,9.930841011511248,3.5549853475845161,null,null,1196.7355893733331,532.90749999999991,1134.9833333333333,851.11205297623064,572.0977247300001,1040.5333333333333,1094.3641666666667,5328.3695337462295,6422.7337004128967,null,null,1531.7362822683335,1218.1183333333331,2217.3249999999998,1404.521364196049,697.17936014666657,2023.5,1735.5991666666666,9092.3803399443823,10827.979506611049,null,null,-3764.0108061981514,-4405.2458061981515,null,null,1202.5516508999999,510.32999999999993,1310.5,818.87727906935243,582.4236430599999,1056.3999999999999,1339.69,5481.0825730293436,6820.7725730293459,null,null,1853.0164319800006,1270.1499999999996,2549.6999999999998,1520.1735249911874,689.61148000999992,2250.8999999999996,2299.7800000000002,10133.551436981201,12433.3314369812,null,null,-4652.4688639518354,-5612.5588639518392]
[null,2022,"E",3.4980842505554182,6.4834679779200473,2.8682743333109371,6.1770566467406738,7.6802472614263015,8.7264240446282955,2.6262074628368794,null,null,8.1398213557066548,3.8851431553282412,4.9961727851379925,6.7484997800821382,6.0013327834863954,7.8167692646410307,8.7526573248957416,null,null,93.197888378849711,99.849276218935515,54.669401818791343,77.13740680244895,111.2537917900616,118.36896240661611,101.42570091015421,null,null,4.4126707734660968,0,-1.1467299534615565,1.3796300111447473,2.0203364289723411,-0.93853863507207236,0,null,null,6827.9,3404.24,20813.400000000001,8530.9,4001.5522422552585,12373.983627802445,10043.17956147,null,null,62.951673703965106,109.03204688431825,131.52014510244643,101.64366647286103,146.42519652869447,94.889466897633525,458.955595324809,null,null,-0.43293965661302924,-2.0786963647530925,1.0515639284315059,-1.588908847184983,-1.5626916592988405,-4.3836850945009758,-1.0681554838064529,null,null,2.0526829100000001,4.2699999999999996,2.5099999999999998,2.7,3.4718775026209499,1.0726,1.53,null,null,5.8249926296700787,-0.58550683008307591,8.7993365547864748,8.4980160857908889,3.9496541968744214,0.8107283607615855,5.4506472327633775,null,null,5.2502232400000004,5.86,5.66,7.3,8.8433812456750207,3.4805000000000001,8.2200000000000006,null,null,1.75,"n.a.",1.75,3,3.5,4.5,"n.a.",null,null,3.0203663283297599,6.2016180971857571,10.690336908759912,14.250380748058911,5.7809462439708303,12.495250401158064,3.9395513753040845,null,null,1213.0837291908335,538.18500000000006,1152.3552433333332,868.69831296459836,585.19281265833342,1052.0583333333332,1109.1591666666666,5409.5734314804313,6518.7325981470967,null,null,1571.8789597191662,1241.0583333333332,2285.2688329166663,1443.2129750679558,717.75101192999989,2085.8749999999995,1791.9574999999998,9345.0451129671219,11137.002612967122,null,null,-3935.4716814866902,-4618.2700148200238,null,null,1145.73216824,578.89,1212.4629199999999,902.74066049193402,641.0878767800001,927.5,992.21,5408.4136255119347,6400.6236255119347,null,null,1735.4320703999999,1342.23,2518.6259949999999,1518.0700002958206,794.81011753000007,2249.3000000000002,1972.17,10158.468183225821,12130.638183225821,null,null,-4750.0545577138873,-5730.0145577138874]
[null,null,"F",4.8973145631015589,6.6675496992549013,2.9797776884960334,6.3654447286160947,7.7533516680632744,8.9838302363273215,2.7355245639824521,null,null,7.2491233428618367,3.7287939777910153,4.8599895865510074,6.1133721894000148,5.1686709313733674,6.7156959845701749,8.5996560470633376,null,null,93.412264509205571,99.771238335092008,54.817019030260248,77.614382428897983,111.1661960908947,115.774309355822,101.4461441537989,null,null,5.177843449803178,0,-0.54328470320078137,1.7241142991003759,2.0667892209608789,-2.5292471211013221,0,null,null,6567.8,3293.63,20835.900000000001,8483.2999999999993,4055.4391589354545,14849.759523177323,9756.13518931,null,null,59.023053540695294,110.89853731495052,130.38783554339534,101.12807570559323,152.01105351217436,110.63748807593656,409.15619409354196,null,null,-1.7610694523455095,-2.1445600894597852,0.94214838416023416,-1.8478226021907656,-1.7647245948585364,-4.1442205018243499,-1.1052891089053243,null,null,2.2550390299999998,4.38,2.57,2.69,3.1853769946177999,0.7198,1.6,null,null,4.4263586596445617,-0.42894929202456167,8.6815319591651114,8.0614106331819286,3.3822494556996117,0.88826916944784928,5.3216774207352051,null,null,5.5659750600000004,6.21,5.6,7.27,8.4118841752928404,3.1427,8.2027777777777757,null,null,1.75,"n.a.",1.75,3,3.5,5,"n.a.",13.462063433318042,null,3.4311640681044864,6.8391420391505475,11.170047697489128,14.863872513260556,6.2283996330927849,11.86016425838412,3.8950028847666518,null,null,1221.1173785708336,544.15750000000003,1173.2830154999999,883.75495788703029,592.53219975500008,1065.4833333333333,1140.6866666666667,5480.3283850461967,6621.0150517128632,null,null,1616.2409350583332,1266.2591666666665,2337.0470185833333,1472.0847851834278,733.11928078083326,2128.6583333333333,1836.4224999999997,9553.4095196059261,11389.832019605929,null,null,-4073.0811345597303,-4768.8169678930635,null,null,1199.8106574600001,576.59,1282.233266,957.35450399600018,612.4130106700004,1122.5,1179.5,5750.9014381259994,6930.4014381260004,null,null,1700.9905220999999,1248.02,2381.3382280000001,1512.6674550691346,728.58897010999988,2166.6000000000004,1994.12,9738.205175279134,11732.325175279135,null,null,-3987.3037371531336,-4801.9237371531335]
[null,null,"M",5.7931750632076655,6.6948663790853002,4.1711158569140414,6.9648924122310367,8.7414217514084633,9.054550222921586,3.1844502361354969,null,null,6.1916082246153401,3.6752548918238968,4.7026178651920869,5.507306464304178,4.5523300021578867,5.8546101206929606,8.3448577042518242,null,null,94.613141917494659,99.964278550033512,54.504943832845328,77.30058061574131,111.1073570230709,112.9570979367915,101.58237109862969,null,null,6.401860228069074,0,-0.36889732033297051,1.4404756271914667,2.1146465353966084,-4.1110481467489342,0,null,null,7054.1,3334.89,20763.5,8542.7999999999993,4128.7631367492959,14595.958530444243,8965.7074552899994,null,null,65.576614390819316,111.68452952470385,127.92763479456556,97.604159659506948,154.10021049009697,108.98723286508346,399.42440364568699,null,null,-2.6874843878246106,-2.0571433786579498,-0.2506605163687613,-2.4726733721545844,-2.160080866282343,-3.741384669031445,-1.4870944533056476,null,null,2.1119108899999999,4.5,2.59,2.7,3.72959967520636,0.78,1.65,null,null,3.4471268440648326,-0.52942226580830831,7.4674098276635279,7.4651667548967637,2.1498918735005303,1.1809225515541373,4.8639917019591863,null,null,5.97,6.13,5.53,7.28,7.6793541497266604,3.9809000000000001,8.2033333333333331,null,null,2.5,"n.a.",1.75,3,3.5,5,"n.a.",13.305664219183083,null,4.5158502090728359,7.2664713245291557,11.996974215163437,15.047327085012817,7.1159247369551037,12.719104083560939,2.3352069595624192,null,null,1240.8322018116667,557.65750000000003,1198.5901891666665,905.5529999302172,599.44152364250021,1076.95,1159.7733333333333,5579.0244145510505,6738.797747884385,null,null,1664.334174545,1299.6741666666665,2396.5786372500002,1517.8774472853881,752.19684723499995,2180.1416666666664,1876.4733333333334,9810.80293964872,11687.276272982053,null,null,-4231.7785250976704,-4948.4785250976702,null,null,1501.6294971699999,720.25,1554.1860839999999,1195.434664662354,736.1492762200005,1292.1000000000001,1398.49,6999.7495220523579,8398.2395220523576,null,null,2017.0780822399997,1613.0900000000001,2865.8794240000002,1907.17298438989,913.21622451000007,2532.9,2257.41,11849.336715139889,14106.746715139885,null,null,-4849.5871930875364,-5708.5071930875365]
[null,null,"A",7.1515617414220367,6.5459119390914964,4.62,8.3474337281443773,9.9460482801112988,9.6431169897207187,3.6504575158393164,null,null,5.0253175275093547,3.4873741527256543,4.5040251843495689,5.0178847174941685,4.209419806793651,5.3685709020031718,8.0494787094793416,null,null,94.736655007265497,99.859942729473076,54.230085255453048,76.195564605681298,110.39089583794581,112.5824488259783,101.4002713029122,null,null,7.3936749319004065,0,-0.68461830256232536,1.3473465843026524,2.1089612096801802,-3.2559932953969231,0,null,null,6965.1,3419.2,20843.7,8524.2999999999993,4245.7095765260819,14410.348158283283,8721.9294583400006,null,null,67.103114936721667,107.75083061608504,125.89446008381005,99.605043729523771,157.9182225614671,105.55536626003492,375.79365555418104,null,null,-3.9678019361788666,-2.0422294009134654,-0.68820493213534717,-3.7817542946381999,-4.2644548712296269,-4.7352876607908483,-1.9492991775077892,null,null,2.2767950799999999,4.37,2.5499999999999998,2.75,3.1131942149985998,0.73650000000000004,1.63,null,null,2.4623423267922466,-0.59684311440782867,6.9871917415408138,6.0200468505986571,1.3564897800775433,0.67152688695297658,4.3882405172736494,null,null,5.39,5.91,5.52,7.39,8.2960772140241108,3.6259999999999999,8.198888888888888,null,null,4,"n.a.",1.75,3,4,5.5,"n.a.",null,null,4.9387488077288877,7.6513312458993399,12.80209741853704,16.311872870281263,9.1753605745885647,12.783014710316642,2.8369878443728513,null,null,1248.9466208008332,562.1875,1220.22427825,923.18818904208399,607.02904711500025,1093.8583333333333,1170.2,5655.4339685412497,6825.6339685412504,null,null,1649.5598149383338,1323.528333333333,2448.456620583333,1546.3383631075139,752.81363792750005,2217.1916666666671,1916.2283333333335,9937.8884365566792,11854.116769890015,null,null,-4282.4544680154286,-5028.4828013487631,null,null,1210.6896255300001,566.83999999999969,1309.4090689999998,1045.0615340375239,651.38907342000061,1214.8999999999999,1135.58,5998.2893019875191,7133.8693019875172,null,null,1245.5726074100007,1426.1299999999992,2701.8357999999998,1625.1817835455333,799.27789589999998,2426.4,1894.4099999999999,10224.39808685553,12118.808086855533,null,null,-4226.1087848680054,-4984.9387848680035]
[null,null,"M",8.714147294619103,7.4826684698767787,5.8173588924387483,9.0909090909090935,10.610153942576776,9.4725720799621911,4.2200679651442137,null,null,3.9882033828694041,3.049767254022278,4.2837333785454321,4.6686428627757373,4.0784379350249909,5.2599789043990421,7.7086726939417938,null,null,96.330577456348621,99.871613058282307,54.083047057093417,76.344287363489855,110.8603526614444,113.2927759431836,101.5645528697794,null,null,9.3614009719369022,0,-0.5524983920113784,1.5746737817152829,2.1306384661782971,-3.0509632535625704,0,null,null,6618.7,3649.33,20986.7,8460,4284.2910583158855,14248.935253775322,8250.77309117,null,null,66.345928998466277,117.03314923151224,127.57905880984701,100.80726808189016,163.55470158951778,112.58117017936233,365.20863394837198,null,null,-5.145739937101995,-2.7843265453681099,-1.8214014341426441,-4.4833333333333361,-5.0646575865610348,-3.9813370574490814,-2.5139764503132738,null,null,2.1165931599999999,4.49,2.57,2.78,3.71827991886832,0.89849999999999997,1.6,null,null,1.0907988839457992,-1.2678029763083913,5.7860460435275032,5.1966666666666645,0.69505538345770546,1.7134227180372803,3.8134464474053482,null,null,5.87,6.12,5.56,7.39,8.0532802725535095,3.8024,8.1944444444444446,null,null,4,"n.a.",2,3,4,5.5,"n.a.",null,null,6.4147944413111446,7.7285725073892753,13.513473018668654,16.962518311636956,10.919647369404917,13.264566338735207,2.5111089461608005,null,null,1237.7538080341665,571.02,1245.8164029166664,942.20808361018817,618.10784078666677,1106.6666666666667,1199.5708333333334,5721.5728020143551,6921.1436353476893,null,null,1674.3134255625002,1354.0466666666664,2502.6638518333334,1579.5371052491828,766.83610591916658,2272.608333333334,1957.2466666666667,10150.005488564184,12107.252155230848,null,null,-4428.4326865498269,-5186.1085198831606,null,null,1144.5002591899997,638.51000000000022,1395.005496,1135.81476476483,702.31752041999994,1215.5999999999999,1230.2,6231.7480403748341,7461.9480403748385,null,null,1772.6427491699997,1505.9800000000005,2810.3867749999999,1856.3560779014369,843.62054235000005,2620.1999999999998,2186.91,11409.186144421445,13596.096144421441,null,null,-5177.4381040466105,-6134.1481040466097]
[null,null,"J",10.055605676445079,7.759211946994812,7.5538134467180429,10.216110019646358,10.37048519913351,9.4782888980982669,5.1984402104513991,null,null,3.3089616119824985,2.3603175502072196,4.1103672211821243,4.3976954804384558,3.9596066068325824,5.3049749605730012,7.4441719427870163,null,null,98.058672609222711,100.2176204432695,54.199001985626673,76.300090037241532,111.7766979660867,113.2356435855832,101.6317392697751,null,null,11.60099405768853,0,-7.1251922182486065E-3,1.7875869823380821,2.1216024190599079,-3.7722447458270802,0,null,null,6197.3,3483.47,19875.599999999999,8352.5,4278.3910583158859,14455.381276348726,8187.8180585600003,null,null,62.535109739141923,111.99809407084989,119.79528102643344,100.4403963264715,162.12988008038516,112.13173050502519,358.14424963633655,null,null,-5.6295230382536614,-3.0709318370132155,-3.4157909691766006,-5.4947593582887642,-4.2187008339017256,-3.8834082454974492,-3.4396329481812122,null,null,2.1967797199999999,4.45,2.64,2.79,3.3494404851629,0.95409999999999995,1.58,null,null,-0.53916169267157832,-1.4655006458024245,4.1153227500154443,4.0319786096256758,1.5295013601768694,2.0171224122412217,2.8511236110784073,null,null,5.74664091,6.18,5.52,7.48,8.3077221405215003,4.3262,8.1977777777777803,null,null,5.5,"n.a.",2.25,3,5,6.5,"n.a.",null,null,7.4143217604868417,8.8942080467159244,14.236184421266863,17.365445629457653,10.691639138999687,15.130524589302086,3.1690649081293598,null,null,1235.0877705374999,578.26,1270.1302534999998,966.0483577883582,627.53982854500009,1121.3083333333332,1210.7483333333334,5798.3745437041907,7009.1228770375237,null,null,1665.9261951991664,1376.8483333333331,2560.2438804999997,1623.1664614698323,784.82507515333327,2345.358333333334,2009.6808333333336,10356.368278988997,12366.049112322333,null,null,-4557.9937352848065,-5356.9262352848064,null,null,1279.80483417,625.88000000000011,1427.866207,1189.7024570227804,720.95071196999993,1229.8,1335.85,6474.0042101627769,7809.8542101627754,null,null,1561.89661929,1522.71,2845.7603439999998,1967.7071756988951,938.36738245999993,2966.9000000000005,2265.3599999999997,11803.341521448892,14068.7015214489,null,null,-5329.3373112861118,-6258.8473112861138]
[null,null,"J",11.480082805652875,7.4207912352998173,8.3565090716461157,10.856183547845555,11.457068246468802,9.4349992671845193,3.5061049475205444,null,null,2.9271775099896575,2.6130015319076083,3.9418076801853155,4.1005139155175412,3.6920313572145402,5.2493165490307145,7.3464604109778247,null,null,95.891316382433658,99.766819825667824,53.594804897302502,75.719633752691252,110.516784497755,112.0958002167587,102.87537141434569,null,null,10.082584269957241,0,-0.11699751250863523,2.8057134466764824,2.2027847792735478,-4.3751898191955654,0,null,null,6510.8,3270.3,20808.2,8377.7000000000007,4271.2910583158855,14170.969015291217,7287.2940332799999,null,null,62.280883606953886,107.78822052040124,121.16753447117303,99.633162734843765,160.98691078086429,107.20063984359966,306.1308596141331,null,null,-6.1895207036058908,-2.7283277302250242,-4.1405072109508465,-6.0584654215042937,-5.5853383322973373,-1.6882160913382627,-1.9091675302847739,null,null,2.2126511500000001,4.49,2.64,2.85,2.9539397824487001,1.6045,1.53,null,null,-0.14503613702435955,-1.1550754942606287,3.3440454656563419,3.3140383644623879,0.22089856202839292,2.180655867680052,4.5424111289291256,null,null,6.1425720999999998,6.18,5.65,7.63,8.0281687875791707,4.3823999999999996,8.2077777777777783,null,null,7.5,"n.a.",2.25,3,5,7.25,"n.a.",null,null,6.60035704554367,9.4715147909461006,14.292797610625163,18.371869910872164,11.18444998728647,15.283668949309192,3.5333394706925203,null,null,1244.1364779224998,586.27083333333326,1287.6570212499998,978.86122329071725,631.65954593833351,1134.2250000000001,1210.7691666666667,5862.8101017348827,7073.5792684015496,null,null,1694.8422209733335,1390.810833333333,2596.937214333333,1645.6548316171393,796.54642016833316,2387.4416666666671,2110.6749999999997,10512.233187092139,12622.908187092142,null,null,-4649.4230853572544,-5549.3289186905886,null,null,1344.8253721800006,678.39999999999964,1406.8212129999999,1077.0452425288854,671.04657379000014,1211.3000000000002,1085.3,6389.4384014988827,7474.7384014988857,null,null,1804.0504146300009,1481.5700000000015,2729.720006,1678.3582977135623,880.60173036000003,2627.4999999999995,2904.21,11201.800448703565,14106.010448703557,null,null,-4812.3620472046787,-6631.2720472046785]
[null,null,"A",12.128481541421147,7.656564267247906,8.8746448159650964,10.395763656633225,12.15017802844431,8.7959723370804923,2.0670705704578984,null,null,2.8286906123091695,3.3601735220706761,3.831600341347575,3.7141017871029858,3.2789882212010228,4.9922094562184665,7.3357968997691492,null,null,92.181123197839156,99.551137457129371,53.31983017808863,75.996765223537679,109.95120527678711,110.26874225562101,104.5326964767565,null,null,6.2098146352067563,0,-9.9480061242408657E-2,2.9345570734176407,2.1125086392557062,-5.9046300801512146,0,null,null,7581.1,3325.02,21106.3,8330.5,4270.1586608836806,14019.467975687932,6491.9764159699998,null,null,72.027185113392449,108.65485445728945,126.86829540336149,98.458098506455002,158.38277963009369,107.64235305373762,279.01977073696224,null,null,-6.0274440967297949,-2.8577581759070512,-4.5875188152464075,-5.6847866700328229,-6.329324351205603,-0.77656582218213022,-0.584978648961748,null,null,2.5960554500000002,4.58,2.7,2.92,3.2285575949976102,1.9713000000000001,1.47,null,null,-0.40075819742118574,-1.1950634650146588,2.8889694100509953,3.5094067154758872,-0.97497805260247672,3.437193107970395,6.0130792817746785,null,null,6.3972207399999999,6.37,5.71,7.73,8.8775887954350896,4.7065999999999999,8.2044444444444427,null,null,7.5,"n.a.",2.75,3,5.5,7.75,"n.a.",null,null,5.6074365809769544,9.3960734814991564,14.720805236899581,18.930518525494989,12.959921474265347,15.895228945805972,3.6546363576749119,null,null,1262.9298960166668,592.70916666666665,1300.3985837499997,995.18678793927995,641.18390972250006,1145.2583333333332,1228.7508333333333,5937.6666774284458,7166.4175107617802,null,null,1735.4980544974997,1416.22,2647.9482298333332,1681.5812197601988,807.01667144166652,2466.4916666666668,2309.0558333333333,10754.755842199365,13063.811675532701,null,null,-4817.0891647709186,-5897.3941647709189,null,null,1403.2924443799998,576,1286.3987500000001,1078.7257000490895,692.63419828000019,1218.3,1380.92,6255.3510927090974,7636.2710927090957,null,null,2022.5493801999996,1471.75,2929.5321859999999,1934.7794291822968,879.61622646000012,2863.2999999999997,4191.97,12101.527221842305,16293.497221842306,null,null,-5846.176129133215,-8657.2261291332179]
[null,null,"S",10.365152526270192,7.4874913668829146,9.033959775799536,10.044395116537194,11.520678170317302,8.6262269869272146,1.9328976679478718,null,null,3.0199074802247243,3.2978731567940676,3.7759656327122202,3.2831583097793833,2.9411339485317809,4.5135753004655799,7.4441097387231991,null,null,91.038728859516539,99.711894013183155,53.88116032742208,76.623993131015368,110.4565336915217,109.5833889561041,104.9440621238529,null,null,2.7714189476213527,0,0.98189318443750628,2.2462394365025911,1.9841307275654558,-5.9474766913888599,0,null,null,7566.2,2941.12,20427.5,8209.2999999999993,4185.7227974147372,13806.192399658843,5783.3744746499997,null,null,67.637259818916235,100.94883225398117,125.36572030820174,99.887907289128435,155.38896345472978,103.25345593582395,246.11044564155034,null,null,-4.0911034170821736,-2.5933169817578845,-4.7269307529482898,-5.3745537065053064,-5.0989015098922073,-0.38897326975930469,-0.63070675184977765,null,null,3.1565608799999998,4.7,2.81,2.96,3.7427499037541501,2.3603000000000001,1.29,null,null,0.95505243240516002,-0.71402854148234429,2.6652615663743595,3.8217347453353385,-0.23738248487726596,4.7078621387523976,6.1646133313981943,null,null,7.2580660300000002,6.72,5.74,7.83,9.1572369410209298,5.2624000000000004,8.216666666666665,null,null,8.5,"n.a.",3,3,6,8,"n.a.",null,null,4.6665005579953567,9.4198681417274379,15.756902400226625,18.640574843539138,14.602582918961948,16.580961237644743,3.837797097530693,null,null,1278.2561315725,595.55749999999989,1300.9058273333333,1009.5163376196305,645.93365071500023,1145.7083333333333,1256.8566666666668,5975.8777805737964,7232.7344472404648,null,null,1760.5358480949997,1427.7933333333331,2681.46625275,1707.266092757621,816.80442079249997,2518.25,2363.1941666666667,10912.115947728455,13275.310114395121,null,null,-4936.2381671546564,-6042.5756671546578,null,null,1411.8256895799996,584.61999999999989,1194.4869229999999,1042.1714087636733,590.54558231999999,1076.4000000000001,1553.19,5900.0496036636687,7453.2396036636637,null,null,1811.7400768700004,1398.3399999999983,2678.3162750000001,1811.6904560149446,831.30058252000003,2679.3999999999996,2586.0100000000002,11210.787390404934,13796.797390404929,null,null,-5310.7377867412579,-6343.5577867412576]
[null,null,"O",8.9913986093612799,7.469905587657613,9.7043363994743945,10.184929616340042,12.16251482760082,8.2350508791485399,1.6681274482273407,null,null,3.4110146753003425,2.9790280950937413,3.689199338368998,2.9130161243178074,2.8183118416179718,3.8700084213900539,7.6121490097585509,null,null,89.774060698747405,99.495277267902665,53.941155744317733,76.757171207480695,109.7055959236453,110.84739178594251,105.4138426512843,null,null,-0.7102610658704489,0,1.5816266344836398,2.4275211961611798,1.8683530037752498,-4.6117919699727006,0,null,null,7753.7,2494.77,20138,8191.7,4150.1700268170243,13545.289951439536,5453.2210912299997,null,null,68.398140298611978,99.398692039642015,122.82561140122058,97.99182936245569,157.69112406041589,105.2541193083776,238.81393408944675,null,null,-2.7262689049538138,-2.6145976143672325,-5.2908905791459704,-5.4498647294589126,-6.4114056051510158,8.7632536854780591E-2,-0.18504073297026274,null,null,3.5520441200000001,4.66,2.82,2.99,3.5454259839456101,2.9544000000000001,1.48,null,null,3.3434503613441389,-0.75361151871210597,1.9467449242378696,3.689316132264536,-0.61450034528060549,4.9237738399568105,6.4531152538463905,null,null,7.0313500199999996,6.66,5.85,8,8.7265107147453609,5.9505999999999997,8.2288888888888874,null,null,9,"n.a.",3,3,6,8.25,"n.a.",null,null,3.8043574040356187,9.5272820731083563,15.537810014928311,18.340155860864506,15.206822279052412,17.643964474734354,3.9317469412625039,null,null,1283.0703567549999,596.25999999999988,1304.6560304166665,1015.4936792108032,645.55938338083354,1148.3583333333333,1265.6858333333332,5993.397783096636,7259.0836164299699,null,null,1776.9371881624995,1421.310833333333,2690.0502500833331,1718.8791269117876,823.74664914083326,2542.7499999999995,2430.959166666667,10973.674047631788,13404.633214298456,null,null,-4980.2762645351513,-6145.5495978684858,null,null,1359.3939295599994,560.65999999999985,1164.602437,884.45894218690796,576.65530528000022,1085.5999999999999,1356.57,5631.370614026906,6987.940614026913,null,null,1951.7226995899996,1405.0899999999983,2611.2079680000002,1671.9122478705285,834.88800402999982,2633.2999999999997,2716.65,11108.120919490539,13824.770919490547,null,null,-5476.7503054636327,-6836.8303054636344]
[null,null,"N",8.2550374901029944,7.3219242220205203,9.1669935922584038,10.438356164383569,11.376040139543315,7.577926986526748,1.4924106881943473,null,null,3.8107168493014334,2.8854174714725906,3.6038345815700707,2.6074329836284869,2.8228151610544052,3.1142910966104944,7.7788473577952901,null,null,87.871230227460813,99.019676804689638,53.747823245930583,76.159015427487233,109.3455044127202,111.6557966398739,105.4955773143481,null,null,-4.0723228048710443,0,1.0231071027567178,2.3303583903442533,1.8892255319847191,-3.990676436570892,0,null,null,8278.5,2579.88,20398.8,8072.6,4206.9700268170245,13084.44065257582,7217.7167280499998,null,null,71.559085696807401,103.57203649759286,123.10519582314505,98.828009912659681,155.72639963650673,104.95590881981296,304.77546479018912,null,null,-1.861379882933591,-2.4150929465805309,-4.7972316722568298,-5.5129000248077462,-3.460876288509577,0.61729485971264586,0.12571315524037904,null,null,3.0658938999999998,4.7300000000000004,2.87,3.12,3.2891093610554698,3.5152000000000001,1.62,null,null,4.6605497230170556,-0.50495201791147815,2.439387877335887,3.4966509550979845,0.15097084826512966,5.713321668898697,6.669169031477252,null,null,7.5680860900000004,6.78,6.03,8.1199999999999992,9.8181820968314906,6.2938000000000001,8.2611111111111128,null,null,9,"n.a.",3,3,6.5,8.5,"n.a.",null,null,3.3427290544426391,9.5887119139633761,14.399476705629755,18.222530142758544,14.825213712907125,17.45970719452361,4.5740853956512728,null,null,1299.3160388266667,595.62833333333333,1307.856117,1023.6147462494031,645.69363639583355,1149.1499999999999,1300.5233333333333,6021.2588718052357,7321.7822051385692,null,null,1788.631193035,1425.9133333333332,2687.7978264999997,1721.2270588682547,834.06574043833325,2548.7249999999999,2441.2708333333335,11006.360152174922,13447.630985508253,null,null,-4985.1012803696849,-6125.8487803696853,null,null,1387.7363375599998,530.57000000000062,1150.3010389999999,955.98979741950518,570.71086454000022,1139.3999999999999,1618.78,5734.7080385195077,7353.4880385194992,null,null,1986.8826625400002,1425.9000000000015,2631.2709170000003,1650.6552737458255,874.88972902,2568,2026.25,11137.598582305814,13163.8485823058,null,null,-5402.8905437863141,-5810.3605437863152]
[null,null,"D",7.8771537614796845,7.3196837730270286,9.2362924281984302,9.7964721845318916,11.59344790889287,7.8269161155893761,2.0747162882265466,null,null,4.1438133557117673,2.7019430577507797,3.6118240820220233,2.3673631150622216,2.9241120827109097,2.455069250640769,7.990039067627416,null,null,85.10248148238729,99.041029852951354,54.06432163700255,75.797524839031055,107.9389787788196,112.8434452113067,105.4593294753623,null,null,-7.1413611607311234,0,1.7899169912372381,1.5126857888078291,1.9084155543987655,-2.7949212047620313,0,null,null,8550,2440.44,20019.8,8421.5,4356.3700268170242,14436.139070117662,6291.2471588600001,null,null,71.514444890292239,97.103997536231361,111.27264090630722,98.762835868881155,154.99727459459777,109.16431848139555,256.47389453804868,null,null,-1.4156415035349166,-2.2453325320295634,-4.8393187929489061,-4.7692535837864609,-5.471789503155474,1.2765679794969258,-0.38669349529416608,null,null,3.0330637299999998,4.91,2.93,3.29,3.43386962532339,3.7141999999999999,1.68,null,null,4.2182554598925668,-0.26992604044537388,2.3744009560800747,4.1108131487889219,-0.3393509599223114,5.2598962195401597,6.0943978034318862,null,null,7.9006532800000002,7.03,6.15,8.17,9.4992102025555898,7.1904000000000003,8.2955555555555556,null,null,9,"n.a.",3.75,3,7,8.5,"n.a.",null,null,2.7474991816536676,10.589228566345543,13.691776522362286,20.107100310733685,15.629633794228969,16.824215712540269,3.90547126121088,null,null,1310.2679087050001,592.92583333333334,1304.5254515833333,1020.5749452077574,644.23493673000019,1148.075,1288.8900000000001,6020.6040755594249,7309.4940755594243,null,null,1783.0843037466668,1425.6674999999998,2676.9763474166666,1724.9502064883318,843.72233420916655,2561.9083333333333,2437.4458333333337,11016.309025194167,13453.7548585275,null,null,-4995.7049496347399,-6144.2607829680737,null,null,1333.9740894400011,477.90000000000055,1270.532015,782.39966656960542,564.91924706999998,1043.4999999999998,1200.0899999999999,5473.2250180796109,6673.3150180796074,null,null,1786.4537605200003,1267.1999999999989,2419.842251,1564.851296432108,805.49060525999994,2409.1,2253.88,10252.937913212125,12506.817913212144,null,null,-4779.7128951324994,-5833.502895132493]
[null,2023,"E",7.6518468278071055,7.0308122763064791,9.69047929998694,8.9276139410187696,10.924831636038141,7.2433290867524143,2.7126070654214645,null,null,4.4873578315151601,2.2561384329555416,3.7701504002317261,2.4089167155980933,3.0946894275941066,1.9375142236007843,8.2570377199658243,null,null,82.976551091166755,99.211492003617764,54.002736377458191,75.793408080559033,108.5868409379826,115.0176938107379,105.014712092002,null,null,-9.8750761730652759,0,1.8859965472436593,0.64182660350414067,1.8041012032023092,-2.0123774424588037,0,null,null,8281.6,2734.72,20139.400000000001,8340.2999999999993,4482.9700268170245,14597.13365870754,6174.5807020000002,null,null,64.368911221390874,105.19897721506911,114.31116428612616,101.30708120102673,160.20091829993262,109.18303982240883,264.37141599938911,null,null,-1.0513956436042704,-1.9067521145574409,-5.1968770091677579,-3.8352202805808537,-4.7036878585390811,2.7607040348893022,-0.38223843853111295,null,null,3.36509861,4.99,3,3.44,3.3231930970466199,4.1661000000000001,2.3199999999999998,null,null,5.6230497948403855,7.3985913036979808E-2,2.005206572210978,4.8127245877430438,1.1092688753821991,6.2715984019918141,5.4690393857889426,null,null,8.1399626400000002,7.11,6.25,8.26,8.6730656194197309,7.1843000000000004,8.33,null,null,9,"n.a.",4.25,3,7,8.5,"n.a.",null,null,-0.24459642732401754,10.669528742703793,13.762187449597585,19.244556406180614,18.38553859532577,15.4549583953834,3.6241496783000038,null,null,1323.0996127041665,588.23083333333341,1299.8507848333334,1016.1947540514797,645.85130695833357,1151.7666666666667,1331.1925000000001,6024.9939585473139,7356.1864585473122,null,null,1796.9186962008334,1422.1666666666667,2681.1299416666666,1727.5537001110024,836.21320671249987,2568.833333333333,2448.6941666666671,11032.815544691004,13481.50971135767,null,null,-5007.8215861436893,-6125.3232528103554,null,null,1299.7126162299969,522.54999999999995,1156.3669190000001,850.17836661660124,660.4843195200001,971.80000000000018,1499.84,5461.0922213665981,6960.9322213665982,null,null,1901.4447798499982,1300.22,2568.469126,1549.3119237678739,704.70058757000004,2332.4,2107.15,10356.546417187872,12463.696417187872,null,null,-4895.454195821274,-5502.7641958212744]
[null,null,"F",5.5798108355050795,6.8209726115009639,9.9226217569413091,9.8049692759818292,11.102497691940039,6.3782877103183475,2.0423672194251457,null,null,4.76035820288645,2.055843954757282,3.8928848020096085,2.4651952665815129,3.2656477137847064,1.5794582716290684,8.6753423796621618,null,null,82.701193213663913,98.991779101886792,53.741097803712407,75.111064300665689,107.92801079072009,114.2461371273897,105.3671697178001,null,null,-11.806117870061595,0,1.6782124068961999,0.26131803098498363,1.7735573895110743,-0.95512084894901061,0,null,null,8564,2548.17,20047.099999999999,8286.5,4645.5700268170249,15586.966081791708,5643.1333351499998,null,null,64.177734726382369,98.029990251514008,112.2155215805259,100.09385563261448,157.16071452580317,126.74872962805479,227.52823830390807,null,null,1.0515165311525441,-1.6485270340174452,-5.3697971014492971,-4.3759124087591212,-4.785900705517677,3.1071305628479751,0.61507077665616516,null,null,3.5754869600000001,5.0599999999999996,3.06,3.58,3.7047181761824102,3.8757999999999999,2.67,null,null,7.2094615099795156,0.15823427213471922,1.8352712215320668,4.0116861313868659,-0.91378949268628229,8.7431490860324352,6.2837401755206201,null,null,7.9359614499999998,6.99,6.36,8.33,9.1051565965608994,7.3284000000000002,8.4544444444444462,null,null,9,"n.a.",4.5,3,7,8.5,"n.a.",null,null,-7.2187283164837357E-2,10.428452257808463,13.883783032182183,19.898776205997159,19.196757388590168,16.105100367522105,3.3048913136206393,null,null,1344.9274464899997,588.75833333333344,1297.6049491666668,1015.9935974480114,645.99669487750009,1146.7416666666668,1334.7850000000001,6040.0226879821785,7374.8076879821774,null,null,1801.2548681649998,1420.3658333333333,2665.3137412499996,1727.8486537689153,838.42415028333335,2568.4666666666667,2445.0541666666668,11021.673913467248,13466.728080133915,null,null,-4981.6512254850704,-6091.9203921517365,null,null,1461.7446628899961,582.91999999999985,1255.283238,954.94062475438068,614.15766570000005,1062.1999999999998,1222.6100000000001,5931.2461913443767,7153.8561913443773,null,null,1753.0245856699992,1226.4100000000001,2191.543823,1516.2068989640863,755.12029295999992,2162.1999999999998,1950.44,9604.5056005940842,11554.945600594085,null,null,-3673.2594092497093,-4401.0894092497083]
[null,null,"M",4.4173967983496309,6.0524883672249352,8.7129220321609413,9.0524086818422411,10.387210939778251,5.8987726636376987,1.3472626962532466,null,null,4.9694434608329949,2.3575596345316203,3.8553251808304614,2.7073855521692383,3.4173402791390877,1.3837458508786074,9.216350479709865,null,null,80.146385978291093,98.959882253424169,53.388513077073,75.031977920113818,107.5306737342147,111.8745778820217,105.2304722543083,null,null,-15.749954595984079,0,1.4280091542724245,0.82394923418188237,1.759066339743218,-9.8130951924958118E-2,0,null,null,9136.6,2556.1799999999998,20343.7,8133.7,4817.7700268170247,16016.560728313982,6291.2291048900006,null,null,66.458920099528001,96.860662334768705,110.37870505798931,99.412665958662657,160.93979990870739,124.96635293533109,270.90672507597696,null,null,2.1764603134468192,-1.0867150643691132,-4.2708097118274573,-3.4959417475728118,-3.9215007681538809,4.0555968953519415,1.5419630113054126,null,null,3.5119978999999999,4.9000000000000004,3.11,3.77,3.8452243209268899,4.2339000000000002,2.91,null,null,8.2386685221272788,1.157456700614695,2.9592415581354152,4.7019514563106819,-0.63567144894551786,9.0223211242589088,7.1497447926119175,null,null,7.68,7.28,6.4,8.43,9.0750742445921198,7.4863999999999997,8.5933333333333337,null,null,8.5,"n.a.",4.75,3,7,8.5,"n.a.",null,null,-2.1130287791460201,9.9900422024613356,13.142355746492296,20.73028487759214,20.182084614297601,15.556334673557281,2.946007132210382,null,null,1357.3309618074989,585.71583333333342,1289.54559275,1006.7762318656288,646.31268274250021,1147.3583333333336,1373.6274999999998,6033.0396358322942,7406.6671358322938,null,null,1804.5960549916672,1403.6149999999998,2641.4492692499998,1706.949579100871,829.17919573250003,2572.6416666666669,2431.7050000000004,10958.430765741707,13390.135765741708,null,null,-4925.3911299094098,-5983.4686299094101,null,null,1650.4716809799916,683.74,1457.4738070000001,1084.8262776737627,739.94113060000029,1299.5,1864.6,6915.9528962537515,8780.5528962537501,null,null,2057.1723241600084,1412.08,2579.50576,1656.3840883733626,802.27676990000009,2583,2097.2200000000003,11090.418942433367,13187.638942433365,null,null,-4174.4660461796157,-4407.0860461796165]
[null,null,"A",2.4428180006812514,5.4337743207348774,8.3158095966354306,7.4440395627277516,9.5344942688551892,5.1521132512080561,0.95106148140964875,null,null,5.4418021813542392,2.8067131056332713,3.6681237367860704,3.0908317100035165,3.6445859966834733,1.3128646786056462,9.3492456366734764,null,null,79.329852590916772,99.408554812182871,53.474132263592551,75.131911031554026,107.5179851852495,111.5197149055377,105.424227724982,null,null,-18.268792316555341,0,1.7614080800311867,0.9403650405332975,1.6451277249000165,-0.75999818008098674,0,null,null,11137.8,2687.83,20173.599999999999,8059.4,4884.4303842876525,16154.841268718505,5885.4904351000005,null,null,82.06478460414516,98.974875067616836,109.39737232762481,100.92731485826285,164.81367265553169,123.23766411155192,246.68948705297075,null,null,4.0873358240603102,-0.34502636662542047,-3.9013783974585143,-1.9210368217054317,-3.6053987801107308,4.4909099805825257,1.9900122783357772,null,null,3.4711800199999998,5.07,3.16,3.9,3.8256214720035699,4.0678999999999998,2.96,null,null,11.310877839422275,1.5044758565123006,3.3367154959407102,6.3344234496123981,1.029807573371565,10.192935184466021,7.6131989822339179,null,null,7.26,7.02,6.48,8.57,8.7326791569045703,7.6569000000000003,8.6366666666666649,null,null,7.5,"n.a.",5,3,7,8.5,"n.a.",null,null,-2.142467874042453,9.3708393147812643,13.026716445123498,20.448241560330228,20.044401484283792,15.399049502028106,2.858757788310351,null,null,1371.826484061665,577.77250000000015,1282.3077540000002,1001.8487474376738,643.3589939200001,1130.6833333333334,1376.7983333333334,6007.7978127526721,7384.5961460860053,null,null,1848.9584058275002,1382.8974999999998,2605.3750654999999,1694.6387705704019,827.32616432833345,2567.4583333333335,2465.8616666666671,10926.65423955957,13392.515906226239,null,null,-4918.8564268068976,-6007.9197601402311,null,null,1384.635892579995,471.52000000000021,1222.5550040000001,985.93172090206076,615.94480754999995,1014.8000000000002,1173.6299999999999,5695.387425032055,6869.0174250320561,null,null,1777.9208174399976,1177.5200000000004,2268.9453550000003,1477.4520811799057,777.04151904999992,2364.1999999999998,2304.29,9843.0797726699093,12147.36977266991,null,null,-4147.6923476378488,-5278.3523476378505]
[null,null,"M",0.87917926296232907,4.4112845526610673,6.5354132595295154,6.5789473684210522,9.4688335707550344,4.4310120045376769,0.42066762307668931,null,null,6.0923050478154952,3.7609840043872551,3.4091960904130683,3.5066850265240479,4.0333736320179172,1.3728181910756301,9.2761237075449952,null,null,79.912749295399493,99.601452225373322,53.807794308586921,75.147656190973677,107.0998257656739,111.566322231651,105.3149683749386,null,null,-19.632140108832385,0,1.790439058043259,0.74865934084668251,1.5621658822959612,-1.238121876089735,0,null,null,11021.1,2680.52,20044,8018.5,4948.3724896515741,16184.704516211048,5888.4729580599997,null,null,82.154699930825331,105.06042153979291,110.50232001485716,101.08882257000825,162.91841759143642,121.38968597312601,260.6695605554595,null,null,5.6015728699652136,0.77454793397455735,-2.2578532207592983,-0.87160493827160412,-3.6237616850562335,5.5013236826745393,2.5685274137040088,null,null,3.60702166,5.22,3.21,4.0199999999999996,3.9120701713880299,4.5564,3,null,null,11.495614974035954,2.7475147534384203,5.110588652063516,7.2632098765432103,2.0425596814582168,10.97259116378612,8.2136690195801449,null,null,7.5715836400000001,7.28,6.52,8.66,8.6633049833861993,7.7206999999999999,8.6688888888888886,null,null,7.5,"n.a.",5,3,7,8.5,"n.a.",null,null,-2.7162611477381082,8.8697825554420184,12.644125414914441,20.454481209667176,19.034865863852236,15.594392508400311,3.4148060518170764,null,null,1414.2702589541641,573.70083333333343,1268.2045121666667,1001.2258338813094,641.81992226229681,1131.8416666666669,1379.7541666666668,6031.0630272644366,7410.8171939311032,null,null,1854.5085182508328,1370.7116666666668,2597.5905506666663,1682.1086650470895,827.88102785916669,2554.375,2489.3375000000001,10887.175428490424,13376.512928490425,null,null,-4856.1124012259852,-5965.6957345593182,null,null,1653.8255578999901,589.64999999999964,1225.7665939999999,1128.3398020884597,683.84866052756001,1229.5,1265.67,6510.9306145160117,7776.60061451601,null,null,1839.2440982499888,1359.75,2716.972597,1705.9948116216879,850.27890472000001,2463.1999999999998,2468.62,10935.440411591677,13404.060411591679,null,null,-4424.5097970756651,-5627.4597970756658]
[null,null,"J",-1.0384807522941626,3.7840443480356778,4.9292729631231076,5.6022408963585439,9.870909320326934,3.9957266754712855,-0.63909985731299768,null,null,6.3739987869814483,4.6651879684658999,3.2619437593961012,3.8087298939165235,4.5532076672997901,1.6139894356865823,8.7991774145036583,null,null,80.460300755664946,99.549360788888734,53.935343176422663,75.099161084790666,106.4410678008163,112.3353019848051,105.44811493114371,null,null,-21.234321984649149,0,1.287030966996346,0.82266889980613223,1.4882318024038144,7.4543693932370578E-2,0,null,null,11138.8,2580.06,21160.5,7913.8,4968.1145345391906,16196.885910342447,5416.6643451899999,null,null,81.828666037559103,100.87824591667652,115.788683345176,98.214517643040466,165.8070868903321,108.35444534859968,244.98212674154269,null,null,7.3952793044492617,1.5763074779377548,-0.72360452110437334,0.25355437665782454,-4.0888109822512835,4.8010370080969373,3.7430215023939928,null,null,3.7535734600000001,5.42,3.29,4.1900000000000004,3.78427117523173,4.1664000000000003,3.08,null,null,13.510132518104108,3.6960938225731472,6.7195043268381713,8.264748010610079,2.5390005745359336,8.0909798830352599,9.7849689130074839,null,null,7.6681934800000002,7.62,6.56,8.83,8.3403578464036698,7.8376999999999999,9.0833333333333339,null,null,7,"n.a.",5,3,7,8,"n.a.",null,null,-2.9344927528021869,7.125370971611078,12.318201991406475,20.838830805399144,18.631188001561071,18.258681989478596,3.1555180093886026,null,null,1441.8816215041641,570.61916666666673,1251.1422582500002,991.31285344466608,637.5398264587152,1119.6333333333332,1374.1883333333335,6012.1290596575445,7386.3173929908762,null,null,1874.110970864999,1353.010833333333,2578.6324025833333,1652.1575396944129,822.22103180249997,2496.9083333333333,2603.5191666666669,10777.041111611912,13380.560278278579,null,null,-4764.9120519543676,-5994.242885287701,null,null,1611.1411847699933,588.90000000000009,1223.11916,1070.7466917830609,669.58956232701985,1083.3000000000002,1269.06,6246.7965988800715,7515.8565988800765,null,null,1797.1260506599942,1310.3000000000002,2618.2625669999998,1608.2936714667751,870.44742977999999,2277.3000000000002,3635.54,10481.729718906761,14117.269718906755,null,null,-4234.9331200266934,-6601.4131200266893]
[null,null,"J",-2.2851005852623585,3.3442675414033065,4.534343681251551,5.1489146895507405,8.172229040586334,3.9511835805403939,0.58169154100985465,null,null,6.2819648604707847,4.1598047531735309,"",3.8921085456306388,5.1032711746761814,1.9253650269392926,11.734044407628696,null,null,80.855845034769388,99.72319213428635,53.746610789310651,74.874097558408408,106.93498845238,113.98365261307831,105.65472294484989,null,null,-20.237915632518163,0,1.4824518439622507,0.65409682246825041,1.3236744514020906,2.3260553076102508,0,null,null,11353.9,2617.42,20969.8,7798.9,5096.4745756437505,15423.915049587817,5296.1028523999994,null,null,79.664214794675715,103.17659603403453,115.20809782418566,99.342566831381276,164.03632885878153,109.70741173869168,244.10031780209428,null,null,8.5095524173545343,2.0859719749167818,-0.33897345960483949,0.85696111377819617,-2.3243196278184906,3.6338368543277819,2.5534552259373933,null,null,3.5909399099999999,5.5,3.33,4.34,3.51621924349101,4.3250999999999999,3.15,null,null,15.725934864898122,4.1954261825501327,7.1226891149304112,8.7029764762361896,2.5998960236031246,9.8445405496809695,8.1608375572440988,null,null,7.2090813799999998,7.68,6.59,9.0299999999999994,8.2467503358747507,7.9306000000000001,8.7899999999999991,null,null,6.5,"n.a.",5,3,7,7.75,"n.a.",null,null,-1.5044270048783837,6.5631794008025102,11.959008100548484,20.711956844384517,17.629373416150408,18.941731772069105,2.5763494995606706,null,null,1448.0665309616631,561.47833333333335,1232.2613084166669,981.08901245396817,636.80419765288173,1112.8999999999999,1398.0191666666667,5972.5993828185137,7370.6185494851807,null,null,1874.635236425833,1336.1233333333332,2563.53989675,1651.5384614542527,818.66165705083324,2487.8666666666663,2937.2000000000003,10732.365251680918,13669.56525168092,null,null,-4759.7658688624051,-6298.9467021957389,null,null,1419.0442856699954,568.71,1180.2498150000001,954.35915064051073,662.2190281200003,1130.5,1371.27,5915.0822794305059,7286.3522794305027,null,null,1810.3416013600108,1278.92,2548.6099359999998,1670.9293588316389,837.88923333999992,2519,6908.38,10665.690129531649,17574.070129531654,null,null,-4750.6078501011434,-10287.717850101144]
[null,null,"A",-3.2781028570288147,3.0942614790330856,4.4731731002670525,5.7056298914415464,7.4582317818614019,4.2685310479627061,2.1981007858336081,null,null,6.1653621949185249,2.8068787536615969,"",3.7526696493451119,5.5306125324201982,2.3080060735632886,11.809363344594678,null,null,80.888034303085263,100.14330390969771,53.788484765897969,74.960553080486179,107.4912534260217,115.6753078846815,106.0765799546691,null,null,-18.161641159872381,0,1.6237361360707241,0.53692847685322342,1.2984130953397892,5.4705759365596176,0,null,null,11320.9,2601.94,20661.8,7707,5143.3745756437502,15827.368312906057,4787.5361964499998,null,null,76.017348742477935,98.912432347772267,116.80339856951998,98.113933719387717,163.31568298882993,106.78269434291377,217.86007856847988,null,null,9.3134058813107536,2.1201359703337528,-0.22318944983442479,0.50552663004538712,-2.4016469645086462,3.7556575437281063,0.99013504789773776,null,null,3.66271776,5.28,3.42,4.53,3.69654914933282,4.2836999999999996,3.21,null,null,16.980699957478407,4.5645009270704646,7.1662673560680918,8.2534583233819045,3.7645040178788149,9.6298172143794503,6.4827354877989025,null,null,7.3299890899999998,7.8,6.61,9.11,8.6755169451763301,7.6123000000000003,8.8233333333333324,null,null,6.5,"n.a.",5,3,7,7.75,"n.a.",null,null,-0.9972041197425896,6.1055199746823829,12.096063952840751,20.759635188308323,17.489451042923122,18.974554579673143,2.607358980008101,null,null,1460.3361427566626,558.44500000000005,1217.9448826666664,979.26902931178483,634.04925707704842,1096.1916666666666,1394.6333333333332,5946.2359784788305,7340.8693118121637,null,null,1866.592320905,1326.86,2544.0084230833336,1638.1553776429955,821.37689365750009,2460.1999999999998,2779.3325000000004,10657.193015288829,13436.525515288829,null,null,-4710.9570368099985,-6095.6562034766639,null,null,1550.5277859199946,539.59999999999945,1114.601641,1056.8859023428895,659.57491137000034,1017.8000000000001,1340.29,5938.9902406328911,7279.2802406328919,null,null,1926.034393950001,1360.5900000000001,2695.1545020000003,1774.1824234472087,912.19906573999981,2531.3000000000002,2297.56,11199.460385137209,13497.020385137206,null,null,-5260.4701445043247,-6217.7401445043215]
[null,null,"S",-2.2351108688117942,3.0189878446015594,4.6870275173873583,6.1270801815431053,7.1705760814651702,4.4102606812692606,2.313229338491213,null,null,5.8909040532085895,1.8472468937439639,"",3.4539713690237019,5.7336094598724996,2.8270134070367661,7.8099999999999978,null,null,80.588553054558574,100.36127111607389,53.750599755911402,74.971401084416343,108.22146848349981,115.8867645073324,106.3561344005569,null,null,-16.537071491757988,0,0.71699910519538079,0.14299967871333719,1.2654067643113098,6.4868117918096715,0,null,null,11333.6,2522.89,20292.599999999999,7687.1,5150.6745756437504,15851.05099860329,4208.1110807599998,null,null,73.977270210957911,98.873816147037203,113.6868960661281,96.958905345219023,164.95564606123554,116.97249974447104,192.33291528285426,null,null,7.9937807307538575,2.3209431634148361,-0.35059503177353929,0.28543121881683142,-1.7108649749319986,3.6763046981064935,0.74943452226692664,null,null,3.5488026100000001,5.41,3.46,4.66,4.2662182727119902,4.3925999999999998,3.0799999999999996,null,null,15.068841083677038,4.699145523251345,6.9377960716348941,7.9083677833214647,2.3765809772830511,9.0910981897716585,6.4009248130214331,null,null,7.1330687700000004,7.86,6.62,9.14,8.4176574073951809,8.0509000000000004,8.862222222222222,null,null,6.5,"n.a.",5,3,7,7.5,"n.a.",null,null,0.53708518938404559,5.734548206944079,11.305044061777636,20.939544594813132,null,18.171150587999406,3.2879856601184754,null,null,1469.7600358391621,551.59666666666681,1213.2862937500001,964.12059587947226,632.62369907454843,1091.4999999999998,1380.9108333333334,5922.8872912098495,7303.7981245431829,null,null,1872.8089633466661,1320.8883333333331,2528.8940586666672,1621.3455780562551,823.22503026666664,2432.1833333333334,2744.9158333333339,10599.345297002923,13344.261130336257,null,null,-4676.4580057930716,-6040.4630057930726,null,null,1524.9124065699953,502.44000000000051,1138.583856,860.39020757592164,573.43888629000003,1020.1,1388.52,5619.865356435912,7008.3853564359088,null,null,1886.3397861699968,1326.6800000000003,2496.943902,1609.9728609740578,853.47822183000017,2343.2000000000003,2173.0100000000002,10516.614770974062,12689.624770974071,null,null,-4896.7494145381352,-5681.2394145381404]
[null,null,"O",-1.2789415066900658,2.6664562953612978,4.9829310654608525,5.8366733466933898,6.0049534095138526,4.3458328142519047,2.0844493051215918,null,null,5.3611243526507932,2.3432946331495477,"",3.1459121344515673,5.7617502773351603,3.4959262720370496,"",null,null,80.159952894609717,100.0436971467572,52.936507791102898,74.832100069266573,108.08026137613651,115.799962601597,106.5991870666471,null,null,-14.611271107459991,0,-0.1983098994157855,-4.8500264549678131E-2,1.204550588541776,5.5947221922055022,0,null,null,11493.5,2585.87,21067.4,7643.4,5284.6,15329.17938719391,4841.53590024,null,null,73.691932659472741,101.45222070302154,116.6280668143538,97.730205468665659,167.67236233846401,113.84593531502098,222.38881226916055,null,null,6.8262451897704741,2.5261841094206385,-0.57431342346967063,0.75902485207100268,-0.90959011922858335,3.9577691550936929,1.4552174253673305,null,null,3.7295029799999999,5.26,3.47,4.79,4.2324879521787704,4.5031999999999996,3.57,null,null,14.725642723609189,5.0099554326110489,6.6840093559244762,8.0816284023668601,3.2106921917162974,8.708414069514216,6.5925762299089063,null,null,7.8253168200000003,7.81,6.63,9.33,8.1513587265507503,8.2530999999999999,8.8144444444444456,null,null,6.25,"n.a.",5,3,7,7.5,"n.a.",null,null,null,5.1458002774564138,10.89743649228625,20.629938082802425,null,19.34011503277069,2.7692384523124725,null,null,1489.4389791183285,546.19166666666683,1199.7246446666666,957.18972165068487,632.77262581288176,null,1377.6783333333333,null,null,null,null,1873.699299228334,1314.3600000000004,2519.7710645833336,1614.0326448157314,832.0212187858333,null,2703.2241666666669,null,null,null,null,null,null,null,null,1595.5412489099949,495.80000000000018,1001.862648,801.2884514414593,578.44242613999995,null,1317.78,null,null,null,null,1962.4067301700152,1326.7500000000018,2501.732039,1584.1570489842418,940.44226625999977,null,2216.3500000000004]
[null,null,"N",-1.6449220561934657,2.1076549400611122,4.3004312410158017,5.035971223021571,5.6466635263341791,4.0039349899971919,2.0104656411551898,null,null,4.8030044974311563,4.2118691248488069,"",3.0034025626020355,5.7627337374297181,4.2876963550567027,"",null,null,80.235066402940518,100.0022967943394,53.246461361842158,74.7878856280729,107.8900380253848,115.81778253454161,106.65491002429169,null,null,-12.9101536711736,0,0.20034164603570828,2.3308906581966625E-2,1.1165199596405284,4.6157251964727068,0,null,null,12876.9,2788.94,21038.5,7544.7,5356.6,15044.498005657862,6441.4019724600003,null,null,null,105.29499088606755,117.7881676306606,93.654736779094847,null,113.9497436619308,291.89253266365381,null,null,7.132241875911399,3.4006706568446923,0.13381417250489161,1.7460958904109705,0.52486756449177885,4.4996999492883658,1.4136141324141107,null,null,null,5.58,3.53,4.93,4.9009007133332103,4.5178000000000003,3.4525000000000001,null,null,null,5.5356721915285476,7.2958171586080276,9.2197260273972734,4.7586295172233442,10.108141591963715,6.7515740599109328,null,null,null,7.76,6.72,9.4600000000000009,9.3056041673129002,8.0027000000000008,8.8977777777777778,null,null,6.25,"n.a.",5,3,7,7.25,"n.a.",null,null,null,4.8243782365877896,10.997238415303734,null,null,18.841212190955648,3.2765095852953063,null,null,1501.4206587916613,543.90666666666675,1192.5325941666665,948.44774000208406,633.43691664788173,null,1330.2833333333331,null,null,null,null,1871.3004228833345,1305.5666666666668,2526.614251583333,1620.216476827329,830.67966683166662,null,2792.8825000000002,null,null,null,null,null,null,null,null,1531.5164936399938,503.14999999999964,1063.996433,851.08601763629497,578.68235456000025,null,1050.04,null,null,null,null,1958.0961464000075,1320.3799999999992,2713.3891610000001,1724.8612578849975,858.79110557000001,null,3102.1499999999996]
[null,null,"D",-1.76529222322297,1.2287704468967735,4.1768748132656226,5.1903114186851207,5.6037563405793174,3.5688785536486272,1.9209050025499335,null,null,4.4020520689937053,"","",3.0733919412744695,"","","",null,null,null,null,null,null,null,null,null,null,null,-11.154212726728264,0,-0.51774374870946005,0.14449904077503772,0.99508681063265469,3.6142898782141475,0,null,null,13218.9,2645.52,21319.4,7555.9,5443.0475190132547,15457.674238995156,null,null,null,null,100.02431114944098,110.03363582202279,null,null,112.44531660566138,null,null,null,7.2533347779830324,4.1502327199628821,0.31016978318227628,1.7964473684210533,-0.14687333289329438,4.6697632666227138,null,null,null,null,5.43,3.56,5.12,4.79702325382737,4.2973999999999997,null,null,null,null,6.8866089376836168,7.5958557990134095,9.2876315789473711,7.3728066761589606,9.6825625481276312,null,null,null,null,8.1999999999999993,6.77,9.43,8.8768098461120104,8.5478000000000005,null,null,null,6,"n.a.",5,3,7,7,"n.a.",null,null,null,null,11.037296229953753,null,null,19.790073580585354,null,null,null,1508.8478111716613,541.50750000000005,null,945.68344579241284,null,null,null,null,null,null,null,1876.3246918741688,1304.0283333333334,null,1610.6179211636006,null,null,null,null,null,null,null,null,null,null,null,1423.0999180000006,449.11000000000058,null,749.228136053551,null,null,null,null,null,null,null,1846.7449884100106,1248.7399999999998,null,1449.6686284673665]
[null,2024,"E",-1.8686339825730685,1.2089540597457162,3.8173008691510968,4.9963081466896409,5.7896851978597477,3.3172501891735742,1.222285911652939,null,null,null,null,null,null,null,null,null,null,null,null,null,null,null,null,null,null,null,null,-10.030879523197749,0,-0.37031925660134052,0.23162487173524218,null,3.8629396236055498,0,null,null,14337.1,2761.43,21227.3,7396.4,null,14360.261917057831,null,null,null,null,null,null,null,null,null,null,null,null,null,null,null,null,null,null,null,null,null,null,null,null,null,null,null,null,null,null,null,null,null,null,null,null,null,null,null,null,null,null,null,null,null,null,null,null,5.75,"n.a.",5,3,7,7,"n.a.",null,null,"","","","","","","",null,null,"","","","","","","","","",null,null,"","","","","","","","","",null,null,"",""]
[null,null,"F",null,null,null,null,null,null,null,null,null,null,null,null,null,null,null,null,null,null,null,null,null,null,null,null,null,null,null,null,null,null,null,null,null,null,null,null,null,null,null,null,null,null,null,null,null,null,null,null,null,null,null,null,null,null,null,null,null,null,null,null,null,null,null,null,null,null,null,null,null,null,null,null,null,null,null,null,null,null,null,null,null,null,null,null,null,null,null,null,null,null,5.75,"n.a.",5,3,7,7,"n.a.",null,null,null,null,null,null,null,null,null,null,null,"","","","","","","","","",null,null,"","","","","","","","","",null,null,"",""]
[null,null,"M",null,null,null,null,null,null,null,null,null,null,null,null,null,null,null,null,null,null,null,null,null,null,null,null,null,null,null,null,null,null,null,null,null,null,null,null,null,null,null,null,null,null,null,null,null,null,null,null,null,null,null,null,null,null,null,null,null,null,null,null,null,null,null,null,null,null,null,null,null,null,null,null,null,null,null,null,null,null,null,null,null,null,null,null,null,null,null,null,null,null,null,null,null,null,null,null,null,null,null,null,null,null,null,null,null,null,null,null,"","","","","","","","","",null,null,"","","","","","","","","",null,null,"",""]
[null,null,"A",null,null,null,null,null,null,null,null,null,null,null,null,null,null,null,null,null,null,null,null,null,null,null,null,null,null,null,null,null,null,null,null,null,null,null,null,null,null,null,null,null,null,null,null,null,null,null,null,null,null,null,null,null,null,null,null,null,null,null,null,null,null,null,null,null,null,null,null,null,null,null,null,null,null,null,null,null,null,null,null,null,null,null,null,null,null,null,null,null,null,null,null,null,null,null,null,null,null,null,null,null,null,null,null,null,null,null,null,"","","","","","","","","",null,null,"","","","","","","","","",null,null,"",""]
[null,null,"M",null,null,null,null,null,null,null,null,null,null,null,null,null,null,null,null,null,null,null,null,null,null,null,null,null,null,null,null,null,null,null,null,null,null,null,null,null,null,null,null,null,null,null,null,null,null,null,null,null,null,null,null,null,null,null,null,null,null,null,null,null,null,null,null,null,null,null,null,null,null,null,null,null,null,null,null,null,null,null,null,null,null,null,null,null,null,null,null,null,null,null,null,null,null,null,null,null,null,null,null,null,null,null,null,null,null,null,null,"","","","","","","","","",null,null,"","","","","","","","","",null,null,"",""]
[null,null,"J",null,null,null,null,null,null,null,null,null,null,null,null,null,null,null,null,null,null,null,null,null,null,null,null,null,null,null,null,null,null,null,null,null,null,null,null,null,null,null,null,null,null,null,null,null,null,null,null,null,null,null,null,null,null,null,null,null,null,null,null,null,null,null,null,null,null,null,null,null,null,null,null,null,null,null,null,null,null,null,null,null,null,null,null,null,null,null,null,null,null,null,null,null,null,null,null,null,null,null,null,null,null,null,null,null,null,null,null,"","","","","","","","","",null,null,"","","","","","","","","",null,null,"",""]
[null,null,"J",null,null,null,null,null,null,null,null,null,null,null,null,null,null,null,null,null,null,null,null,null,null,null,null,null,null,null,null,null,null,null,null,null,null,null,null,null,null,null,null,null,null,null,null,null,null,null,null,null,null,null,null,null,null,null,null,null,null,null,null,null,null,null,null,null,null,null,null,null,null,null,null,null,null,null,null,null,null,null,null,null,null,null,null,null,null,null,null,null,null,null,null,null,null,null,null,null,null,null,null,null,null,null,null,null,null,null,null,"","","","","","","","","",null,null,"","","","","","","","","",null,null,"",""]
[null,null,"A",null,null,null,null,null,null,null,null,null,null,null,null,null,null,null,null,null,null,null,null,null,null,null,null,null,null,null,null,null,null,null,null,null,null,null,null,null,null,null,null,null,null,null,null,null,null,null,null,null,null,null,null,null,null,null,null,null,null,null,null,null,null,null,null,null,null,null,null,null,null,null,null,null,null,null,null,null,null,null,null,null,null,null,null,null,null,null,null,null,null,null,null,null,null,null,null,null,null,null,null,null,null,null,null,null,null,null,null,"","","","","","","","","",null,null,"","","","","","","","","",null,null,"",""]
[null,null,"S",null,null,null,null,null,null,null,null,null,null,null,null,null,null,null,null,null,null,null,null,null,null,null,null,null,null,null,null,null,null,null,null,null,null,null,null,null,null,null,null,null,null,null,null,null,null,null,null,null,null,null,null,null,null,null,null,null,null,null,null,null,null,null,null,null,null,null,null,null,null,null,null,null,null,null,null,null,null,null,null,null,null,null,null,null,null,null,null,null,null,null,null,null,null,null,null,null,null,null,null,null,null,null,null,null,null,null,null,"","","","","","","","","",null,null,"","","","","","","","","",null,null,"",""]
[null,null,"O",null,null,null,null,null,null,null,null,null,null,null,null,null,null,null,null,null,null,null,null,null,null,null,null,null,null,null,null,null,null,null,null,null,null,null,null,null,null,null,null,null,null,null,null,null,null,null,null,null,null,null,null,null,null,null,null,null,null,null,null,null,null,null,null,null,null,null,null,null,null,null,null,null,null,null,null,null,null,null,null,null,null,null,null,null,null,null,null,null,null,null,null,null,null,null,null,null,null,null,null,null,null,null,null,null,null,null,null,"","","","","","","","","",null,null,"","","","","","","","","",null,null,"",""]
[null,null,"N",null,null,null,null,null,null,null,null,null,null,null,null,null,null,null,null,null,null,null,null,null,null,null,null,null,null,null,null,null,null,null,null,null,null,null,null,null,null,null,null,null,null,null,null,null,null,null,null,null,null,null,null,null,null,null,null,null,null,null,null,null,null,null,null,null,null,null,null,null,null,null,null,null,null,null,null,null,null,null,null,null,null,null,null,null,null,null,null,null,null,null,null,null,null,null,null,null,null,null,null,null,null,null,null,null,null,null,null,"","","","","","","","","",null,null,"","","","","","","","","",null,null,"",""]
[null,null,"D",null,null,null,null,null,null,null,null,null,null,null,null,null,null,null,null,null,null,null,null,null,null,null,null,null,null,null,null,null,null,null,null,null,null,null,null,null,null,null,null,null,null,null,null,null,null,null,null,null,null,null,null,null,null,null,null,null,null,null,null,null,null,null,null,null,null,null,null,null,null,null,null,null,null,null,null,null,null,null,null,null,null,null,null,null,null,null,null,null,null,null,null,null,null,null,null,null,null,null,null,null,null,null,null,null,null,null,null,"","","","","","","","","",null,null,"","","","","","","","","",null,null,"",""]